{"text_format":"1","workbook":"xlsx","n_sheets":7,"sheets":["Info","1. Order","2. Content (NL)","2.1 Content (ENG)","Article Onboarding","Data content","Data order"],"not_rendered":{"charts":0,"images":1,"macros":1,"external_links":0,"defined_names":76,"comments":1,"pivot_tables":0},"unopened":[],"bounds":{"document_bytes":16777216,"sheet_cells":100000,"rows_first":2000,"rows_last":500,"rows_between":2000,"halvings":0,"cell_chars":16384,"cell_head_chars":4096},"cells_cut":0,"cells_raw":0,"read":"whole","date_system":"1900"}

{"sheet":"Info","index":0,"n_rows":105,"n_cols":6,"rows_kept":105,"cut":false,"hidden":false,"merged":[[0,1,0,6],[2,1,2,5],[4,1,4,5],[36,0,36,1],[6,0,6,2],[6,3,6,5],[33,0,33,1],[34,0,34,1],[35,0,35,1]]}
[null,"Wehkamp Retail Group B.V. - Order sheet Fashion "]
[null,"Important notes "]
[null,"Please make sure Tab 1. Order is sent to your contact at WRG's Buying & Sales department no later than 3 months before the confirmed delivery date of this order.\nPlease make sure Tab 2. Content (NL or ENG) is sent to your contact at WRG's Buying & Sales department no later than 1 month before the confirmed delivery date of this order.\n\n"]
[]
[null,"All information about the ordersheet and the most up to date version can always be found on: https://www.wehkamplogistiek.nl/wrg-ordersheets/\nWhen first receiving the new order format, please click ‘accept’ in the pop-ups when opening the sheet so macro's are activated\nPlease always save this file as an Excel file with macro's\nPlease only use thumbnail images in this file\nThe content sheet contains dropdown menu's. For properties with 'Multi' in the name multiple values can be selected from the menu."]
[]
["Definities (Nederlands)",null,null,"Definitions (English)"]
["Wehkamp","grijze kolommen worden automatisch gevuld of door Wehkamp",null,"Wehkamp","grey columns will be filled by Wehkamp or automatically"]
["Leverancier","witte kolommen zijn verplicht en dienen gevuld te worden door de leverancier",null,"Supplier","white columns are mandatory and need to be filled by the supplier"]
["Kolom header ","Definitie","Voorbeeld ","Column header","Definition","Example"]
["Leverdatum van","Datum begin leverblok","2024-09-01","Delivery date from","Date start of delivery","2024-09-01"]
["Leverdatum tot","Datum eind leverblok","2024-09-30","Delivery date to","Date end of delivery ","2024-09-30"]
["Merk","Merk van het artikel","Sofie Schnoor","Brand","Brand of the item","Sofie Schnoor"]
["Merklijn","Merklijn van het artikel","Petit by Sofie Schnoor","Brand line","Brand line of the item","Petit by Sofie Schnoor"]
["Leveranciers artikelnummer","Stijlnummer van het artikel","CLTTOP34AW243329","Style number","Style number of the item","CLTTOP34AW243329"]
["AX Inkooptekst","Stijlnaam van het artikel","Tanja Jersey Tank","Style name","Style name of the item","Tanja Jersey Tank"]
["Inkoopkleur","Kleurcode + naam van het artikel","3329 Pink","Colour number + name","Colour code + name of the item","3329 Pink"]
["DarwinMoverClass","Seizoen van het artikel","winter 2024","DarwinMoverClass","Season ","winter 2024"]
["EAN/UPC","Barcode/EAN/UPC per maat",8719561323412,"EAN/UPC","Barcode/EAN/UPC per size",8719561323412]
["SizeSupplier","Bestelmaat",36,"SizeSupplier","Size on order",36]
["SizeDescription","Maat die op de website wordt getoond","S","SizeDescription","Size on website","S"]
["Aantallen per maat","Besteld aantal van een artikel per maat",25,"QTY per size","Ordered amount per size",25]
["QTYlowest","Minimaal orderaantal per maat",10,"QTYlowest","Lowest order quantity per size",10]
["QTYmultiples","Veelvoud orderaantal per maat",5,"QTYmultiples","Multiple order quantity per size",5]
["CurrencyCodePurchasePrice","Valuta inkoopprijs","EUR","CurrencyCodePurchasePrice","Currency of the purchase price","EUR"]
["Netto inkoopprijs","Netto inkoopprijs van een artikel incl. eventuele kortingen",null,"Currency purchase price","Net purchase price including any discounts"]
["CVP","Consumenten verkoopprijs/RRP, kan afwijken per maat",null,"RRP CVP","Customer selling price/RRP, can vary per size"]
["OVP","Originele verkoopprijs/RRP, kan afwijken per maat",null,"RRP OVP","Original selling price/RRP, can vary per size"]
["Materiaalsamenstelling","Materiaalcompositie in %","60% viscose/35% katoen/5% elastaan ","Material composition in %","Material composition in %","60% viscose/35% katoen/5% elastaan "]
["Filtermateriaal","Hoofdcomponent of look and feel van de materiaalsamenstelling","Viscose/Teddy","Filtermaterial","Most prominent component of the material composition or look and feel","Viscose/Teddy"]
["Customs code","Customs code is de HS-code (Harmonised System code)","Zie sheet (comment in header)","Customs code","Customs code is the HS-code (Harmonised System code)","Please see sheet (comment in header)"]
["Gewicht excl. verpakking","Gewicht van 1 stuk exclusief verpakking (op maatniveau) (gram)",150,"Weight excl. packaging","Weight of 1 piece in grams excluding packaging per size",150]
[]
["Gebruik deze lijst voor de juiste schrijfwijze van de materiaalsoort voor de kolom 'Materiaalsamentelling in %'. Voorbeeld van een correct geschreven materiaalsamenstelling: 80% katoen/10% elastaan/10% polyester. "]
["Use this list for the correct way of writing of an material. Example of an correctly written material composition: 80% cotton/10% elastane/10% polyester."]
["MATERIAL LIST "]
["Ways of writing and translations"]
["Material ENG","Material NL"]
["acetate","acetaat"]
["acrylic","acryl"]
["alpaca","alpaca"]
["angora","angora"]
["bamboo","bamboe"]
["canvas","canvas"]
["down","dons"]
["gemstone","edelsteen"]
["duck feathers","eendenveren"]
["elastane","elastaan"]
["glass","glas"]
["gold","goud"]
["semi-precious stone","halfedelsteen"]
["resin","hars"]
["hemp","hennep"]
["iron","ijzer"]
["faux fur","imitatiebont"]
["faux suede","imitatiesuede"]
["jute","jute"]
["kapok","kapok"]
["cashmere","kasjmier"]
["cotton","katoen"]
["coconut fiber","kokosvezel"]
["crystal","kristal"]
["cork","kurk"]
["leather","leer"]
["linen","linnen"]
["lyocell","lyocell"]
["merino wool","merinowol"]
["brass","messing"]
["metal","metaal"]
["metal thread","metaaldraad"]
["micro leather","microleer"]
["modacrylic","modacryl"]
["mohair","mohair"]
["neoprene","neopreen"]
["palm leaves","palmbladeren"]
["paper","papier"]
["pearl","parel"]
["polyacrylic","polyacryl"]
["polyamide","polyamide"]
["polycarbonate","polycarbonaat"]
["polyester","polyester"]
["polyethylene","polyethyleen"]
["polylactide","polylactide"]
["polyolefins","polyolefins"]
["polypropylene","polypropyleen"]
["polyurethane","polyurethaan"]
["PVC","PVC"]
["raffia","raffia"]
["ramie","ramie"]
["reed","riet"]
["rattan","rotan"]
["rubber","rubber"]
["stainless steel","RVS"]
["silicone","siliconen"]
["steel","staal"]
["Sterling silver","Sterling zilver"]
["straw","stro"]
["suède","suède"]
["Swarovski crystal","Swarovski kristal"]
["viscose","viscose"]
["wool","wol"]
["silk","zijde"]
["silver","zilver"]
["zinc","zink"]
["zirconia","zirkonia"]

{"sheet":"1. Order","index":1,"n_rows":1505,"n_cols":60,"rows_kept":1505,"cut":false,"hidden":false,"merged":[[497,0,502,0],[467,0,472,0],[473,0,478,0],[479,0,484,0],[485,0,490,0],[491,0,496,0],[437,0,442,0],[443,0,448,0],[449,0,454,0],[455,0,460,0],[461,0,466,0],[407,0,412,0],[413,0,418,0],[419,0,424,0],[425,0,430,0],[431,0,436,0],[377,0,382,0],[383,0,388,0],[389,0,394,0],[395,0,400,0],[401,0,406,0],[347,0,352,0],[353,0,358,0],[359,0,364,0],[365,0,370,0],[371,0,376,0],[317,0,322,0],[323,0,328,0],[329,0,334,0],[335,0,340,0],[341,0,346,0],[287,0,292,0],[293,0,298,0],[299,0,304,0],[305,0,310,0],[311,0,316,0],[257,0,262,0],[263,0,268,0],[269,0,274,0],[275,0,280,0],[281,0,286,0],[227,0,232,0],[233,0,238,0],[239,0,244,0],[245,0,250,0],[251,0,256,0],[197,0,202,0],[203,0,208,0],[209,0,214,0],[215,0,220,0],[221,0,226,0],[167,0,172,0],[173,0,178,0],[179,0,184,0],[185,0,190,0],[191,0,196,0],[137,0,142,0],[143,0,148,0],[149,0,154,0],[155,0,160,0],[161,0,166,0],[107,0,112,0],[113,0,118,0],[119,0,124,0],[125,0,130,0],[131,0,136,0],[77,0,82,0],[83,0,88,0],[89,0,94,0],[95,0,100,0],[101,0,106,0],[479,21,484,21],[485,21,490,21],[491,21,496,21],[497,21,502,21],[5,0,10,0],[11,0,16,0],[17,0,22,0],[23,0,28,0],[29,0,34,0],[35,0,40,0],[41,0,46,0],[47,0,52,0],[53,0,58,0],[59,0,64,0],[65,0,70,0],[71,0,76,0],[449,21,454,21],[455,21,460,21],[461,21,466,21],[467,21,472,21],[473,21,478,21],[419,21,424,21],[425,21,430,21],[431,21,436,21],[437,21,442,21],[443,21,448,21],[389,21,394,21],[395,21,400,21],[401,21,406,21],[407,21,412,21],[413,21,418,21],[359,21,364,21],[365,21,370,21],[371,21,376,21],[377,21,382,21],[383,21,388,21],[329,21,334,21],[335,21,340,21],[341,21,346,21],[347,21,352,21],[353,21,358,21],[305,21,310,21],[311,21,316,21],[317,21,322,21],[323,21,328,21],[275,21,280,21],[281,21,286,21],[287,21,292,21],[293,21,298,21],[299,21,304,21],[245,21,250,21],[251,21,256,21],[257,21,262,21],[263,21,268,21],[269,21,274,21],[215,21,220,21],[221,21,226,21],[227,21,232,21],[233,21,238,21],[239,21,244,21],[185,21,190,21],[191,21,196,21],[197,21,202,21],[203,21,208,21],[209,21,214,21],[155,21,160,21],[161,21,166,21],[167,21,172,21],[173,21,178,21],[179,21,184,21],[125,21,130,21],[131,21,136,21],[137,21,142,21],[143,21,148,21],[149,21,154,21],[101,21,106,21],[107,21,112,21],[113,21,118,21],[119,21,124,21],[65,21,70,21],[71,21,76,21],[77,21,82,21],[83,21,88,21],[89,21,94,21],[47,21,52,21],[53,21,58,21],[59,21,64,21],[5,21,10,21],[11,21,16,21],[17,21,22,21],[23,21,28,21],[29,21,34,21],[95,21,100,21],[0,31,0,49],[0,50,0,59],[0,0,0,12],[0,13,0,15],[0,16,0,19],[0,20,0,23],[0,24,0,30],[35,21,40,21],[41,21,46,21],[503,0,508,0],[509,0,514,0],[515,0,520,0],[521,0,526,0],[527,0,532,0],[533,0,538,0],[539,0,544,0],[545,0,550,0],[551,0,556,0],[557,0,562,0],[563,0,568,0],[569,0,574,0],[575,0,580,0],[581,0,586,0],[587,0,592,0],[593,0,598,0],[599,0,604,0],[605,0,610,0],[611,0,616,0],[617,0,622,0],[623,0,628,0],[629,0,634,0],[635,0,640,0],[641,0,646,0],[647,0,652,0],[653,0,658,0],[659,0,664,0],[665,0,670,0],[671,0,676,0],[677,0,682,0],[683,0,688,0],[689,0,694,0],[695,0,700,0],[701,0,706,0],[707,0,712,0],[713,0,718,0],[719,0,724,0],[725,0,730,0],[731,0,736,0],[737,0,742,0],[743,0,748,0],[749,0,754,0],[755,0,760,0],[761,0,766,0],[767,0,772,0],[773,0,778,0],[779,0,784,0],[785,0,790,0],[791,0,796,0],[797,0,802,0],[803,0,808,0],[809,0,814,0],[815,0,820,0],[821,0,826,0],[827,0,832,0],[833,0,838,0],[839,0,844,0],[845,0,850,0],[851,0,856,0],[857,0,862,0],[863,0,868,0],[869,0,874,0],[875,0,880,0],[881,0,886,0],[887,0,892,0],[893,0,898,0],[899,0,904,0],[905,0,910,0],[911,0,916,0],[917,0,922,0],[923,0,928,0],[929,0,934,0],[935,0,940,0],[941,0,946,0],[947,0,952,0],[953,0,958,0],[959,0,964,0],[965,0,970,0],[971,0,976,0],[977,0,982,0],[983,0,988,0],[989,0,994,0],[995,0,1000,0],[1001,0,1006,0],[1007,0,1012,0],[1013,0,1018,0],[1019,0,1024,0],[1025,0,1030,0],[1031,0,1036,0],[1037,0,1042,0],[1043,0,1048,0],[1049,0,1054,0],[1055,0,1060,0],[1061,0,1066,0],[1067,0,1072,0],[1073,0,1078,0],[1079,0,1084,0],[1085,0,1090,0],[1091,0,1096,0],[1097,0,1102,0],[1103,0,1108,0],[1109,0,1114,0],[1115,0,1120,0],[1121,0,1126,0],[1127,0,1132,0],[1133,0,1138,0],[1139,0,1144,0],[1145,0,1150,0],[1151,0,1156,0],[1157,0,1162,0],[1163,0,1168,0],[1169,0,1174,0],[1175,0,1180,0],[1181,0,1186,0],[1187,0,1192,0],[1193,0,1198,0],[1199,0,1204,0],[1205,0,1210,0],[1211,0,1216,0],[1217,0,1222,0],[1223,0,1228,0],[1229,0,1234,0],[1235,0,1240,0],[1241,0,1246,0],[1247,0,1252,0],[1253,0,1258,0],[1259,0,1264,0],[1265,0,1270,0],[1271,0,1276,0],[1277,0,1282,0],[1283,0,1288,0],[1289,0,1294,0],[1295,0,1300,0],[1301,0,1306,0],[1307,0,1312,0],[1313,0,1318,0],[1319,0,1324,0],[1325,0,1330,0],[1331,0,1336,0],[1337,0,1342,0],[1343,0,1348,0],[1349,0,1354,0],[1355,0,1360,0],[1361,0,1366,0],[1367,0,1372,0],[1373,0,1378,0],[1379,0,1384,0],[1385,0,1390,0],[1391,0,1396,0],[1397,0,1402,0],[1403,0,1408,0],[1409,0,1414,0],[1415,0,1420,0],[1421,0,1426,0],[1427,0,1432,0],[1433,0,1438,0],[1439,0,1444,0],[1445,0,1450,0],[1451,0,1456,0],[1457,0,1462,0],[1463,0,1468,0],[1469,0,1474,0],[1475,0,1480,0],[1481,0,1486,0],[1487,0,1492,0],[1493,0,1498,0],[1499,0,1504,0],[503,21,508,21],[509,21,514,21],[515,21,520,21],[521,21,526,21],[527,21,532,21],[533,21,538,21],[539,21,544,21],[545,21,550,21],[551,21,556,21],[557,21,562,21],[563,21,568,21],[569,21,574,21],[575,21,580,21],[581,21,586,21],[587,21,592,21],[593,21,598,21],[599,21,604,21],[605,21,610,21],[611,21,616,21],[617,21,622,21],[623,21,628,21],[629,21,634,21],[635,21,640,21],[641,21,646,21],[647,21,652,21],[653,21,658,21],[659,21,664,21],[665,21,670,21],[671,21,676,21],[677,21,682,21],[683,21,688,21],[689,21,694,21],[695,21,700,21],[701,21,706,21],[707,21,712,21],[713,21,718,21],[719,21,724,21],[725,21,730,21],[731,21,736,21],[737,21,742,21],[743,21,748,21],[749,21,754,21],[755,21,760,21],[761,21,766,21],[767,21,772,21],[773,21,778,21],[779,21,784,21],[785,21,790,21],[791,21,796,21],[797,21,802,21],[803,21,808,21],[809,21,814,21],[815,21,820,21],[821,21,826,21],[827,21,832,21],[833,21,838,21],[839,21,844,21],[845,21,850,21],[851,21,856,21],[857,21,862,21],[863,21,868,21],[869,21,874,21],[875,21,880,21],[881,21,886,21],[887,21,892,21],[893,21,898,21],[899,21,904,21],[905,21,910,21],[911,21,916,21],[917,21,922,21],[923,21,928,21],[929,21,934,21],[935,21,940,21],[941,21,946,21],[947,21,952,21],[953,21,958,21],[959,21,964,21],[965,21,970,21],[971,21,976,21],[977,21,982,21],[983,21,988,21],[989,21,994,21],[995,21,1000,21],[1001,21,1006,21],[1007,21,1012,21],[1013,21,1018,21],[1019,21,1024,21],[1025,21,1030,21],[1031,21,1036,21],[1037,21,1042,21],[1043,21,1048,21],[1049,21,1054,21],[1055,21,1060,21],[1061,21,1066,21],[1067,21,1072,21],[1073,21,1078,21],[1079,21,1084,21],[1085,21,1090,21],[1091,21,1096,21],[1097,21,1102,21],[1103,21,1108,21],[1109,21,1114,21],[1115,21,1120,21],[1121,21,1126,21],[1127,21,1132,21],[1133,21,1138,21],[1139,21,1144,21],[1145,21,1150,21],[1151,21,1156,21],[1157,21,1162,21],[1163,21,1168,21],[1169,21,1174,21],[1175,21,1180,21],[1181,21,1186,21],[1187,21,1192,21],[1193,21,1198,21],[1199,21,1204,21],[1205,21,1210,21],[1211,21,1216,21],[1217,21,1222,21],[1223,21,1228,21],[1229,21,1234,21],[1235,21,1240,21],[1241,21,1246,21],[1247,21,1252,21],[1253,21,1258,21],[1259,21,1264,21],[1265,21,1270,21],[1271,21,1276,21],[1277,21,1282,21],[1283,21,1288,21],[1289,21,1294,21],[1295,21,1300,21],[1301,21,1306,21],[1307,21,1312,21],[1313,21,1318,21],[1319,21,1324,21],[1325,21,1330,21],[1331,21,1336,21],[1337,21,1342,21],[1343,21,1348,21],[1349,21,1354,21],[1355,21,1360,21],[1361,21,1366,21],[1367,21,1372,21],[1373,21,1378,21],[1379,21,1384,21],[1385,21,1390,21],[1391,21,1396,21],[1397,21,1402,21],[1403,21,1408,21],[1409,21,1414,21],[1415,21,1420,21],[1421,21,1426,21],[1481,21,1486,21],[1487,21,1492,21],[1493,21,1498,21],[1499,21,1504,21],[1427,21,1432,21],[1433,21,1438,21],[1439,21,1444,21],[1445,21,1450,21],[1451,21,1456,21],[1457,21,1462,21],[1463,21,1468,21],[1469,21,1474,21],[1475,21,1480,21]]}
["PRODUCTINFORMATIE",null,null,null,null,null,null,null,null,null,null,null,null,"PRODUCTCATEGORIE",null,null,"MAATINFORMATIE",null,null,null,"QTY's",null,null,null,"PRIJSINFORMATIE",null,null,null,null,null,null,"MATERIAAL & SUSTAINABILITY",null,null,null,null,null,null,null,null,null,null,null,null,null,null,null,null,null,null,"LOGISTIEKE INFORMATIE"]
[null,null,null,null,null,null,null,null,null,null,null,null,null,null,null,null,null,null,null,null,{"$f":"SUM(U6:U1048576)","v":0},{"$f":"SUM(V6:V1048576)","v":0},null,null,null,null,null,null,null,{"$f":"SUM(AD6:AD501)","v":0},{"$f":"SUM(AE6:AE501)","v":0}]
["Image","Wehkamp article number","Wehkamp PO#","Delivery date from","Delivery date to","AX supplier number","Brand","Brandline","Stylenumber","Stylename","Colour number + name","Season",null,"Description (ds t-shirt)","Mcc3","Articletype","Supplier size","Type of sizing","Website size","Barcode size","QTY per size","Total QTY","MOQ","Multiples","Currency purchase price","Purchase price","RRP CVP","RRP OVP","Mark-up","Total WHL Value","Total retail value","Full material composition in %","Percentage 1","Material 1","Percentage 2","Material 2","Percentage 3","Material 3","Percentage 4","Material 4","Percentage 5","Material 5","Percentage 6","Material 6","Filter material","Customs code (HS/GN)","Weight of 1 piece excluding packaging (on size level) (grams)","Certificates: Recycled material","Certificates: Organic material","Certificates: Animal welfare","Wehkamp buyer","Wehkamp planner","SalesSegment","OMID","Hanging/laying","Storezone","LogisticItemGroup","ShippingCosts","WKShippingMethod","PreferredWarehouseIdentificationCode"]
["Afbeelding","Wehkamp artikelnummer","Wehkamp PO nummer","Leverdatum van","Leverdatum tot","AX leveranciersnummer","Merk","Merklijn","Stijlnummer","Stijlnaam","Kleurnummer + naam","Seizoen",null,"Omschrijving (bijv. ds t-shirt)","MCCr","Artikeltype","Leveranciersmaat","Soort maatvoering","Presentatiemaat","Barcodemaat","Aantallen per maat","Totaal aantal","MOQ","Veelvoud","Valuta inkoopprijs","Inkoopprijs","Verkoopprijs CVP","Verkoopprijs OVP","Mark-up","Totaal inkoopwaarde","Totaal verkoopwaarde","Volledige materiaalsamenstelling","Percentage 1","Materiaal 1","Percentage 2","Materiaal 2","Percentage 3","Materiaal 3","Percentage 4","Materiaal 4","Percentage 5","Materiaal 5","Percentage 6","Materiaal 6","Filtermateriaal","Customs code","Gewicht van 1 stuk exclusief verpakking (op maatniveau) (gram)","Certificaten: Gerecycled materiaal","Certificaten: Biologisch materiaal","Certificaten: Dierenwelzijn","Wehkamp buyer","Wehkamp planner","SalesSegment","OMID","Hanggoed/liggoed","Opslaglocatie","LogisticItemGroup","ShippingCosts","WKShippingMethod","PreferredWarehouseIdentificationCode"]
["Afbeelding","Wehkamp artikelnummer","Wehkamp PO nummer","Leverdatum van","Leverdatum tot","AX leveranciersnummer","Merk","Merklijn","Leveranciers artikelnummer (max. 20 posities)","AX Inkooptekst","Inkoopkleur                (max. 50 posities)","DarwinMoverClass","EAN/UPC","AX Naam","Artikelgroepcode","Taxon","SizeSupplier","Soort maatvoering","SizeDescription","SizeWehkamp","Aantallen per maat","Totaal aantal","QTYlowest","QTYmultiples","CurrencyCodePurchasePrice","Netto inkoopprijs","CVP","OVP","Mark-up","Total WHL Value","Total retail value","Materiaalsamenstelling in %","Percentage 1","Materiaal 1","Percentage 2","Materiaal 2","Percentage 3","Materiaal 3","Percentage 4","Materiaal 4","Percentage 5","Materiaal 5","Percentage 6","Materiaal 6","Filtermateriaal","Customs code","Gewicht excl. verpakking","Certificaten: Gerecycled materiaal","Certificaten: Biologisch materiaal","Certificaten: Dierenwelzijn","BuyerGroup","SupplyChainPlanner","SalesSegment","OMID","Hanggoed/liggoed","StoreZone (VAS)","LogisticItemGroup","ShippingCosts","WKShippingMethod","PreferredWarehouseIdentificationCode"]
[null,null,null,null,null,{"$f":"VLOOKUP(G6,'Data order'!Z:AA,2,0)","v":{"$error":"#N/A"}},null,null,null,null,null,null,null,null,{"$f":"VLOOKUP(N6,Tabel10[[korte omschrijving]:[MCC3_CODE]],2,0)","v":{"$error":"#N/A"}},{"$f":"VLOOKUP(N6,'Data order'!M:O,3,0)","v":{"$error":"#N/A"}},null,null,null,{"$f":"IFERROR(\n  IF(R6=\"Big&Tall\",\n      VLOOKUP(S6, 'Data order'!$AC$92:$AD$101, 2, FALSE),\n      IF(R6=\"Boordmaat\",\n          VLOOKUP(S6, 'Data order'!$AC$102:$AD$116, 2, FALSE),\n          VLOOKUP(S6, 'Data order'!$AC$2:$AD$91, 2, FALSE)\n      )\n  ),\n\"\")","v":""},null,{"$f":"SUM(U6:U11)","v":0},null,null,"EUR",null,null,null,{"$f":"AB6/Z6","v":{"$error":"#DIV/0!"}},{"$f":"U6*Z6","v":0},{"$f":"U6*AB6","v":0},null,{"$f":"IF(AF6 <> \"\",\n    IF(ISNUMBER(VALUE(LEFT(AF6, FIND(\"%\", AF6)-1))),\n        VALUE(LEFT(AF6, FIND(\"%\", AF6)-1)),\n        \"Invalid format\"),\n    \"\")","v":""},{"$f":"IF(AF6 <> \"\",\n    IF(ISNUMBER(VALUE(LEFT(AF6, FIND(\"%\", AF6)-1))) * ISNUMBER(FIND(\"%\", AF6 & \"wol\")) > 0,\n        TRIM(MID(AF6, FIND(\"%\", AF6)+1, FIND(\"/\", AF6 & \"/\")-FIND(\"%\", AF6)-1)),\n        \"Invalid format\"),\n    \"\")","v":""},{"$f":"IF(AF6 <> \"\",\n    IF(ISNUMBER(VALUE(MID(AF6, FIND(\"/\", AF6) + 1, FIND(\"%\", AF6, FIND(\"/\", AF6)) - FIND(\"/\", AF6) - 1))),\n        VALUE(MID(AF6, FIND(\"/\", AF6) + 1, FIND(\"%\", AF6, FIND(\"/\", AF6)) - FIND(\"/\", AF6) - 1)),\n        \"\"),\n    \"\")","v":""},{"$f":"IF(AF6 <> \"\",\n    IFERROR(TRIM(MID(AF6, FIND(\"%\", AF6, FIND(\"/\", AF6)+1)+2,\n        IFERROR(FIND(\"/\", AF6 & \"/\", FIND(\"/\", AF6)+1)-FIND(\"%\", AF6, FIND(\"/\", AF6)+1)-2, LEN(AF6)-FIND(\"%\", AF6, FIND(\"/\", AF6)+1)-1))),\n        \"\"),\n    \"\")","v":""},{"$f":"IF(AF6 <> \"\",\n    IF(ISNUMBER(VALUE(MID(AF6, FIND(\"/\", AF6, FIND(\"/\", AF6)+1) + 1, FIND(\"%\", AF6, FIND(\"/\", AF6, FIND(\"/\", AF6)+1)) - FIND(\"/\", AF6, FIND(\"/\", AF6)+1) - 1))),\n        VALUE(MID(AF6, FIND(\"/\", AF6, FIND(\"/\", AF6)+1) + 1, FIND(\"%\", AF6, FIND(\"/\", AF6, FIND(\"/\", AF6)+1)) - FIND(\"/\", AF6, FIND(\"/\", AF6)+1) - 1)),\n        \"\"),\n    \"\")","v":""},{"$f":"IF(AF6 <> \"\",\n    IFERROR(\n        TRIM(MID(AF6,\n            FIND(\"%\", AF6, FIND(\"%\", AF6, FIND(\"%\", AF6)+1)+1)+1,\n            FIND(\"/\", AF6 & \"/\", FIND(\"%\", AF6, FIND(\"%\", AF6, FIND(\"%\", AF6)+1)+1))-FIND(\"%\", AF6, FIND(\"%\", AF6, FIND(\"%\", AF6)+1)+1)-1)\n        ),\n        \"\"\n    ),\n    \"\"\n)","v":""},{"$f":"IF(AF6 <> \"\",\n    IF(ISNUMBER(VALUE(MID(AF6, FIND(\"/\", AF6, FIND(\"/\", AF6, FIND(\"/\", AF6)+1)+1) + 1, FIND(\"%\", AF6, FIND(\"/\", AF6, FIND(\"/\", AF6, FIND(\"/\", AF6)+1)+1)) - FIND(\"/\", AF6, FIND(\"/\", AF6, FIND(\"/\", AF6)+1)+1) - 1))),\n        VALUE(MID(AF6, FIND(\"/\", AF6, FIND(\"/\", AF6, FIND(\"/\", AF6)+1)+1) + 1, FIND(\"%\", AF6, FIND(\"/\", AF6, FIND(\"/\", AF6, FIND(\"/\", AF6)+1)+1)) - FIND(\"/\", AF6, FIND(\"/\", AF6, FIND(\"/\", AF6)+1)+1) - 1)),\n        \"\"),\n    \"\")","v":""},{"$f":"IF(AF6 <> \"\",\n    IFERROR(TRIM(MID(AF6, FIND(\"%\", AF6, FIND(\"/\", AF6, FIND(\"/\", AF6, FIND(\"/\", AF6)+1)+1)+1)+2,\n        IFERROR(FIND(\"/\", AF6, FIND(\"/\", AF6, FIND(\"/\", AF6, FIND(\"/\", AF6)+1)+1)+1)-FIND(\"%\", AF6, FIND(\"/\", AF6, FIND(\"/\", AF6, FIND(\"/\", AF6)+1)+1)+1)-2, LEN(AF6)-FIND(\"%\", AF6, FIND(\"/\", AF6, FIND(\"/\", AF6, FIND(\"/\", AF6)+1)+1)+1)-1))),\n        \"\"),\n    \"\")","v":""},{"$f":"IF(AF6 <> \"\",\n    IF(ISNUMBER(VALUE(MID(AF6, FIND(\"/\", AF6, FIND(\"/\", AF6, FIND(\"/\", AF6, FIND(\"/\", AF6)+1)+1)+1) + 1, FIND(\"%\", AF6, FIND(\"/\", AF6, FIND(\"/\", AF6, FIND(\"/\", AF6, FIND(\"/\", AF6)+1)+1)+1)) - FIND(\"/\", AF6, FIND(\"/\", AF6, FIND(\"/\", AF6, FIND(\"/\", AF6)+1)+1)+1) - 1))),\n        VALUE(MID(AF6, FIND(\"/\", AF6, FIND(\"/\", AF6, FIND(\"/\", AF6, FIND(\"/\", AF6)+1)+1)+1) + 1, FIND(\"%\", AF6, FIND(\"/\", AF6, FIND(\"/\", AF6, FIND(\"/\", AF6, FIND(\"/\", AF6)+1)+1)+1)) - FIND(\"/\", AF6, FIND(\"/\", AF6, FIND(\"/\", AF6, FIND(\"/\", AF6)+1)+1)+1) - 1)),\n        \"\"),\n    \"\")","v":""},{"$f":"IF(AF6 = \"\", \"\",\n    IFERROR(TRIM(\n        MID(\n            AF6,\n            FIND(\"%\", AF6, FIND(\"/\", AF6, FIND(\"/\", AF6, FIND(\"/\", AF6, FIND(\"/\", AF6)+1)+1)+1)+1) + 1,\n            FIND(\"/\", AF6 & \"/\", FIND(\"%\", AF6, FIND(\"/\", AF6, FIND(\"/\", AF6, FIND(\"/\", AF6, FIND(\"/\", AF6)+1)+1)+1)+1)) -\n            FIND(\"%\", AF6, FIND(\"/\", AF6, FIND(\"/\", AF6, FIND(\"/\", AF6, FIND(\"/\", AF6)+1)+1)+1)+1) - 1\n        )\n    ),\n    \"\")\n)","v":""},null,null,null,null,null,null,null,null,null,null,null,null,null,null,null,null,null,"ZWO"]
[null,null,null,null,null,{"$f":"VLOOKUP(G7,'Data order'!Z:AA,2,0)","v":{"$error":"#N/A"}},null,null,null,null,null,null,null,null,{"$f":"VLOOKUP(N7,Tabel10[[korte omschrijving]:[MCC3_CODE]],2,0)","v":{"$error":"#N/A"}},{"$f":"VLOOKUP(N7,'Data order'!M:O,3,0)","v":{"$error":"#N/A"}},null,null,null,{"$f":"IFERROR(\n  IF(R7=\"Big&Tall\",\n      VLOOKUP(S7, 'Data order'!$AC$92:$AD$101, 2, FALSE),\n      IF(R7=\"Boordmaat\",\n          VLOOKUP(S7, 'Data order'!$AC$102:$AD$116, 2, FALSE),\n          VLOOKUP(S7, 'Data order'!$AC$2:$AD$91, 2, FALSE)\n      )\n  ),\n\"\")","v":""},null,null,null,null,"EUR",null,null,null,{"$f":"AB7/Z7","v":{"$error":"#DIV/0!"}},{"$f":"U7*Z7","v":0},{"$f":"U7*AB7","v":0},null,{"$f":"IF(AF7 <> \"\",\n    IF(ISNUMBER(VALUE(LEFT(AF7, FIND(\"%\", AF7)-1))),\n        VALUE(LEFT(AF7, FIND(\"%\", AF7)-1)),\n        \"Invalid format\"),\n    \"\")","v":""},{"$f":"IF(AF7 <> \"\",\n    IF(ISNUMBER(VALUE(LEFT(AF7, FIND(\"%\", AF7)-1))) * ISNUMBER(FIND(\"%\", AF7 & \"wol\")) > 0,\n        TRIM(MID(AF7, FIND(\"%\", AF7)+1, FIND(\"/\", AF7 & \"/\")-FIND(\"%\", AF7)-1)),\n        \"Invalid format\"),\n    \"\")","v":""},{"$f":"IF(AF7 <> \"\",\n    IF(ISNUMBER(VALUE(MID(AF7, FIND(\"/\", AF7) + 1, FIND(\"%\", AF7, FIND(\"/\", AF7)) - FIND(\"/\", AF7) - 1))),\n        VALUE(MID(AF7, FIND(\"/\", AF7) + 1, FIND(\"%\", AF7, FIND(\"/\", AF7)) - FIND(\"/\", AF7) - 1)),\n        \"\"),\n    \"\")","v":""},{"$f":"IF(AF7 <> \"\",\n    IFERROR(TRIM(MID(AF7, FIND(\"%\", AF7, FIND(\"/\", AF7)+1)+2,\n        IFERROR(FIND(\"/\", AF7 & \"/\", FIND(\"/\", AF7)+1)-FIND(\"%\", AF7, FIND(\"/\", AF7)+1)-2, LEN(AF7)-FIND(\"%\", AF7, FIND(\"/\", AF7)+1)-1))),\n        \"\"),\n    \"\")","v":""},{"$f":"IF(AF7 <> \"\",\n    IF(ISNUMBER(VALUE(MID(AF7, FIND(\"/\", AF7, FIND(\"/\", AF7)+1) + 1, FIND(\"%\", AF7, FIND(\"/\", AF7, FIND(\"/\", AF7)+1)) - FIND(\"/\", AF7, FIND(\"/\", AF7)+1) - 1))),\n        VALUE(MID(AF7, FIND(\"/\", AF7, FIND(\"/\", AF7)+1) + 1, FIND(\"%\", AF7, FIND(\"/\", AF7, FIND(\"/\", AF7)+1)) - FIND(\"/\", AF7, FIND(\"/\", AF7)+1) - 1)),\n        \"\"),\n    \"\")","v":""},{"$f":"IF(AF7 <> \"\",\n    IFERROR(\n        TRIM(MID(AF7,\n            FIND(\"%\", AF7, FIND(\"%\", AF7, FIND(\"%\", AF7)+1)+1)+1,\n            FIND(\"/\", AF7 & \"/\", FIND(\"%\", AF7, FIND(\"%\", AF7, FIND(\"%\", AF7)+1)+1))-FIND(\"%\", AF7, FIND(\"%\", AF7, FIND(\"%\", AF7)+1)+1)-1)\n        ),\n        \"\"\n    ),\n    \"\"\n)","v":""},{"$f":"IF(AF7 <> \"\",\n    IF(ISNUMBER(VALUE(MID(AF7, FIND(\"/\", AF7, FIND(\"/\", AF7, FIND(\"/\", AF7)+1)+1) + 1, FIND(\"%\", AF7, FIND(\"/\", AF7, FIND(\"/\", AF7, FIND(\"/\", AF7)+1)+1)) - FIND(\"/\", AF7, FIND(\"/\", AF7, FIND(\"/\", AF7)+1)+1) - 1))),\n        VALUE(MID(AF7, FIND(\"/\", AF7, FIND(\"/\", AF7, FIND(\"/\", AF7)+1)+1) + 1, FIND(\"%\", AF7, FIND(\"/\", AF7, FIND(\"/\", AF7, FIND(\"/\", AF7)+1)+1)) - FIND(\"/\", AF7, FIND(\"/\", AF7, FIND(\"/\", AF7)+1)+1) - 1)),\n        \"\"),\n    \"\")","v":""},{"$f":"IF(AF7 <> \"\",\n    IFERROR(TRIM(MID(AF7, FIND(\"%\", AF7, FIND(\"/\", AF7, FIND(\"/\", AF7, FIND(\"/\", AF7)+1)+1)+1)+2,\n        IFERROR(FIND(\"/\", AF7, FIND(\"/\", AF7, FIND(\"/\", AF7, FIND(\"/\", AF7)+1)+1)+1)-FIND(\"%\", AF7, FIND(\"/\", AF7, FIND(\"/\", AF7, FIND(\"/\", AF7)+1)+1)+1)-2, LEN(AF7)-FIND(\"%\", AF7, FIND(\"/\", AF7, FIND(\"/\", AF7, FIND(\"/\", AF7)+1)+1)+1)-1))),\n        \"\"),\n    \"\")","v":""},{"$f":"IF(AF7 <> \"\",\n    IF(ISNUMBER(VALUE(MID(AF7, FIND(\"/\", AF7, FIND(\"/\", AF7, FIND(\"/\", AF7, FIND(\"/\", AF7)+1)+1)+1) + 1, FIND(\"%\", AF7, FIND(\"/\", AF7, FIND(\"/\", AF7, FIND(\"/\", AF7, FIND(\"/\", AF7)+1)+1)+1)) - FIND(\"/\", AF7, FIND(\"/\", AF7, FIND(\"/\", AF7, FIND(\"/\", AF7)+1)+1)+1) - 1))),\n        VALUE(MID(AF7, FIND(\"/\", AF7, FIND(\"/\", AF7, FIND(\"/\", AF7, FIND(\"/\", AF7)+1)+1)+1) + 1, FIND(\"%\", AF7, FIND(\"/\", AF7, FIND(\"/\", AF7, FIND(\"/\", AF7, FIND(\"/\", AF7)+1)+1)+1)) - FIND(\"/\", AF7, FIND(\"/\", AF7, FIND(\"/\", AF7, FIND(\"/\", AF7)+1)+1)+1) - 1)),\n        \"\"),\n    \"\")","v":""},{"$f":"IF(AF7 = \"\", \"\",\n    IFERROR(TRIM(\n        MID(\n            AF7,\n            FIND(\"%\", AF7, FIND(\"/\", AF7, FIND(\"/\", AF7, FIND(\"/\", AF7, FIND(\"/\", AF7)+1)+1)+1)+1) + 1,\n            FIND(\"/\", AF7 & \"/\", FIND(\"%\", AF7, FIND(\"/\", AF7, FIND(\"/\", AF7, FIND(\"/\", AF7, FIND(\"/\", AF7)+1)+1)+1)+1)) -\n            FIND(\"%\", AF7, FIND(\"/\", AF7, FIND(\"/\", AF7, FIND(\"/\", AF7, FIND(\"/\", AF7)+1)+1)+1)+1) - 1\n        )\n    ),\n    \"\")\n)","v":""},null,null,null,null,null,null,null,null,null,null,null,null,null,null,null,null,null,"ZWO"]
[null,null,null,null,null,{"$f":"VLOOKUP(G8,'Data order'!Z:AA,2,0)","v":{"$error":"#N/A"}},null,null,null,null,null,null,null,null,{"$f":"VLOOKUP(N8,Tabel10[[korte omschrijving]:[MCC3_CODE]],2,0)","v":{"$error":"#N/A"}},{"$f":"VLOOKUP(N8,'Data order'!M:O,3,0)","v":{"$error":"#N/A"}},null,null,null,{"$f":"IFERROR(\n  IF(R8=\"Big&Tall\",\n      VLOOKUP(S8, 'Data order'!$AC$92:$AD$101, 2, FALSE),\n      IF(R8=\"Boordmaat\",\n          VLOOKUP(S8, 'Data order'!$AC$102:$AD$116, 2, FALSE),\n          VLOOKUP(S8, 'Data order'!$AC$2:$AD$91, 2, FALSE)\n      )\n  ),\n\"\")","v":""},null,null,null,null,"EUR",null,null,null,{"$error":"#DIV/0!"},{"$f":"U8*Z8","v":0},{"$f":"U8*AB8","v":0},null,"","","","","","","","","","",null,null,null,null,null,null,null,null,null,null,null,null,null,null,null,null,null,"ZWO"]
[null,null,null,null,null,{"$f":"VLOOKUP(G9,'Data order'!Z:AA,2,0)","v":{"$error":"#N/A"}},null,null,null,null,null,null,null,null,{"$f":"VLOOKUP(N9,Tabel10[[korte omschrijving]:[MCC3_CODE]],2,0)","v":{"$error":"#N/A"}},{"$f":"VLOOKUP(N9,'Data order'!M:O,3,0)","v":{"$error":"#N/A"}},null,null,null,{"$f":"IFERROR(\n  IF(R9=\"Big&Tall\",\n      VLOOKUP(S9, 'Data order'!$AC$92:$AD$101, 2, FALSE),\n      IF(R9=\"Boordmaat\",\n          VLOOKUP(S9, 'Data order'!$AC$102:$AD$116, 2, FALSE),\n          VLOOKUP(S9, 'Data order'!$AC$2:$AD$91, 2, FALSE)\n      )\n  ),\n\"\")","v":""},null,null,null,null,"EUR",null,null,null,{"$error":"#DIV/0!"},0,0,null,"","","","","","","","","","",null,null,null,null,null,null,null,null,null,null,null,null,null,null,null,null,null,"ZWO"]
[null,null,null,null,null,{"$f":"VLOOKUP(G10,'Data order'!Z:AA,2,0)","v":{"$error":"#N/A"}},null,null,null,null,null,null,null,null,{"$f":"VLOOKUP(N10,Tabel10[[korte omschrijving]:[MCC3_CODE]],2,0)","v":{"$error":"#N/A"}},{"$f":"VLOOKUP(N10,'Data order'!M:O,3,0)","v":{"$error":"#N/A"}},null,null,null,{"$f":"IFERROR(\n  IF(R10=\"Big&Tall\",\n      VLOOKUP(S10, 'Data order'!$AC$92:$AD$101, 2, FALSE),\n      IF(R10=\"Boordmaat\",\n          VLOOKUP(S10, 'Data order'!$AC$102:$AD$116, 2, FALSE),\n          VLOOKUP(S10, 'Data order'!$AC$2:$AD$91, 2, FALSE)\n      )\n  ),\n\"\")","v":""},null,null,null,null,"EUR",null,null,null,{"$error":"#DIV/0!"},0,0,null,"","","","","","","","","","",null,null,null,null,null,null,null,null,null,null,null,null,null,null,null,null,null,"ZWO"]
[null,null,null,null,null,{"$f":"VLOOKUP(G11,'Data order'!Z:AA,2,0)","v":{"$error":"#N/A"}},null,null,null,null,null,null,null,null,{"$f":"VLOOKUP(N11,Tabel10[[korte omschrijving]:[MCC3_CODE]],2,0)","v":{"$error":"#N/A"}},{"$f":"VLOOKUP(N11,'Data order'!M:O,3,0)","v":{"$error":"#N/A"}},null,null,null,{"$f":"IFERROR(\n  IF(R11=\"Big&Tall\",\n      VLOOKUP(S11, 'Data order'!$AC$92:$AD$101, 2, FALSE),\n      IF(R11=\"Boordmaat\",\n          VLOOKUP(S11, 'Data order'!$AC$102:$AD$116, 2, FALSE),\n          VLOOKUP(S11, 'Data order'!$AC$2:$AD$91, 2, FALSE)\n      )\n  ),\n\"\")","v":""},null,null,null,null,"EUR",null,null,null,{"$error":"#DIV/0!"},0,0,null,"","","","","","","","","","",null,null,null,null,null,null,null,null,null,null,null,null,null,null,null,null,null,"ZWO"]
[null,null,null,null,null,{"$f":"VLOOKUP(G12,'Data order'!Z:AA,2,0)","v":{"$error":"#N/A"}},null,null,null,null,null,null,null,null,{"$f":"VLOOKUP(N12,Tabel10[[korte omschrijving]:[MCC3_CODE]],2,0)","v":{"$error":"#N/A"}},{"$f":"VLOOKUP(N12,'Data order'!M:O,3,0)","v":{"$error":"#N/A"}},null,null,null,{"$f":"IFERROR(\n  IF(R12=\"Big&Tall\",\n      VLOOKUP(S12, 'Data order'!$AC$92:$AD$101, 2, FALSE),\n      IF(R12=\"Boordmaat\",\n          VLOOKUP(S12, 'Data order'!$AC$102:$AD$116, 2, FALSE),\n          VLOOKUP(S12, 'Data order'!$AC$2:$AD$91, 2, FALSE)\n      )\n  ),\n\"\")","v":""},null,{"$f":"SUM(U12:U17)","v":0},null,null,"EUR",null,null,null,{"$error":"#DIV/0!"},0,0,null,"","","","","","","","","","",null,null,null,null,null,null,null,null,null,null,null,null,null,null,null,null,null,"ZWO"]
[null,null,null,null,null,{"$f":"VLOOKUP(G13,'Data order'!Z:AA,2,0)","v":{"$error":"#N/A"}},null,null,null,null,null,null,null,null,{"$f":"VLOOKUP(N13,Tabel10[[korte omschrijving]:[MCC3_CODE]],2,0)","v":{"$error":"#N/A"}},{"$f":"VLOOKUP(N13,'Data order'!M:O,3,0)","v":{"$error":"#N/A"}},null,null,null,{"$f":"IFERROR(\n  IF(R13=\"Big&Tall\",\n      VLOOKUP(S13, 'Data order'!$AC$92:$AD$101, 2, FALSE),\n      IF(R13=\"Boordmaat\",\n          VLOOKUP(S13, 'Data order'!$AC$102:$AD$116, 2, FALSE),\n          VLOOKUP(S13, 'Data order'!$AC$2:$AD$91, 2, FALSE)\n      )\n  ),\n\"\")","v":""},null,null,null,null,"EUR",null,null,null,{"$error":"#DIV/0!"},0,0,null,"","","","","","","","","","",null,null,null,null,null,null,null,null,null,null,null,null,null,null,null,null,null,"ZWO"]
[null,null,null,null,null,{"$f":"VLOOKUP(G14,'Data order'!Z:AA,2,0)","v":{"$error":"#N/A"}},null,null,null,null,null,null,null,null,{"$f":"VLOOKUP(N14,Tabel10[[korte omschrijving]:[MCC3_CODE]],2,0)","v":{"$error":"#N/A"}},{"$f":"VLOOKUP(N14,'Data order'!M:O,3,0)","v":{"$error":"#N/A"}},null,null,null,{"$f":"IFERROR(\n  IF(R14=\"Big&Tall\",\n      VLOOKUP(S14, 'Data order'!$AC$92:$AD$101, 2, FALSE),\n      IF(R14=\"Boordmaat\",\n          VLOOKUP(S14, 'Data order'!$AC$102:$AD$116, 2, FALSE),\n          VLOOKUP(S14, 'Data order'!$AC$2:$AD$91, 2, FALSE)\n      )\n  ),\n\"\")","v":""},null,null,null,null,"EUR",null,null,null,{"$error":"#DIV/0!"},0,0,null,"","","","","","","","","","",null,null,null,null,null,null,null,null,null,null,null,null,null,null,null,null,null,"ZWO"]
[null,null,null,null,null,{"$f":"VLOOKUP(G15,'Data order'!Z:AA,2,0)","v":{"$error":"#N/A"}},null,null,null,null,null,null,null,null,{"$f":"VLOOKUP(N15,Tabel10[[korte omschrijving]:[MCC3_CODE]],2,0)","v":{"$error":"#N/A"}},{"$f":"VLOOKUP(N15,'Data order'!M:O,3,0)","v":{"$error":"#N/A"}},null,null,null,{"$f":"IFERROR(\n  IF(R15=\"Big&Tall\",\n      VLOOKUP(S15, 'Data order'!$AC$92:$AD$101, 2, FALSE),\n      IF(R15=\"Boordmaat\",\n          VLOOKUP(S15, 'Data order'!$AC$102:$AD$116, 2, FALSE),\n          VLOOKUP(S15, 'Data order'!$AC$2:$AD$91, 2, FALSE)\n      )\n  ),\n\"\")","v":""},null,null,null,null,"EUR",null,null,null,{"$error":"#DIV/0!"},0,0,null,"","","","","","","","","","",null,null,null,null,null,null,null,null,null,null,null,null,null,null,null,null,null,"ZWO"]
[null,null,null,null,null,{"$f":"VLOOKUP(G16,'Data order'!Z:AA,2,0)","v":{"$error":"#N/A"}},null,null,null,null,null,null,null,null,{"$f":"VLOOKUP(N16,Tabel10[[korte omschrijving]:[MCC3_CODE]],2,0)","v":{"$error":"#N/A"}},{"$f":"VLOOKUP(N16,'Data order'!M:O,3,0)","v":{"$error":"#N/A"}},null,null,null,{"$f":"IFERROR(\n  IF(R16=\"Big&Tall\",\n      VLOOKUP(S16, 'Data order'!$AC$92:$AD$101, 2, FALSE),\n      IF(R16=\"Boordmaat\",\n          VLOOKUP(S16, 'Data order'!$AC$102:$AD$116, 2, FALSE),\n          VLOOKUP(S16, 'Data order'!$AC$2:$AD$91, 2, FALSE)\n      )\n  ),\n\"\")","v":""},null,null,null,null,"EUR",null,null,null,{"$error":"#DIV/0!"},0,0,null,"","","","","","","","","","",null,null,null,null,null,null,null,null,null,null,null,null,null,null,null,null,null,"ZWO"]
[null,null,null,null,null,{"$f":"VLOOKUP(G17,'Data order'!Z:AA,2,0)","v":{"$error":"#N/A"}},null,null,null,null,null,null,null,null,{"$f":"VLOOKUP(N17,Tabel10[[korte omschrijving]:[MCC3_CODE]],2,0)","v":{"$error":"#N/A"}},{"$f":"VLOOKUP(N17,'Data order'!M:O,3,0)","v":{"$error":"#N/A"}},null,null,null,{"$f":"IFERROR(\n  IF(R17=\"Big&Tall\",\n      VLOOKUP(S17, 'Data order'!$AC$92:$AD$101, 2, FALSE),\n      IF(R17=\"Boordmaat\",\n          VLOOKUP(S17, 'Data order'!$AC$102:$AD$116, 2, FALSE),\n          VLOOKUP(S17, 'Data order'!$AC$2:$AD$91, 2, FALSE)\n      )\n  ),\n\"\")","v":""},null,null,null,null,"EUR",null,null,null,{"$error":"#DIV/0!"},0,0,null,"","","","","","","","","","",null,null,null,null,null,null,null,null,null,null,null,null,null,null,null,null,null,"ZWO"]
[null,null,null,null,null,{"$f":"VLOOKUP(G18,'Data order'!Z:AA,2,0)","v":{"$error":"#N/A"}},null,null,null,null,null,null,null,null,{"$f":"VLOOKUP(N18,Tabel10[[korte omschrijving]:[MCC3_CODE]],2,0)","v":{"$error":"#N/A"}},{"$f":"VLOOKUP(N18,'Data order'!M:O,3,0)","v":{"$error":"#N/A"}},null,null,null,{"$f":"IFERROR(\n  IF(R18=\"Big&Tall\",\n      VLOOKUP(S18, 'Data order'!$AC$92:$AD$101, 2, FALSE),\n      IF(R18=\"Boordmaat\",\n          VLOOKUP(S18, 'Data order'!$AC$102:$AD$116, 2, FALSE),\n          VLOOKUP(S18, 'Data order'!$AC$2:$AD$91, 2, FALSE)\n      )\n  ),\n\"\")","v":""},null,{"$f":"SUM(U18:U23)","v":0},null,null,"EUR",null,null,null,{"$error":"#DIV/0!"},0,0,null,"","","","","","","","","","",null,null,null,null,null,null,null,null,null,null,null,null,null,null,null,null,null,"ZWO"]
[null,null,null,null,null,{"$f":"VLOOKUP(G19,'Data order'!Z:AA,2,0)","v":{"$error":"#N/A"}},null,null,null,null,null,null,null,null,{"$f":"VLOOKUP(N19,Tabel10[[korte omschrijving]:[MCC3_CODE]],2,0)","v":{"$error":"#N/A"}},{"$f":"VLOOKUP(N19,'Data order'!M:O,3,0)","v":{"$error":"#N/A"}},null,null,null,{"$f":"IFERROR(\n  IF(R19=\"Big&Tall\",\n      VLOOKUP(S19, 'Data order'!$AC$92:$AD$101, 2, FALSE),\n      IF(R19=\"Boordmaat\",\n          VLOOKUP(S19, 'Data order'!$AC$102:$AD$116, 2, FALSE),\n          VLOOKUP(S19, 'Data order'!$AC$2:$AD$91, 2, FALSE)\n      )\n  ),\n\"\")","v":""},null,null,null,null,"EUR",null,null,null,{"$error":"#DIV/0!"},0,0,null,"","","","","","","","","","",null,null,null,null,null,null,null,null,null,null,null,null,null,null,null,null,null,"ZWO"]
[null,null,null,null,null,{"$f":"VLOOKUP(G20,'Data order'!Z:AA,2,0)","v":{"$error":"#N/A"}},null,null,null,null,null,null,null,null,{"$f":"VLOOKUP(N20,Tabel10[[korte omschrijving]:[MCC3_CODE]],2,0)","v":{"$error":"#N/A"}},{"$f":"VLOOKUP(N20,'Data order'!M:O,3,0)","v":{"$error":"#N/A"}},null,null,null,{"$f":"IFERROR(\n  IF(R20=\"Big&Tall\",\n      VLOOKUP(S20, 'Data order'!$AC$92:$AD$101, 2, FALSE),\n      IF(R20=\"Boordmaat\",\n          VLOOKUP(S20, 'Data order'!$AC$102:$AD$116, 2, FALSE),\n          VLOOKUP(S20, 'Data order'!$AC$2:$AD$91, 2, FALSE)\n      )\n  ),\n\"\")","v":""},null,null,null,null,"EUR",null,null,null,{"$error":"#DIV/0!"},0,0,null,"","","","","","","","","","",null,null,null,null,null,null,null,null,null,null,null,null,null,null,null,null,null,"ZWO"]
[null,null,null,null,null,{"$f":"VLOOKUP(G21,'Data order'!Z:AA,2,0)","v":{"$error":"#N/A"}},null,null,null,null,null,null,null,null,{"$f":"VLOOKUP(N21,Tabel10[[korte omschrijving]:[MCC3_CODE]],2,0)","v":{"$error":"#N/A"}},{"$f":"VLOOKUP(N21,'Data order'!M:O,3,0)","v":{"$error":"#N/A"}},null,null,null,{"$f":"IFERROR(\n  IF(R21=\"Big&Tall\",\n      VLOOKUP(S21, 'Data order'!$AC$92:$AD$101, 2, FALSE),\n      IF(R21=\"Boordmaat\",\n          VLOOKUP(S21, 'Data order'!$AC$102:$AD$116, 2, FALSE),\n          VLOOKUP(S21, 'Data order'!$AC$2:$AD$91, 2, FALSE)\n      )\n  ),\n\"\")","v":""},null,null,null,null,"EUR",null,null,null,{"$error":"#DIV/0!"},0,0,null,"","","","","","","","","","",null,null,null,null,null,null,null,null,null,null,null,null,null,null,null,null,null,"ZWO"]
[null,null,null,null,null,{"$f":"VLOOKUP(G22,'Data order'!Z:AA,2,0)","v":{"$error":"#N/A"}},null,null,null,null,null,null,null,null,{"$f":"VLOOKUP(N22,Tabel10[[korte omschrijving]:[MCC3_CODE]],2,0)","v":{"$error":"#N/A"}},{"$f":"VLOOKUP(N22,'Data order'!M:O,3,0)","v":{"$error":"#N/A"}},null,null,null,{"$f":"IFERROR(\n  IF(R22=\"Big&Tall\",\n      VLOOKUP(S22, 'Data order'!$AC$92:$AD$101, 2, FALSE),\n      IF(R22=\"Boordmaat\",\n          VLOOKUP(S22, 'Data order'!$AC$102:$AD$116, 2, FALSE),\n          VLOOKUP(S22, 'Data order'!$AC$2:$AD$91, 2, FALSE)\n      )\n  ),\n\"\")","v":""},null,null,null,null,"EUR",null,null,null,{"$error":"#DIV/0!"},0,0,null,"","","","","","","","","","",null,null,null,null,null,null,null,null,null,null,null,null,null,null,null,null,null,"ZWO"]
[null,null,null,null,null,{"$f":"VLOOKUP(G23,'Data order'!Z:AA,2,0)","v":{"$error":"#N/A"}},null,null,null,null,null,null,null,null,{"$f":"VLOOKUP(N23,Tabel10[[korte omschrijving]:[MCC3_CODE]],2,0)","v":{"$error":"#N/A"}},{"$f":"VLOOKUP(N23,'Data order'!M:O,3,0)","v":{"$error":"#N/A"}},null,null,null,{"$f":"IFERROR(\n  IF(R23=\"Big&Tall\",\n      VLOOKUP(S23, 'Data order'!$AC$92:$AD$101, 2, FALSE),\n      IF(R23=\"Boordmaat\",\n          VLOOKUP(S23, 'Data order'!$AC$102:$AD$116, 2, FALSE),\n          VLOOKUP(S23, 'Data order'!$AC$2:$AD$91, 2, FALSE)\n      )\n  ),\n\"\")","v":""},null,null,null,null,"EUR",null,null,null,{"$error":"#DIV/0!"},0,0,null,"","","","","","","","","","",null,null,null,null,null,null,null,null,null,null,null,null,null,null,null,null,null,"ZWO"]
[null,null,null,null,null,{"$f":"VLOOKUP(G24,'Data order'!Z:AA,2,0)","v":{"$error":"#N/A"}},null,null,null,null,null,null,null,null,{"$f":"VLOOKUP(N24,Tabel10[[korte omschrijving]:[MCC3_CODE]],2,0)","v":{"$error":"#N/A"}},{"$f":"VLOOKUP(N24,'Data order'!M:O,3,0)","v":{"$error":"#N/A"}},null,null,null,{"$f":"IFERROR(\n  IF(R24=\"Big&Tall\",\n      VLOOKUP(S24, 'Data order'!$AC$92:$AD$101, 2, FALSE),\n      IF(R24=\"Boordmaat\",\n          VLOOKUP(S24, 'Data order'!$AC$102:$AD$116, 2, FALSE),\n          VLOOKUP(S24, 'Data order'!$AC$2:$AD$91, 2, FALSE)\n      )\n  ),\n\"\")","v":""},null,{"$f":"SUM(U24:U29)","v":0},null,null,"EUR",null,null,null,{"$error":"#DIV/0!"},0,0,null,"","","","","","","","","","",null,null,null,null,null,null,null,null,null,null,null,null,null,null,null,null,null,"ZWO"]
[null,null,null,null,null,{"$f":"VLOOKUP(G25,'Data order'!Z:AA,2,0)","v":{"$error":"#N/A"}},null,null,null,null,null,null,null,null,{"$f":"VLOOKUP(N25,Tabel10[[korte omschrijving]:[MCC3_CODE]],2,0)","v":{"$error":"#N/A"}},{"$f":"VLOOKUP(N25,'Data order'!M:O,3,0)","v":{"$error":"#N/A"}},null,null,null,{"$f":"IFERROR(\n  IF(R25=\"Big&Tall\",\n      VLOOKUP(S25, 'Data order'!$AC$92:$AD$101, 2, FALSE),\n      IF(R25=\"Boordmaat\",\n          VLOOKUP(S25, 'Data order'!$AC$102:$AD$116, 2, FALSE),\n          VLOOKUP(S25, 'Data order'!$AC$2:$AD$91, 2, FALSE)\n      )\n  ),\n\"\")","v":""},null,null,null,null,"EUR",null,null,null,{"$error":"#DIV/0!"},0,0,null,"","","","","","","","","","",null,null,null,null,null,null,null,null,null,null,null,null,null,null,null,null,null,"ZWO"]
[null,null,null,null,null,{"$f":"VLOOKUP(G26,'Data order'!Z:AA,2,0)","v":{"$error":"#N/A"}},null,null,null,null,null,null,null,null,{"$f":"VLOOKUP(N26,Tabel10[[korte omschrijving]:[MCC3_CODE]],2,0)","v":{"$error":"#N/A"}},{"$f":"VLOOKUP(N26,'Data order'!M:O,3,0)","v":{"$error":"#N/A"}},null,null,null,{"$f":"IFERROR(\n  IF(R26=\"Big&Tall\",\n      VLOOKUP(S26, 'Data order'!$AC$92:$AD$101, 2, FALSE),\n      IF(R26=\"Boordmaat\",\n          VLOOKUP(S26, 'Data order'!$AC$102:$AD$116, 2, FALSE),\n          VLOOKUP(S26, 'Data order'!$AC$2:$AD$91, 2, FALSE)\n      )\n  ),\n\"\")","v":""},null,null,null,null,"EUR",null,null,null,{"$error":"#DIV/0!"},0,0,null,"","","","","","","","","","",null,null,null,null,null,null,null,null,null,null,null,null,null,null,null,null,null,"ZWO"]
[null,null,null,null,null,{"$f":"VLOOKUP(G27,'Data order'!Z:AA,2,0)","v":{"$error":"#N/A"}},null,null,null,null,null,null,null,null,{"$f":"VLOOKUP(N27,Tabel10[[korte omschrijving]:[MCC3_CODE]],2,0)","v":{"$error":"#N/A"}},{"$f":"VLOOKUP(N27,'Data order'!M:O,3,0)","v":{"$error":"#N/A"}},null,null,null,{"$f":"IFERROR(\n  IF(R27=\"Big&Tall\",\n      VLOOKUP(S27, 'Data order'!$AC$92:$AD$101, 2, FALSE),\n      IF(R27=\"Boordmaat\",\n          VLOOKUP(S27, 'Data order'!$AC$102:$AD$116, 2, FALSE),\n          VLOOKUP(S27, 'Data order'!$AC$2:$AD$91, 2, FALSE)\n      )\n  ),\n\"\")","v":""},null,null,null,null,"EUR",null,null,null,{"$error":"#DIV/0!"},0,0,null,"","","","","","","","","","",null,null,null,null,null,null,null,null,null,null,null,null,null,null,null,null,null,"ZWO"]
[null,null,null,null,null,{"$f":"VLOOKUP(G28,'Data order'!Z:AA,2,0)","v":{"$error":"#N/A"}},null,null,null,null,null,null,null,null,{"$f":"VLOOKUP(N28,Tabel10[[korte omschrijving]:[MCC3_CODE]],2,0)","v":{"$error":"#N/A"}},{"$f":"VLOOKUP(N28,'Data order'!M:O,3,0)","v":{"$error":"#N/A"}},null,null,null,{"$f":"IFERROR(\n  IF(R28=\"Big&Tall\",\n      VLOOKUP(S28, 'Data order'!$AC$92:$AD$101, 2, FALSE),\n      IF(R28=\"Boordmaat\",\n          VLOOKUP(S28, 'Data order'!$AC$102:$AD$116, 2, FALSE),\n          VLOOKUP(S28, 'Data order'!$AC$2:$AD$91, 2, FALSE)\n      )\n  ),\n\"\")","v":""},null,null,null,null,"EUR",null,null,null,{"$error":"#DIV/0!"},0,0,null,"","","","","","","","","","",null,null,null,null,null,null,null,null,null,null,null,null,null,null,null,null,null,"ZWO"]
[null,null,null,null,null,{"$f":"VLOOKUP(G29,'Data order'!Z:AA,2,0)","v":{"$error":"#N/A"}},null,null,null,null,null,null,null,null,{"$f":"VLOOKUP(N29,Tabel10[[korte omschrijving]:[MCC3_CODE]],2,0)","v":{"$error":"#N/A"}},{"$f":"VLOOKUP(N29,'Data order'!M:O,3,0)","v":{"$error":"#N/A"}},null,null,null,{"$f":"IFERROR(\n  IF(R29=\"Big&Tall\",\n      VLOOKUP(S29, 'Data order'!$AC$92:$AD$101, 2, FALSE),\n      IF(R29=\"Boordmaat\",\n          VLOOKUP(S29, 'Data order'!$AC$102:$AD$116, 2, FALSE),\n          VLOOKUP(S29, 'Data order'!$AC$2:$AD$91, 2, FALSE)\n      )\n  ),\n\"\")","v":""},null,null,null,null,"EUR",null,null,null,{"$error":"#DIV/0!"},0,0,null,"","","","","","","","","","",null,null,null,null,null,null,null,null,null,null,null,null,null,null,null,null,null,"ZWO"]
[null,null,null,null,null,{"$f":"VLOOKUP(G30,'Data order'!Z:AA,2,0)","v":{"$error":"#N/A"}},null,null,null,null,null,null,null,null,{"$f":"VLOOKUP(N30,Tabel10[[korte omschrijving]:[MCC3_CODE]],2,0)","v":{"$error":"#N/A"}},{"$f":"VLOOKUP(N30,'Data order'!M:O,3,0)","v":{"$error":"#N/A"}},null,null,null,{"$f":"IFERROR(\n  IF(R30=\"Big&Tall\",\n      VLOOKUP(S30, 'Data order'!$AC$92:$AD$101, 2, FALSE),\n      IF(R30=\"Boordmaat\",\n          VLOOKUP(S30, 'Data order'!$AC$102:$AD$116, 2, FALSE),\n          VLOOKUP(S30, 'Data order'!$AC$2:$AD$91, 2, FALSE)\n      )\n  ),\n\"\")","v":""},null,{"$f":"SUM(U30:U35)","v":0},null,null,"EUR",null,null,null,{"$error":"#DIV/0!"},0,0,null,"","","","","","","","","","",null,null,null,null,null,null,null,null,null,null,null,null,null,null,null,null,null,"ZWO"]
[null,null,null,null,null,{"$f":"VLOOKUP(G31,'Data order'!Z:AA,2,0)","v":{"$error":"#N/A"}},null,null,null,null,null,null,null,null,{"$f":"VLOOKUP(N31,Tabel10[[korte omschrijving]:[MCC3_CODE]],2,0)","v":{"$error":"#N/A"}},{"$f":"VLOOKUP(N31,'Data order'!M:O,3,0)","v":{"$error":"#N/A"}},null,null,null,{"$f":"IFERROR(\n  IF(R31=\"Big&Tall\",\n      VLOOKUP(S31, 'Data order'!$AC$92:$AD$101, 2, FALSE),\n      IF(R31=\"Boordmaat\",\n          VLOOKUP(S31, 'Data order'!$AC$102:$AD$116, 2, FALSE),\n          VLOOKUP(S31, 'Data order'!$AC$2:$AD$91, 2, FALSE)\n      )\n  ),\n\"\")","v":""},null,null,null,null,"EUR",null,null,null,{"$error":"#DIV/0!"},0,0,null,"","","","","","","","","","",null,null,null,null,null,null,null,null,null,null,null,null,null,null,null,null,null,"ZWO"]
[null,null,null,null,null,{"$f":"VLOOKUP(G32,'Data order'!Z:AA,2,0)","v":{"$error":"#N/A"}},null,null,null,null,null,null,null,null,{"$f":"VLOOKUP(N32,Tabel10[[korte omschrijving]:[MCC3_CODE]],2,0)","v":{"$error":"#N/A"}},{"$f":"VLOOKUP(N32,'Data order'!M:O,3,0)","v":{"$error":"#N/A"}},null,null,null,{"$f":"IFERROR(\n  IF(R32=\"Big&Tall\",\n      VLOOKUP(S32, 'Data order'!$AC$92:$AD$101, 2, FALSE),\n      IF(R32=\"Boordmaat\",\n          VLOOKUP(S32, 'Data order'!$AC$102:$AD$116, 2, FALSE),\n          VLOOKUP(S32, 'Data order'!$AC$2:$AD$91, 2, FALSE)\n      )\n  ),\n\"\")","v":""},null,null,null,null,"EUR",null,null,null,{"$error":"#DIV/0!"},0,0,null,"","","","","","","","","","",null,null,null,null,null,null,null,null,null,null,null,null,null,null,null,null,null,"ZWO"]
[null,null,null,null,null,{"$f":"VLOOKUP(G33,'Data order'!Z:AA,2,0)","v":{"$error":"#N/A"}},null,null,null,null,null,null,null,null,{"$f":"VLOOKUP(N33,Tabel10[[korte omschrijving]:[MCC3_CODE]],2,0)","v":{"$error":"#N/A"}},{"$f":"VLOOKUP(N33,'Data order'!M:O,3,0)","v":{"$error":"#N/A"}},null,null,null,{"$f":"IFERROR(\n  IF(R33=\"Big&Tall\",\n      VLOOKUP(S33, 'Data order'!$AC$92:$AD$101, 2, FALSE),\n      IF(R33=\"Boordmaat\",\n          VLOOKUP(S33, 'Data order'!$AC$102:$AD$116, 2, FALSE),\n          VLOOKUP(S33, 'Data order'!$AC$2:$AD$91, 2, FALSE)\n      )\n  ),\n\"\")","v":""},null,null,null,null,"EUR",null,null,null,{"$error":"#DIV/0!"},0,0,null,"","","","","","","","","","",null,null,null,null,null,null,null,null,null,null,null,null,null,null,null,null,null,"ZWO"]
[null,null,null,null,null,{"$f":"VLOOKUP(G34,'Data order'!Z:AA,2,0)","v":{"$error":"#N/A"}},null,null,null,null,null,null,null,null,{"$f":"VLOOKUP(N34,Tabel10[[korte omschrijving]:[MCC3_CODE]],2,0)","v":{"$error":"#N/A"}},{"$f":"VLOOKUP(N34,'Data order'!M:O,3,0)","v":{"$error":"#N/A"}},null,null,null,{"$f":"IFERROR(\n  IF(R34=\"Big&Tall\",\n      VLOOKUP(S34, 'Data order'!$AC$92:$AD$101, 2, FALSE),\n      IF(R34=\"Boordmaat\",\n          VLOOKUP(S34, 'Data order'!$AC$102:$AD$116, 2, FALSE),\n          VLOOKUP(S34, 'Data order'!$AC$2:$AD$91, 2, FALSE)\n      )\n  ),\n\"\")","v":""},null,null,null,null,"EUR",null,null,null,{"$error":"#DIV/0!"},0,0,null,"","","","","","","","","","",null,null,null,null,null,null,null,null,null,null,null,null,null,null,null,null,null,"ZWO"]
[null,null,null,null,null,{"$f":"VLOOKUP(G35,'Data order'!Z:AA,2,0)","v":{"$error":"#N/A"}},null,null,null,null,null,null,null,null,{"$f":"VLOOKUP(N35,Tabel10[[korte omschrijving]:[MCC3_CODE]],2,0)","v":{"$error":"#N/A"}},{"$f":"VLOOKUP(N35,'Data order'!M:O,3,0)","v":{"$error":"#N/A"}},null,null,null,{"$f":"IFERROR(\n  IF(R35=\"Big&Tall\",\n      VLOOKUP(S35, 'Data order'!$AC$92:$AD$101, 2, FALSE),\n      IF(R35=\"Boordmaat\",\n          VLOOKUP(S35, 'Data order'!$AC$102:$AD$116, 2, FALSE),\n          VLOOKUP(S35, 'Data order'!$AC$2:$AD$91, 2, FALSE)\n      )\n  ),\n\"\")","v":""},null,null,null,null,"EUR",null,null,null,{"$error":"#DIV/0!"},0,0,null,"","","","","","","","","","",null,null,null,null,null,null,null,null,null,null,null,null,null,null,null,null,null,"ZWO"]
[null,null,null,null,null,{"$f":"VLOOKUP(G36,'Data order'!Z:AA,2,0)","v":{"$error":"#N/A"}},null,null,null,null,null,null,null,null,{"$f":"VLOOKUP(N36,Tabel10[[korte omschrijving]:[MCC3_CODE]],2,0)","v":{"$error":"#N/A"}},{"$f":"VLOOKUP(N36,'Data order'!M:O,3,0)","v":{"$error":"#N/A"}},null,null,null,{"$f":"IFERROR(\n  IF(R36=\"Big&Tall\",\n      VLOOKUP(S36, 'Data order'!$AC$92:$AD$101, 2, FALSE),\n      IF(R36=\"Boordmaat\",\n          VLOOKUP(S36, 'Data order'!$AC$102:$AD$116, 2, FALSE),\n          VLOOKUP(S36, 'Data order'!$AC$2:$AD$91, 2, FALSE)\n      )\n  ),\n\"\")","v":""},null,{"$f":"SUM(U36:U41)","v":0},null,null,"EUR",null,null,null,{"$error":"#DIV/0!"},0,0,null,"","","","","","","","","","",null,null,null,null,null,null,null,null,null,null,null,null,null,null,null,null,null,"ZWO"]
[null,null,null,null,null,{"$f":"VLOOKUP(G37,'Data order'!Z:AA,2,0)","v":{"$error":"#N/A"}},null,null,null,null,null,null,null,null,{"$f":"VLOOKUP(N37,Tabel10[[korte omschrijving]:[MCC3_CODE]],2,0)","v":{"$error":"#N/A"}},{"$f":"VLOOKUP(N37,'Data order'!M:O,3,0)","v":{"$error":"#N/A"}},null,null,null,{"$f":"IFERROR(\n  IF(R37=\"Big&Tall\",\n      VLOOKUP(S37, 'Data order'!$AC$92:$AD$101, 2, FALSE),\n      IF(R37=\"Boordmaat\",\n          VLOOKUP(S37, 'Data order'!$AC$102:$AD$116, 2, FALSE),\n          VLOOKUP(S37, 'Data order'!$AC$2:$AD$91, 2, FALSE)\n      )\n  ),\n\"\")","v":""},null,null,null,null,"EUR",null,null,null,{"$error":"#DIV/0!"},0,0,null,"","","","","","","","","","",null,null,null,null,null,null,null,null,null,null,null,null,null,null,null,null,null,"ZWO"]
[null,null,null,null,null,{"$f":"VLOOKUP(G38,'Data order'!Z:AA,2,0)","v":{"$error":"#N/A"}},null,null,null,null,null,null,null,null,{"$f":"VLOOKUP(N38,Tabel10[[korte omschrijving]:[MCC3_CODE]],2,0)","v":{"$error":"#N/A"}},{"$f":"VLOOKUP(N38,'Data order'!M:O,3,0)","v":{"$error":"#N/A"}},null,null,null,{"$f":"IFERROR(\n  IF(R38=\"Big&Tall\",\n      VLOOKUP(S38, 'Data order'!$AC$92:$AD$101, 2, FALSE),\n      IF(R38=\"Boordmaat\",\n          VLOOKUP(S38, 'Data order'!$AC$102:$AD$116, 2, FALSE),\n          VLOOKUP(S38, 'Data order'!$AC$2:$AD$91, 2, FALSE)\n      )\n  ),\n\"\")","v":""},null,null,null,null,"EUR",null,null,null,{"$error":"#DIV/0!"},0,0,null,"","","","","","","","","","",null,null,null,null,null,null,null,null,null,null,null,null,null,null,null,null,null,"ZWO"]
[null,null,null,null,null,{"$f":"VLOOKUP(G39,'Data order'!Z:AA,2,0)","v":{"$error":"#N/A"}},null,null,null,null,null,null,null,null,{"$f":"VLOOKUP(N39,Tabel10[[korte omschrijving]:[MCC3_CODE]],2,0)","v":{"$error":"#N/A"}},{"$f":"VLOOKUP(N39,'Data order'!M:O,3,0)","v":{"$error":"#N/A"}},null,null,null,{"$f":"IFERROR(\n  IF(R39=\"Big&Tall\",\n      VLOOKUP(S39, 'Data order'!$AC$92:$AD$101, 2, FALSE),\n      IF(R39=\"Boordmaat\",\n          VLOOKUP(S39, 'Data order'!$AC$102:$AD$116, 2, FALSE),\n          VLOOKUP(S39, 'Data order'!$AC$2:$AD$91, 2, FALSE)\n      )\n  ),\n\"\")","v":""},null,null,null,null,"EUR",null,null,null,{"$error":"#DIV/0!"},0,0,null,"","","","","","","","","","",null,null,null,null,null,null,null,null,null,null,null,null,null,null,null,null,null,"ZWO"]
[null,null,null,null,null,{"$f":"VLOOKUP(G40,'Data order'!Z:AA,2,0)","v":{"$error":"#N/A"}},null,null,null,null,null,null,null,null,{"$f":"VLOOKUP(N40,Tabel10[[korte omschrijving]:[MCC3_CODE]],2,0)","v":{"$error":"#N/A"}},{"$f":"VLOOKUP(N40,'Data order'!M:O,3,0)","v":{"$error":"#N/A"}},null,null,null,{"$f":"IFERROR(\n  IF(R40=\"Big&Tall\",\n      VLOOKUP(S40, 'Data order'!$AC$92:$AD$101, 2, FALSE),\n      IF(R40=\"Boordmaat\",\n          VLOOKUP(S40, 'Data order'!$AC$102:$AD$116, 2, FALSE),\n          VLOOKUP(S40, 'Data order'!$AC$2:$AD$91, 2, FALSE)\n      )\n  ),\n\"\")","v":""},null,null,null,null,"EUR",null,null,null,{"$error":"#DIV/0!"},0,0,null,"","","","","","","","","","",null,null,null,null,null,null,null,null,null,null,null,null,null,null,null,null,null,"ZWO"]
[null,null,null,null,null,{"$f":"VLOOKUP(G41,'Data order'!Z:AA,2,0)","v":{"$error":"#N/A"}},null,null,null,null,null,null,null,null,{"$f":"VLOOKUP(N41,Tabel10[[korte omschrijving]:[MCC3_CODE]],2,0)","v":{"$error":"#N/A"}},{"$f":"VLOOKUP(N41,'Data order'!M:O,3,0)","v":{"$error":"#N/A"}},null,null,null,{"$f":"IFERROR(\n  IF(R41=\"Big&Tall\",\n      VLOOKUP(S41, 'Data order'!$AC$92:$AD$101, 2, FALSE),\n      IF(R41=\"Boordmaat\",\n          VLOOKUP(S41, 'Data order'!$AC$102:$AD$116, 2, FALSE),\n          VLOOKUP(S41, 'Data order'!$AC$2:$AD$91, 2, FALSE)\n      )\n  ),\n\"\")","v":""},null,null,null,null,"EUR",null,null,null,{"$error":"#DIV/0!"},0,0,null,"","","","","","","","","","",null,null,null,null,null,null,null,null,null,null,null,null,null,null,null,null,null,"ZWO"]
[null,null,null,null,null,{"$f":"VLOOKUP(G42,'Data order'!Z:AA,2,0)","v":{"$error":"#N/A"}},null,null,null,null,null,null,null,null,{"$f":"VLOOKUP(N42,Tabel10[[korte omschrijving]:[MCC3_CODE]],2,0)","v":{"$error":"#N/A"}},{"$f":"VLOOKUP(N42,'Data order'!M:O,3,0)","v":{"$error":"#N/A"}},null,null,null,{"$f":"IFERROR(\n  IF(R42=\"Big&Tall\",\n      VLOOKUP(S42, 'Data order'!$AC$92:$AD$101, 2, FALSE),\n      IF(R42=\"Boordmaat\",\n          VLOOKUP(S42, 'Data order'!$AC$102:$AD$116, 2, FALSE),\n          VLOOKUP(S42, 'Data order'!$AC$2:$AD$91, 2, FALSE)\n      )\n  ),\n\"\")","v":""},null,{"$f":"SUM(U42:U47)","v":0},null,null,"EUR",null,null,null,{"$error":"#DIV/0!"},0,0,null,"","","","","","","","","","",null,null,null,null,null,null,null,null,null,null,null,null,null,null,null,null,null,"ZWO"]
[null,null,null,null,null,{"$f":"VLOOKUP(G43,'Data order'!Z:AA,2,0)","v":{"$error":"#N/A"}},null,null,null,null,null,null,null,null,{"$f":"VLOOKUP(N43,Tabel10[[korte omschrijving]:[MCC3_CODE]],2,0)","v":{"$error":"#N/A"}},{"$f":"VLOOKUP(N43,'Data order'!M:O,3,0)","v":{"$error":"#N/A"}},null,null,null,{"$f":"IFERROR(\n  IF(R43=\"Big&Tall\",\n      VLOOKUP(S43, 'Data order'!$AC$92:$AD$101, 2, FALSE),\n      IF(R43=\"Boordmaat\",\n          VLOOKUP(S43, 'Data order'!$AC$102:$AD$116, 2, FALSE),\n          VLOOKUP(S43, 'Data order'!$AC$2:$AD$91, 2, FALSE)\n      )\n  ),\n\"\")","v":""},null,null,null,null,"EUR",null,null,null,{"$error":"#DIV/0!"},0,0,null,"","","","","","","","","","",null,null,null,null,null,null,null,null,null,null,null,null,null,null,null,null,null,"ZWO"]
[null,null,null,null,null,{"$f":"VLOOKUP(G44,'Data order'!Z:AA,2,0)","v":{"$error":"#N/A"}},null,null,null,null,null,null,null,null,{"$f":"VLOOKUP(N44,Tabel10[[korte omschrijving]:[MCC3_CODE]],2,0)","v":{"$error":"#N/A"}},{"$f":"VLOOKUP(N44,'Data order'!M:O,3,0)","v":{"$error":"#N/A"}},null,null,null,{"$f":"IFERROR(\n  IF(R44=\"Big&Tall\",\n      VLOOKUP(S44, 'Data order'!$AC$92:$AD$101, 2, FALSE),\n      IF(R44=\"Boordmaat\",\n          VLOOKUP(S44, 'Data order'!$AC$102:$AD$116, 2, FALSE),\n          VLOOKUP(S44, 'Data order'!$AC$2:$AD$91, 2, FALSE)\n      )\n  ),\n\"\")","v":""},null,null,null,null,"EUR",null,null,null,{"$error":"#DIV/0!"},0,0,null,"","","","","","","","","","",null,null,null,null,null,null,null,null,null,null,null,null,null,null,null,null,null,"ZWO"]
[null,null,null,null,null,{"$f":"VLOOKUP(G45,'Data order'!Z:AA,2,0)","v":{"$error":"#N/A"}},null,null,null,null,null,null,null,null,{"$f":"VLOOKUP(N45,Tabel10[[korte omschrijving]:[MCC3_CODE]],2,0)","v":{"$error":"#N/A"}},{"$f":"VLOOKUP(N45,'Data order'!M:O,3,0)","v":{"$error":"#N/A"}},null,null,null,{"$f":"IFERROR(\n  IF(R45=\"Big&Tall\",\n      VLOOKUP(S45, 'Data order'!$AC$92:$AD$101, 2, FALSE),\n      IF(R45=\"Boordmaat\",\n          VLOOKUP(S45, 'Data order'!$AC$102:$AD$116, 2, FALSE),\n          VLOOKUP(S45, 'Data order'!$AC$2:$AD$91, 2, FALSE)\n      )\n  ),\n\"\")","v":""},null,null,null,null,"EUR",null,null,null,{"$error":"#DIV/0!"},0,0,null,"","","","","","","","","","",null,null,null,null,null,null,null,null,null,null,null,null,null,null,null,null,null,"ZWO"]
[null,null,null,null,null,{"$f":"VLOOKUP(G46,'Data order'!Z:AA,2,0)","v":{"$error":"#N/A"}},null,null,null,null,null,null,null,null,{"$f":"VLOOKUP(N46,Tabel10[[korte omschrijving]:[MCC3_CODE]],2,0)","v":{"$error":"#N/A"}},{"$f":"VLOOKUP(N46,'Data order'!M:O,3,0)","v":{"$error":"#N/A"}},null,null,null,{"$f":"IFERROR(\n  IF(R46=\"Big&Tall\",\n      VLOOKUP(S46, 'Data order'!$AC$92:$AD$101, 2, FALSE),\n      IF(R46=\"Boordmaat\",\n          VLOOKUP(S46, 'Data order'!$AC$102:$AD$116, 2, FALSE),\n          VLOOKUP(S46, 'Data order'!$AC$2:$AD$91, 2, FALSE)\n      )\n  ),\n\"\")","v":""},null,null,null,null,"EUR",null,null,null,{"$error":"#DIV/0!"},0,0,null,"","","","","","","","","","",null,null,null,null,null,null,null,null,null,null,null,null,null,null,null,null,null,"ZWO"]
[null,null,null,null,null,{"$f":"VLOOKUP(G47,'Data order'!Z:AA,2,0)","v":{"$error":"#N/A"}},null,null,null,null,null,null,null,null,{"$f":"VLOOKUP(N47,Tabel10[[korte omschrijving]:[MCC3_CODE]],2,0)","v":{"$error":"#N/A"}},{"$f":"VLOOKUP(N47,'Data order'!M:O,3,0)","v":{"$error":"#N/A"}},null,null,null,{"$f":"IFERROR(\n  IF(R47=\"Big&Tall\",\n      VLOOKUP(S47, 'Data order'!$AC$92:$AD$101, 2, FALSE),\n      IF(R47=\"Boordmaat\",\n          VLOOKUP(S47, 'Data order'!$AC$102:$AD$116, 2, FALSE),\n          VLOOKUP(S47, 'Data order'!$AC$2:$AD$91, 2, FALSE)\n      )\n  ),\n\"\")","v":""},null,null,null,null,"EUR",null,null,null,{"$error":"#DIV/0!"},0,0,null,"","","","","","","","","","",null,null,null,null,null,null,null,null,null,null,null,null,null,null,null,null,null,"ZWO"]
[null,null,null,null,null,{"$f":"VLOOKUP(G48,'Data order'!Z:AA,2,0)","v":{"$error":"#N/A"}},null,null,null,null,null,null,null,null,{"$f":"VLOOKUP(N48,Tabel10[[korte omschrijving]:[MCC3_CODE]],2,0)","v":{"$error":"#N/A"}},{"$f":"VLOOKUP(N48,'Data order'!M:O,3,0)","v":{"$error":"#N/A"}},null,null,null,{"$f":"IFERROR(\n  IF(R48=\"Big&Tall\",\n      VLOOKUP(S48, 'Data order'!$AC$92:$AD$101, 2, FALSE),\n      IF(R48=\"Boordmaat\",\n          VLOOKUP(S48, 'Data order'!$AC$102:$AD$116, 2, FALSE),\n          VLOOKUP(S48, 'Data order'!$AC$2:$AD$91, 2, FALSE)\n      )\n  ),\n\"\")","v":""},null,{"$f":"SUM(U48:U53)","v":0},null,null,"EUR",null,null,null,{"$error":"#DIV/0!"},0,0,null,"","","","","","","","","","",null,null,null,null,null,null,null,null,null,null,null,null,null,null,null,null,null,"ZWO"]
[null,null,null,null,null,{"$f":"VLOOKUP(G49,'Data order'!Z:AA,2,0)","v":{"$error":"#N/A"}},null,null,null,null,null,null,null,null,{"$f":"VLOOKUP(N49,Tabel10[[korte omschrijving]:[MCC3_CODE]],2,0)","v":{"$error":"#N/A"}},{"$f":"VLOOKUP(N49,'Data order'!M:O,3,0)","v":{"$error":"#N/A"}},null,null,null,{"$f":"IFERROR(\n  IF(R49=\"Big&Tall\",\n      VLOOKUP(S49, 'Data order'!$AC$92:$AD$101, 2, FALSE),\n      IF(R49=\"Boordmaat\",\n          VLOOKUP(S49, 'Data order'!$AC$102:$AD$116, 2, FALSE),\n          VLOOKUP(S49, 'Data order'!$AC$2:$AD$91, 2, FALSE)\n      )\n  ),\n\"\")","v":""},null,null,null,null,"EUR",null,null,null,{"$error":"#DIV/0!"},0,0,null,"","","","","","","","","","",null,null,null,null,null,null,null,null,null,null,null,null,null,null,null,null,null,"ZWO"]
[null,null,null,null,null,{"$f":"VLOOKUP(G50,'Data order'!Z:AA,2,0)","v":{"$error":"#N/A"}},null,null,null,null,null,null,null,null,{"$f":"VLOOKUP(N50,Tabel10[[korte omschrijving]:[MCC3_CODE]],2,0)","v":{"$error":"#N/A"}},{"$f":"VLOOKUP(N50,'Data order'!M:O,3,0)","v":{"$error":"#N/A"}},null,null,null,{"$f":"IFERROR(\n  IF(R50=\"Big&Tall\",\n      VLOOKUP(S50, 'Data order'!$AC$92:$AD$101, 2, FALSE),\n      IF(R50=\"Boordmaat\",\n          VLOOKUP(S50, 'Data order'!$AC$102:$AD$116, 2, FALSE),\n          VLOOKUP(S50, 'Data order'!$AC$2:$AD$91, 2, FALSE)\n      )\n  ),\n\"\")","v":""},null,null,null,null,"EUR",null,null,null,{"$error":"#DIV/0!"},0,0,null,"","","","","","","","","","",null,null,null,null,null,null,null,null,null,null,null,null,null,null,null,null,null,"ZWO"]
[null,null,null,null,null,{"$f":"VLOOKUP(G51,'Data order'!Z:AA,2,0)","v":{"$error":"#N/A"}},null,null,null,null,null,null,null,null,{"$f":"VLOOKUP(N51,Tabel10[[korte omschrijving]:[MCC3_CODE]],2,0)","v":{"$error":"#N/A"}},{"$f":"VLOOKUP(N51,'Data order'!M:O,3,0)","v":{"$error":"#N/A"}},null,null,null,{"$f":"IFERROR(\n  IF(R51=\"Big&Tall\",\n      VLOOKUP(S51, 'Data order'!$AC$92:$AD$101, 2, FALSE),\n      IF(R51=\"Boordmaat\",\n          VLOOKUP(S51, 'Data order'!$AC$102:$AD$116, 2, FALSE),\n          VLOOKUP(S51, 'Data order'!$AC$2:$AD$91, 2, FALSE)\n      )\n  ),\n\"\")","v":""},null,null,null,null,"EUR",null,null,null,{"$error":"#DIV/0!"},0,0,null,"","","","","","","","","","",null,null,null,null,null,null,null,null,null,null,null,null,null,null,null,null,null,"ZWO"]
[null,null,null,null,null,{"$f":"VLOOKUP(G52,'Data order'!Z:AA,2,0)","v":{"$error":"#N/A"}},null,null,null,null,null,null,null,null,{"$f":"VLOOKUP(N52,Tabel10[[korte omschrijving]:[MCC3_CODE]],2,0)","v":{"$error":"#N/A"}},{"$f":"VLOOKUP(N52,'Data order'!M:O,3,0)","v":{"$error":"#N/A"}},null,null,null,{"$f":"IFERROR(\n  IF(R52=\"Big&Tall\",\n      VLOOKUP(S52, 'Data order'!$AC$92:$AD$101, 2, FALSE),\n      IF(R52=\"Boordmaat\",\n          VLOOKUP(S52, 'Data order'!$AC$102:$AD$116, 2, FALSE),\n          VLOOKUP(S52, 'Data order'!$AC$2:$AD$91, 2, FALSE)\n      )\n  ),\n\"\")","v":""},null,null,null,null,"EUR",null,null,null,{"$error":"#DIV/0!"},0,0,null,"","","","","","","","","","",null,null,null,null,null,null,null,null,null,null,null,null,null,null,null,null,null,"ZWO"]
[null,null,null,null,null,{"$f":"VLOOKUP(G53,'Data order'!Z:AA,2,0)","v":{"$error":"#N/A"}},null,null,null,null,null,null,null,null,{"$f":"VLOOKUP(N53,Tabel10[[korte omschrijving]:[MCC3_CODE]],2,0)","v":{"$error":"#N/A"}},{"$f":"VLOOKUP(N53,'Data order'!M:O,3,0)","v":{"$error":"#N/A"}},null,null,null,{"$f":"IFERROR(\n  IF(R53=\"Big&Tall\",\n      VLOOKUP(S53, 'Data order'!$AC$92:$AD$101, 2, FALSE),\n      IF(R53=\"Boordmaat\",\n          VLOOKUP(S53, 'Data order'!$AC$102:$AD$116, 2, FALSE),\n          VLOOKUP(S53, 'Data order'!$AC$2:$AD$91, 2, FALSE)\n      )\n  ),\n\"\")","v":""},null,null,null,null,"EUR",null,null,null,{"$error":"#DIV/0!"},0,0,null,"","","","","","","","","","",null,null,null,null,null,null,null,null,null,null,null,null,null,null,null,null,null,"ZWO"]
[null,null,null,null,null,{"$f":"VLOOKUP(G54,'Data order'!Z:AA,2,0)","v":{"$error":"#N/A"}},null,null,null,null,null,null,null,null,{"$f":"VLOOKUP(N54,Tabel10[[korte omschrijving]:[MCC3_CODE]],2,0)","v":{"$error":"#N/A"}},{"$f":"VLOOKUP(N54,'Data order'!M:O,3,0)","v":{"$error":"#N/A"}},null,null,null,{"$f":"IFERROR(\n  IF(R54=\"Big&Tall\",\n      VLOOKUP(S54, 'Data order'!$AC$92:$AD$101, 2, FALSE),\n      IF(R54=\"Boordmaat\",\n          VLOOKUP(S54, 'Data order'!$AC$102:$AD$116, 2, FALSE),\n          VLOOKUP(S54, 'Data order'!$AC$2:$AD$91, 2, FALSE)\n      )\n  ),\n\"\")","v":""},null,{"$f":"SUM(U54:U59)","v":0},null,null,"EUR",null,null,null,{"$error":"#DIV/0!"},0,0,null,"","","","","","","","","","",null,null,null,null,null,null,null,null,null,null,null,null,null,null,null,null,null,"ZWO"]
[null,null,null,null,null,{"$f":"VLOOKUP(G55,'Data order'!Z:AA,2,0)","v":{"$error":"#N/A"}},null,null,null,null,null,null,null,null,{"$f":"VLOOKUP(N55,Tabel10[[korte omschrijving]:[MCC3_CODE]],2,0)","v":{"$error":"#N/A"}},{"$f":"VLOOKUP(N55,'Data order'!M:O,3,0)","v":{"$error":"#N/A"}},null,null,null,{"$f":"IFERROR(\n  IF(R55=\"Big&Tall\",\n      VLOOKUP(S55, 'Data order'!$AC$92:$AD$101, 2, FALSE),\n      IF(R55=\"Boordmaat\",\n          VLOOKUP(S55, 'Data order'!$AC$102:$AD$116, 2, FALSE),\n          VLOOKUP(S55, 'Data order'!$AC$2:$AD$91, 2, FALSE)\n      )\n  ),\n\"\")","v":""},null,null,null,null,"EUR",null,null,null,{"$error":"#DIV/0!"},0,0,null,"","","","","","","","","","",null,null,null,null,null,null,null,null,null,null,null,null,null,null,null,null,null,"ZWO"]
[null,null,null,null,null,{"$f":"VLOOKUP(G56,'Data order'!Z:AA,2,0)","v":{"$error":"#N/A"}},null,null,null,null,null,null,null,null,{"$f":"VLOOKUP(N56,Tabel10[[korte omschrijving]:[MCC3_CODE]],2,0)","v":{"$error":"#N/A"}},{"$f":"VLOOKUP(N56,'Data order'!M:O,3,0)","v":{"$error":"#N/A"}},null,null,null,{"$f":"IFERROR(\n  IF(R56=\"Big&Tall\",\n      VLOOKUP(S56, 'Data order'!$AC$92:$AD$101, 2, FALSE),\n      IF(R56=\"Boordmaat\",\n          VLOOKUP(S56, 'Data order'!$AC$102:$AD$116, 2, FALSE),\n          VLOOKUP(S56, 'Data order'!$AC$2:$AD$91, 2, FALSE)\n      )\n  ),\n\"\")","v":""},null,null,null,null,"EUR",null,null,null,{"$error":"#DIV/0!"},0,0,null,"","","","","","","","","","",null,null,null,null,null,null,null,null,null,null,null,null,null,null,null,null,null,"ZWO"]
[null,null,null,null,null,{"$f":"VLOOKUP(G57,'Data order'!Z:AA,2,0)","v":{"$error":"#N/A"}},null,null,null,null,null,null,null,null,{"$f":"VLOOKUP(N57,Tabel10[[korte omschrijving]:[MCC3_CODE]],2,0)","v":{"$error":"#N/A"}},{"$f":"VLOOKUP(N57,'Data order'!M:O,3,0)","v":{"$error":"#N/A"}},null,null,null,{"$f":"IFERROR(\n  IF(R57=\"Big&Tall\",\n      VLOOKUP(S57, 'Data order'!$AC$92:$AD$101, 2, FALSE),\n      IF(R57=\"Boordmaat\",\n          VLOOKUP(S57, 'Data order'!$AC$102:$AD$116, 2, FALSE),\n          VLOOKUP(S57, 'Data order'!$AC$2:$AD$91, 2, FALSE)\n      )\n  ),\n\"\")","v":""},null,null,null,null,"EUR",null,null,null,{"$error":"#DIV/0!"},0,0,null,"","","","","","","","","","",null,null,null,null,null,null,null,null,null,null,null,null,null,null,null,null,null,"ZWO"]
[null,null,null,null,null,{"$f":"VLOOKUP(G58,'Data order'!Z:AA,2,0)","v":{"$error":"#N/A"}},null,null,null,null,null,null,null,null,{"$f":"VLOOKUP(N58,Tabel10[[korte omschrijving]:[MCC3_CODE]],2,0)","v":{"$error":"#N/A"}},{"$f":"VLOOKUP(N58,'Data order'!M:O,3,0)","v":{"$error":"#N/A"}},null,null,null,{"$f":"IFERROR(\n  IF(R58=\"Big&Tall\",\n      VLOOKUP(S58, 'Data order'!$AC$92:$AD$101, 2, FALSE),\n      IF(R58=\"Boordmaat\",\n          VLOOKUP(S58, 'Data order'!$AC$102:$AD$116, 2, FALSE),\n          VLOOKUP(S58, 'Data order'!$AC$2:$AD$91, 2, FALSE)\n      )\n  ),\n\"\")","v":""},null,null,null,null,"EUR",null,null,null,{"$error":"#DIV/0!"},0,0,null,"","","","","","","","","","",null,null,null,null,null,null,null,null,null,null,null,null,null,null,null,null,null,"ZWO"]
[null,null,null,null,null,{"$f":"VLOOKUP(G59,'Data order'!Z:AA,2,0)","v":{"$error":"#N/A"}},null,null,null,null,null,null,null,null,{"$f":"VLOOKUP(N59,Tabel10[[korte omschrijving]:[MCC3_CODE]],2,0)","v":{"$error":"#N/A"}},{"$f":"VLOOKUP(N59,'Data order'!M:O,3,0)","v":{"$error":"#N/A"}},null,null,null,{"$f":"IFERROR(\n  IF(R59=\"Big&Tall\",\n      VLOOKUP(S59, 'Data order'!$AC$92:$AD$101, 2, FALSE),\n      IF(R59=\"Boordmaat\",\n          VLOOKUP(S59, 'Data order'!$AC$102:$AD$116, 2, FALSE),\n          VLOOKUP(S59, 'Data order'!$AC$2:$AD$91, 2, FALSE)\n      )\n  ),\n\"\")","v":""},null,null,null,null,"EUR",null,null,null,{"$error":"#DIV/0!"},0,0,null,"","","","","","","","","","",null,null,null,null,null,null,null,null,null,null,null,null,null,null,null,null,null,"ZWO"]
[null,null,null,null,null,{"$f":"VLOOKUP(G60,'Data order'!Z:AA,2,0)","v":{"$error":"#N/A"}},null,null,null,null,null,null,null,null,{"$f":"VLOOKUP(N60,Tabel10[[korte omschrijving]:[MCC3_CODE]],2,0)","v":{"$error":"#N/A"}},{"$f":"VLOOKUP(N60,'Data order'!M:O,3,0)","v":{"$error":"#N/A"}},null,null,null,{"$f":"IFERROR(\n  IF(R60=\"Big&Tall\",\n      VLOOKUP(S60, 'Data order'!$AC$92:$AD$101, 2, FALSE),\n      IF(R60=\"Boordmaat\",\n          VLOOKUP(S60, 'Data order'!$AC$102:$AD$116, 2, FALSE),\n          VLOOKUP(S60, 'Data order'!$AC$2:$AD$91, 2, FALSE)\n      )\n  ),\n\"\")","v":""},null,{"$f":"SUM(U60:U65)","v":0},null,null,"EUR",null,null,null,{"$error":"#DIV/0!"},0,0,null,"","","","","","","","","","",null,null,null,null,null,null,null,null,null,null,null,null,null,null,null,null,null,"ZWO"]
[null,null,null,null,null,{"$f":"VLOOKUP(G61,'Data order'!Z:AA,2,0)","v":{"$error":"#N/A"}},null,null,null,null,null,null,null,null,{"$f":"VLOOKUP(N61,Tabel10[[korte omschrijving]:[MCC3_CODE]],2,0)","v":{"$error":"#N/A"}},{"$f":"VLOOKUP(N61,'Data order'!M:O,3,0)","v":{"$error":"#N/A"}},null,null,null,{"$f":"IFERROR(\n  IF(R61=\"Big&Tall\",\n      VLOOKUP(S61, 'Data order'!$AC$92:$AD$101, 2, FALSE),\n      IF(R61=\"Boordmaat\",\n          VLOOKUP(S61, 'Data order'!$AC$102:$AD$116, 2, FALSE),\n          VLOOKUP(S61, 'Data order'!$AC$2:$AD$91, 2, FALSE)\n      )\n  ),\n\"\")","v":""},null,null,null,null,"EUR",null,null,null,{"$error":"#DIV/0!"},0,0,null,"","","","","","","","","","",null,null,null,null,null,null,null,null,null,null,null,null,null,null,null,null,null,"ZWO"]
[null,null,null,null,null,{"$f":"VLOOKUP(G62,'Data order'!Z:AA,2,0)","v":{"$error":"#N/A"}},null,null,null,null,null,null,null,null,{"$f":"VLOOKUP(N62,Tabel10[[korte omschrijving]:[MCC3_CODE]],2,0)","v":{"$error":"#N/A"}},{"$f":"VLOOKUP(N62,'Data order'!M:O,3,0)","v":{"$error":"#N/A"}},null,null,null,{"$f":"IFERROR(\n  IF(R62=\"Big&Tall\",\n      VLOOKUP(S62, 'Data order'!$AC$92:$AD$101, 2, FALSE),\n      IF(R62=\"Boordmaat\",\n          VLOOKUP(S62, 'Data order'!$AC$102:$AD$116, 2, FALSE),\n          VLOOKUP(S62, 'Data order'!$AC$2:$AD$91, 2, FALSE)\n      )\n  ),\n\"\")","v":""},null,null,null,null,"EUR",null,null,null,{"$error":"#DIV/0!"},0,0,null,"","","","","","","","","","",null,null,null,null,null,null,null,null,null,null,null,null,null,null,null,null,null,"ZWO"]
[null,null,null,null,null,{"$f":"VLOOKUP(G63,'Data order'!Z:AA,2,0)","v":{"$error":"#N/A"}},null,null,null,null,null,null,null,null,{"$f":"VLOOKUP(N63,Tabel10[[korte omschrijving]:[MCC3_CODE]],2,0)","v":{"$error":"#N/A"}},{"$f":"VLOOKUP(N63,'Data order'!M:O,3,0)","v":{"$error":"#N/A"}},null,null,null,{"$f":"IFERROR(\n  IF(R63=\"Big&Tall\",\n      VLOOKUP(S63, 'Data order'!$AC$92:$AD$101, 2, FALSE),\n      IF(R63=\"Boordmaat\",\n          VLOOKUP(S63, 'Data order'!$AC$102:$AD$116, 2, FALSE),\n          VLOOKUP(S63, 'Data order'!$AC$2:$AD$91, 2, FALSE)\n      )\n  ),\n\"\")","v":""},null,null,null,null,"EUR",null,null,null,{"$error":"#DIV/0!"},0,0,null,"","","","","","","","","","",null,null,null,null,null,null,null,null,null,null,null,null,null,null,null,null,null,"ZWO"]
[null,null,null,null,null,{"$f":"VLOOKUP(G64,'Data order'!Z:AA,2,0)","v":{"$error":"#N/A"}},null,null,null,null,null,null,null,null,{"$f":"VLOOKUP(N64,Tabel10[[korte omschrijving]:[MCC3_CODE]],2,0)","v":{"$error":"#N/A"}},{"$f":"VLOOKUP(N64,'Data order'!M:O,3,0)","v":{"$error":"#N/A"}},null,null,null,{"$f":"IFERROR(\n  IF(R64=\"Big&Tall\",\n      VLOOKUP(S64, 'Data order'!$AC$92:$AD$101, 2, FALSE),\n      IF(R64=\"Boordmaat\",\n          VLOOKUP(S64, 'Data order'!$AC$102:$AD$116, 2, FALSE),\n          VLOOKUP(S64, 'Data order'!$AC$2:$AD$91, 2, FALSE)\n      )\n  ),\n\"\")","v":""},null,null,null,null,"EUR",null,null,null,{"$error":"#DIV/0!"},0,0,null,"","","","","","","","","","",null,null,null,null,null,null,null,null,null,null,null,null,null,null,null,null,null,"ZWO"]
[null,null,null,null,null,{"$f":"VLOOKUP(G65,'Data order'!Z:AA,2,0)","v":{"$error":"#N/A"}},null,null,null,null,null,null,null,null,{"$f":"VLOOKUP(N65,Tabel10[[korte omschrijving]:[MCC3_CODE]],2,0)","v":{"$error":"#N/A"}},{"$f":"VLOOKUP(N65,'Data order'!M:O,3,0)","v":{"$error":"#N/A"}},null,null,null,{"$f":"IFERROR(\n  IF(R65=\"Big&Tall\",\n      VLOOKUP(S65, 'Data order'!$AC$92:$AD$101, 2, FALSE),\n      IF(R65=\"Boordmaat\",\n          VLOOKUP(S65, 'Data order'!$AC$102:$AD$116, 2, FALSE),\n          VLOOKUP(S65, 'Data order'!$AC$2:$AD$91, 2, FALSE)\n      )\n  ),\n\"\")","v":""},null,null,null,null,"EUR",null,null,null,{"$error":"#DIV/0!"},0,0,null,"","","","","","","","","","",null,null,null,null,null,null,null,null,null,null,null,null,null,null,null,null,null,"ZWO"]
[null,null,null,null,null,{"$f":"VLOOKUP(G66,'Data order'!Z:AA,2,0)","v":{"$error":"#N/A"}},null,null,null,null,null,null,null,null,{"$f":"VLOOKUP(N66,Tabel10[[korte omschrijving]:[MCC3_CODE]],2,0)","v":{"$error":"#N/A"}},{"$f":"VLOOKUP(N66,'Data order'!M:O,3,0)","v":{"$error":"#N/A"}},null,null,null,{"$f":"IFERROR(\n  IF(R66=\"Big&Tall\",\n      VLOOKUP(S66, 'Data order'!$AC$92:$AD$101, 2, FALSE),\n      IF(R66=\"Boordmaat\",\n          VLOOKUP(S66, 'Data order'!$AC$102:$AD$116, 2, FALSE),\n          VLOOKUP(S66, 'Data order'!$AC$2:$AD$91, 2, FALSE)\n      )\n  ),\n\"\")","v":""},null,{"$f":"SUM(U66:U71)","v":0},null,null,"EUR",null,null,null,{"$error":"#DIV/0!"},0,0,null,"","","","","","","","","","",null,null,null,null,null,null,null,null,null,null,null,null,null,null,null,null,null,"ZWO"]
[null,null,null,null,null,{"$f":"VLOOKUP(G67,'Data order'!Z:AA,2,0)","v":{"$error":"#N/A"}},null,null,null,null,null,null,null,null,{"$f":"VLOOKUP(N67,Tabel10[[korte omschrijving]:[MCC3_CODE]],2,0)","v":{"$error":"#N/A"}},{"$f":"VLOOKUP(N67,'Data order'!M:O,3,0)","v":{"$error":"#N/A"}},null,null,null,{"$f":"IFERROR(\n  IF(R67=\"Big&Tall\",\n      VLOOKUP(S67, 'Data order'!$AC$92:$AD$101, 2, FALSE),\n      IF(R67=\"Boordmaat\",\n          VLOOKUP(S67, 'Data order'!$AC$102:$AD$116, 2, FALSE),\n          VLOOKUP(S67, 'Data order'!$AC$2:$AD$91, 2, FALSE)\n      )\n  ),\n\"\")","v":""},null,null,null,null,"EUR",null,null,null,{"$error":"#DIV/0!"},0,0,null,"","","","","","","","","","",null,null,null,null,null,null,null,null,null,null,null,null,null,null,null,null,null,"ZWO"]
[null,null,null,null,null,{"$f":"VLOOKUP(G68,'Data order'!Z:AA,2,0)","v":{"$error":"#N/A"}},null,null,null,null,null,null,null,null,{"$f":"VLOOKUP(N68,Tabel10[[korte omschrijving]:[MCC3_CODE]],2,0)","v":{"$error":"#N/A"}},{"$f":"VLOOKUP(N68,'Data order'!M:O,3,0)","v":{"$error":"#N/A"}},null,null,null,{"$f":"IFERROR(\n  IF(R68=\"Big&Tall\",\n      VLOOKUP(S68, 'Data order'!$AC$92:$AD$101, 2, FALSE),\n      IF(R68=\"Boordmaat\",\n          VLOOKUP(S68, 'Data order'!$AC$102:$AD$116, 2, FALSE),\n          VLOOKUP(S68, 'Data order'!$AC$2:$AD$91, 2, FALSE)\n      )\n  ),\n\"\")","v":""},null,null,null,null,"EUR",null,null,null,{"$error":"#DIV/0!"},0,0,null,"","","","","","","","","","",null,null,null,null,null,null,null,null,null,null,null,null,null,null,null,null,null,"ZWO"]
[null,null,null,null,null,{"$f":"VLOOKUP(G69,'Data order'!Z:AA,2,0)","v":{"$error":"#N/A"}},null,null,null,null,null,null,null,null,{"$f":"VLOOKUP(N69,Tabel10[[korte omschrijving]:[MCC3_CODE]],2,0)","v":{"$error":"#N/A"}},{"$f":"VLOOKUP(N69,'Data order'!M:O,3,0)","v":{"$error":"#N/A"}},null,null,null,{"$f":"IFERROR(\n  IF(R69=\"Big&Tall\",\n      VLOOKUP(S69, 'Data order'!$AC$92:$AD$101, 2, FALSE),\n      IF(R69=\"Boordmaat\",\n          VLOOKUP(S69, 'Data order'!$AC$102:$AD$116, 2, FALSE),\n          VLOOKUP(S69, 'Data order'!$AC$2:$AD$91, 2, FALSE)\n      )\n  ),\n\"\")","v":""},null,null,null,null,"EUR",null,null,null,{"$error":"#DIV/0!"},0,0,null,"","","","","","","","","","",null,null,null,null,null,null,null,null,null,null,null,null,null,null,null,null,null,"ZWO"]
[null,null,null,null,null,{"$f":"VLOOKUP(G70,'Data order'!Z:AA,2,0)","v":{"$error":"#N/A"}},null,null,null,null,null,null,null,null,{"$f":"VLOOKUP(N70,Tabel10[[korte omschrijving]:[MCC3_CODE]],2,0)","v":{"$error":"#N/A"}},{"$f":"VLOOKUP(N70,'Data order'!M:O,3,0)","v":{"$error":"#N/A"}},null,null,null,{"$f":"IFERROR(\n  IF(R70=\"Big&Tall\",\n      VLOOKUP(S70, 'Data order'!$AC$92:$AD$101, 2, FALSE),\n      IF(R70=\"Boordmaat\",\n          VLOOKUP(S70, 'Data order'!$AC$102:$AD$116, 2, FALSE),\n          VLOOKUP(S70, 'Data order'!$AC$2:$AD$91, 2, FALSE)\n      )\n  ),\n\"\")","v":""},null,null,null,null,"EUR",null,null,null,{"$error":"#DIV/0!"},0,0,null,"","","","","","","","","","",null,null,null,null,null,null,null,null,null,null,null,null,null,null,null,null,null,"ZWO"]
[null,null,null,null,null,{"$f":"VLOOKUP(G71,'Data order'!Z:AA,2,0)","v":{"$error":"#N/A"}},null,null,null,null,null,null,null,null,{"$f":"VLOOKUP(N71,Tabel10[[korte omschrijving]:[MCC3_CODE]],2,0)","v":{"$error":"#N/A"}},{"$f":"VLOOKUP(N71,'Data order'!M:O,3,0)","v":{"$error":"#N/A"}},null,null,null,{"$f":"IFERROR(\n  IF(R71=\"Big&Tall\",\n      VLOOKUP(S71, 'Data order'!$AC$92:$AD$101, 2, FALSE),\n      IF(R71=\"Boordmaat\",\n          VLOOKUP(S71, 'Data order'!$AC$102:$AD$116, 2, FALSE),\n          VLOOKUP(S71, 'Data order'!$AC$2:$AD$91, 2, FALSE)\n      )\n  ),\n\"\")","v":""},null,null,null,null,"EUR",null,null,null,{"$f":"AB71/Z71","v":{"$error":"#DIV/0!"}},{"$f":"U71*Z71","v":0},0,null,{"$f":"IF(AF71 <> \"\",\n    IF(ISNUMBER(VALUE(LEFT(AF71, FIND(\"%\", AF71)-1))),\n        VALUE(LEFT(AF71, FIND(\"%\", AF71)-1)),\n        \"Invalid format\"),\n    \"\")","v":""},{"$f":"IF(AF71 <> \"\",\n    IF(ISNUMBER(VALUE(LEFT(AF71, FIND(\"%\", AF71)-1))) * ISNUMBER(FIND(\"%\", AF71 & \"wol\")) > 0,\n        TRIM(MID(AF71, FIND(\"%\", AF71)+1, FIND(\"/\", AF71 & \"/\")-FIND(\"%\", AF71)-1)),\n        \"Invalid format\"),\n    \"\")","v":""},{"$f":"IF(AF71 <> \"\",\n    IF(ISNUMBER(VALUE(MID(AF71, FIND(\"/\", AF71) + 1, FIND(\"%\", AF71, FIND(\"/\", AF71)) - FIND(\"/\", AF71) - 1))),\n        VALUE(MID(AF71, FIND(\"/\", AF71) + 1, FIND(\"%\", AF71, FIND(\"/\", AF71)) - FIND(\"/\", AF71) - 1)),\n        \"\"),\n    \"\")","v":""},{"$f":"IF(AF71 <> \"\",\n    IFERROR(TRIM(MID(AF71, FIND(\"%\", AF71, FIND(\"/\", AF71)+1)+2,\n        IFERROR(FIND(\"/\", AF71 & \"/\", FIND(\"/\", AF71)+1)-FIND(\"%\", AF71, FIND(\"/\", AF71)+1)-2, LEN(AF71)-FIND(\"%\", AF71, FIND(\"/\", AF71)+1)-1))),\n        \"\"),\n    \"\")","v":""},{"$f":"IF(AF71 <> \"\",\n    IF(ISNUMBER(VALUE(MID(AF71, FIND(\"/\", AF71, FIND(\"/\", AF71)+1) + 1, FIND(\"%\", AF71, FIND(\"/\", AF71, FIND(\"/\", AF71)+1)) - FIND(\"/\", AF71, FIND(\"/\", AF71)+1) - 1))),\n        VALUE(MID(AF71, FIND(\"/\", AF71, FIND(\"/\", AF71)+1) + 1, FIND(\"%\", AF71, FIND(\"/\", AF71, FIND(\"/\", AF71)+1)) - FIND(\"/\", AF71, FIND(\"/\", AF71)+1) - 1)),\n        \"\"),\n    \"\")","v":""},{"$f":"IF(AF71 <> \"\",\n    IFERROR(\n        TRIM(MID(AF71,\n            FIND(\"%\", AF71, FIND(\"%\", AF71, FIND(\"%\", AF71)+1)+1)+1,\n            FIND(\"/\", AF71 & \"/\", FIND(\"%\", AF71, FIND(\"%\", AF71, FIND(\"%\", AF71)+1)+1))-FIND(\"%\", AF71, FIND(\"%\", AF71, FIND(\"%\", AF71)+1)+1)-1)\n        ),\n        \"\"\n    ),\n    \"\"\n)","v":""},{"$f":"IF(AF71 <> \"\",\n    IF(ISNUMBER(VALUE(MID(AF71, FIND(\"/\", AF71, FIND(\"/\", AF71, FIND(\"/\", AF71)+1)+1) + 1, FIND(\"%\", AF71, FIND(\"/\", AF71, FIND(\"/\", AF71, FIND(\"/\", AF71)+1)+1)) - FIND(\"/\", AF71, FIND(\"/\", AF71, FIND(\"/\", AF71)+1)+1) - 1))),\n        VALUE(MID(AF71, FIND(\"/\", AF71, FIND(\"/\", AF71, FIND(\"/\", AF71)+1)+1) + 1, FIND(\"%\", AF71, FIND(\"/\", AF71, FIND(\"/\", AF71, FIND(\"/\", AF71)+1)+1)) - FIND(\"/\", AF71, FIND(\"/\", AF71, FIND(\"/\", AF71)+1)+1) - 1)),\n        \"\"),\n    \"\")","v":""},{"$f":"IF(AF71 <> \"\",\n    IFERROR(TRIM(MID(AF71, FIND(\"%\", AF71, FIND(\"/\", AF71, FIND(\"/\", AF71, FIND(\"/\", AF71)+1)+1)+1)+2,\n        IFERROR(FIND(\"/\", AF71, FIND(\"/\", AF71, FIND(\"/\", AF71, FIND(\"/\", AF71)+1)+1)+1)-FIND(\"%\", AF71, FIND(\"/\", AF71, FIND(\"/\", AF71, FIND(\"/\", AF71)+1)+1)+1)-2, LEN(AF71)-FIND(\"%\", AF71, FIND(\"/\", AF71, FIND(\"/\", AF71, FIND(\"/\", AF71)+1)+1)+1)-1))),\n        \"\"),\n    \"\")","v":""},{"$f":"IF(AF71 <> \"\",\n    IF(ISNUMBER(VALUE(MID(AF71, FIND(\"/\", AF71, FIND(\"/\", AF71, FIND(\"/\", AF71, FIND(\"/\", AF71)+1)+1)+1) + 1, FIND(\"%\", AF71, FIND(\"/\", AF71, FIND(\"/\", AF71, FIND(\"/\", AF71, FIND(\"/\", AF71)+1)+1)+1)) - FIND(\"/\", AF71, FIND(\"/\", AF71, FIND(\"/\", AF71, FIND(\"/\", AF71)+1)+1)+1) - 1))),\n        VALUE(MID(AF71, FIND(\"/\", AF71, FIND(\"/\", AF71, FIND(\"/\", AF71, FIND(\"/\", AF71)+1)+1)+1) + 1, FIND(\"%\", AF71, FIND(\"/\", AF71, FIND(\"/\", AF71, FIND(\"/\", AF71, FIND(\"/\", AF71)+1)+1)+1)) - FIND(\"/\", AF71, FIND(\"/\", AF71, FIND(\"/\", AF71, FIND(\"/\", AF71)+1)+1)+1) - 1)),\n        \"\"),\n    \"\")","v":""},{"$f":"IF(AF71 = \"\", \"\",\n    IFERROR(TRIM(\n        MID(\n            AF71,\n            FIND(\"%\", AF71, FIND(\"/\", AF71, FIND(\"/\", AF71, FIND(\"/\", AF71, FIND(\"/\", AF71)+1)+1)+1)+1) + 1,\n            FIND(\"/\", AF71 & \"/\", FIND(\"%\", AF71, FIND(\"/\", AF71, FIND(\"/\", AF71, FIND(\"/\", AF71, FIND(\"/\", AF71)+1)+1)+1)+1)) -\n            FIND(\"%\", AF71, FIND(\"/\", AF71, FIND(\"/\", AF71, FIND(\"/\", AF71, FIND(\"/\", AF71)+1)+1)+1)+1) - 1\n        )\n    ),\n    \"\")\n)","v":""},null,null,null,null,null,null,null,null,null,null,null,null,null,null,null,null,null,"ZWO"]
[null,null,null,null,null,{"$f":"VLOOKUP(G72,'Data order'!Z:AA,2,0)","v":{"$error":"#N/A"}},null,null,null,null,null,null,null,null,{"$f":"VLOOKUP(N72,Tabel10[[korte omschrijving]:[MCC3_CODE]],2,0)","v":{"$error":"#N/A"}},{"$f":"VLOOKUP(N72,'Data order'!M:O,3,0)","v":{"$error":"#N/A"}},null,null,null,{"$f":"IFERROR(\n  IF(R72=\"Big&Tall\",\n      VLOOKUP(S72, 'Data order'!$AC$92:$AD$101, 2, FALSE),\n      IF(R72=\"Boordmaat\",\n          VLOOKUP(S72, 'Data order'!$AC$102:$AD$116, 2, FALSE),\n          VLOOKUP(S72, 'Data order'!$AC$2:$AD$91, 2, FALSE)\n      )\n  ),\n\"\")","v":""},null,{"$f":"SUM(U72:U77)","v":0},null,null,"EUR",null,null,null,{"$error":"#DIV/0!"},0,{"$f":"U72*AB72","v":0},null,"","","","","","","","","","",null,null,null,null,null,null,null,null,null,null,null,null,null,null,null,null,null,"ZWO"]
[null,null,null,null,null,{"$f":"VLOOKUP(G73,'Data order'!Z:AA,2,0)","v":{"$error":"#N/A"}},null,null,null,null,null,null,null,null,{"$f":"VLOOKUP(N73,Tabel10[[korte omschrijving]:[MCC3_CODE]],2,0)","v":{"$error":"#N/A"}},{"$f":"VLOOKUP(N73,'Data order'!M:O,3,0)","v":{"$error":"#N/A"}},null,null,null,{"$f":"IFERROR(\n  IF(R73=\"Big&Tall\",\n      VLOOKUP(S73, 'Data order'!$AC$92:$AD$101, 2, FALSE),\n      IF(R73=\"Boordmaat\",\n          VLOOKUP(S73, 'Data order'!$AC$102:$AD$116, 2, FALSE),\n          VLOOKUP(S73, 'Data order'!$AC$2:$AD$91, 2, FALSE)\n      )\n  ),\n\"\")","v":""},null,null,null,null,"EUR",null,null,null,{"$error":"#DIV/0!"},0,0,null,"","","","","","","","","","",null,null,null,null,null,null,null,null,null,null,null,null,null,null,null,null,null,"ZWO"]
[null,null,null,null,null,{"$f":"VLOOKUP(G74,'Data order'!Z:AA,2,0)","v":{"$error":"#N/A"}},null,null,null,null,null,null,null,null,{"$f":"VLOOKUP(N74,Tabel10[[korte omschrijving]:[MCC3_CODE]],2,0)","v":{"$error":"#N/A"}},{"$f":"VLOOKUP(N74,'Data order'!M:O,3,0)","v":{"$error":"#N/A"}},null,null,null,{"$f":"IFERROR(\n  IF(R74=\"Big&Tall\",\n      VLOOKUP(S74, 'Data order'!$AC$92:$AD$101, 2, FALSE),\n      IF(R74=\"Boordmaat\",\n          VLOOKUP(S74, 'Data order'!$AC$102:$AD$116, 2, FALSE),\n          VLOOKUP(S74, 'Data order'!$AC$2:$AD$91, 2, FALSE)\n      )\n  ),\n\"\")","v":""},null,null,null,null,"EUR",null,null,null,{"$error":"#DIV/0!"},0,0,null,"","","","","","","","","","",null,null,null,null,null,null,null,null,null,null,null,null,null,null,null,null,null,"ZWO"]
[null,null,null,null,null,{"$f":"VLOOKUP(G75,'Data order'!Z:AA,2,0)","v":{"$error":"#N/A"}},null,null,null,null,null,null,null,null,{"$f":"VLOOKUP(N75,Tabel10[[korte omschrijving]:[MCC3_CODE]],2,0)","v":{"$error":"#N/A"}},{"$f":"VLOOKUP(N75,'Data order'!M:O,3,0)","v":{"$error":"#N/A"}},null,null,null,{"$f":"IFERROR(\n  IF(R75=\"Big&Tall\",\n      VLOOKUP(S75, 'Data order'!$AC$92:$AD$101, 2, FALSE),\n      IF(R75=\"Boordmaat\",\n          VLOOKUP(S75, 'Data order'!$AC$102:$AD$116, 2, FALSE),\n          VLOOKUP(S75, 'Data order'!$AC$2:$AD$91, 2, FALSE)\n      )\n  ),\n\"\")","v":""},null,null,null,null,"EUR",null,null,null,{"$error":"#DIV/0!"},0,0,null,"","","","","","","","","","",null,null,null,null,null,null,null,null,null,null,null,null,null,null,null,null,null,"ZWO"]
[null,null,null,null,null,{"$f":"VLOOKUP(G76,'Data order'!Z:AA,2,0)","v":{"$error":"#N/A"}},null,null,null,null,null,null,null,null,{"$f":"VLOOKUP(N76,Tabel10[[korte omschrijving]:[MCC3_CODE]],2,0)","v":{"$error":"#N/A"}},{"$f":"VLOOKUP(N76,'Data order'!M:O,3,0)","v":{"$error":"#N/A"}},null,null,null,{"$f":"IFERROR(\n  IF(R76=\"Big&Tall\",\n      VLOOKUP(S76, 'Data order'!$AC$92:$AD$101, 2, FALSE),\n      IF(R76=\"Boordmaat\",\n          VLOOKUP(S76, 'Data order'!$AC$102:$AD$116, 2, FALSE),\n          VLOOKUP(S76, 'Data order'!$AC$2:$AD$91, 2, FALSE)\n      )\n  ),\n\"\")","v":""},null,null,null,null,"EUR",null,null,null,{"$error":"#DIV/0!"},0,0,null,"","","","","","","","","","",null,null,null,null,null,null,null,null,null,null,null,null,null,null,null,null,null,"ZWO"]
[null,null,null,null,null,{"$f":"VLOOKUP(G77,'Data order'!Z:AA,2,0)","v":{"$error":"#N/A"}},null,null,null,null,null,null,null,null,{"$f":"VLOOKUP(N77,Tabel10[[korte omschrijving]:[MCC3_CODE]],2,0)","v":{"$error":"#N/A"}},{"$f":"VLOOKUP(N77,'Data order'!M:O,3,0)","v":{"$error":"#N/A"}},null,null,null,{"$f":"IFERROR(\n  IF(R77=\"Big&Tall\",\n      VLOOKUP(S77, 'Data order'!$AC$92:$AD$101, 2, FALSE),\n      IF(R77=\"Boordmaat\",\n          VLOOKUP(S77, 'Data order'!$AC$102:$AD$116, 2, FALSE),\n          VLOOKUP(S77, 'Data order'!$AC$2:$AD$91, 2, FALSE)\n      )\n  ),\n\"\")","v":""},null,null,null,null,"EUR",null,null,null,{"$error":"#DIV/0!"},0,0,null,"","","","","","","","","","",null,null,null,null,null,null,null,null,null,null,null,null,null,null,null,null,null,"ZWO"]
[null,null,null,null,null,{"$f":"VLOOKUP(G78,'Data order'!Z:AA,2,0)","v":{"$error":"#N/A"}},null,null,null,null,null,null,null,null,{"$f":"VLOOKUP(N78,Tabel10[[korte omschrijving]:[MCC3_CODE]],2,0)","v":{"$error":"#N/A"}},{"$f":"VLOOKUP(N78,'Data order'!M:O,3,0)","v":{"$error":"#N/A"}},null,null,null,{"$f":"IFERROR(\n  IF(R78=\"Big&Tall\",\n      VLOOKUP(S78, 'Data order'!$AC$92:$AD$101, 2, FALSE),\n      IF(R78=\"Boordmaat\",\n          VLOOKUP(S78, 'Data order'!$AC$102:$AD$116, 2, FALSE),\n          VLOOKUP(S78, 'Data order'!$AC$2:$AD$91, 2, FALSE)\n      )\n  ),\n\"\")","v":""},null,{"$f":"SUM(U78:U83)","v":0},null,null,"EUR",null,null,null,{"$error":"#DIV/0!"},0,0,null,"","","","","","","","","","",null,null,null,null,null,null,null,null,null,null,null,null,null,null,null,null,null,"ZWO"]
[null,null,null,null,null,{"$f":"VLOOKUP(G79,'Data order'!Z:AA,2,0)","v":{"$error":"#N/A"}},null,null,null,null,null,null,null,null,{"$f":"VLOOKUP(N79,Tabel10[[korte omschrijving]:[MCC3_CODE]],2,0)","v":{"$error":"#N/A"}},{"$f":"VLOOKUP(N79,'Data order'!M:O,3,0)","v":{"$error":"#N/A"}},null,null,null,{"$f":"IFERROR(\n  IF(R79=\"Big&Tall\",\n      VLOOKUP(S79, 'Data order'!$AC$92:$AD$101, 2, FALSE),\n      IF(R79=\"Boordmaat\",\n          VLOOKUP(S79, 'Data order'!$AC$102:$AD$116, 2, FALSE),\n          VLOOKUP(S79, 'Data order'!$AC$2:$AD$91, 2, FALSE)\n      )\n  ),\n\"\")","v":""},null,null,null,null,"EUR",null,null,null,{"$error":"#DIV/0!"},0,0,null,"","","","","","","","","","",null,null,null,null,null,null,null,null,null,null,null,null,null,null,null,null,null,"ZWO"]
[null,null,null,null,null,{"$f":"VLOOKUP(G80,'Data order'!Z:AA,2,0)","v":{"$error":"#N/A"}},null,null,null,null,null,null,null,null,{"$f":"VLOOKUP(N80,Tabel10[[korte omschrijving]:[MCC3_CODE]],2,0)","v":{"$error":"#N/A"}},{"$f":"VLOOKUP(N80,'Data order'!M:O,3,0)","v":{"$error":"#N/A"}},null,null,null,{"$f":"IFERROR(\n  IF(R80=\"Big&Tall\",\n      VLOOKUP(S80, 'Data order'!$AC$92:$AD$101, 2, FALSE),\n      IF(R80=\"Boordmaat\",\n          VLOOKUP(S80, 'Data order'!$AC$102:$AD$116, 2, FALSE),\n          VLOOKUP(S80, 'Data order'!$AC$2:$AD$91, 2, FALSE)\n      )\n  ),\n\"\")","v":""},null,null,null,null,"EUR",null,null,null,{"$error":"#DIV/0!"},0,0,null,"","","","","","","","","","",null,null,null,null,null,null,null,null,null,null,null,null,null,null,null,null,null,"ZWO"]
[null,null,null,null,null,{"$f":"VLOOKUP(G81,'Data order'!Z:AA,2,0)","v":{"$error":"#N/A"}},null,null,null,null,null,null,null,null,{"$f":"VLOOKUP(N81,Tabel10[[korte omschrijving]:[MCC3_CODE]],2,0)","v":{"$error":"#N/A"}},{"$f":"VLOOKUP(N81,'Data order'!M:O,3,0)","v":{"$error":"#N/A"}},null,null,null,{"$f":"IFERROR(\n  IF(R81=\"Big&Tall\",\n      VLOOKUP(S81, 'Data order'!$AC$92:$AD$101, 2, FALSE),\n      IF(R81=\"Boordmaat\",\n          VLOOKUP(S81, 'Data order'!$AC$102:$AD$116, 2, FALSE),\n          VLOOKUP(S81, 'Data order'!$AC$2:$AD$91, 2, FALSE)\n      )\n  ),\n\"\")","v":""},null,null,null,null,"EUR",null,null,null,{"$error":"#DIV/0!"},0,0,null,"","","","","","","","","","",null,null,null,null,null,null,null,null,null,null,null,null,null,null,null,null,null,"ZWO"]
[null,null,null,null,null,{"$f":"VLOOKUP(G82,'Data order'!Z:AA,2,0)","v":{"$error":"#N/A"}},null,null,null,null,null,null,null,null,{"$f":"VLOOKUP(N82,Tabel10[[korte omschrijving]:[MCC3_CODE]],2,0)","v":{"$error":"#N/A"}},{"$f":"VLOOKUP(N82,'Data order'!M:O,3,0)","v":{"$error":"#N/A"}},null,null,null,{"$f":"IFERROR(\n  IF(R82=\"Big&Tall\",\n      VLOOKUP(S82, 'Data order'!$AC$92:$AD$101, 2, FALSE),\n      IF(R82=\"Boordmaat\",\n          VLOOKUP(S82, 'Data order'!$AC$102:$AD$116, 2, FALSE),\n          VLOOKUP(S82, 'Data order'!$AC$2:$AD$91, 2, FALSE)\n      )\n  ),\n\"\")","v":""},null,null,null,null,"EUR",null,null,null,{"$error":"#DIV/0!"},0,0,null,"","","","","","","","","","",null,null,null,null,null,null,null,null,null,null,null,null,null,null,null,null,null,"ZWO"]
[null,null,null,null,null,{"$f":"VLOOKUP(G83,'Data order'!Z:AA,2,0)","v":{"$error":"#N/A"}},null,null,null,null,null,null,null,null,{"$f":"VLOOKUP(N83,Tabel10[[korte omschrijving]:[MCC3_CODE]],2,0)","v":{"$error":"#N/A"}},{"$f":"VLOOKUP(N83,'Data order'!M:O,3,0)","v":{"$error":"#N/A"}},null,null,null,{"$f":"IFERROR(\n  IF(R83=\"Big&Tall\",\n      VLOOKUP(S83, 'Data order'!$AC$92:$AD$101, 2, FALSE),\n      IF(R83=\"Boordmaat\",\n          VLOOKUP(S83, 'Data order'!$AC$102:$AD$116, 2, FALSE),\n          VLOOKUP(S83, 'Data order'!$AC$2:$AD$91, 2, FALSE)\n      )\n  ),\n\"\")","v":""},null,null,null,null,"EUR",null,null,null,{"$error":"#DIV/0!"},0,0,null,"","","","","","","","","","",null,null,null,null,null,null,null,null,null,null,null,null,null,null,null,null,null,"ZWO"]
[null,null,null,null,null,{"$f":"VLOOKUP(G84,'Data order'!Z:AA,2,0)","v":{"$error":"#N/A"}},null,null,null,null,null,null,null,null,{"$f":"VLOOKUP(N84,Tabel10[[korte omschrijving]:[MCC3_CODE]],2,0)","v":{"$error":"#N/A"}},{"$f":"VLOOKUP(N84,'Data order'!M:O,3,0)","v":{"$error":"#N/A"}},null,null,null,{"$f":"IFERROR(\n  IF(R84=\"Big&Tall\",\n      VLOOKUP(S84, 'Data order'!$AC$92:$AD$101, 2, FALSE),\n      IF(R84=\"Boordmaat\",\n          VLOOKUP(S84, 'Data order'!$AC$102:$AD$116, 2, FALSE),\n          VLOOKUP(S84, 'Data order'!$AC$2:$AD$91, 2, FALSE)\n      )\n  ),\n\"\")","v":""},null,{"$f":"SUM(U84:U89)","v":0},null,null,"EUR",null,null,null,{"$error":"#DIV/0!"},0,0,null,"","","","","","","","","","",null,null,null,null,null,null,null,null,null,null,null,null,null,null,null,null,null,"ZWO"]
[null,null,null,null,null,{"$f":"VLOOKUP(G85,'Data order'!Z:AA,2,0)","v":{"$error":"#N/A"}},null,null,null,null,null,null,null,null,{"$f":"VLOOKUP(N85,Tabel10[[korte omschrijving]:[MCC3_CODE]],2,0)","v":{"$error":"#N/A"}},{"$f":"VLOOKUP(N85,'Data order'!M:O,3,0)","v":{"$error":"#N/A"}},null,null,null,{"$f":"IFERROR(\n  IF(R85=\"Big&Tall\",\n      VLOOKUP(S85, 'Data order'!$AC$92:$AD$101, 2, FALSE),\n      IF(R85=\"Boordmaat\",\n          VLOOKUP(S85, 'Data order'!$AC$102:$AD$116, 2, FALSE),\n          VLOOKUP(S85, 'Data order'!$AC$2:$AD$91, 2, FALSE)\n      )\n  ),\n\"\")","v":""},null,null,null,null,"EUR",null,null,null,{"$error":"#DIV/0!"},0,0,null,"","","","","","","","","","",null,null,null,null,null,null,null,null,null,null,null,null,null,null,null,null,null,"ZWO"]
[null,null,null,null,null,{"$f":"VLOOKUP(G86,'Data order'!Z:AA,2,0)","v":{"$error":"#N/A"}},null,null,null,null,null,null,null,null,{"$f":"VLOOKUP(N86,Tabel10[[korte omschrijving]:[MCC3_CODE]],2,0)","v":{"$error":"#N/A"}},{"$f":"VLOOKUP(N86,'Data order'!M:O,3,0)","v":{"$error":"#N/A"}},null,null,null,{"$f":"IFERROR(\n  IF(R86=\"Big&Tall\",\n      VLOOKUP(S86, 'Data order'!$AC$92:$AD$101, 2, FALSE),\n      IF(R86=\"Boordmaat\",\n          VLOOKUP(S86, 'Data order'!$AC$102:$AD$116, 2, FALSE),\n          VLOOKUP(S86, 'Data order'!$AC$2:$AD$91, 2, FALSE)\n      )\n  ),\n\"\")","v":""},null,null,null,null,"EUR",null,null,null,{"$error":"#DIV/0!"},0,0,null,"","","","","","","","","","",null,null,null,null,null,null,null,null,null,null,null,null,null,null,null,null,null,"ZWO"]
[null,null,null,null,null,{"$f":"VLOOKUP(G87,'Data order'!Z:AA,2,0)","v":{"$error":"#N/A"}},null,null,null,null,null,null,null,null,{"$f":"VLOOKUP(N87,Tabel10[[korte omschrijving]:[MCC3_CODE]],2,0)","v":{"$error":"#N/A"}},{"$f":"VLOOKUP(N87,'Data order'!M:O,3,0)","v":{"$error":"#N/A"}},null,null,null,{"$f":"IFERROR(\n  IF(R87=\"Big&Tall\",\n      VLOOKUP(S87, 'Data order'!$AC$92:$AD$101, 2, FALSE),\n      IF(R87=\"Boordmaat\",\n          VLOOKUP(S87, 'Data order'!$AC$102:$AD$116, 2, FALSE),\n          VLOOKUP(S87, 'Data order'!$AC$2:$AD$91, 2, FALSE)\n      )\n  ),\n\"\")","v":""},null,null,null,null,"EUR",null,null,null,{"$error":"#DIV/0!"},0,0,null,"","","","","","","","","","",null,null,null,null,null,null,null,null,null,null,null,null,null,null,null,null,null,"ZWO"]
[null,null,null,null,null,{"$f":"VLOOKUP(G88,'Data order'!Z:AA,2,0)","v":{"$error":"#N/A"}},null,null,null,null,null,null,null,null,{"$f":"VLOOKUP(N88,Tabel10[[korte omschrijving]:[MCC3_CODE]],2,0)","v":{"$error":"#N/A"}},{"$f":"VLOOKUP(N88,'Data order'!M:O,3,0)","v":{"$error":"#N/A"}},null,null,null,{"$f":"IFERROR(\n  IF(R88=\"Big&Tall\",\n      VLOOKUP(S88, 'Data order'!$AC$92:$AD$101, 2, FALSE),\n      IF(R88=\"Boordmaat\",\n          VLOOKUP(S88, 'Data order'!$AC$102:$AD$116, 2, FALSE),\n          VLOOKUP(S88, 'Data order'!$AC$2:$AD$91, 2, FALSE)\n      )\n  ),\n\"\")","v":""},null,null,null,null,"EUR",null,null,null,{"$error":"#DIV/0!"},0,0,null,"","","","","","","","","","",null,null,null,null,null,null,null,null,null,null,null,null,null,null,null,null,null,"ZWO"]
[null,null,null,null,null,{"$f":"VLOOKUP(G89,'Data order'!Z:AA,2,0)","v":{"$error":"#N/A"}},null,null,null,null,null,null,null,null,{"$f":"VLOOKUP(N89,Tabel10[[korte omschrijving]:[MCC3_CODE]],2,0)","v":{"$error":"#N/A"}},{"$f":"VLOOKUP(N89,'Data order'!M:O,3,0)","v":{"$error":"#N/A"}},null,null,null,{"$f":"IFERROR(\n  IF(R89=\"Big&Tall\",\n      VLOOKUP(S89, 'Data order'!$AC$92:$AD$101, 2, FALSE),\n      IF(R89=\"Boordmaat\",\n          VLOOKUP(S89, 'Data order'!$AC$102:$AD$116, 2, FALSE),\n          VLOOKUP(S89, 'Data order'!$AC$2:$AD$91, 2, FALSE)\n      )\n  ),\n\"\")","v":""},null,null,null,null,"EUR",null,null,null,{"$error":"#DIV/0!"},0,0,null,"","","","","","","","","","",null,null,null,null,null,null,null,null,null,null,null,null,null,null,null,null,null,"ZWO"]
[null,null,null,null,null,{"$f":"VLOOKUP(G90,'Data order'!Z:AA,2,0)","v":{"$error":"#N/A"}},null,null,null,null,null,null,null,null,{"$f":"VLOOKUP(N90,Tabel10[[korte omschrijving]:[MCC3_CODE]],2,0)","v":{"$error":"#N/A"}},{"$f":"VLOOKUP(N90,'Data order'!M:O,3,0)","v":{"$error":"#N/A"}},null,null,null,{"$f":"IFERROR(\n  IF(R90=\"Big&Tall\",\n      VLOOKUP(S90, 'Data order'!$AC$92:$AD$101, 2, FALSE),\n      IF(R90=\"Boordmaat\",\n          VLOOKUP(S90, 'Data order'!$AC$102:$AD$116, 2, FALSE),\n          VLOOKUP(S90, 'Data order'!$AC$2:$AD$91, 2, FALSE)\n      )\n  ),\n\"\")","v":""},null,{"$f":"SUM(U90:U95)","v":0},null,null,"EUR",null,null,null,{"$error":"#DIV/0!"},0,0,null,"","","","","","","","","","",null,null,null,null,null,null,null,null,null,null,null,null,null,null,null,null,null,"ZWO"]
[null,null,null,null,null,{"$f":"VLOOKUP(G91,'Data order'!Z:AA,2,0)","v":{"$error":"#N/A"}},null,null,null,null,null,null,null,null,{"$f":"VLOOKUP(N91,Tabel10[[korte omschrijving]:[MCC3_CODE]],2,0)","v":{"$error":"#N/A"}},{"$f":"VLOOKUP(N91,'Data order'!M:O,3,0)","v":{"$error":"#N/A"}},null,null,null,{"$f":"IFERROR(\n  IF(R91=\"Big&Tall\",\n      VLOOKUP(S91, 'Data order'!$AC$92:$AD$101, 2, FALSE),\n      IF(R91=\"Boordmaat\",\n          VLOOKUP(S91, 'Data order'!$AC$102:$AD$116, 2, FALSE),\n          VLOOKUP(S91, 'Data order'!$AC$2:$AD$91, 2, FALSE)\n      )\n  ),\n\"\")","v":""},null,null,null,null,"EUR",null,null,null,{"$error":"#DIV/0!"},0,0,null,"","","","","","","","","","",null,null,null,null,null,null,null,null,null,null,null,null,null,null,null,null,null,"ZWO"]
[null,null,null,null,null,{"$f":"VLOOKUP(G92,'Data order'!Z:AA,2,0)","v":{"$error":"#N/A"}},null,null,null,null,null,null,null,null,{"$f":"VLOOKUP(N92,Tabel10[[korte omschrijving]:[MCC3_CODE]],2,0)","v":{"$error":"#N/A"}},{"$f":"VLOOKUP(N92,'Data order'!M:O,3,0)","v":{"$error":"#N/A"}},null,null,null,{"$f":"IFERROR(\n  IF(R92=\"Big&Tall\",\n      VLOOKUP(S92, 'Data order'!$AC$92:$AD$101, 2, FALSE),\n      IF(R92=\"Boordmaat\",\n          VLOOKUP(S92, 'Data order'!$AC$102:$AD$116, 2, FALSE),\n          VLOOKUP(S92, 'Data order'!$AC$2:$AD$91, 2, FALSE)\n      )\n  ),\n\"\")","v":""},null,null,null,null,"EUR",null,null,null,{"$error":"#DIV/0!"},0,0,null,"","","","","","","","","","",null,null,null,null,null,null,null,null,null,null,null,null,null,null,null,null,null,"ZWO"]
[null,null,null,null,null,{"$f":"VLOOKUP(G93,'Data order'!Z:AA,2,0)","v":{"$error":"#N/A"}},null,null,null,null,null,null,null,null,{"$f":"VLOOKUP(N93,Tabel10[[korte omschrijving]:[MCC3_CODE]],2,0)","v":{"$error":"#N/A"}},{"$f":"VLOOKUP(N93,'Data order'!M:O,3,0)","v":{"$error":"#N/A"}},null,null,null,{"$f":"IFERROR(\n  IF(R93=\"Big&Tall\",\n      VLOOKUP(S93, 'Data order'!$AC$92:$AD$101, 2, FALSE),\n      IF(R93=\"Boordmaat\",\n          VLOOKUP(S93, 'Data order'!$AC$102:$AD$116, 2, FALSE),\n          VLOOKUP(S93, 'Data order'!$AC$2:$AD$91, 2, FALSE)\n      )\n  ),\n\"\")","v":""},null,null,null,null,"EUR",null,null,null,{"$error":"#DIV/0!"},0,0,null,"","","","","","","","","","",null,null,null,null,null,null,null,null,null,null,null,null,null,null,null,null,null,"ZWO"]
[null,null,null,null,null,{"$f":"VLOOKUP(G94,'Data order'!Z:AA,2,0)","v":{"$error":"#N/A"}},null,null,null,null,null,null,null,null,{"$f":"VLOOKUP(N94,Tabel10[[korte omschrijving]:[MCC3_CODE]],2,0)","v":{"$error":"#N/A"}},{"$f":"VLOOKUP(N94,'Data order'!M:O,3,0)","v":{"$error":"#N/A"}},null,null,null,{"$f":"IFERROR(\n  IF(R94=\"Big&Tall\",\n      VLOOKUP(S94, 'Data order'!$AC$92:$AD$101, 2, FALSE),\n      IF(R94=\"Boordmaat\",\n          VLOOKUP(S94, 'Data order'!$AC$102:$AD$116, 2, FALSE),\n          VLOOKUP(S94, 'Data order'!$AC$2:$AD$91, 2, FALSE)\n      )\n  ),\n\"\")","v":""},null,null,null,null,"EUR",null,null,null,{"$error":"#DIV/0!"},0,0,null,"","","","","","","","","","",null,null,null,null,null,null,null,null,null,null,null,null,null,null,null,null,null,"ZWO"]
[null,null,null,null,null,{"$f":"VLOOKUP(G95,'Data order'!Z:AA,2,0)","v":{"$error":"#N/A"}},null,null,null,null,null,null,null,null,{"$f":"VLOOKUP(N95,Tabel10[[korte omschrijving]:[MCC3_CODE]],2,0)","v":{"$error":"#N/A"}},{"$f":"VLOOKUP(N95,'Data order'!M:O,3,0)","v":{"$error":"#N/A"}},null,null,null,{"$f":"IFERROR(\n  IF(R95=\"Big&Tall\",\n      VLOOKUP(S95, 'Data order'!$AC$92:$AD$101, 2, FALSE),\n      IF(R95=\"Boordmaat\",\n          VLOOKUP(S95, 'Data order'!$AC$102:$AD$116, 2, FALSE),\n          VLOOKUP(S95, 'Data order'!$AC$2:$AD$91, 2, FALSE)\n      )\n  ),\n\"\")","v":""},null,null,null,null,"EUR",null,null,null,{"$error":"#DIV/0!"},0,0,null,"","","","","","","","","","",null,null,null,null,null,null,null,null,null,null,null,null,null,null,null,null,null,"ZWO"]
[null,null,null,null,null,{"$f":"VLOOKUP(G96,'Data order'!Z:AA,2,0)","v":{"$error":"#N/A"}},null,null,null,null,null,null,null,null,{"$f":"VLOOKUP(N96,Tabel10[[korte omschrijving]:[MCC3_CODE]],2,0)","v":{"$error":"#N/A"}},{"$f":"VLOOKUP(N96,'Data order'!M:O,3,0)","v":{"$error":"#N/A"}},null,null,null,{"$f":"IFERROR(\n  IF(R96=\"Big&Tall\",\n      VLOOKUP(S96, 'Data order'!$AC$92:$AD$101, 2, FALSE),\n      IF(R96=\"Boordmaat\",\n          VLOOKUP(S96, 'Data order'!$AC$102:$AD$116, 2, FALSE),\n          VLOOKUP(S96, 'Data order'!$AC$2:$AD$91, 2, FALSE)\n      )\n  ),\n\"\")","v":""},null,{"$f":"SUM(U96:U101)","v":0},null,null,"EUR",null,null,null,{"$error":"#DIV/0!"},0,0,null,"","","","","","","","","","",null,null,null,null,null,null,null,null,null,null,null,null,null,null,null,null,null,"ZWO"]
[null,null,null,null,null,{"$f":"VLOOKUP(G97,'Data order'!Z:AA,2,0)","v":{"$error":"#N/A"}},null,null,null,null,null,null,null,null,{"$f":"VLOOKUP(N97,Tabel10[[korte omschrijving]:[MCC3_CODE]],2,0)","v":{"$error":"#N/A"}},{"$f":"VLOOKUP(N97,'Data order'!M:O,3,0)","v":{"$error":"#N/A"}},null,null,null,{"$f":"IFERROR(\n  IF(R97=\"Big&Tall\",\n      VLOOKUP(S97, 'Data order'!$AC$92:$AD$101, 2, FALSE),\n      IF(R97=\"Boordmaat\",\n          VLOOKUP(S97, 'Data order'!$AC$102:$AD$116, 2, FALSE),\n          VLOOKUP(S97, 'Data order'!$AC$2:$AD$91, 2, FALSE)\n      )\n  ),\n\"\")","v":""},null,null,null,null,"EUR",null,null,null,{"$error":"#DIV/0!"},0,0,null,"","","","","","","","","","",null,null,null,null,null,null,null,null,null,null,null,null,null,null,null,null,null,"ZWO"]
[null,null,null,null,null,{"$f":"VLOOKUP(G98,'Data order'!Z:AA,2,0)","v":{"$error":"#N/A"}},null,null,null,null,null,null,null,null,{"$f":"VLOOKUP(N98,Tabel10[[korte omschrijving]:[MCC3_CODE]],2,0)","v":{"$error":"#N/A"}},{"$f":"VLOOKUP(N98,'Data order'!M:O,3,0)","v":{"$error":"#N/A"}},null,null,null,{"$f":"IFERROR(\n  IF(R98=\"Big&Tall\",\n      VLOOKUP(S98, 'Data order'!$AC$92:$AD$101, 2, FALSE),\n      IF(R98=\"Boordmaat\",\n          VLOOKUP(S98, 'Data order'!$AC$102:$AD$116, 2, FALSE),\n          VLOOKUP(S98, 'Data order'!$AC$2:$AD$91, 2, FALSE)\n      )\n  ),\n\"\")","v":""},null,null,null,null,"EUR",null,null,null,{"$error":"#DIV/0!"},0,0,null,"","","","","","","","","","",null,null,null,null,null,null,null,null,null,null,null,null,null,null,null,null,null,"ZWO"]
[null,null,null,null,null,{"$f":"VLOOKUP(G99,'Data order'!Z:AA,2,0)","v":{"$error":"#N/A"}},null,null,null,null,null,null,null,null,{"$f":"VLOOKUP(N99,Tabel10[[korte omschrijving]:[MCC3_CODE]],2,0)","v":{"$error":"#N/A"}},{"$f":"VLOOKUP(N99,'Data order'!M:O,3,0)","v":{"$error":"#N/A"}},null,null,null,{"$f":"IFERROR(\n  IF(R99=\"Big&Tall\",\n      VLOOKUP(S99, 'Data order'!$AC$92:$AD$101, 2, FALSE),\n      IF(R99=\"Boordmaat\",\n          VLOOKUP(S99, 'Data order'!$AC$102:$AD$116, 2, FALSE),\n          VLOOKUP(S99, 'Data order'!$AC$2:$AD$91, 2, FALSE)\n      )\n  ),\n\"\")","v":""},null,null,null,null,"EUR",null,null,null,{"$error":"#DIV/0!"},0,0,null,"","","","","","","","","","",null,null,null,null,null,null,null,null,null,null,null,null,null,null,null,null,null,"ZWO"]
[null,null,null,null,null,{"$f":"VLOOKUP(G100,'Data order'!Z:AA,2,0)","v":{"$error":"#N/A"}},null,null,null,null,null,null,null,null,{"$f":"VLOOKUP(N100,Tabel10[[korte omschrijving]:[MCC3_CODE]],2,0)","v":{"$error":"#N/A"}},{"$f":"VLOOKUP(N100,'Data order'!M:O,3,0)","v":{"$error":"#N/A"}},null,null,null,{"$f":"IFERROR(\n  IF(R100=\"Big&Tall\",\n      VLOOKUP(S100, 'Data order'!$AC$92:$AD$101, 2, FALSE),\n      IF(R100=\"Boordmaat\",\n          VLOOKUP(S100, 'Data order'!$AC$102:$AD$116, 2, FALSE),\n          VLOOKUP(S100, 'Data order'!$AC$2:$AD$91, 2, FALSE)\n      )\n  ),\n\"\")","v":""},null,null,null,null,"EUR",null,null,null,{"$error":"#DIV/0!"},0,0,null,"","","","","","","","","","",null,null,null,null,null,null,null,null,null,null,null,null,null,null,null,null,null,"ZWO"]
[null,null,null,null,null,{"$f":"VLOOKUP(G101,'Data order'!Z:AA,2,0)","v":{"$error":"#N/A"}},null,null,null,null,null,null,null,null,{"$f":"VLOOKUP(N101,Tabel10[[korte omschrijving]:[MCC3_CODE]],2,0)","v":{"$error":"#N/A"}},{"$f":"VLOOKUP(N101,'Data order'!M:O,3,0)","v":{"$error":"#N/A"}},null,null,null,{"$f":"IFERROR(\n  IF(R101=\"Big&Tall\",\n      VLOOKUP(S101, 'Data order'!$AC$92:$AD$101, 2, FALSE),\n      IF(R101=\"Boordmaat\",\n          VLOOKUP(S101, 'Data order'!$AC$102:$AD$116, 2, FALSE),\n          VLOOKUP(S101, 'Data order'!$AC$2:$AD$91, 2, FALSE)\n      )\n  ),\n\"\")","v":""},null,null,null,null,"EUR",null,null,null,{"$error":"#DIV/0!"},0,0,null,"","","","","","","","","","",null,null,null,null,null,null,null,null,null,null,null,null,null,null,null,null,null,"ZWO"]
[null,null,null,null,null,{"$f":"VLOOKUP(G102,'Data order'!Z:AA,2,0)","v":{"$error":"#N/A"}},null,null,null,null,null,null,null,null,{"$f":"VLOOKUP(N102,Tabel10[[korte omschrijving]:[MCC3_CODE]],2,0)","v":{"$error":"#N/A"}},{"$f":"VLOOKUP(N102,'Data order'!M:O,3,0)","v":{"$error":"#N/A"}},null,null,null,{"$f":"IFERROR(\n  IF(R102=\"Big&Tall\",\n      VLOOKUP(S102, 'Data order'!$AC$92:$AD$101, 2, FALSE),\n      IF(R102=\"Boordmaat\",\n          VLOOKUP(S102, 'Data order'!$AC$102:$AD$116, 2, FALSE),\n          VLOOKUP(S102, 'Data order'!$AC$2:$AD$91, 2, FALSE)\n      )\n  ),\n\"\")","v":""},null,{"$f":"SUM(U102:U107)","v":0},null,null,"EUR",null,null,null,{"$error":"#DIV/0!"},0,0,null,"","","","","","","","","","",null,null,null,null,null,null,null,null,null,null,null,null,null,null,null,null,null,"ZWO"]
[null,null,null,null,null,{"$f":"VLOOKUP(G103,'Data order'!Z:AA,2,0)","v":{"$error":"#N/A"}},null,null,null,null,null,null,null,null,{"$f":"VLOOKUP(N103,Tabel10[[korte omschrijving]:[MCC3_CODE]],2,0)","v":{"$error":"#N/A"}},{"$f":"VLOOKUP(N103,'Data order'!M:O,3,0)","v":{"$error":"#N/A"}},null,null,null,{"$f":"IFERROR(\n  IF(R103=\"Big&Tall\",\n      VLOOKUP(S103, 'Data order'!$AC$92:$AD$101, 2, FALSE),\n      IF(R103=\"Boordmaat\",\n          VLOOKUP(S103, 'Data order'!$AC$102:$AD$116, 2, FALSE),\n          VLOOKUP(S103, 'Data order'!$AC$2:$AD$91, 2, FALSE)\n      )\n  ),\n\"\")","v":""},null,null,null,null,"EUR",null,null,null,{"$error":"#DIV/0!"},0,0,null,"","","","","","","","","","",null,null,null,null,null,null,null,null,null,null,null,null,null,null,null,null,null,"ZWO"]
[null,null,null,null,null,{"$f":"VLOOKUP(G104,'Data order'!Z:AA,2,0)","v":{"$error":"#N/A"}},null,null,null,null,null,null,null,null,{"$f":"VLOOKUP(N104,Tabel10[[korte omschrijving]:[MCC3_CODE]],2,0)","v":{"$error":"#N/A"}},{"$f":"VLOOKUP(N104,'Data order'!M:O,3,0)","v":{"$error":"#N/A"}},null,null,null,{"$f":"IFERROR(\n  IF(R104=\"Big&Tall\",\n      VLOOKUP(S104, 'Data order'!$AC$92:$AD$101, 2, FALSE),\n      IF(R104=\"Boordmaat\",\n          VLOOKUP(S104, 'Data order'!$AC$102:$AD$116, 2, FALSE),\n          VLOOKUP(S104, 'Data order'!$AC$2:$AD$91, 2, FALSE)\n      )\n  ),\n\"\")","v":""},null,null,null,null,"EUR",null,null,null,{"$error":"#DIV/0!"},0,0,null,"","","","","","","","","","",null,null,null,null,null,null,null,null,null,null,null,null,null,null,null,null,null,"ZWO"]
[null,null,null,null,null,{"$f":"VLOOKUP(G105,'Data order'!Z:AA,2,0)","v":{"$error":"#N/A"}},null,null,null,null,null,null,null,null,{"$f":"VLOOKUP(N105,Tabel10[[korte omschrijving]:[MCC3_CODE]],2,0)","v":{"$error":"#N/A"}},{"$f":"VLOOKUP(N105,'Data order'!M:O,3,0)","v":{"$error":"#N/A"}},null,null,null,{"$f":"IFERROR(\n  IF(R105=\"Big&Tall\",\n      VLOOKUP(S105, 'Data order'!$AC$92:$AD$101, 2, FALSE),\n      IF(R105=\"Boordmaat\",\n          VLOOKUP(S105, 'Data order'!$AC$102:$AD$116, 2, FALSE),\n          VLOOKUP(S105, 'Data order'!$AC$2:$AD$91, 2, FALSE)\n      )\n  ),\n\"\")","v":""},null,null,null,null,"EUR",null,null,null,{"$error":"#DIV/0!"},0,0,null,"","","","","","","","","","",null,null,null,null,null,null,null,null,null,null,null,null,null,null,null,null,null,"ZWO"]
[null,null,null,null,null,{"$f":"VLOOKUP(G106,'Data order'!Z:AA,2,0)","v":{"$error":"#N/A"}},null,null,null,null,null,null,null,null,{"$f":"VLOOKUP(N106,Tabel10[[korte omschrijving]:[MCC3_CODE]],2,0)","v":{"$error":"#N/A"}},{"$f":"VLOOKUP(N106,'Data order'!M:O,3,0)","v":{"$error":"#N/A"}},null,null,null,{"$f":"IFERROR(\n  IF(R106=\"Big&Tall\",\n      VLOOKUP(S106, 'Data order'!$AC$92:$AD$101, 2, FALSE),\n      IF(R106=\"Boordmaat\",\n          VLOOKUP(S106, 'Data order'!$AC$102:$AD$116, 2, FALSE),\n          VLOOKUP(S106, 'Data order'!$AC$2:$AD$91, 2, FALSE)\n      )\n  ),\n\"\")","v":""},null,null,null,null,"EUR",null,null,null,{"$error":"#DIV/0!"},0,0,null,"","","","","","","","","","",null,null,null,null,null,null,null,null,null,null,null,null,null,null,null,null,null,"ZWO"]
[null,null,null,null,null,{"$f":"VLOOKUP(G107,'Data order'!Z:AA,2,0)","v":{"$error":"#N/A"}},null,null,null,null,null,null,null,null,{"$f":"VLOOKUP(N107,Tabel10[[korte omschrijving]:[MCC3_CODE]],2,0)","v":{"$error":"#N/A"}},{"$f":"VLOOKUP(N107,'Data order'!M:O,3,0)","v":{"$error":"#N/A"}},null,null,null,{"$f":"IFERROR(\n  IF(R107=\"Big&Tall\",\n      VLOOKUP(S107, 'Data order'!$AC$92:$AD$101, 2, FALSE),\n      IF(R107=\"Boordmaat\",\n          VLOOKUP(S107, 'Data order'!$AC$102:$AD$116, 2, FALSE),\n          VLOOKUP(S107, 'Data order'!$AC$2:$AD$91, 2, FALSE)\n      )\n  ),\n\"\")","v":""},null,null,null,null,"EUR",null,null,null,{"$error":"#DIV/0!"},0,0,null,"","","","","","","","","","",null,null,null,null,null,null,null,null,null,null,null,null,null,null,null,null,null,"ZWO"]
[null,null,null,null,null,{"$f":"VLOOKUP(G108,'Data order'!Z:AA,2,0)","v":{"$error":"#N/A"}},null,null,null,null,null,null,null,null,{"$f":"VLOOKUP(N108,Tabel10[[korte omschrijving]:[MCC3_CODE]],2,0)","v":{"$error":"#N/A"}},{"$f":"VLOOKUP(N108,'Data order'!M:O,3,0)","v":{"$error":"#N/A"}},null,null,null,{"$f":"IFERROR(\n  IF(R108=\"Big&Tall\",\n      VLOOKUP(S108, 'Data order'!$AC$92:$AD$101, 2, FALSE),\n      IF(R108=\"Boordmaat\",\n          VLOOKUP(S108, 'Data order'!$AC$102:$AD$116, 2, FALSE),\n          VLOOKUP(S108, 'Data order'!$AC$2:$AD$91, 2, FALSE)\n      )\n  ),\n\"\")","v":""},null,{"$f":"SUM(U108:U113)","v":0},null,null,"EUR",null,null,null,{"$error":"#DIV/0!"},0,0,null,"","","","","","","","","","",null,null,null,null,null,null,null,null,null,null,null,null,null,null,null,null,null,"ZWO"]
[null,null,null,null,null,{"$f":"VLOOKUP(G109,'Data order'!Z:AA,2,0)","v":{"$error":"#N/A"}},null,null,null,null,null,null,null,null,{"$f":"VLOOKUP(N109,Tabel10[[korte omschrijving]:[MCC3_CODE]],2,0)","v":{"$error":"#N/A"}},{"$f":"VLOOKUP(N109,'Data order'!M:O,3,0)","v":{"$error":"#N/A"}},null,null,null,{"$f":"IFERROR(\n  IF(R109=\"Big&Tall\",\n      VLOOKUP(S109, 'Data order'!$AC$92:$AD$101, 2, FALSE),\n      IF(R109=\"Boordmaat\",\n          VLOOKUP(S109, 'Data order'!$AC$102:$AD$116, 2, FALSE),\n          VLOOKUP(S109, 'Data order'!$AC$2:$AD$91, 2, FALSE)\n      )\n  ),\n\"\")","v":""},null,null,null,null,"EUR",null,null,null,{"$error":"#DIV/0!"},0,0,null,"","","","","","","","","","",null,null,null,null,null,null,null,null,null,null,null,null,null,null,null,null,null,"ZWO"]
[null,null,null,null,null,{"$f":"VLOOKUP(G110,'Data order'!Z:AA,2,0)","v":{"$error":"#N/A"}},null,null,null,null,null,null,null,null,{"$f":"VLOOKUP(N110,Tabel10[[korte omschrijving]:[MCC3_CODE]],2,0)","v":{"$error":"#N/A"}},{"$f":"VLOOKUP(N110,'Data order'!M:O,3,0)","v":{"$error":"#N/A"}},null,null,null,{"$f":"IFERROR(\n  IF(R110=\"Big&Tall\",\n      VLOOKUP(S110, 'Data order'!$AC$92:$AD$101, 2, FALSE),\n      IF(R110=\"Boordmaat\",\n          VLOOKUP(S110, 'Data order'!$AC$102:$AD$116, 2, FALSE),\n          VLOOKUP(S110, 'Data order'!$AC$2:$AD$91, 2, FALSE)\n      )\n  ),\n\"\")","v":""},null,null,null,null,"EUR",null,null,null,{"$error":"#DIV/0!"},0,0,null,"","","","","","","","","","",null,null,null,null,null,null,null,null,null,null,null,null,null,null,null,null,null,"ZWO"]
[null,null,null,null,null,{"$f":"VLOOKUP(G111,'Data order'!Z:AA,2,0)","v":{"$error":"#N/A"}},null,null,null,null,null,null,null,null,{"$f":"VLOOKUP(N111,Tabel10[[korte omschrijving]:[MCC3_CODE]],2,0)","v":{"$error":"#N/A"}},{"$f":"VLOOKUP(N111,'Data order'!M:O,3,0)","v":{"$error":"#N/A"}},null,null,null,{"$f":"IFERROR(\n  IF(R111=\"Big&Tall\",\n      VLOOKUP(S111, 'Data order'!$AC$92:$AD$101, 2, FALSE),\n      IF(R111=\"Boordmaat\",\n          VLOOKUP(S111, 'Data order'!$AC$102:$AD$116, 2, FALSE),\n          VLOOKUP(S111, 'Data order'!$AC$2:$AD$91, 2, FALSE)\n      )\n  ),\n\"\")","v":""},null,null,null,null,"EUR",null,null,null,{"$error":"#DIV/0!"},0,0,null,"","","","","","","","","","",null,null,null,null,null,null,null,null,null,null,null,null,null,null,null,null,null,"ZWO"]
[null,null,null,null,null,{"$f":"VLOOKUP(G112,'Data order'!Z:AA,2,0)","v":{"$error":"#N/A"}},null,null,null,null,null,null,null,null,{"$f":"VLOOKUP(N112,Tabel10[[korte omschrijving]:[MCC3_CODE]],2,0)","v":{"$error":"#N/A"}},{"$f":"VLOOKUP(N112,'Data order'!M:O,3,0)","v":{"$error":"#N/A"}},null,null,null,{"$f":"IFERROR(\n  IF(R112=\"Big&Tall\",\n      VLOOKUP(S112, 'Data order'!$AC$92:$AD$101, 2, FALSE),\n      IF(R112=\"Boordmaat\",\n          VLOOKUP(S112, 'Data order'!$AC$102:$AD$116, 2, FALSE),\n          VLOOKUP(S112, 'Data order'!$AC$2:$AD$91, 2, FALSE)\n      )\n  ),\n\"\")","v":""},null,null,null,null,"EUR",null,null,null,{"$error":"#DIV/0!"},0,0,null,"","","","","","","","","","",null,null,null,null,null,null,null,null,null,null,null,null,null,null,null,null,null,"ZWO"]
[null,null,null,null,null,{"$f":"VLOOKUP(G113,'Data order'!Z:AA,2,0)","v":{"$error":"#N/A"}},null,null,null,null,null,null,null,null,{"$f":"VLOOKUP(N113,Tabel10[[korte omschrijving]:[MCC3_CODE]],2,0)","v":{"$error":"#N/A"}},{"$f":"VLOOKUP(N113,'Data order'!M:O,3,0)","v":{"$error":"#N/A"}},null,null,null,{"$f":"IFERROR(\n  IF(R113=\"Big&Tall\",\n      VLOOKUP(S113, 'Data order'!$AC$92:$AD$101, 2, FALSE),\n      IF(R113=\"Boordmaat\",\n          VLOOKUP(S113, 'Data order'!$AC$102:$AD$116, 2, FALSE),\n          VLOOKUP(S113, 'Data order'!$AC$2:$AD$91, 2, FALSE)\n      )\n  ),\n\"\")","v":""},null,null,null,null,"EUR",null,null,null,{"$error":"#DIV/0!"},0,0,null,"","","","","","","","","","",null,null,null,null,null,null,null,null,null,null,null,null,null,null,null,null,null,"ZWO"]
[null,null,null,null,null,{"$f":"VLOOKUP(G114,'Data order'!Z:AA,2,0)","v":{"$error":"#N/A"}},null,null,null,null,null,null,null,null,{"$f":"VLOOKUP(N114,Tabel10[[korte omschrijving]:[MCC3_CODE]],2,0)","v":{"$error":"#N/A"}},{"$f":"VLOOKUP(N114,'Data order'!M:O,3,0)","v":{"$error":"#N/A"}},null,null,null,{"$f":"IFERROR(\n  IF(R114=\"Big&Tall\",\n      VLOOKUP(S114, 'Data order'!$AC$92:$AD$101, 2, FALSE),\n      IF(R114=\"Boordmaat\",\n          VLOOKUP(S114, 'Data order'!$AC$102:$AD$116, 2, FALSE),\n          VLOOKUP(S114, 'Data order'!$AC$2:$AD$91, 2, FALSE)\n      )\n  ),\n\"\")","v":""},null,{"$f":"SUM(U114:U119)","v":0},null,null,"EUR",null,null,null,{"$error":"#DIV/0!"},0,0,null,"","","","","","","","","","",null,null,null,null,null,null,null,null,null,null,null,null,null,null,null,null,null,"ZWO"]
[null,null,null,null,null,{"$f":"VLOOKUP(G115,'Data order'!Z:AA,2,0)","v":{"$error":"#N/A"}},null,null,null,null,null,null,null,null,{"$f":"VLOOKUP(N115,Tabel10[[korte omschrijving]:[MCC3_CODE]],2,0)","v":{"$error":"#N/A"}},{"$f":"VLOOKUP(N115,'Data order'!M:O,3,0)","v":{"$error":"#N/A"}},null,null,null,{"$f":"IFERROR(\n  IF(R115=\"Big&Tall\",\n      VLOOKUP(S115, 'Data order'!$AC$92:$AD$101, 2, FALSE),\n      IF(R115=\"Boordmaat\",\n          VLOOKUP(S115, 'Data order'!$AC$102:$AD$116, 2, FALSE),\n          VLOOKUP(S115, 'Data order'!$AC$2:$AD$91, 2, FALSE)\n      )\n  ),\n\"\")","v":""},null,null,null,null,"EUR",null,null,null,{"$error":"#DIV/0!"},0,0,null,"","","","","","","","","","",null,null,null,null,null,null,null,null,null,null,null,null,null,null,null,null,null,"ZWO"]
[null,null,null,null,null,{"$f":"VLOOKUP(G116,'Data order'!Z:AA,2,0)","v":{"$error":"#N/A"}},null,null,null,null,null,null,null,null,{"$f":"VLOOKUP(N116,Tabel10[[korte omschrijving]:[MCC3_CODE]],2,0)","v":{"$error":"#N/A"}},{"$f":"VLOOKUP(N116,'Data order'!M:O,3,0)","v":{"$error":"#N/A"}},null,null,null,{"$f":"IFERROR(\n  IF(R116=\"Big&Tall\",\n      VLOOKUP(S116, 'Data order'!$AC$92:$AD$101, 2, FALSE),\n      IF(R116=\"Boordmaat\",\n          VLOOKUP(S116, 'Data order'!$AC$102:$AD$116, 2, FALSE),\n          VLOOKUP(S116, 'Data order'!$AC$2:$AD$91, 2, FALSE)\n      )\n  ),\n\"\")","v":""},null,null,null,null,"EUR",null,null,null,{"$error":"#DIV/0!"},0,0,null,"","","","","","","","","","",null,null,null,null,null,null,null,null,null,null,null,null,null,null,null,null,null,"ZWO"]
[null,null,null,null,null,{"$f":"VLOOKUP(G117,'Data order'!Z:AA,2,0)","v":{"$error":"#N/A"}},null,null,null,null,null,null,null,null,{"$f":"VLOOKUP(N117,Tabel10[[korte omschrijving]:[MCC3_CODE]],2,0)","v":{"$error":"#N/A"}},{"$f":"VLOOKUP(N117,'Data order'!M:O,3,0)","v":{"$error":"#N/A"}},null,null,null,{"$f":"IFERROR(\n  IF(R117=\"Big&Tall\",\n      VLOOKUP(S117, 'Data order'!$AC$92:$AD$101, 2, FALSE),\n      IF(R117=\"Boordmaat\",\n          VLOOKUP(S117, 'Data order'!$AC$102:$AD$116, 2, FALSE),\n          VLOOKUP(S117, 'Data order'!$AC$2:$AD$91, 2, FALSE)\n      )\n  ),\n\"\")","v":""},null,null,null,null,"EUR",null,null,null,{"$error":"#DIV/0!"},0,0,null,"","","","","","","","","","",null,null,null,null,null,null,null,null,null,null,null,null,null,null,null,null,null,"ZWO"]
[null,null,null,null,null,{"$f":"VLOOKUP(G118,'Data order'!Z:AA,2,0)","v":{"$error":"#N/A"}},null,null,null,null,null,null,null,null,{"$f":"VLOOKUP(N118,Tabel10[[korte omschrijving]:[MCC3_CODE]],2,0)","v":{"$error":"#N/A"}},{"$f":"VLOOKUP(N118,'Data order'!M:O,3,0)","v":{"$error":"#N/A"}},null,null,null,{"$f":"IFERROR(\n  IF(R118=\"Big&Tall\",\n      VLOOKUP(S118, 'Data order'!$AC$92:$AD$101, 2, FALSE),\n      IF(R118=\"Boordmaat\",\n          VLOOKUP(S118, 'Data order'!$AC$102:$AD$116, 2, FALSE),\n          VLOOKUP(S118, 'Data order'!$AC$2:$AD$91, 2, FALSE)\n      )\n  ),\n\"\")","v":""},null,null,null,null,"EUR",null,null,null,{"$error":"#DIV/0!"},0,0,null,"","","","","","","","","","",null,null,null,null,null,null,null,null,null,null,null,null,null,null,null,null,null,"ZWO"]
[null,null,null,null,null,{"$f":"VLOOKUP(G119,'Data order'!Z:AA,2,0)","v":{"$error":"#N/A"}},null,null,null,null,null,null,null,null,{"$f":"VLOOKUP(N119,Tabel10[[korte omschrijving]:[MCC3_CODE]],2,0)","v":{"$error":"#N/A"}},{"$f":"VLOOKUP(N119,'Data order'!M:O,3,0)","v":{"$error":"#N/A"}},null,null,null,{"$f":"IFERROR(\n  IF(R119=\"Big&Tall\",\n      VLOOKUP(S119, 'Data order'!$AC$92:$AD$101, 2, FALSE),\n      IF(R119=\"Boordmaat\",\n          VLOOKUP(S119, 'Data order'!$AC$102:$AD$116, 2, FALSE),\n          VLOOKUP(S119, 'Data order'!$AC$2:$AD$91, 2, FALSE)\n      )\n  ),\n\"\")","v":""},null,null,null,null,"EUR",null,null,null,{"$error":"#DIV/0!"},0,0,null,"","","","","","","","","","",null,null,null,null,null,null,null,null,null,null,null,null,null,null,null,null,null,"ZWO"]
[null,null,null,null,null,{"$f":"VLOOKUP(G120,'Data order'!Z:AA,2,0)","v":{"$error":"#N/A"}},null,null,null,null,null,null,null,null,{"$f":"VLOOKUP(N120,Tabel10[[korte omschrijving]:[MCC3_CODE]],2,0)","v":{"$error":"#N/A"}},{"$f":"VLOOKUP(N120,'Data order'!M:O,3,0)","v":{"$error":"#N/A"}},null,null,null,{"$f":"IFERROR(\n  IF(R120=\"Big&Tall\",\n      VLOOKUP(S120, 'Data order'!$AC$92:$AD$101, 2, FALSE),\n      IF(R120=\"Boordmaat\",\n          VLOOKUP(S120, 'Data order'!$AC$102:$AD$116, 2, FALSE),\n          VLOOKUP(S120, 'Data order'!$AC$2:$AD$91, 2, FALSE)\n      )\n  ),\n\"\")","v":""},null,{"$f":"SUM(U120:U125)","v":0},null,null,"EUR",null,null,null,{"$error":"#DIV/0!"},0,0,null,"","","","","","","","","","",null,null,null,null,null,null,null,null,null,null,null,null,null,null,null,null,null,"ZWO"]
[null,null,null,null,null,{"$f":"VLOOKUP(G121,'Data order'!Z:AA,2,0)","v":{"$error":"#N/A"}},null,null,null,null,null,null,null,null,{"$f":"VLOOKUP(N121,Tabel10[[korte omschrijving]:[MCC3_CODE]],2,0)","v":{"$error":"#N/A"}},{"$f":"VLOOKUP(N121,'Data order'!M:O,3,0)","v":{"$error":"#N/A"}},null,null,null,{"$f":"IFERROR(\n  IF(R121=\"Big&Tall\",\n      VLOOKUP(S121, 'Data order'!$AC$92:$AD$101, 2, FALSE),\n      IF(R121=\"Boordmaat\",\n          VLOOKUP(S121, 'Data order'!$AC$102:$AD$116, 2, FALSE),\n          VLOOKUP(S121, 'Data order'!$AC$2:$AD$91, 2, FALSE)\n      )\n  ),\n\"\")","v":""},null,null,null,null,"EUR",null,null,null,{"$error":"#DIV/0!"},0,0,null,"","","","","","","","","","",null,null,null,null,null,null,null,null,null,null,null,null,null,null,null,null,null,"ZWO"]
[null,null,null,null,null,{"$f":"VLOOKUP(G122,'Data order'!Z:AA,2,0)","v":{"$error":"#N/A"}},null,null,null,null,null,null,null,null,{"$f":"VLOOKUP(N122,Tabel10[[korte omschrijving]:[MCC3_CODE]],2,0)","v":{"$error":"#N/A"}},{"$f":"VLOOKUP(N122,'Data order'!M:O,3,0)","v":{"$error":"#N/A"}},null,null,null,{"$f":"IFERROR(\n  IF(R122=\"Big&Tall\",\n      VLOOKUP(S122, 'Data order'!$AC$92:$AD$101, 2, FALSE),\n      IF(R122=\"Boordmaat\",\n          VLOOKUP(S122, 'Data order'!$AC$102:$AD$116, 2, FALSE),\n          VLOOKUP(S122, 'Data order'!$AC$2:$AD$91, 2, FALSE)\n      )\n  ),\n\"\")","v":""},null,null,null,null,"EUR",null,null,null,{"$error":"#DIV/0!"},0,0,null,"","","","","","","","","","",null,null,null,null,null,null,null,null,null,null,null,null,null,null,null,null,null,"ZWO"]
[null,null,null,null,null,{"$f":"VLOOKUP(G123,'Data order'!Z:AA,2,0)","v":{"$error":"#N/A"}},null,null,null,null,null,null,null,null,{"$f":"VLOOKUP(N123,Tabel10[[korte omschrijving]:[MCC3_CODE]],2,0)","v":{"$error":"#N/A"}},{"$f":"VLOOKUP(N123,'Data order'!M:O,3,0)","v":{"$error":"#N/A"}},null,null,null,{"$f":"IFERROR(\n  IF(R123=\"Big&Tall\",\n      VLOOKUP(S123, 'Data order'!$AC$92:$AD$101, 2, FALSE),\n      IF(R123=\"Boordmaat\",\n          VLOOKUP(S123, 'Data order'!$AC$102:$AD$116, 2, FALSE),\n          VLOOKUP(S123, 'Data order'!$AC$2:$AD$91, 2, FALSE)\n      )\n  ),\n\"\")","v":""},null,null,null,null,"EUR",null,null,null,{"$error":"#DIV/0!"},0,0,null,"","","","","","","","","","",null,null,null,null,null,null,null,null,null,null,null,null,null,null,null,null,null,"ZWO"]
[null,null,null,null,null,{"$f":"VLOOKUP(G124,'Data order'!Z:AA,2,0)","v":{"$error":"#N/A"}},null,null,null,null,null,null,null,null,{"$f":"VLOOKUP(N124,Tabel10[[korte omschrijving]:[MCC3_CODE]],2,0)","v":{"$error":"#N/A"}},{"$f":"VLOOKUP(N124,'Data order'!M:O,3,0)","v":{"$error":"#N/A"}},null,null,null,{"$f":"IFERROR(\n  IF(R124=\"Big&Tall\",\n      VLOOKUP(S124, 'Data order'!$AC$92:$AD$101, 2, FALSE),\n      IF(R124=\"Boordmaat\",\n          VLOOKUP(S124, 'Data order'!$AC$102:$AD$116, 2, FALSE),\n          VLOOKUP(S124, 'Data order'!$AC$2:$AD$91, 2, FALSE)\n      )\n  ),\n\"\")","v":""},null,null,null,null,"EUR",null,null,null,{"$error":"#DIV/0!"},0,0,null,"","","","","","","","","","",null,null,null,null,null,null,null,null,null,null,null,null,null,null,null,null,null,"ZWO"]
[null,null,null,null,null,{"$f":"VLOOKUP(G125,'Data order'!Z:AA,2,0)","v":{"$error":"#N/A"}},null,null,null,null,null,null,null,null,{"$f":"VLOOKUP(N125,Tabel10[[korte omschrijving]:[MCC3_CODE]],2,0)","v":{"$error":"#N/A"}},{"$f":"VLOOKUP(N125,'Data order'!M:O,3,0)","v":{"$error":"#N/A"}},null,null,null,{"$f":"IFERROR(\n  IF(R125=\"Big&Tall\",\n      VLOOKUP(S125, 'Data order'!$AC$92:$AD$101, 2, FALSE),\n      IF(R125=\"Boordmaat\",\n          VLOOKUP(S125, 'Data order'!$AC$102:$AD$116, 2, FALSE),\n          VLOOKUP(S125, 'Data order'!$AC$2:$AD$91, 2, FALSE)\n      )\n  ),\n\"\")","v":""},null,null,null,null,"EUR",null,null,null,{"$error":"#DIV/0!"},0,0,null,"","","","","","","","","","",null,null,null,null,null,null,null,null,null,null,null,null,null,null,null,null,null,"ZWO"]
[null,null,null,null,null,{"$f":"VLOOKUP(G126,'Data order'!Z:AA,2,0)","v":{"$error":"#N/A"}},null,null,null,null,null,null,null,null,{"$f":"VLOOKUP(N126,Tabel10[[korte omschrijving]:[MCC3_CODE]],2,0)","v":{"$error":"#N/A"}},{"$f":"VLOOKUP(N126,'Data order'!M:O,3,0)","v":{"$error":"#N/A"}},null,null,null,{"$f":"IFERROR(\n  IF(R126=\"Big&Tall\",\n      VLOOKUP(S126, 'Data order'!$AC$92:$AD$101, 2, FALSE),\n      IF(R126=\"Boordmaat\",\n          VLOOKUP(S126, 'Data order'!$AC$102:$AD$116, 2, FALSE),\n          VLOOKUP(S126, 'Data order'!$AC$2:$AD$91, 2, FALSE)\n      )\n  ),\n\"\")","v":""},null,{"$f":"SUM(U126:U131)","v":0},null,null,"EUR",null,null,null,{"$error":"#DIV/0!"},0,0,null,"","","","","","","","","","",null,null,null,null,null,null,null,null,null,null,null,null,null,null,null,null,null,"ZWO"]
[null,null,null,null,null,{"$f":"VLOOKUP(G127,'Data order'!Z:AA,2,0)","v":{"$error":"#N/A"}},null,null,null,null,null,null,null,null,{"$f":"VLOOKUP(N127,Tabel10[[korte omschrijving]:[MCC3_CODE]],2,0)","v":{"$error":"#N/A"}},{"$f":"VLOOKUP(N127,'Data order'!M:O,3,0)","v":{"$error":"#N/A"}},null,null,null,{"$f":"IFERROR(\n  IF(R127=\"Big&Tall\",\n      VLOOKUP(S127, 'Data order'!$AC$92:$AD$101, 2, FALSE),\n      IF(R127=\"Boordmaat\",\n          VLOOKUP(S127, 'Data order'!$AC$102:$AD$116, 2, FALSE),\n          VLOOKUP(S127, 'Data order'!$AC$2:$AD$91, 2, FALSE)\n      )\n  ),\n\"\")","v":""},null,null,null,null,"EUR",null,null,null,{"$error":"#DIV/0!"},0,0,null,"","","","","","","","","","",null,null,null,null,null,null,null,null,null,null,null,null,null,null,null,null,null,"ZWO"]
[null,null,null,null,null,{"$f":"VLOOKUP(G128,'Data order'!Z:AA,2,0)","v":{"$error":"#N/A"}},null,null,null,null,null,null,null,null,{"$f":"VLOOKUP(N128,Tabel10[[korte omschrijving]:[MCC3_CODE]],2,0)","v":{"$error":"#N/A"}},{"$f":"VLOOKUP(N128,'Data order'!M:O,3,0)","v":{"$error":"#N/A"}},null,null,null,{"$f":"IFERROR(\n  IF(R128=\"Big&Tall\",\n      VLOOKUP(S128, 'Data order'!$AC$92:$AD$101, 2, FALSE),\n      IF(R128=\"Boordmaat\",\n          VLOOKUP(S128, 'Data order'!$AC$102:$AD$116, 2, FALSE),\n          VLOOKUP(S128, 'Data order'!$AC$2:$AD$91, 2, FALSE)\n      )\n  ),\n\"\")","v":""},null,null,null,null,"EUR",null,null,null,{"$error":"#DIV/0!"},0,0,null,"","","","","","","","","","",null,null,null,null,null,null,null,null,null,null,null,null,null,null,null,null,null,"ZWO"]
[null,null,null,null,null,{"$f":"VLOOKUP(G129,'Data order'!Z:AA,2,0)","v":{"$error":"#N/A"}},null,null,null,null,null,null,null,null,{"$f":"VLOOKUP(N129,Tabel10[[korte omschrijving]:[MCC3_CODE]],2,0)","v":{"$error":"#N/A"}},{"$f":"VLOOKUP(N129,'Data order'!M:O,3,0)","v":{"$error":"#N/A"}},null,null,null,{"$f":"IFERROR(\n  IF(R129=\"Big&Tall\",\n      VLOOKUP(S129, 'Data order'!$AC$92:$AD$101, 2, FALSE),\n      IF(R129=\"Boordmaat\",\n          VLOOKUP(S129, 'Data order'!$AC$102:$AD$116, 2, FALSE),\n          VLOOKUP(S129, 'Data order'!$AC$2:$AD$91, 2, FALSE)\n      )\n  ),\n\"\")","v":""},null,null,null,null,"EUR",null,null,null,{"$error":"#DIV/0!"},0,0,null,"","","","","","","","","","",null,null,null,null,null,null,null,null,null,null,null,null,null,null,null,null,null,"ZWO"]
[null,null,null,null,null,{"$f":"VLOOKUP(G130,'Data order'!Z:AA,2,0)","v":{"$error":"#N/A"}},null,null,null,null,null,null,null,null,{"$f":"VLOOKUP(N130,Tabel10[[korte omschrijving]:[MCC3_CODE]],2,0)","v":{"$error":"#N/A"}},{"$f":"VLOOKUP(N130,'Data order'!M:O,3,0)","v":{"$error":"#N/A"}},null,null,null,{"$f":"IFERROR(\n  IF(R130=\"Big&Tall\",\n      VLOOKUP(S130, 'Data order'!$AC$92:$AD$101, 2, FALSE),\n      IF(R130=\"Boordmaat\",\n          VLOOKUP(S130, 'Data order'!$AC$102:$AD$116, 2, FALSE),\n          VLOOKUP(S130, 'Data order'!$AC$2:$AD$91, 2, FALSE)\n      )\n  ),\n\"\")","v":""},null,null,null,null,"EUR",null,null,null,{"$error":"#DIV/0!"},0,0,null,"","","","","","","","","","",null,null,null,null,null,null,null,null,null,null,null,null,null,null,null,null,null,"ZWO"]
[null,null,null,null,null,{"$f":"VLOOKUP(G131,'Data order'!Z:AA,2,0)","v":{"$error":"#N/A"}},null,null,null,null,null,null,null,null,{"$f":"VLOOKUP(N131,Tabel10[[korte omschrijving]:[MCC3_CODE]],2,0)","v":{"$error":"#N/A"}},{"$f":"VLOOKUP(N131,'Data order'!M:O,3,0)","v":{"$error":"#N/A"}},null,null,null,{"$f":"IFERROR(\n  IF(R131=\"Big&Tall\",\n      VLOOKUP(S131, 'Data order'!$AC$92:$AD$101, 2, FALSE),\n      IF(R131=\"Boordmaat\",\n          VLOOKUP(S131, 'Data order'!$AC$102:$AD$116, 2, FALSE),\n          VLOOKUP(S131, 'Data order'!$AC$2:$AD$91, 2, FALSE)\n      )\n  ),\n\"\")","v":""},null,null,null,null,"EUR",null,null,null,{"$error":"#DIV/0!"},0,0,null,"","","","","","","","","","",null,null,null,null,null,null,null,null,null,null,null,null,null,null,null,null,null,"ZWO"]
[null,null,null,null,null,{"$f":"VLOOKUP(G132,'Data order'!Z:AA,2,0)","v":{"$error":"#N/A"}},null,null,null,null,null,null,null,null,{"$f":"VLOOKUP(N132,Tabel10[[korte omschrijving]:[MCC3_CODE]],2,0)","v":{"$error":"#N/A"}},{"$f":"VLOOKUP(N132,'Data order'!M:O,3,0)","v":{"$error":"#N/A"}},null,null,null,{"$f":"IFERROR(\n  IF(R132=\"Big&Tall\",\n      VLOOKUP(S132, 'Data order'!$AC$92:$AD$101, 2, FALSE),\n      IF(R132=\"Boordmaat\",\n          VLOOKUP(S132, 'Data order'!$AC$102:$AD$116, 2, FALSE),\n          VLOOKUP(S132, 'Data order'!$AC$2:$AD$91, 2, FALSE)\n      )\n  ),\n\"\")","v":""},null,{"$f":"SUM(U132:U137)","v":0},null,null,"EUR",null,null,null,{"$error":"#DIV/0!"},0,0,null,"","","","","","","","","","",null,null,null,null,null,null,null,null,null,null,null,null,null,null,null,null,null,"ZWO"]
[null,null,null,null,null,{"$f":"VLOOKUP(G133,'Data order'!Z:AA,2,0)","v":{"$error":"#N/A"}},null,null,null,null,null,null,null,null,{"$f":"VLOOKUP(N133,Tabel10[[korte omschrijving]:[MCC3_CODE]],2,0)","v":{"$error":"#N/A"}},{"$f":"VLOOKUP(N133,'Data order'!M:O,3,0)","v":{"$error":"#N/A"}},null,null,null,{"$f":"IFERROR(\n  IF(R133=\"Big&Tall\",\n      VLOOKUP(S133, 'Data order'!$AC$92:$AD$101, 2, FALSE),\n      IF(R133=\"Boordmaat\",\n          VLOOKUP(S133, 'Data order'!$AC$102:$AD$116, 2, FALSE),\n          VLOOKUP(S133, 'Data order'!$AC$2:$AD$91, 2, FALSE)\n      )\n  ),\n\"\")","v":""},null,null,null,null,"EUR",null,null,null,{"$error":"#DIV/0!"},0,0,null,"","","","","","","","","","",null,null,null,null,null,null,null,null,null,null,null,null,null,null,null,null,null,"ZWO"]
[null,null,null,null,null,{"$f":"VLOOKUP(G134,'Data order'!Z:AA,2,0)","v":{"$error":"#N/A"}},null,null,null,null,null,null,null,null,{"$f":"VLOOKUP(N134,Tabel10[[korte omschrijving]:[MCC3_CODE]],2,0)","v":{"$error":"#N/A"}},{"$f":"VLOOKUP(N134,'Data order'!M:O,3,0)","v":{"$error":"#N/A"}},null,null,null,{"$f":"IFERROR(\n  IF(R134=\"Big&Tall\",\n      VLOOKUP(S134, 'Data order'!$AC$92:$AD$101, 2, FALSE),\n      IF(R134=\"Boordmaat\",\n          VLOOKUP(S134, 'Data order'!$AC$102:$AD$116, 2, FALSE),\n          VLOOKUP(S134, 'Data order'!$AC$2:$AD$91, 2, FALSE)\n      )\n  ),\n\"\")","v":""},null,null,null,null,"EUR",null,null,null,{"$error":"#DIV/0!"},0,0,null,"","","","","","","","","","",null,null,null,null,null,null,null,null,null,null,null,null,null,null,null,null,null,"ZWO"]
[null,null,null,null,null,{"$f":"VLOOKUP(G135,'Data order'!Z:AA,2,0)","v":{"$error":"#N/A"}},null,null,null,null,null,null,null,null,{"$f":"VLOOKUP(N135,Tabel10[[korte omschrijving]:[MCC3_CODE]],2,0)","v":{"$error":"#N/A"}},{"$f":"VLOOKUP(N135,'Data order'!M:O,3,0)","v":{"$error":"#N/A"}},null,null,null,{"$f":"IFERROR(\n  IF(R135=\"Big&Tall\",\n      VLOOKUP(S135, 'Data order'!$AC$92:$AD$101, 2, FALSE),\n      IF(R135=\"Boordmaat\",\n          VLOOKUP(S135, 'Data order'!$AC$102:$AD$116, 2, FALSE),\n          VLOOKUP(S135, 'Data order'!$AC$2:$AD$91, 2, FALSE)\n      )\n  ),\n\"\")","v":""},null,null,null,null,"EUR",null,null,null,{"$f":"AB135/Z135","v":{"$error":"#DIV/0!"}},{"$f":"U135*Z135","v":0},0,null,{"$f":"IF(AF135 <> \"\",\n    IF(ISNUMBER(VALUE(LEFT(AF135, FIND(\"%\", AF135)-1))),\n        VALUE(LEFT(AF135, FIND(\"%\", AF135)-1)),\n        \"Invalid format\"),\n    \"\")","v":""},{"$f":"IF(AF135 <> \"\",\n    IF(ISNUMBER(VALUE(LEFT(AF135, FIND(\"%\", AF135)-1))) * ISNUMBER(FIND(\"%\", AF135 & \"wol\")) > 0,\n        TRIM(MID(AF135, FIND(\"%\", AF135)+1, FIND(\"/\", AF135 & \"/\")-FIND(\"%\", AF135)-1)),\n        \"Invalid format\"),\n    \"\")","v":""},{"$f":"IF(AF135 <> \"\",\n    IF(ISNUMBER(VALUE(MID(AF135, FIND(\"/\", AF135) + 1, FIND(\"%\", AF135, FIND(\"/\", AF135)) - FIND(\"/\", AF135) - 1))),\n        VALUE(MID(AF135, FIND(\"/\", AF135) + 1, FIND(\"%\", AF135, FIND(\"/\", AF135)) - FIND(\"/\", AF135) - 1)),\n        \"\"),\n    \"\")","v":""},{"$f":"IF(AF135 <> \"\",\n    IFERROR(TRIM(MID(AF135, FIND(\"%\", AF135, FIND(\"/\", AF135)+1)+2,\n        IFERROR(FIND(\"/\", AF135 & \"/\", FIND(\"/\", AF135)+1)-FIND(\"%\", AF135, FIND(\"/\", AF135)+1)-2, LEN(AF135)-FIND(\"%\", AF135, FIND(\"/\", AF135)+1)-1))),\n        \"\"),\n    \"\")","v":""},{"$f":"IF(AF135 <> \"\",\n    IF(ISNUMBER(VALUE(MID(AF135, FIND(\"/\", AF135, FIND(\"/\", AF135)+1) + 1, FIND(\"%\", AF135, FIND(\"/\", AF135, FIND(\"/\", AF135)+1)) - FIND(\"/\", AF135, FIND(\"/\", AF135)+1) - 1))),\n        VALUE(MID(AF135, FIND(\"/\", AF135, FIND(\"/\", AF135)+1) + 1, FIND(\"%\", AF135, FIND(\"/\", AF135, FIND(\"/\", AF135)+1)) - FIND(\"/\", AF135, FIND(\"/\", AF135)+1) - 1)),\n        \"\"),\n    \"\")","v":""},{"$f":"IF(AF135 <> \"\",\n    IFERROR(\n        TRIM(MID(AF135,\n            FIND(\"%\", AF135, FIND(\"%\", AF135, FIND(\"%\", AF135)+1)+1)+1,\n            FIND(\"/\", AF135 & \"/\", FIND(\"%\", AF135, FIND(\"%\", AF135, FIND(\"%\", AF135)+1)+1))-FIND(\"%\", AF135, FIND(\"%\", AF135, FIND(\"%\", AF135)+1)+1)-1)\n        ),\n        \"\"\n    ),\n    \"\"\n)","v":""},{"$f":"IF(AF135 <> \"\",\n    IF(ISNUMBER(VALUE(MID(AF135, FIND(\"/\", AF135, FIND(\"/\", AF135, FIND(\"/\", AF135)+1)+1) + 1, FIND(\"%\", AF135, FIND(\"/\", AF135, FIND(\"/\", AF135, FIND(\"/\", AF135)+1)+1)) - FIND(\"/\", AF135, FIND(\"/\", AF135, FIND(\"/\", AF135)+1)+1) - 1))),\n        VALUE(MID(AF135, FIND(\"/\", AF135, FIND(\"/\", AF135, FIND(\"/\", AF135)+1)+1) + 1, FIND(\"%\", AF135, FIND(\"/\", AF135, FIND(\"/\", AF135, FIND(\"/\", AF135)+1)+1)) - FIND(\"/\", AF135, FIND(\"/\", AF135, FIND(\"/\", AF135)+1)+1) - 1)),\n        \"\"),\n    \"\")","v":""},{"$f":"IF(AF135 <> \"\",\n    IFERROR(TRIM(MID(AF135, FIND(\"%\", AF135, FIND(\"/\", AF135, FIND(\"/\", AF135, FIND(\"/\", AF135)+1)+1)+1)+2,\n        IFERROR(FIND(\"/\", AF135, FIND(\"/\", AF135, FIND(\"/\", AF135, FIND(\"/\", AF135)+1)+1)+1)-FIND(\"%\", AF135, FIND(\"/\", AF135, FIND(\"/\", AF135, FIND(\"/\", AF135)+1)+1)+1)-2, LEN(AF135)-FIND(\"%\", AF135, FIND(\"/\", AF135, FIND(\"/\", AF135, FIND(\"/\", AF135)+1)+1)+1)-1))),\n        \"\"),\n    \"\")","v":""},{"$f":"IF(AF135 <> \"\",\n    IF(ISNUMBER(VALUE(MID(AF135, FIND(\"/\", AF135, FIND(\"/\", AF135, FIND(\"/\", AF135, FIND(\"/\", AF135)+1)+1)+1) + 1, FIND(\"%\", AF135, FIND(\"/\", AF135, FIND(\"/\", AF135, FIND(\"/\", AF135, FIND(\"/\", AF135)+1)+1)+1)) - FIND(\"/\", AF135, FIND(\"/\", AF135, FIND(\"/\", AF135, FIND(\"/\", AF135)+1)+1)+1) - 1))),\n        VALUE(MID(AF135, FIND(\"/\", AF135, FIND(\"/\", AF135, FIND(\"/\", AF135, FIND(\"/\", AF135)+1)+1)+1) + 1, FIND(\"%\", AF135, FIND(\"/\", AF135, FIND(\"/\", AF135, FIND(\"/\", AF135, FIND(\"/\", AF135)+1)+1)+1)) - FIND(\"/\", AF135, FIND(\"/\", AF135, FIND(\"/\", AF135, FIND(\"/\", AF135)+1)+1)+1) - 1)),\n        \"\"),\n    \"\")","v":""},{"$f":"IF(AF135 = \"\", \"\",\n    IFERROR(TRIM(\n        MID(\n            AF135,\n            FIND(\"%\", AF135, FIND(\"/\", AF135, FIND(\"/\", AF135, FIND(\"/\", AF135, FIND(\"/\", AF135)+1)+1)+1)+1) + 1,\n            FIND(\"/\", AF135 & \"/\", FIND(\"%\", AF135, FIND(\"/\", AF135, FIND(\"/\", AF135, FIND(\"/\", AF135, FIND(\"/\", AF135)+1)+1)+1)+1)) -\n            FIND(\"%\", AF135, FIND(\"/\", AF135, FIND(\"/\", AF135, FIND(\"/\", AF135, FIND(\"/\", AF135)+1)+1)+1)+1) - 1\n        )\n    ),\n    \"\")\n)","v":""},null,null,null,null,null,null,null,null,null,null,null,null,null,null,null,null,null,"ZWO"]
[null,null,null,null,null,{"$f":"VLOOKUP(G136,'Data order'!Z:AA,2,0)","v":{"$error":"#N/A"}},null,null,null,null,null,null,null,null,{"$f":"VLOOKUP(N136,Tabel10[[korte omschrijving]:[MCC3_CODE]],2,0)","v":{"$error":"#N/A"}},{"$f":"VLOOKUP(N136,'Data order'!M:O,3,0)","v":{"$error":"#N/A"}},null,null,null,{"$f":"IFERROR(\n  IF(R136=\"Big&Tall\",\n      VLOOKUP(S136, 'Data order'!$AC$92:$AD$101, 2, FALSE),\n      IF(R136=\"Boordmaat\",\n          VLOOKUP(S136, 'Data order'!$AC$102:$AD$116, 2, FALSE),\n          VLOOKUP(S136, 'Data order'!$AC$2:$AD$91, 2, FALSE)\n      )\n  ),\n\"\")","v":""},null,null,null,null,"EUR",null,null,null,{"$error":"#DIV/0!"},0,{"$f":"U136*AB136","v":0},null,"","","","","","","","","","",null,null,null,null,null,null,null,null,null,null,null,null,null,null,null,null,null,"ZWO"]
[null,null,null,null,null,{"$f":"VLOOKUP(G137,'Data order'!Z:AA,2,0)","v":{"$error":"#N/A"}},null,null,null,null,null,null,null,null,{"$f":"VLOOKUP(N137,Tabel10[[korte omschrijving]:[MCC3_CODE]],2,0)","v":{"$error":"#N/A"}},{"$f":"VLOOKUP(N137,'Data order'!M:O,3,0)","v":{"$error":"#N/A"}},null,null,null,{"$f":"IFERROR(\n  IF(R137=\"Big&Tall\",\n      VLOOKUP(S137, 'Data order'!$AC$92:$AD$101, 2, FALSE),\n      IF(R137=\"Boordmaat\",\n          VLOOKUP(S137, 'Data order'!$AC$102:$AD$116, 2, FALSE),\n          VLOOKUP(S137, 'Data order'!$AC$2:$AD$91, 2, FALSE)\n      )\n  ),\n\"\")","v":""},null,null,null,null,"EUR",null,null,null,{"$error":"#DIV/0!"},0,0,null,"","","","","","","","","","",null,null,null,null,null,null,null,null,null,null,null,null,null,null,null,null,null,"ZWO"]
[null,null,null,null,null,{"$f":"VLOOKUP(G138,'Data order'!Z:AA,2,0)","v":{"$error":"#N/A"}},null,null,null,null,null,null,null,null,{"$f":"VLOOKUP(N138,Tabel10[[korte omschrijving]:[MCC3_CODE]],2,0)","v":{"$error":"#N/A"}},{"$f":"VLOOKUP(N138,'Data order'!M:O,3,0)","v":{"$error":"#N/A"}},null,null,null,{"$f":"IFERROR(\n  IF(R138=\"Big&Tall\",\n      VLOOKUP(S138, 'Data order'!$AC$92:$AD$101, 2, FALSE),\n      IF(R138=\"Boordmaat\",\n          VLOOKUP(S138, 'Data order'!$AC$102:$AD$116, 2, FALSE),\n          VLOOKUP(S138, 'Data order'!$AC$2:$AD$91, 2, FALSE)\n      )\n  ),\n\"\")","v":""},null,{"$f":"SUM(U138:U143)","v":0},null,null,"EUR",null,null,null,{"$error":"#DIV/0!"},0,0,null,"","","","","","","","","","",null,null,null,null,null,null,null,null,null,null,null,null,null,null,null,null,null,"ZWO"]
[null,null,null,null,null,{"$f":"VLOOKUP(G139,'Data order'!Z:AA,2,0)","v":{"$error":"#N/A"}},null,null,null,null,null,null,null,null,{"$f":"VLOOKUP(N139,Tabel10[[korte omschrijving]:[MCC3_CODE]],2,0)","v":{"$error":"#N/A"}},{"$f":"VLOOKUP(N139,'Data order'!M:O,3,0)","v":{"$error":"#N/A"}},null,null,null,{"$f":"IFERROR(\n  IF(R139=\"Big&Tall\",\n      VLOOKUP(S139, 'Data order'!$AC$92:$AD$101, 2, FALSE),\n      IF(R139=\"Boordmaat\",\n          VLOOKUP(S139, 'Data order'!$AC$102:$AD$116, 2, FALSE),\n          VLOOKUP(S139, 'Data order'!$AC$2:$AD$91, 2, FALSE)\n      )\n  ),\n\"\")","v":""},null,null,null,null,"EUR",null,null,null,{"$error":"#DIV/0!"},0,0,null,"","","","","","","","","","",null,null,null,null,null,null,null,null,null,null,null,null,null,null,null,null,null,"ZWO"]
[null,null,null,null,null,{"$f":"VLOOKUP(G140,'Data order'!Z:AA,2,0)","v":{"$error":"#N/A"}},null,null,null,null,null,null,null,null,{"$f":"VLOOKUP(N140,Tabel10[[korte omschrijving]:[MCC3_CODE]],2,0)","v":{"$error":"#N/A"}},{"$f":"VLOOKUP(N140,'Data order'!M:O,3,0)","v":{"$error":"#N/A"}},null,null,null,{"$f":"IFERROR(\n  IF(R140=\"Big&Tall\",\n      VLOOKUP(S140, 'Data order'!$AC$92:$AD$101, 2, FALSE),\n      IF(R140=\"Boordmaat\",\n          VLOOKUP(S140, 'Data order'!$AC$102:$AD$116, 2, FALSE),\n          VLOOKUP(S140, 'Data order'!$AC$2:$AD$91, 2, FALSE)\n      )\n  ),\n\"\")","v":""},null,null,null,null,"EUR",null,null,null,{"$error":"#DIV/0!"},0,0,null,"","","","","","","","","","",null,null,null,null,null,null,null,null,null,null,null,null,null,null,null,null,null,"ZWO"]
[null,null,null,null,null,{"$f":"VLOOKUP(G141,'Data order'!Z:AA,2,0)","v":{"$error":"#N/A"}},null,null,null,null,null,null,null,null,{"$f":"VLOOKUP(N141,Tabel10[[korte omschrijving]:[MCC3_CODE]],2,0)","v":{"$error":"#N/A"}},{"$f":"VLOOKUP(N141,'Data order'!M:O,3,0)","v":{"$error":"#N/A"}},null,null,null,{"$f":"IFERROR(\n  IF(R141=\"Big&Tall\",\n      VLOOKUP(S141, 'Data order'!$AC$92:$AD$101, 2, FALSE),\n      IF(R141=\"Boordmaat\",\n          VLOOKUP(S141, 'Data order'!$AC$102:$AD$116, 2, FALSE),\n          VLOOKUP(S141, 'Data order'!$AC$2:$AD$91, 2, FALSE)\n      )\n  ),\n\"\")","v":""},null,null,null,null,"EUR",null,null,null,{"$error":"#DIV/0!"},0,0,null,"","","","","","","","","","",null,null,null,null,null,null,null,null,null,null,null,null,null,null,null,null,null,"ZWO"]
[null,null,null,null,null,{"$f":"VLOOKUP(G142,'Data order'!Z:AA,2,0)","v":{"$error":"#N/A"}},null,null,null,null,null,null,null,null,{"$f":"VLOOKUP(N142,Tabel10[[korte omschrijving]:[MCC3_CODE]],2,0)","v":{"$error":"#N/A"}},{"$f":"VLOOKUP(N142,'Data order'!M:O,3,0)","v":{"$error":"#N/A"}},null,null,null,{"$f":"IFERROR(\n  IF(R142=\"Big&Tall\",\n      VLOOKUP(S142, 'Data order'!$AC$92:$AD$101, 2, FALSE),\n      IF(R142=\"Boordmaat\",\n          VLOOKUP(S142, 'Data order'!$AC$102:$AD$116, 2, FALSE),\n          VLOOKUP(S142, 'Data order'!$AC$2:$AD$91, 2, FALSE)\n      )\n  ),\n\"\")","v":""},null,null,null,null,"EUR",null,null,null,{"$error":"#DIV/0!"},0,0,null,"","","","","","","","","","",null,null,null,null,null,null,null,null,null,null,null,null,null,null,null,null,null,"ZWO"]
[null,null,null,null,null,{"$f":"VLOOKUP(G143,'Data order'!Z:AA,2,0)","v":{"$error":"#N/A"}},null,null,null,null,null,null,null,null,{"$f":"VLOOKUP(N143,Tabel10[[korte omschrijving]:[MCC3_CODE]],2,0)","v":{"$error":"#N/A"}},{"$f":"VLOOKUP(N143,'Data order'!M:O,3,0)","v":{"$error":"#N/A"}},null,null,null,{"$f":"IFERROR(\n  IF(R143=\"Big&Tall\",\n      VLOOKUP(S143, 'Data order'!$AC$92:$AD$101, 2, FALSE),\n      IF(R143=\"Boordmaat\",\n          VLOOKUP(S143, 'Data order'!$AC$102:$AD$116, 2, FALSE),\n          VLOOKUP(S143, 'Data order'!$AC$2:$AD$91, 2, FALSE)\n      )\n  ),\n\"\")","v":""},null,null,null,null,"EUR",null,null,null,{"$error":"#DIV/0!"},0,0,null,"","","","","","","","","","",null,null,null,null,null,null,null,null,null,null,null,null,null,null,null,null,null,"ZWO"]
[null,null,null,null,null,{"$f":"VLOOKUP(G144,'Data order'!Z:AA,2,0)","v":{"$error":"#N/A"}},null,null,null,null,null,null,null,null,{"$f":"VLOOKUP(N144,Tabel10[[korte omschrijving]:[MCC3_CODE]],2,0)","v":{"$error":"#N/A"}},{"$f":"VLOOKUP(N144,'Data order'!M:O,3,0)","v":{"$error":"#N/A"}},null,null,null,{"$f":"IFERROR(\n  IF(R144=\"Big&Tall\",\n      VLOOKUP(S144, 'Data order'!$AC$92:$AD$101, 2, FALSE),\n      IF(R144=\"Boordmaat\",\n          VLOOKUP(S144, 'Data order'!$AC$102:$AD$116, 2, FALSE),\n          VLOOKUP(S144, 'Data order'!$AC$2:$AD$91, 2, FALSE)\n      )\n  ),\n\"\")","v":""},null,{"$f":"SUM(U144:U149)","v":0},null,null,"EUR",null,null,null,{"$error":"#DIV/0!"},0,0,null,"","","","","","","","","","",null,null,null,null,null,null,null,null,null,null,null,null,null,null,null,null,null,"ZWO"]
[null,null,null,null,null,{"$f":"VLOOKUP(G145,'Data order'!Z:AA,2,0)","v":{"$error":"#N/A"}},null,null,null,null,null,null,null,null,{"$f":"VLOOKUP(N145,Tabel10[[korte omschrijving]:[MCC3_CODE]],2,0)","v":{"$error":"#N/A"}},{"$f":"VLOOKUP(N145,'Data order'!M:O,3,0)","v":{"$error":"#N/A"}},null,null,null,{"$f":"IFERROR(\n  IF(R145=\"Big&Tall\",\n      VLOOKUP(S145, 'Data order'!$AC$92:$AD$101, 2, FALSE),\n      IF(R145=\"Boordmaat\",\n          VLOOKUP(S145, 'Data order'!$AC$102:$AD$116, 2, FALSE),\n          VLOOKUP(S145, 'Data order'!$AC$2:$AD$91, 2, FALSE)\n      )\n  ),\n\"\")","v":""},null,null,null,null,"EUR",null,null,null,{"$error":"#DIV/0!"},0,0,null,"","","","","","","","","","",null,null,null,null,null,null,null,null,null,null,null,null,null,null,null,null,null,"ZWO"]
[null,null,null,null,null,{"$f":"VLOOKUP(G146,'Data order'!Z:AA,2,0)","v":{"$error":"#N/A"}},null,null,null,null,null,null,null,null,{"$f":"VLOOKUP(N146,Tabel10[[korte omschrijving]:[MCC3_CODE]],2,0)","v":{"$error":"#N/A"}},{"$f":"VLOOKUP(N146,'Data order'!M:O,3,0)","v":{"$error":"#N/A"}},null,null,null,{"$f":"IFERROR(\n  IF(R146=\"Big&Tall\",\n      VLOOKUP(S146, 'Data order'!$AC$92:$AD$101, 2, FALSE),\n      IF(R146=\"Boordmaat\",\n          VLOOKUP(S146, 'Data order'!$AC$102:$AD$116, 2, FALSE),\n          VLOOKUP(S146, 'Data order'!$AC$2:$AD$91, 2, FALSE)\n      )\n  ),\n\"\")","v":""},null,null,null,null,"EUR",null,null,null,{"$error":"#DIV/0!"},0,0,null,"","","","","","","","","","",null,null,null,null,null,null,null,null,null,null,null,null,null,null,null,null,null,"ZWO"]
[null,null,null,null,null,{"$f":"VLOOKUP(G147,'Data order'!Z:AA,2,0)","v":{"$error":"#N/A"}},null,null,null,null,null,null,null,null,{"$f":"VLOOKUP(N147,Tabel10[[korte omschrijving]:[MCC3_CODE]],2,0)","v":{"$error":"#N/A"}},{"$f":"VLOOKUP(N147,'Data order'!M:O,3,0)","v":{"$error":"#N/A"}},null,null,null,{"$f":"IFERROR(\n  IF(R147=\"Big&Tall\",\n      VLOOKUP(S147, 'Data order'!$AC$92:$AD$101, 2, FALSE),\n      IF(R147=\"Boordmaat\",\n          VLOOKUP(S147, 'Data order'!$AC$102:$AD$116, 2, FALSE),\n          VLOOKUP(S147, 'Data order'!$AC$2:$AD$91, 2, FALSE)\n      )\n  ),\n\"\")","v":""},null,null,null,null,"EUR",null,null,null,{"$error":"#DIV/0!"},0,0,null,"","","","","","","","","","",null,null,null,null,null,null,null,null,null,null,null,null,null,null,null,null,null,"ZWO"]
[null,null,null,null,null,{"$f":"VLOOKUP(G148,'Data order'!Z:AA,2,0)","v":{"$error":"#N/A"}},null,null,null,null,null,null,null,null,{"$f":"VLOOKUP(N148,Tabel10[[korte omschrijving]:[MCC3_CODE]],2,0)","v":{"$error":"#N/A"}},{"$f":"VLOOKUP(N148,'Data order'!M:O,3,0)","v":{"$error":"#N/A"}},null,null,null,{"$f":"IFERROR(\n  IF(R148=\"Big&Tall\",\n      VLOOKUP(S148, 'Data order'!$AC$92:$AD$101, 2, FALSE),\n      IF(R148=\"Boordmaat\",\n          VLOOKUP(S148, 'Data order'!$AC$102:$AD$116, 2, FALSE),\n          VLOOKUP(S148, 'Data order'!$AC$2:$AD$91, 2, FALSE)\n      )\n  ),\n\"\")","v":""},null,null,null,null,"EUR",null,null,null,{"$error":"#DIV/0!"},0,0,null,"","","","","","","","","","",null,null,null,null,null,null,null,null,null,null,null,null,null,null,null,null,null,"ZWO"]
[null,null,null,null,null,{"$f":"VLOOKUP(G149,'Data order'!Z:AA,2,0)","v":{"$error":"#N/A"}},null,null,null,null,null,null,null,null,{"$f":"VLOOKUP(N149,Tabel10[[korte omschrijving]:[MCC3_CODE]],2,0)","v":{"$error":"#N/A"}},{"$f":"VLOOKUP(N149,'Data order'!M:O,3,0)","v":{"$error":"#N/A"}},null,null,null,{"$f":"IFERROR(\n  IF(R149=\"Big&Tall\",\n      VLOOKUP(S149, 'Data order'!$AC$92:$AD$101, 2, FALSE),\n      IF(R149=\"Boordmaat\",\n          VLOOKUP(S149, 'Data order'!$AC$102:$AD$116, 2, FALSE),\n          VLOOKUP(S149, 'Data order'!$AC$2:$AD$91, 2, FALSE)\n      )\n  ),\n\"\")","v":""},null,null,null,null,"EUR",null,null,null,{"$error":"#DIV/0!"},0,0,null,"","","","","","","","","","",null,null,null,null,null,null,null,null,null,null,null,null,null,null,null,null,null,"ZWO"]
[null,null,null,null,null,{"$f":"VLOOKUP(G150,'Data order'!Z:AA,2,0)","v":{"$error":"#N/A"}},null,null,null,null,null,null,null,null,{"$f":"VLOOKUP(N150,Tabel10[[korte omschrijving]:[MCC3_CODE]],2,0)","v":{"$error":"#N/A"}},{"$f":"VLOOKUP(N150,'Data order'!M:O,3,0)","v":{"$error":"#N/A"}},null,null,null,{"$f":"IFERROR(\n  IF(R150=\"Big&Tall\",\n      VLOOKUP(S150, 'Data order'!$AC$92:$AD$101, 2, FALSE),\n      IF(R150=\"Boordmaat\",\n          VLOOKUP(S150, 'Data order'!$AC$102:$AD$116, 2, FALSE),\n          VLOOKUP(S150, 'Data order'!$AC$2:$AD$91, 2, FALSE)\n      )\n  ),\n\"\")","v":""},null,{"$f":"SUM(U150:U155)","v":0},null,null,"EUR",null,null,null,{"$error":"#DIV/0!"},0,0,null,"","","","","","","","","","",null,null,null,null,null,null,null,null,null,null,null,null,null,null,null,null,null,"ZWO"]
[null,null,null,null,null,{"$f":"VLOOKUP(G151,'Data order'!Z:AA,2,0)","v":{"$error":"#N/A"}},null,null,null,null,null,null,null,null,{"$f":"VLOOKUP(N151,Tabel10[[korte omschrijving]:[MCC3_CODE]],2,0)","v":{"$error":"#N/A"}},{"$f":"VLOOKUP(N151,'Data order'!M:O,3,0)","v":{"$error":"#N/A"}},null,null,null,{"$f":"IFERROR(\n  IF(R151=\"Big&Tall\",\n      VLOOKUP(S151, 'Data order'!$AC$92:$AD$101, 2, FALSE),\n      IF(R151=\"Boordmaat\",\n          VLOOKUP(S151, 'Data order'!$AC$102:$AD$116, 2, FALSE),\n          VLOOKUP(S151, 'Data order'!$AC$2:$AD$91, 2, FALSE)\n      )\n  ),\n\"\")","v":""},null,null,null,null,"EUR",null,null,null,{"$error":"#DIV/0!"},0,0,null,"","","","","","","","","","",null,null,null,null,null,null,null,null,null,null,null,null,null,null,null,null,null,"ZWO"]
[null,null,null,null,null,{"$f":"VLOOKUP(G152,'Data order'!Z:AA,2,0)","v":{"$error":"#N/A"}},null,null,null,null,null,null,null,null,{"$f":"VLOOKUP(N152,Tabel10[[korte omschrijving]:[MCC3_CODE]],2,0)","v":{"$error":"#N/A"}},{"$f":"VLOOKUP(N152,'Data order'!M:O,3,0)","v":{"$error":"#N/A"}},null,null,null,{"$f":"IFERROR(\n  IF(R152=\"Big&Tall\",\n      VLOOKUP(S152, 'Data order'!$AC$92:$AD$101, 2, FALSE),\n      IF(R152=\"Boordmaat\",\n          VLOOKUP(S152, 'Data order'!$AC$102:$AD$116, 2, FALSE),\n          VLOOKUP(S152, 'Data order'!$AC$2:$AD$91, 2, FALSE)\n      )\n  ),\n\"\")","v":""},null,null,null,null,"EUR",null,null,null,{"$error":"#DIV/0!"},0,0,null,"","","","","","","","","","",null,null,null,null,null,null,null,null,null,null,null,null,null,null,null,null,null,"ZWO"]
[null,null,null,null,null,{"$f":"VLOOKUP(G153,'Data order'!Z:AA,2,0)","v":{"$error":"#N/A"}},null,null,null,null,null,null,null,null,{"$f":"VLOOKUP(N153,Tabel10[[korte omschrijving]:[MCC3_CODE]],2,0)","v":{"$error":"#N/A"}},{"$f":"VLOOKUP(N153,'Data order'!M:O,3,0)","v":{"$error":"#N/A"}},null,null,null,{"$f":"IFERROR(\n  IF(R153=\"Big&Tall\",\n      VLOOKUP(S153, 'Data order'!$AC$92:$AD$101, 2, FALSE),\n      IF(R153=\"Boordmaat\",\n          VLOOKUP(S153, 'Data order'!$AC$102:$AD$116, 2, FALSE),\n          VLOOKUP(S153, 'Data order'!$AC$2:$AD$91, 2, FALSE)\n      )\n  ),\n\"\")","v":""},null,null,null,null,"EUR",null,null,null,{"$error":"#DIV/0!"},0,0,null,"","","","","","","","","","",null,null,null,null,null,null,null,null,null,null,null,null,null,null,null,null,null,"ZWO"]
[null,null,null,null,null,{"$f":"VLOOKUP(G154,'Data order'!Z:AA,2,0)","v":{"$error":"#N/A"}},null,null,null,null,null,null,null,null,{"$f":"VLOOKUP(N154,Tabel10[[korte omschrijving]:[MCC3_CODE]],2,0)","v":{"$error":"#N/A"}},{"$f":"VLOOKUP(N154,'Data order'!M:O,3,0)","v":{"$error":"#N/A"}},null,null,null,{"$f":"IFERROR(\n  IF(R154=\"Big&Tall\",\n      VLOOKUP(S154, 'Data order'!$AC$92:$AD$101, 2, FALSE),\n      IF(R154=\"Boordmaat\",\n          VLOOKUP(S154, 'Data order'!$AC$102:$AD$116, 2, FALSE),\n          VLOOKUP(S154, 'Data order'!$AC$2:$AD$91, 2, FALSE)\n      )\n  ),\n\"\")","v":""},null,null,null,null,"EUR",null,null,null,{"$error":"#DIV/0!"},0,0,null,"","","","","","","","","","",null,null,null,null,null,null,null,null,null,null,null,null,null,null,null,null,null,"ZWO"]
[null,null,null,null,null,{"$f":"VLOOKUP(G155,'Data order'!Z:AA,2,0)","v":{"$error":"#N/A"}},null,null,null,null,null,null,null,null,{"$f":"VLOOKUP(N155,Tabel10[[korte omschrijving]:[MCC3_CODE]],2,0)","v":{"$error":"#N/A"}},{"$f":"VLOOKUP(N155,'Data order'!M:O,3,0)","v":{"$error":"#N/A"}},null,null,null,{"$f":"IFERROR(\n  IF(R155=\"Big&Tall\",\n      VLOOKUP(S155, 'Data order'!$AC$92:$AD$101, 2, FALSE),\n      IF(R155=\"Boordmaat\",\n          VLOOKUP(S155, 'Data order'!$AC$102:$AD$116, 2, FALSE),\n          VLOOKUP(S155, 'Data order'!$AC$2:$AD$91, 2, FALSE)\n      )\n  ),\n\"\")","v":""},null,null,null,null,"EUR",null,null,null,{"$error":"#DIV/0!"},0,0,null,"","","","","","","","","","",null,null,null,null,null,null,null,null,null,null,null,null,null,null,null,null,null,"ZWO"]
[null,null,null,null,null,{"$f":"VLOOKUP(G156,'Data order'!Z:AA,2,0)","v":{"$error":"#N/A"}},null,null,null,null,null,null,null,null,{"$f":"VLOOKUP(N156,Tabel10[[korte omschrijving]:[MCC3_CODE]],2,0)","v":{"$error":"#N/A"}},{"$f":"VLOOKUP(N156,'Data order'!M:O,3,0)","v":{"$error":"#N/A"}},null,null,null,{"$f":"IFERROR(\n  IF(R156=\"Big&Tall\",\n      VLOOKUP(S156, 'Data order'!$AC$92:$AD$101, 2, FALSE),\n      IF(R156=\"Boordmaat\",\n          VLOOKUP(S156, 'Data order'!$AC$102:$AD$116, 2, FALSE),\n          VLOOKUP(S156, 'Data order'!$AC$2:$AD$91, 2, FALSE)\n      )\n  ),\n\"\")","v":""},null,{"$f":"SUM(U156:U161)","v":0},null,null,"EUR",null,null,null,{"$error":"#DIV/0!"},0,0,null,"","","","","","","","","","",null,null,null,null,null,null,null,null,null,null,null,null,null,null,null,null,null,"ZWO"]
[null,null,null,null,null,{"$f":"VLOOKUP(G157,'Data order'!Z:AA,2,0)","v":{"$error":"#N/A"}},null,null,null,null,null,null,null,null,{"$f":"VLOOKUP(N157,Tabel10[[korte omschrijving]:[MCC3_CODE]],2,0)","v":{"$error":"#N/A"}},{"$f":"VLOOKUP(N157,'Data order'!M:O,3,0)","v":{"$error":"#N/A"}},null,null,null,{"$f":"IFERROR(\n  IF(R157=\"Big&Tall\",\n      VLOOKUP(S157, 'Data order'!$AC$92:$AD$101, 2, FALSE),\n      IF(R157=\"Boordmaat\",\n          VLOOKUP(S157, 'Data order'!$AC$102:$AD$116, 2, FALSE),\n          VLOOKUP(S157, 'Data order'!$AC$2:$AD$91, 2, FALSE)\n      )\n  ),\n\"\")","v":""},null,null,null,null,"EUR",null,null,null,{"$error":"#DIV/0!"},0,0,null,"","","","","","","","","","",null,null,null,null,null,null,null,null,null,null,null,null,null,null,null,null,null,"ZWO"]
[null,null,null,null,null,{"$f":"VLOOKUP(G158,'Data order'!Z:AA,2,0)","v":{"$error":"#N/A"}},null,null,null,null,null,null,null,null,{"$f":"VLOOKUP(N158,Tabel10[[korte omschrijving]:[MCC3_CODE]],2,0)","v":{"$error":"#N/A"}},{"$f":"VLOOKUP(N158,'Data order'!M:O,3,0)","v":{"$error":"#N/A"}},null,null,null,{"$f":"IFERROR(\n  IF(R158=\"Big&Tall\",\n      VLOOKUP(S158, 'Data order'!$AC$92:$AD$101, 2, FALSE),\n      IF(R158=\"Boordmaat\",\n          VLOOKUP(S158, 'Data order'!$AC$102:$AD$116, 2, FALSE),\n          VLOOKUP(S158, 'Data order'!$AC$2:$AD$91, 2, FALSE)\n      )\n  ),\n\"\")","v":""},null,null,null,null,"EUR",null,null,null,{"$error":"#DIV/0!"},0,0,null,"","","","","","","","","","",null,null,null,null,null,null,null,null,null,null,null,null,null,null,null,null,null,"ZWO"]
[null,null,null,null,null,{"$f":"VLOOKUP(G159,'Data order'!Z:AA,2,0)","v":{"$error":"#N/A"}},null,null,null,null,null,null,null,null,{"$f":"VLOOKUP(N159,Tabel10[[korte omschrijving]:[MCC3_CODE]],2,0)","v":{"$error":"#N/A"}},{"$f":"VLOOKUP(N159,'Data order'!M:O,3,0)","v":{"$error":"#N/A"}},null,null,null,{"$f":"IFERROR(\n  IF(R159=\"Big&Tall\",\n      VLOOKUP(S159, 'Data order'!$AC$92:$AD$101, 2, FALSE),\n      IF(R159=\"Boordmaat\",\n          VLOOKUP(S159, 'Data order'!$AC$102:$AD$116, 2, FALSE),\n          VLOOKUP(S159, 'Data order'!$AC$2:$AD$91, 2, FALSE)\n      )\n  ),\n\"\")","v":""},null,null,null,null,"EUR",null,null,null,{"$error":"#DIV/0!"},0,0,null,"","","","","","","","","","",null,null,null,null,null,null,null,null,null,null,null,null,null,null,null,null,null,"ZWO"]
[null,null,null,null,null,{"$f":"VLOOKUP(G160,'Data order'!Z:AA,2,0)","v":{"$error":"#N/A"}},null,null,null,null,null,null,null,null,{"$f":"VLOOKUP(N160,Tabel10[[korte omschrijving]:[MCC3_CODE]],2,0)","v":{"$error":"#N/A"}},{"$f":"VLOOKUP(N160,'Data order'!M:O,3,0)","v":{"$error":"#N/A"}},null,null,null,{"$f":"IFERROR(\n  IF(R160=\"Big&Tall\",\n      VLOOKUP(S160, 'Data order'!$AC$92:$AD$101, 2, FALSE),\n      IF(R160=\"Boordmaat\",\n          VLOOKUP(S160, 'Data order'!$AC$102:$AD$116, 2, FALSE),\n          VLOOKUP(S160, 'Data order'!$AC$2:$AD$91, 2, FALSE)\n      )\n  ),\n\"\")","v":""},null,null,null,null,"EUR",null,null,null,{"$error":"#DIV/0!"},0,0,null,"","","","","","","","","","",null,null,null,null,null,null,null,null,null,null,null,null,null,null,null,null,null,"ZWO"]
[null,null,null,null,null,{"$f":"VLOOKUP(G161,'Data order'!Z:AA,2,0)","v":{"$error":"#N/A"}},null,null,null,null,null,null,null,null,{"$f":"VLOOKUP(N161,Tabel10[[korte omschrijving]:[MCC3_CODE]],2,0)","v":{"$error":"#N/A"}},{"$f":"VLOOKUP(N161,'Data order'!M:O,3,0)","v":{"$error":"#N/A"}},null,null,null,{"$f":"IFERROR(\n  IF(R161=\"Big&Tall\",\n      VLOOKUP(S161, 'Data order'!$AC$92:$AD$101, 2, FALSE),\n      IF(R161=\"Boordmaat\",\n          VLOOKUP(S161, 'Data order'!$AC$102:$AD$116, 2, FALSE),\n          VLOOKUP(S161, 'Data order'!$AC$2:$AD$91, 2, FALSE)\n      )\n  ),\n\"\")","v":""},null,null,null,null,"EUR",null,null,null,{"$error":"#DIV/0!"},0,0,null,"","","","","","","","","","",null,null,null,null,null,null,null,null,null,null,null,null,null,null,null,null,null,"ZWO"]
[null,null,null,null,null,{"$f":"VLOOKUP(G162,'Data order'!Z:AA,2,0)","v":{"$error":"#N/A"}},null,null,null,null,null,null,null,null,{"$f":"VLOOKUP(N162,Tabel10[[korte omschrijving]:[MCC3_CODE]],2,0)","v":{"$error":"#N/A"}},{"$f":"VLOOKUP(N162,'Data order'!M:O,3,0)","v":{"$error":"#N/A"}},null,null,null,{"$f":"IFERROR(\n  IF(R162=\"Big&Tall\",\n      VLOOKUP(S162, 'Data order'!$AC$92:$AD$101, 2, FALSE),\n      IF(R162=\"Boordmaat\",\n          VLOOKUP(S162, 'Data order'!$AC$102:$AD$116, 2, FALSE),\n          VLOOKUP(S162, 'Data order'!$AC$2:$AD$91, 2, FALSE)\n      )\n  ),\n\"\")","v":""},null,{"$f":"SUM(U162:U167)","v":0},null,null,"EUR",null,null,null,{"$error":"#DIV/0!"},0,0,null,"","","","","","","","","","",null,null,null,null,null,null,null,null,null,null,null,null,null,null,null,null,null,"ZWO"]
[null,null,null,null,null,{"$f":"VLOOKUP(G163,'Data order'!Z:AA,2,0)","v":{"$error":"#N/A"}},null,null,null,null,null,null,null,null,{"$f":"VLOOKUP(N163,Tabel10[[korte omschrijving]:[MCC3_CODE]],2,0)","v":{"$error":"#N/A"}},{"$f":"VLOOKUP(N163,'Data order'!M:O,3,0)","v":{"$error":"#N/A"}},null,null,null,{"$f":"IFERROR(\n  IF(R163=\"Big&Tall\",\n      VLOOKUP(S163, 'Data order'!$AC$92:$AD$101, 2, FALSE),\n      IF(R163=\"Boordmaat\",\n          VLOOKUP(S163, 'Data order'!$AC$102:$AD$116, 2, FALSE),\n          VLOOKUP(S163, 'Data order'!$AC$2:$AD$91, 2, FALSE)\n      )\n  ),\n\"\")","v":""},null,null,null,null,"EUR",null,null,null,{"$error":"#DIV/0!"},0,0,null,"","","","","","","","","","",null,null,null,null,null,null,null,null,null,null,null,null,null,null,null,null,null,"ZWO"]
[null,null,null,null,null,{"$f":"VLOOKUP(G164,'Data order'!Z:AA,2,0)","v":{"$error":"#N/A"}},null,null,null,null,null,null,null,null,{"$f":"VLOOKUP(N164,Tabel10[[korte omschrijving]:[MCC3_CODE]],2,0)","v":{"$error":"#N/A"}},{"$f":"VLOOKUP(N164,'Data order'!M:O,3,0)","v":{"$error":"#N/A"}},null,null,null,{"$f":"IFERROR(\n  IF(R164=\"Big&Tall\",\n      VLOOKUP(S164, 'Data order'!$AC$92:$AD$101, 2, FALSE),\n      IF(R164=\"Boordmaat\",\n          VLOOKUP(S164, 'Data order'!$AC$102:$AD$116, 2, FALSE),\n          VLOOKUP(S164, 'Data order'!$AC$2:$AD$91, 2, FALSE)\n      )\n  ),\n\"\")","v":""},null,null,null,null,"EUR",null,null,null,{"$error":"#DIV/0!"},0,0,null,"","","","","","","","","","",null,null,null,null,null,null,null,null,null,null,null,null,null,null,null,null,null,"ZWO"]
[null,null,null,null,null,{"$f":"VLOOKUP(G165,'Data order'!Z:AA,2,0)","v":{"$error":"#N/A"}},null,null,null,null,null,null,null,null,{"$f":"VLOOKUP(N165,Tabel10[[korte omschrijving]:[MCC3_CODE]],2,0)","v":{"$error":"#N/A"}},{"$f":"VLOOKUP(N165,'Data order'!M:O,3,0)","v":{"$error":"#N/A"}},null,null,null,{"$f":"IFERROR(\n  IF(R165=\"Big&Tall\",\n      VLOOKUP(S165, 'Data order'!$AC$92:$AD$101, 2, FALSE),\n      IF(R165=\"Boordmaat\",\n          VLOOKUP(S165, 'Data order'!$AC$102:$AD$116, 2, FALSE),\n          VLOOKUP(S165, 'Data order'!$AC$2:$AD$91, 2, FALSE)\n      )\n  ),\n\"\")","v":""},null,null,null,null,"EUR",null,null,null,{"$error":"#DIV/0!"},0,0,null,"","","","","","","","","","",null,null,null,null,null,null,null,null,null,null,null,null,null,null,null,null,null,"ZWO"]
[null,null,null,null,null,{"$f":"VLOOKUP(G166,'Data order'!Z:AA,2,0)","v":{"$error":"#N/A"}},null,null,null,null,null,null,null,null,{"$f":"VLOOKUP(N166,Tabel10[[korte omschrijving]:[MCC3_CODE]],2,0)","v":{"$error":"#N/A"}},{"$f":"VLOOKUP(N166,'Data order'!M:O,3,0)","v":{"$error":"#N/A"}},null,null,null,{"$f":"IFERROR(\n  IF(R166=\"Big&Tall\",\n      VLOOKUP(S166, 'Data order'!$AC$92:$AD$101, 2, FALSE),\n      IF(R166=\"Boordmaat\",\n          VLOOKUP(S166, 'Data order'!$AC$102:$AD$116, 2, FALSE),\n          VLOOKUP(S166, 'Data order'!$AC$2:$AD$91, 2, FALSE)\n      )\n  ),\n\"\")","v":""},null,null,null,null,"EUR",null,null,null,{"$error":"#DIV/0!"},0,0,null,"","","","","","","","","","",null,null,null,null,null,null,null,null,null,null,null,null,null,null,null,null,null,"ZWO"]
[null,null,null,null,null,{"$f":"VLOOKUP(G167,'Data order'!Z:AA,2,0)","v":{"$error":"#N/A"}},null,null,null,null,null,null,null,null,{"$f":"VLOOKUP(N167,Tabel10[[korte omschrijving]:[MCC3_CODE]],2,0)","v":{"$error":"#N/A"}},{"$f":"VLOOKUP(N167,'Data order'!M:O,3,0)","v":{"$error":"#N/A"}},null,null,null,{"$f":"IFERROR(\n  IF(R167=\"Big&Tall\",\n      VLOOKUP(S167, 'Data order'!$AC$92:$AD$101, 2, FALSE),\n      IF(R167=\"Boordmaat\",\n          VLOOKUP(S167, 'Data order'!$AC$102:$AD$116, 2, FALSE),\n          VLOOKUP(S167, 'Data order'!$AC$2:$AD$91, 2, FALSE)\n      )\n  ),\n\"\")","v":""},null,null,null,null,"EUR",null,null,null,{"$error":"#DIV/0!"},0,0,null,"","","","","","","","","","",null,null,null,null,null,null,null,null,null,null,null,null,null,null,null,null,null,"ZWO"]
[null,null,null,null,null,{"$f":"VLOOKUP(G168,'Data order'!Z:AA,2,0)","v":{"$error":"#N/A"}},null,null,null,null,null,null,null,null,{"$f":"VLOOKUP(N168,Tabel10[[korte omschrijving]:[MCC3_CODE]],2,0)","v":{"$error":"#N/A"}},{"$f":"VLOOKUP(N168,'Data order'!M:O,3,0)","v":{"$error":"#N/A"}},null,null,null,{"$f":"IFERROR(\n  IF(R168=\"Big&Tall\",\n      VLOOKUP(S168, 'Data order'!$AC$92:$AD$101, 2, FALSE),\n      IF(R168=\"Boordmaat\",\n          VLOOKUP(S168, 'Data order'!$AC$102:$AD$116, 2, FALSE),\n          VLOOKUP(S168, 'Data order'!$AC$2:$AD$91, 2, FALSE)\n      )\n  ),\n\"\")","v":""},null,{"$f":"SUM(U168:U173)","v":0},null,null,"EUR",null,null,null,{"$error":"#DIV/0!"},0,0,null,"","","","","","","","","","",null,null,null,null,null,null,null,null,null,null,null,null,null,null,null,null,null,"ZWO"]
[null,null,null,null,null,{"$f":"VLOOKUP(G169,'Data order'!Z:AA,2,0)","v":{"$error":"#N/A"}},null,null,null,null,null,null,null,null,{"$f":"VLOOKUP(N169,Tabel10[[korte omschrijving]:[MCC3_CODE]],2,0)","v":{"$error":"#N/A"}},{"$f":"VLOOKUP(N169,'Data order'!M:O,3,0)","v":{"$error":"#N/A"}},null,null,null,{"$f":"IFERROR(\n  IF(R169=\"Big&Tall\",\n      VLOOKUP(S169, 'Data order'!$AC$92:$AD$101, 2, FALSE),\n      IF(R169=\"Boordmaat\",\n          VLOOKUP(S169, 'Data order'!$AC$102:$AD$116, 2, FALSE),\n          VLOOKUP(S169, 'Data order'!$AC$2:$AD$91, 2, FALSE)\n      )\n  ),\n\"\")","v":""},null,null,null,null,"EUR",null,null,null,{"$error":"#DIV/0!"},0,0,null,"","","","","","","","","","",null,null,null,null,null,null,null,null,null,null,null,null,null,null,null,null,null,"ZWO"]
[null,null,null,null,null,{"$f":"VLOOKUP(G170,'Data order'!Z:AA,2,0)","v":{"$error":"#N/A"}},null,null,null,null,null,null,null,null,{"$f":"VLOOKUP(N170,Tabel10[[korte omschrijving]:[MCC3_CODE]],2,0)","v":{"$error":"#N/A"}},{"$f":"VLOOKUP(N170,'Data order'!M:O,3,0)","v":{"$error":"#N/A"}},null,null,null,{"$f":"IFERROR(\n  IF(R170=\"Big&Tall\",\n      VLOOKUP(S170, 'Data order'!$AC$92:$AD$101, 2, FALSE),\n      IF(R170=\"Boordmaat\",\n          VLOOKUP(S170, 'Data order'!$AC$102:$AD$116, 2, FALSE),\n          VLOOKUP(S170, 'Data order'!$AC$2:$AD$91, 2, FALSE)\n      )\n  ),\n\"\")","v":""},null,null,null,null,"EUR",null,null,null,{"$error":"#DIV/0!"},0,0,null,"","","","","","","","","","",null,null,null,null,null,null,null,null,null,null,null,null,null,null,null,null,null,"ZWO"]
[null,null,null,null,null,{"$f":"VLOOKUP(G171,'Data order'!Z:AA,2,0)","v":{"$error":"#N/A"}},null,null,null,null,null,null,null,null,{"$f":"VLOOKUP(N171,Tabel10[[korte omschrijving]:[MCC3_CODE]],2,0)","v":{"$error":"#N/A"}},{"$f":"VLOOKUP(N171,'Data order'!M:O,3,0)","v":{"$error":"#N/A"}},null,null,null,{"$f":"IFERROR(\n  IF(R171=\"Big&Tall\",\n      VLOOKUP(S171, 'Data order'!$AC$92:$AD$101, 2, FALSE),\n      IF(R171=\"Boordmaat\",\n          VLOOKUP(S171, 'Data order'!$AC$102:$AD$116, 2, FALSE),\n          VLOOKUP(S171, 'Data order'!$AC$2:$AD$91, 2, FALSE)\n      )\n  ),\n\"\")","v":""},null,null,null,null,"EUR",null,null,null,{"$error":"#DIV/0!"},0,0,null,"","","","","","","","","","",null,null,null,null,null,null,null,null,null,null,null,null,null,null,null,null,null,"ZWO"]
[null,null,null,null,null,{"$f":"VLOOKUP(G172,'Data order'!Z:AA,2,0)","v":{"$error":"#N/A"}},null,null,null,null,null,null,null,null,{"$f":"VLOOKUP(N172,Tabel10[[korte omschrijving]:[MCC3_CODE]],2,0)","v":{"$error":"#N/A"}},{"$f":"VLOOKUP(N172,'Data order'!M:O,3,0)","v":{"$error":"#N/A"}},null,null,null,{"$f":"IFERROR(\n  IF(R172=\"Big&Tall\",\n      VLOOKUP(S172, 'Data order'!$AC$92:$AD$101, 2, FALSE),\n      IF(R172=\"Boordmaat\",\n          VLOOKUP(S172, 'Data order'!$AC$102:$AD$116, 2, FALSE),\n          VLOOKUP(S172, 'Data order'!$AC$2:$AD$91, 2, FALSE)\n      )\n  ),\n\"\")","v":""},null,null,null,null,"EUR",null,null,null,{"$error":"#DIV/0!"},0,0,null,"","","","","","","","","","",null,null,null,null,null,null,null,null,null,null,null,null,null,null,null,null,null,"ZWO"]
[null,null,null,null,null,{"$f":"VLOOKUP(G173,'Data order'!Z:AA,2,0)","v":{"$error":"#N/A"}},null,null,null,null,null,null,null,null,{"$f":"VLOOKUP(N173,Tabel10[[korte omschrijving]:[MCC3_CODE]],2,0)","v":{"$error":"#N/A"}},{"$f":"VLOOKUP(N173,'Data order'!M:O,3,0)","v":{"$error":"#N/A"}},null,null,null,{"$f":"IFERROR(\n  IF(R173=\"Big&Tall\",\n      VLOOKUP(S173, 'Data order'!$AC$92:$AD$101, 2, FALSE),\n      IF(R173=\"Boordmaat\",\n          VLOOKUP(S173, 'Data order'!$AC$102:$AD$116, 2, FALSE),\n          VLOOKUP(S173, 'Data order'!$AC$2:$AD$91, 2, FALSE)\n      )\n  ),\n\"\")","v":""},null,null,null,null,"EUR",null,null,null,{"$error":"#DIV/0!"},0,0,null,"","","","","","","","","","",null,null,null,null,null,null,null,null,null,null,null,null,null,null,null,null,null,"ZWO"]
[null,null,null,null,null,{"$f":"VLOOKUP(G174,'Data order'!Z:AA,2,0)","v":{"$error":"#N/A"}},null,null,null,null,null,null,null,null,{"$f":"VLOOKUP(N174,Tabel10[[korte omschrijving]:[MCC3_CODE]],2,0)","v":{"$error":"#N/A"}},{"$f":"VLOOKUP(N174,'Data order'!M:O,3,0)","v":{"$error":"#N/A"}},null,null,null,{"$f":"IFERROR(\n  IF(R174=\"Big&Tall\",\n      VLOOKUP(S174, 'Data order'!$AC$92:$AD$101, 2, FALSE),\n      IF(R174=\"Boordmaat\",\n          VLOOKUP(S174, 'Data order'!$AC$102:$AD$116, 2, FALSE),\n          VLOOKUP(S174, 'Data order'!$AC$2:$AD$91, 2, FALSE)\n      )\n  ),\n\"\")","v":""},null,{"$f":"SUM(U174:U179)","v":0},null,null,"EUR",null,null,null,{"$error":"#DIV/0!"},0,0,null,"","","","","","","","","","",null,null,null,null,null,null,null,null,null,null,null,null,null,null,null,null,null,"ZWO"]
[null,null,null,null,null,{"$f":"VLOOKUP(G175,'Data order'!Z:AA,2,0)","v":{"$error":"#N/A"}},null,null,null,null,null,null,null,null,{"$f":"VLOOKUP(N175,Tabel10[[korte omschrijving]:[MCC3_CODE]],2,0)","v":{"$error":"#N/A"}},{"$f":"VLOOKUP(N175,'Data order'!M:O,3,0)","v":{"$error":"#N/A"}},null,null,null,{"$f":"IFERROR(\n  IF(R175=\"Big&Tall\",\n      VLOOKUP(S175, 'Data order'!$AC$92:$AD$101, 2, FALSE),\n      IF(R175=\"Boordmaat\",\n          VLOOKUP(S175, 'Data order'!$AC$102:$AD$116, 2, FALSE),\n          VLOOKUP(S175, 'Data order'!$AC$2:$AD$91, 2, FALSE)\n      )\n  ),\n\"\")","v":""},null,null,null,null,"EUR",null,null,null,{"$error":"#DIV/0!"},0,0,null,"","","","","","","","","","",null,null,null,null,null,null,null,null,null,null,null,null,null,null,null,null,null,"ZWO"]
[null,null,null,null,null,{"$f":"VLOOKUP(G176,'Data order'!Z:AA,2,0)","v":{"$error":"#N/A"}},null,null,null,null,null,null,null,null,{"$f":"VLOOKUP(N176,Tabel10[[korte omschrijving]:[MCC3_CODE]],2,0)","v":{"$error":"#N/A"}},{"$f":"VLOOKUP(N176,'Data order'!M:O,3,0)","v":{"$error":"#N/A"}},null,null,null,{"$f":"IFERROR(\n  IF(R176=\"Big&Tall\",\n      VLOOKUP(S176, 'Data order'!$AC$92:$AD$101, 2, FALSE),\n      IF(R176=\"Boordmaat\",\n          VLOOKUP(S176, 'Data order'!$AC$102:$AD$116, 2, FALSE),\n          VLOOKUP(S176, 'Data order'!$AC$2:$AD$91, 2, FALSE)\n      )\n  ),\n\"\")","v":""},null,null,null,null,"EUR",null,null,null,{"$error":"#DIV/0!"},0,0,null,"","","","","","","","","","",null,null,null,null,null,null,null,null,null,null,null,null,null,null,null,null,null,"ZWO"]
[null,null,null,null,null,{"$f":"VLOOKUP(G177,'Data order'!Z:AA,2,0)","v":{"$error":"#N/A"}},null,null,null,null,null,null,null,null,{"$f":"VLOOKUP(N177,Tabel10[[korte omschrijving]:[MCC3_CODE]],2,0)","v":{"$error":"#N/A"}},{"$f":"VLOOKUP(N177,'Data order'!M:O,3,0)","v":{"$error":"#N/A"}},null,null,null,{"$f":"IFERROR(\n  IF(R177=\"Big&Tall\",\n      VLOOKUP(S177, 'Data order'!$AC$92:$AD$101, 2, FALSE),\n      IF(R177=\"Boordmaat\",\n          VLOOKUP(S177, 'Data order'!$AC$102:$AD$116, 2, FALSE),\n          VLOOKUP(S177, 'Data order'!$AC$2:$AD$91, 2, FALSE)\n      )\n  ),\n\"\")","v":""},null,null,null,null,"EUR",null,null,null,{"$error":"#DIV/0!"},0,0,null,"","","","","","","","","","",null,null,null,null,null,null,null,null,null,null,null,null,null,null,null,null,null,"ZWO"]
[null,null,null,null,null,{"$f":"VLOOKUP(G178,'Data order'!Z:AA,2,0)","v":{"$error":"#N/A"}},null,null,null,null,null,null,null,null,{"$f":"VLOOKUP(N178,Tabel10[[korte omschrijving]:[MCC3_CODE]],2,0)","v":{"$error":"#N/A"}},{"$f":"VLOOKUP(N178,'Data order'!M:O,3,0)","v":{"$error":"#N/A"}},null,null,null,{"$f":"IFERROR(\n  IF(R178=\"Big&Tall\",\n      VLOOKUP(S178, 'Data order'!$AC$92:$AD$101, 2, FALSE),\n      IF(R178=\"Boordmaat\",\n          VLOOKUP(S178, 'Data order'!$AC$102:$AD$116, 2, FALSE),\n          VLOOKUP(S178, 'Data order'!$AC$2:$AD$91, 2, FALSE)\n      )\n  ),\n\"\")","v":""},null,null,null,null,"EUR",null,null,null,{"$error":"#DIV/0!"},0,0,null,"","","","","","","","","","",null,null,null,null,null,null,null,null,null,null,null,null,null,null,null,null,null,"ZWO"]
[null,null,null,null,null,{"$f":"VLOOKUP(G179,'Data order'!Z:AA,2,0)","v":{"$error":"#N/A"}},null,null,null,null,null,null,null,null,{"$f":"VLOOKUP(N179,Tabel10[[korte omschrijving]:[MCC3_CODE]],2,0)","v":{"$error":"#N/A"}},{"$f":"VLOOKUP(N179,'Data order'!M:O,3,0)","v":{"$error":"#N/A"}},null,null,null,{"$f":"IFERROR(\n  IF(R179=\"Big&Tall\",\n      VLOOKUP(S179, 'Data order'!$AC$92:$AD$101, 2, FALSE),\n      IF(R179=\"Boordmaat\",\n          VLOOKUP(S179, 'Data order'!$AC$102:$AD$116, 2, FALSE),\n          VLOOKUP(S179, 'Data order'!$AC$2:$AD$91, 2, FALSE)\n      )\n  ),\n\"\")","v":""},null,null,null,null,"EUR",null,null,null,{"$error":"#DIV/0!"},0,0,null,"","","","","","","","","","",null,null,null,null,null,null,null,null,null,null,null,null,null,null,null,null,null,"ZWO"]
[null,null,null,null,null,{"$f":"VLOOKUP(G180,'Data order'!Z:AA,2,0)","v":{"$error":"#N/A"}},null,null,null,null,null,null,null,null,{"$f":"VLOOKUP(N180,Tabel10[[korte omschrijving]:[MCC3_CODE]],2,0)","v":{"$error":"#N/A"}},{"$f":"VLOOKUP(N180,'Data order'!M:O,3,0)","v":{"$error":"#N/A"}},null,null,null,{"$f":"IFERROR(\n  IF(R180=\"Big&Tall\",\n      VLOOKUP(S180, 'Data order'!$AC$92:$AD$101, 2, FALSE),\n      IF(R180=\"Boordmaat\",\n          VLOOKUP(S180, 'Data order'!$AC$102:$AD$116, 2, FALSE),\n          VLOOKUP(S180, 'Data order'!$AC$2:$AD$91, 2, FALSE)\n      )\n  ),\n\"\")","v":""},null,{"$f":"SUM(U180:U185)","v":0},null,null,"EUR",null,null,null,{"$error":"#DIV/0!"},0,0,null,"","","","","","","","","","",null,null,null,null,null,null,null,null,null,null,null,null,null,null,null,null,null,"ZWO"]
[null,null,null,null,null,{"$f":"VLOOKUP(G181,'Data order'!Z:AA,2,0)","v":{"$error":"#N/A"}},null,null,null,null,null,null,null,null,{"$f":"VLOOKUP(N181,Tabel10[[korte omschrijving]:[MCC3_CODE]],2,0)","v":{"$error":"#N/A"}},{"$f":"VLOOKUP(N181,'Data order'!M:O,3,0)","v":{"$error":"#N/A"}},null,null,null,{"$f":"IFERROR(\n  IF(R181=\"Big&Tall\",\n      VLOOKUP(S181, 'Data order'!$AC$92:$AD$101, 2, FALSE),\n      IF(R181=\"Boordmaat\",\n          VLOOKUP(S181, 'Data order'!$AC$102:$AD$116, 2, FALSE),\n          VLOOKUP(S181, 'Data order'!$AC$2:$AD$91, 2, FALSE)\n      )\n  ),\n\"\")","v":""},null,null,null,null,"EUR",null,null,null,{"$error":"#DIV/0!"},0,0,null,"","","","","","","","","","",null,null,null,null,null,null,null,null,null,null,null,null,null,null,null,null,null,"ZWO"]
[null,null,null,null,null,{"$f":"VLOOKUP(G182,'Data order'!Z:AA,2,0)","v":{"$error":"#N/A"}},null,null,null,null,null,null,null,null,{"$f":"VLOOKUP(N182,Tabel10[[korte omschrijving]:[MCC3_CODE]],2,0)","v":{"$error":"#N/A"}},{"$f":"VLOOKUP(N182,'Data order'!M:O,3,0)","v":{"$error":"#N/A"}},null,null,null,{"$f":"IFERROR(\n  IF(R182=\"Big&Tall\",\n      VLOOKUP(S182, 'Data order'!$AC$92:$AD$101, 2, FALSE),\n      IF(R182=\"Boordmaat\",\n          VLOOKUP(S182, 'Data order'!$AC$102:$AD$116, 2, FALSE),\n          VLOOKUP(S182, 'Data order'!$AC$2:$AD$91, 2, FALSE)\n      )\n  ),\n\"\")","v":""},null,null,null,null,"EUR",null,null,null,{"$error":"#DIV/0!"},0,0,null,"","","","","","","","","","",null,null,null,null,null,null,null,null,null,null,null,null,null,null,null,null,null,"ZWO"]
[null,null,null,null,null,{"$f":"VLOOKUP(G183,'Data order'!Z:AA,2,0)","v":{"$error":"#N/A"}},null,null,null,null,null,null,null,null,{"$f":"VLOOKUP(N183,Tabel10[[korte omschrijving]:[MCC3_CODE]],2,0)","v":{"$error":"#N/A"}},{"$f":"VLOOKUP(N183,'Data order'!M:O,3,0)","v":{"$error":"#N/A"}},null,null,null,{"$f":"IFERROR(\n  IF(R183=\"Big&Tall\",\n      VLOOKUP(S183, 'Data order'!$AC$92:$AD$101, 2, FALSE),\n      IF(R183=\"Boordmaat\",\n          VLOOKUP(S183, 'Data order'!$AC$102:$AD$116, 2, FALSE),\n          VLOOKUP(S183, 'Data order'!$AC$2:$AD$91, 2, FALSE)\n      )\n  ),\n\"\")","v":""},null,null,null,null,"EUR",null,null,null,{"$error":"#DIV/0!"},0,0,null,"","","","","","","","","","",null,null,null,null,null,null,null,null,null,null,null,null,null,null,null,null,null,"ZWO"]
[null,null,null,null,null,{"$f":"VLOOKUP(G184,'Data order'!Z:AA,2,0)","v":{"$error":"#N/A"}},null,null,null,null,null,null,null,null,{"$f":"VLOOKUP(N184,Tabel10[[korte omschrijving]:[MCC3_CODE]],2,0)","v":{"$error":"#N/A"}},{"$f":"VLOOKUP(N184,'Data order'!M:O,3,0)","v":{"$error":"#N/A"}},null,null,null,{"$f":"IFERROR(\n  IF(R184=\"Big&Tall\",\n      VLOOKUP(S184, 'Data order'!$AC$92:$AD$101, 2, FALSE),\n      IF(R184=\"Boordmaat\",\n          VLOOKUP(S184, 'Data order'!$AC$102:$AD$116, 2, FALSE),\n          VLOOKUP(S184, 'Data order'!$AC$2:$AD$91, 2, FALSE)\n      )\n  ),\n\"\")","v":""},null,null,null,null,"EUR",null,null,null,{"$error":"#DIV/0!"},0,0,null,"","","","","","","","","","",null,null,null,null,null,null,null,null,null,null,null,null,null,null,null,null,null,"ZWO"]
[null,null,null,null,null,{"$f":"VLOOKUP(G185,'Data order'!Z:AA,2,0)","v":{"$error":"#N/A"}},null,null,null,null,null,null,null,null,{"$f":"VLOOKUP(N185,Tabel10[[korte omschrijving]:[MCC3_CODE]],2,0)","v":{"$error":"#N/A"}},{"$f":"VLOOKUP(N185,'Data order'!M:O,3,0)","v":{"$error":"#N/A"}},null,null,null,{"$f":"IFERROR(\n  IF(R185=\"Big&Tall\",\n      VLOOKUP(S185, 'Data order'!$AC$92:$AD$101, 2, FALSE),\n      IF(R185=\"Boordmaat\",\n          VLOOKUP(S185, 'Data order'!$AC$102:$AD$116, 2, FALSE),\n          VLOOKUP(S185, 'Data order'!$AC$2:$AD$91, 2, FALSE)\n      )\n  ),\n\"\")","v":""},null,null,null,null,"EUR",null,null,null,{"$error":"#DIV/0!"},0,0,null,"","","","","","","","","","",null,null,null,null,null,null,null,null,null,null,null,null,null,null,null,null,null,"ZWO"]
[null,null,null,null,null,{"$f":"VLOOKUP(G186,'Data order'!Z:AA,2,0)","v":{"$error":"#N/A"}},null,null,null,null,null,null,null,null,{"$f":"VLOOKUP(N186,Tabel10[[korte omschrijving]:[MCC3_CODE]],2,0)","v":{"$error":"#N/A"}},{"$f":"VLOOKUP(N186,'Data order'!M:O,3,0)","v":{"$error":"#N/A"}},null,null,null,{"$f":"IFERROR(\n  IF(R186=\"Big&Tall\",\n      VLOOKUP(S186, 'Data order'!$AC$92:$AD$101, 2, FALSE),\n      IF(R186=\"Boordmaat\",\n          VLOOKUP(S186, 'Data order'!$AC$102:$AD$116, 2, FALSE),\n          VLOOKUP(S186, 'Data order'!$AC$2:$AD$91, 2, FALSE)\n      )\n  ),\n\"\")","v":""},null,{"$f":"SUM(U186:U191)","v":0},null,null,"EUR",null,null,null,{"$error":"#DIV/0!"},0,0,null,"","","","","","","","","","",null,null,null,null,null,null,null,null,null,null,null,null,null,null,null,null,null,"ZWO"]
[null,null,null,null,null,{"$f":"VLOOKUP(G187,'Data order'!Z:AA,2,0)","v":{"$error":"#N/A"}},null,null,null,null,null,null,null,null,{"$f":"VLOOKUP(N187,Tabel10[[korte omschrijving]:[MCC3_CODE]],2,0)","v":{"$error":"#N/A"}},{"$f":"VLOOKUP(N187,'Data order'!M:O,3,0)","v":{"$error":"#N/A"}},null,null,null,{"$f":"IFERROR(\n  IF(R187=\"Big&Tall\",\n      VLOOKUP(S187, 'Data order'!$AC$92:$AD$101, 2, FALSE),\n      IF(R187=\"Boordmaat\",\n          VLOOKUP(S187, 'Data order'!$AC$102:$AD$116, 2, FALSE),\n          VLOOKUP(S187, 'Data order'!$AC$2:$AD$91, 2, FALSE)\n      )\n  ),\n\"\")","v":""},null,null,null,null,"EUR",null,null,null,{"$error":"#DIV/0!"},0,0,null,"","","","","","","","","","",null,null,null,null,null,null,null,null,null,null,null,null,null,null,null,null,null,"ZWO"]
[null,null,null,null,null,{"$f":"VLOOKUP(G188,'Data order'!Z:AA,2,0)","v":{"$error":"#N/A"}},null,null,null,null,null,null,null,null,{"$f":"VLOOKUP(N188,Tabel10[[korte omschrijving]:[MCC3_CODE]],2,0)","v":{"$error":"#N/A"}},{"$f":"VLOOKUP(N188,'Data order'!M:O,3,0)","v":{"$error":"#N/A"}},null,null,null,{"$f":"IFERROR(\n  IF(R188=\"Big&Tall\",\n      VLOOKUP(S188, 'Data order'!$AC$92:$AD$101, 2, FALSE),\n      IF(R188=\"Boordmaat\",\n          VLOOKUP(S188, 'Data order'!$AC$102:$AD$116, 2, FALSE),\n          VLOOKUP(S188, 'Data order'!$AC$2:$AD$91, 2, FALSE)\n      )\n  ),\n\"\")","v":""},null,null,null,null,"EUR",null,null,null,{"$error":"#DIV/0!"},0,0,null,"","","","","","","","","","",null,null,null,null,null,null,null,null,null,null,null,null,null,null,null,null,null,"ZWO"]
[null,null,null,null,null,{"$f":"VLOOKUP(G189,'Data order'!Z:AA,2,0)","v":{"$error":"#N/A"}},null,null,null,null,null,null,null,null,{"$f":"VLOOKUP(N189,Tabel10[[korte omschrijving]:[MCC3_CODE]],2,0)","v":{"$error":"#N/A"}},{"$f":"VLOOKUP(N189,'Data order'!M:O,3,0)","v":{"$error":"#N/A"}},null,null,null,{"$f":"IFERROR(\n  IF(R189=\"Big&Tall\",\n      VLOOKUP(S189, 'Data order'!$AC$92:$AD$101, 2, FALSE),\n      IF(R189=\"Boordmaat\",\n          VLOOKUP(S189, 'Data order'!$AC$102:$AD$116, 2, FALSE),\n          VLOOKUP(S189, 'Data order'!$AC$2:$AD$91, 2, FALSE)\n      )\n  ),\n\"\")","v":""},null,null,null,null,"EUR",null,null,null,{"$error":"#DIV/0!"},0,0,null,"","","","","","","","","","",null,null,null,null,null,null,null,null,null,null,null,null,null,null,null,null,null,"ZWO"]
[null,null,null,null,null,{"$f":"VLOOKUP(G190,'Data order'!Z:AA,2,0)","v":{"$error":"#N/A"}},null,null,null,null,null,null,null,null,{"$f":"VLOOKUP(N190,Tabel10[[korte omschrijving]:[MCC3_CODE]],2,0)","v":{"$error":"#N/A"}},{"$f":"VLOOKUP(N190,'Data order'!M:O,3,0)","v":{"$error":"#N/A"}},null,null,null,{"$f":"IFERROR(\n  IF(R190=\"Big&Tall\",\n      VLOOKUP(S190, 'Data order'!$AC$92:$AD$101, 2, FALSE),\n      IF(R190=\"Boordmaat\",\n          VLOOKUP(S190, 'Data order'!$AC$102:$AD$116, 2, FALSE),\n          VLOOKUP(S190, 'Data order'!$AC$2:$AD$91, 2, FALSE)\n      )\n  ),\n\"\")","v":""},null,null,null,null,"EUR",null,null,null,{"$error":"#DIV/0!"},0,0,null,"","","","","","","","","","",null,null,null,null,null,null,null,null,null,null,null,null,null,null,null,null,null,"ZWO"]
[null,null,null,null,null,{"$f":"VLOOKUP(G191,'Data order'!Z:AA,2,0)","v":{"$error":"#N/A"}},null,null,null,null,null,null,null,null,{"$f":"VLOOKUP(N191,Tabel10[[korte omschrijving]:[MCC3_CODE]],2,0)","v":{"$error":"#N/A"}},{"$f":"VLOOKUP(N191,'Data order'!M:O,3,0)","v":{"$error":"#N/A"}},null,null,null,{"$f":"IFERROR(\n  IF(R191=\"Big&Tall\",\n      VLOOKUP(S191, 'Data order'!$AC$92:$AD$101, 2, FALSE),\n      IF(R191=\"Boordmaat\",\n          VLOOKUP(S191, 'Data order'!$AC$102:$AD$116, 2, FALSE),\n          VLOOKUP(S191, 'Data order'!$AC$2:$AD$91, 2, FALSE)\n      )\n  ),\n\"\")","v":""},null,null,null,null,"EUR",null,null,null,{"$error":"#DIV/0!"},0,0,null,"","","","","","","","","","",null,null,null,null,null,null,null,null,null,null,null,null,null,null,null,null,null,"ZWO"]
[null,null,null,null,null,{"$f":"VLOOKUP(G192,'Data order'!Z:AA,2,0)","v":{"$error":"#N/A"}},null,null,null,null,null,null,null,null,{"$f":"VLOOKUP(N192,Tabel10[[korte omschrijving]:[MCC3_CODE]],2,0)","v":{"$error":"#N/A"}},{"$f":"VLOOKUP(N192,'Data order'!M:O,3,0)","v":{"$error":"#N/A"}},null,null,null,{"$f":"IFERROR(\n  IF(R192=\"Big&Tall\",\n      VLOOKUP(S192, 'Data order'!$AC$92:$AD$101, 2, FALSE),\n      IF(R192=\"Boordmaat\",\n          VLOOKUP(S192, 'Data order'!$AC$102:$AD$116, 2, FALSE),\n          VLOOKUP(S192, 'Data order'!$AC$2:$AD$91, 2, FALSE)\n      )\n  ),\n\"\")","v":""},null,{"$f":"SUM(U192:U197)","v":0},null,null,"EUR",null,null,null,{"$error":"#DIV/0!"},0,0,null,"","","","","","","","","","",null,null,null,null,null,null,null,null,null,null,null,null,null,null,null,null,null,"ZWO"]
[null,null,null,null,null,{"$f":"VLOOKUP(G193,'Data order'!Z:AA,2,0)","v":{"$error":"#N/A"}},null,null,null,null,null,null,null,null,{"$f":"VLOOKUP(N193,Tabel10[[korte omschrijving]:[MCC3_CODE]],2,0)","v":{"$error":"#N/A"}},{"$f":"VLOOKUP(N193,'Data order'!M:O,3,0)","v":{"$error":"#N/A"}},null,null,null,{"$f":"IFERROR(\n  IF(R193=\"Big&Tall\",\n      VLOOKUP(S193, 'Data order'!$AC$92:$AD$101, 2, FALSE),\n      IF(R193=\"Boordmaat\",\n          VLOOKUP(S193, 'Data order'!$AC$102:$AD$116, 2, FALSE),\n          VLOOKUP(S193, 'Data order'!$AC$2:$AD$91, 2, FALSE)\n      )\n  ),\n\"\")","v":""},null,null,null,null,"EUR",null,null,null,{"$error":"#DIV/0!"},0,0,null,"","","","","","","","","","",null,null,null,null,null,null,null,null,null,null,null,null,null,null,null,null,null,"ZWO"]
[null,null,null,null,null,{"$f":"VLOOKUP(G194,'Data order'!Z:AA,2,0)","v":{"$error":"#N/A"}},null,null,null,null,null,null,null,null,{"$f":"VLOOKUP(N194,Tabel10[[korte omschrijving]:[MCC3_CODE]],2,0)","v":{"$error":"#N/A"}},{"$f":"VLOOKUP(N194,'Data order'!M:O,3,0)","v":{"$error":"#N/A"}},null,null,null,{"$f":"IFERROR(\n  IF(R194=\"Big&Tall\",\n      VLOOKUP(S194, 'Data order'!$AC$92:$AD$101, 2, FALSE),\n      IF(R194=\"Boordmaat\",\n          VLOOKUP(S194, 'Data order'!$AC$102:$AD$116, 2, FALSE),\n          VLOOKUP(S194, 'Data order'!$AC$2:$AD$91, 2, FALSE)\n      )\n  ),\n\"\")","v":""},null,null,null,null,"EUR",null,null,null,{"$error":"#DIV/0!"},0,0,null,"","","","","","","","","","",null,null,null,null,null,null,null,null,null,null,null,null,null,null,null,null,null,"ZWO"]
[null,null,null,null,null,{"$f":"VLOOKUP(G195,'Data order'!Z:AA,2,0)","v":{"$error":"#N/A"}},null,null,null,null,null,null,null,null,{"$f":"VLOOKUP(N195,Tabel10[[korte omschrijving]:[MCC3_CODE]],2,0)","v":{"$error":"#N/A"}},{"$f":"VLOOKUP(N195,'Data order'!M:O,3,0)","v":{"$error":"#N/A"}},null,null,null,{"$f":"IFERROR(\n  IF(R195=\"Big&Tall\",\n      VLOOKUP(S195, 'Data order'!$AC$92:$AD$101, 2, FALSE),\n      IF(R195=\"Boordmaat\",\n          VLOOKUP(S195, 'Data order'!$AC$102:$AD$116, 2, FALSE),\n          VLOOKUP(S195, 'Data order'!$AC$2:$AD$91, 2, FALSE)\n      )\n  ),\n\"\")","v":""},null,null,null,null,"EUR",null,null,null,{"$error":"#DIV/0!"},0,0,null,"","","","","","","","","","",null,null,null,null,null,null,null,null,null,null,null,null,null,null,null,null,null,"ZWO"]
[null,null,null,null,null,{"$f":"VLOOKUP(G196,'Data order'!Z:AA,2,0)","v":{"$error":"#N/A"}},null,null,null,null,null,null,null,null,{"$f":"VLOOKUP(N196,Tabel10[[korte omschrijving]:[MCC3_CODE]],2,0)","v":{"$error":"#N/A"}},{"$f":"VLOOKUP(N196,'Data order'!M:O,3,0)","v":{"$error":"#N/A"}},null,null,null,{"$f":"IFERROR(\n  IF(R196=\"Big&Tall\",\n      VLOOKUP(S196, 'Data order'!$AC$92:$AD$101, 2, FALSE),\n      IF(R196=\"Boordmaat\",\n          VLOOKUP(S196, 'Data order'!$AC$102:$AD$116, 2, FALSE),\n          VLOOKUP(S196, 'Data order'!$AC$2:$AD$91, 2, FALSE)\n      )\n  ),\n\"\")","v":""},null,null,null,null,"EUR",null,null,null,{"$error":"#DIV/0!"},0,0,null,"","","","","","","","","","",null,null,null,null,null,null,null,null,null,null,null,null,null,null,null,null,null,"ZWO"]
[null,null,null,null,null,{"$f":"VLOOKUP(G197,'Data order'!Z:AA,2,0)","v":{"$error":"#N/A"}},null,null,null,null,null,null,null,null,{"$f":"VLOOKUP(N197,Tabel10[[korte omschrijving]:[MCC3_CODE]],2,0)","v":{"$error":"#N/A"}},{"$f":"VLOOKUP(N197,'Data order'!M:O,3,0)","v":{"$error":"#N/A"}},null,null,null,{"$f":"IFERROR(\n  IF(R197=\"Big&Tall\",\n      VLOOKUP(S197, 'Data order'!$AC$92:$AD$101, 2, FALSE),\n      IF(R197=\"Boordmaat\",\n          VLOOKUP(S197, 'Data order'!$AC$102:$AD$116, 2, FALSE),\n          VLOOKUP(S197, 'Data order'!$AC$2:$AD$91, 2, FALSE)\n      )\n  ),\n\"\")","v":""},null,null,null,null,"EUR",null,null,null,{"$error":"#DIV/0!"},0,0,null,"","","","","","","","","","",null,null,null,null,null,null,null,null,null,null,null,null,null,null,null,null,null,"ZWO"]
[null,null,null,null,null,{"$f":"VLOOKUP(G198,'Data order'!Z:AA,2,0)","v":{"$error":"#N/A"}},null,null,null,null,null,null,null,null,{"$f":"VLOOKUP(N198,Tabel10[[korte omschrijving]:[MCC3_CODE]],2,0)","v":{"$error":"#N/A"}},{"$f":"VLOOKUP(N198,'Data order'!M:O,3,0)","v":{"$error":"#N/A"}},null,null,null,{"$f":"IFERROR(\n  IF(R198=\"Big&Tall\",\n      VLOOKUP(S198, 'Data order'!$AC$92:$AD$101, 2, FALSE),\n      IF(R198=\"Boordmaat\",\n          VLOOKUP(S198, 'Data order'!$AC$102:$AD$116, 2, FALSE),\n          VLOOKUP(S198, 'Data order'!$AC$2:$AD$91, 2, FALSE)\n      )\n  ),\n\"\")","v":""},null,{"$f":"SUM(U198:U203)","v":0},null,null,"EUR",null,null,null,{"$error":"#DIV/0!"},0,0,null,"","","","","","","","","","",null,null,null,null,null,null,null,null,null,null,null,null,null,null,null,null,null,"ZWO"]
[null,null,null,null,null,{"$f":"VLOOKUP(G199,'Data order'!Z:AA,2,0)","v":{"$error":"#N/A"}},null,null,null,null,null,null,null,null,{"$f":"VLOOKUP(N199,Tabel10[[korte omschrijving]:[MCC3_CODE]],2,0)","v":{"$error":"#N/A"}},{"$f":"VLOOKUP(N199,'Data order'!M:O,3,0)","v":{"$error":"#N/A"}},null,null,null,{"$f":"IFERROR(\n  IF(R199=\"Big&Tall\",\n      VLOOKUP(S199, 'Data order'!$AC$92:$AD$101, 2, FALSE),\n      IF(R199=\"Boordmaat\",\n          VLOOKUP(S199, 'Data order'!$AC$102:$AD$116, 2, FALSE),\n          VLOOKUP(S199, 'Data order'!$AC$2:$AD$91, 2, FALSE)\n      )\n  ),\n\"\")","v":""},null,null,null,null,"EUR",null,null,null,{"$f":"AB199/Z199","v":{"$error":"#DIV/0!"}},{"$f":"U199*Z199","v":0},0,null,{"$f":"IF(AF199 <> \"\",\n    IF(ISNUMBER(VALUE(LEFT(AF199, FIND(\"%\", AF199)-1))),\n        VALUE(LEFT(AF199, FIND(\"%\", AF199)-1)),\n        \"Invalid format\"),\n    \"\")","v":""},{"$f":"IF(AF199 <> \"\",\n    IF(ISNUMBER(VALUE(LEFT(AF199, FIND(\"%\", AF199)-1))) * ISNUMBER(FIND(\"%\", AF199 & \"wol\")) > 0,\n        TRIM(MID(AF199, FIND(\"%\", AF199)+1, FIND(\"/\", AF199 & \"/\")-FIND(\"%\", AF199)-1)),\n        \"Invalid format\"),\n    \"\")","v":""},{"$f":"IF(AF199 <> \"\",\n    IF(ISNUMBER(VALUE(MID(AF199, FIND(\"/\", AF199) + 1, FIND(\"%\", AF199, FIND(\"/\", AF199)) - FIND(\"/\", AF199) - 1))),\n        VALUE(MID(AF199, FIND(\"/\", AF199) + 1, FIND(\"%\", AF199, FIND(\"/\", AF199)) - FIND(\"/\", AF199) - 1)),\n        \"\"),\n    \"\")","v":""},{"$f":"IF(AF199 <> \"\",\n    IFERROR(TRIM(MID(AF199, FIND(\"%\", AF199, FIND(\"/\", AF199)+1)+2,\n        IFERROR(FIND(\"/\", AF199 & \"/\", FIND(\"/\", AF199)+1)-FIND(\"%\", AF199, FIND(\"/\", AF199)+1)-2, LEN(AF199)-FIND(\"%\", AF199, FIND(\"/\", AF199)+1)-1))),\n        \"\"),\n    \"\")","v":""},{"$f":"IF(AF199 <> \"\",\n    IF(ISNUMBER(VALUE(MID(AF199, FIND(\"/\", AF199, FIND(\"/\", AF199)+1) + 1, FIND(\"%\", AF199, FIND(\"/\", AF199, FIND(\"/\", AF199)+1)) - FIND(\"/\", AF199, FIND(\"/\", AF199)+1) - 1))),\n        VALUE(MID(AF199, FIND(\"/\", AF199, FIND(\"/\", AF199)+1) + 1, FIND(\"%\", AF199, FIND(\"/\", AF199, FIND(\"/\", AF199)+1)) - FIND(\"/\", AF199, FIND(\"/\", AF199)+1) - 1)),\n        \"\"),\n    \"\")","v":""},{"$f":"IF(AF199 <> \"\",\n    IFERROR(\n        TRIM(MID(AF199,\n            FIND(\"%\", AF199, FIND(\"%\", AF199, FIND(\"%\", AF199)+1)+1)+1,\n            FIND(\"/\", AF199 & \"/\", FIND(\"%\", AF199, FIND(\"%\", AF199, FIND(\"%\", AF199)+1)+1))-FIND(\"%\", AF199, FIND(\"%\", AF199, FIND(\"%\", AF199)+1)+1)-1)\n        ),\n        \"\"\n    ),\n    \"\"\n)","v":""},{"$f":"IF(AF199 <> \"\",\n    IF(ISNUMBER(VALUE(MID(AF199, FIND(\"/\", AF199, FIND(\"/\", AF199, FIND(\"/\", AF199)+1)+1) + 1, FIND(\"%\", AF199, FIND(\"/\", AF199, FIND(\"/\", AF199, FIND(\"/\", AF199)+1)+1)) - FIND(\"/\", AF199, FIND(\"/\", AF199, FIND(\"/\", AF199)+1)+1) - 1))),\n        VALUE(MID(AF199, FIND(\"/\", AF199, FIND(\"/\", AF199, FIND(\"/\", AF199)+1)+1) + 1, FIND(\"%\", AF199, FIND(\"/\", AF199, FIND(\"/\", AF199, FIND(\"/\", AF199)+1)+1)) - FIND(\"/\", AF199, FIND(\"/\", AF199, FIND(\"/\", AF199)+1)+1) - 1)),\n        \"\"),\n    \"\")","v":""},{"$f":"IF(AF199 <> \"\",\n    IFERROR(TRIM(MID(AF199, FIND(\"%\", AF199, FIND(\"/\", AF199, FIND(\"/\", AF199, FIND(\"/\", AF199)+1)+1)+1)+2,\n        IFERROR(FIND(\"/\", AF199, FIND(\"/\", AF199, FIND(\"/\", AF199, FIND(\"/\", AF199)+1)+1)+1)-FIND(\"%\", AF199, FIND(\"/\", AF199, FIND(\"/\", AF199, FIND(\"/\", AF199)+1)+1)+1)-2, LEN(AF199)-FIND(\"%\", AF199, FIND(\"/\", AF199, FIND(\"/\", AF199, FIND(\"/\", AF199)+1)+1)+1)-1))),\n        \"\"),\n    \"\")","v":""},{"$f":"IF(AF199 <> \"\",\n    IF(ISNUMBER(VALUE(MID(AF199, FIND(\"/\", AF199, FIND(\"/\", AF199, FIND(\"/\", AF199, FIND(\"/\", AF199)+1)+1)+1) + 1, FIND(\"%\", AF199, FIND(\"/\", AF199, FIND(\"/\", AF199, FIND(\"/\", AF199, FIND(\"/\", AF199)+1)+1)+1)) - FIND(\"/\", AF199, FIND(\"/\", AF199, FIND(\"/\", AF199, FIND(\"/\", AF199)+1)+1)+1) - 1))),\n        VALUE(MID(AF199, FIND(\"/\", AF199, FIND(\"/\", AF199, FIND(\"/\", AF199, FIND(\"/\", AF199)+1)+1)+1) + 1, FIND(\"%\", AF199, FIND(\"/\", AF199, FIND(\"/\", AF199, FIND(\"/\", AF199, FIND(\"/\", AF199)+1)+1)+1)) - FIND(\"/\", AF199, FIND(\"/\", AF199, FIND(\"/\", AF199, FIND(\"/\", AF199)+1)+1)+1) - 1)),\n        \"\"),\n    \"\")","v":""},{"$f":"IF(AF199 = \"\", \"\",\n    IFERROR(TRIM(\n        MID(\n            AF199,\n            FIND(\"%\", AF199, FIND(\"/\", AF199, FIND(\"/\", AF199, FIND(\"/\", AF199, FIND(\"/\", AF199)+1)+1)+1)+1) + 1,\n            FIND(\"/\", AF199 & \"/\", FIND(\"%\", AF199, FIND(\"/\", AF199, FIND(\"/\", AF199, FIND(\"/\", AF199, FIND(\"/\", AF199)+1)+1)+1)+1)) -\n            FIND(\"%\", AF199, FIND(\"/\", AF199, FIND(\"/\", AF199, FIND(\"/\", AF199, FIND(\"/\", AF199)+1)+1)+1)+1) - 1\n        )\n    ),\n    \"\")\n)","v":""},null,null,null,null,null,null,null,null,null,null,null,null,null,null,null,null,null,"ZWO"]
[null,null,null,null,null,{"$f":"VLOOKUP(G200,'Data order'!Z:AA,2,0)","v":{"$error":"#N/A"}},null,null,null,null,null,null,null,null,{"$f":"VLOOKUP(N200,Tabel10[[korte omschrijving]:[MCC3_CODE]],2,0)","v":{"$error":"#N/A"}},{"$f":"VLOOKUP(N200,'Data order'!M:O,3,0)","v":{"$error":"#N/A"}},null,null,null,{"$f":"IFERROR(\n  IF(R200=\"Big&Tall\",\n      VLOOKUP(S200, 'Data order'!$AC$92:$AD$101, 2, FALSE),\n      IF(R200=\"Boordmaat\",\n          VLOOKUP(S200, 'Data order'!$AC$102:$AD$116, 2, FALSE),\n          VLOOKUP(S200, 'Data order'!$AC$2:$AD$91, 2, FALSE)\n      )\n  ),\n\"\")","v":""},null,null,null,null,"EUR",null,null,null,{"$error":"#DIV/0!"},0,{"$f":"U200*AB200","v":0},null,"","","","","","","","","","",null,null,null,null,null,null,null,null,null,null,null,null,null,null,null,null,null,"ZWO"]
[null,null,null,null,null,{"$f":"VLOOKUP(G201,'Data order'!Z:AA,2,0)","v":{"$error":"#N/A"}},null,null,null,null,null,null,null,null,{"$f":"VLOOKUP(N201,Tabel10[[korte omschrijving]:[MCC3_CODE]],2,0)","v":{"$error":"#N/A"}},{"$f":"VLOOKUP(N201,'Data order'!M:O,3,0)","v":{"$error":"#N/A"}},null,null,null,{"$f":"IFERROR(\n  IF(R201=\"Big&Tall\",\n      VLOOKUP(S201, 'Data order'!$AC$92:$AD$101, 2, FALSE),\n      IF(R201=\"Boordmaat\",\n          VLOOKUP(S201, 'Data order'!$AC$102:$AD$116, 2, FALSE),\n          VLOOKUP(S201, 'Data order'!$AC$2:$AD$91, 2, FALSE)\n      )\n  ),\n\"\")","v":""},null,null,null,null,"EUR",null,null,null,{"$error":"#DIV/0!"},0,0,null,"","","","","","","","","","",null,null,null,null,null,null,null,null,null,null,null,null,null,null,null,null,null,"ZWO"]
[null,null,null,null,null,{"$f":"VLOOKUP(G202,'Data order'!Z:AA,2,0)","v":{"$error":"#N/A"}},null,null,null,null,null,null,null,null,{"$f":"VLOOKUP(N202,Tabel10[[korte omschrijving]:[MCC3_CODE]],2,0)","v":{"$error":"#N/A"}},{"$f":"VLOOKUP(N202,'Data order'!M:O,3,0)","v":{"$error":"#N/A"}},null,null,null,{"$f":"IFERROR(\n  IF(R202=\"Big&Tall\",\n      VLOOKUP(S202, 'Data order'!$AC$92:$AD$101, 2, FALSE),\n      IF(R202=\"Boordmaat\",\n          VLOOKUP(S202, 'Data order'!$AC$102:$AD$116, 2, FALSE),\n          VLOOKUP(S202, 'Data order'!$AC$2:$AD$91, 2, FALSE)\n      )\n  ),\n\"\")","v":""},null,null,null,null,"EUR",null,null,null,{"$error":"#DIV/0!"},0,0,null,"","","","","","","","","","",null,null,null,null,null,null,null,null,null,null,null,null,null,null,null,null,null,"ZWO"]
[null,null,null,null,null,{"$f":"VLOOKUP(G203,'Data order'!Z:AA,2,0)","v":{"$error":"#N/A"}},null,null,null,null,null,null,null,null,{"$f":"VLOOKUP(N203,Tabel10[[korte omschrijving]:[MCC3_CODE]],2,0)","v":{"$error":"#N/A"}},{"$f":"VLOOKUP(N203,'Data order'!M:O,3,0)","v":{"$error":"#N/A"}},null,null,null,{"$f":"IFERROR(\n  IF(R203=\"Big&Tall\",\n      VLOOKUP(S203, 'Data order'!$AC$92:$AD$101, 2, FALSE),\n      IF(R203=\"Boordmaat\",\n          VLOOKUP(S203, 'Data order'!$AC$102:$AD$116, 2, FALSE),\n          VLOOKUP(S203, 'Data order'!$AC$2:$AD$91, 2, FALSE)\n      )\n  ),\n\"\")","v":""},null,null,null,null,"EUR",null,null,null,{"$error":"#DIV/0!"},0,0,null,"","","","","","","","","","",null,null,null,null,null,null,null,null,null,null,null,null,null,null,null,null,null,"ZWO"]
[null,null,null,null,null,{"$f":"VLOOKUP(G204,'Data order'!Z:AA,2,0)","v":{"$error":"#N/A"}},null,null,null,null,null,null,null,null,{"$f":"VLOOKUP(N204,Tabel10[[korte omschrijving]:[MCC3_CODE]],2,0)","v":{"$error":"#N/A"}},{"$f":"VLOOKUP(N204,'Data order'!M:O,3,0)","v":{"$error":"#N/A"}},null,null,null,{"$f":"IFERROR(\n  IF(R204=\"Big&Tall\",\n      VLOOKUP(S204, 'Data order'!$AC$92:$AD$101, 2, FALSE),\n      IF(R204=\"Boordmaat\",\n          VLOOKUP(S204, 'Data order'!$AC$102:$AD$116, 2, FALSE),\n          VLOOKUP(S204, 'Data order'!$AC$2:$AD$91, 2, FALSE)\n      )\n  ),\n\"\")","v":""},null,{"$f":"SUM(U204:U209)","v":0},null,null,"EUR",null,null,null,{"$error":"#DIV/0!"},0,0,null,"","","","","","","","","","",null,null,null,null,null,null,null,null,null,null,null,null,null,null,null,null,null,"ZWO"]
[null,null,null,null,null,{"$f":"VLOOKUP(G205,'Data order'!Z:AA,2,0)","v":{"$error":"#N/A"}},null,null,null,null,null,null,null,null,{"$f":"VLOOKUP(N205,Tabel10[[korte omschrijving]:[MCC3_CODE]],2,0)","v":{"$error":"#N/A"}},{"$f":"VLOOKUP(N205,'Data order'!M:O,3,0)","v":{"$error":"#N/A"}},null,null,null,{"$f":"IFERROR(\n  IF(R205=\"Big&Tall\",\n      VLOOKUP(S205, 'Data order'!$AC$92:$AD$101, 2, FALSE),\n      IF(R205=\"Boordmaat\",\n          VLOOKUP(S205, 'Data order'!$AC$102:$AD$116, 2, FALSE),\n          VLOOKUP(S205, 'Data order'!$AC$2:$AD$91, 2, FALSE)\n      )\n  ),\n\"\")","v":""},null,null,null,null,"EUR",null,null,null,{"$error":"#DIV/0!"},0,0,null,"","","","","","","","","","",null,null,null,null,null,null,null,null,null,null,null,null,null,null,null,null,null,"ZWO"]
[null,null,null,null,null,{"$f":"VLOOKUP(G206,'Data order'!Z:AA,2,0)","v":{"$error":"#N/A"}},null,null,null,null,null,null,null,null,{"$f":"VLOOKUP(N206,Tabel10[[korte omschrijving]:[MCC3_CODE]],2,0)","v":{"$error":"#N/A"}},{"$f":"VLOOKUP(N206,'Data order'!M:O,3,0)","v":{"$error":"#N/A"}},null,null,null,{"$f":"IFERROR(\n  IF(R206=\"Big&Tall\",\n      VLOOKUP(S206, 'Data order'!$AC$92:$AD$101, 2, FALSE),\n      IF(R206=\"Boordmaat\",\n          VLOOKUP(S206, 'Data order'!$AC$102:$AD$116, 2, FALSE),\n          VLOOKUP(S206, 'Data order'!$AC$2:$AD$91, 2, FALSE)\n      )\n  ),\n\"\")","v":""},null,null,null,null,"EUR",null,null,null,{"$error":"#DIV/0!"},0,0,null,"","","","","","","","","","",null,null,null,null,null,null,null,null,null,null,null,null,null,null,null,null,null,"ZWO"]
[null,null,null,null,null,{"$f":"VLOOKUP(G207,'Data order'!Z:AA,2,0)","v":{"$error":"#N/A"}},null,null,null,null,null,null,null,null,{"$f":"VLOOKUP(N207,Tabel10[[korte omschrijving]:[MCC3_CODE]],2,0)","v":{"$error":"#N/A"}},{"$f":"VLOOKUP(N207,'Data order'!M:O,3,0)","v":{"$error":"#N/A"}},null,null,null,{"$f":"IFERROR(\n  IF(R207=\"Big&Tall\",\n      VLOOKUP(S207, 'Data order'!$AC$92:$AD$101, 2, FALSE),\n      IF(R207=\"Boordmaat\",\n          VLOOKUP(S207, 'Data order'!$AC$102:$AD$116, 2, FALSE),\n          VLOOKUP(S207, 'Data order'!$AC$2:$AD$91, 2, FALSE)\n      )\n  ),\n\"\")","v":""},null,null,null,null,"EUR",null,null,null,{"$error":"#DIV/0!"},0,0,null,"","","","","","","","","","",null,null,null,null,null,null,null,null,null,null,null,null,null,null,null,null,null,"ZWO"]
[null,null,null,null,null,{"$f":"VLOOKUP(G208,'Data order'!Z:AA,2,0)","v":{"$error":"#N/A"}},null,null,null,null,null,null,null,null,{"$f":"VLOOKUP(N208,Tabel10[[korte omschrijving]:[MCC3_CODE]],2,0)","v":{"$error":"#N/A"}},{"$f":"VLOOKUP(N208,'Data order'!M:O,3,0)","v":{"$error":"#N/A"}},null,null,null,{"$f":"IFERROR(\n  IF(R208=\"Big&Tall\",\n      VLOOKUP(S208, 'Data order'!$AC$92:$AD$101, 2, FALSE),\n      IF(R208=\"Boordmaat\",\n          VLOOKUP(S208, 'Data order'!$AC$102:$AD$116, 2, FALSE),\n          VLOOKUP(S208, 'Data order'!$AC$2:$AD$91, 2, FALSE)\n      )\n  ),\n\"\")","v":""},null,null,null,null,"EUR",null,null,null,{"$error":"#DIV/0!"},0,0,null,"","","","","","","","","","",null,null,null,null,null,null,null,null,null,null,null,null,null,null,null,null,null,"ZWO"]
[null,null,null,null,null,{"$f":"VLOOKUP(G209,'Data order'!Z:AA,2,0)","v":{"$error":"#N/A"}},null,null,null,null,null,null,null,null,{"$f":"VLOOKUP(N209,Tabel10[[korte omschrijving]:[MCC3_CODE]],2,0)","v":{"$error":"#N/A"}},{"$f":"VLOOKUP(N209,'Data order'!M:O,3,0)","v":{"$error":"#N/A"}},null,null,null,{"$f":"IFERROR(\n  IF(R209=\"Big&Tall\",\n      VLOOKUP(S209, 'Data order'!$AC$92:$AD$101, 2, FALSE),\n      IF(R209=\"Boordmaat\",\n          VLOOKUP(S209, 'Data order'!$AC$102:$AD$116, 2, FALSE),\n          VLOOKUP(S209, 'Data order'!$AC$2:$AD$91, 2, FALSE)\n      )\n  ),\n\"\")","v":""},null,null,null,null,"EUR",null,null,null,{"$error":"#DIV/0!"},0,0,null,"","","","","","","","","","",null,null,null,null,null,null,null,null,null,null,null,null,null,null,null,null,null,"ZWO"]
[null,null,null,null,null,{"$f":"VLOOKUP(G210,'Data order'!Z:AA,2,0)","v":{"$error":"#N/A"}},null,null,null,null,null,null,null,null,{"$f":"VLOOKUP(N210,Tabel10[[korte omschrijving]:[MCC3_CODE]],2,0)","v":{"$error":"#N/A"}},{"$f":"VLOOKUP(N210,'Data order'!M:O,3,0)","v":{"$error":"#N/A"}},null,null,null,{"$f":"IFERROR(\n  IF(R210=\"Big&Tall\",\n      VLOOKUP(S210, 'Data order'!$AC$92:$AD$101, 2, FALSE),\n      IF(R210=\"Boordmaat\",\n          VLOOKUP(S210, 'Data order'!$AC$102:$AD$116, 2, FALSE),\n          VLOOKUP(S210, 'Data order'!$AC$2:$AD$91, 2, FALSE)\n      )\n  ),\n\"\")","v":""},null,{"$f":"SUM(U210:U215)","v":0},null,null,"EUR",null,null,null,{"$error":"#DIV/0!"},0,0,null,"","","","","","","","","","",null,null,null,null,null,null,null,null,null,null,null,null,null,null,null,null,null,"ZWO"]
[null,null,null,null,null,{"$f":"VLOOKUP(G211,'Data order'!Z:AA,2,0)","v":{"$error":"#N/A"}},null,null,null,null,null,null,null,null,{"$f":"VLOOKUP(N211,Tabel10[[korte omschrijving]:[MCC3_CODE]],2,0)","v":{"$error":"#N/A"}},{"$f":"VLOOKUP(N211,'Data order'!M:O,3,0)","v":{"$error":"#N/A"}},null,null,null,{"$f":"IFERROR(\n  IF(R211=\"Big&Tall\",\n      VLOOKUP(S211, 'Data order'!$AC$92:$AD$101, 2, FALSE),\n      IF(R211=\"Boordmaat\",\n          VLOOKUP(S211, 'Data order'!$AC$102:$AD$116, 2, FALSE),\n          VLOOKUP(S211, 'Data order'!$AC$2:$AD$91, 2, FALSE)\n      )\n  ),\n\"\")","v":""},null,null,null,null,"EUR",null,null,null,{"$error":"#DIV/0!"},0,0,null,"","","","","","","","","","",null,null,null,null,null,null,null,null,null,null,null,null,null,null,null,null,null,"ZWO"]
[null,null,null,null,null,{"$f":"VLOOKUP(G212,'Data order'!Z:AA,2,0)","v":{"$error":"#N/A"}},null,null,null,null,null,null,null,null,{"$f":"VLOOKUP(N212,Tabel10[[korte omschrijving]:[MCC3_CODE]],2,0)","v":{"$error":"#N/A"}},{"$f":"VLOOKUP(N212,'Data order'!M:O,3,0)","v":{"$error":"#N/A"}},null,null,null,{"$f":"IFERROR(\n  IF(R212=\"Big&Tall\",\n      VLOOKUP(S212, 'Data order'!$AC$92:$AD$101, 2, FALSE),\n      IF(R212=\"Boordmaat\",\n          VLOOKUP(S212, 'Data order'!$AC$102:$AD$116, 2, FALSE),\n          VLOOKUP(S212, 'Data order'!$AC$2:$AD$91, 2, FALSE)\n      )\n  ),\n\"\")","v":""},null,null,null,null,"EUR",null,null,null,{"$error":"#DIV/0!"},0,0,null,"","","","","","","","","","",null,null,null,null,null,null,null,null,null,null,null,null,null,null,null,null,null,"ZWO"]
[null,null,null,null,null,{"$f":"VLOOKUP(G213,'Data order'!Z:AA,2,0)","v":{"$error":"#N/A"}},null,null,null,null,null,null,null,null,{"$f":"VLOOKUP(N213,Tabel10[[korte omschrijving]:[MCC3_CODE]],2,0)","v":{"$error":"#N/A"}},{"$f":"VLOOKUP(N213,'Data order'!M:O,3,0)","v":{"$error":"#N/A"}},null,null,null,{"$f":"IFERROR(\n  IF(R213=\"Big&Tall\",\n      VLOOKUP(S213, 'Data order'!$AC$92:$AD$101, 2, FALSE),\n      IF(R213=\"Boordmaat\",\n          VLOOKUP(S213, 'Data order'!$AC$102:$AD$116, 2, FALSE),\n          VLOOKUP(S213, 'Data order'!$AC$2:$AD$91, 2, FALSE)\n      )\n  ),\n\"\")","v":""},null,null,null,null,"EUR",null,null,null,{"$error":"#DIV/0!"},0,0,null,"","","","","","","","","","",null,null,null,null,null,null,null,null,null,null,null,null,null,null,null,null,null,"ZWO"]
[null,null,null,null,null,{"$f":"VLOOKUP(G214,'Data order'!Z:AA,2,0)","v":{"$error":"#N/A"}},null,null,null,null,null,null,null,null,{"$f":"VLOOKUP(N214,Tabel10[[korte omschrijving]:[MCC3_CODE]],2,0)","v":{"$error":"#N/A"}},{"$f":"VLOOKUP(N214,'Data order'!M:O,3,0)","v":{"$error":"#N/A"}},null,null,null,{"$f":"IFERROR(\n  IF(R214=\"Big&Tall\",\n      VLOOKUP(S214, 'Data order'!$AC$92:$AD$101, 2, FALSE),\n      IF(R214=\"Boordmaat\",\n          VLOOKUP(S214, 'Data order'!$AC$102:$AD$116, 2, FALSE),\n          VLOOKUP(S214, 'Data order'!$AC$2:$AD$91, 2, FALSE)\n      )\n  ),\n\"\")","v":""},null,null,null,null,"EUR",null,null,null,{"$error":"#DIV/0!"},0,0,null,"","","","","","","","","","",null,null,null,null,null,null,null,null,null,null,null,null,null,null,null,null,null,"ZWO"]
[null,null,null,null,null,{"$f":"VLOOKUP(G215,'Data order'!Z:AA,2,0)","v":{"$error":"#N/A"}},null,null,null,null,null,null,null,null,{"$f":"VLOOKUP(N215,Tabel10[[korte omschrijving]:[MCC3_CODE]],2,0)","v":{"$error":"#N/A"}},{"$f":"VLOOKUP(N215,'Data order'!M:O,3,0)","v":{"$error":"#N/A"}},null,null,null,{"$f":"IFERROR(\n  IF(R215=\"Big&Tall\",\n      VLOOKUP(S215, 'Data order'!$AC$92:$AD$101, 2, FALSE),\n      IF(R215=\"Boordmaat\",\n          VLOOKUP(S215, 'Data order'!$AC$102:$AD$116, 2, FALSE),\n          VLOOKUP(S215, 'Data order'!$AC$2:$AD$91, 2, FALSE)\n      )\n  ),\n\"\")","v":""},null,null,null,null,"EUR",null,null,null,{"$error":"#DIV/0!"},0,0,null,"","","","","","","","","","",null,null,null,null,null,null,null,null,null,null,null,null,null,null,null,null,null,"ZWO"]
[null,null,null,null,null,{"$f":"VLOOKUP(G216,'Data order'!Z:AA,2,0)","v":{"$error":"#N/A"}},null,null,null,null,null,null,null,null,{"$f":"VLOOKUP(N216,Tabel10[[korte omschrijving]:[MCC3_CODE]],2,0)","v":{"$error":"#N/A"}},{"$f":"VLOOKUP(N216,'Data order'!M:O,3,0)","v":{"$error":"#N/A"}},null,null,null,{"$f":"IFERROR(\n  IF(R216=\"Big&Tall\",\n      VLOOKUP(S216, 'Data order'!$AC$92:$AD$101, 2, FALSE),\n      IF(R216=\"Boordmaat\",\n          VLOOKUP(S216, 'Data order'!$AC$102:$AD$116, 2, FALSE),\n          VLOOKUP(S216, 'Data order'!$AC$2:$AD$91, 2, FALSE)\n      )\n  ),\n\"\")","v":""},null,{"$f":"SUM(U216:U221)","v":0},null,null,"EUR",null,null,null,{"$error":"#DIV/0!"},0,0,null,"","","","","","","","","","",null,null,null,null,null,null,null,null,null,null,null,null,null,null,null,null,null,"ZWO"]
[null,null,null,null,null,{"$f":"VLOOKUP(G217,'Data order'!Z:AA,2,0)","v":{"$error":"#N/A"}},null,null,null,null,null,null,null,null,{"$f":"VLOOKUP(N217,Tabel10[[korte omschrijving]:[MCC3_CODE]],2,0)","v":{"$error":"#N/A"}},{"$f":"VLOOKUP(N217,'Data order'!M:O,3,0)","v":{"$error":"#N/A"}},null,null,null,{"$f":"IFERROR(\n  IF(R217=\"Big&Tall\",\n      VLOOKUP(S217, 'Data order'!$AC$92:$AD$101, 2, FALSE),\n      IF(R217=\"Boordmaat\",\n          VLOOKUP(S217, 'Data order'!$AC$102:$AD$116, 2, FALSE),\n          VLOOKUP(S217, 'Data order'!$AC$2:$AD$91, 2, FALSE)\n      )\n  ),\n\"\")","v":""},null,null,null,null,"EUR",null,null,null,{"$error":"#DIV/0!"},0,0,null,"","","","","","","","","","",null,null,null,null,null,null,null,null,null,null,null,null,null,null,null,null,null,"ZWO"]
[null,null,null,null,null,{"$f":"VLOOKUP(G218,'Data order'!Z:AA,2,0)","v":{"$error":"#N/A"}},null,null,null,null,null,null,null,null,{"$f":"VLOOKUP(N218,Tabel10[[korte omschrijving]:[MCC3_CODE]],2,0)","v":{"$error":"#N/A"}},{"$f":"VLOOKUP(N218,'Data order'!M:O,3,0)","v":{"$error":"#N/A"}},null,null,null,{"$f":"IFERROR(\n  IF(R218=\"Big&Tall\",\n      VLOOKUP(S218, 'Data order'!$AC$92:$AD$101, 2, FALSE),\n      IF(R218=\"Boordmaat\",\n          VLOOKUP(S218, 'Data order'!$AC$102:$AD$116, 2, FALSE),\n          VLOOKUP(S218, 'Data order'!$AC$2:$AD$91, 2, FALSE)\n      )\n  ),\n\"\")","v":""},null,null,null,null,"EUR",null,null,null,{"$error":"#DIV/0!"},0,0,null,"","","","","","","","","","",null,null,null,null,null,null,null,null,null,null,null,null,null,null,null,null,null,"ZWO"]
[null,null,null,null,null,{"$f":"VLOOKUP(G219,'Data order'!Z:AA,2,0)","v":{"$error":"#N/A"}},null,null,null,null,null,null,null,null,{"$f":"VLOOKUP(N219,Tabel10[[korte omschrijving]:[MCC3_CODE]],2,0)","v":{"$error":"#N/A"}},{"$f":"VLOOKUP(N219,'Data order'!M:O,3,0)","v":{"$error":"#N/A"}},null,null,null,{"$f":"IFERROR(\n  IF(R219=\"Big&Tall\",\n      VLOOKUP(S219, 'Data order'!$AC$92:$AD$101, 2, FALSE),\n      IF(R219=\"Boordmaat\",\n          VLOOKUP(S219, 'Data order'!$AC$102:$AD$116, 2, FALSE),\n          VLOOKUP(S219, 'Data order'!$AC$2:$AD$91, 2, FALSE)\n      )\n  ),\n\"\")","v":""},null,null,null,null,"EUR",null,null,null,{"$error":"#DIV/0!"},0,0,null,"","","","","","","","","","",null,null,null,null,null,null,null,null,null,null,null,null,null,null,null,null,null,"ZWO"]
[null,null,null,null,null,{"$f":"VLOOKUP(G220,'Data order'!Z:AA,2,0)","v":{"$error":"#N/A"}},null,null,null,null,null,null,null,null,{"$f":"VLOOKUP(N220,Tabel10[[korte omschrijving]:[MCC3_CODE]],2,0)","v":{"$error":"#N/A"}},{"$f":"VLOOKUP(N220,'Data order'!M:O,3,0)","v":{"$error":"#N/A"}},null,null,null,{"$f":"IFERROR(\n  IF(R220=\"Big&Tall\",\n      VLOOKUP(S220, 'Data order'!$AC$92:$AD$101, 2, FALSE),\n      IF(R220=\"Boordmaat\",\n          VLOOKUP(S220, 'Data order'!$AC$102:$AD$116, 2, FALSE),\n          VLOOKUP(S220, 'Data order'!$AC$2:$AD$91, 2, FALSE)\n      )\n  ),\n\"\")","v":""},null,null,null,null,"EUR",null,null,null,{"$error":"#DIV/0!"},0,0,null,"","","","","","","","","","",null,null,null,null,null,null,null,null,null,null,null,null,null,null,null,null,null,"ZWO"]
[null,null,null,null,null,{"$f":"VLOOKUP(G221,'Data order'!Z:AA,2,0)","v":{"$error":"#N/A"}},null,null,null,null,null,null,null,null,{"$f":"VLOOKUP(N221,Tabel10[[korte omschrijving]:[MCC3_CODE]],2,0)","v":{"$error":"#N/A"}},{"$f":"VLOOKUP(N221,'Data order'!M:O,3,0)","v":{"$error":"#N/A"}},null,null,null,{"$f":"IFERROR(\n  IF(R221=\"Big&Tall\",\n      VLOOKUP(S221, 'Data order'!$AC$92:$AD$101, 2, FALSE),\n      IF(R221=\"Boordmaat\",\n          VLOOKUP(S221, 'Data order'!$AC$102:$AD$116, 2, FALSE),\n          VLOOKUP(S221, 'Data order'!$AC$2:$AD$91, 2, FALSE)\n      )\n  ),\n\"\")","v":""},null,null,null,null,"EUR",null,null,null,{"$error":"#DIV/0!"},0,0,null,"","","","","","","","","","",null,null,null,null,null,null,null,null,null,null,null,null,null,null,null,null,null,"ZWO"]
[null,null,null,null,null,{"$f":"VLOOKUP(G222,'Data order'!Z:AA,2,0)","v":{"$error":"#N/A"}},null,null,null,null,null,null,null,null,{"$f":"VLOOKUP(N222,Tabel10[[korte omschrijving]:[MCC3_CODE]],2,0)","v":{"$error":"#N/A"}},{"$f":"VLOOKUP(N222,'Data order'!M:O,3,0)","v":{"$error":"#N/A"}},null,null,null,{"$f":"IFERROR(\n  IF(R222=\"Big&Tall\",\n      VLOOKUP(S222, 'Data order'!$AC$92:$AD$101, 2, FALSE),\n      IF(R222=\"Boordmaat\",\n          VLOOKUP(S222, 'Data order'!$AC$102:$AD$116, 2, FALSE),\n          VLOOKUP(S222, 'Data order'!$AC$2:$AD$91, 2, FALSE)\n      )\n  ),\n\"\")","v":""},null,{"$f":"SUM(U222:U227)","v":0},null,null,"EUR",null,null,null,{"$error":"#DIV/0!"},0,0,null,"","","","","","","","","","",null,null,null,null,null,null,null,null,null,null,null,null,null,null,null,null,null,"ZWO"]
[null,null,null,null,null,{"$f":"VLOOKUP(G223,'Data order'!Z:AA,2,0)","v":{"$error":"#N/A"}},null,null,null,null,null,null,null,null,{"$f":"VLOOKUP(N223,Tabel10[[korte omschrijving]:[MCC3_CODE]],2,0)","v":{"$error":"#N/A"}},{"$f":"VLOOKUP(N223,'Data order'!M:O,3,0)","v":{"$error":"#N/A"}},null,null,null,{"$f":"IFERROR(\n  IF(R223=\"Big&Tall\",\n      VLOOKUP(S223, 'Data order'!$AC$92:$AD$101, 2, FALSE),\n      IF(R223=\"Boordmaat\",\n          VLOOKUP(S223, 'Data order'!$AC$102:$AD$116, 2, FALSE),\n          VLOOKUP(S223, 'Data order'!$AC$2:$AD$91, 2, FALSE)\n      )\n  ),\n\"\")","v":""},null,null,null,null,"EUR",null,null,null,{"$error":"#DIV/0!"},0,0,null,"","","","","","","","","","",null,null,null,null,null,null,null,null,null,null,null,null,null,null,null,null,null,"ZWO"]
[null,null,null,null,null,{"$f":"VLOOKUP(G224,'Data order'!Z:AA,2,0)","v":{"$error":"#N/A"}},null,null,null,null,null,null,null,null,{"$f":"VLOOKUP(N224,Tabel10[[korte omschrijving]:[MCC3_CODE]],2,0)","v":{"$error":"#N/A"}},{"$f":"VLOOKUP(N224,'Data order'!M:O,3,0)","v":{"$error":"#N/A"}},null,null,null,{"$f":"IFERROR(\n  IF(R224=\"Big&Tall\",\n      VLOOKUP(S224, 'Data order'!$AC$92:$AD$101, 2, FALSE),\n      IF(R224=\"Boordmaat\",\n          VLOOKUP(S224, 'Data order'!$AC$102:$AD$116, 2, FALSE),\n          VLOOKUP(S224, 'Data order'!$AC$2:$AD$91, 2, FALSE)\n      )\n  ),\n\"\")","v":""},null,null,null,null,"EUR",null,null,null,{"$error":"#DIV/0!"},0,0,null,"","","","","","","","","","",null,null,null,null,null,null,null,null,null,null,null,null,null,null,null,null,null,"ZWO"]
[null,null,null,null,null,{"$f":"VLOOKUP(G225,'Data order'!Z:AA,2,0)","v":{"$error":"#N/A"}},null,null,null,null,null,null,null,null,{"$f":"VLOOKUP(N225,Tabel10[[korte omschrijving]:[MCC3_CODE]],2,0)","v":{"$error":"#N/A"}},{"$f":"VLOOKUP(N225,'Data order'!M:O,3,0)","v":{"$error":"#N/A"}},null,null,null,{"$f":"IFERROR(\n  IF(R225=\"Big&Tall\",\n      VLOOKUP(S225, 'Data order'!$AC$92:$AD$101, 2, FALSE),\n      IF(R225=\"Boordmaat\",\n          VLOOKUP(S225, 'Data order'!$AC$102:$AD$116, 2, FALSE),\n          VLOOKUP(S225, 'Data order'!$AC$2:$AD$91, 2, FALSE)\n      )\n  ),\n\"\")","v":""},null,null,null,null,"EUR",null,null,null,{"$error":"#DIV/0!"},0,0,null,"","","","","","","","","","",null,null,null,null,null,null,null,null,null,null,null,null,null,null,null,null,null,"ZWO"]
[null,null,null,null,null,{"$f":"VLOOKUP(G226,'Data order'!Z:AA,2,0)","v":{"$error":"#N/A"}},null,null,null,null,null,null,null,null,{"$f":"VLOOKUP(N226,Tabel10[[korte omschrijving]:[MCC3_CODE]],2,0)","v":{"$error":"#N/A"}},{"$f":"VLOOKUP(N226,'Data order'!M:O,3,0)","v":{"$error":"#N/A"}},null,null,null,{"$f":"IFERROR(\n  IF(R226=\"Big&Tall\",\n      VLOOKUP(S226, 'Data order'!$AC$92:$AD$101, 2, FALSE),\n      IF(R226=\"Boordmaat\",\n          VLOOKUP(S226, 'Data order'!$AC$102:$AD$116, 2, FALSE),\n          VLOOKUP(S226, 'Data order'!$AC$2:$AD$91, 2, FALSE)\n      )\n  ),\n\"\")","v":""},null,null,null,null,"EUR",null,null,null,{"$error":"#DIV/0!"},0,0,null,"","","","","","","","","","",null,null,null,null,null,null,null,null,null,null,null,null,null,null,null,null,null,"ZWO"]
[null,null,null,null,null,{"$f":"VLOOKUP(G227,'Data order'!Z:AA,2,0)","v":{"$error":"#N/A"}},null,null,null,null,null,null,null,null,{"$f":"VLOOKUP(N227,Tabel10[[korte omschrijving]:[MCC3_CODE]],2,0)","v":{"$error":"#N/A"}},{"$f":"VLOOKUP(N227,'Data order'!M:O,3,0)","v":{"$error":"#N/A"}},null,null,null,{"$f":"IFERROR(\n  IF(R227=\"Big&Tall\",\n      VLOOKUP(S227, 'Data order'!$AC$92:$AD$101, 2, FALSE),\n      IF(R227=\"Boordmaat\",\n          VLOOKUP(S227, 'Data order'!$AC$102:$AD$116, 2, FALSE),\n          VLOOKUP(S227, 'Data order'!$AC$2:$AD$91, 2, FALSE)\n      )\n  ),\n\"\")","v":""},null,null,null,null,"EUR",null,null,null,{"$error":"#DIV/0!"},0,0,null,"","","","","","","","","","",null,null,null,null,null,null,null,null,null,null,null,null,null,null,null,null,null,"ZWO"]
[null,null,null,null,null,{"$f":"VLOOKUP(G228,'Data order'!Z:AA,2,0)","v":{"$error":"#N/A"}},null,null,null,null,null,null,null,null,{"$f":"VLOOKUP(N228,Tabel10[[korte omschrijving]:[MCC3_CODE]],2,0)","v":{"$error":"#N/A"}},{"$f":"VLOOKUP(N228,'Data order'!M:O,3,0)","v":{"$error":"#N/A"}},null,null,null,{"$f":"IFERROR(\n  IF(R228=\"Big&Tall\",\n      VLOOKUP(S228, 'Data order'!$AC$92:$AD$101, 2, FALSE),\n      IF(R228=\"Boordmaat\",\n          VLOOKUP(S228, 'Data order'!$AC$102:$AD$116, 2, FALSE),\n          VLOOKUP(S228, 'Data order'!$AC$2:$AD$91, 2, FALSE)\n      )\n  ),\n\"\")","v":""},null,{"$f":"SUM(U228:U233)","v":0},null,null,"EUR",null,null,null,{"$error":"#DIV/0!"},0,0,null,"","","","","","","","","","",null,null,null,null,null,null,null,null,null,null,null,null,null,null,null,null,null,"ZWO"]
[null,null,null,null,null,{"$f":"VLOOKUP(G229,'Data order'!Z:AA,2,0)","v":{"$error":"#N/A"}},null,null,null,null,null,null,null,null,{"$f":"VLOOKUP(N229,Tabel10[[korte omschrijving]:[MCC3_CODE]],2,0)","v":{"$error":"#N/A"}},{"$f":"VLOOKUP(N229,'Data order'!M:O,3,0)","v":{"$error":"#N/A"}},null,null,null,{"$f":"IFERROR(\n  IF(R229=\"Big&Tall\",\n      VLOOKUP(S229, 'Data order'!$AC$92:$AD$101, 2, FALSE),\n      IF(R229=\"Boordmaat\",\n          VLOOKUP(S229, 'Data order'!$AC$102:$AD$116, 2, FALSE),\n          VLOOKUP(S229, 'Data order'!$AC$2:$AD$91, 2, FALSE)\n      )\n  ),\n\"\")","v":""},null,null,null,null,"EUR",null,null,null,{"$error":"#DIV/0!"},0,0,null,"","","","","","","","","","",null,null,null,null,null,null,null,null,null,null,null,null,null,null,null,null,null,"ZWO"]
[null,null,null,null,null,{"$f":"VLOOKUP(G230,'Data order'!Z:AA,2,0)","v":{"$error":"#N/A"}},null,null,null,null,null,null,null,null,{"$f":"VLOOKUP(N230,Tabel10[[korte omschrijving]:[MCC3_CODE]],2,0)","v":{"$error":"#N/A"}},{"$f":"VLOOKUP(N230,'Data order'!M:O,3,0)","v":{"$error":"#N/A"}},null,null,null,{"$f":"IFERROR(\n  IF(R230=\"Big&Tall\",\n      VLOOKUP(S230, 'Data order'!$AC$92:$AD$101, 2, FALSE),\n      IF(R230=\"Boordmaat\",\n          VLOOKUP(S230, 'Data order'!$AC$102:$AD$116, 2, FALSE),\n          VLOOKUP(S230, 'Data order'!$AC$2:$AD$91, 2, FALSE)\n      )\n  ),\n\"\")","v":""},null,null,null,null,"EUR",null,null,null,{"$error":"#DIV/0!"},0,0,null,"","","","","","","","","","",null,null,null,null,null,null,null,null,null,null,null,null,null,null,null,null,null,"ZWO"]
[null,null,null,null,null,{"$f":"VLOOKUP(G231,'Data order'!Z:AA,2,0)","v":{"$error":"#N/A"}},null,null,null,null,null,null,null,null,{"$f":"VLOOKUP(N231,Tabel10[[korte omschrijving]:[MCC3_CODE]],2,0)","v":{"$error":"#N/A"}},{"$f":"VLOOKUP(N231,'Data order'!M:O,3,0)","v":{"$error":"#N/A"}},null,null,null,{"$f":"IFERROR(\n  IF(R231=\"Big&Tall\",\n      VLOOKUP(S231, 'Data order'!$AC$92:$AD$101, 2, FALSE),\n      IF(R231=\"Boordmaat\",\n          VLOOKUP(S231, 'Data order'!$AC$102:$AD$116, 2, FALSE),\n          VLOOKUP(S231, 'Data order'!$AC$2:$AD$91, 2, FALSE)\n      )\n  ),\n\"\")","v":""},null,null,null,null,"EUR",null,null,null,{"$error":"#DIV/0!"},0,0,null,"","","","","","","","","","",null,null,null,null,null,null,null,null,null,null,null,null,null,null,null,null,null,"ZWO"]
[null,null,null,null,null,{"$f":"VLOOKUP(G232,'Data order'!Z:AA,2,0)","v":{"$error":"#N/A"}},null,null,null,null,null,null,null,null,{"$f":"VLOOKUP(N232,Tabel10[[korte omschrijving]:[MCC3_CODE]],2,0)","v":{"$error":"#N/A"}},{"$f":"VLOOKUP(N232,'Data order'!M:O,3,0)","v":{"$error":"#N/A"}},null,null,null,{"$f":"IFERROR(\n  IF(R232=\"Big&Tall\",\n      VLOOKUP(S232, 'Data order'!$AC$92:$AD$101, 2, FALSE),\n      IF(R232=\"Boordmaat\",\n          VLOOKUP(S232, 'Data order'!$AC$102:$AD$116, 2, FALSE),\n          VLOOKUP(S232, 'Data order'!$AC$2:$AD$91, 2, FALSE)\n      )\n  ),\n\"\")","v":""},null,null,null,null,"EUR",null,null,null,{"$error":"#DIV/0!"},0,0,null,"","","","","","","","","","",null,null,null,null,null,null,null,null,null,null,null,null,null,null,null,null,null,"ZWO"]
[null,null,null,null,null,{"$f":"VLOOKUP(G233,'Data order'!Z:AA,2,0)","v":{"$error":"#N/A"}},null,null,null,null,null,null,null,null,{"$f":"VLOOKUP(N233,Tabel10[[korte omschrijving]:[MCC3_CODE]],2,0)","v":{"$error":"#N/A"}},{"$f":"VLOOKUP(N233,'Data order'!M:O,3,0)","v":{"$error":"#N/A"}},null,null,null,{"$f":"IFERROR(\n  IF(R233=\"Big&Tall\",\n      VLOOKUP(S233, 'Data order'!$AC$92:$AD$101, 2, FALSE),\n      IF(R233=\"Boordmaat\",\n          VLOOKUP(S233, 'Data order'!$AC$102:$AD$116, 2, FALSE),\n          VLOOKUP(S233, 'Data order'!$AC$2:$AD$91, 2, FALSE)\n      )\n  ),\n\"\")","v":""},null,null,null,null,"EUR",null,null,null,{"$error":"#DIV/0!"},0,0,null,"","","","","","","","","","",null,null,null,null,null,null,null,null,null,null,null,null,null,null,null,null,null,"ZWO"]
[null,null,null,null,null,{"$f":"VLOOKUP(G234,'Data order'!Z:AA,2,0)","v":{"$error":"#N/A"}},null,null,null,null,null,null,null,null,{"$f":"VLOOKUP(N234,Tabel10[[korte omschrijving]:[MCC3_CODE]],2,0)","v":{"$error":"#N/A"}},{"$f":"VLOOKUP(N234,'Data order'!M:O,3,0)","v":{"$error":"#N/A"}},null,null,null,{"$f":"IFERROR(\n  IF(R234=\"Big&Tall\",\n      VLOOKUP(S234, 'Data order'!$AC$92:$AD$101, 2, FALSE),\n      IF(R234=\"Boordmaat\",\n          VLOOKUP(S234, 'Data order'!$AC$102:$AD$116, 2, FALSE),\n          VLOOKUP(S234, 'Data order'!$AC$2:$AD$91, 2, FALSE)\n      )\n  ),\n\"\")","v":""},null,{"$f":"SUM(U234:U239)","v":0},null,null,"EUR",null,null,null,{"$error":"#DIV/0!"},0,0,null,"","","","","","","","","","",null,null,null,null,null,null,null,null,null,null,null,null,null,null,null,null,null,"ZWO"]
[null,null,null,null,null,{"$f":"VLOOKUP(G235,'Data order'!Z:AA,2,0)","v":{"$error":"#N/A"}},null,null,null,null,null,null,null,null,{"$f":"VLOOKUP(N235,Tabel10[[korte omschrijving]:[MCC3_CODE]],2,0)","v":{"$error":"#N/A"}},{"$f":"VLOOKUP(N235,'Data order'!M:O,3,0)","v":{"$error":"#N/A"}},null,null,null,{"$f":"IFERROR(\n  IF(R235=\"Big&Tall\",\n      VLOOKUP(S235, 'Data order'!$AC$92:$AD$101, 2, FALSE),\n      IF(R235=\"Boordmaat\",\n          VLOOKUP(S235, 'Data order'!$AC$102:$AD$116, 2, FALSE),\n          VLOOKUP(S235, 'Data order'!$AC$2:$AD$91, 2, FALSE)\n      )\n  ),\n\"\")","v":""},null,null,null,null,"EUR",null,null,null,{"$error":"#DIV/0!"},0,0,null,"","","","","","","","","","",null,null,null,null,null,null,null,null,null,null,null,null,null,null,null,null,null,"ZWO"]
[null,null,null,null,null,{"$f":"VLOOKUP(G236,'Data order'!Z:AA,2,0)","v":{"$error":"#N/A"}},null,null,null,null,null,null,null,null,{"$f":"VLOOKUP(N236,Tabel10[[korte omschrijving]:[MCC3_CODE]],2,0)","v":{"$error":"#N/A"}},{"$f":"VLOOKUP(N236,'Data order'!M:O,3,0)","v":{"$error":"#N/A"}},null,null,null,{"$f":"IFERROR(\n  IF(R236=\"Big&Tall\",\n      VLOOKUP(S236, 'Data order'!$AC$92:$AD$101, 2, FALSE),\n      IF(R236=\"Boordmaat\",\n          VLOOKUP(S236, 'Data order'!$AC$102:$AD$116, 2, FALSE),\n          VLOOKUP(S236, 'Data order'!$AC$2:$AD$91, 2, FALSE)\n      )\n  ),\n\"\")","v":""},null,null,null,null,"EUR",null,null,null,{"$error":"#DIV/0!"},0,0,null,"","","","","","","","","","",null,null,null,null,null,null,null,null,null,null,null,null,null,null,null,null,null,"ZWO"]
[null,null,null,null,null,{"$f":"VLOOKUP(G237,'Data order'!Z:AA,2,0)","v":{"$error":"#N/A"}},null,null,null,null,null,null,null,null,{"$f":"VLOOKUP(N237,Tabel10[[korte omschrijving]:[MCC3_CODE]],2,0)","v":{"$error":"#N/A"}},{"$f":"VLOOKUP(N237,'Data order'!M:O,3,0)","v":{"$error":"#N/A"}},null,null,null,{"$f":"IFERROR(\n  IF(R237=\"Big&Tall\",\n      VLOOKUP(S237, 'Data order'!$AC$92:$AD$101, 2, FALSE),\n      IF(R237=\"Boordmaat\",\n          VLOOKUP(S237, 'Data order'!$AC$102:$AD$116, 2, FALSE),\n          VLOOKUP(S237, 'Data order'!$AC$2:$AD$91, 2, FALSE)\n      )\n  ),\n\"\")","v":""},null,null,null,null,"EUR",null,null,null,{"$error":"#DIV/0!"},0,0,null,"","","","","","","","","","",null,null,null,null,null,null,null,null,null,null,null,null,null,null,null,null,null,"ZWO"]
[null,null,null,null,null,{"$f":"VLOOKUP(G238,'Data order'!Z:AA,2,0)","v":{"$error":"#N/A"}},null,null,null,null,null,null,null,null,{"$f":"VLOOKUP(N238,Tabel10[[korte omschrijving]:[MCC3_CODE]],2,0)","v":{"$error":"#N/A"}},{"$f":"VLOOKUP(N238,'Data order'!M:O,3,0)","v":{"$error":"#N/A"}},null,null,null,{"$f":"IFERROR(\n  IF(R238=\"Big&Tall\",\n      VLOOKUP(S238, 'Data order'!$AC$92:$AD$101, 2, FALSE),\n      IF(R238=\"Boordmaat\",\n          VLOOKUP(S238, 'Data order'!$AC$102:$AD$116, 2, FALSE),\n          VLOOKUP(S238, 'Data order'!$AC$2:$AD$91, 2, FALSE)\n      )\n  ),\n\"\")","v":""},null,null,null,null,"EUR",null,null,null,{"$error":"#DIV/0!"},0,0,null,"","","","","","","","","","",null,null,null,null,null,null,null,null,null,null,null,null,null,null,null,null,null,"ZWO"]
[null,null,null,null,null,{"$f":"VLOOKUP(G239,'Data order'!Z:AA,2,0)","v":{"$error":"#N/A"}},null,null,null,null,null,null,null,null,{"$f":"VLOOKUP(N239,Tabel10[[korte omschrijving]:[MCC3_CODE]],2,0)","v":{"$error":"#N/A"}},{"$f":"VLOOKUP(N239,'Data order'!M:O,3,0)","v":{"$error":"#N/A"}},null,null,null,{"$f":"IFERROR(\n  IF(R239=\"Big&Tall\",\n      VLOOKUP(S239, 'Data order'!$AC$92:$AD$101, 2, FALSE),\n      IF(R239=\"Boordmaat\",\n          VLOOKUP(S239, 'Data order'!$AC$102:$AD$116, 2, FALSE),\n          VLOOKUP(S239, 'Data order'!$AC$2:$AD$91, 2, FALSE)\n      )\n  ),\n\"\")","v":""},null,null,null,null,"EUR",null,null,null,{"$error":"#DIV/0!"},0,0,null,"","","","","","","","","","",null,null,null,null,null,null,null,null,null,null,null,null,null,null,null,null,null,"ZWO"]
[null,null,null,null,null,{"$f":"VLOOKUP(G240,'Data order'!Z:AA,2,0)","v":{"$error":"#N/A"}},null,null,null,null,null,null,null,null,{"$f":"VLOOKUP(N240,Tabel10[[korte omschrijving]:[MCC3_CODE]],2,0)","v":{"$error":"#N/A"}},{"$f":"VLOOKUP(N240,'Data order'!M:O,3,0)","v":{"$error":"#N/A"}},null,null,null,{"$f":"IFERROR(\n  IF(R240=\"Big&Tall\",\n      VLOOKUP(S240, 'Data order'!$AC$92:$AD$101, 2, FALSE),\n      IF(R240=\"Boordmaat\",\n          VLOOKUP(S240, 'Data order'!$AC$102:$AD$116, 2, FALSE),\n          VLOOKUP(S240, 'Data order'!$AC$2:$AD$91, 2, FALSE)\n      )\n  ),\n\"\")","v":""},null,{"$f":"SUM(U240:U245)","v":0},null,null,"EUR",null,null,null,{"$error":"#DIV/0!"},0,0,null,"","","","","","","","","","",null,null,null,null,null,null,null,null,null,null,null,null,null,null,null,null,null,"ZWO"]
[null,null,null,null,null,{"$f":"VLOOKUP(G241,'Data order'!Z:AA,2,0)","v":{"$error":"#N/A"}},null,null,null,null,null,null,null,null,{"$f":"VLOOKUP(N241,Tabel10[[korte omschrijving]:[MCC3_CODE]],2,0)","v":{"$error":"#N/A"}},{"$f":"VLOOKUP(N241,'Data order'!M:O,3,0)","v":{"$error":"#N/A"}},null,null,null,{"$f":"IFERROR(\n  IF(R241=\"Big&Tall\",\n      VLOOKUP(S241, 'Data order'!$AC$92:$AD$101, 2, FALSE),\n      IF(R241=\"Boordmaat\",\n          VLOOKUP(S241, 'Data order'!$AC$102:$AD$116, 2, FALSE),\n          VLOOKUP(S241, 'Data order'!$AC$2:$AD$91, 2, FALSE)\n      )\n  ),\n\"\")","v":""},null,null,null,null,"EUR",null,null,null,{"$error":"#DIV/0!"},0,0,null,"","","","","","","","","","",null,null,null,null,null,null,null,null,null,null,null,null,null,null,null,null,null,"ZWO"]
[null,null,null,null,null,{"$f":"VLOOKUP(G242,'Data order'!Z:AA,2,0)","v":{"$error":"#N/A"}},null,null,null,null,null,null,null,null,{"$f":"VLOOKUP(N242,Tabel10[[korte omschrijving]:[MCC3_CODE]],2,0)","v":{"$error":"#N/A"}},{"$f":"VLOOKUP(N242,'Data order'!M:O,3,0)","v":{"$error":"#N/A"}},null,null,null,{"$f":"IFERROR(\n  IF(R242=\"Big&Tall\",\n      VLOOKUP(S242, 'Data order'!$AC$92:$AD$101, 2, FALSE),\n      IF(R242=\"Boordmaat\",\n          VLOOKUP(S242, 'Data order'!$AC$102:$AD$116, 2, FALSE),\n          VLOOKUP(S242, 'Data order'!$AC$2:$AD$91, 2, FALSE)\n      )\n  ),\n\"\")","v":""},null,null,null,null,"EUR",null,null,null,{"$error":"#DIV/0!"},0,0,null,"","","","","","","","","","",null,null,null,null,null,null,null,null,null,null,null,null,null,null,null,null,null,"ZWO"]
[null,null,null,null,null,{"$f":"VLOOKUP(G243,'Data order'!Z:AA,2,0)","v":{"$error":"#N/A"}},null,null,null,null,null,null,null,null,{"$f":"VLOOKUP(N243,Tabel10[[korte omschrijving]:[MCC3_CODE]],2,0)","v":{"$error":"#N/A"}},{"$f":"VLOOKUP(N243,'Data order'!M:O,3,0)","v":{"$error":"#N/A"}},null,null,null,{"$f":"IFERROR(\n  IF(R243=\"Big&Tall\",\n      VLOOKUP(S243, 'Data order'!$AC$92:$AD$101, 2, FALSE),\n      IF(R243=\"Boordmaat\",\n          VLOOKUP(S243, 'Data order'!$AC$102:$AD$116, 2, FALSE),\n          VLOOKUP(S243, 'Data order'!$AC$2:$AD$91, 2, FALSE)\n      )\n  ),\n\"\")","v":""},null,null,null,null,"EUR",null,null,null,{"$error":"#DIV/0!"},0,0,null,"","","","","","","","","","",null,null,null,null,null,null,null,null,null,null,null,null,null,null,null,null,null,"ZWO"]
[null,null,null,null,null,{"$f":"VLOOKUP(G244,'Data order'!Z:AA,2,0)","v":{"$error":"#N/A"}},null,null,null,null,null,null,null,null,{"$f":"VLOOKUP(N244,Tabel10[[korte omschrijving]:[MCC3_CODE]],2,0)","v":{"$error":"#N/A"}},{"$f":"VLOOKUP(N244,'Data order'!M:O,3,0)","v":{"$error":"#N/A"}},null,null,null,{"$f":"IFERROR(\n  IF(R244=\"Big&Tall\",\n      VLOOKUP(S244, 'Data order'!$AC$92:$AD$101, 2, FALSE),\n      IF(R244=\"Boordmaat\",\n          VLOOKUP(S244, 'Data order'!$AC$102:$AD$116, 2, FALSE),\n          VLOOKUP(S244, 'Data order'!$AC$2:$AD$91, 2, FALSE)\n      )\n  ),\n\"\")","v":""},null,null,null,null,"EUR",null,null,null,{"$error":"#DIV/0!"},0,0,null,"","","","","","","","","","",null,null,null,null,null,null,null,null,null,null,null,null,null,null,null,null,null,"ZWO"]
[null,null,null,null,null,{"$f":"VLOOKUP(G245,'Data order'!Z:AA,2,0)","v":{"$error":"#N/A"}},null,null,null,null,null,null,null,null,{"$f":"VLOOKUP(N245,Tabel10[[korte omschrijving]:[MCC3_CODE]],2,0)","v":{"$error":"#N/A"}},{"$f":"VLOOKUP(N245,'Data order'!M:O,3,0)","v":{"$error":"#N/A"}},null,null,null,{"$f":"IFERROR(\n  IF(R245=\"Big&Tall\",\n      VLOOKUP(S245, 'Data order'!$AC$92:$AD$101, 2, FALSE),\n      IF(R245=\"Boordmaat\",\n          VLOOKUP(S245, 'Data order'!$AC$102:$AD$116, 2, FALSE),\n          VLOOKUP(S245, 'Data order'!$AC$2:$AD$91, 2, FALSE)\n      )\n  ),\n\"\")","v":""},null,null,null,null,"EUR",null,null,null,{"$error":"#DIV/0!"},0,0,null,"","","","","","","","","","",null,null,null,null,null,null,null,null,null,null,null,null,null,null,null,null,null,"ZWO"]
[null,null,null,null,null,{"$f":"VLOOKUP(G246,'Data order'!Z:AA,2,0)","v":{"$error":"#N/A"}},null,null,null,null,null,null,null,null,{"$f":"VLOOKUP(N246,Tabel10[[korte omschrijving]:[MCC3_CODE]],2,0)","v":{"$error":"#N/A"}},{"$f":"VLOOKUP(N246,'Data order'!M:O,3,0)","v":{"$error":"#N/A"}},null,null,null,{"$f":"IFERROR(\n  IF(R246=\"Big&Tall\",\n      VLOOKUP(S246, 'Data order'!$AC$92:$AD$101, 2, FALSE),\n      IF(R246=\"Boordmaat\",\n          VLOOKUP(S246, 'Data order'!$AC$102:$AD$116, 2, FALSE),\n          VLOOKUP(S246, 'Data order'!$AC$2:$AD$91, 2, FALSE)\n      )\n  ),\n\"\")","v":""},null,{"$f":"SUM(U246:U251)","v":0},null,null,"EUR",null,null,null,{"$error":"#DIV/0!"},0,0,null,"","","","","","","","","","",null,null,null,null,null,null,null,null,null,null,null,null,null,null,null,null,null,"ZWO"]
[null,null,null,null,null,{"$f":"VLOOKUP(G247,'Data order'!Z:AA,2,0)","v":{"$error":"#N/A"}},null,null,null,null,null,null,null,null,{"$f":"VLOOKUP(N247,Tabel10[[korte omschrijving]:[MCC3_CODE]],2,0)","v":{"$error":"#N/A"}},{"$f":"VLOOKUP(N247,'Data order'!M:O,3,0)","v":{"$error":"#N/A"}},null,null,null,{"$f":"IFERROR(\n  IF(R247=\"Big&Tall\",\n      VLOOKUP(S247, 'Data order'!$AC$92:$AD$101, 2, FALSE),\n      IF(R247=\"Boordmaat\",\n          VLOOKUP(S247, 'Data order'!$AC$102:$AD$116, 2, FALSE),\n          VLOOKUP(S247, 'Data order'!$AC$2:$AD$91, 2, FALSE)\n      )\n  ),\n\"\")","v":""},null,null,null,null,"EUR",null,null,null,{"$error":"#DIV/0!"},0,0,null,"","","","","","","","","","",null,null,null,null,null,null,null,null,null,null,null,null,null,null,null,null,null,"ZWO"]
[null,null,null,null,null,{"$f":"VLOOKUP(G248,'Data order'!Z:AA,2,0)","v":{"$error":"#N/A"}},null,null,null,null,null,null,null,null,{"$f":"VLOOKUP(N248,Tabel10[[korte omschrijving]:[MCC3_CODE]],2,0)","v":{"$error":"#N/A"}},{"$f":"VLOOKUP(N248,'Data order'!M:O,3,0)","v":{"$error":"#N/A"}},null,null,null,{"$f":"IFERROR(\n  IF(R248=\"Big&Tall\",\n      VLOOKUP(S248, 'Data order'!$AC$92:$AD$101, 2, FALSE),\n      IF(R248=\"Boordmaat\",\n          VLOOKUP(S248, 'Data order'!$AC$102:$AD$116, 2, FALSE),\n          VLOOKUP(S248, 'Data order'!$AC$2:$AD$91, 2, FALSE)\n      )\n  ),\n\"\")","v":""},null,null,null,null,"EUR",null,null,null,{"$error":"#DIV/0!"},0,0,null,"","","","","","","","","","",null,null,null,null,null,null,null,null,null,null,null,null,null,null,null,null,null,"ZWO"]
[null,null,null,null,null,{"$f":"VLOOKUP(G249,'Data order'!Z:AA,2,0)","v":{"$error":"#N/A"}},null,null,null,null,null,null,null,null,{"$f":"VLOOKUP(N249,Tabel10[[korte omschrijving]:[MCC3_CODE]],2,0)","v":{"$error":"#N/A"}},{"$f":"VLOOKUP(N249,'Data order'!M:O,3,0)","v":{"$error":"#N/A"}},null,null,null,{"$f":"IFERROR(\n  IF(R249=\"Big&Tall\",\n      VLOOKUP(S249, 'Data order'!$AC$92:$AD$101, 2, FALSE),\n      IF(R249=\"Boordmaat\",\n          VLOOKUP(S249, 'Data order'!$AC$102:$AD$116, 2, FALSE),\n          VLOOKUP(S249, 'Data order'!$AC$2:$AD$91, 2, FALSE)\n      )\n  ),\n\"\")","v":""},null,null,null,null,"EUR",null,null,null,{"$error":"#DIV/0!"},0,0,null,"","","","","","","","","","",null,null,null,null,null,null,null,null,null,null,null,null,null,null,null,null,null,"ZWO"]
[null,null,null,null,null,{"$f":"VLOOKUP(G250,'Data order'!Z:AA,2,0)","v":{"$error":"#N/A"}},null,null,null,null,null,null,null,null,{"$f":"VLOOKUP(N250,Tabel10[[korte omschrijving]:[MCC3_CODE]],2,0)","v":{"$error":"#N/A"}},{"$f":"VLOOKUP(N250,'Data order'!M:O,3,0)","v":{"$error":"#N/A"}},null,null,null,{"$f":"IFERROR(\n  IF(R250=\"Big&Tall\",\n      VLOOKUP(S250, 'Data order'!$AC$92:$AD$101, 2, FALSE),\n      IF(R250=\"Boordmaat\",\n          VLOOKUP(S250, 'Data order'!$AC$102:$AD$116, 2, FALSE),\n          VLOOKUP(S250, 'Data order'!$AC$2:$AD$91, 2, FALSE)\n      )\n  ),\n\"\")","v":""},null,null,null,null,"EUR",null,null,null,{"$error":"#DIV/0!"},0,0,null,"","","","","","","","","","",null,null,null,null,null,null,null,null,null,null,null,null,null,null,null,null,null,"ZWO"]
[null,null,null,null,null,{"$f":"VLOOKUP(G251,'Data order'!Z:AA,2,0)","v":{"$error":"#N/A"}},null,null,null,null,null,null,null,null,{"$f":"VLOOKUP(N251,Tabel10[[korte omschrijving]:[MCC3_CODE]],2,0)","v":{"$error":"#N/A"}},{"$f":"VLOOKUP(N251,'Data order'!M:O,3,0)","v":{"$error":"#N/A"}},null,null,null,{"$f":"IFERROR(\n  IF(R251=\"Big&Tall\",\n      VLOOKUP(S251, 'Data order'!$AC$92:$AD$101, 2, FALSE),\n      IF(R251=\"Boordmaat\",\n          VLOOKUP(S251, 'Data order'!$AC$102:$AD$116, 2, FALSE),\n          VLOOKUP(S251, 'Data order'!$AC$2:$AD$91, 2, FALSE)\n      )\n  ),\n\"\")","v":""},null,null,null,null,"EUR",null,null,null,{"$error":"#DIV/0!"},0,0,null,"","","","","","","","","","",null,null,null,null,null,null,null,null,null,null,null,null,null,null,null,null,null,"ZWO"]
[null,null,null,null,null,{"$f":"VLOOKUP(G252,'Data order'!Z:AA,2,0)","v":{"$error":"#N/A"}},null,null,null,null,null,null,null,null,{"$f":"VLOOKUP(N252,Tabel10[[korte omschrijving]:[MCC3_CODE]],2,0)","v":{"$error":"#N/A"}},{"$f":"VLOOKUP(N252,'Data order'!M:O,3,0)","v":{"$error":"#N/A"}},null,null,null,{"$f":"IFERROR(\n  IF(R252=\"Big&Tall\",\n      VLOOKUP(S252, 'Data order'!$AC$92:$AD$101, 2, FALSE),\n      IF(R252=\"Boordmaat\",\n          VLOOKUP(S252, 'Data order'!$AC$102:$AD$116, 2, FALSE),\n          VLOOKUP(S252, 'Data order'!$AC$2:$AD$91, 2, FALSE)\n      )\n  ),\n\"\")","v":""},null,{"$f":"SUM(U252:U257)","v":0},null,null,"EUR",null,null,null,{"$error":"#DIV/0!"},0,0,null,"","","","","","","","","","",null,null,null,null,null,null,null,null,null,null,null,null,null,null,null,null,null,"ZWO"]
[null,null,null,null,null,{"$f":"VLOOKUP(G253,'Data order'!Z:AA,2,0)","v":{"$error":"#N/A"}},null,null,null,null,null,null,null,null,{"$f":"VLOOKUP(N253,Tabel10[[korte omschrijving]:[MCC3_CODE]],2,0)","v":{"$error":"#N/A"}},{"$f":"VLOOKUP(N253,'Data order'!M:O,3,0)","v":{"$error":"#N/A"}},null,null,null,{"$f":"IFERROR(\n  IF(R253=\"Big&Tall\",\n      VLOOKUP(S253, 'Data order'!$AC$92:$AD$101, 2, FALSE),\n      IF(R253=\"Boordmaat\",\n          VLOOKUP(S253, 'Data order'!$AC$102:$AD$116, 2, FALSE),\n          VLOOKUP(S253, 'Data order'!$AC$2:$AD$91, 2, FALSE)\n      )\n  ),\n\"\")","v":""},null,null,null,null,"EUR",null,null,null,{"$error":"#DIV/0!"},0,0,null,"","","","","","","","","","",null,null,null,null,null,null,null,null,null,null,null,null,null,null,null,null,null,"ZWO"]
[null,null,null,null,null,{"$f":"VLOOKUP(G254,'Data order'!Z:AA,2,0)","v":{"$error":"#N/A"}},null,null,null,null,null,null,null,null,{"$f":"VLOOKUP(N254,Tabel10[[korte omschrijving]:[MCC3_CODE]],2,0)","v":{"$error":"#N/A"}},{"$f":"VLOOKUP(N254,'Data order'!M:O,3,0)","v":{"$error":"#N/A"}},null,null,null,{"$f":"IFERROR(\n  IF(R254=\"Big&Tall\",\n      VLOOKUP(S254, 'Data order'!$AC$92:$AD$101, 2, FALSE),\n      IF(R254=\"Boordmaat\",\n          VLOOKUP(S254, 'Data order'!$AC$102:$AD$116, 2, FALSE),\n          VLOOKUP(S254, 'Data order'!$AC$2:$AD$91, 2, FALSE)\n      )\n  ),\n\"\")","v":""},null,null,null,null,"EUR",null,null,null,{"$error":"#DIV/0!"},0,0,null,"","","","","","","","","","",null,null,null,null,null,null,null,null,null,null,null,null,null,null,null,null,null,"ZWO"]
[null,null,null,null,null,{"$f":"VLOOKUP(G255,'Data order'!Z:AA,2,0)","v":{"$error":"#N/A"}},null,null,null,null,null,null,null,null,{"$f":"VLOOKUP(N255,Tabel10[[korte omschrijving]:[MCC3_CODE]],2,0)","v":{"$error":"#N/A"}},{"$f":"VLOOKUP(N255,'Data order'!M:O,3,0)","v":{"$error":"#N/A"}},null,null,null,{"$f":"IFERROR(\n  IF(R255=\"Big&Tall\",\n      VLOOKUP(S255, 'Data order'!$AC$92:$AD$101, 2, FALSE),\n      IF(R255=\"Boordmaat\",\n          VLOOKUP(S255, 'Data order'!$AC$102:$AD$116, 2, FALSE),\n          VLOOKUP(S255, 'Data order'!$AC$2:$AD$91, 2, FALSE)\n      )\n  ),\n\"\")","v":""},null,null,null,null,"EUR",null,null,null,{"$error":"#DIV/0!"},0,0,null,"","","","","","","","","","",null,null,null,null,null,null,null,null,null,null,null,null,null,null,null,null,null,"ZWO"]
[null,null,null,null,null,{"$f":"VLOOKUP(G256,'Data order'!Z:AA,2,0)","v":{"$error":"#N/A"}},null,null,null,null,null,null,null,null,{"$f":"VLOOKUP(N256,Tabel10[[korte omschrijving]:[MCC3_CODE]],2,0)","v":{"$error":"#N/A"}},{"$f":"VLOOKUP(N256,'Data order'!M:O,3,0)","v":{"$error":"#N/A"}},null,null,null,{"$f":"IFERROR(\n  IF(R256=\"Big&Tall\",\n      VLOOKUP(S256, 'Data order'!$AC$92:$AD$101, 2, FALSE),\n      IF(R256=\"Boordmaat\",\n          VLOOKUP(S256, 'Data order'!$AC$102:$AD$116, 2, FALSE),\n          VLOOKUP(S256, 'Data order'!$AC$2:$AD$91, 2, FALSE)\n      )\n  ),\n\"\")","v":""},null,null,null,null,"EUR",null,null,null,{"$error":"#DIV/0!"},0,0,null,"","","","","","","","","","",null,null,null,null,null,null,null,null,null,null,null,null,null,null,null,null,null,"ZWO"]
[null,null,null,null,null,{"$f":"VLOOKUP(G257,'Data order'!Z:AA,2,0)","v":{"$error":"#N/A"}},null,null,null,null,null,null,null,null,{"$f":"VLOOKUP(N257,Tabel10[[korte omschrijving]:[MCC3_CODE]],2,0)","v":{"$error":"#N/A"}},{"$f":"VLOOKUP(N257,'Data order'!M:O,3,0)","v":{"$error":"#N/A"}},null,null,null,{"$f":"IFERROR(\n  IF(R257=\"Big&Tall\",\n      VLOOKUP(S257, 'Data order'!$AC$92:$AD$101, 2, FALSE),\n      IF(R257=\"Boordmaat\",\n          VLOOKUP(S257, 'Data order'!$AC$102:$AD$116, 2, FALSE),\n          VLOOKUP(S257, 'Data order'!$AC$2:$AD$91, 2, FALSE)\n      )\n  ),\n\"\")","v":""},null,null,null,null,"EUR",null,null,null,{"$error":"#DIV/0!"},0,0,null,"","","","","","","","","","",null,null,null,null,null,null,null,null,null,null,null,null,null,null,null,null,null,"ZWO"]
[null,null,null,null,null,{"$f":"VLOOKUP(G258,'Data order'!Z:AA,2,0)","v":{"$error":"#N/A"}},null,null,null,null,null,null,null,null,{"$f":"VLOOKUP(N258,Tabel10[[korte omschrijving]:[MCC3_CODE]],2,0)","v":{"$error":"#N/A"}},{"$f":"VLOOKUP(N258,'Data order'!M:O,3,0)","v":{"$error":"#N/A"}},null,null,null,{"$f":"IFERROR(\n  IF(R258=\"Big&Tall\",\n      VLOOKUP(S258, 'Data order'!$AC$92:$AD$101, 2, FALSE),\n      IF(R258=\"Boordmaat\",\n          VLOOKUP(S258, 'Data order'!$AC$102:$AD$116, 2, FALSE),\n          VLOOKUP(S258, 'Data order'!$AC$2:$AD$91, 2, FALSE)\n      )\n  ),\n\"\")","v":""},null,{"$f":"SUM(U258:U263)","v":0},null,null,"EUR",null,null,null,{"$error":"#DIV/0!"},0,0,null,"","","","","","","","","","",null,null,null,null,null,null,null,null,null,null,null,null,null,null,null,null,null,"ZWO"]
[null,null,null,null,null,{"$f":"VLOOKUP(G259,'Data order'!Z:AA,2,0)","v":{"$error":"#N/A"}},null,null,null,null,null,null,null,null,{"$f":"VLOOKUP(N259,Tabel10[[korte omschrijving]:[MCC3_CODE]],2,0)","v":{"$error":"#N/A"}},{"$f":"VLOOKUP(N259,'Data order'!M:O,3,0)","v":{"$error":"#N/A"}},null,null,null,{"$f":"IFERROR(\n  IF(R259=\"Big&Tall\",\n      VLOOKUP(S259, 'Data order'!$AC$92:$AD$101, 2, FALSE),\n      IF(R259=\"Boordmaat\",\n          VLOOKUP(S259, 'Data order'!$AC$102:$AD$116, 2, FALSE),\n          VLOOKUP(S259, 'Data order'!$AC$2:$AD$91, 2, FALSE)\n      )\n  ),\n\"\")","v":""},null,null,null,null,"EUR",null,null,null,{"$error":"#DIV/0!"},0,0,null,"","","","","","","","","","",null,null,null,null,null,null,null,null,null,null,null,null,null,null,null,null,null,"ZWO"]
[null,null,null,null,null,{"$f":"VLOOKUP(G260,'Data order'!Z:AA,2,0)","v":{"$error":"#N/A"}},null,null,null,null,null,null,null,null,{"$f":"VLOOKUP(N260,Tabel10[[korte omschrijving]:[MCC3_CODE]],2,0)","v":{"$error":"#N/A"}},{"$f":"VLOOKUP(N260,'Data order'!M:O,3,0)","v":{"$error":"#N/A"}},null,null,null,{"$f":"IFERROR(\n  IF(R260=\"Big&Tall\",\n      VLOOKUP(S260, 'Data order'!$AC$92:$AD$101, 2, FALSE),\n      IF(R260=\"Boordmaat\",\n          VLOOKUP(S260, 'Data order'!$AC$102:$AD$116, 2, FALSE),\n          VLOOKUP(S260, 'Data order'!$AC$2:$AD$91, 2, FALSE)\n      )\n  ),\n\"\")","v":""},null,null,null,null,"EUR",null,null,null,{"$error":"#DIV/0!"},0,0,null,"","","","","","","","","","",null,null,null,null,null,null,null,null,null,null,null,null,null,null,null,null,null,"ZWO"]
[null,null,null,null,null,{"$f":"VLOOKUP(G261,'Data order'!Z:AA,2,0)","v":{"$error":"#N/A"}},null,null,null,null,null,null,null,null,{"$f":"VLOOKUP(N261,Tabel10[[korte omschrijving]:[MCC3_CODE]],2,0)","v":{"$error":"#N/A"}},{"$f":"VLOOKUP(N261,'Data order'!M:O,3,0)","v":{"$error":"#N/A"}},null,null,null,{"$f":"IFERROR(\n  IF(R261=\"Big&Tall\",\n      VLOOKUP(S261, 'Data order'!$AC$92:$AD$101, 2, FALSE),\n      IF(R261=\"Boordmaat\",\n          VLOOKUP(S261, 'Data order'!$AC$102:$AD$116, 2, FALSE),\n          VLOOKUP(S261, 'Data order'!$AC$2:$AD$91, 2, FALSE)\n      )\n  ),\n\"\")","v":""},null,null,null,null,"EUR",null,null,null,{"$error":"#DIV/0!"},0,0,null,"","","","","","","","","","",null,null,null,null,null,null,null,null,null,null,null,null,null,null,null,null,null,"ZWO"]
[null,null,null,null,null,{"$f":"VLOOKUP(G262,'Data order'!Z:AA,2,0)","v":{"$error":"#N/A"}},null,null,null,null,null,null,null,null,{"$f":"VLOOKUP(N262,Tabel10[[korte omschrijving]:[MCC3_CODE]],2,0)","v":{"$error":"#N/A"}},{"$f":"VLOOKUP(N262,'Data order'!M:O,3,0)","v":{"$error":"#N/A"}},null,null,null,{"$f":"IFERROR(\n  IF(R262=\"Big&Tall\",\n      VLOOKUP(S262, 'Data order'!$AC$92:$AD$101, 2, FALSE),\n      IF(R262=\"Boordmaat\",\n          VLOOKUP(S262, 'Data order'!$AC$102:$AD$116, 2, FALSE),\n          VLOOKUP(S262, 'Data order'!$AC$2:$AD$91, 2, FALSE)\n      )\n  ),\n\"\")","v":""},null,null,null,null,"EUR",null,null,null,{"$error":"#DIV/0!"},0,0,null,"","","","","","","","","","",null,null,null,null,null,null,null,null,null,null,null,null,null,null,null,null,null,"ZWO"]
[null,null,null,null,null,{"$f":"VLOOKUP(G263,'Data order'!Z:AA,2,0)","v":{"$error":"#N/A"}},null,null,null,null,null,null,null,null,{"$f":"VLOOKUP(N263,Tabel10[[korte omschrijving]:[MCC3_CODE]],2,0)","v":{"$error":"#N/A"}},{"$f":"VLOOKUP(N263,'Data order'!M:O,3,0)","v":{"$error":"#N/A"}},null,null,null,{"$f":"IFERROR(\n  IF(R263=\"Big&Tall\",\n      VLOOKUP(S263, 'Data order'!$AC$92:$AD$101, 2, FALSE),\n      IF(R263=\"Boordmaat\",\n          VLOOKUP(S263, 'Data order'!$AC$102:$AD$116, 2, FALSE),\n          VLOOKUP(S263, 'Data order'!$AC$2:$AD$91, 2, FALSE)\n      )\n  ),\n\"\")","v":""},null,null,null,null,"EUR",null,null,null,{"$f":"AB263/Z263","v":{"$error":"#DIV/0!"}},{"$f":"U263*Z263","v":0},0,null,{"$f":"IF(AF263 <> \"\",\n    IF(ISNUMBER(VALUE(LEFT(AF263, FIND(\"%\", AF263)-1))),\n        VALUE(LEFT(AF263, FIND(\"%\", AF263)-1)),\n        \"Invalid format\"),\n    \"\")","v":""},{"$f":"IF(AF263 <> \"\",\n    IF(ISNUMBER(VALUE(LEFT(AF263, FIND(\"%\", AF263)-1))) * ISNUMBER(FIND(\"%\", AF263 & \"wol\")) > 0,\n        TRIM(MID(AF263, FIND(\"%\", AF263)+1, FIND(\"/\", AF263 & \"/\")-FIND(\"%\", AF263)-1)),\n        \"Invalid format\"),\n    \"\")","v":""},{"$f":"IF(AF263 <> \"\",\n    IF(ISNUMBER(VALUE(MID(AF263, FIND(\"/\", AF263) + 1, FIND(\"%\", AF263, FIND(\"/\", AF263)) - FIND(\"/\", AF263) - 1))),\n        VALUE(MID(AF263, FIND(\"/\", AF263) + 1, FIND(\"%\", AF263, FIND(\"/\", AF263)) - FIND(\"/\", AF263) - 1)),\n        \"\"),\n    \"\")","v":""},{"$f":"IF(AF263 <> \"\",\n    IFERROR(TRIM(MID(AF263, FIND(\"%\", AF263, FIND(\"/\", AF263)+1)+2,\n        IFERROR(FIND(\"/\", AF263 & \"/\", FIND(\"/\", AF263)+1)-FIND(\"%\", AF263, FIND(\"/\", AF263)+1)-2, LEN(AF263)-FIND(\"%\", AF263, FIND(\"/\", AF263)+1)-1))),\n        \"\"),\n    \"\")","v":""},{"$f":"IF(AF263 <> \"\",\n    IF(ISNUMBER(VALUE(MID(AF263, FIND(\"/\", AF263, FIND(\"/\", AF263)+1) + 1, FIND(\"%\", AF263, FIND(\"/\", AF263, FIND(\"/\", AF263)+1)) - FIND(\"/\", AF263, FIND(\"/\", AF263)+1) - 1))),\n        VALUE(MID(AF263, FIND(\"/\", AF263, FIND(\"/\", AF263)+1) + 1, FIND(\"%\", AF263, FIND(\"/\", AF263, FIND(\"/\", AF263)+1)) - FIND(\"/\", AF263, FIND(\"/\", AF263)+1) - 1)),\n        \"\"),\n    \"\")","v":""},{"$f":"IF(AF263 <> \"\",\n    IFERROR(\n        TRIM(MID(AF263,\n            FIND(\"%\", AF263, FIND(\"%\", AF263, FIND(\"%\", AF263)+1)+1)+1,\n            FIND(\"/\", AF263 & \"/\", FIND(\"%\", AF263, FIND(\"%\", AF263, FIND(\"%\", AF263)+1)+1))-FIND(\"%\", AF263, FIND(\"%\", AF263, FIND(\"%\", AF263)+1)+1)-1)\n        ),\n        \"\"\n    ),\n    \"\"\n)","v":""},{"$f":"IF(AF263 <> \"\",\n    IF(ISNUMBER(VALUE(MID(AF263, FIND(\"/\", AF263, FIND(\"/\", AF263, FIND(\"/\", AF263)+1)+1) + 1, FIND(\"%\", AF263, FIND(\"/\", AF263, FIND(\"/\", AF263, FIND(\"/\", AF263)+1)+1)) - FIND(\"/\", AF263, FIND(\"/\", AF263, FIND(\"/\", AF263)+1)+1) - 1))),\n        VALUE(MID(AF263, FIND(\"/\", AF263, FIND(\"/\", AF263, FIND(\"/\", AF263)+1)+1) + 1, FIND(\"%\", AF263, FIND(\"/\", AF263, FIND(\"/\", AF263, FIND(\"/\", AF263)+1)+1)) - FIND(\"/\", AF263, FIND(\"/\", AF263, FIND(\"/\", AF263)+1)+1) - 1)),\n        \"\"),\n    \"\")","v":""},{"$f":"IF(AF263 <> \"\",\n    IFERROR(TRIM(MID(AF263, FIND(\"%\", AF263, FIND(\"/\", AF263, FIND(\"/\", AF263, FIND(\"/\", AF263)+1)+1)+1)+2,\n        IFERROR(FIND(\"/\", AF263, FIND(\"/\", AF263, FIND(\"/\", AF263, FIND(\"/\", AF263)+1)+1)+1)-FIND(\"%\", AF263, FIND(\"/\", AF263, FIND(\"/\", AF263, FIND(\"/\", AF263)+1)+1)+1)-2, LEN(AF263)-FIND(\"%\", AF263, FIND(\"/\", AF263, FIND(\"/\", AF263, FIND(\"/\", AF263)+1)+1)+1)-1))),\n        \"\"),\n    \"\")","v":""},{"$f":"IF(AF263 <> \"\",\n    IF(ISNUMBER(VALUE(MID(AF263, FIND(\"/\", AF263, FIND(\"/\", AF263, FIND(\"/\", AF263, FIND(\"/\", AF263)+1)+1)+1) + 1, FIND(\"%\", AF263, FIND(\"/\", AF263, FIND(\"/\", AF263, FIND(\"/\", AF263, FIND(\"/\", AF263)+1)+1)+1)) - FIND(\"/\", AF263, FIND(\"/\", AF263, FIND(\"/\", AF263, FIND(\"/\", AF263)+1)+1)+1) - 1))),\n        VALUE(MID(AF263, FIND(\"/\", AF263, FIND(\"/\", AF263, FIND(\"/\", AF263, FIND(\"/\", AF263)+1)+1)+1) + 1, FIND(\"%\", AF263, FIND(\"/\", AF263, FIND(\"/\", AF263, FIND(\"/\", AF263, FIND(\"/\", AF263)+1)+1)+1)) - FIND(\"/\", AF263, FIND(\"/\", AF263, FIND(\"/\", AF263, FIND(\"/\", AF263)+1)+1)+1) - 1)),\n        \"\"),\n    \"\")","v":""},{"$f":"IF(AF263 = \"\", \"\",\n    IFERROR(TRIM(\n        MID(\n            AF263,\n            FIND(\"%\", AF263, FIND(\"/\", AF263, FIND(\"/\", AF263, FIND(\"/\", AF263, FIND(\"/\", AF263)+1)+1)+1)+1) + 1,\n            FIND(\"/\", AF263 & \"/\", FIND(\"%\", AF263, FIND(\"/\", AF263, FIND(\"/\", AF263, FIND(\"/\", AF263, FIND(\"/\", AF263)+1)+1)+1)+1)) -\n            FIND(\"%\", AF263, FIND(\"/\", AF263, FIND(\"/\", AF263, FIND(\"/\", AF263, FIND(\"/\", AF263)+1)+1)+1)+1) - 1\n        )\n    ),\n    \"\")\n)","v":""},null,null,null,null,null,null,null,null,null,null,null,null,null,null,null,null,null,"ZWO"]
[null,null,null,null,null,{"$f":"VLOOKUP(G264,'Data order'!Z:AA,2,0)","v":{"$error":"#N/A"}},null,null,null,null,null,null,null,null,{"$f":"VLOOKUP(N264,Tabel10[[korte omschrijving]:[MCC3_CODE]],2,0)","v":{"$error":"#N/A"}},{"$f":"VLOOKUP(N264,'Data order'!M:O,3,0)","v":{"$error":"#N/A"}},null,null,null,{"$f":"IFERROR(\n  IF(R264=\"Big&Tall\",\n      VLOOKUP(S264, 'Data order'!$AC$92:$AD$101, 2, FALSE),\n      IF(R264=\"Boordmaat\",\n          VLOOKUP(S264, 'Data order'!$AC$102:$AD$116, 2, FALSE),\n          VLOOKUP(S264, 'Data order'!$AC$2:$AD$91, 2, FALSE)\n      )\n  ),\n\"\")","v":""},null,{"$f":"SUM(U264:U269)","v":0},null,null,"EUR",null,null,null,{"$error":"#DIV/0!"},0,{"$f":"U264*AB264","v":0},null,"","","","","","","","","","",null,null,null,null,null,null,null,null,null,null,null,null,null,null,null,null,null,"ZWO"]
[null,null,null,null,null,{"$f":"VLOOKUP(G265,'Data order'!Z:AA,2,0)","v":{"$error":"#N/A"}},null,null,null,null,null,null,null,null,{"$f":"VLOOKUP(N265,Tabel10[[korte omschrijving]:[MCC3_CODE]],2,0)","v":{"$error":"#N/A"}},{"$f":"VLOOKUP(N265,'Data order'!M:O,3,0)","v":{"$error":"#N/A"}},null,null,null,{"$f":"IFERROR(\n  IF(R265=\"Big&Tall\",\n      VLOOKUP(S265, 'Data order'!$AC$92:$AD$101, 2, FALSE),\n      IF(R265=\"Boordmaat\",\n          VLOOKUP(S265, 'Data order'!$AC$102:$AD$116, 2, FALSE),\n          VLOOKUP(S265, 'Data order'!$AC$2:$AD$91, 2, FALSE)\n      )\n  ),\n\"\")","v":""},null,null,null,null,"EUR",null,null,null,{"$error":"#DIV/0!"},0,0,null,"","","","","","","","","","",null,null,null,null,null,null,null,null,null,null,null,null,null,null,null,null,null,"ZWO"]
[null,null,null,null,null,{"$f":"VLOOKUP(G266,'Data order'!Z:AA,2,0)","v":{"$error":"#N/A"}},null,null,null,null,null,null,null,null,{"$f":"VLOOKUP(N266,Tabel10[[korte omschrijving]:[MCC3_CODE]],2,0)","v":{"$error":"#N/A"}},{"$f":"VLOOKUP(N266,'Data order'!M:O,3,0)","v":{"$error":"#N/A"}},null,null,null,{"$f":"IFERROR(\n  IF(R266=\"Big&Tall\",\n      VLOOKUP(S266, 'Data order'!$AC$92:$AD$101, 2, FALSE),\n      IF(R266=\"Boordmaat\",\n          VLOOKUP(S266, 'Data order'!$AC$102:$AD$116, 2, FALSE),\n          VLOOKUP(S266, 'Data order'!$AC$2:$AD$91, 2, FALSE)\n      )\n  ),\n\"\")","v":""},null,null,null,null,"EUR",null,null,null,{"$error":"#DIV/0!"},0,0,null,"","","","","","","","","","",null,null,null,null,null,null,null,null,null,null,null,null,null,null,null,null,null,"ZWO"]
[null,null,null,null,null,{"$f":"VLOOKUP(G267,'Data order'!Z:AA,2,0)","v":{"$error":"#N/A"}},null,null,null,null,null,null,null,null,{"$f":"VLOOKUP(N267,Tabel10[[korte omschrijving]:[MCC3_CODE]],2,0)","v":{"$error":"#N/A"}},{"$f":"VLOOKUP(N267,'Data order'!M:O,3,0)","v":{"$error":"#N/A"}},null,null,null,{"$f":"IFERROR(\n  IF(R267=\"Big&Tall\",\n      VLOOKUP(S267, 'Data order'!$AC$92:$AD$101, 2, FALSE),\n      IF(R267=\"Boordmaat\",\n          VLOOKUP(S267, 'Data order'!$AC$102:$AD$116, 2, FALSE),\n          VLOOKUP(S267, 'Data order'!$AC$2:$AD$91, 2, FALSE)\n      )\n  ),\n\"\")","v":""},null,null,null,null,"EUR",null,null,null,{"$error":"#DIV/0!"},0,0,null,"","","","","","","","","","",null,null,null,null,null,null,null,null,null,null,null,null,null,null,null,null,null,"ZWO"]
[null,null,null,null,null,{"$f":"VLOOKUP(G268,'Data order'!Z:AA,2,0)","v":{"$error":"#N/A"}},null,null,null,null,null,null,null,null,{"$f":"VLOOKUP(N268,Tabel10[[korte omschrijving]:[MCC3_CODE]],2,0)","v":{"$error":"#N/A"}},{"$f":"VLOOKUP(N268,'Data order'!M:O,3,0)","v":{"$error":"#N/A"}},null,null,null,{"$f":"IFERROR(\n  IF(R268=\"Big&Tall\",\n      VLOOKUP(S268, 'Data order'!$AC$92:$AD$101, 2, FALSE),\n      IF(R268=\"Boordmaat\",\n          VLOOKUP(S268, 'Data order'!$AC$102:$AD$116, 2, FALSE),\n          VLOOKUP(S268, 'Data order'!$AC$2:$AD$91, 2, FALSE)\n      )\n  ),\n\"\")","v":""},null,null,null,null,"EUR",null,null,null,{"$error":"#DIV/0!"},0,0,null,"","","","","","","","","","",null,null,null,null,null,null,null,null,null,null,null,null,null,null,null,null,null,"ZWO"]
[null,null,null,null,null,{"$f":"VLOOKUP(G269,'Data order'!Z:AA,2,0)","v":{"$error":"#N/A"}},null,null,null,null,null,null,null,null,{"$f":"VLOOKUP(N269,Tabel10[[korte omschrijving]:[MCC3_CODE]],2,0)","v":{"$error":"#N/A"}},{"$f":"VLOOKUP(N269,'Data order'!M:O,3,0)","v":{"$error":"#N/A"}},null,null,null,{"$f":"IFERROR(\n  IF(R269=\"Big&Tall\",\n      VLOOKUP(S269, 'Data order'!$AC$92:$AD$101, 2, FALSE),\n      IF(R269=\"Boordmaat\",\n          VLOOKUP(S269, 'Data order'!$AC$102:$AD$116, 2, FALSE),\n          VLOOKUP(S269, 'Data order'!$AC$2:$AD$91, 2, FALSE)\n      )\n  ),\n\"\")","v":""},null,null,null,null,"EUR",null,null,null,{"$error":"#DIV/0!"},0,0,null,"","","","","","","","","","",null,null,null,null,null,null,null,null,null,null,null,null,null,null,null,null,null,"ZWO"]
[null,null,null,null,null,{"$f":"VLOOKUP(G270,'Data order'!Z:AA,2,0)","v":{"$error":"#N/A"}},null,null,null,null,null,null,null,null,{"$f":"VLOOKUP(N270,Tabel10[[korte omschrijving]:[MCC3_CODE]],2,0)","v":{"$error":"#N/A"}},{"$f":"VLOOKUP(N270,'Data order'!M:O,3,0)","v":{"$error":"#N/A"}},null,null,null,{"$f":"IFERROR(\n  IF(R270=\"Big&Tall\",\n      VLOOKUP(S270, 'Data order'!$AC$92:$AD$101, 2, FALSE),\n      IF(R270=\"Boordmaat\",\n          VLOOKUP(S270, 'Data order'!$AC$102:$AD$116, 2, FALSE),\n          VLOOKUP(S270, 'Data order'!$AC$2:$AD$91, 2, FALSE)\n      )\n  ),\n\"\")","v":""},null,{"$f":"SUM(U270:U275)","v":0},null,null,"EUR",null,null,null,{"$error":"#DIV/0!"},0,0,null,"","","","","","","","","","",null,null,null,null,null,null,null,null,null,null,null,null,null,null,null,null,null,"ZWO"]
[null,null,null,null,null,{"$f":"VLOOKUP(G271,'Data order'!Z:AA,2,0)","v":{"$error":"#N/A"}},null,null,null,null,null,null,null,null,{"$f":"VLOOKUP(N271,Tabel10[[korte omschrijving]:[MCC3_CODE]],2,0)","v":{"$error":"#N/A"}},{"$f":"VLOOKUP(N271,'Data order'!M:O,3,0)","v":{"$error":"#N/A"}},null,null,null,{"$f":"IFERROR(\n  IF(R271=\"Big&Tall\",\n      VLOOKUP(S271, 'Data order'!$AC$92:$AD$101, 2, FALSE),\n      IF(R271=\"Boordmaat\",\n          VLOOKUP(S271, 'Data order'!$AC$102:$AD$116, 2, FALSE),\n          VLOOKUP(S271, 'Data order'!$AC$2:$AD$91, 2, FALSE)\n      )\n  ),\n\"\")","v":""},null,null,null,null,"EUR",null,null,null,{"$error":"#DIV/0!"},0,0,null,"","","","","","","","","","",null,null,null,null,null,null,null,null,null,null,null,null,null,null,null,null,null,"ZWO"]
[null,null,null,null,null,{"$f":"VLOOKUP(G272,'Data order'!Z:AA,2,0)","v":{"$error":"#N/A"}},null,null,null,null,null,null,null,null,{"$f":"VLOOKUP(N272,Tabel10[[korte omschrijving]:[MCC3_CODE]],2,0)","v":{"$error":"#N/A"}},{"$f":"VLOOKUP(N272,'Data order'!M:O,3,0)","v":{"$error":"#N/A"}},null,null,null,{"$f":"IFERROR(\n  IF(R272=\"Big&Tall\",\n      VLOOKUP(S272, 'Data order'!$AC$92:$AD$101, 2, FALSE),\n      IF(R272=\"Boordmaat\",\n          VLOOKUP(S272, 'Data order'!$AC$102:$AD$116, 2, FALSE),\n          VLOOKUP(S272, 'Data order'!$AC$2:$AD$91, 2, FALSE)\n      )\n  ),\n\"\")","v":""},null,null,null,null,"EUR",null,null,null,{"$error":"#DIV/0!"},0,0,null,"","","","","","","","","","",null,null,null,null,null,null,null,null,null,null,null,null,null,null,null,null,null,"ZWO"]
[null,null,null,null,null,{"$f":"VLOOKUP(G273,'Data order'!Z:AA,2,0)","v":{"$error":"#N/A"}},null,null,null,null,null,null,null,null,{"$f":"VLOOKUP(N273,Tabel10[[korte omschrijving]:[MCC3_CODE]],2,0)","v":{"$error":"#N/A"}},{"$f":"VLOOKUP(N273,'Data order'!M:O,3,0)","v":{"$error":"#N/A"}},null,null,null,{"$f":"IFERROR(\n  IF(R273=\"Big&Tall\",\n      VLOOKUP(S273, 'Data order'!$AC$92:$AD$101, 2, FALSE),\n      IF(R273=\"Boordmaat\",\n          VLOOKUP(S273, 'Data order'!$AC$102:$AD$116, 2, FALSE),\n          VLOOKUP(S273, 'Data order'!$AC$2:$AD$91, 2, FALSE)\n      )\n  ),\n\"\")","v":""},null,null,null,null,"EUR",null,null,null,{"$error":"#DIV/0!"},0,0,null,"","","","","","","","","","",null,null,null,null,null,null,null,null,null,null,null,null,null,null,null,null,null,"ZWO"]
[null,null,null,null,null,{"$f":"VLOOKUP(G274,'Data order'!Z:AA,2,0)","v":{"$error":"#N/A"}},null,null,null,null,null,null,null,null,{"$f":"VLOOKUP(N274,Tabel10[[korte omschrijving]:[MCC3_CODE]],2,0)","v":{"$error":"#N/A"}},{"$f":"VLOOKUP(N274,'Data order'!M:O,3,0)","v":{"$error":"#N/A"}},null,null,null,{"$f":"IFERROR(\n  IF(R274=\"Big&Tall\",\n      VLOOKUP(S274, 'Data order'!$AC$92:$AD$101, 2, FALSE),\n      IF(R274=\"Boordmaat\",\n          VLOOKUP(S274, 'Data order'!$AC$102:$AD$116, 2, FALSE),\n          VLOOKUP(S274, 'Data order'!$AC$2:$AD$91, 2, FALSE)\n      )\n  ),\n\"\")","v":""},null,null,null,null,"EUR",null,null,null,{"$error":"#DIV/0!"},0,0,null,"","","","","","","","","","",null,null,null,null,null,null,null,null,null,null,null,null,null,null,null,null,null,"ZWO"]
[null,null,null,null,null,{"$f":"VLOOKUP(G275,'Data order'!Z:AA,2,0)","v":{"$error":"#N/A"}},null,null,null,null,null,null,null,null,{"$f":"VLOOKUP(N275,Tabel10[[korte omschrijving]:[MCC3_CODE]],2,0)","v":{"$error":"#N/A"}},{"$f":"VLOOKUP(N275,'Data order'!M:O,3,0)","v":{"$error":"#N/A"}},null,null,null,{"$f":"IFERROR(\n  IF(R275=\"Big&Tall\",\n      VLOOKUP(S275, 'Data order'!$AC$92:$AD$101, 2, FALSE),\n      IF(R275=\"Boordmaat\",\n          VLOOKUP(S275, 'Data order'!$AC$102:$AD$116, 2, FALSE),\n          VLOOKUP(S275, 'Data order'!$AC$2:$AD$91, 2, FALSE)\n      )\n  ),\n\"\")","v":""},null,null,null,null,"EUR",null,null,null,{"$error":"#DIV/0!"},0,0,null,"","","","","","","","","","",null,null,null,null,null,null,null,null,null,null,null,null,null,null,null,null,null,"ZWO"]
[null,null,null,null,null,{"$f":"VLOOKUP(G276,'Data order'!Z:AA,2,0)","v":{"$error":"#N/A"}},null,null,null,null,null,null,null,null,{"$f":"VLOOKUP(N276,Tabel10[[korte omschrijving]:[MCC3_CODE]],2,0)","v":{"$error":"#N/A"}},{"$f":"VLOOKUP(N276,'Data order'!M:O,3,0)","v":{"$error":"#N/A"}},null,null,null,{"$f":"IFERROR(\n  IF(R276=\"Big&Tall\",\n      VLOOKUP(S276, 'Data order'!$AC$92:$AD$101, 2, FALSE),\n      IF(R276=\"Boordmaat\",\n          VLOOKUP(S276, 'Data order'!$AC$102:$AD$116, 2, FALSE),\n          VLOOKUP(S276, 'Data order'!$AC$2:$AD$91, 2, FALSE)\n      )\n  ),\n\"\")","v":""},null,{"$f":"SUM(U276:U281)","v":0},null,null,"EUR",null,null,null,{"$error":"#DIV/0!"},0,0,null,"","","","","","","","","","",null,null,null,null,null,null,null,null,null,null,null,null,null,null,null,null,null,"ZWO"]
[null,null,null,null,null,{"$f":"VLOOKUP(G277,'Data order'!Z:AA,2,0)","v":{"$error":"#N/A"}},null,null,null,null,null,null,null,null,{"$f":"VLOOKUP(N277,Tabel10[[korte omschrijving]:[MCC3_CODE]],2,0)","v":{"$error":"#N/A"}},{"$f":"VLOOKUP(N277,'Data order'!M:O,3,0)","v":{"$error":"#N/A"}},null,null,null,{"$f":"IFERROR(\n  IF(R277=\"Big&Tall\",\n      VLOOKUP(S277, 'Data order'!$AC$92:$AD$101, 2, FALSE),\n      IF(R277=\"Boordmaat\",\n          VLOOKUP(S277, 'Data order'!$AC$102:$AD$116, 2, FALSE),\n          VLOOKUP(S277, 'Data order'!$AC$2:$AD$91, 2, FALSE)\n      )\n  ),\n\"\")","v":""},null,null,null,null,"EUR",null,null,null,{"$error":"#DIV/0!"},0,0,null,"","","","","","","","","","",null,null,null,null,null,null,null,null,null,null,null,null,null,null,null,null,null,"ZWO"]
[null,null,null,null,null,{"$f":"VLOOKUP(G278,'Data order'!Z:AA,2,0)","v":{"$error":"#N/A"}},null,null,null,null,null,null,null,null,{"$f":"VLOOKUP(N278,Tabel10[[korte omschrijving]:[MCC3_CODE]],2,0)","v":{"$error":"#N/A"}},{"$f":"VLOOKUP(N278,'Data order'!M:O,3,0)","v":{"$error":"#N/A"}},null,null,null,{"$f":"IFERROR(\n  IF(R278=\"Big&Tall\",\n      VLOOKUP(S278, 'Data order'!$AC$92:$AD$101, 2, FALSE),\n      IF(R278=\"Boordmaat\",\n          VLOOKUP(S278, 'Data order'!$AC$102:$AD$116, 2, FALSE),\n          VLOOKUP(S278, 'Data order'!$AC$2:$AD$91, 2, FALSE)\n      )\n  ),\n\"\")","v":""},null,null,null,null,"EUR",null,null,null,{"$error":"#DIV/0!"},0,0,null,"","","","","","","","","","",null,null,null,null,null,null,null,null,null,null,null,null,null,null,null,null,null,"ZWO"]
[null,null,null,null,null,{"$f":"VLOOKUP(G279,'Data order'!Z:AA,2,0)","v":{"$error":"#N/A"}},null,null,null,null,null,null,null,null,{"$f":"VLOOKUP(N279,Tabel10[[korte omschrijving]:[MCC3_CODE]],2,0)","v":{"$error":"#N/A"}},{"$f":"VLOOKUP(N279,'Data order'!M:O,3,0)","v":{"$error":"#N/A"}},null,null,null,{"$f":"IFERROR(\n  IF(R279=\"Big&Tall\",\n      VLOOKUP(S279, 'Data order'!$AC$92:$AD$101, 2, FALSE),\n      IF(R279=\"Boordmaat\",\n          VLOOKUP(S279, 'Data order'!$AC$102:$AD$116, 2, FALSE),\n          VLOOKUP(S279, 'Data order'!$AC$2:$AD$91, 2, FALSE)\n      )\n  ),\n\"\")","v":""},null,null,null,null,"EUR",null,null,null,{"$error":"#DIV/0!"},0,0,null,"","","","","","","","","","",null,null,null,null,null,null,null,null,null,null,null,null,null,null,null,null,null,"ZWO"]
[null,null,null,null,null,{"$f":"VLOOKUP(G280,'Data order'!Z:AA,2,0)","v":{"$error":"#N/A"}},null,null,null,null,null,null,null,null,{"$f":"VLOOKUP(N280,Tabel10[[korte omschrijving]:[MCC3_CODE]],2,0)","v":{"$error":"#N/A"}},{"$f":"VLOOKUP(N280,'Data order'!M:O,3,0)","v":{"$error":"#N/A"}},null,null,null,{"$f":"IFERROR(\n  IF(R280=\"Big&Tall\",\n      VLOOKUP(S280, 'Data order'!$AC$92:$AD$101, 2, FALSE),\n      IF(R280=\"Boordmaat\",\n          VLOOKUP(S280, 'Data order'!$AC$102:$AD$116, 2, FALSE),\n          VLOOKUP(S280, 'Data order'!$AC$2:$AD$91, 2, FALSE)\n      )\n  ),\n\"\")","v":""},null,null,null,null,"EUR",null,null,null,{"$error":"#DIV/0!"},0,0,null,"","","","","","","","","","",null,null,null,null,null,null,null,null,null,null,null,null,null,null,null,null,null,"ZWO"]
[null,null,null,null,null,{"$f":"VLOOKUP(G281,'Data order'!Z:AA,2,0)","v":{"$error":"#N/A"}},null,null,null,null,null,null,null,null,{"$f":"VLOOKUP(N281,Tabel10[[korte omschrijving]:[MCC3_CODE]],2,0)","v":{"$error":"#N/A"}},{"$f":"VLOOKUP(N281,'Data order'!M:O,3,0)","v":{"$error":"#N/A"}},null,null,null,{"$f":"IFERROR(\n  IF(R281=\"Big&Tall\",\n      VLOOKUP(S281, 'Data order'!$AC$92:$AD$101, 2, FALSE),\n      IF(R281=\"Boordmaat\",\n          VLOOKUP(S281, 'Data order'!$AC$102:$AD$116, 2, FALSE),\n          VLOOKUP(S281, 'Data order'!$AC$2:$AD$91, 2, FALSE)\n      )\n  ),\n\"\")","v":""},null,null,null,null,"EUR",null,null,null,{"$error":"#DIV/0!"},0,0,null,"","","","","","","","","","",null,null,null,null,null,null,null,null,null,null,null,null,null,null,null,null,null,"ZWO"]
[null,null,null,null,null,{"$f":"VLOOKUP(G282,'Data order'!Z:AA,2,0)","v":{"$error":"#N/A"}},null,null,null,null,null,null,null,null,{"$f":"VLOOKUP(N282,Tabel10[[korte omschrijving]:[MCC3_CODE]],2,0)","v":{"$error":"#N/A"}},{"$f":"VLOOKUP(N282,'Data order'!M:O,3,0)","v":{"$error":"#N/A"}},null,null,null,{"$f":"IFERROR(\n  IF(R282=\"Big&Tall\",\n      VLOOKUP(S282, 'Data order'!$AC$92:$AD$101, 2, FALSE),\n      IF(R282=\"Boordmaat\",\n          VLOOKUP(S282, 'Data order'!$AC$102:$AD$116, 2, FALSE),\n          VLOOKUP(S282, 'Data order'!$AC$2:$AD$91, 2, FALSE)\n      )\n  ),\n\"\")","v":""},null,{"$f":"SUM(U282:U287)","v":0},null,null,"EUR",null,null,null,{"$error":"#DIV/0!"},0,0,null,"","","","","","","","","","",null,null,null,null,null,null,null,null,null,null,null,null,null,null,null,null,null,"ZWO"]
[null,null,null,null,null,{"$f":"VLOOKUP(G283,'Data order'!Z:AA,2,0)","v":{"$error":"#N/A"}},null,null,null,null,null,null,null,null,{"$f":"VLOOKUP(N283,Tabel10[[korte omschrijving]:[MCC3_CODE]],2,0)","v":{"$error":"#N/A"}},{"$f":"VLOOKUP(N283,'Data order'!M:O,3,0)","v":{"$error":"#N/A"}},null,null,null,{"$f":"IFERROR(\n  IF(R283=\"Big&Tall\",\n      VLOOKUP(S283, 'Data order'!$AC$92:$AD$101, 2, FALSE),\n      IF(R283=\"Boordmaat\",\n          VLOOKUP(S283, 'Data order'!$AC$102:$AD$116, 2, FALSE),\n          VLOOKUP(S283, 'Data order'!$AC$2:$AD$91, 2, FALSE)\n      )\n  ),\n\"\")","v":""},null,null,null,null,"EUR",null,null,null,{"$error":"#DIV/0!"},0,0,null,"","","","","","","","","","",null,null,null,null,null,null,null,null,null,null,null,null,null,null,null,null,null,"ZWO"]
[null,null,null,null,null,{"$f":"VLOOKUP(G284,'Data order'!Z:AA,2,0)","v":{"$error":"#N/A"}},null,null,null,null,null,null,null,null,{"$f":"VLOOKUP(N284,Tabel10[[korte omschrijving]:[MCC3_CODE]],2,0)","v":{"$error":"#N/A"}},{"$f":"VLOOKUP(N284,'Data order'!M:O,3,0)","v":{"$error":"#N/A"}},null,null,null,{"$f":"IFERROR(\n  IF(R284=\"Big&Tall\",\n      VLOOKUP(S284, 'Data order'!$AC$92:$AD$101, 2, FALSE),\n      IF(R284=\"Boordmaat\",\n          VLOOKUP(S284, 'Data order'!$AC$102:$AD$116, 2, FALSE),\n          VLOOKUP(S284, 'Data order'!$AC$2:$AD$91, 2, FALSE)\n      )\n  ),\n\"\")","v":""},null,null,null,null,"EUR",null,null,null,{"$error":"#DIV/0!"},0,0,null,"","","","","","","","","","",null,null,null,null,null,null,null,null,null,null,null,null,null,null,null,null,null,"ZWO"]
[null,null,null,null,null,{"$f":"VLOOKUP(G285,'Data order'!Z:AA,2,0)","v":{"$error":"#N/A"}},null,null,null,null,null,null,null,null,{"$f":"VLOOKUP(N285,Tabel10[[korte omschrijving]:[MCC3_CODE]],2,0)","v":{"$error":"#N/A"}},{"$f":"VLOOKUP(N285,'Data order'!M:O,3,0)","v":{"$error":"#N/A"}},null,null,null,{"$f":"IFERROR(\n  IF(R285=\"Big&Tall\",\n      VLOOKUP(S285, 'Data order'!$AC$92:$AD$101, 2, FALSE),\n      IF(R285=\"Boordmaat\",\n          VLOOKUP(S285, 'Data order'!$AC$102:$AD$116, 2, FALSE),\n          VLOOKUP(S285, 'Data order'!$AC$2:$AD$91, 2, FALSE)\n      )\n  ),\n\"\")","v":""},null,null,null,null,"EUR",null,null,null,{"$error":"#DIV/0!"},0,0,null,"","","","","","","","","","",null,null,null,null,null,null,null,null,null,null,null,null,null,null,null,null,null,"ZWO"]
[null,null,null,null,null,{"$f":"VLOOKUP(G286,'Data order'!Z:AA,2,0)","v":{"$error":"#N/A"}},null,null,null,null,null,null,null,null,{"$f":"VLOOKUP(N286,Tabel10[[korte omschrijving]:[MCC3_CODE]],2,0)","v":{"$error":"#N/A"}},{"$f":"VLOOKUP(N286,'Data order'!M:O,3,0)","v":{"$error":"#N/A"}},null,null,null,{"$f":"IFERROR(\n  IF(R286=\"Big&Tall\",\n      VLOOKUP(S286, 'Data order'!$AC$92:$AD$101, 2, FALSE),\n      IF(R286=\"Boordmaat\",\n          VLOOKUP(S286, 'Data order'!$AC$102:$AD$116, 2, FALSE),\n          VLOOKUP(S286, 'Data order'!$AC$2:$AD$91, 2, FALSE)\n      )\n  ),\n\"\")","v":""},null,null,null,null,"EUR",null,null,null,{"$error":"#DIV/0!"},0,0,null,"","","","","","","","","","",null,null,null,null,null,null,null,null,null,null,null,null,null,null,null,null,null,"ZWO"]
[null,null,null,null,null,{"$f":"VLOOKUP(G287,'Data order'!Z:AA,2,0)","v":{"$error":"#N/A"}},null,null,null,null,null,null,null,null,{"$f":"VLOOKUP(N287,Tabel10[[korte omschrijving]:[MCC3_CODE]],2,0)","v":{"$error":"#N/A"}},{"$f":"VLOOKUP(N287,'Data order'!M:O,3,0)","v":{"$error":"#N/A"}},null,null,null,{"$f":"IFERROR(\n  IF(R287=\"Big&Tall\",\n      VLOOKUP(S287, 'Data order'!$AC$92:$AD$101, 2, FALSE),\n      IF(R287=\"Boordmaat\",\n          VLOOKUP(S287, 'Data order'!$AC$102:$AD$116, 2, FALSE),\n          VLOOKUP(S287, 'Data order'!$AC$2:$AD$91, 2, FALSE)\n      )\n  ),\n\"\")","v":""},null,null,null,null,"EUR",null,null,null,{"$error":"#DIV/0!"},0,0,null,"","","","","","","","","","",null,null,null,null,null,null,null,null,null,null,null,null,null,null,null,null,null,"ZWO"]
[null,null,null,null,null,{"$f":"VLOOKUP(G288,'Data order'!Z:AA,2,0)","v":{"$error":"#N/A"}},null,null,null,null,null,null,null,null,{"$f":"VLOOKUP(N288,Tabel10[[korte omschrijving]:[MCC3_CODE]],2,0)","v":{"$error":"#N/A"}},{"$f":"VLOOKUP(N288,'Data order'!M:O,3,0)","v":{"$error":"#N/A"}},null,null,null,{"$f":"IFERROR(\n  IF(R288=\"Big&Tall\",\n      VLOOKUP(S288, 'Data order'!$AC$92:$AD$101, 2, FALSE),\n      IF(R288=\"Boordmaat\",\n          VLOOKUP(S288, 'Data order'!$AC$102:$AD$116, 2, FALSE),\n          VLOOKUP(S288, 'Data order'!$AC$2:$AD$91, 2, FALSE)\n      )\n  ),\n\"\")","v":""},null,{"$f":"SUM(U288:U293)","v":0},null,null,"EUR",null,null,null,{"$error":"#DIV/0!"},0,0,null,"","","","","","","","","","",null,null,null,null,null,null,null,null,null,null,null,null,null,null,null,null,null,"ZWO"]
[null,null,null,null,null,{"$f":"VLOOKUP(G289,'Data order'!Z:AA,2,0)","v":{"$error":"#N/A"}},null,null,null,null,null,null,null,null,{"$f":"VLOOKUP(N289,Tabel10[[korte omschrijving]:[MCC3_CODE]],2,0)","v":{"$error":"#N/A"}},{"$f":"VLOOKUP(N289,'Data order'!M:O,3,0)","v":{"$error":"#N/A"}},null,null,null,{"$f":"IFERROR(\n  IF(R289=\"Big&Tall\",\n      VLOOKUP(S289, 'Data order'!$AC$92:$AD$101, 2, FALSE),\n      IF(R289=\"Boordmaat\",\n          VLOOKUP(S289, 'Data order'!$AC$102:$AD$116, 2, FALSE),\n          VLOOKUP(S289, 'Data order'!$AC$2:$AD$91, 2, FALSE)\n      )\n  ),\n\"\")","v":""},null,null,null,null,"EUR",null,null,null,{"$error":"#DIV/0!"},0,0,null,"","","","","","","","","","",null,null,null,null,null,null,null,null,null,null,null,null,null,null,null,null,null,"ZWO"]
[null,null,null,null,null,{"$f":"VLOOKUP(G290,'Data order'!Z:AA,2,0)","v":{"$error":"#N/A"}},null,null,null,null,null,null,null,null,{"$f":"VLOOKUP(N290,Tabel10[[korte omschrijving]:[MCC3_CODE]],2,0)","v":{"$error":"#N/A"}},{"$f":"VLOOKUP(N290,'Data order'!M:O,3,0)","v":{"$error":"#N/A"}},null,null,null,{"$f":"IFERROR(\n  IF(R290=\"Big&Tall\",\n      VLOOKUP(S290, 'Data order'!$AC$92:$AD$101, 2, FALSE),\n      IF(R290=\"Boordmaat\",\n          VLOOKUP(S290, 'Data order'!$AC$102:$AD$116, 2, FALSE),\n          VLOOKUP(S290, 'Data order'!$AC$2:$AD$91, 2, FALSE)\n      )\n  ),\n\"\")","v":""},null,null,null,null,"EUR",null,null,null,{"$error":"#DIV/0!"},0,0,null,"","","","","","","","","","",null,null,null,null,null,null,null,null,null,null,null,null,null,null,null,null,null,"ZWO"]
[null,null,null,null,null,{"$f":"VLOOKUP(G291,'Data order'!Z:AA,2,0)","v":{"$error":"#N/A"}},null,null,null,null,null,null,null,null,{"$f":"VLOOKUP(N291,Tabel10[[korte omschrijving]:[MCC3_CODE]],2,0)","v":{"$error":"#N/A"}},{"$f":"VLOOKUP(N291,'Data order'!M:O,3,0)","v":{"$error":"#N/A"}},null,null,null,{"$f":"IFERROR(\n  IF(R291=\"Big&Tall\",\n      VLOOKUP(S291, 'Data order'!$AC$92:$AD$101, 2, FALSE),\n      IF(R291=\"Boordmaat\",\n          VLOOKUP(S291, 'Data order'!$AC$102:$AD$116, 2, FALSE),\n          VLOOKUP(S291, 'Data order'!$AC$2:$AD$91, 2, FALSE)\n      )\n  ),\n\"\")","v":""},null,null,null,null,"EUR",null,null,null,{"$error":"#DIV/0!"},0,0,null,"","","","","","","","","","",null,null,null,null,null,null,null,null,null,null,null,null,null,null,null,null,null,"ZWO"]
[null,null,null,null,null,{"$f":"VLOOKUP(G292,'Data order'!Z:AA,2,0)","v":{"$error":"#N/A"}},null,null,null,null,null,null,null,null,{"$f":"VLOOKUP(N292,Tabel10[[korte omschrijving]:[MCC3_CODE]],2,0)","v":{"$error":"#N/A"}},{"$f":"VLOOKUP(N292,'Data order'!M:O,3,0)","v":{"$error":"#N/A"}},null,null,null,{"$f":"IFERROR(\n  IF(R292=\"Big&Tall\",\n      VLOOKUP(S292, 'Data order'!$AC$92:$AD$101, 2, FALSE),\n      IF(R292=\"Boordmaat\",\n          VLOOKUP(S292, 'Data order'!$AC$102:$AD$116, 2, FALSE),\n          VLOOKUP(S292, 'Data order'!$AC$2:$AD$91, 2, FALSE)\n      )\n  ),\n\"\")","v":""},null,null,null,null,"EUR",null,null,null,{"$error":"#DIV/0!"},0,0,null,"","","","","","","","","","",null,null,null,null,null,null,null,null,null,null,null,null,null,null,null,null,null,"ZWO"]
[null,null,null,null,null,{"$f":"VLOOKUP(G293,'Data order'!Z:AA,2,0)","v":{"$error":"#N/A"}},null,null,null,null,null,null,null,null,{"$f":"VLOOKUP(N293,Tabel10[[korte omschrijving]:[MCC3_CODE]],2,0)","v":{"$error":"#N/A"}},{"$f":"VLOOKUP(N293,'Data order'!M:O,3,0)","v":{"$error":"#N/A"}},null,null,null,{"$f":"IFERROR(\n  IF(R293=\"Big&Tall\",\n      VLOOKUP(S293, 'Data order'!$AC$92:$AD$101, 2, FALSE),\n      IF(R293=\"Boordmaat\",\n          VLOOKUP(S293, 'Data order'!$AC$102:$AD$116, 2, FALSE),\n          VLOOKUP(S293, 'Data order'!$AC$2:$AD$91, 2, FALSE)\n      )\n  ),\n\"\")","v":""},null,null,null,null,"EUR",null,null,null,{"$error":"#DIV/0!"},0,0,null,"","","","","","","","","","",null,null,null,null,null,null,null,null,null,null,null,null,null,null,null,null,null,"ZWO"]
[null,null,null,null,null,{"$f":"VLOOKUP(G294,'Data order'!Z:AA,2,0)","v":{"$error":"#N/A"}},null,null,null,null,null,null,null,null,{"$f":"VLOOKUP(N294,Tabel10[[korte omschrijving]:[MCC3_CODE]],2,0)","v":{"$error":"#N/A"}},{"$f":"VLOOKUP(N294,'Data order'!M:O,3,0)","v":{"$error":"#N/A"}},null,null,null,{"$f":"IFERROR(\n  IF(R294=\"Big&Tall\",\n      VLOOKUP(S294, 'Data order'!$AC$92:$AD$101, 2, FALSE),\n      IF(R294=\"Boordmaat\",\n          VLOOKUP(S294, 'Data order'!$AC$102:$AD$116, 2, FALSE),\n          VLOOKUP(S294, 'Data order'!$AC$2:$AD$91, 2, FALSE)\n      )\n  ),\n\"\")","v":""},null,{"$f":"SUM(U294:U299)","v":0},null,null,"EUR",null,null,null,{"$error":"#DIV/0!"},0,0,null,"","","","","","","","","","",null,null,null,null,null,null,null,null,null,null,null,null,null,null,null,null,null,"ZWO"]
[null,null,null,null,null,{"$f":"VLOOKUP(G295,'Data order'!Z:AA,2,0)","v":{"$error":"#N/A"}},null,null,null,null,null,null,null,null,{"$f":"VLOOKUP(N295,Tabel10[[korte omschrijving]:[MCC3_CODE]],2,0)","v":{"$error":"#N/A"}},{"$f":"VLOOKUP(N295,'Data order'!M:O,3,0)","v":{"$error":"#N/A"}},null,null,null,{"$f":"IFERROR(\n  IF(R295=\"Big&Tall\",\n      VLOOKUP(S295, 'Data order'!$AC$92:$AD$101, 2, FALSE),\n      IF(R295=\"Boordmaat\",\n          VLOOKUP(S295, 'Data order'!$AC$102:$AD$116, 2, FALSE),\n          VLOOKUP(S295, 'Data order'!$AC$2:$AD$91, 2, FALSE)\n      )\n  ),\n\"\")","v":""},null,null,null,null,"EUR",null,null,null,{"$error":"#DIV/0!"},0,0,null,"","","","","","","","","","",null,null,null,null,null,null,null,null,null,null,null,null,null,null,null,null,null,"ZWO"]
[null,null,null,null,null,{"$f":"VLOOKUP(G296,'Data order'!Z:AA,2,0)","v":{"$error":"#N/A"}},null,null,null,null,null,null,null,null,{"$f":"VLOOKUP(N296,Tabel10[[korte omschrijving]:[MCC3_CODE]],2,0)","v":{"$error":"#N/A"}},{"$f":"VLOOKUP(N296,'Data order'!M:O,3,0)","v":{"$error":"#N/A"}},null,null,null,{"$f":"IFERROR(\n  IF(R296=\"Big&Tall\",\n      VLOOKUP(S296, 'Data order'!$AC$92:$AD$101, 2, FALSE),\n      IF(R296=\"Boordmaat\",\n          VLOOKUP(S296, 'Data order'!$AC$102:$AD$116, 2, FALSE),\n          VLOOKUP(S296, 'Data order'!$AC$2:$AD$91, 2, FALSE)\n      )\n  ),\n\"\")","v":""},null,null,null,null,"EUR",null,null,null,{"$error":"#DIV/0!"},0,0,null,"","","","","","","","","","",null,null,null,null,null,null,null,null,null,null,null,null,null,null,null,null,null,"ZWO"]
[null,null,null,null,null,{"$f":"VLOOKUP(G297,'Data order'!Z:AA,2,0)","v":{"$error":"#N/A"}},null,null,null,null,null,null,null,null,{"$f":"VLOOKUP(N297,Tabel10[[korte omschrijving]:[MCC3_CODE]],2,0)","v":{"$error":"#N/A"}},{"$f":"VLOOKUP(N297,'Data order'!M:O,3,0)","v":{"$error":"#N/A"}},null,null,null,{"$f":"IFERROR(\n  IF(R297=\"Big&Tall\",\n      VLOOKUP(S297, 'Data order'!$AC$92:$AD$101, 2, FALSE),\n      IF(R297=\"Boordmaat\",\n          VLOOKUP(S297, 'Data order'!$AC$102:$AD$116, 2, FALSE),\n          VLOOKUP(S297, 'Data order'!$AC$2:$AD$91, 2, FALSE)\n      )\n  ),\n\"\")","v":""},null,null,null,null,"EUR",null,null,null,{"$error":"#DIV/0!"},0,0,null,"","","","","","","","","","",null,null,null,null,null,null,null,null,null,null,null,null,null,null,null,null,null,"ZWO"]
[null,null,null,null,null,{"$f":"VLOOKUP(G298,'Data order'!Z:AA,2,0)","v":{"$error":"#N/A"}},null,null,null,null,null,null,null,null,{"$f":"VLOOKUP(N298,Tabel10[[korte omschrijving]:[MCC3_CODE]],2,0)","v":{"$error":"#N/A"}},{"$f":"VLOOKUP(N298,'Data order'!M:O,3,0)","v":{"$error":"#N/A"}},null,null,null,{"$f":"IFERROR(\n  IF(R298=\"Big&Tall\",\n      VLOOKUP(S298, 'Data order'!$AC$92:$AD$101, 2, FALSE),\n      IF(R298=\"Boordmaat\",\n          VLOOKUP(S298, 'Data order'!$AC$102:$AD$116, 2, FALSE),\n          VLOOKUP(S298, 'Data order'!$AC$2:$AD$91, 2, FALSE)\n      )\n  ),\n\"\")","v":""},null,null,null,null,"EUR",null,null,null,{"$error":"#DIV/0!"},0,0,null,"","","","","","","","","","",null,null,null,null,null,null,null,null,null,null,null,null,null,null,null,null,null,"ZWO"]
[null,null,null,null,null,{"$f":"VLOOKUP(G299,'Data order'!Z:AA,2,0)","v":{"$error":"#N/A"}},null,null,null,null,null,null,null,null,{"$f":"VLOOKUP(N299,Tabel10[[korte omschrijving]:[MCC3_CODE]],2,0)","v":{"$error":"#N/A"}},{"$f":"VLOOKUP(N299,'Data order'!M:O,3,0)","v":{"$error":"#N/A"}},null,null,null,{"$f":"IFERROR(\n  IF(R299=\"Big&Tall\",\n      VLOOKUP(S299, 'Data order'!$AC$92:$AD$101, 2, FALSE),\n      IF(R299=\"Boordmaat\",\n          VLOOKUP(S299, 'Data order'!$AC$102:$AD$116, 2, FALSE),\n          VLOOKUP(S299, 'Data order'!$AC$2:$AD$91, 2, FALSE)\n      )\n  ),\n\"\")","v":""},null,null,null,null,"EUR",null,null,null,{"$error":"#DIV/0!"},0,0,null,"","","","","","","","","","",null,null,null,null,null,null,null,null,null,null,null,null,null,null,null,null,null,"ZWO"]
[null,null,null,null,null,{"$f":"VLOOKUP(G300,'Data order'!Z:AA,2,0)","v":{"$error":"#N/A"}},null,null,null,null,null,null,null,null,{"$f":"VLOOKUP(N300,Tabel10[[korte omschrijving]:[MCC3_CODE]],2,0)","v":{"$error":"#N/A"}},{"$f":"VLOOKUP(N300,'Data order'!M:O,3,0)","v":{"$error":"#N/A"}},null,null,null,{"$f":"IFERROR(\n  IF(R300=\"Big&Tall\",\n      VLOOKUP(S300, 'Data order'!$AC$92:$AD$101, 2, FALSE),\n      IF(R300=\"Boordmaat\",\n          VLOOKUP(S300, 'Data order'!$AC$102:$AD$116, 2, FALSE),\n          VLOOKUP(S300, 'Data order'!$AC$2:$AD$91, 2, FALSE)\n      )\n  ),\n\"\")","v":""},null,{"$f":"SUM(U300:U305)","v":0},null,null,"EUR",null,null,null,{"$error":"#DIV/0!"},0,0,null,"","","","","","","","","","",null,null,null,null,null,null,null,null,null,null,null,null,null,null,null,null,null,"ZWO"]
[null,null,null,null,null,{"$f":"VLOOKUP(G301,'Data order'!Z:AA,2,0)","v":{"$error":"#N/A"}},null,null,null,null,null,null,null,null,{"$f":"VLOOKUP(N301,Tabel10[[korte omschrijving]:[MCC3_CODE]],2,0)","v":{"$error":"#N/A"}},{"$f":"VLOOKUP(N301,'Data order'!M:O,3,0)","v":{"$error":"#N/A"}},null,null,null,{"$f":"IFERROR(\n  IF(R301=\"Big&Tall\",\n      VLOOKUP(S301, 'Data order'!$AC$92:$AD$101, 2, FALSE),\n      IF(R301=\"Boordmaat\",\n          VLOOKUP(S301, 'Data order'!$AC$102:$AD$116, 2, FALSE),\n          VLOOKUP(S301, 'Data order'!$AC$2:$AD$91, 2, FALSE)\n      )\n  ),\n\"\")","v":""},null,null,null,null,"EUR",null,null,null,{"$error":"#DIV/0!"},0,0,null,"","","","","","","","","","",null,null,null,null,null,null,null,null,null,null,null,null,null,null,null,null,null,"ZWO"]
[null,null,null,null,null,{"$f":"VLOOKUP(G302,'Data order'!Z:AA,2,0)","v":{"$error":"#N/A"}},null,null,null,null,null,null,null,null,{"$f":"VLOOKUP(N302,Tabel10[[korte omschrijving]:[MCC3_CODE]],2,0)","v":{"$error":"#N/A"}},{"$f":"VLOOKUP(N302,'Data order'!M:O,3,0)","v":{"$error":"#N/A"}},null,null,null,{"$f":"IFERROR(\n  IF(R302=\"Big&Tall\",\n      VLOOKUP(S302, 'Data order'!$AC$92:$AD$101, 2, FALSE),\n      IF(R302=\"Boordmaat\",\n          VLOOKUP(S302, 'Data order'!$AC$102:$AD$116, 2, FALSE),\n          VLOOKUP(S302, 'Data order'!$AC$2:$AD$91, 2, FALSE)\n      )\n  ),\n\"\")","v":""},null,null,null,null,"EUR",null,null,null,{"$error":"#DIV/0!"},0,0,null,"","","","","","","","","","",null,null,null,null,null,null,null,null,null,null,null,null,null,null,null,null,null,"ZWO"]
[null,null,null,null,null,{"$f":"VLOOKUP(G303,'Data order'!Z:AA,2,0)","v":{"$error":"#N/A"}},null,null,null,null,null,null,null,null,{"$f":"VLOOKUP(N303,Tabel10[[korte omschrijving]:[MCC3_CODE]],2,0)","v":{"$error":"#N/A"}},{"$f":"VLOOKUP(N303,'Data order'!M:O,3,0)","v":{"$error":"#N/A"}},null,null,null,{"$f":"IFERROR(\n  IF(R303=\"Big&Tall\",\n      VLOOKUP(S303, 'Data order'!$AC$92:$AD$101, 2, FALSE),\n      IF(R303=\"Boordmaat\",\n          VLOOKUP(S303, 'Data order'!$AC$102:$AD$116, 2, FALSE),\n          VLOOKUP(S303, 'Data order'!$AC$2:$AD$91, 2, FALSE)\n      )\n  ),\n\"\")","v":""},null,null,null,null,"EUR",null,null,null,{"$error":"#DIV/0!"},0,0,null,"","","","","","","","","","",null,null,null,null,null,null,null,null,null,null,null,null,null,null,null,null,null,"ZWO"]
[null,null,null,null,null,{"$f":"VLOOKUP(G304,'Data order'!Z:AA,2,0)","v":{"$error":"#N/A"}},null,null,null,null,null,null,null,null,{"$f":"VLOOKUP(N304,Tabel10[[korte omschrijving]:[MCC3_CODE]],2,0)","v":{"$error":"#N/A"}},{"$f":"VLOOKUP(N304,'Data order'!M:O,3,0)","v":{"$error":"#N/A"}},null,null,null,{"$f":"IFERROR(\n  IF(R304=\"Big&Tall\",\n      VLOOKUP(S304, 'Data order'!$AC$92:$AD$101, 2, FALSE),\n      IF(R304=\"Boordmaat\",\n          VLOOKUP(S304, 'Data order'!$AC$102:$AD$116, 2, FALSE),\n          VLOOKUP(S304, 'Data order'!$AC$2:$AD$91, 2, FALSE)\n      )\n  ),\n\"\")","v":""},null,null,null,null,"EUR",null,null,null,{"$error":"#DIV/0!"},0,0,null,"","","","","","","","","","",null,null,null,null,null,null,null,null,null,null,null,null,null,null,null,null,null,"ZWO"]
[null,null,null,null,null,{"$f":"VLOOKUP(G305,'Data order'!Z:AA,2,0)","v":{"$error":"#N/A"}},null,null,null,null,null,null,null,null,{"$f":"VLOOKUP(N305,Tabel10[[korte omschrijving]:[MCC3_CODE]],2,0)","v":{"$error":"#N/A"}},{"$f":"VLOOKUP(N305,'Data order'!M:O,3,0)","v":{"$error":"#N/A"}},null,null,null,{"$f":"IFERROR(\n  IF(R305=\"Big&Tall\",\n      VLOOKUP(S305, 'Data order'!$AC$92:$AD$101, 2, FALSE),\n      IF(R305=\"Boordmaat\",\n          VLOOKUP(S305, 'Data order'!$AC$102:$AD$116, 2, FALSE),\n          VLOOKUP(S305, 'Data order'!$AC$2:$AD$91, 2, FALSE)\n      )\n  ),\n\"\")","v":""},null,null,null,null,"EUR",null,null,null,{"$error":"#DIV/0!"},0,0,null,"","","","","","","","","","",null,null,null,null,null,null,null,null,null,null,null,null,null,null,null,null,null,"ZWO"]
[null,null,null,null,null,{"$f":"VLOOKUP(G306,'Data order'!Z:AA,2,0)","v":{"$error":"#N/A"}},null,null,null,null,null,null,null,null,{"$f":"VLOOKUP(N306,Tabel10[[korte omschrijving]:[MCC3_CODE]],2,0)","v":{"$error":"#N/A"}},{"$f":"VLOOKUP(N306,'Data order'!M:O,3,0)","v":{"$error":"#N/A"}},null,null,null,{"$f":"IFERROR(\n  IF(R306=\"Big&Tall\",\n      VLOOKUP(S306, 'Data order'!$AC$92:$AD$101, 2, FALSE),\n      IF(R306=\"Boordmaat\",\n          VLOOKUP(S306, 'Data order'!$AC$102:$AD$116, 2, FALSE),\n          VLOOKUP(S306, 'Data order'!$AC$2:$AD$91, 2, FALSE)\n      )\n  ),\n\"\")","v":""},null,{"$f":"SUM(U306:U311)","v":0},null,null,"EUR",null,null,null,{"$error":"#DIV/0!"},0,0,null,"","","","","","","","","","",null,null,null,null,null,null,null,null,null,null,null,null,null,null,null,null,null,"ZWO"]
[null,null,null,null,null,{"$f":"VLOOKUP(G307,'Data order'!Z:AA,2,0)","v":{"$error":"#N/A"}},null,null,null,null,null,null,null,null,{"$f":"VLOOKUP(N307,Tabel10[[korte omschrijving]:[MCC3_CODE]],2,0)","v":{"$error":"#N/A"}},{"$f":"VLOOKUP(N307,'Data order'!M:O,3,0)","v":{"$error":"#N/A"}},null,null,null,{"$f":"IFERROR(\n  IF(R307=\"Big&Tall\",\n      VLOOKUP(S307, 'Data order'!$AC$92:$AD$101, 2, FALSE),\n      IF(R307=\"Boordmaat\",\n          VLOOKUP(S307, 'Data order'!$AC$102:$AD$116, 2, FALSE),\n          VLOOKUP(S307, 'Data order'!$AC$2:$AD$91, 2, FALSE)\n      )\n  ),\n\"\")","v":""},null,null,null,null,"EUR",null,null,null,{"$error":"#DIV/0!"},0,0,null,"","","","","","","","","","",null,null,null,null,null,null,null,null,null,null,null,null,null,null,null,null,null,"ZWO"]
[null,null,null,null,null,{"$f":"VLOOKUP(G308,'Data order'!Z:AA,2,0)","v":{"$error":"#N/A"}},null,null,null,null,null,null,null,null,{"$f":"VLOOKUP(N308,Tabel10[[korte omschrijving]:[MCC3_CODE]],2,0)","v":{"$error":"#N/A"}},{"$f":"VLOOKUP(N308,'Data order'!M:O,3,0)","v":{"$error":"#N/A"}},null,null,null,{"$f":"IFERROR(\n  IF(R308=\"Big&Tall\",\n      VLOOKUP(S308, 'Data order'!$AC$92:$AD$101, 2, FALSE),\n      IF(R308=\"Boordmaat\",\n          VLOOKUP(S308, 'Data order'!$AC$102:$AD$116, 2, FALSE),\n          VLOOKUP(S308, 'Data order'!$AC$2:$AD$91, 2, FALSE)\n      )\n  ),\n\"\")","v":""},null,null,null,null,"EUR",null,null,null,{"$error":"#DIV/0!"},0,0,null,"","","","","","","","","","",null,null,null,null,null,null,null,null,null,null,null,null,null,null,null,null,null,"ZWO"]
[null,null,null,null,null,{"$f":"VLOOKUP(G309,'Data order'!Z:AA,2,0)","v":{"$error":"#N/A"}},null,null,null,null,null,null,null,null,{"$f":"VLOOKUP(N309,Tabel10[[korte omschrijving]:[MCC3_CODE]],2,0)","v":{"$error":"#N/A"}},{"$f":"VLOOKUP(N309,'Data order'!M:O,3,0)","v":{"$error":"#N/A"}},null,null,null,{"$f":"IFERROR(\n  IF(R309=\"Big&Tall\",\n      VLOOKUP(S309, 'Data order'!$AC$92:$AD$101, 2, FALSE),\n      IF(R309=\"Boordmaat\",\n          VLOOKUP(S309, 'Data order'!$AC$102:$AD$116, 2, FALSE),\n          VLOOKUP(S309, 'Data order'!$AC$2:$AD$91, 2, FALSE)\n      )\n  ),\n\"\")","v":""},null,null,null,null,"EUR",null,null,null,{"$error":"#DIV/0!"},0,0,null,"","","","","","","","","","",null,null,null,null,null,null,null,null,null,null,null,null,null,null,null,null,null,"ZWO"]
[null,null,null,null,null,{"$f":"VLOOKUP(G310,'Data order'!Z:AA,2,0)","v":{"$error":"#N/A"}},null,null,null,null,null,null,null,null,{"$f":"VLOOKUP(N310,Tabel10[[korte omschrijving]:[MCC3_CODE]],2,0)","v":{"$error":"#N/A"}},{"$f":"VLOOKUP(N310,'Data order'!M:O,3,0)","v":{"$error":"#N/A"}},null,null,null,{"$f":"IFERROR(\n  IF(R310=\"Big&Tall\",\n      VLOOKUP(S310, 'Data order'!$AC$92:$AD$101, 2, FALSE),\n      IF(R310=\"Boordmaat\",\n          VLOOKUP(S310, 'Data order'!$AC$102:$AD$116, 2, FALSE),\n          VLOOKUP(S310, 'Data order'!$AC$2:$AD$91, 2, FALSE)\n      )\n  ),\n\"\")","v":""},null,null,null,null,"EUR",null,null,null,{"$error":"#DIV/0!"},0,0,null,"","","","","","","","","","",null,null,null,null,null,null,null,null,null,null,null,null,null,null,null,null,null,"ZWO"]
[null,null,null,null,null,{"$f":"VLOOKUP(G311,'Data order'!Z:AA,2,0)","v":{"$error":"#N/A"}},null,null,null,null,null,null,null,null,{"$f":"VLOOKUP(N311,Tabel10[[korte omschrijving]:[MCC3_CODE]],2,0)","v":{"$error":"#N/A"}},{"$f":"VLOOKUP(N311,'Data order'!M:O,3,0)","v":{"$error":"#N/A"}},null,null,null,{"$f":"IFERROR(\n  IF(R311=\"Big&Tall\",\n      VLOOKUP(S311, 'Data order'!$AC$92:$AD$101, 2, FALSE),\n      IF(R311=\"Boordmaat\",\n          VLOOKUP(S311, 'Data order'!$AC$102:$AD$116, 2, FALSE),\n          VLOOKUP(S311, 'Data order'!$AC$2:$AD$91, 2, FALSE)\n      )\n  ),\n\"\")","v":""},null,null,null,null,"EUR",null,null,null,{"$error":"#DIV/0!"},0,0,null,"","","","","","","","","","",null,null,null,null,null,null,null,null,null,null,null,null,null,null,null,null,null,"ZWO"]
[null,null,null,null,null,{"$f":"VLOOKUP(G312,'Data order'!Z:AA,2,0)","v":{"$error":"#N/A"}},null,null,null,null,null,null,null,null,{"$f":"VLOOKUP(N312,Tabel10[[korte omschrijving]:[MCC3_CODE]],2,0)","v":{"$error":"#N/A"}},{"$f":"VLOOKUP(N312,'Data order'!M:O,3,0)","v":{"$error":"#N/A"}},null,null,null,{"$f":"IFERROR(\n  IF(R312=\"Big&Tall\",\n      VLOOKUP(S312, 'Data order'!$AC$92:$AD$101, 2, FALSE),\n      IF(R312=\"Boordmaat\",\n          VLOOKUP(S312, 'Data order'!$AC$102:$AD$116, 2, FALSE),\n          VLOOKUP(S312, 'Data order'!$AC$2:$AD$91, 2, FALSE)\n      )\n  ),\n\"\")","v":""},null,{"$f":"SUM(U312:U317)","v":0},null,null,"EUR",null,null,null,{"$error":"#DIV/0!"},0,0,null,"","","","","","","","","","",null,null,null,null,null,null,null,null,null,null,null,null,null,null,null,null,null,"ZWO"]
[null,null,null,null,null,{"$f":"VLOOKUP(G313,'Data order'!Z:AA,2,0)","v":{"$error":"#N/A"}},null,null,null,null,null,null,null,null,{"$f":"VLOOKUP(N313,Tabel10[[korte omschrijving]:[MCC3_CODE]],2,0)","v":{"$error":"#N/A"}},{"$f":"VLOOKUP(N313,'Data order'!M:O,3,0)","v":{"$error":"#N/A"}},null,null,null,{"$f":"IFERROR(\n  IF(R313=\"Big&Tall\",\n      VLOOKUP(S313, 'Data order'!$AC$92:$AD$101, 2, FALSE),\n      IF(R313=\"Boordmaat\",\n          VLOOKUP(S313, 'Data order'!$AC$102:$AD$116, 2, FALSE),\n          VLOOKUP(S313, 'Data order'!$AC$2:$AD$91, 2, FALSE)\n      )\n  ),\n\"\")","v":""},null,null,null,null,"EUR",null,null,null,{"$error":"#DIV/0!"},0,0,null,"","","","","","","","","","",null,null,null,null,null,null,null,null,null,null,null,null,null,null,null,null,null,"ZWO"]
[null,null,null,null,null,{"$f":"VLOOKUP(G314,'Data order'!Z:AA,2,0)","v":{"$error":"#N/A"}},null,null,null,null,null,null,null,null,{"$f":"VLOOKUP(N314,Tabel10[[korte omschrijving]:[MCC3_CODE]],2,0)","v":{"$error":"#N/A"}},{"$f":"VLOOKUP(N314,'Data order'!M:O,3,0)","v":{"$error":"#N/A"}},null,null,null,{"$f":"IFERROR(\n  IF(R314=\"Big&Tall\",\n      VLOOKUP(S314, 'Data order'!$AC$92:$AD$101, 2, FALSE),\n      IF(R314=\"Boordmaat\",\n          VLOOKUP(S314, 'Data order'!$AC$102:$AD$116, 2, FALSE),\n          VLOOKUP(S314, 'Data order'!$AC$2:$AD$91, 2, FALSE)\n      )\n  ),\n\"\")","v":""},null,null,null,null,"EUR",null,null,null,{"$error":"#DIV/0!"},0,0,null,"","","","","","","","","","",null,null,null,null,null,null,null,null,null,null,null,null,null,null,null,null,null,"ZWO"]
[null,null,null,null,null,{"$f":"VLOOKUP(G315,'Data order'!Z:AA,2,0)","v":{"$error":"#N/A"}},null,null,null,null,null,null,null,null,{"$f":"VLOOKUP(N315,Tabel10[[korte omschrijving]:[MCC3_CODE]],2,0)","v":{"$error":"#N/A"}},{"$f":"VLOOKUP(N315,'Data order'!M:O,3,0)","v":{"$error":"#N/A"}},null,null,null,{"$f":"IFERROR(\n  IF(R315=\"Big&Tall\",\n      VLOOKUP(S315, 'Data order'!$AC$92:$AD$101, 2, FALSE),\n      IF(R315=\"Boordmaat\",\n          VLOOKUP(S315, 'Data order'!$AC$102:$AD$116, 2, FALSE),\n          VLOOKUP(S315, 'Data order'!$AC$2:$AD$91, 2, FALSE)\n      )\n  ),\n\"\")","v":""},null,null,null,null,"EUR",null,null,null,{"$error":"#DIV/0!"},0,0,null,"","","","","","","","","","",null,null,null,null,null,null,null,null,null,null,null,null,null,null,null,null,null,"ZWO"]
[null,null,null,null,null,{"$f":"VLOOKUP(G316,'Data order'!Z:AA,2,0)","v":{"$error":"#N/A"}},null,null,null,null,null,null,null,null,{"$f":"VLOOKUP(N316,Tabel10[[korte omschrijving]:[MCC3_CODE]],2,0)","v":{"$error":"#N/A"}},{"$f":"VLOOKUP(N316,'Data order'!M:O,3,0)","v":{"$error":"#N/A"}},null,null,null,{"$f":"IFERROR(\n  IF(R316=\"Big&Tall\",\n      VLOOKUP(S316, 'Data order'!$AC$92:$AD$101, 2, FALSE),\n      IF(R316=\"Boordmaat\",\n          VLOOKUP(S316, 'Data order'!$AC$102:$AD$116, 2, FALSE),\n          VLOOKUP(S316, 'Data order'!$AC$2:$AD$91, 2, FALSE)\n      )\n  ),\n\"\")","v":""},null,null,null,null,"EUR",null,null,null,{"$error":"#DIV/0!"},0,0,null,"","","","","","","","","","",null,null,null,null,null,null,null,null,null,null,null,null,null,null,null,null,null,"ZWO"]
[null,null,null,null,null,{"$f":"VLOOKUP(G317,'Data order'!Z:AA,2,0)","v":{"$error":"#N/A"}},null,null,null,null,null,null,null,null,{"$f":"VLOOKUP(N317,Tabel10[[korte omschrijving]:[MCC3_CODE]],2,0)","v":{"$error":"#N/A"}},{"$f":"VLOOKUP(N317,'Data order'!M:O,3,0)","v":{"$error":"#N/A"}},null,null,null,{"$f":"IFERROR(\n  IF(R317=\"Big&Tall\",\n      VLOOKUP(S317, 'Data order'!$AC$92:$AD$101, 2, FALSE),\n      IF(R317=\"Boordmaat\",\n          VLOOKUP(S317, 'Data order'!$AC$102:$AD$116, 2, FALSE),\n          VLOOKUP(S317, 'Data order'!$AC$2:$AD$91, 2, FALSE)\n      )\n  ),\n\"\")","v":""},null,null,null,null,"EUR",null,null,null,{"$error":"#DIV/0!"},0,0,null,"","","","","","","","","","",null,null,null,null,null,null,null,null,null,null,null,null,null,null,null,null,null,"ZWO"]
[null,null,null,null,null,{"$f":"VLOOKUP(G318,'Data order'!Z:AA,2,0)","v":{"$error":"#N/A"}},null,null,null,null,null,null,null,null,{"$f":"VLOOKUP(N318,Tabel10[[korte omschrijving]:[MCC3_CODE]],2,0)","v":{"$error":"#N/A"}},{"$f":"VLOOKUP(N318,'Data order'!M:O,3,0)","v":{"$error":"#N/A"}},null,null,null,{"$f":"IFERROR(\n  IF(R318=\"Big&Tall\",\n      VLOOKUP(S318, 'Data order'!$AC$92:$AD$101, 2, FALSE),\n      IF(R318=\"Boordmaat\",\n          VLOOKUP(S318, 'Data order'!$AC$102:$AD$116, 2, FALSE),\n          VLOOKUP(S318, 'Data order'!$AC$2:$AD$91, 2, FALSE)\n      )\n  ),\n\"\")","v":""},null,{"$f":"SUM(U318:U323)","v":0},null,null,"EUR",null,null,null,{"$error":"#DIV/0!"},0,0,null,"","","","","","","","","","",null,null,null,null,null,null,null,null,null,null,null,null,null,null,null,null,null,"ZWO"]
[null,null,null,null,null,{"$f":"VLOOKUP(G319,'Data order'!Z:AA,2,0)","v":{"$error":"#N/A"}},null,null,null,null,null,null,null,null,{"$f":"VLOOKUP(N319,Tabel10[[korte omschrijving]:[MCC3_CODE]],2,0)","v":{"$error":"#N/A"}},{"$f":"VLOOKUP(N319,'Data order'!M:O,3,0)","v":{"$error":"#N/A"}},null,null,null,{"$f":"IFERROR(\n  IF(R319=\"Big&Tall\",\n      VLOOKUP(S319, 'Data order'!$AC$92:$AD$101, 2, FALSE),\n      IF(R319=\"Boordmaat\",\n          VLOOKUP(S319, 'Data order'!$AC$102:$AD$116, 2, FALSE),\n          VLOOKUP(S319, 'Data order'!$AC$2:$AD$91, 2, FALSE)\n      )\n  ),\n\"\")","v":""},null,null,null,null,"EUR",null,null,null,{"$error":"#DIV/0!"},0,0,null,"","","","","","","","","","",null,null,null,null,null,null,null,null,null,null,null,null,null,null,null,null,null,"ZWO"]
[null,null,null,null,null,{"$f":"VLOOKUP(G320,'Data order'!Z:AA,2,0)","v":{"$error":"#N/A"}},null,null,null,null,null,null,null,null,{"$f":"VLOOKUP(N320,Tabel10[[korte omschrijving]:[MCC3_CODE]],2,0)","v":{"$error":"#N/A"}},{"$f":"VLOOKUP(N320,'Data order'!M:O,3,0)","v":{"$error":"#N/A"}},null,null,null,{"$f":"IFERROR(\n  IF(R320=\"Big&Tall\",\n      VLOOKUP(S320, 'Data order'!$AC$92:$AD$101, 2, FALSE),\n      IF(R320=\"Boordmaat\",\n          VLOOKUP(S320, 'Data order'!$AC$102:$AD$116, 2, FALSE),\n          VLOOKUP(S320, 'Data order'!$AC$2:$AD$91, 2, FALSE)\n      )\n  ),\n\"\")","v":""},null,null,null,null,"EUR",null,null,null,{"$error":"#DIV/0!"},0,0,null,"","","","","","","","","","",null,null,null,null,null,null,null,null,null,null,null,null,null,null,null,null,null,"ZWO"]
[null,null,null,null,null,{"$f":"VLOOKUP(G321,'Data order'!Z:AA,2,0)","v":{"$error":"#N/A"}},null,null,null,null,null,null,null,null,{"$f":"VLOOKUP(N321,Tabel10[[korte omschrijving]:[MCC3_CODE]],2,0)","v":{"$error":"#N/A"}},{"$f":"VLOOKUP(N321,'Data order'!M:O,3,0)","v":{"$error":"#N/A"}},null,null,null,{"$f":"IFERROR(\n  IF(R321=\"Big&Tall\",\n      VLOOKUP(S321, 'Data order'!$AC$92:$AD$101, 2, FALSE),\n      IF(R321=\"Boordmaat\",\n          VLOOKUP(S321, 'Data order'!$AC$102:$AD$116, 2, FALSE),\n          VLOOKUP(S321, 'Data order'!$AC$2:$AD$91, 2, FALSE)\n      )\n  ),\n\"\")","v":""},null,null,null,null,"EUR",null,null,null,{"$error":"#DIV/0!"},0,0,null,"","","","","","","","","","",null,null,null,null,null,null,null,null,null,null,null,null,null,null,null,null,null,"ZWO"]
[null,null,null,null,null,{"$f":"VLOOKUP(G322,'Data order'!Z:AA,2,0)","v":{"$error":"#N/A"}},null,null,null,null,null,null,null,null,{"$f":"VLOOKUP(N322,Tabel10[[korte omschrijving]:[MCC3_CODE]],2,0)","v":{"$error":"#N/A"}},{"$f":"VLOOKUP(N322,'Data order'!M:O,3,0)","v":{"$error":"#N/A"}},null,null,null,{"$f":"IFERROR(\n  IF(R322=\"Big&Tall\",\n      VLOOKUP(S322, 'Data order'!$AC$92:$AD$101, 2, FALSE),\n      IF(R322=\"Boordmaat\",\n          VLOOKUP(S322, 'Data order'!$AC$102:$AD$116, 2, FALSE),\n          VLOOKUP(S322, 'Data order'!$AC$2:$AD$91, 2, FALSE)\n      )\n  ),\n\"\")","v":""},null,null,null,null,"EUR",null,null,null,{"$error":"#DIV/0!"},0,0,null,"","","","","","","","","","",null,null,null,null,null,null,null,null,null,null,null,null,null,null,null,null,null,"ZWO"]
[null,null,null,null,null,{"$f":"VLOOKUP(G323,'Data order'!Z:AA,2,0)","v":{"$error":"#N/A"}},null,null,null,null,null,null,null,null,{"$f":"VLOOKUP(N323,Tabel10[[korte omschrijving]:[MCC3_CODE]],2,0)","v":{"$error":"#N/A"}},{"$f":"VLOOKUP(N323,'Data order'!M:O,3,0)","v":{"$error":"#N/A"}},null,null,null,{"$f":"IFERROR(\n  IF(R323=\"Big&Tall\",\n      VLOOKUP(S323, 'Data order'!$AC$92:$AD$101, 2, FALSE),\n      IF(R323=\"Boordmaat\",\n          VLOOKUP(S323, 'Data order'!$AC$102:$AD$116, 2, FALSE),\n          VLOOKUP(S323, 'Data order'!$AC$2:$AD$91, 2, FALSE)\n      )\n  ),\n\"\")","v":""},null,null,null,null,"EUR",null,null,null,{"$error":"#DIV/0!"},0,0,null,"","","","","","","","","","",null,null,null,null,null,null,null,null,null,null,null,null,null,null,null,null,null,"ZWO"]
[null,null,null,null,null,{"$f":"VLOOKUP(G324,'Data order'!Z:AA,2,0)","v":{"$error":"#N/A"}},null,null,null,null,null,null,null,null,{"$f":"VLOOKUP(N324,Tabel10[[korte omschrijving]:[MCC3_CODE]],2,0)","v":{"$error":"#N/A"}},{"$f":"VLOOKUP(N324,'Data order'!M:O,3,0)","v":{"$error":"#N/A"}},null,null,null,{"$f":"IFERROR(\n  IF(R324=\"Big&Tall\",\n      VLOOKUP(S324, 'Data order'!$AC$92:$AD$101, 2, FALSE),\n      IF(R324=\"Boordmaat\",\n          VLOOKUP(S324, 'Data order'!$AC$102:$AD$116, 2, FALSE),\n          VLOOKUP(S324, 'Data order'!$AC$2:$AD$91, 2, FALSE)\n      )\n  ),\n\"\")","v":""},null,{"$f":"SUM(U324:U329)","v":0},null,null,"EUR",null,null,null,{"$error":"#DIV/0!"},0,0,null,"","","","","","","","","","",null,null,null,null,null,null,null,null,null,null,null,null,null,null,null,null,null,"ZWO"]
[null,null,null,null,null,{"$f":"VLOOKUP(G325,'Data order'!Z:AA,2,0)","v":{"$error":"#N/A"}},null,null,null,null,null,null,null,null,{"$f":"VLOOKUP(N325,Tabel10[[korte omschrijving]:[MCC3_CODE]],2,0)","v":{"$error":"#N/A"}},{"$f":"VLOOKUP(N325,'Data order'!M:O,3,0)","v":{"$error":"#N/A"}},null,null,null,{"$f":"IFERROR(\n  IF(R325=\"Big&Tall\",\n      VLOOKUP(S325, 'Data order'!$AC$92:$AD$101, 2, FALSE),\n      IF(R325=\"Boordmaat\",\n          VLOOKUP(S325, 'Data order'!$AC$102:$AD$116, 2, FALSE),\n          VLOOKUP(S325, 'Data order'!$AC$2:$AD$91, 2, FALSE)\n      )\n  ),\n\"\")","v":""},null,null,null,null,"EUR",null,null,null,{"$error":"#DIV/0!"},0,0,null,"","","","","","","","","","",null,null,null,null,null,null,null,null,null,null,null,null,null,null,null,null,null,"ZWO"]
[null,null,null,null,null,{"$f":"VLOOKUP(G326,'Data order'!Z:AA,2,0)","v":{"$error":"#N/A"}},null,null,null,null,null,null,null,null,{"$f":"VLOOKUP(N326,Tabel10[[korte omschrijving]:[MCC3_CODE]],2,0)","v":{"$error":"#N/A"}},{"$f":"VLOOKUP(N326,'Data order'!M:O,3,0)","v":{"$error":"#N/A"}},null,null,null,{"$f":"IFERROR(\n  IF(R326=\"Big&Tall\",\n      VLOOKUP(S326, 'Data order'!$AC$92:$AD$101, 2, FALSE),\n      IF(R326=\"Boordmaat\",\n          VLOOKUP(S326, 'Data order'!$AC$102:$AD$116, 2, FALSE),\n          VLOOKUP(S326, 'Data order'!$AC$2:$AD$91, 2, FALSE)\n      )\n  ),\n\"\")","v":""},null,null,null,null,"EUR",null,null,null,{"$error":"#DIV/0!"},0,0,null,"","","","","","","","","","",null,null,null,null,null,null,null,null,null,null,null,null,null,null,null,null,null,"ZWO"]
[null,null,null,null,null,{"$f":"VLOOKUP(G327,'Data order'!Z:AA,2,0)","v":{"$error":"#N/A"}},null,null,null,null,null,null,null,null,{"$f":"VLOOKUP(N327,Tabel10[[korte omschrijving]:[MCC3_CODE]],2,0)","v":{"$error":"#N/A"}},{"$f":"VLOOKUP(N327,'Data order'!M:O,3,0)","v":{"$error":"#N/A"}},null,null,null,{"$f":"IFERROR(\n  IF(R327=\"Big&Tall\",\n      VLOOKUP(S327, 'Data order'!$AC$92:$AD$101, 2, FALSE),\n      IF(R327=\"Boordmaat\",\n          VLOOKUP(S327, 'Data order'!$AC$102:$AD$116, 2, FALSE),\n          VLOOKUP(S327, 'Data order'!$AC$2:$AD$91, 2, FALSE)\n      )\n  ),\n\"\")","v":""},null,null,null,null,"EUR",null,null,null,{"$f":"AB327/Z327","v":{"$error":"#DIV/0!"}},{"$f":"U327*Z327","v":0},0,null,{"$f":"IF(AF327 <> \"\",\n    IF(ISNUMBER(VALUE(LEFT(AF327, FIND(\"%\", AF327)-1))),\n        VALUE(LEFT(AF327, FIND(\"%\", AF327)-1)),\n        \"Invalid format\"),\n    \"\")","v":""},{"$f":"IF(AF327 <> \"\",\n    IF(ISNUMBER(VALUE(LEFT(AF327, FIND(\"%\", AF327)-1))) * ISNUMBER(FIND(\"%\", AF327 & \"wol\")) > 0,\n        TRIM(MID(AF327, FIND(\"%\", AF327)+1, FIND(\"/\", AF327 & \"/\")-FIND(\"%\", AF327)-1)),\n        \"Invalid format\"),\n    \"\")","v":""},{"$f":"IF(AF327 <> \"\",\n    IF(ISNUMBER(VALUE(MID(AF327, FIND(\"/\", AF327) + 1, FIND(\"%\", AF327, FIND(\"/\", AF327)) - FIND(\"/\", AF327) - 1))),\n        VALUE(MID(AF327, FIND(\"/\", AF327) + 1, FIND(\"%\", AF327, FIND(\"/\", AF327)) - FIND(\"/\", AF327) - 1)),\n        \"\"),\n    \"\")","v":""},{"$f":"IF(AF327 <> \"\",\n    IFERROR(TRIM(MID(AF327, FIND(\"%\", AF327, FIND(\"/\", AF327)+1)+2,\n        IFERROR(FIND(\"/\", AF327 & \"/\", FIND(\"/\", AF327)+1)-FIND(\"%\", AF327, FIND(\"/\", AF327)+1)-2, LEN(AF327)-FIND(\"%\", AF327, FIND(\"/\", AF327)+1)-1))),\n        \"\"),\n    \"\")","v":""},{"$f":"IF(AF327 <> \"\",\n    IF(ISNUMBER(VALUE(MID(AF327, FIND(\"/\", AF327, FIND(\"/\", AF327)+1) + 1, FIND(\"%\", AF327, FIND(\"/\", AF327, FIND(\"/\", AF327)+1)) - FIND(\"/\", AF327, FIND(\"/\", AF327)+1) - 1))),\n        VALUE(MID(AF327, FIND(\"/\", AF327, FIND(\"/\", AF327)+1) + 1, FIND(\"%\", AF327, FIND(\"/\", AF327, FIND(\"/\", AF327)+1)) - FIND(\"/\", AF327, FIND(\"/\", AF327)+1) - 1)),\n        \"\"),\n    \"\")","v":""},{"$f":"IF(AF327 <> \"\",\n    IFERROR(\n        TRIM(MID(AF327,\n            FIND(\"%\", AF327, FIND(\"%\", AF327, FIND(\"%\", AF327)+1)+1)+1,\n            FIND(\"/\", AF327 & \"/\", FIND(\"%\", AF327, FIND(\"%\", AF327, FIND(\"%\", AF327)+1)+1))-FIND(\"%\", AF327, FIND(\"%\", AF327, FIND(\"%\", AF327)+1)+1)-1)\n        ),\n        \"\"\n    ),\n    \"\"\n)","v":""},{"$f":"IF(AF327 <> \"\",\n    IF(ISNUMBER(VALUE(MID(AF327, FIND(\"/\", AF327, FIND(\"/\", AF327, FIND(\"/\", AF327)+1)+1) + 1, FIND(\"%\", AF327, FIND(\"/\", AF327, FIND(\"/\", AF327, FIND(\"/\", AF327)+1)+1)) - FIND(\"/\", AF327, FIND(\"/\", AF327, FIND(\"/\", AF327)+1)+1) - 1))),\n        VALUE(MID(AF327, FIND(\"/\", AF327, FIND(\"/\", AF327, FIND(\"/\", AF327)+1)+1) + 1, FIND(\"%\", AF327, FIND(\"/\", AF327, FIND(\"/\", AF327, FIND(\"/\", AF327)+1)+1)) - FIND(\"/\", AF327, FIND(\"/\", AF327, FIND(\"/\", AF327)+1)+1) - 1)),\n        \"\"),\n    \"\")","v":""},{"$f":"IF(AF327 <> \"\",\n    IFERROR(TRIM(MID(AF327, FIND(\"%\", AF327, FIND(\"/\", AF327, FIND(\"/\", AF327, FIND(\"/\", AF327)+1)+1)+1)+2,\n        IFERROR(FIND(\"/\", AF327, FIND(\"/\", AF327, FIND(\"/\", AF327, FIND(\"/\", AF327)+1)+1)+1)-FIND(\"%\", AF327, FIND(\"/\", AF327, FIND(\"/\", AF327, FIND(\"/\", AF327)+1)+1)+1)-2, LEN(AF327)-FIND(\"%\", AF327, FIND(\"/\", AF327, FIND(\"/\", AF327, FIND(\"/\", AF327)+1)+1)+1)-1))),\n        \"\"),\n    \"\")","v":""},{"$f":"IF(AF327 <> \"\",\n    IF(ISNUMBER(VALUE(MID(AF327, FIND(\"/\", AF327, FIND(\"/\", AF327, FIND(\"/\", AF327, FIND(\"/\", AF327)+1)+1)+1) + 1, FIND(\"%\", AF327, FIND(\"/\", AF327, FIND(\"/\", AF327, FIND(\"/\", AF327, FIND(\"/\", AF327)+1)+1)+1)) - FIND(\"/\", AF327, FIND(\"/\", AF327, FIND(\"/\", AF327, FIND(\"/\", AF327)+1)+1)+1) - 1))),\n        VALUE(MID(AF327, FIND(\"/\", AF327, FIND(\"/\", AF327, FIND(\"/\", AF327, FIND(\"/\", AF327)+1)+1)+1) + 1, FIND(\"%\", AF327, FIND(\"/\", AF327, FIND(\"/\", AF327, FIND(\"/\", AF327, FIND(\"/\", AF327)+1)+1)+1)) - FIND(\"/\", AF327, FIND(\"/\", AF327, FIND(\"/\", AF327, FIND(\"/\", AF327)+1)+1)+1) - 1)),\n        \"\"),\n    \"\")","v":""},{"$f":"IF(AF327 = \"\", \"\",\n    IFERROR(TRIM(\n        MID(\n            AF327,\n            FIND(\"%\", AF327, FIND(\"/\", AF327, FIND(\"/\", AF327, FIND(\"/\", AF327, FIND(\"/\", AF327)+1)+1)+1)+1) + 1,\n            FIND(\"/\", AF327 & \"/\", FIND(\"%\", AF327, FIND(\"/\", AF327, FIND(\"/\", AF327, FIND(\"/\", AF327, FIND(\"/\", AF327)+1)+1)+1)+1)) -\n            FIND(\"%\", AF327, FIND(\"/\", AF327, FIND(\"/\", AF327, FIND(\"/\", AF327, FIND(\"/\", AF327)+1)+1)+1)+1) - 1\n        )\n    ),\n    \"\")\n)","v":""},null,null,null,null,null,null,null,null,null,null,null,null,null,null,null,null,null,"ZWO"]
[null,null,null,null,null,{"$f":"VLOOKUP(G328,'Data order'!Z:AA,2,0)","v":{"$error":"#N/A"}},null,null,null,null,null,null,null,null,{"$f":"VLOOKUP(N328,Tabel10[[korte omschrijving]:[MCC3_CODE]],2,0)","v":{"$error":"#N/A"}},{"$f":"VLOOKUP(N328,'Data order'!M:O,3,0)","v":{"$error":"#N/A"}},null,null,null,{"$f":"IFERROR(\n  IF(R328=\"Big&Tall\",\n      VLOOKUP(S328, 'Data order'!$AC$92:$AD$101, 2, FALSE),\n      IF(R328=\"Boordmaat\",\n          VLOOKUP(S328, 'Data order'!$AC$102:$AD$116, 2, FALSE),\n          VLOOKUP(S328, 'Data order'!$AC$2:$AD$91, 2, FALSE)\n      )\n  ),\n\"\")","v":""},null,null,null,null,"EUR",null,null,null,{"$error":"#DIV/0!"},0,{"$f":"U328*AB328","v":0},null,"","","","","","","","","","",null,null,null,null,null,null,null,null,null,null,null,null,null,null,null,null,null,"ZWO"]
[null,null,null,null,null,{"$f":"VLOOKUP(G329,'Data order'!Z:AA,2,0)","v":{"$error":"#N/A"}},null,null,null,null,null,null,null,null,{"$f":"VLOOKUP(N329,Tabel10[[korte omschrijving]:[MCC3_CODE]],2,0)","v":{"$error":"#N/A"}},{"$f":"VLOOKUP(N329,'Data order'!M:O,3,0)","v":{"$error":"#N/A"}},null,null,null,{"$f":"IFERROR(\n  IF(R329=\"Big&Tall\",\n      VLOOKUP(S329, 'Data order'!$AC$92:$AD$101, 2, FALSE),\n      IF(R329=\"Boordmaat\",\n          VLOOKUP(S329, 'Data order'!$AC$102:$AD$116, 2, FALSE),\n          VLOOKUP(S329, 'Data order'!$AC$2:$AD$91, 2, FALSE)\n      )\n  ),\n\"\")","v":""},null,null,null,null,"EUR",null,null,null,{"$error":"#DIV/0!"},0,0,null,"","","","","","","","","","",null,null,null,null,null,null,null,null,null,null,null,null,null,null,null,null,null,"ZWO"]
[null,null,null,null,null,{"$f":"VLOOKUP(G330,'Data order'!Z:AA,2,0)","v":{"$error":"#N/A"}},null,null,null,null,null,null,null,null,{"$f":"VLOOKUP(N330,Tabel10[[korte omschrijving]:[MCC3_CODE]],2,0)","v":{"$error":"#N/A"}},{"$f":"VLOOKUP(N330,'Data order'!M:O,3,0)","v":{"$error":"#N/A"}},null,null,null,{"$f":"IFERROR(\n  IF(R330=\"Big&Tall\",\n      VLOOKUP(S330, 'Data order'!$AC$92:$AD$101, 2, FALSE),\n      IF(R330=\"Boordmaat\",\n          VLOOKUP(S330, 'Data order'!$AC$102:$AD$116, 2, FALSE),\n          VLOOKUP(S330, 'Data order'!$AC$2:$AD$91, 2, FALSE)\n      )\n  ),\n\"\")","v":""},null,{"$f":"SUM(U330:U335)","v":0},null,null,"EUR",null,null,null,{"$error":"#DIV/0!"},0,0,null,"","","","","","","","","","",null,null,null,null,null,null,null,null,null,null,null,null,null,null,null,null,null,"ZWO"]
[null,null,null,null,null,{"$f":"VLOOKUP(G331,'Data order'!Z:AA,2,0)","v":{"$error":"#N/A"}},null,null,null,null,null,null,null,null,{"$f":"VLOOKUP(N331,Tabel10[[korte omschrijving]:[MCC3_CODE]],2,0)","v":{"$error":"#N/A"}},{"$f":"VLOOKUP(N331,'Data order'!M:O,3,0)","v":{"$error":"#N/A"}},null,null,null,{"$f":"IFERROR(\n  IF(R331=\"Big&Tall\",\n      VLOOKUP(S331, 'Data order'!$AC$92:$AD$101, 2, FALSE),\n      IF(R331=\"Boordmaat\",\n          VLOOKUP(S331, 'Data order'!$AC$102:$AD$116, 2, FALSE),\n          VLOOKUP(S331, 'Data order'!$AC$2:$AD$91, 2, FALSE)\n      )\n  ),\n\"\")","v":""},null,null,null,null,"EUR",null,null,null,{"$error":"#DIV/0!"},0,0,null,"","","","","","","","","","",null,null,null,null,null,null,null,null,null,null,null,null,null,null,null,null,null,"ZWO"]
[null,null,null,null,null,{"$f":"VLOOKUP(G332,'Data order'!Z:AA,2,0)","v":{"$error":"#N/A"}},null,null,null,null,null,null,null,null,{"$f":"VLOOKUP(N332,Tabel10[[korte omschrijving]:[MCC3_CODE]],2,0)","v":{"$error":"#N/A"}},{"$f":"VLOOKUP(N332,'Data order'!M:O,3,0)","v":{"$error":"#N/A"}},null,null,null,{"$f":"IFERROR(\n  IF(R332=\"Big&Tall\",\n      VLOOKUP(S332, 'Data order'!$AC$92:$AD$101, 2, FALSE),\n      IF(R332=\"Boordmaat\",\n          VLOOKUP(S332, 'Data order'!$AC$102:$AD$116, 2, FALSE),\n          VLOOKUP(S332, 'Data order'!$AC$2:$AD$91, 2, FALSE)\n      )\n  ),\n\"\")","v":""},null,null,null,null,"EUR",null,null,null,{"$error":"#DIV/0!"},0,0,null,"","","","","","","","","","",null,null,null,null,null,null,null,null,null,null,null,null,null,null,null,null,null,"ZWO"]
[null,null,null,null,null,{"$f":"VLOOKUP(G333,'Data order'!Z:AA,2,0)","v":{"$error":"#N/A"}},null,null,null,null,null,null,null,null,{"$f":"VLOOKUP(N333,Tabel10[[korte omschrijving]:[MCC3_CODE]],2,0)","v":{"$error":"#N/A"}},{"$f":"VLOOKUP(N333,'Data order'!M:O,3,0)","v":{"$error":"#N/A"}},null,null,null,{"$f":"IFERROR(\n  IF(R333=\"Big&Tall\",\n      VLOOKUP(S333, 'Data order'!$AC$92:$AD$101, 2, FALSE),\n      IF(R333=\"Boordmaat\",\n          VLOOKUP(S333, 'Data order'!$AC$102:$AD$116, 2, FALSE),\n          VLOOKUP(S333, 'Data order'!$AC$2:$AD$91, 2, FALSE)\n      )\n  ),\n\"\")","v":""},null,null,null,null,"EUR",null,null,null,{"$error":"#DIV/0!"},0,0,null,"","","","","","","","","","",null,null,null,null,null,null,null,null,null,null,null,null,null,null,null,null,null,"ZWO"]
[null,null,null,null,null,{"$f":"VLOOKUP(G334,'Data order'!Z:AA,2,0)","v":{"$error":"#N/A"}},null,null,null,null,null,null,null,null,{"$f":"VLOOKUP(N334,Tabel10[[korte omschrijving]:[MCC3_CODE]],2,0)","v":{"$error":"#N/A"}},{"$f":"VLOOKUP(N334,'Data order'!M:O,3,0)","v":{"$error":"#N/A"}},null,null,null,{"$f":"IFERROR(\n  IF(R334=\"Big&Tall\",\n      VLOOKUP(S334, 'Data order'!$AC$92:$AD$101, 2, FALSE),\n      IF(R334=\"Boordmaat\",\n          VLOOKUP(S334, 'Data order'!$AC$102:$AD$116, 2, FALSE),\n          VLOOKUP(S334, 'Data order'!$AC$2:$AD$91, 2, FALSE)\n      )\n  ),\n\"\")","v":""},null,null,null,null,"EUR",null,null,null,{"$error":"#DIV/0!"},0,0,null,"","","","","","","","","","",null,null,null,null,null,null,null,null,null,null,null,null,null,null,null,null,null,"ZWO"]
[null,null,null,null,null,{"$f":"VLOOKUP(G335,'Data order'!Z:AA,2,0)","v":{"$error":"#N/A"}},null,null,null,null,null,null,null,null,{"$f":"VLOOKUP(N335,Tabel10[[korte omschrijving]:[MCC3_CODE]],2,0)","v":{"$error":"#N/A"}},{"$f":"VLOOKUP(N335,'Data order'!M:O,3,0)","v":{"$error":"#N/A"}},null,null,null,{"$f":"IFERROR(\n  IF(R335=\"Big&Tall\",\n      VLOOKUP(S335, 'Data order'!$AC$92:$AD$101, 2, FALSE),\n      IF(R335=\"Boordmaat\",\n          VLOOKUP(S335, 'Data order'!$AC$102:$AD$116, 2, FALSE),\n          VLOOKUP(S335, 'Data order'!$AC$2:$AD$91, 2, FALSE)\n      )\n  ),\n\"\")","v":""},null,null,null,null,"EUR",null,null,null,{"$error":"#DIV/0!"},0,0,null,"","","","","","","","","","",null,null,null,null,null,null,null,null,null,null,null,null,null,null,null,null,null,"ZWO"]
[null,null,null,null,null,{"$f":"VLOOKUP(G336,'Data order'!Z:AA,2,0)","v":{"$error":"#N/A"}},null,null,null,null,null,null,null,null,{"$f":"VLOOKUP(N336,Tabel10[[korte omschrijving]:[MCC3_CODE]],2,0)","v":{"$error":"#N/A"}},{"$f":"VLOOKUP(N336,'Data order'!M:O,3,0)","v":{"$error":"#N/A"}},null,null,null,{"$f":"IFERROR(\n  IF(R336=\"Big&Tall\",\n      VLOOKUP(S336, 'Data order'!$AC$92:$AD$101, 2, FALSE),\n      IF(R336=\"Boordmaat\",\n          VLOOKUP(S336, 'Data order'!$AC$102:$AD$116, 2, FALSE),\n          VLOOKUP(S336, 'Data order'!$AC$2:$AD$91, 2, FALSE)\n      )\n  ),\n\"\")","v":""},null,{"$f":"SUM(U336:U341)","v":0},null,null,"EUR",null,null,null,{"$error":"#DIV/0!"},0,0,null,"","","","","","","","","","",null,null,null,null,null,null,null,null,null,null,null,null,null,null,null,null,null,"ZWO"]
[null,null,null,null,null,{"$f":"VLOOKUP(G337,'Data order'!Z:AA,2,0)","v":{"$error":"#N/A"}},null,null,null,null,null,null,null,null,{"$f":"VLOOKUP(N337,Tabel10[[korte omschrijving]:[MCC3_CODE]],2,0)","v":{"$error":"#N/A"}},{"$f":"VLOOKUP(N337,'Data order'!M:O,3,0)","v":{"$error":"#N/A"}},null,null,null,{"$f":"IFERROR(\n  IF(R337=\"Big&Tall\",\n      VLOOKUP(S337, 'Data order'!$AC$92:$AD$101, 2, FALSE),\n      IF(R337=\"Boordmaat\",\n          VLOOKUP(S337, 'Data order'!$AC$102:$AD$116, 2, FALSE),\n          VLOOKUP(S337, 'Data order'!$AC$2:$AD$91, 2, FALSE)\n      )\n  ),\n\"\")","v":""},null,null,null,null,"EUR",null,null,null,{"$error":"#DIV/0!"},0,0,null,"","","","","","","","","","",null,null,null,null,null,null,null,null,null,null,null,null,null,null,null,null,null,"ZWO"]
[null,null,null,null,null,{"$f":"VLOOKUP(G338,'Data order'!Z:AA,2,0)","v":{"$error":"#N/A"}},null,null,null,null,null,null,null,null,{"$f":"VLOOKUP(N338,Tabel10[[korte omschrijving]:[MCC3_CODE]],2,0)","v":{"$error":"#N/A"}},{"$f":"VLOOKUP(N338,'Data order'!M:O,3,0)","v":{"$error":"#N/A"}},null,null,null,{"$f":"IFERROR(\n  IF(R338=\"Big&Tall\",\n      VLOOKUP(S338, 'Data order'!$AC$92:$AD$101, 2, FALSE),\n      IF(R338=\"Boordmaat\",\n          VLOOKUP(S338, 'Data order'!$AC$102:$AD$116, 2, FALSE),\n          VLOOKUP(S338, 'Data order'!$AC$2:$AD$91, 2, FALSE)\n      )\n  ),\n\"\")","v":""},null,null,null,null,"EUR",null,null,null,{"$error":"#DIV/0!"},0,0,null,"","","","","","","","","","",null,null,null,null,null,null,null,null,null,null,null,null,null,null,null,null,null,"ZWO"]
[null,null,null,null,null,{"$f":"VLOOKUP(G339,'Data order'!Z:AA,2,0)","v":{"$error":"#N/A"}},null,null,null,null,null,null,null,null,{"$f":"VLOOKUP(N339,Tabel10[[korte omschrijving]:[MCC3_CODE]],2,0)","v":{"$error":"#N/A"}},{"$f":"VLOOKUP(N339,'Data order'!M:O,3,0)","v":{"$error":"#N/A"}},null,null,null,{"$f":"IFERROR(\n  IF(R339=\"Big&Tall\",\n      VLOOKUP(S339, 'Data order'!$AC$92:$AD$101, 2, FALSE),\n      IF(R339=\"Boordmaat\",\n          VLOOKUP(S339, 'Data order'!$AC$102:$AD$116, 2, FALSE),\n          VLOOKUP(S339, 'Data order'!$AC$2:$AD$91, 2, FALSE)\n      )\n  ),\n\"\")","v":""},null,null,null,null,"EUR",null,null,null,{"$error":"#DIV/0!"},0,0,null,"","","","","","","","","","",null,null,null,null,null,null,null,null,null,null,null,null,null,null,null,null,null,"ZWO"]
[null,null,null,null,null,{"$f":"VLOOKUP(G340,'Data order'!Z:AA,2,0)","v":{"$error":"#N/A"}},null,null,null,null,null,null,null,null,{"$f":"VLOOKUP(N340,Tabel10[[korte omschrijving]:[MCC3_CODE]],2,0)","v":{"$error":"#N/A"}},{"$f":"VLOOKUP(N340,'Data order'!M:O,3,0)","v":{"$error":"#N/A"}},null,null,null,{"$f":"IFERROR(\n  IF(R340=\"Big&Tall\",\n      VLOOKUP(S340, 'Data order'!$AC$92:$AD$101, 2, FALSE),\n      IF(R340=\"Boordmaat\",\n          VLOOKUP(S340, 'Data order'!$AC$102:$AD$116, 2, FALSE),\n          VLOOKUP(S340, 'Data order'!$AC$2:$AD$91, 2, FALSE)\n      )\n  ),\n\"\")","v":""},null,null,null,null,"EUR",null,null,null,{"$error":"#DIV/0!"},0,0,null,"","","","","","","","","","",null,null,null,null,null,null,null,null,null,null,null,null,null,null,null,null,null,"ZWO"]
[null,null,null,null,null,{"$f":"VLOOKUP(G341,'Data order'!Z:AA,2,0)","v":{"$error":"#N/A"}},null,null,null,null,null,null,null,null,{"$f":"VLOOKUP(N341,Tabel10[[korte omschrijving]:[MCC3_CODE]],2,0)","v":{"$error":"#N/A"}},{"$f":"VLOOKUP(N341,'Data order'!M:O,3,0)","v":{"$error":"#N/A"}},null,null,null,{"$f":"IFERROR(\n  IF(R341=\"Big&Tall\",\n      VLOOKUP(S341, 'Data order'!$AC$92:$AD$101, 2, FALSE),\n      IF(R341=\"Boordmaat\",\n          VLOOKUP(S341, 'Data order'!$AC$102:$AD$116, 2, FALSE),\n          VLOOKUP(S341, 'Data order'!$AC$2:$AD$91, 2, FALSE)\n      )\n  ),\n\"\")","v":""},null,null,null,null,"EUR",null,null,null,{"$error":"#DIV/0!"},0,0,null,"","","","","","","","","","",null,null,null,null,null,null,null,null,null,null,null,null,null,null,null,null,null,"ZWO"]
[null,null,null,null,null,{"$f":"VLOOKUP(G342,'Data order'!Z:AA,2,0)","v":{"$error":"#N/A"}},null,null,null,null,null,null,null,null,{"$f":"VLOOKUP(N342,Tabel10[[korte omschrijving]:[MCC3_CODE]],2,0)","v":{"$error":"#N/A"}},{"$f":"VLOOKUP(N342,'Data order'!M:O,3,0)","v":{"$error":"#N/A"}},null,null,null,{"$f":"IFERROR(\n  IF(R342=\"Big&Tall\",\n      VLOOKUP(S342, 'Data order'!$AC$92:$AD$101, 2, FALSE),\n      IF(R342=\"Boordmaat\",\n          VLOOKUP(S342, 'Data order'!$AC$102:$AD$116, 2, FALSE),\n          VLOOKUP(S342, 'Data order'!$AC$2:$AD$91, 2, FALSE)\n      )\n  ),\n\"\")","v":""},null,{"$f":"SUM(U342:U347)","v":0},null,null,"EUR",null,null,null,{"$error":"#DIV/0!"},0,0,null,"","","","","","","","","","",null,null,null,null,null,null,null,null,null,null,null,null,null,null,null,null,null,"ZWO"]
[null,null,null,null,null,{"$f":"VLOOKUP(G343,'Data order'!Z:AA,2,0)","v":{"$error":"#N/A"}},null,null,null,null,null,null,null,null,{"$f":"VLOOKUP(N343,Tabel10[[korte omschrijving]:[MCC3_CODE]],2,0)","v":{"$error":"#N/A"}},{"$f":"VLOOKUP(N343,'Data order'!M:O,3,0)","v":{"$error":"#N/A"}},null,null,null,{"$f":"IFERROR(\n  IF(R343=\"Big&Tall\",\n      VLOOKUP(S343, 'Data order'!$AC$92:$AD$101, 2, FALSE),\n      IF(R343=\"Boordmaat\",\n          VLOOKUP(S343, 'Data order'!$AC$102:$AD$116, 2, FALSE),\n          VLOOKUP(S343, 'Data order'!$AC$2:$AD$91, 2, FALSE)\n      )\n  ),\n\"\")","v":""},null,null,null,null,"EUR",null,null,null,{"$error":"#DIV/0!"},0,0,null,"","","","","","","","","","",null,null,null,null,null,null,null,null,null,null,null,null,null,null,null,null,null,"ZWO"]
[null,null,null,null,null,{"$f":"VLOOKUP(G344,'Data order'!Z:AA,2,0)","v":{"$error":"#N/A"}},null,null,null,null,null,null,null,null,{"$f":"VLOOKUP(N344,Tabel10[[korte omschrijving]:[MCC3_CODE]],2,0)","v":{"$error":"#N/A"}},{"$f":"VLOOKUP(N344,'Data order'!M:O,3,0)","v":{"$error":"#N/A"}},null,null,null,{"$f":"IFERROR(\n  IF(R344=\"Big&Tall\",\n      VLOOKUP(S344, 'Data order'!$AC$92:$AD$101, 2, FALSE),\n      IF(R344=\"Boordmaat\",\n          VLOOKUP(S344, 'Data order'!$AC$102:$AD$116, 2, FALSE),\n          VLOOKUP(S344, 'Data order'!$AC$2:$AD$91, 2, FALSE)\n      )\n  ),\n\"\")","v":""},null,null,null,null,"EUR",null,null,null,{"$error":"#DIV/0!"},0,0,null,"","","","","","","","","","",null,null,null,null,null,null,null,null,null,null,null,null,null,null,null,null,null,"ZWO"]
[null,null,null,null,null,{"$f":"VLOOKUP(G345,'Data order'!Z:AA,2,0)","v":{"$error":"#N/A"}},null,null,null,null,null,null,null,null,{"$f":"VLOOKUP(N345,Tabel10[[korte omschrijving]:[MCC3_CODE]],2,0)","v":{"$error":"#N/A"}},{"$f":"VLOOKUP(N345,'Data order'!M:O,3,0)","v":{"$error":"#N/A"}},null,null,null,{"$f":"IFERROR(\n  IF(R345=\"Big&Tall\",\n      VLOOKUP(S345, 'Data order'!$AC$92:$AD$101, 2, FALSE),\n      IF(R345=\"Boordmaat\",\n          VLOOKUP(S345, 'Data order'!$AC$102:$AD$116, 2, FALSE),\n          VLOOKUP(S345, 'Data order'!$AC$2:$AD$91, 2, FALSE)\n      )\n  ),\n\"\")","v":""},null,null,null,null,"EUR",null,null,null,{"$error":"#DIV/0!"},0,0,null,"","","","","","","","","","",null,null,null,null,null,null,null,null,null,null,null,null,null,null,null,null,null,"ZWO"]
[null,null,null,null,null,{"$f":"VLOOKUP(G346,'Data order'!Z:AA,2,0)","v":{"$error":"#N/A"}},null,null,null,null,null,null,null,null,{"$f":"VLOOKUP(N346,Tabel10[[korte omschrijving]:[MCC3_CODE]],2,0)","v":{"$error":"#N/A"}},{"$f":"VLOOKUP(N346,'Data order'!M:O,3,0)","v":{"$error":"#N/A"}},null,null,null,{"$f":"IFERROR(\n  IF(R346=\"Big&Tall\",\n      VLOOKUP(S346, 'Data order'!$AC$92:$AD$101, 2, FALSE),\n      IF(R346=\"Boordmaat\",\n          VLOOKUP(S346, 'Data order'!$AC$102:$AD$116, 2, FALSE),\n          VLOOKUP(S346, 'Data order'!$AC$2:$AD$91, 2, FALSE)\n      )\n  ),\n\"\")","v":""},null,null,null,null,"EUR",null,null,null,{"$error":"#DIV/0!"},0,0,null,"","","","","","","","","","",null,null,null,null,null,null,null,null,null,null,null,null,null,null,null,null,null,"ZWO"]
[null,null,null,null,null,{"$f":"VLOOKUP(G347,'Data order'!Z:AA,2,0)","v":{"$error":"#N/A"}},null,null,null,null,null,null,null,null,{"$f":"VLOOKUP(N347,Tabel10[[korte omschrijving]:[MCC3_CODE]],2,0)","v":{"$error":"#N/A"}},{"$f":"VLOOKUP(N347,'Data order'!M:O,3,0)","v":{"$error":"#N/A"}},null,null,null,{"$f":"IFERROR(\n  IF(R347=\"Big&Tall\",\n      VLOOKUP(S347, 'Data order'!$AC$92:$AD$101, 2, FALSE),\n      IF(R347=\"Boordmaat\",\n          VLOOKUP(S347, 'Data order'!$AC$102:$AD$116, 2, FALSE),\n          VLOOKUP(S347, 'Data order'!$AC$2:$AD$91, 2, FALSE)\n      )\n  ),\n\"\")","v":""},null,null,null,null,"EUR",null,null,null,{"$error":"#DIV/0!"},0,0,null,"","","","","","","","","","",null,null,null,null,null,null,null,null,null,null,null,null,null,null,null,null,null,"ZWO"]
[null,null,null,null,null,{"$f":"VLOOKUP(G348,'Data order'!Z:AA,2,0)","v":{"$error":"#N/A"}},null,null,null,null,null,null,null,null,{"$f":"VLOOKUP(N348,Tabel10[[korte omschrijving]:[MCC3_CODE]],2,0)","v":{"$error":"#N/A"}},{"$f":"VLOOKUP(N348,'Data order'!M:O,3,0)","v":{"$error":"#N/A"}},null,null,null,{"$f":"IFERROR(\n  IF(R348=\"Big&Tall\",\n      VLOOKUP(S348, 'Data order'!$AC$92:$AD$101, 2, FALSE),\n      IF(R348=\"Boordmaat\",\n          VLOOKUP(S348, 'Data order'!$AC$102:$AD$116, 2, FALSE),\n          VLOOKUP(S348, 'Data order'!$AC$2:$AD$91, 2, FALSE)\n      )\n  ),\n\"\")","v":""},null,{"$f":"SUM(U348:U353)","v":0},null,null,"EUR",null,null,null,{"$error":"#DIV/0!"},0,0,null,"","","","","","","","","","",null,null,null,null,null,null,null,null,null,null,null,null,null,null,null,null,null,"ZWO"]
[null,null,null,null,null,{"$f":"VLOOKUP(G349,'Data order'!Z:AA,2,0)","v":{"$error":"#N/A"}},null,null,null,null,null,null,null,null,{"$f":"VLOOKUP(N349,Tabel10[[korte omschrijving]:[MCC3_CODE]],2,0)","v":{"$error":"#N/A"}},{"$f":"VLOOKUP(N349,'Data order'!M:O,3,0)","v":{"$error":"#N/A"}},null,null,null,{"$f":"IFERROR(\n  IF(R349=\"Big&Tall\",\n      VLOOKUP(S349, 'Data order'!$AC$92:$AD$101, 2, FALSE),\n      IF(R349=\"Boordmaat\",\n          VLOOKUP(S349, 'Data order'!$AC$102:$AD$116, 2, FALSE),\n          VLOOKUP(S349, 'Data order'!$AC$2:$AD$91, 2, FALSE)\n      )\n  ),\n\"\")","v":""},null,null,null,null,"EUR",null,null,null,{"$error":"#DIV/0!"},0,0,null,"","","","","","","","","","",null,null,null,null,null,null,null,null,null,null,null,null,null,null,null,null,null,"ZWO"]
[null,null,null,null,null,{"$f":"VLOOKUP(G350,'Data order'!Z:AA,2,0)","v":{"$error":"#N/A"}},null,null,null,null,null,null,null,null,{"$f":"VLOOKUP(N350,Tabel10[[korte omschrijving]:[MCC3_CODE]],2,0)","v":{"$error":"#N/A"}},{"$f":"VLOOKUP(N350,'Data order'!M:O,3,0)","v":{"$error":"#N/A"}},null,null,null,{"$f":"IFERROR(\n  IF(R350=\"Big&Tall\",\n      VLOOKUP(S350, 'Data order'!$AC$92:$AD$101, 2, FALSE),\n      IF(R350=\"Boordmaat\",\n          VLOOKUP(S350, 'Data order'!$AC$102:$AD$116, 2, FALSE),\n          VLOOKUP(S350, 'Data order'!$AC$2:$AD$91, 2, FALSE)\n      )\n  ),\n\"\")","v":""},null,null,null,null,"EUR",null,null,null,{"$error":"#DIV/0!"},0,0,null,"","","","","","","","","","",null,null,null,null,null,null,null,null,null,null,null,null,null,null,null,null,null,"ZWO"]
[null,null,null,null,null,{"$f":"VLOOKUP(G351,'Data order'!Z:AA,2,0)","v":{"$error":"#N/A"}},null,null,null,null,null,null,null,null,{"$f":"VLOOKUP(N351,Tabel10[[korte omschrijving]:[MCC3_CODE]],2,0)","v":{"$error":"#N/A"}},{"$f":"VLOOKUP(N351,'Data order'!M:O,3,0)","v":{"$error":"#N/A"}},null,null,null,{"$f":"IFERROR(\n  IF(R351=\"Big&Tall\",\n      VLOOKUP(S351, 'Data order'!$AC$92:$AD$101, 2, FALSE),\n      IF(R351=\"Boordmaat\",\n          VLOOKUP(S351, 'Data order'!$AC$102:$AD$116, 2, FALSE),\n          VLOOKUP(S351, 'Data order'!$AC$2:$AD$91, 2, FALSE)\n      )\n  ),\n\"\")","v":""},null,null,null,null,"EUR",null,null,null,{"$error":"#DIV/0!"},0,0,null,"","","","","","","","","","",null,null,null,null,null,null,null,null,null,null,null,null,null,null,null,null,null,"ZWO"]
[null,null,null,null,null,{"$f":"VLOOKUP(G352,'Data order'!Z:AA,2,0)","v":{"$error":"#N/A"}},null,null,null,null,null,null,null,null,{"$f":"VLOOKUP(N352,Tabel10[[korte omschrijving]:[MCC3_CODE]],2,0)","v":{"$error":"#N/A"}},{"$f":"VLOOKUP(N352,'Data order'!M:O,3,0)","v":{"$error":"#N/A"}},null,null,null,{"$f":"IFERROR(\n  IF(R352=\"Big&Tall\",\n      VLOOKUP(S352, 'Data order'!$AC$92:$AD$101, 2, FALSE),\n      IF(R352=\"Boordmaat\",\n          VLOOKUP(S352, 'Data order'!$AC$102:$AD$116, 2, FALSE),\n          VLOOKUP(S352, 'Data order'!$AC$2:$AD$91, 2, FALSE)\n      )\n  ),\n\"\")","v":""},null,null,null,null,"EUR",null,null,null,{"$error":"#DIV/0!"},0,0,null,"","","","","","","","","","",null,null,null,null,null,null,null,null,null,null,null,null,null,null,null,null,null,"ZWO"]
[null,null,null,null,null,{"$f":"VLOOKUP(G353,'Data order'!Z:AA,2,0)","v":{"$error":"#N/A"}},null,null,null,null,null,null,null,null,{"$f":"VLOOKUP(N353,Tabel10[[korte omschrijving]:[MCC3_CODE]],2,0)","v":{"$error":"#N/A"}},{"$f":"VLOOKUP(N353,'Data order'!M:O,3,0)","v":{"$error":"#N/A"}},null,null,null,{"$f":"IFERROR(\n  IF(R353=\"Big&Tall\",\n      VLOOKUP(S353, 'Data order'!$AC$92:$AD$101, 2, FALSE),\n      IF(R353=\"Boordmaat\",\n          VLOOKUP(S353, 'Data order'!$AC$102:$AD$116, 2, FALSE),\n          VLOOKUP(S353, 'Data order'!$AC$2:$AD$91, 2, FALSE)\n      )\n  ),\n\"\")","v":""},null,null,null,null,"EUR",null,null,null,{"$error":"#DIV/0!"},0,0,null,"","","","","","","","","","",null,null,null,null,null,null,null,null,null,null,null,null,null,null,null,null,null,"ZWO"]
[null,null,null,null,null,{"$f":"VLOOKUP(G354,'Data order'!Z:AA,2,0)","v":{"$error":"#N/A"}},null,null,null,null,null,null,null,null,{"$f":"VLOOKUP(N354,Tabel10[[korte omschrijving]:[MCC3_CODE]],2,0)","v":{"$error":"#N/A"}},{"$f":"VLOOKUP(N354,'Data order'!M:O,3,0)","v":{"$error":"#N/A"}},null,null,null,{"$f":"IFERROR(\n  IF(R354=\"Big&Tall\",\n      VLOOKUP(S354, 'Data order'!$AC$92:$AD$101, 2, FALSE),\n      IF(R354=\"Boordmaat\",\n          VLOOKUP(S354, 'Data order'!$AC$102:$AD$116, 2, FALSE),\n          VLOOKUP(S354, 'Data order'!$AC$2:$AD$91, 2, FALSE)\n      )\n  ),\n\"\")","v":""},null,{"$f":"SUM(U354:U359)","v":0},null,null,"EUR",null,null,null,{"$error":"#DIV/0!"},0,0,null,"","","","","","","","","","",null,null,null,null,null,null,null,null,null,null,null,null,null,null,null,null,null,"ZWO"]
[null,null,null,null,null,{"$f":"VLOOKUP(G355,'Data order'!Z:AA,2,0)","v":{"$error":"#N/A"}},null,null,null,null,null,null,null,null,{"$f":"VLOOKUP(N355,Tabel10[[korte omschrijving]:[MCC3_CODE]],2,0)","v":{"$error":"#N/A"}},{"$f":"VLOOKUP(N355,'Data order'!M:O,3,0)","v":{"$error":"#N/A"}},null,null,null,{"$f":"IFERROR(\n  IF(R355=\"Big&Tall\",\n      VLOOKUP(S355, 'Data order'!$AC$92:$AD$101, 2, FALSE),\n      IF(R355=\"Boordmaat\",\n          VLOOKUP(S355, 'Data order'!$AC$102:$AD$116, 2, FALSE),\n          VLOOKUP(S355, 'Data order'!$AC$2:$AD$91, 2, FALSE)\n      )\n  ),\n\"\")","v":""},null,null,null,null,"EUR",null,null,null,{"$error":"#DIV/0!"},0,0,null,"","","","","","","","","","",null,null,null,null,null,null,null,null,null,null,null,null,null,null,null,null,null,"ZWO"]
[null,null,null,null,null,{"$f":"VLOOKUP(G356,'Data order'!Z:AA,2,0)","v":{"$error":"#N/A"}},null,null,null,null,null,null,null,null,{"$f":"VLOOKUP(N356,Tabel10[[korte omschrijving]:[MCC3_CODE]],2,0)","v":{"$error":"#N/A"}},{"$f":"VLOOKUP(N356,'Data order'!M:O,3,0)","v":{"$error":"#N/A"}},null,null,null,{"$f":"IFERROR(\n  IF(R356=\"Big&Tall\",\n      VLOOKUP(S356, 'Data order'!$AC$92:$AD$101, 2, FALSE),\n      IF(R356=\"Boordmaat\",\n          VLOOKUP(S356, 'Data order'!$AC$102:$AD$116, 2, FALSE),\n          VLOOKUP(S356, 'Data order'!$AC$2:$AD$91, 2, FALSE)\n      )\n  ),\n\"\")","v":""},null,null,null,null,"EUR",null,null,null,{"$error":"#DIV/0!"},0,0,null,"","","","","","","","","","",null,null,null,null,null,null,null,null,null,null,null,null,null,null,null,null,null,"ZWO"]
[null,null,null,null,null,{"$f":"VLOOKUP(G357,'Data order'!Z:AA,2,0)","v":{"$error":"#N/A"}},null,null,null,null,null,null,null,null,{"$f":"VLOOKUP(N357,Tabel10[[korte omschrijving]:[MCC3_CODE]],2,0)","v":{"$error":"#N/A"}},{"$f":"VLOOKUP(N357,'Data order'!M:O,3,0)","v":{"$error":"#N/A"}},null,null,null,{"$f":"IFERROR(\n  IF(R357=\"Big&Tall\",\n      VLOOKUP(S357, 'Data order'!$AC$92:$AD$101, 2, FALSE),\n      IF(R357=\"Boordmaat\",\n          VLOOKUP(S357, 'Data order'!$AC$102:$AD$116, 2, FALSE),\n          VLOOKUP(S357, 'Data order'!$AC$2:$AD$91, 2, FALSE)\n      )\n  ),\n\"\")","v":""},null,null,null,null,"EUR",null,null,null,{"$error":"#DIV/0!"},0,0,null,"","","","","","","","","","",null,null,null,null,null,null,null,null,null,null,null,null,null,null,null,null,null,"ZWO"]
[null,null,null,null,null,{"$f":"VLOOKUP(G358,'Data order'!Z:AA,2,0)","v":{"$error":"#N/A"}},null,null,null,null,null,null,null,null,{"$f":"VLOOKUP(N358,Tabel10[[korte omschrijving]:[MCC3_CODE]],2,0)","v":{"$error":"#N/A"}},{"$f":"VLOOKUP(N358,'Data order'!M:O,3,0)","v":{"$error":"#N/A"}},null,null,null,{"$f":"IFERROR(\n  IF(R358=\"Big&Tall\",\n      VLOOKUP(S358, 'Data order'!$AC$92:$AD$101, 2, FALSE),\n      IF(R358=\"Boordmaat\",\n          VLOOKUP(S358, 'Data order'!$AC$102:$AD$116, 2, FALSE),\n          VLOOKUP(S358, 'Data order'!$AC$2:$AD$91, 2, FALSE)\n      )\n  ),\n\"\")","v":""},null,null,null,null,"EUR",null,null,null,{"$error":"#DIV/0!"},0,0,null,"","","","","","","","","","",null,null,null,null,null,null,null,null,null,null,null,null,null,null,null,null,null,"ZWO"]
[null,null,null,null,null,{"$f":"VLOOKUP(G359,'Data order'!Z:AA,2,0)","v":{"$error":"#N/A"}},null,null,null,null,null,null,null,null,{"$f":"VLOOKUP(N359,Tabel10[[korte omschrijving]:[MCC3_CODE]],2,0)","v":{"$error":"#N/A"}},{"$f":"VLOOKUP(N359,'Data order'!M:O,3,0)","v":{"$error":"#N/A"}},null,null,null,{"$f":"IFERROR(\n  IF(R359=\"Big&Tall\",\n      VLOOKUP(S359, 'Data order'!$AC$92:$AD$101, 2, FALSE),\n      IF(R359=\"Boordmaat\",\n          VLOOKUP(S359, 'Data order'!$AC$102:$AD$116, 2, FALSE),\n          VLOOKUP(S359, 'Data order'!$AC$2:$AD$91, 2, FALSE)\n      )\n  ),\n\"\")","v":""},null,null,null,null,"EUR",null,null,null,{"$error":"#DIV/0!"},0,0,null,"","","","","","","","","","",null,null,null,null,null,null,null,null,null,null,null,null,null,null,null,null,null,"ZWO"]
[null,null,null,null,null,{"$f":"VLOOKUP(G360,'Data order'!Z:AA,2,0)","v":{"$error":"#N/A"}},null,null,null,null,null,null,null,null,{"$f":"VLOOKUP(N360,Tabel10[[korte omschrijving]:[MCC3_CODE]],2,0)","v":{"$error":"#N/A"}},{"$f":"VLOOKUP(N360,'Data order'!M:O,3,0)","v":{"$error":"#N/A"}},null,null,null,{"$f":"IFERROR(\n  IF(R360=\"Big&Tall\",\n      VLOOKUP(S360, 'Data order'!$AC$92:$AD$101, 2, FALSE),\n      IF(R360=\"Boordmaat\",\n          VLOOKUP(S360, 'Data order'!$AC$102:$AD$116, 2, FALSE),\n          VLOOKUP(S360, 'Data order'!$AC$2:$AD$91, 2, FALSE)\n      )\n  ),\n\"\")","v":""},null,{"$f":"SUM(U360:U365)","v":0},null,null,"EUR",null,null,null,{"$error":"#DIV/0!"},0,0,null,"","","","","","","","","","",null,null,null,null,null,null,null,null,null,null,null,null,null,null,null,null,null,"ZWO"]
[null,null,null,null,null,{"$f":"VLOOKUP(G361,'Data order'!Z:AA,2,0)","v":{"$error":"#N/A"}},null,null,null,null,null,null,null,null,{"$f":"VLOOKUP(N361,Tabel10[[korte omschrijving]:[MCC3_CODE]],2,0)","v":{"$error":"#N/A"}},{"$f":"VLOOKUP(N361,'Data order'!M:O,3,0)","v":{"$error":"#N/A"}},null,null,null,{"$f":"IFERROR(\n  IF(R361=\"Big&Tall\",\n      VLOOKUP(S361, 'Data order'!$AC$92:$AD$101, 2, FALSE),\n      IF(R361=\"Boordmaat\",\n          VLOOKUP(S361, 'Data order'!$AC$102:$AD$116, 2, FALSE),\n          VLOOKUP(S361, 'Data order'!$AC$2:$AD$91, 2, FALSE)\n      )\n  ),\n\"\")","v":""},null,null,null,null,"EUR",null,null,null,{"$error":"#DIV/0!"},0,0,null,"","","","","","","","","","",null,null,null,null,null,null,null,null,null,null,null,null,null,null,null,null,null,"ZWO"]
[null,null,null,null,null,{"$f":"VLOOKUP(G362,'Data order'!Z:AA,2,0)","v":{"$error":"#N/A"}},null,null,null,null,null,null,null,null,{"$f":"VLOOKUP(N362,Tabel10[[korte omschrijving]:[MCC3_CODE]],2,0)","v":{"$error":"#N/A"}},{"$f":"VLOOKUP(N362,'Data order'!M:O,3,0)","v":{"$error":"#N/A"}},null,null,null,{"$f":"IFERROR(\n  IF(R362=\"Big&Tall\",\n      VLOOKUP(S362, 'Data order'!$AC$92:$AD$101, 2, FALSE),\n      IF(R362=\"Boordmaat\",\n          VLOOKUP(S362, 'Data order'!$AC$102:$AD$116, 2, FALSE),\n          VLOOKUP(S362, 'Data order'!$AC$2:$AD$91, 2, FALSE)\n      )\n  ),\n\"\")","v":""},null,null,null,null,"EUR",null,null,null,{"$error":"#DIV/0!"},0,0,null,"","","","","","","","","","",null,null,null,null,null,null,null,null,null,null,null,null,null,null,null,null,null,"ZWO"]
[null,null,null,null,null,{"$f":"VLOOKUP(G363,'Data order'!Z:AA,2,0)","v":{"$error":"#N/A"}},null,null,null,null,null,null,null,null,{"$f":"VLOOKUP(N363,Tabel10[[korte omschrijving]:[MCC3_CODE]],2,0)","v":{"$error":"#N/A"}},{"$f":"VLOOKUP(N363,'Data order'!M:O,3,0)","v":{"$error":"#N/A"}},null,null,null,{"$f":"IFERROR(\n  IF(R363=\"Big&Tall\",\n      VLOOKUP(S363, 'Data order'!$AC$92:$AD$101, 2, FALSE),\n      IF(R363=\"Boordmaat\",\n          VLOOKUP(S363, 'Data order'!$AC$102:$AD$116, 2, FALSE),\n          VLOOKUP(S363, 'Data order'!$AC$2:$AD$91, 2, FALSE)\n      )\n  ),\n\"\")","v":""},null,null,null,null,"EUR",null,null,null,{"$error":"#DIV/0!"},0,0,null,"","","","","","","","","","",null,null,null,null,null,null,null,null,null,null,null,null,null,null,null,null,null,"ZWO"]
[null,null,null,null,null,{"$f":"VLOOKUP(G364,'Data order'!Z:AA,2,0)","v":{"$error":"#N/A"}},null,null,null,null,null,null,null,null,{"$f":"VLOOKUP(N364,Tabel10[[korte omschrijving]:[MCC3_CODE]],2,0)","v":{"$error":"#N/A"}},{"$f":"VLOOKUP(N364,'Data order'!M:O,3,0)","v":{"$error":"#N/A"}},null,null,null,{"$f":"IFERROR(\n  IF(R364=\"Big&Tall\",\n      VLOOKUP(S364, 'Data order'!$AC$92:$AD$101, 2, FALSE),\n      IF(R364=\"Boordmaat\",\n          VLOOKUP(S364, 'Data order'!$AC$102:$AD$116, 2, FALSE),\n          VLOOKUP(S364, 'Data order'!$AC$2:$AD$91, 2, FALSE)\n      )\n  ),\n\"\")","v":""},null,null,null,null,"EUR",null,null,null,{"$error":"#DIV/0!"},0,0,null,"","","","","","","","","","",null,null,null,null,null,null,null,null,null,null,null,null,null,null,null,null,null,"ZWO"]
[null,null,null,null,null,{"$f":"VLOOKUP(G365,'Data order'!Z:AA,2,0)","v":{"$error":"#N/A"}},null,null,null,null,null,null,null,null,{"$f":"VLOOKUP(N365,Tabel10[[korte omschrijving]:[MCC3_CODE]],2,0)","v":{"$error":"#N/A"}},{"$f":"VLOOKUP(N365,'Data order'!M:O,3,0)","v":{"$error":"#N/A"}},null,null,null,{"$f":"IFERROR(\n  IF(R365=\"Big&Tall\",\n      VLOOKUP(S365, 'Data order'!$AC$92:$AD$101, 2, FALSE),\n      IF(R365=\"Boordmaat\",\n          VLOOKUP(S365, 'Data order'!$AC$102:$AD$116, 2, FALSE),\n          VLOOKUP(S365, 'Data order'!$AC$2:$AD$91, 2, FALSE)\n      )\n  ),\n\"\")","v":""},null,null,null,null,"EUR",null,null,null,{"$error":"#DIV/0!"},0,0,null,"","","","","","","","","","",null,null,null,null,null,null,null,null,null,null,null,null,null,null,null,null,null,"ZWO"]
[null,null,null,null,null,{"$f":"VLOOKUP(G366,'Data order'!Z:AA,2,0)","v":{"$error":"#N/A"}},null,null,null,null,null,null,null,null,{"$f":"VLOOKUP(N366,Tabel10[[korte omschrijving]:[MCC3_CODE]],2,0)","v":{"$error":"#N/A"}},{"$f":"VLOOKUP(N366,'Data order'!M:O,3,0)","v":{"$error":"#N/A"}},null,null,null,{"$f":"IFERROR(\n  IF(R366=\"Big&Tall\",\n      VLOOKUP(S366, 'Data order'!$AC$92:$AD$101, 2, FALSE),\n      IF(R366=\"Boordmaat\",\n          VLOOKUP(S366, 'Data order'!$AC$102:$AD$116, 2, FALSE),\n          VLOOKUP(S366, 'Data order'!$AC$2:$AD$91, 2, FALSE)\n      )\n  ),\n\"\")","v":""},null,{"$f":"SUM(U366:U371)","v":0},null,null,"EUR",null,null,null,{"$error":"#DIV/0!"},0,0,null,"","","","","","","","","","",null,null,null,null,null,null,null,null,null,null,null,null,null,null,null,null,null,"ZWO"]
[null,null,null,null,null,{"$f":"VLOOKUP(G367,'Data order'!Z:AA,2,0)","v":{"$error":"#N/A"}},null,null,null,null,null,null,null,null,{"$f":"VLOOKUP(N367,Tabel10[[korte omschrijving]:[MCC3_CODE]],2,0)","v":{"$error":"#N/A"}},{"$f":"VLOOKUP(N367,'Data order'!M:O,3,0)","v":{"$error":"#N/A"}},null,null,null,{"$f":"IFERROR(\n  IF(R367=\"Big&Tall\",\n      VLOOKUP(S367, 'Data order'!$AC$92:$AD$101, 2, FALSE),\n      IF(R367=\"Boordmaat\",\n          VLOOKUP(S367, 'Data order'!$AC$102:$AD$116, 2, FALSE),\n          VLOOKUP(S367, 'Data order'!$AC$2:$AD$91, 2, FALSE)\n      )\n  ),\n\"\")","v":""},null,null,null,null,"EUR",null,null,null,{"$error":"#DIV/0!"},0,0,null,"","","","","","","","","","",null,null,null,null,null,null,null,null,null,null,null,null,null,null,null,null,null,"ZWO"]
[null,null,null,null,null,{"$f":"VLOOKUP(G368,'Data order'!Z:AA,2,0)","v":{"$error":"#N/A"}},null,null,null,null,null,null,null,null,{"$f":"VLOOKUP(N368,Tabel10[[korte omschrijving]:[MCC3_CODE]],2,0)","v":{"$error":"#N/A"}},{"$f":"VLOOKUP(N368,'Data order'!M:O,3,0)","v":{"$error":"#N/A"}},null,null,null,{"$f":"IFERROR(\n  IF(R368=\"Big&Tall\",\n      VLOOKUP(S368, 'Data order'!$AC$92:$AD$101, 2, FALSE),\n      IF(R368=\"Boordmaat\",\n          VLOOKUP(S368, 'Data order'!$AC$102:$AD$116, 2, FALSE),\n          VLOOKUP(S368, 'Data order'!$AC$2:$AD$91, 2, FALSE)\n      )\n  ),\n\"\")","v":""},null,null,null,null,"EUR",null,null,null,{"$error":"#DIV/0!"},0,0,null,"","","","","","","","","","",null,null,null,null,null,null,null,null,null,null,null,null,null,null,null,null,null,"ZWO"]
[null,null,null,null,null,{"$f":"VLOOKUP(G369,'Data order'!Z:AA,2,0)","v":{"$error":"#N/A"}},null,null,null,null,null,null,null,null,{"$f":"VLOOKUP(N369,Tabel10[[korte omschrijving]:[MCC3_CODE]],2,0)","v":{"$error":"#N/A"}},{"$f":"VLOOKUP(N369,'Data order'!M:O,3,0)","v":{"$error":"#N/A"}},null,null,null,{"$f":"IFERROR(\n  IF(R369=\"Big&Tall\",\n      VLOOKUP(S369, 'Data order'!$AC$92:$AD$101, 2, FALSE),\n      IF(R369=\"Boordmaat\",\n          VLOOKUP(S369, 'Data order'!$AC$102:$AD$116, 2, FALSE),\n          VLOOKUP(S369, 'Data order'!$AC$2:$AD$91, 2, FALSE)\n      )\n  ),\n\"\")","v":""},null,null,null,null,"EUR",null,null,null,{"$error":"#DIV/0!"},0,0,null,"","","","","","","","","","",null,null,null,null,null,null,null,null,null,null,null,null,null,null,null,null,null,"ZWO"]
[null,null,null,null,null,{"$f":"VLOOKUP(G370,'Data order'!Z:AA,2,0)","v":{"$error":"#N/A"}},null,null,null,null,null,null,null,null,{"$f":"VLOOKUP(N370,Tabel10[[korte omschrijving]:[MCC3_CODE]],2,0)","v":{"$error":"#N/A"}},{"$f":"VLOOKUP(N370,'Data order'!M:O,3,0)","v":{"$error":"#N/A"}},null,null,null,{"$f":"IFERROR(\n  IF(R370=\"Big&Tall\",\n      VLOOKUP(S370, 'Data order'!$AC$92:$AD$101, 2, FALSE),\n      IF(R370=\"Boordmaat\",\n          VLOOKUP(S370, 'Data order'!$AC$102:$AD$116, 2, FALSE),\n          VLOOKUP(S370, 'Data order'!$AC$2:$AD$91, 2, FALSE)\n      )\n  ),\n\"\")","v":""},null,null,null,null,"EUR",null,null,null,{"$error":"#DIV/0!"},0,0,null,"","","","","","","","","","",null,null,null,null,null,null,null,null,null,null,null,null,null,null,null,null,null,"ZWO"]
[null,null,null,null,null,{"$f":"VLOOKUP(G371,'Data order'!Z:AA,2,0)","v":{"$error":"#N/A"}},null,null,null,null,null,null,null,null,{"$f":"VLOOKUP(N371,Tabel10[[korte omschrijving]:[MCC3_CODE]],2,0)","v":{"$error":"#N/A"}},{"$f":"VLOOKUP(N371,'Data order'!M:O,3,0)","v":{"$error":"#N/A"}},null,null,null,{"$f":"IFERROR(\n  IF(R371=\"Big&Tall\",\n      VLOOKUP(S371, 'Data order'!$AC$92:$AD$101, 2, FALSE),\n      IF(R371=\"Boordmaat\",\n          VLOOKUP(S371, 'Data order'!$AC$102:$AD$116, 2, FALSE),\n          VLOOKUP(S371, 'Data order'!$AC$2:$AD$91, 2, FALSE)\n      )\n  ),\n\"\")","v":""},null,null,null,null,"EUR",null,null,null,{"$error":"#DIV/0!"},0,0,null,"","","","","","","","","","",null,null,null,null,null,null,null,null,null,null,null,null,null,null,null,null,null,"ZWO"]
[null,null,null,null,null,{"$f":"VLOOKUP(G372,'Data order'!Z:AA,2,0)","v":{"$error":"#N/A"}},null,null,null,null,null,null,null,null,{"$f":"VLOOKUP(N372,Tabel10[[korte omschrijving]:[MCC3_CODE]],2,0)","v":{"$error":"#N/A"}},{"$f":"VLOOKUP(N372,'Data order'!M:O,3,0)","v":{"$error":"#N/A"}},null,null,null,{"$f":"IFERROR(\n  IF(R372=\"Big&Tall\",\n      VLOOKUP(S372, 'Data order'!$AC$92:$AD$101, 2, FALSE),\n      IF(R372=\"Boordmaat\",\n          VLOOKUP(S372, 'Data order'!$AC$102:$AD$116, 2, FALSE),\n          VLOOKUP(S372, 'Data order'!$AC$2:$AD$91, 2, FALSE)\n      )\n  ),\n\"\")","v":""},null,{"$f":"SUM(U372:U377)","v":0},null,null,"EUR",null,null,null,{"$error":"#DIV/0!"},0,0,null,"","","","","","","","","","",null,null,null,null,null,null,null,null,null,null,null,null,null,null,null,null,null,"ZWO"]
[null,null,null,null,null,{"$f":"VLOOKUP(G373,'Data order'!Z:AA,2,0)","v":{"$error":"#N/A"}},null,null,null,null,null,null,null,null,{"$f":"VLOOKUP(N373,Tabel10[[korte omschrijving]:[MCC3_CODE]],2,0)","v":{"$error":"#N/A"}},{"$f":"VLOOKUP(N373,'Data order'!M:O,3,0)","v":{"$error":"#N/A"}},null,null,null,{"$f":"IFERROR(\n  IF(R373=\"Big&Tall\",\n      VLOOKUP(S373, 'Data order'!$AC$92:$AD$101, 2, FALSE),\n      IF(R373=\"Boordmaat\",\n          VLOOKUP(S373, 'Data order'!$AC$102:$AD$116, 2, FALSE),\n          VLOOKUP(S373, 'Data order'!$AC$2:$AD$91, 2, FALSE)\n      )\n  ),\n\"\")","v":""},null,null,null,null,"EUR",null,null,null,{"$error":"#DIV/0!"},0,0,null,"","","","","","","","","","",null,null,null,null,null,null,null,null,null,null,null,null,null,null,null,null,null,"ZWO"]
[null,null,null,null,null,{"$f":"VLOOKUP(G374,'Data order'!Z:AA,2,0)","v":{"$error":"#N/A"}},null,null,null,null,null,null,null,null,{"$f":"VLOOKUP(N374,Tabel10[[korte omschrijving]:[MCC3_CODE]],2,0)","v":{"$error":"#N/A"}},{"$f":"VLOOKUP(N374,'Data order'!M:O,3,0)","v":{"$error":"#N/A"}},null,null,null,{"$f":"IFERROR(\n  IF(R374=\"Big&Tall\",\n      VLOOKUP(S374, 'Data order'!$AC$92:$AD$101, 2, FALSE),\n      IF(R374=\"Boordmaat\",\n          VLOOKUP(S374, 'Data order'!$AC$102:$AD$116, 2, FALSE),\n          VLOOKUP(S374, 'Data order'!$AC$2:$AD$91, 2, FALSE)\n      )\n  ),\n\"\")","v":""},null,null,null,null,"EUR",null,null,null,{"$error":"#DIV/0!"},0,0,null,"","","","","","","","","","",null,null,null,null,null,null,null,null,null,null,null,null,null,null,null,null,null,"ZWO"]
[null,null,null,null,null,{"$f":"VLOOKUP(G375,'Data order'!Z:AA,2,0)","v":{"$error":"#N/A"}},null,null,null,null,null,null,null,null,{"$f":"VLOOKUP(N375,Tabel10[[korte omschrijving]:[MCC3_CODE]],2,0)","v":{"$error":"#N/A"}},{"$f":"VLOOKUP(N375,'Data order'!M:O,3,0)","v":{"$error":"#N/A"}},null,null,null,{"$f":"IFERROR(\n  IF(R375=\"Big&Tall\",\n      VLOOKUP(S375, 'Data order'!$AC$92:$AD$101, 2, FALSE),\n      IF(R375=\"Boordmaat\",\n          VLOOKUP(S375, 'Data order'!$AC$102:$AD$116, 2, FALSE),\n          VLOOKUP(S375, 'Data order'!$AC$2:$AD$91, 2, FALSE)\n      )\n  ),\n\"\")","v":""},null,null,null,null,"EUR",null,null,null,{"$error":"#DIV/0!"},0,0,null,"","","","","","","","","","",null,null,null,null,null,null,null,null,null,null,null,null,null,null,null,null,null,"ZWO"]
[null,null,null,null,null,{"$f":"VLOOKUP(G376,'Data order'!Z:AA,2,0)","v":{"$error":"#N/A"}},null,null,null,null,null,null,null,null,{"$f":"VLOOKUP(N376,Tabel10[[korte omschrijving]:[MCC3_CODE]],2,0)","v":{"$error":"#N/A"}},{"$f":"VLOOKUP(N376,'Data order'!M:O,3,0)","v":{"$error":"#N/A"}},null,null,null,{"$f":"IFERROR(\n  IF(R376=\"Big&Tall\",\n      VLOOKUP(S376, 'Data order'!$AC$92:$AD$101, 2, FALSE),\n      IF(R376=\"Boordmaat\",\n          VLOOKUP(S376, 'Data order'!$AC$102:$AD$116, 2, FALSE),\n          VLOOKUP(S376, 'Data order'!$AC$2:$AD$91, 2, FALSE)\n      )\n  ),\n\"\")","v":""},null,null,null,null,"EUR",null,null,null,{"$error":"#DIV/0!"},0,0,null,"","","","","","","","","","",null,null,null,null,null,null,null,null,null,null,null,null,null,null,null,null,null,"ZWO"]
[null,null,null,null,null,{"$f":"VLOOKUP(G377,'Data order'!Z:AA,2,0)","v":{"$error":"#N/A"}},null,null,null,null,null,null,null,null,{"$f":"VLOOKUP(N377,Tabel10[[korte omschrijving]:[MCC3_CODE]],2,0)","v":{"$error":"#N/A"}},{"$f":"VLOOKUP(N377,'Data order'!M:O,3,0)","v":{"$error":"#N/A"}},null,null,null,{"$f":"IFERROR(\n  IF(R377=\"Big&Tall\",\n      VLOOKUP(S377, 'Data order'!$AC$92:$AD$101, 2, FALSE),\n      IF(R377=\"Boordmaat\",\n          VLOOKUP(S377, 'Data order'!$AC$102:$AD$116, 2, FALSE),\n          VLOOKUP(S377, 'Data order'!$AC$2:$AD$91, 2, FALSE)\n      )\n  ),\n\"\")","v":""},null,null,null,null,"EUR",null,null,null,{"$error":"#DIV/0!"},0,0,null,"","","","","","","","","","",null,null,null,null,null,null,null,null,null,null,null,null,null,null,null,null,null,"ZWO"]
[null,null,null,null,null,{"$f":"VLOOKUP(G378,'Data order'!Z:AA,2,0)","v":{"$error":"#N/A"}},null,null,null,null,null,null,null,null,{"$f":"VLOOKUP(N378,Tabel10[[korte omschrijving]:[MCC3_CODE]],2,0)","v":{"$error":"#N/A"}},{"$f":"VLOOKUP(N378,'Data order'!M:O,3,0)","v":{"$error":"#N/A"}},null,null,null,{"$f":"IFERROR(\n  IF(R378=\"Big&Tall\",\n      VLOOKUP(S378, 'Data order'!$AC$92:$AD$101, 2, FALSE),\n      IF(R378=\"Boordmaat\",\n          VLOOKUP(S378, 'Data order'!$AC$102:$AD$116, 2, FALSE),\n          VLOOKUP(S378, 'Data order'!$AC$2:$AD$91, 2, FALSE)\n      )\n  ),\n\"\")","v":""},null,{"$f":"SUM(U378:U383)","v":0},null,null,"EUR",null,null,null,{"$error":"#DIV/0!"},0,0,null,"","","","","","","","","","",null,null,null,null,null,null,null,null,null,null,null,null,null,null,null,null,null,"ZWO"]
[null,null,null,null,null,{"$f":"VLOOKUP(G379,'Data order'!Z:AA,2,0)","v":{"$error":"#N/A"}},null,null,null,null,null,null,null,null,{"$f":"VLOOKUP(N379,Tabel10[[korte omschrijving]:[MCC3_CODE]],2,0)","v":{"$error":"#N/A"}},{"$f":"VLOOKUP(N379,'Data order'!M:O,3,0)","v":{"$error":"#N/A"}},null,null,null,{"$f":"IFERROR(\n  IF(R379=\"Big&Tall\",\n      VLOOKUP(S379, 'Data order'!$AC$92:$AD$101, 2, FALSE),\n      IF(R379=\"Boordmaat\",\n          VLOOKUP(S379, 'Data order'!$AC$102:$AD$116, 2, FALSE),\n          VLOOKUP(S379, 'Data order'!$AC$2:$AD$91, 2, FALSE)\n      )\n  ),\n\"\")","v":""},null,null,null,null,"EUR",null,null,null,{"$error":"#DIV/0!"},0,0,null,"","","","","","","","","","",null,null,null,null,null,null,null,null,null,null,null,null,null,null,null,null,null,"ZWO"]
[null,null,null,null,null,{"$f":"VLOOKUP(G380,'Data order'!Z:AA,2,0)","v":{"$error":"#N/A"}},null,null,null,null,null,null,null,null,{"$f":"VLOOKUP(N380,Tabel10[[korte omschrijving]:[MCC3_CODE]],2,0)","v":{"$error":"#N/A"}},{"$f":"VLOOKUP(N380,'Data order'!M:O,3,0)","v":{"$error":"#N/A"}},null,null,null,{"$f":"IFERROR(\n  IF(R380=\"Big&Tall\",\n      VLOOKUP(S380, 'Data order'!$AC$92:$AD$101, 2, FALSE),\n      IF(R380=\"Boordmaat\",\n          VLOOKUP(S380, 'Data order'!$AC$102:$AD$116, 2, FALSE),\n          VLOOKUP(S380, 'Data order'!$AC$2:$AD$91, 2, FALSE)\n      )\n  ),\n\"\")","v":""},null,null,null,null,"EUR",null,null,null,{"$error":"#DIV/0!"},0,0,null,"","","","","","","","","","",null,null,null,null,null,null,null,null,null,null,null,null,null,null,null,null,null,"ZWO"]
[null,null,null,null,null,{"$f":"VLOOKUP(G381,'Data order'!Z:AA,2,0)","v":{"$error":"#N/A"}},null,null,null,null,null,null,null,null,{"$f":"VLOOKUP(N381,Tabel10[[korte omschrijving]:[MCC3_CODE]],2,0)","v":{"$error":"#N/A"}},{"$f":"VLOOKUP(N381,'Data order'!M:O,3,0)","v":{"$error":"#N/A"}},null,null,null,{"$f":"IFERROR(\n  IF(R381=\"Big&Tall\",\n      VLOOKUP(S381, 'Data order'!$AC$92:$AD$101, 2, FALSE),\n      IF(R381=\"Boordmaat\",\n          VLOOKUP(S381, 'Data order'!$AC$102:$AD$116, 2, FALSE),\n          VLOOKUP(S381, 'Data order'!$AC$2:$AD$91, 2, FALSE)\n      )\n  ),\n\"\")","v":""},null,null,null,null,"EUR",null,null,null,{"$error":"#DIV/0!"},0,0,null,"","","","","","","","","","",null,null,null,null,null,null,null,null,null,null,null,null,null,null,null,null,null,"ZWO"]
[null,null,null,null,null,{"$f":"VLOOKUP(G382,'Data order'!Z:AA,2,0)","v":{"$error":"#N/A"}},null,null,null,null,null,null,null,null,{"$f":"VLOOKUP(N382,Tabel10[[korte omschrijving]:[MCC3_CODE]],2,0)","v":{"$error":"#N/A"}},{"$f":"VLOOKUP(N382,'Data order'!M:O,3,0)","v":{"$error":"#N/A"}},null,null,null,{"$f":"IFERROR(\n  IF(R382=\"Big&Tall\",\n      VLOOKUP(S382, 'Data order'!$AC$92:$AD$101, 2, FALSE),\n      IF(R382=\"Boordmaat\",\n          VLOOKUP(S382, 'Data order'!$AC$102:$AD$116, 2, FALSE),\n          VLOOKUP(S382, 'Data order'!$AC$2:$AD$91, 2, FALSE)\n      )\n  ),\n\"\")","v":""},null,null,null,null,"EUR",null,null,null,{"$error":"#DIV/0!"},0,0,null,"","","","","","","","","","",null,null,null,null,null,null,null,null,null,null,null,null,null,null,null,null,null,"ZWO"]
[null,null,null,null,null,{"$f":"VLOOKUP(G383,'Data order'!Z:AA,2,0)","v":{"$error":"#N/A"}},null,null,null,null,null,null,null,null,{"$f":"VLOOKUP(N383,Tabel10[[korte omschrijving]:[MCC3_CODE]],2,0)","v":{"$error":"#N/A"}},{"$f":"VLOOKUP(N383,'Data order'!M:O,3,0)","v":{"$error":"#N/A"}},null,null,null,{"$f":"IFERROR(\n  IF(R383=\"Big&Tall\",\n      VLOOKUP(S383, 'Data order'!$AC$92:$AD$101, 2, FALSE),\n      IF(R383=\"Boordmaat\",\n          VLOOKUP(S383, 'Data order'!$AC$102:$AD$116, 2, FALSE),\n          VLOOKUP(S383, 'Data order'!$AC$2:$AD$91, 2, FALSE)\n      )\n  ),\n\"\")","v":""},null,null,null,null,"EUR",null,null,null,{"$error":"#DIV/0!"},0,0,null,"","","","","","","","","","",null,null,null,null,null,null,null,null,null,null,null,null,null,null,null,null,null,"ZWO"]
[null,null,null,null,null,{"$f":"VLOOKUP(G384,'Data order'!Z:AA,2,0)","v":{"$error":"#N/A"}},null,null,null,null,null,null,null,null,{"$f":"VLOOKUP(N384,Tabel10[[korte omschrijving]:[MCC3_CODE]],2,0)","v":{"$error":"#N/A"}},{"$f":"VLOOKUP(N384,'Data order'!M:O,3,0)","v":{"$error":"#N/A"}},null,null,null,{"$f":"IFERROR(\n  IF(R384=\"Big&Tall\",\n      VLOOKUP(S384, 'Data order'!$AC$92:$AD$101, 2, FALSE),\n      IF(R384=\"Boordmaat\",\n          VLOOKUP(S384, 'Data order'!$AC$102:$AD$116, 2, FALSE),\n          VLOOKUP(S384, 'Data order'!$AC$2:$AD$91, 2, FALSE)\n      )\n  ),\n\"\")","v":""},null,{"$f":"SUM(U384:U389)","v":0},null,null,"EUR",null,null,null,{"$error":"#DIV/0!"},0,0,null,"","","","","","","","","","",null,null,null,null,null,null,null,null,null,null,null,null,null,null,null,null,null,"ZWO"]
[null,null,null,null,null,{"$f":"VLOOKUP(G385,'Data order'!Z:AA,2,0)","v":{"$error":"#N/A"}},null,null,null,null,null,null,null,null,{"$f":"VLOOKUP(N385,Tabel10[[korte omschrijving]:[MCC3_CODE]],2,0)","v":{"$error":"#N/A"}},{"$f":"VLOOKUP(N385,'Data order'!M:O,3,0)","v":{"$error":"#N/A"}},null,null,null,{"$f":"IFERROR(\n  IF(R385=\"Big&Tall\",\n      VLOOKUP(S385, 'Data order'!$AC$92:$AD$101, 2, FALSE),\n      IF(R385=\"Boordmaat\",\n          VLOOKUP(S385, 'Data order'!$AC$102:$AD$116, 2, FALSE),\n          VLOOKUP(S385, 'Data order'!$AC$2:$AD$91, 2, FALSE)\n      )\n  ),\n\"\")","v":""},null,null,null,null,"EUR",null,null,null,{"$error":"#DIV/0!"},0,0,null,"","","","","","","","","","",null,null,null,null,null,null,null,null,null,null,null,null,null,null,null,null,null,"ZWO"]
[null,null,null,null,null,{"$f":"VLOOKUP(G386,'Data order'!Z:AA,2,0)","v":{"$error":"#N/A"}},null,null,null,null,null,null,null,null,{"$f":"VLOOKUP(N386,Tabel10[[korte omschrijving]:[MCC3_CODE]],2,0)","v":{"$error":"#N/A"}},{"$f":"VLOOKUP(N386,'Data order'!M:O,3,0)","v":{"$error":"#N/A"}},null,null,null,{"$f":"IFERROR(\n  IF(R386=\"Big&Tall\",\n      VLOOKUP(S386, 'Data order'!$AC$92:$AD$101, 2, FALSE),\n      IF(R386=\"Boordmaat\",\n          VLOOKUP(S386, 'Data order'!$AC$102:$AD$116, 2, FALSE),\n          VLOOKUP(S386, 'Data order'!$AC$2:$AD$91, 2, FALSE)\n      )\n  ),\n\"\")","v":""},null,null,null,null,"EUR",null,null,null,{"$error":"#DIV/0!"},0,0,null,"","","","","","","","","","",null,null,null,null,null,null,null,null,null,null,null,null,null,null,null,null,null,"ZWO"]
[null,null,null,null,null,{"$f":"VLOOKUP(G387,'Data order'!Z:AA,2,0)","v":{"$error":"#N/A"}},null,null,null,null,null,null,null,null,{"$f":"VLOOKUP(N387,Tabel10[[korte omschrijving]:[MCC3_CODE]],2,0)","v":{"$error":"#N/A"}},{"$f":"VLOOKUP(N387,'Data order'!M:O,3,0)","v":{"$error":"#N/A"}},null,null,null,{"$f":"IFERROR(\n  IF(R387=\"Big&Tall\",\n      VLOOKUP(S387, 'Data order'!$AC$92:$AD$101, 2, FALSE),\n      IF(R387=\"Boordmaat\",\n          VLOOKUP(S387, 'Data order'!$AC$102:$AD$116, 2, FALSE),\n          VLOOKUP(S387, 'Data order'!$AC$2:$AD$91, 2, FALSE)\n      )\n  ),\n\"\")","v":""},null,null,null,null,"EUR",null,null,null,{"$error":"#DIV/0!"},0,0,null,"","","","","","","","","","",null,null,null,null,null,null,null,null,null,null,null,null,null,null,null,null,null,"ZWO"]
[null,null,null,null,null,{"$f":"VLOOKUP(G388,'Data order'!Z:AA,2,0)","v":{"$error":"#N/A"}},null,null,null,null,null,null,null,null,{"$f":"VLOOKUP(N388,Tabel10[[korte omschrijving]:[MCC3_CODE]],2,0)","v":{"$error":"#N/A"}},{"$f":"VLOOKUP(N388,'Data order'!M:O,3,0)","v":{"$error":"#N/A"}},null,null,null,{"$f":"IFERROR(\n  IF(R388=\"Big&Tall\",\n      VLOOKUP(S388, 'Data order'!$AC$92:$AD$101, 2, FALSE),\n      IF(R388=\"Boordmaat\",\n          VLOOKUP(S388, 'Data order'!$AC$102:$AD$116, 2, FALSE),\n          VLOOKUP(S388, 'Data order'!$AC$2:$AD$91, 2, FALSE)\n      )\n  ),\n\"\")","v":""},null,null,null,null,"EUR",null,null,null,{"$error":"#DIV/0!"},0,0,null,"","","","","","","","","","",null,null,null,null,null,null,null,null,null,null,null,null,null,null,null,null,null,"ZWO"]
[null,null,null,null,null,{"$f":"VLOOKUP(G389,'Data order'!Z:AA,2,0)","v":{"$error":"#N/A"}},null,null,null,null,null,null,null,null,{"$f":"VLOOKUP(N389,Tabel10[[korte omschrijving]:[MCC3_CODE]],2,0)","v":{"$error":"#N/A"}},{"$f":"VLOOKUP(N389,'Data order'!M:O,3,0)","v":{"$error":"#N/A"}},null,null,null,{"$f":"IFERROR(\n  IF(R389=\"Big&Tall\",\n      VLOOKUP(S389, 'Data order'!$AC$92:$AD$101, 2, FALSE),\n      IF(R389=\"Boordmaat\",\n          VLOOKUP(S389, 'Data order'!$AC$102:$AD$116, 2, FALSE),\n          VLOOKUP(S389, 'Data order'!$AC$2:$AD$91, 2, FALSE)\n      )\n  ),\n\"\")","v":""},null,null,null,null,"EUR",null,null,null,{"$error":"#DIV/0!"},0,0,null,"","","","","","","","","","",null,null,null,null,null,null,null,null,null,null,null,null,null,null,null,null,null,"ZWO"]
[null,null,null,null,null,{"$f":"VLOOKUP(G390,'Data order'!Z:AA,2,0)","v":{"$error":"#N/A"}},null,null,null,null,null,null,null,null,{"$f":"VLOOKUP(N390,Tabel10[[korte omschrijving]:[MCC3_CODE]],2,0)","v":{"$error":"#N/A"}},{"$f":"VLOOKUP(N390,'Data order'!M:O,3,0)","v":{"$error":"#N/A"}},null,null,null,{"$f":"IFERROR(\n  IF(R390=\"Big&Tall\",\n      VLOOKUP(S390, 'Data order'!$AC$92:$AD$101, 2, FALSE),\n      IF(R390=\"Boordmaat\",\n          VLOOKUP(S390, 'Data order'!$AC$102:$AD$116, 2, FALSE),\n          VLOOKUP(S390, 'Data order'!$AC$2:$AD$91, 2, FALSE)\n      )\n  ),\n\"\")","v":""},null,{"$f":"SUM(U390:U395)","v":0},null,null,"EUR",null,null,null,{"$error":"#DIV/0!"},0,0,null,"","","","","","","","","","",null,null,null,null,null,null,null,null,null,null,null,null,null,null,null,null,null,"ZWO"]
[null,null,null,null,null,{"$f":"VLOOKUP(G391,'Data order'!Z:AA,2,0)","v":{"$error":"#N/A"}},null,null,null,null,null,null,null,null,{"$f":"VLOOKUP(N391,Tabel10[[korte omschrijving]:[MCC3_CODE]],2,0)","v":{"$error":"#N/A"}},{"$f":"VLOOKUP(N391,'Data order'!M:O,3,0)","v":{"$error":"#N/A"}},null,null,null,{"$f":"IFERROR(\n  IF(R391=\"Big&Tall\",\n      VLOOKUP(S391, 'Data order'!$AC$92:$AD$101, 2, FALSE),\n      IF(R391=\"Boordmaat\",\n          VLOOKUP(S391, 'Data order'!$AC$102:$AD$116, 2, FALSE),\n          VLOOKUP(S391, 'Data order'!$AC$2:$AD$91, 2, FALSE)\n      )\n  ),\n\"\")","v":""},null,null,null,null,"EUR",null,null,null,{"$f":"AB391/Z391","v":{"$error":"#DIV/0!"}},{"$f":"U391*Z391","v":0},0,null,{"$f":"IF(AF391 <> \"\",\n    IF(ISNUMBER(VALUE(LEFT(AF391, FIND(\"%\", AF391)-1))),\n        VALUE(LEFT(AF391, FIND(\"%\", AF391)-1)),\n        \"Invalid format\"),\n    \"\")","v":""},{"$f":"IF(AF391 <> \"\",\n    IF(ISNUMBER(VALUE(LEFT(AF391, FIND(\"%\", AF391)-1))) * ISNUMBER(FIND(\"%\", AF391 & \"wol\")) > 0,\n        TRIM(MID(AF391, FIND(\"%\", AF391)+1, FIND(\"/\", AF391 & \"/\")-FIND(\"%\", AF391)-1)),\n        \"Invalid format\"),\n    \"\")","v":""},{"$f":"IF(AF391 <> \"\",\n    IF(ISNUMBER(VALUE(MID(AF391, FIND(\"/\", AF391) + 1, FIND(\"%\", AF391, FIND(\"/\", AF391)) - FIND(\"/\", AF391) - 1))),\n        VALUE(MID(AF391, FIND(\"/\", AF391) + 1, FIND(\"%\", AF391, FIND(\"/\", AF391)) - FIND(\"/\", AF391) - 1)),\n        \"\"),\n    \"\")","v":""},{"$f":"IF(AF391 <> \"\",\n    IFERROR(TRIM(MID(AF391, FIND(\"%\", AF391, FIND(\"/\", AF391)+1)+2,\n        IFERROR(FIND(\"/\", AF391 & \"/\", FIND(\"/\", AF391)+1)-FIND(\"%\", AF391, FIND(\"/\", AF391)+1)-2, LEN(AF391)-FIND(\"%\", AF391, FIND(\"/\", AF391)+1)-1))),\n        \"\"),\n    \"\")","v":""},{"$f":"IF(AF391 <> \"\",\n    IF(ISNUMBER(VALUE(MID(AF391, FIND(\"/\", AF391, FIND(\"/\", AF391)+1) + 1, FIND(\"%\", AF391, FIND(\"/\", AF391, FIND(\"/\", AF391)+1)) - FIND(\"/\", AF391, FIND(\"/\", AF391)+1) - 1))),\n        VALUE(MID(AF391, FIND(\"/\", AF391, FIND(\"/\", AF391)+1) + 1, FIND(\"%\", AF391, FIND(\"/\", AF391, FIND(\"/\", AF391)+1)) - FIND(\"/\", AF391, FIND(\"/\", AF391)+1) - 1)),\n        \"\"),\n    \"\")","v":""},{"$f":"IF(AF391 <> \"\",\n    IFERROR(\n        TRIM(MID(AF391,\n            FIND(\"%\", AF391, FIND(\"%\", AF391, FIND(\"%\", AF391)+1)+1)+1,\n            FIND(\"/\", AF391 & \"/\", FIND(\"%\", AF391, FIND(\"%\", AF391, FIND(\"%\", AF391)+1)+1))-FIND(\"%\", AF391, FIND(\"%\", AF391, FIND(\"%\", AF391)+1)+1)-1)\n        ),\n        \"\"\n    ),\n    \"\"\n)","v":""},{"$f":"IF(AF391 <> \"\",\n    IF(ISNUMBER(VALUE(MID(AF391, FIND(\"/\", AF391, FIND(\"/\", AF391, FIND(\"/\", AF391)+1)+1) + 1, FIND(\"%\", AF391, FIND(\"/\", AF391, FIND(\"/\", AF391, FIND(\"/\", AF391)+1)+1)) - FIND(\"/\", AF391, FIND(\"/\", AF391, FIND(\"/\", AF391)+1)+1) - 1))),\n        VALUE(MID(AF391, FIND(\"/\", AF391, FIND(\"/\", AF391, FIND(\"/\", AF391)+1)+1) + 1, FIND(\"%\", AF391, FIND(\"/\", AF391, FIND(\"/\", AF391, FIND(\"/\", AF391)+1)+1)) - FIND(\"/\", AF391, FIND(\"/\", AF391, FIND(\"/\", AF391)+1)+1) - 1)),\n        \"\"),\n    \"\")","v":""},{"$f":"IF(AF391 <> \"\",\n    IFERROR(TRIM(MID(AF391, FIND(\"%\", AF391, FIND(\"/\", AF391, FIND(\"/\", AF391, FIND(\"/\", AF391)+1)+1)+1)+2,\n        IFERROR(FIND(\"/\", AF391, FIND(\"/\", AF391, FIND(\"/\", AF391, FIND(\"/\", AF391)+1)+1)+1)-FIND(\"%\", AF391, FIND(\"/\", AF391, FIND(\"/\", AF391, FIND(\"/\", AF391)+1)+1)+1)-2, LEN(AF391)-FIND(\"%\", AF391, FIND(\"/\", AF391, FIND(\"/\", AF391, FIND(\"/\", AF391)+1)+1)+1)-1))),\n        \"\"),\n    \"\")","v":""},{"$f":"IF(AF391 <> \"\",\n    IF(ISNUMBER(VALUE(MID(AF391, FIND(\"/\", AF391, FIND(\"/\", AF391, FIND(\"/\", AF391, FIND(\"/\", AF391)+1)+1)+1) + 1, FIND(\"%\", AF391, FIND(\"/\", AF391, FIND(\"/\", AF391, FIND(\"/\", AF391, FIND(\"/\", AF391)+1)+1)+1)) - FIND(\"/\", AF391, FIND(\"/\", AF391, FIND(\"/\", AF391, FIND(\"/\", AF391)+1)+1)+1) - 1))),\n        VALUE(MID(AF391, FIND(\"/\", AF391, FIND(\"/\", AF391, FIND(\"/\", AF391, FIND(\"/\", AF391)+1)+1)+1) + 1, FIND(\"%\", AF391, FIND(\"/\", AF391, FIND(\"/\", AF391, FIND(\"/\", AF391, FIND(\"/\", AF391)+1)+1)+1)) - FIND(\"/\", AF391, FIND(\"/\", AF391, FIND(\"/\", AF391, FIND(\"/\", AF391)+1)+1)+1) - 1)),\n        \"\"),\n    \"\")","v":""},{"$f":"IF(AF391 = \"\", \"\",\n    IFERROR(TRIM(\n        MID(\n            AF391,\n            FIND(\"%\", AF391, FIND(\"/\", AF391, FIND(\"/\", AF391, FIND(\"/\", AF391, FIND(\"/\", AF391)+1)+1)+1)+1) + 1,\n            FIND(\"/\", AF391 & \"/\", FIND(\"%\", AF391, FIND(\"/\", AF391, FIND(\"/\", AF391, FIND(\"/\", AF391, FIND(\"/\", AF391)+1)+1)+1)+1)) -\n            FIND(\"%\", AF391, FIND(\"/\", AF391, FIND(\"/\", AF391, FIND(\"/\", AF391, FIND(\"/\", AF391)+1)+1)+1)+1) - 1\n        )\n    ),\n    \"\")\n)","v":""},null,null,null,null,null,null,null,null,null,null,null,null,null,null,null,null,null,"ZWO"]
[null,null,null,null,null,{"$f":"VLOOKUP(G392,'Data order'!Z:AA,2,0)","v":{"$error":"#N/A"}},null,null,null,null,null,null,null,null,{"$f":"VLOOKUP(N392,Tabel10[[korte omschrijving]:[MCC3_CODE]],2,0)","v":{"$error":"#N/A"}},{"$f":"VLOOKUP(N392,'Data order'!M:O,3,0)","v":{"$error":"#N/A"}},null,null,null,{"$f":"IFERROR(\n  IF(R392=\"Big&Tall\",\n      VLOOKUP(S392, 'Data order'!$AC$92:$AD$101, 2, FALSE),\n      IF(R392=\"Boordmaat\",\n          VLOOKUP(S392, 'Data order'!$AC$102:$AD$116, 2, FALSE),\n          VLOOKUP(S392, 'Data order'!$AC$2:$AD$91, 2, FALSE)\n      )\n  ),\n\"\")","v":""},null,null,null,null,"EUR",null,null,null,{"$error":"#DIV/0!"},0,{"$f":"U392*AB392","v":0},null,"","","","","","","","","","",null,null,null,null,null,null,null,null,null,null,null,null,null,null,null,null,null,"ZWO"]
[null,null,null,null,null,{"$f":"VLOOKUP(G393,'Data order'!Z:AA,2,0)","v":{"$error":"#N/A"}},null,null,null,null,null,null,null,null,{"$f":"VLOOKUP(N393,Tabel10[[korte omschrijving]:[MCC3_CODE]],2,0)","v":{"$error":"#N/A"}},{"$f":"VLOOKUP(N393,'Data order'!M:O,3,0)","v":{"$error":"#N/A"}},null,null,null,{"$f":"IFERROR(\n  IF(R393=\"Big&Tall\",\n      VLOOKUP(S393, 'Data order'!$AC$92:$AD$101, 2, FALSE),\n      IF(R393=\"Boordmaat\",\n          VLOOKUP(S393, 'Data order'!$AC$102:$AD$116, 2, FALSE),\n          VLOOKUP(S393, 'Data order'!$AC$2:$AD$91, 2, FALSE)\n      )\n  ),\n\"\")","v":""},null,null,null,null,"EUR",null,null,null,{"$error":"#DIV/0!"},0,0,null,"","","","","","","","","","",null,null,null,null,null,null,null,null,null,null,null,null,null,null,null,null,null,"ZWO"]
[null,null,null,null,null,{"$f":"VLOOKUP(G394,'Data order'!Z:AA,2,0)","v":{"$error":"#N/A"}},null,null,null,null,null,null,null,null,{"$f":"VLOOKUP(N394,Tabel10[[korte omschrijving]:[MCC3_CODE]],2,0)","v":{"$error":"#N/A"}},{"$f":"VLOOKUP(N394,'Data order'!M:O,3,0)","v":{"$error":"#N/A"}},null,null,null,{"$f":"IFERROR(\n  IF(R394=\"Big&Tall\",\n      VLOOKUP(S394, 'Data order'!$AC$92:$AD$101, 2, FALSE),\n      IF(R394=\"Boordmaat\",\n          VLOOKUP(S394, 'Data order'!$AC$102:$AD$116, 2, FALSE),\n          VLOOKUP(S394, 'Data order'!$AC$2:$AD$91, 2, FALSE)\n      )\n  ),\n\"\")","v":""},null,null,null,null,"EUR",null,null,null,{"$error":"#DIV/0!"},0,0,null,"","","","","","","","","","",null,null,null,null,null,null,null,null,null,null,null,null,null,null,null,null,null,"ZWO"]
[null,null,null,null,null,{"$f":"VLOOKUP(G395,'Data order'!Z:AA,2,0)","v":{"$error":"#N/A"}},null,null,null,null,null,null,null,null,{"$f":"VLOOKUP(N395,Tabel10[[korte omschrijving]:[MCC3_CODE]],2,0)","v":{"$error":"#N/A"}},{"$f":"VLOOKUP(N395,'Data order'!M:O,3,0)","v":{"$error":"#N/A"}},null,null,null,{"$f":"IFERROR(\n  IF(R395=\"Big&Tall\",\n      VLOOKUP(S395, 'Data order'!$AC$92:$AD$101, 2, FALSE),\n      IF(R395=\"Boordmaat\",\n          VLOOKUP(S395, 'Data order'!$AC$102:$AD$116, 2, FALSE),\n          VLOOKUP(S395, 'Data order'!$AC$2:$AD$91, 2, FALSE)\n      )\n  ),\n\"\")","v":""},null,null,null,null,"EUR",null,null,null,{"$error":"#DIV/0!"},0,0,null,"","","","","","","","","","",null,null,null,null,null,null,null,null,null,null,null,null,null,null,null,null,null,"ZWO"]
[null,null,null,null,null,{"$f":"VLOOKUP(G396,'Data order'!Z:AA,2,0)","v":{"$error":"#N/A"}},null,null,null,null,null,null,null,null,{"$f":"VLOOKUP(N396,Tabel10[[korte omschrijving]:[MCC3_CODE]],2,0)","v":{"$error":"#N/A"}},{"$f":"VLOOKUP(N396,'Data order'!M:O,3,0)","v":{"$error":"#N/A"}},null,null,null,{"$f":"IFERROR(\n  IF(R396=\"Big&Tall\",\n      VLOOKUP(S396, 'Data order'!$AC$92:$AD$101, 2, FALSE),\n      IF(R396=\"Boordmaat\",\n          VLOOKUP(S396, 'Data order'!$AC$102:$AD$116, 2, FALSE),\n          VLOOKUP(S396, 'Data order'!$AC$2:$AD$91, 2, FALSE)\n      )\n  ),\n\"\")","v":""},null,{"$f":"SUM(U396:U401)","v":0},null,null,"EUR",null,null,null,{"$error":"#DIV/0!"},0,0,null,"","","","","","","","","","",null,null,null,null,null,null,null,null,null,null,null,null,null,null,null,null,null,"ZWO"]
[null,null,null,null,null,{"$f":"VLOOKUP(G397,'Data order'!Z:AA,2,0)","v":{"$error":"#N/A"}},null,null,null,null,null,null,null,null,{"$f":"VLOOKUP(N397,Tabel10[[korte omschrijving]:[MCC3_CODE]],2,0)","v":{"$error":"#N/A"}},{"$f":"VLOOKUP(N397,'Data order'!M:O,3,0)","v":{"$error":"#N/A"}},null,null,null,{"$f":"IFERROR(\n  IF(R397=\"Big&Tall\",\n      VLOOKUP(S397, 'Data order'!$AC$92:$AD$101, 2, FALSE),\n      IF(R397=\"Boordmaat\",\n          VLOOKUP(S397, 'Data order'!$AC$102:$AD$116, 2, FALSE),\n          VLOOKUP(S397, 'Data order'!$AC$2:$AD$91, 2, FALSE)\n      )\n  ),\n\"\")","v":""},null,null,null,null,"EUR",null,null,null,{"$error":"#DIV/0!"},0,0,null,"","","","","","","","","","",null,null,null,null,null,null,null,null,null,null,null,null,null,null,null,null,null,"ZWO"]
[null,null,null,null,null,{"$f":"VLOOKUP(G398,'Data order'!Z:AA,2,0)","v":{"$error":"#N/A"}},null,null,null,null,null,null,null,null,{"$f":"VLOOKUP(N398,Tabel10[[korte omschrijving]:[MCC3_CODE]],2,0)","v":{"$error":"#N/A"}},{"$f":"VLOOKUP(N398,'Data order'!M:O,3,0)","v":{"$error":"#N/A"}},null,null,null,{"$f":"IFERROR(\n  IF(R398=\"Big&Tall\",\n      VLOOKUP(S398, 'Data order'!$AC$92:$AD$101, 2, FALSE),\n      IF(R398=\"Boordmaat\",\n          VLOOKUP(S398, 'Data order'!$AC$102:$AD$116, 2, FALSE),\n          VLOOKUP(S398, 'Data order'!$AC$2:$AD$91, 2, FALSE)\n      )\n  ),\n\"\")","v":""},null,null,null,null,"EUR",null,null,null,{"$error":"#DIV/0!"},0,0,null,"","","","","","","","","","",null,null,null,null,null,null,null,null,null,null,null,null,null,null,null,null,null,"ZWO"]
[null,null,null,null,null,{"$f":"VLOOKUP(G399,'Data order'!Z:AA,2,0)","v":{"$error":"#N/A"}},null,null,null,null,null,null,null,null,{"$f":"VLOOKUP(N399,Tabel10[[korte omschrijving]:[MCC3_CODE]],2,0)","v":{"$error":"#N/A"}},{"$f":"VLOOKUP(N399,'Data order'!M:O,3,0)","v":{"$error":"#N/A"}},null,null,null,{"$f":"IFERROR(\n  IF(R399=\"Big&Tall\",\n      VLOOKUP(S399, 'Data order'!$AC$92:$AD$101, 2, FALSE),\n      IF(R399=\"Boordmaat\",\n          VLOOKUP(S399, 'Data order'!$AC$102:$AD$116, 2, FALSE),\n          VLOOKUP(S399, 'Data order'!$AC$2:$AD$91, 2, FALSE)\n      )\n  ),\n\"\")","v":""},null,null,null,null,"EUR",null,null,null,{"$error":"#DIV/0!"},0,0,null,"","","","","","","","","","",null,null,null,null,null,null,null,null,null,null,null,null,null,null,null,null,null,"ZWO"]
[null,null,null,null,null,{"$f":"VLOOKUP(G400,'Data order'!Z:AA,2,0)","v":{"$error":"#N/A"}},null,null,null,null,null,null,null,null,{"$f":"VLOOKUP(N400,Tabel10[[korte omschrijving]:[MCC3_CODE]],2,0)","v":{"$error":"#N/A"}},{"$f":"VLOOKUP(N400,'Data order'!M:O,3,0)","v":{"$error":"#N/A"}},null,null,null,{"$f":"IFERROR(\n  IF(R400=\"Big&Tall\",\n      VLOOKUP(S400, 'Data order'!$AC$92:$AD$101, 2, FALSE),\n      IF(R400=\"Boordmaat\",\n          VLOOKUP(S400, 'Data order'!$AC$102:$AD$116, 2, FALSE),\n          VLOOKUP(S400, 'Data order'!$AC$2:$AD$91, 2, FALSE)\n      )\n  ),\n\"\")","v":""},null,null,null,null,"EUR",null,null,null,{"$error":"#DIV/0!"},0,0,null,"","","","","","","","","","",null,null,null,null,null,null,null,null,null,null,null,null,null,null,null,null,null,"ZWO"]
[null,null,null,null,null,{"$f":"VLOOKUP(G401,'Data order'!Z:AA,2,0)","v":{"$error":"#N/A"}},null,null,null,null,null,null,null,null,{"$f":"VLOOKUP(N401,Tabel10[[korte omschrijving]:[MCC3_CODE]],2,0)","v":{"$error":"#N/A"}},{"$f":"VLOOKUP(N401,'Data order'!M:O,3,0)","v":{"$error":"#N/A"}},null,null,null,{"$f":"IFERROR(\n  IF(R401=\"Big&Tall\",\n      VLOOKUP(S401, 'Data order'!$AC$92:$AD$101, 2, FALSE),\n      IF(R401=\"Boordmaat\",\n          VLOOKUP(S401, 'Data order'!$AC$102:$AD$116, 2, FALSE),\n          VLOOKUP(S401, 'Data order'!$AC$2:$AD$91, 2, FALSE)\n      )\n  ),\n\"\")","v":""},null,null,null,null,"EUR",null,null,null,{"$error":"#DIV/0!"},0,0,null,"","","","","","","","","","",null,null,null,null,null,null,null,null,null,null,null,null,null,null,null,null,null,"ZWO"]
[null,null,null,null,null,{"$f":"VLOOKUP(G402,'Data order'!Z:AA,2,0)","v":{"$error":"#N/A"}},null,null,null,null,null,null,null,null,{"$f":"VLOOKUP(N402,Tabel10[[korte omschrijving]:[MCC3_CODE]],2,0)","v":{"$error":"#N/A"}},{"$f":"VLOOKUP(N402,'Data order'!M:O,3,0)","v":{"$error":"#N/A"}},null,null,null,{"$f":"IFERROR(\n  IF(R402=\"Big&Tall\",\n      VLOOKUP(S402, 'Data order'!$AC$92:$AD$101, 2, FALSE),\n      IF(R402=\"Boordmaat\",\n          VLOOKUP(S402, 'Data order'!$AC$102:$AD$116, 2, FALSE),\n          VLOOKUP(S402, 'Data order'!$AC$2:$AD$91, 2, FALSE)\n      )\n  ),\n\"\")","v":""},null,{"$f":"SUM(U402:U407)","v":0},null,null,"EUR",null,null,null,{"$error":"#DIV/0!"},0,0,null,"","","","","","","","","","",null,null,null,null,null,null,null,null,null,null,null,null,null,null,null,null,null,"ZWO"]
[null,null,null,null,null,{"$f":"VLOOKUP(G403,'Data order'!Z:AA,2,0)","v":{"$error":"#N/A"}},null,null,null,null,null,null,null,null,{"$f":"VLOOKUP(N403,Tabel10[[korte omschrijving]:[MCC3_CODE]],2,0)","v":{"$error":"#N/A"}},{"$f":"VLOOKUP(N403,'Data order'!M:O,3,0)","v":{"$error":"#N/A"}},null,null,null,{"$f":"IFERROR(\n  IF(R403=\"Big&Tall\",\n      VLOOKUP(S403, 'Data order'!$AC$92:$AD$101, 2, FALSE),\n      IF(R403=\"Boordmaat\",\n          VLOOKUP(S403, 'Data order'!$AC$102:$AD$116, 2, FALSE),\n          VLOOKUP(S403, 'Data order'!$AC$2:$AD$91, 2, FALSE)\n      )\n  ),\n\"\")","v":""},null,null,null,null,"EUR",null,null,null,{"$error":"#DIV/0!"},0,0,null,"","","","","","","","","","",null,null,null,null,null,null,null,null,null,null,null,null,null,null,null,null,null,"ZWO"]
[null,null,null,null,null,{"$f":"VLOOKUP(G404,'Data order'!Z:AA,2,0)","v":{"$error":"#N/A"}},null,null,null,null,null,null,null,null,{"$f":"VLOOKUP(N404,Tabel10[[korte omschrijving]:[MCC3_CODE]],2,0)","v":{"$error":"#N/A"}},{"$f":"VLOOKUP(N404,'Data order'!M:O,3,0)","v":{"$error":"#N/A"}},null,null,null,{"$f":"IFERROR(\n  IF(R404=\"Big&Tall\",\n      VLOOKUP(S404, 'Data order'!$AC$92:$AD$101, 2, FALSE),\n      IF(R404=\"Boordmaat\",\n          VLOOKUP(S404, 'Data order'!$AC$102:$AD$116, 2, FALSE),\n          VLOOKUP(S404, 'Data order'!$AC$2:$AD$91, 2, FALSE)\n      )\n  ),\n\"\")","v":""},null,null,null,null,"EUR",null,null,null,{"$error":"#DIV/0!"},0,0,null,"","","","","","","","","","",null,null,null,null,null,null,null,null,null,null,null,null,null,null,null,null,null,"ZWO"]
[null,null,null,null,null,{"$f":"VLOOKUP(G405,'Data order'!Z:AA,2,0)","v":{"$error":"#N/A"}},null,null,null,null,null,null,null,null,{"$f":"VLOOKUP(N405,Tabel10[[korte omschrijving]:[MCC3_CODE]],2,0)","v":{"$error":"#N/A"}},{"$f":"VLOOKUP(N405,'Data order'!M:O,3,0)","v":{"$error":"#N/A"}},null,null,null,{"$f":"IFERROR(\n  IF(R405=\"Big&Tall\",\n      VLOOKUP(S405, 'Data order'!$AC$92:$AD$101, 2, FALSE),\n      IF(R405=\"Boordmaat\",\n          VLOOKUP(S405, 'Data order'!$AC$102:$AD$116, 2, FALSE),\n          VLOOKUP(S405, 'Data order'!$AC$2:$AD$91, 2, FALSE)\n      )\n  ),\n\"\")","v":""},null,null,null,null,"EUR",null,null,null,{"$error":"#DIV/0!"},0,0,null,"","","","","","","","","","",null,null,null,null,null,null,null,null,null,null,null,null,null,null,null,null,null,"ZWO"]
[null,null,null,null,null,{"$f":"VLOOKUP(G406,'Data order'!Z:AA,2,0)","v":{"$error":"#N/A"}},null,null,null,null,null,null,null,null,{"$f":"VLOOKUP(N406,Tabel10[[korte omschrijving]:[MCC3_CODE]],2,0)","v":{"$error":"#N/A"}},{"$f":"VLOOKUP(N406,'Data order'!M:O,3,0)","v":{"$error":"#N/A"}},null,null,null,{"$f":"IFERROR(\n  IF(R406=\"Big&Tall\",\n      VLOOKUP(S406, 'Data order'!$AC$92:$AD$101, 2, FALSE),\n      IF(R406=\"Boordmaat\",\n          VLOOKUP(S406, 'Data order'!$AC$102:$AD$116, 2, FALSE),\n          VLOOKUP(S406, 'Data order'!$AC$2:$AD$91, 2, FALSE)\n      )\n  ),\n\"\")","v":""},null,null,null,null,"EUR",null,null,null,{"$error":"#DIV/0!"},0,0,null,"","","","","","","","","","",null,null,null,null,null,null,null,null,null,null,null,null,null,null,null,null,null,"ZWO"]
[null,null,null,null,null,{"$f":"VLOOKUP(G407,'Data order'!Z:AA,2,0)","v":{"$error":"#N/A"}},null,null,null,null,null,null,null,null,{"$f":"VLOOKUP(N407,Tabel10[[korte omschrijving]:[MCC3_CODE]],2,0)","v":{"$error":"#N/A"}},{"$f":"VLOOKUP(N407,'Data order'!M:O,3,0)","v":{"$error":"#N/A"}},null,null,null,{"$f":"IFERROR(\n  IF(R407=\"Big&Tall\",\n      VLOOKUP(S407, 'Data order'!$AC$92:$AD$101, 2, FALSE),\n      IF(R407=\"Boordmaat\",\n          VLOOKUP(S407, 'Data order'!$AC$102:$AD$116, 2, FALSE),\n          VLOOKUP(S407, 'Data order'!$AC$2:$AD$91, 2, FALSE)\n      )\n  ),\n\"\")","v":""},null,null,null,null,"EUR",null,null,null,{"$error":"#DIV/0!"},0,0,null,"","","","","","","","","","",null,null,null,null,null,null,null,null,null,null,null,null,null,null,null,null,null,"ZWO"]
[null,null,null,null,null,{"$f":"VLOOKUP(G408,'Data order'!Z:AA,2,0)","v":{"$error":"#N/A"}},null,null,null,null,null,null,null,null,{"$f":"VLOOKUP(N408,Tabel10[[korte omschrijving]:[MCC3_CODE]],2,0)","v":{"$error":"#N/A"}},{"$f":"VLOOKUP(N408,'Data order'!M:O,3,0)","v":{"$error":"#N/A"}},null,null,null,{"$f":"IFERROR(\n  IF(R408=\"Big&Tall\",\n      VLOOKUP(S408, 'Data order'!$AC$92:$AD$101, 2, FALSE),\n      IF(R408=\"Boordmaat\",\n          VLOOKUP(S408, 'Data order'!$AC$102:$AD$116, 2, FALSE),\n          VLOOKUP(S408, 'Data order'!$AC$2:$AD$91, 2, FALSE)\n      )\n  ),\n\"\")","v":""},null,{"$f":"SUM(U408:U413)","v":0},null,null,"EUR",null,null,null,{"$error":"#DIV/0!"},0,0,null,"","","","","","","","","","",null,null,null,null,null,null,null,null,null,null,null,null,null,null,null,null,null,"ZWO"]
[null,null,null,null,null,{"$f":"VLOOKUP(G409,'Data order'!Z:AA,2,0)","v":{"$error":"#N/A"}},null,null,null,null,null,null,null,null,{"$f":"VLOOKUP(N409,Tabel10[[korte omschrijving]:[MCC3_CODE]],2,0)","v":{"$error":"#N/A"}},{"$f":"VLOOKUP(N409,'Data order'!M:O,3,0)","v":{"$error":"#N/A"}},null,null,null,{"$f":"IFERROR(\n  IF(R409=\"Big&Tall\",\n      VLOOKUP(S409, 'Data order'!$AC$92:$AD$101, 2, FALSE),\n      IF(R409=\"Boordmaat\",\n          VLOOKUP(S409, 'Data order'!$AC$102:$AD$116, 2, FALSE),\n          VLOOKUP(S409, 'Data order'!$AC$2:$AD$91, 2, FALSE)\n      )\n  ),\n\"\")","v":""},null,null,null,null,"EUR",null,null,null,{"$error":"#DIV/0!"},0,0,null,"","","","","","","","","","",null,null,null,null,null,null,null,null,null,null,null,null,null,null,null,null,null,"ZWO"]
[null,null,null,null,null,{"$f":"VLOOKUP(G410,'Data order'!Z:AA,2,0)","v":{"$error":"#N/A"}},null,null,null,null,null,null,null,null,{"$f":"VLOOKUP(N410,Tabel10[[korte omschrijving]:[MCC3_CODE]],2,0)","v":{"$error":"#N/A"}},{"$f":"VLOOKUP(N410,'Data order'!M:O,3,0)","v":{"$error":"#N/A"}},null,null,null,{"$f":"IFERROR(\n  IF(R410=\"Big&Tall\",\n      VLOOKUP(S410, 'Data order'!$AC$92:$AD$101, 2, FALSE),\n      IF(R410=\"Boordmaat\",\n          VLOOKUP(S410, 'Data order'!$AC$102:$AD$116, 2, FALSE),\n          VLOOKUP(S410, 'Data order'!$AC$2:$AD$91, 2, FALSE)\n      )\n  ),\n\"\")","v":""},null,null,null,null,"EUR",null,null,null,{"$error":"#DIV/0!"},0,0,null,"","","","","","","","","","",null,null,null,null,null,null,null,null,null,null,null,null,null,null,null,null,null,"ZWO"]
[null,null,null,null,null,{"$f":"VLOOKUP(G411,'Data order'!Z:AA,2,0)","v":{"$error":"#N/A"}},null,null,null,null,null,null,null,null,{"$f":"VLOOKUP(N411,Tabel10[[korte omschrijving]:[MCC3_CODE]],2,0)","v":{"$error":"#N/A"}},{"$f":"VLOOKUP(N411,'Data order'!M:O,3,0)","v":{"$error":"#N/A"}},null,null,null,{"$f":"IFERROR(\n  IF(R411=\"Big&Tall\",\n      VLOOKUP(S411, 'Data order'!$AC$92:$AD$101, 2, FALSE),\n      IF(R411=\"Boordmaat\",\n          VLOOKUP(S411, 'Data order'!$AC$102:$AD$116, 2, FALSE),\n          VLOOKUP(S411, 'Data order'!$AC$2:$AD$91, 2, FALSE)\n      )\n  ),\n\"\")","v":""},null,null,null,null,"EUR",null,null,null,{"$error":"#DIV/0!"},0,0,null,"","","","","","","","","","",null,null,null,null,null,null,null,null,null,null,null,null,null,null,null,null,null,"ZWO"]
[null,null,null,null,null,{"$f":"VLOOKUP(G412,'Data order'!Z:AA,2,0)","v":{"$error":"#N/A"}},null,null,null,null,null,null,null,null,{"$f":"VLOOKUP(N412,Tabel10[[korte omschrijving]:[MCC3_CODE]],2,0)","v":{"$error":"#N/A"}},{"$f":"VLOOKUP(N412,'Data order'!M:O,3,0)","v":{"$error":"#N/A"}},null,null,null,{"$f":"IFERROR(\n  IF(R412=\"Big&Tall\",\n      VLOOKUP(S412, 'Data order'!$AC$92:$AD$101, 2, FALSE),\n      IF(R412=\"Boordmaat\",\n          VLOOKUP(S412, 'Data order'!$AC$102:$AD$116, 2, FALSE),\n          VLOOKUP(S412, 'Data order'!$AC$2:$AD$91, 2, FALSE)\n      )\n  ),\n\"\")","v":""},null,null,null,null,"EUR",null,null,null,{"$error":"#DIV/0!"},0,0,null,"","","","","","","","","","",null,null,null,null,null,null,null,null,null,null,null,null,null,null,null,null,null,"ZWO"]
[null,null,null,null,null,{"$f":"VLOOKUP(G413,'Data order'!Z:AA,2,0)","v":{"$error":"#N/A"}},null,null,null,null,null,null,null,null,{"$f":"VLOOKUP(N413,Tabel10[[korte omschrijving]:[MCC3_CODE]],2,0)","v":{"$error":"#N/A"}},{"$f":"VLOOKUP(N413,'Data order'!M:O,3,0)","v":{"$error":"#N/A"}},null,null,null,{"$f":"IFERROR(\n  IF(R413=\"Big&Tall\",\n      VLOOKUP(S413, 'Data order'!$AC$92:$AD$101, 2, FALSE),\n      IF(R413=\"Boordmaat\",\n          VLOOKUP(S413, 'Data order'!$AC$102:$AD$116, 2, FALSE),\n          VLOOKUP(S413, 'Data order'!$AC$2:$AD$91, 2, FALSE)\n      )\n  ),\n\"\")","v":""},null,null,null,null,"EUR",null,null,null,{"$error":"#DIV/0!"},0,0,null,"","","","","","","","","","",null,null,null,null,null,null,null,null,null,null,null,null,null,null,null,null,null,"ZWO"]
[null,null,null,null,null,{"$f":"VLOOKUP(G414,'Data order'!Z:AA,2,0)","v":{"$error":"#N/A"}},null,null,null,null,null,null,null,null,{"$f":"VLOOKUP(N414,Tabel10[[korte omschrijving]:[MCC3_CODE]],2,0)","v":{"$error":"#N/A"}},{"$f":"VLOOKUP(N414,'Data order'!M:O,3,0)","v":{"$error":"#N/A"}},null,null,null,{"$f":"IFERROR(\n  IF(R414=\"Big&Tall\",\n      VLOOKUP(S414, 'Data order'!$AC$92:$AD$101, 2, FALSE),\n      IF(R414=\"Boordmaat\",\n          VLOOKUP(S414, 'Data order'!$AC$102:$AD$116, 2, FALSE),\n          VLOOKUP(S414, 'Data order'!$AC$2:$AD$91, 2, FALSE)\n      )\n  ),\n\"\")","v":""},null,{"$f":"SUM(U414:U419)","v":0},null,null,"EUR",null,null,null,{"$error":"#DIV/0!"},0,0,null,"","","","","","","","","","",null,null,null,null,null,null,null,null,null,null,null,null,null,null,null,null,null,"ZWO"]
[null,null,null,null,null,{"$f":"VLOOKUP(G415,'Data order'!Z:AA,2,0)","v":{"$error":"#N/A"}},null,null,null,null,null,null,null,null,{"$f":"VLOOKUP(N415,Tabel10[[korte omschrijving]:[MCC3_CODE]],2,0)","v":{"$error":"#N/A"}},{"$f":"VLOOKUP(N415,'Data order'!M:O,3,0)","v":{"$error":"#N/A"}},null,null,null,{"$f":"IFERROR(\n  IF(R415=\"Big&Tall\",\n      VLOOKUP(S415, 'Data order'!$AC$92:$AD$101, 2, FALSE),\n      IF(R415=\"Boordmaat\",\n          VLOOKUP(S415, 'Data order'!$AC$102:$AD$116, 2, FALSE),\n          VLOOKUP(S415, 'Data order'!$AC$2:$AD$91, 2, FALSE)\n      )\n  ),\n\"\")","v":""},null,null,null,null,"EUR",null,null,null,{"$error":"#DIV/0!"},0,0,null,"","","","","","","","","","",null,null,null,null,null,null,null,null,null,null,null,null,null,null,null,null,null,"ZWO"]
[null,null,null,null,null,{"$f":"VLOOKUP(G416,'Data order'!Z:AA,2,0)","v":{"$error":"#N/A"}},null,null,null,null,null,null,null,null,{"$f":"VLOOKUP(N416,Tabel10[[korte omschrijving]:[MCC3_CODE]],2,0)","v":{"$error":"#N/A"}},{"$f":"VLOOKUP(N416,'Data order'!M:O,3,0)","v":{"$error":"#N/A"}},null,null,null,{"$f":"IFERROR(\n  IF(R416=\"Big&Tall\",\n      VLOOKUP(S416, 'Data order'!$AC$92:$AD$101, 2, FALSE),\n      IF(R416=\"Boordmaat\",\n          VLOOKUP(S416, 'Data order'!$AC$102:$AD$116, 2, FALSE),\n          VLOOKUP(S416, 'Data order'!$AC$2:$AD$91, 2, FALSE)\n      )\n  ),\n\"\")","v":""},null,null,null,null,"EUR",null,null,null,{"$error":"#DIV/0!"},0,0,null,"","","","","","","","","","",null,null,null,null,null,null,null,null,null,null,null,null,null,null,null,null,null,"ZWO"]
[null,null,null,null,null,{"$f":"VLOOKUP(G417,'Data order'!Z:AA,2,0)","v":{"$error":"#N/A"}},null,null,null,null,null,null,null,null,{"$f":"VLOOKUP(N417,Tabel10[[korte omschrijving]:[MCC3_CODE]],2,0)","v":{"$error":"#N/A"}},{"$f":"VLOOKUP(N417,'Data order'!M:O,3,0)","v":{"$error":"#N/A"}},null,null,null,{"$f":"IFERROR(\n  IF(R417=\"Big&Tall\",\n      VLOOKUP(S417, 'Data order'!$AC$92:$AD$101, 2, FALSE),\n      IF(R417=\"Boordmaat\",\n          VLOOKUP(S417, 'Data order'!$AC$102:$AD$116, 2, FALSE),\n          VLOOKUP(S417, 'Data order'!$AC$2:$AD$91, 2, FALSE)\n      )\n  ),\n\"\")","v":""},null,null,null,null,"EUR",null,null,null,{"$error":"#DIV/0!"},0,0,null,"","","","","","","","","","",null,null,null,null,null,null,null,null,null,null,null,null,null,null,null,null,null,"ZWO"]
[null,null,null,null,null,{"$f":"VLOOKUP(G418,'Data order'!Z:AA,2,0)","v":{"$error":"#N/A"}},null,null,null,null,null,null,null,null,{"$f":"VLOOKUP(N418,Tabel10[[korte omschrijving]:[MCC3_CODE]],2,0)","v":{"$error":"#N/A"}},{"$f":"VLOOKUP(N418,'Data order'!M:O,3,0)","v":{"$error":"#N/A"}},null,null,null,{"$f":"IFERROR(\n  IF(R418=\"Big&Tall\",\n      VLOOKUP(S418, 'Data order'!$AC$92:$AD$101, 2, FALSE),\n      IF(R418=\"Boordmaat\",\n          VLOOKUP(S418, 'Data order'!$AC$102:$AD$116, 2, FALSE),\n          VLOOKUP(S418, 'Data order'!$AC$2:$AD$91, 2, FALSE)\n      )\n  ),\n\"\")","v":""},null,null,null,null,"EUR",null,null,null,{"$error":"#DIV/0!"},0,0,null,"","","","","","","","","","",null,null,null,null,null,null,null,null,null,null,null,null,null,null,null,null,null,"ZWO"]
[null,null,null,null,null,{"$f":"VLOOKUP(G419,'Data order'!Z:AA,2,0)","v":{"$error":"#N/A"}},null,null,null,null,null,null,null,null,{"$f":"VLOOKUP(N419,Tabel10[[korte omschrijving]:[MCC3_CODE]],2,0)","v":{"$error":"#N/A"}},{"$f":"VLOOKUP(N419,'Data order'!M:O,3,0)","v":{"$error":"#N/A"}},null,null,null,{"$f":"IFERROR(\n  IF(R419=\"Big&Tall\",\n      VLOOKUP(S419, 'Data order'!$AC$92:$AD$101, 2, FALSE),\n      IF(R419=\"Boordmaat\",\n          VLOOKUP(S419, 'Data order'!$AC$102:$AD$116, 2, FALSE),\n          VLOOKUP(S419, 'Data order'!$AC$2:$AD$91, 2, FALSE)\n      )\n  ),\n\"\")","v":""},null,null,null,null,"EUR",null,null,null,{"$error":"#DIV/0!"},0,0,null,"","","","","","","","","","",null,null,null,null,null,null,null,null,null,null,null,null,null,null,null,null,null,"ZWO"]
[null,null,null,null,null,{"$f":"VLOOKUP(G420,'Data order'!Z:AA,2,0)","v":{"$error":"#N/A"}},null,null,null,null,null,null,null,null,{"$f":"VLOOKUP(N420,Tabel10[[korte omschrijving]:[MCC3_CODE]],2,0)","v":{"$error":"#N/A"}},{"$f":"VLOOKUP(N420,'Data order'!M:O,3,0)","v":{"$error":"#N/A"}},null,null,null,{"$f":"IFERROR(\n  IF(R420=\"Big&Tall\",\n      VLOOKUP(S420, 'Data order'!$AC$92:$AD$101, 2, FALSE),\n      IF(R420=\"Boordmaat\",\n          VLOOKUP(S420, 'Data order'!$AC$102:$AD$116, 2, FALSE),\n          VLOOKUP(S420, 'Data order'!$AC$2:$AD$91, 2, FALSE)\n      )\n  ),\n\"\")","v":""},null,{"$f":"SUM(U420:U425)","v":0},null,null,"EUR",null,null,null,{"$error":"#DIV/0!"},0,0,null,"","","","","","","","","","",null,null,null,null,null,null,null,null,null,null,null,null,null,null,null,null,null,"ZWO"]
[null,null,null,null,null,{"$f":"VLOOKUP(G421,'Data order'!Z:AA,2,0)","v":{"$error":"#N/A"}},null,null,null,null,null,null,null,null,{"$f":"VLOOKUP(N421,Tabel10[[korte omschrijving]:[MCC3_CODE]],2,0)","v":{"$error":"#N/A"}},{"$f":"VLOOKUP(N421,'Data order'!M:O,3,0)","v":{"$error":"#N/A"}},null,null,null,{"$f":"IFERROR(\n  IF(R421=\"Big&Tall\",\n      VLOOKUP(S421, 'Data order'!$AC$92:$AD$101, 2, FALSE),\n      IF(R421=\"Boordmaat\",\n          VLOOKUP(S421, 'Data order'!$AC$102:$AD$116, 2, FALSE),\n          VLOOKUP(S421, 'Data order'!$AC$2:$AD$91, 2, FALSE)\n      )\n  ),\n\"\")","v":""},null,null,null,null,"EUR",null,null,null,{"$error":"#DIV/0!"},0,0,null,"","","","","","","","","","",null,null,null,null,null,null,null,null,null,null,null,null,null,null,null,null,null,"ZWO"]
[null,null,null,null,null,{"$f":"VLOOKUP(G422,'Data order'!Z:AA,2,0)","v":{"$error":"#N/A"}},null,null,null,null,null,null,null,null,{"$f":"VLOOKUP(N422,Tabel10[[korte omschrijving]:[MCC3_CODE]],2,0)","v":{"$error":"#N/A"}},{"$f":"VLOOKUP(N422,'Data order'!M:O,3,0)","v":{"$error":"#N/A"}},null,null,null,{"$f":"IFERROR(\n  IF(R422=\"Big&Tall\",\n      VLOOKUP(S422, 'Data order'!$AC$92:$AD$101, 2, FALSE),\n      IF(R422=\"Boordmaat\",\n          VLOOKUP(S422, 'Data order'!$AC$102:$AD$116, 2, FALSE),\n          VLOOKUP(S422, 'Data order'!$AC$2:$AD$91, 2, FALSE)\n      )\n  ),\n\"\")","v":""},null,null,null,null,"EUR",null,null,null,{"$error":"#DIV/0!"},0,0,null,"","","","","","","","","","",null,null,null,null,null,null,null,null,null,null,null,null,null,null,null,null,null,"ZWO"]
[null,null,null,null,null,{"$f":"VLOOKUP(G423,'Data order'!Z:AA,2,0)","v":{"$error":"#N/A"}},null,null,null,null,null,null,null,null,{"$f":"VLOOKUP(N423,Tabel10[[korte omschrijving]:[MCC3_CODE]],2,0)","v":{"$error":"#N/A"}},{"$f":"VLOOKUP(N423,'Data order'!M:O,3,0)","v":{"$error":"#N/A"}},null,null,null,{"$f":"IFERROR(\n  IF(R423=\"Big&Tall\",\n      VLOOKUP(S423, 'Data order'!$AC$92:$AD$101, 2, FALSE),\n      IF(R423=\"Boordmaat\",\n          VLOOKUP(S423, 'Data order'!$AC$102:$AD$116, 2, FALSE),\n          VLOOKUP(S423, 'Data order'!$AC$2:$AD$91, 2, FALSE)\n      )\n  ),\n\"\")","v":""},null,null,null,null,"EUR",null,null,null,{"$error":"#DIV/0!"},0,0,null,"","","","","","","","","","",null,null,null,null,null,null,null,null,null,null,null,null,null,null,null,null,null,"ZWO"]
[null,null,null,null,null,{"$f":"VLOOKUP(G424,'Data order'!Z:AA,2,0)","v":{"$error":"#N/A"}},null,null,null,null,null,null,null,null,{"$f":"VLOOKUP(N424,Tabel10[[korte omschrijving]:[MCC3_CODE]],2,0)","v":{"$error":"#N/A"}},{"$f":"VLOOKUP(N424,'Data order'!M:O,3,0)","v":{"$error":"#N/A"}},null,null,null,{"$f":"IFERROR(\n  IF(R424=\"Big&Tall\",\n      VLOOKUP(S424, 'Data order'!$AC$92:$AD$101, 2, FALSE),\n      IF(R424=\"Boordmaat\",\n          VLOOKUP(S424, 'Data order'!$AC$102:$AD$116, 2, FALSE),\n          VLOOKUP(S424, 'Data order'!$AC$2:$AD$91, 2, FALSE)\n      )\n  ),\n\"\")","v":""},null,null,null,null,"EUR",null,null,null,{"$error":"#DIV/0!"},0,0,null,"","","","","","","","","","",null,null,null,null,null,null,null,null,null,null,null,null,null,null,null,null,null,"ZWO"]
[null,null,null,null,null,{"$f":"VLOOKUP(G425,'Data order'!Z:AA,2,0)","v":{"$error":"#N/A"}},null,null,null,null,null,null,null,null,{"$f":"VLOOKUP(N425,Tabel10[[korte omschrijving]:[MCC3_CODE]],2,0)","v":{"$error":"#N/A"}},{"$f":"VLOOKUP(N425,'Data order'!M:O,3,0)","v":{"$error":"#N/A"}},null,null,null,{"$f":"IFERROR(\n  IF(R425=\"Big&Tall\",\n      VLOOKUP(S425, 'Data order'!$AC$92:$AD$101, 2, FALSE),\n      IF(R425=\"Boordmaat\",\n          VLOOKUP(S425, 'Data order'!$AC$102:$AD$116, 2, FALSE),\n          VLOOKUP(S425, 'Data order'!$AC$2:$AD$91, 2, FALSE)\n      )\n  ),\n\"\")","v":""},null,null,null,null,"EUR",null,null,null,{"$error":"#DIV/0!"},0,0,null,"","","","","","","","","","",null,null,null,null,null,null,null,null,null,null,null,null,null,null,null,null,null,"ZWO"]
[null,null,null,null,null,{"$f":"VLOOKUP(G426,'Data order'!Z:AA,2,0)","v":{"$error":"#N/A"}},null,null,null,null,null,null,null,null,{"$f":"VLOOKUP(N426,Tabel10[[korte omschrijving]:[MCC3_CODE]],2,0)","v":{"$error":"#N/A"}},{"$f":"VLOOKUP(N426,'Data order'!M:O,3,0)","v":{"$error":"#N/A"}},null,null,null,{"$f":"IFERROR(\n  IF(R426=\"Big&Tall\",\n      VLOOKUP(S426, 'Data order'!$AC$92:$AD$101, 2, FALSE),\n      IF(R426=\"Boordmaat\",\n          VLOOKUP(S426, 'Data order'!$AC$102:$AD$116, 2, FALSE),\n          VLOOKUP(S426, 'Data order'!$AC$2:$AD$91, 2, FALSE)\n      )\n  ),\n\"\")","v":""},null,{"$f":"SUM(U426:U431)","v":0},null,null,"EUR",null,null,null,{"$error":"#DIV/0!"},0,0,null,"","","","","","","","","","",null,null,null,null,null,null,null,null,null,null,null,null,null,null,null,null,null,"ZWO"]
[null,null,null,null,null,{"$f":"VLOOKUP(G427,'Data order'!Z:AA,2,0)","v":{"$error":"#N/A"}},null,null,null,null,null,null,null,null,{"$f":"VLOOKUP(N427,Tabel10[[korte omschrijving]:[MCC3_CODE]],2,0)","v":{"$error":"#N/A"}},{"$f":"VLOOKUP(N427,'Data order'!M:O,3,0)","v":{"$error":"#N/A"}},null,null,null,{"$f":"IFERROR(\n  IF(R427=\"Big&Tall\",\n      VLOOKUP(S427, 'Data order'!$AC$92:$AD$101, 2, FALSE),\n      IF(R427=\"Boordmaat\",\n          VLOOKUP(S427, 'Data order'!$AC$102:$AD$116, 2, FALSE),\n          VLOOKUP(S427, 'Data order'!$AC$2:$AD$91, 2, FALSE)\n      )\n  ),\n\"\")","v":""},null,null,null,null,"EUR",null,null,null,{"$error":"#DIV/0!"},0,0,null,"","","","","","","","","","",null,null,null,null,null,null,null,null,null,null,null,null,null,null,null,null,null,"ZWO"]
[null,null,null,null,null,{"$f":"VLOOKUP(G428,'Data order'!Z:AA,2,0)","v":{"$error":"#N/A"}},null,null,null,null,null,null,null,null,{"$f":"VLOOKUP(N428,Tabel10[[korte omschrijving]:[MCC3_CODE]],2,0)","v":{"$error":"#N/A"}},{"$f":"VLOOKUP(N428,'Data order'!M:O,3,0)","v":{"$error":"#N/A"}},null,null,null,{"$f":"IFERROR(\n  IF(R428=\"Big&Tall\",\n      VLOOKUP(S428, 'Data order'!$AC$92:$AD$101, 2, FALSE),\n      IF(R428=\"Boordmaat\",\n          VLOOKUP(S428, 'Data order'!$AC$102:$AD$116, 2, FALSE),\n          VLOOKUP(S428, 'Data order'!$AC$2:$AD$91, 2, FALSE)\n      )\n  ),\n\"\")","v":""},null,null,null,null,"EUR",null,null,null,{"$error":"#DIV/0!"},0,0,null,"","","","","","","","","","",null,null,null,null,null,null,null,null,null,null,null,null,null,null,null,null,null,"ZWO"]
[null,null,null,null,null,{"$f":"VLOOKUP(G429,'Data order'!Z:AA,2,0)","v":{"$error":"#N/A"}},null,null,null,null,null,null,null,null,{"$f":"VLOOKUP(N429,Tabel10[[korte omschrijving]:[MCC3_CODE]],2,0)","v":{"$error":"#N/A"}},{"$f":"VLOOKUP(N429,'Data order'!M:O,3,0)","v":{"$error":"#N/A"}},null,null,null,{"$f":"IFERROR(\n  IF(R429=\"Big&Tall\",\n      VLOOKUP(S429, 'Data order'!$AC$92:$AD$101, 2, FALSE),\n      IF(R429=\"Boordmaat\",\n          VLOOKUP(S429, 'Data order'!$AC$102:$AD$116, 2, FALSE),\n          VLOOKUP(S429, 'Data order'!$AC$2:$AD$91, 2, FALSE)\n      )\n  ),\n\"\")","v":""},null,null,null,null,"EUR",null,null,null,{"$error":"#DIV/0!"},0,0,null,"","","","","","","","","","",null,null,null,null,null,null,null,null,null,null,null,null,null,null,null,null,null,"ZWO"]
[null,null,null,null,null,{"$f":"VLOOKUP(G430,'Data order'!Z:AA,2,0)","v":{"$error":"#N/A"}},null,null,null,null,null,null,null,null,{"$f":"VLOOKUP(N430,Tabel10[[korte omschrijving]:[MCC3_CODE]],2,0)","v":{"$error":"#N/A"}},{"$f":"VLOOKUP(N430,'Data order'!M:O,3,0)","v":{"$error":"#N/A"}},null,null,null,{"$f":"IFERROR(\n  IF(R430=\"Big&Tall\",\n      VLOOKUP(S430, 'Data order'!$AC$92:$AD$101, 2, FALSE),\n      IF(R430=\"Boordmaat\",\n          VLOOKUP(S430, 'Data order'!$AC$102:$AD$116, 2, FALSE),\n          VLOOKUP(S430, 'Data order'!$AC$2:$AD$91, 2, FALSE)\n      )\n  ),\n\"\")","v":""},null,null,null,null,"EUR",null,null,null,{"$error":"#DIV/0!"},0,0,null,"","","","","","","","","","",null,null,null,null,null,null,null,null,null,null,null,null,null,null,null,null,null,"ZWO"]
[null,null,null,null,null,{"$f":"VLOOKUP(G431,'Data order'!Z:AA,2,0)","v":{"$error":"#N/A"}},null,null,null,null,null,null,null,null,{"$f":"VLOOKUP(N431,Tabel10[[korte omschrijving]:[MCC3_CODE]],2,0)","v":{"$error":"#N/A"}},{"$f":"VLOOKUP(N431,'Data order'!M:O,3,0)","v":{"$error":"#N/A"}},null,null,null,{"$f":"IFERROR(\n  IF(R431=\"Big&Tall\",\n      VLOOKUP(S431, 'Data order'!$AC$92:$AD$101, 2, FALSE),\n      IF(R431=\"Boordmaat\",\n          VLOOKUP(S431, 'Data order'!$AC$102:$AD$116, 2, FALSE),\n          VLOOKUP(S431, 'Data order'!$AC$2:$AD$91, 2, FALSE)\n      )\n  ),\n\"\")","v":""},null,null,null,null,"EUR",null,null,null,{"$error":"#DIV/0!"},0,0,null,"","","","","","","","","","",null,null,null,null,null,null,null,null,null,null,null,null,null,null,null,null,null,"ZWO"]
[null,null,null,null,null,{"$f":"VLOOKUP(G432,'Data order'!Z:AA,2,0)","v":{"$error":"#N/A"}},null,null,null,null,null,null,null,null,{"$f":"VLOOKUP(N432,Tabel10[[korte omschrijving]:[MCC3_CODE]],2,0)","v":{"$error":"#N/A"}},{"$f":"VLOOKUP(N432,'Data order'!M:O,3,0)","v":{"$error":"#N/A"}},null,null,null,{"$f":"IFERROR(\n  IF(R432=\"Big&Tall\",\n      VLOOKUP(S432, 'Data order'!$AC$92:$AD$101, 2, FALSE),\n      IF(R432=\"Boordmaat\",\n          VLOOKUP(S432, 'Data order'!$AC$102:$AD$116, 2, FALSE),\n          VLOOKUP(S432, 'Data order'!$AC$2:$AD$91, 2, FALSE)\n      )\n  ),\n\"\")","v":""},null,{"$f":"SUM(U432:U437)","v":0},null,null,"EUR",null,null,null,{"$error":"#DIV/0!"},0,0,null,"","","","","","","","","","",null,null,null,null,null,null,null,null,null,null,null,null,null,null,null,null,null,"ZWO"]
[null,null,null,null,null,{"$f":"VLOOKUP(G433,'Data order'!Z:AA,2,0)","v":{"$error":"#N/A"}},null,null,null,null,null,null,null,null,{"$f":"VLOOKUP(N433,Tabel10[[korte omschrijving]:[MCC3_CODE]],2,0)","v":{"$error":"#N/A"}},{"$f":"VLOOKUP(N433,'Data order'!M:O,3,0)","v":{"$error":"#N/A"}},null,null,null,{"$f":"IFERROR(\n  IF(R433=\"Big&Tall\",\n      VLOOKUP(S433, 'Data order'!$AC$92:$AD$101, 2, FALSE),\n      IF(R433=\"Boordmaat\",\n          VLOOKUP(S433, 'Data order'!$AC$102:$AD$116, 2, FALSE),\n          VLOOKUP(S433, 'Data order'!$AC$2:$AD$91, 2, FALSE)\n      )\n  ),\n\"\")","v":""},null,null,null,null,"EUR",null,null,null,{"$error":"#DIV/0!"},0,0,null,"","","","","","","","","","",null,null,null,null,null,null,null,null,null,null,null,null,null,null,null,null,null,"ZWO"]
[null,null,null,null,null,{"$f":"VLOOKUP(G434,'Data order'!Z:AA,2,0)","v":{"$error":"#N/A"}},null,null,null,null,null,null,null,null,{"$f":"VLOOKUP(N434,Tabel10[[korte omschrijving]:[MCC3_CODE]],2,0)","v":{"$error":"#N/A"}},{"$f":"VLOOKUP(N434,'Data order'!M:O,3,0)","v":{"$error":"#N/A"}},null,null,null,{"$f":"IFERROR(\n  IF(R434=\"Big&Tall\",\n      VLOOKUP(S434, 'Data order'!$AC$92:$AD$101, 2, FALSE),\n      IF(R434=\"Boordmaat\",\n          VLOOKUP(S434, 'Data order'!$AC$102:$AD$116, 2, FALSE),\n          VLOOKUP(S434, 'Data order'!$AC$2:$AD$91, 2, FALSE)\n      )\n  ),\n\"\")","v":""},null,null,null,null,"EUR",null,null,null,{"$error":"#DIV/0!"},0,0,null,"","","","","","","","","","",null,null,null,null,null,null,null,null,null,null,null,null,null,null,null,null,null,"ZWO"]
[null,null,null,null,null,{"$f":"VLOOKUP(G435,'Data order'!Z:AA,2,0)","v":{"$error":"#N/A"}},null,null,null,null,null,null,null,null,{"$f":"VLOOKUP(N435,Tabel10[[korte omschrijving]:[MCC3_CODE]],2,0)","v":{"$error":"#N/A"}},{"$f":"VLOOKUP(N435,'Data order'!M:O,3,0)","v":{"$error":"#N/A"}},null,null,null,{"$f":"IFERROR(\n  IF(R435=\"Big&Tall\",\n      VLOOKUP(S435, 'Data order'!$AC$92:$AD$101, 2, FALSE),\n      IF(R435=\"Boordmaat\",\n          VLOOKUP(S435, 'Data order'!$AC$102:$AD$116, 2, FALSE),\n          VLOOKUP(S435, 'Data order'!$AC$2:$AD$91, 2, FALSE)\n      )\n  ),\n\"\")","v":""},null,null,null,null,"EUR",null,null,null,{"$error":"#DIV/0!"},0,0,null,"","","","","","","","","","",null,null,null,null,null,null,null,null,null,null,null,null,null,null,null,null,null,"ZWO"]
[null,null,null,null,null,{"$f":"VLOOKUP(G436,'Data order'!Z:AA,2,0)","v":{"$error":"#N/A"}},null,null,null,null,null,null,null,null,{"$f":"VLOOKUP(N436,Tabel10[[korte omschrijving]:[MCC3_CODE]],2,0)","v":{"$error":"#N/A"}},{"$f":"VLOOKUP(N436,'Data order'!M:O,3,0)","v":{"$error":"#N/A"}},null,null,null,{"$f":"IFERROR(\n  IF(R436=\"Big&Tall\",\n      VLOOKUP(S436, 'Data order'!$AC$92:$AD$101, 2, FALSE),\n      IF(R436=\"Boordmaat\",\n          VLOOKUP(S436, 'Data order'!$AC$102:$AD$116, 2, FALSE),\n          VLOOKUP(S436, 'Data order'!$AC$2:$AD$91, 2, FALSE)\n      )\n  ),\n\"\")","v":""},null,null,null,null,"EUR",null,null,null,{"$error":"#DIV/0!"},0,0,null,"","","","","","","","","","",null,null,null,null,null,null,null,null,null,null,null,null,null,null,null,null,null,"ZWO"]
[null,null,null,null,null,{"$f":"VLOOKUP(G437,'Data order'!Z:AA,2,0)","v":{"$error":"#N/A"}},null,null,null,null,null,null,null,null,{"$f":"VLOOKUP(N437,Tabel10[[korte omschrijving]:[MCC3_CODE]],2,0)","v":{"$error":"#N/A"}},{"$f":"VLOOKUP(N437,'Data order'!M:O,3,0)","v":{"$error":"#N/A"}},null,null,null,{"$f":"IFERROR(\n  IF(R437=\"Big&Tall\",\n      VLOOKUP(S437, 'Data order'!$AC$92:$AD$101, 2, FALSE),\n      IF(R437=\"Boordmaat\",\n          VLOOKUP(S437, 'Data order'!$AC$102:$AD$116, 2, FALSE),\n          VLOOKUP(S437, 'Data order'!$AC$2:$AD$91, 2, FALSE)\n      )\n  ),\n\"\")","v":""},null,null,null,null,"EUR",null,null,null,{"$error":"#DIV/0!"},0,0,null,"","","","","","","","","","",null,null,null,null,null,null,null,null,null,null,null,null,null,null,null,null,null,"ZWO"]
[null,null,null,null,null,{"$f":"VLOOKUP(G438,'Data order'!Z:AA,2,0)","v":{"$error":"#N/A"}},null,null,null,null,null,null,null,null,{"$f":"VLOOKUP(N438,Tabel10[[korte omschrijving]:[MCC3_CODE]],2,0)","v":{"$error":"#N/A"}},{"$f":"VLOOKUP(N438,'Data order'!M:O,3,0)","v":{"$error":"#N/A"}},null,null,null,{"$f":"IFERROR(\n  IF(R438=\"Big&Tall\",\n      VLOOKUP(S438, 'Data order'!$AC$92:$AD$101, 2, FALSE),\n      IF(R438=\"Boordmaat\",\n          VLOOKUP(S438, 'Data order'!$AC$102:$AD$116, 2, FALSE),\n          VLOOKUP(S438, 'Data order'!$AC$2:$AD$91, 2, FALSE)\n      )\n  ),\n\"\")","v":""},null,{"$f":"SUM(U438:U443)","v":0},null,null,"EUR",null,null,null,{"$error":"#DIV/0!"},0,0,null,"","","","","","","","","","",null,null,null,null,null,null,null,null,null,null,null,null,null,null,null,null,null,"ZWO"]
[null,null,null,null,null,{"$f":"VLOOKUP(G439,'Data order'!Z:AA,2,0)","v":{"$error":"#N/A"}},null,null,null,null,null,null,null,null,{"$f":"VLOOKUP(N439,Tabel10[[korte omschrijving]:[MCC3_CODE]],2,0)","v":{"$error":"#N/A"}},{"$f":"VLOOKUP(N439,'Data order'!M:O,3,0)","v":{"$error":"#N/A"}},null,null,null,{"$f":"IFERROR(\n  IF(R439=\"Big&Tall\",\n      VLOOKUP(S439, 'Data order'!$AC$92:$AD$101, 2, FALSE),\n      IF(R439=\"Boordmaat\",\n          VLOOKUP(S439, 'Data order'!$AC$102:$AD$116, 2, FALSE),\n          VLOOKUP(S439, 'Data order'!$AC$2:$AD$91, 2, FALSE)\n      )\n  ),\n\"\")","v":""},null,null,null,null,"EUR",null,null,null,{"$error":"#DIV/0!"},0,0,null,"","","","","","","","","","",null,null,null,null,null,null,null,null,null,null,null,null,null,null,null,null,null,"ZWO"]
[null,null,null,null,null,{"$f":"VLOOKUP(G440,'Data order'!Z:AA,2,0)","v":{"$error":"#N/A"}},null,null,null,null,null,null,null,null,{"$f":"VLOOKUP(N440,Tabel10[[korte omschrijving]:[MCC3_CODE]],2,0)","v":{"$error":"#N/A"}},{"$f":"VLOOKUP(N440,'Data order'!M:O,3,0)","v":{"$error":"#N/A"}},null,null,null,{"$f":"IFERROR(\n  IF(R440=\"Big&Tall\",\n      VLOOKUP(S440, 'Data order'!$AC$92:$AD$101, 2, FALSE),\n      IF(R440=\"Boordmaat\",\n          VLOOKUP(S440, 'Data order'!$AC$102:$AD$116, 2, FALSE),\n          VLOOKUP(S440, 'Data order'!$AC$2:$AD$91, 2, FALSE)\n      )\n  ),\n\"\")","v":""},null,null,null,null,"EUR",null,null,null,{"$error":"#DIV/0!"},0,0,null,"","","","","","","","","","",null,null,null,null,null,null,null,null,null,null,null,null,null,null,null,null,null,"ZWO"]
[null,null,null,null,null,{"$f":"VLOOKUP(G441,'Data order'!Z:AA,2,0)","v":{"$error":"#N/A"}},null,null,null,null,null,null,null,null,{"$f":"VLOOKUP(N441,Tabel10[[korte omschrijving]:[MCC3_CODE]],2,0)","v":{"$error":"#N/A"}},{"$f":"VLOOKUP(N441,'Data order'!M:O,3,0)","v":{"$error":"#N/A"}},null,null,null,{"$f":"IFERROR(\n  IF(R441=\"Big&Tall\",\n      VLOOKUP(S441, 'Data order'!$AC$92:$AD$101, 2, FALSE),\n      IF(R441=\"Boordmaat\",\n          VLOOKUP(S441, 'Data order'!$AC$102:$AD$116, 2, FALSE),\n          VLOOKUP(S441, 'Data order'!$AC$2:$AD$91, 2, FALSE)\n      )\n  ),\n\"\")","v":""},null,null,null,null,"EUR",null,null,null,{"$error":"#DIV/0!"},0,0,null,"","","","","","","","","","",null,null,null,null,null,null,null,null,null,null,null,null,null,null,null,null,null,"ZWO"]
[null,null,null,null,null,{"$f":"VLOOKUP(G442,'Data order'!Z:AA,2,0)","v":{"$error":"#N/A"}},null,null,null,null,null,null,null,null,{"$f":"VLOOKUP(N442,Tabel10[[korte omschrijving]:[MCC3_CODE]],2,0)","v":{"$error":"#N/A"}},{"$f":"VLOOKUP(N442,'Data order'!M:O,3,0)","v":{"$error":"#N/A"}},null,null,null,{"$f":"IFERROR(\n  IF(R442=\"Big&Tall\",\n      VLOOKUP(S442, 'Data order'!$AC$92:$AD$101, 2, FALSE),\n      IF(R442=\"Boordmaat\",\n          VLOOKUP(S442, 'Data order'!$AC$102:$AD$116, 2, FALSE),\n          VLOOKUP(S442, 'Data order'!$AC$2:$AD$91, 2, FALSE)\n      )\n  ),\n\"\")","v":""},null,null,null,null,"EUR",null,null,null,{"$error":"#DIV/0!"},0,0,null,"","","","","","","","","","",null,null,null,null,null,null,null,null,null,null,null,null,null,null,null,null,null,"ZWO"]
[null,null,null,null,null,{"$f":"VLOOKUP(G443,'Data order'!Z:AA,2,0)","v":{"$error":"#N/A"}},null,null,null,null,null,null,null,null,{"$f":"VLOOKUP(N443,Tabel10[[korte omschrijving]:[MCC3_CODE]],2,0)","v":{"$error":"#N/A"}},{"$f":"VLOOKUP(N443,'Data order'!M:O,3,0)","v":{"$error":"#N/A"}},null,null,null,{"$f":"IFERROR(\n  IF(R443=\"Big&Tall\",\n      VLOOKUP(S443, 'Data order'!$AC$92:$AD$101, 2, FALSE),\n      IF(R443=\"Boordmaat\",\n          VLOOKUP(S443, 'Data order'!$AC$102:$AD$116, 2, FALSE),\n          VLOOKUP(S443, 'Data order'!$AC$2:$AD$91, 2, FALSE)\n      )\n  ),\n\"\")","v":""},null,null,null,null,"EUR",null,null,null,{"$error":"#DIV/0!"},0,0,null,"","","","","","","","","","",null,null,null,null,null,null,null,null,null,null,null,null,null,null,null,null,null,"ZWO"]
[null,null,null,null,null,{"$f":"VLOOKUP(G444,'Data order'!Z:AA,2,0)","v":{"$error":"#N/A"}},null,null,null,null,null,null,null,null,{"$f":"VLOOKUP(N444,Tabel10[[korte omschrijving]:[MCC3_CODE]],2,0)","v":{"$error":"#N/A"}},{"$f":"VLOOKUP(N444,'Data order'!M:O,3,0)","v":{"$error":"#N/A"}},null,null,null,{"$f":"IFERROR(\n  IF(R444=\"Big&Tall\",\n      VLOOKUP(S444, 'Data order'!$AC$92:$AD$101, 2, FALSE),\n      IF(R444=\"Boordmaat\",\n          VLOOKUP(S444, 'Data order'!$AC$102:$AD$116, 2, FALSE),\n          VLOOKUP(S444, 'Data order'!$AC$2:$AD$91, 2, FALSE)\n      )\n  ),\n\"\")","v":""},null,{"$f":"SUM(U444:U449)","v":0},null,null,"EUR",null,null,null,{"$error":"#DIV/0!"},0,0,null,"","","","","","","","","","",null,null,null,null,null,null,null,null,null,null,null,null,null,null,null,null,null,"ZWO"]
[null,null,null,null,null,{"$f":"VLOOKUP(G445,'Data order'!Z:AA,2,0)","v":{"$error":"#N/A"}},null,null,null,null,null,null,null,null,{"$f":"VLOOKUP(N445,Tabel10[[korte omschrijving]:[MCC3_CODE]],2,0)","v":{"$error":"#N/A"}},{"$f":"VLOOKUP(N445,'Data order'!M:O,3,0)","v":{"$error":"#N/A"}},null,null,null,{"$f":"IFERROR(\n  IF(R445=\"Big&Tall\",\n      VLOOKUP(S445, 'Data order'!$AC$92:$AD$101, 2, FALSE),\n      IF(R445=\"Boordmaat\",\n          VLOOKUP(S445, 'Data order'!$AC$102:$AD$116, 2, FALSE),\n          VLOOKUP(S445, 'Data order'!$AC$2:$AD$91, 2, FALSE)\n      )\n  ),\n\"\")","v":""},null,null,null,null,"EUR",null,null,null,{"$error":"#DIV/0!"},0,0,null,"","","","","","","","","","",null,null,null,null,null,null,null,null,null,null,null,null,null,null,null,null,null,"ZWO"]
[null,null,null,null,null,{"$f":"VLOOKUP(G446,'Data order'!Z:AA,2,0)","v":{"$error":"#N/A"}},null,null,null,null,null,null,null,null,{"$f":"VLOOKUP(N446,Tabel10[[korte omschrijving]:[MCC3_CODE]],2,0)","v":{"$error":"#N/A"}},{"$f":"VLOOKUP(N446,'Data order'!M:O,3,0)","v":{"$error":"#N/A"}},null,null,null,{"$f":"IFERROR(\n  IF(R446=\"Big&Tall\",\n      VLOOKUP(S446, 'Data order'!$AC$92:$AD$101, 2, FALSE),\n      IF(R446=\"Boordmaat\",\n          VLOOKUP(S446, 'Data order'!$AC$102:$AD$116, 2, FALSE),\n          VLOOKUP(S446, 'Data order'!$AC$2:$AD$91, 2, FALSE)\n      )\n  ),\n\"\")","v":""},null,null,null,null,"EUR",null,null,null,{"$error":"#DIV/0!"},0,0,null,"","","","","","","","","","",null,null,null,null,null,null,null,null,null,null,null,null,null,null,null,null,null,"ZWO"]
[null,null,null,null,null,{"$f":"VLOOKUP(G447,'Data order'!Z:AA,2,0)","v":{"$error":"#N/A"}},null,null,null,null,null,null,null,null,{"$f":"VLOOKUP(N447,Tabel10[[korte omschrijving]:[MCC3_CODE]],2,0)","v":{"$error":"#N/A"}},{"$f":"VLOOKUP(N447,'Data order'!M:O,3,0)","v":{"$error":"#N/A"}},null,null,null,{"$f":"IFERROR(\n  IF(R447=\"Big&Tall\",\n      VLOOKUP(S447, 'Data order'!$AC$92:$AD$101, 2, FALSE),\n      IF(R447=\"Boordmaat\",\n          VLOOKUP(S447, 'Data order'!$AC$102:$AD$116, 2, FALSE),\n          VLOOKUP(S447, 'Data order'!$AC$2:$AD$91, 2, FALSE)\n      )\n  ),\n\"\")","v":""},null,null,null,null,"EUR",null,null,null,{"$error":"#DIV/0!"},0,0,null,"","","","","","","","","","",null,null,null,null,null,null,null,null,null,null,null,null,null,null,null,null,null,"ZWO"]
[null,null,null,null,null,{"$f":"VLOOKUP(G448,'Data order'!Z:AA,2,0)","v":{"$error":"#N/A"}},null,null,null,null,null,null,null,null,{"$f":"VLOOKUP(N448,Tabel10[[korte omschrijving]:[MCC3_CODE]],2,0)","v":{"$error":"#N/A"}},{"$f":"VLOOKUP(N448,'Data order'!M:O,3,0)","v":{"$error":"#N/A"}},null,null,null,{"$f":"IFERROR(\n  IF(R448=\"Big&Tall\",\n      VLOOKUP(S448, 'Data order'!$AC$92:$AD$101, 2, FALSE),\n      IF(R448=\"Boordmaat\",\n          VLOOKUP(S448, 'Data order'!$AC$102:$AD$116, 2, FALSE),\n          VLOOKUP(S448, 'Data order'!$AC$2:$AD$91, 2, FALSE)\n      )\n  ),\n\"\")","v":""},null,null,null,null,"EUR",null,null,null,{"$error":"#DIV/0!"},0,0,null,"","","","","","","","","","",null,null,null,null,null,null,null,null,null,null,null,null,null,null,null,null,null,"ZWO"]
[null,null,null,null,null,{"$f":"VLOOKUP(G449,'Data order'!Z:AA,2,0)","v":{"$error":"#N/A"}},null,null,null,null,null,null,null,null,{"$f":"VLOOKUP(N449,Tabel10[[korte omschrijving]:[MCC3_CODE]],2,0)","v":{"$error":"#N/A"}},{"$f":"VLOOKUP(N449,'Data order'!M:O,3,0)","v":{"$error":"#N/A"}},null,null,null,{"$f":"IFERROR(\n  IF(R449=\"Big&Tall\",\n      VLOOKUP(S449, 'Data order'!$AC$92:$AD$101, 2, FALSE),\n      IF(R449=\"Boordmaat\",\n          VLOOKUP(S449, 'Data order'!$AC$102:$AD$116, 2, FALSE),\n          VLOOKUP(S449, 'Data order'!$AC$2:$AD$91, 2, FALSE)\n      )\n  ),\n\"\")","v":""},null,null,null,null,"EUR",null,null,null,{"$error":"#DIV/0!"},0,0,null,"","","","","","","","","","",null,null,null,null,null,null,null,null,null,null,null,null,null,null,null,null,null,"ZWO"]
[null,null,null,null,null,{"$f":"VLOOKUP(G450,'Data order'!Z:AA,2,0)","v":{"$error":"#N/A"}},null,null,null,null,null,null,null,null,{"$f":"VLOOKUP(N450,Tabel10[[korte omschrijving]:[MCC3_CODE]],2,0)","v":{"$error":"#N/A"}},{"$f":"VLOOKUP(N450,'Data order'!M:O,3,0)","v":{"$error":"#N/A"}},null,null,null,{"$f":"IFERROR(\n  IF(R450=\"Big&Tall\",\n      VLOOKUP(S450, 'Data order'!$AC$92:$AD$101, 2, FALSE),\n      IF(R450=\"Boordmaat\",\n          VLOOKUP(S450, 'Data order'!$AC$102:$AD$116, 2, FALSE),\n          VLOOKUP(S450, 'Data order'!$AC$2:$AD$91, 2, FALSE)\n      )\n  ),\n\"\")","v":""},null,{"$f":"SUM(U450:U455)","v":0},null,null,"EUR",null,null,null,{"$error":"#DIV/0!"},0,0,null,"","","","","","","","","","",null,null,null,null,null,null,null,null,null,null,null,null,null,null,null,null,null,"ZWO"]
[null,null,null,null,null,{"$f":"VLOOKUP(G451,'Data order'!Z:AA,2,0)","v":{"$error":"#N/A"}},null,null,null,null,null,null,null,null,{"$f":"VLOOKUP(N451,Tabel10[[korte omschrijving]:[MCC3_CODE]],2,0)","v":{"$error":"#N/A"}},{"$f":"VLOOKUP(N451,'Data order'!M:O,3,0)","v":{"$error":"#N/A"}},null,null,null,{"$f":"IFERROR(\n  IF(R451=\"Big&Tall\",\n      VLOOKUP(S451, 'Data order'!$AC$92:$AD$101, 2, FALSE),\n      IF(R451=\"Boordmaat\",\n          VLOOKUP(S451, 'Data order'!$AC$102:$AD$116, 2, FALSE),\n          VLOOKUP(S451, 'Data order'!$AC$2:$AD$91, 2, FALSE)\n      )\n  ),\n\"\")","v":""},null,null,null,null,"EUR",null,null,null,{"$error":"#DIV/0!"},0,0,null,"","","","","","","","","","",null,null,null,null,null,null,null,null,null,null,null,null,null,null,null,null,null,"ZWO"]
[null,null,null,null,null,{"$f":"VLOOKUP(G452,'Data order'!Z:AA,2,0)","v":{"$error":"#N/A"}},null,null,null,null,null,null,null,null,{"$f":"VLOOKUP(N452,Tabel10[[korte omschrijving]:[MCC3_CODE]],2,0)","v":{"$error":"#N/A"}},{"$f":"VLOOKUP(N452,'Data order'!M:O,3,0)","v":{"$error":"#N/A"}},null,null,null,{"$f":"IFERROR(\n  IF(R452=\"Big&Tall\",\n      VLOOKUP(S452, 'Data order'!$AC$92:$AD$101, 2, FALSE),\n      IF(R452=\"Boordmaat\",\n          VLOOKUP(S452, 'Data order'!$AC$102:$AD$116, 2, FALSE),\n          VLOOKUP(S452, 'Data order'!$AC$2:$AD$91, 2, FALSE)\n      )\n  ),\n\"\")","v":""},null,null,null,null,"EUR",null,null,null,{"$error":"#DIV/0!"},0,0,null,"","","","","","","","","","",null,null,null,null,null,null,null,null,null,null,null,null,null,null,null,null,null,"ZWO"]
[null,null,null,null,null,{"$f":"VLOOKUP(G453,'Data order'!Z:AA,2,0)","v":{"$error":"#N/A"}},null,null,null,null,null,null,null,null,{"$f":"VLOOKUP(N453,Tabel10[[korte omschrijving]:[MCC3_CODE]],2,0)","v":{"$error":"#N/A"}},{"$f":"VLOOKUP(N453,'Data order'!M:O,3,0)","v":{"$error":"#N/A"}},null,null,null,{"$f":"IFERROR(\n  IF(R453=\"Big&Tall\",\n      VLOOKUP(S453, 'Data order'!$AC$92:$AD$101, 2, FALSE),\n      IF(R453=\"Boordmaat\",\n          VLOOKUP(S453, 'Data order'!$AC$102:$AD$116, 2, FALSE),\n          VLOOKUP(S453, 'Data order'!$AC$2:$AD$91, 2, FALSE)\n      )\n  ),\n\"\")","v":""},null,null,null,null,"EUR",null,null,null,{"$error":"#DIV/0!"},0,0,null,"","","","","","","","","","",null,null,null,null,null,null,null,null,null,null,null,null,null,null,null,null,null,"ZWO"]
[null,null,null,null,null,{"$f":"VLOOKUP(G454,'Data order'!Z:AA,2,0)","v":{"$error":"#N/A"}},null,null,null,null,null,null,null,null,{"$f":"VLOOKUP(N454,Tabel10[[korte omschrijving]:[MCC3_CODE]],2,0)","v":{"$error":"#N/A"}},{"$f":"VLOOKUP(N454,'Data order'!M:O,3,0)","v":{"$error":"#N/A"}},null,null,null,{"$f":"IFERROR(\n  IF(R454=\"Big&Tall\",\n      VLOOKUP(S454, 'Data order'!$AC$92:$AD$101, 2, FALSE),\n      IF(R454=\"Boordmaat\",\n          VLOOKUP(S454, 'Data order'!$AC$102:$AD$116, 2, FALSE),\n          VLOOKUP(S454, 'Data order'!$AC$2:$AD$91, 2, FALSE)\n      )\n  ),\n\"\")","v":""},null,null,null,null,"EUR",null,null,null,{"$error":"#DIV/0!"},0,0,null,"","","","","","","","","","",null,null,null,null,null,null,null,null,null,null,null,null,null,null,null,null,null,"ZWO"]
[null,null,null,null,null,{"$f":"VLOOKUP(G455,'Data order'!Z:AA,2,0)","v":{"$error":"#N/A"}},null,null,null,null,null,null,null,null,{"$f":"VLOOKUP(N455,Tabel10[[korte omschrijving]:[MCC3_CODE]],2,0)","v":{"$error":"#N/A"}},{"$f":"VLOOKUP(N455,'Data order'!M:O,3,0)","v":{"$error":"#N/A"}},null,null,null,{"$f":"IFERROR(\n  IF(R455=\"Big&Tall\",\n      VLOOKUP(S455, 'Data order'!$AC$92:$AD$101, 2, FALSE),\n      IF(R455=\"Boordmaat\",\n          VLOOKUP(S455, 'Data order'!$AC$102:$AD$116, 2, FALSE),\n          VLOOKUP(S455, 'Data order'!$AC$2:$AD$91, 2, FALSE)\n      )\n  ),\n\"\")","v":""},null,null,null,null,"EUR",null,null,null,{"$f":"AB455/Z455","v":{"$error":"#DIV/0!"}},{"$f":"U455*Z455","v":0},0,null,{"$f":"IF(AF455 <> \"\",\n    IF(ISNUMBER(VALUE(LEFT(AF455, FIND(\"%\", AF455)-1))),\n        VALUE(LEFT(AF455, FIND(\"%\", AF455)-1)),\n        \"Invalid format\"),\n    \"\")","v":""},{"$f":"IF(AF455 <> \"\",\n    IF(ISNUMBER(VALUE(LEFT(AF455, FIND(\"%\", AF455)-1))) * ISNUMBER(FIND(\"%\", AF455 & \"wol\")) > 0,\n        TRIM(MID(AF455, FIND(\"%\", AF455)+1, FIND(\"/\", AF455 & \"/\")-FIND(\"%\", AF455)-1)),\n        \"Invalid format\"),\n    \"\")","v":""},{"$f":"IF(AF455 <> \"\",\n    IF(ISNUMBER(VALUE(MID(AF455, FIND(\"/\", AF455) + 1, FIND(\"%\", AF455, FIND(\"/\", AF455)) - FIND(\"/\", AF455) - 1))),\n        VALUE(MID(AF455, FIND(\"/\", AF455) + 1, FIND(\"%\", AF455, FIND(\"/\", AF455)) - FIND(\"/\", AF455) - 1)),\n        \"\"),\n    \"\")","v":""},{"$f":"IF(AF455 <> \"\",\n    IFERROR(TRIM(MID(AF455, FIND(\"%\", AF455, FIND(\"/\", AF455)+1)+2,\n        IFERROR(FIND(\"/\", AF455 & \"/\", FIND(\"/\", AF455)+1)-FIND(\"%\", AF455, FIND(\"/\", AF455)+1)-2, LEN(AF455)-FIND(\"%\", AF455, FIND(\"/\", AF455)+1)-1))),\n        \"\"),\n    \"\")","v":""},{"$f":"IF(AF455 <> \"\",\n    IF(ISNUMBER(VALUE(MID(AF455, FIND(\"/\", AF455, FIND(\"/\", AF455)+1) + 1, FIND(\"%\", AF455, FIND(\"/\", AF455, FIND(\"/\", AF455)+1)) - FIND(\"/\", AF455, FIND(\"/\", AF455)+1) - 1))),\n        VALUE(MID(AF455, FIND(\"/\", AF455, FIND(\"/\", AF455)+1) + 1, FIND(\"%\", AF455, FIND(\"/\", AF455, FIND(\"/\", AF455)+1)) - FIND(\"/\", AF455, FIND(\"/\", AF455)+1) - 1)),\n        \"\"),\n    \"\")","v":""},{"$f":"IF(AF455 <> \"\",\n    IFERROR(\n        TRIM(MID(AF455,\n            FIND(\"%\", AF455, FIND(\"%\", AF455, FIND(\"%\", AF455)+1)+1)+1,\n            FIND(\"/\", AF455 & \"/\", FIND(\"%\", AF455, FIND(\"%\", AF455, FIND(\"%\", AF455)+1)+1))-FIND(\"%\", AF455, FIND(\"%\", AF455, FIND(\"%\", AF455)+1)+1)-1)\n        ),\n        \"\"\n    ),\n    \"\"\n)","v":""},{"$f":"IF(AF455 <> \"\",\n    IF(ISNUMBER(VALUE(MID(AF455, FIND(\"/\", AF455, FIND(\"/\", AF455, FIND(\"/\", AF455)+1)+1) + 1, FIND(\"%\", AF455, FIND(\"/\", AF455, FIND(\"/\", AF455, FIND(\"/\", AF455)+1)+1)) - FIND(\"/\", AF455, FIND(\"/\", AF455, FIND(\"/\", AF455)+1)+1) - 1))),\n        VALUE(MID(AF455, FIND(\"/\", AF455, FIND(\"/\", AF455, FIND(\"/\", AF455)+1)+1) + 1, FIND(\"%\", AF455, FIND(\"/\", AF455, FIND(\"/\", AF455, FIND(\"/\", AF455)+1)+1)) - FIND(\"/\", AF455, FIND(\"/\", AF455, FIND(\"/\", AF455)+1)+1) - 1)),\n        \"\"),\n    \"\")","v":""},{"$f":"IF(AF455 <> \"\",\n    IFERROR(TRIM(MID(AF455, FIND(\"%\", AF455, FIND(\"/\", AF455, FIND(\"/\", AF455, FIND(\"/\", AF455)+1)+1)+1)+2,\n        IFERROR(FIND(\"/\", AF455, FIND(\"/\", AF455, FIND(\"/\", AF455, FIND(\"/\", AF455)+1)+1)+1)-FIND(\"%\", AF455, FIND(\"/\", AF455, FIND(\"/\", AF455, FIND(\"/\", AF455)+1)+1)+1)-2, LEN(AF455)-FIND(\"%\", AF455, FIND(\"/\", AF455, FIND(\"/\", AF455, FIND(\"/\", AF455)+1)+1)+1)-1))),\n        \"\"),\n    \"\")","v":""},{"$f":"IF(AF455 <> \"\",\n    IF(ISNUMBER(VALUE(MID(AF455, FIND(\"/\", AF455, FIND(\"/\", AF455, FIND(\"/\", AF455, FIND(\"/\", AF455)+1)+1)+1) + 1, FIND(\"%\", AF455, FIND(\"/\", AF455, FIND(\"/\", AF455, FIND(\"/\", AF455, FIND(\"/\", AF455)+1)+1)+1)) - FIND(\"/\", AF455, FIND(\"/\", AF455, FIND(\"/\", AF455, FIND(\"/\", AF455)+1)+1)+1) - 1))),\n        VALUE(MID(AF455, FIND(\"/\", AF455, FIND(\"/\", AF455, FIND(\"/\", AF455, FIND(\"/\", AF455)+1)+1)+1) + 1, FIND(\"%\", AF455, FIND(\"/\", AF455, FIND(\"/\", AF455, FIND(\"/\", AF455, FIND(\"/\", AF455)+1)+1)+1)) - FIND(\"/\", AF455, FIND(\"/\", AF455, FIND(\"/\", AF455, FIND(\"/\", AF455)+1)+1)+1) - 1)),\n        \"\"),\n    \"\")","v":""},{"$f":"IF(AF455 = \"\", \"\",\n    IFERROR(TRIM(\n        MID(\n            AF455,\n            FIND(\"%\", AF455, FIND(\"/\", AF455, FIND(\"/\", AF455, FIND(\"/\", AF455, FIND(\"/\", AF455)+1)+1)+1)+1) + 1,\n            FIND(\"/\", AF455 & \"/\", FIND(\"%\", AF455, FIND(\"/\", AF455, FIND(\"/\", AF455, FIND(\"/\", AF455, FIND(\"/\", AF455)+1)+1)+1)+1)) -\n            FIND(\"%\", AF455, FIND(\"/\", AF455, FIND(\"/\", AF455, FIND(\"/\", AF455, FIND(\"/\", AF455)+1)+1)+1)+1) - 1\n        )\n    ),\n    \"\")\n)","v":""},null,null,null,null,null,null,null,null,null,null,null,null,null,null,null,null,null,"ZWO"]
[null,null,null,null,null,{"$f":"VLOOKUP(G456,'Data order'!Z:AA,2,0)","v":{"$error":"#N/A"}},null,null,null,null,null,null,null,null,{"$f":"VLOOKUP(N456,Tabel10[[korte omschrijving]:[MCC3_CODE]],2,0)","v":{"$error":"#N/A"}},{"$f":"VLOOKUP(N456,'Data order'!M:O,3,0)","v":{"$error":"#N/A"}},null,null,null,{"$f":"IFERROR(\n  IF(R456=\"Big&Tall\",\n      VLOOKUP(S456, 'Data order'!$AC$92:$AD$101, 2, FALSE),\n      IF(R456=\"Boordmaat\",\n          VLOOKUP(S456, 'Data order'!$AC$102:$AD$116, 2, FALSE),\n          VLOOKUP(S456, 'Data order'!$AC$2:$AD$91, 2, FALSE)\n      )\n  ),\n\"\")","v":""},null,{"$f":"SUM(U456:U461)","v":0},null,null,"EUR",null,null,null,{"$error":"#DIV/0!"},0,{"$f":"U456*AB456","v":0},null,"","","","","","","","","","",null,null,null,null,null,null,null,null,null,null,null,null,null,null,null,null,null,"ZWO"]
[null,null,null,null,null,{"$f":"VLOOKUP(G457,'Data order'!Z:AA,2,0)","v":{"$error":"#N/A"}},null,null,null,null,null,null,null,null,{"$f":"VLOOKUP(N457,Tabel10[[korte omschrijving]:[MCC3_CODE]],2,0)","v":{"$error":"#N/A"}},{"$f":"VLOOKUP(N457,'Data order'!M:O,3,0)","v":{"$error":"#N/A"}},null,null,null,{"$f":"IFERROR(\n  IF(R457=\"Big&Tall\",\n      VLOOKUP(S457, 'Data order'!$AC$92:$AD$101, 2, FALSE),\n      IF(R457=\"Boordmaat\",\n          VLOOKUP(S457, 'Data order'!$AC$102:$AD$116, 2, FALSE),\n          VLOOKUP(S457, 'Data order'!$AC$2:$AD$91, 2, FALSE)\n      )\n  ),\n\"\")","v":""},null,null,null,null,"EUR",null,null,null,{"$error":"#DIV/0!"},0,0,null,"","","","","","","","","","",null,null,null,null,null,null,null,null,null,null,null,null,null,null,null,null,null,"ZWO"]
[null,null,null,null,null,{"$f":"VLOOKUP(G458,'Data order'!Z:AA,2,0)","v":{"$error":"#N/A"}},null,null,null,null,null,null,null,null,{"$f":"VLOOKUP(N458,Tabel10[[korte omschrijving]:[MCC3_CODE]],2,0)","v":{"$error":"#N/A"}},{"$f":"VLOOKUP(N458,'Data order'!M:O,3,0)","v":{"$error":"#N/A"}},null,null,null,{"$f":"IFERROR(\n  IF(R458=\"Big&Tall\",\n      VLOOKUP(S458, 'Data order'!$AC$92:$AD$101, 2, FALSE),\n      IF(R458=\"Boordmaat\",\n          VLOOKUP(S458, 'Data order'!$AC$102:$AD$116, 2, FALSE),\n          VLOOKUP(S458, 'Data order'!$AC$2:$AD$91, 2, FALSE)\n      )\n  ),\n\"\")","v":""},null,null,null,null,"EUR",null,null,null,{"$error":"#DIV/0!"},0,0,null,"","","","","","","","","","",null,null,null,null,null,null,null,null,null,null,null,null,null,null,null,null,null,"ZWO"]
[null,null,null,null,null,{"$f":"VLOOKUP(G459,'Data order'!Z:AA,2,0)","v":{"$error":"#N/A"}},null,null,null,null,null,null,null,null,{"$f":"VLOOKUP(N459,Tabel10[[korte omschrijving]:[MCC3_CODE]],2,0)","v":{"$error":"#N/A"}},{"$f":"VLOOKUP(N459,'Data order'!M:O,3,0)","v":{"$error":"#N/A"}},null,null,null,{"$f":"IFERROR(\n  IF(R459=\"Big&Tall\",\n      VLOOKUP(S459, 'Data order'!$AC$92:$AD$101, 2, FALSE),\n      IF(R459=\"Boordmaat\",\n          VLOOKUP(S459, 'Data order'!$AC$102:$AD$116, 2, FALSE),\n          VLOOKUP(S459, 'Data order'!$AC$2:$AD$91, 2, FALSE)\n      )\n  ),\n\"\")","v":""},null,null,null,null,"EUR",null,null,null,{"$error":"#DIV/0!"},0,0,null,"","","","","","","","","","",null,null,null,null,null,null,null,null,null,null,null,null,null,null,null,null,null,"ZWO"]
[null,null,null,null,null,{"$f":"VLOOKUP(G460,'Data order'!Z:AA,2,0)","v":{"$error":"#N/A"}},null,null,null,null,null,null,null,null,{"$f":"VLOOKUP(N460,Tabel10[[korte omschrijving]:[MCC3_CODE]],2,0)","v":{"$error":"#N/A"}},{"$f":"VLOOKUP(N460,'Data order'!M:O,3,0)","v":{"$error":"#N/A"}},null,null,null,{"$f":"IFERROR(\n  IF(R460=\"Big&Tall\",\n      VLOOKUP(S460, 'Data order'!$AC$92:$AD$101, 2, FALSE),\n      IF(R460=\"Boordmaat\",\n          VLOOKUP(S460, 'Data order'!$AC$102:$AD$116, 2, FALSE),\n          VLOOKUP(S460, 'Data order'!$AC$2:$AD$91, 2, FALSE)\n      )\n  ),\n\"\")","v":""},null,null,null,null,"EUR",null,null,null,{"$error":"#DIV/0!"},0,0,null,"","","","","","","","","","",null,null,null,null,null,null,null,null,null,null,null,null,null,null,null,null,null,"ZWO"]
[null,null,null,null,null,{"$f":"VLOOKUP(G461,'Data order'!Z:AA,2,0)","v":{"$error":"#N/A"}},null,null,null,null,null,null,null,null,{"$f":"VLOOKUP(N461,Tabel10[[korte omschrijving]:[MCC3_CODE]],2,0)","v":{"$error":"#N/A"}},{"$f":"VLOOKUP(N461,'Data order'!M:O,3,0)","v":{"$error":"#N/A"}},null,null,null,{"$f":"IFERROR(\n  IF(R461=\"Big&Tall\",\n      VLOOKUP(S461, 'Data order'!$AC$92:$AD$101, 2, FALSE),\n      IF(R461=\"Boordmaat\",\n          VLOOKUP(S461, 'Data order'!$AC$102:$AD$116, 2, FALSE),\n          VLOOKUP(S461, 'Data order'!$AC$2:$AD$91, 2, FALSE)\n      )\n  ),\n\"\")","v":""},null,null,null,null,"EUR",null,null,null,{"$error":"#DIV/0!"},0,0,null,"","","","","","","","","","",null,null,null,null,null,null,null,null,null,null,null,null,null,null,null,null,null,"ZWO"]
[null,null,null,null,null,{"$f":"VLOOKUP(G462,'Data order'!Z:AA,2,0)","v":{"$error":"#N/A"}},null,null,null,null,null,null,null,null,{"$f":"VLOOKUP(N462,Tabel10[[korte omschrijving]:[MCC3_CODE]],2,0)","v":{"$error":"#N/A"}},{"$f":"VLOOKUP(N462,'Data order'!M:O,3,0)","v":{"$error":"#N/A"}},null,null,null,{"$f":"IFERROR(\n  IF(R462=\"Big&Tall\",\n      VLOOKUP(S462, 'Data order'!$AC$92:$AD$101, 2, FALSE),\n      IF(R462=\"Boordmaat\",\n          VLOOKUP(S462, 'Data order'!$AC$102:$AD$116, 2, FALSE),\n          VLOOKUP(S462, 'Data order'!$AC$2:$AD$91, 2, FALSE)\n      )\n  ),\n\"\")","v":""},null,{"$f":"SUM(U462:U467)","v":0},null,null,"EUR",null,null,null,{"$error":"#DIV/0!"},0,0,null,"","","","","","","","","","",null,null,null,null,null,null,null,null,null,null,null,null,null,null,null,null,null,"ZWO"]
[null,null,null,null,null,{"$f":"VLOOKUP(G463,'Data order'!Z:AA,2,0)","v":{"$error":"#N/A"}},null,null,null,null,null,null,null,null,{"$f":"VLOOKUP(N463,Tabel10[[korte omschrijving]:[MCC3_CODE]],2,0)","v":{"$error":"#N/A"}},{"$f":"VLOOKUP(N463,'Data order'!M:O,3,0)","v":{"$error":"#N/A"}},null,null,null,{"$f":"IFERROR(\n  IF(R463=\"Big&Tall\",\n      VLOOKUP(S463, 'Data order'!$AC$92:$AD$101, 2, FALSE),\n      IF(R463=\"Boordmaat\",\n          VLOOKUP(S463, 'Data order'!$AC$102:$AD$116, 2, FALSE),\n          VLOOKUP(S463, 'Data order'!$AC$2:$AD$91, 2, FALSE)\n      )\n  ),\n\"\")","v":""},null,null,null,null,"EUR",null,null,null,{"$error":"#DIV/0!"},0,0,null,"","","","","","","","","","",null,null,null,null,null,null,null,null,null,null,null,null,null,null,null,null,null,"ZWO"]
[null,null,null,null,null,{"$f":"VLOOKUP(G464,'Data order'!Z:AA,2,0)","v":{"$error":"#N/A"}},null,null,null,null,null,null,null,null,{"$f":"VLOOKUP(N464,Tabel10[[korte omschrijving]:[MCC3_CODE]],2,0)","v":{"$error":"#N/A"}},{"$f":"VLOOKUP(N464,'Data order'!M:O,3,0)","v":{"$error":"#N/A"}},null,null,null,{"$f":"IFERROR(\n  IF(R464=\"Big&Tall\",\n      VLOOKUP(S464, 'Data order'!$AC$92:$AD$101, 2, FALSE),\n      IF(R464=\"Boordmaat\",\n          VLOOKUP(S464, 'Data order'!$AC$102:$AD$116, 2, FALSE),\n          VLOOKUP(S464, 'Data order'!$AC$2:$AD$91, 2, FALSE)\n      )\n  ),\n\"\")","v":""},null,null,null,null,"EUR",null,null,null,{"$error":"#DIV/0!"},0,0,null,"","","","","","","","","","",null,null,null,null,null,null,null,null,null,null,null,null,null,null,null,null,null,"ZWO"]
[null,null,null,null,null,{"$f":"VLOOKUP(G465,'Data order'!Z:AA,2,0)","v":{"$error":"#N/A"}},null,null,null,null,null,null,null,null,{"$f":"VLOOKUP(N465,Tabel10[[korte omschrijving]:[MCC3_CODE]],2,0)","v":{"$error":"#N/A"}},{"$f":"VLOOKUP(N465,'Data order'!M:O,3,0)","v":{"$error":"#N/A"}},null,null,null,{"$f":"IFERROR(\n  IF(R465=\"Big&Tall\",\n      VLOOKUP(S465, 'Data order'!$AC$92:$AD$101, 2, FALSE),\n      IF(R465=\"Boordmaat\",\n          VLOOKUP(S465, 'Data order'!$AC$102:$AD$116, 2, FALSE),\n          VLOOKUP(S465, 'Data order'!$AC$2:$AD$91, 2, FALSE)\n      )\n  ),\n\"\")","v":""},null,null,null,null,"EUR",null,null,null,{"$error":"#DIV/0!"},0,0,null,"","","","","","","","","","",null,null,null,null,null,null,null,null,null,null,null,null,null,null,null,null,null,"ZWO"]
[null,null,null,null,null,{"$f":"VLOOKUP(G466,'Data order'!Z:AA,2,0)","v":{"$error":"#N/A"}},null,null,null,null,null,null,null,null,{"$f":"VLOOKUP(N466,Tabel10[[korte omschrijving]:[MCC3_CODE]],2,0)","v":{"$error":"#N/A"}},{"$f":"VLOOKUP(N466,'Data order'!M:O,3,0)","v":{"$error":"#N/A"}},null,null,null,{"$f":"IFERROR(\n  IF(R466=\"Big&Tall\",\n      VLOOKUP(S466, 'Data order'!$AC$92:$AD$101, 2, FALSE),\n      IF(R466=\"Boordmaat\",\n          VLOOKUP(S466, 'Data order'!$AC$102:$AD$116, 2, FALSE),\n          VLOOKUP(S466, 'Data order'!$AC$2:$AD$91, 2, FALSE)\n      )\n  ),\n\"\")","v":""},null,null,null,null,"EUR",null,null,null,{"$error":"#DIV/0!"},0,0,null,"","","","","","","","","","",null,null,null,null,null,null,null,null,null,null,null,null,null,null,null,null,null,"ZWO"]
[null,null,null,null,null,{"$f":"VLOOKUP(G467,'Data order'!Z:AA,2,0)","v":{"$error":"#N/A"}},null,null,null,null,null,null,null,null,{"$f":"VLOOKUP(N467,Tabel10[[korte omschrijving]:[MCC3_CODE]],2,0)","v":{"$error":"#N/A"}},{"$f":"VLOOKUP(N467,'Data order'!M:O,3,0)","v":{"$error":"#N/A"}},null,null,null,{"$f":"IFERROR(\n  IF(R467=\"Big&Tall\",\n      VLOOKUP(S467, 'Data order'!$AC$92:$AD$101, 2, FALSE),\n      IF(R467=\"Boordmaat\",\n          VLOOKUP(S467, 'Data order'!$AC$102:$AD$116, 2, FALSE),\n          VLOOKUP(S467, 'Data order'!$AC$2:$AD$91, 2, FALSE)\n      )\n  ),\n\"\")","v":""},null,null,null,null,"EUR",null,null,null,{"$error":"#DIV/0!"},0,0,null,"","","","","","","","","","",null,null,null,null,null,null,null,null,null,null,null,null,null,null,null,null,null,"ZWO"]
[null,null,null,null,null,{"$f":"VLOOKUP(G468,'Data order'!Z:AA,2,0)","v":{"$error":"#N/A"}},null,null,null,null,null,null,null,null,{"$f":"VLOOKUP(N468,Tabel10[[korte omschrijving]:[MCC3_CODE]],2,0)","v":{"$error":"#N/A"}},{"$f":"VLOOKUP(N468,'Data order'!M:O,3,0)","v":{"$error":"#N/A"}},null,null,null,{"$f":"IFERROR(\n  IF(R468=\"Big&Tall\",\n      VLOOKUP(S468, 'Data order'!$AC$92:$AD$101, 2, FALSE),\n      IF(R468=\"Boordmaat\",\n          VLOOKUP(S468, 'Data order'!$AC$102:$AD$116, 2, FALSE),\n          VLOOKUP(S468, 'Data order'!$AC$2:$AD$91, 2, FALSE)\n      )\n  ),\n\"\")","v":""},null,{"$f":"SUM(U468:U473)","v":0},null,null,"EUR",null,null,null,{"$error":"#DIV/0!"},0,0,null,"","","","","","","","","","",null,null,null,null,null,null,null,null,null,null,null,null,null,null,null,null,null,"ZWO"]
[null,null,null,null,null,{"$f":"VLOOKUP(G469,'Data order'!Z:AA,2,0)","v":{"$error":"#N/A"}},null,null,null,null,null,null,null,null,{"$f":"VLOOKUP(N469,Tabel10[[korte omschrijving]:[MCC3_CODE]],2,0)","v":{"$error":"#N/A"}},{"$f":"VLOOKUP(N469,'Data order'!M:O,3,0)","v":{"$error":"#N/A"}},null,null,null,{"$f":"IFERROR(\n  IF(R469=\"Big&Tall\",\n      VLOOKUP(S469, 'Data order'!$AC$92:$AD$101, 2, FALSE),\n      IF(R469=\"Boordmaat\",\n          VLOOKUP(S469, 'Data order'!$AC$102:$AD$116, 2, FALSE),\n          VLOOKUP(S469, 'Data order'!$AC$2:$AD$91, 2, FALSE)\n      )\n  ),\n\"\")","v":""},null,null,null,null,"EUR",null,null,null,{"$error":"#DIV/0!"},0,0,null,"","","","","","","","","","",null,null,null,null,null,null,null,null,null,null,null,null,null,null,null,null,null,"ZWO"]
[null,null,null,null,null,{"$f":"VLOOKUP(G470,'Data order'!Z:AA,2,0)","v":{"$error":"#N/A"}},null,null,null,null,null,null,null,null,{"$f":"VLOOKUP(N470,Tabel10[[korte omschrijving]:[MCC3_CODE]],2,0)","v":{"$error":"#N/A"}},{"$f":"VLOOKUP(N470,'Data order'!M:O,3,0)","v":{"$error":"#N/A"}},null,null,null,{"$f":"IFERROR(\n  IF(R470=\"Big&Tall\",\n      VLOOKUP(S470, 'Data order'!$AC$92:$AD$101, 2, FALSE),\n      IF(R470=\"Boordmaat\",\n          VLOOKUP(S470, 'Data order'!$AC$102:$AD$116, 2, FALSE),\n          VLOOKUP(S470, 'Data order'!$AC$2:$AD$91, 2, FALSE)\n      )\n  ),\n\"\")","v":""},null,null,null,null,"EUR",null,null,null,{"$error":"#DIV/0!"},0,0,null,"","","","","","","","","","",null,null,null,null,null,null,null,null,null,null,null,null,null,null,null,null,null,"ZWO"]
[null,null,null,null,null,{"$f":"VLOOKUP(G471,'Data order'!Z:AA,2,0)","v":{"$error":"#N/A"}},null,null,null,null,null,null,null,null,{"$f":"VLOOKUP(N471,Tabel10[[korte omschrijving]:[MCC3_CODE]],2,0)","v":{"$error":"#N/A"}},{"$f":"VLOOKUP(N471,'Data order'!M:O,3,0)","v":{"$error":"#N/A"}},null,null,null,{"$f":"IFERROR(\n  IF(R471=\"Big&Tall\",\n      VLOOKUP(S471, 'Data order'!$AC$92:$AD$101, 2, FALSE),\n      IF(R471=\"Boordmaat\",\n          VLOOKUP(S471, 'Data order'!$AC$102:$AD$116, 2, FALSE),\n          VLOOKUP(S471, 'Data order'!$AC$2:$AD$91, 2, FALSE)\n      )\n  ),\n\"\")","v":""},null,null,null,null,"EUR",null,null,null,{"$error":"#DIV/0!"},0,0,null,"","","","","","","","","","",null,null,null,null,null,null,null,null,null,null,null,null,null,null,null,null,null,"ZWO"]
[null,null,null,null,null,{"$f":"VLOOKUP(G472,'Data order'!Z:AA,2,0)","v":{"$error":"#N/A"}},null,null,null,null,null,null,null,null,{"$f":"VLOOKUP(N472,Tabel10[[korte omschrijving]:[MCC3_CODE]],2,0)","v":{"$error":"#N/A"}},{"$f":"VLOOKUP(N472,'Data order'!M:O,3,0)","v":{"$error":"#N/A"}},null,null,null,{"$f":"IFERROR(\n  IF(R472=\"Big&Tall\",\n      VLOOKUP(S472, 'Data order'!$AC$92:$AD$101, 2, FALSE),\n      IF(R472=\"Boordmaat\",\n          VLOOKUP(S472, 'Data order'!$AC$102:$AD$116, 2, FALSE),\n          VLOOKUP(S472, 'Data order'!$AC$2:$AD$91, 2, FALSE)\n      )\n  ),\n\"\")","v":""},null,null,null,null,"EUR",null,null,null,{"$error":"#DIV/0!"},0,0,null,"","","","","","","","","","",null,null,null,null,null,null,null,null,null,null,null,null,null,null,null,null,null,"ZWO"]
[null,null,null,null,null,{"$f":"VLOOKUP(G473,'Data order'!Z:AA,2,0)","v":{"$error":"#N/A"}},null,null,null,null,null,null,null,null,{"$f":"VLOOKUP(N473,Tabel10[[korte omschrijving]:[MCC3_CODE]],2,0)","v":{"$error":"#N/A"}},{"$f":"VLOOKUP(N473,'Data order'!M:O,3,0)","v":{"$error":"#N/A"}},null,null,null,{"$f":"IFERROR(\n  IF(R473=\"Big&Tall\",\n      VLOOKUP(S473, 'Data order'!$AC$92:$AD$101, 2, FALSE),\n      IF(R473=\"Boordmaat\",\n          VLOOKUP(S473, 'Data order'!$AC$102:$AD$116, 2, FALSE),\n          VLOOKUP(S473, 'Data order'!$AC$2:$AD$91, 2, FALSE)\n      )\n  ),\n\"\")","v":""},null,null,null,null,"EUR",null,null,null,{"$error":"#DIV/0!"},0,0,null,"","","","","","","","","","",null,null,null,null,null,null,null,null,null,null,null,null,null,null,null,null,null,"ZWO"]
[null,null,null,null,null,{"$f":"VLOOKUP(G474,'Data order'!Z:AA,2,0)","v":{"$error":"#N/A"}},null,null,null,null,null,null,null,null,{"$f":"VLOOKUP(N474,Tabel10[[korte omschrijving]:[MCC3_CODE]],2,0)","v":{"$error":"#N/A"}},{"$f":"VLOOKUP(N474,'Data order'!M:O,3,0)","v":{"$error":"#N/A"}},null,null,null,{"$f":"IFERROR(\n  IF(R474=\"Big&Tall\",\n      VLOOKUP(S474, 'Data order'!$AC$92:$AD$101, 2, FALSE),\n      IF(R474=\"Boordmaat\",\n          VLOOKUP(S474, 'Data order'!$AC$102:$AD$116, 2, FALSE),\n          VLOOKUP(S474, 'Data order'!$AC$2:$AD$91, 2, FALSE)\n      )\n  ),\n\"\")","v":""},null,{"$f":"SUM(U474:U479)","v":0},null,null,"EUR",null,null,null,{"$error":"#DIV/0!"},0,0,null,"","","","","","","","","","",null,null,null,null,null,null,null,null,null,null,null,null,null,null,null,null,null,"ZWO"]
[null,null,null,null,null,{"$f":"VLOOKUP(G475,'Data order'!Z:AA,2,0)","v":{"$error":"#N/A"}},null,null,null,null,null,null,null,null,{"$f":"VLOOKUP(N475,Tabel10[[korte omschrijving]:[MCC3_CODE]],2,0)","v":{"$error":"#N/A"}},{"$f":"VLOOKUP(N475,'Data order'!M:O,3,0)","v":{"$error":"#N/A"}},null,null,null,{"$f":"IFERROR(\n  IF(R475=\"Big&Tall\",\n      VLOOKUP(S475, 'Data order'!$AC$92:$AD$101, 2, FALSE),\n      IF(R475=\"Boordmaat\",\n          VLOOKUP(S475, 'Data order'!$AC$102:$AD$116, 2, FALSE),\n          VLOOKUP(S475, 'Data order'!$AC$2:$AD$91, 2, FALSE)\n      )\n  ),\n\"\")","v":""},null,null,null,null,"EUR",null,null,null,{"$error":"#DIV/0!"},0,0,null,"","","","","","","","","","",null,null,null,null,null,null,null,null,null,null,null,null,null,null,null,null,null,"ZWO"]
[null,null,null,null,null,{"$f":"VLOOKUP(G476,'Data order'!Z:AA,2,0)","v":{"$error":"#N/A"}},null,null,null,null,null,null,null,null,{"$f":"VLOOKUP(N476,Tabel10[[korte omschrijving]:[MCC3_CODE]],2,0)","v":{"$error":"#N/A"}},{"$f":"VLOOKUP(N476,'Data order'!M:O,3,0)","v":{"$error":"#N/A"}},null,null,null,{"$f":"IFERROR(\n  IF(R476=\"Big&Tall\",\n      VLOOKUP(S476, 'Data order'!$AC$92:$AD$101, 2, FALSE),\n      IF(R476=\"Boordmaat\",\n          VLOOKUP(S476, 'Data order'!$AC$102:$AD$116, 2, FALSE),\n          VLOOKUP(S476, 'Data order'!$AC$2:$AD$91, 2, FALSE)\n      )\n  ),\n\"\")","v":""},null,null,null,null,"EUR",null,null,null,{"$error":"#DIV/0!"},0,0,null,"","","","","","","","","","",null,null,null,null,null,null,null,null,null,null,null,null,null,null,null,null,null,"ZWO"]
[null,null,null,null,null,{"$f":"VLOOKUP(G477,'Data order'!Z:AA,2,0)","v":{"$error":"#N/A"}},null,null,null,null,null,null,null,null,{"$f":"VLOOKUP(N477,Tabel10[[korte omschrijving]:[MCC3_CODE]],2,0)","v":{"$error":"#N/A"}},{"$f":"VLOOKUP(N477,'Data order'!M:O,3,0)","v":{"$error":"#N/A"}},null,null,null,{"$f":"IFERROR(\n  IF(R477=\"Big&Tall\",\n      VLOOKUP(S477, 'Data order'!$AC$92:$AD$101, 2, FALSE),\n      IF(R477=\"Boordmaat\",\n          VLOOKUP(S477, 'Data order'!$AC$102:$AD$116, 2, FALSE),\n          VLOOKUP(S477, 'Data order'!$AC$2:$AD$91, 2, FALSE)\n      )\n  ),\n\"\")","v":""},null,null,null,null,"EUR",null,null,null,{"$error":"#DIV/0!"},0,0,null,"","","","","","","","","","",null,null,null,null,null,null,null,null,null,null,null,null,null,null,null,null,null,"ZWO"]
[null,null,null,null,null,{"$f":"VLOOKUP(G478,'Data order'!Z:AA,2,0)","v":{"$error":"#N/A"}},null,null,null,null,null,null,null,null,{"$f":"VLOOKUP(N478,Tabel10[[korte omschrijving]:[MCC3_CODE]],2,0)","v":{"$error":"#N/A"}},{"$f":"VLOOKUP(N478,'Data order'!M:O,3,0)","v":{"$error":"#N/A"}},null,null,null,{"$f":"IFERROR(\n  IF(R478=\"Big&Tall\",\n      VLOOKUP(S478, 'Data order'!$AC$92:$AD$101, 2, FALSE),\n      IF(R478=\"Boordmaat\",\n          VLOOKUP(S478, 'Data order'!$AC$102:$AD$116, 2, FALSE),\n          VLOOKUP(S478, 'Data order'!$AC$2:$AD$91, 2, FALSE)\n      )\n  ),\n\"\")","v":""},null,null,null,null,"EUR",null,null,null,{"$error":"#DIV/0!"},0,0,null,"","","","","","","","","","",null,null,null,null,null,null,null,null,null,null,null,null,null,null,null,null,null,"ZWO"]
[null,null,null,null,null,{"$f":"VLOOKUP(G479,'Data order'!Z:AA,2,0)","v":{"$error":"#N/A"}},null,null,null,null,null,null,null,null,{"$f":"VLOOKUP(N479,Tabel10[[korte omschrijving]:[MCC3_CODE]],2,0)","v":{"$error":"#N/A"}},{"$f":"VLOOKUP(N479,'Data order'!M:O,3,0)","v":{"$error":"#N/A"}},null,null,null,{"$f":"IFERROR(\n  IF(R479=\"Big&Tall\",\n      VLOOKUP(S479, 'Data order'!$AC$92:$AD$101, 2, FALSE),\n      IF(R479=\"Boordmaat\",\n          VLOOKUP(S479, 'Data order'!$AC$102:$AD$116, 2, FALSE),\n          VLOOKUP(S479, 'Data order'!$AC$2:$AD$91, 2, FALSE)\n      )\n  ),\n\"\")","v":""},null,null,null,null,"EUR",null,null,null,{"$error":"#DIV/0!"},0,0,null,"","","","","","","","","","",null,null,null,null,null,null,null,null,null,null,null,null,null,null,null,null,null,"ZWO"]
[null,null,null,null,null,{"$f":"VLOOKUP(G480,'Data order'!Z:AA,2,0)","v":{"$error":"#N/A"}},null,null,null,null,null,null,null,null,{"$f":"VLOOKUP(N480,Tabel10[[korte omschrijving]:[MCC3_CODE]],2,0)","v":{"$error":"#N/A"}},{"$f":"VLOOKUP(N480,'Data order'!M:O,3,0)","v":{"$error":"#N/A"}},null,null,null,{"$f":"IFERROR(\n  IF(R480=\"Big&Tall\",\n      VLOOKUP(S480, 'Data order'!$AC$92:$AD$101, 2, FALSE),\n      IF(R480=\"Boordmaat\",\n          VLOOKUP(S480, 'Data order'!$AC$102:$AD$116, 2, FALSE),\n          VLOOKUP(S480, 'Data order'!$AC$2:$AD$91, 2, FALSE)\n      )\n  ),\n\"\")","v":""},null,{"$f":"SUM(U480:U485)","v":0},null,null,"EUR",null,null,null,{"$error":"#DIV/0!"},0,0,null,"","","","","","","","","","",null,null,null,null,null,null,null,null,null,null,null,null,null,null,null,null,null,"ZWO"]
[null,null,null,null,null,{"$f":"VLOOKUP(G481,'Data order'!Z:AA,2,0)","v":{"$error":"#N/A"}},null,null,null,null,null,null,null,null,{"$f":"VLOOKUP(N481,Tabel10[[korte omschrijving]:[MCC3_CODE]],2,0)","v":{"$error":"#N/A"}},{"$f":"VLOOKUP(N481,'Data order'!M:O,3,0)","v":{"$error":"#N/A"}},null,null,null,{"$f":"IFERROR(\n  IF(R481=\"Big&Tall\",\n      VLOOKUP(S481, 'Data order'!$AC$92:$AD$101, 2, FALSE),\n      IF(R481=\"Boordmaat\",\n          VLOOKUP(S481, 'Data order'!$AC$102:$AD$116, 2, FALSE),\n          VLOOKUP(S481, 'Data order'!$AC$2:$AD$91, 2, FALSE)\n      )\n  ),\n\"\")","v":""},null,null,null,null,"EUR",null,null,null,{"$error":"#DIV/0!"},0,0,null,"","","","","","","","","","",null,null,null,null,null,null,null,null,null,null,null,null,null,null,null,null,null,"ZWO"]
[null,null,null,null,null,{"$f":"VLOOKUP(G482,'Data order'!Z:AA,2,0)","v":{"$error":"#N/A"}},null,null,null,null,null,null,null,null,{"$f":"VLOOKUP(N482,Tabel10[[korte omschrijving]:[MCC3_CODE]],2,0)","v":{"$error":"#N/A"}},{"$f":"VLOOKUP(N482,'Data order'!M:O,3,0)","v":{"$error":"#N/A"}},null,null,null,{"$f":"IFERROR(\n  IF(R482=\"Big&Tall\",\n      VLOOKUP(S482, 'Data order'!$AC$92:$AD$101, 2, FALSE),\n      IF(R482=\"Boordmaat\",\n          VLOOKUP(S482, 'Data order'!$AC$102:$AD$116, 2, FALSE),\n          VLOOKUP(S482, 'Data order'!$AC$2:$AD$91, 2, FALSE)\n      )\n  ),\n\"\")","v":""},null,null,null,null,"EUR",null,null,null,{"$error":"#DIV/0!"},0,0,null,"","","","","","","","","","",null,null,null,null,null,null,null,null,null,null,null,null,null,null,null,null,null,"ZWO"]
[null,null,null,null,null,{"$f":"VLOOKUP(G483,'Data order'!Z:AA,2,0)","v":{"$error":"#N/A"}},null,null,null,null,null,null,null,null,{"$f":"VLOOKUP(N483,Tabel10[[korte omschrijving]:[MCC3_CODE]],2,0)","v":{"$error":"#N/A"}},{"$f":"VLOOKUP(N483,'Data order'!M:O,3,0)","v":{"$error":"#N/A"}},null,null,null,{"$f":"IFERROR(\n  IF(R483=\"Big&Tall\",\n      VLOOKUP(S483, 'Data order'!$AC$92:$AD$101, 2, FALSE),\n      IF(R483=\"Boordmaat\",\n          VLOOKUP(S483, 'Data order'!$AC$102:$AD$116, 2, FALSE),\n          VLOOKUP(S483, 'Data order'!$AC$2:$AD$91, 2, FALSE)\n      )\n  ),\n\"\")","v":""},null,null,null,null,"EUR",null,null,null,{"$error":"#DIV/0!"},0,0,null,"","","","","","","","","","",null,null,null,null,null,null,null,null,null,null,null,null,null,null,null,null,null,"ZWO"]
[null,null,null,null,null,{"$f":"VLOOKUP(G484,'Data order'!Z:AA,2,0)","v":{"$error":"#N/A"}},null,null,null,null,null,null,null,null,{"$f":"VLOOKUP(N484,Tabel10[[korte omschrijving]:[MCC3_CODE]],2,0)","v":{"$error":"#N/A"}},{"$f":"VLOOKUP(N484,'Data order'!M:O,3,0)","v":{"$error":"#N/A"}},null,null,null,{"$f":"IFERROR(\n  IF(R484=\"Big&Tall\",\n      VLOOKUP(S484, 'Data order'!$AC$92:$AD$101, 2, FALSE),\n      IF(R484=\"Boordmaat\",\n          VLOOKUP(S484, 'Data order'!$AC$102:$AD$116, 2, FALSE),\n          VLOOKUP(S484, 'Data order'!$AC$2:$AD$91, 2, FALSE)\n      )\n  ),\n\"\")","v":""},null,null,null,null,"EUR",null,null,null,{"$error":"#DIV/0!"},0,0,null,"","","","","","","","","","",null,null,null,null,null,null,null,null,null,null,null,null,null,null,null,null,null,"ZWO"]
[null,null,null,null,null,{"$f":"VLOOKUP(G485,'Data order'!Z:AA,2,0)","v":{"$error":"#N/A"}},null,null,null,null,null,null,null,null,{"$f":"VLOOKUP(N485,Tabel10[[korte omschrijving]:[MCC3_CODE]],2,0)","v":{"$error":"#N/A"}},{"$f":"VLOOKUP(N485,'Data order'!M:O,3,0)","v":{"$error":"#N/A"}},null,null,null,{"$f":"IFERROR(\n  IF(R485=\"Big&Tall\",\n      VLOOKUP(S485, 'Data order'!$AC$92:$AD$101, 2, FALSE),\n      IF(R485=\"Boordmaat\",\n          VLOOKUP(S485, 'Data order'!$AC$102:$AD$116, 2, FALSE),\n          VLOOKUP(S485, 'Data order'!$AC$2:$AD$91, 2, FALSE)\n      )\n  ),\n\"\")","v":""},null,null,null,null,"EUR",null,null,null,{"$error":"#DIV/0!"},0,0,null,"","","","","","","","","","",null,null,null,null,null,null,null,null,null,null,null,null,null,null,null,null,null,"ZWO"]
[null,null,null,null,null,{"$f":"VLOOKUP(G486,'Data order'!Z:AA,2,0)","v":{"$error":"#N/A"}},null,null,null,null,null,null,null,null,{"$f":"VLOOKUP(N486,Tabel10[[korte omschrijving]:[MCC3_CODE]],2,0)","v":{"$error":"#N/A"}},{"$f":"VLOOKUP(N486,'Data order'!M:O,3,0)","v":{"$error":"#N/A"}},null,null,null,{"$f":"IFERROR(\n  IF(R486=\"Big&Tall\",\n      VLOOKUP(S486, 'Data order'!$AC$92:$AD$101, 2, FALSE),\n      IF(R486=\"Boordmaat\",\n          VLOOKUP(S486, 'Data order'!$AC$102:$AD$116, 2, FALSE),\n          VLOOKUP(S486, 'Data order'!$AC$2:$AD$91, 2, FALSE)\n      )\n  ),\n\"\")","v":""},null,{"$f":"SUM(U486:U491)","v":0},null,null,"EUR",null,null,null,{"$error":"#DIV/0!"},0,0,null,"","","","","","","","","","",null,null,null,null,null,null,null,null,null,null,null,null,null,null,null,null,null,"ZWO"]
[null,null,null,null,null,{"$f":"VLOOKUP(G487,'Data order'!Z:AA,2,0)","v":{"$error":"#N/A"}},null,null,null,null,null,null,null,null,{"$f":"VLOOKUP(N487,Tabel10[[korte omschrijving]:[MCC3_CODE]],2,0)","v":{"$error":"#N/A"}},{"$f":"VLOOKUP(N487,'Data order'!M:O,3,0)","v":{"$error":"#N/A"}},null,null,null,{"$f":"IFERROR(\n  IF(R487=\"Big&Tall\",\n      VLOOKUP(S487, 'Data order'!$AC$92:$AD$101, 2, FALSE),\n      IF(R487=\"Boordmaat\",\n          VLOOKUP(S487, 'Data order'!$AC$102:$AD$116, 2, FALSE),\n          VLOOKUP(S487, 'Data order'!$AC$2:$AD$91, 2, FALSE)\n      )\n  ),\n\"\")","v":""},null,null,null,null,"EUR",null,null,null,{"$error":"#DIV/0!"},0,0,null,"","","","","","","","","","",null,null,null,null,null,null,null,null,null,null,null,null,null,null,null,null,null,"ZWO"]
[null,null,null,null,null,{"$f":"VLOOKUP(G488,'Data order'!Z:AA,2,0)","v":{"$error":"#N/A"}},null,null,null,null,null,null,null,null,{"$f":"VLOOKUP(N488,Tabel10[[korte omschrijving]:[MCC3_CODE]],2,0)","v":{"$error":"#N/A"}},{"$f":"VLOOKUP(N488,'Data order'!M:O,3,0)","v":{"$error":"#N/A"}},null,null,null,{"$f":"IFERROR(\n  IF(R488=\"Big&Tall\",\n      VLOOKUP(S488, 'Data order'!$AC$92:$AD$101, 2, FALSE),\n      IF(R488=\"Boordmaat\",\n          VLOOKUP(S488, 'Data order'!$AC$102:$AD$116, 2, FALSE),\n          VLOOKUP(S488, 'Data order'!$AC$2:$AD$91, 2, FALSE)\n      )\n  ),\n\"\")","v":""},null,null,null,null,"EUR",null,null,null,{"$error":"#DIV/0!"},0,0,null,"","","","","","","","","","",null,null,null,null,null,null,null,null,null,null,null,null,null,null,null,null,null,"ZWO"]
[null,null,null,null,null,{"$f":"VLOOKUP(G489,'Data order'!Z:AA,2,0)","v":{"$error":"#N/A"}},null,null,null,null,null,null,null,null,{"$f":"VLOOKUP(N489,Tabel10[[korte omschrijving]:[MCC3_CODE]],2,0)","v":{"$error":"#N/A"}},{"$f":"VLOOKUP(N489,'Data order'!M:O,3,0)","v":{"$error":"#N/A"}},null,null,null,{"$f":"IFERROR(\n  IF(R489=\"Big&Tall\",\n      VLOOKUP(S489, 'Data order'!$AC$92:$AD$101, 2, FALSE),\n      IF(R489=\"Boordmaat\",\n          VLOOKUP(S489, 'Data order'!$AC$102:$AD$116, 2, FALSE),\n          VLOOKUP(S489, 'Data order'!$AC$2:$AD$91, 2, FALSE)\n      )\n  ),\n\"\")","v":""},null,null,null,null,"EUR",null,null,null,{"$error":"#DIV/0!"},0,0,null,"","","","","","","","","","",null,null,null,null,null,null,null,null,null,null,null,null,null,null,null,null,null,"ZWO"]
[null,null,null,null,null,{"$f":"VLOOKUP(G490,'Data order'!Z:AA,2,0)","v":{"$error":"#N/A"}},null,null,null,null,null,null,null,null,{"$f":"VLOOKUP(N490,Tabel10[[korte omschrijving]:[MCC3_CODE]],2,0)","v":{"$error":"#N/A"}},{"$f":"VLOOKUP(N490,'Data order'!M:O,3,0)","v":{"$error":"#N/A"}},null,null,null,{"$f":"IFERROR(\n  IF(R490=\"Big&Tall\",\n      VLOOKUP(S490, 'Data order'!$AC$92:$AD$101, 2, FALSE),\n      IF(R490=\"Boordmaat\",\n          VLOOKUP(S490, 'Data order'!$AC$102:$AD$116, 2, FALSE),\n          VLOOKUP(S490, 'Data order'!$AC$2:$AD$91, 2, FALSE)\n      )\n  ),\n\"\")","v":""},null,null,null,null,"EUR",null,null,null,{"$error":"#DIV/0!"},0,0,null,"","","","","","","","","","",null,null,null,null,null,null,null,null,null,null,null,null,null,null,null,null,null,"ZWO"]
[null,null,null,null,null,{"$f":"VLOOKUP(G491,'Data order'!Z:AA,2,0)","v":{"$error":"#N/A"}},null,null,null,null,null,null,null,null,{"$f":"VLOOKUP(N491,Tabel10[[korte omschrijving]:[MCC3_CODE]],2,0)","v":{"$error":"#N/A"}},{"$f":"VLOOKUP(N491,'Data order'!M:O,3,0)","v":{"$error":"#N/A"}},null,null,null,{"$f":"IFERROR(\n  IF(R491=\"Big&Tall\",\n      VLOOKUP(S491, 'Data order'!$AC$92:$AD$101, 2, FALSE),\n      IF(R491=\"Boordmaat\",\n          VLOOKUP(S491, 'Data order'!$AC$102:$AD$116, 2, FALSE),\n          VLOOKUP(S491, 'Data order'!$AC$2:$AD$91, 2, FALSE)\n      )\n  ),\n\"\")","v":""},null,null,null,null,"EUR",null,null,null,{"$error":"#DIV/0!"},0,0,null,"","","","","","","","","","",null,null,null,null,null,null,null,null,null,null,null,null,null,null,null,null,null,"ZWO"]
[null,null,null,null,null,{"$f":"VLOOKUP(G492,'Data order'!Z:AA,2,0)","v":{"$error":"#N/A"}},null,null,null,null,null,null,null,null,{"$f":"VLOOKUP(N492,Tabel10[[korte omschrijving]:[MCC3_CODE]],2,0)","v":{"$error":"#N/A"}},{"$f":"VLOOKUP(N492,'Data order'!M:O,3,0)","v":{"$error":"#N/A"}},null,null,null,{"$f":"IFERROR(\n  IF(R492=\"Big&Tall\",\n      VLOOKUP(S492, 'Data order'!$AC$92:$AD$101, 2, FALSE),\n      IF(R492=\"Boordmaat\",\n          VLOOKUP(S492, 'Data order'!$AC$102:$AD$116, 2, FALSE),\n          VLOOKUP(S492, 'Data order'!$AC$2:$AD$91, 2, FALSE)\n      )\n  ),\n\"\")","v":""},null,{"$f":"SUM(U492:U497)","v":0},null,null,"EUR",null,null,null,{"$error":"#DIV/0!"},0,0,null,"","","","","","","","","","",null,null,null,null,null,null,null,null,null,null,null,null,null,null,null,null,null,"ZWO"]
[null,null,null,null,null,{"$f":"VLOOKUP(G493,'Data order'!Z:AA,2,0)","v":{"$error":"#N/A"}},null,null,null,null,null,null,null,null,{"$f":"VLOOKUP(N493,Tabel10[[korte omschrijving]:[MCC3_CODE]],2,0)","v":{"$error":"#N/A"}},{"$f":"VLOOKUP(N493,'Data order'!M:O,3,0)","v":{"$error":"#N/A"}},null,null,null,{"$f":"IFERROR(\n  IF(R493=\"Big&Tall\",\n      VLOOKUP(S493, 'Data order'!$AC$92:$AD$101, 2, FALSE),\n      IF(R493=\"Boordmaat\",\n          VLOOKUP(S493, 'Data order'!$AC$102:$AD$116, 2, FALSE),\n          VLOOKUP(S493, 'Data order'!$AC$2:$AD$91, 2, FALSE)\n      )\n  ),\n\"\")","v":""},null,null,null,null,"EUR",null,null,null,{"$error":"#DIV/0!"},0,0,null,"","","","","","","","","","",null,null,null,null,null,null,null,null,null,null,null,null,null,null,null,null,null,"ZWO"]
[null,null,null,null,null,{"$f":"VLOOKUP(G494,'Data order'!Z:AA,2,0)","v":{"$error":"#N/A"}},null,null,null,null,null,null,null,null,{"$f":"VLOOKUP(N494,Tabel10[[korte omschrijving]:[MCC3_CODE]],2,0)","v":{"$error":"#N/A"}},{"$f":"VLOOKUP(N494,'Data order'!M:O,3,0)","v":{"$error":"#N/A"}},null,null,null,{"$f":"IFERROR(\n  IF(R494=\"Big&Tall\",\n      VLOOKUP(S494, 'Data order'!$AC$92:$AD$101, 2, FALSE),\n      IF(R494=\"Boordmaat\",\n          VLOOKUP(S494, 'Data order'!$AC$102:$AD$116, 2, FALSE),\n          VLOOKUP(S494, 'Data order'!$AC$2:$AD$91, 2, FALSE)\n      )\n  ),\n\"\")","v":""},null,null,null,null,"EUR",null,null,null,{"$error":"#DIV/0!"},0,0,null,"","","","","","","","","","",null,null,null,null,null,null,null,null,null,null,null,null,null,null,null,null,null,"ZWO"]
[null,null,null,null,null,{"$f":"VLOOKUP(G495,'Data order'!Z:AA,2,0)","v":{"$error":"#N/A"}},null,null,null,null,null,null,null,null,{"$f":"VLOOKUP(N495,Tabel10[[korte omschrijving]:[MCC3_CODE]],2,0)","v":{"$error":"#N/A"}},{"$f":"VLOOKUP(N495,'Data order'!M:O,3,0)","v":{"$error":"#N/A"}},null,null,null,{"$f":"IFERROR(\n  IF(R495=\"Big&Tall\",\n      VLOOKUP(S495, 'Data order'!$AC$92:$AD$101, 2, FALSE),\n      IF(R495=\"Boordmaat\",\n          VLOOKUP(S495, 'Data order'!$AC$102:$AD$116, 2, FALSE),\n          VLOOKUP(S495, 'Data order'!$AC$2:$AD$91, 2, FALSE)\n      )\n  ),\n\"\")","v":""},null,null,null,null,"EUR",null,null,null,{"$error":"#DIV/0!"},0,0,null,"","","","","","","","","","",null,null,null,null,null,null,null,null,null,null,null,null,null,null,null,null,null,"ZWO"]
[null,null,null,null,null,{"$f":"VLOOKUP(G496,'Data order'!Z:AA,2,0)","v":{"$error":"#N/A"}},null,null,null,null,null,null,null,null,{"$f":"VLOOKUP(N496,Tabel10[[korte omschrijving]:[MCC3_CODE]],2,0)","v":{"$error":"#N/A"}},{"$f":"VLOOKUP(N496,'Data order'!M:O,3,0)","v":{"$error":"#N/A"}},null,null,null,{"$f":"IFERROR(\n  IF(R496=\"Big&Tall\",\n      VLOOKUP(S496, 'Data order'!$AC$92:$AD$101, 2, FALSE),\n      IF(R496=\"Boordmaat\",\n          VLOOKUP(S496, 'Data order'!$AC$102:$AD$116, 2, FALSE),\n          VLOOKUP(S496, 'Data order'!$AC$2:$AD$91, 2, FALSE)\n      )\n  ),\n\"\")","v":""},null,null,null,null,"EUR",null,null,null,{"$error":"#DIV/0!"},0,0,null,"","","","","","","","","","",null,null,null,null,null,null,null,null,null,null,null,null,null,null,null,null,null,"ZWO"]
[null,null,null,null,null,{"$f":"VLOOKUP(G497,'Data order'!Z:AA,2,0)","v":{"$error":"#N/A"}},null,null,null,null,null,null,null,null,{"$f":"VLOOKUP(N497,Tabel10[[korte omschrijving]:[MCC3_CODE]],2,0)","v":{"$error":"#N/A"}},{"$f":"VLOOKUP(N497,'Data order'!M:O,3,0)","v":{"$error":"#N/A"}},null,null,null,{"$f":"IFERROR(\n  IF(R497=\"Big&Tall\",\n      VLOOKUP(S497, 'Data order'!$AC$92:$AD$101, 2, FALSE),\n      IF(R497=\"Boordmaat\",\n          VLOOKUP(S497, 'Data order'!$AC$102:$AD$116, 2, FALSE),\n          VLOOKUP(S497, 'Data order'!$AC$2:$AD$91, 2, FALSE)\n      )\n  ),\n\"\")","v":""},null,null,null,null,"EUR",null,null,null,{"$error":"#DIV/0!"},0,0,null,"","","","","","","","","","",null,null,null,null,null,null,null,null,null,null,null,null,null,null,null,null,null,"ZWO"]
[null,null,null,null,null,{"$f":"VLOOKUP(G498,'Data order'!Z:AA,2,0)","v":{"$error":"#N/A"}},null,null,null,null,null,null,null,null,{"$f":"VLOOKUP(N498,Tabel10[[korte omschrijving]:[MCC3_CODE]],2,0)","v":{"$error":"#N/A"}},{"$f":"VLOOKUP(N498,'Data order'!M:O,3,0)","v":{"$error":"#N/A"}},null,null,null,{"$f":"IFERROR(\n  IF(R498=\"Big&Tall\",\n      VLOOKUP(S498, 'Data order'!$AC$92:$AD$101, 2, FALSE),\n      IF(R498=\"Boordmaat\",\n          VLOOKUP(S498, 'Data order'!$AC$102:$AD$116, 2, FALSE),\n          VLOOKUP(S498, 'Data order'!$AC$2:$AD$91, 2, FALSE)\n      )\n  ),\n\"\")","v":""},null,{"$f":"SUM(U498:U503)","v":0},null,null,"EUR",null,null,null,{"$error":"#DIV/0!"},0,0,null,"","","","","","","","","","",null,null,null,null,null,null,null,null,null,null,null,null,null,null,null,null,null,"ZWO"]
[null,null,null,null,null,{"$f":"VLOOKUP(G499,'Data order'!Z:AA,2,0)","v":{"$error":"#N/A"}},null,null,null,null,null,null,null,null,{"$f":"VLOOKUP(N499,Tabel10[[korte omschrijving]:[MCC3_CODE]],2,0)","v":{"$error":"#N/A"}},{"$f":"VLOOKUP(N499,'Data order'!M:O,3,0)","v":{"$error":"#N/A"}},null,null,null,{"$f":"IFERROR(\n  IF(R499=\"Big&Tall\",\n      VLOOKUP(S499, 'Data order'!$AC$92:$AD$101, 2, FALSE),\n      IF(R499=\"Boordmaat\",\n          VLOOKUP(S499, 'Data order'!$AC$102:$AD$116, 2, FALSE),\n          VLOOKUP(S499, 'Data order'!$AC$2:$AD$91, 2, FALSE)\n      )\n  ),\n\"\")","v":""},null,null,null,null,"EUR",null,null,null,{"$error":"#DIV/0!"},0,0,null,"","","","","","","","","","",null,null,null,null,null,null,null,null,null,null,null,null,null,null,null,null,null,"ZWO"]
[null,null,null,null,null,{"$f":"VLOOKUP(G500,'Data order'!Z:AA,2,0)","v":{"$error":"#N/A"}},null,null,null,null,null,null,null,null,{"$f":"VLOOKUP(N500,Tabel10[[korte omschrijving]:[MCC3_CODE]],2,0)","v":{"$error":"#N/A"}},{"$f":"VLOOKUP(N500,'Data order'!M:O,3,0)","v":{"$error":"#N/A"}},null,null,null,{"$f":"IFERROR(\n  IF(R500=\"Big&Tall\",\n      VLOOKUP(S500, 'Data order'!$AC$92:$AD$101, 2, FALSE),\n      IF(R500=\"Boordmaat\",\n          VLOOKUP(S500, 'Data order'!$AC$102:$AD$116, 2, FALSE),\n          VLOOKUP(S500, 'Data order'!$AC$2:$AD$91, 2, FALSE)\n      )\n  ),\n\"\")","v":""},null,null,null,null,"EUR",null,null,null,{"$error":"#DIV/0!"},0,0,null,"","","","","","","","","","",null,null,null,null,null,null,null,null,null,null,null,null,null,null,null,null,null,"ZWO"]
[null,null,null,null,null,{"$f":"VLOOKUP(G501,'Data order'!Z:AA,2,0)","v":{"$error":"#N/A"}},null,null,null,null,null,null,null,null,{"$f":"VLOOKUP(N501,Tabel10[[korte omschrijving]:[MCC3_CODE]],2,0)","v":{"$error":"#N/A"}},{"$f":"VLOOKUP(N501,'Data order'!M:O,3,0)","v":{"$error":"#N/A"}},null,null,null,{"$f":"IFERROR(\n  IF(R501=\"Big&Tall\",\n      VLOOKUP(S501, 'Data order'!$AC$92:$AD$101, 2, FALSE),\n      IF(R501=\"Boordmaat\",\n          VLOOKUP(S501, 'Data order'!$AC$102:$AD$116, 2, FALSE),\n          VLOOKUP(S501, 'Data order'!$AC$2:$AD$91, 2, FALSE)\n      )\n  ),\n\"\")","v":""},null,null,null,null,"EUR",null,null,null,{"$error":"#DIV/0!"},0,0,null,"","","","","","","","","","",null,null,null,null,null,null,null,null,null,null,null,null,null,null,null,null,null,"ZWO"]
[null,null,null,null,null,{"$f":"VLOOKUP(G502,'Data order'!Z:AA,2,0)","v":{"$error":"#N/A"}},null,null,null,null,null,null,null,null,{"$f":"VLOOKUP(N502,Tabel10[[korte omschrijving]:[MCC3_CODE]],2,0)","v":{"$error":"#N/A"}},{"$f":"VLOOKUP(N502,'Data order'!M:O,3,0)","v":{"$error":"#N/A"}},null,null,null,{"$f":"IFERROR(\n  IF(R502=\"Big&Tall\",\n      VLOOKUP(S502, 'Data order'!$AC$92:$AD$101, 2, FALSE),\n      IF(R502=\"Boordmaat\",\n          VLOOKUP(S502, 'Data order'!$AC$102:$AD$116, 2, FALSE),\n          VLOOKUP(S502, 'Data order'!$AC$2:$AD$91, 2, FALSE)\n      )\n  ),\n\"\")","v":""},null,null,null,null,"EUR",null,null,null,{"$error":"#DIV/0!"},0,0,null,"","","","","","","","","","",null,null,null,null,null,null,null,null,null,null,null,null,null,null,null,null,null,"ZWO"]
[null,null,null,null,null,{"$f":"VLOOKUP(G503,'Data order'!Z:AA,2,0)","v":{"$error":"#N/A"}},null,null,null,null,null,null,null,null,{"$f":"VLOOKUP(N503,Tabel10[[korte omschrijving]:[MCC3_CODE]],2,0)","v":{"$error":"#N/A"}},{"$f":"VLOOKUP(N503,'Data order'!M:O,3,0)","v":{"$error":"#N/A"}},null,null,null,{"$f":"IFERROR(\n  IF(R503=\"Big&Tall\",\n      VLOOKUP(S503, 'Data order'!$AC$92:$AD$101, 2, FALSE),\n      IF(R503=\"Boordmaat\",\n          VLOOKUP(S503, 'Data order'!$AC$102:$AD$116, 2, FALSE),\n          VLOOKUP(S503, 'Data order'!$AC$2:$AD$91, 2, FALSE)\n      )\n  ),\n\"\")","v":""},null,null,null,null,"EUR",null,null,null,{"$error":"#DIV/0!"},0,0,null,"","","","","","","","","","",null,null,null,null,null,null,null,null,null,null,null,null,null,null,null,null,null,"ZWO"]
[null,null,null,null,null,{"$f":"VLOOKUP(G504,'Data order'!Z:AA,2,0)","v":{"$error":"#N/A"}},null,null,null,null,null,null,null,null,{"$f":"VLOOKUP(N504,Tabel10[[korte omschrijving]:[MCC3_CODE]],2,0)","v":{"$error":"#N/A"}},{"$f":"VLOOKUP(N504,'Data order'!M:O,3,0)","v":{"$error":"#N/A"}},null,null,null,{"$f":"IFERROR(\n  IF(R504=\"Big&Tall\",\n      VLOOKUP(S504, 'Data order'!$AC$92:$AD$101, 2, FALSE),\n      IF(R504=\"Boordmaat\",\n          VLOOKUP(S504, 'Data order'!$AC$102:$AD$116, 2, FALSE),\n          VLOOKUP(S504, 'Data order'!$AC$2:$AD$91, 2, FALSE)\n      )\n  ),\n\"\")","v":""},null,{"$f":"SUM(U504:U509)","v":0},null,null,"EUR",null,null,null,{"$f":"AB504/Z504","v":{"$error":"#DIV/0!"}},{"$f":"U504*Z504","v":0},{"$f":"U504*AB504","v":0},null,{"$f":"IF(AF504 <> \"\",\n    IF(ISNUMBER(VALUE(LEFT(AF504, FIND(\"%\", AF504)-1))),\n        VALUE(LEFT(AF504, FIND(\"%\", AF504)-1)),\n        \"Invalid format\"),\n    \"\")","v":""},{"$f":"IF(AF504 <> \"\",\n    IF(ISNUMBER(VALUE(LEFT(AF504, FIND(\"%\", AF504)-1))) * ISNUMBER(FIND(\"%\", AF504 & \"wol\")) > 0,\n        TRIM(MID(AF504, FIND(\"%\", AF504)+1, FIND(\"/\", AF504 & \"/\")-FIND(\"%\", AF504)-1)),\n        \"Invalid format\"),\n    \"\")","v":""},{"$f":"IF(AF504 <> \"\",\n    IF(ISNUMBER(VALUE(MID(AF504, FIND(\"/\", AF504) + 1, FIND(\"%\", AF504, FIND(\"/\", AF504)) - FIND(\"/\", AF504) - 1))),\n        VALUE(MID(AF504, FIND(\"/\", AF504) + 1, FIND(\"%\", AF504, FIND(\"/\", AF504)) - FIND(\"/\", AF504) - 1)),\n        \"\"),\n    \"\")","v":""},{"$f":"IF(AF504 <> \"\",\n    IFERROR(TRIM(MID(AF504, FIND(\"%\", AF504, FIND(\"/\", AF504)+1)+2,\n        IFERROR(FIND(\"/\", AF504 & \"/\", FIND(\"/\", AF504)+1)-FIND(\"%\", AF504, FIND(\"/\", AF504)+1)-2, LEN(AF504)-FIND(\"%\", AF504, FIND(\"/\", AF504)+1)-1))),\n        \"\"),\n    \"\")","v":""},{"$f":"IF(AF504 <> \"\",\n    IF(ISNUMBER(VALUE(MID(AF504, FIND(\"/\", AF504, FIND(\"/\", AF504)+1) + 1, FIND(\"%\", AF504, FIND(\"/\", AF504, FIND(\"/\", AF504)+1)) - FIND(\"/\", AF504, FIND(\"/\", AF504)+1) - 1))),\n        VALUE(MID(AF504, FIND(\"/\", AF504, FIND(\"/\", AF504)+1) + 1, FIND(\"%\", AF504, FIND(\"/\", AF504, FIND(\"/\", AF504)+1)) - FIND(\"/\", AF504, FIND(\"/\", AF504)+1) - 1)),\n        \"\"),\n    \"\")","v":""},{"$f":"IF(AF504 <> \"\",\n    IFERROR(\n        TRIM(MID(AF504,\n            FIND(\"%\", AF504, FIND(\"%\", AF504, FIND(\"%\", AF504)+1)+1)+1,\n            FIND(\"/\", AF504 & \"/\", FIND(\"%\", AF504, FIND(\"%\", AF504, FIND(\"%\", AF504)+1)+1))-FIND(\"%\", AF504, FIND(\"%\", AF504, FIND(\"%\", AF504)+1)+1)-1)\n        ),\n        \"\"\n    ),\n    \"\"\n)","v":""},{"$f":"IF(AF504 <> \"\",\n    IF(ISNUMBER(VALUE(MID(AF504, FIND(\"/\", AF504, FIND(\"/\", AF504, FIND(\"/\", AF504)+1)+1) + 1, FIND(\"%\", AF504, FIND(\"/\", AF504, FIND(\"/\", AF504, FIND(\"/\", AF504)+1)+1)) - FIND(\"/\", AF504, FIND(\"/\", AF504, FIND(\"/\", AF504)+1)+1) - 1))),\n        VALUE(MID(AF504, FIND(\"/\", AF504, FIND(\"/\", AF504, FIND(\"/\", AF504)+1)+1) + 1, FIND(\"%\", AF504, FIND(\"/\", AF504, FIND(\"/\", AF504, FIND(\"/\", AF504)+1)+1)) - FIND(\"/\", AF504, FIND(\"/\", AF504, FIND(\"/\", AF504)+1)+1) - 1)),\n        \"\"),\n    \"\")","v":""},{"$f":"IF(AF504 <> \"\",\n    IFERROR(TRIM(MID(AF504, FIND(\"%\", AF504, FIND(\"/\", AF504, FIND(\"/\", AF504, FIND(\"/\", AF504)+1)+1)+1)+2,\n        IFERROR(FIND(\"/\", AF504, FIND(\"/\", AF504, FIND(\"/\", AF504, FIND(\"/\", AF504)+1)+1)+1)-FIND(\"%\", AF504, FIND(\"/\", AF504, FIND(\"/\", AF504, FIND(\"/\", AF504)+1)+1)+1)-2, LEN(AF504)-FIND(\"%\", AF504, FIND(\"/\", AF504, FIND(\"/\", AF504, FIND(\"/\", AF504)+1)+1)+1)-1))),\n        \"\"),\n    \"\")","v":""},{"$f":"IF(AF504 <> \"\",\n    IF(ISNUMBER(VALUE(MID(AF504, FIND(\"/\", AF504, FIND(\"/\", AF504, FIND(\"/\", AF504, FIND(\"/\", AF504)+1)+1)+1) + 1, FIND(\"%\", AF504, FIND(\"/\", AF504, FIND(\"/\", AF504, FIND(\"/\", AF504, FIND(\"/\", AF504)+1)+1)+1)) - FIND(\"/\", AF504, FIND(\"/\", AF504, FIND(\"/\", AF504, FIND(\"/\", AF504)+1)+1)+1) - 1))),\n        VALUE(MID(AF504, FIND(\"/\", AF504, FIND(\"/\", AF504, FIND(\"/\", AF504, FIND(\"/\", AF504)+1)+1)+1) + 1, FIND(\"%\", AF504, FIND(\"/\", AF504, FIND(\"/\", AF504, FIND(\"/\", AF504, FIND(\"/\", AF504)+1)+1)+1)) - FIND(\"/\", AF504, FIND(\"/\", AF504, FIND(\"/\", AF504, FIND(\"/\", AF504)+1)+1)+1) - 1)),\n        \"\"),\n    \"\")","v":""},{"$f":"IF(AF504 = \"\", \"\",\n    IFERROR(TRIM(\n        MID(\n            AF504,\n            FIND(\"%\", AF504, FIND(\"/\", AF504, FIND(\"/\", AF504, FIND(\"/\", AF504, FIND(\"/\", AF504)+1)+1)+1)+1) + 1,\n            FIND(\"/\", AF504 & \"/\", FIND(\"%\", AF504, FIND(\"/\", AF504, FIND(\"/\", AF504, FIND(\"/\", AF504, FIND(\"/\", AF504)+1)+1)+1)+1)) -\n            FIND(\"%\", AF504, FIND(\"/\", AF504, FIND(\"/\", AF504, FIND(\"/\", AF504, FIND(\"/\", AF504)+1)+1)+1)+1) - 1\n        )\n    ),\n    \"\")\n)","v":""},null,null,null,null,null,null,null,null,null,null,null,null,null,null,null,null,null,"ZWO"]
[null,null,null,null,null,{"$f":"VLOOKUP(G505,'Data order'!Z:AA,2,0)","v":{"$error":"#N/A"}},null,null,null,null,null,null,null,null,{"$f":"VLOOKUP(N505,Tabel10[[korte omschrijving]:[MCC3_CODE]],2,0)","v":{"$error":"#N/A"}},{"$f":"VLOOKUP(N505,'Data order'!M:O,3,0)","v":{"$error":"#N/A"}},null,null,null,{"$f":"IFERROR(\n  IF(R505=\"Big&Tall\",\n      VLOOKUP(S505, 'Data order'!$AC$92:$AD$101, 2, FALSE),\n      IF(R505=\"Boordmaat\",\n          VLOOKUP(S505, 'Data order'!$AC$102:$AD$116, 2, FALSE),\n          VLOOKUP(S505, 'Data order'!$AC$2:$AD$91, 2, FALSE)\n      )\n  ),\n\"\")","v":""},null,null,null,null,"EUR",null,null,null,{"$error":"#DIV/0!"},0,0,null,"","","","","","","","","","",null,null,null,null,null,null,null,null,null,null,null,null,null,null,null,null,null,"ZWO"]
[null,null,null,null,null,{"$f":"VLOOKUP(G506,'Data order'!Z:AA,2,0)","v":{"$error":"#N/A"}},null,null,null,null,null,null,null,null,{"$f":"VLOOKUP(N506,Tabel10[[korte omschrijving]:[MCC3_CODE]],2,0)","v":{"$error":"#N/A"}},{"$f":"VLOOKUP(N506,'Data order'!M:O,3,0)","v":{"$error":"#N/A"}},null,null,null,{"$f":"IFERROR(\n  IF(R506=\"Big&Tall\",\n      VLOOKUP(S506, 'Data order'!$AC$92:$AD$101, 2, FALSE),\n      IF(R506=\"Boordmaat\",\n          VLOOKUP(S506, 'Data order'!$AC$102:$AD$116, 2, FALSE),\n          VLOOKUP(S506, 'Data order'!$AC$2:$AD$91, 2, FALSE)\n      )\n  ),\n\"\")","v":""},null,null,null,null,"EUR",null,null,null,{"$error":"#DIV/0!"},0,0,null,"","","","","","","","","","",null,null,null,null,null,null,null,null,null,null,null,null,null,null,null,null,null,"ZWO"]
[null,null,null,null,null,{"$f":"VLOOKUP(G507,'Data order'!Z:AA,2,0)","v":{"$error":"#N/A"}},null,null,null,null,null,null,null,null,{"$f":"VLOOKUP(N507,Tabel10[[korte omschrijving]:[MCC3_CODE]],2,0)","v":{"$error":"#N/A"}},{"$f":"VLOOKUP(N507,'Data order'!M:O,3,0)","v":{"$error":"#N/A"}},null,null,null,{"$f":"IFERROR(\n  IF(R507=\"Big&Tall\",\n      VLOOKUP(S507, 'Data order'!$AC$92:$AD$101, 2, FALSE),\n      IF(R507=\"Boordmaat\",\n          VLOOKUP(S507, 'Data order'!$AC$102:$AD$116, 2, FALSE),\n          VLOOKUP(S507, 'Data order'!$AC$2:$AD$91, 2, FALSE)\n      )\n  ),\n\"\")","v":""},null,null,null,null,"EUR",null,null,null,{"$error":"#DIV/0!"},0,0,null,"","","","","","","","","","",null,null,null,null,null,null,null,null,null,null,null,null,null,null,null,null,null,"ZWO"]
[null,null,null,null,null,{"$f":"VLOOKUP(G508,'Data order'!Z:AA,2,0)","v":{"$error":"#N/A"}},null,null,null,null,null,null,null,null,{"$f":"VLOOKUP(N508,Tabel10[[korte omschrijving]:[MCC3_CODE]],2,0)","v":{"$error":"#N/A"}},{"$f":"VLOOKUP(N508,'Data order'!M:O,3,0)","v":{"$error":"#N/A"}},null,null,null,{"$f":"IFERROR(\n  IF(R508=\"Big&Tall\",\n      VLOOKUP(S508, 'Data order'!$AC$92:$AD$101, 2, FALSE),\n      IF(R508=\"Boordmaat\",\n          VLOOKUP(S508, 'Data order'!$AC$102:$AD$116, 2, FALSE),\n          VLOOKUP(S508, 'Data order'!$AC$2:$AD$91, 2, FALSE)\n      )\n  ),\n\"\")","v":""},null,null,null,null,"EUR",null,null,null,{"$error":"#DIV/0!"},0,0,null,"","","","","","","","","","",null,null,null,null,null,null,null,null,null,null,null,null,null,null,null,null,null,"ZWO"]
[null,null,null,null,null,{"$f":"VLOOKUP(G509,'Data order'!Z:AA,2,0)","v":{"$error":"#N/A"}},null,null,null,null,null,null,null,null,{"$f":"VLOOKUP(N509,Tabel10[[korte omschrijving]:[MCC3_CODE]],2,0)","v":{"$error":"#N/A"}},{"$f":"VLOOKUP(N509,'Data order'!M:O,3,0)","v":{"$error":"#N/A"}},null,null,null,{"$f":"IFERROR(\n  IF(R509=\"Big&Tall\",\n      VLOOKUP(S509, 'Data order'!$AC$92:$AD$101, 2, FALSE),\n      IF(R509=\"Boordmaat\",\n          VLOOKUP(S509, 'Data order'!$AC$102:$AD$116, 2, FALSE),\n          VLOOKUP(S509, 'Data order'!$AC$2:$AD$91, 2, FALSE)\n      )\n  ),\n\"\")","v":""},null,null,null,null,"EUR",null,null,null,{"$error":"#DIV/0!"},0,0,null,"","","","","","","","","","",null,null,null,null,null,null,null,null,null,null,null,null,null,null,null,null,null,"ZWO"]
[null,null,null,null,null,{"$f":"VLOOKUP(G510,'Data order'!Z:AA,2,0)","v":{"$error":"#N/A"}},null,null,null,null,null,null,null,null,{"$f":"VLOOKUP(N510,Tabel10[[korte omschrijving]:[MCC3_CODE]],2,0)","v":{"$error":"#N/A"}},{"$f":"VLOOKUP(N510,'Data order'!M:O,3,0)","v":{"$error":"#N/A"}},null,null,null,{"$f":"IFERROR(\n  IF(R510=\"Big&Tall\",\n      VLOOKUP(S510, 'Data order'!$AC$92:$AD$101, 2, FALSE),\n      IF(R510=\"Boordmaat\",\n          VLOOKUP(S510, 'Data order'!$AC$102:$AD$116, 2, FALSE),\n          VLOOKUP(S510, 'Data order'!$AC$2:$AD$91, 2, FALSE)\n      )\n  ),\n\"\")","v":""},null,0,null,null,"EUR",null,null,null,{"$f":"AB510/Z510","v":{"$error":"#DIV/0!"}},{"$f":"U510*Z510","v":0},{"$f":"U510*AB510","v":0},null,"","","","","","","","","","",null,null,null,null,null,null,null,null,null,null,null,null,null,null,null,null,null,"ZWO"]
[null,null,null,null,null,{"$f":"VLOOKUP(G511,'Data order'!Z:AA,2,0)","v":{"$error":"#N/A"}},null,null,null,null,null,null,null,null,{"$f":"VLOOKUP(N511,Tabel10[[korte omschrijving]:[MCC3_CODE]],2,0)","v":{"$error":"#N/A"}},{"$f":"VLOOKUP(N511,'Data order'!M:O,3,0)","v":{"$error":"#N/A"}},null,null,null,{"$f":"IFERROR(\n  IF(R511=\"Big&Tall\",\n      VLOOKUP(S511, 'Data order'!$AC$92:$AD$101, 2, FALSE),\n      IF(R511=\"Boordmaat\",\n          VLOOKUP(S511, 'Data order'!$AC$102:$AD$116, 2, FALSE),\n          VLOOKUP(S511, 'Data order'!$AC$2:$AD$91, 2, FALSE)\n      )\n  ),\n\"\")","v":""},null,null,null,null,"EUR",null,null,null,{"$error":"#DIV/0!"},0,0,null,"","","","","","","","","","",null,null,null,null,null,null,null,null,null,null,null,null,null,null,null,null,null,"ZWO"]
[null,null,null,null,null,{"$f":"VLOOKUP(G512,'Data order'!Z:AA,2,0)","v":{"$error":"#N/A"}},null,null,null,null,null,null,null,null,{"$f":"VLOOKUP(N512,Tabel10[[korte omschrijving]:[MCC3_CODE]],2,0)","v":{"$error":"#N/A"}},{"$f":"VLOOKUP(N512,'Data order'!M:O,3,0)","v":{"$error":"#N/A"}},null,null,null,{"$f":"IFERROR(\n  IF(R512=\"Big&Tall\",\n      VLOOKUP(S512, 'Data order'!$AC$92:$AD$101, 2, FALSE),\n      IF(R512=\"Boordmaat\",\n          VLOOKUP(S512, 'Data order'!$AC$102:$AD$116, 2, FALSE),\n          VLOOKUP(S512, 'Data order'!$AC$2:$AD$91, 2, FALSE)\n      )\n  ),\n\"\")","v":""},null,null,null,null,"EUR",null,null,null,{"$error":"#DIV/0!"},0,0,null,"","","","","","","","","","",null,null,null,null,null,null,null,null,null,null,null,null,null,null,null,null,null,"ZWO"]
[null,null,null,null,null,{"$f":"VLOOKUP(G513,'Data order'!Z:AA,2,0)","v":{"$error":"#N/A"}},null,null,null,null,null,null,null,null,{"$f":"VLOOKUP(N513,Tabel10[[korte omschrijving]:[MCC3_CODE]],2,0)","v":{"$error":"#N/A"}},{"$f":"VLOOKUP(N513,'Data order'!M:O,3,0)","v":{"$error":"#N/A"}},null,null,null,{"$f":"IFERROR(\n  IF(R513=\"Big&Tall\",\n      VLOOKUP(S513, 'Data order'!$AC$92:$AD$101, 2, FALSE),\n      IF(R513=\"Boordmaat\",\n          VLOOKUP(S513, 'Data order'!$AC$102:$AD$116, 2, FALSE),\n          VLOOKUP(S513, 'Data order'!$AC$2:$AD$91, 2, FALSE)\n      )\n  ),\n\"\")","v":""},null,null,null,null,"EUR",null,null,null,{"$error":"#DIV/0!"},0,0,null,"","","","","","","","","","",null,null,null,null,null,null,null,null,null,null,null,null,null,null,null,null,null,"ZWO"]
[null,null,null,null,null,{"$f":"VLOOKUP(G514,'Data order'!Z:AA,2,0)","v":{"$error":"#N/A"}},null,null,null,null,null,null,null,null,{"$f":"VLOOKUP(N514,Tabel10[[korte omschrijving]:[MCC3_CODE]],2,0)","v":{"$error":"#N/A"}},{"$f":"VLOOKUP(N514,'Data order'!M:O,3,0)","v":{"$error":"#N/A"}},null,null,null,{"$f":"IFERROR(\n  IF(R514=\"Big&Tall\",\n      VLOOKUP(S514, 'Data order'!$AC$92:$AD$101, 2, FALSE),\n      IF(R514=\"Boordmaat\",\n          VLOOKUP(S514, 'Data order'!$AC$102:$AD$116, 2, FALSE),\n          VLOOKUP(S514, 'Data order'!$AC$2:$AD$91, 2, FALSE)\n      )\n  ),\n\"\")","v":""},null,null,null,null,"EUR",null,null,null,{"$error":"#DIV/0!"},0,0,null,"","","","","","","","","","",null,null,null,null,null,null,null,null,null,null,null,null,null,null,null,null,null,"ZWO"]
[null,null,null,null,null,{"$f":"VLOOKUP(G515,'Data order'!Z:AA,2,0)","v":{"$error":"#N/A"}},null,null,null,null,null,null,null,null,{"$f":"VLOOKUP(N515,Tabel10[[korte omschrijving]:[MCC3_CODE]],2,0)","v":{"$error":"#N/A"}},{"$f":"VLOOKUP(N515,'Data order'!M:O,3,0)","v":{"$error":"#N/A"}},null,null,null,{"$f":"IFERROR(\n  IF(R515=\"Big&Tall\",\n      VLOOKUP(S515, 'Data order'!$AC$92:$AD$101, 2, FALSE),\n      IF(R515=\"Boordmaat\",\n          VLOOKUP(S515, 'Data order'!$AC$102:$AD$116, 2, FALSE),\n          VLOOKUP(S515, 'Data order'!$AC$2:$AD$91, 2, FALSE)\n      )\n  ),\n\"\")","v":""},null,null,null,null,"EUR",null,null,null,{"$error":"#DIV/0!"},0,0,null,"","","","","","","","","","",null,null,null,null,null,null,null,null,null,null,null,null,null,null,null,null,null,"ZWO"]
[null,null,null,null,null,{"$f":"VLOOKUP(G516,'Data order'!Z:AA,2,0)","v":{"$error":"#N/A"}},null,null,null,null,null,null,null,null,{"$f":"VLOOKUP(N516,Tabel10[[korte omschrijving]:[MCC3_CODE]],2,0)","v":{"$error":"#N/A"}},{"$f":"VLOOKUP(N516,'Data order'!M:O,3,0)","v":{"$error":"#N/A"}},null,null,null,{"$f":"IFERROR(\n  IF(R516=\"Big&Tall\",\n      VLOOKUP(S516, 'Data order'!$AC$92:$AD$101, 2, FALSE),\n      IF(R516=\"Boordmaat\",\n          VLOOKUP(S516, 'Data order'!$AC$102:$AD$116, 2, FALSE),\n          VLOOKUP(S516, 'Data order'!$AC$2:$AD$91, 2, FALSE)\n      )\n  ),\n\"\")","v":""},null,0,null,null,"EUR",null,null,null,{"$f":"AB516/Z516","v":{"$error":"#DIV/0!"}},{"$f":"U516*Z516","v":0},{"$f":"U516*AB516","v":0},null,"","","","","","","","","","",null,null,null,null,null,null,null,null,null,null,null,null,null,null,null,null,null,"ZWO"]
[null,null,null,null,null,{"$f":"VLOOKUP(G517,'Data order'!Z:AA,2,0)","v":{"$error":"#N/A"}},null,null,null,null,null,null,null,null,{"$f":"VLOOKUP(N517,Tabel10[[korte omschrijving]:[MCC3_CODE]],2,0)","v":{"$error":"#N/A"}},{"$f":"VLOOKUP(N517,'Data order'!M:O,3,0)","v":{"$error":"#N/A"}},null,null,null,{"$f":"IFERROR(\n  IF(R517=\"Big&Tall\",\n      VLOOKUP(S517, 'Data order'!$AC$92:$AD$101, 2, FALSE),\n      IF(R517=\"Boordmaat\",\n          VLOOKUP(S517, 'Data order'!$AC$102:$AD$116, 2, FALSE),\n          VLOOKUP(S517, 'Data order'!$AC$2:$AD$91, 2, FALSE)\n      )\n  ),\n\"\")","v":""},null,null,null,null,"EUR",null,null,null,{"$error":"#DIV/0!"},0,0,null,"","","","","","","","","","",null,null,null,null,null,null,null,null,null,null,null,null,null,null,null,null,null,"ZWO"]
[null,null,null,null,null,{"$f":"VLOOKUP(G518,'Data order'!Z:AA,2,0)","v":{"$error":"#N/A"}},null,null,null,null,null,null,null,null,{"$f":"VLOOKUP(N518,Tabel10[[korte omschrijving]:[MCC3_CODE]],2,0)","v":{"$error":"#N/A"}},{"$f":"VLOOKUP(N518,'Data order'!M:O,3,0)","v":{"$error":"#N/A"}},null,null,null,{"$f":"IFERROR(\n  IF(R518=\"Big&Tall\",\n      VLOOKUP(S518, 'Data order'!$AC$92:$AD$101, 2, FALSE),\n      IF(R518=\"Boordmaat\",\n          VLOOKUP(S518, 'Data order'!$AC$102:$AD$116, 2, FALSE),\n          VLOOKUP(S518, 'Data order'!$AC$2:$AD$91, 2, FALSE)\n      )\n  ),\n\"\")","v":""},null,null,null,null,"EUR",null,null,null,{"$error":"#DIV/0!"},0,0,null,"","","","","","","","","","",null,null,null,null,null,null,null,null,null,null,null,null,null,null,null,null,null,"ZWO"]
[null,null,null,null,null,{"$f":"VLOOKUP(G519,'Data order'!Z:AA,2,0)","v":{"$error":"#N/A"}},null,null,null,null,null,null,null,null,{"$f":"VLOOKUP(N519,Tabel10[[korte omschrijving]:[MCC3_CODE]],2,0)","v":{"$error":"#N/A"}},{"$f":"VLOOKUP(N519,'Data order'!M:O,3,0)","v":{"$error":"#N/A"}},null,null,null,{"$f":"IFERROR(\n  IF(R519=\"Big&Tall\",\n      VLOOKUP(S519, 'Data order'!$AC$92:$AD$101, 2, FALSE),\n      IF(R519=\"Boordmaat\",\n          VLOOKUP(S519, 'Data order'!$AC$102:$AD$116, 2, FALSE),\n          VLOOKUP(S519, 'Data order'!$AC$2:$AD$91, 2, FALSE)\n      )\n  ),\n\"\")","v":""},null,null,null,null,"EUR",null,null,null,{"$error":"#DIV/0!"},0,0,null,"","","","","","","","","","",null,null,null,null,null,null,null,null,null,null,null,null,null,null,null,null,null,"ZWO"]
[null,null,null,null,null,{"$f":"VLOOKUP(G520,'Data order'!Z:AA,2,0)","v":{"$error":"#N/A"}},null,null,null,null,null,null,null,null,{"$f":"VLOOKUP(N520,Tabel10[[korte omschrijving]:[MCC3_CODE]],2,0)","v":{"$error":"#N/A"}},{"$f":"VLOOKUP(N520,'Data order'!M:O,3,0)","v":{"$error":"#N/A"}},null,null,null,{"$f":"IFERROR(\n  IF(R520=\"Big&Tall\",\n      VLOOKUP(S520, 'Data order'!$AC$92:$AD$101, 2, FALSE),\n      IF(R520=\"Boordmaat\",\n          VLOOKUP(S520, 'Data order'!$AC$102:$AD$116, 2, FALSE),\n          VLOOKUP(S520, 'Data order'!$AC$2:$AD$91, 2, FALSE)\n      )\n  ),\n\"\")","v":""},null,null,null,null,"EUR",null,null,null,{"$error":"#DIV/0!"},0,0,null,"","","","","","","","","","",null,null,null,null,null,null,null,null,null,null,null,null,null,null,null,null,null,"ZWO"]
[null,null,null,null,null,{"$f":"VLOOKUP(G521,'Data order'!Z:AA,2,0)","v":{"$error":"#N/A"}},null,null,null,null,null,null,null,null,{"$f":"VLOOKUP(N521,Tabel10[[korte omschrijving]:[MCC3_CODE]],2,0)","v":{"$error":"#N/A"}},{"$f":"VLOOKUP(N521,'Data order'!M:O,3,0)","v":{"$error":"#N/A"}},null,null,null,{"$f":"IFERROR(\n  IF(R521=\"Big&Tall\",\n      VLOOKUP(S521, 'Data order'!$AC$92:$AD$101, 2, FALSE),\n      IF(R521=\"Boordmaat\",\n          VLOOKUP(S521, 'Data order'!$AC$102:$AD$116, 2, FALSE),\n          VLOOKUP(S521, 'Data order'!$AC$2:$AD$91, 2, FALSE)\n      )\n  ),\n\"\")","v":""},null,null,null,null,"EUR",null,null,null,{"$error":"#DIV/0!"},0,0,null,"","","","","","","","","","",null,null,null,null,null,null,null,null,null,null,null,null,null,null,null,null,null,"ZWO"]
[null,null,null,null,null,{"$f":"VLOOKUP(G522,'Data order'!Z:AA,2,0)","v":{"$error":"#N/A"}},null,null,null,null,null,null,null,null,{"$f":"VLOOKUP(N522,Tabel10[[korte omschrijving]:[MCC3_CODE]],2,0)","v":{"$error":"#N/A"}},{"$f":"VLOOKUP(N522,'Data order'!M:O,3,0)","v":{"$error":"#N/A"}},null,null,null,{"$f":"IFERROR(\n  IF(R522=\"Big&Tall\",\n      VLOOKUP(S522, 'Data order'!$AC$92:$AD$101, 2, FALSE),\n      IF(R522=\"Boordmaat\",\n          VLOOKUP(S522, 'Data order'!$AC$102:$AD$116, 2, FALSE),\n          VLOOKUP(S522, 'Data order'!$AC$2:$AD$91, 2, FALSE)\n      )\n  ),\n\"\")","v":""},null,0,null,null,"EUR",null,null,null,{"$f":"AB522/Z522","v":{"$error":"#DIV/0!"}},{"$f":"U522*Z522","v":0},{"$f":"U522*AB522","v":0},null,"","","","","","","","","","",null,null,null,null,null,null,null,null,null,null,null,null,null,null,null,null,null,"ZWO"]
[null,null,null,null,null,{"$f":"VLOOKUP(G523,'Data order'!Z:AA,2,0)","v":{"$error":"#N/A"}},null,null,null,null,null,null,null,null,{"$f":"VLOOKUP(N523,Tabel10[[korte omschrijving]:[MCC3_CODE]],2,0)","v":{"$error":"#N/A"}},{"$f":"VLOOKUP(N523,'Data order'!M:O,3,0)","v":{"$error":"#N/A"}},null,null,null,{"$f":"IFERROR(\n  IF(R523=\"Big&Tall\",\n      VLOOKUP(S523, 'Data order'!$AC$92:$AD$101, 2, FALSE),\n      IF(R523=\"Boordmaat\",\n          VLOOKUP(S523, 'Data order'!$AC$102:$AD$116, 2, FALSE),\n          VLOOKUP(S523, 'Data order'!$AC$2:$AD$91, 2, FALSE)\n      )\n  ),\n\"\")","v":""},null,null,null,null,"EUR",null,null,null,{"$error":"#DIV/0!"},0,0,null,"","","","","","","","","","",null,null,null,null,null,null,null,null,null,null,null,null,null,null,null,null,null,"ZWO"]
[null,null,null,null,null,{"$f":"VLOOKUP(G524,'Data order'!Z:AA,2,0)","v":{"$error":"#N/A"}},null,null,null,null,null,null,null,null,{"$f":"VLOOKUP(N524,Tabel10[[korte omschrijving]:[MCC3_CODE]],2,0)","v":{"$error":"#N/A"}},{"$f":"VLOOKUP(N524,'Data order'!M:O,3,0)","v":{"$error":"#N/A"}},null,null,null,{"$f":"IFERROR(\n  IF(R524=\"Big&Tall\",\n      VLOOKUP(S524, 'Data order'!$AC$92:$AD$101, 2, FALSE),\n      IF(R524=\"Boordmaat\",\n          VLOOKUP(S524, 'Data order'!$AC$102:$AD$116, 2, FALSE),\n          VLOOKUP(S524, 'Data order'!$AC$2:$AD$91, 2, FALSE)\n      )\n  ),\n\"\")","v":""},null,null,null,null,"EUR",null,null,null,{"$error":"#DIV/0!"},0,0,null,"","","","","","","","","","",null,null,null,null,null,null,null,null,null,null,null,null,null,null,null,null,null,"ZWO"]
[null,null,null,null,null,{"$f":"VLOOKUP(G525,'Data order'!Z:AA,2,0)","v":{"$error":"#N/A"}},null,null,null,null,null,null,null,null,{"$f":"VLOOKUP(N525,Tabel10[[korte omschrijving]:[MCC3_CODE]],2,0)","v":{"$error":"#N/A"}},{"$f":"VLOOKUP(N525,'Data order'!M:O,3,0)","v":{"$error":"#N/A"}},null,null,null,{"$f":"IFERROR(\n  IF(R525=\"Big&Tall\",\n      VLOOKUP(S525, 'Data order'!$AC$92:$AD$101, 2, FALSE),\n      IF(R525=\"Boordmaat\",\n          VLOOKUP(S525, 'Data order'!$AC$102:$AD$116, 2, FALSE),\n          VLOOKUP(S525, 'Data order'!$AC$2:$AD$91, 2, FALSE)\n      )\n  ),\n\"\")","v":""},null,null,null,null,"EUR",null,null,null,{"$error":"#DIV/0!"},0,0,null,"","","","","","","","","","",null,null,null,null,null,null,null,null,null,null,null,null,null,null,null,null,null,"ZWO"]
[null,null,null,null,null,{"$f":"VLOOKUP(G526,'Data order'!Z:AA,2,0)","v":{"$error":"#N/A"}},null,null,null,null,null,null,null,null,{"$f":"VLOOKUP(N526,Tabel10[[korte omschrijving]:[MCC3_CODE]],2,0)","v":{"$error":"#N/A"}},{"$f":"VLOOKUP(N526,'Data order'!M:O,3,0)","v":{"$error":"#N/A"}},null,null,null,{"$f":"IFERROR(\n  IF(R526=\"Big&Tall\",\n      VLOOKUP(S526, 'Data order'!$AC$92:$AD$101, 2, FALSE),\n      IF(R526=\"Boordmaat\",\n          VLOOKUP(S526, 'Data order'!$AC$102:$AD$116, 2, FALSE),\n          VLOOKUP(S526, 'Data order'!$AC$2:$AD$91, 2, FALSE)\n      )\n  ),\n\"\")","v":""},null,null,null,null,"EUR",null,null,null,{"$error":"#DIV/0!"},0,0,null,"","","","","","","","","","",null,null,null,null,null,null,null,null,null,null,null,null,null,null,null,null,null,"ZWO"]
[null,null,null,null,null,{"$f":"VLOOKUP(G527,'Data order'!Z:AA,2,0)","v":{"$error":"#N/A"}},null,null,null,null,null,null,null,null,{"$f":"VLOOKUP(N527,Tabel10[[korte omschrijving]:[MCC3_CODE]],2,0)","v":{"$error":"#N/A"}},{"$f":"VLOOKUP(N527,'Data order'!M:O,3,0)","v":{"$error":"#N/A"}},null,null,null,{"$f":"IFERROR(\n  IF(R527=\"Big&Tall\",\n      VLOOKUP(S527, 'Data order'!$AC$92:$AD$101, 2, FALSE),\n      IF(R527=\"Boordmaat\",\n          VLOOKUP(S527, 'Data order'!$AC$102:$AD$116, 2, FALSE),\n          VLOOKUP(S527, 'Data order'!$AC$2:$AD$91, 2, FALSE)\n      )\n  ),\n\"\")","v":""},null,null,null,null,"EUR",null,null,null,{"$error":"#DIV/0!"},0,0,null,"","","","","","","","","","",null,null,null,null,null,null,null,null,null,null,null,null,null,null,null,null,null,"ZWO"]
[null,null,null,null,null,{"$f":"VLOOKUP(G528,'Data order'!Z:AA,2,0)","v":{"$error":"#N/A"}},null,null,null,null,null,null,null,null,{"$f":"VLOOKUP(N528,Tabel10[[korte omschrijving]:[MCC3_CODE]],2,0)","v":{"$error":"#N/A"}},{"$f":"VLOOKUP(N528,'Data order'!M:O,3,0)","v":{"$error":"#N/A"}},null,null,null,{"$f":"IFERROR(\n  IF(R528=\"Big&Tall\",\n      VLOOKUP(S528, 'Data order'!$AC$92:$AD$101, 2, FALSE),\n      IF(R528=\"Boordmaat\",\n          VLOOKUP(S528, 'Data order'!$AC$102:$AD$116, 2, FALSE),\n          VLOOKUP(S528, 'Data order'!$AC$2:$AD$91, 2, FALSE)\n      )\n  ),\n\"\")","v":""},null,0,null,null,"EUR",null,null,null,{"$f":"AB528/Z528","v":{"$error":"#DIV/0!"}},{"$f":"U528*Z528","v":0},{"$f":"U528*AB528","v":0},null,"","","","","","","","","","",null,null,null,null,null,null,null,null,null,null,null,null,null,null,null,null,null,"ZWO"]
[null,null,null,null,null,{"$f":"VLOOKUP(G529,'Data order'!Z:AA,2,0)","v":{"$error":"#N/A"}},null,null,null,null,null,null,null,null,{"$f":"VLOOKUP(N529,Tabel10[[korte omschrijving]:[MCC3_CODE]],2,0)","v":{"$error":"#N/A"}},{"$f":"VLOOKUP(N529,'Data order'!M:O,3,0)","v":{"$error":"#N/A"}},null,null,null,{"$f":"IFERROR(\n  IF(R529=\"Big&Tall\",\n      VLOOKUP(S529, 'Data order'!$AC$92:$AD$101, 2, FALSE),\n      IF(R529=\"Boordmaat\",\n          VLOOKUP(S529, 'Data order'!$AC$102:$AD$116, 2, FALSE),\n          VLOOKUP(S529, 'Data order'!$AC$2:$AD$91, 2, FALSE)\n      )\n  ),\n\"\")","v":""},null,null,null,null,"EUR",null,null,null,{"$error":"#DIV/0!"},0,0,null,"","","","","","","","","","",null,null,null,null,null,null,null,null,null,null,null,null,null,null,null,null,null,"ZWO"]
[null,null,null,null,null,{"$f":"VLOOKUP(G530,'Data order'!Z:AA,2,0)","v":{"$error":"#N/A"}},null,null,null,null,null,null,null,null,{"$f":"VLOOKUP(N530,Tabel10[[korte omschrijving]:[MCC3_CODE]],2,0)","v":{"$error":"#N/A"}},{"$f":"VLOOKUP(N530,'Data order'!M:O,3,0)","v":{"$error":"#N/A"}},null,null,null,{"$f":"IFERROR(\n  IF(R530=\"Big&Tall\",\n      VLOOKUP(S530, 'Data order'!$AC$92:$AD$101, 2, FALSE),\n      IF(R530=\"Boordmaat\",\n          VLOOKUP(S530, 'Data order'!$AC$102:$AD$116, 2, FALSE),\n          VLOOKUP(S530, 'Data order'!$AC$2:$AD$91, 2, FALSE)\n      )\n  ),\n\"\")","v":""},null,null,null,null,"EUR",null,null,null,{"$error":"#DIV/0!"},0,0,null,"","","","","","","","","","",null,null,null,null,null,null,null,null,null,null,null,null,null,null,null,null,null,"ZWO"]
[null,null,null,null,null,{"$f":"VLOOKUP(G531,'Data order'!Z:AA,2,0)","v":{"$error":"#N/A"}},null,null,null,null,null,null,null,null,{"$f":"VLOOKUP(N531,Tabel10[[korte omschrijving]:[MCC3_CODE]],2,0)","v":{"$error":"#N/A"}},{"$f":"VLOOKUP(N531,'Data order'!M:O,3,0)","v":{"$error":"#N/A"}},null,null,null,{"$f":"IFERROR(\n  IF(R531=\"Big&Tall\",\n      VLOOKUP(S531, 'Data order'!$AC$92:$AD$101, 2, FALSE),\n      IF(R531=\"Boordmaat\",\n          VLOOKUP(S531, 'Data order'!$AC$102:$AD$116, 2, FALSE),\n          VLOOKUP(S531, 'Data order'!$AC$2:$AD$91, 2, FALSE)\n      )\n  ),\n\"\")","v":""},null,null,null,null,"EUR",null,null,null,{"$error":"#DIV/0!"},0,0,null,"","","","","","","","","","",null,null,null,null,null,null,null,null,null,null,null,null,null,null,null,null,null,"ZWO"]
[null,null,null,null,null,{"$f":"VLOOKUP(G532,'Data order'!Z:AA,2,0)","v":{"$error":"#N/A"}},null,null,null,null,null,null,null,null,{"$f":"VLOOKUP(N532,Tabel10[[korte omschrijving]:[MCC3_CODE]],2,0)","v":{"$error":"#N/A"}},{"$f":"VLOOKUP(N532,'Data order'!M:O,3,0)","v":{"$error":"#N/A"}},null,null,null,{"$f":"IFERROR(\n  IF(R532=\"Big&Tall\",\n      VLOOKUP(S532, 'Data order'!$AC$92:$AD$101, 2, FALSE),\n      IF(R532=\"Boordmaat\",\n          VLOOKUP(S532, 'Data order'!$AC$102:$AD$116, 2, FALSE),\n          VLOOKUP(S532, 'Data order'!$AC$2:$AD$91, 2, FALSE)\n      )\n  ),\n\"\")","v":""},null,null,null,null,"EUR",null,null,null,{"$error":"#DIV/0!"},0,0,null,"","","","","","","","","","",null,null,null,null,null,null,null,null,null,null,null,null,null,null,null,null,null,"ZWO"]
[null,null,null,null,null,{"$f":"VLOOKUP(G533,'Data order'!Z:AA,2,0)","v":{"$error":"#N/A"}},null,null,null,null,null,null,null,null,{"$f":"VLOOKUP(N533,Tabel10[[korte omschrijving]:[MCC3_CODE]],2,0)","v":{"$error":"#N/A"}},{"$f":"VLOOKUP(N533,'Data order'!M:O,3,0)","v":{"$error":"#N/A"}},null,null,null,{"$f":"IFERROR(\n  IF(R533=\"Big&Tall\",\n      VLOOKUP(S533, 'Data order'!$AC$92:$AD$101, 2, FALSE),\n      IF(R533=\"Boordmaat\",\n          VLOOKUP(S533, 'Data order'!$AC$102:$AD$116, 2, FALSE),\n          VLOOKUP(S533, 'Data order'!$AC$2:$AD$91, 2, FALSE)\n      )\n  ),\n\"\")","v":""},null,null,null,null,"EUR",null,null,null,{"$error":"#DIV/0!"},0,0,null,"","","","","","","","","","",null,null,null,null,null,null,null,null,null,null,null,null,null,null,null,null,null,"ZWO"]
[null,null,null,null,null,{"$f":"VLOOKUP(G534,'Data order'!Z:AA,2,0)","v":{"$error":"#N/A"}},null,null,null,null,null,null,null,null,{"$f":"VLOOKUP(N534,Tabel10[[korte omschrijving]:[MCC3_CODE]],2,0)","v":{"$error":"#N/A"}},{"$f":"VLOOKUP(N534,'Data order'!M:O,3,0)","v":{"$error":"#N/A"}},null,null,null,{"$f":"IFERROR(\n  IF(R534=\"Big&Tall\",\n      VLOOKUP(S534, 'Data order'!$AC$92:$AD$101, 2, FALSE),\n      IF(R534=\"Boordmaat\",\n          VLOOKUP(S534, 'Data order'!$AC$102:$AD$116, 2, FALSE),\n          VLOOKUP(S534, 'Data order'!$AC$2:$AD$91, 2, FALSE)\n      )\n  ),\n\"\")","v":""},null,0,null,null,"EUR",null,null,null,{"$f":"AB534/Z534","v":{"$error":"#DIV/0!"}},{"$f":"U534*Z534","v":0},{"$f":"U534*AB534","v":0},null,"","","","","","","","","","",null,null,null,null,null,null,null,null,null,null,null,null,null,null,null,null,null,"ZWO"]
[null,null,null,null,null,{"$f":"VLOOKUP(G535,'Data order'!Z:AA,2,0)","v":{"$error":"#N/A"}},null,null,null,null,null,null,null,null,{"$f":"VLOOKUP(N535,Tabel10[[korte omschrijving]:[MCC3_CODE]],2,0)","v":{"$error":"#N/A"}},{"$f":"VLOOKUP(N535,'Data order'!M:O,3,0)","v":{"$error":"#N/A"}},null,null,null,{"$f":"IFERROR(\n  IF(R535=\"Big&Tall\",\n      VLOOKUP(S535, 'Data order'!$AC$92:$AD$101, 2, FALSE),\n      IF(R535=\"Boordmaat\",\n          VLOOKUP(S535, 'Data order'!$AC$102:$AD$116, 2, FALSE),\n          VLOOKUP(S535, 'Data order'!$AC$2:$AD$91, 2, FALSE)\n      )\n  ),\n\"\")","v":""},null,null,null,null,"EUR",null,null,null,{"$error":"#DIV/0!"},0,0,null,"","","","","","","","","","",null,null,null,null,null,null,null,null,null,null,null,null,null,null,null,null,null,"ZWO"]
[null,null,null,null,null,{"$f":"VLOOKUP(G536,'Data order'!Z:AA,2,0)","v":{"$error":"#N/A"}},null,null,null,null,null,null,null,null,{"$f":"VLOOKUP(N536,Tabel10[[korte omschrijving]:[MCC3_CODE]],2,0)","v":{"$error":"#N/A"}},{"$f":"VLOOKUP(N536,'Data order'!M:O,3,0)","v":{"$error":"#N/A"}},null,null,null,{"$f":"IFERROR(\n  IF(R536=\"Big&Tall\",\n      VLOOKUP(S536, 'Data order'!$AC$92:$AD$101, 2, FALSE),\n      IF(R536=\"Boordmaat\",\n          VLOOKUP(S536, 'Data order'!$AC$102:$AD$116, 2, FALSE),\n          VLOOKUP(S536, 'Data order'!$AC$2:$AD$91, 2, FALSE)\n      )\n  ),\n\"\")","v":""},null,null,null,null,"EUR",null,null,null,{"$error":"#DIV/0!"},0,0,null,"","","","","","","","","","",null,null,null,null,null,null,null,null,null,null,null,null,null,null,null,null,null,"ZWO"]
[null,null,null,null,null,{"$f":"VLOOKUP(G537,'Data order'!Z:AA,2,0)","v":{"$error":"#N/A"}},null,null,null,null,null,null,null,null,{"$f":"VLOOKUP(N537,Tabel10[[korte omschrijving]:[MCC3_CODE]],2,0)","v":{"$error":"#N/A"}},{"$f":"VLOOKUP(N537,'Data order'!M:O,3,0)","v":{"$error":"#N/A"}},null,null,null,{"$f":"IFERROR(\n  IF(R537=\"Big&Tall\",\n      VLOOKUP(S537, 'Data order'!$AC$92:$AD$101, 2, FALSE),\n      IF(R537=\"Boordmaat\",\n          VLOOKUP(S537, 'Data order'!$AC$102:$AD$116, 2, FALSE),\n          VLOOKUP(S537, 'Data order'!$AC$2:$AD$91, 2, FALSE)\n      )\n  ),\n\"\")","v":""},null,null,null,null,"EUR",null,null,null,{"$error":"#DIV/0!"},0,0,null,"","","","","","","","","","",null,null,null,null,null,null,null,null,null,null,null,null,null,null,null,null,null,"ZWO"]
[null,null,null,null,null,{"$f":"VLOOKUP(G538,'Data order'!Z:AA,2,0)","v":{"$error":"#N/A"}},null,null,null,null,null,null,null,null,{"$f":"VLOOKUP(N538,Tabel10[[korte omschrijving]:[MCC3_CODE]],2,0)","v":{"$error":"#N/A"}},{"$f":"VLOOKUP(N538,'Data order'!M:O,3,0)","v":{"$error":"#N/A"}},null,null,null,{"$f":"IFERROR(\n  IF(R538=\"Big&Tall\",\n      VLOOKUP(S538, 'Data order'!$AC$92:$AD$101, 2, FALSE),\n      IF(R538=\"Boordmaat\",\n          VLOOKUP(S538, 'Data order'!$AC$102:$AD$116, 2, FALSE),\n          VLOOKUP(S538, 'Data order'!$AC$2:$AD$91, 2, FALSE)\n      )\n  ),\n\"\")","v":""},null,null,null,null,"EUR",null,null,null,{"$error":"#DIV/0!"},0,0,null,"","","","","","","","","","",null,null,null,null,null,null,null,null,null,null,null,null,null,null,null,null,null,"ZWO"]
[null,null,null,null,null,{"$f":"VLOOKUP(G539,'Data order'!Z:AA,2,0)","v":{"$error":"#N/A"}},null,null,null,null,null,null,null,null,{"$f":"VLOOKUP(N539,Tabel10[[korte omschrijving]:[MCC3_CODE]],2,0)","v":{"$error":"#N/A"}},{"$f":"VLOOKUP(N539,'Data order'!M:O,3,0)","v":{"$error":"#N/A"}},null,null,null,{"$f":"IFERROR(\n  IF(R539=\"Big&Tall\",\n      VLOOKUP(S539, 'Data order'!$AC$92:$AD$101, 2, FALSE),\n      IF(R539=\"Boordmaat\",\n          VLOOKUP(S539, 'Data order'!$AC$102:$AD$116, 2, FALSE),\n          VLOOKUP(S539, 'Data order'!$AC$2:$AD$91, 2, FALSE)\n      )\n  ),\n\"\")","v":""},null,null,null,null,"EUR",null,null,null,{"$error":"#DIV/0!"},0,0,null,"","","","","","","","","","",null,null,null,null,null,null,null,null,null,null,null,null,null,null,null,null,null,"ZWO"]
[null,null,null,null,null,{"$f":"VLOOKUP(G540,'Data order'!Z:AA,2,0)","v":{"$error":"#N/A"}},null,null,null,null,null,null,null,null,{"$f":"VLOOKUP(N540,Tabel10[[korte omschrijving]:[MCC3_CODE]],2,0)","v":{"$error":"#N/A"}},{"$f":"VLOOKUP(N540,'Data order'!M:O,3,0)","v":{"$error":"#N/A"}},null,null,null,{"$f":"IFERROR(\n  IF(R540=\"Big&Tall\",\n      VLOOKUP(S540, 'Data order'!$AC$92:$AD$101, 2, FALSE),\n      IF(R540=\"Boordmaat\",\n          VLOOKUP(S540, 'Data order'!$AC$102:$AD$116, 2, FALSE),\n          VLOOKUP(S540, 'Data order'!$AC$2:$AD$91, 2, FALSE)\n      )\n  ),\n\"\")","v":""},null,0,null,null,"EUR",null,null,null,{"$f":"AB540/Z540","v":{"$error":"#DIV/0!"}},{"$f":"U540*Z540","v":0},{"$f":"U540*AB540","v":0},null,"","","","","","","","","","",null,null,null,null,null,null,null,null,null,null,null,null,null,null,null,null,null,"ZWO"]
[null,null,null,null,null,{"$f":"VLOOKUP(G541,'Data order'!Z:AA,2,0)","v":{"$error":"#N/A"}},null,null,null,null,null,null,null,null,{"$f":"VLOOKUP(N541,Tabel10[[korte omschrijving]:[MCC3_CODE]],2,0)","v":{"$error":"#N/A"}},{"$f":"VLOOKUP(N541,'Data order'!M:O,3,0)","v":{"$error":"#N/A"}},null,null,null,{"$f":"IFERROR(\n  IF(R541=\"Big&Tall\",\n      VLOOKUP(S541, 'Data order'!$AC$92:$AD$101, 2, FALSE),\n      IF(R541=\"Boordmaat\",\n          VLOOKUP(S541, 'Data order'!$AC$102:$AD$116, 2, FALSE),\n          VLOOKUP(S541, 'Data order'!$AC$2:$AD$91, 2, FALSE)\n      )\n  ),\n\"\")","v":""},null,null,null,null,"EUR",null,null,null,{"$error":"#DIV/0!"},0,0,null,"","","","","","","","","","",null,null,null,null,null,null,null,null,null,null,null,null,null,null,null,null,null,"ZWO"]
[null,null,null,null,null,{"$f":"VLOOKUP(G542,'Data order'!Z:AA,2,0)","v":{"$error":"#N/A"}},null,null,null,null,null,null,null,null,{"$f":"VLOOKUP(N542,Tabel10[[korte omschrijving]:[MCC3_CODE]],2,0)","v":{"$error":"#N/A"}},{"$f":"VLOOKUP(N542,'Data order'!M:O,3,0)","v":{"$error":"#N/A"}},null,null,null,{"$f":"IFERROR(\n  IF(R542=\"Big&Tall\",\n      VLOOKUP(S542, 'Data order'!$AC$92:$AD$101, 2, FALSE),\n      IF(R542=\"Boordmaat\",\n          VLOOKUP(S542, 'Data order'!$AC$102:$AD$116, 2, FALSE),\n          VLOOKUP(S542, 'Data order'!$AC$2:$AD$91, 2, FALSE)\n      )\n  ),\n\"\")","v":""},null,null,null,null,"EUR",null,null,null,{"$error":"#DIV/0!"},0,0,null,"","","","","","","","","","",null,null,null,null,null,null,null,null,null,null,null,null,null,null,null,null,null,"ZWO"]
[null,null,null,null,null,{"$f":"VLOOKUP(G543,'Data order'!Z:AA,2,0)","v":{"$error":"#N/A"}},null,null,null,null,null,null,null,null,{"$f":"VLOOKUP(N543,Tabel10[[korte omschrijving]:[MCC3_CODE]],2,0)","v":{"$error":"#N/A"}},{"$f":"VLOOKUP(N543,'Data order'!M:O,3,0)","v":{"$error":"#N/A"}},null,null,null,{"$f":"IFERROR(\n  IF(R543=\"Big&Tall\",\n      VLOOKUP(S543, 'Data order'!$AC$92:$AD$101, 2, FALSE),\n      IF(R543=\"Boordmaat\",\n          VLOOKUP(S543, 'Data order'!$AC$102:$AD$116, 2, FALSE),\n          VLOOKUP(S543, 'Data order'!$AC$2:$AD$91, 2, FALSE)\n      )\n  ),\n\"\")","v":""},null,null,null,null,"EUR",null,null,null,{"$error":"#DIV/0!"},0,0,null,"","","","","","","","","","",null,null,null,null,null,null,null,null,null,null,null,null,null,null,null,null,null,"ZWO"]
[null,null,null,null,null,{"$f":"VLOOKUP(G544,'Data order'!Z:AA,2,0)","v":{"$error":"#N/A"}},null,null,null,null,null,null,null,null,{"$f":"VLOOKUP(N544,Tabel10[[korte omschrijving]:[MCC3_CODE]],2,0)","v":{"$error":"#N/A"}},{"$f":"VLOOKUP(N544,'Data order'!M:O,3,0)","v":{"$error":"#N/A"}},null,null,null,{"$f":"IFERROR(\n  IF(R544=\"Big&Tall\",\n      VLOOKUP(S544, 'Data order'!$AC$92:$AD$101, 2, FALSE),\n      IF(R544=\"Boordmaat\",\n          VLOOKUP(S544, 'Data order'!$AC$102:$AD$116, 2, FALSE),\n          VLOOKUP(S544, 'Data order'!$AC$2:$AD$91, 2, FALSE)\n      )\n  ),\n\"\")","v":""},null,null,null,null,"EUR",null,null,null,{"$error":"#DIV/0!"},0,0,null,"","","","","","","","","","",null,null,null,null,null,null,null,null,null,null,null,null,null,null,null,null,null,"ZWO"]
[null,null,null,null,null,{"$f":"VLOOKUP(G545,'Data order'!Z:AA,2,0)","v":{"$error":"#N/A"}},null,null,null,null,null,null,null,null,{"$f":"VLOOKUP(N545,Tabel10[[korte omschrijving]:[MCC3_CODE]],2,0)","v":{"$error":"#N/A"}},{"$f":"VLOOKUP(N545,'Data order'!M:O,3,0)","v":{"$error":"#N/A"}},null,null,null,{"$f":"IFERROR(\n  IF(R545=\"Big&Tall\",\n      VLOOKUP(S545, 'Data order'!$AC$92:$AD$101, 2, FALSE),\n      IF(R545=\"Boordmaat\",\n          VLOOKUP(S545, 'Data order'!$AC$102:$AD$116, 2, FALSE),\n          VLOOKUP(S545, 'Data order'!$AC$2:$AD$91, 2, FALSE)\n      )\n  ),\n\"\")","v":""},null,null,null,null,"EUR",null,null,null,{"$error":"#DIV/0!"},0,0,null,"","","","","","","","","","",null,null,null,null,null,null,null,null,null,null,null,null,null,null,null,null,null,"ZWO"]
[null,null,null,null,null,{"$f":"VLOOKUP(G546,'Data order'!Z:AA,2,0)","v":{"$error":"#N/A"}},null,null,null,null,null,null,null,null,{"$f":"VLOOKUP(N546,Tabel10[[korte omschrijving]:[MCC3_CODE]],2,0)","v":{"$error":"#N/A"}},{"$f":"VLOOKUP(N546,'Data order'!M:O,3,0)","v":{"$error":"#N/A"}},null,null,null,{"$f":"IFERROR(\n  IF(R546=\"Big&Tall\",\n      VLOOKUP(S546, 'Data order'!$AC$92:$AD$101, 2, FALSE),\n      IF(R546=\"Boordmaat\",\n          VLOOKUP(S546, 'Data order'!$AC$102:$AD$116, 2, FALSE),\n          VLOOKUP(S546, 'Data order'!$AC$2:$AD$91, 2, FALSE)\n      )\n  ),\n\"\")","v":""},null,0,null,null,"EUR",null,null,null,{"$f":"AB546/Z546","v":{"$error":"#DIV/0!"}},{"$f":"U546*Z546","v":0},{"$f":"U546*AB546","v":0},null,"","","","","","","","","","",null,null,null,null,null,null,null,null,null,null,null,null,null,null,null,null,null,"ZWO"]
[null,null,null,null,null,{"$f":"VLOOKUP(G547,'Data order'!Z:AA,2,0)","v":{"$error":"#N/A"}},null,null,null,null,null,null,null,null,{"$f":"VLOOKUP(N547,Tabel10[[korte omschrijving]:[MCC3_CODE]],2,0)","v":{"$error":"#N/A"}},{"$f":"VLOOKUP(N547,'Data order'!M:O,3,0)","v":{"$error":"#N/A"}},null,null,null,{"$f":"IFERROR(\n  IF(R547=\"Big&Tall\",\n      VLOOKUP(S547, 'Data order'!$AC$92:$AD$101, 2, FALSE),\n      IF(R547=\"Boordmaat\",\n          VLOOKUP(S547, 'Data order'!$AC$102:$AD$116, 2, FALSE),\n          VLOOKUP(S547, 'Data order'!$AC$2:$AD$91, 2, FALSE)\n      )\n  ),\n\"\")","v":""},null,null,null,null,"EUR",null,null,null,{"$error":"#DIV/0!"},0,0,null,"","","","","","","","","","",null,null,null,null,null,null,null,null,null,null,null,null,null,null,null,null,null,"ZWO"]
[null,null,null,null,null,{"$f":"VLOOKUP(G548,'Data order'!Z:AA,2,0)","v":{"$error":"#N/A"}},null,null,null,null,null,null,null,null,{"$f":"VLOOKUP(N548,Tabel10[[korte omschrijving]:[MCC3_CODE]],2,0)","v":{"$error":"#N/A"}},{"$f":"VLOOKUP(N548,'Data order'!M:O,3,0)","v":{"$error":"#N/A"}},null,null,null,{"$f":"IFERROR(\n  IF(R548=\"Big&Tall\",\n      VLOOKUP(S548, 'Data order'!$AC$92:$AD$101, 2, FALSE),\n      IF(R548=\"Boordmaat\",\n          VLOOKUP(S548, 'Data order'!$AC$102:$AD$116, 2, FALSE),\n          VLOOKUP(S548, 'Data order'!$AC$2:$AD$91, 2, FALSE)\n      )\n  ),\n\"\")","v":""},null,null,null,null,"EUR",null,null,null,{"$error":"#DIV/0!"},0,0,null,"","","","","","","","","","",null,null,null,null,null,null,null,null,null,null,null,null,null,null,null,null,null,"ZWO"]
[null,null,null,null,null,{"$f":"VLOOKUP(G549,'Data order'!Z:AA,2,0)","v":{"$error":"#N/A"}},null,null,null,null,null,null,null,null,{"$f":"VLOOKUP(N549,Tabel10[[korte omschrijving]:[MCC3_CODE]],2,0)","v":{"$error":"#N/A"}},{"$f":"VLOOKUP(N549,'Data order'!M:O,3,0)","v":{"$error":"#N/A"}},null,null,null,{"$f":"IFERROR(\n  IF(R549=\"Big&Tall\",\n      VLOOKUP(S549, 'Data order'!$AC$92:$AD$101, 2, FALSE),\n      IF(R549=\"Boordmaat\",\n          VLOOKUP(S549, 'Data order'!$AC$102:$AD$116, 2, FALSE),\n          VLOOKUP(S549, 'Data order'!$AC$2:$AD$91, 2, FALSE)\n      )\n  ),\n\"\")","v":""},null,null,null,null,"EUR",null,null,null,{"$error":"#DIV/0!"},0,0,null,"","","","","","","","","","",null,null,null,null,null,null,null,null,null,null,null,null,null,null,null,null,null,"ZWO"]
[null,null,null,null,null,{"$f":"VLOOKUP(G550,'Data order'!Z:AA,2,0)","v":{"$error":"#N/A"}},null,null,null,null,null,null,null,null,{"$f":"VLOOKUP(N550,Tabel10[[korte omschrijving]:[MCC3_CODE]],2,0)","v":{"$error":"#N/A"}},{"$f":"VLOOKUP(N550,'Data order'!M:O,3,0)","v":{"$error":"#N/A"}},null,null,null,{"$f":"IFERROR(\n  IF(R550=\"Big&Tall\",\n      VLOOKUP(S550, 'Data order'!$AC$92:$AD$101, 2, FALSE),\n      IF(R550=\"Boordmaat\",\n          VLOOKUP(S550, 'Data order'!$AC$102:$AD$116, 2, FALSE),\n          VLOOKUP(S550, 'Data order'!$AC$2:$AD$91, 2, FALSE)\n      )\n  ),\n\"\")","v":""},null,null,null,null,"EUR",null,null,null,{"$error":"#DIV/0!"},0,0,null,"","","","","","","","","","",null,null,null,null,null,null,null,null,null,null,null,null,null,null,null,null,null,"ZWO"]
[null,null,null,null,null,{"$f":"VLOOKUP(G551,'Data order'!Z:AA,2,0)","v":{"$error":"#N/A"}},null,null,null,null,null,null,null,null,{"$f":"VLOOKUP(N551,Tabel10[[korte omschrijving]:[MCC3_CODE]],2,0)","v":{"$error":"#N/A"}},{"$f":"VLOOKUP(N551,'Data order'!M:O,3,0)","v":{"$error":"#N/A"}},null,null,null,{"$f":"IFERROR(\n  IF(R551=\"Big&Tall\",\n      VLOOKUP(S551, 'Data order'!$AC$92:$AD$101, 2, FALSE),\n      IF(R551=\"Boordmaat\",\n          VLOOKUP(S551, 'Data order'!$AC$102:$AD$116, 2, FALSE),\n          VLOOKUP(S551, 'Data order'!$AC$2:$AD$91, 2, FALSE)\n      )\n  ),\n\"\")","v":""},null,null,null,null,"EUR",null,null,null,{"$error":"#DIV/0!"},0,0,null,"","","","","","","","","","",null,null,null,null,null,null,null,null,null,null,null,null,null,null,null,null,null,"ZWO"]
[null,null,null,null,null,{"$f":"VLOOKUP(G552,'Data order'!Z:AA,2,0)","v":{"$error":"#N/A"}},null,null,null,null,null,null,null,null,{"$f":"VLOOKUP(N552,Tabel10[[korte omschrijving]:[MCC3_CODE]],2,0)","v":{"$error":"#N/A"}},{"$f":"VLOOKUP(N552,'Data order'!M:O,3,0)","v":{"$error":"#N/A"}},null,null,null,{"$f":"IFERROR(\n  IF(R552=\"Big&Tall\",\n      VLOOKUP(S552, 'Data order'!$AC$92:$AD$101, 2, FALSE),\n      IF(R552=\"Boordmaat\",\n          VLOOKUP(S552, 'Data order'!$AC$102:$AD$116, 2, FALSE),\n          VLOOKUP(S552, 'Data order'!$AC$2:$AD$91, 2, FALSE)\n      )\n  ),\n\"\")","v":""},null,0,null,null,"EUR",null,null,null,{"$f":"AB552/Z552","v":{"$error":"#DIV/0!"}},{"$f":"U552*Z552","v":0},{"$f":"U552*AB552","v":0},null,"","","","","","","","","","",null,null,null,null,null,null,null,null,null,null,null,null,null,null,null,null,null,"ZWO"]
[null,null,null,null,null,{"$f":"VLOOKUP(G553,'Data order'!Z:AA,2,0)","v":{"$error":"#N/A"}},null,null,null,null,null,null,null,null,{"$f":"VLOOKUP(N553,Tabel10[[korte omschrijving]:[MCC3_CODE]],2,0)","v":{"$error":"#N/A"}},{"$f":"VLOOKUP(N553,'Data order'!M:O,3,0)","v":{"$error":"#N/A"}},null,null,null,{"$f":"IFERROR(\n  IF(R553=\"Big&Tall\",\n      VLOOKUP(S553, 'Data order'!$AC$92:$AD$101, 2, FALSE),\n      IF(R553=\"Boordmaat\",\n          VLOOKUP(S553, 'Data order'!$AC$102:$AD$116, 2, FALSE),\n          VLOOKUP(S553, 'Data order'!$AC$2:$AD$91, 2, FALSE)\n      )\n  ),\n\"\")","v":""},null,null,null,null,"EUR",null,null,null,{"$error":"#DIV/0!"},0,0,null,"","","","","","","","","","",null,null,null,null,null,null,null,null,null,null,null,null,null,null,null,null,null,"ZWO"]
[null,null,null,null,null,{"$f":"VLOOKUP(G554,'Data order'!Z:AA,2,0)","v":{"$error":"#N/A"}},null,null,null,null,null,null,null,null,{"$f":"VLOOKUP(N554,Tabel10[[korte omschrijving]:[MCC3_CODE]],2,0)","v":{"$error":"#N/A"}},{"$f":"VLOOKUP(N554,'Data order'!M:O,3,0)","v":{"$error":"#N/A"}},null,null,null,{"$f":"IFERROR(\n  IF(R554=\"Big&Tall\",\n      VLOOKUP(S554, 'Data order'!$AC$92:$AD$101, 2, FALSE),\n      IF(R554=\"Boordmaat\",\n          VLOOKUP(S554, 'Data order'!$AC$102:$AD$116, 2, FALSE),\n          VLOOKUP(S554, 'Data order'!$AC$2:$AD$91, 2, FALSE)\n      )\n  ),\n\"\")","v":""},null,null,null,null,"EUR",null,null,null,{"$error":"#DIV/0!"},0,0,null,"","","","","","","","","","",null,null,null,null,null,null,null,null,null,null,null,null,null,null,null,null,null,"ZWO"]
[null,null,null,null,null,{"$f":"VLOOKUP(G555,'Data order'!Z:AA,2,0)","v":{"$error":"#N/A"}},null,null,null,null,null,null,null,null,{"$f":"VLOOKUP(N555,Tabel10[[korte omschrijving]:[MCC3_CODE]],2,0)","v":{"$error":"#N/A"}},{"$f":"VLOOKUP(N555,'Data order'!M:O,3,0)","v":{"$error":"#N/A"}},null,null,null,{"$f":"IFERROR(\n  IF(R555=\"Big&Tall\",\n      VLOOKUP(S555, 'Data order'!$AC$92:$AD$101, 2, FALSE),\n      IF(R555=\"Boordmaat\",\n          VLOOKUP(S555, 'Data order'!$AC$102:$AD$116, 2, FALSE),\n          VLOOKUP(S555, 'Data order'!$AC$2:$AD$91, 2, FALSE)\n      )\n  ),\n\"\")","v":""},null,null,null,null,"EUR",null,null,null,{"$error":"#DIV/0!"},0,0,null,"","","","","","","","","","",null,null,null,null,null,null,null,null,null,null,null,null,null,null,null,null,null,"ZWO"]
[null,null,null,null,null,{"$f":"VLOOKUP(G556,'Data order'!Z:AA,2,0)","v":{"$error":"#N/A"}},null,null,null,null,null,null,null,null,{"$f":"VLOOKUP(N556,Tabel10[[korte omschrijving]:[MCC3_CODE]],2,0)","v":{"$error":"#N/A"}},{"$f":"VLOOKUP(N556,'Data order'!M:O,3,0)","v":{"$error":"#N/A"}},null,null,null,{"$f":"IFERROR(\n  IF(R556=\"Big&Tall\",\n      VLOOKUP(S556, 'Data order'!$AC$92:$AD$101, 2, FALSE),\n      IF(R556=\"Boordmaat\",\n          VLOOKUP(S556, 'Data order'!$AC$102:$AD$116, 2, FALSE),\n          VLOOKUP(S556, 'Data order'!$AC$2:$AD$91, 2, FALSE)\n      )\n  ),\n\"\")","v":""},null,null,null,null,"EUR",null,null,null,{"$error":"#DIV/0!"},0,0,null,"","","","","","","","","","",null,null,null,null,null,null,null,null,null,null,null,null,null,null,null,null,null,"ZWO"]
[null,null,null,null,null,{"$f":"VLOOKUP(G557,'Data order'!Z:AA,2,0)","v":{"$error":"#N/A"}},null,null,null,null,null,null,null,null,{"$f":"VLOOKUP(N557,Tabel10[[korte omschrijving]:[MCC3_CODE]],2,0)","v":{"$error":"#N/A"}},{"$f":"VLOOKUP(N557,'Data order'!M:O,3,0)","v":{"$error":"#N/A"}},null,null,null,{"$f":"IFERROR(\n  IF(R557=\"Big&Tall\",\n      VLOOKUP(S557, 'Data order'!$AC$92:$AD$101, 2, FALSE),\n      IF(R557=\"Boordmaat\",\n          VLOOKUP(S557, 'Data order'!$AC$102:$AD$116, 2, FALSE),\n          VLOOKUP(S557, 'Data order'!$AC$2:$AD$91, 2, FALSE)\n      )\n  ),\n\"\")","v":""},null,null,null,null,"EUR",null,null,null,{"$error":"#DIV/0!"},0,0,null,"","","","","","","","","","",null,null,null,null,null,null,null,null,null,null,null,null,null,null,null,null,null,"ZWO"]
[null,null,null,null,null,{"$f":"VLOOKUP(G558,'Data order'!Z:AA,2,0)","v":{"$error":"#N/A"}},null,null,null,null,null,null,null,null,{"$f":"VLOOKUP(N558,Tabel10[[korte omschrijving]:[MCC3_CODE]],2,0)","v":{"$error":"#N/A"}},{"$f":"VLOOKUP(N558,'Data order'!M:O,3,0)","v":{"$error":"#N/A"}},null,null,null,{"$f":"IFERROR(\n  IF(R558=\"Big&Tall\",\n      VLOOKUP(S558, 'Data order'!$AC$92:$AD$101, 2, FALSE),\n      IF(R558=\"Boordmaat\",\n          VLOOKUP(S558, 'Data order'!$AC$102:$AD$116, 2, FALSE),\n          VLOOKUP(S558, 'Data order'!$AC$2:$AD$91, 2, FALSE)\n      )\n  ),\n\"\")","v":""},null,0,null,null,"EUR",null,null,null,{"$f":"AB558/Z558","v":{"$error":"#DIV/0!"}},{"$f":"U558*Z558","v":0},{"$f":"U558*AB558","v":0},null,"","","","","","","","","","",null,null,null,null,null,null,null,null,null,null,null,null,null,null,null,null,null,"ZWO"]
[null,null,null,null,null,{"$f":"VLOOKUP(G559,'Data order'!Z:AA,2,0)","v":{"$error":"#N/A"}},null,null,null,null,null,null,null,null,{"$f":"VLOOKUP(N559,Tabel10[[korte omschrijving]:[MCC3_CODE]],2,0)","v":{"$error":"#N/A"}},{"$f":"VLOOKUP(N559,'Data order'!M:O,3,0)","v":{"$error":"#N/A"}},null,null,null,{"$f":"IFERROR(\n  IF(R559=\"Big&Tall\",\n      VLOOKUP(S559, 'Data order'!$AC$92:$AD$101, 2, FALSE),\n      IF(R559=\"Boordmaat\",\n          VLOOKUP(S559, 'Data order'!$AC$102:$AD$116, 2, FALSE),\n          VLOOKUP(S559, 'Data order'!$AC$2:$AD$91, 2, FALSE)\n      )\n  ),\n\"\")","v":""},null,null,null,null,"EUR",null,null,null,{"$error":"#DIV/0!"},0,0,null,"","","","","","","","","","",null,null,null,null,null,null,null,null,null,null,null,null,null,null,null,null,null,"ZWO"]
[null,null,null,null,null,{"$f":"VLOOKUP(G560,'Data order'!Z:AA,2,0)","v":{"$error":"#N/A"}},null,null,null,null,null,null,null,null,{"$f":"VLOOKUP(N560,Tabel10[[korte omschrijving]:[MCC3_CODE]],2,0)","v":{"$error":"#N/A"}},{"$f":"VLOOKUP(N560,'Data order'!M:O,3,0)","v":{"$error":"#N/A"}},null,null,null,{"$f":"IFERROR(\n  IF(R560=\"Big&Tall\",\n      VLOOKUP(S560, 'Data order'!$AC$92:$AD$101, 2, FALSE),\n      IF(R560=\"Boordmaat\",\n          VLOOKUP(S560, 'Data order'!$AC$102:$AD$116, 2, FALSE),\n          VLOOKUP(S560, 'Data order'!$AC$2:$AD$91, 2, FALSE)\n      )\n  ),\n\"\")","v":""},null,null,null,null,"EUR",null,null,null,{"$error":"#DIV/0!"},0,0,null,"","","","","","","","","","",null,null,null,null,null,null,null,null,null,null,null,null,null,null,null,null,null,"ZWO"]
[null,null,null,null,null,{"$f":"VLOOKUP(G561,'Data order'!Z:AA,2,0)","v":{"$error":"#N/A"}},null,null,null,null,null,null,null,null,{"$f":"VLOOKUP(N561,Tabel10[[korte omschrijving]:[MCC3_CODE]],2,0)","v":{"$error":"#N/A"}},{"$f":"VLOOKUP(N561,'Data order'!M:O,3,0)","v":{"$error":"#N/A"}},null,null,null,{"$f":"IFERROR(\n  IF(R561=\"Big&Tall\",\n      VLOOKUP(S561, 'Data order'!$AC$92:$AD$101, 2, FALSE),\n      IF(R561=\"Boordmaat\",\n          VLOOKUP(S561, 'Data order'!$AC$102:$AD$116, 2, FALSE),\n          VLOOKUP(S561, 'Data order'!$AC$2:$AD$91, 2, FALSE)\n      )\n  ),\n\"\")","v":""},null,null,null,null,"EUR",null,null,null,{"$error":"#DIV/0!"},0,0,null,"","","","","","","","","","",null,null,null,null,null,null,null,null,null,null,null,null,null,null,null,null,null,"ZWO"]
[null,null,null,null,null,{"$f":"VLOOKUP(G562,'Data order'!Z:AA,2,0)","v":{"$error":"#N/A"}},null,null,null,null,null,null,null,null,{"$f":"VLOOKUP(N562,Tabel10[[korte omschrijving]:[MCC3_CODE]],2,0)","v":{"$error":"#N/A"}},{"$f":"VLOOKUP(N562,'Data order'!M:O,3,0)","v":{"$error":"#N/A"}},null,null,null,{"$f":"IFERROR(\n  IF(R562=\"Big&Tall\",\n      VLOOKUP(S562, 'Data order'!$AC$92:$AD$101, 2, FALSE),\n      IF(R562=\"Boordmaat\",\n          VLOOKUP(S562, 'Data order'!$AC$102:$AD$116, 2, FALSE),\n          VLOOKUP(S562, 'Data order'!$AC$2:$AD$91, 2, FALSE)\n      )\n  ),\n\"\")","v":""},null,null,null,null,"EUR",null,null,null,{"$error":"#DIV/0!"},0,0,null,"","","","","","","","","","",null,null,null,null,null,null,null,null,null,null,null,null,null,null,null,null,null,"ZWO"]
[null,null,null,null,null,{"$f":"VLOOKUP(G563,'Data order'!Z:AA,2,0)","v":{"$error":"#N/A"}},null,null,null,null,null,null,null,null,{"$f":"VLOOKUP(N563,Tabel10[[korte omschrijving]:[MCC3_CODE]],2,0)","v":{"$error":"#N/A"}},{"$f":"VLOOKUP(N563,'Data order'!M:O,3,0)","v":{"$error":"#N/A"}},null,null,null,{"$f":"IFERROR(\n  IF(R563=\"Big&Tall\",\n      VLOOKUP(S563, 'Data order'!$AC$92:$AD$101, 2, FALSE),\n      IF(R563=\"Boordmaat\",\n          VLOOKUP(S563, 'Data order'!$AC$102:$AD$116, 2, FALSE),\n          VLOOKUP(S563, 'Data order'!$AC$2:$AD$91, 2, FALSE)\n      )\n  ),\n\"\")","v":""},null,null,null,null,"EUR",null,null,null,{"$error":"#DIV/0!"},0,0,null,"","","","","","","","","","",null,null,null,null,null,null,null,null,null,null,null,null,null,null,null,null,null,"ZWO"]
[null,null,null,null,null,{"$f":"VLOOKUP(G564,'Data order'!Z:AA,2,0)","v":{"$error":"#N/A"}},null,null,null,null,null,null,null,null,{"$f":"VLOOKUP(N564,Tabel10[[korte omschrijving]:[MCC3_CODE]],2,0)","v":{"$error":"#N/A"}},{"$f":"VLOOKUP(N564,'Data order'!M:O,3,0)","v":{"$error":"#N/A"}},null,null,null,{"$f":"IFERROR(\n  IF(R564=\"Big&Tall\",\n      VLOOKUP(S564, 'Data order'!$AC$92:$AD$101, 2, FALSE),\n      IF(R564=\"Boordmaat\",\n          VLOOKUP(S564, 'Data order'!$AC$102:$AD$116, 2, FALSE),\n          VLOOKUP(S564, 'Data order'!$AC$2:$AD$91, 2, FALSE)\n      )\n  ),\n\"\")","v":""},null,0,null,null,"EUR",null,null,null,{"$f":"AB564/Z564","v":{"$error":"#DIV/0!"}},{"$f":"U564*Z564","v":0},{"$f":"U564*AB564","v":0},null,"","","","","","","","","","",null,null,null,null,null,null,null,null,null,null,null,null,null,null,null,null,null,"ZWO"]
[null,null,null,null,null,{"$f":"VLOOKUP(G565,'Data order'!Z:AA,2,0)","v":{"$error":"#N/A"}},null,null,null,null,null,null,null,null,{"$f":"VLOOKUP(N565,Tabel10[[korte omschrijving]:[MCC3_CODE]],2,0)","v":{"$error":"#N/A"}},{"$f":"VLOOKUP(N565,'Data order'!M:O,3,0)","v":{"$error":"#N/A"}},null,null,null,{"$f":"IFERROR(\n  IF(R565=\"Big&Tall\",\n      VLOOKUP(S565, 'Data order'!$AC$92:$AD$101, 2, FALSE),\n      IF(R565=\"Boordmaat\",\n          VLOOKUP(S565, 'Data order'!$AC$102:$AD$116, 2, FALSE),\n          VLOOKUP(S565, 'Data order'!$AC$2:$AD$91, 2, FALSE)\n      )\n  ),\n\"\")","v":""},null,null,null,null,"EUR",null,null,null,{"$error":"#DIV/0!"},0,0,null,"","","","","","","","","","",null,null,null,null,null,null,null,null,null,null,null,null,null,null,null,null,null,"ZWO"]
[null,null,null,null,null,{"$f":"VLOOKUP(G566,'Data order'!Z:AA,2,0)","v":{"$error":"#N/A"}},null,null,null,null,null,null,null,null,{"$f":"VLOOKUP(N566,Tabel10[[korte omschrijving]:[MCC3_CODE]],2,0)","v":{"$error":"#N/A"}},{"$f":"VLOOKUP(N566,'Data order'!M:O,3,0)","v":{"$error":"#N/A"}},null,null,null,{"$f":"IFERROR(\n  IF(R566=\"Big&Tall\",\n      VLOOKUP(S566, 'Data order'!$AC$92:$AD$101, 2, FALSE),\n      IF(R566=\"Boordmaat\",\n          VLOOKUP(S566, 'Data order'!$AC$102:$AD$116, 2, FALSE),\n          VLOOKUP(S566, 'Data order'!$AC$2:$AD$91, 2, FALSE)\n      )\n  ),\n\"\")","v":""},null,null,null,null,"EUR",null,null,null,{"$error":"#DIV/0!"},0,0,null,"","","","","","","","","","",null,null,null,null,null,null,null,null,null,null,null,null,null,null,null,null,null,"ZWO"]
[null,null,null,null,null,{"$f":"VLOOKUP(G567,'Data order'!Z:AA,2,0)","v":{"$error":"#N/A"}},null,null,null,null,null,null,null,null,{"$f":"VLOOKUP(N567,Tabel10[[korte omschrijving]:[MCC3_CODE]],2,0)","v":{"$error":"#N/A"}},{"$f":"VLOOKUP(N567,'Data order'!M:O,3,0)","v":{"$error":"#N/A"}},null,null,null,{"$f":"IFERROR(\n  IF(R567=\"Big&Tall\",\n      VLOOKUP(S567, 'Data order'!$AC$92:$AD$101, 2, FALSE),\n      IF(R567=\"Boordmaat\",\n          VLOOKUP(S567, 'Data order'!$AC$102:$AD$116, 2, FALSE),\n          VLOOKUP(S567, 'Data order'!$AC$2:$AD$91, 2, FALSE)\n      )\n  ),\n\"\")","v":""},null,null,null,null,"EUR",null,null,null,{"$error":"#DIV/0!"},0,0,null,"","","","","","","","","","",null,null,null,null,null,null,null,null,null,null,null,null,null,null,null,null,null,"ZWO"]
[null,null,null,null,null,{"$f":"VLOOKUP(G568,'Data order'!Z:AA,2,0)","v":{"$error":"#N/A"}},null,null,null,null,null,null,null,null,{"$f":"VLOOKUP(N568,Tabel10[[korte omschrijving]:[MCC3_CODE]],2,0)","v":{"$error":"#N/A"}},{"$f":"VLOOKUP(N568,'Data order'!M:O,3,0)","v":{"$error":"#N/A"}},null,null,null,{"$f":"IFERROR(\n  IF(R568=\"Big&Tall\",\n      VLOOKUP(S568, 'Data order'!$AC$92:$AD$101, 2, FALSE),\n      IF(R568=\"Boordmaat\",\n          VLOOKUP(S568, 'Data order'!$AC$102:$AD$116, 2, FALSE),\n          VLOOKUP(S568, 'Data order'!$AC$2:$AD$91, 2, FALSE)\n      )\n  ),\n\"\")","v":""},null,null,null,null,"EUR",null,null,null,{"$error":"#DIV/0!"},0,0,null,{"$f":"IF(AF568 <> \"\",\n    IF(ISNUMBER(VALUE(LEFT(AF568, FIND(\"%\", AF568)-1))),\n        VALUE(LEFT(AF568, FIND(\"%\", AF568)-1)),\n        \"Invalid format\"),\n    \"\")","v":""},{"$f":"IF(AF568 <> \"\",\n    IF(ISNUMBER(VALUE(LEFT(AF568, FIND(\"%\", AF568)-1))) * ISNUMBER(FIND(\"%\", AF568 & \"wol\")) > 0,\n        TRIM(MID(AF568, FIND(\"%\", AF568)+1, FIND(\"/\", AF568 & \"/\")-FIND(\"%\", AF568)-1)),\n        \"Invalid format\"),\n    \"\")","v":""},{"$f":"IF(AF568 <> \"\",\n    IF(ISNUMBER(VALUE(MID(AF568, FIND(\"/\", AF568) + 1, FIND(\"%\", AF568, FIND(\"/\", AF568)) - FIND(\"/\", AF568) - 1))),\n        VALUE(MID(AF568, FIND(\"/\", AF568) + 1, FIND(\"%\", AF568, FIND(\"/\", AF568)) - FIND(\"/\", AF568) - 1)),\n        \"\"),\n    \"\")","v":""},{"$f":"IF(AF568 <> \"\",\n    IFERROR(TRIM(MID(AF568, FIND(\"%\", AF568, FIND(\"/\", AF568)+1)+2,\n        IFERROR(FIND(\"/\", AF568 & \"/\", FIND(\"/\", AF568)+1)-FIND(\"%\", AF568, FIND(\"/\", AF568)+1)-2, LEN(AF568)-FIND(\"%\", AF568, FIND(\"/\", AF568)+1)-1))),\n        \"\"),\n    \"\")","v":""},{"$f":"IF(AF568 <> \"\",\n    IF(ISNUMBER(VALUE(MID(AF568, FIND(\"/\", AF568, FIND(\"/\", AF568)+1) + 1, FIND(\"%\", AF568, FIND(\"/\", AF568, FIND(\"/\", AF568)+1)) - FIND(\"/\", AF568, FIND(\"/\", AF568)+1) - 1))),\n        VALUE(MID(AF568, FIND(\"/\", AF568, FIND(\"/\", AF568)+1) + 1, FIND(\"%\", AF568, FIND(\"/\", AF568, FIND(\"/\", AF568)+1)) - FIND(\"/\", AF568, FIND(\"/\", AF568)+1) - 1)),\n        \"\"),\n    \"\")","v":""},{"$f":"IF(AF568 <> \"\",\n    IFERROR(\n        TRIM(MID(AF568,\n            FIND(\"%\", AF568, FIND(\"%\", AF568, FIND(\"%\", AF568)+1)+1)+1,\n            FIND(\"/\", AF568 & \"/\", FIND(\"%\", AF568, FIND(\"%\", AF568, FIND(\"%\", AF568)+1)+1))-FIND(\"%\", AF568, FIND(\"%\", AF568, FIND(\"%\", AF568)+1)+1)-1)\n        ),\n        \"\"\n    ),\n    \"\"\n)","v":""},{"$f":"IF(AF568 <> \"\",\n    IF(ISNUMBER(VALUE(MID(AF568, FIND(\"/\", AF568, FIND(\"/\", AF568, FIND(\"/\", AF568)+1)+1) + 1, FIND(\"%\", AF568, FIND(\"/\", AF568, FIND(\"/\", AF568, FIND(\"/\", AF568)+1)+1)) - FIND(\"/\", AF568, FIND(\"/\", AF568, FIND(\"/\", AF568)+1)+1) - 1))),\n        VALUE(MID(AF568, FIND(\"/\", AF568, FIND(\"/\", AF568, FIND(\"/\", AF568)+1)+1) + 1, FIND(\"%\", AF568, FIND(\"/\", AF568, FIND(\"/\", AF568, FIND(\"/\", AF568)+1)+1)) - FIND(\"/\", AF568, FIND(\"/\", AF568, FIND(\"/\", AF568)+1)+1) - 1)),\n        \"\"),\n    \"\")","v":""},{"$f":"IF(AF568 <> \"\",\n    IFERROR(TRIM(MID(AF568, FIND(\"%\", AF568, FIND(\"/\", AF568, FIND(\"/\", AF568, FIND(\"/\", AF568)+1)+1)+1)+2,\n        IFERROR(FIND(\"/\", AF568, FIND(\"/\", AF568, FIND(\"/\", AF568, FIND(\"/\", AF568)+1)+1)+1)-FIND(\"%\", AF568, FIND(\"/\", AF568, FIND(\"/\", AF568, FIND(\"/\", AF568)+1)+1)+1)-2, LEN(AF568)-FIND(\"%\", AF568, FIND(\"/\", AF568, FIND(\"/\", AF568, FIND(\"/\", AF568)+1)+1)+1)-1))),\n        \"\"),\n    \"\")","v":""},{"$f":"IF(AF568 <> \"\",\n    IF(ISNUMBER(VALUE(MID(AF568, FIND(\"/\", AF568, FIND(\"/\", AF568, FIND(\"/\", AF568, FIND(\"/\", AF568)+1)+1)+1) + 1, FIND(\"%\", AF568, FIND(\"/\", AF568, FIND(\"/\", AF568, FIND(\"/\", AF568, FIND(\"/\", AF568)+1)+1)+1)) - FIND(\"/\", AF568, FIND(\"/\", AF568, FIND(\"/\", AF568, FIND(\"/\", AF568)+1)+1)+1) - 1))),\n        VALUE(MID(AF568, FIND(\"/\", AF568, FIND(\"/\", AF568, FIND(\"/\", AF568, FIND(\"/\", AF568)+1)+1)+1) + 1, FIND(\"%\", AF568, FIND(\"/\", AF568, FIND(\"/\", AF568, FIND(\"/\", AF568, FIND(\"/\", AF568)+1)+1)+1)) - FIND(\"/\", AF568, FIND(\"/\", AF568, FIND(\"/\", AF568, FIND(\"/\", AF568)+1)+1)+1) - 1)),\n        \"\"),\n    \"\")","v":""},{"$f":"IF(AF568 = \"\", \"\",\n    IFERROR(TRIM(\n        MID(\n            AF568,\n            FIND(\"%\", AF568, FIND(\"/\", AF568, FIND(\"/\", AF568, FIND(\"/\", AF568, FIND(\"/\", AF568)+1)+1)+1)+1) + 1,\n            FIND(\"/\", AF568 & \"/\", FIND(\"%\", AF568, FIND(\"/\", AF568, FIND(\"/\", AF568, FIND(\"/\", AF568, FIND(\"/\", AF568)+1)+1)+1)+1)) -\n            FIND(\"%\", AF568, FIND(\"/\", AF568, FIND(\"/\", AF568, FIND(\"/\", AF568, FIND(\"/\", AF568)+1)+1)+1)+1) - 1\n        )\n    ),\n    \"\")\n)","v":""},null,null,null,null,null,null,null,null,null,null,null,null,null,null,null,null,null,"ZWO"]
[null,null,null,null,null,{"$f":"VLOOKUP(G569,'Data order'!Z:AA,2,0)","v":{"$error":"#N/A"}},null,null,null,null,null,null,null,null,{"$f":"VLOOKUP(N569,Tabel10[[korte omschrijving]:[MCC3_CODE]],2,0)","v":{"$error":"#N/A"}},{"$f":"VLOOKUP(N569,'Data order'!M:O,3,0)","v":{"$error":"#N/A"}},null,null,null,{"$f":"IFERROR(\n  IF(R569=\"Big&Tall\",\n      VLOOKUP(S569, 'Data order'!$AC$92:$AD$101, 2, FALSE),\n      IF(R569=\"Boordmaat\",\n          VLOOKUP(S569, 'Data order'!$AC$102:$AD$116, 2, FALSE),\n          VLOOKUP(S569, 'Data order'!$AC$2:$AD$91, 2, FALSE)\n      )\n  ),\n\"\")","v":""},null,null,null,null,"EUR",null,null,null,{"$error":"#DIV/0!"},0,0,null,"","","","","","","","","","",null,null,null,null,null,null,null,null,null,null,null,null,null,null,null,null,null,"ZWO"]
[null,null,null,null,null,{"$f":"VLOOKUP(G570,'Data order'!Z:AA,2,0)","v":{"$error":"#N/A"}},null,null,null,null,null,null,null,null,{"$f":"VLOOKUP(N570,Tabel10[[korte omschrijving]:[MCC3_CODE]],2,0)","v":{"$error":"#N/A"}},{"$f":"VLOOKUP(N570,'Data order'!M:O,3,0)","v":{"$error":"#N/A"}},null,null,null,{"$f":"IFERROR(\n  IF(R570=\"Big&Tall\",\n      VLOOKUP(S570, 'Data order'!$AC$92:$AD$101, 2, FALSE),\n      IF(R570=\"Boordmaat\",\n          VLOOKUP(S570, 'Data order'!$AC$102:$AD$116, 2, FALSE),\n          VLOOKUP(S570, 'Data order'!$AC$2:$AD$91, 2, FALSE)\n      )\n  ),\n\"\")","v":""},null,{"$f":"SUM(U570:U575)","v":0},null,null,"EUR",null,null,null,{"$f":"AB570/Z570","v":{"$error":"#DIV/0!"}},{"$f":"U570*Z570","v":0},{"$f":"U570*AB570","v":0},null,"","","","","","","","","","",null,null,null,null,null,null,null,null,null,null,null,null,null,null,null,null,null,"ZWO"]
[null,null,null,null,null,{"$f":"VLOOKUP(G571,'Data order'!Z:AA,2,0)","v":{"$error":"#N/A"}},null,null,null,null,null,null,null,null,{"$f":"VLOOKUP(N571,Tabel10[[korte omschrijving]:[MCC3_CODE]],2,0)","v":{"$error":"#N/A"}},{"$f":"VLOOKUP(N571,'Data order'!M:O,3,0)","v":{"$error":"#N/A"}},null,null,null,{"$f":"IFERROR(\n  IF(R571=\"Big&Tall\",\n      VLOOKUP(S571, 'Data order'!$AC$92:$AD$101, 2, FALSE),\n      IF(R571=\"Boordmaat\",\n          VLOOKUP(S571, 'Data order'!$AC$102:$AD$116, 2, FALSE),\n          VLOOKUP(S571, 'Data order'!$AC$2:$AD$91, 2, FALSE)\n      )\n  ),\n\"\")","v":""},null,null,null,null,"EUR",null,null,null,{"$error":"#DIV/0!"},0,0,null,"","","","","","","","","","",null,null,null,null,null,null,null,null,null,null,null,null,null,null,null,null,null,"ZWO"]
[null,null,null,null,null,{"$f":"VLOOKUP(G572,'Data order'!Z:AA,2,0)","v":{"$error":"#N/A"}},null,null,null,null,null,null,null,null,{"$f":"VLOOKUP(N572,Tabel10[[korte omschrijving]:[MCC3_CODE]],2,0)","v":{"$error":"#N/A"}},{"$f":"VLOOKUP(N572,'Data order'!M:O,3,0)","v":{"$error":"#N/A"}},null,null,null,{"$f":"IFERROR(\n  IF(R572=\"Big&Tall\",\n      VLOOKUP(S572, 'Data order'!$AC$92:$AD$101, 2, FALSE),\n      IF(R572=\"Boordmaat\",\n          VLOOKUP(S572, 'Data order'!$AC$102:$AD$116, 2, FALSE),\n          VLOOKUP(S572, 'Data order'!$AC$2:$AD$91, 2, FALSE)\n      )\n  ),\n\"\")","v":""},null,null,null,null,"EUR",null,null,null,{"$error":"#DIV/0!"},0,0,null,"","","","","","","","","","",null,null,null,null,null,null,null,null,null,null,null,null,null,null,null,null,null,"ZWO"]
[null,null,null,null,null,{"$f":"VLOOKUP(G573,'Data order'!Z:AA,2,0)","v":{"$error":"#N/A"}},null,null,null,null,null,null,null,null,{"$f":"VLOOKUP(N573,Tabel10[[korte omschrijving]:[MCC3_CODE]],2,0)","v":{"$error":"#N/A"}},{"$f":"VLOOKUP(N573,'Data order'!M:O,3,0)","v":{"$error":"#N/A"}},null,null,null,{"$f":"IFERROR(\n  IF(R573=\"Big&Tall\",\n      VLOOKUP(S573, 'Data order'!$AC$92:$AD$101, 2, FALSE),\n      IF(R573=\"Boordmaat\",\n          VLOOKUP(S573, 'Data order'!$AC$102:$AD$116, 2, FALSE),\n          VLOOKUP(S573, 'Data order'!$AC$2:$AD$91, 2, FALSE)\n      )\n  ),\n\"\")","v":""},null,null,null,null,"EUR",null,null,null,{"$error":"#DIV/0!"},0,0,null,"","","","","","","","","","",null,null,null,null,null,null,null,null,null,null,null,null,null,null,null,null,null,"ZWO"]
[null,null,null,null,null,{"$f":"VLOOKUP(G574,'Data order'!Z:AA,2,0)","v":{"$error":"#N/A"}},null,null,null,null,null,null,null,null,{"$f":"VLOOKUP(N574,Tabel10[[korte omschrijving]:[MCC3_CODE]],2,0)","v":{"$error":"#N/A"}},{"$f":"VLOOKUP(N574,'Data order'!M:O,3,0)","v":{"$error":"#N/A"}},null,null,null,{"$f":"IFERROR(\n  IF(R574=\"Big&Tall\",\n      VLOOKUP(S574, 'Data order'!$AC$92:$AD$101, 2, FALSE),\n      IF(R574=\"Boordmaat\",\n          VLOOKUP(S574, 'Data order'!$AC$102:$AD$116, 2, FALSE),\n          VLOOKUP(S574, 'Data order'!$AC$2:$AD$91, 2, FALSE)\n      )\n  ),\n\"\")","v":""},null,null,null,null,"EUR",null,null,null,{"$error":"#DIV/0!"},0,0,null,"","","","","","","","","","",null,null,null,null,null,null,null,null,null,null,null,null,null,null,null,null,null,"ZWO"]
[null,null,null,null,null,{"$f":"VLOOKUP(G575,'Data order'!Z:AA,2,0)","v":{"$error":"#N/A"}},null,null,null,null,null,null,null,null,{"$f":"VLOOKUP(N575,Tabel10[[korte omschrijving]:[MCC3_CODE]],2,0)","v":{"$error":"#N/A"}},{"$f":"VLOOKUP(N575,'Data order'!M:O,3,0)","v":{"$error":"#N/A"}},null,null,null,{"$f":"IFERROR(\n  IF(R575=\"Big&Tall\",\n      VLOOKUP(S575, 'Data order'!$AC$92:$AD$101, 2, FALSE),\n      IF(R575=\"Boordmaat\",\n          VLOOKUP(S575, 'Data order'!$AC$102:$AD$116, 2, FALSE),\n          VLOOKUP(S575, 'Data order'!$AC$2:$AD$91, 2, FALSE)\n      )\n  ),\n\"\")","v":""},null,null,null,null,"EUR",null,null,null,{"$error":"#DIV/0!"},0,0,null,"","","","","","","","","","",null,null,null,null,null,null,null,null,null,null,null,null,null,null,null,null,null,"ZWO"]
[null,null,null,null,null,{"$f":"VLOOKUP(G576,'Data order'!Z:AA,2,0)","v":{"$error":"#N/A"}},null,null,null,null,null,null,null,null,{"$f":"VLOOKUP(N576,Tabel10[[korte omschrijving]:[MCC3_CODE]],2,0)","v":{"$error":"#N/A"}},{"$f":"VLOOKUP(N576,'Data order'!M:O,3,0)","v":{"$error":"#N/A"}},null,null,null,{"$f":"IFERROR(\n  IF(R576=\"Big&Tall\",\n      VLOOKUP(S576, 'Data order'!$AC$92:$AD$101, 2, FALSE),\n      IF(R576=\"Boordmaat\",\n          VLOOKUP(S576, 'Data order'!$AC$102:$AD$116, 2, FALSE),\n          VLOOKUP(S576, 'Data order'!$AC$2:$AD$91, 2, FALSE)\n      )\n  ),\n\"\")","v":""},null,0,null,null,"EUR",null,null,null,{"$f":"AB576/Z576","v":{"$error":"#DIV/0!"}},{"$f":"U576*Z576","v":0},{"$f":"U576*AB576","v":0},null,"","","","","","","","","","",null,null,null,null,null,null,null,null,null,null,null,null,null,null,null,null,null,"ZWO"]
[null,null,null,null,null,{"$f":"VLOOKUP(G577,'Data order'!Z:AA,2,0)","v":{"$error":"#N/A"}},null,null,null,null,null,null,null,null,{"$f":"VLOOKUP(N577,Tabel10[[korte omschrijving]:[MCC3_CODE]],2,0)","v":{"$error":"#N/A"}},{"$f":"VLOOKUP(N577,'Data order'!M:O,3,0)","v":{"$error":"#N/A"}},null,null,null,{"$f":"IFERROR(\n  IF(R577=\"Big&Tall\",\n      VLOOKUP(S577, 'Data order'!$AC$92:$AD$101, 2, FALSE),\n      IF(R577=\"Boordmaat\",\n          VLOOKUP(S577, 'Data order'!$AC$102:$AD$116, 2, FALSE),\n          VLOOKUP(S577, 'Data order'!$AC$2:$AD$91, 2, FALSE)\n      )\n  ),\n\"\")","v":""},null,null,null,null,"EUR",null,null,null,{"$error":"#DIV/0!"},0,0,null,"","","","","","","","","","",null,null,null,null,null,null,null,null,null,null,null,null,null,null,null,null,null,"ZWO"]
[null,null,null,null,null,{"$f":"VLOOKUP(G578,'Data order'!Z:AA,2,0)","v":{"$error":"#N/A"}},null,null,null,null,null,null,null,null,{"$f":"VLOOKUP(N578,Tabel10[[korte omschrijving]:[MCC3_CODE]],2,0)","v":{"$error":"#N/A"}},{"$f":"VLOOKUP(N578,'Data order'!M:O,3,0)","v":{"$error":"#N/A"}},null,null,null,{"$f":"IFERROR(\n  IF(R578=\"Big&Tall\",\n      VLOOKUP(S578, 'Data order'!$AC$92:$AD$101, 2, FALSE),\n      IF(R578=\"Boordmaat\",\n          VLOOKUP(S578, 'Data order'!$AC$102:$AD$116, 2, FALSE),\n          VLOOKUP(S578, 'Data order'!$AC$2:$AD$91, 2, FALSE)\n      )\n  ),\n\"\")","v":""},null,null,null,null,"EUR",null,null,null,{"$error":"#DIV/0!"},0,0,null,"","","","","","","","","","",null,null,null,null,null,null,null,null,null,null,null,null,null,null,null,null,null,"ZWO"]
[null,null,null,null,null,{"$f":"VLOOKUP(G579,'Data order'!Z:AA,2,0)","v":{"$error":"#N/A"}},null,null,null,null,null,null,null,null,{"$f":"VLOOKUP(N579,Tabel10[[korte omschrijving]:[MCC3_CODE]],2,0)","v":{"$error":"#N/A"}},{"$f":"VLOOKUP(N579,'Data order'!M:O,3,0)","v":{"$error":"#N/A"}},null,null,null,{"$f":"IFERROR(\n  IF(R579=\"Big&Tall\",\n      VLOOKUP(S579, 'Data order'!$AC$92:$AD$101, 2, FALSE),\n      IF(R579=\"Boordmaat\",\n          VLOOKUP(S579, 'Data order'!$AC$102:$AD$116, 2, FALSE),\n          VLOOKUP(S579, 'Data order'!$AC$2:$AD$91, 2, FALSE)\n      )\n  ),\n\"\")","v":""},null,null,null,null,"EUR",null,null,null,{"$error":"#DIV/0!"},0,0,null,"","","","","","","","","","",null,null,null,null,null,null,null,null,null,null,null,null,null,null,null,null,null,"ZWO"]
[null,null,null,null,null,{"$f":"VLOOKUP(G580,'Data order'!Z:AA,2,0)","v":{"$error":"#N/A"}},null,null,null,null,null,null,null,null,{"$f":"VLOOKUP(N580,Tabel10[[korte omschrijving]:[MCC3_CODE]],2,0)","v":{"$error":"#N/A"}},{"$f":"VLOOKUP(N580,'Data order'!M:O,3,0)","v":{"$error":"#N/A"}},null,null,null,{"$f":"IFERROR(\n  IF(R580=\"Big&Tall\",\n      VLOOKUP(S580, 'Data order'!$AC$92:$AD$101, 2, FALSE),\n      IF(R580=\"Boordmaat\",\n          VLOOKUP(S580, 'Data order'!$AC$102:$AD$116, 2, FALSE),\n          VLOOKUP(S580, 'Data order'!$AC$2:$AD$91, 2, FALSE)\n      )\n  ),\n\"\")","v":""},null,null,null,null,"EUR",null,null,null,{"$error":"#DIV/0!"},0,0,null,"","","","","","","","","","",null,null,null,null,null,null,null,null,null,null,null,null,null,null,null,null,null,"ZWO"]
[null,null,null,null,null,{"$f":"VLOOKUP(G581,'Data order'!Z:AA,2,0)","v":{"$error":"#N/A"}},null,null,null,null,null,null,null,null,{"$f":"VLOOKUP(N581,Tabel10[[korte omschrijving]:[MCC3_CODE]],2,0)","v":{"$error":"#N/A"}},{"$f":"VLOOKUP(N581,'Data order'!M:O,3,0)","v":{"$error":"#N/A"}},null,null,null,{"$f":"IFERROR(\n  IF(R581=\"Big&Tall\",\n      VLOOKUP(S581, 'Data order'!$AC$92:$AD$101, 2, FALSE),\n      IF(R581=\"Boordmaat\",\n          VLOOKUP(S581, 'Data order'!$AC$102:$AD$116, 2, FALSE),\n          VLOOKUP(S581, 'Data order'!$AC$2:$AD$91, 2, FALSE)\n      )\n  ),\n\"\")","v":""},null,null,null,null,"EUR",null,null,null,{"$error":"#DIV/0!"},0,0,null,"","","","","","","","","","",null,null,null,null,null,null,null,null,null,null,null,null,null,null,null,null,null,"ZWO"]
[null,null,null,null,null,{"$f":"VLOOKUP(G582,'Data order'!Z:AA,2,0)","v":{"$error":"#N/A"}},null,null,null,null,null,null,null,null,{"$f":"VLOOKUP(N582,Tabel10[[korte omschrijving]:[MCC3_CODE]],2,0)","v":{"$error":"#N/A"}},{"$f":"VLOOKUP(N582,'Data order'!M:O,3,0)","v":{"$error":"#N/A"}},null,null,null,{"$f":"IFERROR(\n  IF(R582=\"Big&Tall\",\n      VLOOKUP(S582, 'Data order'!$AC$92:$AD$101, 2, FALSE),\n      IF(R582=\"Boordmaat\",\n          VLOOKUP(S582, 'Data order'!$AC$102:$AD$116, 2, FALSE),\n          VLOOKUP(S582, 'Data order'!$AC$2:$AD$91, 2, FALSE)\n      )\n  ),\n\"\")","v":""},null,0,null,null,"EUR",null,null,null,{"$f":"AB582/Z582","v":{"$error":"#DIV/0!"}},{"$f":"U582*Z582","v":0},{"$f":"U582*AB582","v":0},null,"","","","","","","","","","",null,null,null,null,null,null,null,null,null,null,null,null,null,null,null,null,null,"ZWO"]
[null,null,null,null,null,{"$f":"VLOOKUP(G583,'Data order'!Z:AA,2,0)","v":{"$error":"#N/A"}},null,null,null,null,null,null,null,null,{"$f":"VLOOKUP(N583,Tabel10[[korte omschrijving]:[MCC3_CODE]],2,0)","v":{"$error":"#N/A"}},{"$f":"VLOOKUP(N583,'Data order'!M:O,3,0)","v":{"$error":"#N/A"}},null,null,null,{"$f":"IFERROR(\n  IF(R583=\"Big&Tall\",\n      VLOOKUP(S583, 'Data order'!$AC$92:$AD$101, 2, FALSE),\n      IF(R583=\"Boordmaat\",\n          VLOOKUP(S583, 'Data order'!$AC$102:$AD$116, 2, FALSE),\n          VLOOKUP(S583, 'Data order'!$AC$2:$AD$91, 2, FALSE)\n      )\n  ),\n\"\")","v":""},null,null,null,null,"EUR",null,null,null,{"$error":"#DIV/0!"},0,0,null,"","","","","","","","","","",null,null,null,null,null,null,null,null,null,null,null,null,null,null,null,null,null,"ZWO"]
[null,null,null,null,null,{"$f":"VLOOKUP(G584,'Data order'!Z:AA,2,0)","v":{"$error":"#N/A"}},null,null,null,null,null,null,null,null,{"$f":"VLOOKUP(N584,Tabel10[[korte omschrijving]:[MCC3_CODE]],2,0)","v":{"$error":"#N/A"}},{"$f":"VLOOKUP(N584,'Data order'!M:O,3,0)","v":{"$error":"#N/A"}},null,null,null,{"$f":"IFERROR(\n  IF(R584=\"Big&Tall\",\n      VLOOKUP(S584, 'Data order'!$AC$92:$AD$101, 2, FALSE),\n      IF(R584=\"Boordmaat\",\n          VLOOKUP(S584, 'Data order'!$AC$102:$AD$116, 2, FALSE),\n          VLOOKUP(S584, 'Data order'!$AC$2:$AD$91, 2, FALSE)\n      )\n  ),\n\"\")","v":""},null,null,null,null,"EUR",null,null,null,{"$error":"#DIV/0!"},0,0,null,"","","","","","","","","","",null,null,null,null,null,null,null,null,null,null,null,null,null,null,null,null,null,"ZWO"]
[null,null,null,null,null,{"$f":"VLOOKUP(G585,'Data order'!Z:AA,2,0)","v":{"$error":"#N/A"}},null,null,null,null,null,null,null,null,{"$f":"VLOOKUP(N585,Tabel10[[korte omschrijving]:[MCC3_CODE]],2,0)","v":{"$error":"#N/A"}},{"$f":"VLOOKUP(N585,'Data order'!M:O,3,0)","v":{"$error":"#N/A"}},null,null,null,{"$f":"IFERROR(\n  IF(R585=\"Big&Tall\",\n      VLOOKUP(S585, 'Data order'!$AC$92:$AD$101, 2, FALSE),\n      IF(R585=\"Boordmaat\",\n          VLOOKUP(S585, 'Data order'!$AC$102:$AD$116, 2, FALSE),\n          VLOOKUP(S585, 'Data order'!$AC$2:$AD$91, 2, FALSE)\n      )\n  ),\n\"\")","v":""},null,null,null,null,"EUR",null,null,null,{"$error":"#DIV/0!"},0,0,null,"","","","","","","","","","",null,null,null,null,null,null,null,null,null,null,null,null,null,null,null,null,null,"ZWO"]
[null,null,null,null,null,{"$f":"VLOOKUP(G586,'Data order'!Z:AA,2,0)","v":{"$error":"#N/A"}},null,null,null,null,null,null,null,null,{"$f":"VLOOKUP(N586,Tabel10[[korte omschrijving]:[MCC3_CODE]],2,0)","v":{"$error":"#N/A"}},{"$f":"VLOOKUP(N586,'Data order'!M:O,3,0)","v":{"$error":"#N/A"}},null,null,null,{"$f":"IFERROR(\n  IF(R586=\"Big&Tall\",\n      VLOOKUP(S586, 'Data order'!$AC$92:$AD$101, 2, FALSE),\n      IF(R586=\"Boordmaat\",\n          VLOOKUP(S586, 'Data order'!$AC$102:$AD$116, 2, FALSE),\n          VLOOKUP(S586, 'Data order'!$AC$2:$AD$91, 2, FALSE)\n      )\n  ),\n\"\")","v":""},null,null,null,null,"EUR",null,null,null,{"$error":"#DIV/0!"},0,0,null,"","","","","","","","","","",null,null,null,null,null,null,null,null,null,null,null,null,null,null,null,null,null,"ZWO"]
[null,null,null,null,null,{"$f":"VLOOKUP(G587,'Data order'!Z:AA,2,0)","v":{"$error":"#N/A"}},null,null,null,null,null,null,null,null,{"$f":"VLOOKUP(N587,Tabel10[[korte omschrijving]:[MCC3_CODE]],2,0)","v":{"$error":"#N/A"}},{"$f":"VLOOKUP(N587,'Data order'!M:O,3,0)","v":{"$error":"#N/A"}},null,null,null,{"$f":"IFERROR(\n  IF(R587=\"Big&Tall\",\n      VLOOKUP(S587, 'Data order'!$AC$92:$AD$101, 2, FALSE),\n      IF(R587=\"Boordmaat\",\n          VLOOKUP(S587, 'Data order'!$AC$102:$AD$116, 2, FALSE),\n          VLOOKUP(S587, 'Data order'!$AC$2:$AD$91, 2, FALSE)\n      )\n  ),\n\"\")","v":""},null,null,null,null,"EUR",null,null,null,{"$error":"#DIV/0!"},0,0,null,"","","","","","","","","","",null,null,null,null,null,null,null,null,null,null,null,null,null,null,null,null,null,"ZWO"]
[null,null,null,null,null,{"$f":"VLOOKUP(G588,'Data order'!Z:AA,2,0)","v":{"$error":"#N/A"}},null,null,null,null,null,null,null,null,{"$f":"VLOOKUP(N588,Tabel10[[korte omschrijving]:[MCC3_CODE]],2,0)","v":{"$error":"#N/A"}},{"$f":"VLOOKUP(N588,'Data order'!M:O,3,0)","v":{"$error":"#N/A"}},null,null,null,{"$f":"IFERROR(\n  IF(R588=\"Big&Tall\",\n      VLOOKUP(S588, 'Data order'!$AC$92:$AD$101, 2, FALSE),\n      IF(R588=\"Boordmaat\",\n          VLOOKUP(S588, 'Data order'!$AC$102:$AD$116, 2, FALSE),\n          VLOOKUP(S588, 'Data order'!$AC$2:$AD$91, 2, FALSE)\n      )\n  ),\n\"\")","v":""},null,0,null,null,"EUR",null,null,null,{"$f":"AB588/Z588","v":{"$error":"#DIV/0!"}},{"$f":"U588*Z588","v":0},{"$f":"U588*AB588","v":0},null,"","","","","","","","","","",null,null,null,null,null,null,null,null,null,null,null,null,null,null,null,null,null,"ZWO"]
[null,null,null,null,null,{"$f":"VLOOKUP(G589,'Data order'!Z:AA,2,0)","v":{"$error":"#N/A"}},null,null,null,null,null,null,null,null,{"$f":"VLOOKUP(N589,Tabel10[[korte omschrijving]:[MCC3_CODE]],2,0)","v":{"$error":"#N/A"}},{"$f":"VLOOKUP(N589,'Data order'!M:O,3,0)","v":{"$error":"#N/A"}},null,null,null,{"$f":"IFERROR(\n  IF(R589=\"Big&Tall\",\n      VLOOKUP(S589, 'Data order'!$AC$92:$AD$101, 2, FALSE),\n      IF(R589=\"Boordmaat\",\n          VLOOKUP(S589, 'Data order'!$AC$102:$AD$116, 2, FALSE),\n          VLOOKUP(S589, 'Data order'!$AC$2:$AD$91, 2, FALSE)\n      )\n  ),\n\"\")","v":""},null,null,null,null,"EUR",null,null,null,{"$error":"#DIV/0!"},0,0,null,"","","","","","","","","","",null,null,null,null,null,null,null,null,null,null,null,null,null,null,null,null,null,"ZWO"]
[null,null,null,null,null,{"$f":"VLOOKUP(G590,'Data order'!Z:AA,2,0)","v":{"$error":"#N/A"}},null,null,null,null,null,null,null,null,{"$f":"VLOOKUP(N590,Tabel10[[korte omschrijving]:[MCC3_CODE]],2,0)","v":{"$error":"#N/A"}},{"$f":"VLOOKUP(N590,'Data order'!M:O,3,0)","v":{"$error":"#N/A"}},null,null,null,{"$f":"IFERROR(\n  IF(R590=\"Big&Tall\",\n      VLOOKUP(S590, 'Data order'!$AC$92:$AD$101, 2, FALSE),\n      IF(R590=\"Boordmaat\",\n          VLOOKUP(S590, 'Data order'!$AC$102:$AD$116, 2, FALSE),\n          VLOOKUP(S590, 'Data order'!$AC$2:$AD$91, 2, FALSE)\n      )\n  ),\n\"\")","v":""},null,null,null,null,"EUR",null,null,null,{"$error":"#DIV/0!"},0,0,null,"","","","","","","","","","",null,null,null,null,null,null,null,null,null,null,null,null,null,null,null,null,null,"ZWO"]
[null,null,null,null,null,{"$f":"VLOOKUP(G591,'Data order'!Z:AA,2,0)","v":{"$error":"#N/A"}},null,null,null,null,null,null,null,null,{"$f":"VLOOKUP(N591,Tabel10[[korte omschrijving]:[MCC3_CODE]],2,0)","v":{"$error":"#N/A"}},{"$f":"VLOOKUP(N591,'Data order'!M:O,3,0)","v":{"$error":"#N/A"}},null,null,null,{"$f":"IFERROR(\n  IF(R591=\"Big&Tall\",\n      VLOOKUP(S591, 'Data order'!$AC$92:$AD$101, 2, FALSE),\n      IF(R591=\"Boordmaat\",\n          VLOOKUP(S591, 'Data order'!$AC$102:$AD$116, 2, FALSE),\n          VLOOKUP(S591, 'Data order'!$AC$2:$AD$91, 2, FALSE)\n      )\n  ),\n\"\")","v":""},null,null,null,null,"EUR",null,null,null,{"$error":"#DIV/0!"},0,0,null,"","","","","","","","","","",null,null,null,null,null,null,null,null,null,null,null,null,null,null,null,null,null,"ZWO"]
[null,null,null,null,null,{"$f":"VLOOKUP(G592,'Data order'!Z:AA,2,0)","v":{"$error":"#N/A"}},null,null,null,null,null,null,null,null,{"$f":"VLOOKUP(N592,Tabel10[[korte omschrijving]:[MCC3_CODE]],2,0)","v":{"$error":"#N/A"}},{"$f":"VLOOKUP(N592,'Data order'!M:O,3,0)","v":{"$error":"#N/A"}},null,null,null,{"$f":"IFERROR(\n  IF(R592=\"Big&Tall\",\n      VLOOKUP(S592, 'Data order'!$AC$92:$AD$101, 2, FALSE),\n      IF(R592=\"Boordmaat\",\n          VLOOKUP(S592, 'Data order'!$AC$102:$AD$116, 2, FALSE),\n          VLOOKUP(S592, 'Data order'!$AC$2:$AD$91, 2, FALSE)\n      )\n  ),\n\"\")","v":""},null,null,null,null,"EUR",null,null,null,{"$error":"#DIV/0!"},0,0,null,"","","","","","","","","","",null,null,null,null,null,null,null,null,null,null,null,null,null,null,null,null,null,"ZWO"]
[null,null,null,null,null,{"$f":"VLOOKUP(G593,'Data order'!Z:AA,2,0)","v":{"$error":"#N/A"}},null,null,null,null,null,null,null,null,{"$f":"VLOOKUP(N593,Tabel10[[korte omschrijving]:[MCC3_CODE]],2,0)","v":{"$error":"#N/A"}},{"$f":"VLOOKUP(N593,'Data order'!M:O,3,0)","v":{"$error":"#N/A"}},null,null,null,{"$f":"IFERROR(\n  IF(R593=\"Big&Tall\",\n      VLOOKUP(S593, 'Data order'!$AC$92:$AD$101, 2, FALSE),\n      IF(R593=\"Boordmaat\",\n          VLOOKUP(S593, 'Data order'!$AC$102:$AD$116, 2, FALSE),\n          VLOOKUP(S593, 'Data order'!$AC$2:$AD$91, 2, FALSE)\n      )\n  ),\n\"\")","v":""},null,null,null,null,"EUR",null,null,null,{"$error":"#DIV/0!"},0,0,null,"","","","","","","","","","",null,null,null,null,null,null,null,null,null,null,null,null,null,null,null,null,null,"ZWO"]
[null,null,null,null,null,{"$f":"VLOOKUP(G594,'Data order'!Z:AA,2,0)","v":{"$error":"#N/A"}},null,null,null,null,null,null,null,null,{"$f":"VLOOKUP(N594,Tabel10[[korte omschrijving]:[MCC3_CODE]],2,0)","v":{"$error":"#N/A"}},{"$f":"VLOOKUP(N594,'Data order'!M:O,3,0)","v":{"$error":"#N/A"}},null,null,null,{"$f":"IFERROR(\n  IF(R594=\"Big&Tall\",\n      VLOOKUP(S594, 'Data order'!$AC$92:$AD$101, 2, FALSE),\n      IF(R594=\"Boordmaat\",\n          VLOOKUP(S594, 'Data order'!$AC$102:$AD$116, 2, FALSE),\n          VLOOKUP(S594, 'Data order'!$AC$2:$AD$91, 2, FALSE)\n      )\n  ),\n\"\")","v":""},null,0,null,null,"EUR",null,null,null,{"$f":"AB594/Z594","v":{"$error":"#DIV/0!"}},{"$f":"U594*Z594","v":0},{"$f":"U594*AB594","v":0},null,"","","","","","","","","","",null,null,null,null,null,null,null,null,null,null,null,null,null,null,null,null,null,"ZWO"]
[null,null,null,null,null,{"$f":"VLOOKUP(G595,'Data order'!Z:AA,2,0)","v":{"$error":"#N/A"}},null,null,null,null,null,null,null,null,{"$f":"VLOOKUP(N595,Tabel10[[korte omschrijving]:[MCC3_CODE]],2,0)","v":{"$error":"#N/A"}},{"$f":"VLOOKUP(N595,'Data order'!M:O,3,0)","v":{"$error":"#N/A"}},null,null,null,{"$f":"IFERROR(\n  IF(R595=\"Big&Tall\",\n      VLOOKUP(S595, 'Data order'!$AC$92:$AD$101, 2, FALSE),\n      IF(R595=\"Boordmaat\",\n          VLOOKUP(S595, 'Data order'!$AC$102:$AD$116, 2, FALSE),\n          VLOOKUP(S595, 'Data order'!$AC$2:$AD$91, 2, FALSE)\n      )\n  ),\n\"\")","v":""},null,null,null,null,"EUR",null,null,null,{"$error":"#DIV/0!"},0,0,null,"","","","","","","","","","",null,null,null,null,null,null,null,null,null,null,null,null,null,null,null,null,null,"ZWO"]
[null,null,null,null,null,{"$f":"VLOOKUP(G596,'Data order'!Z:AA,2,0)","v":{"$error":"#N/A"}},null,null,null,null,null,null,null,null,{"$f":"VLOOKUP(N596,Tabel10[[korte omschrijving]:[MCC3_CODE]],2,0)","v":{"$error":"#N/A"}},{"$f":"VLOOKUP(N596,'Data order'!M:O,3,0)","v":{"$error":"#N/A"}},null,null,null,{"$f":"IFERROR(\n  IF(R596=\"Big&Tall\",\n      VLOOKUP(S596, 'Data order'!$AC$92:$AD$101, 2, FALSE),\n      IF(R596=\"Boordmaat\",\n          VLOOKUP(S596, 'Data order'!$AC$102:$AD$116, 2, FALSE),\n          VLOOKUP(S596, 'Data order'!$AC$2:$AD$91, 2, FALSE)\n      )\n  ),\n\"\")","v":""},null,null,null,null,"EUR",null,null,null,{"$error":"#DIV/0!"},0,0,null,"","","","","","","","","","",null,null,null,null,null,null,null,null,null,null,null,null,null,null,null,null,null,"ZWO"]
[null,null,null,null,null,{"$f":"VLOOKUP(G597,'Data order'!Z:AA,2,0)","v":{"$error":"#N/A"}},null,null,null,null,null,null,null,null,{"$f":"VLOOKUP(N597,Tabel10[[korte omschrijving]:[MCC3_CODE]],2,0)","v":{"$error":"#N/A"}},{"$f":"VLOOKUP(N597,'Data order'!M:O,3,0)","v":{"$error":"#N/A"}},null,null,null,{"$f":"IFERROR(\n  IF(R597=\"Big&Tall\",\n      VLOOKUP(S597, 'Data order'!$AC$92:$AD$101, 2, FALSE),\n      IF(R597=\"Boordmaat\",\n          VLOOKUP(S597, 'Data order'!$AC$102:$AD$116, 2, FALSE),\n          VLOOKUP(S597, 'Data order'!$AC$2:$AD$91, 2, FALSE)\n      )\n  ),\n\"\")","v":""},null,null,null,null,"EUR",null,null,null,{"$error":"#DIV/0!"},0,0,null,"","","","","","","","","","",null,null,null,null,null,null,null,null,null,null,null,null,null,null,null,null,null,"ZWO"]
[null,null,null,null,null,{"$f":"VLOOKUP(G598,'Data order'!Z:AA,2,0)","v":{"$error":"#N/A"}},null,null,null,null,null,null,null,null,{"$f":"VLOOKUP(N598,Tabel10[[korte omschrijving]:[MCC3_CODE]],2,0)","v":{"$error":"#N/A"}},{"$f":"VLOOKUP(N598,'Data order'!M:O,3,0)","v":{"$error":"#N/A"}},null,null,null,{"$f":"IFERROR(\n  IF(R598=\"Big&Tall\",\n      VLOOKUP(S598, 'Data order'!$AC$92:$AD$101, 2, FALSE),\n      IF(R598=\"Boordmaat\",\n          VLOOKUP(S598, 'Data order'!$AC$102:$AD$116, 2, FALSE),\n          VLOOKUP(S598, 'Data order'!$AC$2:$AD$91, 2, FALSE)\n      )\n  ),\n\"\")","v":""},null,null,null,null,"EUR",null,null,null,{"$error":"#DIV/0!"},0,0,null,"","","","","","","","","","",null,null,null,null,null,null,null,null,null,null,null,null,null,null,null,null,null,"ZWO"]
[null,null,null,null,null,{"$f":"VLOOKUP(G599,'Data order'!Z:AA,2,0)","v":{"$error":"#N/A"}},null,null,null,null,null,null,null,null,{"$f":"VLOOKUP(N599,Tabel10[[korte omschrijving]:[MCC3_CODE]],2,0)","v":{"$error":"#N/A"}},{"$f":"VLOOKUP(N599,'Data order'!M:O,3,0)","v":{"$error":"#N/A"}},null,null,null,{"$f":"IFERROR(\n  IF(R599=\"Big&Tall\",\n      VLOOKUP(S599, 'Data order'!$AC$92:$AD$101, 2, FALSE),\n      IF(R599=\"Boordmaat\",\n          VLOOKUP(S599, 'Data order'!$AC$102:$AD$116, 2, FALSE),\n          VLOOKUP(S599, 'Data order'!$AC$2:$AD$91, 2, FALSE)\n      )\n  ),\n\"\")","v":""},null,null,null,null,"EUR",null,null,null,{"$error":"#DIV/0!"},0,0,null,"","","","","","","","","","",null,null,null,null,null,null,null,null,null,null,null,null,null,null,null,null,null,"ZWO"]
[null,null,null,null,null,{"$f":"VLOOKUP(G600,'Data order'!Z:AA,2,0)","v":{"$error":"#N/A"}},null,null,null,null,null,null,null,null,{"$f":"VLOOKUP(N600,Tabel10[[korte omschrijving]:[MCC3_CODE]],2,0)","v":{"$error":"#N/A"}},{"$f":"VLOOKUP(N600,'Data order'!M:O,3,0)","v":{"$error":"#N/A"}},null,null,null,{"$f":"IFERROR(\n  IF(R600=\"Big&Tall\",\n      VLOOKUP(S600, 'Data order'!$AC$92:$AD$101, 2, FALSE),\n      IF(R600=\"Boordmaat\",\n          VLOOKUP(S600, 'Data order'!$AC$102:$AD$116, 2, FALSE),\n          VLOOKUP(S600, 'Data order'!$AC$2:$AD$91, 2, FALSE)\n      )\n  ),\n\"\")","v":""},null,0,null,null,"EUR",null,null,null,{"$f":"AB600/Z600","v":{"$error":"#DIV/0!"}},{"$f":"U600*Z600","v":0},{"$f":"U600*AB600","v":0},null,"","","","","","","","","","",null,null,null,null,null,null,null,null,null,null,null,null,null,null,null,null,null,"ZWO"]
[null,null,null,null,null,{"$f":"VLOOKUP(G601,'Data order'!Z:AA,2,0)","v":{"$error":"#N/A"}},null,null,null,null,null,null,null,null,{"$f":"VLOOKUP(N601,Tabel10[[korte omschrijving]:[MCC3_CODE]],2,0)","v":{"$error":"#N/A"}},{"$f":"VLOOKUP(N601,'Data order'!M:O,3,0)","v":{"$error":"#N/A"}},null,null,null,{"$f":"IFERROR(\n  IF(R601=\"Big&Tall\",\n      VLOOKUP(S601, 'Data order'!$AC$92:$AD$101, 2, FALSE),\n      IF(R601=\"Boordmaat\",\n          VLOOKUP(S601, 'Data order'!$AC$102:$AD$116, 2, FALSE),\n          VLOOKUP(S601, 'Data order'!$AC$2:$AD$91, 2, FALSE)\n      )\n  ),\n\"\")","v":""},null,null,null,null,"EUR",null,null,null,{"$error":"#DIV/0!"},0,0,null,"","","","","","","","","","",null,null,null,null,null,null,null,null,null,null,null,null,null,null,null,null,null,"ZWO"]
[null,null,null,null,null,{"$f":"VLOOKUP(G602,'Data order'!Z:AA,2,0)","v":{"$error":"#N/A"}},null,null,null,null,null,null,null,null,{"$f":"VLOOKUP(N602,Tabel10[[korte omschrijving]:[MCC3_CODE]],2,0)","v":{"$error":"#N/A"}},{"$f":"VLOOKUP(N602,'Data order'!M:O,3,0)","v":{"$error":"#N/A"}},null,null,null,{"$f":"IFERROR(\n  IF(R602=\"Big&Tall\",\n      VLOOKUP(S602, 'Data order'!$AC$92:$AD$101, 2, FALSE),\n      IF(R602=\"Boordmaat\",\n          VLOOKUP(S602, 'Data order'!$AC$102:$AD$116, 2, FALSE),\n          VLOOKUP(S602, 'Data order'!$AC$2:$AD$91, 2, FALSE)\n      )\n  ),\n\"\")","v":""},null,null,null,null,"EUR",null,null,null,{"$error":"#DIV/0!"},0,0,null,"","","","","","","","","","",null,null,null,null,null,null,null,null,null,null,null,null,null,null,null,null,null,"ZWO"]
[null,null,null,null,null,{"$f":"VLOOKUP(G603,'Data order'!Z:AA,2,0)","v":{"$error":"#N/A"}},null,null,null,null,null,null,null,null,{"$f":"VLOOKUP(N603,Tabel10[[korte omschrijving]:[MCC3_CODE]],2,0)","v":{"$error":"#N/A"}},{"$f":"VLOOKUP(N603,'Data order'!M:O,3,0)","v":{"$error":"#N/A"}},null,null,null,{"$f":"IFERROR(\n  IF(R603=\"Big&Tall\",\n      VLOOKUP(S603, 'Data order'!$AC$92:$AD$101, 2, FALSE),\n      IF(R603=\"Boordmaat\",\n          VLOOKUP(S603, 'Data order'!$AC$102:$AD$116, 2, FALSE),\n          VLOOKUP(S603, 'Data order'!$AC$2:$AD$91, 2, FALSE)\n      )\n  ),\n\"\")","v":""},null,null,null,null,"EUR",null,null,null,{"$error":"#DIV/0!"},0,0,null,"","","","","","","","","","",null,null,null,null,null,null,null,null,null,null,null,null,null,null,null,null,null,"ZWO"]
[null,null,null,null,null,{"$f":"VLOOKUP(G604,'Data order'!Z:AA,2,0)","v":{"$error":"#N/A"}},null,null,null,null,null,null,null,null,{"$f":"VLOOKUP(N604,Tabel10[[korte omschrijving]:[MCC3_CODE]],2,0)","v":{"$error":"#N/A"}},{"$f":"VLOOKUP(N604,'Data order'!M:O,3,0)","v":{"$error":"#N/A"}},null,null,null,{"$f":"IFERROR(\n  IF(R604=\"Big&Tall\",\n      VLOOKUP(S604, 'Data order'!$AC$92:$AD$101, 2, FALSE),\n      IF(R604=\"Boordmaat\",\n          VLOOKUP(S604, 'Data order'!$AC$102:$AD$116, 2, FALSE),\n          VLOOKUP(S604, 'Data order'!$AC$2:$AD$91, 2, FALSE)\n      )\n  ),\n\"\")","v":""},null,null,null,null,"EUR",null,null,null,{"$error":"#DIV/0!"},0,0,null,"","","","","","","","","","",null,null,null,null,null,null,null,null,null,null,null,null,null,null,null,null,null,"ZWO"]
[null,null,null,null,null,{"$f":"VLOOKUP(G605,'Data order'!Z:AA,2,0)","v":{"$error":"#N/A"}},null,null,null,null,null,null,null,null,{"$f":"VLOOKUP(N605,Tabel10[[korte omschrijving]:[MCC3_CODE]],2,0)","v":{"$error":"#N/A"}},{"$f":"VLOOKUP(N605,'Data order'!M:O,3,0)","v":{"$error":"#N/A"}},null,null,null,{"$f":"IFERROR(\n  IF(R605=\"Big&Tall\",\n      VLOOKUP(S605, 'Data order'!$AC$92:$AD$101, 2, FALSE),\n      IF(R605=\"Boordmaat\",\n          VLOOKUP(S605, 'Data order'!$AC$102:$AD$116, 2, FALSE),\n          VLOOKUP(S605, 'Data order'!$AC$2:$AD$91, 2, FALSE)\n      )\n  ),\n\"\")","v":""},null,null,null,null,"EUR",null,null,null,{"$error":"#DIV/0!"},0,0,null,"","","","","","","","","","",null,null,null,null,null,null,null,null,null,null,null,null,null,null,null,null,null,"ZWO"]
[null,null,null,null,null,{"$f":"VLOOKUP(G606,'Data order'!Z:AA,2,0)","v":{"$error":"#N/A"}},null,null,null,null,null,null,null,null,{"$f":"VLOOKUP(N606,Tabel10[[korte omschrijving]:[MCC3_CODE]],2,0)","v":{"$error":"#N/A"}},{"$f":"VLOOKUP(N606,'Data order'!M:O,3,0)","v":{"$error":"#N/A"}},null,null,null,{"$f":"IFERROR(\n  IF(R606=\"Big&Tall\",\n      VLOOKUP(S606, 'Data order'!$AC$92:$AD$101, 2, FALSE),\n      IF(R606=\"Boordmaat\",\n          VLOOKUP(S606, 'Data order'!$AC$102:$AD$116, 2, FALSE),\n          VLOOKUP(S606, 'Data order'!$AC$2:$AD$91, 2, FALSE)\n      )\n  ),\n\"\")","v":""},null,0,null,null,"EUR",null,null,null,{"$f":"AB606/Z606","v":{"$error":"#DIV/0!"}},{"$f":"U606*Z606","v":0},{"$f":"U606*AB606","v":0},null,"","","","","","","","","","",null,null,null,null,null,null,null,null,null,null,null,null,null,null,null,null,null,"ZWO"]
[null,null,null,null,null,{"$f":"VLOOKUP(G607,'Data order'!Z:AA,2,0)","v":{"$error":"#N/A"}},null,null,null,null,null,null,null,null,{"$f":"VLOOKUP(N607,Tabel10[[korte omschrijving]:[MCC3_CODE]],2,0)","v":{"$error":"#N/A"}},{"$f":"VLOOKUP(N607,'Data order'!M:O,3,0)","v":{"$error":"#N/A"}},null,null,null,{"$f":"IFERROR(\n  IF(R607=\"Big&Tall\",\n      VLOOKUP(S607, 'Data order'!$AC$92:$AD$101, 2, FALSE),\n      IF(R607=\"Boordmaat\",\n          VLOOKUP(S607, 'Data order'!$AC$102:$AD$116, 2, FALSE),\n          VLOOKUP(S607, 'Data order'!$AC$2:$AD$91, 2, FALSE)\n      )\n  ),\n\"\")","v":""},null,null,null,null,"EUR",null,null,null,{"$error":"#DIV/0!"},0,0,null,"","","","","","","","","","",null,null,null,null,null,null,null,null,null,null,null,null,null,null,null,null,null,"ZWO"]
[null,null,null,null,null,{"$f":"VLOOKUP(G608,'Data order'!Z:AA,2,0)","v":{"$error":"#N/A"}},null,null,null,null,null,null,null,null,{"$f":"VLOOKUP(N608,Tabel10[[korte omschrijving]:[MCC3_CODE]],2,0)","v":{"$error":"#N/A"}},{"$f":"VLOOKUP(N608,'Data order'!M:O,3,0)","v":{"$error":"#N/A"}},null,null,null,{"$f":"IFERROR(\n  IF(R608=\"Big&Tall\",\n      VLOOKUP(S608, 'Data order'!$AC$92:$AD$101, 2, FALSE),\n      IF(R608=\"Boordmaat\",\n          VLOOKUP(S608, 'Data order'!$AC$102:$AD$116, 2, FALSE),\n          VLOOKUP(S608, 'Data order'!$AC$2:$AD$91, 2, FALSE)\n      )\n  ),\n\"\")","v":""},null,null,null,null,"EUR",null,null,null,{"$error":"#DIV/0!"},0,0,null,"","","","","","","","","","",null,null,null,null,null,null,null,null,null,null,null,null,null,null,null,null,null,"ZWO"]
[null,null,null,null,null,{"$f":"VLOOKUP(G609,'Data order'!Z:AA,2,0)","v":{"$error":"#N/A"}},null,null,null,null,null,null,null,null,{"$f":"VLOOKUP(N609,Tabel10[[korte omschrijving]:[MCC3_CODE]],2,0)","v":{"$error":"#N/A"}},{"$f":"VLOOKUP(N609,'Data order'!M:O,3,0)","v":{"$error":"#N/A"}},null,null,null,{"$f":"IFERROR(\n  IF(R609=\"Big&Tall\",\n      VLOOKUP(S609, 'Data order'!$AC$92:$AD$101, 2, FALSE),\n      IF(R609=\"Boordmaat\",\n          VLOOKUP(S609, 'Data order'!$AC$102:$AD$116, 2, FALSE),\n          VLOOKUP(S609, 'Data order'!$AC$2:$AD$91, 2, FALSE)\n      )\n  ),\n\"\")","v":""},null,null,null,null,"EUR",null,null,null,{"$error":"#DIV/0!"},0,0,null,"","","","","","","","","","",null,null,null,null,null,null,null,null,null,null,null,null,null,null,null,null,null,"ZWO"]
[null,null,null,null,null,{"$f":"VLOOKUP(G610,'Data order'!Z:AA,2,0)","v":{"$error":"#N/A"}},null,null,null,null,null,null,null,null,{"$f":"VLOOKUP(N610,Tabel10[[korte omschrijving]:[MCC3_CODE]],2,0)","v":{"$error":"#N/A"}},{"$f":"VLOOKUP(N610,'Data order'!M:O,3,0)","v":{"$error":"#N/A"}},null,null,null,{"$f":"IFERROR(\n  IF(R610=\"Big&Tall\",\n      VLOOKUP(S610, 'Data order'!$AC$92:$AD$101, 2, FALSE),\n      IF(R610=\"Boordmaat\",\n          VLOOKUP(S610, 'Data order'!$AC$102:$AD$116, 2, FALSE),\n          VLOOKUP(S610, 'Data order'!$AC$2:$AD$91, 2, FALSE)\n      )\n  ),\n\"\")","v":""},null,null,null,null,"EUR",null,null,null,{"$error":"#DIV/0!"},0,0,null,"","","","","","","","","","",null,null,null,null,null,null,null,null,null,null,null,null,null,null,null,null,null,"ZWO"]
[null,null,null,null,null,{"$f":"VLOOKUP(G611,'Data order'!Z:AA,2,0)","v":{"$error":"#N/A"}},null,null,null,null,null,null,null,null,{"$f":"VLOOKUP(N611,Tabel10[[korte omschrijving]:[MCC3_CODE]],2,0)","v":{"$error":"#N/A"}},{"$f":"VLOOKUP(N611,'Data order'!M:O,3,0)","v":{"$error":"#N/A"}},null,null,null,{"$f":"IFERROR(\n  IF(R611=\"Big&Tall\",\n      VLOOKUP(S611, 'Data order'!$AC$92:$AD$101, 2, FALSE),\n      IF(R611=\"Boordmaat\",\n          VLOOKUP(S611, 'Data order'!$AC$102:$AD$116, 2, FALSE),\n          VLOOKUP(S611, 'Data order'!$AC$2:$AD$91, 2, FALSE)\n      )\n  ),\n\"\")","v":""},null,null,null,null,"EUR",null,null,null,{"$error":"#DIV/0!"},0,0,null,"","","","","","","","","","",null,null,null,null,null,null,null,null,null,null,null,null,null,null,null,null,null,"ZWO"]
[null,null,null,null,null,{"$f":"VLOOKUP(G612,'Data order'!Z:AA,2,0)","v":{"$error":"#N/A"}},null,null,null,null,null,null,null,null,{"$f":"VLOOKUP(N612,Tabel10[[korte omschrijving]:[MCC3_CODE]],2,0)","v":{"$error":"#N/A"}},{"$f":"VLOOKUP(N612,'Data order'!M:O,3,0)","v":{"$error":"#N/A"}},null,null,null,{"$f":"IFERROR(\n  IF(R612=\"Big&Tall\",\n      VLOOKUP(S612, 'Data order'!$AC$92:$AD$101, 2, FALSE),\n      IF(R612=\"Boordmaat\",\n          VLOOKUP(S612, 'Data order'!$AC$102:$AD$116, 2, FALSE),\n          VLOOKUP(S612, 'Data order'!$AC$2:$AD$91, 2, FALSE)\n      )\n  ),\n\"\")","v":""},null,0,null,null,"EUR",null,null,null,{"$f":"AB612/Z612","v":{"$error":"#DIV/0!"}},{"$f":"U612*Z612","v":0},{"$f":"U612*AB612","v":0},null,"","","","","","","","","","",null,null,null,null,null,null,null,null,null,null,null,null,null,null,null,null,null,"ZWO"]
[null,null,null,null,null,{"$f":"VLOOKUP(G613,'Data order'!Z:AA,2,0)","v":{"$error":"#N/A"}},null,null,null,null,null,null,null,null,{"$f":"VLOOKUP(N613,Tabel10[[korte omschrijving]:[MCC3_CODE]],2,0)","v":{"$error":"#N/A"}},{"$f":"VLOOKUP(N613,'Data order'!M:O,3,0)","v":{"$error":"#N/A"}},null,null,null,{"$f":"IFERROR(\n  IF(R613=\"Big&Tall\",\n      VLOOKUP(S613, 'Data order'!$AC$92:$AD$101, 2, FALSE),\n      IF(R613=\"Boordmaat\",\n          VLOOKUP(S613, 'Data order'!$AC$102:$AD$116, 2, FALSE),\n          VLOOKUP(S613, 'Data order'!$AC$2:$AD$91, 2, FALSE)\n      )\n  ),\n\"\")","v":""},null,null,null,null,"EUR",null,null,null,{"$error":"#DIV/0!"},0,0,null,"","","","","","","","","","",null,null,null,null,null,null,null,null,null,null,null,null,null,null,null,null,null,"ZWO"]
[null,null,null,null,null,{"$f":"VLOOKUP(G614,'Data order'!Z:AA,2,0)","v":{"$error":"#N/A"}},null,null,null,null,null,null,null,null,{"$f":"VLOOKUP(N614,Tabel10[[korte omschrijving]:[MCC3_CODE]],2,0)","v":{"$error":"#N/A"}},{"$f":"VLOOKUP(N614,'Data order'!M:O,3,0)","v":{"$error":"#N/A"}},null,null,null,{"$f":"IFERROR(\n  IF(R614=\"Big&Tall\",\n      VLOOKUP(S614, 'Data order'!$AC$92:$AD$101, 2, FALSE),\n      IF(R614=\"Boordmaat\",\n          VLOOKUP(S614, 'Data order'!$AC$102:$AD$116, 2, FALSE),\n          VLOOKUP(S614, 'Data order'!$AC$2:$AD$91, 2, FALSE)\n      )\n  ),\n\"\")","v":""},null,null,null,null,"EUR",null,null,null,{"$error":"#DIV/0!"},0,0,null,"","","","","","","","","","",null,null,null,null,null,null,null,null,null,null,null,null,null,null,null,null,null,"ZWO"]
[null,null,null,null,null,{"$f":"VLOOKUP(G615,'Data order'!Z:AA,2,0)","v":{"$error":"#N/A"}},null,null,null,null,null,null,null,null,{"$f":"VLOOKUP(N615,Tabel10[[korte omschrijving]:[MCC3_CODE]],2,0)","v":{"$error":"#N/A"}},{"$f":"VLOOKUP(N615,'Data order'!M:O,3,0)","v":{"$error":"#N/A"}},null,null,null,{"$f":"IFERROR(\n  IF(R615=\"Big&Tall\",\n      VLOOKUP(S615, 'Data order'!$AC$92:$AD$101, 2, FALSE),\n      IF(R615=\"Boordmaat\",\n          VLOOKUP(S615, 'Data order'!$AC$102:$AD$116, 2, FALSE),\n          VLOOKUP(S615, 'Data order'!$AC$2:$AD$91, 2, FALSE)\n      )\n  ),\n\"\")","v":""},null,null,null,null,"EUR",null,null,null,{"$error":"#DIV/0!"},0,0,null,"","","","","","","","","","",null,null,null,null,null,null,null,null,null,null,null,null,null,null,null,null,null,"ZWO"]
[null,null,null,null,null,{"$f":"VLOOKUP(G616,'Data order'!Z:AA,2,0)","v":{"$error":"#N/A"}},null,null,null,null,null,null,null,null,{"$f":"VLOOKUP(N616,Tabel10[[korte omschrijving]:[MCC3_CODE]],2,0)","v":{"$error":"#N/A"}},{"$f":"VLOOKUP(N616,'Data order'!M:O,3,0)","v":{"$error":"#N/A"}},null,null,null,{"$f":"IFERROR(\n  IF(R616=\"Big&Tall\",\n      VLOOKUP(S616, 'Data order'!$AC$92:$AD$101, 2, FALSE),\n      IF(R616=\"Boordmaat\",\n          VLOOKUP(S616, 'Data order'!$AC$102:$AD$116, 2, FALSE),\n          VLOOKUP(S616, 'Data order'!$AC$2:$AD$91, 2, FALSE)\n      )\n  ),\n\"\")","v":""},null,null,null,null,"EUR",null,null,null,{"$error":"#DIV/0!"},0,0,null,"","","","","","","","","","",null,null,null,null,null,null,null,null,null,null,null,null,null,null,null,null,null,"ZWO"]
[null,null,null,null,null,{"$f":"VLOOKUP(G617,'Data order'!Z:AA,2,0)","v":{"$error":"#N/A"}},null,null,null,null,null,null,null,null,{"$f":"VLOOKUP(N617,Tabel10[[korte omschrijving]:[MCC3_CODE]],2,0)","v":{"$error":"#N/A"}},{"$f":"VLOOKUP(N617,'Data order'!M:O,3,0)","v":{"$error":"#N/A"}},null,null,null,{"$f":"IFERROR(\n  IF(R617=\"Big&Tall\",\n      VLOOKUP(S617, 'Data order'!$AC$92:$AD$101, 2, FALSE),\n      IF(R617=\"Boordmaat\",\n          VLOOKUP(S617, 'Data order'!$AC$102:$AD$116, 2, FALSE),\n          VLOOKUP(S617, 'Data order'!$AC$2:$AD$91, 2, FALSE)\n      )\n  ),\n\"\")","v":""},null,null,null,null,"EUR",null,null,null,{"$error":"#DIV/0!"},0,0,null,"","","","","","","","","","",null,null,null,null,null,null,null,null,null,null,null,null,null,null,null,null,null,"ZWO"]
[null,null,null,null,null,{"$f":"VLOOKUP(G618,'Data order'!Z:AA,2,0)","v":{"$error":"#N/A"}},null,null,null,null,null,null,null,null,{"$f":"VLOOKUP(N618,Tabel10[[korte omschrijving]:[MCC3_CODE]],2,0)","v":{"$error":"#N/A"}},{"$f":"VLOOKUP(N618,'Data order'!M:O,3,0)","v":{"$error":"#N/A"}},null,null,null,{"$f":"IFERROR(\n  IF(R618=\"Big&Tall\",\n      VLOOKUP(S618, 'Data order'!$AC$92:$AD$101, 2, FALSE),\n      IF(R618=\"Boordmaat\",\n          VLOOKUP(S618, 'Data order'!$AC$102:$AD$116, 2, FALSE),\n          VLOOKUP(S618, 'Data order'!$AC$2:$AD$91, 2, FALSE)\n      )\n  ),\n\"\")","v":""},null,0,null,null,"EUR",null,null,null,{"$f":"AB618/Z618","v":{"$error":"#DIV/0!"}},{"$f":"U618*Z618","v":0},{"$f":"U618*AB618","v":0},null,"","","","","","","","","","",null,null,null,null,null,null,null,null,null,null,null,null,null,null,null,null,null,"ZWO"]
[null,null,null,null,null,{"$f":"VLOOKUP(G619,'Data order'!Z:AA,2,0)","v":{"$error":"#N/A"}},null,null,null,null,null,null,null,null,{"$f":"VLOOKUP(N619,Tabel10[[korte omschrijving]:[MCC3_CODE]],2,0)","v":{"$error":"#N/A"}},{"$f":"VLOOKUP(N619,'Data order'!M:O,3,0)","v":{"$error":"#N/A"}},null,null,null,{"$f":"IFERROR(\n  IF(R619=\"Big&Tall\",\n      VLOOKUP(S619, 'Data order'!$AC$92:$AD$101, 2, FALSE),\n      IF(R619=\"Boordmaat\",\n          VLOOKUP(S619, 'Data order'!$AC$102:$AD$116, 2, FALSE),\n          VLOOKUP(S619, 'Data order'!$AC$2:$AD$91, 2, FALSE)\n      )\n  ),\n\"\")","v":""},null,null,null,null,"EUR",null,null,null,{"$error":"#DIV/0!"},0,0,null,"","","","","","","","","","",null,null,null,null,null,null,null,null,null,null,null,null,null,null,null,null,null,"ZWO"]
[null,null,null,null,null,{"$f":"VLOOKUP(G620,'Data order'!Z:AA,2,0)","v":{"$error":"#N/A"}},null,null,null,null,null,null,null,null,{"$f":"VLOOKUP(N620,Tabel10[[korte omschrijving]:[MCC3_CODE]],2,0)","v":{"$error":"#N/A"}},{"$f":"VLOOKUP(N620,'Data order'!M:O,3,0)","v":{"$error":"#N/A"}},null,null,null,{"$f":"IFERROR(\n  IF(R620=\"Big&Tall\",\n      VLOOKUP(S620, 'Data order'!$AC$92:$AD$101, 2, FALSE),\n      IF(R620=\"Boordmaat\",\n          VLOOKUP(S620, 'Data order'!$AC$102:$AD$116, 2, FALSE),\n          VLOOKUP(S620, 'Data order'!$AC$2:$AD$91, 2, FALSE)\n      )\n  ),\n\"\")","v":""},null,null,null,null,"EUR",null,null,null,{"$error":"#DIV/0!"},0,0,null,"","","","","","","","","","",null,null,null,null,null,null,null,null,null,null,null,null,null,null,null,null,null,"ZWO"]
[null,null,null,null,null,{"$f":"VLOOKUP(G621,'Data order'!Z:AA,2,0)","v":{"$error":"#N/A"}},null,null,null,null,null,null,null,null,{"$f":"VLOOKUP(N621,Tabel10[[korte omschrijving]:[MCC3_CODE]],2,0)","v":{"$error":"#N/A"}},{"$f":"VLOOKUP(N621,'Data order'!M:O,3,0)","v":{"$error":"#N/A"}},null,null,null,{"$f":"IFERROR(\n  IF(R621=\"Big&Tall\",\n      VLOOKUP(S621, 'Data order'!$AC$92:$AD$101, 2, FALSE),\n      IF(R621=\"Boordmaat\",\n          VLOOKUP(S621, 'Data order'!$AC$102:$AD$116, 2, FALSE),\n          VLOOKUP(S621, 'Data order'!$AC$2:$AD$91, 2, FALSE)\n      )\n  ),\n\"\")","v":""},null,null,null,null,"EUR",null,null,null,{"$error":"#DIV/0!"},0,0,null,"","","","","","","","","","",null,null,null,null,null,null,null,null,null,null,null,null,null,null,null,null,null,"ZWO"]
[null,null,null,null,null,{"$f":"VLOOKUP(G622,'Data order'!Z:AA,2,0)","v":{"$error":"#N/A"}},null,null,null,null,null,null,null,null,{"$f":"VLOOKUP(N622,Tabel10[[korte omschrijving]:[MCC3_CODE]],2,0)","v":{"$error":"#N/A"}},{"$f":"VLOOKUP(N622,'Data order'!M:O,3,0)","v":{"$error":"#N/A"}},null,null,null,{"$f":"IFERROR(\n  IF(R622=\"Big&Tall\",\n      VLOOKUP(S622, 'Data order'!$AC$92:$AD$101, 2, FALSE),\n      IF(R622=\"Boordmaat\",\n          VLOOKUP(S622, 'Data order'!$AC$102:$AD$116, 2, FALSE),\n          VLOOKUP(S622, 'Data order'!$AC$2:$AD$91, 2, FALSE)\n      )\n  ),\n\"\")","v":""},null,null,null,null,"EUR",null,null,null,{"$error":"#DIV/0!"},0,0,null,"","","","","","","","","","",null,null,null,null,null,null,null,null,null,null,null,null,null,null,null,null,null,"ZWO"]
[null,null,null,null,null,{"$f":"VLOOKUP(G623,'Data order'!Z:AA,2,0)","v":{"$error":"#N/A"}},null,null,null,null,null,null,null,null,{"$f":"VLOOKUP(N623,Tabel10[[korte omschrijving]:[MCC3_CODE]],2,0)","v":{"$error":"#N/A"}},{"$f":"VLOOKUP(N623,'Data order'!M:O,3,0)","v":{"$error":"#N/A"}},null,null,null,{"$f":"IFERROR(\n  IF(R623=\"Big&Tall\",\n      VLOOKUP(S623, 'Data order'!$AC$92:$AD$101, 2, FALSE),\n      IF(R623=\"Boordmaat\",\n          VLOOKUP(S623, 'Data order'!$AC$102:$AD$116, 2, FALSE),\n          VLOOKUP(S623, 'Data order'!$AC$2:$AD$91, 2, FALSE)\n      )\n  ),\n\"\")","v":""},null,null,null,null,"EUR",null,null,null,{"$error":"#DIV/0!"},0,0,null,"","","","","","","","","","",null,null,null,null,null,null,null,null,null,null,null,null,null,null,null,null,null,"ZWO"]
[null,null,null,null,null,{"$f":"VLOOKUP(G624,'Data order'!Z:AA,2,0)","v":{"$error":"#N/A"}},null,null,null,null,null,null,null,null,{"$f":"VLOOKUP(N624,Tabel10[[korte omschrijving]:[MCC3_CODE]],2,0)","v":{"$error":"#N/A"}},{"$f":"VLOOKUP(N624,'Data order'!M:O,3,0)","v":{"$error":"#N/A"}},null,null,null,{"$f":"IFERROR(\n  IF(R624=\"Big&Tall\",\n      VLOOKUP(S624, 'Data order'!$AC$92:$AD$101, 2, FALSE),\n      IF(R624=\"Boordmaat\",\n          VLOOKUP(S624, 'Data order'!$AC$102:$AD$116, 2, FALSE),\n          VLOOKUP(S624, 'Data order'!$AC$2:$AD$91, 2, FALSE)\n      )\n  ),\n\"\")","v":""},null,0,null,null,"EUR",null,null,null,{"$f":"AB624/Z624","v":{"$error":"#DIV/0!"}},{"$f":"U624*Z624","v":0},{"$f":"U624*AB624","v":0},null,"","","","","","","","","","",null,null,null,null,null,null,null,null,null,null,null,null,null,null,null,null,null,"ZWO"]
[null,null,null,null,null,{"$f":"VLOOKUP(G625,'Data order'!Z:AA,2,0)","v":{"$error":"#N/A"}},null,null,null,null,null,null,null,null,{"$f":"VLOOKUP(N625,Tabel10[[korte omschrijving]:[MCC3_CODE]],2,0)","v":{"$error":"#N/A"}},{"$f":"VLOOKUP(N625,'Data order'!M:O,3,0)","v":{"$error":"#N/A"}},null,null,null,{"$f":"IFERROR(\n  IF(R625=\"Big&Tall\",\n      VLOOKUP(S625, 'Data order'!$AC$92:$AD$101, 2, FALSE),\n      IF(R625=\"Boordmaat\",\n          VLOOKUP(S625, 'Data order'!$AC$102:$AD$116, 2, FALSE),\n          VLOOKUP(S625, 'Data order'!$AC$2:$AD$91, 2, FALSE)\n      )\n  ),\n\"\")","v":""},null,null,null,null,"EUR",null,null,null,{"$error":"#DIV/0!"},0,0,null,"","","","","","","","","","",null,null,null,null,null,null,null,null,null,null,null,null,null,null,null,null,null,"ZWO"]
[null,null,null,null,null,{"$f":"VLOOKUP(G626,'Data order'!Z:AA,2,0)","v":{"$error":"#N/A"}},null,null,null,null,null,null,null,null,{"$f":"VLOOKUP(N626,Tabel10[[korte omschrijving]:[MCC3_CODE]],2,0)","v":{"$error":"#N/A"}},{"$f":"VLOOKUP(N626,'Data order'!M:O,3,0)","v":{"$error":"#N/A"}},null,null,null,{"$f":"IFERROR(\n  IF(R626=\"Big&Tall\",\n      VLOOKUP(S626, 'Data order'!$AC$92:$AD$101, 2, FALSE),\n      IF(R626=\"Boordmaat\",\n          VLOOKUP(S626, 'Data order'!$AC$102:$AD$116, 2, FALSE),\n          VLOOKUP(S626, 'Data order'!$AC$2:$AD$91, 2, FALSE)\n      )\n  ),\n\"\")","v":""},null,null,null,null,"EUR",null,null,null,{"$error":"#DIV/0!"},0,0,null,"","","","","","","","","","",null,null,null,null,null,null,null,null,null,null,null,null,null,null,null,null,null,"ZWO"]
[null,null,null,null,null,{"$f":"VLOOKUP(G627,'Data order'!Z:AA,2,0)","v":{"$error":"#N/A"}},null,null,null,null,null,null,null,null,{"$f":"VLOOKUP(N627,Tabel10[[korte omschrijving]:[MCC3_CODE]],2,0)","v":{"$error":"#N/A"}},{"$f":"VLOOKUP(N627,'Data order'!M:O,3,0)","v":{"$error":"#N/A"}},null,null,null,{"$f":"IFERROR(\n  IF(R627=\"Big&Tall\",\n      VLOOKUP(S627, 'Data order'!$AC$92:$AD$101, 2, FALSE),\n      IF(R627=\"Boordmaat\",\n          VLOOKUP(S627, 'Data order'!$AC$102:$AD$116, 2, FALSE),\n          VLOOKUP(S627, 'Data order'!$AC$2:$AD$91, 2, FALSE)\n      )\n  ),\n\"\")","v":""},null,null,null,null,"EUR",null,null,null,{"$error":"#DIV/0!"},0,0,null,"","","","","","","","","","",null,null,null,null,null,null,null,null,null,null,null,null,null,null,null,null,null,"ZWO"]
[null,null,null,null,null,{"$f":"VLOOKUP(G628,'Data order'!Z:AA,2,0)","v":{"$error":"#N/A"}},null,null,null,null,null,null,null,null,{"$f":"VLOOKUP(N628,Tabel10[[korte omschrijving]:[MCC3_CODE]],2,0)","v":{"$error":"#N/A"}},{"$f":"VLOOKUP(N628,'Data order'!M:O,3,0)","v":{"$error":"#N/A"}},null,null,null,{"$f":"IFERROR(\n  IF(R628=\"Big&Tall\",\n      VLOOKUP(S628, 'Data order'!$AC$92:$AD$101, 2, FALSE),\n      IF(R628=\"Boordmaat\",\n          VLOOKUP(S628, 'Data order'!$AC$102:$AD$116, 2, FALSE),\n          VLOOKUP(S628, 'Data order'!$AC$2:$AD$91, 2, FALSE)\n      )\n  ),\n\"\")","v":""},null,null,null,null,"EUR",null,null,null,{"$error":"#DIV/0!"},0,0,null,"","","","","","","","","","",null,null,null,null,null,null,null,null,null,null,null,null,null,null,null,null,null,"ZWO"]
[null,null,null,null,null,{"$f":"VLOOKUP(G629,'Data order'!Z:AA,2,0)","v":{"$error":"#N/A"}},null,null,null,null,null,null,null,null,{"$f":"VLOOKUP(N629,Tabel10[[korte omschrijving]:[MCC3_CODE]],2,0)","v":{"$error":"#N/A"}},{"$f":"VLOOKUP(N629,'Data order'!M:O,3,0)","v":{"$error":"#N/A"}},null,null,null,{"$f":"IFERROR(\n  IF(R629=\"Big&Tall\",\n      VLOOKUP(S629, 'Data order'!$AC$92:$AD$101, 2, FALSE),\n      IF(R629=\"Boordmaat\",\n          VLOOKUP(S629, 'Data order'!$AC$102:$AD$116, 2, FALSE),\n          VLOOKUP(S629, 'Data order'!$AC$2:$AD$91, 2, FALSE)\n      )\n  ),\n\"\")","v":""},null,null,null,null,"EUR",null,null,null,{"$error":"#DIV/0!"},0,0,null,"","","","","","","","","","",null,null,null,null,null,null,null,null,null,null,null,null,null,null,null,null,null,"ZWO"]
[null,null,null,null,null,{"$f":"VLOOKUP(G630,'Data order'!Z:AA,2,0)","v":{"$error":"#N/A"}},null,null,null,null,null,null,null,null,{"$f":"VLOOKUP(N630,Tabel10[[korte omschrijving]:[MCC3_CODE]],2,0)","v":{"$error":"#N/A"}},{"$f":"VLOOKUP(N630,'Data order'!M:O,3,0)","v":{"$error":"#N/A"}},null,null,null,{"$f":"IFERROR(\n  IF(R630=\"Big&Tall\",\n      VLOOKUP(S630, 'Data order'!$AC$92:$AD$101, 2, FALSE),\n      IF(R630=\"Boordmaat\",\n          VLOOKUP(S630, 'Data order'!$AC$102:$AD$116, 2, FALSE),\n          VLOOKUP(S630, 'Data order'!$AC$2:$AD$91, 2, FALSE)\n      )\n  ),\n\"\")","v":""},null,0,null,null,"EUR",null,null,null,{"$f":"AB630/Z630","v":{"$error":"#DIV/0!"}},{"$f":"U630*Z630","v":0},{"$f":"U630*AB630","v":0},null,"","","","","","","","","","",null,null,null,null,null,null,null,null,null,null,null,null,null,null,null,null,null,"ZWO"]
[null,null,null,null,null,{"$f":"VLOOKUP(G631,'Data order'!Z:AA,2,0)","v":{"$error":"#N/A"}},null,null,null,null,null,null,null,null,{"$f":"VLOOKUP(N631,Tabel10[[korte omschrijving]:[MCC3_CODE]],2,0)","v":{"$error":"#N/A"}},{"$f":"VLOOKUP(N631,'Data order'!M:O,3,0)","v":{"$error":"#N/A"}},null,null,null,{"$f":"IFERROR(\n  IF(R631=\"Big&Tall\",\n      VLOOKUP(S631, 'Data order'!$AC$92:$AD$101, 2, FALSE),\n      IF(R631=\"Boordmaat\",\n          VLOOKUP(S631, 'Data order'!$AC$102:$AD$116, 2, FALSE),\n          VLOOKUP(S631, 'Data order'!$AC$2:$AD$91, 2, FALSE)\n      )\n  ),\n\"\")","v":""},null,null,null,null,"EUR",null,null,null,{"$error":"#DIV/0!"},0,0,null,"","","","","","","","","","",null,null,null,null,null,null,null,null,null,null,null,null,null,null,null,null,null,"ZWO"]
[null,null,null,null,null,{"$f":"VLOOKUP(G632,'Data order'!Z:AA,2,0)","v":{"$error":"#N/A"}},null,null,null,null,null,null,null,null,{"$f":"VLOOKUP(N632,Tabel10[[korte omschrijving]:[MCC3_CODE]],2,0)","v":{"$error":"#N/A"}},{"$f":"VLOOKUP(N632,'Data order'!M:O,3,0)","v":{"$error":"#N/A"}},null,null,null,{"$f":"IFERROR(\n  IF(R632=\"Big&Tall\",\n      VLOOKUP(S632, 'Data order'!$AC$92:$AD$101, 2, FALSE),\n      IF(R632=\"Boordmaat\",\n          VLOOKUP(S632, 'Data order'!$AC$102:$AD$116, 2, FALSE),\n          VLOOKUP(S632, 'Data order'!$AC$2:$AD$91, 2, FALSE)\n      )\n  ),\n\"\")","v":""},null,null,null,null,"EUR",null,null,null,{"$error":"#DIV/0!"},0,0,null,{"$f":"IF(AF632 <> \"\",\n    IF(ISNUMBER(VALUE(LEFT(AF632, FIND(\"%\", AF632)-1))),\n        VALUE(LEFT(AF632, FIND(\"%\", AF632)-1)),\n        \"Invalid format\"),\n    \"\")","v":""},{"$f":"IF(AF632 <> \"\",\n    IF(ISNUMBER(VALUE(LEFT(AF632, FIND(\"%\", AF632)-1))) * ISNUMBER(FIND(\"%\", AF632 & \"wol\")) > 0,\n        TRIM(MID(AF632, FIND(\"%\", AF632)+1, FIND(\"/\", AF632 & \"/\")-FIND(\"%\", AF632)-1)),\n        \"Invalid format\"),\n    \"\")","v":""},{"$f":"IF(AF632 <> \"\",\n    IF(ISNUMBER(VALUE(MID(AF632, FIND(\"/\", AF632) + 1, FIND(\"%\", AF632, FIND(\"/\", AF632)) - FIND(\"/\", AF632) - 1))),\n        VALUE(MID(AF632, FIND(\"/\", AF632) + 1, FIND(\"%\", AF632, FIND(\"/\", AF632)) - FIND(\"/\", AF632) - 1)),\n        \"\"),\n    \"\")","v":""},{"$f":"IF(AF632 <> \"\",\n    IFERROR(TRIM(MID(AF632, FIND(\"%\", AF632, FIND(\"/\", AF632)+1)+2,\n        IFERROR(FIND(\"/\", AF632 & \"/\", FIND(\"/\", AF632)+1)-FIND(\"%\", AF632, FIND(\"/\", AF632)+1)-2, LEN(AF632)-FIND(\"%\", AF632, FIND(\"/\", AF632)+1)-1))),\n        \"\"),\n    \"\")","v":""},{"$f":"IF(AF632 <> \"\",\n    IF(ISNUMBER(VALUE(MID(AF632, FIND(\"/\", AF632, FIND(\"/\", AF632)+1) + 1, FIND(\"%\", AF632, FIND(\"/\", AF632, FIND(\"/\", AF632)+1)) - FIND(\"/\", AF632, FIND(\"/\", AF632)+1) - 1))),\n        VALUE(MID(AF632, FIND(\"/\", AF632, FIND(\"/\", AF632)+1) + 1, FIND(\"%\", AF632, FIND(\"/\", AF632, FIND(\"/\", AF632)+1)) - FIND(\"/\", AF632, FIND(\"/\", AF632)+1) - 1)),\n        \"\"),\n    \"\")","v":""},{"$f":"IF(AF632 <> \"\",\n    IFERROR(\n        TRIM(MID(AF632,\n            FIND(\"%\", AF632, FIND(\"%\", AF632, FIND(\"%\", AF632)+1)+1)+1,\n            FIND(\"/\", AF632 & \"/\", FIND(\"%\", AF632, FIND(\"%\", AF632, FIND(\"%\", AF632)+1)+1))-FIND(\"%\", AF632, FIND(\"%\", AF632, FIND(\"%\", AF632)+1)+1)-1)\n        ),\n        \"\"\n    ),\n    \"\"\n)","v":""},{"$f":"IF(AF632 <> \"\",\n    IF(ISNUMBER(VALUE(MID(AF632, FIND(\"/\", AF632, FIND(\"/\", AF632, FIND(\"/\", AF632)+1)+1) + 1, FIND(\"%\", AF632, FIND(\"/\", AF632, FIND(\"/\", AF632, FIND(\"/\", AF632)+1)+1)) - FIND(\"/\", AF632, FIND(\"/\", AF632, FIND(\"/\", AF632)+1)+1) - 1))),\n        VALUE(MID(AF632, FIND(\"/\", AF632, FIND(\"/\", AF632, FIND(\"/\", AF632)+1)+1) + 1, FIND(\"%\", AF632, FIND(\"/\", AF632, FIND(\"/\", AF632, FIND(\"/\", AF632)+1)+1)) - FIND(\"/\", AF632, FIND(\"/\", AF632, FIND(\"/\", AF632)+1)+1) - 1)),\n        \"\"),\n    \"\")","v":""},{"$f":"IF(AF632 <> \"\",\n    IFERROR(TRIM(MID(AF632, FIND(\"%\", AF632, FIND(\"/\", AF632, FIND(\"/\", AF632, FIND(\"/\", AF632)+1)+1)+1)+2,\n        IFERROR(FIND(\"/\", AF632, FIND(\"/\", AF632, FIND(\"/\", AF632, FIND(\"/\", AF632)+1)+1)+1)-FIND(\"%\", AF632, FIND(\"/\", AF632, FIND(\"/\", AF632, FIND(\"/\", AF632)+1)+1)+1)-2, LEN(AF632)-FIND(\"%\", AF632, FIND(\"/\", AF632, FIND(\"/\", AF632, FIND(\"/\", AF632)+1)+1)+1)-1))),\n        \"\"),\n    \"\")","v":""},{"$f":"IF(AF632 <> \"\",\n    IF(ISNUMBER(VALUE(MID(AF632, FIND(\"/\", AF632, FIND(\"/\", AF632, FIND(\"/\", AF632, FIND(\"/\", AF632)+1)+1)+1) + 1, FIND(\"%\", AF632, FIND(\"/\", AF632, FIND(\"/\", AF632, FIND(\"/\", AF632, FIND(\"/\", AF632)+1)+1)+1)) - FIND(\"/\", AF632, FIND(\"/\", AF632, FIND(\"/\", AF632, FIND(\"/\", AF632)+1)+1)+1) - 1))),\n        VALUE(MID(AF632, FIND(\"/\", AF632, FIND(\"/\", AF632, FIND(\"/\", AF632, FIND(\"/\", AF632)+1)+1)+1) + 1, FIND(\"%\", AF632, FIND(\"/\", AF632, FIND(\"/\", AF632, FIND(\"/\", AF632, FIND(\"/\", AF632)+1)+1)+1)) - FIND(\"/\", AF632, FIND(\"/\", AF632, FIND(\"/\", AF632, FIND(\"/\", AF632)+1)+1)+1) - 1)),\n        \"\"),\n    \"\")","v":""},{"$f":"IF(AF632 = \"\", \"\",\n    IFERROR(TRIM(\n        MID(\n            AF632,\n            FIND(\"%\", AF632, FIND(\"/\", AF632, FIND(\"/\", AF632, FIND(\"/\", AF632, FIND(\"/\", AF632)+1)+1)+1)+1) + 1,\n            FIND(\"/\", AF632 & \"/\", FIND(\"%\", AF632, FIND(\"/\", AF632, FIND(\"/\", AF632, FIND(\"/\", AF632, FIND(\"/\", AF632)+1)+1)+1)+1)) -\n            FIND(\"%\", AF632, FIND(\"/\", AF632, FIND(\"/\", AF632, FIND(\"/\", AF632, FIND(\"/\", AF632)+1)+1)+1)+1) - 1\n        )\n    ),\n    \"\")\n)","v":""},null,null,null,null,null,null,null,null,null,null,null,null,null,null,null,null,null,"ZWO"]
[null,null,null,null,null,{"$f":"VLOOKUP(G633,'Data order'!Z:AA,2,0)","v":{"$error":"#N/A"}},null,null,null,null,null,null,null,null,{"$f":"VLOOKUP(N633,Tabel10[[korte omschrijving]:[MCC3_CODE]],2,0)","v":{"$error":"#N/A"}},{"$f":"VLOOKUP(N633,'Data order'!M:O,3,0)","v":{"$error":"#N/A"}},null,null,null,{"$f":"IFERROR(\n  IF(R633=\"Big&Tall\",\n      VLOOKUP(S633, 'Data order'!$AC$92:$AD$101, 2, FALSE),\n      IF(R633=\"Boordmaat\",\n          VLOOKUP(S633, 'Data order'!$AC$102:$AD$116, 2, FALSE),\n          VLOOKUP(S633, 'Data order'!$AC$2:$AD$91, 2, FALSE)\n      )\n  ),\n\"\")","v":""},null,null,null,null,"EUR",null,null,null,{"$error":"#DIV/0!"},0,0,null,"","","","","","","","","","",null,null,null,null,null,null,null,null,null,null,null,null,null,null,null,null,null,"ZWO"]
[null,null,null,null,null,{"$f":"VLOOKUP(G634,'Data order'!Z:AA,2,0)","v":{"$error":"#N/A"}},null,null,null,null,null,null,null,null,{"$f":"VLOOKUP(N634,Tabel10[[korte omschrijving]:[MCC3_CODE]],2,0)","v":{"$error":"#N/A"}},{"$f":"VLOOKUP(N634,'Data order'!M:O,3,0)","v":{"$error":"#N/A"}},null,null,null,{"$f":"IFERROR(\n  IF(R634=\"Big&Tall\",\n      VLOOKUP(S634, 'Data order'!$AC$92:$AD$101, 2, FALSE),\n      IF(R634=\"Boordmaat\",\n          VLOOKUP(S634, 'Data order'!$AC$102:$AD$116, 2, FALSE),\n          VLOOKUP(S634, 'Data order'!$AC$2:$AD$91, 2, FALSE)\n      )\n  ),\n\"\")","v":""},null,null,null,null,"EUR",null,null,null,{"$error":"#DIV/0!"},0,0,null,"","","","","","","","","","",null,null,null,null,null,null,null,null,null,null,null,null,null,null,null,null,null,"ZWO"]
[null,null,null,null,null,{"$f":"VLOOKUP(G635,'Data order'!Z:AA,2,0)","v":{"$error":"#N/A"}},null,null,null,null,null,null,null,null,{"$f":"VLOOKUP(N635,Tabel10[[korte omschrijving]:[MCC3_CODE]],2,0)","v":{"$error":"#N/A"}},{"$f":"VLOOKUP(N635,'Data order'!M:O,3,0)","v":{"$error":"#N/A"}},null,null,null,{"$f":"IFERROR(\n  IF(R635=\"Big&Tall\",\n      VLOOKUP(S635, 'Data order'!$AC$92:$AD$101, 2, FALSE),\n      IF(R635=\"Boordmaat\",\n          VLOOKUP(S635, 'Data order'!$AC$102:$AD$116, 2, FALSE),\n          VLOOKUP(S635, 'Data order'!$AC$2:$AD$91, 2, FALSE)\n      )\n  ),\n\"\")","v":""},null,null,null,null,"EUR",null,null,null,{"$error":"#DIV/0!"},0,0,null,"","","","","","","","","","",null,null,null,null,null,null,null,null,null,null,null,null,null,null,null,null,null,"ZWO"]
[null,null,null,null,null,{"$f":"VLOOKUP(G636,'Data order'!Z:AA,2,0)","v":{"$error":"#N/A"}},null,null,null,null,null,null,null,null,{"$f":"VLOOKUP(N636,Tabel10[[korte omschrijving]:[MCC3_CODE]],2,0)","v":{"$error":"#N/A"}},{"$f":"VLOOKUP(N636,'Data order'!M:O,3,0)","v":{"$error":"#N/A"}},null,null,null,{"$f":"IFERROR(\n  IF(R636=\"Big&Tall\",\n      VLOOKUP(S636, 'Data order'!$AC$92:$AD$101, 2, FALSE),\n      IF(R636=\"Boordmaat\",\n          VLOOKUP(S636, 'Data order'!$AC$102:$AD$116, 2, FALSE),\n          VLOOKUP(S636, 'Data order'!$AC$2:$AD$91, 2, FALSE)\n      )\n  ),\n\"\")","v":""},null,{"$f":"SUM(U636:U641)","v":0},null,null,"EUR",null,null,null,{"$f":"AB636/Z636","v":{"$error":"#DIV/0!"}},{"$f":"U636*Z636","v":0},{"$f":"U636*AB636","v":0},null,"","","","","","","","","","",null,null,null,null,null,null,null,null,null,null,null,null,null,null,null,null,null,"ZWO"]
[null,null,null,null,null,{"$f":"VLOOKUP(G637,'Data order'!Z:AA,2,0)","v":{"$error":"#N/A"}},null,null,null,null,null,null,null,null,{"$f":"VLOOKUP(N637,Tabel10[[korte omschrijving]:[MCC3_CODE]],2,0)","v":{"$error":"#N/A"}},{"$f":"VLOOKUP(N637,'Data order'!M:O,3,0)","v":{"$error":"#N/A"}},null,null,null,{"$f":"IFERROR(\n  IF(R637=\"Big&Tall\",\n      VLOOKUP(S637, 'Data order'!$AC$92:$AD$101, 2, FALSE),\n      IF(R637=\"Boordmaat\",\n          VLOOKUP(S637, 'Data order'!$AC$102:$AD$116, 2, FALSE),\n          VLOOKUP(S637, 'Data order'!$AC$2:$AD$91, 2, FALSE)\n      )\n  ),\n\"\")","v":""},null,null,null,null,"EUR",null,null,null,{"$error":"#DIV/0!"},0,0,null,"","","","","","","","","","",null,null,null,null,null,null,null,null,null,null,null,null,null,null,null,null,null,"ZWO"]
[null,null,null,null,null,{"$f":"VLOOKUP(G638,'Data order'!Z:AA,2,0)","v":{"$error":"#N/A"}},null,null,null,null,null,null,null,null,{"$f":"VLOOKUP(N638,Tabel10[[korte omschrijving]:[MCC3_CODE]],2,0)","v":{"$error":"#N/A"}},{"$f":"VLOOKUP(N638,'Data order'!M:O,3,0)","v":{"$error":"#N/A"}},null,null,null,{"$f":"IFERROR(\n  IF(R638=\"Big&Tall\",\n      VLOOKUP(S638, 'Data order'!$AC$92:$AD$101, 2, FALSE),\n      IF(R638=\"Boordmaat\",\n          VLOOKUP(S638, 'Data order'!$AC$102:$AD$116, 2, FALSE),\n          VLOOKUP(S638, 'Data order'!$AC$2:$AD$91, 2, FALSE)\n      )\n  ),\n\"\")","v":""},null,null,null,null,"EUR",null,null,null,{"$error":"#DIV/0!"},0,0,null,"","","","","","","","","","",null,null,null,null,null,null,null,null,null,null,null,null,null,null,null,null,null,"ZWO"]
[null,null,null,null,null,{"$f":"VLOOKUP(G639,'Data order'!Z:AA,2,0)","v":{"$error":"#N/A"}},null,null,null,null,null,null,null,null,{"$f":"VLOOKUP(N639,Tabel10[[korte omschrijving]:[MCC3_CODE]],2,0)","v":{"$error":"#N/A"}},{"$f":"VLOOKUP(N639,'Data order'!M:O,3,0)","v":{"$error":"#N/A"}},null,null,null,{"$f":"IFERROR(\n  IF(R639=\"Big&Tall\",\n      VLOOKUP(S639, 'Data order'!$AC$92:$AD$101, 2, FALSE),\n      IF(R639=\"Boordmaat\",\n          VLOOKUP(S639, 'Data order'!$AC$102:$AD$116, 2, FALSE),\n          VLOOKUP(S639, 'Data order'!$AC$2:$AD$91, 2, FALSE)\n      )\n  ),\n\"\")","v":""},null,null,null,null,"EUR",null,null,null,{"$error":"#DIV/0!"},0,0,null,"","","","","","","","","","",null,null,null,null,null,null,null,null,null,null,null,null,null,null,null,null,null,"ZWO"]
[null,null,null,null,null,{"$f":"VLOOKUP(G640,'Data order'!Z:AA,2,0)","v":{"$error":"#N/A"}},null,null,null,null,null,null,null,null,{"$f":"VLOOKUP(N640,Tabel10[[korte omschrijving]:[MCC3_CODE]],2,0)","v":{"$error":"#N/A"}},{"$f":"VLOOKUP(N640,'Data order'!M:O,3,0)","v":{"$error":"#N/A"}},null,null,null,{"$f":"IFERROR(\n  IF(R640=\"Big&Tall\",\n      VLOOKUP(S640, 'Data order'!$AC$92:$AD$101, 2, FALSE),\n      IF(R640=\"Boordmaat\",\n          VLOOKUP(S640, 'Data order'!$AC$102:$AD$116, 2, FALSE),\n          VLOOKUP(S640, 'Data order'!$AC$2:$AD$91, 2, FALSE)\n      )\n  ),\n\"\")","v":""},null,null,null,null,"EUR",null,null,null,{"$error":"#DIV/0!"},0,0,null,"","","","","","","","","","",null,null,null,null,null,null,null,null,null,null,null,null,null,null,null,null,null,"ZWO"]
[null,null,null,null,null,{"$f":"VLOOKUP(G641,'Data order'!Z:AA,2,0)","v":{"$error":"#N/A"}},null,null,null,null,null,null,null,null,{"$f":"VLOOKUP(N641,Tabel10[[korte omschrijving]:[MCC3_CODE]],2,0)","v":{"$error":"#N/A"}},{"$f":"VLOOKUP(N641,'Data order'!M:O,3,0)","v":{"$error":"#N/A"}},null,null,null,{"$f":"IFERROR(\n  IF(R641=\"Big&Tall\",\n      VLOOKUP(S641, 'Data order'!$AC$92:$AD$101, 2, FALSE),\n      IF(R641=\"Boordmaat\",\n          VLOOKUP(S641, 'Data order'!$AC$102:$AD$116, 2, FALSE),\n          VLOOKUP(S641, 'Data order'!$AC$2:$AD$91, 2, FALSE)\n      )\n  ),\n\"\")","v":""},null,null,null,null,"EUR",null,null,null,{"$error":"#DIV/0!"},0,0,null,"","","","","","","","","","",null,null,null,null,null,null,null,null,null,null,null,null,null,null,null,null,null,"ZWO"]
[null,null,null,null,null,{"$f":"VLOOKUP(G642,'Data order'!Z:AA,2,0)","v":{"$error":"#N/A"}},null,null,null,null,null,null,null,null,{"$f":"VLOOKUP(N642,Tabel10[[korte omschrijving]:[MCC3_CODE]],2,0)","v":{"$error":"#N/A"}},{"$f":"VLOOKUP(N642,'Data order'!M:O,3,0)","v":{"$error":"#N/A"}},null,null,null,{"$f":"IFERROR(\n  IF(R642=\"Big&Tall\",\n      VLOOKUP(S642, 'Data order'!$AC$92:$AD$101, 2, FALSE),\n      IF(R642=\"Boordmaat\",\n          VLOOKUP(S642, 'Data order'!$AC$102:$AD$116, 2, FALSE),\n          VLOOKUP(S642, 'Data order'!$AC$2:$AD$91, 2, FALSE)\n      )\n  ),\n\"\")","v":""},null,0,null,null,"EUR",null,null,null,{"$f":"AB642/Z642","v":{"$error":"#DIV/0!"}},{"$f":"U642*Z642","v":0},{"$f":"U642*AB642","v":0},null,"","","","","","","","","","",null,null,null,null,null,null,null,null,null,null,null,null,null,null,null,null,null,"ZWO"]
[null,null,null,null,null,{"$f":"VLOOKUP(G643,'Data order'!Z:AA,2,0)","v":{"$error":"#N/A"}},null,null,null,null,null,null,null,null,{"$f":"VLOOKUP(N643,Tabel10[[korte omschrijving]:[MCC3_CODE]],2,0)","v":{"$error":"#N/A"}},{"$f":"VLOOKUP(N643,'Data order'!M:O,3,0)","v":{"$error":"#N/A"}},null,null,null,{"$f":"IFERROR(\n  IF(R643=\"Big&Tall\",\n      VLOOKUP(S643, 'Data order'!$AC$92:$AD$101, 2, FALSE),\n      IF(R643=\"Boordmaat\",\n          VLOOKUP(S643, 'Data order'!$AC$102:$AD$116, 2, FALSE),\n          VLOOKUP(S643, 'Data order'!$AC$2:$AD$91, 2, FALSE)\n      )\n  ),\n\"\")","v":""},null,null,null,null,"EUR",null,null,null,{"$error":"#DIV/0!"},0,0,null,"","","","","","","","","","",null,null,null,null,null,null,null,null,null,null,null,null,null,null,null,null,null,"ZWO"]
[null,null,null,null,null,{"$f":"VLOOKUP(G644,'Data order'!Z:AA,2,0)","v":{"$error":"#N/A"}},null,null,null,null,null,null,null,null,{"$f":"VLOOKUP(N644,Tabel10[[korte omschrijving]:[MCC3_CODE]],2,0)","v":{"$error":"#N/A"}},{"$f":"VLOOKUP(N644,'Data order'!M:O,3,0)","v":{"$error":"#N/A"}},null,null,null,{"$f":"IFERROR(\n  IF(R644=\"Big&Tall\",\n      VLOOKUP(S644, 'Data order'!$AC$92:$AD$101, 2, FALSE),\n      IF(R644=\"Boordmaat\",\n          VLOOKUP(S644, 'Data order'!$AC$102:$AD$116, 2, FALSE),\n          VLOOKUP(S644, 'Data order'!$AC$2:$AD$91, 2, FALSE)\n      )\n  ),\n\"\")","v":""},null,null,null,null,"EUR",null,null,null,{"$error":"#DIV/0!"},0,0,null,"","","","","","","","","","",null,null,null,null,null,null,null,null,null,null,null,null,null,null,null,null,null,"ZWO"]
[null,null,null,null,null,{"$f":"VLOOKUP(G645,'Data order'!Z:AA,2,0)","v":{"$error":"#N/A"}},null,null,null,null,null,null,null,null,{"$f":"VLOOKUP(N645,Tabel10[[korte omschrijving]:[MCC3_CODE]],2,0)","v":{"$error":"#N/A"}},{"$f":"VLOOKUP(N645,'Data order'!M:O,3,0)","v":{"$error":"#N/A"}},null,null,null,{"$f":"IFERROR(\n  IF(R645=\"Big&Tall\",\n      VLOOKUP(S645, 'Data order'!$AC$92:$AD$101, 2, FALSE),\n      IF(R645=\"Boordmaat\",\n          VLOOKUP(S645, 'Data order'!$AC$102:$AD$116, 2, FALSE),\n          VLOOKUP(S645, 'Data order'!$AC$2:$AD$91, 2, FALSE)\n      )\n  ),\n\"\")","v":""},null,null,null,null,"EUR",null,null,null,{"$error":"#DIV/0!"},0,0,null,"","","","","","","","","","",null,null,null,null,null,null,null,null,null,null,null,null,null,null,null,null,null,"ZWO"]
[null,null,null,null,null,{"$f":"VLOOKUP(G646,'Data order'!Z:AA,2,0)","v":{"$error":"#N/A"}},null,null,null,null,null,null,null,null,{"$f":"VLOOKUP(N646,Tabel10[[korte omschrijving]:[MCC3_CODE]],2,0)","v":{"$error":"#N/A"}},{"$f":"VLOOKUP(N646,'Data order'!M:O,3,0)","v":{"$error":"#N/A"}},null,null,null,{"$f":"IFERROR(\n  IF(R646=\"Big&Tall\",\n      VLOOKUP(S646, 'Data order'!$AC$92:$AD$101, 2, FALSE),\n      IF(R646=\"Boordmaat\",\n          VLOOKUP(S646, 'Data order'!$AC$102:$AD$116, 2, FALSE),\n          VLOOKUP(S646, 'Data order'!$AC$2:$AD$91, 2, FALSE)\n      )\n  ),\n\"\")","v":""},null,null,null,null,"EUR",null,null,null,{"$error":"#DIV/0!"},0,0,null,"","","","","","","","","","",null,null,null,null,null,null,null,null,null,null,null,null,null,null,null,null,null,"ZWO"]
[null,null,null,null,null,{"$f":"VLOOKUP(G647,'Data order'!Z:AA,2,0)","v":{"$error":"#N/A"}},null,null,null,null,null,null,null,null,{"$f":"VLOOKUP(N647,Tabel10[[korte omschrijving]:[MCC3_CODE]],2,0)","v":{"$error":"#N/A"}},{"$f":"VLOOKUP(N647,'Data order'!M:O,3,0)","v":{"$error":"#N/A"}},null,null,null,{"$f":"IFERROR(\n  IF(R647=\"Big&Tall\",\n      VLOOKUP(S647, 'Data order'!$AC$92:$AD$101, 2, FALSE),\n      IF(R647=\"Boordmaat\",\n          VLOOKUP(S647, 'Data order'!$AC$102:$AD$116, 2, FALSE),\n          VLOOKUP(S647, 'Data order'!$AC$2:$AD$91, 2, FALSE)\n      )\n  ),\n\"\")","v":""},null,null,null,null,"EUR",null,null,null,{"$error":"#DIV/0!"},0,0,null,"","","","","","","","","","",null,null,null,null,null,null,null,null,null,null,null,null,null,null,null,null,null,"ZWO"]
[null,null,null,null,null,{"$f":"VLOOKUP(G648,'Data order'!Z:AA,2,0)","v":{"$error":"#N/A"}},null,null,null,null,null,null,null,null,{"$f":"VLOOKUP(N648,Tabel10[[korte omschrijving]:[MCC3_CODE]],2,0)","v":{"$error":"#N/A"}},{"$f":"VLOOKUP(N648,'Data order'!M:O,3,0)","v":{"$error":"#N/A"}},null,null,null,{"$f":"IFERROR(\n  IF(R648=\"Big&Tall\",\n      VLOOKUP(S648, 'Data order'!$AC$92:$AD$101, 2, FALSE),\n      IF(R648=\"Boordmaat\",\n          VLOOKUP(S648, 'Data order'!$AC$102:$AD$116, 2, FALSE),\n          VLOOKUP(S648, 'Data order'!$AC$2:$AD$91, 2, FALSE)\n      )\n  ),\n\"\")","v":""},null,0,null,null,"EUR",null,null,null,{"$f":"AB648/Z648","v":{"$error":"#DIV/0!"}},{"$f":"U648*Z648","v":0},{"$f":"U648*AB648","v":0},null,"","","","","","","","","","",null,null,null,null,null,null,null,null,null,null,null,null,null,null,null,null,null,"ZWO"]
[null,null,null,null,null,{"$f":"VLOOKUP(G649,'Data order'!Z:AA,2,0)","v":{"$error":"#N/A"}},null,null,null,null,null,null,null,null,{"$f":"VLOOKUP(N649,Tabel10[[korte omschrijving]:[MCC3_CODE]],2,0)","v":{"$error":"#N/A"}},{"$f":"VLOOKUP(N649,'Data order'!M:O,3,0)","v":{"$error":"#N/A"}},null,null,null,{"$f":"IFERROR(\n  IF(R649=\"Big&Tall\",\n      VLOOKUP(S649, 'Data order'!$AC$92:$AD$101, 2, FALSE),\n      IF(R649=\"Boordmaat\",\n          VLOOKUP(S649, 'Data order'!$AC$102:$AD$116, 2, FALSE),\n          VLOOKUP(S649, 'Data order'!$AC$2:$AD$91, 2, FALSE)\n      )\n  ),\n\"\")","v":""},null,null,null,null,"EUR",null,null,null,{"$error":"#DIV/0!"},0,0,null,"","","","","","","","","","",null,null,null,null,null,null,null,null,null,null,null,null,null,null,null,null,null,"ZWO"]
[null,null,null,null,null,{"$f":"VLOOKUP(G650,'Data order'!Z:AA,2,0)","v":{"$error":"#N/A"}},null,null,null,null,null,null,null,null,{"$f":"VLOOKUP(N650,Tabel10[[korte omschrijving]:[MCC3_CODE]],2,0)","v":{"$error":"#N/A"}},{"$f":"VLOOKUP(N650,'Data order'!M:O,3,0)","v":{"$error":"#N/A"}},null,null,null,{"$f":"IFERROR(\n  IF(R650=\"Big&Tall\",\n      VLOOKUP(S650, 'Data order'!$AC$92:$AD$101, 2, FALSE),\n      IF(R650=\"Boordmaat\",\n          VLOOKUP(S650, 'Data order'!$AC$102:$AD$116, 2, FALSE),\n          VLOOKUP(S650, 'Data order'!$AC$2:$AD$91, 2, FALSE)\n      )\n  ),\n\"\")","v":""},null,null,null,null,"EUR",null,null,null,{"$error":"#DIV/0!"},0,0,null,"","","","","","","","","","",null,null,null,null,null,null,null,null,null,null,null,null,null,null,null,null,null,"ZWO"]
[null,null,null,null,null,{"$f":"VLOOKUP(G651,'Data order'!Z:AA,2,0)","v":{"$error":"#N/A"}},null,null,null,null,null,null,null,null,{"$f":"VLOOKUP(N651,Tabel10[[korte omschrijving]:[MCC3_CODE]],2,0)","v":{"$error":"#N/A"}},{"$f":"VLOOKUP(N651,'Data order'!M:O,3,0)","v":{"$error":"#N/A"}},null,null,null,{"$f":"IFERROR(\n  IF(R651=\"Big&Tall\",\n      VLOOKUP(S651, 'Data order'!$AC$92:$AD$101, 2, FALSE),\n      IF(R651=\"Boordmaat\",\n          VLOOKUP(S651, 'Data order'!$AC$102:$AD$116, 2, FALSE),\n          VLOOKUP(S651, 'Data order'!$AC$2:$AD$91, 2, FALSE)\n      )\n  ),\n\"\")","v":""},null,null,null,null,"EUR",null,null,null,{"$error":"#DIV/0!"},0,0,null,"","","","","","","","","","",null,null,null,null,null,null,null,null,null,null,null,null,null,null,null,null,null,"ZWO"]
[null,null,null,null,null,{"$f":"VLOOKUP(G652,'Data order'!Z:AA,2,0)","v":{"$error":"#N/A"}},null,null,null,null,null,null,null,null,{"$f":"VLOOKUP(N652,Tabel10[[korte omschrijving]:[MCC3_CODE]],2,0)","v":{"$error":"#N/A"}},{"$f":"VLOOKUP(N652,'Data order'!M:O,3,0)","v":{"$error":"#N/A"}},null,null,null,{"$f":"IFERROR(\n  IF(R652=\"Big&Tall\",\n      VLOOKUP(S652, 'Data order'!$AC$92:$AD$101, 2, FALSE),\n      IF(R652=\"Boordmaat\",\n          VLOOKUP(S652, 'Data order'!$AC$102:$AD$116, 2, FALSE),\n          VLOOKUP(S652, 'Data order'!$AC$2:$AD$91, 2, FALSE)\n      )\n  ),\n\"\")","v":""},null,null,null,null,"EUR",null,null,null,{"$error":"#DIV/0!"},0,0,null,"","","","","","","","","","",null,null,null,null,null,null,null,null,null,null,null,null,null,null,null,null,null,"ZWO"]
[null,null,null,null,null,{"$f":"VLOOKUP(G653,'Data order'!Z:AA,2,0)","v":{"$error":"#N/A"}},null,null,null,null,null,null,null,null,{"$f":"VLOOKUP(N653,Tabel10[[korte omschrijving]:[MCC3_CODE]],2,0)","v":{"$error":"#N/A"}},{"$f":"VLOOKUP(N653,'Data order'!M:O,3,0)","v":{"$error":"#N/A"}},null,null,null,{"$f":"IFERROR(\n  IF(R653=\"Big&Tall\",\n      VLOOKUP(S653, 'Data order'!$AC$92:$AD$101, 2, FALSE),\n      IF(R653=\"Boordmaat\",\n          VLOOKUP(S653, 'Data order'!$AC$102:$AD$116, 2, FALSE),\n          VLOOKUP(S653, 'Data order'!$AC$2:$AD$91, 2, FALSE)\n      )\n  ),\n\"\")","v":""},null,null,null,null,"EUR",null,null,null,{"$error":"#DIV/0!"},0,0,null,"","","","","","","","","","",null,null,null,null,null,null,null,null,null,null,null,null,null,null,null,null,null,"ZWO"]
[null,null,null,null,null,{"$f":"VLOOKUP(G654,'Data order'!Z:AA,2,0)","v":{"$error":"#N/A"}},null,null,null,null,null,null,null,null,{"$f":"VLOOKUP(N654,Tabel10[[korte omschrijving]:[MCC3_CODE]],2,0)","v":{"$error":"#N/A"}},{"$f":"VLOOKUP(N654,'Data order'!M:O,3,0)","v":{"$error":"#N/A"}},null,null,null,{"$f":"IFERROR(\n  IF(R654=\"Big&Tall\",\n      VLOOKUP(S654, 'Data order'!$AC$92:$AD$101, 2, FALSE),\n      IF(R654=\"Boordmaat\",\n          VLOOKUP(S654, 'Data order'!$AC$102:$AD$116, 2, FALSE),\n          VLOOKUP(S654, 'Data order'!$AC$2:$AD$91, 2, FALSE)\n      )\n  ),\n\"\")","v":""},null,0,null,null,"EUR",null,null,null,{"$f":"AB654/Z654","v":{"$error":"#DIV/0!"}},{"$f":"U654*Z654","v":0},{"$f":"U654*AB654","v":0},null,"","","","","","","","","","",null,null,null,null,null,null,null,null,null,null,null,null,null,null,null,null,null,"ZWO"]
[null,null,null,null,null,{"$f":"VLOOKUP(G655,'Data order'!Z:AA,2,0)","v":{"$error":"#N/A"}},null,null,null,null,null,null,null,null,{"$f":"VLOOKUP(N655,Tabel10[[korte omschrijving]:[MCC3_CODE]],2,0)","v":{"$error":"#N/A"}},{"$f":"VLOOKUP(N655,'Data order'!M:O,3,0)","v":{"$error":"#N/A"}},null,null,null,{"$f":"IFERROR(\n  IF(R655=\"Big&Tall\",\n      VLOOKUP(S655, 'Data order'!$AC$92:$AD$101, 2, FALSE),\n      IF(R655=\"Boordmaat\",\n          VLOOKUP(S655, 'Data order'!$AC$102:$AD$116, 2, FALSE),\n          VLOOKUP(S655, 'Data order'!$AC$2:$AD$91, 2, FALSE)\n      )\n  ),\n\"\")","v":""},null,null,null,null,"EUR",null,null,null,{"$error":"#DIV/0!"},0,0,null,"","","","","","","","","","",null,null,null,null,null,null,null,null,null,null,null,null,null,null,null,null,null,"ZWO"]
[null,null,null,null,null,{"$f":"VLOOKUP(G656,'Data order'!Z:AA,2,0)","v":{"$error":"#N/A"}},null,null,null,null,null,null,null,null,{"$f":"VLOOKUP(N656,Tabel10[[korte omschrijving]:[MCC3_CODE]],2,0)","v":{"$error":"#N/A"}},{"$f":"VLOOKUP(N656,'Data order'!M:O,3,0)","v":{"$error":"#N/A"}},null,null,null,{"$f":"IFERROR(\n  IF(R656=\"Big&Tall\",\n      VLOOKUP(S656, 'Data order'!$AC$92:$AD$101, 2, FALSE),\n      IF(R656=\"Boordmaat\",\n          VLOOKUP(S656, 'Data order'!$AC$102:$AD$116, 2, FALSE),\n          VLOOKUP(S656, 'Data order'!$AC$2:$AD$91, 2, FALSE)\n      )\n  ),\n\"\")","v":""},null,null,null,null,"EUR",null,null,null,{"$error":"#DIV/0!"},0,0,null,"","","","","","","","","","",null,null,null,null,null,null,null,null,null,null,null,null,null,null,null,null,null,"ZWO"]
[null,null,null,null,null,{"$f":"VLOOKUP(G657,'Data order'!Z:AA,2,0)","v":{"$error":"#N/A"}},null,null,null,null,null,null,null,null,{"$f":"VLOOKUP(N657,Tabel10[[korte omschrijving]:[MCC3_CODE]],2,0)","v":{"$error":"#N/A"}},{"$f":"VLOOKUP(N657,'Data order'!M:O,3,0)","v":{"$error":"#N/A"}},null,null,null,{"$f":"IFERROR(\n  IF(R657=\"Big&Tall\",\n      VLOOKUP(S657, 'Data order'!$AC$92:$AD$101, 2, FALSE),\n      IF(R657=\"Boordmaat\",\n          VLOOKUP(S657, 'Data order'!$AC$102:$AD$116, 2, FALSE),\n          VLOOKUP(S657, 'Data order'!$AC$2:$AD$91, 2, FALSE)\n      )\n  ),\n\"\")","v":""},null,null,null,null,"EUR",null,null,null,{"$error":"#DIV/0!"},0,0,null,"","","","","","","","","","",null,null,null,null,null,null,null,null,null,null,null,null,null,null,null,null,null,"ZWO"]
[null,null,null,null,null,{"$f":"VLOOKUP(G658,'Data order'!Z:AA,2,0)","v":{"$error":"#N/A"}},null,null,null,null,null,null,null,null,{"$f":"VLOOKUP(N658,Tabel10[[korte omschrijving]:[MCC3_CODE]],2,0)","v":{"$error":"#N/A"}},{"$f":"VLOOKUP(N658,'Data order'!M:O,3,0)","v":{"$error":"#N/A"}},null,null,null,{"$f":"IFERROR(\n  IF(R658=\"Big&Tall\",\n      VLOOKUP(S658, 'Data order'!$AC$92:$AD$101, 2, FALSE),\n      IF(R658=\"Boordmaat\",\n          VLOOKUP(S658, 'Data order'!$AC$102:$AD$116, 2, FALSE),\n          VLOOKUP(S658, 'Data order'!$AC$2:$AD$91, 2, FALSE)\n      )\n  ),\n\"\")","v":""},null,null,null,null,"EUR",null,null,null,{"$error":"#DIV/0!"},0,0,null,"","","","","","","","","","",null,null,null,null,null,null,null,null,null,null,null,null,null,null,null,null,null,"ZWO"]
[null,null,null,null,null,{"$f":"VLOOKUP(G659,'Data order'!Z:AA,2,0)","v":{"$error":"#N/A"}},null,null,null,null,null,null,null,null,{"$f":"VLOOKUP(N659,Tabel10[[korte omschrijving]:[MCC3_CODE]],2,0)","v":{"$error":"#N/A"}},{"$f":"VLOOKUP(N659,'Data order'!M:O,3,0)","v":{"$error":"#N/A"}},null,null,null,{"$f":"IFERROR(\n  IF(R659=\"Big&Tall\",\n      VLOOKUP(S659, 'Data order'!$AC$92:$AD$101, 2, FALSE),\n      IF(R659=\"Boordmaat\",\n          VLOOKUP(S659, 'Data order'!$AC$102:$AD$116, 2, FALSE),\n          VLOOKUP(S659, 'Data order'!$AC$2:$AD$91, 2, FALSE)\n      )\n  ),\n\"\")","v":""},null,null,null,null,"EUR",null,null,null,{"$error":"#DIV/0!"},0,0,null,"","","","","","","","","","",null,null,null,null,null,null,null,null,null,null,null,null,null,null,null,null,null,"ZWO"]
[null,null,null,null,null,{"$f":"VLOOKUP(G660,'Data order'!Z:AA,2,0)","v":{"$error":"#N/A"}},null,null,null,null,null,null,null,null,{"$f":"VLOOKUP(N660,Tabel10[[korte omschrijving]:[MCC3_CODE]],2,0)","v":{"$error":"#N/A"}},{"$f":"VLOOKUP(N660,'Data order'!M:O,3,0)","v":{"$error":"#N/A"}},null,null,null,{"$f":"IFERROR(\n  IF(R660=\"Big&Tall\",\n      VLOOKUP(S660, 'Data order'!$AC$92:$AD$101, 2, FALSE),\n      IF(R660=\"Boordmaat\",\n          VLOOKUP(S660, 'Data order'!$AC$102:$AD$116, 2, FALSE),\n          VLOOKUP(S660, 'Data order'!$AC$2:$AD$91, 2, FALSE)\n      )\n  ),\n\"\")","v":""},null,0,null,null,"EUR",null,null,null,{"$f":"AB660/Z660","v":{"$error":"#DIV/0!"}},{"$f":"U660*Z660","v":0},{"$f":"U660*AB660","v":0},null,"","","","","","","","","","",null,null,null,null,null,null,null,null,null,null,null,null,null,null,null,null,null,"ZWO"]
[null,null,null,null,null,{"$f":"VLOOKUP(G661,'Data order'!Z:AA,2,0)","v":{"$error":"#N/A"}},null,null,null,null,null,null,null,null,{"$f":"VLOOKUP(N661,Tabel10[[korte omschrijving]:[MCC3_CODE]],2,0)","v":{"$error":"#N/A"}},{"$f":"VLOOKUP(N661,'Data order'!M:O,3,0)","v":{"$error":"#N/A"}},null,null,null,{"$f":"IFERROR(\n  IF(R661=\"Big&Tall\",\n      VLOOKUP(S661, 'Data order'!$AC$92:$AD$101, 2, FALSE),\n      IF(R661=\"Boordmaat\",\n          VLOOKUP(S661, 'Data order'!$AC$102:$AD$116, 2, FALSE),\n          VLOOKUP(S661, 'Data order'!$AC$2:$AD$91, 2, FALSE)\n      )\n  ),\n\"\")","v":""},null,null,null,null,"EUR",null,null,null,{"$error":"#DIV/0!"},0,0,null,"","","","","","","","","","",null,null,null,null,null,null,null,null,null,null,null,null,null,null,null,null,null,"ZWO"]
[null,null,null,null,null,{"$f":"VLOOKUP(G662,'Data order'!Z:AA,2,0)","v":{"$error":"#N/A"}},null,null,null,null,null,null,null,null,{"$f":"VLOOKUP(N662,Tabel10[[korte omschrijving]:[MCC3_CODE]],2,0)","v":{"$error":"#N/A"}},{"$f":"VLOOKUP(N662,'Data order'!M:O,3,0)","v":{"$error":"#N/A"}},null,null,null,{"$f":"IFERROR(\n  IF(R662=\"Big&Tall\",\n      VLOOKUP(S662, 'Data order'!$AC$92:$AD$101, 2, FALSE),\n      IF(R662=\"Boordmaat\",\n          VLOOKUP(S662, 'Data order'!$AC$102:$AD$116, 2, FALSE),\n          VLOOKUP(S662, 'Data order'!$AC$2:$AD$91, 2, FALSE)\n      )\n  ),\n\"\")","v":""},null,null,null,null,"EUR",null,null,null,{"$error":"#DIV/0!"},0,0,null,"","","","","","","","","","",null,null,null,null,null,null,null,null,null,null,null,null,null,null,null,null,null,"ZWO"]
[null,null,null,null,null,{"$f":"VLOOKUP(G663,'Data order'!Z:AA,2,0)","v":{"$error":"#N/A"}},null,null,null,null,null,null,null,null,{"$f":"VLOOKUP(N663,Tabel10[[korte omschrijving]:[MCC3_CODE]],2,0)","v":{"$error":"#N/A"}},{"$f":"VLOOKUP(N663,'Data order'!M:O,3,0)","v":{"$error":"#N/A"}},null,null,null,{"$f":"IFERROR(\n  IF(R663=\"Big&Tall\",\n      VLOOKUP(S663, 'Data order'!$AC$92:$AD$101, 2, FALSE),\n      IF(R663=\"Boordmaat\",\n          VLOOKUP(S663, 'Data order'!$AC$102:$AD$116, 2, FALSE),\n          VLOOKUP(S663, 'Data order'!$AC$2:$AD$91, 2, FALSE)\n      )\n  ),\n\"\")","v":""},null,null,null,null,"EUR",null,null,null,{"$error":"#DIV/0!"},0,0,null,"","","","","","","","","","",null,null,null,null,null,null,null,null,null,null,null,null,null,null,null,null,null,"ZWO"]
[null,null,null,null,null,{"$f":"VLOOKUP(G664,'Data order'!Z:AA,2,0)","v":{"$error":"#N/A"}},null,null,null,null,null,null,null,null,{"$f":"VLOOKUP(N664,Tabel10[[korte omschrijving]:[MCC3_CODE]],2,0)","v":{"$error":"#N/A"}},{"$f":"VLOOKUP(N664,'Data order'!M:O,3,0)","v":{"$error":"#N/A"}},null,null,null,{"$f":"IFERROR(\n  IF(R664=\"Big&Tall\",\n      VLOOKUP(S664, 'Data order'!$AC$92:$AD$101, 2, FALSE),\n      IF(R664=\"Boordmaat\",\n          VLOOKUP(S664, 'Data order'!$AC$102:$AD$116, 2, FALSE),\n          VLOOKUP(S664, 'Data order'!$AC$2:$AD$91, 2, FALSE)\n      )\n  ),\n\"\")","v":""},null,null,null,null,"EUR",null,null,null,{"$error":"#DIV/0!"},0,0,null,"","","","","","","","","","",null,null,null,null,null,null,null,null,null,null,null,null,null,null,null,null,null,"ZWO"]
[null,null,null,null,null,{"$f":"VLOOKUP(G665,'Data order'!Z:AA,2,0)","v":{"$error":"#N/A"}},null,null,null,null,null,null,null,null,{"$f":"VLOOKUP(N665,Tabel10[[korte omschrijving]:[MCC3_CODE]],2,0)","v":{"$error":"#N/A"}},{"$f":"VLOOKUP(N665,'Data order'!M:O,3,0)","v":{"$error":"#N/A"}},null,null,null,{"$f":"IFERROR(\n  IF(R665=\"Big&Tall\",\n      VLOOKUP(S665, 'Data order'!$AC$92:$AD$101, 2, FALSE),\n      IF(R665=\"Boordmaat\",\n          VLOOKUP(S665, 'Data order'!$AC$102:$AD$116, 2, FALSE),\n          VLOOKUP(S665, 'Data order'!$AC$2:$AD$91, 2, FALSE)\n      )\n  ),\n\"\")","v":""},null,null,null,null,"EUR",null,null,null,{"$error":"#DIV/0!"},0,0,null,"","","","","","","","","","",null,null,null,null,null,null,null,null,null,null,null,null,null,null,null,null,null,"ZWO"]
[null,null,null,null,null,{"$f":"VLOOKUP(G666,'Data order'!Z:AA,2,0)","v":{"$error":"#N/A"}},null,null,null,null,null,null,null,null,{"$f":"VLOOKUP(N666,Tabel10[[korte omschrijving]:[MCC3_CODE]],2,0)","v":{"$error":"#N/A"}},{"$f":"VLOOKUP(N666,'Data order'!M:O,3,0)","v":{"$error":"#N/A"}},null,null,null,{"$f":"IFERROR(\n  IF(R666=\"Big&Tall\",\n      VLOOKUP(S666, 'Data order'!$AC$92:$AD$101, 2, FALSE),\n      IF(R666=\"Boordmaat\",\n          VLOOKUP(S666, 'Data order'!$AC$102:$AD$116, 2, FALSE),\n          VLOOKUP(S666, 'Data order'!$AC$2:$AD$91, 2, FALSE)\n      )\n  ),\n\"\")","v":""},null,0,null,null,"EUR",null,null,null,{"$f":"AB666/Z666","v":{"$error":"#DIV/0!"}},{"$f":"U666*Z666","v":0},{"$f":"U666*AB666","v":0},null,"","","","","","","","","","",null,null,null,null,null,null,null,null,null,null,null,null,null,null,null,null,null,"ZWO"]
[null,null,null,null,null,{"$f":"VLOOKUP(G667,'Data order'!Z:AA,2,0)","v":{"$error":"#N/A"}},null,null,null,null,null,null,null,null,{"$f":"VLOOKUP(N667,Tabel10[[korte omschrijving]:[MCC3_CODE]],2,0)","v":{"$error":"#N/A"}},{"$f":"VLOOKUP(N667,'Data order'!M:O,3,0)","v":{"$error":"#N/A"}},null,null,null,{"$f":"IFERROR(\n  IF(R667=\"Big&Tall\",\n      VLOOKUP(S667, 'Data order'!$AC$92:$AD$101, 2, FALSE),\n      IF(R667=\"Boordmaat\",\n          VLOOKUP(S667, 'Data order'!$AC$102:$AD$116, 2, FALSE),\n          VLOOKUP(S667, 'Data order'!$AC$2:$AD$91, 2, FALSE)\n      )\n  ),\n\"\")","v":""},null,null,null,null,"EUR",null,null,null,{"$error":"#DIV/0!"},0,0,null,"","","","","","","","","","",null,null,null,null,null,null,null,null,null,null,null,null,null,null,null,null,null,"ZWO"]
[null,null,null,null,null,{"$f":"VLOOKUP(G668,'Data order'!Z:AA,2,0)","v":{"$error":"#N/A"}},null,null,null,null,null,null,null,null,{"$f":"VLOOKUP(N668,Tabel10[[korte omschrijving]:[MCC3_CODE]],2,0)","v":{"$error":"#N/A"}},{"$f":"VLOOKUP(N668,'Data order'!M:O,3,0)","v":{"$error":"#N/A"}},null,null,null,{"$f":"IFERROR(\n  IF(R668=\"Big&Tall\",\n      VLOOKUP(S668, 'Data order'!$AC$92:$AD$101, 2, FALSE),\n      IF(R668=\"Boordmaat\",\n          VLOOKUP(S668, 'Data order'!$AC$102:$AD$116, 2, FALSE),\n          VLOOKUP(S668, 'Data order'!$AC$2:$AD$91, 2, FALSE)\n      )\n  ),\n\"\")","v":""},null,null,null,null,"EUR",null,null,null,{"$error":"#DIV/0!"},0,0,null,"","","","","","","","","","",null,null,null,null,null,null,null,null,null,null,null,null,null,null,null,null,null,"ZWO"]
[null,null,null,null,null,{"$f":"VLOOKUP(G669,'Data order'!Z:AA,2,0)","v":{"$error":"#N/A"}},null,null,null,null,null,null,null,null,{"$f":"VLOOKUP(N669,Tabel10[[korte omschrijving]:[MCC3_CODE]],2,0)","v":{"$error":"#N/A"}},{"$f":"VLOOKUP(N669,'Data order'!M:O,3,0)","v":{"$error":"#N/A"}},null,null,null,{"$f":"IFERROR(\n  IF(R669=\"Big&Tall\",\n      VLOOKUP(S669, 'Data order'!$AC$92:$AD$101, 2, FALSE),\n      IF(R669=\"Boordmaat\",\n          VLOOKUP(S669, 'Data order'!$AC$102:$AD$116, 2, FALSE),\n          VLOOKUP(S669, 'Data order'!$AC$2:$AD$91, 2, FALSE)\n      )\n  ),\n\"\")","v":""},null,null,null,null,"EUR",null,null,null,{"$error":"#DIV/0!"},0,0,null,"","","","","","","","","","",null,null,null,null,null,null,null,null,null,null,null,null,null,null,null,null,null,"ZWO"]
[null,null,null,null,null,{"$f":"VLOOKUP(G670,'Data order'!Z:AA,2,0)","v":{"$error":"#N/A"}},null,null,null,null,null,null,null,null,{"$f":"VLOOKUP(N670,Tabel10[[korte omschrijving]:[MCC3_CODE]],2,0)","v":{"$error":"#N/A"}},{"$f":"VLOOKUP(N670,'Data order'!M:O,3,0)","v":{"$error":"#N/A"}},null,null,null,{"$f":"IFERROR(\n  IF(R670=\"Big&Tall\",\n      VLOOKUP(S670, 'Data order'!$AC$92:$AD$101, 2, FALSE),\n      IF(R670=\"Boordmaat\",\n          VLOOKUP(S670, 'Data order'!$AC$102:$AD$116, 2, FALSE),\n          VLOOKUP(S670, 'Data order'!$AC$2:$AD$91, 2, FALSE)\n      )\n  ),\n\"\")","v":""},null,null,null,null,"EUR",null,null,null,{"$error":"#DIV/0!"},0,0,null,"","","","","","","","","","",null,null,null,null,null,null,null,null,null,null,null,null,null,null,null,null,null,"ZWO"]
[null,null,null,null,null,{"$f":"VLOOKUP(G671,'Data order'!Z:AA,2,0)","v":{"$error":"#N/A"}},null,null,null,null,null,null,null,null,{"$f":"VLOOKUP(N671,Tabel10[[korte omschrijving]:[MCC3_CODE]],2,0)","v":{"$error":"#N/A"}},{"$f":"VLOOKUP(N671,'Data order'!M:O,3,0)","v":{"$error":"#N/A"}},null,null,null,{"$f":"IFERROR(\n  IF(R671=\"Big&Tall\",\n      VLOOKUP(S671, 'Data order'!$AC$92:$AD$101, 2, FALSE),\n      IF(R671=\"Boordmaat\",\n          VLOOKUP(S671, 'Data order'!$AC$102:$AD$116, 2, FALSE),\n          VLOOKUP(S671, 'Data order'!$AC$2:$AD$91, 2, FALSE)\n      )\n  ),\n\"\")","v":""},null,null,null,null,"EUR",null,null,null,{"$error":"#DIV/0!"},0,0,null,"","","","","","","","","","",null,null,null,null,null,null,null,null,null,null,null,null,null,null,null,null,null,"ZWO"]
[null,null,null,null,null,{"$f":"VLOOKUP(G672,'Data order'!Z:AA,2,0)","v":{"$error":"#N/A"}},null,null,null,null,null,null,null,null,{"$f":"VLOOKUP(N672,Tabel10[[korte omschrijving]:[MCC3_CODE]],2,0)","v":{"$error":"#N/A"}},{"$f":"VLOOKUP(N672,'Data order'!M:O,3,0)","v":{"$error":"#N/A"}},null,null,null,{"$f":"IFERROR(\n  IF(R672=\"Big&Tall\",\n      VLOOKUP(S672, 'Data order'!$AC$92:$AD$101, 2, FALSE),\n      IF(R672=\"Boordmaat\",\n          VLOOKUP(S672, 'Data order'!$AC$102:$AD$116, 2, FALSE),\n          VLOOKUP(S672, 'Data order'!$AC$2:$AD$91, 2, FALSE)\n      )\n  ),\n\"\")","v":""},null,0,null,null,"EUR",null,null,null,{"$f":"AB672/Z672","v":{"$error":"#DIV/0!"}},{"$f":"U672*Z672","v":0},{"$f":"U672*AB672","v":0},null,"","","","","","","","","","",null,null,null,null,null,null,null,null,null,null,null,null,null,null,null,null,null,"ZWO"]
[null,null,null,null,null,{"$f":"VLOOKUP(G673,'Data order'!Z:AA,2,0)","v":{"$error":"#N/A"}},null,null,null,null,null,null,null,null,{"$f":"VLOOKUP(N673,Tabel10[[korte omschrijving]:[MCC3_CODE]],2,0)","v":{"$error":"#N/A"}},{"$f":"VLOOKUP(N673,'Data order'!M:O,3,0)","v":{"$error":"#N/A"}},null,null,null,{"$f":"IFERROR(\n  IF(R673=\"Big&Tall\",\n      VLOOKUP(S673, 'Data order'!$AC$92:$AD$101, 2, FALSE),\n      IF(R673=\"Boordmaat\",\n          VLOOKUP(S673, 'Data order'!$AC$102:$AD$116, 2, FALSE),\n          VLOOKUP(S673, 'Data order'!$AC$2:$AD$91, 2, FALSE)\n      )\n  ),\n\"\")","v":""},null,null,null,null,"EUR",null,null,null,{"$error":"#DIV/0!"},0,0,null,"","","","","","","","","","",null,null,null,null,null,null,null,null,null,null,null,null,null,null,null,null,null,"ZWO"]
[null,null,null,null,null,{"$f":"VLOOKUP(G674,'Data order'!Z:AA,2,0)","v":{"$error":"#N/A"}},null,null,null,null,null,null,null,null,{"$f":"VLOOKUP(N674,Tabel10[[korte omschrijving]:[MCC3_CODE]],2,0)","v":{"$error":"#N/A"}},{"$f":"VLOOKUP(N674,'Data order'!M:O,3,0)","v":{"$error":"#N/A"}},null,null,null,{"$f":"IFERROR(\n  IF(R674=\"Big&Tall\",\n      VLOOKUP(S674, 'Data order'!$AC$92:$AD$101, 2, FALSE),\n      IF(R674=\"Boordmaat\",\n          VLOOKUP(S674, 'Data order'!$AC$102:$AD$116, 2, FALSE),\n          VLOOKUP(S674, 'Data order'!$AC$2:$AD$91, 2, FALSE)\n      )\n  ),\n\"\")","v":""},null,null,null,null,"EUR",null,null,null,{"$error":"#DIV/0!"},0,0,null,"","","","","","","","","","",null,null,null,null,null,null,null,null,null,null,null,null,null,null,null,null,null,"ZWO"]
[null,null,null,null,null,{"$f":"VLOOKUP(G675,'Data order'!Z:AA,2,0)","v":{"$error":"#N/A"}},null,null,null,null,null,null,null,null,{"$f":"VLOOKUP(N675,Tabel10[[korte omschrijving]:[MCC3_CODE]],2,0)","v":{"$error":"#N/A"}},{"$f":"VLOOKUP(N675,'Data order'!M:O,3,0)","v":{"$error":"#N/A"}},null,null,null,{"$f":"IFERROR(\n  IF(R675=\"Big&Tall\",\n      VLOOKUP(S675, 'Data order'!$AC$92:$AD$101, 2, FALSE),\n      IF(R675=\"Boordmaat\",\n          VLOOKUP(S675, 'Data order'!$AC$102:$AD$116, 2, FALSE),\n          VLOOKUP(S675, 'Data order'!$AC$2:$AD$91, 2, FALSE)\n      )\n  ),\n\"\")","v":""},null,null,null,null,"EUR",null,null,null,{"$error":"#DIV/0!"},0,0,null,"","","","","","","","","","",null,null,null,null,null,null,null,null,null,null,null,null,null,null,null,null,null,"ZWO"]
[null,null,null,null,null,{"$f":"VLOOKUP(G676,'Data order'!Z:AA,2,0)","v":{"$error":"#N/A"}},null,null,null,null,null,null,null,null,{"$f":"VLOOKUP(N676,Tabel10[[korte omschrijving]:[MCC3_CODE]],2,0)","v":{"$error":"#N/A"}},{"$f":"VLOOKUP(N676,'Data order'!M:O,3,0)","v":{"$error":"#N/A"}},null,null,null,{"$f":"IFERROR(\n  IF(R676=\"Big&Tall\",\n      VLOOKUP(S676, 'Data order'!$AC$92:$AD$101, 2, FALSE),\n      IF(R676=\"Boordmaat\",\n          VLOOKUP(S676, 'Data order'!$AC$102:$AD$116, 2, FALSE),\n          VLOOKUP(S676, 'Data order'!$AC$2:$AD$91, 2, FALSE)\n      )\n  ),\n\"\")","v":""},null,null,null,null,"EUR",null,null,null,{"$error":"#DIV/0!"},0,0,null,"","","","","","","","","","",null,null,null,null,null,null,null,null,null,null,null,null,null,null,null,null,null,"ZWO"]
[null,null,null,null,null,{"$f":"VLOOKUP(G677,'Data order'!Z:AA,2,0)","v":{"$error":"#N/A"}},null,null,null,null,null,null,null,null,{"$f":"VLOOKUP(N677,Tabel10[[korte omschrijving]:[MCC3_CODE]],2,0)","v":{"$error":"#N/A"}},{"$f":"VLOOKUP(N677,'Data order'!M:O,3,0)","v":{"$error":"#N/A"}},null,null,null,{"$f":"IFERROR(\n  IF(R677=\"Big&Tall\",\n      VLOOKUP(S677, 'Data order'!$AC$92:$AD$101, 2, FALSE),\n      IF(R677=\"Boordmaat\",\n          VLOOKUP(S677, 'Data order'!$AC$102:$AD$116, 2, FALSE),\n          VLOOKUP(S677, 'Data order'!$AC$2:$AD$91, 2, FALSE)\n      )\n  ),\n\"\")","v":""},null,null,null,null,"EUR",null,null,null,{"$error":"#DIV/0!"},0,0,null,"","","","","","","","","","",null,null,null,null,null,null,null,null,null,null,null,null,null,null,null,null,null,"ZWO"]
[null,null,null,null,null,{"$f":"VLOOKUP(G678,'Data order'!Z:AA,2,0)","v":{"$error":"#N/A"}},null,null,null,null,null,null,null,null,{"$f":"VLOOKUP(N678,Tabel10[[korte omschrijving]:[MCC3_CODE]],2,0)","v":{"$error":"#N/A"}},{"$f":"VLOOKUP(N678,'Data order'!M:O,3,0)","v":{"$error":"#N/A"}},null,null,null,{"$f":"IFERROR(\n  IF(R678=\"Big&Tall\",\n      VLOOKUP(S678, 'Data order'!$AC$92:$AD$101, 2, FALSE),\n      IF(R678=\"Boordmaat\",\n          VLOOKUP(S678, 'Data order'!$AC$102:$AD$116, 2, FALSE),\n          VLOOKUP(S678, 'Data order'!$AC$2:$AD$91, 2, FALSE)\n      )\n  ),\n\"\")","v":""},null,0,null,null,"EUR",null,null,null,{"$f":"AB678/Z678","v":{"$error":"#DIV/0!"}},{"$f":"U678*Z678","v":0},{"$f":"U678*AB678","v":0},null,"","","","","","","","","","",null,null,null,null,null,null,null,null,null,null,null,null,null,null,null,null,null,"ZWO"]
[null,null,null,null,null,{"$f":"VLOOKUP(G679,'Data order'!Z:AA,2,0)","v":{"$error":"#N/A"}},null,null,null,null,null,null,null,null,{"$f":"VLOOKUP(N679,Tabel10[[korte omschrijving]:[MCC3_CODE]],2,0)","v":{"$error":"#N/A"}},{"$f":"VLOOKUP(N679,'Data order'!M:O,3,0)","v":{"$error":"#N/A"}},null,null,null,{"$f":"IFERROR(\n  IF(R679=\"Big&Tall\",\n      VLOOKUP(S679, 'Data order'!$AC$92:$AD$101, 2, FALSE),\n      IF(R679=\"Boordmaat\",\n          VLOOKUP(S679, 'Data order'!$AC$102:$AD$116, 2, FALSE),\n          VLOOKUP(S679, 'Data order'!$AC$2:$AD$91, 2, FALSE)\n      )\n  ),\n\"\")","v":""},null,null,null,null,"EUR",null,null,null,{"$error":"#DIV/0!"},0,0,null,"","","","","","","","","","",null,null,null,null,null,null,null,null,null,null,null,null,null,null,null,null,null,"ZWO"]
[null,null,null,null,null,{"$f":"VLOOKUP(G680,'Data order'!Z:AA,2,0)","v":{"$error":"#N/A"}},null,null,null,null,null,null,null,null,{"$f":"VLOOKUP(N680,Tabel10[[korte omschrijving]:[MCC3_CODE]],2,0)","v":{"$error":"#N/A"}},{"$f":"VLOOKUP(N680,'Data order'!M:O,3,0)","v":{"$error":"#N/A"}},null,null,null,{"$f":"IFERROR(\n  IF(R680=\"Big&Tall\",\n      VLOOKUP(S680, 'Data order'!$AC$92:$AD$101, 2, FALSE),\n      IF(R680=\"Boordmaat\",\n          VLOOKUP(S680, 'Data order'!$AC$102:$AD$116, 2, FALSE),\n          VLOOKUP(S680, 'Data order'!$AC$2:$AD$91, 2, FALSE)\n      )\n  ),\n\"\")","v":""},null,null,null,null,"EUR",null,null,null,{"$error":"#DIV/0!"},0,0,null,"","","","","","","","","","",null,null,null,null,null,null,null,null,null,null,null,null,null,null,null,null,null,"ZWO"]
[null,null,null,null,null,{"$f":"VLOOKUP(G681,'Data order'!Z:AA,2,0)","v":{"$error":"#N/A"}},null,null,null,null,null,null,null,null,{"$f":"VLOOKUP(N681,Tabel10[[korte omschrijving]:[MCC3_CODE]],2,0)","v":{"$error":"#N/A"}},{"$f":"VLOOKUP(N681,'Data order'!M:O,3,0)","v":{"$error":"#N/A"}},null,null,null,{"$f":"IFERROR(\n  IF(R681=\"Big&Tall\",\n      VLOOKUP(S681, 'Data order'!$AC$92:$AD$101, 2, FALSE),\n      IF(R681=\"Boordmaat\",\n          VLOOKUP(S681, 'Data order'!$AC$102:$AD$116, 2, FALSE),\n          VLOOKUP(S681, 'Data order'!$AC$2:$AD$91, 2, FALSE)\n      )\n  ),\n\"\")","v":""},null,null,null,null,"EUR",null,null,null,{"$error":"#DIV/0!"},0,0,null,"","","","","","","","","","",null,null,null,null,null,null,null,null,null,null,null,null,null,null,null,null,null,"ZWO"]
[null,null,null,null,null,{"$f":"VLOOKUP(G682,'Data order'!Z:AA,2,0)","v":{"$error":"#N/A"}},null,null,null,null,null,null,null,null,{"$f":"VLOOKUP(N682,Tabel10[[korte omschrijving]:[MCC3_CODE]],2,0)","v":{"$error":"#N/A"}},{"$f":"VLOOKUP(N682,'Data order'!M:O,3,0)","v":{"$error":"#N/A"}},null,null,null,{"$f":"IFERROR(\n  IF(R682=\"Big&Tall\",\n      VLOOKUP(S682, 'Data order'!$AC$92:$AD$101, 2, FALSE),\n      IF(R682=\"Boordmaat\",\n          VLOOKUP(S682, 'Data order'!$AC$102:$AD$116, 2, FALSE),\n          VLOOKUP(S682, 'Data order'!$AC$2:$AD$91, 2, FALSE)\n      )\n  ),\n\"\")","v":""},null,null,null,null,"EUR",null,null,null,{"$error":"#DIV/0!"},0,0,null,"","","","","","","","","","",null,null,null,null,null,null,null,null,null,null,null,null,null,null,null,null,null,"ZWO"]
[null,null,null,null,null,{"$f":"VLOOKUP(G683,'Data order'!Z:AA,2,0)","v":{"$error":"#N/A"}},null,null,null,null,null,null,null,null,{"$f":"VLOOKUP(N683,Tabel10[[korte omschrijving]:[MCC3_CODE]],2,0)","v":{"$error":"#N/A"}},{"$f":"VLOOKUP(N683,'Data order'!M:O,3,0)","v":{"$error":"#N/A"}},null,null,null,{"$f":"IFERROR(\n  IF(R683=\"Big&Tall\",\n      VLOOKUP(S683, 'Data order'!$AC$92:$AD$101, 2, FALSE),\n      IF(R683=\"Boordmaat\",\n          VLOOKUP(S683, 'Data order'!$AC$102:$AD$116, 2, FALSE),\n          VLOOKUP(S683, 'Data order'!$AC$2:$AD$91, 2, FALSE)\n      )\n  ),\n\"\")","v":""},null,null,null,null,"EUR",null,null,null,{"$error":"#DIV/0!"},0,0,null,"","","","","","","","","","",null,null,null,null,null,null,null,null,null,null,null,null,null,null,null,null,null,"ZWO"]
[null,null,null,null,null,{"$f":"VLOOKUP(G684,'Data order'!Z:AA,2,0)","v":{"$error":"#N/A"}},null,null,null,null,null,null,null,null,{"$f":"VLOOKUP(N684,Tabel10[[korte omschrijving]:[MCC3_CODE]],2,0)","v":{"$error":"#N/A"}},{"$f":"VLOOKUP(N684,'Data order'!M:O,3,0)","v":{"$error":"#N/A"}},null,null,null,{"$f":"IFERROR(\n  IF(R684=\"Big&Tall\",\n      VLOOKUP(S684, 'Data order'!$AC$92:$AD$101, 2, FALSE),\n      IF(R684=\"Boordmaat\",\n          VLOOKUP(S684, 'Data order'!$AC$102:$AD$116, 2, FALSE),\n          VLOOKUP(S684, 'Data order'!$AC$2:$AD$91, 2, FALSE)\n      )\n  ),\n\"\")","v":""},null,0,null,null,"EUR",null,null,null,{"$f":"AB684/Z684","v":{"$error":"#DIV/0!"}},{"$f":"U684*Z684","v":0},{"$f":"U684*AB684","v":0},null,"","","","","","","","","","",null,null,null,null,null,null,null,null,null,null,null,null,null,null,null,null,null,"ZWO"]
[null,null,null,null,null,{"$f":"VLOOKUP(G685,'Data order'!Z:AA,2,0)","v":{"$error":"#N/A"}},null,null,null,null,null,null,null,null,{"$f":"VLOOKUP(N685,Tabel10[[korte omschrijving]:[MCC3_CODE]],2,0)","v":{"$error":"#N/A"}},{"$f":"VLOOKUP(N685,'Data order'!M:O,3,0)","v":{"$error":"#N/A"}},null,null,null,{"$f":"IFERROR(\n  IF(R685=\"Big&Tall\",\n      VLOOKUP(S685, 'Data order'!$AC$92:$AD$101, 2, FALSE),\n      IF(R685=\"Boordmaat\",\n          VLOOKUP(S685, 'Data order'!$AC$102:$AD$116, 2, FALSE),\n          VLOOKUP(S685, 'Data order'!$AC$2:$AD$91, 2, FALSE)\n      )\n  ),\n\"\")","v":""},null,null,null,null,"EUR",null,null,null,{"$error":"#DIV/0!"},0,0,null,"","","","","","","","","","",null,null,null,null,null,null,null,null,null,null,null,null,null,null,null,null,null,"ZWO"]
[null,null,null,null,null,{"$f":"VLOOKUP(G686,'Data order'!Z:AA,2,0)","v":{"$error":"#N/A"}},null,null,null,null,null,null,null,null,{"$f":"VLOOKUP(N686,Tabel10[[korte omschrijving]:[MCC3_CODE]],2,0)","v":{"$error":"#N/A"}},{"$f":"VLOOKUP(N686,'Data order'!M:O,3,0)","v":{"$error":"#N/A"}},null,null,null,{"$f":"IFERROR(\n  IF(R686=\"Big&Tall\",\n      VLOOKUP(S686, 'Data order'!$AC$92:$AD$101, 2, FALSE),\n      IF(R686=\"Boordmaat\",\n          VLOOKUP(S686, 'Data order'!$AC$102:$AD$116, 2, FALSE),\n          VLOOKUP(S686, 'Data order'!$AC$2:$AD$91, 2, FALSE)\n      )\n  ),\n\"\")","v":""},null,null,null,null,"EUR",null,null,null,{"$error":"#DIV/0!"},0,0,null,"","","","","","","","","","",null,null,null,null,null,null,null,null,null,null,null,null,null,null,null,null,null,"ZWO"]
[null,null,null,null,null,{"$f":"VLOOKUP(G687,'Data order'!Z:AA,2,0)","v":{"$error":"#N/A"}},null,null,null,null,null,null,null,null,{"$f":"VLOOKUP(N687,Tabel10[[korte omschrijving]:[MCC3_CODE]],2,0)","v":{"$error":"#N/A"}},{"$f":"VLOOKUP(N687,'Data order'!M:O,3,0)","v":{"$error":"#N/A"}},null,null,null,{"$f":"IFERROR(\n  IF(R687=\"Big&Tall\",\n      VLOOKUP(S687, 'Data order'!$AC$92:$AD$101, 2, FALSE),\n      IF(R687=\"Boordmaat\",\n          VLOOKUP(S687, 'Data order'!$AC$102:$AD$116, 2, FALSE),\n          VLOOKUP(S687, 'Data order'!$AC$2:$AD$91, 2, FALSE)\n      )\n  ),\n\"\")","v":""},null,null,null,null,"EUR",null,null,null,{"$error":"#DIV/0!"},0,0,null,"","","","","","","","","","",null,null,null,null,null,null,null,null,null,null,null,null,null,null,null,null,null,"ZWO"]
[null,null,null,null,null,{"$f":"VLOOKUP(G688,'Data order'!Z:AA,2,0)","v":{"$error":"#N/A"}},null,null,null,null,null,null,null,null,{"$f":"VLOOKUP(N688,Tabel10[[korte omschrijving]:[MCC3_CODE]],2,0)","v":{"$error":"#N/A"}},{"$f":"VLOOKUP(N688,'Data order'!M:O,3,0)","v":{"$error":"#N/A"}},null,null,null,{"$f":"IFERROR(\n  IF(R688=\"Big&Tall\",\n      VLOOKUP(S688, 'Data order'!$AC$92:$AD$101, 2, FALSE),\n      IF(R688=\"Boordmaat\",\n          VLOOKUP(S688, 'Data order'!$AC$102:$AD$116, 2, FALSE),\n          VLOOKUP(S688, 'Data order'!$AC$2:$AD$91, 2, FALSE)\n      )\n  ),\n\"\")","v":""},null,null,null,null,"EUR",null,null,null,{"$error":"#DIV/0!"},0,0,null,"","","","","","","","","","",null,null,null,null,null,null,null,null,null,null,null,null,null,null,null,null,null,"ZWO"]
[null,null,null,null,null,{"$f":"VLOOKUP(G689,'Data order'!Z:AA,2,0)","v":{"$error":"#N/A"}},null,null,null,null,null,null,null,null,{"$f":"VLOOKUP(N689,Tabel10[[korte omschrijving]:[MCC3_CODE]],2,0)","v":{"$error":"#N/A"}},{"$f":"VLOOKUP(N689,'Data order'!M:O,3,0)","v":{"$error":"#N/A"}},null,null,null,{"$f":"IFERROR(\n  IF(R689=\"Big&Tall\",\n      VLOOKUP(S689, 'Data order'!$AC$92:$AD$101, 2, FALSE),\n      IF(R689=\"Boordmaat\",\n          VLOOKUP(S689, 'Data order'!$AC$102:$AD$116, 2, FALSE),\n          VLOOKUP(S689, 'Data order'!$AC$2:$AD$91, 2, FALSE)\n      )\n  ),\n\"\")","v":""},null,null,null,null,"EUR",null,null,null,{"$error":"#DIV/0!"},0,0,null,"","","","","","","","","","",null,null,null,null,null,null,null,null,null,null,null,null,null,null,null,null,null,"ZWO"]
[null,null,null,null,null,{"$f":"VLOOKUP(G690,'Data order'!Z:AA,2,0)","v":{"$error":"#N/A"}},null,null,null,null,null,null,null,null,{"$f":"VLOOKUP(N690,Tabel10[[korte omschrijving]:[MCC3_CODE]],2,0)","v":{"$error":"#N/A"}},{"$f":"VLOOKUP(N690,'Data order'!M:O,3,0)","v":{"$error":"#N/A"}},null,null,null,{"$f":"IFERROR(\n  IF(R690=\"Big&Tall\",\n      VLOOKUP(S690, 'Data order'!$AC$92:$AD$101, 2, FALSE),\n      IF(R690=\"Boordmaat\",\n          VLOOKUP(S690, 'Data order'!$AC$102:$AD$116, 2, FALSE),\n          VLOOKUP(S690, 'Data order'!$AC$2:$AD$91, 2, FALSE)\n      )\n  ),\n\"\")","v":""},null,0,null,null,"EUR",null,null,null,{"$f":"AB690/Z690","v":{"$error":"#DIV/0!"}},{"$f":"U690*Z690","v":0},{"$f":"U690*AB690","v":0},null,"","","","","","","","","","",null,null,null,null,null,null,null,null,null,null,null,null,null,null,null,null,null,"ZWO"]
[null,null,null,null,null,{"$f":"VLOOKUP(G691,'Data order'!Z:AA,2,0)","v":{"$error":"#N/A"}},null,null,null,null,null,null,null,null,{"$f":"VLOOKUP(N691,Tabel10[[korte omschrijving]:[MCC3_CODE]],2,0)","v":{"$error":"#N/A"}},{"$f":"VLOOKUP(N691,'Data order'!M:O,3,0)","v":{"$error":"#N/A"}},null,null,null,{"$f":"IFERROR(\n  IF(R691=\"Big&Tall\",\n      VLOOKUP(S691, 'Data order'!$AC$92:$AD$101, 2, FALSE),\n      IF(R691=\"Boordmaat\",\n          VLOOKUP(S691, 'Data order'!$AC$102:$AD$116, 2, FALSE),\n          VLOOKUP(S691, 'Data order'!$AC$2:$AD$91, 2, FALSE)\n      )\n  ),\n\"\")","v":""},null,null,null,null,"EUR",null,null,null,{"$error":"#DIV/0!"},0,0,null,"","","","","","","","","","",null,null,null,null,null,null,null,null,null,null,null,null,null,null,null,null,null,"ZWO"]
[null,null,null,null,null,{"$f":"VLOOKUP(G692,'Data order'!Z:AA,2,0)","v":{"$error":"#N/A"}},null,null,null,null,null,null,null,null,{"$f":"VLOOKUP(N692,Tabel10[[korte omschrijving]:[MCC3_CODE]],2,0)","v":{"$error":"#N/A"}},{"$f":"VLOOKUP(N692,'Data order'!M:O,3,0)","v":{"$error":"#N/A"}},null,null,null,{"$f":"IFERROR(\n  IF(R692=\"Big&Tall\",\n      VLOOKUP(S692, 'Data order'!$AC$92:$AD$101, 2, FALSE),\n      IF(R692=\"Boordmaat\",\n          VLOOKUP(S692, 'Data order'!$AC$102:$AD$116, 2, FALSE),\n          VLOOKUP(S692, 'Data order'!$AC$2:$AD$91, 2, FALSE)\n      )\n  ),\n\"\")","v":""},null,null,null,null,"EUR",null,null,null,{"$error":"#DIV/0!"},0,0,null,"","","","","","","","","","",null,null,null,null,null,null,null,null,null,null,null,null,null,null,null,null,null,"ZWO"]
[null,null,null,null,null,{"$f":"VLOOKUP(G693,'Data order'!Z:AA,2,0)","v":{"$error":"#N/A"}},null,null,null,null,null,null,null,null,{"$f":"VLOOKUP(N693,Tabel10[[korte omschrijving]:[MCC3_CODE]],2,0)","v":{"$error":"#N/A"}},{"$f":"VLOOKUP(N693,'Data order'!M:O,3,0)","v":{"$error":"#N/A"}},null,null,null,{"$f":"IFERROR(\n  IF(R693=\"Big&Tall\",\n      VLOOKUP(S693, 'Data order'!$AC$92:$AD$101, 2, FALSE),\n      IF(R693=\"Boordmaat\",\n          VLOOKUP(S693, 'Data order'!$AC$102:$AD$116, 2, FALSE),\n          VLOOKUP(S693, 'Data order'!$AC$2:$AD$91, 2, FALSE)\n      )\n  ),\n\"\")","v":""},null,null,null,null,"EUR",null,null,null,{"$error":"#DIV/0!"},0,0,null,"","","","","","","","","","",null,null,null,null,null,null,null,null,null,null,null,null,null,null,null,null,null,"ZWO"]
[null,null,null,null,null,{"$f":"VLOOKUP(G694,'Data order'!Z:AA,2,0)","v":{"$error":"#N/A"}},null,null,null,null,null,null,null,null,{"$f":"VLOOKUP(N694,Tabel10[[korte omschrijving]:[MCC3_CODE]],2,0)","v":{"$error":"#N/A"}},{"$f":"VLOOKUP(N694,'Data order'!M:O,3,0)","v":{"$error":"#N/A"}},null,null,null,{"$f":"IFERROR(\n  IF(R694=\"Big&Tall\",\n      VLOOKUP(S694, 'Data order'!$AC$92:$AD$101, 2, FALSE),\n      IF(R694=\"Boordmaat\",\n          VLOOKUP(S694, 'Data order'!$AC$102:$AD$116, 2, FALSE),\n          VLOOKUP(S694, 'Data order'!$AC$2:$AD$91, 2, FALSE)\n      )\n  ),\n\"\")","v":""},null,null,null,null,"EUR",null,null,null,{"$error":"#DIV/0!"},0,0,null,"","","","","","","","","","",null,null,null,null,null,null,null,null,null,null,null,null,null,null,null,null,null,"ZWO"]
[null,null,null,null,null,{"$f":"VLOOKUP(G695,'Data order'!Z:AA,2,0)","v":{"$error":"#N/A"}},null,null,null,null,null,null,null,null,{"$f":"VLOOKUP(N695,Tabel10[[korte omschrijving]:[MCC3_CODE]],2,0)","v":{"$error":"#N/A"}},{"$f":"VLOOKUP(N695,'Data order'!M:O,3,0)","v":{"$error":"#N/A"}},null,null,null,{"$f":"IFERROR(\n  IF(R695=\"Big&Tall\",\n      VLOOKUP(S695, 'Data order'!$AC$92:$AD$101, 2, FALSE),\n      IF(R695=\"Boordmaat\",\n          VLOOKUP(S695, 'Data order'!$AC$102:$AD$116, 2, FALSE),\n          VLOOKUP(S695, 'Data order'!$AC$2:$AD$91, 2, FALSE)\n      )\n  ),\n\"\")","v":""},null,null,null,null,"EUR",null,null,null,{"$error":"#DIV/0!"},0,0,null,"","","","","","","","","","",null,null,null,null,null,null,null,null,null,null,null,null,null,null,null,null,null,"ZWO"]
[null,null,null,null,null,{"$f":"VLOOKUP(G696,'Data order'!Z:AA,2,0)","v":{"$error":"#N/A"}},null,null,null,null,null,null,null,null,{"$f":"VLOOKUP(N696,Tabel10[[korte omschrijving]:[MCC3_CODE]],2,0)","v":{"$error":"#N/A"}},{"$f":"VLOOKUP(N696,'Data order'!M:O,3,0)","v":{"$error":"#N/A"}},null,null,null,{"$f":"IFERROR(\n  IF(R696=\"Big&Tall\",\n      VLOOKUP(S696, 'Data order'!$AC$92:$AD$101, 2, FALSE),\n      IF(R696=\"Boordmaat\",\n          VLOOKUP(S696, 'Data order'!$AC$102:$AD$116, 2, FALSE),\n          VLOOKUP(S696, 'Data order'!$AC$2:$AD$91, 2, FALSE)\n      )\n  ),\n\"\")","v":""},null,0,null,null,"EUR",null,null,null,{"$f":"AB696/Z696","v":{"$error":"#DIV/0!"}},{"$f":"U696*Z696","v":0},{"$f":"U696*AB696","v":0},null,{"$f":"IF(AF696 <> \"\",\n    IF(ISNUMBER(VALUE(LEFT(AF696, FIND(\"%\", AF696)-1))),\n        VALUE(LEFT(AF696, FIND(\"%\", AF696)-1)),\n        \"Invalid format\"),\n    \"\")","v":""},{"$f":"IF(AF696 <> \"\",\n    IF(ISNUMBER(VALUE(LEFT(AF696, FIND(\"%\", AF696)-1))) * ISNUMBER(FIND(\"%\", AF696 & \"wol\")) > 0,\n        TRIM(MID(AF696, FIND(\"%\", AF696)+1, FIND(\"/\", AF696 & \"/\")-FIND(\"%\", AF696)-1)),\n        \"Invalid format\"),\n    \"\")","v":""},{"$f":"IF(AF696 <> \"\",\n    IF(ISNUMBER(VALUE(MID(AF696, FIND(\"/\", AF696) + 1, FIND(\"%\", AF696, FIND(\"/\", AF696)) - FIND(\"/\", AF696) - 1))),\n        VALUE(MID(AF696, FIND(\"/\", AF696) + 1, FIND(\"%\", AF696, FIND(\"/\", AF696)) - FIND(\"/\", AF696) - 1)),\n        \"\"),\n    \"\")","v":""},{"$f":"IF(AF696 <> \"\",\n    IFERROR(TRIM(MID(AF696, FIND(\"%\", AF696, FIND(\"/\", AF696)+1)+2,\n        IFERROR(FIND(\"/\", AF696 & \"/\", FIND(\"/\", AF696)+1)-FIND(\"%\", AF696, FIND(\"/\", AF696)+1)-2, LEN(AF696)-FIND(\"%\", AF696, FIND(\"/\", AF696)+1)-1))),\n        \"\"),\n    \"\")","v":""},{"$f":"IF(AF696 <> \"\",\n    IF(ISNUMBER(VALUE(MID(AF696, FIND(\"/\", AF696, FIND(\"/\", AF696)+1) + 1, FIND(\"%\", AF696, FIND(\"/\", AF696, FIND(\"/\", AF696)+1)) - FIND(\"/\", AF696, FIND(\"/\", AF696)+1) - 1))),\n        VALUE(MID(AF696, FIND(\"/\", AF696, FIND(\"/\", AF696)+1) + 1, FIND(\"%\", AF696, FIND(\"/\", AF696, FIND(\"/\", AF696)+1)) - FIND(\"/\", AF696, FIND(\"/\", AF696)+1) - 1)),\n        \"\"),\n    \"\")","v":""},{"$f":"IF(AF696 <> \"\",\n    IFERROR(\n        TRIM(MID(AF696,\n            FIND(\"%\", AF696, FIND(\"%\", AF696, FIND(\"%\", AF696)+1)+1)+1,\n            FIND(\"/\", AF696 & \"/\", FIND(\"%\", AF696, FIND(\"%\", AF696, FIND(\"%\", AF696)+1)+1))-FIND(\"%\", AF696, FIND(\"%\", AF696, FIND(\"%\", AF696)+1)+1)-1)\n        ),\n        \"\"\n    ),\n    \"\"\n)","v":""},{"$f":"IF(AF696 <> \"\",\n    IF(ISNUMBER(VALUE(MID(AF696, FIND(\"/\", AF696, FIND(\"/\", AF696, FIND(\"/\", AF696)+1)+1) + 1, FIND(\"%\", AF696, FIND(\"/\", AF696, FIND(\"/\", AF696, FIND(\"/\", AF696)+1)+1)) - FIND(\"/\", AF696, FIND(\"/\", AF696, FIND(\"/\", AF696)+1)+1) - 1))),\n        VALUE(MID(AF696, FIND(\"/\", AF696, FIND(\"/\", AF696, FIND(\"/\", AF696)+1)+1) + 1, FIND(\"%\", AF696, FIND(\"/\", AF696, FIND(\"/\", AF696, FIND(\"/\", AF696)+1)+1)) - FIND(\"/\", AF696, FIND(\"/\", AF696, FIND(\"/\", AF696)+1)+1) - 1)),\n        \"\"),\n    \"\")","v":""},{"$f":"IF(AF696 <> \"\",\n    IFERROR(TRIM(MID(AF696, FIND(\"%\", AF696, FIND(\"/\", AF696, FIND(\"/\", AF696, FIND(\"/\", AF696)+1)+1)+1)+2,\n        IFERROR(FIND(\"/\", AF696, FIND(\"/\", AF696, FIND(\"/\", AF696, FIND(\"/\", AF696)+1)+1)+1)-FIND(\"%\", AF696, FIND(\"/\", AF696, FIND(\"/\", AF696, FIND(\"/\", AF696)+1)+1)+1)-2, LEN(AF696)-FIND(\"%\", AF696, FIND(\"/\", AF696, FIND(\"/\", AF696, FIND(\"/\", AF696)+1)+1)+1)-1))),\n        \"\"),\n    \"\")","v":""},{"$f":"IF(AF696 <> \"\",\n    IF(ISNUMBER(VALUE(MID(AF696, FIND(\"/\", AF696, FIND(\"/\", AF696, FIND(\"/\", AF696, FIND(\"/\", AF696)+1)+1)+1) + 1, FIND(\"%\", AF696, FIND(\"/\", AF696, FIND(\"/\", AF696, FIND(\"/\", AF696, FIND(\"/\", AF696)+1)+1)+1)) - FIND(\"/\", AF696, FIND(\"/\", AF696, FIND(\"/\", AF696, FIND(\"/\", AF696)+1)+1)+1) - 1))),\n        VALUE(MID(AF696, FIND(\"/\", AF696, FIND(\"/\", AF696, FIND(\"/\", AF696, FIND(\"/\", AF696)+1)+1)+1) + 1, FIND(\"%\", AF696, FIND(\"/\", AF696, FIND(\"/\", AF696, FIND(\"/\", AF696, FIND(\"/\", AF696)+1)+1)+1)) - FIND(\"/\", AF696, FIND(\"/\", AF696, FIND(\"/\", AF696, FIND(\"/\", AF696)+1)+1)+1) - 1)),\n        \"\"),\n    \"\")","v":""},{"$f":"IF(AF696 = \"\", \"\",\n    IFERROR(TRIM(\n        MID(\n            AF696,\n            FIND(\"%\", AF696, FIND(\"/\", AF696, FIND(\"/\", AF696, FIND(\"/\", AF696, FIND(\"/\", AF696)+1)+1)+1)+1) + 1,\n            FIND(\"/\", AF696 & \"/\", FIND(\"%\", AF696, FIND(\"/\", AF696, FIND(\"/\", AF696, FIND(\"/\", AF696, FIND(\"/\", AF696)+1)+1)+1)+1)) -\n            FIND(\"%\", AF696, FIND(\"/\", AF696, FIND(\"/\", AF696, FIND(\"/\", AF696, FIND(\"/\", AF696)+1)+1)+1)+1) - 1\n        )\n    ),\n    \"\")\n)","v":""},null,null,null,null,null,null,null,null,null,null,null,null,null,null,null,null,null,"ZWO"]
[null,null,null,null,null,{"$f":"VLOOKUP(G697,'Data order'!Z:AA,2,0)","v":{"$error":"#N/A"}},null,null,null,null,null,null,null,null,{"$f":"VLOOKUP(N697,Tabel10[[korte omschrijving]:[MCC3_CODE]],2,0)","v":{"$error":"#N/A"}},{"$f":"VLOOKUP(N697,'Data order'!M:O,3,0)","v":{"$error":"#N/A"}},null,null,null,{"$f":"IFERROR(\n  IF(R697=\"Big&Tall\",\n      VLOOKUP(S697, 'Data order'!$AC$92:$AD$101, 2, FALSE),\n      IF(R697=\"Boordmaat\",\n          VLOOKUP(S697, 'Data order'!$AC$102:$AD$116, 2, FALSE),\n          VLOOKUP(S697, 'Data order'!$AC$2:$AD$91, 2, FALSE)\n      )\n  ),\n\"\")","v":""},null,null,null,null,"EUR",null,null,null,{"$error":"#DIV/0!"},0,0,null,"","","","","","","","","","",null,null,null,null,null,null,null,null,null,null,null,null,null,null,null,null,null,"ZWO"]
[null,null,null,null,null,{"$f":"VLOOKUP(G698,'Data order'!Z:AA,2,0)","v":{"$error":"#N/A"}},null,null,null,null,null,null,null,null,{"$f":"VLOOKUP(N698,Tabel10[[korte omschrijving]:[MCC3_CODE]],2,0)","v":{"$error":"#N/A"}},{"$f":"VLOOKUP(N698,'Data order'!M:O,3,0)","v":{"$error":"#N/A"}},null,null,null,{"$f":"IFERROR(\n  IF(R698=\"Big&Tall\",\n      VLOOKUP(S698, 'Data order'!$AC$92:$AD$101, 2, FALSE),\n      IF(R698=\"Boordmaat\",\n          VLOOKUP(S698, 'Data order'!$AC$102:$AD$116, 2, FALSE),\n          VLOOKUP(S698, 'Data order'!$AC$2:$AD$91, 2, FALSE)\n      )\n  ),\n\"\")","v":""},null,null,null,null,"EUR",null,null,null,{"$error":"#DIV/0!"},0,0,null,"","","","","","","","","","",null,null,null,null,null,null,null,null,null,null,null,null,null,null,null,null,null,"ZWO"]
[null,null,null,null,null,{"$f":"VLOOKUP(G699,'Data order'!Z:AA,2,0)","v":{"$error":"#N/A"}},null,null,null,null,null,null,null,null,{"$f":"VLOOKUP(N699,Tabel10[[korte omschrijving]:[MCC3_CODE]],2,0)","v":{"$error":"#N/A"}},{"$f":"VLOOKUP(N699,'Data order'!M:O,3,0)","v":{"$error":"#N/A"}},null,null,null,{"$f":"IFERROR(\n  IF(R699=\"Big&Tall\",\n      VLOOKUP(S699, 'Data order'!$AC$92:$AD$101, 2, FALSE),\n      IF(R699=\"Boordmaat\",\n          VLOOKUP(S699, 'Data order'!$AC$102:$AD$116, 2, FALSE),\n          VLOOKUP(S699, 'Data order'!$AC$2:$AD$91, 2, FALSE)\n      )\n  ),\n\"\")","v":""},null,null,null,null,"EUR",null,null,null,{"$error":"#DIV/0!"},0,0,null,"","","","","","","","","","",null,null,null,null,null,null,null,null,null,null,null,null,null,null,null,null,null,"ZWO"]
[null,null,null,null,null,{"$f":"VLOOKUP(G700,'Data order'!Z:AA,2,0)","v":{"$error":"#N/A"}},null,null,null,null,null,null,null,null,{"$f":"VLOOKUP(N700,Tabel10[[korte omschrijving]:[MCC3_CODE]],2,0)","v":{"$error":"#N/A"}},{"$f":"VLOOKUP(N700,'Data order'!M:O,3,0)","v":{"$error":"#N/A"}},null,null,null,{"$f":"IFERROR(\n  IF(R700=\"Big&Tall\",\n      VLOOKUP(S700, 'Data order'!$AC$92:$AD$101, 2, FALSE),\n      IF(R700=\"Boordmaat\",\n          VLOOKUP(S700, 'Data order'!$AC$102:$AD$116, 2, FALSE),\n          VLOOKUP(S700, 'Data order'!$AC$2:$AD$91, 2, FALSE)\n      )\n  ),\n\"\")","v":""},null,null,null,null,"EUR",null,null,null,{"$error":"#DIV/0!"},0,0,null,"","","","","","","","","","",null,null,null,null,null,null,null,null,null,null,null,null,null,null,null,null,null,"ZWO"]
[null,null,null,null,null,{"$f":"VLOOKUP(G701,'Data order'!Z:AA,2,0)","v":{"$error":"#N/A"}},null,null,null,null,null,null,null,null,{"$f":"VLOOKUP(N701,Tabel10[[korte omschrijving]:[MCC3_CODE]],2,0)","v":{"$error":"#N/A"}},{"$f":"VLOOKUP(N701,'Data order'!M:O,3,0)","v":{"$error":"#N/A"}},null,null,null,{"$f":"IFERROR(\n  IF(R701=\"Big&Tall\",\n      VLOOKUP(S701, 'Data order'!$AC$92:$AD$101, 2, FALSE),\n      IF(R701=\"Boordmaat\",\n          VLOOKUP(S701, 'Data order'!$AC$102:$AD$116, 2, FALSE),\n          VLOOKUP(S701, 'Data order'!$AC$2:$AD$91, 2, FALSE)\n      )\n  ),\n\"\")","v":""},null,null,null,null,"EUR",null,null,null,{"$error":"#DIV/0!"},0,0,null,"","","","","","","","","","",null,null,null,null,null,null,null,null,null,null,null,null,null,null,null,null,null,"ZWO"]
[null,null,null,null,null,{"$f":"VLOOKUP(G702,'Data order'!Z:AA,2,0)","v":{"$error":"#N/A"}},null,null,null,null,null,null,null,null,{"$f":"VLOOKUP(N702,Tabel10[[korte omschrijving]:[MCC3_CODE]],2,0)","v":{"$error":"#N/A"}},{"$f":"VLOOKUP(N702,'Data order'!M:O,3,0)","v":{"$error":"#N/A"}},null,null,null,{"$f":"IFERROR(\n  IF(R702=\"Big&Tall\",\n      VLOOKUP(S702, 'Data order'!$AC$92:$AD$101, 2, FALSE),\n      IF(R702=\"Boordmaat\",\n          VLOOKUP(S702, 'Data order'!$AC$102:$AD$116, 2, FALSE),\n          VLOOKUP(S702, 'Data order'!$AC$2:$AD$91, 2, FALSE)\n      )\n  ),\n\"\")","v":""},null,{"$f":"SUM(U702:U707)","v":0},null,null,"EUR",null,null,null,{"$f":"AB702/Z702","v":{"$error":"#DIV/0!"}},{"$f":"U702*Z702","v":0},{"$f":"U702*AB702","v":0},null,"","","","","","","","","","",null,null,null,null,null,null,null,null,null,null,null,null,null,null,null,null,null,"ZWO"]
[null,null,null,null,null,{"$f":"VLOOKUP(G703,'Data order'!Z:AA,2,0)","v":{"$error":"#N/A"}},null,null,null,null,null,null,null,null,{"$f":"VLOOKUP(N703,Tabel10[[korte omschrijving]:[MCC3_CODE]],2,0)","v":{"$error":"#N/A"}},{"$f":"VLOOKUP(N703,'Data order'!M:O,3,0)","v":{"$error":"#N/A"}},null,null,null,{"$f":"IFERROR(\n  IF(R703=\"Big&Tall\",\n      VLOOKUP(S703, 'Data order'!$AC$92:$AD$101, 2, FALSE),\n      IF(R703=\"Boordmaat\",\n          VLOOKUP(S703, 'Data order'!$AC$102:$AD$116, 2, FALSE),\n          VLOOKUP(S703, 'Data order'!$AC$2:$AD$91, 2, FALSE)\n      )\n  ),\n\"\")","v":""},null,null,null,null,"EUR",null,null,null,{"$error":"#DIV/0!"},0,0,null,"","","","","","","","","","",null,null,null,null,null,null,null,null,null,null,null,null,null,null,null,null,null,"ZWO"]
[null,null,null,null,null,{"$f":"VLOOKUP(G704,'Data order'!Z:AA,2,0)","v":{"$error":"#N/A"}},null,null,null,null,null,null,null,null,{"$f":"VLOOKUP(N704,Tabel10[[korte omschrijving]:[MCC3_CODE]],2,0)","v":{"$error":"#N/A"}},{"$f":"VLOOKUP(N704,'Data order'!M:O,3,0)","v":{"$error":"#N/A"}},null,null,null,{"$f":"IFERROR(\n  IF(R704=\"Big&Tall\",\n      VLOOKUP(S704, 'Data order'!$AC$92:$AD$101, 2, FALSE),\n      IF(R704=\"Boordmaat\",\n          VLOOKUP(S704, 'Data order'!$AC$102:$AD$116, 2, FALSE),\n          VLOOKUP(S704, 'Data order'!$AC$2:$AD$91, 2, FALSE)\n      )\n  ),\n\"\")","v":""},null,null,null,null,"EUR",null,null,null,{"$error":"#DIV/0!"},0,0,null,"","","","","","","","","","",null,null,null,null,null,null,null,null,null,null,null,null,null,null,null,null,null,"ZWO"]
[null,null,null,null,null,{"$f":"VLOOKUP(G705,'Data order'!Z:AA,2,0)","v":{"$error":"#N/A"}},null,null,null,null,null,null,null,null,{"$f":"VLOOKUP(N705,Tabel10[[korte omschrijving]:[MCC3_CODE]],2,0)","v":{"$error":"#N/A"}},{"$f":"VLOOKUP(N705,'Data order'!M:O,3,0)","v":{"$error":"#N/A"}},null,null,null,{"$f":"IFERROR(\n  IF(R705=\"Big&Tall\",\n      VLOOKUP(S705, 'Data order'!$AC$92:$AD$101, 2, FALSE),\n      IF(R705=\"Boordmaat\",\n          VLOOKUP(S705, 'Data order'!$AC$102:$AD$116, 2, FALSE),\n          VLOOKUP(S705, 'Data order'!$AC$2:$AD$91, 2, FALSE)\n      )\n  ),\n\"\")","v":""},null,null,null,null,"EUR",null,null,null,{"$error":"#DIV/0!"},0,0,null,"","","","","","","","","","",null,null,null,null,null,null,null,null,null,null,null,null,null,null,null,null,null,"ZWO"]
[null,null,null,null,null,{"$f":"VLOOKUP(G706,'Data order'!Z:AA,2,0)","v":{"$error":"#N/A"}},null,null,null,null,null,null,null,null,{"$f":"VLOOKUP(N706,Tabel10[[korte omschrijving]:[MCC3_CODE]],2,0)","v":{"$error":"#N/A"}},{"$f":"VLOOKUP(N706,'Data order'!M:O,3,0)","v":{"$error":"#N/A"}},null,null,null,{"$f":"IFERROR(\n  IF(R706=\"Big&Tall\",\n      VLOOKUP(S706, 'Data order'!$AC$92:$AD$101, 2, FALSE),\n      IF(R706=\"Boordmaat\",\n          VLOOKUP(S706, 'Data order'!$AC$102:$AD$116, 2, FALSE),\n          VLOOKUP(S706, 'Data order'!$AC$2:$AD$91, 2, FALSE)\n      )\n  ),\n\"\")","v":""},null,null,null,null,"EUR",null,null,null,{"$error":"#DIV/0!"},0,0,null,"","","","","","","","","","",null,null,null,null,null,null,null,null,null,null,null,null,null,null,null,null,null,"ZWO"]
[null,null,null,null,null,{"$f":"VLOOKUP(G707,'Data order'!Z:AA,2,0)","v":{"$error":"#N/A"}},null,null,null,null,null,null,null,null,{"$f":"VLOOKUP(N707,Tabel10[[korte omschrijving]:[MCC3_CODE]],2,0)","v":{"$error":"#N/A"}},{"$f":"VLOOKUP(N707,'Data order'!M:O,3,0)","v":{"$error":"#N/A"}},null,null,null,{"$f":"IFERROR(\n  IF(R707=\"Big&Tall\",\n      VLOOKUP(S707, 'Data order'!$AC$92:$AD$101, 2, FALSE),\n      IF(R707=\"Boordmaat\",\n          VLOOKUP(S707, 'Data order'!$AC$102:$AD$116, 2, FALSE),\n          VLOOKUP(S707, 'Data order'!$AC$2:$AD$91, 2, FALSE)\n      )\n  ),\n\"\")","v":""},null,null,null,null,"EUR",null,null,null,{"$error":"#DIV/0!"},0,0,null,"","","","","","","","","","",null,null,null,null,null,null,null,null,null,null,null,null,null,null,null,null,null,"ZWO"]
[null,null,null,null,null,{"$f":"VLOOKUP(G708,'Data order'!Z:AA,2,0)","v":{"$error":"#N/A"}},null,null,null,null,null,null,null,null,{"$f":"VLOOKUP(N708,Tabel10[[korte omschrijving]:[MCC3_CODE]],2,0)","v":{"$error":"#N/A"}},{"$f":"VLOOKUP(N708,'Data order'!M:O,3,0)","v":{"$error":"#N/A"}},null,null,null,{"$f":"IFERROR(\n  IF(R708=\"Big&Tall\",\n      VLOOKUP(S708, 'Data order'!$AC$92:$AD$101, 2, FALSE),\n      IF(R708=\"Boordmaat\",\n          VLOOKUP(S708, 'Data order'!$AC$102:$AD$116, 2, FALSE),\n          VLOOKUP(S708, 'Data order'!$AC$2:$AD$91, 2, FALSE)\n      )\n  ),\n\"\")","v":""},null,0,null,null,"EUR",null,null,null,{"$f":"AB708/Z708","v":{"$error":"#DIV/0!"}},{"$f":"U708*Z708","v":0},{"$f":"U708*AB708","v":0},null,"","","","","","","","","","",null,null,null,null,null,null,null,null,null,null,null,null,null,null,null,null,null,"ZWO"]
[null,null,null,null,null,{"$f":"VLOOKUP(G709,'Data order'!Z:AA,2,0)","v":{"$error":"#N/A"}},null,null,null,null,null,null,null,null,{"$f":"VLOOKUP(N709,Tabel10[[korte omschrijving]:[MCC3_CODE]],2,0)","v":{"$error":"#N/A"}},{"$f":"VLOOKUP(N709,'Data order'!M:O,3,0)","v":{"$error":"#N/A"}},null,null,null,{"$f":"IFERROR(\n  IF(R709=\"Big&Tall\",\n      VLOOKUP(S709, 'Data order'!$AC$92:$AD$101, 2, FALSE),\n      IF(R709=\"Boordmaat\",\n          VLOOKUP(S709, 'Data order'!$AC$102:$AD$116, 2, FALSE),\n          VLOOKUP(S709, 'Data order'!$AC$2:$AD$91, 2, FALSE)\n      )\n  ),\n\"\")","v":""},null,null,null,null,"EUR",null,null,null,{"$error":"#DIV/0!"},0,0,null,"","","","","","","","","","",null,null,null,null,null,null,null,null,null,null,null,null,null,null,null,null,null,"ZWO"]
[null,null,null,null,null,{"$f":"VLOOKUP(G710,'Data order'!Z:AA,2,0)","v":{"$error":"#N/A"}},null,null,null,null,null,null,null,null,{"$f":"VLOOKUP(N710,Tabel10[[korte omschrijving]:[MCC3_CODE]],2,0)","v":{"$error":"#N/A"}},{"$f":"VLOOKUP(N710,'Data order'!M:O,3,0)","v":{"$error":"#N/A"}},null,null,null,{"$f":"IFERROR(\n  IF(R710=\"Big&Tall\",\n      VLOOKUP(S710, 'Data order'!$AC$92:$AD$101, 2, FALSE),\n      IF(R710=\"Boordmaat\",\n          VLOOKUP(S710, 'Data order'!$AC$102:$AD$116, 2, FALSE),\n          VLOOKUP(S710, 'Data order'!$AC$2:$AD$91, 2, FALSE)\n      )\n  ),\n\"\")","v":""},null,null,null,null,"EUR",null,null,null,{"$error":"#DIV/0!"},0,0,null,"","","","","","","","","","",null,null,null,null,null,null,null,null,null,null,null,null,null,null,null,null,null,"ZWO"]
[null,null,null,null,null,{"$f":"VLOOKUP(G711,'Data order'!Z:AA,2,0)","v":{"$error":"#N/A"}},null,null,null,null,null,null,null,null,{"$f":"VLOOKUP(N711,Tabel10[[korte omschrijving]:[MCC3_CODE]],2,0)","v":{"$error":"#N/A"}},{"$f":"VLOOKUP(N711,'Data order'!M:O,3,0)","v":{"$error":"#N/A"}},null,null,null,{"$f":"IFERROR(\n  IF(R711=\"Big&Tall\",\n      VLOOKUP(S711, 'Data order'!$AC$92:$AD$101, 2, FALSE),\n      IF(R711=\"Boordmaat\",\n          VLOOKUP(S711, 'Data order'!$AC$102:$AD$116, 2, FALSE),\n          VLOOKUP(S711, 'Data order'!$AC$2:$AD$91, 2, FALSE)\n      )\n  ),\n\"\")","v":""},null,null,null,null,"EUR",null,null,null,{"$error":"#DIV/0!"},0,0,null,"","","","","","","","","","",null,null,null,null,null,null,null,null,null,null,null,null,null,null,null,null,null,"ZWO"]
[null,null,null,null,null,{"$f":"VLOOKUP(G712,'Data order'!Z:AA,2,0)","v":{"$error":"#N/A"}},null,null,null,null,null,null,null,null,{"$f":"VLOOKUP(N712,Tabel10[[korte omschrijving]:[MCC3_CODE]],2,0)","v":{"$error":"#N/A"}},{"$f":"VLOOKUP(N712,'Data order'!M:O,3,0)","v":{"$error":"#N/A"}},null,null,null,{"$f":"IFERROR(\n  IF(R712=\"Big&Tall\",\n      VLOOKUP(S712, 'Data order'!$AC$92:$AD$101, 2, FALSE),\n      IF(R712=\"Boordmaat\",\n          VLOOKUP(S712, 'Data order'!$AC$102:$AD$116, 2, FALSE),\n          VLOOKUP(S712, 'Data order'!$AC$2:$AD$91, 2, FALSE)\n      )\n  ),\n\"\")","v":""},null,null,null,null,"EUR",null,null,null,{"$error":"#DIV/0!"},0,0,null,"","","","","","","","","","",null,null,null,null,null,null,null,null,null,null,null,null,null,null,null,null,null,"ZWO"]
[null,null,null,null,null,{"$f":"VLOOKUP(G713,'Data order'!Z:AA,2,0)","v":{"$error":"#N/A"}},null,null,null,null,null,null,null,null,{"$f":"VLOOKUP(N713,Tabel10[[korte omschrijving]:[MCC3_CODE]],2,0)","v":{"$error":"#N/A"}},{"$f":"VLOOKUP(N713,'Data order'!M:O,3,0)","v":{"$error":"#N/A"}},null,null,null,{"$f":"IFERROR(\n  IF(R713=\"Big&Tall\",\n      VLOOKUP(S713, 'Data order'!$AC$92:$AD$101, 2, FALSE),\n      IF(R713=\"Boordmaat\",\n          VLOOKUP(S713, 'Data order'!$AC$102:$AD$116, 2, FALSE),\n          VLOOKUP(S713, 'Data order'!$AC$2:$AD$91, 2, FALSE)\n      )\n  ),\n\"\")","v":""},null,null,null,null,"EUR",null,null,null,{"$error":"#DIV/0!"},0,0,null,"","","","","","","","","","",null,null,null,null,null,null,null,null,null,null,null,null,null,null,null,null,null,"ZWO"]
[null,null,null,null,null,{"$f":"VLOOKUP(G714,'Data order'!Z:AA,2,0)","v":{"$error":"#N/A"}},null,null,null,null,null,null,null,null,{"$f":"VLOOKUP(N714,Tabel10[[korte omschrijving]:[MCC3_CODE]],2,0)","v":{"$error":"#N/A"}},{"$f":"VLOOKUP(N714,'Data order'!M:O,3,0)","v":{"$error":"#N/A"}},null,null,null,{"$f":"IFERROR(\n  IF(R714=\"Big&Tall\",\n      VLOOKUP(S714, 'Data order'!$AC$92:$AD$101, 2, FALSE),\n      IF(R714=\"Boordmaat\",\n          VLOOKUP(S714, 'Data order'!$AC$102:$AD$116, 2, FALSE),\n          VLOOKUP(S714, 'Data order'!$AC$2:$AD$91, 2, FALSE)\n      )\n  ),\n\"\")","v":""},null,0,null,null,"EUR",null,null,null,{"$f":"AB714/Z714","v":{"$error":"#DIV/0!"}},{"$f":"U714*Z714","v":0},{"$f":"U714*AB714","v":0},null,"","","","","","","","","","",null,null,null,null,null,null,null,null,null,null,null,null,null,null,null,null,null,"ZWO"]
[null,null,null,null,null,{"$f":"VLOOKUP(G715,'Data order'!Z:AA,2,0)","v":{"$error":"#N/A"}},null,null,null,null,null,null,null,null,{"$f":"VLOOKUP(N715,Tabel10[[korte omschrijving]:[MCC3_CODE]],2,0)","v":{"$error":"#N/A"}},{"$f":"VLOOKUP(N715,'Data order'!M:O,3,0)","v":{"$error":"#N/A"}},null,null,null,{"$f":"IFERROR(\n  IF(R715=\"Big&Tall\",\n      VLOOKUP(S715, 'Data order'!$AC$92:$AD$101, 2, FALSE),\n      IF(R715=\"Boordmaat\",\n          VLOOKUP(S715, 'Data order'!$AC$102:$AD$116, 2, FALSE),\n          VLOOKUP(S715, 'Data order'!$AC$2:$AD$91, 2, FALSE)\n      )\n  ),\n\"\")","v":""},null,null,null,null,"EUR",null,null,null,{"$error":"#DIV/0!"},0,0,null,"","","","","","","","","","",null,null,null,null,null,null,null,null,null,null,null,null,null,null,null,null,null,"ZWO"]
[null,null,null,null,null,{"$f":"VLOOKUP(G716,'Data order'!Z:AA,2,0)","v":{"$error":"#N/A"}},null,null,null,null,null,null,null,null,{"$f":"VLOOKUP(N716,Tabel10[[korte omschrijving]:[MCC3_CODE]],2,0)","v":{"$error":"#N/A"}},{"$f":"VLOOKUP(N716,'Data order'!M:O,3,0)","v":{"$error":"#N/A"}},null,null,null,{"$f":"IFERROR(\n  IF(R716=\"Big&Tall\",\n      VLOOKUP(S716, 'Data order'!$AC$92:$AD$101, 2, FALSE),\n      IF(R716=\"Boordmaat\",\n          VLOOKUP(S716, 'Data order'!$AC$102:$AD$116, 2, FALSE),\n          VLOOKUP(S716, 'Data order'!$AC$2:$AD$91, 2, FALSE)\n      )\n  ),\n\"\")","v":""},null,null,null,null,"EUR",null,null,null,{"$error":"#DIV/0!"},0,0,null,"","","","","","","","","","",null,null,null,null,null,null,null,null,null,null,null,null,null,null,null,null,null,"ZWO"]
[null,null,null,null,null,{"$f":"VLOOKUP(G717,'Data order'!Z:AA,2,0)","v":{"$error":"#N/A"}},null,null,null,null,null,null,null,null,{"$f":"VLOOKUP(N717,Tabel10[[korte omschrijving]:[MCC3_CODE]],2,0)","v":{"$error":"#N/A"}},{"$f":"VLOOKUP(N717,'Data order'!M:O,3,0)","v":{"$error":"#N/A"}},null,null,null,{"$f":"IFERROR(\n  IF(R717=\"Big&Tall\",\n      VLOOKUP(S717, 'Data order'!$AC$92:$AD$101, 2, FALSE),\n      IF(R717=\"Boordmaat\",\n          VLOOKUP(S717, 'Data order'!$AC$102:$AD$116, 2, FALSE),\n          VLOOKUP(S717, 'Data order'!$AC$2:$AD$91, 2, FALSE)\n      )\n  ),\n\"\")","v":""},null,null,null,null,"EUR",null,null,null,{"$error":"#DIV/0!"},0,0,null,"","","","","","","","","","",null,null,null,null,null,null,null,null,null,null,null,null,null,null,null,null,null,"ZWO"]
[null,null,null,null,null,{"$f":"VLOOKUP(G718,'Data order'!Z:AA,2,0)","v":{"$error":"#N/A"}},null,null,null,null,null,null,null,null,{"$f":"VLOOKUP(N718,Tabel10[[korte omschrijving]:[MCC3_CODE]],2,0)","v":{"$error":"#N/A"}},{"$f":"VLOOKUP(N718,'Data order'!M:O,3,0)","v":{"$error":"#N/A"}},null,null,null,{"$f":"IFERROR(\n  IF(R718=\"Big&Tall\",\n      VLOOKUP(S718, 'Data order'!$AC$92:$AD$101, 2, FALSE),\n      IF(R718=\"Boordmaat\",\n          VLOOKUP(S718, 'Data order'!$AC$102:$AD$116, 2, FALSE),\n          VLOOKUP(S718, 'Data order'!$AC$2:$AD$91, 2, FALSE)\n      )\n  ),\n\"\")","v":""},null,null,null,null,"EUR",null,null,null,{"$error":"#DIV/0!"},0,0,null,"","","","","","","","","","",null,null,null,null,null,null,null,null,null,null,null,null,null,null,null,null,null,"ZWO"]
[null,null,null,null,null,{"$f":"VLOOKUP(G719,'Data order'!Z:AA,2,0)","v":{"$error":"#N/A"}},null,null,null,null,null,null,null,null,{"$f":"VLOOKUP(N719,Tabel10[[korte omschrijving]:[MCC3_CODE]],2,0)","v":{"$error":"#N/A"}},{"$f":"VLOOKUP(N719,'Data order'!M:O,3,0)","v":{"$error":"#N/A"}},null,null,null,{"$f":"IFERROR(\n  IF(R719=\"Big&Tall\",\n      VLOOKUP(S719, 'Data order'!$AC$92:$AD$101, 2, FALSE),\n      IF(R719=\"Boordmaat\",\n          VLOOKUP(S719, 'Data order'!$AC$102:$AD$116, 2, FALSE),\n          VLOOKUP(S719, 'Data order'!$AC$2:$AD$91, 2, FALSE)\n      )\n  ),\n\"\")","v":""},null,null,null,null,"EUR",null,null,null,{"$error":"#DIV/0!"},0,0,null,"","","","","","","","","","",null,null,null,null,null,null,null,null,null,null,null,null,null,null,null,null,null,"ZWO"]
[null,null,null,null,null,{"$f":"VLOOKUP(G720,'Data order'!Z:AA,2,0)","v":{"$error":"#N/A"}},null,null,null,null,null,null,null,null,{"$f":"VLOOKUP(N720,Tabel10[[korte omschrijving]:[MCC3_CODE]],2,0)","v":{"$error":"#N/A"}},{"$f":"VLOOKUP(N720,'Data order'!M:O,3,0)","v":{"$error":"#N/A"}},null,null,null,{"$f":"IFERROR(\n  IF(R720=\"Big&Tall\",\n      VLOOKUP(S720, 'Data order'!$AC$92:$AD$101, 2, FALSE),\n      IF(R720=\"Boordmaat\",\n          VLOOKUP(S720, 'Data order'!$AC$102:$AD$116, 2, FALSE),\n          VLOOKUP(S720, 'Data order'!$AC$2:$AD$91, 2, FALSE)\n      )\n  ),\n\"\")","v":""},null,0,null,null,"EUR",null,null,null,{"$f":"AB720/Z720","v":{"$error":"#DIV/0!"}},{"$f":"U720*Z720","v":0},{"$f":"U720*AB720","v":0},null,"","","","","","","","","","",null,null,null,null,null,null,null,null,null,null,null,null,null,null,null,null,null,"ZWO"]
[null,null,null,null,null,{"$f":"VLOOKUP(G721,'Data order'!Z:AA,2,0)","v":{"$error":"#N/A"}},null,null,null,null,null,null,null,null,{"$f":"VLOOKUP(N721,Tabel10[[korte omschrijving]:[MCC3_CODE]],2,0)","v":{"$error":"#N/A"}},{"$f":"VLOOKUP(N721,'Data order'!M:O,3,0)","v":{"$error":"#N/A"}},null,null,null,{"$f":"IFERROR(\n  IF(R721=\"Big&Tall\",\n      VLOOKUP(S721, 'Data order'!$AC$92:$AD$101, 2, FALSE),\n      IF(R721=\"Boordmaat\",\n          VLOOKUP(S721, 'Data order'!$AC$102:$AD$116, 2, FALSE),\n          VLOOKUP(S721, 'Data order'!$AC$2:$AD$91, 2, FALSE)\n      )\n  ),\n\"\")","v":""},null,null,null,null,"EUR",null,null,null,{"$error":"#DIV/0!"},0,0,null,"","","","","","","","","","",null,null,null,null,null,null,null,null,null,null,null,null,null,null,null,null,null,"ZWO"]
[null,null,null,null,null,{"$f":"VLOOKUP(G722,'Data order'!Z:AA,2,0)","v":{"$error":"#N/A"}},null,null,null,null,null,null,null,null,{"$f":"VLOOKUP(N722,Tabel10[[korte omschrijving]:[MCC3_CODE]],2,0)","v":{"$error":"#N/A"}},{"$f":"VLOOKUP(N722,'Data order'!M:O,3,0)","v":{"$error":"#N/A"}},null,null,null,{"$f":"IFERROR(\n  IF(R722=\"Big&Tall\",\n      VLOOKUP(S722, 'Data order'!$AC$92:$AD$101, 2, FALSE),\n      IF(R722=\"Boordmaat\",\n          VLOOKUP(S722, 'Data order'!$AC$102:$AD$116, 2, FALSE),\n          VLOOKUP(S722, 'Data order'!$AC$2:$AD$91, 2, FALSE)\n      )\n  ),\n\"\")","v":""},null,null,null,null,"EUR",null,null,null,{"$error":"#DIV/0!"},0,0,null,"","","","","","","","","","",null,null,null,null,null,null,null,null,null,null,null,null,null,null,null,null,null,"ZWO"]
[null,null,null,null,null,{"$f":"VLOOKUP(G723,'Data order'!Z:AA,2,0)","v":{"$error":"#N/A"}},null,null,null,null,null,null,null,null,{"$f":"VLOOKUP(N723,Tabel10[[korte omschrijving]:[MCC3_CODE]],2,0)","v":{"$error":"#N/A"}},{"$f":"VLOOKUP(N723,'Data order'!M:O,3,0)","v":{"$error":"#N/A"}},null,null,null,{"$f":"IFERROR(\n  IF(R723=\"Big&Tall\",\n      VLOOKUP(S723, 'Data order'!$AC$92:$AD$101, 2, FALSE),\n      IF(R723=\"Boordmaat\",\n          VLOOKUP(S723, 'Data order'!$AC$102:$AD$116, 2, FALSE),\n          VLOOKUP(S723, 'Data order'!$AC$2:$AD$91, 2, FALSE)\n      )\n  ),\n\"\")","v":""},null,null,null,null,"EUR",null,null,null,{"$error":"#DIV/0!"},0,0,null,"","","","","","","","","","",null,null,null,null,null,null,null,null,null,null,null,null,null,null,null,null,null,"ZWO"]
[null,null,null,null,null,{"$f":"VLOOKUP(G724,'Data order'!Z:AA,2,0)","v":{"$error":"#N/A"}},null,null,null,null,null,null,null,null,{"$f":"VLOOKUP(N724,Tabel10[[korte omschrijving]:[MCC3_CODE]],2,0)","v":{"$error":"#N/A"}},{"$f":"VLOOKUP(N724,'Data order'!M:O,3,0)","v":{"$error":"#N/A"}},null,null,null,{"$f":"IFERROR(\n  IF(R724=\"Big&Tall\",\n      VLOOKUP(S724, 'Data order'!$AC$92:$AD$101, 2, FALSE),\n      IF(R724=\"Boordmaat\",\n          VLOOKUP(S724, 'Data order'!$AC$102:$AD$116, 2, FALSE),\n          VLOOKUP(S724, 'Data order'!$AC$2:$AD$91, 2, FALSE)\n      )\n  ),\n\"\")","v":""},null,null,null,null,"EUR",null,null,null,{"$error":"#DIV/0!"},0,0,null,"","","","","","","","","","",null,null,null,null,null,null,null,null,null,null,null,null,null,null,null,null,null,"ZWO"]
[null,null,null,null,null,{"$f":"VLOOKUP(G725,'Data order'!Z:AA,2,0)","v":{"$error":"#N/A"}},null,null,null,null,null,null,null,null,{"$f":"VLOOKUP(N725,Tabel10[[korte omschrijving]:[MCC3_CODE]],2,0)","v":{"$error":"#N/A"}},{"$f":"VLOOKUP(N725,'Data order'!M:O,3,0)","v":{"$error":"#N/A"}},null,null,null,{"$f":"IFERROR(\n  IF(R725=\"Big&Tall\",\n      VLOOKUP(S725, 'Data order'!$AC$92:$AD$101, 2, FALSE),\n      IF(R725=\"Boordmaat\",\n          VLOOKUP(S725, 'Data order'!$AC$102:$AD$116, 2, FALSE),\n          VLOOKUP(S725, 'Data order'!$AC$2:$AD$91, 2, FALSE)\n      )\n  ),\n\"\")","v":""},null,null,null,null,"EUR",null,null,null,{"$error":"#DIV/0!"},0,0,null,"","","","","","","","","","",null,null,null,null,null,null,null,null,null,null,null,null,null,null,null,null,null,"ZWO"]
[null,null,null,null,null,{"$f":"VLOOKUP(G726,'Data order'!Z:AA,2,0)","v":{"$error":"#N/A"}},null,null,null,null,null,null,null,null,{"$f":"VLOOKUP(N726,Tabel10[[korte omschrijving]:[MCC3_CODE]],2,0)","v":{"$error":"#N/A"}},{"$f":"VLOOKUP(N726,'Data order'!M:O,3,0)","v":{"$error":"#N/A"}},null,null,null,{"$f":"IFERROR(\n  IF(R726=\"Big&Tall\",\n      VLOOKUP(S726, 'Data order'!$AC$92:$AD$101, 2, FALSE),\n      IF(R726=\"Boordmaat\",\n          VLOOKUP(S726, 'Data order'!$AC$102:$AD$116, 2, FALSE),\n          VLOOKUP(S726, 'Data order'!$AC$2:$AD$91, 2, FALSE)\n      )\n  ),\n\"\")","v":""},null,0,null,null,"EUR",null,null,null,{"$f":"AB726/Z726","v":{"$error":"#DIV/0!"}},{"$f":"U726*Z726","v":0},{"$f":"U726*AB726","v":0},null,"","","","","","","","","","",null,null,null,null,null,null,null,null,null,null,null,null,null,null,null,null,null,"ZWO"]
[null,null,null,null,null,{"$f":"VLOOKUP(G727,'Data order'!Z:AA,2,0)","v":{"$error":"#N/A"}},null,null,null,null,null,null,null,null,{"$f":"VLOOKUP(N727,Tabel10[[korte omschrijving]:[MCC3_CODE]],2,0)","v":{"$error":"#N/A"}},{"$f":"VLOOKUP(N727,'Data order'!M:O,3,0)","v":{"$error":"#N/A"}},null,null,null,{"$f":"IFERROR(\n  IF(R727=\"Big&Tall\",\n      VLOOKUP(S727, 'Data order'!$AC$92:$AD$101, 2, FALSE),\n      IF(R727=\"Boordmaat\",\n          VLOOKUP(S727, 'Data order'!$AC$102:$AD$116, 2, FALSE),\n          VLOOKUP(S727, 'Data order'!$AC$2:$AD$91, 2, FALSE)\n      )\n  ),\n\"\")","v":""},null,null,null,null,"EUR",null,null,null,{"$error":"#DIV/0!"},0,0,null,"","","","","","","","","","",null,null,null,null,null,null,null,null,null,null,null,null,null,null,null,null,null,"ZWO"]
[null,null,null,null,null,{"$f":"VLOOKUP(G728,'Data order'!Z:AA,2,0)","v":{"$error":"#N/A"}},null,null,null,null,null,null,null,null,{"$f":"VLOOKUP(N728,Tabel10[[korte omschrijving]:[MCC3_CODE]],2,0)","v":{"$error":"#N/A"}},{"$f":"VLOOKUP(N728,'Data order'!M:O,3,0)","v":{"$error":"#N/A"}},null,null,null,{"$f":"IFERROR(\n  IF(R728=\"Big&Tall\",\n      VLOOKUP(S728, 'Data order'!$AC$92:$AD$101, 2, FALSE),\n      IF(R728=\"Boordmaat\",\n          VLOOKUP(S728, 'Data order'!$AC$102:$AD$116, 2, FALSE),\n          VLOOKUP(S728, 'Data order'!$AC$2:$AD$91, 2, FALSE)\n      )\n  ),\n\"\")","v":""},null,null,null,null,"EUR",null,null,null,{"$error":"#DIV/0!"},0,0,null,"","","","","","","","","","",null,null,null,null,null,null,null,null,null,null,null,null,null,null,null,null,null,"ZWO"]
[null,null,null,null,null,{"$f":"VLOOKUP(G729,'Data order'!Z:AA,2,0)","v":{"$error":"#N/A"}},null,null,null,null,null,null,null,null,{"$f":"VLOOKUP(N729,Tabel10[[korte omschrijving]:[MCC3_CODE]],2,0)","v":{"$error":"#N/A"}},{"$f":"VLOOKUP(N729,'Data order'!M:O,3,0)","v":{"$error":"#N/A"}},null,null,null,{"$f":"IFERROR(\n  IF(R729=\"Big&Tall\",\n      VLOOKUP(S729, 'Data order'!$AC$92:$AD$101, 2, FALSE),\n      IF(R729=\"Boordmaat\",\n          VLOOKUP(S729, 'Data order'!$AC$102:$AD$116, 2, FALSE),\n          VLOOKUP(S729, 'Data order'!$AC$2:$AD$91, 2, FALSE)\n      )\n  ),\n\"\")","v":""},null,null,null,null,"EUR",null,null,null,{"$error":"#DIV/0!"},0,0,null,"","","","","","","","","","",null,null,null,null,null,null,null,null,null,null,null,null,null,null,null,null,null,"ZWO"]
[null,null,null,null,null,{"$f":"VLOOKUP(G730,'Data order'!Z:AA,2,0)","v":{"$error":"#N/A"}},null,null,null,null,null,null,null,null,{"$f":"VLOOKUP(N730,Tabel10[[korte omschrijving]:[MCC3_CODE]],2,0)","v":{"$error":"#N/A"}},{"$f":"VLOOKUP(N730,'Data order'!M:O,3,0)","v":{"$error":"#N/A"}},null,null,null,{"$f":"IFERROR(\n  IF(R730=\"Big&Tall\",\n      VLOOKUP(S730, 'Data order'!$AC$92:$AD$101, 2, FALSE),\n      IF(R730=\"Boordmaat\",\n          VLOOKUP(S730, 'Data order'!$AC$102:$AD$116, 2, FALSE),\n          VLOOKUP(S730, 'Data order'!$AC$2:$AD$91, 2, FALSE)\n      )\n  ),\n\"\")","v":""},null,null,null,null,"EUR",null,null,null,{"$error":"#DIV/0!"},0,0,null,"","","","","","","","","","",null,null,null,null,null,null,null,null,null,null,null,null,null,null,null,null,null,"ZWO"]
[null,null,null,null,null,{"$f":"VLOOKUP(G731,'Data order'!Z:AA,2,0)","v":{"$error":"#N/A"}},null,null,null,null,null,null,null,null,{"$f":"VLOOKUP(N731,Tabel10[[korte omschrijving]:[MCC3_CODE]],2,0)","v":{"$error":"#N/A"}},{"$f":"VLOOKUP(N731,'Data order'!M:O,3,0)","v":{"$error":"#N/A"}},null,null,null,{"$f":"IFERROR(\n  IF(R731=\"Big&Tall\",\n      VLOOKUP(S731, 'Data order'!$AC$92:$AD$101, 2, FALSE),\n      IF(R731=\"Boordmaat\",\n          VLOOKUP(S731, 'Data order'!$AC$102:$AD$116, 2, FALSE),\n          VLOOKUP(S731, 'Data order'!$AC$2:$AD$91, 2, FALSE)\n      )\n  ),\n\"\")","v":""},null,null,null,null,"EUR",null,null,null,{"$error":"#DIV/0!"},0,0,null,"","","","","","","","","","",null,null,null,null,null,null,null,null,null,null,null,null,null,null,null,null,null,"ZWO"]
[null,null,null,null,null,{"$f":"VLOOKUP(G732,'Data order'!Z:AA,2,0)","v":{"$error":"#N/A"}},null,null,null,null,null,null,null,null,{"$f":"VLOOKUP(N732,Tabel10[[korte omschrijving]:[MCC3_CODE]],2,0)","v":{"$error":"#N/A"}},{"$f":"VLOOKUP(N732,'Data order'!M:O,3,0)","v":{"$error":"#N/A"}},null,null,null,{"$f":"IFERROR(\n  IF(R732=\"Big&Tall\",\n      VLOOKUP(S732, 'Data order'!$AC$92:$AD$101, 2, FALSE),\n      IF(R732=\"Boordmaat\",\n          VLOOKUP(S732, 'Data order'!$AC$102:$AD$116, 2, FALSE),\n          VLOOKUP(S732, 'Data order'!$AC$2:$AD$91, 2, FALSE)\n      )\n  ),\n\"\")","v":""},null,0,null,null,"EUR",null,null,null,{"$f":"AB732/Z732","v":{"$error":"#DIV/0!"}},{"$f":"U732*Z732","v":0},{"$f":"U732*AB732","v":0},null,"","","","","","","","","","",null,null,null,null,null,null,null,null,null,null,null,null,null,null,null,null,null,"ZWO"]
[null,null,null,null,null,{"$f":"VLOOKUP(G733,'Data order'!Z:AA,2,0)","v":{"$error":"#N/A"}},null,null,null,null,null,null,null,null,{"$f":"VLOOKUP(N733,Tabel10[[korte omschrijving]:[MCC3_CODE]],2,0)","v":{"$error":"#N/A"}},{"$f":"VLOOKUP(N733,'Data order'!M:O,3,0)","v":{"$error":"#N/A"}},null,null,null,{"$f":"IFERROR(\n  IF(R733=\"Big&Tall\",\n      VLOOKUP(S733, 'Data order'!$AC$92:$AD$101, 2, FALSE),\n      IF(R733=\"Boordmaat\",\n          VLOOKUP(S733, 'Data order'!$AC$102:$AD$116, 2, FALSE),\n          VLOOKUP(S733, 'Data order'!$AC$2:$AD$91, 2, FALSE)\n      )\n  ),\n\"\")","v":""},null,null,null,null,"EUR",null,null,null,{"$error":"#DIV/0!"},0,0,null,"","","","","","","","","","",null,null,null,null,null,null,null,null,null,null,null,null,null,null,null,null,null,"ZWO"]
[null,null,null,null,null,{"$f":"VLOOKUP(G734,'Data order'!Z:AA,2,0)","v":{"$error":"#N/A"}},null,null,null,null,null,null,null,null,{"$f":"VLOOKUP(N734,Tabel10[[korte omschrijving]:[MCC3_CODE]],2,0)","v":{"$error":"#N/A"}},{"$f":"VLOOKUP(N734,'Data order'!M:O,3,0)","v":{"$error":"#N/A"}},null,null,null,{"$f":"IFERROR(\n  IF(R734=\"Big&Tall\",\n      VLOOKUP(S734, 'Data order'!$AC$92:$AD$101, 2, FALSE),\n      IF(R734=\"Boordmaat\",\n          VLOOKUP(S734, 'Data order'!$AC$102:$AD$116, 2, FALSE),\n          VLOOKUP(S734, 'Data order'!$AC$2:$AD$91, 2, FALSE)\n      )\n  ),\n\"\")","v":""},null,null,null,null,"EUR",null,null,null,{"$error":"#DIV/0!"},0,0,null,"","","","","","","","","","",null,null,null,null,null,null,null,null,null,null,null,null,null,null,null,null,null,"ZWO"]
[null,null,null,null,null,{"$f":"VLOOKUP(G735,'Data order'!Z:AA,2,0)","v":{"$error":"#N/A"}},null,null,null,null,null,null,null,null,{"$f":"VLOOKUP(N735,Tabel10[[korte omschrijving]:[MCC3_CODE]],2,0)","v":{"$error":"#N/A"}},{"$f":"VLOOKUP(N735,'Data order'!M:O,3,0)","v":{"$error":"#N/A"}},null,null,null,{"$f":"IFERROR(\n  IF(R735=\"Big&Tall\",\n      VLOOKUP(S735, 'Data order'!$AC$92:$AD$101, 2, FALSE),\n      IF(R735=\"Boordmaat\",\n          VLOOKUP(S735, 'Data order'!$AC$102:$AD$116, 2, FALSE),\n          VLOOKUP(S735, 'Data order'!$AC$2:$AD$91, 2, FALSE)\n      )\n  ),\n\"\")","v":""},null,null,null,null,"EUR",null,null,null,{"$error":"#DIV/0!"},0,0,null,"","","","","","","","","","",null,null,null,null,null,null,null,null,null,null,null,null,null,null,null,null,null,"ZWO"]
[null,null,null,null,null,{"$f":"VLOOKUP(G736,'Data order'!Z:AA,2,0)","v":{"$error":"#N/A"}},null,null,null,null,null,null,null,null,{"$f":"VLOOKUP(N736,Tabel10[[korte omschrijving]:[MCC3_CODE]],2,0)","v":{"$error":"#N/A"}},{"$f":"VLOOKUP(N736,'Data order'!M:O,3,0)","v":{"$error":"#N/A"}},null,null,null,{"$f":"IFERROR(\n  IF(R736=\"Big&Tall\",\n      VLOOKUP(S736, 'Data order'!$AC$92:$AD$101, 2, FALSE),\n      IF(R736=\"Boordmaat\",\n          VLOOKUP(S736, 'Data order'!$AC$102:$AD$116, 2, FALSE),\n          VLOOKUP(S736, 'Data order'!$AC$2:$AD$91, 2, FALSE)\n      )\n  ),\n\"\")","v":""},null,null,null,null,"EUR",null,null,null,{"$error":"#DIV/0!"},0,0,null,"","","","","","","","","","",null,null,null,null,null,null,null,null,null,null,null,null,null,null,null,null,null,"ZWO"]
[null,null,null,null,null,{"$f":"VLOOKUP(G737,'Data order'!Z:AA,2,0)","v":{"$error":"#N/A"}},null,null,null,null,null,null,null,null,{"$f":"VLOOKUP(N737,Tabel10[[korte omschrijving]:[MCC3_CODE]],2,0)","v":{"$error":"#N/A"}},{"$f":"VLOOKUP(N737,'Data order'!M:O,3,0)","v":{"$error":"#N/A"}},null,null,null,{"$f":"IFERROR(\n  IF(R737=\"Big&Tall\",\n      VLOOKUP(S737, 'Data order'!$AC$92:$AD$101, 2, FALSE),\n      IF(R737=\"Boordmaat\",\n          VLOOKUP(S737, 'Data order'!$AC$102:$AD$116, 2, FALSE),\n          VLOOKUP(S737, 'Data order'!$AC$2:$AD$91, 2, FALSE)\n      )\n  ),\n\"\")","v":""},null,null,null,null,"EUR",null,null,null,{"$error":"#DIV/0!"},0,0,null,"","","","","","","","","","",null,null,null,null,null,null,null,null,null,null,null,null,null,null,null,null,null,"ZWO"]
[null,null,null,null,null,{"$f":"VLOOKUP(G738,'Data order'!Z:AA,2,0)","v":{"$error":"#N/A"}},null,null,null,null,null,null,null,null,{"$f":"VLOOKUP(N738,Tabel10[[korte omschrijving]:[MCC3_CODE]],2,0)","v":{"$error":"#N/A"}},{"$f":"VLOOKUP(N738,'Data order'!M:O,3,0)","v":{"$error":"#N/A"}},null,null,null,{"$f":"IFERROR(\n  IF(R738=\"Big&Tall\",\n      VLOOKUP(S738, 'Data order'!$AC$92:$AD$101, 2, FALSE),\n      IF(R738=\"Boordmaat\",\n          VLOOKUP(S738, 'Data order'!$AC$102:$AD$116, 2, FALSE),\n          VLOOKUP(S738, 'Data order'!$AC$2:$AD$91, 2, FALSE)\n      )\n  ),\n\"\")","v":""},null,0,null,null,"EUR",null,null,null,{"$f":"AB738/Z738","v":{"$error":"#DIV/0!"}},{"$f":"U738*Z738","v":0},{"$f":"U738*AB738","v":0},null,"","","","","","","","","","",null,null,null,null,null,null,null,null,null,null,null,null,null,null,null,null,null,"ZWO"]
[null,null,null,null,null,{"$f":"VLOOKUP(G739,'Data order'!Z:AA,2,0)","v":{"$error":"#N/A"}},null,null,null,null,null,null,null,null,{"$f":"VLOOKUP(N739,Tabel10[[korte omschrijving]:[MCC3_CODE]],2,0)","v":{"$error":"#N/A"}},{"$f":"VLOOKUP(N739,'Data order'!M:O,3,0)","v":{"$error":"#N/A"}},null,null,null,{"$f":"IFERROR(\n  IF(R739=\"Big&Tall\",\n      VLOOKUP(S739, 'Data order'!$AC$92:$AD$101, 2, FALSE),\n      IF(R739=\"Boordmaat\",\n          VLOOKUP(S739, 'Data order'!$AC$102:$AD$116, 2, FALSE),\n          VLOOKUP(S739, 'Data order'!$AC$2:$AD$91, 2, FALSE)\n      )\n  ),\n\"\")","v":""},null,null,null,null,"EUR",null,null,null,{"$error":"#DIV/0!"},0,0,null,"","","","","","","","","","",null,null,null,null,null,null,null,null,null,null,null,null,null,null,null,null,null,"ZWO"]
[null,null,null,null,null,{"$f":"VLOOKUP(G740,'Data order'!Z:AA,2,0)","v":{"$error":"#N/A"}},null,null,null,null,null,null,null,null,{"$f":"VLOOKUP(N740,Tabel10[[korte omschrijving]:[MCC3_CODE]],2,0)","v":{"$error":"#N/A"}},{"$f":"VLOOKUP(N740,'Data order'!M:O,3,0)","v":{"$error":"#N/A"}},null,null,null,{"$f":"IFERROR(\n  IF(R740=\"Big&Tall\",\n      VLOOKUP(S740, 'Data order'!$AC$92:$AD$101, 2, FALSE),\n      IF(R740=\"Boordmaat\",\n          VLOOKUP(S740, 'Data order'!$AC$102:$AD$116, 2, FALSE),\n          VLOOKUP(S740, 'Data order'!$AC$2:$AD$91, 2, FALSE)\n      )\n  ),\n\"\")","v":""},null,null,null,null,"EUR",null,null,null,{"$error":"#DIV/0!"},0,0,null,"","","","","","","","","","",null,null,null,null,null,null,null,null,null,null,null,null,null,null,null,null,null,"ZWO"]
[null,null,null,null,null,{"$f":"VLOOKUP(G741,'Data order'!Z:AA,2,0)","v":{"$error":"#N/A"}},null,null,null,null,null,null,null,null,{"$f":"VLOOKUP(N741,Tabel10[[korte omschrijving]:[MCC3_CODE]],2,0)","v":{"$error":"#N/A"}},{"$f":"VLOOKUP(N741,'Data order'!M:O,3,0)","v":{"$error":"#N/A"}},null,null,null,{"$f":"IFERROR(\n  IF(R741=\"Big&Tall\",\n      VLOOKUP(S741, 'Data order'!$AC$92:$AD$101, 2, FALSE),\n      IF(R741=\"Boordmaat\",\n          VLOOKUP(S741, 'Data order'!$AC$102:$AD$116, 2, FALSE),\n          VLOOKUP(S741, 'Data order'!$AC$2:$AD$91, 2, FALSE)\n      )\n  ),\n\"\")","v":""},null,null,null,null,"EUR",null,null,null,{"$error":"#DIV/0!"},0,0,null,"","","","","","","","","","",null,null,null,null,null,null,null,null,null,null,null,null,null,null,null,null,null,"ZWO"]
[null,null,null,null,null,{"$f":"VLOOKUP(G742,'Data order'!Z:AA,2,0)","v":{"$error":"#N/A"}},null,null,null,null,null,null,null,null,{"$f":"VLOOKUP(N742,Tabel10[[korte omschrijving]:[MCC3_CODE]],2,0)","v":{"$error":"#N/A"}},{"$f":"VLOOKUP(N742,'Data order'!M:O,3,0)","v":{"$error":"#N/A"}},null,null,null,{"$f":"IFERROR(\n  IF(R742=\"Big&Tall\",\n      VLOOKUP(S742, 'Data order'!$AC$92:$AD$101, 2, FALSE),\n      IF(R742=\"Boordmaat\",\n          VLOOKUP(S742, 'Data order'!$AC$102:$AD$116, 2, FALSE),\n          VLOOKUP(S742, 'Data order'!$AC$2:$AD$91, 2, FALSE)\n      )\n  ),\n\"\")","v":""},null,null,null,null,"EUR",null,null,null,{"$error":"#DIV/0!"},0,0,null,"","","","","","","","","","",null,null,null,null,null,null,null,null,null,null,null,null,null,null,null,null,null,"ZWO"]
[null,null,null,null,null,{"$f":"VLOOKUP(G743,'Data order'!Z:AA,2,0)","v":{"$error":"#N/A"}},null,null,null,null,null,null,null,null,{"$f":"VLOOKUP(N743,Tabel10[[korte omschrijving]:[MCC3_CODE]],2,0)","v":{"$error":"#N/A"}},{"$f":"VLOOKUP(N743,'Data order'!M:O,3,0)","v":{"$error":"#N/A"}},null,null,null,{"$f":"IFERROR(\n  IF(R743=\"Big&Tall\",\n      VLOOKUP(S743, 'Data order'!$AC$92:$AD$101, 2, FALSE),\n      IF(R743=\"Boordmaat\",\n          VLOOKUP(S743, 'Data order'!$AC$102:$AD$116, 2, FALSE),\n          VLOOKUP(S743, 'Data order'!$AC$2:$AD$91, 2, FALSE)\n      )\n  ),\n\"\")","v":""},null,null,null,null,"EUR",null,null,null,{"$error":"#DIV/0!"},0,0,null,"","","","","","","","","","",null,null,null,null,null,null,null,null,null,null,null,null,null,null,null,null,null,"ZWO"]
[null,null,null,null,null,{"$f":"VLOOKUP(G744,'Data order'!Z:AA,2,0)","v":{"$error":"#N/A"}},null,null,null,null,null,null,null,null,{"$f":"VLOOKUP(N744,Tabel10[[korte omschrijving]:[MCC3_CODE]],2,0)","v":{"$error":"#N/A"}},{"$f":"VLOOKUP(N744,'Data order'!M:O,3,0)","v":{"$error":"#N/A"}},null,null,null,{"$f":"IFERROR(\n  IF(R744=\"Big&Tall\",\n      VLOOKUP(S744, 'Data order'!$AC$92:$AD$101, 2, FALSE),\n      IF(R744=\"Boordmaat\",\n          VLOOKUP(S744, 'Data order'!$AC$102:$AD$116, 2, FALSE),\n          VLOOKUP(S744, 'Data order'!$AC$2:$AD$91, 2, FALSE)\n      )\n  ),\n\"\")","v":""},null,0,null,null,"EUR",null,null,null,{"$f":"AB744/Z744","v":{"$error":"#DIV/0!"}},{"$f":"U744*Z744","v":0},{"$f":"U744*AB744","v":0},null,"","","","","","","","","","",null,null,null,null,null,null,null,null,null,null,null,null,null,null,null,null,null,"ZWO"]
[null,null,null,null,null,{"$f":"VLOOKUP(G745,'Data order'!Z:AA,2,0)","v":{"$error":"#N/A"}},null,null,null,null,null,null,null,null,{"$f":"VLOOKUP(N745,Tabel10[[korte omschrijving]:[MCC3_CODE]],2,0)","v":{"$error":"#N/A"}},{"$f":"VLOOKUP(N745,'Data order'!M:O,3,0)","v":{"$error":"#N/A"}},null,null,null,{"$f":"IFERROR(\n  IF(R745=\"Big&Tall\",\n      VLOOKUP(S745, 'Data order'!$AC$92:$AD$101, 2, FALSE),\n      IF(R745=\"Boordmaat\",\n          VLOOKUP(S745, 'Data order'!$AC$102:$AD$116, 2, FALSE),\n          VLOOKUP(S745, 'Data order'!$AC$2:$AD$91, 2, FALSE)\n      )\n  ),\n\"\")","v":""},null,null,null,null,"EUR",null,null,null,{"$error":"#DIV/0!"},0,0,null,"","","","","","","","","","",null,null,null,null,null,null,null,null,null,null,null,null,null,null,null,null,null,"ZWO"]
[null,null,null,null,null,{"$f":"VLOOKUP(G746,'Data order'!Z:AA,2,0)","v":{"$error":"#N/A"}},null,null,null,null,null,null,null,null,{"$f":"VLOOKUP(N746,Tabel10[[korte omschrijving]:[MCC3_CODE]],2,0)","v":{"$error":"#N/A"}},{"$f":"VLOOKUP(N746,'Data order'!M:O,3,0)","v":{"$error":"#N/A"}},null,null,null,{"$f":"IFERROR(\n  IF(R746=\"Big&Tall\",\n      VLOOKUP(S746, 'Data order'!$AC$92:$AD$101, 2, FALSE),\n      IF(R746=\"Boordmaat\",\n          VLOOKUP(S746, 'Data order'!$AC$102:$AD$116, 2, FALSE),\n          VLOOKUP(S746, 'Data order'!$AC$2:$AD$91, 2, FALSE)\n      )\n  ),\n\"\")","v":""},null,null,null,null,"EUR",null,null,null,{"$error":"#DIV/0!"},0,0,null,"","","","","","","","","","",null,null,null,null,null,null,null,null,null,null,null,null,null,null,null,null,null,"ZWO"]
[null,null,null,null,null,{"$f":"VLOOKUP(G747,'Data order'!Z:AA,2,0)","v":{"$error":"#N/A"}},null,null,null,null,null,null,null,null,{"$f":"VLOOKUP(N747,Tabel10[[korte omschrijving]:[MCC3_CODE]],2,0)","v":{"$error":"#N/A"}},{"$f":"VLOOKUP(N747,'Data order'!M:O,3,0)","v":{"$error":"#N/A"}},null,null,null,{"$f":"IFERROR(\n  IF(R747=\"Big&Tall\",\n      VLOOKUP(S747, 'Data order'!$AC$92:$AD$101, 2, FALSE),\n      IF(R747=\"Boordmaat\",\n          VLOOKUP(S747, 'Data order'!$AC$102:$AD$116, 2, FALSE),\n          VLOOKUP(S747, 'Data order'!$AC$2:$AD$91, 2, FALSE)\n      )\n  ),\n\"\")","v":""},null,null,null,null,"EUR",null,null,null,{"$error":"#DIV/0!"},0,0,null,"","","","","","","","","","",null,null,null,null,null,null,null,null,null,null,null,null,null,null,null,null,null,"ZWO"]
[null,null,null,null,null,{"$f":"VLOOKUP(G748,'Data order'!Z:AA,2,0)","v":{"$error":"#N/A"}},null,null,null,null,null,null,null,null,{"$f":"VLOOKUP(N748,Tabel10[[korte omschrijving]:[MCC3_CODE]],2,0)","v":{"$error":"#N/A"}},{"$f":"VLOOKUP(N748,'Data order'!M:O,3,0)","v":{"$error":"#N/A"}},null,null,null,{"$f":"IFERROR(\n  IF(R748=\"Big&Tall\",\n      VLOOKUP(S748, 'Data order'!$AC$92:$AD$101, 2, FALSE),\n      IF(R748=\"Boordmaat\",\n          VLOOKUP(S748, 'Data order'!$AC$102:$AD$116, 2, FALSE),\n          VLOOKUP(S748, 'Data order'!$AC$2:$AD$91, 2, FALSE)\n      )\n  ),\n\"\")","v":""},null,null,null,null,"EUR",null,null,null,{"$error":"#DIV/0!"},0,0,null,"","","","","","","","","","",null,null,null,null,null,null,null,null,null,null,null,null,null,null,null,null,null,"ZWO"]
[null,null,null,null,null,{"$f":"VLOOKUP(G749,'Data order'!Z:AA,2,0)","v":{"$error":"#N/A"}},null,null,null,null,null,null,null,null,{"$f":"VLOOKUP(N749,Tabel10[[korte omschrijving]:[MCC3_CODE]],2,0)","v":{"$error":"#N/A"}},{"$f":"VLOOKUP(N749,'Data order'!M:O,3,0)","v":{"$error":"#N/A"}},null,null,null,{"$f":"IFERROR(\n  IF(R749=\"Big&Tall\",\n      VLOOKUP(S749, 'Data order'!$AC$92:$AD$101, 2, FALSE),\n      IF(R749=\"Boordmaat\",\n          VLOOKUP(S749, 'Data order'!$AC$102:$AD$116, 2, FALSE),\n          VLOOKUP(S749, 'Data order'!$AC$2:$AD$91, 2, FALSE)\n      )\n  ),\n\"\")","v":""},null,null,null,null,"EUR",null,null,null,{"$error":"#DIV/0!"},0,0,null,"","","","","","","","","","",null,null,null,null,null,null,null,null,null,null,null,null,null,null,null,null,null,"ZWO"]
[null,null,null,null,null,{"$f":"VLOOKUP(G750,'Data order'!Z:AA,2,0)","v":{"$error":"#N/A"}},null,null,null,null,null,null,null,null,{"$f":"VLOOKUP(N750,Tabel10[[korte omschrijving]:[MCC3_CODE]],2,0)","v":{"$error":"#N/A"}},{"$f":"VLOOKUP(N750,'Data order'!M:O,3,0)","v":{"$error":"#N/A"}},null,null,null,{"$f":"IFERROR(\n  IF(R750=\"Big&Tall\",\n      VLOOKUP(S750, 'Data order'!$AC$92:$AD$101, 2, FALSE),\n      IF(R750=\"Boordmaat\",\n          VLOOKUP(S750, 'Data order'!$AC$102:$AD$116, 2, FALSE),\n          VLOOKUP(S750, 'Data order'!$AC$2:$AD$91, 2, FALSE)\n      )\n  ),\n\"\")","v":""},null,0,null,null,"EUR",null,null,null,{"$f":"AB750/Z750","v":{"$error":"#DIV/0!"}},{"$f":"U750*Z750","v":0},{"$f":"U750*AB750","v":0},null,"","","","","","","","","","",null,null,null,null,null,null,null,null,null,null,null,null,null,null,null,null,null,"ZWO"]
[null,null,null,null,null,{"$f":"VLOOKUP(G751,'Data order'!Z:AA,2,0)","v":{"$error":"#N/A"}},null,null,null,null,null,null,null,null,{"$f":"VLOOKUP(N751,Tabel10[[korte omschrijving]:[MCC3_CODE]],2,0)","v":{"$error":"#N/A"}},{"$f":"VLOOKUP(N751,'Data order'!M:O,3,0)","v":{"$error":"#N/A"}},null,null,null,{"$f":"IFERROR(\n  IF(R751=\"Big&Tall\",\n      VLOOKUP(S751, 'Data order'!$AC$92:$AD$101, 2, FALSE),\n      IF(R751=\"Boordmaat\",\n          VLOOKUP(S751, 'Data order'!$AC$102:$AD$116, 2, FALSE),\n          VLOOKUP(S751, 'Data order'!$AC$2:$AD$91, 2, FALSE)\n      )\n  ),\n\"\")","v":""},null,null,null,null,"EUR",null,null,null,{"$error":"#DIV/0!"},0,0,null,"","","","","","","","","","",null,null,null,null,null,null,null,null,null,null,null,null,null,null,null,null,null,"ZWO"]
[null,null,null,null,null,{"$f":"VLOOKUP(G752,'Data order'!Z:AA,2,0)","v":{"$error":"#N/A"}},null,null,null,null,null,null,null,null,{"$f":"VLOOKUP(N752,Tabel10[[korte omschrijving]:[MCC3_CODE]],2,0)","v":{"$error":"#N/A"}},{"$f":"VLOOKUP(N752,'Data order'!M:O,3,0)","v":{"$error":"#N/A"}},null,null,null,{"$f":"IFERROR(\n  IF(R752=\"Big&Tall\",\n      VLOOKUP(S752, 'Data order'!$AC$92:$AD$101, 2, FALSE),\n      IF(R752=\"Boordmaat\",\n          VLOOKUP(S752, 'Data order'!$AC$102:$AD$116, 2, FALSE),\n          VLOOKUP(S752, 'Data order'!$AC$2:$AD$91, 2, FALSE)\n      )\n  ),\n\"\")","v":""},null,null,null,null,"EUR",null,null,null,{"$error":"#DIV/0!"},0,0,null,"","","","","","","","","","",null,null,null,null,null,null,null,null,null,null,null,null,null,null,null,null,null,"ZWO"]
[null,null,null,null,null,{"$f":"VLOOKUP(G753,'Data order'!Z:AA,2,0)","v":{"$error":"#N/A"}},null,null,null,null,null,null,null,null,{"$f":"VLOOKUP(N753,Tabel10[[korte omschrijving]:[MCC3_CODE]],2,0)","v":{"$error":"#N/A"}},{"$f":"VLOOKUP(N753,'Data order'!M:O,3,0)","v":{"$error":"#N/A"}},null,null,null,{"$f":"IFERROR(\n  IF(R753=\"Big&Tall\",\n      VLOOKUP(S753, 'Data order'!$AC$92:$AD$101, 2, FALSE),\n      IF(R753=\"Boordmaat\",\n          VLOOKUP(S753, 'Data order'!$AC$102:$AD$116, 2, FALSE),\n          VLOOKUP(S753, 'Data order'!$AC$2:$AD$91, 2, FALSE)\n      )\n  ),\n\"\")","v":""},null,null,null,null,"EUR",null,null,null,{"$error":"#DIV/0!"},0,0,null,"","","","","","","","","","",null,null,null,null,null,null,null,null,null,null,null,null,null,null,null,null,null,"ZWO"]
[null,null,null,null,null,{"$f":"VLOOKUP(G754,'Data order'!Z:AA,2,0)","v":{"$error":"#N/A"}},null,null,null,null,null,null,null,null,{"$f":"VLOOKUP(N754,Tabel10[[korte omschrijving]:[MCC3_CODE]],2,0)","v":{"$error":"#N/A"}},{"$f":"VLOOKUP(N754,'Data order'!M:O,3,0)","v":{"$error":"#N/A"}},null,null,null,{"$f":"IFERROR(\n  IF(R754=\"Big&Tall\",\n      VLOOKUP(S754, 'Data order'!$AC$92:$AD$101, 2, FALSE),\n      IF(R754=\"Boordmaat\",\n          VLOOKUP(S754, 'Data order'!$AC$102:$AD$116, 2, FALSE),\n          VLOOKUP(S754, 'Data order'!$AC$2:$AD$91, 2, FALSE)\n      )\n  ),\n\"\")","v":""},null,null,null,null,"EUR",null,null,null,{"$error":"#DIV/0!"},0,0,null,"","","","","","","","","","",null,null,null,null,null,null,null,null,null,null,null,null,null,null,null,null,null,"ZWO"]
[null,null,null,null,null,{"$f":"VLOOKUP(G755,'Data order'!Z:AA,2,0)","v":{"$error":"#N/A"}},null,null,null,null,null,null,null,null,{"$f":"VLOOKUP(N755,Tabel10[[korte omschrijving]:[MCC3_CODE]],2,0)","v":{"$error":"#N/A"}},{"$f":"VLOOKUP(N755,'Data order'!M:O,3,0)","v":{"$error":"#N/A"}},null,null,null,{"$f":"IFERROR(\n  IF(R755=\"Big&Tall\",\n      VLOOKUP(S755, 'Data order'!$AC$92:$AD$101, 2, FALSE),\n      IF(R755=\"Boordmaat\",\n          VLOOKUP(S755, 'Data order'!$AC$102:$AD$116, 2, FALSE),\n          VLOOKUP(S755, 'Data order'!$AC$2:$AD$91, 2, FALSE)\n      )\n  ),\n\"\")","v":""},null,null,null,null,"EUR",null,null,null,{"$error":"#DIV/0!"},0,0,null,"","","","","","","","","","",null,null,null,null,null,null,null,null,null,null,null,null,null,null,null,null,null,"ZWO"]
[null,null,null,null,null,{"$f":"VLOOKUP(G756,'Data order'!Z:AA,2,0)","v":{"$error":"#N/A"}},null,null,null,null,null,null,null,null,{"$f":"VLOOKUP(N756,Tabel10[[korte omschrijving]:[MCC3_CODE]],2,0)","v":{"$error":"#N/A"}},{"$f":"VLOOKUP(N756,'Data order'!M:O,3,0)","v":{"$error":"#N/A"}},null,null,null,{"$f":"IFERROR(\n  IF(R756=\"Big&Tall\",\n      VLOOKUP(S756, 'Data order'!$AC$92:$AD$101, 2, FALSE),\n      IF(R756=\"Boordmaat\",\n          VLOOKUP(S756, 'Data order'!$AC$102:$AD$116, 2, FALSE),\n          VLOOKUP(S756, 'Data order'!$AC$2:$AD$91, 2, FALSE)\n      )\n  ),\n\"\")","v":""},null,0,null,null,"EUR",null,null,null,{"$f":"AB756/Z756","v":{"$error":"#DIV/0!"}},{"$f":"U756*Z756","v":0},{"$f":"U756*AB756","v":0},null,"","","","","","","","","","",null,null,null,null,null,null,null,null,null,null,null,null,null,null,null,null,null,"ZWO"]
[null,null,null,null,null,{"$f":"VLOOKUP(G757,'Data order'!Z:AA,2,0)","v":{"$error":"#N/A"}},null,null,null,null,null,null,null,null,{"$f":"VLOOKUP(N757,Tabel10[[korte omschrijving]:[MCC3_CODE]],2,0)","v":{"$error":"#N/A"}},{"$f":"VLOOKUP(N757,'Data order'!M:O,3,0)","v":{"$error":"#N/A"}},null,null,null,{"$f":"IFERROR(\n  IF(R757=\"Big&Tall\",\n      VLOOKUP(S757, 'Data order'!$AC$92:$AD$101, 2, FALSE),\n      IF(R757=\"Boordmaat\",\n          VLOOKUP(S757, 'Data order'!$AC$102:$AD$116, 2, FALSE),\n          VLOOKUP(S757, 'Data order'!$AC$2:$AD$91, 2, FALSE)\n      )\n  ),\n\"\")","v":""},null,null,null,null,"EUR",null,null,null,{"$error":"#DIV/0!"},0,0,null,"","","","","","","","","","",null,null,null,null,null,null,null,null,null,null,null,null,null,null,null,null,null,"ZWO"]
[null,null,null,null,null,{"$f":"VLOOKUP(G758,'Data order'!Z:AA,2,0)","v":{"$error":"#N/A"}},null,null,null,null,null,null,null,null,{"$f":"VLOOKUP(N758,Tabel10[[korte omschrijving]:[MCC3_CODE]],2,0)","v":{"$error":"#N/A"}},{"$f":"VLOOKUP(N758,'Data order'!M:O,3,0)","v":{"$error":"#N/A"}},null,null,null,{"$f":"IFERROR(\n  IF(R758=\"Big&Tall\",\n      VLOOKUP(S758, 'Data order'!$AC$92:$AD$101, 2, FALSE),\n      IF(R758=\"Boordmaat\",\n          VLOOKUP(S758, 'Data order'!$AC$102:$AD$116, 2, FALSE),\n          VLOOKUP(S758, 'Data order'!$AC$2:$AD$91, 2, FALSE)\n      )\n  ),\n\"\")","v":""},null,null,null,null,"EUR",null,null,null,{"$error":"#DIV/0!"},0,0,null,"","","","","","","","","","",null,null,null,null,null,null,null,null,null,null,null,null,null,null,null,null,null,"ZWO"]
[null,null,null,null,null,{"$f":"VLOOKUP(G759,'Data order'!Z:AA,2,0)","v":{"$error":"#N/A"}},null,null,null,null,null,null,null,null,{"$f":"VLOOKUP(N759,Tabel10[[korte omschrijving]:[MCC3_CODE]],2,0)","v":{"$error":"#N/A"}},{"$f":"VLOOKUP(N759,'Data order'!M:O,3,0)","v":{"$error":"#N/A"}},null,null,null,{"$f":"IFERROR(\n  IF(R759=\"Big&Tall\",\n      VLOOKUP(S759, 'Data order'!$AC$92:$AD$101, 2, FALSE),\n      IF(R759=\"Boordmaat\",\n          VLOOKUP(S759, 'Data order'!$AC$102:$AD$116, 2, FALSE),\n          VLOOKUP(S759, 'Data order'!$AC$2:$AD$91, 2, FALSE)\n      )\n  ),\n\"\")","v":""},null,null,null,null,"EUR",null,null,null,{"$error":"#DIV/0!"},0,0,null,"","","","","","","","","","",null,null,null,null,null,null,null,null,null,null,null,null,null,null,null,null,null,"ZWO"]
[null,null,null,null,null,{"$f":"VLOOKUP(G760,'Data order'!Z:AA,2,0)","v":{"$error":"#N/A"}},null,null,null,null,null,null,null,null,{"$f":"VLOOKUP(N760,Tabel10[[korte omschrijving]:[MCC3_CODE]],2,0)","v":{"$error":"#N/A"}},{"$f":"VLOOKUP(N760,'Data order'!M:O,3,0)","v":{"$error":"#N/A"}},null,null,null,{"$f":"IFERROR(\n  IF(R760=\"Big&Tall\",\n      VLOOKUP(S760, 'Data order'!$AC$92:$AD$101, 2, FALSE),\n      IF(R760=\"Boordmaat\",\n          VLOOKUP(S760, 'Data order'!$AC$102:$AD$116, 2, FALSE),\n          VLOOKUP(S760, 'Data order'!$AC$2:$AD$91, 2, FALSE)\n      )\n  ),\n\"\")","v":""},null,null,null,null,"EUR",null,null,null,{"$error":"#DIV/0!"},0,0,null,{"$f":"IF(AF760 <> \"\",\n    IF(ISNUMBER(VALUE(LEFT(AF760, FIND(\"%\", AF760)-1))),\n        VALUE(LEFT(AF760, FIND(\"%\", AF760)-1)),\n        \"Invalid format\"),\n    \"\")","v":""},{"$f":"IF(AF760 <> \"\",\n    IF(ISNUMBER(VALUE(LEFT(AF760, FIND(\"%\", AF760)-1))) * ISNUMBER(FIND(\"%\", AF760 & \"wol\")) > 0,\n        TRIM(MID(AF760, FIND(\"%\", AF760)+1, FIND(\"/\", AF760 & \"/\")-FIND(\"%\", AF760)-1)),\n        \"Invalid format\"),\n    \"\")","v":""},{"$f":"IF(AF760 <> \"\",\n    IF(ISNUMBER(VALUE(MID(AF760, FIND(\"/\", AF760) + 1, FIND(\"%\", AF760, FIND(\"/\", AF760)) - FIND(\"/\", AF760) - 1))),\n        VALUE(MID(AF760, FIND(\"/\", AF760) + 1, FIND(\"%\", AF760, FIND(\"/\", AF760)) - FIND(\"/\", AF760) - 1)),\n        \"\"),\n    \"\")","v":""},{"$f":"IF(AF760 <> \"\",\n    IFERROR(TRIM(MID(AF760, FIND(\"%\", AF760, FIND(\"/\", AF760)+1)+2,\n        IFERROR(FIND(\"/\", AF760 & \"/\", FIND(\"/\", AF760)+1)-FIND(\"%\", AF760, FIND(\"/\", AF760)+1)-2, LEN(AF760)-FIND(\"%\", AF760, FIND(\"/\", AF760)+1)-1))),\n        \"\"),\n    \"\")","v":""},{"$f":"IF(AF760 <> \"\",\n    IF(ISNUMBER(VALUE(MID(AF760, FIND(\"/\", AF760, FIND(\"/\", AF760)+1) + 1, FIND(\"%\", AF760, FIND(\"/\", AF760, FIND(\"/\", AF760)+1)) - FIND(\"/\", AF760, FIND(\"/\", AF760)+1) - 1))),\n        VALUE(MID(AF760, FIND(\"/\", AF760, FIND(\"/\", AF760)+1) + 1, FIND(\"%\", AF760, FIND(\"/\", AF760, FIND(\"/\", AF760)+1)) - FIND(\"/\", AF760, FIND(\"/\", AF760)+1) - 1)),\n        \"\"),\n    \"\")","v":""},{"$f":"IF(AF760 <> \"\",\n    IFERROR(\n        TRIM(MID(AF760,\n            FIND(\"%\", AF760, FIND(\"%\", AF760, FIND(\"%\", AF760)+1)+1)+1,\n            FIND(\"/\", AF760 & \"/\", FIND(\"%\", AF760, FIND(\"%\", AF760, FIND(\"%\", AF760)+1)+1))-FIND(\"%\", AF760, FIND(\"%\", AF760, FIND(\"%\", AF760)+1)+1)-1)\n        ),\n        \"\"\n    ),\n    \"\"\n)","v":""},{"$f":"IF(AF760 <> \"\",\n    IF(ISNUMBER(VALUE(MID(AF760, FIND(\"/\", AF760, FIND(\"/\", AF760, FIND(\"/\", AF760)+1)+1) + 1, FIND(\"%\", AF760, FIND(\"/\", AF760, FIND(\"/\", AF760, FIND(\"/\", AF760)+1)+1)) - FIND(\"/\", AF760, FIND(\"/\", AF760, FIND(\"/\", AF760)+1)+1) - 1))),\n        VALUE(MID(AF760, FIND(\"/\", AF760, FIND(\"/\", AF760, FIND(\"/\", AF760)+1)+1) + 1, FIND(\"%\", AF760, FIND(\"/\", AF760, FIND(\"/\", AF760, FIND(\"/\", AF760)+1)+1)) - FIND(\"/\", AF760, FIND(\"/\", AF760, FIND(\"/\", AF760)+1)+1) - 1)),\n        \"\"),\n    \"\")","v":""},{"$f":"IF(AF760 <> \"\",\n    IFERROR(TRIM(MID(AF760, FIND(\"%\", AF760, FIND(\"/\", AF760, FIND(\"/\", AF760, FIND(\"/\", AF760)+1)+1)+1)+2,\n        IFERROR(FIND(\"/\", AF760, FIND(\"/\", AF760, FIND(\"/\", AF760, FIND(\"/\", AF760)+1)+1)+1)-FIND(\"%\", AF760, FIND(\"/\", AF760, FIND(\"/\", AF760, FIND(\"/\", AF760)+1)+1)+1)-2, LEN(AF760)-FIND(\"%\", AF760, FIND(\"/\", AF760, FIND(\"/\", AF760, FIND(\"/\", AF760)+1)+1)+1)-1))),\n        \"\"),\n    \"\")","v":""},{"$f":"IF(AF760 <> \"\",\n    IF(ISNUMBER(VALUE(MID(AF760, FIND(\"/\", AF760, FIND(\"/\", AF760, FIND(\"/\", AF760, FIND(\"/\", AF760)+1)+1)+1) + 1, FIND(\"%\", AF760, FIND(\"/\", AF760, FIND(\"/\", AF760, FIND(\"/\", AF760, FIND(\"/\", AF760)+1)+1)+1)) - FIND(\"/\", AF760, FIND(\"/\", AF760, FIND(\"/\", AF760, FIND(\"/\", AF760)+1)+1)+1) - 1))),\n        VALUE(MID(AF760, FIND(\"/\", AF760, FIND(\"/\", AF760, FIND(\"/\", AF760, FIND(\"/\", AF760)+1)+1)+1) + 1, FIND(\"%\", AF760, FIND(\"/\", AF760, FIND(\"/\", AF760, FIND(\"/\", AF760, FIND(\"/\", AF760)+1)+1)+1)) - FIND(\"/\", AF760, FIND(\"/\", AF760, FIND(\"/\", AF760, FIND(\"/\", AF760)+1)+1)+1) - 1)),\n        \"\"),\n    \"\")","v":""},{"$f":"IF(AF760 = \"\", \"\",\n    IFERROR(TRIM(\n        MID(\n            AF760,\n            FIND(\"%\", AF760, FIND(\"/\", AF760, FIND(\"/\", AF760, FIND(\"/\", AF760, FIND(\"/\", AF760)+1)+1)+1)+1) + 1,\n            FIND(\"/\", AF760 & \"/\", FIND(\"%\", AF760, FIND(\"/\", AF760, FIND(\"/\", AF760, FIND(\"/\", AF760, FIND(\"/\", AF760)+1)+1)+1)+1)) -\n            FIND(\"%\", AF760, FIND(\"/\", AF760, FIND(\"/\", AF760, FIND(\"/\", AF760, FIND(\"/\", AF760)+1)+1)+1)+1) - 1\n        )\n    ),\n    \"\")\n)","v":""},null,null,null,null,null,null,null,null,null,null,null,null,null,null,null,null,null,"ZWO"]
[null,null,null,null,null,{"$f":"VLOOKUP(G761,'Data order'!Z:AA,2,0)","v":{"$error":"#N/A"}},null,null,null,null,null,null,null,null,{"$f":"VLOOKUP(N761,Tabel10[[korte omschrijving]:[MCC3_CODE]],2,0)","v":{"$error":"#N/A"}},{"$f":"VLOOKUP(N761,'Data order'!M:O,3,0)","v":{"$error":"#N/A"}},null,null,null,{"$f":"IFERROR(\n  IF(R761=\"Big&Tall\",\n      VLOOKUP(S761, 'Data order'!$AC$92:$AD$101, 2, FALSE),\n      IF(R761=\"Boordmaat\",\n          VLOOKUP(S761, 'Data order'!$AC$102:$AD$116, 2, FALSE),\n          VLOOKUP(S761, 'Data order'!$AC$2:$AD$91, 2, FALSE)\n      )\n  ),\n\"\")","v":""},null,null,null,null,"EUR",null,null,null,{"$error":"#DIV/0!"},0,0,null,"","","","","","","","","","",null,null,null,null,null,null,null,null,null,null,null,null,null,null,null,null,null,"ZWO"]
[null,null,null,null,null,{"$f":"VLOOKUP(G762,'Data order'!Z:AA,2,0)","v":{"$error":"#N/A"}},null,null,null,null,null,null,null,null,{"$f":"VLOOKUP(N762,Tabel10[[korte omschrijving]:[MCC3_CODE]],2,0)","v":{"$error":"#N/A"}},{"$f":"VLOOKUP(N762,'Data order'!M:O,3,0)","v":{"$error":"#N/A"}},null,null,null,{"$f":"IFERROR(\n  IF(R762=\"Big&Tall\",\n      VLOOKUP(S762, 'Data order'!$AC$92:$AD$101, 2, FALSE),\n      IF(R762=\"Boordmaat\",\n          VLOOKUP(S762, 'Data order'!$AC$102:$AD$116, 2, FALSE),\n          VLOOKUP(S762, 'Data order'!$AC$2:$AD$91, 2, FALSE)\n      )\n  ),\n\"\")","v":""},null,0,null,null,"EUR",null,null,null,{"$f":"AB762/Z762","v":{"$error":"#DIV/0!"}},{"$f":"U762*Z762","v":0},{"$f":"U762*AB762","v":0},null,"","","","","","","","","","",null,null,null,null,null,null,null,null,null,null,null,null,null,null,null,null,null,"ZWO"]
[null,null,null,null,null,{"$f":"VLOOKUP(G763,'Data order'!Z:AA,2,0)","v":{"$error":"#N/A"}},null,null,null,null,null,null,null,null,{"$f":"VLOOKUP(N763,Tabel10[[korte omschrijving]:[MCC3_CODE]],2,0)","v":{"$error":"#N/A"}},{"$f":"VLOOKUP(N763,'Data order'!M:O,3,0)","v":{"$error":"#N/A"}},null,null,null,{"$f":"IFERROR(\n  IF(R763=\"Big&Tall\",\n      VLOOKUP(S763, 'Data order'!$AC$92:$AD$101, 2, FALSE),\n      IF(R763=\"Boordmaat\",\n          VLOOKUP(S763, 'Data order'!$AC$102:$AD$116, 2, FALSE),\n          VLOOKUP(S763, 'Data order'!$AC$2:$AD$91, 2, FALSE)\n      )\n  ),\n\"\")","v":""},null,null,null,null,"EUR",null,null,null,{"$error":"#DIV/0!"},0,0,null,"","","","","","","","","","",null,null,null,null,null,null,null,null,null,null,null,null,null,null,null,null,null,"ZWO"]
[null,null,null,null,null,{"$f":"VLOOKUP(G764,'Data order'!Z:AA,2,0)","v":{"$error":"#N/A"}},null,null,null,null,null,null,null,null,{"$f":"VLOOKUP(N764,Tabel10[[korte omschrijving]:[MCC3_CODE]],2,0)","v":{"$error":"#N/A"}},{"$f":"VLOOKUP(N764,'Data order'!M:O,3,0)","v":{"$error":"#N/A"}},null,null,null,{"$f":"IFERROR(\n  IF(R764=\"Big&Tall\",\n      VLOOKUP(S764, 'Data order'!$AC$92:$AD$101, 2, FALSE),\n      IF(R764=\"Boordmaat\",\n          VLOOKUP(S764, 'Data order'!$AC$102:$AD$116, 2, FALSE),\n          VLOOKUP(S764, 'Data order'!$AC$2:$AD$91, 2, FALSE)\n      )\n  ),\n\"\")","v":""},null,null,null,null,"EUR",null,null,null,{"$error":"#DIV/0!"},0,0,null,"","","","","","","","","","",null,null,null,null,null,null,null,null,null,null,null,null,null,null,null,null,null,"ZWO"]
[null,null,null,null,null,{"$f":"VLOOKUP(G765,'Data order'!Z:AA,2,0)","v":{"$error":"#N/A"}},null,null,null,null,null,null,null,null,{"$f":"VLOOKUP(N765,Tabel10[[korte omschrijving]:[MCC3_CODE]],2,0)","v":{"$error":"#N/A"}},{"$f":"VLOOKUP(N765,'Data order'!M:O,3,0)","v":{"$error":"#N/A"}},null,null,null,{"$f":"IFERROR(\n  IF(R765=\"Big&Tall\",\n      VLOOKUP(S765, 'Data order'!$AC$92:$AD$101, 2, FALSE),\n      IF(R765=\"Boordmaat\",\n          VLOOKUP(S765, 'Data order'!$AC$102:$AD$116, 2, FALSE),\n          VLOOKUP(S765, 'Data order'!$AC$2:$AD$91, 2, FALSE)\n      )\n  ),\n\"\")","v":""},null,null,null,null,"EUR",null,null,null,{"$error":"#DIV/0!"},0,0,null,"","","","","","","","","","",null,null,null,null,null,null,null,null,null,null,null,null,null,null,null,null,null,"ZWO"]
[null,null,null,null,null,{"$f":"VLOOKUP(G766,'Data order'!Z:AA,2,0)","v":{"$error":"#N/A"}},null,null,null,null,null,null,null,null,{"$f":"VLOOKUP(N766,Tabel10[[korte omschrijving]:[MCC3_CODE]],2,0)","v":{"$error":"#N/A"}},{"$f":"VLOOKUP(N766,'Data order'!M:O,3,0)","v":{"$error":"#N/A"}},null,null,null,{"$f":"IFERROR(\n  IF(R766=\"Big&Tall\",\n      VLOOKUP(S766, 'Data order'!$AC$92:$AD$101, 2, FALSE),\n      IF(R766=\"Boordmaat\",\n          VLOOKUP(S766, 'Data order'!$AC$102:$AD$116, 2, FALSE),\n          VLOOKUP(S766, 'Data order'!$AC$2:$AD$91, 2, FALSE)\n      )\n  ),\n\"\")","v":""},null,null,null,null,"EUR",null,null,null,{"$error":"#DIV/0!"},0,0,null,"","","","","","","","","","",null,null,null,null,null,null,null,null,null,null,null,null,null,null,null,null,null,"ZWO"]
[null,null,null,null,null,{"$f":"VLOOKUP(G767,'Data order'!Z:AA,2,0)","v":{"$error":"#N/A"}},null,null,null,null,null,null,null,null,{"$f":"VLOOKUP(N767,Tabel10[[korte omschrijving]:[MCC3_CODE]],2,0)","v":{"$error":"#N/A"}},{"$f":"VLOOKUP(N767,'Data order'!M:O,3,0)","v":{"$error":"#N/A"}},null,null,null,{"$f":"IFERROR(\n  IF(R767=\"Big&Tall\",\n      VLOOKUP(S767, 'Data order'!$AC$92:$AD$101, 2, FALSE),\n      IF(R767=\"Boordmaat\",\n          VLOOKUP(S767, 'Data order'!$AC$102:$AD$116, 2, FALSE),\n          VLOOKUP(S767, 'Data order'!$AC$2:$AD$91, 2, FALSE)\n      )\n  ),\n\"\")","v":""},null,null,null,null,"EUR",null,null,null,{"$error":"#DIV/0!"},0,0,null,"","","","","","","","","","",null,null,null,null,null,null,null,null,null,null,null,null,null,null,null,null,null,"ZWO"]
[null,null,null,null,null,{"$f":"VLOOKUP(G768,'Data order'!Z:AA,2,0)","v":{"$error":"#N/A"}},null,null,null,null,null,null,null,null,{"$f":"VLOOKUP(N768,Tabel10[[korte omschrijving]:[MCC3_CODE]],2,0)","v":{"$error":"#N/A"}},{"$f":"VLOOKUP(N768,'Data order'!M:O,3,0)","v":{"$error":"#N/A"}},null,null,null,{"$f":"IFERROR(\n  IF(R768=\"Big&Tall\",\n      VLOOKUP(S768, 'Data order'!$AC$92:$AD$101, 2, FALSE),\n      IF(R768=\"Boordmaat\",\n          VLOOKUP(S768, 'Data order'!$AC$102:$AD$116, 2, FALSE),\n          VLOOKUP(S768, 'Data order'!$AC$2:$AD$91, 2, FALSE)\n      )\n  ),\n\"\")","v":""},null,{"$f":"SUM(U768:U773)","v":0},null,null,"EUR",null,null,null,{"$f":"AB768/Z768","v":{"$error":"#DIV/0!"}},{"$f":"U768*Z768","v":0},{"$f":"U768*AB768","v":0},null,"","","","","","","","","","",null,null,null,null,null,null,null,null,null,null,null,null,null,null,null,null,null,"ZWO"]
[null,null,null,null,null,{"$f":"VLOOKUP(G769,'Data order'!Z:AA,2,0)","v":{"$error":"#N/A"}},null,null,null,null,null,null,null,null,{"$f":"VLOOKUP(N769,Tabel10[[korte omschrijving]:[MCC3_CODE]],2,0)","v":{"$error":"#N/A"}},{"$f":"VLOOKUP(N769,'Data order'!M:O,3,0)","v":{"$error":"#N/A"}},null,null,null,{"$f":"IFERROR(\n  IF(R769=\"Big&Tall\",\n      VLOOKUP(S769, 'Data order'!$AC$92:$AD$101, 2, FALSE),\n      IF(R769=\"Boordmaat\",\n          VLOOKUP(S769, 'Data order'!$AC$102:$AD$116, 2, FALSE),\n          VLOOKUP(S769, 'Data order'!$AC$2:$AD$91, 2, FALSE)\n      )\n  ),\n\"\")","v":""},null,null,null,null,"EUR",null,null,null,{"$error":"#DIV/0!"},0,0,null,"","","","","","","","","","",null,null,null,null,null,null,null,null,null,null,null,null,null,null,null,null,null,"ZWO"]
[null,null,null,null,null,{"$f":"VLOOKUP(G770,'Data order'!Z:AA,2,0)","v":{"$error":"#N/A"}},null,null,null,null,null,null,null,null,{"$f":"VLOOKUP(N770,Tabel10[[korte omschrijving]:[MCC3_CODE]],2,0)","v":{"$error":"#N/A"}},{"$f":"VLOOKUP(N770,'Data order'!M:O,3,0)","v":{"$error":"#N/A"}},null,null,null,{"$f":"IFERROR(\n  IF(R770=\"Big&Tall\",\n      VLOOKUP(S770, 'Data order'!$AC$92:$AD$101, 2, FALSE),\n      IF(R770=\"Boordmaat\",\n          VLOOKUP(S770, 'Data order'!$AC$102:$AD$116, 2, FALSE),\n          VLOOKUP(S770, 'Data order'!$AC$2:$AD$91, 2, FALSE)\n      )\n  ),\n\"\")","v":""},null,null,null,null,"EUR",null,null,null,{"$error":"#DIV/0!"},0,0,null,"","","","","","","","","","",null,null,null,null,null,null,null,null,null,null,null,null,null,null,null,null,null,"ZWO"]
[null,null,null,null,null,{"$f":"VLOOKUP(G771,'Data order'!Z:AA,2,0)","v":{"$error":"#N/A"}},null,null,null,null,null,null,null,null,{"$f":"VLOOKUP(N771,Tabel10[[korte omschrijving]:[MCC3_CODE]],2,0)","v":{"$error":"#N/A"}},{"$f":"VLOOKUP(N771,'Data order'!M:O,3,0)","v":{"$error":"#N/A"}},null,null,null,{"$f":"IFERROR(\n  IF(R771=\"Big&Tall\",\n      VLOOKUP(S771, 'Data order'!$AC$92:$AD$101, 2, FALSE),\n      IF(R771=\"Boordmaat\",\n          VLOOKUP(S771, 'Data order'!$AC$102:$AD$116, 2, FALSE),\n          VLOOKUP(S771, 'Data order'!$AC$2:$AD$91, 2, FALSE)\n      )\n  ),\n\"\")","v":""},null,null,null,null,"EUR",null,null,null,{"$error":"#DIV/0!"},0,0,null,"","","","","","","","","","",null,null,null,null,null,null,null,null,null,null,null,null,null,null,null,null,null,"ZWO"]
[null,null,null,null,null,{"$f":"VLOOKUP(G772,'Data order'!Z:AA,2,0)","v":{"$error":"#N/A"}},null,null,null,null,null,null,null,null,{"$f":"VLOOKUP(N772,Tabel10[[korte omschrijving]:[MCC3_CODE]],2,0)","v":{"$error":"#N/A"}},{"$f":"VLOOKUP(N772,'Data order'!M:O,3,0)","v":{"$error":"#N/A"}},null,null,null,{"$f":"IFERROR(\n  IF(R772=\"Big&Tall\",\n      VLOOKUP(S772, 'Data order'!$AC$92:$AD$101, 2, FALSE),\n      IF(R772=\"Boordmaat\",\n          VLOOKUP(S772, 'Data order'!$AC$102:$AD$116, 2, FALSE),\n          VLOOKUP(S772, 'Data order'!$AC$2:$AD$91, 2, FALSE)\n      )\n  ),\n\"\")","v":""},null,null,null,null,"EUR",null,null,null,{"$error":"#DIV/0!"},0,0,null,"","","","","","","","","","",null,null,null,null,null,null,null,null,null,null,null,null,null,null,null,null,null,"ZWO"]
[null,null,null,null,null,{"$f":"VLOOKUP(G773,'Data order'!Z:AA,2,0)","v":{"$error":"#N/A"}},null,null,null,null,null,null,null,null,{"$f":"VLOOKUP(N773,Tabel10[[korte omschrijving]:[MCC3_CODE]],2,0)","v":{"$error":"#N/A"}},{"$f":"VLOOKUP(N773,'Data order'!M:O,3,0)","v":{"$error":"#N/A"}},null,null,null,{"$f":"IFERROR(\n  IF(R773=\"Big&Tall\",\n      VLOOKUP(S773, 'Data order'!$AC$92:$AD$101, 2, FALSE),\n      IF(R773=\"Boordmaat\",\n          VLOOKUP(S773, 'Data order'!$AC$102:$AD$116, 2, FALSE),\n          VLOOKUP(S773, 'Data order'!$AC$2:$AD$91, 2, FALSE)\n      )\n  ),\n\"\")","v":""},null,null,null,null,"EUR",null,null,null,{"$error":"#DIV/0!"},0,0,null,"","","","","","","","","","",null,null,null,null,null,null,null,null,null,null,null,null,null,null,null,null,null,"ZWO"]
[null,null,null,null,null,{"$f":"VLOOKUP(G774,'Data order'!Z:AA,2,0)","v":{"$error":"#N/A"}},null,null,null,null,null,null,null,null,{"$f":"VLOOKUP(N774,Tabel10[[korte omschrijving]:[MCC3_CODE]],2,0)","v":{"$error":"#N/A"}},{"$f":"VLOOKUP(N774,'Data order'!M:O,3,0)","v":{"$error":"#N/A"}},null,null,null,{"$f":"IFERROR(\n  IF(R774=\"Big&Tall\",\n      VLOOKUP(S774, 'Data order'!$AC$92:$AD$101, 2, FALSE),\n      IF(R774=\"Boordmaat\",\n          VLOOKUP(S774, 'Data order'!$AC$102:$AD$116, 2, FALSE),\n          VLOOKUP(S774, 'Data order'!$AC$2:$AD$91, 2, FALSE)\n      )\n  ),\n\"\")","v":""},null,0,null,null,"EUR",null,null,null,{"$f":"AB774/Z774","v":{"$error":"#DIV/0!"}},{"$f":"U774*Z774","v":0},{"$f":"U774*AB774","v":0},null,"","","","","","","","","","",null,null,null,null,null,null,null,null,null,null,null,null,null,null,null,null,null,"ZWO"]
[null,null,null,null,null,{"$f":"VLOOKUP(G775,'Data order'!Z:AA,2,0)","v":{"$error":"#N/A"}},null,null,null,null,null,null,null,null,{"$f":"VLOOKUP(N775,Tabel10[[korte omschrijving]:[MCC3_CODE]],2,0)","v":{"$error":"#N/A"}},{"$f":"VLOOKUP(N775,'Data order'!M:O,3,0)","v":{"$error":"#N/A"}},null,null,null,{"$f":"IFERROR(\n  IF(R775=\"Big&Tall\",\n      VLOOKUP(S775, 'Data order'!$AC$92:$AD$101, 2, FALSE),\n      IF(R775=\"Boordmaat\",\n          VLOOKUP(S775, 'Data order'!$AC$102:$AD$116, 2, FALSE),\n          VLOOKUP(S775, 'Data order'!$AC$2:$AD$91, 2, FALSE)\n      )\n  ),\n\"\")","v":""},null,null,null,null,"EUR",null,null,null,{"$error":"#DIV/0!"},0,0,null,"","","","","","","","","","",null,null,null,null,null,null,null,null,null,null,null,null,null,null,null,null,null,"ZWO"]
[null,null,null,null,null,{"$f":"VLOOKUP(G776,'Data order'!Z:AA,2,0)","v":{"$error":"#N/A"}},null,null,null,null,null,null,null,null,{"$f":"VLOOKUP(N776,Tabel10[[korte omschrijving]:[MCC3_CODE]],2,0)","v":{"$error":"#N/A"}},{"$f":"VLOOKUP(N776,'Data order'!M:O,3,0)","v":{"$error":"#N/A"}},null,null,null,{"$f":"IFERROR(\n  IF(R776=\"Big&Tall\",\n      VLOOKUP(S776, 'Data order'!$AC$92:$AD$101, 2, FALSE),\n      IF(R776=\"Boordmaat\",\n          VLOOKUP(S776, 'Data order'!$AC$102:$AD$116, 2, FALSE),\n          VLOOKUP(S776, 'Data order'!$AC$2:$AD$91, 2, FALSE)\n      )\n  ),\n\"\")","v":""},null,null,null,null,"EUR",null,null,null,{"$error":"#DIV/0!"},0,0,null,"","","","","","","","","","",null,null,null,null,null,null,null,null,null,null,null,null,null,null,null,null,null,"ZWO"]
[null,null,null,null,null,{"$f":"VLOOKUP(G777,'Data order'!Z:AA,2,0)","v":{"$error":"#N/A"}},null,null,null,null,null,null,null,null,{"$f":"VLOOKUP(N777,Tabel10[[korte omschrijving]:[MCC3_CODE]],2,0)","v":{"$error":"#N/A"}},{"$f":"VLOOKUP(N777,'Data order'!M:O,3,0)","v":{"$error":"#N/A"}},null,null,null,{"$f":"IFERROR(\n  IF(R777=\"Big&Tall\",\n      VLOOKUP(S777, 'Data order'!$AC$92:$AD$101, 2, FALSE),\n      IF(R777=\"Boordmaat\",\n          VLOOKUP(S777, 'Data order'!$AC$102:$AD$116, 2, FALSE),\n          VLOOKUP(S777, 'Data order'!$AC$2:$AD$91, 2, FALSE)\n      )\n  ),\n\"\")","v":""},null,null,null,null,"EUR",null,null,null,{"$error":"#DIV/0!"},0,0,null,"","","","","","","","","","",null,null,null,null,null,null,null,null,null,null,null,null,null,null,null,null,null,"ZWO"]
[null,null,null,null,null,{"$f":"VLOOKUP(G778,'Data order'!Z:AA,2,0)","v":{"$error":"#N/A"}},null,null,null,null,null,null,null,null,{"$f":"VLOOKUP(N778,Tabel10[[korte omschrijving]:[MCC3_CODE]],2,0)","v":{"$error":"#N/A"}},{"$f":"VLOOKUP(N778,'Data order'!M:O,3,0)","v":{"$error":"#N/A"}},null,null,null,{"$f":"IFERROR(\n  IF(R778=\"Big&Tall\",\n      VLOOKUP(S778, 'Data order'!$AC$92:$AD$101, 2, FALSE),\n      IF(R778=\"Boordmaat\",\n          VLOOKUP(S778, 'Data order'!$AC$102:$AD$116, 2, FALSE),\n          VLOOKUP(S778, 'Data order'!$AC$2:$AD$91, 2, FALSE)\n      )\n  ),\n\"\")","v":""},null,null,null,null,"EUR",null,null,null,{"$error":"#DIV/0!"},0,0,null,"","","","","","","","","","",null,null,null,null,null,null,null,null,null,null,null,null,null,null,null,null,null,"ZWO"]
[null,null,null,null,null,{"$f":"VLOOKUP(G779,'Data order'!Z:AA,2,0)","v":{"$error":"#N/A"}},null,null,null,null,null,null,null,null,{"$f":"VLOOKUP(N779,Tabel10[[korte omschrijving]:[MCC3_CODE]],2,0)","v":{"$error":"#N/A"}},{"$f":"VLOOKUP(N779,'Data order'!M:O,3,0)","v":{"$error":"#N/A"}},null,null,null,{"$f":"IFERROR(\n  IF(R779=\"Big&Tall\",\n      VLOOKUP(S779, 'Data order'!$AC$92:$AD$101, 2, FALSE),\n      IF(R779=\"Boordmaat\",\n          VLOOKUP(S779, 'Data order'!$AC$102:$AD$116, 2, FALSE),\n          VLOOKUP(S779, 'Data order'!$AC$2:$AD$91, 2, FALSE)\n      )\n  ),\n\"\")","v":""},null,null,null,null,"EUR",null,null,null,{"$error":"#DIV/0!"},0,0,null,"","","","","","","","","","",null,null,null,null,null,null,null,null,null,null,null,null,null,null,null,null,null,"ZWO"]
[null,null,null,null,null,{"$f":"VLOOKUP(G780,'Data order'!Z:AA,2,0)","v":{"$error":"#N/A"}},null,null,null,null,null,null,null,null,{"$f":"VLOOKUP(N780,Tabel10[[korte omschrijving]:[MCC3_CODE]],2,0)","v":{"$error":"#N/A"}},{"$f":"VLOOKUP(N780,'Data order'!M:O,3,0)","v":{"$error":"#N/A"}},null,null,null,{"$f":"IFERROR(\n  IF(R780=\"Big&Tall\",\n      VLOOKUP(S780, 'Data order'!$AC$92:$AD$101, 2, FALSE),\n      IF(R780=\"Boordmaat\",\n          VLOOKUP(S780, 'Data order'!$AC$102:$AD$116, 2, FALSE),\n          VLOOKUP(S780, 'Data order'!$AC$2:$AD$91, 2, FALSE)\n      )\n  ),\n\"\")","v":""},null,0,null,null,"EUR",null,null,null,{"$f":"AB780/Z780","v":{"$error":"#DIV/0!"}},{"$f":"U780*Z780","v":0},{"$f":"U780*AB780","v":0},null,"","","","","","","","","","",null,null,null,null,null,null,null,null,null,null,null,null,null,null,null,null,null,"ZWO"]
[null,null,null,null,null,{"$f":"VLOOKUP(G781,'Data order'!Z:AA,2,0)","v":{"$error":"#N/A"}},null,null,null,null,null,null,null,null,{"$f":"VLOOKUP(N781,Tabel10[[korte omschrijving]:[MCC3_CODE]],2,0)","v":{"$error":"#N/A"}},{"$f":"VLOOKUP(N781,'Data order'!M:O,3,0)","v":{"$error":"#N/A"}},null,null,null,{"$f":"IFERROR(\n  IF(R781=\"Big&Tall\",\n      VLOOKUP(S781, 'Data order'!$AC$92:$AD$101, 2, FALSE),\n      IF(R781=\"Boordmaat\",\n          VLOOKUP(S781, 'Data order'!$AC$102:$AD$116, 2, FALSE),\n          VLOOKUP(S781, 'Data order'!$AC$2:$AD$91, 2, FALSE)\n      )\n  ),\n\"\")","v":""},null,null,null,null,"EUR",null,null,null,{"$error":"#DIV/0!"},0,0,null,"","","","","","","","","","",null,null,null,null,null,null,null,null,null,null,null,null,null,null,null,null,null,"ZWO"]
[null,null,null,null,null,{"$f":"VLOOKUP(G782,'Data order'!Z:AA,2,0)","v":{"$error":"#N/A"}},null,null,null,null,null,null,null,null,{"$f":"VLOOKUP(N782,Tabel10[[korte omschrijving]:[MCC3_CODE]],2,0)","v":{"$error":"#N/A"}},{"$f":"VLOOKUP(N782,'Data order'!M:O,3,0)","v":{"$error":"#N/A"}},null,null,null,{"$f":"IFERROR(\n  IF(R782=\"Big&Tall\",\n      VLOOKUP(S782, 'Data order'!$AC$92:$AD$101, 2, FALSE),\n      IF(R782=\"Boordmaat\",\n          VLOOKUP(S782, 'Data order'!$AC$102:$AD$116, 2, FALSE),\n          VLOOKUP(S782, 'Data order'!$AC$2:$AD$91, 2, FALSE)\n      )\n  ),\n\"\")","v":""},null,null,null,null,"EUR",null,null,null,{"$error":"#DIV/0!"},0,0,null,"","","","","","","","","","",null,null,null,null,null,null,null,null,null,null,null,null,null,null,null,null,null,"ZWO"]
[null,null,null,null,null,{"$f":"VLOOKUP(G783,'Data order'!Z:AA,2,0)","v":{"$error":"#N/A"}},null,null,null,null,null,null,null,null,{"$f":"VLOOKUP(N783,Tabel10[[korte omschrijving]:[MCC3_CODE]],2,0)","v":{"$error":"#N/A"}},{"$f":"VLOOKUP(N783,'Data order'!M:O,3,0)","v":{"$error":"#N/A"}},null,null,null,{"$f":"IFERROR(\n  IF(R783=\"Big&Tall\",\n      VLOOKUP(S783, 'Data order'!$AC$92:$AD$101, 2, FALSE),\n      IF(R783=\"Boordmaat\",\n          VLOOKUP(S783, 'Data order'!$AC$102:$AD$116, 2, FALSE),\n          VLOOKUP(S783, 'Data order'!$AC$2:$AD$91, 2, FALSE)\n      )\n  ),\n\"\")","v":""},null,null,null,null,"EUR",null,null,null,{"$error":"#DIV/0!"},0,0,null,"","","","","","","","","","",null,null,null,null,null,null,null,null,null,null,null,null,null,null,null,null,null,"ZWO"]
[null,null,null,null,null,{"$f":"VLOOKUP(G784,'Data order'!Z:AA,2,0)","v":{"$error":"#N/A"}},null,null,null,null,null,null,null,null,{"$f":"VLOOKUP(N784,Tabel10[[korte omschrijving]:[MCC3_CODE]],2,0)","v":{"$error":"#N/A"}},{"$f":"VLOOKUP(N784,'Data order'!M:O,3,0)","v":{"$error":"#N/A"}},null,null,null,{"$f":"IFERROR(\n  IF(R784=\"Big&Tall\",\n      VLOOKUP(S784, 'Data order'!$AC$92:$AD$101, 2, FALSE),\n      IF(R784=\"Boordmaat\",\n          VLOOKUP(S784, 'Data order'!$AC$102:$AD$116, 2, FALSE),\n          VLOOKUP(S784, 'Data order'!$AC$2:$AD$91, 2, FALSE)\n      )\n  ),\n\"\")","v":""},null,null,null,null,"EUR",null,null,null,{"$error":"#DIV/0!"},0,0,null,"","","","","","","","","","",null,null,null,null,null,null,null,null,null,null,null,null,null,null,null,null,null,"ZWO"]
[null,null,null,null,null,{"$f":"VLOOKUP(G785,'Data order'!Z:AA,2,0)","v":{"$error":"#N/A"}},null,null,null,null,null,null,null,null,{"$f":"VLOOKUP(N785,Tabel10[[korte omschrijving]:[MCC3_CODE]],2,0)","v":{"$error":"#N/A"}},{"$f":"VLOOKUP(N785,'Data order'!M:O,3,0)","v":{"$error":"#N/A"}},null,null,null,{"$f":"IFERROR(\n  IF(R785=\"Big&Tall\",\n      VLOOKUP(S785, 'Data order'!$AC$92:$AD$101, 2, FALSE),\n      IF(R785=\"Boordmaat\",\n          VLOOKUP(S785, 'Data order'!$AC$102:$AD$116, 2, FALSE),\n          VLOOKUP(S785, 'Data order'!$AC$2:$AD$91, 2, FALSE)\n      )\n  ),\n\"\")","v":""},null,null,null,null,"EUR",null,null,null,{"$error":"#DIV/0!"},0,0,null,"","","","","","","","","","",null,null,null,null,null,null,null,null,null,null,null,null,null,null,null,null,null,"ZWO"]
[null,null,null,null,null,{"$f":"VLOOKUP(G786,'Data order'!Z:AA,2,0)","v":{"$error":"#N/A"}},null,null,null,null,null,null,null,null,{"$f":"VLOOKUP(N786,Tabel10[[korte omschrijving]:[MCC3_CODE]],2,0)","v":{"$error":"#N/A"}},{"$f":"VLOOKUP(N786,'Data order'!M:O,3,0)","v":{"$error":"#N/A"}},null,null,null,{"$f":"IFERROR(\n  IF(R786=\"Big&Tall\",\n      VLOOKUP(S786, 'Data order'!$AC$92:$AD$101, 2, FALSE),\n      IF(R786=\"Boordmaat\",\n          VLOOKUP(S786, 'Data order'!$AC$102:$AD$116, 2, FALSE),\n          VLOOKUP(S786, 'Data order'!$AC$2:$AD$91, 2, FALSE)\n      )\n  ),\n\"\")","v":""},null,0,null,null,"EUR",null,null,null,{"$f":"AB786/Z786","v":{"$error":"#DIV/0!"}},{"$f":"U786*Z786","v":0},{"$f":"U786*AB786","v":0},null,"","","","","","","","","","",null,null,null,null,null,null,null,null,null,null,null,null,null,null,null,null,null,"ZWO"]
[null,null,null,null,null,{"$f":"VLOOKUP(G787,'Data order'!Z:AA,2,0)","v":{"$error":"#N/A"}},null,null,null,null,null,null,null,null,{"$f":"VLOOKUP(N787,Tabel10[[korte omschrijving]:[MCC3_CODE]],2,0)","v":{"$error":"#N/A"}},{"$f":"VLOOKUP(N787,'Data order'!M:O,3,0)","v":{"$error":"#N/A"}},null,null,null,{"$f":"IFERROR(\n  IF(R787=\"Big&Tall\",\n      VLOOKUP(S787, 'Data order'!$AC$92:$AD$101, 2, FALSE),\n      IF(R787=\"Boordmaat\",\n          VLOOKUP(S787, 'Data order'!$AC$102:$AD$116, 2, FALSE),\n          VLOOKUP(S787, 'Data order'!$AC$2:$AD$91, 2, FALSE)\n      )\n  ),\n\"\")","v":""},null,null,null,null,"EUR",null,null,null,{"$error":"#DIV/0!"},0,0,null,"","","","","","","","","","",null,null,null,null,null,null,null,null,null,null,null,null,null,null,null,null,null,"ZWO"]
[null,null,null,null,null,{"$f":"VLOOKUP(G788,'Data order'!Z:AA,2,0)","v":{"$error":"#N/A"}},null,null,null,null,null,null,null,null,{"$f":"VLOOKUP(N788,Tabel10[[korte omschrijving]:[MCC3_CODE]],2,0)","v":{"$error":"#N/A"}},{"$f":"VLOOKUP(N788,'Data order'!M:O,3,0)","v":{"$error":"#N/A"}},null,null,null,{"$f":"IFERROR(\n  IF(R788=\"Big&Tall\",\n      VLOOKUP(S788, 'Data order'!$AC$92:$AD$101, 2, FALSE),\n      IF(R788=\"Boordmaat\",\n          VLOOKUP(S788, 'Data order'!$AC$102:$AD$116, 2, FALSE),\n          VLOOKUP(S788, 'Data order'!$AC$2:$AD$91, 2, FALSE)\n      )\n  ),\n\"\")","v":""},null,null,null,null,"EUR",null,null,null,{"$error":"#DIV/0!"},0,0,null,"","","","","","","","","","",null,null,null,null,null,null,null,null,null,null,null,null,null,null,null,null,null,"ZWO"]
[null,null,null,null,null,{"$f":"VLOOKUP(G789,'Data order'!Z:AA,2,0)","v":{"$error":"#N/A"}},null,null,null,null,null,null,null,null,{"$f":"VLOOKUP(N789,Tabel10[[korte omschrijving]:[MCC3_CODE]],2,0)","v":{"$error":"#N/A"}},{"$f":"VLOOKUP(N789,'Data order'!M:O,3,0)","v":{"$error":"#N/A"}},null,null,null,{"$f":"IFERROR(\n  IF(R789=\"Big&Tall\",\n      VLOOKUP(S789, 'Data order'!$AC$92:$AD$101, 2, FALSE),\n      IF(R789=\"Boordmaat\",\n          VLOOKUP(S789, 'Data order'!$AC$102:$AD$116, 2, FALSE),\n          VLOOKUP(S789, 'Data order'!$AC$2:$AD$91, 2, FALSE)\n      )\n  ),\n\"\")","v":""},null,null,null,null,"EUR",null,null,null,{"$error":"#DIV/0!"},0,0,null,"","","","","","","","","","",null,null,null,null,null,null,null,null,null,null,null,null,null,null,null,null,null,"ZWO"]
[null,null,null,null,null,{"$f":"VLOOKUP(G790,'Data order'!Z:AA,2,0)","v":{"$error":"#N/A"}},null,null,null,null,null,null,null,null,{"$f":"VLOOKUP(N790,Tabel10[[korte omschrijving]:[MCC3_CODE]],2,0)","v":{"$error":"#N/A"}},{"$f":"VLOOKUP(N790,'Data order'!M:O,3,0)","v":{"$error":"#N/A"}},null,null,null,{"$f":"IFERROR(\n  IF(R790=\"Big&Tall\",\n      VLOOKUP(S790, 'Data order'!$AC$92:$AD$101, 2, FALSE),\n      IF(R790=\"Boordmaat\",\n          VLOOKUP(S790, 'Data order'!$AC$102:$AD$116, 2, FALSE),\n          VLOOKUP(S790, 'Data order'!$AC$2:$AD$91, 2, FALSE)\n      )\n  ),\n\"\")","v":""},null,null,null,null,"EUR",null,null,null,{"$error":"#DIV/0!"},0,0,null,"","","","","","","","","","",null,null,null,null,null,null,null,null,null,null,null,null,null,null,null,null,null,"ZWO"]
[null,null,null,null,null,{"$f":"VLOOKUP(G791,'Data order'!Z:AA,2,0)","v":{"$error":"#N/A"}},null,null,null,null,null,null,null,null,{"$f":"VLOOKUP(N791,Tabel10[[korte omschrijving]:[MCC3_CODE]],2,0)","v":{"$error":"#N/A"}},{"$f":"VLOOKUP(N791,'Data order'!M:O,3,0)","v":{"$error":"#N/A"}},null,null,null,{"$f":"IFERROR(\n  IF(R791=\"Big&Tall\",\n      VLOOKUP(S791, 'Data order'!$AC$92:$AD$101, 2, FALSE),\n      IF(R791=\"Boordmaat\",\n          VLOOKUP(S791, 'Data order'!$AC$102:$AD$116, 2, FALSE),\n          VLOOKUP(S791, 'Data order'!$AC$2:$AD$91, 2, FALSE)\n      )\n  ),\n\"\")","v":""},null,null,null,null,"EUR",null,null,null,{"$error":"#DIV/0!"},0,0,null,"","","","","","","","","","",null,null,null,null,null,null,null,null,null,null,null,null,null,null,null,null,null,"ZWO"]
[null,null,null,null,null,{"$f":"VLOOKUP(G792,'Data order'!Z:AA,2,0)","v":{"$error":"#N/A"}},null,null,null,null,null,null,null,null,{"$f":"VLOOKUP(N792,Tabel10[[korte omschrijving]:[MCC3_CODE]],2,0)","v":{"$error":"#N/A"}},{"$f":"VLOOKUP(N792,'Data order'!M:O,3,0)","v":{"$error":"#N/A"}},null,null,null,{"$f":"IFERROR(\n  IF(R792=\"Big&Tall\",\n      VLOOKUP(S792, 'Data order'!$AC$92:$AD$101, 2, FALSE),\n      IF(R792=\"Boordmaat\",\n          VLOOKUP(S792, 'Data order'!$AC$102:$AD$116, 2, FALSE),\n          VLOOKUP(S792, 'Data order'!$AC$2:$AD$91, 2, FALSE)\n      )\n  ),\n\"\")","v":""},null,0,null,null,"EUR",null,null,null,{"$f":"AB792/Z792","v":{"$error":"#DIV/0!"}},{"$f":"U792*Z792","v":0},{"$f":"U792*AB792","v":0},null,"","","","","","","","","","",null,null,null,null,null,null,null,null,null,null,null,null,null,null,null,null,null,"ZWO"]
[null,null,null,null,null,{"$f":"VLOOKUP(G793,'Data order'!Z:AA,2,0)","v":{"$error":"#N/A"}},null,null,null,null,null,null,null,null,{"$f":"VLOOKUP(N793,Tabel10[[korte omschrijving]:[MCC3_CODE]],2,0)","v":{"$error":"#N/A"}},{"$f":"VLOOKUP(N793,'Data order'!M:O,3,0)","v":{"$error":"#N/A"}},null,null,null,{"$f":"IFERROR(\n  IF(R793=\"Big&Tall\",\n      VLOOKUP(S793, 'Data order'!$AC$92:$AD$101, 2, FALSE),\n      IF(R793=\"Boordmaat\",\n          VLOOKUP(S793, 'Data order'!$AC$102:$AD$116, 2, FALSE),\n          VLOOKUP(S793, 'Data order'!$AC$2:$AD$91, 2, FALSE)\n      )\n  ),\n\"\")","v":""},null,null,null,null,"EUR",null,null,null,{"$error":"#DIV/0!"},0,0,null,"","","","","","","","","","",null,null,null,null,null,null,null,null,null,null,null,null,null,null,null,null,null,"ZWO"]
[null,null,null,null,null,{"$f":"VLOOKUP(G794,'Data order'!Z:AA,2,0)","v":{"$error":"#N/A"}},null,null,null,null,null,null,null,null,{"$f":"VLOOKUP(N794,Tabel10[[korte omschrijving]:[MCC3_CODE]],2,0)","v":{"$error":"#N/A"}},{"$f":"VLOOKUP(N794,'Data order'!M:O,3,0)","v":{"$error":"#N/A"}},null,null,null,{"$f":"IFERROR(\n  IF(R794=\"Big&Tall\",\n      VLOOKUP(S794, 'Data order'!$AC$92:$AD$101, 2, FALSE),\n      IF(R794=\"Boordmaat\",\n          VLOOKUP(S794, 'Data order'!$AC$102:$AD$116, 2, FALSE),\n          VLOOKUP(S794, 'Data order'!$AC$2:$AD$91, 2, FALSE)\n      )\n  ),\n\"\")","v":""},null,null,null,null,"EUR",null,null,null,{"$error":"#DIV/0!"},0,0,null,"","","","","","","","","","",null,null,null,null,null,null,null,null,null,null,null,null,null,null,null,null,null,"ZWO"]
[null,null,null,null,null,{"$f":"VLOOKUP(G795,'Data order'!Z:AA,2,0)","v":{"$error":"#N/A"}},null,null,null,null,null,null,null,null,{"$f":"VLOOKUP(N795,Tabel10[[korte omschrijving]:[MCC3_CODE]],2,0)","v":{"$error":"#N/A"}},{"$f":"VLOOKUP(N795,'Data order'!M:O,3,0)","v":{"$error":"#N/A"}},null,null,null,{"$f":"IFERROR(\n  IF(R795=\"Big&Tall\",\n      VLOOKUP(S795, 'Data order'!$AC$92:$AD$101, 2, FALSE),\n      IF(R795=\"Boordmaat\",\n          VLOOKUP(S795, 'Data order'!$AC$102:$AD$116, 2, FALSE),\n          VLOOKUP(S795, 'Data order'!$AC$2:$AD$91, 2, FALSE)\n      )\n  ),\n\"\")","v":""},null,null,null,null,"EUR",null,null,null,{"$error":"#DIV/0!"},0,0,null,"","","","","","","","","","",null,null,null,null,null,null,null,null,null,null,null,null,null,null,null,null,null,"ZWO"]
[null,null,null,null,null,{"$f":"VLOOKUP(G796,'Data order'!Z:AA,2,0)","v":{"$error":"#N/A"}},null,null,null,null,null,null,null,null,{"$f":"VLOOKUP(N796,Tabel10[[korte omschrijving]:[MCC3_CODE]],2,0)","v":{"$error":"#N/A"}},{"$f":"VLOOKUP(N796,'Data order'!M:O,3,0)","v":{"$error":"#N/A"}},null,null,null,{"$f":"IFERROR(\n  IF(R796=\"Big&Tall\",\n      VLOOKUP(S796, 'Data order'!$AC$92:$AD$101, 2, FALSE),\n      IF(R796=\"Boordmaat\",\n          VLOOKUP(S796, 'Data order'!$AC$102:$AD$116, 2, FALSE),\n          VLOOKUP(S796, 'Data order'!$AC$2:$AD$91, 2, FALSE)\n      )\n  ),\n\"\")","v":""},null,null,null,null,"EUR",null,null,null,{"$error":"#DIV/0!"},0,0,null,"","","","","","","","","","",null,null,null,null,null,null,null,null,null,null,null,null,null,null,null,null,null,"ZWO"]
[null,null,null,null,null,{"$f":"VLOOKUP(G797,'Data order'!Z:AA,2,0)","v":{"$error":"#N/A"}},null,null,null,null,null,null,null,null,{"$f":"VLOOKUP(N797,Tabel10[[korte omschrijving]:[MCC3_CODE]],2,0)","v":{"$error":"#N/A"}},{"$f":"VLOOKUP(N797,'Data order'!M:O,3,0)","v":{"$error":"#N/A"}},null,null,null,{"$f":"IFERROR(\n  IF(R797=\"Big&Tall\",\n      VLOOKUP(S797, 'Data order'!$AC$92:$AD$101, 2, FALSE),\n      IF(R797=\"Boordmaat\",\n          VLOOKUP(S797, 'Data order'!$AC$102:$AD$116, 2, FALSE),\n          VLOOKUP(S797, 'Data order'!$AC$2:$AD$91, 2, FALSE)\n      )\n  ),\n\"\")","v":""},null,null,null,null,"EUR",null,null,null,{"$error":"#DIV/0!"},0,0,null,"","","","","","","","","","",null,null,null,null,null,null,null,null,null,null,null,null,null,null,null,null,null,"ZWO"]
[null,null,null,null,null,{"$f":"VLOOKUP(G798,'Data order'!Z:AA,2,0)","v":{"$error":"#N/A"}},null,null,null,null,null,null,null,null,{"$f":"VLOOKUP(N798,Tabel10[[korte omschrijving]:[MCC3_CODE]],2,0)","v":{"$error":"#N/A"}},{"$f":"VLOOKUP(N798,'Data order'!M:O,3,0)","v":{"$error":"#N/A"}},null,null,null,{"$f":"IFERROR(\n  IF(R798=\"Big&Tall\",\n      VLOOKUP(S798, 'Data order'!$AC$92:$AD$101, 2, FALSE),\n      IF(R798=\"Boordmaat\",\n          VLOOKUP(S798, 'Data order'!$AC$102:$AD$116, 2, FALSE),\n          VLOOKUP(S798, 'Data order'!$AC$2:$AD$91, 2, FALSE)\n      )\n  ),\n\"\")","v":""},null,0,null,null,"EUR",null,null,null,{"$f":"AB798/Z798","v":{"$error":"#DIV/0!"}},{"$f":"U798*Z798","v":0},{"$f":"U798*AB798","v":0},null,"","","","","","","","","","",null,null,null,null,null,null,null,null,null,null,null,null,null,null,null,null,null,"ZWO"]
[null,null,null,null,null,{"$f":"VLOOKUP(G799,'Data order'!Z:AA,2,0)","v":{"$error":"#N/A"}},null,null,null,null,null,null,null,null,{"$f":"VLOOKUP(N799,Tabel10[[korte omschrijving]:[MCC3_CODE]],2,0)","v":{"$error":"#N/A"}},{"$f":"VLOOKUP(N799,'Data order'!M:O,3,0)","v":{"$error":"#N/A"}},null,null,null,{"$f":"IFERROR(\n  IF(R799=\"Big&Tall\",\n      VLOOKUP(S799, 'Data order'!$AC$92:$AD$101, 2, FALSE),\n      IF(R799=\"Boordmaat\",\n          VLOOKUP(S799, 'Data order'!$AC$102:$AD$116, 2, FALSE),\n          VLOOKUP(S799, 'Data order'!$AC$2:$AD$91, 2, FALSE)\n      )\n  ),\n\"\")","v":""},null,null,null,null,"EUR",null,null,null,{"$error":"#DIV/0!"},0,0,null,"","","","","","","","","","",null,null,null,null,null,null,null,null,null,null,null,null,null,null,null,null,null,"ZWO"]
[null,null,null,null,null,{"$f":"VLOOKUP(G800,'Data order'!Z:AA,2,0)","v":{"$error":"#N/A"}},null,null,null,null,null,null,null,null,{"$f":"VLOOKUP(N800,Tabel10[[korte omschrijving]:[MCC3_CODE]],2,0)","v":{"$error":"#N/A"}},{"$f":"VLOOKUP(N800,'Data order'!M:O,3,0)","v":{"$error":"#N/A"}},null,null,null,{"$f":"IFERROR(\n  IF(R800=\"Big&Tall\",\n      VLOOKUP(S800, 'Data order'!$AC$92:$AD$101, 2, FALSE),\n      IF(R800=\"Boordmaat\",\n          VLOOKUP(S800, 'Data order'!$AC$102:$AD$116, 2, FALSE),\n          VLOOKUP(S800, 'Data order'!$AC$2:$AD$91, 2, FALSE)\n      )\n  ),\n\"\")","v":""},null,null,null,null,"EUR",null,null,null,{"$error":"#DIV/0!"},0,0,null,"","","","","","","","","","",null,null,null,null,null,null,null,null,null,null,null,null,null,null,null,null,null,"ZWO"]
[null,null,null,null,null,{"$f":"VLOOKUP(G801,'Data order'!Z:AA,2,0)","v":{"$error":"#N/A"}},null,null,null,null,null,null,null,null,{"$f":"VLOOKUP(N801,Tabel10[[korte omschrijving]:[MCC3_CODE]],2,0)","v":{"$error":"#N/A"}},{"$f":"VLOOKUP(N801,'Data order'!M:O,3,0)","v":{"$error":"#N/A"}},null,null,null,{"$f":"IFERROR(\n  IF(R801=\"Big&Tall\",\n      VLOOKUP(S801, 'Data order'!$AC$92:$AD$101, 2, FALSE),\n      IF(R801=\"Boordmaat\",\n          VLOOKUP(S801, 'Data order'!$AC$102:$AD$116, 2, FALSE),\n          VLOOKUP(S801, 'Data order'!$AC$2:$AD$91, 2, FALSE)\n      )\n  ),\n\"\")","v":""},null,null,null,null,"EUR",null,null,null,{"$error":"#DIV/0!"},0,0,null,"","","","","","","","","","",null,null,null,null,null,null,null,null,null,null,null,null,null,null,null,null,null,"ZWO"]
[null,null,null,null,null,{"$f":"VLOOKUP(G802,'Data order'!Z:AA,2,0)","v":{"$error":"#N/A"}},null,null,null,null,null,null,null,null,{"$f":"VLOOKUP(N802,Tabel10[[korte omschrijving]:[MCC3_CODE]],2,0)","v":{"$error":"#N/A"}},{"$f":"VLOOKUP(N802,'Data order'!M:O,3,0)","v":{"$error":"#N/A"}},null,null,null,{"$f":"IFERROR(\n  IF(R802=\"Big&Tall\",\n      VLOOKUP(S802, 'Data order'!$AC$92:$AD$101, 2, FALSE),\n      IF(R802=\"Boordmaat\",\n          VLOOKUP(S802, 'Data order'!$AC$102:$AD$116, 2, FALSE),\n          VLOOKUP(S802, 'Data order'!$AC$2:$AD$91, 2, FALSE)\n      )\n  ),\n\"\")","v":""},null,null,null,null,"EUR",null,null,null,{"$error":"#DIV/0!"},0,0,null,"","","","","","","","","","",null,null,null,null,null,null,null,null,null,null,null,null,null,null,null,null,null,"ZWO"]
[null,null,null,null,null,{"$f":"VLOOKUP(G803,'Data order'!Z:AA,2,0)","v":{"$error":"#N/A"}},null,null,null,null,null,null,null,null,{"$f":"VLOOKUP(N803,Tabel10[[korte omschrijving]:[MCC3_CODE]],2,0)","v":{"$error":"#N/A"}},{"$f":"VLOOKUP(N803,'Data order'!M:O,3,0)","v":{"$error":"#N/A"}},null,null,null,{"$f":"IFERROR(\n  IF(R803=\"Big&Tall\",\n      VLOOKUP(S803, 'Data order'!$AC$92:$AD$101, 2, FALSE),\n      IF(R803=\"Boordmaat\",\n          VLOOKUP(S803, 'Data order'!$AC$102:$AD$116, 2, FALSE),\n          VLOOKUP(S803, 'Data order'!$AC$2:$AD$91, 2, FALSE)\n      )\n  ),\n\"\")","v":""},null,null,null,null,"EUR",null,null,null,{"$error":"#DIV/0!"},0,0,null,"","","","","","","","","","",null,null,null,null,null,null,null,null,null,null,null,null,null,null,null,null,null,"ZWO"]
[null,null,null,null,null,{"$f":"VLOOKUP(G804,'Data order'!Z:AA,2,0)","v":{"$error":"#N/A"}},null,null,null,null,null,null,null,null,{"$f":"VLOOKUP(N804,Tabel10[[korte omschrijving]:[MCC3_CODE]],2,0)","v":{"$error":"#N/A"}},{"$f":"VLOOKUP(N804,'Data order'!M:O,3,0)","v":{"$error":"#N/A"}},null,null,null,{"$f":"IFERROR(\n  IF(R804=\"Big&Tall\",\n      VLOOKUP(S804, 'Data order'!$AC$92:$AD$101, 2, FALSE),\n      IF(R804=\"Boordmaat\",\n          VLOOKUP(S804, 'Data order'!$AC$102:$AD$116, 2, FALSE),\n          VLOOKUP(S804, 'Data order'!$AC$2:$AD$91, 2, FALSE)\n      )\n  ),\n\"\")","v":""},null,0,null,null,"EUR",null,null,null,{"$f":"AB804/Z804","v":{"$error":"#DIV/0!"}},{"$f":"U804*Z804","v":0},{"$f":"U804*AB804","v":0},null,"","","","","","","","","","",null,null,null,null,null,null,null,null,null,null,null,null,null,null,null,null,null,"ZWO"]
[null,null,null,null,null,{"$f":"VLOOKUP(G805,'Data order'!Z:AA,2,0)","v":{"$error":"#N/A"}},null,null,null,null,null,null,null,null,{"$f":"VLOOKUP(N805,Tabel10[[korte omschrijving]:[MCC3_CODE]],2,0)","v":{"$error":"#N/A"}},{"$f":"VLOOKUP(N805,'Data order'!M:O,3,0)","v":{"$error":"#N/A"}},null,null,null,{"$f":"IFERROR(\n  IF(R805=\"Big&Tall\",\n      VLOOKUP(S805, 'Data order'!$AC$92:$AD$101, 2, FALSE),\n      IF(R805=\"Boordmaat\",\n          VLOOKUP(S805, 'Data order'!$AC$102:$AD$116, 2, FALSE),\n          VLOOKUP(S805, 'Data order'!$AC$2:$AD$91, 2, FALSE)\n      )\n  ),\n\"\")","v":""},null,null,null,null,"EUR",null,null,null,{"$error":"#DIV/0!"},0,0,null,"","","","","","","","","","",null,null,null,null,null,null,null,null,null,null,null,null,null,null,null,null,null,"ZWO"]
[null,null,null,null,null,{"$f":"VLOOKUP(G806,'Data order'!Z:AA,2,0)","v":{"$error":"#N/A"}},null,null,null,null,null,null,null,null,{"$f":"VLOOKUP(N806,Tabel10[[korte omschrijving]:[MCC3_CODE]],2,0)","v":{"$error":"#N/A"}},{"$f":"VLOOKUP(N806,'Data order'!M:O,3,0)","v":{"$error":"#N/A"}},null,null,null,{"$f":"IFERROR(\n  IF(R806=\"Big&Tall\",\n      VLOOKUP(S806, 'Data order'!$AC$92:$AD$101, 2, FALSE),\n      IF(R806=\"Boordmaat\",\n          VLOOKUP(S806, 'Data order'!$AC$102:$AD$116, 2, FALSE),\n          VLOOKUP(S806, 'Data order'!$AC$2:$AD$91, 2, FALSE)\n      )\n  ),\n\"\")","v":""},null,null,null,null,"EUR",null,null,null,{"$error":"#DIV/0!"},0,0,null,"","","","","","","","","","",null,null,null,null,null,null,null,null,null,null,null,null,null,null,null,null,null,"ZWO"]
[null,null,null,null,null,{"$f":"VLOOKUP(G807,'Data order'!Z:AA,2,0)","v":{"$error":"#N/A"}},null,null,null,null,null,null,null,null,{"$f":"VLOOKUP(N807,Tabel10[[korte omschrijving]:[MCC3_CODE]],2,0)","v":{"$error":"#N/A"}},{"$f":"VLOOKUP(N807,'Data order'!M:O,3,0)","v":{"$error":"#N/A"}},null,null,null,{"$f":"IFERROR(\n  IF(R807=\"Big&Tall\",\n      VLOOKUP(S807, 'Data order'!$AC$92:$AD$101, 2, FALSE),\n      IF(R807=\"Boordmaat\",\n          VLOOKUP(S807, 'Data order'!$AC$102:$AD$116, 2, FALSE),\n          VLOOKUP(S807, 'Data order'!$AC$2:$AD$91, 2, FALSE)\n      )\n  ),\n\"\")","v":""},null,null,null,null,"EUR",null,null,null,{"$error":"#DIV/0!"},0,0,null,"","","","","","","","","","",null,null,null,null,null,null,null,null,null,null,null,null,null,null,null,null,null,"ZWO"]
[null,null,null,null,null,{"$f":"VLOOKUP(G808,'Data order'!Z:AA,2,0)","v":{"$error":"#N/A"}},null,null,null,null,null,null,null,null,{"$f":"VLOOKUP(N808,Tabel10[[korte omschrijving]:[MCC3_CODE]],2,0)","v":{"$error":"#N/A"}},{"$f":"VLOOKUP(N808,'Data order'!M:O,3,0)","v":{"$error":"#N/A"}},null,null,null,{"$f":"IFERROR(\n  IF(R808=\"Big&Tall\",\n      VLOOKUP(S808, 'Data order'!$AC$92:$AD$101, 2, FALSE),\n      IF(R808=\"Boordmaat\",\n          VLOOKUP(S808, 'Data order'!$AC$102:$AD$116, 2, FALSE),\n          VLOOKUP(S808, 'Data order'!$AC$2:$AD$91, 2, FALSE)\n      )\n  ),\n\"\")","v":""},null,null,null,null,"EUR",null,null,null,{"$error":"#DIV/0!"},0,0,null,"","","","","","","","","","",null,null,null,null,null,null,null,null,null,null,null,null,null,null,null,null,null,"ZWO"]
[null,null,null,null,null,{"$f":"VLOOKUP(G809,'Data order'!Z:AA,2,0)","v":{"$error":"#N/A"}},null,null,null,null,null,null,null,null,{"$f":"VLOOKUP(N809,Tabel10[[korte omschrijving]:[MCC3_CODE]],2,0)","v":{"$error":"#N/A"}},{"$f":"VLOOKUP(N809,'Data order'!M:O,3,0)","v":{"$error":"#N/A"}},null,null,null,{"$f":"IFERROR(\n  IF(R809=\"Big&Tall\",\n      VLOOKUP(S809, 'Data order'!$AC$92:$AD$101, 2, FALSE),\n      IF(R809=\"Boordmaat\",\n          VLOOKUP(S809, 'Data order'!$AC$102:$AD$116, 2, FALSE),\n          VLOOKUP(S809, 'Data order'!$AC$2:$AD$91, 2, FALSE)\n      )\n  ),\n\"\")","v":""},null,null,null,null,"EUR",null,null,null,{"$error":"#DIV/0!"},0,0,null,"","","","","","","","","","",null,null,null,null,null,null,null,null,null,null,null,null,null,null,null,null,null,"ZWO"]
[null,null,null,null,null,{"$f":"VLOOKUP(G810,'Data order'!Z:AA,2,0)","v":{"$error":"#N/A"}},null,null,null,null,null,null,null,null,{"$f":"VLOOKUP(N810,Tabel10[[korte omschrijving]:[MCC3_CODE]],2,0)","v":{"$error":"#N/A"}},{"$f":"VLOOKUP(N810,'Data order'!M:O,3,0)","v":{"$error":"#N/A"}},null,null,null,{"$f":"IFERROR(\n  IF(R810=\"Big&Tall\",\n      VLOOKUP(S810, 'Data order'!$AC$92:$AD$101, 2, FALSE),\n      IF(R810=\"Boordmaat\",\n          VLOOKUP(S810, 'Data order'!$AC$102:$AD$116, 2, FALSE),\n          VLOOKUP(S810, 'Data order'!$AC$2:$AD$91, 2, FALSE)\n      )\n  ),\n\"\")","v":""},null,0,null,null,"EUR",null,null,null,{"$f":"AB810/Z810","v":{"$error":"#DIV/0!"}},{"$f":"U810*Z810","v":0},{"$f":"U810*AB810","v":0},null,"","","","","","","","","","",null,null,null,null,null,null,null,null,null,null,null,null,null,null,null,null,null,"ZWO"]
[null,null,null,null,null,{"$f":"VLOOKUP(G811,'Data order'!Z:AA,2,0)","v":{"$error":"#N/A"}},null,null,null,null,null,null,null,null,{"$f":"VLOOKUP(N811,Tabel10[[korte omschrijving]:[MCC3_CODE]],2,0)","v":{"$error":"#N/A"}},{"$f":"VLOOKUP(N811,'Data order'!M:O,3,0)","v":{"$error":"#N/A"}},null,null,null,{"$f":"IFERROR(\n  IF(R811=\"Big&Tall\",\n      VLOOKUP(S811, 'Data order'!$AC$92:$AD$101, 2, FALSE),\n      IF(R811=\"Boordmaat\",\n          VLOOKUP(S811, 'Data order'!$AC$102:$AD$116, 2, FALSE),\n          VLOOKUP(S811, 'Data order'!$AC$2:$AD$91, 2, FALSE)\n      )\n  ),\n\"\")","v":""},null,null,null,null,"EUR",null,null,null,{"$error":"#DIV/0!"},0,0,null,"","","","","","","","","","",null,null,null,null,null,null,null,null,null,null,null,null,null,null,null,null,null,"ZWO"]
[null,null,null,null,null,{"$f":"VLOOKUP(G812,'Data order'!Z:AA,2,0)","v":{"$error":"#N/A"}},null,null,null,null,null,null,null,null,{"$f":"VLOOKUP(N812,Tabel10[[korte omschrijving]:[MCC3_CODE]],2,0)","v":{"$error":"#N/A"}},{"$f":"VLOOKUP(N812,'Data order'!M:O,3,0)","v":{"$error":"#N/A"}},null,null,null,{"$f":"IFERROR(\n  IF(R812=\"Big&Tall\",\n      VLOOKUP(S812, 'Data order'!$AC$92:$AD$101, 2, FALSE),\n      IF(R812=\"Boordmaat\",\n          VLOOKUP(S812, 'Data order'!$AC$102:$AD$116, 2, FALSE),\n          VLOOKUP(S812, 'Data order'!$AC$2:$AD$91, 2, FALSE)\n      )\n  ),\n\"\")","v":""},null,null,null,null,"EUR",null,null,null,{"$error":"#DIV/0!"},0,0,null,"","","","","","","","","","",null,null,null,null,null,null,null,null,null,null,null,null,null,null,null,null,null,"ZWO"]
[null,null,null,null,null,{"$f":"VLOOKUP(G813,'Data order'!Z:AA,2,0)","v":{"$error":"#N/A"}},null,null,null,null,null,null,null,null,{"$f":"VLOOKUP(N813,Tabel10[[korte omschrijving]:[MCC3_CODE]],2,0)","v":{"$error":"#N/A"}},{"$f":"VLOOKUP(N813,'Data order'!M:O,3,0)","v":{"$error":"#N/A"}},null,null,null,{"$f":"IFERROR(\n  IF(R813=\"Big&Tall\",\n      VLOOKUP(S813, 'Data order'!$AC$92:$AD$101, 2, FALSE),\n      IF(R813=\"Boordmaat\",\n          VLOOKUP(S813, 'Data order'!$AC$102:$AD$116, 2, FALSE),\n          VLOOKUP(S813, 'Data order'!$AC$2:$AD$91, 2, FALSE)\n      )\n  ),\n\"\")","v":""},null,null,null,null,"EUR",null,null,null,{"$error":"#DIV/0!"},0,0,null,"","","","","","","","","","",null,null,null,null,null,null,null,null,null,null,null,null,null,null,null,null,null,"ZWO"]
[null,null,null,null,null,{"$f":"VLOOKUP(G814,'Data order'!Z:AA,2,0)","v":{"$error":"#N/A"}},null,null,null,null,null,null,null,null,{"$f":"VLOOKUP(N814,Tabel10[[korte omschrijving]:[MCC3_CODE]],2,0)","v":{"$error":"#N/A"}},{"$f":"VLOOKUP(N814,'Data order'!M:O,3,0)","v":{"$error":"#N/A"}},null,null,null,{"$f":"IFERROR(\n  IF(R814=\"Big&Tall\",\n      VLOOKUP(S814, 'Data order'!$AC$92:$AD$101, 2, FALSE),\n      IF(R814=\"Boordmaat\",\n          VLOOKUP(S814, 'Data order'!$AC$102:$AD$116, 2, FALSE),\n          VLOOKUP(S814, 'Data order'!$AC$2:$AD$91, 2, FALSE)\n      )\n  ),\n\"\")","v":""},null,null,null,null,"EUR",null,null,null,{"$error":"#DIV/0!"},0,0,null,"","","","","","","","","","",null,null,null,null,null,null,null,null,null,null,null,null,null,null,null,null,null,"ZWO"]
[null,null,null,null,null,{"$f":"VLOOKUP(G815,'Data order'!Z:AA,2,0)","v":{"$error":"#N/A"}},null,null,null,null,null,null,null,null,{"$f":"VLOOKUP(N815,Tabel10[[korte omschrijving]:[MCC3_CODE]],2,0)","v":{"$error":"#N/A"}},{"$f":"VLOOKUP(N815,'Data order'!M:O,3,0)","v":{"$error":"#N/A"}},null,null,null,{"$f":"IFERROR(\n  IF(R815=\"Big&Tall\",\n      VLOOKUP(S815, 'Data order'!$AC$92:$AD$101, 2, FALSE),\n      IF(R815=\"Boordmaat\",\n          VLOOKUP(S815, 'Data order'!$AC$102:$AD$116, 2, FALSE),\n          VLOOKUP(S815, 'Data order'!$AC$2:$AD$91, 2, FALSE)\n      )\n  ),\n\"\")","v":""},null,null,null,null,"EUR",null,null,null,{"$error":"#DIV/0!"},0,0,null,"","","","","","","","","","",null,null,null,null,null,null,null,null,null,null,null,null,null,null,null,null,null,"ZWO"]
[null,null,null,null,null,{"$f":"VLOOKUP(G816,'Data order'!Z:AA,2,0)","v":{"$error":"#N/A"}},null,null,null,null,null,null,null,null,{"$f":"VLOOKUP(N816,Tabel10[[korte omschrijving]:[MCC3_CODE]],2,0)","v":{"$error":"#N/A"}},{"$f":"VLOOKUP(N816,'Data order'!M:O,3,0)","v":{"$error":"#N/A"}},null,null,null,{"$f":"IFERROR(\n  IF(R816=\"Big&Tall\",\n      VLOOKUP(S816, 'Data order'!$AC$92:$AD$101, 2, FALSE),\n      IF(R816=\"Boordmaat\",\n          VLOOKUP(S816, 'Data order'!$AC$102:$AD$116, 2, FALSE),\n          VLOOKUP(S816, 'Data order'!$AC$2:$AD$91, 2, FALSE)\n      )\n  ),\n\"\")","v":""},null,0,null,null,"EUR",null,null,null,{"$f":"AB816/Z816","v":{"$error":"#DIV/0!"}},{"$f":"U816*Z816","v":0},{"$f":"U816*AB816","v":0},null,"","","","","","","","","","",null,null,null,null,null,null,null,null,null,null,null,null,null,null,null,null,null,"ZWO"]
[null,null,null,null,null,{"$f":"VLOOKUP(G817,'Data order'!Z:AA,2,0)","v":{"$error":"#N/A"}},null,null,null,null,null,null,null,null,{"$f":"VLOOKUP(N817,Tabel10[[korte omschrijving]:[MCC3_CODE]],2,0)","v":{"$error":"#N/A"}},{"$f":"VLOOKUP(N817,'Data order'!M:O,3,0)","v":{"$error":"#N/A"}},null,null,null,{"$f":"IFERROR(\n  IF(R817=\"Big&Tall\",\n      VLOOKUP(S817, 'Data order'!$AC$92:$AD$101, 2, FALSE),\n      IF(R817=\"Boordmaat\",\n          VLOOKUP(S817, 'Data order'!$AC$102:$AD$116, 2, FALSE),\n          VLOOKUP(S817, 'Data order'!$AC$2:$AD$91, 2, FALSE)\n      )\n  ),\n\"\")","v":""},null,null,null,null,"EUR",null,null,null,{"$error":"#DIV/0!"},0,0,null,"","","","","","","","","","",null,null,null,null,null,null,null,null,null,null,null,null,null,null,null,null,null,"ZWO"]
[null,null,null,null,null,{"$f":"VLOOKUP(G818,'Data order'!Z:AA,2,0)","v":{"$error":"#N/A"}},null,null,null,null,null,null,null,null,{"$f":"VLOOKUP(N818,Tabel10[[korte omschrijving]:[MCC3_CODE]],2,0)","v":{"$error":"#N/A"}},{"$f":"VLOOKUP(N818,'Data order'!M:O,3,0)","v":{"$error":"#N/A"}},null,null,null,{"$f":"IFERROR(\n  IF(R818=\"Big&Tall\",\n      VLOOKUP(S818, 'Data order'!$AC$92:$AD$101, 2, FALSE),\n      IF(R818=\"Boordmaat\",\n          VLOOKUP(S818, 'Data order'!$AC$102:$AD$116, 2, FALSE),\n          VLOOKUP(S818, 'Data order'!$AC$2:$AD$91, 2, FALSE)\n      )\n  ),\n\"\")","v":""},null,null,null,null,"EUR",null,null,null,{"$error":"#DIV/0!"},0,0,null,"","","","","","","","","","",null,null,null,null,null,null,null,null,null,null,null,null,null,null,null,null,null,"ZWO"]
[null,null,null,null,null,{"$f":"VLOOKUP(G819,'Data order'!Z:AA,2,0)","v":{"$error":"#N/A"}},null,null,null,null,null,null,null,null,{"$f":"VLOOKUP(N819,Tabel10[[korte omschrijving]:[MCC3_CODE]],2,0)","v":{"$error":"#N/A"}},{"$f":"VLOOKUP(N819,'Data order'!M:O,3,0)","v":{"$error":"#N/A"}},null,null,null,{"$f":"IFERROR(\n  IF(R819=\"Big&Tall\",\n      VLOOKUP(S819, 'Data order'!$AC$92:$AD$101, 2, FALSE),\n      IF(R819=\"Boordmaat\",\n          VLOOKUP(S819, 'Data order'!$AC$102:$AD$116, 2, FALSE),\n          VLOOKUP(S819, 'Data order'!$AC$2:$AD$91, 2, FALSE)\n      )\n  ),\n\"\")","v":""},null,null,null,null,"EUR",null,null,null,{"$error":"#DIV/0!"},0,0,null,"","","","","","","","","","",null,null,null,null,null,null,null,null,null,null,null,null,null,null,null,null,null,"ZWO"]
[null,null,null,null,null,{"$f":"VLOOKUP(G820,'Data order'!Z:AA,2,0)","v":{"$error":"#N/A"}},null,null,null,null,null,null,null,null,{"$f":"VLOOKUP(N820,Tabel10[[korte omschrijving]:[MCC3_CODE]],2,0)","v":{"$error":"#N/A"}},{"$f":"VLOOKUP(N820,'Data order'!M:O,3,0)","v":{"$error":"#N/A"}},null,null,null,{"$f":"IFERROR(\n  IF(R820=\"Big&Tall\",\n      VLOOKUP(S820, 'Data order'!$AC$92:$AD$101, 2, FALSE),\n      IF(R820=\"Boordmaat\",\n          VLOOKUP(S820, 'Data order'!$AC$102:$AD$116, 2, FALSE),\n          VLOOKUP(S820, 'Data order'!$AC$2:$AD$91, 2, FALSE)\n      )\n  ),\n\"\")","v":""},null,null,null,null,"EUR",null,null,null,{"$error":"#DIV/0!"},0,0,null,"","","","","","","","","","",null,null,null,null,null,null,null,null,null,null,null,null,null,null,null,null,null,"ZWO"]
[null,null,null,null,null,{"$f":"VLOOKUP(G821,'Data order'!Z:AA,2,0)","v":{"$error":"#N/A"}},null,null,null,null,null,null,null,null,{"$f":"VLOOKUP(N821,Tabel10[[korte omschrijving]:[MCC3_CODE]],2,0)","v":{"$error":"#N/A"}},{"$f":"VLOOKUP(N821,'Data order'!M:O,3,0)","v":{"$error":"#N/A"}},null,null,null,{"$f":"IFERROR(\n  IF(R821=\"Big&Tall\",\n      VLOOKUP(S821, 'Data order'!$AC$92:$AD$101, 2, FALSE),\n      IF(R821=\"Boordmaat\",\n          VLOOKUP(S821, 'Data order'!$AC$102:$AD$116, 2, FALSE),\n          VLOOKUP(S821, 'Data order'!$AC$2:$AD$91, 2, FALSE)\n      )\n  ),\n\"\")","v":""},null,null,null,null,"EUR",null,null,null,{"$error":"#DIV/0!"},0,0,null,"","","","","","","","","","",null,null,null,null,null,null,null,null,null,null,null,null,null,null,null,null,null,"ZWO"]
[null,null,null,null,null,{"$f":"VLOOKUP(G822,'Data order'!Z:AA,2,0)","v":{"$error":"#N/A"}},null,null,null,null,null,null,null,null,{"$f":"VLOOKUP(N822,Tabel10[[korte omschrijving]:[MCC3_CODE]],2,0)","v":{"$error":"#N/A"}},{"$f":"VLOOKUP(N822,'Data order'!M:O,3,0)","v":{"$error":"#N/A"}},null,null,null,{"$f":"IFERROR(\n  IF(R822=\"Big&Tall\",\n      VLOOKUP(S822, 'Data order'!$AC$92:$AD$101, 2, FALSE),\n      IF(R822=\"Boordmaat\",\n          VLOOKUP(S822, 'Data order'!$AC$102:$AD$116, 2, FALSE),\n          VLOOKUP(S822, 'Data order'!$AC$2:$AD$91, 2, FALSE)\n      )\n  ),\n\"\")","v":""},null,0,null,null,"EUR",null,null,null,{"$f":"AB822/Z822","v":{"$error":"#DIV/0!"}},{"$f":"U822*Z822","v":0},{"$f":"U822*AB822","v":0},null,"","","","","","","","","","",null,null,null,null,null,null,null,null,null,null,null,null,null,null,null,null,null,"ZWO"]
[null,null,null,null,null,{"$f":"VLOOKUP(G823,'Data order'!Z:AA,2,0)","v":{"$error":"#N/A"}},null,null,null,null,null,null,null,null,{"$f":"VLOOKUP(N823,Tabel10[[korte omschrijving]:[MCC3_CODE]],2,0)","v":{"$error":"#N/A"}},{"$f":"VLOOKUP(N823,'Data order'!M:O,3,0)","v":{"$error":"#N/A"}},null,null,null,{"$f":"IFERROR(\n  IF(R823=\"Big&Tall\",\n      VLOOKUP(S823, 'Data order'!$AC$92:$AD$101, 2, FALSE),\n      IF(R823=\"Boordmaat\",\n          VLOOKUP(S823, 'Data order'!$AC$102:$AD$116, 2, FALSE),\n          VLOOKUP(S823, 'Data order'!$AC$2:$AD$91, 2, FALSE)\n      )\n  ),\n\"\")","v":""},null,null,null,null,"EUR",null,null,null,{"$error":"#DIV/0!"},0,0,null,"","","","","","","","","","",null,null,null,null,null,null,null,null,null,null,null,null,null,null,null,null,null,"ZWO"]
[null,null,null,null,null,{"$f":"VLOOKUP(G824,'Data order'!Z:AA,2,0)","v":{"$error":"#N/A"}},null,null,null,null,null,null,null,null,{"$f":"VLOOKUP(N824,Tabel10[[korte omschrijving]:[MCC3_CODE]],2,0)","v":{"$error":"#N/A"}},{"$f":"VLOOKUP(N824,'Data order'!M:O,3,0)","v":{"$error":"#N/A"}},null,null,null,{"$f":"IFERROR(\n  IF(R824=\"Big&Tall\",\n      VLOOKUP(S824, 'Data order'!$AC$92:$AD$101, 2, FALSE),\n      IF(R824=\"Boordmaat\",\n          VLOOKUP(S824, 'Data order'!$AC$102:$AD$116, 2, FALSE),\n          VLOOKUP(S824, 'Data order'!$AC$2:$AD$91, 2, FALSE)\n      )\n  ),\n\"\")","v":""},null,null,null,null,"EUR",null,null,null,{"$error":"#DIV/0!"},0,0,null,{"$f":"IF(AF824 <> \"\",\n    IF(ISNUMBER(VALUE(LEFT(AF824, FIND(\"%\", AF824)-1))),\n        VALUE(LEFT(AF824, FIND(\"%\", AF824)-1)),\n        \"Invalid format\"),\n    \"\")","v":""},{"$f":"IF(AF824 <> \"\",\n    IF(ISNUMBER(VALUE(LEFT(AF824, FIND(\"%\", AF824)-1))) * ISNUMBER(FIND(\"%\", AF824 & \"wol\")) > 0,\n        TRIM(MID(AF824, FIND(\"%\", AF824)+1, FIND(\"/\", AF824 & \"/\")-FIND(\"%\", AF824)-1)),\n        \"Invalid format\"),\n    \"\")","v":""},{"$f":"IF(AF824 <> \"\",\n    IF(ISNUMBER(VALUE(MID(AF824, FIND(\"/\", AF824) + 1, FIND(\"%\", AF824, FIND(\"/\", AF824)) - FIND(\"/\", AF824) - 1))),\n        VALUE(MID(AF824, FIND(\"/\", AF824) + 1, FIND(\"%\", AF824, FIND(\"/\", AF824)) - FIND(\"/\", AF824) - 1)),\n        \"\"),\n    \"\")","v":""},{"$f":"IF(AF824 <> \"\",\n    IFERROR(TRIM(MID(AF824, FIND(\"%\", AF824, FIND(\"/\", AF824)+1)+2,\n        IFERROR(FIND(\"/\", AF824 & \"/\", FIND(\"/\", AF824)+1)-FIND(\"%\", AF824, FIND(\"/\", AF824)+1)-2, LEN(AF824)-FIND(\"%\", AF824, FIND(\"/\", AF824)+1)-1))),\n        \"\"),\n    \"\")","v":""},{"$f":"IF(AF824 <> \"\",\n    IF(ISNUMBER(VALUE(MID(AF824, FIND(\"/\", AF824, FIND(\"/\", AF824)+1) + 1, FIND(\"%\", AF824, FIND(\"/\", AF824, FIND(\"/\", AF824)+1)) - FIND(\"/\", AF824, FIND(\"/\", AF824)+1) - 1))),\n        VALUE(MID(AF824, FIND(\"/\", AF824, FIND(\"/\", AF824)+1) + 1, FIND(\"%\", AF824, FIND(\"/\", AF824, FIND(\"/\", AF824)+1)) - FIND(\"/\", AF824, FIND(\"/\", AF824)+1) - 1)),\n        \"\"),\n    \"\")","v":""},{"$f":"IF(AF824 <> \"\",\n    IFERROR(\n        TRIM(MID(AF824,\n            FIND(\"%\", AF824, FIND(\"%\", AF824, FIND(\"%\", AF824)+1)+1)+1,\n            FIND(\"/\", AF824 & \"/\", FIND(\"%\", AF824, FIND(\"%\", AF824, FIND(\"%\", AF824)+1)+1))-FIND(\"%\", AF824, FIND(\"%\", AF824, FIND(\"%\", AF824)+1)+1)-1)\n        ),\n        \"\"\n    ),\n    \"\"\n)","v":""},{"$f":"IF(AF824 <> \"\",\n    IF(ISNUMBER(VALUE(MID(AF824, FIND(\"/\", AF824, FIND(\"/\", AF824, FIND(\"/\", AF824)+1)+1) + 1, FIND(\"%\", AF824, FIND(\"/\", AF824, FIND(\"/\", AF824, FIND(\"/\", AF824)+1)+1)) - FIND(\"/\", AF824, FIND(\"/\", AF824, FIND(\"/\", AF824)+1)+1) - 1))),\n        VALUE(MID(AF824, FIND(\"/\", AF824, FIND(\"/\", AF824, FIND(\"/\", AF824)+1)+1) + 1, FIND(\"%\", AF824, FIND(\"/\", AF824, FIND(\"/\", AF824, FIND(\"/\", AF824)+1)+1)) - FIND(\"/\", AF824, FIND(\"/\", AF824, FIND(\"/\", AF824)+1)+1) - 1)),\n        \"\"),\n    \"\")","v":""},{"$f":"IF(AF824 <> \"\",\n    IFERROR(TRIM(MID(AF824, FIND(\"%\", AF824, FIND(\"/\", AF824, FIND(\"/\", AF824, FIND(\"/\", AF824)+1)+1)+1)+2,\n        IFERROR(FIND(\"/\", AF824, FIND(\"/\", AF824, FIND(\"/\", AF824, FIND(\"/\", AF824)+1)+1)+1)-FIND(\"%\", AF824, FIND(\"/\", AF824, FIND(\"/\", AF824, FIND(\"/\", AF824)+1)+1)+1)-2, LEN(AF824)-FIND(\"%\", AF824, FIND(\"/\", AF824, FIND(\"/\", AF824, FIND(\"/\", AF824)+1)+1)+1)-1))),\n        \"\"),\n    \"\")","v":""},{"$f":"IF(AF824 <> \"\",\n    IF(ISNUMBER(VALUE(MID(AF824, FIND(\"/\", AF824, FIND(\"/\", AF824, FIND(\"/\", AF824, FIND(\"/\", AF824)+1)+1)+1) + 1, FIND(\"%\", AF824, FIND(\"/\", AF824, FIND(\"/\", AF824, FIND(\"/\", AF824, FIND(\"/\", AF824)+1)+1)+1)) - FIND(\"/\", AF824, FIND(\"/\", AF824, FIND(\"/\", AF824, FIND(\"/\", AF824)+1)+1)+1) - 1))),\n        VALUE(MID(AF824, FIND(\"/\", AF824, FIND(\"/\", AF824, FIND(\"/\", AF824, FIND(\"/\", AF824)+1)+1)+1) + 1, FIND(\"%\", AF824, FIND(\"/\", AF824, FIND(\"/\", AF824, FIND(\"/\", AF824, FIND(\"/\", AF824)+1)+1)+1)) - FIND(\"/\", AF824, FIND(\"/\", AF824, FIND(\"/\", AF824, FIND(\"/\", AF824)+1)+1)+1) - 1)),\n        \"\"),\n    \"\")","v":""},{"$f":"IF(AF824 = \"\", \"\",\n    IFERROR(TRIM(\n        MID(\n            AF824,\n            FIND(\"%\", AF824, FIND(\"/\", AF824, FIND(\"/\", AF824, FIND(\"/\", AF824, FIND(\"/\", AF824)+1)+1)+1)+1) + 1,\n            FIND(\"/\", AF824 & \"/\", FIND(\"%\", AF824, FIND(\"/\", AF824, FIND(\"/\", AF824, FIND(\"/\", AF824, FIND(\"/\", AF824)+1)+1)+1)+1)) -\n            FIND(\"%\", AF824, FIND(\"/\", AF824, FIND(\"/\", AF824, FIND(\"/\", AF824, FIND(\"/\", AF824)+1)+1)+1)+1) - 1\n        )\n    ),\n    \"\")\n)","v":""},null,null,null,null,null,null,null,null,null,null,null,null,null,null,null,null,null,"ZWO"]
[null,null,null,null,null,{"$f":"VLOOKUP(G825,'Data order'!Z:AA,2,0)","v":{"$error":"#N/A"}},null,null,null,null,null,null,null,null,{"$f":"VLOOKUP(N825,Tabel10[[korte omschrijving]:[MCC3_CODE]],2,0)","v":{"$error":"#N/A"}},{"$f":"VLOOKUP(N825,'Data order'!M:O,3,0)","v":{"$error":"#N/A"}},null,null,null,{"$f":"IFERROR(\n  IF(R825=\"Big&Tall\",\n      VLOOKUP(S825, 'Data order'!$AC$92:$AD$101, 2, FALSE),\n      IF(R825=\"Boordmaat\",\n          VLOOKUP(S825, 'Data order'!$AC$102:$AD$116, 2, FALSE),\n          VLOOKUP(S825, 'Data order'!$AC$2:$AD$91, 2, FALSE)\n      )\n  ),\n\"\")","v":""},null,null,null,null,"EUR",null,null,null,{"$error":"#DIV/0!"},0,0,null,"","","","","","","","","","",null,null,null,null,null,null,null,null,null,null,null,null,null,null,null,null,null,"ZWO"]
[null,null,null,null,null,{"$f":"VLOOKUP(G826,'Data order'!Z:AA,2,0)","v":{"$error":"#N/A"}},null,null,null,null,null,null,null,null,{"$f":"VLOOKUP(N826,Tabel10[[korte omschrijving]:[MCC3_CODE]],2,0)","v":{"$error":"#N/A"}},{"$f":"VLOOKUP(N826,'Data order'!M:O,3,0)","v":{"$error":"#N/A"}},null,null,null,{"$f":"IFERROR(\n  IF(R826=\"Big&Tall\",\n      VLOOKUP(S826, 'Data order'!$AC$92:$AD$101, 2, FALSE),\n      IF(R826=\"Boordmaat\",\n          VLOOKUP(S826, 'Data order'!$AC$102:$AD$116, 2, FALSE),\n          VLOOKUP(S826, 'Data order'!$AC$2:$AD$91, 2, FALSE)\n      )\n  ),\n\"\")","v":""},null,null,null,null,"EUR",null,null,null,{"$error":"#DIV/0!"},0,0,null,"","","","","","","","","","",null,null,null,null,null,null,null,null,null,null,null,null,null,null,null,null,null,"ZWO"]
[null,null,null,null,null,{"$f":"VLOOKUP(G827,'Data order'!Z:AA,2,0)","v":{"$error":"#N/A"}},null,null,null,null,null,null,null,null,{"$f":"VLOOKUP(N827,Tabel10[[korte omschrijving]:[MCC3_CODE]],2,0)","v":{"$error":"#N/A"}},{"$f":"VLOOKUP(N827,'Data order'!M:O,3,0)","v":{"$error":"#N/A"}},null,null,null,{"$f":"IFERROR(\n  IF(R827=\"Big&Tall\",\n      VLOOKUP(S827, 'Data order'!$AC$92:$AD$101, 2, FALSE),\n      IF(R827=\"Boordmaat\",\n          VLOOKUP(S827, 'Data order'!$AC$102:$AD$116, 2, FALSE),\n          VLOOKUP(S827, 'Data order'!$AC$2:$AD$91, 2, FALSE)\n      )\n  ),\n\"\")","v":""},null,null,null,null,"EUR",null,null,null,{"$error":"#DIV/0!"},0,0,null,"","","","","","","","","","",null,null,null,null,null,null,null,null,null,null,null,null,null,null,null,null,null,"ZWO"]
[null,null,null,null,null,{"$f":"VLOOKUP(G828,'Data order'!Z:AA,2,0)","v":{"$error":"#N/A"}},null,null,null,null,null,null,null,null,{"$f":"VLOOKUP(N828,Tabel10[[korte omschrijving]:[MCC3_CODE]],2,0)","v":{"$error":"#N/A"}},{"$f":"VLOOKUP(N828,'Data order'!M:O,3,0)","v":{"$error":"#N/A"}},null,null,null,{"$f":"IFERROR(\n  IF(R828=\"Big&Tall\",\n      VLOOKUP(S828, 'Data order'!$AC$92:$AD$101, 2, FALSE),\n      IF(R828=\"Boordmaat\",\n          VLOOKUP(S828, 'Data order'!$AC$102:$AD$116, 2, FALSE),\n          VLOOKUP(S828, 'Data order'!$AC$2:$AD$91, 2, FALSE)\n      )\n  ),\n\"\")","v":""},null,0,null,null,"EUR",null,null,null,{"$f":"AB828/Z828","v":{"$error":"#DIV/0!"}},{"$f":"U828*Z828","v":0},{"$f":"U828*AB828","v":0},null,"","","","","","","","","","",null,null,null,null,null,null,null,null,null,null,null,null,null,null,null,null,null,"ZWO"]
[null,null,null,null,null,{"$f":"VLOOKUP(G829,'Data order'!Z:AA,2,0)","v":{"$error":"#N/A"}},null,null,null,null,null,null,null,null,{"$f":"VLOOKUP(N829,Tabel10[[korte omschrijving]:[MCC3_CODE]],2,0)","v":{"$error":"#N/A"}},{"$f":"VLOOKUP(N829,'Data order'!M:O,3,0)","v":{"$error":"#N/A"}},null,null,null,{"$f":"IFERROR(\n  IF(R829=\"Big&Tall\",\n      VLOOKUP(S829, 'Data order'!$AC$92:$AD$101, 2, FALSE),\n      IF(R829=\"Boordmaat\",\n          VLOOKUP(S829, 'Data order'!$AC$102:$AD$116, 2, FALSE),\n          VLOOKUP(S829, 'Data order'!$AC$2:$AD$91, 2, FALSE)\n      )\n  ),\n\"\")","v":""},null,null,null,null,"EUR",null,null,null,{"$error":"#DIV/0!"},0,0,null,"","","","","","","","","","",null,null,null,null,null,null,null,null,null,null,null,null,null,null,null,null,null,"ZWO"]
[null,null,null,null,null,{"$f":"VLOOKUP(G830,'Data order'!Z:AA,2,0)","v":{"$error":"#N/A"}},null,null,null,null,null,null,null,null,{"$f":"VLOOKUP(N830,Tabel10[[korte omschrijving]:[MCC3_CODE]],2,0)","v":{"$error":"#N/A"}},{"$f":"VLOOKUP(N830,'Data order'!M:O,3,0)","v":{"$error":"#N/A"}},null,null,null,{"$f":"IFERROR(\n  IF(R830=\"Big&Tall\",\n      VLOOKUP(S830, 'Data order'!$AC$92:$AD$101, 2, FALSE),\n      IF(R830=\"Boordmaat\",\n          VLOOKUP(S830, 'Data order'!$AC$102:$AD$116, 2, FALSE),\n          VLOOKUP(S830, 'Data order'!$AC$2:$AD$91, 2, FALSE)\n      )\n  ),\n\"\")","v":""},null,null,null,null,"EUR",null,null,null,{"$error":"#DIV/0!"},0,0,null,"","","","","","","","","","",null,null,null,null,null,null,null,null,null,null,null,null,null,null,null,null,null,"ZWO"]
[null,null,null,null,null,{"$f":"VLOOKUP(G831,'Data order'!Z:AA,2,0)","v":{"$error":"#N/A"}},null,null,null,null,null,null,null,null,{"$f":"VLOOKUP(N831,Tabel10[[korte omschrijving]:[MCC3_CODE]],2,0)","v":{"$error":"#N/A"}},{"$f":"VLOOKUP(N831,'Data order'!M:O,3,0)","v":{"$error":"#N/A"}},null,null,null,{"$f":"IFERROR(\n  IF(R831=\"Big&Tall\",\n      VLOOKUP(S831, 'Data order'!$AC$92:$AD$101, 2, FALSE),\n      IF(R831=\"Boordmaat\",\n          VLOOKUP(S831, 'Data order'!$AC$102:$AD$116, 2, FALSE),\n          VLOOKUP(S831, 'Data order'!$AC$2:$AD$91, 2, FALSE)\n      )\n  ),\n\"\")","v":""},null,null,null,null,"EUR",null,null,null,{"$error":"#DIV/0!"},0,0,null,"","","","","","","","","","",null,null,null,null,null,null,null,null,null,null,null,null,null,null,null,null,null,"ZWO"]
[null,null,null,null,null,{"$f":"VLOOKUP(G832,'Data order'!Z:AA,2,0)","v":{"$error":"#N/A"}},null,null,null,null,null,null,null,null,{"$f":"VLOOKUP(N832,Tabel10[[korte omschrijving]:[MCC3_CODE]],2,0)","v":{"$error":"#N/A"}},{"$f":"VLOOKUP(N832,'Data order'!M:O,3,0)","v":{"$error":"#N/A"}},null,null,null,{"$f":"IFERROR(\n  IF(R832=\"Big&Tall\",\n      VLOOKUP(S832, 'Data order'!$AC$92:$AD$101, 2, FALSE),\n      IF(R832=\"Boordmaat\",\n          VLOOKUP(S832, 'Data order'!$AC$102:$AD$116, 2, FALSE),\n          VLOOKUP(S832, 'Data order'!$AC$2:$AD$91, 2, FALSE)\n      )\n  ),\n\"\")","v":""},null,null,null,null,"EUR",null,null,null,{"$error":"#DIV/0!"},0,0,null,"","","","","","","","","","",null,null,null,null,null,null,null,null,null,null,null,null,null,null,null,null,null,"ZWO"]
[null,null,null,null,null,{"$f":"VLOOKUP(G833,'Data order'!Z:AA,2,0)","v":{"$error":"#N/A"}},null,null,null,null,null,null,null,null,{"$f":"VLOOKUP(N833,Tabel10[[korte omschrijving]:[MCC3_CODE]],2,0)","v":{"$error":"#N/A"}},{"$f":"VLOOKUP(N833,'Data order'!M:O,3,0)","v":{"$error":"#N/A"}},null,null,null,{"$f":"IFERROR(\n  IF(R833=\"Big&Tall\",\n      VLOOKUP(S833, 'Data order'!$AC$92:$AD$101, 2, FALSE),\n      IF(R833=\"Boordmaat\",\n          VLOOKUP(S833, 'Data order'!$AC$102:$AD$116, 2, FALSE),\n          VLOOKUP(S833, 'Data order'!$AC$2:$AD$91, 2, FALSE)\n      )\n  ),\n\"\")","v":""},null,null,null,null,"EUR",null,null,null,{"$error":"#DIV/0!"},0,0,null,"","","","","","","","","","",null,null,null,null,null,null,null,null,null,null,null,null,null,null,null,null,null,"ZWO"]
[null,null,null,null,null,{"$f":"VLOOKUP(G834,'Data order'!Z:AA,2,0)","v":{"$error":"#N/A"}},null,null,null,null,null,null,null,null,{"$f":"VLOOKUP(N834,Tabel10[[korte omschrijving]:[MCC3_CODE]],2,0)","v":{"$error":"#N/A"}},{"$f":"VLOOKUP(N834,'Data order'!M:O,3,0)","v":{"$error":"#N/A"}},null,null,null,{"$f":"IFERROR(\n  IF(R834=\"Big&Tall\",\n      VLOOKUP(S834, 'Data order'!$AC$92:$AD$101, 2, FALSE),\n      IF(R834=\"Boordmaat\",\n          VLOOKUP(S834, 'Data order'!$AC$102:$AD$116, 2, FALSE),\n          VLOOKUP(S834, 'Data order'!$AC$2:$AD$91, 2, FALSE)\n      )\n  ),\n\"\")","v":""},null,{"$f":"SUM(U834:U839)","v":0},null,null,"EUR",null,null,null,{"$f":"AB834/Z834","v":{"$error":"#DIV/0!"}},{"$f":"U834*Z834","v":0},{"$f":"U834*AB834","v":0},null,"","","","","","","","","","",null,null,null,null,null,null,null,null,null,null,null,null,null,null,null,null,null,"ZWO"]
[null,null,null,null,null,{"$f":"VLOOKUP(G835,'Data order'!Z:AA,2,0)","v":{"$error":"#N/A"}},null,null,null,null,null,null,null,null,{"$f":"VLOOKUP(N835,Tabel10[[korte omschrijving]:[MCC3_CODE]],2,0)","v":{"$error":"#N/A"}},{"$f":"VLOOKUP(N835,'Data order'!M:O,3,0)","v":{"$error":"#N/A"}},null,null,null,{"$f":"IFERROR(\n  IF(R835=\"Big&Tall\",\n      VLOOKUP(S835, 'Data order'!$AC$92:$AD$101, 2, FALSE),\n      IF(R835=\"Boordmaat\",\n          VLOOKUP(S835, 'Data order'!$AC$102:$AD$116, 2, FALSE),\n          VLOOKUP(S835, 'Data order'!$AC$2:$AD$91, 2, FALSE)\n      )\n  ),\n\"\")","v":""},null,null,null,null,"EUR",null,null,null,{"$error":"#DIV/0!"},0,0,null,"","","","","","","","","","",null,null,null,null,null,null,null,null,null,null,null,null,null,null,null,null,null,"ZWO"]
[null,null,null,null,null,{"$f":"VLOOKUP(G836,'Data order'!Z:AA,2,0)","v":{"$error":"#N/A"}},null,null,null,null,null,null,null,null,{"$f":"VLOOKUP(N836,Tabel10[[korte omschrijving]:[MCC3_CODE]],2,0)","v":{"$error":"#N/A"}},{"$f":"VLOOKUP(N836,'Data order'!M:O,3,0)","v":{"$error":"#N/A"}},null,null,null,{"$f":"IFERROR(\n  IF(R836=\"Big&Tall\",\n      VLOOKUP(S836, 'Data order'!$AC$92:$AD$101, 2, FALSE),\n      IF(R836=\"Boordmaat\",\n          VLOOKUP(S836, 'Data order'!$AC$102:$AD$116, 2, FALSE),\n          VLOOKUP(S836, 'Data order'!$AC$2:$AD$91, 2, FALSE)\n      )\n  ),\n\"\")","v":""},null,null,null,null,"EUR",null,null,null,{"$error":"#DIV/0!"},0,0,null,"","","","","","","","","","",null,null,null,null,null,null,null,null,null,null,null,null,null,null,null,null,null,"ZWO"]
[null,null,null,null,null,{"$f":"VLOOKUP(G837,'Data order'!Z:AA,2,0)","v":{"$error":"#N/A"}},null,null,null,null,null,null,null,null,{"$f":"VLOOKUP(N837,Tabel10[[korte omschrijving]:[MCC3_CODE]],2,0)","v":{"$error":"#N/A"}},{"$f":"VLOOKUP(N837,'Data order'!M:O,3,0)","v":{"$error":"#N/A"}},null,null,null,{"$f":"IFERROR(\n  IF(R837=\"Big&Tall\",\n      VLOOKUP(S837, 'Data order'!$AC$92:$AD$101, 2, FALSE),\n      IF(R837=\"Boordmaat\",\n          VLOOKUP(S837, 'Data order'!$AC$102:$AD$116, 2, FALSE),\n          VLOOKUP(S837, 'Data order'!$AC$2:$AD$91, 2, FALSE)\n      )\n  ),\n\"\")","v":""},null,null,null,null,"EUR",null,null,null,{"$error":"#DIV/0!"},0,0,null,"","","","","","","","","","",null,null,null,null,null,null,null,null,null,null,null,null,null,null,null,null,null,"ZWO"]
[null,null,null,null,null,{"$f":"VLOOKUP(G838,'Data order'!Z:AA,2,0)","v":{"$error":"#N/A"}},null,null,null,null,null,null,null,null,{"$f":"VLOOKUP(N838,Tabel10[[korte omschrijving]:[MCC3_CODE]],2,0)","v":{"$error":"#N/A"}},{"$f":"VLOOKUP(N838,'Data order'!M:O,3,0)","v":{"$error":"#N/A"}},null,null,null,{"$f":"IFERROR(\n  IF(R838=\"Big&Tall\",\n      VLOOKUP(S838, 'Data order'!$AC$92:$AD$101, 2, FALSE),\n      IF(R838=\"Boordmaat\",\n          VLOOKUP(S838, 'Data order'!$AC$102:$AD$116, 2, FALSE),\n          VLOOKUP(S838, 'Data order'!$AC$2:$AD$91, 2, FALSE)\n      )\n  ),\n\"\")","v":""},null,null,null,null,"EUR",null,null,null,{"$error":"#DIV/0!"},0,0,null,"","","","","","","","","","",null,null,null,null,null,null,null,null,null,null,null,null,null,null,null,null,null,"ZWO"]
[null,null,null,null,null,{"$f":"VLOOKUP(G839,'Data order'!Z:AA,2,0)","v":{"$error":"#N/A"}},null,null,null,null,null,null,null,null,{"$f":"VLOOKUP(N839,Tabel10[[korte omschrijving]:[MCC3_CODE]],2,0)","v":{"$error":"#N/A"}},{"$f":"VLOOKUP(N839,'Data order'!M:O,3,0)","v":{"$error":"#N/A"}},null,null,null,{"$f":"IFERROR(\n  IF(R839=\"Big&Tall\",\n      VLOOKUP(S839, 'Data order'!$AC$92:$AD$101, 2, FALSE),\n      IF(R839=\"Boordmaat\",\n          VLOOKUP(S839, 'Data order'!$AC$102:$AD$116, 2, FALSE),\n          VLOOKUP(S839, 'Data order'!$AC$2:$AD$91, 2, FALSE)\n      )\n  ),\n\"\")","v":""},null,null,null,null,"EUR",null,null,null,{"$error":"#DIV/0!"},0,0,null,"","","","","","","","","","",null,null,null,null,null,null,null,null,null,null,null,null,null,null,null,null,null,"ZWO"]
[null,null,null,null,null,{"$f":"VLOOKUP(G840,'Data order'!Z:AA,2,0)","v":{"$error":"#N/A"}},null,null,null,null,null,null,null,null,{"$f":"VLOOKUP(N840,Tabel10[[korte omschrijving]:[MCC3_CODE]],2,0)","v":{"$error":"#N/A"}},{"$f":"VLOOKUP(N840,'Data order'!M:O,3,0)","v":{"$error":"#N/A"}},null,null,null,{"$f":"IFERROR(\n  IF(R840=\"Big&Tall\",\n      VLOOKUP(S840, 'Data order'!$AC$92:$AD$101, 2, FALSE),\n      IF(R840=\"Boordmaat\",\n          VLOOKUP(S840, 'Data order'!$AC$102:$AD$116, 2, FALSE),\n          VLOOKUP(S840, 'Data order'!$AC$2:$AD$91, 2, FALSE)\n      )\n  ),\n\"\")","v":""},null,0,null,null,"EUR",null,null,null,{"$f":"AB840/Z840","v":{"$error":"#DIV/0!"}},{"$f":"U840*Z840","v":0},{"$f":"U840*AB840","v":0},null,"","","","","","","","","","",null,null,null,null,null,null,null,null,null,null,null,null,null,null,null,null,null,"ZWO"]
[null,null,null,null,null,{"$f":"VLOOKUP(G841,'Data order'!Z:AA,2,0)","v":{"$error":"#N/A"}},null,null,null,null,null,null,null,null,{"$f":"VLOOKUP(N841,Tabel10[[korte omschrijving]:[MCC3_CODE]],2,0)","v":{"$error":"#N/A"}},{"$f":"VLOOKUP(N841,'Data order'!M:O,3,0)","v":{"$error":"#N/A"}},null,null,null,{"$f":"IFERROR(\n  IF(R841=\"Big&Tall\",\n      VLOOKUP(S841, 'Data order'!$AC$92:$AD$101, 2, FALSE),\n      IF(R841=\"Boordmaat\",\n          VLOOKUP(S841, 'Data order'!$AC$102:$AD$116, 2, FALSE),\n          VLOOKUP(S841, 'Data order'!$AC$2:$AD$91, 2, FALSE)\n      )\n  ),\n\"\")","v":""},null,null,null,null,"EUR",null,null,null,{"$error":"#DIV/0!"},0,0,null,"","","","","","","","","","",null,null,null,null,null,null,null,null,null,null,null,null,null,null,null,null,null,"ZWO"]
[null,null,null,null,null,{"$f":"VLOOKUP(G842,'Data order'!Z:AA,2,0)","v":{"$error":"#N/A"}},null,null,null,null,null,null,null,null,{"$f":"VLOOKUP(N842,Tabel10[[korte omschrijving]:[MCC3_CODE]],2,0)","v":{"$error":"#N/A"}},{"$f":"VLOOKUP(N842,'Data order'!M:O,3,0)","v":{"$error":"#N/A"}},null,null,null,{"$f":"IFERROR(\n  IF(R842=\"Big&Tall\",\n      VLOOKUP(S842, 'Data order'!$AC$92:$AD$101, 2, FALSE),\n      IF(R842=\"Boordmaat\",\n          VLOOKUP(S842, 'Data order'!$AC$102:$AD$116, 2, FALSE),\n          VLOOKUP(S842, 'Data order'!$AC$2:$AD$91, 2, FALSE)\n      )\n  ),\n\"\")","v":""},null,null,null,null,"EUR",null,null,null,{"$error":"#DIV/0!"},0,0,null,"","","","","","","","","","",null,null,null,null,null,null,null,null,null,null,null,null,null,null,null,null,null,"ZWO"]
[null,null,null,null,null,{"$f":"VLOOKUP(G843,'Data order'!Z:AA,2,0)","v":{"$error":"#N/A"}},null,null,null,null,null,null,null,null,{"$f":"VLOOKUP(N843,Tabel10[[korte omschrijving]:[MCC3_CODE]],2,0)","v":{"$error":"#N/A"}},{"$f":"VLOOKUP(N843,'Data order'!M:O,3,0)","v":{"$error":"#N/A"}},null,null,null,{"$f":"IFERROR(\n  IF(R843=\"Big&Tall\",\n      VLOOKUP(S843, 'Data order'!$AC$92:$AD$101, 2, FALSE),\n      IF(R843=\"Boordmaat\",\n          VLOOKUP(S843, 'Data order'!$AC$102:$AD$116, 2, FALSE),\n          VLOOKUP(S843, 'Data order'!$AC$2:$AD$91, 2, FALSE)\n      )\n  ),\n\"\")","v":""},null,null,null,null,"EUR",null,null,null,{"$error":"#DIV/0!"},0,0,null,"","","","","","","","","","",null,null,null,null,null,null,null,null,null,null,null,null,null,null,null,null,null,"ZWO"]
[null,null,null,null,null,{"$f":"VLOOKUP(G844,'Data order'!Z:AA,2,0)","v":{"$error":"#N/A"}},null,null,null,null,null,null,null,null,{"$f":"VLOOKUP(N844,Tabel10[[korte omschrijving]:[MCC3_CODE]],2,0)","v":{"$error":"#N/A"}},{"$f":"VLOOKUP(N844,'Data order'!M:O,3,0)","v":{"$error":"#N/A"}},null,null,null,{"$f":"IFERROR(\n  IF(R844=\"Big&Tall\",\n      VLOOKUP(S844, 'Data order'!$AC$92:$AD$101, 2, FALSE),\n      IF(R844=\"Boordmaat\",\n          VLOOKUP(S844, 'Data order'!$AC$102:$AD$116, 2, FALSE),\n          VLOOKUP(S844, 'Data order'!$AC$2:$AD$91, 2, FALSE)\n      )\n  ),\n\"\")","v":""},null,null,null,null,"EUR",null,null,null,{"$error":"#DIV/0!"},0,0,null,"","","","","","","","","","",null,null,null,null,null,null,null,null,null,null,null,null,null,null,null,null,null,"ZWO"]
[null,null,null,null,null,{"$f":"VLOOKUP(G845,'Data order'!Z:AA,2,0)","v":{"$error":"#N/A"}},null,null,null,null,null,null,null,null,{"$f":"VLOOKUP(N845,Tabel10[[korte omschrijving]:[MCC3_CODE]],2,0)","v":{"$error":"#N/A"}},{"$f":"VLOOKUP(N845,'Data order'!M:O,3,0)","v":{"$error":"#N/A"}},null,null,null,{"$f":"IFERROR(\n  IF(R845=\"Big&Tall\",\n      VLOOKUP(S845, 'Data order'!$AC$92:$AD$101, 2, FALSE),\n      IF(R845=\"Boordmaat\",\n          VLOOKUP(S845, 'Data order'!$AC$102:$AD$116, 2, FALSE),\n          VLOOKUP(S845, 'Data order'!$AC$2:$AD$91, 2, FALSE)\n      )\n  ),\n\"\")","v":""},null,null,null,null,"EUR",null,null,null,{"$error":"#DIV/0!"},0,0,null,"","","","","","","","","","",null,null,null,null,null,null,null,null,null,null,null,null,null,null,null,null,null,"ZWO"]
[null,null,null,null,null,{"$f":"VLOOKUP(G846,'Data order'!Z:AA,2,0)","v":{"$error":"#N/A"}},null,null,null,null,null,null,null,null,{"$f":"VLOOKUP(N846,Tabel10[[korte omschrijving]:[MCC3_CODE]],2,0)","v":{"$error":"#N/A"}},{"$f":"VLOOKUP(N846,'Data order'!M:O,3,0)","v":{"$error":"#N/A"}},null,null,null,{"$f":"IFERROR(\n  IF(R846=\"Big&Tall\",\n      VLOOKUP(S846, 'Data order'!$AC$92:$AD$101, 2, FALSE),\n      IF(R846=\"Boordmaat\",\n          VLOOKUP(S846, 'Data order'!$AC$102:$AD$116, 2, FALSE),\n          VLOOKUP(S846, 'Data order'!$AC$2:$AD$91, 2, FALSE)\n      )\n  ),\n\"\")","v":""},null,0,null,null,"EUR",null,null,null,{"$f":"AB846/Z846","v":{"$error":"#DIV/0!"}},{"$f":"U846*Z846","v":0},{"$f":"U846*AB846","v":0},null,"","","","","","","","","","",null,null,null,null,null,null,null,null,null,null,null,null,null,null,null,null,null,"ZWO"]
[null,null,null,null,null,{"$f":"VLOOKUP(G847,'Data order'!Z:AA,2,0)","v":{"$error":"#N/A"}},null,null,null,null,null,null,null,null,{"$f":"VLOOKUP(N847,Tabel10[[korte omschrijving]:[MCC3_CODE]],2,0)","v":{"$error":"#N/A"}},{"$f":"VLOOKUP(N847,'Data order'!M:O,3,0)","v":{"$error":"#N/A"}},null,null,null,{"$f":"IFERROR(\n  IF(R847=\"Big&Tall\",\n      VLOOKUP(S847, 'Data order'!$AC$92:$AD$101, 2, FALSE),\n      IF(R847=\"Boordmaat\",\n          VLOOKUP(S847, 'Data order'!$AC$102:$AD$116, 2, FALSE),\n          VLOOKUP(S847, 'Data order'!$AC$2:$AD$91, 2, FALSE)\n      )\n  ),\n\"\")","v":""},null,null,null,null,"EUR",null,null,null,{"$error":"#DIV/0!"},0,0,null,"","","","","","","","","","",null,null,null,null,null,null,null,null,null,null,null,null,null,null,null,null,null,"ZWO"]
[null,null,null,null,null,{"$f":"VLOOKUP(G848,'Data order'!Z:AA,2,0)","v":{"$error":"#N/A"}},null,null,null,null,null,null,null,null,{"$f":"VLOOKUP(N848,Tabel10[[korte omschrijving]:[MCC3_CODE]],2,0)","v":{"$error":"#N/A"}},{"$f":"VLOOKUP(N848,'Data order'!M:O,3,0)","v":{"$error":"#N/A"}},null,null,null,{"$f":"IFERROR(\n  IF(R848=\"Big&Tall\",\n      VLOOKUP(S848, 'Data order'!$AC$92:$AD$101, 2, FALSE),\n      IF(R848=\"Boordmaat\",\n          VLOOKUP(S848, 'Data order'!$AC$102:$AD$116, 2, FALSE),\n          VLOOKUP(S848, 'Data order'!$AC$2:$AD$91, 2, FALSE)\n      )\n  ),\n\"\")","v":""},null,null,null,null,"EUR",null,null,null,{"$error":"#DIV/0!"},0,0,null,"","","","","","","","","","",null,null,null,null,null,null,null,null,null,null,null,null,null,null,null,null,null,"ZWO"]
[null,null,null,null,null,{"$f":"VLOOKUP(G849,'Data order'!Z:AA,2,0)","v":{"$error":"#N/A"}},null,null,null,null,null,null,null,null,{"$f":"VLOOKUP(N849,Tabel10[[korte omschrijving]:[MCC3_CODE]],2,0)","v":{"$error":"#N/A"}},{"$f":"VLOOKUP(N849,'Data order'!M:O,3,0)","v":{"$error":"#N/A"}},null,null,null,{"$f":"IFERROR(\n  IF(R849=\"Big&Tall\",\n      VLOOKUP(S849, 'Data order'!$AC$92:$AD$101, 2, FALSE),\n      IF(R849=\"Boordmaat\",\n          VLOOKUP(S849, 'Data order'!$AC$102:$AD$116, 2, FALSE),\n          VLOOKUP(S849, 'Data order'!$AC$2:$AD$91, 2, FALSE)\n      )\n  ),\n\"\")","v":""},null,null,null,null,"EUR",null,null,null,{"$error":"#DIV/0!"},0,0,null,"","","","","","","","","","",null,null,null,null,null,null,null,null,null,null,null,null,null,null,null,null,null,"ZWO"]
[null,null,null,null,null,{"$f":"VLOOKUP(G850,'Data order'!Z:AA,2,0)","v":{"$error":"#N/A"}},null,null,null,null,null,null,null,null,{"$f":"VLOOKUP(N850,Tabel10[[korte omschrijving]:[MCC3_CODE]],2,0)","v":{"$error":"#N/A"}},{"$f":"VLOOKUP(N850,'Data order'!M:O,3,0)","v":{"$error":"#N/A"}},null,null,null,{"$f":"IFERROR(\n  IF(R850=\"Big&Tall\",\n      VLOOKUP(S850, 'Data order'!$AC$92:$AD$101, 2, FALSE),\n      IF(R850=\"Boordmaat\",\n          VLOOKUP(S850, 'Data order'!$AC$102:$AD$116, 2, FALSE),\n          VLOOKUP(S850, 'Data order'!$AC$2:$AD$91, 2, FALSE)\n      )\n  ),\n\"\")","v":""},null,null,null,null,"EUR",null,null,null,{"$error":"#DIV/0!"},0,0,null,"","","","","","","","","","",null,null,null,null,null,null,null,null,null,null,null,null,null,null,null,null,null,"ZWO"]
[null,null,null,null,null,{"$f":"VLOOKUP(G851,'Data order'!Z:AA,2,0)","v":{"$error":"#N/A"}},null,null,null,null,null,null,null,null,{"$f":"VLOOKUP(N851,Tabel10[[korte omschrijving]:[MCC3_CODE]],2,0)","v":{"$error":"#N/A"}},{"$f":"VLOOKUP(N851,'Data order'!M:O,3,0)","v":{"$error":"#N/A"}},null,null,null,{"$f":"IFERROR(\n  IF(R851=\"Big&Tall\",\n      VLOOKUP(S851, 'Data order'!$AC$92:$AD$101, 2, FALSE),\n      IF(R851=\"Boordmaat\",\n          VLOOKUP(S851, 'Data order'!$AC$102:$AD$116, 2, FALSE),\n          VLOOKUP(S851, 'Data order'!$AC$2:$AD$91, 2, FALSE)\n      )\n  ),\n\"\")","v":""},null,null,null,null,"EUR",null,null,null,{"$error":"#DIV/0!"},0,0,null,"","","","","","","","","","",null,null,null,null,null,null,null,null,null,null,null,null,null,null,null,null,null,"ZWO"]
[null,null,null,null,null,{"$f":"VLOOKUP(G852,'Data order'!Z:AA,2,0)","v":{"$error":"#N/A"}},null,null,null,null,null,null,null,null,{"$f":"VLOOKUP(N852,Tabel10[[korte omschrijving]:[MCC3_CODE]],2,0)","v":{"$error":"#N/A"}},{"$f":"VLOOKUP(N852,'Data order'!M:O,3,0)","v":{"$error":"#N/A"}},null,null,null,{"$f":"IFERROR(\n  IF(R852=\"Big&Tall\",\n      VLOOKUP(S852, 'Data order'!$AC$92:$AD$101, 2, FALSE),\n      IF(R852=\"Boordmaat\",\n          VLOOKUP(S852, 'Data order'!$AC$102:$AD$116, 2, FALSE),\n          VLOOKUP(S852, 'Data order'!$AC$2:$AD$91, 2, FALSE)\n      )\n  ),\n\"\")","v":""},null,0,null,null,"EUR",null,null,null,{"$f":"AB852/Z852","v":{"$error":"#DIV/0!"}},{"$f":"U852*Z852","v":0},{"$f":"U852*AB852","v":0},null,"","","","","","","","","","",null,null,null,null,null,null,null,null,null,null,null,null,null,null,null,null,null,"ZWO"]
[null,null,null,null,null,{"$f":"VLOOKUP(G853,'Data order'!Z:AA,2,0)","v":{"$error":"#N/A"}},null,null,null,null,null,null,null,null,{"$f":"VLOOKUP(N853,Tabel10[[korte omschrijving]:[MCC3_CODE]],2,0)","v":{"$error":"#N/A"}},{"$f":"VLOOKUP(N853,'Data order'!M:O,3,0)","v":{"$error":"#N/A"}},null,null,null,{"$f":"IFERROR(\n  IF(R853=\"Big&Tall\",\n      VLOOKUP(S853, 'Data order'!$AC$92:$AD$101, 2, FALSE),\n      IF(R853=\"Boordmaat\",\n          VLOOKUP(S853, 'Data order'!$AC$102:$AD$116, 2, FALSE),\n          VLOOKUP(S853, 'Data order'!$AC$2:$AD$91, 2, FALSE)\n      )\n  ),\n\"\")","v":""},null,null,null,null,"EUR",null,null,null,{"$error":"#DIV/0!"},0,0,null,"","","","","","","","","","",null,null,null,null,null,null,null,null,null,null,null,null,null,null,null,null,null,"ZWO"]
[null,null,null,null,null,{"$f":"VLOOKUP(G854,'Data order'!Z:AA,2,0)","v":{"$error":"#N/A"}},null,null,null,null,null,null,null,null,{"$f":"VLOOKUP(N854,Tabel10[[korte omschrijving]:[MCC3_CODE]],2,0)","v":{"$error":"#N/A"}},{"$f":"VLOOKUP(N854,'Data order'!M:O,3,0)","v":{"$error":"#N/A"}},null,null,null,{"$f":"IFERROR(\n  IF(R854=\"Big&Tall\",\n      VLOOKUP(S854, 'Data order'!$AC$92:$AD$101, 2, FALSE),\n      IF(R854=\"Boordmaat\",\n          VLOOKUP(S854, 'Data order'!$AC$102:$AD$116, 2, FALSE),\n          VLOOKUP(S854, 'Data order'!$AC$2:$AD$91, 2, FALSE)\n      )\n  ),\n\"\")","v":""},null,null,null,null,"EUR",null,null,null,{"$error":"#DIV/0!"},0,0,null,"","","","","","","","","","",null,null,null,null,null,null,null,null,null,null,null,null,null,null,null,null,null,"ZWO"]
[null,null,null,null,null,{"$f":"VLOOKUP(G855,'Data order'!Z:AA,2,0)","v":{"$error":"#N/A"}},null,null,null,null,null,null,null,null,{"$f":"VLOOKUP(N855,Tabel10[[korte omschrijving]:[MCC3_CODE]],2,0)","v":{"$error":"#N/A"}},{"$f":"VLOOKUP(N855,'Data order'!M:O,3,0)","v":{"$error":"#N/A"}},null,null,null,{"$f":"IFERROR(\n  IF(R855=\"Big&Tall\",\n      VLOOKUP(S855, 'Data order'!$AC$92:$AD$101, 2, FALSE),\n      IF(R855=\"Boordmaat\",\n          VLOOKUP(S855, 'Data order'!$AC$102:$AD$116, 2, FALSE),\n          VLOOKUP(S855, 'Data order'!$AC$2:$AD$91, 2, FALSE)\n      )\n  ),\n\"\")","v":""},null,null,null,null,"EUR",null,null,null,{"$error":"#DIV/0!"},0,0,null,"","","","","","","","","","",null,null,null,null,null,null,null,null,null,null,null,null,null,null,null,null,null,"ZWO"]
[null,null,null,null,null,{"$f":"VLOOKUP(G856,'Data order'!Z:AA,2,0)","v":{"$error":"#N/A"}},null,null,null,null,null,null,null,null,{"$f":"VLOOKUP(N856,Tabel10[[korte omschrijving]:[MCC3_CODE]],2,0)","v":{"$error":"#N/A"}},{"$f":"VLOOKUP(N856,'Data order'!M:O,3,0)","v":{"$error":"#N/A"}},null,null,null,{"$f":"IFERROR(\n  IF(R856=\"Big&Tall\",\n      VLOOKUP(S856, 'Data order'!$AC$92:$AD$101, 2, FALSE),\n      IF(R856=\"Boordmaat\",\n          VLOOKUP(S856, 'Data order'!$AC$102:$AD$116, 2, FALSE),\n          VLOOKUP(S856, 'Data order'!$AC$2:$AD$91, 2, FALSE)\n      )\n  ),\n\"\")","v":""},null,null,null,null,"EUR",null,null,null,{"$error":"#DIV/0!"},0,0,null,"","","","","","","","","","",null,null,null,null,null,null,null,null,null,null,null,null,null,null,null,null,null,"ZWO"]
[null,null,null,null,null,{"$f":"VLOOKUP(G857,'Data order'!Z:AA,2,0)","v":{"$error":"#N/A"}},null,null,null,null,null,null,null,null,{"$f":"VLOOKUP(N857,Tabel10[[korte omschrijving]:[MCC3_CODE]],2,0)","v":{"$error":"#N/A"}},{"$f":"VLOOKUP(N857,'Data order'!M:O,3,0)","v":{"$error":"#N/A"}},null,null,null,{"$f":"IFERROR(\n  IF(R857=\"Big&Tall\",\n      VLOOKUP(S857, 'Data order'!$AC$92:$AD$101, 2, FALSE),\n      IF(R857=\"Boordmaat\",\n          VLOOKUP(S857, 'Data order'!$AC$102:$AD$116, 2, FALSE),\n          VLOOKUP(S857, 'Data order'!$AC$2:$AD$91, 2, FALSE)\n      )\n  ),\n\"\")","v":""},null,null,null,null,"EUR",null,null,null,{"$error":"#DIV/0!"},0,0,null,"","","","","","","","","","",null,null,null,null,null,null,null,null,null,null,null,null,null,null,null,null,null,"ZWO"]
[null,null,null,null,null,{"$f":"VLOOKUP(G858,'Data order'!Z:AA,2,0)","v":{"$error":"#N/A"}},null,null,null,null,null,null,null,null,{"$f":"VLOOKUP(N858,Tabel10[[korte omschrijving]:[MCC3_CODE]],2,0)","v":{"$error":"#N/A"}},{"$f":"VLOOKUP(N858,'Data order'!M:O,3,0)","v":{"$error":"#N/A"}},null,null,null,{"$f":"IFERROR(\n  IF(R858=\"Big&Tall\",\n      VLOOKUP(S858, 'Data order'!$AC$92:$AD$101, 2, FALSE),\n      IF(R858=\"Boordmaat\",\n          VLOOKUP(S858, 'Data order'!$AC$102:$AD$116, 2, FALSE),\n          VLOOKUP(S858, 'Data order'!$AC$2:$AD$91, 2, FALSE)\n      )\n  ),\n\"\")","v":""},null,0,null,null,"EUR",null,null,null,{"$f":"AB858/Z858","v":{"$error":"#DIV/0!"}},{"$f":"U858*Z858","v":0},{"$f":"U858*AB858","v":0},null,"","","","","","","","","","",null,null,null,null,null,null,null,null,null,null,null,null,null,null,null,null,null,"ZWO"]
[null,null,null,null,null,{"$f":"VLOOKUP(G859,'Data order'!Z:AA,2,0)","v":{"$error":"#N/A"}},null,null,null,null,null,null,null,null,{"$f":"VLOOKUP(N859,Tabel10[[korte omschrijving]:[MCC3_CODE]],2,0)","v":{"$error":"#N/A"}},{"$f":"VLOOKUP(N859,'Data order'!M:O,3,0)","v":{"$error":"#N/A"}},null,null,null,{"$f":"IFERROR(\n  IF(R859=\"Big&Tall\",\n      VLOOKUP(S859, 'Data order'!$AC$92:$AD$101, 2, FALSE),\n      IF(R859=\"Boordmaat\",\n          VLOOKUP(S859, 'Data order'!$AC$102:$AD$116, 2, FALSE),\n          VLOOKUP(S859, 'Data order'!$AC$2:$AD$91, 2, FALSE)\n      )\n  ),\n\"\")","v":""},null,null,null,null,"EUR",null,null,null,{"$error":"#DIV/0!"},0,0,null,"","","","","","","","","","",null,null,null,null,null,null,null,null,null,null,null,null,null,null,null,null,null,"ZWO"]
[null,null,null,null,null,{"$f":"VLOOKUP(G860,'Data order'!Z:AA,2,0)","v":{"$error":"#N/A"}},null,null,null,null,null,null,null,null,{"$f":"VLOOKUP(N860,Tabel10[[korte omschrijving]:[MCC3_CODE]],2,0)","v":{"$error":"#N/A"}},{"$f":"VLOOKUP(N860,'Data order'!M:O,3,0)","v":{"$error":"#N/A"}},null,null,null,{"$f":"IFERROR(\n  IF(R860=\"Big&Tall\",\n      VLOOKUP(S860, 'Data order'!$AC$92:$AD$101, 2, FALSE),\n      IF(R860=\"Boordmaat\",\n          VLOOKUP(S860, 'Data order'!$AC$102:$AD$116, 2, FALSE),\n          VLOOKUP(S860, 'Data order'!$AC$2:$AD$91, 2, FALSE)\n      )\n  ),\n\"\")","v":""},null,null,null,null,"EUR",null,null,null,{"$error":"#DIV/0!"},0,0,null,"","","","","","","","","","",null,null,null,null,null,null,null,null,null,null,null,null,null,null,null,null,null,"ZWO"]
[null,null,null,null,null,{"$f":"VLOOKUP(G861,'Data order'!Z:AA,2,0)","v":{"$error":"#N/A"}},null,null,null,null,null,null,null,null,{"$f":"VLOOKUP(N861,Tabel10[[korte omschrijving]:[MCC3_CODE]],2,0)","v":{"$error":"#N/A"}},{"$f":"VLOOKUP(N861,'Data order'!M:O,3,0)","v":{"$error":"#N/A"}},null,null,null,{"$f":"IFERROR(\n  IF(R861=\"Big&Tall\",\n      VLOOKUP(S861, 'Data order'!$AC$92:$AD$101, 2, FALSE),\n      IF(R861=\"Boordmaat\",\n          VLOOKUP(S861, 'Data order'!$AC$102:$AD$116, 2, FALSE),\n          VLOOKUP(S861, 'Data order'!$AC$2:$AD$91, 2, FALSE)\n      )\n  ),\n\"\")","v":""},null,null,null,null,"EUR",null,null,null,{"$error":"#DIV/0!"},0,0,null,"","","","","","","","","","",null,null,null,null,null,null,null,null,null,null,null,null,null,null,null,null,null,"ZWO"]
[null,null,null,null,null,{"$f":"VLOOKUP(G862,'Data order'!Z:AA,2,0)","v":{"$error":"#N/A"}},null,null,null,null,null,null,null,null,{"$f":"VLOOKUP(N862,Tabel10[[korte omschrijving]:[MCC3_CODE]],2,0)","v":{"$error":"#N/A"}},{"$f":"VLOOKUP(N862,'Data order'!M:O,3,0)","v":{"$error":"#N/A"}},null,null,null,{"$f":"IFERROR(\n  IF(R862=\"Big&Tall\",\n      VLOOKUP(S862, 'Data order'!$AC$92:$AD$101, 2, FALSE),\n      IF(R862=\"Boordmaat\",\n          VLOOKUP(S862, 'Data order'!$AC$102:$AD$116, 2, FALSE),\n          VLOOKUP(S862, 'Data order'!$AC$2:$AD$91, 2, FALSE)\n      )\n  ),\n\"\")","v":""},null,null,null,null,"EUR",null,null,null,{"$error":"#DIV/0!"},0,0,null,"","","","","","","","","","",null,null,null,null,null,null,null,null,null,null,null,null,null,null,null,null,null,"ZWO"]
[null,null,null,null,null,{"$f":"VLOOKUP(G863,'Data order'!Z:AA,2,0)","v":{"$error":"#N/A"}},null,null,null,null,null,null,null,null,{"$f":"VLOOKUP(N863,Tabel10[[korte omschrijving]:[MCC3_CODE]],2,0)","v":{"$error":"#N/A"}},{"$f":"VLOOKUP(N863,'Data order'!M:O,3,0)","v":{"$error":"#N/A"}},null,null,null,{"$f":"IFERROR(\n  IF(R863=\"Big&Tall\",\n      VLOOKUP(S863, 'Data order'!$AC$92:$AD$101, 2, FALSE),\n      IF(R863=\"Boordmaat\",\n          VLOOKUP(S863, 'Data order'!$AC$102:$AD$116, 2, FALSE),\n          VLOOKUP(S863, 'Data order'!$AC$2:$AD$91, 2, FALSE)\n      )\n  ),\n\"\")","v":""},null,null,null,null,"EUR",null,null,null,{"$error":"#DIV/0!"},0,0,null,"","","","","","","","","","",null,null,null,null,null,null,null,null,null,null,null,null,null,null,null,null,null,"ZWO"]
[null,null,null,null,null,{"$f":"VLOOKUP(G864,'Data order'!Z:AA,2,0)","v":{"$error":"#N/A"}},null,null,null,null,null,null,null,null,{"$f":"VLOOKUP(N864,Tabel10[[korte omschrijving]:[MCC3_CODE]],2,0)","v":{"$error":"#N/A"}},{"$f":"VLOOKUP(N864,'Data order'!M:O,3,0)","v":{"$error":"#N/A"}},null,null,null,{"$f":"IFERROR(\n  IF(R864=\"Big&Tall\",\n      VLOOKUP(S864, 'Data order'!$AC$92:$AD$101, 2, FALSE),\n      IF(R864=\"Boordmaat\",\n          VLOOKUP(S864, 'Data order'!$AC$102:$AD$116, 2, FALSE),\n          VLOOKUP(S864, 'Data order'!$AC$2:$AD$91, 2, FALSE)\n      )\n  ),\n\"\")","v":""},null,0,null,null,"EUR",null,null,null,{"$f":"AB864/Z864","v":{"$error":"#DIV/0!"}},{"$f":"U864*Z864","v":0},{"$f":"U864*AB864","v":0},null,"","","","","","","","","","",null,null,null,null,null,null,null,null,null,null,null,null,null,null,null,null,null,"ZWO"]
[null,null,null,null,null,{"$f":"VLOOKUP(G865,'Data order'!Z:AA,2,0)","v":{"$error":"#N/A"}},null,null,null,null,null,null,null,null,{"$f":"VLOOKUP(N865,Tabel10[[korte omschrijving]:[MCC3_CODE]],2,0)","v":{"$error":"#N/A"}},{"$f":"VLOOKUP(N865,'Data order'!M:O,3,0)","v":{"$error":"#N/A"}},null,null,null,{"$f":"IFERROR(\n  IF(R865=\"Big&Tall\",\n      VLOOKUP(S865, 'Data order'!$AC$92:$AD$101, 2, FALSE),\n      IF(R865=\"Boordmaat\",\n          VLOOKUP(S865, 'Data order'!$AC$102:$AD$116, 2, FALSE),\n          VLOOKUP(S865, 'Data order'!$AC$2:$AD$91, 2, FALSE)\n      )\n  ),\n\"\")","v":""},null,null,null,null,"EUR",null,null,null,{"$error":"#DIV/0!"},0,0,null,"","","","","","","","","","",null,null,null,null,null,null,null,null,null,null,null,null,null,null,null,null,null,"ZWO"]
[null,null,null,null,null,{"$f":"VLOOKUP(G866,'Data order'!Z:AA,2,0)","v":{"$error":"#N/A"}},null,null,null,null,null,null,null,null,{"$f":"VLOOKUP(N866,Tabel10[[korte omschrijving]:[MCC3_CODE]],2,0)","v":{"$error":"#N/A"}},{"$f":"VLOOKUP(N866,'Data order'!M:O,3,0)","v":{"$error":"#N/A"}},null,null,null,{"$f":"IFERROR(\n  IF(R866=\"Big&Tall\",\n      VLOOKUP(S866, 'Data order'!$AC$92:$AD$101, 2, FALSE),\n      IF(R866=\"Boordmaat\",\n          VLOOKUP(S866, 'Data order'!$AC$102:$AD$116, 2, FALSE),\n          VLOOKUP(S866, 'Data order'!$AC$2:$AD$91, 2, FALSE)\n      )\n  ),\n\"\")","v":""},null,null,null,null,"EUR",null,null,null,{"$error":"#DIV/0!"},0,0,null,"","","","","","","","","","",null,null,null,null,null,null,null,null,null,null,null,null,null,null,null,null,null,"ZWO"]
[null,null,null,null,null,{"$f":"VLOOKUP(G867,'Data order'!Z:AA,2,0)","v":{"$error":"#N/A"}},null,null,null,null,null,null,null,null,{"$f":"VLOOKUP(N867,Tabel10[[korte omschrijving]:[MCC3_CODE]],2,0)","v":{"$error":"#N/A"}},{"$f":"VLOOKUP(N867,'Data order'!M:O,3,0)","v":{"$error":"#N/A"}},null,null,null,{"$f":"IFERROR(\n  IF(R867=\"Big&Tall\",\n      VLOOKUP(S867, 'Data order'!$AC$92:$AD$101, 2, FALSE),\n      IF(R867=\"Boordmaat\",\n          VLOOKUP(S867, 'Data order'!$AC$102:$AD$116, 2, FALSE),\n          VLOOKUP(S867, 'Data order'!$AC$2:$AD$91, 2, FALSE)\n      )\n  ),\n\"\")","v":""},null,null,null,null,"EUR",null,null,null,{"$error":"#DIV/0!"},0,0,null,"","","","","","","","","","",null,null,null,null,null,null,null,null,null,null,null,null,null,null,null,null,null,"ZWO"]
[null,null,null,null,null,{"$f":"VLOOKUP(G868,'Data order'!Z:AA,2,0)","v":{"$error":"#N/A"}},null,null,null,null,null,null,null,null,{"$f":"VLOOKUP(N868,Tabel10[[korte omschrijving]:[MCC3_CODE]],2,0)","v":{"$error":"#N/A"}},{"$f":"VLOOKUP(N868,'Data order'!M:O,3,0)","v":{"$error":"#N/A"}},null,null,null,{"$f":"IFERROR(\n  IF(R868=\"Big&Tall\",\n      VLOOKUP(S868, 'Data order'!$AC$92:$AD$101, 2, FALSE),\n      IF(R868=\"Boordmaat\",\n          VLOOKUP(S868, 'Data order'!$AC$102:$AD$116, 2, FALSE),\n          VLOOKUP(S868, 'Data order'!$AC$2:$AD$91, 2, FALSE)\n      )\n  ),\n\"\")","v":""},null,null,null,null,"EUR",null,null,null,{"$error":"#DIV/0!"},0,0,null,"","","","","","","","","","",null,null,null,null,null,null,null,null,null,null,null,null,null,null,null,null,null,"ZWO"]
[null,null,null,null,null,{"$f":"VLOOKUP(G869,'Data order'!Z:AA,2,0)","v":{"$error":"#N/A"}},null,null,null,null,null,null,null,null,{"$f":"VLOOKUP(N869,Tabel10[[korte omschrijving]:[MCC3_CODE]],2,0)","v":{"$error":"#N/A"}},{"$f":"VLOOKUP(N869,'Data order'!M:O,3,0)","v":{"$error":"#N/A"}},null,null,null,{"$f":"IFERROR(\n  IF(R869=\"Big&Tall\",\n      VLOOKUP(S869, 'Data order'!$AC$92:$AD$101, 2, FALSE),\n      IF(R869=\"Boordmaat\",\n          VLOOKUP(S869, 'Data order'!$AC$102:$AD$116, 2, FALSE),\n          VLOOKUP(S869, 'Data order'!$AC$2:$AD$91, 2, FALSE)\n      )\n  ),\n\"\")","v":""},null,null,null,null,"EUR",null,null,null,{"$error":"#DIV/0!"},0,0,null,"","","","","","","","","","",null,null,null,null,null,null,null,null,null,null,null,null,null,null,null,null,null,"ZWO"]
[null,null,null,null,null,{"$f":"VLOOKUP(G870,'Data order'!Z:AA,2,0)","v":{"$error":"#N/A"}},null,null,null,null,null,null,null,null,{"$f":"VLOOKUP(N870,Tabel10[[korte omschrijving]:[MCC3_CODE]],2,0)","v":{"$error":"#N/A"}},{"$f":"VLOOKUP(N870,'Data order'!M:O,3,0)","v":{"$error":"#N/A"}},null,null,null,{"$f":"IFERROR(\n  IF(R870=\"Big&Tall\",\n      VLOOKUP(S870, 'Data order'!$AC$92:$AD$101, 2, FALSE),\n      IF(R870=\"Boordmaat\",\n          VLOOKUP(S870, 'Data order'!$AC$102:$AD$116, 2, FALSE),\n          VLOOKUP(S870, 'Data order'!$AC$2:$AD$91, 2, FALSE)\n      )\n  ),\n\"\")","v":""},null,0,null,null,"EUR",null,null,null,{"$f":"AB870/Z870","v":{"$error":"#DIV/0!"}},{"$f":"U870*Z870","v":0},{"$f":"U870*AB870","v":0},null,"","","","","","","","","","",null,null,null,null,null,null,null,null,null,null,null,null,null,null,null,null,null,"ZWO"]
[null,null,null,null,null,{"$f":"VLOOKUP(G871,'Data order'!Z:AA,2,0)","v":{"$error":"#N/A"}},null,null,null,null,null,null,null,null,{"$f":"VLOOKUP(N871,Tabel10[[korte omschrijving]:[MCC3_CODE]],2,0)","v":{"$error":"#N/A"}},{"$f":"VLOOKUP(N871,'Data order'!M:O,3,0)","v":{"$error":"#N/A"}},null,null,null,{"$f":"IFERROR(\n  IF(R871=\"Big&Tall\",\n      VLOOKUP(S871, 'Data order'!$AC$92:$AD$101, 2, FALSE),\n      IF(R871=\"Boordmaat\",\n          VLOOKUP(S871, 'Data order'!$AC$102:$AD$116, 2, FALSE),\n          VLOOKUP(S871, 'Data order'!$AC$2:$AD$91, 2, FALSE)\n      )\n  ),\n\"\")","v":""},null,null,null,null,"EUR",null,null,null,{"$error":"#DIV/0!"},0,0,null,"","","","","","","","","","",null,null,null,null,null,null,null,null,null,null,null,null,null,null,null,null,null,"ZWO"]
[null,null,null,null,null,{"$f":"VLOOKUP(G872,'Data order'!Z:AA,2,0)","v":{"$error":"#N/A"}},null,null,null,null,null,null,null,null,{"$f":"VLOOKUP(N872,Tabel10[[korte omschrijving]:[MCC3_CODE]],2,0)","v":{"$error":"#N/A"}},{"$f":"VLOOKUP(N872,'Data order'!M:O,3,0)","v":{"$error":"#N/A"}},null,null,null,{"$f":"IFERROR(\n  IF(R872=\"Big&Tall\",\n      VLOOKUP(S872, 'Data order'!$AC$92:$AD$101, 2, FALSE),\n      IF(R872=\"Boordmaat\",\n          VLOOKUP(S872, 'Data order'!$AC$102:$AD$116, 2, FALSE),\n          VLOOKUP(S872, 'Data order'!$AC$2:$AD$91, 2, FALSE)\n      )\n  ),\n\"\")","v":""},null,null,null,null,"EUR",null,null,null,{"$error":"#DIV/0!"},0,0,null,"","","","","","","","","","",null,null,null,null,null,null,null,null,null,null,null,null,null,null,null,null,null,"ZWO"]
[null,null,null,null,null,{"$f":"VLOOKUP(G873,'Data order'!Z:AA,2,0)","v":{"$error":"#N/A"}},null,null,null,null,null,null,null,null,{"$f":"VLOOKUP(N873,Tabel10[[korte omschrijving]:[MCC3_CODE]],2,0)","v":{"$error":"#N/A"}},{"$f":"VLOOKUP(N873,'Data order'!M:O,3,0)","v":{"$error":"#N/A"}},null,null,null,{"$f":"IFERROR(\n  IF(R873=\"Big&Tall\",\n      VLOOKUP(S873, 'Data order'!$AC$92:$AD$101, 2, FALSE),\n      IF(R873=\"Boordmaat\",\n          VLOOKUP(S873, 'Data order'!$AC$102:$AD$116, 2, FALSE),\n          VLOOKUP(S873, 'Data order'!$AC$2:$AD$91, 2, FALSE)\n      )\n  ),\n\"\")","v":""},null,null,null,null,"EUR",null,null,null,{"$error":"#DIV/0!"},0,0,null,"","","","","","","","","","",null,null,null,null,null,null,null,null,null,null,null,null,null,null,null,null,null,"ZWO"]
[null,null,null,null,null,{"$f":"VLOOKUP(G874,'Data order'!Z:AA,2,0)","v":{"$error":"#N/A"}},null,null,null,null,null,null,null,null,{"$f":"VLOOKUP(N874,Tabel10[[korte omschrijving]:[MCC3_CODE]],2,0)","v":{"$error":"#N/A"}},{"$f":"VLOOKUP(N874,'Data order'!M:O,3,0)","v":{"$error":"#N/A"}},null,null,null,{"$f":"IFERROR(\n  IF(R874=\"Big&Tall\",\n      VLOOKUP(S874, 'Data order'!$AC$92:$AD$101, 2, FALSE),\n      IF(R874=\"Boordmaat\",\n          VLOOKUP(S874, 'Data order'!$AC$102:$AD$116, 2, FALSE),\n          VLOOKUP(S874, 'Data order'!$AC$2:$AD$91, 2, FALSE)\n      )\n  ),\n\"\")","v":""},null,null,null,null,"EUR",null,null,null,{"$error":"#DIV/0!"},0,0,null,"","","","","","","","","","",null,null,null,null,null,null,null,null,null,null,null,null,null,null,null,null,null,"ZWO"]
[null,null,null,null,null,{"$f":"VLOOKUP(G875,'Data order'!Z:AA,2,0)","v":{"$error":"#N/A"}},null,null,null,null,null,null,null,null,{"$f":"VLOOKUP(N875,Tabel10[[korte omschrijving]:[MCC3_CODE]],2,0)","v":{"$error":"#N/A"}},{"$f":"VLOOKUP(N875,'Data order'!M:O,3,0)","v":{"$error":"#N/A"}},null,null,null,{"$f":"IFERROR(\n  IF(R875=\"Big&Tall\",\n      VLOOKUP(S875, 'Data order'!$AC$92:$AD$101, 2, FALSE),\n      IF(R875=\"Boordmaat\",\n          VLOOKUP(S875, 'Data order'!$AC$102:$AD$116, 2, FALSE),\n          VLOOKUP(S875, 'Data order'!$AC$2:$AD$91, 2, FALSE)\n      )\n  ),\n\"\")","v":""},null,null,null,null,"EUR",null,null,null,{"$error":"#DIV/0!"},0,0,null,"","","","","","","","","","",null,null,null,null,null,null,null,null,null,null,null,null,null,null,null,null,null,"ZWO"]
[null,null,null,null,null,{"$f":"VLOOKUP(G876,'Data order'!Z:AA,2,0)","v":{"$error":"#N/A"}},null,null,null,null,null,null,null,null,{"$f":"VLOOKUP(N876,Tabel10[[korte omschrijving]:[MCC3_CODE]],2,0)","v":{"$error":"#N/A"}},{"$f":"VLOOKUP(N876,'Data order'!M:O,3,0)","v":{"$error":"#N/A"}},null,null,null,{"$f":"IFERROR(\n  IF(R876=\"Big&Tall\",\n      VLOOKUP(S876, 'Data order'!$AC$92:$AD$101, 2, FALSE),\n      IF(R876=\"Boordmaat\",\n          VLOOKUP(S876, 'Data order'!$AC$102:$AD$116, 2, FALSE),\n          VLOOKUP(S876, 'Data order'!$AC$2:$AD$91, 2, FALSE)\n      )\n  ),\n\"\")","v":""},null,0,null,null,"EUR",null,null,null,{"$f":"AB876/Z876","v":{"$error":"#DIV/0!"}},{"$f":"U876*Z876","v":0},{"$f":"U876*AB876","v":0},null,"","","","","","","","","","",null,null,null,null,null,null,null,null,null,null,null,null,null,null,null,null,null,"ZWO"]
[null,null,null,null,null,{"$f":"VLOOKUP(G877,'Data order'!Z:AA,2,0)","v":{"$error":"#N/A"}},null,null,null,null,null,null,null,null,{"$f":"VLOOKUP(N877,Tabel10[[korte omschrijving]:[MCC3_CODE]],2,0)","v":{"$error":"#N/A"}},{"$f":"VLOOKUP(N877,'Data order'!M:O,3,0)","v":{"$error":"#N/A"}},null,null,null,{"$f":"IFERROR(\n  IF(R877=\"Big&Tall\",\n      VLOOKUP(S877, 'Data order'!$AC$92:$AD$101, 2, FALSE),\n      IF(R877=\"Boordmaat\",\n          VLOOKUP(S877, 'Data order'!$AC$102:$AD$116, 2, FALSE),\n          VLOOKUP(S877, 'Data order'!$AC$2:$AD$91, 2, FALSE)\n      )\n  ),\n\"\")","v":""},null,null,null,null,"EUR",null,null,null,{"$error":"#DIV/0!"},0,0,null,"","","","","","","","","","",null,null,null,null,null,null,null,null,null,null,null,null,null,null,null,null,null,"ZWO"]
[null,null,null,null,null,{"$f":"VLOOKUP(G878,'Data order'!Z:AA,2,0)","v":{"$error":"#N/A"}},null,null,null,null,null,null,null,null,{"$f":"VLOOKUP(N878,Tabel10[[korte omschrijving]:[MCC3_CODE]],2,0)","v":{"$error":"#N/A"}},{"$f":"VLOOKUP(N878,'Data order'!M:O,3,0)","v":{"$error":"#N/A"}},null,null,null,{"$f":"IFERROR(\n  IF(R878=\"Big&Tall\",\n      VLOOKUP(S878, 'Data order'!$AC$92:$AD$101, 2, FALSE),\n      IF(R878=\"Boordmaat\",\n          VLOOKUP(S878, 'Data order'!$AC$102:$AD$116, 2, FALSE),\n          VLOOKUP(S878, 'Data order'!$AC$2:$AD$91, 2, FALSE)\n      )\n  ),\n\"\")","v":""},null,null,null,null,"EUR",null,null,null,{"$error":"#DIV/0!"},0,0,null,"","","","","","","","","","",null,null,null,null,null,null,null,null,null,null,null,null,null,null,null,null,null,"ZWO"]
[null,null,null,null,null,{"$f":"VLOOKUP(G879,'Data order'!Z:AA,2,0)","v":{"$error":"#N/A"}},null,null,null,null,null,null,null,null,{"$f":"VLOOKUP(N879,Tabel10[[korte omschrijving]:[MCC3_CODE]],2,0)","v":{"$error":"#N/A"}},{"$f":"VLOOKUP(N879,'Data order'!M:O,3,0)","v":{"$error":"#N/A"}},null,null,null,{"$f":"IFERROR(\n  IF(R879=\"Big&Tall\",\n      VLOOKUP(S879, 'Data order'!$AC$92:$AD$101, 2, FALSE),\n      IF(R879=\"Boordmaat\",\n          VLOOKUP(S879, 'Data order'!$AC$102:$AD$116, 2, FALSE),\n          VLOOKUP(S879, 'Data order'!$AC$2:$AD$91, 2, FALSE)\n      )\n  ),\n\"\")","v":""},null,null,null,null,"EUR",null,null,null,{"$error":"#DIV/0!"},0,0,null,"","","","","","","","","","",null,null,null,null,null,null,null,null,null,null,null,null,null,null,null,null,null,"ZWO"]
[null,null,null,null,null,{"$f":"VLOOKUP(G880,'Data order'!Z:AA,2,0)","v":{"$error":"#N/A"}},null,null,null,null,null,null,null,null,{"$f":"VLOOKUP(N880,Tabel10[[korte omschrijving]:[MCC3_CODE]],2,0)","v":{"$error":"#N/A"}},{"$f":"VLOOKUP(N880,'Data order'!M:O,3,0)","v":{"$error":"#N/A"}},null,null,null,{"$f":"IFERROR(\n  IF(R880=\"Big&Tall\",\n      VLOOKUP(S880, 'Data order'!$AC$92:$AD$101, 2, FALSE),\n      IF(R880=\"Boordmaat\",\n          VLOOKUP(S880, 'Data order'!$AC$102:$AD$116, 2, FALSE),\n          VLOOKUP(S880, 'Data order'!$AC$2:$AD$91, 2, FALSE)\n      )\n  ),\n\"\")","v":""},null,null,null,null,"EUR",null,null,null,{"$error":"#DIV/0!"},0,0,null,"","","","","","","","","","",null,null,null,null,null,null,null,null,null,null,null,null,null,null,null,null,null,"ZWO"]
[null,null,null,null,null,{"$f":"VLOOKUP(G881,'Data order'!Z:AA,2,0)","v":{"$error":"#N/A"}},null,null,null,null,null,null,null,null,{"$f":"VLOOKUP(N881,Tabel10[[korte omschrijving]:[MCC3_CODE]],2,0)","v":{"$error":"#N/A"}},{"$f":"VLOOKUP(N881,'Data order'!M:O,3,0)","v":{"$error":"#N/A"}},null,null,null,{"$f":"IFERROR(\n  IF(R881=\"Big&Tall\",\n      VLOOKUP(S881, 'Data order'!$AC$92:$AD$101, 2, FALSE),\n      IF(R881=\"Boordmaat\",\n          VLOOKUP(S881, 'Data order'!$AC$102:$AD$116, 2, FALSE),\n          VLOOKUP(S881, 'Data order'!$AC$2:$AD$91, 2, FALSE)\n      )\n  ),\n\"\")","v":""},null,null,null,null,"EUR",null,null,null,{"$error":"#DIV/0!"},0,0,null,"","","","","","","","","","",null,null,null,null,null,null,null,null,null,null,null,null,null,null,null,null,null,"ZWO"]
[null,null,null,null,null,{"$f":"VLOOKUP(G882,'Data order'!Z:AA,2,0)","v":{"$error":"#N/A"}},null,null,null,null,null,null,null,null,{"$f":"VLOOKUP(N882,Tabel10[[korte omschrijving]:[MCC3_CODE]],2,0)","v":{"$error":"#N/A"}},{"$f":"VLOOKUP(N882,'Data order'!M:O,3,0)","v":{"$error":"#N/A"}},null,null,null,{"$f":"IFERROR(\n  IF(R882=\"Big&Tall\",\n      VLOOKUP(S882, 'Data order'!$AC$92:$AD$101, 2, FALSE),\n      IF(R882=\"Boordmaat\",\n          VLOOKUP(S882, 'Data order'!$AC$102:$AD$116, 2, FALSE),\n          VLOOKUP(S882, 'Data order'!$AC$2:$AD$91, 2, FALSE)\n      )\n  ),\n\"\")","v":""},null,0,null,null,"EUR",null,null,null,{"$f":"AB882/Z882","v":{"$error":"#DIV/0!"}},{"$f":"U882*Z882","v":0},{"$f":"U882*AB882","v":0},null,"","","","","","","","","","",null,null,null,null,null,null,null,null,null,null,null,null,null,null,null,null,null,"ZWO"]
[null,null,null,null,null,{"$f":"VLOOKUP(G883,'Data order'!Z:AA,2,0)","v":{"$error":"#N/A"}},null,null,null,null,null,null,null,null,{"$f":"VLOOKUP(N883,Tabel10[[korte omschrijving]:[MCC3_CODE]],2,0)","v":{"$error":"#N/A"}},{"$f":"VLOOKUP(N883,'Data order'!M:O,3,0)","v":{"$error":"#N/A"}},null,null,null,{"$f":"IFERROR(\n  IF(R883=\"Big&Tall\",\n      VLOOKUP(S883, 'Data order'!$AC$92:$AD$101, 2, FALSE),\n      IF(R883=\"Boordmaat\",\n          VLOOKUP(S883, 'Data order'!$AC$102:$AD$116, 2, FALSE),\n          VLOOKUP(S883, 'Data order'!$AC$2:$AD$91, 2, FALSE)\n      )\n  ),\n\"\")","v":""},null,null,null,null,"EUR",null,null,null,{"$error":"#DIV/0!"},0,0,null,"","","","","","","","","","",null,null,null,null,null,null,null,null,null,null,null,null,null,null,null,null,null,"ZWO"]
[null,null,null,null,null,{"$f":"VLOOKUP(G884,'Data order'!Z:AA,2,0)","v":{"$error":"#N/A"}},null,null,null,null,null,null,null,null,{"$f":"VLOOKUP(N884,Tabel10[[korte omschrijving]:[MCC3_CODE]],2,0)","v":{"$error":"#N/A"}},{"$f":"VLOOKUP(N884,'Data order'!M:O,3,0)","v":{"$error":"#N/A"}},null,null,null,{"$f":"IFERROR(\n  IF(R884=\"Big&Tall\",\n      VLOOKUP(S884, 'Data order'!$AC$92:$AD$101, 2, FALSE),\n      IF(R884=\"Boordmaat\",\n          VLOOKUP(S884, 'Data order'!$AC$102:$AD$116, 2, FALSE),\n          VLOOKUP(S884, 'Data order'!$AC$2:$AD$91, 2, FALSE)\n      )\n  ),\n\"\")","v":""},null,null,null,null,"EUR",null,null,null,{"$error":"#DIV/0!"},0,0,null,"","","","","","","","","","",null,null,null,null,null,null,null,null,null,null,null,null,null,null,null,null,null,"ZWO"]
[null,null,null,null,null,{"$f":"VLOOKUP(G885,'Data order'!Z:AA,2,0)","v":{"$error":"#N/A"}},null,null,null,null,null,null,null,null,{"$f":"VLOOKUP(N885,Tabel10[[korte omschrijving]:[MCC3_CODE]],2,0)","v":{"$error":"#N/A"}},{"$f":"VLOOKUP(N885,'Data order'!M:O,3,0)","v":{"$error":"#N/A"}},null,null,null,{"$f":"IFERROR(\n  IF(R885=\"Big&Tall\",\n      VLOOKUP(S885, 'Data order'!$AC$92:$AD$101, 2, FALSE),\n      IF(R885=\"Boordmaat\",\n          VLOOKUP(S885, 'Data order'!$AC$102:$AD$116, 2, FALSE),\n          VLOOKUP(S885, 'Data order'!$AC$2:$AD$91, 2, FALSE)\n      )\n  ),\n\"\")","v":""},null,null,null,null,"EUR",null,null,null,{"$error":"#DIV/0!"},0,0,null,"","","","","","","","","","",null,null,null,null,null,null,null,null,null,null,null,null,null,null,null,null,null,"ZWO"]
[null,null,null,null,null,{"$f":"VLOOKUP(G886,'Data order'!Z:AA,2,0)","v":{"$error":"#N/A"}},null,null,null,null,null,null,null,null,{"$f":"VLOOKUP(N886,Tabel10[[korte omschrijving]:[MCC3_CODE]],2,0)","v":{"$error":"#N/A"}},{"$f":"VLOOKUP(N886,'Data order'!M:O,3,0)","v":{"$error":"#N/A"}},null,null,null,{"$f":"IFERROR(\n  IF(R886=\"Big&Tall\",\n      VLOOKUP(S886, 'Data order'!$AC$92:$AD$101, 2, FALSE),\n      IF(R886=\"Boordmaat\",\n          VLOOKUP(S886, 'Data order'!$AC$102:$AD$116, 2, FALSE),\n          VLOOKUP(S886, 'Data order'!$AC$2:$AD$91, 2, FALSE)\n      )\n  ),\n\"\")","v":""},null,null,null,null,"EUR",null,null,null,{"$error":"#DIV/0!"},0,0,null,"","","","","","","","","","",null,null,null,null,null,null,null,null,null,null,null,null,null,null,null,null,null,"ZWO"]
[null,null,null,null,null,{"$f":"VLOOKUP(G887,'Data order'!Z:AA,2,0)","v":{"$error":"#N/A"}},null,null,null,null,null,null,null,null,{"$f":"VLOOKUP(N887,Tabel10[[korte omschrijving]:[MCC3_CODE]],2,0)","v":{"$error":"#N/A"}},{"$f":"VLOOKUP(N887,'Data order'!M:O,3,0)","v":{"$error":"#N/A"}},null,null,null,{"$f":"IFERROR(\n  IF(R887=\"Big&Tall\",\n      VLOOKUP(S887, 'Data order'!$AC$92:$AD$101, 2, FALSE),\n      IF(R887=\"Boordmaat\",\n          VLOOKUP(S887, 'Data order'!$AC$102:$AD$116, 2, FALSE),\n          VLOOKUP(S887, 'Data order'!$AC$2:$AD$91, 2, FALSE)\n      )\n  ),\n\"\")","v":""},null,null,null,null,"EUR",null,null,null,{"$error":"#DIV/0!"},0,0,null,"","","","","","","","","","",null,null,null,null,null,null,null,null,null,null,null,null,null,null,null,null,null,"ZWO"]
[null,null,null,null,null,{"$f":"VLOOKUP(G888,'Data order'!Z:AA,2,0)","v":{"$error":"#N/A"}},null,null,null,null,null,null,null,null,{"$f":"VLOOKUP(N888,Tabel10[[korte omschrijving]:[MCC3_CODE]],2,0)","v":{"$error":"#N/A"}},{"$f":"VLOOKUP(N888,'Data order'!M:O,3,0)","v":{"$error":"#N/A"}},null,null,null,{"$f":"IFERROR(\n  IF(R888=\"Big&Tall\",\n      VLOOKUP(S888, 'Data order'!$AC$92:$AD$101, 2, FALSE),\n      IF(R888=\"Boordmaat\",\n          VLOOKUP(S888, 'Data order'!$AC$102:$AD$116, 2, FALSE),\n          VLOOKUP(S888, 'Data order'!$AC$2:$AD$91, 2, FALSE)\n      )\n  ),\n\"\")","v":""},null,0,null,null,"EUR",null,null,null,{"$f":"AB888/Z888","v":{"$error":"#DIV/0!"}},{"$f":"U888*Z888","v":0},{"$f":"U888*AB888","v":0},null,{"$f":"IF(AF888 <> \"\",\n    IF(ISNUMBER(VALUE(LEFT(AF888, FIND(\"%\", AF888)-1))),\n        VALUE(LEFT(AF888, FIND(\"%\", AF888)-1)),\n        \"Invalid format\"),\n    \"\")","v":""},{"$f":"IF(AF888 <> \"\",\n    IF(ISNUMBER(VALUE(LEFT(AF888, FIND(\"%\", AF888)-1))) * ISNUMBER(FIND(\"%\", AF888 & \"wol\")) > 0,\n        TRIM(MID(AF888, FIND(\"%\", AF888)+1, FIND(\"/\", AF888 & \"/\")-FIND(\"%\", AF888)-1)),\n        \"Invalid format\"),\n    \"\")","v":""},{"$f":"IF(AF888 <> \"\",\n    IF(ISNUMBER(VALUE(MID(AF888, FIND(\"/\", AF888) + 1, FIND(\"%\", AF888, FIND(\"/\", AF888)) - FIND(\"/\", AF888) - 1))),\n        VALUE(MID(AF888, FIND(\"/\", AF888) + 1, FIND(\"%\", AF888, FIND(\"/\", AF888)) - FIND(\"/\", AF888) - 1)),\n        \"\"),\n    \"\")","v":""},{"$f":"IF(AF888 <> \"\",\n    IFERROR(TRIM(MID(AF888, FIND(\"%\", AF888, FIND(\"/\", AF888)+1)+2,\n        IFERROR(FIND(\"/\", AF888 & \"/\", FIND(\"/\", AF888)+1)-FIND(\"%\", AF888, FIND(\"/\", AF888)+1)-2, LEN(AF888)-FIND(\"%\", AF888, FIND(\"/\", AF888)+1)-1))),\n        \"\"),\n    \"\")","v":""},{"$f":"IF(AF888 <> \"\",\n    IF(ISNUMBER(VALUE(MID(AF888, FIND(\"/\", AF888, FIND(\"/\", AF888)+1) + 1, FIND(\"%\", AF888, FIND(\"/\", AF888, FIND(\"/\", AF888)+1)) - FIND(\"/\", AF888, FIND(\"/\", AF888)+1) - 1))),\n        VALUE(MID(AF888, FIND(\"/\", AF888, FIND(\"/\", AF888)+1) + 1, FIND(\"%\", AF888, FIND(\"/\", AF888, FIND(\"/\", AF888)+1)) - FIND(\"/\", AF888, FIND(\"/\", AF888)+1) - 1)),\n        \"\"),\n    \"\")","v":""},{"$f":"IF(AF888 <> \"\",\n    IFERROR(\n        TRIM(MID(AF888,\n            FIND(\"%\", AF888, FIND(\"%\", AF888, FIND(\"%\", AF888)+1)+1)+1,\n            FIND(\"/\", AF888 & \"/\", FIND(\"%\", AF888, FIND(\"%\", AF888, FIND(\"%\", AF888)+1)+1))-FIND(\"%\", AF888, FIND(\"%\", AF888, FIND(\"%\", AF888)+1)+1)-1)\n        ),\n        \"\"\n    ),\n    \"\"\n)","v":""},{"$f":"IF(AF888 <> \"\",\n    IF(ISNUMBER(VALUE(MID(AF888, FIND(\"/\", AF888, FIND(\"/\", AF888, FIND(\"/\", AF888)+1)+1) + 1, FIND(\"%\", AF888, FIND(\"/\", AF888, FIND(\"/\", AF888, FIND(\"/\", AF888)+1)+1)) - FIND(\"/\", AF888, FIND(\"/\", AF888, FIND(\"/\", AF888)+1)+1) - 1))),\n        VALUE(MID(AF888, FIND(\"/\", AF888, FIND(\"/\", AF888, FIND(\"/\", AF888)+1)+1) + 1, FIND(\"%\", AF888, FIND(\"/\", AF888, FIND(\"/\", AF888, FIND(\"/\", AF888)+1)+1)) - FIND(\"/\", AF888, FIND(\"/\", AF888, FIND(\"/\", AF888)+1)+1) - 1)),\n        \"\"),\n    \"\")","v":""},{"$f":"IF(AF888 <> \"\",\n    IFERROR(TRIM(MID(AF888, FIND(\"%\", AF888, FIND(\"/\", AF888, FIND(\"/\", AF888, FIND(\"/\", AF888)+1)+1)+1)+2,\n        IFERROR(FIND(\"/\", AF888, FIND(\"/\", AF888, FIND(\"/\", AF888, FIND(\"/\", AF888)+1)+1)+1)-FIND(\"%\", AF888, FIND(\"/\", AF888, FIND(\"/\", AF888, FIND(\"/\", AF888)+1)+1)+1)-2, LEN(AF888)-FIND(\"%\", AF888, FIND(\"/\", AF888, FIND(\"/\", AF888, FIND(\"/\", AF888)+1)+1)+1)-1))),\n        \"\"),\n    \"\")","v":""},{"$f":"IF(AF888 <> \"\",\n    IF(ISNUMBER(VALUE(MID(AF888, FIND(\"/\", AF888, FIND(\"/\", AF888, FIND(\"/\", AF888, FIND(\"/\", AF888)+1)+1)+1) + 1, FIND(\"%\", AF888, FIND(\"/\", AF888, FIND(\"/\", AF888, FIND(\"/\", AF888, FIND(\"/\", AF888)+1)+1)+1)) - FIND(\"/\", AF888, FIND(\"/\", AF888, FIND(\"/\", AF888, FIND(\"/\", AF888)+1)+1)+1) - 1))),\n        VALUE(MID(AF888, FIND(\"/\", AF888, FIND(\"/\", AF888, FIND(\"/\", AF888, FIND(\"/\", AF888)+1)+1)+1) + 1, FIND(\"%\", AF888, FIND(\"/\", AF888, FIND(\"/\", AF888, FIND(\"/\", AF888, FIND(\"/\", AF888)+1)+1)+1)) - FIND(\"/\", AF888, FIND(\"/\", AF888, FIND(\"/\", AF888, FIND(\"/\", AF888)+1)+1)+1) - 1)),\n        \"\"),\n    \"\")","v":""},{"$f":"IF(AF888 = \"\", \"\",\n    IFERROR(TRIM(\n        MID(\n            AF888,\n            FIND(\"%\", AF888, FIND(\"/\", AF888, FIND(\"/\", AF888, FIND(\"/\", AF888, FIND(\"/\", AF888)+1)+1)+1)+1) + 1,\n            FIND(\"/\", AF888 & \"/\", FIND(\"%\", AF888, FIND(\"/\", AF888, FIND(\"/\", AF888, FIND(\"/\", AF888, FIND(\"/\", AF888)+1)+1)+1)+1)) -\n            FIND(\"%\", AF888, FIND(\"/\", AF888, FIND(\"/\", AF888, FIND(\"/\", AF888, FIND(\"/\", AF888)+1)+1)+1)+1) - 1\n        )\n    ),\n    \"\")\n)","v":""},null,null,null,null,null,null,null,null,null,null,null,null,null,null,null,null,null,"ZWO"]
[null,null,null,null,null,{"$f":"VLOOKUP(G889,'Data order'!Z:AA,2,0)","v":{"$error":"#N/A"}},null,null,null,null,null,null,null,null,{"$f":"VLOOKUP(N889,Tabel10[[korte omschrijving]:[MCC3_CODE]],2,0)","v":{"$error":"#N/A"}},{"$f":"VLOOKUP(N889,'Data order'!M:O,3,0)","v":{"$error":"#N/A"}},null,null,null,{"$f":"IFERROR(\n  IF(R889=\"Big&Tall\",\n      VLOOKUP(S889, 'Data order'!$AC$92:$AD$101, 2, FALSE),\n      IF(R889=\"Boordmaat\",\n          VLOOKUP(S889, 'Data order'!$AC$102:$AD$116, 2, FALSE),\n          VLOOKUP(S889, 'Data order'!$AC$2:$AD$91, 2, FALSE)\n      )\n  ),\n\"\")","v":""},null,null,null,null,"EUR",null,null,null,{"$error":"#DIV/0!"},0,0,null,"","","","","","","","","","",null,null,null,null,null,null,null,null,null,null,null,null,null,null,null,null,null,"ZWO"]
[null,null,null,null,null,{"$f":"VLOOKUP(G890,'Data order'!Z:AA,2,0)","v":{"$error":"#N/A"}},null,null,null,null,null,null,null,null,{"$f":"VLOOKUP(N890,Tabel10[[korte omschrijving]:[MCC3_CODE]],2,0)","v":{"$error":"#N/A"}},{"$f":"VLOOKUP(N890,'Data order'!M:O,3,0)","v":{"$error":"#N/A"}},null,null,null,{"$f":"IFERROR(\n  IF(R890=\"Big&Tall\",\n      VLOOKUP(S890, 'Data order'!$AC$92:$AD$101, 2, FALSE),\n      IF(R890=\"Boordmaat\",\n          VLOOKUP(S890, 'Data order'!$AC$102:$AD$116, 2, FALSE),\n          VLOOKUP(S890, 'Data order'!$AC$2:$AD$91, 2, FALSE)\n      )\n  ),\n\"\")","v":""},null,null,null,null,"EUR",null,null,null,{"$error":"#DIV/0!"},0,0,null,"","","","","","","","","","",null,null,null,null,null,null,null,null,null,null,null,null,null,null,null,null,null,"ZWO"]
[null,null,null,null,null,{"$f":"VLOOKUP(G891,'Data order'!Z:AA,2,0)","v":{"$error":"#N/A"}},null,null,null,null,null,null,null,null,{"$f":"VLOOKUP(N891,Tabel10[[korte omschrijving]:[MCC3_CODE]],2,0)","v":{"$error":"#N/A"}},{"$f":"VLOOKUP(N891,'Data order'!M:O,3,0)","v":{"$error":"#N/A"}},null,null,null,{"$f":"IFERROR(\n  IF(R891=\"Big&Tall\",\n      VLOOKUP(S891, 'Data order'!$AC$92:$AD$101, 2, FALSE),\n      IF(R891=\"Boordmaat\",\n          VLOOKUP(S891, 'Data order'!$AC$102:$AD$116, 2, FALSE),\n          VLOOKUP(S891, 'Data order'!$AC$2:$AD$91, 2, FALSE)\n      )\n  ),\n\"\")","v":""},null,null,null,null,"EUR",null,null,null,{"$error":"#DIV/0!"},0,0,null,"","","","","","","","","","",null,null,null,null,null,null,null,null,null,null,null,null,null,null,null,null,null,"ZWO"]
[null,null,null,null,null,{"$f":"VLOOKUP(G892,'Data order'!Z:AA,2,0)","v":{"$error":"#N/A"}},null,null,null,null,null,null,null,null,{"$f":"VLOOKUP(N892,Tabel10[[korte omschrijving]:[MCC3_CODE]],2,0)","v":{"$error":"#N/A"}},{"$f":"VLOOKUP(N892,'Data order'!M:O,3,0)","v":{"$error":"#N/A"}},null,null,null,{"$f":"IFERROR(\n  IF(R892=\"Big&Tall\",\n      VLOOKUP(S892, 'Data order'!$AC$92:$AD$101, 2, FALSE),\n      IF(R892=\"Boordmaat\",\n          VLOOKUP(S892, 'Data order'!$AC$102:$AD$116, 2, FALSE),\n          VLOOKUP(S892, 'Data order'!$AC$2:$AD$91, 2, FALSE)\n      )\n  ),\n\"\")","v":""},null,null,null,null,"EUR",null,null,null,{"$error":"#DIV/0!"},0,0,null,"","","","","","","","","","",null,null,null,null,null,null,null,null,null,null,null,null,null,null,null,null,null,"ZWO"]
[null,null,null,null,null,{"$f":"VLOOKUP(G893,'Data order'!Z:AA,2,0)","v":{"$error":"#N/A"}},null,null,null,null,null,null,null,null,{"$f":"VLOOKUP(N893,Tabel10[[korte omschrijving]:[MCC3_CODE]],2,0)","v":{"$error":"#N/A"}},{"$f":"VLOOKUP(N893,'Data order'!M:O,3,0)","v":{"$error":"#N/A"}},null,null,null,{"$f":"IFERROR(\n  IF(R893=\"Big&Tall\",\n      VLOOKUP(S893, 'Data order'!$AC$92:$AD$101, 2, FALSE),\n      IF(R893=\"Boordmaat\",\n          VLOOKUP(S893, 'Data order'!$AC$102:$AD$116, 2, FALSE),\n          VLOOKUP(S893, 'Data order'!$AC$2:$AD$91, 2, FALSE)\n      )\n  ),\n\"\")","v":""},null,null,null,null,"EUR",null,null,null,{"$error":"#DIV/0!"},0,0,null,"","","","","","","","","","",null,null,null,null,null,null,null,null,null,null,null,null,null,null,null,null,null,"ZWO"]
[null,null,null,null,null,{"$f":"VLOOKUP(G894,'Data order'!Z:AA,2,0)","v":{"$error":"#N/A"}},null,null,null,null,null,null,null,null,{"$f":"VLOOKUP(N894,Tabel10[[korte omschrijving]:[MCC3_CODE]],2,0)","v":{"$error":"#N/A"}},{"$f":"VLOOKUP(N894,'Data order'!M:O,3,0)","v":{"$error":"#N/A"}},null,null,null,{"$f":"IFERROR(\n  IF(R894=\"Big&Tall\",\n      VLOOKUP(S894, 'Data order'!$AC$92:$AD$101, 2, FALSE),\n      IF(R894=\"Boordmaat\",\n          VLOOKUP(S894, 'Data order'!$AC$102:$AD$116, 2, FALSE),\n          VLOOKUP(S894, 'Data order'!$AC$2:$AD$91, 2, FALSE)\n      )\n  ),\n\"\")","v":""},null,0,null,null,"EUR",null,null,null,{"$f":"AB894/Z894","v":{"$error":"#DIV/0!"}},{"$f":"U894*Z894","v":0},{"$f":"U894*AB894","v":0},null,"","","","","","","","","","",null,null,null,null,null,null,null,null,null,null,null,null,null,null,null,null,null,"ZWO"]
[null,null,null,null,null,{"$f":"VLOOKUP(G895,'Data order'!Z:AA,2,0)","v":{"$error":"#N/A"}},null,null,null,null,null,null,null,null,{"$f":"VLOOKUP(N895,Tabel10[[korte omschrijving]:[MCC3_CODE]],2,0)","v":{"$error":"#N/A"}},{"$f":"VLOOKUP(N895,'Data order'!M:O,3,0)","v":{"$error":"#N/A"}},null,null,null,{"$f":"IFERROR(\n  IF(R895=\"Big&Tall\",\n      VLOOKUP(S895, 'Data order'!$AC$92:$AD$101, 2, FALSE),\n      IF(R895=\"Boordmaat\",\n          VLOOKUP(S895, 'Data order'!$AC$102:$AD$116, 2, FALSE),\n          VLOOKUP(S895, 'Data order'!$AC$2:$AD$91, 2, FALSE)\n      )\n  ),\n\"\")","v":""},null,null,null,null,"EUR",null,null,null,{"$error":"#DIV/0!"},0,0,null,"","","","","","","","","","",null,null,null,null,null,null,null,null,null,null,null,null,null,null,null,null,null,"ZWO"]
[null,null,null,null,null,{"$f":"VLOOKUP(G896,'Data order'!Z:AA,2,0)","v":{"$error":"#N/A"}},null,null,null,null,null,null,null,null,{"$f":"VLOOKUP(N896,Tabel10[[korte omschrijving]:[MCC3_CODE]],2,0)","v":{"$error":"#N/A"}},{"$f":"VLOOKUP(N896,'Data order'!M:O,3,0)","v":{"$error":"#N/A"}},null,null,null,{"$f":"IFERROR(\n  IF(R896=\"Big&Tall\",\n      VLOOKUP(S896, 'Data order'!$AC$92:$AD$101, 2, FALSE),\n      IF(R896=\"Boordmaat\",\n          VLOOKUP(S896, 'Data order'!$AC$102:$AD$116, 2, FALSE),\n          VLOOKUP(S896, 'Data order'!$AC$2:$AD$91, 2, FALSE)\n      )\n  ),\n\"\")","v":""},null,null,null,null,"EUR",null,null,null,{"$error":"#DIV/0!"},0,0,null,"","","","","","","","","","",null,null,null,null,null,null,null,null,null,null,null,null,null,null,null,null,null,"ZWO"]
[null,null,null,null,null,{"$f":"VLOOKUP(G897,'Data order'!Z:AA,2,0)","v":{"$error":"#N/A"}},null,null,null,null,null,null,null,null,{"$f":"VLOOKUP(N897,Tabel10[[korte omschrijving]:[MCC3_CODE]],2,0)","v":{"$error":"#N/A"}},{"$f":"VLOOKUP(N897,'Data order'!M:O,3,0)","v":{"$error":"#N/A"}},null,null,null,{"$f":"IFERROR(\n  IF(R897=\"Big&Tall\",\n      VLOOKUP(S897, 'Data order'!$AC$92:$AD$101, 2, FALSE),\n      IF(R897=\"Boordmaat\",\n          VLOOKUP(S897, 'Data order'!$AC$102:$AD$116, 2, FALSE),\n          VLOOKUP(S897, 'Data order'!$AC$2:$AD$91, 2, FALSE)\n      )\n  ),\n\"\")","v":""},null,null,null,null,"EUR",null,null,null,{"$error":"#DIV/0!"},0,0,null,"","","","","","","","","","",null,null,null,null,null,null,null,null,null,null,null,null,null,null,null,null,null,"ZWO"]
[null,null,null,null,null,{"$f":"VLOOKUP(G898,'Data order'!Z:AA,2,0)","v":{"$error":"#N/A"}},null,null,null,null,null,null,null,null,{"$f":"VLOOKUP(N898,Tabel10[[korte omschrijving]:[MCC3_CODE]],2,0)","v":{"$error":"#N/A"}},{"$f":"VLOOKUP(N898,'Data order'!M:O,3,0)","v":{"$error":"#N/A"}},null,null,null,{"$f":"IFERROR(\n  IF(R898=\"Big&Tall\",\n      VLOOKUP(S898, 'Data order'!$AC$92:$AD$101, 2, FALSE),\n      IF(R898=\"Boordmaat\",\n          VLOOKUP(S898, 'Data order'!$AC$102:$AD$116, 2, FALSE),\n          VLOOKUP(S898, 'Data order'!$AC$2:$AD$91, 2, FALSE)\n      )\n  ),\n\"\")","v":""},null,null,null,null,"EUR",null,null,null,{"$error":"#DIV/0!"},0,0,null,"","","","","","","","","","",null,null,null,null,null,null,null,null,null,null,null,null,null,null,null,null,null,"ZWO"]
[null,null,null,null,null,{"$f":"VLOOKUP(G899,'Data order'!Z:AA,2,0)","v":{"$error":"#N/A"}},null,null,null,null,null,null,null,null,{"$f":"VLOOKUP(N899,Tabel10[[korte omschrijving]:[MCC3_CODE]],2,0)","v":{"$error":"#N/A"}},{"$f":"VLOOKUP(N899,'Data order'!M:O,3,0)","v":{"$error":"#N/A"}},null,null,null,{"$f":"IFERROR(\n  IF(R899=\"Big&Tall\",\n      VLOOKUP(S899, 'Data order'!$AC$92:$AD$101, 2, FALSE),\n      IF(R899=\"Boordmaat\",\n          VLOOKUP(S899, 'Data order'!$AC$102:$AD$116, 2, FALSE),\n          VLOOKUP(S899, 'Data order'!$AC$2:$AD$91, 2, FALSE)\n      )\n  ),\n\"\")","v":""},null,null,null,null,"EUR",null,null,null,{"$error":"#DIV/0!"},0,0,null,"","","","","","","","","","",null,null,null,null,null,null,null,null,null,null,null,null,null,null,null,null,null,"ZWO"]
[null,null,null,null,null,{"$f":"VLOOKUP(G900,'Data order'!Z:AA,2,0)","v":{"$error":"#N/A"}},null,null,null,null,null,null,null,null,{"$f":"VLOOKUP(N900,Tabel10[[korte omschrijving]:[MCC3_CODE]],2,0)","v":{"$error":"#N/A"}},{"$f":"VLOOKUP(N900,'Data order'!M:O,3,0)","v":{"$error":"#N/A"}},null,null,null,{"$f":"IFERROR(\n  IF(R900=\"Big&Tall\",\n      VLOOKUP(S900, 'Data order'!$AC$92:$AD$101, 2, FALSE),\n      IF(R900=\"Boordmaat\",\n          VLOOKUP(S900, 'Data order'!$AC$102:$AD$116, 2, FALSE),\n          VLOOKUP(S900, 'Data order'!$AC$2:$AD$91, 2, FALSE)\n      )\n  ),\n\"\")","v":""},null,{"$f":"SUM(U900:U905)","v":0},null,null,"EUR",null,null,null,{"$f":"AB900/Z900","v":{"$error":"#DIV/0!"}},{"$f":"U900*Z900","v":0},{"$f":"U900*AB900","v":0},null,"","","","","","","","","","",null,null,null,null,null,null,null,null,null,null,null,null,null,null,null,null,null,"ZWO"]
[null,null,null,null,null,{"$f":"VLOOKUP(G901,'Data order'!Z:AA,2,0)","v":{"$error":"#N/A"}},null,null,null,null,null,null,null,null,{"$f":"VLOOKUP(N901,Tabel10[[korte omschrijving]:[MCC3_CODE]],2,0)","v":{"$error":"#N/A"}},{"$f":"VLOOKUP(N901,'Data order'!M:O,3,0)","v":{"$error":"#N/A"}},null,null,null,{"$f":"IFERROR(\n  IF(R901=\"Big&Tall\",\n      VLOOKUP(S901, 'Data order'!$AC$92:$AD$101, 2, FALSE),\n      IF(R901=\"Boordmaat\",\n          VLOOKUP(S901, 'Data order'!$AC$102:$AD$116, 2, FALSE),\n          VLOOKUP(S901, 'Data order'!$AC$2:$AD$91, 2, FALSE)\n      )\n  ),\n\"\")","v":""},null,null,null,null,"EUR",null,null,null,{"$error":"#DIV/0!"},0,0,null,"","","","","","","","","","",null,null,null,null,null,null,null,null,null,null,null,null,null,null,null,null,null,"ZWO"]
[null,null,null,null,null,{"$f":"VLOOKUP(G902,'Data order'!Z:AA,2,0)","v":{"$error":"#N/A"}},null,null,null,null,null,null,null,null,{"$f":"VLOOKUP(N902,Tabel10[[korte omschrijving]:[MCC3_CODE]],2,0)","v":{"$error":"#N/A"}},{"$f":"VLOOKUP(N902,'Data order'!M:O,3,0)","v":{"$error":"#N/A"}},null,null,null,{"$f":"IFERROR(\n  IF(R902=\"Big&Tall\",\n      VLOOKUP(S902, 'Data order'!$AC$92:$AD$101, 2, FALSE),\n      IF(R902=\"Boordmaat\",\n          VLOOKUP(S902, 'Data order'!$AC$102:$AD$116, 2, FALSE),\n          VLOOKUP(S902, 'Data order'!$AC$2:$AD$91, 2, FALSE)\n      )\n  ),\n\"\")","v":""},null,null,null,null,"EUR",null,null,null,{"$error":"#DIV/0!"},0,0,null,"","","","","","","","","","",null,null,null,null,null,null,null,null,null,null,null,null,null,null,null,null,null,"ZWO"]
[null,null,null,null,null,{"$f":"VLOOKUP(G903,'Data order'!Z:AA,2,0)","v":{"$error":"#N/A"}},null,null,null,null,null,null,null,null,{"$f":"VLOOKUP(N903,Tabel10[[korte omschrijving]:[MCC3_CODE]],2,0)","v":{"$error":"#N/A"}},{"$f":"VLOOKUP(N903,'Data order'!M:O,3,0)","v":{"$error":"#N/A"}},null,null,null,{"$f":"IFERROR(\n  IF(R903=\"Big&Tall\",\n      VLOOKUP(S903, 'Data order'!$AC$92:$AD$101, 2, FALSE),\n      IF(R903=\"Boordmaat\",\n          VLOOKUP(S903, 'Data order'!$AC$102:$AD$116, 2, FALSE),\n          VLOOKUP(S903, 'Data order'!$AC$2:$AD$91, 2, FALSE)\n      )\n  ),\n\"\")","v":""},null,null,null,null,"EUR",null,null,null,{"$error":"#DIV/0!"},0,0,null,"","","","","","","","","","",null,null,null,null,null,null,null,null,null,null,null,null,null,null,null,null,null,"ZWO"]
[null,null,null,null,null,{"$f":"VLOOKUP(G904,'Data order'!Z:AA,2,0)","v":{"$error":"#N/A"}},null,null,null,null,null,null,null,null,{"$f":"VLOOKUP(N904,Tabel10[[korte omschrijving]:[MCC3_CODE]],2,0)","v":{"$error":"#N/A"}},{"$f":"VLOOKUP(N904,'Data order'!M:O,3,0)","v":{"$error":"#N/A"}},null,null,null,{"$f":"IFERROR(\n  IF(R904=\"Big&Tall\",\n      VLOOKUP(S904, 'Data order'!$AC$92:$AD$101, 2, FALSE),\n      IF(R904=\"Boordmaat\",\n          VLOOKUP(S904, 'Data order'!$AC$102:$AD$116, 2, FALSE),\n          VLOOKUP(S904, 'Data order'!$AC$2:$AD$91, 2, FALSE)\n      )\n  ),\n\"\")","v":""},null,null,null,null,"EUR",null,null,null,{"$error":"#DIV/0!"},0,0,null,"","","","","","","","","","",null,null,null,null,null,null,null,null,null,null,null,null,null,null,null,null,null,"ZWO"]
[null,null,null,null,null,{"$f":"VLOOKUP(G905,'Data order'!Z:AA,2,0)","v":{"$error":"#N/A"}},null,null,null,null,null,null,null,null,{"$f":"VLOOKUP(N905,Tabel10[[korte omschrijving]:[MCC3_CODE]],2,0)","v":{"$error":"#N/A"}},{"$f":"VLOOKUP(N905,'Data order'!M:O,3,0)","v":{"$error":"#N/A"}},null,null,null,{"$f":"IFERROR(\n  IF(R905=\"Big&Tall\",\n      VLOOKUP(S905, 'Data order'!$AC$92:$AD$101, 2, FALSE),\n      IF(R905=\"Boordmaat\",\n          VLOOKUP(S905, 'Data order'!$AC$102:$AD$116, 2, FALSE),\n          VLOOKUP(S905, 'Data order'!$AC$2:$AD$91, 2, FALSE)\n      )\n  ),\n\"\")","v":""},null,null,null,null,"EUR",null,null,null,{"$error":"#DIV/0!"},0,0,null,"","","","","","","","","","",null,null,null,null,null,null,null,null,null,null,null,null,null,null,null,null,null,"ZWO"]
[null,null,null,null,null,{"$f":"VLOOKUP(G906,'Data order'!Z:AA,2,0)","v":{"$error":"#N/A"}},null,null,null,null,null,null,null,null,{"$f":"VLOOKUP(N906,Tabel10[[korte omschrijving]:[MCC3_CODE]],2,0)","v":{"$error":"#N/A"}},{"$f":"VLOOKUP(N906,'Data order'!M:O,3,0)","v":{"$error":"#N/A"}},null,null,null,{"$f":"IFERROR(\n  IF(R906=\"Big&Tall\",\n      VLOOKUP(S906, 'Data order'!$AC$92:$AD$101, 2, FALSE),\n      IF(R906=\"Boordmaat\",\n          VLOOKUP(S906, 'Data order'!$AC$102:$AD$116, 2, FALSE),\n          VLOOKUP(S906, 'Data order'!$AC$2:$AD$91, 2, FALSE)\n      )\n  ),\n\"\")","v":""},null,0,null,null,"EUR",null,null,null,{"$f":"AB906/Z906","v":{"$error":"#DIV/0!"}},{"$f":"U906*Z906","v":0},{"$f":"U906*AB906","v":0},null,"","","","","","","","","","",null,null,null,null,null,null,null,null,null,null,null,null,null,null,null,null,null,"ZWO"]
[null,null,null,null,null,{"$f":"VLOOKUP(G907,'Data order'!Z:AA,2,0)","v":{"$error":"#N/A"}},null,null,null,null,null,null,null,null,{"$f":"VLOOKUP(N907,Tabel10[[korte omschrijving]:[MCC3_CODE]],2,0)","v":{"$error":"#N/A"}},{"$f":"VLOOKUP(N907,'Data order'!M:O,3,0)","v":{"$error":"#N/A"}},null,null,null,{"$f":"IFERROR(\n  IF(R907=\"Big&Tall\",\n      VLOOKUP(S907, 'Data order'!$AC$92:$AD$101, 2, FALSE),\n      IF(R907=\"Boordmaat\",\n          VLOOKUP(S907, 'Data order'!$AC$102:$AD$116, 2, FALSE),\n          VLOOKUP(S907, 'Data order'!$AC$2:$AD$91, 2, FALSE)\n      )\n  ),\n\"\")","v":""},null,null,null,null,"EUR",null,null,null,{"$error":"#DIV/0!"},0,0,null,"","","","","","","","","","",null,null,null,null,null,null,null,null,null,null,null,null,null,null,null,null,null,"ZWO"]
[null,null,null,null,null,{"$f":"VLOOKUP(G908,'Data order'!Z:AA,2,0)","v":{"$error":"#N/A"}},null,null,null,null,null,null,null,null,{"$f":"VLOOKUP(N908,Tabel10[[korte omschrijving]:[MCC3_CODE]],2,0)","v":{"$error":"#N/A"}},{"$f":"VLOOKUP(N908,'Data order'!M:O,3,0)","v":{"$error":"#N/A"}},null,null,null,{"$f":"IFERROR(\n  IF(R908=\"Big&Tall\",\n      VLOOKUP(S908, 'Data order'!$AC$92:$AD$101, 2, FALSE),\n      IF(R908=\"Boordmaat\",\n          VLOOKUP(S908, 'Data order'!$AC$102:$AD$116, 2, FALSE),\n          VLOOKUP(S908, 'Data order'!$AC$2:$AD$91, 2, FALSE)\n      )\n  ),\n\"\")","v":""},null,null,null,null,"EUR",null,null,null,{"$error":"#DIV/0!"},0,0,null,"","","","","","","","","","",null,null,null,null,null,null,null,null,null,null,null,null,null,null,null,null,null,"ZWO"]
[null,null,null,null,null,{"$f":"VLOOKUP(G909,'Data order'!Z:AA,2,0)","v":{"$error":"#N/A"}},null,null,null,null,null,null,null,null,{"$f":"VLOOKUP(N909,Tabel10[[korte omschrijving]:[MCC3_CODE]],2,0)","v":{"$error":"#N/A"}},{"$f":"VLOOKUP(N909,'Data order'!M:O,3,0)","v":{"$error":"#N/A"}},null,null,null,{"$f":"IFERROR(\n  IF(R909=\"Big&Tall\",\n      VLOOKUP(S909, 'Data order'!$AC$92:$AD$101, 2, FALSE),\n      IF(R909=\"Boordmaat\",\n          VLOOKUP(S909, 'Data order'!$AC$102:$AD$116, 2, FALSE),\n          VLOOKUP(S909, 'Data order'!$AC$2:$AD$91, 2, FALSE)\n      )\n  ),\n\"\")","v":""},null,null,null,null,"EUR",null,null,null,{"$error":"#DIV/0!"},0,0,null,"","","","","","","","","","",null,null,null,null,null,null,null,null,null,null,null,null,null,null,null,null,null,"ZWO"]
[null,null,null,null,null,{"$f":"VLOOKUP(G910,'Data order'!Z:AA,2,0)","v":{"$error":"#N/A"}},null,null,null,null,null,null,null,null,{"$f":"VLOOKUP(N910,Tabel10[[korte omschrijving]:[MCC3_CODE]],2,0)","v":{"$error":"#N/A"}},{"$f":"VLOOKUP(N910,'Data order'!M:O,3,0)","v":{"$error":"#N/A"}},null,null,null,{"$f":"IFERROR(\n  IF(R910=\"Big&Tall\",\n      VLOOKUP(S910, 'Data order'!$AC$92:$AD$101, 2, FALSE),\n      IF(R910=\"Boordmaat\",\n          VLOOKUP(S910, 'Data order'!$AC$102:$AD$116, 2, FALSE),\n          VLOOKUP(S910, 'Data order'!$AC$2:$AD$91, 2, FALSE)\n      )\n  ),\n\"\")","v":""},null,null,null,null,"EUR",null,null,null,{"$error":"#DIV/0!"},0,0,null,"","","","","","","","","","",null,null,null,null,null,null,null,null,null,null,null,null,null,null,null,null,null,"ZWO"]
[null,null,null,null,null,{"$f":"VLOOKUP(G911,'Data order'!Z:AA,2,0)","v":{"$error":"#N/A"}},null,null,null,null,null,null,null,null,{"$f":"VLOOKUP(N911,Tabel10[[korte omschrijving]:[MCC3_CODE]],2,0)","v":{"$error":"#N/A"}},{"$f":"VLOOKUP(N911,'Data order'!M:O,3,0)","v":{"$error":"#N/A"}},null,null,null,{"$f":"IFERROR(\n  IF(R911=\"Big&Tall\",\n      VLOOKUP(S911, 'Data order'!$AC$92:$AD$101, 2, FALSE),\n      IF(R911=\"Boordmaat\",\n          VLOOKUP(S911, 'Data order'!$AC$102:$AD$116, 2, FALSE),\n          VLOOKUP(S911, 'Data order'!$AC$2:$AD$91, 2, FALSE)\n      )\n  ),\n\"\")","v":""},null,null,null,null,"EUR",null,null,null,{"$error":"#DIV/0!"},0,0,null,"","","","","","","","","","",null,null,null,null,null,null,null,null,null,null,null,null,null,null,null,null,null,"ZWO"]
[null,null,null,null,null,{"$f":"VLOOKUP(G912,'Data order'!Z:AA,2,0)","v":{"$error":"#N/A"}},null,null,null,null,null,null,null,null,{"$f":"VLOOKUP(N912,Tabel10[[korte omschrijving]:[MCC3_CODE]],2,0)","v":{"$error":"#N/A"}},{"$f":"VLOOKUP(N912,'Data order'!M:O,3,0)","v":{"$error":"#N/A"}},null,null,null,{"$f":"IFERROR(\n  IF(R912=\"Big&Tall\",\n      VLOOKUP(S912, 'Data order'!$AC$92:$AD$101, 2, FALSE),\n      IF(R912=\"Boordmaat\",\n          VLOOKUP(S912, 'Data order'!$AC$102:$AD$116, 2, FALSE),\n          VLOOKUP(S912, 'Data order'!$AC$2:$AD$91, 2, FALSE)\n      )\n  ),\n\"\")","v":""},null,0,null,null,"EUR",null,null,null,{"$f":"AB912/Z912","v":{"$error":"#DIV/0!"}},{"$f":"U912*Z912","v":0},{"$f":"U912*AB912","v":0},null,"","","","","","","","","","",null,null,null,null,null,null,null,null,null,null,null,null,null,null,null,null,null,"ZWO"]
[null,null,null,null,null,{"$f":"VLOOKUP(G913,'Data order'!Z:AA,2,0)","v":{"$error":"#N/A"}},null,null,null,null,null,null,null,null,{"$f":"VLOOKUP(N913,Tabel10[[korte omschrijving]:[MCC3_CODE]],2,0)","v":{"$error":"#N/A"}},{"$f":"VLOOKUP(N913,'Data order'!M:O,3,0)","v":{"$error":"#N/A"}},null,null,null,{"$f":"IFERROR(\n  IF(R913=\"Big&Tall\",\n      VLOOKUP(S913, 'Data order'!$AC$92:$AD$101, 2, FALSE),\n      IF(R913=\"Boordmaat\",\n          VLOOKUP(S913, 'Data order'!$AC$102:$AD$116, 2, FALSE),\n          VLOOKUP(S913, 'Data order'!$AC$2:$AD$91, 2, FALSE)\n      )\n  ),\n\"\")","v":""},null,null,null,null,"EUR",null,null,null,{"$error":"#DIV/0!"},0,0,null,"","","","","","","","","","",null,null,null,null,null,null,null,null,null,null,null,null,null,null,null,null,null,"ZWO"]
[null,null,null,null,null,{"$f":"VLOOKUP(G914,'Data order'!Z:AA,2,0)","v":{"$error":"#N/A"}},null,null,null,null,null,null,null,null,{"$f":"VLOOKUP(N914,Tabel10[[korte omschrijving]:[MCC3_CODE]],2,0)","v":{"$error":"#N/A"}},{"$f":"VLOOKUP(N914,'Data order'!M:O,3,0)","v":{"$error":"#N/A"}},null,null,null,{"$f":"IFERROR(\n  IF(R914=\"Big&Tall\",\n      VLOOKUP(S914, 'Data order'!$AC$92:$AD$101, 2, FALSE),\n      IF(R914=\"Boordmaat\",\n          VLOOKUP(S914, 'Data order'!$AC$102:$AD$116, 2, FALSE),\n          VLOOKUP(S914, 'Data order'!$AC$2:$AD$91, 2, FALSE)\n      )\n  ),\n\"\")","v":""},null,null,null,null,"EUR",null,null,null,{"$error":"#DIV/0!"},0,0,null,"","","","","","","","","","",null,null,null,null,null,null,null,null,null,null,null,null,null,null,null,null,null,"ZWO"]
[null,null,null,null,null,{"$f":"VLOOKUP(G915,'Data order'!Z:AA,2,0)","v":{"$error":"#N/A"}},null,null,null,null,null,null,null,null,{"$f":"VLOOKUP(N915,Tabel10[[korte omschrijving]:[MCC3_CODE]],2,0)","v":{"$error":"#N/A"}},{"$f":"VLOOKUP(N915,'Data order'!M:O,3,0)","v":{"$error":"#N/A"}},null,null,null,{"$f":"IFERROR(\n  IF(R915=\"Big&Tall\",\n      VLOOKUP(S915, 'Data order'!$AC$92:$AD$101, 2, FALSE),\n      IF(R915=\"Boordmaat\",\n          VLOOKUP(S915, 'Data order'!$AC$102:$AD$116, 2, FALSE),\n          VLOOKUP(S915, 'Data order'!$AC$2:$AD$91, 2, FALSE)\n      )\n  ),\n\"\")","v":""},null,null,null,null,"EUR",null,null,null,{"$error":"#DIV/0!"},0,0,null,"","","","","","","","","","",null,null,null,null,null,null,null,null,null,null,null,null,null,null,null,null,null,"ZWO"]
[null,null,null,null,null,{"$f":"VLOOKUP(G916,'Data order'!Z:AA,2,0)","v":{"$error":"#N/A"}},null,null,null,null,null,null,null,null,{"$f":"VLOOKUP(N916,Tabel10[[korte omschrijving]:[MCC3_CODE]],2,0)","v":{"$error":"#N/A"}},{"$f":"VLOOKUP(N916,'Data order'!M:O,3,0)","v":{"$error":"#N/A"}},null,null,null,{"$f":"IFERROR(\n  IF(R916=\"Big&Tall\",\n      VLOOKUP(S916, 'Data order'!$AC$92:$AD$101, 2, FALSE),\n      IF(R916=\"Boordmaat\",\n          VLOOKUP(S916, 'Data order'!$AC$102:$AD$116, 2, FALSE),\n          VLOOKUP(S916, 'Data order'!$AC$2:$AD$91, 2, FALSE)\n      )\n  ),\n\"\")","v":""},null,null,null,null,"EUR",null,null,null,{"$error":"#DIV/0!"},0,0,null,"","","","","","","","","","",null,null,null,null,null,null,null,null,null,null,null,null,null,null,null,null,null,"ZWO"]
[null,null,null,null,null,{"$f":"VLOOKUP(G917,'Data order'!Z:AA,2,0)","v":{"$error":"#N/A"}},null,null,null,null,null,null,null,null,{"$f":"VLOOKUP(N917,Tabel10[[korte omschrijving]:[MCC3_CODE]],2,0)","v":{"$error":"#N/A"}},{"$f":"VLOOKUP(N917,'Data order'!M:O,3,0)","v":{"$error":"#N/A"}},null,null,null,{"$f":"IFERROR(\n  IF(R917=\"Big&Tall\",\n      VLOOKUP(S917, 'Data order'!$AC$92:$AD$101, 2, FALSE),\n      IF(R917=\"Boordmaat\",\n          VLOOKUP(S917, 'Data order'!$AC$102:$AD$116, 2, FALSE),\n          VLOOKUP(S917, 'Data order'!$AC$2:$AD$91, 2, FALSE)\n      )\n  ),\n\"\")","v":""},null,null,null,null,"EUR",null,null,null,{"$error":"#DIV/0!"},0,0,null,"","","","","","","","","","",null,null,null,null,null,null,null,null,null,null,null,null,null,null,null,null,null,"ZWO"]
[null,null,null,null,null,{"$f":"VLOOKUP(G918,'Data order'!Z:AA,2,0)","v":{"$error":"#N/A"}},null,null,null,null,null,null,null,null,{"$f":"VLOOKUP(N918,Tabel10[[korte omschrijving]:[MCC3_CODE]],2,0)","v":{"$error":"#N/A"}},{"$f":"VLOOKUP(N918,'Data order'!M:O,3,0)","v":{"$error":"#N/A"}},null,null,null,{"$f":"IFERROR(\n  IF(R918=\"Big&Tall\",\n      VLOOKUP(S918, 'Data order'!$AC$92:$AD$101, 2, FALSE),\n      IF(R918=\"Boordmaat\",\n          VLOOKUP(S918, 'Data order'!$AC$102:$AD$116, 2, FALSE),\n          VLOOKUP(S918, 'Data order'!$AC$2:$AD$91, 2, FALSE)\n      )\n  ),\n\"\")","v":""},null,0,null,null,"EUR",null,null,null,{"$f":"AB918/Z918","v":{"$error":"#DIV/0!"}},{"$f":"U918*Z918","v":0},{"$f":"U918*AB918","v":0},null,"","","","","","","","","","",null,null,null,null,null,null,null,null,null,null,null,null,null,null,null,null,null,"ZWO"]
[null,null,null,null,null,{"$f":"VLOOKUP(G919,'Data order'!Z:AA,2,0)","v":{"$error":"#N/A"}},null,null,null,null,null,null,null,null,{"$f":"VLOOKUP(N919,Tabel10[[korte omschrijving]:[MCC3_CODE]],2,0)","v":{"$error":"#N/A"}},{"$f":"VLOOKUP(N919,'Data order'!M:O,3,0)","v":{"$error":"#N/A"}},null,null,null,{"$f":"IFERROR(\n  IF(R919=\"Big&Tall\",\n      VLOOKUP(S919, 'Data order'!$AC$92:$AD$101, 2, FALSE),\n      IF(R919=\"Boordmaat\",\n          VLOOKUP(S919, 'Data order'!$AC$102:$AD$116, 2, FALSE),\n          VLOOKUP(S919, 'Data order'!$AC$2:$AD$91, 2, FALSE)\n      )\n  ),\n\"\")","v":""},null,null,null,null,"EUR",null,null,null,{"$error":"#DIV/0!"},0,0,null,"","","","","","","","","","",null,null,null,null,null,null,null,null,null,null,null,null,null,null,null,null,null,"ZWO"]
[null,null,null,null,null,{"$f":"VLOOKUP(G920,'Data order'!Z:AA,2,0)","v":{"$error":"#N/A"}},null,null,null,null,null,null,null,null,{"$f":"VLOOKUP(N920,Tabel10[[korte omschrijving]:[MCC3_CODE]],2,0)","v":{"$error":"#N/A"}},{"$f":"VLOOKUP(N920,'Data order'!M:O,3,0)","v":{"$error":"#N/A"}},null,null,null,{"$f":"IFERROR(\n  IF(R920=\"Big&Tall\",\n      VLOOKUP(S920, 'Data order'!$AC$92:$AD$101, 2, FALSE),\n      IF(R920=\"Boordmaat\",\n          VLOOKUP(S920, 'Data order'!$AC$102:$AD$116, 2, FALSE),\n          VLOOKUP(S920, 'Data order'!$AC$2:$AD$91, 2, FALSE)\n      )\n  ),\n\"\")","v":""},null,null,null,null,"EUR",null,null,null,{"$error":"#DIV/0!"},0,0,null,"","","","","","","","","","",null,null,null,null,null,null,null,null,null,null,null,null,null,null,null,null,null,"ZWO"]
[null,null,null,null,null,{"$f":"VLOOKUP(G921,'Data order'!Z:AA,2,0)","v":{"$error":"#N/A"}},null,null,null,null,null,null,null,null,{"$f":"VLOOKUP(N921,Tabel10[[korte omschrijving]:[MCC3_CODE]],2,0)","v":{"$error":"#N/A"}},{"$f":"VLOOKUP(N921,'Data order'!M:O,3,0)","v":{"$error":"#N/A"}},null,null,null,{"$f":"IFERROR(\n  IF(R921=\"Big&Tall\",\n      VLOOKUP(S921, 'Data order'!$AC$92:$AD$101, 2, FALSE),\n      IF(R921=\"Boordmaat\",\n          VLOOKUP(S921, 'Data order'!$AC$102:$AD$116, 2, FALSE),\n          VLOOKUP(S921, 'Data order'!$AC$2:$AD$91, 2, FALSE)\n      )\n  ),\n\"\")","v":""},null,null,null,null,"EUR",null,null,null,{"$error":"#DIV/0!"},0,0,null,"","","","","","","","","","",null,null,null,null,null,null,null,null,null,null,null,null,null,null,null,null,null,"ZWO"]
[null,null,null,null,null,{"$f":"VLOOKUP(G922,'Data order'!Z:AA,2,0)","v":{"$error":"#N/A"}},null,null,null,null,null,null,null,null,{"$f":"VLOOKUP(N922,Tabel10[[korte omschrijving]:[MCC3_CODE]],2,0)","v":{"$error":"#N/A"}},{"$f":"VLOOKUP(N922,'Data order'!M:O,3,0)","v":{"$error":"#N/A"}},null,null,null,{"$f":"IFERROR(\n  IF(R922=\"Big&Tall\",\n      VLOOKUP(S922, 'Data order'!$AC$92:$AD$101, 2, FALSE),\n      IF(R922=\"Boordmaat\",\n          VLOOKUP(S922, 'Data order'!$AC$102:$AD$116, 2, FALSE),\n          VLOOKUP(S922, 'Data order'!$AC$2:$AD$91, 2, FALSE)\n      )\n  ),\n\"\")","v":""},null,null,null,null,"EUR",null,null,null,{"$error":"#DIV/0!"},0,0,null,"","","","","","","","","","",null,null,null,null,null,null,null,null,null,null,null,null,null,null,null,null,null,"ZWO"]
[null,null,null,null,null,{"$f":"VLOOKUP(G923,'Data order'!Z:AA,2,0)","v":{"$error":"#N/A"}},null,null,null,null,null,null,null,null,{"$f":"VLOOKUP(N923,Tabel10[[korte omschrijving]:[MCC3_CODE]],2,0)","v":{"$error":"#N/A"}},{"$f":"VLOOKUP(N923,'Data order'!M:O,3,0)","v":{"$error":"#N/A"}},null,null,null,{"$f":"IFERROR(\n  IF(R923=\"Big&Tall\",\n      VLOOKUP(S923, 'Data order'!$AC$92:$AD$101, 2, FALSE),\n      IF(R923=\"Boordmaat\",\n          VLOOKUP(S923, 'Data order'!$AC$102:$AD$116, 2, FALSE),\n          VLOOKUP(S923, 'Data order'!$AC$2:$AD$91, 2, FALSE)\n      )\n  ),\n\"\")","v":""},null,null,null,null,"EUR",null,null,null,{"$error":"#DIV/0!"},0,0,null,"","","","","","","","","","",null,null,null,null,null,null,null,null,null,null,null,null,null,null,null,null,null,"ZWO"]
[null,null,null,null,null,{"$f":"VLOOKUP(G924,'Data order'!Z:AA,2,0)","v":{"$error":"#N/A"}},null,null,null,null,null,null,null,null,{"$f":"VLOOKUP(N924,Tabel10[[korte omschrijving]:[MCC3_CODE]],2,0)","v":{"$error":"#N/A"}},{"$f":"VLOOKUP(N924,'Data order'!M:O,3,0)","v":{"$error":"#N/A"}},null,null,null,{"$f":"IFERROR(\n  IF(R924=\"Big&Tall\",\n      VLOOKUP(S924, 'Data order'!$AC$92:$AD$101, 2, FALSE),\n      IF(R924=\"Boordmaat\",\n          VLOOKUP(S924, 'Data order'!$AC$102:$AD$116, 2, FALSE),\n          VLOOKUP(S924, 'Data order'!$AC$2:$AD$91, 2, FALSE)\n      )\n  ),\n\"\")","v":""},null,0,null,null,"EUR",null,null,null,{"$f":"AB924/Z924","v":{"$error":"#DIV/0!"}},{"$f":"U924*Z924","v":0},{"$f":"U924*AB924","v":0},null,"","","","","","","","","","",null,null,null,null,null,null,null,null,null,null,null,null,null,null,null,null,null,"ZWO"]
[null,null,null,null,null,{"$f":"VLOOKUP(G925,'Data order'!Z:AA,2,0)","v":{"$error":"#N/A"}},null,null,null,null,null,null,null,null,{"$f":"VLOOKUP(N925,Tabel10[[korte omschrijving]:[MCC3_CODE]],2,0)","v":{"$error":"#N/A"}},{"$f":"VLOOKUP(N925,'Data order'!M:O,3,0)","v":{"$error":"#N/A"}},null,null,null,{"$f":"IFERROR(\n  IF(R925=\"Big&Tall\",\n      VLOOKUP(S925, 'Data order'!$AC$92:$AD$101, 2, FALSE),\n      IF(R925=\"Boordmaat\",\n          VLOOKUP(S925, 'Data order'!$AC$102:$AD$116, 2, FALSE),\n          VLOOKUP(S925, 'Data order'!$AC$2:$AD$91, 2, FALSE)\n      )\n  ),\n\"\")","v":""},null,null,null,null,"EUR",null,null,null,{"$error":"#DIV/0!"},0,0,null,"","","","","","","","","","",null,null,null,null,null,null,null,null,null,null,null,null,null,null,null,null,null,"ZWO"]
[null,null,null,null,null,{"$f":"VLOOKUP(G926,'Data order'!Z:AA,2,0)","v":{"$error":"#N/A"}},null,null,null,null,null,null,null,null,{"$f":"VLOOKUP(N926,Tabel10[[korte omschrijving]:[MCC3_CODE]],2,0)","v":{"$error":"#N/A"}},{"$f":"VLOOKUP(N926,'Data order'!M:O,3,0)","v":{"$error":"#N/A"}},null,null,null,{"$f":"IFERROR(\n  IF(R926=\"Big&Tall\",\n      VLOOKUP(S926, 'Data order'!$AC$92:$AD$101, 2, FALSE),\n      IF(R926=\"Boordmaat\",\n          VLOOKUP(S926, 'Data order'!$AC$102:$AD$116, 2, FALSE),\n          VLOOKUP(S926, 'Data order'!$AC$2:$AD$91, 2, FALSE)\n      )\n  ),\n\"\")","v":""},null,null,null,null,"EUR",null,null,null,{"$error":"#DIV/0!"},0,0,null,"","","","","","","","","","",null,null,null,null,null,null,null,null,null,null,null,null,null,null,null,null,null,"ZWO"]
[null,null,null,null,null,{"$f":"VLOOKUP(G927,'Data order'!Z:AA,2,0)","v":{"$error":"#N/A"}},null,null,null,null,null,null,null,null,{"$f":"VLOOKUP(N927,Tabel10[[korte omschrijving]:[MCC3_CODE]],2,0)","v":{"$error":"#N/A"}},{"$f":"VLOOKUP(N927,'Data order'!M:O,3,0)","v":{"$error":"#N/A"}},null,null,null,{"$f":"IFERROR(\n  IF(R927=\"Big&Tall\",\n      VLOOKUP(S927, 'Data order'!$AC$92:$AD$101, 2, FALSE),\n      IF(R927=\"Boordmaat\",\n          VLOOKUP(S927, 'Data order'!$AC$102:$AD$116, 2, FALSE),\n          VLOOKUP(S927, 'Data order'!$AC$2:$AD$91, 2, FALSE)\n      )\n  ),\n\"\")","v":""},null,null,null,null,"EUR",null,null,null,{"$error":"#DIV/0!"},0,0,null,"","","","","","","","","","",null,null,null,null,null,null,null,null,null,null,null,null,null,null,null,null,null,"ZWO"]
[null,null,null,null,null,{"$f":"VLOOKUP(G928,'Data order'!Z:AA,2,0)","v":{"$error":"#N/A"}},null,null,null,null,null,null,null,null,{"$f":"VLOOKUP(N928,Tabel10[[korte omschrijving]:[MCC3_CODE]],2,0)","v":{"$error":"#N/A"}},{"$f":"VLOOKUP(N928,'Data order'!M:O,3,0)","v":{"$error":"#N/A"}},null,null,null,{"$f":"IFERROR(\n  IF(R928=\"Big&Tall\",\n      VLOOKUP(S928, 'Data order'!$AC$92:$AD$101, 2, FALSE),\n      IF(R928=\"Boordmaat\",\n          VLOOKUP(S928, 'Data order'!$AC$102:$AD$116, 2, FALSE),\n          VLOOKUP(S928, 'Data order'!$AC$2:$AD$91, 2, FALSE)\n      )\n  ),\n\"\")","v":""},null,null,null,null,"EUR",null,null,null,{"$error":"#DIV/0!"},0,0,null,"","","","","","","","","","",null,null,null,null,null,null,null,null,null,null,null,null,null,null,null,null,null,"ZWO"]
[null,null,null,null,null,{"$f":"VLOOKUP(G929,'Data order'!Z:AA,2,0)","v":{"$error":"#N/A"}},null,null,null,null,null,null,null,null,{"$f":"VLOOKUP(N929,Tabel10[[korte omschrijving]:[MCC3_CODE]],2,0)","v":{"$error":"#N/A"}},{"$f":"VLOOKUP(N929,'Data order'!M:O,3,0)","v":{"$error":"#N/A"}},null,null,null,{"$f":"IFERROR(\n  IF(R929=\"Big&Tall\",\n      VLOOKUP(S929, 'Data order'!$AC$92:$AD$101, 2, FALSE),\n      IF(R929=\"Boordmaat\",\n          VLOOKUP(S929, 'Data order'!$AC$102:$AD$116, 2, FALSE),\n          VLOOKUP(S929, 'Data order'!$AC$2:$AD$91, 2, FALSE)\n      )\n  ),\n\"\")","v":""},null,null,null,null,"EUR",null,null,null,{"$error":"#DIV/0!"},0,0,null,"","","","","","","","","","",null,null,null,null,null,null,null,null,null,null,null,null,null,null,null,null,null,"ZWO"]
[null,null,null,null,null,{"$f":"VLOOKUP(G930,'Data order'!Z:AA,2,0)","v":{"$error":"#N/A"}},null,null,null,null,null,null,null,null,{"$f":"VLOOKUP(N930,Tabel10[[korte omschrijving]:[MCC3_CODE]],2,0)","v":{"$error":"#N/A"}},{"$f":"VLOOKUP(N930,'Data order'!M:O,3,0)","v":{"$error":"#N/A"}},null,null,null,{"$f":"IFERROR(\n  IF(R930=\"Big&Tall\",\n      VLOOKUP(S930, 'Data order'!$AC$92:$AD$101, 2, FALSE),\n      IF(R930=\"Boordmaat\",\n          VLOOKUP(S930, 'Data order'!$AC$102:$AD$116, 2, FALSE),\n          VLOOKUP(S930, 'Data order'!$AC$2:$AD$91, 2, FALSE)\n      )\n  ),\n\"\")","v":""},null,0,null,null,"EUR",null,null,null,{"$f":"AB930/Z930","v":{"$error":"#DIV/0!"}},{"$f":"U930*Z930","v":0},{"$f":"U930*AB930","v":0},null,"","","","","","","","","","",null,null,null,null,null,null,null,null,null,null,null,null,null,null,null,null,null,"ZWO"]
[null,null,null,null,null,{"$f":"VLOOKUP(G931,'Data order'!Z:AA,2,0)","v":{"$error":"#N/A"}},null,null,null,null,null,null,null,null,{"$f":"VLOOKUP(N931,Tabel10[[korte omschrijving]:[MCC3_CODE]],2,0)","v":{"$error":"#N/A"}},{"$f":"VLOOKUP(N931,'Data order'!M:O,3,0)","v":{"$error":"#N/A"}},null,null,null,{"$f":"IFERROR(\n  IF(R931=\"Big&Tall\",\n      VLOOKUP(S931, 'Data order'!$AC$92:$AD$101, 2, FALSE),\n      IF(R931=\"Boordmaat\",\n          VLOOKUP(S931, 'Data order'!$AC$102:$AD$116, 2, FALSE),\n          VLOOKUP(S931, 'Data order'!$AC$2:$AD$91, 2, FALSE)\n      )\n  ),\n\"\")","v":""},null,null,null,null,"EUR",null,null,null,{"$error":"#DIV/0!"},0,0,null,"","","","","","","","","","",null,null,null,null,null,null,null,null,null,null,null,null,null,null,null,null,null,"ZWO"]
[null,null,null,null,null,{"$f":"VLOOKUP(G932,'Data order'!Z:AA,2,0)","v":{"$error":"#N/A"}},null,null,null,null,null,null,null,null,{"$f":"VLOOKUP(N932,Tabel10[[korte omschrijving]:[MCC3_CODE]],2,0)","v":{"$error":"#N/A"}},{"$f":"VLOOKUP(N932,'Data order'!M:O,3,0)","v":{"$error":"#N/A"}},null,null,null,{"$f":"IFERROR(\n  IF(R932=\"Big&Tall\",\n      VLOOKUP(S932, 'Data order'!$AC$92:$AD$101, 2, FALSE),\n      IF(R932=\"Boordmaat\",\n          VLOOKUP(S932, 'Data order'!$AC$102:$AD$116, 2, FALSE),\n          VLOOKUP(S932, 'Data order'!$AC$2:$AD$91, 2, FALSE)\n      )\n  ),\n\"\")","v":""},null,null,null,null,"EUR",null,null,null,{"$error":"#DIV/0!"},0,0,null,"","","","","","","","","","",null,null,null,null,null,null,null,null,null,null,null,null,null,null,null,null,null,"ZWO"]
[null,null,null,null,null,{"$f":"VLOOKUP(G933,'Data order'!Z:AA,2,0)","v":{"$error":"#N/A"}},null,null,null,null,null,null,null,null,{"$f":"VLOOKUP(N933,Tabel10[[korte omschrijving]:[MCC3_CODE]],2,0)","v":{"$error":"#N/A"}},{"$f":"VLOOKUP(N933,'Data order'!M:O,3,0)","v":{"$error":"#N/A"}},null,null,null,{"$f":"IFERROR(\n  IF(R933=\"Big&Tall\",\n      VLOOKUP(S933, 'Data order'!$AC$92:$AD$101, 2, FALSE),\n      IF(R933=\"Boordmaat\",\n          VLOOKUP(S933, 'Data order'!$AC$102:$AD$116, 2, FALSE),\n          VLOOKUP(S933, 'Data order'!$AC$2:$AD$91, 2, FALSE)\n      )\n  ),\n\"\")","v":""},null,null,null,null,"EUR",null,null,null,{"$error":"#DIV/0!"},0,0,null,"","","","","","","","","","",null,null,null,null,null,null,null,null,null,null,null,null,null,null,null,null,null,"ZWO"]
[null,null,null,null,null,{"$f":"VLOOKUP(G934,'Data order'!Z:AA,2,0)","v":{"$error":"#N/A"}},null,null,null,null,null,null,null,null,{"$f":"VLOOKUP(N934,Tabel10[[korte omschrijving]:[MCC3_CODE]],2,0)","v":{"$error":"#N/A"}},{"$f":"VLOOKUP(N934,'Data order'!M:O,3,0)","v":{"$error":"#N/A"}},null,null,null,{"$f":"IFERROR(\n  IF(R934=\"Big&Tall\",\n      VLOOKUP(S934, 'Data order'!$AC$92:$AD$101, 2, FALSE),\n      IF(R934=\"Boordmaat\",\n          VLOOKUP(S934, 'Data order'!$AC$102:$AD$116, 2, FALSE),\n          VLOOKUP(S934, 'Data order'!$AC$2:$AD$91, 2, FALSE)\n      )\n  ),\n\"\")","v":""},null,null,null,null,"EUR",null,null,null,{"$error":"#DIV/0!"},0,0,null,"","","","","","","","","","",null,null,null,null,null,null,null,null,null,null,null,null,null,null,null,null,null,"ZWO"]
[null,null,null,null,null,{"$f":"VLOOKUP(G935,'Data order'!Z:AA,2,0)","v":{"$error":"#N/A"}},null,null,null,null,null,null,null,null,{"$f":"VLOOKUP(N935,Tabel10[[korte omschrijving]:[MCC3_CODE]],2,0)","v":{"$error":"#N/A"}},{"$f":"VLOOKUP(N935,'Data order'!M:O,3,0)","v":{"$error":"#N/A"}},null,null,null,{"$f":"IFERROR(\n  IF(R935=\"Big&Tall\",\n      VLOOKUP(S935, 'Data order'!$AC$92:$AD$101, 2, FALSE),\n      IF(R935=\"Boordmaat\",\n          VLOOKUP(S935, 'Data order'!$AC$102:$AD$116, 2, FALSE),\n          VLOOKUP(S935, 'Data order'!$AC$2:$AD$91, 2, FALSE)\n      )\n  ),\n\"\")","v":""},null,null,null,null,"EUR",null,null,null,{"$error":"#DIV/0!"},0,0,null,"","","","","","","","","","",null,null,null,null,null,null,null,null,null,null,null,null,null,null,null,null,null,"ZWO"]
[null,null,null,null,null,{"$f":"VLOOKUP(G936,'Data order'!Z:AA,2,0)","v":{"$error":"#N/A"}},null,null,null,null,null,null,null,null,{"$f":"VLOOKUP(N936,Tabel10[[korte omschrijving]:[MCC3_CODE]],2,0)","v":{"$error":"#N/A"}},{"$f":"VLOOKUP(N936,'Data order'!M:O,3,0)","v":{"$error":"#N/A"}},null,null,null,{"$f":"IFERROR(\n  IF(R936=\"Big&Tall\",\n      VLOOKUP(S936, 'Data order'!$AC$92:$AD$101, 2, FALSE),\n      IF(R936=\"Boordmaat\",\n          VLOOKUP(S936, 'Data order'!$AC$102:$AD$116, 2, FALSE),\n          VLOOKUP(S936, 'Data order'!$AC$2:$AD$91, 2, FALSE)\n      )\n  ),\n\"\")","v":""},null,0,null,null,"EUR",null,null,null,{"$f":"AB936/Z936","v":{"$error":"#DIV/0!"}},{"$f":"U936*Z936","v":0},{"$f":"U936*AB936","v":0},null,"","","","","","","","","","",null,null,null,null,null,null,null,null,null,null,null,null,null,null,null,null,null,"ZWO"]
[null,null,null,null,null,{"$f":"VLOOKUP(G937,'Data order'!Z:AA,2,0)","v":{"$error":"#N/A"}},null,null,null,null,null,null,null,null,{"$f":"VLOOKUP(N937,Tabel10[[korte omschrijving]:[MCC3_CODE]],2,0)","v":{"$error":"#N/A"}},{"$f":"VLOOKUP(N937,'Data order'!M:O,3,0)","v":{"$error":"#N/A"}},null,null,null,{"$f":"IFERROR(\n  IF(R937=\"Big&Tall\",\n      VLOOKUP(S937, 'Data order'!$AC$92:$AD$101, 2, FALSE),\n      IF(R937=\"Boordmaat\",\n          VLOOKUP(S937, 'Data order'!$AC$102:$AD$116, 2, FALSE),\n          VLOOKUP(S937, 'Data order'!$AC$2:$AD$91, 2, FALSE)\n      )\n  ),\n\"\")","v":""},null,null,null,null,"EUR",null,null,null,{"$error":"#DIV/0!"},0,0,null,"","","","","","","","","","",null,null,null,null,null,null,null,null,null,null,null,null,null,null,null,null,null,"ZWO"]
[null,null,null,null,null,{"$f":"VLOOKUP(G938,'Data order'!Z:AA,2,0)","v":{"$error":"#N/A"}},null,null,null,null,null,null,null,null,{"$f":"VLOOKUP(N938,Tabel10[[korte omschrijving]:[MCC3_CODE]],2,0)","v":{"$error":"#N/A"}},{"$f":"VLOOKUP(N938,'Data order'!M:O,3,0)","v":{"$error":"#N/A"}},null,null,null,{"$f":"IFERROR(\n  IF(R938=\"Big&Tall\",\n      VLOOKUP(S938, 'Data order'!$AC$92:$AD$101, 2, FALSE),\n      IF(R938=\"Boordmaat\",\n          VLOOKUP(S938, 'Data order'!$AC$102:$AD$116, 2, FALSE),\n          VLOOKUP(S938, 'Data order'!$AC$2:$AD$91, 2, FALSE)\n      )\n  ),\n\"\")","v":""},null,null,null,null,"EUR",null,null,null,{"$error":"#DIV/0!"},0,0,null,"","","","","","","","","","",null,null,null,null,null,null,null,null,null,null,null,null,null,null,null,null,null,"ZWO"]
[null,null,null,null,null,{"$f":"VLOOKUP(G939,'Data order'!Z:AA,2,0)","v":{"$error":"#N/A"}},null,null,null,null,null,null,null,null,{"$f":"VLOOKUP(N939,Tabel10[[korte omschrijving]:[MCC3_CODE]],2,0)","v":{"$error":"#N/A"}},{"$f":"VLOOKUP(N939,'Data order'!M:O,3,0)","v":{"$error":"#N/A"}},null,null,null,{"$f":"IFERROR(\n  IF(R939=\"Big&Tall\",\n      VLOOKUP(S939, 'Data order'!$AC$92:$AD$101, 2, FALSE),\n      IF(R939=\"Boordmaat\",\n          VLOOKUP(S939, 'Data order'!$AC$102:$AD$116, 2, FALSE),\n          VLOOKUP(S939, 'Data order'!$AC$2:$AD$91, 2, FALSE)\n      )\n  ),\n\"\")","v":""},null,null,null,null,"EUR",null,null,null,{"$error":"#DIV/0!"},0,0,null,"","","","","","","","","","",null,null,null,null,null,null,null,null,null,null,null,null,null,null,null,null,null,"ZWO"]
[null,null,null,null,null,{"$f":"VLOOKUP(G940,'Data order'!Z:AA,2,0)","v":{"$error":"#N/A"}},null,null,null,null,null,null,null,null,{"$f":"VLOOKUP(N940,Tabel10[[korte omschrijving]:[MCC3_CODE]],2,0)","v":{"$error":"#N/A"}},{"$f":"VLOOKUP(N940,'Data order'!M:O,3,0)","v":{"$error":"#N/A"}},null,null,null,{"$f":"IFERROR(\n  IF(R940=\"Big&Tall\",\n      VLOOKUP(S940, 'Data order'!$AC$92:$AD$101, 2, FALSE),\n      IF(R940=\"Boordmaat\",\n          VLOOKUP(S940, 'Data order'!$AC$102:$AD$116, 2, FALSE),\n          VLOOKUP(S940, 'Data order'!$AC$2:$AD$91, 2, FALSE)\n      )\n  ),\n\"\")","v":""},null,null,null,null,"EUR",null,null,null,{"$error":"#DIV/0!"},0,0,null,"","","","","","","","","","",null,null,null,null,null,null,null,null,null,null,null,null,null,null,null,null,null,"ZWO"]
[null,null,null,null,null,{"$f":"VLOOKUP(G941,'Data order'!Z:AA,2,0)","v":{"$error":"#N/A"}},null,null,null,null,null,null,null,null,{"$f":"VLOOKUP(N941,Tabel10[[korte omschrijving]:[MCC3_CODE]],2,0)","v":{"$error":"#N/A"}},{"$f":"VLOOKUP(N941,'Data order'!M:O,3,0)","v":{"$error":"#N/A"}},null,null,null,{"$f":"IFERROR(\n  IF(R941=\"Big&Tall\",\n      VLOOKUP(S941, 'Data order'!$AC$92:$AD$101, 2, FALSE),\n      IF(R941=\"Boordmaat\",\n          VLOOKUP(S941, 'Data order'!$AC$102:$AD$116, 2, FALSE),\n          VLOOKUP(S941, 'Data order'!$AC$2:$AD$91, 2, FALSE)\n      )\n  ),\n\"\")","v":""},null,null,null,null,"EUR",null,null,null,{"$error":"#DIV/0!"},0,0,null,"","","","","","","","","","",null,null,null,null,null,null,null,null,null,null,null,null,null,null,null,null,null,"ZWO"]
[null,null,null,null,null,{"$f":"VLOOKUP(G942,'Data order'!Z:AA,2,0)","v":{"$error":"#N/A"}},null,null,null,null,null,null,null,null,{"$f":"VLOOKUP(N942,Tabel10[[korte omschrijving]:[MCC3_CODE]],2,0)","v":{"$error":"#N/A"}},{"$f":"VLOOKUP(N942,'Data order'!M:O,3,0)","v":{"$error":"#N/A"}},null,null,null,{"$f":"IFERROR(\n  IF(R942=\"Big&Tall\",\n      VLOOKUP(S942, 'Data order'!$AC$92:$AD$101, 2, FALSE),\n      IF(R942=\"Boordmaat\",\n          VLOOKUP(S942, 'Data order'!$AC$102:$AD$116, 2, FALSE),\n          VLOOKUP(S942, 'Data order'!$AC$2:$AD$91, 2, FALSE)\n      )\n  ),\n\"\")","v":""},null,0,null,null,"EUR",null,null,null,{"$f":"AB942/Z942","v":{"$error":"#DIV/0!"}},{"$f":"U942*Z942","v":0},{"$f":"U942*AB942","v":0},null,"","","","","","","","","","",null,null,null,null,null,null,null,null,null,null,null,null,null,null,null,null,null,"ZWO"]
[null,null,null,null,null,{"$f":"VLOOKUP(G943,'Data order'!Z:AA,2,0)","v":{"$error":"#N/A"}},null,null,null,null,null,null,null,null,{"$f":"VLOOKUP(N943,Tabel10[[korte omschrijving]:[MCC3_CODE]],2,0)","v":{"$error":"#N/A"}},{"$f":"VLOOKUP(N943,'Data order'!M:O,3,0)","v":{"$error":"#N/A"}},null,null,null,{"$f":"IFERROR(\n  IF(R943=\"Big&Tall\",\n      VLOOKUP(S943, 'Data order'!$AC$92:$AD$101, 2, FALSE),\n      IF(R943=\"Boordmaat\",\n          VLOOKUP(S943, 'Data order'!$AC$102:$AD$116, 2, FALSE),\n          VLOOKUP(S943, 'Data order'!$AC$2:$AD$91, 2, FALSE)\n      )\n  ),\n\"\")","v":""},null,null,null,null,"EUR",null,null,null,{"$error":"#DIV/0!"},0,0,null,"","","","","","","","","","",null,null,null,null,null,null,null,null,null,null,null,null,null,null,null,null,null,"ZWO"]
[null,null,null,null,null,{"$f":"VLOOKUP(G944,'Data order'!Z:AA,2,0)","v":{"$error":"#N/A"}},null,null,null,null,null,null,null,null,{"$f":"VLOOKUP(N944,Tabel10[[korte omschrijving]:[MCC3_CODE]],2,0)","v":{"$error":"#N/A"}},{"$f":"VLOOKUP(N944,'Data order'!M:O,3,0)","v":{"$error":"#N/A"}},null,null,null,{"$f":"IFERROR(\n  IF(R944=\"Big&Tall\",\n      VLOOKUP(S944, 'Data order'!$AC$92:$AD$101, 2, FALSE),\n      IF(R944=\"Boordmaat\",\n          VLOOKUP(S944, 'Data order'!$AC$102:$AD$116, 2, FALSE),\n          VLOOKUP(S944, 'Data order'!$AC$2:$AD$91, 2, FALSE)\n      )\n  ),\n\"\")","v":""},null,null,null,null,"EUR",null,null,null,{"$error":"#DIV/0!"},0,0,null,"","","","","","","","","","",null,null,null,null,null,null,null,null,null,null,null,null,null,null,null,null,null,"ZWO"]
[null,null,null,null,null,{"$f":"VLOOKUP(G945,'Data order'!Z:AA,2,0)","v":{"$error":"#N/A"}},null,null,null,null,null,null,null,null,{"$f":"VLOOKUP(N945,Tabel10[[korte omschrijving]:[MCC3_CODE]],2,0)","v":{"$error":"#N/A"}},{"$f":"VLOOKUP(N945,'Data order'!M:O,3,0)","v":{"$error":"#N/A"}},null,null,null,{"$f":"IFERROR(\n  IF(R945=\"Big&Tall\",\n      VLOOKUP(S945, 'Data order'!$AC$92:$AD$101, 2, FALSE),\n      IF(R945=\"Boordmaat\",\n          VLOOKUP(S945, 'Data order'!$AC$102:$AD$116, 2, FALSE),\n          VLOOKUP(S945, 'Data order'!$AC$2:$AD$91, 2, FALSE)\n      )\n  ),\n\"\")","v":""},null,null,null,null,"EUR",null,null,null,{"$error":"#DIV/0!"},0,0,null,"","","","","","","","","","",null,null,null,null,null,null,null,null,null,null,null,null,null,null,null,null,null,"ZWO"]
[null,null,null,null,null,{"$f":"VLOOKUP(G946,'Data order'!Z:AA,2,0)","v":{"$error":"#N/A"}},null,null,null,null,null,null,null,null,{"$f":"VLOOKUP(N946,Tabel10[[korte omschrijving]:[MCC3_CODE]],2,0)","v":{"$error":"#N/A"}},{"$f":"VLOOKUP(N946,'Data order'!M:O,3,0)","v":{"$error":"#N/A"}},null,null,null,{"$f":"IFERROR(\n  IF(R946=\"Big&Tall\",\n      VLOOKUP(S946, 'Data order'!$AC$92:$AD$101, 2, FALSE),\n      IF(R946=\"Boordmaat\",\n          VLOOKUP(S946, 'Data order'!$AC$102:$AD$116, 2, FALSE),\n          VLOOKUP(S946, 'Data order'!$AC$2:$AD$91, 2, FALSE)\n      )\n  ),\n\"\")","v":""},null,null,null,null,"EUR",null,null,null,{"$error":"#DIV/0!"},0,0,null,"","","","","","","","","","",null,null,null,null,null,null,null,null,null,null,null,null,null,null,null,null,null,"ZWO"]
[null,null,null,null,null,{"$f":"VLOOKUP(G947,'Data order'!Z:AA,2,0)","v":{"$error":"#N/A"}},null,null,null,null,null,null,null,null,{"$f":"VLOOKUP(N947,Tabel10[[korte omschrijving]:[MCC3_CODE]],2,0)","v":{"$error":"#N/A"}},{"$f":"VLOOKUP(N947,'Data order'!M:O,3,0)","v":{"$error":"#N/A"}},null,null,null,{"$f":"IFERROR(\n  IF(R947=\"Big&Tall\",\n      VLOOKUP(S947, 'Data order'!$AC$92:$AD$101, 2, FALSE),\n      IF(R947=\"Boordmaat\",\n          VLOOKUP(S947, 'Data order'!$AC$102:$AD$116, 2, FALSE),\n          VLOOKUP(S947, 'Data order'!$AC$2:$AD$91, 2, FALSE)\n      )\n  ),\n\"\")","v":""},null,null,null,null,"EUR",null,null,null,{"$error":"#DIV/0!"},0,0,null,"","","","","","","","","","",null,null,null,null,null,null,null,null,null,null,null,null,null,null,null,null,null,"ZWO"]
[null,null,null,null,null,{"$f":"VLOOKUP(G948,'Data order'!Z:AA,2,0)","v":{"$error":"#N/A"}},null,null,null,null,null,null,null,null,{"$f":"VLOOKUP(N948,Tabel10[[korte omschrijving]:[MCC3_CODE]],2,0)","v":{"$error":"#N/A"}},{"$f":"VLOOKUP(N948,'Data order'!M:O,3,0)","v":{"$error":"#N/A"}},null,null,null,{"$f":"IFERROR(\n  IF(R948=\"Big&Tall\",\n      VLOOKUP(S948, 'Data order'!$AC$92:$AD$101, 2, FALSE),\n      IF(R948=\"Boordmaat\",\n          VLOOKUP(S948, 'Data order'!$AC$102:$AD$116, 2, FALSE),\n          VLOOKUP(S948, 'Data order'!$AC$2:$AD$91, 2, FALSE)\n      )\n  ),\n\"\")","v":""},null,0,null,null,"EUR",null,null,null,{"$f":"AB948/Z948","v":{"$error":"#DIV/0!"}},{"$f":"U948*Z948","v":0},{"$f":"U948*AB948","v":0},null,"","","","","","","","","","",null,null,null,null,null,null,null,null,null,null,null,null,null,null,null,null,null,"ZWO"]
[null,null,null,null,null,{"$f":"VLOOKUP(G949,'Data order'!Z:AA,2,0)","v":{"$error":"#N/A"}},null,null,null,null,null,null,null,null,{"$f":"VLOOKUP(N949,Tabel10[[korte omschrijving]:[MCC3_CODE]],2,0)","v":{"$error":"#N/A"}},{"$f":"VLOOKUP(N949,'Data order'!M:O,3,0)","v":{"$error":"#N/A"}},null,null,null,{"$f":"IFERROR(\n  IF(R949=\"Big&Tall\",\n      VLOOKUP(S949, 'Data order'!$AC$92:$AD$101, 2, FALSE),\n      IF(R949=\"Boordmaat\",\n          VLOOKUP(S949, 'Data order'!$AC$102:$AD$116, 2, FALSE),\n          VLOOKUP(S949, 'Data order'!$AC$2:$AD$91, 2, FALSE)\n      )\n  ),\n\"\")","v":""},null,null,null,null,"EUR",null,null,null,{"$error":"#DIV/0!"},0,0,null,"","","","","","","","","","",null,null,null,null,null,null,null,null,null,null,null,null,null,null,null,null,null,"ZWO"]
[null,null,null,null,null,{"$f":"VLOOKUP(G950,'Data order'!Z:AA,2,0)","v":{"$error":"#N/A"}},null,null,null,null,null,null,null,null,{"$f":"VLOOKUP(N950,Tabel10[[korte omschrijving]:[MCC3_CODE]],2,0)","v":{"$error":"#N/A"}},{"$f":"VLOOKUP(N950,'Data order'!M:O,3,0)","v":{"$error":"#N/A"}},null,null,null,{"$f":"IFERROR(\n  IF(R950=\"Big&Tall\",\n      VLOOKUP(S950, 'Data order'!$AC$92:$AD$101, 2, FALSE),\n      IF(R950=\"Boordmaat\",\n          VLOOKUP(S950, 'Data order'!$AC$102:$AD$116, 2, FALSE),\n          VLOOKUP(S950, 'Data order'!$AC$2:$AD$91, 2, FALSE)\n      )\n  ),\n\"\")","v":""},null,null,null,null,"EUR",null,null,null,{"$error":"#DIV/0!"},0,0,null,"","","","","","","","","","",null,null,null,null,null,null,null,null,null,null,null,null,null,null,null,null,null,"ZWO"]
[null,null,null,null,null,{"$f":"VLOOKUP(G951,'Data order'!Z:AA,2,0)","v":{"$error":"#N/A"}},null,null,null,null,null,null,null,null,{"$f":"VLOOKUP(N951,Tabel10[[korte omschrijving]:[MCC3_CODE]],2,0)","v":{"$error":"#N/A"}},{"$f":"VLOOKUP(N951,'Data order'!M:O,3,0)","v":{"$error":"#N/A"}},null,null,null,{"$f":"IFERROR(\n  IF(R951=\"Big&Tall\",\n      VLOOKUP(S951, 'Data order'!$AC$92:$AD$101, 2, FALSE),\n      IF(R951=\"Boordmaat\",\n          VLOOKUP(S951, 'Data order'!$AC$102:$AD$116, 2, FALSE),\n          VLOOKUP(S951, 'Data order'!$AC$2:$AD$91, 2, FALSE)\n      )\n  ),\n\"\")","v":""},null,null,null,null,"EUR",null,null,null,{"$error":"#DIV/0!"},0,0,null,"","","","","","","","","","",null,null,null,null,null,null,null,null,null,null,null,null,null,null,null,null,null,"ZWO"]
[null,null,null,null,null,{"$f":"VLOOKUP(G952,'Data order'!Z:AA,2,0)","v":{"$error":"#N/A"}},null,null,null,null,null,null,null,null,{"$f":"VLOOKUP(N952,Tabel10[[korte omschrijving]:[MCC3_CODE]],2,0)","v":{"$error":"#N/A"}},{"$f":"VLOOKUP(N952,'Data order'!M:O,3,0)","v":{"$error":"#N/A"}},null,null,null,{"$f":"IFERROR(\n  IF(R952=\"Big&Tall\",\n      VLOOKUP(S952, 'Data order'!$AC$92:$AD$101, 2, FALSE),\n      IF(R952=\"Boordmaat\",\n          VLOOKUP(S952, 'Data order'!$AC$102:$AD$116, 2, FALSE),\n          VLOOKUP(S952, 'Data order'!$AC$2:$AD$91, 2, FALSE)\n      )\n  ),\n\"\")","v":""},null,null,null,null,"EUR",null,null,null,{"$error":"#DIV/0!"},0,0,null,{"$f":"IF(AF952 <> \"\",\n    IF(ISNUMBER(VALUE(LEFT(AF952, FIND(\"%\", AF952)-1))),\n        VALUE(LEFT(AF952, FIND(\"%\", AF952)-1)),\n        \"Invalid format\"),\n    \"\")","v":""},{"$f":"IF(AF952 <> \"\",\n    IF(ISNUMBER(VALUE(LEFT(AF952, FIND(\"%\", AF952)-1))) * ISNUMBER(FIND(\"%\", AF952 & \"wol\")) > 0,\n        TRIM(MID(AF952, FIND(\"%\", AF952)+1, FIND(\"/\", AF952 & \"/\")-FIND(\"%\", AF952)-1)),\n        \"Invalid format\"),\n    \"\")","v":""},{"$f":"IF(AF952 <> \"\",\n    IF(ISNUMBER(VALUE(MID(AF952, FIND(\"/\", AF952) + 1, FIND(\"%\", AF952, FIND(\"/\", AF952)) - FIND(\"/\", AF952) - 1))),\n        VALUE(MID(AF952, FIND(\"/\", AF952) + 1, FIND(\"%\", AF952, FIND(\"/\", AF952)) - FIND(\"/\", AF952) - 1)),\n        \"\"),\n    \"\")","v":""},{"$f":"IF(AF952 <> \"\",\n    IFERROR(TRIM(MID(AF952, FIND(\"%\", AF952, FIND(\"/\", AF952)+1)+2,\n        IFERROR(FIND(\"/\", AF952 & \"/\", FIND(\"/\", AF952)+1)-FIND(\"%\", AF952, FIND(\"/\", AF952)+1)-2, LEN(AF952)-FIND(\"%\", AF952, FIND(\"/\", AF952)+1)-1))),\n        \"\"),\n    \"\")","v":""},{"$f":"IF(AF952 <> \"\",\n    IF(ISNUMBER(VALUE(MID(AF952, FIND(\"/\", AF952, FIND(\"/\", AF952)+1) + 1, FIND(\"%\", AF952, FIND(\"/\", AF952, FIND(\"/\", AF952)+1)) - FIND(\"/\", AF952, FIND(\"/\", AF952)+1) - 1))),\n        VALUE(MID(AF952, FIND(\"/\", AF952, FIND(\"/\", AF952)+1) + 1, FIND(\"%\", AF952, FIND(\"/\", AF952, FIND(\"/\", AF952)+1)) - FIND(\"/\", AF952, FIND(\"/\", AF952)+1) - 1)),\n        \"\"),\n    \"\")","v":""},{"$f":"IF(AF952 <> \"\",\n    IFERROR(\n        TRIM(MID(AF952,\n            FIND(\"%\", AF952, FIND(\"%\", AF952, FIND(\"%\", AF952)+1)+1)+1,\n            FIND(\"/\", AF952 & \"/\", FIND(\"%\", AF952, FIND(\"%\", AF952, FIND(\"%\", AF952)+1)+1))-FIND(\"%\", AF952, FIND(\"%\", AF952, FIND(\"%\", AF952)+1)+1)-1)\n        ),\n        \"\"\n    ),\n    \"\"\n)","v":""},{"$f":"IF(AF952 <> \"\",\n    IF(ISNUMBER(VALUE(MID(AF952, FIND(\"/\", AF952, FIND(\"/\", AF952, FIND(\"/\", AF952)+1)+1) + 1, FIND(\"%\", AF952, FIND(\"/\", AF952, FIND(\"/\", AF952, FIND(\"/\", AF952)+1)+1)) - FIND(\"/\", AF952, FIND(\"/\", AF952, FIND(\"/\", AF952)+1)+1) - 1))),\n        VALUE(MID(AF952, FIND(\"/\", AF952, FIND(\"/\", AF952, FIND(\"/\", AF952)+1)+1) + 1, FIND(\"%\", AF952, FIND(\"/\", AF952, FIND(\"/\", AF952, FIND(\"/\", AF952)+1)+1)) - FIND(\"/\", AF952, FIND(\"/\", AF952, FIND(\"/\", AF952)+1)+1) - 1)),\n        \"\"),\n    \"\")","v":""},{"$f":"IF(AF952 <> \"\",\n    IFERROR(TRIM(MID(AF952, FIND(\"%\", AF952, FIND(\"/\", AF952, FIND(\"/\", AF952, FIND(\"/\", AF952)+1)+1)+1)+2,\n        IFERROR(FIND(\"/\", AF952, FIND(\"/\", AF952, FIND(\"/\", AF952, FIND(\"/\", AF952)+1)+1)+1)-FIND(\"%\", AF952, FIND(\"/\", AF952, FIND(\"/\", AF952, FIND(\"/\", AF952)+1)+1)+1)-2, LEN(AF952)-FIND(\"%\", AF952, FIND(\"/\", AF952, FIND(\"/\", AF952, FIND(\"/\", AF952)+1)+1)+1)-1))),\n        \"\"),\n    \"\")","v":""},{"$f":"IF(AF952 <> \"\",\n    IF(ISNUMBER(VALUE(MID(AF952, FIND(\"/\", AF952, FIND(\"/\", AF952, FIND(\"/\", AF952, FIND(\"/\", AF952)+1)+1)+1) + 1, FIND(\"%\", AF952, FIND(\"/\", AF952, FIND(\"/\", AF952, FIND(\"/\", AF952, FIND(\"/\", AF952)+1)+1)+1)) - FIND(\"/\", AF952, FIND(\"/\", AF952, FIND(\"/\", AF952, FIND(\"/\", AF952)+1)+1)+1) - 1))),\n        VALUE(MID(AF952, FIND(\"/\", AF952, FIND(\"/\", AF952, FIND(\"/\", AF952, FIND(\"/\", AF952)+1)+1)+1) + 1, FIND(\"%\", AF952, FIND(\"/\", AF952, FIND(\"/\", AF952, FIND(\"/\", AF952, FIND(\"/\", AF952)+1)+1)+1)) - FIND(\"/\", AF952, FIND(\"/\", AF952, FIND(\"/\", AF952, FIND(\"/\", AF952)+1)+1)+1) - 1)),\n        \"\"),\n    \"\")","v":""},{"$f":"IF(AF952 = \"\", \"\",\n    IFERROR(TRIM(\n        MID(\n            AF952,\n            FIND(\"%\", AF952, FIND(\"/\", AF952, FIND(\"/\", AF952, FIND(\"/\", AF952, FIND(\"/\", AF952)+1)+1)+1)+1) + 1,\n            FIND(\"/\", AF952 & \"/\", FIND(\"%\", AF952, FIND(\"/\", AF952, FIND(\"/\", AF952, FIND(\"/\", AF952, FIND(\"/\", AF952)+1)+1)+1)+1)) -\n            FIND(\"%\", AF952, FIND(\"/\", AF952, FIND(\"/\", AF952, FIND(\"/\", AF952, FIND(\"/\", AF952)+1)+1)+1)+1) - 1\n        )\n    ),\n    \"\")\n)","v":""},null,null,null,null,null,null,null,null,null,null,null,null,null,null,null,null,null,"ZWO"]
[null,null,null,null,null,{"$f":"VLOOKUP(G953,'Data order'!Z:AA,2,0)","v":{"$error":"#N/A"}},null,null,null,null,null,null,null,null,{"$f":"VLOOKUP(N953,Tabel10[[korte omschrijving]:[MCC3_CODE]],2,0)","v":{"$error":"#N/A"}},{"$f":"VLOOKUP(N953,'Data order'!M:O,3,0)","v":{"$error":"#N/A"}},null,null,null,{"$f":"IFERROR(\n  IF(R953=\"Big&Tall\",\n      VLOOKUP(S953, 'Data order'!$AC$92:$AD$101, 2, FALSE),\n      IF(R953=\"Boordmaat\",\n          VLOOKUP(S953, 'Data order'!$AC$102:$AD$116, 2, FALSE),\n          VLOOKUP(S953, 'Data order'!$AC$2:$AD$91, 2, FALSE)\n      )\n  ),\n\"\")","v":""},null,null,null,null,"EUR",null,null,null,{"$error":"#DIV/0!"},0,0,null,"","","","","","","","","","",null,null,null,null,null,null,null,null,null,null,null,null,null,null,null,null,null,"ZWO"]
[null,null,null,null,null,{"$f":"VLOOKUP(G954,'Data order'!Z:AA,2,0)","v":{"$error":"#N/A"}},null,null,null,null,null,null,null,null,{"$f":"VLOOKUP(N954,Tabel10[[korte omschrijving]:[MCC3_CODE]],2,0)","v":{"$error":"#N/A"}},{"$f":"VLOOKUP(N954,'Data order'!M:O,3,0)","v":{"$error":"#N/A"}},null,null,null,{"$f":"IFERROR(\n  IF(R954=\"Big&Tall\",\n      VLOOKUP(S954, 'Data order'!$AC$92:$AD$101, 2, FALSE),\n      IF(R954=\"Boordmaat\",\n          VLOOKUP(S954, 'Data order'!$AC$102:$AD$116, 2, FALSE),\n          VLOOKUP(S954, 'Data order'!$AC$2:$AD$91, 2, FALSE)\n      )\n  ),\n\"\")","v":""},null,0,null,null,"EUR",null,null,null,{"$f":"AB954/Z954","v":{"$error":"#DIV/0!"}},{"$f":"U954*Z954","v":0},{"$f":"U954*AB954","v":0},null,"","","","","","","","","","",null,null,null,null,null,null,null,null,null,null,null,null,null,null,null,null,null,"ZWO"]
[null,null,null,null,null,{"$f":"VLOOKUP(G955,'Data order'!Z:AA,2,0)","v":{"$error":"#N/A"}},null,null,null,null,null,null,null,null,{"$f":"VLOOKUP(N955,Tabel10[[korte omschrijving]:[MCC3_CODE]],2,0)","v":{"$error":"#N/A"}},{"$f":"VLOOKUP(N955,'Data order'!M:O,3,0)","v":{"$error":"#N/A"}},null,null,null,{"$f":"IFERROR(\n  IF(R955=\"Big&Tall\",\n      VLOOKUP(S955, 'Data order'!$AC$92:$AD$101, 2, FALSE),\n      IF(R955=\"Boordmaat\",\n          VLOOKUP(S955, 'Data order'!$AC$102:$AD$116, 2, FALSE),\n          VLOOKUP(S955, 'Data order'!$AC$2:$AD$91, 2, FALSE)\n      )\n  ),\n\"\")","v":""},null,null,null,null,"EUR",null,null,null,{"$error":"#DIV/0!"},0,0,null,"","","","","","","","","","",null,null,null,null,null,null,null,null,null,null,null,null,null,null,null,null,null,"ZWO"]
[null,null,null,null,null,{"$f":"VLOOKUP(G956,'Data order'!Z:AA,2,0)","v":{"$error":"#N/A"}},null,null,null,null,null,null,null,null,{"$f":"VLOOKUP(N956,Tabel10[[korte omschrijving]:[MCC3_CODE]],2,0)","v":{"$error":"#N/A"}},{"$f":"VLOOKUP(N956,'Data order'!M:O,3,0)","v":{"$error":"#N/A"}},null,null,null,{"$f":"IFERROR(\n  IF(R956=\"Big&Tall\",\n      VLOOKUP(S956, 'Data order'!$AC$92:$AD$101, 2, FALSE),\n      IF(R956=\"Boordmaat\",\n          VLOOKUP(S956, 'Data order'!$AC$102:$AD$116, 2, FALSE),\n          VLOOKUP(S956, 'Data order'!$AC$2:$AD$91, 2, FALSE)\n      )\n  ),\n\"\")","v":""},null,null,null,null,"EUR",null,null,null,{"$error":"#DIV/0!"},0,0,null,"","","","","","","","","","",null,null,null,null,null,null,null,null,null,null,null,null,null,null,null,null,null,"ZWO"]
[null,null,null,null,null,{"$f":"VLOOKUP(G957,'Data order'!Z:AA,2,0)","v":{"$error":"#N/A"}},null,null,null,null,null,null,null,null,{"$f":"VLOOKUP(N957,Tabel10[[korte omschrijving]:[MCC3_CODE]],2,0)","v":{"$error":"#N/A"}},{"$f":"VLOOKUP(N957,'Data order'!M:O,3,0)","v":{"$error":"#N/A"}},null,null,null,{"$f":"IFERROR(\n  IF(R957=\"Big&Tall\",\n      VLOOKUP(S957, 'Data order'!$AC$92:$AD$101, 2, FALSE),\n      IF(R957=\"Boordmaat\",\n          VLOOKUP(S957, 'Data order'!$AC$102:$AD$116, 2, FALSE),\n          VLOOKUP(S957, 'Data order'!$AC$2:$AD$91, 2, FALSE)\n      )\n  ),\n\"\")","v":""},null,null,null,null,"EUR",null,null,null,{"$error":"#DIV/0!"},0,0,null,"","","","","","","","","","",null,null,null,null,null,null,null,null,null,null,null,null,null,null,null,null,null,"ZWO"]
[null,null,null,null,null,{"$f":"VLOOKUP(G958,'Data order'!Z:AA,2,0)","v":{"$error":"#N/A"}},null,null,null,null,null,null,null,null,{"$f":"VLOOKUP(N958,Tabel10[[korte omschrijving]:[MCC3_CODE]],2,0)","v":{"$error":"#N/A"}},{"$f":"VLOOKUP(N958,'Data order'!M:O,3,0)","v":{"$error":"#N/A"}},null,null,null,{"$f":"IFERROR(\n  IF(R958=\"Big&Tall\",\n      VLOOKUP(S958, 'Data order'!$AC$92:$AD$101, 2, FALSE),\n      IF(R958=\"Boordmaat\",\n          VLOOKUP(S958, 'Data order'!$AC$102:$AD$116, 2, FALSE),\n          VLOOKUP(S958, 'Data order'!$AC$2:$AD$91, 2, FALSE)\n      )\n  ),\n\"\")","v":""},null,null,null,null,"EUR",null,null,null,{"$error":"#DIV/0!"},0,0,null,"","","","","","","","","","",null,null,null,null,null,null,null,null,null,null,null,null,null,null,null,null,null,"ZWO"]
[null,null,null,null,null,{"$f":"VLOOKUP(G959,'Data order'!Z:AA,2,0)","v":{"$error":"#N/A"}},null,null,null,null,null,null,null,null,{"$f":"VLOOKUP(N959,Tabel10[[korte omschrijving]:[MCC3_CODE]],2,0)","v":{"$error":"#N/A"}},{"$f":"VLOOKUP(N959,'Data order'!M:O,3,0)","v":{"$error":"#N/A"}},null,null,null,{"$f":"IFERROR(\n  IF(R959=\"Big&Tall\",\n      VLOOKUP(S959, 'Data order'!$AC$92:$AD$101, 2, FALSE),\n      IF(R959=\"Boordmaat\",\n          VLOOKUP(S959, 'Data order'!$AC$102:$AD$116, 2, FALSE),\n          VLOOKUP(S959, 'Data order'!$AC$2:$AD$91, 2, FALSE)\n      )\n  ),\n\"\")","v":""},null,null,null,null,"EUR",null,null,null,{"$error":"#DIV/0!"},0,0,null,"","","","","","","","","","",null,null,null,null,null,null,null,null,null,null,null,null,null,null,null,null,null,"ZWO"]
[null,null,null,null,null,{"$f":"VLOOKUP(G960,'Data order'!Z:AA,2,0)","v":{"$error":"#N/A"}},null,null,null,null,null,null,null,null,{"$f":"VLOOKUP(N960,Tabel10[[korte omschrijving]:[MCC3_CODE]],2,0)","v":{"$error":"#N/A"}},{"$f":"VLOOKUP(N960,'Data order'!M:O,3,0)","v":{"$error":"#N/A"}},null,null,null,{"$f":"IFERROR(\n  IF(R960=\"Big&Tall\",\n      VLOOKUP(S960, 'Data order'!$AC$92:$AD$101, 2, FALSE),\n      IF(R960=\"Boordmaat\",\n          VLOOKUP(S960, 'Data order'!$AC$102:$AD$116, 2, FALSE),\n          VLOOKUP(S960, 'Data order'!$AC$2:$AD$91, 2, FALSE)\n      )\n  ),\n\"\")","v":""},null,0,null,null,"EUR",null,null,null,{"$f":"AB960/Z960","v":{"$error":"#DIV/0!"}},{"$f":"U960*Z960","v":0},{"$f":"U960*AB960","v":0},null,"","","","","","","","","","",null,null,null,null,null,null,null,null,null,null,null,null,null,null,null,null,null,"ZWO"]
[null,null,null,null,null,{"$f":"VLOOKUP(G961,'Data order'!Z:AA,2,0)","v":{"$error":"#N/A"}},null,null,null,null,null,null,null,null,{"$f":"VLOOKUP(N961,Tabel10[[korte omschrijving]:[MCC3_CODE]],2,0)","v":{"$error":"#N/A"}},{"$f":"VLOOKUP(N961,'Data order'!M:O,3,0)","v":{"$error":"#N/A"}},null,null,null,{"$f":"IFERROR(\n  IF(R961=\"Big&Tall\",\n      VLOOKUP(S961, 'Data order'!$AC$92:$AD$101, 2, FALSE),\n      IF(R961=\"Boordmaat\",\n          VLOOKUP(S961, 'Data order'!$AC$102:$AD$116, 2, FALSE),\n          VLOOKUP(S961, 'Data order'!$AC$2:$AD$91, 2, FALSE)\n      )\n  ),\n\"\")","v":""},null,null,null,null,"EUR",null,null,null,{"$error":"#DIV/0!"},0,0,null,"","","","","","","","","","",null,null,null,null,null,null,null,null,null,null,null,null,null,null,null,null,null,"ZWO"]
[null,null,null,null,null,{"$f":"VLOOKUP(G962,'Data order'!Z:AA,2,0)","v":{"$error":"#N/A"}},null,null,null,null,null,null,null,null,{"$f":"VLOOKUP(N962,Tabel10[[korte omschrijving]:[MCC3_CODE]],2,0)","v":{"$error":"#N/A"}},{"$f":"VLOOKUP(N962,'Data order'!M:O,3,0)","v":{"$error":"#N/A"}},null,null,null,{"$f":"IFERROR(\n  IF(R962=\"Big&Tall\",\n      VLOOKUP(S962, 'Data order'!$AC$92:$AD$101, 2, FALSE),\n      IF(R962=\"Boordmaat\",\n          VLOOKUP(S962, 'Data order'!$AC$102:$AD$116, 2, FALSE),\n          VLOOKUP(S962, 'Data order'!$AC$2:$AD$91, 2, FALSE)\n      )\n  ),\n\"\")","v":""},null,null,null,null,"EUR",null,null,null,{"$error":"#DIV/0!"},0,0,null,"","","","","","","","","","",null,null,null,null,null,null,null,null,null,null,null,null,null,null,null,null,null,"ZWO"]
[null,null,null,null,null,{"$f":"VLOOKUP(G963,'Data order'!Z:AA,2,0)","v":{"$error":"#N/A"}},null,null,null,null,null,null,null,null,{"$f":"VLOOKUP(N963,Tabel10[[korte omschrijving]:[MCC3_CODE]],2,0)","v":{"$error":"#N/A"}},{"$f":"VLOOKUP(N963,'Data order'!M:O,3,0)","v":{"$error":"#N/A"}},null,null,null,{"$f":"IFERROR(\n  IF(R963=\"Big&Tall\",\n      VLOOKUP(S963, 'Data order'!$AC$92:$AD$101, 2, FALSE),\n      IF(R963=\"Boordmaat\",\n          VLOOKUP(S963, 'Data order'!$AC$102:$AD$116, 2, FALSE),\n          VLOOKUP(S963, 'Data order'!$AC$2:$AD$91, 2, FALSE)\n      )\n  ),\n\"\")","v":""},null,null,null,null,"EUR",null,null,null,{"$error":"#DIV/0!"},0,0,null,"","","","","","","","","","",null,null,null,null,null,null,null,null,null,null,null,null,null,null,null,null,null,"ZWO"]
[null,null,null,null,null,{"$f":"VLOOKUP(G964,'Data order'!Z:AA,2,0)","v":{"$error":"#N/A"}},null,null,null,null,null,null,null,null,{"$f":"VLOOKUP(N964,Tabel10[[korte omschrijving]:[MCC3_CODE]],2,0)","v":{"$error":"#N/A"}},{"$f":"VLOOKUP(N964,'Data order'!M:O,3,0)","v":{"$error":"#N/A"}},null,null,null,{"$f":"IFERROR(\n  IF(R964=\"Big&Tall\",\n      VLOOKUP(S964, 'Data order'!$AC$92:$AD$101, 2, FALSE),\n      IF(R964=\"Boordmaat\",\n          VLOOKUP(S964, 'Data order'!$AC$102:$AD$116, 2, FALSE),\n          VLOOKUP(S964, 'Data order'!$AC$2:$AD$91, 2, FALSE)\n      )\n  ),\n\"\")","v":""},null,null,null,null,"EUR",null,null,null,{"$error":"#DIV/0!"},0,0,null,"","","","","","","","","","",null,null,null,null,null,null,null,null,null,null,null,null,null,null,null,null,null,"ZWO"]
[null,null,null,null,null,{"$f":"VLOOKUP(G965,'Data order'!Z:AA,2,0)","v":{"$error":"#N/A"}},null,null,null,null,null,null,null,null,{"$f":"VLOOKUP(N965,Tabel10[[korte omschrijving]:[MCC3_CODE]],2,0)","v":{"$error":"#N/A"}},{"$f":"VLOOKUP(N965,'Data order'!M:O,3,0)","v":{"$error":"#N/A"}},null,null,null,{"$f":"IFERROR(\n  IF(R965=\"Big&Tall\",\n      VLOOKUP(S965, 'Data order'!$AC$92:$AD$101, 2, FALSE),\n      IF(R965=\"Boordmaat\",\n          VLOOKUP(S965, 'Data order'!$AC$102:$AD$116, 2, FALSE),\n          VLOOKUP(S965, 'Data order'!$AC$2:$AD$91, 2, FALSE)\n      )\n  ),\n\"\")","v":""},null,null,null,null,"EUR",null,null,null,{"$error":"#DIV/0!"},0,0,null,"","","","","","","","","","",null,null,null,null,null,null,null,null,null,null,null,null,null,null,null,null,null,"ZWO"]
[null,null,null,null,null,{"$f":"VLOOKUP(G966,'Data order'!Z:AA,2,0)","v":{"$error":"#N/A"}},null,null,null,null,null,null,null,null,{"$f":"VLOOKUP(N966,Tabel10[[korte omschrijving]:[MCC3_CODE]],2,0)","v":{"$error":"#N/A"}},{"$f":"VLOOKUP(N966,'Data order'!M:O,3,0)","v":{"$error":"#N/A"}},null,null,null,{"$f":"IFERROR(\n  IF(R966=\"Big&Tall\",\n      VLOOKUP(S966, 'Data order'!$AC$92:$AD$101, 2, FALSE),\n      IF(R966=\"Boordmaat\",\n          VLOOKUP(S966, 'Data order'!$AC$102:$AD$116, 2, FALSE),\n          VLOOKUP(S966, 'Data order'!$AC$2:$AD$91, 2, FALSE)\n      )\n  ),\n\"\")","v":""},null,{"$f":"SUM(U966:U971)","v":0},null,null,"EUR",null,null,null,{"$f":"AB966/Z966","v":{"$error":"#DIV/0!"}},{"$f":"U966*Z966","v":0},{"$f":"U966*AB966","v":0},null,"","","","","","","","","","",null,null,null,null,null,null,null,null,null,null,null,null,null,null,null,null,null,"ZWO"]
[null,null,null,null,null,{"$f":"VLOOKUP(G967,'Data order'!Z:AA,2,0)","v":{"$error":"#N/A"}},null,null,null,null,null,null,null,null,{"$f":"VLOOKUP(N967,Tabel10[[korte omschrijving]:[MCC3_CODE]],2,0)","v":{"$error":"#N/A"}},{"$f":"VLOOKUP(N967,'Data order'!M:O,3,0)","v":{"$error":"#N/A"}},null,null,null,{"$f":"IFERROR(\n  IF(R967=\"Big&Tall\",\n      VLOOKUP(S967, 'Data order'!$AC$92:$AD$101, 2, FALSE),\n      IF(R967=\"Boordmaat\",\n          VLOOKUP(S967, 'Data order'!$AC$102:$AD$116, 2, FALSE),\n          VLOOKUP(S967, 'Data order'!$AC$2:$AD$91, 2, FALSE)\n      )\n  ),\n\"\")","v":""},null,null,null,null,"EUR",null,null,null,{"$error":"#DIV/0!"},0,0,null,"","","","","","","","","","",null,null,null,null,null,null,null,null,null,null,null,null,null,null,null,null,null,"ZWO"]
[null,null,null,null,null,{"$f":"VLOOKUP(G968,'Data order'!Z:AA,2,0)","v":{"$error":"#N/A"}},null,null,null,null,null,null,null,null,{"$f":"VLOOKUP(N968,Tabel10[[korte omschrijving]:[MCC3_CODE]],2,0)","v":{"$error":"#N/A"}},{"$f":"VLOOKUP(N968,'Data order'!M:O,3,0)","v":{"$error":"#N/A"}},null,null,null,{"$f":"IFERROR(\n  IF(R968=\"Big&Tall\",\n      VLOOKUP(S968, 'Data order'!$AC$92:$AD$101, 2, FALSE),\n      IF(R968=\"Boordmaat\",\n          VLOOKUP(S968, 'Data order'!$AC$102:$AD$116, 2, FALSE),\n          VLOOKUP(S968, 'Data order'!$AC$2:$AD$91, 2, FALSE)\n      )\n  ),\n\"\")","v":""},null,null,null,null,"EUR",null,null,null,{"$error":"#DIV/0!"},0,0,null,"","","","","","","","","","",null,null,null,null,null,null,null,null,null,null,null,null,null,null,null,null,null,"ZWO"]
[null,null,null,null,null,{"$f":"VLOOKUP(G969,'Data order'!Z:AA,2,0)","v":{"$error":"#N/A"}},null,null,null,null,null,null,null,null,{"$f":"VLOOKUP(N969,Tabel10[[korte omschrijving]:[MCC3_CODE]],2,0)","v":{"$error":"#N/A"}},{"$f":"VLOOKUP(N969,'Data order'!M:O,3,0)","v":{"$error":"#N/A"}},null,null,null,{"$f":"IFERROR(\n  IF(R969=\"Big&Tall\",\n      VLOOKUP(S969, 'Data order'!$AC$92:$AD$101, 2, FALSE),\n      IF(R969=\"Boordmaat\",\n          VLOOKUP(S969, 'Data order'!$AC$102:$AD$116, 2, FALSE),\n          VLOOKUP(S969, 'Data order'!$AC$2:$AD$91, 2, FALSE)\n      )\n  ),\n\"\")","v":""},null,null,null,null,"EUR",null,null,null,{"$error":"#DIV/0!"},0,0,null,"","","","","","","","","","",null,null,null,null,null,null,null,null,null,null,null,null,null,null,null,null,null,"ZWO"]
[null,null,null,null,null,{"$f":"VLOOKUP(G970,'Data order'!Z:AA,2,0)","v":{"$error":"#N/A"}},null,null,null,null,null,null,null,null,{"$f":"VLOOKUP(N970,Tabel10[[korte omschrijving]:[MCC3_CODE]],2,0)","v":{"$error":"#N/A"}},{"$f":"VLOOKUP(N970,'Data order'!M:O,3,0)","v":{"$error":"#N/A"}},null,null,null,{"$f":"IFERROR(\n  IF(R970=\"Big&Tall\",\n      VLOOKUP(S970, 'Data order'!$AC$92:$AD$101, 2, FALSE),\n      IF(R970=\"Boordmaat\",\n          VLOOKUP(S970, 'Data order'!$AC$102:$AD$116, 2, FALSE),\n          VLOOKUP(S970, 'Data order'!$AC$2:$AD$91, 2, FALSE)\n      )\n  ),\n\"\")","v":""},null,null,null,null,"EUR",null,null,null,{"$error":"#DIV/0!"},0,0,null,"","","","","","","","","","",null,null,null,null,null,null,null,null,null,null,null,null,null,null,null,null,null,"ZWO"]
[null,null,null,null,null,{"$f":"VLOOKUP(G971,'Data order'!Z:AA,2,0)","v":{"$error":"#N/A"}},null,null,null,null,null,null,null,null,{"$f":"VLOOKUP(N971,Tabel10[[korte omschrijving]:[MCC3_CODE]],2,0)","v":{"$error":"#N/A"}},{"$f":"VLOOKUP(N971,'Data order'!M:O,3,0)","v":{"$error":"#N/A"}},null,null,null,{"$f":"IFERROR(\n  IF(R971=\"Big&Tall\",\n      VLOOKUP(S971, 'Data order'!$AC$92:$AD$101, 2, FALSE),\n      IF(R971=\"Boordmaat\",\n          VLOOKUP(S971, 'Data order'!$AC$102:$AD$116, 2, FALSE),\n          VLOOKUP(S971, 'Data order'!$AC$2:$AD$91, 2, FALSE)\n      )\n  ),\n\"\")","v":""},null,null,null,null,"EUR",null,null,null,{"$error":"#DIV/0!"},0,0,null,"","","","","","","","","","",null,null,null,null,null,null,null,null,null,null,null,null,null,null,null,null,null,"ZWO"]
[null,null,null,null,null,{"$f":"VLOOKUP(G972,'Data order'!Z:AA,2,0)","v":{"$error":"#N/A"}},null,null,null,null,null,null,null,null,{"$f":"VLOOKUP(N972,Tabel10[[korte omschrijving]:[MCC3_CODE]],2,0)","v":{"$error":"#N/A"}},{"$f":"VLOOKUP(N972,'Data order'!M:O,3,0)","v":{"$error":"#N/A"}},null,null,null,{"$f":"IFERROR(\n  IF(R972=\"Big&Tall\",\n      VLOOKUP(S972, 'Data order'!$AC$92:$AD$101, 2, FALSE),\n      IF(R972=\"Boordmaat\",\n          VLOOKUP(S972, 'Data order'!$AC$102:$AD$116, 2, FALSE),\n          VLOOKUP(S972, 'Data order'!$AC$2:$AD$91, 2, FALSE)\n      )\n  ),\n\"\")","v":""},null,0,null,null,"EUR",null,null,null,{"$f":"AB972/Z972","v":{"$error":"#DIV/0!"}},{"$f":"U972*Z972","v":0},{"$f":"U972*AB972","v":0},null,"","","","","","","","","","",null,null,null,null,null,null,null,null,null,null,null,null,null,null,null,null,null,"ZWO"]
[null,null,null,null,null,{"$f":"VLOOKUP(G973,'Data order'!Z:AA,2,0)","v":{"$error":"#N/A"}},null,null,null,null,null,null,null,null,{"$f":"VLOOKUP(N973,Tabel10[[korte omschrijving]:[MCC3_CODE]],2,0)","v":{"$error":"#N/A"}},{"$f":"VLOOKUP(N973,'Data order'!M:O,3,0)","v":{"$error":"#N/A"}},null,null,null,{"$f":"IFERROR(\n  IF(R973=\"Big&Tall\",\n      VLOOKUP(S973, 'Data order'!$AC$92:$AD$101, 2, FALSE),\n      IF(R973=\"Boordmaat\",\n          VLOOKUP(S973, 'Data order'!$AC$102:$AD$116, 2, FALSE),\n          VLOOKUP(S973, 'Data order'!$AC$2:$AD$91, 2, FALSE)\n      )\n  ),\n\"\")","v":""},null,null,null,null,"EUR",null,null,null,{"$error":"#DIV/0!"},0,0,null,"","","","","","","","","","",null,null,null,null,null,null,null,null,null,null,null,null,null,null,null,null,null,"ZWO"]
[null,null,null,null,null,{"$f":"VLOOKUP(G974,'Data order'!Z:AA,2,0)","v":{"$error":"#N/A"}},null,null,null,null,null,null,null,null,{"$f":"VLOOKUP(N974,Tabel10[[korte omschrijving]:[MCC3_CODE]],2,0)","v":{"$error":"#N/A"}},{"$f":"VLOOKUP(N974,'Data order'!M:O,3,0)","v":{"$error":"#N/A"}},null,null,null,{"$f":"IFERROR(\n  IF(R974=\"Big&Tall\",\n      VLOOKUP(S974, 'Data order'!$AC$92:$AD$101, 2, FALSE),\n      IF(R974=\"Boordmaat\",\n          VLOOKUP(S974, 'Data order'!$AC$102:$AD$116, 2, FALSE),\n          VLOOKUP(S974, 'Data order'!$AC$2:$AD$91, 2, FALSE)\n      )\n  ),\n\"\")","v":""},null,null,null,null,"EUR",null,null,null,{"$error":"#DIV/0!"},0,0,null,"","","","","","","","","","",null,null,null,null,null,null,null,null,null,null,null,null,null,null,null,null,null,"ZWO"]
[null,null,null,null,null,{"$f":"VLOOKUP(G975,'Data order'!Z:AA,2,0)","v":{"$error":"#N/A"}},null,null,null,null,null,null,null,null,{"$f":"VLOOKUP(N975,Tabel10[[korte omschrijving]:[MCC3_CODE]],2,0)","v":{"$error":"#N/A"}},{"$f":"VLOOKUP(N975,'Data order'!M:O,3,0)","v":{"$error":"#N/A"}},null,null,null,{"$f":"IFERROR(\n  IF(R975=\"Big&Tall\",\n      VLOOKUP(S975, 'Data order'!$AC$92:$AD$101, 2, FALSE),\n      IF(R975=\"Boordmaat\",\n          VLOOKUP(S975, 'Data order'!$AC$102:$AD$116, 2, FALSE),\n          VLOOKUP(S975, 'Data order'!$AC$2:$AD$91, 2, FALSE)\n      )\n  ),\n\"\")","v":""},null,null,null,null,"EUR",null,null,null,{"$error":"#DIV/0!"},0,0,null,"","","","","","","","","","",null,null,null,null,null,null,null,null,null,null,null,null,null,null,null,null,null,"ZWO"]
[null,null,null,null,null,{"$f":"VLOOKUP(G976,'Data order'!Z:AA,2,0)","v":{"$error":"#N/A"}},null,null,null,null,null,null,null,null,{"$f":"VLOOKUP(N976,Tabel10[[korte omschrijving]:[MCC3_CODE]],2,0)","v":{"$error":"#N/A"}},{"$f":"VLOOKUP(N976,'Data order'!M:O,3,0)","v":{"$error":"#N/A"}},null,null,null,{"$f":"IFERROR(\n  IF(R976=\"Big&Tall\",\n      VLOOKUP(S976, 'Data order'!$AC$92:$AD$101, 2, FALSE),\n      IF(R976=\"Boordmaat\",\n          VLOOKUP(S976, 'Data order'!$AC$102:$AD$116, 2, FALSE),\n          VLOOKUP(S976, 'Data order'!$AC$2:$AD$91, 2, FALSE)\n      )\n  ),\n\"\")","v":""},null,null,null,null,"EUR",null,null,null,{"$error":"#DIV/0!"},0,0,null,"","","","","","","","","","",null,null,null,null,null,null,null,null,null,null,null,null,null,null,null,null,null,"ZWO"]
[null,null,null,null,null,{"$f":"VLOOKUP(G977,'Data order'!Z:AA,2,0)","v":{"$error":"#N/A"}},null,null,null,null,null,null,null,null,{"$f":"VLOOKUP(N977,Tabel10[[korte omschrijving]:[MCC3_CODE]],2,0)","v":{"$error":"#N/A"}},{"$f":"VLOOKUP(N977,'Data order'!M:O,3,0)","v":{"$error":"#N/A"}},null,null,null,{"$f":"IFERROR(\n  IF(R977=\"Big&Tall\",\n      VLOOKUP(S977, 'Data order'!$AC$92:$AD$101, 2, FALSE),\n      IF(R977=\"Boordmaat\",\n          VLOOKUP(S977, 'Data order'!$AC$102:$AD$116, 2, FALSE),\n          VLOOKUP(S977, 'Data order'!$AC$2:$AD$91, 2, FALSE)\n      )\n  ),\n\"\")","v":""},null,null,null,null,"EUR",null,null,null,{"$error":"#DIV/0!"},0,0,null,"","","","","","","","","","",null,null,null,null,null,null,null,null,null,null,null,null,null,null,null,null,null,"ZWO"]
[null,null,null,null,null,{"$f":"VLOOKUP(G978,'Data order'!Z:AA,2,0)","v":{"$error":"#N/A"}},null,null,null,null,null,null,null,null,{"$f":"VLOOKUP(N978,Tabel10[[korte omschrijving]:[MCC3_CODE]],2,0)","v":{"$error":"#N/A"}},{"$f":"VLOOKUP(N978,'Data order'!M:O,3,0)","v":{"$error":"#N/A"}},null,null,null,{"$f":"IFERROR(\n  IF(R978=\"Big&Tall\",\n      VLOOKUP(S978, 'Data order'!$AC$92:$AD$101, 2, FALSE),\n      IF(R978=\"Boordmaat\",\n          VLOOKUP(S978, 'Data order'!$AC$102:$AD$116, 2, FALSE),\n          VLOOKUP(S978, 'Data order'!$AC$2:$AD$91, 2, FALSE)\n      )\n  ),\n\"\")","v":""},null,0,null,null,"EUR",null,null,null,{"$f":"AB978/Z978","v":{"$error":"#DIV/0!"}},{"$f":"U978*Z978","v":0},{"$f":"U978*AB978","v":0},null,"","","","","","","","","","",null,null,null,null,null,null,null,null,null,null,null,null,null,null,null,null,null,"ZWO"]
[null,null,null,null,null,{"$f":"VLOOKUP(G979,'Data order'!Z:AA,2,0)","v":{"$error":"#N/A"}},null,null,null,null,null,null,null,null,{"$f":"VLOOKUP(N979,Tabel10[[korte omschrijving]:[MCC3_CODE]],2,0)","v":{"$error":"#N/A"}},{"$f":"VLOOKUP(N979,'Data order'!M:O,3,0)","v":{"$error":"#N/A"}},null,null,null,{"$f":"IFERROR(\n  IF(R979=\"Big&Tall\",\n      VLOOKUP(S979, 'Data order'!$AC$92:$AD$101, 2, FALSE),\n      IF(R979=\"Boordmaat\",\n          VLOOKUP(S979, 'Data order'!$AC$102:$AD$116, 2, FALSE),\n          VLOOKUP(S979, 'Data order'!$AC$2:$AD$91, 2, FALSE)\n      )\n  ),\n\"\")","v":""},null,null,null,null,"EUR",null,null,null,{"$error":"#DIV/0!"},0,0,null,"","","","","","","","","","",null,null,null,null,null,null,null,null,null,null,null,null,null,null,null,null,null,"ZWO"]
[null,null,null,null,null,{"$f":"VLOOKUP(G980,'Data order'!Z:AA,2,0)","v":{"$error":"#N/A"}},null,null,null,null,null,null,null,null,{"$f":"VLOOKUP(N980,Tabel10[[korte omschrijving]:[MCC3_CODE]],2,0)","v":{"$error":"#N/A"}},{"$f":"VLOOKUP(N980,'Data order'!M:O,3,0)","v":{"$error":"#N/A"}},null,null,null,{"$f":"IFERROR(\n  IF(R980=\"Big&Tall\",\n      VLOOKUP(S980, 'Data order'!$AC$92:$AD$101, 2, FALSE),\n      IF(R980=\"Boordmaat\",\n          VLOOKUP(S980, 'Data order'!$AC$102:$AD$116, 2, FALSE),\n          VLOOKUP(S980, 'Data order'!$AC$2:$AD$91, 2, FALSE)\n      )\n  ),\n\"\")","v":""},null,null,null,null,"EUR",null,null,null,{"$error":"#DIV/0!"},0,0,null,"","","","","","","","","","",null,null,null,null,null,null,null,null,null,null,null,null,null,null,null,null,null,"ZWO"]
[null,null,null,null,null,{"$f":"VLOOKUP(G981,'Data order'!Z:AA,2,0)","v":{"$error":"#N/A"}},null,null,null,null,null,null,null,null,{"$f":"VLOOKUP(N981,Tabel10[[korte omschrijving]:[MCC3_CODE]],2,0)","v":{"$error":"#N/A"}},{"$f":"VLOOKUP(N981,'Data order'!M:O,3,0)","v":{"$error":"#N/A"}},null,null,null,{"$f":"IFERROR(\n  IF(R981=\"Big&Tall\",\n      VLOOKUP(S981, 'Data order'!$AC$92:$AD$101, 2, FALSE),\n      IF(R981=\"Boordmaat\",\n          VLOOKUP(S981, 'Data order'!$AC$102:$AD$116, 2, FALSE),\n          VLOOKUP(S981, 'Data order'!$AC$2:$AD$91, 2, FALSE)\n      )\n  ),\n\"\")","v":""},null,null,null,null,"EUR",null,null,null,{"$error":"#DIV/0!"},0,0,null,"","","","","","","","","","",null,null,null,null,null,null,null,null,null,null,null,null,null,null,null,null,null,"ZWO"]
[null,null,null,null,null,{"$f":"VLOOKUP(G982,'Data order'!Z:AA,2,0)","v":{"$error":"#N/A"}},null,null,null,null,null,null,null,null,{"$f":"VLOOKUP(N982,Tabel10[[korte omschrijving]:[MCC3_CODE]],2,0)","v":{"$error":"#N/A"}},{"$f":"VLOOKUP(N982,'Data order'!M:O,3,0)","v":{"$error":"#N/A"}},null,null,null,{"$f":"IFERROR(\n  IF(R982=\"Big&Tall\",\n      VLOOKUP(S982, 'Data order'!$AC$92:$AD$101, 2, FALSE),\n      IF(R982=\"Boordmaat\",\n          VLOOKUP(S982, 'Data order'!$AC$102:$AD$116, 2, FALSE),\n          VLOOKUP(S982, 'Data order'!$AC$2:$AD$91, 2, FALSE)\n      )\n  ),\n\"\")","v":""},null,null,null,null,"EUR",null,null,null,{"$error":"#DIV/0!"},0,0,null,"","","","","","","","","","",null,null,null,null,null,null,null,null,null,null,null,null,null,null,null,null,null,"ZWO"]
[null,null,null,null,null,{"$f":"VLOOKUP(G983,'Data order'!Z:AA,2,0)","v":{"$error":"#N/A"}},null,null,null,null,null,null,null,null,{"$f":"VLOOKUP(N983,Tabel10[[korte omschrijving]:[MCC3_CODE]],2,0)","v":{"$error":"#N/A"}},{"$f":"VLOOKUP(N983,'Data order'!M:O,3,0)","v":{"$error":"#N/A"}},null,null,null,{"$f":"IFERROR(\n  IF(R983=\"Big&Tall\",\n      VLOOKUP(S983, 'Data order'!$AC$92:$AD$101, 2, FALSE),\n      IF(R983=\"Boordmaat\",\n          VLOOKUP(S983, 'Data order'!$AC$102:$AD$116, 2, FALSE),\n          VLOOKUP(S983, 'Data order'!$AC$2:$AD$91, 2, FALSE)\n      )\n  ),\n\"\")","v":""},null,null,null,null,"EUR",null,null,null,{"$error":"#DIV/0!"},0,0,null,"","","","","","","","","","",null,null,null,null,null,null,null,null,null,null,null,null,null,null,null,null,null,"ZWO"]
[null,null,null,null,null,{"$f":"VLOOKUP(G984,'Data order'!Z:AA,2,0)","v":{"$error":"#N/A"}},null,null,null,null,null,null,null,null,{"$f":"VLOOKUP(N984,Tabel10[[korte omschrijving]:[MCC3_CODE]],2,0)","v":{"$error":"#N/A"}},{"$f":"VLOOKUP(N984,'Data order'!M:O,3,0)","v":{"$error":"#N/A"}},null,null,null,{"$f":"IFERROR(\n  IF(R984=\"Big&Tall\",\n      VLOOKUP(S984, 'Data order'!$AC$92:$AD$101, 2, FALSE),\n      IF(R984=\"Boordmaat\",\n          VLOOKUP(S984, 'Data order'!$AC$102:$AD$116, 2, FALSE),\n          VLOOKUP(S984, 'Data order'!$AC$2:$AD$91, 2, FALSE)\n      )\n  ),\n\"\")","v":""},null,0,null,null,"EUR",null,null,null,{"$f":"AB984/Z984","v":{"$error":"#DIV/0!"}},{"$f":"U984*Z984","v":0},{"$f":"U984*AB984","v":0},null,"","","","","","","","","","",null,null,null,null,null,null,null,null,null,null,null,null,null,null,null,null,null,"ZWO"]
[null,null,null,null,null,{"$f":"VLOOKUP(G985,'Data order'!Z:AA,2,0)","v":{"$error":"#N/A"}},null,null,null,null,null,null,null,null,{"$f":"VLOOKUP(N985,Tabel10[[korte omschrijving]:[MCC3_CODE]],2,0)","v":{"$error":"#N/A"}},{"$f":"VLOOKUP(N985,'Data order'!M:O,3,0)","v":{"$error":"#N/A"}},null,null,null,{"$f":"IFERROR(\n  IF(R985=\"Big&Tall\",\n      VLOOKUP(S985, 'Data order'!$AC$92:$AD$101, 2, FALSE),\n      IF(R985=\"Boordmaat\",\n          VLOOKUP(S985, 'Data order'!$AC$102:$AD$116, 2, FALSE),\n          VLOOKUP(S985, 'Data order'!$AC$2:$AD$91, 2, FALSE)\n      )\n  ),\n\"\")","v":""},null,null,null,null,"EUR",null,null,null,{"$error":"#DIV/0!"},0,0,null,"","","","","","","","","","",null,null,null,null,null,null,null,null,null,null,null,null,null,null,null,null,null,"ZWO"]
[null,null,null,null,null,{"$f":"VLOOKUP(G986,'Data order'!Z:AA,2,0)","v":{"$error":"#N/A"}},null,null,null,null,null,null,null,null,{"$f":"VLOOKUP(N986,Tabel10[[korte omschrijving]:[MCC3_CODE]],2,0)","v":{"$error":"#N/A"}},{"$f":"VLOOKUP(N986,'Data order'!M:O,3,0)","v":{"$error":"#N/A"}},null,null,null,{"$f":"IFERROR(\n  IF(R986=\"Big&Tall\",\n      VLOOKUP(S986, 'Data order'!$AC$92:$AD$101, 2, FALSE),\n      IF(R986=\"Boordmaat\",\n          VLOOKUP(S986, 'Data order'!$AC$102:$AD$116, 2, FALSE),\n          VLOOKUP(S986, 'Data order'!$AC$2:$AD$91, 2, FALSE)\n      )\n  ),\n\"\")","v":""},null,null,null,null,"EUR",null,null,null,{"$error":"#DIV/0!"},0,0,null,"","","","","","","","","","",null,null,null,null,null,null,null,null,null,null,null,null,null,null,null,null,null,"ZWO"]
[null,null,null,null,null,{"$f":"VLOOKUP(G987,'Data order'!Z:AA,2,0)","v":{"$error":"#N/A"}},null,null,null,null,null,null,null,null,{"$f":"VLOOKUP(N987,Tabel10[[korte omschrijving]:[MCC3_CODE]],2,0)","v":{"$error":"#N/A"}},{"$f":"VLOOKUP(N987,'Data order'!M:O,3,0)","v":{"$error":"#N/A"}},null,null,null,{"$f":"IFERROR(\n  IF(R987=\"Big&Tall\",\n      VLOOKUP(S987, 'Data order'!$AC$92:$AD$101, 2, FALSE),\n      IF(R987=\"Boordmaat\",\n          VLOOKUP(S987, 'Data order'!$AC$102:$AD$116, 2, FALSE),\n          VLOOKUP(S987, 'Data order'!$AC$2:$AD$91, 2, FALSE)\n      )\n  ),\n\"\")","v":""},null,null,null,null,"EUR",null,null,null,{"$error":"#DIV/0!"},0,0,null,"","","","","","","","","","",null,null,null,null,null,null,null,null,null,null,null,null,null,null,null,null,null,"ZWO"]
[null,null,null,null,null,{"$f":"VLOOKUP(G988,'Data order'!Z:AA,2,0)","v":{"$error":"#N/A"}},null,null,null,null,null,null,null,null,{"$f":"VLOOKUP(N988,Tabel10[[korte omschrijving]:[MCC3_CODE]],2,0)","v":{"$error":"#N/A"}},{"$f":"VLOOKUP(N988,'Data order'!M:O,3,0)","v":{"$error":"#N/A"}},null,null,null,{"$f":"IFERROR(\n  IF(R988=\"Big&Tall\",\n      VLOOKUP(S988, 'Data order'!$AC$92:$AD$101, 2, FALSE),\n      IF(R988=\"Boordmaat\",\n          VLOOKUP(S988, 'Data order'!$AC$102:$AD$116, 2, FALSE),\n          VLOOKUP(S988, 'Data order'!$AC$2:$AD$91, 2, FALSE)\n      )\n  ),\n\"\")","v":""},null,null,null,null,"EUR",null,null,null,{"$error":"#DIV/0!"},0,0,null,"","","","","","","","","","",null,null,null,null,null,null,null,null,null,null,null,null,null,null,null,null,null,"ZWO"]
[null,null,null,null,null,{"$f":"VLOOKUP(G989,'Data order'!Z:AA,2,0)","v":{"$error":"#N/A"}},null,null,null,null,null,null,null,null,{"$f":"VLOOKUP(N989,Tabel10[[korte omschrijving]:[MCC3_CODE]],2,0)","v":{"$error":"#N/A"}},{"$f":"VLOOKUP(N989,'Data order'!M:O,3,0)","v":{"$error":"#N/A"}},null,null,null,{"$f":"IFERROR(\n  IF(R989=\"Big&Tall\",\n      VLOOKUP(S989, 'Data order'!$AC$92:$AD$101, 2, FALSE),\n      IF(R989=\"Boordmaat\",\n          VLOOKUP(S989, 'Data order'!$AC$102:$AD$116, 2, FALSE),\n          VLOOKUP(S989, 'Data order'!$AC$2:$AD$91, 2, FALSE)\n      )\n  ),\n\"\")","v":""},null,null,null,null,"EUR",null,null,null,{"$error":"#DIV/0!"},0,0,null,"","","","","","","","","","",null,null,null,null,null,null,null,null,null,null,null,null,null,null,null,null,null,"ZWO"]
[null,null,null,null,null,{"$f":"VLOOKUP(G990,'Data order'!Z:AA,2,0)","v":{"$error":"#N/A"}},null,null,null,null,null,null,null,null,{"$f":"VLOOKUP(N990,Tabel10[[korte omschrijving]:[MCC3_CODE]],2,0)","v":{"$error":"#N/A"}},{"$f":"VLOOKUP(N990,'Data order'!M:O,3,0)","v":{"$error":"#N/A"}},null,null,null,{"$f":"IFERROR(\n  IF(R990=\"Big&Tall\",\n      VLOOKUP(S990, 'Data order'!$AC$92:$AD$101, 2, FALSE),\n      IF(R990=\"Boordmaat\",\n          VLOOKUP(S990, 'Data order'!$AC$102:$AD$116, 2, FALSE),\n          VLOOKUP(S990, 'Data order'!$AC$2:$AD$91, 2, FALSE)\n      )\n  ),\n\"\")","v":""},null,0,null,null,"EUR",null,null,null,{"$f":"AB990/Z990","v":{"$error":"#DIV/0!"}},{"$f":"U990*Z990","v":0},{"$f":"U990*AB990","v":0},null,"","","","","","","","","","",null,null,null,null,null,null,null,null,null,null,null,null,null,null,null,null,null,"ZWO"]
[null,null,null,null,null,{"$f":"VLOOKUP(G991,'Data order'!Z:AA,2,0)","v":{"$error":"#N/A"}},null,null,null,null,null,null,null,null,{"$f":"VLOOKUP(N991,Tabel10[[korte omschrijving]:[MCC3_CODE]],2,0)","v":{"$error":"#N/A"}},{"$f":"VLOOKUP(N991,'Data order'!M:O,3,0)","v":{"$error":"#N/A"}},null,null,null,{"$f":"IFERROR(\n  IF(R991=\"Big&Tall\",\n      VLOOKUP(S991, 'Data order'!$AC$92:$AD$101, 2, FALSE),\n      IF(R991=\"Boordmaat\",\n          VLOOKUP(S991, 'Data order'!$AC$102:$AD$116, 2, FALSE),\n          VLOOKUP(S991, 'Data order'!$AC$2:$AD$91, 2, FALSE)\n      )\n  ),\n\"\")","v":""},null,null,null,null,"EUR",null,null,null,{"$error":"#DIV/0!"},0,0,null,"","","","","","","","","","",null,null,null,null,null,null,null,null,null,null,null,null,null,null,null,null,null,"ZWO"]
[null,null,null,null,null,{"$f":"VLOOKUP(G992,'Data order'!Z:AA,2,0)","v":{"$error":"#N/A"}},null,null,null,null,null,null,null,null,{"$f":"VLOOKUP(N992,Tabel10[[korte omschrijving]:[MCC3_CODE]],2,0)","v":{"$error":"#N/A"}},{"$f":"VLOOKUP(N992,'Data order'!M:O,3,0)","v":{"$error":"#N/A"}},null,null,null,{"$f":"IFERROR(\n  IF(R992=\"Big&Tall\",\n      VLOOKUP(S992, 'Data order'!$AC$92:$AD$101, 2, FALSE),\n      IF(R992=\"Boordmaat\",\n          VLOOKUP(S992, 'Data order'!$AC$102:$AD$116, 2, FALSE),\n          VLOOKUP(S992, 'Data order'!$AC$2:$AD$91, 2, FALSE)\n      )\n  ),\n\"\")","v":""},null,null,null,null,"EUR",null,null,null,{"$error":"#DIV/0!"},0,0,null,"","","","","","","","","","",null,null,null,null,null,null,null,null,null,null,null,null,null,null,null,null,null,"ZWO"]
[null,null,null,null,null,{"$f":"VLOOKUP(G993,'Data order'!Z:AA,2,0)","v":{"$error":"#N/A"}},null,null,null,null,null,null,null,null,{"$f":"VLOOKUP(N993,Tabel10[[korte omschrijving]:[MCC3_CODE]],2,0)","v":{"$error":"#N/A"}},{"$f":"VLOOKUP(N993,'Data order'!M:O,3,0)","v":{"$error":"#N/A"}},null,null,null,{"$f":"IFERROR(\n  IF(R993=\"Big&Tall\",\n      VLOOKUP(S993, 'Data order'!$AC$92:$AD$101, 2, FALSE),\n      IF(R993=\"Boordmaat\",\n          VLOOKUP(S993, 'Data order'!$AC$102:$AD$116, 2, FALSE),\n          VLOOKUP(S993, 'Data order'!$AC$2:$AD$91, 2, FALSE)\n      )\n  ),\n\"\")","v":""},null,null,null,null,"EUR",null,null,null,{"$error":"#DIV/0!"},0,0,null,"","","","","","","","","","",null,null,null,null,null,null,null,null,null,null,null,null,null,null,null,null,null,"ZWO"]
[null,null,null,null,null,{"$f":"VLOOKUP(G994,'Data order'!Z:AA,2,0)","v":{"$error":"#N/A"}},null,null,null,null,null,null,null,null,{"$f":"VLOOKUP(N994,Tabel10[[korte omschrijving]:[MCC3_CODE]],2,0)","v":{"$error":"#N/A"}},{"$f":"VLOOKUP(N994,'Data order'!M:O,3,0)","v":{"$error":"#N/A"}},null,null,null,{"$f":"IFERROR(\n  IF(R994=\"Big&Tall\",\n      VLOOKUP(S994, 'Data order'!$AC$92:$AD$101, 2, FALSE),\n      IF(R994=\"Boordmaat\",\n          VLOOKUP(S994, 'Data order'!$AC$102:$AD$116, 2, FALSE),\n          VLOOKUP(S994, 'Data order'!$AC$2:$AD$91, 2, FALSE)\n      )\n  ),\n\"\")","v":""},null,null,null,null,"EUR",null,null,null,{"$error":"#DIV/0!"},0,0,null,"","","","","","","","","","",null,null,null,null,null,null,null,null,null,null,null,null,null,null,null,null,null,"ZWO"]
[null,null,null,null,null,{"$f":"VLOOKUP(G995,'Data order'!Z:AA,2,0)","v":{"$error":"#N/A"}},null,null,null,null,null,null,null,null,{"$f":"VLOOKUP(N995,Tabel10[[korte omschrijving]:[MCC3_CODE]],2,0)","v":{"$error":"#N/A"}},{"$f":"VLOOKUP(N995,'Data order'!M:O,3,0)","v":{"$error":"#N/A"}},null,null,null,{"$f":"IFERROR(\n  IF(R995=\"Big&Tall\",\n      VLOOKUP(S995, 'Data order'!$AC$92:$AD$101, 2, FALSE),\n      IF(R995=\"Boordmaat\",\n          VLOOKUP(S995, 'Data order'!$AC$102:$AD$116, 2, FALSE),\n          VLOOKUP(S995, 'Data order'!$AC$2:$AD$91, 2, FALSE)\n      )\n  ),\n\"\")","v":""},null,null,null,null,"EUR",null,null,null,{"$error":"#DIV/0!"},0,0,null,"","","","","","","","","","",null,null,null,null,null,null,null,null,null,null,null,null,null,null,null,null,null,"ZWO"]
[null,null,null,null,null,{"$f":"VLOOKUP(G996,'Data order'!Z:AA,2,0)","v":{"$error":"#N/A"}},null,null,null,null,null,null,null,null,{"$f":"VLOOKUP(N996,Tabel10[[korte omschrijving]:[MCC3_CODE]],2,0)","v":{"$error":"#N/A"}},{"$f":"VLOOKUP(N996,'Data order'!M:O,3,0)","v":{"$error":"#N/A"}},null,null,null,{"$f":"IFERROR(\n  IF(R996=\"Big&Tall\",\n      VLOOKUP(S996, 'Data order'!$AC$92:$AD$101, 2, FALSE),\n      IF(R996=\"Boordmaat\",\n          VLOOKUP(S996, 'Data order'!$AC$102:$AD$116, 2, FALSE),\n          VLOOKUP(S996, 'Data order'!$AC$2:$AD$91, 2, FALSE)\n      )\n  ),\n\"\")","v":""},null,0,null,null,"EUR",null,null,null,{"$f":"AB996/Z996","v":{"$error":"#DIV/0!"}},{"$f":"U996*Z996","v":0},{"$f":"U996*AB996","v":0},null,"","","","","","","","","","",null,null,null,null,null,null,null,null,null,null,null,null,null,null,null,null,null,"ZWO"]
[null,null,null,null,null,{"$f":"VLOOKUP(G997,'Data order'!Z:AA,2,0)","v":{"$error":"#N/A"}},null,null,null,null,null,null,null,null,{"$f":"VLOOKUP(N997,Tabel10[[korte omschrijving]:[MCC3_CODE]],2,0)","v":{"$error":"#N/A"}},{"$f":"VLOOKUP(N997,'Data order'!M:O,3,0)","v":{"$error":"#N/A"}},null,null,null,{"$f":"IFERROR(\n  IF(R997=\"Big&Tall\",\n      VLOOKUP(S997, 'Data order'!$AC$92:$AD$101, 2, FALSE),\n      IF(R997=\"Boordmaat\",\n          VLOOKUP(S997, 'Data order'!$AC$102:$AD$116, 2, FALSE),\n          VLOOKUP(S997, 'Data order'!$AC$2:$AD$91, 2, FALSE)\n      )\n  ),\n\"\")","v":""},null,null,null,null,"EUR",null,null,null,{"$error":"#DIV/0!"},0,0,null,"","","","","","","","","","",null,null,null,null,null,null,null,null,null,null,null,null,null,null,null,null,null,"ZWO"]
[null,null,null,null,null,{"$f":"VLOOKUP(G998,'Data order'!Z:AA,2,0)","v":{"$error":"#N/A"}},null,null,null,null,null,null,null,null,{"$f":"VLOOKUP(N998,Tabel10[[korte omschrijving]:[MCC3_CODE]],2,0)","v":{"$error":"#N/A"}},{"$f":"VLOOKUP(N998,'Data order'!M:O,3,0)","v":{"$error":"#N/A"}},null,null,null,{"$f":"IFERROR(\n  IF(R998=\"Big&Tall\",\n      VLOOKUP(S998, 'Data order'!$AC$92:$AD$101, 2, FALSE),\n      IF(R998=\"Boordmaat\",\n          VLOOKUP(S998, 'Data order'!$AC$102:$AD$116, 2, FALSE),\n          VLOOKUP(S998, 'Data order'!$AC$2:$AD$91, 2, FALSE)\n      )\n  ),\n\"\")","v":""},null,null,null,null,"EUR",null,null,null,{"$error":"#DIV/0!"},0,0,null,"","","","","","","","","","",null,null,null,null,null,null,null,null,null,null,null,null,null,null,null,null,null,"ZWO"]
[null,null,null,null,null,{"$f":"VLOOKUP(G999,'Data order'!Z:AA,2,0)","v":{"$error":"#N/A"}},null,null,null,null,null,null,null,null,{"$f":"VLOOKUP(N999,Tabel10[[korte omschrijving]:[MCC3_CODE]],2,0)","v":{"$error":"#N/A"}},{"$f":"VLOOKUP(N999,'Data order'!M:O,3,0)","v":{"$error":"#N/A"}},null,null,null,{"$f":"IFERROR(\n  IF(R999=\"Big&Tall\",\n      VLOOKUP(S999, 'Data order'!$AC$92:$AD$101, 2, FALSE),\n      IF(R999=\"Boordmaat\",\n          VLOOKUP(S999, 'Data order'!$AC$102:$AD$116, 2, FALSE),\n          VLOOKUP(S999, 'Data order'!$AC$2:$AD$91, 2, FALSE)\n      )\n  ),\n\"\")","v":""},null,null,null,null,"EUR",null,null,null,{"$error":"#DIV/0!"},0,0,null,"","","","","","","","","","",null,null,null,null,null,null,null,null,null,null,null,null,null,null,null,null,null,"ZWO"]
[null,null,null,null,null,{"$f":"VLOOKUP(G1000,'Data order'!Z:AA,2,0)","v":{"$error":"#N/A"}},null,null,null,null,null,null,null,null,{"$f":"VLOOKUP(N1000,Tabel10[[korte omschrijving]:[MCC3_CODE]],2,0)","v":{"$error":"#N/A"}},{"$f":"VLOOKUP(N1000,'Data order'!M:O,3,0)","v":{"$error":"#N/A"}},null,null,null,{"$f":"IFERROR(\n  IF(R1000=\"Big&Tall\",\n      VLOOKUP(S1000, 'Data order'!$AC$92:$AD$101, 2, FALSE),\n      IF(R1000=\"Boordmaat\",\n          VLOOKUP(S1000, 'Data order'!$AC$102:$AD$116, 2, FALSE),\n          VLOOKUP(S1000, 'Data order'!$AC$2:$AD$91, 2, FALSE)\n      )\n  ),\n\"\")","v":""},null,null,null,null,"EUR",null,null,null,{"$error":"#DIV/0!"},0,0,null,"","","","","","","","","","",null,null,null,null,null,null,null,null,null,null,null,null,null,null,null,null,null,"ZWO"]
[null,null,null,null,null,{"$f":"VLOOKUP(G1001,'Data order'!Z:AA,2,0)","v":{"$error":"#N/A"}},null,null,null,null,null,null,null,null,{"$f":"VLOOKUP(N1001,Tabel10[[korte omschrijving]:[MCC3_CODE]],2,0)","v":{"$error":"#N/A"}},{"$f":"VLOOKUP(N1001,'Data order'!M:O,3,0)","v":{"$error":"#N/A"}},null,null,null,{"$f":"IFERROR(\n  IF(R1001=\"Big&Tall\",\n      VLOOKUP(S1001, 'Data order'!$AC$92:$AD$101, 2, FALSE),\n      IF(R1001=\"Boordmaat\",\n          VLOOKUP(S1001, 'Data order'!$AC$102:$AD$116, 2, FALSE),\n          VLOOKUP(S1001, 'Data order'!$AC$2:$AD$91, 2, FALSE)\n      )\n  ),\n\"\")","v":""},null,null,null,null,"EUR",null,null,null,{"$error":"#DIV/0!"},0,0,null,"","","","","","","","","","",null,null,null,null,null,null,null,null,null,null,null,null,null,null,null,null,null,"ZWO"]
[null,null,null,null,null,{"$f":"VLOOKUP(G1002,'Data order'!Z:AA,2,0)","v":{"$error":"#N/A"}},null,null,null,null,null,null,null,null,{"$f":"VLOOKUP(N1002,Tabel10[[korte omschrijving]:[MCC3_CODE]],2,0)","v":{"$error":"#N/A"}},{"$f":"VLOOKUP(N1002,'Data order'!M:O,3,0)","v":{"$error":"#N/A"}},null,null,null,{"$f":"IFERROR(\n  IF(R1002=\"Big&Tall\",\n      VLOOKUP(S1002, 'Data order'!$AC$92:$AD$101, 2, FALSE),\n      IF(R1002=\"Boordmaat\",\n          VLOOKUP(S1002, 'Data order'!$AC$102:$AD$116, 2, FALSE),\n          VLOOKUP(S1002, 'Data order'!$AC$2:$AD$91, 2, FALSE)\n      )\n  ),\n\"\")","v":""},null,0,null,null,"EUR",null,null,null,{"$f":"AB1002/Z1002","v":{"$error":"#DIV/0!"}},{"$f":"U1002*Z1002","v":0},{"$f":"U1002*AB1002","v":0},null,"","","","","","","","","","",null,null,null,null,null,null,null,null,null,null,null,null,null,null,null,null,null,"ZWO"]
[null,null,null,null,null,{"$f":"VLOOKUP(G1003,'Data order'!Z:AA,2,0)","v":{"$error":"#N/A"}},null,null,null,null,null,null,null,null,{"$f":"VLOOKUP(N1003,Tabel10[[korte omschrijving]:[MCC3_CODE]],2,0)","v":{"$error":"#N/A"}},{"$f":"VLOOKUP(N1003,'Data order'!M:O,3,0)","v":{"$error":"#N/A"}},null,null,null,{"$f":"IFERROR(\n  IF(R1003=\"Big&Tall\",\n      VLOOKUP(S1003, 'Data order'!$AC$92:$AD$101, 2, FALSE),\n      IF(R1003=\"Boordmaat\",\n          VLOOKUP(S1003, 'Data order'!$AC$102:$AD$116, 2, FALSE),\n          VLOOKUP(S1003, 'Data order'!$AC$2:$AD$91, 2, FALSE)\n      )\n  ),\n\"\")","v":""},null,null,null,null,"EUR",null,null,null,{"$error":"#DIV/0!"},0,0,null,"","","","","","","","","","",null,null,null,null,null,null,null,null,null,null,null,null,null,null,null,null,null,"ZWO"]
[null,null,null,null,null,{"$f":"VLOOKUP(G1004,'Data order'!Z:AA,2,0)","v":{"$error":"#N/A"}},null,null,null,null,null,null,null,null,{"$f":"VLOOKUP(N1004,Tabel10[[korte omschrijving]:[MCC3_CODE]],2,0)","v":{"$error":"#N/A"}},{"$f":"VLOOKUP(N1004,'Data order'!M:O,3,0)","v":{"$error":"#N/A"}},null,null,null,{"$f":"IFERROR(\n  IF(R1004=\"Big&Tall\",\n      VLOOKUP(S1004, 'Data order'!$AC$92:$AD$101, 2, FALSE),\n      IF(R1004=\"Boordmaat\",\n          VLOOKUP(S1004, 'Data order'!$AC$102:$AD$116, 2, FALSE),\n          VLOOKUP(S1004, 'Data order'!$AC$2:$AD$91, 2, FALSE)\n      )\n  ),\n\"\")","v":""},null,null,null,null,"EUR",null,null,null,{"$error":"#DIV/0!"},0,0,null,"","","","","","","","","","",null,null,null,null,null,null,null,null,null,null,null,null,null,null,null,null,null,"ZWO"]
[null,null,null,null,null,{"$f":"VLOOKUP(G1005,'Data order'!Z:AA,2,0)","v":{"$error":"#N/A"}},null,null,null,null,null,null,null,null,{"$f":"VLOOKUP(N1005,Tabel10[[korte omschrijving]:[MCC3_CODE]],2,0)","v":{"$error":"#N/A"}},{"$f":"VLOOKUP(N1005,'Data order'!M:O,3,0)","v":{"$error":"#N/A"}},null,null,null,{"$f":"IFERROR(\n  IF(R1005=\"Big&Tall\",\n      VLOOKUP(S1005, 'Data order'!$AC$92:$AD$101, 2, FALSE),\n      IF(R1005=\"Boordmaat\",\n          VLOOKUP(S1005, 'Data order'!$AC$102:$AD$116, 2, FALSE),\n          VLOOKUP(S1005, 'Data order'!$AC$2:$AD$91, 2, FALSE)\n      )\n  ),\n\"\")","v":""},null,null,null,null,"EUR",null,null,null,{"$error":"#DIV/0!"},0,0,null,"","","","","","","","","","",null,null,null,null,null,null,null,null,null,null,null,null,null,null,null,null,null,"ZWO"]
[null,null,null,null,null,{"$f":"VLOOKUP(G1006,'Data order'!Z:AA,2,0)","v":{"$error":"#N/A"}},null,null,null,null,null,null,null,null,{"$f":"VLOOKUP(N1006,Tabel10[[korte omschrijving]:[MCC3_CODE]],2,0)","v":{"$error":"#N/A"}},{"$f":"VLOOKUP(N1006,'Data order'!M:O,3,0)","v":{"$error":"#N/A"}},null,null,null,{"$f":"IFERROR(\n  IF(R1006=\"Big&Tall\",\n      VLOOKUP(S1006, 'Data order'!$AC$92:$AD$101, 2, FALSE),\n      IF(R1006=\"Boordmaat\",\n          VLOOKUP(S1006, 'Data order'!$AC$102:$AD$116, 2, FALSE),\n          VLOOKUP(S1006, 'Data order'!$AC$2:$AD$91, 2, FALSE)\n      )\n  ),\n\"\")","v":""},null,null,null,null,"EUR",null,null,null,{"$error":"#DIV/0!"},0,0,null,"","","","","","","","","","",null,null,null,null,null,null,null,null,null,null,null,null,null,null,null,null,null,"ZWO"]
[null,null,null,null,null,{"$f":"VLOOKUP(G1007,'Data order'!Z:AA,2,0)","v":{"$error":"#N/A"}},null,null,null,null,null,null,null,null,{"$f":"VLOOKUP(N1007,Tabel10[[korte omschrijving]:[MCC3_CODE]],2,0)","v":{"$error":"#N/A"}},{"$f":"VLOOKUP(N1007,'Data order'!M:O,3,0)","v":{"$error":"#N/A"}},null,null,null,{"$f":"IFERROR(\n  IF(R1007=\"Big&Tall\",\n      VLOOKUP(S1007, 'Data order'!$AC$92:$AD$101, 2, FALSE),\n      IF(R1007=\"Boordmaat\",\n          VLOOKUP(S1007, 'Data order'!$AC$102:$AD$116, 2, FALSE),\n          VLOOKUP(S1007, 'Data order'!$AC$2:$AD$91, 2, FALSE)\n      )\n  ),\n\"\")","v":""},null,null,null,null,"EUR",null,null,null,{"$error":"#DIV/0!"},0,0,null,"","","","","","","","","","",null,null,null,null,null,null,null,null,null,null,null,null,null,null,null,null,null,"ZWO"]
[null,null,null,null,null,{"$f":"VLOOKUP(G1008,'Data order'!Z:AA,2,0)","v":{"$error":"#N/A"}},null,null,null,null,null,null,null,null,{"$f":"VLOOKUP(N1008,Tabel10[[korte omschrijving]:[MCC3_CODE]],2,0)","v":{"$error":"#N/A"}},{"$f":"VLOOKUP(N1008,'Data order'!M:O,3,0)","v":{"$error":"#N/A"}},null,null,null,{"$f":"IFERROR(\n  IF(R1008=\"Big&Tall\",\n      VLOOKUP(S1008, 'Data order'!$AC$92:$AD$101, 2, FALSE),\n      IF(R1008=\"Boordmaat\",\n          VLOOKUP(S1008, 'Data order'!$AC$102:$AD$116, 2, FALSE),\n          VLOOKUP(S1008, 'Data order'!$AC$2:$AD$91, 2, FALSE)\n      )\n  ),\n\"\")","v":""},null,0,null,null,"EUR",null,null,null,{"$f":"AB1008/Z1008","v":{"$error":"#DIV/0!"}},{"$f":"U1008*Z1008","v":0},{"$f":"U1008*AB1008","v":0},null,"","","","","","","","","","",null,null,null,null,null,null,null,null,null,null,null,null,null,null,null,null,null,"ZWO"]
[null,null,null,null,null,{"$f":"VLOOKUP(G1009,'Data order'!Z:AA,2,0)","v":{"$error":"#N/A"}},null,null,null,null,null,null,null,null,{"$f":"VLOOKUP(N1009,Tabel10[[korte omschrijving]:[MCC3_CODE]],2,0)","v":{"$error":"#N/A"}},{"$f":"VLOOKUP(N1009,'Data order'!M:O,3,0)","v":{"$error":"#N/A"}},null,null,null,{"$f":"IFERROR(\n  IF(R1009=\"Big&Tall\",\n      VLOOKUP(S1009, 'Data order'!$AC$92:$AD$101, 2, FALSE),\n      IF(R1009=\"Boordmaat\",\n          VLOOKUP(S1009, 'Data order'!$AC$102:$AD$116, 2, FALSE),\n          VLOOKUP(S1009, 'Data order'!$AC$2:$AD$91, 2, FALSE)\n      )\n  ),\n\"\")","v":""},null,null,null,null,"EUR",null,null,null,{"$error":"#DIV/0!"},0,0,null,"","","","","","","","","","",null,null,null,null,null,null,null,null,null,null,null,null,null,null,null,null,null,"ZWO"]
[null,null,null,null,null,{"$f":"VLOOKUP(G1010,'Data order'!Z:AA,2,0)","v":{"$error":"#N/A"}},null,null,null,null,null,null,null,null,{"$f":"VLOOKUP(N1010,Tabel10[[korte omschrijving]:[MCC3_CODE]],2,0)","v":{"$error":"#N/A"}},{"$f":"VLOOKUP(N1010,'Data order'!M:O,3,0)","v":{"$error":"#N/A"}},null,null,null,{"$f":"IFERROR(\n  IF(R1010=\"Big&Tall\",\n      VLOOKUP(S1010, 'Data order'!$AC$92:$AD$101, 2, FALSE),\n      IF(R1010=\"Boordmaat\",\n          VLOOKUP(S1010, 'Data order'!$AC$102:$AD$116, 2, FALSE),\n          VLOOKUP(S1010, 'Data order'!$AC$2:$AD$91, 2, FALSE)\n      )\n  ),\n\"\")","v":""},null,null,null,null,"EUR",null,null,null,{"$error":"#DIV/0!"},0,0,null,"","","","","","","","","","",null,null,null,null,null,null,null,null,null,null,null,null,null,null,null,null,null,"ZWO"]
[null,null,null,null,null,{"$f":"VLOOKUP(G1011,'Data order'!Z:AA,2,0)","v":{"$error":"#N/A"}},null,null,null,null,null,null,null,null,{"$f":"VLOOKUP(N1011,Tabel10[[korte omschrijving]:[MCC3_CODE]],2,0)","v":{"$error":"#N/A"}},{"$f":"VLOOKUP(N1011,'Data order'!M:O,3,0)","v":{"$error":"#N/A"}},null,null,null,{"$f":"IFERROR(\n  IF(R1011=\"Big&Tall\",\n      VLOOKUP(S1011, 'Data order'!$AC$92:$AD$101, 2, FALSE),\n      IF(R1011=\"Boordmaat\",\n          VLOOKUP(S1011, 'Data order'!$AC$102:$AD$116, 2, FALSE),\n          VLOOKUP(S1011, 'Data order'!$AC$2:$AD$91, 2, FALSE)\n      )\n  ),\n\"\")","v":""},null,null,null,null,"EUR",null,null,null,{"$error":"#DIV/0!"},0,0,null,"","","","","","","","","","",null,null,null,null,null,null,null,null,null,null,null,null,null,null,null,null,null,"ZWO"]
[null,null,null,null,null,{"$f":"VLOOKUP(G1012,'Data order'!Z:AA,2,0)","v":{"$error":"#N/A"}},null,null,null,null,null,null,null,null,{"$f":"VLOOKUP(N1012,Tabel10[[korte omschrijving]:[MCC3_CODE]],2,0)","v":{"$error":"#N/A"}},{"$f":"VLOOKUP(N1012,'Data order'!M:O,3,0)","v":{"$error":"#N/A"}},null,null,null,{"$f":"IFERROR(\n  IF(R1012=\"Big&Tall\",\n      VLOOKUP(S1012, 'Data order'!$AC$92:$AD$101, 2, FALSE),\n      IF(R1012=\"Boordmaat\",\n          VLOOKUP(S1012, 'Data order'!$AC$102:$AD$116, 2, FALSE),\n          VLOOKUP(S1012, 'Data order'!$AC$2:$AD$91, 2, FALSE)\n      )\n  ),\n\"\")","v":""},null,null,null,null,"EUR",null,null,null,{"$error":"#DIV/0!"},0,0,null,"","","","","","","","","","",null,null,null,null,null,null,null,null,null,null,null,null,null,null,null,null,null,"ZWO"]
[null,null,null,null,null,{"$f":"VLOOKUP(G1013,'Data order'!Z:AA,2,0)","v":{"$error":"#N/A"}},null,null,null,null,null,null,null,null,{"$f":"VLOOKUP(N1013,Tabel10[[korte omschrijving]:[MCC3_CODE]],2,0)","v":{"$error":"#N/A"}},{"$f":"VLOOKUP(N1013,'Data order'!M:O,3,0)","v":{"$error":"#N/A"}},null,null,null,{"$f":"IFERROR(\n  IF(R1013=\"Big&Tall\",\n      VLOOKUP(S1013, 'Data order'!$AC$92:$AD$101, 2, FALSE),\n      IF(R1013=\"Boordmaat\",\n          VLOOKUP(S1013, 'Data order'!$AC$102:$AD$116, 2, FALSE),\n          VLOOKUP(S1013, 'Data order'!$AC$2:$AD$91, 2, FALSE)\n      )\n  ),\n\"\")","v":""},null,null,null,null,"EUR",null,null,null,{"$error":"#DIV/0!"},0,0,null,"","","","","","","","","","",null,null,null,null,null,null,null,null,null,null,null,null,null,null,null,null,null,"ZWO"]
[null,null,null,null,null,{"$f":"VLOOKUP(G1014,'Data order'!Z:AA,2,0)","v":{"$error":"#N/A"}},null,null,null,null,null,null,null,null,{"$f":"VLOOKUP(N1014,Tabel10[[korte omschrijving]:[MCC3_CODE]],2,0)","v":{"$error":"#N/A"}},{"$f":"VLOOKUP(N1014,'Data order'!M:O,3,0)","v":{"$error":"#N/A"}},null,null,null,{"$f":"IFERROR(\n  IF(R1014=\"Big&Tall\",\n      VLOOKUP(S1014, 'Data order'!$AC$92:$AD$101, 2, FALSE),\n      IF(R1014=\"Boordmaat\",\n          VLOOKUP(S1014, 'Data order'!$AC$102:$AD$116, 2, FALSE),\n          VLOOKUP(S1014, 'Data order'!$AC$2:$AD$91, 2, FALSE)\n      )\n  ),\n\"\")","v":""},null,0,null,null,"EUR",null,null,null,{"$f":"AB1014/Z1014","v":{"$error":"#DIV/0!"}},{"$f":"U1014*Z1014","v":0},{"$f":"U1014*AB1014","v":0},null,"","","","","","","","","","",null,null,null,null,null,null,null,null,null,null,null,null,null,null,null,null,null,"ZWO"]
[null,null,null,null,null,{"$f":"VLOOKUP(G1015,'Data order'!Z:AA,2,0)","v":{"$error":"#N/A"}},null,null,null,null,null,null,null,null,{"$f":"VLOOKUP(N1015,Tabel10[[korte omschrijving]:[MCC3_CODE]],2,0)","v":{"$error":"#N/A"}},{"$f":"VLOOKUP(N1015,'Data order'!M:O,3,0)","v":{"$error":"#N/A"}},null,null,null,{"$f":"IFERROR(\n  IF(R1015=\"Big&Tall\",\n      VLOOKUP(S1015, 'Data order'!$AC$92:$AD$101, 2, FALSE),\n      IF(R1015=\"Boordmaat\",\n          VLOOKUP(S1015, 'Data order'!$AC$102:$AD$116, 2, FALSE),\n          VLOOKUP(S1015, 'Data order'!$AC$2:$AD$91, 2, FALSE)\n      )\n  ),\n\"\")","v":""},null,null,null,null,"EUR",null,null,null,{"$error":"#DIV/0!"},0,0,null,"","","","","","","","","","",null,null,null,null,null,null,null,null,null,null,null,null,null,null,null,null,null,"ZWO"]
[null,null,null,null,null,{"$f":"VLOOKUP(G1016,'Data order'!Z:AA,2,0)","v":{"$error":"#N/A"}},null,null,null,null,null,null,null,null,{"$f":"VLOOKUP(N1016,Tabel10[[korte omschrijving]:[MCC3_CODE]],2,0)","v":{"$error":"#N/A"}},{"$f":"VLOOKUP(N1016,'Data order'!M:O,3,0)","v":{"$error":"#N/A"}},null,null,null,{"$f":"IFERROR(\n  IF(R1016=\"Big&Tall\",\n      VLOOKUP(S1016, 'Data order'!$AC$92:$AD$101, 2, FALSE),\n      IF(R1016=\"Boordmaat\",\n          VLOOKUP(S1016, 'Data order'!$AC$102:$AD$116, 2, FALSE),\n          VLOOKUP(S1016, 'Data order'!$AC$2:$AD$91, 2, FALSE)\n      )\n  ),\n\"\")","v":""},null,null,null,null,"EUR",null,null,null,{"$error":"#DIV/0!"},0,0,null,{"$f":"IF(AF1016 <> \"\",\n    IF(ISNUMBER(VALUE(LEFT(AF1016, FIND(\"%\", AF1016)-1))),\n        VALUE(LEFT(AF1016, FIND(\"%\", AF1016)-1)),\n        \"Invalid format\"),\n    \"\")","v":""},{"$f":"IF(AF1016 <> \"\",\n    IF(ISNUMBER(VALUE(LEFT(AF1016, FIND(\"%\", AF1016)-1))) * ISNUMBER(FIND(\"%\", AF1016 & \"wol\")) > 0,\n        TRIM(MID(AF1016, FIND(\"%\", AF1016)+1, FIND(\"/\", AF1016 & \"/\")-FIND(\"%\", AF1016)-1)),\n        \"Invalid format\"),\n    \"\")","v":""},{"$f":"IF(AF1016 <> \"\",\n    IF(ISNUMBER(VALUE(MID(AF1016, FIND(\"/\", AF1016) + 1, FIND(\"%\", AF1016, FIND(\"/\", AF1016)) - FIND(\"/\", AF1016) - 1))),\n        VALUE(MID(AF1016, FIND(\"/\", AF1016) + 1, FIND(\"%\", AF1016, FIND(\"/\", AF1016)) - FIND(\"/\", AF1016) - 1)),\n        \"\"),\n    \"\")","v":""},{"$f":"IF(AF1016 <> \"\",\n    IFERROR(TRIM(MID(AF1016, FIND(\"%\", AF1016, FIND(\"/\", AF1016)+1)+2,\n        IFERROR(FIND(\"/\", AF1016 & \"/\", FIND(\"/\", AF1016)+1)-FIND(\"%\", AF1016, FIND(\"/\", AF1016)+1)-2, LEN(AF1016)-FIND(\"%\", AF1016, FIND(\"/\", AF1016)+1)-1))),\n        \"\"),\n    \"\")","v":""},{"$f":"IF(AF1016 <> \"\",\n    IF(ISNUMBER(VALUE(MID(AF1016, FIND(\"/\", AF1016, FIND(\"/\", AF1016)+1) + 1, FIND(\"%\", AF1016, FIND(\"/\", AF1016, FIND(\"/\", AF1016)+1)) - FIND(\"/\", AF1016, FIND(\"/\", AF1016)+1) - 1))),\n        VALUE(MID(AF1016, FIND(\"/\", AF1016, FIND(\"/\", AF1016)+1) + 1, FIND(\"%\", AF1016, FIND(\"/\", AF1016, FIND(\"/\", AF1016)+1)) - FIND(\"/\", AF1016, FIND(\"/\", AF1016)+1) - 1)),\n        \"\"),\n    \"\")","v":""},{"$f":"IF(AF1016 <> \"\",\n    IFERROR(\n        TRIM(MID(AF1016,\n            FIND(\"%\", AF1016, FIND(\"%\", AF1016, FIND(\"%\", AF1016)+1)+1)+1,\n            FIND(\"/\", AF1016 & \"/\", FIND(\"%\", AF1016, FIND(\"%\", AF1016, FIND(\"%\", AF1016)+1)+1))-FIND(\"%\", AF1016, FIND(\"%\", AF1016, FIND(\"%\", AF1016)+1)+1)-1)\n        ),\n        \"\"\n    ),\n    \"\"\n)","v":""},{"$f":"IF(AF1016 <> \"\",\n    IF(ISNUMBER(VALUE(MID(AF1016, FIND(\"/\", AF1016, FIND(\"/\", AF1016, FIND(\"/\", AF1016)+1)+1) + 1, FIND(\"%\", AF1016, FIND(\"/\", AF1016, FIND(\"/\", AF1016, FIND(\"/\", AF1016)+1)+1)) - FIND(\"/\", AF1016, FIND(\"/\", AF1016, FIND(\"/\", AF1016)+1)+1) - 1))),\n        VALUE(MID(AF1016, FIND(\"/\", AF1016, FIND(\"/\", AF1016, FIND(\"/\", AF1016)+1)+1) + 1, FIND(\"%\", AF1016, FIND(\"/\", AF1016, FIND(\"/\", AF1016, FIND(\"/\", AF1016)+1)+1)) - FIND(\"/\", AF1016, FIND(\"/\", AF1016, FIND(\"/\", AF1016)+1)+1) - 1)),\n        \"\"),\n    \"\")","v":""},{"$f":"IF(AF1016 <> \"\",\n    IFERROR(TRIM(MID(AF1016, FIND(\"%\", AF1016, FIND(\"/\", AF1016, FIND(\"/\", AF1016, FIND(\"/\", AF1016)+1)+1)+1)+2,\n        IFERROR(FIND(\"/\", AF1016, FIND(\"/\", AF1016, FIND(\"/\", AF1016, FIND(\"/\", AF1016)+1)+1)+1)-FIND(\"%\", AF1016, FIND(\"/\", AF1016, FIND(\"/\", AF1016, FIND(\"/\", AF1016)+1)+1)+1)-2, LEN(AF1016)-FIND(\"%\", AF1016, FIND(\"/\", AF1016, FIND(\"/\", AF1016, FIND(\"/\", AF1016)+1)+1)+1)-1))),\n        \"\"),\n    \"\")","v":""},{"$f":"IF(AF1016 <> \"\",\n    IF(ISNUMBER(VALUE(MID(AF1016, FIND(\"/\", AF1016, FIND(\"/\", AF1016, FIND(\"/\", AF1016, FIND(\"/\", AF1016)+1)+1)+1) + 1, FIND(\"%\", AF1016, FIND(\"/\", AF1016, FIND(\"/\", AF1016, FIND(\"/\", AF1016, FIND(\"/\", AF1016)+1)+1)+1)) - FIND(\"/\", AF1016, FIND(\"/\", AF1016, FIND(\"/\", AF1016, FIND(\"/\", AF1016)+1)+1)+1) - 1))),\n        VALUE(MID(AF1016, FIND(\"/\", AF1016, FIND(\"/\", AF1016, FIND(\"/\", AF1016, FIND(\"/\", AF1016)+1)+1)+1) + 1, FIND(\"%\", AF1016, FIND(\"/\", AF1016, FIND(\"/\", AF1016, FIND(\"/\", AF1016, FIND(\"/\", AF1016)+1)+1)+1)) - FIND(\"/\", AF1016, FIND(\"/\", AF1016, FIND(\"/\", AF1016, FIND(\"/\", AF1016)+1)+1)+1) - 1)),\n        \"\"),\n    \"\")","v":""},{"$f":"IF(AF1016 = \"\", \"\",\n    IFERROR(TRIM(\n        MID(\n            AF1016,\n            FIND(\"%\", AF1016, FIND(\"/\", AF1016, FIND(\"/\", AF1016, FIND(\"/\", AF1016, FIND(\"/\", AF1016)+1)+1)+1)+1) + 1,\n            FIND(\"/\", AF1016 & \"/\", FIND(\"%\", AF1016, FIND(\"/\", AF1016, FIND(\"/\", AF1016, FIND(\"/\", AF1016, FIND(\"/\", AF1016)+1)+1)+1)+1)) -\n            FIND(\"%\", AF1016, FIND(\"/\", AF1016, FIND(\"/\", AF1016, FIND(\"/\", AF1016, FIND(\"/\", AF1016)+1)+1)+1)+1) - 1\n        )\n    ),\n    \"\")\n)","v":""},null,null,null,null,null,null,null,null,null,null,null,null,null,null,null,null,null,"ZWO"]
[null,null,null,null,null,{"$f":"VLOOKUP(G1017,'Data order'!Z:AA,2,0)","v":{"$error":"#N/A"}},null,null,null,null,null,null,null,null,{"$f":"VLOOKUP(N1017,Tabel10[[korte omschrijving]:[MCC3_CODE]],2,0)","v":{"$error":"#N/A"}},{"$f":"VLOOKUP(N1017,'Data order'!M:O,3,0)","v":{"$error":"#N/A"}},null,null,null,{"$f":"IFERROR(\n  IF(R1017=\"Big&Tall\",\n      VLOOKUP(S1017, 'Data order'!$AC$92:$AD$101, 2, FALSE),\n      IF(R1017=\"Boordmaat\",\n          VLOOKUP(S1017, 'Data order'!$AC$102:$AD$116, 2, FALSE),\n          VLOOKUP(S1017, 'Data order'!$AC$2:$AD$91, 2, FALSE)\n      )\n  ),\n\"\")","v":""},null,null,null,null,"EUR",null,null,null,{"$error":"#DIV/0!"},0,0,null,"","","","","","","","","","",null,null,null,null,null,null,null,null,null,null,null,null,null,null,null,null,null,"ZWO"]
[null,null,null,null,null,{"$f":"VLOOKUP(G1018,'Data order'!Z:AA,2,0)","v":{"$error":"#N/A"}},null,null,null,null,null,null,null,null,{"$f":"VLOOKUP(N1018,Tabel10[[korte omschrijving]:[MCC3_CODE]],2,0)","v":{"$error":"#N/A"}},{"$f":"VLOOKUP(N1018,'Data order'!M:O,3,0)","v":{"$error":"#N/A"}},null,null,null,{"$f":"IFERROR(\n  IF(R1018=\"Big&Tall\",\n      VLOOKUP(S1018, 'Data order'!$AC$92:$AD$101, 2, FALSE),\n      IF(R1018=\"Boordmaat\",\n          VLOOKUP(S1018, 'Data order'!$AC$102:$AD$116, 2, FALSE),\n          VLOOKUP(S1018, 'Data order'!$AC$2:$AD$91, 2, FALSE)\n      )\n  ),\n\"\")","v":""},null,null,null,null,"EUR",null,null,null,{"$error":"#DIV/0!"},0,0,null,"","","","","","","","","","",null,null,null,null,null,null,null,null,null,null,null,null,null,null,null,null,null,"ZWO"]
[null,null,null,null,null,{"$f":"VLOOKUP(G1019,'Data order'!Z:AA,2,0)","v":{"$error":"#N/A"}},null,null,null,null,null,null,null,null,{"$f":"VLOOKUP(N1019,Tabel10[[korte omschrijving]:[MCC3_CODE]],2,0)","v":{"$error":"#N/A"}},{"$f":"VLOOKUP(N1019,'Data order'!M:O,3,0)","v":{"$error":"#N/A"}},null,null,null,{"$f":"IFERROR(\n  IF(R1019=\"Big&Tall\",\n      VLOOKUP(S1019, 'Data order'!$AC$92:$AD$101, 2, FALSE),\n      IF(R1019=\"Boordmaat\",\n          VLOOKUP(S1019, 'Data order'!$AC$102:$AD$116, 2, FALSE),\n          VLOOKUP(S1019, 'Data order'!$AC$2:$AD$91, 2, FALSE)\n      )\n  ),\n\"\")","v":""},null,null,null,null,"EUR",null,null,null,{"$error":"#DIV/0!"},0,0,null,"","","","","","","","","","",null,null,null,null,null,null,null,null,null,null,null,null,null,null,null,null,null,"ZWO"]
[null,null,null,null,null,{"$f":"VLOOKUP(G1020,'Data order'!Z:AA,2,0)","v":{"$error":"#N/A"}},null,null,null,null,null,null,null,null,{"$f":"VLOOKUP(N1020,Tabel10[[korte omschrijving]:[MCC3_CODE]],2,0)","v":{"$error":"#N/A"}},{"$f":"VLOOKUP(N1020,'Data order'!M:O,3,0)","v":{"$error":"#N/A"}},null,null,null,{"$f":"IFERROR(\n  IF(R1020=\"Big&Tall\",\n      VLOOKUP(S1020, 'Data order'!$AC$92:$AD$101, 2, FALSE),\n      IF(R1020=\"Boordmaat\",\n          VLOOKUP(S1020, 'Data order'!$AC$102:$AD$116, 2, FALSE),\n          VLOOKUP(S1020, 'Data order'!$AC$2:$AD$91, 2, FALSE)\n      )\n  ),\n\"\")","v":""},null,0,null,null,"EUR",null,null,null,{"$f":"AB1020/Z1020","v":{"$error":"#DIV/0!"}},{"$f":"U1020*Z1020","v":0},{"$f":"U1020*AB1020","v":0},null,"","","","","","","","","","",null,null,null,null,null,null,null,null,null,null,null,null,null,null,null,null,null,"ZWO"]
[null,null,null,null,null,{"$f":"VLOOKUP(G1021,'Data order'!Z:AA,2,0)","v":{"$error":"#N/A"}},null,null,null,null,null,null,null,null,{"$f":"VLOOKUP(N1021,Tabel10[[korte omschrijving]:[MCC3_CODE]],2,0)","v":{"$error":"#N/A"}},{"$f":"VLOOKUP(N1021,'Data order'!M:O,3,0)","v":{"$error":"#N/A"}},null,null,null,{"$f":"IFERROR(\n  IF(R1021=\"Big&Tall\",\n      VLOOKUP(S1021, 'Data order'!$AC$92:$AD$101, 2, FALSE),\n      IF(R1021=\"Boordmaat\",\n          VLOOKUP(S1021, 'Data order'!$AC$102:$AD$116, 2, FALSE),\n          VLOOKUP(S1021, 'Data order'!$AC$2:$AD$91, 2, FALSE)\n      )\n  ),\n\"\")","v":""},null,null,null,null,"EUR",null,null,null,{"$error":"#DIV/0!"},0,0,null,"","","","","","","","","","",null,null,null,null,null,null,null,null,null,null,null,null,null,null,null,null,null,"ZWO"]
[null,null,null,null,null,{"$f":"VLOOKUP(G1022,'Data order'!Z:AA,2,0)","v":{"$error":"#N/A"}},null,null,null,null,null,null,null,null,{"$f":"VLOOKUP(N1022,Tabel10[[korte omschrijving]:[MCC3_CODE]],2,0)","v":{"$error":"#N/A"}},{"$f":"VLOOKUP(N1022,'Data order'!M:O,3,0)","v":{"$error":"#N/A"}},null,null,null,{"$f":"IFERROR(\n  IF(R1022=\"Big&Tall\",\n      VLOOKUP(S1022, 'Data order'!$AC$92:$AD$101, 2, FALSE),\n      IF(R1022=\"Boordmaat\",\n          VLOOKUP(S1022, 'Data order'!$AC$102:$AD$116, 2, FALSE),\n          VLOOKUP(S1022, 'Data order'!$AC$2:$AD$91, 2, FALSE)\n      )\n  ),\n\"\")","v":""},null,null,null,null,"EUR",null,null,null,{"$error":"#DIV/0!"},0,0,null,"","","","","","","","","","",null,null,null,null,null,null,null,null,null,null,null,null,null,null,null,null,null,"ZWO"]
[null,null,null,null,null,{"$f":"VLOOKUP(G1023,'Data order'!Z:AA,2,0)","v":{"$error":"#N/A"}},null,null,null,null,null,null,null,null,{"$f":"VLOOKUP(N1023,Tabel10[[korte omschrijving]:[MCC3_CODE]],2,0)","v":{"$error":"#N/A"}},{"$f":"VLOOKUP(N1023,'Data order'!M:O,3,0)","v":{"$error":"#N/A"}},null,null,null,{"$f":"IFERROR(\n  IF(R1023=\"Big&Tall\",\n      VLOOKUP(S1023, 'Data order'!$AC$92:$AD$101, 2, FALSE),\n      IF(R1023=\"Boordmaat\",\n          VLOOKUP(S1023, 'Data order'!$AC$102:$AD$116, 2, FALSE),\n          VLOOKUP(S1023, 'Data order'!$AC$2:$AD$91, 2, FALSE)\n      )\n  ),\n\"\")","v":""},null,null,null,null,"EUR",null,null,null,{"$error":"#DIV/0!"},0,0,null,"","","","","","","","","","",null,null,null,null,null,null,null,null,null,null,null,null,null,null,null,null,null,"ZWO"]
[null,null,null,null,null,{"$f":"VLOOKUP(G1024,'Data order'!Z:AA,2,0)","v":{"$error":"#N/A"}},null,null,null,null,null,null,null,null,{"$f":"VLOOKUP(N1024,Tabel10[[korte omschrijving]:[MCC3_CODE]],2,0)","v":{"$error":"#N/A"}},{"$f":"VLOOKUP(N1024,'Data order'!M:O,3,0)","v":{"$error":"#N/A"}},null,null,null,{"$f":"IFERROR(\n  IF(R1024=\"Big&Tall\",\n      VLOOKUP(S1024, 'Data order'!$AC$92:$AD$101, 2, FALSE),\n      IF(R1024=\"Boordmaat\",\n          VLOOKUP(S1024, 'Data order'!$AC$102:$AD$116, 2, FALSE),\n          VLOOKUP(S1024, 'Data order'!$AC$2:$AD$91, 2, FALSE)\n      )\n  ),\n\"\")","v":""},null,null,null,null,"EUR",null,null,null,{"$error":"#DIV/0!"},0,0,null,"","","","","","","","","","",null,null,null,null,null,null,null,null,null,null,null,null,null,null,null,null,null,"ZWO"]
[null,null,null,null,null,{"$f":"VLOOKUP(G1025,'Data order'!Z:AA,2,0)","v":{"$error":"#N/A"}},null,null,null,null,null,null,null,null,{"$f":"VLOOKUP(N1025,Tabel10[[korte omschrijving]:[MCC3_CODE]],2,0)","v":{"$error":"#N/A"}},{"$f":"VLOOKUP(N1025,'Data order'!M:O,3,0)","v":{"$error":"#N/A"}},null,null,null,{"$f":"IFERROR(\n  IF(R1025=\"Big&Tall\",\n      VLOOKUP(S1025, 'Data order'!$AC$92:$AD$101, 2, FALSE),\n      IF(R1025=\"Boordmaat\",\n          VLOOKUP(S1025, 'Data order'!$AC$102:$AD$116, 2, FALSE),\n          VLOOKUP(S1025, 'Data order'!$AC$2:$AD$91, 2, FALSE)\n      )\n  ),\n\"\")","v":""},null,null,null,null,"EUR",null,null,null,{"$error":"#DIV/0!"},0,0,null,"","","","","","","","","","",null,null,null,null,null,null,null,null,null,null,null,null,null,null,null,null,null,"ZWO"]
[null,null,null,null,null,{"$f":"VLOOKUP(G1026,'Data order'!Z:AA,2,0)","v":{"$error":"#N/A"}},null,null,null,null,null,null,null,null,{"$f":"VLOOKUP(N1026,Tabel10[[korte omschrijving]:[MCC3_CODE]],2,0)","v":{"$error":"#N/A"}},{"$f":"VLOOKUP(N1026,'Data order'!M:O,3,0)","v":{"$error":"#N/A"}},null,null,null,{"$f":"IFERROR(\n  IF(R1026=\"Big&Tall\",\n      VLOOKUP(S1026, 'Data order'!$AC$92:$AD$101, 2, FALSE),\n      IF(R1026=\"Boordmaat\",\n          VLOOKUP(S1026, 'Data order'!$AC$102:$AD$116, 2, FALSE),\n          VLOOKUP(S1026, 'Data order'!$AC$2:$AD$91, 2, FALSE)\n      )\n  ),\n\"\")","v":""},null,0,null,null,"EUR",null,null,null,{"$f":"AB1026/Z1026","v":{"$error":"#DIV/0!"}},{"$f":"U1026*Z1026","v":0},{"$f":"U1026*AB1026","v":0},null,"","","","","","","","","","",null,null,null,null,null,null,null,null,null,null,null,null,null,null,null,null,null,"ZWO"]
[null,null,null,null,null,{"$f":"VLOOKUP(G1027,'Data order'!Z:AA,2,0)","v":{"$error":"#N/A"}},null,null,null,null,null,null,null,null,{"$f":"VLOOKUP(N1027,Tabel10[[korte omschrijving]:[MCC3_CODE]],2,0)","v":{"$error":"#N/A"}},{"$f":"VLOOKUP(N1027,'Data order'!M:O,3,0)","v":{"$error":"#N/A"}},null,null,null,{"$f":"IFERROR(\n  IF(R1027=\"Big&Tall\",\n      VLOOKUP(S1027, 'Data order'!$AC$92:$AD$101, 2, FALSE),\n      IF(R1027=\"Boordmaat\",\n          VLOOKUP(S1027, 'Data order'!$AC$102:$AD$116, 2, FALSE),\n          VLOOKUP(S1027, 'Data order'!$AC$2:$AD$91, 2, FALSE)\n      )\n  ),\n\"\")","v":""},null,null,null,null,"EUR",null,null,null,{"$error":"#DIV/0!"},0,0,null,"","","","","","","","","","",null,null,null,null,null,null,null,null,null,null,null,null,null,null,null,null,null,"ZWO"]
[null,null,null,null,null,{"$f":"VLOOKUP(G1028,'Data order'!Z:AA,2,0)","v":{"$error":"#N/A"}},null,null,null,null,null,null,null,null,{"$f":"VLOOKUP(N1028,Tabel10[[korte omschrijving]:[MCC3_CODE]],2,0)","v":{"$error":"#N/A"}},{"$f":"VLOOKUP(N1028,'Data order'!M:O,3,0)","v":{"$error":"#N/A"}},null,null,null,{"$f":"IFERROR(\n  IF(R1028=\"Big&Tall\",\n      VLOOKUP(S1028, 'Data order'!$AC$92:$AD$101, 2, FALSE),\n      IF(R1028=\"Boordmaat\",\n          VLOOKUP(S1028, 'Data order'!$AC$102:$AD$116, 2, FALSE),\n          VLOOKUP(S1028, 'Data order'!$AC$2:$AD$91, 2, FALSE)\n      )\n  ),\n\"\")","v":""},null,null,null,null,"EUR",null,null,null,{"$error":"#DIV/0!"},0,0,null,"","","","","","","","","","",null,null,null,null,null,null,null,null,null,null,null,null,null,null,null,null,null,"ZWO"]
[null,null,null,null,null,{"$f":"VLOOKUP(G1029,'Data order'!Z:AA,2,0)","v":{"$error":"#N/A"}},null,null,null,null,null,null,null,null,{"$f":"VLOOKUP(N1029,Tabel10[[korte omschrijving]:[MCC3_CODE]],2,0)","v":{"$error":"#N/A"}},{"$f":"VLOOKUP(N1029,'Data order'!M:O,3,0)","v":{"$error":"#N/A"}},null,null,null,{"$f":"IFERROR(\n  IF(R1029=\"Big&Tall\",\n      VLOOKUP(S1029, 'Data order'!$AC$92:$AD$101, 2, FALSE),\n      IF(R1029=\"Boordmaat\",\n          VLOOKUP(S1029, 'Data order'!$AC$102:$AD$116, 2, FALSE),\n          VLOOKUP(S1029, 'Data order'!$AC$2:$AD$91, 2, FALSE)\n      )\n  ),\n\"\")","v":""},null,null,null,null,"EUR",null,null,null,{"$error":"#DIV/0!"},0,0,null,"","","","","","","","","","",null,null,null,null,null,null,null,null,null,null,null,null,null,null,null,null,null,"ZWO"]
[null,null,null,null,null,{"$f":"VLOOKUP(G1030,'Data order'!Z:AA,2,0)","v":{"$error":"#N/A"}},null,null,null,null,null,null,null,null,{"$f":"VLOOKUP(N1030,Tabel10[[korte omschrijving]:[MCC3_CODE]],2,0)","v":{"$error":"#N/A"}},{"$f":"VLOOKUP(N1030,'Data order'!M:O,3,0)","v":{"$error":"#N/A"}},null,null,null,{"$f":"IFERROR(\n  IF(R1030=\"Big&Tall\",\n      VLOOKUP(S1030, 'Data order'!$AC$92:$AD$101, 2, FALSE),\n      IF(R1030=\"Boordmaat\",\n          VLOOKUP(S1030, 'Data order'!$AC$102:$AD$116, 2, FALSE),\n          VLOOKUP(S1030, 'Data order'!$AC$2:$AD$91, 2, FALSE)\n      )\n  ),\n\"\")","v":""},null,null,null,null,"EUR",null,null,null,{"$error":"#DIV/0!"},0,0,null,"","","","","","","","","","",null,null,null,null,null,null,null,null,null,null,null,null,null,null,null,null,null,"ZWO"]
[null,null,null,null,null,{"$f":"VLOOKUP(G1031,'Data order'!Z:AA,2,0)","v":{"$error":"#N/A"}},null,null,null,null,null,null,null,null,{"$f":"VLOOKUP(N1031,Tabel10[[korte omschrijving]:[MCC3_CODE]],2,0)","v":{"$error":"#N/A"}},{"$f":"VLOOKUP(N1031,'Data order'!M:O,3,0)","v":{"$error":"#N/A"}},null,null,null,{"$f":"IFERROR(\n  IF(R1031=\"Big&Tall\",\n      VLOOKUP(S1031, 'Data order'!$AC$92:$AD$101, 2, FALSE),\n      IF(R1031=\"Boordmaat\",\n          VLOOKUP(S1031, 'Data order'!$AC$102:$AD$116, 2, FALSE),\n          VLOOKUP(S1031, 'Data order'!$AC$2:$AD$91, 2, FALSE)\n      )\n  ),\n\"\")","v":""},null,null,null,null,"EUR",null,null,null,{"$error":"#DIV/0!"},0,0,null,"","","","","","","","","","",null,null,null,null,null,null,null,null,null,null,null,null,null,null,null,null,null,"ZWO"]
[null,null,null,null,null,{"$f":"VLOOKUP(G1032,'Data order'!Z:AA,2,0)","v":{"$error":"#N/A"}},null,null,null,null,null,null,null,null,{"$f":"VLOOKUP(N1032,Tabel10[[korte omschrijving]:[MCC3_CODE]],2,0)","v":{"$error":"#N/A"}},{"$f":"VLOOKUP(N1032,'Data order'!M:O,3,0)","v":{"$error":"#N/A"}},null,null,null,{"$f":"IFERROR(\n  IF(R1032=\"Big&Tall\",\n      VLOOKUP(S1032, 'Data order'!$AC$92:$AD$101, 2, FALSE),\n      IF(R1032=\"Boordmaat\",\n          VLOOKUP(S1032, 'Data order'!$AC$102:$AD$116, 2, FALSE),\n          VLOOKUP(S1032, 'Data order'!$AC$2:$AD$91, 2, FALSE)\n      )\n  ),\n\"\")","v":""},null,{"$f":"SUM(U1032:U1037)","v":0},null,null,"EUR",null,null,null,{"$f":"AB1032/Z1032","v":{"$error":"#DIV/0!"}},{"$f":"U1032*Z1032","v":0},{"$f":"U1032*AB1032","v":0},null,"","","","","","","","","","",null,null,null,null,null,null,null,null,null,null,null,null,null,null,null,null,null,"ZWO"]
[null,null,null,null,null,{"$f":"VLOOKUP(G1033,'Data order'!Z:AA,2,0)","v":{"$error":"#N/A"}},null,null,null,null,null,null,null,null,{"$f":"VLOOKUP(N1033,Tabel10[[korte omschrijving]:[MCC3_CODE]],2,0)","v":{"$error":"#N/A"}},{"$f":"VLOOKUP(N1033,'Data order'!M:O,3,0)","v":{"$error":"#N/A"}},null,null,null,{"$f":"IFERROR(\n  IF(R1033=\"Big&Tall\",\n      VLOOKUP(S1033, 'Data order'!$AC$92:$AD$101, 2, FALSE),\n      IF(R1033=\"Boordmaat\",\n          VLOOKUP(S1033, 'Data order'!$AC$102:$AD$116, 2, FALSE),\n          VLOOKUP(S1033, 'Data order'!$AC$2:$AD$91, 2, FALSE)\n      )\n  ),\n\"\")","v":""},null,null,null,null,"EUR",null,null,null,{"$error":"#DIV/0!"},0,0,null,"","","","","","","","","","",null,null,null,null,null,null,null,null,null,null,null,null,null,null,null,null,null,"ZWO"]
[null,null,null,null,null,{"$f":"VLOOKUP(G1034,'Data order'!Z:AA,2,0)","v":{"$error":"#N/A"}},null,null,null,null,null,null,null,null,{"$f":"VLOOKUP(N1034,Tabel10[[korte omschrijving]:[MCC3_CODE]],2,0)","v":{"$error":"#N/A"}},{"$f":"VLOOKUP(N1034,'Data order'!M:O,3,0)","v":{"$error":"#N/A"}},null,null,null,{"$f":"IFERROR(\n  IF(R1034=\"Big&Tall\",\n      VLOOKUP(S1034, 'Data order'!$AC$92:$AD$101, 2, FALSE),\n      IF(R1034=\"Boordmaat\",\n          VLOOKUP(S1034, 'Data order'!$AC$102:$AD$116, 2, FALSE),\n          VLOOKUP(S1034, 'Data order'!$AC$2:$AD$91, 2, FALSE)\n      )\n  ),\n\"\")","v":""},null,null,null,null,"EUR",null,null,null,{"$error":"#DIV/0!"},0,0,null,"","","","","","","","","","",null,null,null,null,null,null,null,null,null,null,null,null,null,null,null,null,null,"ZWO"]
[null,null,null,null,null,{"$f":"VLOOKUP(G1035,'Data order'!Z:AA,2,0)","v":{"$error":"#N/A"}},null,null,null,null,null,null,null,null,{"$f":"VLOOKUP(N1035,Tabel10[[korte omschrijving]:[MCC3_CODE]],2,0)","v":{"$error":"#N/A"}},{"$f":"VLOOKUP(N1035,'Data order'!M:O,3,0)","v":{"$error":"#N/A"}},null,null,null,{"$f":"IFERROR(\n  IF(R1035=\"Big&Tall\",\n      VLOOKUP(S1035, 'Data order'!$AC$92:$AD$101, 2, FALSE),\n      IF(R1035=\"Boordmaat\",\n          VLOOKUP(S1035, 'Data order'!$AC$102:$AD$116, 2, FALSE),\n          VLOOKUP(S1035, 'Data order'!$AC$2:$AD$91, 2, FALSE)\n      )\n  ),\n\"\")","v":""},null,null,null,null,"EUR",null,null,null,{"$error":"#DIV/0!"},0,0,null,"","","","","","","","","","",null,null,null,null,null,null,null,null,null,null,null,null,null,null,null,null,null,"ZWO"]
[null,null,null,null,null,{"$f":"VLOOKUP(G1036,'Data order'!Z:AA,2,0)","v":{"$error":"#N/A"}},null,null,null,null,null,null,null,null,{"$f":"VLOOKUP(N1036,Tabel10[[korte omschrijving]:[MCC3_CODE]],2,0)","v":{"$error":"#N/A"}},{"$f":"VLOOKUP(N1036,'Data order'!M:O,3,0)","v":{"$error":"#N/A"}},null,null,null,{"$f":"IFERROR(\n  IF(R1036=\"Big&Tall\",\n      VLOOKUP(S1036, 'Data order'!$AC$92:$AD$101, 2, FALSE),\n      IF(R1036=\"Boordmaat\",\n          VLOOKUP(S1036, 'Data order'!$AC$102:$AD$116, 2, FALSE),\n          VLOOKUP(S1036, 'Data order'!$AC$2:$AD$91, 2, FALSE)\n      )\n  ),\n\"\")","v":""},null,null,null,null,"EUR",null,null,null,{"$error":"#DIV/0!"},0,0,null,"","","","","","","","","","",null,null,null,null,null,null,null,null,null,null,null,null,null,null,null,null,null,"ZWO"]
[null,null,null,null,null,{"$f":"VLOOKUP(G1037,'Data order'!Z:AA,2,0)","v":{"$error":"#N/A"}},null,null,null,null,null,null,null,null,{"$f":"VLOOKUP(N1037,Tabel10[[korte omschrijving]:[MCC3_CODE]],2,0)","v":{"$error":"#N/A"}},{"$f":"VLOOKUP(N1037,'Data order'!M:O,3,0)","v":{"$error":"#N/A"}},null,null,null,{"$f":"IFERROR(\n  IF(R1037=\"Big&Tall\",\n      VLOOKUP(S1037, 'Data order'!$AC$92:$AD$101, 2, FALSE),\n      IF(R1037=\"Boordmaat\",\n          VLOOKUP(S1037, 'Data order'!$AC$102:$AD$116, 2, FALSE),\n          VLOOKUP(S1037, 'Data order'!$AC$2:$AD$91, 2, FALSE)\n      )\n  ),\n\"\")","v":""},null,null,null,null,"EUR",null,null,null,{"$error":"#DIV/0!"},0,0,null,"","","","","","","","","","",null,null,null,null,null,null,null,null,null,null,null,null,null,null,null,null,null,"ZWO"]
[null,null,null,null,null,{"$f":"VLOOKUP(G1038,'Data order'!Z:AA,2,0)","v":{"$error":"#N/A"}},null,null,null,null,null,null,null,null,{"$f":"VLOOKUP(N1038,Tabel10[[korte omschrijving]:[MCC3_CODE]],2,0)","v":{"$error":"#N/A"}},{"$f":"VLOOKUP(N1038,'Data order'!M:O,3,0)","v":{"$error":"#N/A"}},null,null,null,{"$f":"IFERROR(\n  IF(R1038=\"Big&Tall\",\n      VLOOKUP(S1038, 'Data order'!$AC$92:$AD$101, 2, FALSE),\n      IF(R1038=\"Boordmaat\",\n          VLOOKUP(S1038, 'Data order'!$AC$102:$AD$116, 2, FALSE),\n          VLOOKUP(S1038, 'Data order'!$AC$2:$AD$91, 2, FALSE)\n      )\n  ),\n\"\")","v":""},null,0,null,null,"EUR",null,null,null,{"$f":"AB1038/Z1038","v":{"$error":"#DIV/0!"}},{"$f":"U1038*Z1038","v":0},{"$f":"U1038*AB1038","v":0},null,"","","","","","","","","","",null,null,null,null,null,null,null,null,null,null,null,null,null,null,null,null,null,"ZWO"]
[null,null,null,null,null,{"$f":"VLOOKUP(G1039,'Data order'!Z:AA,2,0)","v":{"$error":"#N/A"}},null,null,null,null,null,null,null,null,{"$f":"VLOOKUP(N1039,Tabel10[[korte omschrijving]:[MCC3_CODE]],2,0)","v":{"$error":"#N/A"}},{"$f":"VLOOKUP(N1039,'Data order'!M:O,3,0)","v":{"$error":"#N/A"}},null,null,null,{"$f":"IFERROR(\n  IF(R1039=\"Big&Tall\",\n      VLOOKUP(S1039, 'Data order'!$AC$92:$AD$101, 2, FALSE),\n      IF(R1039=\"Boordmaat\",\n          VLOOKUP(S1039, 'Data order'!$AC$102:$AD$116, 2, FALSE),\n          VLOOKUP(S1039, 'Data order'!$AC$2:$AD$91, 2, FALSE)\n      )\n  ),\n\"\")","v":""},null,null,null,null,"EUR",null,null,null,{"$error":"#DIV/0!"},0,0,null,"","","","","","","","","","",null,null,null,null,null,null,null,null,null,null,null,null,null,null,null,null,null,"ZWO"]
[null,null,null,null,null,{"$f":"VLOOKUP(G1040,'Data order'!Z:AA,2,0)","v":{"$error":"#N/A"}},null,null,null,null,null,null,null,null,{"$f":"VLOOKUP(N1040,Tabel10[[korte omschrijving]:[MCC3_CODE]],2,0)","v":{"$error":"#N/A"}},{"$f":"VLOOKUP(N1040,'Data order'!M:O,3,0)","v":{"$error":"#N/A"}},null,null,null,{"$f":"IFERROR(\n  IF(R1040=\"Big&Tall\",\n      VLOOKUP(S1040, 'Data order'!$AC$92:$AD$101, 2, FALSE),\n      IF(R1040=\"Boordmaat\",\n          VLOOKUP(S1040, 'Data order'!$AC$102:$AD$116, 2, FALSE),\n          VLOOKUP(S1040, 'Data order'!$AC$2:$AD$91, 2, FALSE)\n      )\n  ),\n\"\")","v":""},null,null,null,null,"EUR",null,null,null,{"$error":"#DIV/0!"},0,0,null,"","","","","","","","","","",null,null,null,null,null,null,null,null,null,null,null,null,null,null,null,null,null,"ZWO"]
[null,null,null,null,null,{"$f":"VLOOKUP(G1041,'Data order'!Z:AA,2,0)","v":{"$error":"#N/A"}},null,null,null,null,null,null,null,null,{"$f":"VLOOKUP(N1041,Tabel10[[korte omschrijving]:[MCC3_CODE]],2,0)","v":{"$error":"#N/A"}},{"$f":"VLOOKUP(N1041,'Data order'!M:O,3,0)","v":{"$error":"#N/A"}},null,null,null,{"$f":"IFERROR(\n  IF(R1041=\"Big&Tall\",\n      VLOOKUP(S1041, 'Data order'!$AC$92:$AD$101, 2, FALSE),\n      IF(R1041=\"Boordmaat\",\n          VLOOKUP(S1041, 'Data order'!$AC$102:$AD$116, 2, FALSE),\n          VLOOKUP(S1041, 'Data order'!$AC$2:$AD$91, 2, FALSE)\n      )\n  ),\n\"\")","v":""},null,null,null,null,"EUR",null,null,null,{"$error":"#DIV/0!"},0,0,null,"","","","","","","","","","",null,null,null,null,null,null,null,null,null,null,null,null,null,null,null,null,null,"ZWO"]
[null,null,null,null,null,{"$f":"VLOOKUP(G1042,'Data order'!Z:AA,2,0)","v":{"$error":"#N/A"}},null,null,null,null,null,null,null,null,{"$f":"VLOOKUP(N1042,Tabel10[[korte omschrijving]:[MCC3_CODE]],2,0)","v":{"$error":"#N/A"}},{"$f":"VLOOKUP(N1042,'Data order'!M:O,3,0)","v":{"$error":"#N/A"}},null,null,null,{"$f":"IFERROR(\n  IF(R1042=\"Big&Tall\",\n      VLOOKUP(S1042, 'Data order'!$AC$92:$AD$101, 2, FALSE),\n      IF(R1042=\"Boordmaat\",\n          VLOOKUP(S1042, 'Data order'!$AC$102:$AD$116, 2, FALSE),\n          VLOOKUP(S1042, 'Data order'!$AC$2:$AD$91, 2, FALSE)\n      )\n  ),\n\"\")","v":""},null,null,null,null,"EUR",null,null,null,{"$error":"#DIV/0!"},0,0,null,"","","","","","","","","","",null,null,null,null,null,null,null,null,null,null,null,null,null,null,null,null,null,"ZWO"]
[null,null,null,null,null,{"$f":"VLOOKUP(G1043,'Data order'!Z:AA,2,0)","v":{"$error":"#N/A"}},null,null,null,null,null,null,null,null,{"$f":"VLOOKUP(N1043,Tabel10[[korte omschrijving]:[MCC3_CODE]],2,0)","v":{"$error":"#N/A"}},{"$f":"VLOOKUP(N1043,'Data order'!M:O,3,0)","v":{"$error":"#N/A"}},null,null,null,{"$f":"IFERROR(\n  IF(R1043=\"Big&Tall\",\n      VLOOKUP(S1043, 'Data order'!$AC$92:$AD$101, 2, FALSE),\n      IF(R1043=\"Boordmaat\",\n          VLOOKUP(S1043, 'Data order'!$AC$102:$AD$116, 2, FALSE),\n          VLOOKUP(S1043, 'Data order'!$AC$2:$AD$91, 2, FALSE)\n      )\n  ),\n\"\")","v":""},null,null,null,null,"EUR",null,null,null,{"$error":"#DIV/0!"},0,0,null,"","","","","","","","","","",null,null,null,null,null,null,null,null,null,null,null,null,null,null,null,null,null,"ZWO"]
[null,null,null,null,null,{"$f":"VLOOKUP(G1044,'Data order'!Z:AA,2,0)","v":{"$error":"#N/A"}},null,null,null,null,null,null,null,null,{"$f":"VLOOKUP(N1044,Tabel10[[korte omschrijving]:[MCC3_CODE]],2,0)","v":{"$error":"#N/A"}},{"$f":"VLOOKUP(N1044,'Data order'!M:O,3,0)","v":{"$error":"#N/A"}},null,null,null,{"$f":"IFERROR(\n  IF(R1044=\"Big&Tall\",\n      VLOOKUP(S1044, 'Data order'!$AC$92:$AD$101, 2, FALSE),\n      IF(R1044=\"Boordmaat\",\n          VLOOKUP(S1044, 'Data order'!$AC$102:$AD$116, 2, FALSE),\n          VLOOKUP(S1044, 'Data order'!$AC$2:$AD$91, 2, FALSE)\n      )\n  ),\n\"\")","v":""},null,0,null,null,"EUR",null,null,null,{"$f":"AB1044/Z1044","v":{"$error":"#DIV/0!"}},{"$f":"U1044*Z1044","v":0},{"$f":"U1044*AB1044","v":0},null,"","","","","","","","","","",null,null,null,null,null,null,null,null,null,null,null,null,null,null,null,null,null,"ZWO"]
[null,null,null,null,null,{"$f":"VLOOKUP(G1045,'Data order'!Z:AA,2,0)","v":{"$error":"#N/A"}},null,null,null,null,null,null,null,null,{"$f":"VLOOKUP(N1045,Tabel10[[korte omschrijving]:[MCC3_CODE]],2,0)","v":{"$error":"#N/A"}},{"$f":"VLOOKUP(N1045,'Data order'!M:O,3,0)","v":{"$error":"#N/A"}},null,null,null,{"$f":"IFERROR(\n  IF(R1045=\"Big&Tall\",\n      VLOOKUP(S1045, 'Data order'!$AC$92:$AD$101, 2, FALSE),\n      IF(R1045=\"Boordmaat\",\n          VLOOKUP(S1045, 'Data order'!$AC$102:$AD$116, 2, FALSE),\n          VLOOKUP(S1045, 'Data order'!$AC$2:$AD$91, 2, FALSE)\n      )\n  ),\n\"\")","v":""},null,null,null,null,"EUR",null,null,null,{"$error":"#DIV/0!"},0,0,null,"","","","","","","","","","",null,null,null,null,null,null,null,null,null,null,null,null,null,null,null,null,null,"ZWO"]
[null,null,null,null,null,{"$f":"VLOOKUP(G1046,'Data order'!Z:AA,2,0)","v":{"$error":"#N/A"}},null,null,null,null,null,null,null,null,{"$f":"VLOOKUP(N1046,Tabel10[[korte omschrijving]:[MCC3_CODE]],2,0)","v":{"$error":"#N/A"}},{"$f":"VLOOKUP(N1046,'Data order'!M:O,3,0)","v":{"$error":"#N/A"}},null,null,null,{"$f":"IFERROR(\n  IF(R1046=\"Big&Tall\",\n      VLOOKUP(S1046, 'Data order'!$AC$92:$AD$101, 2, FALSE),\n      IF(R1046=\"Boordmaat\",\n          VLOOKUP(S1046, 'Data order'!$AC$102:$AD$116, 2, FALSE),\n          VLOOKUP(S1046, 'Data order'!$AC$2:$AD$91, 2, FALSE)\n      )\n  ),\n\"\")","v":""},null,null,null,null,"EUR",null,null,null,{"$error":"#DIV/0!"},0,0,null,"","","","","","","","","","",null,null,null,null,null,null,null,null,null,null,null,null,null,null,null,null,null,"ZWO"]
[null,null,null,null,null,{"$f":"VLOOKUP(G1047,'Data order'!Z:AA,2,0)","v":{"$error":"#N/A"}},null,null,null,null,null,null,null,null,{"$f":"VLOOKUP(N1047,Tabel10[[korte omschrijving]:[MCC3_CODE]],2,0)","v":{"$error":"#N/A"}},{"$f":"VLOOKUP(N1047,'Data order'!M:O,3,0)","v":{"$error":"#N/A"}},null,null,null,{"$f":"IFERROR(\n  IF(R1047=\"Big&Tall\",\n      VLOOKUP(S1047, 'Data order'!$AC$92:$AD$101, 2, FALSE),\n      IF(R1047=\"Boordmaat\",\n          VLOOKUP(S1047, 'Data order'!$AC$102:$AD$116, 2, FALSE),\n          VLOOKUP(S1047, 'Data order'!$AC$2:$AD$91, 2, FALSE)\n      )\n  ),\n\"\")","v":""},null,null,null,null,"EUR",null,null,null,{"$error":"#DIV/0!"},0,0,null,"","","","","","","","","","",null,null,null,null,null,null,null,null,null,null,null,null,null,null,null,null,null,"ZWO"]
[null,null,null,null,null,{"$f":"VLOOKUP(G1048,'Data order'!Z:AA,2,0)","v":{"$error":"#N/A"}},null,null,null,null,null,null,null,null,{"$f":"VLOOKUP(N1048,Tabel10[[korte omschrijving]:[MCC3_CODE]],2,0)","v":{"$error":"#N/A"}},{"$f":"VLOOKUP(N1048,'Data order'!M:O,3,0)","v":{"$error":"#N/A"}},null,null,null,{"$f":"IFERROR(\n  IF(R1048=\"Big&Tall\",\n      VLOOKUP(S1048, 'Data order'!$AC$92:$AD$101, 2, FALSE),\n      IF(R1048=\"Boordmaat\",\n          VLOOKUP(S1048, 'Data order'!$AC$102:$AD$116, 2, FALSE),\n          VLOOKUP(S1048, 'Data order'!$AC$2:$AD$91, 2, FALSE)\n      )\n  ),\n\"\")","v":""},null,null,null,null,"EUR",null,null,null,{"$error":"#DIV/0!"},0,0,null,"","","","","","","","","","",null,null,null,null,null,null,null,null,null,null,null,null,null,null,null,null,null,"ZWO"]
[null,null,null,null,null,{"$f":"VLOOKUP(G1049,'Data order'!Z:AA,2,0)","v":{"$error":"#N/A"}},null,null,null,null,null,null,null,null,{"$f":"VLOOKUP(N1049,Tabel10[[korte omschrijving]:[MCC3_CODE]],2,0)","v":{"$error":"#N/A"}},{"$f":"VLOOKUP(N1049,'Data order'!M:O,3,0)","v":{"$error":"#N/A"}},null,null,null,{"$f":"IFERROR(\n  IF(R1049=\"Big&Tall\",\n      VLOOKUP(S1049, 'Data order'!$AC$92:$AD$101, 2, FALSE),\n      IF(R1049=\"Boordmaat\",\n          VLOOKUP(S1049, 'Data order'!$AC$102:$AD$116, 2, FALSE),\n          VLOOKUP(S1049, 'Data order'!$AC$2:$AD$91, 2, FALSE)\n      )\n  ),\n\"\")","v":""},null,null,null,null,"EUR",null,null,null,{"$error":"#DIV/0!"},0,0,null,"","","","","","","","","","",null,null,null,null,null,null,null,null,null,null,null,null,null,null,null,null,null,"ZWO"]
[null,null,null,null,null,{"$f":"VLOOKUP(G1050,'Data order'!Z:AA,2,0)","v":{"$error":"#N/A"}},null,null,null,null,null,null,null,null,{"$f":"VLOOKUP(N1050,Tabel10[[korte omschrijving]:[MCC3_CODE]],2,0)","v":{"$error":"#N/A"}},{"$f":"VLOOKUP(N1050,'Data order'!M:O,3,0)","v":{"$error":"#N/A"}},null,null,null,{"$f":"IFERROR(\n  IF(R1050=\"Big&Tall\",\n      VLOOKUP(S1050, 'Data order'!$AC$92:$AD$101, 2, FALSE),\n      IF(R1050=\"Boordmaat\",\n          VLOOKUP(S1050, 'Data order'!$AC$102:$AD$116, 2, FALSE),\n          VLOOKUP(S1050, 'Data order'!$AC$2:$AD$91, 2, FALSE)\n      )\n  ),\n\"\")","v":""},null,0,null,null,"EUR",null,null,null,{"$f":"AB1050/Z1050","v":{"$error":"#DIV/0!"}},{"$f":"U1050*Z1050","v":0},{"$f":"U1050*AB1050","v":0},null,"","","","","","","","","","",null,null,null,null,null,null,null,null,null,null,null,null,null,null,null,null,null,"ZWO"]
[null,null,null,null,null,{"$f":"VLOOKUP(G1051,'Data order'!Z:AA,2,0)","v":{"$error":"#N/A"}},null,null,null,null,null,null,null,null,{"$f":"VLOOKUP(N1051,Tabel10[[korte omschrijving]:[MCC3_CODE]],2,0)","v":{"$error":"#N/A"}},{"$f":"VLOOKUP(N1051,'Data order'!M:O,3,0)","v":{"$error":"#N/A"}},null,null,null,{"$f":"IFERROR(\n  IF(R1051=\"Big&Tall\",\n      VLOOKUP(S1051, 'Data order'!$AC$92:$AD$101, 2, FALSE),\n      IF(R1051=\"Boordmaat\",\n          VLOOKUP(S1051, 'Data order'!$AC$102:$AD$116, 2, FALSE),\n          VLOOKUP(S1051, 'Data order'!$AC$2:$AD$91, 2, FALSE)\n      )\n  ),\n\"\")","v":""},null,null,null,null,"EUR",null,null,null,{"$error":"#DIV/0!"},0,0,null,"","","","","","","","","","",null,null,null,null,null,null,null,null,null,null,null,null,null,null,null,null,null,"ZWO"]
[null,null,null,null,null,{"$f":"VLOOKUP(G1052,'Data order'!Z:AA,2,0)","v":{"$error":"#N/A"}},null,null,null,null,null,null,null,null,{"$f":"VLOOKUP(N1052,Tabel10[[korte omschrijving]:[MCC3_CODE]],2,0)","v":{"$error":"#N/A"}},{"$f":"VLOOKUP(N1052,'Data order'!M:O,3,0)","v":{"$error":"#N/A"}},null,null,null,{"$f":"IFERROR(\n  IF(R1052=\"Big&Tall\",\n      VLOOKUP(S1052, 'Data order'!$AC$92:$AD$101, 2, FALSE),\n      IF(R1052=\"Boordmaat\",\n          VLOOKUP(S1052, 'Data order'!$AC$102:$AD$116, 2, FALSE),\n          VLOOKUP(S1052, 'Data order'!$AC$2:$AD$91, 2, FALSE)\n      )\n  ),\n\"\")","v":""},null,null,null,null,"EUR",null,null,null,{"$error":"#DIV/0!"},0,0,null,"","","","","","","","","","",null,null,null,null,null,null,null,null,null,null,null,null,null,null,null,null,null,"ZWO"]
[null,null,null,null,null,{"$f":"VLOOKUP(G1053,'Data order'!Z:AA,2,0)","v":{"$error":"#N/A"}},null,null,null,null,null,null,null,null,{"$f":"VLOOKUP(N1053,Tabel10[[korte omschrijving]:[MCC3_CODE]],2,0)","v":{"$error":"#N/A"}},{"$f":"VLOOKUP(N1053,'Data order'!M:O,3,0)","v":{"$error":"#N/A"}},null,null,null,{"$f":"IFERROR(\n  IF(R1053=\"Big&Tall\",\n      VLOOKUP(S1053, 'Data order'!$AC$92:$AD$101, 2, FALSE),\n      IF(R1053=\"Boordmaat\",\n          VLOOKUP(S1053, 'Data order'!$AC$102:$AD$116, 2, FALSE),\n          VLOOKUP(S1053, 'Data order'!$AC$2:$AD$91, 2, FALSE)\n      )\n  ),\n\"\")","v":""},null,null,null,null,"EUR",null,null,null,{"$error":"#DIV/0!"},0,0,null,"","","","","","","","","","",null,null,null,null,null,null,null,null,null,null,null,null,null,null,null,null,null,"ZWO"]
[null,null,null,null,null,{"$f":"VLOOKUP(G1054,'Data order'!Z:AA,2,0)","v":{"$error":"#N/A"}},null,null,null,null,null,null,null,null,{"$f":"VLOOKUP(N1054,Tabel10[[korte omschrijving]:[MCC3_CODE]],2,0)","v":{"$error":"#N/A"}},{"$f":"VLOOKUP(N1054,'Data order'!M:O,3,0)","v":{"$error":"#N/A"}},null,null,null,{"$f":"IFERROR(\n  IF(R1054=\"Big&Tall\",\n      VLOOKUP(S1054, 'Data order'!$AC$92:$AD$101, 2, FALSE),\n      IF(R1054=\"Boordmaat\",\n          VLOOKUP(S1054, 'Data order'!$AC$102:$AD$116, 2, FALSE),\n          VLOOKUP(S1054, 'Data order'!$AC$2:$AD$91, 2, FALSE)\n      )\n  ),\n\"\")","v":""},null,null,null,null,"EUR",null,null,null,{"$error":"#DIV/0!"},0,0,null,"","","","","","","","","","",null,null,null,null,null,null,null,null,null,null,null,null,null,null,null,null,null,"ZWO"]
[null,null,null,null,null,{"$f":"VLOOKUP(G1055,'Data order'!Z:AA,2,0)","v":{"$error":"#N/A"}},null,null,null,null,null,null,null,null,{"$f":"VLOOKUP(N1055,Tabel10[[korte omschrijving]:[MCC3_CODE]],2,0)","v":{"$error":"#N/A"}},{"$f":"VLOOKUP(N1055,'Data order'!M:O,3,0)","v":{"$error":"#N/A"}},null,null,null,{"$f":"IFERROR(\n  IF(R1055=\"Big&Tall\",\n      VLOOKUP(S1055, 'Data order'!$AC$92:$AD$101, 2, FALSE),\n      IF(R1055=\"Boordmaat\",\n          VLOOKUP(S1055, 'Data order'!$AC$102:$AD$116, 2, FALSE),\n          VLOOKUP(S1055, 'Data order'!$AC$2:$AD$91, 2, FALSE)\n      )\n  ),\n\"\")","v":""},null,null,null,null,"EUR",null,null,null,{"$error":"#DIV/0!"},0,0,null,"","","","","","","","","","",null,null,null,null,null,null,null,null,null,null,null,null,null,null,null,null,null,"ZWO"]
[null,null,null,null,null,{"$f":"VLOOKUP(G1056,'Data order'!Z:AA,2,0)","v":{"$error":"#N/A"}},null,null,null,null,null,null,null,null,{"$f":"VLOOKUP(N1056,Tabel10[[korte omschrijving]:[MCC3_CODE]],2,0)","v":{"$error":"#N/A"}},{"$f":"VLOOKUP(N1056,'Data order'!M:O,3,0)","v":{"$error":"#N/A"}},null,null,null,{"$f":"IFERROR(\n  IF(R1056=\"Big&Tall\",\n      VLOOKUP(S1056, 'Data order'!$AC$92:$AD$101, 2, FALSE),\n      IF(R1056=\"Boordmaat\",\n          VLOOKUP(S1056, 'Data order'!$AC$102:$AD$116, 2, FALSE),\n          VLOOKUP(S1056, 'Data order'!$AC$2:$AD$91, 2, FALSE)\n      )\n  ),\n\"\")","v":""},null,0,null,null,"EUR",null,null,null,{"$f":"AB1056/Z1056","v":{"$error":"#DIV/0!"}},{"$f":"U1056*Z1056","v":0},{"$f":"U1056*AB1056","v":0},null,"","","","","","","","","","",null,null,null,null,null,null,null,null,null,null,null,null,null,null,null,null,null,"ZWO"]
[null,null,null,null,null,{"$f":"VLOOKUP(G1057,'Data order'!Z:AA,2,0)","v":{"$error":"#N/A"}},null,null,null,null,null,null,null,null,{"$f":"VLOOKUP(N1057,Tabel10[[korte omschrijving]:[MCC3_CODE]],2,0)","v":{"$error":"#N/A"}},{"$f":"VLOOKUP(N1057,'Data order'!M:O,3,0)","v":{"$error":"#N/A"}},null,null,null,{"$f":"IFERROR(\n  IF(R1057=\"Big&Tall\",\n      VLOOKUP(S1057, 'Data order'!$AC$92:$AD$101, 2, FALSE),\n      IF(R1057=\"Boordmaat\",\n          VLOOKUP(S1057, 'Data order'!$AC$102:$AD$116, 2, FALSE),\n          VLOOKUP(S1057, 'Data order'!$AC$2:$AD$91, 2, FALSE)\n      )\n  ),\n\"\")","v":""},null,null,null,null,"EUR",null,null,null,{"$error":"#DIV/0!"},0,0,null,"","","","","","","","","","",null,null,null,null,null,null,null,null,null,null,null,null,null,null,null,null,null,"ZWO"]
[null,null,null,null,null,{"$f":"VLOOKUP(G1058,'Data order'!Z:AA,2,0)","v":{"$error":"#N/A"}},null,null,null,null,null,null,null,null,{"$f":"VLOOKUP(N1058,Tabel10[[korte omschrijving]:[MCC3_CODE]],2,0)","v":{"$error":"#N/A"}},{"$f":"VLOOKUP(N1058,'Data order'!M:O,3,0)","v":{"$error":"#N/A"}},null,null,null,{"$f":"IFERROR(\n  IF(R1058=\"Big&Tall\",\n      VLOOKUP(S1058, 'Data order'!$AC$92:$AD$101, 2, FALSE),\n      IF(R1058=\"Boordmaat\",\n          VLOOKUP(S1058, 'Data order'!$AC$102:$AD$116, 2, FALSE),\n          VLOOKUP(S1058, 'Data order'!$AC$2:$AD$91, 2, FALSE)\n      )\n  ),\n\"\")","v":""},null,null,null,null,"EUR",null,null,null,{"$error":"#DIV/0!"},0,0,null,"","","","","","","","","","",null,null,null,null,null,null,null,null,null,null,null,null,null,null,null,null,null,"ZWO"]
[null,null,null,null,null,{"$f":"VLOOKUP(G1059,'Data order'!Z:AA,2,0)","v":{"$error":"#N/A"}},null,null,null,null,null,null,null,null,{"$f":"VLOOKUP(N1059,Tabel10[[korte omschrijving]:[MCC3_CODE]],2,0)","v":{"$error":"#N/A"}},{"$f":"VLOOKUP(N1059,'Data order'!M:O,3,0)","v":{"$error":"#N/A"}},null,null,null,{"$f":"IFERROR(\n  IF(R1059=\"Big&Tall\",\n      VLOOKUP(S1059, 'Data order'!$AC$92:$AD$101, 2, FALSE),\n      IF(R1059=\"Boordmaat\",\n          VLOOKUP(S1059, 'Data order'!$AC$102:$AD$116, 2, FALSE),\n          VLOOKUP(S1059, 'Data order'!$AC$2:$AD$91, 2, FALSE)\n      )\n  ),\n\"\")","v":""},null,null,null,null,"EUR",null,null,null,{"$error":"#DIV/0!"},0,0,null,"","","","","","","","","","",null,null,null,null,null,null,null,null,null,null,null,null,null,null,null,null,null,"ZWO"]
[null,null,null,null,null,{"$f":"VLOOKUP(G1060,'Data order'!Z:AA,2,0)","v":{"$error":"#N/A"}},null,null,null,null,null,null,null,null,{"$f":"VLOOKUP(N1060,Tabel10[[korte omschrijving]:[MCC3_CODE]],2,0)","v":{"$error":"#N/A"}},{"$f":"VLOOKUP(N1060,'Data order'!M:O,3,0)","v":{"$error":"#N/A"}},null,null,null,{"$f":"IFERROR(\n  IF(R1060=\"Big&Tall\",\n      VLOOKUP(S1060, 'Data order'!$AC$92:$AD$101, 2, FALSE),\n      IF(R1060=\"Boordmaat\",\n          VLOOKUP(S1060, 'Data order'!$AC$102:$AD$116, 2, FALSE),\n          VLOOKUP(S1060, 'Data order'!$AC$2:$AD$91, 2, FALSE)\n      )\n  ),\n\"\")","v":""},null,null,null,null,"EUR",null,null,null,{"$error":"#DIV/0!"},0,0,null,"","","","","","","","","","",null,null,null,null,null,null,null,null,null,null,null,null,null,null,null,null,null,"ZWO"]
[null,null,null,null,null,{"$f":"VLOOKUP(G1061,'Data order'!Z:AA,2,0)","v":{"$error":"#N/A"}},null,null,null,null,null,null,null,null,{"$f":"VLOOKUP(N1061,Tabel10[[korte omschrijving]:[MCC3_CODE]],2,0)","v":{"$error":"#N/A"}},{"$f":"VLOOKUP(N1061,'Data order'!M:O,3,0)","v":{"$error":"#N/A"}},null,null,null,{"$f":"IFERROR(\n  IF(R1061=\"Big&Tall\",\n      VLOOKUP(S1061, 'Data order'!$AC$92:$AD$101, 2, FALSE),\n      IF(R1061=\"Boordmaat\",\n          VLOOKUP(S1061, 'Data order'!$AC$102:$AD$116, 2, FALSE),\n          VLOOKUP(S1061, 'Data order'!$AC$2:$AD$91, 2, FALSE)\n      )\n  ),\n\"\")","v":""},null,null,null,null,"EUR",null,null,null,{"$error":"#DIV/0!"},0,0,null,"","","","","","","","","","",null,null,null,null,null,null,null,null,null,null,null,null,null,null,null,null,null,"ZWO"]
[null,null,null,null,null,{"$f":"VLOOKUP(G1062,'Data order'!Z:AA,2,0)","v":{"$error":"#N/A"}},null,null,null,null,null,null,null,null,{"$f":"VLOOKUP(N1062,Tabel10[[korte omschrijving]:[MCC3_CODE]],2,0)","v":{"$error":"#N/A"}},{"$f":"VLOOKUP(N1062,'Data order'!M:O,3,0)","v":{"$error":"#N/A"}},null,null,null,{"$f":"IFERROR(\n  IF(R1062=\"Big&Tall\",\n      VLOOKUP(S1062, 'Data order'!$AC$92:$AD$101, 2, FALSE),\n      IF(R1062=\"Boordmaat\",\n          VLOOKUP(S1062, 'Data order'!$AC$102:$AD$116, 2, FALSE),\n          VLOOKUP(S1062, 'Data order'!$AC$2:$AD$91, 2, FALSE)\n      )\n  ),\n\"\")","v":""},null,0,null,null,"EUR",null,null,null,{"$f":"AB1062/Z1062","v":{"$error":"#DIV/0!"}},{"$f":"U1062*Z1062","v":0},{"$f":"U1062*AB1062","v":0},null,"","","","","","","","","","",null,null,null,null,null,null,null,null,null,null,null,null,null,null,null,null,null,"ZWO"]
[null,null,null,null,null,{"$f":"VLOOKUP(G1063,'Data order'!Z:AA,2,0)","v":{"$error":"#N/A"}},null,null,null,null,null,null,null,null,{"$f":"VLOOKUP(N1063,Tabel10[[korte omschrijving]:[MCC3_CODE]],2,0)","v":{"$error":"#N/A"}},{"$f":"VLOOKUP(N1063,'Data order'!M:O,3,0)","v":{"$error":"#N/A"}},null,null,null,{"$f":"IFERROR(\n  IF(R1063=\"Big&Tall\",\n      VLOOKUP(S1063, 'Data order'!$AC$92:$AD$101, 2, FALSE),\n      IF(R1063=\"Boordmaat\",\n          VLOOKUP(S1063, 'Data order'!$AC$102:$AD$116, 2, FALSE),\n          VLOOKUP(S1063, 'Data order'!$AC$2:$AD$91, 2, FALSE)\n      )\n  ),\n\"\")","v":""},null,null,null,null,"EUR",null,null,null,{"$error":"#DIV/0!"},0,0,null,"","","","","","","","","","",null,null,null,null,null,null,null,null,null,null,null,null,null,null,null,null,null,"ZWO"]
[null,null,null,null,null,{"$f":"VLOOKUP(G1064,'Data order'!Z:AA,2,0)","v":{"$error":"#N/A"}},null,null,null,null,null,null,null,null,{"$f":"VLOOKUP(N1064,Tabel10[[korte omschrijving]:[MCC3_CODE]],2,0)","v":{"$error":"#N/A"}},{"$f":"VLOOKUP(N1064,'Data order'!M:O,3,0)","v":{"$error":"#N/A"}},null,null,null,{"$f":"IFERROR(\n  IF(R1064=\"Big&Tall\",\n      VLOOKUP(S1064, 'Data order'!$AC$92:$AD$101, 2, FALSE),\n      IF(R1064=\"Boordmaat\",\n          VLOOKUP(S1064, 'Data order'!$AC$102:$AD$116, 2, FALSE),\n          VLOOKUP(S1064, 'Data order'!$AC$2:$AD$91, 2, FALSE)\n      )\n  ),\n\"\")","v":""},null,null,null,null,"EUR",null,null,null,{"$error":"#DIV/0!"},0,0,null,"","","","","","","","","","",null,null,null,null,null,null,null,null,null,null,null,null,null,null,null,null,null,"ZWO"]
[null,null,null,null,null,{"$f":"VLOOKUP(G1065,'Data order'!Z:AA,2,0)","v":{"$error":"#N/A"}},null,null,null,null,null,null,null,null,{"$f":"VLOOKUP(N1065,Tabel10[[korte omschrijving]:[MCC3_CODE]],2,0)","v":{"$error":"#N/A"}},{"$f":"VLOOKUP(N1065,'Data order'!M:O,3,0)","v":{"$error":"#N/A"}},null,null,null,{"$f":"IFERROR(\n  IF(R1065=\"Big&Tall\",\n      VLOOKUP(S1065, 'Data order'!$AC$92:$AD$101, 2, FALSE),\n      IF(R1065=\"Boordmaat\",\n          VLOOKUP(S1065, 'Data order'!$AC$102:$AD$116, 2, FALSE),\n          VLOOKUP(S1065, 'Data order'!$AC$2:$AD$91, 2, FALSE)\n      )\n  ),\n\"\")","v":""},null,null,null,null,"EUR",null,null,null,{"$error":"#DIV/0!"},0,0,null,"","","","","","","","","","",null,null,null,null,null,null,null,null,null,null,null,null,null,null,null,null,null,"ZWO"]
[null,null,null,null,null,{"$f":"VLOOKUP(G1066,'Data order'!Z:AA,2,0)","v":{"$error":"#N/A"}},null,null,null,null,null,null,null,null,{"$f":"VLOOKUP(N1066,Tabel10[[korte omschrijving]:[MCC3_CODE]],2,0)","v":{"$error":"#N/A"}},{"$f":"VLOOKUP(N1066,'Data order'!M:O,3,0)","v":{"$error":"#N/A"}},null,null,null,{"$f":"IFERROR(\n  IF(R1066=\"Big&Tall\",\n      VLOOKUP(S1066, 'Data order'!$AC$92:$AD$101, 2, FALSE),\n      IF(R1066=\"Boordmaat\",\n          VLOOKUP(S1066, 'Data order'!$AC$102:$AD$116, 2, FALSE),\n          VLOOKUP(S1066, 'Data order'!$AC$2:$AD$91, 2, FALSE)\n      )\n  ),\n\"\")","v":""},null,null,null,null,"EUR",null,null,null,{"$error":"#DIV/0!"},0,0,null,"","","","","","","","","","",null,null,null,null,null,null,null,null,null,null,null,null,null,null,null,null,null,"ZWO"]
[null,null,null,null,null,{"$f":"VLOOKUP(G1067,'Data order'!Z:AA,2,0)","v":{"$error":"#N/A"}},null,null,null,null,null,null,null,null,{"$f":"VLOOKUP(N1067,Tabel10[[korte omschrijving]:[MCC3_CODE]],2,0)","v":{"$error":"#N/A"}},{"$f":"VLOOKUP(N1067,'Data order'!M:O,3,0)","v":{"$error":"#N/A"}},null,null,null,{"$f":"IFERROR(\n  IF(R1067=\"Big&Tall\",\n      VLOOKUP(S1067, 'Data order'!$AC$92:$AD$101, 2, FALSE),\n      IF(R1067=\"Boordmaat\",\n          VLOOKUP(S1067, 'Data order'!$AC$102:$AD$116, 2, FALSE),\n          VLOOKUP(S1067, 'Data order'!$AC$2:$AD$91, 2, FALSE)\n      )\n  ),\n\"\")","v":""},null,null,null,null,"EUR",null,null,null,{"$error":"#DIV/0!"},0,0,null,"","","","","","","","","","",null,null,null,null,null,null,null,null,null,null,null,null,null,null,null,null,null,"ZWO"]
[null,null,null,null,null,{"$f":"VLOOKUP(G1068,'Data order'!Z:AA,2,0)","v":{"$error":"#N/A"}},null,null,null,null,null,null,null,null,{"$f":"VLOOKUP(N1068,Tabel10[[korte omschrijving]:[MCC3_CODE]],2,0)","v":{"$error":"#N/A"}},{"$f":"VLOOKUP(N1068,'Data order'!M:O,3,0)","v":{"$error":"#N/A"}},null,null,null,{"$f":"IFERROR(\n  IF(R1068=\"Big&Tall\",\n      VLOOKUP(S1068, 'Data order'!$AC$92:$AD$101, 2, FALSE),\n      IF(R1068=\"Boordmaat\",\n          VLOOKUP(S1068, 'Data order'!$AC$102:$AD$116, 2, FALSE),\n          VLOOKUP(S1068, 'Data order'!$AC$2:$AD$91, 2, FALSE)\n      )\n  ),\n\"\")","v":""},null,0,null,null,"EUR",null,null,null,{"$f":"AB1068/Z1068","v":{"$error":"#DIV/0!"}},{"$f":"U1068*Z1068","v":0},{"$f":"U1068*AB1068","v":0},null,"","","","","","","","","","",null,null,null,null,null,null,null,null,null,null,null,null,null,null,null,null,null,"ZWO"]
[null,null,null,null,null,{"$f":"VLOOKUP(G1069,'Data order'!Z:AA,2,0)","v":{"$error":"#N/A"}},null,null,null,null,null,null,null,null,{"$f":"VLOOKUP(N1069,Tabel10[[korte omschrijving]:[MCC3_CODE]],2,0)","v":{"$error":"#N/A"}},{"$f":"VLOOKUP(N1069,'Data order'!M:O,3,0)","v":{"$error":"#N/A"}},null,null,null,{"$f":"IFERROR(\n  IF(R1069=\"Big&Tall\",\n      VLOOKUP(S1069, 'Data order'!$AC$92:$AD$101, 2, FALSE),\n      IF(R1069=\"Boordmaat\",\n          VLOOKUP(S1069, 'Data order'!$AC$102:$AD$116, 2, FALSE),\n          VLOOKUP(S1069, 'Data order'!$AC$2:$AD$91, 2, FALSE)\n      )\n  ),\n\"\")","v":""},null,null,null,null,"EUR",null,null,null,{"$error":"#DIV/0!"},0,0,null,"","","","","","","","","","",null,null,null,null,null,null,null,null,null,null,null,null,null,null,null,null,null,"ZWO"]
[null,null,null,null,null,{"$f":"VLOOKUP(G1070,'Data order'!Z:AA,2,0)","v":{"$error":"#N/A"}},null,null,null,null,null,null,null,null,{"$f":"VLOOKUP(N1070,Tabel10[[korte omschrijving]:[MCC3_CODE]],2,0)","v":{"$error":"#N/A"}},{"$f":"VLOOKUP(N1070,'Data order'!M:O,3,0)","v":{"$error":"#N/A"}},null,null,null,{"$f":"IFERROR(\n  IF(R1070=\"Big&Tall\",\n      VLOOKUP(S1070, 'Data order'!$AC$92:$AD$101, 2, FALSE),\n      IF(R1070=\"Boordmaat\",\n          VLOOKUP(S1070, 'Data order'!$AC$102:$AD$116, 2, FALSE),\n          VLOOKUP(S1070, 'Data order'!$AC$2:$AD$91, 2, FALSE)\n      )\n  ),\n\"\")","v":""},null,null,null,null,"EUR",null,null,null,{"$error":"#DIV/0!"},0,0,null,"","","","","","","","","","",null,null,null,null,null,null,null,null,null,null,null,null,null,null,null,null,null,"ZWO"]
[null,null,null,null,null,{"$f":"VLOOKUP(G1071,'Data order'!Z:AA,2,0)","v":{"$error":"#N/A"}},null,null,null,null,null,null,null,null,{"$f":"VLOOKUP(N1071,Tabel10[[korte omschrijving]:[MCC3_CODE]],2,0)","v":{"$error":"#N/A"}},{"$f":"VLOOKUP(N1071,'Data order'!M:O,3,0)","v":{"$error":"#N/A"}},null,null,null,{"$f":"IFERROR(\n  IF(R1071=\"Big&Tall\",\n      VLOOKUP(S1071, 'Data order'!$AC$92:$AD$101, 2, FALSE),\n      IF(R1071=\"Boordmaat\",\n          VLOOKUP(S1071, 'Data order'!$AC$102:$AD$116, 2, FALSE),\n          VLOOKUP(S1071, 'Data order'!$AC$2:$AD$91, 2, FALSE)\n      )\n  ),\n\"\")","v":""},null,null,null,null,"EUR",null,null,null,{"$error":"#DIV/0!"},0,0,null,"","","","","","","","","","",null,null,null,null,null,null,null,null,null,null,null,null,null,null,null,null,null,"ZWO"]
[null,null,null,null,null,{"$f":"VLOOKUP(G1072,'Data order'!Z:AA,2,0)","v":{"$error":"#N/A"}},null,null,null,null,null,null,null,null,{"$f":"VLOOKUP(N1072,Tabel10[[korte omschrijving]:[MCC3_CODE]],2,0)","v":{"$error":"#N/A"}},{"$f":"VLOOKUP(N1072,'Data order'!M:O,3,0)","v":{"$error":"#N/A"}},null,null,null,{"$f":"IFERROR(\n  IF(R1072=\"Big&Tall\",\n      VLOOKUP(S1072, 'Data order'!$AC$92:$AD$101, 2, FALSE),\n      IF(R1072=\"Boordmaat\",\n          VLOOKUP(S1072, 'Data order'!$AC$102:$AD$116, 2, FALSE),\n          VLOOKUP(S1072, 'Data order'!$AC$2:$AD$91, 2, FALSE)\n      )\n  ),\n\"\")","v":""},null,null,null,null,"EUR",null,null,null,{"$error":"#DIV/0!"},0,0,null,"","","","","","","","","","",null,null,null,null,null,null,null,null,null,null,null,null,null,null,null,null,null,"ZWO"]
[null,null,null,null,null,{"$f":"VLOOKUP(G1073,'Data order'!Z:AA,2,0)","v":{"$error":"#N/A"}},null,null,null,null,null,null,null,null,{"$f":"VLOOKUP(N1073,Tabel10[[korte omschrijving]:[MCC3_CODE]],2,0)","v":{"$error":"#N/A"}},{"$f":"VLOOKUP(N1073,'Data order'!M:O,3,0)","v":{"$error":"#N/A"}},null,null,null,{"$f":"IFERROR(\n  IF(R1073=\"Big&Tall\",\n      VLOOKUP(S1073, 'Data order'!$AC$92:$AD$101, 2, FALSE),\n      IF(R1073=\"Boordmaat\",\n          VLOOKUP(S1073, 'Data order'!$AC$102:$AD$116, 2, FALSE),\n          VLOOKUP(S1073, 'Data order'!$AC$2:$AD$91, 2, FALSE)\n      )\n  ),\n\"\")","v":""},null,null,null,null,"EUR",null,null,null,{"$error":"#DIV/0!"},0,0,null,"","","","","","","","","","",null,null,null,null,null,null,null,null,null,null,null,null,null,null,null,null,null,"ZWO"]
[null,null,null,null,null,{"$f":"VLOOKUP(G1074,'Data order'!Z:AA,2,0)","v":{"$error":"#N/A"}},null,null,null,null,null,null,null,null,{"$f":"VLOOKUP(N1074,Tabel10[[korte omschrijving]:[MCC3_CODE]],2,0)","v":{"$error":"#N/A"}},{"$f":"VLOOKUP(N1074,'Data order'!M:O,3,0)","v":{"$error":"#N/A"}},null,null,null,{"$f":"IFERROR(\n  IF(R1074=\"Big&Tall\",\n      VLOOKUP(S1074, 'Data order'!$AC$92:$AD$101, 2, FALSE),\n      IF(R1074=\"Boordmaat\",\n          VLOOKUP(S1074, 'Data order'!$AC$102:$AD$116, 2, FALSE),\n          VLOOKUP(S1074, 'Data order'!$AC$2:$AD$91, 2, FALSE)\n      )\n  ),\n\"\")","v":""},null,0,null,null,"EUR",null,null,null,{"$f":"AB1074/Z1074","v":{"$error":"#DIV/0!"}},{"$f":"U1074*Z1074","v":0},{"$f":"U1074*AB1074","v":0},null,"","","","","","","","","","",null,null,null,null,null,null,null,null,null,null,null,null,null,null,null,null,null,"ZWO"]
[null,null,null,null,null,{"$f":"VLOOKUP(G1075,'Data order'!Z:AA,2,0)","v":{"$error":"#N/A"}},null,null,null,null,null,null,null,null,{"$f":"VLOOKUP(N1075,Tabel10[[korte omschrijving]:[MCC3_CODE]],2,0)","v":{"$error":"#N/A"}},{"$f":"VLOOKUP(N1075,'Data order'!M:O,3,0)","v":{"$error":"#N/A"}},null,null,null,{"$f":"IFERROR(\n  IF(R1075=\"Big&Tall\",\n      VLOOKUP(S1075, 'Data order'!$AC$92:$AD$101, 2, FALSE),\n      IF(R1075=\"Boordmaat\",\n          VLOOKUP(S1075, 'Data order'!$AC$102:$AD$116, 2, FALSE),\n          VLOOKUP(S1075, 'Data order'!$AC$2:$AD$91, 2, FALSE)\n      )\n  ),\n\"\")","v":""},null,null,null,null,"EUR",null,null,null,{"$error":"#DIV/0!"},0,0,null,"","","","","","","","","","",null,null,null,null,null,null,null,null,null,null,null,null,null,null,null,null,null,"ZWO"]
[null,null,null,null,null,{"$f":"VLOOKUP(G1076,'Data order'!Z:AA,2,0)","v":{"$error":"#N/A"}},null,null,null,null,null,null,null,null,{"$f":"VLOOKUP(N1076,Tabel10[[korte omschrijving]:[MCC3_CODE]],2,0)","v":{"$error":"#N/A"}},{"$f":"VLOOKUP(N1076,'Data order'!M:O,3,0)","v":{"$error":"#N/A"}},null,null,null,{"$f":"IFERROR(\n  IF(R1076=\"Big&Tall\",\n      VLOOKUP(S1076, 'Data order'!$AC$92:$AD$101, 2, FALSE),\n      IF(R1076=\"Boordmaat\",\n          VLOOKUP(S1076, 'Data order'!$AC$102:$AD$116, 2, FALSE),\n          VLOOKUP(S1076, 'Data order'!$AC$2:$AD$91, 2, FALSE)\n      )\n  ),\n\"\")","v":""},null,null,null,null,"EUR",null,null,null,{"$error":"#DIV/0!"},0,0,null,"","","","","","","","","","",null,null,null,null,null,null,null,null,null,null,null,null,null,null,null,null,null,"ZWO"]
[null,null,null,null,null,{"$f":"VLOOKUP(G1077,'Data order'!Z:AA,2,0)","v":{"$error":"#N/A"}},null,null,null,null,null,null,null,null,{"$f":"VLOOKUP(N1077,Tabel10[[korte omschrijving]:[MCC3_CODE]],2,0)","v":{"$error":"#N/A"}},{"$f":"VLOOKUP(N1077,'Data order'!M:O,3,0)","v":{"$error":"#N/A"}},null,null,null,{"$f":"IFERROR(\n  IF(R1077=\"Big&Tall\",\n      VLOOKUP(S1077, 'Data order'!$AC$92:$AD$101, 2, FALSE),\n      IF(R1077=\"Boordmaat\",\n          VLOOKUP(S1077, 'Data order'!$AC$102:$AD$116, 2, FALSE),\n          VLOOKUP(S1077, 'Data order'!$AC$2:$AD$91, 2, FALSE)\n      )\n  ),\n\"\")","v":""},null,null,null,null,"EUR",null,null,null,{"$error":"#DIV/0!"},0,0,null,"","","","","","","","","","",null,null,null,null,null,null,null,null,null,null,null,null,null,null,null,null,null,"ZWO"]
[null,null,null,null,null,{"$f":"VLOOKUP(G1078,'Data order'!Z:AA,2,0)","v":{"$error":"#N/A"}},null,null,null,null,null,null,null,null,{"$f":"VLOOKUP(N1078,Tabel10[[korte omschrijving]:[MCC3_CODE]],2,0)","v":{"$error":"#N/A"}},{"$f":"VLOOKUP(N1078,'Data order'!M:O,3,0)","v":{"$error":"#N/A"}},null,null,null,{"$f":"IFERROR(\n  IF(R1078=\"Big&Tall\",\n      VLOOKUP(S1078, 'Data order'!$AC$92:$AD$101, 2, FALSE),\n      IF(R1078=\"Boordmaat\",\n          VLOOKUP(S1078, 'Data order'!$AC$102:$AD$116, 2, FALSE),\n          VLOOKUP(S1078, 'Data order'!$AC$2:$AD$91, 2, FALSE)\n      )\n  ),\n\"\")","v":""},null,null,null,null,"EUR",null,null,null,{"$error":"#DIV/0!"},0,0,null,"","","","","","","","","","",null,null,null,null,null,null,null,null,null,null,null,null,null,null,null,null,null,"ZWO"]
[null,null,null,null,null,{"$f":"VLOOKUP(G1079,'Data order'!Z:AA,2,0)","v":{"$error":"#N/A"}},null,null,null,null,null,null,null,null,{"$f":"VLOOKUP(N1079,Tabel10[[korte omschrijving]:[MCC3_CODE]],2,0)","v":{"$error":"#N/A"}},{"$f":"VLOOKUP(N1079,'Data order'!M:O,3,0)","v":{"$error":"#N/A"}},null,null,null,{"$f":"IFERROR(\n  IF(R1079=\"Big&Tall\",\n      VLOOKUP(S1079, 'Data order'!$AC$92:$AD$101, 2, FALSE),\n      IF(R1079=\"Boordmaat\",\n          VLOOKUP(S1079, 'Data order'!$AC$102:$AD$116, 2, FALSE),\n          VLOOKUP(S1079, 'Data order'!$AC$2:$AD$91, 2, FALSE)\n      )\n  ),\n\"\")","v":""},null,null,null,null,"EUR",null,null,null,{"$error":"#DIV/0!"},0,0,null,"","","","","","","","","","",null,null,null,null,null,null,null,null,null,null,null,null,null,null,null,null,null,"ZWO"]
[null,null,null,null,null,{"$f":"VLOOKUP(G1080,'Data order'!Z:AA,2,0)","v":{"$error":"#N/A"}},null,null,null,null,null,null,null,null,{"$f":"VLOOKUP(N1080,Tabel10[[korte omschrijving]:[MCC3_CODE]],2,0)","v":{"$error":"#N/A"}},{"$f":"VLOOKUP(N1080,'Data order'!M:O,3,0)","v":{"$error":"#N/A"}},null,null,null,{"$f":"IFERROR(\n  IF(R1080=\"Big&Tall\",\n      VLOOKUP(S1080, 'Data order'!$AC$92:$AD$101, 2, FALSE),\n      IF(R1080=\"Boordmaat\",\n          VLOOKUP(S1080, 'Data order'!$AC$102:$AD$116, 2, FALSE),\n          VLOOKUP(S1080, 'Data order'!$AC$2:$AD$91, 2, FALSE)\n      )\n  ),\n\"\")","v":""},null,0,null,null,"EUR",null,null,null,{"$f":"AB1080/Z1080","v":{"$error":"#DIV/0!"}},{"$f":"U1080*Z1080","v":0},{"$f":"U1080*AB1080","v":0},null,{"$f":"IF(AF1080 <> \"\",\n    IF(ISNUMBER(VALUE(LEFT(AF1080, FIND(\"%\", AF1080)-1))),\n        VALUE(LEFT(AF1080, FIND(\"%\", AF1080)-1)),\n        \"Invalid format\"),\n    \"\")","v":""},{"$f":"IF(AF1080 <> \"\",\n    IF(ISNUMBER(VALUE(LEFT(AF1080, FIND(\"%\", AF1080)-1))) * ISNUMBER(FIND(\"%\", AF1080 & \"wol\")) > 0,\n        TRIM(MID(AF1080, FIND(\"%\", AF1080)+1, FIND(\"/\", AF1080 & \"/\")-FIND(\"%\", AF1080)-1)),\n        \"Invalid format\"),\n    \"\")","v":""},{"$f":"IF(AF1080 <> \"\",\n    IF(ISNUMBER(VALUE(MID(AF1080, FIND(\"/\", AF1080) + 1, FIND(\"%\", AF1080, FIND(\"/\", AF1080)) - FIND(\"/\", AF1080) - 1))),\n        VALUE(MID(AF1080, FIND(\"/\", AF1080) + 1, FIND(\"%\", AF1080, FIND(\"/\", AF1080)) - FIND(\"/\", AF1080) - 1)),\n        \"\"),\n    \"\")","v":""},{"$f":"IF(AF1080 <> \"\",\n    IFERROR(TRIM(MID(AF1080, FIND(\"%\", AF1080, FIND(\"/\", AF1080)+1)+2,\n        IFERROR(FIND(\"/\", AF1080 & \"/\", FIND(\"/\", AF1080)+1)-FIND(\"%\", AF1080, FIND(\"/\", AF1080)+1)-2, LEN(AF1080)-FIND(\"%\", AF1080, FIND(\"/\", AF1080)+1)-1))),\n        \"\"),\n    \"\")","v":""},{"$f":"IF(AF1080 <> \"\",\n    IF(ISNUMBER(VALUE(MID(AF1080, FIND(\"/\", AF1080, FIND(\"/\", AF1080)+1) + 1, FIND(\"%\", AF1080, FIND(\"/\", AF1080, FIND(\"/\", AF1080)+1)) - FIND(\"/\", AF1080, FIND(\"/\", AF1080)+1) - 1))),\n        VALUE(MID(AF1080, FIND(\"/\", AF1080, FIND(\"/\", AF1080)+1) + 1, FIND(\"%\", AF1080, FIND(\"/\", AF1080, FIND(\"/\", AF1080)+1)) - FIND(\"/\", AF1080, FIND(\"/\", AF1080)+1) - 1)),\n        \"\"),\n    \"\")","v":""},{"$f":"IF(AF1080 <> \"\",\n    IFERROR(\n        TRIM(MID(AF1080,\n            FIND(\"%\", AF1080, FIND(\"%\", AF1080, FIND(\"%\", AF1080)+1)+1)+1,\n            FIND(\"/\", AF1080 & \"/\", FIND(\"%\", AF1080, FIND(\"%\", AF1080, FIND(\"%\", AF1080)+1)+1))-FIND(\"%\", AF1080, FIND(\"%\", AF1080, FIND(\"%\", AF1080)+1)+1)-1)\n        ),\n        \"\"\n    ),\n    \"\"\n)","v":""},{"$f":"IF(AF1080 <> \"\",\n    IF(ISNUMBER(VALUE(MID(AF1080, FIND(\"/\", AF1080, FIND(\"/\", AF1080, FIND(\"/\", AF1080)+1)+1) + 1, FIND(\"%\", AF1080, FIND(\"/\", AF1080, FIND(\"/\", AF1080, FIND(\"/\", AF1080)+1)+1)) - FIND(\"/\", AF1080, FIND(\"/\", AF1080, FIND(\"/\", AF1080)+1)+1) - 1))),\n        VALUE(MID(AF1080, FIND(\"/\", AF1080, FIND(\"/\", AF1080, FIND(\"/\", AF1080)+1)+1) + 1, FIND(\"%\", AF1080, FIND(\"/\", AF1080, FIND(\"/\", AF1080, FIND(\"/\", AF1080)+1)+1)) - FIND(\"/\", AF1080, FIND(\"/\", AF1080, FIND(\"/\", AF1080)+1)+1) - 1)),\n        \"\"),\n    \"\")","v":""},{"$f":"IF(AF1080 <> \"\",\n    IFERROR(TRIM(MID(AF1080, FIND(\"%\", AF1080, FIND(\"/\", AF1080, FIND(\"/\", AF1080, FIND(\"/\", AF1080)+1)+1)+1)+2,\n        IFERROR(FIND(\"/\", AF1080, FIND(\"/\", AF1080, FIND(\"/\", AF1080, FIND(\"/\", AF1080)+1)+1)+1)-FIND(\"%\", AF1080, FIND(\"/\", AF1080, FIND(\"/\", AF1080, FIND(\"/\", AF1080)+1)+1)+1)-2, LEN(AF1080)-FIND(\"%\", AF1080, FIND(\"/\", AF1080, FIND(\"/\", AF1080, FIND(\"/\", AF1080)+1)+1)+1)-1))),\n        \"\"),\n    \"\")","v":""},{"$f":"IF(AF1080 <> \"\",\n    IF(ISNUMBER(VALUE(MID(AF1080, FIND(\"/\", AF1080, FIND(\"/\", AF1080, FIND(\"/\", AF1080, FIND(\"/\", AF1080)+1)+1)+1) + 1, FIND(\"%\", AF1080, FIND(\"/\", AF1080, FIND(\"/\", AF1080, FIND(\"/\", AF1080, FIND(\"/\", AF1080)+1)+1)+1)) - FIND(\"/\", AF1080, FIND(\"/\", AF1080, FIND(\"/\", AF1080, FIND(\"/\", AF1080)+1)+1)+1) - 1))),\n        VALUE(MID(AF1080, FIND(\"/\", AF1080, FIND(\"/\", AF1080, FIND(\"/\", AF1080, FIND(\"/\", AF1080)+1)+1)+1) + 1, FIND(\"%\", AF1080, FIND(\"/\", AF1080, FIND(\"/\", AF1080, FIND(\"/\", AF1080, FIND(\"/\", AF1080)+1)+1)+1)) - FIND(\"/\", AF1080, FIND(\"/\", AF1080, FIND(\"/\", AF1080, FIND(\"/\", AF1080)+1)+1)+1) - 1)),\n        \"\"),\n    \"\")","v":""},{"$f":"IF(AF1080 = \"\", \"\",\n    IFERROR(TRIM(\n        MID(\n            AF1080,\n            FIND(\"%\", AF1080, FIND(\"/\", AF1080, FIND(\"/\", AF1080, FIND(\"/\", AF1080, FIND(\"/\", AF1080)+1)+1)+1)+1) + 1,\n            FIND(\"/\", AF1080 & \"/\", FIND(\"%\", AF1080, FIND(\"/\", AF1080, FIND(\"/\", AF1080, FIND(\"/\", AF1080, FIND(\"/\", AF1080)+1)+1)+1)+1)) -\n            FIND(\"%\", AF1080, FIND(\"/\", AF1080, FIND(\"/\", AF1080, FIND(\"/\", AF1080, FIND(\"/\", AF1080)+1)+1)+1)+1) - 1\n        )\n    ),\n    \"\")\n)","v":""},null,null,null,null,null,null,null,null,null,null,null,null,null,null,null,null,null,"ZWO"]
[null,null,null,null,null,{"$f":"VLOOKUP(G1081,'Data order'!Z:AA,2,0)","v":{"$error":"#N/A"}},null,null,null,null,null,null,null,null,{"$f":"VLOOKUP(N1081,Tabel10[[korte omschrijving]:[MCC3_CODE]],2,0)","v":{"$error":"#N/A"}},{"$f":"VLOOKUP(N1081,'Data order'!M:O,3,0)","v":{"$error":"#N/A"}},null,null,null,{"$f":"IFERROR(\n  IF(R1081=\"Big&Tall\",\n      VLOOKUP(S1081, 'Data order'!$AC$92:$AD$101, 2, FALSE),\n      IF(R1081=\"Boordmaat\",\n          VLOOKUP(S1081, 'Data order'!$AC$102:$AD$116, 2, FALSE),\n          VLOOKUP(S1081, 'Data order'!$AC$2:$AD$91, 2, FALSE)\n      )\n  ),\n\"\")","v":""},null,null,null,null,"EUR",null,null,null,{"$error":"#DIV/0!"},0,0,null,"","","","","","","","","","",null,null,null,null,null,null,null,null,null,null,null,null,null,null,null,null,null,"ZWO"]
[null,null,null,null,null,{"$f":"VLOOKUP(G1082,'Data order'!Z:AA,2,0)","v":{"$error":"#N/A"}},null,null,null,null,null,null,null,null,{"$f":"VLOOKUP(N1082,Tabel10[[korte omschrijving]:[MCC3_CODE]],2,0)","v":{"$error":"#N/A"}},{"$f":"VLOOKUP(N1082,'Data order'!M:O,3,0)","v":{"$error":"#N/A"}},null,null,null,{"$f":"IFERROR(\n  IF(R1082=\"Big&Tall\",\n      VLOOKUP(S1082, 'Data order'!$AC$92:$AD$101, 2, FALSE),\n      IF(R1082=\"Boordmaat\",\n          VLOOKUP(S1082, 'Data order'!$AC$102:$AD$116, 2, FALSE),\n          VLOOKUP(S1082, 'Data order'!$AC$2:$AD$91, 2, FALSE)\n      )\n  ),\n\"\")","v":""},null,null,null,null,"EUR",null,null,null,{"$error":"#DIV/0!"},0,0,null,"","","","","","","","","","",null,null,null,null,null,null,null,null,null,null,null,null,null,null,null,null,null,"ZWO"]
[null,null,null,null,null,{"$f":"VLOOKUP(G1083,'Data order'!Z:AA,2,0)","v":{"$error":"#N/A"}},null,null,null,null,null,null,null,null,{"$f":"VLOOKUP(N1083,Tabel10[[korte omschrijving]:[MCC3_CODE]],2,0)","v":{"$error":"#N/A"}},{"$f":"VLOOKUP(N1083,'Data order'!M:O,3,0)","v":{"$error":"#N/A"}},null,null,null,{"$f":"IFERROR(\n  IF(R1083=\"Big&Tall\",\n      VLOOKUP(S1083, 'Data order'!$AC$92:$AD$101, 2, FALSE),\n      IF(R1083=\"Boordmaat\",\n          VLOOKUP(S1083, 'Data order'!$AC$102:$AD$116, 2, FALSE),\n          VLOOKUP(S1083, 'Data order'!$AC$2:$AD$91, 2, FALSE)\n      )\n  ),\n\"\")","v":""},null,null,null,null,"EUR",null,null,null,{"$error":"#DIV/0!"},0,0,null,"","","","","","","","","","",null,null,null,null,null,null,null,null,null,null,null,null,null,null,null,null,null,"ZWO"]
[null,null,null,null,null,{"$f":"VLOOKUP(G1084,'Data order'!Z:AA,2,0)","v":{"$error":"#N/A"}},null,null,null,null,null,null,null,null,{"$f":"VLOOKUP(N1084,Tabel10[[korte omschrijving]:[MCC3_CODE]],2,0)","v":{"$error":"#N/A"}},{"$f":"VLOOKUP(N1084,'Data order'!M:O,3,0)","v":{"$error":"#N/A"}},null,null,null,{"$f":"IFERROR(\n  IF(R1084=\"Big&Tall\",\n      VLOOKUP(S1084, 'Data order'!$AC$92:$AD$101, 2, FALSE),\n      IF(R1084=\"Boordmaat\",\n          VLOOKUP(S1084, 'Data order'!$AC$102:$AD$116, 2, FALSE),\n          VLOOKUP(S1084, 'Data order'!$AC$2:$AD$91, 2, FALSE)\n      )\n  ),\n\"\")","v":""},null,null,null,null,"EUR",null,null,null,{"$error":"#DIV/0!"},0,0,null,"","","","","","","","","","",null,null,null,null,null,null,null,null,null,null,null,null,null,null,null,null,null,"ZWO"]
[null,null,null,null,null,{"$f":"VLOOKUP(G1085,'Data order'!Z:AA,2,0)","v":{"$error":"#N/A"}},null,null,null,null,null,null,null,null,{"$f":"VLOOKUP(N1085,Tabel10[[korte omschrijving]:[MCC3_CODE]],2,0)","v":{"$error":"#N/A"}},{"$f":"VLOOKUP(N1085,'Data order'!M:O,3,0)","v":{"$error":"#N/A"}},null,null,null,{"$f":"IFERROR(\n  IF(R1085=\"Big&Tall\",\n      VLOOKUP(S1085, 'Data order'!$AC$92:$AD$101, 2, FALSE),\n      IF(R1085=\"Boordmaat\",\n          VLOOKUP(S1085, 'Data order'!$AC$102:$AD$116, 2, FALSE),\n          VLOOKUP(S1085, 'Data order'!$AC$2:$AD$91, 2, FALSE)\n      )\n  ),\n\"\")","v":""},null,null,null,null,"EUR",null,null,null,{"$error":"#DIV/0!"},0,0,null,"","","","","","","","","","",null,null,null,null,null,null,null,null,null,null,null,null,null,null,null,null,null,"ZWO"]
[null,null,null,null,null,{"$f":"VLOOKUP(G1086,'Data order'!Z:AA,2,0)","v":{"$error":"#N/A"}},null,null,null,null,null,null,null,null,{"$f":"VLOOKUP(N1086,Tabel10[[korte omschrijving]:[MCC3_CODE]],2,0)","v":{"$error":"#N/A"}},{"$f":"VLOOKUP(N1086,'Data order'!M:O,3,0)","v":{"$error":"#N/A"}},null,null,null,{"$f":"IFERROR(\n  IF(R1086=\"Big&Tall\",\n      VLOOKUP(S1086, 'Data order'!$AC$92:$AD$101, 2, FALSE),\n      IF(R1086=\"Boordmaat\",\n          VLOOKUP(S1086, 'Data order'!$AC$102:$AD$116, 2, FALSE),\n          VLOOKUP(S1086, 'Data order'!$AC$2:$AD$91, 2, FALSE)\n      )\n  ),\n\"\")","v":""},null,0,null,null,"EUR",null,null,null,{"$f":"AB1086/Z1086","v":{"$error":"#DIV/0!"}},{"$f":"U1086*Z1086","v":0},{"$f":"U1086*AB1086","v":0},null,"","","","","","","","","","",null,null,null,null,null,null,null,null,null,null,null,null,null,null,null,null,null,"ZWO"]
[null,null,null,null,null,{"$f":"VLOOKUP(G1087,'Data order'!Z:AA,2,0)","v":{"$error":"#N/A"}},null,null,null,null,null,null,null,null,{"$f":"VLOOKUP(N1087,Tabel10[[korte omschrijving]:[MCC3_CODE]],2,0)","v":{"$error":"#N/A"}},{"$f":"VLOOKUP(N1087,'Data order'!M:O,3,0)","v":{"$error":"#N/A"}},null,null,null,{"$f":"IFERROR(\n  IF(R1087=\"Big&Tall\",\n      VLOOKUP(S1087, 'Data order'!$AC$92:$AD$101, 2, FALSE),\n      IF(R1087=\"Boordmaat\",\n          VLOOKUP(S1087, 'Data order'!$AC$102:$AD$116, 2, FALSE),\n          VLOOKUP(S1087, 'Data order'!$AC$2:$AD$91, 2, FALSE)\n      )\n  ),\n\"\")","v":""},null,null,null,null,"EUR",null,null,null,{"$error":"#DIV/0!"},0,0,null,"","","","","","","","","","",null,null,null,null,null,null,null,null,null,null,null,null,null,null,null,null,null,"ZWO"]
[null,null,null,null,null,{"$f":"VLOOKUP(G1088,'Data order'!Z:AA,2,0)","v":{"$error":"#N/A"}},null,null,null,null,null,null,null,null,{"$f":"VLOOKUP(N1088,Tabel10[[korte omschrijving]:[MCC3_CODE]],2,0)","v":{"$error":"#N/A"}},{"$f":"VLOOKUP(N1088,'Data order'!M:O,3,0)","v":{"$error":"#N/A"}},null,null,null,{"$f":"IFERROR(\n  IF(R1088=\"Big&Tall\",\n      VLOOKUP(S1088, 'Data order'!$AC$92:$AD$101, 2, FALSE),\n      IF(R1088=\"Boordmaat\",\n          VLOOKUP(S1088, 'Data order'!$AC$102:$AD$116, 2, FALSE),\n          VLOOKUP(S1088, 'Data order'!$AC$2:$AD$91, 2, FALSE)\n      )\n  ),\n\"\")","v":""},null,null,null,null,"EUR",null,null,null,{"$error":"#DIV/0!"},0,0,null,"","","","","","","","","","",null,null,null,null,null,null,null,null,null,null,null,null,null,null,null,null,null,"ZWO"]
[null,null,null,null,null,{"$f":"VLOOKUP(G1089,'Data order'!Z:AA,2,0)","v":{"$error":"#N/A"}},null,null,null,null,null,null,null,null,{"$f":"VLOOKUP(N1089,Tabel10[[korte omschrijving]:[MCC3_CODE]],2,0)","v":{"$error":"#N/A"}},{"$f":"VLOOKUP(N1089,'Data order'!M:O,3,0)","v":{"$error":"#N/A"}},null,null,null,{"$f":"IFERROR(\n  IF(R1089=\"Big&Tall\",\n      VLOOKUP(S1089, 'Data order'!$AC$92:$AD$101, 2, FALSE),\n      IF(R1089=\"Boordmaat\",\n          VLOOKUP(S1089, 'Data order'!$AC$102:$AD$116, 2, FALSE),\n          VLOOKUP(S1089, 'Data order'!$AC$2:$AD$91, 2, FALSE)\n      )\n  ),\n\"\")","v":""},null,null,null,null,"EUR",null,null,null,{"$error":"#DIV/0!"},0,0,null,"","","","","","","","","","",null,null,null,null,null,null,null,null,null,null,null,null,null,null,null,null,null,"ZWO"]
[null,null,null,null,null,{"$f":"VLOOKUP(G1090,'Data order'!Z:AA,2,0)","v":{"$error":"#N/A"}},null,null,null,null,null,null,null,null,{"$f":"VLOOKUP(N1090,Tabel10[[korte omschrijving]:[MCC3_CODE]],2,0)","v":{"$error":"#N/A"}},{"$f":"VLOOKUP(N1090,'Data order'!M:O,3,0)","v":{"$error":"#N/A"}},null,null,null,{"$f":"IFERROR(\n  IF(R1090=\"Big&Tall\",\n      VLOOKUP(S1090, 'Data order'!$AC$92:$AD$101, 2, FALSE),\n      IF(R1090=\"Boordmaat\",\n          VLOOKUP(S1090, 'Data order'!$AC$102:$AD$116, 2, FALSE),\n          VLOOKUP(S1090, 'Data order'!$AC$2:$AD$91, 2, FALSE)\n      )\n  ),\n\"\")","v":""},null,null,null,null,"EUR",null,null,null,{"$error":"#DIV/0!"},0,0,null,"","","","","","","","","","",null,null,null,null,null,null,null,null,null,null,null,null,null,null,null,null,null,"ZWO"]
[null,null,null,null,null,{"$f":"VLOOKUP(G1091,'Data order'!Z:AA,2,0)","v":{"$error":"#N/A"}},null,null,null,null,null,null,null,null,{"$f":"VLOOKUP(N1091,Tabel10[[korte omschrijving]:[MCC3_CODE]],2,0)","v":{"$error":"#N/A"}},{"$f":"VLOOKUP(N1091,'Data order'!M:O,3,0)","v":{"$error":"#N/A"}},null,null,null,{"$f":"IFERROR(\n  IF(R1091=\"Big&Tall\",\n      VLOOKUP(S1091, 'Data order'!$AC$92:$AD$101, 2, FALSE),\n      IF(R1091=\"Boordmaat\",\n          VLOOKUP(S1091, 'Data order'!$AC$102:$AD$116, 2, FALSE),\n          VLOOKUP(S1091, 'Data order'!$AC$2:$AD$91, 2, FALSE)\n      )\n  ),\n\"\")","v":""},null,null,null,null,"EUR",null,null,null,{"$error":"#DIV/0!"},0,0,null,"","","","","","","","","","",null,null,null,null,null,null,null,null,null,null,null,null,null,null,null,null,null,"ZWO"]
[null,null,null,null,null,{"$f":"VLOOKUP(G1092,'Data order'!Z:AA,2,0)","v":{"$error":"#N/A"}},null,null,null,null,null,null,null,null,{"$f":"VLOOKUP(N1092,Tabel10[[korte omschrijving]:[MCC3_CODE]],2,0)","v":{"$error":"#N/A"}},{"$f":"VLOOKUP(N1092,'Data order'!M:O,3,0)","v":{"$error":"#N/A"}},null,null,null,{"$f":"IFERROR(\n  IF(R1092=\"Big&Tall\",\n      VLOOKUP(S1092, 'Data order'!$AC$92:$AD$101, 2, FALSE),\n      IF(R1092=\"Boordmaat\",\n          VLOOKUP(S1092, 'Data order'!$AC$102:$AD$116, 2, FALSE),\n          VLOOKUP(S1092, 'Data order'!$AC$2:$AD$91, 2, FALSE)\n      )\n  ),\n\"\")","v":""},null,0,null,null,"EUR",null,null,null,{"$f":"AB1092/Z1092","v":{"$error":"#DIV/0!"}},{"$f":"U1092*Z1092","v":0},{"$f":"U1092*AB1092","v":0},null,"","","","","","","","","","",null,null,null,null,null,null,null,null,null,null,null,null,null,null,null,null,null,"ZWO"]
[null,null,null,null,null,{"$f":"VLOOKUP(G1093,'Data order'!Z:AA,2,0)","v":{"$error":"#N/A"}},null,null,null,null,null,null,null,null,{"$f":"VLOOKUP(N1093,Tabel10[[korte omschrijving]:[MCC3_CODE]],2,0)","v":{"$error":"#N/A"}},{"$f":"VLOOKUP(N1093,'Data order'!M:O,3,0)","v":{"$error":"#N/A"}},null,null,null,{"$f":"IFERROR(\n  IF(R1093=\"Big&Tall\",\n      VLOOKUP(S1093, 'Data order'!$AC$92:$AD$101, 2, FALSE),\n      IF(R1093=\"Boordmaat\",\n          VLOOKUP(S1093, 'Data order'!$AC$102:$AD$116, 2, FALSE),\n          VLOOKUP(S1093, 'Data order'!$AC$2:$AD$91, 2, FALSE)\n      )\n  ),\n\"\")","v":""},null,null,null,null,"EUR",null,null,null,{"$error":"#DIV/0!"},0,0,null,"","","","","","","","","","",null,null,null,null,null,null,null,null,null,null,null,null,null,null,null,null,null,"ZWO"]
[null,null,null,null,null,{"$f":"VLOOKUP(G1094,'Data order'!Z:AA,2,0)","v":{"$error":"#N/A"}},null,null,null,null,null,null,null,null,{"$f":"VLOOKUP(N1094,Tabel10[[korte omschrijving]:[MCC3_CODE]],2,0)","v":{"$error":"#N/A"}},{"$f":"VLOOKUP(N1094,'Data order'!M:O,3,0)","v":{"$error":"#N/A"}},null,null,null,{"$f":"IFERROR(\n  IF(R1094=\"Big&Tall\",\n      VLOOKUP(S1094, 'Data order'!$AC$92:$AD$101, 2, FALSE),\n      IF(R1094=\"Boordmaat\",\n          VLOOKUP(S1094, 'Data order'!$AC$102:$AD$116, 2, FALSE),\n          VLOOKUP(S1094, 'Data order'!$AC$2:$AD$91, 2, FALSE)\n      )\n  ),\n\"\")","v":""},null,null,null,null,"EUR",null,null,null,{"$error":"#DIV/0!"},0,0,null,"","","","","","","","","","",null,null,null,null,null,null,null,null,null,null,null,null,null,null,null,null,null,"ZWO"]
[null,null,null,null,null,{"$f":"VLOOKUP(G1095,'Data order'!Z:AA,2,0)","v":{"$error":"#N/A"}},null,null,null,null,null,null,null,null,{"$f":"VLOOKUP(N1095,Tabel10[[korte omschrijving]:[MCC3_CODE]],2,0)","v":{"$error":"#N/A"}},{"$f":"VLOOKUP(N1095,'Data order'!M:O,3,0)","v":{"$error":"#N/A"}},null,null,null,{"$f":"IFERROR(\n  IF(R1095=\"Big&Tall\",\n      VLOOKUP(S1095, 'Data order'!$AC$92:$AD$101, 2, FALSE),\n      IF(R1095=\"Boordmaat\",\n          VLOOKUP(S1095, 'Data order'!$AC$102:$AD$116, 2, FALSE),\n          VLOOKUP(S1095, 'Data order'!$AC$2:$AD$91, 2, FALSE)\n      )\n  ),\n\"\")","v":""},null,null,null,null,"EUR",null,null,null,{"$error":"#DIV/0!"},0,0,null,"","","","","","","","","","",null,null,null,null,null,null,null,null,null,null,null,null,null,null,null,null,null,"ZWO"]
[null,null,null,null,null,{"$f":"VLOOKUP(G1096,'Data order'!Z:AA,2,0)","v":{"$error":"#N/A"}},null,null,null,null,null,null,null,null,{"$f":"VLOOKUP(N1096,Tabel10[[korte omschrijving]:[MCC3_CODE]],2,0)","v":{"$error":"#N/A"}},{"$f":"VLOOKUP(N1096,'Data order'!M:O,3,0)","v":{"$error":"#N/A"}},null,null,null,{"$f":"IFERROR(\n  IF(R1096=\"Big&Tall\",\n      VLOOKUP(S1096, 'Data order'!$AC$92:$AD$101, 2, FALSE),\n      IF(R1096=\"Boordmaat\",\n          VLOOKUP(S1096, 'Data order'!$AC$102:$AD$116, 2, FALSE),\n          VLOOKUP(S1096, 'Data order'!$AC$2:$AD$91, 2, FALSE)\n      )\n  ),\n\"\")","v":""},null,null,null,null,"EUR",null,null,null,{"$error":"#DIV/0!"},0,0,null,"","","","","","","","","","",null,null,null,null,null,null,null,null,null,null,null,null,null,null,null,null,null,"ZWO"]
[null,null,null,null,null,{"$f":"VLOOKUP(G1097,'Data order'!Z:AA,2,0)","v":{"$error":"#N/A"}},null,null,null,null,null,null,null,null,{"$f":"VLOOKUP(N1097,Tabel10[[korte omschrijving]:[MCC3_CODE]],2,0)","v":{"$error":"#N/A"}},{"$f":"VLOOKUP(N1097,'Data order'!M:O,3,0)","v":{"$error":"#N/A"}},null,null,null,{"$f":"IFERROR(\n  IF(R1097=\"Big&Tall\",\n      VLOOKUP(S1097, 'Data order'!$AC$92:$AD$101, 2, FALSE),\n      IF(R1097=\"Boordmaat\",\n          VLOOKUP(S1097, 'Data order'!$AC$102:$AD$116, 2, FALSE),\n          VLOOKUP(S1097, 'Data order'!$AC$2:$AD$91, 2, FALSE)\n      )\n  ),\n\"\")","v":""},null,null,null,null,"EUR",null,null,null,{"$error":"#DIV/0!"},0,0,null,"","","","","","","","","","",null,null,null,null,null,null,null,null,null,null,null,null,null,null,null,null,null,"ZWO"]
[null,null,null,null,null,{"$f":"VLOOKUP(G1098,'Data order'!Z:AA,2,0)","v":{"$error":"#N/A"}},null,null,null,null,null,null,null,null,{"$f":"VLOOKUP(N1098,Tabel10[[korte omschrijving]:[MCC3_CODE]],2,0)","v":{"$error":"#N/A"}},{"$f":"VLOOKUP(N1098,'Data order'!M:O,3,0)","v":{"$error":"#N/A"}},null,null,null,{"$f":"IFERROR(\n  IF(R1098=\"Big&Tall\",\n      VLOOKUP(S1098, 'Data order'!$AC$92:$AD$101, 2, FALSE),\n      IF(R1098=\"Boordmaat\",\n          VLOOKUP(S1098, 'Data order'!$AC$102:$AD$116, 2, FALSE),\n          VLOOKUP(S1098, 'Data order'!$AC$2:$AD$91, 2, FALSE)\n      )\n  ),\n\"\")","v":""},null,{"$f":"SUM(U1098:U1103)","v":0},null,null,"EUR",null,null,null,{"$f":"AB1098/Z1098","v":{"$error":"#DIV/0!"}},{"$f":"U1098*Z1098","v":0},{"$f":"U1098*AB1098","v":0},null,"","","","","","","","","","",null,null,null,null,null,null,null,null,null,null,null,null,null,null,null,null,null,"ZWO"]
[null,null,null,null,null,{"$f":"VLOOKUP(G1099,'Data order'!Z:AA,2,0)","v":{"$error":"#N/A"}},null,null,null,null,null,null,null,null,{"$f":"VLOOKUP(N1099,Tabel10[[korte omschrijving]:[MCC3_CODE]],2,0)","v":{"$error":"#N/A"}},{"$f":"VLOOKUP(N1099,'Data order'!M:O,3,0)","v":{"$error":"#N/A"}},null,null,null,{"$f":"IFERROR(\n  IF(R1099=\"Big&Tall\",\n      VLOOKUP(S1099, 'Data order'!$AC$92:$AD$101, 2, FALSE),\n      IF(R1099=\"Boordmaat\",\n          VLOOKUP(S1099, 'Data order'!$AC$102:$AD$116, 2, FALSE),\n          VLOOKUP(S1099, 'Data order'!$AC$2:$AD$91, 2, FALSE)\n      )\n  ),\n\"\")","v":""},null,null,null,null,"EUR",null,null,null,{"$error":"#DIV/0!"},0,0,null,"","","","","","","","","","",null,null,null,null,null,null,null,null,null,null,null,null,null,null,null,null,null,"ZWO"]
[null,null,null,null,null,{"$f":"VLOOKUP(G1100,'Data order'!Z:AA,2,0)","v":{"$error":"#N/A"}},null,null,null,null,null,null,null,null,{"$f":"VLOOKUP(N1100,Tabel10[[korte omschrijving]:[MCC3_CODE]],2,0)","v":{"$error":"#N/A"}},{"$f":"VLOOKUP(N1100,'Data order'!M:O,3,0)","v":{"$error":"#N/A"}},null,null,null,{"$f":"IFERROR(\n  IF(R1100=\"Big&Tall\",\n      VLOOKUP(S1100, 'Data order'!$AC$92:$AD$101, 2, FALSE),\n      IF(R1100=\"Boordmaat\",\n          VLOOKUP(S1100, 'Data order'!$AC$102:$AD$116, 2, FALSE),\n          VLOOKUP(S1100, 'Data order'!$AC$2:$AD$91, 2, FALSE)\n      )\n  ),\n\"\")","v":""},null,null,null,null,"EUR",null,null,null,{"$error":"#DIV/0!"},0,0,null,"","","","","","","","","","",null,null,null,null,null,null,null,null,null,null,null,null,null,null,null,null,null,"ZWO"]
[null,null,null,null,null,{"$f":"VLOOKUP(G1101,'Data order'!Z:AA,2,0)","v":{"$error":"#N/A"}},null,null,null,null,null,null,null,null,{"$f":"VLOOKUP(N1101,Tabel10[[korte omschrijving]:[MCC3_CODE]],2,0)","v":{"$error":"#N/A"}},{"$f":"VLOOKUP(N1101,'Data order'!M:O,3,0)","v":{"$error":"#N/A"}},null,null,null,{"$f":"IFERROR(\n  IF(R1101=\"Big&Tall\",\n      VLOOKUP(S1101, 'Data order'!$AC$92:$AD$101, 2, FALSE),\n      IF(R1101=\"Boordmaat\",\n          VLOOKUP(S1101, 'Data order'!$AC$102:$AD$116, 2, FALSE),\n          VLOOKUP(S1101, 'Data order'!$AC$2:$AD$91, 2, FALSE)\n      )\n  ),\n\"\")","v":""},null,null,null,null,"EUR",null,null,null,{"$error":"#DIV/0!"},0,0,null,"","","","","","","","","","",null,null,null,null,null,null,null,null,null,null,null,null,null,null,null,null,null,"ZWO"]
[null,null,null,null,null,{"$f":"VLOOKUP(G1102,'Data order'!Z:AA,2,0)","v":{"$error":"#N/A"}},null,null,null,null,null,null,null,null,{"$f":"VLOOKUP(N1102,Tabel10[[korte omschrijving]:[MCC3_CODE]],2,0)","v":{"$error":"#N/A"}},{"$f":"VLOOKUP(N1102,'Data order'!M:O,3,0)","v":{"$error":"#N/A"}},null,null,null,{"$f":"IFERROR(\n  IF(R1102=\"Big&Tall\",\n      VLOOKUP(S1102, 'Data order'!$AC$92:$AD$101, 2, FALSE),\n      IF(R1102=\"Boordmaat\",\n          VLOOKUP(S1102, 'Data order'!$AC$102:$AD$116, 2, FALSE),\n          VLOOKUP(S1102, 'Data order'!$AC$2:$AD$91, 2, FALSE)\n      )\n  ),\n\"\")","v":""},null,null,null,null,"EUR",null,null,null,{"$error":"#DIV/0!"},0,0,null,"","","","","","","","","","",null,null,null,null,null,null,null,null,null,null,null,null,null,null,null,null,null,"ZWO"]
[null,null,null,null,null,{"$f":"VLOOKUP(G1103,'Data order'!Z:AA,2,0)","v":{"$error":"#N/A"}},null,null,null,null,null,null,null,null,{"$f":"VLOOKUP(N1103,Tabel10[[korte omschrijving]:[MCC3_CODE]],2,0)","v":{"$error":"#N/A"}},{"$f":"VLOOKUP(N1103,'Data order'!M:O,3,0)","v":{"$error":"#N/A"}},null,null,null,{"$f":"IFERROR(\n  IF(R1103=\"Big&Tall\",\n      VLOOKUP(S1103, 'Data order'!$AC$92:$AD$101, 2, FALSE),\n      IF(R1103=\"Boordmaat\",\n          VLOOKUP(S1103, 'Data order'!$AC$102:$AD$116, 2, FALSE),\n          VLOOKUP(S1103, 'Data order'!$AC$2:$AD$91, 2, FALSE)\n      )\n  ),\n\"\")","v":""},null,null,null,null,"EUR",null,null,null,{"$error":"#DIV/0!"},0,0,null,"","","","","","","","","","",null,null,null,null,null,null,null,null,null,null,null,null,null,null,null,null,null,"ZWO"]
[null,null,null,null,null,{"$f":"VLOOKUP(G1104,'Data order'!Z:AA,2,0)","v":{"$error":"#N/A"}},null,null,null,null,null,null,null,null,{"$f":"VLOOKUP(N1104,Tabel10[[korte omschrijving]:[MCC3_CODE]],2,0)","v":{"$error":"#N/A"}},{"$f":"VLOOKUP(N1104,'Data order'!M:O,3,0)","v":{"$error":"#N/A"}},null,null,null,{"$f":"IFERROR(\n  IF(R1104=\"Big&Tall\",\n      VLOOKUP(S1104, 'Data order'!$AC$92:$AD$101, 2, FALSE),\n      IF(R1104=\"Boordmaat\",\n          VLOOKUP(S1104, 'Data order'!$AC$102:$AD$116, 2, FALSE),\n          VLOOKUP(S1104, 'Data order'!$AC$2:$AD$91, 2, FALSE)\n      )\n  ),\n\"\")","v":""},null,0,null,null,"EUR",null,null,null,{"$f":"AB1104/Z1104","v":{"$error":"#DIV/0!"}},{"$f":"U1104*Z1104","v":0},{"$f":"U1104*AB1104","v":0},null,"","","","","","","","","","",null,null,null,null,null,null,null,null,null,null,null,null,null,null,null,null,null,"ZWO"]
[null,null,null,null,null,{"$f":"VLOOKUP(G1105,'Data order'!Z:AA,2,0)","v":{"$error":"#N/A"}},null,null,null,null,null,null,null,null,{"$f":"VLOOKUP(N1105,Tabel10[[korte omschrijving]:[MCC3_CODE]],2,0)","v":{"$error":"#N/A"}},{"$f":"VLOOKUP(N1105,'Data order'!M:O,3,0)","v":{"$error":"#N/A"}},null,null,null,{"$f":"IFERROR(\n  IF(R1105=\"Big&Tall\",\n      VLOOKUP(S1105, 'Data order'!$AC$92:$AD$101, 2, FALSE),\n      IF(R1105=\"Boordmaat\",\n          VLOOKUP(S1105, 'Data order'!$AC$102:$AD$116, 2, FALSE),\n          VLOOKUP(S1105, 'Data order'!$AC$2:$AD$91, 2, FALSE)\n      )\n  ),\n\"\")","v":""},null,null,null,null,"EUR",null,null,null,{"$error":"#DIV/0!"},0,0,null,"","","","","","","","","","",null,null,null,null,null,null,null,null,null,null,null,null,null,null,null,null,null,"ZWO"]
[null,null,null,null,null,{"$f":"VLOOKUP(G1106,'Data order'!Z:AA,2,0)","v":{"$error":"#N/A"}},null,null,null,null,null,null,null,null,{"$f":"VLOOKUP(N1106,Tabel10[[korte omschrijving]:[MCC3_CODE]],2,0)","v":{"$error":"#N/A"}},{"$f":"VLOOKUP(N1106,'Data order'!M:O,3,0)","v":{"$error":"#N/A"}},null,null,null,{"$f":"IFERROR(\n  IF(R1106=\"Big&Tall\",\n      VLOOKUP(S1106, 'Data order'!$AC$92:$AD$101, 2, FALSE),\n      IF(R1106=\"Boordmaat\",\n          VLOOKUP(S1106, 'Data order'!$AC$102:$AD$116, 2, FALSE),\n          VLOOKUP(S1106, 'Data order'!$AC$2:$AD$91, 2, FALSE)\n      )\n  ),\n\"\")","v":""},null,null,null,null,"EUR",null,null,null,{"$error":"#DIV/0!"},0,0,null,"","","","","","","","","","",null,null,null,null,null,null,null,null,null,null,null,null,null,null,null,null,null,"ZWO"]
[null,null,null,null,null,{"$f":"VLOOKUP(G1107,'Data order'!Z:AA,2,0)","v":{"$error":"#N/A"}},null,null,null,null,null,null,null,null,{"$f":"VLOOKUP(N1107,Tabel10[[korte omschrijving]:[MCC3_CODE]],2,0)","v":{"$error":"#N/A"}},{"$f":"VLOOKUP(N1107,'Data order'!M:O,3,0)","v":{"$error":"#N/A"}},null,null,null,{"$f":"IFERROR(\n  IF(R1107=\"Big&Tall\",\n      VLOOKUP(S1107, 'Data order'!$AC$92:$AD$101, 2, FALSE),\n      IF(R1107=\"Boordmaat\",\n          VLOOKUP(S1107, 'Data order'!$AC$102:$AD$116, 2, FALSE),\n          VLOOKUP(S1107, 'Data order'!$AC$2:$AD$91, 2, FALSE)\n      )\n  ),\n\"\")","v":""},null,null,null,null,"EUR",null,null,null,{"$error":"#DIV/0!"},0,0,null,"","","","","","","","","","",null,null,null,null,null,null,null,null,null,null,null,null,null,null,null,null,null,"ZWO"]
[null,null,null,null,null,{"$f":"VLOOKUP(G1108,'Data order'!Z:AA,2,0)","v":{"$error":"#N/A"}},null,null,null,null,null,null,null,null,{"$f":"VLOOKUP(N1108,Tabel10[[korte omschrijving]:[MCC3_CODE]],2,0)","v":{"$error":"#N/A"}},{"$f":"VLOOKUP(N1108,'Data order'!M:O,3,0)","v":{"$error":"#N/A"}},null,null,null,{"$f":"IFERROR(\n  IF(R1108=\"Big&Tall\",\n      VLOOKUP(S1108, 'Data order'!$AC$92:$AD$101, 2, FALSE),\n      IF(R1108=\"Boordmaat\",\n          VLOOKUP(S1108, 'Data order'!$AC$102:$AD$116, 2, FALSE),\n          VLOOKUP(S1108, 'Data order'!$AC$2:$AD$91, 2, FALSE)\n      )\n  ),\n\"\")","v":""},null,null,null,null,"EUR",null,null,null,{"$error":"#DIV/0!"},0,0,null,"","","","","","","","","","",null,null,null,null,null,null,null,null,null,null,null,null,null,null,null,null,null,"ZWO"]
[null,null,null,null,null,{"$f":"VLOOKUP(G1109,'Data order'!Z:AA,2,0)","v":{"$error":"#N/A"}},null,null,null,null,null,null,null,null,{"$f":"VLOOKUP(N1109,Tabel10[[korte omschrijving]:[MCC3_CODE]],2,0)","v":{"$error":"#N/A"}},{"$f":"VLOOKUP(N1109,'Data order'!M:O,3,0)","v":{"$error":"#N/A"}},null,null,null,{"$f":"IFERROR(\n  IF(R1109=\"Big&Tall\",\n      VLOOKUP(S1109, 'Data order'!$AC$92:$AD$101, 2, FALSE),\n      IF(R1109=\"Boordmaat\",\n          VLOOKUP(S1109, 'Data order'!$AC$102:$AD$116, 2, FALSE),\n          VLOOKUP(S1109, 'Data order'!$AC$2:$AD$91, 2, FALSE)\n      )\n  ),\n\"\")","v":""},null,null,null,null,"EUR",null,null,null,{"$error":"#DIV/0!"},0,0,null,"","","","","","","","","","",null,null,null,null,null,null,null,null,null,null,null,null,null,null,null,null,null,"ZWO"]
[null,null,null,null,null,{"$f":"VLOOKUP(G1110,'Data order'!Z:AA,2,0)","v":{"$error":"#N/A"}},null,null,null,null,null,null,null,null,{"$f":"VLOOKUP(N1110,Tabel10[[korte omschrijving]:[MCC3_CODE]],2,0)","v":{"$error":"#N/A"}},{"$f":"VLOOKUP(N1110,'Data order'!M:O,3,0)","v":{"$error":"#N/A"}},null,null,null,{"$f":"IFERROR(\n  IF(R1110=\"Big&Tall\",\n      VLOOKUP(S1110, 'Data order'!$AC$92:$AD$101, 2, FALSE),\n      IF(R1110=\"Boordmaat\",\n          VLOOKUP(S1110, 'Data order'!$AC$102:$AD$116, 2, FALSE),\n          VLOOKUP(S1110, 'Data order'!$AC$2:$AD$91, 2, FALSE)\n      )\n  ),\n\"\")","v":""},null,0,null,null,"EUR",null,null,null,{"$f":"AB1110/Z1110","v":{"$error":"#DIV/0!"}},{"$f":"U1110*Z1110","v":0},{"$f":"U1110*AB1110","v":0},null,"","","","","","","","","","",null,null,null,null,null,null,null,null,null,null,null,null,null,null,null,null,null,"ZWO"]
[null,null,null,null,null,{"$f":"VLOOKUP(G1111,'Data order'!Z:AA,2,0)","v":{"$error":"#N/A"}},null,null,null,null,null,null,null,null,{"$f":"VLOOKUP(N1111,Tabel10[[korte omschrijving]:[MCC3_CODE]],2,0)","v":{"$error":"#N/A"}},{"$f":"VLOOKUP(N1111,'Data order'!M:O,3,0)","v":{"$error":"#N/A"}},null,null,null,{"$f":"IFERROR(\n  IF(R1111=\"Big&Tall\",\n      VLOOKUP(S1111, 'Data order'!$AC$92:$AD$101, 2, FALSE),\n      IF(R1111=\"Boordmaat\",\n          VLOOKUP(S1111, 'Data order'!$AC$102:$AD$116, 2, FALSE),\n          VLOOKUP(S1111, 'Data order'!$AC$2:$AD$91, 2, FALSE)\n      )\n  ),\n\"\")","v":""},null,null,null,null,"EUR",null,null,null,{"$error":"#DIV/0!"},0,0,null,"","","","","","","","","","",null,null,null,null,null,null,null,null,null,null,null,null,null,null,null,null,null,"ZWO"]
[null,null,null,null,null,{"$f":"VLOOKUP(G1112,'Data order'!Z:AA,2,0)","v":{"$error":"#N/A"}},null,null,null,null,null,null,null,null,{"$f":"VLOOKUP(N1112,Tabel10[[korte omschrijving]:[MCC3_CODE]],2,0)","v":{"$error":"#N/A"}},{"$f":"VLOOKUP(N1112,'Data order'!M:O,3,0)","v":{"$error":"#N/A"}},null,null,null,{"$f":"IFERROR(\n  IF(R1112=\"Big&Tall\",\n      VLOOKUP(S1112, 'Data order'!$AC$92:$AD$101, 2, FALSE),\n      IF(R1112=\"Boordmaat\",\n          VLOOKUP(S1112, 'Data order'!$AC$102:$AD$116, 2, FALSE),\n          VLOOKUP(S1112, 'Data order'!$AC$2:$AD$91, 2, FALSE)\n      )\n  ),\n\"\")","v":""},null,null,null,null,"EUR",null,null,null,{"$error":"#DIV/0!"},0,0,null,"","","","","","","","","","",null,null,null,null,null,null,null,null,null,null,null,null,null,null,null,null,null,"ZWO"]
[null,null,null,null,null,{"$f":"VLOOKUP(G1113,'Data order'!Z:AA,2,0)","v":{"$error":"#N/A"}},null,null,null,null,null,null,null,null,{"$f":"VLOOKUP(N1113,Tabel10[[korte omschrijving]:[MCC3_CODE]],2,0)","v":{"$error":"#N/A"}},{"$f":"VLOOKUP(N1113,'Data order'!M:O,3,0)","v":{"$error":"#N/A"}},null,null,null,{"$f":"IFERROR(\n  IF(R1113=\"Big&Tall\",\n      VLOOKUP(S1113, 'Data order'!$AC$92:$AD$101, 2, FALSE),\n      IF(R1113=\"Boordmaat\",\n          VLOOKUP(S1113, 'Data order'!$AC$102:$AD$116, 2, FALSE),\n          VLOOKUP(S1113, 'Data order'!$AC$2:$AD$91, 2, FALSE)\n      )\n  ),\n\"\")","v":""},null,null,null,null,"EUR",null,null,null,{"$error":"#DIV/0!"},0,0,null,"","","","","","","","","","",null,null,null,null,null,null,null,null,null,null,null,null,null,null,null,null,null,"ZWO"]
[null,null,null,null,null,{"$f":"VLOOKUP(G1114,'Data order'!Z:AA,2,0)","v":{"$error":"#N/A"}},null,null,null,null,null,null,null,null,{"$f":"VLOOKUP(N1114,Tabel10[[korte omschrijving]:[MCC3_CODE]],2,0)","v":{"$error":"#N/A"}},{"$f":"VLOOKUP(N1114,'Data order'!M:O,3,0)","v":{"$error":"#N/A"}},null,null,null,{"$f":"IFERROR(\n  IF(R1114=\"Big&Tall\",\n      VLOOKUP(S1114, 'Data order'!$AC$92:$AD$101, 2, FALSE),\n      IF(R1114=\"Boordmaat\",\n          VLOOKUP(S1114, 'Data order'!$AC$102:$AD$116, 2, FALSE),\n          VLOOKUP(S1114, 'Data order'!$AC$2:$AD$91, 2, FALSE)\n      )\n  ),\n\"\")","v":""},null,null,null,null,"EUR",null,null,null,{"$error":"#DIV/0!"},0,0,null,"","","","","","","","","","",null,null,null,null,null,null,null,null,null,null,null,null,null,null,null,null,null,"ZWO"]
[null,null,null,null,null,{"$f":"VLOOKUP(G1115,'Data order'!Z:AA,2,0)","v":{"$error":"#N/A"}},null,null,null,null,null,null,null,null,{"$f":"VLOOKUP(N1115,Tabel10[[korte omschrijving]:[MCC3_CODE]],2,0)","v":{"$error":"#N/A"}},{"$f":"VLOOKUP(N1115,'Data order'!M:O,3,0)","v":{"$error":"#N/A"}},null,null,null,{"$f":"IFERROR(\n  IF(R1115=\"Big&Tall\",\n      VLOOKUP(S1115, 'Data order'!$AC$92:$AD$101, 2, FALSE),\n      IF(R1115=\"Boordmaat\",\n          VLOOKUP(S1115, 'Data order'!$AC$102:$AD$116, 2, FALSE),\n          VLOOKUP(S1115, 'Data order'!$AC$2:$AD$91, 2, FALSE)\n      )\n  ),\n\"\")","v":""},null,null,null,null,"EUR",null,null,null,{"$error":"#DIV/0!"},0,0,null,"","","","","","","","","","",null,null,null,null,null,null,null,null,null,null,null,null,null,null,null,null,null,"ZWO"]
[null,null,null,null,null,{"$f":"VLOOKUP(G1116,'Data order'!Z:AA,2,0)","v":{"$error":"#N/A"}},null,null,null,null,null,null,null,null,{"$f":"VLOOKUP(N1116,Tabel10[[korte omschrijving]:[MCC3_CODE]],2,0)","v":{"$error":"#N/A"}},{"$f":"VLOOKUP(N1116,'Data order'!M:O,3,0)","v":{"$error":"#N/A"}},null,null,null,{"$f":"IFERROR(\n  IF(R1116=\"Big&Tall\",\n      VLOOKUP(S1116, 'Data order'!$AC$92:$AD$101, 2, FALSE),\n      IF(R1116=\"Boordmaat\",\n          VLOOKUP(S1116, 'Data order'!$AC$102:$AD$116, 2, FALSE),\n          VLOOKUP(S1116, 'Data order'!$AC$2:$AD$91, 2, FALSE)\n      )\n  ),\n\"\")","v":""},null,0,null,null,"EUR",null,null,null,{"$f":"AB1116/Z1116","v":{"$error":"#DIV/0!"}},{"$f":"U1116*Z1116","v":0},{"$f":"U1116*AB1116","v":0},null,"","","","","","","","","","",null,null,null,null,null,null,null,null,null,null,null,null,null,null,null,null,null,"ZWO"]
[null,null,null,null,null,{"$f":"VLOOKUP(G1117,'Data order'!Z:AA,2,0)","v":{"$error":"#N/A"}},null,null,null,null,null,null,null,null,{"$f":"VLOOKUP(N1117,Tabel10[[korte omschrijving]:[MCC3_CODE]],2,0)","v":{"$error":"#N/A"}},{"$f":"VLOOKUP(N1117,'Data order'!M:O,3,0)","v":{"$error":"#N/A"}},null,null,null,{"$f":"IFERROR(\n  IF(R1117=\"Big&Tall\",\n      VLOOKUP(S1117, 'Data order'!$AC$92:$AD$101, 2, FALSE),\n      IF(R1117=\"Boordmaat\",\n          VLOOKUP(S1117, 'Data order'!$AC$102:$AD$116, 2, FALSE),\n          VLOOKUP(S1117, 'Data order'!$AC$2:$AD$91, 2, FALSE)\n      )\n  ),\n\"\")","v":""},null,null,null,null,"EUR",null,null,null,{"$error":"#DIV/0!"},0,0,null,"","","","","","","","","","",null,null,null,null,null,null,null,null,null,null,null,null,null,null,null,null,null,"ZWO"]
[null,null,null,null,null,{"$f":"VLOOKUP(G1118,'Data order'!Z:AA,2,0)","v":{"$error":"#N/A"}},null,null,null,null,null,null,null,null,{"$f":"VLOOKUP(N1118,Tabel10[[korte omschrijving]:[MCC3_CODE]],2,0)","v":{"$error":"#N/A"}},{"$f":"VLOOKUP(N1118,'Data order'!M:O,3,0)","v":{"$error":"#N/A"}},null,null,null,{"$f":"IFERROR(\n  IF(R1118=\"Big&Tall\",\n      VLOOKUP(S1118, 'Data order'!$AC$92:$AD$101, 2, FALSE),\n      IF(R1118=\"Boordmaat\",\n          VLOOKUP(S1118, 'Data order'!$AC$102:$AD$116, 2, FALSE),\n          VLOOKUP(S1118, 'Data order'!$AC$2:$AD$91, 2, FALSE)\n      )\n  ),\n\"\")","v":""},null,null,null,null,"EUR",null,null,null,{"$error":"#DIV/0!"},0,0,null,"","","","","","","","","","",null,null,null,null,null,null,null,null,null,null,null,null,null,null,null,null,null,"ZWO"]
[null,null,null,null,null,{"$f":"VLOOKUP(G1119,'Data order'!Z:AA,2,0)","v":{"$error":"#N/A"}},null,null,null,null,null,null,null,null,{"$f":"VLOOKUP(N1119,Tabel10[[korte omschrijving]:[MCC3_CODE]],2,0)","v":{"$error":"#N/A"}},{"$f":"VLOOKUP(N1119,'Data order'!M:O,3,0)","v":{"$error":"#N/A"}},null,null,null,{"$f":"IFERROR(\n  IF(R1119=\"Big&Tall\",\n      VLOOKUP(S1119, 'Data order'!$AC$92:$AD$101, 2, FALSE),\n      IF(R1119=\"Boordmaat\",\n          VLOOKUP(S1119, 'Data order'!$AC$102:$AD$116, 2, FALSE),\n          VLOOKUP(S1119, 'Data order'!$AC$2:$AD$91, 2, FALSE)\n      )\n  ),\n\"\")","v":""},null,null,null,null,"EUR",null,null,null,{"$error":"#DIV/0!"},0,0,null,"","","","","","","","","","",null,null,null,null,null,null,null,null,null,null,null,null,null,null,null,null,null,"ZWO"]
[null,null,null,null,null,{"$f":"VLOOKUP(G1120,'Data order'!Z:AA,2,0)","v":{"$error":"#N/A"}},null,null,null,null,null,null,null,null,{"$f":"VLOOKUP(N1120,Tabel10[[korte omschrijving]:[MCC3_CODE]],2,0)","v":{"$error":"#N/A"}},{"$f":"VLOOKUP(N1120,'Data order'!M:O,3,0)","v":{"$error":"#N/A"}},null,null,null,{"$f":"IFERROR(\n  IF(R1120=\"Big&Tall\",\n      VLOOKUP(S1120, 'Data order'!$AC$92:$AD$101, 2, FALSE),\n      IF(R1120=\"Boordmaat\",\n          VLOOKUP(S1120, 'Data order'!$AC$102:$AD$116, 2, FALSE),\n          VLOOKUP(S1120, 'Data order'!$AC$2:$AD$91, 2, FALSE)\n      )\n  ),\n\"\")","v":""},null,null,null,null,"EUR",null,null,null,{"$error":"#DIV/0!"},0,0,null,"","","","","","","","","","",null,null,null,null,null,null,null,null,null,null,null,null,null,null,null,null,null,"ZWO"]
[null,null,null,null,null,{"$f":"VLOOKUP(G1121,'Data order'!Z:AA,2,0)","v":{"$error":"#N/A"}},null,null,null,null,null,null,null,null,{"$f":"VLOOKUP(N1121,Tabel10[[korte omschrijving]:[MCC3_CODE]],2,0)","v":{"$error":"#N/A"}},{"$f":"VLOOKUP(N1121,'Data order'!M:O,3,0)","v":{"$error":"#N/A"}},null,null,null,{"$f":"IFERROR(\n  IF(R1121=\"Big&Tall\",\n      VLOOKUP(S1121, 'Data order'!$AC$92:$AD$101, 2, FALSE),\n      IF(R1121=\"Boordmaat\",\n          VLOOKUP(S1121, 'Data order'!$AC$102:$AD$116, 2, FALSE),\n          VLOOKUP(S1121, 'Data order'!$AC$2:$AD$91, 2, FALSE)\n      )\n  ),\n\"\")","v":""},null,null,null,null,"EUR",null,null,null,{"$error":"#DIV/0!"},0,0,null,"","","","","","","","","","",null,null,null,null,null,null,null,null,null,null,null,null,null,null,null,null,null,"ZWO"]
[null,null,null,null,null,{"$f":"VLOOKUP(G1122,'Data order'!Z:AA,2,0)","v":{"$error":"#N/A"}},null,null,null,null,null,null,null,null,{"$f":"VLOOKUP(N1122,Tabel10[[korte omschrijving]:[MCC3_CODE]],2,0)","v":{"$error":"#N/A"}},{"$f":"VLOOKUP(N1122,'Data order'!M:O,3,0)","v":{"$error":"#N/A"}},null,null,null,{"$f":"IFERROR(\n  IF(R1122=\"Big&Tall\",\n      VLOOKUP(S1122, 'Data order'!$AC$92:$AD$101, 2, FALSE),\n      IF(R1122=\"Boordmaat\",\n          VLOOKUP(S1122, 'Data order'!$AC$102:$AD$116, 2, FALSE),\n          VLOOKUP(S1122, 'Data order'!$AC$2:$AD$91, 2, FALSE)\n      )\n  ),\n\"\")","v":""},null,0,null,null,"EUR",null,null,null,{"$f":"AB1122/Z1122","v":{"$error":"#DIV/0!"}},{"$f":"U1122*Z1122","v":0},{"$f":"U1122*AB1122","v":0},null,"","","","","","","","","","",null,null,null,null,null,null,null,null,null,null,null,null,null,null,null,null,null,"ZWO"]
[null,null,null,null,null,{"$f":"VLOOKUP(G1123,'Data order'!Z:AA,2,0)","v":{"$error":"#N/A"}},null,null,null,null,null,null,null,null,{"$f":"VLOOKUP(N1123,Tabel10[[korte omschrijving]:[MCC3_CODE]],2,0)","v":{"$error":"#N/A"}},{"$f":"VLOOKUP(N1123,'Data order'!M:O,3,0)","v":{"$error":"#N/A"}},null,null,null,{"$f":"IFERROR(\n  IF(R1123=\"Big&Tall\",\n      VLOOKUP(S1123, 'Data order'!$AC$92:$AD$101, 2, FALSE),\n      IF(R1123=\"Boordmaat\",\n          VLOOKUP(S1123, 'Data order'!$AC$102:$AD$116, 2, FALSE),\n          VLOOKUP(S1123, 'Data order'!$AC$2:$AD$91, 2, FALSE)\n      )\n  ),\n\"\")","v":""},null,null,null,null,"EUR",null,null,null,{"$error":"#DIV/0!"},0,0,null,"","","","","","","","","","",null,null,null,null,null,null,null,null,null,null,null,null,null,null,null,null,null,"ZWO"]
[null,null,null,null,null,{"$f":"VLOOKUP(G1124,'Data order'!Z:AA,2,0)","v":{"$error":"#N/A"}},null,null,null,null,null,null,null,null,{"$f":"VLOOKUP(N1124,Tabel10[[korte omschrijving]:[MCC3_CODE]],2,0)","v":{"$error":"#N/A"}},{"$f":"VLOOKUP(N1124,'Data order'!M:O,3,0)","v":{"$error":"#N/A"}},null,null,null,{"$f":"IFERROR(\n  IF(R1124=\"Big&Tall\",\n      VLOOKUP(S1124, 'Data order'!$AC$92:$AD$101, 2, FALSE),\n      IF(R1124=\"Boordmaat\",\n          VLOOKUP(S1124, 'Data order'!$AC$102:$AD$116, 2, FALSE),\n          VLOOKUP(S1124, 'Data order'!$AC$2:$AD$91, 2, FALSE)\n      )\n  ),\n\"\")","v":""},null,null,null,null,"EUR",null,null,null,{"$error":"#DIV/0!"},0,0,null,"","","","","","","","","","",null,null,null,null,null,null,null,null,null,null,null,null,null,null,null,null,null,"ZWO"]
[null,null,null,null,null,{"$f":"VLOOKUP(G1125,'Data order'!Z:AA,2,0)","v":{"$error":"#N/A"}},null,null,null,null,null,null,null,null,{"$f":"VLOOKUP(N1125,Tabel10[[korte omschrijving]:[MCC3_CODE]],2,0)","v":{"$error":"#N/A"}},{"$f":"VLOOKUP(N1125,'Data order'!M:O,3,0)","v":{"$error":"#N/A"}},null,null,null,{"$f":"IFERROR(\n  IF(R1125=\"Big&Tall\",\n      VLOOKUP(S1125, 'Data order'!$AC$92:$AD$101, 2, FALSE),\n      IF(R1125=\"Boordmaat\",\n          VLOOKUP(S1125, 'Data order'!$AC$102:$AD$116, 2, FALSE),\n          VLOOKUP(S1125, 'Data order'!$AC$2:$AD$91, 2, FALSE)\n      )\n  ),\n\"\")","v":""},null,null,null,null,"EUR",null,null,null,{"$error":"#DIV/0!"},0,0,null,"","","","","","","","","","",null,null,null,null,null,null,null,null,null,null,null,null,null,null,null,null,null,"ZWO"]
[null,null,null,null,null,{"$f":"VLOOKUP(G1126,'Data order'!Z:AA,2,0)","v":{"$error":"#N/A"}},null,null,null,null,null,null,null,null,{"$f":"VLOOKUP(N1126,Tabel10[[korte omschrijving]:[MCC3_CODE]],2,0)","v":{"$error":"#N/A"}},{"$f":"VLOOKUP(N1126,'Data order'!M:O,3,0)","v":{"$error":"#N/A"}},null,null,null,{"$f":"IFERROR(\n  IF(R1126=\"Big&Tall\",\n      VLOOKUP(S1126, 'Data order'!$AC$92:$AD$101, 2, FALSE),\n      IF(R1126=\"Boordmaat\",\n          VLOOKUP(S1126, 'Data order'!$AC$102:$AD$116, 2, FALSE),\n          VLOOKUP(S1126, 'Data order'!$AC$2:$AD$91, 2, FALSE)\n      )\n  ),\n\"\")","v":""},null,null,null,null,"EUR",null,null,null,{"$error":"#DIV/0!"},0,0,null,"","","","","","","","","","",null,null,null,null,null,null,null,null,null,null,null,null,null,null,null,null,null,"ZWO"]
[null,null,null,null,null,{"$f":"VLOOKUP(G1127,'Data order'!Z:AA,2,0)","v":{"$error":"#N/A"}},null,null,null,null,null,null,null,null,{"$f":"VLOOKUP(N1127,Tabel10[[korte omschrijving]:[MCC3_CODE]],2,0)","v":{"$error":"#N/A"}},{"$f":"VLOOKUP(N1127,'Data order'!M:O,3,0)","v":{"$error":"#N/A"}},null,null,null,{"$f":"IFERROR(\n  IF(R1127=\"Big&Tall\",\n      VLOOKUP(S1127, 'Data order'!$AC$92:$AD$101, 2, FALSE),\n      IF(R1127=\"Boordmaat\",\n          VLOOKUP(S1127, 'Data order'!$AC$102:$AD$116, 2, FALSE),\n          VLOOKUP(S1127, 'Data order'!$AC$2:$AD$91, 2, FALSE)\n      )\n  ),\n\"\")","v":""},null,null,null,null,"EUR",null,null,null,{"$error":"#DIV/0!"},0,0,null,"","","","","","","","","","",null,null,null,null,null,null,null,null,null,null,null,null,null,null,null,null,null,"ZWO"]
[null,null,null,null,null,{"$f":"VLOOKUP(G1128,'Data order'!Z:AA,2,0)","v":{"$error":"#N/A"}},null,null,null,null,null,null,null,null,{"$f":"VLOOKUP(N1128,Tabel10[[korte omschrijving]:[MCC3_CODE]],2,0)","v":{"$error":"#N/A"}},{"$f":"VLOOKUP(N1128,'Data order'!M:O,3,0)","v":{"$error":"#N/A"}},null,null,null,{"$f":"IFERROR(\n  IF(R1128=\"Big&Tall\",\n      VLOOKUP(S1128, 'Data order'!$AC$92:$AD$101, 2, FALSE),\n      IF(R1128=\"Boordmaat\",\n          VLOOKUP(S1128, 'Data order'!$AC$102:$AD$116, 2, FALSE),\n          VLOOKUP(S1128, 'Data order'!$AC$2:$AD$91, 2, FALSE)\n      )\n  ),\n\"\")","v":""},null,0,null,null,"EUR",null,null,null,{"$f":"AB1128/Z1128","v":{"$error":"#DIV/0!"}},{"$f":"U1128*Z1128","v":0},{"$f":"U1128*AB1128","v":0},null,"","","","","","","","","","",null,null,null,null,null,null,null,null,null,null,null,null,null,null,null,null,null,"ZWO"]
[null,null,null,null,null,{"$f":"VLOOKUP(G1129,'Data order'!Z:AA,2,0)","v":{"$error":"#N/A"}},null,null,null,null,null,null,null,null,{"$f":"VLOOKUP(N1129,Tabel10[[korte omschrijving]:[MCC3_CODE]],2,0)","v":{"$error":"#N/A"}},{"$f":"VLOOKUP(N1129,'Data order'!M:O,3,0)","v":{"$error":"#N/A"}},null,null,null,{"$f":"IFERROR(\n  IF(R1129=\"Big&Tall\",\n      VLOOKUP(S1129, 'Data order'!$AC$92:$AD$101, 2, FALSE),\n      IF(R1129=\"Boordmaat\",\n          VLOOKUP(S1129, 'Data order'!$AC$102:$AD$116, 2, FALSE),\n          VLOOKUP(S1129, 'Data order'!$AC$2:$AD$91, 2, FALSE)\n      )\n  ),\n\"\")","v":""},null,null,null,null,"EUR",null,null,null,{"$error":"#DIV/0!"},0,0,null,"","","","","","","","","","",null,null,null,null,null,null,null,null,null,null,null,null,null,null,null,null,null,"ZWO"]
[null,null,null,null,null,{"$f":"VLOOKUP(G1130,'Data order'!Z:AA,2,0)","v":{"$error":"#N/A"}},null,null,null,null,null,null,null,null,{"$f":"VLOOKUP(N1130,Tabel10[[korte omschrijving]:[MCC3_CODE]],2,0)","v":{"$error":"#N/A"}},{"$f":"VLOOKUP(N1130,'Data order'!M:O,3,0)","v":{"$error":"#N/A"}},null,null,null,{"$f":"IFERROR(\n  IF(R1130=\"Big&Tall\",\n      VLOOKUP(S1130, 'Data order'!$AC$92:$AD$101, 2, FALSE),\n      IF(R1130=\"Boordmaat\",\n          VLOOKUP(S1130, 'Data order'!$AC$102:$AD$116, 2, FALSE),\n          VLOOKUP(S1130, 'Data order'!$AC$2:$AD$91, 2, FALSE)\n      )\n  ),\n\"\")","v":""},null,null,null,null,"EUR",null,null,null,{"$error":"#DIV/0!"},0,0,null,"","","","","","","","","","",null,null,null,null,null,null,null,null,null,null,null,null,null,null,null,null,null,"ZWO"]
[null,null,null,null,null,{"$f":"VLOOKUP(G1131,'Data order'!Z:AA,2,0)","v":{"$error":"#N/A"}},null,null,null,null,null,null,null,null,{"$f":"VLOOKUP(N1131,Tabel10[[korte omschrijving]:[MCC3_CODE]],2,0)","v":{"$error":"#N/A"}},{"$f":"VLOOKUP(N1131,'Data order'!M:O,3,0)","v":{"$error":"#N/A"}},null,null,null,{"$f":"IFERROR(\n  IF(R1131=\"Big&Tall\",\n      VLOOKUP(S1131, 'Data order'!$AC$92:$AD$101, 2, FALSE),\n      IF(R1131=\"Boordmaat\",\n          VLOOKUP(S1131, 'Data order'!$AC$102:$AD$116, 2, FALSE),\n          VLOOKUP(S1131, 'Data order'!$AC$2:$AD$91, 2, FALSE)\n      )\n  ),\n\"\")","v":""},null,null,null,null,"EUR",null,null,null,{"$error":"#DIV/0!"},0,0,null,"","","","","","","","","","",null,null,null,null,null,null,null,null,null,null,null,null,null,null,null,null,null,"ZWO"]
[null,null,null,null,null,{"$f":"VLOOKUP(G1132,'Data order'!Z:AA,2,0)","v":{"$error":"#N/A"}},null,null,null,null,null,null,null,null,{"$f":"VLOOKUP(N1132,Tabel10[[korte omschrijving]:[MCC3_CODE]],2,0)","v":{"$error":"#N/A"}},{"$f":"VLOOKUP(N1132,'Data order'!M:O,3,0)","v":{"$error":"#N/A"}},null,null,null,{"$f":"IFERROR(\n  IF(R1132=\"Big&Tall\",\n      VLOOKUP(S1132, 'Data order'!$AC$92:$AD$101, 2, FALSE),\n      IF(R1132=\"Boordmaat\",\n          VLOOKUP(S1132, 'Data order'!$AC$102:$AD$116, 2, FALSE),\n          VLOOKUP(S1132, 'Data order'!$AC$2:$AD$91, 2, FALSE)\n      )\n  ),\n\"\")","v":""},null,null,null,null,"EUR",null,null,null,{"$error":"#DIV/0!"},0,0,null,"","","","","","","","","","",null,null,null,null,null,null,null,null,null,null,null,null,null,null,null,null,null,"ZWO"]
[null,null,null,null,null,{"$f":"VLOOKUP(G1133,'Data order'!Z:AA,2,0)","v":{"$error":"#N/A"}},null,null,null,null,null,null,null,null,{"$f":"VLOOKUP(N1133,Tabel10[[korte omschrijving]:[MCC3_CODE]],2,0)","v":{"$error":"#N/A"}},{"$f":"VLOOKUP(N1133,'Data order'!M:O,3,0)","v":{"$error":"#N/A"}},null,null,null,{"$f":"IFERROR(\n  IF(R1133=\"Big&Tall\",\n      VLOOKUP(S1133, 'Data order'!$AC$92:$AD$101, 2, FALSE),\n      IF(R1133=\"Boordmaat\",\n          VLOOKUP(S1133, 'Data order'!$AC$102:$AD$116, 2, FALSE),\n          VLOOKUP(S1133, 'Data order'!$AC$2:$AD$91, 2, FALSE)\n      )\n  ),\n\"\")","v":""},null,null,null,null,"EUR",null,null,null,{"$error":"#DIV/0!"},0,0,null,"","","","","","","","","","",null,null,null,null,null,null,null,null,null,null,null,null,null,null,null,null,null,"ZWO"]
[null,null,null,null,null,{"$f":"VLOOKUP(G1134,'Data order'!Z:AA,2,0)","v":{"$error":"#N/A"}},null,null,null,null,null,null,null,null,{"$f":"VLOOKUP(N1134,Tabel10[[korte omschrijving]:[MCC3_CODE]],2,0)","v":{"$error":"#N/A"}},{"$f":"VLOOKUP(N1134,'Data order'!M:O,3,0)","v":{"$error":"#N/A"}},null,null,null,{"$f":"IFERROR(\n  IF(R1134=\"Big&Tall\",\n      VLOOKUP(S1134, 'Data order'!$AC$92:$AD$101, 2, FALSE),\n      IF(R1134=\"Boordmaat\",\n          VLOOKUP(S1134, 'Data order'!$AC$102:$AD$116, 2, FALSE),\n          VLOOKUP(S1134, 'Data order'!$AC$2:$AD$91, 2, FALSE)\n      )\n  ),\n\"\")","v":""},null,0,null,null,"EUR",null,null,null,{"$f":"AB1134/Z1134","v":{"$error":"#DIV/0!"}},{"$f":"U1134*Z1134","v":0},{"$f":"U1134*AB1134","v":0},null,"","","","","","","","","","",null,null,null,null,null,null,null,null,null,null,null,null,null,null,null,null,null,"ZWO"]
[null,null,null,null,null,{"$f":"VLOOKUP(G1135,'Data order'!Z:AA,2,0)","v":{"$error":"#N/A"}},null,null,null,null,null,null,null,null,{"$f":"VLOOKUP(N1135,Tabel10[[korte omschrijving]:[MCC3_CODE]],2,0)","v":{"$error":"#N/A"}},{"$f":"VLOOKUP(N1135,'Data order'!M:O,3,0)","v":{"$error":"#N/A"}},null,null,null,{"$f":"IFERROR(\n  IF(R1135=\"Big&Tall\",\n      VLOOKUP(S1135, 'Data order'!$AC$92:$AD$101, 2, FALSE),\n      IF(R1135=\"Boordmaat\",\n          VLOOKUP(S1135, 'Data order'!$AC$102:$AD$116, 2, FALSE),\n          VLOOKUP(S1135, 'Data order'!$AC$2:$AD$91, 2, FALSE)\n      )\n  ),\n\"\")","v":""},null,null,null,null,"EUR",null,null,null,{"$error":"#DIV/0!"},0,0,null,"","","","","","","","","","",null,null,null,null,null,null,null,null,null,null,null,null,null,null,null,null,null,"ZWO"]
[null,null,null,null,null,{"$f":"VLOOKUP(G1136,'Data order'!Z:AA,2,0)","v":{"$error":"#N/A"}},null,null,null,null,null,null,null,null,{"$f":"VLOOKUP(N1136,Tabel10[[korte omschrijving]:[MCC3_CODE]],2,0)","v":{"$error":"#N/A"}},{"$f":"VLOOKUP(N1136,'Data order'!M:O,3,0)","v":{"$error":"#N/A"}},null,null,null,{"$f":"IFERROR(\n  IF(R1136=\"Big&Tall\",\n      VLOOKUP(S1136, 'Data order'!$AC$92:$AD$101, 2, FALSE),\n      IF(R1136=\"Boordmaat\",\n          VLOOKUP(S1136, 'Data order'!$AC$102:$AD$116, 2, FALSE),\n          VLOOKUP(S1136, 'Data order'!$AC$2:$AD$91, 2, FALSE)\n      )\n  ),\n\"\")","v":""},null,null,null,null,"EUR",null,null,null,{"$error":"#DIV/0!"},0,0,null,"","","","","","","","","","",null,null,null,null,null,null,null,null,null,null,null,null,null,null,null,null,null,"ZWO"]
[null,null,null,null,null,{"$f":"VLOOKUP(G1137,'Data order'!Z:AA,2,0)","v":{"$error":"#N/A"}},null,null,null,null,null,null,null,null,{"$f":"VLOOKUP(N1137,Tabel10[[korte omschrijving]:[MCC3_CODE]],2,0)","v":{"$error":"#N/A"}},{"$f":"VLOOKUP(N1137,'Data order'!M:O,3,0)","v":{"$error":"#N/A"}},null,null,null,{"$f":"IFERROR(\n  IF(R1137=\"Big&Tall\",\n      VLOOKUP(S1137, 'Data order'!$AC$92:$AD$101, 2, FALSE),\n      IF(R1137=\"Boordmaat\",\n          VLOOKUP(S1137, 'Data order'!$AC$102:$AD$116, 2, FALSE),\n          VLOOKUP(S1137, 'Data order'!$AC$2:$AD$91, 2, FALSE)\n      )\n  ),\n\"\")","v":""},null,null,null,null,"EUR",null,null,null,{"$error":"#DIV/0!"},0,0,null,"","","","","","","","","","",null,null,null,null,null,null,null,null,null,null,null,null,null,null,null,null,null,"ZWO"]
[null,null,null,null,null,{"$f":"VLOOKUP(G1138,'Data order'!Z:AA,2,0)","v":{"$error":"#N/A"}},null,null,null,null,null,null,null,null,{"$f":"VLOOKUP(N1138,Tabel10[[korte omschrijving]:[MCC3_CODE]],2,0)","v":{"$error":"#N/A"}},{"$f":"VLOOKUP(N1138,'Data order'!M:O,3,0)","v":{"$error":"#N/A"}},null,null,null,{"$f":"IFERROR(\n  IF(R1138=\"Big&Tall\",\n      VLOOKUP(S1138, 'Data order'!$AC$92:$AD$101, 2, FALSE),\n      IF(R1138=\"Boordmaat\",\n          VLOOKUP(S1138, 'Data order'!$AC$102:$AD$116, 2, FALSE),\n          VLOOKUP(S1138, 'Data order'!$AC$2:$AD$91, 2, FALSE)\n      )\n  ),\n\"\")","v":""},null,null,null,null,"EUR",null,null,null,{"$error":"#DIV/0!"},0,0,null,"","","","","","","","","","",null,null,null,null,null,null,null,null,null,null,null,null,null,null,null,null,null,"ZWO"]
[null,null,null,null,null,{"$f":"VLOOKUP(G1139,'Data order'!Z:AA,2,0)","v":{"$error":"#N/A"}},null,null,null,null,null,null,null,null,{"$f":"VLOOKUP(N1139,Tabel10[[korte omschrijving]:[MCC3_CODE]],2,0)","v":{"$error":"#N/A"}},{"$f":"VLOOKUP(N1139,'Data order'!M:O,3,0)","v":{"$error":"#N/A"}},null,null,null,{"$f":"IFERROR(\n  IF(R1139=\"Big&Tall\",\n      VLOOKUP(S1139, 'Data order'!$AC$92:$AD$101, 2, FALSE),\n      IF(R1139=\"Boordmaat\",\n          VLOOKUP(S1139, 'Data order'!$AC$102:$AD$116, 2, FALSE),\n          VLOOKUP(S1139, 'Data order'!$AC$2:$AD$91, 2, FALSE)\n      )\n  ),\n\"\")","v":""},null,null,null,null,"EUR",null,null,null,{"$error":"#DIV/0!"},0,0,null,"","","","","","","","","","",null,null,null,null,null,null,null,null,null,null,null,null,null,null,null,null,null,"ZWO"]
[null,null,null,null,null,{"$f":"VLOOKUP(G1140,'Data order'!Z:AA,2,0)","v":{"$error":"#N/A"}},null,null,null,null,null,null,null,null,{"$f":"VLOOKUP(N1140,Tabel10[[korte omschrijving]:[MCC3_CODE]],2,0)","v":{"$error":"#N/A"}},{"$f":"VLOOKUP(N1140,'Data order'!M:O,3,0)","v":{"$error":"#N/A"}},null,null,null,{"$f":"IFERROR(\n  IF(R1140=\"Big&Tall\",\n      VLOOKUP(S1140, 'Data order'!$AC$92:$AD$101, 2, FALSE),\n      IF(R1140=\"Boordmaat\",\n          VLOOKUP(S1140, 'Data order'!$AC$102:$AD$116, 2, FALSE),\n          VLOOKUP(S1140, 'Data order'!$AC$2:$AD$91, 2, FALSE)\n      )\n  ),\n\"\")","v":""},null,0,null,null,"EUR",null,null,null,{"$f":"AB1140/Z1140","v":{"$error":"#DIV/0!"}},{"$f":"U1140*Z1140","v":0},{"$f":"U1140*AB1140","v":0},null,"","","","","","","","","","",null,null,null,null,null,null,null,null,null,null,null,null,null,null,null,null,null,"ZWO"]
[null,null,null,null,null,{"$f":"VLOOKUP(G1141,'Data order'!Z:AA,2,0)","v":{"$error":"#N/A"}},null,null,null,null,null,null,null,null,{"$f":"VLOOKUP(N1141,Tabel10[[korte omschrijving]:[MCC3_CODE]],2,0)","v":{"$error":"#N/A"}},{"$f":"VLOOKUP(N1141,'Data order'!M:O,3,0)","v":{"$error":"#N/A"}},null,null,null,{"$f":"IFERROR(\n  IF(R1141=\"Big&Tall\",\n      VLOOKUP(S1141, 'Data order'!$AC$92:$AD$101, 2, FALSE),\n      IF(R1141=\"Boordmaat\",\n          VLOOKUP(S1141, 'Data order'!$AC$102:$AD$116, 2, FALSE),\n          VLOOKUP(S1141, 'Data order'!$AC$2:$AD$91, 2, FALSE)\n      )\n  ),\n\"\")","v":""},null,null,null,null,"EUR",null,null,null,{"$error":"#DIV/0!"},0,0,null,"","","","","","","","","","",null,null,null,null,null,null,null,null,null,null,null,null,null,null,null,null,null,"ZWO"]
[null,null,null,null,null,{"$f":"VLOOKUP(G1142,'Data order'!Z:AA,2,0)","v":{"$error":"#N/A"}},null,null,null,null,null,null,null,null,{"$f":"VLOOKUP(N1142,Tabel10[[korte omschrijving]:[MCC3_CODE]],2,0)","v":{"$error":"#N/A"}},{"$f":"VLOOKUP(N1142,'Data order'!M:O,3,0)","v":{"$error":"#N/A"}},null,null,null,{"$f":"IFERROR(\n  IF(R1142=\"Big&Tall\",\n      VLOOKUP(S1142, 'Data order'!$AC$92:$AD$101, 2, FALSE),\n      IF(R1142=\"Boordmaat\",\n          VLOOKUP(S1142, 'Data order'!$AC$102:$AD$116, 2, FALSE),\n          VLOOKUP(S1142, 'Data order'!$AC$2:$AD$91, 2, FALSE)\n      )\n  ),\n\"\")","v":""},null,null,null,null,"EUR",null,null,null,{"$error":"#DIV/0!"},0,0,null,"","","","","","","","","","",null,null,null,null,null,null,null,null,null,null,null,null,null,null,null,null,null,"ZWO"]
[null,null,null,null,null,{"$f":"VLOOKUP(G1143,'Data order'!Z:AA,2,0)","v":{"$error":"#N/A"}},null,null,null,null,null,null,null,null,{"$f":"VLOOKUP(N1143,Tabel10[[korte omschrijving]:[MCC3_CODE]],2,0)","v":{"$error":"#N/A"}},{"$f":"VLOOKUP(N1143,'Data order'!M:O,3,0)","v":{"$error":"#N/A"}},null,null,null,{"$f":"IFERROR(\n  IF(R1143=\"Big&Tall\",\n      VLOOKUP(S1143, 'Data order'!$AC$92:$AD$101, 2, FALSE),\n      IF(R1143=\"Boordmaat\",\n          VLOOKUP(S1143, 'Data order'!$AC$102:$AD$116, 2, FALSE),\n          VLOOKUP(S1143, 'Data order'!$AC$2:$AD$91, 2, FALSE)\n      )\n  ),\n\"\")","v":""},null,null,null,null,"EUR",null,null,null,{"$error":"#DIV/0!"},0,0,null,"","","","","","","","","","",null,null,null,null,null,null,null,null,null,null,null,null,null,null,null,null,null,"ZWO"]
[null,null,null,null,null,{"$f":"VLOOKUP(G1144,'Data order'!Z:AA,2,0)","v":{"$error":"#N/A"}},null,null,null,null,null,null,null,null,{"$f":"VLOOKUP(N1144,Tabel10[[korte omschrijving]:[MCC3_CODE]],2,0)","v":{"$error":"#N/A"}},{"$f":"VLOOKUP(N1144,'Data order'!M:O,3,0)","v":{"$error":"#N/A"}},null,null,null,{"$f":"IFERROR(\n  IF(R1144=\"Big&Tall\",\n      VLOOKUP(S1144, 'Data order'!$AC$92:$AD$101, 2, FALSE),\n      IF(R1144=\"Boordmaat\",\n          VLOOKUP(S1144, 'Data order'!$AC$102:$AD$116, 2, FALSE),\n          VLOOKUP(S1144, 'Data order'!$AC$2:$AD$91, 2, FALSE)\n      )\n  ),\n\"\")","v":""},null,null,null,null,"EUR",null,null,null,{"$error":"#DIV/0!"},0,0,null,{"$f":"IF(AF1144 <> \"\",\n    IF(ISNUMBER(VALUE(LEFT(AF1144, FIND(\"%\", AF1144)-1))),\n        VALUE(LEFT(AF1144, FIND(\"%\", AF1144)-1)),\n        \"Invalid format\"),\n    \"\")","v":""},{"$f":"IF(AF1144 <> \"\",\n    IF(ISNUMBER(VALUE(LEFT(AF1144, FIND(\"%\", AF1144)-1))) * ISNUMBER(FIND(\"%\", AF1144 & \"wol\")) > 0,\n        TRIM(MID(AF1144, FIND(\"%\", AF1144)+1, FIND(\"/\", AF1144 & \"/\")-FIND(\"%\", AF1144)-1)),\n        \"Invalid format\"),\n    \"\")","v":""},{"$f":"IF(AF1144 <> \"\",\n    IF(ISNUMBER(VALUE(MID(AF1144, FIND(\"/\", AF1144) + 1, FIND(\"%\", AF1144, FIND(\"/\", AF1144)) - FIND(\"/\", AF1144) - 1))),\n        VALUE(MID(AF1144, FIND(\"/\", AF1144) + 1, FIND(\"%\", AF1144, FIND(\"/\", AF1144)) - FIND(\"/\", AF1144) - 1)),\n        \"\"),\n    \"\")","v":""},{"$f":"IF(AF1144 <> \"\",\n    IFERROR(TRIM(MID(AF1144, FIND(\"%\", AF1144, FIND(\"/\", AF1144)+1)+2,\n        IFERROR(FIND(\"/\", AF1144 & \"/\", FIND(\"/\", AF1144)+1)-FIND(\"%\", AF1144, FIND(\"/\", AF1144)+1)-2, LEN(AF1144)-FIND(\"%\", AF1144, FIND(\"/\", AF1144)+1)-1))),\n        \"\"),\n    \"\")","v":""},{"$f":"IF(AF1144 <> \"\",\n    IF(ISNUMBER(VALUE(MID(AF1144, FIND(\"/\", AF1144, FIND(\"/\", AF1144)+1) + 1, FIND(\"%\", AF1144, FIND(\"/\", AF1144, FIND(\"/\", AF1144)+1)) - FIND(\"/\", AF1144, FIND(\"/\", AF1144)+1) - 1))),\n        VALUE(MID(AF1144, FIND(\"/\", AF1144, FIND(\"/\", AF1144)+1) + 1, FIND(\"%\", AF1144, FIND(\"/\", AF1144, FIND(\"/\", AF1144)+1)) - FIND(\"/\", AF1144, FIND(\"/\", AF1144)+1) - 1)),\n        \"\"),\n    \"\")","v":""},{"$f":"IF(AF1144 <> \"\",\n    IFERROR(\n        TRIM(MID(AF1144,\n            FIND(\"%\", AF1144, FIND(\"%\", AF1144, FIND(\"%\", AF1144)+1)+1)+1,\n            FIND(\"/\", AF1144 & \"/\", FIND(\"%\", AF1144, FIND(\"%\", AF1144, FIND(\"%\", AF1144)+1)+1))-FIND(\"%\", AF1144, FIND(\"%\", AF1144, FIND(\"%\", AF1144)+1)+1)-1)\n        ),\n        \"\"\n    ),\n    \"\"\n)","v":""},{"$f":"IF(AF1144 <> \"\",\n    IF(ISNUMBER(VALUE(MID(AF1144, FIND(\"/\", AF1144, FIND(\"/\", AF1144, FIND(\"/\", AF1144)+1)+1) + 1, FIND(\"%\", AF1144, FIND(\"/\", AF1144, FIND(\"/\", AF1144, FIND(\"/\", AF1144)+1)+1)) - FIND(\"/\", AF1144, FIND(\"/\", AF1144, FIND(\"/\", AF1144)+1)+1) - 1))),\n        VALUE(MID(AF1144, FIND(\"/\", AF1144, FIND(\"/\", AF1144, FIND(\"/\", AF1144)+1)+1) + 1, FIND(\"%\", AF1144, FIND(\"/\", AF1144, FIND(\"/\", AF1144, FIND(\"/\", AF1144)+1)+1)) - FIND(\"/\", AF1144, FIND(\"/\", AF1144, FIND(\"/\", AF1144)+1)+1) - 1)),\n        \"\"),\n    \"\")","v":""},{"$f":"IF(AF1144 <> \"\",\n    IFERROR(TRIM(MID(AF1144, FIND(\"%\", AF1144, FIND(\"/\", AF1144, FIND(\"/\", AF1144, FIND(\"/\", AF1144)+1)+1)+1)+2,\n        IFERROR(FIND(\"/\", AF1144, FIND(\"/\", AF1144, FIND(\"/\", AF1144, FIND(\"/\", AF1144)+1)+1)+1)-FIND(\"%\", AF1144, FIND(\"/\", AF1144, FIND(\"/\", AF1144, FIND(\"/\", AF1144)+1)+1)+1)-2, LEN(AF1144)-FIND(\"%\", AF1144, FIND(\"/\", AF1144, FIND(\"/\", AF1144, FIND(\"/\", AF1144)+1)+1)+1)-1))),\n        \"\"),\n    \"\")","v":""},{"$f":"IF(AF1144 <> \"\",\n    IF(ISNUMBER(VALUE(MID(AF1144, FIND(\"/\", AF1144, FIND(\"/\", AF1144, FIND(\"/\", AF1144, FIND(\"/\", AF1144)+1)+1)+1) + 1, FIND(\"%\", AF1144, FIND(\"/\", AF1144, FIND(\"/\", AF1144, FIND(\"/\", AF1144, FIND(\"/\", AF1144)+1)+1)+1)) - FIND(\"/\", AF1144, FIND(\"/\", AF1144, FIND(\"/\", AF1144, FIND(\"/\", AF1144)+1)+1)+1) - 1))),\n        VALUE(MID(AF1144, FIND(\"/\", AF1144, FIND(\"/\", AF1144, FIND(\"/\", AF1144, FIND(\"/\", AF1144)+1)+1)+1) + 1, FIND(\"%\", AF1144, FIND(\"/\", AF1144, FIND(\"/\", AF1144, FIND(\"/\", AF1144, FIND(\"/\", AF1144)+1)+1)+1)) - FIND(\"/\", AF1144, FIND(\"/\", AF1144, FIND(\"/\", AF1144, FIND(\"/\", AF1144)+1)+1)+1) - 1)),\n        \"\"),\n    \"\")","v":""},{"$f":"IF(AF1144 = \"\", \"\",\n    IFERROR(TRIM(\n        MID(\n            AF1144,\n            FIND(\"%\", AF1144, FIND(\"/\", AF1144, FIND(\"/\", AF1144, FIND(\"/\", AF1144, FIND(\"/\", AF1144)+1)+1)+1)+1) + 1,\n            FIND(\"/\", AF1144 & \"/\", FIND(\"%\", AF1144, FIND(\"/\", AF1144, FIND(\"/\", AF1144, FIND(\"/\", AF1144, FIND(\"/\", AF1144)+1)+1)+1)+1)) -\n            FIND(\"%\", AF1144, FIND(\"/\", AF1144, FIND(\"/\", AF1144, FIND(\"/\", AF1144, FIND(\"/\", AF1144)+1)+1)+1)+1) - 1\n        )\n    ),\n    \"\")\n)","v":""},null,null,null,null,null,null,null,null,null,null,null,null,null,null,null,null,null,"ZWO"]
[null,null,null,null,null,{"$f":"VLOOKUP(G1145,'Data order'!Z:AA,2,0)","v":{"$error":"#N/A"}},null,null,null,null,null,null,null,null,{"$f":"VLOOKUP(N1145,Tabel10[[korte omschrijving]:[MCC3_CODE]],2,0)","v":{"$error":"#N/A"}},{"$f":"VLOOKUP(N1145,'Data order'!M:O,3,0)","v":{"$error":"#N/A"}},null,null,null,{"$f":"IFERROR(\n  IF(R1145=\"Big&Tall\",\n      VLOOKUP(S1145, 'Data order'!$AC$92:$AD$101, 2, FALSE),\n      IF(R1145=\"Boordmaat\",\n          VLOOKUP(S1145, 'Data order'!$AC$102:$AD$116, 2, FALSE),\n          VLOOKUP(S1145, 'Data order'!$AC$2:$AD$91, 2, FALSE)\n      )\n  ),\n\"\")","v":""},null,null,null,null,"EUR",null,null,null,{"$error":"#DIV/0!"},0,0,null,"","","","","","","","","","",null,null,null,null,null,null,null,null,null,null,null,null,null,null,null,null,null,"ZWO"]
[null,null,null,null,null,{"$f":"VLOOKUP(G1146,'Data order'!Z:AA,2,0)","v":{"$error":"#N/A"}},null,null,null,null,null,null,null,null,{"$f":"VLOOKUP(N1146,Tabel10[[korte omschrijving]:[MCC3_CODE]],2,0)","v":{"$error":"#N/A"}},{"$f":"VLOOKUP(N1146,'Data order'!M:O,3,0)","v":{"$error":"#N/A"}},null,null,null,{"$f":"IFERROR(\n  IF(R1146=\"Big&Tall\",\n      VLOOKUP(S1146, 'Data order'!$AC$92:$AD$101, 2, FALSE),\n      IF(R1146=\"Boordmaat\",\n          VLOOKUP(S1146, 'Data order'!$AC$102:$AD$116, 2, FALSE),\n          VLOOKUP(S1146, 'Data order'!$AC$2:$AD$91, 2, FALSE)\n      )\n  ),\n\"\")","v":""},null,0,null,null,"EUR",null,null,null,{"$f":"AB1146/Z1146","v":{"$error":"#DIV/0!"}},{"$f":"U1146*Z1146","v":0},{"$f":"U1146*AB1146","v":0},null,"","","","","","","","","","",null,null,null,null,null,null,null,null,null,null,null,null,null,null,null,null,null,"ZWO"]
[null,null,null,null,null,{"$f":"VLOOKUP(G1147,'Data order'!Z:AA,2,0)","v":{"$error":"#N/A"}},null,null,null,null,null,null,null,null,{"$f":"VLOOKUP(N1147,Tabel10[[korte omschrijving]:[MCC3_CODE]],2,0)","v":{"$error":"#N/A"}},{"$f":"VLOOKUP(N1147,'Data order'!M:O,3,0)","v":{"$error":"#N/A"}},null,null,null,{"$f":"IFERROR(\n  IF(R1147=\"Big&Tall\",\n      VLOOKUP(S1147, 'Data order'!$AC$92:$AD$101, 2, FALSE),\n      IF(R1147=\"Boordmaat\",\n          VLOOKUP(S1147, 'Data order'!$AC$102:$AD$116, 2, FALSE),\n          VLOOKUP(S1147, 'Data order'!$AC$2:$AD$91, 2, FALSE)\n      )\n  ),\n\"\")","v":""},null,null,null,null,"EUR",null,null,null,{"$error":"#DIV/0!"},0,0,null,"","","","","","","","","","",null,null,null,null,null,null,null,null,null,null,null,null,null,null,null,null,null,"ZWO"]
[null,null,null,null,null,{"$f":"VLOOKUP(G1148,'Data order'!Z:AA,2,0)","v":{"$error":"#N/A"}},null,null,null,null,null,null,null,null,{"$f":"VLOOKUP(N1148,Tabel10[[korte omschrijving]:[MCC3_CODE]],2,0)","v":{"$error":"#N/A"}},{"$f":"VLOOKUP(N1148,'Data order'!M:O,3,0)","v":{"$error":"#N/A"}},null,null,null,{"$f":"IFERROR(\n  IF(R1148=\"Big&Tall\",\n      VLOOKUP(S1148, 'Data order'!$AC$92:$AD$101, 2, FALSE),\n      IF(R1148=\"Boordmaat\",\n          VLOOKUP(S1148, 'Data order'!$AC$102:$AD$116, 2, FALSE),\n          VLOOKUP(S1148, 'Data order'!$AC$2:$AD$91, 2, FALSE)\n      )\n  ),\n\"\")","v":""},null,null,null,null,"EUR",null,null,null,{"$error":"#DIV/0!"},0,0,null,"","","","","","","","","","",null,null,null,null,null,null,null,null,null,null,null,null,null,null,null,null,null,"ZWO"]
[null,null,null,null,null,{"$f":"VLOOKUP(G1149,'Data order'!Z:AA,2,0)","v":{"$error":"#N/A"}},null,null,null,null,null,null,null,null,{"$f":"VLOOKUP(N1149,Tabel10[[korte omschrijving]:[MCC3_CODE]],2,0)","v":{"$error":"#N/A"}},{"$f":"VLOOKUP(N1149,'Data order'!M:O,3,0)","v":{"$error":"#N/A"}},null,null,null,{"$f":"IFERROR(\n  IF(R1149=\"Big&Tall\",\n      VLOOKUP(S1149, 'Data order'!$AC$92:$AD$101, 2, FALSE),\n      IF(R1149=\"Boordmaat\",\n          VLOOKUP(S1149, 'Data order'!$AC$102:$AD$116, 2, FALSE),\n          VLOOKUP(S1149, 'Data order'!$AC$2:$AD$91, 2, FALSE)\n      )\n  ),\n\"\")","v":""},null,null,null,null,"EUR",null,null,null,{"$error":"#DIV/0!"},0,0,null,"","","","","","","","","","",null,null,null,null,null,null,null,null,null,null,null,null,null,null,null,null,null,"ZWO"]
[null,null,null,null,null,{"$f":"VLOOKUP(G1150,'Data order'!Z:AA,2,0)","v":{"$error":"#N/A"}},null,null,null,null,null,null,null,null,{"$f":"VLOOKUP(N1150,Tabel10[[korte omschrijving]:[MCC3_CODE]],2,0)","v":{"$error":"#N/A"}},{"$f":"VLOOKUP(N1150,'Data order'!M:O,3,0)","v":{"$error":"#N/A"}},null,null,null,{"$f":"IFERROR(\n  IF(R1150=\"Big&Tall\",\n      VLOOKUP(S1150, 'Data order'!$AC$92:$AD$101, 2, FALSE),\n      IF(R1150=\"Boordmaat\",\n          VLOOKUP(S1150, 'Data order'!$AC$102:$AD$116, 2, FALSE),\n          VLOOKUP(S1150, 'Data order'!$AC$2:$AD$91, 2, FALSE)\n      )\n  ),\n\"\")","v":""},null,null,null,null,"EUR",null,null,null,{"$error":"#DIV/0!"},0,0,null,"","","","","","","","","","",null,null,null,null,null,null,null,null,null,null,null,null,null,null,null,null,null,"ZWO"]
[null,null,null,null,null,{"$f":"VLOOKUP(G1151,'Data order'!Z:AA,2,0)","v":{"$error":"#N/A"}},null,null,null,null,null,null,null,null,{"$f":"VLOOKUP(N1151,Tabel10[[korte omschrijving]:[MCC3_CODE]],2,0)","v":{"$error":"#N/A"}},{"$f":"VLOOKUP(N1151,'Data order'!M:O,3,0)","v":{"$error":"#N/A"}},null,null,null,{"$f":"IFERROR(\n  IF(R1151=\"Big&Tall\",\n      VLOOKUP(S1151, 'Data order'!$AC$92:$AD$101, 2, FALSE),\n      IF(R1151=\"Boordmaat\",\n          VLOOKUP(S1151, 'Data order'!$AC$102:$AD$116, 2, FALSE),\n          VLOOKUP(S1151, 'Data order'!$AC$2:$AD$91, 2, FALSE)\n      )\n  ),\n\"\")","v":""},null,null,null,null,"EUR",null,null,null,{"$error":"#DIV/0!"},0,0,null,"","","","","","","","","","",null,null,null,null,null,null,null,null,null,null,null,null,null,null,null,null,null,"ZWO"]
[null,null,null,null,null,{"$f":"VLOOKUP(G1152,'Data order'!Z:AA,2,0)","v":{"$error":"#N/A"}},null,null,null,null,null,null,null,null,{"$f":"VLOOKUP(N1152,Tabel10[[korte omschrijving]:[MCC3_CODE]],2,0)","v":{"$error":"#N/A"}},{"$f":"VLOOKUP(N1152,'Data order'!M:O,3,0)","v":{"$error":"#N/A"}},null,null,null,{"$f":"IFERROR(\n  IF(R1152=\"Big&Tall\",\n      VLOOKUP(S1152, 'Data order'!$AC$92:$AD$101, 2, FALSE),\n      IF(R1152=\"Boordmaat\",\n          VLOOKUP(S1152, 'Data order'!$AC$102:$AD$116, 2, FALSE),\n          VLOOKUP(S1152, 'Data order'!$AC$2:$AD$91, 2, FALSE)\n      )\n  ),\n\"\")","v":""},null,0,null,null,"EUR",null,null,null,{"$f":"AB1152/Z1152","v":{"$error":"#DIV/0!"}},{"$f":"U1152*Z1152","v":0},{"$f":"U1152*AB1152","v":0},null,"","","","","","","","","","",null,null,null,null,null,null,null,null,null,null,null,null,null,null,null,null,null,"ZWO"]
[null,null,null,null,null,{"$f":"VLOOKUP(G1153,'Data order'!Z:AA,2,0)","v":{"$error":"#N/A"}},null,null,null,null,null,null,null,null,{"$f":"VLOOKUP(N1153,Tabel10[[korte omschrijving]:[MCC3_CODE]],2,0)","v":{"$error":"#N/A"}},{"$f":"VLOOKUP(N1153,'Data order'!M:O,3,0)","v":{"$error":"#N/A"}},null,null,null,{"$f":"IFERROR(\n  IF(R1153=\"Big&Tall\",\n      VLOOKUP(S1153, 'Data order'!$AC$92:$AD$101, 2, FALSE),\n      IF(R1153=\"Boordmaat\",\n          VLOOKUP(S1153, 'Data order'!$AC$102:$AD$116, 2, FALSE),\n          VLOOKUP(S1153, 'Data order'!$AC$2:$AD$91, 2, FALSE)\n      )\n  ),\n\"\")","v":""},null,null,null,null,"EUR",null,null,null,{"$error":"#DIV/0!"},0,0,null,"","","","","","","","","","",null,null,null,null,null,null,null,null,null,null,null,null,null,null,null,null,null,"ZWO"]
[null,null,null,null,null,{"$f":"VLOOKUP(G1154,'Data order'!Z:AA,2,0)","v":{"$error":"#N/A"}},null,null,null,null,null,null,null,null,{"$f":"VLOOKUP(N1154,Tabel10[[korte omschrijving]:[MCC3_CODE]],2,0)","v":{"$error":"#N/A"}},{"$f":"VLOOKUP(N1154,'Data order'!M:O,3,0)","v":{"$error":"#N/A"}},null,null,null,{"$f":"IFERROR(\n  IF(R1154=\"Big&Tall\",\n      VLOOKUP(S1154, 'Data order'!$AC$92:$AD$101, 2, FALSE),\n      IF(R1154=\"Boordmaat\",\n          VLOOKUP(S1154, 'Data order'!$AC$102:$AD$116, 2, FALSE),\n          VLOOKUP(S1154, 'Data order'!$AC$2:$AD$91, 2, FALSE)\n      )\n  ),\n\"\")","v":""},null,null,null,null,"EUR",null,null,null,{"$error":"#DIV/0!"},0,0,null,"","","","","","","","","","",null,null,null,null,null,null,null,null,null,null,null,null,null,null,null,null,null,"ZWO"]
[null,null,null,null,null,{"$f":"VLOOKUP(G1155,'Data order'!Z:AA,2,0)","v":{"$error":"#N/A"}},null,null,null,null,null,null,null,null,{"$f":"VLOOKUP(N1155,Tabel10[[korte omschrijving]:[MCC3_CODE]],2,0)","v":{"$error":"#N/A"}},{"$f":"VLOOKUP(N1155,'Data order'!M:O,3,0)","v":{"$error":"#N/A"}},null,null,null,{"$f":"IFERROR(\n  IF(R1155=\"Big&Tall\",\n      VLOOKUP(S1155, 'Data order'!$AC$92:$AD$101, 2, FALSE),\n      IF(R1155=\"Boordmaat\",\n          VLOOKUP(S1155, 'Data order'!$AC$102:$AD$116, 2, FALSE),\n          VLOOKUP(S1155, 'Data order'!$AC$2:$AD$91, 2, FALSE)\n      )\n  ),\n\"\")","v":""},null,null,null,null,"EUR",null,null,null,{"$error":"#DIV/0!"},0,0,null,"","","","","","","","","","",null,null,null,null,null,null,null,null,null,null,null,null,null,null,null,null,null,"ZWO"]
[null,null,null,null,null,{"$f":"VLOOKUP(G1156,'Data order'!Z:AA,2,0)","v":{"$error":"#N/A"}},null,null,null,null,null,null,null,null,{"$f":"VLOOKUP(N1156,Tabel10[[korte omschrijving]:[MCC3_CODE]],2,0)","v":{"$error":"#N/A"}},{"$f":"VLOOKUP(N1156,'Data order'!M:O,3,0)","v":{"$error":"#N/A"}},null,null,null,{"$f":"IFERROR(\n  IF(R1156=\"Big&Tall\",\n      VLOOKUP(S1156, 'Data order'!$AC$92:$AD$101, 2, FALSE),\n      IF(R1156=\"Boordmaat\",\n          VLOOKUP(S1156, 'Data order'!$AC$102:$AD$116, 2, FALSE),\n          VLOOKUP(S1156, 'Data order'!$AC$2:$AD$91, 2, FALSE)\n      )\n  ),\n\"\")","v":""},null,null,null,null,"EUR",null,null,null,{"$error":"#DIV/0!"},0,0,null,"","","","","","","","","","",null,null,null,null,null,null,null,null,null,null,null,null,null,null,null,null,null,"ZWO"]
[null,null,null,null,null,{"$f":"VLOOKUP(G1157,'Data order'!Z:AA,2,0)","v":{"$error":"#N/A"}},null,null,null,null,null,null,null,null,{"$f":"VLOOKUP(N1157,Tabel10[[korte omschrijving]:[MCC3_CODE]],2,0)","v":{"$error":"#N/A"}},{"$f":"VLOOKUP(N1157,'Data order'!M:O,3,0)","v":{"$error":"#N/A"}},null,null,null,{"$f":"IFERROR(\n  IF(R1157=\"Big&Tall\",\n      VLOOKUP(S1157, 'Data order'!$AC$92:$AD$101, 2, FALSE),\n      IF(R1157=\"Boordmaat\",\n          VLOOKUP(S1157, 'Data order'!$AC$102:$AD$116, 2, FALSE),\n          VLOOKUP(S1157, 'Data order'!$AC$2:$AD$91, 2, FALSE)\n      )\n  ),\n\"\")","v":""},null,null,null,null,"EUR",null,null,null,{"$error":"#DIV/0!"},0,0,null,"","","","","","","","","","",null,null,null,null,null,null,null,null,null,null,null,null,null,null,null,null,null,"ZWO"]
[null,null,null,null,null,{"$f":"VLOOKUP(G1158,'Data order'!Z:AA,2,0)","v":{"$error":"#N/A"}},null,null,null,null,null,null,null,null,{"$f":"VLOOKUP(N1158,Tabel10[[korte omschrijving]:[MCC3_CODE]],2,0)","v":{"$error":"#N/A"}},{"$f":"VLOOKUP(N1158,'Data order'!M:O,3,0)","v":{"$error":"#N/A"}},null,null,null,{"$f":"IFERROR(\n  IF(R1158=\"Big&Tall\",\n      VLOOKUP(S1158, 'Data order'!$AC$92:$AD$101, 2, FALSE),\n      IF(R1158=\"Boordmaat\",\n          VLOOKUP(S1158, 'Data order'!$AC$102:$AD$116, 2, FALSE),\n          VLOOKUP(S1158, 'Data order'!$AC$2:$AD$91, 2, FALSE)\n      )\n  ),\n\"\")","v":""},null,0,null,null,"EUR",null,null,null,{"$f":"AB1158/Z1158","v":{"$error":"#DIV/0!"}},{"$f":"U1158*Z1158","v":0},{"$f":"U1158*AB1158","v":0},null,"","","","","","","","","","",null,null,null,null,null,null,null,null,null,null,null,null,null,null,null,null,null,"ZWO"]
[null,null,null,null,null,{"$f":"VLOOKUP(G1159,'Data order'!Z:AA,2,0)","v":{"$error":"#N/A"}},null,null,null,null,null,null,null,null,{"$f":"VLOOKUP(N1159,Tabel10[[korte omschrijving]:[MCC3_CODE]],2,0)","v":{"$error":"#N/A"}},{"$f":"VLOOKUP(N1159,'Data order'!M:O,3,0)","v":{"$error":"#N/A"}},null,null,null,{"$f":"IFERROR(\n  IF(R1159=\"Big&Tall\",\n      VLOOKUP(S1159, 'Data order'!$AC$92:$AD$101, 2, FALSE),\n      IF(R1159=\"Boordmaat\",\n          VLOOKUP(S1159, 'Data order'!$AC$102:$AD$116, 2, FALSE),\n          VLOOKUP(S1159, 'Data order'!$AC$2:$AD$91, 2, FALSE)\n      )\n  ),\n\"\")","v":""},null,null,null,null,"EUR",null,null,null,{"$error":"#DIV/0!"},0,0,null,"","","","","","","","","","",null,null,null,null,null,null,null,null,null,null,null,null,null,null,null,null,null,"ZWO"]
[null,null,null,null,null,{"$f":"VLOOKUP(G1160,'Data order'!Z:AA,2,0)","v":{"$error":"#N/A"}},null,null,null,null,null,null,null,null,{"$f":"VLOOKUP(N1160,Tabel10[[korte omschrijving]:[MCC3_CODE]],2,0)","v":{"$error":"#N/A"}},{"$f":"VLOOKUP(N1160,'Data order'!M:O,3,0)","v":{"$error":"#N/A"}},null,null,null,{"$f":"IFERROR(\n  IF(R1160=\"Big&Tall\",\n      VLOOKUP(S1160, 'Data order'!$AC$92:$AD$101, 2, FALSE),\n      IF(R1160=\"Boordmaat\",\n          VLOOKUP(S1160, 'Data order'!$AC$102:$AD$116, 2, FALSE),\n          VLOOKUP(S1160, 'Data order'!$AC$2:$AD$91, 2, FALSE)\n      )\n  ),\n\"\")","v":""},null,null,null,null,"EUR",null,null,null,{"$error":"#DIV/0!"},0,0,null,"","","","","","","","","","",null,null,null,null,null,null,null,null,null,null,null,null,null,null,null,null,null,"ZWO"]
[null,null,null,null,null,{"$f":"VLOOKUP(G1161,'Data order'!Z:AA,2,0)","v":{"$error":"#N/A"}},null,null,null,null,null,null,null,null,{"$f":"VLOOKUP(N1161,Tabel10[[korte omschrijving]:[MCC3_CODE]],2,0)","v":{"$error":"#N/A"}},{"$f":"VLOOKUP(N1161,'Data order'!M:O,3,0)","v":{"$error":"#N/A"}},null,null,null,{"$f":"IFERROR(\n  IF(R1161=\"Big&Tall\",\n      VLOOKUP(S1161, 'Data order'!$AC$92:$AD$101, 2, FALSE),\n      IF(R1161=\"Boordmaat\",\n          VLOOKUP(S1161, 'Data order'!$AC$102:$AD$116, 2, FALSE),\n          VLOOKUP(S1161, 'Data order'!$AC$2:$AD$91, 2, FALSE)\n      )\n  ),\n\"\")","v":""},null,null,null,null,"EUR",null,null,null,{"$error":"#DIV/0!"},0,0,null,"","","","","","","","","","",null,null,null,null,null,null,null,null,null,null,null,null,null,null,null,null,null,"ZWO"]
[null,null,null,null,null,{"$f":"VLOOKUP(G1162,'Data order'!Z:AA,2,0)","v":{"$error":"#N/A"}},null,null,null,null,null,null,null,null,{"$f":"VLOOKUP(N1162,Tabel10[[korte omschrijving]:[MCC3_CODE]],2,0)","v":{"$error":"#N/A"}},{"$f":"VLOOKUP(N1162,'Data order'!M:O,3,0)","v":{"$error":"#N/A"}},null,null,null,{"$f":"IFERROR(\n  IF(R1162=\"Big&Tall\",\n      VLOOKUP(S1162, 'Data order'!$AC$92:$AD$101, 2, FALSE),\n      IF(R1162=\"Boordmaat\",\n          VLOOKUP(S1162, 'Data order'!$AC$102:$AD$116, 2, FALSE),\n          VLOOKUP(S1162, 'Data order'!$AC$2:$AD$91, 2, FALSE)\n      )\n  ),\n\"\")","v":""},null,null,null,null,"EUR",null,null,null,{"$error":"#DIV/0!"},0,0,null,"","","","","","","","","","",null,null,null,null,null,null,null,null,null,null,null,null,null,null,null,null,null,"ZWO"]
[null,null,null,null,null,{"$f":"VLOOKUP(G1163,'Data order'!Z:AA,2,0)","v":{"$error":"#N/A"}},null,null,null,null,null,null,null,null,{"$f":"VLOOKUP(N1163,Tabel10[[korte omschrijving]:[MCC3_CODE]],2,0)","v":{"$error":"#N/A"}},{"$f":"VLOOKUP(N1163,'Data order'!M:O,3,0)","v":{"$error":"#N/A"}},null,null,null,{"$f":"IFERROR(\n  IF(R1163=\"Big&Tall\",\n      VLOOKUP(S1163, 'Data order'!$AC$92:$AD$101, 2, FALSE),\n      IF(R1163=\"Boordmaat\",\n          VLOOKUP(S1163, 'Data order'!$AC$102:$AD$116, 2, FALSE),\n          VLOOKUP(S1163, 'Data order'!$AC$2:$AD$91, 2, FALSE)\n      )\n  ),\n\"\")","v":""},null,null,null,null,"EUR",null,null,null,{"$error":"#DIV/0!"},0,0,null,"","","","","","","","","","",null,null,null,null,null,null,null,null,null,null,null,null,null,null,null,null,null,"ZWO"]
[null,null,null,null,null,{"$f":"VLOOKUP(G1164,'Data order'!Z:AA,2,0)","v":{"$error":"#N/A"}},null,null,null,null,null,null,null,null,{"$f":"VLOOKUP(N1164,Tabel10[[korte omschrijving]:[MCC3_CODE]],2,0)","v":{"$error":"#N/A"}},{"$f":"VLOOKUP(N1164,'Data order'!M:O,3,0)","v":{"$error":"#N/A"}},null,null,null,{"$f":"IFERROR(\n  IF(R1164=\"Big&Tall\",\n      VLOOKUP(S1164, 'Data order'!$AC$92:$AD$101, 2, FALSE),\n      IF(R1164=\"Boordmaat\",\n          VLOOKUP(S1164, 'Data order'!$AC$102:$AD$116, 2, FALSE),\n          VLOOKUP(S1164, 'Data order'!$AC$2:$AD$91, 2, FALSE)\n      )\n  ),\n\"\")","v":""},null,{"$f":"SUM(U1164:U1169)","v":0},null,null,"EUR",null,null,null,{"$f":"AB1164/Z1164","v":{"$error":"#DIV/0!"}},{"$f":"U1164*Z1164","v":0},{"$f":"U1164*AB1164","v":0},null,"","","","","","","","","","",null,null,null,null,null,null,null,null,null,null,null,null,null,null,null,null,null,"ZWO"]
[null,null,null,null,null,{"$f":"VLOOKUP(G1165,'Data order'!Z:AA,2,0)","v":{"$error":"#N/A"}},null,null,null,null,null,null,null,null,{"$f":"VLOOKUP(N1165,Tabel10[[korte omschrijving]:[MCC3_CODE]],2,0)","v":{"$error":"#N/A"}},{"$f":"VLOOKUP(N1165,'Data order'!M:O,3,0)","v":{"$error":"#N/A"}},null,null,null,{"$f":"IFERROR(\n  IF(R1165=\"Big&Tall\",\n      VLOOKUP(S1165, 'Data order'!$AC$92:$AD$101, 2, FALSE),\n      IF(R1165=\"Boordmaat\",\n          VLOOKUP(S1165, 'Data order'!$AC$102:$AD$116, 2, FALSE),\n          VLOOKUP(S1165, 'Data order'!$AC$2:$AD$91, 2, FALSE)\n      )\n  ),\n\"\")","v":""},null,null,null,null,"EUR",null,null,null,{"$error":"#DIV/0!"},0,0,null,"","","","","","","","","","",null,null,null,null,null,null,null,null,null,null,null,null,null,null,null,null,null,"ZWO"]
[null,null,null,null,null,{"$f":"VLOOKUP(G1166,'Data order'!Z:AA,2,0)","v":{"$error":"#N/A"}},null,null,null,null,null,null,null,null,{"$f":"VLOOKUP(N1166,Tabel10[[korte omschrijving]:[MCC3_CODE]],2,0)","v":{"$error":"#N/A"}},{"$f":"VLOOKUP(N1166,'Data order'!M:O,3,0)","v":{"$error":"#N/A"}},null,null,null,{"$f":"IFERROR(\n  IF(R1166=\"Big&Tall\",\n      VLOOKUP(S1166, 'Data order'!$AC$92:$AD$101, 2, FALSE),\n      IF(R1166=\"Boordmaat\",\n          VLOOKUP(S1166, 'Data order'!$AC$102:$AD$116, 2, FALSE),\n          VLOOKUP(S1166, 'Data order'!$AC$2:$AD$91, 2, FALSE)\n      )\n  ),\n\"\")","v":""},null,null,null,null,"EUR",null,null,null,{"$error":"#DIV/0!"},0,0,null,"","","","","","","","","","",null,null,null,null,null,null,null,null,null,null,null,null,null,null,null,null,null,"ZWO"]
[null,null,null,null,null,{"$f":"VLOOKUP(G1167,'Data order'!Z:AA,2,0)","v":{"$error":"#N/A"}},null,null,null,null,null,null,null,null,{"$f":"VLOOKUP(N1167,Tabel10[[korte omschrijving]:[MCC3_CODE]],2,0)","v":{"$error":"#N/A"}},{"$f":"VLOOKUP(N1167,'Data order'!M:O,3,0)","v":{"$error":"#N/A"}},null,null,null,{"$f":"IFERROR(\n  IF(R1167=\"Big&Tall\",\n      VLOOKUP(S1167, 'Data order'!$AC$92:$AD$101, 2, FALSE),\n      IF(R1167=\"Boordmaat\",\n          VLOOKUP(S1167, 'Data order'!$AC$102:$AD$116, 2, FALSE),\n          VLOOKUP(S1167, 'Data order'!$AC$2:$AD$91, 2, FALSE)\n      )\n  ),\n\"\")","v":""},null,null,null,null,"EUR",null,null,null,{"$error":"#DIV/0!"},0,0,null,"","","","","","","","","","",null,null,null,null,null,null,null,null,null,null,null,null,null,null,null,null,null,"ZWO"]
[null,null,null,null,null,{"$f":"VLOOKUP(G1168,'Data order'!Z:AA,2,0)","v":{"$error":"#N/A"}},null,null,null,null,null,null,null,null,{"$f":"VLOOKUP(N1168,Tabel10[[korte omschrijving]:[MCC3_CODE]],2,0)","v":{"$error":"#N/A"}},{"$f":"VLOOKUP(N1168,'Data order'!M:O,3,0)","v":{"$error":"#N/A"}},null,null,null,{"$f":"IFERROR(\n  IF(R1168=\"Big&Tall\",\n      VLOOKUP(S1168, 'Data order'!$AC$92:$AD$101, 2, FALSE),\n      IF(R1168=\"Boordmaat\",\n          VLOOKUP(S1168, 'Data order'!$AC$102:$AD$116, 2, FALSE),\n          VLOOKUP(S1168, 'Data order'!$AC$2:$AD$91, 2, FALSE)\n      )\n  ),\n\"\")","v":""},null,null,null,null,"EUR",null,null,null,{"$error":"#DIV/0!"},0,0,null,"","","","","","","","","","",null,null,null,null,null,null,null,null,null,null,null,null,null,null,null,null,null,"ZWO"]
[null,null,null,null,null,{"$f":"VLOOKUP(G1169,'Data order'!Z:AA,2,0)","v":{"$error":"#N/A"}},null,null,null,null,null,null,null,null,{"$f":"VLOOKUP(N1169,Tabel10[[korte omschrijving]:[MCC3_CODE]],2,0)","v":{"$error":"#N/A"}},{"$f":"VLOOKUP(N1169,'Data order'!M:O,3,0)","v":{"$error":"#N/A"}},null,null,null,{"$f":"IFERROR(\n  IF(R1169=\"Big&Tall\",\n      VLOOKUP(S1169, 'Data order'!$AC$92:$AD$101, 2, FALSE),\n      IF(R1169=\"Boordmaat\",\n          VLOOKUP(S1169, 'Data order'!$AC$102:$AD$116, 2, FALSE),\n          VLOOKUP(S1169, 'Data order'!$AC$2:$AD$91, 2, FALSE)\n      )\n  ),\n\"\")","v":""},null,null,null,null,"EUR",null,null,null,{"$error":"#DIV/0!"},0,0,null,"","","","","","","","","","",null,null,null,null,null,null,null,null,null,null,null,null,null,null,null,null,null,"ZWO"]
[null,null,null,null,null,{"$f":"VLOOKUP(G1170,'Data order'!Z:AA,2,0)","v":{"$error":"#N/A"}},null,null,null,null,null,null,null,null,{"$f":"VLOOKUP(N1170,Tabel10[[korte omschrijving]:[MCC3_CODE]],2,0)","v":{"$error":"#N/A"}},{"$f":"VLOOKUP(N1170,'Data order'!M:O,3,0)","v":{"$error":"#N/A"}},null,null,null,{"$f":"IFERROR(\n  IF(R1170=\"Big&Tall\",\n      VLOOKUP(S1170, 'Data order'!$AC$92:$AD$101, 2, FALSE),\n      IF(R1170=\"Boordmaat\",\n          VLOOKUP(S1170, 'Data order'!$AC$102:$AD$116, 2, FALSE),\n          VLOOKUP(S1170, 'Data order'!$AC$2:$AD$91, 2, FALSE)\n      )\n  ),\n\"\")","v":""},null,0,null,null,"EUR",null,null,null,{"$f":"AB1170/Z1170","v":{"$error":"#DIV/0!"}},{"$f":"U1170*Z1170","v":0},{"$f":"U1170*AB1170","v":0},null,"","","","","","","","","","",null,null,null,null,null,null,null,null,null,null,null,null,null,null,null,null,null,"ZWO"]
[null,null,null,null,null,{"$f":"VLOOKUP(G1171,'Data order'!Z:AA,2,0)","v":{"$error":"#N/A"}},null,null,null,null,null,null,null,null,{"$f":"VLOOKUP(N1171,Tabel10[[korte omschrijving]:[MCC3_CODE]],2,0)","v":{"$error":"#N/A"}},{"$f":"VLOOKUP(N1171,'Data order'!M:O,3,0)","v":{"$error":"#N/A"}},null,null,null,{"$f":"IFERROR(\n  IF(R1171=\"Big&Tall\",\n      VLOOKUP(S1171, 'Data order'!$AC$92:$AD$101, 2, FALSE),\n      IF(R1171=\"Boordmaat\",\n          VLOOKUP(S1171, 'Data order'!$AC$102:$AD$116, 2, FALSE),\n          VLOOKUP(S1171, 'Data order'!$AC$2:$AD$91, 2, FALSE)\n      )\n  ),\n\"\")","v":""},null,null,null,null,"EUR",null,null,null,{"$error":"#DIV/0!"},0,0,null,"","","","","","","","","","",null,null,null,null,null,null,null,null,null,null,null,null,null,null,null,null,null,"ZWO"]
[null,null,null,null,null,{"$f":"VLOOKUP(G1172,'Data order'!Z:AA,2,0)","v":{"$error":"#N/A"}},null,null,null,null,null,null,null,null,{"$f":"VLOOKUP(N1172,Tabel10[[korte omschrijving]:[MCC3_CODE]],2,0)","v":{"$error":"#N/A"}},{"$f":"VLOOKUP(N1172,'Data order'!M:O,3,0)","v":{"$error":"#N/A"}},null,null,null,{"$f":"IFERROR(\n  IF(R1172=\"Big&Tall\",\n      VLOOKUP(S1172, 'Data order'!$AC$92:$AD$101, 2, FALSE),\n      IF(R1172=\"Boordmaat\",\n          VLOOKUP(S1172, 'Data order'!$AC$102:$AD$116, 2, FALSE),\n          VLOOKUP(S1172, 'Data order'!$AC$2:$AD$91, 2, FALSE)\n      )\n  ),\n\"\")","v":""},null,null,null,null,"EUR",null,null,null,{"$error":"#DIV/0!"},0,0,null,"","","","","","","","","","",null,null,null,null,null,null,null,null,null,null,null,null,null,null,null,null,null,"ZWO"]
[null,null,null,null,null,{"$f":"VLOOKUP(G1173,'Data order'!Z:AA,2,0)","v":{"$error":"#N/A"}},null,null,null,null,null,null,null,null,{"$f":"VLOOKUP(N1173,Tabel10[[korte omschrijving]:[MCC3_CODE]],2,0)","v":{"$error":"#N/A"}},{"$f":"VLOOKUP(N1173,'Data order'!M:O,3,0)","v":{"$error":"#N/A"}},null,null,null,{"$f":"IFERROR(\n  IF(R1173=\"Big&Tall\",\n      VLOOKUP(S1173, 'Data order'!$AC$92:$AD$101, 2, FALSE),\n      IF(R1173=\"Boordmaat\",\n          VLOOKUP(S1173, 'Data order'!$AC$102:$AD$116, 2, FALSE),\n          VLOOKUP(S1173, 'Data order'!$AC$2:$AD$91, 2, FALSE)\n      )\n  ),\n\"\")","v":""},null,null,null,null,"EUR",null,null,null,{"$error":"#DIV/0!"},0,0,null,"","","","","","","","","","",null,null,null,null,null,null,null,null,null,null,null,null,null,null,null,null,null,"ZWO"]
[null,null,null,null,null,{"$f":"VLOOKUP(G1174,'Data order'!Z:AA,2,0)","v":{"$error":"#N/A"}},null,null,null,null,null,null,null,null,{"$f":"VLOOKUP(N1174,Tabel10[[korte omschrijving]:[MCC3_CODE]],2,0)","v":{"$error":"#N/A"}},{"$f":"VLOOKUP(N1174,'Data order'!M:O,3,0)","v":{"$error":"#N/A"}},null,null,null,{"$f":"IFERROR(\n  IF(R1174=\"Big&Tall\",\n      VLOOKUP(S1174, 'Data order'!$AC$92:$AD$101, 2, FALSE),\n      IF(R1174=\"Boordmaat\",\n          VLOOKUP(S1174, 'Data order'!$AC$102:$AD$116, 2, FALSE),\n          VLOOKUP(S1174, 'Data order'!$AC$2:$AD$91, 2, FALSE)\n      )\n  ),\n\"\")","v":""},null,null,null,null,"EUR",null,null,null,{"$error":"#DIV/0!"},0,0,null,"","","","","","","","","","",null,null,null,null,null,null,null,null,null,null,null,null,null,null,null,null,null,"ZWO"]
[null,null,null,null,null,{"$f":"VLOOKUP(G1175,'Data order'!Z:AA,2,0)","v":{"$error":"#N/A"}},null,null,null,null,null,null,null,null,{"$f":"VLOOKUP(N1175,Tabel10[[korte omschrijving]:[MCC3_CODE]],2,0)","v":{"$error":"#N/A"}},{"$f":"VLOOKUP(N1175,'Data order'!M:O,3,0)","v":{"$error":"#N/A"}},null,null,null,{"$f":"IFERROR(\n  IF(R1175=\"Big&Tall\",\n      VLOOKUP(S1175, 'Data order'!$AC$92:$AD$101, 2, FALSE),\n      IF(R1175=\"Boordmaat\",\n          VLOOKUP(S1175, 'Data order'!$AC$102:$AD$116, 2, FALSE),\n          VLOOKUP(S1175, 'Data order'!$AC$2:$AD$91, 2, FALSE)\n      )\n  ),\n\"\")","v":""},null,null,null,null,"EUR",null,null,null,{"$error":"#DIV/0!"},0,0,null,"","","","","","","","","","",null,null,null,null,null,null,null,null,null,null,null,null,null,null,null,null,null,"ZWO"]
[null,null,null,null,null,{"$f":"VLOOKUP(G1176,'Data order'!Z:AA,2,0)","v":{"$error":"#N/A"}},null,null,null,null,null,null,null,null,{"$f":"VLOOKUP(N1176,Tabel10[[korte omschrijving]:[MCC3_CODE]],2,0)","v":{"$error":"#N/A"}},{"$f":"VLOOKUP(N1176,'Data order'!M:O,3,0)","v":{"$error":"#N/A"}},null,null,null,{"$f":"IFERROR(\n  IF(R1176=\"Big&Tall\",\n      VLOOKUP(S1176, 'Data order'!$AC$92:$AD$101, 2, FALSE),\n      IF(R1176=\"Boordmaat\",\n          VLOOKUP(S1176, 'Data order'!$AC$102:$AD$116, 2, FALSE),\n          VLOOKUP(S1176, 'Data order'!$AC$2:$AD$91, 2, FALSE)\n      )\n  ),\n\"\")","v":""},null,0,null,null,"EUR",null,null,null,{"$f":"AB1176/Z1176","v":{"$error":"#DIV/0!"}},{"$f":"U1176*Z1176","v":0},{"$f":"U1176*AB1176","v":0},null,"","","","","","","","","","",null,null,null,null,null,null,null,null,null,null,null,null,null,null,null,null,null,"ZWO"]
[null,null,null,null,null,{"$f":"VLOOKUP(G1177,'Data order'!Z:AA,2,0)","v":{"$error":"#N/A"}},null,null,null,null,null,null,null,null,{"$f":"VLOOKUP(N1177,Tabel10[[korte omschrijving]:[MCC3_CODE]],2,0)","v":{"$error":"#N/A"}},{"$f":"VLOOKUP(N1177,'Data order'!M:O,3,0)","v":{"$error":"#N/A"}},null,null,null,{"$f":"IFERROR(\n  IF(R1177=\"Big&Tall\",\n      VLOOKUP(S1177, 'Data order'!$AC$92:$AD$101, 2, FALSE),\n      IF(R1177=\"Boordmaat\",\n          VLOOKUP(S1177, 'Data order'!$AC$102:$AD$116, 2, FALSE),\n          VLOOKUP(S1177, 'Data order'!$AC$2:$AD$91, 2, FALSE)\n      )\n  ),\n\"\")","v":""},null,null,null,null,"EUR",null,null,null,{"$error":"#DIV/0!"},0,0,null,"","","","","","","","","","",null,null,null,null,null,null,null,null,null,null,null,null,null,null,null,null,null,"ZWO"]
[null,null,null,null,null,{"$f":"VLOOKUP(G1178,'Data order'!Z:AA,2,0)","v":{"$error":"#N/A"}},null,null,null,null,null,null,null,null,{"$f":"VLOOKUP(N1178,Tabel10[[korte omschrijving]:[MCC3_CODE]],2,0)","v":{"$error":"#N/A"}},{"$f":"VLOOKUP(N1178,'Data order'!M:O,3,0)","v":{"$error":"#N/A"}},null,null,null,{"$f":"IFERROR(\n  IF(R1178=\"Big&Tall\",\n      VLOOKUP(S1178, 'Data order'!$AC$92:$AD$101, 2, FALSE),\n      IF(R1178=\"Boordmaat\",\n          VLOOKUP(S1178, 'Data order'!$AC$102:$AD$116, 2, FALSE),\n          VLOOKUP(S1178, 'Data order'!$AC$2:$AD$91, 2, FALSE)\n      )\n  ),\n\"\")","v":""},null,null,null,null,"EUR",null,null,null,{"$error":"#DIV/0!"},0,0,null,"","","","","","","","","","",null,null,null,null,null,null,null,null,null,null,null,null,null,null,null,null,null,"ZWO"]
[null,null,null,null,null,{"$f":"VLOOKUP(G1179,'Data order'!Z:AA,2,0)","v":{"$error":"#N/A"}},null,null,null,null,null,null,null,null,{"$f":"VLOOKUP(N1179,Tabel10[[korte omschrijving]:[MCC3_CODE]],2,0)","v":{"$error":"#N/A"}},{"$f":"VLOOKUP(N1179,'Data order'!M:O,3,0)","v":{"$error":"#N/A"}},null,null,null,{"$f":"IFERROR(\n  IF(R1179=\"Big&Tall\",\n      VLOOKUP(S1179, 'Data order'!$AC$92:$AD$101, 2, FALSE),\n      IF(R1179=\"Boordmaat\",\n          VLOOKUP(S1179, 'Data order'!$AC$102:$AD$116, 2, FALSE),\n          VLOOKUP(S1179, 'Data order'!$AC$2:$AD$91, 2, FALSE)\n      )\n  ),\n\"\")","v":""},null,null,null,null,"EUR",null,null,null,{"$error":"#DIV/0!"},0,0,null,"","","","","","","","","","",null,null,null,null,null,null,null,null,null,null,null,null,null,null,null,null,null,"ZWO"]
[null,null,null,null,null,{"$f":"VLOOKUP(G1180,'Data order'!Z:AA,2,0)","v":{"$error":"#N/A"}},null,null,null,null,null,null,null,null,{"$f":"VLOOKUP(N1180,Tabel10[[korte omschrijving]:[MCC3_CODE]],2,0)","v":{"$error":"#N/A"}},{"$f":"VLOOKUP(N1180,'Data order'!M:O,3,0)","v":{"$error":"#N/A"}},null,null,null,{"$f":"IFERROR(\n  IF(R1180=\"Big&Tall\",\n      VLOOKUP(S1180, 'Data order'!$AC$92:$AD$101, 2, FALSE),\n      IF(R1180=\"Boordmaat\",\n          VLOOKUP(S1180, 'Data order'!$AC$102:$AD$116, 2, FALSE),\n          VLOOKUP(S1180, 'Data order'!$AC$2:$AD$91, 2, FALSE)\n      )\n  ),\n\"\")","v":""},null,null,null,null,"EUR",null,null,null,{"$error":"#DIV/0!"},0,0,null,"","","","","","","","","","",null,null,null,null,null,null,null,null,null,null,null,null,null,null,null,null,null,"ZWO"]
[null,null,null,null,null,{"$f":"VLOOKUP(G1181,'Data order'!Z:AA,2,0)","v":{"$error":"#N/A"}},null,null,null,null,null,null,null,null,{"$f":"VLOOKUP(N1181,Tabel10[[korte omschrijving]:[MCC3_CODE]],2,0)","v":{"$error":"#N/A"}},{"$f":"VLOOKUP(N1181,'Data order'!M:O,3,0)","v":{"$error":"#N/A"}},null,null,null,{"$f":"IFERROR(\n  IF(R1181=\"Big&Tall\",\n      VLOOKUP(S1181, 'Data order'!$AC$92:$AD$101, 2, FALSE),\n      IF(R1181=\"Boordmaat\",\n          VLOOKUP(S1181, 'Data order'!$AC$102:$AD$116, 2, FALSE),\n          VLOOKUP(S1181, 'Data order'!$AC$2:$AD$91, 2, FALSE)\n      )\n  ),\n\"\")","v":""},null,null,null,null,"EUR",null,null,null,{"$error":"#DIV/0!"},0,0,null,"","","","","","","","","","",null,null,null,null,null,null,null,null,null,null,null,null,null,null,null,null,null,"ZWO"]
[null,null,null,null,null,{"$f":"VLOOKUP(G1182,'Data order'!Z:AA,2,0)","v":{"$error":"#N/A"}},null,null,null,null,null,null,null,null,{"$f":"VLOOKUP(N1182,Tabel10[[korte omschrijving]:[MCC3_CODE]],2,0)","v":{"$error":"#N/A"}},{"$f":"VLOOKUP(N1182,'Data order'!M:O,3,0)","v":{"$error":"#N/A"}},null,null,null,{"$f":"IFERROR(\n  IF(R1182=\"Big&Tall\",\n      VLOOKUP(S1182, 'Data order'!$AC$92:$AD$101, 2, FALSE),\n      IF(R1182=\"Boordmaat\",\n          VLOOKUP(S1182, 'Data order'!$AC$102:$AD$116, 2, FALSE),\n          VLOOKUP(S1182, 'Data order'!$AC$2:$AD$91, 2, FALSE)\n      )\n  ),\n\"\")","v":""},null,0,null,null,"EUR",null,null,null,{"$f":"AB1182/Z1182","v":{"$error":"#DIV/0!"}},{"$f":"U1182*Z1182","v":0},{"$f":"U1182*AB1182","v":0},null,"","","","","","","","","","",null,null,null,null,null,null,null,null,null,null,null,null,null,null,null,null,null,"ZWO"]
[null,null,null,null,null,{"$f":"VLOOKUP(G1183,'Data order'!Z:AA,2,0)","v":{"$error":"#N/A"}},null,null,null,null,null,null,null,null,{"$f":"VLOOKUP(N1183,Tabel10[[korte omschrijving]:[MCC3_CODE]],2,0)","v":{"$error":"#N/A"}},{"$f":"VLOOKUP(N1183,'Data order'!M:O,3,0)","v":{"$error":"#N/A"}},null,null,null,{"$f":"IFERROR(\n  IF(R1183=\"Big&Tall\",\n      VLOOKUP(S1183, 'Data order'!$AC$92:$AD$101, 2, FALSE),\n      IF(R1183=\"Boordmaat\",\n          VLOOKUP(S1183, 'Data order'!$AC$102:$AD$116, 2, FALSE),\n          VLOOKUP(S1183, 'Data order'!$AC$2:$AD$91, 2, FALSE)\n      )\n  ),\n\"\")","v":""},null,null,null,null,"EUR",null,null,null,{"$error":"#DIV/0!"},0,0,null,"","","","","","","","","","",null,null,null,null,null,null,null,null,null,null,null,null,null,null,null,null,null,"ZWO"]
[null,null,null,null,null,{"$f":"VLOOKUP(G1184,'Data order'!Z:AA,2,0)","v":{"$error":"#N/A"}},null,null,null,null,null,null,null,null,{"$f":"VLOOKUP(N1184,Tabel10[[korte omschrijving]:[MCC3_CODE]],2,0)","v":{"$error":"#N/A"}},{"$f":"VLOOKUP(N1184,'Data order'!M:O,3,0)","v":{"$error":"#N/A"}},null,null,null,{"$f":"IFERROR(\n  IF(R1184=\"Big&Tall\",\n      VLOOKUP(S1184, 'Data order'!$AC$92:$AD$101, 2, FALSE),\n      IF(R1184=\"Boordmaat\",\n          VLOOKUP(S1184, 'Data order'!$AC$102:$AD$116, 2, FALSE),\n          VLOOKUP(S1184, 'Data order'!$AC$2:$AD$91, 2, FALSE)\n      )\n  ),\n\"\")","v":""},null,null,null,null,"EUR",null,null,null,{"$error":"#DIV/0!"},0,0,null,"","","","","","","","","","",null,null,null,null,null,null,null,null,null,null,null,null,null,null,null,null,null,"ZWO"]
[null,null,null,null,null,{"$f":"VLOOKUP(G1185,'Data order'!Z:AA,2,0)","v":{"$error":"#N/A"}},null,null,null,null,null,null,null,null,{"$f":"VLOOKUP(N1185,Tabel10[[korte omschrijving]:[MCC3_CODE]],2,0)","v":{"$error":"#N/A"}},{"$f":"VLOOKUP(N1185,'Data order'!M:O,3,0)","v":{"$error":"#N/A"}},null,null,null,{"$f":"IFERROR(\n  IF(R1185=\"Big&Tall\",\n      VLOOKUP(S1185, 'Data order'!$AC$92:$AD$101, 2, FALSE),\n      IF(R1185=\"Boordmaat\",\n          VLOOKUP(S1185, 'Data order'!$AC$102:$AD$116, 2, FALSE),\n          VLOOKUP(S1185, 'Data order'!$AC$2:$AD$91, 2, FALSE)\n      )\n  ),\n\"\")","v":""},null,null,null,null,"EUR",null,null,null,{"$error":"#DIV/0!"},0,0,null,"","","","","","","","","","",null,null,null,null,null,null,null,null,null,null,null,null,null,null,null,null,null,"ZWO"]
[null,null,null,null,null,{"$f":"VLOOKUP(G1186,'Data order'!Z:AA,2,0)","v":{"$error":"#N/A"}},null,null,null,null,null,null,null,null,{"$f":"VLOOKUP(N1186,Tabel10[[korte omschrijving]:[MCC3_CODE]],2,0)","v":{"$error":"#N/A"}},{"$f":"VLOOKUP(N1186,'Data order'!M:O,3,0)","v":{"$error":"#N/A"}},null,null,null,{"$f":"IFERROR(\n  IF(R1186=\"Big&Tall\",\n      VLOOKUP(S1186, 'Data order'!$AC$92:$AD$101, 2, FALSE),\n      IF(R1186=\"Boordmaat\",\n          VLOOKUP(S1186, 'Data order'!$AC$102:$AD$116, 2, FALSE),\n          VLOOKUP(S1186, 'Data order'!$AC$2:$AD$91, 2, FALSE)\n      )\n  ),\n\"\")","v":""},null,null,null,null,"EUR",null,null,null,{"$error":"#DIV/0!"},0,0,null,"","","","","","","","","","",null,null,null,null,null,null,null,null,null,null,null,null,null,null,null,null,null,"ZWO"]
[null,null,null,null,null,{"$f":"VLOOKUP(G1187,'Data order'!Z:AA,2,0)","v":{"$error":"#N/A"}},null,null,null,null,null,null,null,null,{"$f":"VLOOKUP(N1187,Tabel10[[korte omschrijving]:[MCC3_CODE]],2,0)","v":{"$error":"#N/A"}},{"$f":"VLOOKUP(N1187,'Data order'!M:O,3,0)","v":{"$error":"#N/A"}},null,null,null,{"$f":"IFERROR(\n  IF(R1187=\"Big&Tall\",\n      VLOOKUP(S1187, 'Data order'!$AC$92:$AD$101, 2, FALSE),\n      IF(R1187=\"Boordmaat\",\n          VLOOKUP(S1187, 'Data order'!$AC$102:$AD$116, 2, FALSE),\n          VLOOKUP(S1187, 'Data order'!$AC$2:$AD$91, 2, FALSE)\n      )\n  ),\n\"\")","v":""},null,null,null,null,"EUR",null,null,null,{"$error":"#DIV/0!"},0,0,null,"","","","","","","","","","",null,null,null,null,null,null,null,null,null,null,null,null,null,null,null,null,null,"ZWO"]
[null,null,null,null,null,{"$f":"VLOOKUP(G1188,'Data order'!Z:AA,2,0)","v":{"$error":"#N/A"}},null,null,null,null,null,null,null,null,{"$f":"VLOOKUP(N1188,Tabel10[[korte omschrijving]:[MCC3_CODE]],2,0)","v":{"$error":"#N/A"}},{"$f":"VLOOKUP(N1188,'Data order'!M:O,3,0)","v":{"$error":"#N/A"}},null,null,null,{"$f":"IFERROR(\n  IF(R1188=\"Big&Tall\",\n      VLOOKUP(S1188, 'Data order'!$AC$92:$AD$101, 2, FALSE),\n      IF(R1188=\"Boordmaat\",\n          VLOOKUP(S1188, 'Data order'!$AC$102:$AD$116, 2, FALSE),\n          VLOOKUP(S1188, 'Data order'!$AC$2:$AD$91, 2, FALSE)\n      )\n  ),\n\"\")","v":""},null,0,null,null,"EUR",null,null,null,{"$f":"AB1188/Z1188","v":{"$error":"#DIV/0!"}},{"$f":"U1188*Z1188","v":0},{"$f":"U1188*AB1188","v":0},null,"","","","","","","","","","",null,null,null,null,null,null,null,null,null,null,null,null,null,null,null,null,null,"ZWO"]
[null,null,null,null,null,{"$f":"VLOOKUP(G1189,'Data order'!Z:AA,2,0)","v":{"$error":"#N/A"}},null,null,null,null,null,null,null,null,{"$f":"VLOOKUP(N1189,Tabel10[[korte omschrijving]:[MCC3_CODE]],2,0)","v":{"$error":"#N/A"}},{"$f":"VLOOKUP(N1189,'Data order'!M:O,3,0)","v":{"$error":"#N/A"}},null,null,null,{"$f":"IFERROR(\n  IF(R1189=\"Big&Tall\",\n      VLOOKUP(S1189, 'Data order'!$AC$92:$AD$101, 2, FALSE),\n      IF(R1189=\"Boordmaat\",\n          VLOOKUP(S1189, 'Data order'!$AC$102:$AD$116, 2, FALSE),\n          VLOOKUP(S1189, 'Data order'!$AC$2:$AD$91, 2, FALSE)\n      )\n  ),\n\"\")","v":""},null,null,null,null,"EUR",null,null,null,{"$error":"#DIV/0!"},0,0,null,"","","","","","","","","","",null,null,null,null,null,null,null,null,null,null,null,null,null,null,null,null,null,"ZWO"]
[null,null,null,null,null,{"$f":"VLOOKUP(G1190,'Data order'!Z:AA,2,0)","v":{"$error":"#N/A"}},null,null,null,null,null,null,null,null,{"$f":"VLOOKUP(N1190,Tabel10[[korte omschrijving]:[MCC3_CODE]],2,0)","v":{"$error":"#N/A"}},{"$f":"VLOOKUP(N1190,'Data order'!M:O,3,0)","v":{"$error":"#N/A"}},null,null,null,{"$f":"IFERROR(\n  IF(R1190=\"Big&Tall\",\n      VLOOKUP(S1190, 'Data order'!$AC$92:$AD$101, 2, FALSE),\n      IF(R1190=\"Boordmaat\",\n          VLOOKUP(S1190, 'Data order'!$AC$102:$AD$116, 2, FALSE),\n          VLOOKUP(S1190, 'Data order'!$AC$2:$AD$91, 2, FALSE)\n      )\n  ),\n\"\")","v":""},null,null,null,null,"EUR",null,null,null,{"$error":"#DIV/0!"},0,0,null,"","","","","","","","","","",null,null,null,null,null,null,null,null,null,null,null,null,null,null,null,null,null,"ZWO"]
[null,null,null,null,null,{"$f":"VLOOKUP(G1191,'Data order'!Z:AA,2,0)","v":{"$error":"#N/A"}},null,null,null,null,null,null,null,null,{"$f":"VLOOKUP(N1191,Tabel10[[korte omschrijving]:[MCC3_CODE]],2,0)","v":{"$error":"#N/A"}},{"$f":"VLOOKUP(N1191,'Data order'!M:O,3,0)","v":{"$error":"#N/A"}},null,null,null,{"$f":"IFERROR(\n  IF(R1191=\"Big&Tall\",\n      VLOOKUP(S1191, 'Data order'!$AC$92:$AD$101, 2, FALSE),\n      IF(R1191=\"Boordmaat\",\n          VLOOKUP(S1191, 'Data order'!$AC$102:$AD$116, 2, FALSE),\n          VLOOKUP(S1191, 'Data order'!$AC$2:$AD$91, 2, FALSE)\n      )\n  ),\n\"\")","v":""},null,null,null,null,"EUR",null,null,null,{"$error":"#DIV/0!"},0,0,null,"","","","","","","","","","",null,null,null,null,null,null,null,null,null,null,null,null,null,null,null,null,null,"ZWO"]
[null,null,null,null,null,{"$f":"VLOOKUP(G1192,'Data order'!Z:AA,2,0)","v":{"$error":"#N/A"}},null,null,null,null,null,null,null,null,{"$f":"VLOOKUP(N1192,Tabel10[[korte omschrijving]:[MCC3_CODE]],2,0)","v":{"$error":"#N/A"}},{"$f":"VLOOKUP(N1192,'Data order'!M:O,3,0)","v":{"$error":"#N/A"}},null,null,null,{"$f":"IFERROR(\n  IF(R1192=\"Big&Tall\",\n      VLOOKUP(S1192, 'Data order'!$AC$92:$AD$101, 2, FALSE),\n      IF(R1192=\"Boordmaat\",\n          VLOOKUP(S1192, 'Data order'!$AC$102:$AD$116, 2, FALSE),\n          VLOOKUP(S1192, 'Data order'!$AC$2:$AD$91, 2, FALSE)\n      )\n  ),\n\"\")","v":""},null,null,null,null,"EUR",null,null,null,{"$error":"#DIV/0!"},0,0,null,"","","","","","","","","","",null,null,null,null,null,null,null,null,null,null,null,null,null,null,null,null,null,"ZWO"]
[null,null,null,null,null,{"$f":"VLOOKUP(G1193,'Data order'!Z:AA,2,0)","v":{"$error":"#N/A"}},null,null,null,null,null,null,null,null,{"$f":"VLOOKUP(N1193,Tabel10[[korte omschrijving]:[MCC3_CODE]],2,0)","v":{"$error":"#N/A"}},{"$f":"VLOOKUP(N1193,'Data order'!M:O,3,0)","v":{"$error":"#N/A"}},null,null,null,{"$f":"IFERROR(\n  IF(R1193=\"Big&Tall\",\n      VLOOKUP(S1193, 'Data order'!$AC$92:$AD$101, 2, FALSE),\n      IF(R1193=\"Boordmaat\",\n          VLOOKUP(S1193, 'Data order'!$AC$102:$AD$116, 2, FALSE),\n          VLOOKUP(S1193, 'Data order'!$AC$2:$AD$91, 2, FALSE)\n      )\n  ),\n\"\")","v":""},null,null,null,null,"EUR",null,null,null,{"$error":"#DIV/0!"},0,0,null,"","","","","","","","","","",null,null,null,null,null,null,null,null,null,null,null,null,null,null,null,null,null,"ZWO"]
[null,null,null,null,null,{"$f":"VLOOKUP(G1194,'Data order'!Z:AA,2,0)","v":{"$error":"#N/A"}},null,null,null,null,null,null,null,null,{"$f":"VLOOKUP(N1194,Tabel10[[korte omschrijving]:[MCC3_CODE]],2,0)","v":{"$error":"#N/A"}},{"$f":"VLOOKUP(N1194,'Data order'!M:O,3,0)","v":{"$error":"#N/A"}},null,null,null,{"$f":"IFERROR(\n  IF(R1194=\"Big&Tall\",\n      VLOOKUP(S1194, 'Data order'!$AC$92:$AD$101, 2, FALSE),\n      IF(R1194=\"Boordmaat\",\n          VLOOKUP(S1194, 'Data order'!$AC$102:$AD$116, 2, FALSE),\n          VLOOKUP(S1194, 'Data order'!$AC$2:$AD$91, 2, FALSE)\n      )\n  ),\n\"\")","v":""},null,0,null,null,"EUR",null,null,null,{"$f":"AB1194/Z1194","v":{"$error":"#DIV/0!"}},{"$f":"U1194*Z1194","v":0},{"$f":"U1194*AB1194","v":0},null,"","","","","","","","","","",null,null,null,null,null,null,null,null,null,null,null,null,null,null,null,null,null,"ZWO"]
[null,null,null,null,null,{"$f":"VLOOKUP(G1195,'Data order'!Z:AA,2,0)","v":{"$error":"#N/A"}},null,null,null,null,null,null,null,null,{"$f":"VLOOKUP(N1195,Tabel10[[korte omschrijving]:[MCC3_CODE]],2,0)","v":{"$error":"#N/A"}},{"$f":"VLOOKUP(N1195,'Data order'!M:O,3,0)","v":{"$error":"#N/A"}},null,null,null,{"$f":"IFERROR(\n  IF(R1195=\"Big&Tall\",\n      VLOOKUP(S1195, 'Data order'!$AC$92:$AD$101, 2, FALSE),\n      IF(R1195=\"Boordmaat\",\n          VLOOKUP(S1195, 'Data order'!$AC$102:$AD$116, 2, FALSE),\n          VLOOKUP(S1195, 'Data order'!$AC$2:$AD$91, 2, FALSE)\n      )\n  ),\n\"\")","v":""},null,null,null,null,"EUR",null,null,null,{"$error":"#DIV/0!"},0,0,null,"","","","","","","","","","",null,null,null,null,null,null,null,null,null,null,null,null,null,null,null,null,null,"ZWO"]
[null,null,null,null,null,{"$f":"VLOOKUP(G1196,'Data order'!Z:AA,2,0)","v":{"$error":"#N/A"}},null,null,null,null,null,null,null,null,{"$f":"VLOOKUP(N1196,Tabel10[[korte omschrijving]:[MCC3_CODE]],2,0)","v":{"$error":"#N/A"}},{"$f":"VLOOKUP(N1196,'Data order'!M:O,3,0)","v":{"$error":"#N/A"}},null,null,null,{"$f":"IFERROR(\n  IF(R1196=\"Big&Tall\",\n      VLOOKUP(S1196, 'Data order'!$AC$92:$AD$101, 2, FALSE),\n      IF(R1196=\"Boordmaat\",\n          VLOOKUP(S1196, 'Data order'!$AC$102:$AD$116, 2, FALSE),\n          VLOOKUP(S1196, 'Data order'!$AC$2:$AD$91, 2, FALSE)\n      )\n  ),\n\"\")","v":""},null,null,null,null,"EUR",null,null,null,{"$error":"#DIV/0!"},0,0,null,"","","","","","","","","","",null,null,null,null,null,null,null,null,null,null,null,null,null,null,null,null,null,"ZWO"]
[null,null,null,null,null,{"$f":"VLOOKUP(G1197,'Data order'!Z:AA,2,0)","v":{"$error":"#N/A"}},null,null,null,null,null,null,null,null,{"$f":"VLOOKUP(N1197,Tabel10[[korte omschrijving]:[MCC3_CODE]],2,0)","v":{"$error":"#N/A"}},{"$f":"VLOOKUP(N1197,'Data order'!M:O,3,0)","v":{"$error":"#N/A"}},null,null,null,{"$f":"IFERROR(\n  IF(R1197=\"Big&Tall\",\n      VLOOKUP(S1197, 'Data order'!$AC$92:$AD$101, 2, FALSE),\n      IF(R1197=\"Boordmaat\",\n          VLOOKUP(S1197, 'Data order'!$AC$102:$AD$116, 2, FALSE),\n          VLOOKUP(S1197, 'Data order'!$AC$2:$AD$91, 2, FALSE)\n      )\n  ),\n\"\")","v":""},null,null,null,null,"EUR",null,null,null,{"$error":"#DIV/0!"},0,0,null,"","","","","","","","","","",null,null,null,null,null,null,null,null,null,null,null,null,null,null,null,null,null,"ZWO"]
[null,null,null,null,null,{"$f":"VLOOKUP(G1198,'Data order'!Z:AA,2,0)","v":{"$error":"#N/A"}},null,null,null,null,null,null,null,null,{"$f":"VLOOKUP(N1198,Tabel10[[korte omschrijving]:[MCC3_CODE]],2,0)","v":{"$error":"#N/A"}},{"$f":"VLOOKUP(N1198,'Data order'!M:O,3,0)","v":{"$error":"#N/A"}},null,null,null,{"$f":"IFERROR(\n  IF(R1198=\"Big&Tall\",\n      VLOOKUP(S1198, 'Data order'!$AC$92:$AD$101, 2, FALSE),\n      IF(R1198=\"Boordmaat\",\n          VLOOKUP(S1198, 'Data order'!$AC$102:$AD$116, 2, FALSE),\n          VLOOKUP(S1198, 'Data order'!$AC$2:$AD$91, 2, FALSE)\n      )\n  ),\n\"\")","v":""},null,null,null,null,"EUR",null,null,null,{"$error":"#DIV/0!"},0,0,null,"","","","","","","","","","",null,null,null,null,null,null,null,null,null,null,null,null,null,null,null,null,null,"ZWO"]
[null,null,null,null,null,{"$f":"VLOOKUP(G1199,'Data order'!Z:AA,2,0)","v":{"$error":"#N/A"}},null,null,null,null,null,null,null,null,{"$f":"VLOOKUP(N1199,Tabel10[[korte omschrijving]:[MCC3_CODE]],2,0)","v":{"$error":"#N/A"}},{"$f":"VLOOKUP(N1199,'Data order'!M:O,3,0)","v":{"$error":"#N/A"}},null,null,null,{"$f":"IFERROR(\n  IF(R1199=\"Big&Tall\",\n      VLOOKUP(S1199, 'Data order'!$AC$92:$AD$101, 2, FALSE),\n      IF(R1199=\"Boordmaat\",\n          VLOOKUP(S1199, 'Data order'!$AC$102:$AD$116, 2, FALSE),\n          VLOOKUP(S1199, 'Data order'!$AC$2:$AD$91, 2, FALSE)\n      )\n  ),\n\"\")","v":""},null,null,null,null,"EUR",null,null,null,{"$error":"#DIV/0!"},0,0,null,"","","","","","","","","","",null,null,null,null,null,null,null,null,null,null,null,null,null,null,null,null,null,"ZWO"]
[null,null,null,null,null,{"$f":"VLOOKUP(G1200,'Data order'!Z:AA,2,0)","v":{"$error":"#N/A"}},null,null,null,null,null,null,null,null,{"$f":"VLOOKUP(N1200,Tabel10[[korte omschrijving]:[MCC3_CODE]],2,0)","v":{"$error":"#N/A"}},{"$f":"VLOOKUP(N1200,'Data order'!M:O,3,0)","v":{"$error":"#N/A"}},null,null,null,{"$f":"IFERROR(\n  IF(R1200=\"Big&Tall\",\n      VLOOKUP(S1200, 'Data order'!$AC$92:$AD$101, 2, FALSE),\n      IF(R1200=\"Boordmaat\",\n          VLOOKUP(S1200, 'Data order'!$AC$102:$AD$116, 2, FALSE),\n          VLOOKUP(S1200, 'Data order'!$AC$2:$AD$91, 2, FALSE)\n      )\n  ),\n\"\")","v":""},null,0,null,null,"EUR",null,null,null,{"$f":"AB1200/Z1200","v":{"$error":"#DIV/0!"}},{"$f":"U1200*Z1200","v":0},{"$f":"U1200*AB1200","v":0},null,"","","","","","","","","","",null,null,null,null,null,null,null,null,null,null,null,null,null,null,null,null,null,"ZWO"]
[null,null,null,null,null,{"$f":"VLOOKUP(G1201,'Data order'!Z:AA,2,0)","v":{"$error":"#N/A"}},null,null,null,null,null,null,null,null,{"$f":"VLOOKUP(N1201,Tabel10[[korte omschrijving]:[MCC3_CODE]],2,0)","v":{"$error":"#N/A"}},{"$f":"VLOOKUP(N1201,'Data order'!M:O,3,0)","v":{"$error":"#N/A"}},null,null,null,{"$f":"IFERROR(\n  IF(R1201=\"Big&Tall\",\n      VLOOKUP(S1201, 'Data order'!$AC$92:$AD$101, 2, FALSE),\n      IF(R1201=\"Boordmaat\",\n          VLOOKUP(S1201, 'Data order'!$AC$102:$AD$116, 2, FALSE),\n          VLOOKUP(S1201, 'Data order'!$AC$2:$AD$91, 2, FALSE)\n      )\n  ),\n\"\")","v":""},null,null,null,null,"EUR",null,null,null,{"$error":"#DIV/0!"},0,0,null,"","","","","","","","","","",null,null,null,null,null,null,null,null,null,null,null,null,null,null,null,null,null,"ZWO"]
[null,null,null,null,null,{"$f":"VLOOKUP(G1202,'Data order'!Z:AA,2,0)","v":{"$error":"#N/A"}},null,null,null,null,null,null,null,null,{"$f":"VLOOKUP(N1202,Tabel10[[korte omschrijving]:[MCC3_CODE]],2,0)","v":{"$error":"#N/A"}},{"$f":"VLOOKUP(N1202,'Data order'!M:O,3,0)","v":{"$error":"#N/A"}},null,null,null,{"$f":"IFERROR(\n  IF(R1202=\"Big&Tall\",\n      VLOOKUP(S1202, 'Data order'!$AC$92:$AD$101, 2, FALSE),\n      IF(R1202=\"Boordmaat\",\n          VLOOKUP(S1202, 'Data order'!$AC$102:$AD$116, 2, FALSE),\n          VLOOKUP(S1202, 'Data order'!$AC$2:$AD$91, 2, FALSE)\n      )\n  ),\n\"\")","v":""},null,null,null,null,"EUR",null,null,null,{"$error":"#DIV/0!"},0,0,null,"","","","","","","","","","",null,null,null,null,null,null,null,null,null,null,null,null,null,null,null,null,null,"ZWO"]
[null,null,null,null,null,{"$f":"VLOOKUP(G1203,'Data order'!Z:AA,2,0)","v":{"$error":"#N/A"}},null,null,null,null,null,null,null,null,{"$f":"VLOOKUP(N1203,Tabel10[[korte omschrijving]:[MCC3_CODE]],2,0)","v":{"$error":"#N/A"}},{"$f":"VLOOKUP(N1203,'Data order'!M:O,3,0)","v":{"$error":"#N/A"}},null,null,null,{"$f":"IFERROR(\n  IF(R1203=\"Big&Tall\",\n      VLOOKUP(S1203, 'Data order'!$AC$92:$AD$101, 2, FALSE),\n      IF(R1203=\"Boordmaat\",\n          VLOOKUP(S1203, 'Data order'!$AC$102:$AD$116, 2, FALSE),\n          VLOOKUP(S1203, 'Data order'!$AC$2:$AD$91, 2, FALSE)\n      )\n  ),\n\"\")","v":""},null,null,null,null,"EUR",null,null,null,{"$error":"#DIV/0!"},0,0,null,"","","","","","","","","","",null,null,null,null,null,null,null,null,null,null,null,null,null,null,null,null,null,"ZWO"]
[null,null,null,null,null,{"$f":"VLOOKUP(G1204,'Data order'!Z:AA,2,0)","v":{"$error":"#N/A"}},null,null,null,null,null,null,null,null,{"$f":"VLOOKUP(N1204,Tabel10[[korte omschrijving]:[MCC3_CODE]],2,0)","v":{"$error":"#N/A"}},{"$f":"VLOOKUP(N1204,'Data order'!M:O,3,0)","v":{"$error":"#N/A"}},null,null,null,{"$f":"IFERROR(\n  IF(R1204=\"Big&Tall\",\n      VLOOKUP(S1204, 'Data order'!$AC$92:$AD$101, 2, FALSE),\n      IF(R1204=\"Boordmaat\",\n          VLOOKUP(S1204, 'Data order'!$AC$102:$AD$116, 2, FALSE),\n          VLOOKUP(S1204, 'Data order'!$AC$2:$AD$91, 2, FALSE)\n      )\n  ),\n\"\")","v":""},null,null,null,null,"EUR",null,null,null,{"$error":"#DIV/0!"},0,0,null,"","","","","","","","","","",null,null,null,null,null,null,null,null,null,null,null,null,null,null,null,null,null,"ZWO"]
[null,null,null,null,null,{"$f":"VLOOKUP(G1205,'Data order'!Z:AA,2,0)","v":{"$error":"#N/A"}},null,null,null,null,null,null,null,null,{"$f":"VLOOKUP(N1205,Tabel10[[korte omschrijving]:[MCC3_CODE]],2,0)","v":{"$error":"#N/A"}},{"$f":"VLOOKUP(N1205,'Data order'!M:O,3,0)","v":{"$error":"#N/A"}},null,null,null,{"$f":"IFERROR(\n  IF(R1205=\"Big&Tall\",\n      VLOOKUP(S1205, 'Data order'!$AC$92:$AD$101, 2, FALSE),\n      IF(R1205=\"Boordmaat\",\n          VLOOKUP(S1205, 'Data order'!$AC$102:$AD$116, 2, FALSE),\n          VLOOKUP(S1205, 'Data order'!$AC$2:$AD$91, 2, FALSE)\n      )\n  ),\n\"\")","v":""},null,null,null,null,"EUR",null,null,null,{"$error":"#DIV/0!"},0,0,null,"","","","","","","","","","",null,null,null,null,null,null,null,null,null,null,null,null,null,null,null,null,null,"ZWO"]
[null,null,null,null,null,{"$f":"VLOOKUP(G1206,'Data order'!Z:AA,2,0)","v":{"$error":"#N/A"}},null,null,null,null,null,null,null,null,{"$f":"VLOOKUP(N1206,Tabel10[[korte omschrijving]:[MCC3_CODE]],2,0)","v":{"$error":"#N/A"}},{"$f":"VLOOKUP(N1206,'Data order'!M:O,3,0)","v":{"$error":"#N/A"}},null,null,null,{"$f":"IFERROR(\n  IF(R1206=\"Big&Tall\",\n      VLOOKUP(S1206, 'Data order'!$AC$92:$AD$101, 2, FALSE),\n      IF(R1206=\"Boordmaat\",\n          VLOOKUP(S1206, 'Data order'!$AC$102:$AD$116, 2, FALSE),\n          VLOOKUP(S1206, 'Data order'!$AC$2:$AD$91, 2, FALSE)\n      )\n  ),\n\"\")","v":""},null,0,null,null,"EUR",null,null,null,{"$f":"AB1206/Z1206","v":{"$error":"#DIV/0!"}},{"$f":"U1206*Z1206","v":0},{"$f":"U1206*AB1206","v":0},null,"","","","","","","","","","",null,null,null,null,null,null,null,null,null,null,null,null,null,null,null,null,null,"ZWO"]
[null,null,null,null,null,{"$f":"VLOOKUP(G1207,'Data order'!Z:AA,2,0)","v":{"$error":"#N/A"}},null,null,null,null,null,null,null,null,{"$f":"VLOOKUP(N1207,Tabel10[[korte omschrijving]:[MCC3_CODE]],2,0)","v":{"$error":"#N/A"}},{"$f":"VLOOKUP(N1207,'Data order'!M:O,3,0)","v":{"$error":"#N/A"}},null,null,null,{"$f":"IFERROR(\n  IF(R1207=\"Big&Tall\",\n      VLOOKUP(S1207, 'Data order'!$AC$92:$AD$101, 2, FALSE),\n      IF(R1207=\"Boordmaat\",\n          VLOOKUP(S1207, 'Data order'!$AC$102:$AD$116, 2, FALSE),\n          VLOOKUP(S1207, 'Data order'!$AC$2:$AD$91, 2, FALSE)\n      )\n  ),\n\"\")","v":""},null,null,null,null,"EUR",null,null,null,{"$error":"#DIV/0!"},0,0,null,"","","","","","","","","","",null,null,null,null,null,null,null,null,null,null,null,null,null,null,null,null,null,"ZWO"]
[null,null,null,null,null,{"$f":"VLOOKUP(G1208,'Data order'!Z:AA,2,0)","v":{"$error":"#N/A"}},null,null,null,null,null,null,null,null,{"$f":"VLOOKUP(N1208,Tabel10[[korte omschrijving]:[MCC3_CODE]],2,0)","v":{"$error":"#N/A"}},{"$f":"VLOOKUP(N1208,'Data order'!M:O,3,0)","v":{"$error":"#N/A"}},null,null,null,{"$f":"IFERROR(\n  IF(R1208=\"Big&Tall\",\n      VLOOKUP(S1208, 'Data order'!$AC$92:$AD$101, 2, FALSE),\n      IF(R1208=\"Boordmaat\",\n          VLOOKUP(S1208, 'Data order'!$AC$102:$AD$116, 2, FALSE),\n          VLOOKUP(S1208, 'Data order'!$AC$2:$AD$91, 2, FALSE)\n      )\n  ),\n\"\")","v":""},null,null,null,null,"EUR",null,null,null,{"$error":"#DIV/0!"},0,0,null,{"$f":"IF(AF1208 <> \"\",\n    IF(ISNUMBER(VALUE(LEFT(AF1208, FIND(\"%\", AF1208)-1))),\n        VALUE(LEFT(AF1208, FIND(\"%\", AF1208)-1)),\n        \"Invalid format\"),\n    \"\")","v":""},{"$f":"IF(AF1208 <> \"\",\n    IF(ISNUMBER(VALUE(LEFT(AF1208, FIND(\"%\", AF1208)-1))) * ISNUMBER(FIND(\"%\", AF1208 & \"wol\")) > 0,\n        TRIM(MID(AF1208, FIND(\"%\", AF1208)+1, FIND(\"/\", AF1208 & \"/\")-FIND(\"%\", AF1208)-1)),\n        \"Invalid format\"),\n    \"\")","v":""},{"$f":"IF(AF1208 <> \"\",\n    IF(ISNUMBER(VALUE(MID(AF1208, FIND(\"/\", AF1208) + 1, FIND(\"%\", AF1208, FIND(\"/\", AF1208)) - FIND(\"/\", AF1208) - 1))),\n        VALUE(MID(AF1208, FIND(\"/\", AF1208) + 1, FIND(\"%\", AF1208, FIND(\"/\", AF1208)) - FIND(\"/\", AF1208) - 1)),\n        \"\"),\n    \"\")","v":""},{"$f":"IF(AF1208 <> \"\",\n    IFERROR(TRIM(MID(AF1208, FIND(\"%\", AF1208, FIND(\"/\", AF1208)+1)+2,\n        IFERROR(FIND(\"/\", AF1208 & \"/\", FIND(\"/\", AF1208)+1)-FIND(\"%\", AF1208, FIND(\"/\", AF1208)+1)-2, LEN(AF1208)-FIND(\"%\", AF1208, FIND(\"/\", AF1208)+1)-1))),\n        \"\"),\n    \"\")","v":""},{"$f":"IF(AF1208 <> \"\",\n    IF(ISNUMBER(VALUE(MID(AF1208, FIND(\"/\", AF1208, FIND(\"/\", AF1208)+1) + 1, FIND(\"%\", AF1208, FIND(\"/\", AF1208, FIND(\"/\", AF1208)+1)) - FIND(\"/\", AF1208, FIND(\"/\", AF1208)+1) - 1))),\n        VALUE(MID(AF1208, FIND(\"/\", AF1208, FIND(\"/\", AF1208)+1) + 1, FIND(\"%\", AF1208, FIND(\"/\", AF1208, FIND(\"/\", AF1208)+1)) - FIND(\"/\", AF1208, FIND(\"/\", AF1208)+1) - 1)),\n        \"\"),\n    \"\")","v":""},{"$f":"IF(AF1208 <> \"\",\n    IFERROR(\n        TRIM(MID(AF1208,\n            FIND(\"%\", AF1208, FIND(\"%\", AF1208, FIND(\"%\", AF1208)+1)+1)+1,\n            FIND(\"/\", AF1208 & \"/\", FIND(\"%\", AF1208, FIND(\"%\", AF1208, FIND(\"%\", AF1208)+1)+1))-FIND(\"%\", AF1208, FIND(\"%\", AF1208, FIND(\"%\", AF1208)+1)+1)-1)\n        ),\n        \"\"\n    ),\n    \"\"\n)","v":""},{"$f":"IF(AF1208 <> \"\",\n    IF(ISNUMBER(VALUE(MID(AF1208, FIND(\"/\", AF1208, FIND(\"/\", AF1208, FIND(\"/\", AF1208)+1)+1) + 1, FIND(\"%\", AF1208, FIND(\"/\", AF1208, FIND(\"/\", AF1208, FIND(\"/\", AF1208)+1)+1)) - FIND(\"/\", AF1208, FIND(\"/\", AF1208, FIND(\"/\", AF1208)+1)+1) - 1))),\n        VALUE(MID(AF1208, FIND(\"/\", AF1208, FIND(\"/\", AF1208, FIND(\"/\", AF1208)+1)+1) + 1, FIND(\"%\", AF1208, FIND(\"/\", AF1208, FIND(\"/\", AF1208, FIND(\"/\", AF1208)+1)+1)) - FIND(\"/\", AF1208, FIND(\"/\", AF1208, FIND(\"/\", AF1208)+1)+1) - 1)),\n        \"\"),\n    \"\")","v":""},{"$f":"IF(AF1208 <> \"\",\n    IFERROR(TRIM(MID(AF1208, FIND(\"%\", AF1208, FIND(\"/\", AF1208, FIND(\"/\", AF1208, FIND(\"/\", AF1208)+1)+1)+1)+2,\n        IFERROR(FIND(\"/\", AF1208, FIND(\"/\", AF1208, FIND(\"/\", AF1208, FIND(\"/\", AF1208)+1)+1)+1)-FIND(\"%\", AF1208, FIND(\"/\", AF1208, FIND(\"/\", AF1208, FIND(\"/\", AF1208)+1)+1)+1)-2, LEN(AF1208)-FIND(\"%\", AF1208, FIND(\"/\", AF1208, FIND(\"/\", AF1208, FIND(\"/\", AF1208)+1)+1)+1)-1))),\n        \"\"),\n    \"\")","v":""},{"$f":"IF(AF1208 <> \"\",\n    IF(ISNUMBER(VALUE(MID(AF1208, FIND(\"/\", AF1208, FIND(\"/\", AF1208, FIND(\"/\", AF1208, FIND(\"/\", AF1208)+1)+1)+1) + 1, FIND(\"%\", AF1208, FIND(\"/\", AF1208, FIND(\"/\", AF1208, FIND(\"/\", AF1208, FIND(\"/\", AF1208)+1)+1)+1)) - FIND(\"/\", AF1208, FIND(\"/\", AF1208, FIND(\"/\", AF1208, FIND(\"/\", AF1208)+1)+1)+1) - 1))),\n        VALUE(MID(AF1208, FIND(\"/\", AF1208, FIND(\"/\", AF1208, FIND(\"/\", AF1208, FIND(\"/\", AF1208)+1)+1)+1) + 1, FIND(\"%\", AF1208, FIND(\"/\", AF1208, FIND(\"/\", AF1208, FIND(\"/\", AF1208, FIND(\"/\", AF1208)+1)+1)+1)) - FIND(\"/\", AF1208, FIND(\"/\", AF1208, FIND(\"/\", AF1208, FIND(\"/\", AF1208)+1)+1)+1) - 1)),\n        \"\"),\n    \"\")","v":""},{"$f":"IF(AF1208 = \"\", \"\",\n    IFERROR(TRIM(\n        MID(\n            AF1208,\n            FIND(\"%\", AF1208, FIND(\"/\", AF1208, FIND(\"/\", AF1208, FIND(\"/\", AF1208, FIND(\"/\", AF1208)+1)+1)+1)+1) + 1,\n            FIND(\"/\", AF1208 & \"/\", FIND(\"%\", AF1208, FIND(\"/\", AF1208, FIND(\"/\", AF1208, FIND(\"/\", AF1208, FIND(\"/\", AF1208)+1)+1)+1)+1)) -\n            FIND(\"%\", AF1208, FIND(\"/\", AF1208, FIND(\"/\", AF1208, FIND(\"/\", AF1208, FIND(\"/\", AF1208)+1)+1)+1)+1) - 1\n        )\n    ),\n    \"\")\n)","v":""},null,null,null,null,null,null,null,null,null,null,null,null,null,null,null,null,null,"ZWO"]
[null,null,null,null,null,{"$f":"VLOOKUP(G1209,'Data order'!Z:AA,2,0)","v":{"$error":"#N/A"}},null,null,null,null,null,null,null,null,{"$f":"VLOOKUP(N1209,Tabel10[[korte omschrijving]:[MCC3_CODE]],2,0)","v":{"$error":"#N/A"}},{"$f":"VLOOKUP(N1209,'Data order'!M:O,3,0)","v":{"$error":"#N/A"}},null,null,null,{"$f":"IFERROR(\n  IF(R1209=\"Big&Tall\",\n      VLOOKUP(S1209, 'Data order'!$AC$92:$AD$101, 2, FALSE),\n      IF(R1209=\"Boordmaat\",\n          VLOOKUP(S1209, 'Data order'!$AC$102:$AD$116, 2, FALSE),\n          VLOOKUP(S1209, 'Data order'!$AC$2:$AD$91, 2, FALSE)\n      )\n  ),\n\"\")","v":""},null,null,null,null,"EUR",null,null,null,{"$error":"#DIV/0!"},0,0,null,"","","","","","","","","","",null,null,null,null,null,null,null,null,null,null,null,null,null,null,null,null,null,"ZWO"]
[null,null,null,null,null,{"$f":"VLOOKUP(G1210,'Data order'!Z:AA,2,0)","v":{"$error":"#N/A"}},null,null,null,null,null,null,null,null,{"$f":"VLOOKUP(N1210,Tabel10[[korte omschrijving]:[MCC3_CODE]],2,0)","v":{"$error":"#N/A"}},{"$f":"VLOOKUP(N1210,'Data order'!M:O,3,0)","v":{"$error":"#N/A"}},null,null,null,{"$f":"IFERROR(\n  IF(R1210=\"Big&Tall\",\n      VLOOKUP(S1210, 'Data order'!$AC$92:$AD$101, 2, FALSE),\n      IF(R1210=\"Boordmaat\",\n          VLOOKUP(S1210, 'Data order'!$AC$102:$AD$116, 2, FALSE),\n          VLOOKUP(S1210, 'Data order'!$AC$2:$AD$91, 2, FALSE)\n      )\n  ),\n\"\")","v":""},null,null,null,null,"EUR",null,null,null,{"$error":"#DIV/0!"},0,0,null,"","","","","","","","","","",null,null,null,null,null,null,null,null,null,null,null,null,null,null,null,null,null,"ZWO"]
[null,null,null,null,null,{"$f":"VLOOKUP(G1211,'Data order'!Z:AA,2,0)","v":{"$error":"#N/A"}},null,null,null,null,null,null,null,null,{"$f":"VLOOKUP(N1211,Tabel10[[korte omschrijving]:[MCC3_CODE]],2,0)","v":{"$error":"#N/A"}},{"$f":"VLOOKUP(N1211,'Data order'!M:O,3,0)","v":{"$error":"#N/A"}},null,null,null,{"$f":"IFERROR(\n  IF(R1211=\"Big&Tall\",\n      VLOOKUP(S1211, 'Data order'!$AC$92:$AD$101, 2, FALSE),\n      IF(R1211=\"Boordmaat\",\n          VLOOKUP(S1211, 'Data order'!$AC$102:$AD$116, 2, FALSE),\n          VLOOKUP(S1211, 'Data order'!$AC$2:$AD$91, 2, FALSE)\n      )\n  ),\n\"\")","v":""},null,null,null,null,"EUR",null,null,null,{"$error":"#DIV/0!"},0,0,null,"","","","","","","","","","",null,null,null,null,null,null,null,null,null,null,null,null,null,null,null,null,null,"ZWO"]
[null,null,null,null,null,{"$f":"VLOOKUP(G1212,'Data order'!Z:AA,2,0)","v":{"$error":"#N/A"}},null,null,null,null,null,null,null,null,{"$f":"VLOOKUP(N1212,Tabel10[[korte omschrijving]:[MCC3_CODE]],2,0)","v":{"$error":"#N/A"}},{"$f":"VLOOKUP(N1212,'Data order'!M:O,3,0)","v":{"$error":"#N/A"}},null,null,null,{"$f":"IFERROR(\n  IF(R1212=\"Big&Tall\",\n      VLOOKUP(S1212, 'Data order'!$AC$92:$AD$101, 2, FALSE),\n      IF(R1212=\"Boordmaat\",\n          VLOOKUP(S1212, 'Data order'!$AC$102:$AD$116, 2, FALSE),\n          VLOOKUP(S1212, 'Data order'!$AC$2:$AD$91, 2, FALSE)\n      )\n  ),\n\"\")","v":""},null,0,null,null,"EUR",null,null,null,{"$f":"AB1212/Z1212","v":{"$error":"#DIV/0!"}},{"$f":"U1212*Z1212","v":0},{"$f":"U1212*AB1212","v":0},null,"","","","","","","","","","",null,null,null,null,null,null,null,null,null,null,null,null,null,null,null,null,null,"ZWO"]
[null,null,null,null,null,{"$f":"VLOOKUP(G1213,'Data order'!Z:AA,2,0)","v":{"$error":"#N/A"}},null,null,null,null,null,null,null,null,{"$f":"VLOOKUP(N1213,Tabel10[[korte omschrijving]:[MCC3_CODE]],2,0)","v":{"$error":"#N/A"}},{"$f":"VLOOKUP(N1213,'Data order'!M:O,3,0)","v":{"$error":"#N/A"}},null,null,null,{"$f":"IFERROR(\n  IF(R1213=\"Big&Tall\",\n      VLOOKUP(S1213, 'Data order'!$AC$92:$AD$101, 2, FALSE),\n      IF(R1213=\"Boordmaat\",\n          VLOOKUP(S1213, 'Data order'!$AC$102:$AD$116, 2, FALSE),\n          VLOOKUP(S1213, 'Data order'!$AC$2:$AD$91, 2, FALSE)\n      )\n  ),\n\"\")","v":""},null,null,null,null,"EUR",null,null,null,{"$error":"#DIV/0!"},0,0,null,"","","","","","","","","","",null,null,null,null,null,null,null,null,null,null,null,null,null,null,null,null,null,"ZWO"]
[null,null,null,null,null,{"$f":"VLOOKUP(G1214,'Data order'!Z:AA,2,0)","v":{"$error":"#N/A"}},null,null,null,null,null,null,null,null,{"$f":"VLOOKUP(N1214,Tabel10[[korte omschrijving]:[MCC3_CODE]],2,0)","v":{"$error":"#N/A"}},{"$f":"VLOOKUP(N1214,'Data order'!M:O,3,0)","v":{"$error":"#N/A"}},null,null,null,{"$f":"IFERROR(\n  IF(R1214=\"Big&Tall\",\n      VLOOKUP(S1214, 'Data order'!$AC$92:$AD$101, 2, FALSE),\n      IF(R1214=\"Boordmaat\",\n          VLOOKUP(S1214, 'Data order'!$AC$102:$AD$116, 2, FALSE),\n          VLOOKUP(S1214, 'Data order'!$AC$2:$AD$91, 2, FALSE)\n      )\n  ),\n\"\")","v":""},null,null,null,null,"EUR",null,null,null,{"$error":"#DIV/0!"},0,0,null,"","","","","","","","","","",null,null,null,null,null,null,null,null,null,null,null,null,null,null,null,null,null,"ZWO"]
[null,null,null,null,null,{"$f":"VLOOKUP(G1215,'Data order'!Z:AA,2,0)","v":{"$error":"#N/A"}},null,null,null,null,null,null,null,null,{"$f":"VLOOKUP(N1215,Tabel10[[korte omschrijving]:[MCC3_CODE]],2,0)","v":{"$error":"#N/A"}},{"$f":"VLOOKUP(N1215,'Data order'!M:O,3,0)","v":{"$error":"#N/A"}},null,null,null,{"$f":"IFERROR(\n  IF(R1215=\"Big&Tall\",\n      VLOOKUP(S1215, 'Data order'!$AC$92:$AD$101, 2, FALSE),\n      IF(R1215=\"Boordmaat\",\n          VLOOKUP(S1215, 'Data order'!$AC$102:$AD$116, 2, FALSE),\n          VLOOKUP(S1215, 'Data order'!$AC$2:$AD$91, 2, FALSE)\n      )\n  ),\n\"\")","v":""},null,null,null,null,"EUR",null,null,null,{"$error":"#DIV/0!"},0,0,null,"","","","","","","","","","",null,null,null,null,null,null,null,null,null,null,null,null,null,null,null,null,null,"ZWO"]
[null,null,null,null,null,{"$f":"VLOOKUP(G1216,'Data order'!Z:AA,2,0)","v":{"$error":"#N/A"}},null,null,null,null,null,null,null,null,{"$f":"VLOOKUP(N1216,Tabel10[[korte omschrijving]:[MCC3_CODE]],2,0)","v":{"$error":"#N/A"}},{"$f":"VLOOKUP(N1216,'Data order'!M:O,3,0)","v":{"$error":"#N/A"}},null,null,null,{"$f":"IFERROR(\n  IF(R1216=\"Big&Tall\",\n      VLOOKUP(S1216, 'Data order'!$AC$92:$AD$101, 2, FALSE),\n      IF(R1216=\"Boordmaat\",\n          VLOOKUP(S1216, 'Data order'!$AC$102:$AD$116, 2, FALSE),\n          VLOOKUP(S1216, 'Data order'!$AC$2:$AD$91, 2, FALSE)\n      )\n  ),\n\"\")","v":""},null,null,null,null,"EUR",null,null,null,{"$error":"#DIV/0!"},0,0,null,"","","","","","","","","","",null,null,null,null,null,null,null,null,null,null,null,null,null,null,null,null,null,"ZWO"]
[null,null,null,null,null,{"$f":"VLOOKUP(G1217,'Data order'!Z:AA,2,0)","v":{"$error":"#N/A"}},null,null,null,null,null,null,null,null,{"$f":"VLOOKUP(N1217,Tabel10[[korte omschrijving]:[MCC3_CODE]],2,0)","v":{"$error":"#N/A"}},{"$f":"VLOOKUP(N1217,'Data order'!M:O,3,0)","v":{"$error":"#N/A"}},null,null,null,{"$f":"IFERROR(\n  IF(R1217=\"Big&Tall\",\n      VLOOKUP(S1217, 'Data order'!$AC$92:$AD$101, 2, FALSE),\n      IF(R1217=\"Boordmaat\",\n          VLOOKUP(S1217, 'Data order'!$AC$102:$AD$116, 2, FALSE),\n          VLOOKUP(S1217, 'Data order'!$AC$2:$AD$91, 2, FALSE)\n      )\n  ),\n\"\")","v":""},null,null,null,null,"EUR",null,null,null,{"$error":"#DIV/0!"},0,0,null,"","","","","","","","","","",null,null,null,null,null,null,null,null,null,null,null,null,null,null,null,null,null,"ZWO"]
[null,null,null,null,null,{"$f":"VLOOKUP(G1218,'Data order'!Z:AA,2,0)","v":{"$error":"#N/A"}},null,null,null,null,null,null,null,null,{"$f":"VLOOKUP(N1218,Tabel10[[korte omschrijving]:[MCC3_CODE]],2,0)","v":{"$error":"#N/A"}},{"$f":"VLOOKUP(N1218,'Data order'!M:O,3,0)","v":{"$error":"#N/A"}},null,null,null,{"$f":"IFERROR(\n  IF(R1218=\"Big&Tall\",\n      VLOOKUP(S1218, 'Data order'!$AC$92:$AD$101, 2, FALSE),\n      IF(R1218=\"Boordmaat\",\n          VLOOKUP(S1218, 'Data order'!$AC$102:$AD$116, 2, FALSE),\n          VLOOKUP(S1218, 'Data order'!$AC$2:$AD$91, 2, FALSE)\n      )\n  ),\n\"\")","v":""},null,0,null,null,"EUR",null,null,null,{"$f":"AB1218/Z1218","v":{"$error":"#DIV/0!"}},{"$f":"U1218*Z1218","v":0},{"$f":"U1218*AB1218","v":0},null,"","","","","","","","","","",null,null,null,null,null,null,null,null,null,null,null,null,null,null,null,null,null,"ZWO"]
[null,null,null,null,null,{"$f":"VLOOKUP(G1219,'Data order'!Z:AA,2,0)","v":{"$error":"#N/A"}},null,null,null,null,null,null,null,null,{"$f":"VLOOKUP(N1219,Tabel10[[korte omschrijving]:[MCC3_CODE]],2,0)","v":{"$error":"#N/A"}},{"$f":"VLOOKUP(N1219,'Data order'!M:O,3,0)","v":{"$error":"#N/A"}},null,null,null,{"$f":"IFERROR(\n  IF(R1219=\"Big&Tall\",\n      VLOOKUP(S1219, 'Data order'!$AC$92:$AD$101, 2, FALSE),\n      IF(R1219=\"Boordmaat\",\n          VLOOKUP(S1219, 'Data order'!$AC$102:$AD$116, 2, FALSE),\n          VLOOKUP(S1219, 'Data order'!$AC$2:$AD$91, 2, FALSE)\n      )\n  ),\n\"\")","v":""},null,null,null,null,"EUR",null,null,null,{"$error":"#DIV/0!"},0,0,null,"","","","","","","","","","",null,null,null,null,null,null,null,null,null,null,null,null,null,null,null,null,null,"ZWO"]
[null,null,null,null,null,{"$f":"VLOOKUP(G1220,'Data order'!Z:AA,2,0)","v":{"$error":"#N/A"}},null,null,null,null,null,null,null,null,{"$f":"VLOOKUP(N1220,Tabel10[[korte omschrijving]:[MCC3_CODE]],2,0)","v":{"$error":"#N/A"}},{"$f":"VLOOKUP(N1220,'Data order'!M:O,3,0)","v":{"$error":"#N/A"}},null,null,null,{"$f":"IFERROR(\n  IF(R1220=\"Big&Tall\",\n      VLOOKUP(S1220, 'Data order'!$AC$92:$AD$101, 2, FALSE),\n      IF(R1220=\"Boordmaat\",\n          VLOOKUP(S1220, 'Data order'!$AC$102:$AD$116, 2, FALSE),\n          VLOOKUP(S1220, 'Data order'!$AC$2:$AD$91, 2, FALSE)\n      )\n  ),\n\"\")","v":""},null,null,null,null,"EUR",null,null,null,{"$error":"#DIV/0!"},0,0,null,"","","","","","","","","","",null,null,null,null,null,null,null,null,null,null,null,null,null,null,null,null,null,"ZWO"]
[null,null,null,null,null,{"$f":"VLOOKUP(G1221,'Data order'!Z:AA,2,0)","v":{"$error":"#N/A"}},null,null,null,null,null,null,null,null,{"$f":"VLOOKUP(N1221,Tabel10[[korte omschrijving]:[MCC3_CODE]],2,0)","v":{"$error":"#N/A"}},{"$f":"VLOOKUP(N1221,'Data order'!M:O,3,0)","v":{"$error":"#N/A"}},null,null,null,{"$f":"IFERROR(\n  IF(R1221=\"Big&Tall\",\n      VLOOKUP(S1221, 'Data order'!$AC$92:$AD$101, 2, FALSE),\n      IF(R1221=\"Boordmaat\",\n          VLOOKUP(S1221, 'Data order'!$AC$102:$AD$116, 2, FALSE),\n          VLOOKUP(S1221, 'Data order'!$AC$2:$AD$91, 2, FALSE)\n      )\n  ),\n\"\")","v":""},null,null,null,null,"EUR",null,null,null,{"$error":"#DIV/0!"},0,0,null,"","","","","","","","","","",null,null,null,null,null,null,null,null,null,null,null,null,null,null,null,null,null,"ZWO"]
[null,null,null,null,null,{"$f":"VLOOKUP(G1222,'Data order'!Z:AA,2,0)","v":{"$error":"#N/A"}},null,null,null,null,null,null,null,null,{"$f":"VLOOKUP(N1222,Tabel10[[korte omschrijving]:[MCC3_CODE]],2,0)","v":{"$error":"#N/A"}},{"$f":"VLOOKUP(N1222,'Data order'!M:O,3,0)","v":{"$error":"#N/A"}},null,null,null,{"$f":"IFERROR(\n  IF(R1222=\"Big&Tall\",\n      VLOOKUP(S1222, 'Data order'!$AC$92:$AD$101, 2, FALSE),\n      IF(R1222=\"Boordmaat\",\n          VLOOKUP(S1222, 'Data order'!$AC$102:$AD$116, 2, FALSE),\n          VLOOKUP(S1222, 'Data order'!$AC$2:$AD$91, 2, FALSE)\n      )\n  ),\n\"\")","v":""},null,null,null,null,"EUR",null,null,null,{"$error":"#DIV/0!"},0,0,null,"","","","","","","","","","",null,null,null,null,null,null,null,null,null,null,null,null,null,null,null,null,null,"ZWO"]
[null,null,null,null,null,{"$f":"VLOOKUP(G1223,'Data order'!Z:AA,2,0)","v":{"$error":"#N/A"}},null,null,null,null,null,null,null,null,{"$f":"VLOOKUP(N1223,Tabel10[[korte omschrijving]:[MCC3_CODE]],2,0)","v":{"$error":"#N/A"}},{"$f":"VLOOKUP(N1223,'Data order'!M:O,3,0)","v":{"$error":"#N/A"}},null,null,null,{"$f":"IFERROR(\n  IF(R1223=\"Big&Tall\",\n      VLOOKUP(S1223, 'Data order'!$AC$92:$AD$101, 2, FALSE),\n      IF(R1223=\"Boordmaat\",\n          VLOOKUP(S1223, 'Data order'!$AC$102:$AD$116, 2, FALSE),\n          VLOOKUP(S1223, 'Data order'!$AC$2:$AD$91, 2, FALSE)\n      )\n  ),\n\"\")","v":""},null,null,null,null,"EUR",null,null,null,{"$error":"#DIV/0!"},0,0,null,"","","","","","","","","","",null,null,null,null,null,null,null,null,null,null,null,null,null,null,null,null,null,"ZWO"]
[null,null,null,null,null,{"$f":"VLOOKUP(G1224,'Data order'!Z:AA,2,0)","v":{"$error":"#N/A"}},null,null,null,null,null,null,null,null,{"$f":"VLOOKUP(N1224,Tabel10[[korte omschrijving]:[MCC3_CODE]],2,0)","v":{"$error":"#N/A"}},{"$f":"VLOOKUP(N1224,'Data order'!M:O,3,0)","v":{"$error":"#N/A"}},null,null,null,{"$f":"IFERROR(\n  IF(R1224=\"Big&Tall\",\n      VLOOKUP(S1224, 'Data order'!$AC$92:$AD$101, 2, FALSE),\n      IF(R1224=\"Boordmaat\",\n          VLOOKUP(S1224, 'Data order'!$AC$102:$AD$116, 2, FALSE),\n          VLOOKUP(S1224, 'Data order'!$AC$2:$AD$91, 2, FALSE)\n      )\n  ),\n\"\")","v":""},null,0,null,null,"EUR",null,null,null,{"$f":"AB1224/Z1224","v":{"$error":"#DIV/0!"}},{"$f":"U1224*Z1224","v":0},{"$f":"U1224*AB1224","v":0},null,"","","","","","","","","","",null,null,null,null,null,null,null,null,null,null,null,null,null,null,null,null,null,"ZWO"]
[null,null,null,null,null,{"$f":"VLOOKUP(G1225,'Data order'!Z:AA,2,0)","v":{"$error":"#N/A"}},null,null,null,null,null,null,null,null,{"$f":"VLOOKUP(N1225,Tabel10[[korte omschrijving]:[MCC3_CODE]],2,0)","v":{"$error":"#N/A"}},{"$f":"VLOOKUP(N1225,'Data order'!M:O,3,0)","v":{"$error":"#N/A"}},null,null,null,{"$f":"IFERROR(\n  IF(R1225=\"Big&Tall\",\n      VLOOKUP(S1225, 'Data order'!$AC$92:$AD$101, 2, FALSE),\n      IF(R1225=\"Boordmaat\",\n          VLOOKUP(S1225, 'Data order'!$AC$102:$AD$116, 2, FALSE),\n          VLOOKUP(S1225, 'Data order'!$AC$2:$AD$91, 2, FALSE)\n      )\n  ),\n\"\")","v":""},null,null,null,null,"EUR",null,null,null,{"$error":"#DIV/0!"},0,0,null,"","","","","","","","","","",null,null,null,null,null,null,null,null,null,null,null,null,null,null,null,null,null,"ZWO"]
[null,null,null,null,null,{"$f":"VLOOKUP(G1226,'Data order'!Z:AA,2,0)","v":{"$error":"#N/A"}},null,null,null,null,null,null,null,null,{"$f":"VLOOKUP(N1226,Tabel10[[korte omschrijving]:[MCC3_CODE]],2,0)","v":{"$error":"#N/A"}},{"$f":"VLOOKUP(N1226,'Data order'!M:O,3,0)","v":{"$error":"#N/A"}},null,null,null,{"$f":"IFERROR(\n  IF(R1226=\"Big&Tall\",\n      VLOOKUP(S1226, 'Data order'!$AC$92:$AD$101, 2, FALSE),\n      IF(R1226=\"Boordmaat\",\n          VLOOKUP(S1226, 'Data order'!$AC$102:$AD$116, 2, FALSE),\n          VLOOKUP(S1226, 'Data order'!$AC$2:$AD$91, 2, FALSE)\n      )\n  ),\n\"\")","v":""},null,null,null,null,"EUR",null,null,null,{"$error":"#DIV/0!"},0,0,null,"","","","","","","","","","",null,null,null,null,null,null,null,null,null,null,null,null,null,null,null,null,null,"ZWO"]
[null,null,null,null,null,{"$f":"VLOOKUP(G1227,'Data order'!Z:AA,2,0)","v":{"$error":"#N/A"}},null,null,null,null,null,null,null,null,{"$f":"VLOOKUP(N1227,Tabel10[[korte omschrijving]:[MCC3_CODE]],2,0)","v":{"$error":"#N/A"}},{"$f":"VLOOKUP(N1227,'Data order'!M:O,3,0)","v":{"$error":"#N/A"}},null,null,null,{"$f":"IFERROR(\n  IF(R1227=\"Big&Tall\",\n      VLOOKUP(S1227, 'Data order'!$AC$92:$AD$101, 2, FALSE),\n      IF(R1227=\"Boordmaat\",\n          VLOOKUP(S1227, 'Data order'!$AC$102:$AD$116, 2, FALSE),\n          VLOOKUP(S1227, 'Data order'!$AC$2:$AD$91, 2, FALSE)\n      )\n  ),\n\"\")","v":""},null,null,null,null,"EUR",null,null,null,{"$error":"#DIV/0!"},0,0,null,"","","","","","","","","","",null,null,null,null,null,null,null,null,null,null,null,null,null,null,null,null,null,"ZWO"]
[null,null,null,null,null,{"$f":"VLOOKUP(G1228,'Data order'!Z:AA,2,0)","v":{"$error":"#N/A"}},null,null,null,null,null,null,null,null,{"$f":"VLOOKUP(N1228,Tabel10[[korte omschrijving]:[MCC3_CODE]],2,0)","v":{"$error":"#N/A"}},{"$f":"VLOOKUP(N1228,'Data order'!M:O,3,0)","v":{"$error":"#N/A"}},null,null,null,{"$f":"IFERROR(\n  IF(R1228=\"Big&Tall\",\n      VLOOKUP(S1228, 'Data order'!$AC$92:$AD$101, 2, FALSE),\n      IF(R1228=\"Boordmaat\",\n          VLOOKUP(S1228, 'Data order'!$AC$102:$AD$116, 2, FALSE),\n          VLOOKUP(S1228, 'Data order'!$AC$2:$AD$91, 2, FALSE)\n      )\n  ),\n\"\")","v":""},null,null,null,null,"EUR",null,null,null,{"$error":"#DIV/0!"},0,0,null,"","","","","","","","","","",null,null,null,null,null,null,null,null,null,null,null,null,null,null,null,null,null,"ZWO"]
[null,null,null,null,null,{"$f":"VLOOKUP(G1229,'Data order'!Z:AA,2,0)","v":{"$error":"#N/A"}},null,null,null,null,null,null,null,null,{"$f":"VLOOKUP(N1229,Tabel10[[korte omschrijving]:[MCC3_CODE]],2,0)","v":{"$error":"#N/A"}},{"$f":"VLOOKUP(N1229,'Data order'!M:O,3,0)","v":{"$error":"#N/A"}},null,null,null,{"$f":"IFERROR(\n  IF(R1229=\"Big&Tall\",\n      VLOOKUP(S1229, 'Data order'!$AC$92:$AD$101, 2, FALSE),\n      IF(R1229=\"Boordmaat\",\n          VLOOKUP(S1229, 'Data order'!$AC$102:$AD$116, 2, FALSE),\n          VLOOKUP(S1229, 'Data order'!$AC$2:$AD$91, 2, FALSE)\n      )\n  ),\n\"\")","v":""},null,null,null,null,"EUR",null,null,null,{"$error":"#DIV/0!"},0,0,null,"","","","","","","","","","",null,null,null,null,null,null,null,null,null,null,null,null,null,null,null,null,null,"ZWO"]
[null,null,null,null,null,{"$f":"VLOOKUP(G1230,'Data order'!Z:AA,2,0)","v":{"$error":"#N/A"}},null,null,null,null,null,null,null,null,{"$f":"VLOOKUP(N1230,Tabel10[[korte omschrijving]:[MCC3_CODE]],2,0)","v":{"$error":"#N/A"}},{"$f":"VLOOKUP(N1230,'Data order'!M:O,3,0)","v":{"$error":"#N/A"}},null,null,null,{"$f":"IFERROR(\n  IF(R1230=\"Big&Tall\",\n      VLOOKUP(S1230, 'Data order'!$AC$92:$AD$101, 2, FALSE),\n      IF(R1230=\"Boordmaat\",\n          VLOOKUP(S1230, 'Data order'!$AC$102:$AD$116, 2, FALSE),\n          VLOOKUP(S1230, 'Data order'!$AC$2:$AD$91, 2, FALSE)\n      )\n  ),\n\"\")","v":""},null,{"$f":"SUM(U1230:U1235)","v":0},null,null,"EUR",null,null,null,{"$f":"AB1230/Z1230","v":{"$error":"#DIV/0!"}},{"$f":"U1230*Z1230","v":0},{"$f":"U1230*AB1230","v":0},null,"","","","","","","","","","",null,null,null,null,null,null,null,null,null,null,null,null,null,null,null,null,null,"ZWO"]
[null,null,null,null,null,{"$f":"VLOOKUP(G1231,'Data order'!Z:AA,2,0)","v":{"$error":"#N/A"}},null,null,null,null,null,null,null,null,{"$f":"VLOOKUP(N1231,Tabel10[[korte omschrijving]:[MCC3_CODE]],2,0)","v":{"$error":"#N/A"}},{"$f":"VLOOKUP(N1231,'Data order'!M:O,3,0)","v":{"$error":"#N/A"}},null,null,null,{"$f":"IFERROR(\n  IF(R1231=\"Big&Tall\",\n      VLOOKUP(S1231, 'Data order'!$AC$92:$AD$101, 2, FALSE),\n      IF(R1231=\"Boordmaat\",\n          VLOOKUP(S1231, 'Data order'!$AC$102:$AD$116, 2, FALSE),\n          VLOOKUP(S1231, 'Data order'!$AC$2:$AD$91, 2, FALSE)\n      )\n  ),\n\"\")","v":""},null,null,null,null,"EUR",null,null,null,{"$error":"#DIV/0!"},0,0,null,"","","","","","","","","","",null,null,null,null,null,null,null,null,null,null,null,null,null,null,null,null,null,"ZWO"]
[null,null,null,null,null,{"$f":"VLOOKUP(G1232,'Data order'!Z:AA,2,0)","v":{"$error":"#N/A"}},null,null,null,null,null,null,null,null,{"$f":"VLOOKUP(N1232,Tabel10[[korte omschrijving]:[MCC3_CODE]],2,0)","v":{"$error":"#N/A"}},{"$f":"VLOOKUP(N1232,'Data order'!M:O,3,0)","v":{"$error":"#N/A"}},null,null,null,{"$f":"IFERROR(\n  IF(R1232=\"Big&Tall\",\n      VLOOKUP(S1232, 'Data order'!$AC$92:$AD$101, 2, FALSE),\n      IF(R1232=\"Boordmaat\",\n          VLOOKUP(S1232, 'Data order'!$AC$102:$AD$116, 2, FALSE),\n          VLOOKUP(S1232, 'Data order'!$AC$2:$AD$91, 2, FALSE)\n      )\n  ),\n\"\")","v":""},null,null,null,null,"EUR",null,null,null,{"$error":"#DIV/0!"},0,0,null,"","","","","","","","","","",null,null,null,null,null,null,null,null,null,null,null,null,null,null,null,null,null,"ZWO"]
[null,null,null,null,null,{"$f":"VLOOKUP(G1233,'Data order'!Z:AA,2,0)","v":{"$error":"#N/A"}},null,null,null,null,null,null,null,null,{"$f":"VLOOKUP(N1233,Tabel10[[korte omschrijving]:[MCC3_CODE]],2,0)","v":{"$error":"#N/A"}},{"$f":"VLOOKUP(N1233,'Data order'!M:O,3,0)","v":{"$error":"#N/A"}},null,null,null,{"$f":"IFERROR(\n  IF(R1233=\"Big&Tall\",\n      VLOOKUP(S1233, 'Data order'!$AC$92:$AD$101, 2, FALSE),\n      IF(R1233=\"Boordmaat\",\n          VLOOKUP(S1233, 'Data order'!$AC$102:$AD$116, 2, FALSE),\n          VLOOKUP(S1233, 'Data order'!$AC$2:$AD$91, 2, FALSE)\n      )\n  ),\n\"\")","v":""},null,null,null,null,"EUR",null,null,null,{"$error":"#DIV/0!"},0,0,null,"","","","","","","","","","",null,null,null,null,null,null,null,null,null,null,null,null,null,null,null,null,null,"ZWO"]
[null,null,null,null,null,{"$f":"VLOOKUP(G1234,'Data order'!Z:AA,2,0)","v":{"$error":"#N/A"}},null,null,null,null,null,null,null,null,{"$f":"VLOOKUP(N1234,Tabel10[[korte omschrijving]:[MCC3_CODE]],2,0)","v":{"$error":"#N/A"}},{"$f":"VLOOKUP(N1234,'Data order'!M:O,3,0)","v":{"$error":"#N/A"}},null,null,null,{"$f":"IFERROR(\n  IF(R1234=\"Big&Tall\",\n      VLOOKUP(S1234, 'Data order'!$AC$92:$AD$101, 2, FALSE),\n      IF(R1234=\"Boordmaat\",\n          VLOOKUP(S1234, 'Data order'!$AC$102:$AD$116, 2, FALSE),\n          VLOOKUP(S1234, 'Data order'!$AC$2:$AD$91, 2, FALSE)\n      )\n  ),\n\"\")","v":""},null,null,null,null,"EUR",null,null,null,{"$error":"#DIV/0!"},0,0,null,"","","","","","","","","","",null,null,null,null,null,null,null,null,null,null,null,null,null,null,null,null,null,"ZWO"]
[null,null,null,null,null,{"$f":"VLOOKUP(G1235,'Data order'!Z:AA,2,0)","v":{"$error":"#N/A"}},null,null,null,null,null,null,null,null,{"$f":"VLOOKUP(N1235,Tabel10[[korte omschrijving]:[MCC3_CODE]],2,0)","v":{"$error":"#N/A"}},{"$f":"VLOOKUP(N1235,'Data order'!M:O,3,0)","v":{"$error":"#N/A"}},null,null,null,{"$f":"IFERROR(\n  IF(R1235=\"Big&Tall\",\n      VLOOKUP(S1235, 'Data order'!$AC$92:$AD$101, 2, FALSE),\n      IF(R1235=\"Boordmaat\",\n          VLOOKUP(S1235, 'Data order'!$AC$102:$AD$116, 2, FALSE),\n          VLOOKUP(S1235, 'Data order'!$AC$2:$AD$91, 2, FALSE)\n      )\n  ),\n\"\")","v":""},null,null,null,null,"EUR",null,null,null,{"$error":"#DIV/0!"},0,0,null,"","","","","","","","","","",null,null,null,null,null,null,null,null,null,null,null,null,null,null,null,null,null,"ZWO"]
[null,null,null,null,null,{"$f":"VLOOKUP(G1236,'Data order'!Z:AA,2,0)","v":{"$error":"#N/A"}},null,null,null,null,null,null,null,null,{"$f":"VLOOKUP(N1236,Tabel10[[korte omschrijving]:[MCC3_CODE]],2,0)","v":{"$error":"#N/A"}},{"$f":"VLOOKUP(N1236,'Data order'!M:O,3,0)","v":{"$error":"#N/A"}},null,null,null,{"$f":"IFERROR(\n  IF(R1236=\"Big&Tall\",\n      VLOOKUP(S1236, 'Data order'!$AC$92:$AD$101, 2, FALSE),\n      IF(R1236=\"Boordmaat\",\n          VLOOKUP(S1236, 'Data order'!$AC$102:$AD$116, 2, FALSE),\n          VLOOKUP(S1236, 'Data order'!$AC$2:$AD$91, 2, FALSE)\n      )\n  ),\n\"\")","v":""},null,0,null,null,"EUR",null,null,null,{"$f":"AB1236/Z1236","v":{"$error":"#DIV/0!"}},{"$f":"U1236*Z1236","v":0},{"$f":"U1236*AB1236","v":0},null,"","","","","","","","","","",null,null,null,null,null,null,null,null,null,null,null,null,null,null,null,null,null,"ZWO"]
[null,null,null,null,null,{"$f":"VLOOKUP(G1237,'Data order'!Z:AA,2,0)","v":{"$error":"#N/A"}},null,null,null,null,null,null,null,null,{"$f":"VLOOKUP(N1237,Tabel10[[korte omschrijving]:[MCC3_CODE]],2,0)","v":{"$error":"#N/A"}},{"$f":"VLOOKUP(N1237,'Data order'!M:O,3,0)","v":{"$error":"#N/A"}},null,null,null,{"$f":"IFERROR(\n  IF(R1237=\"Big&Tall\",\n      VLOOKUP(S1237, 'Data order'!$AC$92:$AD$101, 2, FALSE),\n      IF(R1237=\"Boordmaat\",\n          VLOOKUP(S1237, 'Data order'!$AC$102:$AD$116, 2, FALSE),\n          VLOOKUP(S1237, 'Data order'!$AC$2:$AD$91, 2, FALSE)\n      )\n  ),\n\"\")","v":""},null,null,null,null,"EUR",null,null,null,{"$error":"#DIV/0!"},0,0,null,"","","","","","","","","","",null,null,null,null,null,null,null,null,null,null,null,null,null,null,null,null,null,"ZWO"]
[null,null,null,null,null,{"$f":"VLOOKUP(G1238,'Data order'!Z:AA,2,0)","v":{"$error":"#N/A"}},null,null,null,null,null,null,null,null,{"$f":"VLOOKUP(N1238,Tabel10[[korte omschrijving]:[MCC3_CODE]],2,0)","v":{"$error":"#N/A"}},{"$f":"VLOOKUP(N1238,'Data order'!M:O,3,0)","v":{"$error":"#N/A"}},null,null,null,{"$f":"IFERROR(\n  IF(R1238=\"Big&Tall\",\n      VLOOKUP(S1238, 'Data order'!$AC$92:$AD$101, 2, FALSE),\n      IF(R1238=\"Boordmaat\",\n          VLOOKUP(S1238, 'Data order'!$AC$102:$AD$116, 2, FALSE),\n          VLOOKUP(S1238, 'Data order'!$AC$2:$AD$91, 2, FALSE)\n      )\n  ),\n\"\")","v":""},null,null,null,null,"EUR",null,null,null,{"$error":"#DIV/0!"},0,0,null,"","","","","","","","","","",null,null,null,null,null,null,null,null,null,null,null,null,null,null,null,null,null,"ZWO"]
[null,null,null,null,null,{"$f":"VLOOKUP(G1239,'Data order'!Z:AA,2,0)","v":{"$error":"#N/A"}},null,null,null,null,null,null,null,null,{"$f":"VLOOKUP(N1239,Tabel10[[korte omschrijving]:[MCC3_CODE]],2,0)","v":{"$error":"#N/A"}},{"$f":"VLOOKUP(N1239,'Data order'!M:O,3,0)","v":{"$error":"#N/A"}},null,null,null,{"$f":"IFERROR(\n  IF(R1239=\"Big&Tall\",\n      VLOOKUP(S1239, 'Data order'!$AC$92:$AD$101, 2, FALSE),\n      IF(R1239=\"Boordmaat\",\n          VLOOKUP(S1239, 'Data order'!$AC$102:$AD$116, 2, FALSE),\n          VLOOKUP(S1239, 'Data order'!$AC$2:$AD$91, 2, FALSE)\n      )\n  ),\n\"\")","v":""},null,null,null,null,"EUR",null,null,null,{"$error":"#DIV/0!"},0,0,null,"","","","","","","","","","",null,null,null,null,null,null,null,null,null,null,null,null,null,null,null,null,null,"ZWO"]
[null,null,null,null,null,{"$f":"VLOOKUP(G1240,'Data order'!Z:AA,2,0)","v":{"$error":"#N/A"}},null,null,null,null,null,null,null,null,{"$f":"VLOOKUP(N1240,Tabel10[[korte omschrijving]:[MCC3_CODE]],2,0)","v":{"$error":"#N/A"}},{"$f":"VLOOKUP(N1240,'Data order'!M:O,3,0)","v":{"$error":"#N/A"}},null,null,null,{"$f":"IFERROR(\n  IF(R1240=\"Big&Tall\",\n      VLOOKUP(S1240, 'Data order'!$AC$92:$AD$101, 2, FALSE),\n      IF(R1240=\"Boordmaat\",\n          VLOOKUP(S1240, 'Data order'!$AC$102:$AD$116, 2, FALSE),\n          VLOOKUP(S1240, 'Data order'!$AC$2:$AD$91, 2, FALSE)\n      )\n  ),\n\"\")","v":""},null,null,null,null,"EUR",null,null,null,{"$error":"#DIV/0!"},0,0,null,"","","","","","","","","","",null,null,null,null,null,null,null,null,null,null,null,null,null,null,null,null,null,"ZWO"]
[null,null,null,null,null,{"$f":"VLOOKUP(G1241,'Data order'!Z:AA,2,0)","v":{"$error":"#N/A"}},null,null,null,null,null,null,null,null,{"$f":"VLOOKUP(N1241,Tabel10[[korte omschrijving]:[MCC3_CODE]],2,0)","v":{"$error":"#N/A"}},{"$f":"VLOOKUP(N1241,'Data order'!M:O,3,0)","v":{"$error":"#N/A"}},null,null,null,{"$f":"IFERROR(\n  IF(R1241=\"Big&Tall\",\n      VLOOKUP(S1241, 'Data order'!$AC$92:$AD$101, 2, FALSE),\n      IF(R1241=\"Boordmaat\",\n          VLOOKUP(S1241, 'Data order'!$AC$102:$AD$116, 2, FALSE),\n          VLOOKUP(S1241, 'Data order'!$AC$2:$AD$91, 2, FALSE)\n      )\n  ),\n\"\")","v":""},null,null,null,null,"EUR",null,null,null,{"$error":"#DIV/0!"},0,0,null,"","","","","","","","","","",null,null,null,null,null,null,null,null,null,null,null,null,null,null,null,null,null,"ZWO"]
[null,null,null,null,null,{"$f":"VLOOKUP(G1242,'Data order'!Z:AA,2,0)","v":{"$error":"#N/A"}},null,null,null,null,null,null,null,null,{"$f":"VLOOKUP(N1242,Tabel10[[korte omschrijving]:[MCC3_CODE]],2,0)","v":{"$error":"#N/A"}},{"$f":"VLOOKUP(N1242,'Data order'!M:O,3,0)","v":{"$error":"#N/A"}},null,null,null,{"$f":"IFERROR(\n  IF(R1242=\"Big&Tall\",\n      VLOOKUP(S1242, 'Data order'!$AC$92:$AD$101, 2, FALSE),\n      IF(R1242=\"Boordmaat\",\n          VLOOKUP(S1242, 'Data order'!$AC$102:$AD$116, 2, FALSE),\n          VLOOKUP(S1242, 'Data order'!$AC$2:$AD$91, 2, FALSE)\n      )\n  ),\n\"\")","v":""},null,0,null,null,"EUR",null,null,null,{"$f":"AB1242/Z1242","v":{"$error":"#DIV/0!"}},{"$f":"U1242*Z1242","v":0},{"$f":"U1242*AB1242","v":0},null,"","","","","","","","","","",null,null,null,null,null,null,null,null,null,null,null,null,null,null,null,null,null,"ZWO"]
[null,null,null,null,null,{"$f":"VLOOKUP(G1243,'Data order'!Z:AA,2,0)","v":{"$error":"#N/A"}},null,null,null,null,null,null,null,null,{"$f":"VLOOKUP(N1243,Tabel10[[korte omschrijving]:[MCC3_CODE]],2,0)","v":{"$error":"#N/A"}},{"$f":"VLOOKUP(N1243,'Data order'!M:O,3,0)","v":{"$error":"#N/A"}},null,null,null,{"$f":"IFERROR(\n  IF(R1243=\"Big&Tall\",\n      VLOOKUP(S1243, 'Data order'!$AC$92:$AD$101, 2, FALSE),\n      IF(R1243=\"Boordmaat\",\n          VLOOKUP(S1243, 'Data order'!$AC$102:$AD$116, 2, FALSE),\n          VLOOKUP(S1243, 'Data order'!$AC$2:$AD$91, 2, FALSE)\n      )\n  ),\n\"\")","v":""},null,null,null,null,"EUR",null,null,null,{"$error":"#DIV/0!"},0,0,null,"","","","","","","","","","",null,null,null,null,null,null,null,null,null,null,null,null,null,null,null,null,null,"ZWO"]
[null,null,null,null,null,{"$f":"VLOOKUP(G1244,'Data order'!Z:AA,2,0)","v":{"$error":"#N/A"}},null,null,null,null,null,null,null,null,{"$f":"VLOOKUP(N1244,Tabel10[[korte omschrijving]:[MCC3_CODE]],2,0)","v":{"$error":"#N/A"}},{"$f":"VLOOKUP(N1244,'Data order'!M:O,3,0)","v":{"$error":"#N/A"}},null,null,null,{"$f":"IFERROR(\n  IF(R1244=\"Big&Tall\",\n      VLOOKUP(S1244, 'Data order'!$AC$92:$AD$101, 2, FALSE),\n      IF(R1244=\"Boordmaat\",\n          VLOOKUP(S1244, 'Data order'!$AC$102:$AD$116, 2, FALSE),\n          VLOOKUP(S1244, 'Data order'!$AC$2:$AD$91, 2, FALSE)\n      )\n  ),\n\"\")","v":""},null,null,null,null,"EUR",null,null,null,{"$error":"#DIV/0!"},0,0,null,"","","","","","","","","","",null,null,null,null,null,null,null,null,null,null,null,null,null,null,null,null,null,"ZWO"]
[null,null,null,null,null,{"$f":"VLOOKUP(G1245,'Data order'!Z:AA,2,0)","v":{"$error":"#N/A"}},null,null,null,null,null,null,null,null,{"$f":"VLOOKUP(N1245,Tabel10[[korte omschrijving]:[MCC3_CODE]],2,0)","v":{"$error":"#N/A"}},{"$f":"VLOOKUP(N1245,'Data order'!M:O,3,0)","v":{"$error":"#N/A"}},null,null,null,{"$f":"IFERROR(\n  IF(R1245=\"Big&Tall\",\n      VLOOKUP(S1245, 'Data order'!$AC$92:$AD$101, 2, FALSE),\n      IF(R1245=\"Boordmaat\",\n          VLOOKUP(S1245, 'Data order'!$AC$102:$AD$116, 2, FALSE),\n          VLOOKUP(S1245, 'Data order'!$AC$2:$AD$91, 2, FALSE)\n      )\n  ),\n\"\")","v":""},null,null,null,null,"EUR",null,null,null,{"$error":"#DIV/0!"},0,0,null,"","","","","","","","","","",null,null,null,null,null,null,null,null,null,null,null,null,null,null,null,null,null,"ZWO"]
[null,null,null,null,null,{"$f":"VLOOKUP(G1246,'Data order'!Z:AA,2,0)","v":{"$error":"#N/A"}},null,null,null,null,null,null,null,null,{"$f":"VLOOKUP(N1246,Tabel10[[korte omschrijving]:[MCC3_CODE]],2,0)","v":{"$error":"#N/A"}},{"$f":"VLOOKUP(N1246,'Data order'!M:O,3,0)","v":{"$error":"#N/A"}},null,null,null,{"$f":"IFERROR(\n  IF(R1246=\"Big&Tall\",\n      VLOOKUP(S1246, 'Data order'!$AC$92:$AD$101, 2, FALSE),\n      IF(R1246=\"Boordmaat\",\n          VLOOKUP(S1246, 'Data order'!$AC$102:$AD$116, 2, FALSE),\n          VLOOKUP(S1246, 'Data order'!$AC$2:$AD$91, 2, FALSE)\n      )\n  ),\n\"\")","v":""},null,null,null,null,"EUR",null,null,null,{"$error":"#DIV/0!"},0,0,null,"","","","","","","","","","",null,null,null,null,null,null,null,null,null,null,null,null,null,null,null,null,null,"ZWO"]
[null,null,null,null,null,{"$f":"VLOOKUP(G1247,'Data order'!Z:AA,2,0)","v":{"$error":"#N/A"}},null,null,null,null,null,null,null,null,{"$f":"VLOOKUP(N1247,Tabel10[[korte omschrijving]:[MCC3_CODE]],2,0)","v":{"$error":"#N/A"}},{"$f":"VLOOKUP(N1247,'Data order'!M:O,3,0)","v":{"$error":"#N/A"}},null,null,null,{"$f":"IFERROR(\n  IF(R1247=\"Big&Tall\",\n      VLOOKUP(S1247, 'Data order'!$AC$92:$AD$101, 2, FALSE),\n      IF(R1247=\"Boordmaat\",\n          VLOOKUP(S1247, 'Data order'!$AC$102:$AD$116, 2, FALSE),\n          VLOOKUP(S1247, 'Data order'!$AC$2:$AD$91, 2, FALSE)\n      )\n  ),\n\"\")","v":""},null,null,null,null,"EUR",null,null,null,{"$error":"#DIV/0!"},0,0,null,"","","","","","","","","","",null,null,null,null,null,null,null,null,null,null,null,null,null,null,null,null,null,"ZWO"]
[null,null,null,null,null,{"$f":"VLOOKUP(G1248,'Data order'!Z:AA,2,0)","v":{"$error":"#N/A"}},null,null,null,null,null,null,null,null,{"$f":"VLOOKUP(N1248,Tabel10[[korte omschrijving]:[MCC3_CODE]],2,0)","v":{"$error":"#N/A"}},{"$f":"VLOOKUP(N1248,'Data order'!M:O,3,0)","v":{"$error":"#N/A"}},null,null,null,{"$f":"IFERROR(\n  IF(R1248=\"Big&Tall\",\n      VLOOKUP(S1248, 'Data order'!$AC$92:$AD$101, 2, FALSE),\n      IF(R1248=\"Boordmaat\",\n          VLOOKUP(S1248, 'Data order'!$AC$102:$AD$116, 2, FALSE),\n          VLOOKUP(S1248, 'Data order'!$AC$2:$AD$91, 2, FALSE)\n      )\n  ),\n\"\")","v":""},null,0,null,null,"EUR",null,null,null,{"$f":"AB1248/Z1248","v":{"$error":"#DIV/0!"}},{"$f":"U1248*Z1248","v":0},{"$f":"U1248*AB1248","v":0},null,"","","","","","","","","","",null,null,null,null,null,null,null,null,null,null,null,null,null,null,null,null,null,"ZWO"]
[null,null,null,null,null,{"$f":"VLOOKUP(G1249,'Data order'!Z:AA,2,0)","v":{"$error":"#N/A"}},null,null,null,null,null,null,null,null,{"$f":"VLOOKUP(N1249,Tabel10[[korte omschrijving]:[MCC3_CODE]],2,0)","v":{"$error":"#N/A"}},{"$f":"VLOOKUP(N1249,'Data order'!M:O,3,0)","v":{"$error":"#N/A"}},null,null,null,{"$f":"IFERROR(\n  IF(R1249=\"Big&Tall\",\n      VLOOKUP(S1249, 'Data order'!$AC$92:$AD$101, 2, FALSE),\n      IF(R1249=\"Boordmaat\",\n          VLOOKUP(S1249, 'Data order'!$AC$102:$AD$116, 2, FALSE),\n          VLOOKUP(S1249, 'Data order'!$AC$2:$AD$91, 2, FALSE)\n      )\n  ),\n\"\")","v":""},null,null,null,null,"EUR",null,null,null,{"$error":"#DIV/0!"},0,0,null,"","","","","","","","","","",null,null,null,null,null,null,null,null,null,null,null,null,null,null,null,null,null,"ZWO"]
[null,null,null,null,null,{"$f":"VLOOKUP(G1250,'Data order'!Z:AA,2,0)","v":{"$error":"#N/A"}},null,null,null,null,null,null,null,null,{"$f":"VLOOKUP(N1250,Tabel10[[korte omschrijving]:[MCC3_CODE]],2,0)","v":{"$error":"#N/A"}},{"$f":"VLOOKUP(N1250,'Data order'!M:O,3,0)","v":{"$error":"#N/A"}},null,null,null,{"$f":"IFERROR(\n  IF(R1250=\"Big&Tall\",\n      VLOOKUP(S1250, 'Data order'!$AC$92:$AD$101, 2, FALSE),\n      IF(R1250=\"Boordmaat\",\n          VLOOKUP(S1250, 'Data order'!$AC$102:$AD$116, 2, FALSE),\n          VLOOKUP(S1250, 'Data order'!$AC$2:$AD$91, 2, FALSE)\n      )\n  ),\n\"\")","v":""},null,null,null,null,"EUR",null,null,null,{"$error":"#DIV/0!"},0,0,null,"","","","","","","","","","",null,null,null,null,null,null,null,null,null,null,null,null,null,null,null,null,null,"ZWO"]
[null,null,null,null,null,{"$f":"VLOOKUP(G1251,'Data order'!Z:AA,2,0)","v":{"$error":"#N/A"}},null,null,null,null,null,null,null,null,{"$f":"VLOOKUP(N1251,Tabel10[[korte omschrijving]:[MCC3_CODE]],2,0)","v":{"$error":"#N/A"}},{"$f":"VLOOKUP(N1251,'Data order'!M:O,3,0)","v":{"$error":"#N/A"}},null,null,null,{"$f":"IFERROR(\n  IF(R1251=\"Big&Tall\",\n      VLOOKUP(S1251, 'Data order'!$AC$92:$AD$101, 2, FALSE),\n      IF(R1251=\"Boordmaat\",\n          VLOOKUP(S1251, 'Data order'!$AC$102:$AD$116, 2, FALSE),\n          VLOOKUP(S1251, 'Data order'!$AC$2:$AD$91, 2, FALSE)\n      )\n  ),\n\"\")","v":""},null,null,null,null,"EUR",null,null,null,{"$error":"#DIV/0!"},0,0,null,"","","","","","","","","","",null,null,null,null,null,null,null,null,null,null,null,null,null,null,null,null,null,"ZWO"]
[null,null,null,null,null,{"$f":"VLOOKUP(G1252,'Data order'!Z:AA,2,0)","v":{"$error":"#N/A"}},null,null,null,null,null,null,null,null,{"$f":"VLOOKUP(N1252,Tabel10[[korte omschrijving]:[MCC3_CODE]],2,0)","v":{"$error":"#N/A"}},{"$f":"VLOOKUP(N1252,'Data order'!M:O,3,0)","v":{"$error":"#N/A"}},null,null,null,{"$f":"IFERROR(\n  IF(R1252=\"Big&Tall\",\n      VLOOKUP(S1252, 'Data order'!$AC$92:$AD$101, 2, FALSE),\n      IF(R1252=\"Boordmaat\",\n          VLOOKUP(S1252, 'Data order'!$AC$102:$AD$116, 2, FALSE),\n          VLOOKUP(S1252, 'Data order'!$AC$2:$AD$91, 2, FALSE)\n      )\n  ),\n\"\")","v":""},null,null,null,null,"EUR",null,null,null,{"$error":"#DIV/0!"},0,0,null,"","","","","","","","","","",null,null,null,null,null,null,null,null,null,null,null,null,null,null,null,null,null,"ZWO"]
[null,null,null,null,null,{"$f":"VLOOKUP(G1253,'Data order'!Z:AA,2,0)","v":{"$error":"#N/A"}},null,null,null,null,null,null,null,null,{"$f":"VLOOKUP(N1253,Tabel10[[korte omschrijving]:[MCC3_CODE]],2,0)","v":{"$error":"#N/A"}},{"$f":"VLOOKUP(N1253,'Data order'!M:O,3,0)","v":{"$error":"#N/A"}},null,null,null,{"$f":"IFERROR(\n  IF(R1253=\"Big&Tall\",\n      VLOOKUP(S1253, 'Data order'!$AC$92:$AD$101, 2, FALSE),\n      IF(R1253=\"Boordmaat\",\n          VLOOKUP(S1253, 'Data order'!$AC$102:$AD$116, 2, FALSE),\n          VLOOKUP(S1253, 'Data order'!$AC$2:$AD$91, 2, FALSE)\n      )\n  ),\n\"\")","v":""},null,null,null,null,"EUR",null,null,null,{"$error":"#DIV/0!"},0,0,null,"","","","","","","","","","",null,null,null,null,null,null,null,null,null,null,null,null,null,null,null,null,null,"ZWO"]
[null,null,null,null,null,{"$f":"VLOOKUP(G1254,'Data order'!Z:AA,2,0)","v":{"$error":"#N/A"}},null,null,null,null,null,null,null,null,{"$f":"VLOOKUP(N1254,Tabel10[[korte omschrijving]:[MCC3_CODE]],2,0)","v":{"$error":"#N/A"}},{"$f":"VLOOKUP(N1254,'Data order'!M:O,3,0)","v":{"$error":"#N/A"}},null,null,null,{"$f":"IFERROR(\n  IF(R1254=\"Big&Tall\",\n      VLOOKUP(S1254, 'Data order'!$AC$92:$AD$101, 2, FALSE),\n      IF(R1254=\"Boordmaat\",\n          VLOOKUP(S1254, 'Data order'!$AC$102:$AD$116, 2, FALSE),\n          VLOOKUP(S1254, 'Data order'!$AC$2:$AD$91, 2, FALSE)\n      )\n  ),\n\"\")","v":""},null,0,null,null,"EUR",null,null,null,{"$f":"AB1254/Z1254","v":{"$error":"#DIV/0!"}},{"$f":"U1254*Z1254","v":0},{"$f":"U1254*AB1254","v":0},null,"","","","","","","","","","",null,null,null,null,null,null,null,null,null,null,null,null,null,null,null,null,null,"ZWO"]
[null,null,null,null,null,{"$f":"VLOOKUP(G1255,'Data order'!Z:AA,2,0)","v":{"$error":"#N/A"}},null,null,null,null,null,null,null,null,{"$f":"VLOOKUP(N1255,Tabel10[[korte omschrijving]:[MCC3_CODE]],2,0)","v":{"$error":"#N/A"}},{"$f":"VLOOKUP(N1255,'Data order'!M:O,3,0)","v":{"$error":"#N/A"}},null,null,null,{"$f":"IFERROR(\n  IF(R1255=\"Big&Tall\",\n      VLOOKUP(S1255, 'Data order'!$AC$92:$AD$101, 2, FALSE),\n      IF(R1255=\"Boordmaat\",\n          VLOOKUP(S1255, 'Data order'!$AC$102:$AD$116, 2, FALSE),\n          VLOOKUP(S1255, 'Data order'!$AC$2:$AD$91, 2, FALSE)\n      )\n  ),\n\"\")","v":""},null,null,null,null,"EUR",null,null,null,{"$error":"#DIV/0!"},0,0,null,"","","","","","","","","","",null,null,null,null,null,null,null,null,null,null,null,null,null,null,null,null,null,"ZWO"]
[null,null,null,null,null,{"$f":"VLOOKUP(G1256,'Data order'!Z:AA,2,0)","v":{"$error":"#N/A"}},null,null,null,null,null,null,null,null,{"$f":"VLOOKUP(N1256,Tabel10[[korte omschrijving]:[MCC3_CODE]],2,0)","v":{"$error":"#N/A"}},{"$f":"VLOOKUP(N1256,'Data order'!M:O,3,0)","v":{"$error":"#N/A"}},null,null,null,{"$f":"IFERROR(\n  IF(R1256=\"Big&Tall\",\n      VLOOKUP(S1256, 'Data order'!$AC$92:$AD$101, 2, FALSE),\n      IF(R1256=\"Boordmaat\",\n          VLOOKUP(S1256, 'Data order'!$AC$102:$AD$116, 2, FALSE),\n          VLOOKUP(S1256, 'Data order'!$AC$2:$AD$91, 2, FALSE)\n      )\n  ),\n\"\")","v":""},null,null,null,null,"EUR",null,null,null,{"$error":"#DIV/0!"},0,0,null,"","","","","","","","","","",null,null,null,null,null,null,null,null,null,null,null,null,null,null,null,null,null,"ZWO"]
[null,null,null,null,null,{"$f":"VLOOKUP(G1257,'Data order'!Z:AA,2,0)","v":{"$error":"#N/A"}},null,null,null,null,null,null,null,null,{"$f":"VLOOKUP(N1257,Tabel10[[korte omschrijving]:[MCC3_CODE]],2,0)","v":{"$error":"#N/A"}},{"$f":"VLOOKUP(N1257,'Data order'!M:O,3,0)","v":{"$error":"#N/A"}},null,null,null,{"$f":"IFERROR(\n  IF(R1257=\"Big&Tall\",\n      VLOOKUP(S1257, 'Data order'!$AC$92:$AD$101, 2, FALSE),\n      IF(R1257=\"Boordmaat\",\n          VLOOKUP(S1257, 'Data order'!$AC$102:$AD$116, 2, FALSE),\n          VLOOKUP(S1257, 'Data order'!$AC$2:$AD$91, 2, FALSE)\n      )\n  ),\n\"\")","v":""},null,null,null,null,"EUR",null,null,null,{"$error":"#DIV/0!"},0,0,null,"","","","","","","","","","",null,null,null,null,null,null,null,null,null,null,null,null,null,null,null,null,null,"ZWO"]
[null,null,null,null,null,{"$f":"VLOOKUP(G1258,'Data order'!Z:AA,2,0)","v":{"$error":"#N/A"}},null,null,null,null,null,null,null,null,{"$f":"VLOOKUP(N1258,Tabel10[[korte omschrijving]:[MCC3_CODE]],2,0)","v":{"$error":"#N/A"}},{"$f":"VLOOKUP(N1258,'Data order'!M:O,3,0)","v":{"$error":"#N/A"}},null,null,null,{"$f":"IFERROR(\n  IF(R1258=\"Big&Tall\",\n      VLOOKUP(S1258, 'Data order'!$AC$92:$AD$101, 2, FALSE),\n      IF(R1258=\"Boordmaat\",\n          VLOOKUP(S1258, 'Data order'!$AC$102:$AD$116, 2, FALSE),\n          VLOOKUP(S1258, 'Data order'!$AC$2:$AD$91, 2, FALSE)\n      )\n  ),\n\"\")","v":""},null,null,null,null,"EUR",null,null,null,{"$error":"#DIV/0!"},0,0,null,"","","","","","","","","","",null,null,null,null,null,null,null,null,null,null,null,null,null,null,null,null,null,"ZWO"]
[null,null,null,null,null,{"$f":"VLOOKUP(G1259,'Data order'!Z:AA,2,0)","v":{"$error":"#N/A"}},null,null,null,null,null,null,null,null,{"$f":"VLOOKUP(N1259,Tabel10[[korte omschrijving]:[MCC3_CODE]],2,0)","v":{"$error":"#N/A"}},{"$f":"VLOOKUP(N1259,'Data order'!M:O,3,0)","v":{"$error":"#N/A"}},null,null,null,{"$f":"IFERROR(\n  IF(R1259=\"Big&Tall\",\n      VLOOKUP(S1259, 'Data order'!$AC$92:$AD$101, 2, FALSE),\n      IF(R1259=\"Boordmaat\",\n          VLOOKUP(S1259, 'Data order'!$AC$102:$AD$116, 2, FALSE),\n          VLOOKUP(S1259, 'Data order'!$AC$2:$AD$91, 2, FALSE)\n      )\n  ),\n\"\")","v":""},null,null,null,null,"EUR",null,null,null,{"$error":"#DIV/0!"},0,0,null,"","","","","","","","","","",null,null,null,null,null,null,null,null,null,null,null,null,null,null,null,null,null,"ZWO"]
[null,null,null,null,null,{"$f":"VLOOKUP(G1260,'Data order'!Z:AA,2,0)","v":{"$error":"#N/A"}},null,null,null,null,null,null,null,null,{"$f":"VLOOKUP(N1260,Tabel10[[korte omschrijving]:[MCC3_CODE]],2,0)","v":{"$error":"#N/A"}},{"$f":"VLOOKUP(N1260,'Data order'!M:O,3,0)","v":{"$error":"#N/A"}},null,null,null,{"$f":"IFERROR(\n  IF(R1260=\"Big&Tall\",\n      VLOOKUP(S1260, 'Data order'!$AC$92:$AD$101, 2, FALSE),\n      IF(R1260=\"Boordmaat\",\n          VLOOKUP(S1260, 'Data order'!$AC$102:$AD$116, 2, FALSE),\n          VLOOKUP(S1260, 'Data order'!$AC$2:$AD$91, 2, FALSE)\n      )\n  ),\n\"\")","v":""},null,0,null,null,"EUR",null,null,null,{"$f":"AB1260/Z1260","v":{"$error":"#DIV/0!"}},{"$f":"U1260*Z1260","v":0},{"$f":"U1260*AB1260","v":0},null,"","","","","","","","","","",null,null,null,null,null,null,null,null,null,null,null,null,null,null,null,null,null,"ZWO"]
[null,null,null,null,null,{"$f":"VLOOKUP(G1261,'Data order'!Z:AA,2,0)","v":{"$error":"#N/A"}},null,null,null,null,null,null,null,null,{"$f":"VLOOKUP(N1261,Tabel10[[korte omschrijving]:[MCC3_CODE]],2,0)","v":{"$error":"#N/A"}},{"$f":"VLOOKUP(N1261,'Data order'!M:O,3,0)","v":{"$error":"#N/A"}},null,null,null,{"$f":"IFERROR(\n  IF(R1261=\"Big&Tall\",\n      VLOOKUP(S1261, 'Data order'!$AC$92:$AD$101, 2, FALSE),\n      IF(R1261=\"Boordmaat\",\n          VLOOKUP(S1261, 'Data order'!$AC$102:$AD$116, 2, FALSE),\n          VLOOKUP(S1261, 'Data order'!$AC$2:$AD$91, 2, FALSE)\n      )\n  ),\n\"\")","v":""},null,null,null,null,"EUR",null,null,null,{"$error":"#DIV/0!"},0,0,null,"","","","","","","","","","",null,null,null,null,null,null,null,null,null,null,null,null,null,null,null,null,null,"ZWO"]
[null,null,null,null,null,{"$f":"VLOOKUP(G1262,'Data order'!Z:AA,2,0)","v":{"$error":"#N/A"}},null,null,null,null,null,null,null,null,{"$f":"VLOOKUP(N1262,Tabel10[[korte omschrijving]:[MCC3_CODE]],2,0)","v":{"$error":"#N/A"}},{"$f":"VLOOKUP(N1262,'Data order'!M:O,3,0)","v":{"$error":"#N/A"}},null,null,null,{"$f":"IFERROR(\n  IF(R1262=\"Big&Tall\",\n      VLOOKUP(S1262, 'Data order'!$AC$92:$AD$101, 2, FALSE),\n      IF(R1262=\"Boordmaat\",\n          VLOOKUP(S1262, 'Data order'!$AC$102:$AD$116, 2, FALSE),\n          VLOOKUP(S1262, 'Data order'!$AC$2:$AD$91, 2, FALSE)\n      )\n  ),\n\"\")","v":""},null,null,null,null,"EUR",null,null,null,{"$error":"#DIV/0!"},0,0,null,"","","","","","","","","","",null,null,null,null,null,null,null,null,null,null,null,null,null,null,null,null,null,"ZWO"]
[null,null,null,null,null,{"$f":"VLOOKUP(G1263,'Data order'!Z:AA,2,0)","v":{"$error":"#N/A"}},null,null,null,null,null,null,null,null,{"$f":"VLOOKUP(N1263,Tabel10[[korte omschrijving]:[MCC3_CODE]],2,0)","v":{"$error":"#N/A"}},{"$f":"VLOOKUP(N1263,'Data order'!M:O,3,0)","v":{"$error":"#N/A"}},null,null,null,{"$f":"IFERROR(\n  IF(R1263=\"Big&Tall\",\n      VLOOKUP(S1263, 'Data order'!$AC$92:$AD$101, 2, FALSE),\n      IF(R1263=\"Boordmaat\",\n          VLOOKUP(S1263, 'Data order'!$AC$102:$AD$116, 2, FALSE),\n          VLOOKUP(S1263, 'Data order'!$AC$2:$AD$91, 2, FALSE)\n      )\n  ),\n\"\")","v":""},null,null,null,null,"EUR",null,null,null,{"$error":"#DIV/0!"},0,0,null,"","","","","","","","","","",null,null,null,null,null,null,null,null,null,null,null,null,null,null,null,null,null,"ZWO"]
[null,null,null,null,null,{"$f":"VLOOKUP(G1264,'Data order'!Z:AA,2,0)","v":{"$error":"#N/A"}},null,null,null,null,null,null,null,null,{"$f":"VLOOKUP(N1264,Tabel10[[korte omschrijving]:[MCC3_CODE]],2,0)","v":{"$error":"#N/A"}},{"$f":"VLOOKUP(N1264,'Data order'!M:O,3,0)","v":{"$error":"#N/A"}},null,null,null,{"$f":"IFERROR(\n  IF(R1264=\"Big&Tall\",\n      VLOOKUP(S1264, 'Data order'!$AC$92:$AD$101, 2, FALSE),\n      IF(R1264=\"Boordmaat\",\n          VLOOKUP(S1264, 'Data order'!$AC$102:$AD$116, 2, FALSE),\n          VLOOKUP(S1264, 'Data order'!$AC$2:$AD$91, 2, FALSE)\n      )\n  ),\n\"\")","v":""},null,null,null,null,"EUR",null,null,null,{"$error":"#DIV/0!"},0,0,null,"","","","","","","","","","",null,null,null,null,null,null,null,null,null,null,null,null,null,null,null,null,null,"ZWO"]
[null,null,null,null,null,{"$f":"VLOOKUP(G1265,'Data order'!Z:AA,2,0)","v":{"$error":"#N/A"}},null,null,null,null,null,null,null,null,{"$f":"VLOOKUP(N1265,Tabel10[[korte omschrijving]:[MCC3_CODE]],2,0)","v":{"$error":"#N/A"}},{"$f":"VLOOKUP(N1265,'Data order'!M:O,3,0)","v":{"$error":"#N/A"}},null,null,null,{"$f":"IFERROR(\n  IF(R1265=\"Big&Tall\",\n      VLOOKUP(S1265, 'Data order'!$AC$92:$AD$101, 2, FALSE),\n      IF(R1265=\"Boordmaat\",\n          VLOOKUP(S1265, 'Data order'!$AC$102:$AD$116, 2, FALSE),\n          VLOOKUP(S1265, 'Data order'!$AC$2:$AD$91, 2, FALSE)\n      )\n  ),\n\"\")","v":""},null,null,null,null,"EUR",null,null,null,{"$error":"#DIV/0!"},0,0,null,"","","","","","","","","","",null,null,null,null,null,null,null,null,null,null,null,null,null,null,null,null,null,"ZWO"]
[null,null,null,null,null,{"$f":"VLOOKUP(G1266,'Data order'!Z:AA,2,0)","v":{"$error":"#N/A"}},null,null,null,null,null,null,null,null,{"$f":"VLOOKUP(N1266,Tabel10[[korte omschrijving]:[MCC3_CODE]],2,0)","v":{"$error":"#N/A"}},{"$f":"VLOOKUP(N1266,'Data order'!M:O,3,0)","v":{"$error":"#N/A"}},null,null,null,{"$f":"IFERROR(\n  IF(R1266=\"Big&Tall\",\n      VLOOKUP(S1266, 'Data order'!$AC$92:$AD$101, 2, FALSE),\n      IF(R1266=\"Boordmaat\",\n          VLOOKUP(S1266, 'Data order'!$AC$102:$AD$116, 2, FALSE),\n          VLOOKUP(S1266, 'Data order'!$AC$2:$AD$91, 2, FALSE)\n      )\n  ),\n\"\")","v":""},null,0,null,null,"EUR",null,null,null,{"$f":"AB1266/Z1266","v":{"$error":"#DIV/0!"}},{"$f":"U1266*Z1266","v":0},{"$f":"U1266*AB1266","v":0},null,"","","","","","","","","","",null,null,null,null,null,null,null,null,null,null,null,null,null,null,null,null,null,"ZWO"]
[null,null,null,null,null,{"$f":"VLOOKUP(G1267,'Data order'!Z:AA,2,0)","v":{"$error":"#N/A"}},null,null,null,null,null,null,null,null,{"$f":"VLOOKUP(N1267,Tabel10[[korte omschrijving]:[MCC3_CODE]],2,0)","v":{"$error":"#N/A"}},{"$f":"VLOOKUP(N1267,'Data order'!M:O,3,0)","v":{"$error":"#N/A"}},null,null,null,{"$f":"IFERROR(\n  IF(R1267=\"Big&Tall\",\n      VLOOKUP(S1267, 'Data order'!$AC$92:$AD$101, 2, FALSE),\n      IF(R1267=\"Boordmaat\",\n          VLOOKUP(S1267, 'Data order'!$AC$102:$AD$116, 2, FALSE),\n          VLOOKUP(S1267, 'Data order'!$AC$2:$AD$91, 2, FALSE)\n      )\n  ),\n\"\")","v":""},null,null,null,null,"EUR",null,null,null,{"$error":"#DIV/0!"},0,0,null,"","","","","","","","","","",null,null,null,null,null,null,null,null,null,null,null,null,null,null,null,null,null,"ZWO"]
[null,null,null,null,null,{"$f":"VLOOKUP(G1268,'Data order'!Z:AA,2,0)","v":{"$error":"#N/A"}},null,null,null,null,null,null,null,null,{"$f":"VLOOKUP(N1268,Tabel10[[korte omschrijving]:[MCC3_CODE]],2,0)","v":{"$error":"#N/A"}},{"$f":"VLOOKUP(N1268,'Data order'!M:O,3,0)","v":{"$error":"#N/A"}},null,null,null,{"$f":"IFERROR(\n  IF(R1268=\"Big&Tall\",\n      VLOOKUP(S1268, 'Data order'!$AC$92:$AD$101, 2, FALSE),\n      IF(R1268=\"Boordmaat\",\n          VLOOKUP(S1268, 'Data order'!$AC$102:$AD$116, 2, FALSE),\n          VLOOKUP(S1268, 'Data order'!$AC$2:$AD$91, 2, FALSE)\n      )\n  ),\n\"\")","v":""},null,null,null,null,"EUR",null,null,null,{"$error":"#DIV/0!"},0,0,null,"","","","","","","","","","",null,null,null,null,null,null,null,null,null,null,null,null,null,null,null,null,null,"ZWO"]
[null,null,null,null,null,{"$f":"VLOOKUP(G1269,'Data order'!Z:AA,2,0)","v":{"$error":"#N/A"}},null,null,null,null,null,null,null,null,{"$f":"VLOOKUP(N1269,Tabel10[[korte omschrijving]:[MCC3_CODE]],2,0)","v":{"$error":"#N/A"}},{"$f":"VLOOKUP(N1269,'Data order'!M:O,3,0)","v":{"$error":"#N/A"}},null,null,null,{"$f":"IFERROR(\n  IF(R1269=\"Big&Tall\",\n      VLOOKUP(S1269, 'Data order'!$AC$92:$AD$101, 2, FALSE),\n      IF(R1269=\"Boordmaat\",\n          VLOOKUP(S1269, 'Data order'!$AC$102:$AD$116, 2, FALSE),\n          VLOOKUP(S1269, 'Data order'!$AC$2:$AD$91, 2, FALSE)\n      )\n  ),\n\"\")","v":""},null,null,null,null,"EUR",null,null,null,{"$error":"#DIV/0!"},0,0,null,"","","","","","","","","","",null,null,null,null,null,null,null,null,null,null,null,null,null,null,null,null,null,"ZWO"]
[null,null,null,null,null,{"$f":"VLOOKUP(G1270,'Data order'!Z:AA,2,0)","v":{"$error":"#N/A"}},null,null,null,null,null,null,null,null,{"$f":"VLOOKUP(N1270,Tabel10[[korte omschrijving]:[MCC3_CODE]],2,0)","v":{"$error":"#N/A"}},{"$f":"VLOOKUP(N1270,'Data order'!M:O,3,0)","v":{"$error":"#N/A"}},null,null,null,{"$f":"IFERROR(\n  IF(R1270=\"Big&Tall\",\n      VLOOKUP(S1270, 'Data order'!$AC$92:$AD$101, 2, FALSE),\n      IF(R1270=\"Boordmaat\",\n          VLOOKUP(S1270, 'Data order'!$AC$102:$AD$116, 2, FALSE),\n          VLOOKUP(S1270, 'Data order'!$AC$2:$AD$91, 2, FALSE)\n      )\n  ),\n\"\")","v":""},null,null,null,null,"EUR",null,null,null,{"$error":"#DIV/0!"},0,0,null,"","","","","","","","","","",null,null,null,null,null,null,null,null,null,null,null,null,null,null,null,null,null,"ZWO"]
[null,null,null,null,null,{"$f":"VLOOKUP(G1271,'Data order'!Z:AA,2,0)","v":{"$error":"#N/A"}},null,null,null,null,null,null,null,null,{"$f":"VLOOKUP(N1271,Tabel10[[korte omschrijving]:[MCC3_CODE]],2,0)","v":{"$error":"#N/A"}},{"$f":"VLOOKUP(N1271,'Data order'!M:O,3,0)","v":{"$error":"#N/A"}},null,null,null,{"$f":"IFERROR(\n  IF(R1271=\"Big&Tall\",\n      VLOOKUP(S1271, 'Data order'!$AC$92:$AD$101, 2, FALSE),\n      IF(R1271=\"Boordmaat\",\n          VLOOKUP(S1271, 'Data order'!$AC$102:$AD$116, 2, FALSE),\n          VLOOKUP(S1271, 'Data order'!$AC$2:$AD$91, 2, FALSE)\n      )\n  ),\n\"\")","v":""},null,null,null,null,"EUR",null,null,null,{"$error":"#DIV/0!"},0,0,null,"","","","","","","","","","",null,null,null,null,null,null,null,null,null,null,null,null,null,null,null,null,null,"ZWO"]
[null,null,null,null,null,{"$f":"VLOOKUP(G1272,'Data order'!Z:AA,2,0)","v":{"$error":"#N/A"}},null,null,null,null,null,null,null,null,{"$f":"VLOOKUP(N1272,Tabel10[[korte omschrijving]:[MCC3_CODE]],2,0)","v":{"$error":"#N/A"}},{"$f":"VLOOKUP(N1272,'Data order'!M:O,3,0)","v":{"$error":"#N/A"}},null,null,null,{"$f":"IFERROR(\n  IF(R1272=\"Big&Tall\",\n      VLOOKUP(S1272, 'Data order'!$AC$92:$AD$101, 2, FALSE),\n      IF(R1272=\"Boordmaat\",\n          VLOOKUP(S1272, 'Data order'!$AC$102:$AD$116, 2, FALSE),\n          VLOOKUP(S1272, 'Data order'!$AC$2:$AD$91, 2, FALSE)\n      )\n  ),\n\"\")","v":""},null,0,null,null,"EUR",null,null,null,{"$f":"AB1272/Z1272","v":{"$error":"#DIV/0!"}},{"$f":"U1272*Z1272","v":0},{"$f":"U1272*AB1272","v":0},null,{"$f":"IF(AF1272 <> \"\",\n    IF(ISNUMBER(VALUE(LEFT(AF1272, FIND(\"%\", AF1272)-1))),\n        VALUE(LEFT(AF1272, FIND(\"%\", AF1272)-1)),\n        \"Invalid format\"),\n    \"\")","v":""},{"$f":"IF(AF1272 <> \"\",\n    IF(ISNUMBER(VALUE(LEFT(AF1272, FIND(\"%\", AF1272)-1))) * ISNUMBER(FIND(\"%\", AF1272 & \"wol\")) > 0,\n        TRIM(MID(AF1272, FIND(\"%\", AF1272)+1, FIND(\"/\", AF1272 & \"/\")-FIND(\"%\", AF1272)-1)),\n        \"Invalid format\"),\n    \"\")","v":""},{"$f":"IF(AF1272 <> \"\",\n    IF(ISNUMBER(VALUE(MID(AF1272, FIND(\"/\", AF1272) + 1, FIND(\"%\", AF1272, FIND(\"/\", AF1272)) - FIND(\"/\", AF1272) - 1))),\n        VALUE(MID(AF1272, FIND(\"/\", AF1272) + 1, FIND(\"%\", AF1272, FIND(\"/\", AF1272)) - FIND(\"/\", AF1272) - 1)),\n        \"\"),\n    \"\")","v":""},{"$f":"IF(AF1272 <> \"\",\n    IFERROR(TRIM(MID(AF1272, FIND(\"%\", AF1272, FIND(\"/\", AF1272)+1)+2,\n        IFERROR(FIND(\"/\", AF1272 & \"/\", FIND(\"/\", AF1272)+1)-FIND(\"%\", AF1272, FIND(\"/\", AF1272)+1)-2, LEN(AF1272)-FIND(\"%\", AF1272, FIND(\"/\", AF1272)+1)-1))),\n        \"\"),\n    \"\")","v":""},{"$f":"IF(AF1272 <> \"\",\n    IF(ISNUMBER(VALUE(MID(AF1272, FIND(\"/\", AF1272, FIND(\"/\", AF1272)+1) + 1, FIND(\"%\", AF1272, FIND(\"/\", AF1272, FIND(\"/\", AF1272)+1)) - FIND(\"/\", AF1272, FIND(\"/\", AF1272)+1) - 1))),\n        VALUE(MID(AF1272, FIND(\"/\", AF1272, FIND(\"/\", AF1272)+1) + 1, FIND(\"%\", AF1272, FIND(\"/\", AF1272, FIND(\"/\", AF1272)+1)) - FIND(\"/\", AF1272, FIND(\"/\", AF1272)+1) - 1)),\n        \"\"),\n    \"\")","v":""},{"$f":"IF(AF1272 <> \"\",\n    IFERROR(\n        TRIM(MID(AF1272,\n            FIND(\"%\", AF1272, FIND(\"%\", AF1272, FIND(\"%\", AF1272)+1)+1)+1,\n            FIND(\"/\", AF1272 & \"/\", FIND(\"%\", AF1272, FIND(\"%\", AF1272, FIND(\"%\", AF1272)+1)+1))-FIND(\"%\", AF1272, FIND(\"%\", AF1272, FIND(\"%\", AF1272)+1)+1)-1)\n        ),\n        \"\"\n    ),\n    \"\"\n)","v":""},{"$f":"IF(AF1272 <> \"\",\n    IF(ISNUMBER(VALUE(MID(AF1272, FIND(\"/\", AF1272, FIND(\"/\", AF1272, FIND(\"/\", AF1272)+1)+1) + 1, FIND(\"%\", AF1272, FIND(\"/\", AF1272, FIND(\"/\", AF1272, FIND(\"/\", AF1272)+1)+1)) - FIND(\"/\", AF1272, FIND(\"/\", AF1272, FIND(\"/\", AF1272)+1)+1) - 1))),\n        VALUE(MID(AF1272, FIND(\"/\", AF1272, FIND(\"/\", AF1272, FIND(\"/\", AF1272)+1)+1) + 1, FIND(\"%\", AF1272, FIND(\"/\", AF1272, FIND(\"/\", AF1272, FIND(\"/\", AF1272)+1)+1)) - FIND(\"/\", AF1272, FIND(\"/\", AF1272, FIND(\"/\", AF1272)+1)+1) - 1)),\n        \"\"),\n    \"\")","v":""},{"$f":"IF(AF1272 <> \"\",\n    IFERROR(TRIM(MID(AF1272, FIND(\"%\", AF1272, FIND(\"/\", AF1272, FIND(\"/\", AF1272, FIND(\"/\", AF1272)+1)+1)+1)+2,\n        IFERROR(FIND(\"/\", AF1272, FIND(\"/\", AF1272, FIND(\"/\", AF1272, FIND(\"/\", AF1272)+1)+1)+1)-FIND(\"%\", AF1272, FIND(\"/\", AF1272, FIND(\"/\", AF1272, FIND(\"/\", AF1272)+1)+1)+1)-2, LEN(AF1272)-FIND(\"%\", AF1272, FIND(\"/\", AF1272, FIND(\"/\", AF1272, FIND(\"/\", AF1272)+1)+1)+1)-1))),\n        \"\"),\n    \"\")","v":""},{"$f":"IF(AF1272 <> \"\",\n    IF(ISNUMBER(VALUE(MID(AF1272, FIND(\"/\", AF1272, FIND(\"/\", AF1272, FIND(\"/\", AF1272, FIND(\"/\", AF1272)+1)+1)+1) + 1, FIND(\"%\", AF1272, FIND(\"/\", AF1272, FIND(\"/\", AF1272, FIND(\"/\", AF1272, FIND(\"/\", AF1272)+1)+1)+1)) - FIND(\"/\", AF1272, FIND(\"/\", AF1272, FIND(\"/\", AF1272, FIND(\"/\", AF1272)+1)+1)+1) - 1))),\n        VALUE(MID(AF1272, FIND(\"/\", AF1272, FIND(\"/\", AF1272, FIND(\"/\", AF1272, FIND(\"/\", AF1272)+1)+1)+1) + 1, FIND(\"%\", AF1272, FIND(\"/\", AF1272, FIND(\"/\", AF1272, FIND(\"/\", AF1272, FIND(\"/\", AF1272)+1)+1)+1)) - FIND(\"/\", AF1272, FIND(\"/\", AF1272, FIND(\"/\", AF1272, FIND(\"/\", AF1272)+1)+1)+1) - 1)),\n        \"\"),\n    \"\")","v":""},{"$f":"IF(AF1272 = \"\", \"\",\n    IFERROR(TRIM(\n        MID(\n            AF1272,\n            FIND(\"%\", AF1272, FIND(\"/\", AF1272, FIND(\"/\", AF1272, FIND(\"/\", AF1272, FIND(\"/\", AF1272)+1)+1)+1)+1) + 1,\n            FIND(\"/\", AF1272 & \"/\", FIND(\"%\", AF1272, FIND(\"/\", AF1272, FIND(\"/\", AF1272, FIND(\"/\", AF1272, FIND(\"/\", AF1272)+1)+1)+1)+1)) -\n            FIND(\"%\", AF1272, FIND(\"/\", AF1272, FIND(\"/\", AF1272, FIND(\"/\", AF1272, FIND(\"/\", AF1272)+1)+1)+1)+1) - 1\n        )\n    ),\n    \"\")\n)","v":""},null,null,null,null,null,null,null,null,null,null,null,null,null,null,null,null,null,"ZWO"]
[null,null,null,null,null,{"$f":"VLOOKUP(G1273,'Data order'!Z:AA,2,0)","v":{"$error":"#N/A"}},null,null,null,null,null,null,null,null,{"$f":"VLOOKUP(N1273,Tabel10[[korte omschrijving]:[MCC3_CODE]],2,0)","v":{"$error":"#N/A"}},{"$f":"VLOOKUP(N1273,'Data order'!M:O,3,0)","v":{"$error":"#N/A"}},null,null,null,{"$f":"IFERROR(\n  IF(R1273=\"Big&Tall\",\n      VLOOKUP(S1273, 'Data order'!$AC$92:$AD$101, 2, FALSE),\n      IF(R1273=\"Boordmaat\",\n          VLOOKUP(S1273, 'Data order'!$AC$102:$AD$116, 2, FALSE),\n          VLOOKUP(S1273, 'Data order'!$AC$2:$AD$91, 2, FALSE)\n      )\n  ),\n\"\")","v":""},null,null,null,null,"EUR",null,null,null,{"$error":"#DIV/0!"},0,0,null,"","","","","","","","","","",null,null,null,null,null,null,null,null,null,null,null,null,null,null,null,null,null,"ZWO"]
[null,null,null,null,null,{"$f":"VLOOKUP(G1274,'Data order'!Z:AA,2,0)","v":{"$error":"#N/A"}},null,null,null,null,null,null,null,null,{"$f":"VLOOKUP(N1274,Tabel10[[korte omschrijving]:[MCC3_CODE]],2,0)","v":{"$error":"#N/A"}},{"$f":"VLOOKUP(N1274,'Data order'!M:O,3,0)","v":{"$error":"#N/A"}},null,null,null,{"$f":"IFERROR(\n  IF(R1274=\"Big&Tall\",\n      VLOOKUP(S1274, 'Data order'!$AC$92:$AD$101, 2, FALSE),\n      IF(R1274=\"Boordmaat\",\n          VLOOKUP(S1274, 'Data order'!$AC$102:$AD$116, 2, FALSE),\n          VLOOKUP(S1274, 'Data order'!$AC$2:$AD$91, 2, FALSE)\n      )\n  ),\n\"\")","v":""},null,null,null,null,"EUR",null,null,null,{"$error":"#DIV/0!"},0,0,null,"","","","","","","","","","",null,null,null,null,null,null,null,null,null,null,null,null,null,null,null,null,null,"ZWO"]
[null,null,null,null,null,{"$f":"VLOOKUP(G1275,'Data order'!Z:AA,2,0)","v":{"$error":"#N/A"}},null,null,null,null,null,null,null,null,{"$f":"VLOOKUP(N1275,Tabel10[[korte omschrijving]:[MCC3_CODE]],2,0)","v":{"$error":"#N/A"}},{"$f":"VLOOKUP(N1275,'Data order'!M:O,3,0)","v":{"$error":"#N/A"}},null,null,null,{"$f":"IFERROR(\n  IF(R1275=\"Big&Tall\",\n      VLOOKUP(S1275, 'Data order'!$AC$92:$AD$101, 2, FALSE),\n      IF(R1275=\"Boordmaat\",\n          VLOOKUP(S1275, 'Data order'!$AC$102:$AD$116, 2, FALSE),\n          VLOOKUP(S1275, 'Data order'!$AC$2:$AD$91, 2, FALSE)\n      )\n  ),\n\"\")","v":""},null,null,null,null,"EUR",null,null,null,{"$error":"#DIV/0!"},0,0,null,"","","","","","","","","","",null,null,null,null,null,null,null,null,null,null,null,null,null,null,null,null,null,"ZWO"]
[null,null,null,null,null,{"$f":"VLOOKUP(G1276,'Data order'!Z:AA,2,0)","v":{"$error":"#N/A"}},null,null,null,null,null,null,null,null,{"$f":"VLOOKUP(N1276,Tabel10[[korte omschrijving]:[MCC3_CODE]],2,0)","v":{"$error":"#N/A"}},{"$f":"VLOOKUP(N1276,'Data order'!M:O,3,0)","v":{"$error":"#N/A"}},null,null,null,{"$f":"IFERROR(\n  IF(R1276=\"Big&Tall\",\n      VLOOKUP(S1276, 'Data order'!$AC$92:$AD$101, 2, FALSE),\n      IF(R1276=\"Boordmaat\",\n          VLOOKUP(S1276, 'Data order'!$AC$102:$AD$116, 2, FALSE),\n          VLOOKUP(S1276, 'Data order'!$AC$2:$AD$91, 2, FALSE)\n      )\n  ),\n\"\")","v":""},null,null,null,null,"EUR",null,null,null,{"$error":"#DIV/0!"},0,0,null,"","","","","","","","","","",null,null,null,null,null,null,null,null,null,null,null,null,null,null,null,null,null,"ZWO"]
[null,null,null,null,null,{"$f":"VLOOKUP(G1277,'Data order'!Z:AA,2,0)","v":{"$error":"#N/A"}},null,null,null,null,null,null,null,null,{"$f":"VLOOKUP(N1277,Tabel10[[korte omschrijving]:[MCC3_CODE]],2,0)","v":{"$error":"#N/A"}},{"$f":"VLOOKUP(N1277,'Data order'!M:O,3,0)","v":{"$error":"#N/A"}},null,null,null,{"$f":"IFERROR(\n  IF(R1277=\"Big&Tall\",\n      VLOOKUP(S1277, 'Data order'!$AC$92:$AD$101, 2, FALSE),\n      IF(R1277=\"Boordmaat\",\n          VLOOKUP(S1277, 'Data order'!$AC$102:$AD$116, 2, FALSE),\n          VLOOKUP(S1277, 'Data order'!$AC$2:$AD$91, 2, FALSE)\n      )\n  ),\n\"\")","v":""},null,null,null,null,"EUR",null,null,null,{"$error":"#DIV/0!"},0,0,null,"","","","","","","","","","",null,null,null,null,null,null,null,null,null,null,null,null,null,null,null,null,null,"ZWO"]
[null,null,null,null,null,{"$f":"VLOOKUP(G1278,'Data order'!Z:AA,2,0)","v":{"$error":"#N/A"}},null,null,null,null,null,null,null,null,{"$f":"VLOOKUP(N1278,Tabel10[[korte omschrijving]:[MCC3_CODE]],2,0)","v":{"$error":"#N/A"}},{"$f":"VLOOKUP(N1278,'Data order'!M:O,3,0)","v":{"$error":"#N/A"}},null,null,null,{"$f":"IFERROR(\n  IF(R1278=\"Big&Tall\",\n      VLOOKUP(S1278, 'Data order'!$AC$92:$AD$101, 2, FALSE),\n      IF(R1278=\"Boordmaat\",\n          VLOOKUP(S1278, 'Data order'!$AC$102:$AD$116, 2, FALSE),\n          VLOOKUP(S1278, 'Data order'!$AC$2:$AD$91, 2, FALSE)\n      )\n  ),\n\"\")","v":""},null,0,null,null,"EUR",null,null,null,{"$f":"AB1278/Z1278","v":{"$error":"#DIV/0!"}},{"$f":"U1278*Z1278","v":0},{"$f":"U1278*AB1278","v":0},null,"","","","","","","","","","",null,null,null,null,null,null,null,null,null,null,null,null,null,null,null,null,null,"ZWO"]
[null,null,null,null,null,{"$f":"VLOOKUP(G1279,'Data order'!Z:AA,2,0)","v":{"$error":"#N/A"}},null,null,null,null,null,null,null,null,{"$f":"VLOOKUP(N1279,Tabel10[[korte omschrijving]:[MCC3_CODE]],2,0)","v":{"$error":"#N/A"}},{"$f":"VLOOKUP(N1279,'Data order'!M:O,3,0)","v":{"$error":"#N/A"}},null,null,null,{"$f":"IFERROR(\n  IF(R1279=\"Big&Tall\",\n      VLOOKUP(S1279, 'Data order'!$AC$92:$AD$101, 2, FALSE),\n      IF(R1279=\"Boordmaat\",\n          VLOOKUP(S1279, 'Data order'!$AC$102:$AD$116, 2, FALSE),\n          VLOOKUP(S1279, 'Data order'!$AC$2:$AD$91, 2, FALSE)\n      )\n  ),\n\"\")","v":""},null,null,null,null,"EUR",null,null,null,{"$error":"#DIV/0!"},0,0,null,"","","","","","","","","","",null,null,null,null,null,null,null,null,null,null,null,null,null,null,null,null,null,"ZWO"]
[null,null,null,null,null,{"$f":"VLOOKUP(G1280,'Data order'!Z:AA,2,0)","v":{"$error":"#N/A"}},null,null,null,null,null,null,null,null,{"$f":"VLOOKUP(N1280,Tabel10[[korte omschrijving]:[MCC3_CODE]],2,0)","v":{"$error":"#N/A"}},{"$f":"VLOOKUP(N1280,'Data order'!M:O,3,0)","v":{"$error":"#N/A"}},null,null,null,{"$f":"IFERROR(\n  IF(R1280=\"Big&Tall\",\n      VLOOKUP(S1280, 'Data order'!$AC$92:$AD$101, 2, FALSE),\n      IF(R1280=\"Boordmaat\",\n          VLOOKUP(S1280, 'Data order'!$AC$102:$AD$116, 2, FALSE),\n          VLOOKUP(S1280, 'Data order'!$AC$2:$AD$91, 2, FALSE)\n      )\n  ),\n\"\")","v":""},null,null,null,null,"EUR",null,null,null,{"$error":"#DIV/0!"},0,0,null,"","","","","","","","","","",null,null,null,null,null,null,null,null,null,null,null,null,null,null,null,null,null,"ZWO"]
[null,null,null,null,null,{"$f":"VLOOKUP(G1281,'Data order'!Z:AA,2,0)","v":{"$error":"#N/A"}},null,null,null,null,null,null,null,null,{"$f":"VLOOKUP(N1281,Tabel10[[korte omschrijving]:[MCC3_CODE]],2,0)","v":{"$error":"#N/A"}},{"$f":"VLOOKUP(N1281,'Data order'!M:O,3,0)","v":{"$error":"#N/A"}},null,null,null,{"$f":"IFERROR(\n  IF(R1281=\"Big&Tall\",\n      VLOOKUP(S1281, 'Data order'!$AC$92:$AD$101, 2, FALSE),\n      IF(R1281=\"Boordmaat\",\n          VLOOKUP(S1281, 'Data order'!$AC$102:$AD$116, 2, FALSE),\n          VLOOKUP(S1281, 'Data order'!$AC$2:$AD$91, 2, FALSE)\n      )\n  ),\n\"\")","v":""},null,null,null,null,"EUR",null,null,null,{"$error":"#DIV/0!"},0,0,null,"","","","","","","","","","",null,null,null,null,null,null,null,null,null,null,null,null,null,null,null,null,null,"ZWO"]
[null,null,null,null,null,{"$f":"VLOOKUP(G1282,'Data order'!Z:AA,2,0)","v":{"$error":"#N/A"}},null,null,null,null,null,null,null,null,{"$f":"VLOOKUP(N1282,Tabel10[[korte omschrijving]:[MCC3_CODE]],2,0)","v":{"$error":"#N/A"}},{"$f":"VLOOKUP(N1282,'Data order'!M:O,3,0)","v":{"$error":"#N/A"}},null,null,null,{"$f":"IFERROR(\n  IF(R1282=\"Big&Tall\",\n      VLOOKUP(S1282, 'Data order'!$AC$92:$AD$101, 2, FALSE),\n      IF(R1282=\"Boordmaat\",\n          VLOOKUP(S1282, 'Data order'!$AC$102:$AD$116, 2, FALSE),\n          VLOOKUP(S1282, 'Data order'!$AC$2:$AD$91, 2, FALSE)\n      )\n  ),\n\"\")","v":""},null,null,null,null,"EUR",null,null,null,{"$error":"#DIV/0!"},0,0,null,"","","","","","","","","","",null,null,null,null,null,null,null,null,null,null,null,null,null,null,null,null,null,"ZWO"]
[null,null,null,null,null,{"$f":"VLOOKUP(G1283,'Data order'!Z:AA,2,0)","v":{"$error":"#N/A"}},null,null,null,null,null,null,null,null,{"$f":"VLOOKUP(N1283,Tabel10[[korte omschrijving]:[MCC3_CODE]],2,0)","v":{"$error":"#N/A"}},{"$f":"VLOOKUP(N1283,'Data order'!M:O,3,0)","v":{"$error":"#N/A"}},null,null,null,{"$f":"IFERROR(\n  IF(R1283=\"Big&Tall\",\n      VLOOKUP(S1283, 'Data order'!$AC$92:$AD$101, 2, FALSE),\n      IF(R1283=\"Boordmaat\",\n          VLOOKUP(S1283, 'Data order'!$AC$102:$AD$116, 2, FALSE),\n          VLOOKUP(S1283, 'Data order'!$AC$2:$AD$91, 2, FALSE)\n      )\n  ),\n\"\")","v":""},null,null,null,null,"EUR",null,null,null,{"$error":"#DIV/0!"},0,0,null,"","","","","","","","","","",null,null,null,null,null,null,null,null,null,null,null,null,null,null,null,null,null,"ZWO"]
[null,null,null,null,null,{"$f":"VLOOKUP(G1284,'Data order'!Z:AA,2,0)","v":{"$error":"#N/A"}},null,null,null,null,null,null,null,null,{"$f":"VLOOKUP(N1284,Tabel10[[korte omschrijving]:[MCC3_CODE]],2,0)","v":{"$error":"#N/A"}},{"$f":"VLOOKUP(N1284,'Data order'!M:O,3,0)","v":{"$error":"#N/A"}},null,null,null,{"$f":"IFERROR(\n  IF(R1284=\"Big&Tall\",\n      VLOOKUP(S1284, 'Data order'!$AC$92:$AD$101, 2, FALSE),\n      IF(R1284=\"Boordmaat\",\n          VLOOKUP(S1284, 'Data order'!$AC$102:$AD$116, 2, FALSE),\n          VLOOKUP(S1284, 'Data order'!$AC$2:$AD$91, 2, FALSE)\n      )\n  ),\n\"\")","v":""},null,0,null,null,"EUR",null,null,null,{"$f":"AB1284/Z1284","v":{"$error":"#DIV/0!"}},{"$f":"U1284*Z1284","v":0},{"$f":"U1284*AB1284","v":0},null,"","","","","","","","","","",null,null,null,null,null,null,null,null,null,null,null,null,null,null,null,null,null,"ZWO"]
[null,null,null,null,null,{"$f":"VLOOKUP(G1285,'Data order'!Z:AA,2,0)","v":{"$error":"#N/A"}},null,null,null,null,null,null,null,null,{"$f":"VLOOKUP(N1285,Tabel10[[korte omschrijving]:[MCC3_CODE]],2,0)","v":{"$error":"#N/A"}},{"$f":"VLOOKUP(N1285,'Data order'!M:O,3,0)","v":{"$error":"#N/A"}},null,null,null,{"$f":"IFERROR(\n  IF(R1285=\"Big&Tall\",\n      VLOOKUP(S1285, 'Data order'!$AC$92:$AD$101, 2, FALSE),\n      IF(R1285=\"Boordmaat\",\n          VLOOKUP(S1285, 'Data order'!$AC$102:$AD$116, 2, FALSE),\n          VLOOKUP(S1285, 'Data order'!$AC$2:$AD$91, 2, FALSE)\n      )\n  ),\n\"\")","v":""},null,null,null,null,"EUR",null,null,null,{"$error":"#DIV/0!"},0,0,null,"","","","","","","","","","",null,null,null,null,null,null,null,null,null,null,null,null,null,null,null,null,null,"ZWO"]
[null,null,null,null,null,{"$f":"VLOOKUP(G1286,'Data order'!Z:AA,2,0)","v":{"$error":"#N/A"}},null,null,null,null,null,null,null,null,{"$f":"VLOOKUP(N1286,Tabel10[[korte omschrijving]:[MCC3_CODE]],2,0)","v":{"$error":"#N/A"}},{"$f":"VLOOKUP(N1286,'Data order'!M:O,3,0)","v":{"$error":"#N/A"}},null,null,null,{"$f":"IFERROR(\n  IF(R1286=\"Big&Tall\",\n      VLOOKUP(S1286, 'Data order'!$AC$92:$AD$101, 2, FALSE),\n      IF(R1286=\"Boordmaat\",\n          VLOOKUP(S1286, 'Data order'!$AC$102:$AD$116, 2, FALSE),\n          VLOOKUP(S1286, 'Data order'!$AC$2:$AD$91, 2, FALSE)\n      )\n  ),\n\"\")","v":""},null,null,null,null,"EUR",null,null,null,{"$error":"#DIV/0!"},0,0,null,"","","","","","","","","","",null,null,null,null,null,null,null,null,null,null,null,null,null,null,null,null,null,"ZWO"]
[null,null,null,null,null,{"$f":"VLOOKUP(G1287,'Data order'!Z:AA,2,0)","v":{"$error":"#N/A"}},null,null,null,null,null,null,null,null,{"$f":"VLOOKUP(N1287,Tabel10[[korte omschrijving]:[MCC3_CODE]],2,0)","v":{"$error":"#N/A"}},{"$f":"VLOOKUP(N1287,'Data order'!M:O,3,0)","v":{"$error":"#N/A"}},null,null,null,{"$f":"IFERROR(\n  IF(R1287=\"Big&Tall\",\n      VLOOKUP(S1287, 'Data order'!$AC$92:$AD$101, 2, FALSE),\n      IF(R1287=\"Boordmaat\",\n          VLOOKUP(S1287, 'Data order'!$AC$102:$AD$116, 2, FALSE),\n          VLOOKUP(S1287, 'Data order'!$AC$2:$AD$91, 2, FALSE)\n      )\n  ),\n\"\")","v":""},null,null,null,null,"EUR",null,null,null,{"$error":"#DIV/0!"},0,0,null,"","","","","","","","","","",null,null,null,null,null,null,null,null,null,null,null,null,null,null,null,null,null,"ZWO"]
[null,null,null,null,null,{"$f":"VLOOKUP(G1288,'Data order'!Z:AA,2,0)","v":{"$error":"#N/A"}},null,null,null,null,null,null,null,null,{"$f":"VLOOKUP(N1288,Tabel10[[korte omschrijving]:[MCC3_CODE]],2,0)","v":{"$error":"#N/A"}},{"$f":"VLOOKUP(N1288,'Data order'!M:O,3,0)","v":{"$error":"#N/A"}},null,null,null,{"$f":"IFERROR(\n  IF(R1288=\"Big&Tall\",\n      VLOOKUP(S1288, 'Data order'!$AC$92:$AD$101, 2, FALSE),\n      IF(R1288=\"Boordmaat\",\n          VLOOKUP(S1288, 'Data order'!$AC$102:$AD$116, 2, FALSE),\n          VLOOKUP(S1288, 'Data order'!$AC$2:$AD$91, 2, FALSE)\n      )\n  ),\n\"\")","v":""},null,null,null,null,"EUR",null,null,null,{"$error":"#DIV/0!"},0,0,null,"","","","","","","","","","",null,null,null,null,null,null,null,null,null,null,null,null,null,null,null,null,null,"ZWO"]
[null,null,null,null,null,{"$f":"VLOOKUP(G1289,'Data order'!Z:AA,2,0)","v":{"$error":"#N/A"}},null,null,null,null,null,null,null,null,{"$f":"VLOOKUP(N1289,Tabel10[[korte omschrijving]:[MCC3_CODE]],2,0)","v":{"$error":"#N/A"}},{"$f":"VLOOKUP(N1289,'Data order'!M:O,3,0)","v":{"$error":"#N/A"}},null,null,null,{"$f":"IFERROR(\n  IF(R1289=\"Big&Tall\",\n      VLOOKUP(S1289, 'Data order'!$AC$92:$AD$101, 2, FALSE),\n      IF(R1289=\"Boordmaat\",\n          VLOOKUP(S1289, 'Data order'!$AC$102:$AD$116, 2, FALSE),\n          VLOOKUP(S1289, 'Data order'!$AC$2:$AD$91, 2, FALSE)\n      )\n  ),\n\"\")","v":""},null,null,null,null,"EUR",null,null,null,{"$error":"#DIV/0!"},0,0,null,"","","","","","","","","","",null,null,null,null,null,null,null,null,null,null,null,null,null,null,null,null,null,"ZWO"]
[null,null,null,null,null,{"$f":"VLOOKUP(G1290,'Data order'!Z:AA,2,0)","v":{"$error":"#N/A"}},null,null,null,null,null,null,null,null,{"$f":"VLOOKUP(N1290,Tabel10[[korte omschrijving]:[MCC3_CODE]],2,0)","v":{"$error":"#N/A"}},{"$f":"VLOOKUP(N1290,'Data order'!M:O,3,0)","v":{"$error":"#N/A"}},null,null,null,{"$f":"IFERROR(\n  IF(R1290=\"Big&Tall\",\n      VLOOKUP(S1290, 'Data order'!$AC$92:$AD$101, 2, FALSE),\n      IF(R1290=\"Boordmaat\",\n          VLOOKUP(S1290, 'Data order'!$AC$102:$AD$116, 2, FALSE),\n          VLOOKUP(S1290, 'Data order'!$AC$2:$AD$91, 2, FALSE)\n      )\n  ),\n\"\")","v":""},null,0,null,null,"EUR",null,null,null,{"$f":"AB1290/Z1290","v":{"$error":"#DIV/0!"}},{"$f":"U1290*Z1290","v":0},{"$f":"U1290*AB1290","v":0},null,"","","","","","","","","","",null,null,null,null,null,null,null,null,null,null,null,null,null,null,null,null,null,"ZWO"]
[null,null,null,null,null,{"$f":"VLOOKUP(G1291,'Data order'!Z:AA,2,0)","v":{"$error":"#N/A"}},null,null,null,null,null,null,null,null,{"$f":"VLOOKUP(N1291,Tabel10[[korte omschrijving]:[MCC3_CODE]],2,0)","v":{"$error":"#N/A"}},{"$f":"VLOOKUP(N1291,'Data order'!M:O,3,0)","v":{"$error":"#N/A"}},null,null,null,{"$f":"IFERROR(\n  IF(R1291=\"Big&Tall\",\n      VLOOKUP(S1291, 'Data order'!$AC$92:$AD$101, 2, FALSE),\n      IF(R1291=\"Boordmaat\",\n          VLOOKUP(S1291, 'Data order'!$AC$102:$AD$116, 2, FALSE),\n          VLOOKUP(S1291, 'Data order'!$AC$2:$AD$91, 2, FALSE)\n      )\n  ),\n\"\")","v":""},null,null,null,null,"EUR",null,null,null,{"$error":"#DIV/0!"},0,0,null,"","","","","","","","","","",null,null,null,null,null,null,null,null,null,null,null,null,null,null,null,null,null,"ZWO"]
[null,null,null,null,null,{"$f":"VLOOKUP(G1292,'Data order'!Z:AA,2,0)","v":{"$error":"#N/A"}},null,null,null,null,null,null,null,null,{"$f":"VLOOKUP(N1292,Tabel10[[korte omschrijving]:[MCC3_CODE]],2,0)","v":{"$error":"#N/A"}},{"$f":"VLOOKUP(N1292,'Data order'!M:O,3,0)","v":{"$error":"#N/A"}},null,null,null,{"$f":"IFERROR(\n  IF(R1292=\"Big&Tall\",\n      VLOOKUP(S1292, 'Data order'!$AC$92:$AD$101, 2, FALSE),\n      IF(R1292=\"Boordmaat\",\n          VLOOKUP(S1292, 'Data order'!$AC$102:$AD$116, 2, FALSE),\n          VLOOKUP(S1292, 'Data order'!$AC$2:$AD$91, 2, FALSE)\n      )\n  ),\n\"\")","v":""},null,null,null,null,"EUR",null,null,null,{"$error":"#DIV/0!"},0,0,null,"","","","","","","","","","",null,null,null,null,null,null,null,null,null,null,null,null,null,null,null,null,null,"ZWO"]
[null,null,null,null,null,{"$f":"VLOOKUP(G1293,'Data order'!Z:AA,2,0)","v":{"$error":"#N/A"}},null,null,null,null,null,null,null,null,{"$f":"VLOOKUP(N1293,Tabel10[[korte omschrijving]:[MCC3_CODE]],2,0)","v":{"$error":"#N/A"}},{"$f":"VLOOKUP(N1293,'Data order'!M:O,3,0)","v":{"$error":"#N/A"}},null,null,null,{"$f":"IFERROR(\n  IF(R1293=\"Big&Tall\",\n      VLOOKUP(S1293, 'Data order'!$AC$92:$AD$101, 2, FALSE),\n      IF(R1293=\"Boordmaat\",\n          VLOOKUP(S1293, 'Data order'!$AC$102:$AD$116, 2, FALSE),\n          VLOOKUP(S1293, 'Data order'!$AC$2:$AD$91, 2, FALSE)\n      )\n  ),\n\"\")","v":""},null,null,null,null,"EUR",null,null,null,{"$error":"#DIV/0!"},0,0,null,"","","","","","","","","","",null,null,null,null,null,null,null,null,null,null,null,null,null,null,null,null,null,"ZWO"]
[null,null,null,null,null,{"$f":"VLOOKUP(G1294,'Data order'!Z:AA,2,0)","v":{"$error":"#N/A"}},null,null,null,null,null,null,null,null,{"$f":"VLOOKUP(N1294,Tabel10[[korte omschrijving]:[MCC3_CODE]],2,0)","v":{"$error":"#N/A"}},{"$f":"VLOOKUP(N1294,'Data order'!M:O,3,0)","v":{"$error":"#N/A"}},null,null,null,{"$f":"IFERROR(\n  IF(R1294=\"Big&Tall\",\n      VLOOKUP(S1294, 'Data order'!$AC$92:$AD$101, 2, FALSE),\n      IF(R1294=\"Boordmaat\",\n          VLOOKUP(S1294, 'Data order'!$AC$102:$AD$116, 2, FALSE),\n          VLOOKUP(S1294, 'Data order'!$AC$2:$AD$91, 2, FALSE)\n      )\n  ),\n\"\")","v":""},null,null,null,null,"EUR",null,null,null,{"$error":"#DIV/0!"},0,0,null,"","","","","","","","","","",null,null,null,null,null,null,null,null,null,null,null,null,null,null,null,null,null,"ZWO"]
[null,null,null,null,null,{"$f":"VLOOKUP(G1295,'Data order'!Z:AA,2,0)","v":{"$error":"#N/A"}},null,null,null,null,null,null,null,null,{"$f":"VLOOKUP(N1295,Tabel10[[korte omschrijving]:[MCC3_CODE]],2,0)","v":{"$error":"#N/A"}},{"$f":"VLOOKUP(N1295,'Data order'!M:O,3,0)","v":{"$error":"#N/A"}},null,null,null,{"$f":"IFERROR(\n  IF(R1295=\"Big&Tall\",\n      VLOOKUP(S1295, 'Data order'!$AC$92:$AD$101, 2, FALSE),\n      IF(R1295=\"Boordmaat\",\n          VLOOKUP(S1295, 'Data order'!$AC$102:$AD$116, 2, FALSE),\n          VLOOKUP(S1295, 'Data order'!$AC$2:$AD$91, 2, FALSE)\n      )\n  ),\n\"\")","v":""},null,null,null,null,"EUR",null,null,null,{"$error":"#DIV/0!"},0,0,null,"","","","","","","","","","",null,null,null,null,null,null,null,null,null,null,null,null,null,null,null,null,null,"ZWO"]
[null,null,null,null,null,{"$f":"VLOOKUP(G1296,'Data order'!Z:AA,2,0)","v":{"$error":"#N/A"}},null,null,null,null,null,null,null,null,{"$f":"VLOOKUP(N1296,Tabel10[[korte omschrijving]:[MCC3_CODE]],2,0)","v":{"$error":"#N/A"}},{"$f":"VLOOKUP(N1296,'Data order'!M:O,3,0)","v":{"$error":"#N/A"}},null,null,null,{"$f":"IFERROR(\n  IF(R1296=\"Big&Tall\",\n      VLOOKUP(S1296, 'Data order'!$AC$92:$AD$101, 2, FALSE),\n      IF(R1296=\"Boordmaat\",\n          VLOOKUP(S1296, 'Data order'!$AC$102:$AD$116, 2, FALSE),\n          VLOOKUP(S1296, 'Data order'!$AC$2:$AD$91, 2, FALSE)\n      )\n  ),\n\"\")","v":""},null,{"$f":"SUM(U1296:U1301)","v":0},null,null,"EUR",null,null,null,{"$f":"AB1296/Z1296","v":{"$error":"#DIV/0!"}},{"$f":"U1296*Z1296","v":0},{"$f":"U1296*AB1296","v":0},null,"","","","","","","","","","",null,null,null,null,null,null,null,null,null,null,null,null,null,null,null,null,null,"ZWO"]
[null,null,null,null,null,{"$f":"VLOOKUP(G1297,'Data order'!Z:AA,2,0)","v":{"$error":"#N/A"}},null,null,null,null,null,null,null,null,{"$f":"VLOOKUP(N1297,Tabel10[[korte omschrijving]:[MCC3_CODE]],2,0)","v":{"$error":"#N/A"}},{"$f":"VLOOKUP(N1297,'Data order'!M:O,3,0)","v":{"$error":"#N/A"}},null,null,null,{"$f":"IFERROR(\n  IF(R1297=\"Big&Tall\",\n      VLOOKUP(S1297, 'Data order'!$AC$92:$AD$101, 2, FALSE),\n      IF(R1297=\"Boordmaat\",\n          VLOOKUP(S1297, 'Data order'!$AC$102:$AD$116, 2, FALSE),\n          VLOOKUP(S1297, 'Data order'!$AC$2:$AD$91, 2, FALSE)\n      )\n  ),\n\"\")","v":""},null,null,null,null,"EUR",null,null,null,{"$error":"#DIV/0!"},0,0,null,"","","","","","","","","","",null,null,null,null,null,null,null,null,null,null,null,null,null,null,null,null,null,"ZWO"]
[null,null,null,null,null,{"$f":"VLOOKUP(G1298,'Data order'!Z:AA,2,0)","v":{"$error":"#N/A"}},null,null,null,null,null,null,null,null,{"$f":"VLOOKUP(N1298,Tabel10[[korte omschrijving]:[MCC3_CODE]],2,0)","v":{"$error":"#N/A"}},{"$f":"VLOOKUP(N1298,'Data order'!M:O,3,0)","v":{"$error":"#N/A"}},null,null,null,{"$f":"IFERROR(\n  IF(R1298=\"Big&Tall\",\n      VLOOKUP(S1298, 'Data order'!$AC$92:$AD$101, 2, FALSE),\n      IF(R1298=\"Boordmaat\",\n          VLOOKUP(S1298, 'Data order'!$AC$102:$AD$116, 2, FALSE),\n          VLOOKUP(S1298, 'Data order'!$AC$2:$AD$91, 2, FALSE)\n      )\n  ),\n\"\")","v":""},null,null,null,null,"EUR",null,null,null,{"$error":"#DIV/0!"},0,0,null,"","","","","","","","","","",null,null,null,null,null,null,null,null,null,null,null,null,null,null,null,null,null,"ZWO"]
[null,null,null,null,null,{"$f":"VLOOKUP(G1299,'Data order'!Z:AA,2,0)","v":{"$error":"#N/A"}},null,null,null,null,null,null,null,null,{"$f":"VLOOKUP(N1299,Tabel10[[korte omschrijving]:[MCC3_CODE]],2,0)","v":{"$error":"#N/A"}},{"$f":"VLOOKUP(N1299,'Data order'!M:O,3,0)","v":{"$error":"#N/A"}},null,null,null,{"$f":"IFERROR(\n  IF(R1299=\"Big&Tall\",\n      VLOOKUP(S1299, 'Data order'!$AC$92:$AD$101, 2, FALSE),\n      IF(R1299=\"Boordmaat\",\n          VLOOKUP(S1299, 'Data order'!$AC$102:$AD$116, 2, FALSE),\n          VLOOKUP(S1299, 'Data order'!$AC$2:$AD$91, 2, FALSE)\n      )\n  ),\n\"\")","v":""},null,null,null,null,"EUR",null,null,null,{"$error":"#DIV/0!"},0,0,null,"","","","","","","","","","",null,null,null,null,null,null,null,null,null,null,null,null,null,null,null,null,null,"ZWO"]
[null,null,null,null,null,{"$f":"VLOOKUP(G1300,'Data order'!Z:AA,2,0)","v":{"$error":"#N/A"}},null,null,null,null,null,null,null,null,{"$f":"VLOOKUP(N1300,Tabel10[[korte omschrijving]:[MCC3_CODE]],2,0)","v":{"$error":"#N/A"}},{"$f":"VLOOKUP(N1300,'Data order'!M:O,3,0)","v":{"$error":"#N/A"}},null,null,null,{"$f":"IFERROR(\n  IF(R1300=\"Big&Tall\",\n      VLOOKUP(S1300, 'Data order'!$AC$92:$AD$101, 2, FALSE),\n      IF(R1300=\"Boordmaat\",\n          VLOOKUP(S1300, 'Data order'!$AC$102:$AD$116, 2, FALSE),\n          VLOOKUP(S1300, 'Data order'!$AC$2:$AD$91, 2, FALSE)\n      )\n  ),\n\"\")","v":""},null,null,null,null,"EUR",null,null,null,{"$error":"#DIV/0!"},0,0,null,"","","","","","","","","","",null,null,null,null,null,null,null,null,null,null,null,null,null,null,null,null,null,"ZWO"]
[null,null,null,null,null,{"$f":"VLOOKUP(G1301,'Data order'!Z:AA,2,0)","v":{"$error":"#N/A"}},null,null,null,null,null,null,null,null,{"$f":"VLOOKUP(N1301,Tabel10[[korte omschrijving]:[MCC3_CODE]],2,0)","v":{"$error":"#N/A"}},{"$f":"VLOOKUP(N1301,'Data order'!M:O,3,0)","v":{"$error":"#N/A"}},null,null,null,{"$f":"IFERROR(\n  IF(R1301=\"Big&Tall\",\n      VLOOKUP(S1301, 'Data order'!$AC$92:$AD$101, 2, FALSE),\n      IF(R1301=\"Boordmaat\",\n          VLOOKUP(S1301, 'Data order'!$AC$102:$AD$116, 2, FALSE),\n          VLOOKUP(S1301, 'Data order'!$AC$2:$AD$91, 2, FALSE)\n      )\n  ),\n\"\")","v":""},null,null,null,null,"EUR",null,null,null,{"$error":"#DIV/0!"},0,0,null,"","","","","","","","","","",null,null,null,null,null,null,null,null,null,null,null,null,null,null,null,null,null,"ZWO"]
[null,null,null,null,null,{"$f":"VLOOKUP(G1302,'Data order'!Z:AA,2,0)","v":{"$error":"#N/A"}},null,null,null,null,null,null,null,null,{"$f":"VLOOKUP(N1302,Tabel10[[korte omschrijving]:[MCC3_CODE]],2,0)","v":{"$error":"#N/A"}},{"$f":"VLOOKUP(N1302,'Data order'!M:O,3,0)","v":{"$error":"#N/A"}},null,null,null,{"$f":"IFERROR(\n  IF(R1302=\"Big&Tall\",\n      VLOOKUP(S1302, 'Data order'!$AC$92:$AD$101, 2, FALSE),\n      IF(R1302=\"Boordmaat\",\n          VLOOKUP(S1302, 'Data order'!$AC$102:$AD$116, 2, FALSE),\n          VLOOKUP(S1302, 'Data order'!$AC$2:$AD$91, 2, FALSE)\n      )\n  ),\n\"\")","v":""},null,0,null,null,"EUR",null,null,null,{"$f":"AB1302/Z1302","v":{"$error":"#DIV/0!"}},{"$f":"U1302*Z1302","v":0},{"$f":"U1302*AB1302","v":0},null,"","","","","","","","","","",null,null,null,null,null,null,null,null,null,null,null,null,null,null,null,null,null,"ZWO"]
[null,null,null,null,null,{"$f":"VLOOKUP(G1303,'Data order'!Z:AA,2,0)","v":{"$error":"#N/A"}},null,null,null,null,null,null,null,null,{"$f":"VLOOKUP(N1303,Tabel10[[korte omschrijving]:[MCC3_CODE]],2,0)","v":{"$error":"#N/A"}},{"$f":"VLOOKUP(N1303,'Data order'!M:O,3,0)","v":{"$error":"#N/A"}},null,null,null,{"$f":"IFERROR(\n  IF(R1303=\"Big&Tall\",\n      VLOOKUP(S1303, 'Data order'!$AC$92:$AD$101, 2, FALSE),\n      IF(R1303=\"Boordmaat\",\n          VLOOKUP(S1303, 'Data order'!$AC$102:$AD$116, 2, FALSE),\n          VLOOKUP(S1303, 'Data order'!$AC$2:$AD$91, 2, FALSE)\n      )\n  ),\n\"\")","v":""},null,null,null,null,"EUR",null,null,null,{"$error":"#DIV/0!"},0,0,null,"","","","","","","","","","",null,null,null,null,null,null,null,null,null,null,null,null,null,null,null,null,null,"ZWO"]
[null,null,null,null,null,{"$f":"VLOOKUP(G1304,'Data order'!Z:AA,2,0)","v":{"$error":"#N/A"}},null,null,null,null,null,null,null,null,{"$f":"VLOOKUP(N1304,Tabel10[[korte omschrijving]:[MCC3_CODE]],2,0)","v":{"$error":"#N/A"}},{"$f":"VLOOKUP(N1304,'Data order'!M:O,3,0)","v":{"$error":"#N/A"}},null,null,null,{"$f":"IFERROR(\n  IF(R1304=\"Big&Tall\",\n      VLOOKUP(S1304, 'Data order'!$AC$92:$AD$101, 2, FALSE),\n      IF(R1304=\"Boordmaat\",\n          VLOOKUP(S1304, 'Data order'!$AC$102:$AD$116, 2, FALSE),\n          VLOOKUP(S1304, 'Data order'!$AC$2:$AD$91, 2, FALSE)\n      )\n  ),\n\"\")","v":""},null,null,null,null,"EUR",null,null,null,{"$error":"#DIV/0!"},0,0,null,"","","","","","","","","","",null,null,null,null,null,null,null,null,null,null,null,null,null,null,null,null,null,"ZWO"]
[null,null,null,null,null,{"$f":"VLOOKUP(G1305,'Data order'!Z:AA,2,0)","v":{"$error":"#N/A"}},null,null,null,null,null,null,null,null,{"$f":"VLOOKUP(N1305,Tabel10[[korte omschrijving]:[MCC3_CODE]],2,0)","v":{"$error":"#N/A"}},{"$f":"VLOOKUP(N1305,'Data order'!M:O,3,0)","v":{"$error":"#N/A"}},null,null,null,{"$f":"IFERROR(\n  IF(R1305=\"Big&Tall\",\n      VLOOKUP(S1305, 'Data order'!$AC$92:$AD$101, 2, FALSE),\n      IF(R1305=\"Boordmaat\",\n          VLOOKUP(S1305, 'Data order'!$AC$102:$AD$116, 2, FALSE),\n          VLOOKUP(S1305, 'Data order'!$AC$2:$AD$91, 2, FALSE)\n      )\n  ),\n\"\")","v":""},null,null,null,null,"EUR",null,null,null,{"$error":"#DIV/0!"},0,0,null,"","","","","","","","","","",null,null,null,null,null,null,null,null,null,null,null,null,null,null,null,null,null,"ZWO"]
[null,null,null,null,null,{"$f":"VLOOKUP(G1306,'Data order'!Z:AA,2,0)","v":{"$error":"#N/A"}},null,null,null,null,null,null,null,null,{"$f":"VLOOKUP(N1306,Tabel10[[korte omschrijving]:[MCC3_CODE]],2,0)","v":{"$error":"#N/A"}},{"$f":"VLOOKUP(N1306,'Data order'!M:O,3,0)","v":{"$error":"#N/A"}},null,null,null,{"$f":"IFERROR(\n  IF(R1306=\"Big&Tall\",\n      VLOOKUP(S1306, 'Data order'!$AC$92:$AD$101, 2, FALSE),\n      IF(R1306=\"Boordmaat\",\n          VLOOKUP(S1306, 'Data order'!$AC$102:$AD$116, 2, FALSE),\n          VLOOKUP(S1306, 'Data order'!$AC$2:$AD$91, 2, FALSE)\n      )\n  ),\n\"\")","v":""},null,null,null,null,"EUR",null,null,null,{"$error":"#DIV/0!"},0,0,null,"","","","","","","","","","",null,null,null,null,null,null,null,null,null,null,null,null,null,null,null,null,null,"ZWO"]
[null,null,null,null,null,{"$f":"VLOOKUP(G1307,'Data order'!Z:AA,2,0)","v":{"$error":"#N/A"}},null,null,null,null,null,null,null,null,{"$f":"VLOOKUP(N1307,Tabel10[[korte omschrijving]:[MCC3_CODE]],2,0)","v":{"$error":"#N/A"}},{"$f":"VLOOKUP(N1307,'Data order'!M:O,3,0)","v":{"$error":"#N/A"}},null,null,null,{"$f":"IFERROR(\n  IF(R1307=\"Big&Tall\",\n      VLOOKUP(S1307, 'Data order'!$AC$92:$AD$101, 2, FALSE),\n      IF(R1307=\"Boordmaat\",\n          VLOOKUP(S1307, 'Data order'!$AC$102:$AD$116, 2, FALSE),\n          VLOOKUP(S1307, 'Data order'!$AC$2:$AD$91, 2, FALSE)\n      )\n  ),\n\"\")","v":""},null,null,null,null,"EUR",null,null,null,{"$error":"#DIV/0!"},0,0,null,"","","","","","","","","","",null,null,null,null,null,null,null,null,null,null,null,null,null,null,null,null,null,"ZWO"]
[null,null,null,null,null,{"$f":"VLOOKUP(G1308,'Data order'!Z:AA,2,0)","v":{"$error":"#N/A"}},null,null,null,null,null,null,null,null,{"$f":"VLOOKUP(N1308,Tabel10[[korte omschrijving]:[MCC3_CODE]],2,0)","v":{"$error":"#N/A"}},{"$f":"VLOOKUP(N1308,'Data order'!M:O,3,0)","v":{"$error":"#N/A"}},null,null,null,{"$f":"IFERROR(\n  IF(R1308=\"Big&Tall\",\n      VLOOKUP(S1308, 'Data order'!$AC$92:$AD$101, 2, FALSE),\n      IF(R1308=\"Boordmaat\",\n          VLOOKUP(S1308, 'Data order'!$AC$102:$AD$116, 2, FALSE),\n          VLOOKUP(S1308, 'Data order'!$AC$2:$AD$91, 2, FALSE)\n      )\n  ),\n\"\")","v":""},null,0,null,null,"EUR",null,null,null,{"$f":"AB1308/Z1308","v":{"$error":"#DIV/0!"}},{"$f":"U1308*Z1308","v":0},{"$f":"U1308*AB1308","v":0},null,"","","","","","","","","","",null,null,null,null,null,null,null,null,null,null,null,null,null,null,null,null,null,"ZWO"]
[null,null,null,null,null,{"$f":"VLOOKUP(G1309,'Data order'!Z:AA,2,0)","v":{"$error":"#N/A"}},null,null,null,null,null,null,null,null,{"$f":"VLOOKUP(N1309,Tabel10[[korte omschrijving]:[MCC3_CODE]],2,0)","v":{"$error":"#N/A"}},{"$f":"VLOOKUP(N1309,'Data order'!M:O,3,0)","v":{"$error":"#N/A"}},null,null,null,{"$f":"IFERROR(\n  IF(R1309=\"Big&Tall\",\n      VLOOKUP(S1309, 'Data order'!$AC$92:$AD$101, 2, FALSE),\n      IF(R1309=\"Boordmaat\",\n          VLOOKUP(S1309, 'Data order'!$AC$102:$AD$116, 2, FALSE),\n          VLOOKUP(S1309, 'Data order'!$AC$2:$AD$91, 2, FALSE)\n      )\n  ),\n\"\")","v":""},null,null,null,null,"EUR",null,null,null,{"$error":"#DIV/0!"},0,0,null,"","","","","","","","","","",null,null,null,null,null,null,null,null,null,null,null,null,null,null,null,null,null,"ZWO"]
[null,null,null,null,null,{"$f":"VLOOKUP(G1310,'Data order'!Z:AA,2,0)","v":{"$error":"#N/A"}},null,null,null,null,null,null,null,null,{"$f":"VLOOKUP(N1310,Tabel10[[korte omschrijving]:[MCC3_CODE]],2,0)","v":{"$error":"#N/A"}},{"$f":"VLOOKUP(N1310,'Data order'!M:O,3,0)","v":{"$error":"#N/A"}},null,null,null,{"$f":"IFERROR(\n  IF(R1310=\"Big&Tall\",\n      VLOOKUP(S1310, 'Data order'!$AC$92:$AD$101, 2, FALSE),\n      IF(R1310=\"Boordmaat\",\n          VLOOKUP(S1310, 'Data order'!$AC$102:$AD$116, 2, FALSE),\n          VLOOKUP(S1310, 'Data order'!$AC$2:$AD$91, 2, FALSE)\n      )\n  ),\n\"\")","v":""},null,null,null,null,"EUR",null,null,null,{"$error":"#DIV/0!"},0,0,null,"","","","","","","","","","",null,null,null,null,null,null,null,null,null,null,null,null,null,null,null,null,null,"ZWO"]
[null,null,null,null,null,{"$f":"VLOOKUP(G1311,'Data order'!Z:AA,2,0)","v":{"$error":"#N/A"}},null,null,null,null,null,null,null,null,{"$f":"VLOOKUP(N1311,Tabel10[[korte omschrijving]:[MCC3_CODE]],2,0)","v":{"$error":"#N/A"}},{"$f":"VLOOKUP(N1311,'Data order'!M:O,3,0)","v":{"$error":"#N/A"}},null,null,null,{"$f":"IFERROR(\n  IF(R1311=\"Big&Tall\",\n      VLOOKUP(S1311, 'Data order'!$AC$92:$AD$101, 2, FALSE),\n      IF(R1311=\"Boordmaat\",\n          VLOOKUP(S1311, 'Data order'!$AC$102:$AD$116, 2, FALSE),\n          VLOOKUP(S1311, 'Data order'!$AC$2:$AD$91, 2, FALSE)\n      )\n  ),\n\"\")","v":""},null,null,null,null,"EUR",null,null,null,{"$error":"#DIV/0!"},0,0,null,"","","","","","","","","","",null,null,null,null,null,null,null,null,null,null,null,null,null,null,null,null,null,"ZWO"]
[null,null,null,null,null,{"$f":"VLOOKUP(G1312,'Data order'!Z:AA,2,0)","v":{"$error":"#N/A"}},null,null,null,null,null,null,null,null,{"$f":"VLOOKUP(N1312,Tabel10[[korte omschrijving]:[MCC3_CODE]],2,0)","v":{"$error":"#N/A"}},{"$f":"VLOOKUP(N1312,'Data order'!M:O,3,0)","v":{"$error":"#N/A"}},null,null,null,{"$f":"IFERROR(\n  IF(R1312=\"Big&Tall\",\n      VLOOKUP(S1312, 'Data order'!$AC$92:$AD$101, 2, FALSE),\n      IF(R1312=\"Boordmaat\",\n          VLOOKUP(S1312, 'Data order'!$AC$102:$AD$116, 2, FALSE),\n          VLOOKUP(S1312, 'Data order'!$AC$2:$AD$91, 2, FALSE)\n      )\n  ),\n\"\")","v":""},null,null,null,null,"EUR",null,null,null,{"$error":"#DIV/0!"},0,0,null,"","","","","","","","","","",null,null,null,null,null,null,null,null,null,null,null,null,null,null,null,null,null,"ZWO"]
[null,null,null,null,null,{"$f":"VLOOKUP(G1313,'Data order'!Z:AA,2,0)","v":{"$error":"#N/A"}},null,null,null,null,null,null,null,null,{"$f":"VLOOKUP(N1313,Tabel10[[korte omschrijving]:[MCC3_CODE]],2,0)","v":{"$error":"#N/A"}},{"$f":"VLOOKUP(N1313,'Data order'!M:O,3,0)","v":{"$error":"#N/A"}},null,null,null,{"$f":"IFERROR(\n  IF(R1313=\"Big&Tall\",\n      VLOOKUP(S1313, 'Data order'!$AC$92:$AD$101, 2, FALSE),\n      IF(R1313=\"Boordmaat\",\n          VLOOKUP(S1313, 'Data order'!$AC$102:$AD$116, 2, FALSE),\n          VLOOKUP(S1313, 'Data order'!$AC$2:$AD$91, 2, FALSE)\n      )\n  ),\n\"\")","v":""},null,null,null,null,"EUR",null,null,null,{"$error":"#DIV/0!"},0,0,null,"","","","","","","","","","",null,null,null,null,null,null,null,null,null,null,null,null,null,null,null,null,null,"ZWO"]
[null,null,null,null,null,{"$f":"VLOOKUP(G1314,'Data order'!Z:AA,2,0)","v":{"$error":"#N/A"}},null,null,null,null,null,null,null,null,{"$f":"VLOOKUP(N1314,Tabel10[[korte omschrijving]:[MCC3_CODE]],2,0)","v":{"$error":"#N/A"}},{"$f":"VLOOKUP(N1314,'Data order'!M:O,3,0)","v":{"$error":"#N/A"}},null,null,null,{"$f":"IFERROR(\n  IF(R1314=\"Big&Tall\",\n      VLOOKUP(S1314, 'Data order'!$AC$92:$AD$101, 2, FALSE),\n      IF(R1314=\"Boordmaat\",\n          VLOOKUP(S1314, 'Data order'!$AC$102:$AD$116, 2, FALSE),\n          VLOOKUP(S1314, 'Data order'!$AC$2:$AD$91, 2, FALSE)\n      )\n  ),\n\"\")","v":""},null,0,null,null,"EUR",null,null,null,{"$f":"AB1314/Z1314","v":{"$error":"#DIV/0!"}},{"$f":"U1314*Z1314","v":0},{"$f":"U1314*AB1314","v":0},null,"","","","","","","","","","",null,null,null,null,null,null,null,null,null,null,null,null,null,null,null,null,null,"ZWO"]
[null,null,null,null,null,{"$f":"VLOOKUP(G1315,'Data order'!Z:AA,2,0)","v":{"$error":"#N/A"}},null,null,null,null,null,null,null,null,{"$f":"VLOOKUP(N1315,Tabel10[[korte omschrijving]:[MCC3_CODE]],2,0)","v":{"$error":"#N/A"}},{"$f":"VLOOKUP(N1315,'Data order'!M:O,3,0)","v":{"$error":"#N/A"}},null,null,null,{"$f":"IFERROR(\n  IF(R1315=\"Big&Tall\",\n      VLOOKUP(S1315, 'Data order'!$AC$92:$AD$101, 2, FALSE),\n      IF(R1315=\"Boordmaat\",\n          VLOOKUP(S1315, 'Data order'!$AC$102:$AD$116, 2, FALSE),\n          VLOOKUP(S1315, 'Data order'!$AC$2:$AD$91, 2, FALSE)\n      )\n  ),\n\"\")","v":""},null,null,null,null,"EUR",null,null,null,{"$error":"#DIV/0!"},0,0,null,"","","","","","","","","","",null,null,null,null,null,null,null,null,null,null,null,null,null,null,null,null,null,"ZWO"]
[null,null,null,null,null,{"$f":"VLOOKUP(G1316,'Data order'!Z:AA,2,0)","v":{"$error":"#N/A"}},null,null,null,null,null,null,null,null,{"$f":"VLOOKUP(N1316,Tabel10[[korte omschrijving]:[MCC3_CODE]],2,0)","v":{"$error":"#N/A"}},{"$f":"VLOOKUP(N1316,'Data order'!M:O,3,0)","v":{"$error":"#N/A"}},null,null,null,{"$f":"IFERROR(\n  IF(R1316=\"Big&Tall\",\n      VLOOKUP(S1316, 'Data order'!$AC$92:$AD$101, 2, FALSE),\n      IF(R1316=\"Boordmaat\",\n          VLOOKUP(S1316, 'Data order'!$AC$102:$AD$116, 2, FALSE),\n          VLOOKUP(S1316, 'Data order'!$AC$2:$AD$91, 2, FALSE)\n      )\n  ),\n\"\")","v":""},null,null,null,null,"EUR",null,null,null,{"$error":"#DIV/0!"},0,0,null,"","","","","","","","","","",null,null,null,null,null,null,null,null,null,null,null,null,null,null,null,null,null,"ZWO"]
[null,null,null,null,null,{"$f":"VLOOKUP(G1317,'Data order'!Z:AA,2,0)","v":{"$error":"#N/A"}},null,null,null,null,null,null,null,null,{"$f":"VLOOKUP(N1317,Tabel10[[korte omschrijving]:[MCC3_CODE]],2,0)","v":{"$error":"#N/A"}},{"$f":"VLOOKUP(N1317,'Data order'!M:O,3,0)","v":{"$error":"#N/A"}},null,null,null,{"$f":"IFERROR(\n  IF(R1317=\"Big&Tall\",\n      VLOOKUP(S1317, 'Data order'!$AC$92:$AD$101, 2, FALSE),\n      IF(R1317=\"Boordmaat\",\n          VLOOKUP(S1317, 'Data order'!$AC$102:$AD$116, 2, FALSE),\n          VLOOKUP(S1317, 'Data order'!$AC$2:$AD$91, 2, FALSE)\n      )\n  ),\n\"\")","v":""},null,null,null,null,"EUR",null,null,null,{"$error":"#DIV/0!"},0,0,null,"","","","","","","","","","",null,null,null,null,null,null,null,null,null,null,null,null,null,null,null,null,null,"ZWO"]
[null,null,null,null,null,{"$f":"VLOOKUP(G1318,'Data order'!Z:AA,2,0)","v":{"$error":"#N/A"}},null,null,null,null,null,null,null,null,{"$f":"VLOOKUP(N1318,Tabel10[[korte omschrijving]:[MCC3_CODE]],2,0)","v":{"$error":"#N/A"}},{"$f":"VLOOKUP(N1318,'Data order'!M:O,3,0)","v":{"$error":"#N/A"}},null,null,null,{"$f":"IFERROR(\n  IF(R1318=\"Big&Tall\",\n      VLOOKUP(S1318, 'Data order'!$AC$92:$AD$101, 2, FALSE),\n      IF(R1318=\"Boordmaat\",\n          VLOOKUP(S1318, 'Data order'!$AC$102:$AD$116, 2, FALSE),\n          VLOOKUP(S1318, 'Data order'!$AC$2:$AD$91, 2, FALSE)\n      )\n  ),\n\"\")","v":""},null,null,null,null,"EUR",null,null,null,{"$error":"#DIV/0!"},0,0,null,"","","","","","","","","","",null,null,null,null,null,null,null,null,null,null,null,null,null,null,null,null,null,"ZWO"]
[null,null,null,null,null,{"$f":"VLOOKUP(G1319,'Data order'!Z:AA,2,0)","v":{"$error":"#N/A"}},null,null,null,null,null,null,null,null,{"$f":"VLOOKUP(N1319,Tabel10[[korte omschrijving]:[MCC3_CODE]],2,0)","v":{"$error":"#N/A"}},{"$f":"VLOOKUP(N1319,'Data order'!M:O,3,0)","v":{"$error":"#N/A"}},null,null,null,{"$f":"IFERROR(\n  IF(R1319=\"Big&Tall\",\n      VLOOKUP(S1319, 'Data order'!$AC$92:$AD$101, 2, FALSE),\n      IF(R1319=\"Boordmaat\",\n          VLOOKUP(S1319, 'Data order'!$AC$102:$AD$116, 2, FALSE),\n          VLOOKUP(S1319, 'Data order'!$AC$2:$AD$91, 2, FALSE)\n      )\n  ),\n\"\")","v":""},null,null,null,null,"EUR",null,null,null,{"$error":"#DIV/0!"},0,0,null,"","","","","","","","","","",null,null,null,null,null,null,null,null,null,null,null,null,null,null,null,null,null,"ZWO"]
[null,null,null,null,null,{"$f":"VLOOKUP(G1320,'Data order'!Z:AA,2,0)","v":{"$error":"#N/A"}},null,null,null,null,null,null,null,null,{"$f":"VLOOKUP(N1320,Tabel10[[korte omschrijving]:[MCC3_CODE]],2,0)","v":{"$error":"#N/A"}},{"$f":"VLOOKUP(N1320,'Data order'!M:O,3,0)","v":{"$error":"#N/A"}},null,null,null,{"$f":"IFERROR(\n  IF(R1320=\"Big&Tall\",\n      VLOOKUP(S1320, 'Data order'!$AC$92:$AD$101, 2, FALSE),\n      IF(R1320=\"Boordmaat\",\n          VLOOKUP(S1320, 'Data order'!$AC$102:$AD$116, 2, FALSE),\n          VLOOKUP(S1320, 'Data order'!$AC$2:$AD$91, 2, FALSE)\n      )\n  ),\n\"\")","v":""},null,0,null,null,"EUR",null,null,null,{"$f":"AB1320/Z1320","v":{"$error":"#DIV/0!"}},{"$f":"U1320*Z1320","v":0},{"$f":"U1320*AB1320","v":0},null,"","","","","","","","","","",null,null,null,null,null,null,null,null,null,null,null,null,null,null,null,null,null,"ZWO"]
[null,null,null,null,null,{"$f":"VLOOKUP(G1321,'Data order'!Z:AA,2,0)","v":{"$error":"#N/A"}},null,null,null,null,null,null,null,null,{"$f":"VLOOKUP(N1321,Tabel10[[korte omschrijving]:[MCC3_CODE]],2,0)","v":{"$error":"#N/A"}},{"$f":"VLOOKUP(N1321,'Data order'!M:O,3,0)","v":{"$error":"#N/A"}},null,null,null,{"$f":"IFERROR(\n  IF(R1321=\"Big&Tall\",\n      VLOOKUP(S1321, 'Data order'!$AC$92:$AD$101, 2, FALSE),\n      IF(R1321=\"Boordmaat\",\n          VLOOKUP(S1321, 'Data order'!$AC$102:$AD$116, 2, FALSE),\n          VLOOKUP(S1321, 'Data order'!$AC$2:$AD$91, 2, FALSE)\n      )\n  ),\n\"\")","v":""},null,null,null,null,"EUR",null,null,null,{"$error":"#DIV/0!"},0,0,null,"","","","","","","","","","",null,null,null,null,null,null,null,null,null,null,null,null,null,null,null,null,null,"ZWO"]
[null,null,null,null,null,{"$f":"VLOOKUP(G1322,'Data order'!Z:AA,2,0)","v":{"$error":"#N/A"}},null,null,null,null,null,null,null,null,{"$f":"VLOOKUP(N1322,Tabel10[[korte omschrijving]:[MCC3_CODE]],2,0)","v":{"$error":"#N/A"}},{"$f":"VLOOKUP(N1322,'Data order'!M:O,3,0)","v":{"$error":"#N/A"}},null,null,null,{"$f":"IFERROR(\n  IF(R1322=\"Big&Tall\",\n      VLOOKUP(S1322, 'Data order'!$AC$92:$AD$101, 2, FALSE),\n      IF(R1322=\"Boordmaat\",\n          VLOOKUP(S1322, 'Data order'!$AC$102:$AD$116, 2, FALSE),\n          VLOOKUP(S1322, 'Data order'!$AC$2:$AD$91, 2, FALSE)\n      )\n  ),\n\"\")","v":""},null,null,null,null,"EUR",null,null,null,{"$error":"#DIV/0!"},0,0,null,"","","","","","","","","","",null,null,null,null,null,null,null,null,null,null,null,null,null,null,null,null,null,"ZWO"]
[null,null,null,null,null,{"$f":"VLOOKUP(G1323,'Data order'!Z:AA,2,0)","v":{"$error":"#N/A"}},null,null,null,null,null,null,null,null,{"$f":"VLOOKUP(N1323,Tabel10[[korte omschrijving]:[MCC3_CODE]],2,0)","v":{"$error":"#N/A"}},{"$f":"VLOOKUP(N1323,'Data order'!M:O,3,0)","v":{"$error":"#N/A"}},null,null,null,{"$f":"IFERROR(\n  IF(R1323=\"Big&Tall\",\n      VLOOKUP(S1323, 'Data order'!$AC$92:$AD$101, 2, FALSE),\n      IF(R1323=\"Boordmaat\",\n          VLOOKUP(S1323, 'Data order'!$AC$102:$AD$116, 2, FALSE),\n          VLOOKUP(S1323, 'Data order'!$AC$2:$AD$91, 2, FALSE)\n      )\n  ),\n\"\")","v":""},null,null,null,null,"EUR",null,null,null,{"$error":"#DIV/0!"},0,0,null,"","","","","","","","","","",null,null,null,null,null,null,null,null,null,null,null,null,null,null,null,null,null,"ZWO"]
[null,null,null,null,null,{"$f":"VLOOKUP(G1324,'Data order'!Z:AA,2,0)","v":{"$error":"#N/A"}},null,null,null,null,null,null,null,null,{"$f":"VLOOKUP(N1324,Tabel10[[korte omschrijving]:[MCC3_CODE]],2,0)","v":{"$error":"#N/A"}},{"$f":"VLOOKUP(N1324,'Data order'!M:O,3,0)","v":{"$error":"#N/A"}},null,null,null,{"$f":"IFERROR(\n  IF(R1324=\"Big&Tall\",\n      VLOOKUP(S1324, 'Data order'!$AC$92:$AD$101, 2, FALSE),\n      IF(R1324=\"Boordmaat\",\n          VLOOKUP(S1324, 'Data order'!$AC$102:$AD$116, 2, FALSE),\n          VLOOKUP(S1324, 'Data order'!$AC$2:$AD$91, 2, FALSE)\n      )\n  ),\n\"\")","v":""},null,null,null,null,"EUR",null,null,null,{"$error":"#DIV/0!"},0,0,null,"","","","","","","","","","",null,null,null,null,null,null,null,null,null,null,null,null,null,null,null,null,null,"ZWO"]
[null,null,null,null,null,{"$f":"VLOOKUP(G1325,'Data order'!Z:AA,2,0)","v":{"$error":"#N/A"}},null,null,null,null,null,null,null,null,{"$f":"VLOOKUP(N1325,Tabel10[[korte omschrijving]:[MCC3_CODE]],2,0)","v":{"$error":"#N/A"}},{"$f":"VLOOKUP(N1325,'Data order'!M:O,3,0)","v":{"$error":"#N/A"}},null,null,null,{"$f":"IFERROR(\n  IF(R1325=\"Big&Tall\",\n      VLOOKUP(S1325, 'Data order'!$AC$92:$AD$101, 2, FALSE),\n      IF(R1325=\"Boordmaat\",\n          VLOOKUP(S1325, 'Data order'!$AC$102:$AD$116, 2, FALSE),\n          VLOOKUP(S1325, 'Data order'!$AC$2:$AD$91, 2, FALSE)\n      )\n  ),\n\"\")","v":""},null,null,null,null,"EUR",null,null,null,{"$error":"#DIV/0!"},0,0,null,"","","","","","","","","","",null,null,null,null,null,null,null,null,null,null,null,null,null,null,null,null,null,"ZWO"]
[null,null,null,null,null,{"$f":"VLOOKUP(G1326,'Data order'!Z:AA,2,0)","v":{"$error":"#N/A"}},null,null,null,null,null,null,null,null,{"$f":"VLOOKUP(N1326,Tabel10[[korte omschrijving]:[MCC3_CODE]],2,0)","v":{"$error":"#N/A"}},{"$f":"VLOOKUP(N1326,'Data order'!M:O,3,0)","v":{"$error":"#N/A"}},null,null,null,{"$f":"IFERROR(\n  IF(R1326=\"Big&Tall\",\n      VLOOKUP(S1326, 'Data order'!$AC$92:$AD$101, 2, FALSE),\n      IF(R1326=\"Boordmaat\",\n          VLOOKUP(S1326, 'Data order'!$AC$102:$AD$116, 2, FALSE),\n          VLOOKUP(S1326, 'Data order'!$AC$2:$AD$91, 2, FALSE)\n      )\n  ),\n\"\")","v":""},null,0,null,null,"EUR",null,null,null,{"$f":"AB1326/Z1326","v":{"$error":"#DIV/0!"}},{"$f":"U1326*Z1326","v":0},{"$f":"U1326*AB1326","v":0},null,"","","","","","","","","","",null,null,null,null,null,null,null,null,null,null,null,null,null,null,null,null,null,"ZWO"]
[null,null,null,null,null,{"$f":"VLOOKUP(G1327,'Data order'!Z:AA,2,0)","v":{"$error":"#N/A"}},null,null,null,null,null,null,null,null,{"$f":"VLOOKUP(N1327,Tabel10[[korte omschrijving]:[MCC3_CODE]],2,0)","v":{"$error":"#N/A"}},{"$f":"VLOOKUP(N1327,'Data order'!M:O,3,0)","v":{"$error":"#N/A"}},null,null,null,{"$f":"IFERROR(\n  IF(R1327=\"Big&Tall\",\n      VLOOKUP(S1327, 'Data order'!$AC$92:$AD$101, 2, FALSE),\n      IF(R1327=\"Boordmaat\",\n          VLOOKUP(S1327, 'Data order'!$AC$102:$AD$116, 2, FALSE),\n          VLOOKUP(S1327, 'Data order'!$AC$2:$AD$91, 2, FALSE)\n      )\n  ),\n\"\")","v":""},null,null,null,null,"EUR",null,null,null,{"$error":"#DIV/0!"},0,0,null,"","","","","","","","","","",null,null,null,null,null,null,null,null,null,null,null,null,null,null,null,null,null,"ZWO"]
[null,null,null,null,null,{"$f":"VLOOKUP(G1328,'Data order'!Z:AA,2,0)","v":{"$error":"#N/A"}},null,null,null,null,null,null,null,null,{"$f":"VLOOKUP(N1328,Tabel10[[korte omschrijving]:[MCC3_CODE]],2,0)","v":{"$error":"#N/A"}},{"$f":"VLOOKUP(N1328,'Data order'!M:O,3,0)","v":{"$error":"#N/A"}},null,null,null,{"$f":"IFERROR(\n  IF(R1328=\"Big&Tall\",\n      VLOOKUP(S1328, 'Data order'!$AC$92:$AD$101, 2, FALSE),\n      IF(R1328=\"Boordmaat\",\n          VLOOKUP(S1328, 'Data order'!$AC$102:$AD$116, 2, FALSE),\n          VLOOKUP(S1328, 'Data order'!$AC$2:$AD$91, 2, FALSE)\n      )\n  ),\n\"\")","v":""},null,null,null,null,"EUR",null,null,null,{"$error":"#DIV/0!"},0,0,null,"","","","","","","","","","",null,null,null,null,null,null,null,null,null,null,null,null,null,null,null,null,null,"ZWO"]
[null,null,null,null,null,{"$f":"VLOOKUP(G1329,'Data order'!Z:AA,2,0)","v":{"$error":"#N/A"}},null,null,null,null,null,null,null,null,{"$f":"VLOOKUP(N1329,Tabel10[[korte omschrijving]:[MCC3_CODE]],2,0)","v":{"$error":"#N/A"}},{"$f":"VLOOKUP(N1329,'Data order'!M:O,3,0)","v":{"$error":"#N/A"}},null,null,null,{"$f":"IFERROR(\n  IF(R1329=\"Big&Tall\",\n      VLOOKUP(S1329, 'Data order'!$AC$92:$AD$101, 2, FALSE),\n      IF(R1329=\"Boordmaat\",\n          VLOOKUP(S1329, 'Data order'!$AC$102:$AD$116, 2, FALSE),\n          VLOOKUP(S1329, 'Data order'!$AC$2:$AD$91, 2, FALSE)\n      )\n  ),\n\"\")","v":""},null,null,null,null,"EUR",null,null,null,{"$error":"#DIV/0!"},0,0,null,"","","","","","","","","","",null,null,null,null,null,null,null,null,null,null,null,null,null,null,null,null,null,"ZWO"]
[null,null,null,null,null,{"$f":"VLOOKUP(G1330,'Data order'!Z:AA,2,0)","v":{"$error":"#N/A"}},null,null,null,null,null,null,null,null,{"$f":"VLOOKUP(N1330,Tabel10[[korte omschrijving]:[MCC3_CODE]],2,0)","v":{"$error":"#N/A"}},{"$f":"VLOOKUP(N1330,'Data order'!M:O,3,0)","v":{"$error":"#N/A"}},null,null,null,{"$f":"IFERROR(\n  IF(R1330=\"Big&Tall\",\n      VLOOKUP(S1330, 'Data order'!$AC$92:$AD$101, 2, FALSE),\n      IF(R1330=\"Boordmaat\",\n          VLOOKUP(S1330, 'Data order'!$AC$102:$AD$116, 2, FALSE),\n          VLOOKUP(S1330, 'Data order'!$AC$2:$AD$91, 2, FALSE)\n      )\n  ),\n\"\")","v":""},null,null,null,null,"EUR",null,null,null,{"$error":"#DIV/0!"},0,0,null,"","","","","","","","","","",null,null,null,null,null,null,null,null,null,null,null,null,null,null,null,null,null,"ZWO"]
[null,null,null,null,null,{"$f":"VLOOKUP(G1331,'Data order'!Z:AA,2,0)","v":{"$error":"#N/A"}},null,null,null,null,null,null,null,null,{"$f":"VLOOKUP(N1331,Tabel10[[korte omschrijving]:[MCC3_CODE]],2,0)","v":{"$error":"#N/A"}},{"$f":"VLOOKUP(N1331,'Data order'!M:O,3,0)","v":{"$error":"#N/A"}},null,null,null,{"$f":"IFERROR(\n  IF(R1331=\"Big&Tall\",\n      VLOOKUP(S1331, 'Data order'!$AC$92:$AD$101, 2, FALSE),\n      IF(R1331=\"Boordmaat\",\n          VLOOKUP(S1331, 'Data order'!$AC$102:$AD$116, 2, FALSE),\n          VLOOKUP(S1331, 'Data order'!$AC$2:$AD$91, 2, FALSE)\n      )\n  ),\n\"\")","v":""},null,null,null,null,"EUR",null,null,null,{"$error":"#DIV/0!"},0,0,null,"","","","","","","","","","",null,null,null,null,null,null,null,null,null,null,null,null,null,null,null,null,null,"ZWO"]
[null,null,null,null,null,{"$f":"VLOOKUP(G1332,'Data order'!Z:AA,2,0)","v":{"$error":"#N/A"}},null,null,null,null,null,null,null,null,{"$f":"VLOOKUP(N1332,Tabel10[[korte omschrijving]:[MCC3_CODE]],2,0)","v":{"$error":"#N/A"}},{"$f":"VLOOKUP(N1332,'Data order'!M:O,3,0)","v":{"$error":"#N/A"}},null,null,null,{"$f":"IFERROR(\n  IF(R1332=\"Big&Tall\",\n      VLOOKUP(S1332, 'Data order'!$AC$92:$AD$101, 2, FALSE),\n      IF(R1332=\"Boordmaat\",\n          VLOOKUP(S1332, 'Data order'!$AC$102:$AD$116, 2, FALSE),\n          VLOOKUP(S1332, 'Data order'!$AC$2:$AD$91, 2, FALSE)\n      )\n  ),\n\"\")","v":""},null,0,null,null,"EUR",null,null,null,{"$f":"AB1332/Z1332","v":{"$error":"#DIV/0!"}},{"$f":"U1332*Z1332","v":0},{"$f":"U1332*AB1332","v":0},null,"","","","","","","","","","",null,null,null,null,null,null,null,null,null,null,null,null,null,null,null,null,null,"ZWO"]
[null,null,null,null,null,{"$f":"VLOOKUP(G1333,'Data order'!Z:AA,2,0)","v":{"$error":"#N/A"}},null,null,null,null,null,null,null,null,{"$f":"VLOOKUP(N1333,Tabel10[[korte omschrijving]:[MCC3_CODE]],2,0)","v":{"$error":"#N/A"}},{"$f":"VLOOKUP(N1333,'Data order'!M:O,3,0)","v":{"$error":"#N/A"}},null,null,null,{"$f":"IFERROR(\n  IF(R1333=\"Big&Tall\",\n      VLOOKUP(S1333, 'Data order'!$AC$92:$AD$101, 2, FALSE),\n      IF(R1333=\"Boordmaat\",\n          VLOOKUP(S1333, 'Data order'!$AC$102:$AD$116, 2, FALSE),\n          VLOOKUP(S1333, 'Data order'!$AC$2:$AD$91, 2, FALSE)\n      )\n  ),\n\"\")","v":""},null,null,null,null,"EUR",null,null,null,{"$error":"#DIV/0!"},0,0,null,"","","","","","","","","","",null,null,null,null,null,null,null,null,null,null,null,null,null,null,null,null,null,"ZWO"]
[null,null,null,null,null,{"$f":"VLOOKUP(G1334,'Data order'!Z:AA,2,0)","v":{"$error":"#N/A"}},null,null,null,null,null,null,null,null,{"$f":"VLOOKUP(N1334,Tabel10[[korte omschrijving]:[MCC3_CODE]],2,0)","v":{"$error":"#N/A"}},{"$f":"VLOOKUP(N1334,'Data order'!M:O,3,0)","v":{"$error":"#N/A"}},null,null,null,{"$f":"IFERROR(\n  IF(R1334=\"Big&Tall\",\n      VLOOKUP(S1334, 'Data order'!$AC$92:$AD$101, 2, FALSE),\n      IF(R1334=\"Boordmaat\",\n          VLOOKUP(S1334, 'Data order'!$AC$102:$AD$116, 2, FALSE),\n          VLOOKUP(S1334, 'Data order'!$AC$2:$AD$91, 2, FALSE)\n      )\n  ),\n\"\")","v":""},null,null,null,null,"EUR",null,null,null,{"$error":"#DIV/0!"},0,0,null,"","","","","","","","","","",null,null,null,null,null,null,null,null,null,null,null,null,null,null,null,null,null,"ZWO"]
[null,null,null,null,null,{"$f":"VLOOKUP(G1335,'Data order'!Z:AA,2,0)","v":{"$error":"#N/A"}},null,null,null,null,null,null,null,null,{"$f":"VLOOKUP(N1335,Tabel10[[korte omschrijving]:[MCC3_CODE]],2,0)","v":{"$error":"#N/A"}},{"$f":"VLOOKUP(N1335,'Data order'!M:O,3,0)","v":{"$error":"#N/A"}},null,null,null,{"$f":"IFERROR(\n  IF(R1335=\"Big&Tall\",\n      VLOOKUP(S1335, 'Data order'!$AC$92:$AD$101, 2, FALSE),\n      IF(R1335=\"Boordmaat\",\n          VLOOKUP(S1335, 'Data order'!$AC$102:$AD$116, 2, FALSE),\n          VLOOKUP(S1335, 'Data order'!$AC$2:$AD$91, 2, FALSE)\n      )\n  ),\n\"\")","v":""},null,null,null,null,"EUR",null,null,null,{"$error":"#DIV/0!"},0,0,null,"","","","","","","","","","",null,null,null,null,null,null,null,null,null,null,null,null,null,null,null,null,null,"ZWO"]
[null,null,null,null,null,{"$f":"VLOOKUP(G1336,'Data order'!Z:AA,2,0)","v":{"$error":"#N/A"}},null,null,null,null,null,null,null,null,{"$f":"VLOOKUP(N1336,Tabel10[[korte omschrijving]:[MCC3_CODE]],2,0)","v":{"$error":"#N/A"}},{"$f":"VLOOKUP(N1336,'Data order'!M:O,3,0)","v":{"$error":"#N/A"}},null,null,null,{"$f":"IFERROR(\n  IF(R1336=\"Big&Tall\",\n      VLOOKUP(S1336, 'Data order'!$AC$92:$AD$101, 2, FALSE),\n      IF(R1336=\"Boordmaat\",\n          VLOOKUP(S1336, 'Data order'!$AC$102:$AD$116, 2, FALSE),\n          VLOOKUP(S1336, 'Data order'!$AC$2:$AD$91, 2, FALSE)\n      )\n  ),\n\"\")","v":""},null,null,null,null,"EUR",null,null,null,{"$error":"#DIV/0!"},0,0,null,{"$f":"IF(AF1336 <> \"\",\n    IF(ISNUMBER(VALUE(LEFT(AF1336, FIND(\"%\", AF1336)-1))),\n        VALUE(LEFT(AF1336, FIND(\"%\", AF1336)-1)),\n        \"Invalid format\"),\n    \"\")","v":""},{"$f":"IF(AF1336 <> \"\",\n    IF(ISNUMBER(VALUE(LEFT(AF1336, FIND(\"%\", AF1336)-1))) * ISNUMBER(FIND(\"%\", AF1336 & \"wol\")) > 0,\n        TRIM(MID(AF1336, FIND(\"%\", AF1336)+1, FIND(\"/\", AF1336 & \"/\")-FIND(\"%\", AF1336)-1)),\n        \"Invalid format\"),\n    \"\")","v":""},{"$f":"IF(AF1336 <> \"\",\n    IF(ISNUMBER(VALUE(MID(AF1336, FIND(\"/\", AF1336) + 1, FIND(\"%\", AF1336, FIND(\"/\", AF1336)) - FIND(\"/\", AF1336) - 1))),\n        VALUE(MID(AF1336, FIND(\"/\", AF1336) + 1, FIND(\"%\", AF1336, FIND(\"/\", AF1336)) - FIND(\"/\", AF1336) - 1)),\n        \"\"),\n    \"\")","v":""},{"$f":"IF(AF1336 <> \"\",\n    IFERROR(TRIM(MID(AF1336, FIND(\"%\", AF1336, FIND(\"/\", AF1336)+1)+2,\n        IFERROR(FIND(\"/\", AF1336 & \"/\", FIND(\"/\", AF1336)+1)-FIND(\"%\", AF1336, FIND(\"/\", AF1336)+1)-2, LEN(AF1336)-FIND(\"%\", AF1336, FIND(\"/\", AF1336)+1)-1))),\n        \"\"),\n    \"\")","v":""},{"$f":"IF(AF1336 <> \"\",\n    IF(ISNUMBER(VALUE(MID(AF1336, FIND(\"/\", AF1336, FIND(\"/\", AF1336)+1) + 1, FIND(\"%\", AF1336, FIND(\"/\", AF1336, FIND(\"/\", AF1336)+1)) - FIND(\"/\", AF1336, FIND(\"/\", AF1336)+1) - 1))),\n        VALUE(MID(AF1336, FIND(\"/\", AF1336, FIND(\"/\", AF1336)+1) + 1, FIND(\"%\", AF1336, FIND(\"/\", AF1336, FIND(\"/\", AF1336)+1)) - FIND(\"/\", AF1336, FIND(\"/\", AF1336)+1) - 1)),\n        \"\"),\n    \"\")","v":""},{"$f":"IF(AF1336 <> \"\",\n    IFERROR(\n        TRIM(MID(AF1336,\n            FIND(\"%\", AF1336, FIND(\"%\", AF1336, FIND(\"%\", AF1336)+1)+1)+1,\n            FIND(\"/\", AF1336 & \"/\", FIND(\"%\", AF1336, FIND(\"%\", AF1336, FIND(\"%\", AF1336)+1)+1))-FIND(\"%\", AF1336, FIND(\"%\", AF1336, FIND(\"%\", AF1336)+1)+1)-1)\n        ),\n        \"\"\n    ),\n    \"\"\n)","v":""},{"$f":"IF(AF1336 <> \"\",\n    IF(ISNUMBER(VALUE(MID(AF1336, FIND(\"/\", AF1336, FIND(\"/\", AF1336, FIND(\"/\", AF1336)+1)+1) + 1, FIND(\"%\", AF1336, FIND(\"/\", AF1336, FIND(\"/\", AF1336, FIND(\"/\", AF1336)+1)+1)) - FIND(\"/\", AF1336, FIND(\"/\", AF1336, FIND(\"/\", AF1336)+1)+1) - 1))),\n        VALUE(MID(AF1336, FIND(\"/\", AF1336, FIND(\"/\", AF1336, FIND(\"/\", AF1336)+1)+1) + 1, FIND(\"%\", AF1336, FIND(\"/\", AF1336, FIND(\"/\", AF1336, FIND(\"/\", AF1336)+1)+1)) - FIND(\"/\", AF1336, FIND(\"/\", AF1336, FIND(\"/\", AF1336)+1)+1) - 1)),\n        \"\"),\n    \"\")","v":""},{"$f":"IF(AF1336 <> \"\",\n    IFERROR(TRIM(MID(AF1336, FIND(\"%\", AF1336, FIND(\"/\", AF1336, FIND(\"/\", AF1336, FIND(\"/\", AF1336)+1)+1)+1)+2,\n        IFERROR(FIND(\"/\", AF1336, FIND(\"/\", AF1336, FIND(\"/\", AF1336, FIND(\"/\", AF1336)+1)+1)+1)-FIND(\"%\", AF1336, FIND(\"/\", AF1336, FIND(\"/\", AF1336, FIND(\"/\", AF1336)+1)+1)+1)-2, LEN(AF1336)-FIND(\"%\", AF1336, FIND(\"/\", AF1336, FIND(\"/\", AF1336, FIND(\"/\", AF1336)+1)+1)+1)-1))),\n        \"\"),\n    \"\")","v":""},{"$f":"IF(AF1336 <> \"\",\n    IF(ISNUMBER(VALUE(MID(AF1336, FIND(\"/\", AF1336, FIND(\"/\", AF1336, FIND(\"/\", AF1336, FIND(\"/\", AF1336)+1)+1)+1) + 1, FIND(\"%\", AF1336, FIND(\"/\", AF1336, FIND(\"/\", AF1336, FIND(\"/\", AF1336, FIND(\"/\", AF1336)+1)+1)+1)) - FIND(\"/\", AF1336, FIND(\"/\", AF1336, FIND(\"/\", AF1336, FIND(\"/\", AF1336)+1)+1)+1) - 1))),\n        VALUE(MID(AF1336, FIND(\"/\", AF1336, FIND(\"/\", AF1336, FIND(\"/\", AF1336, FIND(\"/\", AF1336)+1)+1)+1) + 1, FIND(\"%\", AF1336, FIND(\"/\", AF1336, FIND(\"/\", AF1336, FIND(\"/\", AF1336, FIND(\"/\", AF1336)+1)+1)+1)) - FIND(\"/\", AF1336, FIND(\"/\", AF1336, FIND(\"/\", AF1336, FIND(\"/\", AF1336)+1)+1)+1) - 1)),\n        \"\"),\n    \"\")","v":""},{"$f":"IF(AF1336 = \"\", \"\",\n    IFERROR(TRIM(\n        MID(\n            AF1336,\n            FIND(\"%\", AF1336, FIND(\"/\", AF1336, FIND(\"/\", AF1336, FIND(\"/\", AF1336, FIND(\"/\", AF1336)+1)+1)+1)+1) + 1,\n            FIND(\"/\", AF1336 & \"/\", FIND(\"%\", AF1336, FIND(\"/\", AF1336, FIND(\"/\", AF1336, FIND(\"/\", AF1336, FIND(\"/\", AF1336)+1)+1)+1)+1)) -\n            FIND(\"%\", AF1336, FIND(\"/\", AF1336, FIND(\"/\", AF1336, FIND(\"/\", AF1336, FIND(\"/\", AF1336)+1)+1)+1)+1) - 1\n        )\n    ),\n    \"\")\n)","v":""},null,null,null,null,null,null,null,null,null,null,null,null,null,null,null,null,null,"ZWO"]
[null,null,null,null,null,{"$f":"VLOOKUP(G1337,'Data order'!Z:AA,2,0)","v":{"$error":"#N/A"}},null,null,null,null,null,null,null,null,{"$f":"VLOOKUP(N1337,Tabel10[[korte omschrijving]:[MCC3_CODE]],2,0)","v":{"$error":"#N/A"}},{"$f":"VLOOKUP(N1337,'Data order'!M:O,3,0)","v":{"$error":"#N/A"}},null,null,null,{"$f":"IFERROR(\n  IF(R1337=\"Big&Tall\",\n      VLOOKUP(S1337, 'Data order'!$AC$92:$AD$101, 2, FALSE),\n      IF(R1337=\"Boordmaat\",\n          VLOOKUP(S1337, 'Data order'!$AC$102:$AD$116, 2, FALSE),\n          VLOOKUP(S1337, 'Data order'!$AC$2:$AD$91, 2, FALSE)\n      )\n  ),\n\"\")","v":""},null,null,null,null,"EUR",null,null,null,{"$error":"#DIV/0!"},0,0,null,"","","","","","","","","","",null,null,null,null,null,null,null,null,null,null,null,null,null,null,null,null,null,"ZWO"]
[null,null,null,null,null,{"$f":"VLOOKUP(G1338,'Data order'!Z:AA,2,0)","v":{"$error":"#N/A"}},null,null,null,null,null,null,null,null,{"$f":"VLOOKUP(N1338,Tabel10[[korte omschrijving]:[MCC3_CODE]],2,0)","v":{"$error":"#N/A"}},{"$f":"VLOOKUP(N1338,'Data order'!M:O,3,0)","v":{"$error":"#N/A"}},null,null,null,{"$f":"IFERROR(\n  IF(R1338=\"Big&Tall\",\n      VLOOKUP(S1338, 'Data order'!$AC$92:$AD$101, 2, FALSE),\n      IF(R1338=\"Boordmaat\",\n          VLOOKUP(S1338, 'Data order'!$AC$102:$AD$116, 2, FALSE),\n          VLOOKUP(S1338, 'Data order'!$AC$2:$AD$91, 2, FALSE)\n      )\n  ),\n\"\")","v":""},null,0,null,null,"EUR",null,null,null,{"$f":"AB1338/Z1338","v":{"$error":"#DIV/0!"}},{"$f":"U1338*Z1338","v":0},{"$f":"U1338*AB1338","v":0},null,"","","","","","","","","","",null,null,null,null,null,null,null,null,null,null,null,null,null,null,null,null,null,"ZWO"]
[null,null,null,null,null,{"$f":"VLOOKUP(G1339,'Data order'!Z:AA,2,0)","v":{"$error":"#N/A"}},null,null,null,null,null,null,null,null,{"$f":"VLOOKUP(N1339,Tabel10[[korte omschrijving]:[MCC3_CODE]],2,0)","v":{"$error":"#N/A"}},{"$f":"VLOOKUP(N1339,'Data order'!M:O,3,0)","v":{"$error":"#N/A"}},null,null,null,{"$f":"IFERROR(\n  IF(R1339=\"Big&Tall\",\n      VLOOKUP(S1339, 'Data order'!$AC$92:$AD$101, 2, FALSE),\n      IF(R1339=\"Boordmaat\",\n          VLOOKUP(S1339, 'Data order'!$AC$102:$AD$116, 2, FALSE),\n          VLOOKUP(S1339, 'Data order'!$AC$2:$AD$91, 2, FALSE)\n      )\n  ),\n\"\")","v":""},null,null,null,null,"EUR",null,null,null,{"$error":"#DIV/0!"},0,0,null,"","","","","","","","","","",null,null,null,null,null,null,null,null,null,null,null,null,null,null,null,null,null,"ZWO"]
[null,null,null,null,null,{"$f":"VLOOKUP(G1340,'Data order'!Z:AA,2,0)","v":{"$error":"#N/A"}},null,null,null,null,null,null,null,null,{"$f":"VLOOKUP(N1340,Tabel10[[korte omschrijving]:[MCC3_CODE]],2,0)","v":{"$error":"#N/A"}},{"$f":"VLOOKUP(N1340,'Data order'!M:O,3,0)","v":{"$error":"#N/A"}},null,null,null,{"$f":"IFERROR(\n  IF(R1340=\"Big&Tall\",\n      VLOOKUP(S1340, 'Data order'!$AC$92:$AD$101, 2, FALSE),\n      IF(R1340=\"Boordmaat\",\n          VLOOKUP(S1340, 'Data order'!$AC$102:$AD$116, 2, FALSE),\n          VLOOKUP(S1340, 'Data order'!$AC$2:$AD$91, 2, FALSE)\n      )\n  ),\n\"\")","v":""},null,null,null,null,"EUR",null,null,null,{"$error":"#DIV/0!"},0,0,null,"","","","","","","","","","",null,null,null,null,null,null,null,null,null,null,null,null,null,null,null,null,null,"ZWO"]
[null,null,null,null,null,{"$f":"VLOOKUP(G1341,'Data order'!Z:AA,2,0)","v":{"$error":"#N/A"}},null,null,null,null,null,null,null,null,{"$f":"VLOOKUP(N1341,Tabel10[[korte omschrijving]:[MCC3_CODE]],2,0)","v":{"$error":"#N/A"}},{"$f":"VLOOKUP(N1341,'Data order'!M:O,3,0)","v":{"$error":"#N/A"}},null,null,null,{"$f":"IFERROR(\n  IF(R1341=\"Big&Tall\",\n      VLOOKUP(S1341, 'Data order'!$AC$92:$AD$101, 2, FALSE),\n      IF(R1341=\"Boordmaat\",\n          VLOOKUP(S1341, 'Data order'!$AC$102:$AD$116, 2, FALSE),\n          VLOOKUP(S1341, 'Data order'!$AC$2:$AD$91, 2, FALSE)\n      )\n  ),\n\"\")","v":""},null,null,null,null,"EUR",null,null,null,{"$error":"#DIV/0!"},0,0,null,"","","","","","","","","","",null,null,null,null,null,null,null,null,null,null,null,null,null,null,null,null,null,"ZWO"]
[null,null,null,null,null,{"$f":"VLOOKUP(G1342,'Data order'!Z:AA,2,0)","v":{"$error":"#N/A"}},null,null,null,null,null,null,null,null,{"$f":"VLOOKUP(N1342,Tabel10[[korte omschrijving]:[MCC3_CODE]],2,0)","v":{"$error":"#N/A"}},{"$f":"VLOOKUP(N1342,'Data order'!M:O,3,0)","v":{"$error":"#N/A"}},null,null,null,{"$f":"IFERROR(\n  IF(R1342=\"Big&Tall\",\n      VLOOKUP(S1342, 'Data order'!$AC$92:$AD$101, 2, FALSE),\n      IF(R1342=\"Boordmaat\",\n          VLOOKUP(S1342, 'Data order'!$AC$102:$AD$116, 2, FALSE),\n          VLOOKUP(S1342, 'Data order'!$AC$2:$AD$91, 2, FALSE)\n      )\n  ),\n\"\")","v":""},null,null,null,null,"EUR",null,null,null,{"$error":"#DIV/0!"},0,0,null,"","","","","","","","","","",null,null,null,null,null,null,null,null,null,null,null,null,null,null,null,null,null,"ZWO"]
[null,null,null,null,null,{"$f":"VLOOKUP(G1343,'Data order'!Z:AA,2,0)","v":{"$error":"#N/A"}},null,null,null,null,null,null,null,null,{"$f":"VLOOKUP(N1343,Tabel10[[korte omschrijving]:[MCC3_CODE]],2,0)","v":{"$error":"#N/A"}},{"$f":"VLOOKUP(N1343,'Data order'!M:O,3,0)","v":{"$error":"#N/A"}},null,null,null,{"$f":"IFERROR(\n  IF(R1343=\"Big&Tall\",\n      VLOOKUP(S1343, 'Data order'!$AC$92:$AD$101, 2, FALSE),\n      IF(R1343=\"Boordmaat\",\n          VLOOKUP(S1343, 'Data order'!$AC$102:$AD$116, 2, FALSE),\n          VLOOKUP(S1343, 'Data order'!$AC$2:$AD$91, 2, FALSE)\n      )\n  ),\n\"\")","v":""},null,null,null,null,"EUR",null,null,null,{"$error":"#DIV/0!"},0,0,null,"","","","","","","","","","",null,null,null,null,null,null,null,null,null,null,null,null,null,null,null,null,null,"ZWO"]
[null,null,null,null,null,{"$f":"VLOOKUP(G1344,'Data order'!Z:AA,2,0)","v":{"$error":"#N/A"}},null,null,null,null,null,null,null,null,{"$f":"VLOOKUP(N1344,Tabel10[[korte omschrijving]:[MCC3_CODE]],2,0)","v":{"$error":"#N/A"}},{"$f":"VLOOKUP(N1344,'Data order'!M:O,3,0)","v":{"$error":"#N/A"}},null,null,null,{"$f":"IFERROR(\n  IF(R1344=\"Big&Tall\",\n      VLOOKUP(S1344, 'Data order'!$AC$92:$AD$101, 2, FALSE),\n      IF(R1344=\"Boordmaat\",\n          VLOOKUP(S1344, 'Data order'!$AC$102:$AD$116, 2, FALSE),\n          VLOOKUP(S1344, 'Data order'!$AC$2:$AD$91, 2, FALSE)\n      )\n  ),\n\"\")","v":""},null,0,null,null,"EUR",null,null,null,{"$f":"AB1344/Z1344","v":{"$error":"#DIV/0!"}},{"$f":"U1344*Z1344","v":0},{"$f":"U1344*AB1344","v":0},null,"","","","","","","","","","",null,null,null,null,null,null,null,null,null,null,null,null,null,null,null,null,null,"ZWO"]
[null,null,null,null,null,{"$f":"VLOOKUP(G1345,'Data order'!Z:AA,2,0)","v":{"$error":"#N/A"}},null,null,null,null,null,null,null,null,{"$f":"VLOOKUP(N1345,Tabel10[[korte omschrijving]:[MCC3_CODE]],2,0)","v":{"$error":"#N/A"}},{"$f":"VLOOKUP(N1345,'Data order'!M:O,3,0)","v":{"$error":"#N/A"}},null,null,null,{"$f":"IFERROR(\n  IF(R1345=\"Big&Tall\",\n      VLOOKUP(S1345, 'Data order'!$AC$92:$AD$101, 2, FALSE),\n      IF(R1345=\"Boordmaat\",\n          VLOOKUP(S1345, 'Data order'!$AC$102:$AD$116, 2, FALSE),\n          VLOOKUP(S1345, 'Data order'!$AC$2:$AD$91, 2, FALSE)\n      )\n  ),\n\"\")","v":""},null,null,null,null,"EUR",null,null,null,{"$error":"#DIV/0!"},0,0,null,"","","","","","","","","","",null,null,null,null,null,null,null,null,null,null,null,null,null,null,null,null,null,"ZWO"]
[null,null,null,null,null,{"$f":"VLOOKUP(G1346,'Data order'!Z:AA,2,0)","v":{"$error":"#N/A"}},null,null,null,null,null,null,null,null,{"$f":"VLOOKUP(N1346,Tabel10[[korte omschrijving]:[MCC3_CODE]],2,0)","v":{"$error":"#N/A"}},{"$f":"VLOOKUP(N1346,'Data order'!M:O,3,0)","v":{"$error":"#N/A"}},null,null,null,{"$f":"IFERROR(\n  IF(R1346=\"Big&Tall\",\n      VLOOKUP(S1346, 'Data order'!$AC$92:$AD$101, 2, FALSE),\n      IF(R1346=\"Boordmaat\",\n          VLOOKUP(S1346, 'Data order'!$AC$102:$AD$116, 2, FALSE),\n          VLOOKUP(S1346, 'Data order'!$AC$2:$AD$91, 2, FALSE)\n      )\n  ),\n\"\")","v":""},null,null,null,null,"EUR",null,null,null,{"$error":"#DIV/0!"},0,0,null,"","","","","","","","","","",null,null,null,null,null,null,null,null,null,null,null,null,null,null,null,null,null,"ZWO"]
[null,null,null,null,null,{"$f":"VLOOKUP(G1347,'Data order'!Z:AA,2,0)","v":{"$error":"#N/A"}},null,null,null,null,null,null,null,null,{"$f":"VLOOKUP(N1347,Tabel10[[korte omschrijving]:[MCC3_CODE]],2,0)","v":{"$error":"#N/A"}},{"$f":"VLOOKUP(N1347,'Data order'!M:O,3,0)","v":{"$error":"#N/A"}},null,null,null,{"$f":"IFERROR(\n  IF(R1347=\"Big&Tall\",\n      VLOOKUP(S1347, 'Data order'!$AC$92:$AD$101, 2, FALSE),\n      IF(R1347=\"Boordmaat\",\n          VLOOKUP(S1347, 'Data order'!$AC$102:$AD$116, 2, FALSE),\n          VLOOKUP(S1347, 'Data order'!$AC$2:$AD$91, 2, FALSE)\n      )\n  ),\n\"\")","v":""},null,null,null,null,"EUR",null,null,null,{"$error":"#DIV/0!"},0,0,null,"","","","","","","","","","",null,null,null,null,null,null,null,null,null,null,null,null,null,null,null,null,null,"ZWO"]
[null,null,null,null,null,{"$f":"VLOOKUP(G1348,'Data order'!Z:AA,2,0)","v":{"$error":"#N/A"}},null,null,null,null,null,null,null,null,{"$f":"VLOOKUP(N1348,Tabel10[[korte omschrijving]:[MCC3_CODE]],2,0)","v":{"$error":"#N/A"}},{"$f":"VLOOKUP(N1348,'Data order'!M:O,3,0)","v":{"$error":"#N/A"}},null,null,null,{"$f":"IFERROR(\n  IF(R1348=\"Big&Tall\",\n      VLOOKUP(S1348, 'Data order'!$AC$92:$AD$101, 2, FALSE),\n      IF(R1348=\"Boordmaat\",\n          VLOOKUP(S1348, 'Data order'!$AC$102:$AD$116, 2, FALSE),\n          VLOOKUP(S1348, 'Data order'!$AC$2:$AD$91, 2, FALSE)\n      )\n  ),\n\"\")","v":""},null,null,null,null,"EUR",null,null,null,{"$error":"#DIV/0!"},0,0,null,"","","","","","","","","","",null,null,null,null,null,null,null,null,null,null,null,null,null,null,null,null,null,"ZWO"]
[null,null,null,null,null,{"$f":"VLOOKUP(G1349,'Data order'!Z:AA,2,0)","v":{"$error":"#N/A"}},null,null,null,null,null,null,null,null,{"$f":"VLOOKUP(N1349,Tabel10[[korte omschrijving]:[MCC3_CODE]],2,0)","v":{"$error":"#N/A"}},{"$f":"VLOOKUP(N1349,'Data order'!M:O,3,0)","v":{"$error":"#N/A"}},null,null,null,{"$f":"IFERROR(\n  IF(R1349=\"Big&Tall\",\n      VLOOKUP(S1349, 'Data order'!$AC$92:$AD$101, 2, FALSE),\n      IF(R1349=\"Boordmaat\",\n          VLOOKUP(S1349, 'Data order'!$AC$102:$AD$116, 2, FALSE),\n          VLOOKUP(S1349, 'Data order'!$AC$2:$AD$91, 2, FALSE)\n      )\n  ),\n\"\")","v":""},null,null,null,null,"EUR",null,null,null,{"$error":"#DIV/0!"},0,0,null,"","","","","","","","","","",null,null,null,null,null,null,null,null,null,null,null,null,null,null,null,null,null,"ZWO"]
[null,null,null,null,null,{"$f":"VLOOKUP(G1350,'Data order'!Z:AA,2,0)","v":{"$error":"#N/A"}},null,null,null,null,null,null,null,null,{"$f":"VLOOKUP(N1350,Tabel10[[korte omschrijving]:[MCC3_CODE]],2,0)","v":{"$error":"#N/A"}},{"$f":"VLOOKUP(N1350,'Data order'!M:O,3,0)","v":{"$error":"#N/A"}},null,null,null,{"$f":"IFERROR(\n  IF(R1350=\"Big&Tall\",\n      VLOOKUP(S1350, 'Data order'!$AC$92:$AD$101, 2, FALSE),\n      IF(R1350=\"Boordmaat\",\n          VLOOKUP(S1350, 'Data order'!$AC$102:$AD$116, 2, FALSE),\n          VLOOKUP(S1350, 'Data order'!$AC$2:$AD$91, 2, FALSE)\n      )\n  ),\n\"\")","v":""},null,0,null,null,"EUR",null,null,null,{"$f":"AB1350/Z1350","v":{"$error":"#DIV/0!"}},{"$f":"U1350*Z1350","v":0},{"$f":"U1350*AB1350","v":0},null,"","","","","","","","","","",null,null,null,null,null,null,null,null,null,null,null,null,null,null,null,null,null,"ZWO"]
[null,null,null,null,null,{"$f":"VLOOKUP(G1351,'Data order'!Z:AA,2,0)","v":{"$error":"#N/A"}},null,null,null,null,null,null,null,null,{"$f":"VLOOKUP(N1351,Tabel10[[korte omschrijving]:[MCC3_CODE]],2,0)","v":{"$error":"#N/A"}},{"$f":"VLOOKUP(N1351,'Data order'!M:O,3,0)","v":{"$error":"#N/A"}},null,null,null,{"$f":"IFERROR(\n  IF(R1351=\"Big&Tall\",\n      VLOOKUP(S1351, 'Data order'!$AC$92:$AD$101, 2, FALSE),\n      IF(R1351=\"Boordmaat\",\n          VLOOKUP(S1351, 'Data order'!$AC$102:$AD$116, 2, FALSE),\n          VLOOKUP(S1351, 'Data order'!$AC$2:$AD$91, 2, FALSE)\n      )\n  ),\n\"\")","v":""},null,null,null,null,"EUR",null,null,null,{"$error":"#DIV/0!"},0,0,null,"","","","","","","","","","",null,null,null,null,null,null,null,null,null,null,null,null,null,null,null,null,null,"ZWO"]
[null,null,null,null,null,{"$f":"VLOOKUP(G1352,'Data order'!Z:AA,2,0)","v":{"$error":"#N/A"}},null,null,null,null,null,null,null,null,{"$f":"VLOOKUP(N1352,Tabel10[[korte omschrijving]:[MCC3_CODE]],2,0)","v":{"$error":"#N/A"}},{"$f":"VLOOKUP(N1352,'Data order'!M:O,3,0)","v":{"$error":"#N/A"}},null,null,null,{"$f":"IFERROR(\n  IF(R1352=\"Big&Tall\",\n      VLOOKUP(S1352, 'Data order'!$AC$92:$AD$101, 2, FALSE),\n      IF(R1352=\"Boordmaat\",\n          VLOOKUP(S1352, 'Data order'!$AC$102:$AD$116, 2, FALSE),\n          VLOOKUP(S1352, 'Data order'!$AC$2:$AD$91, 2, FALSE)\n      )\n  ),\n\"\")","v":""},null,null,null,null,"EUR",null,null,null,{"$error":"#DIV/0!"},0,0,null,"","","","","","","","","","",null,null,null,null,null,null,null,null,null,null,null,null,null,null,null,null,null,"ZWO"]
[null,null,null,null,null,{"$f":"VLOOKUP(G1353,'Data order'!Z:AA,2,0)","v":{"$error":"#N/A"}},null,null,null,null,null,null,null,null,{"$f":"VLOOKUP(N1353,Tabel10[[korte omschrijving]:[MCC3_CODE]],2,0)","v":{"$error":"#N/A"}},{"$f":"VLOOKUP(N1353,'Data order'!M:O,3,0)","v":{"$error":"#N/A"}},null,null,null,{"$f":"IFERROR(\n  IF(R1353=\"Big&Tall\",\n      VLOOKUP(S1353, 'Data order'!$AC$92:$AD$101, 2, FALSE),\n      IF(R1353=\"Boordmaat\",\n          VLOOKUP(S1353, 'Data order'!$AC$102:$AD$116, 2, FALSE),\n          VLOOKUP(S1353, 'Data order'!$AC$2:$AD$91, 2, FALSE)\n      )\n  ),\n\"\")","v":""},null,null,null,null,"EUR",null,null,null,{"$error":"#DIV/0!"},0,0,null,"","","","","","","","","","",null,null,null,null,null,null,null,null,null,null,null,null,null,null,null,null,null,"ZWO"]
[null,null,null,null,null,{"$f":"VLOOKUP(G1354,'Data order'!Z:AA,2,0)","v":{"$error":"#N/A"}},null,null,null,null,null,null,null,null,{"$f":"VLOOKUP(N1354,Tabel10[[korte omschrijving]:[MCC3_CODE]],2,0)","v":{"$error":"#N/A"}},{"$f":"VLOOKUP(N1354,'Data order'!M:O,3,0)","v":{"$error":"#N/A"}},null,null,null,{"$f":"IFERROR(\n  IF(R1354=\"Big&Tall\",\n      VLOOKUP(S1354, 'Data order'!$AC$92:$AD$101, 2, FALSE),\n      IF(R1354=\"Boordmaat\",\n          VLOOKUP(S1354, 'Data order'!$AC$102:$AD$116, 2, FALSE),\n          VLOOKUP(S1354, 'Data order'!$AC$2:$AD$91, 2, FALSE)\n      )\n  ),\n\"\")","v":""},null,null,null,null,"EUR",null,null,null,{"$error":"#DIV/0!"},0,0,null,"","","","","","","","","","",null,null,null,null,null,null,null,null,null,null,null,null,null,null,null,null,null,"ZWO"]
[null,null,null,null,null,{"$f":"VLOOKUP(G1355,'Data order'!Z:AA,2,0)","v":{"$error":"#N/A"}},null,null,null,null,null,null,null,null,{"$f":"VLOOKUP(N1355,Tabel10[[korte omschrijving]:[MCC3_CODE]],2,0)","v":{"$error":"#N/A"}},{"$f":"VLOOKUP(N1355,'Data order'!M:O,3,0)","v":{"$error":"#N/A"}},null,null,null,{"$f":"IFERROR(\n  IF(R1355=\"Big&Tall\",\n      VLOOKUP(S1355, 'Data order'!$AC$92:$AD$101, 2, FALSE),\n      IF(R1355=\"Boordmaat\",\n          VLOOKUP(S1355, 'Data order'!$AC$102:$AD$116, 2, FALSE),\n          VLOOKUP(S1355, 'Data order'!$AC$2:$AD$91, 2, FALSE)\n      )\n  ),\n\"\")","v":""},null,null,null,null,"EUR",null,null,null,{"$error":"#DIV/0!"},0,0,null,"","","","","","","","","","",null,null,null,null,null,null,null,null,null,null,null,null,null,null,null,null,null,"ZWO"]
[null,null,null,null,null,{"$f":"VLOOKUP(G1356,'Data order'!Z:AA,2,0)","v":{"$error":"#N/A"}},null,null,null,null,null,null,null,null,{"$f":"VLOOKUP(N1356,Tabel10[[korte omschrijving]:[MCC3_CODE]],2,0)","v":{"$error":"#N/A"}},{"$f":"VLOOKUP(N1356,'Data order'!M:O,3,0)","v":{"$error":"#N/A"}},null,null,null,{"$f":"IFERROR(\n  IF(R1356=\"Big&Tall\",\n      VLOOKUP(S1356, 'Data order'!$AC$92:$AD$101, 2, FALSE),\n      IF(R1356=\"Boordmaat\",\n          VLOOKUP(S1356, 'Data order'!$AC$102:$AD$116, 2, FALSE),\n          VLOOKUP(S1356, 'Data order'!$AC$2:$AD$91, 2, FALSE)\n      )\n  ),\n\"\")","v":""},null,0,null,null,"EUR",null,null,null,{"$f":"AB1356/Z1356","v":{"$error":"#DIV/0!"}},{"$f":"U1356*Z1356","v":0},{"$f":"U1356*AB1356","v":0},null,"","","","","","","","","","",null,null,null,null,null,null,null,null,null,null,null,null,null,null,null,null,null,"ZWO"]
[null,null,null,null,null,{"$f":"VLOOKUP(G1357,'Data order'!Z:AA,2,0)","v":{"$error":"#N/A"}},null,null,null,null,null,null,null,null,{"$f":"VLOOKUP(N1357,Tabel10[[korte omschrijving]:[MCC3_CODE]],2,0)","v":{"$error":"#N/A"}},{"$f":"VLOOKUP(N1357,'Data order'!M:O,3,0)","v":{"$error":"#N/A"}},null,null,null,{"$f":"IFERROR(\n  IF(R1357=\"Big&Tall\",\n      VLOOKUP(S1357, 'Data order'!$AC$92:$AD$101, 2, FALSE),\n      IF(R1357=\"Boordmaat\",\n          VLOOKUP(S1357, 'Data order'!$AC$102:$AD$116, 2, FALSE),\n          VLOOKUP(S1357, 'Data order'!$AC$2:$AD$91, 2, FALSE)\n      )\n  ),\n\"\")","v":""},null,null,null,null,"EUR",null,null,null,{"$error":"#DIV/0!"},0,0,null,"","","","","","","","","","",null,null,null,null,null,null,null,null,null,null,null,null,null,null,null,null,null,"ZWO"]
[null,null,null,null,null,{"$f":"VLOOKUP(G1358,'Data order'!Z:AA,2,0)","v":{"$error":"#N/A"}},null,null,null,null,null,null,null,null,{"$f":"VLOOKUP(N1358,Tabel10[[korte omschrijving]:[MCC3_CODE]],2,0)","v":{"$error":"#N/A"}},{"$f":"VLOOKUP(N1358,'Data order'!M:O,3,0)","v":{"$error":"#N/A"}},null,null,null,{"$f":"IFERROR(\n  IF(R1358=\"Big&Tall\",\n      VLOOKUP(S1358, 'Data order'!$AC$92:$AD$101, 2, FALSE),\n      IF(R1358=\"Boordmaat\",\n          VLOOKUP(S1358, 'Data order'!$AC$102:$AD$116, 2, FALSE),\n          VLOOKUP(S1358, 'Data order'!$AC$2:$AD$91, 2, FALSE)\n      )\n  ),\n\"\")","v":""},null,null,null,null,"EUR",null,null,null,{"$error":"#DIV/0!"},0,0,null,"","","","","","","","","","",null,null,null,null,null,null,null,null,null,null,null,null,null,null,null,null,null,"ZWO"]
[null,null,null,null,null,{"$f":"VLOOKUP(G1359,'Data order'!Z:AA,2,0)","v":{"$error":"#N/A"}},null,null,null,null,null,null,null,null,{"$f":"VLOOKUP(N1359,Tabel10[[korte omschrijving]:[MCC3_CODE]],2,0)","v":{"$error":"#N/A"}},{"$f":"VLOOKUP(N1359,'Data order'!M:O,3,0)","v":{"$error":"#N/A"}},null,null,null,{"$f":"IFERROR(\n  IF(R1359=\"Big&Tall\",\n      VLOOKUP(S1359, 'Data order'!$AC$92:$AD$101, 2, FALSE),\n      IF(R1359=\"Boordmaat\",\n          VLOOKUP(S1359, 'Data order'!$AC$102:$AD$116, 2, FALSE),\n          VLOOKUP(S1359, 'Data order'!$AC$2:$AD$91, 2, FALSE)\n      )\n  ),\n\"\")","v":""},null,null,null,null,"EUR",null,null,null,{"$error":"#DIV/0!"},0,0,null,"","","","","","","","","","",null,null,null,null,null,null,null,null,null,null,null,null,null,null,null,null,null,"ZWO"]
[null,null,null,null,null,{"$f":"VLOOKUP(G1360,'Data order'!Z:AA,2,0)","v":{"$error":"#N/A"}},null,null,null,null,null,null,null,null,{"$f":"VLOOKUP(N1360,Tabel10[[korte omschrijving]:[MCC3_CODE]],2,0)","v":{"$error":"#N/A"}},{"$f":"VLOOKUP(N1360,'Data order'!M:O,3,0)","v":{"$error":"#N/A"}},null,null,null,{"$f":"IFERROR(\n  IF(R1360=\"Big&Tall\",\n      VLOOKUP(S1360, 'Data order'!$AC$92:$AD$101, 2, FALSE),\n      IF(R1360=\"Boordmaat\",\n          VLOOKUP(S1360, 'Data order'!$AC$102:$AD$116, 2, FALSE),\n          VLOOKUP(S1360, 'Data order'!$AC$2:$AD$91, 2, FALSE)\n      )\n  ),\n\"\")","v":""},null,null,null,null,"EUR",null,null,null,{"$error":"#DIV/0!"},0,0,null,"","","","","","","","","","",null,null,null,null,null,null,null,null,null,null,null,null,null,null,null,null,null,"ZWO"]
[null,null,null,null,null,{"$f":"VLOOKUP(G1361,'Data order'!Z:AA,2,0)","v":{"$error":"#N/A"}},null,null,null,null,null,null,null,null,{"$f":"VLOOKUP(N1361,Tabel10[[korte omschrijving]:[MCC3_CODE]],2,0)","v":{"$error":"#N/A"}},{"$f":"VLOOKUP(N1361,'Data order'!M:O,3,0)","v":{"$error":"#N/A"}},null,null,null,{"$f":"IFERROR(\n  IF(R1361=\"Big&Tall\",\n      VLOOKUP(S1361, 'Data order'!$AC$92:$AD$101, 2, FALSE),\n      IF(R1361=\"Boordmaat\",\n          VLOOKUP(S1361, 'Data order'!$AC$102:$AD$116, 2, FALSE),\n          VLOOKUP(S1361, 'Data order'!$AC$2:$AD$91, 2, FALSE)\n      )\n  ),\n\"\")","v":""},null,null,null,null,"EUR",null,null,null,{"$error":"#DIV/0!"},0,0,null,"","","","","","","","","","",null,null,null,null,null,null,null,null,null,null,null,null,null,null,null,null,null,"ZWO"]
[null,null,null,null,null,{"$f":"VLOOKUP(G1362,'Data order'!Z:AA,2,0)","v":{"$error":"#N/A"}},null,null,null,null,null,null,null,null,{"$f":"VLOOKUP(N1362,Tabel10[[korte omschrijving]:[MCC3_CODE]],2,0)","v":{"$error":"#N/A"}},{"$f":"VLOOKUP(N1362,'Data order'!M:O,3,0)","v":{"$error":"#N/A"}},null,null,null,{"$f":"IFERROR(\n  IF(R1362=\"Big&Tall\",\n      VLOOKUP(S1362, 'Data order'!$AC$92:$AD$101, 2, FALSE),\n      IF(R1362=\"Boordmaat\",\n          VLOOKUP(S1362, 'Data order'!$AC$102:$AD$116, 2, FALSE),\n          VLOOKUP(S1362, 'Data order'!$AC$2:$AD$91, 2, FALSE)\n      )\n  ),\n\"\")","v":""},null,{"$f":"SUM(U1362:U1367)","v":0},null,null,"EUR",null,null,null,{"$f":"AB1362/Z1362","v":{"$error":"#DIV/0!"}},{"$f":"U1362*Z1362","v":0},{"$f":"U1362*AB1362","v":0},null,"","","","","","","","","","",null,null,null,null,null,null,null,null,null,null,null,null,null,null,null,null,null,"ZWO"]
[null,null,null,null,null,{"$f":"VLOOKUP(G1363,'Data order'!Z:AA,2,0)","v":{"$error":"#N/A"}},null,null,null,null,null,null,null,null,{"$f":"VLOOKUP(N1363,Tabel10[[korte omschrijving]:[MCC3_CODE]],2,0)","v":{"$error":"#N/A"}},{"$f":"VLOOKUP(N1363,'Data order'!M:O,3,0)","v":{"$error":"#N/A"}},null,null,null,{"$f":"IFERROR(\n  IF(R1363=\"Big&Tall\",\n      VLOOKUP(S1363, 'Data order'!$AC$92:$AD$101, 2, FALSE),\n      IF(R1363=\"Boordmaat\",\n          VLOOKUP(S1363, 'Data order'!$AC$102:$AD$116, 2, FALSE),\n          VLOOKUP(S1363, 'Data order'!$AC$2:$AD$91, 2, FALSE)\n      )\n  ),\n\"\")","v":""},null,null,null,null,"EUR",null,null,null,{"$error":"#DIV/0!"},0,0,null,"","","","","","","","","","",null,null,null,null,null,null,null,null,null,null,null,null,null,null,null,null,null,"ZWO"]
[null,null,null,null,null,{"$f":"VLOOKUP(G1364,'Data order'!Z:AA,2,0)","v":{"$error":"#N/A"}},null,null,null,null,null,null,null,null,{"$f":"VLOOKUP(N1364,Tabel10[[korte omschrijving]:[MCC3_CODE]],2,0)","v":{"$error":"#N/A"}},{"$f":"VLOOKUP(N1364,'Data order'!M:O,3,0)","v":{"$error":"#N/A"}},null,null,null,{"$f":"IFERROR(\n  IF(R1364=\"Big&Tall\",\n      VLOOKUP(S1364, 'Data order'!$AC$92:$AD$101, 2, FALSE),\n      IF(R1364=\"Boordmaat\",\n          VLOOKUP(S1364, 'Data order'!$AC$102:$AD$116, 2, FALSE),\n          VLOOKUP(S1364, 'Data order'!$AC$2:$AD$91, 2, FALSE)\n      )\n  ),\n\"\")","v":""},null,null,null,null,"EUR",null,null,null,{"$error":"#DIV/0!"},0,0,null,"","","","","","","","","","",null,null,null,null,null,null,null,null,null,null,null,null,null,null,null,null,null,"ZWO"]
[null,null,null,null,null,{"$f":"VLOOKUP(G1365,'Data order'!Z:AA,2,0)","v":{"$error":"#N/A"}},null,null,null,null,null,null,null,null,{"$f":"VLOOKUP(N1365,Tabel10[[korte omschrijving]:[MCC3_CODE]],2,0)","v":{"$error":"#N/A"}},{"$f":"VLOOKUP(N1365,'Data order'!M:O,3,0)","v":{"$error":"#N/A"}},null,null,null,{"$f":"IFERROR(\n  IF(R1365=\"Big&Tall\",\n      VLOOKUP(S1365, 'Data order'!$AC$92:$AD$101, 2, FALSE),\n      IF(R1365=\"Boordmaat\",\n          VLOOKUP(S1365, 'Data order'!$AC$102:$AD$116, 2, FALSE),\n          VLOOKUP(S1365, 'Data order'!$AC$2:$AD$91, 2, FALSE)\n      )\n  ),\n\"\")","v":""},null,null,null,null,"EUR",null,null,null,{"$error":"#DIV/0!"},0,0,null,"","","","","","","","","","",null,null,null,null,null,null,null,null,null,null,null,null,null,null,null,null,null,"ZWO"]
[null,null,null,null,null,{"$f":"VLOOKUP(G1366,'Data order'!Z:AA,2,0)","v":{"$error":"#N/A"}},null,null,null,null,null,null,null,null,{"$f":"VLOOKUP(N1366,Tabel10[[korte omschrijving]:[MCC3_CODE]],2,0)","v":{"$error":"#N/A"}},{"$f":"VLOOKUP(N1366,'Data order'!M:O,3,0)","v":{"$error":"#N/A"}},null,null,null,{"$f":"IFERROR(\n  IF(R1366=\"Big&Tall\",\n      VLOOKUP(S1366, 'Data order'!$AC$92:$AD$101, 2, FALSE),\n      IF(R1366=\"Boordmaat\",\n          VLOOKUP(S1366, 'Data order'!$AC$102:$AD$116, 2, FALSE),\n          VLOOKUP(S1366, 'Data order'!$AC$2:$AD$91, 2, FALSE)\n      )\n  ),\n\"\")","v":""},null,null,null,null,"EUR",null,null,null,{"$error":"#DIV/0!"},0,0,null,"","","","","","","","","","",null,null,null,null,null,null,null,null,null,null,null,null,null,null,null,null,null,"ZWO"]
[null,null,null,null,null,{"$f":"VLOOKUP(G1367,'Data order'!Z:AA,2,0)","v":{"$error":"#N/A"}},null,null,null,null,null,null,null,null,{"$f":"VLOOKUP(N1367,Tabel10[[korte omschrijving]:[MCC3_CODE]],2,0)","v":{"$error":"#N/A"}},{"$f":"VLOOKUP(N1367,'Data order'!M:O,3,0)","v":{"$error":"#N/A"}},null,null,null,{"$f":"IFERROR(\n  IF(R1367=\"Big&Tall\",\n      VLOOKUP(S1367, 'Data order'!$AC$92:$AD$101, 2, FALSE),\n      IF(R1367=\"Boordmaat\",\n          VLOOKUP(S1367, 'Data order'!$AC$102:$AD$116, 2, FALSE),\n          VLOOKUP(S1367, 'Data order'!$AC$2:$AD$91, 2, FALSE)\n      )\n  ),\n\"\")","v":""},null,null,null,null,"EUR",null,null,null,{"$error":"#DIV/0!"},0,0,null,"","","","","","","","","","",null,null,null,null,null,null,null,null,null,null,null,null,null,null,null,null,null,"ZWO"]
[null,null,null,null,null,{"$f":"VLOOKUP(G1368,'Data order'!Z:AA,2,0)","v":{"$error":"#N/A"}},null,null,null,null,null,null,null,null,{"$f":"VLOOKUP(N1368,Tabel10[[korte omschrijving]:[MCC3_CODE]],2,0)","v":{"$error":"#N/A"}},{"$f":"VLOOKUP(N1368,'Data order'!M:O,3,0)","v":{"$error":"#N/A"}},null,null,null,{"$f":"IFERROR(\n  IF(R1368=\"Big&Tall\",\n      VLOOKUP(S1368, 'Data order'!$AC$92:$AD$101, 2, FALSE),\n      IF(R1368=\"Boordmaat\",\n          VLOOKUP(S1368, 'Data order'!$AC$102:$AD$116, 2, FALSE),\n          VLOOKUP(S1368, 'Data order'!$AC$2:$AD$91, 2, FALSE)\n      )\n  ),\n\"\")","v":""},null,0,null,null,"EUR",null,null,null,{"$f":"AB1368/Z1368","v":{"$error":"#DIV/0!"}},{"$f":"U1368*Z1368","v":0},{"$f":"U1368*AB1368","v":0},null,"","","","","","","","","","",null,null,null,null,null,null,null,null,null,null,null,null,null,null,null,null,null,"ZWO"]
[null,null,null,null,null,{"$f":"VLOOKUP(G1369,'Data order'!Z:AA,2,0)","v":{"$error":"#N/A"}},null,null,null,null,null,null,null,null,{"$f":"VLOOKUP(N1369,Tabel10[[korte omschrijving]:[MCC3_CODE]],2,0)","v":{"$error":"#N/A"}},{"$f":"VLOOKUP(N1369,'Data order'!M:O,3,0)","v":{"$error":"#N/A"}},null,null,null,{"$f":"IFERROR(\n  IF(R1369=\"Big&Tall\",\n      VLOOKUP(S1369, 'Data order'!$AC$92:$AD$101, 2, FALSE),\n      IF(R1369=\"Boordmaat\",\n          VLOOKUP(S1369, 'Data order'!$AC$102:$AD$116, 2, FALSE),\n          VLOOKUP(S1369, 'Data order'!$AC$2:$AD$91, 2, FALSE)\n      )\n  ),\n\"\")","v":""},null,null,null,null,"EUR",null,null,null,{"$error":"#DIV/0!"},0,0,null,"","","","","","","","","","",null,null,null,null,null,null,null,null,null,null,null,null,null,null,null,null,null,"ZWO"]
[null,null,null,null,null,{"$f":"VLOOKUP(G1370,'Data order'!Z:AA,2,0)","v":{"$error":"#N/A"}},null,null,null,null,null,null,null,null,{"$f":"VLOOKUP(N1370,Tabel10[[korte omschrijving]:[MCC3_CODE]],2,0)","v":{"$error":"#N/A"}},{"$f":"VLOOKUP(N1370,'Data order'!M:O,3,0)","v":{"$error":"#N/A"}},null,null,null,{"$f":"IFERROR(\n  IF(R1370=\"Big&Tall\",\n      VLOOKUP(S1370, 'Data order'!$AC$92:$AD$101, 2, FALSE),\n      IF(R1370=\"Boordmaat\",\n          VLOOKUP(S1370, 'Data order'!$AC$102:$AD$116, 2, FALSE),\n          VLOOKUP(S1370, 'Data order'!$AC$2:$AD$91, 2, FALSE)\n      )\n  ),\n\"\")","v":""},null,null,null,null,"EUR",null,null,null,{"$error":"#DIV/0!"},0,0,null,"","","","","","","","","","",null,null,null,null,null,null,null,null,null,null,null,null,null,null,null,null,null,"ZWO"]
[null,null,null,null,null,{"$f":"VLOOKUP(G1371,'Data order'!Z:AA,2,0)","v":{"$error":"#N/A"}},null,null,null,null,null,null,null,null,{"$f":"VLOOKUP(N1371,Tabel10[[korte omschrijving]:[MCC3_CODE]],2,0)","v":{"$error":"#N/A"}},{"$f":"VLOOKUP(N1371,'Data order'!M:O,3,0)","v":{"$error":"#N/A"}},null,null,null,{"$f":"IFERROR(\n  IF(R1371=\"Big&Tall\",\n      VLOOKUP(S1371, 'Data order'!$AC$92:$AD$101, 2, FALSE),\n      IF(R1371=\"Boordmaat\",\n          VLOOKUP(S1371, 'Data order'!$AC$102:$AD$116, 2, FALSE),\n          VLOOKUP(S1371, 'Data order'!$AC$2:$AD$91, 2, FALSE)\n      )\n  ),\n\"\")","v":""},null,null,null,null,"EUR",null,null,null,{"$error":"#DIV/0!"},0,0,null,"","","","","","","","","","",null,null,null,null,null,null,null,null,null,null,null,null,null,null,null,null,null,"ZWO"]
[null,null,null,null,null,{"$f":"VLOOKUP(G1372,'Data order'!Z:AA,2,0)","v":{"$error":"#N/A"}},null,null,null,null,null,null,null,null,{"$f":"VLOOKUP(N1372,Tabel10[[korte omschrijving]:[MCC3_CODE]],2,0)","v":{"$error":"#N/A"}},{"$f":"VLOOKUP(N1372,'Data order'!M:O,3,0)","v":{"$error":"#N/A"}},null,null,null,{"$f":"IFERROR(\n  IF(R1372=\"Big&Tall\",\n      VLOOKUP(S1372, 'Data order'!$AC$92:$AD$101, 2, FALSE),\n      IF(R1372=\"Boordmaat\",\n          VLOOKUP(S1372, 'Data order'!$AC$102:$AD$116, 2, FALSE),\n          VLOOKUP(S1372, 'Data order'!$AC$2:$AD$91, 2, FALSE)\n      )\n  ),\n\"\")","v":""},null,null,null,null,"EUR",null,null,null,{"$error":"#DIV/0!"},0,0,null,"","","","","","","","","","",null,null,null,null,null,null,null,null,null,null,null,null,null,null,null,null,null,"ZWO"]
[null,null,null,null,null,{"$f":"VLOOKUP(G1373,'Data order'!Z:AA,2,0)","v":{"$error":"#N/A"}},null,null,null,null,null,null,null,null,{"$f":"VLOOKUP(N1373,Tabel10[[korte omschrijving]:[MCC3_CODE]],2,0)","v":{"$error":"#N/A"}},{"$f":"VLOOKUP(N1373,'Data order'!M:O,3,0)","v":{"$error":"#N/A"}},null,null,null,{"$f":"IFERROR(\n  IF(R1373=\"Big&Tall\",\n      VLOOKUP(S1373, 'Data order'!$AC$92:$AD$101, 2, FALSE),\n      IF(R1373=\"Boordmaat\",\n          VLOOKUP(S1373, 'Data order'!$AC$102:$AD$116, 2, FALSE),\n          VLOOKUP(S1373, 'Data order'!$AC$2:$AD$91, 2, FALSE)\n      )\n  ),\n\"\")","v":""},null,null,null,null,"EUR",null,null,null,{"$error":"#DIV/0!"},0,0,null,"","","","","","","","","","",null,null,null,null,null,null,null,null,null,null,null,null,null,null,null,null,null,"ZWO"]
[null,null,null,null,null,{"$f":"VLOOKUP(G1374,'Data order'!Z:AA,2,0)","v":{"$error":"#N/A"}},null,null,null,null,null,null,null,null,{"$f":"VLOOKUP(N1374,Tabel10[[korte omschrijving]:[MCC3_CODE]],2,0)","v":{"$error":"#N/A"}},{"$f":"VLOOKUP(N1374,'Data order'!M:O,3,0)","v":{"$error":"#N/A"}},null,null,null,{"$f":"IFERROR(\n  IF(R1374=\"Big&Tall\",\n      VLOOKUP(S1374, 'Data order'!$AC$92:$AD$101, 2, FALSE),\n      IF(R1374=\"Boordmaat\",\n          VLOOKUP(S1374, 'Data order'!$AC$102:$AD$116, 2, FALSE),\n          VLOOKUP(S1374, 'Data order'!$AC$2:$AD$91, 2, FALSE)\n      )\n  ),\n\"\")","v":""},null,0,null,null,"EUR",null,null,null,{"$f":"AB1374/Z1374","v":{"$error":"#DIV/0!"}},{"$f":"U1374*Z1374","v":0},{"$f":"U1374*AB1374","v":0},null,"","","","","","","","","","",null,null,null,null,null,null,null,null,null,null,null,null,null,null,null,null,null,"ZWO"]
[null,null,null,null,null,{"$f":"VLOOKUP(G1375,'Data order'!Z:AA,2,0)","v":{"$error":"#N/A"}},null,null,null,null,null,null,null,null,{"$f":"VLOOKUP(N1375,Tabel10[[korte omschrijving]:[MCC3_CODE]],2,0)","v":{"$error":"#N/A"}},{"$f":"VLOOKUP(N1375,'Data order'!M:O,3,0)","v":{"$error":"#N/A"}},null,null,null,{"$f":"IFERROR(\n  IF(R1375=\"Big&Tall\",\n      VLOOKUP(S1375, 'Data order'!$AC$92:$AD$101, 2, FALSE),\n      IF(R1375=\"Boordmaat\",\n          VLOOKUP(S1375, 'Data order'!$AC$102:$AD$116, 2, FALSE),\n          VLOOKUP(S1375, 'Data order'!$AC$2:$AD$91, 2, FALSE)\n      )\n  ),\n\"\")","v":""},null,null,null,null,"EUR",null,null,null,{"$error":"#DIV/0!"},0,0,null,"","","","","","","","","","",null,null,null,null,null,null,null,null,null,null,null,null,null,null,null,null,null,"ZWO"]
[null,null,null,null,null,{"$f":"VLOOKUP(G1376,'Data order'!Z:AA,2,0)","v":{"$error":"#N/A"}},null,null,null,null,null,null,null,null,{"$f":"VLOOKUP(N1376,Tabel10[[korte omschrijving]:[MCC3_CODE]],2,0)","v":{"$error":"#N/A"}},{"$f":"VLOOKUP(N1376,'Data order'!M:O,3,0)","v":{"$error":"#N/A"}},null,null,null,{"$f":"IFERROR(\n  IF(R1376=\"Big&Tall\",\n      VLOOKUP(S1376, 'Data order'!$AC$92:$AD$101, 2, FALSE),\n      IF(R1376=\"Boordmaat\",\n          VLOOKUP(S1376, 'Data order'!$AC$102:$AD$116, 2, FALSE),\n          VLOOKUP(S1376, 'Data order'!$AC$2:$AD$91, 2, FALSE)\n      )\n  ),\n\"\")","v":""},null,null,null,null,"EUR",null,null,null,{"$error":"#DIV/0!"},0,0,null,"","","","","","","","","","",null,null,null,null,null,null,null,null,null,null,null,null,null,null,null,null,null,"ZWO"]
[null,null,null,null,null,{"$f":"VLOOKUP(G1377,'Data order'!Z:AA,2,0)","v":{"$error":"#N/A"}},null,null,null,null,null,null,null,null,{"$f":"VLOOKUP(N1377,Tabel10[[korte omschrijving]:[MCC3_CODE]],2,0)","v":{"$error":"#N/A"}},{"$f":"VLOOKUP(N1377,'Data order'!M:O,3,0)","v":{"$error":"#N/A"}},null,null,null,{"$f":"IFERROR(\n  IF(R1377=\"Big&Tall\",\n      VLOOKUP(S1377, 'Data order'!$AC$92:$AD$101, 2, FALSE),\n      IF(R1377=\"Boordmaat\",\n          VLOOKUP(S1377, 'Data order'!$AC$102:$AD$116, 2, FALSE),\n          VLOOKUP(S1377, 'Data order'!$AC$2:$AD$91, 2, FALSE)\n      )\n  ),\n\"\")","v":""},null,null,null,null,"EUR",null,null,null,{"$error":"#DIV/0!"},0,0,null,"","","","","","","","","","",null,null,null,null,null,null,null,null,null,null,null,null,null,null,null,null,null,"ZWO"]
[null,null,null,null,null,{"$f":"VLOOKUP(G1378,'Data order'!Z:AA,2,0)","v":{"$error":"#N/A"}},null,null,null,null,null,null,null,null,{"$f":"VLOOKUP(N1378,Tabel10[[korte omschrijving]:[MCC3_CODE]],2,0)","v":{"$error":"#N/A"}},{"$f":"VLOOKUP(N1378,'Data order'!M:O,3,0)","v":{"$error":"#N/A"}},null,null,null,{"$f":"IFERROR(\n  IF(R1378=\"Big&Tall\",\n      VLOOKUP(S1378, 'Data order'!$AC$92:$AD$101, 2, FALSE),\n      IF(R1378=\"Boordmaat\",\n          VLOOKUP(S1378, 'Data order'!$AC$102:$AD$116, 2, FALSE),\n          VLOOKUP(S1378, 'Data order'!$AC$2:$AD$91, 2, FALSE)\n      )\n  ),\n\"\")","v":""},null,null,null,null,"EUR",null,null,null,{"$error":"#DIV/0!"},0,0,null,"","","","","","","","","","",null,null,null,null,null,null,null,null,null,null,null,null,null,null,null,null,null,"ZWO"]
[null,null,null,null,null,{"$f":"VLOOKUP(G1379,'Data order'!Z:AA,2,0)","v":{"$error":"#N/A"}},null,null,null,null,null,null,null,null,{"$f":"VLOOKUP(N1379,Tabel10[[korte omschrijving]:[MCC3_CODE]],2,0)","v":{"$error":"#N/A"}},{"$f":"VLOOKUP(N1379,'Data order'!M:O,3,0)","v":{"$error":"#N/A"}},null,null,null,{"$f":"IFERROR(\n  IF(R1379=\"Big&Tall\",\n      VLOOKUP(S1379, 'Data order'!$AC$92:$AD$101, 2, FALSE),\n      IF(R1379=\"Boordmaat\",\n          VLOOKUP(S1379, 'Data order'!$AC$102:$AD$116, 2, FALSE),\n          VLOOKUP(S1379, 'Data order'!$AC$2:$AD$91, 2, FALSE)\n      )\n  ),\n\"\")","v":""},null,null,null,null,"EUR",null,null,null,{"$error":"#DIV/0!"},0,0,null,"","","","","","","","","","",null,null,null,null,null,null,null,null,null,null,null,null,null,null,null,null,null,"ZWO"]
[null,null,null,null,null,{"$f":"VLOOKUP(G1380,'Data order'!Z:AA,2,0)","v":{"$error":"#N/A"}},null,null,null,null,null,null,null,null,{"$f":"VLOOKUP(N1380,Tabel10[[korte omschrijving]:[MCC3_CODE]],2,0)","v":{"$error":"#N/A"}},{"$f":"VLOOKUP(N1380,'Data order'!M:O,3,0)","v":{"$error":"#N/A"}},null,null,null,{"$f":"IFERROR(\n  IF(R1380=\"Big&Tall\",\n      VLOOKUP(S1380, 'Data order'!$AC$92:$AD$101, 2, FALSE),\n      IF(R1380=\"Boordmaat\",\n          VLOOKUP(S1380, 'Data order'!$AC$102:$AD$116, 2, FALSE),\n          VLOOKUP(S1380, 'Data order'!$AC$2:$AD$91, 2, FALSE)\n      )\n  ),\n\"\")","v":""},null,0,null,null,"EUR",null,null,null,{"$f":"AB1380/Z1380","v":{"$error":"#DIV/0!"}},{"$f":"U1380*Z1380","v":0},{"$f":"U1380*AB1380","v":0},null,"","","","","","","","","","",null,null,null,null,null,null,null,null,null,null,null,null,null,null,null,null,null,"ZWO"]
[null,null,null,null,null,{"$f":"VLOOKUP(G1381,'Data order'!Z:AA,2,0)","v":{"$error":"#N/A"}},null,null,null,null,null,null,null,null,{"$f":"VLOOKUP(N1381,Tabel10[[korte omschrijving]:[MCC3_CODE]],2,0)","v":{"$error":"#N/A"}},{"$f":"VLOOKUP(N1381,'Data order'!M:O,3,0)","v":{"$error":"#N/A"}},null,null,null,{"$f":"IFERROR(\n  IF(R1381=\"Big&Tall\",\n      VLOOKUP(S1381, 'Data order'!$AC$92:$AD$101, 2, FALSE),\n      IF(R1381=\"Boordmaat\",\n          VLOOKUP(S1381, 'Data order'!$AC$102:$AD$116, 2, FALSE),\n          VLOOKUP(S1381, 'Data order'!$AC$2:$AD$91, 2, FALSE)\n      )\n  ),\n\"\")","v":""},null,null,null,null,"EUR",null,null,null,{"$error":"#DIV/0!"},0,0,null,"","","","","","","","","","",null,null,null,null,null,null,null,null,null,null,null,null,null,null,null,null,null,"ZWO"]
[null,null,null,null,null,{"$f":"VLOOKUP(G1382,'Data order'!Z:AA,2,0)","v":{"$error":"#N/A"}},null,null,null,null,null,null,null,null,{"$f":"VLOOKUP(N1382,Tabel10[[korte omschrijving]:[MCC3_CODE]],2,0)","v":{"$error":"#N/A"}},{"$f":"VLOOKUP(N1382,'Data order'!M:O,3,0)","v":{"$error":"#N/A"}},null,null,null,{"$f":"IFERROR(\n  IF(R1382=\"Big&Tall\",\n      VLOOKUP(S1382, 'Data order'!$AC$92:$AD$101, 2, FALSE),\n      IF(R1382=\"Boordmaat\",\n          VLOOKUP(S1382, 'Data order'!$AC$102:$AD$116, 2, FALSE),\n          VLOOKUP(S1382, 'Data order'!$AC$2:$AD$91, 2, FALSE)\n      )\n  ),\n\"\")","v":""},null,null,null,null,"EUR",null,null,null,{"$error":"#DIV/0!"},0,0,null,"","","","","","","","","","",null,null,null,null,null,null,null,null,null,null,null,null,null,null,null,null,null,"ZWO"]
[null,null,null,null,null,{"$f":"VLOOKUP(G1383,'Data order'!Z:AA,2,0)","v":{"$error":"#N/A"}},null,null,null,null,null,null,null,null,{"$f":"VLOOKUP(N1383,Tabel10[[korte omschrijving]:[MCC3_CODE]],2,0)","v":{"$error":"#N/A"}},{"$f":"VLOOKUP(N1383,'Data order'!M:O,3,0)","v":{"$error":"#N/A"}},null,null,null,{"$f":"IFERROR(\n  IF(R1383=\"Big&Tall\",\n      VLOOKUP(S1383, 'Data order'!$AC$92:$AD$101, 2, FALSE),\n      IF(R1383=\"Boordmaat\",\n          VLOOKUP(S1383, 'Data order'!$AC$102:$AD$116, 2, FALSE),\n          VLOOKUP(S1383, 'Data order'!$AC$2:$AD$91, 2, FALSE)\n      )\n  ),\n\"\")","v":""},null,null,null,null,"EUR",null,null,null,{"$error":"#DIV/0!"},0,0,null,"","","","","","","","","","",null,null,null,null,null,null,null,null,null,null,null,null,null,null,null,null,null,"ZWO"]
[null,null,null,null,null,{"$f":"VLOOKUP(G1384,'Data order'!Z:AA,2,0)","v":{"$error":"#N/A"}},null,null,null,null,null,null,null,null,{"$f":"VLOOKUP(N1384,Tabel10[[korte omschrijving]:[MCC3_CODE]],2,0)","v":{"$error":"#N/A"}},{"$f":"VLOOKUP(N1384,'Data order'!M:O,3,0)","v":{"$error":"#N/A"}},null,null,null,{"$f":"IFERROR(\n  IF(R1384=\"Big&Tall\",\n      VLOOKUP(S1384, 'Data order'!$AC$92:$AD$101, 2, FALSE),\n      IF(R1384=\"Boordmaat\",\n          VLOOKUP(S1384, 'Data order'!$AC$102:$AD$116, 2, FALSE),\n          VLOOKUP(S1384, 'Data order'!$AC$2:$AD$91, 2, FALSE)\n      )\n  ),\n\"\")","v":""},null,null,null,null,"EUR",null,null,null,{"$error":"#DIV/0!"},0,0,null,"","","","","","","","","","",null,null,null,null,null,null,null,null,null,null,null,null,null,null,null,null,null,"ZWO"]
[null,null,null,null,null,{"$f":"VLOOKUP(G1385,'Data order'!Z:AA,2,0)","v":{"$error":"#N/A"}},null,null,null,null,null,null,null,null,{"$f":"VLOOKUP(N1385,Tabel10[[korte omschrijving]:[MCC3_CODE]],2,0)","v":{"$error":"#N/A"}},{"$f":"VLOOKUP(N1385,'Data order'!M:O,3,0)","v":{"$error":"#N/A"}},null,null,null,{"$f":"IFERROR(\n  IF(R1385=\"Big&Tall\",\n      VLOOKUP(S1385, 'Data order'!$AC$92:$AD$101, 2, FALSE),\n      IF(R1385=\"Boordmaat\",\n          VLOOKUP(S1385, 'Data order'!$AC$102:$AD$116, 2, FALSE),\n          VLOOKUP(S1385, 'Data order'!$AC$2:$AD$91, 2, FALSE)\n      )\n  ),\n\"\")","v":""},null,null,null,null,"EUR",null,null,null,{"$error":"#DIV/0!"},0,0,null,"","","","","","","","","","",null,null,null,null,null,null,null,null,null,null,null,null,null,null,null,null,null,"ZWO"]
[null,null,null,null,null,{"$f":"VLOOKUP(G1386,'Data order'!Z:AA,2,0)","v":{"$error":"#N/A"}},null,null,null,null,null,null,null,null,{"$f":"VLOOKUP(N1386,Tabel10[[korte omschrijving]:[MCC3_CODE]],2,0)","v":{"$error":"#N/A"}},{"$f":"VLOOKUP(N1386,'Data order'!M:O,3,0)","v":{"$error":"#N/A"}},null,null,null,{"$f":"IFERROR(\n  IF(R1386=\"Big&Tall\",\n      VLOOKUP(S1386, 'Data order'!$AC$92:$AD$101, 2, FALSE),\n      IF(R1386=\"Boordmaat\",\n          VLOOKUP(S1386, 'Data order'!$AC$102:$AD$116, 2, FALSE),\n          VLOOKUP(S1386, 'Data order'!$AC$2:$AD$91, 2, FALSE)\n      )\n  ),\n\"\")","v":""},null,0,null,null,"EUR",null,null,null,{"$f":"AB1386/Z1386","v":{"$error":"#DIV/0!"}},{"$f":"U1386*Z1386","v":0},{"$f":"U1386*AB1386","v":0},null,"","","","","","","","","","",null,null,null,null,null,null,null,null,null,null,null,null,null,null,null,null,null,"ZWO"]
[null,null,null,null,null,{"$f":"VLOOKUP(G1387,'Data order'!Z:AA,2,0)","v":{"$error":"#N/A"}},null,null,null,null,null,null,null,null,{"$f":"VLOOKUP(N1387,Tabel10[[korte omschrijving]:[MCC3_CODE]],2,0)","v":{"$error":"#N/A"}},{"$f":"VLOOKUP(N1387,'Data order'!M:O,3,0)","v":{"$error":"#N/A"}},null,null,null,{"$f":"IFERROR(\n  IF(R1387=\"Big&Tall\",\n      VLOOKUP(S1387, 'Data order'!$AC$92:$AD$101, 2, FALSE),\n      IF(R1387=\"Boordmaat\",\n          VLOOKUP(S1387, 'Data order'!$AC$102:$AD$116, 2, FALSE),\n          VLOOKUP(S1387, 'Data order'!$AC$2:$AD$91, 2, FALSE)\n      )\n  ),\n\"\")","v":""},null,null,null,null,"EUR",null,null,null,{"$error":"#DIV/0!"},0,0,null,"","","","","","","","","","",null,null,null,null,null,null,null,null,null,null,null,null,null,null,null,null,null,"ZWO"]
[null,null,null,null,null,{"$f":"VLOOKUP(G1388,'Data order'!Z:AA,2,0)","v":{"$error":"#N/A"}},null,null,null,null,null,null,null,null,{"$f":"VLOOKUP(N1388,Tabel10[[korte omschrijving]:[MCC3_CODE]],2,0)","v":{"$error":"#N/A"}},{"$f":"VLOOKUP(N1388,'Data order'!M:O,3,0)","v":{"$error":"#N/A"}},null,null,null,{"$f":"IFERROR(\n  IF(R1388=\"Big&Tall\",\n      VLOOKUP(S1388, 'Data order'!$AC$92:$AD$101, 2, FALSE),\n      IF(R1388=\"Boordmaat\",\n          VLOOKUP(S1388, 'Data order'!$AC$102:$AD$116, 2, FALSE),\n          VLOOKUP(S1388, 'Data order'!$AC$2:$AD$91, 2, FALSE)\n      )\n  ),\n\"\")","v":""},null,null,null,null,"EUR",null,null,null,{"$error":"#DIV/0!"},0,0,null,"","","","","","","","","","",null,null,null,null,null,null,null,null,null,null,null,null,null,null,null,null,null,"ZWO"]
[null,null,null,null,null,{"$f":"VLOOKUP(G1389,'Data order'!Z:AA,2,0)","v":{"$error":"#N/A"}},null,null,null,null,null,null,null,null,{"$f":"VLOOKUP(N1389,Tabel10[[korte omschrijving]:[MCC3_CODE]],2,0)","v":{"$error":"#N/A"}},{"$f":"VLOOKUP(N1389,'Data order'!M:O,3,0)","v":{"$error":"#N/A"}},null,null,null,{"$f":"IFERROR(\n  IF(R1389=\"Big&Tall\",\n      VLOOKUP(S1389, 'Data order'!$AC$92:$AD$101, 2, FALSE),\n      IF(R1389=\"Boordmaat\",\n          VLOOKUP(S1389, 'Data order'!$AC$102:$AD$116, 2, FALSE),\n          VLOOKUP(S1389, 'Data order'!$AC$2:$AD$91, 2, FALSE)\n      )\n  ),\n\"\")","v":""},null,null,null,null,"EUR",null,null,null,{"$error":"#DIV/0!"},0,0,null,"","","","","","","","","","",null,null,null,null,null,null,null,null,null,null,null,null,null,null,null,null,null,"ZWO"]
[null,null,null,null,null,{"$f":"VLOOKUP(G1390,'Data order'!Z:AA,2,0)","v":{"$error":"#N/A"}},null,null,null,null,null,null,null,null,{"$f":"VLOOKUP(N1390,Tabel10[[korte omschrijving]:[MCC3_CODE]],2,0)","v":{"$error":"#N/A"}},{"$f":"VLOOKUP(N1390,'Data order'!M:O,3,0)","v":{"$error":"#N/A"}},null,null,null,{"$f":"IFERROR(\n  IF(R1390=\"Big&Tall\",\n      VLOOKUP(S1390, 'Data order'!$AC$92:$AD$101, 2, FALSE),\n      IF(R1390=\"Boordmaat\",\n          VLOOKUP(S1390, 'Data order'!$AC$102:$AD$116, 2, FALSE),\n          VLOOKUP(S1390, 'Data order'!$AC$2:$AD$91, 2, FALSE)\n      )\n  ),\n\"\")","v":""},null,null,null,null,"EUR",null,null,null,{"$error":"#DIV/0!"},0,0,null,"","","","","","","","","","",null,null,null,null,null,null,null,null,null,null,null,null,null,null,null,null,null,"ZWO"]
[null,null,null,null,null,{"$f":"VLOOKUP(G1391,'Data order'!Z:AA,2,0)","v":{"$error":"#N/A"}},null,null,null,null,null,null,null,null,{"$f":"VLOOKUP(N1391,Tabel10[[korte omschrijving]:[MCC3_CODE]],2,0)","v":{"$error":"#N/A"}},{"$f":"VLOOKUP(N1391,'Data order'!M:O,3,0)","v":{"$error":"#N/A"}},null,null,null,{"$f":"IFERROR(\n  IF(R1391=\"Big&Tall\",\n      VLOOKUP(S1391, 'Data order'!$AC$92:$AD$101, 2, FALSE),\n      IF(R1391=\"Boordmaat\",\n          VLOOKUP(S1391, 'Data order'!$AC$102:$AD$116, 2, FALSE),\n          VLOOKUP(S1391, 'Data order'!$AC$2:$AD$91, 2, FALSE)\n      )\n  ),\n\"\")","v":""},null,null,null,null,"EUR",null,null,null,{"$error":"#DIV/0!"},0,0,null,"","","","","","","","","","",null,null,null,null,null,null,null,null,null,null,null,null,null,null,null,null,null,"ZWO"]
[null,null,null,null,null,{"$f":"VLOOKUP(G1392,'Data order'!Z:AA,2,0)","v":{"$error":"#N/A"}},null,null,null,null,null,null,null,null,{"$f":"VLOOKUP(N1392,Tabel10[[korte omschrijving]:[MCC3_CODE]],2,0)","v":{"$error":"#N/A"}},{"$f":"VLOOKUP(N1392,'Data order'!M:O,3,0)","v":{"$error":"#N/A"}},null,null,null,{"$f":"IFERROR(\n  IF(R1392=\"Big&Tall\",\n      VLOOKUP(S1392, 'Data order'!$AC$92:$AD$101, 2, FALSE),\n      IF(R1392=\"Boordmaat\",\n          VLOOKUP(S1392, 'Data order'!$AC$102:$AD$116, 2, FALSE),\n          VLOOKUP(S1392, 'Data order'!$AC$2:$AD$91, 2, FALSE)\n      )\n  ),\n\"\")","v":""},null,0,null,null,"EUR",null,null,null,{"$f":"AB1392/Z1392","v":{"$error":"#DIV/0!"}},{"$f":"U1392*Z1392","v":0},{"$f":"U1392*AB1392","v":0},null,"","","","","","","","","","",null,null,null,null,null,null,null,null,null,null,null,null,null,null,null,null,null,"ZWO"]
[null,null,null,null,null,{"$f":"VLOOKUP(G1393,'Data order'!Z:AA,2,0)","v":{"$error":"#N/A"}},null,null,null,null,null,null,null,null,{"$f":"VLOOKUP(N1393,Tabel10[[korte omschrijving]:[MCC3_CODE]],2,0)","v":{"$error":"#N/A"}},{"$f":"VLOOKUP(N1393,'Data order'!M:O,3,0)","v":{"$error":"#N/A"}},null,null,null,{"$f":"IFERROR(\n  IF(R1393=\"Big&Tall\",\n      VLOOKUP(S1393, 'Data order'!$AC$92:$AD$101, 2, FALSE),\n      IF(R1393=\"Boordmaat\",\n          VLOOKUP(S1393, 'Data order'!$AC$102:$AD$116, 2, FALSE),\n          VLOOKUP(S1393, 'Data order'!$AC$2:$AD$91, 2, FALSE)\n      )\n  ),\n\"\")","v":""},null,null,null,null,"EUR",null,null,null,{"$error":"#DIV/0!"},0,0,null,"","","","","","","","","","",null,null,null,null,null,null,null,null,null,null,null,null,null,null,null,null,null,"ZWO"]
[null,null,null,null,null,{"$f":"VLOOKUP(G1394,'Data order'!Z:AA,2,0)","v":{"$error":"#N/A"}},null,null,null,null,null,null,null,null,{"$f":"VLOOKUP(N1394,Tabel10[[korte omschrijving]:[MCC3_CODE]],2,0)","v":{"$error":"#N/A"}},{"$f":"VLOOKUP(N1394,'Data order'!M:O,3,0)","v":{"$error":"#N/A"}},null,null,null,{"$f":"IFERROR(\n  IF(R1394=\"Big&Tall\",\n      VLOOKUP(S1394, 'Data order'!$AC$92:$AD$101, 2, FALSE),\n      IF(R1394=\"Boordmaat\",\n          VLOOKUP(S1394, 'Data order'!$AC$102:$AD$116, 2, FALSE),\n          VLOOKUP(S1394, 'Data order'!$AC$2:$AD$91, 2, FALSE)\n      )\n  ),\n\"\")","v":""},null,null,null,null,"EUR",null,null,null,{"$error":"#DIV/0!"},0,0,null,"","","","","","","","","","",null,null,null,null,null,null,null,null,null,null,null,null,null,null,null,null,null,"ZWO"]
[null,null,null,null,null,{"$f":"VLOOKUP(G1395,'Data order'!Z:AA,2,0)","v":{"$error":"#N/A"}},null,null,null,null,null,null,null,null,{"$f":"VLOOKUP(N1395,Tabel10[[korte omschrijving]:[MCC3_CODE]],2,0)","v":{"$error":"#N/A"}},{"$f":"VLOOKUP(N1395,'Data order'!M:O,3,0)","v":{"$error":"#N/A"}},null,null,null,{"$f":"IFERROR(\n  IF(R1395=\"Big&Tall\",\n      VLOOKUP(S1395, 'Data order'!$AC$92:$AD$101, 2, FALSE),\n      IF(R1395=\"Boordmaat\",\n          VLOOKUP(S1395, 'Data order'!$AC$102:$AD$116, 2, FALSE),\n          VLOOKUP(S1395, 'Data order'!$AC$2:$AD$91, 2, FALSE)\n      )\n  ),\n\"\")","v":""},null,null,null,null,"EUR",null,null,null,{"$error":"#DIV/0!"},0,0,null,"","","","","","","","","","",null,null,null,null,null,null,null,null,null,null,null,null,null,null,null,null,null,"ZWO"]
[null,null,null,null,null,{"$f":"VLOOKUP(G1396,'Data order'!Z:AA,2,0)","v":{"$error":"#N/A"}},null,null,null,null,null,null,null,null,{"$f":"VLOOKUP(N1396,Tabel10[[korte omschrijving]:[MCC3_CODE]],2,0)","v":{"$error":"#N/A"}},{"$f":"VLOOKUP(N1396,'Data order'!M:O,3,0)","v":{"$error":"#N/A"}},null,null,null,{"$f":"IFERROR(\n  IF(R1396=\"Big&Tall\",\n      VLOOKUP(S1396, 'Data order'!$AC$92:$AD$101, 2, FALSE),\n      IF(R1396=\"Boordmaat\",\n          VLOOKUP(S1396, 'Data order'!$AC$102:$AD$116, 2, FALSE),\n          VLOOKUP(S1396, 'Data order'!$AC$2:$AD$91, 2, FALSE)\n      )\n  ),\n\"\")","v":""},null,null,null,null,"EUR",null,null,null,{"$error":"#DIV/0!"},0,0,null,"","","","","","","","","","",null,null,null,null,null,null,null,null,null,null,null,null,null,null,null,null,null,"ZWO"]
[null,null,null,null,null,{"$f":"VLOOKUP(G1397,'Data order'!Z:AA,2,0)","v":{"$error":"#N/A"}},null,null,null,null,null,null,null,null,{"$f":"VLOOKUP(N1397,Tabel10[[korte omschrijving]:[MCC3_CODE]],2,0)","v":{"$error":"#N/A"}},{"$f":"VLOOKUP(N1397,'Data order'!M:O,3,0)","v":{"$error":"#N/A"}},null,null,null,{"$f":"IFERROR(\n  IF(R1397=\"Big&Tall\",\n      VLOOKUP(S1397, 'Data order'!$AC$92:$AD$101, 2, FALSE),\n      IF(R1397=\"Boordmaat\",\n          VLOOKUP(S1397, 'Data order'!$AC$102:$AD$116, 2, FALSE),\n          VLOOKUP(S1397, 'Data order'!$AC$2:$AD$91, 2, FALSE)\n      )\n  ),\n\"\")","v":""},null,null,null,null,"EUR",null,null,null,{"$error":"#DIV/0!"},0,0,null,"","","","","","","","","","",null,null,null,null,null,null,null,null,null,null,null,null,null,null,null,null,null,"ZWO"]
[null,null,null,null,null,{"$f":"VLOOKUP(G1398,'Data order'!Z:AA,2,0)","v":{"$error":"#N/A"}},null,null,null,null,null,null,null,null,{"$f":"VLOOKUP(N1398,Tabel10[[korte omschrijving]:[MCC3_CODE]],2,0)","v":{"$error":"#N/A"}},{"$f":"VLOOKUP(N1398,'Data order'!M:O,3,0)","v":{"$error":"#N/A"}},null,null,null,{"$f":"IFERROR(\n  IF(R1398=\"Big&Tall\",\n      VLOOKUP(S1398, 'Data order'!$AC$92:$AD$101, 2, FALSE),\n      IF(R1398=\"Boordmaat\",\n          VLOOKUP(S1398, 'Data order'!$AC$102:$AD$116, 2, FALSE),\n          VLOOKUP(S1398, 'Data order'!$AC$2:$AD$91, 2, FALSE)\n      )\n  ),\n\"\")","v":""},null,0,null,null,"EUR",null,null,null,{"$f":"AB1398/Z1398","v":{"$error":"#DIV/0!"}},{"$f":"U1398*Z1398","v":0},{"$f":"U1398*AB1398","v":0},null,"","","","","","","","","","",null,null,null,null,null,null,null,null,null,null,null,null,null,null,null,null,null,"ZWO"]
[null,null,null,null,null,{"$f":"VLOOKUP(G1399,'Data order'!Z:AA,2,0)","v":{"$error":"#N/A"}},null,null,null,null,null,null,null,null,{"$f":"VLOOKUP(N1399,Tabel10[[korte omschrijving]:[MCC3_CODE]],2,0)","v":{"$error":"#N/A"}},{"$f":"VLOOKUP(N1399,'Data order'!M:O,3,0)","v":{"$error":"#N/A"}},null,null,null,{"$f":"IFERROR(\n  IF(R1399=\"Big&Tall\",\n      VLOOKUP(S1399, 'Data order'!$AC$92:$AD$101, 2, FALSE),\n      IF(R1399=\"Boordmaat\",\n          VLOOKUP(S1399, 'Data order'!$AC$102:$AD$116, 2, FALSE),\n          VLOOKUP(S1399, 'Data order'!$AC$2:$AD$91, 2, FALSE)\n      )\n  ),\n\"\")","v":""},null,null,null,null,"EUR",null,null,null,{"$error":"#DIV/0!"},0,0,null,"","","","","","","","","","",null,null,null,null,null,null,null,null,null,null,null,null,null,null,null,null,null,"ZWO"]
[null,null,null,null,null,{"$f":"VLOOKUP(G1400,'Data order'!Z:AA,2,0)","v":{"$error":"#N/A"}},null,null,null,null,null,null,null,null,{"$f":"VLOOKUP(N1400,Tabel10[[korte omschrijving]:[MCC3_CODE]],2,0)","v":{"$error":"#N/A"}},{"$f":"VLOOKUP(N1400,'Data order'!M:O,3,0)","v":{"$error":"#N/A"}},null,null,null,{"$f":"IFERROR(\n  IF(R1400=\"Big&Tall\",\n      VLOOKUP(S1400, 'Data order'!$AC$92:$AD$101, 2, FALSE),\n      IF(R1400=\"Boordmaat\",\n          VLOOKUP(S1400, 'Data order'!$AC$102:$AD$116, 2, FALSE),\n          VLOOKUP(S1400, 'Data order'!$AC$2:$AD$91, 2, FALSE)\n      )\n  ),\n\"\")","v":""},null,null,null,null,"EUR",null,null,null,{"$error":"#DIV/0!"},0,0,null,{"$f":"IF(AF1400 <> \"\",\n    IF(ISNUMBER(VALUE(LEFT(AF1400, FIND(\"%\", AF1400)-1))),\n        VALUE(LEFT(AF1400, FIND(\"%\", AF1400)-1)),\n        \"Invalid format\"),\n    \"\")","v":""},{"$f":"IF(AF1400 <> \"\",\n    IF(ISNUMBER(VALUE(LEFT(AF1400, FIND(\"%\", AF1400)-1))) * ISNUMBER(FIND(\"%\", AF1400 & \"wol\")) > 0,\n        TRIM(MID(AF1400, FIND(\"%\", AF1400)+1, FIND(\"/\", AF1400 & \"/\")-FIND(\"%\", AF1400)-1)),\n        \"Invalid format\"),\n    \"\")","v":""},{"$f":"IF(AF1400 <> \"\",\n    IF(ISNUMBER(VALUE(MID(AF1400, FIND(\"/\", AF1400) + 1, FIND(\"%\", AF1400, FIND(\"/\", AF1400)) - FIND(\"/\", AF1400) - 1))),\n        VALUE(MID(AF1400, FIND(\"/\", AF1400) + 1, FIND(\"%\", AF1400, FIND(\"/\", AF1400)) - FIND(\"/\", AF1400) - 1)),\n        \"\"),\n    \"\")","v":""},{"$f":"IF(AF1400 <> \"\",\n    IFERROR(TRIM(MID(AF1400, FIND(\"%\", AF1400, FIND(\"/\", AF1400)+1)+2,\n        IFERROR(FIND(\"/\", AF1400 & \"/\", FIND(\"/\", AF1400)+1)-FIND(\"%\", AF1400, FIND(\"/\", AF1400)+1)-2, LEN(AF1400)-FIND(\"%\", AF1400, FIND(\"/\", AF1400)+1)-1))),\n        \"\"),\n    \"\")","v":""},{"$f":"IF(AF1400 <> \"\",\n    IF(ISNUMBER(VALUE(MID(AF1400, FIND(\"/\", AF1400, FIND(\"/\", AF1400)+1) + 1, FIND(\"%\", AF1400, FIND(\"/\", AF1400, FIND(\"/\", AF1400)+1)) - FIND(\"/\", AF1400, FIND(\"/\", AF1400)+1) - 1))),\n        VALUE(MID(AF1400, FIND(\"/\", AF1400, FIND(\"/\", AF1400)+1) + 1, FIND(\"%\", AF1400, FIND(\"/\", AF1400, FIND(\"/\", AF1400)+1)) - FIND(\"/\", AF1400, FIND(\"/\", AF1400)+1) - 1)),\n        \"\"),\n    \"\")","v":""},{"$f":"IF(AF1400 <> \"\",\n    IFERROR(\n        TRIM(MID(AF1400,\n            FIND(\"%\", AF1400, FIND(\"%\", AF1400, FIND(\"%\", AF1400)+1)+1)+1,\n            FIND(\"/\", AF1400 & \"/\", FIND(\"%\", AF1400, FIND(\"%\", AF1400, FIND(\"%\", AF1400)+1)+1))-FIND(\"%\", AF1400, FIND(\"%\", AF1400, FIND(\"%\", AF1400)+1)+1)-1)\n        ),\n        \"\"\n    ),\n    \"\"\n)","v":""},{"$f":"IF(AF1400 <> \"\",\n    IF(ISNUMBER(VALUE(MID(AF1400, FIND(\"/\", AF1400, FIND(\"/\", AF1400, FIND(\"/\", AF1400)+1)+1) + 1, FIND(\"%\", AF1400, FIND(\"/\", AF1400, FIND(\"/\", AF1400, FIND(\"/\", AF1400)+1)+1)) - FIND(\"/\", AF1400, FIND(\"/\", AF1400, FIND(\"/\", AF1400)+1)+1) - 1))),\n        VALUE(MID(AF1400, FIND(\"/\", AF1400, FIND(\"/\", AF1400, FIND(\"/\", AF1400)+1)+1) + 1, FIND(\"%\", AF1400, FIND(\"/\", AF1400, FIND(\"/\", AF1400, FIND(\"/\", AF1400)+1)+1)) - FIND(\"/\", AF1400, FIND(\"/\", AF1400, FIND(\"/\", AF1400)+1)+1) - 1)),\n        \"\"),\n    \"\")","v":""},{"$f":"IF(AF1400 <> \"\",\n    IFERROR(TRIM(MID(AF1400, FIND(\"%\", AF1400, FIND(\"/\", AF1400, FIND(\"/\", AF1400, FIND(\"/\", AF1400)+1)+1)+1)+2,\n        IFERROR(FIND(\"/\", AF1400, FIND(\"/\", AF1400, FIND(\"/\", AF1400, FIND(\"/\", AF1400)+1)+1)+1)-FIND(\"%\", AF1400, FIND(\"/\", AF1400, FIND(\"/\", AF1400, FIND(\"/\", AF1400)+1)+1)+1)-2, LEN(AF1400)-FIND(\"%\", AF1400, FIND(\"/\", AF1400, FIND(\"/\", AF1400, FIND(\"/\", AF1400)+1)+1)+1)-1))),\n        \"\"),\n    \"\")","v":""},{"$f":"IF(AF1400 <> \"\",\n    IF(ISNUMBER(VALUE(MID(AF1400, FIND(\"/\", AF1400, FIND(\"/\", AF1400, FIND(\"/\", AF1400, FIND(\"/\", AF1400)+1)+1)+1) + 1, FIND(\"%\", AF1400, FIND(\"/\", AF1400, FIND(\"/\", AF1400, FIND(\"/\", AF1400, FIND(\"/\", AF1400)+1)+1)+1)) - FIND(\"/\", AF1400, FIND(\"/\", AF1400, FIND(\"/\", AF1400, FIND(\"/\", AF1400)+1)+1)+1) - 1))),\n        VALUE(MID(AF1400, FIND(\"/\", AF1400, FIND(\"/\", AF1400, FIND(\"/\", AF1400, FIND(\"/\", AF1400)+1)+1)+1) + 1, FIND(\"%\", AF1400, FIND(\"/\", AF1400, FIND(\"/\", AF1400, FIND(\"/\", AF1400, FIND(\"/\", AF1400)+1)+1)+1)) - FIND(\"/\", AF1400, FIND(\"/\", AF1400, FIND(\"/\", AF1400, FIND(\"/\", AF1400)+1)+1)+1) - 1)),\n        \"\"),\n    \"\")","v":""},{"$f":"IF(AF1400 = \"\", \"\",\n    IFERROR(TRIM(\n        MID(\n            AF1400,\n            FIND(\"%\", AF1400, FIND(\"/\", AF1400, FIND(\"/\", AF1400, FIND(\"/\", AF1400, FIND(\"/\", AF1400)+1)+1)+1)+1) + 1,\n            FIND(\"/\", AF1400 & \"/\", FIND(\"%\", AF1400, FIND(\"/\", AF1400, FIND(\"/\", AF1400, FIND(\"/\", AF1400, FIND(\"/\", AF1400)+1)+1)+1)+1)) -\n            FIND(\"%\", AF1400, FIND(\"/\", AF1400, FIND(\"/\", AF1400, FIND(\"/\", AF1400, FIND(\"/\", AF1400)+1)+1)+1)+1) - 1\n        )\n    ),\n    \"\")\n)","v":""},null,null,null,null,null,null,null,null,null,null,null,null,null,null,null,null,null,"ZWO"]
[null,null,null,null,null,{"$f":"VLOOKUP(G1401,'Data order'!Z:AA,2,0)","v":{"$error":"#N/A"}},null,null,null,null,null,null,null,null,{"$f":"VLOOKUP(N1401,Tabel10[[korte omschrijving]:[MCC3_CODE]],2,0)","v":{"$error":"#N/A"}},{"$f":"VLOOKUP(N1401,'Data order'!M:O,3,0)","v":{"$error":"#N/A"}},null,null,null,{"$f":"IFERROR(\n  IF(R1401=\"Big&Tall\",\n      VLOOKUP(S1401, 'Data order'!$AC$92:$AD$101, 2, FALSE),\n      IF(R1401=\"Boordmaat\",\n          VLOOKUP(S1401, 'Data order'!$AC$102:$AD$116, 2, FALSE),\n          VLOOKUP(S1401, 'Data order'!$AC$2:$AD$91, 2, FALSE)\n      )\n  ),\n\"\")","v":""},null,null,null,null,"EUR",null,null,null,{"$error":"#DIV/0!"},0,0,null,"","","","","","","","","","",null,null,null,null,null,null,null,null,null,null,null,null,null,null,null,null,null,"ZWO"]
[null,null,null,null,null,{"$f":"VLOOKUP(G1402,'Data order'!Z:AA,2,0)","v":{"$error":"#N/A"}},null,null,null,null,null,null,null,null,{"$f":"VLOOKUP(N1402,Tabel10[[korte omschrijving]:[MCC3_CODE]],2,0)","v":{"$error":"#N/A"}},{"$f":"VLOOKUP(N1402,'Data order'!M:O,3,0)","v":{"$error":"#N/A"}},null,null,null,{"$f":"IFERROR(\n  IF(R1402=\"Big&Tall\",\n      VLOOKUP(S1402, 'Data order'!$AC$92:$AD$101, 2, FALSE),\n      IF(R1402=\"Boordmaat\",\n          VLOOKUP(S1402, 'Data order'!$AC$102:$AD$116, 2, FALSE),\n          VLOOKUP(S1402, 'Data order'!$AC$2:$AD$91, 2, FALSE)\n      )\n  ),\n\"\")","v":""},null,null,null,null,"EUR",null,null,null,{"$error":"#DIV/0!"},0,0,null,"","","","","","","","","","",null,null,null,null,null,null,null,null,null,null,null,null,null,null,null,null,null,"ZWO"]
[null,null,null,null,null,{"$f":"VLOOKUP(G1403,'Data order'!Z:AA,2,0)","v":{"$error":"#N/A"}},null,null,null,null,null,null,null,null,{"$f":"VLOOKUP(N1403,Tabel10[[korte omschrijving]:[MCC3_CODE]],2,0)","v":{"$error":"#N/A"}},{"$f":"VLOOKUP(N1403,'Data order'!M:O,3,0)","v":{"$error":"#N/A"}},null,null,null,{"$f":"IFERROR(\n  IF(R1403=\"Big&Tall\",\n      VLOOKUP(S1403, 'Data order'!$AC$92:$AD$101, 2, FALSE),\n      IF(R1403=\"Boordmaat\",\n          VLOOKUP(S1403, 'Data order'!$AC$102:$AD$116, 2, FALSE),\n          VLOOKUP(S1403, 'Data order'!$AC$2:$AD$91, 2, FALSE)\n      )\n  ),\n\"\")","v":""},null,null,null,null,"EUR",null,null,null,{"$error":"#DIV/0!"},0,0,null,"","","","","","","","","","",null,null,null,null,null,null,null,null,null,null,null,null,null,null,null,null,null,"ZWO"]
[null,null,null,null,null,{"$f":"VLOOKUP(G1404,'Data order'!Z:AA,2,0)","v":{"$error":"#N/A"}},null,null,null,null,null,null,null,null,{"$f":"VLOOKUP(N1404,Tabel10[[korte omschrijving]:[MCC3_CODE]],2,0)","v":{"$error":"#N/A"}},{"$f":"VLOOKUP(N1404,'Data order'!M:O,3,0)","v":{"$error":"#N/A"}},null,null,null,{"$f":"IFERROR(\n  IF(R1404=\"Big&Tall\",\n      VLOOKUP(S1404, 'Data order'!$AC$92:$AD$101, 2, FALSE),\n      IF(R1404=\"Boordmaat\",\n          VLOOKUP(S1404, 'Data order'!$AC$102:$AD$116, 2, FALSE),\n          VLOOKUP(S1404, 'Data order'!$AC$2:$AD$91, 2, FALSE)\n      )\n  ),\n\"\")","v":""},null,0,null,null,"EUR",null,null,null,{"$f":"AB1404/Z1404","v":{"$error":"#DIV/0!"}},{"$f":"U1404*Z1404","v":0},{"$f":"U1404*AB1404","v":0},null,"","","","","","","","","","",null,null,null,null,null,null,null,null,null,null,null,null,null,null,null,null,null,"ZWO"]
[null,null,null,null,null,{"$f":"VLOOKUP(G1405,'Data order'!Z:AA,2,0)","v":{"$error":"#N/A"}},null,null,null,null,null,null,null,null,{"$f":"VLOOKUP(N1405,Tabel10[[korte omschrijving]:[MCC3_CODE]],2,0)","v":{"$error":"#N/A"}},{"$f":"VLOOKUP(N1405,'Data order'!M:O,3,0)","v":{"$error":"#N/A"}},null,null,null,{"$f":"IFERROR(\n  IF(R1405=\"Big&Tall\",\n      VLOOKUP(S1405, 'Data order'!$AC$92:$AD$101, 2, FALSE),\n      IF(R1405=\"Boordmaat\",\n          VLOOKUP(S1405, 'Data order'!$AC$102:$AD$116, 2, FALSE),\n          VLOOKUP(S1405, 'Data order'!$AC$2:$AD$91, 2, FALSE)\n      )\n  ),\n\"\")","v":""},null,null,null,null,"EUR",null,null,null,{"$error":"#DIV/0!"},0,0,null,"","","","","","","","","","",null,null,null,null,null,null,null,null,null,null,null,null,null,null,null,null,null,"ZWO"]
[null,null,null,null,null,{"$f":"VLOOKUP(G1406,'Data order'!Z:AA,2,0)","v":{"$error":"#N/A"}},null,null,null,null,null,null,null,null,{"$f":"VLOOKUP(N1406,Tabel10[[korte omschrijving]:[MCC3_CODE]],2,0)","v":{"$error":"#N/A"}},{"$f":"VLOOKUP(N1406,'Data order'!M:O,3,0)","v":{"$error":"#N/A"}},null,null,null,{"$f":"IFERROR(\n  IF(R1406=\"Big&Tall\",\n      VLOOKUP(S1406, 'Data order'!$AC$92:$AD$101, 2, FALSE),\n      IF(R1406=\"Boordmaat\",\n          VLOOKUP(S1406, 'Data order'!$AC$102:$AD$116, 2, FALSE),\n          VLOOKUP(S1406, 'Data order'!$AC$2:$AD$91, 2, FALSE)\n      )\n  ),\n\"\")","v":""},null,null,null,null,"EUR",null,null,null,{"$error":"#DIV/0!"},0,0,null,"","","","","","","","","","",null,null,null,null,null,null,null,null,null,null,null,null,null,null,null,null,null,"ZWO"]
[null,null,null,null,null,{"$f":"VLOOKUP(G1407,'Data order'!Z:AA,2,0)","v":{"$error":"#N/A"}},null,null,null,null,null,null,null,null,{"$f":"VLOOKUP(N1407,Tabel10[[korte omschrijving]:[MCC3_CODE]],2,0)","v":{"$error":"#N/A"}},{"$f":"VLOOKUP(N1407,'Data order'!M:O,3,0)","v":{"$error":"#N/A"}},null,null,null,{"$f":"IFERROR(\n  IF(R1407=\"Big&Tall\",\n      VLOOKUP(S1407, 'Data order'!$AC$92:$AD$101, 2, FALSE),\n      IF(R1407=\"Boordmaat\",\n          VLOOKUP(S1407, 'Data order'!$AC$102:$AD$116, 2, FALSE),\n          VLOOKUP(S1407, 'Data order'!$AC$2:$AD$91, 2, FALSE)\n      )\n  ),\n\"\")","v":""},null,null,null,null,"EUR",null,null,null,{"$error":"#DIV/0!"},0,0,null,"","","","","","","","","","",null,null,null,null,null,null,null,null,null,null,null,null,null,null,null,null,null,"ZWO"]
[null,null,null,null,null,{"$f":"VLOOKUP(G1408,'Data order'!Z:AA,2,0)","v":{"$error":"#N/A"}},null,null,null,null,null,null,null,null,{"$f":"VLOOKUP(N1408,Tabel10[[korte omschrijving]:[MCC3_CODE]],2,0)","v":{"$error":"#N/A"}},{"$f":"VLOOKUP(N1408,'Data order'!M:O,3,0)","v":{"$error":"#N/A"}},null,null,null,{"$f":"IFERROR(\n  IF(R1408=\"Big&Tall\",\n      VLOOKUP(S1408, 'Data order'!$AC$92:$AD$101, 2, FALSE),\n      IF(R1408=\"Boordmaat\",\n          VLOOKUP(S1408, 'Data order'!$AC$102:$AD$116, 2, FALSE),\n          VLOOKUP(S1408, 'Data order'!$AC$2:$AD$91, 2, FALSE)\n      )\n  ),\n\"\")","v":""},null,null,null,null,"EUR",null,null,null,{"$error":"#DIV/0!"},0,0,null,"","","","","","","","","","",null,null,null,null,null,null,null,null,null,null,null,null,null,null,null,null,null,"ZWO"]
[null,null,null,null,null,{"$f":"VLOOKUP(G1409,'Data order'!Z:AA,2,0)","v":{"$error":"#N/A"}},null,null,null,null,null,null,null,null,{"$f":"VLOOKUP(N1409,Tabel10[[korte omschrijving]:[MCC3_CODE]],2,0)","v":{"$error":"#N/A"}},{"$f":"VLOOKUP(N1409,'Data order'!M:O,3,0)","v":{"$error":"#N/A"}},null,null,null,{"$f":"IFERROR(\n  IF(R1409=\"Big&Tall\",\n      VLOOKUP(S1409, 'Data order'!$AC$92:$AD$101, 2, FALSE),\n      IF(R1409=\"Boordmaat\",\n          VLOOKUP(S1409, 'Data order'!$AC$102:$AD$116, 2, FALSE),\n          VLOOKUP(S1409, 'Data order'!$AC$2:$AD$91, 2, FALSE)\n      )\n  ),\n\"\")","v":""},null,null,null,null,"EUR",null,null,null,{"$error":"#DIV/0!"},0,0,null,"","","","","","","","","","",null,null,null,null,null,null,null,null,null,null,null,null,null,null,null,null,null,"ZWO"]
[null,null,null,null,null,{"$f":"VLOOKUP(G1410,'Data order'!Z:AA,2,0)","v":{"$error":"#N/A"}},null,null,null,null,null,null,null,null,{"$f":"VLOOKUP(N1410,Tabel10[[korte omschrijving]:[MCC3_CODE]],2,0)","v":{"$error":"#N/A"}},{"$f":"VLOOKUP(N1410,'Data order'!M:O,3,0)","v":{"$error":"#N/A"}},null,null,null,{"$f":"IFERROR(\n  IF(R1410=\"Big&Tall\",\n      VLOOKUP(S1410, 'Data order'!$AC$92:$AD$101, 2, FALSE),\n      IF(R1410=\"Boordmaat\",\n          VLOOKUP(S1410, 'Data order'!$AC$102:$AD$116, 2, FALSE),\n          VLOOKUP(S1410, 'Data order'!$AC$2:$AD$91, 2, FALSE)\n      )\n  ),\n\"\")","v":""},null,0,null,null,"EUR",null,null,null,{"$f":"AB1410/Z1410","v":{"$error":"#DIV/0!"}},{"$f":"U1410*Z1410","v":0},{"$f":"U1410*AB1410","v":0},null,"","","","","","","","","","",null,null,null,null,null,null,null,null,null,null,null,null,null,null,null,null,null,"ZWO"]
[null,null,null,null,null,{"$f":"VLOOKUP(G1411,'Data order'!Z:AA,2,0)","v":{"$error":"#N/A"}},null,null,null,null,null,null,null,null,{"$f":"VLOOKUP(N1411,Tabel10[[korte omschrijving]:[MCC3_CODE]],2,0)","v":{"$error":"#N/A"}},{"$f":"VLOOKUP(N1411,'Data order'!M:O,3,0)","v":{"$error":"#N/A"}},null,null,null,{"$f":"IFERROR(\n  IF(R1411=\"Big&Tall\",\n      VLOOKUP(S1411, 'Data order'!$AC$92:$AD$101, 2, FALSE),\n      IF(R1411=\"Boordmaat\",\n          VLOOKUP(S1411, 'Data order'!$AC$102:$AD$116, 2, FALSE),\n          VLOOKUP(S1411, 'Data order'!$AC$2:$AD$91, 2, FALSE)\n      )\n  ),\n\"\")","v":""},null,null,null,null,"EUR",null,null,null,{"$error":"#DIV/0!"},0,0,null,"","","","","","","","","","",null,null,null,null,null,null,null,null,null,null,null,null,null,null,null,null,null,"ZWO"]
[null,null,null,null,null,{"$f":"VLOOKUP(G1412,'Data order'!Z:AA,2,0)","v":{"$error":"#N/A"}},null,null,null,null,null,null,null,null,{"$f":"VLOOKUP(N1412,Tabel10[[korte omschrijving]:[MCC3_CODE]],2,0)","v":{"$error":"#N/A"}},{"$f":"VLOOKUP(N1412,'Data order'!M:O,3,0)","v":{"$error":"#N/A"}},null,null,null,{"$f":"IFERROR(\n  IF(R1412=\"Big&Tall\",\n      VLOOKUP(S1412, 'Data order'!$AC$92:$AD$101, 2, FALSE),\n      IF(R1412=\"Boordmaat\",\n          VLOOKUP(S1412, 'Data order'!$AC$102:$AD$116, 2, FALSE),\n          VLOOKUP(S1412, 'Data order'!$AC$2:$AD$91, 2, FALSE)\n      )\n  ),\n\"\")","v":""},null,null,null,null,"EUR",null,null,null,{"$error":"#DIV/0!"},0,0,null,"","","","","","","","","","",null,null,null,null,null,null,null,null,null,null,null,null,null,null,null,null,null,"ZWO"]
[null,null,null,null,null,{"$f":"VLOOKUP(G1413,'Data order'!Z:AA,2,0)","v":{"$error":"#N/A"}},null,null,null,null,null,null,null,null,{"$f":"VLOOKUP(N1413,Tabel10[[korte omschrijving]:[MCC3_CODE]],2,0)","v":{"$error":"#N/A"}},{"$f":"VLOOKUP(N1413,'Data order'!M:O,3,0)","v":{"$error":"#N/A"}},null,null,null,{"$f":"IFERROR(\n  IF(R1413=\"Big&Tall\",\n      VLOOKUP(S1413, 'Data order'!$AC$92:$AD$101, 2, FALSE),\n      IF(R1413=\"Boordmaat\",\n          VLOOKUP(S1413, 'Data order'!$AC$102:$AD$116, 2, FALSE),\n          VLOOKUP(S1413, 'Data order'!$AC$2:$AD$91, 2, FALSE)\n      )\n  ),\n\"\")","v":""},null,null,null,null,"EUR",null,null,null,{"$error":"#DIV/0!"},0,0,null,"","","","","","","","","","",null,null,null,null,null,null,null,null,null,null,null,null,null,null,null,null,null,"ZWO"]
[null,null,null,null,null,{"$f":"VLOOKUP(G1414,'Data order'!Z:AA,2,0)","v":{"$error":"#N/A"}},null,null,null,null,null,null,null,null,{"$f":"VLOOKUP(N1414,Tabel10[[korte omschrijving]:[MCC3_CODE]],2,0)","v":{"$error":"#N/A"}},{"$f":"VLOOKUP(N1414,'Data order'!M:O,3,0)","v":{"$error":"#N/A"}},null,null,null,{"$f":"IFERROR(\n  IF(R1414=\"Big&Tall\",\n      VLOOKUP(S1414, 'Data order'!$AC$92:$AD$101, 2, FALSE),\n      IF(R1414=\"Boordmaat\",\n          VLOOKUP(S1414, 'Data order'!$AC$102:$AD$116, 2, FALSE),\n          VLOOKUP(S1414, 'Data order'!$AC$2:$AD$91, 2, FALSE)\n      )\n  ),\n\"\")","v":""},null,null,null,null,"EUR",null,null,null,{"$error":"#DIV/0!"},0,0,null,"","","","","","","","","","",null,null,null,null,null,null,null,null,null,null,null,null,null,null,null,null,null,"ZWO"]
[null,null,null,null,null,{"$f":"VLOOKUP(G1415,'Data order'!Z:AA,2,0)","v":{"$error":"#N/A"}},null,null,null,null,null,null,null,null,{"$f":"VLOOKUP(N1415,Tabel10[[korte omschrijving]:[MCC3_CODE]],2,0)","v":{"$error":"#N/A"}},{"$f":"VLOOKUP(N1415,'Data order'!M:O,3,0)","v":{"$error":"#N/A"}},null,null,null,{"$f":"IFERROR(\n  IF(R1415=\"Big&Tall\",\n      VLOOKUP(S1415, 'Data order'!$AC$92:$AD$101, 2, FALSE),\n      IF(R1415=\"Boordmaat\",\n          VLOOKUP(S1415, 'Data order'!$AC$102:$AD$116, 2, FALSE),\n          VLOOKUP(S1415, 'Data order'!$AC$2:$AD$91, 2, FALSE)\n      )\n  ),\n\"\")","v":""},null,null,null,null,"EUR",null,null,null,{"$error":"#DIV/0!"},0,0,null,"","","","","","","","","","",null,null,null,null,null,null,null,null,null,null,null,null,null,null,null,null,null,"ZWO"]
[null,null,null,null,null,{"$f":"VLOOKUP(G1416,'Data order'!Z:AA,2,0)","v":{"$error":"#N/A"}},null,null,null,null,null,null,null,null,{"$f":"VLOOKUP(N1416,Tabel10[[korte omschrijving]:[MCC3_CODE]],2,0)","v":{"$error":"#N/A"}},{"$f":"VLOOKUP(N1416,'Data order'!M:O,3,0)","v":{"$error":"#N/A"}},null,null,null,{"$f":"IFERROR(\n  IF(R1416=\"Big&Tall\",\n      VLOOKUP(S1416, 'Data order'!$AC$92:$AD$101, 2, FALSE),\n      IF(R1416=\"Boordmaat\",\n          VLOOKUP(S1416, 'Data order'!$AC$102:$AD$116, 2, FALSE),\n          VLOOKUP(S1416, 'Data order'!$AC$2:$AD$91, 2, FALSE)\n      )\n  ),\n\"\")","v":""},null,0,null,null,"EUR",null,null,null,{"$f":"AB1416/Z1416","v":{"$error":"#DIV/0!"}},{"$f":"U1416*Z1416","v":0},{"$f":"U1416*AB1416","v":0},null,"","","","","","","","","","",null,null,null,null,null,null,null,null,null,null,null,null,null,null,null,null,null,"ZWO"]
[null,null,null,null,null,{"$f":"VLOOKUP(G1417,'Data order'!Z:AA,2,0)","v":{"$error":"#N/A"}},null,null,null,null,null,null,null,null,{"$f":"VLOOKUP(N1417,Tabel10[[korte omschrijving]:[MCC3_CODE]],2,0)","v":{"$error":"#N/A"}},{"$f":"VLOOKUP(N1417,'Data order'!M:O,3,0)","v":{"$error":"#N/A"}},null,null,null,{"$f":"IFERROR(\n  IF(R1417=\"Big&Tall\",\n      VLOOKUP(S1417, 'Data order'!$AC$92:$AD$101, 2, FALSE),\n      IF(R1417=\"Boordmaat\",\n          VLOOKUP(S1417, 'Data order'!$AC$102:$AD$116, 2, FALSE),\n          VLOOKUP(S1417, 'Data order'!$AC$2:$AD$91, 2, FALSE)\n      )\n  ),\n\"\")","v":""},null,null,null,null,"EUR",null,null,null,{"$error":"#DIV/0!"},0,0,null,"","","","","","","","","","",null,null,null,null,null,null,null,null,null,null,null,null,null,null,null,null,null,"ZWO"]
[null,null,null,null,null,{"$f":"VLOOKUP(G1418,'Data order'!Z:AA,2,0)","v":{"$error":"#N/A"}},null,null,null,null,null,null,null,null,{"$f":"VLOOKUP(N1418,Tabel10[[korte omschrijving]:[MCC3_CODE]],2,0)","v":{"$error":"#N/A"}},{"$f":"VLOOKUP(N1418,'Data order'!M:O,3,0)","v":{"$error":"#N/A"}},null,null,null,{"$f":"IFERROR(\n  IF(R1418=\"Big&Tall\",\n      VLOOKUP(S1418, 'Data order'!$AC$92:$AD$101, 2, FALSE),\n      IF(R1418=\"Boordmaat\",\n          VLOOKUP(S1418, 'Data order'!$AC$102:$AD$116, 2, FALSE),\n          VLOOKUP(S1418, 'Data order'!$AC$2:$AD$91, 2, FALSE)\n      )\n  ),\n\"\")","v":""},null,null,null,null,"EUR",null,null,null,{"$error":"#DIV/0!"},0,0,null,"","","","","","","","","","",null,null,null,null,null,null,null,null,null,null,null,null,null,null,null,null,null,"ZWO"]
[null,null,null,null,null,{"$f":"VLOOKUP(G1419,'Data order'!Z:AA,2,0)","v":{"$error":"#N/A"}},null,null,null,null,null,null,null,null,{"$f":"VLOOKUP(N1419,Tabel10[[korte omschrijving]:[MCC3_CODE]],2,0)","v":{"$error":"#N/A"}},{"$f":"VLOOKUP(N1419,'Data order'!M:O,3,0)","v":{"$error":"#N/A"}},null,null,null,{"$f":"IFERROR(\n  IF(R1419=\"Big&Tall\",\n      VLOOKUP(S1419, 'Data order'!$AC$92:$AD$101, 2, FALSE),\n      IF(R1419=\"Boordmaat\",\n          VLOOKUP(S1419, 'Data order'!$AC$102:$AD$116, 2, FALSE),\n          VLOOKUP(S1419, 'Data order'!$AC$2:$AD$91, 2, FALSE)\n      )\n  ),\n\"\")","v":""},null,null,null,null,"EUR",null,null,null,{"$error":"#DIV/0!"},0,0,null,"","","","","","","","","","",null,null,null,null,null,null,null,null,null,null,null,null,null,null,null,null,null,"ZWO"]
[null,null,null,null,null,{"$f":"VLOOKUP(G1420,'Data order'!Z:AA,2,0)","v":{"$error":"#N/A"}},null,null,null,null,null,null,null,null,{"$f":"VLOOKUP(N1420,Tabel10[[korte omschrijving]:[MCC3_CODE]],2,0)","v":{"$error":"#N/A"}},{"$f":"VLOOKUP(N1420,'Data order'!M:O,3,0)","v":{"$error":"#N/A"}},null,null,null,{"$f":"IFERROR(\n  IF(R1420=\"Big&Tall\",\n      VLOOKUP(S1420, 'Data order'!$AC$92:$AD$101, 2, FALSE),\n      IF(R1420=\"Boordmaat\",\n          VLOOKUP(S1420, 'Data order'!$AC$102:$AD$116, 2, FALSE),\n          VLOOKUP(S1420, 'Data order'!$AC$2:$AD$91, 2, FALSE)\n      )\n  ),\n\"\")","v":""},null,null,null,null,"EUR",null,null,null,{"$error":"#DIV/0!"},0,0,null,"","","","","","","","","","",null,null,null,null,null,null,null,null,null,null,null,null,null,null,null,null,null,"ZWO"]
[null,null,null,null,null,{"$f":"VLOOKUP(G1421,'Data order'!Z:AA,2,0)","v":{"$error":"#N/A"}},null,null,null,null,null,null,null,null,{"$f":"VLOOKUP(N1421,Tabel10[[korte omschrijving]:[MCC3_CODE]],2,0)","v":{"$error":"#N/A"}},{"$f":"VLOOKUP(N1421,'Data order'!M:O,3,0)","v":{"$error":"#N/A"}},null,null,null,{"$f":"IFERROR(\n  IF(R1421=\"Big&Tall\",\n      VLOOKUP(S1421, 'Data order'!$AC$92:$AD$101, 2, FALSE),\n      IF(R1421=\"Boordmaat\",\n          VLOOKUP(S1421, 'Data order'!$AC$102:$AD$116, 2, FALSE),\n          VLOOKUP(S1421, 'Data order'!$AC$2:$AD$91, 2, FALSE)\n      )\n  ),\n\"\")","v":""},null,null,null,null,"EUR",null,null,null,{"$error":"#DIV/0!"},0,0,null,"","","","","","","","","","",null,null,null,null,null,null,null,null,null,null,null,null,null,null,null,null,null,"ZWO"]
[null,null,null,null,null,{"$f":"VLOOKUP(G1422,'Data order'!Z:AA,2,0)","v":{"$error":"#N/A"}},null,null,null,null,null,null,null,null,{"$f":"VLOOKUP(N1422,Tabel10[[korte omschrijving]:[MCC3_CODE]],2,0)","v":{"$error":"#N/A"}},{"$f":"VLOOKUP(N1422,'Data order'!M:O,3,0)","v":{"$error":"#N/A"}},null,null,null,{"$f":"IFERROR(\n  IF(R1422=\"Big&Tall\",\n      VLOOKUP(S1422, 'Data order'!$AC$92:$AD$101, 2, FALSE),\n      IF(R1422=\"Boordmaat\",\n          VLOOKUP(S1422, 'Data order'!$AC$102:$AD$116, 2, FALSE),\n          VLOOKUP(S1422, 'Data order'!$AC$2:$AD$91, 2, FALSE)\n      )\n  ),\n\"\")","v":""},null,0,null,null,"EUR",null,null,null,{"$f":"AB1422/Z1422","v":{"$error":"#DIV/0!"}},{"$f":"U1422*Z1422","v":0},{"$f":"U1422*AB1422","v":0},null,"","","","","","","","","","",null,null,null,null,null,null,null,null,null,null,null,null,null,null,null,null,null,"ZWO"]
[null,null,null,null,null,{"$f":"VLOOKUP(G1423,'Data order'!Z:AA,2,0)","v":{"$error":"#N/A"}},null,null,null,null,null,null,null,null,{"$f":"VLOOKUP(N1423,Tabel10[[korte omschrijving]:[MCC3_CODE]],2,0)","v":{"$error":"#N/A"}},{"$f":"VLOOKUP(N1423,'Data order'!M:O,3,0)","v":{"$error":"#N/A"}},null,null,null,{"$f":"IFERROR(\n  IF(R1423=\"Big&Tall\",\n      VLOOKUP(S1423, 'Data order'!$AC$92:$AD$101, 2, FALSE),\n      IF(R1423=\"Boordmaat\",\n          VLOOKUP(S1423, 'Data order'!$AC$102:$AD$116, 2, FALSE),\n          VLOOKUP(S1423, 'Data order'!$AC$2:$AD$91, 2, FALSE)\n      )\n  ),\n\"\")","v":""},null,null,null,null,"EUR",null,null,null,{"$error":"#DIV/0!"},0,0,null,"","","","","","","","","","",null,null,null,null,null,null,null,null,null,null,null,null,null,null,null,null,null,"ZWO"]
[null,null,null,null,null,{"$f":"VLOOKUP(G1424,'Data order'!Z:AA,2,0)","v":{"$error":"#N/A"}},null,null,null,null,null,null,null,null,{"$f":"VLOOKUP(N1424,Tabel10[[korte omschrijving]:[MCC3_CODE]],2,0)","v":{"$error":"#N/A"}},{"$f":"VLOOKUP(N1424,'Data order'!M:O,3,0)","v":{"$error":"#N/A"}},null,null,null,{"$f":"IFERROR(\n  IF(R1424=\"Big&Tall\",\n      VLOOKUP(S1424, 'Data order'!$AC$92:$AD$101, 2, FALSE),\n      IF(R1424=\"Boordmaat\",\n          VLOOKUP(S1424, 'Data order'!$AC$102:$AD$116, 2, FALSE),\n          VLOOKUP(S1424, 'Data order'!$AC$2:$AD$91, 2, FALSE)\n      )\n  ),\n\"\")","v":""},null,null,null,null,"EUR",null,null,null,{"$error":"#DIV/0!"},0,0,null,"","","","","","","","","","",null,null,null,null,null,null,null,null,null,null,null,null,null,null,null,null,null,"ZWO"]
[null,null,null,null,null,{"$f":"VLOOKUP(G1425,'Data order'!Z:AA,2,0)","v":{"$error":"#N/A"}},null,null,null,null,null,null,null,null,{"$f":"VLOOKUP(N1425,Tabel10[[korte omschrijving]:[MCC3_CODE]],2,0)","v":{"$error":"#N/A"}},{"$f":"VLOOKUP(N1425,'Data order'!M:O,3,0)","v":{"$error":"#N/A"}},null,null,null,{"$f":"IFERROR(\n  IF(R1425=\"Big&Tall\",\n      VLOOKUP(S1425, 'Data order'!$AC$92:$AD$101, 2, FALSE),\n      IF(R1425=\"Boordmaat\",\n          VLOOKUP(S1425, 'Data order'!$AC$102:$AD$116, 2, FALSE),\n          VLOOKUP(S1425, 'Data order'!$AC$2:$AD$91, 2, FALSE)\n      )\n  ),\n\"\")","v":""},null,null,null,null,"EUR",null,null,null,{"$error":"#DIV/0!"},0,0,null,"","","","","","","","","","",null,null,null,null,null,null,null,null,null,null,null,null,null,null,null,null,null,"ZWO"]
[null,null,null,null,null,{"$f":"VLOOKUP(G1426,'Data order'!Z:AA,2,0)","v":{"$error":"#N/A"}},null,null,null,null,null,null,null,null,{"$f":"VLOOKUP(N1426,Tabel10[[korte omschrijving]:[MCC3_CODE]],2,0)","v":{"$error":"#N/A"}},{"$f":"VLOOKUP(N1426,'Data order'!M:O,3,0)","v":{"$error":"#N/A"}},null,null,null,{"$f":"IFERROR(\n  IF(R1426=\"Big&Tall\",\n      VLOOKUP(S1426, 'Data order'!$AC$92:$AD$101, 2, FALSE),\n      IF(R1426=\"Boordmaat\",\n          VLOOKUP(S1426, 'Data order'!$AC$102:$AD$116, 2, FALSE),\n          VLOOKUP(S1426, 'Data order'!$AC$2:$AD$91, 2, FALSE)\n      )\n  ),\n\"\")","v":""},null,null,null,null,"EUR",null,null,null,{"$error":"#DIV/0!"},0,0,null,"","","","","","","","","","",null,null,null,null,null,null,null,null,null,null,null,null,null,null,null,null,null,"ZWO"]
[null,null,null,null,null,{"$f":"VLOOKUP(G1427,'Data order'!Z:AA,2,0)","v":{"$error":"#N/A"}},null,null,null,null,null,null,null,null,{"$f":"VLOOKUP(N1427,Tabel10[[korte omschrijving]:[MCC3_CODE]],2,0)","v":{"$error":"#N/A"}},{"$f":"VLOOKUP(N1427,'Data order'!M:O,3,0)","v":{"$error":"#N/A"}},null,null,null,{"$f":"IFERROR(\n  IF(R1427=\"Big&Tall\",\n      VLOOKUP(S1427, 'Data order'!$AC$92:$AD$101, 2, FALSE),\n      IF(R1427=\"Boordmaat\",\n          VLOOKUP(S1427, 'Data order'!$AC$102:$AD$116, 2, FALSE),\n          VLOOKUP(S1427, 'Data order'!$AC$2:$AD$91, 2, FALSE)\n      )\n  ),\n\"\")","v":""},null,null,null,null,"EUR",null,null,null,{"$error":"#DIV/0!"},0,0,null,"","","","","","","","","","",null,null,null,null,null,null,null,null,null,null,null,null,null,null,null,null,null,"ZWO"]
[null,null,null,null,null,{"$f":"VLOOKUP(G1428,'Data order'!Z:AA,2,0)","v":{"$error":"#N/A"}},null,null,null,null,null,null,null,null,{"$f":"VLOOKUP(N1428,Tabel10[[korte omschrijving]:[MCC3_CODE]],2,0)","v":{"$error":"#N/A"}},{"$f":"VLOOKUP(N1428,'Data order'!M:O,3,0)","v":{"$error":"#N/A"}},null,null,null,{"$f":"IFERROR(\n  IF(R1428=\"Big&Tall\",\n      VLOOKUP(S1428, 'Data order'!$AC$92:$AD$101, 2, FALSE),\n      IF(R1428=\"Boordmaat\",\n          VLOOKUP(S1428, 'Data order'!$AC$102:$AD$116, 2, FALSE),\n          VLOOKUP(S1428, 'Data order'!$AC$2:$AD$91, 2, FALSE)\n      )\n  ),\n\"\")","v":""},null,{"$f":"SUM(U1428:U1433)","v":0},null,null,"EUR",null,null,null,{"$f":"AB1428/Z1428","v":{"$error":"#DIV/0!"}},{"$f":"U1428*Z1428","v":0},{"$f":"U1428*AB1428","v":0},null,"","","","","","","","","","",null,null,null,null,null,null,null,null,null,null,null,null,null,null,null,null,null,"ZWO"]
[null,null,null,null,null,{"$f":"VLOOKUP(G1429,'Data order'!Z:AA,2,0)","v":{"$error":"#N/A"}},null,null,null,null,null,null,null,null,{"$f":"VLOOKUP(N1429,Tabel10[[korte omschrijving]:[MCC3_CODE]],2,0)","v":{"$error":"#N/A"}},{"$f":"VLOOKUP(N1429,'Data order'!M:O,3,0)","v":{"$error":"#N/A"}},null,null,null,{"$f":"IFERROR(\n  IF(R1429=\"Big&Tall\",\n      VLOOKUP(S1429, 'Data order'!$AC$92:$AD$101, 2, FALSE),\n      IF(R1429=\"Boordmaat\",\n          VLOOKUP(S1429, 'Data order'!$AC$102:$AD$116, 2, FALSE),\n          VLOOKUP(S1429, 'Data order'!$AC$2:$AD$91, 2, FALSE)\n      )\n  ),\n\"\")","v":""},null,null,null,null,"EUR",null,null,null,{"$error":"#DIV/0!"},0,0,null,"","","","","","","","","","",null,null,null,null,null,null,null,null,null,null,null,null,null,null,null,null,null,"ZWO"]
[null,null,null,null,null,{"$f":"VLOOKUP(G1430,'Data order'!Z:AA,2,0)","v":{"$error":"#N/A"}},null,null,null,null,null,null,null,null,{"$f":"VLOOKUP(N1430,Tabel10[[korte omschrijving]:[MCC3_CODE]],2,0)","v":{"$error":"#N/A"}},{"$f":"VLOOKUP(N1430,'Data order'!M:O,3,0)","v":{"$error":"#N/A"}},null,null,null,{"$f":"IFERROR(\n  IF(R1430=\"Big&Tall\",\n      VLOOKUP(S1430, 'Data order'!$AC$92:$AD$101, 2, FALSE),\n      IF(R1430=\"Boordmaat\",\n          VLOOKUP(S1430, 'Data order'!$AC$102:$AD$116, 2, FALSE),\n          VLOOKUP(S1430, 'Data order'!$AC$2:$AD$91, 2, FALSE)\n      )\n  ),\n\"\")","v":""},null,null,null,null,"EUR",null,null,null,{"$error":"#DIV/0!"},0,0,null,"","","","","","","","","","",null,null,null,null,null,null,null,null,null,null,null,null,null,null,null,null,null,"ZWO"]
[null,null,null,null,null,{"$f":"VLOOKUP(G1431,'Data order'!Z:AA,2,0)","v":{"$error":"#N/A"}},null,null,null,null,null,null,null,null,{"$f":"VLOOKUP(N1431,Tabel10[[korte omschrijving]:[MCC3_CODE]],2,0)","v":{"$error":"#N/A"}},{"$f":"VLOOKUP(N1431,'Data order'!M:O,3,0)","v":{"$error":"#N/A"}},null,null,null,{"$f":"IFERROR(\n  IF(R1431=\"Big&Tall\",\n      VLOOKUP(S1431, 'Data order'!$AC$92:$AD$101, 2, FALSE),\n      IF(R1431=\"Boordmaat\",\n          VLOOKUP(S1431, 'Data order'!$AC$102:$AD$116, 2, FALSE),\n          VLOOKUP(S1431, 'Data order'!$AC$2:$AD$91, 2, FALSE)\n      )\n  ),\n\"\")","v":""},null,null,null,null,"EUR",null,null,null,{"$error":"#DIV/0!"},0,0,null,"","","","","","","","","","",null,null,null,null,null,null,null,null,null,null,null,null,null,null,null,null,null,"ZWO"]
[null,null,null,null,null,{"$f":"VLOOKUP(G1432,'Data order'!Z:AA,2,0)","v":{"$error":"#N/A"}},null,null,null,null,null,null,null,null,{"$f":"VLOOKUP(N1432,Tabel10[[korte omschrijving]:[MCC3_CODE]],2,0)","v":{"$error":"#N/A"}},{"$f":"VLOOKUP(N1432,'Data order'!M:O,3,0)","v":{"$error":"#N/A"}},null,null,null,{"$f":"IFERROR(\n  IF(R1432=\"Big&Tall\",\n      VLOOKUP(S1432, 'Data order'!$AC$92:$AD$101, 2, FALSE),\n      IF(R1432=\"Boordmaat\",\n          VLOOKUP(S1432, 'Data order'!$AC$102:$AD$116, 2, FALSE),\n          VLOOKUP(S1432, 'Data order'!$AC$2:$AD$91, 2, FALSE)\n      )\n  ),\n\"\")","v":""},null,null,null,null,"EUR",null,null,null,{"$error":"#DIV/0!"},0,0,null,"","","","","","","","","","",null,null,null,null,null,null,null,null,null,null,null,null,null,null,null,null,null,"ZWO"]
[null,null,null,null,null,{"$f":"VLOOKUP(G1433,'Data order'!Z:AA,2,0)","v":{"$error":"#N/A"}},null,null,null,null,null,null,null,null,{"$f":"VLOOKUP(N1433,Tabel10[[korte omschrijving]:[MCC3_CODE]],2,0)","v":{"$error":"#N/A"}},{"$f":"VLOOKUP(N1433,'Data order'!M:O,3,0)","v":{"$error":"#N/A"}},null,null,null,{"$f":"IFERROR(\n  IF(R1433=\"Big&Tall\",\n      VLOOKUP(S1433, 'Data order'!$AC$92:$AD$101, 2, FALSE),\n      IF(R1433=\"Boordmaat\",\n          VLOOKUP(S1433, 'Data order'!$AC$102:$AD$116, 2, FALSE),\n          VLOOKUP(S1433, 'Data order'!$AC$2:$AD$91, 2, FALSE)\n      )\n  ),\n\"\")","v":""},null,null,null,null,"EUR",null,null,null,{"$error":"#DIV/0!"},0,0,null,"","","","","","","","","","",null,null,null,null,null,null,null,null,null,null,null,null,null,null,null,null,null,"ZWO"]
[null,null,null,null,null,{"$f":"VLOOKUP(G1434,'Data order'!Z:AA,2,0)","v":{"$error":"#N/A"}},null,null,null,null,null,null,null,null,{"$f":"VLOOKUP(N1434,Tabel10[[korte omschrijving]:[MCC3_CODE]],2,0)","v":{"$error":"#N/A"}},{"$f":"VLOOKUP(N1434,'Data order'!M:O,3,0)","v":{"$error":"#N/A"}},null,null,null,{"$f":"IFERROR(\n  IF(R1434=\"Big&Tall\",\n      VLOOKUP(S1434, 'Data order'!$AC$92:$AD$101, 2, FALSE),\n      IF(R1434=\"Boordmaat\",\n          VLOOKUP(S1434, 'Data order'!$AC$102:$AD$116, 2, FALSE),\n          VLOOKUP(S1434, 'Data order'!$AC$2:$AD$91, 2, FALSE)\n      )\n  ),\n\"\")","v":""},null,0,null,null,"EUR",null,null,null,{"$f":"AB1434/Z1434","v":{"$error":"#DIV/0!"}},{"$f":"U1434*Z1434","v":0},{"$f":"U1434*AB1434","v":0},null,"","","","","","","","","","",null,null,null,null,null,null,null,null,null,null,null,null,null,null,null,null,null,"ZWO"]
[null,null,null,null,null,{"$f":"VLOOKUP(G1435,'Data order'!Z:AA,2,0)","v":{"$error":"#N/A"}},null,null,null,null,null,null,null,null,{"$f":"VLOOKUP(N1435,Tabel10[[korte omschrijving]:[MCC3_CODE]],2,0)","v":{"$error":"#N/A"}},{"$f":"VLOOKUP(N1435,'Data order'!M:O,3,0)","v":{"$error":"#N/A"}},null,null,null,{"$f":"IFERROR(\n  IF(R1435=\"Big&Tall\",\n      VLOOKUP(S1435, 'Data order'!$AC$92:$AD$101, 2, FALSE),\n      IF(R1435=\"Boordmaat\",\n          VLOOKUP(S1435, 'Data order'!$AC$102:$AD$116, 2, FALSE),\n          VLOOKUP(S1435, 'Data order'!$AC$2:$AD$91, 2, FALSE)\n      )\n  ),\n\"\")","v":""},null,null,null,null,"EUR",null,null,null,{"$error":"#DIV/0!"},0,0,null,"","","","","","","","","","",null,null,null,null,null,null,null,null,null,null,null,null,null,null,null,null,null,"ZWO"]
[null,null,null,null,null,{"$f":"VLOOKUP(G1436,'Data order'!Z:AA,2,0)","v":{"$error":"#N/A"}},null,null,null,null,null,null,null,null,{"$f":"VLOOKUP(N1436,Tabel10[[korte omschrijving]:[MCC3_CODE]],2,0)","v":{"$error":"#N/A"}},{"$f":"VLOOKUP(N1436,'Data order'!M:O,3,0)","v":{"$error":"#N/A"}},null,null,null,{"$f":"IFERROR(\n  IF(R1436=\"Big&Tall\",\n      VLOOKUP(S1436, 'Data order'!$AC$92:$AD$101, 2, FALSE),\n      IF(R1436=\"Boordmaat\",\n          VLOOKUP(S1436, 'Data order'!$AC$102:$AD$116, 2, FALSE),\n          VLOOKUP(S1436, 'Data order'!$AC$2:$AD$91, 2, FALSE)\n      )\n  ),\n\"\")","v":""},null,null,null,null,"EUR",null,null,null,{"$error":"#DIV/0!"},0,0,null,"","","","","","","","","","",null,null,null,null,null,null,null,null,null,null,null,null,null,null,null,null,null,"ZWO"]
[null,null,null,null,null,{"$f":"VLOOKUP(G1437,'Data order'!Z:AA,2,0)","v":{"$error":"#N/A"}},null,null,null,null,null,null,null,null,{"$f":"VLOOKUP(N1437,Tabel10[[korte omschrijving]:[MCC3_CODE]],2,0)","v":{"$error":"#N/A"}},{"$f":"VLOOKUP(N1437,'Data order'!M:O,3,0)","v":{"$error":"#N/A"}},null,null,null,{"$f":"IFERROR(\n  IF(R1437=\"Big&Tall\",\n      VLOOKUP(S1437, 'Data order'!$AC$92:$AD$101, 2, FALSE),\n      IF(R1437=\"Boordmaat\",\n          VLOOKUP(S1437, 'Data order'!$AC$102:$AD$116, 2, FALSE),\n          VLOOKUP(S1437, 'Data order'!$AC$2:$AD$91, 2, FALSE)\n      )\n  ),\n\"\")","v":""},null,null,null,null,"EUR",null,null,null,{"$error":"#DIV/0!"},0,0,null,"","","","","","","","","","",null,null,null,null,null,null,null,null,null,null,null,null,null,null,null,null,null,"ZWO"]
[null,null,null,null,null,{"$f":"VLOOKUP(G1438,'Data order'!Z:AA,2,0)","v":{"$error":"#N/A"}},null,null,null,null,null,null,null,null,{"$f":"VLOOKUP(N1438,Tabel10[[korte omschrijving]:[MCC3_CODE]],2,0)","v":{"$error":"#N/A"}},{"$f":"VLOOKUP(N1438,'Data order'!M:O,3,0)","v":{"$error":"#N/A"}},null,null,null,{"$f":"IFERROR(\n  IF(R1438=\"Big&Tall\",\n      VLOOKUP(S1438, 'Data order'!$AC$92:$AD$101, 2, FALSE),\n      IF(R1438=\"Boordmaat\",\n          VLOOKUP(S1438, 'Data order'!$AC$102:$AD$116, 2, FALSE),\n          VLOOKUP(S1438, 'Data order'!$AC$2:$AD$91, 2, FALSE)\n      )\n  ),\n\"\")","v":""},null,null,null,null,"EUR",null,null,null,{"$error":"#DIV/0!"},0,0,null,"","","","","","","","","","",null,null,null,null,null,null,null,null,null,null,null,null,null,null,null,null,null,"ZWO"]
[null,null,null,null,null,{"$f":"VLOOKUP(G1439,'Data order'!Z:AA,2,0)","v":{"$error":"#N/A"}},null,null,null,null,null,null,null,null,{"$f":"VLOOKUP(N1439,Tabel10[[korte omschrijving]:[MCC3_CODE]],2,0)","v":{"$error":"#N/A"}},{"$f":"VLOOKUP(N1439,'Data order'!M:O,3,0)","v":{"$error":"#N/A"}},null,null,null,{"$f":"IFERROR(\n  IF(R1439=\"Big&Tall\",\n      VLOOKUP(S1439, 'Data order'!$AC$92:$AD$101, 2, FALSE),\n      IF(R1439=\"Boordmaat\",\n          VLOOKUP(S1439, 'Data order'!$AC$102:$AD$116, 2, FALSE),\n          VLOOKUP(S1439, 'Data order'!$AC$2:$AD$91, 2, FALSE)\n      )\n  ),\n\"\")","v":""},null,null,null,null,"EUR",null,null,null,{"$error":"#DIV/0!"},0,0,null,"","","","","","","","","","",null,null,null,null,null,null,null,null,null,null,null,null,null,null,null,null,null,"ZWO"]
[null,null,null,null,null,{"$f":"VLOOKUP(G1440,'Data order'!Z:AA,2,0)","v":{"$error":"#N/A"}},null,null,null,null,null,null,null,null,{"$f":"VLOOKUP(N1440,Tabel10[[korte omschrijving]:[MCC3_CODE]],2,0)","v":{"$error":"#N/A"}},{"$f":"VLOOKUP(N1440,'Data order'!M:O,3,0)","v":{"$error":"#N/A"}},null,null,null,{"$f":"IFERROR(\n  IF(R1440=\"Big&Tall\",\n      VLOOKUP(S1440, 'Data order'!$AC$92:$AD$101, 2, FALSE),\n      IF(R1440=\"Boordmaat\",\n          VLOOKUP(S1440, 'Data order'!$AC$102:$AD$116, 2, FALSE),\n          VLOOKUP(S1440, 'Data order'!$AC$2:$AD$91, 2, FALSE)\n      )\n  ),\n\"\")","v":""},null,0,null,null,"EUR",null,null,null,{"$f":"AB1440/Z1440","v":{"$error":"#DIV/0!"}},{"$f":"U1440*Z1440","v":0},{"$f":"U1440*AB1440","v":0},null,"","","","","","","","","","",null,null,null,null,null,null,null,null,null,null,null,null,null,null,null,null,null,"ZWO"]
[null,null,null,null,null,{"$f":"VLOOKUP(G1441,'Data order'!Z:AA,2,0)","v":{"$error":"#N/A"}},null,null,null,null,null,null,null,null,{"$f":"VLOOKUP(N1441,Tabel10[[korte omschrijving]:[MCC3_CODE]],2,0)","v":{"$error":"#N/A"}},{"$f":"VLOOKUP(N1441,'Data order'!M:O,3,0)","v":{"$error":"#N/A"}},null,null,null,{"$f":"IFERROR(\n  IF(R1441=\"Big&Tall\",\n      VLOOKUP(S1441, 'Data order'!$AC$92:$AD$101, 2, FALSE),\n      IF(R1441=\"Boordmaat\",\n          VLOOKUP(S1441, 'Data order'!$AC$102:$AD$116, 2, FALSE),\n          VLOOKUP(S1441, 'Data order'!$AC$2:$AD$91, 2, FALSE)\n      )\n  ),\n\"\")","v":""},null,null,null,null,"EUR",null,null,null,{"$error":"#DIV/0!"},0,0,null,"","","","","","","","","","",null,null,null,null,null,null,null,null,null,null,null,null,null,null,null,null,null,"ZWO"]
[null,null,null,null,null,{"$f":"VLOOKUP(G1442,'Data order'!Z:AA,2,0)","v":{"$error":"#N/A"}},null,null,null,null,null,null,null,null,{"$f":"VLOOKUP(N1442,Tabel10[[korte omschrijving]:[MCC3_CODE]],2,0)","v":{"$error":"#N/A"}},{"$f":"VLOOKUP(N1442,'Data order'!M:O,3,0)","v":{"$error":"#N/A"}},null,null,null,{"$f":"IFERROR(\n  IF(R1442=\"Big&Tall\",\n      VLOOKUP(S1442, 'Data order'!$AC$92:$AD$101, 2, FALSE),\n      IF(R1442=\"Boordmaat\",\n          VLOOKUP(S1442, 'Data order'!$AC$102:$AD$116, 2, FALSE),\n          VLOOKUP(S1442, 'Data order'!$AC$2:$AD$91, 2, FALSE)\n      )\n  ),\n\"\")","v":""},null,null,null,null,"EUR",null,null,null,{"$error":"#DIV/0!"},0,0,null,"","","","","","","","","","",null,null,null,null,null,null,null,null,null,null,null,null,null,null,null,null,null,"ZWO"]
[null,null,null,null,null,{"$f":"VLOOKUP(G1443,'Data order'!Z:AA,2,0)","v":{"$error":"#N/A"}},null,null,null,null,null,null,null,null,{"$f":"VLOOKUP(N1443,Tabel10[[korte omschrijving]:[MCC3_CODE]],2,0)","v":{"$error":"#N/A"}},{"$f":"VLOOKUP(N1443,'Data order'!M:O,3,0)","v":{"$error":"#N/A"}},null,null,null,{"$f":"IFERROR(\n  IF(R1443=\"Big&Tall\",\n      VLOOKUP(S1443, 'Data order'!$AC$92:$AD$101, 2, FALSE),\n      IF(R1443=\"Boordmaat\",\n          VLOOKUP(S1443, 'Data order'!$AC$102:$AD$116, 2, FALSE),\n          VLOOKUP(S1443, 'Data order'!$AC$2:$AD$91, 2, FALSE)\n      )\n  ),\n\"\")","v":""},null,null,null,null,"EUR",null,null,null,{"$error":"#DIV/0!"},0,0,null,"","","","","","","","","","",null,null,null,null,null,null,null,null,null,null,null,null,null,null,null,null,null,"ZWO"]
[null,null,null,null,null,{"$f":"VLOOKUP(G1444,'Data order'!Z:AA,2,0)","v":{"$error":"#N/A"}},null,null,null,null,null,null,null,null,{"$f":"VLOOKUP(N1444,Tabel10[[korte omschrijving]:[MCC3_CODE]],2,0)","v":{"$error":"#N/A"}},{"$f":"VLOOKUP(N1444,'Data order'!M:O,3,0)","v":{"$error":"#N/A"}},null,null,null,{"$f":"IFERROR(\n  IF(R1444=\"Big&Tall\",\n      VLOOKUP(S1444, 'Data order'!$AC$92:$AD$101, 2, FALSE),\n      IF(R1444=\"Boordmaat\",\n          VLOOKUP(S1444, 'Data order'!$AC$102:$AD$116, 2, FALSE),\n          VLOOKUP(S1444, 'Data order'!$AC$2:$AD$91, 2, FALSE)\n      )\n  ),\n\"\")","v":""},null,null,null,null,"EUR",null,null,null,{"$error":"#DIV/0!"},0,0,null,"","","","","","","","","","",null,null,null,null,null,null,null,null,null,null,null,null,null,null,null,null,null,"ZWO"]
[null,null,null,null,null,{"$f":"VLOOKUP(G1445,'Data order'!Z:AA,2,0)","v":{"$error":"#N/A"}},null,null,null,null,null,null,null,null,{"$f":"VLOOKUP(N1445,Tabel10[[korte omschrijving]:[MCC3_CODE]],2,0)","v":{"$error":"#N/A"}},{"$f":"VLOOKUP(N1445,'Data order'!M:O,3,0)","v":{"$error":"#N/A"}},null,null,null,{"$f":"IFERROR(\n  IF(R1445=\"Big&Tall\",\n      VLOOKUP(S1445, 'Data order'!$AC$92:$AD$101, 2, FALSE),\n      IF(R1445=\"Boordmaat\",\n          VLOOKUP(S1445, 'Data order'!$AC$102:$AD$116, 2, FALSE),\n          VLOOKUP(S1445, 'Data order'!$AC$2:$AD$91, 2, FALSE)\n      )\n  ),\n\"\")","v":""},null,null,null,null,"EUR",null,null,null,{"$error":"#DIV/0!"},0,0,null,"","","","","","","","","","",null,null,null,null,null,null,null,null,null,null,null,null,null,null,null,null,null,"ZWO"]
[null,null,null,null,null,{"$f":"VLOOKUP(G1446,'Data order'!Z:AA,2,0)","v":{"$error":"#N/A"}},null,null,null,null,null,null,null,null,{"$f":"VLOOKUP(N1446,Tabel10[[korte omschrijving]:[MCC3_CODE]],2,0)","v":{"$error":"#N/A"}},{"$f":"VLOOKUP(N1446,'Data order'!M:O,3,0)","v":{"$error":"#N/A"}},null,null,null,{"$f":"IFERROR(\n  IF(R1446=\"Big&Tall\",\n      VLOOKUP(S1446, 'Data order'!$AC$92:$AD$101, 2, FALSE),\n      IF(R1446=\"Boordmaat\",\n          VLOOKUP(S1446, 'Data order'!$AC$102:$AD$116, 2, FALSE),\n          VLOOKUP(S1446, 'Data order'!$AC$2:$AD$91, 2, FALSE)\n      )\n  ),\n\"\")","v":""},null,0,null,null,"EUR",null,null,null,{"$f":"AB1446/Z1446","v":{"$error":"#DIV/0!"}},{"$f":"U1446*Z1446","v":0},{"$f":"U1446*AB1446","v":0},null,"","","","","","","","","","",null,null,null,null,null,null,null,null,null,null,null,null,null,null,null,null,null,"ZWO"]
[null,null,null,null,null,{"$f":"VLOOKUP(G1447,'Data order'!Z:AA,2,0)","v":{"$error":"#N/A"}},null,null,null,null,null,null,null,null,{"$f":"VLOOKUP(N1447,Tabel10[[korte omschrijving]:[MCC3_CODE]],2,0)","v":{"$error":"#N/A"}},{"$f":"VLOOKUP(N1447,'Data order'!M:O,3,0)","v":{"$error":"#N/A"}},null,null,null,{"$f":"IFERROR(\n  IF(R1447=\"Big&Tall\",\n      VLOOKUP(S1447, 'Data order'!$AC$92:$AD$101, 2, FALSE),\n      IF(R1447=\"Boordmaat\",\n          VLOOKUP(S1447, 'Data order'!$AC$102:$AD$116, 2, FALSE),\n          VLOOKUP(S1447, 'Data order'!$AC$2:$AD$91, 2, FALSE)\n      )\n  ),\n\"\")","v":""},null,null,null,null,"EUR",null,null,null,{"$error":"#DIV/0!"},0,0,null,"","","","","","","","","","",null,null,null,null,null,null,null,null,null,null,null,null,null,null,null,null,null,"ZWO"]
[null,null,null,null,null,{"$f":"VLOOKUP(G1448,'Data order'!Z:AA,2,0)","v":{"$error":"#N/A"}},null,null,null,null,null,null,null,null,{"$f":"VLOOKUP(N1448,Tabel10[[korte omschrijving]:[MCC3_CODE]],2,0)","v":{"$error":"#N/A"}},{"$f":"VLOOKUP(N1448,'Data order'!M:O,3,0)","v":{"$error":"#N/A"}},null,null,null,{"$f":"IFERROR(\n  IF(R1448=\"Big&Tall\",\n      VLOOKUP(S1448, 'Data order'!$AC$92:$AD$101, 2, FALSE),\n      IF(R1448=\"Boordmaat\",\n          VLOOKUP(S1448, 'Data order'!$AC$102:$AD$116, 2, FALSE),\n          VLOOKUP(S1448, 'Data order'!$AC$2:$AD$91, 2, FALSE)\n      )\n  ),\n\"\")","v":""},null,null,null,null,"EUR",null,null,null,{"$error":"#DIV/0!"},0,0,null,"","","","","","","","","","",null,null,null,null,null,null,null,null,null,null,null,null,null,null,null,null,null,"ZWO"]
[null,null,null,null,null,{"$f":"VLOOKUP(G1449,'Data order'!Z:AA,2,0)","v":{"$error":"#N/A"}},null,null,null,null,null,null,null,null,{"$f":"VLOOKUP(N1449,Tabel10[[korte omschrijving]:[MCC3_CODE]],2,0)","v":{"$error":"#N/A"}},{"$f":"VLOOKUP(N1449,'Data order'!M:O,3,0)","v":{"$error":"#N/A"}},null,null,null,{"$f":"IFERROR(\n  IF(R1449=\"Big&Tall\",\n      VLOOKUP(S1449, 'Data order'!$AC$92:$AD$101, 2, FALSE),\n      IF(R1449=\"Boordmaat\",\n          VLOOKUP(S1449, 'Data order'!$AC$102:$AD$116, 2, FALSE),\n          VLOOKUP(S1449, 'Data order'!$AC$2:$AD$91, 2, FALSE)\n      )\n  ),\n\"\")","v":""},null,null,null,null,"EUR",null,null,null,{"$error":"#DIV/0!"},0,0,null,"","","","","","","","","","",null,null,null,null,null,null,null,null,null,null,null,null,null,null,null,null,null,"ZWO"]
[null,null,null,null,null,{"$f":"VLOOKUP(G1450,'Data order'!Z:AA,2,0)","v":{"$error":"#N/A"}},null,null,null,null,null,null,null,null,{"$f":"VLOOKUP(N1450,Tabel10[[korte omschrijving]:[MCC3_CODE]],2,0)","v":{"$error":"#N/A"}},{"$f":"VLOOKUP(N1450,'Data order'!M:O,3,0)","v":{"$error":"#N/A"}},null,null,null,{"$f":"IFERROR(\n  IF(R1450=\"Big&Tall\",\n      VLOOKUP(S1450, 'Data order'!$AC$92:$AD$101, 2, FALSE),\n      IF(R1450=\"Boordmaat\",\n          VLOOKUP(S1450, 'Data order'!$AC$102:$AD$116, 2, FALSE),\n          VLOOKUP(S1450, 'Data order'!$AC$2:$AD$91, 2, FALSE)\n      )\n  ),\n\"\")","v":""},null,null,null,null,"EUR",null,null,null,{"$error":"#DIV/0!"},0,0,null,"","","","","","","","","","",null,null,null,null,null,null,null,null,null,null,null,null,null,null,null,null,null,"ZWO"]
[null,null,null,null,null,{"$f":"VLOOKUP(G1451,'Data order'!Z:AA,2,0)","v":{"$error":"#N/A"}},null,null,null,null,null,null,null,null,{"$f":"VLOOKUP(N1451,Tabel10[[korte omschrijving]:[MCC3_CODE]],2,0)","v":{"$error":"#N/A"}},{"$f":"VLOOKUP(N1451,'Data order'!M:O,3,0)","v":{"$error":"#N/A"}},null,null,null,{"$f":"IFERROR(\n  IF(R1451=\"Big&Tall\",\n      VLOOKUP(S1451, 'Data order'!$AC$92:$AD$101, 2, FALSE),\n      IF(R1451=\"Boordmaat\",\n          VLOOKUP(S1451, 'Data order'!$AC$102:$AD$116, 2, FALSE),\n          VLOOKUP(S1451, 'Data order'!$AC$2:$AD$91, 2, FALSE)\n      )\n  ),\n\"\")","v":""},null,null,null,null,"EUR",null,null,null,{"$error":"#DIV/0!"},0,0,null,"","","","","","","","","","",null,null,null,null,null,null,null,null,null,null,null,null,null,null,null,null,null,"ZWO"]
[null,null,null,null,null,{"$f":"VLOOKUP(G1452,'Data order'!Z:AA,2,0)","v":{"$error":"#N/A"}},null,null,null,null,null,null,null,null,{"$f":"VLOOKUP(N1452,Tabel10[[korte omschrijving]:[MCC3_CODE]],2,0)","v":{"$error":"#N/A"}},{"$f":"VLOOKUP(N1452,'Data order'!M:O,3,0)","v":{"$error":"#N/A"}},null,null,null,{"$f":"IFERROR(\n  IF(R1452=\"Big&Tall\",\n      VLOOKUP(S1452, 'Data order'!$AC$92:$AD$101, 2, FALSE),\n      IF(R1452=\"Boordmaat\",\n          VLOOKUP(S1452, 'Data order'!$AC$102:$AD$116, 2, FALSE),\n          VLOOKUP(S1452, 'Data order'!$AC$2:$AD$91, 2, FALSE)\n      )\n  ),\n\"\")","v":""},null,0,null,null,"EUR",null,null,null,{"$f":"AB1452/Z1452","v":{"$error":"#DIV/0!"}},{"$f":"U1452*Z1452","v":0},{"$f":"U1452*AB1452","v":0},null,"","","","","","","","","","",null,null,null,null,null,null,null,null,null,null,null,null,null,null,null,null,null,"ZWO"]
[null,null,null,null,null,{"$f":"VLOOKUP(G1453,'Data order'!Z:AA,2,0)","v":{"$error":"#N/A"}},null,null,null,null,null,null,null,null,{"$f":"VLOOKUP(N1453,Tabel10[[korte omschrijving]:[MCC3_CODE]],2,0)","v":{"$error":"#N/A"}},{"$f":"VLOOKUP(N1453,'Data order'!M:O,3,0)","v":{"$error":"#N/A"}},null,null,null,{"$f":"IFERROR(\n  IF(R1453=\"Big&Tall\",\n      VLOOKUP(S1453, 'Data order'!$AC$92:$AD$101, 2, FALSE),\n      IF(R1453=\"Boordmaat\",\n          VLOOKUP(S1453, 'Data order'!$AC$102:$AD$116, 2, FALSE),\n          VLOOKUP(S1453, 'Data order'!$AC$2:$AD$91, 2, FALSE)\n      )\n  ),\n\"\")","v":""},null,null,null,null,"EUR",null,null,null,{"$error":"#DIV/0!"},0,0,null,"","","","","","","","","","",null,null,null,null,null,null,null,null,null,null,null,null,null,null,null,null,null,"ZWO"]
[null,null,null,null,null,{"$f":"VLOOKUP(G1454,'Data order'!Z:AA,2,0)","v":{"$error":"#N/A"}},null,null,null,null,null,null,null,null,{"$f":"VLOOKUP(N1454,Tabel10[[korte omschrijving]:[MCC3_CODE]],2,0)","v":{"$error":"#N/A"}},{"$f":"VLOOKUP(N1454,'Data order'!M:O,3,0)","v":{"$error":"#N/A"}},null,null,null,{"$f":"IFERROR(\n  IF(R1454=\"Big&Tall\",\n      VLOOKUP(S1454, 'Data order'!$AC$92:$AD$101, 2, FALSE),\n      IF(R1454=\"Boordmaat\",\n          VLOOKUP(S1454, 'Data order'!$AC$102:$AD$116, 2, FALSE),\n          VLOOKUP(S1454, 'Data order'!$AC$2:$AD$91, 2, FALSE)\n      )\n  ),\n\"\")","v":""},null,null,null,null,"EUR",null,null,null,{"$error":"#DIV/0!"},0,0,null,"","","","","","","","","","",null,null,null,null,null,null,null,null,null,null,null,null,null,null,null,null,null,"ZWO"]
[null,null,null,null,null,{"$f":"VLOOKUP(G1455,'Data order'!Z:AA,2,0)","v":{"$error":"#N/A"}},null,null,null,null,null,null,null,null,{"$f":"VLOOKUP(N1455,Tabel10[[korte omschrijving]:[MCC3_CODE]],2,0)","v":{"$error":"#N/A"}},{"$f":"VLOOKUP(N1455,'Data order'!M:O,3,0)","v":{"$error":"#N/A"}},null,null,null,{"$f":"IFERROR(\n  IF(R1455=\"Big&Tall\",\n      VLOOKUP(S1455, 'Data order'!$AC$92:$AD$101, 2, FALSE),\n      IF(R1455=\"Boordmaat\",\n          VLOOKUP(S1455, 'Data order'!$AC$102:$AD$116, 2, FALSE),\n          VLOOKUP(S1455, 'Data order'!$AC$2:$AD$91, 2, FALSE)\n      )\n  ),\n\"\")","v":""},null,null,null,null,"EUR",null,null,null,{"$error":"#DIV/0!"},0,0,null,"","","","","","","","","","",null,null,null,null,null,null,null,null,null,null,null,null,null,null,null,null,null,"ZWO"]
[null,null,null,null,null,{"$f":"VLOOKUP(G1456,'Data order'!Z:AA,2,0)","v":{"$error":"#N/A"}},null,null,null,null,null,null,null,null,{"$f":"VLOOKUP(N1456,Tabel10[[korte omschrijving]:[MCC3_CODE]],2,0)","v":{"$error":"#N/A"}},{"$f":"VLOOKUP(N1456,'Data order'!M:O,3,0)","v":{"$error":"#N/A"}},null,null,null,{"$f":"IFERROR(\n  IF(R1456=\"Big&Tall\",\n      VLOOKUP(S1456, 'Data order'!$AC$92:$AD$101, 2, FALSE),\n      IF(R1456=\"Boordmaat\",\n          VLOOKUP(S1456, 'Data order'!$AC$102:$AD$116, 2, FALSE),\n          VLOOKUP(S1456, 'Data order'!$AC$2:$AD$91, 2, FALSE)\n      )\n  ),\n\"\")","v":""},null,null,null,null,"EUR",null,null,null,{"$error":"#DIV/0!"},0,0,null,"","","","","","","","","","",null,null,null,null,null,null,null,null,null,null,null,null,null,null,null,null,null,"ZWO"]
[null,null,null,null,null,{"$f":"VLOOKUP(G1457,'Data order'!Z:AA,2,0)","v":{"$error":"#N/A"}},null,null,null,null,null,null,null,null,{"$f":"VLOOKUP(N1457,Tabel10[[korte omschrijving]:[MCC3_CODE]],2,0)","v":{"$error":"#N/A"}},{"$f":"VLOOKUP(N1457,'Data order'!M:O,3,0)","v":{"$error":"#N/A"}},null,null,null,{"$f":"IFERROR(\n  IF(R1457=\"Big&Tall\",\n      VLOOKUP(S1457, 'Data order'!$AC$92:$AD$101, 2, FALSE),\n      IF(R1457=\"Boordmaat\",\n          VLOOKUP(S1457, 'Data order'!$AC$102:$AD$116, 2, FALSE),\n          VLOOKUP(S1457, 'Data order'!$AC$2:$AD$91, 2, FALSE)\n      )\n  ),\n\"\")","v":""},null,null,null,null,"EUR",null,null,null,{"$error":"#DIV/0!"},0,0,null,"","","","","","","","","","",null,null,null,null,null,null,null,null,null,null,null,null,null,null,null,null,null,"ZWO"]
[null,null,null,null,null,{"$f":"VLOOKUP(G1458,'Data order'!Z:AA,2,0)","v":{"$error":"#N/A"}},null,null,null,null,null,null,null,null,{"$f":"VLOOKUP(N1458,Tabel10[[korte omschrijving]:[MCC3_CODE]],2,0)","v":{"$error":"#N/A"}},{"$f":"VLOOKUP(N1458,'Data order'!M:O,3,0)","v":{"$error":"#N/A"}},null,null,null,{"$f":"IFERROR(\n  IF(R1458=\"Big&Tall\",\n      VLOOKUP(S1458, 'Data order'!$AC$92:$AD$101, 2, FALSE),\n      IF(R1458=\"Boordmaat\",\n          VLOOKUP(S1458, 'Data order'!$AC$102:$AD$116, 2, FALSE),\n          VLOOKUP(S1458, 'Data order'!$AC$2:$AD$91, 2, FALSE)\n      )\n  ),\n\"\")","v":""},null,0,null,null,"EUR",null,null,null,{"$f":"AB1458/Z1458","v":{"$error":"#DIV/0!"}},{"$f":"U1458*Z1458","v":0},{"$f":"U1458*AB1458","v":0},null,"","","","","","","","","","",null,null,null,null,null,null,null,null,null,null,null,null,null,null,null,null,null,"ZWO"]
[null,null,null,null,null,{"$f":"VLOOKUP(G1459,'Data order'!Z:AA,2,0)","v":{"$error":"#N/A"}},null,null,null,null,null,null,null,null,{"$f":"VLOOKUP(N1459,Tabel10[[korte omschrijving]:[MCC3_CODE]],2,0)","v":{"$error":"#N/A"}},{"$f":"VLOOKUP(N1459,'Data order'!M:O,3,0)","v":{"$error":"#N/A"}},null,null,null,{"$f":"IFERROR(\n  IF(R1459=\"Big&Tall\",\n      VLOOKUP(S1459, 'Data order'!$AC$92:$AD$101, 2, FALSE),\n      IF(R1459=\"Boordmaat\",\n          VLOOKUP(S1459, 'Data order'!$AC$102:$AD$116, 2, FALSE),\n          VLOOKUP(S1459, 'Data order'!$AC$2:$AD$91, 2, FALSE)\n      )\n  ),\n\"\")","v":""},null,null,null,null,"EUR",null,null,null,{"$error":"#DIV/0!"},0,0,null,"","","","","","","","","","",null,null,null,null,null,null,null,null,null,null,null,null,null,null,null,null,null,"ZWO"]
[null,null,null,null,null,{"$f":"VLOOKUP(G1460,'Data order'!Z:AA,2,0)","v":{"$error":"#N/A"}},null,null,null,null,null,null,null,null,{"$f":"VLOOKUP(N1460,Tabel10[[korte omschrijving]:[MCC3_CODE]],2,0)","v":{"$error":"#N/A"}},{"$f":"VLOOKUP(N1460,'Data order'!M:O,3,0)","v":{"$error":"#N/A"}},null,null,null,{"$f":"IFERROR(\n  IF(R1460=\"Big&Tall\",\n      VLOOKUP(S1460, 'Data order'!$AC$92:$AD$101, 2, FALSE),\n      IF(R1460=\"Boordmaat\",\n          VLOOKUP(S1460, 'Data order'!$AC$102:$AD$116, 2, FALSE),\n          VLOOKUP(S1460, 'Data order'!$AC$2:$AD$91, 2, FALSE)\n      )\n  ),\n\"\")","v":""},null,null,null,null,"EUR",null,null,null,{"$error":"#DIV/0!"},0,0,null,"","","","","","","","","","",null,null,null,null,null,null,null,null,null,null,null,null,null,null,null,null,null,"ZWO"]
[null,null,null,null,null,{"$f":"VLOOKUP(G1461,'Data order'!Z:AA,2,0)","v":{"$error":"#N/A"}},null,null,null,null,null,null,null,null,{"$f":"VLOOKUP(N1461,Tabel10[[korte omschrijving]:[MCC3_CODE]],2,0)","v":{"$error":"#N/A"}},{"$f":"VLOOKUP(N1461,'Data order'!M:O,3,0)","v":{"$error":"#N/A"}},null,null,null,{"$f":"IFERROR(\n  IF(R1461=\"Big&Tall\",\n      VLOOKUP(S1461, 'Data order'!$AC$92:$AD$101, 2, FALSE),\n      IF(R1461=\"Boordmaat\",\n          VLOOKUP(S1461, 'Data order'!$AC$102:$AD$116, 2, FALSE),\n          VLOOKUP(S1461, 'Data order'!$AC$2:$AD$91, 2, FALSE)\n      )\n  ),\n\"\")","v":""},null,null,null,null,"EUR",null,null,null,{"$error":"#DIV/0!"},0,0,null,"","","","","","","","","","",null,null,null,null,null,null,null,null,null,null,null,null,null,null,null,null,null,"ZWO"]
[null,null,null,null,null,{"$f":"VLOOKUP(G1462,'Data order'!Z:AA,2,0)","v":{"$error":"#N/A"}},null,null,null,null,null,null,null,null,{"$f":"VLOOKUP(N1462,Tabel10[[korte omschrijving]:[MCC3_CODE]],2,0)","v":{"$error":"#N/A"}},{"$f":"VLOOKUP(N1462,'Data order'!M:O,3,0)","v":{"$error":"#N/A"}},null,null,null,{"$f":"IFERROR(\n  IF(R1462=\"Big&Tall\",\n      VLOOKUP(S1462, 'Data order'!$AC$92:$AD$101, 2, FALSE),\n      IF(R1462=\"Boordmaat\",\n          VLOOKUP(S1462, 'Data order'!$AC$102:$AD$116, 2, FALSE),\n          VLOOKUP(S1462, 'Data order'!$AC$2:$AD$91, 2, FALSE)\n      )\n  ),\n\"\")","v":""},null,null,null,null,"EUR",null,null,null,{"$error":"#DIV/0!"},0,0,null,"","","","","","","","","","",null,null,null,null,null,null,null,null,null,null,null,null,null,null,null,null,null,"ZWO"]
[null,null,null,null,null,{"$f":"VLOOKUP(G1463,'Data order'!Z:AA,2,0)","v":{"$error":"#N/A"}},null,null,null,null,null,null,null,null,{"$f":"VLOOKUP(N1463,Tabel10[[korte omschrijving]:[MCC3_CODE]],2,0)","v":{"$error":"#N/A"}},{"$f":"VLOOKUP(N1463,'Data order'!M:O,3,0)","v":{"$error":"#N/A"}},null,null,null,{"$f":"IFERROR(\n  IF(R1463=\"Big&Tall\",\n      VLOOKUP(S1463, 'Data order'!$AC$92:$AD$101, 2, FALSE),\n      IF(R1463=\"Boordmaat\",\n          VLOOKUP(S1463, 'Data order'!$AC$102:$AD$116, 2, FALSE),\n          VLOOKUP(S1463, 'Data order'!$AC$2:$AD$91, 2, FALSE)\n      )\n  ),\n\"\")","v":""},null,null,null,null,"EUR",null,null,null,{"$error":"#DIV/0!"},0,0,null,"","","","","","","","","","",null,null,null,null,null,null,null,null,null,null,null,null,null,null,null,null,null,"ZWO"]
[null,null,null,null,null,{"$f":"VLOOKUP(G1464,'Data order'!Z:AA,2,0)","v":{"$error":"#N/A"}},null,null,null,null,null,null,null,null,{"$f":"VLOOKUP(N1464,Tabel10[[korte omschrijving]:[MCC3_CODE]],2,0)","v":{"$error":"#N/A"}},{"$f":"VLOOKUP(N1464,'Data order'!M:O,3,0)","v":{"$error":"#N/A"}},null,null,null,{"$f":"IFERROR(\n  IF(R1464=\"Big&Tall\",\n      VLOOKUP(S1464, 'Data order'!$AC$92:$AD$101, 2, FALSE),\n      IF(R1464=\"Boordmaat\",\n          VLOOKUP(S1464, 'Data order'!$AC$102:$AD$116, 2, FALSE),\n          VLOOKUP(S1464, 'Data order'!$AC$2:$AD$91, 2, FALSE)\n      )\n  ),\n\"\")","v":""},null,0,null,null,"EUR",null,null,null,{"$f":"AB1464/Z1464","v":{"$error":"#DIV/0!"}},{"$f":"U1464*Z1464","v":0},{"$f":"U1464*AB1464","v":0},null,{"$f":"IF(AF1464 <> \"\",\n    IF(ISNUMBER(VALUE(LEFT(AF1464, FIND(\"%\", AF1464)-1))),\n        VALUE(LEFT(AF1464, FIND(\"%\", AF1464)-1)),\n        \"Invalid format\"),\n    \"\")","v":""},{"$f":"IF(AF1464 <> \"\",\n    IF(ISNUMBER(VALUE(LEFT(AF1464, FIND(\"%\", AF1464)-1))) * ISNUMBER(FIND(\"%\", AF1464 & \"wol\")) > 0,\n        TRIM(MID(AF1464, FIND(\"%\", AF1464)+1, FIND(\"/\", AF1464 & \"/\")-FIND(\"%\", AF1464)-1)),\n        \"Invalid format\"),\n    \"\")","v":""},{"$f":"IF(AF1464 <> \"\",\n    IF(ISNUMBER(VALUE(MID(AF1464, FIND(\"/\", AF1464) + 1, FIND(\"%\", AF1464, FIND(\"/\", AF1464)) - FIND(\"/\", AF1464) - 1))),\n        VALUE(MID(AF1464, FIND(\"/\", AF1464) + 1, FIND(\"%\", AF1464, FIND(\"/\", AF1464)) - FIND(\"/\", AF1464) - 1)),\n        \"\"),\n    \"\")","v":""},{"$f":"IF(AF1464 <> \"\",\n    IFERROR(TRIM(MID(AF1464, FIND(\"%\", AF1464, FIND(\"/\", AF1464)+1)+2,\n        IFERROR(FIND(\"/\", AF1464 & \"/\", FIND(\"/\", AF1464)+1)-FIND(\"%\", AF1464, FIND(\"/\", AF1464)+1)-2, LEN(AF1464)-FIND(\"%\", AF1464, FIND(\"/\", AF1464)+1)-1))),\n        \"\"),\n    \"\")","v":""},{"$f":"IF(AF1464 <> \"\",\n    IF(ISNUMBER(VALUE(MID(AF1464, FIND(\"/\", AF1464, FIND(\"/\", AF1464)+1) + 1, FIND(\"%\", AF1464, FIND(\"/\", AF1464, FIND(\"/\", AF1464)+1)) - FIND(\"/\", AF1464, FIND(\"/\", AF1464)+1) - 1))),\n        VALUE(MID(AF1464, FIND(\"/\", AF1464, FIND(\"/\", AF1464)+1) + 1, FIND(\"%\", AF1464, FIND(\"/\", AF1464, FIND(\"/\", AF1464)+1)) - FIND(\"/\", AF1464, FIND(\"/\", AF1464)+1) - 1)),\n        \"\"),\n    \"\")","v":""},{"$f":"IF(AF1464 <> \"\",\n    IFERROR(\n        TRIM(MID(AF1464,\n            FIND(\"%\", AF1464, FIND(\"%\", AF1464, FIND(\"%\", AF1464)+1)+1)+1,\n            FIND(\"/\", AF1464 & \"/\", FIND(\"%\", AF1464, FIND(\"%\", AF1464, FIND(\"%\", AF1464)+1)+1))-FIND(\"%\", AF1464, FIND(\"%\", AF1464, FIND(\"%\", AF1464)+1)+1)-1)\n        ),\n        \"\"\n    ),\n    \"\"\n)","v":""},{"$f":"IF(AF1464 <> \"\",\n    IF(ISNUMBER(VALUE(MID(AF1464, FIND(\"/\", AF1464, FIND(\"/\", AF1464, FIND(\"/\", AF1464)+1)+1) + 1, FIND(\"%\", AF1464, FIND(\"/\", AF1464, FIND(\"/\", AF1464, FIND(\"/\", AF1464)+1)+1)) - FIND(\"/\", AF1464, FIND(\"/\", AF1464, FIND(\"/\", AF1464)+1)+1) - 1))),\n        VALUE(MID(AF1464, FIND(\"/\", AF1464, FIND(\"/\", AF1464, FIND(\"/\", AF1464)+1)+1) + 1, FIND(\"%\", AF1464, FIND(\"/\", AF1464, FIND(\"/\", AF1464, FIND(\"/\", AF1464)+1)+1)) - FIND(\"/\", AF1464, FIND(\"/\", AF1464, FIND(\"/\", AF1464)+1)+1) - 1)),\n        \"\"),\n    \"\")","v":""},{"$f":"IF(AF1464 <> \"\",\n    IFERROR(TRIM(MID(AF1464, FIND(\"%\", AF1464, FIND(\"/\", AF1464, FIND(\"/\", AF1464, FIND(\"/\", AF1464)+1)+1)+1)+2,\n        IFERROR(FIND(\"/\", AF1464, FIND(\"/\", AF1464, FIND(\"/\", AF1464, FIND(\"/\", AF1464)+1)+1)+1)-FIND(\"%\", AF1464, FIND(\"/\", AF1464, FIND(\"/\", AF1464, FIND(\"/\", AF1464)+1)+1)+1)-2, LEN(AF1464)-FIND(\"%\", AF1464, FIND(\"/\", AF1464, FIND(\"/\", AF1464, FIND(\"/\", AF1464)+1)+1)+1)-1))),\n        \"\"),\n    \"\")","v":""},{"$f":"IF(AF1464 <> \"\",\n    IF(ISNUMBER(VALUE(MID(AF1464, FIND(\"/\", AF1464, FIND(\"/\", AF1464, FIND(\"/\", AF1464, FIND(\"/\", AF1464)+1)+1)+1) + 1, FIND(\"%\", AF1464, FIND(\"/\", AF1464, FIND(\"/\", AF1464, FIND(\"/\", AF1464, FIND(\"/\", AF1464)+1)+1)+1)) - FIND(\"/\", AF1464, FIND(\"/\", AF1464, FIND(\"/\", AF1464, FIND(\"/\", AF1464)+1)+1)+1) - 1))),\n        VALUE(MID(AF1464, FIND(\"/\", AF1464, FIND(\"/\", AF1464, FIND(\"/\", AF1464, FIND(\"/\", AF1464)+1)+1)+1) + 1, FIND(\"%\", AF1464, FIND(\"/\", AF1464, FIND(\"/\", AF1464, FIND(\"/\", AF1464, FIND(\"/\", AF1464)+1)+1)+1)) - FIND(\"/\", AF1464, FIND(\"/\", AF1464, FIND(\"/\", AF1464, FIND(\"/\", AF1464)+1)+1)+1) - 1)),\n        \"\"),\n    \"\")","v":""},{"$f":"IF(AF1464 = \"\", \"\",\n    IFERROR(TRIM(\n        MID(\n            AF1464,\n            FIND(\"%\", AF1464, FIND(\"/\", AF1464, FIND(\"/\", AF1464, FIND(\"/\", AF1464, FIND(\"/\", AF1464)+1)+1)+1)+1) + 1,\n            FIND(\"/\", AF1464 & \"/\", FIND(\"%\", AF1464, FIND(\"/\", AF1464, FIND(\"/\", AF1464, FIND(\"/\", AF1464, FIND(\"/\", AF1464)+1)+1)+1)+1)) -\n            FIND(\"%\", AF1464, FIND(\"/\", AF1464, FIND(\"/\", AF1464, FIND(\"/\", AF1464, FIND(\"/\", AF1464)+1)+1)+1)+1) - 1\n        )\n    ),\n    \"\")\n)","v":""},null,null,null,null,null,null,null,null,null,null,null,null,null,null,null,null,null,"ZWO"]
[null,null,null,null,null,{"$f":"VLOOKUP(G1465,'Data order'!Z:AA,2,0)","v":{"$error":"#N/A"}},null,null,null,null,null,null,null,null,{"$f":"VLOOKUP(N1465,Tabel10[[korte omschrijving]:[MCC3_CODE]],2,0)","v":{"$error":"#N/A"}},{"$f":"VLOOKUP(N1465,'Data order'!M:O,3,0)","v":{"$error":"#N/A"}},null,null,null,{"$f":"IFERROR(\n  IF(R1465=\"Big&Tall\",\n      VLOOKUP(S1465, 'Data order'!$AC$92:$AD$101, 2, FALSE),\n      IF(R1465=\"Boordmaat\",\n          VLOOKUP(S1465, 'Data order'!$AC$102:$AD$116, 2, FALSE),\n          VLOOKUP(S1465, 'Data order'!$AC$2:$AD$91, 2, FALSE)\n      )\n  ),\n\"\")","v":""},null,null,null,null,"EUR",null,null,null,{"$error":"#DIV/0!"},0,0,null,"","","","","","","","","","",null,null,null,null,null,null,null,null,null,null,null,null,null,null,null,null,null,"ZWO"]
[null,null,null,null,null,{"$f":"VLOOKUP(G1466,'Data order'!Z:AA,2,0)","v":{"$error":"#N/A"}},null,null,null,null,null,null,null,null,{"$f":"VLOOKUP(N1466,Tabel10[[korte omschrijving]:[MCC3_CODE]],2,0)","v":{"$error":"#N/A"}},{"$f":"VLOOKUP(N1466,'Data order'!M:O,3,0)","v":{"$error":"#N/A"}},null,null,null,{"$f":"IFERROR(\n  IF(R1466=\"Big&Tall\",\n      VLOOKUP(S1466, 'Data order'!$AC$92:$AD$101, 2, FALSE),\n      IF(R1466=\"Boordmaat\",\n          VLOOKUP(S1466, 'Data order'!$AC$102:$AD$116, 2, FALSE),\n          VLOOKUP(S1466, 'Data order'!$AC$2:$AD$91, 2, FALSE)\n      )\n  ),\n\"\")","v":""},null,null,null,null,"EUR",null,null,null,{"$error":"#DIV/0!"},0,0,null,"","","","","","","","","","",null,null,null,null,null,null,null,null,null,null,null,null,null,null,null,null,null,"ZWO"]
[null,null,null,null,null,{"$f":"VLOOKUP(G1467,'Data order'!Z:AA,2,0)","v":{"$error":"#N/A"}},null,null,null,null,null,null,null,null,{"$f":"VLOOKUP(N1467,Tabel10[[korte omschrijving]:[MCC3_CODE]],2,0)","v":{"$error":"#N/A"}},{"$f":"VLOOKUP(N1467,'Data order'!M:O,3,0)","v":{"$error":"#N/A"}},null,null,null,{"$f":"IFERROR(\n  IF(R1467=\"Big&Tall\",\n      VLOOKUP(S1467, 'Data order'!$AC$92:$AD$101, 2, FALSE),\n      IF(R1467=\"Boordmaat\",\n          VLOOKUP(S1467, 'Data order'!$AC$102:$AD$116, 2, FALSE),\n          VLOOKUP(S1467, 'Data order'!$AC$2:$AD$91, 2, FALSE)\n      )\n  ),\n\"\")","v":""},null,null,null,null,"EUR",null,null,null,{"$error":"#DIV/0!"},0,0,null,"","","","","","","","","","",null,null,null,null,null,null,null,null,null,null,null,null,null,null,null,null,null,"ZWO"]
[null,null,null,null,null,{"$f":"VLOOKUP(G1468,'Data order'!Z:AA,2,0)","v":{"$error":"#N/A"}},null,null,null,null,null,null,null,null,{"$f":"VLOOKUP(N1468,Tabel10[[korte omschrijving]:[MCC3_CODE]],2,0)","v":{"$error":"#N/A"}},{"$f":"VLOOKUP(N1468,'Data order'!M:O,3,0)","v":{"$error":"#N/A"}},null,null,null,{"$f":"IFERROR(\n  IF(R1468=\"Big&Tall\",\n      VLOOKUP(S1468, 'Data order'!$AC$92:$AD$101, 2, FALSE),\n      IF(R1468=\"Boordmaat\",\n          VLOOKUP(S1468, 'Data order'!$AC$102:$AD$116, 2, FALSE),\n          VLOOKUP(S1468, 'Data order'!$AC$2:$AD$91, 2, FALSE)\n      )\n  ),\n\"\")","v":""},null,null,null,null,"EUR",null,null,null,{"$error":"#DIV/0!"},0,0,null,"","","","","","","","","","",null,null,null,null,null,null,null,null,null,null,null,null,null,null,null,null,null,"ZWO"]
[null,null,null,null,null,{"$f":"VLOOKUP(G1469,'Data order'!Z:AA,2,0)","v":{"$error":"#N/A"}},null,null,null,null,null,null,null,null,{"$f":"VLOOKUP(N1469,Tabel10[[korte omschrijving]:[MCC3_CODE]],2,0)","v":{"$error":"#N/A"}},{"$f":"VLOOKUP(N1469,'Data order'!M:O,3,0)","v":{"$error":"#N/A"}},null,null,null,{"$f":"IFERROR(\n  IF(R1469=\"Big&Tall\",\n      VLOOKUP(S1469, 'Data order'!$AC$92:$AD$101, 2, FALSE),\n      IF(R1469=\"Boordmaat\",\n          VLOOKUP(S1469, 'Data order'!$AC$102:$AD$116, 2, FALSE),\n          VLOOKUP(S1469, 'Data order'!$AC$2:$AD$91, 2, FALSE)\n      )\n  ),\n\"\")","v":""},null,null,null,null,"EUR",null,null,null,{"$error":"#DIV/0!"},0,0,null,"","","","","","","","","","",null,null,null,null,null,null,null,null,null,null,null,null,null,null,null,null,null,"ZWO"]
[null,null,null,null,null,{"$f":"VLOOKUP(G1470,'Data order'!Z:AA,2,0)","v":{"$error":"#N/A"}},null,null,null,null,null,null,null,null,{"$f":"VLOOKUP(N1470,Tabel10[[korte omschrijving]:[MCC3_CODE]],2,0)","v":{"$error":"#N/A"}},{"$f":"VLOOKUP(N1470,'Data order'!M:O,3,0)","v":{"$error":"#N/A"}},null,null,null,{"$f":"IFERROR(\n  IF(R1470=\"Big&Tall\",\n      VLOOKUP(S1470, 'Data order'!$AC$92:$AD$101, 2, FALSE),\n      IF(R1470=\"Boordmaat\",\n          VLOOKUP(S1470, 'Data order'!$AC$102:$AD$116, 2, FALSE),\n          VLOOKUP(S1470, 'Data order'!$AC$2:$AD$91, 2, FALSE)\n      )\n  ),\n\"\")","v":""},null,0,null,null,"EUR",null,null,null,{"$f":"AB1470/Z1470","v":{"$error":"#DIV/0!"}},{"$f":"U1470*Z1470","v":0},{"$f":"U1470*AB1470","v":0},null,"","","","","","","","","","",null,null,null,null,null,null,null,null,null,null,null,null,null,null,null,null,null,"ZWO"]
[null,null,null,null,null,{"$f":"VLOOKUP(G1471,'Data order'!Z:AA,2,0)","v":{"$error":"#N/A"}},null,null,null,null,null,null,null,null,{"$f":"VLOOKUP(N1471,Tabel10[[korte omschrijving]:[MCC3_CODE]],2,0)","v":{"$error":"#N/A"}},{"$f":"VLOOKUP(N1471,'Data order'!M:O,3,0)","v":{"$error":"#N/A"}},null,null,null,{"$f":"IFERROR(\n  IF(R1471=\"Big&Tall\",\n      VLOOKUP(S1471, 'Data order'!$AC$92:$AD$101, 2, FALSE),\n      IF(R1471=\"Boordmaat\",\n          VLOOKUP(S1471, 'Data order'!$AC$102:$AD$116, 2, FALSE),\n          VLOOKUP(S1471, 'Data order'!$AC$2:$AD$91, 2, FALSE)\n      )\n  ),\n\"\")","v":""},null,null,null,null,"EUR",null,null,null,{"$error":"#DIV/0!"},0,0,null,"","","","","","","","","","",null,null,null,null,null,null,null,null,null,null,null,null,null,null,null,null,null,"ZWO"]
[null,null,null,null,null,{"$f":"VLOOKUP(G1472,'Data order'!Z:AA,2,0)","v":{"$error":"#N/A"}},null,null,null,null,null,null,null,null,{"$f":"VLOOKUP(N1472,Tabel10[[korte omschrijving]:[MCC3_CODE]],2,0)","v":{"$error":"#N/A"}},{"$f":"VLOOKUP(N1472,'Data order'!M:O,3,0)","v":{"$error":"#N/A"}},null,null,null,{"$f":"IFERROR(\n  IF(R1472=\"Big&Tall\",\n      VLOOKUP(S1472, 'Data order'!$AC$92:$AD$101, 2, FALSE),\n      IF(R1472=\"Boordmaat\",\n          VLOOKUP(S1472, 'Data order'!$AC$102:$AD$116, 2, FALSE),\n          VLOOKUP(S1472, 'Data order'!$AC$2:$AD$91, 2, FALSE)\n      )\n  ),\n\"\")","v":""},null,null,null,null,"EUR",null,null,null,{"$error":"#DIV/0!"},0,0,null,"","","","","","","","","","",null,null,null,null,null,null,null,null,null,null,null,null,null,null,null,null,null,"ZWO"]
[null,null,null,null,null,{"$f":"VLOOKUP(G1473,'Data order'!Z:AA,2,0)","v":{"$error":"#N/A"}},null,null,null,null,null,null,null,null,{"$f":"VLOOKUP(N1473,Tabel10[[korte omschrijving]:[MCC3_CODE]],2,0)","v":{"$error":"#N/A"}},{"$f":"VLOOKUP(N1473,'Data order'!M:O,3,0)","v":{"$error":"#N/A"}},null,null,null,{"$f":"IFERROR(\n  IF(R1473=\"Big&Tall\",\n      VLOOKUP(S1473, 'Data order'!$AC$92:$AD$101, 2, FALSE),\n      IF(R1473=\"Boordmaat\",\n          VLOOKUP(S1473, 'Data order'!$AC$102:$AD$116, 2, FALSE),\n          VLOOKUP(S1473, 'Data order'!$AC$2:$AD$91, 2, FALSE)\n      )\n  ),\n\"\")","v":""},null,null,null,null,"EUR",null,null,null,{"$error":"#DIV/0!"},0,0,null,"","","","","","","","","","",null,null,null,null,null,null,null,null,null,null,null,null,null,null,null,null,null,"ZWO"]
[null,null,null,null,null,{"$f":"VLOOKUP(G1474,'Data order'!Z:AA,2,0)","v":{"$error":"#N/A"}},null,null,null,null,null,null,null,null,{"$f":"VLOOKUP(N1474,Tabel10[[korte omschrijving]:[MCC3_CODE]],2,0)","v":{"$error":"#N/A"}},{"$f":"VLOOKUP(N1474,'Data order'!M:O,3,0)","v":{"$error":"#N/A"}},null,null,null,{"$f":"IFERROR(\n  IF(R1474=\"Big&Tall\",\n      VLOOKUP(S1474, 'Data order'!$AC$92:$AD$101, 2, FALSE),\n      IF(R1474=\"Boordmaat\",\n          VLOOKUP(S1474, 'Data order'!$AC$102:$AD$116, 2, FALSE),\n          VLOOKUP(S1474, 'Data order'!$AC$2:$AD$91, 2, FALSE)\n      )\n  ),\n\"\")","v":""},null,null,null,null,"EUR",null,null,null,{"$error":"#DIV/0!"},0,0,null,"","","","","","","","","","",null,null,null,null,null,null,null,null,null,null,null,null,null,null,null,null,null,"ZWO"]
[null,null,null,null,null,{"$f":"VLOOKUP(G1475,'Data order'!Z:AA,2,0)","v":{"$error":"#N/A"}},null,null,null,null,null,null,null,null,{"$f":"VLOOKUP(N1475,Tabel10[[korte omschrijving]:[MCC3_CODE]],2,0)","v":{"$error":"#N/A"}},{"$f":"VLOOKUP(N1475,'Data order'!M:O,3,0)","v":{"$error":"#N/A"}},null,null,null,{"$f":"IFERROR(\n  IF(R1475=\"Big&Tall\",\n      VLOOKUP(S1475, 'Data order'!$AC$92:$AD$101, 2, FALSE),\n      IF(R1475=\"Boordmaat\",\n          VLOOKUP(S1475, 'Data order'!$AC$102:$AD$116, 2, FALSE),\n          VLOOKUP(S1475, 'Data order'!$AC$2:$AD$91, 2, FALSE)\n      )\n  ),\n\"\")","v":""},null,null,null,null,"EUR",null,null,null,{"$error":"#DIV/0!"},0,0,null,"","","","","","","","","","",null,null,null,null,null,null,null,null,null,null,null,null,null,null,null,null,null,"ZWO"]
[null,null,null,null,null,{"$f":"VLOOKUP(G1476,'Data order'!Z:AA,2,0)","v":{"$error":"#N/A"}},null,null,null,null,null,null,null,null,{"$f":"VLOOKUP(N1476,Tabel10[[korte omschrijving]:[MCC3_CODE]],2,0)","v":{"$error":"#N/A"}},{"$f":"VLOOKUP(N1476,'Data order'!M:O,3,0)","v":{"$error":"#N/A"}},null,null,null,{"$f":"IFERROR(\n  IF(R1476=\"Big&Tall\",\n      VLOOKUP(S1476, 'Data order'!$AC$92:$AD$101, 2, FALSE),\n      IF(R1476=\"Boordmaat\",\n          VLOOKUP(S1476, 'Data order'!$AC$102:$AD$116, 2, FALSE),\n          VLOOKUP(S1476, 'Data order'!$AC$2:$AD$91, 2, FALSE)\n      )\n  ),\n\"\")","v":""},null,0,null,null,"EUR",null,null,null,{"$f":"AB1476/Z1476","v":{"$error":"#DIV/0!"}},{"$f":"U1476*Z1476","v":0},{"$f":"U1476*AB1476","v":0},null,"","","","","","","","","","",null,null,null,null,null,null,null,null,null,null,null,null,null,null,null,null,null,"ZWO"]
[null,null,null,null,null,{"$f":"VLOOKUP(G1477,'Data order'!Z:AA,2,0)","v":{"$error":"#N/A"}},null,null,null,null,null,null,null,null,{"$f":"VLOOKUP(N1477,Tabel10[[korte omschrijving]:[MCC3_CODE]],2,0)","v":{"$error":"#N/A"}},{"$f":"VLOOKUP(N1477,'Data order'!M:O,3,0)","v":{"$error":"#N/A"}},null,null,null,{"$f":"IFERROR(\n  IF(R1477=\"Big&Tall\",\n      VLOOKUP(S1477, 'Data order'!$AC$92:$AD$101, 2, FALSE),\n      IF(R1477=\"Boordmaat\",\n          VLOOKUP(S1477, 'Data order'!$AC$102:$AD$116, 2, FALSE),\n          VLOOKUP(S1477, 'Data order'!$AC$2:$AD$91, 2, FALSE)\n      )\n  ),\n\"\")","v":""},null,null,null,null,"EUR",null,null,null,{"$error":"#DIV/0!"},0,0,null,"","","","","","","","","","",null,null,null,null,null,null,null,null,null,null,null,null,null,null,null,null,null,"ZWO"]
[null,null,null,null,null,{"$f":"VLOOKUP(G1478,'Data order'!Z:AA,2,0)","v":{"$error":"#N/A"}},null,null,null,null,null,null,null,null,{"$f":"VLOOKUP(N1478,Tabel10[[korte omschrijving]:[MCC3_CODE]],2,0)","v":{"$error":"#N/A"}},{"$f":"VLOOKUP(N1478,'Data order'!M:O,3,0)","v":{"$error":"#N/A"}},null,null,null,{"$f":"IFERROR(\n  IF(R1478=\"Big&Tall\",\n      VLOOKUP(S1478, 'Data order'!$AC$92:$AD$101, 2, FALSE),\n      IF(R1478=\"Boordmaat\",\n          VLOOKUP(S1478, 'Data order'!$AC$102:$AD$116, 2, FALSE),\n          VLOOKUP(S1478, 'Data order'!$AC$2:$AD$91, 2, FALSE)\n      )\n  ),\n\"\")","v":""},null,null,null,null,"EUR",null,null,null,{"$error":"#DIV/0!"},0,0,null,"","","","","","","","","","",null,null,null,null,null,null,null,null,null,null,null,null,null,null,null,null,null,"ZWO"]
[null,null,null,null,null,{"$f":"VLOOKUP(G1479,'Data order'!Z:AA,2,0)","v":{"$error":"#N/A"}},null,null,null,null,null,null,null,null,{"$f":"VLOOKUP(N1479,Tabel10[[korte omschrijving]:[MCC3_CODE]],2,0)","v":{"$error":"#N/A"}},{"$f":"VLOOKUP(N1479,'Data order'!M:O,3,0)","v":{"$error":"#N/A"}},null,null,null,{"$f":"IFERROR(\n  IF(R1479=\"Big&Tall\",\n      VLOOKUP(S1479, 'Data order'!$AC$92:$AD$101, 2, FALSE),\n      IF(R1479=\"Boordmaat\",\n          VLOOKUP(S1479, 'Data order'!$AC$102:$AD$116, 2, FALSE),\n          VLOOKUP(S1479, 'Data order'!$AC$2:$AD$91, 2, FALSE)\n      )\n  ),\n\"\")","v":""},null,null,null,null,"EUR",null,null,null,{"$error":"#DIV/0!"},0,0,null,"","","","","","","","","","",null,null,null,null,null,null,null,null,null,null,null,null,null,null,null,null,null,"ZWO"]
[null,null,null,null,null,{"$f":"VLOOKUP(G1480,'Data order'!Z:AA,2,0)","v":{"$error":"#N/A"}},null,null,null,null,null,null,null,null,{"$f":"VLOOKUP(N1480,Tabel10[[korte omschrijving]:[MCC3_CODE]],2,0)","v":{"$error":"#N/A"}},{"$f":"VLOOKUP(N1480,'Data order'!M:O,3,0)","v":{"$error":"#N/A"}},null,null,null,{"$f":"IFERROR(\n  IF(R1480=\"Big&Tall\",\n      VLOOKUP(S1480, 'Data order'!$AC$92:$AD$101, 2, FALSE),\n      IF(R1480=\"Boordmaat\",\n          VLOOKUP(S1480, 'Data order'!$AC$102:$AD$116, 2, FALSE),\n          VLOOKUP(S1480, 'Data order'!$AC$2:$AD$91, 2, FALSE)\n      )\n  ),\n\"\")","v":""},null,null,null,null,"EUR",null,null,null,{"$error":"#DIV/0!"},0,0,null,"","","","","","","","","","",null,null,null,null,null,null,null,null,null,null,null,null,null,null,null,null,null,"ZWO"]
[null,null,null,null,null,{"$f":"VLOOKUP(G1481,'Data order'!Z:AA,2,0)","v":{"$error":"#N/A"}},null,null,null,null,null,null,null,null,{"$f":"VLOOKUP(N1481,Tabel10[[korte omschrijving]:[MCC3_CODE]],2,0)","v":{"$error":"#N/A"}},{"$f":"VLOOKUP(N1481,'Data order'!M:O,3,0)","v":{"$error":"#N/A"}},null,null,null,{"$f":"IFERROR(\n  IF(R1481=\"Big&Tall\",\n      VLOOKUP(S1481, 'Data order'!$AC$92:$AD$101, 2, FALSE),\n      IF(R1481=\"Boordmaat\",\n          VLOOKUP(S1481, 'Data order'!$AC$102:$AD$116, 2, FALSE),\n          VLOOKUP(S1481, 'Data order'!$AC$2:$AD$91, 2, FALSE)\n      )\n  ),\n\"\")","v":""},null,null,null,null,"EUR",null,null,null,{"$error":"#DIV/0!"},0,0,null,"","","","","","","","","","",null,null,null,null,null,null,null,null,null,null,null,null,null,null,null,null,null,"ZWO"]
[null,null,null,null,null,{"$f":"VLOOKUP(G1482,'Data order'!Z:AA,2,0)","v":{"$error":"#N/A"}},null,null,null,null,null,null,null,null,{"$f":"VLOOKUP(N1482,Tabel10[[korte omschrijving]:[MCC3_CODE]],2,0)","v":{"$error":"#N/A"}},{"$f":"VLOOKUP(N1482,'Data order'!M:O,3,0)","v":{"$error":"#N/A"}},null,null,null,{"$f":"IFERROR(\n  IF(R1482=\"Big&Tall\",\n      VLOOKUP(S1482, 'Data order'!$AC$92:$AD$101, 2, FALSE),\n      IF(R1482=\"Boordmaat\",\n          VLOOKUP(S1482, 'Data order'!$AC$102:$AD$116, 2, FALSE),\n          VLOOKUP(S1482, 'Data order'!$AC$2:$AD$91, 2, FALSE)\n      )\n  ),\n\"\")","v":""},null,0,null,null,"EUR",null,null,null,{"$f":"AB1482/Z1482","v":{"$error":"#DIV/0!"}},{"$f":"U1482*Z1482","v":0},{"$f":"U1482*AB1482","v":0},null,"","","","","","","","","","",null,null,null,null,null,null,null,null,null,null,null,null,null,null,null,null,null,"ZWO"]
[null,null,null,null,null,{"$f":"VLOOKUP(G1483,'Data order'!Z:AA,2,0)","v":{"$error":"#N/A"}},null,null,null,null,null,null,null,null,{"$f":"VLOOKUP(N1483,Tabel10[[korte omschrijving]:[MCC3_CODE]],2,0)","v":{"$error":"#N/A"}},{"$f":"VLOOKUP(N1483,'Data order'!M:O,3,0)","v":{"$error":"#N/A"}},null,null,null,{"$f":"IFERROR(\n  IF(R1483=\"Big&Tall\",\n      VLOOKUP(S1483, 'Data order'!$AC$92:$AD$101, 2, FALSE),\n      IF(R1483=\"Boordmaat\",\n          VLOOKUP(S1483, 'Data order'!$AC$102:$AD$116, 2, FALSE),\n          VLOOKUP(S1483, 'Data order'!$AC$2:$AD$91, 2, FALSE)\n      )\n  ),\n\"\")","v":""},null,null,null,null,"EUR",null,null,null,{"$error":"#DIV/0!"},0,0,null,"","","","","","","","","","",null,null,null,null,null,null,null,null,null,null,null,null,null,null,null,null,null,"ZWO"]
[null,null,null,null,null,{"$f":"VLOOKUP(G1484,'Data order'!Z:AA,2,0)","v":{"$error":"#N/A"}},null,null,null,null,null,null,null,null,{"$f":"VLOOKUP(N1484,Tabel10[[korte omschrijving]:[MCC3_CODE]],2,0)","v":{"$error":"#N/A"}},{"$f":"VLOOKUP(N1484,'Data order'!M:O,3,0)","v":{"$error":"#N/A"}},null,null,null,{"$f":"IFERROR(\n  IF(R1484=\"Big&Tall\",\n      VLOOKUP(S1484, 'Data order'!$AC$92:$AD$101, 2, FALSE),\n      IF(R1484=\"Boordmaat\",\n          VLOOKUP(S1484, 'Data order'!$AC$102:$AD$116, 2, FALSE),\n          VLOOKUP(S1484, 'Data order'!$AC$2:$AD$91, 2, FALSE)\n      )\n  ),\n\"\")","v":""},null,null,null,null,"EUR",null,null,null,{"$error":"#DIV/0!"},0,0,null,"","","","","","","","","","",null,null,null,null,null,null,null,null,null,null,null,null,null,null,null,null,null,"ZWO"]
[null,null,null,null,null,{"$f":"VLOOKUP(G1485,'Data order'!Z:AA,2,0)","v":{"$error":"#N/A"}},null,null,null,null,null,null,null,null,{"$f":"VLOOKUP(N1485,Tabel10[[korte omschrijving]:[MCC3_CODE]],2,0)","v":{"$error":"#N/A"}},{"$f":"VLOOKUP(N1485,'Data order'!M:O,3,0)","v":{"$error":"#N/A"}},null,null,null,{"$f":"IFERROR(\n  IF(R1485=\"Big&Tall\",\n      VLOOKUP(S1485, 'Data order'!$AC$92:$AD$101, 2, FALSE),\n      IF(R1485=\"Boordmaat\",\n          VLOOKUP(S1485, 'Data order'!$AC$102:$AD$116, 2, FALSE),\n          VLOOKUP(S1485, 'Data order'!$AC$2:$AD$91, 2, FALSE)\n      )\n  ),\n\"\")","v":""},null,null,null,null,"EUR",null,null,null,{"$error":"#DIV/0!"},0,0,null,"","","","","","","","","","",null,null,null,null,null,null,null,null,null,null,null,null,null,null,null,null,null,"ZWO"]
[null,null,null,null,null,{"$f":"VLOOKUP(G1486,'Data order'!Z:AA,2,0)","v":{"$error":"#N/A"}},null,null,null,null,null,null,null,null,{"$f":"VLOOKUP(N1486,Tabel10[[korte omschrijving]:[MCC3_CODE]],2,0)","v":{"$error":"#N/A"}},{"$f":"VLOOKUP(N1486,'Data order'!M:O,3,0)","v":{"$error":"#N/A"}},null,null,null,{"$f":"IFERROR(\n  IF(R1486=\"Big&Tall\",\n      VLOOKUP(S1486, 'Data order'!$AC$92:$AD$101, 2, FALSE),\n      IF(R1486=\"Boordmaat\",\n          VLOOKUP(S1486, 'Data order'!$AC$102:$AD$116, 2, FALSE),\n          VLOOKUP(S1486, 'Data order'!$AC$2:$AD$91, 2, FALSE)\n      )\n  ),\n\"\")","v":""},null,null,null,null,"EUR",null,null,null,{"$error":"#DIV/0!"},0,0,null,"","","","","","","","","","",null,null,null,null,null,null,null,null,null,null,null,null,null,null,null,null,null,"ZWO"]
[null,null,null,null,null,{"$f":"VLOOKUP(G1487,'Data order'!Z:AA,2,0)","v":{"$error":"#N/A"}},null,null,null,null,null,null,null,null,{"$f":"VLOOKUP(N1487,Tabel10[[korte omschrijving]:[MCC3_CODE]],2,0)","v":{"$error":"#N/A"}},{"$f":"VLOOKUP(N1487,'Data order'!M:O,3,0)","v":{"$error":"#N/A"}},null,null,null,{"$f":"IFERROR(\n  IF(R1487=\"Big&Tall\",\n      VLOOKUP(S1487, 'Data order'!$AC$92:$AD$101, 2, FALSE),\n      IF(R1487=\"Boordmaat\",\n          VLOOKUP(S1487, 'Data order'!$AC$102:$AD$116, 2, FALSE),\n          VLOOKUP(S1487, 'Data order'!$AC$2:$AD$91, 2, FALSE)\n      )\n  ),\n\"\")","v":""},null,null,null,null,"EUR",null,null,null,{"$error":"#DIV/0!"},0,0,null,"","","","","","","","","","",null,null,null,null,null,null,null,null,null,null,null,null,null,null,null,null,null,"ZWO"]
[null,null,null,null,null,{"$f":"VLOOKUP(G1488,'Data order'!Z:AA,2,0)","v":{"$error":"#N/A"}},null,null,null,null,null,null,null,null,{"$f":"VLOOKUP(N1488,Tabel10[[korte omschrijving]:[MCC3_CODE]],2,0)","v":{"$error":"#N/A"}},{"$f":"VLOOKUP(N1488,'Data order'!M:O,3,0)","v":{"$error":"#N/A"}},null,null,null,{"$f":"IFERROR(\n  IF(R1488=\"Big&Tall\",\n      VLOOKUP(S1488, 'Data order'!$AC$92:$AD$101, 2, FALSE),\n      IF(R1488=\"Boordmaat\",\n          VLOOKUP(S1488, 'Data order'!$AC$102:$AD$116, 2, FALSE),\n          VLOOKUP(S1488, 'Data order'!$AC$2:$AD$91, 2, FALSE)\n      )\n  ),\n\"\")","v":""},null,0,null,null,"EUR",null,null,null,{"$f":"AB1488/Z1488","v":{"$error":"#DIV/0!"}},{"$f":"U1488*Z1488","v":0},{"$f":"U1488*AB1488","v":0},null,"","","","","","","","","","",null,null,null,null,null,null,null,null,null,null,null,null,null,null,null,null,null,"ZWO"]
[null,null,null,null,null,{"$f":"VLOOKUP(G1489,'Data order'!Z:AA,2,0)","v":{"$error":"#N/A"}},null,null,null,null,null,null,null,null,{"$f":"VLOOKUP(N1489,Tabel10[[korte omschrijving]:[MCC3_CODE]],2,0)","v":{"$error":"#N/A"}},{"$f":"VLOOKUP(N1489,'Data order'!M:O,3,0)","v":{"$error":"#N/A"}},null,null,null,{"$f":"IFERROR(\n  IF(R1489=\"Big&Tall\",\n      VLOOKUP(S1489, 'Data order'!$AC$92:$AD$101, 2, FALSE),\n      IF(R1489=\"Boordmaat\",\n          VLOOKUP(S1489, 'Data order'!$AC$102:$AD$116, 2, FALSE),\n          VLOOKUP(S1489, 'Data order'!$AC$2:$AD$91, 2, FALSE)\n      )\n  ),\n\"\")","v":""},null,null,null,null,"EUR",null,null,null,{"$error":"#DIV/0!"},0,0,null,"","","","","","","","","","",null,null,null,null,null,null,null,null,null,null,null,null,null,null,null,null,null,"ZWO"]
[null,null,null,null,null,{"$f":"VLOOKUP(G1490,'Data order'!Z:AA,2,0)","v":{"$error":"#N/A"}},null,null,null,null,null,null,null,null,{"$f":"VLOOKUP(N1490,Tabel10[[korte omschrijving]:[MCC3_CODE]],2,0)","v":{"$error":"#N/A"}},{"$f":"VLOOKUP(N1490,'Data order'!M:O,3,0)","v":{"$error":"#N/A"}},null,null,null,{"$f":"IFERROR(\n  IF(R1490=\"Big&Tall\",\n      VLOOKUP(S1490, 'Data order'!$AC$92:$AD$101, 2, FALSE),\n      IF(R1490=\"Boordmaat\",\n          VLOOKUP(S1490, 'Data order'!$AC$102:$AD$116, 2, FALSE),\n          VLOOKUP(S1490, 'Data order'!$AC$2:$AD$91, 2, FALSE)\n      )\n  ),\n\"\")","v":""},null,null,null,null,"EUR",null,null,null,{"$error":"#DIV/0!"},0,0,null,"","","","","","","","","","",null,null,null,null,null,null,null,null,null,null,null,null,null,null,null,null,null,"ZWO"]
[null,null,null,null,null,{"$f":"VLOOKUP(G1491,'Data order'!Z:AA,2,0)","v":{"$error":"#N/A"}},null,null,null,null,null,null,null,null,{"$f":"VLOOKUP(N1491,Tabel10[[korte omschrijving]:[MCC3_CODE]],2,0)","v":{"$error":"#N/A"}},{"$f":"VLOOKUP(N1491,'Data order'!M:O,3,0)","v":{"$error":"#N/A"}},null,null,null,{"$f":"IFERROR(\n  IF(R1491=\"Big&Tall\",\n      VLOOKUP(S1491, 'Data order'!$AC$92:$AD$101, 2, FALSE),\n      IF(R1491=\"Boordmaat\",\n          VLOOKUP(S1491, 'Data order'!$AC$102:$AD$116, 2, FALSE),\n          VLOOKUP(S1491, 'Data order'!$AC$2:$AD$91, 2, FALSE)\n      )\n  ),\n\"\")","v":""},null,null,null,null,"EUR",null,null,null,{"$error":"#DIV/0!"},0,0,null,"","","","","","","","","","",null,null,null,null,null,null,null,null,null,null,null,null,null,null,null,null,null,"ZWO"]
[null,null,null,null,null,{"$f":"VLOOKUP(G1492,'Data order'!Z:AA,2,0)","v":{"$error":"#N/A"}},null,null,null,null,null,null,null,null,{"$f":"VLOOKUP(N1492,Tabel10[[korte omschrijving]:[MCC3_CODE]],2,0)","v":{"$error":"#N/A"}},{"$f":"VLOOKUP(N1492,'Data order'!M:O,3,0)","v":{"$error":"#N/A"}},null,null,null,{"$f":"IFERROR(\n  IF(R1492=\"Big&Tall\",\n      VLOOKUP(S1492, 'Data order'!$AC$92:$AD$101, 2, FALSE),\n      IF(R1492=\"Boordmaat\",\n          VLOOKUP(S1492, 'Data order'!$AC$102:$AD$116, 2, FALSE),\n          VLOOKUP(S1492, 'Data order'!$AC$2:$AD$91, 2, FALSE)\n      )\n  ),\n\"\")","v":""},null,null,null,null,"EUR",null,null,null,{"$error":"#DIV/0!"},0,0,null,"","","","","","","","","","",null,null,null,null,null,null,null,null,null,null,null,null,null,null,null,null,null,"ZWO"]
[null,null,null,null,null,{"$f":"VLOOKUP(G1493,'Data order'!Z:AA,2,0)","v":{"$error":"#N/A"}},null,null,null,null,null,null,null,null,{"$f":"VLOOKUP(N1493,Tabel10[[korte omschrijving]:[MCC3_CODE]],2,0)","v":{"$error":"#N/A"}},{"$f":"VLOOKUP(N1493,'Data order'!M:O,3,0)","v":{"$error":"#N/A"}},null,null,null,{"$f":"IFERROR(\n  IF(R1493=\"Big&Tall\",\n      VLOOKUP(S1493, 'Data order'!$AC$92:$AD$101, 2, FALSE),\n      IF(R1493=\"Boordmaat\",\n          VLOOKUP(S1493, 'Data order'!$AC$102:$AD$116, 2, FALSE),\n          VLOOKUP(S1493, 'Data order'!$AC$2:$AD$91, 2, FALSE)\n      )\n  ),\n\"\")","v":""},null,null,null,null,"EUR",null,null,null,{"$error":"#DIV/0!"},0,0,null,"","","","","","","","","","",null,null,null,null,null,null,null,null,null,null,null,null,null,null,null,null,null,"ZWO"]
[null,null,null,null,null,{"$f":"VLOOKUP(G1494,'Data order'!Z:AA,2,0)","v":{"$error":"#N/A"}},null,null,null,null,null,null,null,null,{"$f":"VLOOKUP(N1494,Tabel10[[korte omschrijving]:[MCC3_CODE]],2,0)","v":{"$error":"#N/A"}},{"$f":"VLOOKUP(N1494,'Data order'!M:O,3,0)","v":{"$error":"#N/A"}},null,null,null,{"$f":"IFERROR(\n  IF(R1494=\"Big&Tall\",\n      VLOOKUP(S1494, 'Data order'!$AC$92:$AD$101, 2, FALSE),\n      IF(R1494=\"Boordmaat\",\n          VLOOKUP(S1494, 'Data order'!$AC$102:$AD$116, 2, FALSE),\n          VLOOKUP(S1494, 'Data order'!$AC$2:$AD$91, 2, FALSE)\n      )\n  ),\n\"\")","v":""},null,{"$f":"SUM(U1494:U1499)","v":0},null,null,"EUR",null,null,null,{"$f":"AB1494/Z1494","v":{"$error":"#DIV/0!"}},{"$f":"U1494*Z1494","v":0},{"$f":"U1494*AB1494","v":0},null,"","","","","","","","","","",null,null,null,null,null,null,null,null,null,null,null,null,null,null,null,null,null,"ZWO"]
[null,null,null,null,null,{"$f":"VLOOKUP(G1495,'Data order'!Z:AA,2,0)","v":{"$error":"#N/A"}},null,null,null,null,null,null,null,null,{"$f":"VLOOKUP(N1495,Tabel10[[korte omschrijving]:[MCC3_CODE]],2,0)","v":{"$error":"#N/A"}},{"$f":"VLOOKUP(N1495,'Data order'!M:O,3,0)","v":{"$error":"#N/A"}},null,null,null,{"$f":"IFERROR(\n  IF(R1495=\"Big&Tall\",\n      VLOOKUP(S1495, 'Data order'!$AC$92:$AD$101, 2, FALSE),\n      IF(R1495=\"Boordmaat\",\n          VLOOKUP(S1495, 'Data order'!$AC$102:$AD$116, 2, FALSE),\n          VLOOKUP(S1495, 'Data order'!$AC$2:$AD$91, 2, FALSE)\n      )\n  ),\n\"\")","v":""},null,null,null,null,"EUR",null,null,null,{"$error":"#DIV/0!"},0,0,null,"","","","","","","","","","",null,null,null,null,null,null,null,null,null,null,null,null,null,null,null,null,null,"ZWO"]
[null,null,null,null,null,{"$f":"VLOOKUP(G1496,'Data order'!Z:AA,2,0)","v":{"$error":"#N/A"}},null,null,null,null,null,null,null,null,{"$f":"VLOOKUP(N1496,Tabel10[[korte omschrijving]:[MCC3_CODE]],2,0)","v":{"$error":"#N/A"}},{"$f":"VLOOKUP(N1496,'Data order'!M:O,3,0)","v":{"$error":"#N/A"}},null,null,null,{"$f":"IFERROR(\n  IF(R1496=\"Big&Tall\",\n      VLOOKUP(S1496, 'Data order'!$AC$92:$AD$101, 2, FALSE),\n      IF(R1496=\"Boordmaat\",\n          VLOOKUP(S1496, 'Data order'!$AC$102:$AD$116, 2, FALSE),\n          VLOOKUP(S1496, 'Data order'!$AC$2:$AD$91, 2, FALSE)\n      )\n  ),\n\"\")","v":""},null,null,null,null,"EUR",null,null,null,{"$error":"#DIV/0!"},0,0,null,"","","","","","","","","","",null,null,null,null,null,null,null,null,null,null,null,null,null,null,null,null,null,"ZWO"]
[null,null,null,null,null,{"$f":"VLOOKUP(G1497,'Data order'!Z:AA,2,0)","v":{"$error":"#N/A"}},null,null,null,null,null,null,null,null,{"$f":"VLOOKUP(N1497,Tabel10[[korte omschrijving]:[MCC3_CODE]],2,0)","v":{"$error":"#N/A"}},{"$f":"VLOOKUP(N1497,'Data order'!M:O,3,0)","v":{"$error":"#N/A"}},null,null,null,{"$f":"IFERROR(\n  IF(R1497=\"Big&Tall\",\n      VLOOKUP(S1497, 'Data order'!$AC$92:$AD$101, 2, FALSE),\n      IF(R1497=\"Boordmaat\",\n          VLOOKUP(S1497, 'Data order'!$AC$102:$AD$116, 2, FALSE),\n          VLOOKUP(S1497, 'Data order'!$AC$2:$AD$91, 2, FALSE)\n      )\n  ),\n\"\")","v":""},null,null,null,null,"EUR",null,null,null,{"$error":"#DIV/0!"},0,0,null,"","","","","","","","","","",null,null,null,null,null,null,null,null,null,null,null,null,null,null,null,null,null,"ZWO"]
[null,null,null,null,null,{"$f":"VLOOKUP(G1498,'Data order'!Z:AA,2,0)","v":{"$error":"#N/A"}},null,null,null,null,null,null,null,null,{"$f":"VLOOKUP(N1498,Tabel10[[korte omschrijving]:[MCC3_CODE]],2,0)","v":{"$error":"#N/A"}},{"$f":"VLOOKUP(N1498,'Data order'!M:O,3,0)","v":{"$error":"#N/A"}},null,null,null,{"$f":"IFERROR(\n  IF(R1498=\"Big&Tall\",\n      VLOOKUP(S1498, 'Data order'!$AC$92:$AD$101, 2, FALSE),\n      IF(R1498=\"Boordmaat\",\n          VLOOKUP(S1498, 'Data order'!$AC$102:$AD$116, 2, FALSE),\n          VLOOKUP(S1498, 'Data order'!$AC$2:$AD$91, 2, FALSE)\n      )\n  ),\n\"\")","v":""},null,null,null,null,"EUR",null,null,null,{"$error":"#DIV/0!"},0,0,null,"","","","","","","","","","",null,null,null,null,null,null,null,null,null,null,null,null,null,null,null,null,null,"ZWO"]
[null,null,null,null,null,{"$f":"VLOOKUP(G1499,'Data order'!Z:AA,2,0)","v":{"$error":"#N/A"}},null,null,null,null,null,null,null,null,{"$f":"VLOOKUP(N1499,Tabel10[[korte omschrijving]:[MCC3_CODE]],2,0)","v":{"$error":"#N/A"}},{"$f":"VLOOKUP(N1499,'Data order'!M:O,3,0)","v":{"$error":"#N/A"}},null,null,null,{"$f":"IFERROR(\n  IF(R1499=\"Big&Tall\",\n      VLOOKUP(S1499, 'Data order'!$AC$92:$AD$101, 2, FALSE),\n      IF(R1499=\"Boordmaat\",\n          VLOOKUP(S1499, 'Data order'!$AC$102:$AD$116, 2, FALSE),\n          VLOOKUP(S1499, 'Data order'!$AC$2:$AD$91, 2, FALSE)\n      )\n  ),\n\"\")","v":""},null,null,null,null,"EUR",null,null,null,{"$error":"#DIV/0!"},0,0,null,"","","","","","","","","","",null,null,null,null,null,null,null,null,null,null,null,null,null,null,null,null,null,"ZWO"]
[null,null,null,null,null,{"$f":"VLOOKUP(G1500,'Data order'!Z:AA,2,0)","v":{"$error":"#N/A"}},null,null,null,null,null,null,null,null,{"$f":"VLOOKUP(N1500,Tabel10[[korte omschrijving]:[MCC3_CODE]],2,0)","v":{"$error":"#N/A"}},{"$f":"VLOOKUP(N1500,'Data order'!M:O,3,0)","v":{"$error":"#N/A"}},null,null,null,{"$f":"IFERROR(\n  IF(R1500=\"Big&Tall\",\n      VLOOKUP(S1500, 'Data order'!$AC$92:$AD$101, 2, FALSE),\n      IF(R1500=\"Boordmaat\",\n          VLOOKUP(S1500, 'Data order'!$AC$102:$AD$116, 2, FALSE),\n          VLOOKUP(S1500, 'Data order'!$AC$2:$AD$91, 2, FALSE)\n      )\n  ),\n\"\")","v":""},null,0,null,null,"EUR",null,null,null,{"$f":"AB1500/Z1500","v":{"$error":"#DIV/0!"}},{"$f":"U1500*Z1500","v":0},{"$f":"U1500*AB1500","v":0},null,"","","","","","","","","","",null,null,null,null,null,null,null,null,null,null,null,null,null,null,null,null,null,"ZWO"]
[null,null,null,null,null,{"$f":"VLOOKUP(G1501,'Data order'!Z:AA,2,0)","v":{"$error":"#N/A"}},null,null,null,null,null,null,null,null,{"$f":"VLOOKUP(N1501,Tabel10[[korte omschrijving]:[MCC3_CODE]],2,0)","v":{"$error":"#N/A"}},{"$f":"VLOOKUP(N1501,'Data order'!M:O,3,0)","v":{"$error":"#N/A"}},null,null,null,{"$f":"IFERROR(\n  IF(R1501=\"Big&Tall\",\n      VLOOKUP(S1501, 'Data order'!$AC$92:$AD$101, 2, FALSE),\n      IF(R1501=\"Boordmaat\",\n          VLOOKUP(S1501, 'Data order'!$AC$102:$AD$116, 2, FALSE),\n          VLOOKUP(S1501, 'Data order'!$AC$2:$AD$91, 2, FALSE)\n      )\n  ),\n\"\")","v":""},null,null,null,null,"EUR",null,null,null,{"$error":"#DIV/0!"},0,0,null,"","","","","","","","","","",null,null,null,null,null,null,null,null,null,null,null,null,null,null,null,null,null,"ZWO"]
[null,null,null,null,null,{"$f":"VLOOKUP(G1502,'Data order'!Z:AA,2,0)","v":{"$error":"#N/A"}},null,null,null,null,null,null,null,null,{"$f":"VLOOKUP(N1502,Tabel10[[korte omschrijving]:[MCC3_CODE]],2,0)","v":{"$error":"#N/A"}},{"$f":"VLOOKUP(N1502,'Data order'!M:O,3,0)","v":{"$error":"#N/A"}},null,null,null,{"$f":"IFERROR(\n  IF(R1502=\"Big&Tall\",\n      VLOOKUP(S1502, 'Data order'!$AC$92:$AD$101, 2, FALSE),\n      IF(R1502=\"Boordmaat\",\n          VLOOKUP(S1502, 'Data order'!$AC$102:$AD$116, 2, FALSE),\n          VLOOKUP(S1502, 'Data order'!$AC$2:$AD$91, 2, FALSE)\n      )\n  ),\n\"\")","v":""},null,null,null,null,"EUR",null,null,null,{"$error":"#DIV/0!"},0,0,null,"","","","","","","","","","",null,null,null,null,null,null,null,null,null,null,null,null,null,null,null,null,null,"ZWO"]
[null,null,null,null,null,{"$f":"VLOOKUP(G1503,'Data order'!Z:AA,2,0)","v":{"$error":"#N/A"}},null,null,null,null,null,null,null,null,{"$f":"VLOOKUP(N1503,Tabel10[[korte omschrijving]:[MCC3_CODE]],2,0)","v":{"$error":"#N/A"}},{"$f":"VLOOKUP(N1503,'Data order'!M:O,3,0)","v":{"$error":"#N/A"}},null,null,null,{"$f":"IFERROR(\n  IF(R1503=\"Big&Tall\",\n      VLOOKUP(S1503, 'Data order'!$AC$92:$AD$101, 2, FALSE),\n      IF(R1503=\"Boordmaat\",\n          VLOOKUP(S1503, 'Data order'!$AC$102:$AD$116, 2, FALSE),\n          VLOOKUP(S1503, 'Data order'!$AC$2:$AD$91, 2, FALSE)\n      )\n  ),\n\"\")","v":""},null,null,null,null,"EUR",null,null,null,{"$error":"#DIV/0!"},0,0,null,"","","","","","","","","","",null,null,null,null,null,null,null,null,null,null,null,null,null,null,null,null,null,"ZWO"]
[null,null,null,null,null,{"$f":"VLOOKUP(G1504,'Data order'!Z:AA,2,0)","v":{"$error":"#N/A"}},null,null,null,null,null,null,null,null,{"$f":"VLOOKUP(N1504,Tabel10[[korte omschrijving]:[MCC3_CODE]],2,0)","v":{"$error":"#N/A"}},{"$f":"VLOOKUP(N1504,'Data order'!M:O,3,0)","v":{"$error":"#N/A"}},null,null,null,{"$f":"IFERROR(\n  IF(R1504=\"Big&Tall\",\n      VLOOKUP(S1504, 'Data order'!$AC$92:$AD$101, 2, FALSE),\n      IF(R1504=\"Boordmaat\",\n          VLOOKUP(S1504, 'Data order'!$AC$102:$AD$116, 2, FALSE),\n          VLOOKUP(S1504, 'Data order'!$AC$2:$AD$91, 2, FALSE)\n      )\n  ),\n\"\")","v":""},null,null,null,null,"EUR",null,null,null,{"$error":"#DIV/0!"},0,0,null,"","","","","","","","","","",null,null,null,null,null,null,null,null,null,null,null,null,null,null,null,null,null,"ZWO"]
[null,null,null,null,null,{"$f":"VLOOKUP(G1505,'Data order'!Z:AA,2,0)","v":{"$error":"#N/A"}},null,null,null,null,null,null,null,null,{"$f":"VLOOKUP(N1505,Tabel10[[korte omschrijving]:[MCC3_CODE]],2,0)","v":{"$error":"#N/A"}},{"$f":"VLOOKUP(N1505,'Data order'!M:O,3,0)","v":{"$error":"#N/A"}},null,null,null,{"$f":"IFERROR(\n  IF(R1505=\"Big&Tall\",\n      VLOOKUP(S1505, 'Data order'!$AC$92:$AD$101, 2, FALSE),\n      IF(R1505=\"Boordmaat\",\n          VLOOKUP(S1505, 'Data order'!$AC$102:$AD$116, 2, FALSE),\n          VLOOKUP(S1505, 'Data order'!$AC$2:$AD$91, 2, FALSE)\n      )\n  ),\n\"\")","v":""},null,null,null,null,"EUR",null,null,null,{"$error":"#DIV/0!"},0,0,null,"","","","","","","","","","",null,null,null,null,null,null,null,null,null,null,null,null,null,null,null,null,null,"ZWO"]

{"sheet":"2. Content (NL)","index":2,"n_rows":1505,"n_cols":26,"rows_kept":1505,"cut":false,"hidden":false,"merged":[[0,0,0,4],[0,18,0,25],[0,13,0,17],[0,5,0,12]]}
["PRODUCTINFORMATIE",null,null,null,null,"ALGEMENE CONTENT",null,null,null,null,null,null,null,null,null,null,null,null,"TOPS/TRUIEN/VESTEN/OVERHEMDEN/JASSEN"]
["Wehkampartikelnummer","Leveranciers artikelnummer","AX Inkooptekst","Inkoopkleur","EAN","Filterkleur","Kleur","Filtermateriaal","Materiaal ","Lengte","Sluiting","Multi: Soort zak","Print","Pasvorm/fit","Slijtage details","Multi: Soort broek","Multi: Soort jeans","Multi: Soort korte broek","Kraagvorm","Mouwlengte","Fit bovenkleding","Multi: Soort jas","Multi: Soort trui","Multi: Soort vest","Soort overhemd","Overshirt"]
[{"$f":"IF('1. Order'!B6=\"\",\"\",'1. Order'!B6)","v":""},{"$f":"IF('1. Order'!I6=\"\",\"\",'1. Order'!I6)","v":""},{"$f":"IF('1. Order'!J6=\"\",\"\",'1. Order'!J6)","v":""},{"$f":"IF('1. Order'!K6=\"\",\"\",'1. Order'!K6)","v":""},{"$f":"IF('1. Order'!M6=\"\",\"\",'1. Order'!M6)","v":""},null,null,{"$f":"IF('1. Order'!AS6=\"\",\"\",'1. Order'!AS6)","v":""},{"$f":"IF('1. Order'!AF6=\"\",\"\",'1. Order'!AF6)","v":""}]
[{"$f":"IF('1. Order'!B7=\"\",\"\",'1. Order'!B7)","v":""},{"$f":"IF('1. Order'!I7=\"\",\"\",'1. Order'!I7)","v":""},{"$f":"IF('1. Order'!J7=\"\",\"\",'1. Order'!J7)","v":""},{"$f":"IF('1. Order'!K7=\"\",\"\",'1. Order'!K7)","v":""},{"$f":"IF('1. Order'!M7=\"\",\"\",'1. Order'!M7)","v":""},null,null,{"$f":"IF('1. Order'!AS7=\"\",\"\",'1. Order'!AS7)","v":""},{"$f":"IF('1. Order'!AF7=\"\",\"\",'1. Order'!AF7)","v":""}]
[{"$f":"IF('1. Order'!B8=\"\",\"\",'1. Order'!B8)","v":""},{"$f":"IF('1. Order'!I8=\"\",\"\",'1. Order'!I8)","v":""},{"$f":"IF('1. Order'!J8=\"\",\"\",'1. Order'!J8)","v":""},{"$f":"IF('1. Order'!K8=\"\",\"\",'1. Order'!K8)","v":""},{"$f":"IF('1. Order'!M8=\"\",\"\",'1. Order'!M8)","v":""},null,null,{"$f":"IF('1. Order'!AS8=\"\",\"\",'1. Order'!AS8)","v":""},{"$f":"IF('1. Order'!AF8=\"\",\"\",'1. Order'!AF8)","v":""}]
[{"$f":"IF('1. Order'!B9=\"\",\"\",'1. Order'!B9)","v":""},{"$f":"IF('1. Order'!I9=\"\",\"\",'1. Order'!I9)","v":""},{"$f":"IF('1. Order'!J9=\"\",\"\",'1. Order'!J9)","v":""},{"$f":"IF('1. Order'!K9=\"\",\"\",'1. Order'!K9)","v":""},{"$f":"IF('1. Order'!M9=\"\",\"\",'1. Order'!M9)","v":""},null,null,{"$f":"IF('1. Order'!AS9=\"\",\"\",'1. Order'!AS9)","v":""},{"$f":"IF('1. Order'!AF9=\"\",\"\",'1. Order'!AF9)","v":""}]
[{"$f":"IF('1. Order'!B10=\"\",\"\",'1. Order'!B10)","v":""},{"$f":"IF('1. Order'!I10=\"\",\"\",'1. Order'!I10)","v":""},{"$f":"IF('1. Order'!J10=\"\",\"\",'1. Order'!J10)","v":""},{"$f":"IF('1. Order'!K10=\"\",\"\",'1. Order'!K10)","v":""},{"$f":"IF('1. Order'!M10=\"\",\"\",'1. Order'!M10)","v":""},null,null,{"$f":"IF('1. Order'!AS10=\"\",\"\",'1. Order'!AS10)","v":""},{"$f":"IF('1. Order'!AF10=\"\",\"\",'1. Order'!AF10)","v":""}]
[{"$f":"IF('1. Order'!B11=\"\",\"\",'1. Order'!B11)","v":""},{"$f":"IF('1. Order'!I11=\"\",\"\",'1. Order'!I11)","v":""},{"$f":"IF('1. Order'!J11=\"\",\"\",'1. Order'!J11)","v":""},{"$f":"IF('1. Order'!K11=\"\",\"\",'1. Order'!K11)","v":""},{"$f":"IF('1. Order'!M11=\"\",\"\",'1. Order'!M11)","v":""},null,null,{"$f":"IF('1. Order'!AS11=\"\",\"\",'1. Order'!AS11)","v":""},{"$f":"IF('1. Order'!AF11=\"\",\"\",'1. Order'!AF11)","v":""}]
[{"$f":"IF('1. Order'!B12=\"\",\"\",'1. Order'!B12)","v":""},{"$f":"IF('1. Order'!I12=\"\",\"\",'1. Order'!I12)","v":""},{"$f":"IF('1. Order'!J12=\"\",\"\",'1. Order'!J12)","v":""},{"$f":"IF('1. Order'!K12=\"\",\"\",'1. Order'!K12)","v":""},{"$f":"IF('1. Order'!M12=\"\",\"\",'1. Order'!M12)","v":""},null,null,{"$f":"IF('1. Order'!AS12=\"\",\"\",'1. Order'!AS12)","v":""},{"$f":"IF('1. Order'!AF12=\"\",\"\",'1. Order'!AF12)","v":""}]
[{"$f":"IF('1. Order'!B13=\"\",\"\",'1. Order'!B13)","v":""},{"$f":"IF('1. Order'!I13=\"\",\"\",'1. Order'!I13)","v":""},{"$f":"IF('1. Order'!J13=\"\",\"\",'1. Order'!J13)","v":""},{"$f":"IF('1. Order'!K13=\"\",\"\",'1. Order'!K13)","v":""},{"$f":"IF('1. Order'!M13=\"\",\"\",'1. Order'!M13)","v":""},null,null,{"$f":"IF('1. Order'!AS13=\"\",\"\",'1. Order'!AS13)","v":""},{"$f":"IF('1. Order'!AF13=\"\",\"\",'1. Order'!AF13)","v":""}]
[{"$f":"IF('1. Order'!B14=\"\",\"\",'1. Order'!B14)","v":""},{"$f":"IF('1. Order'!I14=\"\",\"\",'1. Order'!I14)","v":""},{"$f":"IF('1. Order'!J14=\"\",\"\",'1. Order'!J14)","v":""},{"$f":"IF('1. Order'!K14=\"\",\"\",'1. Order'!K14)","v":""},{"$f":"IF('1. Order'!M14=\"\",\"\",'1. Order'!M14)","v":""},null,null,{"$f":"IF('1. Order'!AS14=\"\",\"\",'1. Order'!AS14)","v":""},{"$f":"IF('1. Order'!AF14=\"\",\"\",'1. Order'!AF14)","v":""}]
[{"$f":"IF('1. Order'!B15=\"\",\"\",'1. Order'!B15)","v":""},{"$f":"IF('1. Order'!I15=\"\",\"\",'1. Order'!I15)","v":""},{"$f":"IF('1. Order'!J15=\"\",\"\",'1. Order'!J15)","v":""},{"$f":"IF('1. Order'!K15=\"\",\"\",'1. Order'!K15)","v":""},{"$f":"IF('1. Order'!M15=\"\",\"\",'1. Order'!M15)","v":""},null,null,{"$f":"IF('1. Order'!AS15=\"\",\"\",'1. Order'!AS15)","v":""},{"$f":"IF('1. Order'!AF15=\"\",\"\",'1. Order'!AF15)","v":""}]
[{"$f":"IF('1. Order'!B16=\"\",\"\",'1. Order'!B16)","v":""},{"$f":"IF('1. Order'!I16=\"\",\"\",'1. Order'!I16)","v":""},{"$f":"IF('1. Order'!J16=\"\",\"\",'1. Order'!J16)","v":""},{"$f":"IF('1. Order'!K16=\"\",\"\",'1. Order'!K16)","v":""},{"$f":"IF('1. Order'!M16=\"\",\"\",'1. Order'!M16)","v":""},null,null,{"$f":"IF('1. Order'!AS16=\"\",\"\",'1. Order'!AS16)","v":""},{"$f":"IF('1. Order'!AF16=\"\",\"\",'1. Order'!AF16)","v":""}]
[{"$f":"IF('1. Order'!B17=\"\",\"\",'1. Order'!B17)","v":""},{"$f":"IF('1. Order'!I17=\"\",\"\",'1. Order'!I17)","v":""},{"$f":"IF('1. Order'!J17=\"\",\"\",'1. Order'!J17)","v":""},{"$f":"IF('1. Order'!K17=\"\",\"\",'1. Order'!K17)","v":""},{"$f":"IF('1. Order'!M17=\"\",\"\",'1. Order'!M17)","v":""},null,null,{"$f":"IF('1. Order'!AS17=\"\",\"\",'1. Order'!AS17)","v":""},{"$f":"IF('1. Order'!AF17=\"\",\"\",'1. Order'!AF17)","v":""}]
[{"$f":"IF('1. Order'!B18=\"\",\"\",'1. Order'!B18)","v":""},{"$f":"IF('1. Order'!I18=\"\",\"\",'1. Order'!I18)","v":""},{"$f":"IF('1. Order'!J18=\"\",\"\",'1. Order'!J18)","v":""},{"$f":"IF('1. Order'!K18=\"\",\"\",'1. Order'!K18)","v":""},{"$f":"IF('1. Order'!M18=\"\",\"\",'1. Order'!M18)","v":""},null,null,{"$f":"IF('1. Order'!AS18=\"\",\"\",'1. Order'!AS18)","v":""},{"$f":"IF('1. Order'!AF18=\"\",\"\",'1. Order'!AF18)","v":""}]
[{"$f":"IF('1. Order'!B19=\"\",\"\",'1. Order'!B19)","v":""},{"$f":"IF('1. Order'!I19=\"\",\"\",'1. Order'!I19)","v":""},{"$f":"IF('1. Order'!J19=\"\",\"\",'1. Order'!J19)","v":""},{"$f":"IF('1. Order'!K19=\"\",\"\",'1. Order'!K19)","v":""},{"$f":"IF('1. Order'!M19=\"\",\"\",'1. Order'!M19)","v":""},null,null,{"$f":"IF('1. Order'!AS19=\"\",\"\",'1. Order'!AS19)","v":""},{"$f":"IF('1. Order'!AF19=\"\",\"\",'1. Order'!AF19)","v":""}]
[{"$f":"IF('1. Order'!B20=\"\",\"\",'1. Order'!B20)","v":""},{"$f":"IF('1. Order'!I20=\"\",\"\",'1. Order'!I20)","v":""},{"$f":"IF('1. Order'!J20=\"\",\"\",'1. Order'!J20)","v":""},{"$f":"IF('1. Order'!K20=\"\",\"\",'1. Order'!K20)","v":""},{"$f":"IF('1. Order'!M20=\"\",\"\",'1. Order'!M20)","v":""},null,null,{"$f":"IF('1. Order'!AS20=\"\",\"\",'1. Order'!AS20)","v":""},{"$f":"IF('1. Order'!AF20=\"\",\"\",'1. Order'!AF20)","v":""}]
[{"$f":"IF('1. Order'!B21=\"\",\"\",'1. Order'!B21)","v":""},{"$f":"IF('1. Order'!I21=\"\",\"\",'1. Order'!I21)","v":""},{"$f":"IF('1. Order'!J21=\"\",\"\",'1. Order'!J21)","v":""},{"$f":"IF('1. Order'!K21=\"\",\"\",'1. Order'!K21)","v":""},{"$f":"IF('1. Order'!M21=\"\",\"\",'1. Order'!M21)","v":""},null,null,{"$f":"IF('1. Order'!AS21=\"\",\"\",'1. Order'!AS21)","v":""},{"$f":"IF('1. Order'!AF21=\"\",\"\",'1. Order'!AF21)","v":""}]
[{"$f":"IF('1. Order'!B22=\"\",\"\",'1. Order'!B22)","v":""},{"$f":"IF('1. Order'!I22=\"\",\"\",'1. Order'!I22)","v":""},{"$f":"IF('1. Order'!J22=\"\",\"\",'1. Order'!J22)","v":""},{"$f":"IF('1. Order'!K22=\"\",\"\",'1. Order'!K22)","v":""},{"$f":"IF('1. Order'!M22=\"\",\"\",'1. Order'!M22)","v":""},null,null,{"$f":"IF('1. Order'!AS22=\"\",\"\",'1. Order'!AS22)","v":""},{"$f":"IF('1. Order'!AF22=\"\",\"\",'1. Order'!AF22)","v":""}]
[{"$f":"IF('1. Order'!B23=\"\",\"\",'1. Order'!B23)","v":""},{"$f":"IF('1. Order'!I23=\"\",\"\",'1. Order'!I23)","v":""},{"$f":"IF('1. Order'!J23=\"\",\"\",'1. Order'!J23)","v":""},{"$f":"IF('1. Order'!K23=\"\",\"\",'1. Order'!K23)","v":""},{"$f":"IF('1. Order'!M23=\"\",\"\",'1. Order'!M23)","v":""},null,null,{"$f":"IF('1. Order'!AS23=\"\",\"\",'1. Order'!AS23)","v":""},{"$f":"IF('1. Order'!AF23=\"\",\"\",'1. Order'!AF23)","v":""}]
[{"$f":"IF('1. Order'!B24=\"\",\"\",'1. Order'!B24)","v":""},{"$f":"IF('1. Order'!I24=\"\",\"\",'1. Order'!I24)","v":""},{"$f":"IF('1. Order'!J24=\"\",\"\",'1. Order'!J24)","v":""},{"$f":"IF('1. Order'!K24=\"\",\"\",'1. Order'!K24)","v":""},{"$f":"IF('1. Order'!M24=\"\",\"\",'1. Order'!M24)","v":""},null,null,{"$f":"IF('1. Order'!AS24=\"\",\"\",'1. Order'!AS24)","v":""},{"$f":"IF('1. Order'!AF24=\"\",\"\",'1. Order'!AF24)","v":""}]
[{"$f":"IF('1. Order'!B25=\"\",\"\",'1. Order'!B25)","v":""},{"$f":"IF('1. Order'!I25=\"\",\"\",'1. Order'!I25)","v":""},{"$f":"IF('1. Order'!J25=\"\",\"\",'1. Order'!J25)","v":""},{"$f":"IF('1. Order'!K25=\"\",\"\",'1. Order'!K25)","v":""},{"$f":"IF('1. Order'!M25=\"\",\"\",'1. Order'!M25)","v":""},null,null,{"$f":"IF('1. Order'!AS25=\"\",\"\",'1. Order'!AS25)","v":""},{"$f":"IF('1. Order'!AF25=\"\",\"\",'1. Order'!AF25)","v":""}]
[{"$f":"IF('1. Order'!B26=\"\",\"\",'1. Order'!B26)","v":""},{"$f":"IF('1. Order'!I26=\"\",\"\",'1. Order'!I26)","v":""},{"$f":"IF('1. Order'!J26=\"\",\"\",'1. Order'!J26)","v":""},{"$f":"IF('1. Order'!K26=\"\",\"\",'1. Order'!K26)","v":""},{"$f":"IF('1. Order'!M26=\"\",\"\",'1. Order'!M26)","v":""},null,null,{"$f":"IF('1. Order'!AS26=\"\",\"\",'1. Order'!AS26)","v":""},{"$f":"IF('1. Order'!AF26=\"\",\"\",'1. Order'!AF26)","v":""}]
[{"$f":"IF('1. Order'!B27=\"\",\"\",'1. Order'!B27)","v":""},{"$f":"IF('1. Order'!I27=\"\",\"\",'1. Order'!I27)","v":""},{"$f":"IF('1. Order'!J27=\"\",\"\",'1. Order'!J27)","v":""},{"$f":"IF('1. Order'!K27=\"\",\"\",'1. Order'!K27)","v":""},{"$f":"IF('1. Order'!M27=\"\",\"\",'1. Order'!M27)","v":""},null,null,{"$f":"IF('1. Order'!AS27=\"\",\"\",'1. Order'!AS27)","v":""},{"$f":"IF('1. Order'!AF27=\"\",\"\",'1. Order'!AF27)","v":""}]
[{"$f":"IF('1. Order'!B28=\"\",\"\",'1. Order'!B28)","v":""},{"$f":"IF('1. Order'!I28=\"\",\"\",'1. Order'!I28)","v":""},{"$f":"IF('1. Order'!J28=\"\",\"\",'1. Order'!J28)","v":""},{"$f":"IF('1. Order'!K28=\"\",\"\",'1. Order'!K28)","v":""},{"$f":"IF('1. Order'!M28=\"\",\"\",'1. Order'!M28)","v":""},null,null,{"$f":"IF('1. Order'!AS28=\"\",\"\",'1. Order'!AS28)","v":""},{"$f":"IF('1. Order'!AF28=\"\",\"\",'1. Order'!AF28)","v":""}]
[{"$f":"IF('1. Order'!B29=\"\",\"\",'1. Order'!B29)","v":""},{"$f":"IF('1. Order'!I29=\"\",\"\",'1. Order'!I29)","v":""},{"$f":"IF('1. Order'!J29=\"\",\"\",'1. Order'!J29)","v":""},{"$f":"IF('1. Order'!K29=\"\",\"\",'1. Order'!K29)","v":""},{"$f":"IF('1. Order'!M29=\"\",\"\",'1. Order'!M29)","v":""},null,null,{"$f":"IF('1. Order'!AS29=\"\",\"\",'1. Order'!AS29)","v":""},{"$f":"IF('1. Order'!AF29=\"\",\"\",'1. Order'!AF29)","v":""}]
[{"$f":"IF('1. Order'!B30=\"\",\"\",'1. Order'!B30)","v":""},{"$f":"IF('1. Order'!I30=\"\",\"\",'1. Order'!I30)","v":""},{"$f":"IF('1. Order'!J30=\"\",\"\",'1. Order'!J30)","v":""},{"$f":"IF('1. Order'!K30=\"\",\"\",'1. Order'!K30)","v":""},{"$f":"IF('1. Order'!M30=\"\",\"\",'1. Order'!M30)","v":""},null,null,{"$f":"IF('1. Order'!AS30=\"\",\"\",'1. Order'!AS30)","v":""},{"$f":"IF('1. Order'!AF30=\"\",\"\",'1. Order'!AF30)","v":""}]
[{"$f":"IF('1. Order'!B31=\"\",\"\",'1. Order'!B31)","v":""},{"$f":"IF('1. Order'!I31=\"\",\"\",'1. Order'!I31)","v":""},{"$f":"IF('1. Order'!J31=\"\",\"\",'1. Order'!J31)","v":""},{"$f":"IF('1. Order'!K31=\"\",\"\",'1. Order'!K31)","v":""},{"$f":"IF('1. Order'!M31=\"\",\"\",'1. Order'!M31)","v":""},null,null,{"$f":"IF('1. Order'!AS31=\"\",\"\",'1. Order'!AS31)","v":""},{"$f":"IF('1. Order'!AF31=\"\",\"\",'1. Order'!AF31)","v":""}]
[{"$f":"IF('1. Order'!B32=\"\",\"\",'1. Order'!B32)","v":""},{"$f":"IF('1. Order'!I32=\"\",\"\",'1. Order'!I32)","v":""},{"$f":"IF('1. Order'!J32=\"\",\"\",'1. Order'!J32)","v":""},{"$f":"IF('1. Order'!K32=\"\",\"\",'1. Order'!K32)","v":""},{"$f":"IF('1. Order'!M32=\"\",\"\",'1. Order'!M32)","v":""},null,null,{"$f":"IF('1. Order'!AS32=\"\",\"\",'1. Order'!AS32)","v":""},{"$f":"IF('1. Order'!AF32=\"\",\"\",'1. Order'!AF32)","v":""}]
[{"$f":"IF('1. Order'!B33=\"\",\"\",'1. Order'!B33)","v":""},{"$f":"IF('1. Order'!I33=\"\",\"\",'1. Order'!I33)","v":""},{"$f":"IF('1. Order'!J33=\"\",\"\",'1. Order'!J33)","v":""},{"$f":"IF('1. Order'!K33=\"\",\"\",'1. Order'!K33)","v":""},{"$f":"IF('1. Order'!M33=\"\",\"\",'1. Order'!M33)","v":""},null,null,{"$f":"IF('1. Order'!AS33=\"\",\"\",'1. Order'!AS33)","v":""},{"$f":"IF('1. Order'!AF33=\"\",\"\",'1. Order'!AF33)","v":""}]
[{"$f":"IF('1. Order'!B34=\"\",\"\",'1. Order'!B34)","v":""},{"$f":"IF('1. Order'!I34=\"\",\"\",'1. Order'!I34)","v":""},{"$f":"IF('1. Order'!J34=\"\",\"\",'1. Order'!J34)","v":""},{"$f":"IF('1. Order'!K34=\"\",\"\",'1. Order'!K34)","v":""},{"$f":"IF('1. Order'!M34=\"\",\"\",'1. Order'!M34)","v":""},null,null,{"$f":"IF('1. Order'!AS34=\"\",\"\",'1. Order'!AS34)","v":""},{"$f":"IF('1. Order'!AF34=\"\",\"\",'1. Order'!AF34)","v":""}]
[{"$f":"IF('1. Order'!B35=\"\",\"\",'1. Order'!B35)","v":""},{"$f":"IF('1. Order'!I35=\"\",\"\",'1. Order'!I35)","v":""},{"$f":"IF('1. Order'!J35=\"\",\"\",'1. Order'!J35)","v":""},{"$f":"IF('1. Order'!K35=\"\",\"\",'1. Order'!K35)","v":""},{"$f":"IF('1. Order'!M35=\"\",\"\",'1. Order'!M35)","v":""},null,null,{"$f":"IF('1. Order'!AS35=\"\",\"\",'1. Order'!AS35)","v":""},{"$f":"IF('1. Order'!AF35=\"\",\"\",'1. Order'!AF35)","v":""}]
[{"$f":"IF('1. Order'!B36=\"\",\"\",'1. Order'!B36)","v":""},{"$f":"IF('1. Order'!I36=\"\",\"\",'1. Order'!I36)","v":""},{"$f":"IF('1. Order'!J36=\"\",\"\",'1. Order'!J36)","v":""},{"$f":"IF('1. Order'!K36=\"\",\"\",'1. Order'!K36)","v":""},{"$f":"IF('1. Order'!M36=\"\",\"\",'1. Order'!M36)","v":""},null,null,{"$f":"IF('1. Order'!AS36=\"\",\"\",'1. Order'!AS36)","v":""},{"$f":"IF('1. Order'!AF36=\"\",\"\",'1. Order'!AF36)","v":""}]
[{"$f":"IF('1. Order'!B37=\"\",\"\",'1. Order'!B37)","v":""},{"$f":"IF('1. Order'!I37=\"\",\"\",'1. Order'!I37)","v":""},{"$f":"IF('1. Order'!J37=\"\",\"\",'1. Order'!J37)","v":""},{"$f":"IF('1. Order'!K37=\"\",\"\",'1. Order'!K37)","v":""},{"$f":"IF('1. Order'!M37=\"\",\"\",'1. Order'!M37)","v":""},null,null,{"$f":"IF('1. Order'!AS37=\"\",\"\",'1. Order'!AS37)","v":""},{"$f":"IF('1. Order'!AF37=\"\",\"\",'1. Order'!AF37)","v":""}]
[{"$f":"IF('1. Order'!B38=\"\",\"\",'1. Order'!B38)","v":""},{"$f":"IF('1. Order'!I38=\"\",\"\",'1. Order'!I38)","v":""},{"$f":"IF('1. Order'!J38=\"\",\"\",'1. Order'!J38)","v":""},{"$f":"IF('1. Order'!K38=\"\",\"\",'1. Order'!K38)","v":""},{"$f":"IF('1. Order'!M38=\"\",\"\",'1. Order'!M38)","v":""},null,null,{"$f":"IF('1. Order'!AS38=\"\",\"\",'1. Order'!AS38)","v":""},{"$f":"IF('1. Order'!AF38=\"\",\"\",'1. Order'!AF38)","v":""}]
[{"$f":"IF('1. Order'!B39=\"\",\"\",'1. Order'!B39)","v":""},{"$f":"IF('1. Order'!I39=\"\",\"\",'1. Order'!I39)","v":""},{"$f":"IF('1. Order'!J39=\"\",\"\",'1. Order'!J39)","v":""},{"$f":"IF('1. Order'!K39=\"\",\"\",'1. Order'!K39)","v":""},{"$f":"IF('1. Order'!M39=\"\",\"\",'1. Order'!M39)","v":""},null,null,{"$f":"IF('1. Order'!AS39=\"\",\"\",'1. Order'!AS39)","v":""},{"$f":"IF('1. Order'!AF39=\"\",\"\",'1. Order'!AF39)","v":""}]
[{"$f":"IF('1. Order'!B40=\"\",\"\",'1. Order'!B40)","v":""},{"$f":"IF('1. Order'!I40=\"\",\"\",'1. Order'!I40)","v":""},{"$f":"IF('1. Order'!J40=\"\",\"\",'1. Order'!J40)","v":""},{"$f":"IF('1. Order'!K40=\"\",\"\",'1. Order'!K40)","v":""},{"$f":"IF('1. Order'!M40=\"\",\"\",'1. Order'!M40)","v":""},null,null,{"$f":"IF('1. Order'!AS40=\"\",\"\",'1. Order'!AS40)","v":""},{"$f":"IF('1. Order'!AF40=\"\",\"\",'1. Order'!AF40)","v":""}]
[{"$f":"IF('1. Order'!B41=\"\",\"\",'1. Order'!B41)","v":""},{"$f":"IF('1. Order'!I41=\"\",\"\",'1. Order'!I41)","v":""},{"$f":"IF('1. Order'!J41=\"\",\"\",'1. Order'!J41)","v":""},{"$f":"IF('1. Order'!K41=\"\",\"\",'1. Order'!K41)","v":""},{"$f":"IF('1. Order'!M41=\"\",\"\",'1. Order'!M41)","v":""},null,null,{"$f":"IF('1. Order'!AS41=\"\",\"\",'1. Order'!AS41)","v":""},{"$f":"IF('1. Order'!AF41=\"\",\"\",'1. Order'!AF41)","v":""}]
[{"$f":"IF('1. Order'!B42=\"\",\"\",'1. Order'!B42)","v":""},{"$f":"IF('1. Order'!I42=\"\",\"\",'1. Order'!I42)","v":""},{"$f":"IF('1. Order'!J42=\"\",\"\",'1. Order'!J42)","v":""},{"$f":"IF('1. Order'!K42=\"\",\"\",'1. Order'!K42)","v":""},{"$f":"IF('1. Order'!M42=\"\",\"\",'1. Order'!M42)","v":""},null,null,{"$f":"IF('1. Order'!AS42=\"\",\"\",'1. Order'!AS42)","v":""},{"$f":"IF('1. Order'!AF42=\"\",\"\",'1. Order'!AF42)","v":""}]
[{"$f":"IF('1. Order'!B43=\"\",\"\",'1. Order'!B43)","v":""},{"$f":"IF('1. Order'!I43=\"\",\"\",'1. Order'!I43)","v":""},{"$f":"IF('1. Order'!J43=\"\",\"\",'1. Order'!J43)","v":""},{"$f":"IF('1. Order'!K43=\"\",\"\",'1. Order'!K43)","v":""},{"$f":"IF('1. Order'!M43=\"\",\"\",'1. Order'!M43)","v":""},null,null,{"$f":"IF('1. Order'!AS43=\"\",\"\",'1. Order'!AS43)","v":""},{"$f":"IF('1. Order'!AF43=\"\",\"\",'1. Order'!AF43)","v":""}]
[{"$f":"IF('1. Order'!B44=\"\",\"\",'1. Order'!B44)","v":""},{"$f":"IF('1. Order'!I44=\"\",\"\",'1. Order'!I44)","v":""},{"$f":"IF('1. Order'!J44=\"\",\"\",'1. Order'!J44)","v":""},{"$f":"IF('1. Order'!K44=\"\",\"\",'1. Order'!K44)","v":""},{"$f":"IF('1. Order'!M44=\"\",\"\",'1. Order'!M44)","v":""},null,null,{"$f":"IF('1. Order'!AS44=\"\",\"\",'1. Order'!AS44)","v":""},{"$f":"IF('1. Order'!AF44=\"\",\"\",'1. Order'!AF44)","v":""}]
[{"$f":"IF('1. Order'!B45=\"\",\"\",'1. Order'!B45)","v":""},{"$f":"IF('1. Order'!I45=\"\",\"\",'1. Order'!I45)","v":""},{"$f":"IF('1. Order'!J45=\"\",\"\",'1. Order'!J45)","v":""},{"$f":"IF('1. Order'!K45=\"\",\"\",'1. Order'!K45)","v":""},{"$f":"IF('1. Order'!M45=\"\",\"\",'1. Order'!M45)","v":""},null,null,{"$f":"IF('1. Order'!AS45=\"\",\"\",'1. Order'!AS45)","v":""},{"$f":"IF('1. Order'!AF45=\"\",\"\",'1. Order'!AF45)","v":""}]
[{"$f":"IF('1. Order'!B46=\"\",\"\",'1. Order'!B46)","v":""},{"$f":"IF('1. Order'!I46=\"\",\"\",'1. Order'!I46)","v":""},{"$f":"IF('1. Order'!J46=\"\",\"\",'1. Order'!J46)","v":""},{"$f":"IF('1. Order'!K46=\"\",\"\",'1. Order'!K46)","v":""},{"$f":"IF('1. Order'!M46=\"\",\"\",'1. Order'!M46)","v":""},null,null,{"$f":"IF('1. Order'!AS46=\"\",\"\",'1. Order'!AS46)","v":""},{"$f":"IF('1. Order'!AF46=\"\",\"\",'1. Order'!AF46)","v":""}]
[{"$f":"IF('1. Order'!B47=\"\",\"\",'1. Order'!B47)","v":""},{"$f":"IF('1. Order'!I47=\"\",\"\",'1. Order'!I47)","v":""},{"$f":"IF('1. Order'!J47=\"\",\"\",'1. Order'!J47)","v":""},{"$f":"IF('1. Order'!K47=\"\",\"\",'1. Order'!K47)","v":""},{"$f":"IF('1. Order'!M47=\"\",\"\",'1. Order'!M47)","v":""},null,null,{"$f":"IF('1. Order'!AS47=\"\",\"\",'1. Order'!AS47)","v":""},{"$f":"IF('1. Order'!AF47=\"\",\"\",'1. Order'!AF47)","v":""}]
[{"$f":"IF('1. Order'!B48=\"\",\"\",'1. Order'!B48)","v":""},{"$f":"IF('1. Order'!I48=\"\",\"\",'1. Order'!I48)","v":""},{"$f":"IF('1. Order'!J48=\"\",\"\",'1. Order'!J48)","v":""},{"$f":"IF('1. Order'!K48=\"\",\"\",'1. Order'!K48)","v":""},{"$f":"IF('1. Order'!M48=\"\",\"\",'1. Order'!M48)","v":""},null,null,{"$f":"IF('1. Order'!AS48=\"\",\"\",'1. Order'!AS48)","v":""},{"$f":"IF('1. Order'!AF48=\"\",\"\",'1. Order'!AF48)","v":""}]
[{"$f":"IF('1. Order'!B49=\"\",\"\",'1. Order'!B49)","v":""},{"$f":"IF('1. Order'!I49=\"\",\"\",'1. Order'!I49)","v":""},{"$f":"IF('1. Order'!J49=\"\",\"\",'1. Order'!J49)","v":""},{"$f":"IF('1. Order'!K49=\"\",\"\",'1. Order'!K49)","v":""},{"$f":"IF('1. Order'!M49=\"\",\"\",'1. Order'!M49)","v":""},null,null,{"$f":"IF('1. Order'!AS49=\"\",\"\",'1. Order'!AS49)","v":""},{"$f":"IF('1. Order'!AF49=\"\",\"\",'1. Order'!AF49)","v":""}]
[{"$f":"IF('1. Order'!B50=\"\",\"\",'1. Order'!B50)","v":""},{"$f":"IF('1. Order'!I50=\"\",\"\",'1. Order'!I50)","v":""},{"$f":"IF('1. Order'!J50=\"\",\"\",'1. Order'!J50)","v":""},{"$f":"IF('1. Order'!K50=\"\",\"\",'1. Order'!K50)","v":""},{"$f":"IF('1. Order'!M50=\"\",\"\",'1. Order'!M50)","v":""},null,null,{"$f":"IF('1. Order'!AS50=\"\",\"\",'1. Order'!AS50)","v":""},{"$f":"IF('1. Order'!AF50=\"\",\"\",'1. Order'!AF50)","v":""}]
[{"$f":"IF('1. Order'!B51=\"\",\"\",'1. Order'!B51)","v":""},{"$f":"IF('1. Order'!I51=\"\",\"\",'1. Order'!I51)","v":""},{"$f":"IF('1. Order'!J51=\"\",\"\",'1. Order'!J51)","v":""},{"$f":"IF('1. Order'!K51=\"\",\"\",'1. Order'!K51)","v":""},{"$f":"IF('1. Order'!M51=\"\",\"\",'1. Order'!M51)","v":""},null,null,{"$f":"IF('1. Order'!AS51=\"\",\"\",'1. Order'!AS51)","v":""},{"$f":"IF('1. Order'!AF51=\"\",\"\",'1. Order'!AF51)","v":""}]
[{"$f":"IF('1. Order'!B52=\"\",\"\",'1. Order'!B52)","v":""},{"$f":"IF('1. Order'!I52=\"\",\"\",'1. Order'!I52)","v":""},{"$f":"IF('1. Order'!J52=\"\",\"\",'1. Order'!J52)","v":""},{"$f":"IF('1. Order'!K52=\"\",\"\",'1. Order'!K52)","v":""},{"$f":"IF('1. Order'!M52=\"\",\"\",'1. Order'!M52)","v":""},null,null,{"$f":"IF('1. Order'!AS52=\"\",\"\",'1. Order'!AS52)","v":""},{"$f":"IF('1. Order'!AF52=\"\",\"\",'1. Order'!AF52)","v":""}]
[{"$f":"IF('1. Order'!B53=\"\",\"\",'1. Order'!B53)","v":""},{"$f":"IF('1. Order'!I53=\"\",\"\",'1. Order'!I53)","v":""},{"$f":"IF('1. Order'!J53=\"\",\"\",'1. Order'!J53)","v":""},{"$f":"IF('1. Order'!K53=\"\",\"\",'1. Order'!K53)","v":""},{"$f":"IF('1. Order'!M53=\"\",\"\",'1. Order'!M53)","v":""},null,null,{"$f":"IF('1. Order'!AS53=\"\",\"\",'1. Order'!AS53)","v":""},{"$f":"IF('1. Order'!AF53=\"\",\"\",'1. Order'!AF53)","v":""}]
[{"$f":"IF('1. Order'!B54=\"\",\"\",'1. Order'!B54)","v":""},{"$f":"IF('1. Order'!I54=\"\",\"\",'1. Order'!I54)","v":""},{"$f":"IF('1. Order'!J54=\"\",\"\",'1. Order'!J54)","v":""},{"$f":"IF('1. Order'!K54=\"\",\"\",'1. Order'!K54)","v":""},{"$f":"IF('1. Order'!M54=\"\",\"\",'1. Order'!M54)","v":""},null,null,{"$f":"IF('1. Order'!AS54=\"\",\"\",'1. Order'!AS54)","v":""},{"$f":"IF('1. Order'!AF54=\"\",\"\",'1. Order'!AF54)","v":""}]
[{"$f":"IF('1. Order'!B55=\"\",\"\",'1. Order'!B55)","v":""},{"$f":"IF('1. Order'!I55=\"\",\"\",'1. Order'!I55)","v":""},{"$f":"IF('1. Order'!J55=\"\",\"\",'1. Order'!J55)","v":""},{"$f":"IF('1. Order'!K55=\"\",\"\",'1. Order'!K55)","v":""},{"$f":"IF('1. Order'!M55=\"\",\"\",'1. Order'!M55)","v":""},null,null,{"$f":"IF('1. Order'!AS55=\"\",\"\",'1. Order'!AS55)","v":""},{"$f":"IF('1. Order'!AF55=\"\",\"\",'1. Order'!AF55)","v":""}]
[{"$f":"IF('1. Order'!B56=\"\",\"\",'1. Order'!B56)","v":""},{"$f":"IF('1. Order'!I56=\"\",\"\",'1. Order'!I56)","v":""},{"$f":"IF('1. Order'!J56=\"\",\"\",'1. Order'!J56)","v":""},{"$f":"IF('1. Order'!K56=\"\",\"\",'1. Order'!K56)","v":""},{"$f":"IF('1. Order'!M56=\"\",\"\",'1. Order'!M56)","v":""},null,null,{"$f":"IF('1. Order'!AS56=\"\",\"\",'1. Order'!AS56)","v":""},{"$f":"IF('1. Order'!AF56=\"\",\"\",'1. Order'!AF56)","v":""}]
[{"$f":"IF('1. Order'!B57=\"\",\"\",'1. Order'!B57)","v":""},{"$f":"IF('1. Order'!I57=\"\",\"\",'1. Order'!I57)","v":""},{"$f":"IF('1. Order'!J57=\"\",\"\",'1. Order'!J57)","v":""},{"$f":"IF('1. Order'!K57=\"\",\"\",'1. Order'!K57)","v":""},{"$f":"IF('1. Order'!M57=\"\",\"\",'1. Order'!M57)","v":""},null,null,{"$f":"IF('1. Order'!AS57=\"\",\"\",'1. Order'!AS57)","v":""},{"$f":"IF('1. Order'!AF57=\"\",\"\",'1. Order'!AF57)","v":""}]
[{"$f":"IF('1. Order'!B58=\"\",\"\",'1. Order'!B58)","v":""},{"$f":"IF('1. Order'!I58=\"\",\"\",'1. Order'!I58)","v":""},{"$f":"IF('1. Order'!J58=\"\",\"\",'1. Order'!J58)","v":""},{"$f":"IF('1. Order'!K58=\"\",\"\",'1. Order'!K58)","v":""},{"$f":"IF('1. Order'!M58=\"\",\"\",'1. Order'!M58)","v":""},null,null,{"$f":"IF('1. Order'!AS58=\"\",\"\",'1. Order'!AS58)","v":""},{"$f":"IF('1. Order'!AF58=\"\",\"\",'1. Order'!AF58)","v":""}]
[{"$f":"IF('1. Order'!B59=\"\",\"\",'1. Order'!B59)","v":""},{"$f":"IF('1. Order'!I59=\"\",\"\",'1. Order'!I59)","v":""},{"$f":"IF('1. Order'!J59=\"\",\"\",'1. Order'!J59)","v":""},{"$f":"IF('1. Order'!K59=\"\",\"\",'1. Order'!K59)","v":""},{"$f":"IF('1. Order'!M59=\"\",\"\",'1. Order'!M59)","v":""},null,null,{"$f":"IF('1. Order'!AS59=\"\",\"\",'1. Order'!AS59)","v":""},{"$f":"IF('1. Order'!AF59=\"\",\"\",'1. Order'!AF59)","v":""}]
[{"$f":"IF('1. Order'!B60=\"\",\"\",'1. Order'!B60)","v":""},{"$f":"IF('1. Order'!I60=\"\",\"\",'1. Order'!I60)","v":""},{"$f":"IF('1. Order'!J60=\"\",\"\",'1. Order'!J60)","v":""},{"$f":"IF('1. Order'!K60=\"\",\"\",'1. Order'!K60)","v":""},{"$f":"IF('1. Order'!M60=\"\",\"\",'1. Order'!M60)","v":""},null,null,{"$f":"IF('1. Order'!AS60=\"\",\"\",'1. Order'!AS60)","v":""},{"$f":"IF('1. Order'!AF60=\"\",\"\",'1. Order'!AF60)","v":""}]
[{"$f":"IF('1. Order'!B61=\"\",\"\",'1. Order'!B61)","v":""},{"$f":"IF('1. Order'!I61=\"\",\"\",'1. Order'!I61)","v":""},{"$f":"IF('1. Order'!J61=\"\",\"\",'1. Order'!J61)","v":""},{"$f":"IF('1. Order'!K61=\"\",\"\",'1. Order'!K61)","v":""},{"$f":"IF('1. Order'!M61=\"\",\"\",'1. Order'!M61)","v":""},null,null,{"$f":"IF('1. Order'!AS61=\"\",\"\",'1. Order'!AS61)","v":""},{"$f":"IF('1. Order'!AF61=\"\",\"\",'1. Order'!AF61)","v":""}]
[{"$f":"IF('1. Order'!B62=\"\",\"\",'1. Order'!B62)","v":""},{"$f":"IF('1. Order'!I62=\"\",\"\",'1. Order'!I62)","v":""},{"$f":"IF('1. Order'!J62=\"\",\"\",'1. Order'!J62)","v":""},{"$f":"IF('1. Order'!K62=\"\",\"\",'1. Order'!K62)","v":""},{"$f":"IF('1. Order'!M62=\"\",\"\",'1. Order'!M62)","v":""},null,null,{"$f":"IF('1. Order'!AS62=\"\",\"\",'1. Order'!AS62)","v":""},{"$f":"IF('1. Order'!AF62=\"\",\"\",'1. Order'!AF62)","v":""}]
[{"$f":"IF('1. Order'!B63=\"\",\"\",'1. Order'!B63)","v":""},{"$f":"IF('1. Order'!I63=\"\",\"\",'1. Order'!I63)","v":""},{"$f":"IF('1. Order'!J63=\"\",\"\",'1. Order'!J63)","v":""},{"$f":"IF('1. Order'!K63=\"\",\"\",'1. Order'!K63)","v":""},{"$f":"IF('1. Order'!M63=\"\",\"\",'1. Order'!M63)","v":""},null,null,{"$f":"IF('1. Order'!AS63=\"\",\"\",'1. Order'!AS63)","v":""},{"$f":"IF('1. Order'!AF63=\"\",\"\",'1. Order'!AF63)","v":""}]
[{"$f":"IF('1. Order'!B64=\"\",\"\",'1. Order'!B64)","v":""},{"$f":"IF('1. Order'!I64=\"\",\"\",'1. Order'!I64)","v":""},{"$f":"IF('1. Order'!J64=\"\",\"\",'1. Order'!J64)","v":""},{"$f":"IF('1. Order'!K64=\"\",\"\",'1. Order'!K64)","v":""},{"$f":"IF('1. Order'!M64=\"\",\"\",'1. Order'!M64)","v":""},null,null,{"$f":"IF('1. Order'!AS64=\"\",\"\",'1. Order'!AS64)","v":""},{"$f":"IF('1. Order'!AF64=\"\",\"\",'1. Order'!AF64)","v":""}]
[{"$f":"IF('1. Order'!B65=\"\",\"\",'1. Order'!B65)","v":""},{"$f":"IF('1. Order'!I65=\"\",\"\",'1. Order'!I65)","v":""},{"$f":"IF('1. Order'!J65=\"\",\"\",'1. Order'!J65)","v":""},{"$f":"IF('1. Order'!K65=\"\",\"\",'1. Order'!K65)","v":""},{"$f":"IF('1. Order'!M65=\"\",\"\",'1. Order'!M65)","v":""},null,null,{"$f":"IF('1. Order'!AS65=\"\",\"\",'1. Order'!AS65)","v":""},{"$f":"IF('1. Order'!AF65=\"\",\"\",'1. Order'!AF65)","v":""}]
[{"$f":"IF('1. Order'!B66=\"\",\"\",'1. Order'!B66)","v":""},{"$f":"IF('1. Order'!I66=\"\",\"\",'1. Order'!I66)","v":""},{"$f":"IF('1. Order'!J66=\"\",\"\",'1. Order'!J66)","v":""},{"$f":"IF('1. Order'!K66=\"\",\"\",'1. Order'!K66)","v":""},{"$f":"IF('1. Order'!M66=\"\",\"\",'1. Order'!M66)","v":""},null,null,{"$f":"IF('1. Order'!AS66=\"\",\"\",'1. Order'!AS66)","v":""},{"$f":"IF('1. Order'!AF66=\"\",\"\",'1. Order'!AF66)","v":""}]
[{"$f":"IF('1. Order'!B67=\"\",\"\",'1. Order'!B67)","v":""},{"$f":"IF('1. Order'!I67=\"\",\"\",'1. Order'!I67)","v":""},{"$f":"IF('1. Order'!J67=\"\",\"\",'1. Order'!J67)","v":""},{"$f":"IF('1. Order'!K67=\"\",\"\",'1. Order'!K67)","v":""},{"$f":"IF('1. Order'!M67=\"\",\"\",'1. Order'!M67)","v":""},null,null,{"$f":"IF('1. Order'!AS67=\"\",\"\",'1. Order'!AS67)","v":""},{"$f":"IF('1. Order'!AF67=\"\",\"\",'1. Order'!AF67)","v":""}]
[{"$f":"IF('1. Order'!B68=\"\",\"\",'1. Order'!B68)","v":""},{"$f":"IF('1. Order'!I68=\"\",\"\",'1. Order'!I68)","v":""},{"$f":"IF('1. Order'!J68=\"\",\"\",'1. Order'!J68)","v":""},{"$f":"IF('1. Order'!K68=\"\",\"\",'1. Order'!K68)","v":""},{"$f":"IF('1. Order'!M68=\"\",\"\",'1. Order'!M68)","v":""},null,null,{"$f":"IF('1. Order'!AS68=\"\",\"\",'1. Order'!AS68)","v":""},{"$f":"IF('1. Order'!AF68=\"\",\"\",'1. Order'!AF68)","v":""}]
[{"$f":"IF('1. Order'!B69=\"\",\"\",'1. Order'!B69)","v":""},{"$f":"IF('1. Order'!I69=\"\",\"\",'1. Order'!I69)","v":""},{"$f":"IF('1. Order'!J69=\"\",\"\",'1. Order'!J69)","v":""},{"$f":"IF('1. Order'!K69=\"\",\"\",'1. Order'!K69)","v":""},{"$f":"IF('1. Order'!M69=\"\",\"\",'1. Order'!M69)","v":""},null,null,{"$f":"IF('1. Order'!AS69=\"\",\"\",'1. Order'!AS69)","v":""},{"$f":"IF('1. Order'!AF69=\"\",\"\",'1. Order'!AF69)","v":""}]
[{"$f":"IF('1. Order'!B70=\"\",\"\",'1. Order'!B70)","v":""},{"$f":"IF('1. Order'!I70=\"\",\"\",'1. Order'!I70)","v":""},{"$f":"IF('1. Order'!J70=\"\",\"\",'1. Order'!J70)","v":""},{"$f":"IF('1. Order'!K70=\"\",\"\",'1. Order'!K70)","v":""},{"$f":"IF('1. Order'!M70=\"\",\"\",'1. Order'!M70)","v":""},null,null,{"$f":"IF('1. Order'!AS70=\"\",\"\",'1. Order'!AS70)","v":""},{"$f":"IF('1. Order'!AF70=\"\",\"\",'1. Order'!AF70)","v":""}]
[{"$f":"IF('1. Order'!B71=\"\",\"\",'1. Order'!B71)","v":""},{"$f":"IF('1. Order'!I71=\"\",\"\",'1. Order'!I71)","v":""},{"$f":"IF('1. Order'!J71=\"\",\"\",'1. Order'!J71)","v":""},{"$f":"IF('1. Order'!K71=\"\",\"\",'1. Order'!K71)","v":""},{"$f":"IF('1. Order'!M71=\"\",\"\",'1. Order'!M71)","v":""},null,null,{"$f":"IF('1. Order'!AS71=\"\",\"\",'1. Order'!AS71)","v":""},{"$f":"IF('1. Order'!AF71=\"\",\"\",'1. Order'!AF71)","v":""}]
[{"$f":"IF('1. Order'!B72=\"\",\"\",'1. Order'!B72)","v":""},{"$f":"IF('1. Order'!I72=\"\",\"\",'1. Order'!I72)","v":""},{"$f":"IF('1. Order'!J72=\"\",\"\",'1. Order'!J72)","v":""},{"$f":"IF('1. Order'!K72=\"\",\"\",'1. Order'!K72)","v":""},{"$f":"IF('1. Order'!M72=\"\",\"\",'1. Order'!M72)","v":""},null,null,{"$f":"IF('1. Order'!AS72=\"\",\"\",'1. Order'!AS72)","v":""},{"$f":"IF('1. Order'!AF72=\"\",\"\",'1. Order'!AF72)","v":""}]
[{"$f":"IF('1. Order'!B73=\"\",\"\",'1. Order'!B73)","v":""},{"$f":"IF('1. Order'!I73=\"\",\"\",'1. Order'!I73)","v":""},{"$f":"IF('1. Order'!J73=\"\",\"\",'1. Order'!J73)","v":""},{"$f":"IF('1. Order'!K73=\"\",\"\",'1. Order'!K73)","v":""},{"$f":"IF('1. Order'!M73=\"\",\"\",'1. Order'!M73)","v":""},null,null,{"$f":"IF('1. Order'!AS73=\"\",\"\",'1. Order'!AS73)","v":""},{"$f":"IF('1. Order'!AF73=\"\",\"\",'1. Order'!AF73)","v":""}]
[{"$f":"IF('1. Order'!B74=\"\",\"\",'1. Order'!B74)","v":""},{"$f":"IF('1. Order'!I74=\"\",\"\",'1. Order'!I74)","v":""},{"$f":"IF('1. Order'!J74=\"\",\"\",'1. Order'!J74)","v":""},{"$f":"IF('1. Order'!K74=\"\",\"\",'1. Order'!K74)","v":""},{"$f":"IF('1. Order'!M74=\"\",\"\",'1. Order'!M74)","v":""},null,null,{"$f":"IF('1. Order'!AS74=\"\",\"\",'1. Order'!AS74)","v":""},{"$f":"IF('1. Order'!AF74=\"\",\"\",'1. Order'!AF74)","v":""}]
[{"$f":"IF('1. Order'!B75=\"\",\"\",'1. Order'!B75)","v":""},{"$f":"IF('1. Order'!I75=\"\",\"\",'1. Order'!I75)","v":""},{"$f":"IF('1. Order'!J75=\"\",\"\",'1. Order'!J75)","v":""},{"$f":"IF('1. Order'!K75=\"\",\"\",'1. Order'!K75)","v":""},{"$f":"IF('1. Order'!M75=\"\",\"\",'1. Order'!M75)","v":""},null,null,{"$f":"IF('1. Order'!AS75=\"\",\"\",'1. Order'!AS75)","v":""},{"$f":"IF('1. Order'!AF75=\"\",\"\",'1. Order'!AF75)","v":""}]
[{"$f":"IF('1. Order'!B76=\"\",\"\",'1. Order'!B76)","v":""},{"$f":"IF('1. Order'!I76=\"\",\"\",'1. Order'!I76)","v":""},{"$f":"IF('1. Order'!J76=\"\",\"\",'1. Order'!J76)","v":""},{"$f":"IF('1. Order'!K76=\"\",\"\",'1. Order'!K76)","v":""},{"$f":"IF('1. Order'!M76=\"\",\"\",'1. Order'!M76)","v":""},null,null,{"$f":"IF('1. Order'!AS76=\"\",\"\",'1. Order'!AS76)","v":""},{"$f":"IF('1. Order'!AF76=\"\",\"\",'1. Order'!AF76)","v":""}]
[{"$f":"IF('1. Order'!B77=\"\",\"\",'1. Order'!B77)","v":""},{"$f":"IF('1. Order'!I77=\"\",\"\",'1. Order'!I77)","v":""},{"$f":"IF('1. Order'!J77=\"\",\"\",'1. Order'!J77)","v":""},{"$f":"IF('1. Order'!K77=\"\",\"\",'1. Order'!K77)","v":""},{"$f":"IF('1. Order'!M77=\"\",\"\",'1. Order'!M77)","v":""},null,null,{"$f":"IF('1. Order'!AS77=\"\",\"\",'1. Order'!AS77)","v":""},{"$f":"IF('1. Order'!AF77=\"\",\"\",'1. Order'!AF77)","v":""}]
[{"$f":"IF('1. Order'!B78=\"\",\"\",'1. Order'!B78)","v":""},{"$f":"IF('1. Order'!I78=\"\",\"\",'1. Order'!I78)","v":""},{"$f":"IF('1. Order'!J78=\"\",\"\",'1. Order'!J78)","v":""},{"$f":"IF('1. Order'!K78=\"\",\"\",'1. Order'!K78)","v":""},{"$f":"IF('1. Order'!M78=\"\",\"\",'1. Order'!M78)","v":""},null,null,{"$f":"IF('1. Order'!AS78=\"\",\"\",'1. Order'!AS78)","v":""},{"$f":"IF('1. Order'!AF78=\"\",\"\",'1. Order'!AF78)","v":""}]
[{"$f":"IF('1. Order'!B79=\"\",\"\",'1. Order'!B79)","v":""},{"$f":"IF('1. Order'!I79=\"\",\"\",'1. Order'!I79)","v":""},{"$f":"IF('1. Order'!J79=\"\",\"\",'1. Order'!J79)","v":""},{"$f":"IF('1. Order'!K79=\"\",\"\",'1. Order'!K79)","v":""},{"$f":"IF('1. Order'!M79=\"\",\"\",'1. Order'!M79)","v":""},null,null,{"$f":"IF('1. Order'!AS79=\"\",\"\",'1. Order'!AS79)","v":""},{"$f":"IF('1. Order'!AF79=\"\",\"\",'1. Order'!AF79)","v":""}]
[{"$f":"IF('1. Order'!B80=\"\",\"\",'1. Order'!B80)","v":""},{"$f":"IF('1. Order'!I80=\"\",\"\",'1. Order'!I80)","v":""},{"$f":"IF('1. Order'!J80=\"\",\"\",'1. Order'!J80)","v":""},{"$f":"IF('1. Order'!K80=\"\",\"\",'1. Order'!K80)","v":""},{"$f":"IF('1. Order'!M80=\"\",\"\",'1. Order'!M80)","v":""},null,null,{"$f":"IF('1. Order'!AS80=\"\",\"\",'1. Order'!AS80)","v":""},{"$f":"IF('1. Order'!AF80=\"\",\"\",'1. Order'!AF80)","v":""}]
[{"$f":"IF('1. Order'!B81=\"\",\"\",'1. Order'!B81)","v":""},{"$f":"IF('1. Order'!I81=\"\",\"\",'1. Order'!I81)","v":""},{"$f":"IF('1. Order'!J81=\"\",\"\",'1. Order'!J81)","v":""},{"$f":"IF('1. Order'!K81=\"\",\"\",'1. Order'!K81)","v":""},{"$f":"IF('1. Order'!M81=\"\",\"\",'1. Order'!M81)","v":""},null,null,{"$f":"IF('1. Order'!AS81=\"\",\"\",'1. Order'!AS81)","v":""},{"$f":"IF('1. Order'!AF81=\"\",\"\",'1. Order'!AF81)","v":""}]
[{"$f":"IF('1. Order'!B82=\"\",\"\",'1. Order'!B82)","v":""},{"$f":"IF('1. Order'!I82=\"\",\"\",'1. Order'!I82)","v":""},{"$f":"IF('1. Order'!J82=\"\",\"\",'1. Order'!J82)","v":""},{"$f":"IF('1. Order'!K82=\"\",\"\",'1. Order'!K82)","v":""},{"$f":"IF('1. Order'!M82=\"\",\"\",'1. Order'!M82)","v":""},null,null,{"$f":"IF('1. Order'!AS82=\"\",\"\",'1. Order'!AS82)","v":""},{"$f":"IF('1. Order'!AF82=\"\",\"\",'1. Order'!AF82)","v":""}]
[{"$f":"IF('1. Order'!B83=\"\",\"\",'1. Order'!B83)","v":""},{"$f":"IF('1. Order'!I83=\"\",\"\",'1. Order'!I83)","v":""},{"$f":"IF('1. Order'!J83=\"\",\"\",'1. Order'!J83)","v":""},{"$f":"IF('1. Order'!K83=\"\",\"\",'1. Order'!K83)","v":""},{"$f":"IF('1. Order'!M83=\"\",\"\",'1. Order'!M83)","v":""},null,null,{"$f":"IF('1. Order'!AS83=\"\",\"\",'1. Order'!AS83)","v":""},{"$f":"IF('1. Order'!AF83=\"\",\"\",'1. Order'!AF83)","v":""}]
[{"$f":"IF('1. Order'!B84=\"\",\"\",'1. Order'!B84)","v":""},{"$f":"IF('1. Order'!I84=\"\",\"\",'1. Order'!I84)","v":""},{"$f":"IF('1. Order'!J84=\"\",\"\",'1. Order'!J84)","v":""},{"$f":"IF('1. Order'!K84=\"\",\"\",'1. Order'!K84)","v":""},{"$f":"IF('1. Order'!M84=\"\",\"\",'1. Order'!M84)","v":""},null,null,{"$f":"IF('1. Order'!AS84=\"\",\"\",'1. Order'!AS84)","v":""},{"$f":"IF('1. Order'!AF84=\"\",\"\",'1. Order'!AF84)","v":""}]
[{"$f":"IF('1. Order'!B85=\"\",\"\",'1. Order'!B85)","v":""},{"$f":"IF('1. Order'!I85=\"\",\"\",'1. Order'!I85)","v":""},{"$f":"IF('1. Order'!J85=\"\",\"\",'1. Order'!J85)","v":""},{"$f":"IF('1. Order'!K85=\"\",\"\",'1. Order'!K85)","v":""},{"$f":"IF('1. Order'!M85=\"\",\"\",'1. Order'!M85)","v":""},null,null,{"$f":"IF('1. Order'!AS85=\"\",\"\",'1. Order'!AS85)","v":""},{"$f":"IF('1. Order'!AF85=\"\",\"\",'1. Order'!AF85)","v":""}]
[{"$f":"IF('1. Order'!B86=\"\",\"\",'1. Order'!B86)","v":""},{"$f":"IF('1. Order'!I86=\"\",\"\",'1. Order'!I86)","v":""},{"$f":"IF('1. Order'!J86=\"\",\"\",'1. Order'!J86)","v":""},{"$f":"IF('1. Order'!K86=\"\",\"\",'1. Order'!K86)","v":""},{"$f":"IF('1. Order'!M86=\"\",\"\",'1. Order'!M86)","v":""},null,null,{"$f":"IF('1. Order'!AS86=\"\",\"\",'1. Order'!AS86)","v":""},{"$f":"IF('1. Order'!AF86=\"\",\"\",'1. Order'!AF86)","v":""}]
[{"$f":"IF('1. Order'!B87=\"\",\"\",'1. Order'!B87)","v":""},{"$f":"IF('1. Order'!I87=\"\",\"\",'1. Order'!I87)","v":""},{"$f":"IF('1. Order'!J87=\"\",\"\",'1. Order'!J87)","v":""},{"$f":"IF('1. Order'!K87=\"\",\"\",'1. Order'!K87)","v":""},{"$f":"IF('1. Order'!M87=\"\",\"\",'1. Order'!M87)","v":""},null,null,{"$f":"IF('1. Order'!AS87=\"\",\"\",'1. Order'!AS87)","v":""},{"$f":"IF('1. Order'!AF87=\"\",\"\",'1. Order'!AF87)","v":""}]
[{"$f":"IF('1. Order'!B88=\"\",\"\",'1. Order'!B88)","v":""},{"$f":"IF('1. Order'!I88=\"\",\"\",'1. Order'!I88)","v":""},{"$f":"IF('1. Order'!J88=\"\",\"\",'1. Order'!J88)","v":""},{"$f":"IF('1. Order'!K88=\"\",\"\",'1. Order'!K88)","v":""},{"$f":"IF('1. Order'!M88=\"\",\"\",'1. Order'!M88)","v":""},null,null,{"$f":"IF('1. Order'!AS88=\"\",\"\",'1. Order'!AS88)","v":""},{"$f":"IF('1. Order'!AF88=\"\",\"\",'1. Order'!AF88)","v":""}]
[{"$f":"IF('1. Order'!B89=\"\",\"\",'1. Order'!B89)","v":""},{"$f":"IF('1. Order'!I89=\"\",\"\",'1. Order'!I89)","v":""},{"$f":"IF('1. Order'!J89=\"\",\"\",'1. Order'!J89)","v":""},{"$f":"IF('1. Order'!K89=\"\",\"\",'1. Order'!K89)","v":""},{"$f":"IF('1. Order'!M89=\"\",\"\",'1. Order'!M89)","v":""},null,null,{"$f":"IF('1. Order'!AS89=\"\",\"\",'1. Order'!AS89)","v":""},{"$f":"IF('1. Order'!AF89=\"\",\"\",'1. Order'!AF89)","v":""}]
[{"$f":"IF('1. Order'!B90=\"\",\"\",'1. Order'!B90)","v":""},{"$f":"IF('1. Order'!I90=\"\",\"\",'1. Order'!I90)","v":""},{"$f":"IF('1. Order'!J90=\"\",\"\",'1. Order'!J90)","v":""},{"$f":"IF('1. Order'!K90=\"\",\"\",'1. Order'!K90)","v":""},{"$f":"IF('1. Order'!M90=\"\",\"\",'1. Order'!M90)","v":""},null,null,{"$f":"IF('1. Order'!AS90=\"\",\"\",'1. Order'!AS90)","v":""},{"$f":"IF('1. Order'!AF90=\"\",\"\",'1. Order'!AF90)","v":""}]
[{"$f":"IF('1. Order'!B91=\"\",\"\",'1. Order'!B91)","v":""},{"$f":"IF('1. Order'!I91=\"\",\"\",'1. Order'!I91)","v":""},{"$f":"IF('1. Order'!J91=\"\",\"\",'1. Order'!J91)","v":""},{"$f":"IF('1. Order'!K91=\"\",\"\",'1. Order'!K91)","v":""},{"$f":"IF('1. Order'!M91=\"\",\"\",'1. Order'!M91)","v":""},null,null,{"$f":"IF('1. Order'!AS91=\"\",\"\",'1. Order'!AS91)","v":""},{"$f":"IF('1. Order'!AF91=\"\",\"\",'1. Order'!AF91)","v":""}]
[{"$f":"IF('1. Order'!B92=\"\",\"\",'1. Order'!B92)","v":""},{"$f":"IF('1. Order'!I92=\"\",\"\",'1. Order'!I92)","v":""},{"$f":"IF('1. Order'!J92=\"\",\"\",'1. Order'!J92)","v":""},{"$f":"IF('1. Order'!K92=\"\",\"\",'1. Order'!K92)","v":""},{"$f":"IF('1. Order'!M92=\"\",\"\",'1. Order'!M92)","v":""},null,null,{"$f":"IF('1. Order'!AS92=\"\",\"\",'1. Order'!AS92)","v":""},{"$f":"IF('1. Order'!AF92=\"\",\"\",'1. Order'!AF92)","v":""}]
[{"$f":"IF('1. Order'!B93=\"\",\"\",'1. Order'!B93)","v":""},{"$f":"IF('1. Order'!I93=\"\",\"\",'1. Order'!I93)","v":""},{"$f":"IF('1. Order'!J93=\"\",\"\",'1. Order'!J93)","v":""},{"$f":"IF('1. Order'!K93=\"\",\"\",'1. Order'!K93)","v":""},{"$f":"IF('1. Order'!M93=\"\",\"\",'1. Order'!M93)","v":""},null,null,{"$f":"IF('1. Order'!AS93=\"\",\"\",'1. Order'!AS93)","v":""},{"$f":"IF('1. Order'!AF93=\"\",\"\",'1. Order'!AF93)","v":""}]
[{"$f":"IF('1. Order'!B94=\"\",\"\",'1. Order'!B94)","v":""},{"$f":"IF('1. Order'!I94=\"\",\"\",'1. Order'!I94)","v":""},{"$f":"IF('1. Order'!J94=\"\",\"\",'1. Order'!J94)","v":""},{"$f":"IF('1. Order'!K94=\"\",\"\",'1. Order'!K94)","v":""},{"$f":"IF('1. Order'!M94=\"\",\"\",'1. Order'!M94)","v":""},null,null,{"$f":"IF('1. Order'!AS94=\"\",\"\",'1. Order'!AS94)","v":""},{"$f":"IF('1. Order'!AF94=\"\",\"\",'1. Order'!AF94)","v":""}]
[{"$f":"IF('1. Order'!B95=\"\",\"\",'1. Order'!B95)","v":""},{"$f":"IF('1. Order'!I95=\"\",\"\",'1. Order'!I95)","v":""},{"$f":"IF('1. Order'!J95=\"\",\"\",'1. Order'!J95)","v":""},{"$f":"IF('1. Order'!K95=\"\",\"\",'1. Order'!K95)","v":""},{"$f":"IF('1. Order'!M95=\"\",\"\",'1. Order'!M95)","v":""},null,null,{"$f":"IF('1. Order'!AS95=\"\",\"\",'1. Order'!AS95)","v":""},{"$f":"IF('1. Order'!AF95=\"\",\"\",'1. Order'!AF95)","v":""}]
[{"$f":"IF('1. Order'!B96=\"\",\"\",'1. Order'!B96)","v":""},{"$f":"IF('1. Order'!I96=\"\",\"\",'1. Order'!I96)","v":""},{"$f":"IF('1. Order'!J96=\"\",\"\",'1. Order'!J96)","v":""},{"$f":"IF('1. Order'!K96=\"\",\"\",'1. Order'!K96)","v":""},{"$f":"IF('1. Order'!M96=\"\",\"\",'1. Order'!M96)","v":""},null,null,{"$f":"IF('1. Order'!AS96=\"\",\"\",'1. Order'!AS96)","v":""},{"$f":"IF('1. Order'!AF96=\"\",\"\",'1. Order'!AF96)","v":""}]
[{"$f":"IF('1. Order'!B97=\"\",\"\",'1. Order'!B97)","v":""},{"$f":"IF('1. Order'!I97=\"\",\"\",'1. Order'!I97)","v":""},{"$f":"IF('1. Order'!J97=\"\",\"\",'1. Order'!J97)","v":""},{"$f":"IF('1. Order'!K97=\"\",\"\",'1. Order'!K97)","v":""},{"$f":"IF('1. Order'!M97=\"\",\"\",'1. Order'!M97)","v":""},null,null,{"$f":"IF('1. Order'!AS97=\"\",\"\",'1. Order'!AS97)","v":""},{"$f":"IF('1. Order'!AF97=\"\",\"\",'1. Order'!AF97)","v":""}]
[{"$f":"IF('1. Order'!B98=\"\",\"\",'1. Order'!B98)","v":""},{"$f":"IF('1. Order'!I98=\"\",\"\",'1. Order'!I98)","v":""},{"$f":"IF('1. Order'!J98=\"\",\"\",'1. Order'!J98)","v":""},{"$f":"IF('1. Order'!K98=\"\",\"\",'1. Order'!K98)","v":""},{"$f":"IF('1. Order'!M98=\"\",\"\",'1. Order'!M98)","v":""},null,null,{"$f":"IF('1. Order'!AS98=\"\",\"\",'1. Order'!AS98)","v":""},{"$f":"IF('1. Order'!AF98=\"\",\"\",'1. Order'!AF98)","v":""}]
[{"$f":"IF('1. Order'!B99=\"\",\"\",'1. Order'!B99)","v":""},{"$f":"IF('1. Order'!I99=\"\",\"\",'1. Order'!I99)","v":""},{"$f":"IF('1. Order'!J99=\"\",\"\",'1. Order'!J99)","v":""},{"$f":"IF('1. Order'!K99=\"\",\"\",'1. Order'!K99)","v":""},{"$f":"IF('1. Order'!M99=\"\",\"\",'1. Order'!M99)","v":""},null,null,{"$f":"IF('1. Order'!AS99=\"\",\"\",'1. Order'!AS99)","v":""},{"$f":"IF('1. Order'!AF99=\"\",\"\",'1. Order'!AF99)","v":""}]
[{"$f":"IF('1. Order'!B100=\"\",\"\",'1. Order'!B100)","v":""},{"$f":"IF('1. Order'!I100=\"\",\"\",'1. Order'!I100)","v":""},{"$f":"IF('1. Order'!J100=\"\",\"\",'1. Order'!J100)","v":""},{"$f":"IF('1. Order'!K100=\"\",\"\",'1. Order'!K100)","v":""},{"$f":"IF('1. Order'!M100=\"\",\"\",'1. Order'!M100)","v":""},null,null,{"$f":"IF('1. Order'!AS100=\"\",\"\",'1. Order'!AS100)","v":""},{"$f":"IF('1. Order'!AF100=\"\",\"\",'1. Order'!AF100)","v":""}]
[{"$f":"IF('1. Order'!B101=\"\",\"\",'1. Order'!B101)","v":""},{"$f":"IF('1. Order'!I101=\"\",\"\",'1. Order'!I101)","v":""},{"$f":"IF('1. Order'!J101=\"\",\"\",'1. Order'!J101)","v":""},{"$f":"IF('1. Order'!K101=\"\",\"\",'1. Order'!K101)","v":""},{"$f":"IF('1. Order'!M101=\"\",\"\",'1. Order'!M101)","v":""},null,null,{"$f":"IF('1. Order'!AS101=\"\",\"\",'1. Order'!AS101)","v":""},{"$f":"IF('1. Order'!AF101=\"\",\"\",'1. Order'!AF101)","v":""}]
[{"$f":"IF('1. Order'!B102=\"\",\"\",'1. Order'!B102)","v":""},{"$f":"IF('1. Order'!I102=\"\",\"\",'1. Order'!I102)","v":""},{"$f":"IF('1. Order'!J102=\"\",\"\",'1. Order'!J102)","v":""},{"$f":"IF('1. Order'!K102=\"\",\"\",'1. Order'!K102)","v":""},{"$f":"IF('1. Order'!M102=\"\",\"\",'1. Order'!M102)","v":""},null,null,{"$f":"IF('1. Order'!AS102=\"\",\"\",'1. Order'!AS102)","v":""},{"$f":"IF('1. Order'!AF102=\"\",\"\",'1. Order'!AF102)","v":""}]
[{"$f":"IF('1. Order'!B103=\"\",\"\",'1. Order'!B103)","v":""},{"$f":"IF('1. Order'!I103=\"\",\"\",'1. Order'!I103)","v":""},{"$f":"IF('1. Order'!J103=\"\",\"\",'1. Order'!J103)","v":""},{"$f":"IF('1. Order'!K103=\"\",\"\",'1. Order'!K103)","v":""},{"$f":"IF('1. Order'!M103=\"\",\"\",'1. Order'!M103)","v":""},null,null,{"$f":"IF('1. Order'!AS103=\"\",\"\",'1. Order'!AS103)","v":""},{"$f":"IF('1. Order'!AF103=\"\",\"\",'1. Order'!AF103)","v":""}]
[{"$f":"IF('1. Order'!B104=\"\",\"\",'1. Order'!B104)","v":""},{"$f":"IF('1. Order'!I104=\"\",\"\",'1. Order'!I104)","v":""},{"$f":"IF('1. Order'!J104=\"\",\"\",'1. Order'!J104)","v":""},{"$f":"IF('1. Order'!K104=\"\",\"\",'1. Order'!K104)","v":""},{"$f":"IF('1. Order'!M104=\"\",\"\",'1. Order'!M104)","v":""},null,null,{"$f":"IF('1. Order'!AS104=\"\",\"\",'1. Order'!AS104)","v":""},{"$f":"IF('1. Order'!AF104=\"\",\"\",'1. Order'!AF104)","v":""}]
[{"$f":"IF('1. Order'!B105=\"\",\"\",'1. Order'!B105)","v":""},{"$f":"IF('1. Order'!I105=\"\",\"\",'1. Order'!I105)","v":""},{"$f":"IF('1. Order'!J105=\"\",\"\",'1. Order'!J105)","v":""},{"$f":"IF('1. Order'!K105=\"\",\"\",'1. Order'!K105)","v":""},{"$f":"IF('1. Order'!M105=\"\",\"\",'1. Order'!M105)","v":""},null,null,{"$f":"IF('1. Order'!AS105=\"\",\"\",'1. Order'!AS105)","v":""},{"$f":"IF('1. Order'!AF105=\"\",\"\",'1. Order'!AF105)","v":""}]
[{"$f":"IF('1. Order'!B106=\"\",\"\",'1. Order'!B106)","v":""},{"$f":"IF('1. Order'!I106=\"\",\"\",'1. Order'!I106)","v":""},{"$f":"IF('1. Order'!J106=\"\",\"\",'1. Order'!J106)","v":""},{"$f":"IF('1. Order'!K106=\"\",\"\",'1. Order'!K106)","v":""},{"$f":"IF('1. Order'!M106=\"\",\"\",'1. Order'!M106)","v":""},null,null,{"$f":"IF('1. Order'!AS106=\"\",\"\",'1. Order'!AS106)","v":""},{"$f":"IF('1. Order'!AF106=\"\",\"\",'1. Order'!AF106)","v":""}]
[{"$f":"IF('1. Order'!B107=\"\",\"\",'1. Order'!B107)","v":""},{"$f":"IF('1. Order'!I107=\"\",\"\",'1. Order'!I107)","v":""},{"$f":"IF('1. Order'!J107=\"\",\"\",'1. Order'!J107)","v":""},{"$f":"IF('1. Order'!K107=\"\",\"\",'1. Order'!K107)","v":""},{"$f":"IF('1. Order'!M107=\"\",\"\",'1. Order'!M107)","v":""},null,null,{"$f":"IF('1. Order'!AS107=\"\",\"\",'1. Order'!AS107)","v":""},{"$f":"IF('1. Order'!AF107=\"\",\"\",'1. Order'!AF107)","v":""}]
[{"$f":"IF('1. Order'!B108=\"\",\"\",'1. Order'!B108)","v":""},{"$f":"IF('1. Order'!I108=\"\",\"\",'1. Order'!I108)","v":""},{"$f":"IF('1. Order'!J108=\"\",\"\",'1. Order'!J108)","v":""},{"$f":"IF('1. Order'!K108=\"\",\"\",'1. Order'!K108)","v":""},{"$f":"IF('1. Order'!M108=\"\",\"\",'1. Order'!M108)","v":""},null,null,{"$f":"IF('1. Order'!AS108=\"\",\"\",'1. Order'!AS108)","v":""},{"$f":"IF('1. Order'!AF108=\"\",\"\",'1. Order'!AF108)","v":""}]
[{"$f":"IF('1. Order'!B109=\"\",\"\",'1. Order'!B109)","v":""},{"$f":"IF('1. Order'!I109=\"\",\"\",'1. Order'!I109)","v":""},{"$f":"IF('1. Order'!J109=\"\",\"\",'1. Order'!J109)","v":""},{"$f":"IF('1. Order'!K109=\"\",\"\",'1. Order'!K109)","v":""},{"$f":"IF('1. Order'!M109=\"\",\"\",'1. Order'!M109)","v":""},null,null,{"$f":"IF('1. Order'!AS109=\"\",\"\",'1. Order'!AS109)","v":""},{"$f":"IF('1. Order'!AF109=\"\",\"\",'1. Order'!AF109)","v":""}]
[{"$f":"IF('1. Order'!B110=\"\",\"\",'1. Order'!B110)","v":""},{"$f":"IF('1. Order'!I110=\"\",\"\",'1. Order'!I110)","v":""},{"$f":"IF('1. Order'!J110=\"\",\"\",'1. Order'!J110)","v":""},{"$f":"IF('1. Order'!K110=\"\",\"\",'1. Order'!K110)","v":""},{"$f":"IF('1. Order'!M110=\"\",\"\",'1. Order'!M110)","v":""},null,null,{"$f":"IF('1. Order'!AS110=\"\",\"\",'1. Order'!AS110)","v":""},{"$f":"IF('1. Order'!AF110=\"\",\"\",'1. Order'!AF110)","v":""}]
[{"$f":"IF('1. Order'!B111=\"\",\"\",'1. Order'!B111)","v":""},{"$f":"IF('1. Order'!I111=\"\",\"\",'1. Order'!I111)","v":""},{"$f":"IF('1. Order'!J111=\"\",\"\",'1. Order'!J111)","v":""},{"$f":"IF('1. Order'!K111=\"\",\"\",'1. Order'!K111)","v":""},{"$f":"IF('1. Order'!M111=\"\",\"\",'1. Order'!M111)","v":""},null,null,{"$f":"IF('1. Order'!AS111=\"\",\"\",'1. Order'!AS111)","v":""},{"$f":"IF('1. Order'!AF111=\"\",\"\",'1. Order'!AF111)","v":""}]
[{"$f":"IF('1. Order'!B112=\"\",\"\",'1. Order'!B112)","v":""},{"$f":"IF('1. Order'!I112=\"\",\"\",'1. Order'!I112)","v":""},{"$f":"IF('1. Order'!J112=\"\",\"\",'1. Order'!J112)","v":""},{"$f":"IF('1. Order'!K112=\"\",\"\",'1. Order'!K112)","v":""},{"$f":"IF('1. Order'!M112=\"\",\"\",'1. Order'!M112)","v":""},null,null,{"$f":"IF('1. Order'!AS112=\"\",\"\",'1. Order'!AS112)","v":""},{"$f":"IF('1. Order'!AF112=\"\",\"\",'1. Order'!AF112)","v":""}]
[{"$f":"IF('1. Order'!B113=\"\",\"\",'1. Order'!B113)","v":""},{"$f":"IF('1. Order'!I113=\"\",\"\",'1. Order'!I113)","v":""},{"$f":"IF('1. Order'!J113=\"\",\"\",'1. Order'!J113)","v":""},{"$f":"IF('1. Order'!K113=\"\",\"\",'1. Order'!K113)","v":""},{"$f":"IF('1. Order'!M113=\"\",\"\",'1. Order'!M113)","v":""},null,null,{"$f":"IF('1. Order'!AS113=\"\",\"\",'1. Order'!AS113)","v":""},{"$f":"IF('1. Order'!AF113=\"\",\"\",'1. Order'!AF113)","v":""}]
[{"$f":"IF('1. Order'!B114=\"\",\"\",'1. Order'!B114)","v":""},{"$f":"IF('1. Order'!I114=\"\",\"\",'1. Order'!I114)","v":""},{"$f":"IF('1. Order'!J114=\"\",\"\",'1. Order'!J114)","v":""},{"$f":"IF('1. Order'!K114=\"\",\"\",'1. Order'!K114)","v":""},{"$f":"IF('1. Order'!M114=\"\",\"\",'1. Order'!M114)","v":""},null,null,{"$f":"IF('1. Order'!AS114=\"\",\"\",'1. Order'!AS114)","v":""},{"$f":"IF('1. Order'!AF114=\"\",\"\",'1. Order'!AF114)","v":""}]
[{"$f":"IF('1. Order'!B115=\"\",\"\",'1. Order'!B115)","v":""},{"$f":"IF('1. Order'!I115=\"\",\"\",'1. Order'!I115)","v":""},{"$f":"IF('1. Order'!J115=\"\",\"\",'1. Order'!J115)","v":""},{"$f":"IF('1. Order'!K115=\"\",\"\",'1. Order'!K115)","v":""},{"$f":"IF('1. Order'!M115=\"\",\"\",'1. Order'!M115)","v":""},null,null,{"$f":"IF('1. Order'!AS115=\"\",\"\",'1. Order'!AS115)","v":""},{"$f":"IF('1. Order'!AF115=\"\",\"\",'1. Order'!AF115)","v":""}]
[{"$f":"IF('1. Order'!B116=\"\",\"\",'1. Order'!B116)","v":""},{"$f":"IF('1. Order'!I116=\"\",\"\",'1. Order'!I116)","v":""},{"$f":"IF('1. Order'!J116=\"\",\"\",'1. Order'!J116)","v":""},{"$f":"IF('1. Order'!K116=\"\",\"\",'1. Order'!K116)","v":""},{"$f":"IF('1. Order'!M116=\"\",\"\",'1. Order'!M116)","v":""},null,null,{"$f":"IF('1. Order'!AS116=\"\",\"\",'1. Order'!AS116)","v":""},{"$f":"IF('1. Order'!AF116=\"\",\"\",'1. Order'!AF116)","v":""}]
[{"$f":"IF('1. Order'!B117=\"\",\"\",'1. Order'!B117)","v":""},{"$f":"IF('1. Order'!I117=\"\",\"\",'1. Order'!I117)","v":""},{"$f":"IF('1. Order'!J117=\"\",\"\",'1. Order'!J117)","v":""},{"$f":"IF('1. Order'!K117=\"\",\"\",'1. Order'!K117)","v":""},{"$f":"IF('1. Order'!M117=\"\",\"\",'1. Order'!M117)","v":""},null,null,{"$f":"IF('1. Order'!AS117=\"\",\"\",'1. Order'!AS117)","v":""},{"$f":"IF('1. Order'!AF117=\"\",\"\",'1. Order'!AF117)","v":""}]
[{"$f":"IF('1. Order'!B118=\"\",\"\",'1. Order'!B118)","v":""},{"$f":"IF('1. Order'!I118=\"\",\"\",'1. Order'!I118)","v":""},{"$f":"IF('1. Order'!J118=\"\",\"\",'1. Order'!J118)","v":""},{"$f":"IF('1. Order'!K118=\"\",\"\",'1. Order'!K118)","v":""},{"$f":"IF('1. Order'!M118=\"\",\"\",'1. Order'!M118)","v":""},null,null,{"$f":"IF('1. Order'!AS118=\"\",\"\",'1. Order'!AS118)","v":""},{"$f":"IF('1. Order'!AF118=\"\",\"\",'1. Order'!AF118)","v":""}]
[{"$f":"IF('1. Order'!B119=\"\",\"\",'1. Order'!B119)","v":""},{"$f":"IF('1. Order'!I119=\"\",\"\",'1. Order'!I119)","v":""},{"$f":"IF('1. Order'!J119=\"\",\"\",'1. Order'!J119)","v":""},{"$f":"IF('1. Order'!K119=\"\",\"\",'1. Order'!K119)","v":""},{"$f":"IF('1. Order'!M119=\"\",\"\",'1. Order'!M119)","v":""},null,null,{"$f":"IF('1. Order'!AS119=\"\",\"\",'1. Order'!AS119)","v":""},{"$f":"IF('1. Order'!AF119=\"\",\"\",'1. Order'!AF119)","v":""}]
[{"$f":"IF('1. Order'!B120=\"\",\"\",'1. Order'!B120)","v":""},{"$f":"IF('1. Order'!I120=\"\",\"\",'1. Order'!I120)","v":""},{"$f":"IF('1. Order'!J120=\"\",\"\",'1. Order'!J120)","v":""},{"$f":"IF('1. Order'!K120=\"\",\"\",'1. Order'!K120)","v":""},{"$f":"IF('1. Order'!M120=\"\",\"\",'1. Order'!M120)","v":""},null,null,{"$f":"IF('1. Order'!AS120=\"\",\"\",'1. Order'!AS120)","v":""},{"$f":"IF('1. Order'!AF120=\"\",\"\",'1. Order'!AF120)","v":""}]
[{"$f":"IF('1. Order'!B121=\"\",\"\",'1. Order'!B121)","v":""},{"$f":"IF('1. Order'!I121=\"\",\"\",'1. Order'!I121)","v":""},{"$f":"IF('1. Order'!J121=\"\",\"\",'1. Order'!J121)","v":""},{"$f":"IF('1. Order'!K121=\"\",\"\",'1. Order'!K121)","v":""},{"$f":"IF('1. Order'!M121=\"\",\"\",'1. Order'!M121)","v":""},null,null,{"$f":"IF('1. Order'!AS121=\"\",\"\",'1. Order'!AS121)","v":""},{"$f":"IF('1. Order'!AF121=\"\",\"\",'1. Order'!AF121)","v":""}]
[{"$f":"IF('1. Order'!B122=\"\",\"\",'1. Order'!B122)","v":""},{"$f":"IF('1. Order'!I122=\"\",\"\",'1. Order'!I122)","v":""},{"$f":"IF('1. Order'!J122=\"\",\"\",'1. Order'!J122)","v":""},{"$f":"IF('1. Order'!K122=\"\",\"\",'1. Order'!K122)","v":""},{"$f":"IF('1. Order'!M122=\"\",\"\",'1. Order'!M122)","v":""},null,null,{"$f":"IF('1. Order'!AS122=\"\",\"\",'1. Order'!AS122)","v":""},{"$f":"IF('1. Order'!AF122=\"\",\"\",'1. Order'!AF122)","v":""}]
[{"$f":"IF('1. Order'!B123=\"\",\"\",'1. Order'!B123)","v":""},{"$f":"IF('1. Order'!I123=\"\",\"\",'1. Order'!I123)","v":""},{"$f":"IF('1. Order'!J123=\"\",\"\",'1. Order'!J123)","v":""},{"$f":"IF('1. Order'!K123=\"\",\"\",'1. Order'!K123)","v":""},{"$f":"IF('1. Order'!M123=\"\",\"\",'1. Order'!M123)","v":""},null,null,{"$f":"IF('1. Order'!AS123=\"\",\"\",'1. Order'!AS123)","v":""},{"$f":"IF('1. Order'!AF123=\"\",\"\",'1. Order'!AF123)","v":""}]
[{"$f":"IF('1. Order'!B124=\"\",\"\",'1. Order'!B124)","v":""},{"$f":"IF('1. Order'!I124=\"\",\"\",'1. Order'!I124)","v":""},{"$f":"IF('1. Order'!J124=\"\",\"\",'1. Order'!J124)","v":""},{"$f":"IF('1. Order'!K124=\"\",\"\",'1. Order'!K124)","v":""},{"$f":"IF('1. Order'!M124=\"\",\"\",'1. Order'!M124)","v":""},null,null,{"$f":"IF('1. Order'!AS124=\"\",\"\",'1. Order'!AS124)","v":""},{"$f":"IF('1. Order'!AF124=\"\",\"\",'1. Order'!AF124)","v":""}]
[{"$f":"IF('1. Order'!B125=\"\",\"\",'1. Order'!B125)","v":""},{"$f":"IF('1. Order'!I125=\"\",\"\",'1. Order'!I125)","v":""},{"$f":"IF('1. Order'!J125=\"\",\"\",'1. Order'!J125)","v":""},{"$f":"IF('1. Order'!K125=\"\",\"\",'1. Order'!K125)","v":""},{"$f":"IF('1. Order'!M125=\"\",\"\",'1. Order'!M125)","v":""},null,null,{"$f":"IF('1. Order'!AS125=\"\",\"\",'1. Order'!AS125)","v":""},{"$f":"IF('1. Order'!AF125=\"\",\"\",'1. Order'!AF125)","v":""}]
[{"$f":"IF('1. Order'!B126=\"\",\"\",'1. Order'!B126)","v":""},{"$f":"IF('1. Order'!I126=\"\",\"\",'1. Order'!I126)","v":""},{"$f":"IF('1. Order'!J126=\"\",\"\",'1. Order'!J126)","v":""},{"$f":"IF('1. Order'!K126=\"\",\"\",'1. Order'!K126)","v":""},{"$f":"IF('1. Order'!M126=\"\",\"\",'1. Order'!M126)","v":""},null,null,{"$f":"IF('1. Order'!AS126=\"\",\"\",'1. Order'!AS126)","v":""},{"$f":"IF('1. Order'!AF126=\"\",\"\",'1. Order'!AF126)","v":""}]
[{"$f":"IF('1. Order'!B127=\"\",\"\",'1. Order'!B127)","v":""},{"$f":"IF('1. Order'!I127=\"\",\"\",'1. Order'!I127)","v":""},{"$f":"IF('1. Order'!J127=\"\",\"\",'1. Order'!J127)","v":""},{"$f":"IF('1. Order'!K127=\"\",\"\",'1. Order'!K127)","v":""},{"$f":"IF('1. Order'!M127=\"\",\"\",'1. Order'!M127)","v":""},null,null,{"$f":"IF('1. Order'!AS127=\"\",\"\",'1. Order'!AS127)","v":""},{"$f":"IF('1. Order'!AF127=\"\",\"\",'1. Order'!AF127)","v":""}]
[{"$f":"IF('1. Order'!B128=\"\",\"\",'1. Order'!B128)","v":""},{"$f":"IF('1. Order'!I128=\"\",\"\",'1. Order'!I128)","v":""},{"$f":"IF('1. Order'!J128=\"\",\"\",'1. Order'!J128)","v":""},{"$f":"IF('1. Order'!K128=\"\",\"\",'1. Order'!K128)","v":""},{"$f":"IF('1. Order'!M128=\"\",\"\",'1. Order'!M128)","v":""},null,null,{"$f":"IF('1. Order'!AS128=\"\",\"\",'1. Order'!AS128)","v":""},{"$f":"IF('1. Order'!AF128=\"\",\"\",'1. Order'!AF128)","v":""}]
[{"$f":"IF('1. Order'!B129=\"\",\"\",'1. Order'!B129)","v":""},{"$f":"IF('1. Order'!I129=\"\",\"\",'1. Order'!I129)","v":""},{"$f":"IF('1. Order'!J129=\"\",\"\",'1. Order'!J129)","v":""},{"$f":"IF('1. Order'!K129=\"\",\"\",'1. Order'!K129)","v":""},{"$f":"IF('1. Order'!M129=\"\",\"\",'1. Order'!M129)","v":""},null,null,{"$f":"IF('1. Order'!AS129=\"\",\"\",'1. Order'!AS129)","v":""},{"$f":"IF('1. Order'!AF129=\"\",\"\",'1. Order'!AF129)","v":""}]
[{"$f":"IF('1. Order'!B130=\"\",\"\",'1. Order'!B130)","v":""},{"$f":"IF('1. Order'!I130=\"\",\"\",'1. Order'!I130)","v":""},{"$f":"IF('1. Order'!J130=\"\",\"\",'1. Order'!J130)","v":""},{"$f":"IF('1. Order'!K130=\"\",\"\",'1. Order'!K130)","v":""},{"$f":"IF('1. Order'!M130=\"\",\"\",'1. Order'!M130)","v":""},null,null,{"$f":"IF('1. Order'!AS130=\"\",\"\",'1. Order'!AS130)","v":""},{"$f":"IF('1. Order'!AF130=\"\",\"\",'1. Order'!AF130)","v":""}]
[{"$f":"IF('1. Order'!B131=\"\",\"\",'1. Order'!B131)","v":""},{"$f":"IF('1. Order'!I131=\"\",\"\",'1. Order'!I131)","v":""},{"$f":"IF('1. Order'!J131=\"\",\"\",'1. Order'!J131)","v":""},{"$f":"IF('1. Order'!K131=\"\",\"\",'1. Order'!K131)","v":""},{"$f":"IF('1. Order'!M131=\"\",\"\",'1. Order'!M131)","v":""},null,null,{"$f":"IF('1. Order'!AS131=\"\",\"\",'1. Order'!AS131)","v":""},{"$f":"IF('1. Order'!AF131=\"\",\"\",'1. Order'!AF131)","v":""}]
[{"$f":"IF('1. Order'!B132=\"\",\"\",'1. Order'!B132)","v":""},{"$f":"IF('1. Order'!I132=\"\",\"\",'1. Order'!I132)","v":""},{"$f":"IF('1. Order'!J132=\"\",\"\",'1. Order'!J132)","v":""},{"$f":"IF('1. Order'!K132=\"\",\"\",'1. Order'!K132)","v":""},{"$f":"IF('1. Order'!M132=\"\",\"\",'1. Order'!M132)","v":""},null,null,{"$f":"IF('1. Order'!AS132=\"\",\"\",'1. Order'!AS132)","v":""},{"$f":"IF('1. Order'!AF132=\"\",\"\",'1. Order'!AF132)","v":""}]
[{"$f":"IF('1. Order'!B133=\"\",\"\",'1. Order'!B133)","v":""},{"$f":"IF('1. Order'!I133=\"\",\"\",'1. Order'!I133)","v":""},{"$f":"IF('1. Order'!J133=\"\",\"\",'1. Order'!J133)","v":""},{"$f":"IF('1. Order'!K133=\"\",\"\",'1. Order'!K133)","v":""},{"$f":"IF('1. Order'!M133=\"\",\"\",'1. Order'!M133)","v":""},null,null,{"$f":"IF('1. Order'!AS133=\"\",\"\",'1. Order'!AS133)","v":""},{"$f":"IF('1. Order'!AF133=\"\",\"\",'1. Order'!AF133)","v":""}]
[{"$f":"IF('1. Order'!B134=\"\",\"\",'1. Order'!B134)","v":""},{"$f":"IF('1. Order'!I134=\"\",\"\",'1. Order'!I134)","v":""},{"$f":"IF('1. Order'!J134=\"\",\"\",'1. Order'!J134)","v":""},{"$f":"IF('1. Order'!K134=\"\",\"\",'1. Order'!K134)","v":""},{"$f":"IF('1. Order'!M134=\"\",\"\",'1. Order'!M134)","v":""},null,null,{"$f":"IF('1. Order'!AS134=\"\",\"\",'1. Order'!AS134)","v":""},{"$f":"IF('1. Order'!AF134=\"\",\"\",'1. Order'!AF134)","v":""}]
[{"$f":"IF('1. Order'!B135=\"\",\"\",'1. Order'!B135)","v":""},{"$f":"IF('1. Order'!I135=\"\",\"\",'1. Order'!I135)","v":""},{"$f":"IF('1. Order'!J135=\"\",\"\",'1. Order'!J135)","v":""},{"$f":"IF('1. Order'!K135=\"\",\"\",'1. Order'!K135)","v":""},{"$f":"IF('1. Order'!M135=\"\",\"\",'1. Order'!M135)","v":""},null,null,{"$f":"IF('1. Order'!AS135=\"\",\"\",'1. Order'!AS135)","v":""},{"$f":"IF('1. Order'!AF135=\"\",\"\",'1. Order'!AF135)","v":""}]
[{"$f":"IF('1. Order'!B136=\"\",\"\",'1. Order'!B136)","v":""},{"$f":"IF('1. Order'!I136=\"\",\"\",'1. Order'!I136)","v":""},{"$f":"IF('1. Order'!J136=\"\",\"\",'1. Order'!J136)","v":""},{"$f":"IF('1. Order'!K136=\"\",\"\",'1. Order'!K136)","v":""},{"$f":"IF('1. Order'!M136=\"\",\"\",'1. Order'!M136)","v":""},null,null,{"$f":"IF('1. Order'!AS136=\"\",\"\",'1. Order'!AS136)","v":""},{"$f":"IF('1. Order'!AF136=\"\",\"\",'1. Order'!AF136)","v":""}]
[{"$f":"IF('1. Order'!B137=\"\",\"\",'1. Order'!B137)","v":""},{"$f":"IF('1. Order'!I137=\"\",\"\",'1. Order'!I137)","v":""},{"$f":"IF('1. Order'!J137=\"\",\"\",'1. Order'!J137)","v":""},{"$f":"IF('1. Order'!K137=\"\",\"\",'1. Order'!K137)","v":""},{"$f":"IF('1. Order'!M137=\"\",\"\",'1. Order'!M137)","v":""},null,null,{"$f":"IF('1. Order'!AS137=\"\",\"\",'1. Order'!AS137)","v":""},{"$f":"IF('1. Order'!AF137=\"\",\"\",'1. Order'!AF137)","v":""}]
[{"$f":"IF('1. Order'!B138=\"\",\"\",'1. Order'!B138)","v":""},{"$f":"IF('1. Order'!I138=\"\",\"\",'1. Order'!I138)","v":""},{"$f":"IF('1. Order'!J138=\"\",\"\",'1. Order'!J138)","v":""},{"$f":"IF('1. Order'!K138=\"\",\"\",'1. Order'!K138)","v":""},{"$f":"IF('1. Order'!M138=\"\",\"\",'1. Order'!M138)","v":""},null,null,{"$f":"IF('1. Order'!AS138=\"\",\"\",'1. Order'!AS138)","v":""},{"$f":"IF('1. Order'!AF138=\"\",\"\",'1. Order'!AF138)","v":""}]
[{"$f":"IF('1. Order'!B139=\"\",\"\",'1. Order'!B139)","v":""},{"$f":"IF('1. Order'!I139=\"\",\"\",'1. Order'!I139)","v":""},{"$f":"IF('1. Order'!J139=\"\",\"\",'1. Order'!J139)","v":""},{"$f":"IF('1. Order'!K139=\"\",\"\",'1. Order'!K139)","v":""},{"$f":"IF('1. Order'!M139=\"\",\"\",'1. Order'!M139)","v":""},null,null,{"$f":"IF('1. Order'!AS139=\"\",\"\",'1. Order'!AS139)","v":""},{"$f":"IF('1. Order'!AF139=\"\",\"\",'1. Order'!AF139)","v":""}]
[{"$f":"IF('1. Order'!B140=\"\",\"\",'1. Order'!B140)","v":""},{"$f":"IF('1. Order'!I140=\"\",\"\",'1. Order'!I140)","v":""},{"$f":"IF('1. Order'!J140=\"\",\"\",'1. Order'!J140)","v":""},{"$f":"IF('1. Order'!K140=\"\",\"\",'1. Order'!K140)","v":""},{"$f":"IF('1. Order'!M140=\"\",\"\",'1. Order'!M140)","v":""},null,null,{"$f":"IF('1. Order'!AS140=\"\",\"\",'1. Order'!AS140)","v":""},{"$f":"IF('1. Order'!AF140=\"\",\"\",'1. Order'!AF140)","v":""}]
[{"$f":"IF('1. Order'!B141=\"\",\"\",'1. Order'!B141)","v":""},{"$f":"IF('1. Order'!I141=\"\",\"\",'1. Order'!I141)","v":""},{"$f":"IF('1. Order'!J141=\"\",\"\",'1. Order'!J141)","v":""},{"$f":"IF('1. Order'!K141=\"\",\"\",'1. Order'!K141)","v":""},{"$f":"IF('1. Order'!M141=\"\",\"\",'1. Order'!M141)","v":""},null,null,{"$f":"IF('1. Order'!AS141=\"\",\"\",'1. Order'!AS141)","v":""},{"$f":"IF('1. Order'!AF141=\"\",\"\",'1. Order'!AF141)","v":""}]
[{"$f":"IF('1. Order'!B142=\"\",\"\",'1. Order'!B142)","v":""},{"$f":"IF('1. Order'!I142=\"\",\"\",'1. Order'!I142)","v":""},{"$f":"IF('1. Order'!J142=\"\",\"\",'1. Order'!J142)","v":""},{"$f":"IF('1. Order'!K142=\"\",\"\",'1. Order'!K142)","v":""},{"$f":"IF('1. Order'!M142=\"\",\"\",'1. Order'!M142)","v":""},null,null,{"$f":"IF('1. Order'!AS142=\"\",\"\",'1. Order'!AS142)","v":""},{"$f":"IF('1. Order'!AF142=\"\",\"\",'1. Order'!AF142)","v":""}]
[{"$f":"IF('1. Order'!B143=\"\",\"\",'1. Order'!B143)","v":""},{"$f":"IF('1. Order'!I143=\"\",\"\",'1. Order'!I143)","v":""},{"$f":"IF('1. Order'!J143=\"\",\"\",'1. Order'!J143)","v":""},{"$f":"IF('1. Order'!K143=\"\",\"\",'1. Order'!K143)","v":""},{"$f":"IF('1. Order'!M143=\"\",\"\",'1. Order'!M143)","v":""},null,null,{"$f":"IF('1. Order'!AS143=\"\",\"\",'1. Order'!AS143)","v":""},{"$f":"IF('1. Order'!AF143=\"\",\"\",'1. Order'!AF143)","v":""}]
[{"$f":"IF('1. Order'!B144=\"\",\"\",'1. Order'!B144)","v":""},{"$f":"IF('1. Order'!I144=\"\",\"\",'1. Order'!I144)","v":""},{"$f":"IF('1. Order'!J144=\"\",\"\",'1. Order'!J144)","v":""},{"$f":"IF('1. Order'!K144=\"\",\"\",'1. Order'!K144)","v":""},{"$f":"IF('1. Order'!M144=\"\",\"\",'1. Order'!M144)","v":""},null,null,{"$f":"IF('1. Order'!AS144=\"\",\"\",'1. Order'!AS144)","v":""},{"$f":"IF('1. Order'!AF144=\"\",\"\",'1. Order'!AF144)","v":""}]
[{"$f":"IF('1. Order'!B145=\"\",\"\",'1. Order'!B145)","v":""},{"$f":"IF('1. Order'!I145=\"\",\"\",'1. Order'!I145)","v":""},{"$f":"IF('1. Order'!J145=\"\",\"\",'1. Order'!J145)","v":""},{"$f":"IF('1. Order'!K145=\"\",\"\",'1. Order'!K145)","v":""},{"$f":"IF('1. Order'!M145=\"\",\"\",'1. Order'!M145)","v":""},null,null,{"$f":"IF('1. Order'!AS145=\"\",\"\",'1. Order'!AS145)","v":""},{"$f":"IF('1. Order'!AF145=\"\",\"\",'1. Order'!AF145)","v":""}]
[{"$f":"IF('1. Order'!B146=\"\",\"\",'1. Order'!B146)","v":""},{"$f":"IF('1. Order'!I146=\"\",\"\",'1. Order'!I146)","v":""},{"$f":"IF('1. Order'!J146=\"\",\"\",'1. Order'!J146)","v":""},{"$f":"IF('1. Order'!K146=\"\",\"\",'1. Order'!K146)","v":""},{"$f":"IF('1. Order'!M146=\"\",\"\",'1. Order'!M146)","v":""},null,null,{"$f":"IF('1. Order'!AS146=\"\",\"\",'1. Order'!AS146)","v":""},{"$f":"IF('1. Order'!AF146=\"\",\"\",'1. Order'!AF146)","v":""}]
[{"$f":"IF('1. Order'!B147=\"\",\"\",'1. Order'!B147)","v":""},{"$f":"IF('1. Order'!I147=\"\",\"\",'1. Order'!I147)","v":""},{"$f":"IF('1. Order'!J147=\"\",\"\",'1. Order'!J147)","v":""},{"$f":"IF('1. Order'!K147=\"\",\"\",'1. Order'!K147)","v":""},{"$f":"IF('1. Order'!M147=\"\",\"\",'1. Order'!M147)","v":""},null,null,{"$f":"IF('1. Order'!AS147=\"\",\"\",'1. Order'!AS147)","v":""},{"$f":"IF('1. Order'!AF147=\"\",\"\",'1. Order'!AF147)","v":""}]
[{"$f":"IF('1. Order'!B148=\"\",\"\",'1. Order'!B148)","v":""},{"$f":"IF('1. Order'!I148=\"\",\"\",'1. Order'!I148)","v":""},{"$f":"IF('1. Order'!J148=\"\",\"\",'1. Order'!J148)","v":""},{"$f":"IF('1. Order'!K148=\"\",\"\",'1. Order'!K148)","v":""},{"$f":"IF('1. Order'!M148=\"\",\"\",'1. Order'!M148)","v":""},null,null,{"$f":"IF('1. Order'!AS148=\"\",\"\",'1. Order'!AS148)","v":""},{"$f":"IF('1. Order'!AF148=\"\",\"\",'1. Order'!AF148)","v":""}]
[{"$f":"IF('1. Order'!B149=\"\",\"\",'1. Order'!B149)","v":""},{"$f":"IF('1. Order'!I149=\"\",\"\",'1. Order'!I149)","v":""},{"$f":"IF('1. Order'!J149=\"\",\"\",'1. Order'!J149)","v":""},{"$f":"IF('1. Order'!K149=\"\",\"\",'1. Order'!K149)","v":""},{"$f":"IF('1. Order'!M149=\"\",\"\",'1. Order'!M149)","v":""},null,null,{"$f":"IF('1. Order'!AS149=\"\",\"\",'1. Order'!AS149)","v":""},{"$f":"IF('1. Order'!AF149=\"\",\"\",'1. Order'!AF149)","v":""}]
[{"$f":"IF('1. Order'!B150=\"\",\"\",'1. Order'!B150)","v":""},{"$f":"IF('1. Order'!I150=\"\",\"\",'1. Order'!I150)","v":""},{"$f":"IF('1. Order'!J150=\"\",\"\",'1. Order'!J150)","v":""},{"$f":"IF('1. Order'!K150=\"\",\"\",'1. Order'!K150)","v":""},{"$f":"IF('1. Order'!M150=\"\",\"\",'1. Order'!M150)","v":""},null,null,{"$f":"IF('1. Order'!AS150=\"\",\"\",'1. Order'!AS150)","v":""},{"$f":"IF('1. Order'!AF150=\"\",\"\",'1. Order'!AF150)","v":""}]
[{"$f":"IF('1. Order'!B151=\"\",\"\",'1. Order'!B151)","v":""},{"$f":"IF('1. Order'!I151=\"\",\"\",'1. Order'!I151)","v":""},{"$f":"IF('1. Order'!J151=\"\",\"\",'1. Order'!J151)","v":""},{"$f":"IF('1. Order'!K151=\"\",\"\",'1. Order'!K151)","v":""},{"$f":"IF('1. Order'!M151=\"\",\"\",'1. Order'!M151)","v":""},null,null,{"$f":"IF('1. Order'!AS151=\"\",\"\",'1. Order'!AS151)","v":""},{"$f":"IF('1. Order'!AF151=\"\",\"\",'1. Order'!AF151)","v":""}]
[{"$f":"IF('1. Order'!B152=\"\",\"\",'1. Order'!B152)","v":""},{"$f":"IF('1. Order'!I152=\"\",\"\",'1. Order'!I152)","v":""},{"$f":"IF('1. Order'!J152=\"\",\"\",'1. Order'!J152)","v":""},{"$f":"IF('1. Order'!K152=\"\",\"\",'1. Order'!K152)","v":""},{"$f":"IF('1. Order'!M152=\"\",\"\",'1. Order'!M152)","v":""},null,null,{"$f":"IF('1. Order'!AS152=\"\",\"\",'1. Order'!AS152)","v":""},{"$f":"IF('1. Order'!AF152=\"\",\"\",'1. Order'!AF152)","v":""}]
[{"$f":"IF('1. Order'!B153=\"\",\"\",'1. Order'!B153)","v":""},{"$f":"IF('1. Order'!I153=\"\",\"\",'1. Order'!I153)","v":""},{"$f":"IF('1. Order'!J153=\"\",\"\",'1. Order'!J153)","v":""},{"$f":"IF('1. Order'!K153=\"\",\"\",'1. Order'!K153)","v":""},{"$f":"IF('1. Order'!M153=\"\",\"\",'1. Order'!M153)","v":""},null,null,{"$f":"IF('1. Order'!AS153=\"\",\"\",'1. Order'!AS153)","v":""},{"$f":"IF('1. Order'!AF153=\"\",\"\",'1. Order'!AF153)","v":""}]
[{"$f":"IF('1. Order'!B154=\"\",\"\",'1. Order'!B154)","v":""},{"$f":"IF('1. Order'!I154=\"\",\"\",'1. Order'!I154)","v":""},{"$f":"IF('1. Order'!J154=\"\",\"\",'1. Order'!J154)","v":""},{"$f":"IF('1. Order'!K154=\"\",\"\",'1. Order'!K154)","v":""},{"$f":"IF('1. Order'!M154=\"\",\"\",'1. Order'!M154)","v":""},null,null,{"$f":"IF('1. Order'!AS154=\"\",\"\",'1. Order'!AS154)","v":""},{"$f":"IF('1. Order'!AF154=\"\",\"\",'1. Order'!AF154)","v":""}]
[{"$f":"IF('1. Order'!B155=\"\",\"\",'1. Order'!B155)","v":""},{"$f":"IF('1. Order'!I155=\"\",\"\",'1. Order'!I155)","v":""},{"$f":"IF('1. Order'!J155=\"\",\"\",'1. Order'!J155)","v":""},{"$f":"IF('1. Order'!K155=\"\",\"\",'1. Order'!K155)","v":""},{"$f":"IF('1. Order'!M155=\"\",\"\",'1. Order'!M155)","v":""},null,null,{"$f":"IF('1. Order'!AS155=\"\",\"\",'1. Order'!AS155)","v":""},{"$f":"IF('1. Order'!AF155=\"\",\"\",'1. Order'!AF155)","v":""}]
[{"$f":"IF('1. Order'!B156=\"\",\"\",'1. Order'!B156)","v":""},{"$f":"IF('1. Order'!I156=\"\",\"\",'1. Order'!I156)","v":""},{"$f":"IF('1. Order'!J156=\"\",\"\",'1. Order'!J156)","v":""},{"$f":"IF('1. Order'!K156=\"\",\"\",'1. Order'!K156)","v":""},{"$f":"IF('1. Order'!M156=\"\",\"\",'1. Order'!M156)","v":""},null,null,{"$f":"IF('1. Order'!AS156=\"\",\"\",'1. Order'!AS156)","v":""},{"$f":"IF('1. Order'!AF156=\"\",\"\",'1. Order'!AF156)","v":""}]
[{"$f":"IF('1. Order'!B157=\"\",\"\",'1. Order'!B157)","v":""},{"$f":"IF('1. Order'!I157=\"\",\"\",'1. Order'!I157)","v":""},{"$f":"IF('1. Order'!J157=\"\",\"\",'1. Order'!J157)","v":""},{"$f":"IF('1. Order'!K157=\"\",\"\",'1. Order'!K157)","v":""},{"$f":"IF('1. Order'!M157=\"\",\"\",'1. Order'!M157)","v":""},null,null,{"$f":"IF('1. Order'!AS157=\"\",\"\",'1. Order'!AS157)","v":""},{"$f":"IF('1. Order'!AF157=\"\",\"\",'1. Order'!AF157)","v":""}]
[{"$f":"IF('1. Order'!B158=\"\",\"\",'1. Order'!B158)","v":""},{"$f":"IF('1. Order'!I158=\"\",\"\",'1. Order'!I158)","v":""},{"$f":"IF('1. Order'!J158=\"\",\"\",'1. Order'!J158)","v":""},{"$f":"IF('1. Order'!K158=\"\",\"\",'1. Order'!K158)","v":""},{"$f":"IF('1. Order'!M158=\"\",\"\",'1. Order'!M158)","v":""},null,null,{"$f":"IF('1. Order'!AS158=\"\",\"\",'1. Order'!AS158)","v":""},{"$f":"IF('1. Order'!AF158=\"\",\"\",'1. Order'!AF158)","v":""}]
[{"$f":"IF('1. Order'!B159=\"\",\"\",'1. Order'!B159)","v":""},{"$f":"IF('1. Order'!I159=\"\",\"\",'1. Order'!I159)","v":""},{"$f":"IF('1. Order'!J159=\"\",\"\",'1. Order'!J159)","v":""},{"$f":"IF('1. Order'!K159=\"\",\"\",'1. Order'!K159)","v":""},{"$f":"IF('1. Order'!M159=\"\",\"\",'1. Order'!M159)","v":""},null,null,{"$f":"IF('1. Order'!AS159=\"\",\"\",'1. Order'!AS159)","v":""},{"$f":"IF('1. Order'!AF159=\"\",\"\",'1. Order'!AF159)","v":""}]
[{"$f":"IF('1. Order'!B160=\"\",\"\",'1. Order'!B160)","v":""},{"$f":"IF('1. Order'!I160=\"\",\"\",'1. Order'!I160)","v":""},{"$f":"IF('1. Order'!J160=\"\",\"\",'1. Order'!J160)","v":""},{"$f":"IF('1. Order'!K160=\"\",\"\",'1. Order'!K160)","v":""},{"$f":"IF('1. Order'!M160=\"\",\"\",'1. Order'!M160)","v":""},null,null,{"$f":"IF('1. Order'!AS160=\"\",\"\",'1. Order'!AS160)","v":""},{"$f":"IF('1. Order'!AF160=\"\",\"\",'1. Order'!AF160)","v":""}]
[{"$f":"IF('1. Order'!B161=\"\",\"\",'1. Order'!B161)","v":""},{"$f":"IF('1. Order'!I161=\"\",\"\",'1. Order'!I161)","v":""},{"$f":"IF('1. Order'!J161=\"\",\"\",'1. Order'!J161)","v":""},{"$f":"IF('1. Order'!K161=\"\",\"\",'1. Order'!K161)","v":""},{"$f":"IF('1. Order'!M161=\"\",\"\",'1. Order'!M161)","v":""},null,null,{"$f":"IF('1. Order'!AS161=\"\",\"\",'1. Order'!AS161)","v":""},{"$f":"IF('1. Order'!AF161=\"\",\"\",'1. Order'!AF161)","v":""}]
[{"$f":"IF('1. Order'!B162=\"\",\"\",'1. Order'!B162)","v":""},{"$f":"IF('1. Order'!I162=\"\",\"\",'1. Order'!I162)","v":""},{"$f":"IF('1. Order'!J162=\"\",\"\",'1. Order'!J162)","v":""},{"$f":"IF('1. Order'!K162=\"\",\"\",'1. Order'!K162)","v":""},{"$f":"IF('1. Order'!M162=\"\",\"\",'1. Order'!M162)","v":""},null,null,{"$f":"IF('1. Order'!AS162=\"\",\"\",'1. Order'!AS162)","v":""},{"$f":"IF('1. Order'!AF162=\"\",\"\",'1. Order'!AF162)","v":""}]
[{"$f":"IF('1. Order'!B163=\"\",\"\",'1. Order'!B163)","v":""},{"$f":"IF('1. Order'!I163=\"\",\"\",'1. Order'!I163)","v":""},{"$f":"IF('1. Order'!J163=\"\",\"\",'1. Order'!J163)","v":""},{"$f":"IF('1. Order'!K163=\"\",\"\",'1. Order'!K163)","v":""},{"$f":"IF('1. Order'!M163=\"\",\"\",'1. Order'!M163)","v":""},null,null,{"$f":"IF('1. Order'!AS163=\"\",\"\",'1. Order'!AS163)","v":""},{"$f":"IF('1. Order'!AF163=\"\",\"\",'1. Order'!AF163)","v":""}]
[{"$f":"IF('1. Order'!B164=\"\",\"\",'1. Order'!B164)","v":""},{"$f":"IF('1. Order'!I164=\"\",\"\",'1. Order'!I164)","v":""},{"$f":"IF('1. Order'!J164=\"\",\"\",'1. Order'!J164)","v":""},{"$f":"IF('1. Order'!K164=\"\",\"\",'1. Order'!K164)","v":""},{"$f":"IF('1. Order'!M164=\"\",\"\",'1. Order'!M164)","v":""},null,null,{"$f":"IF('1. Order'!AS164=\"\",\"\",'1. Order'!AS164)","v":""},{"$f":"IF('1. Order'!AF164=\"\",\"\",'1. Order'!AF164)","v":""}]
[{"$f":"IF('1. Order'!B165=\"\",\"\",'1. Order'!B165)","v":""},{"$f":"IF('1. Order'!I165=\"\",\"\",'1. Order'!I165)","v":""},{"$f":"IF('1. Order'!J165=\"\",\"\",'1. Order'!J165)","v":""},{"$f":"IF('1. Order'!K165=\"\",\"\",'1. Order'!K165)","v":""},{"$f":"IF('1. Order'!M165=\"\",\"\",'1. Order'!M165)","v":""},null,null,{"$f":"IF('1. Order'!AS165=\"\",\"\",'1. Order'!AS165)","v":""},{"$f":"IF('1. Order'!AF165=\"\",\"\",'1. Order'!AF165)","v":""}]
[{"$f":"IF('1. Order'!B166=\"\",\"\",'1. Order'!B166)","v":""},{"$f":"IF('1. Order'!I166=\"\",\"\",'1. Order'!I166)","v":""},{"$f":"IF('1. Order'!J166=\"\",\"\",'1. Order'!J166)","v":""},{"$f":"IF('1. Order'!K166=\"\",\"\",'1. Order'!K166)","v":""},{"$f":"IF('1. Order'!M166=\"\",\"\",'1. Order'!M166)","v":""},null,null,{"$f":"IF('1. Order'!AS166=\"\",\"\",'1. Order'!AS166)","v":""},{"$f":"IF('1. Order'!AF166=\"\",\"\",'1. Order'!AF166)","v":""}]
[{"$f":"IF('1. Order'!B167=\"\",\"\",'1. Order'!B167)","v":""},{"$f":"IF('1. Order'!I167=\"\",\"\",'1. Order'!I167)","v":""},{"$f":"IF('1. Order'!J167=\"\",\"\",'1. Order'!J167)","v":""},{"$f":"IF('1. Order'!K167=\"\",\"\",'1. Order'!K167)","v":""},{"$f":"IF('1. Order'!M167=\"\",\"\",'1. Order'!M167)","v":""},null,null,{"$f":"IF('1. Order'!AS167=\"\",\"\",'1. Order'!AS167)","v":""},{"$f":"IF('1. Order'!AF167=\"\",\"\",'1. Order'!AF167)","v":""}]
[{"$f":"IF('1. Order'!B168=\"\",\"\",'1. Order'!B168)","v":""},{"$f":"IF('1. Order'!I168=\"\",\"\",'1. Order'!I168)","v":""},{"$f":"IF('1. Order'!J168=\"\",\"\",'1. Order'!J168)","v":""},{"$f":"IF('1. Order'!K168=\"\",\"\",'1. Order'!K168)","v":""},{"$f":"IF('1. Order'!M168=\"\",\"\",'1. Order'!M168)","v":""},null,null,{"$f":"IF('1. Order'!AS168=\"\",\"\",'1. Order'!AS168)","v":""},{"$f":"IF('1. Order'!AF168=\"\",\"\",'1. Order'!AF168)","v":""}]
[{"$f":"IF('1. Order'!B169=\"\",\"\",'1. Order'!B169)","v":""},{"$f":"IF('1. Order'!I169=\"\",\"\",'1. Order'!I169)","v":""},{"$f":"IF('1. Order'!J169=\"\",\"\",'1. Order'!J169)","v":""},{"$f":"IF('1. Order'!K169=\"\",\"\",'1. Order'!K169)","v":""},{"$f":"IF('1. Order'!M169=\"\",\"\",'1. Order'!M169)","v":""},null,null,{"$f":"IF('1. Order'!AS169=\"\",\"\",'1. Order'!AS169)","v":""},{"$f":"IF('1. Order'!AF169=\"\",\"\",'1. Order'!AF169)","v":""}]
[{"$f":"IF('1. Order'!B170=\"\",\"\",'1. Order'!B170)","v":""},{"$f":"IF('1. Order'!I170=\"\",\"\",'1. Order'!I170)","v":""},{"$f":"IF('1. Order'!J170=\"\",\"\",'1. Order'!J170)","v":""},{"$f":"IF('1. Order'!K170=\"\",\"\",'1. Order'!K170)","v":""},{"$f":"IF('1. Order'!M170=\"\",\"\",'1. Order'!M170)","v":""},null,null,{"$f":"IF('1. Order'!AS170=\"\",\"\",'1. Order'!AS170)","v":""},{"$f":"IF('1. Order'!AF170=\"\",\"\",'1. Order'!AF170)","v":""}]
[{"$f":"IF('1. Order'!B171=\"\",\"\",'1. Order'!B171)","v":""},{"$f":"IF('1. Order'!I171=\"\",\"\",'1. Order'!I171)","v":""},{"$f":"IF('1. Order'!J171=\"\",\"\",'1. Order'!J171)","v":""},{"$f":"IF('1. Order'!K171=\"\",\"\",'1. Order'!K171)","v":""},{"$f":"IF('1. Order'!M171=\"\",\"\",'1. Order'!M171)","v":""},null,null,{"$f":"IF('1. Order'!AS171=\"\",\"\",'1. Order'!AS171)","v":""},{"$f":"IF('1. Order'!AF171=\"\",\"\",'1. Order'!AF171)","v":""}]
[{"$f":"IF('1. Order'!B172=\"\",\"\",'1. Order'!B172)","v":""},{"$f":"IF('1. Order'!I172=\"\",\"\",'1. Order'!I172)","v":""},{"$f":"IF('1. Order'!J172=\"\",\"\",'1. Order'!J172)","v":""},{"$f":"IF('1. Order'!K172=\"\",\"\",'1. Order'!K172)","v":""},{"$f":"IF('1. Order'!M172=\"\",\"\",'1. Order'!M172)","v":""},null,null,{"$f":"IF('1. Order'!AS172=\"\",\"\",'1. Order'!AS172)","v":""},{"$f":"IF('1. Order'!AF172=\"\",\"\",'1. Order'!AF172)","v":""}]
[{"$f":"IF('1. Order'!B173=\"\",\"\",'1. Order'!B173)","v":""},{"$f":"IF('1. Order'!I173=\"\",\"\",'1. Order'!I173)","v":""},{"$f":"IF('1. Order'!J173=\"\",\"\",'1. Order'!J173)","v":""},{"$f":"IF('1. Order'!K173=\"\",\"\",'1. Order'!K173)","v":""},{"$f":"IF('1. Order'!M173=\"\",\"\",'1. Order'!M173)","v":""},null,null,{"$f":"IF('1. Order'!AS173=\"\",\"\",'1. Order'!AS173)","v":""},{"$f":"IF('1. Order'!AF173=\"\",\"\",'1. Order'!AF173)","v":""}]
[{"$f":"IF('1. Order'!B174=\"\",\"\",'1. Order'!B174)","v":""},{"$f":"IF('1. Order'!I174=\"\",\"\",'1. Order'!I174)","v":""},{"$f":"IF('1. Order'!J174=\"\",\"\",'1. Order'!J174)","v":""},{"$f":"IF('1. Order'!K174=\"\",\"\",'1. Order'!K174)","v":""},{"$f":"IF('1. Order'!M174=\"\",\"\",'1. Order'!M174)","v":""},null,null,{"$f":"IF('1. Order'!AS174=\"\",\"\",'1. Order'!AS174)","v":""},{"$f":"IF('1. Order'!AF174=\"\",\"\",'1. Order'!AF174)","v":""}]
[{"$f":"IF('1. Order'!B175=\"\",\"\",'1. Order'!B175)","v":""},{"$f":"IF('1. Order'!I175=\"\",\"\",'1. Order'!I175)","v":""},{"$f":"IF('1. Order'!J175=\"\",\"\",'1. Order'!J175)","v":""},{"$f":"IF('1. Order'!K175=\"\",\"\",'1. Order'!K175)","v":""},{"$f":"IF('1. Order'!M175=\"\",\"\",'1. Order'!M175)","v":""},null,null,{"$f":"IF('1. Order'!AS175=\"\",\"\",'1. Order'!AS175)","v":""},{"$f":"IF('1. Order'!AF175=\"\",\"\",'1. Order'!AF175)","v":""}]
[{"$f":"IF('1. Order'!B176=\"\",\"\",'1. Order'!B176)","v":""},{"$f":"IF('1. Order'!I176=\"\",\"\",'1. Order'!I176)","v":""},{"$f":"IF('1. Order'!J176=\"\",\"\",'1. Order'!J176)","v":""},{"$f":"IF('1. Order'!K176=\"\",\"\",'1. Order'!K176)","v":""},{"$f":"IF('1. Order'!M176=\"\",\"\",'1. Order'!M176)","v":""},null,null,{"$f":"IF('1. Order'!AS176=\"\",\"\",'1. Order'!AS176)","v":""},{"$f":"IF('1. Order'!AF176=\"\",\"\",'1. Order'!AF176)","v":""}]
[{"$f":"IF('1. Order'!B177=\"\",\"\",'1. Order'!B177)","v":""},{"$f":"IF('1. Order'!I177=\"\",\"\",'1. Order'!I177)","v":""},{"$f":"IF('1. Order'!J177=\"\",\"\",'1. Order'!J177)","v":""},{"$f":"IF('1. Order'!K177=\"\",\"\",'1. Order'!K177)","v":""},{"$f":"IF('1. Order'!M177=\"\",\"\",'1. Order'!M177)","v":""},null,null,{"$f":"IF('1. Order'!AS177=\"\",\"\",'1. Order'!AS177)","v":""},{"$f":"IF('1. Order'!AF177=\"\",\"\",'1. Order'!AF177)","v":""}]
[{"$f":"IF('1. Order'!B178=\"\",\"\",'1. Order'!B178)","v":""},{"$f":"IF('1. Order'!I178=\"\",\"\",'1. Order'!I178)","v":""},{"$f":"IF('1. Order'!J178=\"\",\"\",'1. Order'!J178)","v":""},{"$f":"IF('1. Order'!K178=\"\",\"\",'1. Order'!K178)","v":""},{"$f":"IF('1. Order'!M178=\"\",\"\",'1. Order'!M178)","v":""},null,null,{"$f":"IF('1. Order'!AS178=\"\",\"\",'1. Order'!AS178)","v":""},{"$f":"IF('1. Order'!AF178=\"\",\"\",'1. Order'!AF178)","v":""}]
[{"$f":"IF('1. Order'!B179=\"\",\"\",'1. Order'!B179)","v":""},{"$f":"IF('1. Order'!I179=\"\",\"\",'1. Order'!I179)","v":""},{"$f":"IF('1. Order'!J179=\"\",\"\",'1. Order'!J179)","v":""},{"$f":"IF('1. Order'!K179=\"\",\"\",'1. Order'!K179)","v":""},{"$f":"IF('1. Order'!M179=\"\",\"\",'1. Order'!M179)","v":""},null,null,{"$f":"IF('1. Order'!AS179=\"\",\"\",'1. Order'!AS179)","v":""},{"$f":"IF('1. Order'!AF179=\"\",\"\",'1. Order'!AF179)","v":""}]
[{"$f":"IF('1. Order'!B180=\"\",\"\",'1. Order'!B180)","v":""},{"$f":"IF('1. Order'!I180=\"\",\"\",'1. Order'!I180)","v":""},{"$f":"IF('1. Order'!J180=\"\",\"\",'1. Order'!J180)","v":""},{"$f":"IF('1. Order'!K180=\"\",\"\",'1. Order'!K180)","v":""},{"$f":"IF('1. Order'!M180=\"\",\"\",'1. Order'!M180)","v":""},null,null,{"$f":"IF('1. Order'!AS180=\"\",\"\",'1. Order'!AS180)","v":""},{"$f":"IF('1. Order'!AF180=\"\",\"\",'1. Order'!AF180)","v":""}]
[{"$f":"IF('1. Order'!B181=\"\",\"\",'1. Order'!B181)","v":""},{"$f":"IF('1. Order'!I181=\"\",\"\",'1. Order'!I181)","v":""},{"$f":"IF('1. Order'!J181=\"\",\"\",'1. Order'!J181)","v":""},{"$f":"IF('1. Order'!K181=\"\",\"\",'1. Order'!K181)","v":""},{"$f":"IF('1. Order'!M181=\"\",\"\",'1. Order'!M181)","v":""},null,null,{"$f":"IF('1. Order'!AS181=\"\",\"\",'1. Order'!AS181)","v":""},{"$f":"IF('1. Order'!AF181=\"\",\"\",'1. Order'!AF181)","v":""}]
[{"$f":"IF('1. Order'!B182=\"\",\"\",'1. Order'!B182)","v":""},{"$f":"IF('1. Order'!I182=\"\",\"\",'1. Order'!I182)","v":""},{"$f":"IF('1. Order'!J182=\"\",\"\",'1. Order'!J182)","v":""},{"$f":"IF('1. Order'!K182=\"\",\"\",'1. Order'!K182)","v":""},{"$f":"IF('1. Order'!M182=\"\",\"\",'1. Order'!M182)","v":""},null,null,{"$f":"IF('1. Order'!AS182=\"\",\"\",'1. Order'!AS182)","v":""},{"$f":"IF('1. Order'!AF182=\"\",\"\",'1. Order'!AF182)","v":""}]
[{"$f":"IF('1. Order'!B183=\"\",\"\",'1. Order'!B183)","v":""},{"$f":"IF('1. Order'!I183=\"\",\"\",'1. Order'!I183)","v":""},{"$f":"IF('1. Order'!J183=\"\",\"\",'1. Order'!J183)","v":""},{"$f":"IF('1. Order'!K183=\"\",\"\",'1. Order'!K183)","v":""},{"$f":"IF('1. Order'!M183=\"\",\"\",'1. Order'!M183)","v":""},null,null,{"$f":"IF('1. Order'!AS183=\"\",\"\",'1. Order'!AS183)","v":""},{"$f":"IF('1. Order'!AF183=\"\",\"\",'1. Order'!AF183)","v":""}]
[{"$f":"IF('1. Order'!B184=\"\",\"\",'1. Order'!B184)","v":""},{"$f":"IF('1. Order'!I184=\"\",\"\",'1. Order'!I184)","v":""},{"$f":"IF('1. Order'!J184=\"\",\"\",'1. Order'!J184)","v":""},{"$f":"IF('1. Order'!K184=\"\",\"\",'1. Order'!K184)","v":""},{"$f":"IF('1. Order'!M184=\"\",\"\",'1. Order'!M184)","v":""},null,null,{"$f":"IF('1. Order'!AS184=\"\",\"\",'1. Order'!AS184)","v":""},{"$f":"IF('1. Order'!AF184=\"\",\"\",'1. Order'!AF184)","v":""}]
[{"$f":"IF('1. Order'!B185=\"\",\"\",'1. Order'!B185)","v":""},{"$f":"IF('1. Order'!I185=\"\",\"\",'1. Order'!I185)","v":""},{"$f":"IF('1. Order'!J185=\"\",\"\",'1. Order'!J185)","v":""},{"$f":"IF('1. Order'!K185=\"\",\"\",'1. Order'!K185)","v":""},{"$f":"IF('1. Order'!M185=\"\",\"\",'1. Order'!M185)","v":""},null,null,{"$f":"IF('1. Order'!AS185=\"\",\"\",'1. Order'!AS185)","v":""},{"$f":"IF('1. Order'!AF185=\"\",\"\",'1. Order'!AF185)","v":""}]
[{"$f":"IF('1. Order'!B186=\"\",\"\",'1. Order'!B186)","v":""},{"$f":"IF('1. Order'!I186=\"\",\"\",'1. Order'!I186)","v":""},{"$f":"IF('1. Order'!J186=\"\",\"\",'1. Order'!J186)","v":""},{"$f":"IF('1. Order'!K186=\"\",\"\",'1. Order'!K186)","v":""},{"$f":"IF('1. Order'!M186=\"\",\"\",'1. Order'!M186)","v":""},null,null,{"$f":"IF('1. Order'!AS186=\"\",\"\",'1. Order'!AS186)","v":""},{"$f":"IF('1. Order'!AF186=\"\",\"\",'1. Order'!AF186)","v":""}]
[{"$f":"IF('1. Order'!B187=\"\",\"\",'1. Order'!B187)","v":""},{"$f":"IF('1. Order'!I187=\"\",\"\",'1. Order'!I187)","v":""},{"$f":"IF('1. Order'!J187=\"\",\"\",'1. Order'!J187)","v":""},{"$f":"IF('1. Order'!K187=\"\",\"\",'1. Order'!K187)","v":""},{"$f":"IF('1. Order'!M187=\"\",\"\",'1. Order'!M187)","v":""},null,null,{"$f":"IF('1. Order'!AS187=\"\",\"\",'1. Order'!AS187)","v":""},{"$f":"IF('1. Order'!AF187=\"\",\"\",'1. Order'!AF187)","v":""}]
[{"$f":"IF('1. Order'!B188=\"\",\"\",'1. Order'!B188)","v":""},{"$f":"IF('1. Order'!I188=\"\",\"\",'1. Order'!I188)","v":""},{"$f":"IF('1. Order'!J188=\"\",\"\",'1. Order'!J188)","v":""},{"$f":"IF('1. Order'!K188=\"\",\"\",'1. Order'!K188)","v":""},{"$f":"IF('1. Order'!M188=\"\",\"\",'1. Order'!M188)","v":""},null,null,{"$f":"IF('1. Order'!AS188=\"\",\"\",'1. Order'!AS188)","v":""},{"$f":"IF('1. Order'!AF188=\"\",\"\",'1. Order'!AF188)","v":""}]
[{"$f":"IF('1. Order'!B189=\"\",\"\",'1. Order'!B189)","v":""},{"$f":"IF('1. Order'!I189=\"\",\"\",'1. Order'!I189)","v":""},{"$f":"IF('1. Order'!J189=\"\",\"\",'1. Order'!J189)","v":""},{"$f":"IF('1. Order'!K189=\"\",\"\",'1. Order'!K189)","v":""},{"$f":"IF('1. Order'!M189=\"\",\"\",'1. Order'!M189)","v":""},null,null,{"$f":"IF('1. Order'!AS189=\"\",\"\",'1. Order'!AS189)","v":""},{"$f":"IF('1. Order'!AF189=\"\",\"\",'1. Order'!AF189)","v":""}]
[{"$f":"IF('1. Order'!B190=\"\",\"\",'1. Order'!B190)","v":""},{"$f":"IF('1. Order'!I190=\"\",\"\",'1. Order'!I190)","v":""},{"$f":"IF('1. Order'!J190=\"\",\"\",'1. Order'!J190)","v":""},{"$f":"IF('1. Order'!K190=\"\",\"\",'1. Order'!K190)","v":""},{"$f":"IF('1. Order'!M190=\"\",\"\",'1. Order'!M190)","v":""},null,null,{"$f":"IF('1. Order'!AS190=\"\",\"\",'1. Order'!AS190)","v":""},{"$f":"IF('1. Order'!AF190=\"\",\"\",'1. Order'!AF190)","v":""}]
[{"$f":"IF('1. Order'!B191=\"\",\"\",'1. Order'!B191)","v":""},{"$f":"IF('1. Order'!I191=\"\",\"\",'1. Order'!I191)","v":""},{"$f":"IF('1. Order'!J191=\"\",\"\",'1. Order'!J191)","v":""},{"$f":"IF('1. Order'!K191=\"\",\"\",'1. Order'!K191)","v":""},{"$f":"IF('1. Order'!M191=\"\",\"\",'1. Order'!M191)","v":""},null,null,{"$f":"IF('1. Order'!AS191=\"\",\"\",'1. Order'!AS191)","v":""},{"$f":"IF('1. Order'!AF191=\"\",\"\",'1. Order'!AF191)","v":""}]
[{"$f":"IF('1. Order'!B192=\"\",\"\",'1. Order'!B192)","v":""},{"$f":"IF('1. Order'!I192=\"\",\"\",'1. Order'!I192)","v":""},{"$f":"IF('1. Order'!J192=\"\",\"\",'1. Order'!J192)","v":""},{"$f":"IF('1. Order'!K192=\"\",\"\",'1. Order'!K192)","v":""},{"$f":"IF('1. Order'!M192=\"\",\"\",'1. Order'!M192)","v":""},null,null,{"$f":"IF('1. Order'!AS192=\"\",\"\",'1. Order'!AS192)","v":""},{"$f":"IF('1. Order'!AF192=\"\",\"\",'1. Order'!AF192)","v":""}]
[{"$f":"IF('1. Order'!B193=\"\",\"\",'1. Order'!B193)","v":""},{"$f":"IF('1. Order'!I193=\"\",\"\",'1. Order'!I193)","v":""},{"$f":"IF('1. Order'!J193=\"\",\"\",'1. Order'!J193)","v":""},{"$f":"IF('1. Order'!K193=\"\",\"\",'1. Order'!K193)","v":""},{"$f":"IF('1. Order'!M193=\"\",\"\",'1. Order'!M193)","v":""},null,null,{"$f":"IF('1. Order'!AS193=\"\",\"\",'1. Order'!AS193)","v":""},{"$f":"IF('1. Order'!AF193=\"\",\"\",'1. Order'!AF193)","v":""}]
[{"$f":"IF('1. Order'!B194=\"\",\"\",'1. Order'!B194)","v":""},{"$f":"IF('1. Order'!I194=\"\",\"\",'1. Order'!I194)","v":""},{"$f":"IF('1. Order'!J194=\"\",\"\",'1. Order'!J194)","v":""},{"$f":"IF('1. Order'!K194=\"\",\"\",'1. Order'!K194)","v":""},{"$f":"IF('1. Order'!M194=\"\",\"\",'1. Order'!M194)","v":""},null,null,{"$f":"IF('1. Order'!AS194=\"\",\"\",'1. Order'!AS194)","v":""},{"$f":"IF('1. Order'!AF194=\"\",\"\",'1. Order'!AF194)","v":""}]
[{"$f":"IF('1. Order'!B195=\"\",\"\",'1. Order'!B195)","v":""},{"$f":"IF('1. Order'!I195=\"\",\"\",'1. Order'!I195)","v":""},{"$f":"IF('1. Order'!J195=\"\",\"\",'1. Order'!J195)","v":""},{"$f":"IF('1. Order'!K195=\"\",\"\",'1. Order'!K195)","v":""},{"$f":"IF('1. Order'!M195=\"\",\"\",'1. Order'!M195)","v":""},null,null,{"$f":"IF('1. Order'!AS195=\"\",\"\",'1. Order'!AS195)","v":""},{"$f":"IF('1. Order'!AF195=\"\",\"\",'1. Order'!AF195)","v":""}]
[{"$f":"IF('1. Order'!B196=\"\",\"\",'1. Order'!B196)","v":""},{"$f":"IF('1. Order'!I196=\"\",\"\",'1. Order'!I196)","v":""},{"$f":"IF('1. Order'!J196=\"\",\"\",'1. Order'!J196)","v":""},{"$f":"IF('1. Order'!K196=\"\",\"\",'1. Order'!K196)","v":""},{"$f":"IF('1. Order'!M196=\"\",\"\",'1. Order'!M196)","v":""},null,null,{"$f":"IF('1. Order'!AS196=\"\",\"\",'1. Order'!AS196)","v":""},{"$f":"IF('1. Order'!AF196=\"\",\"\",'1. Order'!AF196)","v":""}]
[{"$f":"IF('1. Order'!B197=\"\",\"\",'1. Order'!B197)","v":""},{"$f":"IF('1. Order'!I197=\"\",\"\",'1. Order'!I197)","v":""},{"$f":"IF('1. Order'!J197=\"\",\"\",'1. Order'!J197)","v":""},{"$f":"IF('1. Order'!K197=\"\",\"\",'1. Order'!K197)","v":""},{"$f":"IF('1. Order'!M197=\"\",\"\",'1. Order'!M197)","v":""},null,null,{"$f":"IF('1. Order'!AS197=\"\",\"\",'1. Order'!AS197)","v":""},{"$f":"IF('1. Order'!AF197=\"\",\"\",'1. Order'!AF197)","v":""}]
[{"$f":"IF('1. Order'!B198=\"\",\"\",'1. Order'!B198)","v":""},{"$f":"IF('1. Order'!I198=\"\",\"\",'1. Order'!I198)","v":""},{"$f":"IF('1. Order'!J198=\"\",\"\",'1. Order'!J198)","v":""},{"$f":"IF('1. Order'!K198=\"\",\"\",'1. Order'!K198)","v":""},{"$f":"IF('1. Order'!M198=\"\",\"\",'1. Order'!M198)","v":""},null,null,{"$f":"IF('1. Order'!AS198=\"\",\"\",'1. Order'!AS198)","v":""},{"$f":"IF('1. Order'!AF198=\"\",\"\",'1. Order'!AF198)","v":""}]
[{"$f":"IF('1. Order'!B199=\"\",\"\",'1. Order'!B199)","v":""},{"$f":"IF('1. Order'!I199=\"\",\"\",'1. Order'!I199)","v":""},{"$f":"IF('1. Order'!J199=\"\",\"\",'1. Order'!J199)","v":""},{"$f":"IF('1. Order'!K199=\"\",\"\",'1. Order'!K199)","v":""},{"$f":"IF('1. Order'!M199=\"\",\"\",'1. Order'!M199)","v":""},null,null,{"$f":"IF('1. Order'!AS199=\"\",\"\",'1. Order'!AS199)","v":""},{"$f":"IF('1. Order'!AF199=\"\",\"\",'1. Order'!AF199)","v":""}]
[{"$f":"IF('1. Order'!B200=\"\",\"\",'1. Order'!B200)","v":""},{"$f":"IF('1. Order'!I200=\"\",\"\",'1. Order'!I200)","v":""},{"$f":"IF('1. Order'!J200=\"\",\"\",'1. Order'!J200)","v":""},{"$f":"IF('1. Order'!K200=\"\",\"\",'1. Order'!K200)","v":""},{"$f":"IF('1. Order'!M200=\"\",\"\",'1. Order'!M200)","v":""},null,null,{"$f":"IF('1. Order'!AS200=\"\",\"\",'1. Order'!AS200)","v":""},{"$f":"IF('1. Order'!AF200=\"\",\"\",'1. Order'!AF200)","v":""}]
[{"$f":"IF('1. Order'!B201=\"\",\"\",'1. Order'!B201)","v":""},{"$f":"IF('1. Order'!I201=\"\",\"\",'1. Order'!I201)","v":""},{"$f":"IF('1. Order'!J201=\"\",\"\",'1. Order'!J201)","v":""},{"$f":"IF('1. Order'!K201=\"\",\"\",'1. Order'!K201)","v":""},{"$f":"IF('1. Order'!M201=\"\",\"\",'1. Order'!M201)","v":""},null,null,{"$f":"IF('1. Order'!AS201=\"\",\"\",'1. Order'!AS201)","v":""},{"$f":"IF('1. Order'!AF201=\"\",\"\",'1. Order'!AF201)","v":""}]
[{"$f":"IF('1. Order'!B202=\"\",\"\",'1. Order'!B202)","v":""},{"$f":"IF('1. Order'!I202=\"\",\"\",'1. Order'!I202)","v":""},{"$f":"IF('1. Order'!J202=\"\",\"\",'1. Order'!J202)","v":""},{"$f":"IF('1. Order'!K202=\"\",\"\",'1. Order'!K202)","v":""},{"$f":"IF('1. Order'!M202=\"\",\"\",'1. Order'!M202)","v":""},null,null,{"$f":"IF('1. Order'!AS202=\"\",\"\",'1. Order'!AS202)","v":""},{"$f":"IF('1. Order'!AF202=\"\",\"\",'1. Order'!AF202)","v":""}]
[{"$f":"IF('1. Order'!B203=\"\",\"\",'1. Order'!B203)","v":""},{"$f":"IF('1. Order'!I203=\"\",\"\",'1. Order'!I203)","v":""},{"$f":"IF('1. Order'!J203=\"\",\"\",'1. Order'!J203)","v":""},{"$f":"IF('1. Order'!K203=\"\",\"\",'1. Order'!K203)","v":""},{"$f":"IF('1. Order'!M203=\"\",\"\",'1. Order'!M203)","v":""},null,null,{"$f":"IF('1. Order'!AS203=\"\",\"\",'1. Order'!AS203)","v":""},{"$f":"IF('1. Order'!AF203=\"\",\"\",'1. Order'!AF203)","v":""}]
[{"$f":"IF('1. Order'!B204=\"\",\"\",'1. Order'!B204)","v":""},{"$f":"IF('1. Order'!I204=\"\",\"\",'1. Order'!I204)","v":""},{"$f":"IF('1. Order'!J204=\"\",\"\",'1. Order'!J204)","v":""},{"$f":"IF('1. Order'!K204=\"\",\"\",'1. Order'!K204)","v":""},{"$f":"IF('1. Order'!M204=\"\",\"\",'1. Order'!M204)","v":""},null,null,{"$f":"IF('1. Order'!AS204=\"\",\"\",'1. Order'!AS204)","v":""},{"$f":"IF('1. Order'!AF204=\"\",\"\",'1. Order'!AF204)","v":""}]
[{"$f":"IF('1. Order'!B205=\"\",\"\",'1. Order'!B205)","v":""},{"$f":"IF('1. Order'!I205=\"\",\"\",'1. Order'!I205)","v":""},{"$f":"IF('1. Order'!J205=\"\",\"\",'1. Order'!J205)","v":""},{"$f":"IF('1. Order'!K205=\"\",\"\",'1. Order'!K205)","v":""},{"$f":"IF('1. Order'!M205=\"\",\"\",'1. Order'!M205)","v":""},null,null,{"$f":"IF('1. Order'!AS205=\"\",\"\",'1. Order'!AS205)","v":""},{"$f":"IF('1. Order'!AF205=\"\",\"\",'1. Order'!AF205)","v":""}]
[{"$f":"IF('1. Order'!B206=\"\",\"\",'1. Order'!B206)","v":""},{"$f":"IF('1. Order'!I206=\"\",\"\",'1. Order'!I206)","v":""},{"$f":"IF('1. Order'!J206=\"\",\"\",'1. Order'!J206)","v":""},{"$f":"IF('1. Order'!K206=\"\",\"\",'1. Order'!K206)","v":""},{"$f":"IF('1. Order'!M206=\"\",\"\",'1. Order'!M206)","v":""},null,null,{"$f":"IF('1. Order'!AS206=\"\",\"\",'1. Order'!AS206)","v":""},{"$f":"IF('1. Order'!AF206=\"\",\"\",'1. Order'!AF206)","v":""}]
[{"$f":"IF('1. Order'!B207=\"\",\"\",'1. Order'!B207)","v":""},{"$f":"IF('1. Order'!I207=\"\",\"\",'1. Order'!I207)","v":""},{"$f":"IF('1. Order'!J207=\"\",\"\",'1. Order'!J207)","v":""},{"$f":"IF('1. Order'!K207=\"\",\"\",'1. Order'!K207)","v":""},{"$f":"IF('1. Order'!M207=\"\",\"\",'1. Order'!M207)","v":""},null,null,{"$f":"IF('1. Order'!AS207=\"\",\"\",'1. Order'!AS207)","v":""},{"$f":"IF('1. Order'!AF207=\"\",\"\",'1. Order'!AF207)","v":""}]
[{"$f":"IF('1. Order'!B208=\"\",\"\",'1. Order'!B208)","v":""},{"$f":"IF('1. Order'!I208=\"\",\"\",'1. Order'!I208)","v":""},{"$f":"IF('1. Order'!J208=\"\",\"\",'1. Order'!J208)","v":""},{"$f":"IF('1. Order'!K208=\"\",\"\",'1. Order'!K208)","v":""},{"$f":"IF('1. Order'!M208=\"\",\"\",'1. Order'!M208)","v":""},null,null,{"$f":"IF('1. Order'!AS208=\"\",\"\",'1. Order'!AS208)","v":""},{"$f":"IF('1. Order'!AF208=\"\",\"\",'1. Order'!AF208)","v":""}]
[{"$f":"IF('1. Order'!B209=\"\",\"\",'1. Order'!B209)","v":""},{"$f":"IF('1. Order'!I209=\"\",\"\",'1. Order'!I209)","v":""},{"$f":"IF('1. Order'!J209=\"\",\"\",'1. Order'!J209)","v":""},{"$f":"IF('1. Order'!K209=\"\",\"\",'1. Order'!K209)","v":""},{"$f":"IF('1. Order'!M209=\"\",\"\",'1. Order'!M209)","v":""},null,null,{"$f":"IF('1. Order'!AS209=\"\",\"\",'1. Order'!AS209)","v":""},{"$f":"IF('1. Order'!AF209=\"\",\"\",'1. Order'!AF209)","v":""}]
[{"$f":"IF('1. Order'!B210=\"\",\"\",'1. Order'!B210)","v":""},{"$f":"IF('1. Order'!I210=\"\",\"\",'1. Order'!I210)","v":""},{"$f":"IF('1. Order'!J210=\"\",\"\",'1. Order'!J210)","v":""},{"$f":"IF('1. Order'!K210=\"\",\"\",'1. Order'!K210)","v":""},{"$f":"IF('1. Order'!M210=\"\",\"\",'1. Order'!M210)","v":""},null,null,{"$f":"IF('1. Order'!AS210=\"\",\"\",'1. Order'!AS210)","v":""},{"$f":"IF('1. Order'!AF210=\"\",\"\",'1. Order'!AF210)","v":""}]
[{"$f":"IF('1. Order'!B211=\"\",\"\",'1. Order'!B211)","v":""},{"$f":"IF('1. Order'!I211=\"\",\"\",'1. Order'!I211)","v":""},{"$f":"IF('1. Order'!J211=\"\",\"\",'1. Order'!J211)","v":""},{"$f":"IF('1. Order'!K211=\"\",\"\",'1. Order'!K211)","v":""},{"$f":"IF('1. Order'!M211=\"\",\"\",'1. Order'!M211)","v":""},null,null,{"$f":"IF('1. Order'!AS211=\"\",\"\",'1. Order'!AS211)","v":""},{"$f":"IF('1. Order'!AF211=\"\",\"\",'1. Order'!AF211)","v":""}]
[{"$f":"IF('1. Order'!B212=\"\",\"\",'1. Order'!B212)","v":""},{"$f":"IF('1. Order'!I212=\"\",\"\",'1. Order'!I212)","v":""},{"$f":"IF('1. Order'!J212=\"\",\"\",'1. Order'!J212)","v":""},{"$f":"IF('1. Order'!K212=\"\",\"\",'1. Order'!K212)","v":""},{"$f":"IF('1. Order'!M212=\"\",\"\",'1. Order'!M212)","v":""},null,null,{"$f":"IF('1. Order'!AS212=\"\",\"\",'1. Order'!AS212)","v":""},{"$f":"IF('1. Order'!AF212=\"\",\"\",'1. Order'!AF212)","v":""}]
[{"$f":"IF('1. Order'!B213=\"\",\"\",'1. Order'!B213)","v":""},{"$f":"IF('1. Order'!I213=\"\",\"\",'1. Order'!I213)","v":""},{"$f":"IF('1. Order'!J213=\"\",\"\",'1. Order'!J213)","v":""},{"$f":"IF('1. Order'!K213=\"\",\"\",'1. Order'!K213)","v":""},{"$f":"IF('1. Order'!M213=\"\",\"\",'1. Order'!M213)","v":""},null,null,{"$f":"IF('1. Order'!AS213=\"\",\"\",'1. Order'!AS213)","v":""},{"$f":"IF('1. Order'!AF213=\"\",\"\",'1. Order'!AF213)","v":""}]
[{"$f":"IF('1. Order'!B214=\"\",\"\",'1. Order'!B214)","v":""},{"$f":"IF('1. Order'!I214=\"\",\"\",'1. Order'!I214)","v":""},{"$f":"IF('1. Order'!J214=\"\",\"\",'1. Order'!J214)","v":""},{"$f":"IF('1. Order'!K214=\"\",\"\",'1. Order'!K214)","v":""},{"$f":"IF('1. Order'!M214=\"\",\"\",'1. Order'!M214)","v":""},null,null,{"$f":"IF('1. Order'!AS214=\"\",\"\",'1. Order'!AS214)","v":""},{"$f":"IF('1. Order'!AF214=\"\",\"\",'1. Order'!AF214)","v":""}]
[{"$f":"IF('1. Order'!B215=\"\",\"\",'1. Order'!B215)","v":""},{"$f":"IF('1. Order'!I215=\"\",\"\",'1. Order'!I215)","v":""},{"$f":"IF('1. Order'!J215=\"\",\"\",'1. Order'!J215)","v":""},{"$f":"IF('1. Order'!K215=\"\",\"\",'1. Order'!K215)","v":""},{"$f":"IF('1. Order'!M215=\"\",\"\",'1. Order'!M215)","v":""},null,null,{"$f":"IF('1. Order'!AS215=\"\",\"\",'1. Order'!AS215)","v":""},{"$f":"IF('1. Order'!AF215=\"\",\"\",'1. Order'!AF215)","v":""}]
[{"$f":"IF('1. Order'!B216=\"\",\"\",'1. Order'!B216)","v":""},{"$f":"IF('1. Order'!I216=\"\",\"\",'1. Order'!I216)","v":""},{"$f":"IF('1. Order'!J216=\"\",\"\",'1. Order'!J216)","v":""},{"$f":"IF('1. Order'!K216=\"\",\"\",'1. Order'!K216)","v":""},{"$f":"IF('1. Order'!M216=\"\",\"\",'1. Order'!M216)","v":""},null,null,{"$f":"IF('1. Order'!AS216=\"\",\"\",'1. Order'!AS216)","v":""},{"$f":"IF('1. Order'!AF216=\"\",\"\",'1. Order'!AF216)","v":""}]
[{"$f":"IF('1. Order'!B217=\"\",\"\",'1. Order'!B217)","v":""},{"$f":"IF('1. Order'!I217=\"\",\"\",'1. Order'!I217)","v":""},{"$f":"IF('1. Order'!J217=\"\",\"\",'1. Order'!J217)","v":""},{"$f":"IF('1. Order'!K217=\"\",\"\",'1. Order'!K217)","v":""},{"$f":"IF('1. Order'!M217=\"\",\"\",'1. Order'!M217)","v":""},null,null,{"$f":"IF('1. Order'!AS217=\"\",\"\",'1. Order'!AS217)","v":""},{"$f":"IF('1. Order'!AF217=\"\",\"\",'1. Order'!AF217)","v":""}]
[{"$f":"IF('1. Order'!B218=\"\",\"\",'1. Order'!B218)","v":""},{"$f":"IF('1. Order'!I218=\"\",\"\",'1. Order'!I218)","v":""},{"$f":"IF('1. Order'!J218=\"\",\"\",'1. Order'!J218)","v":""},{"$f":"IF('1. Order'!K218=\"\",\"\",'1. Order'!K218)","v":""},{"$f":"IF('1. Order'!M218=\"\",\"\",'1. Order'!M218)","v":""},null,null,{"$f":"IF('1. Order'!AS218=\"\",\"\",'1. Order'!AS218)","v":""},{"$f":"IF('1. Order'!AF218=\"\",\"\",'1. Order'!AF218)","v":""}]
[{"$f":"IF('1. Order'!B219=\"\",\"\",'1. Order'!B219)","v":""},{"$f":"IF('1. Order'!I219=\"\",\"\",'1. Order'!I219)","v":""},{"$f":"IF('1. Order'!J219=\"\",\"\",'1. Order'!J219)","v":""},{"$f":"IF('1. Order'!K219=\"\",\"\",'1. Order'!K219)","v":""},{"$f":"IF('1. Order'!M219=\"\",\"\",'1. Order'!M219)","v":""},null,null,{"$f":"IF('1. Order'!AS219=\"\",\"\",'1. Order'!AS219)","v":""},{"$f":"IF('1. Order'!AF219=\"\",\"\",'1. Order'!AF219)","v":""}]
[{"$f":"IF('1. Order'!B220=\"\",\"\",'1. Order'!B220)","v":""},{"$f":"IF('1. Order'!I220=\"\",\"\",'1. Order'!I220)","v":""},{"$f":"IF('1. Order'!J220=\"\",\"\",'1. Order'!J220)","v":""},{"$f":"IF('1. Order'!K220=\"\",\"\",'1. Order'!K220)","v":""},{"$f":"IF('1. Order'!M220=\"\",\"\",'1. Order'!M220)","v":""},null,null,{"$f":"IF('1. Order'!AS220=\"\",\"\",'1. Order'!AS220)","v":""},{"$f":"IF('1. Order'!AF220=\"\",\"\",'1. Order'!AF220)","v":""}]
[{"$f":"IF('1. Order'!B221=\"\",\"\",'1. Order'!B221)","v":""},{"$f":"IF('1. Order'!I221=\"\",\"\",'1. Order'!I221)","v":""},{"$f":"IF('1. Order'!J221=\"\",\"\",'1. Order'!J221)","v":""},{"$f":"IF('1. Order'!K221=\"\",\"\",'1. Order'!K221)","v":""},{"$f":"IF('1. Order'!M221=\"\",\"\",'1. Order'!M221)","v":""},null,null,{"$f":"IF('1. Order'!AS221=\"\",\"\",'1. Order'!AS221)","v":""},{"$f":"IF('1. Order'!AF221=\"\",\"\",'1. Order'!AF221)","v":""}]
[{"$f":"IF('1. Order'!B222=\"\",\"\",'1. Order'!B222)","v":""},{"$f":"IF('1. Order'!I222=\"\",\"\",'1. Order'!I222)","v":""},{"$f":"IF('1. Order'!J222=\"\",\"\",'1. Order'!J222)","v":""},{"$f":"IF('1. Order'!K222=\"\",\"\",'1. Order'!K222)","v":""},{"$f":"IF('1. Order'!M222=\"\",\"\",'1. Order'!M222)","v":""},null,null,{"$f":"IF('1. Order'!AS222=\"\",\"\",'1. Order'!AS222)","v":""},{"$f":"IF('1. Order'!AF222=\"\",\"\",'1. Order'!AF222)","v":""}]
[{"$f":"IF('1. Order'!B223=\"\",\"\",'1. Order'!B223)","v":""},{"$f":"IF('1. Order'!I223=\"\",\"\",'1. Order'!I223)","v":""},{"$f":"IF('1. Order'!J223=\"\",\"\",'1. Order'!J223)","v":""},{"$f":"IF('1. Order'!K223=\"\",\"\",'1. Order'!K223)","v":""},{"$f":"IF('1. Order'!M223=\"\",\"\",'1. Order'!M223)","v":""},null,null,{"$f":"IF('1. Order'!AS223=\"\",\"\",'1. Order'!AS223)","v":""},{"$f":"IF('1. Order'!AF223=\"\",\"\",'1. Order'!AF223)","v":""}]
[{"$f":"IF('1. Order'!B224=\"\",\"\",'1. Order'!B224)","v":""},{"$f":"IF('1. Order'!I224=\"\",\"\",'1. Order'!I224)","v":""},{"$f":"IF('1. Order'!J224=\"\",\"\",'1. Order'!J224)","v":""},{"$f":"IF('1. Order'!K224=\"\",\"\",'1. Order'!K224)","v":""},{"$f":"IF('1. Order'!M224=\"\",\"\",'1. Order'!M224)","v":""},null,null,{"$f":"IF('1. Order'!AS224=\"\",\"\",'1. Order'!AS224)","v":""},{"$f":"IF('1. Order'!AF224=\"\",\"\",'1. Order'!AF224)","v":""}]
[{"$f":"IF('1. Order'!B225=\"\",\"\",'1. Order'!B225)","v":""},{"$f":"IF('1. Order'!I225=\"\",\"\",'1. Order'!I225)","v":""},{"$f":"IF('1. Order'!J225=\"\",\"\",'1. Order'!J225)","v":""},{"$f":"IF('1. Order'!K225=\"\",\"\",'1. Order'!K225)","v":""},{"$f":"IF('1. Order'!M225=\"\",\"\",'1. Order'!M225)","v":""},null,null,{"$f":"IF('1. Order'!AS225=\"\",\"\",'1. Order'!AS225)","v":""},{"$f":"IF('1. Order'!AF225=\"\",\"\",'1. Order'!AF225)","v":""}]
[{"$f":"IF('1. Order'!B226=\"\",\"\",'1. Order'!B226)","v":""},{"$f":"IF('1. Order'!I226=\"\",\"\",'1. Order'!I226)","v":""},{"$f":"IF('1. Order'!J226=\"\",\"\",'1. Order'!J226)","v":""},{"$f":"IF('1. Order'!K226=\"\",\"\",'1. Order'!K226)","v":""},{"$f":"IF('1. Order'!M226=\"\",\"\",'1. Order'!M226)","v":""},null,null,{"$f":"IF('1. Order'!AS226=\"\",\"\",'1. Order'!AS226)","v":""},{"$f":"IF('1. Order'!AF226=\"\",\"\",'1. Order'!AF226)","v":""}]
[{"$f":"IF('1. Order'!B227=\"\",\"\",'1. Order'!B227)","v":""},{"$f":"IF('1. Order'!I227=\"\",\"\",'1. Order'!I227)","v":""},{"$f":"IF('1. Order'!J227=\"\",\"\",'1. Order'!J227)","v":""},{"$f":"IF('1. Order'!K227=\"\",\"\",'1. Order'!K227)","v":""},{"$f":"IF('1. Order'!M227=\"\",\"\",'1. Order'!M227)","v":""},null,null,{"$f":"IF('1. Order'!AS227=\"\",\"\",'1. Order'!AS227)","v":""},{"$f":"IF('1. Order'!AF227=\"\",\"\",'1. Order'!AF227)","v":""}]
[{"$f":"IF('1. Order'!B228=\"\",\"\",'1. Order'!B228)","v":""},{"$f":"IF('1. Order'!I228=\"\",\"\",'1. Order'!I228)","v":""},{"$f":"IF('1. Order'!J228=\"\",\"\",'1. Order'!J228)","v":""},{"$f":"IF('1. Order'!K228=\"\",\"\",'1. Order'!K228)","v":""},{"$f":"IF('1. Order'!M228=\"\",\"\",'1. Order'!M228)","v":""},null,null,{"$f":"IF('1. Order'!AS228=\"\",\"\",'1. Order'!AS228)","v":""},{"$f":"IF('1. Order'!AF228=\"\",\"\",'1. Order'!AF228)","v":""}]
[{"$f":"IF('1. Order'!B229=\"\",\"\",'1. Order'!B229)","v":""},{"$f":"IF('1. Order'!I229=\"\",\"\",'1. Order'!I229)","v":""},{"$f":"IF('1. Order'!J229=\"\",\"\",'1. Order'!J229)","v":""},{"$f":"IF('1. Order'!K229=\"\",\"\",'1. Order'!K229)","v":""},{"$f":"IF('1. Order'!M229=\"\",\"\",'1. Order'!M229)","v":""},null,null,{"$f":"IF('1. Order'!AS229=\"\",\"\",'1. Order'!AS229)","v":""},{"$f":"IF('1. Order'!AF229=\"\",\"\",'1. Order'!AF229)","v":""}]
[{"$f":"IF('1. Order'!B230=\"\",\"\",'1. Order'!B230)","v":""},{"$f":"IF('1. Order'!I230=\"\",\"\",'1. Order'!I230)","v":""},{"$f":"IF('1. Order'!J230=\"\",\"\",'1. Order'!J230)","v":""},{"$f":"IF('1. Order'!K230=\"\",\"\",'1. Order'!K230)","v":""},{"$f":"IF('1. Order'!M230=\"\",\"\",'1. Order'!M230)","v":""},null,null,{"$f":"IF('1. Order'!AS230=\"\",\"\",'1. Order'!AS230)","v":""},{"$f":"IF('1. Order'!AF230=\"\",\"\",'1. Order'!AF230)","v":""}]
[{"$f":"IF('1. Order'!B231=\"\",\"\",'1. Order'!B231)","v":""},{"$f":"IF('1. Order'!I231=\"\",\"\",'1. Order'!I231)","v":""},{"$f":"IF('1. Order'!J231=\"\",\"\",'1. Order'!J231)","v":""},{"$f":"IF('1. Order'!K231=\"\",\"\",'1. Order'!K231)","v":""},{"$f":"IF('1. Order'!M231=\"\",\"\",'1. Order'!M231)","v":""},null,null,{"$f":"IF('1. Order'!AS231=\"\",\"\",'1. Order'!AS231)","v":""},{"$f":"IF('1. Order'!AF231=\"\",\"\",'1. Order'!AF231)","v":""}]
[{"$f":"IF('1. Order'!B232=\"\",\"\",'1. Order'!B232)","v":""},{"$f":"IF('1. Order'!I232=\"\",\"\",'1. Order'!I232)","v":""},{"$f":"IF('1. Order'!J232=\"\",\"\",'1. Order'!J232)","v":""},{"$f":"IF('1. Order'!K232=\"\",\"\",'1. Order'!K232)","v":""},{"$f":"IF('1. Order'!M232=\"\",\"\",'1. Order'!M232)","v":""},null,null,{"$f":"IF('1. Order'!AS232=\"\",\"\",'1. Order'!AS232)","v":""},{"$f":"IF('1. Order'!AF232=\"\",\"\",'1. Order'!AF232)","v":""}]
[{"$f":"IF('1. Order'!B233=\"\",\"\",'1. Order'!B233)","v":""},{"$f":"IF('1. Order'!I233=\"\",\"\",'1. Order'!I233)","v":""},{"$f":"IF('1. Order'!J233=\"\",\"\",'1. Order'!J233)","v":""},{"$f":"IF('1. Order'!K233=\"\",\"\",'1. Order'!K233)","v":""},{"$f":"IF('1. Order'!M233=\"\",\"\",'1. Order'!M233)","v":""},null,null,{"$f":"IF('1. Order'!AS233=\"\",\"\",'1. Order'!AS233)","v":""},{"$f":"IF('1. Order'!AF233=\"\",\"\",'1. Order'!AF233)","v":""}]
[{"$f":"IF('1. Order'!B234=\"\",\"\",'1. Order'!B234)","v":""},{"$f":"IF('1. Order'!I234=\"\",\"\",'1. Order'!I234)","v":""},{"$f":"IF('1. Order'!J234=\"\",\"\",'1. Order'!J234)","v":""},{"$f":"IF('1. Order'!K234=\"\",\"\",'1. Order'!K234)","v":""},{"$f":"IF('1. Order'!M234=\"\",\"\",'1. Order'!M234)","v":""},null,null,{"$f":"IF('1. Order'!AS234=\"\",\"\",'1. Order'!AS234)","v":""},{"$f":"IF('1. Order'!AF234=\"\",\"\",'1. Order'!AF234)","v":""}]
[{"$f":"IF('1. Order'!B235=\"\",\"\",'1. Order'!B235)","v":""},{"$f":"IF('1. Order'!I235=\"\",\"\",'1. Order'!I235)","v":""},{"$f":"IF('1. Order'!J235=\"\",\"\",'1. Order'!J235)","v":""},{"$f":"IF('1. Order'!K235=\"\",\"\",'1. Order'!K235)","v":""},{"$f":"IF('1. Order'!M235=\"\",\"\",'1. Order'!M235)","v":""},null,null,{"$f":"IF('1. Order'!AS235=\"\",\"\",'1. Order'!AS235)","v":""},{"$f":"IF('1. Order'!AF235=\"\",\"\",'1. Order'!AF235)","v":""}]
[{"$f":"IF('1. Order'!B236=\"\",\"\",'1. Order'!B236)","v":""},{"$f":"IF('1. Order'!I236=\"\",\"\",'1. Order'!I236)","v":""},{"$f":"IF('1. Order'!J236=\"\",\"\",'1. Order'!J236)","v":""},{"$f":"IF('1. Order'!K236=\"\",\"\",'1. Order'!K236)","v":""},{"$f":"IF('1. Order'!M236=\"\",\"\",'1. Order'!M236)","v":""},null,null,{"$f":"IF('1. Order'!AS236=\"\",\"\",'1. Order'!AS236)","v":""},{"$f":"IF('1. Order'!AF236=\"\",\"\",'1. Order'!AF236)","v":""}]
[{"$f":"IF('1. Order'!B237=\"\",\"\",'1. Order'!B237)","v":""},{"$f":"IF('1. Order'!I237=\"\",\"\",'1. Order'!I237)","v":""},{"$f":"IF('1. Order'!J237=\"\",\"\",'1. Order'!J237)","v":""},{"$f":"IF('1. Order'!K237=\"\",\"\",'1. Order'!K237)","v":""},{"$f":"IF('1. Order'!M237=\"\",\"\",'1. Order'!M237)","v":""},null,null,{"$f":"IF('1. Order'!AS237=\"\",\"\",'1. Order'!AS237)","v":""},{"$f":"IF('1. Order'!AF237=\"\",\"\",'1. Order'!AF237)","v":""}]
[{"$f":"IF('1. Order'!B238=\"\",\"\",'1. Order'!B238)","v":""},{"$f":"IF('1. Order'!I238=\"\",\"\",'1. Order'!I238)","v":""},{"$f":"IF('1. Order'!J238=\"\",\"\",'1. Order'!J238)","v":""},{"$f":"IF('1. Order'!K238=\"\",\"\",'1. Order'!K238)","v":""},{"$f":"IF('1. Order'!M238=\"\",\"\",'1. Order'!M238)","v":""},null,null,{"$f":"IF('1. Order'!AS238=\"\",\"\",'1. Order'!AS238)","v":""},{"$f":"IF('1. Order'!AF238=\"\",\"\",'1. Order'!AF238)","v":""}]
[{"$f":"IF('1. Order'!B239=\"\",\"\",'1. Order'!B239)","v":""},{"$f":"IF('1. Order'!I239=\"\",\"\",'1. Order'!I239)","v":""},{"$f":"IF('1. Order'!J239=\"\",\"\",'1. Order'!J239)","v":""},{"$f":"IF('1. Order'!K239=\"\",\"\",'1. Order'!K239)","v":""},{"$f":"IF('1. Order'!M239=\"\",\"\",'1. Order'!M239)","v":""},null,null,{"$f":"IF('1. Order'!AS239=\"\",\"\",'1. Order'!AS239)","v":""},{"$f":"IF('1. Order'!AF239=\"\",\"\",'1. Order'!AF239)","v":""}]
[{"$f":"IF('1. Order'!B240=\"\",\"\",'1. Order'!B240)","v":""},{"$f":"IF('1. Order'!I240=\"\",\"\",'1. Order'!I240)","v":""},{"$f":"IF('1. Order'!J240=\"\",\"\",'1. Order'!J240)","v":""},{"$f":"IF('1. Order'!K240=\"\",\"\",'1. Order'!K240)","v":""},{"$f":"IF('1. Order'!M240=\"\",\"\",'1. Order'!M240)","v":""},null,null,{"$f":"IF('1. Order'!AS240=\"\",\"\",'1. Order'!AS240)","v":""},{"$f":"IF('1. Order'!AF240=\"\",\"\",'1. Order'!AF240)","v":""}]
[{"$f":"IF('1. Order'!B241=\"\",\"\",'1. Order'!B241)","v":""},{"$f":"IF('1. Order'!I241=\"\",\"\",'1. Order'!I241)","v":""},{"$f":"IF('1. Order'!J241=\"\",\"\",'1. Order'!J241)","v":""},{"$f":"IF('1. Order'!K241=\"\",\"\",'1. Order'!K241)","v":""},{"$f":"IF('1. Order'!M241=\"\",\"\",'1. Order'!M241)","v":""},null,null,{"$f":"IF('1. Order'!AS241=\"\",\"\",'1. Order'!AS241)","v":""},{"$f":"IF('1. Order'!AF241=\"\",\"\",'1. Order'!AF241)","v":""}]
[{"$f":"IF('1. Order'!B242=\"\",\"\",'1. Order'!B242)","v":""},{"$f":"IF('1. Order'!I242=\"\",\"\",'1. Order'!I242)","v":""},{"$f":"IF('1. Order'!J242=\"\",\"\",'1. Order'!J242)","v":""},{"$f":"IF('1. Order'!K242=\"\",\"\",'1. Order'!K242)","v":""},{"$f":"IF('1. Order'!M242=\"\",\"\",'1. Order'!M242)","v":""},null,null,{"$f":"IF('1. Order'!AS242=\"\",\"\",'1. Order'!AS242)","v":""},{"$f":"IF('1. Order'!AF242=\"\",\"\",'1. Order'!AF242)","v":""}]
[{"$f":"IF('1. Order'!B243=\"\",\"\",'1. Order'!B243)","v":""},{"$f":"IF('1. Order'!I243=\"\",\"\",'1. Order'!I243)","v":""},{"$f":"IF('1. Order'!J243=\"\",\"\",'1. Order'!J243)","v":""},{"$f":"IF('1. Order'!K243=\"\",\"\",'1. Order'!K243)","v":""},{"$f":"IF('1. Order'!M243=\"\",\"\",'1. Order'!M243)","v":""},null,null,{"$f":"IF('1. Order'!AS243=\"\",\"\",'1. Order'!AS243)","v":""},{"$f":"IF('1. Order'!AF243=\"\",\"\",'1. Order'!AF243)","v":""}]
[{"$f":"IF('1. Order'!B244=\"\",\"\",'1. Order'!B244)","v":""},{"$f":"IF('1. Order'!I244=\"\",\"\",'1. Order'!I244)","v":""},{"$f":"IF('1. Order'!J244=\"\",\"\",'1. Order'!J244)","v":""},{"$f":"IF('1. Order'!K244=\"\",\"\",'1. Order'!K244)","v":""},{"$f":"IF('1. Order'!M244=\"\",\"\",'1. Order'!M244)","v":""},null,null,{"$f":"IF('1. Order'!AS244=\"\",\"\",'1. Order'!AS244)","v":""},{"$f":"IF('1. Order'!AF244=\"\",\"\",'1. Order'!AF244)","v":""}]
[{"$f":"IF('1. Order'!B245=\"\",\"\",'1. Order'!B245)","v":""},{"$f":"IF('1. Order'!I245=\"\",\"\",'1. Order'!I245)","v":""},{"$f":"IF('1. Order'!J245=\"\",\"\",'1. Order'!J245)","v":""},{"$f":"IF('1. Order'!K245=\"\",\"\",'1. Order'!K245)","v":""},{"$f":"IF('1. Order'!M245=\"\",\"\",'1. Order'!M245)","v":""},null,null,{"$f":"IF('1. Order'!AS245=\"\",\"\",'1. Order'!AS245)","v":""},{"$f":"IF('1. Order'!AF245=\"\",\"\",'1. Order'!AF245)","v":""}]
[{"$f":"IF('1. Order'!B246=\"\",\"\",'1. Order'!B246)","v":""},{"$f":"IF('1. Order'!I246=\"\",\"\",'1. Order'!I246)","v":""},{"$f":"IF('1. Order'!J246=\"\",\"\",'1. Order'!J246)","v":""},{"$f":"IF('1. Order'!K246=\"\",\"\",'1. Order'!K246)","v":""},{"$f":"IF('1. Order'!M246=\"\",\"\",'1. Order'!M246)","v":""},null,null,{"$f":"IF('1. Order'!AS246=\"\",\"\",'1. Order'!AS246)","v":""},{"$f":"IF('1. Order'!AF246=\"\",\"\",'1. Order'!AF246)","v":""}]
[{"$f":"IF('1. Order'!B247=\"\",\"\",'1. Order'!B247)","v":""},{"$f":"IF('1. Order'!I247=\"\",\"\",'1. Order'!I247)","v":""},{"$f":"IF('1. Order'!J247=\"\",\"\",'1. Order'!J247)","v":""},{"$f":"IF('1. Order'!K247=\"\",\"\",'1. Order'!K247)","v":""},{"$f":"IF('1. Order'!M247=\"\",\"\",'1. Order'!M247)","v":""},null,null,{"$f":"IF('1. Order'!AS247=\"\",\"\",'1. Order'!AS247)","v":""},{"$f":"IF('1. Order'!AF247=\"\",\"\",'1. Order'!AF247)","v":""}]
[{"$f":"IF('1. Order'!B248=\"\",\"\",'1. Order'!B248)","v":""},{"$f":"IF('1. Order'!I248=\"\",\"\",'1. Order'!I248)","v":""},{"$f":"IF('1. Order'!J248=\"\",\"\",'1. Order'!J248)","v":""},{"$f":"IF('1. Order'!K248=\"\",\"\",'1. Order'!K248)","v":""},{"$f":"IF('1. Order'!M248=\"\",\"\",'1. Order'!M248)","v":""},null,null,{"$f":"IF('1. Order'!AS248=\"\",\"\",'1. Order'!AS248)","v":""},{"$f":"IF('1. Order'!AF248=\"\",\"\",'1. Order'!AF248)","v":""}]
[{"$f":"IF('1. Order'!B249=\"\",\"\",'1. Order'!B249)","v":""},{"$f":"IF('1. Order'!I249=\"\",\"\",'1. Order'!I249)","v":""},{"$f":"IF('1. Order'!J249=\"\",\"\",'1. Order'!J249)","v":""},{"$f":"IF('1. Order'!K249=\"\",\"\",'1. Order'!K249)","v":""},{"$f":"IF('1. Order'!M249=\"\",\"\",'1. Order'!M249)","v":""},null,null,{"$f":"IF('1. Order'!AS249=\"\",\"\",'1. Order'!AS249)","v":""},{"$f":"IF('1. Order'!AF249=\"\",\"\",'1. Order'!AF249)","v":""}]
[{"$f":"IF('1. Order'!B250=\"\",\"\",'1. Order'!B250)","v":""},{"$f":"IF('1. Order'!I250=\"\",\"\",'1. Order'!I250)","v":""},{"$f":"IF('1. Order'!J250=\"\",\"\",'1. Order'!J250)","v":""},{"$f":"IF('1. Order'!K250=\"\",\"\",'1. Order'!K250)","v":""},{"$f":"IF('1. Order'!M250=\"\",\"\",'1. Order'!M250)","v":""},null,null,{"$f":"IF('1. Order'!AS250=\"\",\"\",'1. Order'!AS250)","v":""},{"$f":"IF('1. Order'!AF250=\"\",\"\",'1. Order'!AF250)","v":""}]
[{"$f":"IF('1. Order'!B251=\"\",\"\",'1. Order'!B251)","v":""},{"$f":"IF('1. Order'!I251=\"\",\"\",'1. Order'!I251)","v":""},{"$f":"IF('1. Order'!J251=\"\",\"\",'1. Order'!J251)","v":""},{"$f":"IF('1. Order'!K251=\"\",\"\",'1. Order'!K251)","v":""},{"$f":"IF('1. Order'!M251=\"\",\"\",'1. Order'!M251)","v":""},null,null,{"$f":"IF('1. Order'!AS251=\"\",\"\",'1. Order'!AS251)","v":""},{"$f":"IF('1. Order'!AF251=\"\",\"\",'1. Order'!AF251)","v":""}]
[{"$f":"IF('1. Order'!B252=\"\",\"\",'1. Order'!B252)","v":""},{"$f":"IF('1. Order'!I252=\"\",\"\",'1. Order'!I252)","v":""},{"$f":"IF('1. Order'!J252=\"\",\"\",'1. Order'!J252)","v":""},{"$f":"IF('1. Order'!K252=\"\",\"\",'1. Order'!K252)","v":""},{"$f":"IF('1. Order'!M252=\"\",\"\",'1. Order'!M252)","v":""},null,null,{"$f":"IF('1. Order'!AS252=\"\",\"\",'1. Order'!AS252)","v":""},{"$f":"IF('1. Order'!AF252=\"\",\"\",'1. Order'!AF252)","v":""}]
[{"$f":"IF('1. Order'!B253=\"\",\"\",'1. Order'!B253)","v":""},{"$f":"IF('1. Order'!I253=\"\",\"\",'1. Order'!I253)","v":""},{"$f":"IF('1. Order'!J253=\"\",\"\",'1. Order'!J253)","v":""},{"$f":"IF('1. Order'!K253=\"\",\"\",'1. Order'!K253)","v":""},{"$f":"IF('1. Order'!M253=\"\",\"\",'1. Order'!M253)","v":""},null,null,{"$f":"IF('1. Order'!AS253=\"\",\"\",'1. Order'!AS253)","v":""},{"$f":"IF('1. Order'!AF253=\"\",\"\",'1. Order'!AF253)","v":""}]
[{"$f":"IF('1. Order'!B254=\"\",\"\",'1. Order'!B254)","v":""},{"$f":"IF('1. Order'!I254=\"\",\"\",'1. Order'!I254)","v":""},{"$f":"IF('1. Order'!J254=\"\",\"\",'1. Order'!J254)","v":""},{"$f":"IF('1. Order'!K254=\"\",\"\",'1. Order'!K254)","v":""},{"$f":"IF('1. Order'!M254=\"\",\"\",'1. Order'!M254)","v":""},null,null,{"$f":"IF('1. Order'!AS254=\"\",\"\",'1. Order'!AS254)","v":""},{"$f":"IF('1. Order'!AF254=\"\",\"\",'1. Order'!AF254)","v":""}]
[{"$f":"IF('1. Order'!B255=\"\",\"\",'1. Order'!B255)","v":""},{"$f":"IF('1. Order'!I255=\"\",\"\",'1. Order'!I255)","v":""},{"$f":"IF('1. Order'!J255=\"\",\"\",'1. Order'!J255)","v":""},{"$f":"IF('1. Order'!K255=\"\",\"\",'1. Order'!K255)","v":""},{"$f":"IF('1. Order'!M255=\"\",\"\",'1. Order'!M255)","v":""},null,null,{"$f":"IF('1. Order'!AS255=\"\",\"\",'1. Order'!AS255)","v":""},{"$f":"IF('1. Order'!AF255=\"\",\"\",'1. Order'!AF255)","v":""}]
[{"$f":"IF('1. Order'!B256=\"\",\"\",'1. Order'!B256)","v":""},{"$f":"IF('1. Order'!I256=\"\",\"\",'1. Order'!I256)","v":""},{"$f":"IF('1. Order'!J256=\"\",\"\",'1. Order'!J256)","v":""},{"$f":"IF('1. Order'!K256=\"\",\"\",'1. Order'!K256)","v":""},{"$f":"IF('1. Order'!M256=\"\",\"\",'1. Order'!M256)","v":""},null,null,{"$f":"IF('1. Order'!AS256=\"\",\"\",'1. Order'!AS256)","v":""},{"$f":"IF('1. Order'!AF256=\"\",\"\",'1. Order'!AF256)","v":""}]
[{"$f":"IF('1. Order'!B257=\"\",\"\",'1. Order'!B257)","v":""},{"$f":"IF('1. Order'!I257=\"\",\"\",'1. Order'!I257)","v":""},{"$f":"IF('1. Order'!J257=\"\",\"\",'1. Order'!J257)","v":""},{"$f":"IF('1. Order'!K257=\"\",\"\",'1. Order'!K257)","v":""},{"$f":"IF('1. Order'!M257=\"\",\"\",'1. Order'!M257)","v":""},null,null,{"$f":"IF('1. Order'!AS257=\"\",\"\",'1. Order'!AS257)","v":""},{"$f":"IF('1. Order'!AF257=\"\",\"\",'1. Order'!AF257)","v":""}]
[{"$f":"IF('1. Order'!B258=\"\",\"\",'1. Order'!B258)","v":""},{"$f":"IF('1. Order'!I258=\"\",\"\",'1. Order'!I258)","v":""},{"$f":"IF('1. Order'!J258=\"\",\"\",'1. Order'!J258)","v":""},{"$f":"IF('1. Order'!K258=\"\",\"\",'1. Order'!K258)","v":""},{"$f":"IF('1. Order'!M258=\"\",\"\",'1. Order'!M258)","v":""},null,null,{"$f":"IF('1. Order'!AS258=\"\",\"\",'1. Order'!AS258)","v":""},{"$f":"IF('1. Order'!AF258=\"\",\"\",'1. Order'!AF258)","v":""}]
[{"$f":"IF('1. Order'!B259=\"\",\"\",'1. Order'!B259)","v":""},{"$f":"IF('1. Order'!I259=\"\",\"\",'1. Order'!I259)","v":""},{"$f":"IF('1. Order'!J259=\"\",\"\",'1. Order'!J259)","v":""},{"$f":"IF('1. Order'!K259=\"\",\"\",'1. Order'!K259)","v":""},{"$f":"IF('1. Order'!M259=\"\",\"\",'1. Order'!M259)","v":""},null,null,{"$f":"IF('1. Order'!AS259=\"\",\"\",'1. Order'!AS259)","v":""},{"$f":"IF('1. Order'!AF259=\"\",\"\",'1. Order'!AF259)","v":""}]
[{"$f":"IF('1. Order'!B260=\"\",\"\",'1. Order'!B260)","v":""},{"$f":"IF('1. Order'!I260=\"\",\"\",'1. Order'!I260)","v":""},{"$f":"IF('1. Order'!J260=\"\",\"\",'1. Order'!J260)","v":""},{"$f":"IF('1. Order'!K260=\"\",\"\",'1. Order'!K260)","v":""},{"$f":"IF('1. Order'!M260=\"\",\"\",'1. Order'!M260)","v":""},null,null,{"$f":"IF('1. Order'!AS260=\"\",\"\",'1. Order'!AS260)","v":""},{"$f":"IF('1. Order'!AF260=\"\",\"\",'1. Order'!AF260)","v":""}]
[{"$f":"IF('1. Order'!B261=\"\",\"\",'1. Order'!B261)","v":""},{"$f":"IF('1. Order'!I261=\"\",\"\",'1. Order'!I261)","v":""},{"$f":"IF('1. Order'!J261=\"\",\"\",'1. Order'!J261)","v":""},{"$f":"IF('1. Order'!K261=\"\",\"\",'1. Order'!K261)","v":""},{"$f":"IF('1. Order'!M261=\"\",\"\",'1. Order'!M261)","v":""},null,null,{"$f":"IF('1. Order'!AS261=\"\",\"\",'1. Order'!AS261)","v":""},{"$f":"IF('1. Order'!AF261=\"\",\"\",'1. Order'!AF261)","v":""}]
[{"$f":"IF('1. Order'!B262=\"\",\"\",'1. Order'!B262)","v":""},{"$f":"IF('1. Order'!I262=\"\",\"\",'1. Order'!I262)","v":""},{"$f":"IF('1. Order'!J262=\"\",\"\",'1. Order'!J262)","v":""},{"$f":"IF('1. Order'!K262=\"\",\"\",'1. Order'!K262)","v":""},{"$f":"IF('1. Order'!M262=\"\",\"\",'1. Order'!M262)","v":""},null,null,{"$f":"IF('1. Order'!AS262=\"\",\"\",'1. Order'!AS262)","v":""},{"$f":"IF('1. Order'!AF262=\"\",\"\",'1. Order'!AF262)","v":""}]
[{"$f":"IF('1. Order'!B263=\"\",\"\",'1. Order'!B263)","v":""},{"$f":"IF('1. Order'!I263=\"\",\"\",'1. Order'!I263)","v":""},{"$f":"IF('1. Order'!J263=\"\",\"\",'1. Order'!J263)","v":""},{"$f":"IF('1. Order'!K263=\"\",\"\",'1. Order'!K263)","v":""},{"$f":"IF('1. Order'!M263=\"\",\"\",'1. Order'!M263)","v":""},null,null,{"$f":"IF('1. Order'!AS263=\"\",\"\",'1. Order'!AS263)","v":""},{"$f":"IF('1. Order'!AF263=\"\",\"\",'1. Order'!AF263)","v":""}]
[{"$f":"IF('1. Order'!B264=\"\",\"\",'1. Order'!B264)","v":""},{"$f":"IF('1. Order'!I264=\"\",\"\",'1. Order'!I264)","v":""},{"$f":"IF('1. Order'!J264=\"\",\"\",'1. Order'!J264)","v":""},{"$f":"IF('1. Order'!K264=\"\",\"\",'1. Order'!K264)","v":""},{"$f":"IF('1. Order'!M264=\"\",\"\",'1. Order'!M264)","v":""},null,null,{"$f":"IF('1. Order'!AS264=\"\",\"\",'1. Order'!AS264)","v":""},{"$f":"IF('1. Order'!AF264=\"\",\"\",'1. Order'!AF264)","v":""}]
[{"$f":"IF('1. Order'!B265=\"\",\"\",'1. Order'!B265)","v":""},{"$f":"IF('1. Order'!I265=\"\",\"\",'1. Order'!I265)","v":""},{"$f":"IF('1. Order'!J265=\"\",\"\",'1. Order'!J265)","v":""},{"$f":"IF('1. Order'!K265=\"\",\"\",'1. Order'!K265)","v":""},{"$f":"IF('1. Order'!M265=\"\",\"\",'1. Order'!M265)","v":""},null,null,{"$f":"IF('1. Order'!AS265=\"\",\"\",'1. Order'!AS265)","v":""},{"$f":"IF('1. Order'!AF265=\"\",\"\",'1. Order'!AF265)","v":""}]
[{"$f":"IF('1. Order'!B266=\"\",\"\",'1. Order'!B266)","v":""},{"$f":"IF('1. Order'!I266=\"\",\"\",'1. Order'!I266)","v":""},{"$f":"IF('1. Order'!J266=\"\",\"\",'1. Order'!J266)","v":""},{"$f":"IF('1. Order'!K266=\"\",\"\",'1. Order'!K266)","v":""},{"$f":"IF('1. Order'!M266=\"\",\"\",'1. Order'!M266)","v":""},null,null,{"$f":"IF('1. Order'!AS266=\"\",\"\",'1. Order'!AS266)","v":""},{"$f":"IF('1. Order'!AF266=\"\",\"\",'1. Order'!AF266)","v":""}]
[{"$f":"IF('1. Order'!B267=\"\",\"\",'1. Order'!B267)","v":""},{"$f":"IF('1. Order'!I267=\"\",\"\",'1. Order'!I267)","v":""},{"$f":"IF('1. Order'!J267=\"\",\"\",'1. Order'!J267)","v":""},{"$f":"IF('1. Order'!K267=\"\",\"\",'1. Order'!K267)","v":""},{"$f":"IF('1. Order'!M267=\"\",\"\",'1. Order'!M267)","v":""},null,null,{"$f":"IF('1. Order'!AS267=\"\",\"\",'1. Order'!AS267)","v":""},{"$f":"IF('1. Order'!AF267=\"\",\"\",'1. Order'!AF267)","v":""}]
[{"$f":"IF('1. Order'!B268=\"\",\"\",'1. Order'!B268)","v":""},{"$f":"IF('1. Order'!I268=\"\",\"\",'1. Order'!I268)","v":""},{"$f":"IF('1. Order'!J268=\"\",\"\",'1. Order'!J268)","v":""},{"$f":"IF('1. Order'!K268=\"\",\"\",'1. Order'!K268)","v":""},{"$f":"IF('1. Order'!M268=\"\",\"\",'1. Order'!M268)","v":""},null,null,{"$f":"IF('1. Order'!AS268=\"\",\"\",'1. Order'!AS268)","v":""},{"$f":"IF('1. Order'!AF268=\"\",\"\",'1. Order'!AF268)","v":""}]
[{"$f":"IF('1. Order'!B269=\"\",\"\",'1. Order'!B269)","v":""},{"$f":"IF('1. Order'!I269=\"\",\"\",'1. Order'!I269)","v":""},{"$f":"IF('1. Order'!J269=\"\",\"\",'1. Order'!J269)","v":""},{"$f":"IF('1. Order'!K269=\"\",\"\",'1. Order'!K269)","v":""},{"$f":"IF('1. Order'!M269=\"\",\"\",'1. Order'!M269)","v":""},null,null,{"$f":"IF('1. Order'!AS269=\"\",\"\",'1. Order'!AS269)","v":""},{"$f":"IF('1. Order'!AF269=\"\",\"\",'1. Order'!AF269)","v":""}]
[{"$f":"IF('1. Order'!B270=\"\",\"\",'1. Order'!B270)","v":""},{"$f":"IF('1. Order'!I270=\"\",\"\",'1. Order'!I270)","v":""},{"$f":"IF('1. Order'!J270=\"\",\"\",'1. Order'!J270)","v":""},{"$f":"IF('1. Order'!K270=\"\",\"\",'1. Order'!K270)","v":""},{"$f":"IF('1. Order'!M270=\"\",\"\",'1. Order'!M270)","v":""},null,null,{"$f":"IF('1. Order'!AS270=\"\",\"\",'1. Order'!AS270)","v":""},{"$f":"IF('1. Order'!AF270=\"\",\"\",'1. Order'!AF270)","v":""}]
[{"$f":"IF('1. Order'!B271=\"\",\"\",'1. Order'!B271)","v":""},{"$f":"IF('1. Order'!I271=\"\",\"\",'1. Order'!I271)","v":""},{"$f":"IF('1. Order'!J271=\"\",\"\",'1. Order'!J271)","v":""},{"$f":"IF('1. Order'!K271=\"\",\"\",'1. Order'!K271)","v":""},{"$f":"IF('1. Order'!M271=\"\",\"\",'1. Order'!M271)","v":""},null,null,{"$f":"IF('1. Order'!AS271=\"\",\"\",'1. Order'!AS271)","v":""},{"$f":"IF('1. Order'!AF271=\"\",\"\",'1. Order'!AF271)","v":""}]
[{"$f":"IF('1. Order'!B272=\"\",\"\",'1. Order'!B272)","v":""},{"$f":"IF('1. Order'!I272=\"\",\"\",'1. Order'!I272)","v":""},{"$f":"IF('1. Order'!J272=\"\",\"\",'1. Order'!J272)","v":""},{"$f":"IF('1. Order'!K272=\"\",\"\",'1. Order'!K272)","v":""},{"$f":"IF('1. Order'!M272=\"\",\"\",'1. Order'!M272)","v":""},null,null,{"$f":"IF('1. Order'!AS272=\"\",\"\",'1. Order'!AS272)","v":""},{"$f":"IF('1. Order'!AF272=\"\",\"\",'1. Order'!AF272)","v":""}]
[{"$f":"IF('1. Order'!B273=\"\",\"\",'1. Order'!B273)","v":""},{"$f":"IF('1. Order'!I273=\"\",\"\",'1. Order'!I273)","v":""},{"$f":"IF('1. Order'!J273=\"\",\"\",'1. Order'!J273)","v":""},{"$f":"IF('1. Order'!K273=\"\",\"\",'1. Order'!K273)","v":""},{"$f":"IF('1. Order'!M273=\"\",\"\",'1. Order'!M273)","v":""},null,null,{"$f":"IF('1. Order'!AS273=\"\",\"\",'1. Order'!AS273)","v":""},{"$f":"IF('1. Order'!AF273=\"\",\"\",'1. Order'!AF273)","v":""}]
[{"$f":"IF('1. Order'!B274=\"\",\"\",'1. Order'!B274)","v":""},{"$f":"IF('1. Order'!I274=\"\",\"\",'1. Order'!I274)","v":""},{"$f":"IF('1. Order'!J274=\"\",\"\",'1. Order'!J274)","v":""},{"$f":"IF('1. Order'!K274=\"\",\"\",'1. Order'!K274)","v":""},{"$f":"IF('1. Order'!M274=\"\",\"\",'1. Order'!M274)","v":""},null,null,{"$f":"IF('1. Order'!AS274=\"\",\"\",'1. Order'!AS274)","v":""},{"$f":"IF('1. Order'!AF274=\"\",\"\",'1. Order'!AF274)","v":""}]
[{"$f":"IF('1. Order'!B275=\"\",\"\",'1. Order'!B275)","v":""},{"$f":"IF('1. Order'!I275=\"\",\"\",'1. Order'!I275)","v":""},{"$f":"IF('1. Order'!J275=\"\",\"\",'1. Order'!J275)","v":""},{"$f":"IF('1. Order'!K275=\"\",\"\",'1. Order'!K275)","v":""},{"$f":"IF('1. Order'!M275=\"\",\"\",'1. Order'!M275)","v":""},null,null,{"$f":"IF('1. Order'!AS275=\"\",\"\",'1. Order'!AS275)","v":""},{"$f":"IF('1. Order'!AF275=\"\",\"\",'1. Order'!AF275)","v":""}]
[{"$f":"IF('1. Order'!B276=\"\",\"\",'1. Order'!B276)","v":""},{"$f":"IF('1. Order'!I276=\"\",\"\",'1. Order'!I276)","v":""},{"$f":"IF('1. Order'!J276=\"\",\"\",'1. Order'!J276)","v":""},{"$f":"IF('1. Order'!K276=\"\",\"\",'1. Order'!K276)","v":""},{"$f":"IF('1. Order'!M276=\"\",\"\",'1. Order'!M276)","v":""},null,null,{"$f":"IF('1. Order'!AS276=\"\",\"\",'1. Order'!AS276)","v":""},{"$f":"IF('1. Order'!AF276=\"\",\"\",'1. Order'!AF276)","v":""}]
[{"$f":"IF('1. Order'!B277=\"\",\"\",'1. Order'!B277)","v":""},{"$f":"IF('1. Order'!I277=\"\",\"\",'1. Order'!I277)","v":""},{"$f":"IF('1. Order'!J277=\"\",\"\",'1. Order'!J277)","v":""},{"$f":"IF('1. Order'!K277=\"\",\"\",'1. Order'!K277)","v":""},{"$f":"IF('1. Order'!M277=\"\",\"\",'1. Order'!M277)","v":""},null,null,{"$f":"IF('1. Order'!AS277=\"\",\"\",'1. Order'!AS277)","v":""},{"$f":"IF('1. Order'!AF277=\"\",\"\",'1. Order'!AF277)","v":""}]
[{"$f":"IF('1. Order'!B278=\"\",\"\",'1. Order'!B278)","v":""},{"$f":"IF('1. Order'!I278=\"\",\"\",'1. Order'!I278)","v":""},{"$f":"IF('1. Order'!J278=\"\",\"\",'1. Order'!J278)","v":""},{"$f":"IF('1. Order'!K278=\"\",\"\",'1. Order'!K278)","v":""},{"$f":"IF('1. Order'!M278=\"\",\"\",'1. Order'!M278)","v":""},null,null,{"$f":"IF('1. Order'!AS278=\"\",\"\",'1. Order'!AS278)","v":""},{"$f":"IF('1. Order'!AF278=\"\",\"\",'1. Order'!AF278)","v":""}]
[{"$f":"IF('1. Order'!B279=\"\",\"\",'1. Order'!B279)","v":""},{"$f":"IF('1. Order'!I279=\"\",\"\",'1. Order'!I279)","v":""},{"$f":"IF('1. Order'!J279=\"\",\"\",'1. Order'!J279)","v":""},{"$f":"IF('1. Order'!K279=\"\",\"\",'1. Order'!K279)","v":""},{"$f":"IF('1. Order'!M279=\"\",\"\",'1. Order'!M279)","v":""},null,null,{"$f":"IF('1. Order'!AS279=\"\",\"\",'1. Order'!AS279)","v":""},{"$f":"IF('1. Order'!AF279=\"\",\"\",'1. Order'!AF279)","v":""}]
[{"$f":"IF('1. Order'!B280=\"\",\"\",'1. Order'!B280)","v":""},{"$f":"IF('1. Order'!I280=\"\",\"\",'1. Order'!I280)","v":""},{"$f":"IF('1. Order'!J280=\"\",\"\",'1. Order'!J280)","v":""},{"$f":"IF('1. Order'!K280=\"\",\"\",'1. Order'!K280)","v":""},{"$f":"IF('1. Order'!M280=\"\",\"\",'1. Order'!M280)","v":""},null,null,{"$f":"IF('1. Order'!AS280=\"\",\"\",'1. Order'!AS280)","v":""},{"$f":"IF('1. Order'!AF280=\"\",\"\",'1. Order'!AF280)","v":""}]
[{"$f":"IF('1. Order'!B281=\"\",\"\",'1. Order'!B281)","v":""},{"$f":"IF('1. Order'!I281=\"\",\"\",'1. Order'!I281)","v":""},{"$f":"IF('1. Order'!J281=\"\",\"\",'1. Order'!J281)","v":""},{"$f":"IF('1. Order'!K281=\"\",\"\",'1. Order'!K281)","v":""},{"$f":"IF('1. Order'!M281=\"\",\"\",'1. Order'!M281)","v":""},null,null,{"$f":"IF('1. Order'!AS281=\"\",\"\",'1. Order'!AS281)","v":""},{"$f":"IF('1. Order'!AF281=\"\",\"\",'1. Order'!AF281)","v":""}]
[{"$f":"IF('1. Order'!B282=\"\",\"\",'1. Order'!B282)","v":""},{"$f":"IF('1. Order'!I282=\"\",\"\",'1. Order'!I282)","v":""},{"$f":"IF('1. Order'!J282=\"\",\"\",'1. Order'!J282)","v":""},{"$f":"IF('1. Order'!K282=\"\",\"\",'1. Order'!K282)","v":""},{"$f":"IF('1. Order'!M282=\"\",\"\",'1. Order'!M282)","v":""},null,null,{"$f":"IF('1. Order'!AS282=\"\",\"\",'1. Order'!AS282)","v":""},{"$f":"IF('1. Order'!AF282=\"\",\"\",'1. Order'!AF282)","v":""}]
[{"$f":"IF('1. Order'!B283=\"\",\"\",'1. Order'!B283)","v":""},{"$f":"IF('1. Order'!I283=\"\",\"\",'1. Order'!I283)","v":""},{"$f":"IF('1. Order'!J283=\"\",\"\",'1. Order'!J283)","v":""},{"$f":"IF('1. Order'!K283=\"\",\"\",'1. Order'!K283)","v":""},{"$f":"IF('1. Order'!M283=\"\",\"\",'1. Order'!M283)","v":""},null,null,{"$f":"IF('1. Order'!AS283=\"\",\"\",'1. Order'!AS283)","v":""},{"$f":"IF('1. Order'!AF283=\"\",\"\",'1. Order'!AF283)","v":""}]
[{"$f":"IF('1. Order'!B284=\"\",\"\",'1. Order'!B284)","v":""},{"$f":"IF('1. Order'!I284=\"\",\"\",'1. Order'!I284)","v":""},{"$f":"IF('1. Order'!J284=\"\",\"\",'1. Order'!J284)","v":""},{"$f":"IF('1. Order'!K284=\"\",\"\",'1. Order'!K284)","v":""},{"$f":"IF('1. Order'!M284=\"\",\"\",'1. Order'!M284)","v":""},null,null,{"$f":"IF('1. Order'!AS284=\"\",\"\",'1. Order'!AS284)","v":""},{"$f":"IF('1. Order'!AF284=\"\",\"\",'1. Order'!AF284)","v":""}]
[{"$f":"IF('1. Order'!B285=\"\",\"\",'1. Order'!B285)","v":""},{"$f":"IF('1. Order'!I285=\"\",\"\",'1. Order'!I285)","v":""},{"$f":"IF('1. Order'!J285=\"\",\"\",'1. Order'!J285)","v":""},{"$f":"IF('1. Order'!K285=\"\",\"\",'1. Order'!K285)","v":""},{"$f":"IF('1. Order'!M285=\"\",\"\",'1. Order'!M285)","v":""},null,null,{"$f":"IF('1. Order'!AS285=\"\",\"\",'1. Order'!AS285)","v":""},{"$f":"IF('1. Order'!AF285=\"\",\"\",'1. Order'!AF285)","v":""}]
[{"$f":"IF('1. Order'!B286=\"\",\"\",'1. Order'!B286)","v":""},{"$f":"IF('1. Order'!I286=\"\",\"\",'1. Order'!I286)","v":""},{"$f":"IF('1. Order'!J286=\"\",\"\",'1. Order'!J286)","v":""},{"$f":"IF('1. Order'!K286=\"\",\"\",'1. Order'!K286)","v":""},{"$f":"IF('1. Order'!M286=\"\",\"\",'1. Order'!M286)","v":""},null,null,{"$f":"IF('1. Order'!AS286=\"\",\"\",'1. Order'!AS286)","v":""},{"$f":"IF('1. Order'!AF286=\"\",\"\",'1. Order'!AF286)","v":""}]
[{"$f":"IF('1. Order'!B287=\"\",\"\",'1. Order'!B287)","v":""},{"$f":"IF('1. Order'!I287=\"\",\"\",'1. Order'!I287)","v":""},{"$f":"IF('1. Order'!J287=\"\",\"\",'1. Order'!J287)","v":""},{"$f":"IF('1. Order'!K287=\"\",\"\",'1. Order'!K287)","v":""},{"$f":"IF('1. Order'!M287=\"\",\"\",'1. Order'!M287)","v":""},null,null,{"$f":"IF('1. Order'!AS287=\"\",\"\",'1. Order'!AS287)","v":""},{"$f":"IF('1. Order'!AF287=\"\",\"\",'1. Order'!AF287)","v":""}]
[{"$f":"IF('1. Order'!B288=\"\",\"\",'1. Order'!B288)","v":""},{"$f":"IF('1. Order'!I288=\"\",\"\",'1. Order'!I288)","v":""},{"$f":"IF('1. Order'!J288=\"\",\"\",'1. Order'!J288)","v":""},{"$f":"IF('1. Order'!K288=\"\",\"\",'1. Order'!K288)","v":""},{"$f":"IF('1. Order'!M288=\"\",\"\",'1. Order'!M288)","v":""},null,null,{"$f":"IF('1. Order'!AS288=\"\",\"\",'1. Order'!AS288)","v":""},{"$f":"IF('1. Order'!AF288=\"\",\"\",'1. Order'!AF288)","v":""}]
[{"$f":"IF('1. Order'!B289=\"\",\"\",'1. Order'!B289)","v":""},{"$f":"IF('1. Order'!I289=\"\",\"\",'1. Order'!I289)","v":""},{"$f":"IF('1. Order'!J289=\"\",\"\",'1. Order'!J289)","v":""},{"$f":"IF('1. Order'!K289=\"\",\"\",'1. Order'!K289)","v":""},{"$f":"IF('1. Order'!M289=\"\",\"\",'1. Order'!M289)","v":""},null,null,{"$f":"IF('1. Order'!AS289=\"\",\"\",'1. Order'!AS289)","v":""},{"$f":"IF('1. Order'!AF289=\"\",\"\",'1. Order'!AF289)","v":""}]
[{"$f":"IF('1. Order'!B290=\"\",\"\",'1. Order'!B290)","v":""},{"$f":"IF('1. Order'!I290=\"\",\"\",'1. Order'!I290)","v":""},{"$f":"IF('1. Order'!J290=\"\",\"\",'1. Order'!J290)","v":""},{"$f":"IF('1. Order'!K290=\"\",\"\",'1. Order'!K290)","v":""},{"$f":"IF('1. Order'!M290=\"\",\"\",'1. Order'!M290)","v":""},null,null,{"$f":"IF('1. Order'!AS290=\"\",\"\",'1. Order'!AS290)","v":""},{"$f":"IF('1. Order'!AF290=\"\",\"\",'1. Order'!AF290)","v":""}]
[{"$f":"IF('1. Order'!B291=\"\",\"\",'1. Order'!B291)","v":""},{"$f":"IF('1. Order'!I291=\"\",\"\",'1. Order'!I291)","v":""},{"$f":"IF('1. Order'!J291=\"\",\"\",'1. Order'!J291)","v":""},{"$f":"IF('1. Order'!K291=\"\",\"\",'1. Order'!K291)","v":""},{"$f":"IF('1. Order'!M291=\"\",\"\",'1. Order'!M291)","v":""},null,null,{"$f":"IF('1. Order'!AS291=\"\",\"\",'1. Order'!AS291)","v":""},{"$f":"IF('1. Order'!AF291=\"\",\"\",'1. Order'!AF291)","v":""}]
[{"$f":"IF('1. Order'!B292=\"\",\"\",'1. Order'!B292)","v":""},{"$f":"IF('1. Order'!I292=\"\",\"\",'1. Order'!I292)","v":""},{"$f":"IF('1. Order'!J292=\"\",\"\",'1. Order'!J292)","v":""},{"$f":"IF('1. Order'!K292=\"\",\"\",'1. Order'!K292)","v":""},{"$f":"IF('1. Order'!M292=\"\",\"\",'1. Order'!M292)","v":""},null,null,{"$f":"IF('1. Order'!AS292=\"\",\"\",'1. Order'!AS292)","v":""},{"$f":"IF('1. Order'!AF292=\"\",\"\",'1. Order'!AF292)","v":""}]
[{"$f":"IF('1. Order'!B293=\"\",\"\",'1. Order'!B293)","v":""},{"$f":"IF('1. Order'!I293=\"\",\"\",'1. Order'!I293)","v":""},{"$f":"IF('1. Order'!J293=\"\",\"\",'1. Order'!J293)","v":""},{"$f":"IF('1. Order'!K293=\"\",\"\",'1. Order'!K293)","v":""},{"$f":"IF('1. Order'!M293=\"\",\"\",'1. Order'!M293)","v":""},null,null,{"$f":"IF('1. Order'!AS293=\"\",\"\",'1. Order'!AS293)","v":""},{"$f":"IF('1. Order'!AF293=\"\",\"\",'1. Order'!AF293)","v":""}]
[{"$f":"IF('1. Order'!B294=\"\",\"\",'1. Order'!B294)","v":""},{"$f":"IF('1. Order'!I294=\"\",\"\",'1. Order'!I294)","v":""},{"$f":"IF('1. Order'!J294=\"\",\"\",'1. Order'!J294)","v":""},{"$f":"IF('1. Order'!K294=\"\",\"\",'1. Order'!K294)","v":""},{"$f":"IF('1. Order'!M294=\"\",\"\",'1. Order'!M294)","v":""},null,null,{"$f":"IF('1. Order'!AS294=\"\",\"\",'1. Order'!AS294)","v":""},{"$f":"IF('1. Order'!AF294=\"\",\"\",'1. Order'!AF294)","v":""}]
[{"$f":"IF('1. Order'!B295=\"\",\"\",'1. Order'!B295)","v":""},{"$f":"IF('1. Order'!I295=\"\",\"\",'1. Order'!I295)","v":""},{"$f":"IF('1. Order'!J295=\"\",\"\",'1. Order'!J295)","v":""},{"$f":"IF('1. Order'!K295=\"\",\"\",'1. Order'!K295)","v":""},{"$f":"IF('1. Order'!M295=\"\",\"\",'1. Order'!M295)","v":""},null,null,{"$f":"IF('1. Order'!AS295=\"\",\"\",'1. Order'!AS295)","v":""},{"$f":"IF('1. Order'!AF295=\"\",\"\",'1. Order'!AF295)","v":""}]
[{"$f":"IF('1. Order'!B296=\"\",\"\",'1. Order'!B296)","v":""},{"$f":"IF('1. Order'!I296=\"\",\"\",'1. Order'!I296)","v":""},{"$f":"IF('1. Order'!J296=\"\",\"\",'1. Order'!J296)","v":""},{"$f":"IF('1. Order'!K296=\"\",\"\",'1. Order'!K296)","v":""},{"$f":"IF('1. Order'!M296=\"\",\"\",'1. Order'!M296)","v":""},null,null,{"$f":"IF('1. Order'!AS296=\"\",\"\",'1. Order'!AS296)","v":""},{"$f":"IF('1. Order'!AF296=\"\",\"\",'1. Order'!AF296)","v":""}]
[{"$f":"IF('1. Order'!B297=\"\",\"\",'1. Order'!B297)","v":""},{"$f":"IF('1. Order'!I297=\"\",\"\",'1. Order'!I297)","v":""},{"$f":"IF('1. Order'!J297=\"\",\"\",'1. Order'!J297)","v":""},{"$f":"IF('1. Order'!K297=\"\",\"\",'1. Order'!K297)","v":""},{"$f":"IF('1. Order'!M297=\"\",\"\",'1. Order'!M297)","v":""},null,null,{"$f":"IF('1. Order'!AS297=\"\",\"\",'1. Order'!AS297)","v":""},{"$f":"IF('1. Order'!AF297=\"\",\"\",'1. Order'!AF297)","v":""}]
[{"$f":"IF('1. Order'!B298=\"\",\"\",'1. Order'!B298)","v":""},{"$f":"IF('1. Order'!I298=\"\",\"\",'1. Order'!I298)","v":""},{"$f":"IF('1. Order'!J298=\"\",\"\",'1. Order'!J298)","v":""},{"$f":"IF('1. Order'!K298=\"\",\"\",'1. Order'!K298)","v":""},{"$f":"IF('1. Order'!M298=\"\",\"\",'1. Order'!M298)","v":""},null,null,{"$f":"IF('1. Order'!AS298=\"\",\"\",'1. Order'!AS298)","v":""},{"$f":"IF('1. Order'!AF298=\"\",\"\",'1. Order'!AF298)","v":""}]
[{"$f":"IF('1. Order'!B299=\"\",\"\",'1. Order'!B299)","v":""},{"$f":"IF('1. Order'!I299=\"\",\"\",'1. Order'!I299)","v":""},{"$f":"IF('1. Order'!J299=\"\",\"\",'1. Order'!J299)","v":""},{"$f":"IF('1. Order'!K299=\"\",\"\",'1. Order'!K299)","v":""},{"$f":"IF('1. Order'!M299=\"\",\"\",'1. Order'!M299)","v":""},null,null,{"$f":"IF('1. Order'!AS299=\"\",\"\",'1. Order'!AS299)","v":""},{"$f":"IF('1. Order'!AF299=\"\",\"\",'1. Order'!AF299)","v":""}]
[{"$f":"IF('1. Order'!B300=\"\",\"\",'1. Order'!B300)","v":""},{"$f":"IF('1. Order'!I300=\"\",\"\",'1. Order'!I300)","v":""},{"$f":"IF('1. Order'!J300=\"\",\"\",'1. Order'!J300)","v":""},{"$f":"IF('1. Order'!K300=\"\",\"\",'1. Order'!K300)","v":""},{"$f":"IF('1. Order'!M300=\"\",\"\",'1. Order'!M300)","v":""},null,null,{"$f":"IF('1. Order'!AS300=\"\",\"\",'1. Order'!AS300)","v":""},{"$f":"IF('1. Order'!AF300=\"\",\"\",'1. Order'!AF300)","v":""}]
[{"$f":"IF('1. Order'!B301=\"\",\"\",'1. Order'!B301)","v":""},{"$f":"IF('1. Order'!I301=\"\",\"\",'1. Order'!I301)","v":""},{"$f":"IF('1. Order'!J301=\"\",\"\",'1. Order'!J301)","v":""},{"$f":"IF('1. Order'!K301=\"\",\"\",'1. Order'!K301)","v":""},{"$f":"IF('1. Order'!M301=\"\",\"\",'1. Order'!M301)","v":""},null,null,{"$f":"IF('1. Order'!AS301=\"\",\"\",'1. Order'!AS301)","v":""},{"$f":"IF('1. Order'!AF301=\"\",\"\",'1. Order'!AF301)","v":""}]
[{"$f":"IF('1. Order'!B302=\"\",\"\",'1. Order'!B302)","v":""},{"$f":"IF('1. Order'!I302=\"\",\"\",'1. Order'!I302)","v":""},{"$f":"IF('1. Order'!J302=\"\",\"\",'1. Order'!J302)","v":""},{"$f":"IF('1. Order'!K302=\"\",\"\",'1. Order'!K302)","v":""},{"$f":"IF('1. Order'!M302=\"\",\"\",'1. Order'!M302)","v":""},null,null,{"$f":"IF('1. Order'!AS302=\"\",\"\",'1. Order'!AS302)","v":""},{"$f":"IF('1. Order'!AF302=\"\",\"\",'1. Order'!AF302)","v":""}]
[{"$f":"IF('1. Order'!B303=\"\",\"\",'1. Order'!B303)","v":""},{"$f":"IF('1. Order'!I303=\"\",\"\",'1. Order'!I303)","v":""},{"$f":"IF('1. Order'!J303=\"\",\"\",'1. Order'!J303)","v":""},{"$f":"IF('1. Order'!K303=\"\",\"\",'1. Order'!K303)","v":""},{"$f":"IF('1. Order'!M303=\"\",\"\",'1. Order'!M303)","v":""},null,null,{"$f":"IF('1. Order'!AS303=\"\",\"\",'1. Order'!AS303)","v":""},{"$f":"IF('1. Order'!AF303=\"\",\"\",'1. Order'!AF303)","v":""}]
[{"$f":"IF('1. Order'!B304=\"\",\"\",'1. Order'!B304)","v":""},{"$f":"IF('1. Order'!I304=\"\",\"\",'1. Order'!I304)","v":""},{"$f":"IF('1. Order'!J304=\"\",\"\",'1. Order'!J304)","v":""},{"$f":"IF('1. Order'!K304=\"\",\"\",'1. Order'!K304)","v":""},{"$f":"IF('1. Order'!M304=\"\",\"\",'1. Order'!M304)","v":""},null,null,{"$f":"IF('1. Order'!AS304=\"\",\"\",'1. Order'!AS304)","v":""},{"$f":"IF('1. Order'!AF304=\"\",\"\",'1. Order'!AF304)","v":""}]
[{"$f":"IF('1. Order'!B305=\"\",\"\",'1. Order'!B305)","v":""},{"$f":"IF('1. Order'!I305=\"\",\"\",'1. Order'!I305)","v":""},{"$f":"IF('1. Order'!J305=\"\",\"\",'1. Order'!J305)","v":""},{"$f":"IF('1. Order'!K305=\"\",\"\",'1. Order'!K305)","v":""},{"$f":"IF('1. Order'!M305=\"\",\"\",'1. Order'!M305)","v":""},null,null,{"$f":"IF('1. Order'!AS305=\"\",\"\",'1. Order'!AS305)","v":""},{"$f":"IF('1. Order'!AF305=\"\",\"\",'1. Order'!AF305)","v":""}]
[{"$f":"IF('1. Order'!B306=\"\",\"\",'1. Order'!B306)","v":""},{"$f":"IF('1. Order'!I306=\"\",\"\",'1. Order'!I306)","v":""},{"$f":"IF('1. Order'!J306=\"\",\"\",'1. Order'!J306)","v":""},{"$f":"IF('1. Order'!K306=\"\",\"\",'1. Order'!K306)","v":""},{"$f":"IF('1. Order'!M306=\"\",\"\",'1. Order'!M306)","v":""},null,null,{"$f":"IF('1. Order'!AS306=\"\",\"\",'1. Order'!AS306)","v":""},{"$f":"IF('1. Order'!AF306=\"\",\"\",'1. Order'!AF306)","v":""}]
[{"$f":"IF('1. Order'!B307=\"\",\"\",'1. Order'!B307)","v":""},{"$f":"IF('1. Order'!I307=\"\",\"\",'1. Order'!I307)","v":""},{"$f":"IF('1. Order'!J307=\"\",\"\",'1. Order'!J307)","v":""},{"$f":"IF('1. Order'!K307=\"\",\"\",'1. Order'!K307)","v":""},{"$f":"IF('1. Order'!M307=\"\",\"\",'1. Order'!M307)","v":""},null,null,{"$f":"IF('1. Order'!AS307=\"\",\"\",'1. Order'!AS307)","v":""},{"$f":"IF('1. Order'!AF307=\"\",\"\",'1. Order'!AF307)","v":""}]
[{"$f":"IF('1. Order'!B308=\"\",\"\",'1. Order'!B308)","v":""},{"$f":"IF('1. Order'!I308=\"\",\"\",'1. Order'!I308)","v":""},{"$f":"IF('1. Order'!J308=\"\",\"\",'1. Order'!J308)","v":""},{"$f":"IF('1. Order'!K308=\"\",\"\",'1. Order'!K308)","v":""},{"$f":"IF('1. Order'!M308=\"\",\"\",'1. Order'!M308)","v":""},null,null,{"$f":"IF('1. Order'!AS308=\"\",\"\",'1. Order'!AS308)","v":""},{"$f":"IF('1. Order'!AF308=\"\",\"\",'1. Order'!AF308)","v":""}]
[{"$f":"IF('1. Order'!B309=\"\",\"\",'1. Order'!B309)","v":""},{"$f":"IF('1. Order'!I309=\"\",\"\",'1. Order'!I309)","v":""},{"$f":"IF('1. Order'!J309=\"\",\"\",'1. Order'!J309)","v":""},{"$f":"IF('1. Order'!K309=\"\",\"\",'1. Order'!K309)","v":""},{"$f":"IF('1. Order'!M309=\"\",\"\",'1. Order'!M309)","v":""},null,null,{"$f":"IF('1. Order'!AS309=\"\",\"\",'1. Order'!AS309)","v":""},{"$f":"IF('1. Order'!AF309=\"\",\"\",'1. Order'!AF309)","v":""}]
[{"$f":"IF('1. Order'!B310=\"\",\"\",'1. Order'!B310)","v":""},{"$f":"IF('1. Order'!I310=\"\",\"\",'1. Order'!I310)","v":""},{"$f":"IF('1. Order'!J310=\"\",\"\",'1. Order'!J310)","v":""},{"$f":"IF('1. Order'!K310=\"\",\"\",'1. Order'!K310)","v":""},{"$f":"IF('1. Order'!M310=\"\",\"\",'1. Order'!M310)","v":""},null,null,{"$f":"IF('1. Order'!AS310=\"\",\"\",'1. Order'!AS310)","v":""},{"$f":"IF('1. Order'!AF310=\"\",\"\",'1. Order'!AF310)","v":""}]
[{"$f":"IF('1. Order'!B311=\"\",\"\",'1. Order'!B311)","v":""},{"$f":"IF('1. Order'!I311=\"\",\"\",'1. Order'!I311)","v":""},{"$f":"IF('1. Order'!J311=\"\",\"\",'1. Order'!J311)","v":""},{"$f":"IF('1. Order'!K311=\"\",\"\",'1. Order'!K311)","v":""},{"$f":"IF('1. Order'!M311=\"\",\"\",'1. Order'!M311)","v":""},null,null,{"$f":"IF('1. Order'!AS311=\"\",\"\",'1. Order'!AS311)","v":""},{"$f":"IF('1. Order'!AF311=\"\",\"\",'1. Order'!AF311)","v":""}]
[{"$f":"IF('1. Order'!B312=\"\",\"\",'1. Order'!B312)","v":""},{"$f":"IF('1. Order'!I312=\"\",\"\",'1. Order'!I312)","v":""},{"$f":"IF('1. Order'!J312=\"\",\"\",'1. Order'!J312)","v":""},{"$f":"IF('1. Order'!K312=\"\",\"\",'1. Order'!K312)","v":""},{"$f":"IF('1. Order'!M312=\"\",\"\",'1. Order'!M312)","v":""},null,null,{"$f":"IF('1. Order'!AS312=\"\",\"\",'1. Order'!AS312)","v":""},{"$f":"IF('1. Order'!AF312=\"\",\"\",'1. Order'!AF312)","v":""}]
[{"$f":"IF('1. Order'!B313=\"\",\"\",'1. Order'!B313)","v":""},{"$f":"IF('1. Order'!I313=\"\",\"\",'1. Order'!I313)","v":""},{"$f":"IF('1. Order'!J313=\"\",\"\",'1. Order'!J313)","v":""},{"$f":"IF('1. Order'!K313=\"\",\"\",'1. Order'!K313)","v":""},{"$f":"IF('1. Order'!M313=\"\",\"\",'1. Order'!M313)","v":""},null,null,{"$f":"IF('1. Order'!AS313=\"\",\"\",'1. Order'!AS313)","v":""},{"$f":"IF('1. Order'!AF313=\"\",\"\",'1. Order'!AF313)","v":""}]
[{"$f":"IF('1. Order'!B314=\"\",\"\",'1. Order'!B314)","v":""},{"$f":"IF('1. Order'!I314=\"\",\"\",'1. Order'!I314)","v":""},{"$f":"IF('1. Order'!J314=\"\",\"\",'1. Order'!J314)","v":""},{"$f":"IF('1. Order'!K314=\"\",\"\",'1. Order'!K314)","v":""},{"$f":"IF('1. Order'!M314=\"\",\"\",'1. Order'!M314)","v":""},null,null,{"$f":"IF('1. Order'!AS314=\"\",\"\",'1. Order'!AS314)","v":""},{"$f":"IF('1. Order'!AF314=\"\",\"\",'1. Order'!AF314)","v":""}]
[{"$f":"IF('1. Order'!B315=\"\",\"\",'1. Order'!B315)","v":""},{"$f":"IF('1. Order'!I315=\"\",\"\",'1. Order'!I315)","v":""},{"$f":"IF('1. Order'!J315=\"\",\"\",'1. Order'!J315)","v":""},{"$f":"IF('1. Order'!K315=\"\",\"\",'1. Order'!K315)","v":""},{"$f":"IF('1. Order'!M315=\"\",\"\",'1. Order'!M315)","v":""},null,null,{"$f":"IF('1. Order'!AS315=\"\",\"\",'1. Order'!AS315)","v":""},{"$f":"IF('1. Order'!AF315=\"\",\"\",'1. Order'!AF315)","v":""}]
[{"$f":"IF('1. Order'!B316=\"\",\"\",'1. Order'!B316)","v":""},{"$f":"IF('1. Order'!I316=\"\",\"\",'1. Order'!I316)","v":""},{"$f":"IF('1. Order'!J316=\"\",\"\",'1. Order'!J316)","v":""},{"$f":"IF('1. Order'!K316=\"\",\"\",'1. Order'!K316)","v":""},{"$f":"IF('1. Order'!M316=\"\",\"\",'1. Order'!M316)","v":""},null,null,{"$f":"IF('1. Order'!AS316=\"\",\"\",'1. Order'!AS316)","v":""},{"$f":"IF('1. Order'!AF316=\"\",\"\",'1. Order'!AF316)","v":""}]
[{"$f":"IF('1. Order'!B317=\"\",\"\",'1. Order'!B317)","v":""},{"$f":"IF('1. Order'!I317=\"\",\"\",'1. Order'!I317)","v":""},{"$f":"IF('1. Order'!J317=\"\",\"\",'1. Order'!J317)","v":""},{"$f":"IF('1. Order'!K317=\"\",\"\",'1. Order'!K317)","v":""},{"$f":"IF('1. Order'!M317=\"\",\"\",'1. Order'!M317)","v":""},null,null,{"$f":"IF('1. Order'!AS317=\"\",\"\",'1. Order'!AS317)","v":""},{"$f":"IF('1. Order'!AF317=\"\",\"\",'1. Order'!AF317)","v":""}]
[{"$f":"IF('1. Order'!B318=\"\",\"\",'1. Order'!B318)","v":""},{"$f":"IF('1. Order'!I318=\"\",\"\",'1. Order'!I318)","v":""},{"$f":"IF('1. Order'!J318=\"\",\"\",'1. Order'!J318)","v":""},{"$f":"IF('1. Order'!K318=\"\",\"\",'1. Order'!K318)","v":""},{"$f":"IF('1. Order'!M318=\"\",\"\",'1. Order'!M318)","v":""},null,null,{"$f":"IF('1. Order'!AS318=\"\",\"\",'1. Order'!AS318)","v":""},{"$f":"IF('1. Order'!AF318=\"\",\"\",'1. Order'!AF318)","v":""}]
[{"$f":"IF('1. Order'!B319=\"\",\"\",'1. Order'!B319)","v":""},{"$f":"IF('1. Order'!I319=\"\",\"\",'1. Order'!I319)","v":""},{"$f":"IF('1. Order'!J319=\"\",\"\",'1. Order'!J319)","v":""},{"$f":"IF('1. Order'!K319=\"\",\"\",'1. Order'!K319)","v":""},{"$f":"IF('1. Order'!M319=\"\",\"\",'1. Order'!M319)","v":""},null,null,{"$f":"IF('1. Order'!AS319=\"\",\"\",'1. Order'!AS319)","v":""},{"$f":"IF('1. Order'!AF319=\"\",\"\",'1. Order'!AF319)","v":""}]
[{"$f":"IF('1. Order'!B320=\"\",\"\",'1. Order'!B320)","v":""},{"$f":"IF('1. Order'!I320=\"\",\"\",'1. Order'!I320)","v":""},{"$f":"IF('1. Order'!J320=\"\",\"\",'1. Order'!J320)","v":""},{"$f":"IF('1. Order'!K320=\"\",\"\",'1. Order'!K320)","v":""},{"$f":"IF('1. Order'!M320=\"\",\"\",'1. Order'!M320)","v":""},null,null,{"$f":"IF('1. Order'!AS320=\"\",\"\",'1. Order'!AS320)","v":""},{"$f":"IF('1. Order'!AF320=\"\",\"\",'1. Order'!AF320)","v":""}]
[{"$f":"IF('1. Order'!B321=\"\",\"\",'1. Order'!B321)","v":""},{"$f":"IF('1. Order'!I321=\"\",\"\",'1. Order'!I321)","v":""},{"$f":"IF('1. Order'!J321=\"\",\"\",'1. Order'!J321)","v":""},{"$f":"IF('1. Order'!K321=\"\",\"\",'1. Order'!K321)","v":""},{"$f":"IF('1. Order'!M321=\"\",\"\",'1. Order'!M321)","v":""},null,null,{"$f":"IF('1. Order'!AS321=\"\",\"\",'1. Order'!AS321)","v":""},{"$f":"IF('1. Order'!AF321=\"\",\"\",'1. Order'!AF321)","v":""}]
[{"$f":"IF('1. Order'!B322=\"\",\"\",'1. Order'!B322)","v":""},{"$f":"IF('1. Order'!I322=\"\",\"\",'1. Order'!I322)","v":""},{"$f":"IF('1. Order'!J322=\"\",\"\",'1. Order'!J322)","v":""},{"$f":"IF('1. Order'!K322=\"\",\"\",'1. Order'!K322)","v":""},{"$f":"IF('1. Order'!M322=\"\",\"\",'1. Order'!M322)","v":""},null,null,{"$f":"IF('1. Order'!AS322=\"\",\"\",'1. Order'!AS322)","v":""},{"$f":"IF('1. Order'!AF322=\"\",\"\",'1. Order'!AF322)","v":""}]
[{"$f":"IF('1. Order'!B323=\"\",\"\",'1. Order'!B323)","v":""},{"$f":"IF('1. Order'!I323=\"\",\"\",'1. Order'!I323)","v":""},{"$f":"IF('1. Order'!J323=\"\",\"\",'1. Order'!J323)","v":""},{"$f":"IF('1. Order'!K323=\"\",\"\",'1. Order'!K323)","v":""},{"$f":"IF('1. Order'!M323=\"\",\"\",'1. Order'!M323)","v":""},null,null,{"$f":"IF('1. Order'!AS323=\"\",\"\",'1. Order'!AS323)","v":""},{"$f":"IF('1. Order'!AF323=\"\",\"\",'1. Order'!AF323)","v":""}]
[{"$f":"IF('1. Order'!B324=\"\",\"\",'1. Order'!B324)","v":""},{"$f":"IF('1. Order'!I324=\"\",\"\",'1. Order'!I324)","v":""},{"$f":"IF('1. Order'!J324=\"\",\"\",'1. Order'!J324)","v":""},{"$f":"IF('1. Order'!K324=\"\",\"\",'1. Order'!K324)","v":""},{"$f":"IF('1. Order'!M324=\"\",\"\",'1. Order'!M324)","v":""},null,null,{"$f":"IF('1. Order'!AS324=\"\",\"\",'1. Order'!AS324)","v":""},{"$f":"IF('1. Order'!AF324=\"\",\"\",'1. Order'!AF324)","v":""}]
[{"$f":"IF('1. Order'!B325=\"\",\"\",'1. Order'!B325)","v":""},{"$f":"IF('1. Order'!I325=\"\",\"\",'1. Order'!I325)","v":""},{"$f":"IF('1. Order'!J325=\"\",\"\",'1. Order'!J325)","v":""},{"$f":"IF('1. Order'!K325=\"\",\"\",'1. Order'!K325)","v":""},{"$f":"IF('1. Order'!M325=\"\",\"\",'1. Order'!M325)","v":""},null,null,{"$f":"IF('1. Order'!AS325=\"\",\"\",'1. Order'!AS325)","v":""},{"$f":"IF('1. Order'!AF325=\"\",\"\",'1. Order'!AF325)","v":""}]
[{"$f":"IF('1. Order'!B326=\"\",\"\",'1. Order'!B326)","v":""},{"$f":"IF('1. Order'!I326=\"\",\"\",'1. Order'!I326)","v":""},{"$f":"IF('1. Order'!J326=\"\",\"\",'1. Order'!J326)","v":""},{"$f":"IF('1. Order'!K326=\"\",\"\",'1. Order'!K326)","v":""},{"$f":"IF('1. Order'!M326=\"\",\"\",'1. Order'!M326)","v":""},null,null,{"$f":"IF('1. Order'!AS326=\"\",\"\",'1. Order'!AS326)","v":""},{"$f":"IF('1. Order'!AF326=\"\",\"\",'1. Order'!AF326)","v":""}]
[{"$f":"IF('1. Order'!B327=\"\",\"\",'1. Order'!B327)","v":""},{"$f":"IF('1. Order'!I327=\"\",\"\",'1. Order'!I327)","v":""},{"$f":"IF('1. Order'!J327=\"\",\"\",'1. Order'!J327)","v":""},{"$f":"IF('1. Order'!K327=\"\",\"\",'1. Order'!K327)","v":""},{"$f":"IF('1. Order'!M327=\"\",\"\",'1. Order'!M327)","v":""},null,null,{"$f":"IF('1. Order'!AS327=\"\",\"\",'1. Order'!AS327)","v":""},{"$f":"IF('1. Order'!AF327=\"\",\"\",'1. Order'!AF327)","v":""}]
[{"$f":"IF('1. Order'!B328=\"\",\"\",'1. Order'!B328)","v":""},{"$f":"IF('1. Order'!I328=\"\",\"\",'1. Order'!I328)","v":""},{"$f":"IF('1. Order'!J328=\"\",\"\",'1. Order'!J328)","v":""},{"$f":"IF('1. Order'!K328=\"\",\"\",'1. Order'!K328)","v":""},{"$f":"IF('1. Order'!M328=\"\",\"\",'1. Order'!M328)","v":""},null,null,{"$f":"IF('1. Order'!AS328=\"\",\"\",'1. Order'!AS328)","v":""},{"$f":"IF('1. Order'!AF328=\"\",\"\",'1. Order'!AF328)","v":""}]
[{"$f":"IF('1. Order'!B329=\"\",\"\",'1. Order'!B329)","v":""},{"$f":"IF('1. Order'!I329=\"\",\"\",'1. Order'!I329)","v":""},{"$f":"IF('1. Order'!J329=\"\",\"\",'1. Order'!J329)","v":""},{"$f":"IF('1. Order'!K329=\"\",\"\",'1. Order'!K329)","v":""},{"$f":"IF('1. Order'!M329=\"\",\"\",'1. Order'!M329)","v":""},null,null,{"$f":"IF('1. Order'!AS329=\"\",\"\",'1. Order'!AS329)","v":""},{"$f":"IF('1. Order'!AF329=\"\",\"\",'1. Order'!AF329)","v":""}]
[{"$f":"IF('1. Order'!B330=\"\",\"\",'1. Order'!B330)","v":""},{"$f":"IF('1. Order'!I330=\"\",\"\",'1. Order'!I330)","v":""},{"$f":"IF('1. Order'!J330=\"\",\"\",'1. Order'!J330)","v":""},{"$f":"IF('1. Order'!K330=\"\",\"\",'1. Order'!K330)","v":""},{"$f":"IF('1. Order'!M330=\"\",\"\",'1. Order'!M330)","v":""},null,null,{"$f":"IF('1. Order'!AS330=\"\",\"\",'1. Order'!AS330)","v":""},{"$f":"IF('1. Order'!AF330=\"\",\"\",'1. Order'!AF330)","v":""}]
[{"$f":"IF('1. Order'!B331=\"\",\"\",'1. Order'!B331)","v":""},{"$f":"IF('1. Order'!I331=\"\",\"\",'1. Order'!I331)","v":""},{"$f":"IF('1. Order'!J331=\"\",\"\",'1. Order'!J331)","v":""},{"$f":"IF('1. Order'!K331=\"\",\"\",'1. Order'!K331)","v":""},{"$f":"IF('1. Order'!M331=\"\",\"\",'1. Order'!M331)","v":""},null,null,{"$f":"IF('1. Order'!AS331=\"\",\"\",'1. Order'!AS331)","v":""},{"$f":"IF('1. Order'!AF331=\"\",\"\",'1. Order'!AF331)","v":""}]
[{"$f":"IF('1. Order'!B332=\"\",\"\",'1. Order'!B332)","v":""},{"$f":"IF('1. Order'!I332=\"\",\"\",'1. Order'!I332)","v":""},{"$f":"IF('1. Order'!J332=\"\",\"\",'1. Order'!J332)","v":""},{"$f":"IF('1. Order'!K332=\"\",\"\",'1. Order'!K332)","v":""},{"$f":"IF('1. Order'!M332=\"\",\"\",'1. Order'!M332)","v":""},null,null,{"$f":"IF('1. Order'!AS332=\"\",\"\",'1. Order'!AS332)","v":""},{"$f":"IF('1. Order'!AF332=\"\",\"\",'1. Order'!AF332)","v":""}]
[{"$f":"IF('1. Order'!B333=\"\",\"\",'1. Order'!B333)","v":""},{"$f":"IF('1. Order'!I333=\"\",\"\",'1. Order'!I333)","v":""},{"$f":"IF('1. Order'!J333=\"\",\"\",'1. Order'!J333)","v":""},{"$f":"IF('1. Order'!K333=\"\",\"\",'1. Order'!K333)","v":""},{"$f":"IF('1. Order'!M333=\"\",\"\",'1. Order'!M333)","v":""},null,null,{"$f":"IF('1. Order'!AS333=\"\",\"\",'1. Order'!AS333)","v":""},{"$f":"IF('1. Order'!AF333=\"\",\"\",'1. Order'!AF333)","v":""}]
[{"$f":"IF('1. Order'!B334=\"\",\"\",'1. Order'!B334)","v":""},{"$f":"IF('1. Order'!I334=\"\",\"\",'1. Order'!I334)","v":""},{"$f":"IF('1. Order'!J334=\"\",\"\",'1. Order'!J334)","v":""},{"$f":"IF('1. Order'!K334=\"\",\"\",'1. Order'!K334)","v":""},{"$f":"IF('1. Order'!M334=\"\",\"\",'1. Order'!M334)","v":""},null,null,{"$f":"IF('1. Order'!AS334=\"\",\"\",'1. Order'!AS334)","v":""},{"$f":"IF('1. Order'!AF334=\"\",\"\",'1. Order'!AF334)","v":""}]
[{"$f":"IF('1. Order'!B335=\"\",\"\",'1. Order'!B335)","v":""},{"$f":"IF('1. Order'!I335=\"\",\"\",'1. Order'!I335)","v":""},{"$f":"IF('1. Order'!J335=\"\",\"\",'1. Order'!J335)","v":""},{"$f":"IF('1. Order'!K335=\"\",\"\",'1. Order'!K335)","v":""},{"$f":"IF('1. Order'!M335=\"\",\"\",'1. Order'!M335)","v":""},null,null,{"$f":"IF('1. Order'!AS335=\"\",\"\",'1. Order'!AS335)","v":""},{"$f":"IF('1. Order'!AF335=\"\",\"\",'1. Order'!AF335)","v":""}]
[{"$f":"IF('1. Order'!B336=\"\",\"\",'1. Order'!B336)","v":""},{"$f":"IF('1. Order'!I336=\"\",\"\",'1. Order'!I336)","v":""},{"$f":"IF('1. Order'!J336=\"\",\"\",'1. Order'!J336)","v":""},{"$f":"IF('1. Order'!K336=\"\",\"\",'1. Order'!K336)","v":""},{"$f":"IF('1. Order'!M336=\"\",\"\",'1. Order'!M336)","v":""},null,null,{"$f":"IF('1. Order'!AS336=\"\",\"\",'1. Order'!AS336)","v":""},{"$f":"IF('1. Order'!AF336=\"\",\"\",'1. Order'!AF336)","v":""}]
[{"$f":"IF('1. Order'!B337=\"\",\"\",'1. Order'!B337)","v":""},{"$f":"IF('1. Order'!I337=\"\",\"\",'1. Order'!I337)","v":""},{"$f":"IF('1. Order'!J337=\"\",\"\",'1. Order'!J337)","v":""},{"$f":"IF('1. Order'!K337=\"\",\"\",'1. Order'!K337)","v":""},{"$f":"IF('1. Order'!M337=\"\",\"\",'1. Order'!M337)","v":""},null,null,{"$f":"IF('1. Order'!AS337=\"\",\"\",'1. Order'!AS337)","v":""},{"$f":"IF('1. Order'!AF337=\"\",\"\",'1. Order'!AF337)","v":""}]
[{"$f":"IF('1. Order'!B338=\"\",\"\",'1. Order'!B338)","v":""},{"$f":"IF('1. Order'!I338=\"\",\"\",'1. Order'!I338)","v":""},{"$f":"IF('1. Order'!J338=\"\",\"\",'1. Order'!J338)","v":""},{"$f":"IF('1. Order'!K338=\"\",\"\",'1. Order'!K338)","v":""},{"$f":"IF('1. Order'!M338=\"\",\"\",'1. Order'!M338)","v":""},null,null,{"$f":"IF('1. Order'!AS338=\"\",\"\",'1. Order'!AS338)","v":""},{"$f":"IF('1. Order'!AF338=\"\",\"\",'1. Order'!AF338)","v":""}]
[{"$f":"IF('1. Order'!B339=\"\",\"\",'1. Order'!B339)","v":""},{"$f":"IF('1. Order'!I339=\"\",\"\",'1. Order'!I339)","v":""},{"$f":"IF('1. Order'!J339=\"\",\"\",'1. Order'!J339)","v":""},{"$f":"IF('1. Order'!K339=\"\",\"\",'1. Order'!K339)","v":""},{"$f":"IF('1. Order'!M339=\"\",\"\",'1. Order'!M339)","v":""},null,null,{"$f":"IF('1. Order'!AS339=\"\",\"\",'1. Order'!AS339)","v":""},{"$f":"IF('1. Order'!AF339=\"\",\"\",'1. Order'!AF339)","v":""}]
[{"$f":"IF('1. Order'!B340=\"\",\"\",'1. Order'!B340)","v":""},{"$f":"IF('1. Order'!I340=\"\",\"\",'1. Order'!I340)","v":""},{"$f":"IF('1. Order'!J340=\"\",\"\",'1. Order'!J340)","v":""},{"$f":"IF('1. Order'!K340=\"\",\"\",'1. Order'!K340)","v":""},{"$f":"IF('1. Order'!M340=\"\",\"\",'1. Order'!M340)","v":""},null,null,{"$f":"IF('1. Order'!AS340=\"\",\"\",'1. Order'!AS340)","v":""},{"$f":"IF('1. Order'!AF340=\"\",\"\",'1. Order'!AF340)","v":""}]
[{"$f":"IF('1. Order'!B341=\"\",\"\",'1. Order'!B341)","v":""},{"$f":"IF('1. Order'!I341=\"\",\"\",'1. Order'!I341)","v":""},{"$f":"IF('1. Order'!J341=\"\",\"\",'1. Order'!J341)","v":""},{"$f":"IF('1. Order'!K341=\"\",\"\",'1. Order'!K341)","v":""},{"$f":"IF('1. Order'!M341=\"\",\"\",'1. Order'!M341)","v":""},null,null,{"$f":"IF('1. Order'!AS341=\"\",\"\",'1. Order'!AS341)","v":""},{"$f":"IF('1. Order'!AF341=\"\",\"\",'1. Order'!AF341)","v":""}]
[{"$f":"IF('1. Order'!B342=\"\",\"\",'1. Order'!B342)","v":""},{"$f":"IF('1. Order'!I342=\"\",\"\",'1. Order'!I342)","v":""},{"$f":"IF('1. Order'!J342=\"\",\"\",'1. Order'!J342)","v":""},{"$f":"IF('1. Order'!K342=\"\",\"\",'1. Order'!K342)","v":""},{"$f":"IF('1. Order'!M342=\"\",\"\",'1. Order'!M342)","v":""},null,null,{"$f":"IF('1. Order'!AS342=\"\",\"\",'1. Order'!AS342)","v":""},{"$f":"IF('1. Order'!AF342=\"\",\"\",'1. Order'!AF342)","v":""}]
[{"$f":"IF('1. Order'!B343=\"\",\"\",'1. Order'!B343)","v":""},{"$f":"IF('1. Order'!I343=\"\",\"\",'1. Order'!I343)","v":""},{"$f":"IF('1. Order'!J343=\"\",\"\",'1. Order'!J343)","v":""},{"$f":"IF('1. Order'!K343=\"\",\"\",'1. Order'!K343)","v":""},{"$f":"IF('1. Order'!M343=\"\",\"\",'1. Order'!M343)","v":""},null,null,{"$f":"IF('1. Order'!AS343=\"\",\"\",'1. Order'!AS343)","v":""},{"$f":"IF('1. Order'!AF343=\"\",\"\",'1. Order'!AF343)","v":""}]
[{"$f":"IF('1. Order'!B344=\"\",\"\",'1. Order'!B344)","v":""},{"$f":"IF('1. Order'!I344=\"\",\"\",'1. Order'!I344)","v":""},{"$f":"IF('1. Order'!J344=\"\",\"\",'1. Order'!J344)","v":""},{"$f":"IF('1. Order'!K344=\"\",\"\",'1. Order'!K344)","v":""},{"$f":"IF('1. Order'!M344=\"\",\"\",'1. Order'!M344)","v":""},null,null,{"$f":"IF('1. Order'!AS344=\"\",\"\",'1. Order'!AS344)","v":""},{"$f":"IF('1. Order'!AF344=\"\",\"\",'1. Order'!AF344)","v":""}]
[{"$f":"IF('1. Order'!B345=\"\",\"\",'1. Order'!B345)","v":""},{"$f":"IF('1. Order'!I345=\"\",\"\",'1. Order'!I345)","v":""},{"$f":"IF('1. Order'!J345=\"\",\"\",'1. Order'!J345)","v":""},{"$f":"IF('1. Order'!K345=\"\",\"\",'1. Order'!K345)","v":""},{"$f":"IF('1. Order'!M345=\"\",\"\",'1. Order'!M345)","v":""},null,null,{"$f":"IF('1. Order'!AS345=\"\",\"\",'1. Order'!AS345)","v":""},{"$f":"IF('1. Order'!AF345=\"\",\"\",'1. Order'!AF345)","v":""}]
[{"$f":"IF('1. Order'!B346=\"\",\"\",'1. Order'!B346)","v":""},{"$f":"IF('1. Order'!I346=\"\",\"\",'1. Order'!I346)","v":""},{"$f":"IF('1. Order'!J346=\"\",\"\",'1. Order'!J346)","v":""},{"$f":"IF('1. Order'!K346=\"\",\"\",'1. Order'!K346)","v":""},{"$f":"IF('1. Order'!M346=\"\",\"\",'1. Order'!M346)","v":""},null,null,{"$f":"IF('1. Order'!AS346=\"\",\"\",'1. Order'!AS346)","v":""},{"$f":"IF('1. Order'!AF346=\"\",\"\",'1. Order'!AF346)","v":""}]
[{"$f":"IF('1. Order'!B347=\"\",\"\",'1. Order'!B347)","v":""},{"$f":"IF('1. Order'!I347=\"\",\"\",'1. Order'!I347)","v":""},{"$f":"IF('1. Order'!J347=\"\",\"\",'1. Order'!J347)","v":""},{"$f":"IF('1. Order'!K347=\"\",\"\",'1. Order'!K347)","v":""},{"$f":"IF('1. Order'!M347=\"\",\"\",'1. Order'!M347)","v":""},null,null,{"$f":"IF('1. Order'!AS347=\"\",\"\",'1. Order'!AS347)","v":""},{"$f":"IF('1. Order'!AF347=\"\",\"\",'1. Order'!AF347)","v":""}]
[{"$f":"IF('1. Order'!B348=\"\",\"\",'1. Order'!B348)","v":""},{"$f":"IF('1. Order'!I348=\"\",\"\",'1. Order'!I348)","v":""},{"$f":"IF('1. Order'!J348=\"\",\"\",'1. Order'!J348)","v":""},{"$f":"IF('1. Order'!K348=\"\",\"\",'1. Order'!K348)","v":""},{"$f":"IF('1. Order'!M348=\"\",\"\",'1. Order'!M348)","v":""},null,null,{"$f":"IF('1. Order'!AS348=\"\",\"\",'1. Order'!AS348)","v":""},{"$f":"IF('1. Order'!AF348=\"\",\"\",'1. Order'!AF348)","v":""}]
[{"$f":"IF('1. Order'!B349=\"\",\"\",'1. Order'!B349)","v":""},{"$f":"IF('1. Order'!I349=\"\",\"\",'1. Order'!I349)","v":""},{"$f":"IF('1. Order'!J349=\"\",\"\",'1. Order'!J349)","v":""},{"$f":"IF('1. Order'!K349=\"\",\"\",'1. Order'!K349)","v":""},{"$f":"IF('1. Order'!M349=\"\",\"\",'1. Order'!M349)","v":""},null,null,{"$f":"IF('1. Order'!AS349=\"\",\"\",'1. Order'!AS349)","v":""},{"$f":"IF('1. Order'!AF349=\"\",\"\",'1. Order'!AF349)","v":""}]
[{"$f":"IF('1. Order'!B350=\"\",\"\",'1. Order'!B350)","v":""},{"$f":"IF('1. Order'!I350=\"\",\"\",'1. Order'!I350)","v":""},{"$f":"IF('1. Order'!J350=\"\",\"\",'1. Order'!J350)","v":""},{"$f":"IF('1. Order'!K350=\"\",\"\",'1. Order'!K350)","v":""},{"$f":"IF('1. Order'!M350=\"\",\"\",'1. Order'!M350)","v":""},null,null,{"$f":"IF('1. Order'!AS350=\"\",\"\",'1. Order'!AS350)","v":""},{"$f":"IF('1. Order'!AF350=\"\",\"\",'1. Order'!AF350)","v":""}]
[{"$f":"IF('1. Order'!B351=\"\",\"\",'1. Order'!B351)","v":""},{"$f":"IF('1. Order'!I351=\"\",\"\",'1. Order'!I351)","v":""},{"$f":"IF('1. Order'!J351=\"\",\"\",'1. Order'!J351)","v":""},{"$f":"IF('1. Order'!K351=\"\",\"\",'1. Order'!K351)","v":""},{"$f":"IF('1. Order'!M351=\"\",\"\",'1. Order'!M351)","v":""},null,null,{"$f":"IF('1. Order'!AS351=\"\",\"\",'1. Order'!AS351)","v":""},{"$f":"IF('1. Order'!AF351=\"\",\"\",'1. Order'!AF351)","v":""}]
[{"$f":"IF('1. Order'!B352=\"\",\"\",'1. Order'!B352)","v":""},{"$f":"IF('1. Order'!I352=\"\",\"\",'1. Order'!I352)","v":""},{"$f":"IF('1. Order'!J352=\"\",\"\",'1. Order'!J352)","v":""},{"$f":"IF('1. Order'!K352=\"\",\"\",'1. Order'!K352)","v":""},{"$f":"IF('1. Order'!M352=\"\",\"\",'1. Order'!M352)","v":""},null,null,{"$f":"IF('1. Order'!AS352=\"\",\"\",'1. Order'!AS352)","v":""},{"$f":"IF('1. Order'!AF352=\"\",\"\",'1. Order'!AF352)","v":""}]
[{"$f":"IF('1. Order'!B353=\"\",\"\",'1. Order'!B353)","v":""},{"$f":"IF('1. Order'!I353=\"\",\"\",'1. Order'!I353)","v":""},{"$f":"IF('1. Order'!J353=\"\",\"\",'1. Order'!J353)","v":""},{"$f":"IF('1. Order'!K353=\"\",\"\",'1. Order'!K353)","v":""},{"$f":"IF('1. Order'!M353=\"\",\"\",'1. Order'!M353)","v":""},null,null,{"$f":"IF('1. Order'!AS353=\"\",\"\",'1. Order'!AS353)","v":""},{"$f":"IF('1. Order'!AF353=\"\",\"\",'1. Order'!AF353)","v":""}]
[{"$f":"IF('1. Order'!B354=\"\",\"\",'1. Order'!B354)","v":""},{"$f":"IF('1. Order'!I354=\"\",\"\",'1. Order'!I354)","v":""},{"$f":"IF('1. Order'!J354=\"\",\"\",'1. Order'!J354)","v":""},{"$f":"IF('1. Order'!K354=\"\",\"\",'1. Order'!K354)","v":""},{"$f":"IF('1. Order'!M354=\"\",\"\",'1. Order'!M354)","v":""},null,null,{"$f":"IF('1. Order'!AS354=\"\",\"\",'1. Order'!AS354)","v":""},{"$f":"IF('1. Order'!AF354=\"\",\"\",'1. Order'!AF354)","v":""}]
[{"$f":"IF('1. Order'!B355=\"\",\"\",'1. Order'!B355)","v":""},{"$f":"IF('1. Order'!I355=\"\",\"\",'1. Order'!I355)","v":""},{"$f":"IF('1. Order'!J355=\"\",\"\",'1. Order'!J355)","v":""},{"$f":"IF('1. Order'!K355=\"\",\"\",'1. Order'!K355)","v":""},{"$f":"IF('1. Order'!M355=\"\",\"\",'1. Order'!M355)","v":""},null,null,{"$f":"IF('1. Order'!AS355=\"\",\"\",'1. Order'!AS355)","v":""},{"$f":"IF('1. Order'!AF355=\"\",\"\",'1. Order'!AF355)","v":""}]
[{"$f":"IF('1. Order'!B356=\"\",\"\",'1. Order'!B356)","v":""},{"$f":"IF('1. Order'!I356=\"\",\"\",'1. Order'!I356)","v":""},{"$f":"IF('1. Order'!J356=\"\",\"\",'1. Order'!J356)","v":""},{"$f":"IF('1. Order'!K356=\"\",\"\",'1. Order'!K356)","v":""},{"$f":"IF('1. Order'!M356=\"\",\"\",'1. Order'!M356)","v":""},null,null,{"$f":"IF('1. Order'!AS356=\"\",\"\",'1. Order'!AS356)","v":""},{"$f":"IF('1. Order'!AF356=\"\",\"\",'1. Order'!AF356)","v":""}]
[{"$f":"IF('1. Order'!B357=\"\",\"\",'1. Order'!B357)","v":""},{"$f":"IF('1. Order'!I357=\"\",\"\",'1. Order'!I357)","v":""},{"$f":"IF('1. Order'!J357=\"\",\"\",'1. Order'!J357)","v":""},{"$f":"IF('1. Order'!K357=\"\",\"\",'1. Order'!K357)","v":""},{"$f":"IF('1. Order'!M357=\"\",\"\",'1. Order'!M357)","v":""},null,null,{"$f":"IF('1. Order'!AS357=\"\",\"\",'1. Order'!AS357)","v":""},{"$f":"IF('1. Order'!AF357=\"\",\"\",'1. Order'!AF357)","v":""}]
[{"$f":"IF('1. Order'!B358=\"\",\"\",'1. Order'!B358)","v":""},{"$f":"IF('1. Order'!I358=\"\",\"\",'1. Order'!I358)","v":""},{"$f":"IF('1. Order'!J358=\"\",\"\",'1. Order'!J358)","v":""},{"$f":"IF('1. Order'!K358=\"\",\"\",'1. Order'!K358)","v":""},{"$f":"IF('1. Order'!M358=\"\",\"\",'1. Order'!M358)","v":""},null,null,{"$f":"IF('1. Order'!AS358=\"\",\"\",'1. Order'!AS358)","v":""},{"$f":"IF('1. Order'!AF358=\"\",\"\",'1. Order'!AF358)","v":""}]
[{"$f":"IF('1. Order'!B359=\"\",\"\",'1. Order'!B359)","v":""},{"$f":"IF('1. Order'!I359=\"\",\"\",'1. Order'!I359)","v":""},{"$f":"IF('1. Order'!J359=\"\",\"\",'1. Order'!J359)","v":""},{"$f":"IF('1. Order'!K359=\"\",\"\",'1. Order'!K359)","v":""},{"$f":"IF('1. Order'!M359=\"\",\"\",'1. Order'!M359)","v":""},null,null,{"$f":"IF('1. Order'!AS359=\"\",\"\",'1. Order'!AS359)","v":""},{"$f":"IF('1. Order'!AF359=\"\",\"\",'1. Order'!AF359)","v":""}]
[{"$f":"IF('1. Order'!B360=\"\",\"\",'1. Order'!B360)","v":""},{"$f":"IF('1. Order'!I360=\"\",\"\",'1. Order'!I360)","v":""},{"$f":"IF('1. Order'!J360=\"\",\"\",'1. Order'!J360)","v":""},{"$f":"IF('1. Order'!K360=\"\",\"\",'1. Order'!K360)","v":""},{"$f":"IF('1. Order'!M360=\"\",\"\",'1. Order'!M360)","v":""},null,null,{"$f":"IF('1. Order'!AS360=\"\",\"\",'1. Order'!AS360)","v":""},{"$f":"IF('1. Order'!AF360=\"\",\"\",'1. Order'!AF360)","v":""}]
[{"$f":"IF('1. Order'!B361=\"\",\"\",'1. Order'!B361)","v":""},{"$f":"IF('1. Order'!I361=\"\",\"\",'1. Order'!I361)","v":""},{"$f":"IF('1. Order'!J361=\"\",\"\",'1. Order'!J361)","v":""},{"$f":"IF('1. Order'!K361=\"\",\"\",'1. Order'!K361)","v":""},{"$f":"IF('1. Order'!M361=\"\",\"\",'1. Order'!M361)","v":""},null,null,{"$f":"IF('1. Order'!AS361=\"\",\"\",'1. Order'!AS361)","v":""},{"$f":"IF('1. Order'!AF361=\"\",\"\",'1. Order'!AF361)","v":""}]
[{"$f":"IF('1. Order'!B362=\"\",\"\",'1. Order'!B362)","v":""},{"$f":"IF('1. Order'!I362=\"\",\"\",'1. Order'!I362)","v":""},{"$f":"IF('1. Order'!J362=\"\",\"\",'1. Order'!J362)","v":""},{"$f":"IF('1. Order'!K362=\"\",\"\",'1. Order'!K362)","v":""},{"$f":"IF('1. Order'!M362=\"\",\"\",'1. Order'!M362)","v":""},null,null,{"$f":"IF('1. Order'!AS362=\"\",\"\",'1. Order'!AS362)","v":""},{"$f":"IF('1. Order'!AF362=\"\",\"\",'1. Order'!AF362)","v":""}]
[{"$f":"IF('1. Order'!B363=\"\",\"\",'1. Order'!B363)","v":""},{"$f":"IF('1. Order'!I363=\"\",\"\",'1. Order'!I363)","v":""},{"$f":"IF('1. Order'!J363=\"\",\"\",'1. Order'!J363)","v":""},{"$f":"IF('1. Order'!K363=\"\",\"\",'1. Order'!K363)","v":""},{"$f":"IF('1. Order'!M363=\"\",\"\",'1. Order'!M363)","v":""},null,null,{"$f":"IF('1. Order'!AS363=\"\",\"\",'1. Order'!AS363)","v":""},{"$f":"IF('1. Order'!AF363=\"\",\"\",'1. Order'!AF363)","v":""}]
[{"$f":"IF('1. Order'!B364=\"\",\"\",'1. Order'!B364)","v":""},{"$f":"IF('1. Order'!I364=\"\",\"\",'1. Order'!I364)","v":""},{"$f":"IF('1. Order'!J364=\"\",\"\",'1. Order'!J364)","v":""},{"$f":"IF('1. Order'!K364=\"\",\"\",'1. Order'!K364)","v":""},{"$f":"IF('1. Order'!M364=\"\",\"\",'1. Order'!M364)","v":""},null,null,{"$f":"IF('1. Order'!AS364=\"\",\"\",'1. Order'!AS364)","v":""},{"$f":"IF('1. Order'!AF364=\"\",\"\",'1. Order'!AF364)","v":""}]
[{"$f":"IF('1. Order'!B365=\"\",\"\",'1. Order'!B365)","v":""},{"$f":"IF('1. Order'!I365=\"\",\"\",'1. Order'!I365)","v":""},{"$f":"IF('1. Order'!J365=\"\",\"\",'1. Order'!J365)","v":""},{"$f":"IF('1. Order'!K365=\"\",\"\",'1. Order'!K365)","v":""},{"$f":"IF('1. Order'!M365=\"\",\"\",'1. Order'!M365)","v":""},null,null,{"$f":"IF('1. Order'!AS365=\"\",\"\",'1. Order'!AS365)","v":""},{"$f":"IF('1. Order'!AF365=\"\",\"\",'1. Order'!AF365)","v":""}]
[{"$f":"IF('1. Order'!B366=\"\",\"\",'1. Order'!B366)","v":""},{"$f":"IF('1. Order'!I366=\"\",\"\",'1. Order'!I366)","v":""},{"$f":"IF('1. Order'!J366=\"\",\"\",'1. Order'!J366)","v":""},{"$f":"IF('1. Order'!K366=\"\",\"\",'1. Order'!K366)","v":""},{"$f":"IF('1. Order'!M366=\"\",\"\",'1. Order'!M366)","v":""},null,null,{"$f":"IF('1. Order'!AS366=\"\",\"\",'1. Order'!AS366)","v":""},{"$f":"IF('1. Order'!AF366=\"\",\"\",'1. Order'!AF366)","v":""}]
[{"$f":"IF('1. Order'!B367=\"\",\"\",'1. Order'!B367)","v":""},{"$f":"IF('1. Order'!I367=\"\",\"\",'1. Order'!I367)","v":""},{"$f":"IF('1. Order'!J367=\"\",\"\",'1. Order'!J367)","v":""},{"$f":"IF('1. Order'!K367=\"\",\"\",'1. Order'!K367)","v":""},{"$f":"IF('1. Order'!M367=\"\",\"\",'1. Order'!M367)","v":""},null,null,{"$f":"IF('1. Order'!AS367=\"\",\"\",'1. Order'!AS367)","v":""},{"$f":"IF('1. Order'!AF367=\"\",\"\",'1. Order'!AF367)","v":""}]
[{"$f":"IF('1. Order'!B368=\"\",\"\",'1. Order'!B368)","v":""},{"$f":"IF('1. Order'!I368=\"\",\"\",'1. Order'!I368)","v":""},{"$f":"IF('1. Order'!J368=\"\",\"\",'1. Order'!J368)","v":""},{"$f":"IF('1. Order'!K368=\"\",\"\",'1. Order'!K368)","v":""},{"$f":"IF('1. Order'!M368=\"\",\"\",'1. Order'!M368)","v":""},null,null,{"$f":"IF('1. Order'!AS368=\"\",\"\",'1. Order'!AS368)","v":""},{"$f":"IF('1. Order'!AF368=\"\",\"\",'1. Order'!AF368)","v":""}]
[{"$f":"IF('1. Order'!B369=\"\",\"\",'1. Order'!B369)","v":""},{"$f":"IF('1. Order'!I369=\"\",\"\",'1. Order'!I369)","v":""},{"$f":"IF('1. Order'!J369=\"\",\"\",'1. Order'!J369)","v":""},{"$f":"IF('1. Order'!K369=\"\",\"\",'1. Order'!K369)","v":""},{"$f":"IF('1. Order'!M369=\"\",\"\",'1. Order'!M369)","v":""},null,null,{"$f":"IF('1. Order'!AS369=\"\",\"\",'1. Order'!AS369)","v":""},{"$f":"IF('1. Order'!AF369=\"\",\"\",'1. Order'!AF369)","v":""}]
[{"$f":"IF('1. Order'!B370=\"\",\"\",'1. Order'!B370)","v":""},{"$f":"IF('1. Order'!I370=\"\",\"\",'1. Order'!I370)","v":""},{"$f":"IF('1. Order'!J370=\"\",\"\",'1. Order'!J370)","v":""},{"$f":"IF('1. Order'!K370=\"\",\"\",'1. Order'!K370)","v":""},{"$f":"IF('1. Order'!M370=\"\",\"\",'1. Order'!M370)","v":""},null,null,{"$f":"IF('1. Order'!AS370=\"\",\"\",'1. Order'!AS370)","v":""},{"$f":"IF('1. Order'!AF370=\"\",\"\",'1. Order'!AF370)","v":""}]
[{"$f":"IF('1. Order'!B371=\"\",\"\",'1. Order'!B371)","v":""},{"$f":"IF('1. Order'!I371=\"\",\"\",'1. Order'!I371)","v":""},{"$f":"IF('1. Order'!J371=\"\",\"\",'1. Order'!J371)","v":""},{"$f":"IF('1. Order'!K371=\"\",\"\",'1. Order'!K371)","v":""},{"$f":"IF('1. Order'!M371=\"\",\"\",'1. Order'!M371)","v":""},null,null,{"$f":"IF('1. Order'!AS371=\"\",\"\",'1. Order'!AS371)","v":""},{"$f":"IF('1. Order'!AF371=\"\",\"\",'1. Order'!AF371)","v":""}]
[{"$f":"IF('1. Order'!B372=\"\",\"\",'1. Order'!B372)","v":""},{"$f":"IF('1. Order'!I372=\"\",\"\",'1. Order'!I372)","v":""},{"$f":"IF('1. Order'!J372=\"\",\"\",'1. Order'!J372)","v":""},{"$f":"IF('1. Order'!K372=\"\",\"\",'1. Order'!K372)","v":""},{"$f":"IF('1. Order'!M372=\"\",\"\",'1. Order'!M372)","v":""},null,null,{"$f":"IF('1. Order'!AS372=\"\",\"\",'1. Order'!AS372)","v":""},{"$f":"IF('1. Order'!AF372=\"\",\"\",'1. Order'!AF372)","v":""}]
[{"$f":"IF('1. Order'!B373=\"\",\"\",'1. Order'!B373)","v":""},{"$f":"IF('1. Order'!I373=\"\",\"\",'1. Order'!I373)","v":""},{"$f":"IF('1. Order'!J373=\"\",\"\",'1. Order'!J373)","v":""},{"$f":"IF('1. Order'!K373=\"\",\"\",'1. Order'!K373)","v":""},{"$f":"IF('1. Order'!M373=\"\",\"\",'1. Order'!M373)","v":""},null,null,{"$f":"IF('1. Order'!AS373=\"\",\"\",'1. Order'!AS373)","v":""},{"$f":"IF('1. Order'!AF373=\"\",\"\",'1. Order'!AF373)","v":""}]
[{"$f":"IF('1. Order'!B374=\"\",\"\",'1. Order'!B374)","v":""},{"$f":"IF('1. Order'!I374=\"\",\"\",'1. Order'!I374)","v":""},{"$f":"IF('1. Order'!J374=\"\",\"\",'1. Order'!J374)","v":""},{"$f":"IF('1. Order'!K374=\"\",\"\",'1. Order'!K374)","v":""},{"$f":"IF('1. Order'!M374=\"\",\"\",'1. Order'!M374)","v":""},null,null,{"$f":"IF('1. Order'!AS374=\"\",\"\",'1. Order'!AS374)","v":""},{"$f":"IF('1. Order'!AF374=\"\",\"\",'1. Order'!AF374)","v":""}]
[{"$f":"IF('1. Order'!B375=\"\",\"\",'1. Order'!B375)","v":""},{"$f":"IF('1. Order'!I375=\"\",\"\",'1. Order'!I375)","v":""},{"$f":"IF('1. Order'!J375=\"\",\"\",'1. Order'!J375)","v":""},{"$f":"IF('1. Order'!K375=\"\",\"\",'1. Order'!K375)","v":""},{"$f":"IF('1. Order'!M375=\"\",\"\",'1. Order'!M375)","v":""},null,null,{"$f":"IF('1. Order'!AS375=\"\",\"\",'1. Order'!AS375)","v":""},{"$f":"IF('1. Order'!AF375=\"\",\"\",'1. Order'!AF375)","v":""}]
[{"$f":"IF('1. Order'!B376=\"\",\"\",'1. Order'!B376)","v":""},{"$f":"IF('1. Order'!I376=\"\",\"\",'1. Order'!I376)","v":""},{"$f":"IF('1. Order'!J376=\"\",\"\",'1. Order'!J376)","v":""},{"$f":"IF('1. Order'!K376=\"\",\"\",'1. Order'!K376)","v":""},{"$f":"IF('1. Order'!M376=\"\",\"\",'1. Order'!M376)","v":""},null,null,{"$f":"IF('1. Order'!AS376=\"\",\"\",'1. Order'!AS376)","v":""},{"$f":"IF('1. Order'!AF376=\"\",\"\",'1. Order'!AF376)","v":""}]
[{"$f":"IF('1. Order'!B377=\"\",\"\",'1. Order'!B377)","v":""},{"$f":"IF('1. Order'!I377=\"\",\"\",'1. Order'!I377)","v":""},{"$f":"IF('1. Order'!J377=\"\",\"\",'1. Order'!J377)","v":""},{"$f":"IF('1. Order'!K377=\"\",\"\",'1. Order'!K377)","v":""},{"$f":"IF('1. Order'!M377=\"\",\"\",'1. Order'!M377)","v":""},null,null,{"$f":"IF('1. Order'!AS377=\"\",\"\",'1. Order'!AS377)","v":""},{"$f":"IF('1. Order'!AF377=\"\",\"\",'1. Order'!AF377)","v":""}]
[{"$f":"IF('1. Order'!B378=\"\",\"\",'1. Order'!B378)","v":""},{"$f":"IF('1. Order'!I378=\"\",\"\",'1. Order'!I378)","v":""},{"$f":"IF('1. Order'!J378=\"\",\"\",'1. Order'!J378)","v":""},{"$f":"IF('1. Order'!K378=\"\",\"\",'1. Order'!K378)","v":""},{"$f":"IF('1. Order'!M378=\"\",\"\",'1. Order'!M378)","v":""},null,null,{"$f":"IF('1. Order'!AS378=\"\",\"\",'1. Order'!AS378)","v":""},{"$f":"IF('1. Order'!AF378=\"\",\"\",'1. Order'!AF378)","v":""}]
[{"$f":"IF('1. Order'!B379=\"\",\"\",'1. Order'!B379)","v":""},{"$f":"IF('1. Order'!I379=\"\",\"\",'1. Order'!I379)","v":""},{"$f":"IF('1. Order'!J379=\"\",\"\",'1. Order'!J379)","v":""},{"$f":"IF('1. Order'!K379=\"\",\"\",'1. Order'!K379)","v":""},{"$f":"IF('1. Order'!M379=\"\",\"\",'1. Order'!M379)","v":""},null,null,{"$f":"IF('1. Order'!AS379=\"\",\"\",'1. Order'!AS379)","v":""},{"$f":"IF('1. Order'!AF379=\"\",\"\",'1. Order'!AF379)","v":""}]
[{"$f":"IF('1. Order'!B380=\"\",\"\",'1. Order'!B380)","v":""},{"$f":"IF('1. Order'!I380=\"\",\"\",'1. Order'!I380)","v":""},{"$f":"IF('1. Order'!J380=\"\",\"\",'1. Order'!J380)","v":""},{"$f":"IF('1. Order'!K380=\"\",\"\",'1. Order'!K380)","v":""},{"$f":"IF('1. Order'!M380=\"\",\"\",'1. Order'!M380)","v":""},null,null,{"$f":"IF('1. Order'!AS380=\"\",\"\",'1. Order'!AS380)","v":""},{"$f":"IF('1. Order'!AF380=\"\",\"\",'1. Order'!AF380)","v":""}]
[{"$f":"IF('1. Order'!B381=\"\",\"\",'1. Order'!B381)","v":""},{"$f":"IF('1. Order'!I381=\"\",\"\",'1. Order'!I381)","v":""},{"$f":"IF('1. Order'!J381=\"\",\"\",'1. Order'!J381)","v":""},{"$f":"IF('1. Order'!K381=\"\",\"\",'1. Order'!K381)","v":""},{"$f":"IF('1. Order'!M381=\"\",\"\",'1. Order'!M381)","v":""},null,null,{"$f":"IF('1. Order'!AS381=\"\",\"\",'1. Order'!AS381)","v":""},{"$f":"IF('1. Order'!AF381=\"\",\"\",'1. Order'!AF381)","v":""}]
[{"$f":"IF('1. Order'!B382=\"\",\"\",'1. Order'!B382)","v":""},{"$f":"IF('1. Order'!I382=\"\",\"\",'1. Order'!I382)","v":""},{"$f":"IF('1. Order'!J382=\"\",\"\",'1. Order'!J382)","v":""},{"$f":"IF('1. Order'!K382=\"\",\"\",'1. Order'!K382)","v":""},{"$f":"IF('1. Order'!M382=\"\",\"\",'1. Order'!M382)","v":""},null,null,{"$f":"IF('1. Order'!AS382=\"\",\"\",'1. Order'!AS382)","v":""},{"$f":"IF('1. Order'!AF382=\"\",\"\",'1. Order'!AF382)","v":""}]
[{"$f":"IF('1. Order'!B383=\"\",\"\",'1. Order'!B383)","v":""},{"$f":"IF('1. Order'!I383=\"\",\"\",'1. Order'!I383)","v":""},{"$f":"IF('1. Order'!J383=\"\",\"\",'1. Order'!J383)","v":""},{"$f":"IF('1. Order'!K383=\"\",\"\",'1. Order'!K383)","v":""},{"$f":"IF('1. Order'!M383=\"\",\"\",'1. Order'!M383)","v":""},null,null,{"$f":"IF('1. Order'!AS383=\"\",\"\",'1. Order'!AS383)","v":""},{"$f":"IF('1. Order'!AF383=\"\",\"\",'1. Order'!AF383)","v":""}]
[{"$f":"IF('1. Order'!B384=\"\",\"\",'1. Order'!B384)","v":""},{"$f":"IF('1. Order'!I384=\"\",\"\",'1. Order'!I384)","v":""},{"$f":"IF('1. Order'!J384=\"\",\"\",'1. Order'!J384)","v":""},{"$f":"IF('1. Order'!K384=\"\",\"\",'1. Order'!K384)","v":""},{"$f":"IF('1. Order'!M384=\"\",\"\",'1. Order'!M384)","v":""},null,null,{"$f":"IF('1. Order'!AS384=\"\",\"\",'1. Order'!AS384)","v":""},{"$f":"IF('1. Order'!AF384=\"\",\"\",'1. Order'!AF384)","v":""}]
[{"$f":"IF('1. Order'!B385=\"\",\"\",'1. Order'!B385)","v":""},{"$f":"IF('1. Order'!I385=\"\",\"\",'1. Order'!I385)","v":""},{"$f":"IF('1. Order'!J385=\"\",\"\",'1. Order'!J385)","v":""},{"$f":"IF('1. Order'!K385=\"\",\"\",'1. Order'!K385)","v":""},{"$f":"IF('1. Order'!M385=\"\",\"\",'1. Order'!M385)","v":""},null,null,{"$f":"IF('1. Order'!AS385=\"\",\"\",'1. Order'!AS385)","v":""},{"$f":"IF('1. Order'!AF385=\"\",\"\",'1. Order'!AF385)","v":""}]
[{"$f":"IF('1. Order'!B386=\"\",\"\",'1. Order'!B386)","v":""},{"$f":"IF('1. Order'!I386=\"\",\"\",'1. Order'!I386)","v":""},{"$f":"IF('1. Order'!J386=\"\",\"\",'1. Order'!J386)","v":""},{"$f":"IF('1. Order'!K386=\"\",\"\",'1. Order'!K386)","v":""},{"$f":"IF('1. Order'!M386=\"\",\"\",'1. Order'!M386)","v":""},null,null,{"$f":"IF('1. Order'!AS386=\"\",\"\",'1. Order'!AS386)","v":""},{"$f":"IF('1. Order'!AF386=\"\",\"\",'1. Order'!AF386)","v":""}]
[{"$f":"IF('1. Order'!B387=\"\",\"\",'1. Order'!B387)","v":""},{"$f":"IF('1. Order'!I387=\"\",\"\",'1. Order'!I387)","v":""},{"$f":"IF('1. Order'!J387=\"\",\"\",'1. Order'!J387)","v":""},{"$f":"IF('1. Order'!K387=\"\",\"\",'1. Order'!K387)","v":""},{"$f":"IF('1. Order'!M387=\"\",\"\",'1. Order'!M387)","v":""},null,null,{"$f":"IF('1. Order'!AS387=\"\",\"\",'1. Order'!AS387)","v":""},{"$f":"IF('1. Order'!AF387=\"\",\"\",'1. Order'!AF387)","v":""}]
[{"$f":"IF('1. Order'!B388=\"\",\"\",'1. Order'!B388)","v":""},{"$f":"IF('1. Order'!I388=\"\",\"\",'1. Order'!I388)","v":""},{"$f":"IF('1. Order'!J388=\"\",\"\",'1. Order'!J388)","v":""},{"$f":"IF('1. Order'!K388=\"\",\"\",'1. Order'!K388)","v":""},{"$f":"IF('1. Order'!M388=\"\",\"\",'1. Order'!M388)","v":""},null,null,{"$f":"IF('1. Order'!AS388=\"\",\"\",'1. Order'!AS388)","v":""},{"$f":"IF('1. Order'!AF388=\"\",\"\",'1. Order'!AF388)","v":""}]
[{"$f":"IF('1. Order'!B389=\"\",\"\",'1. Order'!B389)","v":""},{"$f":"IF('1. Order'!I389=\"\",\"\",'1. Order'!I389)","v":""},{"$f":"IF('1. Order'!J389=\"\",\"\",'1. Order'!J389)","v":""},{"$f":"IF('1. Order'!K389=\"\",\"\",'1. Order'!K389)","v":""},{"$f":"IF('1. Order'!M389=\"\",\"\",'1. Order'!M389)","v":""},null,null,{"$f":"IF('1. Order'!AS389=\"\",\"\",'1. Order'!AS389)","v":""},{"$f":"IF('1. Order'!AF389=\"\",\"\",'1. Order'!AF389)","v":""}]
[{"$f":"IF('1. Order'!B390=\"\",\"\",'1. Order'!B390)","v":""},{"$f":"IF('1. Order'!I390=\"\",\"\",'1. Order'!I390)","v":""},{"$f":"IF('1. Order'!J390=\"\",\"\",'1. Order'!J390)","v":""},{"$f":"IF('1. Order'!K390=\"\",\"\",'1. Order'!K390)","v":""},{"$f":"IF('1. Order'!M390=\"\",\"\",'1. Order'!M390)","v":""},null,null,{"$f":"IF('1. Order'!AS390=\"\",\"\",'1. Order'!AS390)","v":""},{"$f":"IF('1. Order'!AF390=\"\",\"\",'1. Order'!AF390)","v":""}]
[{"$f":"IF('1. Order'!B391=\"\",\"\",'1. Order'!B391)","v":""},{"$f":"IF('1. Order'!I391=\"\",\"\",'1. Order'!I391)","v":""},{"$f":"IF('1. Order'!J391=\"\",\"\",'1. Order'!J391)","v":""},{"$f":"IF('1. Order'!K391=\"\",\"\",'1. Order'!K391)","v":""},{"$f":"IF('1. Order'!M391=\"\",\"\",'1. Order'!M391)","v":""},null,null,{"$f":"IF('1. Order'!AS391=\"\",\"\",'1. Order'!AS391)","v":""},{"$f":"IF('1. Order'!AF391=\"\",\"\",'1. Order'!AF391)","v":""}]
[{"$f":"IF('1. Order'!B392=\"\",\"\",'1. Order'!B392)","v":""},{"$f":"IF('1. Order'!I392=\"\",\"\",'1. Order'!I392)","v":""},{"$f":"IF('1. Order'!J392=\"\",\"\",'1. Order'!J392)","v":""},{"$f":"IF('1. Order'!K392=\"\",\"\",'1. Order'!K392)","v":""},{"$f":"IF('1. Order'!M392=\"\",\"\",'1. Order'!M392)","v":""},null,null,{"$f":"IF('1. Order'!AS392=\"\",\"\",'1. Order'!AS392)","v":""},{"$f":"IF('1. Order'!AF392=\"\",\"\",'1. Order'!AF392)","v":""}]
[{"$f":"IF('1. Order'!B393=\"\",\"\",'1. Order'!B393)","v":""},{"$f":"IF('1. Order'!I393=\"\",\"\",'1. Order'!I393)","v":""},{"$f":"IF('1. Order'!J393=\"\",\"\",'1. Order'!J393)","v":""},{"$f":"IF('1. Order'!K393=\"\",\"\",'1. Order'!K393)","v":""},{"$f":"IF('1. Order'!M393=\"\",\"\",'1. Order'!M393)","v":""},null,null,{"$f":"IF('1. Order'!AS393=\"\",\"\",'1. Order'!AS393)","v":""},{"$f":"IF('1. Order'!AF393=\"\",\"\",'1. Order'!AF393)","v":""}]
[{"$f":"IF('1. Order'!B394=\"\",\"\",'1. Order'!B394)","v":""},{"$f":"IF('1. Order'!I394=\"\",\"\",'1. Order'!I394)","v":""},{"$f":"IF('1. Order'!J394=\"\",\"\",'1. Order'!J394)","v":""},{"$f":"IF('1. Order'!K394=\"\",\"\",'1. Order'!K394)","v":""},{"$f":"IF('1. Order'!M394=\"\",\"\",'1. Order'!M394)","v":""},null,null,{"$f":"IF('1. Order'!AS394=\"\",\"\",'1. Order'!AS394)","v":""},{"$f":"IF('1. Order'!AF394=\"\",\"\",'1. Order'!AF394)","v":""}]
[{"$f":"IF('1. Order'!B395=\"\",\"\",'1. Order'!B395)","v":""},{"$f":"IF('1. Order'!I395=\"\",\"\",'1. Order'!I395)","v":""},{"$f":"IF('1. Order'!J395=\"\",\"\",'1. Order'!J395)","v":""},{"$f":"IF('1. Order'!K395=\"\",\"\",'1. Order'!K395)","v":""},{"$f":"IF('1. Order'!M395=\"\",\"\",'1. Order'!M395)","v":""},null,null,{"$f":"IF('1. Order'!AS395=\"\",\"\",'1. Order'!AS395)","v":""},{"$f":"IF('1. Order'!AF395=\"\",\"\",'1. Order'!AF395)","v":""}]
[{"$f":"IF('1. Order'!B396=\"\",\"\",'1. Order'!B396)","v":""},{"$f":"IF('1. Order'!I396=\"\",\"\",'1. Order'!I396)","v":""},{"$f":"IF('1. Order'!J396=\"\",\"\",'1. Order'!J396)","v":""},{"$f":"IF('1. Order'!K396=\"\",\"\",'1. Order'!K396)","v":""},{"$f":"IF('1. Order'!M396=\"\",\"\",'1. Order'!M396)","v":""},null,null,{"$f":"IF('1. Order'!AS396=\"\",\"\",'1. Order'!AS396)","v":""},{"$f":"IF('1. Order'!AF396=\"\",\"\",'1. Order'!AF396)","v":""}]
[{"$f":"IF('1. Order'!B397=\"\",\"\",'1. Order'!B397)","v":""},{"$f":"IF('1. Order'!I397=\"\",\"\",'1. Order'!I397)","v":""},{"$f":"IF('1. Order'!J397=\"\",\"\",'1. Order'!J397)","v":""},{"$f":"IF('1. Order'!K397=\"\",\"\",'1. Order'!K397)","v":""},{"$f":"IF('1. Order'!M397=\"\",\"\",'1. Order'!M397)","v":""},null,null,{"$f":"IF('1. Order'!AS397=\"\",\"\",'1. Order'!AS397)","v":""},{"$f":"IF('1. Order'!AF397=\"\",\"\",'1. Order'!AF397)","v":""}]
[{"$f":"IF('1. Order'!B398=\"\",\"\",'1. Order'!B398)","v":""},{"$f":"IF('1. Order'!I398=\"\",\"\",'1. Order'!I398)","v":""},{"$f":"IF('1. Order'!J398=\"\",\"\",'1. Order'!J398)","v":""},{"$f":"IF('1. Order'!K398=\"\",\"\",'1. Order'!K398)","v":""},{"$f":"IF('1. Order'!M398=\"\",\"\",'1. Order'!M398)","v":""},null,null,{"$f":"IF('1. Order'!AS398=\"\",\"\",'1. Order'!AS398)","v":""},{"$f":"IF('1. Order'!AF398=\"\",\"\",'1. Order'!AF398)","v":""}]
[{"$f":"IF('1. Order'!B399=\"\",\"\",'1. Order'!B399)","v":""},{"$f":"IF('1. Order'!I399=\"\",\"\",'1. Order'!I399)","v":""},{"$f":"IF('1. Order'!J399=\"\",\"\",'1. Order'!J399)","v":""},{"$f":"IF('1. Order'!K399=\"\",\"\",'1. Order'!K399)","v":""},{"$f":"IF('1. Order'!M399=\"\",\"\",'1. Order'!M399)","v":""},null,null,{"$f":"IF('1. Order'!AS399=\"\",\"\",'1. Order'!AS399)","v":""},{"$f":"IF('1. Order'!AF399=\"\",\"\",'1. Order'!AF399)","v":""}]
[{"$f":"IF('1. Order'!B400=\"\",\"\",'1. Order'!B400)","v":""},{"$f":"IF('1. Order'!I400=\"\",\"\",'1. Order'!I400)","v":""},{"$f":"IF('1. Order'!J400=\"\",\"\",'1. Order'!J400)","v":""},{"$f":"IF('1. Order'!K400=\"\",\"\",'1. Order'!K400)","v":""},{"$f":"IF('1. Order'!M400=\"\",\"\",'1. Order'!M400)","v":""},null,null,{"$f":"IF('1. Order'!AS400=\"\",\"\",'1. Order'!AS400)","v":""},{"$f":"IF('1. Order'!AF400=\"\",\"\",'1. Order'!AF400)","v":""}]
[{"$f":"IF('1. Order'!B401=\"\",\"\",'1. Order'!B401)","v":""},{"$f":"IF('1. Order'!I401=\"\",\"\",'1. Order'!I401)","v":""},{"$f":"IF('1. Order'!J401=\"\",\"\",'1. Order'!J401)","v":""},{"$f":"IF('1. Order'!K401=\"\",\"\",'1. Order'!K401)","v":""},{"$f":"IF('1. Order'!M401=\"\",\"\",'1. Order'!M401)","v":""},null,null,{"$f":"IF('1. Order'!AS401=\"\",\"\",'1. Order'!AS401)","v":""},{"$f":"IF('1. Order'!AF401=\"\",\"\",'1. Order'!AF401)","v":""}]
[{"$f":"IF('1. Order'!B402=\"\",\"\",'1. Order'!B402)","v":""},{"$f":"IF('1. Order'!I402=\"\",\"\",'1. Order'!I402)","v":""},{"$f":"IF('1. Order'!J402=\"\",\"\",'1. Order'!J402)","v":""},{"$f":"IF('1. Order'!K402=\"\",\"\",'1. Order'!K402)","v":""},{"$f":"IF('1. Order'!M402=\"\",\"\",'1. Order'!M402)","v":""},null,null,{"$f":"IF('1. Order'!AS402=\"\",\"\",'1. Order'!AS402)","v":""},{"$f":"IF('1. Order'!AF402=\"\",\"\",'1. Order'!AF402)","v":""}]
[{"$f":"IF('1. Order'!B403=\"\",\"\",'1. Order'!B403)","v":""},{"$f":"IF('1. Order'!I403=\"\",\"\",'1. Order'!I403)","v":""},{"$f":"IF('1. Order'!J403=\"\",\"\",'1. Order'!J403)","v":""},{"$f":"IF('1. Order'!K403=\"\",\"\",'1. Order'!K403)","v":""},{"$f":"IF('1. Order'!M403=\"\",\"\",'1. Order'!M403)","v":""},null,null,{"$f":"IF('1. Order'!AS403=\"\",\"\",'1. Order'!AS403)","v":""},{"$f":"IF('1. Order'!AF403=\"\",\"\",'1. Order'!AF403)","v":""}]
[{"$f":"IF('1. Order'!B404=\"\",\"\",'1. Order'!B404)","v":""},{"$f":"IF('1. Order'!I404=\"\",\"\",'1. Order'!I404)","v":""},{"$f":"IF('1. Order'!J404=\"\",\"\",'1. Order'!J404)","v":""},{"$f":"IF('1. Order'!K404=\"\",\"\",'1. Order'!K404)","v":""},{"$f":"IF('1. Order'!M404=\"\",\"\",'1. Order'!M404)","v":""},null,null,{"$f":"IF('1. Order'!AS404=\"\",\"\",'1. Order'!AS404)","v":""},{"$f":"IF('1. Order'!AF404=\"\",\"\",'1. Order'!AF404)","v":""}]
[{"$f":"IF('1. Order'!B405=\"\",\"\",'1. Order'!B405)","v":""},{"$f":"IF('1. Order'!I405=\"\",\"\",'1. Order'!I405)","v":""},{"$f":"IF('1. Order'!J405=\"\",\"\",'1. Order'!J405)","v":""},{"$f":"IF('1. Order'!K405=\"\",\"\",'1. Order'!K405)","v":""},{"$f":"IF('1. Order'!M405=\"\",\"\",'1. Order'!M405)","v":""},null,null,{"$f":"IF('1. Order'!AS405=\"\",\"\",'1. Order'!AS405)","v":""},{"$f":"IF('1. Order'!AF405=\"\",\"\",'1. Order'!AF405)","v":""}]
[{"$f":"IF('1. Order'!B406=\"\",\"\",'1. Order'!B406)","v":""},{"$f":"IF('1. Order'!I406=\"\",\"\",'1. Order'!I406)","v":""},{"$f":"IF('1. Order'!J406=\"\",\"\",'1. Order'!J406)","v":""},{"$f":"IF('1. Order'!K406=\"\",\"\",'1. Order'!K406)","v":""},{"$f":"IF('1. Order'!M406=\"\",\"\",'1. Order'!M406)","v":""},null,null,{"$f":"IF('1. Order'!AS406=\"\",\"\",'1. Order'!AS406)","v":""},{"$f":"IF('1. Order'!AF406=\"\",\"\",'1. Order'!AF406)","v":""}]
[{"$f":"IF('1. Order'!B407=\"\",\"\",'1. Order'!B407)","v":""},{"$f":"IF('1. Order'!I407=\"\",\"\",'1. Order'!I407)","v":""},{"$f":"IF('1. Order'!J407=\"\",\"\",'1. Order'!J407)","v":""},{"$f":"IF('1. Order'!K407=\"\",\"\",'1. Order'!K407)","v":""},{"$f":"IF('1. Order'!M407=\"\",\"\",'1. Order'!M407)","v":""},null,null,{"$f":"IF('1. Order'!AS407=\"\",\"\",'1. Order'!AS407)","v":""},{"$f":"IF('1. Order'!AF407=\"\",\"\",'1. Order'!AF407)","v":""}]
[{"$f":"IF('1. Order'!B408=\"\",\"\",'1. Order'!B408)","v":""},{"$f":"IF('1. Order'!I408=\"\",\"\",'1. Order'!I408)","v":""},{"$f":"IF('1. Order'!J408=\"\",\"\",'1. Order'!J408)","v":""},{"$f":"IF('1. Order'!K408=\"\",\"\",'1. Order'!K408)","v":""},{"$f":"IF('1. Order'!M408=\"\",\"\",'1. Order'!M408)","v":""},null,null,{"$f":"IF('1. Order'!AS408=\"\",\"\",'1. Order'!AS408)","v":""},{"$f":"IF('1. Order'!AF408=\"\",\"\",'1. Order'!AF408)","v":""}]
[{"$f":"IF('1. Order'!B409=\"\",\"\",'1. Order'!B409)","v":""},{"$f":"IF('1. Order'!I409=\"\",\"\",'1. Order'!I409)","v":""},{"$f":"IF('1. Order'!J409=\"\",\"\",'1. Order'!J409)","v":""},{"$f":"IF('1. Order'!K409=\"\",\"\",'1. Order'!K409)","v":""},{"$f":"IF('1. Order'!M409=\"\",\"\",'1. Order'!M409)","v":""},null,null,{"$f":"IF('1. Order'!AS409=\"\",\"\",'1. Order'!AS409)","v":""},{"$f":"IF('1. Order'!AF409=\"\",\"\",'1. Order'!AF409)","v":""}]
[{"$f":"IF('1. Order'!B410=\"\",\"\",'1. Order'!B410)","v":""},{"$f":"IF('1. Order'!I410=\"\",\"\",'1. Order'!I410)","v":""},{"$f":"IF('1. Order'!J410=\"\",\"\",'1. Order'!J410)","v":""},{"$f":"IF('1. Order'!K410=\"\",\"\",'1. Order'!K410)","v":""},{"$f":"IF('1. Order'!M410=\"\",\"\",'1. Order'!M410)","v":""},null,null,{"$f":"IF('1. Order'!AS410=\"\",\"\",'1. Order'!AS410)","v":""},{"$f":"IF('1. Order'!AF410=\"\",\"\",'1. Order'!AF410)","v":""}]
[{"$f":"IF('1. Order'!B411=\"\",\"\",'1. Order'!B411)","v":""},{"$f":"IF('1. Order'!I411=\"\",\"\",'1. Order'!I411)","v":""},{"$f":"IF('1. Order'!J411=\"\",\"\",'1. Order'!J411)","v":""},{"$f":"IF('1. Order'!K411=\"\",\"\",'1. Order'!K411)","v":""},{"$f":"IF('1. Order'!M411=\"\",\"\",'1. Order'!M411)","v":""},null,null,{"$f":"IF('1. Order'!AS411=\"\",\"\",'1. Order'!AS411)","v":""},{"$f":"IF('1. Order'!AF411=\"\",\"\",'1. Order'!AF411)","v":""}]
[{"$f":"IF('1. Order'!B412=\"\",\"\",'1. Order'!B412)","v":""},{"$f":"IF('1. Order'!I412=\"\",\"\",'1. Order'!I412)","v":""},{"$f":"IF('1. Order'!J412=\"\",\"\",'1. Order'!J412)","v":""},{"$f":"IF('1. Order'!K412=\"\",\"\",'1. Order'!K412)","v":""},{"$f":"IF('1. Order'!M412=\"\",\"\",'1. Order'!M412)","v":""},null,null,{"$f":"IF('1. Order'!AS412=\"\",\"\",'1. Order'!AS412)","v":""},{"$f":"IF('1. Order'!AF412=\"\",\"\",'1. Order'!AF412)","v":""}]
[{"$f":"IF('1. Order'!B413=\"\",\"\",'1. Order'!B413)","v":""},{"$f":"IF('1. Order'!I413=\"\",\"\",'1. Order'!I413)","v":""},{"$f":"IF('1. Order'!J413=\"\",\"\",'1. Order'!J413)","v":""},{"$f":"IF('1. Order'!K413=\"\",\"\",'1. Order'!K413)","v":""},{"$f":"IF('1. Order'!M413=\"\",\"\",'1. Order'!M413)","v":""},null,null,{"$f":"IF('1. Order'!AS413=\"\",\"\",'1. Order'!AS413)","v":""},{"$f":"IF('1. Order'!AF413=\"\",\"\",'1. Order'!AF413)","v":""}]
[{"$f":"IF('1. Order'!B414=\"\",\"\",'1. Order'!B414)","v":""},{"$f":"IF('1. Order'!I414=\"\",\"\",'1. Order'!I414)","v":""},{"$f":"IF('1. Order'!J414=\"\",\"\",'1. Order'!J414)","v":""},{"$f":"IF('1. Order'!K414=\"\",\"\",'1. Order'!K414)","v":""},{"$f":"IF('1. Order'!M414=\"\",\"\",'1. Order'!M414)","v":""},null,null,{"$f":"IF('1. Order'!AS414=\"\",\"\",'1. Order'!AS414)","v":""},{"$f":"IF('1. Order'!AF414=\"\",\"\",'1. Order'!AF414)","v":""}]
[{"$f":"IF('1. Order'!B415=\"\",\"\",'1. Order'!B415)","v":""},{"$f":"IF('1. Order'!I415=\"\",\"\",'1. Order'!I415)","v":""},{"$f":"IF('1. Order'!J415=\"\",\"\",'1. Order'!J415)","v":""},{"$f":"IF('1. Order'!K415=\"\",\"\",'1. Order'!K415)","v":""},{"$f":"IF('1. Order'!M415=\"\",\"\",'1. Order'!M415)","v":""},null,null,{"$f":"IF('1. Order'!AS415=\"\",\"\",'1. Order'!AS415)","v":""},{"$f":"IF('1. Order'!AF415=\"\",\"\",'1. Order'!AF415)","v":""}]
[{"$f":"IF('1. Order'!B416=\"\",\"\",'1. Order'!B416)","v":""},{"$f":"IF('1. Order'!I416=\"\",\"\",'1. Order'!I416)","v":""},{"$f":"IF('1. Order'!J416=\"\",\"\",'1. Order'!J416)","v":""},{"$f":"IF('1. Order'!K416=\"\",\"\",'1. Order'!K416)","v":""},{"$f":"IF('1. Order'!M416=\"\",\"\",'1. Order'!M416)","v":""},null,null,{"$f":"IF('1. Order'!AS416=\"\",\"\",'1. Order'!AS416)","v":""},{"$f":"IF('1. Order'!AF416=\"\",\"\",'1. Order'!AF416)","v":""}]
[{"$f":"IF('1. Order'!B417=\"\",\"\",'1. Order'!B417)","v":""},{"$f":"IF('1. Order'!I417=\"\",\"\",'1. Order'!I417)","v":""},{"$f":"IF('1. Order'!J417=\"\",\"\",'1. Order'!J417)","v":""},{"$f":"IF('1. Order'!K417=\"\",\"\",'1. Order'!K417)","v":""},{"$f":"IF('1. Order'!M417=\"\",\"\",'1. Order'!M417)","v":""},null,null,{"$f":"IF('1. Order'!AS417=\"\",\"\",'1. Order'!AS417)","v":""},{"$f":"IF('1. Order'!AF417=\"\",\"\",'1. Order'!AF417)","v":""}]
[{"$f":"IF('1. Order'!B418=\"\",\"\",'1. Order'!B418)","v":""},{"$f":"IF('1. Order'!I418=\"\",\"\",'1. Order'!I418)","v":""},{"$f":"IF('1. Order'!J418=\"\",\"\",'1. Order'!J418)","v":""},{"$f":"IF('1. Order'!K418=\"\",\"\",'1. Order'!K418)","v":""},{"$f":"IF('1. Order'!M418=\"\",\"\",'1. Order'!M418)","v":""},null,null,{"$f":"IF('1. Order'!AS418=\"\",\"\",'1. Order'!AS418)","v":""},{"$f":"IF('1. Order'!AF418=\"\",\"\",'1. Order'!AF418)","v":""}]
[{"$f":"IF('1. Order'!B419=\"\",\"\",'1. Order'!B419)","v":""},{"$f":"IF('1. Order'!I419=\"\",\"\",'1. Order'!I419)","v":""},{"$f":"IF('1. Order'!J419=\"\",\"\",'1. Order'!J419)","v":""},{"$f":"IF('1. Order'!K419=\"\",\"\",'1. Order'!K419)","v":""},{"$f":"IF('1. Order'!M419=\"\",\"\",'1. Order'!M419)","v":""},null,null,{"$f":"IF('1. Order'!AS419=\"\",\"\",'1. Order'!AS419)","v":""},{"$f":"IF('1. Order'!AF419=\"\",\"\",'1. Order'!AF419)","v":""}]
[{"$f":"IF('1. Order'!B420=\"\",\"\",'1. Order'!B420)","v":""},{"$f":"IF('1. Order'!I420=\"\",\"\",'1. Order'!I420)","v":""},{"$f":"IF('1. Order'!J420=\"\",\"\",'1. Order'!J420)","v":""},{"$f":"IF('1. Order'!K420=\"\",\"\",'1. Order'!K420)","v":""},{"$f":"IF('1. Order'!M420=\"\",\"\",'1. Order'!M420)","v":""},null,null,{"$f":"IF('1. Order'!AS420=\"\",\"\",'1. Order'!AS420)","v":""},{"$f":"IF('1. Order'!AF420=\"\",\"\",'1. Order'!AF420)","v":""}]
[{"$f":"IF('1. Order'!B421=\"\",\"\",'1. Order'!B421)","v":""},{"$f":"IF('1. Order'!I421=\"\",\"\",'1. Order'!I421)","v":""},{"$f":"IF('1. Order'!J421=\"\",\"\",'1. Order'!J421)","v":""},{"$f":"IF('1. Order'!K421=\"\",\"\",'1. Order'!K421)","v":""},{"$f":"IF('1. Order'!M421=\"\",\"\",'1. Order'!M421)","v":""},null,null,{"$f":"IF('1. Order'!AS421=\"\",\"\",'1. Order'!AS421)","v":""},{"$f":"IF('1. Order'!AF421=\"\",\"\",'1. Order'!AF421)","v":""}]
[{"$f":"IF('1. Order'!B422=\"\",\"\",'1. Order'!B422)","v":""},{"$f":"IF('1. Order'!I422=\"\",\"\",'1. Order'!I422)","v":""},{"$f":"IF('1. Order'!J422=\"\",\"\",'1. Order'!J422)","v":""},{"$f":"IF('1. Order'!K422=\"\",\"\",'1. Order'!K422)","v":""},{"$f":"IF('1. Order'!M422=\"\",\"\",'1. Order'!M422)","v":""},null,null,{"$f":"IF('1. Order'!AS422=\"\",\"\",'1. Order'!AS422)","v":""},{"$f":"IF('1. Order'!AF422=\"\",\"\",'1. Order'!AF422)","v":""}]
[{"$f":"IF('1. Order'!B423=\"\",\"\",'1. Order'!B423)","v":""},{"$f":"IF('1. Order'!I423=\"\",\"\",'1. Order'!I423)","v":""},{"$f":"IF('1. Order'!J423=\"\",\"\",'1. Order'!J423)","v":""},{"$f":"IF('1. Order'!K423=\"\",\"\",'1. Order'!K423)","v":""},{"$f":"IF('1. Order'!M423=\"\",\"\",'1. Order'!M423)","v":""},null,null,{"$f":"IF('1. Order'!AS423=\"\",\"\",'1. Order'!AS423)","v":""},{"$f":"IF('1. Order'!AF423=\"\",\"\",'1. Order'!AF423)","v":""}]
[{"$f":"IF('1. Order'!B424=\"\",\"\",'1. Order'!B424)","v":""},{"$f":"IF('1. Order'!I424=\"\",\"\",'1. Order'!I424)","v":""},{"$f":"IF('1. Order'!J424=\"\",\"\",'1. Order'!J424)","v":""},{"$f":"IF('1. Order'!K424=\"\",\"\",'1. Order'!K424)","v":""},{"$f":"IF('1. Order'!M424=\"\",\"\",'1. Order'!M424)","v":""},null,null,{"$f":"IF('1. Order'!AS424=\"\",\"\",'1. Order'!AS424)","v":""},{"$f":"IF('1. Order'!AF424=\"\",\"\",'1. Order'!AF424)","v":""}]
[{"$f":"IF('1. Order'!B425=\"\",\"\",'1. Order'!B425)","v":""},{"$f":"IF('1. Order'!I425=\"\",\"\",'1. Order'!I425)","v":""},{"$f":"IF('1. Order'!J425=\"\",\"\",'1. Order'!J425)","v":""},{"$f":"IF('1. Order'!K425=\"\",\"\",'1. Order'!K425)","v":""},{"$f":"IF('1. Order'!M425=\"\",\"\",'1. Order'!M425)","v":""},null,null,{"$f":"IF('1. Order'!AS425=\"\",\"\",'1. Order'!AS425)","v":""},{"$f":"IF('1. Order'!AF425=\"\",\"\",'1. Order'!AF425)","v":""}]
[{"$f":"IF('1. Order'!B426=\"\",\"\",'1. Order'!B426)","v":""},{"$f":"IF('1. Order'!I426=\"\",\"\",'1. Order'!I426)","v":""},{"$f":"IF('1. Order'!J426=\"\",\"\",'1. Order'!J426)","v":""},{"$f":"IF('1. Order'!K426=\"\",\"\",'1. Order'!K426)","v":""},{"$f":"IF('1. Order'!M426=\"\",\"\",'1. Order'!M426)","v":""},null,null,{"$f":"IF('1. Order'!AS426=\"\",\"\",'1. Order'!AS426)","v":""},{"$f":"IF('1. Order'!AF426=\"\",\"\",'1. Order'!AF426)","v":""}]
[{"$f":"IF('1. Order'!B427=\"\",\"\",'1. Order'!B427)","v":""},{"$f":"IF('1. Order'!I427=\"\",\"\",'1. Order'!I427)","v":""},{"$f":"IF('1. Order'!J427=\"\",\"\",'1. Order'!J427)","v":""},{"$f":"IF('1. Order'!K427=\"\",\"\",'1. Order'!K427)","v":""},{"$f":"IF('1. Order'!M427=\"\",\"\",'1. Order'!M427)","v":""},null,null,{"$f":"IF('1. Order'!AS427=\"\",\"\",'1. Order'!AS427)","v":""},{"$f":"IF('1. Order'!AF427=\"\",\"\",'1. Order'!AF427)","v":""}]
[{"$f":"IF('1. Order'!B428=\"\",\"\",'1. Order'!B428)","v":""},{"$f":"IF('1. Order'!I428=\"\",\"\",'1. Order'!I428)","v":""},{"$f":"IF('1. Order'!J428=\"\",\"\",'1. Order'!J428)","v":""},{"$f":"IF('1. Order'!K428=\"\",\"\",'1. Order'!K428)","v":""},{"$f":"IF('1. Order'!M428=\"\",\"\",'1. Order'!M428)","v":""},null,null,{"$f":"IF('1. Order'!AS428=\"\",\"\",'1. Order'!AS428)","v":""},{"$f":"IF('1. Order'!AF428=\"\",\"\",'1. Order'!AF428)","v":""}]
[{"$f":"IF('1. Order'!B429=\"\",\"\",'1. Order'!B429)","v":""},{"$f":"IF('1. Order'!I429=\"\",\"\",'1. Order'!I429)","v":""},{"$f":"IF('1. Order'!J429=\"\",\"\",'1. Order'!J429)","v":""},{"$f":"IF('1. Order'!K429=\"\",\"\",'1. Order'!K429)","v":""},{"$f":"IF('1. Order'!M429=\"\",\"\",'1. Order'!M429)","v":""},null,null,{"$f":"IF('1. Order'!AS429=\"\",\"\",'1. Order'!AS429)","v":""},{"$f":"IF('1. Order'!AF429=\"\",\"\",'1. Order'!AF429)","v":""}]
[{"$f":"IF('1. Order'!B430=\"\",\"\",'1. Order'!B430)","v":""},{"$f":"IF('1. Order'!I430=\"\",\"\",'1. Order'!I430)","v":""},{"$f":"IF('1. Order'!J430=\"\",\"\",'1. Order'!J430)","v":""},{"$f":"IF('1. Order'!K430=\"\",\"\",'1. Order'!K430)","v":""},{"$f":"IF('1. Order'!M430=\"\",\"\",'1. Order'!M430)","v":""},null,null,{"$f":"IF('1. Order'!AS430=\"\",\"\",'1. Order'!AS430)","v":""},{"$f":"IF('1. Order'!AF430=\"\",\"\",'1. Order'!AF430)","v":""}]
[{"$f":"IF('1. Order'!B431=\"\",\"\",'1. Order'!B431)","v":""},{"$f":"IF('1. Order'!I431=\"\",\"\",'1. Order'!I431)","v":""},{"$f":"IF('1. Order'!J431=\"\",\"\",'1. Order'!J431)","v":""},{"$f":"IF('1. Order'!K431=\"\",\"\",'1. Order'!K431)","v":""},{"$f":"IF('1. Order'!M431=\"\",\"\",'1. Order'!M431)","v":""},null,null,{"$f":"IF('1. Order'!AS431=\"\",\"\",'1. Order'!AS431)","v":""},{"$f":"IF('1. Order'!AF431=\"\",\"\",'1. Order'!AF431)","v":""}]
[{"$f":"IF('1. Order'!B432=\"\",\"\",'1. Order'!B432)","v":""},{"$f":"IF('1. Order'!I432=\"\",\"\",'1. Order'!I432)","v":""},{"$f":"IF('1. Order'!J432=\"\",\"\",'1. Order'!J432)","v":""},{"$f":"IF('1. Order'!K432=\"\",\"\",'1. Order'!K432)","v":""},{"$f":"IF('1. Order'!M432=\"\",\"\",'1. Order'!M432)","v":""},null,null,{"$f":"IF('1. Order'!AS432=\"\",\"\",'1. Order'!AS432)","v":""},{"$f":"IF('1. Order'!AF432=\"\",\"\",'1. Order'!AF432)","v":""}]
[{"$f":"IF('1. Order'!B433=\"\",\"\",'1. Order'!B433)","v":""},{"$f":"IF('1. Order'!I433=\"\",\"\",'1. Order'!I433)","v":""},{"$f":"IF('1. Order'!J433=\"\",\"\",'1. Order'!J433)","v":""},{"$f":"IF('1. Order'!K433=\"\",\"\",'1. Order'!K433)","v":""},{"$f":"IF('1. Order'!M433=\"\",\"\",'1. Order'!M433)","v":""},null,null,{"$f":"IF('1. Order'!AS433=\"\",\"\",'1. Order'!AS433)","v":""},{"$f":"IF('1. Order'!AF433=\"\",\"\",'1. Order'!AF433)","v":""}]
[{"$f":"IF('1. Order'!B434=\"\",\"\",'1. Order'!B434)","v":""},{"$f":"IF('1. Order'!I434=\"\",\"\",'1. Order'!I434)","v":""},{"$f":"IF('1. Order'!J434=\"\",\"\",'1. Order'!J434)","v":""},{"$f":"IF('1. Order'!K434=\"\",\"\",'1. Order'!K434)","v":""},{"$f":"IF('1. Order'!M434=\"\",\"\",'1. Order'!M434)","v":""},null,null,{"$f":"IF('1. Order'!AS434=\"\",\"\",'1. Order'!AS434)","v":""},{"$f":"IF('1. Order'!AF434=\"\",\"\",'1. Order'!AF434)","v":""}]
[{"$f":"IF('1. Order'!B435=\"\",\"\",'1. Order'!B435)","v":""},{"$f":"IF('1. Order'!I435=\"\",\"\",'1. Order'!I435)","v":""},{"$f":"IF('1. Order'!J435=\"\",\"\",'1. Order'!J435)","v":""},{"$f":"IF('1. Order'!K435=\"\",\"\",'1. Order'!K435)","v":""},{"$f":"IF('1. Order'!M435=\"\",\"\",'1. Order'!M435)","v":""},null,null,{"$f":"IF('1. Order'!AS435=\"\",\"\",'1. Order'!AS435)","v":""},{"$f":"IF('1. Order'!AF435=\"\",\"\",'1. Order'!AF435)","v":""}]
[{"$f":"IF('1. Order'!B436=\"\",\"\",'1. Order'!B436)","v":""},{"$f":"IF('1. Order'!I436=\"\",\"\",'1. Order'!I436)","v":""},{"$f":"IF('1. Order'!J436=\"\",\"\",'1. Order'!J436)","v":""},{"$f":"IF('1. Order'!K436=\"\",\"\",'1. Order'!K436)","v":""},{"$f":"IF('1. Order'!M436=\"\",\"\",'1. Order'!M436)","v":""},null,null,{"$f":"IF('1. Order'!AS436=\"\",\"\",'1. Order'!AS436)","v":""},{"$f":"IF('1. Order'!AF436=\"\",\"\",'1. Order'!AF436)","v":""}]
[{"$f":"IF('1. Order'!B437=\"\",\"\",'1. Order'!B437)","v":""},{"$f":"IF('1. Order'!I437=\"\",\"\",'1. Order'!I437)","v":""},{"$f":"IF('1. Order'!J437=\"\",\"\",'1. Order'!J437)","v":""},{"$f":"IF('1. Order'!K437=\"\",\"\",'1. Order'!K437)","v":""},{"$f":"IF('1. Order'!M437=\"\",\"\",'1. Order'!M437)","v":""},null,null,{"$f":"IF('1. Order'!AS437=\"\",\"\",'1. Order'!AS437)","v":""},{"$f":"IF('1. Order'!AF437=\"\",\"\",'1. Order'!AF437)","v":""}]
[{"$f":"IF('1. Order'!B438=\"\",\"\",'1. Order'!B438)","v":""},{"$f":"IF('1. Order'!I438=\"\",\"\",'1. Order'!I438)","v":""},{"$f":"IF('1. Order'!J438=\"\",\"\",'1. Order'!J438)","v":""},{"$f":"IF('1. Order'!K438=\"\",\"\",'1. Order'!K438)","v":""},{"$f":"IF('1. Order'!M438=\"\",\"\",'1. Order'!M438)","v":""},null,null,{"$f":"IF('1. Order'!AS438=\"\",\"\",'1. Order'!AS438)","v":""},{"$f":"IF('1. Order'!AF438=\"\",\"\",'1. Order'!AF438)","v":""}]
[{"$f":"IF('1. Order'!B439=\"\",\"\",'1. Order'!B439)","v":""},{"$f":"IF('1. Order'!I439=\"\",\"\",'1. Order'!I439)","v":""},{"$f":"IF('1. Order'!J439=\"\",\"\",'1. Order'!J439)","v":""},{"$f":"IF('1. Order'!K439=\"\",\"\",'1. Order'!K439)","v":""},{"$f":"IF('1. Order'!M439=\"\",\"\",'1. Order'!M439)","v":""},null,null,{"$f":"IF('1. Order'!AS439=\"\",\"\",'1. Order'!AS439)","v":""},{"$f":"IF('1. Order'!AF439=\"\",\"\",'1. Order'!AF439)","v":""}]
[{"$f":"IF('1. Order'!B440=\"\",\"\",'1. Order'!B440)","v":""},{"$f":"IF('1. Order'!I440=\"\",\"\",'1. Order'!I440)","v":""},{"$f":"IF('1. Order'!J440=\"\",\"\",'1. Order'!J440)","v":""},{"$f":"IF('1. Order'!K440=\"\",\"\",'1. Order'!K440)","v":""},{"$f":"IF('1. Order'!M440=\"\",\"\",'1. Order'!M440)","v":""},null,null,{"$f":"IF('1. Order'!AS440=\"\",\"\",'1. Order'!AS440)","v":""},{"$f":"IF('1. Order'!AF440=\"\",\"\",'1. Order'!AF440)","v":""}]
[{"$f":"IF('1. Order'!B441=\"\",\"\",'1. Order'!B441)","v":""},{"$f":"IF('1. Order'!I441=\"\",\"\",'1. Order'!I441)","v":""},{"$f":"IF('1. Order'!J441=\"\",\"\",'1. Order'!J441)","v":""},{"$f":"IF('1. Order'!K441=\"\",\"\",'1. Order'!K441)","v":""},{"$f":"IF('1. Order'!M441=\"\",\"\",'1. Order'!M441)","v":""},null,null,{"$f":"IF('1. Order'!AS441=\"\",\"\",'1. Order'!AS441)","v":""},{"$f":"IF('1. Order'!AF441=\"\",\"\",'1. Order'!AF441)","v":""}]
[{"$f":"IF('1. Order'!B442=\"\",\"\",'1. Order'!B442)","v":""},{"$f":"IF('1. Order'!I442=\"\",\"\",'1. Order'!I442)","v":""},{"$f":"IF('1. Order'!J442=\"\",\"\",'1. Order'!J442)","v":""},{"$f":"IF('1. Order'!K442=\"\",\"\",'1. Order'!K442)","v":""},{"$f":"IF('1. Order'!M442=\"\",\"\",'1. Order'!M442)","v":""},null,null,{"$f":"IF('1. Order'!AS442=\"\",\"\",'1. Order'!AS442)","v":""},{"$f":"IF('1. Order'!AF442=\"\",\"\",'1. Order'!AF442)","v":""}]
[{"$f":"IF('1. Order'!B443=\"\",\"\",'1. Order'!B443)","v":""},{"$f":"IF('1. Order'!I443=\"\",\"\",'1. Order'!I443)","v":""},{"$f":"IF('1. Order'!J443=\"\",\"\",'1. Order'!J443)","v":""},{"$f":"IF('1. Order'!K443=\"\",\"\",'1. Order'!K443)","v":""},{"$f":"IF('1. Order'!M443=\"\",\"\",'1. Order'!M443)","v":""},null,null,{"$f":"IF('1. Order'!AS443=\"\",\"\",'1. Order'!AS443)","v":""},{"$f":"IF('1. Order'!AF443=\"\",\"\",'1. Order'!AF443)","v":""}]
[{"$f":"IF('1. Order'!B444=\"\",\"\",'1. Order'!B444)","v":""},{"$f":"IF('1. Order'!I444=\"\",\"\",'1. Order'!I444)","v":""},{"$f":"IF('1. Order'!J444=\"\",\"\",'1. Order'!J444)","v":""},{"$f":"IF('1. Order'!K444=\"\",\"\",'1. Order'!K444)","v":""},{"$f":"IF('1. Order'!M444=\"\",\"\",'1. Order'!M444)","v":""},null,null,{"$f":"IF('1. Order'!AS444=\"\",\"\",'1. Order'!AS444)","v":""},{"$f":"IF('1. Order'!AF444=\"\",\"\",'1. Order'!AF444)","v":""}]
[{"$f":"IF('1. Order'!B445=\"\",\"\",'1. Order'!B445)","v":""},{"$f":"IF('1. Order'!I445=\"\",\"\",'1. Order'!I445)","v":""},{"$f":"IF('1. Order'!J445=\"\",\"\",'1. Order'!J445)","v":""},{"$f":"IF('1. Order'!K445=\"\",\"\",'1. Order'!K445)","v":""},{"$f":"IF('1. Order'!M445=\"\",\"\",'1. Order'!M445)","v":""},null,null,{"$f":"IF('1. Order'!AS445=\"\",\"\",'1. Order'!AS445)","v":""},{"$f":"IF('1. Order'!AF445=\"\",\"\",'1. Order'!AF445)","v":""}]
[{"$f":"IF('1. Order'!B446=\"\",\"\",'1. Order'!B446)","v":""},{"$f":"IF('1. Order'!I446=\"\",\"\",'1. Order'!I446)","v":""},{"$f":"IF('1. Order'!J446=\"\",\"\",'1. Order'!J446)","v":""},{"$f":"IF('1. Order'!K446=\"\",\"\",'1. Order'!K446)","v":""},{"$f":"IF('1. Order'!M446=\"\",\"\",'1. Order'!M446)","v":""},null,null,{"$f":"IF('1. Order'!AS446=\"\",\"\",'1. Order'!AS446)","v":""},{"$f":"IF('1. Order'!AF446=\"\",\"\",'1. Order'!AF446)","v":""}]
[{"$f":"IF('1. Order'!B447=\"\",\"\",'1. Order'!B447)","v":""},{"$f":"IF('1. Order'!I447=\"\",\"\",'1. Order'!I447)","v":""},{"$f":"IF('1. Order'!J447=\"\",\"\",'1. Order'!J447)","v":""},{"$f":"IF('1. Order'!K447=\"\",\"\",'1. Order'!K447)","v":""},{"$f":"IF('1. Order'!M447=\"\",\"\",'1. Order'!M447)","v":""},null,null,{"$f":"IF('1. Order'!AS447=\"\",\"\",'1. Order'!AS447)","v":""},{"$f":"IF('1. Order'!AF447=\"\",\"\",'1. Order'!AF447)","v":""}]
[{"$f":"IF('1. Order'!B448=\"\",\"\",'1. Order'!B448)","v":""},{"$f":"IF('1. Order'!I448=\"\",\"\",'1. Order'!I448)","v":""},{"$f":"IF('1. Order'!J448=\"\",\"\",'1. Order'!J448)","v":""},{"$f":"IF('1. Order'!K448=\"\",\"\",'1. Order'!K448)","v":""},{"$f":"IF('1. Order'!M448=\"\",\"\",'1. Order'!M448)","v":""},null,null,{"$f":"IF('1. Order'!AS448=\"\",\"\",'1. Order'!AS448)","v":""},{"$f":"IF('1. Order'!AF448=\"\",\"\",'1. Order'!AF448)","v":""}]
[{"$f":"IF('1. Order'!B449=\"\",\"\",'1. Order'!B449)","v":""},{"$f":"IF('1. Order'!I449=\"\",\"\",'1. Order'!I449)","v":""},{"$f":"IF('1. Order'!J449=\"\",\"\",'1. Order'!J449)","v":""},{"$f":"IF('1. Order'!K449=\"\",\"\",'1. Order'!K449)","v":""},{"$f":"IF('1. Order'!M449=\"\",\"\",'1. Order'!M449)","v":""},null,null,{"$f":"IF('1. Order'!AS449=\"\",\"\",'1. Order'!AS449)","v":""},{"$f":"IF('1. Order'!AF449=\"\",\"\",'1. Order'!AF449)","v":""}]
[{"$f":"IF('1. Order'!B450=\"\",\"\",'1. Order'!B450)","v":""},{"$f":"IF('1. Order'!I450=\"\",\"\",'1. Order'!I450)","v":""},{"$f":"IF('1. Order'!J450=\"\",\"\",'1. Order'!J450)","v":""},{"$f":"IF('1. Order'!K450=\"\",\"\",'1. Order'!K450)","v":""},{"$f":"IF('1. Order'!M450=\"\",\"\",'1. Order'!M450)","v":""},null,null,{"$f":"IF('1. Order'!AS450=\"\",\"\",'1. Order'!AS450)","v":""},{"$f":"IF('1. Order'!AF450=\"\",\"\",'1. Order'!AF450)","v":""}]
[{"$f":"IF('1. Order'!B451=\"\",\"\",'1. Order'!B451)","v":""},{"$f":"IF('1. Order'!I451=\"\",\"\",'1. Order'!I451)","v":""},{"$f":"IF('1. Order'!J451=\"\",\"\",'1. Order'!J451)","v":""},{"$f":"IF('1. Order'!K451=\"\",\"\",'1. Order'!K451)","v":""},{"$f":"IF('1. Order'!M451=\"\",\"\",'1. Order'!M451)","v":""},null,null,{"$f":"IF('1. Order'!AS451=\"\",\"\",'1. Order'!AS451)","v":""},{"$f":"IF('1. Order'!AF451=\"\",\"\",'1. Order'!AF451)","v":""}]
[{"$f":"IF('1. Order'!B452=\"\",\"\",'1. Order'!B452)","v":""},{"$f":"IF('1. Order'!I452=\"\",\"\",'1. Order'!I452)","v":""},{"$f":"IF('1. Order'!J452=\"\",\"\",'1. Order'!J452)","v":""},{"$f":"IF('1. Order'!K452=\"\",\"\",'1. Order'!K452)","v":""},{"$f":"IF('1. Order'!M452=\"\",\"\",'1. Order'!M452)","v":""},null,null,{"$f":"IF('1. Order'!AS452=\"\",\"\",'1. Order'!AS452)","v":""},{"$f":"IF('1. Order'!AF452=\"\",\"\",'1. Order'!AF452)","v":""}]
[{"$f":"IF('1. Order'!B453=\"\",\"\",'1. Order'!B453)","v":""},{"$f":"IF('1. Order'!I453=\"\",\"\",'1. Order'!I453)","v":""},{"$f":"IF('1. Order'!J453=\"\",\"\",'1. Order'!J453)","v":""},{"$f":"IF('1. Order'!K453=\"\",\"\",'1. Order'!K453)","v":""},{"$f":"IF('1. Order'!M453=\"\",\"\",'1. Order'!M453)","v":""},null,null,{"$f":"IF('1. Order'!AS453=\"\",\"\",'1. Order'!AS453)","v":""},{"$f":"IF('1. Order'!AF453=\"\",\"\",'1. Order'!AF453)","v":""}]
[{"$f":"IF('1. Order'!B454=\"\",\"\",'1. Order'!B454)","v":""},{"$f":"IF('1. Order'!I454=\"\",\"\",'1. Order'!I454)","v":""},{"$f":"IF('1. Order'!J454=\"\",\"\",'1. Order'!J454)","v":""},{"$f":"IF('1. Order'!K454=\"\",\"\",'1. Order'!K454)","v":""},{"$f":"IF('1. Order'!M454=\"\",\"\",'1. Order'!M454)","v":""},null,null,{"$f":"IF('1. Order'!AS454=\"\",\"\",'1. Order'!AS454)","v":""},{"$f":"IF('1. Order'!AF454=\"\",\"\",'1. Order'!AF454)","v":""}]
[{"$f":"IF('1. Order'!B455=\"\",\"\",'1. Order'!B455)","v":""},{"$f":"IF('1. Order'!I455=\"\",\"\",'1. Order'!I455)","v":""},{"$f":"IF('1. Order'!J455=\"\",\"\",'1. Order'!J455)","v":""},{"$f":"IF('1. Order'!K455=\"\",\"\",'1. Order'!K455)","v":""},{"$f":"IF('1. Order'!M455=\"\",\"\",'1. Order'!M455)","v":""},null,null,{"$f":"IF('1. Order'!AS455=\"\",\"\",'1. Order'!AS455)","v":""},{"$f":"IF('1. Order'!AF455=\"\",\"\",'1. Order'!AF455)","v":""}]
[{"$f":"IF('1. Order'!B456=\"\",\"\",'1. Order'!B456)","v":""},{"$f":"IF('1. Order'!I456=\"\",\"\",'1. Order'!I456)","v":""},{"$f":"IF('1. Order'!J456=\"\",\"\",'1. Order'!J456)","v":""},{"$f":"IF('1. Order'!K456=\"\",\"\",'1. Order'!K456)","v":""},{"$f":"IF('1. Order'!M456=\"\",\"\",'1. Order'!M456)","v":""},null,null,{"$f":"IF('1. Order'!AS456=\"\",\"\",'1. Order'!AS456)","v":""},{"$f":"IF('1. Order'!AF456=\"\",\"\",'1. Order'!AF456)","v":""}]
[{"$f":"IF('1. Order'!B457=\"\",\"\",'1. Order'!B457)","v":""},{"$f":"IF('1. Order'!I457=\"\",\"\",'1. Order'!I457)","v":""},{"$f":"IF('1. Order'!J457=\"\",\"\",'1. Order'!J457)","v":""},{"$f":"IF('1. Order'!K457=\"\",\"\",'1. Order'!K457)","v":""},{"$f":"IF('1. Order'!M457=\"\",\"\",'1. Order'!M457)","v":""},null,null,{"$f":"IF('1. Order'!AS457=\"\",\"\",'1. Order'!AS457)","v":""},{"$f":"IF('1. Order'!AF457=\"\",\"\",'1. Order'!AF457)","v":""}]
[{"$f":"IF('1. Order'!B458=\"\",\"\",'1. Order'!B458)","v":""},{"$f":"IF('1. Order'!I458=\"\",\"\",'1. Order'!I458)","v":""},{"$f":"IF('1. Order'!J458=\"\",\"\",'1. Order'!J458)","v":""},{"$f":"IF('1. Order'!K458=\"\",\"\",'1. Order'!K458)","v":""},{"$f":"IF('1. Order'!M458=\"\",\"\",'1. Order'!M458)","v":""},null,null,{"$f":"IF('1. Order'!AS458=\"\",\"\",'1. Order'!AS458)","v":""},{"$f":"IF('1. Order'!AF458=\"\",\"\",'1. Order'!AF458)","v":""}]
[{"$f":"IF('1. Order'!B459=\"\",\"\",'1. Order'!B459)","v":""},{"$f":"IF('1. Order'!I459=\"\",\"\",'1. Order'!I459)","v":""},{"$f":"IF('1. Order'!J459=\"\",\"\",'1. Order'!J459)","v":""},{"$f":"IF('1. Order'!K459=\"\",\"\",'1. Order'!K459)","v":""},{"$f":"IF('1. Order'!M459=\"\",\"\",'1. Order'!M459)","v":""},null,null,{"$f":"IF('1. Order'!AS459=\"\",\"\",'1. Order'!AS459)","v":""},{"$f":"IF('1. Order'!AF459=\"\",\"\",'1. Order'!AF459)","v":""}]
[{"$f":"IF('1. Order'!B460=\"\",\"\",'1. Order'!B460)","v":""},{"$f":"IF('1. Order'!I460=\"\",\"\",'1. Order'!I460)","v":""},{"$f":"IF('1. Order'!J460=\"\",\"\",'1. Order'!J460)","v":""},{"$f":"IF('1. Order'!K460=\"\",\"\",'1. Order'!K460)","v":""},{"$f":"IF('1. Order'!M460=\"\",\"\",'1. Order'!M460)","v":""},null,null,{"$f":"IF('1. Order'!AS460=\"\",\"\",'1. Order'!AS460)","v":""},{"$f":"IF('1. Order'!AF460=\"\",\"\",'1. Order'!AF460)","v":""}]
[{"$f":"IF('1. Order'!B461=\"\",\"\",'1. Order'!B461)","v":""},{"$f":"IF('1. Order'!I461=\"\",\"\",'1. Order'!I461)","v":""},{"$f":"IF('1. Order'!J461=\"\",\"\",'1. Order'!J461)","v":""},{"$f":"IF('1. Order'!K461=\"\",\"\",'1. Order'!K461)","v":""},{"$f":"IF('1. Order'!M461=\"\",\"\",'1. Order'!M461)","v":""},null,null,{"$f":"IF('1. Order'!AS461=\"\",\"\",'1. Order'!AS461)","v":""},{"$f":"IF('1. Order'!AF461=\"\",\"\",'1. Order'!AF461)","v":""}]
[{"$f":"IF('1. Order'!B462=\"\",\"\",'1. Order'!B462)","v":""},{"$f":"IF('1. Order'!I462=\"\",\"\",'1. Order'!I462)","v":""},{"$f":"IF('1. Order'!J462=\"\",\"\",'1. Order'!J462)","v":""},{"$f":"IF('1. Order'!K462=\"\",\"\",'1. Order'!K462)","v":""},{"$f":"IF('1. Order'!M462=\"\",\"\",'1. Order'!M462)","v":""},null,null,{"$f":"IF('1. Order'!AS462=\"\",\"\",'1. Order'!AS462)","v":""},{"$f":"IF('1. Order'!AF462=\"\",\"\",'1. Order'!AF462)","v":""}]
[{"$f":"IF('1. Order'!B463=\"\",\"\",'1. Order'!B463)","v":""},{"$f":"IF('1. Order'!I463=\"\",\"\",'1. Order'!I463)","v":""},{"$f":"IF('1. Order'!J463=\"\",\"\",'1. Order'!J463)","v":""},{"$f":"IF('1. Order'!K463=\"\",\"\",'1. Order'!K463)","v":""},{"$f":"IF('1. Order'!M463=\"\",\"\",'1. Order'!M463)","v":""},null,null,{"$f":"IF('1. Order'!AS463=\"\",\"\",'1. Order'!AS463)","v":""},{"$f":"IF('1. Order'!AF463=\"\",\"\",'1. Order'!AF463)","v":""}]
[{"$f":"IF('1. Order'!B464=\"\",\"\",'1. Order'!B464)","v":""},{"$f":"IF('1. Order'!I464=\"\",\"\",'1. Order'!I464)","v":""},{"$f":"IF('1. Order'!J464=\"\",\"\",'1. Order'!J464)","v":""},{"$f":"IF('1. Order'!K464=\"\",\"\",'1. Order'!K464)","v":""},{"$f":"IF('1. Order'!M464=\"\",\"\",'1. Order'!M464)","v":""},null,null,{"$f":"IF('1. Order'!AS464=\"\",\"\",'1. Order'!AS464)","v":""},{"$f":"IF('1. Order'!AF464=\"\",\"\",'1. Order'!AF464)","v":""}]
[{"$f":"IF('1. Order'!B465=\"\",\"\",'1. Order'!B465)","v":""},{"$f":"IF('1. Order'!I465=\"\",\"\",'1. Order'!I465)","v":""},{"$f":"IF('1. Order'!J465=\"\",\"\",'1. Order'!J465)","v":""},{"$f":"IF('1. Order'!K465=\"\",\"\",'1. Order'!K465)","v":""},{"$f":"IF('1. Order'!M465=\"\",\"\",'1. Order'!M465)","v":""},null,null,{"$f":"IF('1. Order'!AS465=\"\",\"\",'1. Order'!AS465)","v":""},{"$f":"IF('1. Order'!AF465=\"\",\"\",'1. Order'!AF465)","v":""}]
[{"$f":"IF('1. Order'!B466=\"\",\"\",'1. Order'!B466)","v":""},{"$f":"IF('1. Order'!I466=\"\",\"\",'1. Order'!I466)","v":""},{"$f":"IF('1. Order'!J466=\"\",\"\",'1. Order'!J466)","v":""},{"$f":"IF('1. Order'!K466=\"\",\"\",'1. Order'!K466)","v":""},{"$f":"IF('1. Order'!M466=\"\",\"\",'1. Order'!M466)","v":""},null,null,{"$f":"IF('1. Order'!AS466=\"\",\"\",'1. Order'!AS466)","v":""},{"$f":"IF('1. Order'!AF466=\"\",\"\",'1. Order'!AF466)","v":""}]
[{"$f":"IF('1. Order'!B467=\"\",\"\",'1. Order'!B467)","v":""},{"$f":"IF('1. Order'!I467=\"\",\"\",'1. Order'!I467)","v":""},{"$f":"IF('1. Order'!J467=\"\",\"\",'1. Order'!J467)","v":""},{"$f":"IF('1. Order'!K467=\"\",\"\",'1. Order'!K467)","v":""},{"$f":"IF('1. Order'!M467=\"\",\"\",'1. Order'!M467)","v":""},null,null,{"$f":"IF('1. Order'!AS467=\"\",\"\",'1. Order'!AS467)","v":""},{"$f":"IF('1. Order'!AF467=\"\",\"\",'1. Order'!AF467)","v":""}]
[{"$f":"IF('1. Order'!B468=\"\",\"\",'1. Order'!B468)","v":""},{"$f":"IF('1. Order'!I468=\"\",\"\",'1. Order'!I468)","v":""},{"$f":"IF('1. Order'!J468=\"\",\"\",'1. Order'!J468)","v":""},{"$f":"IF('1. Order'!K468=\"\",\"\",'1. Order'!K468)","v":""},{"$f":"IF('1. Order'!M468=\"\",\"\",'1. Order'!M468)","v":""},null,null,{"$f":"IF('1. Order'!AS468=\"\",\"\",'1. Order'!AS468)","v":""},{"$f":"IF('1. Order'!AF468=\"\",\"\",'1. Order'!AF468)","v":""}]
[{"$f":"IF('1. Order'!B469=\"\",\"\",'1. Order'!B469)","v":""},{"$f":"IF('1. Order'!I469=\"\",\"\",'1. Order'!I469)","v":""},{"$f":"IF('1. Order'!J469=\"\",\"\",'1. Order'!J469)","v":""},{"$f":"IF('1. Order'!K469=\"\",\"\",'1. Order'!K469)","v":""},{"$f":"IF('1. Order'!M469=\"\",\"\",'1. Order'!M469)","v":""},null,null,{"$f":"IF('1. Order'!AS469=\"\",\"\",'1. Order'!AS469)","v":""},{"$f":"IF('1. Order'!AF469=\"\",\"\",'1. Order'!AF469)","v":""}]
[{"$f":"IF('1. Order'!B470=\"\",\"\",'1. Order'!B470)","v":""},{"$f":"IF('1. Order'!I470=\"\",\"\",'1. Order'!I470)","v":""},{"$f":"IF('1. Order'!J470=\"\",\"\",'1. Order'!J470)","v":""},{"$f":"IF('1. Order'!K470=\"\",\"\",'1. Order'!K470)","v":""},{"$f":"IF('1. Order'!M470=\"\",\"\",'1. Order'!M470)","v":""},null,null,{"$f":"IF('1. Order'!AS470=\"\",\"\",'1. Order'!AS470)","v":""},{"$f":"IF('1. Order'!AF470=\"\",\"\",'1. Order'!AF470)","v":""}]
[{"$f":"IF('1. Order'!B471=\"\",\"\",'1. Order'!B471)","v":""},{"$f":"IF('1. Order'!I471=\"\",\"\",'1. Order'!I471)","v":""},{"$f":"IF('1. Order'!J471=\"\",\"\",'1. Order'!J471)","v":""},{"$f":"IF('1. Order'!K471=\"\",\"\",'1. Order'!K471)","v":""},{"$f":"IF('1. Order'!M471=\"\",\"\",'1. Order'!M471)","v":""},null,null,{"$f":"IF('1. Order'!AS471=\"\",\"\",'1. Order'!AS471)","v":""},{"$f":"IF('1. Order'!AF471=\"\",\"\",'1. Order'!AF471)","v":""}]
[{"$f":"IF('1. Order'!B472=\"\",\"\",'1. Order'!B472)","v":""},{"$f":"IF('1. Order'!I472=\"\",\"\",'1. Order'!I472)","v":""},{"$f":"IF('1. Order'!J472=\"\",\"\",'1. Order'!J472)","v":""},{"$f":"IF('1. Order'!K472=\"\",\"\",'1. Order'!K472)","v":""},{"$f":"IF('1. Order'!M472=\"\",\"\",'1. Order'!M472)","v":""},null,null,{"$f":"IF('1. Order'!AS472=\"\",\"\",'1. Order'!AS472)","v":""},{"$f":"IF('1. Order'!AF472=\"\",\"\",'1. Order'!AF472)","v":""}]
[{"$f":"IF('1. Order'!B473=\"\",\"\",'1. Order'!B473)","v":""},{"$f":"IF('1. Order'!I473=\"\",\"\",'1. Order'!I473)","v":""},{"$f":"IF('1. Order'!J473=\"\",\"\",'1. Order'!J473)","v":""},{"$f":"IF('1. Order'!K473=\"\",\"\",'1. Order'!K473)","v":""},{"$f":"IF('1. Order'!M473=\"\",\"\",'1. Order'!M473)","v":""},null,null,{"$f":"IF('1. Order'!AS473=\"\",\"\",'1. Order'!AS473)","v":""},{"$f":"IF('1. Order'!AF473=\"\",\"\",'1. Order'!AF473)","v":""}]
[{"$f":"IF('1. Order'!B474=\"\",\"\",'1. Order'!B474)","v":""},{"$f":"IF('1. Order'!I474=\"\",\"\",'1. Order'!I474)","v":""},{"$f":"IF('1. Order'!J474=\"\",\"\",'1. Order'!J474)","v":""},{"$f":"IF('1. Order'!K474=\"\",\"\",'1. Order'!K474)","v":""},{"$f":"IF('1. Order'!M474=\"\",\"\",'1. Order'!M474)","v":""},null,null,{"$f":"IF('1. Order'!AS474=\"\",\"\",'1. Order'!AS474)","v":""},{"$f":"IF('1. Order'!AF474=\"\",\"\",'1. Order'!AF474)","v":""}]
[{"$f":"IF('1. Order'!B475=\"\",\"\",'1. Order'!B475)","v":""},{"$f":"IF('1. Order'!I475=\"\",\"\",'1. Order'!I475)","v":""},{"$f":"IF('1. Order'!J475=\"\",\"\",'1. Order'!J475)","v":""},{"$f":"IF('1. Order'!K475=\"\",\"\",'1. Order'!K475)","v":""},{"$f":"IF('1. Order'!M475=\"\",\"\",'1. Order'!M475)","v":""},null,null,{"$f":"IF('1. Order'!AS475=\"\",\"\",'1. Order'!AS475)","v":""},{"$f":"IF('1. Order'!AF475=\"\",\"\",'1. Order'!AF475)","v":""}]
[{"$f":"IF('1. Order'!B476=\"\",\"\",'1. Order'!B476)","v":""},{"$f":"IF('1. Order'!I476=\"\",\"\",'1. Order'!I476)","v":""},{"$f":"IF('1. Order'!J476=\"\",\"\",'1. Order'!J476)","v":""},{"$f":"IF('1. Order'!K476=\"\",\"\",'1. Order'!K476)","v":""},{"$f":"IF('1. Order'!M476=\"\",\"\",'1. Order'!M476)","v":""},null,null,{"$f":"IF('1. Order'!AS476=\"\",\"\",'1. Order'!AS476)","v":""},{"$f":"IF('1. Order'!AF476=\"\",\"\",'1. Order'!AF476)","v":""}]
[{"$f":"IF('1. Order'!B477=\"\",\"\",'1. Order'!B477)","v":""},{"$f":"IF('1. Order'!I477=\"\",\"\",'1. Order'!I477)","v":""},{"$f":"IF('1. Order'!J477=\"\",\"\",'1. Order'!J477)","v":""},{"$f":"IF('1. Order'!K477=\"\",\"\",'1. Order'!K477)","v":""},{"$f":"IF('1. Order'!M477=\"\",\"\",'1. Order'!M477)","v":""},null,null,{"$f":"IF('1. Order'!AS477=\"\",\"\",'1. Order'!AS477)","v":""},{"$f":"IF('1. Order'!AF477=\"\",\"\",'1. Order'!AF477)","v":""}]
[{"$f":"IF('1. Order'!B478=\"\",\"\",'1. Order'!B478)","v":""},{"$f":"IF('1. Order'!I478=\"\",\"\",'1. Order'!I478)","v":""},{"$f":"IF('1. Order'!J478=\"\",\"\",'1. Order'!J478)","v":""},{"$f":"IF('1. Order'!K478=\"\",\"\",'1. Order'!K478)","v":""},{"$f":"IF('1. Order'!M478=\"\",\"\",'1. Order'!M478)","v":""},null,null,{"$f":"IF('1. Order'!AS478=\"\",\"\",'1. Order'!AS478)","v":""},{"$f":"IF('1. Order'!AF478=\"\",\"\",'1. Order'!AF478)","v":""}]
[{"$f":"IF('1. Order'!B479=\"\",\"\",'1. Order'!B479)","v":""},{"$f":"IF('1. Order'!I479=\"\",\"\",'1. Order'!I479)","v":""},{"$f":"IF('1. Order'!J479=\"\",\"\",'1. Order'!J479)","v":""},{"$f":"IF('1. Order'!K479=\"\",\"\",'1. Order'!K479)","v":""},{"$f":"IF('1. Order'!M479=\"\",\"\",'1. Order'!M479)","v":""},null,null,{"$f":"IF('1. Order'!AS479=\"\",\"\",'1. Order'!AS479)","v":""},{"$f":"IF('1. Order'!AF479=\"\",\"\",'1. Order'!AF479)","v":""}]
[{"$f":"IF('1. Order'!B480=\"\",\"\",'1. Order'!B480)","v":""},{"$f":"IF('1. Order'!I480=\"\",\"\",'1. Order'!I480)","v":""},{"$f":"IF('1. Order'!J480=\"\",\"\",'1. Order'!J480)","v":""},{"$f":"IF('1. Order'!K480=\"\",\"\",'1. Order'!K480)","v":""},{"$f":"IF('1. Order'!M480=\"\",\"\",'1. Order'!M480)","v":""},null,null,{"$f":"IF('1. Order'!AS480=\"\",\"\",'1. Order'!AS480)","v":""},{"$f":"IF('1. Order'!AF480=\"\",\"\",'1. Order'!AF480)","v":""}]
[{"$f":"IF('1. Order'!B481=\"\",\"\",'1. Order'!B481)","v":""},{"$f":"IF('1. Order'!I481=\"\",\"\",'1. Order'!I481)","v":""},{"$f":"IF('1. Order'!J481=\"\",\"\",'1. Order'!J481)","v":""},{"$f":"IF('1. Order'!K481=\"\",\"\",'1. Order'!K481)","v":""},{"$f":"IF('1. Order'!M481=\"\",\"\",'1. Order'!M481)","v":""},null,null,{"$f":"IF('1. Order'!AS481=\"\",\"\",'1. Order'!AS481)","v":""},{"$f":"IF('1. Order'!AF481=\"\",\"\",'1. Order'!AF481)","v":""}]
[{"$f":"IF('1. Order'!B482=\"\",\"\",'1. Order'!B482)","v":""},{"$f":"IF('1. Order'!I482=\"\",\"\",'1. Order'!I482)","v":""},{"$f":"IF('1. Order'!J482=\"\",\"\",'1. Order'!J482)","v":""},{"$f":"IF('1. Order'!K482=\"\",\"\",'1. Order'!K482)","v":""},{"$f":"IF('1. Order'!M482=\"\",\"\",'1. Order'!M482)","v":""},null,null,{"$f":"IF('1. Order'!AS482=\"\",\"\",'1. Order'!AS482)","v":""},{"$f":"IF('1. Order'!AF482=\"\",\"\",'1. Order'!AF482)","v":""}]
[{"$f":"IF('1. Order'!B483=\"\",\"\",'1. Order'!B483)","v":""},{"$f":"IF('1. Order'!I483=\"\",\"\",'1. Order'!I483)","v":""},{"$f":"IF('1. Order'!J483=\"\",\"\",'1. Order'!J483)","v":""},{"$f":"IF('1. Order'!K483=\"\",\"\",'1. Order'!K483)","v":""},{"$f":"IF('1. Order'!M483=\"\",\"\",'1. Order'!M483)","v":""},null,null,{"$f":"IF('1. Order'!AS483=\"\",\"\",'1. Order'!AS483)","v":""},{"$f":"IF('1. Order'!AF483=\"\",\"\",'1. Order'!AF483)","v":""}]
[{"$f":"IF('1. Order'!B484=\"\",\"\",'1. Order'!B484)","v":""},{"$f":"IF('1. Order'!I484=\"\",\"\",'1. Order'!I484)","v":""},{"$f":"IF('1. Order'!J484=\"\",\"\",'1. Order'!J484)","v":""},{"$f":"IF('1. Order'!K484=\"\",\"\",'1. Order'!K484)","v":""},{"$f":"IF('1. Order'!M484=\"\",\"\",'1. Order'!M484)","v":""},null,null,{"$f":"IF('1. Order'!AS484=\"\",\"\",'1. Order'!AS484)","v":""},{"$f":"IF('1. Order'!AF484=\"\",\"\",'1. Order'!AF484)","v":""}]
[{"$f":"IF('1. Order'!B485=\"\",\"\",'1. Order'!B485)","v":""},{"$f":"IF('1. Order'!I485=\"\",\"\",'1. Order'!I485)","v":""},{"$f":"IF('1. Order'!J485=\"\",\"\",'1. Order'!J485)","v":""},{"$f":"IF('1. Order'!K485=\"\",\"\",'1. Order'!K485)","v":""},{"$f":"IF('1. Order'!M485=\"\",\"\",'1. Order'!M485)","v":""},null,null,{"$f":"IF('1. Order'!AS485=\"\",\"\",'1. Order'!AS485)","v":""},{"$f":"IF('1. Order'!AF485=\"\",\"\",'1. Order'!AF485)","v":""}]
[{"$f":"IF('1. Order'!B486=\"\",\"\",'1. Order'!B486)","v":""},{"$f":"IF('1. Order'!I486=\"\",\"\",'1. Order'!I486)","v":""},{"$f":"IF('1. Order'!J486=\"\",\"\",'1. Order'!J486)","v":""},{"$f":"IF('1. Order'!K486=\"\",\"\",'1. Order'!K486)","v":""},{"$f":"IF('1. Order'!M486=\"\",\"\",'1. Order'!M486)","v":""},null,null,{"$f":"IF('1. Order'!AS486=\"\",\"\",'1. Order'!AS486)","v":""},{"$f":"IF('1. Order'!AF486=\"\",\"\",'1. Order'!AF486)","v":""}]
[{"$f":"IF('1. Order'!B487=\"\",\"\",'1. Order'!B487)","v":""},{"$f":"IF('1. Order'!I487=\"\",\"\",'1. Order'!I487)","v":""},{"$f":"IF('1. Order'!J487=\"\",\"\",'1. Order'!J487)","v":""},{"$f":"IF('1. Order'!K487=\"\",\"\",'1. Order'!K487)","v":""},{"$f":"IF('1. Order'!M487=\"\",\"\",'1. Order'!M487)","v":""},null,null,{"$f":"IF('1. Order'!AS487=\"\",\"\",'1. Order'!AS487)","v":""},{"$f":"IF('1. Order'!AF487=\"\",\"\",'1. Order'!AF487)","v":""}]
[{"$f":"IF('1. Order'!B488=\"\",\"\",'1. Order'!B488)","v":""},{"$f":"IF('1. Order'!I488=\"\",\"\",'1. Order'!I488)","v":""},{"$f":"IF('1. Order'!J488=\"\",\"\",'1. Order'!J488)","v":""},{"$f":"IF('1. Order'!K488=\"\",\"\",'1. Order'!K488)","v":""},{"$f":"IF('1. Order'!M488=\"\",\"\",'1. Order'!M488)","v":""},null,null,{"$f":"IF('1. Order'!AS488=\"\",\"\",'1. Order'!AS488)","v":""},{"$f":"IF('1. Order'!AF488=\"\",\"\",'1. Order'!AF488)","v":""}]
[{"$f":"IF('1. Order'!B489=\"\",\"\",'1. Order'!B489)","v":""},{"$f":"IF('1. Order'!I489=\"\",\"\",'1. Order'!I489)","v":""},{"$f":"IF('1. Order'!J489=\"\",\"\",'1. Order'!J489)","v":""},{"$f":"IF('1. Order'!K489=\"\",\"\",'1. Order'!K489)","v":""},{"$f":"IF('1. Order'!M489=\"\",\"\",'1. Order'!M489)","v":""},null,null,{"$f":"IF('1. Order'!AS489=\"\",\"\",'1. Order'!AS489)","v":""},{"$f":"IF('1. Order'!AF489=\"\",\"\",'1. Order'!AF489)","v":""}]
[{"$f":"IF('1. Order'!B490=\"\",\"\",'1. Order'!B490)","v":""},{"$f":"IF('1. Order'!I490=\"\",\"\",'1. Order'!I490)","v":""},{"$f":"IF('1. Order'!J490=\"\",\"\",'1. Order'!J490)","v":""},{"$f":"IF('1. Order'!K490=\"\",\"\",'1. Order'!K490)","v":""},{"$f":"IF('1. Order'!M490=\"\",\"\",'1. Order'!M490)","v":""},null,null,{"$f":"IF('1. Order'!AS490=\"\",\"\",'1. Order'!AS490)","v":""},{"$f":"IF('1. Order'!AF490=\"\",\"\",'1. Order'!AF490)","v":""}]
[{"$f":"IF('1. Order'!B491=\"\",\"\",'1. Order'!B491)","v":""},{"$f":"IF('1. Order'!I491=\"\",\"\",'1. Order'!I491)","v":""},{"$f":"IF('1. Order'!J491=\"\",\"\",'1. Order'!J491)","v":""},{"$f":"IF('1. Order'!K491=\"\",\"\",'1. Order'!K491)","v":""},{"$f":"IF('1. Order'!M491=\"\",\"\",'1. Order'!M491)","v":""},null,null,{"$f":"IF('1. Order'!AS491=\"\",\"\",'1. Order'!AS491)","v":""},{"$f":"IF('1. Order'!AF491=\"\",\"\",'1. Order'!AF491)","v":""}]
[{"$f":"IF('1. Order'!B492=\"\",\"\",'1. Order'!B492)","v":""},{"$f":"IF('1. Order'!I492=\"\",\"\",'1. Order'!I492)","v":""},{"$f":"IF('1. Order'!J492=\"\",\"\",'1. Order'!J492)","v":""},{"$f":"IF('1. Order'!K492=\"\",\"\",'1. Order'!K492)","v":""},{"$f":"IF('1. Order'!M492=\"\",\"\",'1. Order'!M492)","v":""},null,null,{"$f":"IF('1. Order'!AS492=\"\",\"\",'1. Order'!AS492)","v":""},{"$f":"IF('1. Order'!AF492=\"\",\"\",'1. Order'!AF492)","v":""}]
[{"$f":"IF('1. Order'!B493=\"\",\"\",'1. Order'!B493)","v":""},{"$f":"IF('1. Order'!I493=\"\",\"\",'1. Order'!I493)","v":""},{"$f":"IF('1. Order'!J493=\"\",\"\",'1. Order'!J493)","v":""},{"$f":"IF('1. Order'!K493=\"\",\"\",'1. Order'!K493)","v":""},{"$f":"IF('1. Order'!M493=\"\",\"\",'1. Order'!M493)","v":""},null,null,{"$f":"IF('1. Order'!AS493=\"\",\"\",'1. Order'!AS493)","v":""},{"$f":"IF('1. Order'!AF493=\"\",\"\",'1. Order'!AF493)","v":""}]
[{"$f":"IF('1. Order'!B494=\"\",\"\",'1. Order'!B494)","v":""},{"$f":"IF('1. Order'!I494=\"\",\"\",'1. Order'!I494)","v":""},{"$f":"IF('1. Order'!J494=\"\",\"\",'1. Order'!J494)","v":""},{"$f":"IF('1. Order'!K494=\"\",\"\",'1. Order'!K494)","v":""},{"$f":"IF('1. Order'!M494=\"\",\"\",'1. Order'!M494)","v":""},null,null,{"$f":"IF('1. Order'!AS494=\"\",\"\",'1. Order'!AS494)","v":""},{"$f":"IF('1. Order'!AF494=\"\",\"\",'1. Order'!AF494)","v":""}]
[{"$f":"IF('1. Order'!B495=\"\",\"\",'1. Order'!B495)","v":""},{"$f":"IF('1. Order'!I495=\"\",\"\",'1. Order'!I495)","v":""},{"$f":"IF('1. Order'!J495=\"\",\"\",'1. Order'!J495)","v":""},{"$f":"IF('1. Order'!K495=\"\",\"\",'1. Order'!K495)","v":""},{"$f":"IF('1. Order'!M495=\"\",\"\",'1. Order'!M495)","v":""},null,null,{"$f":"IF('1. Order'!AS495=\"\",\"\",'1. Order'!AS495)","v":""},{"$f":"IF('1. Order'!AF495=\"\",\"\",'1. Order'!AF495)","v":""}]
[{"$f":"IF('1. Order'!B496=\"\",\"\",'1. Order'!B496)","v":""},{"$f":"IF('1. Order'!I496=\"\",\"\",'1. Order'!I496)","v":""},{"$f":"IF('1. Order'!J496=\"\",\"\",'1. Order'!J496)","v":""},{"$f":"IF('1. Order'!K496=\"\",\"\",'1. Order'!K496)","v":""},{"$f":"IF('1. Order'!M496=\"\",\"\",'1. Order'!M496)","v":""},null,null,{"$f":"IF('1. Order'!AS496=\"\",\"\",'1. Order'!AS496)","v":""},{"$f":"IF('1. Order'!AF496=\"\",\"\",'1. Order'!AF496)","v":""}]
[{"$f":"IF('1. Order'!B497=\"\",\"\",'1. Order'!B497)","v":""},{"$f":"IF('1. Order'!I497=\"\",\"\",'1. Order'!I497)","v":""},{"$f":"IF('1. Order'!J497=\"\",\"\",'1. Order'!J497)","v":""},{"$f":"IF('1. Order'!K497=\"\",\"\",'1. Order'!K497)","v":""},{"$f":"IF('1. Order'!M497=\"\",\"\",'1. Order'!M497)","v":""},null,null,{"$f":"IF('1. Order'!AS497=\"\",\"\",'1. Order'!AS497)","v":""},{"$f":"IF('1. Order'!AF497=\"\",\"\",'1. Order'!AF497)","v":""}]
[{"$f":"IF('1. Order'!B498=\"\",\"\",'1. Order'!B498)","v":""},{"$f":"IF('1. Order'!I498=\"\",\"\",'1. Order'!I498)","v":""},{"$f":"IF('1. Order'!J498=\"\",\"\",'1. Order'!J498)","v":""},{"$f":"IF('1. Order'!K498=\"\",\"\",'1. Order'!K498)","v":""},{"$f":"IF('1. Order'!M498=\"\",\"\",'1. Order'!M498)","v":""},null,null,{"$f":"IF('1. Order'!AS498=\"\",\"\",'1. Order'!AS498)","v":""},{"$f":"IF('1. Order'!AF498=\"\",\"\",'1. Order'!AF498)","v":""}]
[{"$f":"IF('1. Order'!B499=\"\",\"\",'1. Order'!B499)","v":""},{"$f":"IF('1. Order'!I499=\"\",\"\",'1. Order'!I499)","v":""},{"$f":"IF('1. Order'!J499=\"\",\"\",'1. Order'!J499)","v":""},{"$f":"IF('1. Order'!K499=\"\",\"\",'1. Order'!K499)","v":""},{"$f":"IF('1. Order'!M499=\"\",\"\",'1. Order'!M499)","v":""},null,null,{"$f":"IF('1. Order'!AS499=\"\",\"\",'1. Order'!AS499)","v":""},{"$f":"IF('1. Order'!AF499=\"\",\"\",'1. Order'!AF499)","v":""}]
[{"$f":"IF('1. Order'!B500=\"\",\"\",'1. Order'!B500)","v":""},{"$f":"IF('1. Order'!I500=\"\",\"\",'1. Order'!I500)","v":""},{"$f":"IF('1. Order'!J500=\"\",\"\",'1. Order'!J500)","v":""},{"$f":"IF('1. Order'!K500=\"\",\"\",'1. Order'!K500)","v":""},{"$f":"IF('1. Order'!M500=\"\",\"\",'1. Order'!M500)","v":""},null,null,{"$f":"IF('1. Order'!AS500=\"\",\"\",'1. Order'!AS500)","v":""},{"$f":"IF('1. Order'!AF500=\"\",\"\",'1. Order'!AF500)","v":""}]
[{"$f":"IF('1. Order'!B501=\"\",\"\",'1. Order'!B501)","v":""},{"$f":"IF('1. Order'!I501=\"\",\"\",'1. Order'!I501)","v":""},{"$f":"IF('1. Order'!J501=\"\",\"\",'1. Order'!J501)","v":""},{"$f":"IF('1. Order'!K501=\"\",\"\",'1. Order'!K501)","v":""},{"$f":"IF('1. Order'!M501=\"\",\"\",'1. Order'!M501)","v":""},null,null,{"$f":"IF('1. Order'!AS501=\"\",\"\",'1. Order'!AS501)","v":""},{"$f":"IF('1. Order'!AF501=\"\",\"\",'1. Order'!AF501)","v":""}]
[{"$f":"IF('1. Order'!B502=\"\",\"\",'1. Order'!B502)","v":""},{"$f":"IF('1. Order'!I502=\"\",\"\",'1. Order'!I502)","v":""},{"$f":"IF('1. Order'!J502=\"\",\"\",'1. Order'!J502)","v":""},{"$f":"IF('1. Order'!K502=\"\",\"\",'1. Order'!K502)","v":""},{"$f":"IF('1. Order'!M502=\"\",\"\",'1. Order'!M502)","v":""},null,null,{"$f":"IF('1. Order'!AS502=\"\",\"\",'1. Order'!AS502)","v":""},{"$f":"IF('1. Order'!AF502=\"\",\"\",'1. Order'!AF502)","v":""}]
[{"$f":"IF('1. Order'!B503=\"\",\"\",'1. Order'!B503)","v":""},{"$f":"IF('1. Order'!I503=\"\",\"\",'1. Order'!I503)","v":""},{"$f":"IF('1. Order'!J503=\"\",\"\",'1. Order'!J503)","v":""},{"$f":"IF('1. Order'!K503=\"\",\"\",'1. Order'!K503)","v":""},{"$f":"IF('1. Order'!M503=\"\",\"\",'1. Order'!M503)","v":""},null,null,{"$f":"IF('1. Order'!AS503=\"\",\"\",'1. Order'!AS503)","v":""},{"$f":"IF('1. Order'!AF503=\"\",\"\",'1. Order'!AF503)","v":""}]
[{"$f":"IF('1. Order'!B504=\"\",\"\",'1. Order'!B504)","v":""},{"$f":"IF('1. Order'!I504=\"\",\"\",'1. Order'!I504)","v":""},{"$f":"IF('1. Order'!J504=\"\",\"\",'1. Order'!J504)","v":""},{"$f":"IF('1. Order'!K504=\"\",\"\",'1. Order'!K504)","v":""},{"$f":"IF('1. Order'!M504=\"\",\"\",'1. Order'!M504)","v":""},null,null,{"$f":"IF('1. Order'!AS504=\"\",\"\",'1. Order'!AS504)","v":""},{"$f":"IF('1. Order'!AF504=\"\",\"\",'1. Order'!AF504)","v":""}]
[{"$f":"IF('1. Order'!B505=\"\",\"\",'1. Order'!B505)","v":""},{"$f":"IF('1. Order'!I505=\"\",\"\",'1. Order'!I505)","v":""},{"$f":"IF('1. Order'!J505=\"\",\"\",'1. Order'!J505)","v":""},{"$f":"IF('1. Order'!K505=\"\",\"\",'1. Order'!K505)","v":""},{"$f":"IF('1. Order'!M505=\"\",\"\",'1. Order'!M505)","v":""},null,null,{"$f":"IF('1. Order'!AS505=\"\",\"\",'1. Order'!AS505)","v":""},{"$f":"IF('1. Order'!AF505=\"\",\"\",'1. Order'!AF505)","v":""}]
[{"$f":"IF('1. Order'!B506=\"\",\"\",'1. Order'!B506)","v":""},{"$f":"IF('1. Order'!I506=\"\",\"\",'1. Order'!I506)","v":""},{"$f":"IF('1. Order'!J506=\"\",\"\",'1. Order'!J506)","v":""},{"$f":"IF('1. Order'!K506=\"\",\"\",'1. Order'!K506)","v":""},{"$f":"IF('1. Order'!M506=\"\",\"\",'1. Order'!M506)","v":""},null,null,{"$f":"IF('1. Order'!AS506=\"\",\"\",'1. Order'!AS506)","v":""},{"$f":"IF('1. Order'!AF506=\"\",\"\",'1. Order'!AF506)","v":""}]
[{"$f":"IF('1. Order'!B507=\"\",\"\",'1. Order'!B507)","v":""},{"$f":"IF('1. Order'!I507=\"\",\"\",'1. Order'!I507)","v":""},{"$f":"IF('1. Order'!J507=\"\",\"\",'1. Order'!J507)","v":""},{"$f":"IF('1. Order'!K507=\"\",\"\",'1. Order'!K507)","v":""},{"$f":"IF('1. Order'!M507=\"\",\"\",'1. Order'!M507)","v":""},null,null,{"$f":"IF('1. Order'!AS507=\"\",\"\",'1. Order'!AS507)","v":""},{"$f":"IF('1. Order'!AF507=\"\",\"\",'1. Order'!AF507)","v":""}]
[{"$f":"IF('1. Order'!B508=\"\",\"\",'1. Order'!B508)","v":""},{"$f":"IF('1. Order'!I508=\"\",\"\",'1. Order'!I508)","v":""},{"$f":"IF('1. Order'!J508=\"\",\"\",'1. Order'!J508)","v":""},{"$f":"IF('1. Order'!K508=\"\",\"\",'1. Order'!K508)","v":""},{"$f":"IF('1. Order'!M508=\"\",\"\",'1. Order'!M508)","v":""},null,null,{"$f":"IF('1. Order'!AS508=\"\",\"\",'1. Order'!AS508)","v":""},{"$f":"IF('1. Order'!AF508=\"\",\"\",'1. Order'!AF508)","v":""}]
[{"$f":"IF('1. Order'!B509=\"\",\"\",'1. Order'!B509)","v":""},{"$f":"IF('1. Order'!I509=\"\",\"\",'1. Order'!I509)","v":""},{"$f":"IF('1. Order'!J509=\"\",\"\",'1. Order'!J509)","v":""},{"$f":"IF('1. Order'!K509=\"\",\"\",'1. Order'!K509)","v":""},{"$f":"IF('1. Order'!M509=\"\",\"\",'1. Order'!M509)","v":""},null,null,{"$f":"IF('1. Order'!AS509=\"\",\"\",'1. Order'!AS509)","v":""},{"$f":"IF('1. Order'!AF509=\"\",\"\",'1. Order'!AF509)","v":""}]
[{"$f":"IF('1. Order'!B510=\"\",\"\",'1. Order'!B510)","v":""},{"$f":"IF('1. Order'!I510=\"\",\"\",'1. Order'!I510)","v":""},{"$f":"IF('1. Order'!J510=\"\",\"\",'1. Order'!J510)","v":""},{"$f":"IF('1. Order'!K510=\"\",\"\",'1. Order'!K510)","v":""},{"$f":"IF('1. Order'!M510=\"\",\"\",'1. Order'!M510)","v":""},null,null,{"$f":"IF('1. Order'!AS510=\"\",\"\",'1. Order'!AS510)","v":""},{"$f":"IF('1. Order'!AF510=\"\",\"\",'1. Order'!AF510)","v":""}]
[{"$f":"IF('1. Order'!B511=\"\",\"\",'1. Order'!B511)","v":""},{"$f":"IF('1. Order'!I511=\"\",\"\",'1. Order'!I511)","v":""},{"$f":"IF('1. Order'!J511=\"\",\"\",'1. Order'!J511)","v":""},{"$f":"IF('1. Order'!K511=\"\",\"\",'1. Order'!K511)","v":""},{"$f":"IF('1. Order'!M511=\"\",\"\",'1. Order'!M511)","v":""},null,null,{"$f":"IF('1. Order'!AS511=\"\",\"\",'1. Order'!AS511)","v":""},{"$f":"IF('1. Order'!AF511=\"\",\"\",'1. Order'!AF511)","v":""}]
[{"$f":"IF('1. Order'!B512=\"\",\"\",'1. Order'!B512)","v":""},{"$f":"IF('1. Order'!I512=\"\",\"\",'1. Order'!I512)","v":""},{"$f":"IF('1. Order'!J512=\"\",\"\",'1. Order'!J512)","v":""},{"$f":"IF('1. Order'!K512=\"\",\"\",'1. Order'!K512)","v":""},{"$f":"IF('1. Order'!M512=\"\",\"\",'1. Order'!M512)","v":""},null,null,{"$f":"IF('1. Order'!AS512=\"\",\"\",'1. Order'!AS512)","v":""},{"$f":"IF('1. Order'!AF512=\"\",\"\",'1. Order'!AF512)","v":""}]
[{"$f":"IF('1. Order'!B513=\"\",\"\",'1. Order'!B513)","v":""},{"$f":"IF('1. Order'!I513=\"\",\"\",'1. Order'!I513)","v":""},{"$f":"IF('1. Order'!J513=\"\",\"\",'1. Order'!J513)","v":""},{"$f":"IF('1. Order'!K513=\"\",\"\",'1. Order'!K513)","v":""},{"$f":"IF('1. Order'!M513=\"\",\"\",'1. Order'!M513)","v":""},null,null,{"$f":"IF('1. Order'!AS513=\"\",\"\",'1. Order'!AS513)","v":""},{"$f":"IF('1. Order'!AF513=\"\",\"\",'1. Order'!AF513)","v":""}]
[{"$f":"IF('1. Order'!B514=\"\",\"\",'1. Order'!B514)","v":""},{"$f":"IF('1. Order'!I514=\"\",\"\",'1. Order'!I514)","v":""},{"$f":"IF('1. Order'!J514=\"\",\"\",'1. Order'!J514)","v":""},{"$f":"IF('1. Order'!K514=\"\",\"\",'1. Order'!K514)","v":""},{"$f":"IF('1. Order'!M514=\"\",\"\",'1. Order'!M514)","v":""},null,null,{"$f":"IF('1. Order'!AS514=\"\",\"\",'1. Order'!AS514)","v":""},{"$f":"IF('1. Order'!AF514=\"\",\"\",'1. Order'!AF514)","v":""}]
[{"$f":"IF('1. Order'!B515=\"\",\"\",'1. Order'!B515)","v":""},{"$f":"IF('1. Order'!I515=\"\",\"\",'1. Order'!I515)","v":""},{"$f":"IF('1. Order'!J515=\"\",\"\",'1. Order'!J515)","v":""},{"$f":"IF('1. Order'!K515=\"\",\"\",'1. Order'!K515)","v":""},{"$f":"IF('1. Order'!M515=\"\",\"\",'1. Order'!M515)","v":""},null,null,{"$f":"IF('1. Order'!AS515=\"\",\"\",'1. Order'!AS515)","v":""},{"$f":"IF('1. Order'!AF515=\"\",\"\",'1. Order'!AF515)","v":""}]
[{"$f":"IF('1. Order'!B516=\"\",\"\",'1. Order'!B516)","v":""},{"$f":"IF('1. Order'!I516=\"\",\"\",'1. Order'!I516)","v":""},{"$f":"IF('1. Order'!J516=\"\",\"\",'1. Order'!J516)","v":""},{"$f":"IF('1. Order'!K516=\"\",\"\",'1. Order'!K516)","v":""},{"$f":"IF('1. Order'!M516=\"\",\"\",'1. Order'!M516)","v":""},null,null,{"$f":"IF('1. Order'!AS516=\"\",\"\",'1. Order'!AS516)","v":""},{"$f":"IF('1. Order'!AF516=\"\",\"\",'1. Order'!AF516)","v":""}]
[{"$f":"IF('1. Order'!B517=\"\",\"\",'1. Order'!B517)","v":""},{"$f":"IF('1. Order'!I517=\"\",\"\",'1. Order'!I517)","v":""},{"$f":"IF('1. Order'!J517=\"\",\"\",'1. Order'!J517)","v":""},{"$f":"IF('1. Order'!K517=\"\",\"\",'1. Order'!K517)","v":""},{"$f":"IF('1. Order'!M517=\"\",\"\",'1. Order'!M517)","v":""},null,null,{"$f":"IF('1. Order'!AS517=\"\",\"\",'1. Order'!AS517)","v":""},{"$f":"IF('1. Order'!AF517=\"\",\"\",'1. Order'!AF517)","v":""}]
[{"$f":"IF('1. Order'!B518=\"\",\"\",'1. Order'!B518)","v":""},{"$f":"IF('1. Order'!I518=\"\",\"\",'1. Order'!I518)","v":""},{"$f":"IF('1. Order'!J518=\"\",\"\",'1. Order'!J518)","v":""},{"$f":"IF('1. Order'!K518=\"\",\"\",'1. Order'!K518)","v":""},{"$f":"IF('1. Order'!M518=\"\",\"\",'1. Order'!M518)","v":""},null,null,{"$f":"IF('1. Order'!AS518=\"\",\"\",'1. Order'!AS518)","v":""},{"$f":"IF('1. Order'!AF518=\"\",\"\",'1. Order'!AF518)","v":""}]
[{"$f":"IF('1. Order'!B519=\"\",\"\",'1. Order'!B519)","v":""},{"$f":"IF('1. Order'!I519=\"\",\"\",'1. Order'!I519)","v":""},{"$f":"IF('1. Order'!J519=\"\",\"\",'1. Order'!J519)","v":""},{"$f":"IF('1. Order'!K519=\"\",\"\",'1. Order'!K519)","v":""},{"$f":"IF('1. Order'!M519=\"\",\"\",'1. Order'!M519)","v":""},null,null,{"$f":"IF('1. Order'!AS519=\"\",\"\",'1. Order'!AS519)","v":""},{"$f":"IF('1. Order'!AF519=\"\",\"\",'1. Order'!AF519)","v":""}]
[{"$f":"IF('1. Order'!B520=\"\",\"\",'1. Order'!B520)","v":""},{"$f":"IF('1. Order'!I520=\"\",\"\",'1. Order'!I520)","v":""},{"$f":"IF('1. Order'!J520=\"\",\"\",'1. Order'!J520)","v":""},{"$f":"IF('1. Order'!K520=\"\",\"\",'1. Order'!K520)","v":""},{"$f":"IF('1. Order'!M520=\"\",\"\",'1. Order'!M520)","v":""},null,null,{"$f":"IF('1. Order'!AS520=\"\",\"\",'1. Order'!AS520)","v":""},{"$f":"IF('1. Order'!AF520=\"\",\"\",'1. Order'!AF520)","v":""}]
[{"$f":"IF('1. Order'!B521=\"\",\"\",'1. Order'!B521)","v":""},{"$f":"IF('1. Order'!I521=\"\",\"\",'1. Order'!I521)","v":""},{"$f":"IF('1. Order'!J521=\"\",\"\",'1. Order'!J521)","v":""},{"$f":"IF('1. Order'!K521=\"\",\"\",'1. Order'!K521)","v":""},{"$f":"IF('1. Order'!M521=\"\",\"\",'1. Order'!M521)","v":""},null,null,{"$f":"IF('1. Order'!AS521=\"\",\"\",'1. Order'!AS521)","v":""},{"$f":"IF('1. Order'!AF521=\"\",\"\",'1. Order'!AF521)","v":""}]
[{"$f":"IF('1. Order'!B522=\"\",\"\",'1. Order'!B522)","v":""},{"$f":"IF('1. Order'!I522=\"\",\"\",'1. Order'!I522)","v":""},{"$f":"IF('1. Order'!J522=\"\",\"\",'1. Order'!J522)","v":""},{"$f":"IF('1. Order'!K522=\"\",\"\",'1. Order'!K522)","v":""},{"$f":"IF('1. Order'!M522=\"\",\"\",'1. Order'!M522)","v":""},null,null,{"$f":"IF('1. Order'!AS522=\"\",\"\",'1. Order'!AS522)","v":""},{"$f":"IF('1. Order'!AF522=\"\",\"\",'1. Order'!AF522)","v":""}]
[{"$f":"IF('1. Order'!B523=\"\",\"\",'1. Order'!B523)","v":""},{"$f":"IF('1. Order'!I523=\"\",\"\",'1. Order'!I523)","v":""},{"$f":"IF('1. Order'!J523=\"\",\"\",'1. Order'!J523)","v":""},{"$f":"IF('1. Order'!K523=\"\",\"\",'1. Order'!K523)","v":""},{"$f":"IF('1. Order'!M523=\"\",\"\",'1. Order'!M523)","v":""},null,null,{"$f":"IF('1. Order'!AS523=\"\",\"\",'1. Order'!AS523)","v":""},{"$f":"IF('1. Order'!AF523=\"\",\"\",'1. Order'!AF523)","v":""}]
[{"$f":"IF('1. Order'!B524=\"\",\"\",'1. Order'!B524)","v":""},{"$f":"IF('1. Order'!I524=\"\",\"\",'1. Order'!I524)","v":""},{"$f":"IF('1. Order'!J524=\"\",\"\",'1. Order'!J524)","v":""},{"$f":"IF('1. Order'!K524=\"\",\"\",'1. Order'!K524)","v":""},{"$f":"IF('1. Order'!M524=\"\",\"\",'1. Order'!M524)","v":""},null,null,{"$f":"IF('1. Order'!AS524=\"\",\"\",'1. Order'!AS524)","v":""},{"$f":"IF('1. Order'!AF524=\"\",\"\",'1. Order'!AF524)","v":""}]
[{"$f":"IF('1. Order'!B525=\"\",\"\",'1. Order'!B525)","v":""},{"$f":"IF('1. Order'!I525=\"\",\"\",'1. Order'!I525)","v":""},{"$f":"IF('1. Order'!J525=\"\",\"\",'1. Order'!J525)","v":""},{"$f":"IF('1. Order'!K525=\"\",\"\",'1. Order'!K525)","v":""},{"$f":"IF('1. Order'!M525=\"\",\"\",'1. Order'!M525)","v":""},null,null,{"$f":"IF('1. Order'!AS525=\"\",\"\",'1. Order'!AS525)","v":""},{"$f":"IF('1. Order'!AF525=\"\",\"\",'1. Order'!AF525)","v":""}]
[{"$f":"IF('1. Order'!B526=\"\",\"\",'1. Order'!B526)","v":""},{"$f":"IF('1. Order'!I526=\"\",\"\",'1. Order'!I526)","v":""},{"$f":"IF('1. Order'!J526=\"\",\"\",'1. Order'!J526)","v":""},{"$f":"IF('1. Order'!K526=\"\",\"\",'1. Order'!K526)","v":""},{"$f":"IF('1. Order'!M526=\"\",\"\",'1. Order'!M526)","v":""},null,null,{"$f":"IF('1. Order'!AS526=\"\",\"\",'1. Order'!AS526)","v":""},{"$f":"IF('1. Order'!AF526=\"\",\"\",'1. Order'!AF526)","v":""}]
[{"$f":"IF('1. Order'!B527=\"\",\"\",'1. Order'!B527)","v":""},{"$f":"IF('1. Order'!I527=\"\",\"\",'1. Order'!I527)","v":""},{"$f":"IF('1. Order'!J527=\"\",\"\",'1. Order'!J527)","v":""},{"$f":"IF('1. Order'!K527=\"\",\"\",'1. Order'!K527)","v":""},{"$f":"IF('1. Order'!M527=\"\",\"\",'1. Order'!M527)","v":""},null,null,{"$f":"IF('1. Order'!AS527=\"\",\"\",'1. Order'!AS527)","v":""},{"$f":"IF('1. Order'!AF527=\"\",\"\",'1. Order'!AF527)","v":""}]
[{"$f":"IF('1. Order'!B528=\"\",\"\",'1. Order'!B528)","v":""},{"$f":"IF('1. Order'!I528=\"\",\"\",'1. Order'!I528)","v":""},{"$f":"IF('1. Order'!J528=\"\",\"\",'1. Order'!J528)","v":""},{"$f":"IF('1. Order'!K528=\"\",\"\",'1. Order'!K528)","v":""},{"$f":"IF('1. Order'!M528=\"\",\"\",'1. Order'!M528)","v":""},null,null,{"$f":"IF('1. Order'!AS528=\"\",\"\",'1. Order'!AS528)","v":""},{"$f":"IF('1. Order'!AF528=\"\",\"\",'1. Order'!AF528)","v":""}]
[{"$f":"IF('1. Order'!B529=\"\",\"\",'1. Order'!B529)","v":""},{"$f":"IF('1. Order'!I529=\"\",\"\",'1. Order'!I529)","v":""},{"$f":"IF('1. Order'!J529=\"\",\"\",'1. Order'!J529)","v":""},{"$f":"IF('1. Order'!K529=\"\",\"\",'1. Order'!K529)","v":""},{"$f":"IF('1. Order'!M529=\"\",\"\",'1. Order'!M529)","v":""},null,null,{"$f":"IF('1. Order'!AS529=\"\",\"\",'1. Order'!AS529)","v":""},{"$f":"IF('1. Order'!AF529=\"\",\"\",'1. Order'!AF529)","v":""}]
[{"$f":"IF('1. Order'!B530=\"\",\"\",'1. Order'!B530)","v":""},{"$f":"IF('1. Order'!I530=\"\",\"\",'1. Order'!I530)","v":""},{"$f":"IF('1. Order'!J530=\"\",\"\",'1. Order'!J530)","v":""},{"$f":"IF('1. Order'!K530=\"\",\"\",'1. Order'!K530)","v":""},{"$f":"IF('1. Order'!M530=\"\",\"\",'1. Order'!M530)","v":""},null,null,{"$f":"IF('1. Order'!AS530=\"\",\"\",'1. Order'!AS530)","v":""},{"$f":"IF('1. Order'!AF530=\"\",\"\",'1. Order'!AF530)","v":""}]
[{"$f":"IF('1. Order'!B531=\"\",\"\",'1. Order'!B531)","v":""},{"$f":"IF('1. Order'!I531=\"\",\"\",'1. Order'!I531)","v":""},{"$f":"IF('1. Order'!J531=\"\",\"\",'1. Order'!J531)","v":""},{"$f":"IF('1. Order'!K531=\"\",\"\",'1. Order'!K531)","v":""},{"$f":"IF('1. Order'!M531=\"\",\"\",'1. Order'!M531)","v":""},null,null,{"$f":"IF('1. Order'!AS531=\"\",\"\",'1. Order'!AS531)","v":""},{"$f":"IF('1. Order'!AF531=\"\",\"\",'1. Order'!AF531)","v":""}]
[{"$f":"IF('1. Order'!B532=\"\",\"\",'1. Order'!B532)","v":""},{"$f":"IF('1. Order'!I532=\"\",\"\",'1. Order'!I532)","v":""},{"$f":"IF('1. Order'!J532=\"\",\"\",'1. Order'!J532)","v":""},{"$f":"IF('1. Order'!K532=\"\",\"\",'1. Order'!K532)","v":""},{"$f":"IF('1. Order'!M532=\"\",\"\",'1. Order'!M532)","v":""},null,null,{"$f":"IF('1. Order'!AS532=\"\",\"\",'1. Order'!AS532)","v":""},{"$f":"IF('1. Order'!AF532=\"\",\"\",'1. Order'!AF532)","v":""}]
[{"$f":"IF('1. Order'!B533=\"\",\"\",'1. Order'!B533)","v":""},{"$f":"IF('1. Order'!I533=\"\",\"\",'1. Order'!I533)","v":""},{"$f":"IF('1. Order'!J533=\"\",\"\",'1. Order'!J533)","v":""},{"$f":"IF('1. Order'!K533=\"\",\"\",'1. Order'!K533)","v":""},{"$f":"IF('1. Order'!M533=\"\",\"\",'1. Order'!M533)","v":""},null,null,{"$f":"IF('1. Order'!AS533=\"\",\"\",'1. Order'!AS533)","v":""},{"$f":"IF('1. Order'!AF533=\"\",\"\",'1. Order'!AF533)","v":""}]
[{"$f":"IF('1. Order'!B534=\"\",\"\",'1. Order'!B534)","v":""},{"$f":"IF('1. Order'!I534=\"\",\"\",'1. Order'!I534)","v":""},{"$f":"IF('1. Order'!J534=\"\",\"\",'1. Order'!J534)","v":""},{"$f":"IF('1. Order'!K534=\"\",\"\",'1. Order'!K534)","v":""},{"$f":"IF('1. Order'!M534=\"\",\"\",'1. Order'!M534)","v":""},null,null,{"$f":"IF('1. Order'!AS534=\"\",\"\",'1. Order'!AS534)","v":""},{"$f":"IF('1. Order'!AF534=\"\",\"\",'1. Order'!AF534)","v":""}]
[{"$f":"IF('1. Order'!B535=\"\",\"\",'1. Order'!B535)","v":""},{"$f":"IF('1. Order'!I535=\"\",\"\",'1. Order'!I535)","v":""},{"$f":"IF('1. Order'!J535=\"\",\"\",'1. Order'!J535)","v":""},{"$f":"IF('1. Order'!K535=\"\",\"\",'1. Order'!K535)","v":""},{"$f":"IF('1. Order'!M535=\"\",\"\",'1. Order'!M535)","v":""},null,null,{"$f":"IF('1. Order'!AS535=\"\",\"\",'1. Order'!AS535)","v":""},{"$f":"IF('1. Order'!AF535=\"\",\"\",'1. Order'!AF535)","v":""}]
[{"$f":"IF('1. Order'!B536=\"\",\"\",'1. Order'!B536)","v":""},{"$f":"IF('1. Order'!I536=\"\",\"\",'1. Order'!I536)","v":""},{"$f":"IF('1. Order'!J536=\"\",\"\",'1. Order'!J536)","v":""},{"$f":"IF('1. Order'!K536=\"\",\"\",'1. Order'!K536)","v":""},{"$f":"IF('1. Order'!M536=\"\",\"\",'1. Order'!M536)","v":""},null,null,{"$f":"IF('1. Order'!AS536=\"\",\"\",'1. Order'!AS536)","v":""},{"$f":"IF('1. Order'!AF536=\"\",\"\",'1. Order'!AF536)","v":""}]
[{"$f":"IF('1. Order'!B537=\"\",\"\",'1. Order'!B537)","v":""},{"$f":"IF('1. Order'!I537=\"\",\"\",'1. Order'!I537)","v":""},{"$f":"IF('1. Order'!J537=\"\",\"\",'1. Order'!J537)","v":""},{"$f":"IF('1. Order'!K537=\"\",\"\",'1. Order'!K537)","v":""},{"$f":"IF('1. Order'!M537=\"\",\"\",'1. Order'!M537)","v":""},null,null,{"$f":"IF('1. Order'!AS537=\"\",\"\",'1. Order'!AS537)","v":""},{"$f":"IF('1. Order'!AF537=\"\",\"\",'1. Order'!AF537)","v":""}]
[{"$f":"IF('1. Order'!B538=\"\",\"\",'1. Order'!B538)","v":""},{"$f":"IF('1. Order'!I538=\"\",\"\",'1. Order'!I538)","v":""},{"$f":"IF('1. Order'!J538=\"\",\"\",'1. Order'!J538)","v":""},{"$f":"IF('1. Order'!K538=\"\",\"\",'1. Order'!K538)","v":""},{"$f":"IF('1. Order'!M538=\"\",\"\",'1. Order'!M538)","v":""},null,null,{"$f":"IF('1. Order'!AS538=\"\",\"\",'1. Order'!AS538)","v":""},{"$f":"IF('1. Order'!AF538=\"\",\"\",'1. Order'!AF538)","v":""}]
[{"$f":"IF('1. Order'!B539=\"\",\"\",'1. Order'!B539)","v":""},{"$f":"IF('1. Order'!I539=\"\",\"\",'1. Order'!I539)","v":""},{"$f":"IF('1. Order'!J539=\"\",\"\",'1. Order'!J539)","v":""},{"$f":"IF('1. Order'!K539=\"\",\"\",'1. Order'!K539)","v":""},{"$f":"IF('1. Order'!M539=\"\",\"\",'1. Order'!M539)","v":""},null,null,{"$f":"IF('1. Order'!AS539=\"\",\"\",'1. Order'!AS539)","v":""},{"$f":"IF('1. Order'!AF539=\"\",\"\",'1. Order'!AF539)","v":""}]
[{"$f":"IF('1. Order'!B540=\"\",\"\",'1. Order'!B540)","v":""},{"$f":"IF('1. Order'!I540=\"\",\"\",'1. Order'!I540)","v":""},{"$f":"IF('1. Order'!J540=\"\",\"\",'1. Order'!J540)","v":""},{"$f":"IF('1. Order'!K540=\"\",\"\",'1. Order'!K540)","v":""},{"$f":"IF('1. Order'!M540=\"\",\"\",'1. Order'!M540)","v":""},null,null,{"$f":"IF('1. Order'!AS540=\"\",\"\",'1. Order'!AS540)","v":""},{"$f":"IF('1. Order'!AF540=\"\",\"\",'1. Order'!AF540)","v":""}]
[{"$f":"IF('1. Order'!B541=\"\",\"\",'1. Order'!B541)","v":""},{"$f":"IF('1. Order'!I541=\"\",\"\",'1. Order'!I541)","v":""},{"$f":"IF('1. Order'!J541=\"\",\"\",'1. Order'!J541)","v":""},{"$f":"IF('1. Order'!K541=\"\",\"\",'1. Order'!K541)","v":""},{"$f":"IF('1. Order'!M541=\"\",\"\",'1. Order'!M541)","v":""},null,null,{"$f":"IF('1. Order'!AS541=\"\",\"\",'1. Order'!AS541)","v":""},{"$f":"IF('1. Order'!AF541=\"\",\"\",'1. Order'!AF541)","v":""}]
[{"$f":"IF('1. Order'!B542=\"\",\"\",'1. Order'!B542)","v":""},{"$f":"IF('1. Order'!I542=\"\",\"\",'1. Order'!I542)","v":""},{"$f":"IF('1. Order'!J542=\"\",\"\",'1. Order'!J542)","v":""},{"$f":"IF('1. Order'!K542=\"\",\"\",'1. Order'!K542)","v":""},{"$f":"IF('1. Order'!M542=\"\",\"\",'1. Order'!M542)","v":""},null,null,{"$f":"IF('1. Order'!AS542=\"\",\"\",'1. Order'!AS542)","v":""},{"$f":"IF('1. Order'!AF542=\"\",\"\",'1. Order'!AF542)","v":""}]
[{"$f":"IF('1. Order'!B543=\"\",\"\",'1. Order'!B543)","v":""},{"$f":"IF('1. Order'!I543=\"\",\"\",'1. Order'!I543)","v":""},{"$f":"IF('1. Order'!J543=\"\",\"\",'1. Order'!J543)","v":""},{"$f":"IF('1. Order'!K543=\"\",\"\",'1. Order'!K543)","v":""},{"$f":"IF('1. Order'!M543=\"\",\"\",'1. Order'!M543)","v":""},null,null,{"$f":"IF('1. Order'!AS543=\"\",\"\",'1. Order'!AS543)","v":""},{"$f":"IF('1. Order'!AF543=\"\",\"\",'1. Order'!AF543)","v":""}]
[{"$f":"IF('1. Order'!B544=\"\",\"\",'1. Order'!B544)","v":""},{"$f":"IF('1. Order'!I544=\"\",\"\",'1. Order'!I544)","v":""},{"$f":"IF('1. Order'!J544=\"\",\"\",'1. Order'!J544)","v":""},{"$f":"IF('1. Order'!K544=\"\",\"\",'1. Order'!K544)","v":""},{"$f":"IF('1. Order'!M544=\"\",\"\",'1. Order'!M544)","v":""},null,null,{"$f":"IF('1. Order'!AS544=\"\",\"\",'1. Order'!AS544)","v":""},{"$f":"IF('1. Order'!AF544=\"\",\"\",'1. Order'!AF544)","v":""}]
[{"$f":"IF('1. Order'!B545=\"\",\"\",'1. Order'!B545)","v":""},{"$f":"IF('1. Order'!I545=\"\",\"\",'1. Order'!I545)","v":""},{"$f":"IF('1. Order'!J545=\"\",\"\",'1. Order'!J545)","v":""},{"$f":"IF('1. Order'!K545=\"\",\"\",'1. Order'!K545)","v":""},{"$f":"IF('1. Order'!M545=\"\",\"\",'1. Order'!M545)","v":""},null,null,{"$f":"IF('1. Order'!AS545=\"\",\"\",'1. Order'!AS545)","v":""},{"$f":"IF('1. Order'!AF545=\"\",\"\",'1. Order'!AF545)","v":""}]
[{"$f":"IF('1. Order'!B546=\"\",\"\",'1. Order'!B546)","v":""},{"$f":"IF('1. Order'!I546=\"\",\"\",'1. Order'!I546)","v":""},{"$f":"IF('1. Order'!J546=\"\",\"\",'1. Order'!J546)","v":""},{"$f":"IF('1. Order'!K546=\"\",\"\",'1. Order'!K546)","v":""},{"$f":"IF('1. Order'!M546=\"\",\"\",'1. Order'!M546)","v":""},null,null,{"$f":"IF('1. Order'!AS546=\"\",\"\",'1. Order'!AS546)","v":""},{"$f":"IF('1. Order'!AF546=\"\",\"\",'1. Order'!AF546)","v":""}]
[{"$f":"IF('1. Order'!B547=\"\",\"\",'1. Order'!B547)","v":""},{"$f":"IF('1. Order'!I547=\"\",\"\",'1. Order'!I547)","v":""},{"$f":"IF('1. Order'!J547=\"\",\"\",'1. Order'!J547)","v":""},{"$f":"IF('1. Order'!K547=\"\",\"\",'1. Order'!K547)","v":""},{"$f":"IF('1. Order'!M547=\"\",\"\",'1. Order'!M547)","v":""},null,null,{"$f":"IF('1. Order'!AS547=\"\",\"\",'1. Order'!AS547)","v":""},{"$f":"IF('1. Order'!AF547=\"\",\"\",'1. Order'!AF547)","v":""}]
[{"$f":"IF('1. Order'!B548=\"\",\"\",'1. Order'!B548)","v":""},{"$f":"IF('1. Order'!I548=\"\",\"\",'1. Order'!I548)","v":""},{"$f":"IF('1. Order'!J548=\"\",\"\",'1. Order'!J548)","v":""},{"$f":"IF('1. Order'!K548=\"\",\"\",'1. Order'!K548)","v":""},{"$f":"IF('1. Order'!M548=\"\",\"\",'1. Order'!M548)","v":""},null,null,{"$f":"IF('1. Order'!AS548=\"\",\"\",'1. Order'!AS548)","v":""},{"$f":"IF('1. Order'!AF548=\"\",\"\",'1. Order'!AF548)","v":""}]
[{"$f":"IF('1. Order'!B549=\"\",\"\",'1. Order'!B549)","v":""},{"$f":"IF('1. Order'!I549=\"\",\"\",'1. Order'!I549)","v":""},{"$f":"IF('1. Order'!J549=\"\",\"\",'1. Order'!J549)","v":""},{"$f":"IF('1. Order'!K549=\"\",\"\",'1. Order'!K549)","v":""},{"$f":"IF('1. Order'!M549=\"\",\"\",'1. Order'!M549)","v":""},null,null,{"$f":"IF('1. Order'!AS549=\"\",\"\",'1. Order'!AS549)","v":""},{"$f":"IF('1. Order'!AF549=\"\",\"\",'1. Order'!AF549)","v":""}]
[{"$f":"IF('1. Order'!B550=\"\",\"\",'1. Order'!B550)","v":""},{"$f":"IF('1. Order'!I550=\"\",\"\",'1. Order'!I550)","v":""},{"$f":"IF('1. Order'!J550=\"\",\"\",'1. Order'!J550)","v":""},{"$f":"IF('1. Order'!K550=\"\",\"\",'1. Order'!K550)","v":""},{"$f":"IF('1. Order'!M550=\"\",\"\",'1. Order'!M550)","v":""},null,null,{"$f":"IF('1. Order'!AS550=\"\",\"\",'1. Order'!AS550)","v":""},{"$f":"IF('1. Order'!AF550=\"\",\"\",'1. Order'!AF550)","v":""}]
[{"$f":"IF('1. Order'!B551=\"\",\"\",'1. Order'!B551)","v":""},{"$f":"IF('1. Order'!I551=\"\",\"\",'1. Order'!I551)","v":""},{"$f":"IF('1. Order'!J551=\"\",\"\",'1. Order'!J551)","v":""},{"$f":"IF('1. Order'!K551=\"\",\"\",'1. Order'!K551)","v":""},{"$f":"IF('1. Order'!M551=\"\",\"\",'1. Order'!M551)","v":""},null,null,{"$f":"IF('1. Order'!AS551=\"\",\"\",'1. Order'!AS551)","v":""},{"$f":"IF('1. Order'!AF551=\"\",\"\",'1. Order'!AF551)","v":""}]
[{"$f":"IF('1. Order'!B552=\"\",\"\",'1. Order'!B552)","v":""},{"$f":"IF('1. Order'!I552=\"\",\"\",'1. Order'!I552)","v":""},{"$f":"IF('1. Order'!J552=\"\",\"\",'1. Order'!J552)","v":""},{"$f":"IF('1. Order'!K552=\"\",\"\",'1. Order'!K552)","v":""},{"$f":"IF('1. Order'!M552=\"\",\"\",'1. Order'!M552)","v":""},null,null,{"$f":"IF('1. Order'!AS552=\"\",\"\",'1. Order'!AS552)","v":""},{"$f":"IF('1. Order'!AF552=\"\",\"\",'1. Order'!AF552)","v":""}]
[{"$f":"IF('1. Order'!B553=\"\",\"\",'1. Order'!B553)","v":""},{"$f":"IF('1. Order'!I553=\"\",\"\",'1. Order'!I553)","v":""},{"$f":"IF('1. Order'!J553=\"\",\"\",'1. Order'!J553)","v":""},{"$f":"IF('1. Order'!K553=\"\",\"\",'1. Order'!K553)","v":""},{"$f":"IF('1. Order'!M553=\"\",\"\",'1. Order'!M553)","v":""},null,null,{"$f":"IF('1. Order'!AS553=\"\",\"\",'1. Order'!AS553)","v":""},{"$f":"IF('1. Order'!AF553=\"\",\"\",'1. Order'!AF553)","v":""}]
[{"$f":"IF('1. Order'!B554=\"\",\"\",'1. Order'!B554)","v":""},{"$f":"IF('1. Order'!I554=\"\",\"\",'1. Order'!I554)","v":""},{"$f":"IF('1. Order'!J554=\"\",\"\",'1. Order'!J554)","v":""},{"$f":"IF('1. Order'!K554=\"\",\"\",'1. Order'!K554)","v":""},{"$f":"IF('1. Order'!M554=\"\",\"\",'1. Order'!M554)","v":""},null,null,{"$f":"IF('1. Order'!AS554=\"\",\"\",'1. Order'!AS554)","v":""},{"$f":"IF('1. Order'!AF554=\"\",\"\",'1. Order'!AF554)","v":""}]
[{"$f":"IF('1. Order'!B555=\"\",\"\",'1. Order'!B555)","v":""},{"$f":"IF('1. Order'!I555=\"\",\"\",'1. Order'!I555)","v":""},{"$f":"IF('1. Order'!J555=\"\",\"\",'1. Order'!J555)","v":""},{"$f":"IF('1. Order'!K555=\"\",\"\",'1. Order'!K555)","v":""},{"$f":"IF('1. Order'!M555=\"\",\"\",'1. Order'!M555)","v":""},null,null,{"$f":"IF('1. Order'!AS555=\"\",\"\",'1. Order'!AS555)","v":""},{"$f":"IF('1. Order'!AF555=\"\",\"\",'1. Order'!AF555)","v":""}]
[{"$f":"IF('1. Order'!B556=\"\",\"\",'1. Order'!B556)","v":""},{"$f":"IF('1. Order'!I556=\"\",\"\",'1. Order'!I556)","v":""},{"$f":"IF('1. Order'!J556=\"\",\"\",'1. Order'!J556)","v":""},{"$f":"IF('1. Order'!K556=\"\",\"\",'1. Order'!K556)","v":""},{"$f":"IF('1. Order'!M556=\"\",\"\",'1. Order'!M556)","v":""},null,null,{"$f":"IF('1. Order'!AS556=\"\",\"\",'1. Order'!AS556)","v":""},{"$f":"IF('1. Order'!AF556=\"\",\"\",'1. Order'!AF556)","v":""}]
[{"$f":"IF('1. Order'!B557=\"\",\"\",'1. Order'!B557)","v":""},{"$f":"IF('1. Order'!I557=\"\",\"\",'1. Order'!I557)","v":""},{"$f":"IF('1. Order'!J557=\"\",\"\",'1. Order'!J557)","v":""},{"$f":"IF('1. Order'!K557=\"\",\"\",'1. Order'!K557)","v":""},{"$f":"IF('1. Order'!M557=\"\",\"\",'1. Order'!M557)","v":""},null,null,{"$f":"IF('1. Order'!AS557=\"\",\"\",'1. Order'!AS557)","v":""},{"$f":"IF('1. Order'!AF557=\"\",\"\",'1. Order'!AF557)","v":""}]
[{"$f":"IF('1. Order'!B558=\"\",\"\",'1. Order'!B558)","v":""},{"$f":"IF('1. Order'!I558=\"\",\"\",'1. Order'!I558)","v":""},{"$f":"IF('1. Order'!J558=\"\",\"\",'1. Order'!J558)","v":""},{"$f":"IF('1. Order'!K558=\"\",\"\",'1. Order'!K558)","v":""},{"$f":"IF('1. Order'!M558=\"\",\"\",'1. Order'!M558)","v":""},null,null,{"$f":"IF('1. Order'!AS558=\"\",\"\",'1. Order'!AS558)","v":""},{"$f":"IF('1. Order'!AF558=\"\",\"\",'1. Order'!AF558)","v":""}]
[{"$f":"IF('1. Order'!B559=\"\",\"\",'1. Order'!B559)","v":""},{"$f":"IF('1. Order'!I559=\"\",\"\",'1. Order'!I559)","v":""},{"$f":"IF('1. Order'!J559=\"\",\"\",'1. Order'!J559)","v":""},{"$f":"IF('1. Order'!K559=\"\",\"\",'1. Order'!K559)","v":""},{"$f":"IF('1. Order'!M559=\"\",\"\",'1. Order'!M559)","v":""},null,null,{"$f":"IF('1. Order'!AS559=\"\",\"\",'1. Order'!AS559)","v":""},{"$f":"IF('1. Order'!AF559=\"\",\"\",'1. Order'!AF559)","v":""}]
[{"$f":"IF('1. Order'!B560=\"\",\"\",'1. Order'!B560)","v":""},{"$f":"IF('1. Order'!I560=\"\",\"\",'1. Order'!I560)","v":""},{"$f":"IF('1. Order'!J560=\"\",\"\",'1. Order'!J560)","v":""},{"$f":"IF('1. Order'!K560=\"\",\"\",'1. Order'!K560)","v":""},{"$f":"IF('1. Order'!M560=\"\",\"\",'1. Order'!M560)","v":""},null,null,{"$f":"IF('1. Order'!AS560=\"\",\"\",'1. Order'!AS560)","v":""},{"$f":"IF('1. Order'!AF560=\"\",\"\",'1. Order'!AF560)","v":""}]
[{"$f":"IF('1. Order'!B561=\"\",\"\",'1. Order'!B561)","v":""},{"$f":"IF('1. Order'!I561=\"\",\"\",'1. Order'!I561)","v":""},{"$f":"IF('1. Order'!J561=\"\",\"\",'1. Order'!J561)","v":""},{"$f":"IF('1. Order'!K561=\"\",\"\",'1. Order'!K561)","v":""},{"$f":"IF('1. Order'!M561=\"\",\"\",'1. Order'!M561)","v":""},null,null,{"$f":"IF('1. Order'!AS561=\"\",\"\",'1. Order'!AS561)","v":""},{"$f":"IF('1. Order'!AF561=\"\",\"\",'1. Order'!AF561)","v":""}]
[{"$f":"IF('1. Order'!B562=\"\",\"\",'1. Order'!B562)","v":""},{"$f":"IF('1. Order'!I562=\"\",\"\",'1. Order'!I562)","v":""},{"$f":"IF('1. Order'!J562=\"\",\"\",'1. Order'!J562)","v":""},{"$f":"IF('1. Order'!K562=\"\",\"\",'1. Order'!K562)","v":""},{"$f":"IF('1. Order'!M562=\"\",\"\",'1. Order'!M562)","v":""},null,null,{"$f":"IF('1. Order'!AS562=\"\",\"\",'1. Order'!AS562)","v":""},{"$f":"IF('1. Order'!AF562=\"\",\"\",'1. Order'!AF562)","v":""}]
[{"$f":"IF('1. Order'!B563=\"\",\"\",'1. Order'!B563)","v":""},{"$f":"IF('1. Order'!I563=\"\",\"\",'1. Order'!I563)","v":""},{"$f":"IF('1. Order'!J563=\"\",\"\",'1. Order'!J563)","v":""},{"$f":"IF('1. Order'!K563=\"\",\"\",'1. Order'!K563)","v":""},{"$f":"IF('1. Order'!M563=\"\",\"\",'1. Order'!M563)","v":""},null,null,{"$f":"IF('1. Order'!AS563=\"\",\"\",'1. Order'!AS563)","v":""},{"$f":"IF('1. Order'!AF563=\"\",\"\",'1. Order'!AF563)","v":""}]
[{"$f":"IF('1. Order'!B564=\"\",\"\",'1. Order'!B564)","v":""},{"$f":"IF('1. Order'!I564=\"\",\"\",'1. Order'!I564)","v":""},{"$f":"IF('1. Order'!J564=\"\",\"\",'1. Order'!J564)","v":""},{"$f":"IF('1. Order'!K564=\"\",\"\",'1. Order'!K564)","v":""},{"$f":"IF('1. Order'!M564=\"\",\"\",'1. Order'!M564)","v":""},null,null,{"$f":"IF('1. Order'!AS564=\"\",\"\",'1. Order'!AS564)","v":""},{"$f":"IF('1. Order'!AF564=\"\",\"\",'1. Order'!AF564)","v":""}]
[{"$f":"IF('1. Order'!B565=\"\",\"\",'1. Order'!B565)","v":""},{"$f":"IF('1. Order'!I565=\"\",\"\",'1. Order'!I565)","v":""},{"$f":"IF('1. Order'!J565=\"\",\"\",'1. Order'!J565)","v":""},{"$f":"IF('1. Order'!K565=\"\",\"\",'1. Order'!K565)","v":""},{"$f":"IF('1. Order'!M565=\"\",\"\",'1. Order'!M565)","v":""},null,null,{"$f":"IF('1. Order'!AS565=\"\",\"\",'1. Order'!AS565)","v":""},{"$f":"IF('1. Order'!AF565=\"\",\"\",'1. Order'!AF565)","v":""}]
[{"$f":"IF('1. Order'!B566=\"\",\"\",'1. Order'!B566)","v":""},{"$f":"IF('1. Order'!I566=\"\",\"\",'1. Order'!I566)","v":""},{"$f":"IF('1. Order'!J566=\"\",\"\",'1. Order'!J566)","v":""},{"$f":"IF('1. Order'!K566=\"\",\"\",'1. Order'!K566)","v":""},{"$f":"IF('1. Order'!M566=\"\",\"\",'1. Order'!M566)","v":""},null,null,{"$f":"IF('1. Order'!AS566=\"\",\"\",'1. Order'!AS566)","v":""},{"$f":"IF('1. Order'!AF566=\"\",\"\",'1. Order'!AF566)","v":""}]
[{"$f":"IF('1. Order'!B567=\"\",\"\",'1. Order'!B567)","v":""},{"$f":"IF('1. Order'!I567=\"\",\"\",'1. Order'!I567)","v":""},{"$f":"IF('1. Order'!J567=\"\",\"\",'1. Order'!J567)","v":""},{"$f":"IF('1. Order'!K567=\"\",\"\",'1. Order'!K567)","v":""},{"$f":"IF('1. Order'!M567=\"\",\"\",'1. Order'!M567)","v":""},null,null,{"$f":"IF('1. Order'!AS567=\"\",\"\",'1. Order'!AS567)","v":""},{"$f":"IF('1. Order'!AF567=\"\",\"\",'1. Order'!AF567)","v":""}]
[{"$f":"IF('1. Order'!B568=\"\",\"\",'1. Order'!B568)","v":""},{"$f":"IF('1. Order'!I568=\"\",\"\",'1. Order'!I568)","v":""},{"$f":"IF('1. Order'!J568=\"\",\"\",'1. Order'!J568)","v":""},{"$f":"IF('1. Order'!K568=\"\",\"\",'1. Order'!K568)","v":""},{"$f":"IF('1. Order'!M568=\"\",\"\",'1. Order'!M568)","v":""},null,null,{"$f":"IF('1. Order'!AS568=\"\",\"\",'1. Order'!AS568)","v":""},{"$f":"IF('1. Order'!AF568=\"\",\"\",'1. Order'!AF568)","v":""}]
[{"$f":"IF('1. Order'!B569=\"\",\"\",'1. Order'!B569)","v":""},{"$f":"IF('1. Order'!I569=\"\",\"\",'1. Order'!I569)","v":""},{"$f":"IF('1. Order'!J569=\"\",\"\",'1. Order'!J569)","v":""},{"$f":"IF('1. Order'!K569=\"\",\"\",'1. Order'!K569)","v":""},{"$f":"IF('1. Order'!M569=\"\",\"\",'1. Order'!M569)","v":""},null,null,{"$f":"IF('1. Order'!AS569=\"\",\"\",'1. Order'!AS569)","v":""},{"$f":"IF('1. Order'!AF569=\"\",\"\",'1. Order'!AF569)","v":""}]
[{"$f":"IF('1. Order'!B570=\"\",\"\",'1. Order'!B570)","v":""},{"$f":"IF('1. Order'!I570=\"\",\"\",'1. Order'!I570)","v":""},{"$f":"IF('1. Order'!J570=\"\",\"\",'1. Order'!J570)","v":""},{"$f":"IF('1. Order'!K570=\"\",\"\",'1. Order'!K570)","v":""},{"$f":"IF('1. Order'!M570=\"\",\"\",'1. Order'!M570)","v":""},null,null,{"$f":"IF('1. Order'!AS570=\"\",\"\",'1. Order'!AS570)","v":""},{"$f":"IF('1. Order'!AF570=\"\",\"\",'1. Order'!AF570)","v":""}]
[{"$f":"IF('1. Order'!B571=\"\",\"\",'1. Order'!B571)","v":""},{"$f":"IF('1. Order'!I571=\"\",\"\",'1. Order'!I571)","v":""},{"$f":"IF('1. Order'!J571=\"\",\"\",'1. Order'!J571)","v":""},{"$f":"IF('1. Order'!K571=\"\",\"\",'1. Order'!K571)","v":""},{"$f":"IF('1. Order'!M571=\"\",\"\",'1. Order'!M571)","v":""},null,null,{"$f":"IF('1. Order'!AS571=\"\",\"\",'1. Order'!AS571)","v":""},{"$f":"IF('1. Order'!AF571=\"\",\"\",'1. Order'!AF571)","v":""}]
[{"$f":"IF('1. Order'!B572=\"\",\"\",'1. Order'!B572)","v":""},{"$f":"IF('1. Order'!I572=\"\",\"\",'1. Order'!I572)","v":""},{"$f":"IF('1. Order'!J572=\"\",\"\",'1. Order'!J572)","v":""},{"$f":"IF('1. Order'!K572=\"\",\"\",'1. Order'!K572)","v":""},{"$f":"IF('1. Order'!M572=\"\",\"\",'1. Order'!M572)","v":""},null,null,{"$f":"IF('1. Order'!AS572=\"\",\"\",'1. Order'!AS572)","v":""},{"$f":"IF('1. Order'!AF572=\"\",\"\",'1. Order'!AF572)","v":""}]
[{"$f":"IF('1. Order'!B573=\"\",\"\",'1. Order'!B573)","v":""},{"$f":"IF('1. Order'!I573=\"\",\"\",'1. Order'!I573)","v":""},{"$f":"IF('1. Order'!J573=\"\",\"\",'1. Order'!J573)","v":""},{"$f":"IF('1. Order'!K573=\"\",\"\",'1. Order'!K573)","v":""},{"$f":"IF('1. Order'!M573=\"\",\"\",'1. Order'!M573)","v":""},null,null,{"$f":"IF('1. Order'!AS573=\"\",\"\",'1. Order'!AS573)","v":""},{"$f":"IF('1. Order'!AF573=\"\",\"\",'1. Order'!AF573)","v":""}]
[{"$f":"IF('1. Order'!B574=\"\",\"\",'1. Order'!B574)","v":""},{"$f":"IF('1. Order'!I574=\"\",\"\",'1. Order'!I574)","v":""},{"$f":"IF('1. Order'!J574=\"\",\"\",'1. Order'!J574)","v":""},{"$f":"IF('1. Order'!K574=\"\",\"\",'1. Order'!K574)","v":""},{"$f":"IF('1. Order'!M574=\"\",\"\",'1. Order'!M574)","v":""},null,null,{"$f":"IF('1. Order'!AS574=\"\",\"\",'1. Order'!AS574)","v":""},{"$f":"IF('1. Order'!AF574=\"\",\"\",'1. Order'!AF574)","v":""}]
[{"$f":"IF('1. Order'!B575=\"\",\"\",'1. Order'!B575)","v":""},{"$f":"IF('1. Order'!I575=\"\",\"\",'1. Order'!I575)","v":""},{"$f":"IF('1. Order'!J575=\"\",\"\",'1. Order'!J575)","v":""},{"$f":"IF('1. Order'!K575=\"\",\"\",'1. Order'!K575)","v":""},{"$f":"IF('1. Order'!M575=\"\",\"\",'1. Order'!M575)","v":""},null,null,{"$f":"IF('1. Order'!AS575=\"\",\"\",'1. Order'!AS575)","v":""},{"$f":"IF('1. Order'!AF575=\"\",\"\",'1. Order'!AF575)","v":""}]
[{"$f":"IF('1. Order'!B576=\"\",\"\",'1. Order'!B576)","v":""},{"$f":"IF('1. Order'!I576=\"\",\"\",'1. Order'!I576)","v":""},{"$f":"IF('1. Order'!J576=\"\",\"\",'1. Order'!J576)","v":""},{"$f":"IF('1. Order'!K576=\"\",\"\",'1. Order'!K576)","v":""},{"$f":"IF('1. Order'!M576=\"\",\"\",'1. Order'!M576)","v":""},null,null,{"$f":"IF('1. Order'!AS576=\"\",\"\",'1. Order'!AS576)","v":""},{"$f":"IF('1. Order'!AF576=\"\",\"\",'1. Order'!AF576)","v":""}]
[{"$f":"IF('1. Order'!B577=\"\",\"\",'1. Order'!B577)","v":""},{"$f":"IF('1. Order'!I577=\"\",\"\",'1. Order'!I577)","v":""},{"$f":"IF('1. Order'!J577=\"\",\"\",'1. Order'!J577)","v":""},{"$f":"IF('1. Order'!K577=\"\",\"\",'1. Order'!K577)","v":""},{"$f":"IF('1. Order'!M577=\"\",\"\",'1. Order'!M577)","v":""},null,null,{"$f":"IF('1. Order'!AS577=\"\",\"\",'1. Order'!AS577)","v":""},{"$f":"IF('1. Order'!AF577=\"\",\"\",'1. Order'!AF577)","v":""}]
[{"$f":"IF('1. Order'!B578=\"\",\"\",'1. Order'!B578)","v":""},{"$f":"IF('1. Order'!I578=\"\",\"\",'1. Order'!I578)","v":""},{"$f":"IF('1. Order'!J578=\"\",\"\",'1. Order'!J578)","v":""},{"$f":"IF('1. Order'!K578=\"\",\"\",'1. Order'!K578)","v":""},{"$f":"IF('1. Order'!M578=\"\",\"\",'1. Order'!M578)","v":""},null,null,{"$f":"IF('1. Order'!AS578=\"\",\"\",'1. Order'!AS578)","v":""},{"$f":"IF('1. Order'!AF578=\"\",\"\",'1. Order'!AF578)","v":""}]
[{"$f":"IF('1. Order'!B579=\"\",\"\",'1. Order'!B579)","v":""},{"$f":"IF('1. Order'!I579=\"\",\"\",'1. Order'!I579)","v":""},{"$f":"IF('1. Order'!J579=\"\",\"\",'1. Order'!J579)","v":""},{"$f":"IF('1. Order'!K579=\"\",\"\",'1. Order'!K579)","v":""},{"$f":"IF('1. Order'!M579=\"\",\"\",'1. Order'!M579)","v":""},null,null,{"$f":"IF('1. Order'!AS579=\"\",\"\",'1. Order'!AS579)","v":""},{"$f":"IF('1. Order'!AF579=\"\",\"\",'1. Order'!AF579)","v":""}]
[{"$f":"IF('1. Order'!B580=\"\",\"\",'1. Order'!B580)","v":""},{"$f":"IF('1. Order'!I580=\"\",\"\",'1. Order'!I580)","v":""},{"$f":"IF('1. Order'!J580=\"\",\"\",'1. Order'!J580)","v":""},{"$f":"IF('1. Order'!K580=\"\",\"\",'1. Order'!K580)","v":""},{"$f":"IF('1. Order'!M580=\"\",\"\",'1. Order'!M580)","v":""},null,null,{"$f":"IF('1. Order'!AS580=\"\",\"\",'1. Order'!AS580)","v":""},{"$f":"IF('1. Order'!AF580=\"\",\"\",'1. Order'!AF580)","v":""}]
[{"$f":"IF('1. Order'!B581=\"\",\"\",'1. Order'!B581)","v":""},{"$f":"IF('1. Order'!I581=\"\",\"\",'1. Order'!I581)","v":""},{"$f":"IF('1. Order'!J581=\"\",\"\",'1. Order'!J581)","v":""},{"$f":"IF('1. Order'!K581=\"\",\"\",'1. Order'!K581)","v":""},{"$f":"IF('1. Order'!M581=\"\",\"\",'1. Order'!M581)","v":""},null,null,{"$f":"IF('1. Order'!AS581=\"\",\"\",'1. Order'!AS581)","v":""},{"$f":"IF('1. Order'!AF581=\"\",\"\",'1. Order'!AF581)","v":""}]
[{"$f":"IF('1. Order'!B582=\"\",\"\",'1. Order'!B582)","v":""},{"$f":"IF('1. Order'!I582=\"\",\"\",'1. Order'!I582)","v":""},{"$f":"IF('1. Order'!J582=\"\",\"\",'1. Order'!J582)","v":""},{"$f":"IF('1. Order'!K582=\"\",\"\",'1. Order'!K582)","v":""},{"$f":"IF('1. Order'!M582=\"\",\"\",'1. Order'!M582)","v":""},null,null,{"$f":"IF('1. Order'!AS582=\"\",\"\",'1. Order'!AS582)","v":""},{"$f":"IF('1. Order'!AF582=\"\",\"\",'1. Order'!AF582)","v":""}]
[{"$f":"IF('1. Order'!B583=\"\",\"\",'1. Order'!B583)","v":""},{"$f":"IF('1. Order'!I583=\"\",\"\",'1. Order'!I583)","v":""},{"$f":"IF('1. Order'!J583=\"\",\"\",'1. Order'!J583)","v":""},{"$f":"IF('1. Order'!K583=\"\",\"\",'1. Order'!K583)","v":""},{"$f":"IF('1. Order'!M583=\"\",\"\",'1. Order'!M583)","v":""},null,null,{"$f":"IF('1. Order'!AS583=\"\",\"\",'1. Order'!AS583)","v":""},{"$f":"IF('1. Order'!AF583=\"\",\"\",'1. Order'!AF583)","v":""}]
[{"$f":"IF('1. Order'!B584=\"\",\"\",'1. Order'!B584)","v":""},{"$f":"IF('1. Order'!I584=\"\",\"\",'1. Order'!I584)","v":""},{"$f":"IF('1. Order'!J584=\"\",\"\",'1. Order'!J584)","v":""},{"$f":"IF('1. Order'!K584=\"\",\"\",'1. Order'!K584)","v":""},{"$f":"IF('1. Order'!M584=\"\",\"\",'1. Order'!M584)","v":""},null,null,{"$f":"IF('1. Order'!AS584=\"\",\"\",'1. Order'!AS584)","v":""},{"$f":"IF('1. Order'!AF584=\"\",\"\",'1. Order'!AF584)","v":""}]
[{"$f":"IF('1. Order'!B585=\"\",\"\",'1. Order'!B585)","v":""},{"$f":"IF('1. Order'!I585=\"\",\"\",'1. Order'!I585)","v":""},{"$f":"IF('1. Order'!J585=\"\",\"\",'1. Order'!J585)","v":""},{"$f":"IF('1. Order'!K585=\"\",\"\",'1. Order'!K585)","v":""},{"$f":"IF('1. Order'!M585=\"\",\"\",'1. Order'!M585)","v":""},null,null,{"$f":"IF('1. Order'!AS585=\"\",\"\",'1. Order'!AS585)","v":""},{"$f":"IF('1. Order'!AF585=\"\",\"\",'1. Order'!AF585)","v":""}]
[{"$f":"IF('1. Order'!B586=\"\",\"\",'1. Order'!B586)","v":""},{"$f":"IF('1. Order'!I586=\"\",\"\",'1. Order'!I586)","v":""},{"$f":"IF('1. Order'!J586=\"\",\"\",'1. Order'!J586)","v":""},{"$f":"IF('1. Order'!K586=\"\",\"\",'1. Order'!K586)","v":""},{"$f":"IF('1. Order'!M586=\"\",\"\",'1. Order'!M586)","v":""},null,null,{"$f":"IF('1. Order'!AS586=\"\",\"\",'1. Order'!AS586)","v":""},{"$f":"IF('1. Order'!AF586=\"\",\"\",'1. Order'!AF586)","v":""}]
[{"$f":"IF('1. Order'!B587=\"\",\"\",'1. Order'!B587)","v":""},{"$f":"IF('1. Order'!I587=\"\",\"\",'1. Order'!I587)","v":""},{"$f":"IF('1. Order'!J587=\"\",\"\",'1. Order'!J587)","v":""},{"$f":"IF('1. Order'!K587=\"\",\"\",'1. Order'!K587)","v":""},{"$f":"IF('1. Order'!M587=\"\",\"\",'1. Order'!M587)","v":""},null,null,{"$f":"IF('1. Order'!AS587=\"\",\"\",'1. Order'!AS587)","v":""},{"$f":"IF('1. Order'!AF587=\"\",\"\",'1. Order'!AF587)","v":""}]
[{"$f":"IF('1. Order'!B588=\"\",\"\",'1. Order'!B588)","v":""},{"$f":"IF('1. Order'!I588=\"\",\"\",'1. Order'!I588)","v":""},{"$f":"IF('1. Order'!J588=\"\",\"\",'1. Order'!J588)","v":""},{"$f":"IF('1. Order'!K588=\"\",\"\",'1. Order'!K588)","v":""},{"$f":"IF('1. Order'!M588=\"\",\"\",'1. Order'!M588)","v":""},null,null,{"$f":"IF('1. Order'!AS588=\"\",\"\",'1. Order'!AS588)","v":""},{"$f":"IF('1. Order'!AF588=\"\",\"\",'1. Order'!AF588)","v":""}]
[{"$f":"IF('1. Order'!B589=\"\",\"\",'1. Order'!B589)","v":""},{"$f":"IF('1. Order'!I589=\"\",\"\",'1. Order'!I589)","v":""},{"$f":"IF('1. Order'!J589=\"\",\"\",'1. Order'!J589)","v":""},{"$f":"IF('1. Order'!K589=\"\",\"\",'1. Order'!K589)","v":""},{"$f":"IF('1. Order'!M589=\"\",\"\",'1. Order'!M589)","v":""},null,null,{"$f":"IF('1. Order'!AS589=\"\",\"\",'1. Order'!AS589)","v":""},{"$f":"IF('1. Order'!AF589=\"\",\"\",'1. Order'!AF589)","v":""}]
[{"$f":"IF('1. Order'!B590=\"\",\"\",'1. Order'!B590)","v":""},{"$f":"IF('1. Order'!I590=\"\",\"\",'1. Order'!I590)","v":""},{"$f":"IF('1. Order'!J590=\"\",\"\",'1. Order'!J590)","v":""},{"$f":"IF('1. Order'!K590=\"\",\"\",'1. Order'!K590)","v":""},{"$f":"IF('1. Order'!M590=\"\",\"\",'1. Order'!M590)","v":""},null,null,{"$f":"IF('1. Order'!AS590=\"\",\"\",'1. Order'!AS590)","v":""},{"$f":"IF('1. Order'!AF590=\"\",\"\",'1. Order'!AF590)","v":""}]
[{"$f":"IF('1. Order'!B591=\"\",\"\",'1. Order'!B591)","v":""},{"$f":"IF('1. Order'!I591=\"\",\"\",'1. Order'!I591)","v":""},{"$f":"IF('1. Order'!J591=\"\",\"\",'1. Order'!J591)","v":""},{"$f":"IF('1. Order'!K591=\"\",\"\",'1. Order'!K591)","v":""},{"$f":"IF('1. Order'!M591=\"\",\"\",'1. Order'!M591)","v":""},null,null,{"$f":"IF('1. Order'!AS591=\"\",\"\",'1. Order'!AS591)","v":""},{"$f":"IF('1. Order'!AF591=\"\",\"\",'1. Order'!AF591)","v":""}]
[{"$f":"IF('1. Order'!B592=\"\",\"\",'1. Order'!B592)","v":""},{"$f":"IF('1. Order'!I592=\"\",\"\",'1. Order'!I592)","v":""},{"$f":"IF('1. Order'!J592=\"\",\"\",'1. Order'!J592)","v":""},{"$f":"IF('1. Order'!K592=\"\",\"\",'1. Order'!K592)","v":""},{"$f":"IF('1. Order'!M592=\"\",\"\",'1. Order'!M592)","v":""},null,null,{"$f":"IF('1. Order'!AS592=\"\",\"\",'1. Order'!AS592)","v":""},{"$f":"IF('1. Order'!AF592=\"\",\"\",'1. Order'!AF592)","v":""}]
[{"$f":"IF('1. Order'!B593=\"\",\"\",'1. Order'!B593)","v":""},{"$f":"IF('1. Order'!I593=\"\",\"\",'1. Order'!I593)","v":""},{"$f":"IF('1. Order'!J593=\"\",\"\",'1. Order'!J593)","v":""},{"$f":"IF('1. Order'!K593=\"\",\"\",'1. Order'!K593)","v":""},{"$f":"IF('1. Order'!M593=\"\",\"\",'1. Order'!M593)","v":""},null,null,{"$f":"IF('1. Order'!AS593=\"\",\"\",'1. Order'!AS593)","v":""},{"$f":"IF('1. Order'!AF593=\"\",\"\",'1. Order'!AF593)","v":""}]
[{"$f":"IF('1. Order'!B594=\"\",\"\",'1. Order'!B594)","v":""},{"$f":"IF('1. Order'!I594=\"\",\"\",'1. Order'!I594)","v":""},{"$f":"IF('1. Order'!J594=\"\",\"\",'1. Order'!J594)","v":""},{"$f":"IF('1. Order'!K594=\"\",\"\",'1. Order'!K594)","v":""},{"$f":"IF('1. Order'!M594=\"\",\"\",'1. Order'!M594)","v":""},null,null,{"$f":"IF('1. Order'!AS594=\"\",\"\",'1. Order'!AS594)","v":""},{"$f":"IF('1. Order'!AF594=\"\",\"\",'1. Order'!AF594)","v":""}]
[{"$f":"IF('1. Order'!B595=\"\",\"\",'1. Order'!B595)","v":""},{"$f":"IF('1. Order'!I595=\"\",\"\",'1. Order'!I595)","v":""},{"$f":"IF('1. Order'!J595=\"\",\"\",'1. Order'!J595)","v":""},{"$f":"IF('1. Order'!K595=\"\",\"\",'1. Order'!K595)","v":""},{"$f":"IF('1. Order'!M595=\"\",\"\",'1. Order'!M595)","v":""},null,null,{"$f":"IF('1. Order'!AS595=\"\",\"\",'1. Order'!AS595)","v":""},{"$f":"IF('1. Order'!AF595=\"\",\"\",'1. Order'!AF595)","v":""}]
[{"$f":"IF('1. Order'!B596=\"\",\"\",'1. Order'!B596)","v":""},{"$f":"IF('1. Order'!I596=\"\",\"\",'1. Order'!I596)","v":""},{"$f":"IF('1. Order'!J596=\"\",\"\",'1. Order'!J596)","v":""},{"$f":"IF('1. Order'!K596=\"\",\"\",'1. Order'!K596)","v":""},{"$f":"IF('1. Order'!M596=\"\",\"\",'1. Order'!M596)","v":""},null,null,{"$f":"IF('1. Order'!AS596=\"\",\"\",'1. Order'!AS596)","v":""},{"$f":"IF('1. Order'!AF596=\"\",\"\",'1. Order'!AF596)","v":""}]
[{"$f":"IF('1. Order'!B597=\"\",\"\",'1. Order'!B597)","v":""},{"$f":"IF('1. Order'!I597=\"\",\"\",'1. Order'!I597)","v":""},{"$f":"IF('1. Order'!J597=\"\",\"\",'1. Order'!J597)","v":""},{"$f":"IF('1. Order'!K597=\"\",\"\",'1. Order'!K597)","v":""},{"$f":"IF('1. Order'!M597=\"\",\"\",'1. Order'!M597)","v":""},null,null,{"$f":"IF('1. Order'!AS597=\"\",\"\",'1. Order'!AS597)","v":""},{"$f":"IF('1. Order'!AF597=\"\",\"\",'1. Order'!AF597)","v":""}]
[{"$f":"IF('1. Order'!B598=\"\",\"\",'1. Order'!B598)","v":""},{"$f":"IF('1. Order'!I598=\"\",\"\",'1. Order'!I598)","v":""},{"$f":"IF('1. Order'!J598=\"\",\"\",'1. Order'!J598)","v":""},{"$f":"IF('1. Order'!K598=\"\",\"\",'1. Order'!K598)","v":""},{"$f":"IF('1. Order'!M598=\"\",\"\",'1. Order'!M598)","v":""},null,null,{"$f":"IF('1. Order'!AS598=\"\",\"\",'1. Order'!AS598)","v":""},{"$f":"IF('1. Order'!AF598=\"\",\"\",'1. Order'!AF598)","v":""}]
[{"$f":"IF('1. Order'!B599=\"\",\"\",'1. Order'!B599)","v":""},{"$f":"IF('1. Order'!I599=\"\",\"\",'1. Order'!I599)","v":""},{"$f":"IF('1. Order'!J599=\"\",\"\",'1. Order'!J599)","v":""},{"$f":"IF('1. Order'!K599=\"\",\"\",'1. Order'!K599)","v":""},{"$f":"IF('1. Order'!M599=\"\",\"\",'1. Order'!M599)","v":""},null,null,{"$f":"IF('1. Order'!AS599=\"\",\"\",'1. Order'!AS599)","v":""},{"$f":"IF('1. Order'!AF599=\"\",\"\",'1. Order'!AF599)","v":""}]
[{"$f":"IF('1. Order'!B600=\"\",\"\",'1. Order'!B600)","v":""},{"$f":"IF('1. Order'!I600=\"\",\"\",'1. Order'!I600)","v":""},{"$f":"IF('1. Order'!J600=\"\",\"\",'1. Order'!J600)","v":""},{"$f":"IF('1. Order'!K600=\"\",\"\",'1. Order'!K600)","v":""},{"$f":"IF('1. Order'!M600=\"\",\"\",'1. Order'!M600)","v":""},null,null,{"$f":"IF('1. Order'!AS600=\"\",\"\",'1. Order'!AS600)","v":""},{"$f":"IF('1. Order'!AF600=\"\",\"\",'1. Order'!AF600)","v":""}]
[{"$f":"IF('1. Order'!B601=\"\",\"\",'1. Order'!B601)","v":""},{"$f":"IF('1. Order'!I601=\"\",\"\",'1. Order'!I601)","v":""},{"$f":"IF('1. Order'!J601=\"\",\"\",'1. Order'!J601)","v":""},{"$f":"IF('1. Order'!K601=\"\",\"\",'1. Order'!K601)","v":""},{"$f":"IF('1. Order'!M601=\"\",\"\",'1. Order'!M601)","v":""},null,null,{"$f":"IF('1. Order'!AS601=\"\",\"\",'1. Order'!AS601)","v":""},{"$f":"IF('1. Order'!AF601=\"\",\"\",'1. Order'!AF601)","v":""}]
[{"$f":"IF('1. Order'!B602=\"\",\"\",'1. Order'!B602)","v":""},{"$f":"IF('1. Order'!I602=\"\",\"\",'1. Order'!I602)","v":""},{"$f":"IF('1. Order'!J602=\"\",\"\",'1. Order'!J602)","v":""},{"$f":"IF('1. Order'!K602=\"\",\"\",'1. Order'!K602)","v":""},{"$f":"IF('1. Order'!M602=\"\",\"\",'1. Order'!M602)","v":""},null,null,{"$f":"IF('1. Order'!AS602=\"\",\"\",'1. Order'!AS602)","v":""},{"$f":"IF('1. Order'!AF602=\"\",\"\",'1. Order'!AF602)","v":""}]
[{"$f":"IF('1. Order'!B603=\"\",\"\",'1. Order'!B603)","v":""},{"$f":"IF('1. Order'!I603=\"\",\"\",'1. Order'!I603)","v":""},{"$f":"IF('1. Order'!J603=\"\",\"\",'1. Order'!J603)","v":""},{"$f":"IF('1. Order'!K603=\"\",\"\",'1. Order'!K603)","v":""},{"$f":"IF('1. Order'!M603=\"\",\"\",'1. Order'!M603)","v":""},null,null,{"$f":"IF('1. Order'!AS603=\"\",\"\",'1. Order'!AS603)","v":""},{"$f":"IF('1. Order'!AF603=\"\",\"\",'1. Order'!AF603)","v":""}]
[{"$f":"IF('1. Order'!B604=\"\",\"\",'1. Order'!B604)","v":""},{"$f":"IF('1. Order'!I604=\"\",\"\",'1. Order'!I604)","v":""},{"$f":"IF('1. Order'!J604=\"\",\"\",'1. Order'!J604)","v":""},{"$f":"IF('1. Order'!K604=\"\",\"\",'1. Order'!K604)","v":""},{"$f":"IF('1. Order'!M604=\"\",\"\",'1. Order'!M604)","v":""},null,null,{"$f":"IF('1. Order'!AS604=\"\",\"\",'1. Order'!AS604)","v":""},{"$f":"IF('1. Order'!AF604=\"\",\"\",'1. Order'!AF604)","v":""}]
[{"$f":"IF('1. Order'!B605=\"\",\"\",'1. Order'!B605)","v":""},{"$f":"IF('1. Order'!I605=\"\",\"\",'1. Order'!I605)","v":""},{"$f":"IF('1. Order'!J605=\"\",\"\",'1. Order'!J605)","v":""},{"$f":"IF('1. Order'!K605=\"\",\"\",'1. Order'!K605)","v":""},{"$f":"IF('1. Order'!M605=\"\",\"\",'1. Order'!M605)","v":""},null,null,{"$f":"IF('1. Order'!AS605=\"\",\"\",'1. Order'!AS605)","v":""},{"$f":"IF('1. Order'!AF605=\"\",\"\",'1. Order'!AF605)","v":""}]
[{"$f":"IF('1. Order'!B606=\"\",\"\",'1. Order'!B606)","v":""},{"$f":"IF('1. Order'!I606=\"\",\"\",'1. Order'!I606)","v":""},{"$f":"IF('1. Order'!J606=\"\",\"\",'1. Order'!J606)","v":""},{"$f":"IF('1. Order'!K606=\"\",\"\",'1. Order'!K606)","v":""},{"$f":"IF('1. Order'!M606=\"\",\"\",'1. Order'!M606)","v":""},null,null,{"$f":"IF('1. Order'!AS606=\"\",\"\",'1. Order'!AS606)","v":""},{"$f":"IF('1. Order'!AF606=\"\",\"\",'1. Order'!AF606)","v":""}]
[{"$f":"IF('1. Order'!B607=\"\",\"\",'1. Order'!B607)","v":""},{"$f":"IF('1. Order'!I607=\"\",\"\",'1. Order'!I607)","v":""},{"$f":"IF('1. Order'!J607=\"\",\"\",'1. Order'!J607)","v":""},{"$f":"IF('1. Order'!K607=\"\",\"\",'1. Order'!K607)","v":""},{"$f":"IF('1. Order'!M607=\"\",\"\",'1. Order'!M607)","v":""},null,null,{"$f":"IF('1. Order'!AS607=\"\",\"\",'1. Order'!AS607)","v":""},{"$f":"IF('1. Order'!AF607=\"\",\"\",'1. Order'!AF607)","v":""}]
[{"$f":"IF('1. Order'!B608=\"\",\"\",'1. Order'!B608)","v":""},{"$f":"IF('1. Order'!I608=\"\",\"\",'1. Order'!I608)","v":""},{"$f":"IF('1. Order'!J608=\"\",\"\",'1. Order'!J608)","v":""},{"$f":"IF('1. Order'!K608=\"\",\"\",'1. Order'!K608)","v":""},{"$f":"IF('1. Order'!M608=\"\",\"\",'1. Order'!M608)","v":""},null,null,{"$f":"IF('1. Order'!AS608=\"\",\"\",'1. Order'!AS608)","v":""},{"$f":"IF('1. Order'!AF608=\"\",\"\",'1. Order'!AF608)","v":""}]
[{"$f":"IF('1. Order'!B609=\"\",\"\",'1. Order'!B609)","v":""},{"$f":"IF('1. Order'!I609=\"\",\"\",'1. Order'!I609)","v":""},{"$f":"IF('1. Order'!J609=\"\",\"\",'1. Order'!J609)","v":""},{"$f":"IF('1. Order'!K609=\"\",\"\",'1. Order'!K609)","v":""},{"$f":"IF('1. Order'!M609=\"\",\"\",'1. Order'!M609)","v":""},null,null,{"$f":"IF('1. Order'!AS609=\"\",\"\",'1. Order'!AS609)","v":""},{"$f":"IF('1. Order'!AF609=\"\",\"\",'1. Order'!AF609)","v":""}]
[{"$f":"IF('1. Order'!B610=\"\",\"\",'1. Order'!B610)","v":""},{"$f":"IF('1. Order'!I610=\"\",\"\",'1. Order'!I610)","v":""},{"$f":"IF('1. Order'!J610=\"\",\"\",'1. Order'!J610)","v":""},{"$f":"IF('1. Order'!K610=\"\",\"\",'1. Order'!K610)","v":""},{"$f":"IF('1. Order'!M610=\"\",\"\",'1. Order'!M610)","v":""},null,null,{"$f":"IF('1. Order'!AS610=\"\",\"\",'1. Order'!AS610)","v":""},{"$f":"IF('1. Order'!AF610=\"\",\"\",'1. Order'!AF610)","v":""}]
[{"$f":"IF('1. Order'!B611=\"\",\"\",'1. Order'!B611)","v":""},{"$f":"IF('1. Order'!I611=\"\",\"\",'1. Order'!I611)","v":""},{"$f":"IF('1. Order'!J611=\"\",\"\",'1. Order'!J611)","v":""},{"$f":"IF('1. Order'!K611=\"\",\"\",'1. Order'!K611)","v":""},{"$f":"IF('1. Order'!M611=\"\",\"\",'1. Order'!M611)","v":""},null,null,{"$f":"IF('1. Order'!AS611=\"\",\"\",'1. Order'!AS611)","v":""},{"$f":"IF('1. Order'!AF611=\"\",\"\",'1. Order'!AF611)","v":""}]
[{"$f":"IF('1. Order'!B612=\"\",\"\",'1. Order'!B612)","v":""},{"$f":"IF('1. Order'!I612=\"\",\"\",'1. Order'!I612)","v":""},{"$f":"IF('1. Order'!J612=\"\",\"\",'1. Order'!J612)","v":""},{"$f":"IF('1. Order'!K612=\"\",\"\",'1. Order'!K612)","v":""},{"$f":"IF('1. Order'!M612=\"\",\"\",'1. Order'!M612)","v":""},null,null,{"$f":"IF('1. Order'!AS612=\"\",\"\",'1. Order'!AS612)","v":""},{"$f":"IF('1. Order'!AF612=\"\",\"\",'1. Order'!AF612)","v":""}]
[{"$f":"IF('1. Order'!B613=\"\",\"\",'1. Order'!B613)","v":""},{"$f":"IF('1. Order'!I613=\"\",\"\",'1. Order'!I613)","v":""},{"$f":"IF('1. Order'!J613=\"\",\"\",'1. Order'!J613)","v":""},{"$f":"IF('1. Order'!K613=\"\",\"\",'1. Order'!K613)","v":""},{"$f":"IF('1. Order'!M613=\"\",\"\",'1. Order'!M613)","v":""},null,null,{"$f":"IF('1. Order'!AS613=\"\",\"\",'1. Order'!AS613)","v":""},{"$f":"IF('1. Order'!AF613=\"\",\"\",'1. Order'!AF613)","v":""}]
[{"$f":"IF('1. Order'!B614=\"\",\"\",'1. Order'!B614)","v":""},{"$f":"IF('1. Order'!I614=\"\",\"\",'1. Order'!I614)","v":""},{"$f":"IF('1. Order'!J614=\"\",\"\",'1. Order'!J614)","v":""},{"$f":"IF('1. Order'!K614=\"\",\"\",'1. Order'!K614)","v":""},{"$f":"IF('1. Order'!M614=\"\",\"\",'1. Order'!M614)","v":""},null,null,{"$f":"IF('1. Order'!AS614=\"\",\"\",'1. Order'!AS614)","v":""},{"$f":"IF('1. Order'!AF614=\"\",\"\",'1. Order'!AF614)","v":""}]
[{"$f":"IF('1. Order'!B615=\"\",\"\",'1. Order'!B615)","v":""},{"$f":"IF('1. Order'!I615=\"\",\"\",'1. Order'!I615)","v":""},{"$f":"IF('1. Order'!J615=\"\",\"\",'1. Order'!J615)","v":""},{"$f":"IF('1. Order'!K615=\"\",\"\",'1. Order'!K615)","v":""},{"$f":"IF('1. Order'!M615=\"\",\"\",'1. Order'!M615)","v":""},null,null,{"$f":"IF('1. Order'!AS615=\"\",\"\",'1. Order'!AS615)","v":""},{"$f":"IF('1. Order'!AF615=\"\",\"\",'1. Order'!AF615)","v":""}]
[{"$f":"IF('1. Order'!B616=\"\",\"\",'1. Order'!B616)","v":""},{"$f":"IF('1. Order'!I616=\"\",\"\",'1. Order'!I616)","v":""},{"$f":"IF('1. Order'!J616=\"\",\"\",'1. Order'!J616)","v":""},{"$f":"IF('1. Order'!K616=\"\",\"\",'1. Order'!K616)","v":""},{"$f":"IF('1. Order'!M616=\"\",\"\",'1. Order'!M616)","v":""},null,null,{"$f":"IF('1. Order'!AS616=\"\",\"\",'1. Order'!AS616)","v":""},{"$f":"IF('1. Order'!AF616=\"\",\"\",'1. Order'!AF616)","v":""}]
[{"$f":"IF('1. Order'!B617=\"\",\"\",'1. Order'!B617)","v":""},{"$f":"IF('1. Order'!I617=\"\",\"\",'1. Order'!I617)","v":""},{"$f":"IF('1. Order'!J617=\"\",\"\",'1. Order'!J617)","v":""},{"$f":"IF('1. Order'!K617=\"\",\"\",'1. Order'!K617)","v":""},{"$f":"IF('1. Order'!M617=\"\",\"\",'1. Order'!M617)","v":""},null,null,{"$f":"IF('1. Order'!AS617=\"\",\"\",'1. Order'!AS617)","v":""},{"$f":"IF('1. Order'!AF617=\"\",\"\",'1. Order'!AF617)","v":""}]
[{"$f":"IF('1. Order'!B618=\"\",\"\",'1. Order'!B618)","v":""},{"$f":"IF('1. Order'!I618=\"\",\"\",'1. Order'!I618)","v":""},{"$f":"IF('1. Order'!J618=\"\",\"\",'1. Order'!J618)","v":""},{"$f":"IF('1. Order'!K618=\"\",\"\",'1. Order'!K618)","v":""},{"$f":"IF('1. Order'!M618=\"\",\"\",'1. Order'!M618)","v":""},null,null,{"$f":"IF('1. Order'!AS618=\"\",\"\",'1. Order'!AS618)","v":""},{"$f":"IF('1. Order'!AF618=\"\",\"\",'1. Order'!AF618)","v":""}]
[{"$f":"IF('1. Order'!B619=\"\",\"\",'1. Order'!B619)","v":""},{"$f":"IF('1. Order'!I619=\"\",\"\",'1. Order'!I619)","v":""},{"$f":"IF('1. Order'!J619=\"\",\"\",'1. Order'!J619)","v":""},{"$f":"IF('1. Order'!K619=\"\",\"\",'1. Order'!K619)","v":""},{"$f":"IF('1. Order'!M619=\"\",\"\",'1. Order'!M619)","v":""},null,null,{"$f":"IF('1. Order'!AS619=\"\",\"\",'1. Order'!AS619)","v":""},{"$f":"IF('1. Order'!AF619=\"\",\"\",'1. Order'!AF619)","v":""}]
[{"$f":"IF('1. Order'!B620=\"\",\"\",'1. Order'!B620)","v":""},{"$f":"IF('1. Order'!I620=\"\",\"\",'1. Order'!I620)","v":""},{"$f":"IF('1. Order'!J620=\"\",\"\",'1. Order'!J620)","v":""},{"$f":"IF('1. Order'!K620=\"\",\"\",'1. Order'!K620)","v":""},{"$f":"IF('1. Order'!M620=\"\",\"\",'1. Order'!M620)","v":""},null,null,{"$f":"IF('1. Order'!AS620=\"\",\"\",'1. Order'!AS620)","v":""},{"$f":"IF('1. Order'!AF620=\"\",\"\",'1. Order'!AF620)","v":""}]
[{"$f":"IF('1. Order'!B621=\"\",\"\",'1. Order'!B621)","v":""},{"$f":"IF('1. Order'!I621=\"\",\"\",'1. Order'!I621)","v":""},{"$f":"IF('1. Order'!J621=\"\",\"\",'1. Order'!J621)","v":""},{"$f":"IF('1. Order'!K621=\"\",\"\",'1. Order'!K621)","v":""},{"$f":"IF('1. Order'!M621=\"\",\"\",'1. Order'!M621)","v":""},null,null,{"$f":"IF('1. Order'!AS621=\"\",\"\",'1. Order'!AS621)","v":""},{"$f":"IF('1. Order'!AF621=\"\",\"\",'1. Order'!AF621)","v":""}]
[{"$f":"IF('1. Order'!B622=\"\",\"\",'1. Order'!B622)","v":""},{"$f":"IF('1. Order'!I622=\"\",\"\",'1. Order'!I622)","v":""},{"$f":"IF('1. Order'!J622=\"\",\"\",'1. Order'!J622)","v":""},{"$f":"IF('1. Order'!K622=\"\",\"\",'1. Order'!K622)","v":""},{"$f":"IF('1. Order'!M622=\"\",\"\",'1. Order'!M622)","v":""},null,null,{"$f":"IF('1. Order'!AS622=\"\",\"\",'1. Order'!AS622)","v":""},{"$f":"IF('1. Order'!AF622=\"\",\"\",'1. Order'!AF622)","v":""}]
[{"$f":"IF('1. Order'!B623=\"\",\"\",'1. Order'!B623)","v":""},{"$f":"IF('1. Order'!I623=\"\",\"\",'1. Order'!I623)","v":""},{"$f":"IF('1. Order'!J623=\"\",\"\",'1. Order'!J623)","v":""},{"$f":"IF('1. Order'!K623=\"\",\"\",'1. Order'!K623)","v":""},{"$f":"IF('1. Order'!M623=\"\",\"\",'1. Order'!M623)","v":""},null,null,{"$f":"IF('1. Order'!AS623=\"\",\"\",'1. Order'!AS623)","v":""},{"$f":"IF('1. Order'!AF623=\"\",\"\",'1. Order'!AF623)","v":""}]
[{"$f":"IF('1. Order'!B624=\"\",\"\",'1. Order'!B624)","v":""},{"$f":"IF('1. Order'!I624=\"\",\"\",'1. Order'!I624)","v":""},{"$f":"IF('1. Order'!J624=\"\",\"\",'1. Order'!J624)","v":""},{"$f":"IF('1. Order'!K624=\"\",\"\",'1. Order'!K624)","v":""},{"$f":"IF('1. Order'!M624=\"\",\"\",'1. Order'!M624)","v":""},null,null,{"$f":"IF('1. Order'!AS624=\"\",\"\",'1. Order'!AS624)","v":""},{"$f":"IF('1. Order'!AF624=\"\",\"\",'1. Order'!AF624)","v":""}]
[{"$f":"IF('1. Order'!B625=\"\",\"\",'1. Order'!B625)","v":""},{"$f":"IF('1. Order'!I625=\"\",\"\",'1. Order'!I625)","v":""},{"$f":"IF('1. Order'!J625=\"\",\"\",'1. Order'!J625)","v":""},{"$f":"IF('1. Order'!K625=\"\",\"\",'1. Order'!K625)","v":""},{"$f":"IF('1. Order'!M625=\"\",\"\",'1. Order'!M625)","v":""},null,null,{"$f":"IF('1. Order'!AS625=\"\",\"\",'1. Order'!AS625)","v":""},{"$f":"IF('1. Order'!AF625=\"\",\"\",'1. Order'!AF625)","v":""}]
[{"$f":"IF('1. Order'!B626=\"\",\"\",'1. Order'!B626)","v":""},{"$f":"IF('1. Order'!I626=\"\",\"\",'1. Order'!I626)","v":""},{"$f":"IF('1. Order'!J626=\"\",\"\",'1. Order'!J626)","v":""},{"$f":"IF('1. Order'!K626=\"\",\"\",'1. Order'!K626)","v":""},{"$f":"IF('1. Order'!M626=\"\",\"\",'1. Order'!M626)","v":""},null,null,{"$f":"IF('1. Order'!AS626=\"\",\"\",'1. Order'!AS626)","v":""},{"$f":"IF('1. Order'!AF626=\"\",\"\",'1. Order'!AF626)","v":""}]
[{"$f":"IF('1. Order'!B627=\"\",\"\",'1. Order'!B627)","v":""},{"$f":"IF('1. Order'!I627=\"\",\"\",'1. Order'!I627)","v":""},{"$f":"IF('1. Order'!J627=\"\",\"\",'1. Order'!J627)","v":""},{"$f":"IF('1. Order'!K627=\"\",\"\",'1. Order'!K627)","v":""},{"$f":"IF('1. Order'!M627=\"\",\"\",'1. Order'!M627)","v":""},null,null,{"$f":"IF('1. Order'!AS627=\"\",\"\",'1. Order'!AS627)","v":""},{"$f":"IF('1. Order'!AF627=\"\",\"\",'1. Order'!AF627)","v":""}]
[{"$f":"IF('1. Order'!B628=\"\",\"\",'1. Order'!B628)","v":""},{"$f":"IF('1. Order'!I628=\"\",\"\",'1. Order'!I628)","v":""},{"$f":"IF('1. Order'!J628=\"\",\"\",'1. Order'!J628)","v":""},{"$f":"IF('1. Order'!K628=\"\",\"\",'1. Order'!K628)","v":""},{"$f":"IF('1. Order'!M628=\"\",\"\",'1. Order'!M628)","v":""},null,null,{"$f":"IF('1. Order'!AS628=\"\",\"\",'1. Order'!AS628)","v":""},{"$f":"IF('1. Order'!AF628=\"\",\"\",'1. Order'!AF628)","v":""}]
[{"$f":"IF('1. Order'!B629=\"\",\"\",'1. Order'!B629)","v":""},{"$f":"IF('1. Order'!I629=\"\",\"\",'1. Order'!I629)","v":""},{"$f":"IF('1. Order'!J629=\"\",\"\",'1. Order'!J629)","v":""},{"$f":"IF('1. Order'!K629=\"\",\"\",'1. Order'!K629)","v":""},{"$f":"IF('1. Order'!M629=\"\",\"\",'1. Order'!M629)","v":""},null,null,{"$f":"IF('1. Order'!AS629=\"\",\"\",'1. Order'!AS629)","v":""},{"$f":"IF('1. Order'!AF629=\"\",\"\",'1. Order'!AF629)","v":""}]
[{"$f":"IF('1. Order'!B630=\"\",\"\",'1. Order'!B630)","v":""},{"$f":"IF('1. Order'!I630=\"\",\"\",'1. Order'!I630)","v":""},{"$f":"IF('1. Order'!J630=\"\",\"\",'1. Order'!J630)","v":""},{"$f":"IF('1. Order'!K630=\"\",\"\",'1. Order'!K630)","v":""},{"$f":"IF('1. Order'!M630=\"\",\"\",'1. Order'!M630)","v":""},null,null,{"$f":"IF('1. Order'!AS630=\"\",\"\",'1. Order'!AS630)","v":""},{"$f":"IF('1. Order'!AF630=\"\",\"\",'1. Order'!AF630)","v":""}]
[{"$f":"IF('1. Order'!B631=\"\",\"\",'1. Order'!B631)","v":""},{"$f":"IF('1. Order'!I631=\"\",\"\",'1. Order'!I631)","v":""},{"$f":"IF('1. Order'!J631=\"\",\"\",'1. Order'!J631)","v":""},{"$f":"IF('1. Order'!K631=\"\",\"\",'1. Order'!K631)","v":""},{"$f":"IF('1. Order'!M631=\"\",\"\",'1. Order'!M631)","v":""},null,null,{"$f":"IF('1. Order'!AS631=\"\",\"\",'1. Order'!AS631)","v":""},{"$f":"IF('1. Order'!AF631=\"\",\"\",'1. Order'!AF631)","v":""}]
[{"$f":"IF('1. Order'!B632=\"\",\"\",'1. Order'!B632)","v":""},{"$f":"IF('1. Order'!I632=\"\",\"\",'1. Order'!I632)","v":""},{"$f":"IF('1. Order'!J632=\"\",\"\",'1. Order'!J632)","v":""},{"$f":"IF('1. Order'!K632=\"\",\"\",'1. Order'!K632)","v":""},{"$f":"IF('1. Order'!M632=\"\",\"\",'1. Order'!M632)","v":""},null,null,{"$f":"IF('1. Order'!AS632=\"\",\"\",'1. Order'!AS632)","v":""},{"$f":"IF('1. Order'!AF632=\"\",\"\",'1. Order'!AF632)","v":""}]
[{"$f":"IF('1. Order'!B633=\"\",\"\",'1. Order'!B633)","v":""},{"$f":"IF('1. Order'!I633=\"\",\"\",'1. Order'!I633)","v":""},{"$f":"IF('1. Order'!J633=\"\",\"\",'1. Order'!J633)","v":""},{"$f":"IF('1. Order'!K633=\"\",\"\",'1. Order'!K633)","v":""},{"$f":"IF('1. Order'!M633=\"\",\"\",'1. Order'!M633)","v":""},null,null,{"$f":"IF('1. Order'!AS633=\"\",\"\",'1. Order'!AS633)","v":""},{"$f":"IF('1. Order'!AF633=\"\",\"\",'1. Order'!AF633)","v":""}]
[{"$f":"IF('1. Order'!B634=\"\",\"\",'1. Order'!B634)","v":""},{"$f":"IF('1. Order'!I634=\"\",\"\",'1. Order'!I634)","v":""},{"$f":"IF('1. Order'!J634=\"\",\"\",'1. Order'!J634)","v":""},{"$f":"IF('1. Order'!K634=\"\",\"\",'1. Order'!K634)","v":""},{"$f":"IF('1. Order'!M634=\"\",\"\",'1. Order'!M634)","v":""},null,null,{"$f":"IF('1. Order'!AS634=\"\",\"\",'1. Order'!AS634)","v":""},{"$f":"IF('1. Order'!AF634=\"\",\"\",'1. Order'!AF634)","v":""}]
[{"$f":"IF('1. Order'!B635=\"\",\"\",'1. Order'!B635)","v":""},{"$f":"IF('1. Order'!I635=\"\",\"\",'1. Order'!I635)","v":""},{"$f":"IF('1. Order'!J635=\"\",\"\",'1. Order'!J635)","v":""},{"$f":"IF('1. Order'!K635=\"\",\"\",'1. Order'!K635)","v":""},{"$f":"IF('1. Order'!M635=\"\",\"\",'1. Order'!M635)","v":""},null,null,{"$f":"IF('1. Order'!AS635=\"\",\"\",'1. Order'!AS635)","v":""},{"$f":"IF('1. Order'!AF635=\"\",\"\",'1. Order'!AF635)","v":""}]
[{"$f":"IF('1. Order'!B636=\"\",\"\",'1. Order'!B636)","v":""},{"$f":"IF('1. Order'!I636=\"\",\"\",'1. Order'!I636)","v":""},{"$f":"IF('1. Order'!J636=\"\",\"\",'1. Order'!J636)","v":""},{"$f":"IF('1. Order'!K636=\"\",\"\",'1. Order'!K636)","v":""},{"$f":"IF('1. Order'!M636=\"\",\"\",'1. Order'!M636)","v":""},null,null,{"$f":"IF('1. Order'!AS636=\"\",\"\",'1. Order'!AS636)","v":""},{"$f":"IF('1. Order'!AF636=\"\",\"\",'1. Order'!AF636)","v":""}]
[{"$f":"IF('1. Order'!B637=\"\",\"\",'1. Order'!B637)","v":""},{"$f":"IF('1. Order'!I637=\"\",\"\",'1. Order'!I637)","v":""},{"$f":"IF('1. Order'!J637=\"\",\"\",'1. Order'!J637)","v":""},{"$f":"IF('1. Order'!K637=\"\",\"\",'1. Order'!K637)","v":""},{"$f":"IF('1. Order'!M637=\"\",\"\",'1. Order'!M637)","v":""},null,null,{"$f":"IF('1. Order'!AS637=\"\",\"\",'1. Order'!AS637)","v":""},{"$f":"IF('1. Order'!AF637=\"\",\"\",'1. Order'!AF637)","v":""}]
[{"$f":"IF('1. Order'!B638=\"\",\"\",'1. Order'!B638)","v":""},{"$f":"IF('1. Order'!I638=\"\",\"\",'1. Order'!I638)","v":""},{"$f":"IF('1. Order'!J638=\"\",\"\",'1. Order'!J638)","v":""},{"$f":"IF('1. Order'!K638=\"\",\"\",'1. Order'!K638)","v":""},{"$f":"IF('1. Order'!M638=\"\",\"\",'1. Order'!M638)","v":""},null,null,{"$f":"IF('1. Order'!AS638=\"\",\"\",'1. Order'!AS638)","v":""},{"$f":"IF('1. Order'!AF638=\"\",\"\",'1. Order'!AF638)","v":""}]
[{"$f":"IF('1. Order'!B639=\"\",\"\",'1. Order'!B639)","v":""},{"$f":"IF('1. Order'!I639=\"\",\"\",'1. Order'!I639)","v":""},{"$f":"IF('1. Order'!J639=\"\",\"\",'1. Order'!J639)","v":""},{"$f":"IF('1. Order'!K639=\"\",\"\",'1. Order'!K639)","v":""},{"$f":"IF('1. Order'!M639=\"\",\"\",'1. Order'!M639)","v":""},null,null,{"$f":"IF('1. Order'!AS639=\"\",\"\",'1. Order'!AS639)","v":""},{"$f":"IF('1. Order'!AF639=\"\",\"\",'1. Order'!AF639)","v":""}]
[{"$f":"IF('1. Order'!B640=\"\",\"\",'1. Order'!B640)","v":""},{"$f":"IF('1. Order'!I640=\"\",\"\",'1. Order'!I640)","v":""},{"$f":"IF('1. Order'!J640=\"\",\"\",'1. Order'!J640)","v":""},{"$f":"IF('1. Order'!K640=\"\",\"\",'1. Order'!K640)","v":""},{"$f":"IF('1. Order'!M640=\"\",\"\",'1. Order'!M640)","v":""},null,null,{"$f":"IF('1. Order'!AS640=\"\",\"\",'1. Order'!AS640)","v":""},{"$f":"IF('1. Order'!AF640=\"\",\"\",'1. Order'!AF640)","v":""}]
[{"$f":"IF('1. Order'!B641=\"\",\"\",'1. Order'!B641)","v":""},{"$f":"IF('1. Order'!I641=\"\",\"\",'1. Order'!I641)","v":""},{"$f":"IF('1. Order'!J641=\"\",\"\",'1. Order'!J641)","v":""},{"$f":"IF('1. Order'!K641=\"\",\"\",'1. Order'!K641)","v":""},{"$f":"IF('1. Order'!M641=\"\",\"\",'1. Order'!M641)","v":""},null,null,{"$f":"IF('1. Order'!AS641=\"\",\"\",'1. Order'!AS641)","v":""},{"$f":"IF('1. Order'!AF641=\"\",\"\",'1. Order'!AF641)","v":""}]
[{"$f":"IF('1. Order'!B642=\"\",\"\",'1. Order'!B642)","v":""},{"$f":"IF('1. Order'!I642=\"\",\"\",'1. Order'!I642)","v":""},{"$f":"IF('1. Order'!J642=\"\",\"\",'1. Order'!J642)","v":""},{"$f":"IF('1. Order'!K642=\"\",\"\",'1. Order'!K642)","v":""},{"$f":"IF('1. Order'!M642=\"\",\"\",'1. Order'!M642)","v":""},null,null,{"$f":"IF('1. Order'!AS642=\"\",\"\",'1. Order'!AS642)","v":""},{"$f":"IF('1. Order'!AF642=\"\",\"\",'1. Order'!AF642)","v":""}]
[{"$f":"IF('1. Order'!B643=\"\",\"\",'1. Order'!B643)","v":""},{"$f":"IF('1. Order'!I643=\"\",\"\",'1. Order'!I643)","v":""},{"$f":"IF('1. Order'!J643=\"\",\"\",'1. Order'!J643)","v":""},{"$f":"IF('1. Order'!K643=\"\",\"\",'1. Order'!K643)","v":""},{"$f":"IF('1. Order'!M643=\"\",\"\",'1. Order'!M643)","v":""},null,null,{"$f":"IF('1. Order'!AS643=\"\",\"\",'1. Order'!AS643)","v":""},{"$f":"IF('1. Order'!AF643=\"\",\"\",'1. Order'!AF643)","v":""}]
[{"$f":"IF('1. Order'!B644=\"\",\"\",'1. Order'!B644)","v":""},{"$f":"IF('1. Order'!I644=\"\",\"\",'1. Order'!I644)","v":""},{"$f":"IF('1. Order'!J644=\"\",\"\",'1. Order'!J644)","v":""},{"$f":"IF('1. Order'!K644=\"\",\"\",'1. Order'!K644)","v":""},{"$f":"IF('1. Order'!M644=\"\",\"\",'1. Order'!M644)","v":""},null,null,{"$f":"IF('1. Order'!AS644=\"\",\"\",'1. Order'!AS644)","v":""},{"$f":"IF('1. Order'!AF644=\"\",\"\",'1. Order'!AF644)","v":""}]
[{"$f":"IF('1. Order'!B645=\"\",\"\",'1. Order'!B645)","v":""},{"$f":"IF('1. Order'!I645=\"\",\"\",'1. Order'!I645)","v":""},{"$f":"IF('1. Order'!J645=\"\",\"\",'1. Order'!J645)","v":""},{"$f":"IF('1. Order'!K645=\"\",\"\",'1. Order'!K645)","v":""},{"$f":"IF('1. Order'!M645=\"\",\"\",'1. Order'!M645)","v":""},null,null,{"$f":"IF('1. Order'!AS645=\"\",\"\",'1. Order'!AS645)","v":""},{"$f":"IF('1. Order'!AF645=\"\",\"\",'1. Order'!AF645)","v":""}]
[{"$f":"IF('1. Order'!B646=\"\",\"\",'1. Order'!B646)","v":""},{"$f":"IF('1. Order'!I646=\"\",\"\",'1. Order'!I646)","v":""},{"$f":"IF('1. Order'!J646=\"\",\"\",'1. Order'!J646)","v":""},{"$f":"IF('1. Order'!K646=\"\",\"\",'1. Order'!K646)","v":""},{"$f":"IF('1. Order'!M646=\"\",\"\",'1. Order'!M646)","v":""},null,null,{"$f":"IF('1. Order'!AS646=\"\",\"\",'1. Order'!AS646)","v":""},{"$f":"IF('1. Order'!AF646=\"\",\"\",'1. Order'!AF646)","v":""}]
[{"$f":"IF('1. Order'!B647=\"\",\"\",'1. Order'!B647)","v":""},{"$f":"IF('1. Order'!I647=\"\",\"\",'1. Order'!I647)","v":""},{"$f":"IF('1. Order'!J647=\"\",\"\",'1. Order'!J647)","v":""},{"$f":"IF('1. Order'!K647=\"\",\"\",'1. Order'!K647)","v":""},{"$f":"IF('1. Order'!M647=\"\",\"\",'1. Order'!M647)","v":""},null,null,{"$f":"IF('1. Order'!AS647=\"\",\"\",'1. Order'!AS647)","v":""},{"$f":"IF('1. Order'!AF647=\"\",\"\",'1. Order'!AF647)","v":""}]
[{"$f":"IF('1. Order'!B648=\"\",\"\",'1. Order'!B648)","v":""},{"$f":"IF('1. Order'!I648=\"\",\"\",'1. Order'!I648)","v":""},{"$f":"IF('1. Order'!J648=\"\",\"\",'1. Order'!J648)","v":""},{"$f":"IF('1. Order'!K648=\"\",\"\",'1. Order'!K648)","v":""},{"$f":"IF('1. Order'!M648=\"\",\"\",'1. Order'!M648)","v":""},null,null,{"$f":"IF('1. Order'!AS648=\"\",\"\",'1. Order'!AS648)","v":""},{"$f":"IF('1. Order'!AF648=\"\",\"\",'1. Order'!AF648)","v":""}]
[{"$f":"IF('1. Order'!B649=\"\",\"\",'1. Order'!B649)","v":""},{"$f":"IF('1. Order'!I649=\"\",\"\",'1. Order'!I649)","v":""},{"$f":"IF('1. Order'!J649=\"\",\"\",'1. Order'!J649)","v":""},{"$f":"IF('1. Order'!K649=\"\",\"\",'1. Order'!K649)","v":""},{"$f":"IF('1. Order'!M649=\"\",\"\",'1. Order'!M649)","v":""},null,null,{"$f":"IF('1. Order'!AS649=\"\",\"\",'1. Order'!AS649)","v":""},{"$f":"IF('1. Order'!AF649=\"\",\"\",'1. Order'!AF649)","v":""}]
[{"$f":"IF('1. Order'!B650=\"\",\"\",'1. Order'!B650)","v":""},{"$f":"IF('1. Order'!I650=\"\",\"\",'1. Order'!I650)","v":""},{"$f":"IF('1. Order'!J650=\"\",\"\",'1. Order'!J650)","v":""},{"$f":"IF('1. Order'!K650=\"\",\"\",'1. Order'!K650)","v":""},{"$f":"IF('1. Order'!M650=\"\",\"\",'1. Order'!M650)","v":""},null,null,{"$f":"IF('1. Order'!AS650=\"\",\"\",'1. Order'!AS650)","v":""},{"$f":"IF('1. Order'!AF650=\"\",\"\",'1. Order'!AF650)","v":""}]
[{"$f":"IF('1. Order'!B651=\"\",\"\",'1. Order'!B651)","v":""},{"$f":"IF('1. Order'!I651=\"\",\"\",'1. Order'!I651)","v":""},{"$f":"IF('1. Order'!J651=\"\",\"\",'1. Order'!J651)","v":""},{"$f":"IF('1. Order'!K651=\"\",\"\",'1. Order'!K651)","v":""},{"$f":"IF('1. Order'!M651=\"\",\"\",'1. Order'!M651)","v":""},null,null,{"$f":"IF('1. Order'!AS651=\"\",\"\",'1. Order'!AS651)","v":""},{"$f":"IF('1. Order'!AF651=\"\",\"\",'1. Order'!AF651)","v":""}]
[{"$f":"IF('1. Order'!B652=\"\",\"\",'1. Order'!B652)","v":""},{"$f":"IF('1. Order'!I652=\"\",\"\",'1. Order'!I652)","v":""},{"$f":"IF('1. Order'!J652=\"\",\"\",'1. Order'!J652)","v":""},{"$f":"IF('1. Order'!K652=\"\",\"\",'1. Order'!K652)","v":""},{"$f":"IF('1. Order'!M652=\"\",\"\",'1. Order'!M652)","v":""},null,null,{"$f":"IF('1. Order'!AS652=\"\",\"\",'1. Order'!AS652)","v":""},{"$f":"IF('1. Order'!AF652=\"\",\"\",'1. Order'!AF652)","v":""}]
[{"$f":"IF('1. Order'!B653=\"\",\"\",'1. Order'!B653)","v":""},{"$f":"IF('1. Order'!I653=\"\",\"\",'1. Order'!I653)","v":""},{"$f":"IF('1. Order'!J653=\"\",\"\",'1. Order'!J653)","v":""},{"$f":"IF('1. Order'!K653=\"\",\"\",'1. Order'!K653)","v":""},{"$f":"IF('1. Order'!M653=\"\",\"\",'1. Order'!M653)","v":""},null,null,{"$f":"IF('1. Order'!AS653=\"\",\"\",'1. Order'!AS653)","v":""},{"$f":"IF('1. Order'!AF653=\"\",\"\",'1. Order'!AF653)","v":""}]
[{"$f":"IF('1. Order'!B654=\"\",\"\",'1. Order'!B654)","v":""},{"$f":"IF('1. Order'!I654=\"\",\"\",'1. Order'!I654)","v":""},{"$f":"IF('1. Order'!J654=\"\",\"\",'1. Order'!J654)","v":""},{"$f":"IF('1. Order'!K654=\"\",\"\",'1. Order'!K654)","v":""},{"$f":"IF('1. Order'!M654=\"\",\"\",'1. Order'!M654)","v":""},null,null,{"$f":"IF('1. Order'!AS654=\"\",\"\",'1. Order'!AS654)","v":""},{"$f":"IF('1. Order'!AF654=\"\",\"\",'1. Order'!AF654)","v":""}]
[{"$f":"IF('1. Order'!B655=\"\",\"\",'1. Order'!B655)","v":""},{"$f":"IF('1. Order'!I655=\"\",\"\",'1. Order'!I655)","v":""},{"$f":"IF('1. Order'!J655=\"\",\"\",'1. Order'!J655)","v":""},{"$f":"IF('1. Order'!K655=\"\",\"\",'1. Order'!K655)","v":""},{"$f":"IF('1. Order'!M655=\"\",\"\",'1. Order'!M655)","v":""},null,null,{"$f":"IF('1. Order'!AS655=\"\",\"\",'1. Order'!AS655)","v":""},{"$f":"IF('1. Order'!AF655=\"\",\"\",'1. Order'!AF655)","v":""}]
[{"$f":"IF('1. Order'!B656=\"\",\"\",'1. Order'!B656)","v":""},{"$f":"IF('1. Order'!I656=\"\",\"\",'1. Order'!I656)","v":""},{"$f":"IF('1. Order'!J656=\"\",\"\",'1. Order'!J656)","v":""},{"$f":"IF('1. Order'!K656=\"\",\"\",'1. Order'!K656)","v":""},{"$f":"IF('1. Order'!M656=\"\",\"\",'1. Order'!M656)","v":""},null,null,{"$f":"IF('1. Order'!AS656=\"\",\"\",'1. Order'!AS656)","v":""},{"$f":"IF('1. Order'!AF656=\"\",\"\",'1. Order'!AF656)","v":""}]
[{"$f":"IF('1. Order'!B657=\"\",\"\",'1. Order'!B657)","v":""},{"$f":"IF('1. Order'!I657=\"\",\"\",'1. Order'!I657)","v":""},{"$f":"IF('1. Order'!J657=\"\",\"\",'1. Order'!J657)","v":""},{"$f":"IF('1. Order'!K657=\"\",\"\",'1. Order'!K657)","v":""},{"$f":"IF('1. Order'!M657=\"\",\"\",'1. Order'!M657)","v":""},null,null,{"$f":"IF('1. Order'!AS657=\"\",\"\",'1. Order'!AS657)","v":""},{"$f":"IF('1. Order'!AF657=\"\",\"\",'1. Order'!AF657)","v":""}]
[{"$f":"IF('1. Order'!B658=\"\",\"\",'1. Order'!B658)","v":""},{"$f":"IF('1. Order'!I658=\"\",\"\",'1. Order'!I658)","v":""},{"$f":"IF('1. Order'!J658=\"\",\"\",'1. Order'!J658)","v":""},{"$f":"IF('1. Order'!K658=\"\",\"\",'1. Order'!K658)","v":""},{"$f":"IF('1. Order'!M658=\"\",\"\",'1. Order'!M658)","v":""},null,null,{"$f":"IF('1. Order'!AS658=\"\",\"\",'1. Order'!AS658)","v":""},{"$f":"IF('1. Order'!AF658=\"\",\"\",'1. Order'!AF658)","v":""}]
[{"$f":"IF('1. Order'!B659=\"\",\"\",'1. Order'!B659)","v":""},{"$f":"IF('1. Order'!I659=\"\",\"\",'1. Order'!I659)","v":""},{"$f":"IF('1. Order'!J659=\"\",\"\",'1. Order'!J659)","v":""},{"$f":"IF('1. Order'!K659=\"\",\"\",'1. Order'!K659)","v":""},{"$f":"IF('1. Order'!M659=\"\",\"\",'1. Order'!M659)","v":""},null,null,{"$f":"IF('1. Order'!AS659=\"\",\"\",'1. Order'!AS659)","v":""},{"$f":"IF('1. Order'!AF659=\"\",\"\",'1. Order'!AF659)","v":""}]
[{"$f":"IF('1. Order'!B660=\"\",\"\",'1. Order'!B660)","v":""},{"$f":"IF('1. Order'!I660=\"\",\"\",'1. Order'!I660)","v":""},{"$f":"IF('1. Order'!J660=\"\",\"\",'1. Order'!J660)","v":""},{"$f":"IF('1. Order'!K660=\"\",\"\",'1. Order'!K660)","v":""},{"$f":"IF('1. Order'!M660=\"\",\"\",'1. Order'!M660)","v":""},null,null,{"$f":"IF('1. Order'!AS660=\"\",\"\",'1. Order'!AS660)","v":""},{"$f":"IF('1. Order'!AF660=\"\",\"\",'1. Order'!AF660)","v":""}]
[{"$f":"IF('1. Order'!B661=\"\",\"\",'1. Order'!B661)","v":""},{"$f":"IF('1. Order'!I661=\"\",\"\",'1. Order'!I661)","v":""},{"$f":"IF('1. Order'!J661=\"\",\"\",'1. Order'!J661)","v":""},{"$f":"IF('1. Order'!K661=\"\",\"\",'1. Order'!K661)","v":""},{"$f":"IF('1. Order'!M661=\"\",\"\",'1. Order'!M661)","v":""},null,null,{"$f":"IF('1. Order'!AS661=\"\",\"\",'1. Order'!AS661)","v":""},{"$f":"IF('1. Order'!AF661=\"\",\"\",'1. Order'!AF661)","v":""}]
[{"$f":"IF('1. Order'!B662=\"\",\"\",'1. Order'!B662)","v":""},{"$f":"IF('1. Order'!I662=\"\",\"\",'1. Order'!I662)","v":""},{"$f":"IF('1. Order'!J662=\"\",\"\",'1. Order'!J662)","v":""},{"$f":"IF('1. Order'!K662=\"\",\"\",'1. Order'!K662)","v":""},{"$f":"IF('1. Order'!M662=\"\",\"\",'1. Order'!M662)","v":""},null,null,{"$f":"IF('1. Order'!AS662=\"\",\"\",'1. Order'!AS662)","v":""},{"$f":"IF('1. Order'!AF662=\"\",\"\",'1. Order'!AF662)","v":""}]
[{"$f":"IF('1. Order'!B663=\"\",\"\",'1. Order'!B663)","v":""},{"$f":"IF('1. Order'!I663=\"\",\"\",'1. Order'!I663)","v":""},{"$f":"IF('1. Order'!J663=\"\",\"\",'1. Order'!J663)","v":""},{"$f":"IF('1. Order'!K663=\"\",\"\",'1. Order'!K663)","v":""},{"$f":"IF('1. Order'!M663=\"\",\"\",'1. Order'!M663)","v":""},null,null,{"$f":"IF('1. Order'!AS663=\"\",\"\",'1. Order'!AS663)","v":""},{"$f":"IF('1. Order'!AF663=\"\",\"\",'1. Order'!AF663)","v":""}]
[{"$f":"IF('1. Order'!B664=\"\",\"\",'1. Order'!B664)","v":""},{"$f":"IF('1. Order'!I664=\"\",\"\",'1. Order'!I664)","v":""},{"$f":"IF('1. Order'!J664=\"\",\"\",'1. Order'!J664)","v":""},{"$f":"IF('1. Order'!K664=\"\",\"\",'1. Order'!K664)","v":""},{"$f":"IF('1. Order'!M664=\"\",\"\",'1. Order'!M664)","v":""},null,null,{"$f":"IF('1. Order'!AS664=\"\",\"\",'1. Order'!AS664)","v":""},{"$f":"IF('1. Order'!AF664=\"\",\"\",'1. Order'!AF664)","v":""}]
[{"$f":"IF('1. Order'!B665=\"\",\"\",'1. Order'!B665)","v":""},{"$f":"IF('1. Order'!I665=\"\",\"\",'1. Order'!I665)","v":""},{"$f":"IF('1. Order'!J665=\"\",\"\",'1. Order'!J665)","v":""},{"$f":"IF('1. Order'!K665=\"\",\"\",'1. Order'!K665)","v":""},{"$f":"IF('1. Order'!M665=\"\",\"\",'1. Order'!M665)","v":""},null,null,{"$f":"IF('1. Order'!AS665=\"\",\"\",'1. Order'!AS665)","v":""},{"$f":"IF('1. Order'!AF665=\"\",\"\",'1. Order'!AF665)","v":""}]
[{"$f":"IF('1. Order'!B666=\"\",\"\",'1. Order'!B666)","v":""},{"$f":"IF('1. Order'!I666=\"\",\"\",'1. Order'!I666)","v":""},{"$f":"IF('1. Order'!J666=\"\",\"\",'1. Order'!J666)","v":""},{"$f":"IF('1. Order'!K666=\"\",\"\",'1. Order'!K666)","v":""},{"$f":"IF('1. Order'!M666=\"\",\"\",'1. Order'!M666)","v":""},null,null,{"$f":"IF('1. Order'!AS666=\"\",\"\",'1. Order'!AS666)","v":""},{"$f":"IF('1. Order'!AF666=\"\",\"\",'1. Order'!AF666)","v":""}]
[{"$f":"IF('1. Order'!B667=\"\",\"\",'1. Order'!B667)","v":""},{"$f":"IF('1. Order'!I667=\"\",\"\",'1. Order'!I667)","v":""},{"$f":"IF('1. Order'!J667=\"\",\"\",'1. Order'!J667)","v":""},{"$f":"IF('1. Order'!K667=\"\",\"\",'1. Order'!K667)","v":""},{"$f":"IF('1. Order'!M667=\"\",\"\",'1. Order'!M667)","v":""},null,null,{"$f":"IF('1. Order'!AS667=\"\",\"\",'1. Order'!AS667)","v":""},{"$f":"IF('1. Order'!AF667=\"\",\"\",'1. Order'!AF667)","v":""}]
[{"$f":"IF('1. Order'!B668=\"\",\"\",'1. Order'!B668)","v":""},{"$f":"IF('1. Order'!I668=\"\",\"\",'1. Order'!I668)","v":""},{"$f":"IF('1. Order'!J668=\"\",\"\",'1. Order'!J668)","v":""},{"$f":"IF('1. Order'!K668=\"\",\"\",'1. Order'!K668)","v":""},{"$f":"IF('1. Order'!M668=\"\",\"\",'1. Order'!M668)","v":""},null,null,{"$f":"IF('1. Order'!AS668=\"\",\"\",'1. Order'!AS668)","v":""},{"$f":"IF('1. Order'!AF668=\"\",\"\",'1. Order'!AF668)","v":""}]
[{"$f":"IF('1. Order'!B669=\"\",\"\",'1. Order'!B669)","v":""},{"$f":"IF('1. Order'!I669=\"\",\"\",'1. Order'!I669)","v":""},{"$f":"IF('1. Order'!J669=\"\",\"\",'1. Order'!J669)","v":""},{"$f":"IF('1. Order'!K669=\"\",\"\",'1. Order'!K669)","v":""},{"$f":"IF('1. Order'!M669=\"\",\"\",'1. Order'!M669)","v":""},null,null,{"$f":"IF('1. Order'!AS669=\"\",\"\",'1. Order'!AS669)","v":""},{"$f":"IF('1. Order'!AF669=\"\",\"\",'1. Order'!AF669)","v":""}]
[{"$f":"IF('1. Order'!B670=\"\",\"\",'1. Order'!B670)","v":""},{"$f":"IF('1. Order'!I670=\"\",\"\",'1. Order'!I670)","v":""},{"$f":"IF('1. Order'!J670=\"\",\"\",'1. Order'!J670)","v":""},{"$f":"IF('1. Order'!K670=\"\",\"\",'1. Order'!K670)","v":""},{"$f":"IF('1. Order'!M670=\"\",\"\",'1. Order'!M670)","v":""},null,null,{"$f":"IF('1. Order'!AS670=\"\",\"\",'1. Order'!AS670)","v":""},{"$f":"IF('1. Order'!AF670=\"\",\"\",'1. Order'!AF670)","v":""}]
[{"$f":"IF('1. Order'!B671=\"\",\"\",'1. Order'!B671)","v":""},{"$f":"IF('1. Order'!I671=\"\",\"\",'1. Order'!I671)","v":""},{"$f":"IF('1. Order'!J671=\"\",\"\",'1. Order'!J671)","v":""},{"$f":"IF('1. Order'!K671=\"\",\"\",'1. Order'!K671)","v":""},{"$f":"IF('1. Order'!M671=\"\",\"\",'1. Order'!M671)","v":""},null,null,{"$f":"IF('1. Order'!AS671=\"\",\"\",'1. Order'!AS671)","v":""},{"$f":"IF('1. Order'!AF671=\"\",\"\",'1. Order'!AF671)","v":""}]
[{"$f":"IF('1. Order'!B672=\"\",\"\",'1. Order'!B672)","v":""},{"$f":"IF('1. Order'!I672=\"\",\"\",'1. Order'!I672)","v":""},{"$f":"IF('1. Order'!J672=\"\",\"\",'1. Order'!J672)","v":""},{"$f":"IF('1. Order'!K672=\"\",\"\",'1. Order'!K672)","v":""},{"$f":"IF('1. Order'!M672=\"\",\"\",'1. Order'!M672)","v":""},null,null,{"$f":"IF('1. Order'!AS672=\"\",\"\",'1. Order'!AS672)","v":""},{"$f":"IF('1. Order'!AF672=\"\",\"\",'1. Order'!AF672)","v":""}]
[{"$f":"IF('1. Order'!B673=\"\",\"\",'1. Order'!B673)","v":""},{"$f":"IF('1. Order'!I673=\"\",\"\",'1. Order'!I673)","v":""},{"$f":"IF('1. Order'!J673=\"\",\"\",'1. Order'!J673)","v":""},{"$f":"IF('1. Order'!K673=\"\",\"\",'1. Order'!K673)","v":""},{"$f":"IF('1. Order'!M673=\"\",\"\",'1. Order'!M673)","v":""},null,null,{"$f":"IF('1. Order'!AS673=\"\",\"\",'1. Order'!AS673)","v":""},{"$f":"IF('1. Order'!AF673=\"\",\"\",'1. Order'!AF673)","v":""}]
[{"$f":"IF('1. Order'!B674=\"\",\"\",'1. Order'!B674)","v":""},{"$f":"IF('1. Order'!I674=\"\",\"\",'1. Order'!I674)","v":""},{"$f":"IF('1. Order'!J674=\"\",\"\",'1. Order'!J674)","v":""},{"$f":"IF('1. Order'!K674=\"\",\"\",'1. Order'!K674)","v":""},{"$f":"IF('1. Order'!M674=\"\",\"\",'1. Order'!M674)","v":""},null,null,{"$f":"IF('1. Order'!AS674=\"\",\"\",'1. Order'!AS674)","v":""},{"$f":"IF('1. Order'!AF674=\"\",\"\",'1. Order'!AF674)","v":""}]
[{"$f":"IF('1. Order'!B675=\"\",\"\",'1. Order'!B675)","v":""},{"$f":"IF('1. Order'!I675=\"\",\"\",'1. Order'!I675)","v":""},{"$f":"IF('1. Order'!J675=\"\",\"\",'1. Order'!J675)","v":""},{"$f":"IF('1. Order'!K675=\"\",\"\",'1. Order'!K675)","v":""},{"$f":"IF('1. Order'!M675=\"\",\"\",'1. Order'!M675)","v":""},null,null,{"$f":"IF('1. Order'!AS675=\"\",\"\",'1. Order'!AS675)","v":""},{"$f":"IF('1. Order'!AF675=\"\",\"\",'1. Order'!AF675)","v":""}]
[{"$f":"IF('1. Order'!B676=\"\",\"\",'1. Order'!B676)","v":""},{"$f":"IF('1. Order'!I676=\"\",\"\",'1. Order'!I676)","v":""},{"$f":"IF('1. Order'!J676=\"\",\"\",'1. Order'!J676)","v":""},{"$f":"IF('1. Order'!K676=\"\",\"\",'1. Order'!K676)","v":""},{"$f":"IF('1. Order'!M676=\"\",\"\",'1. Order'!M676)","v":""},null,null,{"$f":"IF('1. Order'!AS676=\"\",\"\",'1. Order'!AS676)","v":""},{"$f":"IF('1. Order'!AF676=\"\",\"\",'1. Order'!AF676)","v":""}]
[{"$f":"IF('1. Order'!B677=\"\",\"\",'1. Order'!B677)","v":""},{"$f":"IF('1. Order'!I677=\"\",\"\",'1. Order'!I677)","v":""},{"$f":"IF('1. Order'!J677=\"\",\"\",'1. Order'!J677)","v":""},{"$f":"IF('1. Order'!K677=\"\",\"\",'1. Order'!K677)","v":""},{"$f":"IF('1. Order'!M677=\"\",\"\",'1. Order'!M677)","v":""},null,null,{"$f":"IF('1. Order'!AS677=\"\",\"\",'1. Order'!AS677)","v":""},{"$f":"IF('1. Order'!AF677=\"\",\"\",'1. Order'!AF677)","v":""}]
[{"$f":"IF('1. Order'!B678=\"\",\"\",'1. Order'!B678)","v":""},{"$f":"IF('1. Order'!I678=\"\",\"\",'1. Order'!I678)","v":""},{"$f":"IF('1. Order'!J678=\"\",\"\",'1. Order'!J678)","v":""},{"$f":"IF('1. Order'!K678=\"\",\"\",'1. Order'!K678)","v":""},{"$f":"IF('1. Order'!M678=\"\",\"\",'1. Order'!M678)","v":""},null,null,{"$f":"IF('1. Order'!AS678=\"\",\"\",'1. Order'!AS678)","v":""},{"$f":"IF('1. Order'!AF678=\"\",\"\",'1. Order'!AF678)","v":""}]
[{"$f":"IF('1. Order'!B679=\"\",\"\",'1. Order'!B679)","v":""},{"$f":"IF('1. Order'!I679=\"\",\"\",'1. Order'!I679)","v":""},{"$f":"IF('1. Order'!J679=\"\",\"\",'1. Order'!J679)","v":""},{"$f":"IF('1. Order'!K679=\"\",\"\",'1. Order'!K679)","v":""},{"$f":"IF('1. Order'!M679=\"\",\"\",'1. Order'!M679)","v":""},null,null,{"$f":"IF('1. Order'!AS679=\"\",\"\",'1. Order'!AS679)","v":""},{"$f":"IF('1. Order'!AF679=\"\",\"\",'1. Order'!AF679)","v":""}]
[{"$f":"IF('1. Order'!B680=\"\",\"\",'1. Order'!B680)","v":""},{"$f":"IF('1. Order'!I680=\"\",\"\",'1. Order'!I680)","v":""},{"$f":"IF('1. Order'!J680=\"\",\"\",'1. Order'!J680)","v":""},{"$f":"IF('1. Order'!K680=\"\",\"\",'1. Order'!K680)","v":""},{"$f":"IF('1. Order'!M680=\"\",\"\",'1. Order'!M680)","v":""},null,null,{"$f":"IF('1. Order'!AS680=\"\",\"\",'1. Order'!AS680)","v":""},{"$f":"IF('1. Order'!AF680=\"\",\"\",'1. Order'!AF680)","v":""}]
[{"$f":"IF('1. Order'!B681=\"\",\"\",'1. Order'!B681)","v":""},{"$f":"IF('1. Order'!I681=\"\",\"\",'1. Order'!I681)","v":""},{"$f":"IF('1. Order'!J681=\"\",\"\",'1. Order'!J681)","v":""},{"$f":"IF('1. Order'!K681=\"\",\"\",'1. Order'!K681)","v":""},{"$f":"IF('1. Order'!M681=\"\",\"\",'1. Order'!M681)","v":""},null,null,{"$f":"IF('1. Order'!AS681=\"\",\"\",'1. Order'!AS681)","v":""},{"$f":"IF('1. Order'!AF681=\"\",\"\",'1. Order'!AF681)","v":""}]
[{"$f":"IF('1. Order'!B682=\"\",\"\",'1. Order'!B682)","v":""},{"$f":"IF('1. Order'!I682=\"\",\"\",'1. Order'!I682)","v":""},{"$f":"IF('1. Order'!J682=\"\",\"\",'1. Order'!J682)","v":""},{"$f":"IF('1. Order'!K682=\"\",\"\",'1. Order'!K682)","v":""},{"$f":"IF('1. Order'!M682=\"\",\"\",'1. Order'!M682)","v":""},null,null,{"$f":"IF('1. Order'!AS682=\"\",\"\",'1. Order'!AS682)","v":""},{"$f":"IF('1. Order'!AF682=\"\",\"\",'1. Order'!AF682)","v":""}]
[{"$f":"IF('1. Order'!B683=\"\",\"\",'1. Order'!B683)","v":""},{"$f":"IF('1. Order'!I683=\"\",\"\",'1. Order'!I683)","v":""},{"$f":"IF('1. Order'!J683=\"\",\"\",'1. Order'!J683)","v":""},{"$f":"IF('1. Order'!K683=\"\",\"\",'1. Order'!K683)","v":""},{"$f":"IF('1. Order'!M683=\"\",\"\",'1. Order'!M683)","v":""},null,null,{"$f":"IF('1. Order'!AS683=\"\",\"\",'1. Order'!AS683)","v":""},{"$f":"IF('1. Order'!AF683=\"\",\"\",'1. Order'!AF683)","v":""}]
[{"$f":"IF('1. Order'!B684=\"\",\"\",'1. Order'!B684)","v":""},{"$f":"IF('1. Order'!I684=\"\",\"\",'1. Order'!I684)","v":""},{"$f":"IF('1. Order'!J684=\"\",\"\",'1. Order'!J684)","v":""},{"$f":"IF('1. Order'!K684=\"\",\"\",'1. Order'!K684)","v":""},{"$f":"IF('1. Order'!M684=\"\",\"\",'1. Order'!M684)","v":""},null,null,{"$f":"IF('1. Order'!AS684=\"\",\"\",'1. Order'!AS684)","v":""},{"$f":"IF('1. Order'!AF684=\"\",\"\",'1. Order'!AF684)","v":""}]
[{"$f":"IF('1. Order'!B685=\"\",\"\",'1. Order'!B685)","v":""},{"$f":"IF('1. Order'!I685=\"\",\"\",'1. Order'!I685)","v":""},{"$f":"IF('1. Order'!J685=\"\",\"\",'1. Order'!J685)","v":""},{"$f":"IF('1. Order'!K685=\"\",\"\",'1. Order'!K685)","v":""},{"$f":"IF('1. Order'!M685=\"\",\"\",'1. Order'!M685)","v":""},null,null,{"$f":"IF('1. Order'!AS685=\"\",\"\",'1. Order'!AS685)","v":""},{"$f":"IF('1. Order'!AF685=\"\",\"\",'1. Order'!AF685)","v":""}]
[{"$f":"IF('1. Order'!B686=\"\",\"\",'1. Order'!B686)","v":""},{"$f":"IF('1. Order'!I686=\"\",\"\",'1. Order'!I686)","v":""},{"$f":"IF('1. Order'!J686=\"\",\"\",'1. Order'!J686)","v":""},{"$f":"IF('1. Order'!K686=\"\",\"\",'1. Order'!K686)","v":""},{"$f":"IF('1. Order'!M686=\"\",\"\",'1. Order'!M686)","v":""},null,null,{"$f":"IF('1. Order'!AS686=\"\",\"\",'1. Order'!AS686)","v":""},{"$f":"IF('1. Order'!AF686=\"\",\"\",'1. Order'!AF686)","v":""}]
[{"$f":"IF('1. Order'!B687=\"\",\"\",'1. Order'!B687)","v":""},{"$f":"IF('1. Order'!I687=\"\",\"\",'1. Order'!I687)","v":""},{"$f":"IF('1. Order'!J687=\"\",\"\",'1. Order'!J687)","v":""},{"$f":"IF('1. Order'!K687=\"\",\"\",'1. Order'!K687)","v":""},{"$f":"IF('1. Order'!M687=\"\",\"\",'1. Order'!M687)","v":""},null,null,{"$f":"IF('1. Order'!AS687=\"\",\"\",'1. Order'!AS687)","v":""},{"$f":"IF('1. Order'!AF687=\"\",\"\",'1. Order'!AF687)","v":""}]
[{"$f":"IF('1. Order'!B688=\"\",\"\",'1. Order'!B688)","v":""},{"$f":"IF('1. Order'!I688=\"\",\"\",'1. Order'!I688)","v":""},{"$f":"IF('1. Order'!J688=\"\",\"\",'1. Order'!J688)","v":""},{"$f":"IF('1. Order'!K688=\"\",\"\",'1. Order'!K688)","v":""},{"$f":"IF('1. Order'!M688=\"\",\"\",'1. Order'!M688)","v":""},null,null,{"$f":"IF('1. Order'!AS688=\"\",\"\",'1. Order'!AS688)","v":""},{"$f":"IF('1. Order'!AF688=\"\",\"\",'1. Order'!AF688)","v":""}]
[{"$f":"IF('1. Order'!B689=\"\",\"\",'1. Order'!B689)","v":""},{"$f":"IF('1. Order'!I689=\"\",\"\",'1. Order'!I689)","v":""},{"$f":"IF('1. Order'!J689=\"\",\"\",'1. Order'!J689)","v":""},{"$f":"IF('1. Order'!K689=\"\",\"\",'1. Order'!K689)","v":""},{"$f":"IF('1. Order'!M689=\"\",\"\",'1. Order'!M689)","v":""},null,null,{"$f":"IF('1. Order'!AS689=\"\",\"\",'1. Order'!AS689)","v":""},{"$f":"IF('1. Order'!AF689=\"\",\"\",'1. Order'!AF689)","v":""}]
[{"$f":"IF('1. Order'!B690=\"\",\"\",'1. Order'!B690)","v":""},{"$f":"IF('1. Order'!I690=\"\",\"\",'1. Order'!I690)","v":""},{"$f":"IF('1. Order'!J690=\"\",\"\",'1. Order'!J690)","v":""},{"$f":"IF('1. Order'!K690=\"\",\"\",'1. Order'!K690)","v":""},{"$f":"IF('1. Order'!M690=\"\",\"\",'1. Order'!M690)","v":""},null,null,{"$f":"IF('1. Order'!AS690=\"\",\"\",'1. Order'!AS690)","v":""},{"$f":"IF('1. Order'!AF690=\"\",\"\",'1. Order'!AF690)","v":""}]
[{"$f":"IF('1. Order'!B691=\"\",\"\",'1. Order'!B691)","v":""},{"$f":"IF('1. Order'!I691=\"\",\"\",'1. Order'!I691)","v":""},{"$f":"IF('1. Order'!J691=\"\",\"\",'1. Order'!J691)","v":""},{"$f":"IF('1. Order'!K691=\"\",\"\",'1. Order'!K691)","v":""},{"$f":"IF('1. Order'!M691=\"\",\"\",'1. Order'!M691)","v":""},null,null,{"$f":"IF('1. Order'!AS691=\"\",\"\",'1. Order'!AS691)","v":""},{"$f":"IF('1. Order'!AF691=\"\",\"\",'1. Order'!AF691)","v":""}]
[{"$f":"IF('1. Order'!B692=\"\",\"\",'1. Order'!B692)","v":""},{"$f":"IF('1. Order'!I692=\"\",\"\",'1. Order'!I692)","v":""},{"$f":"IF('1. Order'!J692=\"\",\"\",'1. Order'!J692)","v":""},{"$f":"IF('1. Order'!K692=\"\",\"\",'1. Order'!K692)","v":""},{"$f":"IF('1. Order'!M692=\"\",\"\",'1. Order'!M692)","v":""},null,null,{"$f":"IF('1. Order'!AS692=\"\",\"\",'1. Order'!AS692)","v":""},{"$f":"IF('1. Order'!AF692=\"\",\"\",'1. Order'!AF692)","v":""}]
[{"$f":"IF('1. Order'!B693=\"\",\"\",'1. Order'!B693)","v":""},{"$f":"IF('1. Order'!I693=\"\",\"\",'1. Order'!I693)","v":""},{"$f":"IF('1. Order'!J693=\"\",\"\",'1. Order'!J693)","v":""},{"$f":"IF('1. Order'!K693=\"\",\"\",'1. Order'!K693)","v":""},{"$f":"IF('1. Order'!M693=\"\",\"\",'1. Order'!M693)","v":""},null,null,{"$f":"IF('1. Order'!AS693=\"\",\"\",'1. Order'!AS693)","v":""},{"$f":"IF('1. Order'!AF693=\"\",\"\",'1. Order'!AF693)","v":""}]
[{"$f":"IF('1. Order'!B694=\"\",\"\",'1. Order'!B694)","v":""},{"$f":"IF('1. Order'!I694=\"\",\"\",'1. Order'!I694)","v":""},{"$f":"IF('1. Order'!J694=\"\",\"\",'1. Order'!J694)","v":""},{"$f":"IF('1. Order'!K694=\"\",\"\",'1. Order'!K694)","v":""},{"$f":"IF('1. Order'!M694=\"\",\"\",'1. Order'!M694)","v":""},null,null,{"$f":"IF('1. Order'!AS694=\"\",\"\",'1. Order'!AS694)","v":""},{"$f":"IF('1. Order'!AF694=\"\",\"\",'1. Order'!AF694)","v":""}]
[{"$f":"IF('1. Order'!B695=\"\",\"\",'1. Order'!B695)","v":""},{"$f":"IF('1. Order'!I695=\"\",\"\",'1. Order'!I695)","v":""},{"$f":"IF('1. Order'!J695=\"\",\"\",'1. Order'!J695)","v":""},{"$f":"IF('1. Order'!K695=\"\",\"\",'1. Order'!K695)","v":""},{"$f":"IF('1. Order'!M695=\"\",\"\",'1. Order'!M695)","v":""},null,null,{"$f":"IF('1. Order'!AS695=\"\",\"\",'1. Order'!AS695)","v":""},{"$f":"IF('1. Order'!AF695=\"\",\"\",'1. Order'!AF695)","v":""}]
[{"$f":"IF('1. Order'!B696=\"\",\"\",'1. Order'!B696)","v":""},{"$f":"IF('1. Order'!I696=\"\",\"\",'1. Order'!I696)","v":""},{"$f":"IF('1. Order'!J696=\"\",\"\",'1. Order'!J696)","v":""},{"$f":"IF('1. Order'!K696=\"\",\"\",'1. Order'!K696)","v":""},{"$f":"IF('1. Order'!M696=\"\",\"\",'1. Order'!M696)","v":""},null,null,{"$f":"IF('1. Order'!AS696=\"\",\"\",'1. Order'!AS696)","v":""},{"$f":"IF('1. Order'!AF696=\"\",\"\",'1. Order'!AF696)","v":""}]
[{"$f":"IF('1. Order'!B697=\"\",\"\",'1. Order'!B697)","v":""},{"$f":"IF('1. Order'!I697=\"\",\"\",'1. Order'!I697)","v":""},{"$f":"IF('1. Order'!J697=\"\",\"\",'1. Order'!J697)","v":""},{"$f":"IF('1. Order'!K697=\"\",\"\",'1. Order'!K697)","v":""},{"$f":"IF('1. Order'!M697=\"\",\"\",'1. Order'!M697)","v":""},null,null,{"$f":"IF('1. Order'!AS697=\"\",\"\",'1. Order'!AS697)","v":""},{"$f":"IF('1. Order'!AF697=\"\",\"\",'1. Order'!AF697)","v":""}]
[{"$f":"IF('1. Order'!B698=\"\",\"\",'1. Order'!B698)","v":""},{"$f":"IF('1. Order'!I698=\"\",\"\",'1. Order'!I698)","v":""},{"$f":"IF('1. Order'!J698=\"\",\"\",'1. Order'!J698)","v":""},{"$f":"IF('1. Order'!K698=\"\",\"\",'1. Order'!K698)","v":""},{"$f":"IF('1. Order'!M698=\"\",\"\",'1. Order'!M698)","v":""},null,null,{"$f":"IF('1. Order'!AS698=\"\",\"\",'1. Order'!AS698)","v":""},{"$f":"IF('1. Order'!AF698=\"\",\"\",'1. Order'!AF698)","v":""}]
[{"$f":"IF('1. Order'!B699=\"\",\"\",'1. Order'!B699)","v":""},{"$f":"IF('1. Order'!I699=\"\",\"\",'1. Order'!I699)","v":""},{"$f":"IF('1. Order'!J699=\"\",\"\",'1. Order'!J699)","v":""},{"$f":"IF('1. Order'!K699=\"\",\"\",'1. Order'!K699)","v":""},{"$f":"IF('1. Order'!M699=\"\",\"\",'1. Order'!M699)","v":""},null,null,{"$f":"IF('1. Order'!AS699=\"\",\"\",'1. Order'!AS699)","v":""},{"$f":"IF('1. Order'!AF699=\"\",\"\",'1. Order'!AF699)","v":""}]
[{"$f":"IF('1. Order'!B700=\"\",\"\",'1. Order'!B700)","v":""},{"$f":"IF('1. Order'!I700=\"\",\"\",'1. Order'!I700)","v":""},{"$f":"IF('1. Order'!J700=\"\",\"\",'1. Order'!J700)","v":""},{"$f":"IF('1. Order'!K700=\"\",\"\",'1. Order'!K700)","v":""},{"$f":"IF('1. Order'!M700=\"\",\"\",'1. Order'!M700)","v":""},null,null,{"$f":"IF('1. Order'!AS700=\"\",\"\",'1. Order'!AS700)","v":""},{"$f":"IF('1. Order'!AF700=\"\",\"\",'1. Order'!AF700)","v":""}]
[{"$f":"IF('1. Order'!B701=\"\",\"\",'1. Order'!B701)","v":""},{"$f":"IF('1. Order'!I701=\"\",\"\",'1. Order'!I701)","v":""},{"$f":"IF('1. Order'!J701=\"\",\"\",'1. Order'!J701)","v":""},{"$f":"IF('1. Order'!K701=\"\",\"\",'1. Order'!K701)","v":""},{"$f":"IF('1. Order'!M701=\"\",\"\",'1. Order'!M701)","v":""},null,null,{"$f":"IF('1. Order'!AS701=\"\",\"\",'1. Order'!AS701)","v":""},{"$f":"IF('1. Order'!AF701=\"\",\"\",'1. Order'!AF701)","v":""}]
[{"$f":"IF('1. Order'!B702=\"\",\"\",'1. Order'!B702)","v":""},{"$f":"IF('1. Order'!I702=\"\",\"\",'1. Order'!I702)","v":""},{"$f":"IF('1. Order'!J702=\"\",\"\",'1. Order'!J702)","v":""},{"$f":"IF('1. Order'!K702=\"\",\"\",'1. Order'!K702)","v":""},{"$f":"IF('1. Order'!M702=\"\",\"\",'1. Order'!M702)","v":""},null,null,{"$f":"IF('1. Order'!AS702=\"\",\"\",'1. Order'!AS702)","v":""},{"$f":"IF('1. Order'!AF702=\"\",\"\",'1. Order'!AF702)","v":""}]
[{"$f":"IF('1. Order'!B703=\"\",\"\",'1. Order'!B703)","v":""},{"$f":"IF('1. Order'!I703=\"\",\"\",'1. Order'!I703)","v":""},{"$f":"IF('1. Order'!J703=\"\",\"\",'1. Order'!J703)","v":""},{"$f":"IF('1. Order'!K703=\"\",\"\",'1. Order'!K703)","v":""},{"$f":"IF('1. Order'!M703=\"\",\"\",'1. Order'!M703)","v":""},null,null,{"$f":"IF('1. Order'!AS703=\"\",\"\",'1. Order'!AS703)","v":""},{"$f":"IF('1. Order'!AF703=\"\",\"\",'1. Order'!AF703)","v":""}]
[{"$f":"IF('1. Order'!B704=\"\",\"\",'1. Order'!B704)","v":""},{"$f":"IF('1. Order'!I704=\"\",\"\",'1. Order'!I704)","v":""},{"$f":"IF('1. Order'!J704=\"\",\"\",'1. Order'!J704)","v":""},{"$f":"IF('1. Order'!K704=\"\",\"\",'1. Order'!K704)","v":""},{"$f":"IF('1. Order'!M704=\"\",\"\",'1. Order'!M704)","v":""},null,null,{"$f":"IF('1. Order'!AS704=\"\",\"\",'1. Order'!AS704)","v":""},{"$f":"IF('1. Order'!AF704=\"\",\"\",'1. Order'!AF704)","v":""}]
[{"$f":"IF('1. Order'!B705=\"\",\"\",'1. Order'!B705)","v":""},{"$f":"IF('1. Order'!I705=\"\",\"\",'1. Order'!I705)","v":""},{"$f":"IF('1. Order'!J705=\"\",\"\",'1. Order'!J705)","v":""},{"$f":"IF('1. Order'!K705=\"\",\"\",'1. Order'!K705)","v":""},{"$f":"IF('1. Order'!M705=\"\",\"\",'1. Order'!M705)","v":""},null,null,{"$f":"IF('1. Order'!AS705=\"\",\"\",'1. Order'!AS705)","v":""},{"$f":"IF('1. Order'!AF705=\"\",\"\",'1. Order'!AF705)","v":""}]
[{"$f":"IF('1. Order'!B706=\"\",\"\",'1. Order'!B706)","v":""},{"$f":"IF('1. Order'!I706=\"\",\"\",'1. Order'!I706)","v":""},{"$f":"IF('1. Order'!J706=\"\",\"\",'1. Order'!J706)","v":""},{"$f":"IF('1. Order'!K706=\"\",\"\",'1. Order'!K706)","v":""},{"$f":"IF('1. Order'!M706=\"\",\"\",'1. Order'!M706)","v":""},null,null,{"$f":"IF('1. Order'!AS706=\"\",\"\",'1. Order'!AS706)","v":""},{"$f":"IF('1. Order'!AF706=\"\",\"\",'1. Order'!AF706)","v":""}]
[{"$f":"IF('1. Order'!B707=\"\",\"\",'1. Order'!B707)","v":""},{"$f":"IF('1. Order'!I707=\"\",\"\",'1. Order'!I707)","v":""},{"$f":"IF('1. Order'!J707=\"\",\"\",'1. Order'!J707)","v":""},{"$f":"IF('1. Order'!K707=\"\",\"\",'1. Order'!K707)","v":""},{"$f":"IF('1. Order'!M707=\"\",\"\",'1. Order'!M707)","v":""},null,null,{"$f":"IF('1. Order'!AS707=\"\",\"\",'1. Order'!AS707)","v":""},{"$f":"IF('1. Order'!AF707=\"\",\"\",'1. Order'!AF707)","v":""}]
[{"$f":"IF('1. Order'!B708=\"\",\"\",'1. Order'!B708)","v":""},{"$f":"IF('1. Order'!I708=\"\",\"\",'1. Order'!I708)","v":""},{"$f":"IF('1. Order'!J708=\"\",\"\",'1. Order'!J708)","v":""},{"$f":"IF('1. Order'!K708=\"\",\"\",'1. Order'!K708)","v":""},{"$f":"IF('1. Order'!M708=\"\",\"\",'1. Order'!M708)","v":""},null,null,{"$f":"IF('1. Order'!AS708=\"\",\"\",'1. Order'!AS708)","v":""},{"$f":"IF('1. Order'!AF708=\"\",\"\",'1. Order'!AF708)","v":""}]
[{"$f":"IF('1. Order'!B709=\"\",\"\",'1. Order'!B709)","v":""},{"$f":"IF('1. Order'!I709=\"\",\"\",'1. Order'!I709)","v":""},{"$f":"IF('1. Order'!J709=\"\",\"\",'1. Order'!J709)","v":""},{"$f":"IF('1. Order'!K709=\"\",\"\",'1. Order'!K709)","v":""},{"$f":"IF('1. Order'!M709=\"\",\"\",'1. Order'!M709)","v":""},null,null,{"$f":"IF('1. Order'!AS709=\"\",\"\",'1. Order'!AS709)","v":""},{"$f":"IF('1. Order'!AF709=\"\",\"\",'1. Order'!AF709)","v":""}]
[{"$f":"IF('1. Order'!B710=\"\",\"\",'1. Order'!B710)","v":""},{"$f":"IF('1. Order'!I710=\"\",\"\",'1. Order'!I710)","v":""},{"$f":"IF('1. Order'!J710=\"\",\"\",'1. Order'!J710)","v":""},{"$f":"IF('1. Order'!K710=\"\",\"\",'1. Order'!K710)","v":""},{"$f":"IF('1. Order'!M710=\"\",\"\",'1. Order'!M710)","v":""},null,null,{"$f":"IF('1. Order'!AS710=\"\",\"\",'1. Order'!AS710)","v":""},{"$f":"IF('1. Order'!AF710=\"\",\"\",'1. Order'!AF710)","v":""}]
[{"$f":"IF('1. Order'!B711=\"\",\"\",'1. Order'!B711)","v":""},{"$f":"IF('1. Order'!I711=\"\",\"\",'1. Order'!I711)","v":""},{"$f":"IF('1. Order'!J711=\"\",\"\",'1. Order'!J711)","v":""},{"$f":"IF('1. Order'!K711=\"\",\"\",'1. Order'!K711)","v":""},{"$f":"IF('1. Order'!M711=\"\",\"\",'1. Order'!M711)","v":""},null,null,{"$f":"IF('1. Order'!AS711=\"\",\"\",'1. Order'!AS711)","v":""},{"$f":"IF('1. Order'!AF711=\"\",\"\",'1. Order'!AF711)","v":""}]
[{"$f":"IF('1. Order'!B712=\"\",\"\",'1. Order'!B712)","v":""},{"$f":"IF('1. Order'!I712=\"\",\"\",'1. Order'!I712)","v":""},{"$f":"IF('1. Order'!J712=\"\",\"\",'1. Order'!J712)","v":""},{"$f":"IF('1. Order'!K712=\"\",\"\",'1. Order'!K712)","v":""},{"$f":"IF('1. Order'!M712=\"\",\"\",'1. Order'!M712)","v":""},null,null,{"$f":"IF('1. Order'!AS712=\"\",\"\",'1. Order'!AS712)","v":""},{"$f":"IF('1. Order'!AF712=\"\",\"\",'1. Order'!AF712)","v":""}]
[{"$f":"IF('1. Order'!B713=\"\",\"\",'1. Order'!B713)","v":""},{"$f":"IF('1. Order'!I713=\"\",\"\",'1. Order'!I713)","v":""},{"$f":"IF('1. Order'!J713=\"\",\"\",'1. Order'!J713)","v":""},{"$f":"IF('1. Order'!K713=\"\",\"\",'1. Order'!K713)","v":""},{"$f":"IF('1. Order'!M713=\"\",\"\",'1. Order'!M713)","v":""},null,null,{"$f":"IF('1. Order'!AS713=\"\",\"\",'1. Order'!AS713)","v":""},{"$f":"IF('1. Order'!AF713=\"\",\"\",'1. Order'!AF713)","v":""}]
[{"$f":"IF('1. Order'!B714=\"\",\"\",'1. Order'!B714)","v":""},{"$f":"IF('1. Order'!I714=\"\",\"\",'1. Order'!I714)","v":""},{"$f":"IF('1. Order'!J714=\"\",\"\",'1. Order'!J714)","v":""},{"$f":"IF('1. Order'!K714=\"\",\"\",'1. Order'!K714)","v":""},{"$f":"IF('1. Order'!M714=\"\",\"\",'1. Order'!M714)","v":""},null,null,{"$f":"IF('1. Order'!AS714=\"\",\"\",'1. Order'!AS714)","v":""},{"$f":"IF('1. Order'!AF714=\"\",\"\",'1. Order'!AF714)","v":""}]
[{"$f":"IF('1. Order'!B715=\"\",\"\",'1. Order'!B715)","v":""},{"$f":"IF('1. Order'!I715=\"\",\"\",'1. Order'!I715)","v":""},{"$f":"IF('1. Order'!J715=\"\",\"\",'1. Order'!J715)","v":""},{"$f":"IF('1. Order'!K715=\"\",\"\",'1. Order'!K715)","v":""},{"$f":"IF('1. Order'!M715=\"\",\"\",'1. Order'!M715)","v":""},null,null,{"$f":"IF('1. Order'!AS715=\"\",\"\",'1. Order'!AS715)","v":""},{"$f":"IF('1. Order'!AF715=\"\",\"\",'1. Order'!AF715)","v":""}]
[{"$f":"IF('1. Order'!B716=\"\",\"\",'1. Order'!B716)","v":""},{"$f":"IF('1. Order'!I716=\"\",\"\",'1. Order'!I716)","v":""},{"$f":"IF('1. Order'!J716=\"\",\"\",'1. Order'!J716)","v":""},{"$f":"IF('1. Order'!K716=\"\",\"\",'1. Order'!K716)","v":""},{"$f":"IF('1. Order'!M716=\"\",\"\",'1. Order'!M716)","v":""},null,null,{"$f":"IF('1. Order'!AS716=\"\",\"\",'1. Order'!AS716)","v":""},{"$f":"IF('1. Order'!AF716=\"\",\"\",'1. Order'!AF716)","v":""}]
[{"$f":"IF('1. Order'!B717=\"\",\"\",'1. Order'!B717)","v":""},{"$f":"IF('1. Order'!I717=\"\",\"\",'1. Order'!I717)","v":""},{"$f":"IF('1. Order'!J717=\"\",\"\",'1. Order'!J717)","v":""},{"$f":"IF('1. Order'!K717=\"\",\"\",'1. Order'!K717)","v":""},{"$f":"IF('1. Order'!M717=\"\",\"\",'1. Order'!M717)","v":""},null,null,{"$f":"IF('1. Order'!AS717=\"\",\"\",'1. Order'!AS717)","v":""},{"$f":"IF('1. Order'!AF717=\"\",\"\",'1. Order'!AF717)","v":""}]
[{"$f":"IF('1. Order'!B718=\"\",\"\",'1. Order'!B718)","v":""},{"$f":"IF('1. Order'!I718=\"\",\"\",'1. Order'!I718)","v":""},{"$f":"IF('1. Order'!J718=\"\",\"\",'1. Order'!J718)","v":""},{"$f":"IF('1. Order'!K718=\"\",\"\",'1. Order'!K718)","v":""},{"$f":"IF('1. Order'!M718=\"\",\"\",'1. Order'!M718)","v":""},null,null,{"$f":"IF('1. Order'!AS718=\"\",\"\",'1. Order'!AS718)","v":""},{"$f":"IF('1. Order'!AF718=\"\",\"\",'1. Order'!AF718)","v":""}]
[{"$f":"IF('1. Order'!B719=\"\",\"\",'1. Order'!B719)","v":""},{"$f":"IF('1. Order'!I719=\"\",\"\",'1. Order'!I719)","v":""},{"$f":"IF('1. Order'!J719=\"\",\"\",'1. Order'!J719)","v":""},{"$f":"IF('1. Order'!K719=\"\",\"\",'1. Order'!K719)","v":""},{"$f":"IF('1. Order'!M719=\"\",\"\",'1. Order'!M719)","v":""},null,null,{"$f":"IF('1. Order'!AS719=\"\",\"\",'1. Order'!AS719)","v":""},{"$f":"IF('1. Order'!AF719=\"\",\"\",'1. Order'!AF719)","v":""}]
[{"$f":"IF('1. Order'!B720=\"\",\"\",'1. Order'!B720)","v":""},{"$f":"IF('1. Order'!I720=\"\",\"\",'1. Order'!I720)","v":""},{"$f":"IF('1. Order'!J720=\"\",\"\",'1. Order'!J720)","v":""},{"$f":"IF('1. Order'!K720=\"\",\"\",'1. Order'!K720)","v":""},{"$f":"IF('1. Order'!M720=\"\",\"\",'1. Order'!M720)","v":""},null,null,{"$f":"IF('1. Order'!AS720=\"\",\"\",'1. Order'!AS720)","v":""},{"$f":"IF('1. Order'!AF720=\"\",\"\",'1. Order'!AF720)","v":""}]
[{"$f":"IF('1. Order'!B721=\"\",\"\",'1. Order'!B721)","v":""},{"$f":"IF('1. Order'!I721=\"\",\"\",'1. Order'!I721)","v":""},{"$f":"IF('1. Order'!J721=\"\",\"\",'1. Order'!J721)","v":""},{"$f":"IF('1. Order'!K721=\"\",\"\",'1. Order'!K721)","v":""},{"$f":"IF('1. Order'!M721=\"\",\"\",'1. Order'!M721)","v":""},null,null,{"$f":"IF('1. Order'!AS721=\"\",\"\",'1. Order'!AS721)","v":""},{"$f":"IF('1. Order'!AF721=\"\",\"\",'1. Order'!AF721)","v":""}]
[{"$f":"IF('1. Order'!B722=\"\",\"\",'1. Order'!B722)","v":""},{"$f":"IF('1. Order'!I722=\"\",\"\",'1. Order'!I722)","v":""},{"$f":"IF('1. Order'!J722=\"\",\"\",'1. Order'!J722)","v":""},{"$f":"IF('1. Order'!K722=\"\",\"\",'1. Order'!K722)","v":""},{"$f":"IF('1. Order'!M722=\"\",\"\",'1. Order'!M722)","v":""},null,null,{"$f":"IF('1. Order'!AS722=\"\",\"\",'1. Order'!AS722)","v":""},{"$f":"IF('1. Order'!AF722=\"\",\"\",'1. Order'!AF722)","v":""}]
[{"$f":"IF('1. Order'!B723=\"\",\"\",'1. Order'!B723)","v":""},{"$f":"IF('1. Order'!I723=\"\",\"\",'1. Order'!I723)","v":""},{"$f":"IF('1. Order'!J723=\"\",\"\",'1. Order'!J723)","v":""},{"$f":"IF('1. Order'!K723=\"\",\"\",'1. Order'!K723)","v":""},{"$f":"IF('1. Order'!M723=\"\",\"\",'1. Order'!M723)","v":""},null,null,{"$f":"IF('1. Order'!AS723=\"\",\"\",'1. Order'!AS723)","v":""},{"$f":"IF('1. Order'!AF723=\"\",\"\",'1. Order'!AF723)","v":""}]
[{"$f":"IF('1. Order'!B724=\"\",\"\",'1. Order'!B724)","v":""},{"$f":"IF('1. Order'!I724=\"\",\"\",'1. Order'!I724)","v":""},{"$f":"IF('1. Order'!J724=\"\",\"\",'1. Order'!J724)","v":""},{"$f":"IF('1. Order'!K724=\"\",\"\",'1. Order'!K724)","v":""},{"$f":"IF('1. Order'!M724=\"\",\"\",'1. Order'!M724)","v":""},null,null,{"$f":"IF('1. Order'!AS724=\"\",\"\",'1. Order'!AS724)","v":""},{"$f":"IF('1. Order'!AF724=\"\",\"\",'1. Order'!AF724)","v":""}]
[{"$f":"IF('1. Order'!B725=\"\",\"\",'1. Order'!B725)","v":""},{"$f":"IF('1. Order'!I725=\"\",\"\",'1. Order'!I725)","v":""},{"$f":"IF('1. Order'!J725=\"\",\"\",'1. Order'!J725)","v":""},{"$f":"IF('1. Order'!K725=\"\",\"\",'1. Order'!K725)","v":""},{"$f":"IF('1. Order'!M725=\"\",\"\",'1. Order'!M725)","v":""},null,null,{"$f":"IF('1. Order'!AS725=\"\",\"\",'1. Order'!AS725)","v":""},{"$f":"IF('1. Order'!AF725=\"\",\"\",'1. Order'!AF725)","v":""}]
[{"$f":"IF('1. Order'!B726=\"\",\"\",'1. Order'!B726)","v":""},{"$f":"IF('1. Order'!I726=\"\",\"\",'1. Order'!I726)","v":""},{"$f":"IF('1. Order'!J726=\"\",\"\",'1. Order'!J726)","v":""},{"$f":"IF('1. Order'!K726=\"\",\"\",'1. Order'!K726)","v":""},{"$f":"IF('1. Order'!M726=\"\",\"\",'1. Order'!M726)","v":""},null,null,{"$f":"IF('1. Order'!AS726=\"\",\"\",'1. Order'!AS726)","v":""},{"$f":"IF('1. Order'!AF726=\"\",\"\",'1. Order'!AF726)","v":""}]
[{"$f":"IF('1. Order'!B727=\"\",\"\",'1. Order'!B727)","v":""},{"$f":"IF('1. Order'!I727=\"\",\"\",'1. Order'!I727)","v":""},{"$f":"IF('1. Order'!J727=\"\",\"\",'1. Order'!J727)","v":""},{"$f":"IF('1. Order'!K727=\"\",\"\",'1. Order'!K727)","v":""},{"$f":"IF('1. Order'!M727=\"\",\"\",'1. Order'!M727)","v":""},null,null,{"$f":"IF('1. Order'!AS727=\"\",\"\",'1. Order'!AS727)","v":""},{"$f":"IF('1. Order'!AF727=\"\",\"\",'1. Order'!AF727)","v":""}]
[{"$f":"IF('1. Order'!B728=\"\",\"\",'1. Order'!B728)","v":""},{"$f":"IF('1. Order'!I728=\"\",\"\",'1. Order'!I728)","v":""},{"$f":"IF('1. Order'!J728=\"\",\"\",'1. Order'!J728)","v":""},{"$f":"IF('1. Order'!K728=\"\",\"\",'1. Order'!K728)","v":""},{"$f":"IF('1. Order'!M728=\"\",\"\",'1. Order'!M728)","v":""},null,null,{"$f":"IF('1. Order'!AS728=\"\",\"\",'1. Order'!AS728)","v":""},{"$f":"IF('1. Order'!AF728=\"\",\"\",'1. Order'!AF728)","v":""}]
[{"$f":"IF('1. Order'!B729=\"\",\"\",'1. Order'!B729)","v":""},{"$f":"IF('1. Order'!I729=\"\",\"\",'1. Order'!I729)","v":""},{"$f":"IF('1. Order'!J729=\"\",\"\",'1. Order'!J729)","v":""},{"$f":"IF('1. Order'!K729=\"\",\"\",'1. Order'!K729)","v":""},{"$f":"IF('1. Order'!M729=\"\",\"\",'1. Order'!M729)","v":""},null,null,{"$f":"IF('1. Order'!AS729=\"\",\"\",'1. Order'!AS729)","v":""},{"$f":"IF('1. Order'!AF729=\"\",\"\",'1. Order'!AF729)","v":""}]
[{"$f":"IF('1. Order'!B730=\"\",\"\",'1. Order'!B730)","v":""},{"$f":"IF('1. Order'!I730=\"\",\"\",'1. Order'!I730)","v":""},{"$f":"IF('1. Order'!J730=\"\",\"\",'1. Order'!J730)","v":""},{"$f":"IF('1. Order'!K730=\"\",\"\",'1. Order'!K730)","v":""},{"$f":"IF('1. Order'!M730=\"\",\"\",'1. Order'!M730)","v":""},null,null,{"$f":"IF('1. Order'!AS730=\"\",\"\",'1. Order'!AS730)","v":""},{"$f":"IF('1. Order'!AF730=\"\",\"\",'1. Order'!AF730)","v":""}]
[{"$f":"IF('1. Order'!B731=\"\",\"\",'1. Order'!B731)","v":""},{"$f":"IF('1. Order'!I731=\"\",\"\",'1. Order'!I731)","v":""},{"$f":"IF('1. Order'!J731=\"\",\"\",'1. Order'!J731)","v":""},{"$f":"IF('1. Order'!K731=\"\",\"\",'1. Order'!K731)","v":""},{"$f":"IF('1. Order'!M731=\"\",\"\",'1. Order'!M731)","v":""},null,null,{"$f":"IF('1. Order'!AS731=\"\",\"\",'1. Order'!AS731)","v":""},{"$f":"IF('1. Order'!AF731=\"\",\"\",'1. Order'!AF731)","v":""}]
[{"$f":"IF('1. Order'!B732=\"\",\"\",'1. Order'!B732)","v":""},{"$f":"IF('1. Order'!I732=\"\",\"\",'1. Order'!I732)","v":""},{"$f":"IF('1. Order'!J732=\"\",\"\",'1. Order'!J732)","v":""},{"$f":"IF('1. Order'!K732=\"\",\"\",'1. Order'!K732)","v":""},{"$f":"IF('1. Order'!M732=\"\",\"\",'1. Order'!M732)","v":""},null,null,{"$f":"IF('1. Order'!AS732=\"\",\"\",'1. Order'!AS732)","v":""},{"$f":"IF('1. Order'!AF732=\"\",\"\",'1. Order'!AF732)","v":""}]
[{"$f":"IF('1. Order'!B733=\"\",\"\",'1. Order'!B733)","v":""},{"$f":"IF('1. Order'!I733=\"\",\"\",'1. Order'!I733)","v":""},{"$f":"IF('1. Order'!J733=\"\",\"\",'1. Order'!J733)","v":""},{"$f":"IF('1. Order'!K733=\"\",\"\",'1. Order'!K733)","v":""},{"$f":"IF('1. Order'!M733=\"\",\"\",'1. Order'!M733)","v":""},null,null,{"$f":"IF('1. Order'!AS733=\"\",\"\",'1. Order'!AS733)","v":""},{"$f":"IF('1. Order'!AF733=\"\",\"\",'1. Order'!AF733)","v":""}]
[{"$f":"IF('1. Order'!B734=\"\",\"\",'1. Order'!B734)","v":""},{"$f":"IF('1. Order'!I734=\"\",\"\",'1. Order'!I734)","v":""},{"$f":"IF('1. Order'!J734=\"\",\"\",'1. Order'!J734)","v":""},{"$f":"IF('1. Order'!K734=\"\",\"\",'1. Order'!K734)","v":""},{"$f":"IF('1. Order'!M734=\"\",\"\",'1. Order'!M734)","v":""},null,null,{"$f":"IF('1. Order'!AS734=\"\",\"\",'1. Order'!AS734)","v":""},{"$f":"IF('1. Order'!AF734=\"\",\"\",'1. Order'!AF734)","v":""}]
[{"$f":"IF('1. Order'!B735=\"\",\"\",'1. Order'!B735)","v":""},{"$f":"IF('1. Order'!I735=\"\",\"\",'1. Order'!I735)","v":""},{"$f":"IF('1. Order'!J735=\"\",\"\",'1. Order'!J735)","v":""},{"$f":"IF('1. Order'!K735=\"\",\"\",'1. Order'!K735)","v":""},{"$f":"IF('1. Order'!M735=\"\",\"\",'1. Order'!M735)","v":""},null,null,{"$f":"IF('1. Order'!AS735=\"\",\"\",'1. Order'!AS735)","v":""},{"$f":"IF('1. Order'!AF735=\"\",\"\",'1. Order'!AF735)","v":""}]
[{"$f":"IF('1. Order'!B736=\"\",\"\",'1. Order'!B736)","v":""},{"$f":"IF('1. Order'!I736=\"\",\"\",'1. Order'!I736)","v":""},{"$f":"IF('1. Order'!J736=\"\",\"\",'1. Order'!J736)","v":""},{"$f":"IF('1. Order'!K736=\"\",\"\",'1. Order'!K736)","v":""},{"$f":"IF('1. Order'!M736=\"\",\"\",'1. Order'!M736)","v":""},null,null,{"$f":"IF('1. Order'!AS736=\"\",\"\",'1. Order'!AS736)","v":""},{"$f":"IF('1. Order'!AF736=\"\",\"\",'1. Order'!AF736)","v":""}]
[{"$f":"IF('1. Order'!B737=\"\",\"\",'1. Order'!B737)","v":""},{"$f":"IF('1. Order'!I737=\"\",\"\",'1. Order'!I737)","v":""},{"$f":"IF('1. Order'!J737=\"\",\"\",'1. Order'!J737)","v":""},{"$f":"IF('1. Order'!K737=\"\",\"\",'1. Order'!K737)","v":""},{"$f":"IF('1. Order'!M737=\"\",\"\",'1. Order'!M737)","v":""},null,null,{"$f":"IF('1. Order'!AS737=\"\",\"\",'1. Order'!AS737)","v":""},{"$f":"IF('1. Order'!AF737=\"\",\"\",'1. Order'!AF737)","v":""}]
[{"$f":"IF('1. Order'!B738=\"\",\"\",'1. Order'!B738)","v":""},{"$f":"IF('1. Order'!I738=\"\",\"\",'1. Order'!I738)","v":""},{"$f":"IF('1. Order'!J738=\"\",\"\",'1. Order'!J738)","v":""},{"$f":"IF('1. Order'!K738=\"\",\"\",'1. Order'!K738)","v":""},{"$f":"IF('1. Order'!M738=\"\",\"\",'1. Order'!M738)","v":""},null,null,{"$f":"IF('1. Order'!AS738=\"\",\"\",'1. Order'!AS738)","v":""},{"$f":"IF('1. Order'!AF738=\"\",\"\",'1. Order'!AF738)","v":""}]
[{"$f":"IF('1. Order'!B739=\"\",\"\",'1. Order'!B739)","v":""},{"$f":"IF('1. Order'!I739=\"\",\"\",'1. Order'!I739)","v":""},{"$f":"IF('1. Order'!J739=\"\",\"\",'1. Order'!J739)","v":""},{"$f":"IF('1. Order'!K739=\"\",\"\",'1. Order'!K739)","v":""},{"$f":"IF('1. Order'!M739=\"\",\"\",'1. Order'!M739)","v":""},null,null,{"$f":"IF('1. Order'!AS739=\"\",\"\",'1. Order'!AS739)","v":""},{"$f":"IF('1. Order'!AF739=\"\",\"\",'1. Order'!AF739)","v":""}]
[{"$f":"IF('1. Order'!B740=\"\",\"\",'1. Order'!B740)","v":""},{"$f":"IF('1. Order'!I740=\"\",\"\",'1. Order'!I740)","v":""},{"$f":"IF('1. Order'!J740=\"\",\"\",'1. Order'!J740)","v":""},{"$f":"IF('1. Order'!K740=\"\",\"\",'1. Order'!K740)","v":""},{"$f":"IF('1. Order'!M740=\"\",\"\",'1. Order'!M740)","v":""},null,null,{"$f":"IF('1. Order'!AS740=\"\",\"\",'1. Order'!AS740)","v":""},{"$f":"IF('1. Order'!AF740=\"\",\"\",'1. Order'!AF740)","v":""}]
[{"$f":"IF('1. Order'!B741=\"\",\"\",'1. Order'!B741)","v":""},{"$f":"IF('1. Order'!I741=\"\",\"\",'1. Order'!I741)","v":""},{"$f":"IF('1. Order'!J741=\"\",\"\",'1. Order'!J741)","v":""},{"$f":"IF('1. Order'!K741=\"\",\"\",'1. Order'!K741)","v":""},{"$f":"IF('1. Order'!M741=\"\",\"\",'1. Order'!M741)","v":""},null,null,{"$f":"IF('1. Order'!AS741=\"\",\"\",'1. Order'!AS741)","v":""},{"$f":"IF('1. Order'!AF741=\"\",\"\",'1. Order'!AF741)","v":""}]
[{"$f":"IF('1. Order'!B742=\"\",\"\",'1. Order'!B742)","v":""},{"$f":"IF('1. Order'!I742=\"\",\"\",'1. Order'!I742)","v":""},{"$f":"IF('1. Order'!J742=\"\",\"\",'1. Order'!J742)","v":""},{"$f":"IF('1. Order'!K742=\"\",\"\",'1. Order'!K742)","v":""},{"$f":"IF('1. Order'!M742=\"\",\"\",'1. Order'!M742)","v":""},null,null,{"$f":"IF('1. Order'!AS742=\"\",\"\",'1. Order'!AS742)","v":""},{"$f":"IF('1. Order'!AF742=\"\",\"\",'1. Order'!AF742)","v":""}]
[{"$f":"IF('1. Order'!B743=\"\",\"\",'1. Order'!B743)","v":""},{"$f":"IF('1. Order'!I743=\"\",\"\",'1. Order'!I743)","v":""},{"$f":"IF('1. Order'!J743=\"\",\"\",'1. Order'!J743)","v":""},{"$f":"IF('1. Order'!K743=\"\",\"\",'1. Order'!K743)","v":""},{"$f":"IF('1. Order'!M743=\"\",\"\",'1. Order'!M743)","v":""},null,null,{"$f":"IF('1. Order'!AS743=\"\",\"\",'1. Order'!AS743)","v":""},{"$f":"IF('1. Order'!AF743=\"\",\"\",'1. Order'!AF743)","v":""}]
[{"$f":"IF('1. Order'!B744=\"\",\"\",'1. Order'!B744)","v":""},{"$f":"IF('1. Order'!I744=\"\",\"\",'1. Order'!I744)","v":""},{"$f":"IF('1. Order'!J744=\"\",\"\",'1. Order'!J744)","v":""},{"$f":"IF('1. Order'!K744=\"\",\"\",'1. Order'!K744)","v":""},{"$f":"IF('1. Order'!M744=\"\",\"\",'1. Order'!M744)","v":""},null,null,{"$f":"IF('1. Order'!AS744=\"\",\"\",'1. Order'!AS744)","v":""},{"$f":"IF('1. Order'!AF744=\"\",\"\",'1. Order'!AF744)","v":""}]
[{"$f":"IF('1. Order'!B745=\"\",\"\",'1. Order'!B745)","v":""},{"$f":"IF('1. Order'!I745=\"\",\"\",'1. Order'!I745)","v":""},{"$f":"IF('1. Order'!J745=\"\",\"\",'1. Order'!J745)","v":""},{"$f":"IF('1. Order'!K745=\"\",\"\",'1. Order'!K745)","v":""},{"$f":"IF('1. Order'!M745=\"\",\"\",'1. Order'!M745)","v":""},null,null,{"$f":"IF('1. Order'!AS745=\"\",\"\",'1. Order'!AS745)","v":""},{"$f":"IF('1. Order'!AF745=\"\",\"\",'1. Order'!AF745)","v":""}]
[{"$f":"IF('1. Order'!B746=\"\",\"\",'1. Order'!B746)","v":""},{"$f":"IF('1. Order'!I746=\"\",\"\",'1. Order'!I746)","v":""},{"$f":"IF('1. Order'!J746=\"\",\"\",'1. Order'!J746)","v":""},{"$f":"IF('1. Order'!K746=\"\",\"\",'1. Order'!K746)","v":""},{"$f":"IF('1. Order'!M746=\"\",\"\",'1. Order'!M746)","v":""},null,null,{"$f":"IF('1. Order'!AS746=\"\",\"\",'1. Order'!AS746)","v":""},{"$f":"IF('1. Order'!AF746=\"\",\"\",'1. Order'!AF746)","v":""}]
[{"$f":"IF('1. Order'!B747=\"\",\"\",'1. Order'!B747)","v":""},{"$f":"IF('1. Order'!I747=\"\",\"\",'1. Order'!I747)","v":""},{"$f":"IF('1. Order'!J747=\"\",\"\",'1. Order'!J747)","v":""},{"$f":"IF('1. Order'!K747=\"\",\"\",'1. Order'!K747)","v":""},{"$f":"IF('1. Order'!M747=\"\",\"\",'1. Order'!M747)","v":""},null,null,{"$f":"IF('1. Order'!AS747=\"\",\"\",'1. Order'!AS747)","v":""},{"$f":"IF('1. Order'!AF747=\"\",\"\",'1. Order'!AF747)","v":""}]
[{"$f":"IF('1. Order'!B748=\"\",\"\",'1. Order'!B748)","v":""},{"$f":"IF('1. Order'!I748=\"\",\"\",'1. Order'!I748)","v":""},{"$f":"IF('1. Order'!J748=\"\",\"\",'1. Order'!J748)","v":""},{"$f":"IF('1. Order'!K748=\"\",\"\",'1. Order'!K748)","v":""},{"$f":"IF('1. Order'!M748=\"\",\"\",'1. Order'!M748)","v":""},null,null,{"$f":"IF('1. Order'!AS748=\"\",\"\",'1. Order'!AS748)","v":""},{"$f":"IF('1. Order'!AF748=\"\",\"\",'1. Order'!AF748)","v":""}]
[{"$f":"IF('1. Order'!B749=\"\",\"\",'1. Order'!B749)","v":""},{"$f":"IF('1. Order'!I749=\"\",\"\",'1. Order'!I749)","v":""},{"$f":"IF('1. Order'!J749=\"\",\"\",'1. Order'!J749)","v":""},{"$f":"IF('1. Order'!K749=\"\",\"\",'1. Order'!K749)","v":""},{"$f":"IF('1. Order'!M749=\"\",\"\",'1. Order'!M749)","v":""},null,null,{"$f":"IF('1. Order'!AS749=\"\",\"\",'1. Order'!AS749)","v":""},{"$f":"IF('1. Order'!AF749=\"\",\"\",'1. Order'!AF749)","v":""}]
[{"$f":"IF('1. Order'!B750=\"\",\"\",'1. Order'!B750)","v":""},{"$f":"IF('1. Order'!I750=\"\",\"\",'1. Order'!I750)","v":""},{"$f":"IF('1. Order'!J750=\"\",\"\",'1. Order'!J750)","v":""},{"$f":"IF('1. Order'!K750=\"\",\"\",'1. Order'!K750)","v":""},{"$f":"IF('1. Order'!M750=\"\",\"\",'1. Order'!M750)","v":""},null,null,{"$f":"IF('1. Order'!AS750=\"\",\"\",'1. Order'!AS750)","v":""},{"$f":"IF('1. Order'!AF750=\"\",\"\",'1. Order'!AF750)","v":""}]
[{"$f":"IF('1. Order'!B751=\"\",\"\",'1. Order'!B751)","v":""},{"$f":"IF('1. Order'!I751=\"\",\"\",'1. Order'!I751)","v":""},{"$f":"IF('1. Order'!J751=\"\",\"\",'1. Order'!J751)","v":""},{"$f":"IF('1. Order'!K751=\"\",\"\",'1. Order'!K751)","v":""},{"$f":"IF('1. Order'!M751=\"\",\"\",'1. Order'!M751)","v":""},null,null,{"$f":"IF('1. Order'!AS751=\"\",\"\",'1. Order'!AS751)","v":""},{"$f":"IF('1. Order'!AF751=\"\",\"\",'1. Order'!AF751)","v":""}]
[{"$f":"IF('1. Order'!B752=\"\",\"\",'1. Order'!B752)","v":""},{"$f":"IF('1. Order'!I752=\"\",\"\",'1. Order'!I752)","v":""},{"$f":"IF('1. Order'!J752=\"\",\"\",'1. Order'!J752)","v":""},{"$f":"IF('1. Order'!K752=\"\",\"\",'1. Order'!K752)","v":""},{"$f":"IF('1. Order'!M752=\"\",\"\",'1. Order'!M752)","v":""},null,null,{"$f":"IF('1. Order'!AS752=\"\",\"\",'1. Order'!AS752)","v":""},{"$f":"IF('1. Order'!AF752=\"\",\"\",'1. Order'!AF752)","v":""}]
[{"$f":"IF('1. Order'!B753=\"\",\"\",'1. Order'!B753)","v":""},{"$f":"IF('1. Order'!I753=\"\",\"\",'1. Order'!I753)","v":""},{"$f":"IF('1. Order'!J753=\"\",\"\",'1. Order'!J753)","v":""},{"$f":"IF('1. Order'!K753=\"\",\"\",'1. Order'!K753)","v":""},{"$f":"IF('1. Order'!M753=\"\",\"\",'1. Order'!M753)","v":""},null,null,{"$f":"IF('1. Order'!AS753=\"\",\"\",'1. Order'!AS753)","v":""},{"$f":"IF('1. Order'!AF753=\"\",\"\",'1. Order'!AF753)","v":""}]
[{"$f":"IF('1. Order'!B754=\"\",\"\",'1. Order'!B754)","v":""},{"$f":"IF('1. Order'!I754=\"\",\"\",'1. Order'!I754)","v":""},{"$f":"IF('1. Order'!J754=\"\",\"\",'1. Order'!J754)","v":""},{"$f":"IF('1. Order'!K754=\"\",\"\",'1. Order'!K754)","v":""},{"$f":"IF('1. Order'!M754=\"\",\"\",'1. Order'!M754)","v":""},null,null,{"$f":"IF('1. Order'!AS754=\"\",\"\",'1. Order'!AS754)","v":""},{"$f":"IF('1. Order'!AF754=\"\",\"\",'1. Order'!AF754)","v":""}]
[{"$f":"IF('1. Order'!B755=\"\",\"\",'1. Order'!B755)","v":""},{"$f":"IF('1. Order'!I755=\"\",\"\",'1. Order'!I755)","v":""},{"$f":"IF('1. Order'!J755=\"\",\"\",'1. Order'!J755)","v":""},{"$f":"IF('1. Order'!K755=\"\",\"\",'1. Order'!K755)","v":""},{"$f":"IF('1. Order'!M755=\"\",\"\",'1. Order'!M755)","v":""},null,null,{"$f":"IF('1. Order'!AS755=\"\",\"\",'1. Order'!AS755)","v":""},{"$f":"IF('1. Order'!AF755=\"\",\"\",'1. Order'!AF755)","v":""}]
[{"$f":"IF('1. Order'!B756=\"\",\"\",'1. Order'!B756)","v":""},{"$f":"IF('1. Order'!I756=\"\",\"\",'1. Order'!I756)","v":""},{"$f":"IF('1. Order'!J756=\"\",\"\",'1. Order'!J756)","v":""},{"$f":"IF('1. Order'!K756=\"\",\"\",'1. Order'!K756)","v":""},{"$f":"IF('1. Order'!M756=\"\",\"\",'1. Order'!M756)","v":""},null,null,{"$f":"IF('1. Order'!AS756=\"\",\"\",'1. Order'!AS756)","v":""},{"$f":"IF('1. Order'!AF756=\"\",\"\",'1. Order'!AF756)","v":""}]
[{"$f":"IF('1. Order'!B757=\"\",\"\",'1. Order'!B757)","v":""},{"$f":"IF('1. Order'!I757=\"\",\"\",'1. Order'!I757)","v":""},{"$f":"IF('1. Order'!J757=\"\",\"\",'1. Order'!J757)","v":""},{"$f":"IF('1. Order'!K757=\"\",\"\",'1. Order'!K757)","v":""},{"$f":"IF('1. Order'!M757=\"\",\"\",'1. Order'!M757)","v":""},null,null,{"$f":"IF('1. Order'!AS757=\"\",\"\",'1. Order'!AS757)","v":""},{"$f":"IF('1. Order'!AF757=\"\",\"\",'1. Order'!AF757)","v":""}]
[{"$f":"IF('1. Order'!B758=\"\",\"\",'1. Order'!B758)","v":""},{"$f":"IF('1. Order'!I758=\"\",\"\",'1. Order'!I758)","v":""},{"$f":"IF('1. Order'!J758=\"\",\"\",'1. Order'!J758)","v":""},{"$f":"IF('1. Order'!K758=\"\",\"\",'1. Order'!K758)","v":""},{"$f":"IF('1. Order'!M758=\"\",\"\",'1. Order'!M758)","v":""},null,null,{"$f":"IF('1. Order'!AS758=\"\",\"\",'1. Order'!AS758)","v":""},{"$f":"IF('1. Order'!AF758=\"\",\"\",'1. Order'!AF758)","v":""}]
[{"$f":"IF('1. Order'!B759=\"\",\"\",'1. Order'!B759)","v":""},{"$f":"IF('1. Order'!I759=\"\",\"\",'1. Order'!I759)","v":""},{"$f":"IF('1. Order'!J759=\"\",\"\",'1. Order'!J759)","v":""},{"$f":"IF('1. Order'!K759=\"\",\"\",'1. Order'!K759)","v":""},{"$f":"IF('1. Order'!M759=\"\",\"\",'1. Order'!M759)","v":""},null,null,{"$f":"IF('1. Order'!AS759=\"\",\"\",'1. Order'!AS759)","v":""},{"$f":"IF('1. Order'!AF759=\"\",\"\",'1. Order'!AF759)","v":""}]
[{"$f":"IF('1. Order'!B760=\"\",\"\",'1. Order'!B760)","v":""},{"$f":"IF('1. Order'!I760=\"\",\"\",'1. Order'!I760)","v":""},{"$f":"IF('1. Order'!J760=\"\",\"\",'1. Order'!J760)","v":""},{"$f":"IF('1. Order'!K760=\"\",\"\",'1. Order'!K760)","v":""},{"$f":"IF('1. Order'!M760=\"\",\"\",'1. Order'!M760)","v":""},null,null,{"$f":"IF('1. Order'!AS760=\"\",\"\",'1. Order'!AS760)","v":""},{"$f":"IF('1. Order'!AF760=\"\",\"\",'1. Order'!AF760)","v":""}]
[{"$f":"IF('1. Order'!B761=\"\",\"\",'1. Order'!B761)","v":""},{"$f":"IF('1. Order'!I761=\"\",\"\",'1. Order'!I761)","v":""},{"$f":"IF('1. Order'!J761=\"\",\"\",'1. Order'!J761)","v":""},{"$f":"IF('1. Order'!K761=\"\",\"\",'1. Order'!K761)","v":""},{"$f":"IF('1. Order'!M761=\"\",\"\",'1. Order'!M761)","v":""},null,null,{"$f":"IF('1. Order'!AS761=\"\",\"\",'1. Order'!AS761)","v":""},{"$f":"IF('1. Order'!AF761=\"\",\"\",'1. Order'!AF761)","v":""}]
[{"$f":"IF('1. Order'!B762=\"\",\"\",'1. Order'!B762)","v":""},{"$f":"IF('1. Order'!I762=\"\",\"\",'1. Order'!I762)","v":""},{"$f":"IF('1. Order'!J762=\"\",\"\",'1. Order'!J762)","v":""},{"$f":"IF('1. Order'!K762=\"\",\"\",'1. Order'!K762)","v":""},{"$f":"IF('1. Order'!M762=\"\",\"\",'1. Order'!M762)","v":""},null,null,{"$f":"IF('1. Order'!AS762=\"\",\"\",'1. Order'!AS762)","v":""},{"$f":"IF('1. Order'!AF762=\"\",\"\",'1. Order'!AF762)","v":""}]
[{"$f":"IF('1. Order'!B763=\"\",\"\",'1. Order'!B763)","v":""},{"$f":"IF('1. Order'!I763=\"\",\"\",'1. Order'!I763)","v":""},{"$f":"IF('1. Order'!J763=\"\",\"\",'1. Order'!J763)","v":""},{"$f":"IF('1. Order'!K763=\"\",\"\",'1. Order'!K763)","v":""},{"$f":"IF('1. Order'!M763=\"\",\"\",'1. Order'!M763)","v":""},null,null,{"$f":"IF('1. Order'!AS763=\"\",\"\",'1. Order'!AS763)","v":""},{"$f":"IF('1. Order'!AF763=\"\",\"\",'1. Order'!AF763)","v":""}]
[{"$f":"IF('1. Order'!B764=\"\",\"\",'1. Order'!B764)","v":""},{"$f":"IF('1. Order'!I764=\"\",\"\",'1. Order'!I764)","v":""},{"$f":"IF('1. Order'!J764=\"\",\"\",'1. Order'!J764)","v":""},{"$f":"IF('1. Order'!K764=\"\",\"\",'1. Order'!K764)","v":""},{"$f":"IF('1. Order'!M764=\"\",\"\",'1. Order'!M764)","v":""},null,null,{"$f":"IF('1. Order'!AS764=\"\",\"\",'1. Order'!AS764)","v":""},{"$f":"IF('1. Order'!AF764=\"\",\"\",'1. Order'!AF764)","v":""}]
[{"$f":"IF('1. Order'!B765=\"\",\"\",'1. Order'!B765)","v":""},{"$f":"IF('1. Order'!I765=\"\",\"\",'1. Order'!I765)","v":""},{"$f":"IF('1. Order'!J765=\"\",\"\",'1. Order'!J765)","v":""},{"$f":"IF('1. Order'!K765=\"\",\"\",'1. Order'!K765)","v":""},{"$f":"IF('1. Order'!M765=\"\",\"\",'1. Order'!M765)","v":""},null,null,{"$f":"IF('1. Order'!AS765=\"\",\"\",'1. Order'!AS765)","v":""},{"$f":"IF('1. Order'!AF765=\"\",\"\",'1. Order'!AF765)","v":""}]
[{"$f":"IF('1. Order'!B766=\"\",\"\",'1. Order'!B766)","v":""},{"$f":"IF('1. Order'!I766=\"\",\"\",'1. Order'!I766)","v":""},{"$f":"IF('1. Order'!J766=\"\",\"\",'1. Order'!J766)","v":""},{"$f":"IF('1. Order'!K766=\"\",\"\",'1. Order'!K766)","v":""},{"$f":"IF('1. Order'!M766=\"\",\"\",'1. Order'!M766)","v":""},null,null,{"$f":"IF('1. Order'!AS766=\"\",\"\",'1. Order'!AS766)","v":""},{"$f":"IF('1. Order'!AF766=\"\",\"\",'1. Order'!AF766)","v":""}]
[{"$f":"IF('1. Order'!B767=\"\",\"\",'1. Order'!B767)","v":""},{"$f":"IF('1. Order'!I767=\"\",\"\",'1. Order'!I767)","v":""},{"$f":"IF('1. Order'!J767=\"\",\"\",'1. Order'!J767)","v":""},{"$f":"IF('1. Order'!K767=\"\",\"\",'1. Order'!K767)","v":""},{"$f":"IF('1. Order'!M767=\"\",\"\",'1. Order'!M767)","v":""},null,null,{"$f":"IF('1. Order'!AS767=\"\",\"\",'1. Order'!AS767)","v":""},{"$f":"IF('1. Order'!AF767=\"\",\"\",'1. Order'!AF767)","v":""}]
[{"$f":"IF('1. Order'!B768=\"\",\"\",'1. Order'!B768)","v":""},{"$f":"IF('1. Order'!I768=\"\",\"\",'1. Order'!I768)","v":""},{"$f":"IF('1. Order'!J768=\"\",\"\",'1. Order'!J768)","v":""},{"$f":"IF('1. Order'!K768=\"\",\"\",'1. Order'!K768)","v":""},{"$f":"IF('1. Order'!M768=\"\",\"\",'1. Order'!M768)","v":""},null,null,{"$f":"IF('1. Order'!AS768=\"\",\"\",'1. Order'!AS768)","v":""},{"$f":"IF('1. Order'!AF768=\"\",\"\",'1. Order'!AF768)","v":""}]
[{"$f":"IF('1. Order'!B769=\"\",\"\",'1. Order'!B769)","v":""},{"$f":"IF('1. Order'!I769=\"\",\"\",'1. Order'!I769)","v":""},{"$f":"IF('1. Order'!J769=\"\",\"\",'1. Order'!J769)","v":""},{"$f":"IF('1. Order'!K769=\"\",\"\",'1. Order'!K769)","v":""},{"$f":"IF('1. Order'!M769=\"\",\"\",'1. Order'!M769)","v":""},null,null,{"$f":"IF('1. Order'!AS769=\"\",\"\",'1. Order'!AS769)","v":""},{"$f":"IF('1. Order'!AF769=\"\",\"\",'1. Order'!AF769)","v":""}]
[{"$f":"IF('1. Order'!B770=\"\",\"\",'1. Order'!B770)","v":""},{"$f":"IF('1. Order'!I770=\"\",\"\",'1. Order'!I770)","v":""},{"$f":"IF('1. Order'!J770=\"\",\"\",'1. Order'!J770)","v":""},{"$f":"IF('1. Order'!K770=\"\",\"\",'1. Order'!K770)","v":""},{"$f":"IF('1. Order'!M770=\"\",\"\",'1. Order'!M770)","v":""},null,null,{"$f":"IF('1. Order'!AS770=\"\",\"\",'1. Order'!AS770)","v":""},{"$f":"IF('1. Order'!AF770=\"\",\"\",'1. Order'!AF770)","v":""}]
[{"$f":"IF('1. Order'!B771=\"\",\"\",'1. Order'!B771)","v":""},{"$f":"IF('1. Order'!I771=\"\",\"\",'1. Order'!I771)","v":""},{"$f":"IF('1. Order'!J771=\"\",\"\",'1. Order'!J771)","v":""},{"$f":"IF('1. Order'!K771=\"\",\"\",'1. Order'!K771)","v":""},{"$f":"IF('1. Order'!M771=\"\",\"\",'1. Order'!M771)","v":""},null,null,{"$f":"IF('1. Order'!AS771=\"\",\"\",'1. Order'!AS771)","v":""},{"$f":"IF('1. Order'!AF771=\"\",\"\",'1. Order'!AF771)","v":""}]
[{"$f":"IF('1. Order'!B772=\"\",\"\",'1. Order'!B772)","v":""},{"$f":"IF('1. Order'!I772=\"\",\"\",'1. Order'!I772)","v":""},{"$f":"IF('1. Order'!J772=\"\",\"\",'1. Order'!J772)","v":""},{"$f":"IF('1. Order'!K772=\"\",\"\",'1. Order'!K772)","v":""},{"$f":"IF('1. Order'!M772=\"\",\"\",'1. Order'!M772)","v":""},null,null,{"$f":"IF('1. Order'!AS772=\"\",\"\",'1. Order'!AS772)","v":""},{"$f":"IF('1. Order'!AF772=\"\",\"\",'1. Order'!AF772)","v":""}]
[{"$f":"IF('1. Order'!B773=\"\",\"\",'1. Order'!B773)","v":""},{"$f":"IF('1. Order'!I773=\"\",\"\",'1. Order'!I773)","v":""},{"$f":"IF('1. Order'!J773=\"\",\"\",'1. Order'!J773)","v":""},{"$f":"IF('1. Order'!K773=\"\",\"\",'1. Order'!K773)","v":""},{"$f":"IF('1. Order'!M773=\"\",\"\",'1. Order'!M773)","v":""},null,null,{"$f":"IF('1. Order'!AS773=\"\",\"\",'1. Order'!AS773)","v":""},{"$f":"IF('1. Order'!AF773=\"\",\"\",'1. Order'!AF773)","v":""}]
[{"$f":"IF('1. Order'!B774=\"\",\"\",'1. Order'!B774)","v":""},{"$f":"IF('1. Order'!I774=\"\",\"\",'1. Order'!I774)","v":""},{"$f":"IF('1. Order'!J774=\"\",\"\",'1. Order'!J774)","v":""},{"$f":"IF('1. Order'!K774=\"\",\"\",'1. Order'!K774)","v":""},{"$f":"IF('1. Order'!M774=\"\",\"\",'1. Order'!M774)","v":""},null,null,{"$f":"IF('1. Order'!AS774=\"\",\"\",'1. Order'!AS774)","v":""},{"$f":"IF('1. Order'!AF774=\"\",\"\",'1. Order'!AF774)","v":""}]
[{"$f":"IF('1. Order'!B775=\"\",\"\",'1. Order'!B775)","v":""},{"$f":"IF('1. Order'!I775=\"\",\"\",'1. Order'!I775)","v":""},{"$f":"IF('1. Order'!J775=\"\",\"\",'1. Order'!J775)","v":""},{"$f":"IF('1. Order'!K775=\"\",\"\",'1. Order'!K775)","v":""},{"$f":"IF('1. Order'!M775=\"\",\"\",'1. Order'!M775)","v":""},null,null,{"$f":"IF('1. Order'!AS775=\"\",\"\",'1. Order'!AS775)","v":""},{"$f":"IF('1. Order'!AF775=\"\",\"\",'1. Order'!AF775)","v":""}]
[{"$f":"IF('1. Order'!B776=\"\",\"\",'1. Order'!B776)","v":""},{"$f":"IF('1. Order'!I776=\"\",\"\",'1. Order'!I776)","v":""},{"$f":"IF('1. Order'!J776=\"\",\"\",'1. Order'!J776)","v":""},{"$f":"IF('1. Order'!K776=\"\",\"\",'1. Order'!K776)","v":""},{"$f":"IF('1. Order'!M776=\"\",\"\",'1. Order'!M776)","v":""},null,null,{"$f":"IF('1. Order'!AS776=\"\",\"\",'1. Order'!AS776)","v":""},{"$f":"IF('1. Order'!AF776=\"\",\"\",'1. Order'!AF776)","v":""}]
[{"$f":"IF('1. Order'!B777=\"\",\"\",'1. Order'!B777)","v":""},{"$f":"IF('1. Order'!I777=\"\",\"\",'1. Order'!I777)","v":""},{"$f":"IF('1. Order'!J777=\"\",\"\",'1. Order'!J777)","v":""},{"$f":"IF('1. Order'!K777=\"\",\"\",'1. Order'!K777)","v":""},{"$f":"IF('1. Order'!M777=\"\",\"\",'1. Order'!M777)","v":""},null,null,{"$f":"IF('1. Order'!AS777=\"\",\"\",'1. Order'!AS777)","v":""},{"$f":"IF('1. Order'!AF777=\"\",\"\",'1. Order'!AF777)","v":""}]
[{"$f":"IF('1. Order'!B778=\"\",\"\",'1. Order'!B778)","v":""},{"$f":"IF('1. Order'!I778=\"\",\"\",'1. Order'!I778)","v":""},{"$f":"IF('1. Order'!J778=\"\",\"\",'1. Order'!J778)","v":""},{"$f":"IF('1. Order'!K778=\"\",\"\",'1. Order'!K778)","v":""},{"$f":"IF('1. Order'!M778=\"\",\"\",'1. Order'!M778)","v":""},null,null,{"$f":"IF('1. Order'!AS778=\"\",\"\",'1. Order'!AS778)","v":""},{"$f":"IF('1. Order'!AF778=\"\",\"\",'1. Order'!AF778)","v":""}]
[{"$f":"IF('1. Order'!B779=\"\",\"\",'1. Order'!B779)","v":""},{"$f":"IF('1. Order'!I779=\"\",\"\",'1. Order'!I779)","v":""},{"$f":"IF('1. Order'!J779=\"\",\"\",'1. Order'!J779)","v":""},{"$f":"IF('1. Order'!K779=\"\",\"\",'1. Order'!K779)","v":""},{"$f":"IF('1. Order'!M779=\"\",\"\",'1. Order'!M779)","v":""},null,null,{"$f":"IF('1. Order'!AS779=\"\",\"\",'1. Order'!AS779)","v":""},{"$f":"IF('1. Order'!AF779=\"\",\"\",'1. Order'!AF779)","v":""}]
[{"$f":"IF('1. Order'!B780=\"\",\"\",'1. Order'!B780)","v":""},{"$f":"IF('1. Order'!I780=\"\",\"\",'1. Order'!I780)","v":""},{"$f":"IF('1. Order'!J780=\"\",\"\",'1. Order'!J780)","v":""},{"$f":"IF('1. Order'!K780=\"\",\"\",'1. Order'!K780)","v":""},{"$f":"IF('1. Order'!M780=\"\",\"\",'1. Order'!M780)","v":""},null,null,{"$f":"IF('1. Order'!AS780=\"\",\"\",'1. Order'!AS780)","v":""},{"$f":"IF('1. Order'!AF780=\"\",\"\",'1. Order'!AF780)","v":""}]
[{"$f":"IF('1. Order'!B781=\"\",\"\",'1. Order'!B781)","v":""},{"$f":"IF('1. Order'!I781=\"\",\"\",'1. Order'!I781)","v":""},{"$f":"IF('1. Order'!J781=\"\",\"\",'1. Order'!J781)","v":""},{"$f":"IF('1. Order'!K781=\"\",\"\",'1. Order'!K781)","v":""},{"$f":"IF('1. Order'!M781=\"\",\"\",'1. Order'!M781)","v":""},null,null,{"$f":"IF('1. Order'!AS781=\"\",\"\",'1. Order'!AS781)","v":""},{"$f":"IF('1. Order'!AF781=\"\",\"\",'1. Order'!AF781)","v":""}]
[{"$f":"IF('1. Order'!B782=\"\",\"\",'1. Order'!B782)","v":""},{"$f":"IF('1. Order'!I782=\"\",\"\",'1. Order'!I782)","v":""},{"$f":"IF('1. Order'!J782=\"\",\"\",'1. Order'!J782)","v":""},{"$f":"IF('1. Order'!K782=\"\",\"\",'1. Order'!K782)","v":""},{"$f":"IF('1. Order'!M782=\"\",\"\",'1. Order'!M782)","v":""},null,null,{"$f":"IF('1. Order'!AS782=\"\",\"\",'1. Order'!AS782)","v":""},{"$f":"IF('1. Order'!AF782=\"\",\"\",'1. Order'!AF782)","v":""}]
[{"$f":"IF('1. Order'!B783=\"\",\"\",'1. Order'!B783)","v":""},{"$f":"IF('1. Order'!I783=\"\",\"\",'1. Order'!I783)","v":""},{"$f":"IF('1. Order'!J783=\"\",\"\",'1. Order'!J783)","v":""},{"$f":"IF('1. Order'!K783=\"\",\"\",'1. Order'!K783)","v":""},{"$f":"IF('1. Order'!M783=\"\",\"\",'1. Order'!M783)","v":""},null,null,{"$f":"IF('1. Order'!AS783=\"\",\"\",'1. Order'!AS783)","v":""},{"$f":"IF('1. Order'!AF783=\"\",\"\",'1. Order'!AF783)","v":""}]
[{"$f":"IF('1. Order'!B784=\"\",\"\",'1. Order'!B784)","v":""},{"$f":"IF('1. Order'!I784=\"\",\"\",'1. Order'!I784)","v":""},{"$f":"IF('1. Order'!J784=\"\",\"\",'1. Order'!J784)","v":""},{"$f":"IF('1. Order'!K784=\"\",\"\",'1. Order'!K784)","v":""},{"$f":"IF('1. Order'!M784=\"\",\"\",'1. Order'!M784)","v":""},null,null,{"$f":"IF('1. Order'!AS784=\"\",\"\",'1. Order'!AS784)","v":""},{"$f":"IF('1. Order'!AF784=\"\",\"\",'1. Order'!AF784)","v":""}]
[{"$f":"IF('1. Order'!B785=\"\",\"\",'1. Order'!B785)","v":""},{"$f":"IF('1. Order'!I785=\"\",\"\",'1. Order'!I785)","v":""},{"$f":"IF('1. Order'!J785=\"\",\"\",'1. Order'!J785)","v":""},{"$f":"IF('1. Order'!K785=\"\",\"\",'1. Order'!K785)","v":""},{"$f":"IF('1. Order'!M785=\"\",\"\",'1. Order'!M785)","v":""},null,null,{"$f":"IF('1. Order'!AS785=\"\",\"\",'1. Order'!AS785)","v":""},{"$f":"IF('1. Order'!AF785=\"\",\"\",'1. Order'!AF785)","v":""}]
[{"$f":"IF('1. Order'!B786=\"\",\"\",'1. Order'!B786)","v":""},{"$f":"IF('1. Order'!I786=\"\",\"\",'1. Order'!I786)","v":""},{"$f":"IF('1. Order'!J786=\"\",\"\",'1. Order'!J786)","v":""},{"$f":"IF('1. Order'!K786=\"\",\"\",'1. Order'!K786)","v":""},{"$f":"IF('1. Order'!M786=\"\",\"\",'1. Order'!M786)","v":""},null,null,{"$f":"IF('1. Order'!AS786=\"\",\"\",'1. Order'!AS786)","v":""},{"$f":"IF('1. Order'!AF786=\"\",\"\",'1. Order'!AF786)","v":""}]
[{"$f":"IF('1. Order'!B787=\"\",\"\",'1. Order'!B787)","v":""},{"$f":"IF('1. Order'!I787=\"\",\"\",'1. Order'!I787)","v":""},{"$f":"IF('1. Order'!J787=\"\",\"\",'1. Order'!J787)","v":""},{"$f":"IF('1. Order'!K787=\"\",\"\",'1. Order'!K787)","v":""},{"$f":"IF('1. Order'!M787=\"\",\"\",'1. Order'!M787)","v":""},null,null,{"$f":"IF('1. Order'!AS787=\"\",\"\",'1. Order'!AS787)","v":""},{"$f":"IF('1. Order'!AF787=\"\",\"\",'1. Order'!AF787)","v":""}]
[{"$f":"IF('1. Order'!B788=\"\",\"\",'1. Order'!B788)","v":""},{"$f":"IF('1. Order'!I788=\"\",\"\",'1. Order'!I788)","v":""},{"$f":"IF('1. Order'!J788=\"\",\"\",'1. Order'!J788)","v":""},{"$f":"IF('1. Order'!K788=\"\",\"\",'1. Order'!K788)","v":""},{"$f":"IF('1. Order'!M788=\"\",\"\",'1. Order'!M788)","v":""},null,null,{"$f":"IF('1. Order'!AS788=\"\",\"\",'1. Order'!AS788)","v":""},{"$f":"IF('1. Order'!AF788=\"\",\"\",'1. Order'!AF788)","v":""}]
[{"$f":"IF('1. Order'!B789=\"\",\"\",'1. Order'!B789)","v":""},{"$f":"IF('1. Order'!I789=\"\",\"\",'1. Order'!I789)","v":""},{"$f":"IF('1. Order'!J789=\"\",\"\",'1. Order'!J789)","v":""},{"$f":"IF('1. Order'!K789=\"\",\"\",'1. Order'!K789)","v":""},{"$f":"IF('1. Order'!M789=\"\",\"\",'1. Order'!M789)","v":""},null,null,{"$f":"IF('1. Order'!AS789=\"\",\"\",'1. Order'!AS789)","v":""},{"$f":"IF('1. Order'!AF789=\"\",\"\",'1. Order'!AF789)","v":""}]
[{"$f":"IF('1. Order'!B790=\"\",\"\",'1. Order'!B790)","v":""},{"$f":"IF('1. Order'!I790=\"\",\"\",'1. Order'!I790)","v":""},{"$f":"IF('1. Order'!J790=\"\",\"\",'1. Order'!J790)","v":""},{"$f":"IF('1. Order'!K790=\"\",\"\",'1. Order'!K790)","v":""},{"$f":"IF('1. Order'!M790=\"\",\"\",'1. Order'!M790)","v":""},null,null,{"$f":"IF('1. Order'!AS790=\"\",\"\",'1. Order'!AS790)","v":""},{"$f":"IF('1. Order'!AF790=\"\",\"\",'1. Order'!AF790)","v":""}]
[{"$f":"IF('1. Order'!B791=\"\",\"\",'1. Order'!B791)","v":""},{"$f":"IF('1. Order'!I791=\"\",\"\",'1. Order'!I791)","v":""},{"$f":"IF('1. Order'!J791=\"\",\"\",'1. Order'!J791)","v":""},{"$f":"IF('1. Order'!K791=\"\",\"\",'1. Order'!K791)","v":""},{"$f":"IF('1. Order'!M791=\"\",\"\",'1. Order'!M791)","v":""},null,null,{"$f":"IF('1. Order'!AS791=\"\",\"\",'1. Order'!AS791)","v":""},{"$f":"IF('1. Order'!AF791=\"\",\"\",'1. Order'!AF791)","v":""}]
[{"$f":"IF('1. Order'!B792=\"\",\"\",'1. Order'!B792)","v":""},{"$f":"IF('1. Order'!I792=\"\",\"\",'1. Order'!I792)","v":""},{"$f":"IF('1. Order'!J792=\"\",\"\",'1. Order'!J792)","v":""},{"$f":"IF('1. Order'!K792=\"\",\"\",'1. Order'!K792)","v":""},{"$f":"IF('1. Order'!M792=\"\",\"\",'1. Order'!M792)","v":""},null,null,{"$f":"IF('1. Order'!AS792=\"\",\"\",'1. Order'!AS792)","v":""},{"$f":"IF('1. Order'!AF792=\"\",\"\",'1. Order'!AF792)","v":""}]
[{"$f":"IF('1. Order'!B793=\"\",\"\",'1. Order'!B793)","v":""},{"$f":"IF('1. Order'!I793=\"\",\"\",'1. Order'!I793)","v":""},{"$f":"IF('1. Order'!J793=\"\",\"\",'1. Order'!J793)","v":""},{"$f":"IF('1. Order'!K793=\"\",\"\",'1. Order'!K793)","v":""},{"$f":"IF('1. Order'!M793=\"\",\"\",'1. Order'!M793)","v":""},null,null,{"$f":"IF('1. Order'!AS793=\"\",\"\",'1. Order'!AS793)","v":""},{"$f":"IF('1. Order'!AF793=\"\",\"\",'1. Order'!AF793)","v":""}]
[{"$f":"IF('1. Order'!B794=\"\",\"\",'1. Order'!B794)","v":""},{"$f":"IF('1. Order'!I794=\"\",\"\",'1. Order'!I794)","v":""},{"$f":"IF('1. Order'!J794=\"\",\"\",'1. Order'!J794)","v":""},{"$f":"IF('1. Order'!K794=\"\",\"\",'1. Order'!K794)","v":""},{"$f":"IF('1. Order'!M794=\"\",\"\",'1. Order'!M794)","v":""},null,null,{"$f":"IF('1. Order'!AS794=\"\",\"\",'1. Order'!AS794)","v":""},{"$f":"IF('1. Order'!AF794=\"\",\"\",'1. Order'!AF794)","v":""}]
[{"$f":"IF('1. Order'!B795=\"\",\"\",'1. Order'!B795)","v":""},{"$f":"IF('1. Order'!I795=\"\",\"\",'1. Order'!I795)","v":""},{"$f":"IF('1. Order'!J795=\"\",\"\",'1. Order'!J795)","v":""},{"$f":"IF('1. Order'!K795=\"\",\"\",'1. Order'!K795)","v":""},{"$f":"IF('1. Order'!M795=\"\",\"\",'1. Order'!M795)","v":""},null,null,{"$f":"IF('1. Order'!AS795=\"\",\"\",'1. Order'!AS795)","v":""},{"$f":"IF('1. Order'!AF795=\"\",\"\",'1. Order'!AF795)","v":""}]
[{"$f":"IF('1. Order'!B796=\"\",\"\",'1. Order'!B796)","v":""},{"$f":"IF('1. Order'!I796=\"\",\"\",'1. Order'!I796)","v":""},{"$f":"IF('1. Order'!J796=\"\",\"\",'1. Order'!J796)","v":""},{"$f":"IF('1. Order'!K796=\"\",\"\",'1. Order'!K796)","v":""},{"$f":"IF('1. Order'!M796=\"\",\"\",'1. Order'!M796)","v":""},null,null,{"$f":"IF('1. Order'!AS796=\"\",\"\",'1. Order'!AS796)","v":""},{"$f":"IF('1. Order'!AF796=\"\",\"\",'1. Order'!AF796)","v":""}]
[{"$f":"IF('1. Order'!B797=\"\",\"\",'1. Order'!B797)","v":""},{"$f":"IF('1. Order'!I797=\"\",\"\",'1. Order'!I797)","v":""},{"$f":"IF('1. Order'!J797=\"\",\"\",'1. Order'!J797)","v":""},{"$f":"IF('1. Order'!K797=\"\",\"\",'1. Order'!K797)","v":""},{"$f":"IF('1. Order'!M797=\"\",\"\",'1. Order'!M797)","v":""},null,null,{"$f":"IF('1. Order'!AS797=\"\",\"\",'1. Order'!AS797)","v":""},{"$f":"IF('1. Order'!AF797=\"\",\"\",'1. Order'!AF797)","v":""}]
[{"$f":"IF('1. Order'!B798=\"\",\"\",'1. Order'!B798)","v":""},{"$f":"IF('1. Order'!I798=\"\",\"\",'1. Order'!I798)","v":""},{"$f":"IF('1. Order'!J798=\"\",\"\",'1. Order'!J798)","v":""},{"$f":"IF('1. Order'!K798=\"\",\"\",'1. Order'!K798)","v":""},{"$f":"IF('1. Order'!M798=\"\",\"\",'1. Order'!M798)","v":""},null,null,{"$f":"IF('1. Order'!AS798=\"\",\"\",'1. Order'!AS798)","v":""},{"$f":"IF('1. Order'!AF798=\"\",\"\",'1. Order'!AF798)","v":""}]
[{"$f":"IF('1. Order'!B799=\"\",\"\",'1. Order'!B799)","v":""},{"$f":"IF('1. Order'!I799=\"\",\"\",'1. Order'!I799)","v":""},{"$f":"IF('1. Order'!J799=\"\",\"\",'1. Order'!J799)","v":""},{"$f":"IF('1. Order'!K799=\"\",\"\",'1. Order'!K799)","v":""},{"$f":"IF('1. Order'!M799=\"\",\"\",'1. Order'!M799)","v":""},null,null,{"$f":"IF('1. Order'!AS799=\"\",\"\",'1. Order'!AS799)","v":""},{"$f":"IF('1. Order'!AF799=\"\",\"\",'1. Order'!AF799)","v":""}]
[{"$f":"IF('1. Order'!B800=\"\",\"\",'1. Order'!B800)","v":""},{"$f":"IF('1. Order'!I800=\"\",\"\",'1. Order'!I800)","v":""},{"$f":"IF('1. Order'!J800=\"\",\"\",'1. Order'!J800)","v":""},{"$f":"IF('1. Order'!K800=\"\",\"\",'1. Order'!K800)","v":""},{"$f":"IF('1. Order'!M800=\"\",\"\",'1. Order'!M800)","v":""},null,null,{"$f":"IF('1. Order'!AS800=\"\",\"\",'1. Order'!AS800)","v":""},{"$f":"IF('1. Order'!AF800=\"\",\"\",'1. Order'!AF800)","v":""}]
[{"$f":"IF('1. Order'!B801=\"\",\"\",'1. Order'!B801)","v":""},{"$f":"IF('1. Order'!I801=\"\",\"\",'1. Order'!I801)","v":""},{"$f":"IF('1. Order'!J801=\"\",\"\",'1. Order'!J801)","v":""},{"$f":"IF('1. Order'!K801=\"\",\"\",'1. Order'!K801)","v":""},{"$f":"IF('1. Order'!M801=\"\",\"\",'1. Order'!M801)","v":""},null,null,{"$f":"IF('1. Order'!AS801=\"\",\"\",'1. Order'!AS801)","v":""},{"$f":"IF('1. Order'!AF801=\"\",\"\",'1. Order'!AF801)","v":""}]
[{"$f":"IF('1. Order'!B802=\"\",\"\",'1. Order'!B802)","v":""},{"$f":"IF('1. Order'!I802=\"\",\"\",'1. Order'!I802)","v":""},{"$f":"IF('1. Order'!J802=\"\",\"\",'1. Order'!J802)","v":""},{"$f":"IF('1. Order'!K802=\"\",\"\",'1. Order'!K802)","v":""},{"$f":"IF('1. Order'!M802=\"\",\"\",'1. Order'!M802)","v":""},null,null,{"$f":"IF('1. Order'!AS802=\"\",\"\",'1. Order'!AS802)","v":""},{"$f":"IF('1. Order'!AF802=\"\",\"\",'1. Order'!AF802)","v":""}]
[{"$f":"IF('1. Order'!B803=\"\",\"\",'1. Order'!B803)","v":""},{"$f":"IF('1. Order'!I803=\"\",\"\",'1. Order'!I803)","v":""},{"$f":"IF('1. Order'!J803=\"\",\"\",'1. Order'!J803)","v":""},{"$f":"IF('1. Order'!K803=\"\",\"\",'1. Order'!K803)","v":""},{"$f":"IF('1. Order'!M803=\"\",\"\",'1. Order'!M803)","v":""},null,null,{"$f":"IF('1. Order'!AS803=\"\",\"\",'1. Order'!AS803)","v":""},{"$f":"IF('1. Order'!AF803=\"\",\"\",'1. Order'!AF803)","v":""}]
[{"$f":"IF('1. Order'!B804=\"\",\"\",'1. Order'!B804)","v":""},{"$f":"IF('1. Order'!I804=\"\",\"\",'1. Order'!I804)","v":""},{"$f":"IF('1. Order'!J804=\"\",\"\",'1. Order'!J804)","v":""},{"$f":"IF('1. Order'!K804=\"\",\"\",'1. Order'!K804)","v":""},{"$f":"IF('1. Order'!M804=\"\",\"\",'1. Order'!M804)","v":""},null,null,{"$f":"IF('1. Order'!AS804=\"\",\"\",'1. Order'!AS804)","v":""},{"$f":"IF('1. Order'!AF804=\"\",\"\",'1. Order'!AF804)","v":""}]
[{"$f":"IF('1. Order'!B805=\"\",\"\",'1. Order'!B805)","v":""},{"$f":"IF('1. Order'!I805=\"\",\"\",'1. Order'!I805)","v":""},{"$f":"IF('1. Order'!J805=\"\",\"\",'1. Order'!J805)","v":""},{"$f":"IF('1. Order'!K805=\"\",\"\",'1. Order'!K805)","v":""},{"$f":"IF('1. Order'!M805=\"\",\"\",'1. Order'!M805)","v":""},null,null,{"$f":"IF('1. Order'!AS805=\"\",\"\",'1. Order'!AS805)","v":""},{"$f":"IF('1. Order'!AF805=\"\",\"\",'1. Order'!AF805)","v":""}]
[{"$f":"IF('1. Order'!B806=\"\",\"\",'1. Order'!B806)","v":""},{"$f":"IF('1. Order'!I806=\"\",\"\",'1. Order'!I806)","v":""},{"$f":"IF('1. Order'!J806=\"\",\"\",'1. Order'!J806)","v":""},{"$f":"IF('1. Order'!K806=\"\",\"\",'1. Order'!K806)","v":""},{"$f":"IF('1. Order'!M806=\"\",\"\",'1. Order'!M806)","v":""},null,null,{"$f":"IF('1. Order'!AS806=\"\",\"\",'1. Order'!AS806)","v":""},{"$f":"IF('1. Order'!AF806=\"\",\"\",'1. Order'!AF806)","v":""}]
[{"$f":"IF('1. Order'!B807=\"\",\"\",'1. Order'!B807)","v":""},{"$f":"IF('1. Order'!I807=\"\",\"\",'1. Order'!I807)","v":""},{"$f":"IF('1. Order'!J807=\"\",\"\",'1. Order'!J807)","v":""},{"$f":"IF('1. Order'!K807=\"\",\"\",'1. Order'!K807)","v":""},{"$f":"IF('1. Order'!M807=\"\",\"\",'1. Order'!M807)","v":""},null,null,{"$f":"IF('1. Order'!AS807=\"\",\"\",'1. Order'!AS807)","v":""},{"$f":"IF('1. Order'!AF807=\"\",\"\",'1. Order'!AF807)","v":""}]
[{"$f":"IF('1. Order'!B808=\"\",\"\",'1. Order'!B808)","v":""},{"$f":"IF('1. Order'!I808=\"\",\"\",'1. Order'!I808)","v":""},{"$f":"IF('1. Order'!J808=\"\",\"\",'1. Order'!J808)","v":""},{"$f":"IF('1. Order'!K808=\"\",\"\",'1. Order'!K808)","v":""},{"$f":"IF('1. Order'!M808=\"\",\"\",'1. Order'!M808)","v":""},null,null,{"$f":"IF('1. Order'!AS808=\"\",\"\",'1. Order'!AS808)","v":""},{"$f":"IF('1. Order'!AF808=\"\",\"\",'1. Order'!AF808)","v":""}]
[{"$f":"IF('1. Order'!B809=\"\",\"\",'1. Order'!B809)","v":""},{"$f":"IF('1. Order'!I809=\"\",\"\",'1. Order'!I809)","v":""},{"$f":"IF('1. Order'!J809=\"\",\"\",'1. Order'!J809)","v":""},{"$f":"IF('1. Order'!K809=\"\",\"\",'1. Order'!K809)","v":""},{"$f":"IF('1. Order'!M809=\"\",\"\",'1. Order'!M809)","v":""},null,null,{"$f":"IF('1. Order'!AS809=\"\",\"\",'1. Order'!AS809)","v":""},{"$f":"IF('1. Order'!AF809=\"\",\"\",'1. Order'!AF809)","v":""}]
[{"$f":"IF('1. Order'!B810=\"\",\"\",'1. Order'!B810)","v":""},{"$f":"IF('1. Order'!I810=\"\",\"\",'1. Order'!I810)","v":""},{"$f":"IF('1. Order'!J810=\"\",\"\",'1. Order'!J810)","v":""},{"$f":"IF('1. Order'!K810=\"\",\"\",'1. Order'!K810)","v":""},{"$f":"IF('1. Order'!M810=\"\",\"\",'1. Order'!M810)","v":""},null,null,{"$f":"IF('1. Order'!AS810=\"\",\"\",'1. Order'!AS810)","v":""},{"$f":"IF('1. Order'!AF810=\"\",\"\",'1. Order'!AF810)","v":""}]
[{"$f":"IF('1. Order'!B811=\"\",\"\",'1. Order'!B811)","v":""},{"$f":"IF('1. Order'!I811=\"\",\"\",'1. Order'!I811)","v":""},{"$f":"IF('1. Order'!J811=\"\",\"\",'1. Order'!J811)","v":""},{"$f":"IF('1. Order'!K811=\"\",\"\",'1. Order'!K811)","v":""},{"$f":"IF('1. Order'!M811=\"\",\"\",'1. Order'!M811)","v":""},null,null,{"$f":"IF('1. Order'!AS811=\"\",\"\",'1. Order'!AS811)","v":""},{"$f":"IF('1. Order'!AF811=\"\",\"\",'1. Order'!AF811)","v":""}]
[{"$f":"IF('1. Order'!B812=\"\",\"\",'1. Order'!B812)","v":""},{"$f":"IF('1. Order'!I812=\"\",\"\",'1. Order'!I812)","v":""},{"$f":"IF('1. Order'!J812=\"\",\"\",'1. Order'!J812)","v":""},{"$f":"IF('1. Order'!K812=\"\",\"\",'1. Order'!K812)","v":""},{"$f":"IF('1. Order'!M812=\"\",\"\",'1. Order'!M812)","v":""},null,null,{"$f":"IF('1. Order'!AS812=\"\",\"\",'1. Order'!AS812)","v":""},{"$f":"IF('1. Order'!AF812=\"\",\"\",'1. Order'!AF812)","v":""}]
[{"$f":"IF('1. Order'!B813=\"\",\"\",'1. Order'!B813)","v":""},{"$f":"IF('1. Order'!I813=\"\",\"\",'1. Order'!I813)","v":""},{"$f":"IF('1. Order'!J813=\"\",\"\",'1. Order'!J813)","v":""},{"$f":"IF('1. Order'!K813=\"\",\"\",'1. Order'!K813)","v":""},{"$f":"IF('1. Order'!M813=\"\",\"\",'1. Order'!M813)","v":""},null,null,{"$f":"IF('1. Order'!AS813=\"\",\"\",'1. Order'!AS813)","v":""},{"$f":"IF('1. Order'!AF813=\"\",\"\",'1. Order'!AF813)","v":""}]
[{"$f":"IF('1. Order'!B814=\"\",\"\",'1. Order'!B814)","v":""},{"$f":"IF('1. Order'!I814=\"\",\"\",'1. Order'!I814)","v":""},{"$f":"IF('1. Order'!J814=\"\",\"\",'1. Order'!J814)","v":""},{"$f":"IF('1. Order'!K814=\"\",\"\",'1. Order'!K814)","v":""},{"$f":"IF('1. Order'!M814=\"\",\"\",'1. Order'!M814)","v":""},null,null,{"$f":"IF('1. Order'!AS814=\"\",\"\",'1. Order'!AS814)","v":""},{"$f":"IF('1. Order'!AF814=\"\",\"\",'1. Order'!AF814)","v":""}]
[{"$f":"IF('1. Order'!B815=\"\",\"\",'1. Order'!B815)","v":""},{"$f":"IF('1. Order'!I815=\"\",\"\",'1. Order'!I815)","v":""},{"$f":"IF('1. Order'!J815=\"\",\"\",'1. Order'!J815)","v":""},{"$f":"IF('1. Order'!K815=\"\",\"\",'1. Order'!K815)","v":""},{"$f":"IF('1. Order'!M815=\"\",\"\",'1. Order'!M815)","v":""},null,null,{"$f":"IF('1. Order'!AS815=\"\",\"\",'1. Order'!AS815)","v":""},{"$f":"IF('1. Order'!AF815=\"\",\"\",'1. Order'!AF815)","v":""}]
[{"$f":"IF('1. Order'!B816=\"\",\"\",'1. Order'!B816)","v":""},{"$f":"IF('1. Order'!I816=\"\",\"\",'1. Order'!I816)","v":""},{"$f":"IF('1. Order'!J816=\"\",\"\",'1. Order'!J816)","v":""},{"$f":"IF('1. Order'!K816=\"\",\"\",'1. Order'!K816)","v":""},{"$f":"IF('1. Order'!M816=\"\",\"\",'1. Order'!M816)","v":""},null,null,{"$f":"IF('1. Order'!AS816=\"\",\"\",'1. Order'!AS816)","v":""},{"$f":"IF('1. Order'!AF816=\"\",\"\",'1. Order'!AF816)","v":""}]
[{"$f":"IF('1. Order'!B817=\"\",\"\",'1. Order'!B817)","v":""},{"$f":"IF('1. Order'!I817=\"\",\"\",'1. Order'!I817)","v":""},{"$f":"IF('1. Order'!J817=\"\",\"\",'1. Order'!J817)","v":""},{"$f":"IF('1. Order'!K817=\"\",\"\",'1. Order'!K817)","v":""},{"$f":"IF('1. Order'!M817=\"\",\"\",'1. Order'!M817)","v":""},null,null,{"$f":"IF('1. Order'!AS817=\"\",\"\",'1. Order'!AS817)","v":""},{"$f":"IF('1. Order'!AF817=\"\",\"\",'1. Order'!AF817)","v":""}]
[{"$f":"IF('1. Order'!B818=\"\",\"\",'1. Order'!B818)","v":""},{"$f":"IF('1. Order'!I818=\"\",\"\",'1. Order'!I818)","v":""},{"$f":"IF('1. Order'!J818=\"\",\"\",'1. Order'!J818)","v":""},{"$f":"IF('1. Order'!K818=\"\",\"\",'1. Order'!K818)","v":""},{"$f":"IF('1. Order'!M818=\"\",\"\",'1. Order'!M818)","v":""},null,null,{"$f":"IF('1. Order'!AS818=\"\",\"\",'1. Order'!AS818)","v":""},{"$f":"IF('1. Order'!AF818=\"\",\"\",'1. Order'!AF818)","v":""}]
[{"$f":"IF('1. Order'!B819=\"\",\"\",'1. Order'!B819)","v":""},{"$f":"IF('1. Order'!I819=\"\",\"\",'1. Order'!I819)","v":""},{"$f":"IF('1. Order'!J819=\"\",\"\",'1. Order'!J819)","v":""},{"$f":"IF('1. Order'!K819=\"\",\"\",'1. Order'!K819)","v":""},{"$f":"IF('1. Order'!M819=\"\",\"\",'1. Order'!M819)","v":""},null,null,{"$f":"IF('1. Order'!AS819=\"\",\"\",'1. Order'!AS819)","v":""},{"$f":"IF('1. Order'!AF819=\"\",\"\",'1. Order'!AF819)","v":""}]
[{"$f":"IF('1. Order'!B820=\"\",\"\",'1. Order'!B820)","v":""},{"$f":"IF('1. Order'!I820=\"\",\"\",'1. Order'!I820)","v":""},{"$f":"IF('1. Order'!J820=\"\",\"\",'1. Order'!J820)","v":""},{"$f":"IF('1. Order'!K820=\"\",\"\",'1. Order'!K820)","v":""},{"$f":"IF('1. Order'!M820=\"\",\"\",'1. Order'!M820)","v":""},null,null,{"$f":"IF('1. Order'!AS820=\"\",\"\",'1. Order'!AS820)","v":""},{"$f":"IF('1. Order'!AF820=\"\",\"\",'1. Order'!AF820)","v":""}]
[{"$f":"IF('1. Order'!B821=\"\",\"\",'1. Order'!B821)","v":""},{"$f":"IF('1. Order'!I821=\"\",\"\",'1. Order'!I821)","v":""},{"$f":"IF('1. Order'!J821=\"\",\"\",'1. Order'!J821)","v":""},{"$f":"IF('1. Order'!K821=\"\",\"\",'1. Order'!K821)","v":""},{"$f":"IF('1. Order'!M821=\"\",\"\",'1. Order'!M821)","v":""},null,null,{"$f":"IF('1. Order'!AS821=\"\",\"\",'1. Order'!AS821)","v":""},{"$f":"IF('1. Order'!AF821=\"\",\"\",'1. Order'!AF821)","v":""}]
[{"$f":"IF('1. Order'!B822=\"\",\"\",'1. Order'!B822)","v":""},{"$f":"IF('1. Order'!I822=\"\",\"\",'1. Order'!I822)","v":""},{"$f":"IF('1. Order'!J822=\"\",\"\",'1. Order'!J822)","v":""},{"$f":"IF('1. Order'!K822=\"\",\"\",'1. Order'!K822)","v":""},{"$f":"IF('1. Order'!M822=\"\",\"\",'1. Order'!M822)","v":""},null,null,{"$f":"IF('1. Order'!AS822=\"\",\"\",'1. Order'!AS822)","v":""},{"$f":"IF('1. Order'!AF822=\"\",\"\",'1. Order'!AF822)","v":""}]
[{"$f":"IF('1. Order'!B823=\"\",\"\",'1. Order'!B823)","v":""},{"$f":"IF('1. Order'!I823=\"\",\"\",'1. Order'!I823)","v":""},{"$f":"IF('1. Order'!J823=\"\",\"\",'1. Order'!J823)","v":""},{"$f":"IF('1. Order'!K823=\"\",\"\",'1. Order'!K823)","v":""},{"$f":"IF('1. Order'!M823=\"\",\"\",'1. Order'!M823)","v":""},null,null,{"$f":"IF('1. Order'!AS823=\"\",\"\",'1. Order'!AS823)","v":""},{"$f":"IF('1. Order'!AF823=\"\",\"\",'1. Order'!AF823)","v":""}]
[{"$f":"IF('1. Order'!B824=\"\",\"\",'1. Order'!B824)","v":""},{"$f":"IF('1. Order'!I824=\"\",\"\",'1. Order'!I824)","v":""},{"$f":"IF('1. Order'!J824=\"\",\"\",'1. Order'!J824)","v":""},{"$f":"IF('1. Order'!K824=\"\",\"\",'1. Order'!K824)","v":""},{"$f":"IF('1. Order'!M824=\"\",\"\",'1. Order'!M824)","v":""},null,null,{"$f":"IF('1. Order'!AS824=\"\",\"\",'1. Order'!AS824)","v":""},{"$f":"IF('1. Order'!AF824=\"\",\"\",'1. Order'!AF824)","v":""}]
[{"$f":"IF('1. Order'!B825=\"\",\"\",'1. Order'!B825)","v":""},{"$f":"IF('1. Order'!I825=\"\",\"\",'1. Order'!I825)","v":""},{"$f":"IF('1. Order'!J825=\"\",\"\",'1. Order'!J825)","v":""},{"$f":"IF('1. Order'!K825=\"\",\"\",'1. Order'!K825)","v":""},{"$f":"IF('1. Order'!M825=\"\",\"\",'1. Order'!M825)","v":""},null,null,{"$f":"IF('1. Order'!AS825=\"\",\"\",'1. Order'!AS825)","v":""},{"$f":"IF('1. Order'!AF825=\"\",\"\",'1. Order'!AF825)","v":""}]
[{"$f":"IF('1. Order'!B826=\"\",\"\",'1. Order'!B826)","v":""},{"$f":"IF('1. Order'!I826=\"\",\"\",'1. Order'!I826)","v":""},{"$f":"IF('1. Order'!J826=\"\",\"\",'1. Order'!J826)","v":""},{"$f":"IF('1. Order'!K826=\"\",\"\",'1. Order'!K826)","v":""},{"$f":"IF('1. Order'!M826=\"\",\"\",'1. Order'!M826)","v":""},null,null,{"$f":"IF('1. Order'!AS826=\"\",\"\",'1. Order'!AS826)","v":""},{"$f":"IF('1. Order'!AF826=\"\",\"\",'1. Order'!AF826)","v":""}]
[{"$f":"IF('1. Order'!B827=\"\",\"\",'1. Order'!B827)","v":""},{"$f":"IF('1. Order'!I827=\"\",\"\",'1. Order'!I827)","v":""},{"$f":"IF('1. Order'!J827=\"\",\"\",'1. Order'!J827)","v":""},{"$f":"IF('1. Order'!K827=\"\",\"\",'1. Order'!K827)","v":""},{"$f":"IF('1. Order'!M827=\"\",\"\",'1. Order'!M827)","v":""},null,null,{"$f":"IF('1. Order'!AS827=\"\",\"\",'1. Order'!AS827)","v":""},{"$f":"IF('1. Order'!AF827=\"\",\"\",'1. Order'!AF827)","v":""}]
[{"$f":"IF('1. Order'!B828=\"\",\"\",'1. Order'!B828)","v":""},{"$f":"IF('1. Order'!I828=\"\",\"\",'1. Order'!I828)","v":""},{"$f":"IF('1. Order'!J828=\"\",\"\",'1. Order'!J828)","v":""},{"$f":"IF('1. Order'!K828=\"\",\"\",'1. Order'!K828)","v":""},{"$f":"IF('1. Order'!M828=\"\",\"\",'1. Order'!M828)","v":""},null,null,{"$f":"IF('1. Order'!AS828=\"\",\"\",'1. Order'!AS828)","v":""},{"$f":"IF('1. Order'!AF828=\"\",\"\",'1. Order'!AF828)","v":""}]
[{"$f":"IF('1. Order'!B829=\"\",\"\",'1. Order'!B829)","v":""},{"$f":"IF('1. Order'!I829=\"\",\"\",'1. Order'!I829)","v":""},{"$f":"IF('1. Order'!J829=\"\",\"\",'1. Order'!J829)","v":""},{"$f":"IF('1. Order'!K829=\"\",\"\",'1. Order'!K829)","v":""},{"$f":"IF('1. Order'!M829=\"\",\"\",'1. Order'!M829)","v":""},null,null,{"$f":"IF('1. Order'!AS829=\"\",\"\",'1. Order'!AS829)","v":""},{"$f":"IF('1. Order'!AF829=\"\",\"\",'1. Order'!AF829)","v":""}]
[{"$f":"IF('1. Order'!B830=\"\",\"\",'1. Order'!B830)","v":""},{"$f":"IF('1. Order'!I830=\"\",\"\",'1. Order'!I830)","v":""},{"$f":"IF('1. Order'!J830=\"\",\"\",'1. Order'!J830)","v":""},{"$f":"IF('1. Order'!K830=\"\",\"\",'1. Order'!K830)","v":""},{"$f":"IF('1. Order'!M830=\"\",\"\",'1. Order'!M830)","v":""},null,null,{"$f":"IF('1. Order'!AS830=\"\",\"\",'1. Order'!AS830)","v":""},{"$f":"IF('1. Order'!AF830=\"\",\"\",'1. Order'!AF830)","v":""}]
[{"$f":"IF('1. Order'!B831=\"\",\"\",'1. Order'!B831)","v":""},{"$f":"IF('1. Order'!I831=\"\",\"\",'1. Order'!I831)","v":""},{"$f":"IF('1. Order'!J831=\"\",\"\",'1. Order'!J831)","v":""},{"$f":"IF('1. Order'!K831=\"\",\"\",'1. Order'!K831)","v":""},{"$f":"IF('1. Order'!M831=\"\",\"\",'1. Order'!M831)","v":""},null,null,{"$f":"IF('1. Order'!AS831=\"\",\"\",'1. Order'!AS831)","v":""},{"$f":"IF('1. Order'!AF831=\"\",\"\",'1. Order'!AF831)","v":""}]
[{"$f":"IF('1. Order'!B832=\"\",\"\",'1. Order'!B832)","v":""},{"$f":"IF('1. Order'!I832=\"\",\"\",'1. Order'!I832)","v":""},{"$f":"IF('1. Order'!J832=\"\",\"\",'1. Order'!J832)","v":""},{"$f":"IF('1. Order'!K832=\"\",\"\",'1. Order'!K832)","v":""},{"$f":"IF('1. Order'!M832=\"\",\"\",'1. Order'!M832)","v":""},null,null,{"$f":"IF('1. Order'!AS832=\"\",\"\",'1. Order'!AS832)","v":""},{"$f":"IF('1. Order'!AF832=\"\",\"\",'1. Order'!AF832)","v":""}]
[{"$f":"IF('1. Order'!B833=\"\",\"\",'1. Order'!B833)","v":""},{"$f":"IF('1. Order'!I833=\"\",\"\",'1. Order'!I833)","v":""},{"$f":"IF('1. Order'!J833=\"\",\"\",'1. Order'!J833)","v":""},{"$f":"IF('1. Order'!K833=\"\",\"\",'1. Order'!K833)","v":""},{"$f":"IF('1. Order'!M833=\"\",\"\",'1. Order'!M833)","v":""},null,null,{"$f":"IF('1. Order'!AS833=\"\",\"\",'1. Order'!AS833)","v":""},{"$f":"IF('1. Order'!AF833=\"\",\"\",'1. Order'!AF833)","v":""}]
[{"$f":"IF('1. Order'!B834=\"\",\"\",'1. Order'!B834)","v":""},{"$f":"IF('1. Order'!I834=\"\",\"\",'1. Order'!I834)","v":""},{"$f":"IF('1. Order'!J834=\"\",\"\",'1. Order'!J834)","v":""},{"$f":"IF('1. Order'!K834=\"\",\"\",'1. Order'!K834)","v":""},{"$f":"IF('1. Order'!M834=\"\",\"\",'1. Order'!M834)","v":""},null,null,{"$f":"IF('1. Order'!AS834=\"\",\"\",'1. Order'!AS834)","v":""},{"$f":"IF('1. Order'!AF834=\"\",\"\",'1. Order'!AF834)","v":""}]
[{"$f":"IF('1. Order'!B835=\"\",\"\",'1. Order'!B835)","v":""},{"$f":"IF('1. Order'!I835=\"\",\"\",'1. Order'!I835)","v":""},{"$f":"IF('1. Order'!J835=\"\",\"\",'1. Order'!J835)","v":""},{"$f":"IF('1. Order'!K835=\"\",\"\",'1. Order'!K835)","v":""},{"$f":"IF('1. Order'!M835=\"\",\"\",'1. Order'!M835)","v":""},null,null,{"$f":"IF('1. Order'!AS835=\"\",\"\",'1. Order'!AS835)","v":""},{"$f":"IF('1. Order'!AF835=\"\",\"\",'1. Order'!AF835)","v":""}]
[{"$f":"IF('1. Order'!B836=\"\",\"\",'1. Order'!B836)","v":""},{"$f":"IF('1. Order'!I836=\"\",\"\",'1. Order'!I836)","v":""},{"$f":"IF('1. Order'!J836=\"\",\"\",'1. Order'!J836)","v":""},{"$f":"IF('1. Order'!K836=\"\",\"\",'1. Order'!K836)","v":""},{"$f":"IF('1. Order'!M836=\"\",\"\",'1. Order'!M836)","v":""},null,null,{"$f":"IF('1. Order'!AS836=\"\",\"\",'1. Order'!AS836)","v":""},{"$f":"IF('1. Order'!AF836=\"\",\"\",'1. Order'!AF836)","v":""}]
[{"$f":"IF('1. Order'!B837=\"\",\"\",'1. Order'!B837)","v":""},{"$f":"IF('1. Order'!I837=\"\",\"\",'1. Order'!I837)","v":""},{"$f":"IF('1. Order'!J837=\"\",\"\",'1. Order'!J837)","v":""},{"$f":"IF('1. Order'!K837=\"\",\"\",'1. Order'!K837)","v":""},{"$f":"IF('1. Order'!M837=\"\",\"\",'1. Order'!M837)","v":""},null,null,{"$f":"IF('1. Order'!AS837=\"\",\"\",'1. Order'!AS837)","v":""},{"$f":"IF('1. Order'!AF837=\"\",\"\",'1. Order'!AF837)","v":""}]
[{"$f":"IF('1. Order'!B838=\"\",\"\",'1. Order'!B838)","v":""},{"$f":"IF('1. Order'!I838=\"\",\"\",'1. Order'!I838)","v":""},{"$f":"IF('1. Order'!J838=\"\",\"\",'1. Order'!J838)","v":""},{"$f":"IF('1. Order'!K838=\"\",\"\",'1. Order'!K838)","v":""},{"$f":"IF('1. Order'!M838=\"\",\"\",'1. Order'!M838)","v":""},null,null,{"$f":"IF('1. Order'!AS838=\"\",\"\",'1. Order'!AS838)","v":""},{"$f":"IF('1. Order'!AF838=\"\",\"\",'1. Order'!AF838)","v":""}]
[{"$f":"IF('1. Order'!B839=\"\",\"\",'1. Order'!B839)","v":""},{"$f":"IF('1. Order'!I839=\"\",\"\",'1. Order'!I839)","v":""},{"$f":"IF('1. Order'!J839=\"\",\"\",'1. Order'!J839)","v":""},{"$f":"IF('1. Order'!K839=\"\",\"\",'1. Order'!K839)","v":""},{"$f":"IF('1. Order'!M839=\"\",\"\",'1. Order'!M839)","v":""},null,null,{"$f":"IF('1. Order'!AS839=\"\",\"\",'1. Order'!AS839)","v":""},{"$f":"IF('1. Order'!AF839=\"\",\"\",'1. Order'!AF839)","v":""}]
[{"$f":"IF('1. Order'!B840=\"\",\"\",'1. Order'!B840)","v":""},{"$f":"IF('1. Order'!I840=\"\",\"\",'1. Order'!I840)","v":""},{"$f":"IF('1. Order'!J840=\"\",\"\",'1. Order'!J840)","v":""},{"$f":"IF('1. Order'!K840=\"\",\"\",'1. Order'!K840)","v":""},{"$f":"IF('1. Order'!M840=\"\",\"\",'1. Order'!M840)","v":""},null,null,{"$f":"IF('1. Order'!AS840=\"\",\"\",'1. Order'!AS840)","v":""},{"$f":"IF('1. Order'!AF840=\"\",\"\",'1. Order'!AF840)","v":""}]
[{"$f":"IF('1. Order'!B841=\"\",\"\",'1. Order'!B841)","v":""},{"$f":"IF('1. Order'!I841=\"\",\"\",'1. Order'!I841)","v":""},{"$f":"IF('1. Order'!J841=\"\",\"\",'1. Order'!J841)","v":""},{"$f":"IF('1. Order'!K841=\"\",\"\",'1. Order'!K841)","v":""},{"$f":"IF('1. Order'!M841=\"\",\"\",'1. Order'!M841)","v":""},null,null,{"$f":"IF('1. Order'!AS841=\"\",\"\",'1. Order'!AS841)","v":""},{"$f":"IF('1. Order'!AF841=\"\",\"\",'1. Order'!AF841)","v":""}]
[{"$f":"IF('1. Order'!B842=\"\",\"\",'1. Order'!B842)","v":""},{"$f":"IF('1. Order'!I842=\"\",\"\",'1. Order'!I842)","v":""},{"$f":"IF('1. Order'!J842=\"\",\"\",'1. Order'!J842)","v":""},{"$f":"IF('1. Order'!K842=\"\",\"\",'1. Order'!K842)","v":""},{"$f":"IF('1. Order'!M842=\"\",\"\",'1. Order'!M842)","v":""},null,null,{"$f":"IF('1. Order'!AS842=\"\",\"\",'1. Order'!AS842)","v":""},{"$f":"IF('1. Order'!AF842=\"\",\"\",'1. Order'!AF842)","v":""}]
[{"$f":"IF('1. Order'!B843=\"\",\"\",'1. Order'!B843)","v":""},{"$f":"IF('1. Order'!I843=\"\",\"\",'1. Order'!I843)","v":""},{"$f":"IF('1. Order'!J843=\"\",\"\",'1. Order'!J843)","v":""},{"$f":"IF('1. Order'!K843=\"\",\"\",'1. Order'!K843)","v":""},{"$f":"IF('1. Order'!M843=\"\",\"\",'1. Order'!M843)","v":""},null,null,{"$f":"IF('1. Order'!AS843=\"\",\"\",'1. Order'!AS843)","v":""},{"$f":"IF('1. Order'!AF843=\"\",\"\",'1. Order'!AF843)","v":""}]
[{"$f":"IF('1. Order'!B844=\"\",\"\",'1. Order'!B844)","v":""},{"$f":"IF('1. Order'!I844=\"\",\"\",'1. Order'!I844)","v":""},{"$f":"IF('1. Order'!J844=\"\",\"\",'1. Order'!J844)","v":""},{"$f":"IF('1. Order'!K844=\"\",\"\",'1. Order'!K844)","v":""},{"$f":"IF('1. Order'!M844=\"\",\"\",'1. Order'!M844)","v":""},null,null,{"$f":"IF('1. Order'!AS844=\"\",\"\",'1. Order'!AS844)","v":""},{"$f":"IF('1. Order'!AF844=\"\",\"\",'1. Order'!AF844)","v":""}]
[{"$f":"IF('1. Order'!B845=\"\",\"\",'1. Order'!B845)","v":""},{"$f":"IF('1. Order'!I845=\"\",\"\",'1. Order'!I845)","v":""},{"$f":"IF('1. Order'!J845=\"\",\"\",'1. Order'!J845)","v":""},{"$f":"IF('1. Order'!K845=\"\",\"\",'1. Order'!K845)","v":""},{"$f":"IF('1. Order'!M845=\"\",\"\",'1. Order'!M845)","v":""},null,null,{"$f":"IF('1. Order'!AS845=\"\",\"\",'1. Order'!AS845)","v":""},{"$f":"IF('1. Order'!AF845=\"\",\"\",'1. Order'!AF845)","v":""}]
[{"$f":"IF('1. Order'!B846=\"\",\"\",'1. Order'!B846)","v":""},{"$f":"IF('1. Order'!I846=\"\",\"\",'1. Order'!I846)","v":""},{"$f":"IF('1. Order'!J846=\"\",\"\",'1. Order'!J846)","v":""},{"$f":"IF('1. Order'!K846=\"\",\"\",'1. Order'!K846)","v":""},{"$f":"IF('1. Order'!M846=\"\",\"\",'1. Order'!M846)","v":""},null,null,{"$f":"IF('1. Order'!AS846=\"\",\"\",'1. Order'!AS846)","v":""},{"$f":"IF('1. Order'!AF846=\"\",\"\",'1. Order'!AF846)","v":""}]
[{"$f":"IF('1. Order'!B847=\"\",\"\",'1. Order'!B847)","v":""},{"$f":"IF('1. Order'!I847=\"\",\"\",'1. Order'!I847)","v":""},{"$f":"IF('1. Order'!J847=\"\",\"\",'1. Order'!J847)","v":""},{"$f":"IF('1. Order'!K847=\"\",\"\",'1. Order'!K847)","v":""},{"$f":"IF('1. Order'!M847=\"\",\"\",'1. Order'!M847)","v":""},null,null,{"$f":"IF('1. Order'!AS847=\"\",\"\",'1. Order'!AS847)","v":""},{"$f":"IF('1. Order'!AF847=\"\",\"\",'1. Order'!AF847)","v":""}]
[{"$f":"IF('1. Order'!B848=\"\",\"\",'1. Order'!B848)","v":""},{"$f":"IF('1. Order'!I848=\"\",\"\",'1. Order'!I848)","v":""},{"$f":"IF('1. Order'!J848=\"\",\"\",'1. Order'!J848)","v":""},{"$f":"IF('1. Order'!K848=\"\",\"\",'1. Order'!K848)","v":""},{"$f":"IF('1. Order'!M848=\"\",\"\",'1. Order'!M848)","v":""},null,null,{"$f":"IF('1. Order'!AS848=\"\",\"\",'1. Order'!AS848)","v":""},{"$f":"IF('1. Order'!AF848=\"\",\"\",'1. Order'!AF848)","v":""}]
[{"$f":"IF('1. Order'!B849=\"\",\"\",'1. Order'!B849)","v":""},{"$f":"IF('1. Order'!I849=\"\",\"\",'1. Order'!I849)","v":""},{"$f":"IF('1. Order'!J849=\"\",\"\",'1. Order'!J849)","v":""},{"$f":"IF('1. Order'!K849=\"\",\"\",'1. Order'!K849)","v":""},{"$f":"IF('1. Order'!M849=\"\",\"\",'1. Order'!M849)","v":""},null,null,{"$f":"IF('1. Order'!AS849=\"\",\"\",'1. Order'!AS849)","v":""},{"$f":"IF('1. Order'!AF849=\"\",\"\",'1. Order'!AF849)","v":""}]
[{"$f":"IF('1. Order'!B850=\"\",\"\",'1. Order'!B850)","v":""},{"$f":"IF('1. Order'!I850=\"\",\"\",'1. Order'!I850)","v":""},{"$f":"IF('1. Order'!J850=\"\",\"\",'1. Order'!J850)","v":""},{"$f":"IF('1. Order'!K850=\"\",\"\",'1. Order'!K850)","v":""},{"$f":"IF('1. Order'!M850=\"\",\"\",'1. Order'!M850)","v":""},null,null,{"$f":"IF('1. Order'!AS850=\"\",\"\",'1. Order'!AS850)","v":""},{"$f":"IF('1. Order'!AF850=\"\",\"\",'1. Order'!AF850)","v":""}]
[{"$f":"IF('1. Order'!B851=\"\",\"\",'1. Order'!B851)","v":""},{"$f":"IF('1. Order'!I851=\"\",\"\",'1. Order'!I851)","v":""},{"$f":"IF('1. Order'!J851=\"\",\"\",'1. Order'!J851)","v":""},{"$f":"IF('1. Order'!K851=\"\",\"\",'1. Order'!K851)","v":""},{"$f":"IF('1. Order'!M851=\"\",\"\",'1. Order'!M851)","v":""},null,null,{"$f":"IF('1. Order'!AS851=\"\",\"\",'1. Order'!AS851)","v":""},{"$f":"IF('1. Order'!AF851=\"\",\"\",'1. Order'!AF851)","v":""}]
[{"$f":"IF('1. Order'!B852=\"\",\"\",'1. Order'!B852)","v":""},{"$f":"IF('1. Order'!I852=\"\",\"\",'1. Order'!I852)","v":""},{"$f":"IF('1. Order'!J852=\"\",\"\",'1. Order'!J852)","v":""},{"$f":"IF('1. Order'!K852=\"\",\"\",'1. Order'!K852)","v":""},{"$f":"IF('1. Order'!M852=\"\",\"\",'1. Order'!M852)","v":""},null,null,{"$f":"IF('1. Order'!AS852=\"\",\"\",'1. Order'!AS852)","v":""},{"$f":"IF('1. Order'!AF852=\"\",\"\",'1. Order'!AF852)","v":""}]
[{"$f":"IF('1. Order'!B853=\"\",\"\",'1. Order'!B853)","v":""},{"$f":"IF('1. Order'!I853=\"\",\"\",'1. Order'!I853)","v":""},{"$f":"IF('1. Order'!J853=\"\",\"\",'1. Order'!J853)","v":""},{"$f":"IF('1. Order'!K853=\"\",\"\",'1. Order'!K853)","v":""},{"$f":"IF('1. Order'!M853=\"\",\"\",'1. Order'!M853)","v":""},null,null,{"$f":"IF('1. Order'!AS853=\"\",\"\",'1. Order'!AS853)","v":""},{"$f":"IF('1. Order'!AF853=\"\",\"\",'1. Order'!AF853)","v":""}]
[{"$f":"IF('1. Order'!B854=\"\",\"\",'1. Order'!B854)","v":""},{"$f":"IF('1. Order'!I854=\"\",\"\",'1. Order'!I854)","v":""},{"$f":"IF('1. Order'!J854=\"\",\"\",'1. Order'!J854)","v":""},{"$f":"IF('1. Order'!K854=\"\",\"\",'1. Order'!K854)","v":""},{"$f":"IF('1. Order'!M854=\"\",\"\",'1. Order'!M854)","v":""},null,null,{"$f":"IF('1. Order'!AS854=\"\",\"\",'1. Order'!AS854)","v":""},{"$f":"IF('1. Order'!AF854=\"\",\"\",'1. Order'!AF854)","v":""}]
[{"$f":"IF('1. Order'!B855=\"\",\"\",'1. Order'!B855)","v":""},{"$f":"IF('1. Order'!I855=\"\",\"\",'1. Order'!I855)","v":""},{"$f":"IF('1. Order'!J855=\"\",\"\",'1. Order'!J855)","v":""},{"$f":"IF('1. Order'!K855=\"\",\"\",'1. Order'!K855)","v":""},{"$f":"IF('1. Order'!M855=\"\",\"\",'1. Order'!M855)","v":""},null,null,{"$f":"IF('1. Order'!AS855=\"\",\"\",'1. Order'!AS855)","v":""},{"$f":"IF('1. Order'!AF855=\"\",\"\",'1. Order'!AF855)","v":""}]
[{"$f":"IF('1. Order'!B856=\"\",\"\",'1. Order'!B856)","v":""},{"$f":"IF('1. Order'!I856=\"\",\"\",'1. Order'!I856)","v":""},{"$f":"IF('1. Order'!J856=\"\",\"\",'1. Order'!J856)","v":""},{"$f":"IF('1. Order'!K856=\"\",\"\",'1. Order'!K856)","v":""},{"$f":"IF('1. Order'!M856=\"\",\"\",'1. Order'!M856)","v":""},null,null,{"$f":"IF('1. Order'!AS856=\"\",\"\",'1. Order'!AS856)","v":""},{"$f":"IF('1. Order'!AF856=\"\",\"\",'1. Order'!AF856)","v":""}]
[{"$f":"IF('1. Order'!B857=\"\",\"\",'1. Order'!B857)","v":""},{"$f":"IF('1. Order'!I857=\"\",\"\",'1. Order'!I857)","v":""},{"$f":"IF('1. Order'!J857=\"\",\"\",'1. Order'!J857)","v":""},{"$f":"IF('1. Order'!K857=\"\",\"\",'1. Order'!K857)","v":""},{"$f":"IF('1. Order'!M857=\"\",\"\",'1. Order'!M857)","v":""},null,null,{"$f":"IF('1. Order'!AS857=\"\",\"\",'1. Order'!AS857)","v":""},{"$f":"IF('1. Order'!AF857=\"\",\"\",'1. Order'!AF857)","v":""}]
[{"$f":"IF('1. Order'!B858=\"\",\"\",'1. Order'!B858)","v":""},{"$f":"IF('1. Order'!I858=\"\",\"\",'1. Order'!I858)","v":""},{"$f":"IF('1. Order'!J858=\"\",\"\",'1. Order'!J858)","v":""},{"$f":"IF('1. Order'!K858=\"\",\"\",'1. Order'!K858)","v":""},{"$f":"IF('1. Order'!M858=\"\",\"\",'1. Order'!M858)","v":""},null,null,{"$f":"IF('1. Order'!AS858=\"\",\"\",'1. Order'!AS858)","v":""},{"$f":"IF('1. Order'!AF858=\"\",\"\",'1. Order'!AF858)","v":""}]
[{"$f":"IF('1. Order'!B859=\"\",\"\",'1. Order'!B859)","v":""},{"$f":"IF('1. Order'!I859=\"\",\"\",'1. Order'!I859)","v":""},{"$f":"IF('1. Order'!J859=\"\",\"\",'1. Order'!J859)","v":""},{"$f":"IF('1. Order'!K859=\"\",\"\",'1. Order'!K859)","v":""},{"$f":"IF('1. Order'!M859=\"\",\"\",'1. Order'!M859)","v":""},null,null,{"$f":"IF('1. Order'!AS859=\"\",\"\",'1. Order'!AS859)","v":""},{"$f":"IF('1. Order'!AF859=\"\",\"\",'1. Order'!AF859)","v":""}]
[{"$f":"IF('1. Order'!B860=\"\",\"\",'1. Order'!B860)","v":""},{"$f":"IF('1. Order'!I860=\"\",\"\",'1. Order'!I860)","v":""},{"$f":"IF('1. Order'!J860=\"\",\"\",'1. Order'!J860)","v":""},{"$f":"IF('1. Order'!K860=\"\",\"\",'1. Order'!K860)","v":""},{"$f":"IF('1. Order'!M860=\"\",\"\",'1. Order'!M860)","v":""},null,null,{"$f":"IF('1. Order'!AS860=\"\",\"\",'1. Order'!AS860)","v":""},{"$f":"IF('1. Order'!AF860=\"\",\"\",'1. Order'!AF860)","v":""}]
[{"$f":"IF('1. Order'!B861=\"\",\"\",'1. Order'!B861)","v":""},{"$f":"IF('1. Order'!I861=\"\",\"\",'1. Order'!I861)","v":""},{"$f":"IF('1. Order'!J861=\"\",\"\",'1. Order'!J861)","v":""},{"$f":"IF('1. Order'!K861=\"\",\"\",'1. Order'!K861)","v":""},{"$f":"IF('1. Order'!M861=\"\",\"\",'1. Order'!M861)","v":""},null,null,{"$f":"IF('1. Order'!AS861=\"\",\"\",'1. Order'!AS861)","v":""},{"$f":"IF('1. Order'!AF861=\"\",\"\",'1. Order'!AF861)","v":""}]
[{"$f":"IF('1. Order'!B862=\"\",\"\",'1. Order'!B862)","v":""},{"$f":"IF('1. Order'!I862=\"\",\"\",'1. Order'!I862)","v":""},{"$f":"IF('1. Order'!J862=\"\",\"\",'1. Order'!J862)","v":""},{"$f":"IF('1. Order'!K862=\"\",\"\",'1. Order'!K862)","v":""},{"$f":"IF('1. Order'!M862=\"\",\"\",'1. Order'!M862)","v":""},null,null,{"$f":"IF('1. Order'!AS862=\"\",\"\",'1. Order'!AS862)","v":""},{"$f":"IF('1. Order'!AF862=\"\",\"\",'1. Order'!AF862)","v":""}]
[{"$f":"IF('1. Order'!B863=\"\",\"\",'1. Order'!B863)","v":""},{"$f":"IF('1. Order'!I863=\"\",\"\",'1. Order'!I863)","v":""},{"$f":"IF('1. Order'!J863=\"\",\"\",'1. Order'!J863)","v":""},{"$f":"IF('1. Order'!K863=\"\",\"\",'1. Order'!K863)","v":""},{"$f":"IF('1. Order'!M863=\"\",\"\",'1. Order'!M863)","v":""},null,null,{"$f":"IF('1. Order'!AS863=\"\",\"\",'1. Order'!AS863)","v":""},{"$f":"IF('1. Order'!AF863=\"\",\"\",'1. Order'!AF863)","v":""}]
[{"$f":"IF('1. Order'!B864=\"\",\"\",'1. Order'!B864)","v":""},{"$f":"IF('1. Order'!I864=\"\",\"\",'1. Order'!I864)","v":""},{"$f":"IF('1. Order'!J864=\"\",\"\",'1. Order'!J864)","v":""},{"$f":"IF('1. Order'!K864=\"\",\"\",'1. Order'!K864)","v":""},{"$f":"IF('1. Order'!M864=\"\",\"\",'1. Order'!M864)","v":""},null,null,{"$f":"IF('1. Order'!AS864=\"\",\"\",'1. Order'!AS864)","v":""},{"$f":"IF('1. Order'!AF864=\"\",\"\",'1. Order'!AF864)","v":""}]
[{"$f":"IF('1. Order'!B865=\"\",\"\",'1. Order'!B865)","v":""},{"$f":"IF('1. Order'!I865=\"\",\"\",'1. Order'!I865)","v":""},{"$f":"IF('1. Order'!J865=\"\",\"\",'1. Order'!J865)","v":""},{"$f":"IF('1. Order'!K865=\"\",\"\",'1. Order'!K865)","v":""},{"$f":"IF('1. Order'!M865=\"\",\"\",'1. Order'!M865)","v":""},null,null,{"$f":"IF('1. Order'!AS865=\"\",\"\",'1. Order'!AS865)","v":""},{"$f":"IF('1. Order'!AF865=\"\",\"\",'1. Order'!AF865)","v":""}]
[{"$f":"IF('1. Order'!B866=\"\",\"\",'1. Order'!B866)","v":""},{"$f":"IF('1. Order'!I866=\"\",\"\",'1. Order'!I866)","v":""},{"$f":"IF('1. Order'!J866=\"\",\"\",'1. Order'!J866)","v":""},{"$f":"IF('1. Order'!K866=\"\",\"\",'1. Order'!K866)","v":""},{"$f":"IF('1. Order'!M866=\"\",\"\",'1. Order'!M866)","v":""},null,null,{"$f":"IF('1. Order'!AS866=\"\",\"\",'1. Order'!AS866)","v":""},{"$f":"IF('1. Order'!AF866=\"\",\"\",'1. Order'!AF866)","v":""}]
[{"$f":"IF('1. Order'!B867=\"\",\"\",'1. Order'!B867)","v":""},{"$f":"IF('1. Order'!I867=\"\",\"\",'1. Order'!I867)","v":""},{"$f":"IF('1. Order'!J867=\"\",\"\",'1. Order'!J867)","v":""},{"$f":"IF('1. Order'!K867=\"\",\"\",'1. Order'!K867)","v":""},{"$f":"IF('1. Order'!M867=\"\",\"\",'1. Order'!M867)","v":""},null,null,{"$f":"IF('1. Order'!AS867=\"\",\"\",'1. Order'!AS867)","v":""},{"$f":"IF('1. Order'!AF867=\"\",\"\",'1. Order'!AF867)","v":""}]
[{"$f":"IF('1. Order'!B868=\"\",\"\",'1. Order'!B868)","v":""},{"$f":"IF('1. Order'!I868=\"\",\"\",'1. Order'!I868)","v":""},{"$f":"IF('1. Order'!J868=\"\",\"\",'1. Order'!J868)","v":""},{"$f":"IF('1. Order'!K868=\"\",\"\",'1. Order'!K868)","v":""},{"$f":"IF('1. Order'!M868=\"\",\"\",'1. Order'!M868)","v":""},null,null,{"$f":"IF('1. Order'!AS868=\"\",\"\",'1. Order'!AS868)","v":""},{"$f":"IF('1. Order'!AF868=\"\",\"\",'1. Order'!AF868)","v":""}]
[{"$f":"IF('1. Order'!B869=\"\",\"\",'1. Order'!B869)","v":""},{"$f":"IF('1. Order'!I869=\"\",\"\",'1. Order'!I869)","v":""},{"$f":"IF('1. Order'!J869=\"\",\"\",'1. Order'!J869)","v":""},{"$f":"IF('1. Order'!K869=\"\",\"\",'1. Order'!K869)","v":""},{"$f":"IF('1. Order'!M869=\"\",\"\",'1. Order'!M869)","v":""},null,null,{"$f":"IF('1. Order'!AS869=\"\",\"\",'1. Order'!AS869)","v":""},{"$f":"IF('1. Order'!AF869=\"\",\"\",'1. Order'!AF869)","v":""}]
[{"$f":"IF('1. Order'!B870=\"\",\"\",'1. Order'!B870)","v":""},{"$f":"IF('1. Order'!I870=\"\",\"\",'1. Order'!I870)","v":""},{"$f":"IF('1. Order'!J870=\"\",\"\",'1. Order'!J870)","v":""},{"$f":"IF('1. Order'!K870=\"\",\"\",'1. Order'!K870)","v":""},{"$f":"IF('1. Order'!M870=\"\",\"\",'1. Order'!M870)","v":""},null,null,{"$f":"IF('1. Order'!AS870=\"\",\"\",'1. Order'!AS870)","v":""},{"$f":"IF('1. Order'!AF870=\"\",\"\",'1. Order'!AF870)","v":""}]
[{"$f":"IF('1. Order'!B871=\"\",\"\",'1. Order'!B871)","v":""},{"$f":"IF('1. Order'!I871=\"\",\"\",'1. Order'!I871)","v":""},{"$f":"IF('1. Order'!J871=\"\",\"\",'1. Order'!J871)","v":""},{"$f":"IF('1. Order'!K871=\"\",\"\",'1. Order'!K871)","v":""},{"$f":"IF('1. Order'!M871=\"\",\"\",'1. Order'!M871)","v":""},null,null,{"$f":"IF('1. Order'!AS871=\"\",\"\",'1. Order'!AS871)","v":""},{"$f":"IF('1. Order'!AF871=\"\",\"\",'1. Order'!AF871)","v":""}]
[{"$f":"IF('1. Order'!B872=\"\",\"\",'1. Order'!B872)","v":""},{"$f":"IF('1. Order'!I872=\"\",\"\",'1. Order'!I872)","v":""},{"$f":"IF('1. Order'!J872=\"\",\"\",'1. Order'!J872)","v":""},{"$f":"IF('1. Order'!K872=\"\",\"\",'1. Order'!K872)","v":""},{"$f":"IF('1. Order'!M872=\"\",\"\",'1. Order'!M872)","v":""},null,null,{"$f":"IF('1. Order'!AS872=\"\",\"\",'1. Order'!AS872)","v":""},{"$f":"IF('1. Order'!AF872=\"\",\"\",'1. Order'!AF872)","v":""}]
[{"$f":"IF('1. Order'!B873=\"\",\"\",'1. Order'!B873)","v":""},{"$f":"IF('1. Order'!I873=\"\",\"\",'1. Order'!I873)","v":""},{"$f":"IF('1. Order'!J873=\"\",\"\",'1. Order'!J873)","v":""},{"$f":"IF('1. Order'!K873=\"\",\"\",'1. Order'!K873)","v":""},{"$f":"IF('1. Order'!M873=\"\",\"\",'1. Order'!M873)","v":""},null,null,{"$f":"IF('1. Order'!AS873=\"\",\"\",'1. Order'!AS873)","v":""},{"$f":"IF('1. Order'!AF873=\"\",\"\",'1. Order'!AF873)","v":""}]
[{"$f":"IF('1. Order'!B874=\"\",\"\",'1. Order'!B874)","v":""},{"$f":"IF('1. Order'!I874=\"\",\"\",'1. Order'!I874)","v":""},{"$f":"IF('1. Order'!J874=\"\",\"\",'1. Order'!J874)","v":""},{"$f":"IF('1. Order'!K874=\"\",\"\",'1. Order'!K874)","v":""},{"$f":"IF('1. Order'!M874=\"\",\"\",'1. Order'!M874)","v":""},null,null,{"$f":"IF('1. Order'!AS874=\"\",\"\",'1. Order'!AS874)","v":""},{"$f":"IF('1. Order'!AF874=\"\",\"\",'1. Order'!AF874)","v":""}]
[{"$f":"IF('1. Order'!B875=\"\",\"\",'1. Order'!B875)","v":""},{"$f":"IF('1. Order'!I875=\"\",\"\",'1. Order'!I875)","v":""},{"$f":"IF('1. Order'!J875=\"\",\"\",'1. Order'!J875)","v":""},{"$f":"IF('1. Order'!K875=\"\",\"\",'1. Order'!K875)","v":""},{"$f":"IF('1. Order'!M875=\"\",\"\",'1. Order'!M875)","v":""},null,null,{"$f":"IF('1. Order'!AS875=\"\",\"\",'1. Order'!AS875)","v":""},{"$f":"IF('1. Order'!AF875=\"\",\"\",'1. Order'!AF875)","v":""}]
[{"$f":"IF('1. Order'!B876=\"\",\"\",'1. Order'!B876)","v":""},{"$f":"IF('1. Order'!I876=\"\",\"\",'1. Order'!I876)","v":""},{"$f":"IF('1. Order'!J876=\"\",\"\",'1. Order'!J876)","v":""},{"$f":"IF('1. Order'!K876=\"\",\"\",'1. Order'!K876)","v":""},{"$f":"IF('1. Order'!M876=\"\",\"\",'1. Order'!M876)","v":""},null,null,{"$f":"IF('1. Order'!AS876=\"\",\"\",'1. Order'!AS876)","v":""},{"$f":"IF('1. Order'!AF876=\"\",\"\",'1. Order'!AF876)","v":""}]
[{"$f":"IF('1. Order'!B877=\"\",\"\",'1. Order'!B877)","v":""},{"$f":"IF('1. Order'!I877=\"\",\"\",'1. Order'!I877)","v":""},{"$f":"IF('1. Order'!J877=\"\",\"\",'1. Order'!J877)","v":""},{"$f":"IF('1. Order'!K877=\"\",\"\",'1. Order'!K877)","v":""},{"$f":"IF('1. Order'!M877=\"\",\"\",'1. Order'!M877)","v":""},null,null,{"$f":"IF('1. Order'!AS877=\"\",\"\",'1. Order'!AS877)","v":""},{"$f":"IF('1. Order'!AF877=\"\",\"\",'1. Order'!AF877)","v":""}]
[{"$f":"IF('1. Order'!B878=\"\",\"\",'1. Order'!B878)","v":""},{"$f":"IF('1. Order'!I878=\"\",\"\",'1. Order'!I878)","v":""},{"$f":"IF('1. Order'!J878=\"\",\"\",'1. Order'!J878)","v":""},{"$f":"IF('1. Order'!K878=\"\",\"\",'1. Order'!K878)","v":""},{"$f":"IF('1. Order'!M878=\"\",\"\",'1. Order'!M878)","v":""},null,null,{"$f":"IF('1. Order'!AS878=\"\",\"\",'1. Order'!AS878)","v":""},{"$f":"IF('1. Order'!AF878=\"\",\"\",'1. Order'!AF878)","v":""}]
[{"$f":"IF('1. Order'!B879=\"\",\"\",'1. Order'!B879)","v":""},{"$f":"IF('1. Order'!I879=\"\",\"\",'1. Order'!I879)","v":""},{"$f":"IF('1. Order'!J879=\"\",\"\",'1. Order'!J879)","v":""},{"$f":"IF('1. Order'!K879=\"\",\"\",'1. Order'!K879)","v":""},{"$f":"IF('1. Order'!M879=\"\",\"\",'1. Order'!M879)","v":""},null,null,{"$f":"IF('1. Order'!AS879=\"\",\"\",'1. Order'!AS879)","v":""},{"$f":"IF('1. Order'!AF879=\"\",\"\",'1. Order'!AF879)","v":""}]
[{"$f":"IF('1. Order'!B880=\"\",\"\",'1. Order'!B880)","v":""},{"$f":"IF('1. Order'!I880=\"\",\"\",'1. Order'!I880)","v":""},{"$f":"IF('1. Order'!J880=\"\",\"\",'1. Order'!J880)","v":""},{"$f":"IF('1. Order'!K880=\"\",\"\",'1. Order'!K880)","v":""},{"$f":"IF('1. Order'!M880=\"\",\"\",'1. Order'!M880)","v":""},null,null,{"$f":"IF('1. Order'!AS880=\"\",\"\",'1. Order'!AS880)","v":""},{"$f":"IF('1. Order'!AF880=\"\",\"\",'1. Order'!AF880)","v":""}]
[{"$f":"IF('1. Order'!B881=\"\",\"\",'1. Order'!B881)","v":""},{"$f":"IF('1. Order'!I881=\"\",\"\",'1. Order'!I881)","v":""},{"$f":"IF('1. Order'!J881=\"\",\"\",'1. Order'!J881)","v":""},{"$f":"IF('1. Order'!K881=\"\",\"\",'1. Order'!K881)","v":""},{"$f":"IF('1. Order'!M881=\"\",\"\",'1. Order'!M881)","v":""},null,null,{"$f":"IF('1. Order'!AS881=\"\",\"\",'1. Order'!AS881)","v":""},{"$f":"IF('1. Order'!AF881=\"\",\"\",'1. Order'!AF881)","v":""}]
[{"$f":"IF('1. Order'!B882=\"\",\"\",'1. Order'!B882)","v":""},{"$f":"IF('1. Order'!I882=\"\",\"\",'1. Order'!I882)","v":""},{"$f":"IF('1. Order'!J882=\"\",\"\",'1. Order'!J882)","v":""},{"$f":"IF('1. Order'!K882=\"\",\"\",'1. Order'!K882)","v":""},{"$f":"IF('1. Order'!M882=\"\",\"\",'1. Order'!M882)","v":""},null,null,{"$f":"IF('1. Order'!AS882=\"\",\"\",'1. Order'!AS882)","v":""},{"$f":"IF('1. Order'!AF882=\"\",\"\",'1. Order'!AF882)","v":""}]
[{"$f":"IF('1. Order'!B883=\"\",\"\",'1. Order'!B883)","v":""},{"$f":"IF('1. Order'!I883=\"\",\"\",'1. Order'!I883)","v":""},{"$f":"IF('1. Order'!J883=\"\",\"\",'1. Order'!J883)","v":""},{"$f":"IF('1. Order'!K883=\"\",\"\",'1. Order'!K883)","v":""},{"$f":"IF('1. Order'!M883=\"\",\"\",'1. Order'!M883)","v":""},null,null,{"$f":"IF('1. Order'!AS883=\"\",\"\",'1. Order'!AS883)","v":""},{"$f":"IF('1. Order'!AF883=\"\",\"\",'1. Order'!AF883)","v":""}]
[{"$f":"IF('1. Order'!B884=\"\",\"\",'1. Order'!B884)","v":""},{"$f":"IF('1. Order'!I884=\"\",\"\",'1. Order'!I884)","v":""},{"$f":"IF('1. Order'!J884=\"\",\"\",'1. Order'!J884)","v":""},{"$f":"IF('1. Order'!K884=\"\",\"\",'1. Order'!K884)","v":""},{"$f":"IF('1. Order'!M884=\"\",\"\",'1. Order'!M884)","v":""},null,null,{"$f":"IF('1. Order'!AS884=\"\",\"\",'1. Order'!AS884)","v":""},{"$f":"IF('1. Order'!AF884=\"\",\"\",'1. Order'!AF884)","v":""}]
[{"$f":"IF('1. Order'!B885=\"\",\"\",'1. Order'!B885)","v":""},{"$f":"IF('1. Order'!I885=\"\",\"\",'1. Order'!I885)","v":""},{"$f":"IF('1. Order'!J885=\"\",\"\",'1. Order'!J885)","v":""},{"$f":"IF('1. Order'!K885=\"\",\"\",'1. Order'!K885)","v":""},{"$f":"IF('1. Order'!M885=\"\",\"\",'1. Order'!M885)","v":""},null,null,{"$f":"IF('1. Order'!AS885=\"\",\"\",'1. Order'!AS885)","v":""},{"$f":"IF('1. Order'!AF885=\"\",\"\",'1. Order'!AF885)","v":""}]
[{"$f":"IF('1. Order'!B886=\"\",\"\",'1. Order'!B886)","v":""},{"$f":"IF('1. Order'!I886=\"\",\"\",'1. Order'!I886)","v":""},{"$f":"IF('1. Order'!J886=\"\",\"\",'1. Order'!J886)","v":""},{"$f":"IF('1. Order'!K886=\"\",\"\",'1. Order'!K886)","v":""},{"$f":"IF('1. Order'!M886=\"\",\"\",'1. Order'!M886)","v":""},null,null,{"$f":"IF('1. Order'!AS886=\"\",\"\",'1. Order'!AS886)","v":""},{"$f":"IF('1. Order'!AF886=\"\",\"\",'1. Order'!AF886)","v":""}]
[{"$f":"IF('1. Order'!B887=\"\",\"\",'1. Order'!B887)","v":""},{"$f":"IF('1. Order'!I887=\"\",\"\",'1. Order'!I887)","v":""},{"$f":"IF('1. Order'!J887=\"\",\"\",'1. Order'!J887)","v":""},{"$f":"IF('1. Order'!K887=\"\",\"\",'1. Order'!K887)","v":""},{"$f":"IF('1. Order'!M887=\"\",\"\",'1. Order'!M887)","v":""},null,null,{"$f":"IF('1. Order'!AS887=\"\",\"\",'1. Order'!AS887)","v":""},{"$f":"IF('1. Order'!AF887=\"\",\"\",'1. Order'!AF887)","v":""}]
[{"$f":"IF('1. Order'!B888=\"\",\"\",'1. Order'!B888)","v":""},{"$f":"IF('1. Order'!I888=\"\",\"\",'1. Order'!I888)","v":""},{"$f":"IF('1. Order'!J888=\"\",\"\",'1. Order'!J888)","v":""},{"$f":"IF('1. Order'!K888=\"\",\"\",'1. Order'!K888)","v":""},{"$f":"IF('1. Order'!M888=\"\",\"\",'1. Order'!M888)","v":""},null,null,{"$f":"IF('1. Order'!AS888=\"\",\"\",'1. Order'!AS888)","v":""},{"$f":"IF('1. Order'!AF888=\"\",\"\",'1. Order'!AF888)","v":""}]
[{"$f":"IF('1. Order'!B889=\"\",\"\",'1. Order'!B889)","v":""},{"$f":"IF('1. Order'!I889=\"\",\"\",'1. Order'!I889)","v":""},{"$f":"IF('1. Order'!J889=\"\",\"\",'1. Order'!J889)","v":""},{"$f":"IF('1. Order'!K889=\"\",\"\",'1. Order'!K889)","v":""},{"$f":"IF('1. Order'!M889=\"\",\"\",'1. Order'!M889)","v":""},null,null,{"$f":"IF('1. Order'!AS889=\"\",\"\",'1. Order'!AS889)","v":""},{"$f":"IF('1. Order'!AF889=\"\",\"\",'1. Order'!AF889)","v":""}]
[{"$f":"IF('1. Order'!B890=\"\",\"\",'1. Order'!B890)","v":""},{"$f":"IF('1. Order'!I890=\"\",\"\",'1. Order'!I890)","v":""},{"$f":"IF('1. Order'!J890=\"\",\"\",'1. Order'!J890)","v":""},{"$f":"IF('1. Order'!K890=\"\",\"\",'1. Order'!K890)","v":""},{"$f":"IF('1. Order'!M890=\"\",\"\",'1. Order'!M890)","v":""},null,null,{"$f":"IF('1. Order'!AS890=\"\",\"\",'1. Order'!AS890)","v":""},{"$f":"IF('1. Order'!AF890=\"\",\"\",'1. Order'!AF890)","v":""}]
[{"$f":"IF('1. Order'!B891=\"\",\"\",'1. Order'!B891)","v":""},{"$f":"IF('1. Order'!I891=\"\",\"\",'1. Order'!I891)","v":""},{"$f":"IF('1. Order'!J891=\"\",\"\",'1. Order'!J891)","v":""},{"$f":"IF('1. Order'!K891=\"\",\"\",'1. Order'!K891)","v":""},{"$f":"IF('1. Order'!M891=\"\",\"\",'1. Order'!M891)","v":""},null,null,{"$f":"IF('1. Order'!AS891=\"\",\"\",'1. Order'!AS891)","v":""},{"$f":"IF('1. Order'!AF891=\"\",\"\",'1. Order'!AF891)","v":""}]
[{"$f":"IF('1. Order'!B892=\"\",\"\",'1. Order'!B892)","v":""},{"$f":"IF('1. Order'!I892=\"\",\"\",'1. Order'!I892)","v":""},{"$f":"IF('1. Order'!J892=\"\",\"\",'1. Order'!J892)","v":""},{"$f":"IF('1. Order'!K892=\"\",\"\",'1. Order'!K892)","v":""},{"$f":"IF('1. Order'!M892=\"\",\"\",'1. Order'!M892)","v":""},null,null,{"$f":"IF('1. Order'!AS892=\"\",\"\",'1. Order'!AS892)","v":""},{"$f":"IF('1. Order'!AF892=\"\",\"\",'1. Order'!AF892)","v":""}]
[{"$f":"IF('1. Order'!B893=\"\",\"\",'1. Order'!B893)","v":""},{"$f":"IF('1. Order'!I893=\"\",\"\",'1. Order'!I893)","v":""},{"$f":"IF('1. Order'!J893=\"\",\"\",'1. Order'!J893)","v":""},{"$f":"IF('1. Order'!K893=\"\",\"\",'1. Order'!K893)","v":""},{"$f":"IF('1. Order'!M893=\"\",\"\",'1. Order'!M893)","v":""},null,null,{"$f":"IF('1. Order'!AS893=\"\",\"\",'1. Order'!AS893)","v":""},{"$f":"IF('1. Order'!AF893=\"\",\"\",'1. Order'!AF893)","v":""}]
[{"$f":"IF('1. Order'!B894=\"\",\"\",'1. Order'!B894)","v":""},{"$f":"IF('1. Order'!I894=\"\",\"\",'1. Order'!I894)","v":""},{"$f":"IF('1. Order'!J894=\"\",\"\",'1. Order'!J894)","v":""},{"$f":"IF('1. Order'!K894=\"\",\"\",'1. Order'!K894)","v":""},{"$f":"IF('1. Order'!M894=\"\",\"\",'1. Order'!M894)","v":""},null,null,{"$f":"IF('1. Order'!AS894=\"\",\"\",'1. Order'!AS894)","v":""},{"$f":"IF('1. Order'!AF894=\"\",\"\",'1. Order'!AF894)","v":""}]
[{"$f":"IF('1. Order'!B895=\"\",\"\",'1. Order'!B895)","v":""},{"$f":"IF('1. Order'!I895=\"\",\"\",'1. Order'!I895)","v":""},{"$f":"IF('1. Order'!J895=\"\",\"\",'1. Order'!J895)","v":""},{"$f":"IF('1. Order'!K895=\"\",\"\",'1. Order'!K895)","v":""},{"$f":"IF('1. Order'!M895=\"\",\"\",'1. Order'!M895)","v":""},null,null,{"$f":"IF('1. Order'!AS895=\"\",\"\",'1. Order'!AS895)","v":""},{"$f":"IF('1. Order'!AF895=\"\",\"\",'1. Order'!AF895)","v":""}]
[{"$f":"IF('1. Order'!B896=\"\",\"\",'1. Order'!B896)","v":""},{"$f":"IF('1. Order'!I896=\"\",\"\",'1. Order'!I896)","v":""},{"$f":"IF('1. Order'!J896=\"\",\"\",'1. Order'!J896)","v":""},{"$f":"IF('1. Order'!K896=\"\",\"\",'1. Order'!K896)","v":""},{"$f":"IF('1. Order'!M896=\"\",\"\",'1. Order'!M896)","v":""},null,null,{"$f":"IF('1. Order'!AS896=\"\",\"\",'1. Order'!AS896)","v":""},{"$f":"IF('1. Order'!AF896=\"\",\"\",'1. Order'!AF896)","v":""}]
[{"$f":"IF('1. Order'!B897=\"\",\"\",'1. Order'!B897)","v":""},{"$f":"IF('1. Order'!I897=\"\",\"\",'1. Order'!I897)","v":""},{"$f":"IF('1. Order'!J897=\"\",\"\",'1. Order'!J897)","v":""},{"$f":"IF('1. Order'!K897=\"\",\"\",'1. Order'!K897)","v":""},{"$f":"IF('1. Order'!M897=\"\",\"\",'1. Order'!M897)","v":""},null,null,{"$f":"IF('1. Order'!AS897=\"\",\"\",'1. Order'!AS897)","v":""},{"$f":"IF('1. Order'!AF897=\"\",\"\",'1. Order'!AF897)","v":""}]
[{"$f":"IF('1. Order'!B898=\"\",\"\",'1. Order'!B898)","v":""},{"$f":"IF('1. Order'!I898=\"\",\"\",'1. Order'!I898)","v":""},{"$f":"IF('1. Order'!J898=\"\",\"\",'1. Order'!J898)","v":""},{"$f":"IF('1. Order'!K898=\"\",\"\",'1. Order'!K898)","v":""},{"$f":"IF('1. Order'!M898=\"\",\"\",'1. Order'!M898)","v":""},null,null,{"$f":"IF('1. Order'!AS898=\"\",\"\",'1. Order'!AS898)","v":""},{"$f":"IF('1. Order'!AF898=\"\",\"\",'1. Order'!AF898)","v":""}]
[{"$f":"IF('1. Order'!B899=\"\",\"\",'1. Order'!B899)","v":""},{"$f":"IF('1. Order'!I899=\"\",\"\",'1. Order'!I899)","v":""},{"$f":"IF('1. Order'!J899=\"\",\"\",'1. Order'!J899)","v":""},{"$f":"IF('1. Order'!K899=\"\",\"\",'1. Order'!K899)","v":""},{"$f":"IF('1. Order'!M899=\"\",\"\",'1. Order'!M899)","v":""},null,null,{"$f":"IF('1. Order'!AS899=\"\",\"\",'1. Order'!AS899)","v":""},{"$f":"IF('1. Order'!AF899=\"\",\"\",'1. Order'!AF899)","v":""}]
[{"$f":"IF('1. Order'!B900=\"\",\"\",'1. Order'!B900)","v":""},{"$f":"IF('1. Order'!I900=\"\",\"\",'1. Order'!I900)","v":""},{"$f":"IF('1. Order'!J900=\"\",\"\",'1. Order'!J900)","v":""},{"$f":"IF('1. Order'!K900=\"\",\"\",'1. Order'!K900)","v":""},{"$f":"IF('1. Order'!M900=\"\",\"\",'1. Order'!M900)","v":""},null,null,{"$f":"IF('1. Order'!AS900=\"\",\"\",'1. Order'!AS900)","v":""},{"$f":"IF('1. Order'!AF900=\"\",\"\",'1. Order'!AF900)","v":""}]
[{"$f":"IF('1. Order'!B901=\"\",\"\",'1. Order'!B901)","v":""},{"$f":"IF('1. Order'!I901=\"\",\"\",'1. Order'!I901)","v":""},{"$f":"IF('1. Order'!J901=\"\",\"\",'1. Order'!J901)","v":""},{"$f":"IF('1. Order'!K901=\"\",\"\",'1. Order'!K901)","v":""},{"$f":"IF('1. Order'!M901=\"\",\"\",'1. Order'!M901)","v":""},null,null,{"$f":"IF('1. Order'!AS901=\"\",\"\",'1. Order'!AS901)","v":""},{"$f":"IF('1. Order'!AF901=\"\",\"\",'1. Order'!AF901)","v":""}]
[{"$f":"IF('1. Order'!B902=\"\",\"\",'1. Order'!B902)","v":""},{"$f":"IF('1. Order'!I902=\"\",\"\",'1. Order'!I902)","v":""},{"$f":"IF('1. Order'!J902=\"\",\"\",'1. Order'!J902)","v":""},{"$f":"IF('1. Order'!K902=\"\",\"\",'1. Order'!K902)","v":""},{"$f":"IF('1. Order'!M902=\"\",\"\",'1. Order'!M902)","v":""},null,null,{"$f":"IF('1. Order'!AS902=\"\",\"\",'1. Order'!AS902)","v":""},{"$f":"IF('1. Order'!AF902=\"\",\"\",'1. Order'!AF902)","v":""}]
[{"$f":"IF('1. Order'!B903=\"\",\"\",'1. Order'!B903)","v":""},{"$f":"IF('1. Order'!I903=\"\",\"\",'1. Order'!I903)","v":""},{"$f":"IF('1. Order'!J903=\"\",\"\",'1. Order'!J903)","v":""},{"$f":"IF('1. Order'!K903=\"\",\"\",'1. Order'!K903)","v":""},{"$f":"IF('1. Order'!M903=\"\",\"\",'1. Order'!M903)","v":""},null,null,{"$f":"IF('1. Order'!AS903=\"\",\"\",'1. Order'!AS903)","v":""},{"$f":"IF('1. Order'!AF903=\"\",\"\",'1. Order'!AF903)","v":""}]
[{"$f":"IF('1. Order'!B904=\"\",\"\",'1. Order'!B904)","v":""},{"$f":"IF('1. Order'!I904=\"\",\"\",'1. Order'!I904)","v":""},{"$f":"IF('1. Order'!J904=\"\",\"\",'1. Order'!J904)","v":""},{"$f":"IF('1. Order'!K904=\"\",\"\",'1. Order'!K904)","v":""},{"$f":"IF('1. Order'!M904=\"\",\"\",'1. Order'!M904)","v":""},null,null,{"$f":"IF('1. Order'!AS904=\"\",\"\",'1. Order'!AS904)","v":""},{"$f":"IF('1. Order'!AF904=\"\",\"\",'1. Order'!AF904)","v":""}]
[{"$f":"IF('1. Order'!B905=\"\",\"\",'1. Order'!B905)","v":""},{"$f":"IF('1. Order'!I905=\"\",\"\",'1. Order'!I905)","v":""},{"$f":"IF('1. Order'!J905=\"\",\"\",'1. Order'!J905)","v":""},{"$f":"IF('1. Order'!K905=\"\",\"\",'1. Order'!K905)","v":""},{"$f":"IF('1. Order'!M905=\"\",\"\",'1. Order'!M905)","v":""},null,null,{"$f":"IF('1. Order'!AS905=\"\",\"\",'1. Order'!AS905)","v":""},{"$f":"IF('1. Order'!AF905=\"\",\"\",'1. Order'!AF905)","v":""}]
[{"$f":"IF('1. Order'!B906=\"\",\"\",'1. Order'!B906)","v":""},{"$f":"IF('1. Order'!I906=\"\",\"\",'1. Order'!I906)","v":""},{"$f":"IF('1. Order'!J906=\"\",\"\",'1. Order'!J906)","v":""},{"$f":"IF('1. Order'!K906=\"\",\"\",'1. Order'!K906)","v":""},{"$f":"IF('1. Order'!M906=\"\",\"\",'1. Order'!M906)","v":""},null,null,{"$f":"IF('1. Order'!AS906=\"\",\"\",'1. Order'!AS906)","v":""},{"$f":"IF('1. Order'!AF906=\"\",\"\",'1. Order'!AF906)","v":""}]
[{"$f":"IF('1. Order'!B907=\"\",\"\",'1. Order'!B907)","v":""},{"$f":"IF('1. Order'!I907=\"\",\"\",'1. Order'!I907)","v":""},{"$f":"IF('1. Order'!J907=\"\",\"\",'1. Order'!J907)","v":""},{"$f":"IF('1. Order'!K907=\"\",\"\",'1. Order'!K907)","v":""},{"$f":"IF('1. Order'!M907=\"\",\"\",'1. Order'!M907)","v":""},null,null,{"$f":"IF('1. Order'!AS907=\"\",\"\",'1. Order'!AS907)","v":""},{"$f":"IF('1. Order'!AF907=\"\",\"\",'1. Order'!AF907)","v":""}]
[{"$f":"IF('1. Order'!B908=\"\",\"\",'1. Order'!B908)","v":""},{"$f":"IF('1. Order'!I908=\"\",\"\",'1. Order'!I908)","v":""},{"$f":"IF('1. Order'!J908=\"\",\"\",'1. Order'!J908)","v":""},{"$f":"IF('1. Order'!K908=\"\",\"\",'1. Order'!K908)","v":""},{"$f":"IF('1. Order'!M908=\"\",\"\",'1. Order'!M908)","v":""},null,null,{"$f":"IF('1. Order'!AS908=\"\",\"\",'1. Order'!AS908)","v":""},{"$f":"IF('1. Order'!AF908=\"\",\"\",'1. Order'!AF908)","v":""}]
[{"$f":"IF('1. Order'!B909=\"\",\"\",'1. Order'!B909)","v":""},{"$f":"IF('1. Order'!I909=\"\",\"\",'1. Order'!I909)","v":""},{"$f":"IF('1. Order'!J909=\"\",\"\",'1. Order'!J909)","v":""},{"$f":"IF('1. Order'!K909=\"\",\"\",'1. Order'!K909)","v":""},{"$f":"IF('1. Order'!M909=\"\",\"\",'1. Order'!M909)","v":""},null,null,{"$f":"IF('1. Order'!AS909=\"\",\"\",'1. Order'!AS909)","v":""},{"$f":"IF('1. Order'!AF909=\"\",\"\",'1. Order'!AF909)","v":""}]
[{"$f":"IF('1. Order'!B910=\"\",\"\",'1. Order'!B910)","v":""},{"$f":"IF('1. Order'!I910=\"\",\"\",'1. Order'!I910)","v":""},{"$f":"IF('1. Order'!J910=\"\",\"\",'1. Order'!J910)","v":""},{"$f":"IF('1. Order'!K910=\"\",\"\",'1. Order'!K910)","v":""},{"$f":"IF('1. Order'!M910=\"\",\"\",'1. Order'!M910)","v":""},null,null,{"$f":"IF('1. Order'!AS910=\"\",\"\",'1. Order'!AS910)","v":""},{"$f":"IF('1. Order'!AF910=\"\",\"\",'1. Order'!AF910)","v":""}]
[{"$f":"IF('1. Order'!B911=\"\",\"\",'1. Order'!B911)","v":""},{"$f":"IF('1. Order'!I911=\"\",\"\",'1. Order'!I911)","v":""},{"$f":"IF('1. Order'!J911=\"\",\"\",'1. Order'!J911)","v":""},{"$f":"IF('1. Order'!K911=\"\",\"\",'1. Order'!K911)","v":""},{"$f":"IF('1. Order'!M911=\"\",\"\",'1. Order'!M911)","v":""},null,null,{"$f":"IF('1. Order'!AS911=\"\",\"\",'1. Order'!AS911)","v":""},{"$f":"IF('1. Order'!AF911=\"\",\"\",'1. Order'!AF911)","v":""}]
[{"$f":"IF('1. Order'!B912=\"\",\"\",'1. Order'!B912)","v":""},{"$f":"IF('1. Order'!I912=\"\",\"\",'1. Order'!I912)","v":""},{"$f":"IF('1. Order'!J912=\"\",\"\",'1. Order'!J912)","v":""},{"$f":"IF('1. Order'!K912=\"\",\"\",'1. Order'!K912)","v":""},{"$f":"IF('1. Order'!M912=\"\",\"\",'1. Order'!M912)","v":""},null,null,{"$f":"IF('1. Order'!AS912=\"\",\"\",'1. Order'!AS912)","v":""},{"$f":"IF('1. Order'!AF912=\"\",\"\",'1. Order'!AF912)","v":""}]
[{"$f":"IF('1. Order'!B913=\"\",\"\",'1. Order'!B913)","v":""},{"$f":"IF('1. Order'!I913=\"\",\"\",'1. Order'!I913)","v":""},{"$f":"IF('1. Order'!J913=\"\",\"\",'1. Order'!J913)","v":""},{"$f":"IF('1. Order'!K913=\"\",\"\",'1. Order'!K913)","v":""},{"$f":"IF('1. Order'!M913=\"\",\"\",'1. Order'!M913)","v":""},null,null,{"$f":"IF('1. Order'!AS913=\"\",\"\",'1. Order'!AS913)","v":""},{"$f":"IF('1. Order'!AF913=\"\",\"\",'1. Order'!AF913)","v":""}]
[{"$f":"IF('1. Order'!B914=\"\",\"\",'1. Order'!B914)","v":""},{"$f":"IF('1. Order'!I914=\"\",\"\",'1. Order'!I914)","v":""},{"$f":"IF('1. Order'!J914=\"\",\"\",'1. Order'!J914)","v":""},{"$f":"IF('1. Order'!K914=\"\",\"\",'1. Order'!K914)","v":""},{"$f":"IF('1. Order'!M914=\"\",\"\",'1. Order'!M914)","v":""},null,null,{"$f":"IF('1. Order'!AS914=\"\",\"\",'1. Order'!AS914)","v":""},{"$f":"IF('1. Order'!AF914=\"\",\"\",'1. Order'!AF914)","v":""}]
[{"$f":"IF('1. Order'!B915=\"\",\"\",'1. Order'!B915)","v":""},{"$f":"IF('1. Order'!I915=\"\",\"\",'1. Order'!I915)","v":""},{"$f":"IF('1. Order'!J915=\"\",\"\",'1. Order'!J915)","v":""},{"$f":"IF('1. Order'!K915=\"\",\"\",'1. Order'!K915)","v":""},{"$f":"IF('1. Order'!M915=\"\",\"\",'1. Order'!M915)","v":""},null,null,{"$f":"IF('1. Order'!AS915=\"\",\"\",'1. Order'!AS915)","v":""},{"$f":"IF('1. Order'!AF915=\"\",\"\",'1. Order'!AF915)","v":""}]
[{"$f":"IF('1. Order'!B916=\"\",\"\",'1. Order'!B916)","v":""},{"$f":"IF('1. Order'!I916=\"\",\"\",'1. Order'!I916)","v":""},{"$f":"IF('1. Order'!J916=\"\",\"\",'1. Order'!J916)","v":""},{"$f":"IF('1. Order'!K916=\"\",\"\",'1. Order'!K916)","v":""},{"$f":"IF('1. Order'!M916=\"\",\"\",'1. Order'!M916)","v":""},null,null,{"$f":"IF('1. Order'!AS916=\"\",\"\",'1. Order'!AS916)","v":""},{"$f":"IF('1. Order'!AF916=\"\",\"\",'1. Order'!AF916)","v":""}]
[{"$f":"IF('1. Order'!B917=\"\",\"\",'1. Order'!B917)","v":""},{"$f":"IF('1. Order'!I917=\"\",\"\",'1. Order'!I917)","v":""},{"$f":"IF('1. Order'!J917=\"\",\"\",'1. Order'!J917)","v":""},{"$f":"IF('1. Order'!K917=\"\",\"\",'1. Order'!K917)","v":""},{"$f":"IF('1. Order'!M917=\"\",\"\",'1. Order'!M917)","v":""},null,null,{"$f":"IF('1. Order'!AS917=\"\",\"\",'1. Order'!AS917)","v":""},{"$f":"IF('1. Order'!AF917=\"\",\"\",'1. Order'!AF917)","v":""}]
[{"$f":"IF('1. Order'!B918=\"\",\"\",'1. Order'!B918)","v":""},{"$f":"IF('1. Order'!I918=\"\",\"\",'1. Order'!I918)","v":""},{"$f":"IF('1. Order'!J918=\"\",\"\",'1. Order'!J918)","v":""},{"$f":"IF('1. Order'!K918=\"\",\"\",'1. Order'!K918)","v":""},{"$f":"IF('1. Order'!M918=\"\",\"\",'1. Order'!M918)","v":""},null,null,{"$f":"IF('1. Order'!AS918=\"\",\"\",'1. Order'!AS918)","v":""},{"$f":"IF('1. Order'!AF918=\"\",\"\",'1. Order'!AF918)","v":""}]
[{"$f":"IF('1. Order'!B919=\"\",\"\",'1. Order'!B919)","v":""},{"$f":"IF('1. Order'!I919=\"\",\"\",'1. Order'!I919)","v":""},{"$f":"IF('1. Order'!J919=\"\",\"\",'1. Order'!J919)","v":""},{"$f":"IF('1. Order'!K919=\"\",\"\",'1. Order'!K919)","v":""},{"$f":"IF('1. Order'!M919=\"\",\"\",'1. Order'!M919)","v":""},null,null,{"$f":"IF('1. Order'!AS919=\"\",\"\",'1. Order'!AS919)","v":""},{"$f":"IF('1. Order'!AF919=\"\",\"\",'1. Order'!AF919)","v":""}]
[{"$f":"IF('1. Order'!B920=\"\",\"\",'1. Order'!B920)","v":""},{"$f":"IF('1. Order'!I920=\"\",\"\",'1. Order'!I920)","v":""},{"$f":"IF('1. Order'!J920=\"\",\"\",'1. Order'!J920)","v":""},{"$f":"IF('1. Order'!K920=\"\",\"\",'1. Order'!K920)","v":""},{"$f":"IF('1. Order'!M920=\"\",\"\",'1. Order'!M920)","v":""},null,null,{"$f":"IF('1. Order'!AS920=\"\",\"\",'1. Order'!AS920)","v":""},{"$f":"IF('1. Order'!AF920=\"\",\"\",'1. Order'!AF920)","v":""}]
[{"$f":"IF('1. Order'!B921=\"\",\"\",'1. Order'!B921)","v":""},{"$f":"IF('1. Order'!I921=\"\",\"\",'1. Order'!I921)","v":""},{"$f":"IF('1. Order'!J921=\"\",\"\",'1. Order'!J921)","v":""},{"$f":"IF('1. Order'!K921=\"\",\"\",'1. Order'!K921)","v":""},{"$f":"IF('1. Order'!M921=\"\",\"\",'1. Order'!M921)","v":""},null,null,{"$f":"IF('1. Order'!AS921=\"\",\"\",'1. Order'!AS921)","v":""},{"$f":"IF('1. Order'!AF921=\"\",\"\",'1. Order'!AF921)","v":""}]
[{"$f":"IF('1. Order'!B922=\"\",\"\",'1. Order'!B922)","v":""},{"$f":"IF('1. Order'!I922=\"\",\"\",'1. Order'!I922)","v":""},{"$f":"IF('1. Order'!J922=\"\",\"\",'1. Order'!J922)","v":""},{"$f":"IF('1. Order'!K922=\"\",\"\",'1. Order'!K922)","v":""},{"$f":"IF('1. Order'!M922=\"\",\"\",'1. Order'!M922)","v":""},null,null,{"$f":"IF('1. Order'!AS922=\"\",\"\",'1. Order'!AS922)","v":""},{"$f":"IF('1. Order'!AF922=\"\",\"\",'1. Order'!AF922)","v":""}]
[{"$f":"IF('1. Order'!B923=\"\",\"\",'1. Order'!B923)","v":""},{"$f":"IF('1. Order'!I923=\"\",\"\",'1. Order'!I923)","v":""},{"$f":"IF('1. Order'!J923=\"\",\"\",'1. Order'!J923)","v":""},{"$f":"IF('1. Order'!K923=\"\",\"\",'1. Order'!K923)","v":""},{"$f":"IF('1. Order'!M923=\"\",\"\",'1. Order'!M923)","v":""},null,null,{"$f":"IF('1. Order'!AS923=\"\",\"\",'1. Order'!AS923)","v":""},{"$f":"IF('1. Order'!AF923=\"\",\"\",'1. Order'!AF923)","v":""}]
[{"$f":"IF('1. Order'!B924=\"\",\"\",'1. Order'!B924)","v":""},{"$f":"IF('1. Order'!I924=\"\",\"\",'1. Order'!I924)","v":""},{"$f":"IF('1. Order'!J924=\"\",\"\",'1. Order'!J924)","v":""},{"$f":"IF('1. Order'!K924=\"\",\"\",'1. Order'!K924)","v":""},{"$f":"IF('1. Order'!M924=\"\",\"\",'1. Order'!M924)","v":""},null,null,{"$f":"IF('1. Order'!AS924=\"\",\"\",'1. Order'!AS924)","v":""},{"$f":"IF('1. Order'!AF924=\"\",\"\",'1. Order'!AF924)","v":""}]
[{"$f":"IF('1. Order'!B925=\"\",\"\",'1. Order'!B925)","v":""},{"$f":"IF('1. Order'!I925=\"\",\"\",'1. Order'!I925)","v":""},{"$f":"IF('1. Order'!J925=\"\",\"\",'1. Order'!J925)","v":""},{"$f":"IF('1. Order'!K925=\"\",\"\",'1. Order'!K925)","v":""},{"$f":"IF('1. Order'!M925=\"\",\"\",'1. Order'!M925)","v":""},null,null,{"$f":"IF('1. Order'!AS925=\"\",\"\",'1. Order'!AS925)","v":""},{"$f":"IF('1. Order'!AF925=\"\",\"\",'1. Order'!AF925)","v":""}]
[{"$f":"IF('1. Order'!B926=\"\",\"\",'1. Order'!B926)","v":""},{"$f":"IF('1. Order'!I926=\"\",\"\",'1. Order'!I926)","v":""},{"$f":"IF('1. Order'!J926=\"\",\"\",'1. Order'!J926)","v":""},{"$f":"IF('1. Order'!K926=\"\",\"\",'1. Order'!K926)","v":""},{"$f":"IF('1. Order'!M926=\"\",\"\",'1. Order'!M926)","v":""},null,null,{"$f":"IF('1. Order'!AS926=\"\",\"\",'1. Order'!AS926)","v":""},{"$f":"IF('1. Order'!AF926=\"\",\"\",'1. Order'!AF926)","v":""}]
[{"$f":"IF('1. Order'!B927=\"\",\"\",'1. Order'!B927)","v":""},{"$f":"IF('1. Order'!I927=\"\",\"\",'1. Order'!I927)","v":""},{"$f":"IF('1. Order'!J927=\"\",\"\",'1. Order'!J927)","v":""},{"$f":"IF('1. Order'!K927=\"\",\"\",'1. Order'!K927)","v":""},{"$f":"IF('1. Order'!M927=\"\",\"\",'1. Order'!M927)","v":""},null,null,{"$f":"IF('1. Order'!AS927=\"\",\"\",'1. Order'!AS927)","v":""},{"$f":"IF('1. Order'!AF927=\"\",\"\",'1. Order'!AF927)","v":""}]
[{"$f":"IF('1. Order'!B928=\"\",\"\",'1. Order'!B928)","v":""},{"$f":"IF('1. Order'!I928=\"\",\"\",'1. Order'!I928)","v":""},{"$f":"IF('1. Order'!J928=\"\",\"\",'1. Order'!J928)","v":""},{"$f":"IF('1. Order'!K928=\"\",\"\",'1. Order'!K928)","v":""},{"$f":"IF('1. Order'!M928=\"\",\"\",'1. Order'!M928)","v":""},null,null,{"$f":"IF('1. Order'!AS928=\"\",\"\",'1. Order'!AS928)","v":""},{"$f":"IF('1. Order'!AF928=\"\",\"\",'1. Order'!AF928)","v":""}]
[{"$f":"IF('1. Order'!B929=\"\",\"\",'1. Order'!B929)","v":""},{"$f":"IF('1. Order'!I929=\"\",\"\",'1. Order'!I929)","v":""},{"$f":"IF('1. Order'!J929=\"\",\"\",'1. Order'!J929)","v":""},{"$f":"IF('1. Order'!K929=\"\",\"\",'1. Order'!K929)","v":""},{"$f":"IF('1. Order'!M929=\"\",\"\",'1. Order'!M929)","v":""},null,null,{"$f":"IF('1. Order'!AS929=\"\",\"\",'1. Order'!AS929)","v":""},{"$f":"IF('1. Order'!AF929=\"\",\"\",'1. Order'!AF929)","v":""}]
[{"$f":"IF('1. Order'!B930=\"\",\"\",'1. Order'!B930)","v":""},{"$f":"IF('1. Order'!I930=\"\",\"\",'1. Order'!I930)","v":""},{"$f":"IF('1. Order'!J930=\"\",\"\",'1. Order'!J930)","v":""},{"$f":"IF('1. Order'!K930=\"\",\"\",'1. Order'!K930)","v":""},{"$f":"IF('1. Order'!M930=\"\",\"\",'1. Order'!M930)","v":""},null,null,{"$f":"IF('1. Order'!AS930=\"\",\"\",'1. Order'!AS930)","v":""},{"$f":"IF('1. Order'!AF930=\"\",\"\",'1. Order'!AF930)","v":""}]
[{"$f":"IF('1. Order'!B931=\"\",\"\",'1. Order'!B931)","v":""},{"$f":"IF('1. Order'!I931=\"\",\"\",'1. Order'!I931)","v":""},{"$f":"IF('1. Order'!J931=\"\",\"\",'1. Order'!J931)","v":""},{"$f":"IF('1. Order'!K931=\"\",\"\",'1. Order'!K931)","v":""},{"$f":"IF('1. Order'!M931=\"\",\"\",'1. Order'!M931)","v":""},null,null,{"$f":"IF('1. Order'!AS931=\"\",\"\",'1. Order'!AS931)","v":""},{"$f":"IF('1. Order'!AF931=\"\",\"\",'1. Order'!AF931)","v":""}]
[{"$f":"IF('1. Order'!B932=\"\",\"\",'1. Order'!B932)","v":""},{"$f":"IF('1. Order'!I932=\"\",\"\",'1. Order'!I932)","v":""},{"$f":"IF('1. Order'!J932=\"\",\"\",'1. Order'!J932)","v":""},{"$f":"IF('1. Order'!K932=\"\",\"\",'1. Order'!K932)","v":""},{"$f":"IF('1. Order'!M932=\"\",\"\",'1. Order'!M932)","v":""},null,null,{"$f":"IF('1. Order'!AS932=\"\",\"\",'1. Order'!AS932)","v":""},{"$f":"IF('1. Order'!AF932=\"\",\"\",'1. Order'!AF932)","v":""}]
[{"$f":"IF('1. Order'!B933=\"\",\"\",'1. Order'!B933)","v":""},{"$f":"IF('1. Order'!I933=\"\",\"\",'1. Order'!I933)","v":""},{"$f":"IF('1. Order'!J933=\"\",\"\",'1. Order'!J933)","v":""},{"$f":"IF('1. Order'!K933=\"\",\"\",'1. Order'!K933)","v":""},{"$f":"IF('1. Order'!M933=\"\",\"\",'1. Order'!M933)","v":""},null,null,{"$f":"IF('1. Order'!AS933=\"\",\"\",'1. Order'!AS933)","v":""},{"$f":"IF('1. Order'!AF933=\"\",\"\",'1. Order'!AF933)","v":""}]
[{"$f":"IF('1. Order'!B934=\"\",\"\",'1. Order'!B934)","v":""},{"$f":"IF('1. Order'!I934=\"\",\"\",'1. Order'!I934)","v":""},{"$f":"IF('1. Order'!J934=\"\",\"\",'1. Order'!J934)","v":""},{"$f":"IF('1. Order'!K934=\"\",\"\",'1. Order'!K934)","v":""},{"$f":"IF('1. Order'!M934=\"\",\"\",'1. Order'!M934)","v":""},null,null,{"$f":"IF('1. Order'!AS934=\"\",\"\",'1. Order'!AS934)","v":""},{"$f":"IF('1. Order'!AF934=\"\",\"\",'1. Order'!AF934)","v":""}]
[{"$f":"IF('1. Order'!B935=\"\",\"\",'1. Order'!B935)","v":""},{"$f":"IF('1. Order'!I935=\"\",\"\",'1. Order'!I935)","v":""},{"$f":"IF('1. Order'!J935=\"\",\"\",'1. Order'!J935)","v":""},{"$f":"IF('1. Order'!K935=\"\",\"\",'1. Order'!K935)","v":""},{"$f":"IF('1. Order'!M935=\"\",\"\",'1. Order'!M935)","v":""},null,null,{"$f":"IF('1. Order'!AS935=\"\",\"\",'1. Order'!AS935)","v":""},{"$f":"IF('1. Order'!AF935=\"\",\"\",'1. Order'!AF935)","v":""}]
[{"$f":"IF('1. Order'!B936=\"\",\"\",'1. Order'!B936)","v":""},{"$f":"IF('1. Order'!I936=\"\",\"\",'1. Order'!I936)","v":""},{"$f":"IF('1. Order'!J936=\"\",\"\",'1. Order'!J936)","v":""},{"$f":"IF('1. Order'!K936=\"\",\"\",'1. Order'!K936)","v":""},{"$f":"IF('1. Order'!M936=\"\",\"\",'1. Order'!M936)","v":""},null,null,{"$f":"IF('1. Order'!AS936=\"\",\"\",'1. Order'!AS936)","v":""},{"$f":"IF('1. Order'!AF936=\"\",\"\",'1. Order'!AF936)","v":""}]
[{"$f":"IF('1. Order'!B937=\"\",\"\",'1. Order'!B937)","v":""},{"$f":"IF('1. Order'!I937=\"\",\"\",'1. Order'!I937)","v":""},{"$f":"IF('1. Order'!J937=\"\",\"\",'1. Order'!J937)","v":""},{"$f":"IF('1. Order'!K937=\"\",\"\",'1. Order'!K937)","v":""},{"$f":"IF('1. Order'!M937=\"\",\"\",'1. Order'!M937)","v":""},null,null,{"$f":"IF('1. Order'!AS937=\"\",\"\",'1. Order'!AS937)","v":""},{"$f":"IF('1. Order'!AF937=\"\",\"\",'1. Order'!AF937)","v":""}]
[{"$f":"IF('1. Order'!B938=\"\",\"\",'1. Order'!B938)","v":""},{"$f":"IF('1. Order'!I938=\"\",\"\",'1. Order'!I938)","v":""},{"$f":"IF('1. Order'!J938=\"\",\"\",'1. Order'!J938)","v":""},{"$f":"IF('1. Order'!K938=\"\",\"\",'1. Order'!K938)","v":""},{"$f":"IF('1. Order'!M938=\"\",\"\",'1. Order'!M938)","v":""},null,null,{"$f":"IF('1. Order'!AS938=\"\",\"\",'1. Order'!AS938)","v":""},{"$f":"IF('1. Order'!AF938=\"\",\"\",'1. Order'!AF938)","v":""}]
[{"$f":"IF('1. Order'!B939=\"\",\"\",'1. Order'!B939)","v":""},{"$f":"IF('1. Order'!I939=\"\",\"\",'1. Order'!I939)","v":""},{"$f":"IF('1. Order'!J939=\"\",\"\",'1. Order'!J939)","v":""},{"$f":"IF('1. Order'!K939=\"\",\"\",'1. Order'!K939)","v":""},{"$f":"IF('1. Order'!M939=\"\",\"\",'1. Order'!M939)","v":""},null,null,{"$f":"IF('1. Order'!AS939=\"\",\"\",'1. Order'!AS939)","v":""},{"$f":"IF('1. Order'!AF939=\"\",\"\",'1. Order'!AF939)","v":""}]
[{"$f":"IF('1. Order'!B940=\"\",\"\",'1. Order'!B940)","v":""},{"$f":"IF('1. Order'!I940=\"\",\"\",'1. Order'!I940)","v":""},{"$f":"IF('1. Order'!J940=\"\",\"\",'1. Order'!J940)","v":""},{"$f":"IF('1. Order'!K940=\"\",\"\",'1. Order'!K940)","v":""},{"$f":"IF('1. Order'!M940=\"\",\"\",'1. Order'!M940)","v":""},null,null,{"$f":"IF('1. Order'!AS940=\"\",\"\",'1. Order'!AS940)","v":""},{"$f":"IF('1. Order'!AF940=\"\",\"\",'1. Order'!AF940)","v":""}]
[{"$f":"IF('1. Order'!B941=\"\",\"\",'1. Order'!B941)","v":""},{"$f":"IF('1. Order'!I941=\"\",\"\",'1. Order'!I941)","v":""},{"$f":"IF('1. Order'!J941=\"\",\"\",'1. Order'!J941)","v":""},{"$f":"IF('1. Order'!K941=\"\",\"\",'1. Order'!K941)","v":""},{"$f":"IF('1. Order'!M941=\"\",\"\",'1. Order'!M941)","v":""},null,null,{"$f":"IF('1. Order'!AS941=\"\",\"\",'1. Order'!AS941)","v":""},{"$f":"IF('1. Order'!AF941=\"\",\"\",'1. Order'!AF941)","v":""}]
[{"$f":"IF('1. Order'!B942=\"\",\"\",'1. Order'!B942)","v":""},{"$f":"IF('1. Order'!I942=\"\",\"\",'1. Order'!I942)","v":""},{"$f":"IF('1. Order'!J942=\"\",\"\",'1. Order'!J942)","v":""},{"$f":"IF('1. Order'!K942=\"\",\"\",'1. Order'!K942)","v":""},{"$f":"IF('1. Order'!M942=\"\",\"\",'1. Order'!M942)","v":""},null,null,{"$f":"IF('1. Order'!AS942=\"\",\"\",'1. Order'!AS942)","v":""},{"$f":"IF('1. Order'!AF942=\"\",\"\",'1. Order'!AF942)","v":""}]
[{"$f":"IF('1. Order'!B943=\"\",\"\",'1. Order'!B943)","v":""},{"$f":"IF('1. Order'!I943=\"\",\"\",'1. Order'!I943)","v":""},{"$f":"IF('1. Order'!J943=\"\",\"\",'1. Order'!J943)","v":""},{"$f":"IF('1. Order'!K943=\"\",\"\",'1. Order'!K943)","v":""},{"$f":"IF('1. Order'!M943=\"\",\"\",'1. Order'!M943)","v":""},null,null,{"$f":"IF('1. Order'!AS943=\"\",\"\",'1. Order'!AS943)","v":""},{"$f":"IF('1. Order'!AF943=\"\",\"\",'1. Order'!AF943)","v":""}]
[{"$f":"IF('1. Order'!B944=\"\",\"\",'1. Order'!B944)","v":""},{"$f":"IF('1. Order'!I944=\"\",\"\",'1. Order'!I944)","v":""},{"$f":"IF('1. Order'!J944=\"\",\"\",'1. Order'!J944)","v":""},{"$f":"IF('1. Order'!K944=\"\",\"\",'1. Order'!K944)","v":""},{"$f":"IF('1. Order'!M944=\"\",\"\",'1. Order'!M944)","v":""},null,null,{"$f":"IF('1. Order'!AS944=\"\",\"\",'1. Order'!AS944)","v":""},{"$f":"IF('1. Order'!AF944=\"\",\"\",'1. Order'!AF944)","v":""}]
[{"$f":"IF('1. Order'!B945=\"\",\"\",'1. Order'!B945)","v":""},{"$f":"IF('1. Order'!I945=\"\",\"\",'1. Order'!I945)","v":""},{"$f":"IF('1. Order'!J945=\"\",\"\",'1. Order'!J945)","v":""},{"$f":"IF('1. Order'!K945=\"\",\"\",'1. Order'!K945)","v":""},{"$f":"IF('1. Order'!M945=\"\",\"\",'1. Order'!M945)","v":""},null,null,{"$f":"IF('1. Order'!AS945=\"\",\"\",'1. Order'!AS945)","v":""},{"$f":"IF('1. Order'!AF945=\"\",\"\",'1. Order'!AF945)","v":""}]
[{"$f":"IF('1. Order'!B946=\"\",\"\",'1. Order'!B946)","v":""},{"$f":"IF('1. Order'!I946=\"\",\"\",'1. Order'!I946)","v":""},{"$f":"IF('1. Order'!J946=\"\",\"\",'1. Order'!J946)","v":""},{"$f":"IF('1. Order'!K946=\"\",\"\",'1. Order'!K946)","v":""},{"$f":"IF('1. Order'!M946=\"\",\"\",'1. Order'!M946)","v":""},null,null,{"$f":"IF('1. Order'!AS946=\"\",\"\",'1. Order'!AS946)","v":""},{"$f":"IF('1. Order'!AF946=\"\",\"\",'1. Order'!AF946)","v":""}]
[{"$f":"IF('1. Order'!B947=\"\",\"\",'1. Order'!B947)","v":""},{"$f":"IF('1. Order'!I947=\"\",\"\",'1. Order'!I947)","v":""},{"$f":"IF('1. Order'!J947=\"\",\"\",'1. Order'!J947)","v":""},{"$f":"IF('1. Order'!K947=\"\",\"\",'1. Order'!K947)","v":""},{"$f":"IF('1. Order'!M947=\"\",\"\",'1. Order'!M947)","v":""},null,null,{"$f":"IF('1. Order'!AS947=\"\",\"\",'1. Order'!AS947)","v":""},{"$f":"IF('1. Order'!AF947=\"\",\"\",'1. Order'!AF947)","v":""}]
[{"$f":"IF('1. Order'!B948=\"\",\"\",'1. Order'!B948)","v":""},{"$f":"IF('1. Order'!I948=\"\",\"\",'1. Order'!I948)","v":""},{"$f":"IF('1. Order'!J948=\"\",\"\",'1. Order'!J948)","v":""},{"$f":"IF('1. Order'!K948=\"\",\"\",'1. Order'!K948)","v":""},{"$f":"IF('1. Order'!M948=\"\",\"\",'1. Order'!M948)","v":""},null,null,{"$f":"IF('1. Order'!AS948=\"\",\"\",'1. Order'!AS948)","v":""},{"$f":"IF('1. Order'!AF948=\"\",\"\",'1. Order'!AF948)","v":""}]
[{"$f":"IF('1. Order'!B949=\"\",\"\",'1. Order'!B949)","v":""},{"$f":"IF('1. Order'!I949=\"\",\"\",'1. Order'!I949)","v":""},{"$f":"IF('1. Order'!J949=\"\",\"\",'1. Order'!J949)","v":""},{"$f":"IF('1. Order'!K949=\"\",\"\",'1. Order'!K949)","v":""},{"$f":"IF('1. Order'!M949=\"\",\"\",'1. Order'!M949)","v":""},null,null,{"$f":"IF('1. Order'!AS949=\"\",\"\",'1. Order'!AS949)","v":""},{"$f":"IF('1. Order'!AF949=\"\",\"\",'1. Order'!AF949)","v":""}]
[{"$f":"IF('1. Order'!B950=\"\",\"\",'1. Order'!B950)","v":""},{"$f":"IF('1. Order'!I950=\"\",\"\",'1. Order'!I950)","v":""},{"$f":"IF('1. Order'!J950=\"\",\"\",'1. Order'!J950)","v":""},{"$f":"IF('1. Order'!K950=\"\",\"\",'1. Order'!K950)","v":""},{"$f":"IF('1. Order'!M950=\"\",\"\",'1. Order'!M950)","v":""},null,null,{"$f":"IF('1. Order'!AS950=\"\",\"\",'1. Order'!AS950)","v":""},{"$f":"IF('1. Order'!AF950=\"\",\"\",'1. Order'!AF950)","v":""}]
[{"$f":"IF('1. Order'!B951=\"\",\"\",'1. Order'!B951)","v":""},{"$f":"IF('1. Order'!I951=\"\",\"\",'1. Order'!I951)","v":""},{"$f":"IF('1. Order'!J951=\"\",\"\",'1. Order'!J951)","v":""},{"$f":"IF('1. Order'!K951=\"\",\"\",'1. Order'!K951)","v":""},{"$f":"IF('1. Order'!M951=\"\",\"\",'1. Order'!M951)","v":""},null,null,{"$f":"IF('1. Order'!AS951=\"\",\"\",'1. Order'!AS951)","v":""},{"$f":"IF('1. Order'!AF951=\"\",\"\",'1. Order'!AF951)","v":""}]
[{"$f":"IF('1. Order'!B952=\"\",\"\",'1. Order'!B952)","v":""},{"$f":"IF('1. Order'!I952=\"\",\"\",'1. Order'!I952)","v":""},{"$f":"IF('1. Order'!J952=\"\",\"\",'1. Order'!J952)","v":""},{"$f":"IF('1. Order'!K952=\"\",\"\",'1. Order'!K952)","v":""},{"$f":"IF('1. Order'!M952=\"\",\"\",'1. Order'!M952)","v":""},null,null,{"$f":"IF('1. Order'!AS952=\"\",\"\",'1. Order'!AS952)","v":""},{"$f":"IF('1. Order'!AF952=\"\",\"\",'1. Order'!AF952)","v":""}]
[{"$f":"IF('1. Order'!B953=\"\",\"\",'1. Order'!B953)","v":""},{"$f":"IF('1. Order'!I953=\"\",\"\",'1. Order'!I953)","v":""},{"$f":"IF('1. Order'!J953=\"\",\"\",'1. Order'!J953)","v":""},{"$f":"IF('1. Order'!K953=\"\",\"\",'1. Order'!K953)","v":""},{"$f":"IF('1. Order'!M953=\"\",\"\",'1. Order'!M953)","v":""},null,null,{"$f":"IF('1. Order'!AS953=\"\",\"\",'1. Order'!AS953)","v":""},{"$f":"IF('1. Order'!AF953=\"\",\"\",'1. Order'!AF953)","v":""}]
[{"$f":"IF('1. Order'!B954=\"\",\"\",'1. Order'!B954)","v":""},{"$f":"IF('1. Order'!I954=\"\",\"\",'1. Order'!I954)","v":""},{"$f":"IF('1. Order'!J954=\"\",\"\",'1. Order'!J954)","v":""},{"$f":"IF('1. Order'!K954=\"\",\"\",'1. Order'!K954)","v":""},{"$f":"IF('1. Order'!M954=\"\",\"\",'1. Order'!M954)","v":""},null,null,{"$f":"IF('1. Order'!AS954=\"\",\"\",'1. Order'!AS954)","v":""},{"$f":"IF('1. Order'!AF954=\"\",\"\",'1. Order'!AF954)","v":""}]
[{"$f":"IF('1. Order'!B955=\"\",\"\",'1. Order'!B955)","v":""},{"$f":"IF('1. Order'!I955=\"\",\"\",'1. Order'!I955)","v":""},{"$f":"IF('1. Order'!J955=\"\",\"\",'1. Order'!J955)","v":""},{"$f":"IF('1. Order'!K955=\"\",\"\",'1. Order'!K955)","v":""},{"$f":"IF('1. Order'!M955=\"\",\"\",'1. Order'!M955)","v":""},null,null,{"$f":"IF('1. Order'!AS955=\"\",\"\",'1. Order'!AS955)","v":""},{"$f":"IF('1. Order'!AF955=\"\",\"\",'1. Order'!AF955)","v":""}]
[{"$f":"IF('1. Order'!B956=\"\",\"\",'1. Order'!B956)","v":""},{"$f":"IF('1. Order'!I956=\"\",\"\",'1. Order'!I956)","v":""},{"$f":"IF('1. Order'!J956=\"\",\"\",'1. Order'!J956)","v":""},{"$f":"IF('1. Order'!K956=\"\",\"\",'1. Order'!K956)","v":""},{"$f":"IF('1. Order'!M956=\"\",\"\",'1. Order'!M956)","v":""},null,null,{"$f":"IF('1. Order'!AS956=\"\",\"\",'1. Order'!AS956)","v":""},{"$f":"IF('1. Order'!AF956=\"\",\"\",'1. Order'!AF956)","v":""}]
[{"$f":"IF('1. Order'!B957=\"\",\"\",'1. Order'!B957)","v":""},{"$f":"IF('1. Order'!I957=\"\",\"\",'1. Order'!I957)","v":""},{"$f":"IF('1. Order'!J957=\"\",\"\",'1. Order'!J957)","v":""},{"$f":"IF('1. Order'!K957=\"\",\"\",'1. Order'!K957)","v":""},{"$f":"IF('1. Order'!M957=\"\",\"\",'1. Order'!M957)","v":""},null,null,{"$f":"IF('1. Order'!AS957=\"\",\"\",'1. Order'!AS957)","v":""},{"$f":"IF('1. Order'!AF957=\"\",\"\",'1. Order'!AF957)","v":""}]
[{"$f":"IF('1. Order'!B958=\"\",\"\",'1. Order'!B958)","v":""},{"$f":"IF('1. Order'!I958=\"\",\"\",'1. Order'!I958)","v":""},{"$f":"IF('1. Order'!J958=\"\",\"\",'1. Order'!J958)","v":""},{"$f":"IF('1. Order'!K958=\"\",\"\",'1. Order'!K958)","v":""},{"$f":"IF('1. Order'!M958=\"\",\"\",'1. Order'!M958)","v":""},null,null,{"$f":"IF('1. Order'!AS958=\"\",\"\",'1. Order'!AS958)","v":""},{"$f":"IF('1. Order'!AF958=\"\",\"\",'1. Order'!AF958)","v":""}]
[{"$f":"IF('1. Order'!B959=\"\",\"\",'1. Order'!B959)","v":""},{"$f":"IF('1. Order'!I959=\"\",\"\",'1. Order'!I959)","v":""},{"$f":"IF('1. Order'!J959=\"\",\"\",'1. Order'!J959)","v":""},{"$f":"IF('1. Order'!K959=\"\",\"\",'1. Order'!K959)","v":""},{"$f":"IF('1. Order'!M959=\"\",\"\",'1. Order'!M959)","v":""},null,null,{"$f":"IF('1. Order'!AS959=\"\",\"\",'1. Order'!AS959)","v":""},{"$f":"IF('1. Order'!AF959=\"\",\"\",'1. Order'!AF959)","v":""}]
[{"$f":"IF('1. Order'!B960=\"\",\"\",'1. Order'!B960)","v":""},{"$f":"IF('1. Order'!I960=\"\",\"\",'1. Order'!I960)","v":""},{"$f":"IF('1. Order'!J960=\"\",\"\",'1. Order'!J960)","v":""},{"$f":"IF('1. Order'!K960=\"\",\"\",'1. Order'!K960)","v":""},{"$f":"IF('1. Order'!M960=\"\",\"\",'1. Order'!M960)","v":""},null,null,{"$f":"IF('1. Order'!AS960=\"\",\"\",'1. Order'!AS960)","v":""},{"$f":"IF('1. Order'!AF960=\"\",\"\",'1. Order'!AF960)","v":""}]
[{"$f":"IF('1. Order'!B961=\"\",\"\",'1. Order'!B961)","v":""},{"$f":"IF('1. Order'!I961=\"\",\"\",'1. Order'!I961)","v":""},{"$f":"IF('1. Order'!J961=\"\",\"\",'1. Order'!J961)","v":""},{"$f":"IF('1. Order'!K961=\"\",\"\",'1. Order'!K961)","v":""},{"$f":"IF('1. Order'!M961=\"\",\"\",'1. Order'!M961)","v":""},null,null,{"$f":"IF('1. Order'!AS961=\"\",\"\",'1. Order'!AS961)","v":""},{"$f":"IF('1. Order'!AF961=\"\",\"\",'1. Order'!AF961)","v":""}]
[{"$f":"IF('1. Order'!B962=\"\",\"\",'1. Order'!B962)","v":""},{"$f":"IF('1. Order'!I962=\"\",\"\",'1. Order'!I962)","v":""},{"$f":"IF('1. Order'!J962=\"\",\"\",'1. Order'!J962)","v":""},{"$f":"IF('1. Order'!K962=\"\",\"\",'1. Order'!K962)","v":""},{"$f":"IF('1. Order'!M962=\"\",\"\",'1. Order'!M962)","v":""},null,null,{"$f":"IF('1. Order'!AS962=\"\",\"\",'1. Order'!AS962)","v":""},{"$f":"IF('1. Order'!AF962=\"\",\"\",'1. Order'!AF962)","v":""}]
[{"$f":"IF('1. Order'!B963=\"\",\"\",'1. Order'!B963)","v":""},{"$f":"IF('1. Order'!I963=\"\",\"\",'1. Order'!I963)","v":""},{"$f":"IF('1. Order'!J963=\"\",\"\",'1. Order'!J963)","v":""},{"$f":"IF('1. Order'!K963=\"\",\"\",'1. Order'!K963)","v":""},{"$f":"IF('1. Order'!M963=\"\",\"\",'1. Order'!M963)","v":""},null,null,{"$f":"IF('1. Order'!AS963=\"\",\"\",'1. Order'!AS963)","v":""},{"$f":"IF('1. Order'!AF963=\"\",\"\",'1. Order'!AF963)","v":""}]
[{"$f":"IF('1. Order'!B964=\"\",\"\",'1. Order'!B964)","v":""},{"$f":"IF('1. Order'!I964=\"\",\"\",'1. Order'!I964)","v":""},{"$f":"IF('1. Order'!J964=\"\",\"\",'1. Order'!J964)","v":""},{"$f":"IF('1. Order'!K964=\"\",\"\",'1. Order'!K964)","v":""},{"$f":"IF('1. Order'!M964=\"\",\"\",'1. Order'!M964)","v":""},null,null,{"$f":"IF('1. Order'!AS964=\"\",\"\",'1. Order'!AS964)","v":""},{"$f":"IF('1. Order'!AF964=\"\",\"\",'1. Order'!AF964)","v":""}]
[{"$f":"IF('1. Order'!B965=\"\",\"\",'1. Order'!B965)","v":""},{"$f":"IF('1. Order'!I965=\"\",\"\",'1. Order'!I965)","v":""},{"$f":"IF('1. Order'!J965=\"\",\"\",'1. Order'!J965)","v":""},{"$f":"IF('1. Order'!K965=\"\",\"\",'1. Order'!K965)","v":""},{"$f":"IF('1. Order'!M965=\"\",\"\",'1. Order'!M965)","v":""},null,null,{"$f":"IF('1. Order'!AS965=\"\",\"\",'1. Order'!AS965)","v":""},{"$f":"IF('1. Order'!AF965=\"\",\"\",'1. Order'!AF965)","v":""}]
[{"$f":"IF('1. Order'!B966=\"\",\"\",'1. Order'!B966)","v":""},{"$f":"IF('1. Order'!I966=\"\",\"\",'1. Order'!I966)","v":""},{"$f":"IF('1. Order'!J966=\"\",\"\",'1. Order'!J966)","v":""},{"$f":"IF('1. Order'!K966=\"\",\"\",'1. Order'!K966)","v":""},{"$f":"IF('1. Order'!M966=\"\",\"\",'1. Order'!M966)","v":""},null,null,{"$f":"IF('1. Order'!AS966=\"\",\"\",'1. Order'!AS966)","v":""},{"$f":"IF('1. Order'!AF966=\"\",\"\",'1. Order'!AF966)","v":""}]
[{"$f":"IF('1. Order'!B967=\"\",\"\",'1. Order'!B967)","v":""},{"$f":"IF('1. Order'!I967=\"\",\"\",'1. Order'!I967)","v":""},{"$f":"IF('1. Order'!J967=\"\",\"\",'1. Order'!J967)","v":""},{"$f":"IF('1. Order'!K967=\"\",\"\",'1. Order'!K967)","v":""},{"$f":"IF('1. Order'!M967=\"\",\"\",'1. Order'!M967)","v":""},null,null,{"$f":"IF('1. Order'!AS967=\"\",\"\",'1. Order'!AS967)","v":""},{"$f":"IF('1. Order'!AF967=\"\",\"\",'1. Order'!AF967)","v":""}]
[{"$f":"IF('1. Order'!B968=\"\",\"\",'1. Order'!B968)","v":""},{"$f":"IF('1. Order'!I968=\"\",\"\",'1. Order'!I968)","v":""},{"$f":"IF('1. Order'!J968=\"\",\"\",'1. Order'!J968)","v":""},{"$f":"IF('1. Order'!K968=\"\",\"\",'1. Order'!K968)","v":""},{"$f":"IF('1. Order'!M968=\"\",\"\",'1. Order'!M968)","v":""},null,null,{"$f":"IF('1. Order'!AS968=\"\",\"\",'1. Order'!AS968)","v":""},{"$f":"IF('1. Order'!AF968=\"\",\"\",'1. Order'!AF968)","v":""}]
[{"$f":"IF('1. Order'!B969=\"\",\"\",'1. Order'!B969)","v":""},{"$f":"IF('1. Order'!I969=\"\",\"\",'1. Order'!I969)","v":""},{"$f":"IF('1. Order'!J969=\"\",\"\",'1. Order'!J969)","v":""},{"$f":"IF('1. Order'!K969=\"\",\"\",'1. Order'!K969)","v":""},{"$f":"IF('1. Order'!M969=\"\",\"\",'1. Order'!M969)","v":""},null,null,{"$f":"IF('1. Order'!AS969=\"\",\"\",'1. Order'!AS969)","v":""},{"$f":"IF('1. Order'!AF969=\"\",\"\",'1. Order'!AF969)","v":""}]
[{"$f":"IF('1. Order'!B970=\"\",\"\",'1. Order'!B970)","v":""},{"$f":"IF('1. Order'!I970=\"\",\"\",'1. Order'!I970)","v":""},{"$f":"IF('1. Order'!J970=\"\",\"\",'1. Order'!J970)","v":""},{"$f":"IF('1. Order'!K970=\"\",\"\",'1. Order'!K970)","v":""},{"$f":"IF('1. Order'!M970=\"\",\"\",'1. Order'!M970)","v":""},null,null,{"$f":"IF('1. Order'!AS970=\"\",\"\",'1. Order'!AS970)","v":""},{"$f":"IF('1. Order'!AF970=\"\",\"\",'1. Order'!AF970)","v":""}]
[{"$f":"IF('1. Order'!B971=\"\",\"\",'1. Order'!B971)","v":""},{"$f":"IF('1. Order'!I971=\"\",\"\",'1. Order'!I971)","v":""},{"$f":"IF('1. Order'!J971=\"\",\"\",'1. Order'!J971)","v":""},{"$f":"IF('1. Order'!K971=\"\",\"\",'1. Order'!K971)","v":""},{"$f":"IF('1. Order'!M971=\"\",\"\",'1. Order'!M971)","v":""},null,null,{"$f":"IF('1. Order'!AS971=\"\",\"\",'1. Order'!AS971)","v":""},{"$f":"IF('1. Order'!AF971=\"\",\"\",'1. Order'!AF971)","v":""}]
[{"$f":"IF('1. Order'!B972=\"\",\"\",'1. Order'!B972)","v":""},{"$f":"IF('1. Order'!I972=\"\",\"\",'1. Order'!I972)","v":""},{"$f":"IF('1. Order'!J972=\"\",\"\",'1. Order'!J972)","v":""},{"$f":"IF('1. Order'!K972=\"\",\"\",'1. Order'!K972)","v":""},{"$f":"IF('1. Order'!M972=\"\",\"\",'1. Order'!M972)","v":""},null,null,{"$f":"IF('1. Order'!AS972=\"\",\"\",'1. Order'!AS972)","v":""},{"$f":"IF('1. Order'!AF972=\"\",\"\",'1. Order'!AF972)","v":""}]
[{"$f":"IF('1. Order'!B973=\"\",\"\",'1. Order'!B973)","v":""},{"$f":"IF('1. Order'!I973=\"\",\"\",'1. Order'!I973)","v":""},{"$f":"IF('1. Order'!J973=\"\",\"\",'1. Order'!J973)","v":""},{"$f":"IF('1. Order'!K973=\"\",\"\",'1. Order'!K973)","v":""},{"$f":"IF('1. Order'!M973=\"\",\"\",'1. Order'!M973)","v":""},null,null,{"$f":"IF('1. Order'!AS973=\"\",\"\",'1. Order'!AS973)","v":""},{"$f":"IF('1. Order'!AF973=\"\",\"\",'1. Order'!AF973)","v":""}]
[{"$f":"IF('1. Order'!B974=\"\",\"\",'1. Order'!B974)","v":""},{"$f":"IF('1. Order'!I974=\"\",\"\",'1. Order'!I974)","v":""},{"$f":"IF('1. Order'!J974=\"\",\"\",'1. Order'!J974)","v":""},{"$f":"IF('1. Order'!K974=\"\",\"\",'1. Order'!K974)","v":""},{"$f":"IF('1. Order'!M974=\"\",\"\",'1. Order'!M974)","v":""},null,null,{"$f":"IF('1. Order'!AS974=\"\",\"\",'1. Order'!AS974)","v":""},{"$f":"IF('1. Order'!AF974=\"\",\"\",'1. Order'!AF974)","v":""}]
[{"$f":"IF('1. Order'!B975=\"\",\"\",'1. Order'!B975)","v":""},{"$f":"IF('1. Order'!I975=\"\",\"\",'1. Order'!I975)","v":""},{"$f":"IF('1. Order'!J975=\"\",\"\",'1. Order'!J975)","v":""},{"$f":"IF('1. Order'!K975=\"\",\"\",'1. Order'!K975)","v":""},{"$f":"IF('1. Order'!M975=\"\",\"\",'1. Order'!M975)","v":""},null,null,{"$f":"IF('1. Order'!AS975=\"\",\"\",'1. Order'!AS975)","v":""},{"$f":"IF('1. Order'!AF975=\"\",\"\",'1. Order'!AF975)","v":""}]
[{"$f":"IF('1. Order'!B976=\"\",\"\",'1. Order'!B976)","v":""},{"$f":"IF('1. Order'!I976=\"\",\"\",'1. Order'!I976)","v":""},{"$f":"IF('1. Order'!J976=\"\",\"\",'1. Order'!J976)","v":""},{"$f":"IF('1. Order'!K976=\"\",\"\",'1. Order'!K976)","v":""},{"$f":"IF('1. Order'!M976=\"\",\"\",'1. Order'!M976)","v":""},null,null,{"$f":"IF('1. Order'!AS976=\"\",\"\",'1. Order'!AS976)","v":""},{"$f":"IF('1. Order'!AF976=\"\",\"\",'1. Order'!AF976)","v":""}]
[{"$f":"IF('1. Order'!B977=\"\",\"\",'1. Order'!B977)","v":""},{"$f":"IF('1. Order'!I977=\"\",\"\",'1. Order'!I977)","v":""},{"$f":"IF('1. Order'!J977=\"\",\"\",'1. Order'!J977)","v":""},{"$f":"IF('1. Order'!K977=\"\",\"\",'1. Order'!K977)","v":""},{"$f":"IF('1. Order'!M977=\"\",\"\",'1. Order'!M977)","v":""},null,null,{"$f":"IF('1. Order'!AS977=\"\",\"\",'1. Order'!AS977)","v":""},{"$f":"IF('1. Order'!AF977=\"\",\"\",'1. Order'!AF977)","v":""}]
[{"$f":"IF('1. Order'!B978=\"\",\"\",'1. Order'!B978)","v":""},{"$f":"IF('1. Order'!I978=\"\",\"\",'1. Order'!I978)","v":""},{"$f":"IF('1. Order'!J978=\"\",\"\",'1. Order'!J978)","v":""},{"$f":"IF('1. Order'!K978=\"\",\"\",'1. Order'!K978)","v":""},{"$f":"IF('1. Order'!M978=\"\",\"\",'1. Order'!M978)","v":""},null,null,{"$f":"IF('1. Order'!AS978=\"\",\"\",'1. Order'!AS978)","v":""},{"$f":"IF('1. Order'!AF978=\"\",\"\",'1. Order'!AF978)","v":""}]
[{"$f":"IF('1. Order'!B979=\"\",\"\",'1. Order'!B979)","v":""},{"$f":"IF('1. Order'!I979=\"\",\"\",'1. Order'!I979)","v":""},{"$f":"IF('1. Order'!J979=\"\",\"\",'1. Order'!J979)","v":""},{"$f":"IF('1. Order'!K979=\"\",\"\",'1. Order'!K979)","v":""},{"$f":"IF('1. Order'!M979=\"\",\"\",'1. Order'!M979)","v":""},null,null,{"$f":"IF('1. Order'!AS979=\"\",\"\",'1. Order'!AS979)","v":""},{"$f":"IF('1. Order'!AF979=\"\",\"\",'1. Order'!AF979)","v":""}]
[{"$f":"IF('1. Order'!B980=\"\",\"\",'1. Order'!B980)","v":""},{"$f":"IF('1. Order'!I980=\"\",\"\",'1. Order'!I980)","v":""},{"$f":"IF('1. Order'!J980=\"\",\"\",'1. Order'!J980)","v":""},{"$f":"IF('1. Order'!K980=\"\",\"\",'1. Order'!K980)","v":""},{"$f":"IF('1. Order'!M980=\"\",\"\",'1. Order'!M980)","v":""},null,null,{"$f":"IF('1. Order'!AS980=\"\",\"\",'1. Order'!AS980)","v":""},{"$f":"IF('1. Order'!AF980=\"\",\"\",'1. Order'!AF980)","v":""}]
[{"$f":"IF('1. Order'!B981=\"\",\"\",'1. Order'!B981)","v":""},{"$f":"IF('1. Order'!I981=\"\",\"\",'1. Order'!I981)","v":""},{"$f":"IF('1. Order'!J981=\"\",\"\",'1. Order'!J981)","v":""},{"$f":"IF('1. Order'!K981=\"\",\"\",'1. Order'!K981)","v":""},{"$f":"IF('1. Order'!M981=\"\",\"\",'1. Order'!M981)","v":""},null,null,{"$f":"IF('1. Order'!AS981=\"\",\"\",'1. Order'!AS981)","v":""},{"$f":"IF('1. Order'!AF981=\"\",\"\",'1. Order'!AF981)","v":""}]
[{"$f":"IF('1. Order'!B982=\"\",\"\",'1. Order'!B982)","v":""},{"$f":"IF('1. Order'!I982=\"\",\"\",'1. Order'!I982)","v":""},{"$f":"IF('1. Order'!J982=\"\",\"\",'1. Order'!J982)","v":""},{"$f":"IF('1. Order'!K982=\"\",\"\",'1. Order'!K982)","v":""},{"$f":"IF('1. Order'!M982=\"\",\"\",'1. Order'!M982)","v":""},null,null,{"$f":"IF('1. Order'!AS982=\"\",\"\",'1. Order'!AS982)","v":""},{"$f":"IF('1. Order'!AF982=\"\",\"\",'1. Order'!AF982)","v":""}]
[{"$f":"IF('1. Order'!B983=\"\",\"\",'1. Order'!B983)","v":""},{"$f":"IF('1. Order'!I983=\"\",\"\",'1. Order'!I983)","v":""},{"$f":"IF('1. Order'!J983=\"\",\"\",'1. Order'!J983)","v":""},{"$f":"IF('1. Order'!K983=\"\",\"\",'1. Order'!K983)","v":""},{"$f":"IF('1. Order'!M983=\"\",\"\",'1. Order'!M983)","v":""},null,null,{"$f":"IF('1. Order'!AS983=\"\",\"\",'1. Order'!AS983)","v":""},{"$f":"IF('1. Order'!AF983=\"\",\"\",'1. Order'!AF983)","v":""}]
[{"$f":"IF('1. Order'!B984=\"\",\"\",'1. Order'!B984)","v":""},{"$f":"IF('1. Order'!I984=\"\",\"\",'1. Order'!I984)","v":""},{"$f":"IF('1. Order'!J984=\"\",\"\",'1. Order'!J984)","v":""},{"$f":"IF('1. Order'!K984=\"\",\"\",'1. Order'!K984)","v":""},{"$f":"IF('1. Order'!M984=\"\",\"\",'1. Order'!M984)","v":""},null,null,{"$f":"IF('1. Order'!AS984=\"\",\"\",'1. Order'!AS984)","v":""},{"$f":"IF('1. Order'!AF984=\"\",\"\",'1. Order'!AF984)","v":""}]
[{"$f":"IF('1. Order'!B985=\"\",\"\",'1. Order'!B985)","v":""},{"$f":"IF('1. Order'!I985=\"\",\"\",'1. Order'!I985)","v":""},{"$f":"IF('1. Order'!J985=\"\",\"\",'1. Order'!J985)","v":""},{"$f":"IF('1. Order'!K985=\"\",\"\",'1. Order'!K985)","v":""},{"$f":"IF('1. Order'!M985=\"\",\"\",'1. Order'!M985)","v":""},null,null,{"$f":"IF('1. Order'!AS985=\"\",\"\",'1. Order'!AS985)","v":""},{"$f":"IF('1. Order'!AF985=\"\",\"\",'1. Order'!AF985)","v":""}]
[{"$f":"IF('1. Order'!B986=\"\",\"\",'1. Order'!B986)","v":""},{"$f":"IF('1. Order'!I986=\"\",\"\",'1. Order'!I986)","v":""},{"$f":"IF('1. Order'!J986=\"\",\"\",'1. Order'!J986)","v":""},{"$f":"IF('1. Order'!K986=\"\",\"\",'1. Order'!K986)","v":""},{"$f":"IF('1. Order'!M986=\"\",\"\",'1. Order'!M986)","v":""},null,null,{"$f":"IF('1. Order'!AS986=\"\",\"\",'1. Order'!AS986)","v":""},{"$f":"IF('1. Order'!AF986=\"\",\"\",'1. Order'!AF986)","v":""}]
[{"$f":"IF('1. Order'!B987=\"\",\"\",'1. Order'!B987)","v":""},{"$f":"IF('1. Order'!I987=\"\",\"\",'1. Order'!I987)","v":""},{"$f":"IF('1. Order'!J987=\"\",\"\",'1. Order'!J987)","v":""},{"$f":"IF('1. Order'!K987=\"\",\"\",'1. Order'!K987)","v":""},{"$f":"IF('1. Order'!M987=\"\",\"\",'1. Order'!M987)","v":""},null,null,{"$f":"IF('1. Order'!AS987=\"\",\"\",'1. Order'!AS987)","v":""},{"$f":"IF('1. Order'!AF987=\"\",\"\",'1. Order'!AF987)","v":""}]
[{"$f":"IF('1. Order'!B988=\"\",\"\",'1. Order'!B988)","v":""},{"$f":"IF('1. Order'!I988=\"\",\"\",'1. Order'!I988)","v":""},{"$f":"IF('1. Order'!J988=\"\",\"\",'1. Order'!J988)","v":""},{"$f":"IF('1. Order'!K988=\"\",\"\",'1. Order'!K988)","v":""},{"$f":"IF('1. Order'!M988=\"\",\"\",'1. Order'!M988)","v":""},null,null,{"$f":"IF('1. Order'!AS988=\"\",\"\",'1. Order'!AS988)","v":""},{"$f":"IF('1. Order'!AF988=\"\",\"\",'1. Order'!AF988)","v":""}]
[{"$f":"IF('1. Order'!B989=\"\",\"\",'1. Order'!B989)","v":""},{"$f":"IF('1. Order'!I989=\"\",\"\",'1. Order'!I989)","v":""},{"$f":"IF('1. Order'!J989=\"\",\"\",'1. Order'!J989)","v":""},{"$f":"IF('1. Order'!K989=\"\",\"\",'1. Order'!K989)","v":""},{"$f":"IF('1. Order'!M989=\"\",\"\",'1. Order'!M989)","v":""},null,null,{"$f":"IF('1. Order'!AS989=\"\",\"\",'1. Order'!AS989)","v":""},{"$f":"IF('1. Order'!AF989=\"\",\"\",'1. Order'!AF989)","v":""}]
[{"$f":"IF('1. Order'!B990=\"\",\"\",'1. Order'!B990)","v":""},{"$f":"IF('1. Order'!I990=\"\",\"\",'1. Order'!I990)","v":""},{"$f":"IF('1. Order'!J990=\"\",\"\",'1. Order'!J990)","v":""},{"$f":"IF('1. Order'!K990=\"\",\"\",'1. Order'!K990)","v":""},{"$f":"IF('1. Order'!M990=\"\",\"\",'1. Order'!M990)","v":""},null,null,{"$f":"IF('1. Order'!AS990=\"\",\"\",'1. Order'!AS990)","v":""},{"$f":"IF('1. Order'!AF990=\"\",\"\",'1. Order'!AF990)","v":""}]
[{"$f":"IF('1. Order'!B991=\"\",\"\",'1. Order'!B991)","v":""},{"$f":"IF('1. Order'!I991=\"\",\"\",'1. Order'!I991)","v":""},{"$f":"IF('1. Order'!J991=\"\",\"\",'1. Order'!J991)","v":""},{"$f":"IF('1. Order'!K991=\"\",\"\",'1. Order'!K991)","v":""},{"$f":"IF('1. Order'!M991=\"\",\"\",'1. Order'!M991)","v":""},null,null,{"$f":"IF('1. Order'!AS991=\"\",\"\",'1. Order'!AS991)","v":""},{"$f":"IF('1. Order'!AF991=\"\",\"\",'1. Order'!AF991)","v":""}]
[{"$f":"IF('1. Order'!B992=\"\",\"\",'1. Order'!B992)","v":""},{"$f":"IF('1. Order'!I992=\"\",\"\",'1. Order'!I992)","v":""},{"$f":"IF('1. Order'!J992=\"\",\"\",'1. Order'!J992)","v":""},{"$f":"IF('1. Order'!K992=\"\",\"\",'1. Order'!K992)","v":""},{"$f":"IF('1. Order'!M992=\"\",\"\",'1. Order'!M992)","v":""},null,null,{"$f":"IF('1. Order'!AS992=\"\",\"\",'1. Order'!AS992)","v":""},{"$f":"IF('1. Order'!AF992=\"\",\"\",'1. Order'!AF992)","v":""}]
[{"$f":"IF('1. Order'!B993=\"\",\"\",'1. Order'!B993)","v":""},{"$f":"IF('1. Order'!I993=\"\",\"\",'1. Order'!I993)","v":""},{"$f":"IF('1. Order'!J993=\"\",\"\",'1. Order'!J993)","v":""},{"$f":"IF('1. Order'!K993=\"\",\"\",'1. Order'!K993)","v":""},{"$f":"IF('1. Order'!M993=\"\",\"\",'1. Order'!M993)","v":""},null,null,{"$f":"IF('1. Order'!AS993=\"\",\"\",'1. Order'!AS993)","v":""},{"$f":"IF('1. Order'!AF993=\"\",\"\",'1. Order'!AF993)","v":""}]
[{"$f":"IF('1. Order'!B994=\"\",\"\",'1. Order'!B994)","v":""},{"$f":"IF('1. Order'!I994=\"\",\"\",'1. Order'!I994)","v":""},{"$f":"IF('1. Order'!J994=\"\",\"\",'1. Order'!J994)","v":""},{"$f":"IF('1. Order'!K994=\"\",\"\",'1. Order'!K994)","v":""},{"$f":"IF('1. Order'!M994=\"\",\"\",'1. Order'!M994)","v":""},null,null,{"$f":"IF('1. Order'!AS994=\"\",\"\",'1. Order'!AS994)","v":""},{"$f":"IF('1. Order'!AF994=\"\",\"\",'1. Order'!AF994)","v":""}]
[{"$f":"IF('1. Order'!B995=\"\",\"\",'1. Order'!B995)","v":""},{"$f":"IF('1. Order'!I995=\"\",\"\",'1. Order'!I995)","v":""},{"$f":"IF('1. Order'!J995=\"\",\"\",'1. Order'!J995)","v":""},{"$f":"IF('1. Order'!K995=\"\",\"\",'1. Order'!K995)","v":""},{"$f":"IF('1. Order'!M995=\"\",\"\",'1. Order'!M995)","v":""},null,null,{"$f":"IF('1. Order'!AS995=\"\",\"\",'1. Order'!AS995)","v":""},{"$f":"IF('1. Order'!AF995=\"\",\"\",'1. Order'!AF995)","v":""}]
[{"$f":"IF('1. Order'!B996=\"\",\"\",'1. Order'!B996)","v":""},{"$f":"IF('1. Order'!I996=\"\",\"\",'1. Order'!I996)","v":""},{"$f":"IF('1. Order'!J996=\"\",\"\",'1. Order'!J996)","v":""},{"$f":"IF('1. Order'!K996=\"\",\"\",'1. Order'!K996)","v":""},{"$f":"IF('1. Order'!M996=\"\",\"\",'1. Order'!M996)","v":""},null,null,{"$f":"IF('1. Order'!AS996=\"\",\"\",'1. Order'!AS996)","v":""},{"$f":"IF('1. Order'!AF996=\"\",\"\",'1. Order'!AF996)","v":""}]
[{"$f":"IF('1. Order'!B997=\"\",\"\",'1. Order'!B997)","v":""},{"$f":"IF('1. Order'!I997=\"\",\"\",'1. Order'!I997)","v":""},{"$f":"IF('1. Order'!J997=\"\",\"\",'1. Order'!J997)","v":""},{"$f":"IF('1. Order'!K997=\"\",\"\",'1. Order'!K997)","v":""},{"$f":"IF('1. Order'!M997=\"\",\"\",'1. Order'!M997)","v":""},null,null,{"$f":"IF('1. Order'!AS997=\"\",\"\",'1. Order'!AS997)","v":""},{"$f":"IF('1. Order'!AF997=\"\",\"\",'1. Order'!AF997)","v":""}]
[{"$f":"IF('1. Order'!B998=\"\",\"\",'1. Order'!B998)","v":""},{"$f":"IF('1. Order'!I998=\"\",\"\",'1. Order'!I998)","v":""},{"$f":"IF('1. Order'!J998=\"\",\"\",'1. Order'!J998)","v":""},{"$f":"IF('1. Order'!K998=\"\",\"\",'1. Order'!K998)","v":""},{"$f":"IF('1. Order'!M998=\"\",\"\",'1. Order'!M998)","v":""},null,null,{"$f":"IF('1. Order'!AS998=\"\",\"\",'1. Order'!AS998)","v":""},{"$f":"IF('1. Order'!AF998=\"\",\"\",'1. Order'!AF998)","v":""}]
[{"$f":"IF('1. Order'!B999=\"\",\"\",'1. Order'!B999)","v":""},{"$f":"IF('1. Order'!I999=\"\",\"\",'1. Order'!I999)","v":""},{"$f":"IF('1. Order'!J999=\"\",\"\",'1. Order'!J999)","v":""},{"$f":"IF('1. Order'!K999=\"\",\"\",'1. Order'!K999)","v":""},{"$f":"IF('1. Order'!M999=\"\",\"\",'1. Order'!M999)","v":""},null,null,{"$f":"IF('1. Order'!AS999=\"\",\"\",'1. Order'!AS999)","v":""},{"$f":"IF('1. Order'!AF999=\"\",\"\",'1. Order'!AF999)","v":""}]
[{"$f":"IF('1. Order'!B1000=\"\",\"\",'1. Order'!B1000)","v":""},{"$f":"IF('1. Order'!I1000=\"\",\"\",'1. Order'!I1000)","v":""},{"$f":"IF('1. Order'!J1000=\"\",\"\",'1. Order'!J1000)","v":""},{"$f":"IF('1. Order'!K1000=\"\",\"\",'1. Order'!K1000)","v":""},{"$f":"IF('1. Order'!M1000=\"\",\"\",'1. Order'!M1000)","v":""},null,null,{"$f":"IF('1. Order'!AS1000=\"\",\"\",'1. Order'!AS1000)","v":""},{"$f":"IF('1. Order'!AF1000=\"\",\"\",'1. Order'!AF1000)","v":""}]
[{"$f":"IF('1. Order'!B1001=\"\",\"\",'1. Order'!B1001)","v":""},{"$f":"IF('1. Order'!I1001=\"\",\"\",'1. Order'!I1001)","v":""},{"$f":"IF('1. Order'!J1001=\"\",\"\",'1. Order'!J1001)","v":""},{"$f":"IF('1. Order'!K1001=\"\",\"\",'1. Order'!K1001)","v":""},{"$f":"IF('1. Order'!M1001=\"\",\"\",'1. Order'!M1001)","v":""},null,null,{"$f":"IF('1. Order'!AS1001=\"\",\"\",'1. Order'!AS1001)","v":""},{"$f":"IF('1. Order'!AF1001=\"\",\"\",'1. Order'!AF1001)","v":""}]
[{"$f":"IF('1. Order'!B1002=\"\",\"\",'1. Order'!B1002)","v":""},{"$f":"IF('1. Order'!I1002=\"\",\"\",'1. Order'!I1002)","v":""},{"$f":"IF('1. Order'!J1002=\"\",\"\",'1. Order'!J1002)","v":""},{"$f":"IF('1. Order'!K1002=\"\",\"\",'1. Order'!K1002)","v":""},{"$f":"IF('1. Order'!M1002=\"\",\"\",'1. Order'!M1002)","v":""},null,null,{"$f":"IF('1. Order'!AS1002=\"\",\"\",'1. Order'!AS1002)","v":""},{"$f":"IF('1. Order'!AF1002=\"\",\"\",'1. Order'!AF1002)","v":""}]
[{"$f":"IF('1. Order'!B1003=\"\",\"\",'1. Order'!B1003)","v":""},{"$f":"IF('1. Order'!I1003=\"\",\"\",'1. Order'!I1003)","v":""},{"$f":"IF('1. Order'!J1003=\"\",\"\",'1. Order'!J1003)","v":""},{"$f":"IF('1. Order'!K1003=\"\",\"\",'1. Order'!K1003)","v":""},{"$f":"IF('1. Order'!M1003=\"\",\"\",'1. Order'!M1003)","v":""},null,null,{"$f":"IF('1. Order'!AS1003=\"\",\"\",'1. Order'!AS1003)","v":""},{"$f":"IF('1. Order'!AF1003=\"\",\"\",'1. Order'!AF1003)","v":""}]
[{"$f":"IF('1. Order'!B1004=\"\",\"\",'1. Order'!B1004)","v":""},{"$f":"IF('1. Order'!I1004=\"\",\"\",'1. Order'!I1004)","v":""},{"$f":"IF('1. Order'!J1004=\"\",\"\",'1. Order'!J1004)","v":""},{"$f":"IF('1. Order'!K1004=\"\",\"\",'1. Order'!K1004)","v":""},{"$f":"IF('1. Order'!M1004=\"\",\"\",'1. Order'!M1004)","v":""},null,null,{"$f":"IF('1. Order'!AS1004=\"\",\"\",'1. Order'!AS1004)","v":""},{"$f":"IF('1. Order'!AF1004=\"\",\"\",'1. Order'!AF1004)","v":""}]
[{"$f":"IF('1. Order'!B1005=\"\",\"\",'1. Order'!B1005)","v":""},{"$f":"IF('1. Order'!I1005=\"\",\"\",'1. Order'!I1005)","v":""},{"$f":"IF('1. Order'!J1005=\"\",\"\",'1. Order'!J1005)","v":""},{"$f":"IF('1. Order'!K1005=\"\",\"\",'1. Order'!K1005)","v":""},{"$f":"IF('1. Order'!M1005=\"\",\"\",'1. Order'!M1005)","v":""},null,null,{"$f":"IF('1. Order'!AS1005=\"\",\"\",'1. Order'!AS1005)","v":""},{"$f":"IF('1. Order'!AF1005=\"\",\"\",'1. Order'!AF1005)","v":""}]
[{"$f":"IF('1. Order'!B1006=\"\",\"\",'1. Order'!B1006)","v":""},{"$f":"IF('1. Order'!I1006=\"\",\"\",'1. Order'!I1006)","v":""},{"$f":"IF('1. Order'!J1006=\"\",\"\",'1. Order'!J1006)","v":""},{"$f":"IF('1. Order'!K1006=\"\",\"\",'1. Order'!K1006)","v":""},{"$f":"IF('1. Order'!M1006=\"\",\"\",'1. Order'!M1006)","v":""},null,null,{"$f":"IF('1. Order'!AS1006=\"\",\"\",'1. Order'!AS1006)","v":""},{"$f":"IF('1. Order'!AF1006=\"\",\"\",'1. Order'!AF1006)","v":""}]
[{"$f":"IF('1. Order'!B1007=\"\",\"\",'1. Order'!B1007)","v":""},{"$f":"IF('1. Order'!I1007=\"\",\"\",'1. Order'!I1007)","v":""},{"$f":"IF('1. Order'!J1007=\"\",\"\",'1. Order'!J1007)","v":""},{"$f":"IF('1. Order'!K1007=\"\",\"\",'1. Order'!K1007)","v":""},{"$f":"IF('1. Order'!M1007=\"\",\"\",'1. Order'!M1007)","v":""},null,null,{"$f":"IF('1. Order'!AS1007=\"\",\"\",'1. Order'!AS1007)","v":""},{"$f":"IF('1. Order'!AF1007=\"\",\"\",'1. Order'!AF1007)","v":""}]
[{"$f":"IF('1. Order'!B1008=\"\",\"\",'1. Order'!B1008)","v":""},{"$f":"IF('1. Order'!I1008=\"\",\"\",'1. Order'!I1008)","v":""},{"$f":"IF('1. Order'!J1008=\"\",\"\",'1. Order'!J1008)","v":""},{"$f":"IF('1. Order'!K1008=\"\",\"\",'1. Order'!K1008)","v":""},{"$f":"IF('1. Order'!M1008=\"\",\"\",'1. Order'!M1008)","v":""},null,null,{"$f":"IF('1. Order'!AS1008=\"\",\"\",'1. Order'!AS1008)","v":""},{"$f":"IF('1. Order'!AF1008=\"\",\"\",'1. Order'!AF1008)","v":""}]
[{"$f":"IF('1. Order'!B1009=\"\",\"\",'1. Order'!B1009)","v":""},{"$f":"IF('1. Order'!I1009=\"\",\"\",'1. Order'!I1009)","v":""},{"$f":"IF('1. Order'!J1009=\"\",\"\",'1. Order'!J1009)","v":""},{"$f":"IF('1. Order'!K1009=\"\",\"\",'1. Order'!K1009)","v":""},{"$f":"IF('1. Order'!M1009=\"\",\"\",'1. Order'!M1009)","v":""},null,null,{"$f":"IF('1. Order'!AS1009=\"\",\"\",'1. Order'!AS1009)","v":""},{"$f":"IF('1. Order'!AF1009=\"\",\"\",'1. Order'!AF1009)","v":""}]
[{"$f":"IF('1. Order'!B1010=\"\",\"\",'1. Order'!B1010)","v":""},{"$f":"IF('1. Order'!I1010=\"\",\"\",'1. Order'!I1010)","v":""},{"$f":"IF('1. Order'!J1010=\"\",\"\",'1. Order'!J1010)","v":""},{"$f":"IF('1. Order'!K1010=\"\",\"\",'1. Order'!K1010)","v":""},{"$f":"IF('1. Order'!M1010=\"\",\"\",'1. Order'!M1010)","v":""},null,null,{"$f":"IF('1. Order'!AS1010=\"\",\"\",'1. Order'!AS1010)","v":""},{"$f":"IF('1. Order'!AF1010=\"\",\"\",'1. Order'!AF1010)","v":""}]
[{"$f":"IF('1. Order'!B1011=\"\",\"\",'1. Order'!B1011)","v":""},{"$f":"IF('1. Order'!I1011=\"\",\"\",'1. Order'!I1011)","v":""},{"$f":"IF('1. Order'!J1011=\"\",\"\",'1. Order'!J1011)","v":""},{"$f":"IF('1. Order'!K1011=\"\",\"\",'1. Order'!K1011)","v":""},{"$f":"IF('1. Order'!M1011=\"\",\"\",'1. Order'!M1011)","v":""},null,null,{"$f":"IF('1. Order'!AS1011=\"\",\"\",'1. Order'!AS1011)","v":""},{"$f":"IF('1. Order'!AF1011=\"\",\"\",'1. Order'!AF1011)","v":""}]
[{"$f":"IF('1. Order'!B1012=\"\",\"\",'1. Order'!B1012)","v":""},{"$f":"IF('1. Order'!I1012=\"\",\"\",'1. Order'!I1012)","v":""},{"$f":"IF('1. Order'!J1012=\"\",\"\",'1. Order'!J1012)","v":""},{"$f":"IF('1. Order'!K1012=\"\",\"\",'1. Order'!K1012)","v":""},{"$f":"IF('1. Order'!M1012=\"\",\"\",'1. Order'!M1012)","v":""},null,null,{"$f":"IF('1. Order'!AS1012=\"\",\"\",'1. Order'!AS1012)","v":""},{"$f":"IF('1. Order'!AF1012=\"\",\"\",'1. Order'!AF1012)","v":""}]
[{"$f":"IF('1. Order'!B1013=\"\",\"\",'1. Order'!B1013)","v":""},{"$f":"IF('1. Order'!I1013=\"\",\"\",'1. Order'!I1013)","v":""},{"$f":"IF('1. Order'!J1013=\"\",\"\",'1. Order'!J1013)","v":""},{"$f":"IF('1. Order'!K1013=\"\",\"\",'1. Order'!K1013)","v":""},{"$f":"IF('1. Order'!M1013=\"\",\"\",'1. Order'!M1013)","v":""},null,null,{"$f":"IF('1. Order'!AS1013=\"\",\"\",'1. Order'!AS1013)","v":""},{"$f":"IF('1. Order'!AF1013=\"\",\"\",'1. Order'!AF1013)","v":""}]
[{"$f":"IF('1. Order'!B1014=\"\",\"\",'1. Order'!B1014)","v":""},{"$f":"IF('1. Order'!I1014=\"\",\"\",'1. Order'!I1014)","v":""},{"$f":"IF('1. Order'!J1014=\"\",\"\",'1. Order'!J1014)","v":""},{"$f":"IF('1. Order'!K1014=\"\",\"\",'1. Order'!K1014)","v":""},{"$f":"IF('1. Order'!M1014=\"\",\"\",'1. Order'!M1014)","v":""},null,null,{"$f":"IF('1. Order'!AS1014=\"\",\"\",'1. Order'!AS1014)","v":""},{"$f":"IF('1. Order'!AF1014=\"\",\"\",'1. Order'!AF1014)","v":""}]
[{"$f":"IF('1. Order'!B1015=\"\",\"\",'1. Order'!B1015)","v":""},{"$f":"IF('1. Order'!I1015=\"\",\"\",'1. Order'!I1015)","v":""},{"$f":"IF('1. Order'!J1015=\"\",\"\",'1. Order'!J1015)","v":""},{"$f":"IF('1. Order'!K1015=\"\",\"\",'1. Order'!K1015)","v":""},{"$f":"IF('1. Order'!M1015=\"\",\"\",'1. Order'!M1015)","v":""},null,null,{"$f":"IF('1. Order'!AS1015=\"\",\"\",'1. Order'!AS1015)","v":""},{"$f":"IF('1. Order'!AF1015=\"\",\"\",'1. Order'!AF1015)","v":""}]
[{"$f":"IF('1. Order'!B1016=\"\",\"\",'1. Order'!B1016)","v":""},{"$f":"IF('1. Order'!I1016=\"\",\"\",'1. Order'!I1016)","v":""},{"$f":"IF('1. Order'!J1016=\"\",\"\",'1. Order'!J1016)","v":""},{"$f":"IF('1. Order'!K1016=\"\",\"\",'1. Order'!K1016)","v":""},{"$f":"IF('1. Order'!M1016=\"\",\"\",'1. Order'!M1016)","v":""},null,null,{"$f":"IF('1. Order'!AS1016=\"\",\"\",'1. Order'!AS1016)","v":""},{"$f":"IF('1. Order'!AF1016=\"\",\"\",'1. Order'!AF1016)","v":""}]
[{"$f":"IF('1. Order'!B1017=\"\",\"\",'1. Order'!B1017)","v":""},{"$f":"IF('1. Order'!I1017=\"\",\"\",'1. Order'!I1017)","v":""},{"$f":"IF('1. Order'!J1017=\"\",\"\",'1. Order'!J1017)","v":""},{"$f":"IF('1. Order'!K1017=\"\",\"\",'1. Order'!K1017)","v":""},{"$f":"IF('1. Order'!M1017=\"\",\"\",'1. Order'!M1017)","v":""},null,null,{"$f":"IF('1. Order'!AS1017=\"\",\"\",'1. Order'!AS1017)","v":""},{"$f":"IF('1. Order'!AF1017=\"\",\"\",'1. Order'!AF1017)","v":""}]
[{"$f":"IF('1. Order'!B1018=\"\",\"\",'1. Order'!B1018)","v":""},{"$f":"IF('1. Order'!I1018=\"\",\"\",'1. Order'!I1018)","v":""},{"$f":"IF('1. Order'!J1018=\"\",\"\",'1. Order'!J1018)","v":""},{"$f":"IF('1. Order'!K1018=\"\",\"\",'1. Order'!K1018)","v":""},{"$f":"IF('1. Order'!M1018=\"\",\"\",'1. Order'!M1018)","v":""},null,null,{"$f":"IF('1. Order'!AS1018=\"\",\"\",'1. Order'!AS1018)","v":""},{"$f":"IF('1. Order'!AF1018=\"\",\"\",'1. Order'!AF1018)","v":""}]
[{"$f":"IF('1. Order'!B1019=\"\",\"\",'1. Order'!B1019)","v":""},{"$f":"IF('1. Order'!I1019=\"\",\"\",'1. Order'!I1019)","v":""},{"$f":"IF('1. Order'!J1019=\"\",\"\",'1. Order'!J1019)","v":""},{"$f":"IF('1. Order'!K1019=\"\",\"\",'1. Order'!K1019)","v":""},{"$f":"IF('1. Order'!M1019=\"\",\"\",'1. Order'!M1019)","v":""},null,null,{"$f":"IF('1. Order'!AS1019=\"\",\"\",'1. Order'!AS1019)","v":""},{"$f":"IF('1. Order'!AF1019=\"\",\"\",'1. Order'!AF1019)","v":""}]
[{"$f":"IF('1. Order'!B1020=\"\",\"\",'1. Order'!B1020)","v":""},{"$f":"IF('1. Order'!I1020=\"\",\"\",'1. Order'!I1020)","v":""},{"$f":"IF('1. Order'!J1020=\"\",\"\",'1. Order'!J1020)","v":""},{"$f":"IF('1. Order'!K1020=\"\",\"\",'1. Order'!K1020)","v":""},{"$f":"IF('1. Order'!M1020=\"\",\"\",'1. Order'!M1020)","v":""},null,null,{"$f":"IF('1. Order'!AS1020=\"\",\"\",'1. Order'!AS1020)","v":""},{"$f":"IF('1. Order'!AF1020=\"\",\"\",'1. Order'!AF1020)","v":""}]
[{"$f":"IF('1. Order'!B1021=\"\",\"\",'1. Order'!B1021)","v":""},{"$f":"IF('1. Order'!I1021=\"\",\"\",'1. Order'!I1021)","v":""},{"$f":"IF('1. Order'!J1021=\"\",\"\",'1. Order'!J1021)","v":""},{"$f":"IF('1. Order'!K1021=\"\",\"\",'1. Order'!K1021)","v":""},{"$f":"IF('1. Order'!M1021=\"\",\"\",'1. Order'!M1021)","v":""},null,null,{"$f":"IF('1. Order'!AS1021=\"\",\"\",'1. Order'!AS1021)","v":""},{"$f":"IF('1. Order'!AF1021=\"\",\"\",'1. Order'!AF1021)","v":""}]
[{"$f":"IF('1. Order'!B1022=\"\",\"\",'1. Order'!B1022)","v":""},{"$f":"IF('1. Order'!I1022=\"\",\"\",'1. Order'!I1022)","v":""},{"$f":"IF('1. Order'!J1022=\"\",\"\",'1. Order'!J1022)","v":""},{"$f":"IF('1. Order'!K1022=\"\",\"\",'1. Order'!K1022)","v":""},{"$f":"IF('1. Order'!M1022=\"\",\"\",'1. Order'!M1022)","v":""},null,null,{"$f":"IF('1. Order'!AS1022=\"\",\"\",'1. Order'!AS1022)","v":""},{"$f":"IF('1. Order'!AF1022=\"\",\"\",'1. Order'!AF1022)","v":""}]
[{"$f":"IF('1. Order'!B1023=\"\",\"\",'1. Order'!B1023)","v":""},{"$f":"IF('1. Order'!I1023=\"\",\"\",'1. Order'!I1023)","v":""},{"$f":"IF('1. Order'!J1023=\"\",\"\",'1. Order'!J1023)","v":""},{"$f":"IF('1. Order'!K1023=\"\",\"\",'1. Order'!K1023)","v":""},{"$f":"IF('1. Order'!M1023=\"\",\"\",'1. Order'!M1023)","v":""},null,null,{"$f":"IF('1. Order'!AS1023=\"\",\"\",'1. Order'!AS1023)","v":""},{"$f":"IF('1. Order'!AF1023=\"\",\"\",'1. Order'!AF1023)","v":""}]
[{"$f":"IF('1. Order'!B1024=\"\",\"\",'1. Order'!B1024)","v":""},{"$f":"IF('1. Order'!I1024=\"\",\"\",'1. Order'!I1024)","v":""},{"$f":"IF('1. Order'!J1024=\"\",\"\",'1. Order'!J1024)","v":""},{"$f":"IF('1. Order'!K1024=\"\",\"\",'1. Order'!K1024)","v":""},{"$f":"IF('1. Order'!M1024=\"\",\"\",'1. Order'!M1024)","v":""},null,null,{"$f":"IF('1. Order'!AS1024=\"\",\"\",'1. Order'!AS1024)","v":""},{"$f":"IF('1. Order'!AF1024=\"\",\"\",'1. Order'!AF1024)","v":""}]
[{"$f":"IF('1. Order'!B1025=\"\",\"\",'1. Order'!B1025)","v":""},{"$f":"IF('1. Order'!I1025=\"\",\"\",'1. Order'!I1025)","v":""},{"$f":"IF('1. Order'!J1025=\"\",\"\",'1. Order'!J1025)","v":""},{"$f":"IF('1. Order'!K1025=\"\",\"\",'1. Order'!K1025)","v":""},{"$f":"IF('1. Order'!M1025=\"\",\"\",'1. Order'!M1025)","v":""},null,null,{"$f":"IF('1. Order'!AS1025=\"\",\"\",'1. Order'!AS1025)","v":""},{"$f":"IF('1. Order'!AF1025=\"\",\"\",'1. Order'!AF1025)","v":""}]
[{"$f":"IF('1. Order'!B1026=\"\",\"\",'1. Order'!B1026)","v":""},{"$f":"IF('1. Order'!I1026=\"\",\"\",'1. Order'!I1026)","v":""},{"$f":"IF('1. Order'!J1026=\"\",\"\",'1. Order'!J1026)","v":""},{"$f":"IF('1. Order'!K1026=\"\",\"\",'1. Order'!K1026)","v":""},{"$f":"IF('1. Order'!M1026=\"\",\"\",'1. Order'!M1026)","v":""},null,null,{"$f":"IF('1. Order'!AS1026=\"\",\"\",'1. Order'!AS1026)","v":""},{"$f":"IF('1. Order'!AF1026=\"\",\"\",'1. Order'!AF1026)","v":""}]
[{"$f":"IF('1. Order'!B1027=\"\",\"\",'1. Order'!B1027)","v":""},{"$f":"IF('1. Order'!I1027=\"\",\"\",'1. Order'!I1027)","v":""},{"$f":"IF('1. Order'!J1027=\"\",\"\",'1. Order'!J1027)","v":""},{"$f":"IF('1. Order'!K1027=\"\",\"\",'1. Order'!K1027)","v":""},{"$f":"IF('1. Order'!M1027=\"\",\"\",'1. Order'!M1027)","v":""},null,null,{"$f":"IF('1. Order'!AS1027=\"\",\"\",'1. Order'!AS1027)","v":""},{"$f":"IF('1. Order'!AF1027=\"\",\"\",'1. Order'!AF1027)","v":""}]
[{"$f":"IF('1. Order'!B1028=\"\",\"\",'1. Order'!B1028)","v":""},{"$f":"IF('1. Order'!I1028=\"\",\"\",'1. Order'!I1028)","v":""},{"$f":"IF('1. Order'!J1028=\"\",\"\",'1. Order'!J1028)","v":""},{"$f":"IF('1. Order'!K1028=\"\",\"\",'1. Order'!K1028)","v":""},{"$f":"IF('1. Order'!M1028=\"\",\"\",'1. Order'!M1028)","v":""},null,null,{"$f":"IF('1. Order'!AS1028=\"\",\"\",'1. Order'!AS1028)","v":""},{"$f":"IF('1. Order'!AF1028=\"\",\"\",'1. Order'!AF1028)","v":""}]
[{"$f":"IF('1. Order'!B1029=\"\",\"\",'1. Order'!B1029)","v":""},{"$f":"IF('1. Order'!I1029=\"\",\"\",'1. Order'!I1029)","v":""},{"$f":"IF('1. Order'!J1029=\"\",\"\",'1. Order'!J1029)","v":""},{"$f":"IF('1. Order'!K1029=\"\",\"\",'1. Order'!K1029)","v":""},{"$f":"IF('1. Order'!M1029=\"\",\"\",'1. Order'!M1029)","v":""},null,null,{"$f":"IF('1. Order'!AS1029=\"\",\"\",'1. Order'!AS1029)","v":""},{"$f":"IF('1. Order'!AF1029=\"\",\"\",'1. Order'!AF1029)","v":""}]
[{"$f":"IF('1. Order'!B1030=\"\",\"\",'1. Order'!B1030)","v":""},{"$f":"IF('1. Order'!I1030=\"\",\"\",'1. Order'!I1030)","v":""},{"$f":"IF('1. Order'!J1030=\"\",\"\",'1. Order'!J1030)","v":""},{"$f":"IF('1. Order'!K1030=\"\",\"\",'1. Order'!K1030)","v":""},{"$f":"IF('1. Order'!M1030=\"\",\"\",'1. Order'!M1030)","v":""},null,null,{"$f":"IF('1. Order'!AS1030=\"\",\"\",'1. Order'!AS1030)","v":""},{"$f":"IF('1. Order'!AF1030=\"\",\"\",'1. Order'!AF1030)","v":""}]
[{"$f":"IF('1. Order'!B1031=\"\",\"\",'1. Order'!B1031)","v":""},{"$f":"IF('1. Order'!I1031=\"\",\"\",'1. Order'!I1031)","v":""},{"$f":"IF('1. Order'!J1031=\"\",\"\",'1. Order'!J1031)","v":""},{"$f":"IF('1. Order'!K1031=\"\",\"\",'1. Order'!K1031)","v":""},{"$f":"IF('1. Order'!M1031=\"\",\"\",'1. Order'!M1031)","v":""},null,null,{"$f":"IF('1. Order'!AS1031=\"\",\"\",'1. Order'!AS1031)","v":""},{"$f":"IF('1. Order'!AF1031=\"\",\"\",'1. Order'!AF1031)","v":""}]
[{"$f":"IF('1. Order'!B1032=\"\",\"\",'1. Order'!B1032)","v":""},{"$f":"IF('1. Order'!I1032=\"\",\"\",'1. Order'!I1032)","v":""},{"$f":"IF('1. Order'!J1032=\"\",\"\",'1. Order'!J1032)","v":""},{"$f":"IF('1. Order'!K1032=\"\",\"\",'1. Order'!K1032)","v":""},{"$f":"IF('1. Order'!M1032=\"\",\"\",'1. Order'!M1032)","v":""},null,null,{"$f":"IF('1. Order'!AS1032=\"\",\"\",'1. Order'!AS1032)","v":""},{"$f":"IF('1. Order'!AF1032=\"\",\"\",'1. Order'!AF1032)","v":""}]
[{"$f":"IF('1. Order'!B1033=\"\",\"\",'1. Order'!B1033)","v":""},{"$f":"IF('1. Order'!I1033=\"\",\"\",'1. Order'!I1033)","v":""},{"$f":"IF('1. Order'!J1033=\"\",\"\",'1. Order'!J1033)","v":""},{"$f":"IF('1. Order'!K1033=\"\",\"\",'1. Order'!K1033)","v":""},{"$f":"IF('1. Order'!M1033=\"\",\"\",'1. Order'!M1033)","v":""},null,null,{"$f":"IF('1. Order'!AS1033=\"\",\"\",'1. Order'!AS1033)","v":""},{"$f":"IF('1. Order'!AF1033=\"\",\"\",'1. Order'!AF1033)","v":""}]
[{"$f":"IF('1. Order'!B1034=\"\",\"\",'1. Order'!B1034)","v":""},{"$f":"IF('1. Order'!I1034=\"\",\"\",'1. Order'!I1034)","v":""},{"$f":"IF('1. Order'!J1034=\"\",\"\",'1. Order'!J1034)","v":""},{"$f":"IF('1. Order'!K1034=\"\",\"\",'1. Order'!K1034)","v":""},{"$f":"IF('1. Order'!M1034=\"\",\"\",'1. Order'!M1034)","v":""},null,null,{"$f":"IF('1. Order'!AS1034=\"\",\"\",'1. Order'!AS1034)","v":""},{"$f":"IF('1. Order'!AF1034=\"\",\"\",'1. Order'!AF1034)","v":""}]
[{"$f":"IF('1. Order'!B1035=\"\",\"\",'1. Order'!B1035)","v":""},{"$f":"IF('1. Order'!I1035=\"\",\"\",'1. Order'!I1035)","v":""},{"$f":"IF('1. Order'!J1035=\"\",\"\",'1. Order'!J1035)","v":""},{"$f":"IF('1. Order'!K1035=\"\",\"\",'1. Order'!K1035)","v":""},{"$f":"IF('1. Order'!M1035=\"\",\"\",'1. Order'!M1035)","v":""},null,null,{"$f":"IF('1. Order'!AS1035=\"\",\"\",'1. Order'!AS1035)","v":""},{"$f":"IF('1. Order'!AF1035=\"\",\"\",'1. Order'!AF1035)","v":""}]
[{"$f":"IF('1. Order'!B1036=\"\",\"\",'1. Order'!B1036)","v":""},{"$f":"IF('1. Order'!I1036=\"\",\"\",'1. Order'!I1036)","v":""},{"$f":"IF('1. Order'!J1036=\"\",\"\",'1. Order'!J1036)","v":""},{"$f":"IF('1. Order'!K1036=\"\",\"\",'1. Order'!K1036)","v":""},{"$f":"IF('1. Order'!M1036=\"\",\"\",'1. Order'!M1036)","v":""},null,null,{"$f":"IF('1. Order'!AS1036=\"\",\"\",'1. Order'!AS1036)","v":""},{"$f":"IF('1. Order'!AF1036=\"\",\"\",'1. Order'!AF1036)","v":""}]
[{"$f":"IF('1. Order'!B1037=\"\",\"\",'1. Order'!B1037)","v":""},{"$f":"IF('1. Order'!I1037=\"\",\"\",'1. Order'!I1037)","v":""},{"$f":"IF('1. Order'!J1037=\"\",\"\",'1. Order'!J1037)","v":""},{"$f":"IF('1. Order'!K1037=\"\",\"\",'1. Order'!K1037)","v":""},{"$f":"IF('1. Order'!M1037=\"\",\"\",'1. Order'!M1037)","v":""},null,null,{"$f":"IF('1. Order'!AS1037=\"\",\"\",'1. Order'!AS1037)","v":""},{"$f":"IF('1. Order'!AF1037=\"\",\"\",'1. Order'!AF1037)","v":""}]
[{"$f":"IF('1. Order'!B1038=\"\",\"\",'1. Order'!B1038)","v":""},{"$f":"IF('1. Order'!I1038=\"\",\"\",'1. Order'!I1038)","v":""},{"$f":"IF('1. Order'!J1038=\"\",\"\",'1. Order'!J1038)","v":""},{"$f":"IF('1. Order'!K1038=\"\",\"\",'1. Order'!K1038)","v":""},{"$f":"IF('1. Order'!M1038=\"\",\"\",'1. Order'!M1038)","v":""},null,null,{"$f":"IF('1. Order'!AS1038=\"\",\"\",'1. Order'!AS1038)","v":""},{"$f":"IF('1. Order'!AF1038=\"\",\"\",'1. Order'!AF1038)","v":""}]
[{"$f":"IF('1. Order'!B1039=\"\",\"\",'1. Order'!B1039)","v":""},{"$f":"IF('1. Order'!I1039=\"\",\"\",'1. Order'!I1039)","v":""},{"$f":"IF('1. Order'!J1039=\"\",\"\",'1. Order'!J1039)","v":""},{"$f":"IF('1. Order'!K1039=\"\",\"\",'1. Order'!K1039)","v":""},{"$f":"IF('1. Order'!M1039=\"\",\"\",'1. Order'!M1039)","v":""},null,null,{"$f":"IF('1. Order'!AS1039=\"\",\"\",'1. Order'!AS1039)","v":""},{"$f":"IF('1. Order'!AF1039=\"\",\"\",'1. Order'!AF1039)","v":""}]
[{"$f":"IF('1. Order'!B1040=\"\",\"\",'1. Order'!B1040)","v":""},{"$f":"IF('1. Order'!I1040=\"\",\"\",'1. Order'!I1040)","v":""},{"$f":"IF('1. Order'!J1040=\"\",\"\",'1. Order'!J1040)","v":""},{"$f":"IF('1. Order'!K1040=\"\",\"\",'1. Order'!K1040)","v":""},{"$f":"IF('1. Order'!M1040=\"\",\"\",'1. Order'!M1040)","v":""},null,null,{"$f":"IF('1. Order'!AS1040=\"\",\"\",'1. Order'!AS1040)","v":""},{"$f":"IF('1. Order'!AF1040=\"\",\"\",'1. Order'!AF1040)","v":""}]
[{"$f":"IF('1. Order'!B1041=\"\",\"\",'1. Order'!B1041)","v":""},{"$f":"IF('1. Order'!I1041=\"\",\"\",'1. Order'!I1041)","v":""},{"$f":"IF('1. Order'!J1041=\"\",\"\",'1. Order'!J1041)","v":""},{"$f":"IF('1. Order'!K1041=\"\",\"\",'1. Order'!K1041)","v":""},{"$f":"IF('1. Order'!M1041=\"\",\"\",'1. Order'!M1041)","v":""},null,null,{"$f":"IF('1. Order'!AS1041=\"\",\"\",'1. Order'!AS1041)","v":""},{"$f":"IF('1. Order'!AF1041=\"\",\"\",'1. Order'!AF1041)","v":""}]
[{"$f":"IF('1. Order'!B1042=\"\",\"\",'1. Order'!B1042)","v":""},{"$f":"IF('1. Order'!I1042=\"\",\"\",'1. Order'!I1042)","v":""},{"$f":"IF('1. Order'!J1042=\"\",\"\",'1. Order'!J1042)","v":""},{"$f":"IF('1. Order'!K1042=\"\",\"\",'1. Order'!K1042)","v":""},{"$f":"IF('1. Order'!M1042=\"\",\"\",'1. Order'!M1042)","v":""},null,null,{"$f":"IF('1. Order'!AS1042=\"\",\"\",'1. Order'!AS1042)","v":""},{"$f":"IF('1. Order'!AF1042=\"\",\"\",'1. Order'!AF1042)","v":""}]
[{"$f":"IF('1. Order'!B1043=\"\",\"\",'1. Order'!B1043)","v":""},{"$f":"IF('1. Order'!I1043=\"\",\"\",'1. Order'!I1043)","v":""},{"$f":"IF('1. Order'!J1043=\"\",\"\",'1. Order'!J1043)","v":""},{"$f":"IF('1. Order'!K1043=\"\",\"\",'1. Order'!K1043)","v":""},{"$f":"IF('1. Order'!M1043=\"\",\"\",'1. Order'!M1043)","v":""},null,null,{"$f":"IF('1. Order'!AS1043=\"\",\"\",'1. Order'!AS1043)","v":""},{"$f":"IF('1. Order'!AF1043=\"\",\"\",'1. Order'!AF1043)","v":""}]
[{"$f":"IF('1. Order'!B1044=\"\",\"\",'1. Order'!B1044)","v":""},{"$f":"IF('1. Order'!I1044=\"\",\"\",'1. Order'!I1044)","v":""},{"$f":"IF('1. Order'!J1044=\"\",\"\",'1. Order'!J1044)","v":""},{"$f":"IF('1. Order'!K1044=\"\",\"\",'1. Order'!K1044)","v":""},{"$f":"IF('1. Order'!M1044=\"\",\"\",'1. Order'!M1044)","v":""},null,null,{"$f":"IF('1. Order'!AS1044=\"\",\"\",'1. Order'!AS1044)","v":""},{"$f":"IF('1. Order'!AF1044=\"\",\"\",'1. Order'!AF1044)","v":""}]
[{"$f":"IF('1. Order'!B1045=\"\",\"\",'1. Order'!B1045)","v":""},{"$f":"IF('1. Order'!I1045=\"\",\"\",'1. Order'!I1045)","v":""},{"$f":"IF('1. Order'!J1045=\"\",\"\",'1. Order'!J1045)","v":""},{"$f":"IF('1. Order'!K1045=\"\",\"\",'1. Order'!K1045)","v":""},{"$f":"IF('1. Order'!M1045=\"\",\"\",'1. Order'!M1045)","v":""},null,null,{"$f":"IF('1. Order'!AS1045=\"\",\"\",'1. Order'!AS1045)","v":""},{"$f":"IF('1. Order'!AF1045=\"\",\"\",'1. Order'!AF1045)","v":""}]
[{"$f":"IF('1. Order'!B1046=\"\",\"\",'1. Order'!B1046)","v":""},{"$f":"IF('1. Order'!I1046=\"\",\"\",'1. Order'!I1046)","v":""},{"$f":"IF('1. Order'!J1046=\"\",\"\",'1. Order'!J1046)","v":""},{"$f":"IF('1. Order'!K1046=\"\",\"\",'1. Order'!K1046)","v":""},{"$f":"IF('1. Order'!M1046=\"\",\"\",'1. Order'!M1046)","v":""},null,null,{"$f":"IF('1. Order'!AS1046=\"\",\"\",'1. Order'!AS1046)","v":""},{"$f":"IF('1. Order'!AF1046=\"\",\"\",'1. Order'!AF1046)","v":""}]
[{"$f":"IF('1. Order'!B1047=\"\",\"\",'1. Order'!B1047)","v":""},{"$f":"IF('1. Order'!I1047=\"\",\"\",'1. Order'!I1047)","v":""},{"$f":"IF('1. Order'!J1047=\"\",\"\",'1. Order'!J1047)","v":""},{"$f":"IF('1. Order'!K1047=\"\",\"\",'1. Order'!K1047)","v":""},{"$f":"IF('1. Order'!M1047=\"\",\"\",'1. Order'!M1047)","v":""},null,null,{"$f":"IF('1. Order'!AS1047=\"\",\"\",'1. Order'!AS1047)","v":""},{"$f":"IF('1. Order'!AF1047=\"\",\"\",'1. Order'!AF1047)","v":""}]
[{"$f":"IF('1. Order'!B1048=\"\",\"\",'1. Order'!B1048)","v":""},{"$f":"IF('1. Order'!I1048=\"\",\"\",'1. Order'!I1048)","v":""},{"$f":"IF('1. Order'!J1048=\"\",\"\",'1. Order'!J1048)","v":""},{"$f":"IF('1. Order'!K1048=\"\",\"\",'1. Order'!K1048)","v":""},{"$f":"IF('1. Order'!M1048=\"\",\"\",'1. Order'!M1048)","v":""},null,null,{"$f":"IF('1. Order'!AS1048=\"\",\"\",'1. Order'!AS1048)","v":""},{"$f":"IF('1. Order'!AF1048=\"\",\"\",'1. Order'!AF1048)","v":""}]
[{"$f":"IF('1. Order'!B1049=\"\",\"\",'1. Order'!B1049)","v":""},{"$f":"IF('1. Order'!I1049=\"\",\"\",'1. Order'!I1049)","v":""},{"$f":"IF('1. Order'!J1049=\"\",\"\",'1. Order'!J1049)","v":""},{"$f":"IF('1. Order'!K1049=\"\",\"\",'1. Order'!K1049)","v":""},{"$f":"IF('1. Order'!M1049=\"\",\"\",'1. Order'!M1049)","v":""},null,null,{"$f":"IF('1. Order'!AS1049=\"\",\"\",'1. Order'!AS1049)","v":""},{"$f":"IF('1. Order'!AF1049=\"\",\"\",'1. Order'!AF1049)","v":""}]
[{"$f":"IF('1. Order'!B1050=\"\",\"\",'1. Order'!B1050)","v":""},{"$f":"IF('1. Order'!I1050=\"\",\"\",'1. Order'!I1050)","v":""},{"$f":"IF('1. Order'!J1050=\"\",\"\",'1. Order'!J1050)","v":""},{"$f":"IF('1. Order'!K1050=\"\",\"\",'1. Order'!K1050)","v":""},{"$f":"IF('1. Order'!M1050=\"\",\"\",'1. Order'!M1050)","v":""},null,null,{"$f":"IF('1. Order'!AS1050=\"\",\"\",'1. Order'!AS1050)","v":""},{"$f":"IF('1. Order'!AF1050=\"\",\"\",'1. Order'!AF1050)","v":""}]
[{"$f":"IF('1. Order'!B1051=\"\",\"\",'1. Order'!B1051)","v":""},{"$f":"IF('1. Order'!I1051=\"\",\"\",'1. Order'!I1051)","v":""},{"$f":"IF('1. Order'!J1051=\"\",\"\",'1. Order'!J1051)","v":""},{"$f":"IF('1. Order'!K1051=\"\",\"\",'1. Order'!K1051)","v":""},{"$f":"IF('1. Order'!M1051=\"\",\"\",'1. Order'!M1051)","v":""},null,null,{"$f":"IF('1. Order'!AS1051=\"\",\"\",'1. Order'!AS1051)","v":""},{"$f":"IF('1. Order'!AF1051=\"\",\"\",'1. Order'!AF1051)","v":""}]
[{"$f":"IF('1. Order'!B1052=\"\",\"\",'1. Order'!B1052)","v":""},{"$f":"IF('1. Order'!I1052=\"\",\"\",'1. Order'!I1052)","v":""},{"$f":"IF('1. Order'!J1052=\"\",\"\",'1. Order'!J1052)","v":""},{"$f":"IF('1. Order'!K1052=\"\",\"\",'1. Order'!K1052)","v":""},{"$f":"IF('1. Order'!M1052=\"\",\"\",'1. Order'!M1052)","v":""},null,null,{"$f":"IF('1. Order'!AS1052=\"\",\"\",'1. Order'!AS1052)","v":""},{"$f":"IF('1. Order'!AF1052=\"\",\"\",'1. Order'!AF1052)","v":""}]
[{"$f":"IF('1. Order'!B1053=\"\",\"\",'1. Order'!B1053)","v":""},{"$f":"IF('1. Order'!I1053=\"\",\"\",'1. Order'!I1053)","v":""},{"$f":"IF('1. Order'!J1053=\"\",\"\",'1. Order'!J1053)","v":""},{"$f":"IF('1. Order'!K1053=\"\",\"\",'1. Order'!K1053)","v":""},{"$f":"IF('1. Order'!M1053=\"\",\"\",'1. Order'!M1053)","v":""},null,null,{"$f":"IF('1. Order'!AS1053=\"\",\"\",'1. Order'!AS1053)","v":""},{"$f":"IF('1. Order'!AF1053=\"\",\"\",'1. Order'!AF1053)","v":""}]
[{"$f":"IF('1. Order'!B1054=\"\",\"\",'1. Order'!B1054)","v":""},{"$f":"IF('1. Order'!I1054=\"\",\"\",'1. Order'!I1054)","v":""},{"$f":"IF('1. Order'!J1054=\"\",\"\",'1. Order'!J1054)","v":""},{"$f":"IF('1. Order'!K1054=\"\",\"\",'1. Order'!K1054)","v":""},{"$f":"IF('1. Order'!M1054=\"\",\"\",'1. Order'!M1054)","v":""},null,null,{"$f":"IF('1. Order'!AS1054=\"\",\"\",'1. Order'!AS1054)","v":""},{"$f":"IF('1. Order'!AF1054=\"\",\"\",'1. Order'!AF1054)","v":""}]
[{"$f":"IF('1. Order'!B1055=\"\",\"\",'1. Order'!B1055)","v":""},{"$f":"IF('1. Order'!I1055=\"\",\"\",'1. Order'!I1055)","v":""},{"$f":"IF('1. Order'!J1055=\"\",\"\",'1. Order'!J1055)","v":""},{"$f":"IF('1. Order'!K1055=\"\",\"\",'1. Order'!K1055)","v":""},{"$f":"IF('1. Order'!M1055=\"\",\"\",'1. Order'!M1055)","v":""},null,null,{"$f":"IF('1. Order'!AS1055=\"\",\"\",'1. Order'!AS1055)","v":""},{"$f":"IF('1. Order'!AF1055=\"\",\"\",'1. Order'!AF1055)","v":""}]
[{"$f":"IF('1. Order'!B1056=\"\",\"\",'1. Order'!B1056)","v":""},{"$f":"IF('1. Order'!I1056=\"\",\"\",'1. Order'!I1056)","v":""},{"$f":"IF('1. Order'!J1056=\"\",\"\",'1. Order'!J1056)","v":""},{"$f":"IF('1. Order'!K1056=\"\",\"\",'1. Order'!K1056)","v":""},{"$f":"IF('1. Order'!M1056=\"\",\"\",'1. Order'!M1056)","v":""},null,null,{"$f":"IF('1. Order'!AS1056=\"\",\"\",'1. Order'!AS1056)","v":""},{"$f":"IF('1. Order'!AF1056=\"\",\"\",'1. Order'!AF1056)","v":""}]
[{"$f":"IF('1. Order'!B1057=\"\",\"\",'1. Order'!B1057)","v":""},{"$f":"IF('1. Order'!I1057=\"\",\"\",'1. Order'!I1057)","v":""},{"$f":"IF('1. Order'!J1057=\"\",\"\",'1. Order'!J1057)","v":""},{"$f":"IF('1. Order'!K1057=\"\",\"\",'1. Order'!K1057)","v":""},{"$f":"IF('1. Order'!M1057=\"\",\"\",'1. Order'!M1057)","v":""},null,null,{"$f":"IF('1. Order'!AS1057=\"\",\"\",'1. Order'!AS1057)","v":""},{"$f":"IF('1. Order'!AF1057=\"\",\"\",'1. Order'!AF1057)","v":""}]
[{"$f":"IF('1. Order'!B1058=\"\",\"\",'1. Order'!B1058)","v":""},{"$f":"IF('1. Order'!I1058=\"\",\"\",'1. Order'!I1058)","v":""},{"$f":"IF('1. Order'!J1058=\"\",\"\",'1. Order'!J1058)","v":""},{"$f":"IF('1. Order'!K1058=\"\",\"\",'1. Order'!K1058)","v":""},{"$f":"IF('1. Order'!M1058=\"\",\"\",'1. Order'!M1058)","v":""},null,null,{"$f":"IF('1. Order'!AS1058=\"\",\"\",'1. Order'!AS1058)","v":""},{"$f":"IF('1. Order'!AF1058=\"\",\"\",'1. Order'!AF1058)","v":""}]
[{"$f":"IF('1. Order'!B1059=\"\",\"\",'1. Order'!B1059)","v":""},{"$f":"IF('1. Order'!I1059=\"\",\"\",'1. Order'!I1059)","v":""},{"$f":"IF('1. Order'!J1059=\"\",\"\",'1. Order'!J1059)","v":""},{"$f":"IF('1. Order'!K1059=\"\",\"\",'1. Order'!K1059)","v":""},{"$f":"IF('1. Order'!M1059=\"\",\"\",'1. Order'!M1059)","v":""},null,null,{"$f":"IF('1. Order'!AS1059=\"\",\"\",'1. Order'!AS1059)","v":""},{"$f":"IF('1. Order'!AF1059=\"\",\"\",'1. Order'!AF1059)","v":""}]
[{"$f":"IF('1. Order'!B1060=\"\",\"\",'1. Order'!B1060)","v":""},{"$f":"IF('1. Order'!I1060=\"\",\"\",'1. Order'!I1060)","v":""},{"$f":"IF('1. Order'!J1060=\"\",\"\",'1. Order'!J1060)","v":""},{"$f":"IF('1. Order'!K1060=\"\",\"\",'1. Order'!K1060)","v":""},{"$f":"IF('1. Order'!M1060=\"\",\"\",'1. Order'!M1060)","v":""},null,null,{"$f":"IF('1. Order'!AS1060=\"\",\"\",'1. Order'!AS1060)","v":""},{"$f":"IF('1. Order'!AF1060=\"\",\"\",'1. Order'!AF1060)","v":""}]
[{"$f":"IF('1. Order'!B1061=\"\",\"\",'1. Order'!B1061)","v":""},{"$f":"IF('1. Order'!I1061=\"\",\"\",'1. Order'!I1061)","v":""},{"$f":"IF('1. Order'!J1061=\"\",\"\",'1. Order'!J1061)","v":""},{"$f":"IF('1. Order'!K1061=\"\",\"\",'1. Order'!K1061)","v":""},{"$f":"IF('1. Order'!M1061=\"\",\"\",'1. Order'!M1061)","v":""},null,null,{"$f":"IF('1. Order'!AS1061=\"\",\"\",'1. Order'!AS1061)","v":""},{"$f":"IF('1. Order'!AF1061=\"\",\"\",'1. Order'!AF1061)","v":""}]
[{"$f":"IF('1. Order'!B1062=\"\",\"\",'1. Order'!B1062)","v":""},{"$f":"IF('1. Order'!I1062=\"\",\"\",'1. Order'!I1062)","v":""},{"$f":"IF('1. Order'!J1062=\"\",\"\",'1. Order'!J1062)","v":""},{"$f":"IF('1. Order'!K1062=\"\",\"\",'1. Order'!K1062)","v":""},{"$f":"IF('1. Order'!M1062=\"\",\"\",'1. Order'!M1062)","v":""},null,null,{"$f":"IF('1. Order'!AS1062=\"\",\"\",'1. Order'!AS1062)","v":""},{"$f":"IF('1. Order'!AF1062=\"\",\"\",'1. Order'!AF1062)","v":""}]
[{"$f":"IF('1. Order'!B1063=\"\",\"\",'1. Order'!B1063)","v":""},{"$f":"IF('1. Order'!I1063=\"\",\"\",'1. Order'!I1063)","v":""},{"$f":"IF('1. Order'!J1063=\"\",\"\",'1. Order'!J1063)","v":""},{"$f":"IF('1. Order'!K1063=\"\",\"\",'1. Order'!K1063)","v":""},{"$f":"IF('1. Order'!M1063=\"\",\"\",'1. Order'!M1063)","v":""},null,null,{"$f":"IF('1. Order'!AS1063=\"\",\"\",'1. Order'!AS1063)","v":""},{"$f":"IF('1. Order'!AF1063=\"\",\"\",'1. Order'!AF1063)","v":""}]
[{"$f":"IF('1. Order'!B1064=\"\",\"\",'1. Order'!B1064)","v":""},{"$f":"IF('1. Order'!I1064=\"\",\"\",'1. Order'!I1064)","v":""},{"$f":"IF('1. Order'!J1064=\"\",\"\",'1. Order'!J1064)","v":""},{"$f":"IF('1. Order'!K1064=\"\",\"\",'1. Order'!K1064)","v":""},{"$f":"IF('1. Order'!M1064=\"\",\"\",'1. Order'!M1064)","v":""},null,null,{"$f":"IF('1. Order'!AS1064=\"\",\"\",'1. Order'!AS1064)","v":""},{"$f":"IF('1. Order'!AF1064=\"\",\"\",'1. Order'!AF1064)","v":""}]
[{"$f":"IF('1. Order'!B1065=\"\",\"\",'1. Order'!B1065)","v":""},{"$f":"IF('1. Order'!I1065=\"\",\"\",'1. Order'!I1065)","v":""},{"$f":"IF('1. Order'!J1065=\"\",\"\",'1. Order'!J1065)","v":""},{"$f":"IF('1. Order'!K1065=\"\",\"\",'1. Order'!K1065)","v":""},{"$f":"IF('1. Order'!M1065=\"\",\"\",'1. Order'!M1065)","v":""},null,null,{"$f":"IF('1. Order'!AS1065=\"\",\"\",'1. Order'!AS1065)","v":""},{"$f":"IF('1. Order'!AF1065=\"\",\"\",'1. Order'!AF1065)","v":""}]
[{"$f":"IF('1. Order'!B1066=\"\",\"\",'1. Order'!B1066)","v":""},{"$f":"IF('1. Order'!I1066=\"\",\"\",'1. Order'!I1066)","v":""},{"$f":"IF('1. Order'!J1066=\"\",\"\",'1. Order'!J1066)","v":""},{"$f":"IF('1. Order'!K1066=\"\",\"\",'1. Order'!K1066)","v":""},{"$f":"IF('1. Order'!M1066=\"\",\"\",'1. Order'!M1066)","v":""},null,null,{"$f":"IF('1. Order'!AS1066=\"\",\"\",'1. Order'!AS1066)","v":""},{"$f":"IF('1. Order'!AF1066=\"\",\"\",'1. Order'!AF1066)","v":""}]
[{"$f":"IF('1. Order'!B1067=\"\",\"\",'1. Order'!B1067)","v":""},{"$f":"IF('1. Order'!I1067=\"\",\"\",'1. Order'!I1067)","v":""},{"$f":"IF('1. Order'!J1067=\"\",\"\",'1. Order'!J1067)","v":""},{"$f":"IF('1. Order'!K1067=\"\",\"\",'1. Order'!K1067)","v":""},{"$f":"IF('1. Order'!M1067=\"\",\"\",'1. Order'!M1067)","v":""},null,null,{"$f":"IF('1. Order'!AS1067=\"\",\"\",'1. Order'!AS1067)","v":""},{"$f":"IF('1. Order'!AF1067=\"\",\"\",'1. Order'!AF1067)","v":""}]
[{"$f":"IF('1. Order'!B1068=\"\",\"\",'1. Order'!B1068)","v":""},{"$f":"IF('1. Order'!I1068=\"\",\"\",'1. Order'!I1068)","v":""},{"$f":"IF('1. Order'!J1068=\"\",\"\",'1. Order'!J1068)","v":""},{"$f":"IF('1. Order'!K1068=\"\",\"\",'1. Order'!K1068)","v":""},{"$f":"IF('1. Order'!M1068=\"\",\"\",'1. Order'!M1068)","v":""},null,null,{"$f":"IF('1. Order'!AS1068=\"\",\"\",'1. Order'!AS1068)","v":""},{"$f":"IF('1. Order'!AF1068=\"\",\"\",'1. Order'!AF1068)","v":""}]
[{"$f":"IF('1. Order'!B1069=\"\",\"\",'1. Order'!B1069)","v":""},{"$f":"IF('1. Order'!I1069=\"\",\"\",'1. Order'!I1069)","v":""},{"$f":"IF('1. Order'!J1069=\"\",\"\",'1. Order'!J1069)","v":""},{"$f":"IF('1. Order'!K1069=\"\",\"\",'1. Order'!K1069)","v":""},{"$f":"IF('1. Order'!M1069=\"\",\"\",'1. Order'!M1069)","v":""},null,null,{"$f":"IF('1. Order'!AS1069=\"\",\"\",'1. Order'!AS1069)","v":""},{"$f":"IF('1. Order'!AF1069=\"\",\"\",'1. Order'!AF1069)","v":""}]
[{"$f":"IF('1. Order'!B1070=\"\",\"\",'1. Order'!B1070)","v":""},{"$f":"IF('1. Order'!I1070=\"\",\"\",'1. Order'!I1070)","v":""},{"$f":"IF('1. Order'!J1070=\"\",\"\",'1. Order'!J1070)","v":""},{"$f":"IF('1. Order'!K1070=\"\",\"\",'1. Order'!K1070)","v":""},{"$f":"IF('1. Order'!M1070=\"\",\"\",'1. Order'!M1070)","v":""},null,null,{"$f":"IF('1. Order'!AS1070=\"\",\"\",'1. Order'!AS1070)","v":""},{"$f":"IF('1. Order'!AF1070=\"\",\"\",'1. Order'!AF1070)","v":""}]
[{"$f":"IF('1. Order'!B1071=\"\",\"\",'1. Order'!B1071)","v":""},{"$f":"IF('1. Order'!I1071=\"\",\"\",'1. Order'!I1071)","v":""},{"$f":"IF('1. Order'!J1071=\"\",\"\",'1. Order'!J1071)","v":""},{"$f":"IF('1. Order'!K1071=\"\",\"\",'1. Order'!K1071)","v":""},{"$f":"IF('1. Order'!M1071=\"\",\"\",'1. Order'!M1071)","v":""},null,null,{"$f":"IF('1. Order'!AS1071=\"\",\"\",'1. Order'!AS1071)","v":""},{"$f":"IF('1. Order'!AF1071=\"\",\"\",'1. Order'!AF1071)","v":""}]
[{"$f":"IF('1. Order'!B1072=\"\",\"\",'1. Order'!B1072)","v":""},{"$f":"IF('1. Order'!I1072=\"\",\"\",'1. Order'!I1072)","v":""},{"$f":"IF('1. Order'!J1072=\"\",\"\",'1. Order'!J1072)","v":""},{"$f":"IF('1. Order'!K1072=\"\",\"\",'1. Order'!K1072)","v":""},{"$f":"IF('1. Order'!M1072=\"\",\"\",'1. Order'!M1072)","v":""},null,null,{"$f":"IF('1. Order'!AS1072=\"\",\"\",'1. Order'!AS1072)","v":""},{"$f":"IF('1. Order'!AF1072=\"\",\"\",'1. Order'!AF1072)","v":""}]
[{"$f":"IF('1. Order'!B1073=\"\",\"\",'1. Order'!B1073)","v":""},{"$f":"IF('1. Order'!I1073=\"\",\"\",'1. Order'!I1073)","v":""},{"$f":"IF('1. Order'!J1073=\"\",\"\",'1. Order'!J1073)","v":""},{"$f":"IF('1. Order'!K1073=\"\",\"\",'1. Order'!K1073)","v":""},{"$f":"IF('1. Order'!M1073=\"\",\"\",'1. Order'!M1073)","v":""},null,null,{"$f":"IF('1. Order'!AS1073=\"\",\"\",'1. Order'!AS1073)","v":""},{"$f":"IF('1. Order'!AF1073=\"\",\"\",'1. Order'!AF1073)","v":""}]
[{"$f":"IF('1. Order'!B1074=\"\",\"\",'1. Order'!B1074)","v":""},{"$f":"IF('1. Order'!I1074=\"\",\"\",'1. Order'!I1074)","v":""},{"$f":"IF('1. Order'!J1074=\"\",\"\",'1. Order'!J1074)","v":""},{"$f":"IF('1. Order'!K1074=\"\",\"\",'1. Order'!K1074)","v":""},{"$f":"IF('1. Order'!M1074=\"\",\"\",'1. Order'!M1074)","v":""},null,null,{"$f":"IF('1. Order'!AS1074=\"\",\"\",'1. Order'!AS1074)","v":""},{"$f":"IF('1. Order'!AF1074=\"\",\"\",'1. Order'!AF1074)","v":""}]
[{"$f":"IF('1. Order'!B1075=\"\",\"\",'1. Order'!B1075)","v":""},{"$f":"IF('1. Order'!I1075=\"\",\"\",'1. Order'!I1075)","v":""},{"$f":"IF('1. Order'!J1075=\"\",\"\",'1. Order'!J1075)","v":""},{"$f":"IF('1. Order'!K1075=\"\",\"\",'1. Order'!K1075)","v":""},{"$f":"IF('1. Order'!M1075=\"\",\"\",'1. Order'!M1075)","v":""},null,null,{"$f":"IF('1. Order'!AS1075=\"\",\"\",'1. Order'!AS1075)","v":""},{"$f":"IF('1. Order'!AF1075=\"\",\"\",'1. Order'!AF1075)","v":""}]
[{"$f":"IF('1. Order'!B1076=\"\",\"\",'1. Order'!B1076)","v":""},{"$f":"IF('1. Order'!I1076=\"\",\"\",'1. Order'!I1076)","v":""},{"$f":"IF('1. Order'!J1076=\"\",\"\",'1. Order'!J1076)","v":""},{"$f":"IF('1. Order'!K1076=\"\",\"\",'1. Order'!K1076)","v":""},{"$f":"IF('1. Order'!M1076=\"\",\"\",'1. Order'!M1076)","v":""},null,null,{"$f":"IF('1. Order'!AS1076=\"\",\"\",'1. Order'!AS1076)","v":""},{"$f":"IF('1. Order'!AF1076=\"\",\"\",'1. Order'!AF1076)","v":""}]
[{"$f":"IF('1. Order'!B1077=\"\",\"\",'1. Order'!B1077)","v":""},{"$f":"IF('1. Order'!I1077=\"\",\"\",'1. Order'!I1077)","v":""},{"$f":"IF('1. Order'!J1077=\"\",\"\",'1. Order'!J1077)","v":""},{"$f":"IF('1. Order'!K1077=\"\",\"\",'1. Order'!K1077)","v":""},{"$f":"IF('1. Order'!M1077=\"\",\"\",'1. Order'!M1077)","v":""},null,null,{"$f":"IF('1. Order'!AS1077=\"\",\"\",'1. Order'!AS1077)","v":""},{"$f":"IF('1. Order'!AF1077=\"\",\"\",'1. Order'!AF1077)","v":""}]
[{"$f":"IF('1. Order'!B1078=\"\",\"\",'1. Order'!B1078)","v":""},{"$f":"IF('1. Order'!I1078=\"\",\"\",'1. Order'!I1078)","v":""},{"$f":"IF('1. Order'!J1078=\"\",\"\",'1. Order'!J1078)","v":""},{"$f":"IF('1. Order'!K1078=\"\",\"\",'1. Order'!K1078)","v":""},{"$f":"IF('1. Order'!M1078=\"\",\"\",'1. Order'!M1078)","v":""},null,null,{"$f":"IF('1. Order'!AS1078=\"\",\"\",'1. Order'!AS1078)","v":""},{"$f":"IF('1. Order'!AF1078=\"\",\"\",'1. Order'!AF1078)","v":""}]
[{"$f":"IF('1. Order'!B1079=\"\",\"\",'1. Order'!B1079)","v":""},{"$f":"IF('1. Order'!I1079=\"\",\"\",'1. Order'!I1079)","v":""},{"$f":"IF('1. Order'!J1079=\"\",\"\",'1. Order'!J1079)","v":""},{"$f":"IF('1. Order'!K1079=\"\",\"\",'1. Order'!K1079)","v":""},{"$f":"IF('1. Order'!M1079=\"\",\"\",'1. Order'!M1079)","v":""},null,null,{"$f":"IF('1. Order'!AS1079=\"\",\"\",'1. Order'!AS1079)","v":""},{"$f":"IF('1. Order'!AF1079=\"\",\"\",'1. Order'!AF1079)","v":""}]
[{"$f":"IF('1. Order'!B1080=\"\",\"\",'1. Order'!B1080)","v":""},{"$f":"IF('1. Order'!I1080=\"\",\"\",'1. Order'!I1080)","v":""},{"$f":"IF('1. Order'!J1080=\"\",\"\",'1. Order'!J1080)","v":""},{"$f":"IF('1. Order'!K1080=\"\",\"\",'1. Order'!K1080)","v":""},{"$f":"IF('1. Order'!M1080=\"\",\"\",'1. Order'!M1080)","v":""},null,null,{"$f":"IF('1. Order'!AS1080=\"\",\"\",'1. Order'!AS1080)","v":""},{"$f":"IF('1. Order'!AF1080=\"\",\"\",'1. Order'!AF1080)","v":""}]
[{"$f":"IF('1. Order'!B1081=\"\",\"\",'1. Order'!B1081)","v":""},{"$f":"IF('1. Order'!I1081=\"\",\"\",'1. Order'!I1081)","v":""},{"$f":"IF('1. Order'!J1081=\"\",\"\",'1. Order'!J1081)","v":""},{"$f":"IF('1. Order'!K1081=\"\",\"\",'1. Order'!K1081)","v":""},{"$f":"IF('1. Order'!M1081=\"\",\"\",'1. Order'!M1081)","v":""},null,null,{"$f":"IF('1. Order'!AS1081=\"\",\"\",'1. Order'!AS1081)","v":""},{"$f":"IF('1. Order'!AF1081=\"\",\"\",'1. Order'!AF1081)","v":""}]
[{"$f":"IF('1. Order'!B1082=\"\",\"\",'1. Order'!B1082)","v":""},{"$f":"IF('1. Order'!I1082=\"\",\"\",'1. Order'!I1082)","v":""},{"$f":"IF('1. Order'!J1082=\"\",\"\",'1. Order'!J1082)","v":""},{"$f":"IF('1. Order'!K1082=\"\",\"\",'1. Order'!K1082)","v":""},{"$f":"IF('1. Order'!M1082=\"\",\"\",'1. Order'!M1082)","v":""},null,null,{"$f":"IF('1. Order'!AS1082=\"\",\"\",'1. Order'!AS1082)","v":""},{"$f":"IF('1. Order'!AF1082=\"\",\"\",'1. Order'!AF1082)","v":""}]
[{"$f":"IF('1. Order'!B1083=\"\",\"\",'1. Order'!B1083)","v":""},{"$f":"IF('1. Order'!I1083=\"\",\"\",'1. Order'!I1083)","v":""},{"$f":"IF('1. Order'!J1083=\"\",\"\",'1. Order'!J1083)","v":""},{"$f":"IF('1. Order'!K1083=\"\",\"\",'1. Order'!K1083)","v":""},{"$f":"IF('1. Order'!M1083=\"\",\"\",'1. Order'!M1083)","v":""},null,null,{"$f":"IF('1. Order'!AS1083=\"\",\"\",'1. Order'!AS1083)","v":""},{"$f":"IF('1. Order'!AF1083=\"\",\"\",'1. Order'!AF1083)","v":""}]
[{"$f":"IF('1. Order'!B1084=\"\",\"\",'1. Order'!B1084)","v":""},{"$f":"IF('1. Order'!I1084=\"\",\"\",'1. Order'!I1084)","v":""},{"$f":"IF('1. Order'!J1084=\"\",\"\",'1. Order'!J1084)","v":""},{"$f":"IF('1. Order'!K1084=\"\",\"\",'1. Order'!K1084)","v":""},{"$f":"IF('1. Order'!M1084=\"\",\"\",'1. Order'!M1084)","v":""},null,null,{"$f":"IF('1. Order'!AS1084=\"\",\"\",'1. Order'!AS1084)","v":""},{"$f":"IF('1. Order'!AF1084=\"\",\"\",'1. Order'!AF1084)","v":""}]
[{"$f":"IF('1. Order'!B1085=\"\",\"\",'1. Order'!B1085)","v":""},{"$f":"IF('1. Order'!I1085=\"\",\"\",'1. Order'!I1085)","v":""},{"$f":"IF('1. Order'!J1085=\"\",\"\",'1. Order'!J1085)","v":""},{"$f":"IF('1. Order'!K1085=\"\",\"\",'1. Order'!K1085)","v":""},{"$f":"IF('1. Order'!M1085=\"\",\"\",'1. Order'!M1085)","v":""},null,null,{"$f":"IF('1. Order'!AS1085=\"\",\"\",'1. Order'!AS1085)","v":""},{"$f":"IF('1. Order'!AF1085=\"\",\"\",'1. Order'!AF1085)","v":""}]
[{"$f":"IF('1. Order'!B1086=\"\",\"\",'1. Order'!B1086)","v":""},{"$f":"IF('1. Order'!I1086=\"\",\"\",'1. Order'!I1086)","v":""},{"$f":"IF('1. Order'!J1086=\"\",\"\",'1. Order'!J1086)","v":""},{"$f":"IF('1. Order'!K1086=\"\",\"\",'1. Order'!K1086)","v":""},{"$f":"IF('1. Order'!M1086=\"\",\"\",'1. Order'!M1086)","v":""},null,null,{"$f":"IF('1. Order'!AS1086=\"\",\"\",'1. Order'!AS1086)","v":""},{"$f":"IF('1. Order'!AF1086=\"\",\"\",'1. Order'!AF1086)","v":""}]
[{"$f":"IF('1. Order'!B1087=\"\",\"\",'1. Order'!B1087)","v":""},{"$f":"IF('1. Order'!I1087=\"\",\"\",'1. Order'!I1087)","v":""},{"$f":"IF('1. Order'!J1087=\"\",\"\",'1. Order'!J1087)","v":""},{"$f":"IF('1. Order'!K1087=\"\",\"\",'1. Order'!K1087)","v":""},{"$f":"IF('1. Order'!M1087=\"\",\"\",'1. Order'!M1087)","v":""},null,null,{"$f":"IF('1. Order'!AS1087=\"\",\"\",'1. Order'!AS1087)","v":""},{"$f":"IF('1. Order'!AF1087=\"\",\"\",'1. Order'!AF1087)","v":""}]
[{"$f":"IF('1. Order'!B1088=\"\",\"\",'1. Order'!B1088)","v":""},{"$f":"IF('1. Order'!I1088=\"\",\"\",'1. Order'!I1088)","v":""},{"$f":"IF('1. Order'!J1088=\"\",\"\",'1. Order'!J1088)","v":""},{"$f":"IF('1. Order'!K1088=\"\",\"\",'1. Order'!K1088)","v":""},{"$f":"IF('1. Order'!M1088=\"\",\"\",'1. Order'!M1088)","v":""},null,null,{"$f":"IF('1. Order'!AS1088=\"\",\"\",'1. Order'!AS1088)","v":""},{"$f":"IF('1. Order'!AF1088=\"\",\"\",'1. Order'!AF1088)","v":""}]
[{"$f":"IF('1. Order'!B1089=\"\",\"\",'1. Order'!B1089)","v":""},{"$f":"IF('1. Order'!I1089=\"\",\"\",'1. Order'!I1089)","v":""},{"$f":"IF('1. Order'!J1089=\"\",\"\",'1. Order'!J1089)","v":""},{"$f":"IF('1. Order'!K1089=\"\",\"\",'1. Order'!K1089)","v":""},{"$f":"IF('1. Order'!M1089=\"\",\"\",'1. Order'!M1089)","v":""},null,null,{"$f":"IF('1. Order'!AS1089=\"\",\"\",'1. Order'!AS1089)","v":""},{"$f":"IF('1. Order'!AF1089=\"\",\"\",'1. Order'!AF1089)","v":""}]
[{"$f":"IF('1. Order'!B1090=\"\",\"\",'1. Order'!B1090)","v":""},{"$f":"IF('1. Order'!I1090=\"\",\"\",'1. Order'!I1090)","v":""},{"$f":"IF('1. Order'!J1090=\"\",\"\",'1. Order'!J1090)","v":""},{"$f":"IF('1. Order'!K1090=\"\",\"\",'1. Order'!K1090)","v":""},{"$f":"IF('1. Order'!M1090=\"\",\"\",'1. Order'!M1090)","v":""},null,null,{"$f":"IF('1. Order'!AS1090=\"\",\"\",'1. Order'!AS1090)","v":""},{"$f":"IF('1. Order'!AF1090=\"\",\"\",'1. Order'!AF1090)","v":""}]
[{"$f":"IF('1. Order'!B1091=\"\",\"\",'1. Order'!B1091)","v":""},{"$f":"IF('1. Order'!I1091=\"\",\"\",'1. Order'!I1091)","v":""},{"$f":"IF('1. Order'!J1091=\"\",\"\",'1. Order'!J1091)","v":""},{"$f":"IF('1. Order'!K1091=\"\",\"\",'1. Order'!K1091)","v":""},{"$f":"IF('1. Order'!M1091=\"\",\"\",'1. Order'!M1091)","v":""},null,null,{"$f":"IF('1. Order'!AS1091=\"\",\"\",'1. Order'!AS1091)","v":""},{"$f":"IF('1. Order'!AF1091=\"\",\"\",'1. Order'!AF1091)","v":""}]
[{"$f":"IF('1. Order'!B1092=\"\",\"\",'1. Order'!B1092)","v":""},{"$f":"IF('1. Order'!I1092=\"\",\"\",'1. Order'!I1092)","v":""},{"$f":"IF('1. Order'!J1092=\"\",\"\",'1. Order'!J1092)","v":""},{"$f":"IF('1. Order'!K1092=\"\",\"\",'1. Order'!K1092)","v":""},{"$f":"IF('1. Order'!M1092=\"\",\"\",'1. Order'!M1092)","v":""},null,null,{"$f":"IF('1. Order'!AS1092=\"\",\"\",'1. Order'!AS1092)","v":""},{"$f":"IF('1. Order'!AF1092=\"\",\"\",'1. Order'!AF1092)","v":""}]
[{"$f":"IF('1. Order'!B1093=\"\",\"\",'1. Order'!B1093)","v":""},{"$f":"IF('1. Order'!I1093=\"\",\"\",'1. Order'!I1093)","v":""},{"$f":"IF('1. Order'!J1093=\"\",\"\",'1. Order'!J1093)","v":""},{"$f":"IF('1. Order'!K1093=\"\",\"\",'1. Order'!K1093)","v":""},{"$f":"IF('1. Order'!M1093=\"\",\"\",'1. Order'!M1093)","v":""},null,null,{"$f":"IF('1. Order'!AS1093=\"\",\"\",'1. Order'!AS1093)","v":""},{"$f":"IF('1. Order'!AF1093=\"\",\"\",'1. Order'!AF1093)","v":""}]
[{"$f":"IF('1. Order'!B1094=\"\",\"\",'1. Order'!B1094)","v":""},{"$f":"IF('1. Order'!I1094=\"\",\"\",'1. Order'!I1094)","v":""},{"$f":"IF('1. Order'!J1094=\"\",\"\",'1. Order'!J1094)","v":""},{"$f":"IF('1. Order'!K1094=\"\",\"\",'1. Order'!K1094)","v":""},{"$f":"IF('1. Order'!M1094=\"\",\"\",'1. Order'!M1094)","v":""},null,null,{"$f":"IF('1. Order'!AS1094=\"\",\"\",'1. Order'!AS1094)","v":""},{"$f":"IF('1. Order'!AF1094=\"\",\"\",'1. Order'!AF1094)","v":""}]
[{"$f":"IF('1. Order'!B1095=\"\",\"\",'1. Order'!B1095)","v":""},{"$f":"IF('1. Order'!I1095=\"\",\"\",'1. Order'!I1095)","v":""},{"$f":"IF('1. Order'!J1095=\"\",\"\",'1. Order'!J1095)","v":""},{"$f":"IF('1. Order'!K1095=\"\",\"\",'1. Order'!K1095)","v":""},{"$f":"IF('1. Order'!M1095=\"\",\"\",'1. Order'!M1095)","v":""},null,null,{"$f":"IF('1. Order'!AS1095=\"\",\"\",'1. Order'!AS1095)","v":""},{"$f":"IF('1. Order'!AF1095=\"\",\"\",'1. Order'!AF1095)","v":""}]
[{"$f":"IF('1. Order'!B1096=\"\",\"\",'1. Order'!B1096)","v":""},{"$f":"IF('1. Order'!I1096=\"\",\"\",'1. Order'!I1096)","v":""},{"$f":"IF('1. Order'!J1096=\"\",\"\",'1. Order'!J1096)","v":""},{"$f":"IF('1. Order'!K1096=\"\",\"\",'1. Order'!K1096)","v":""},{"$f":"IF('1. Order'!M1096=\"\",\"\",'1. Order'!M1096)","v":""},null,null,{"$f":"IF('1. Order'!AS1096=\"\",\"\",'1. Order'!AS1096)","v":""},{"$f":"IF('1. Order'!AF1096=\"\",\"\",'1. Order'!AF1096)","v":""}]
[{"$f":"IF('1. Order'!B1097=\"\",\"\",'1. Order'!B1097)","v":""},{"$f":"IF('1. Order'!I1097=\"\",\"\",'1. Order'!I1097)","v":""},{"$f":"IF('1. Order'!J1097=\"\",\"\",'1. Order'!J1097)","v":""},{"$f":"IF('1. Order'!K1097=\"\",\"\",'1. Order'!K1097)","v":""},{"$f":"IF('1. Order'!M1097=\"\",\"\",'1. Order'!M1097)","v":""},null,null,{"$f":"IF('1. Order'!AS1097=\"\",\"\",'1. Order'!AS1097)","v":""},{"$f":"IF('1. Order'!AF1097=\"\",\"\",'1. Order'!AF1097)","v":""}]
[{"$f":"IF('1. Order'!B1098=\"\",\"\",'1. Order'!B1098)","v":""},{"$f":"IF('1. Order'!I1098=\"\",\"\",'1. Order'!I1098)","v":""},{"$f":"IF('1. Order'!J1098=\"\",\"\",'1. Order'!J1098)","v":""},{"$f":"IF('1. Order'!K1098=\"\",\"\",'1. Order'!K1098)","v":""},{"$f":"IF('1. Order'!M1098=\"\",\"\",'1. Order'!M1098)","v":""},null,null,{"$f":"IF('1. Order'!AS1098=\"\",\"\",'1. Order'!AS1098)","v":""},{"$f":"IF('1. Order'!AF1098=\"\",\"\",'1. Order'!AF1098)","v":""}]
[{"$f":"IF('1. Order'!B1099=\"\",\"\",'1. Order'!B1099)","v":""},{"$f":"IF('1. Order'!I1099=\"\",\"\",'1. Order'!I1099)","v":""},{"$f":"IF('1. Order'!J1099=\"\",\"\",'1. Order'!J1099)","v":""},{"$f":"IF('1. Order'!K1099=\"\",\"\",'1. Order'!K1099)","v":""},{"$f":"IF('1. Order'!M1099=\"\",\"\",'1. Order'!M1099)","v":""},null,null,{"$f":"IF('1. Order'!AS1099=\"\",\"\",'1. Order'!AS1099)","v":""},{"$f":"IF('1. Order'!AF1099=\"\",\"\",'1. Order'!AF1099)","v":""}]
[{"$f":"IF('1. Order'!B1100=\"\",\"\",'1. Order'!B1100)","v":""},{"$f":"IF('1. Order'!I1100=\"\",\"\",'1. Order'!I1100)","v":""},{"$f":"IF('1. Order'!J1100=\"\",\"\",'1. Order'!J1100)","v":""},{"$f":"IF('1. Order'!K1100=\"\",\"\",'1. Order'!K1100)","v":""},{"$f":"IF('1. Order'!M1100=\"\",\"\",'1. Order'!M1100)","v":""},null,null,{"$f":"IF('1. Order'!AS1100=\"\",\"\",'1. Order'!AS1100)","v":""},{"$f":"IF('1. Order'!AF1100=\"\",\"\",'1. Order'!AF1100)","v":""}]
[{"$f":"IF('1. Order'!B1101=\"\",\"\",'1. Order'!B1101)","v":""},{"$f":"IF('1. Order'!I1101=\"\",\"\",'1. Order'!I1101)","v":""},{"$f":"IF('1. Order'!J1101=\"\",\"\",'1. Order'!J1101)","v":""},{"$f":"IF('1. Order'!K1101=\"\",\"\",'1. Order'!K1101)","v":""},{"$f":"IF('1. Order'!M1101=\"\",\"\",'1. Order'!M1101)","v":""},null,null,{"$f":"IF('1. Order'!AS1101=\"\",\"\",'1. Order'!AS1101)","v":""},{"$f":"IF('1. Order'!AF1101=\"\",\"\",'1. Order'!AF1101)","v":""}]
[{"$f":"IF('1. Order'!B1102=\"\",\"\",'1. Order'!B1102)","v":""},{"$f":"IF('1. Order'!I1102=\"\",\"\",'1. Order'!I1102)","v":""},{"$f":"IF('1. Order'!J1102=\"\",\"\",'1. Order'!J1102)","v":""},{"$f":"IF('1. Order'!K1102=\"\",\"\",'1. Order'!K1102)","v":""},{"$f":"IF('1. Order'!M1102=\"\",\"\",'1. Order'!M1102)","v":""},null,null,{"$f":"IF('1. Order'!AS1102=\"\",\"\",'1. Order'!AS1102)","v":""},{"$f":"IF('1. Order'!AF1102=\"\",\"\",'1. Order'!AF1102)","v":""}]
[{"$f":"IF('1. Order'!B1103=\"\",\"\",'1. Order'!B1103)","v":""},{"$f":"IF('1. Order'!I1103=\"\",\"\",'1. Order'!I1103)","v":""},{"$f":"IF('1. Order'!J1103=\"\",\"\",'1. Order'!J1103)","v":""},{"$f":"IF('1. Order'!K1103=\"\",\"\",'1. Order'!K1103)","v":""},{"$f":"IF('1. Order'!M1103=\"\",\"\",'1. Order'!M1103)","v":""},null,null,{"$f":"IF('1. Order'!AS1103=\"\",\"\",'1. Order'!AS1103)","v":""},{"$f":"IF('1. Order'!AF1103=\"\",\"\",'1. Order'!AF1103)","v":""}]
[{"$f":"IF('1. Order'!B1104=\"\",\"\",'1. Order'!B1104)","v":""},{"$f":"IF('1. Order'!I1104=\"\",\"\",'1. Order'!I1104)","v":""},{"$f":"IF('1. Order'!J1104=\"\",\"\",'1. Order'!J1104)","v":""},{"$f":"IF('1. Order'!K1104=\"\",\"\",'1. Order'!K1104)","v":""},{"$f":"IF('1. Order'!M1104=\"\",\"\",'1. Order'!M1104)","v":""},null,null,{"$f":"IF('1. Order'!AS1104=\"\",\"\",'1. Order'!AS1104)","v":""},{"$f":"IF('1. Order'!AF1104=\"\",\"\",'1. Order'!AF1104)","v":""}]
[{"$f":"IF('1. Order'!B1105=\"\",\"\",'1. Order'!B1105)","v":""},{"$f":"IF('1. Order'!I1105=\"\",\"\",'1. Order'!I1105)","v":""},{"$f":"IF('1. Order'!J1105=\"\",\"\",'1. Order'!J1105)","v":""},{"$f":"IF('1. Order'!K1105=\"\",\"\",'1. Order'!K1105)","v":""},{"$f":"IF('1. Order'!M1105=\"\",\"\",'1. Order'!M1105)","v":""},null,null,{"$f":"IF('1. Order'!AS1105=\"\",\"\",'1. Order'!AS1105)","v":""},{"$f":"IF('1. Order'!AF1105=\"\",\"\",'1. Order'!AF1105)","v":""}]
[{"$f":"IF('1. Order'!B1106=\"\",\"\",'1. Order'!B1106)","v":""},{"$f":"IF('1. Order'!I1106=\"\",\"\",'1. Order'!I1106)","v":""},{"$f":"IF('1. Order'!J1106=\"\",\"\",'1. Order'!J1106)","v":""},{"$f":"IF('1. Order'!K1106=\"\",\"\",'1. Order'!K1106)","v":""},{"$f":"IF('1. Order'!M1106=\"\",\"\",'1. Order'!M1106)","v":""},null,null,{"$f":"IF('1. Order'!AS1106=\"\",\"\",'1. Order'!AS1106)","v":""},{"$f":"IF('1. Order'!AF1106=\"\",\"\",'1. Order'!AF1106)","v":""}]
[{"$f":"IF('1. Order'!B1107=\"\",\"\",'1. Order'!B1107)","v":""},{"$f":"IF('1. Order'!I1107=\"\",\"\",'1. Order'!I1107)","v":""},{"$f":"IF('1. Order'!J1107=\"\",\"\",'1. Order'!J1107)","v":""},{"$f":"IF('1. Order'!K1107=\"\",\"\",'1. Order'!K1107)","v":""},{"$f":"IF('1. Order'!M1107=\"\",\"\",'1. Order'!M1107)","v":""},null,null,{"$f":"IF('1. Order'!AS1107=\"\",\"\",'1. Order'!AS1107)","v":""},{"$f":"IF('1. Order'!AF1107=\"\",\"\",'1. Order'!AF1107)","v":""}]
[{"$f":"IF('1. Order'!B1108=\"\",\"\",'1. Order'!B1108)","v":""},{"$f":"IF('1. Order'!I1108=\"\",\"\",'1. Order'!I1108)","v":""},{"$f":"IF('1. Order'!J1108=\"\",\"\",'1. Order'!J1108)","v":""},{"$f":"IF('1. Order'!K1108=\"\",\"\",'1. Order'!K1108)","v":""},{"$f":"IF('1. Order'!M1108=\"\",\"\",'1. Order'!M1108)","v":""},null,null,{"$f":"IF('1. Order'!AS1108=\"\",\"\",'1. Order'!AS1108)","v":""},{"$f":"IF('1. Order'!AF1108=\"\",\"\",'1. Order'!AF1108)","v":""}]
[{"$f":"IF('1. Order'!B1109=\"\",\"\",'1. Order'!B1109)","v":""},{"$f":"IF('1. Order'!I1109=\"\",\"\",'1. Order'!I1109)","v":""},{"$f":"IF('1. Order'!J1109=\"\",\"\",'1. Order'!J1109)","v":""},{"$f":"IF('1. Order'!K1109=\"\",\"\",'1. Order'!K1109)","v":""},{"$f":"IF('1. Order'!M1109=\"\",\"\",'1. Order'!M1109)","v":""},null,null,{"$f":"IF('1. Order'!AS1109=\"\",\"\",'1. Order'!AS1109)","v":""},{"$f":"IF('1. Order'!AF1109=\"\",\"\",'1. Order'!AF1109)","v":""}]
[{"$f":"IF('1. Order'!B1110=\"\",\"\",'1. Order'!B1110)","v":""},{"$f":"IF('1. Order'!I1110=\"\",\"\",'1. Order'!I1110)","v":""},{"$f":"IF('1. Order'!J1110=\"\",\"\",'1. Order'!J1110)","v":""},{"$f":"IF('1. Order'!K1110=\"\",\"\",'1. Order'!K1110)","v":""},{"$f":"IF('1. Order'!M1110=\"\",\"\",'1. Order'!M1110)","v":""},null,null,{"$f":"IF('1. Order'!AS1110=\"\",\"\",'1. Order'!AS1110)","v":""},{"$f":"IF('1. Order'!AF1110=\"\",\"\",'1. Order'!AF1110)","v":""}]
[{"$f":"IF('1. Order'!B1111=\"\",\"\",'1. Order'!B1111)","v":""},{"$f":"IF('1. Order'!I1111=\"\",\"\",'1. Order'!I1111)","v":""},{"$f":"IF('1. Order'!J1111=\"\",\"\",'1. Order'!J1111)","v":""},{"$f":"IF('1. Order'!K1111=\"\",\"\",'1. Order'!K1111)","v":""},{"$f":"IF('1. Order'!M1111=\"\",\"\",'1. Order'!M1111)","v":""},null,null,{"$f":"IF('1. Order'!AS1111=\"\",\"\",'1. Order'!AS1111)","v":""},{"$f":"IF('1. Order'!AF1111=\"\",\"\",'1. Order'!AF1111)","v":""}]
[{"$f":"IF('1. Order'!B1112=\"\",\"\",'1. Order'!B1112)","v":""},{"$f":"IF('1. Order'!I1112=\"\",\"\",'1. Order'!I1112)","v":""},{"$f":"IF('1. Order'!J1112=\"\",\"\",'1. Order'!J1112)","v":""},{"$f":"IF('1. Order'!K1112=\"\",\"\",'1. Order'!K1112)","v":""},{"$f":"IF('1. Order'!M1112=\"\",\"\",'1. Order'!M1112)","v":""},null,null,{"$f":"IF('1. Order'!AS1112=\"\",\"\",'1. Order'!AS1112)","v":""},{"$f":"IF('1. Order'!AF1112=\"\",\"\",'1. Order'!AF1112)","v":""}]
[{"$f":"IF('1. Order'!B1113=\"\",\"\",'1. Order'!B1113)","v":""},{"$f":"IF('1. Order'!I1113=\"\",\"\",'1. Order'!I1113)","v":""},{"$f":"IF('1. Order'!J1113=\"\",\"\",'1. Order'!J1113)","v":""},{"$f":"IF('1. Order'!K1113=\"\",\"\",'1. Order'!K1113)","v":""},{"$f":"IF('1. Order'!M1113=\"\",\"\",'1. Order'!M1113)","v":""},null,null,{"$f":"IF('1. Order'!AS1113=\"\",\"\",'1. Order'!AS1113)","v":""},{"$f":"IF('1. Order'!AF1113=\"\",\"\",'1. Order'!AF1113)","v":""}]
[{"$f":"IF('1. Order'!B1114=\"\",\"\",'1. Order'!B1114)","v":""},{"$f":"IF('1. Order'!I1114=\"\",\"\",'1. Order'!I1114)","v":""},{"$f":"IF('1. Order'!J1114=\"\",\"\",'1. Order'!J1114)","v":""},{"$f":"IF('1. Order'!K1114=\"\",\"\",'1. Order'!K1114)","v":""},{"$f":"IF('1. Order'!M1114=\"\",\"\",'1. Order'!M1114)","v":""},null,null,{"$f":"IF('1. Order'!AS1114=\"\",\"\",'1. Order'!AS1114)","v":""},{"$f":"IF('1. Order'!AF1114=\"\",\"\",'1. Order'!AF1114)","v":""}]
[{"$f":"IF('1. Order'!B1115=\"\",\"\",'1. Order'!B1115)","v":""},{"$f":"IF('1. Order'!I1115=\"\",\"\",'1. Order'!I1115)","v":""},{"$f":"IF('1. Order'!J1115=\"\",\"\",'1. Order'!J1115)","v":""},{"$f":"IF('1. Order'!K1115=\"\",\"\",'1. Order'!K1115)","v":""},{"$f":"IF('1. Order'!M1115=\"\",\"\",'1. Order'!M1115)","v":""},null,null,{"$f":"IF('1. Order'!AS1115=\"\",\"\",'1. Order'!AS1115)","v":""},{"$f":"IF('1. Order'!AF1115=\"\",\"\",'1. Order'!AF1115)","v":""}]
[{"$f":"IF('1. Order'!B1116=\"\",\"\",'1. Order'!B1116)","v":""},{"$f":"IF('1. Order'!I1116=\"\",\"\",'1. Order'!I1116)","v":""},{"$f":"IF('1. Order'!J1116=\"\",\"\",'1. Order'!J1116)","v":""},{"$f":"IF('1. Order'!K1116=\"\",\"\",'1. Order'!K1116)","v":""},{"$f":"IF('1. Order'!M1116=\"\",\"\",'1. Order'!M1116)","v":""},null,null,{"$f":"IF('1. Order'!AS1116=\"\",\"\",'1. Order'!AS1116)","v":""},{"$f":"IF('1. Order'!AF1116=\"\",\"\",'1. Order'!AF1116)","v":""}]
[{"$f":"IF('1. Order'!B1117=\"\",\"\",'1. Order'!B1117)","v":""},{"$f":"IF('1. Order'!I1117=\"\",\"\",'1. Order'!I1117)","v":""},{"$f":"IF('1. Order'!J1117=\"\",\"\",'1. Order'!J1117)","v":""},{"$f":"IF('1. Order'!K1117=\"\",\"\",'1. Order'!K1117)","v":""},{"$f":"IF('1. Order'!M1117=\"\",\"\",'1. Order'!M1117)","v":""},null,null,{"$f":"IF('1. Order'!AS1117=\"\",\"\",'1. Order'!AS1117)","v":""},{"$f":"IF('1. Order'!AF1117=\"\",\"\",'1. Order'!AF1117)","v":""}]
[{"$f":"IF('1. Order'!B1118=\"\",\"\",'1. Order'!B1118)","v":""},{"$f":"IF('1. Order'!I1118=\"\",\"\",'1. Order'!I1118)","v":""},{"$f":"IF('1. Order'!J1118=\"\",\"\",'1. Order'!J1118)","v":""},{"$f":"IF('1. Order'!K1118=\"\",\"\",'1. Order'!K1118)","v":""},{"$f":"IF('1. Order'!M1118=\"\",\"\",'1. Order'!M1118)","v":""},null,null,{"$f":"IF('1. Order'!AS1118=\"\",\"\",'1. Order'!AS1118)","v":""},{"$f":"IF('1. Order'!AF1118=\"\",\"\",'1. Order'!AF1118)","v":""}]
[{"$f":"IF('1. Order'!B1119=\"\",\"\",'1. Order'!B1119)","v":""},{"$f":"IF('1. Order'!I1119=\"\",\"\",'1. Order'!I1119)","v":""},{"$f":"IF('1. Order'!J1119=\"\",\"\",'1. Order'!J1119)","v":""},{"$f":"IF('1. Order'!K1119=\"\",\"\",'1. Order'!K1119)","v":""},{"$f":"IF('1. Order'!M1119=\"\",\"\",'1. Order'!M1119)","v":""},null,null,{"$f":"IF('1. Order'!AS1119=\"\",\"\",'1. Order'!AS1119)","v":""},{"$f":"IF('1. Order'!AF1119=\"\",\"\",'1. Order'!AF1119)","v":""}]
[{"$f":"IF('1. Order'!B1120=\"\",\"\",'1. Order'!B1120)","v":""},{"$f":"IF('1. Order'!I1120=\"\",\"\",'1. Order'!I1120)","v":""},{"$f":"IF('1. Order'!J1120=\"\",\"\",'1. Order'!J1120)","v":""},{"$f":"IF('1. Order'!K1120=\"\",\"\",'1. Order'!K1120)","v":""},{"$f":"IF('1. Order'!M1120=\"\",\"\",'1. Order'!M1120)","v":""},null,null,{"$f":"IF('1. Order'!AS1120=\"\",\"\",'1. Order'!AS1120)","v":""},{"$f":"IF('1. Order'!AF1120=\"\",\"\",'1. Order'!AF1120)","v":""}]
[{"$f":"IF('1. Order'!B1121=\"\",\"\",'1. Order'!B1121)","v":""},{"$f":"IF('1. Order'!I1121=\"\",\"\",'1. Order'!I1121)","v":""},{"$f":"IF('1. Order'!J1121=\"\",\"\",'1. Order'!J1121)","v":""},{"$f":"IF('1. Order'!K1121=\"\",\"\",'1. Order'!K1121)","v":""},{"$f":"IF('1. Order'!M1121=\"\",\"\",'1. Order'!M1121)","v":""},null,null,{"$f":"IF('1. Order'!AS1121=\"\",\"\",'1. Order'!AS1121)","v":""},{"$f":"IF('1. Order'!AF1121=\"\",\"\",'1. Order'!AF1121)","v":""}]
[{"$f":"IF('1. Order'!B1122=\"\",\"\",'1. Order'!B1122)","v":""},{"$f":"IF('1. Order'!I1122=\"\",\"\",'1. Order'!I1122)","v":""},{"$f":"IF('1. Order'!J1122=\"\",\"\",'1. Order'!J1122)","v":""},{"$f":"IF('1. Order'!K1122=\"\",\"\",'1. Order'!K1122)","v":""},{"$f":"IF('1. Order'!M1122=\"\",\"\",'1. Order'!M1122)","v":""},null,null,{"$f":"IF('1. Order'!AS1122=\"\",\"\",'1. Order'!AS1122)","v":""},{"$f":"IF('1. Order'!AF1122=\"\",\"\",'1. Order'!AF1122)","v":""}]
[{"$f":"IF('1. Order'!B1123=\"\",\"\",'1. Order'!B1123)","v":""},{"$f":"IF('1. Order'!I1123=\"\",\"\",'1. Order'!I1123)","v":""},{"$f":"IF('1. Order'!J1123=\"\",\"\",'1. Order'!J1123)","v":""},{"$f":"IF('1. Order'!K1123=\"\",\"\",'1. Order'!K1123)","v":""},{"$f":"IF('1. Order'!M1123=\"\",\"\",'1. Order'!M1123)","v":""},null,null,{"$f":"IF('1. Order'!AS1123=\"\",\"\",'1. Order'!AS1123)","v":""},{"$f":"IF('1. Order'!AF1123=\"\",\"\",'1. Order'!AF1123)","v":""}]
[{"$f":"IF('1. Order'!B1124=\"\",\"\",'1. Order'!B1124)","v":""},{"$f":"IF('1. Order'!I1124=\"\",\"\",'1. Order'!I1124)","v":""},{"$f":"IF('1. Order'!J1124=\"\",\"\",'1. Order'!J1124)","v":""},{"$f":"IF('1. Order'!K1124=\"\",\"\",'1. Order'!K1124)","v":""},{"$f":"IF('1. Order'!M1124=\"\",\"\",'1. Order'!M1124)","v":""},null,null,{"$f":"IF('1. Order'!AS1124=\"\",\"\",'1. Order'!AS1124)","v":""},{"$f":"IF('1. Order'!AF1124=\"\",\"\",'1. Order'!AF1124)","v":""}]
[{"$f":"IF('1. Order'!B1125=\"\",\"\",'1. Order'!B1125)","v":""},{"$f":"IF('1. Order'!I1125=\"\",\"\",'1. Order'!I1125)","v":""},{"$f":"IF('1. Order'!J1125=\"\",\"\",'1. Order'!J1125)","v":""},{"$f":"IF('1. Order'!K1125=\"\",\"\",'1. Order'!K1125)","v":""},{"$f":"IF('1. Order'!M1125=\"\",\"\",'1. Order'!M1125)","v":""},null,null,{"$f":"IF('1. Order'!AS1125=\"\",\"\",'1. Order'!AS1125)","v":""},{"$f":"IF('1. Order'!AF1125=\"\",\"\",'1. Order'!AF1125)","v":""}]
[{"$f":"IF('1. Order'!B1126=\"\",\"\",'1. Order'!B1126)","v":""},{"$f":"IF('1. Order'!I1126=\"\",\"\",'1. Order'!I1126)","v":""},{"$f":"IF('1. Order'!J1126=\"\",\"\",'1. Order'!J1126)","v":""},{"$f":"IF('1. Order'!K1126=\"\",\"\",'1. Order'!K1126)","v":""},{"$f":"IF('1. Order'!M1126=\"\",\"\",'1. Order'!M1126)","v":""},null,null,{"$f":"IF('1. Order'!AS1126=\"\",\"\",'1. Order'!AS1126)","v":""},{"$f":"IF('1. Order'!AF1126=\"\",\"\",'1. Order'!AF1126)","v":""}]
[{"$f":"IF('1. Order'!B1127=\"\",\"\",'1. Order'!B1127)","v":""},{"$f":"IF('1. Order'!I1127=\"\",\"\",'1. Order'!I1127)","v":""},{"$f":"IF('1. Order'!J1127=\"\",\"\",'1. Order'!J1127)","v":""},{"$f":"IF('1. Order'!K1127=\"\",\"\",'1. Order'!K1127)","v":""},{"$f":"IF('1. Order'!M1127=\"\",\"\",'1. Order'!M1127)","v":""},null,null,{"$f":"IF('1. Order'!AS1127=\"\",\"\",'1. Order'!AS1127)","v":""},{"$f":"IF('1. Order'!AF1127=\"\",\"\",'1. Order'!AF1127)","v":""}]
[{"$f":"IF('1. Order'!B1128=\"\",\"\",'1. Order'!B1128)","v":""},{"$f":"IF('1. Order'!I1128=\"\",\"\",'1. Order'!I1128)","v":""},{"$f":"IF('1. Order'!J1128=\"\",\"\",'1. Order'!J1128)","v":""},{"$f":"IF('1. Order'!K1128=\"\",\"\",'1. Order'!K1128)","v":""},{"$f":"IF('1. Order'!M1128=\"\",\"\",'1. Order'!M1128)","v":""},null,null,{"$f":"IF('1. Order'!AS1128=\"\",\"\",'1. Order'!AS1128)","v":""},{"$f":"IF('1. Order'!AF1128=\"\",\"\",'1. Order'!AF1128)","v":""}]
[{"$f":"IF('1. Order'!B1129=\"\",\"\",'1. Order'!B1129)","v":""},{"$f":"IF('1. Order'!I1129=\"\",\"\",'1. Order'!I1129)","v":""},{"$f":"IF('1. Order'!J1129=\"\",\"\",'1. Order'!J1129)","v":""},{"$f":"IF('1. Order'!K1129=\"\",\"\",'1. Order'!K1129)","v":""},{"$f":"IF('1. Order'!M1129=\"\",\"\",'1. Order'!M1129)","v":""},null,null,{"$f":"IF('1. Order'!AS1129=\"\",\"\",'1. Order'!AS1129)","v":""},{"$f":"IF('1. Order'!AF1129=\"\",\"\",'1. Order'!AF1129)","v":""}]
[{"$f":"IF('1. Order'!B1130=\"\",\"\",'1. Order'!B1130)","v":""},{"$f":"IF('1. Order'!I1130=\"\",\"\",'1. Order'!I1130)","v":""},{"$f":"IF('1. Order'!J1130=\"\",\"\",'1. Order'!J1130)","v":""},{"$f":"IF('1. Order'!K1130=\"\",\"\",'1. Order'!K1130)","v":""},{"$f":"IF('1. Order'!M1130=\"\",\"\",'1. Order'!M1130)","v":""},null,null,{"$f":"IF('1. Order'!AS1130=\"\",\"\",'1. Order'!AS1130)","v":""},{"$f":"IF('1. Order'!AF1130=\"\",\"\",'1. Order'!AF1130)","v":""}]
[{"$f":"IF('1. Order'!B1131=\"\",\"\",'1. Order'!B1131)","v":""},{"$f":"IF('1. Order'!I1131=\"\",\"\",'1. Order'!I1131)","v":""},{"$f":"IF('1. Order'!J1131=\"\",\"\",'1. Order'!J1131)","v":""},{"$f":"IF('1. Order'!K1131=\"\",\"\",'1. Order'!K1131)","v":""},{"$f":"IF('1. Order'!M1131=\"\",\"\",'1. Order'!M1131)","v":""},null,null,{"$f":"IF('1. Order'!AS1131=\"\",\"\",'1. Order'!AS1131)","v":""},{"$f":"IF('1. Order'!AF1131=\"\",\"\",'1. Order'!AF1131)","v":""}]
[{"$f":"IF('1. Order'!B1132=\"\",\"\",'1. Order'!B1132)","v":""},{"$f":"IF('1. Order'!I1132=\"\",\"\",'1. Order'!I1132)","v":""},{"$f":"IF('1. Order'!J1132=\"\",\"\",'1. Order'!J1132)","v":""},{"$f":"IF('1. Order'!K1132=\"\",\"\",'1. Order'!K1132)","v":""},{"$f":"IF('1. Order'!M1132=\"\",\"\",'1. Order'!M1132)","v":""},null,null,{"$f":"IF('1. Order'!AS1132=\"\",\"\",'1. Order'!AS1132)","v":""},{"$f":"IF('1. Order'!AF1132=\"\",\"\",'1. Order'!AF1132)","v":""}]
[{"$f":"IF('1. Order'!B1133=\"\",\"\",'1. Order'!B1133)","v":""},{"$f":"IF('1. Order'!I1133=\"\",\"\",'1. Order'!I1133)","v":""},{"$f":"IF('1. Order'!J1133=\"\",\"\",'1. Order'!J1133)","v":""},{"$f":"IF('1. Order'!K1133=\"\",\"\",'1. Order'!K1133)","v":""},{"$f":"IF('1. Order'!M1133=\"\",\"\",'1. Order'!M1133)","v":""},null,null,{"$f":"IF('1. Order'!AS1133=\"\",\"\",'1. Order'!AS1133)","v":""},{"$f":"IF('1. Order'!AF1133=\"\",\"\",'1. Order'!AF1133)","v":""}]
[{"$f":"IF('1. Order'!B1134=\"\",\"\",'1. Order'!B1134)","v":""},{"$f":"IF('1. Order'!I1134=\"\",\"\",'1. Order'!I1134)","v":""},{"$f":"IF('1. Order'!J1134=\"\",\"\",'1. Order'!J1134)","v":""},{"$f":"IF('1. Order'!K1134=\"\",\"\",'1. Order'!K1134)","v":""},{"$f":"IF('1. Order'!M1134=\"\",\"\",'1. Order'!M1134)","v":""},null,null,{"$f":"IF('1. Order'!AS1134=\"\",\"\",'1. Order'!AS1134)","v":""},{"$f":"IF('1. Order'!AF1134=\"\",\"\",'1. Order'!AF1134)","v":""}]
[{"$f":"IF('1. Order'!B1135=\"\",\"\",'1. Order'!B1135)","v":""},{"$f":"IF('1. Order'!I1135=\"\",\"\",'1. Order'!I1135)","v":""},{"$f":"IF('1. Order'!J1135=\"\",\"\",'1. Order'!J1135)","v":""},{"$f":"IF('1. Order'!K1135=\"\",\"\",'1. Order'!K1135)","v":""},{"$f":"IF('1. Order'!M1135=\"\",\"\",'1. Order'!M1135)","v":""},null,null,{"$f":"IF('1. Order'!AS1135=\"\",\"\",'1. Order'!AS1135)","v":""},{"$f":"IF('1. Order'!AF1135=\"\",\"\",'1. Order'!AF1135)","v":""}]
[{"$f":"IF('1. Order'!B1136=\"\",\"\",'1. Order'!B1136)","v":""},{"$f":"IF('1. Order'!I1136=\"\",\"\",'1. Order'!I1136)","v":""},{"$f":"IF('1. Order'!J1136=\"\",\"\",'1. Order'!J1136)","v":""},{"$f":"IF('1. Order'!K1136=\"\",\"\",'1. Order'!K1136)","v":""},{"$f":"IF('1. Order'!M1136=\"\",\"\",'1. Order'!M1136)","v":""},null,null,{"$f":"IF('1. Order'!AS1136=\"\",\"\",'1. Order'!AS1136)","v":""},{"$f":"IF('1. Order'!AF1136=\"\",\"\",'1. Order'!AF1136)","v":""}]
[{"$f":"IF('1. Order'!B1137=\"\",\"\",'1. Order'!B1137)","v":""},{"$f":"IF('1. Order'!I1137=\"\",\"\",'1. Order'!I1137)","v":""},{"$f":"IF('1. Order'!J1137=\"\",\"\",'1. Order'!J1137)","v":""},{"$f":"IF('1. Order'!K1137=\"\",\"\",'1. Order'!K1137)","v":""},{"$f":"IF('1. Order'!M1137=\"\",\"\",'1. Order'!M1137)","v":""},null,null,{"$f":"IF('1. Order'!AS1137=\"\",\"\",'1. Order'!AS1137)","v":""},{"$f":"IF('1. Order'!AF1137=\"\",\"\",'1. Order'!AF1137)","v":""}]
[{"$f":"IF('1. Order'!B1138=\"\",\"\",'1. Order'!B1138)","v":""},{"$f":"IF('1. Order'!I1138=\"\",\"\",'1. Order'!I1138)","v":""},{"$f":"IF('1. Order'!J1138=\"\",\"\",'1. Order'!J1138)","v":""},{"$f":"IF('1. Order'!K1138=\"\",\"\",'1. Order'!K1138)","v":""},{"$f":"IF('1. Order'!M1138=\"\",\"\",'1. Order'!M1138)","v":""},null,null,{"$f":"IF('1. Order'!AS1138=\"\",\"\",'1. Order'!AS1138)","v":""},{"$f":"IF('1. Order'!AF1138=\"\",\"\",'1. Order'!AF1138)","v":""}]
[{"$f":"IF('1. Order'!B1139=\"\",\"\",'1. Order'!B1139)","v":""},{"$f":"IF('1. Order'!I1139=\"\",\"\",'1. Order'!I1139)","v":""},{"$f":"IF('1. Order'!J1139=\"\",\"\",'1. Order'!J1139)","v":""},{"$f":"IF('1. Order'!K1139=\"\",\"\",'1. Order'!K1139)","v":""},{"$f":"IF('1. Order'!M1139=\"\",\"\",'1. Order'!M1139)","v":""},null,null,{"$f":"IF('1. Order'!AS1139=\"\",\"\",'1. Order'!AS1139)","v":""},{"$f":"IF('1. Order'!AF1139=\"\",\"\",'1. Order'!AF1139)","v":""}]
[{"$f":"IF('1. Order'!B1140=\"\",\"\",'1. Order'!B1140)","v":""},{"$f":"IF('1. Order'!I1140=\"\",\"\",'1. Order'!I1140)","v":""},{"$f":"IF('1. Order'!J1140=\"\",\"\",'1. Order'!J1140)","v":""},{"$f":"IF('1. Order'!K1140=\"\",\"\",'1. Order'!K1140)","v":""},{"$f":"IF('1. Order'!M1140=\"\",\"\",'1. Order'!M1140)","v":""},null,null,{"$f":"IF('1. Order'!AS1140=\"\",\"\",'1. Order'!AS1140)","v":""},{"$f":"IF('1. Order'!AF1140=\"\",\"\",'1. Order'!AF1140)","v":""}]
[{"$f":"IF('1. Order'!B1141=\"\",\"\",'1. Order'!B1141)","v":""},{"$f":"IF('1. Order'!I1141=\"\",\"\",'1. Order'!I1141)","v":""},{"$f":"IF('1. Order'!J1141=\"\",\"\",'1. Order'!J1141)","v":""},{"$f":"IF('1. Order'!K1141=\"\",\"\",'1. Order'!K1141)","v":""},{"$f":"IF('1. Order'!M1141=\"\",\"\",'1. Order'!M1141)","v":""},null,null,{"$f":"IF('1. Order'!AS1141=\"\",\"\",'1. Order'!AS1141)","v":""},{"$f":"IF('1. Order'!AF1141=\"\",\"\",'1. Order'!AF1141)","v":""}]
[{"$f":"IF('1. Order'!B1142=\"\",\"\",'1. Order'!B1142)","v":""},{"$f":"IF('1. Order'!I1142=\"\",\"\",'1. Order'!I1142)","v":""},{"$f":"IF('1. Order'!J1142=\"\",\"\",'1. Order'!J1142)","v":""},{"$f":"IF('1. Order'!K1142=\"\",\"\",'1. Order'!K1142)","v":""},{"$f":"IF('1. Order'!M1142=\"\",\"\",'1. Order'!M1142)","v":""},null,null,{"$f":"IF('1. Order'!AS1142=\"\",\"\",'1. Order'!AS1142)","v":""},{"$f":"IF('1. Order'!AF1142=\"\",\"\",'1. Order'!AF1142)","v":""}]
[{"$f":"IF('1. Order'!B1143=\"\",\"\",'1. Order'!B1143)","v":""},{"$f":"IF('1. Order'!I1143=\"\",\"\",'1. Order'!I1143)","v":""},{"$f":"IF('1. Order'!J1143=\"\",\"\",'1. Order'!J1143)","v":""},{"$f":"IF('1. Order'!K1143=\"\",\"\",'1. Order'!K1143)","v":""},{"$f":"IF('1. Order'!M1143=\"\",\"\",'1. Order'!M1143)","v":""},null,null,{"$f":"IF('1. Order'!AS1143=\"\",\"\",'1. Order'!AS1143)","v":""},{"$f":"IF('1. Order'!AF1143=\"\",\"\",'1. Order'!AF1143)","v":""}]
[{"$f":"IF('1. Order'!B1144=\"\",\"\",'1. Order'!B1144)","v":""},{"$f":"IF('1. Order'!I1144=\"\",\"\",'1. Order'!I1144)","v":""},{"$f":"IF('1. Order'!J1144=\"\",\"\",'1. Order'!J1144)","v":""},{"$f":"IF('1. Order'!K1144=\"\",\"\",'1. Order'!K1144)","v":""},{"$f":"IF('1. Order'!M1144=\"\",\"\",'1. Order'!M1144)","v":""},null,null,{"$f":"IF('1. Order'!AS1144=\"\",\"\",'1. Order'!AS1144)","v":""},{"$f":"IF('1. Order'!AF1144=\"\",\"\",'1. Order'!AF1144)","v":""}]
[{"$f":"IF('1. Order'!B1145=\"\",\"\",'1. Order'!B1145)","v":""},{"$f":"IF('1. Order'!I1145=\"\",\"\",'1. Order'!I1145)","v":""},{"$f":"IF('1. Order'!J1145=\"\",\"\",'1. Order'!J1145)","v":""},{"$f":"IF('1. Order'!K1145=\"\",\"\",'1. Order'!K1145)","v":""},{"$f":"IF('1. Order'!M1145=\"\",\"\",'1. Order'!M1145)","v":""},null,null,{"$f":"IF('1. Order'!AS1145=\"\",\"\",'1. Order'!AS1145)","v":""},{"$f":"IF('1. Order'!AF1145=\"\",\"\",'1. Order'!AF1145)","v":""}]
[{"$f":"IF('1. Order'!B1146=\"\",\"\",'1. Order'!B1146)","v":""},{"$f":"IF('1. Order'!I1146=\"\",\"\",'1. Order'!I1146)","v":""},{"$f":"IF('1. Order'!J1146=\"\",\"\",'1. Order'!J1146)","v":""},{"$f":"IF('1. Order'!K1146=\"\",\"\",'1. Order'!K1146)","v":""},{"$f":"IF('1. Order'!M1146=\"\",\"\",'1. Order'!M1146)","v":""},null,null,{"$f":"IF('1. Order'!AS1146=\"\",\"\",'1. Order'!AS1146)","v":""},{"$f":"IF('1. Order'!AF1146=\"\",\"\",'1. Order'!AF1146)","v":""}]
[{"$f":"IF('1. Order'!B1147=\"\",\"\",'1. Order'!B1147)","v":""},{"$f":"IF('1. Order'!I1147=\"\",\"\",'1. Order'!I1147)","v":""},{"$f":"IF('1. Order'!J1147=\"\",\"\",'1. Order'!J1147)","v":""},{"$f":"IF('1. Order'!K1147=\"\",\"\",'1. Order'!K1147)","v":""},{"$f":"IF('1. Order'!M1147=\"\",\"\",'1. Order'!M1147)","v":""},null,null,{"$f":"IF('1. Order'!AS1147=\"\",\"\",'1. Order'!AS1147)","v":""},{"$f":"IF('1. Order'!AF1147=\"\",\"\",'1. Order'!AF1147)","v":""}]
[{"$f":"IF('1. Order'!B1148=\"\",\"\",'1. Order'!B1148)","v":""},{"$f":"IF('1. Order'!I1148=\"\",\"\",'1. Order'!I1148)","v":""},{"$f":"IF('1. Order'!J1148=\"\",\"\",'1. Order'!J1148)","v":""},{"$f":"IF('1. Order'!K1148=\"\",\"\",'1. Order'!K1148)","v":""},{"$f":"IF('1. Order'!M1148=\"\",\"\",'1. Order'!M1148)","v":""},null,null,{"$f":"IF('1. Order'!AS1148=\"\",\"\",'1. Order'!AS1148)","v":""},{"$f":"IF('1. Order'!AF1148=\"\",\"\",'1. Order'!AF1148)","v":""}]
[{"$f":"IF('1. Order'!B1149=\"\",\"\",'1. Order'!B1149)","v":""},{"$f":"IF('1. Order'!I1149=\"\",\"\",'1. Order'!I1149)","v":""},{"$f":"IF('1. Order'!J1149=\"\",\"\",'1. Order'!J1149)","v":""},{"$f":"IF('1. Order'!K1149=\"\",\"\",'1. Order'!K1149)","v":""},{"$f":"IF('1. Order'!M1149=\"\",\"\",'1. Order'!M1149)","v":""},null,null,{"$f":"IF('1. Order'!AS1149=\"\",\"\",'1. Order'!AS1149)","v":""},{"$f":"IF('1. Order'!AF1149=\"\",\"\",'1. Order'!AF1149)","v":""}]
[{"$f":"IF('1. Order'!B1150=\"\",\"\",'1. Order'!B1150)","v":""},{"$f":"IF('1. Order'!I1150=\"\",\"\",'1. Order'!I1150)","v":""},{"$f":"IF('1. Order'!J1150=\"\",\"\",'1. Order'!J1150)","v":""},{"$f":"IF('1. Order'!K1150=\"\",\"\",'1. Order'!K1150)","v":""},{"$f":"IF('1. Order'!M1150=\"\",\"\",'1. Order'!M1150)","v":""},null,null,{"$f":"IF('1. Order'!AS1150=\"\",\"\",'1. Order'!AS1150)","v":""},{"$f":"IF('1. Order'!AF1150=\"\",\"\",'1. Order'!AF1150)","v":""}]
[{"$f":"IF('1. Order'!B1151=\"\",\"\",'1. Order'!B1151)","v":""},{"$f":"IF('1. Order'!I1151=\"\",\"\",'1. Order'!I1151)","v":""},{"$f":"IF('1. Order'!J1151=\"\",\"\",'1. Order'!J1151)","v":""},{"$f":"IF('1. Order'!K1151=\"\",\"\",'1. Order'!K1151)","v":""},{"$f":"IF('1. Order'!M1151=\"\",\"\",'1. Order'!M1151)","v":""},null,null,{"$f":"IF('1. Order'!AS1151=\"\",\"\",'1. Order'!AS1151)","v":""},{"$f":"IF('1. Order'!AF1151=\"\",\"\",'1. Order'!AF1151)","v":""}]
[{"$f":"IF('1. Order'!B1152=\"\",\"\",'1. Order'!B1152)","v":""},{"$f":"IF('1. Order'!I1152=\"\",\"\",'1. Order'!I1152)","v":""},{"$f":"IF('1. Order'!J1152=\"\",\"\",'1. Order'!J1152)","v":""},{"$f":"IF('1. Order'!K1152=\"\",\"\",'1. Order'!K1152)","v":""},{"$f":"IF('1. Order'!M1152=\"\",\"\",'1. Order'!M1152)","v":""},null,null,{"$f":"IF('1. Order'!AS1152=\"\",\"\",'1. Order'!AS1152)","v":""},{"$f":"IF('1. Order'!AF1152=\"\",\"\",'1. Order'!AF1152)","v":""}]
[{"$f":"IF('1. Order'!B1153=\"\",\"\",'1. Order'!B1153)","v":""},{"$f":"IF('1. Order'!I1153=\"\",\"\",'1. Order'!I1153)","v":""},{"$f":"IF('1. Order'!J1153=\"\",\"\",'1. Order'!J1153)","v":""},{"$f":"IF('1. Order'!K1153=\"\",\"\",'1. Order'!K1153)","v":""},{"$f":"IF('1. Order'!M1153=\"\",\"\",'1. Order'!M1153)","v":""},null,null,{"$f":"IF('1. Order'!AS1153=\"\",\"\",'1. Order'!AS1153)","v":""},{"$f":"IF('1. Order'!AF1153=\"\",\"\",'1. Order'!AF1153)","v":""}]
[{"$f":"IF('1. Order'!B1154=\"\",\"\",'1. Order'!B1154)","v":""},{"$f":"IF('1. Order'!I1154=\"\",\"\",'1. Order'!I1154)","v":""},{"$f":"IF('1. Order'!J1154=\"\",\"\",'1. Order'!J1154)","v":""},{"$f":"IF('1. Order'!K1154=\"\",\"\",'1. Order'!K1154)","v":""},{"$f":"IF('1. Order'!M1154=\"\",\"\",'1. Order'!M1154)","v":""},null,null,{"$f":"IF('1. Order'!AS1154=\"\",\"\",'1. Order'!AS1154)","v":""},{"$f":"IF('1. Order'!AF1154=\"\",\"\",'1. Order'!AF1154)","v":""}]
[{"$f":"IF('1. Order'!B1155=\"\",\"\",'1. Order'!B1155)","v":""},{"$f":"IF('1. Order'!I1155=\"\",\"\",'1. Order'!I1155)","v":""},{"$f":"IF('1. Order'!J1155=\"\",\"\",'1. Order'!J1155)","v":""},{"$f":"IF('1. Order'!K1155=\"\",\"\",'1. Order'!K1155)","v":""},{"$f":"IF('1. Order'!M1155=\"\",\"\",'1. Order'!M1155)","v":""},null,null,{"$f":"IF('1. Order'!AS1155=\"\",\"\",'1. Order'!AS1155)","v":""},{"$f":"IF('1. Order'!AF1155=\"\",\"\",'1. Order'!AF1155)","v":""}]
[{"$f":"IF('1. Order'!B1156=\"\",\"\",'1. Order'!B1156)","v":""},{"$f":"IF('1. Order'!I1156=\"\",\"\",'1. Order'!I1156)","v":""},{"$f":"IF('1. Order'!J1156=\"\",\"\",'1. Order'!J1156)","v":""},{"$f":"IF('1. Order'!K1156=\"\",\"\",'1. Order'!K1156)","v":""},{"$f":"IF('1. Order'!M1156=\"\",\"\",'1. Order'!M1156)","v":""},null,null,{"$f":"IF('1. Order'!AS1156=\"\",\"\",'1. Order'!AS1156)","v":""},{"$f":"IF('1. Order'!AF1156=\"\",\"\",'1. Order'!AF1156)","v":""}]
[{"$f":"IF('1. Order'!B1157=\"\",\"\",'1. Order'!B1157)","v":""},{"$f":"IF('1. Order'!I1157=\"\",\"\",'1. Order'!I1157)","v":""},{"$f":"IF('1. Order'!J1157=\"\",\"\",'1. Order'!J1157)","v":""},{"$f":"IF('1. Order'!K1157=\"\",\"\",'1. Order'!K1157)","v":""},{"$f":"IF('1. Order'!M1157=\"\",\"\",'1. Order'!M1157)","v":""},null,null,{"$f":"IF('1. Order'!AS1157=\"\",\"\",'1. Order'!AS1157)","v":""},{"$f":"IF('1. Order'!AF1157=\"\",\"\",'1. Order'!AF1157)","v":""}]
[{"$f":"IF('1. Order'!B1158=\"\",\"\",'1. Order'!B1158)","v":""},{"$f":"IF('1. Order'!I1158=\"\",\"\",'1. Order'!I1158)","v":""},{"$f":"IF('1. Order'!J1158=\"\",\"\",'1. Order'!J1158)","v":""},{"$f":"IF('1. Order'!K1158=\"\",\"\",'1. Order'!K1158)","v":""},{"$f":"IF('1. Order'!M1158=\"\",\"\",'1. Order'!M1158)","v":""},null,null,{"$f":"IF('1. Order'!AS1158=\"\",\"\",'1. Order'!AS1158)","v":""},{"$f":"IF('1. Order'!AF1158=\"\",\"\",'1. Order'!AF1158)","v":""}]
[{"$f":"IF('1. Order'!B1159=\"\",\"\",'1. Order'!B1159)","v":""},{"$f":"IF('1. Order'!I1159=\"\",\"\",'1. Order'!I1159)","v":""},{"$f":"IF('1. Order'!J1159=\"\",\"\",'1. Order'!J1159)","v":""},{"$f":"IF('1. Order'!K1159=\"\",\"\",'1. Order'!K1159)","v":""},{"$f":"IF('1. Order'!M1159=\"\",\"\",'1. Order'!M1159)","v":""},null,null,{"$f":"IF('1. Order'!AS1159=\"\",\"\",'1. Order'!AS1159)","v":""},{"$f":"IF('1. Order'!AF1159=\"\",\"\",'1. Order'!AF1159)","v":""}]
[{"$f":"IF('1. Order'!B1160=\"\",\"\",'1. Order'!B1160)","v":""},{"$f":"IF('1. Order'!I1160=\"\",\"\",'1. Order'!I1160)","v":""},{"$f":"IF('1. Order'!J1160=\"\",\"\",'1. Order'!J1160)","v":""},{"$f":"IF('1. Order'!K1160=\"\",\"\",'1. Order'!K1160)","v":""},{"$f":"IF('1. Order'!M1160=\"\",\"\",'1. Order'!M1160)","v":""},null,null,{"$f":"IF('1. Order'!AS1160=\"\",\"\",'1. Order'!AS1160)","v":""},{"$f":"IF('1. Order'!AF1160=\"\",\"\",'1. Order'!AF1160)","v":""}]
[{"$f":"IF('1. Order'!B1161=\"\",\"\",'1. Order'!B1161)","v":""},{"$f":"IF('1. Order'!I1161=\"\",\"\",'1. Order'!I1161)","v":""},{"$f":"IF('1. Order'!J1161=\"\",\"\",'1. Order'!J1161)","v":""},{"$f":"IF('1. Order'!K1161=\"\",\"\",'1. Order'!K1161)","v":""},{"$f":"IF('1. Order'!M1161=\"\",\"\",'1. Order'!M1161)","v":""},null,null,{"$f":"IF('1. Order'!AS1161=\"\",\"\",'1. Order'!AS1161)","v":""},{"$f":"IF('1. Order'!AF1161=\"\",\"\",'1. Order'!AF1161)","v":""}]
[{"$f":"IF('1. Order'!B1162=\"\",\"\",'1. Order'!B1162)","v":""},{"$f":"IF('1. Order'!I1162=\"\",\"\",'1. Order'!I1162)","v":""},{"$f":"IF('1. Order'!J1162=\"\",\"\",'1. Order'!J1162)","v":""},{"$f":"IF('1. Order'!K1162=\"\",\"\",'1. Order'!K1162)","v":""},{"$f":"IF('1. Order'!M1162=\"\",\"\",'1. Order'!M1162)","v":""},null,null,{"$f":"IF('1. Order'!AS1162=\"\",\"\",'1. Order'!AS1162)","v":""},{"$f":"IF('1. Order'!AF1162=\"\",\"\",'1. Order'!AF1162)","v":""}]
[{"$f":"IF('1. Order'!B1163=\"\",\"\",'1. Order'!B1163)","v":""},{"$f":"IF('1. Order'!I1163=\"\",\"\",'1. Order'!I1163)","v":""},{"$f":"IF('1. Order'!J1163=\"\",\"\",'1. Order'!J1163)","v":""},{"$f":"IF('1. Order'!K1163=\"\",\"\",'1. Order'!K1163)","v":""},{"$f":"IF('1. Order'!M1163=\"\",\"\",'1. Order'!M1163)","v":""},null,null,{"$f":"IF('1. Order'!AS1163=\"\",\"\",'1. Order'!AS1163)","v":""},{"$f":"IF('1. Order'!AF1163=\"\",\"\",'1. Order'!AF1163)","v":""}]
[{"$f":"IF('1. Order'!B1164=\"\",\"\",'1. Order'!B1164)","v":""},{"$f":"IF('1. Order'!I1164=\"\",\"\",'1. Order'!I1164)","v":""},{"$f":"IF('1. Order'!J1164=\"\",\"\",'1. Order'!J1164)","v":""},{"$f":"IF('1. Order'!K1164=\"\",\"\",'1. Order'!K1164)","v":""},{"$f":"IF('1. Order'!M1164=\"\",\"\",'1. Order'!M1164)","v":""},null,null,{"$f":"IF('1. Order'!AS1164=\"\",\"\",'1. Order'!AS1164)","v":""},{"$f":"IF('1. Order'!AF1164=\"\",\"\",'1. Order'!AF1164)","v":""}]
[{"$f":"IF('1. Order'!B1165=\"\",\"\",'1. Order'!B1165)","v":""},{"$f":"IF('1. Order'!I1165=\"\",\"\",'1. Order'!I1165)","v":""},{"$f":"IF('1. Order'!J1165=\"\",\"\",'1. Order'!J1165)","v":""},{"$f":"IF('1. Order'!K1165=\"\",\"\",'1. Order'!K1165)","v":""},{"$f":"IF('1. Order'!M1165=\"\",\"\",'1. Order'!M1165)","v":""},null,null,{"$f":"IF('1. Order'!AS1165=\"\",\"\",'1. Order'!AS1165)","v":""},{"$f":"IF('1. Order'!AF1165=\"\",\"\",'1. Order'!AF1165)","v":""}]
[{"$f":"IF('1. Order'!B1166=\"\",\"\",'1. Order'!B1166)","v":""},{"$f":"IF('1. Order'!I1166=\"\",\"\",'1. Order'!I1166)","v":""},{"$f":"IF('1. Order'!J1166=\"\",\"\",'1. Order'!J1166)","v":""},{"$f":"IF('1. Order'!K1166=\"\",\"\",'1. Order'!K1166)","v":""},{"$f":"IF('1. Order'!M1166=\"\",\"\",'1. Order'!M1166)","v":""},null,null,{"$f":"IF('1. Order'!AS1166=\"\",\"\",'1. Order'!AS1166)","v":""},{"$f":"IF('1. Order'!AF1166=\"\",\"\",'1. Order'!AF1166)","v":""}]
[{"$f":"IF('1. Order'!B1167=\"\",\"\",'1. Order'!B1167)","v":""},{"$f":"IF('1. Order'!I1167=\"\",\"\",'1. Order'!I1167)","v":""},{"$f":"IF('1. Order'!J1167=\"\",\"\",'1. Order'!J1167)","v":""},{"$f":"IF('1. Order'!K1167=\"\",\"\",'1. Order'!K1167)","v":""},{"$f":"IF('1. Order'!M1167=\"\",\"\",'1. Order'!M1167)","v":""},null,null,{"$f":"IF('1. Order'!AS1167=\"\",\"\",'1. Order'!AS1167)","v":""},{"$f":"IF('1. Order'!AF1167=\"\",\"\",'1. Order'!AF1167)","v":""}]
[{"$f":"IF('1. Order'!B1168=\"\",\"\",'1. Order'!B1168)","v":""},{"$f":"IF('1. Order'!I1168=\"\",\"\",'1. Order'!I1168)","v":""},{"$f":"IF('1. Order'!J1168=\"\",\"\",'1. Order'!J1168)","v":""},{"$f":"IF('1. Order'!K1168=\"\",\"\",'1. Order'!K1168)","v":""},{"$f":"IF('1. Order'!M1168=\"\",\"\",'1. Order'!M1168)","v":""},null,null,{"$f":"IF('1. Order'!AS1168=\"\",\"\",'1. Order'!AS1168)","v":""},{"$f":"IF('1. Order'!AF1168=\"\",\"\",'1. Order'!AF1168)","v":""}]
[{"$f":"IF('1. Order'!B1169=\"\",\"\",'1. Order'!B1169)","v":""},{"$f":"IF('1. Order'!I1169=\"\",\"\",'1. Order'!I1169)","v":""},{"$f":"IF('1. Order'!J1169=\"\",\"\",'1. Order'!J1169)","v":""},{"$f":"IF('1. Order'!K1169=\"\",\"\",'1. Order'!K1169)","v":""},{"$f":"IF('1. Order'!M1169=\"\",\"\",'1. Order'!M1169)","v":""},null,null,{"$f":"IF('1. Order'!AS1169=\"\",\"\",'1. Order'!AS1169)","v":""},{"$f":"IF('1. Order'!AF1169=\"\",\"\",'1. Order'!AF1169)","v":""}]
[{"$f":"IF('1. Order'!B1170=\"\",\"\",'1. Order'!B1170)","v":""},{"$f":"IF('1. Order'!I1170=\"\",\"\",'1. Order'!I1170)","v":""},{"$f":"IF('1. Order'!J1170=\"\",\"\",'1. Order'!J1170)","v":""},{"$f":"IF('1. Order'!K1170=\"\",\"\",'1. Order'!K1170)","v":""},{"$f":"IF('1. Order'!M1170=\"\",\"\",'1. Order'!M1170)","v":""},null,null,{"$f":"IF('1. Order'!AS1170=\"\",\"\",'1. Order'!AS1170)","v":""},{"$f":"IF('1. Order'!AF1170=\"\",\"\",'1. Order'!AF1170)","v":""}]
[{"$f":"IF('1. Order'!B1171=\"\",\"\",'1. Order'!B1171)","v":""},{"$f":"IF('1. Order'!I1171=\"\",\"\",'1. Order'!I1171)","v":""},{"$f":"IF('1. Order'!J1171=\"\",\"\",'1. Order'!J1171)","v":""},{"$f":"IF('1. Order'!K1171=\"\",\"\",'1. Order'!K1171)","v":""},{"$f":"IF('1. Order'!M1171=\"\",\"\",'1. Order'!M1171)","v":""},null,null,{"$f":"IF('1. Order'!AS1171=\"\",\"\",'1. Order'!AS1171)","v":""},{"$f":"IF('1. Order'!AF1171=\"\",\"\",'1. Order'!AF1171)","v":""}]
[{"$f":"IF('1. Order'!B1172=\"\",\"\",'1. Order'!B1172)","v":""},{"$f":"IF('1. Order'!I1172=\"\",\"\",'1. Order'!I1172)","v":""},{"$f":"IF('1. Order'!J1172=\"\",\"\",'1. Order'!J1172)","v":""},{"$f":"IF('1. Order'!K1172=\"\",\"\",'1. Order'!K1172)","v":""},{"$f":"IF('1. Order'!M1172=\"\",\"\",'1. Order'!M1172)","v":""},null,null,{"$f":"IF('1. Order'!AS1172=\"\",\"\",'1. Order'!AS1172)","v":""},{"$f":"IF('1. Order'!AF1172=\"\",\"\",'1. Order'!AF1172)","v":""}]
[{"$f":"IF('1. Order'!B1173=\"\",\"\",'1. Order'!B1173)","v":""},{"$f":"IF('1. Order'!I1173=\"\",\"\",'1. Order'!I1173)","v":""},{"$f":"IF('1. Order'!J1173=\"\",\"\",'1. Order'!J1173)","v":""},{"$f":"IF('1. Order'!K1173=\"\",\"\",'1. Order'!K1173)","v":""},{"$f":"IF('1. Order'!M1173=\"\",\"\",'1. Order'!M1173)","v":""},null,null,{"$f":"IF('1. Order'!AS1173=\"\",\"\",'1. Order'!AS1173)","v":""},{"$f":"IF('1. Order'!AF1173=\"\",\"\",'1. Order'!AF1173)","v":""}]
[{"$f":"IF('1. Order'!B1174=\"\",\"\",'1. Order'!B1174)","v":""},{"$f":"IF('1. Order'!I1174=\"\",\"\",'1. Order'!I1174)","v":""},{"$f":"IF('1. Order'!J1174=\"\",\"\",'1. Order'!J1174)","v":""},{"$f":"IF('1. Order'!K1174=\"\",\"\",'1. Order'!K1174)","v":""},{"$f":"IF('1. Order'!M1174=\"\",\"\",'1. Order'!M1174)","v":""},null,null,{"$f":"IF('1. Order'!AS1174=\"\",\"\",'1. Order'!AS1174)","v":""},{"$f":"IF('1. Order'!AF1174=\"\",\"\",'1. Order'!AF1174)","v":""}]
[{"$f":"IF('1. Order'!B1175=\"\",\"\",'1. Order'!B1175)","v":""},{"$f":"IF('1. Order'!I1175=\"\",\"\",'1. Order'!I1175)","v":""},{"$f":"IF('1. Order'!J1175=\"\",\"\",'1. Order'!J1175)","v":""},{"$f":"IF('1. Order'!K1175=\"\",\"\",'1. Order'!K1175)","v":""},{"$f":"IF('1. Order'!M1175=\"\",\"\",'1. Order'!M1175)","v":""},null,null,{"$f":"IF('1. Order'!AS1175=\"\",\"\",'1. Order'!AS1175)","v":""},{"$f":"IF('1. Order'!AF1175=\"\",\"\",'1. Order'!AF1175)","v":""}]
[{"$f":"IF('1. Order'!B1176=\"\",\"\",'1. Order'!B1176)","v":""},{"$f":"IF('1. Order'!I1176=\"\",\"\",'1. Order'!I1176)","v":""},{"$f":"IF('1. Order'!J1176=\"\",\"\",'1. Order'!J1176)","v":""},{"$f":"IF('1. Order'!K1176=\"\",\"\",'1. Order'!K1176)","v":""},{"$f":"IF('1. Order'!M1176=\"\",\"\",'1. Order'!M1176)","v":""},null,null,{"$f":"IF('1. Order'!AS1176=\"\",\"\",'1. Order'!AS1176)","v":""},{"$f":"IF('1. Order'!AF1176=\"\",\"\",'1. Order'!AF1176)","v":""}]
[{"$f":"IF('1. Order'!B1177=\"\",\"\",'1. Order'!B1177)","v":""},{"$f":"IF('1. Order'!I1177=\"\",\"\",'1. Order'!I1177)","v":""},{"$f":"IF('1. Order'!J1177=\"\",\"\",'1. Order'!J1177)","v":""},{"$f":"IF('1. Order'!K1177=\"\",\"\",'1. Order'!K1177)","v":""},{"$f":"IF('1. Order'!M1177=\"\",\"\",'1. Order'!M1177)","v":""},null,null,{"$f":"IF('1. Order'!AS1177=\"\",\"\",'1. Order'!AS1177)","v":""},{"$f":"IF('1. Order'!AF1177=\"\",\"\",'1. Order'!AF1177)","v":""}]
[{"$f":"IF('1. Order'!B1178=\"\",\"\",'1. Order'!B1178)","v":""},{"$f":"IF('1. Order'!I1178=\"\",\"\",'1. Order'!I1178)","v":""},{"$f":"IF('1. Order'!J1178=\"\",\"\",'1. Order'!J1178)","v":""},{"$f":"IF('1. Order'!K1178=\"\",\"\",'1. Order'!K1178)","v":""},{"$f":"IF('1. Order'!M1178=\"\",\"\",'1. Order'!M1178)","v":""},null,null,{"$f":"IF('1. Order'!AS1178=\"\",\"\",'1. Order'!AS1178)","v":""},{"$f":"IF('1. Order'!AF1178=\"\",\"\",'1. Order'!AF1178)","v":""}]
[{"$f":"IF('1. Order'!B1179=\"\",\"\",'1. Order'!B1179)","v":""},{"$f":"IF('1. Order'!I1179=\"\",\"\",'1. Order'!I1179)","v":""},{"$f":"IF('1. Order'!J1179=\"\",\"\",'1. Order'!J1179)","v":""},{"$f":"IF('1. Order'!K1179=\"\",\"\",'1. Order'!K1179)","v":""},{"$f":"IF('1. Order'!M1179=\"\",\"\",'1. Order'!M1179)","v":""},null,null,{"$f":"IF('1. Order'!AS1179=\"\",\"\",'1. Order'!AS1179)","v":""},{"$f":"IF('1. Order'!AF1179=\"\",\"\",'1. Order'!AF1179)","v":""}]
[{"$f":"IF('1. Order'!B1180=\"\",\"\",'1. Order'!B1180)","v":""},{"$f":"IF('1. Order'!I1180=\"\",\"\",'1. Order'!I1180)","v":""},{"$f":"IF('1. Order'!J1180=\"\",\"\",'1. Order'!J1180)","v":""},{"$f":"IF('1. Order'!K1180=\"\",\"\",'1. Order'!K1180)","v":""},{"$f":"IF('1. Order'!M1180=\"\",\"\",'1. Order'!M1180)","v":""},null,null,{"$f":"IF('1. Order'!AS1180=\"\",\"\",'1. Order'!AS1180)","v":""},{"$f":"IF('1. Order'!AF1180=\"\",\"\",'1. Order'!AF1180)","v":""}]
[{"$f":"IF('1. Order'!B1181=\"\",\"\",'1. Order'!B1181)","v":""},{"$f":"IF('1. Order'!I1181=\"\",\"\",'1. Order'!I1181)","v":""},{"$f":"IF('1. Order'!J1181=\"\",\"\",'1. Order'!J1181)","v":""},{"$f":"IF('1. Order'!K1181=\"\",\"\",'1. Order'!K1181)","v":""},{"$f":"IF('1. Order'!M1181=\"\",\"\",'1. Order'!M1181)","v":""},null,null,{"$f":"IF('1. Order'!AS1181=\"\",\"\",'1. Order'!AS1181)","v":""},{"$f":"IF('1. Order'!AF1181=\"\",\"\",'1. Order'!AF1181)","v":""}]
[{"$f":"IF('1. Order'!B1182=\"\",\"\",'1. Order'!B1182)","v":""},{"$f":"IF('1. Order'!I1182=\"\",\"\",'1. Order'!I1182)","v":""},{"$f":"IF('1. Order'!J1182=\"\",\"\",'1. Order'!J1182)","v":""},{"$f":"IF('1. Order'!K1182=\"\",\"\",'1. Order'!K1182)","v":""},{"$f":"IF('1. Order'!M1182=\"\",\"\",'1. Order'!M1182)","v":""},null,null,{"$f":"IF('1. Order'!AS1182=\"\",\"\",'1. Order'!AS1182)","v":""},{"$f":"IF('1. Order'!AF1182=\"\",\"\",'1. Order'!AF1182)","v":""}]
[{"$f":"IF('1. Order'!B1183=\"\",\"\",'1. Order'!B1183)","v":""},{"$f":"IF('1. Order'!I1183=\"\",\"\",'1. Order'!I1183)","v":""},{"$f":"IF('1. Order'!J1183=\"\",\"\",'1. Order'!J1183)","v":""},{"$f":"IF('1. Order'!K1183=\"\",\"\",'1. Order'!K1183)","v":""},{"$f":"IF('1. Order'!M1183=\"\",\"\",'1. Order'!M1183)","v":""},null,null,{"$f":"IF('1. Order'!AS1183=\"\",\"\",'1. Order'!AS1183)","v":""},{"$f":"IF('1. Order'!AF1183=\"\",\"\",'1. Order'!AF1183)","v":""}]
[{"$f":"IF('1. Order'!B1184=\"\",\"\",'1. Order'!B1184)","v":""},{"$f":"IF('1. Order'!I1184=\"\",\"\",'1. Order'!I1184)","v":""},{"$f":"IF('1. Order'!J1184=\"\",\"\",'1. Order'!J1184)","v":""},{"$f":"IF('1. Order'!K1184=\"\",\"\",'1. Order'!K1184)","v":""},{"$f":"IF('1. Order'!M1184=\"\",\"\",'1. Order'!M1184)","v":""},null,null,{"$f":"IF('1. Order'!AS1184=\"\",\"\",'1. Order'!AS1184)","v":""},{"$f":"IF('1. Order'!AF1184=\"\",\"\",'1. Order'!AF1184)","v":""}]
[{"$f":"IF('1. Order'!B1185=\"\",\"\",'1. Order'!B1185)","v":""},{"$f":"IF('1. Order'!I1185=\"\",\"\",'1. Order'!I1185)","v":""},{"$f":"IF('1. Order'!J1185=\"\",\"\",'1. Order'!J1185)","v":""},{"$f":"IF('1. Order'!K1185=\"\",\"\",'1. Order'!K1185)","v":""},{"$f":"IF('1. Order'!M1185=\"\",\"\",'1. Order'!M1185)","v":""},null,null,{"$f":"IF('1. Order'!AS1185=\"\",\"\",'1. Order'!AS1185)","v":""},{"$f":"IF('1. Order'!AF1185=\"\",\"\",'1. Order'!AF1185)","v":""}]
[{"$f":"IF('1. Order'!B1186=\"\",\"\",'1. Order'!B1186)","v":""},{"$f":"IF('1. Order'!I1186=\"\",\"\",'1. Order'!I1186)","v":""},{"$f":"IF('1. Order'!J1186=\"\",\"\",'1. Order'!J1186)","v":""},{"$f":"IF('1. Order'!K1186=\"\",\"\",'1. Order'!K1186)","v":""},{"$f":"IF('1. Order'!M1186=\"\",\"\",'1. Order'!M1186)","v":""},null,null,{"$f":"IF('1. Order'!AS1186=\"\",\"\",'1. Order'!AS1186)","v":""},{"$f":"IF('1. Order'!AF1186=\"\",\"\",'1. Order'!AF1186)","v":""}]
[{"$f":"IF('1. Order'!B1187=\"\",\"\",'1. Order'!B1187)","v":""},{"$f":"IF('1. Order'!I1187=\"\",\"\",'1. Order'!I1187)","v":""},{"$f":"IF('1. Order'!J1187=\"\",\"\",'1. Order'!J1187)","v":""},{"$f":"IF('1. Order'!K1187=\"\",\"\",'1. Order'!K1187)","v":""},{"$f":"IF('1. Order'!M1187=\"\",\"\",'1. Order'!M1187)","v":""},null,null,{"$f":"IF('1. Order'!AS1187=\"\",\"\",'1. Order'!AS1187)","v":""},{"$f":"IF('1. Order'!AF1187=\"\",\"\",'1. Order'!AF1187)","v":""}]
[{"$f":"IF('1. Order'!B1188=\"\",\"\",'1. Order'!B1188)","v":""},{"$f":"IF('1. Order'!I1188=\"\",\"\",'1. Order'!I1188)","v":""},{"$f":"IF('1. Order'!J1188=\"\",\"\",'1. Order'!J1188)","v":""},{"$f":"IF('1. Order'!K1188=\"\",\"\",'1. Order'!K1188)","v":""},{"$f":"IF('1. Order'!M1188=\"\",\"\",'1. Order'!M1188)","v":""},null,null,{"$f":"IF('1. Order'!AS1188=\"\",\"\",'1. Order'!AS1188)","v":""},{"$f":"IF('1. Order'!AF1188=\"\",\"\",'1. Order'!AF1188)","v":""}]
[{"$f":"IF('1. Order'!B1189=\"\",\"\",'1. Order'!B1189)","v":""},{"$f":"IF('1. Order'!I1189=\"\",\"\",'1. Order'!I1189)","v":""},{"$f":"IF('1. Order'!J1189=\"\",\"\",'1. Order'!J1189)","v":""},{"$f":"IF('1. Order'!K1189=\"\",\"\",'1. Order'!K1189)","v":""},{"$f":"IF('1. Order'!M1189=\"\",\"\",'1. Order'!M1189)","v":""},null,null,{"$f":"IF('1. Order'!AS1189=\"\",\"\",'1. Order'!AS1189)","v":""},{"$f":"IF('1. Order'!AF1189=\"\",\"\",'1. Order'!AF1189)","v":""}]
[{"$f":"IF('1. Order'!B1190=\"\",\"\",'1. Order'!B1190)","v":""},{"$f":"IF('1. Order'!I1190=\"\",\"\",'1. Order'!I1190)","v":""},{"$f":"IF('1. Order'!J1190=\"\",\"\",'1. Order'!J1190)","v":""},{"$f":"IF('1. Order'!K1190=\"\",\"\",'1. Order'!K1190)","v":""},{"$f":"IF('1. Order'!M1190=\"\",\"\",'1. Order'!M1190)","v":""},null,null,{"$f":"IF('1. Order'!AS1190=\"\",\"\",'1. Order'!AS1190)","v":""},{"$f":"IF('1. Order'!AF1190=\"\",\"\",'1. Order'!AF1190)","v":""}]
[{"$f":"IF('1. Order'!B1191=\"\",\"\",'1. Order'!B1191)","v":""},{"$f":"IF('1. Order'!I1191=\"\",\"\",'1. Order'!I1191)","v":""},{"$f":"IF('1. Order'!J1191=\"\",\"\",'1. Order'!J1191)","v":""},{"$f":"IF('1. Order'!K1191=\"\",\"\",'1. Order'!K1191)","v":""},{"$f":"IF('1. Order'!M1191=\"\",\"\",'1. Order'!M1191)","v":""},null,null,{"$f":"IF('1. Order'!AS1191=\"\",\"\",'1. Order'!AS1191)","v":""},{"$f":"IF('1. Order'!AF1191=\"\",\"\",'1. Order'!AF1191)","v":""}]
[{"$f":"IF('1. Order'!B1192=\"\",\"\",'1. Order'!B1192)","v":""},{"$f":"IF('1. Order'!I1192=\"\",\"\",'1. Order'!I1192)","v":""},{"$f":"IF('1. Order'!J1192=\"\",\"\",'1. Order'!J1192)","v":""},{"$f":"IF('1. Order'!K1192=\"\",\"\",'1. Order'!K1192)","v":""},{"$f":"IF('1. Order'!M1192=\"\",\"\",'1. Order'!M1192)","v":""},null,null,{"$f":"IF('1. Order'!AS1192=\"\",\"\",'1. Order'!AS1192)","v":""},{"$f":"IF('1. Order'!AF1192=\"\",\"\",'1. Order'!AF1192)","v":""}]
[{"$f":"IF('1. Order'!B1193=\"\",\"\",'1. Order'!B1193)","v":""},{"$f":"IF('1. Order'!I1193=\"\",\"\",'1. Order'!I1193)","v":""},{"$f":"IF('1. Order'!J1193=\"\",\"\",'1. Order'!J1193)","v":""},{"$f":"IF('1. Order'!K1193=\"\",\"\",'1. Order'!K1193)","v":""},{"$f":"IF('1. Order'!M1193=\"\",\"\",'1. Order'!M1193)","v":""},null,null,{"$f":"IF('1. Order'!AS1193=\"\",\"\",'1. Order'!AS1193)","v":""},{"$f":"IF('1. Order'!AF1193=\"\",\"\",'1. Order'!AF1193)","v":""}]
[{"$f":"IF('1. Order'!B1194=\"\",\"\",'1. Order'!B1194)","v":""},{"$f":"IF('1. Order'!I1194=\"\",\"\",'1. Order'!I1194)","v":""},{"$f":"IF('1. Order'!J1194=\"\",\"\",'1. Order'!J1194)","v":""},{"$f":"IF('1. Order'!K1194=\"\",\"\",'1. Order'!K1194)","v":""},{"$f":"IF('1. Order'!M1194=\"\",\"\",'1. Order'!M1194)","v":""},null,null,{"$f":"IF('1. Order'!AS1194=\"\",\"\",'1. Order'!AS1194)","v":""},{"$f":"IF('1. Order'!AF1194=\"\",\"\",'1. Order'!AF1194)","v":""}]
[{"$f":"IF('1. Order'!B1195=\"\",\"\",'1. Order'!B1195)","v":""},{"$f":"IF('1. Order'!I1195=\"\",\"\",'1. Order'!I1195)","v":""},{"$f":"IF('1. Order'!J1195=\"\",\"\",'1. Order'!J1195)","v":""},{"$f":"IF('1. Order'!K1195=\"\",\"\",'1. Order'!K1195)","v":""},{"$f":"IF('1. Order'!M1195=\"\",\"\",'1. Order'!M1195)","v":""},null,null,{"$f":"IF('1. Order'!AS1195=\"\",\"\",'1. Order'!AS1195)","v":""},{"$f":"IF('1. Order'!AF1195=\"\",\"\",'1. Order'!AF1195)","v":""}]
[{"$f":"IF('1. Order'!B1196=\"\",\"\",'1. Order'!B1196)","v":""},{"$f":"IF('1. Order'!I1196=\"\",\"\",'1. Order'!I1196)","v":""},{"$f":"IF('1. Order'!J1196=\"\",\"\",'1. Order'!J1196)","v":""},{"$f":"IF('1. Order'!K1196=\"\",\"\",'1. Order'!K1196)","v":""},{"$f":"IF('1. Order'!M1196=\"\",\"\",'1. Order'!M1196)","v":""},null,null,{"$f":"IF('1. Order'!AS1196=\"\",\"\",'1. Order'!AS1196)","v":""},{"$f":"IF('1. Order'!AF1196=\"\",\"\",'1. Order'!AF1196)","v":""}]
[{"$f":"IF('1. Order'!B1197=\"\",\"\",'1. Order'!B1197)","v":""},{"$f":"IF('1. Order'!I1197=\"\",\"\",'1. Order'!I1197)","v":""},{"$f":"IF('1. Order'!J1197=\"\",\"\",'1. Order'!J1197)","v":""},{"$f":"IF('1. Order'!K1197=\"\",\"\",'1. Order'!K1197)","v":""},{"$f":"IF('1. Order'!M1197=\"\",\"\",'1. Order'!M1197)","v":""},null,null,{"$f":"IF('1. Order'!AS1197=\"\",\"\",'1. Order'!AS1197)","v":""},{"$f":"IF('1. Order'!AF1197=\"\",\"\",'1. Order'!AF1197)","v":""}]
[{"$f":"IF('1. Order'!B1198=\"\",\"\",'1. Order'!B1198)","v":""},{"$f":"IF('1. Order'!I1198=\"\",\"\",'1. Order'!I1198)","v":""},{"$f":"IF('1. Order'!J1198=\"\",\"\",'1. Order'!J1198)","v":""},{"$f":"IF('1. Order'!K1198=\"\",\"\",'1. Order'!K1198)","v":""},{"$f":"IF('1. Order'!M1198=\"\",\"\",'1. Order'!M1198)","v":""},null,null,{"$f":"IF('1. Order'!AS1198=\"\",\"\",'1. Order'!AS1198)","v":""},{"$f":"IF('1. Order'!AF1198=\"\",\"\",'1. Order'!AF1198)","v":""}]
[{"$f":"IF('1. Order'!B1199=\"\",\"\",'1. Order'!B1199)","v":""},{"$f":"IF('1. Order'!I1199=\"\",\"\",'1. Order'!I1199)","v":""},{"$f":"IF('1. Order'!J1199=\"\",\"\",'1. Order'!J1199)","v":""},{"$f":"IF('1. Order'!K1199=\"\",\"\",'1. Order'!K1199)","v":""},{"$f":"IF('1. Order'!M1199=\"\",\"\",'1. Order'!M1199)","v":""},null,null,{"$f":"IF('1. Order'!AS1199=\"\",\"\",'1. Order'!AS1199)","v":""},{"$f":"IF('1. Order'!AF1199=\"\",\"\",'1. Order'!AF1199)","v":""}]
[{"$f":"IF('1. Order'!B1200=\"\",\"\",'1. Order'!B1200)","v":""},{"$f":"IF('1. Order'!I1200=\"\",\"\",'1. Order'!I1200)","v":""},{"$f":"IF('1. Order'!J1200=\"\",\"\",'1. Order'!J1200)","v":""},{"$f":"IF('1. Order'!K1200=\"\",\"\",'1. Order'!K1200)","v":""},{"$f":"IF('1. Order'!M1200=\"\",\"\",'1. Order'!M1200)","v":""},null,null,{"$f":"IF('1. Order'!AS1200=\"\",\"\",'1. Order'!AS1200)","v":""},{"$f":"IF('1. Order'!AF1200=\"\",\"\",'1. Order'!AF1200)","v":""}]
[{"$f":"IF('1. Order'!B1201=\"\",\"\",'1. Order'!B1201)","v":""},{"$f":"IF('1. Order'!I1201=\"\",\"\",'1. Order'!I1201)","v":""},{"$f":"IF('1. Order'!J1201=\"\",\"\",'1. Order'!J1201)","v":""},{"$f":"IF('1. Order'!K1201=\"\",\"\",'1. Order'!K1201)","v":""},{"$f":"IF('1. Order'!M1201=\"\",\"\",'1. Order'!M1201)","v":""},null,null,{"$f":"IF('1. Order'!AS1201=\"\",\"\",'1. Order'!AS1201)","v":""},{"$f":"IF('1. Order'!AF1201=\"\",\"\",'1. Order'!AF1201)","v":""}]
[{"$f":"IF('1. Order'!B1202=\"\",\"\",'1. Order'!B1202)","v":""},{"$f":"IF('1. Order'!I1202=\"\",\"\",'1. Order'!I1202)","v":""},{"$f":"IF('1. Order'!J1202=\"\",\"\",'1. Order'!J1202)","v":""},{"$f":"IF('1. Order'!K1202=\"\",\"\",'1. Order'!K1202)","v":""},{"$f":"IF('1. Order'!M1202=\"\",\"\",'1. Order'!M1202)","v":""},null,null,{"$f":"IF('1. Order'!AS1202=\"\",\"\",'1. Order'!AS1202)","v":""},{"$f":"IF('1. Order'!AF1202=\"\",\"\",'1. Order'!AF1202)","v":""}]
[{"$f":"IF('1. Order'!B1203=\"\",\"\",'1. Order'!B1203)","v":""},{"$f":"IF('1. Order'!I1203=\"\",\"\",'1. Order'!I1203)","v":""},{"$f":"IF('1. Order'!J1203=\"\",\"\",'1. Order'!J1203)","v":""},{"$f":"IF('1. Order'!K1203=\"\",\"\",'1. Order'!K1203)","v":""},{"$f":"IF('1. Order'!M1203=\"\",\"\",'1. Order'!M1203)","v":""},null,null,{"$f":"IF('1. Order'!AS1203=\"\",\"\",'1. Order'!AS1203)","v":""},{"$f":"IF('1. Order'!AF1203=\"\",\"\",'1. Order'!AF1203)","v":""}]
[{"$f":"IF('1. Order'!B1204=\"\",\"\",'1. Order'!B1204)","v":""},{"$f":"IF('1. Order'!I1204=\"\",\"\",'1. Order'!I1204)","v":""},{"$f":"IF('1. Order'!J1204=\"\",\"\",'1. Order'!J1204)","v":""},{"$f":"IF('1. Order'!K1204=\"\",\"\",'1. Order'!K1204)","v":""},{"$f":"IF('1. Order'!M1204=\"\",\"\",'1. Order'!M1204)","v":""},null,null,{"$f":"IF('1. Order'!AS1204=\"\",\"\",'1. Order'!AS1204)","v":""},{"$f":"IF('1. Order'!AF1204=\"\",\"\",'1. Order'!AF1204)","v":""}]
[{"$f":"IF('1. Order'!B1205=\"\",\"\",'1. Order'!B1205)","v":""},{"$f":"IF('1. Order'!I1205=\"\",\"\",'1. Order'!I1205)","v":""},{"$f":"IF('1. Order'!J1205=\"\",\"\",'1. Order'!J1205)","v":""},{"$f":"IF('1. Order'!K1205=\"\",\"\",'1. Order'!K1205)","v":""},{"$f":"IF('1. Order'!M1205=\"\",\"\",'1. Order'!M1205)","v":""},null,null,{"$f":"IF('1. Order'!AS1205=\"\",\"\",'1. Order'!AS1205)","v":""},{"$f":"IF('1. Order'!AF1205=\"\",\"\",'1. Order'!AF1205)","v":""}]
[{"$f":"IF('1. Order'!B1206=\"\",\"\",'1. Order'!B1206)","v":""},{"$f":"IF('1. Order'!I1206=\"\",\"\",'1. Order'!I1206)","v":""},{"$f":"IF('1. Order'!J1206=\"\",\"\",'1. Order'!J1206)","v":""},{"$f":"IF('1. Order'!K1206=\"\",\"\",'1. Order'!K1206)","v":""},{"$f":"IF('1. Order'!M1206=\"\",\"\",'1. Order'!M1206)","v":""},null,null,{"$f":"IF('1. Order'!AS1206=\"\",\"\",'1. Order'!AS1206)","v":""},{"$f":"IF('1. Order'!AF1206=\"\",\"\",'1. Order'!AF1206)","v":""}]
[{"$f":"IF('1. Order'!B1207=\"\",\"\",'1. Order'!B1207)","v":""},{"$f":"IF('1. Order'!I1207=\"\",\"\",'1. Order'!I1207)","v":""},{"$f":"IF('1. Order'!J1207=\"\",\"\",'1. Order'!J1207)","v":""},{"$f":"IF('1. Order'!K1207=\"\",\"\",'1. Order'!K1207)","v":""},{"$f":"IF('1. Order'!M1207=\"\",\"\",'1. Order'!M1207)","v":""},null,null,{"$f":"IF('1. Order'!AS1207=\"\",\"\",'1. Order'!AS1207)","v":""},{"$f":"IF('1. Order'!AF1207=\"\",\"\",'1. Order'!AF1207)","v":""}]
[{"$f":"IF('1. Order'!B1208=\"\",\"\",'1. Order'!B1208)","v":""},{"$f":"IF('1. Order'!I1208=\"\",\"\",'1. Order'!I1208)","v":""},{"$f":"IF('1. Order'!J1208=\"\",\"\",'1. Order'!J1208)","v":""},{"$f":"IF('1. Order'!K1208=\"\",\"\",'1. Order'!K1208)","v":""},{"$f":"IF('1. Order'!M1208=\"\",\"\",'1. Order'!M1208)","v":""},null,null,{"$f":"IF('1. Order'!AS1208=\"\",\"\",'1. Order'!AS1208)","v":""},{"$f":"IF('1. Order'!AF1208=\"\",\"\",'1. Order'!AF1208)","v":""}]
[{"$f":"IF('1. Order'!B1209=\"\",\"\",'1. Order'!B1209)","v":""},{"$f":"IF('1. Order'!I1209=\"\",\"\",'1. Order'!I1209)","v":""},{"$f":"IF('1. Order'!J1209=\"\",\"\",'1. Order'!J1209)","v":""},{"$f":"IF('1. Order'!K1209=\"\",\"\",'1. Order'!K1209)","v":""},{"$f":"IF('1. Order'!M1209=\"\",\"\",'1. Order'!M1209)","v":""},null,null,{"$f":"IF('1. Order'!AS1209=\"\",\"\",'1. Order'!AS1209)","v":""},{"$f":"IF('1. Order'!AF1209=\"\",\"\",'1. Order'!AF1209)","v":""}]
[{"$f":"IF('1. Order'!B1210=\"\",\"\",'1. Order'!B1210)","v":""},{"$f":"IF('1. Order'!I1210=\"\",\"\",'1. Order'!I1210)","v":""},{"$f":"IF('1. Order'!J1210=\"\",\"\",'1. Order'!J1210)","v":""},{"$f":"IF('1. Order'!K1210=\"\",\"\",'1. Order'!K1210)","v":""},{"$f":"IF('1. Order'!M1210=\"\",\"\",'1. Order'!M1210)","v":""},null,null,{"$f":"IF('1. Order'!AS1210=\"\",\"\",'1. Order'!AS1210)","v":""},{"$f":"IF('1. Order'!AF1210=\"\",\"\",'1. Order'!AF1210)","v":""}]
[{"$f":"IF('1. Order'!B1211=\"\",\"\",'1. Order'!B1211)","v":""},{"$f":"IF('1. Order'!I1211=\"\",\"\",'1. Order'!I1211)","v":""},{"$f":"IF('1. Order'!J1211=\"\",\"\",'1. Order'!J1211)","v":""},{"$f":"IF('1. Order'!K1211=\"\",\"\",'1. Order'!K1211)","v":""},{"$f":"IF('1. Order'!M1211=\"\",\"\",'1. Order'!M1211)","v":""},null,null,{"$f":"IF('1. Order'!AS1211=\"\",\"\",'1. Order'!AS1211)","v":""},{"$f":"IF('1. Order'!AF1211=\"\",\"\",'1. Order'!AF1211)","v":""}]
[{"$f":"IF('1. Order'!B1212=\"\",\"\",'1. Order'!B1212)","v":""},{"$f":"IF('1. Order'!I1212=\"\",\"\",'1. Order'!I1212)","v":""},{"$f":"IF('1. Order'!J1212=\"\",\"\",'1. Order'!J1212)","v":""},{"$f":"IF('1. Order'!K1212=\"\",\"\",'1. Order'!K1212)","v":""},{"$f":"IF('1. Order'!M1212=\"\",\"\",'1. Order'!M1212)","v":""},null,null,{"$f":"IF('1. Order'!AS1212=\"\",\"\",'1. Order'!AS1212)","v":""},{"$f":"IF('1. Order'!AF1212=\"\",\"\",'1. Order'!AF1212)","v":""}]
[{"$f":"IF('1. Order'!B1213=\"\",\"\",'1. Order'!B1213)","v":""},{"$f":"IF('1. Order'!I1213=\"\",\"\",'1. Order'!I1213)","v":""},{"$f":"IF('1. Order'!J1213=\"\",\"\",'1. Order'!J1213)","v":""},{"$f":"IF('1. Order'!K1213=\"\",\"\",'1. Order'!K1213)","v":""},{"$f":"IF('1. Order'!M1213=\"\",\"\",'1. Order'!M1213)","v":""},null,null,{"$f":"IF('1. Order'!AS1213=\"\",\"\",'1. Order'!AS1213)","v":""},{"$f":"IF('1. Order'!AF1213=\"\",\"\",'1. Order'!AF1213)","v":""}]
[{"$f":"IF('1. Order'!B1214=\"\",\"\",'1. Order'!B1214)","v":""},{"$f":"IF('1. Order'!I1214=\"\",\"\",'1. Order'!I1214)","v":""},{"$f":"IF('1. Order'!J1214=\"\",\"\",'1. Order'!J1214)","v":""},{"$f":"IF('1. Order'!K1214=\"\",\"\",'1. Order'!K1214)","v":""},{"$f":"IF('1. Order'!M1214=\"\",\"\",'1. Order'!M1214)","v":""},null,null,{"$f":"IF('1. Order'!AS1214=\"\",\"\",'1. Order'!AS1214)","v":""},{"$f":"IF('1. Order'!AF1214=\"\",\"\",'1. Order'!AF1214)","v":""}]
[{"$f":"IF('1. Order'!B1215=\"\",\"\",'1. Order'!B1215)","v":""},{"$f":"IF('1. Order'!I1215=\"\",\"\",'1. Order'!I1215)","v":""},{"$f":"IF('1. Order'!J1215=\"\",\"\",'1. Order'!J1215)","v":""},{"$f":"IF('1. Order'!K1215=\"\",\"\",'1. Order'!K1215)","v":""},{"$f":"IF('1. Order'!M1215=\"\",\"\",'1. Order'!M1215)","v":""},null,null,{"$f":"IF('1. Order'!AS1215=\"\",\"\",'1. Order'!AS1215)","v":""},{"$f":"IF('1. Order'!AF1215=\"\",\"\",'1. Order'!AF1215)","v":""}]
[{"$f":"IF('1. Order'!B1216=\"\",\"\",'1. Order'!B1216)","v":""},{"$f":"IF('1. Order'!I1216=\"\",\"\",'1. Order'!I1216)","v":""},{"$f":"IF('1. Order'!J1216=\"\",\"\",'1. Order'!J1216)","v":""},{"$f":"IF('1. Order'!K1216=\"\",\"\",'1. Order'!K1216)","v":""},{"$f":"IF('1. Order'!M1216=\"\",\"\",'1. Order'!M1216)","v":""},null,null,{"$f":"IF('1. Order'!AS1216=\"\",\"\",'1. Order'!AS1216)","v":""},{"$f":"IF('1. Order'!AF1216=\"\",\"\",'1. Order'!AF1216)","v":""}]
[{"$f":"IF('1. Order'!B1217=\"\",\"\",'1. Order'!B1217)","v":""},{"$f":"IF('1. Order'!I1217=\"\",\"\",'1. Order'!I1217)","v":""},{"$f":"IF('1. Order'!J1217=\"\",\"\",'1. Order'!J1217)","v":""},{"$f":"IF('1. Order'!K1217=\"\",\"\",'1. Order'!K1217)","v":""},{"$f":"IF('1. Order'!M1217=\"\",\"\",'1. Order'!M1217)","v":""},null,null,{"$f":"IF('1. Order'!AS1217=\"\",\"\",'1. Order'!AS1217)","v":""},{"$f":"IF('1. Order'!AF1217=\"\",\"\",'1. Order'!AF1217)","v":""}]
[{"$f":"IF('1. Order'!B1218=\"\",\"\",'1. Order'!B1218)","v":""},{"$f":"IF('1. Order'!I1218=\"\",\"\",'1. Order'!I1218)","v":""},{"$f":"IF('1. Order'!J1218=\"\",\"\",'1. Order'!J1218)","v":""},{"$f":"IF('1. Order'!K1218=\"\",\"\",'1. Order'!K1218)","v":""},{"$f":"IF('1. Order'!M1218=\"\",\"\",'1. Order'!M1218)","v":""},null,null,{"$f":"IF('1. Order'!AS1218=\"\",\"\",'1. Order'!AS1218)","v":""},{"$f":"IF('1. Order'!AF1218=\"\",\"\",'1. Order'!AF1218)","v":""}]
[{"$f":"IF('1. Order'!B1219=\"\",\"\",'1. Order'!B1219)","v":""},{"$f":"IF('1. Order'!I1219=\"\",\"\",'1. Order'!I1219)","v":""},{"$f":"IF('1. Order'!J1219=\"\",\"\",'1. Order'!J1219)","v":""},{"$f":"IF('1. Order'!K1219=\"\",\"\",'1. Order'!K1219)","v":""},{"$f":"IF('1. Order'!M1219=\"\",\"\",'1. Order'!M1219)","v":""},null,null,{"$f":"IF('1. Order'!AS1219=\"\",\"\",'1. Order'!AS1219)","v":""},{"$f":"IF('1. Order'!AF1219=\"\",\"\",'1. Order'!AF1219)","v":""}]
[{"$f":"IF('1. Order'!B1220=\"\",\"\",'1. Order'!B1220)","v":""},{"$f":"IF('1. Order'!I1220=\"\",\"\",'1. Order'!I1220)","v":""},{"$f":"IF('1. Order'!J1220=\"\",\"\",'1. Order'!J1220)","v":""},{"$f":"IF('1. Order'!K1220=\"\",\"\",'1. Order'!K1220)","v":""},{"$f":"IF('1. Order'!M1220=\"\",\"\",'1. Order'!M1220)","v":""},null,null,{"$f":"IF('1. Order'!AS1220=\"\",\"\",'1. Order'!AS1220)","v":""},{"$f":"IF('1. Order'!AF1220=\"\",\"\",'1. Order'!AF1220)","v":""}]
[{"$f":"IF('1. Order'!B1221=\"\",\"\",'1. Order'!B1221)","v":""},{"$f":"IF('1. Order'!I1221=\"\",\"\",'1. Order'!I1221)","v":""},{"$f":"IF('1. Order'!J1221=\"\",\"\",'1. Order'!J1221)","v":""},{"$f":"IF('1. Order'!K1221=\"\",\"\",'1. Order'!K1221)","v":""},{"$f":"IF('1. Order'!M1221=\"\",\"\",'1. Order'!M1221)","v":""},null,null,{"$f":"IF('1. Order'!AS1221=\"\",\"\",'1. Order'!AS1221)","v":""},{"$f":"IF('1. Order'!AF1221=\"\",\"\",'1. Order'!AF1221)","v":""}]
[{"$f":"IF('1. Order'!B1222=\"\",\"\",'1. Order'!B1222)","v":""},{"$f":"IF('1. Order'!I1222=\"\",\"\",'1. Order'!I1222)","v":""},{"$f":"IF('1. Order'!J1222=\"\",\"\",'1. Order'!J1222)","v":""},{"$f":"IF('1. Order'!K1222=\"\",\"\",'1. Order'!K1222)","v":""},{"$f":"IF('1. Order'!M1222=\"\",\"\",'1. Order'!M1222)","v":""},null,null,{"$f":"IF('1. Order'!AS1222=\"\",\"\",'1. Order'!AS1222)","v":""},{"$f":"IF('1. Order'!AF1222=\"\",\"\",'1. Order'!AF1222)","v":""}]
[{"$f":"IF('1. Order'!B1223=\"\",\"\",'1. Order'!B1223)","v":""},{"$f":"IF('1. Order'!I1223=\"\",\"\",'1. Order'!I1223)","v":""},{"$f":"IF('1. Order'!J1223=\"\",\"\",'1. Order'!J1223)","v":""},{"$f":"IF('1. Order'!K1223=\"\",\"\",'1. Order'!K1223)","v":""},{"$f":"IF('1. Order'!M1223=\"\",\"\",'1. Order'!M1223)","v":""},null,null,{"$f":"IF('1. Order'!AS1223=\"\",\"\",'1. Order'!AS1223)","v":""},{"$f":"IF('1. Order'!AF1223=\"\",\"\",'1. Order'!AF1223)","v":""}]
[{"$f":"IF('1. Order'!B1224=\"\",\"\",'1. Order'!B1224)","v":""},{"$f":"IF('1. Order'!I1224=\"\",\"\",'1. Order'!I1224)","v":""},{"$f":"IF('1. Order'!J1224=\"\",\"\",'1. Order'!J1224)","v":""},{"$f":"IF('1. Order'!K1224=\"\",\"\",'1. Order'!K1224)","v":""},{"$f":"IF('1. Order'!M1224=\"\",\"\",'1. Order'!M1224)","v":""},null,null,{"$f":"IF('1. Order'!AS1224=\"\",\"\",'1. Order'!AS1224)","v":""},{"$f":"IF('1. Order'!AF1224=\"\",\"\",'1. Order'!AF1224)","v":""}]
[{"$f":"IF('1. Order'!B1225=\"\",\"\",'1. Order'!B1225)","v":""},{"$f":"IF('1. Order'!I1225=\"\",\"\",'1. Order'!I1225)","v":""},{"$f":"IF('1. Order'!J1225=\"\",\"\",'1. Order'!J1225)","v":""},{"$f":"IF('1. Order'!K1225=\"\",\"\",'1. Order'!K1225)","v":""},{"$f":"IF('1. Order'!M1225=\"\",\"\",'1. Order'!M1225)","v":""},null,null,{"$f":"IF('1. Order'!AS1225=\"\",\"\",'1. Order'!AS1225)","v":""},{"$f":"IF('1. Order'!AF1225=\"\",\"\",'1. Order'!AF1225)","v":""}]
[{"$f":"IF('1. Order'!B1226=\"\",\"\",'1. Order'!B1226)","v":""},{"$f":"IF('1. Order'!I1226=\"\",\"\",'1. Order'!I1226)","v":""},{"$f":"IF('1. Order'!J1226=\"\",\"\",'1. Order'!J1226)","v":""},{"$f":"IF('1. Order'!K1226=\"\",\"\",'1. Order'!K1226)","v":""},{"$f":"IF('1. Order'!M1226=\"\",\"\",'1. Order'!M1226)","v":""},null,null,{"$f":"IF('1. Order'!AS1226=\"\",\"\",'1. Order'!AS1226)","v":""},{"$f":"IF('1. Order'!AF1226=\"\",\"\",'1. Order'!AF1226)","v":""}]
[{"$f":"IF('1. Order'!B1227=\"\",\"\",'1. Order'!B1227)","v":""},{"$f":"IF('1. Order'!I1227=\"\",\"\",'1. Order'!I1227)","v":""},{"$f":"IF('1. Order'!J1227=\"\",\"\",'1. Order'!J1227)","v":""},{"$f":"IF('1. Order'!K1227=\"\",\"\",'1. Order'!K1227)","v":""},{"$f":"IF('1. Order'!M1227=\"\",\"\",'1. Order'!M1227)","v":""},null,null,{"$f":"IF('1. Order'!AS1227=\"\",\"\",'1. Order'!AS1227)","v":""},{"$f":"IF('1. Order'!AF1227=\"\",\"\",'1. Order'!AF1227)","v":""}]
[{"$f":"IF('1. Order'!B1228=\"\",\"\",'1. Order'!B1228)","v":""},{"$f":"IF('1. Order'!I1228=\"\",\"\",'1. Order'!I1228)","v":""},{"$f":"IF('1. Order'!J1228=\"\",\"\",'1. Order'!J1228)","v":""},{"$f":"IF('1. Order'!K1228=\"\",\"\",'1. Order'!K1228)","v":""},{"$f":"IF('1. Order'!M1228=\"\",\"\",'1. Order'!M1228)","v":""},null,null,{"$f":"IF('1. Order'!AS1228=\"\",\"\",'1. Order'!AS1228)","v":""},{"$f":"IF('1. Order'!AF1228=\"\",\"\",'1. Order'!AF1228)","v":""}]
[{"$f":"IF('1. Order'!B1229=\"\",\"\",'1. Order'!B1229)","v":""},{"$f":"IF('1. Order'!I1229=\"\",\"\",'1. Order'!I1229)","v":""},{"$f":"IF('1. Order'!J1229=\"\",\"\",'1. Order'!J1229)","v":""},{"$f":"IF('1. Order'!K1229=\"\",\"\",'1. Order'!K1229)","v":""},{"$f":"IF('1. Order'!M1229=\"\",\"\",'1. Order'!M1229)","v":""},null,null,{"$f":"IF('1. Order'!AS1229=\"\",\"\",'1. Order'!AS1229)","v":""},{"$f":"IF('1. Order'!AF1229=\"\",\"\",'1. Order'!AF1229)","v":""}]
[{"$f":"IF('1. Order'!B1230=\"\",\"\",'1. Order'!B1230)","v":""},{"$f":"IF('1. Order'!I1230=\"\",\"\",'1. Order'!I1230)","v":""},{"$f":"IF('1. Order'!J1230=\"\",\"\",'1. Order'!J1230)","v":""},{"$f":"IF('1. Order'!K1230=\"\",\"\",'1. Order'!K1230)","v":""},{"$f":"IF('1. Order'!M1230=\"\",\"\",'1. Order'!M1230)","v":""},null,null,{"$f":"IF('1. Order'!AS1230=\"\",\"\",'1. Order'!AS1230)","v":""},{"$f":"IF('1. Order'!AF1230=\"\",\"\",'1. Order'!AF1230)","v":""}]
[{"$f":"IF('1. Order'!B1231=\"\",\"\",'1. Order'!B1231)","v":""},{"$f":"IF('1. Order'!I1231=\"\",\"\",'1. Order'!I1231)","v":""},{"$f":"IF('1. Order'!J1231=\"\",\"\",'1. Order'!J1231)","v":""},{"$f":"IF('1. Order'!K1231=\"\",\"\",'1. Order'!K1231)","v":""},{"$f":"IF('1. Order'!M1231=\"\",\"\",'1. Order'!M1231)","v":""},null,null,{"$f":"IF('1. Order'!AS1231=\"\",\"\",'1. Order'!AS1231)","v":""},{"$f":"IF('1. Order'!AF1231=\"\",\"\",'1. Order'!AF1231)","v":""}]
[{"$f":"IF('1. Order'!B1232=\"\",\"\",'1. Order'!B1232)","v":""},{"$f":"IF('1. Order'!I1232=\"\",\"\",'1. Order'!I1232)","v":""},{"$f":"IF('1. Order'!J1232=\"\",\"\",'1. Order'!J1232)","v":""},{"$f":"IF('1. Order'!K1232=\"\",\"\",'1. Order'!K1232)","v":""},{"$f":"IF('1. Order'!M1232=\"\",\"\",'1. Order'!M1232)","v":""},null,null,{"$f":"IF('1. Order'!AS1232=\"\",\"\",'1. Order'!AS1232)","v":""},{"$f":"IF('1. Order'!AF1232=\"\",\"\",'1. Order'!AF1232)","v":""}]
[{"$f":"IF('1. Order'!B1233=\"\",\"\",'1. Order'!B1233)","v":""},{"$f":"IF('1. Order'!I1233=\"\",\"\",'1. Order'!I1233)","v":""},{"$f":"IF('1. Order'!J1233=\"\",\"\",'1. Order'!J1233)","v":""},{"$f":"IF('1. Order'!K1233=\"\",\"\",'1. Order'!K1233)","v":""},{"$f":"IF('1. Order'!M1233=\"\",\"\",'1. Order'!M1233)","v":""},null,null,{"$f":"IF('1. Order'!AS1233=\"\",\"\",'1. Order'!AS1233)","v":""},{"$f":"IF('1. Order'!AF1233=\"\",\"\",'1. Order'!AF1233)","v":""}]
[{"$f":"IF('1. Order'!B1234=\"\",\"\",'1. Order'!B1234)","v":""},{"$f":"IF('1. Order'!I1234=\"\",\"\",'1. Order'!I1234)","v":""},{"$f":"IF('1. Order'!J1234=\"\",\"\",'1. Order'!J1234)","v":""},{"$f":"IF('1. Order'!K1234=\"\",\"\",'1. Order'!K1234)","v":""},{"$f":"IF('1. Order'!M1234=\"\",\"\",'1. Order'!M1234)","v":""},null,null,{"$f":"IF('1. Order'!AS1234=\"\",\"\",'1. Order'!AS1234)","v":""},{"$f":"IF('1. Order'!AF1234=\"\",\"\",'1. Order'!AF1234)","v":""}]
[{"$f":"IF('1. Order'!B1235=\"\",\"\",'1. Order'!B1235)","v":""},{"$f":"IF('1. Order'!I1235=\"\",\"\",'1. Order'!I1235)","v":""},{"$f":"IF('1. Order'!J1235=\"\",\"\",'1. Order'!J1235)","v":""},{"$f":"IF('1. Order'!K1235=\"\",\"\",'1. Order'!K1235)","v":""},{"$f":"IF('1. Order'!M1235=\"\",\"\",'1. Order'!M1235)","v":""},null,null,{"$f":"IF('1. Order'!AS1235=\"\",\"\",'1. Order'!AS1235)","v":""},{"$f":"IF('1. Order'!AF1235=\"\",\"\",'1. Order'!AF1235)","v":""}]
[{"$f":"IF('1. Order'!B1236=\"\",\"\",'1. Order'!B1236)","v":""},{"$f":"IF('1. Order'!I1236=\"\",\"\",'1. Order'!I1236)","v":""},{"$f":"IF('1. Order'!J1236=\"\",\"\",'1. Order'!J1236)","v":""},{"$f":"IF('1. Order'!K1236=\"\",\"\",'1. Order'!K1236)","v":""},{"$f":"IF('1. Order'!M1236=\"\",\"\",'1. Order'!M1236)","v":""},null,null,{"$f":"IF('1. Order'!AS1236=\"\",\"\",'1. Order'!AS1236)","v":""},{"$f":"IF('1. Order'!AF1236=\"\",\"\",'1. Order'!AF1236)","v":""}]
[{"$f":"IF('1. Order'!B1237=\"\",\"\",'1. Order'!B1237)","v":""},{"$f":"IF('1. Order'!I1237=\"\",\"\",'1. Order'!I1237)","v":""},{"$f":"IF('1. Order'!J1237=\"\",\"\",'1. Order'!J1237)","v":""},{"$f":"IF('1. Order'!K1237=\"\",\"\",'1. Order'!K1237)","v":""},{"$f":"IF('1. Order'!M1237=\"\",\"\",'1. Order'!M1237)","v":""},null,null,{"$f":"IF('1. Order'!AS1237=\"\",\"\",'1. Order'!AS1237)","v":""},{"$f":"IF('1. Order'!AF1237=\"\",\"\",'1. Order'!AF1237)","v":""}]
[{"$f":"IF('1. Order'!B1238=\"\",\"\",'1. Order'!B1238)","v":""},{"$f":"IF('1. Order'!I1238=\"\",\"\",'1. Order'!I1238)","v":""},{"$f":"IF('1. Order'!J1238=\"\",\"\",'1. Order'!J1238)","v":""},{"$f":"IF('1. Order'!K1238=\"\",\"\",'1. Order'!K1238)","v":""},{"$f":"IF('1. Order'!M1238=\"\",\"\",'1. Order'!M1238)","v":""},null,null,{"$f":"IF('1. Order'!AS1238=\"\",\"\",'1. Order'!AS1238)","v":""},{"$f":"IF('1. Order'!AF1238=\"\",\"\",'1. Order'!AF1238)","v":""}]
[{"$f":"IF('1. Order'!B1239=\"\",\"\",'1. Order'!B1239)","v":""},{"$f":"IF('1. Order'!I1239=\"\",\"\",'1. Order'!I1239)","v":""},{"$f":"IF('1. Order'!J1239=\"\",\"\",'1. Order'!J1239)","v":""},{"$f":"IF('1. Order'!K1239=\"\",\"\",'1. Order'!K1239)","v":""},{"$f":"IF('1. Order'!M1239=\"\",\"\",'1. Order'!M1239)","v":""},null,null,{"$f":"IF('1. Order'!AS1239=\"\",\"\",'1. Order'!AS1239)","v":""},{"$f":"IF('1. Order'!AF1239=\"\",\"\",'1. Order'!AF1239)","v":""}]
[{"$f":"IF('1. Order'!B1240=\"\",\"\",'1. Order'!B1240)","v":""},{"$f":"IF('1. Order'!I1240=\"\",\"\",'1. Order'!I1240)","v":""},{"$f":"IF('1. Order'!J1240=\"\",\"\",'1. Order'!J1240)","v":""},{"$f":"IF('1. Order'!K1240=\"\",\"\",'1. Order'!K1240)","v":""},{"$f":"IF('1. Order'!M1240=\"\",\"\",'1. Order'!M1240)","v":""},null,null,{"$f":"IF('1. Order'!AS1240=\"\",\"\",'1. Order'!AS1240)","v":""},{"$f":"IF('1. Order'!AF1240=\"\",\"\",'1. Order'!AF1240)","v":""}]
[{"$f":"IF('1. Order'!B1241=\"\",\"\",'1. Order'!B1241)","v":""},{"$f":"IF('1. Order'!I1241=\"\",\"\",'1. Order'!I1241)","v":""},{"$f":"IF('1. Order'!J1241=\"\",\"\",'1. Order'!J1241)","v":""},{"$f":"IF('1. Order'!K1241=\"\",\"\",'1. Order'!K1241)","v":""},{"$f":"IF('1. Order'!M1241=\"\",\"\",'1. Order'!M1241)","v":""},null,null,{"$f":"IF('1. Order'!AS1241=\"\",\"\",'1. Order'!AS1241)","v":""},{"$f":"IF('1. Order'!AF1241=\"\",\"\",'1. Order'!AF1241)","v":""}]
[{"$f":"IF('1. Order'!B1242=\"\",\"\",'1. Order'!B1242)","v":""},{"$f":"IF('1. Order'!I1242=\"\",\"\",'1. Order'!I1242)","v":""},{"$f":"IF('1. Order'!J1242=\"\",\"\",'1. Order'!J1242)","v":""},{"$f":"IF('1. Order'!K1242=\"\",\"\",'1. Order'!K1242)","v":""},{"$f":"IF('1. Order'!M1242=\"\",\"\",'1. Order'!M1242)","v":""},null,null,{"$f":"IF('1. Order'!AS1242=\"\",\"\",'1. Order'!AS1242)","v":""},{"$f":"IF('1. Order'!AF1242=\"\",\"\",'1. Order'!AF1242)","v":""}]
[{"$f":"IF('1. Order'!B1243=\"\",\"\",'1. Order'!B1243)","v":""},{"$f":"IF('1. Order'!I1243=\"\",\"\",'1. Order'!I1243)","v":""},{"$f":"IF('1. Order'!J1243=\"\",\"\",'1. Order'!J1243)","v":""},{"$f":"IF('1. Order'!K1243=\"\",\"\",'1. Order'!K1243)","v":""},{"$f":"IF('1. Order'!M1243=\"\",\"\",'1. Order'!M1243)","v":""},null,null,{"$f":"IF('1. Order'!AS1243=\"\",\"\",'1. Order'!AS1243)","v":""},{"$f":"IF('1. Order'!AF1243=\"\",\"\",'1. Order'!AF1243)","v":""}]
[{"$f":"IF('1. Order'!B1244=\"\",\"\",'1. Order'!B1244)","v":""},{"$f":"IF('1. Order'!I1244=\"\",\"\",'1. Order'!I1244)","v":""},{"$f":"IF('1. Order'!J1244=\"\",\"\",'1. Order'!J1244)","v":""},{"$f":"IF('1. Order'!K1244=\"\",\"\",'1. Order'!K1244)","v":""},{"$f":"IF('1. Order'!M1244=\"\",\"\",'1. Order'!M1244)","v":""},null,null,{"$f":"IF('1. Order'!AS1244=\"\",\"\",'1. Order'!AS1244)","v":""},{"$f":"IF('1. Order'!AF1244=\"\",\"\",'1. Order'!AF1244)","v":""}]
[{"$f":"IF('1. Order'!B1245=\"\",\"\",'1. Order'!B1245)","v":""},{"$f":"IF('1. Order'!I1245=\"\",\"\",'1. Order'!I1245)","v":""},{"$f":"IF('1. Order'!J1245=\"\",\"\",'1. Order'!J1245)","v":""},{"$f":"IF('1. Order'!K1245=\"\",\"\",'1. Order'!K1245)","v":""},{"$f":"IF('1. Order'!M1245=\"\",\"\",'1. Order'!M1245)","v":""},null,null,{"$f":"IF('1. Order'!AS1245=\"\",\"\",'1. Order'!AS1245)","v":""},{"$f":"IF('1. Order'!AF1245=\"\",\"\",'1. Order'!AF1245)","v":""}]
[{"$f":"IF('1. Order'!B1246=\"\",\"\",'1. Order'!B1246)","v":""},{"$f":"IF('1. Order'!I1246=\"\",\"\",'1. Order'!I1246)","v":""},{"$f":"IF('1. Order'!J1246=\"\",\"\",'1. Order'!J1246)","v":""},{"$f":"IF('1. Order'!K1246=\"\",\"\",'1. Order'!K1246)","v":""},{"$f":"IF('1. Order'!M1246=\"\",\"\",'1. Order'!M1246)","v":""},null,null,{"$f":"IF('1. Order'!AS1246=\"\",\"\",'1. Order'!AS1246)","v":""},{"$f":"IF('1. Order'!AF1246=\"\",\"\",'1. Order'!AF1246)","v":""}]
[{"$f":"IF('1. Order'!B1247=\"\",\"\",'1. Order'!B1247)","v":""},{"$f":"IF('1. Order'!I1247=\"\",\"\",'1. Order'!I1247)","v":""},{"$f":"IF('1. Order'!J1247=\"\",\"\",'1. Order'!J1247)","v":""},{"$f":"IF('1. Order'!K1247=\"\",\"\",'1. Order'!K1247)","v":""},{"$f":"IF('1. Order'!M1247=\"\",\"\",'1. Order'!M1247)","v":""},null,null,{"$f":"IF('1. Order'!AS1247=\"\",\"\",'1. Order'!AS1247)","v":""},{"$f":"IF('1. Order'!AF1247=\"\",\"\",'1. Order'!AF1247)","v":""}]
[{"$f":"IF('1. Order'!B1248=\"\",\"\",'1. Order'!B1248)","v":""},{"$f":"IF('1. Order'!I1248=\"\",\"\",'1. Order'!I1248)","v":""},{"$f":"IF('1. Order'!J1248=\"\",\"\",'1. Order'!J1248)","v":""},{"$f":"IF('1. Order'!K1248=\"\",\"\",'1. Order'!K1248)","v":""},{"$f":"IF('1. Order'!M1248=\"\",\"\",'1. Order'!M1248)","v":""},null,null,{"$f":"IF('1. Order'!AS1248=\"\",\"\",'1. Order'!AS1248)","v":""},{"$f":"IF('1. Order'!AF1248=\"\",\"\",'1. Order'!AF1248)","v":""}]
[{"$f":"IF('1. Order'!B1249=\"\",\"\",'1. Order'!B1249)","v":""},{"$f":"IF('1. Order'!I1249=\"\",\"\",'1. Order'!I1249)","v":""},{"$f":"IF('1. Order'!J1249=\"\",\"\",'1. Order'!J1249)","v":""},{"$f":"IF('1. Order'!K1249=\"\",\"\",'1. Order'!K1249)","v":""},{"$f":"IF('1. Order'!M1249=\"\",\"\",'1. Order'!M1249)","v":""},null,null,{"$f":"IF('1. Order'!AS1249=\"\",\"\",'1. Order'!AS1249)","v":""},{"$f":"IF('1. Order'!AF1249=\"\",\"\",'1. Order'!AF1249)","v":""}]
[{"$f":"IF('1. Order'!B1250=\"\",\"\",'1. Order'!B1250)","v":""},{"$f":"IF('1. Order'!I1250=\"\",\"\",'1. Order'!I1250)","v":""},{"$f":"IF('1. Order'!J1250=\"\",\"\",'1. Order'!J1250)","v":""},{"$f":"IF('1. Order'!K1250=\"\",\"\",'1. Order'!K1250)","v":""},{"$f":"IF('1. Order'!M1250=\"\",\"\",'1. Order'!M1250)","v":""},null,null,{"$f":"IF('1. Order'!AS1250=\"\",\"\",'1. Order'!AS1250)","v":""},{"$f":"IF('1. Order'!AF1250=\"\",\"\",'1. Order'!AF1250)","v":""}]
[{"$f":"IF('1. Order'!B1251=\"\",\"\",'1. Order'!B1251)","v":""},{"$f":"IF('1. Order'!I1251=\"\",\"\",'1. Order'!I1251)","v":""},{"$f":"IF('1. Order'!J1251=\"\",\"\",'1. Order'!J1251)","v":""},{"$f":"IF('1. Order'!K1251=\"\",\"\",'1. Order'!K1251)","v":""},{"$f":"IF('1. Order'!M1251=\"\",\"\",'1. Order'!M1251)","v":""},null,null,{"$f":"IF('1. Order'!AS1251=\"\",\"\",'1. Order'!AS1251)","v":""},{"$f":"IF('1. Order'!AF1251=\"\",\"\",'1. Order'!AF1251)","v":""}]
[{"$f":"IF('1. Order'!B1252=\"\",\"\",'1. Order'!B1252)","v":""},{"$f":"IF('1. Order'!I1252=\"\",\"\",'1. Order'!I1252)","v":""},{"$f":"IF('1. Order'!J1252=\"\",\"\",'1. Order'!J1252)","v":""},{"$f":"IF('1. Order'!K1252=\"\",\"\",'1. Order'!K1252)","v":""},{"$f":"IF('1. Order'!M1252=\"\",\"\",'1. Order'!M1252)","v":""},null,null,{"$f":"IF('1. Order'!AS1252=\"\",\"\",'1. Order'!AS1252)","v":""},{"$f":"IF('1. Order'!AF1252=\"\",\"\",'1. Order'!AF1252)","v":""}]
[{"$f":"IF('1. Order'!B1253=\"\",\"\",'1. Order'!B1253)","v":""},{"$f":"IF('1. Order'!I1253=\"\",\"\",'1. Order'!I1253)","v":""},{"$f":"IF('1. Order'!J1253=\"\",\"\",'1. Order'!J1253)","v":""},{"$f":"IF('1. Order'!K1253=\"\",\"\",'1. Order'!K1253)","v":""},{"$f":"IF('1. Order'!M1253=\"\",\"\",'1. Order'!M1253)","v":""},null,null,{"$f":"IF('1. Order'!AS1253=\"\",\"\",'1. Order'!AS1253)","v":""},{"$f":"IF('1. Order'!AF1253=\"\",\"\",'1. Order'!AF1253)","v":""}]
[{"$f":"IF('1. Order'!B1254=\"\",\"\",'1. Order'!B1254)","v":""},{"$f":"IF('1. Order'!I1254=\"\",\"\",'1. Order'!I1254)","v":""},{"$f":"IF('1. Order'!J1254=\"\",\"\",'1. Order'!J1254)","v":""},{"$f":"IF('1. Order'!K1254=\"\",\"\",'1. Order'!K1254)","v":""},{"$f":"IF('1. Order'!M1254=\"\",\"\",'1. Order'!M1254)","v":""},null,null,{"$f":"IF('1. Order'!AS1254=\"\",\"\",'1. Order'!AS1254)","v":""},{"$f":"IF('1. Order'!AF1254=\"\",\"\",'1. Order'!AF1254)","v":""}]
[{"$f":"IF('1. Order'!B1255=\"\",\"\",'1. Order'!B1255)","v":""},{"$f":"IF('1. Order'!I1255=\"\",\"\",'1. Order'!I1255)","v":""},{"$f":"IF('1. Order'!J1255=\"\",\"\",'1. Order'!J1255)","v":""},{"$f":"IF('1. Order'!K1255=\"\",\"\",'1. Order'!K1255)","v":""},{"$f":"IF('1. Order'!M1255=\"\",\"\",'1. Order'!M1255)","v":""},null,null,{"$f":"IF('1. Order'!AS1255=\"\",\"\",'1. Order'!AS1255)","v":""},{"$f":"IF('1. Order'!AF1255=\"\",\"\",'1. Order'!AF1255)","v":""}]
[{"$f":"IF('1. Order'!B1256=\"\",\"\",'1. Order'!B1256)","v":""},{"$f":"IF('1. Order'!I1256=\"\",\"\",'1. Order'!I1256)","v":""},{"$f":"IF('1. Order'!J1256=\"\",\"\",'1. Order'!J1256)","v":""},{"$f":"IF('1. Order'!K1256=\"\",\"\",'1. Order'!K1256)","v":""},{"$f":"IF('1. Order'!M1256=\"\",\"\",'1. Order'!M1256)","v":""},null,null,{"$f":"IF('1. Order'!AS1256=\"\",\"\",'1. Order'!AS1256)","v":""},{"$f":"IF('1. Order'!AF1256=\"\",\"\",'1. Order'!AF1256)","v":""}]
[{"$f":"IF('1. Order'!B1257=\"\",\"\",'1. Order'!B1257)","v":""},{"$f":"IF('1. Order'!I1257=\"\",\"\",'1. Order'!I1257)","v":""},{"$f":"IF('1. Order'!J1257=\"\",\"\",'1. Order'!J1257)","v":""},{"$f":"IF('1. Order'!K1257=\"\",\"\",'1. Order'!K1257)","v":""},{"$f":"IF('1. Order'!M1257=\"\",\"\",'1. Order'!M1257)","v":""},null,null,{"$f":"IF('1. Order'!AS1257=\"\",\"\",'1. Order'!AS1257)","v":""},{"$f":"IF('1. Order'!AF1257=\"\",\"\",'1. Order'!AF1257)","v":""}]
[{"$f":"IF('1. Order'!B1258=\"\",\"\",'1. Order'!B1258)","v":""},{"$f":"IF('1. Order'!I1258=\"\",\"\",'1. Order'!I1258)","v":""},{"$f":"IF('1. Order'!J1258=\"\",\"\",'1. Order'!J1258)","v":""},{"$f":"IF('1. Order'!K1258=\"\",\"\",'1. Order'!K1258)","v":""},{"$f":"IF('1. Order'!M1258=\"\",\"\",'1. Order'!M1258)","v":""},null,null,{"$f":"IF('1. Order'!AS1258=\"\",\"\",'1. Order'!AS1258)","v":""},{"$f":"IF('1. Order'!AF1258=\"\",\"\",'1. Order'!AF1258)","v":""}]
[{"$f":"IF('1. Order'!B1259=\"\",\"\",'1. Order'!B1259)","v":""},{"$f":"IF('1. Order'!I1259=\"\",\"\",'1. Order'!I1259)","v":""},{"$f":"IF('1. Order'!J1259=\"\",\"\",'1. Order'!J1259)","v":""},{"$f":"IF('1. Order'!K1259=\"\",\"\",'1. Order'!K1259)","v":""},{"$f":"IF('1. Order'!M1259=\"\",\"\",'1. Order'!M1259)","v":""},null,null,{"$f":"IF('1. Order'!AS1259=\"\",\"\",'1. Order'!AS1259)","v":""},{"$f":"IF('1. Order'!AF1259=\"\",\"\",'1. Order'!AF1259)","v":""}]
[{"$f":"IF('1. Order'!B1260=\"\",\"\",'1. Order'!B1260)","v":""},{"$f":"IF('1. Order'!I1260=\"\",\"\",'1. Order'!I1260)","v":""},{"$f":"IF('1. Order'!J1260=\"\",\"\",'1. Order'!J1260)","v":""},{"$f":"IF('1. Order'!K1260=\"\",\"\",'1. Order'!K1260)","v":""},{"$f":"IF('1. Order'!M1260=\"\",\"\",'1. Order'!M1260)","v":""},null,null,{"$f":"IF('1. Order'!AS1260=\"\",\"\",'1. Order'!AS1260)","v":""},{"$f":"IF('1. Order'!AF1260=\"\",\"\",'1. Order'!AF1260)","v":""}]
[{"$f":"IF('1. Order'!B1261=\"\",\"\",'1. Order'!B1261)","v":""},{"$f":"IF('1. Order'!I1261=\"\",\"\",'1. Order'!I1261)","v":""},{"$f":"IF('1. Order'!J1261=\"\",\"\",'1. Order'!J1261)","v":""},{"$f":"IF('1. Order'!K1261=\"\",\"\",'1. Order'!K1261)","v":""},{"$f":"IF('1. Order'!M1261=\"\",\"\",'1. Order'!M1261)","v":""},null,null,{"$f":"IF('1. Order'!AS1261=\"\",\"\",'1. Order'!AS1261)","v":""},{"$f":"IF('1. Order'!AF1261=\"\",\"\",'1. Order'!AF1261)","v":""}]
[{"$f":"IF('1. Order'!B1262=\"\",\"\",'1. Order'!B1262)","v":""},{"$f":"IF('1. Order'!I1262=\"\",\"\",'1. Order'!I1262)","v":""},{"$f":"IF('1. Order'!J1262=\"\",\"\",'1. Order'!J1262)","v":""},{"$f":"IF('1. Order'!K1262=\"\",\"\",'1. Order'!K1262)","v":""},{"$f":"IF('1. Order'!M1262=\"\",\"\",'1. Order'!M1262)","v":""},null,null,{"$f":"IF('1. Order'!AS1262=\"\",\"\",'1. Order'!AS1262)","v":""},{"$f":"IF('1. Order'!AF1262=\"\",\"\",'1. Order'!AF1262)","v":""}]
[{"$f":"IF('1. Order'!B1263=\"\",\"\",'1. Order'!B1263)","v":""},{"$f":"IF('1. Order'!I1263=\"\",\"\",'1. Order'!I1263)","v":""},{"$f":"IF('1. Order'!J1263=\"\",\"\",'1. Order'!J1263)","v":""},{"$f":"IF('1. Order'!K1263=\"\",\"\",'1. Order'!K1263)","v":""},{"$f":"IF('1. Order'!M1263=\"\",\"\",'1. Order'!M1263)","v":""},null,null,{"$f":"IF('1. Order'!AS1263=\"\",\"\",'1. Order'!AS1263)","v":""},{"$f":"IF('1. Order'!AF1263=\"\",\"\",'1. Order'!AF1263)","v":""}]
[{"$f":"IF('1. Order'!B1264=\"\",\"\",'1. Order'!B1264)","v":""},{"$f":"IF('1. Order'!I1264=\"\",\"\",'1. Order'!I1264)","v":""},{"$f":"IF('1. Order'!J1264=\"\",\"\",'1. Order'!J1264)","v":""},{"$f":"IF('1. Order'!K1264=\"\",\"\",'1. Order'!K1264)","v":""},{"$f":"IF('1. Order'!M1264=\"\",\"\",'1. Order'!M1264)","v":""},null,null,{"$f":"IF('1. Order'!AS1264=\"\",\"\",'1. Order'!AS1264)","v":""},{"$f":"IF('1. Order'!AF1264=\"\",\"\",'1. Order'!AF1264)","v":""}]
[{"$f":"IF('1. Order'!B1265=\"\",\"\",'1. Order'!B1265)","v":""},{"$f":"IF('1. Order'!I1265=\"\",\"\",'1. Order'!I1265)","v":""},{"$f":"IF('1. Order'!J1265=\"\",\"\",'1. Order'!J1265)","v":""},{"$f":"IF('1. Order'!K1265=\"\",\"\",'1. Order'!K1265)","v":""},{"$f":"IF('1. Order'!M1265=\"\",\"\",'1. Order'!M1265)","v":""},null,null,{"$f":"IF('1. Order'!AS1265=\"\",\"\",'1. Order'!AS1265)","v":""},{"$f":"IF('1. Order'!AF1265=\"\",\"\",'1. Order'!AF1265)","v":""}]
[{"$f":"IF('1. Order'!B1266=\"\",\"\",'1. Order'!B1266)","v":""},{"$f":"IF('1. Order'!I1266=\"\",\"\",'1. Order'!I1266)","v":""},{"$f":"IF('1. Order'!J1266=\"\",\"\",'1. Order'!J1266)","v":""},{"$f":"IF('1. Order'!K1266=\"\",\"\",'1. Order'!K1266)","v":""},{"$f":"IF('1. Order'!M1266=\"\",\"\",'1. Order'!M1266)","v":""},null,null,{"$f":"IF('1. Order'!AS1266=\"\",\"\",'1. Order'!AS1266)","v":""},{"$f":"IF('1. Order'!AF1266=\"\",\"\",'1. Order'!AF1266)","v":""}]
[{"$f":"IF('1. Order'!B1267=\"\",\"\",'1. Order'!B1267)","v":""},{"$f":"IF('1. Order'!I1267=\"\",\"\",'1. Order'!I1267)","v":""},{"$f":"IF('1. Order'!J1267=\"\",\"\",'1. Order'!J1267)","v":""},{"$f":"IF('1. Order'!K1267=\"\",\"\",'1. Order'!K1267)","v":""},{"$f":"IF('1. Order'!M1267=\"\",\"\",'1. Order'!M1267)","v":""},null,null,{"$f":"IF('1. Order'!AS1267=\"\",\"\",'1. Order'!AS1267)","v":""},{"$f":"IF('1. Order'!AF1267=\"\",\"\",'1. Order'!AF1267)","v":""}]
[{"$f":"IF('1. Order'!B1268=\"\",\"\",'1. Order'!B1268)","v":""},{"$f":"IF('1. Order'!I1268=\"\",\"\",'1. Order'!I1268)","v":""},{"$f":"IF('1. Order'!J1268=\"\",\"\",'1. Order'!J1268)","v":""},{"$f":"IF('1. Order'!K1268=\"\",\"\",'1. Order'!K1268)","v":""},{"$f":"IF('1. Order'!M1268=\"\",\"\",'1. Order'!M1268)","v":""},null,null,{"$f":"IF('1. Order'!AS1268=\"\",\"\",'1. Order'!AS1268)","v":""},{"$f":"IF('1. Order'!AF1268=\"\",\"\",'1. Order'!AF1268)","v":""}]
[{"$f":"IF('1. Order'!B1269=\"\",\"\",'1. Order'!B1269)","v":""},{"$f":"IF('1. Order'!I1269=\"\",\"\",'1. Order'!I1269)","v":""},{"$f":"IF('1. Order'!J1269=\"\",\"\",'1. Order'!J1269)","v":""},{"$f":"IF('1. Order'!K1269=\"\",\"\",'1. Order'!K1269)","v":""},{"$f":"IF('1. Order'!M1269=\"\",\"\",'1. Order'!M1269)","v":""},null,null,{"$f":"IF('1. Order'!AS1269=\"\",\"\",'1. Order'!AS1269)","v":""},{"$f":"IF('1. Order'!AF1269=\"\",\"\",'1. Order'!AF1269)","v":""}]
[{"$f":"IF('1. Order'!B1270=\"\",\"\",'1. Order'!B1270)","v":""},{"$f":"IF('1. Order'!I1270=\"\",\"\",'1. Order'!I1270)","v":""},{"$f":"IF('1. Order'!J1270=\"\",\"\",'1. Order'!J1270)","v":""},{"$f":"IF('1. Order'!K1270=\"\",\"\",'1. Order'!K1270)","v":""},{"$f":"IF('1. Order'!M1270=\"\",\"\",'1. Order'!M1270)","v":""},null,null,{"$f":"IF('1. Order'!AS1270=\"\",\"\",'1. Order'!AS1270)","v":""},{"$f":"IF('1. Order'!AF1270=\"\",\"\",'1. Order'!AF1270)","v":""}]
[{"$f":"IF('1. Order'!B1271=\"\",\"\",'1. Order'!B1271)","v":""},{"$f":"IF('1. Order'!I1271=\"\",\"\",'1. Order'!I1271)","v":""},{"$f":"IF('1. Order'!J1271=\"\",\"\",'1. Order'!J1271)","v":""},{"$f":"IF('1. Order'!K1271=\"\",\"\",'1. Order'!K1271)","v":""},{"$f":"IF('1. Order'!M1271=\"\",\"\",'1. Order'!M1271)","v":""},null,null,{"$f":"IF('1. Order'!AS1271=\"\",\"\",'1. Order'!AS1271)","v":""},{"$f":"IF('1. Order'!AF1271=\"\",\"\",'1. Order'!AF1271)","v":""}]
[{"$f":"IF('1. Order'!B1272=\"\",\"\",'1. Order'!B1272)","v":""},{"$f":"IF('1. Order'!I1272=\"\",\"\",'1. Order'!I1272)","v":""},{"$f":"IF('1. Order'!J1272=\"\",\"\",'1. Order'!J1272)","v":""},{"$f":"IF('1. Order'!K1272=\"\",\"\",'1. Order'!K1272)","v":""},{"$f":"IF('1. Order'!M1272=\"\",\"\",'1. Order'!M1272)","v":""},null,null,{"$f":"IF('1. Order'!AS1272=\"\",\"\",'1. Order'!AS1272)","v":""},{"$f":"IF('1. Order'!AF1272=\"\",\"\",'1. Order'!AF1272)","v":""}]
[{"$f":"IF('1. Order'!B1273=\"\",\"\",'1. Order'!B1273)","v":""},{"$f":"IF('1. Order'!I1273=\"\",\"\",'1. Order'!I1273)","v":""},{"$f":"IF('1. Order'!J1273=\"\",\"\",'1. Order'!J1273)","v":""},{"$f":"IF('1. Order'!K1273=\"\",\"\",'1. Order'!K1273)","v":""},{"$f":"IF('1. Order'!M1273=\"\",\"\",'1. Order'!M1273)","v":""},null,null,{"$f":"IF('1. Order'!AS1273=\"\",\"\",'1. Order'!AS1273)","v":""},{"$f":"IF('1. Order'!AF1273=\"\",\"\",'1. Order'!AF1273)","v":""}]
[{"$f":"IF('1. Order'!B1274=\"\",\"\",'1. Order'!B1274)","v":""},{"$f":"IF('1. Order'!I1274=\"\",\"\",'1. Order'!I1274)","v":""},{"$f":"IF('1. Order'!J1274=\"\",\"\",'1. Order'!J1274)","v":""},{"$f":"IF('1. Order'!K1274=\"\",\"\",'1. Order'!K1274)","v":""},{"$f":"IF('1. Order'!M1274=\"\",\"\",'1. Order'!M1274)","v":""},null,null,{"$f":"IF('1. Order'!AS1274=\"\",\"\",'1. Order'!AS1274)","v":""},{"$f":"IF('1. Order'!AF1274=\"\",\"\",'1. Order'!AF1274)","v":""}]
[{"$f":"IF('1. Order'!B1275=\"\",\"\",'1. Order'!B1275)","v":""},{"$f":"IF('1. Order'!I1275=\"\",\"\",'1. Order'!I1275)","v":""},{"$f":"IF('1. Order'!J1275=\"\",\"\",'1. Order'!J1275)","v":""},{"$f":"IF('1. Order'!K1275=\"\",\"\",'1. Order'!K1275)","v":""},{"$f":"IF('1. Order'!M1275=\"\",\"\",'1. Order'!M1275)","v":""},null,null,{"$f":"IF('1. Order'!AS1275=\"\",\"\",'1. Order'!AS1275)","v":""},{"$f":"IF('1. Order'!AF1275=\"\",\"\",'1. Order'!AF1275)","v":""}]
[{"$f":"IF('1. Order'!B1276=\"\",\"\",'1. Order'!B1276)","v":""},{"$f":"IF('1. Order'!I1276=\"\",\"\",'1. Order'!I1276)","v":""},{"$f":"IF('1. Order'!J1276=\"\",\"\",'1. Order'!J1276)","v":""},{"$f":"IF('1. Order'!K1276=\"\",\"\",'1. Order'!K1276)","v":""},{"$f":"IF('1. Order'!M1276=\"\",\"\",'1. Order'!M1276)","v":""},null,null,{"$f":"IF('1. Order'!AS1276=\"\",\"\",'1. Order'!AS1276)","v":""},{"$f":"IF('1. Order'!AF1276=\"\",\"\",'1. Order'!AF1276)","v":""}]
[{"$f":"IF('1. Order'!B1277=\"\",\"\",'1. Order'!B1277)","v":""},{"$f":"IF('1. Order'!I1277=\"\",\"\",'1. Order'!I1277)","v":""},{"$f":"IF('1. Order'!J1277=\"\",\"\",'1. Order'!J1277)","v":""},{"$f":"IF('1. Order'!K1277=\"\",\"\",'1. Order'!K1277)","v":""},{"$f":"IF('1. Order'!M1277=\"\",\"\",'1. Order'!M1277)","v":""},null,null,{"$f":"IF('1. Order'!AS1277=\"\",\"\",'1. Order'!AS1277)","v":""},{"$f":"IF('1. Order'!AF1277=\"\",\"\",'1. Order'!AF1277)","v":""}]
[{"$f":"IF('1. Order'!B1278=\"\",\"\",'1. Order'!B1278)","v":""},{"$f":"IF('1. Order'!I1278=\"\",\"\",'1. Order'!I1278)","v":""},{"$f":"IF('1. Order'!J1278=\"\",\"\",'1. Order'!J1278)","v":""},{"$f":"IF('1. Order'!K1278=\"\",\"\",'1. Order'!K1278)","v":""},{"$f":"IF('1. Order'!M1278=\"\",\"\",'1. Order'!M1278)","v":""},null,null,{"$f":"IF('1. Order'!AS1278=\"\",\"\",'1. Order'!AS1278)","v":""},{"$f":"IF('1. Order'!AF1278=\"\",\"\",'1. Order'!AF1278)","v":""}]
[{"$f":"IF('1. Order'!B1279=\"\",\"\",'1. Order'!B1279)","v":""},{"$f":"IF('1. Order'!I1279=\"\",\"\",'1. Order'!I1279)","v":""},{"$f":"IF('1. Order'!J1279=\"\",\"\",'1. Order'!J1279)","v":""},{"$f":"IF('1. Order'!K1279=\"\",\"\",'1. Order'!K1279)","v":""},{"$f":"IF('1. Order'!M1279=\"\",\"\",'1. Order'!M1279)","v":""},null,null,{"$f":"IF('1. Order'!AS1279=\"\",\"\",'1. Order'!AS1279)","v":""},{"$f":"IF('1. Order'!AF1279=\"\",\"\",'1. Order'!AF1279)","v":""}]
[{"$f":"IF('1. Order'!B1280=\"\",\"\",'1. Order'!B1280)","v":""},{"$f":"IF('1. Order'!I1280=\"\",\"\",'1. Order'!I1280)","v":""},{"$f":"IF('1. Order'!J1280=\"\",\"\",'1. Order'!J1280)","v":""},{"$f":"IF('1. Order'!K1280=\"\",\"\",'1. Order'!K1280)","v":""},{"$f":"IF('1. Order'!M1280=\"\",\"\",'1. Order'!M1280)","v":""},null,null,{"$f":"IF('1. Order'!AS1280=\"\",\"\",'1. Order'!AS1280)","v":""},{"$f":"IF('1. Order'!AF1280=\"\",\"\",'1. Order'!AF1280)","v":""}]
[{"$f":"IF('1. Order'!B1281=\"\",\"\",'1. Order'!B1281)","v":""},{"$f":"IF('1. Order'!I1281=\"\",\"\",'1. Order'!I1281)","v":""},{"$f":"IF('1. Order'!J1281=\"\",\"\",'1. Order'!J1281)","v":""},{"$f":"IF('1. Order'!K1281=\"\",\"\",'1. Order'!K1281)","v":""},{"$f":"IF('1. Order'!M1281=\"\",\"\",'1. Order'!M1281)","v":""},null,null,{"$f":"IF('1. Order'!AS1281=\"\",\"\",'1. Order'!AS1281)","v":""},{"$f":"IF('1. Order'!AF1281=\"\",\"\",'1. Order'!AF1281)","v":""}]
[{"$f":"IF('1. Order'!B1282=\"\",\"\",'1. Order'!B1282)","v":""},{"$f":"IF('1. Order'!I1282=\"\",\"\",'1. Order'!I1282)","v":""},{"$f":"IF('1. Order'!J1282=\"\",\"\",'1. Order'!J1282)","v":""},{"$f":"IF('1. Order'!K1282=\"\",\"\",'1. Order'!K1282)","v":""},{"$f":"IF('1. Order'!M1282=\"\",\"\",'1. Order'!M1282)","v":""},null,null,{"$f":"IF('1. Order'!AS1282=\"\",\"\",'1. Order'!AS1282)","v":""},{"$f":"IF('1. Order'!AF1282=\"\",\"\",'1. Order'!AF1282)","v":""}]
[{"$f":"IF('1. Order'!B1283=\"\",\"\",'1. Order'!B1283)","v":""},{"$f":"IF('1. Order'!I1283=\"\",\"\",'1. Order'!I1283)","v":""},{"$f":"IF('1. Order'!J1283=\"\",\"\",'1. Order'!J1283)","v":""},{"$f":"IF('1. Order'!K1283=\"\",\"\",'1. Order'!K1283)","v":""},{"$f":"IF('1. Order'!M1283=\"\",\"\",'1. Order'!M1283)","v":""},null,null,{"$f":"IF('1. Order'!AS1283=\"\",\"\",'1. Order'!AS1283)","v":""},{"$f":"IF('1. Order'!AF1283=\"\",\"\",'1. Order'!AF1283)","v":""}]
[{"$f":"IF('1. Order'!B1284=\"\",\"\",'1. Order'!B1284)","v":""},{"$f":"IF('1. Order'!I1284=\"\",\"\",'1. Order'!I1284)","v":""},{"$f":"IF('1. Order'!J1284=\"\",\"\",'1. Order'!J1284)","v":""},{"$f":"IF('1. Order'!K1284=\"\",\"\",'1. Order'!K1284)","v":""},{"$f":"IF('1. Order'!M1284=\"\",\"\",'1. Order'!M1284)","v":""},null,null,{"$f":"IF('1. Order'!AS1284=\"\",\"\",'1. Order'!AS1284)","v":""},{"$f":"IF('1. Order'!AF1284=\"\",\"\",'1. Order'!AF1284)","v":""}]
[{"$f":"IF('1. Order'!B1285=\"\",\"\",'1. Order'!B1285)","v":""},{"$f":"IF('1. Order'!I1285=\"\",\"\",'1. Order'!I1285)","v":""},{"$f":"IF('1. Order'!J1285=\"\",\"\",'1. Order'!J1285)","v":""},{"$f":"IF('1. Order'!K1285=\"\",\"\",'1. Order'!K1285)","v":""},{"$f":"IF('1. Order'!M1285=\"\",\"\",'1. Order'!M1285)","v":""},null,null,{"$f":"IF('1. Order'!AS1285=\"\",\"\",'1. Order'!AS1285)","v":""},{"$f":"IF('1. Order'!AF1285=\"\",\"\",'1. Order'!AF1285)","v":""}]
[{"$f":"IF('1. Order'!B1286=\"\",\"\",'1. Order'!B1286)","v":""},{"$f":"IF('1. Order'!I1286=\"\",\"\",'1. Order'!I1286)","v":""},{"$f":"IF('1. Order'!J1286=\"\",\"\",'1. Order'!J1286)","v":""},{"$f":"IF('1. Order'!K1286=\"\",\"\",'1. Order'!K1286)","v":""},{"$f":"IF('1. Order'!M1286=\"\",\"\",'1. Order'!M1286)","v":""},null,null,{"$f":"IF('1. Order'!AS1286=\"\",\"\",'1. Order'!AS1286)","v":""},{"$f":"IF('1. Order'!AF1286=\"\",\"\",'1. Order'!AF1286)","v":""}]
[{"$f":"IF('1. Order'!B1287=\"\",\"\",'1. Order'!B1287)","v":""},{"$f":"IF('1. Order'!I1287=\"\",\"\",'1. Order'!I1287)","v":""},{"$f":"IF('1. Order'!J1287=\"\",\"\",'1. Order'!J1287)","v":""},{"$f":"IF('1. Order'!K1287=\"\",\"\",'1. Order'!K1287)","v":""},{"$f":"IF('1. Order'!M1287=\"\",\"\",'1. Order'!M1287)","v":""},null,null,{"$f":"IF('1. Order'!AS1287=\"\",\"\",'1. Order'!AS1287)","v":""},{"$f":"IF('1. Order'!AF1287=\"\",\"\",'1. Order'!AF1287)","v":""}]
[{"$f":"IF('1. Order'!B1288=\"\",\"\",'1. Order'!B1288)","v":""},{"$f":"IF('1. Order'!I1288=\"\",\"\",'1. Order'!I1288)","v":""},{"$f":"IF('1. Order'!J1288=\"\",\"\",'1. Order'!J1288)","v":""},{"$f":"IF('1. Order'!K1288=\"\",\"\",'1. Order'!K1288)","v":""},{"$f":"IF('1. Order'!M1288=\"\",\"\",'1. Order'!M1288)","v":""},null,null,{"$f":"IF('1. Order'!AS1288=\"\",\"\",'1. Order'!AS1288)","v":""},{"$f":"IF('1. Order'!AF1288=\"\",\"\",'1. Order'!AF1288)","v":""}]
[{"$f":"IF('1. Order'!B1289=\"\",\"\",'1. Order'!B1289)","v":""},{"$f":"IF('1. Order'!I1289=\"\",\"\",'1. Order'!I1289)","v":""},{"$f":"IF('1. Order'!J1289=\"\",\"\",'1. Order'!J1289)","v":""},{"$f":"IF('1. Order'!K1289=\"\",\"\",'1. Order'!K1289)","v":""},{"$f":"IF('1. Order'!M1289=\"\",\"\",'1. Order'!M1289)","v":""},null,null,{"$f":"IF('1. Order'!AS1289=\"\",\"\",'1. Order'!AS1289)","v":""},{"$f":"IF('1. Order'!AF1289=\"\",\"\",'1. Order'!AF1289)","v":""}]
[{"$f":"IF('1. Order'!B1290=\"\",\"\",'1. Order'!B1290)","v":""},{"$f":"IF('1. Order'!I1290=\"\",\"\",'1. Order'!I1290)","v":""},{"$f":"IF('1. Order'!J1290=\"\",\"\",'1. Order'!J1290)","v":""},{"$f":"IF('1. Order'!K1290=\"\",\"\",'1. Order'!K1290)","v":""},{"$f":"IF('1. Order'!M1290=\"\",\"\",'1. Order'!M1290)","v":""},null,null,{"$f":"IF('1. Order'!AS1290=\"\",\"\",'1. Order'!AS1290)","v":""},{"$f":"IF('1. Order'!AF1290=\"\",\"\",'1. Order'!AF1290)","v":""}]
[{"$f":"IF('1. Order'!B1291=\"\",\"\",'1. Order'!B1291)","v":""},{"$f":"IF('1. Order'!I1291=\"\",\"\",'1. Order'!I1291)","v":""},{"$f":"IF('1. Order'!J1291=\"\",\"\",'1. Order'!J1291)","v":""},{"$f":"IF('1. Order'!K1291=\"\",\"\",'1. Order'!K1291)","v":""},{"$f":"IF('1. Order'!M1291=\"\",\"\",'1. Order'!M1291)","v":""},null,null,{"$f":"IF('1. Order'!AS1291=\"\",\"\",'1. Order'!AS1291)","v":""},{"$f":"IF('1. Order'!AF1291=\"\",\"\",'1. Order'!AF1291)","v":""}]
[{"$f":"IF('1. Order'!B1292=\"\",\"\",'1. Order'!B1292)","v":""},{"$f":"IF('1. Order'!I1292=\"\",\"\",'1. Order'!I1292)","v":""},{"$f":"IF('1. Order'!J1292=\"\",\"\",'1. Order'!J1292)","v":""},{"$f":"IF('1. Order'!K1292=\"\",\"\",'1. Order'!K1292)","v":""},{"$f":"IF('1. Order'!M1292=\"\",\"\",'1. Order'!M1292)","v":""},null,null,{"$f":"IF('1. Order'!AS1292=\"\",\"\",'1. Order'!AS1292)","v":""},{"$f":"IF('1. Order'!AF1292=\"\",\"\",'1. Order'!AF1292)","v":""}]
[{"$f":"IF('1. Order'!B1293=\"\",\"\",'1. Order'!B1293)","v":""},{"$f":"IF('1. Order'!I1293=\"\",\"\",'1. Order'!I1293)","v":""},{"$f":"IF('1. Order'!J1293=\"\",\"\",'1. Order'!J1293)","v":""},{"$f":"IF('1. Order'!K1293=\"\",\"\",'1. Order'!K1293)","v":""},{"$f":"IF('1. Order'!M1293=\"\",\"\",'1. Order'!M1293)","v":""},null,null,{"$f":"IF('1. Order'!AS1293=\"\",\"\",'1. Order'!AS1293)","v":""},{"$f":"IF('1. Order'!AF1293=\"\",\"\",'1. Order'!AF1293)","v":""}]
[{"$f":"IF('1. Order'!B1294=\"\",\"\",'1. Order'!B1294)","v":""},{"$f":"IF('1. Order'!I1294=\"\",\"\",'1. Order'!I1294)","v":""},{"$f":"IF('1. Order'!J1294=\"\",\"\",'1. Order'!J1294)","v":""},{"$f":"IF('1. Order'!K1294=\"\",\"\",'1. Order'!K1294)","v":""},{"$f":"IF('1. Order'!M1294=\"\",\"\",'1. Order'!M1294)","v":""},null,null,{"$f":"IF('1. Order'!AS1294=\"\",\"\",'1. Order'!AS1294)","v":""},{"$f":"IF('1. Order'!AF1294=\"\",\"\",'1. Order'!AF1294)","v":""}]
[{"$f":"IF('1. Order'!B1295=\"\",\"\",'1. Order'!B1295)","v":""},{"$f":"IF('1. Order'!I1295=\"\",\"\",'1. Order'!I1295)","v":""},{"$f":"IF('1. Order'!J1295=\"\",\"\",'1. Order'!J1295)","v":""},{"$f":"IF('1. Order'!K1295=\"\",\"\",'1. Order'!K1295)","v":""},{"$f":"IF('1. Order'!M1295=\"\",\"\",'1. Order'!M1295)","v":""},null,null,{"$f":"IF('1. Order'!AS1295=\"\",\"\",'1. Order'!AS1295)","v":""},{"$f":"IF('1. Order'!AF1295=\"\",\"\",'1. Order'!AF1295)","v":""}]
[{"$f":"IF('1. Order'!B1296=\"\",\"\",'1. Order'!B1296)","v":""},{"$f":"IF('1. Order'!I1296=\"\",\"\",'1. Order'!I1296)","v":""},{"$f":"IF('1. Order'!J1296=\"\",\"\",'1. Order'!J1296)","v":""},{"$f":"IF('1. Order'!K1296=\"\",\"\",'1. Order'!K1296)","v":""},{"$f":"IF('1. Order'!M1296=\"\",\"\",'1. Order'!M1296)","v":""},null,null,{"$f":"IF('1. Order'!AS1296=\"\",\"\",'1. Order'!AS1296)","v":""},{"$f":"IF('1. Order'!AF1296=\"\",\"\",'1. Order'!AF1296)","v":""}]
[{"$f":"IF('1. Order'!B1297=\"\",\"\",'1. Order'!B1297)","v":""},{"$f":"IF('1. Order'!I1297=\"\",\"\",'1. Order'!I1297)","v":""},{"$f":"IF('1. Order'!J1297=\"\",\"\",'1. Order'!J1297)","v":""},{"$f":"IF('1. Order'!K1297=\"\",\"\",'1. Order'!K1297)","v":""},{"$f":"IF('1. Order'!M1297=\"\",\"\",'1. Order'!M1297)","v":""},null,null,{"$f":"IF('1. Order'!AS1297=\"\",\"\",'1. Order'!AS1297)","v":""},{"$f":"IF('1. Order'!AF1297=\"\",\"\",'1. Order'!AF1297)","v":""}]
[{"$f":"IF('1. Order'!B1298=\"\",\"\",'1. Order'!B1298)","v":""},{"$f":"IF('1. Order'!I1298=\"\",\"\",'1. Order'!I1298)","v":""},{"$f":"IF('1. Order'!J1298=\"\",\"\",'1. Order'!J1298)","v":""},{"$f":"IF('1. Order'!K1298=\"\",\"\",'1. Order'!K1298)","v":""},{"$f":"IF('1. Order'!M1298=\"\",\"\",'1. Order'!M1298)","v":""},null,null,{"$f":"IF('1. Order'!AS1298=\"\",\"\",'1. Order'!AS1298)","v":""},{"$f":"IF('1. Order'!AF1298=\"\",\"\",'1. Order'!AF1298)","v":""}]
[{"$f":"IF('1. Order'!B1299=\"\",\"\",'1. Order'!B1299)","v":""},{"$f":"IF('1. Order'!I1299=\"\",\"\",'1. Order'!I1299)","v":""},{"$f":"IF('1. Order'!J1299=\"\",\"\",'1. Order'!J1299)","v":""},{"$f":"IF('1. Order'!K1299=\"\",\"\",'1. Order'!K1299)","v":""},{"$f":"IF('1. Order'!M1299=\"\",\"\",'1. Order'!M1299)","v":""},null,null,{"$f":"IF('1. Order'!AS1299=\"\",\"\",'1. Order'!AS1299)","v":""},{"$f":"IF('1. Order'!AF1299=\"\",\"\",'1. Order'!AF1299)","v":""}]
[{"$f":"IF('1. Order'!B1300=\"\",\"\",'1. Order'!B1300)","v":""},{"$f":"IF('1. Order'!I1300=\"\",\"\",'1. Order'!I1300)","v":""},{"$f":"IF('1. Order'!J1300=\"\",\"\",'1. Order'!J1300)","v":""},{"$f":"IF('1. Order'!K1300=\"\",\"\",'1. Order'!K1300)","v":""},{"$f":"IF('1. Order'!M1300=\"\",\"\",'1. Order'!M1300)","v":""},null,null,{"$f":"IF('1. Order'!AS1300=\"\",\"\",'1. Order'!AS1300)","v":""},{"$f":"IF('1. Order'!AF1300=\"\",\"\",'1. Order'!AF1300)","v":""}]
[{"$f":"IF('1. Order'!B1301=\"\",\"\",'1. Order'!B1301)","v":""},{"$f":"IF('1. Order'!I1301=\"\",\"\",'1. Order'!I1301)","v":""},{"$f":"IF('1. Order'!J1301=\"\",\"\",'1. Order'!J1301)","v":""},{"$f":"IF('1. Order'!K1301=\"\",\"\",'1. Order'!K1301)","v":""},{"$f":"IF('1. Order'!M1301=\"\",\"\",'1. Order'!M1301)","v":""},null,null,{"$f":"IF('1. Order'!AS1301=\"\",\"\",'1. Order'!AS1301)","v":""},{"$f":"IF('1. Order'!AF1301=\"\",\"\",'1. Order'!AF1301)","v":""}]
[{"$f":"IF('1. Order'!B1302=\"\",\"\",'1. Order'!B1302)","v":""},{"$f":"IF('1. Order'!I1302=\"\",\"\",'1. Order'!I1302)","v":""},{"$f":"IF('1. Order'!J1302=\"\",\"\",'1. Order'!J1302)","v":""},{"$f":"IF('1. Order'!K1302=\"\",\"\",'1. Order'!K1302)","v":""},{"$f":"IF('1. Order'!M1302=\"\",\"\",'1. Order'!M1302)","v":""},null,null,{"$f":"IF('1. Order'!AS1302=\"\",\"\",'1. Order'!AS1302)","v":""},{"$f":"IF('1. Order'!AF1302=\"\",\"\",'1. Order'!AF1302)","v":""}]
[{"$f":"IF('1. Order'!B1303=\"\",\"\",'1. Order'!B1303)","v":""},{"$f":"IF('1. Order'!I1303=\"\",\"\",'1. Order'!I1303)","v":""},{"$f":"IF('1. Order'!J1303=\"\",\"\",'1. Order'!J1303)","v":""},{"$f":"IF('1. Order'!K1303=\"\",\"\",'1. Order'!K1303)","v":""},{"$f":"IF('1. Order'!M1303=\"\",\"\",'1. Order'!M1303)","v":""},null,null,{"$f":"IF('1. Order'!AS1303=\"\",\"\",'1. Order'!AS1303)","v":""},{"$f":"IF('1. Order'!AF1303=\"\",\"\",'1. Order'!AF1303)","v":""}]
[{"$f":"IF('1. Order'!B1304=\"\",\"\",'1. Order'!B1304)","v":""},{"$f":"IF('1. Order'!I1304=\"\",\"\",'1. Order'!I1304)","v":""},{"$f":"IF('1. Order'!J1304=\"\",\"\",'1. Order'!J1304)","v":""},{"$f":"IF('1. Order'!K1304=\"\",\"\",'1. Order'!K1304)","v":""},{"$f":"IF('1. Order'!M1304=\"\",\"\",'1. Order'!M1304)","v":""},null,null,{"$f":"IF('1. Order'!AS1304=\"\",\"\",'1. Order'!AS1304)","v":""},{"$f":"IF('1. Order'!AF1304=\"\",\"\",'1. Order'!AF1304)","v":""}]
[{"$f":"IF('1. Order'!B1305=\"\",\"\",'1. Order'!B1305)","v":""},{"$f":"IF('1. Order'!I1305=\"\",\"\",'1. Order'!I1305)","v":""},{"$f":"IF('1. Order'!J1305=\"\",\"\",'1. Order'!J1305)","v":""},{"$f":"IF('1. Order'!K1305=\"\",\"\",'1. Order'!K1305)","v":""},{"$f":"IF('1. Order'!M1305=\"\",\"\",'1. Order'!M1305)","v":""},null,null,{"$f":"IF('1. Order'!AS1305=\"\",\"\",'1. Order'!AS1305)","v":""},{"$f":"IF('1. Order'!AF1305=\"\",\"\",'1. Order'!AF1305)","v":""}]
[{"$f":"IF('1. Order'!B1306=\"\",\"\",'1. Order'!B1306)","v":""},{"$f":"IF('1. Order'!I1306=\"\",\"\",'1. Order'!I1306)","v":""},{"$f":"IF('1. Order'!J1306=\"\",\"\",'1. Order'!J1306)","v":""},{"$f":"IF('1. Order'!K1306=\"\",\"\",'1. Order'!K1306)","v":""},{"$f":"IF('1. Order'!M1306=\"\",\"\",'1. Order'!M1306)","v":""},null,null,{"$f":"IF('1. Order'!AS1306=\"\",\"\",'1. Order'!AS1306)","v":""},{"$f":"IF('1. Order'!AF1306=\"\",\"\",'1. Order'!AF1306)","v":""}]
[{"$f":"IF('1. Order'!B1307=\"\",\"\",'1. Order'!B1307)","v":""},{"$f":"IF('1. Order'!I1307=\"\",\"\",'1. Order'!I1307)","v":""},{"$f":"IF('1. Order'!J1307=\"\",\"\",'1. Order'!J1307)","v":""},{"$f":"IF('1. Order'!K1307=\"\",\"\",'1. Order'!K1307)","v":""},{"$f":"IF('1. Order'!M1307=\"\",\"\",'1. Order'!M1307)","v":""},null,null,{"$f":"IF('1. Order'!AS1307=\"\",\"\",'1. Order'!AS1307)","v":""},{"$f":"IF('1. Order'!AF1307=\"\",\"\",'1. Order'!AF1307)","v":""}]
[{"$f":"IF('1. Order'!B1308=\"\",\"\",'1. Order'!B1308)","v":""},{"$f":"IF('1. Order'!I1308=\"\",\"\",'1. Order'!I1308)","v":""},{"$f":"IF('1. Order'!J1308=\"\",\"\",'1. Order'!J1308)","v":""},{"$f":"IF('1. Order'!K1308=\"\",\"\",'1. Order'!K1308)","v":""},{"$f":"IF('1. Order'!M1308=\"\",\"\",'1. Order'!M1308)","v":""},null,null,{"$f":"IF('1. Order'!AS1308=\"\",\"\",'1. Order'!AS1308)","v":""},{"$f":"IF('1. Order'!AF1308=\"\",\"\",'1. Order'!AF1308)","v":""}]
[{"$f":"IF('1. Order'!B1309=\"\",\"\",'1. Order'!B1309)","v":""},{"$f":"IF('1. Order'!I1309=\"\",\"\",'1. Order'!I1309)","v":""},{"$f":"IF('1. Order'!J1309=\"\",\"\",'1. Order'!J1309)","v":""},{"$f":"IF('1. Order'!K1309=\"\",\"\",'1. Order'!K1309)","v":""},{"$f":"IF('1. Order'!M1309=\"\",\"\",'1. Order'!M1309)","v":""},null,null,{"$f":"IF('1. Order'!AS1309=\"\",\"\",'1. Order'!AS1309)","v":""},{"$f":"IF('1. Order'!AF1309=\"\",\"\",'1. Order'!AF1309)","v":""}]
[{"$f":"IF('1. Order'!B1310=\"\",\"\",'1. Order'!B1310)","v":""},{"$f":"IF('1. Order'!I1310=\"\",\"\",'1. Order'!I1310)","v":""},{"$f":"IF('1. Order'!J1310=\"\",\"\",'1. Order'!J1310)","v":""},{"$f":"IF('1. Order'!K1310=\"\",\"\",'1. Order'!K1310)","v":""},{"$f":"IF('1. Order'!M1310=\"\",\"\",'1. Order'!M1310)","v":""},null,null,{"$f":"IF('1. Order'!AS1310=\"\",\"\",'1. Order'!AS1310)","v":""},{"$f":"IF('1. Order'!AF1310=\"\",\"\",'1. Order'!AF1310)","v":""}]
[{"$f":"IF('1. Order'!B1311=\"\",\"\",'1. Order'!B1311)","v":""},{"$f":"IF('1. Order'!I1311=\"\",\"\",'1. Order'!I1311)","v":""},{"$f":"IF('1. Order'!J1311=\"\",\"\",'1. Order'!J1311)","v":""},{"$f":"IF('1. Order'!K1311=\"\",\"\",'1. Order'!K1311)","v":""},{"$f":"IF('1. Order'!M1311=\"\",\"\",'1. Order'!M1311)","v":""},null,null,{"$f":"IF('1. Order'!AS1311=\"\",\"\",'1. Order'!AS1311)","v":""},{"$f":"IF('1. Order'!AF1311=\"\",\"\",'1. Order'!AF1311)","v":""}]
[{"$f":"IF('1. Order'!B1312=\"\",\"\",'1. Order'!B1312)","v":""},{"$f":"IF('1. Order'!I1312=\"\",\"\",'1. Order'!I1312)","v":""},{"$f":"IF('1. Order'!J1312=\"\",\"\",'1. Order'!J1312)","v":""},{"$f":"IF('1. Order'!K1312=\"\",\"\",'1. Order'!K1312)","v":""},{"$f":"IF('1. Order'!M1312=\"\",\"\",'1. Order'!M1312)","v":""},null,null,{"$f":"IF('1. Order'!AS1312=\"\",\"\",'1. Order'!AS1312)","v":""},{"$f":"IF('1. Order'!AF1312=\"\",\"\",'1. Order'!AF1312)","v":""}]
[{"$f":"IF('1. Order'!B1313=\"\",\"\",'1. Order'!B1313)","v":""},{"$f":"IF('1. Order'!I1313=\"\",\"\",'1. Order'!I1313)","v":""},{"$f":"IF('1. Order'!J1313=\"\",\"\",'1. Order'!J1313)","v":""},{"$f":"IF('1. Order'!K1313=\"\",\"\",'1. Order'!K1313)","v":""},{"$f":"IF('1. Order'!M1313=\"\",\"\",'1. Order'!M1313)","v":""},null,null,{"$f":"IF('1. Order'!AS1313=\"\",\"\",'1. Order'!AS1313)","v":""},{"$f":"IF('1. Order'!AF1313=\"\",\"\",'1. Order'!AF1313)","v":""}]
[{"$f":"IF('1. Order'!B1314=\"\",\"\",'1. Order'!B1314)","v":""},{"$f":"IF('1. Order'!I1314=\"\",\"\",'1. Order'!I1314)","v":""},{"$f":"IF('1. Order'!J1314=\"\",\"\",'1. Order'!J1314)","v":""},{"$f":"IF('1. Order'!K1314=\"\",\"\",'1. Order'!K1314)","v":""},{"$f":"IF('1. Order'!M1314=\"\",\"\",'1. Order'!M1314)","v":""},null,null,{"$f":"IF('1. Order'!AS1314=\"\",\"\",'1. Order'!AS1314)","v":""},{"$f":"IF('1. Order'!AF1314=\"\",\"\",'1. Order'!AF1314)","v":""}]
[{"$f":"IF('1. Order'!B1315=\"\",\"\",'1. Order'!B1315)","v":""},{"$f":"IF('1. Order'!I1315=\"\",\"\",'1. Order'!I1315)","v":""},{"$f":"IF('1. Order'!J1315=\"\",\"\",'1. Order'!J1315)","v":""},{"$f":"IF('1. Order'!K1315=\"\",\"\",'1. Order'!K1315)","v":""},{"$f":"IF('1. Order'!M1315=\"\",\"\",'1. Order'!M1315)","v":""},null,null,{"$f":"IF('1. Order'!AS1315=\"\",\"\",'1. Order'!AS1315)","v":""},{"$f":"IF('1. Order'!AF1315=\"\",\"\",'1. Order'!AF1315)","v":""}]
[{"$f":"IF('1. Order'!B1316=\"\",\"\",'1. Order'!B1316)","v":""},{"$f":"IF('1. Order'!I1316=\"\",\"\",'1. Order'!I1316)","v":""},{"$f":"IF('1. Order'!J1316=\"\",\"\",'1. Order'!J1316)","v":""},{"$f":"IF('1. Order'!K1316=\"\",\"\",'1. Order'!K1316)","v":""},{"$f":"IF('1. Order'!M1316=\"\",\"\",'1. Order'!M1316)","v":""},null,null,{"$f":"IF('1. Order'!AS1316=\"\",\"\",'1. Order'!AS1316)","v":""},{"$f":"IF('1. Order'!AF1316=\"\",\"\",'1. Order'!AF1316)","v":""}]
[{"$f":"IF('1. Order'!B1317=\"\",\"\",'1. Order'!B1317)","v":""},{"$f":"IF('1. Order'!I1317=\"\",\"\",'1. Order'!I1317)","v":""},{"$f":"IF('1. Order'!J1317=\"\",\"\",'1. Order'!J1317)","v":""},{"$f":"IF('1. Order'!K1317=\"\",\"\",'1. Order'!K1317)","v":""},{"$f":"IF('1. Order'!M1317=\"\",\"\",'1. Order'!M1317)","v":""},null,null,{"$f":"IF('1. Order'!AS1317=\"\",\"\",'1. Order'!AS1317)","v":""},{"$f":"IF('1. Order'!AF1317=\"\",\"\",'1. Order'!AF1317)","v":""}]
[{"$f":"IF('1. Order'!B1318=\"\",\"\",'1. Order'!B1318)","v":""},{"$f":"IF('1. Order'!I1318=\"\",\"\",'1. Order'!I1318)","v":""},{"$f":"IF('1. Order'!J1318=\"\",\"\",'1. Order'!J1318)","v":""},{"$f":"IF('1. Order'!K1318=\"\",\"\",'1. Order'!K1318)","v":""},{"$f":"IF('1. Order'!M1318=\"\",\"\",'1. Order'!M1318)","v":""},null,null,{"$f":"IF('1. Order'!AS1318=\"\",\"\",'1. Order'!AS1318)","v":""},{"$f":"IF('1. Order'!AF1318=\"\",\"\",'1. Order'!AF1318)","v":""}]
[{"$f":"IF('1. Order'!B1319=\"\",\"\",'1. Order'!B1319)","v":""},{"$f":"IF('1. Order'!I1319=\"\",\"\",'1. Order'!I1319)","v":""},{"$f":"IF('1. Order'!J1319=\"\",\"\",'1. Order'!J1319)","v":""},{"$f":"IF('1. Order'!K1319=\"\",\"\",'1. Order'!K1319)","v":""},{"$f":"IF('1. Order'!M1319=\"\",\"\",'1. Order'!M1319)","v":""},null,null,{"$f":"IF('1. Order'!AS1319=\"\",\"\",'1. Order'!AS1319)","v":""},{"$f":"IF('1. Order'!AF1319=\"\",\"\",'1. Order'!AF1319)","v":""}]
[{"$f":"IF('1. Order'!B1320=\"\",\"\",'1. Order'!B1320)","v":""},{"$f":"IF('1. Order'!I1320=\"\",\"\",'1. Order'!I1320)","v":""},{"$f":"IF('1. Order'!J1320=\"\",\"\",'1. Order'!J1320)","v":""},{"$f":"IF('1. Order'!K1320=\"\",\"\",'1. Order'!K1320)","v":""},{"$f":"IF('1. Order'!M1320=\"\",\"\",'1. Order'!M1320)","v":""},null,null,{"$f":"IF('1. Order'!AS1320=\"\",\"\",'1. Order'!AS1320)","v":""},{"$f":"IF('1. Order'!AF1320=\"\",\"\",'1. Order'!AF1320)","v":""}]
[{"$f":"IF('1. Order'!B1321=\"\",\"\",'1. Order'!B1321)","v":""},{"$f":"IF('1. Order'!I1321=\"\",\"\",'1. Order'!I1321)","v":""},{"$f":"IF('1. Order'!J1321=\"\",\"\",'1. Order'!J1321)","v":""},{"$f":"IF('1. Order'!K1321=\"\",\"\",'1. Order'!K1321)","v":""},{"$f":"IF('1. Order'!M1321=\"\",\"\",'1. Order'!M1321)","v":""},null,null,{"$f":"IF('1. Order'!AS1321=\"\",\"\",'1. Order'!AS1321)","v":""},{"$f":"IF('1. Order'!AF1321=\"\",\"\",'1. Order'!AF1321)","v":""}]
[{"$f":"IF('1. Order'!B1322=\"\",\"\",'1. Order'!B1322)","v":""},{"$f":"IF('1. Order'!I1322=\"\",\"\",'1. Order'!I1322)","v":""},{"$f":"IF('1. Order'!J1322=\"\",\"\",'1. Order'!J1322)","v":""},{"$f":"IF('1. Order'!K1322=\"\",\"\",'1. Order'!K1322)","v":""},{"$f":"IF('1. Order'!M1322=\"\",\"\",'1. Order'!M1322)","v":""},null,null,{"$f":"IF('1. Order'!AS1322=\"\",\"\",'1. Order'!AS1322)","v":""},{"$f":"IF('1. Order'!AF1322=\"\",\"\",'1. Order'!AF1322)","v":""}]
[{"$f":"IF('1. Order'!B1323=\"\",\"\",'1. Order'!B1323)","v":""},{"$f":"IF('1. Order'!I1323=\"\",\"\",'1. Order'!I1323)","v":""},{"$f":"IF('1. Order'!J1323=\"\",\"\",'1. Order'!J1323)","v":""},{"$f":"IF('1. Order'!K1323=\"\",\"\",'1. Order'!K1323)","v":""},{"$f":"IF('1. Order'!M1323=\"\",\"\",'1. Order'!M1323)","v":""},null,null,{"$f":"IF('1. Order'!AS1323=\"\",\"\",'1. Order'!AS1323)","v":""},{"$f":"IF('1. Order'!AF1323=\"\",\"\",'1. Order'!AF1323)","v":""}]
[{"$f":"IF('1. Order'!B1324=\"\",\"\",'1. Order'!B1324)","v":""},{"$f":"IF('1. Order'!I1324=\"\",\"\",'1. Order'!I1324)","v":""},{"$f":"IF('1. Order'!J1324=\"\",\"\",'1. Order'!J1324)","v":""},{"$f":"IF('1. Order'!K1324=\"\",\"\",'1. Order'!K1324)","v":""},{"$f":"IF('1. Order'!M1324=\"\",\"\",'1. Order'!M1324)","v":""},null,null,{"$f":"IF('1. Order'!AS1324=\"\",\"\",'1. Order'!AS1324)","v":""},{"$f":"IF('1. Order'!AF1324=\"\",\"\",'1. Order'!AF1324)","v":""}]
[{"$f":"IF('1. Order'!B1325=\"\",\"\",'1. Order'!B1325)","v":""},{"$f":"IF('1. Order'!I1325=\"\",\"\",'1. Order'!I1325)","v":""},{"$f":"IF('1. Order'!J1325=\"\",\"\",'1. Order'!J1325)","v":""},{"$f":"IF('1. Order'!K1325=\"\",\"\",'1. Order'!K1325)","v":""},{"$f":"IF('1. Order'!M1325=\"\",\"\",'1. Order'!M1325)","v":""},null,null,{"$f":"IF('1. Order'!AS1325=\"\",\"\",'1. Order'!AS1325)","v":""},{"$f":"IF('1. Order'!AF1325=\"\",\"\",'1. Order'!AF1325)","v":""}]
[{"$f":"IF('1. Order'!B1326=\"\",\"\",'1. Order'!B1326)","v":""},{"$f":"IF('1. Order'!I1326=\"\",\"\",'1. Order'!I1326)","v":""},{"$f":"IF('1. Order'!J1326=\"\",\"\",'1. Order'!J1326)","v":""},{"$f":"IF('1. Order'!K1326=\"\",\"\",'1. Order'!K1326)","v":""},{"$f":"IF('1. Order'!M1326=\"\",\"\",'1. Order'!M1326)","v":""},null,null,{"$f":"IF('1. Order'!AS1326=\"\",\"\",'1. Order'!AS1326)","v":""},{"$f":"IF('1. Order'!AF1326=\"\",\"\",'1. Order'!AF1326)","v":""}]
[{"$f":"IF('1. Order'!B1327=\"\",\"\",'1. Order'!B1327)","v":""},{"$f":"IF('1. Order'!I1327=\"\",\"\",'1. Order'!I1327)","v":""},{"$f":"IF('1. Order'!J1327=\"\",\"\",'1. Order'!J1327)","v":""},{"$f":"IF('1. Order'!K1327=\"\",\"\",'1. Order'!K1327)","v":""},{"$f":"IF('1. Order'!M1327=\"\",\"\",'1. Order'!M1327)","v":""},null,null,{"$f":"IF('1. Order'!AS1327=\"\",\"\",'1. Order'!AS1327)","v":""},{"$f":"IF('1. Order'!AF1327=\"\",\"\",'1. Order'!AF1327)","v":""}]
[{"$f":"IF('1. Order'!B1328=\"\",\"\",'1. Order'!B1328)","v":""},{"$f":"IF('1. Order'!I1328=\"\",\"\",'1. Order'!I1328)","v":""},{"$f":"IF('1. Order'!J1328=\"\",\"\",'1. Order'!J1328)","v":""},{"$f":"IF('1. Order'!K1328=\"\",\"\",'1. Order'!K1328)","v":""},{"$f":"IF('1. Order'!M1328=\"\",\"\",'1. Order'!M1328)","v":""},null,null,{"$f":"IF('1. Order'!AS1328=\"\",\"\",'1. Order'!AS1328)","v":""},{"$f":"IF('1. Order'!AF1328=\"\",\"\",'1. Order'!AF1328)","v":""}]
[{"$f":"IF('1. Order'!B1329=\"\",\"\",'1. Order'!B1329)","v":""},{"$f":"IF('1. Order'!I1329=\"\",\"\",'1. Order'!I1329)","v":""},{"$f":"IF('1. Order'!J1329=\"\",\"\",'1. Order'!J1329)","v":""},{"$f":"IF('1. Order'!K1329=\"\",\"\",'1. Order'!K1329)","v":""},{"$f":"IF('1. Order'!M1329=\"\",\"\",'1. Order'!M1329)","v":""},null,null,{"$f":"IF('1. Order'!AS1329=\"\",\"\",'1. Order'!AS1329)","v":""},{"$f":"IF('1. Order'!AF1329=\"\",\"\",'1. Order'!AF1329)","v":""}]
[{"$f":"IF('1. Order'!B1330=\"\",\"\",'1. Order'!B1330)","v":""},{"$f":"IF('1. Order'!I1330=\"\",\"\",'1. Order'!I1330)","v":""},{"$f":"IF('1. Order'!J1330=\"\",\"\",'1. Order'!J1330)","v":""},{"$f":"IF('1. Order'!K1330=\"\",\"\",'1. Order'!K1330)","v":""},{"$f":"IF('1. Order'!M1330=\"\",\"\",'1. Order'!M1330)","v":""},null,null,{"$f":"IF('1. Order'!AS1330=\"\",\"\",'1. Order'!AS1330)","v":""},{"$f":"IF('1. Order'!AF1330=\"\",\"\",'1. Order'!AF1330)","v":""}]
[{"$f":"IF('1. Order'!B1331=\"\",\"\",'1. Order'!B1331)","v":""},{"$f":"IF('1. Order'!I1331=\"\",\"\",'1. Order'!I1331)","v":""},{"$f":"IF('1. Order'!J1331=\"\",\"\",'1. Order'!J1331)","v":""},{"$f":"IF('1. Order'!K1331=\"\",\"\",'1. Order'!K1331)","v":""},{"$f":"IF('1. Order'!M1331=\"\",\"\",'1. Order'!M1331)","v":""},null,null,{"$f":"IF('1. Order'!AS1331=\"\",\"\",'1. Order'!AS1331)","v":""},{"$f":"IF('1. Order'!AF1331=\"\",\"\",'1. Order'!AF1331)","v":""}]
[{"$f":"IF('1. Order'!B1332=\"\",\"\",'1. Order'!B1332)","v":""},{"$f":"IF('1. Order'!I1332=\"\",\"\",'1. Order'!I1332)","v":""},{"$f":"IF('1. Order'!J1332=\"\",\"\",'1. Order'!J1332)","v":""},{"$f":"IF('1. Order'!K1332=\"\",\"\",'1. Order'!K1332)","v":""},{"$f":"IF('1. Order'!M1332=\"\",\"\",'1. Order'!M1332)","v":""},null,null,{"$f":"IF('1. Order'!AS1332=\"\",\"\",'1. Order'!AS1332)","v":""},{"$f":"IF('1. Order'!AF1332=\"\",\"\",'1. Order'!AF1332)","v":""}]
[{"$f":"IF('1. Order'!B1333=\"\",\"\",'1. Order'!B1333)","v":""},{"$f":"IF('1. Order'!I1333=\"\",\"\",'1. Order'!I1333)","v":""},{"$f":"IF('1. Order'!J1333=\"\",\"\",'1. Order'!J1333)","v":""},{"$f":"IF('1. Order'!K1333=\"\",\"\",'1. Order'!K1333)","v":""},{"$f":"IF('1. Order'!M1333=\"\",\"\",'1. Order'!M1333)","v":""},null,null,{"$f":"IF('1. Order'!AS1333=\"\",\"\",'1. Order'!AS1333)","v":""},{"$f":"IF('1. Order'!AF1333=\"\",\"\",'1. Order'!AF1333)","v":""}]
[{"$f":"IF('1. Order'!B1334=\"\",\"\",'1. Order'!B1334)","v":""},{"$f":"IF('1. Order'!I1334=\"\",\"\",'1. Order'!I1334)","v":""},{"$f":"IF('1. Order'!J1334=\"\",\"\",'1. Order'!J1334)","v":""},{"$f":"IF('1. Order'!K1334=\"\",\"\",'1. Order'!K1334)","v":""},{"$f":"IF('1. Order'!M1334=\"\",\"\",'1. Order'!M1334)","v":""},null,null,{"$f":"IF('1. Order'!AS1334=\"\",\"\",'1. Order'!AS1334)","v":""},{"$f":"IF('1. Order'!AF1334=\"\",\"\",'1. Order'!AF1334)","v":""}]
[{"$f":"IF('1. Order'!B1335=\"\",\"\",'1. Order'!B1335)","v":""},{"$f":"IF('1. Order'!I1335=\"\",\"\",'1. Order'!I1335)","v":""},{"$f":"IF('1. Order'!J1335=\"\",\"\",'1. Order'!J1335)","v":""},{"$f":"IF('1. Order'!K1335=\"\",\"\",'1. Order'!K1335)","v":""},{"$f":"IF('1. Order'!M1335=\"\",\"\",'1. Order'!M1335)","v":""},null,null,{"$f":"IF('1. Order'!AS1335=\"\",\"\",'1. Order'!AS1335)","v":""},{"$f":"IF('1. Order'!AF1335=\"\",\"\",'1. Order'!AF1335)","v":""}]
[{"$f":"IF('1. Order'!B1336=\"\",\"\",'1. Order'!B1336)","v":""},{"$f":"IF('1. Order'!I1336=\"\",\"\",'1. Order'!I1336)","v":""},{"$f":"IF('1. Order'!J1336=\"\",\"\",'1. Order'!J1336)","v":""},{"$f":"IF('1. Order'!K1336=\"\",\"\",'1. Order'!K1336)","v":""},{"$f":"IF('1. Order'!M1336=\"\",\"\",'1. Order'!M1336)","v":""},null,null,{"$f":"IF('1. Order'!AS1336=\"\",\"\",'1. Order'!AS1336)","v":""},{"$f":"IF('1. Order'!AF1336=\"\",\"\",'1. Order'!AF1336)","v":""}]
[{"$f":"IF('1. Order'!B1337=\"\",\"\",'1. Order'!B1337)","v":""},{"$f":"IF('1. Order'!I1337=\"\",\"\",'1. Order'!I1337)","v":""},{"$f":"IF('1. Order'!J1337=\"\",\"\",'1. Order'!J1337)","v":""},{"$f":"IF('1. Order'!K1337=\"\",\"\",'1. Order'!K1337)","v":""},{"$f":"IF('1. Order'!M1337=\"\",\"\",'1. Order'!M1337)","v":""},null,null,{"$f":"IF('1. Order'!AS1337=\"\",\"\",'1. Order'!AS1337)","v":""},{"$f":"IF('1. Order'!AF1337=\"\",\"\",'1. Order'!AF1337)","v":""}]
[{"$f":"IF('1. Order'!B1338=\"\",\"\",'1. Order'!B1338)","v":""},{"$f":"IF('1. Order'!I1338=\"\",\"\",'1. Order'!I1338)","v":""},{"$f":"IF('1. Order'!J1338=\"\",\"\",'1. Order'!J1338)","v":""},{"$f":"IF('1. Order'!K1338=\"\",\"\",'1. Order'!K1338)","v":""},{"$f":"IF('1. Order'!M1338=\"\",\"\",'1. Order'!M1338)","v":""},null,null,{"$f":"IF('1. Order'!AS1338=\"\",\"\",'1. Order'!AS1338)","v":""},{"$f":"IF('1. Order'!AF1338=\"\",\"\",'1. Order'!AF1338)","v":""}]
[{"$f":"IF('1. Order'!B1339=\"\",\"\",'1. Order'!B1339)","v":""},{"$f":"IF('1. Order'!I1339=\"\",\"\",'1. Order'!I1339)","v":""},{"$f":"IF('1. Order'!J1339=\"\",\"\",'1. Order'!J1339)","v":""},{"$f":"IF('1. Order'!K1339=\"\",\"\",'1. Order'!K1339)","v":""},{"$f":"IF('1. Order'!M1339=\"\",\"\",'1. Order'!M1339)","v":""},null,null,{"$f":"IF('1. Order'!AS1339=\"\",\"\",'1. Order'!AS1339)","v":""},{"$f":"IF('1. Order'!AF1339=\"\",\"\",'1. Order'!AF1339)","v":""}]
[{"$f":"IF('1. Order'!B1340=\"\",\"\",'1. Order'!B1340)","v":""},{"$f":"IF('1. Order'!I1340=\"\",\"\",'1. Order'!I1340)","v":""},{"$f":"IF('1. Order'!J1340=\"\",\"\",'1. Order'!J1340)","v":""},{"$f":"IF('1. Order'!K1340=\"\",\"\",'1. Order'!K1340)","v":""},{"$f":"IF('1. Order'!M1340=\"\",\"\",'1. Order'!M1340)","v":""},null,null,{"$f":"IF('1. Order'!AS1340=\"\",\"\",'1. Order'!AS1340)","v":""},{"$f":"IF('1. Order'!AF1340=\"\",\"\",'1. Order'!AF1340)","v":""}]
[{"$f":"IF('1. Order'!B1341=\"\",\"\",'1. Order'!B1341)","v":""},{"$f":"IF('1. Order'!I1341=\"\",\"\",'1. Order'!I1341)","v":""},{"$f":"IF('1. Order'!J1341=\"\",\"\",'1. Order'!J1341)","v":""},{"$f":"IF('1. Order'!K1341=\"\",\"\",'1. Order'!K1341)","v":""},{"$f":"IF('1. Order'!M1341=\"\",\"\",'1. Order'!M1341)","v":""},null,null,{"$f":"IF('1. Order'!AS1341=\"\",\"\",'1. Order'!AS1341)","v":""},{"$f":"IF('1. Order'!AF1341=\"\",\"\",'1. Order'!AF1341)","v":""}]
[{"$f":"IF('1. Order'!B1342=\"\",\"\",'1. Order'!B1342)","v":""},{"$f":"IF('1. Order'!I1342=\"\",\"\",'1. Order'!I1342)","v":""},{"$f":"IF('1. Order'!J1342=\"\",\"\",'1. Order'!J1342)","v":""},{"$f":"IF('1. Order'!K1342=\"\",\"\",'1. Order'!K1342)","v":""},{"$f":"IF('1. Order'!M1342=\"\",\"\",'1. Order'!M1342)","v":""},null,null,{"$f":"IF('1. Order'!AS1342=\"\",\"\",'1. Order'!AS1342)","v":""},{"$f":"IF('1. Order'!AF1342=\"\",\"\",'1. Order'!AF1342)","v":""}]
[{"$f":"IF('1. Order'!B1343=\"\",\"\",'1. Order'!B1343)","v":""},{"$f":"IF('1. Order'!I1343=\"\",\"\",'1. Order'!I1343)","v":""},{"$f":"IF('1. Order'!J1343=\"\",\"\",'1. Order'!J1343)","v":""},{"$f":"IF('1. Order'!K1343=\"\",\"\",'1. Order'!K1343)","v":""},{"$f":"IF('1. Order'!M1343=\"\",\"\",'1. Order'!M1343)","v":""},null,null,{"$f":"IF('1. Order'!AS1343=\"\",\"\",'1. Order'!AS1343)","v":""},{"$f":"IF('1. Order'!AF1343=\"\",\"\",'1. Order'!AF1343)","v":""}]
[{"$f":"IF('1. Order'!B1344=\"\",\"\",'1. Order'!B1344)","v":""},{"$f":"IF('1. Order'!I1344=\"\",\"\",'1. Order'!I1344)","v":""},{"$f":"IF('1. Order'!J1344=\"\",\"\",'1. Order'!J1344)","v":""},{"$f":"IF('1. Order'!K1344=\"\",\"\",'1. Order'!K1344)","v":""},{"$f":"IF('1. Order'!M1344=\"\",\"\",'1. Order'!M1344)","v":""},null,null,{"$f":"IF('1. Order'!AS1344=\"\",\"\",'1. Order'!AS1344)","v":""},{"$f":"IF('1. Order'!AF1344=\"\",\"\",'1. Order'!AF1344)","v":""}]
[{"$f":"IF('1. Order'!B1345=\"\",\"\",'1. Order'!B1345)","v":""},{"$f":"IF('1. Order'!I1345=\"\",\"\",'1. Order'!I1345)","v":""},{"$f":"IF('1. Order'!J1345=\"\",\"\",'1. Order'!J1345)","v":""},{"$f":"IF('1. Order'!K1345=\"\",\"\",'1. Order'!K1345)","v":""},{"$f":"IF('1. Order'!M1345=\"\",\"\",'1. Order'!M1345)","v":""},null,null,{"$f":"IF('1. Order'!AS1345=\"\",\"\",'1. Order'!AS1345)","v":""},{"$f":"IF('1. Order'!AF1345=\"\",\"\",'1. Order'!AF1345)","v":""}]
[{"$f":"IF('1. Order'!B1346=\"\",\"\",'1. Order'!B1346)","v":""},{"$f":"IF('1. Order'!I1346=\"\",\"\",'1. Order'!I1346)","v":""},{"$f":"IF('1. Order'!J1346=\"\",\"\",'1. Order'!J1346)","v":""},{"$f":"IF('1. Order'!K1346=\"\",\"\",'1. Order'!K1346)","v":""},{"$f":"IF('1. Order'!M1346=\"\",\"\",'1. Order'!M1346)","v":""},null,null,{"$f":"IF('1. Order'!AS1346=\"\",\"\",'1. Order'!AS1346)","v":""},{"$f":"IF('1. Order'!AF1346=\"\",\"\",'1. Order'!AF1346)","v":""}]
[{"$f":"IF('1. Order'!B1347=\"\",\"\",'1. Order'!B1347)","v":""},{"$f":"IF('1. Order'!I1347=\"\",\"\",'1. Order'!I1347)","v":""},{"$f":"IF('1. Order'!J1347=\"\",\"\",'1. Order'!J1347)","v":""},{"$f":"IF('1. Order'!K1347=\"\",\"\",'1. Order'!K1347)","v":""},{"$f":"IF('1. Order'!M1347=\"\",\"\",'1. Order'!M1347)","v":""},null,null,{"$f":"IF('1. Order'!AS1347=\"\",\"\",'1. Order'!AS1347)","v":""},{"$f":"IF('1. Order'!AF1347=\"\",\"\",'1. Order'!AF1347)","v":""}]
[{"$f":"IF('1. Order'!B1348=\"\",\"\",'1. Order'!B1348)","v":""},{"$f":"IF('1. Order'!I1348=\"\",\"\",'1. Order'!I1348)","v":""},{"$f":"IF('1. Order'!J1348=\"\",\"\",'1. Order'!J1348)","v":""},{"$f":"IF('1. Order'!K1348=\"\",\"\",'1. Order'!K1348)","v":""},{"$f":"IF('1. Order'!M1348=\"\",\"\",'1. Order'!M1348)","v":""},null,null,{"$f":"IF('1. Order'!AS1348=\"\",\"\",'1. Order'!AS1348)","v":""},{"$f":"IF('1. Order'!AF1348=\"\",\"\",'1. Order'!AF1348)","v":""}]
[{"$f":"IF('1. Order'!B1349=\"\",\"\",'1. Order'!B1349)","v":""},{"$f":"IF('1. Order'!I1349=\"\",\"\",'1. Order'!I1349)","v":""},{"$f":"IF('1. Order'!J1349=\"\",\"\",'1. Order'!J1349)","v":""},{"$f":"IF('1. Order'!K1349=\"\",\"\",'1. Order'!K1349)","v":""},{"$f":"IF('1. Order'!M1349=\"\",\"\",'1. Order'!M1349)","v":""},null,null,{"$f":"IF('1. Order'!AS1349=\"\",\"\",'1. Order'!AS1349)","v":""},{"$f":"IF('1. Order'!AF1349=\"\",\"\",'1. Order'!AF1349)","v":""}]
[{"$f":"IF('1. Order'!B1350=\"\",\"\",'1. Order'!B1350)","v":""},{"$f":"IF('1. Order'!I1350=\"\",\"\",'1. Order'!I1350)","v":""},{"$f":"IF('1. Order'!J1350=\"\",\"\",'1. Order'!J1350)","v":""},{"$f":"IF('1. Order'!K1350=\"\",\"\",'1. Order'!K1350)","v":""},{"$f":"IF('1. Order'!M1350=\"\",\"\",'1. Order'!M1350)","v":""},null,null,{"$f":"IF('1. Order'!AS1350=\"\",\"\",'1. Order'!AS1350)","v":""},{"$f":"IF('1. Order'!AF1350=\"\",\"\",'1. Order'!AF1350)","v":""}]
[{"$f":"IF('1. Order'!B1351=\"\",\"\",'1. Order'!B1351)","v":""},{"$f":"IF('1. Order'!I1351=\"\",\"\",'1. Order'!I1351)","v":""},{"$f":"IF('1. Order'!J1351=\"\",\"\",'1. Order'!J1351)","v":""},{"$f":"IF('1. Order'!K1351=\"\",\"\",'1. Order'!K1351)","v":""},{"$f":"IF('1. Order'!M1351=\"\",\"\",'1. Order'!M1351)","v":""},null,null,{"$f":"IF('1. Order'!AS1351=\"\",\"\",'1. Order'!AS1351)","v":""},{"$f":"IF('1. Order'!AF1351=\"\",\"\",'1. Order'!AF1351)","v":""}]
[{"$f":"IF('1. Order'!B1352=\"\",\"\",'1. Order'!B1352)","v":""},{"$f":"IF('1. Order'!I1352=\"\",\"\",'1. Order'!I1352)","v":""},{"$f":"IF('1. Order'!J1352=\"\",\"\",'1. Order'!J1352)","v":""},{"$f":"IF('1. Order'!K1352=\"\",\"\",'1. Order'!K1352)","v":""},{"$f":"IF('1. Order'!M1352=\"\",\"\",'1. Order'!M1352)","v":""},null,null,{"$f":"IF('1. Order'!AS1352=\"\",\"\",'1. Order'!AS1352)","v":""},{"$f":"IF('1. Order'!AF1352=\"\",\"\",'1. Order'!AF1352)","v":""}]
[{"$f":"IF('1. Order'!B1353=\"\",\"\",'1. Order'!B1353)","v":""},{"$f":"IF('1. Order'!I1353=\"\",\"\",'1. Order'!I1353)","v":""},{"$f":"IF('1. Order'!J1353=\"\",\"\",'1. Order'!J1353)","v":""},{"$f":"IF('1. Order'!K1353=\"\",\"\",'1. Order'!K1353)","v":""},{"$f":"IF('1. Order'!M1353=\"\",\"\",'1. Order'!M1353)","v":""},null,null,{"$f":"IF('1. Order'!AS1353=\"\",\"\",'1. Order'!AS1353)","v":""},{"$f":"IF('1. Order'!AF1353=\"\",\"\",'1. Order'!AF1353)","v":""}]
[{"$f":"IF('1. Order'!B1354=\"\",\"\",'1. Order'!B1354)","v":""},{"$f":"IF('1. Order'!I1354=\"\",\"\",'1. Order'!I1354)","v":""},{"$f":"IF('1. Order'!J1354=\"\",\"\",'1. Order'!J1354)","v":""},{"$f":"IF('1. Order'!K1354=\"\",\"\",'1. Order'!K1354)","v":""},{"$f":"IF('1. Order'!M1354=\"\",\"\",'1. Order'!M1354)","v":""},null,null,{"$f":"IF('1. Order'!AS1354=\"\",\"\",'1. Order'!AS1354)","v":""},{"$f":"IF('1. Order'!AF1354=\"\",\"\",'1. Order'!AF1354)","v":""}]
[{"$f":"IF('1. Order'!B1355=\"\",\"\",'1. Order'!B1355)","v":""},{"$f":"IF('1. Order'!I1355=\"\",\"\",'1. Order'!I1355)","v":""},{"$f":"IF('1. Order'!J1355=\"\",\"\",'1. Order'!J1355)","v":""},{"$f":"IF('1. Order'!K1355=\"\",\"\",'1. Order'!K1355)","v":""},{"$f":"IF('1. Order'!M1355=\"\",\"\",'1. Order'!M1355)","v":""},null,null,{"$f":"IF('1. Order'!AS1355=\"\",\"\",'1. Order'!AS1355)","v":""},{"$f":"IF('1. Order'!AF1355=\"\",\"\",'1. Order'!AF1355)","v":""}]
[{"$f":"IF('1. Order'!B1356=\"\",\"\",'1. Order'!B1356)","v":""},{"$f":"IF('1. Order'!I1356=\"\",\"\",'1. Order'!I1356)","v":""},{"$f":"IF('1. Order'!J1356=\"\",\"\",'1. Order'!J1356)","v":""},{"$f":"IF('1. Order'!K1356=\"\",\"\",'1. Order'!K1356)","v":""},{"$f":"IF('1. Order'!M1356=\"\",\"\",'1. Order'!M1356)","v":""},null,null,{"$f":"IF('1. Order'!AS1356=\"\",\"\",'1. Order'!AS1356)","v":""},{"$f":"IF('1. Order'!AF1356=\"\",\"\",'1. Order'!AF1356)","v":""}]
[{"$f":"IF('1. Order'!B1357=\"\",\"\",'1. Order'!B1357)","v":""},{"$f":"IF('1. Order'!I1357=\"\",\"\",'1. Order'!I1357)","v":""},{"$f":"IF('1. Order'!J1357=\"\",\"\",'1. Order'!J1357)","v":""},{"$f":"IF('1. Order'!K1357=\"\",\"\",'1. Order'!K1357)","v":""},{"$f":"IF('1. Order'!M1357=\"\",\"\",'1. Order'!M1357)","v":""},null,null,{"$f":"IF('1. Order'!AS1357=\"\",\"\",'1. Order'!AS1357)","v":""},{"$f":"IF('1. Order'!AF1357=\"\",\"\",'1. Order'!AF1357)","v":""}]
[{"$f":"IF('1. Order'!B1358=\"\",\"\",'1. Order'!B1358)","v":""},{"$f":"IF('1. Order'!I1358=\"\",\"\",'1. Order'!I1358)","v":""},{"$f":"IF('1. Order'!J1358=\"\",\"\",'1. Order'!J1358)","v":""},{"$f":"IF('1. Order'!K1358=\"\",\"\",'1. Order'!K1358)","v":""},{"$f":"IF('1. Order'!M1358=\"\",\"\",'1. Order'!M1358)","v":""},null,null,{"$f":"IF('1. Order'!AS1358=\"\",\"\",'1. Order'!AS1358)","v":""},{"$f":"IF('1. Order'!AF1358=\"\",\"\",'1. Order'!AF1358)","v":""}]
[{"$f":"IF('1. Order'!B1359=\"\",\"\",'1. Order'!B1359)","v":""},{"$f":"IF('1. Order'!I1359=\"\",\"\",'1. Order'!I1359)","v":""},{"$f":"IF('1. Order'!J1359=\"\",\"\",'1. Order'!J1359)","v":""},{"$f":"IF('1. Order'!K1359=\"\",\"\",'1. Order'!K1359)","v":""},{"$f":"IF('1. Order'!M1359=\"\",\"\",'1. Order'!M1359)","v":""},null,null,{"$f":"IF('1. Order'!AS1359=\"\",\"\",'1. Order'!AS1359)","v":""},{"$f":"IF('1. Order'!AF1359=\"\",\"\",'1. Order'!AF1359)","v":""}]
[{"$f":"IF('1. Order'!B1360=\"\",\"\",'1. Order'!B1360)","v":""},{"$f":"IF('1. Order'!I1360=\"\",\"\",'1. Order'!I1360)","v":""},{"$f":"IF('1. Order'!J1360=\"\",\"\",'1. Order'!J1360)","v":""},{"$f":"IF('1. Order'!K1360=\"\",\"\",'1. Order'!K1360)","v":""},{"$f":"IF('1. Order'!M1360=\"\",\"\",'1. Order'!M1360)","v":""},null,null,{"$f":"IF('1. Order'!AS1360=\"\",\"\",'1. Order'!AS1360)","v":""},{"$f":"IF('1. Order'!AF1360=\"\",\"\",'1. Order'!AF1360)","v":""}]
[{"$f":"IF('1. Order'!B1361=\"\",\"\",'1. Order'!B1361)","v":""},{"$f":"IF('1. Order'!I1361=\"\",\"\",'1. Order'!I1361)","v":""},{"$f":"IF('1. Order'!J1361=\"\",\"\",'1. Order'!J1361)","v":""},{"$f":"IF('1. Order'!K1361=\"\",\"\",'1. Order'!K1361)","v":""},{"$f":"IF('1. Order'!M1361=\"\",\"\",'1. Order'!M1361)","v":""},null,null,{"$f":"IF('1. Order'!AS1361=\"\",\"\",'1. Order'!AS1361)","v":""},{"$f":"IF('1. Order'!AF1361=\"\",\"\",'1. Order'!AF1361)","v":""}]
[{"$f":"IF('1. Order'!B1362=\"\",\"\",'1. Order'!B1362)","v":""},{"$f":"IF('1. Order'!I1362=\"\",\"\",'1. Order'!I1362)","v":""},{"$f":"IF('1. Order'!J1362=\"\",\"\",'1. Order'!J1362)","v":""},{"$f":"IF('1. Order'!K1362=\"\",\"\",'1. Order'!K1362)","v":""},{"$f":"IF('1. Order'!M1362=\"\",\"\",'1. Order'!M1362)","v":""},null,null,{"$f":"IF('1. Order'!AS1362=\"\",\"\",'1. Order'!AS1362)","v":""},{"$f":"IF('1. Order'!AF1362=\"\",\"\",'1. Order'!AF1362)","v":""}]
[{"$f":"IF('1. Order'!B1363=\"\",\"\",'1. Order'!B1363)","v":""},{"$f":"IF('1. Order'!I1363=\"\",\"\",'1. Order'!I1363)","v":""},{"$f":"IF('1. Order'!J1363=\"\",\"\",'1. Order'!J1363)","v":""},{"$f":"IF('1. Order'!K1363=\"\",\"\",'1. Order'!K1363)","v":""},{"$f":"IF('1. Order'!M1363=\"\",\"\",'1. Order'!M1363)","v":""},null,null,{"$f":"IF('1. Order'!AS1363=\"\",\"\",'1. Order'!AS1363)","v":""},{"$f":"IF('1. Order'!AF1363=\"\",\"\",'1. Order'!AF1363)","v":""}]
[{"$f":"IF('1. Order'!B1364=\"\",\"\",'1. Order'!B1364)","v":""},{"$f":"IF('1. Order'!I1364=\"\",\"\",'1. Order'!I1364)","v":""},{"$f":"IF('1. Order'!J1364=\"\",\"\",'1. Order'!J1364)","v":""},{"$f":"IF('1. Order'!K1364=\"\",\"\",'1. Order'!K1364)","v":""},{"$f":"IF('1. Order'!M1364=\"\",\"\",'1. Order'!M1364)","v":""},null,null,{"$f":"IF('1. Order'!AS1364=\"\",\"\",'1. Order'!AS1364)","v":""},{"$f":"IF('1. Order'!AF1364=\"\",\"\",'1. Order'!AF1364)","v":""}]
[{"$f":"IF('1. Order'!B1365=\"\",\"\",'1. Order'!B1365)","v":""},{"$f":"IF('1. Order'!I1365=\"\",\"\",'1. Order'!I1365)","v":""},{"$f":"IF('1. Order'!J1365=\"\",\"\",'1. Order'!J1365)","v":""},{"$f":"IF('1. Order'!K1365=\"\",\"\",'1. Order'!K1365)","v":""},{"$f":"IF('1. Order'!M1365=\"\",\"\",'1. Order'!M1365)","v":""},null,null,{"$f":"IF('1. Order'!AS1365=\"\",\"\",'1. Order'!AS1365)","v":""},{"$f":"IF('1. Order'!AF1365=\"\",\"\",'1. Order'!AF1365)","v":""}]
[{"$f":"IF('1. Order'!B1366=\"\",\"\",'1. Order'!B1366)","v":""},{"$f":"IF('1. Order'!I1366=\"\",\"\",'1. Order'!I1366)","v":""},{"$f":"IF('1. Order'!J1366=\"\",\"\",'1. Order'!J1366)","v":""},{"$f":"IF('1. Order'!K1366=\"\",\"\",'1. Order'!K1366)","v":""},{"$f":"IF('1. Order'!M1366=\"\",\"\",'1. Order'!M1366)","v":""},null,null,{"$f":"IF('1. Order'!AS1366=\"\",\"\",'1. Order'!AS1366)","v":""},{"$f":"IF('1. Order'!AF1366=\"\",\"\",'1. Order'!AF1366)","v":""}]
[{"$f":"IF('1. Order'!B1367=\"\",\"\",'1. Order'!B1367)","v":""},{"$f":"IF('1. Order'!I1367=\"\",\"\",'1. Order'!I1367)","v":""},{"$f":"IF('1. Order'!J1367=\"\",\"\",'1. Order'!J1367)","v":""},{"$f":"IF('1. Order'!K1367=\"\",\"\",'1. Order'!K1367)","v":""},{"$f":"IF('1. Order'!M1367=\"\",\"\",'1. Order'!M1367)","v":""},null,null,{"$f":"IF('1. Order'!AS1367=\"\",\"\",'1. Order'!AS1367)","v":""},{"$f":"IF('1. Order'!AF1367=\"\",\"\",'1. Order'!AF1367)","v":""}]
[{"$f":"IF('1. Order'!B1368=\"\",\"\",'1. Order'!B1368)","v":""},{"$f":"IF('1. Order'!I1368=\"\",\"\",'1. Order'!I1368)","v":""},{"$f":"IF('1. Order'!J1368=\"\",\"\",'1. Order'!J1368)","v":""},{"$f":"IF('1. Order'!K1368=\"\",\"\",'1. Order'!K1368)","v":""},{"$f":"IF('1. Order'!M1368=\"\",\"\",'1. Order'!M1368)","v":""},null,null,{"$f":"IF('1. Order'!AS1368=\"\",\"\",'1. Order'!AS1368)","v":""},{"$f":"IF('1. Order'!AF1368=\"\",\"\",'1. Order'!AF1368)","v":""}]
[{"$f":"IF('1. Order'!B1369=\"\",\"\",'1. Order'!B1369)","v":""},{"$f":"IF('1. Order'!I1369=\"\",\"\",'1. Order'!I1369)","v":""},{"$f":"IF('1. Order'!J1369=\"\",\"\",'1. Order'!J1369)","v":""},{"$f":"IF('1. Order'!K1369=\"\",\"\",'1. Order'!K1369)","v":""},{"$f":"IF('1. Order'!M1369=\"\",\"\",'1. Order'!M1369)","v":""},null,null,{"$f":"IF('1. Order'!AS1369=\"\",\"\",'1. Order'!AS1369)","v":""},{"$f":"IF('1. Order'!AF1369=\"\",\"\",'1. Order'!AF1369)","v":""}]
[{"$f":"IF('1. Order'!B1370=\"\",\"\",'1. Order'!B1370)","v":""},{"$f":"IF('1. Order'!I1370=\"\",\"\",'1. Order'!I1370)","v":""},{"$f":"IF('1. Order'!J1370=\"\",\"\",'1. Order'!J1370)","v":""},{"$f":"IF('1. Order'!K1370=\"\",\"\",'1. Order'!K1370)","v":""},{"$f":"IF('1. Order'!M1370=\"\",\"\",'1. Order'!M1370)","v":""},null,null,{"$f":"IF('1. Order'!AS1370=\"\",\"\",'1. Order'!AS1370)","v":""},{"$f":"IF('1. Order'!AF1370=\"\",\"\",'1. Order'!AF1370)","v":""}]
[{"$f":"IF('1. Order'!B1371=\"\",\"\",'1. Order'!B1371)","v":""},{"$f":"IF('1. Order'!I1371=\"\",\"\",'1. Order'!I1371)","v":""},{"$f":"IF('1. Order'!J1371=\"\",\"\",'1. Order'!J1371)","v":""},{"$f":"IF('1. Order'!K1371=\"\",\"\",'1. Order'!K1371)","v":""},{"$f":"IF('1. Order'!M1371=\"\",\"\",'1. Order'!M1371)","v":""},null,null,{"$f":"IF('1. Order'!AS1371=\"\",\"\",'1. Order'!AS1371)","v":""},{"$f":"IF('1. Order'!AF1371=\"\",\"\",'1. Order'!AF1371)","v":""}]
[{"$f":"IF('1. Order'!B1372=\"\",\"\",'1. Order'!B1372)","v":""},{"$f":"IF('1. Order'!I1372=\"\",\"\",'1. Order'!I1372)","v":""},{"$f":"IF('1. Order'!J1372=\"\",\"\",'1. Order'!J1372)","v":""},{"$f":"IF('1. Order'!K1372=\"\",\"\",'1. Order'!K1372)","v":""},{"$f":"IF('1. Order'!M1372=\"\",\"\",'1. Order'!M1372)","v":""},null,null,{"$f":"IF('1. Order'!AS1372=\"\",\"\",'1. Order'!AS1372)","v":""},{"$f":"IF('1. Order'!AF1372=\"\",\"\",'1. Order'!AF1372)","v":""}]
[{"$f":"IF('1. Order'!B1373=\"\",\"\",'1. Order'!B1373)","v":""},{"$f":"IF('1. Order'!I1373=\"\",\"\",'1. Order'!I1373)","v":""},{"$f":"IF('1. Order'!J1373=\"\",\"\",'1. Order'!J1373)","v":""},{"$f":"IF('1. Order'!K1373=\"\",\"\",'1. Order'!K1373)","v":""},{"$f":"IF('1. Order'!M1373=\"\",\"\",'1. Order'!M1373)","v":""},null,null,{"$f":"IF('1. Order'!AS1373=\"\",\"\",'1. Order'!AS1373)","v":""},{"$f":"IF('1. Order'!AF1373=\"\",\"\",'1. Order'!AF1373)","v":""}]
[{"$f":"IF('1. Order'!B1374=\"\",\"\",'1. Order'!B1374)","v":""},{"$f":"IF('1. Order'!I1374=\"\",\"\",'1. Order'!I1374)","v":""},{"$f":"IF('1. Order'!J1374=\"\",\"\",'1. Order'!J1374)","v":""},{"$f":"IF('1. Order'!K1374=\"\",\"\",'1. Order'!K1374)","v":""},{"$f":"IF('1. Order'!M1374=\"\",\"\",'1. Order'!M1374)","v":""},null,null,{"$f":"IF('1. Order'!AS1374=\"\",\"\",'1. Order'!AS1374)","v":""},{"$f":"IF('1. Order'!AF1374=\"\",\"\",'1. Order'!AF1374)","v":""}]
[{"$f":"IF('1. Order'!B1375=\"\",\"\",'1. Order'!B1375)","v":""},{"$f":"IF('1. Order'!I1375=\"\",\"\",'1. Order'!I1375)","v":""},{"$f":"IF('1. Order'!J1375=\"\",\"\",'1. Order'!J1375)","v":""},{"$f":"IF('1. Order'!K1375=\"\",\"\",'1. Order'!K1375)","v":""},{"$f":"IF('1. Order'!M1375=\"\",\"\",'1. Order'!M1375)","v":""},null,null,{"$f":"IF('1. Order'!AS1375=\"\",\"\",'1. Order'!AS1375)","v":""},{"$f":"IF('1. Order'!AF1375=\"\",\"\",'1. Order'!AF1375)","v":""}]
[{"$f":"IF('1. Order'!B1376=\"\",\"\",'1. Order'!B1376)","v":""},{"$f":"IF('1. Order'!I1376=\"\",\"\",'1. Order'!I1376)","v":""},{"$f":"IF('1. Order'!J1376=\"\",\"\",'1. Order'!J1376)","v":""},{"$f":"IF('1. Order'!K1376=\"\",\"\",'1. Order'!K1376)","v":""},{"$f":"IF('1. Order'!M1376=\"\",\"\",'1. Order'!M1376)","v":""},null,null,{"$f":"IF('1. Order'!AS1376=\"\",\"\",'1. Order'!AS1376)","v":""},{"$f":"IF('1. Order'!AF1376=\"\",\"\",'1. Order'!AF1376)","v":""}]
[{"$f":"IF('1. Order'!B1377=\"\",\"\",'1. Order'!B1377)","v":""},{"$f":"IF('1. Order'!I1377=\"\",\"\",'1. Order'!I1377)","v":""},{"$f":"IF('1. Order'!J1377=\"\",\"\",'1. Order'!J1377)","v":""},{"$f":"IF('1. Order'!K1377=\"\",\"\",'1. Order'!K1377)","v":""},{"$f":"IF('1. Order'!M1377=\"\",\"\",'1. Order'!M1377)","v":""},null,null,{"$f":"IF('1. Order'!AS1377=\"\",\"\",'1. Order'!AS1377)","v":""},{"$f":"IF('1. Order'!AF1377=\"\",\"\",'1. Order'!AF1377)","v":""}]
[{"$f":"IF('1. Order'!B1378=\"\",\"\",'1. Order'!B1378)","v":""},{"$f":"IF('1. Order'!I1378=\"\",\"\",'1. Order'!I1378)","v":""},{"$f":"IF('1. Order'!J1378=\"\",\"\",'1. Order'!J1378)","v":""},{"$f":"IF('1. Order'!K1378=\"\",\"\",'1. Order'!K1378)","v":""},{"$f":"IF('1. Order'!M1378=\"\",\"\",'1. Order'!M1378)","v":""},null,null,{"$f":"IF('1. Order'!AS1378=\"\",\"\",'1. Order'!AS1378)","v":""},{"$f":"IF('1. Order'!AF1378=\"\",\"\",'1. Order'!AF1378)","v":""}]
[{"$f":"IF('1. Order'!B1379=\"\",\"\",'1. Order'!B1379)","v":""},{"$f":"IF('1. Order'!I1379=\"\",\"\",'1. Order'!I1379)","v":""},{"$f":"IF('1. Order'!J1379=\"\",\"\",'1. Order'!J1379)","v":""},{"$f":"IF('1. Order'!K1379=\"\",\"\",'1. Order'!K1379)","v":""},{"$f":"IF('1. Order'!M1379=\"\",\"\",'1. Order'!M1379)","v":""},null,null,{"$f":"IF('1. Order'!AS1379=\"\",\"\",'1. Order'!AS1379)","v":""},{"$f":"IF('1. Order'!AF1379=\"\",\"\",'1. Order'!AF1379)","v":""}]
[{"$f":"IF('1. Order'!B1380=\"\",\"\",'1. Order'!B1380)","v":""},{"$f":"IF('1. Order'!I1380=\"\",\"\",'1. Order'!I1380)","v":""},{"$f":"IF('1. Order'!J1380=\"\",\"\",'1. Order'!J1380)","v":""},{"$f":"IF('1. Order'!K1380=\"\",\"\",'1. Order'!K1380)","v":""},{"$f":"IF('1. Order'!M1380=\"\",\"\",'1. Order'!M1380)","v":""},null,null,{"$f":"IF('1. Order'!AS1380=\"\",\"\",'1. Order'!AS1380)","v":""},{"$f":"IF('1. Order'!AF1380=\"\",\"\",'1. Order'!AF1380)","v":""}]
[{"$f":"IF('1. Order'!B1381=\"\",\"\",'1. Order'!B1381)","v":""},{"$f":"IF('1. Order'!I1381=\"\",\"\",'1. Order'!I1381)","v":""},{"$f":"IF('1. Order'!J1381=\"\",\"\",'1. Order'!J1381)","v":""},{"$f":"IF('1. Order'!K1381=\"\",\"\",'1. Order'!K1381)","v":""},{"$f":"IF('1. Order'!M1381=\"\",\"\",'1. Order'!M1381)","v":""},null,null,{"$f":"IF('1. Order'!AS1381=\"\",\"\",'1. Order'!AS1381)","v":""},{"$f":"IF('1. Order'!AF1381=\"\",\"\",'1. Order'!AF1381)","v":""}]
[{"$f":"IF('1. Order'!B1382=\"\",\"\",'1. Order'!B1382)","v":""},{"$f":"IF('1. Order'!I1382=\"\",\"\",'1. Order'!I1382)","v":""},{"$f":"IF('1. Order'!J1382=\"\",\"\",'1. Order'!J1382)","v":""},{"$f":"IF('1. Order'!K1382=\"\",\"\",'1. Order'!K1382)","v":""},{"$f":"IF('1. Order'!M1382=\"\",\"\",'1. Order'!M1382)","v":""},null,null,{"$f":"IF('1. Order'!AS1382=\"\",\"\",'1. Order'!AS1382)","v":""},{"$f":"IF('1. Order'!AF1382=\"\",\"\",'1. Order'!AF1382)","v":""}]
[{"$f":"IF('1. Order'!B1383=\"\",\"\",'1. Order'!B1383)","v":""},{"$f":"IF('1. Order'!I1383=\"\",\"\",'1. Order'!I1383)","v":""},{"$f":"IF('1. Order'!J1383=\"\",\"\",'1. Order'!J1383)","v":""},{"$f":"IF('1. Order'!K1383=\"\",\"\",'1. Order'!K1383)","v":""},{"$f":"IF('1. Order'!M1383=\"\",\"\",'1. Order'!M1383)","v":""},null,null,{"$f":"IF('1. Order'!AS1383=\"\",\"\",'1. Order'!AS1383)","v":""},{"$f":"IF('1. Order'!AF1383=\"\",\"\",'1. Order'!AF1383)","v":""}]
[{"$f":"IF('1. Order'!B1384=\"\",\"\",'1. Order'!B1384)","v":""},{"$f":"IF('1. Order'!I1384=\"\",\"\",'1. Order'!I1384)","v":""},{"$f":"IF('1. Order'!J1384=\"\",\"\",'1. Order'!J1384)","v":""},{"$f":"IF('1. Order'!K1384=\"\",\"\",'1. Order'!K1384)","v":""},{"$f":"IF('1. Order'!M1384=\"\",\"\",'1. Order'!M1384)","v":""},null,null,{"$f":"IF('1. Order'!AS1384=\"\",\"\",'1. Order'!AS1384)","v":""},{"$f":"IF('1. Order'!AF1384=\"\",\"\",'1. Order'!AF1384)","v":""}]
[{"$f":"IF('1. Order'!B1385=\"\",\"\",'1. Order'!B1385)","v":""},{"$f":"IF('1. Order'!I1385=\"\",\"\",'1. Order'!I1385)","v":""},{"$f":"IF('1. Order'!J1385=\"\",\"\",'1. Order'!J1385)","v":""},{"$f":"IF('1. Order'!K1385=\"\",\"\",'1. Order'!K1385)","v":""},{"$f":"IF('1. Order'!M1385=\"\",\"\",'1. Order'!M1385)","v":""},null,null,{"$f":"IF('1. Order'!AS1385=\"\",\"\",'1. Order'!AS1385)","v":""},{"$f":"IF('1. Order'!AF1385=\"\",\"\",'1. Order'!AF1385)","v":""}]
[{"$f":"IF('1. Order'!B1386=\"\",\"\",'1. Order'!B1386)","v":""},{"$f":"IF('1. Order'!I1386=\"\",\"\",'1. Order'!I1386)","v":""},{"$f":"IF('1. Order'!J1386=\"\",\"\",'1. Order'!J1386)","v":""},{"$f":"IF('1. Order'!K1386=\"\",\"\",'1. Order'!K1386)","v":""},{"$f":"IF('1. Order'!M1386=\"\",\"\",'1. Order'!M1386)","v":""},null,null,{"$f":"IF('1. Order'!AS1386=\"\",\"\",'1. Order'!AS1386)","v":""},{"$f":"IF('1. Order'!AF1386=\"\",\"\",'1. Order'!AF1386)","v":""}]
[{"$f":"IF('1. Order'!B1387=\"\",\"\",'1. Order'!B1387)","v":""},{"$f":"IF('1. Order'!I1387=\"\",\"\",'1. Order'!I1387)","v":""},{"$f":"IF('1. Order'!J1387=\"\",\"\",'1. Order'!J1387)","v":""},{"$f":"IF('1. Order'!K1387=\"\",\"\",'1. Order'!K1387)","v":""},{"$f":"IF('1. Order'!M1387=\"\",\"\",'1. Order'!M1387)","v":""},null,null,{"$f":"IF('1. Order'!AS1387=\"\",\"\",'1. Order'!AS1387)","v":""},{"$f":"IF('1. Order'!AF1387=\"\",\"\",'1. Order'!AF1387)","v":""}]
[{"$f":"IF('1. Order'!B1388=\"\",\"\",'1. Order'!B1388)","v":""},{"$f":"IF('1. Order'!I1388=\"\",\"\",'1. Order'!I1388)","v":""},{"$f":"IF('1. Order'!J1388=\"\",\"\",'1. Order'!J1388)","v":""},{"$f":"IF('1. Order'!K1388=\"\",\"\",'1. Order'!K1388)","v":""},{"$f":"IF('1. Order'!M1388=\"\",\"\",'1. Order'!M1388)","v":""},null,null,{"$f":"IF('1. Order'!AS1388=\"\",\"\",'1. Order'!AS1388)","v":""},{"$f":"IF('1. Order'!AF1388=\"\",\"\",'1. Order'!AF1388)","v":""}]
[{"$f":"IF('1. Order'!B1389=\"\",\"\",'1. Order'!B1389)","v":""},{"$f":"IF('1. Order'!I1389=\"\",\"\",'1. Order'!I1389)","v":""},{"$f":"IF('1. Order'!J1389=\"\",\"\",'1. Order'!J1389)","v":""},{"$f":"IF('1. Order'!K1389=\"\",\"\",'1. Order'!K1389)","v":""},{"$f":"IF('1. Order'!M1389=\"\",\"\",'1. Order'!M1389)","v":""},null,null,{"$f":"IF('1. Order'!AS1389=\"\",\"\",'1. Order'!AS1389)","v":""},{"$f":"IF('1. Order'!AF1389=\"\",\"\",'1. Order'!AF1389)","v":""}]
[{"$f":"IF('1. Order'!B1390=\"\",\"\",'1. Order'!B1390)","v":""},{"$f":"IF('1. Order'!I1390=\"\",\"\",'1. Order'!I1390)","v":""},{"$f":"IF('1. Order'!J1390=\"\",\"\",'1. Order'!J1390)","v":""},{"$f":"IF('1. Order'!K1390=\"\",\"\",'1. Order'!K1390)","v":""},{"$f":"IF('1. Order'!M1390=\"\",\"\",'1. Order'!M1390)","v":""},null,null,{"$f":"IF('1. Order'!AS1390=\"\",\"\",'1. Order'!AS1390)","v":""},{"$f":"IF('1. Order'!AF1390=\"\",\"\",'1. Order'!AF1390)","v":""}]
[{"$f":"IF('1. Order'!B1391=\"\",\"\",'1. Order'!B1391)","v":""},{"$f":"IF('1. Order'!I1391=\"\",\"\",'1. Order'!I1391)","v":""},{"$f":"IF('1. Order'!J1391=\"\",\"\",'1. Order'!J1391)","v":""},{"$f":"IF('1. Order'!K1391=\"\",\"\",'1. Order'!K1391)","v":""},{"$f":"IF('1. Order'!M1391=\"\",\"\",'1. Order'!M1391)","v":""},null,null,{"$f":"IF('1. Order'!AS1391=\"\",\"\",'1. Order'!AS1391)","v":""},{"$f":"IF('1. Order'!AF1391=\"\",\"\",'1. Order'!AF1391)","v":""}]
[{"$f":"IF('1. Order'!B1392=\"\",\"\",'1. Order'!B1392)","v":""},{"$f":"IF('1. Order'!I1392=\"\",\"\",'1. Order'!I1392)","v":""},{"$f":"IF('1. Order'!J1392=\"\",\"\",'1. Order'!J1392)","v":""},{"$f":"IF('1. Order'!K1392=\"\",\"\",'1. Order'!K1392)","v":""},{"$f":"IF('1. Order'!M1392=\"\",\"\",'1. Order'!M1392)","v":""},null,null,{"$f":"IF('1. Order'!AS1392=\"\",\"\",'1. Order'!AS1392)","v":""},{"$f":"IF('1. Order'!AF1392=\"\",\"\",'1. Order'!AF1392)","v":""}]
[{"$f":"IF('1. Order'!B1393=\"\",\"\",'1. Order'!B1393)","v":""},{"$f":"IF('1. Order'!I1393=\"\",\"\",'1. Order'!I1393)","v":""},{"$f":"IF('1. Order'!J1393=\"\",\"\",'1. Order'!J1393)","v":""},{"$f":"IF('1. Order'!K1393=\"\",\"\",'1. Order'!K1393)","v":""},{"$f":"IF('1. Order'!M1393=\"\",\"\",'1. Order'!M1393)","v":""},null,null,{"$f":"IF('1. Order'!AS1393=\"\",\"\",'1. Order'!AS1393)","v":""},{"$f":"IF('1. Order'!AF1393=\"\",\"\",'1. Order'!AF1393)","v":""}]
[{"$f":"IF('1. Order'!B1394=\"\",\"\",'1. Order'!B1394)","v":""},{"$f":"IF('1. Order'!I1394=\"\",\"\",'1. Order'!I1394)","v":""},{"$f":"IF('1. Order'!J1394=\"\",\"\",'1. Order'!J1394)","v":""},{"$f":"IF('1. Order'!K1394=\"\",\"\",'1. Order'!K1394)","v":""},{"$f":"IF('1. Order'!M1394=\"\",\"\",'1. Order'!M1394)","v":""},null,null,{"$f":"IF('1. Order'!AS1394=\"\",\"\",'1. Order'!AS1394)","v":""},{"$f":"IF('1. Order'!AF1394=\"\",\"\",'1. Order'!AF1394)","v":""}]
[{"$f":"IF('1. Order'!B1395=\"\",\"\",'1. Order'!B1395)","v":""},{"$f":"IF('1. Order'!I1395=\"\",\"\",'1. Order'!I1395)","v":""},{"$f":"IF('1. Order'!J1395=\"\",\"\",'1. Order'!J1395)","v":""},{"$f":"IF('1. Order'!K1395=\"\",\"\",'1. Order'!K1395)","v":""},{"$f":"IF('1. Order'!M1395=\"\",\"\",'1. Order'!M1395)","v":""},null,null,{"$f":"IF('1. Order'!AS1395=\"\",\"\",'1. Order'!AS1395)","v":""},{"$f":"IF('1. Order'!AF1395=\"\",\"\",'1. Order'!AF1395)","v":""}]
[{"$f":"IF('1. Order'!B1396=\"\",\"\",'1. Order'!B1396)","v":""},{"$f":"IF('1. Order'!I1396=\"\",\"\",'1. Order'!I1396)","v":""},{"$f":"IF('1. Order'!J1396=\"\",\"\",'1. Order'!J1396)","v":""},{"$f":"IF('1. Order'!K1396=\"\",\"\",'1. Order'!K1396)","v":""},{"$f":"IF('1. Order'!M1396=\"\",\"\",'1. Order'!M1396)","v":""},null,null,{"$f":"IF('1. Order'!AS1396=\"\",\"\",'1. Order'!AS1396)","v":""},{"$f":"IF('1. Order'!AF1396=\"\",\"\",'1. Order'!AF1396)","v":""}]
[{"$f":"IF('1. Order'!B1397=\"\",\"\",'1. Order'!B1397)","v":""},{"$f":"IF('1. Order'!I1397=\"\",\"\",'1. Order'!I1397)","v":""},{"$f":"IF('1. Order'!J1397=\"\",\"\",'1. Order'!J1397)","v":""},{"$f":"IF('1. Order'!K1397=\"\",\"\",'1. Order'!K1397)","v":""},{"$f":"IF('1. Order'!M1397=\"\",\"\",'1. Order'!M1397)","v":""},null,null,{"$f":"IF('1. Order'!AS1397=\"\",\"\",'1. Order'!AS1397)","v":""},{"$f":"IF('1. Order'!AF1397=\"\",\"\",'1. Order'!AF1397)","v":""}]
[{"$f":"IF('1. Order'!B1398=\"\",\"\",'1. Order'!B1398)","v":""},{"$f":"IF('1. Order'!I1398=\"\",\"\",'1. Order'!I1398)","v":""},{"$f":"IF('1. Order'!J1398=\"\",\"\",'1. Order'!J1398)","v":""},{"$f":"IF('1. Order'!K1398=\"\",\"\",'1. Order'!K1398)","v":""},{"$f":"IF('1. Order'!M1398=\"\",\"\",'1. Order'!M1398)","v":""},null,null,{"$f":"IF('1. Order'!AS1398=\"\",\"\",'1. Order'!AS1398)","v":""},{"$f":"IF('1. Order'!AF1398=\"\",\"\",'1. Order'!AF1398)","v":""}]
[{"$f":"IF('1. Order'!B1399=\"\",\"\",'1. Order'!B1399)","v":""},{"$f":"IF('1. Order'!I1399=\"\",\"\",'1. Order'!I1399)","v":""},{"$f":"IF('1. Order'!J1399=\"\",\"\",'1. Order'!J1399)","v":""},{"$f":"IF('1. Order'!K1399=\"\",\"\",'1. Order'!K1399)","v":""},{"$f":"IF('1. Order'!M1399=\"\",\"\",'1. Order'!M1399)","v":""},null,null,{"$f":"IF('1. Order'!AS1399=\"\",\"\",'1. Order'!AS1399)","v":""},{"$f":"IF('1. Order'!AF1399=\"\",\"\",'1. Order'!AF1399)","v":""}]
[{"$f":"IF('1. Order'!B1400=\"\",\"\",'1. Order'!B1400)","v":""},{"$f":"IF('1. Order'!I1400=\"\",\"\",'1. Order'!I1400)","v":""},{"$f":"IF('1. Order'!J1400=\"\",\"\",'1. Order'!J1400)","v":""},{"$f":"IF('1. Order'!K1400=\"\",\"\",'1. Order'!K1400)","v":""},{"$f":"IF('1. Order'!M1400=\"\",\"\",'1. Order'!M1400)","v":""},null,null,{"$f":"IF('1. Order'!AS1400=\"\",\"\",'1. Order'!AS1400)","v":""},{"$f":"IF('1. Order'!AF1400=\"\",\"\",'1. Order'!AF1400)","v":""}]
[{"$f":"IF('1. Order'!B1401=\"\",\"\",'1. Order'!B1401)","v":""},{"$f":"IF('1. Order'!I1401=\"\",\"\",'1. Order'!I1401)","v":""},{"$f":"IF('1. Order'!J1401=\"\",\"\",'1. Order'!J1401)","v":""},{"$f":"IF('1. Order'!K1401=\"\",\"\",'1. Order'!K1401)","v":""},{"$f":"IF('1. Order'!M1401=\"\",\"\",'1. Order'!M1401)","v":""},null,null,{"$f":"IF('1. Order'!AS1401=\"\",\"\",'1. Order'!AS1401)","v":""},{"$f":"IF('1. Order'!AF1401=\"\",\"\",'1. Order'!AF1401)","v":""}]
[{"$f":"IF('1. Order'!B1402=\"\",\"\",'1. Order'!B1402)","v":""},{"$f":"IF('1. Order'!I1402=\"\",\"\",'1. Order'!I1402)","v":""},{"$f":"IF('1. Order'!J1402=\"\",\"\",'1. Order'!J1402)","v":""},{"$f":"IF('1. Order'!K1402=\"\",\"\",'1. Order'!K1402)","v":""},{"$f":"IF('1. Order'!M1402=\"\",\"\",'1. Order'!M1402)","v":""},null,null,{"$f":"IF('1. Order'!AS1402=\"\",\"\",'1. Order'!AS1402)","v":""},{"$f":"IF('1. Order'!AF1402=\"\",\"\",'1. Order'!AF1402)","v":""}]
[{"$f":"IF('1. Order'!B1403=\"\",\"\",'1. Order'!B1403)","v":""},{"$f":"IF('1. Order'!I1403=\"\",\"\",'1. Order'!I1403)","v":""},{"$f":"IF('1. Order'!J1403=\"\",\"\",'1. Order'!J1403)","v":""},{"$f":"IF('1. Order'!K1403=\"\",\"\",'1. Order'!K1403)","v":""},{"$f":"IF('1. Order'!M1403=\"\",\"\",'1. Order'!M1403)","v":""},null,null,{"$f":"IF('1. Order'!AS1403=\"\",\"\",'1. Order'!AS1403)","v":""},{"$f":"IF('1. Order'!AF1403=\"\",\"\",'1. Order'!AF1403)","v":""}]
[{"$f":"IF('1. Order'!B1404=\"\",\"\",'1. Order'!B1404)","v":""},{"$f":"IF('1. Order'!I1404=\"\",\"\",'1. Order'!I1404)","v":""},{"$f":"IF('1. Order'!J1404=\"\",\"\",'1. Order'!J1404)","v":""},{"$f":"IF('1. Order'!K1404=\"\",\"\",'1. Order'!K1404)","v":""},{"$f":"IF('1. Order'!M1404=\"\",\"\",'1. Order'!M1404)","v":""},null,null,{"$f":"IF('1. Order'!AS1404=\"\",\"\",'1. Order'!AS1404)","v":""},{"$f":"IF('1. Order'!AF1404=\"\",\"\",'1. Order'!AF1404)","v":""}]
[{"$f":"IF('1. Order'!B1405=\"\",\"\",'1. Order'!B1405)","v":""},{"$f":"IF('1. Order'!I1405=\"\",\"\",'1. Order'!I1405)","v":""},{"$f":"IF('1. Order'!J1405=\"\",\"\",'1. Order'!J1405)","v":""},{"$f":"IF('1. Order'!K1405=\"\",\"\",'1. Order'!K1405)","v":""},{"$f":"IF('1. Order'!M1405=\"\",\"\",'1. Order'!M1405)","v":""},null,null,{"$f":"IF('1. Order'!AS1405=\"\",\"\",'1. Order'!AS1405)","v":""},{"$f":"IF('1. Order'!AF1405=\"\",\"\",'1. Order'!AF1405)","v":""}]
[{"$f":"IF('1. Order'!B1406=\"\",\"\",'1. Order'!B1406)","v":""},{"$f":"IF('1. Order'!I1406=\"\",\"\",'1. Order'!I1406)","v":""},{"$f":"IF('1. Order'!J1406=\"\",\"\",'1. Order'!J1406)","v":""},{"$f":"IF('1. Order'!K1406=\"\",\"\",'1. Order'!K1406)","v":""},{"$f":"IF('1. Order'!M1406=\"\",\"\",'1. Order'!M1406)","v":""},null,null,{"$f":"IF('1. Order'!AS1406=\"\",\"\",'1. Order'!AS1406)","v":""},{"$f":"IF('1. Order'!AF1406=\"\",\"\",'1. Order'!AF1406)","v":""}]
[{"$f":"IF('1. Order'!B1407=\"\",\"\",'1. Order'!B1407)","v":""},{"$f":"IF('1. Order'!I1407=\"\",\"\",'1. Order'!I1407)","v":""},{"$f":"IF('1. Order'!J1407=\"\",\"\",'1. Order'!J1407)","v":""},{"$f":"IF('1. Order'!K1407=\"\",\"\",'1. Order'!K1407)","v":""},{"$f":"IF('1. Order'!M1407=\"\",\"\",'1. Order'!M1407)","v":""},null,null,{"$f":"IF('1. Order'!AS1407=\"\",\"\",'1. Order'!AS1407)","v":""},{"$f":"IF('1. Order'!AF1407=\"\",\"\",'1. Order'!AF1407)","v":""}]
[{"$f":"IF('1. Order'!B1408=\"\",\"\",'1. Order'!B1408)","v":""},{"$f":"IF('1. Order'!I1408=\"\",\"\",'1. Order'!I1408)","v":""},{"$f":"IF('1. Order'!J1408=\"\",\"\",'1. Order'!J1408)","v":""},{"$f":"IF('1. Order'!K1408=\"\",\"\",'1. Order'!K1408)","v":""},{"$f":"IF('1. Order'!M1408=\"\",\"\",'1. Order'!M1408)","v":""},null,null,{"$f":"IF('1. Order'!AS1408=\"\",\"\",'1. Order'!AS1408)","v":""},{"$f":"IF('1. Order'!AF1408=\"\",\"\",'1. Order'!AF1408)","v":""}]
[{"$f":"IF('1. Order'!B1409=\"\",\"\",'1. Order'!B1409)","v":""},{"$f":"IF('1. Order'!I1409=\"\",\"\",'1. Order'!I1409)","v":""},{"$f":"IF('1. Order'!J1409=\"\",\"\",'1. Order'!J1409)","v":""},{"$f":"IF('1. Order'!K1409=\"\",\"\",'1. Order'!K1409)","v":""},{"$f":"IF('1. Order'!M1409=\"\",\"\",'1. Order'!M1409)","v":""},null,null,{"$f":"IF('1. Order'!AS1409=\"\",\"\",'1. Order'!AS1409)","v":""},{"$f":"IF('1. Order'!AF1409=\"\",\"\",'1. Order'!AF1409)","v":""}]
[{"$f":"IF('1. Order'!B1410=\"\",\"\",'1. Order'!B1410)","v":""},{"$f":"IF('1. Order'!I1410=\"\",\"\",'1. Order'!I1410)","v":""},{"$f":"IF('1. Order'!J1410=\"\",\"\",'1. Order'!J1410)","v":""},{"$f":"IF('1. Order'!K1410=\"\",\"\",'1. Order'!K1410)","v":""},{"$f":"IF('1. Order'!M1410=\"\",\"\",'1. Order'!M1410)","v":""},null,null,{"$f":"IF('1. Order'!AS1410=\"\",\"\",'1. Order'!AS1410)","v":""},{"$f":"IF('1. Order'!AF1410=\"\",\"\",'1. Order'!AF1410)","v":""}]
[{"$f":"IF('1. Order'!B1411=\"\",\"\",'1. Order'!B1411)","v":""},{"$f":"IF('1. Order'!I1411=\"\",\"\",'1. Order'!I1411)","v":""},{"$f":"IF('1. Order'!J1411=\"\",\"\",'1. Order'!J1411)","v":""},{"$f":"IF('1. Order'!K1411=\"\",\"\",'1. Order'!K1411)","v":""},{"$f":"IF('1. Order'!M1411=\"\",\"\",'1. Order'!M1411)","v":""},null,null,{"$f":"IF('1. Order'!AS1411=\"\",\"\",'1. Order'!AS1411)","v":""},{"$f":"IF('1. Order'!AF1411=\"\",\"\",'1. Order'!AF1411)","v":""}]
[{"$f":"IF('1. Order'!B1412=\"\",\"\",'1. Order'!B1412)","v":""},{"$f":"IF('1. Order'!I1412=\"\",\"\",'1. Order'!I1412)","v":""},{"$f":"IF('1. Order'!J1412=\"\",\"\",'1. Order'!J1412)","v":""},{"$f":"IF('1. Order'!K1412=\"\",\"\",'1. Order'!K1412)","v":""},{"$f":"IF('1. Order'!M1412=\"\",\"\",'1. Order'!M1412)","v":""},null,null,{"$f":"IF('1. Order'!AS1412=\"\",\"\",'1. Order'!AS1412)","v":""},{"$f":"IF('1. Order'!AF1412=\"\",\"\",'1. Order'!AF1412)","v":""}]
[{"$f":"IF('1. Order'!B1413=\"\",\"\",'1. Order'!B1413)","v":""},{"$f":"IF('1. Order'!I1413=\"\",\"\",'1. Order'!I1413)","v":""},{"$f":"IF('1. Order'!J1413=\"\",\"\",'1. Order'!J1413)","v":""},{"$f":"IF('1. Order'!K1413=\"\",\"\",'1. Order'!K1413)","v":""},{"$f":"IF('1. Order'!M1413=\"\",\"\",'1. Order'!M1413)","v":""},null,null,{"$f":"IF('1. Order'!AS1413=\"\",\"\",'1. Order'!AS1413)","v":""},{"$f":"IF('1. Order'!AF1413=\"\",\"\",'1. Order'!AF1413)","v":""}]
[{"$f":"IF('1. Order'!B1414=\"\",\"\",'1. Order'!B1414)","v":""},{"$f":"IF('1. Order'!I1414=\"\",\"\",'1. Order'!I1414)","v":""},{"$f":"IF('1. Order'!J1414=\"\",\"\",'1. Order'!J1414)","v":""},{"$f":"IF('1. Order'!K1414=\"\",\"\",'1. Order'!K1414)","v":""},{"$f":"IF('1. Order'!M1414=\"\",\"\",'1. Order'!M1414)","v":""},null,null,{"$f":"IF('1. Order'!AS1414=\"\",\"\",'1. Order'!AS1414)","v":""},{"$f":"IF('1. Order'!AF1414=\"\",\"\",'1. Order'!AF1414)","v":""}]
[{"$f":"IF('1. Order'!B1415=\"\",\"\",'1. Order'!B1415)","v":""},{"$f":"IF('1. Order'!I1415=\"\",\"\",'1. Order'!I1415)","v":""},{"$f":"IF('1. Order'!J1415=\"\",\"\",'1. Order'!J1415)","v":""},{"$f":"IF('1. Order'!K1415=\"\",\"\",'1. Order'!K1415)","v":""},{"$f":"IF('1. Order'!M1415=\"\",\"\",'1. Order'!M1415)","v":""},null,null,{"$f":"IF('1. Order'!AS1415=\"\",\"\",'1. Order'!AS1415)","v":""},{"$f":"IF('1. Order'!AF1415=\"\",\"\",'1. Order'!AF1415)","v":""}]
[{"$f":"IF('1. Order'!B1416=\"\",\"\",'1. Order'!B1416)","v":""},{"$f":"IF('1. Order'!I1416=\"\",\"\",'1. Order'!I1416)","v":""},{"$f":"IF('1. Order'!J1416=\"\",\"\",'1. Order'!J1416)","v":""},{"$f":"IF('1. Order'!K1416=\"\",\"\",'1. Order'!K1416)","v":""},{"$f":"IF('1. Order'!M1416=\"\",\"\",'1. Order'!M1416)","v":""},null,null,{"$f":"IF('1. Order'!AS1416=\"\",\"\",'1. Order'!AS1416)","v":""},{"$f":"IF('1. Order'!AF1416=\"\",\"\",'1. Order'!AF1416)","v":""}]
[{"$f":"IF('1. Order'!B1417=\"\",\"\",'1. Order'!B1417)","v":""},{"$f":"IF('1. Order'!I1417=\"\",\"\",'1. Order'!I1417)","v":""},{"$f":"IF('1. Order'!J1417=\"\",\"\",'1. Order'!J1417)","v":""},{"$f":"IF('1. Order'!K1417=\"\",\"\",'1. Order'!K1417)","v":""},{"$f":"IF('1. Order'!M1417=\"\",\"\",'1. Order'!M1417)","v":""},null,null,{"$f":"IF('1. Order'!AS1417=\"\",\"\",'1. Order'!AS1417)","v":""},{"$f":"IF('1. Order'!AF1417=\"\",\"\",'1. Order'!AF1417)","v":""}]
[{"$f":"IF('1. Order'!B1418=\"\",\"\",'1. Order'!B1418)","v":""},{"$f":"IF('1. Order'!I1418=\"\",\"\",'1. Order'!I1418)","v":""},{"$f":"IF('1. Order'!J1418=\"\",\"\",'1. Order'!J1418)","v":""},{"$f":"IF('1. Order'!K1418=\"\",\"\",'1. Order'!K1418)","v":""},{"$f":"IF('1. Order'!M1418=\"\",\"\",'1. Order'!M1418)","v":""},null,null,{"$f":"IF('1. Order'!AS1418=\"\",\"\",'1. Order'!AS1418)","v":""},{"$f":"IF('1. Order'!AF1418=\"\",\"\",'1. Order'!AF1418)","v":""}]
[{"$f":"IF('1. Order'!B1419=\"\",\"\",'1. Order'!B1419)","v":""},{"$f":"IF('1. Order'!I1419=\"\",\"\",'1. Order'!I1419)","v":""},{"$f":"IF('1. Order'!J1419=\"\",\"\",'1. Order'!J1419)","v":""},{"$f":"IF('1. Order'!K1419=\"\",\"\",'1. Order'!K1419)","v":""},{"$f":"IF('1. Order'!M1419=\"\",\"\",'1. Order'!M1419)","v":""},null,null,{"$f":"IF('1. Order'!AS1419=\"\",\"\",'1. Order'!AS1419)","v":""},{"$f":"IF('1. Order'!AF1419=\"\",\"\",'1. Order'!AF1419)","v":""}]
[{"$f":"IF('1. Order'!B1420=\"\",\"\",'1. Order'!B1420)","v":""},{"$f":"IF('1. Order'!I1420=\"\",\"\",'1. Order'!I1420)","v":""},{"$f":"IF('1. Order'!J1420=\"\",\"\",'1. Order'!J1420)","v":""},{"$f":"IF('1. Order'!K1420=\"\",\"\",'1. Order'!K1420)","v":""},{"$f":"IF('1. Order'!M1420=\"\",\"\",'1. Order'!M1420)","v":""},null,null,{"$f":"IF('1. Order'!AS1420=\"\",\"\",'1. Order'!AS1420)","v":""},{"$f":"IF('1. Order'!AF1420=\"\",\"\",'1. Order'!AF1420)","v":""}]
[{"$f":"IF('1. Order'!B1421=\"\",\"\",'1. Order'!B1421)","v":""},{"$f":"IF('1. Order'!I1421=\"\",\"\",'1. Order'!I1421)","v":""},{"$f":"IF('1. Order'!J1421=\"\",\"\",'1. Order'!J1421)","v":""},{"$f":"IF('1. Order'!K1421=\"\",\"\",'1. Order'!K1421)","v":""},{"$f":"IF('1. Order'!M1421=\"\",\"\",'1. Order'!M1421)","v":""},null,null,{"$f":"IF('1. Order'!AS1421=\"\",\"\",'1. Order'!AS1421)","v":""},{"$f":"IF('1. Order'!AF1421=\"\",\"\",'1. Order'!AF1421)","v":""}]
[{"$f":"IF('1. Order'!B1422=\"\",\"\",'1. Order'!B1422)","v":""},{"$f":"IF('1. Order'!I1422=\"\",\"\",'1. Order'!I1422)","v":""},{"$f":"IF('1. Order'!J1422=\"\",\"\",'1. Order'!J1422)","v":""},{"$f":"IF('1. Order'!K1422=\"\",\"\",'1. Order'!K1422)","v":""},{"$f":"IF('1. Order'!M1422=\"\",\"\",'1. Order'!M1422)","v":""},null,null,{"$f":"IF('1. Order'!AS1422=\"\",\"\",'1. Order'!AS1422)","v":""},{"$f":"IF('1. Order'!AF1422=\"\",\"\",'1. Order'!AF1422)","v":""}]
[{"$f":"IF('1. Order'!B1423=\"\",\"\",'1. Order'!B1423)","v":""},{"$f":"IF('1. Order'!I1423=\"\",\"\",'1. Order'!I1423)","v":""},{"$f":"IF('1. Order'!J1423=\"\",\"\",'1. Order'!J1423)","v":""},{"$f":"IF('1. Order'!K1423=\"\",\"\",'1. Order'!K1423)","v":""},{"$f":"IF('1. Order'!M1423=\"\",\"\",'1. Order'!M1423)","v":""},null,null,{"$f":"IF('1. Order'!AS1423=\"\",\"\",'1. Order'!AS1423)","v":""},{"$f":"IF('1. Order'!AF1423=\"\",\"\",'1. Order'!AF1423)","v":""}]
[{"$f":"IF('1. Order'!B1424=\"\",\"\",'1. Order'!B1424)","v":""},{"$f":"IF('1. Order'!I1424=\"\",\"\",'1. Order'!I1424)","v":""},{"$f":"IF('1. Order'!J1424=\"\",\"\",'1. Order'!J1424)","v":""},{"$f":"IF('1. Order'!K1424=\"\",\"\",'1. Order'!K1424)","v":""},{"$f":"IF('1. Order'!M1424=\"\",\"\",'1. Order'!M1424)","v":""},null,null,{"$f":"IF('1. Order'!AS1424=\"\",\"\",'1. Order'!AS1424)","v":""},{"$f":"IF('1. Order'!AF1424=\"\",\"\",'1. Order'!AF1424)","v":""}]
[{"$f":"IF('1. Order'!B1425=\"\",\"\",'1. Order'!B1425)","v":""},{"$f":"IF('1. Order'!I1425=\"\",\"\",'1. Order'!I1425)","v":""},{"$f":"IF('1. Order'!J1425=\"\",\"\",'1. Order'!J1425)","v":""},{"$f":"IF('1. Order'!K1425=\"\",\"\",'1. Order'!K1425)","v":""},{"$f":"IF('1. Order'!M1425=\"\",\"\",'1. Order'!M1425)","v":""},null,null,{"$f":"IF('1. Order'!AS1425=\"\",\"\",'1. Order'!AS1425)","v":""},{"$f":"IF('1. Order'!AF1425=\"\",\"\",'1. Order'!AF1425)","v":""}]
[{"$f":"IF('1. Order'!B1426=\"\",\"\",'1. Order'!B1426)","v":""},{"$f":"IF('1. Order'!I1426=\"\",\"\",'1. Order'!I1426)","v":""},{"$f":"IF('1. Order'!J1426=\"\",\"\",'1. Order'!J1426)","v":""},{"$f":"IF('1. Order'!K1426=\"\",\"\",'1. Order'!K1426)","v":""},{"$f":"IF('1. Order'!M1426=\"\",\"\",'1. Order'!M1426)","v":""},null,null,{"$f":"IF('1. Order'!AS1426=\"\",\"\",'1. Order'!AS1426)","v":""},{"$f":"IF('1. Order'!AF1426=\"\",\"\",'1. Order'!AF1426)","v":""}]
[{"$f":"IF('1. Order'!B1427=\"\",\"\",'1. Order'!B1427)","v":""},{"$f":"IF('1. Order'!I1427=\"\",\"\",'1. Order'!I1427)","v":""},{"$f":"IF('1. Order'!J1427=\"\",\"\",'1. Order'!J1427)","v":""},{"$f":"IF('1. Order'!K1427=\"\",\"\",'1. Order'!K1427)","v":""},{"$f":"IF('1. Order'!M1427=\"\",\"\",'1. Order'!M1427)","v":""},null,null,{"$f":"IF('1. Order'!AS1427=\"\",\"\",'1. Order'!AS1427)","v":""},{"$f":"IF('1. Order'!AF1427=\"\",\"\",'1. Order'!AF1427)","v":""}]
[{"$f":"IF('1. Order'!B1428=\"\",\"\",'1. Order'!B1428)","v":""},{"$f":"IF('1. Order'!I1428=\"\",\"\",'1. Order'!I1428)","v":""},{"$f":"IF('1. Order'!J1428=\"\",\"\",'1. Order'!J1428)","v":""},{"$f":"IF('1. Order'!K1428=\"\",\"\",'1. Order'!K1428)","v":""},{"$f":"IF('1. Order'!M1428=\"\",\"\",'1. Order'!M1428)","v":""},null,null,{"$f":"IF('1. Order'!AS1428=\"\",\"\",'1. Order'!AS1428)","v":""},{"$f":"IF('1. Order'!AF1428=\"\",\"\",'1. Order'!AF1428)","v":""}]
[{"$f":"IF('1. Order'!B1429=\"\",\"\",'1. Order'!B1429)","v":""},{"$f":"IF('1. Order'!I1429=\"\",\"\",'1. Order'!I1429)","v":""},{"$f":"IF('1. Order'!J1429=\"\",\"\",'1. Order'!J1429)","v":""},{"$f":"IF('1. Order'!K1429=\"\",\"\",'1. Order'!K1429)","v":""},{"$f":"IF('1. Order'!M1429=\"\",\"\",'1. Order'!M1429)","v":""},null,null,{"$f":"IF('1. Order'!AS1429=\"\",\"\",'1. Order'!AS1429)","v":""},{"$f":"IF('1. Order'!AF1429=\"\",\"\",'1. Order'!AF1429)","v":""}]
[{"$f":"IF('1. Order'!B1430=\"\",\"\",'1. Order'!B1430)","v":""},{"$f":"IF('1. Order'!I1430=\"\",\"\",'1. Order'!I1430)","v":""},{"$f":"IF('1. Order'!J1430=\"\",\"\",'1. Order'!J1430)","v":""},{"$f":"IF('1. Order'!K1430=\"\",\"\",'1. Order'!K1430)","v":""},{"$f":"IF('1. Order'!M1430=\"\",\"\",'1. Order'!M1430)","v":""},null,null,{"$f":"IF('1. Order'!AS1430=\"\",\"\",'1. Order'!AS1430)","v":""},{"$f":"IF('1. Order'!AF1430=\"\",\"\",'1. Order'!AF1430)","v":""}]
[{"$f":"IF('1. Order'!B1431=\"\",\"\",'1. Order'!B1431)","v":""},{"$f":"IF('1. Order'!I1431=\"\",\"\",'1. Order'!I1431)","v":""},{"$f":"IF('1. Order'!J1431=\"\",\"\",'1. Order'!J1431)","v":""},{"$f":"IF('1. Order'!K1431=\"\",\"\",'1. Order'!K1431)","v":""},{"$f":"IF('1. Order'!M1431=\"\",\"\",'1. Order'!M1431)","v":""},null,null,{"$f":"IF('1. Order'!AS1431=\"\",\"\",'1. Order'!AS1431)","v":""},{"$f":"IF('1. Order'!AF1431=\"\",\"\",'1. Order'!AF1431)","v":""}]
[{"$f":"IF('1. Order'!B1432=\"\",\"\",'1. Order'!B1432)","v":""},{"$f":"IF('1. Order'!I1432=\"\",\"\",'1. Order'!I1432)","v":""},{"$f":"IF('1. Order'!J1432=\"\",\"\",'1. Order'!J1432)","v":""},{"$f":"IF('1. Order'!K1432=\"\",\"\",'1. Order'!K1432)","v":""},{"$f":"IF('1. Order'!M1432=\"\",\"\",'1. Order'!M1432)","v":""},null,null,{"$f":"IF('1. Order'!AS1432=\"\",\"\",'1. Order'!AS1432)","v":""},{"$f":"IF('1. Order'!AF1432=\"\",\"\",'1. Order'!AF1432)","v":""}]
[{"$f":"IF('1. Order'!B1433=\"\",\"\",'1. Order'!B1433)","v":""},{"$f":"IF('1. Order'!I1433=\"\",\"\",'1. Order'!I1433)","v":""},{"$f":"IF('1. Order'!J1433=\"\",\"\",'1. Order'!J1433)","v":""},{"$f":"IF('1. Order'!K1433=\"\",\"\",'1. Order'!K1433)","v":""},{"$f":"IF('1. Order'!M1433=\"\",\"\",'1. Order'!M1433)","v":""},null,null,{"$f":"IF('1. Order'!AS1433=\"\",\"\",'1. Order'!AS1433)","v":""},{"$f":"IF('1. Order'!AF1433=\"\",\"\",'1. Order'!AF1433)","v":""}]
[{"$f":"IF('1. Order'!B1434=\"\",\"\",'1. Order'!B1434)","v":""},{"$f":"IF('1. Order'!I1434=\"\",\"\",'1. Order'!I1434)","v":""},{"$f":"IF('1. Order'!J1434=\"\",\"\",'1. Order'!J1434)","v":""},{"$f":"IF('1. Order'!K1434=\"\",\"\",'1. Order'!K1434)","v":""},{"$f":"IF('1. Order'!M1434=\"\",\"\",'1. Order'!M1434)","v":""},null,null,{"$f":"IF('1. Order'!AS1434=\"\",\"\",'1. Order'!AS1434)","v":""},{"$f":"IF('1. Order'!AF1434=\"\",\"\",'1. Order'!AF1434)","v":""}]
[{"$f":"IF('1. Order'!B1435=\"\",\"\",'1. Order'!B1435)","v":""},{"$f":"IF('1. Order'!I1435=\"\",\"\",'1. Order'!I1435)","v":""},{"$f":"IF('1. Order'!J1435=\"\",\"\",'1. Order'!J1435)","v":""},{"$f":"IF('1. Order'!K1435=\"\",\"\",'1. Order'!K1435)","v":""},{"$f":"IF('1. Order'!M1435=\"\",\"\",'1. Order'!M1435)","v":""},null,null,{"$f":"IF('1. Order'!AS1435=\"\",\"\",'1. Order'!AS1435)","v":""},{"$f":"IF('1. Order'!AF1435=\"\",\"\",'1. Order'!AF1435)","v":""}]
[{"$f":"IF('1. Order'!B1436=\"\",\"\",'1. Order'!B1436)","v":""},{"$f":"IF('1. Order'!I1436=\"\",\"\",'1. Order'!I1436)","v":""},{"$f":"IF('1. Order'!J1436=\"\",\"\",'1. Order'!J1436)","v":""},{"$f":"IF('1. Order'!K1436=\"\",\"\",'1. Order'!K1436)","v":""},{"$f":"IF('1. Order'!M1436=\"\",\"\",'1. Order'!M1436)","v":""},null,null,{"$f":"IF('1. Order'!AS1436=\"\",\"\",'1. Order'!AS1436)","v":""},{"$f":"IF('1. Order'!AF1436=\"\",\"\",'1. Order'!AF1436)","v":""}]
[{"$f":"IF('1. Order'!B1437=\"\",\"\",'1. Order'!B1437)","v":""},{"$f":"IF('1. Order'!I1437=\"\",\"\",'1. Order'!I1437)","v":""},{"$f":"IF('1. Order'!J1437=\"\",\"\",'1. Order'!J1437)","v":""},{"$f":"IF('1. Order'!K1437=\"\",\"\",'1. Order'!K1437)","v":""},{"$f":"IF('1. Order'!M1437=\"\",\"\",'1. Order'!M1437)","v":""},null,null,{"$f":"IF('1. Order'!AS1437=\"\",\"\",'1. Order'!AS1437)","v":""},{"$f":"IF('1. Order'!AF1437=\"\",\"\",'1. Order'!AF1437)","v":""}]
[{"$f":"IF('1. Order'!B1438=\"\",\"\",'1. Order'!B1438)","v":""},{"$f":"IF('1. Order'!I1438=\"\",\"\",'1. Order'!I1438)","v":""},{"$f":"IF('1. Order'!J1438=\"\",\"\",'1. Order'!J1438)","v":""},{"$f":"IF('1. Order'!K1438=\"\",\"\",'1. Order'!K1438)","v":""},{"$f":"IF('1. Order'!M1438=\"\",\"\",'1. Order'!M1438)","v":""},null,null,{"$f":"IF('1. Order'!AS1438=\"\",\"\",'1. Order'!AS1438)","v":""},{"$f":"IF('1. Order'!AF1438=\"\",\"\",'1. Order'!AF1438)","v":""}]
[{"$f":"IF('1. Order'!B1439=\"\",\"\",'1. Order'!B1439)","v":""},{"$f":"IF('1. Order'!I1439=\"\",\"\",'1. Order'!I1439)","v":""},{"$f":"IF('1. Order'!J1439=\"\",\"\",'1. Order'!J1439)","v":""},{"$f":"IF('1. Order'!K1439=\"\",\"\",'1. Order'!K1439)","v":""},{"$f":"IF('1. Order'!M1439=\"\",\"\",'1. Order'!M1439)","v":""},null,null,{"$f":"IF('1. Order'!AS1439=\"\",\"\",'1. Order'!AS1439)","v":""},{"$f":"IF('1. Order'!AF1439=\"\",\"\",'1. Order'!AF1439)","v":""}]
[{"$f":"IF('1. Order'!B1440=\"\",\"\",'1. Order'!B1440)","v":""},{"$f":"IF('1. Order'!I1440=\"\",\"\",'1. Order'!I1440)","v":""},{"$f":"IF('1. Order'!J1440=\"\",\"\",'1. Order'!J1440)","v":""},{"$f":"IF('1. Order'!K1440=\"\",\"\",'1. Order'!K1440)","v":""},{"$f":"IF('1. Order'!M1440=\"\",\"\",'1. Order'!M1440)","v":""},null,null,{"$f":"IF('1. Order'!AS1440=\"\",\"\",'1. Order'!AS1440)","v":""},{"$f":"IF('1. Order'!AF1440=\"\",\"\",'1. Order'!AF1440)","v":""}]
[{"$f":"IF('1. Order'!B1441=\"\",\"\",'1. Order'!B1441)","v":""},{"$f":"IF('1. Order'!I1441=\"\",\"\",'1. Order'!I1441)","v":""},{"$f":"IF('1. Order'!J1441=\"\",\"\",'1. Order'!J1441)","v":""},{"$f":"IF('1. Order'!K1441=\"\",\"\",'1. Order'!K1441)","v":""},{"$f":"IF('1. Order'!M1441=\"\",\"\",'1. Order'!M1441)","v":""},null,null,{"$f":"IF('1. Order'!AS1441=\"\",\"\",'1. Order'!AS1441)","v":""},{"$f":"IF('1. Order'!AF1441=\"\",\"\",'1. Order'!AF1441)","v":""}]
[{"$f":"IF('1. Order'!B1442=\"\",\"\",'1. Order'!B1442)","v":""},{"$f":"IF('1. Order'!I1442=\"\",\"\",'1. Order'!I1442)","v":""},{"$f":"IF('1. Order'!J1442=\"\",\"\",'1. Order'!J1442)","v":""},{"$f":"IF('1. Order'!K1442=\"\",\"\",'1. Order'!K1442)","v":""},{"$f":"IF('1. Order'!M1442=\"\",\"\",'1. Order'!M1442)","v":""},null,null,{"$f":"IF('1. Order'!AS1442=\"\",\"\",'1. Order'!AS1442)","v":""},{"$f":"IF('1. Order'!AF1442=\"\",\"\",'1. Order'!AF1442)","v":""}]
[{"$f":"IF('1. Order'!B1443=\"\",\"\",'1. Order'!B1443)","v":""},{"$f":"IF('1. Order'!I1443=\"\",\"\",'1. Order'!I1443)","v":""},{"$f":"IF('1. Order'!J1443=\"\",\"\",'1. Order'!J1443)","v":""},{"$f":"IF('1. Order'!K1443=\"\",\"\",'1. Order'!K1443)","v":""},{"$f":"IF('1. Order'!M1443=\"\",\"\",'1. Order'!M1443)","v":""},null,null,{"$f":"IF('1. Order'!AS1443=\"\",\"\",'1. Order'!AS1443)","v":""},{"$f":"IF('1. Order'!AF1443=\"\",\"\",'1. Order'!AF1443)","v":""}]
[{"$f":"IF('1. Order'!B1444=\"\",\"\",'1. Order'!B1444)","v":""},{"$f":"IF('1. Order'!I1444=\"\",\"\",'1. Order'!I1444)","v":""},{"$f":"IF('1. Order'!J1444=\"\",\"\",'1. Order'!J1444)","v":""},{"$f":"IF('1. Order'!K1444=\"\",\"\",'1. Order'!K1444)","v":""},{"$f":"IF('1. Order'!M1444=\"\",\"\",'1. Order'!M1444)","v":""},null,null,{"$f":"IF('1. Order'!AS1444=\"\",\"\",'1. Order'!AS1444)","v":""},{"$f":"IF('1. Order'!AF1444=\"\",\"\",'1. Order'!AF1444)","v":""}]
[{"$f":"IF('1. Order'!B1445=\"\",\"\",'1. Order'!B1445)","v":""},{"$f":"IF('1. Order'!I1445=\"\",\"\",'1. Order'!I1445)","v":""},{"$f":"IF('1. Order'!J1445=\"\",\"\",'1. Order'!J1445)","v":""},{"$f":"IF('1. Order'!K1445=\"\",\"\",'1. Order'!K1445)","v":""},{"$f":"IF('1. Order'!M1445=\"\",\"\",'1. Order'!M1445)","v":""},null,null,{"$f":"IF('1. Order'!AS1445=\"\",\"\",'1. Order'!AS1445)","v":""},{"$f":"IF('1. Order'!AF1445=\"\",\"\",'1. Order'!AF1445)","v":""}]
[{"$f":"IF('1. Order'!B1446=\"\",\"\",'1. Order'!B1446)","v":""},{"$f":"IF('1. Order'!I1446=\"\",\"\",'1. Order'!I1446)","v":""},{"$f":"IF('1. Order'!J1446=\"\",\"\",'1. Order'!J1446)","v":""},{"$f":"IF('1. Order'!K1446=\"\",\"\",'1. Order'!K1446)","v":""},{"$f":"IF('1. Order'!M1446=\"\",\"\",'1. Order'!M1446)","v":""},null,null,{"$f":"IF('1. Order'!AS1446=\"\",\"\",'1. Order'!AS1446)","v":""},{"$f":"IF('1. Order'!AF1446=\"\",\"\",'1. Order'!AF1446)","v":""}]
[{"$f":"IF('1. Order'!B1447=\"\",\"\",'1. Order'!B1447)","v":""},{"$f":"IF('1. Order'!I1447=\"\",\"\",'1. Order'!I1447)","v":""},{"$f":"IF('1. Order'!J1447=\"\",\"\",'1. Order'!J1447)","v":""},{"$f":"IF('1. Order'!K1447=\"\",\"\",'1. Order'!K1447)","v":""},{"$f":"IF('1. Order'!M1447=\"\",\"\",'1. Order'!M1447)","v":""},null,null,{"$f":"IF('1. Order'!AS1447=\"\",\"\",'1. Order'!AS1447)","v":""},{"$f":"IF('1. Order'!AF1447=\"\",\"\",'1. Order'!AF1447)","v":""}]
[{"$f":"IF('1. Order'!B1448=\"\",\"\",'1. Order'!B1448)","v":""},{"$f":"IF('1. Order'!I1448=\"\",\"\",'1. Order'!I1448)","v":""},{"$f":"IF('1. Order'!J1448=\"\",\"\",'1. Order'!J1448)","v":""},{"$f":"IF('1. Order'!K1448=\"\",\"\",'1. Order'!K1448)","v":""},{"$f":"IF('1. Order'!M1448=\"\",\"\",'1. Order'!M1448)","v":""},null,null,{"$f":"IF('1. Order'!AS1448=\"\",\"\",'1. Order'!AS1448)","v":""},{"$f":"IF('1. Order'!AF1448=\"\",\"\",'1. Order'!AF1448)","v":""}]
[{"$f":"IF('1. Order'!B1449=\"\",\"\",'1. Order'!B1449)","v":""},{"$f":"IF('1. Order'!I1449=\"\",\"\",'1. Order'!I1449)","v":""},{"$f":"IF('1. Order'!J1449=\"\",\"\",'1. Order'!J1449)","v":""},{"$f":"IF('1. Order'!K1449=\"\",\"\",'1. Order'!K1449)","v":""},{"$f":"IF('1. Order'!M1449=\"\",\"\",'1. Order'!M1449)","v":""},null,null,{"$f":"IF('1. Order'!AS1449=\"\",\"\",'1. Order'!AS1449)","v":""},{"$f":"IF('1. Order'!AF1449=\"\",\"\",'1. Order'!AF1449)","v":""}]
[{"$f":"IF('1. Order'!B1450=\"\",\"\",'1. Order'!B1450)","v":""},{"$f":"IF('1. Order'!I1450=\"\",\"\",'1. Order'!I1450)","v":""},{"$f":"IF('1. Order'!J1450=\"\",\"\",'1. Order'!J1450)","v":""},{"$f":"IF('1. Order'!K1450=\"\",\"\",'1. Order'!K1450)","v":""},{"$f":"IF('1. Order'!M1450=\"\",\"\",'1. Order'!M1450)","v":""},null,null,{"$f":"IF('1. Order'!AS1450=\"\",\"\",'1. Order'!AS1450)","v":""},{"$f":"IF('1. Order'!AF1450=\"\",\"\",'1. Order'!AF1450)","v":""}]
[{"$f":"IF('1. Order'!B1451=\"\",\"\",'1. Order'!B1451)","v":""},{"$f":"IF('1. Order'!I1451=\"\",\"\",'1. Order'!I1451)","v":""},{"$f":"IF('1. Order'!J1451=\"\",\"\",'1. Order'!J1451)","v":""},{"$f":"IF('1. Order'!K1451=\"\",\"\",'1. Order'!K1451)","v":""},{"$f":"IF('1. Order'!M1451=\"\",\"\",'1. Order'!M1451)","v":""},null,null,{"$f":"IF('1. Order'!AS1451=\"\",\"\",'1. Order'!AS1451)","v":""},{"$f":"IF('1. Order'!AF1451=\"\",\"\",'1. Order'!AF1451)","v":""}]
[{"$f":"IF('1. Order'!B1452=\"\",\"\",'1. Order'!B1452)","v":""},{"$f":"IF('1. Order'!I1452=\"\",\"\",'1. Order'!I1452)","v":""},{"$f":"IF('1. Order'!J1452=\"\",\"\",'1. Order'!J1452)","v":""},{"$f":"IF('1. Order'!K1452=\"\",\"\",'1. Order'!K1452)","v":""},{"$f":"IF('1. Order'!M1452=\"\",\"\",'1. Order'!M1452)","v":""},null,null,{"$f":"IF('1. Order'!AS1452=\"\",\"\",'1. Order'!AS1452)","v":""},{"$f":"IF('1. Order'!AF1452=\"\",\"\",'1. Order'!AF1452)","v":""}]
[{"$f":"IF('1. Order'!B1453=\"\",\"\",'1. Order'!B1453)","v":""},{"$f":"IF('1. Order'!I1453=\"\",\"\",'1. Order'!I1453)","v":""},{"$f":"IF('1. Order'!J1453=\"\",\"\",'1. Order'!J1453)","v":""},{"$f":"IF('1. Order'!K1453=\"\",\"\",'1. Order'!K1453)","v":""},{"$f":"IF('1. Order'!M1453=\"\",\"\",'1. Order'!M1453)","v":""},null,null,{"$f":"IF('1. Order'!AS1453=\"\",\"\",'1. Order'!AS1453)","v":""},{"$f":"IF('1. Order'!AF1453=\"\",\"\",'1. Order'!AF1453)","v":""}]
[{"$f":"IF('1. Order'!B1454=\"\",\"\",'1. Order'!B1454)","v":""},{"$f":"IF('1. Order'!I1454=\"\",\"\",'1. Order'!I1454)","v":""},{"$f":"IF('1. Order'!J1454=\"\",\"\",'1. Order'!J1454)","v":""},{"$f":"IF('1. Order'!K1454=\"\",\"\",'1. Order'!K1454)","v":""},{"$f":"IF('1. Order'!M1454=\"\",\"\",'1. Order'!M1454)","v":""},null,null,{"$f":"IF('1. Order'!AS1454=\"\",\"\",'1. Order'!AS1454)","v":""},{"$f":"IF('1. Order'!AF1454=\"\",\"\",'1. Order'!AF1454)","v":""}]
[{"$f":"IF('1. Order'!B1455=\"\",\"\",'1. Order'!B1455)","v":""},{"$f":"IF('1. Order'!I1455=\"\",\"\",'1. Order'!I1455)","v":""},{"$f":"IF('1. Order'!J1455=\"\",\"\",'1. Order'!J1455)","v":""},{"$f":"IF('1. Order'!K1455=\"\",\"\",'1. Order'!K1455)","v":""},{"$f":"IF('1. Order'!M1455=\"\",\"\",'1. Order'!M1455)","v":""},null,null,{"$f":"IF('1. Order'!AS1455=\"\",\"\",'1. Order'!AS1455)","v":""},{"$f":"IF('1. Order'!AF1455=\"\",\"\",'1. Order'!AF1455)","v":""}]
[{"$f":"IF('1. Order'!B1456=\"\",\"\",'1. Order'!B1456)","v":""},{"$f":"IF('1. Order'!I1456=\"\",\"\",'1. Order'!I1456)","v":""},{"$f":"IF('1. Order'!J1456=\"\",\"\",'1. Order'!J1456)","v":""},{"$f":"IF('1. Order'!K1456=\"\",\"\",'1. Order'!K1456)","v":""},{"$f":"IF('1. Order'!M1456=\"\",\"\",'1. Order'!M1456)","v":""},null,null,{"$f":"IF('1. Order'!AS1456=\"\",\"\",'1. Order'!AS1456)","v":""},{"$f":"IF('1. Order'!AF1456=\"\",\"\",'1. Order'!AF1456)","v":""}]
[{"$f":"IF('1. Order'!B1457=\"\",\"\",'1. Order'!B1457)","v":""},{"$f":"IF('1. Order'!I1457=\"\",\"\",'1. Order'!I1457)","v":""},{"$f":"IF('1. Order'!J1457=\"\",\"\",'1. Order'!J1457)","v":""},{"$f":"IF('1. Order'!K1457=\"\",\"\",'1. Order'!K1457)","v":""},{"$f":"IF('1. Order'!M1457=\"\",\"\",'1. Order'!M1457)","v":""},null,null,{"$f":"IF('1. Order'!AS1457=\"\",\"\",'1. Order'!AS1457)","v":""},{"$f":"IF('1. Order'!AF1457=\"\",\"\",'1. Order'!AF1457)","v":""}]
[{"$f":"IF('1. Order'!B1458=\"\",\"\",'1. Order'!B1458)","v":""},{"$f":"IF('1. Order'!I1458=\"\",\"\",'1. Order'!I1458)","v":""},{"$f":"IF('1. Order'!J1458=\"\",\"\",'1. Order'!J1458)","v":""},{"$f":"IF('1. Order'!K1458=\"\",\"\",'1. Order'!K1458)","v":""},{"$f":"IF('1. Order'!M1458=\"\",\"\",'1. Order'!M1458)","v":""},null,null,{"$f":"IF('1. Order'!AS1458=\"\",\"\",'1. Order'!AS1458)","v":""},{"$f":"IF('1. Order'!AF1458=\"\",\"\",'1. Order'!AF1458)","v":""}]
[{"$f":"IF('1. Order'!B1459=\"\",\"\",'1. Order'!B1459)","v":""},{"$f":"IF('1. Order'!I1459=\"\",\"\",'1. Order'!I1459)","v":""},{"$f":"IF('1. Order'!J1459=\"\",\"\",'1. Order'!J1459)","v":""},{"$f":"IF('1. Order'!K1459=\"\",\"\",'1. Order'!K1459)","v":""},{"$f":"IF('1. Order'!M1459=\"\",\"\",'1. Order'!M1459)","v":""},null,null,{"$f":"IF('1. Order'!AS1459=\"\",\"\",'1. Order'!AS1459)","v":""},{"$f":"IF('1. Order'!AF1459=\"\",\"\",'1. Order'!AF1459)","v":""}]
[{"$f":"IF('1. Order'!B1460=\"\",\"\",'1. Order'!B1460)","v":""},{"$f":"IF('1. Order'!I1460=\"\",\"\",'1. Order'!I1460)","v":""},{"$f":"IF('1. Order'!J1460=\"\",\"\",'1. Order'!J1460)","v":""},{"$f":"IF('1. Order'!K1460=\"\",\"\",'1. Order'!K1460)","v":""},{"$f":"IF('1. Order'!M1460=\"\",\"\",'1. Order'!M1460)","v":""},null,null,{"$f":"IF('1. Order'!AS1460=\"\",\"\",'1. Order'!AS1460)","v":""},{"$f":"IF('1. Order'!AF1460=\"\",\"\",'1. Order'!AF1460)","v":""}]
[{"$f":"IF('1. Order'!B1461=\"\",\"\",'1. Order'!B1461)","v":""},{"$f":"IF('1. Order'!I1461=\"\",\"\",'1. Order'!I1461)","v":""},{"$f":"IF('1. Order'!J1461=\"\",\"\",'1. Order'!J1461)","v":""},{"$f":"IF('1. Order'!K1461=\"\",\"\",'1. Order'!K1461)","v":""},{"$f":"IF('1. Order'!M1461=\"\",\"\",'1. Order'!M1461)","v":""},null,null,{"$f":"IF('1. Order'!AS1461=\"\",\"\",'1. Order'!AS1461)","v":""},{"$f":"IF('1. Order'!AF1461=\"\",\"\",'1. Order'!AF1461)","v":""}]
[{"$f":"IF('1. Order'!B1462=\"\",\"\",'1. Order'!B1462)","v":""},{"$f":"IF('1. Order'!I1462=\"\",\"\",'1. Order'!I1462)","v":""},{"$f":"IF('1. Order'!J1462=\"\",\"\",'1. Order'!J1462)","v":""},{"$f":"IF('1. Order'!K1462=\"\",\"\",'1. Order'!K1462)","v":""},{"$f":"IF('1. Order'!M1462=\"\",\"\",'1. Order'!M1462)","v":""},null,null,{"$f":"IF('1. Order'!AS1462=\"\",\"\",'1. Order'!AS1462)","v":""},{"$f":"IF('1. Order'!AF1462=\"\",\"\",'1. Order'!AF1462)","v":""}]
[{"$f":"IF('1. Order'!B1463=\"\",\"\",'1. Order'!B1463)","v":""},{"$f":"IF('1. Order'!I1463=\"\",\"\",'1. Order'!I1463)","v":""},{"$f":"IF('1. Order'!J1463=\"\",\"\",'1. Order'!J1463)","v":""},{"$f":"IF('1. Order'!K1463=\"\",\"\",'1. Order'!K1463)","v":""},{"$f":"IF('1. Order'!M1463=\"\",\"\",'1. Order'!M1463)","v":""},null,null,{"$f":"IF('1. Order'!AS1463=\"\",\"\",'1. Order'!AS1463)","v":""},{"$f":"IF('1. Order'!AF1463=\"\",\"\",'1. Order'!AF1463)","v":""}]
[{"$f":"IF('1. Order'!B1464=\"\",\"\",'1. Order'!B1464)","v":""},{"$f":"IF('1. Order'!I1464=\"\",\"\",'1. Order'!I1464)","v":""},{"$f":"IF('1. Order'!J1464=\"\",\"\",'1. Order'!J1464)","v":""},{"$f":"IF('1. Order'!K1464=\"\",\"\",'1. Order'!K1464)","v":""},{"$f":"IF('1. Order'!M1464=\"\",\"\",'1. Order'!M1464)","v":""},null,null,{"$f":"IF('1. Order'!AS1464=\"\",\"\",'1. Order'!AS1464)","v":""},{"$f":"IF('1. Order'!AF1464=\"\",\"\",'1. Order'!AF1464)","v":""}]
[{"$f":"IF('1. Order'!B1465=\"\",\"\",'1. Order'!B1465)","v":""},{"$f":"IF('1. Order'!I1465=\"\",\"\",'1. Order'!I1465)","v":""},{"$f":"IF('1. Order'!J1465=\"\",\"\",'1. Order'!J1465)","v":""},{"$f":"IF('1. Order'!K1465=\"\",\"\",'1. Order'!K1465)","v":""},{"$f":"IF('1. Order'!M1465=\"\",\"\",'1. Order'!M1465)","v":""},null,null,{"$f":"IF('1. Order'!AS1465=\"\",\"\",'1. Order'!AS1465)","v":""},{"$f":"IF('1. Order'!AF1465=\"\",\"\",'1. Order'!AF1465)","v":""}]
[{"$f":"IF('1. Order'!B1466=\"\",\"\",'1. Order'!B1466)","v":""},{"$f":"IF('1. Order'!I1466=\"\",\"\",'1. Order'!I1466)","v":""},{"$f":"IF('1. Order'!J1466=\"\",\"\",'1. Order'!J1466)","v":""},{"$f":"IF('1. Order'!K1466=\"\",\"\",'1. Order'!K1466)","v":""},{"$f":"IF('1. Order'!M1466=\"\",\"\",'1. Order'!M1466)","v":""},null,null,{"$f":"IF('1. Order'!AS1466=\"\",\"\",'1. Order'!AS1466)","v":""},{"$f":"IF('1. Order'!AF1466=\"\",\"\",'1. Order'!AF1466)","v":""}]
[{"$f":"IF('1. Order'!B1467=\"\",\"\",'1. Order'!B1467)","v":""},{"$f":"IF('1. Order'!I1467=\"\",\"\",'1. Order'!I1467)","v":""},{"$f":"IF('1. Order'!J1467=\"\",\"\",'1. Order'!J1467)","v":""},{"$f":"IF('1. Order'!K1467=\"\",\"\",'1. Order'!K1467)","v":""},{"$f":"IF('1. Order'!M1467=\"\",\"\",'1. Order'!M1467)","v":""},null,null,{"$f":"IF('1. Order'!AS1467=\"\",\"\",'1. Order'!AS1467)","v":""},{"$f":"IF('1. Order'!AF1467=\"\",\"\",'1. Order'!AF1467)","v":""}]
[{"$f":"IF('1. Order'!B1468=\"\",\"\",'1. Order'!B1468)","v":""},{"$f":"IF('1. Order'!I1468=\"\",\"\",'1. Order'!I1468)","v":""},{"$f":"IF('1. Order'!J1468=\"\",\"\",'1. Order'!J1468)","v":""},{"$f":"IF('1. Order'!K1468=\"\",\"\",'1. Order'!K1468)","v":""},{"$f":"IF('1. Order'!M1468=\"\",\"\",'1. Order'!M1468)","v":""},null,null,{"$f":"IF('1. Order'!AS1468=\"\",\"\",'1. Order'!AS1468)","v":""},{"$f":"IF('1. Order'!AF1468=\"\",\"\",'1. Order'!AF1468)","v":""}]
[{"$f":"IF('1. Order'!B1469=\"\",\"\",'1. Order'!B1469)","v":""},{"$f":"IF('1. Order'!I1469=\"\",\"\",'1. Order'!I1469)","v":""},{"$f":"IF('1. Order'!J1469=\"\",\"\",'1. Order'!J1469)","v":""},{"$f":"IF('1. Order'!K1469=\"\",\"\",'1. Order'!K1469)","v":""},{"$f":"IF('1. Order'!M1469=\"\",\"\",'1. Order'!M1469)","v":""},null,null,{"$f":"IF('1. Order'!AS1469=\"\",\"\",'1. Order'!AS1469)","v":""},{"$f":"IF('1. Order'!AF1469=\"\",\"\",'1. Order'!AF1469)","v":""}]
[{"$f":"IF('1. Order'!B1470=\"\",\"\",'1. Order'!B1470)","v":""},{"$f":"IF('1. Order'!I1470=\"\",\"\",'1. Order'!I1470)","v":""},{"$f":"IF('1. Order'!J1470=\"\",\"\",'1. Order'!J1470)","v":""},{"$f":"IF('1. Order'!K1470=\"\",\"\",'1. Order'!K1470)","v":""},{"$f":"IF('1. Order'!M1470=\"\",\"\",'1. Order'!M1470)","v":""},null,null,{"$f":"IF('1. Order'!AS1470=\"\",\"\",'1. Order'!AS1470)","v":""},{"$f":"IF('1. Order'!AF1470=\"\",\"\",'1. Order'!AF1470)","v":""}]
[{"$f":"IF('1. Order'!B1471=\"\",\"\",'1. Order'!B1471)","v":""},{"$f":"IF('1. Order'!I1471=\"\",\"\",'1. Order'!I1471)","v":""},{"$f":"IF('1. Order'!J1471=\"\",\"\",'1. Order'!J1471)","v":""},{"$f":"IF('1. Order'!K1471=\"\",\"\",'1. Order'!K1471)","v":""},{"$f":"IF('1. Order'!M1471=\"\",\"\",'1. Order'!M1471)","v":""},null,null,{"$f":"IF('1. Order'!AS1471=\"\",\"\",'1. Order'!AS1471)","v":""},{"$f":"IF('1. Order'!AF1471=\"\",\"\",'1. Order'!AF1471)","v":""}]
[{"$f":"IF('1. Order'!B1472=\"\",\"\",'1. Order'!B1472)","v":""},{"$f":"IF('1. Order'!I1472=\"\",\"\",'1. Order'!I1472)","v":""},{"$f":"IF('1. Order'!J1472=\"\",\"\",'1. Order'!J1472)","v":""},{"$f":"IF('1. Order'!K1472=\"\",\"\",'1. Order'!K1472)","v":""},{"$f":"IF('1. Order'!M1472=\"\",\"\",'1. Order'!M1472)","v":""},null,null,{"$f":"IF('1. Order'!AS1472=\"\",\"\",'1. Order'!AS1472)","v":""},{"$f":"IF('1. Order'!AF1472=\"\",\"\",'1. Order'!AF1472)","v":""}]
[{"$f":"IF('1. Order'!B1473=\"\",\"\",'1. Order'!B1473)","v":""},{"$f":"IF('1. Order'!I1473=\"\",\"\",'1. Order'!I1473)","v":""},{"$f":"IF('1. Order'!J1473=\"\",\"\",'1. Order'!J1473)","v":""},{"$f":"IF('1. Order'!K1473=\"\",\"\",'1. Order'!K1473)","v":""},{"$f":"IF('1. Order'!M1473=\"\",\"\",'1. Order'!M1473)","v":""},null,null,{"$f":"IF('1. Order'!AS1473=\"\",\"\",'1. Order'!AS1473)","v":""},{"$f":"IF('1. Order'!AF1473=\"\",\"\",'1. Order'!AF1473)","v":""}]
[{"$f":"IF('1. Order'!B1474=\"\",\"\",'1. Order'!B1474)","v":""},{"$f":"IF('1. Order'!I1474=\"\",\"\",'1. Order'!I1474)","v":""},{"$f":"IF('1. Order'!J1474=\"\",\"\",'1. Order'!J1474)","v":""},{"$f":"IF('1. Order'!K1474=\"\",\"\",'1. Order'!K1474)","v":""},{"$f":"IF('1. Order'!M1474=\"\",\"\",'1. Order'!M1474)","v":""},null,null,{"$f":"IF('1. Order'!AS1474=\"\",\"\",'1. Order'!AS1474)","v":""},{"$f":"IF('1. Order'!AF1474=\"\",\"\",'1. Order'!AF1474)","v":""}]
[{"$f":"IF('1. Order'!B1475=\"\",\"\",'1. Order'!B1475)","v":""},{"$f":"IF('1. Order'!I1475=\"\",\"\",'1. Order'!I1475)","v":""},{"$f":"IF('1. Order'!J1475=\"\",\"\",'1. Order'!J1475)","v":""},{"$f":"IF('1. Order'!K1475=\"\",\"\",'1. Order'!K1475)","v":""},{"$f":"IF('1. Order'!M1475=\"\",\"\",'1. Order'!M1475)","v":""},null,null,{"$f":"IF('1. Order'!AS1475=\"\",\"\",'1. Order'!AS1475)","v":""},{"$f":"IF('1. Order'!AF1475=\"\",\"\",'1. Order'!AF1475)","v":""}]
[{"$f":"IF('1. Order'!B1476=\"\",\"\",'1. Order'!B1476)","v":""},{"$f":"IF('1. Order'!I1476=\"\",\"\",'1. Order'!I1476)","v":""},{"$f":"IF('1. Order'!J1476=\"\",\"\",'1. Order'!J1476)","v":""},{"$f":"IF('1. Order'!K1476=\"\",\"\",'1. Order'!K1476)","v":""},{"$f":"IF('1. Order'!M1476=\"\",\"\",'1. Order'!M1476)","v":""},null,null,{"$f":"IF('1. Order'!AS1476=\"\",\"\",'1. Order'!AS1476)","v":""},{"$f":"IF('1. Order'!AF1476=\"\",\"\",'1. Order'!AF1476)","v":""}]
[{"$f":"IF('1. Order'!B1477=\"\",\"\",'1. Order'!B1477)","v":""},{"$f":"IF('1. Order'!I1477=\"\",\"\",'1. Order'!I1477)","v":""},{"$f":"IF('1. Order'!J1477=\"\",\"\",'1. Order'!J1477)","v":""},{"$f":"IF('1. Order'!K1477=\"\",\"\",'1. Order'!K1477)","v":""},{"$f":"IF('1. Order'!M1477=\"\",\"\",'1. Order'!M1477)","v":""},null,null,{"$f":"IF('1. Order'!AS1477=\"\",\"\",'1. Order'!AS1477)","v":""},{"$f":"IF('1. Order'!AF1477=\"\",\"\",'1. Order'!AF1477)","v":""}]
[{"$f":"IF('1. Order'!B1478=\"\",\"\",'1. Order'!B1478)","v":""},{"$f":"IF('1. Order'!I1478=\"\",\"\",'1. Order'!I1478)","v":""},{"$f":"IF('1. Order'!J1478=\"\",\"\",'1. Order'!J1478)","v":""},{"$f":"IF('1. Order'!K1478=\"\",\"\",'1. Order'!K1478)","v":""},{"$f":"IF('1. Order'!M1478=\"\",\"\",'1. Order'!M1478)","v":""},null,null,{"$f":"IF('1. Order'!AS1478=\"\",\"\",'1. Order'!AS1478)","v":""},{"$f":"IF('1. Order'!AF1478=\"\",\"\",'1. Order'!AF1478)","v":""}]
[{"$f":"IF('1. Order'!B1479=\"\",\"\",'1. Order'!B1479)","v":""},{"$f":"IF('1. Order'!I1479=\"\",\"\",'1. Order'!I1479)","v":""},{"$f":"IF('1. Order'!J1479=\"\",\"\",'1. Order'!J1479)","v":""},{"$f":"IF('1. Order'!K1479=\"\",\"\",'1. Order'!K1479)","v":""},{"$f":"IF('1. Order'!M1479=\"\",\"\",'1. Order'!M1479)","v":""},null,null,{"$f":"IF('1. Order'!AS1479=\"\",\"\",'1. Order'!AS1479)","v":""},{"$f":"IF('1. Order'!AF1479=\"\",\"\",'1. Order'!AF1479)","v":""}]
[{"$f":"IF('1. Order'!B1480=\"\",\"\",'1. Order'!B1480)","v":""},{"$f":"IF('1. Order'!I1480=\"\",\"\",'1. Order'!I1480)","v":""},{"$f":"IF('1. Order'!J1480=\"\",\"\",'1. Order'!J1480)","v":""},{"$f":"IF('1. Order'!K1480=\"\",\"\",'1. Order'!K1480)","v":""},{"$f":"IF('1. Order'!M1480=\"\",\"\",'1. Order'!M1480)","v":""},null,null,{"$f":"IF('1. Order'!AS1480=\"\",\"\",'1. Order'!AS1480)","v":""},{"$f":"IF('1. Order'!AF1480=\"\",\"\",'1. Order'!AF1480)","v":""}]
[{"$f":"IF('1. Order'!B1481=\"\",\"\",'1. Order'!B1481)","v":""},{"$f":"IF('1. Order'!I1481=\"\",\"\",'1. Order'!I1481)","v":""},{"$f":"IF('1. Order'!J1481=\"\",\"\",'1. Order'!J1481)","v":""},{"$f":"IF('1. Order'!K1481=\"\",\"\",'1. Order'!K1481)","v":""},{"$f":"IF('1. Order'!M1481=\"\",\"\",'1. Order'!M1481)","v":""},null,null,{"$f":"IF('1. Order'!AS1481=\"\",\"\",'1. Order'!AS1481)","v":""},{"$f":"IF('1. Order'!AF1481=\"\",\"\",'1. Order'!AF1481)","v":""}]
[{"$f":"IF('1. Order'!B1482=\"\",\"\",'1. Order'!B1482)","v":""},{"$f":"IF('1. Order'!I1482=\"\",\"\",'1. Order'!I1482)","v":""},{"$f":"IF('1. Order'!J1482=\"\",\"\",'1. Order'!J1482)","v":""},{"$f":"IF('1. Order'!K1482=\"\",\"\",'1. Order'!K1482)","v":""},{"$f":"IF('1. Order'!M1482=\"\",\"\",'1. Order'!M1482)","v":""},null,null,{"$f":"IF('1. Order'!AS1482=\"\",\"\",'1. Order'!AS1482)","v":""},{"$f":"IF('1. Order'!AF1482=\"\",\"\",'1. Order'!AF1482)","v":""}]
[{"$f":"IF('1. Order'!B1483=\"\",\"\",'1. Order'!B1483)","v":""},{"$f":"IF('1. Order'!I1483=\"\",\"\",'1. Order'!I1483)","v":""},{"$f":"IF('1. Order'!J1483=\"\",\"\",'1. Order'!J1483)","v":""},{"$f":"IF('1. Order'!K1483=\"\",\"\",'1. Order'!K1483)","v":""},{"$f":"IF('1. Order'!M1483=\"\",\"\",'1. Order'!M1483)","v":""},null,null,{"$f":"IF('1. Order'!AS1483=\"\",\"\",'1. Order'!AS1483)","v":""},{"$f":"IF('1. Order'!AF1483=\"\",\"\",'1. Order'!AF1483)","v":""}]
[{"$f":"IF('1. Order'!B1484=\"\",\"\",'1. Order'!B1484)","v":""},{"$f":"IF('1. Order'!I1484=\"\",\"\",'1. Order'!I1484)","v":""},{"$f":"IF('1. Order'!J1484=\"\",\"\",'1. Order'!J1484)","v":""},{"$f":"IF('1. Order'!K1484=\"\",\"\",'1. Order'!K1484)","v":""},{"$f":"IF('1. Order'!M1484=\"\",\"\",'1. Order'!M1484)","v":""},null,null,{"$f":"IF('1. Order'!AS1484=\"\",\"\",'1. Order'!AS1484)","v":""},{"$f":"IF('1. Order'!AF1484=\"\",\"\",'1. Order'!AF1484)","v":""}]
[{"$f":"IF('1. Order'!B1485=\"\",\"\",'1. Order'!B1485)","v":""},{"$f":"IF('1. Order'!I1485=\"\",\"\",'1. Order'!I1485)","v":""},{"$f":"IF('1. Order'!J1485=\"\",\"\",'1. Order'!J1485)","v":""},{"$f":"IF('1. Order'!K1485=\"\",\"\",'1. Order'!K1485)","v":""},{"$f":"IF('1. Order'!M1485=\"\",\"\",'1. Order'!M1485)","v":""},null,null,{"$f":"IF('1. Order'!AS1485=\"\",\"\",'1. Order'!AS1485)","v":""},{"$f":"IF('1. Order'!AF1485=\"\",\"\",'1. Order'!AF1485)","v":""}]
[{"$f":"IF('1. Order'!B1486=\"\",\"\",'1. Order'!B1486)","v":""},{"$f":"IF('1. Order'!I1486=\"\",\"\",'1. Order'!I1486)","v":""},{"$f":"IF('1. Order'!J1486=\"\",\"\",'1. Order'!J1486)","v":""},{"$f":"IF('1. Order'!K1486=\"\",\"\",'1. Order'!K1486)","v":""},{"$f":"IF('1. Order'!M1486=\"\",\"\",'1. Order'!M1486)","v":""},null,null,{"$f":"IF('1. Order'!AS1486=\"\",\"\",'1. Order'!AS1486)","v":""},{"$f":"IF('1. Order'!AF1486=\"\",\"\",'1. Order'!AF1486)","v":""}]
[{"$f":"IF('1. Order'!B1487=\"\",\"\",'1. Order'!B1487)","v":""},{"$f":"IF('1. Order'!I1487=\"\",\"\",'1. Order'!I1487)","v":""},{"$f":"IF('1. Order'!J1487=\"\",\"\",'1. Order'!J1487)","v":""},{"$f":"IF('1. Order'!K1487=\"\",\"\",'1. Order'!K1487)","v":""},{"$f":"IF('1. Order'!M1487=\"\",\"\",'1. Order'!M1487)","v":""},null,null,{"$f":"IF('1. Order'!AS1487=\"\",\"\",'1. Order'!AS1487)","v":""},{"$f":"IF('1. Order'!AF1487=\"\",\"\",'1. Order'!AF1487)","v":""}]
[{"$f":"IF('1. Order'!B1488=\"\",\"\",'1. Order'!B1488)","v":""},{"$f":"IF('1. Order'!I1488=\"\",\"\",'1. Order'!I1488)","v":""},{"$f":"IF('1. Order'!J1488=\"\",\"\",'1. Order'!J1488)","v":""},{"$f":"IF('1. Order'!K1488=\"\",\"\",'1. Order'!K1488)","v":""},{"$f":"IF('1. Order'!M1488=\"\",\"\",'1. Order'!M1488)","v":""},null,null,{"$f":"IF('1. Order'!AS1488=\"\",\"\",'1. Order'!AS1488)","v":""},{"$f":"IF('1. Order'!AF1488=\"\",\"\",'1. Order'!AF1488)","v":""}]
[{"$f":"IF('1. Order'!B1489=\"\",\"\",'1. Order'!B1489)","v":""},{"$f":"IF('1. Order'!I1489=\"\",\"\",'1. Order'!I1489)","v":""},{"$f":"IF('1. Order'!J1489=\"\",\"\",'1. Order'!J1489)","v":""},{"$f":"IF('1. Order'!K1489=\"\",\"\",'1. Order'!K1489)","v":""},{"$f":"IF('1. Order'!M1489=\"\",\"\",'1. Order'!M1489)","v":""},null,null,{"$f":"IF('1. Order'!AS1489=\"\",\"\",'1. Order'!AS1489)","v":""},{"$f":"IF('1. Order'!AF1489=\"\",\"\",'1. Order'!AF1489)","v":""}]
[{"$f":"IF('1. Order'!B1490=\"\",\"\",'1. Order'!B1490)","v":""},{"$f":"IF('1. Order'!I1490=\"\",\"\",'1. Order'!I1490)","v":""},{"$f":"IF('1. Order'!J1490=\"\",\"\",'1. Order'!J1490)","v":""},{"$f":"IF('1. Order'!K1490=\"\",\"\",'1. Order'!K1490)","v":""},{"$f":"IF('1. Order'!M1490=\"\",\"\",'1. Order'!M1490)","v":""},null,null,{"$f":"IF('1. Order'!AS1490=\"\",\"\",'1. Order'!AS1490)","v":""},{"$f":"IF('1. Order'!AF1490=\"\",\"\",'1. Order'!AF1490)","v":""}]
[{"$f":"IF('1. Order'!B1491=\"\",\"\",'1. Order'!B1491)","v":""},{"$f":"IF('1. Order'!I1491=\"\",\"\",'1. Order'!I1491)","v":""},{"$f":"IF('1. Order'!J1491=\"\",\"\",'1. Order'!J1491)","v":""},{"$f":"IF('1. Order'!K1491=\"\",\"\",'1. Order'!K1491)","v":""},{"$f":"IF('1. Order'!M1491=\"\",\"\",'1. Order'!M1491)","v":""},null,null,{"$f":"IF('1. Order'!AS1491=\"\",\"\",'1. Order'!AS1491)","v":""},{"$f":"IF('1. Order'!AF1491=\"\",\"\",'1. Order'!AF1491)","v":""}]
[{"$f":"IF('1. Order'!B1492=\"\",\"\",'1. Order'!B1492)","v":""},{"$f":"IF('1. Order'!I1492=\"\",\"\",'1. Order'!I1492)","v":""},{"$f":"IF('1. Order'!J1492=\"\",\"\",'1. Order'!J1492)","v":""},{"$f":"IF('1. Order'!K1492=\"\",\"\",'1. Order'!K1492)","v":""},{"$f":"IF('1. Order'!M1492=\"\",\"\",'1. Order'!M1492)","v":""},null,null,{"$f":"IF('1. Order'!AS1492=\"\",\"\",'1. Order'!AS1492)","v":""},{"$f":"IF('1. Order'!AF1492=\"\",\"\",'1. Order'!AF1492)","v":""}]
[{"$f":"IF('1. Order'!B1493=\"\",\"\",'1. Order'!B1493)","v":""},{"$f":"IF('1. Order'!I1493=\"\",\"\",'1. Order'!I1493)","v":""},{"$f":"IF('1. Order'!J1493=\"\",\"\",'1. Order'!J1493)","v":""},{"$f":"IF('1. Order'!K1493=\"\",\"\",'1. Order'!K1493)","v":""},{"$f":"IF('1. Order'!M1493=\"\",\"\",'1. Order'!M1493)","v":""},null,null,{"$f":"IF('1. Order'!AS1493=\"\",\"\",'1. Order'!AS1493)","v":""},{"$f":"IF('1. Order'!AF1493=\"\",\"\",'1. Order'!AF1493)","v":""}]
[{"$f":"IF('1. Order'!B1494=\"\",\"\",'1. Order'!B1494)","v":""},{"$f":"IF('1. Order'!I1494=\"\",\"\",'1. Order'!I1494)","v":""},{"$f":"IF('1. Order'!J1494=\"\",\"\",'1. Order'!J1494)","v":""},{"$f":"IF('1. Order'!K1494=\"\",\"\",'1. Order'!K1494)","v":""},{"$f":"IF('1. Order'!M1494=\"\",\"\",'1. Order'!M1494)","v":""},null,null,{"$f":"IF('1. Order'!AS1494=\"\",\"\",'1. Order'!AS1494)","v":""},{"$f":"IF('1. Order'!AF1494=\"\",\"\",'1. Order'!AF1494)","v":""}]
[{"$f":"IF('1. Order'!B1495=\"\",\"\",'1. Order'!B1495)","v":""},{"$f":"IF('1. Order'!I1495=\"\",\"\",'1. Order'!I1495)","v":""},{"$f":"IF('1. Order'!J1495=\"\",\"\",'1. Order'!J1495)","v":""},{"$f":"IF('1. Order'!K1495=\"\",\"\",'1. Order'!K1495)","v":""},{"$f":"IF('1. Order'!M1495=\"\",\"\",'1. Order'!M1495)","v":""},null,null,{"$f":"IF('1. Order'!AS1495=\"\",\"\",'1. Order'!AS1495)","v":""},{"$f":"IF('1. Order'!AF1495=\"\",\"\",'1. Order'!AF1495)","v":""}]
[{"$f":"IF('1. Order'!B1496=\"\",\"\",'1. Order'!B1496)","v":""},{"$f":"IF('1. Order'!I1496=\"\",\"\",'1. Order'!I1496)","v":""},{"$f":"IF('1. Order'!J1496=\"\",\"\",'1. Order'!J1496)","v":""},{"$f":"IF('1. Order'!K1496=\"\",\"\",'1. Order'!K1496)","v":""},{"$f":"IF('1. Order'!M1496=\"\",\"\",'1. Order'!M1496)","v":""},null,null,{"$f":"IF('1. Order'!AS1496=\"\",\"\",'1. Order'!AS1496)","v":""},{"$f":"IF('1. Order'!AF1496=\"\",\"\",'1. Order'!AF1496)","v":""}]
[{"$f":"IF('1. Order'!B1497=\"\",\"\",'1. Order'!B1497)","v":""},{"$f":"IF('1. Order'!I1497=\"\",\"\",'1. Order'!I1497)","v":""},{"$f":"IF('1. Order'!J1497=\"\",\"\",'1. Order'!J1497)","v":""},{"$f":"IF('1. Order'!K1497=\"\",\"\",'1. Order'!K1497)","v":""},{"$f":"IF('1. Order'!M1497=\"\",\"\",'1. Order'!M1497)","v":""},null,null,{"$f":"IF('1. Order'!AS1497=\"\",\"\",'1. Order'!AS1497)","v":""},{"$f":"IF('1. Order'!AF1497=\"\",\"\",'1. Order'!AF1497)","v":""}]
[{"$f":"IF('1. Order'!B1498=\"\",\"\",'1. Order'!B1498)","v":""},{"$f":"IF('1. Order'!I1498=\"\",\"\",'1. Order'!I1498)","v":""},{"$f":"IF('1. Order'!J1498=\"\",\"\",'1. Order'!J1498)","v":""},{"$f":"IF('1. Order'!K1498=\"\",\"\",'1. Order'!K1498)","v":""},{"$f":"IF('1. Order'!M1498=\"\",\"\",'1. Order'!M1498)","v":""},null,null,{"$f":"IF('1. Order'!AS1498=\"\",\"\",'1. Order'!AS1498)","v":""},{"$f":"IF('1. Order'!AF1498=\"\",\"\",'1. Order'!AF1498)","v":""}]
[{"$f":"IF('1. Order'!B1499=\"\",\"\",'1. Order'!B1499)","v":""},{"$f":"IF('1. Order'!I1499=\"\",\"\",'1. Order'!I1499)","v":""},{"$f":"IF('1. Order'!J1499=\"\",\"\",'1. Order'!J1499)","v":""},{"$f":"IF('1. Order'!K1499=\"\",\"\",'1. Order'!K1499)","v":""},{"$f":"IF('1. Order'!M1499=\"\",\"\",'1. Order'!M1499)","v":""},null,null,{"$f":"IF('1. Order'!AS1499=\"\",\"\",'1. Order'!AS1499)","v":""},{"$f":"IF('1. Order'!AF1499=\"\",\"\",'1. Order'!AF1499)","v":""}]
[{"$f":"IF('1. Order'!B1500=\"\",\"\",'1. Order'!B1500)","v":""},{"$f":"IF('1. Order'!I1500=\"\",\"\",'1. Order'!I1500)","v":""},{"$f":"IF('1. Order'!J1500=\"\",\"\",'1. Order'!J1500)","v":""},{"$f":"IF('1. Order'!K1500=\"\",\"\",'1. Order'!K1500)","v":""},{"$f":"IF('1. Order'!M1500=\"\",\"\",'1. Order'!M1500)","v":""},null,null,{"$f":"IF('1. Order'!AS1500=\"\",\"\",'1. Order'!AS1500)","v":""},{"$f":"IF('1. Order'!AF1500=\"\",\"\",'1. Order'!AF1500)","v":""}]
[{"$f":"IF('1. Order'!B1501=\"\",\"\",'1. Order'!B1501)","v":""},{"$f":"IF('1. Order'!I1501=\"\",\"\",'1. Order'!I1501)","v":""},{"$f":"IF('1. Order'!J1501=\"\",\"\",'1. Order'!J1501)","v":""},{"$f":"IF('1. Order'!K1501=\"\",\"\",'1. Order'!K1501)","v":""},{"$f":"IF('1. Order'!M1501=\"\",\"\",'1. Order'!M1501)","v":""},null,null,{"$f":"IF('1. Order'!AS1501=\"\",\"\",'1. Order'!AS1501)","v":""},{"$f":"IF('1. Order'!AF1501=\"\",\"\",'1. Order'!AF1501)","v":""}]
[{"$f":"IF('1. Order'!B1502=\"\",\"\",'1. Order'!B1502)","v":""},{"$f":"IF('1. Order'!I1502=\"\",\"\",'1. Order'!I1502)","v":""},{"$f":"IF('1. Order'!J1502=\"\",\"\",'1. Order'!J1502)","v":""},{"$f":"IF('1. Order'!K1502=\"\",\"\",'1. Order'!K1502)","v":""},{"$f":"IF('1. Order'!M1502=\"\",\"\",'1. Order'!M1502)","v":""},null,null,{"$f":"IF('1. Order'!AS1502=\"\",\"\",'1. Order'!AS1502)","v":""},{"$f":"IF('1. Order'!AF1502=\"\",\"\",'1. Order'!AF1502)","v":""}]
[{"$f":"IF('1. Order'!B1503=\"\",\"\",'1. Order'!B1503)","v":""},{"$f":"IF('1. Order'!I1503=\"\",\"\",'1. Order'!I1503)","v":""},{"$f":"IF('1. Order'!J1503=\"\",\"\",'1. Order'!J1503)","v":""},{"$f":"IF('1. Order'!K1503=\"\",\"\",'1. Order'!K1503)","v":""},{"$f":"IF('1. Order'!M1503=\"\",\"\",'1. Order'!M1503)","v":""},null,null,{"$f":"IF('1. Order'!AS1503=\"\",\"\",'1. Order'!AS1503)","v":""},{"$f":"IF('1. Order'!AF1503=\"\",\"\",'1. Order'!AF1503)","v":""}]
[{"$f":"IF('1. Order'!B1504=\"\",\"\",'1. Order'!B1504)","v":""},{"$f":"IF('1. Order'!I1504=\"\",\"\",'1. Order'!I1504)","v":""},{"$f":"IF('1. Order'!J1504=\"\",\"\",'1. Order'!J1504)","v":""},{"$f":"IF('1. Order'!K1504=\"\",\"\",'1. Order'!K1504)","v":""},{"$f":"IF('1. Order'!M1504=\"\",\"\",'1. Order'!M1504)","v":""},null,null,{"$f":"IF('1. Order'!AS1504=\"\",\"\",'1. Order'!AS1504)","v":""},{"$f":"IF('1. Order'!AF1504=\"\",\"\",'1. Order'!AF1504)","v":""}]
[{"$f":"IF('1. Order'!B1505=\"\",\"\",'1. Order'!B1505)","v":""},{"$f":"IF('1. Order'!I1505=\"\",\"\",'1. Order'!I1505)","v":""},{"$f":"IF('1. Order'!J1505=\"\",\"\",'1. Order'!J1505)","v":""},{"$f":"IF('1. Order'!K1505=\"\",\"\",'1. Order'!K1505)","v":""},{"$f":"IF('1. Order'!M1505=\"\",\"\",'1. Order'!M1505)","v":""},null,null,{"$f":"IF('1. Order'!AS1505=\"\",\"\",'1. Order'!AS1505)","v":""},{"$f":"IF('1. Order'!AF1505=\"\",\"\",'1. Order'!AF1505)","v":""}]
[{"$f":"IF('1. Order'!B1506=\"\",\"\",'1. Order'!B1506)","v":""},{"$f":"IF('1. Order'!I1506=\"\",\"\",'1. Order'!I1506)","v":""},{"$f":"IF('1. Order'!J1506=\"\",\"\",'1. Order'!J1506)","v":""},{"$f":"IF('1. Order'!K1506=\"\",\"\",'1. Order'!K1506)","v":""},{"$f":"IF('1. Order'!M1506=\"\",\"\",'1. Order'!M1506)","v":""},null,null,{"$f":"IF('1. Order'!AS1506=\"\",\"\",'1. Order'!AS1506)","v":""},{"$f":"IF('1. Order'!AF1506=\"\",\"\",'1. Order'!AF1506)","v":""}]
[{"$f":"IF('1. Order'!B1507=\"\",\"\",'1. Order'!B1507)","v":""},{"$f":"IF('1. Order'!I1507=\"\",\"\",'1. Order'!I1507)","v":""},{"$f":"IF('1. Order'!J1507=\"\",\"\",'1. Order'!J1507)","v":""},{"$f":"IF('1. Order'!K1507=\"\",\"\",'1. Order'!K1507)","v":""},{"$f":"IF('1. Order'!M1507=\"\",\"\",'1. Order'!M1507)","v":""},null,null,{"$f":"IF('1. Order'!AS1507=\"\",\"\",'1. Order'!AS1507)","v":""},{"$f":"IF('1. Order'!AF1507=\"\",\"\",'1. Order'!AF1507)","v":""}]
[{"$f":"IF('1. Order'!B1508=\"\",\"\",'1. Order'!B1508)","v":""},{"$f":"IF('1. Order'!I1508=\"\",\"\",'1. Order'!I1508)","v":""},{"$f":"IF('1. Order'!J1508=\"\",\"\",'1. Order'!J1508)","v":""},{"$f":"IF('1. Order'!K1508=\"\",\"\",'1. Order'!K1508)","v":""},{"$f":"IF('1. Order'!M1508=\"\",\"\",'1. Order'!M1508)","v":""},null,null,{"$f":"IF('1. Order'!AS1508=\"\",\"\",'1. Order'!AS1508)","v":""},{"$f":"IF('1. Order'!AF1508=\"\",\"\",'1. Order'!AF1508)","v":""}]

{"sheet":"2.1 Content (ENG)","index":3,"n_rows":1505,"n_cols":26,"rows_kept":1505,"cut":false,"hidden":false,"merged":[[0,0,0,4],[0,5,0,12],[0,13,0,17],[0,18,0,25]]}
["PRODUCT INFORMATION",null,null,null,null,"GENERAL CONTENT",null,null,null,null,null,null,null,null,null,null,null,null,"TOPS/SWEATERS/CARDIGANS/SHIRTS/JACKETS"]
["Wehkamp article number","Style number","Style name","Colour number + name","EAN/UPC","Filter colour","Colour","Filtermaterial","Material","Length","Closure","Multi: Type of pocket","Print","Fit","Distressed details","Multi: Type of trousers","Multi: Type of jeans","Multi: Type of shorts","Neckline","Sleeve length","Fit tops","Multi: Type of jacket","Multi: Type of sweater","Multi: Type of cardigan","Type of shirt","Overshirt"]
[{"$f":"IF('1. Order'!B6=\"\",\"\",'1. Order'!B6)","v":""},{"$f":"IF('1. Order'!I6=\"\",\"\",'1. Order'!I6)","v":""},{"$f":"IF('1. Order'!J6=\"\",\"\",'1. Order'!J6)","v":""},{"$f":"IF('1. Order'!K6=\"\",\"\",'1. Order'!K6)","v":""},{"$f":"IF('1. Order'!M6=\"\",\"\",'1. Order'!M6)","v":""},null,null,null,{"$f":"IF('1. Order'!AF6=\"\",\"\",'1. Order'!AF6)","v":""}]
[{"$f":"IF('1. Order'!B7=\"\",\"\",'1. Order'!B7)","v":""},{"$f":"IF('1. Order'!I7=\"\",\"\",'1. Order'!I7)","v":""},{"$f":"IF('1. Order'!J7=\"\",\"\",'1. Order'!J7)","v":""},{"$f":"IF('1. Order'!K7=\"\",\"\",'1. Order'!K7)","v":""},{"$f":"IF('1. Order'!M7=\"\",\"\",'1. Order'!M7)","v":""},null,null,null,{"$f":"IF('1. Order'!AF7=\"\",\"\",'1. Order'!AF7)","v":""}]
[{"$f":"IF('1. Order'!B8=\"\",\"\",'1. Order'!B8)","v":""},{"$f":"IF('1. Order'!I8=\"\",\"\",'1. Order'!I8)","v":""},{"$f":"IF('1. Order'!J8=\"\",\"\",'1. Order'!J8)","v":""},{"$f":"IF('1. Order'!K8=\"\",\"\",'1. Order'!K8)","v":""},{"$f":"IF('1. Order'!M8=\"\",\"\",'1. Order'!M8)","v":""},null,null,null,{"$f":"IF('1. Order'!AF8=\"\",\"\",'1. Order'!AF8)","v":""}]
[{"$f":"IF('1. Order'!B9=\"\",\"\",'1. Order'!B9)","v":""},{"$f":"IF('1. Order'!I9=\"\",\"\",'1. Order'!I9)","v":""},{"$f":"IF('1. Order'!J9=\"\",\"\",'1. Order'!J9)","v":""},{"$f":"IF('1. Order'!K9=\"\",\"\",'1. Order'!K9)","v":""},{"$f":"IF('1. Order'!M9=\"\",\"\",'1. Order'!M9)","v":""},null,null,null,{"$f":"IF('1. Order'!AF9=\"\",\"\",'1. Order'!AF9)","v":""}]
[{"$f":"IF('1. Order'!B10=\"\",\"\",'1. Order'!B10)","v":""},{"$f":"IF('1. Order'!I10=\"\",\"\",'1. Order'!I10)","v":""},{"$f":"IF('1. Order'!J10=\"\",\"\",'1. Order'!J10)","v":""},{"$f":"IF('1. Order'!K10=\"\",\"\",'1. Order'!K10)","v":""},{"$f":"IF('1. Order'!M10=\"\",\"\",'1. Order'!M10)","v":""},null,null,null,{"$f":"IF('1. Order'!AF10=\"\",\"\",'1. Order'!AF10)","v":""}]
[{"$f":"IF('1. Order'!B11=\"\",\"\",'1. Order'!B11)","v":""},{"$f":"IF('1. Order'!I11=\"\",\"\",'1. Order'!I11)","v":""},{"$f":"IF('1. Order'!J11=\"\",\"\",'1. Order'!J11)","v":""},{"$f":"IF('1. Order'!K11=\"\",\"\",'1. Order'!K11)","v":""},{"$f":"IF('1. Order'!M11=\"\",\"\",'1. Order'!M11)","v":""},null,null,null,{"$f":"IF('1. Order'!AF11=\"\",\"\",'1. Order'!AF11)","v":""}]
[{"$f":"IF('1. Order'!B12=\"\",\"\",'1. Order'!B12)","v":""},{"$f":"IF('1. Order'!I12=\"\",\"\",'1. Order'!I12)","v":""},{"$f":"IF('1. Order'!J12=\"\",\"\",'1. Order'!J12)","v":""},{"$f":"IF('1. Order'!K12=\"\",\"\",'1. Order'!K12)","v":""},{"$f":"IF('1. Order'!M12=\"\",\"\",'1. Order'!M12)","v":""},null,null,null,{"$f":"IF('1. Order'!AF12=\"\",\"\",'1. Order'!AF12)","v":""}]
[{"$f":"IF('1. Order'!B13=\"\",\"\",'1. Order'!B13)","v":""},{"$f":"IF('1. Order'!I13=\"\",\"\",'1. Order'!I13)","v":""},{"$f":"IF('1. Order'!J13=\"\",\"\",'1. Order'!J13)","v":""},{"$f":"IF('1. Order'!K13=\"\",\"\",'1. Order'!K13)","v":""},{"$f":"IF('1. Order'!M13=\"\",\"\",'1. Order'!M13)","v":""},null,null,null,{"$f":"IF('1. Order'!AF13=\"\",\"\",'1. Order'!AF13)","v":""}]
[{"$f":"IF('1. Order'!B14=\"\",\"\",'1. Order'!B14)","v":""},{"$f":"IF('1. Order'!I14=\"\",\"\",'1. Order'!I14)","v":""},{"$f":"IF('1. Order'!J14=\"\",\"\",'1. Order'!J14)","v":""},{"$f":"IF('1. Order'!K14=\"\",\"\",'1. Order'!K14)","v":""},{"$f":"IF('1. Order'!M14=\"\",\"\",'1. Order'!M14)","v":""},null,null,null,{"$f":"IF('1. Order'!AF14=\"\",\"\",'1. Order'!AF14)","v":""}]
[{"$f":"IF('1. Order'!B15=\"\",\"\",'1. Order'!B15)","v":""},{"$f":"IF('1. Order'!I15=\"\",\"\",'1. Order'!I15)","v":""},{"$f":"IF('1. Order'!J15=\"\",\"\",'1. Order'!J15)","v":""},{"$f":"IF('1. Order'!K15=\"\",\"\",'1. Order'!K15)","v":""},{"$f":"IF('1. Order'!M15=\"\",\"\",'1. Order'!M15)","v":""},null,null,null,{"$f":"IF('1. Order'!AF15=\"\",\"\",'1. Order'!AF15)","v":""}]
[{"$f":"IF('1. Order'!B16=\"\",\"\",'1. Order'!B16)","v":""},{"$f":"IF('1. Order'!I16=\"\",\"\",'1. Order'!I16)","v":""},{"$f":"IF('1. Order'!J16=\"\",\"\",'1. Order'!J16)","v":""},{"$f":"IF('1. Order'!K16=\"\",\"\",'1. Order'!K16)","v":""},{"$f":"IF('1. Order'!M16=\"\",\"\",'1. Order'!M16)","v":""},null,null,null,{"$f":"IF('1. Order'!AF16=\"\",\"\",'1. Order'!AF16)","v":""}]
[{"$f":"IF('1. Order'!B17=\"\",\"\",'1. Order'!B17)","v":""},{"$f":"IF('1. Order'!I17=\"\",\"\",'1. Order'!I17)","v":""},{"$f":"IF('1. Order'!J17=\"\",\"\",'1. Order'!J17)","v":""},{"$f":"IF('1. Order'!K17=\"\",\"\",'1. Order'!K17)","v":""},{"$f":"IF('1. Order'!M17=\"\",\"\",'1. Order'!M17)","v":""},null,null,null,{"$f":"IF('1. Order'!AF17=\"\",\"\",'1. Order'!AF17)","v":""}]
[{"$f":"IF('1. Order'!B18=\"\",\"\",'1. Order'!B18)","v":""},{"$f":"IF('1. Order'!I18=\"\",\"\",'1. Order'!I18)","v":""},{"$f":"IF('1. Order'!J18=\"\",\"\",'1. Order'!J18)","v":""},{"$f":"IF('1. Order'!K18=\"\",\"\",'1. Order'!K18)","v":""},{"$f":"IF('1. Order'!M18=\"\",\"\",'1. Order'!M18)","v":""},null,null,null,{"$f":"IF('1. Order'!AF18=\"\",\"\",'1. Order'!AF18)","v":""}]
[{"$f":"IF('1. Order'!B19=\"\",\"\",'1. Order'!B19)","v":""},{"$f":"IF('1. Order'!I19=\"\",\"\",'1. Order'!I19)","v":""},{"$f":"IF('1. Order'!J19=\"\",\"\",'1. Order'!J19)","v":""},{"$f":"IF('1. Order'!K19=\"\",\"\",'1. Order'!K19)","v":""},{"$f":"IF('1. Order'!M19=\"\",\"\",'1. Order'!M19)","v":""},null,null,null,{"$f":"IF('1. Order'!AF19=\"\",\"\",'1. Order'!AF19)","v":""}]
[{"$f":"IF('1. Order'!B20=\"\",\"\",'1. Order'!B20)","v":""},{"$f":"IF('1. Order'!I20=\"\",\"\",'1. Order'!I20)","v":""},{"$f":"IF('1. Order'!J20=\"\",\"\",'1. Order'!J20)","v":""},{"$f":"IF('1. Order'!K20=\"\",\"\",'1. Order'!K20)","v":""},{"$f":"IF('1. Order'!M20=\"\",\"\",'1. Order'!M20)","v":""},null,null,null,{"$f":"IF('1. Order'!AF20=\"\",\"\",'1. Order'!AF20)","v":""}]
[{"$f":"IF('1. Order'!B21=\"\",\"\",'1. Order'!B21)","v":""},{"$f":"IF('1. Order'!I21=\"\",\"\",'1. Order'!I21)","v":""},{"$f":"IF('1. Order'!J21=\"\",\"\",'1. Order'!J21)","v":""},{"$f":"IF('1. Order'!K21=\"\",\"\",'1. Order'!K21)","v":""},{"$f":"IF('1. Order'!M21=\"\",\"\",'1. Order'!M21)","v":""},null,null,null,{"$f":"IF('1. Order'!AF21=\"\",\"\",'1. Order'!AF21)","v":""}]
[{"$f":"IF('1. Order'!B22=\"\",\"\",'1. Order'!B22)","v":""},{"$f":"IF('1. Order'!I22=\"\",\"\",'1. Order'!I22)","v":""},{"$f":"IF('1. Order'!J22=\"\",\"\",'1. Order'!J22)","v":""},{"$f":"IF('1. Order'!K22=\"\",\"\",'1. Order'!K22)","v":""},{"$f":"IF('1. Order'!M22=\"\",\"\",'1. Order'!M22)","v":""},null,null,null,{"$f":"IF('1. Order'!AF22=\"\",\"\",'1. Order'!AF22)","v":""}]
[{"$f":"IF('1. Order'!B23=\"\",\"\",'1. Order'!B23)","v":""},{"$f":"IF('1. Order'!I23=\"\",\"\",'1. Order'!I23)","v":""},{"$f":"IF('1. Order'!J23=\"\",\"\",'1. Order'!J23)","v":""},{"$f":"IF('1. Order'!K23=\"\",\"\",'1. Order'!K23)","v":""},{"$f":"IF('1. Order'!M23=\"\",\"\",'1. Order'!M23)","v":""},null,null,null,{"$f":"IF('1. Order'!AF23=\"\",\"\",'1. Order'!AF23)","v":""}]
[{"$f":"IF('1. Order'!B24=\"\",\"\",'1. Order'!B24)","v":""},{"$f":"IF('1. Order'!I24=\"\",\"\",'1. Order'!I24)","v":""},{"$f":"IF('1. Order'!J24=\"\",\"\",'1. Order'!J24)","v":""},{"$f":"IF('1. Order'!K24=\"\",\"\",'1. Order'!K24)","v":""},{"$f":"IF('1. Order'!M24=\"\",\"\",'1. Order'!M24)","v":""},null,null,null,{"$f":"IF('1. Order'!AF24=\"\",\"\",'1. Order'!AF24)","v":""}]
[{"$f":"IF('1. Order'!B25=\"\",\"\",'1. Order'!B25)","v":""},{"$f":"IF('1. Order'!I25=\"\",\"\",'1. Order'!I25)","v":""},{"$f":"IF('1. Order'!J25=\"\",\"\",'1. Order'!J25)","v":""},{"$f":"IF('1. Order'!K25=\"\",\"\",'1. Order'!K25)","v":""},{"$f":"IF('1. Order'!M25=\"\",\"\",'1. Order'!M25)","v":""},null,null,null,{"$f":"IF('1. Order'!AF25=\"\",\"\",'1. Order'!AF25)","v":""}]
[{"$f":"IF('1. Order'!B26=\"\",\"\",'1. Order'!B26)","v":""},{"$f":"IF('1. Order'!I26=\"\",\"\",'1. Order'!I26)","v":""},{"$f":"IF('1. Order'!J26=\"\",\"\",'1. Order'!J26)","v":""},{"$f":"IF('1. Order'!K26=\"\",\"\",'1. Order'!K26)","v":""},{"$f":"IF('1. Order'!M26=\"\",\"\",'1. Order'!M26)","v":""},null,null,null,{"$f":"IF('1. Order'!AF26=\"\",\"\",'1. Order'!AF26)","v":""}]
[{"$f":"IF('1. Order'!B27=\"\",\"\",'1. Order'!B27)","v":""},{"$f":"IF('1. Order'!I27=\"\",\"\",'1. Order'!I27)","v":""},{"$f":"IF('1. Order'!J27=\"\",\"\",'1. Order'!J27)","v":""},{"$f":"IF('1. Order'!K27=\"\",\"\",'1. Order'!K27)","v":""},{"$f":"IF('1. Order'!M27=\"\",\"\",'1. Order'!M27)","v":""},null,null,null,{"$f":"IF('1. Order'!AF27=\"\",\"\",'1. Order'!AF27)","v":""}]
[{"$f":"IF('1. Order'!B28=\"\",\"\",'1. Order'!B28)","v":""},{"$f":"IF('1. Order'!I28=\"\",\"\",'1. Order'!I28)","v":""},{"$f":"IF('1. Order'!J28=\"\",\"\",'1. Order'!J28)","v":""},{"$f":"IF('1. Order'!K28=\"\",\"\",'1. Order'!K28)","v":""},{"$f":"IF('1. Order'!M28=\"\",\"\",'1. Order'!M28)","v":""},null,null,null,{"$f":"IF('1. Order'!AF28=\"\",\"\",'1. Order'!AF28)","v":""}]
[{"$f":"IF('1. Order'!B29=\"\",\"\",'1. Order'!B29)","v":""},{"$f":"IF('1. Order'!I29=\"\",\"\",'1. Order'!I29)","v":""},{"$f":"IF('1. Order'!J29=\"\",\"\",'1. Order'!J29)","v":""},{"$f":"IF('1. Order'!K29=\"\",\"\",'1. Order'!K29)","v":""},{"$f":"IF('1. Order'!M29=\"\",\"\",'1. Order'!M29)","v":""},null,null,null,{"$f":"IF('1. Order'!AF29=\"\",\"\",'1. Order'!AF29)","v":""}]
[{"$f":"IF('1. Order'!B30=\"\",\"\",'1. Order'!B30)","v":""},{"$f":"IF('1. Order'!I30=\"\",\"\",'1. Order'!I30)","v":""},{"$f":"IF('1. Order'!J30=\"\",\"\",'1. Order'!J30)","v":""},{"$f":"IF('1. Order'!K30=\"\",\"\",'1. Order'!K30)","v":""},{"$f":"IF('1. Order'!M30=\"\",\"\",'1. Order'!M30)","v":""},null,null,null,{"$f":"IF('1. Order'!AF30=\"\",\"\",'1. Order'!AF30)","v":""}]
[{"$f":"IF('1. Order'!B31=\"\",\"\",'1. Order'!B31)","v":""},{"$f":"IF('1. Order'!I31=\"\",\"\",'1. Order'!I31)","v":""},{"$f":"IF('1. Order'!J31=\"\",\"\",'1. Order'!J31)","v":""},{"$f":"IF('1. Order'!K31=\"\",\"\",'1. Order'!K31)","v":""},{"$f":"IF('1. Order'!M31=\"\",\"\",'1. Order'!M31)","v":""},null,null,null,{"$f":"IF('1. Order'!AF31=\"\",\"\",'1. Order'!AF31)","v":""}]
[{"$f":"IF('1. Order'!B32=\"\",\"\",'1. Order'!B32)","v":""},{"$f":"IF('1. Order'!I32=\"\",\"\",'1. Order'!I32)","v":""},{"$f":"IF('1. Order'!J32=\"\",\"\",'1. Order'!J32)","v":""},{"$f":"IF('1. Order'!K32=\"\",\"\",'1. Order'!K32)","v":""},{"$f":"IF('1. Order'!M32=\"\",\"\",'1. Order'!M32)","v":""},null,null,null,{"$f":"IF('1. Order'!AF32=\"\",\"\",'1. Order'!AF32)","v":""}]
[{"$f":"IF('1. Order'!B33=\"\",\"\",'1. Order'!B33)","v":""},{"$f":"IF('1. Order'!I33=\"\",\"\",'1. Order'!I33)","v":""},{"$f":"IF('1. Order'!J33=\"\",\"\",'1. Order'!J33)","v":""},{"$f":"IF('1. Order'!K33=\"\",\"\",'1. Order'!K33)","v":""},{"$f":"IF('1. Order'!M33=\"\",\"\",'1. Order'!M33)","v":""},null,null,null,{"$f":"IF('1. Order'!AF33=\"\",\"\",'1. Order'!AF33)","v":""}]
[{"$f":"IF('1. Order'!B34=\"\",\"\",'1. Order'!B34)","v":""},{"$f":"IF('1. Order'!I34=\"\",\"\",'1. Order'!I34)","v":""},{"$f":"IF('1. Order'!J34=\"\",\"\",'1. Order'!J34)","v":""},{"$f":"IF('1. Order'!K34=\"\",\"\",'1. Order'!K34)","v":""},{"$f":"IF('1. Order'!M34=\"\",\"\",'1. Order'!M34)","v":""},null,null,null,{"$f":"IF('1. Order'!AF34=\"\",\"\",'1. Order'!AF34)","v":""}]
[{"$f":"IF('1. Order'!B35=\"\",\"\",'1. Order'!B35)","v":""},{"$f":"IF('1. Order'!I35=\"\",\"\",'1. Order'!I35)","v":""},{"$f":"IF('1. Order'!J35=\"\",\"\",'1. Order'!J35)","v":""},{"$f":"IF('1. Order'!K35=\"\",\"\",'1. Order'!K35)","v":""},{"$f":"IF('1. Order'!M35=\"\",\"\",'1. Order'!M35)","v":""},null,null,null,{"$f":"IF('1. Order'!AF35=\"\",\"\",'1. Order'!AF35)","v":""}]
[{"$f":"IF('1. Order'!B36=\"\",\"\",'1. Order'!B36)","v":""},{"$f":"IF('1. Order'!I36=\"\",\"\",'1. Order'!I36)","v":""},{"$f":"IF('1. Order'!J36=\"\",\"\",'1. Order'!J36)","v":""},{"$f":"IF('1. Order'!K36=\"\",\"\",'1. Order'!K36)","v":""},{"$f":"IF('1. Order'!M36=\"\",\"\",'1. Order'!M36)","v":""},null,null,null,{"$f":"IF('1. Order'!AF36=\"\",\"\",'1. Order'!AF36)","v":""}]
[{"$f":"IF('1. Order'!B37=\"\",\"\",'1. Order'!B37)","v":""},{"$f":"IF('1. Order'!I37=\"\",\"\",'1. Order'!I37)","v":""},{"$f":"IF('1. Order'!J37=\"\",\"\",'1. Order'!J37)","v":""},{"$f":"IF('1. Order'!K37=\"\",\"\",'1. Order'!K37)","v":""},{"$f":"IF('1. Order'!M37=\"\",\"\",'1. Order'!M37)","v":""},null,null,null,{"$f":"IF('1. Order'!AF37=\"\",\"\",'1. Order'!AF37)","v":""}]
[{"$f":"IF('1. Order'!B38=\"\",\"\",'1. Order'!B38)","v":""},{"$f":"IF('1. Order'!I38=\"\",\"\",'1. Order'!I38)","v":""},{"$f":"IF('1. Order'!J38=\"\",\"\",'1. Order'!J38)","v":""},{"$f":"IF('1. Order'!K38=\"\",\"\",'1. Order'!K38)","v":""},{"$f":"IF('1. Order'!M38=\"\",\"\",'1. Order'!M38)","v":""},null,null,null,{"$f":"IF('1. Order'!AF38=\"\",\"\",'1. Order'!AF38)","v":""}]
[{"$f":"IF('1. Order'!B39=\"\",\"\",'1. Order'!B39)","v":""},{"$f":"IF('1. Order'!I39=\"\",\"\",'1. Order'!I39)","v":""},{"$f":"IF('1. Order'!J39=\"\",\"\",'1. Order'!J39)","v":""},{"$f":"IF('1. Order'!K39=\"\",\"\",'1. Order'!K39)","v":""},{"$f":"IF('1. Order'!M39=\"\",\"\",'1. Order'!M39)","v":""},null,null,null,{"$f":"IF('1. Order'!AF39=\"\",\"\",'1. Order'!AF39)","v":""}]
[{"$f":"IF('1. Order'!B40=\"\",\"\",'1. Order'!B40)","v":""},{"$f":"IF('1. Order'!I40=\"\",\"\",'1. Order'!I40)","v":""},{"$f":"IF('1. Order'!J40=\"\",\"\",'1. Order'!J40)","v":""},{"$f":"IF('1. Order'!K40=\"\",\"\",'1. Order'!K40)","v":""},{"$f":"IF('1. Order'!M40=\"\",\"\",'1. Order'!M40)","v":""},null,null,null,{"$f":"IF('1. Order'!AF40=\"\",\"\",'1. Order'!AF40)","v":""}]
[{"$f":"IF('1. Order'!B41=\"\",\"\",'1. Order'!B41)","v":""},{"$f":"IF('1. Order'!I41=\"\",\"\",'1. Order'!I41)","v":""},{"$f":"IF('1. Order'!J41=\"\",\"\",'1. Order'!J41)","v":""},{"$f":"IF('1. Order'!K41=\"\",\"\",'1. Order'!K41)","v":""},{"$f":"IF('1. Order'!M41=\"\",\"\",'1. Order'!M41)","v":""},null,null,null,{"$f":"IF('1. Order'!AF41=\"\",\"\",'1. Order'!AF41)","v":""}]
[{"$f":"IF('1. Order'!B42=\"\",\"\",'1. Order'!B42)","v":""},{"$f":"IF('1. Order'!I42=\"\",\"\",'1. Order'!I42)","v":""},{"$f":"IF('1. Order'!J42=\"\",\"\",'1. Order'!J42)","v":""},{"$f":"IF('1. Order'!K42=\"\",\"\",'1. Order'!K42)","v":""},{"$f":"IF('1. Order'!M42=\"\",\"\",'1. Order'!M42)","v":""},null,null,null,{"$f":"IF('1. Order'!AF42=\"\",\"\",'1. Order'!AF42)","v":""}]
[{"$f":"IF('1. Order'!B43=\"\",\"\",'1. Order'!B43)","v":""},{"$f":"IF('1. Order'!I43=\"\",\"\",'1. Order'!I43)","v":""},{"$f":"IF('1. Order'!J43=\"\",\"\",'1. Order'!J43)","v":""},{"$f":"IF('1. Order'!K43=\"\",\"\",'1. Order'!K43)","v":""},{"$f":"IF('1. Order'!M43=\"\",\"\",'1. Order'!M43)","v":""},null,null,null,{"$f":"IF('1. Order'!AF43=\"\",\"\",'1. Order'!AF43)","v":""}]
[{"$f":"IF('1. Order'!B44=\"\",\"\",'1. Order'!B44)","v":""},{"$f":"IF('1. Order'!I44=\"\",\"\",'1. Order'!I44)","v":""},{"$f":"IF('1. Order'!J44=\"\",\"\",'1. Order'!J44)","v":""},{"$f":"IF('1. Order'!K44=\"\",\"\",'1. Order'!K44)","v":""},{"$f":"IF('1. Order'!M44=\"\",\"\",'1. Order'!M44)","v":""},null,null,null,{"$f":"IF('1. Order'!AF44=\"\",\"\",'1. Order'!AF44)","v":""}]
[{"$f":"IF('1. Order'!B45=\"\",\"\",'1. Order'!B45)","v":""},{"$f":"IF('1. Order'!I45=\"\",\"\",'1. Order'!I45)","v":""},{"$f":"IF('1. Order'!J45=\"\",\"\",'1. Order'!J45)","v":""},{"$f":"IF('1. Order'!K45=\"\",\"\",'1. Order'!K45)","v":""},{"$f":"IF('1. Order'!M45=\"\",\"\",'1. Order'!M45)","v":""},null,null,null,{"$f":"IF('1. Order'!AF45=\"\",\"\",'1. Order'!AF45)","v":""}]
[{"$f":"IF('1. Order'!B46=\"\",\"\",'1. Order'!B46)","v":""},{"$f":"IF('1. Order'!I46=\"\",\"\",'1. Order'!I46)","v":""},{"$f":"IF('1. Order'!J46=\"\",\"\",'1. Order'!J46)","v":""},{"$f":"IF('1. Order'!K46=\"\",\"\",'1. Order'!K46)","v":""},{"$f":"IF('1. Order'!M46=\"\",\"\",'1. Order'!M46)","v":""},null,null,null,{"$f":"IF('1. Order'!AF46=\"\",\"\",'1. Order'!AF46)","v":""}]
[{"$f":"IF('1. Order'!B47=\"\",\"\",'1. Order'!B47)","v":""},{"$f":"IF('1. Order'!I47=\"\",\"\",'1. Order'!I47)","v":""},{"$f":"IF('1. Order'!J47=\"\",\"\",'1. Order'!J47)","v":""},{"$f":"IF('1. Order'!K47=\"\",\"\",'1. Order'!K47)","v":""},{"$f":"IF('1. Order'!M47=\"\",\"\",'1. Order'!M47)","v":""},null,null,null,{"$f":"IF('1. Order'!AF47=\"\",\"\",'1. Order'!AF47)","v":""}]
[{"$f":"IF('1. Order'!B48=\"\",\"\",'1. Order'!B48)","v":""},{"$f":"IF('1. Order'!I48=\"\",\"\",'1. Order'!I48)","v":""},{"$f":"IF('1. Order'!J48=\"\",\"\",'1. Order'!J48)","v":""},{"$f":"IF('1. Order'!K48=\"\",\"\",'1. Order'!K48)","v":""},{"$f":"IF('1. Order'!M48=\"\",\"\",'1. Order'!M48)","v":""},null,null,null,{"$f":"IF('1. Order'!AF48=\"\",\"\",'1. Order'!AF48)","v":""}]
[{"$f":"IF('1. Order'!B49=\"\",\"\",'1. Order'!B49)","v":""},{"$f":"IF('1. Order'!I49=\"\",\"\",'1. Order'!I49)","v":""},{"$f":"IF('1. Order'!J49=\"\",\"\",'1. Order'!J49)","v":""},{"$f":"IF('1. Order'!K49=\"\",\"\",'1. Order'!K49)","v":""},{"$f":"IF('1. Order'!M49=\"\",\"\",'1. Order'!M49)","v":""},null,null,null,{"$f":"IF('1. Order'!AF49=\"\",\"\",'1. Order'!AF49)","v":""}]
[{"$f":"IF('1. Order'!B50=\"\",\"\",'1. Order'!B50)","v":""},{"$f":"IF('1. Order'!I50=\"\",\"\",'1. Order'!I50)","v":""},{"$f":"IF('1. Order'!J50=\"\",\"\",'1. Order'!J50)","v":""},{"$f":"IF('1. Order'!K50=\"\",\"\",'1. Order'!K50)","v":""},{"$f":"IF('1. Order'!M50=\"\",\"\",'1. Order'!M50)","v":""},null,null,null,{"$f":"IF('1. Order'!AF50=\"\",\"\",'1. Order'!AF50)","v":""}]
[{"$f":"IF('1. Order'!B51=\"\",\"\",'1. Order'!B51)","v":""},{"$f":"IF('1. Order'!I51=\"\",\"\",'1. Order'!I51)","v":""},{"$f":"IF('1. Order'!J51=\"\",\"\",'1. Order'!J51)","v":""},{"$f":"IF('1. Order'!K51=\"\",\"\",'1. Order'!K51)","v":""},{"$f":"IF('1. Order'!M51=\"\",\"\",'1. Order'!M51)","v":""},null,null,null,{"$f":"IF('1. Order'!AF51=\"\",\"\",'1. Order'!AF51)","v":""}]
[{"$f":"IF('1. Order'!B52=\"\",\"\",'1. Order'!B52)","v":""},{"$f":"IF('1. Order'!I52=\"\",\"\",'1. Order'!I52)","v":""},{"$f":"IF('1. Order'!J52=\"\",\"\",'1. Order'!J52)","v":""},{"$f":"IF('1. Order'!K52=\"\",\"\",'1. Order'!K52)","v":""},{"$f":"IF('1. Order'!M52=\"\",\"\",'1. Order'!M52)","v":""},null,null,null,{"$f":"IF('1. Order'!AF52=\"\",\"\",'1. Order'!AF52)","v":""}]
[{"$f":"IF('1. Order'!B53=\"\",\"\",'1. Order'!B53)","v":""},{"$f":"IF('1. Order'!I53=\"\",\"\",'1. Order'!I53)","v":""},{"$f":"IF('1. Order'!J53=\"\",\"\",'1. Order'!J53)","v":""},{"$f":"IF('1. Order'!K53=\"\",\"\",'1. Order'!K53)","v":""},{"$f":"IF('1. Order'!M53=\"\",\"\",'1. Order'!M53)","v":""},null,null,null,{"$f":"IF('1. Order'!AF53=\"\",\"\",'1. Order'!AF53)","v":""}]
[{"$f":"IF('1. Order'!B54=\"\",\"\",'1. Order'!B54)","v":""},{"$f":"IF('1. Order'!I54=\"\",\"\",'1. Order'!I54)","v":""},{"$f":"IF('1. Order'!J54=\"\",\"\",'1. Order'!J54)","v":""},{"$f":"IF('1. Order'!K54=\"\",\"\",'1. Order'!K54)","v":""},{"$f":"IF('1. Order'!M54=\"\",\"\",'1. Order'!M54)","v":""},null,null,null,{"$f":"IF('1. Order'!AF54=\"\",\"\",'1. Order'!AF54)","v":""}]
[{"$f":"IF('1. Order'!B55=\"\",\"\",'1. Order'!B55)","v":""},{"$f":"IF('1. Order'!I55=\"\",\"\",'1. Order'!I55)","v":""},{"$f":"IF('1. Order'!J55=\"\",\"\",'1. Order'!J55)","v":""},{"$f":"IF('1. Order'!K55=\"\",\"\",'1. Order'!K55)","v":""},{"$f":"IF('1. Order'!M55=\"\",\"\",'1. Order'!M55)","v":""},null,null,null,{"$f":"IF('1. Order'!AF55=\"\",\"\",'1. Order'!AF55)","v":""}]
[{"$f":"IF('1. Order'!B56=\"\",\"\",'1. Order'!B56)","v":""},{"$f":"IF('1. Order'!I56=\"\",\"\",'1. Order'!I56)","v":""},{"$f":"IF('1. Order'!J56=\"\",\"\",'1. Order'!J56)","v":""},{"$f":"IF('1. Order'!K56=\"\",\"\",'1. Order'!K56)","v":""},{"$f":"IF('1. Order'!M56=\"\",\"\",'1. Order'!M56)","v":""},null,null,null,{"$f":"IF('1. Order'!AF56=\"\",\"\",'1. Order'!AF56)","v":""}]
[{"$f":"IF('1. Order'!B57=\"\",\"\",'1. Order'!B57)","v":""},{"$f":"IF('1. Order'!I57=\"\",\"\",'1. Order'!I57)","v":""},{"$f":"IF('1. Order'!J57=\"\",\"\",'1. Order'!J57)","v":""},{"$f":"IF('1. Order'!K57=\"\",\"\",'1. Order'!K57)","v":""},{"$f":"IF('1. Order'!M57=\"\",\"\",'1. Order'!M57)","v":""},null,null,null,{"$f":"IF('1. Order'!AF57=\"\",\"\",'1. Order'!AF57)","v":""}]
[{"$f":"IF('1. Order'!B58=\"\",\"\",'1. Order'!B58)","v":""},{"$f":"IF('1. Order'!I58=\"\",\"\",'1. Order'!I58)","v":""},{"$f":"IF('1. Order'!J58=\"\",\"\",'1. Order'!J58)","v":""},{"$f":"IF('1. Order'!K58=\"\",\"\",'1. Order'!K58)","v":""},{"$f":"IF('1. Order'!M58=\"\",\"\",'1. Order'!M58)","v":""},null,null,null,{"$f":"IF('1. Order'!AF58=\"\",\"\",'1. Order'!AF58)","v":""}]
[{"$f":"IF('1. Order'!B59=\"\",\"\",'1. Order'!B59)","v":""},{"$f":"IF('1. Order'!I59=\"\",\"\",'1. Order'!I59)","v":""},{"$f":"IF('1. Order'!J59=\"\",\"\",'1. Order'!J59)","v":""},{"$f":"IF('1. Order'!K59=\"\",\"\",'1. Order'!K59)","v":""},{"$f":"IF('1. Order'!M59=\"\",\"\",'1. Order'!M59)","v":""},null,null,null,{"$f":"IF('1. Order'!AF59=\"\",\"\",'1. Order'!AF59)","v":""}]
[{"$f":"IF('1. Order'!B60=\"\",\"\",'1. Order'!B60)","v":""},{"$f":"IF('1. Order'!I60=\"\",\"\",'1. Order'!I60)","v":""},{"$f":"IF('1. Order'!J60=\"\",\"\",'1. Order'!J60)","v":""},{"$f":"IF('1. Order'!K60=\"\",\"\",'1. Order'!K60)","v":""},{"$f":"IF('1. Order'!M60=\"\",\"\",'1. Order'!M60)","v":""},null,null,null,{"$f":"IF('1. Order'!AF60=\"\",\"\",'1. Order'!AF60)","v":""}]
[{"$f":"IF('1. Order'!B61=\"\",\"\",'1. Order'!B61)","v":""},{"$f":"IF('1. Order'!I61=\"\",\"\",'1. Order'!I61)","v":""},{"$f":"IF('1. Order'!J61=\"\",\"\",'1. Order'!J61)","v":""},{"$f":"IF('1. Order'!K61=\"\",\"\",'1. Order'!K61)","v":""},{"$f":"IF('1. Order'!M61=\"\",\"\",'1. Order'!M61)","v":""},null,null,null,{"$f":"IF('1. Order'!AF61=\"\",\"\",'1. Order'!AF61)","v":""}]
[{"$f":"IF('1. Order'!B62=\"\",\"\",'1. Order'!B62)","v":""},{"$f":"IF('1. Order'!I62=\"\",\"\",'1. Order'!I62)","v":""},{"$f":"IF('1. Order'!J62=\"\",\"\",'1. Order'!J62)","v":""},{"$f":"IF('1. Order'!K62=\"\",\"\",'1. Order'!K62)","v":""},{"$f":"IF('1. Order'!M62=\"\",\"\",'1. Order'!M62)","v":""},null,null,null,{"$f":"IF('1. Order'!AF62=\"\",\"\",'1. Order'!AF62)","v":""}]
[{"$f":"IF('1. Order'!B63=\"\",\"\",'1. Order'!B63)","v":""},{"$f":"IF('1. Order'!I63=\"\",\"\",'1. Order'!I63)","v":""},{"$f":"IF('1. Order'!J63=\"\",\"\",'1. Order'!J63)","v":""},{"$f":"IF('1. Order'!K63=\"\",\"\",'1. Order'!K63)","v":""},{"$f":"IF('1. Order'!M63=\"\",\"\",'1. Order'!M63)","v":""},null,null,null,{"$f":"IF('1. Order'!AF63=\"\",\"\",'1. Order'!AF63)","v":""}]
[{"$f":"IF('1. Order'!B64=\"\",\"\",'1. Order'!B64)","v":""},{"$f":"IF('1. Order'!I64=\"\",\"\",'1. Order'!I64)","v":""},{"$f":"IF('1. Order'!J64=\"\",\"\",'1. Order'!J64)","v":""},{"$f":"IF('1. Order'!K64=\"\",\"\",'1. Order'!K64)","v":""},{"$f":"IF('1. Order'!M64=\"\",\"\",'1. Order'!M64)","v":""},null,null,null,{"$f":"IF('1. Order'!AF64=\"\",\"\",'1. Order'!AF64)","v":""}]
[{"$f":"IF('1. Order'!B65=\"\",\"\",'1. Order'!B65)","v":""},{"$f":"IF('1. Order'!I65=\"\",\"\",'1. Order'!I65)","v":""},{"$f":"IF('1. Order'!J65=\"\",\"\",'1. Order'!J65)","v":""},{"$f":"IF('1. Order'!K65=\"\",\"\",'1. Order'!K65)","v":""},{"$f":"IF('1. Order'!M65=\"\",\"\",'1. Order'!M65)","v":""},null,null,null,{"$f":"IF('1. Order'!AF65=\"\",\"\",'1. Order'!AF65)","v":""}]
[{"$f":"IF('1. Order'!B66=\"\",\"\",'1. Order'!B66)","v":""},{"$f":"IF('1. Order'!I66=\"\",\"\",'1. Order'!I66)","v":""},{"$f":"IF('1. Order'!J66=\"\",\"\",'1. Order'!J66)","v":""},{"$f":"IF('1. Order'!K66=\"\",\"\",'1. Order'!K66)","v":""},{"$f":"IF('1. Order'!M66=\"\",\"\",'1. Order'!M66)","v":""},null,null,null,{"$f":"IF('1. Order'!AF66=\"\",\"\",'1. Order'!AF66)","v":""}]
[{"$f":"IF('1. Order'!B67=\"\",\"\",'1. Order'!B67)","v":""},{"$f":"IF('1. Order'!I67=\"\",\"\",'1. Order'!I67)","v":""},{"$f":"IF('1. Order'!J67=\"\",\"\",'1. Order'!J67)","v":""},{"$f":"IF('1. Order'!K67=\"\",\"\",'1. Order'!K67)","v":""},{"$f":"IF('1. Order'!M67=\"\",\"\",'1. Order'!M67)","v":""},null,null,null,{"$f":"IF('1. Order'!AF67=\"\",\"\",'1. Order'!AF67)","v":""}]
[{"$f":"IF('1. Order'!B68=\"\",\"\",'1. Order'!B68)","v":""},{"$f":"IF('1. Order'!I68=\"\",\"\",'1. Order'!I68)","v":""},{"$f":"IF('1. Order'!J68=\"\",\"\",'1. Order'!J68)","v":""},{"$f":"IF('1. Order'!K68=\"\",\"\",'1. Order'!K68)","v":""},{"$f":"IF('1. Order'!M68=\"\",\"\",'1. Order'!M68)","v":""},null,null,null,{"$f":"IF('1. Order'!AF68=\"\",\"\",'1. Order'!AF68)","v":""}]
[{"$f":"IF('1. Order'!B69=\"\",\"\",'1. Order'!B69)","v":""},{"$f":"IF('1. Order'!I69=\"\",\"\",'1. Order'!I69)","v":""},{"$f":"IF('1. Order'!J69=\"\",\"\",'1. Order'!J69)","v":""},{"$f":"IF('1. Order'!K69=\"\",\"\",'1. Order'!K69)","v":""},{"$f":"IF('1. Order'!M69=\"\",\"\",'1. Order'!M69)","v":""},null,null,null,{"$f":"IF('1. Order'!AF69=\"\",\"\",'1. Order'!AF69)","v":""}]
[{"$f":"IF('1. Order'!B70=\"\",\"\",'1. Order'!B70)","v":""},{"$f":"IF('1. Order'!I70=\"\",\"\",'1. Order'!I70)","v":""},{"$f":"IF('1. Order'!J70=\"\",\"\",'1. Order'!J70)","v":""},{"$f":"IF('1. Order'!K70=\"\",\"\",'1. Order'!K70)","v":""},{"$f":"IF('1. Order'!M70=\"\",\"\",'1. Order'!M70)","v":""},null,null,null,{"$f":"IF('1. Order'!AF70=\"\",\"\",'1. Order'!AF70)","v":""}]
[{"$f":"IF('1. Order'!B71=\"\",\"\",'1. Order'!B71)","v":""},{"$f":"IF('1. Order'!I71=\"\",\"\",'1. Order'!I71)","v":""},{"$f":"IF('1. Order'!J71=\"\",\"\",'1. Order'!J71)","v":""},{"$f":"IF('1. Order'!K71=\"\",\"\",'1. Order'!K71)","v":""},{"$f":"IF('1. Order'!M71=\"\",\"\",'1. Order'!M71)","v":""},null,null,null,{"$f":"IF('1. Order'!AF71=\"\",\"\",'1. Order'!AF71)","v":""}]
[{"$f":"IF('1. Order'!B72=\"\",\"\",'1. Order'!B72)","v":""},{"$f":"IF('1. Order'!I72=\"\",\"\",'1. Order'!I72)","v":""},{"$f":"IF('1. Order'!J72=\"\",\"\",'1. Order'!J72)","v":""},{"$f":"IF('1. Order'!K72=\"\",\"\",'1. Order'!K72)","v":""},{"$f":"IF('1. Order'!M72=\"\",\"\",'1. Order'!M72)","v":""},null,null,null,{"$f":"IF('1. Order'!AF72=\"\",\"\",'1. Order'!AF72)","v":""}]
[{"$f":"IF('1. Order'!B73=\"\",\"\",'1. Order'!B73)","v":""},{"$f":"IF('1. Order'!I73=\"\",\"\",'1. Order'!I73)","v":""},{"$f":"IF('1. Order'!J73=\"\",\"\",'1. Order'!J73)","v":""},{"$f":"IF('1. Order'!K73=\"\",\"\",'1. Order'!K73)","v":""},{"$f":"IF('1. Order'!M73=\"\",\"\",'1. Order'!M73)","v":""},null,null,null,{"$f":"IF('1. Order'!AF73=\"\",\"\",'1. Order'!AF73)","v":""}]
[{"$f":"IF('1. Order'!B74=\"\",\"\",'1. Order'!B74)","v":""},{"$f":"IF('1. Order'!I74=\"\",\"\",'1. Order'!I74)","v":""},{"$f":"IF('1. Order'!J74=\"\",\"\",'1. Order'!J74)","v":""},{"$f":"IF('1. Order'!K74=\"\",\"\",'1. Order'!K74)","v":""},{"$f":"IF('1. Order'!M74=\"\",\"\",'1. Order'!M74)","v":""},null,null,null,{"$f":"IF('1. Order'!AF74=\"\",\"\",'1. Order'!AF74)","v":""}]
[{"$f":"IF('1. Order'!B75=\"\",\"\",'1. Order'!B75)","v":""},{"$f":"IF('1. Order'!I75=\"\",\"\",'1. Order'!I75)","v":""},{"$f":"IF('1. Order'!J75=\"\",\"\",'1. Order'!J75)","v":""},{"$f":"IF('1. Order'!K75=\"\",\"\",'1. Order'!K75)","v":""},{"$f":"IF('1. Order'!M75=\"\",\"\",'1. Order'!M75)","v":""},null,null,null,{"$f":"IF('1. Order'!AF75=\"\",\"\",'1. Order'!AF75)","v":""}]
[{"$f":"IF('1. Order'!B76=\"\",\"\",'1. Order'!B76)","v":""},{"$f":"IF('1. Order'!I76=\"\",\"\",'1. Order'!I76)","v":""},{"$f":"IF('1. Order'!J76=\"\",\"\",'1. Order'!J76)","v":""},{"$f":"IF('1. Order'!K76=\"\",\"\",'1. Order'!K76)","v":""},{"$f":"IF('1. Order'!M76=\"\",\"\",'1. Order'!M76)","v":""},null,null,null,{"$f":"IF('1. Order'!AF76=\"\",\"\",'1. Order'!AF76)","v":""}]
[{"$f":"IF('1. Order'!B77=\"\",\"\",'1. Order'!B77)","v":""},{"$f":"IF('1. Order'!I77=\"\",\"\",'1. Order'!I77)","v":""},{"$f":"IF('1. Order'!J77=\"\",\"\",'1. Order'!J77)","v":""},{"$f":"IF('1. Order'!K77=\"\",\"\",'1. Order'!K77)","v":""},{"$f":"IF('1. Order'!M77=\"\",\"\",'1. Order'!M77)","v":""},null,null,null,{"$f":"IF('1. Order'!AF77=\"\",\"\",'1. Order'!AF77)","v":""}]
[{"$f":"IF('1. Order'!B78=\"\",\"\",'1. Order'!B78)","v":""},{"$f":"IF('1. Order'!I78=\"\",\"\",'1. Order'!I78)","v":""},{"$f":"IF('1. Order'!J78=\"\",\"\",'1. Order'!J78)","v":""},{"$f":"IF('1. Order'!K78=\"\",\"\",'1. Order'!K78)","v":""},{"$f":"IF('1. Order'!M78=\"\",\"\",'1. Order'!M78)","v":""},null,null,null,{"$f":"IF('1. Order'!AF78=\"\",\"\",'1. Order'!AF78)","v":""}]
[{"$f":"IF('1. Order'!B79=\"\",\"\",'1. Order'!B79)","v":""},{"$f":"IF('1. Order'!I79=\"\",\"\",'1. Order'!I79)","v":""},{"$f":"IF('1. Order'!J79=\"\",\"\",'1. Order'!J79)","v":""},{"$f":"IF('1. Order'!K79=\"\",\"\",'1. Order'!K79)","v":""},{"$f":"IF('1. Order'!M79=\"\",\"\",'1. Order'!M79)","v":""},null,null,null,{"$f":"IF('1. Order'!AF79=\"\",\"\",'1. Order'!AF79)","v":""}]
[{"$f":"IF('1. Order'!B80=\"\",\"\",'1. Order'!B80)","v":""},{"$f":"IF('1. Order'!I80=\"\",\"\",'1. Order'!I80)","v":""},{"$f":"IF('1. Order'!J80=\"\",\"\",'1. Order'!J80)","v":""},{"$f":"IF('1. Order'!K80=\"\",\"\",'1. Order'!K80)","v":""},{"$f":"IF('1. Order'!M80=\"\",\"\",'1. Order'!M80)","v":""},null,null,null,{"$f":"IF('1. Order'!AF80=\"\",\"\",'1. Order'!AF80)","v":""}]
[{"$f":"IF('1. Order'!B81=\"\",\"\",'1. Order'!B81)","v":""},{"$f":"IF('1. Order'!I81=\"\",\"\",'1. Order'!I81)","v":""},{"$f":"IF('1. Order'!J81=\"\",\"\",'1. Order'!J81)","v":""},{"$f":"IF('1. Order'!K81=\"\",\"\",'1. Order'!K81)","v":""},{"$f":"IF('1. Order'!M81=\"\",\"\",'1. Order'!M81)","v":""},null,null,null,{"$f":"IF('1. Order'!AF81=\"\",\"\",'1. Order'!AF81)","v":""}]
[{"$f":"IF('1. Order'!B82=\"\",\"\",'1. Order'!B82)","v":""},{"$f":"IF('1. Order'!I82=\"\",\"\",'1. Order'!I82)","v":""},{"$f":"IF('1. Order'!J82=\"\",\"\",'1. Order'!J82)","v":""},{"$f":"IF('1. Order'!K82=\"\",\"\",'1. Order'!K82)","v":""},{"$f":"IF('1. Order'!M82=\"\",\"\",'1. Order'!M82)","v":""},null,null,null,{"$f":"IF('1. Order'!AF82=\"\",\"\",'1. Order'!AF82)","v":""}]
[{"$f":"IF('1. Order'!B83=\"\",\"\",'1. Order'!B83)","v":""},{"$f":"IF('1. Order'!I83=\"\",\"\",'1. Order'!I83)","v":""},{"$f":"IF('1. Order'!J83=\"\",\"\",'1. Order'!J83)","v":""},{"$f":"IF('1. Order'!K83=\"\",\"\",'1. Order'!K83)","v":""},{"$f":"IF('1. Order'!M83=\"\",\"\",'1. Order'!M83)","v":""},null,null,null,{"$f":"IF('1. Order'!AF83=\"\",\"\",'1. Order'!AF83)","v":""}]
[{"$f":"IF('1. Order'!B84=\"\",\"\",'1. Order'!B84)","v":""},{"$f":"IF('1. Order'!I84=\"\",\"\",'1. Order'!I84)","v":""},{"$f":"IF('1. Order'!J84=\"\",\"\",'1. Order'!J84)","v":""},{"$f":"IF('1. Order'!K84=\"\",\"\",'1. Order'!K84)","v":""},{"$f":"IF('1. Order'!M84=\"\",\"\",'1. Order'!M84)","v":""},null,null,null,{"$f":"IF('1. Order'!AF84=\"\",\"\",'1. Order'!AF84)","v":""}]
[{"$f":"IF('1. Order'!B85=\"\",\"\",'1. Order'!B85)","v":""},{"$f":"IF('1. Order'!I85=\"\",\"\",'1. Order'!I85)","v":""},{"$f":"IF('1. Order'!J85=\"\",\"\",'1. Order'!J85)","v":""},{"$f":"IF('1. Order'!K85=\"\",\"\",'1. Order'!K85)","v":""},{"$f":"IF('1. Order'!M85=\"\",\"\",'1. Order'!M85)","v":""},null,null,null,{"$f":"IF('1. Order'!AF85=\"\",\"\",'1. Order'!AF85)","v":""}]
[{"$f":"IF('1. Order'!B86=\"\",\"\",'1. Order'!B86)","v":""},{"$f":"IF('1. Order'!I86=\"\",\"\",'1. Order'!I86)","v":""},{"$f":"IF('1. Order'!J86=\"\",\"\",'1. Order'!J86)","v":""},{"$f":"IF('1. Order'!K86=\"\",\"\",'1. Order'!K86)","v":""},{"$f":"IF('1. Order'!M86=\"\",\"\",'1. Order'!M86)","v":""},null,null,null,{"$f":"IF('1. Order'!AF86=\"\",\"\",'1. Order'!AF86)","v":""}]
[{"$f":"IF('1. Order'!B87=\"\",\"\",'1. Order'!B87)","v":""},{"$f":"IF('1. Order'!I87=\"\",\"\",'1. Order'!I87)","v":""},{"$f":"IF('1. Order'!J87=\"\",\"\",'1. Order'!J87)","v":""},{"$f":"IF('1. Order'!K87=\"\",\"\",'1. Order'!K87)","v":""},{"$f":"IF('1. Order'!M87=\"\",\"\",'1. Order'!M87)","v":""},null,null,null,{"$f":"IF('1. Order'!AF87=\"\",\"\",'1. Order'!AF87)","v":""}]
[{"$f":"IF('1. Order'!B88=\"\",\"\",'1. Order'!B88)","v":""},{"$f":"IF('1. Order'!I88=\"\",\"\",'1. Order'!I88)","v":""},{"$f":"IF('1. Order'!J88=\"\",\"\",'1. Order'!J88)","v":""},{"$f":"IF('1. Order'!K88=\"\",\"\",'1. Order'!K88)","v":""},{"$f":"IF('1. Order'!M88=\"\",\"\",'1. Order'!M88)","v":""},null,null,null,{"$f":"IF('1. Order'!AF88=\"\",\"\",'1. Order'!AF88)","v":""}]
[{"$f":"IF('1. Order'!B89=\"\",\"\",'1. Order'!B89)","v":""},{"$f":"IF('1. Order'!I89=\"\",\"\",'1. Order'!I89)","v":""},{"$f":"IF('1. Order'!J89=\"\",\"\",'1. Order'!J89)","v":""},{"$f":"IF('1. Order'!K89=\"\",\"\",'1. Order'!K89)","v":""},{"$f":"IF('1. Order'!M89=\"\",\"\",'1. Order'!M89)","v":""},null,null,null,{"$f":"IF('1. Order'!AF89=\"\",\"\",'1. Order'!AF89)","v":""}]
[{"$f":"IF('1. Order'!B90=\"\",\"\",'1. Order'!B90)","v":""},{"$f":"IF('1. Order'!I90=\"\",\"\",'1. Order'!I90)","v":""},{"$f":"IF('1. Order'!J90=\"\",\"\",'1. Order'!J90)","v":""},{"$f":"IF('1. Order'!K90=\"\",\"\",'1. Order'!K90)","v":""},{"$f":"IF('1. Order'!M90=\"\",\"\",'1. Order'!M90)","v":""},null,null,null,{"$f":"IF('1. Order'!AF90=\"\",\"\",'1. Order'!AF90)","v":""}]
[{"$f":"IF('1. Order'!B91=\"\",\"\",'1. Order'!B91)","v":""},{"$f":"IF('1. Order'!I91=\"\",\"\",'1. Order'!I91)","v":""},{"$f":"IF('1. Order'!J91=\"\",\"\",'1. Order'!J91)","v":""},{"$f":"IF('1. Order'!K91=\"\",\"\",'1. Order'!K91)","v":""},{"$f":"IF('1. Order'!M91=\"\",\"\",'1. Order'!M91)","v":""},null,null,null,{"$f":"IF('1. Order'!AF91=\"\",\"\",'1. Order'!AF91)","v":""}]
[{"$f":"IF('1. Order'!B92=\"\",\"\",'1. Order'!B92)","v":""},{"$f":"IF('1. Order'!I92=\"\",\"\",'1. Order'!I92)","v":""},{"$f":"IF('1. Order'!J92=\"\",\"\",'1. Order'!J92)","v":""},{"$f":"IF('1. Order'!K92=\"\",\"\",'1. Order'!K92)","v":""},{"$f":"IF('1. Order'!M92=\"\",\"\",'1. Order'!M92)","v":""},null,null,null,{"$f":"IF('1. Order'!AF92=\"\",\"\",'1. Order'!AF92)","v":""}]
[{"$f":"IF('1. Order'!B93=\"\",\"\",'1. Order'!B93)","v":""},{"$f":"IF('1. Order'!I93=\"\",\"\",'1. Order'!I93)","v":""},{"$f":"IF('1. Order'!J93=\"\",\"\",'1. Order'!J93)","v":""},{"$f":"IF('1. Order'!K93=\"\",\"\",'1. Order'!K93)","v":""},{"$f":"IF('1. Order'!M93=\"\",\"\",'1. Order'!M93)","v":""},null,null,null,{"$f":"IF('1. Order'!AF93=\"\",\"\",'1. Order'!AF93)","v":""}]
[{"$f":"IF('1. Order'!B94=\"\",\"\",'1. Order'!B94)","v":""},{"$f":"IF('1. Order'!I94=\"\",\"\",'1. Order'!I94)","v":""},{"$f":"IF('1. Order'!J94=\"\",\"\",'1. Order'!J94)","v":""},{"$f":"IF('1. Order'!K94=\"\",\"\",'1. Order'!K94)","v":""},{"$f":"IF('1. Order'!M94=\"\",\"\",'1. Order'!M94)","v":""},null,null,null,{"$f":"IF('1. Order'!AF94=\"\",\"\",'1. Order'!AF94)","v":""}]
[{"$f":"IF('1. Order'!B95=\"\",\"\",'1. Order'!B95)","v":""},{"$f":"IF('1. Order'!I95=\"\",\"\",'1. Order'!I95)","v":""},{"$f":"IF('1. Order'!J95=\"\",\"\",'1. Order'!J95)","v":""},{"$f":"IF('1. Order'!K95=\"\",\"\",'1. Order'!K95)","v":""},{"$f":"IF('1. Order'!M95=\"\",\"\",'1. Order'!M95)","v":""},null,null,null,{"$f":"IF('1. Order'!AF95=\"\",\"\",'1. Order'!AF95)","v":""}]
[{"$f":"IF('1. Order'!B96=\"\",\"\",'1. Order'!B96)","v":""},{"$f":"IF('1. Order'!I96=\"\",\"\",'1. Order'!I96)","v":""},{"$f":"IF('1. Order'!J96=\"\",\"\",'1. Order'!J96)","v":""},{"$f":"IF('1. Order'!K96=\"\",\"\",'1. Order'!K96)","v":""},{"$f":"IF('1. Order'!M96=\"\",\"\",'1. Order'!M96)","v":""},null,null,null,{"$f":"IF('1. Order'!AF96=\"\",\"\",'1. Order'!AF96)","v":""}]
[{"$f":"IF('1. Order'!B97=\"\",\"\",'1. Order'!B97)","v":""},{"$f":"IF('1. Order'!I97=\"\",\"\",'1. Order'!I97)","v":""},{"$f":"IF('1. Order'!J97=\"\",\"\",'1. Order'!J97)","v":""},{"$f":"IF('1. Order'!K97=\"\",\"\",'1. Order'!K97)","v":""},{"$f":"IF('1. Order'!M97=\"\",\"\",'1. Order'!M97)","v":""},null,null,null,{"$f":"IF('1. Order'!AF97=\"\",\"\",'1. Order'!AF97)","v":""}]
[{"$f":"IF('1. Order'!B98=\"\",\"\",'1. Order'!B98)","v":""},{"$f":"IF('1. Order'!I98=\"\",\"\",'1. Order'!I98)","v":""},{"$f":"IF('1. Order'!J98=\"\",\"\",'1. Order'!J98)","v":""},{"$f":"IF('1. Order'!K98=\"\",\"\",'1. Order'!K98)","v":""},{"$f":"IF('1. Order'!M98=\"\",\"\",'1. Order'!M98)","v":""},null,null,null,{"$f":"IF('1. Order'!AF98=\"\",\"\",'1. Order'!AF98)","v":""}]
[{"$f":"IF('1. Order'!B99=\"\",\"\",'1. Order'!B99)","v":""},{"$f":"IF('1. Order'!I99=\"\",\"\",'1. Order'!I99)","v":""},{"$f":"IF('1. Order'!J99=\"\",\"\",'1. Order'!J99)","v":""},{"$f":"IF('1. Order'!K99=\"\",\"\",'1. Order'!K99)","v":""},{"$f":"IF('1. Order'!M99=\"\",\"\",'1. Order'!M99)","v":""},null,null,null,{"$f":"IF('1. Order'!AF99=\"\",\"\",'1. Order'!AF99)","v":""}]
[{"$f":"IF('1. Order'!B100=\"\",\"\",'1. Order'!B100)","v":""},{"$f":"IF('1. Order'!I100=\"\",\"\",'1. Order'!I100)","v":""},{"$f":"IF('1. Order'!J100=\"\",\"\",'1. Order'!J100)","v":""},{"$f":"IF('1. Order'!K100=\"\",\"\",'1. Order'!K100)","v":""},{"$f":"IF('1. Order'!M100=\"\",\"\",'1. Order'!M100)","v":""},null,null,null,{"$f":"IF('1. Order'!AF100=\"\",\"\",'1. Order'!AF100)","v":""}]
[{"$f":"IF('1. Order'!B101=\"\",\"\",'1. Order'!B101)","v":""},{"$f":"IF('1. Order'!I101=\"\",\"\",'1. Order'!I101)","v":""},{"$f":"IF('1. Order'!J101=\"\",\"\",'1. Order'!J101)","v":""},{"$f":"IF('1. Order'!K101=\"\",\"\",'1. Order'!K101)","v":""},{"$f":"IF('1. Order'!M101=\"\",\"\",'1. Order'!M101)","v":""},null,null,null,{"$f":"IF('1. Order'!AF101=\"\",\"\",'1. Order'!AF101)","v":""}]
[{"$f":"IF('1. Order'!B102=\"\",\"\",'1. Order'!B102)","v":""},{"$f":"IF('1. Order'!I102=\"\",\"\",'1. Order'!I102)","v":""},{"$f":"IF('1. Order'!J102=\"\",\"\",'1. Order'!J102)","v":""},{"$f":"IF('1. Order'!K102=\"\",\"\",'1. Order'!K102)","v":""},{"$f":"IF('1. Order'!M102=\"\",\"\",'1. Order'!M102)","v":""},null,null,null,{"$f":"IF('1. Order'!AF102=\"\",\"\",'1. Order'!AF102)","v":""}]
[{"$f":"IF('1. Order'!B103=\"\",\"\",'1. Order'!B103)","v":""},{"$f":"IF('1. Order'!I103=\"\",\"\",'1. Order'!I103)","v":""},{"$f":"IF('1. Order'!J103=\"\",\"\",'1. Order'!J103)","v":""},{"$f":"IF('1. Order'!K103=\"\",\"\",'1. Order'!K103)","v":""},{"$f":"IF('1. Order'!M103=\"\",\"\",'1. Order'!M103)","v":""},null,null,null,{"$f":"IF('1. Order'!AF103=\"\",\"\",'1. Order'!AF103)","v":""}]
[{"$f":"IF('1. Order'!B104=\"\",\"\",'1. Order'!B104)","v":""},{"$f":"IF('1. Order'!I104=\"\",\"\",'1. Order'!I104)","v":""},{"$f":"IF('1. Order'!J104=\"\",\"\",'1. Order'!J104)","v":""},{"$f":"IF('1. Order'!K104=\"\",\"\",'1. Order'!K104)","v":""},{"$f":"IF('1. Order'!M104=\"\",\"\",'1. Order'!M104)","v":""},null,null,null,{"$f":"IF('1. Order'!AF104=\"\",\"\",'1. Order'!AF104)","v":""}]
[{"$f":"IF('1. Order'!B105=\"\",\"\",'1. Order'!B105)","v":""},{"$f":"IF('1. Order'!I105=\"\",\"\",'1. Order'!I105)","v":""},{"$f":"IF('1. Order'!J105=\"\",\"\",'1. Order'!J105)","v":""},{"$f":"IF('1. Order'!K105=\"\",\"\",'1. Order'!K105)","v":""},{"$f":"IF('1. Order'!M105=\"\",\"\",'1. Order'!M105)","v":""},null,null,null,{"$f":"IF('1. Order'!AF105=\"\",\"\",'1. Order'!AF105)","v":""}]
[{"$f":"IF('1. Order'!B106=\"\",\"\",'1. Order'!B106)","v":""},{"$f":"IF('1. Order'!I106=\"\",\"\",'1. Order'!I106)","v":""},{"$f":"IF('1. Order'!J106=\"\",\"\",'1. Order'!J106)","v":""},{"$f":"IF('1. Order'!K106=\"\",\"\",'1. Order'!K106)","v":""},{"$f":"IF('1. Order'!M106=\"\",\"\",'1. Order'!M106)","v":""},null,null,null,{"$f":"IF('1. Order'!AF106=\"\",\"\",'1. Order'!AF106)","v":""}]
[{"$f":"IF('1. Order'!B107=\"\",\"\",'1. Order'!B107)","v":""},{"$f":"IF('1. Order'!I107=\"\",\"\",'1. Order'!I107)","v":""},{"$f":"IF('1. Order'!J107=\"\",\"\",'1. Order'!J107)","v":""},{"$f":"IF('1. Order'!K107=\"\",\"\",'1. Order'!K107)","v":""},{"$f":"IF('1. Order'!M107=\"\",\"\",'1. Order'!M107)","v":""},null,null,null,{"$f":"IF('1. Order'!AF107=\"\",\"\",'1. Order'!AF107)","v":""}]
[{"$f":"IF('1. Order'!B108=\"\",\"\",'1. Order'!B108)","v":""},{"$f":"IF('1. Order'!I108=\"\",\"\",'1. Order'!I108)","v":""},{"$f":"IF('1. Order'!J108=\"\",\"\",'1. Order'!J108)","v":""},{"$f":"IF('1. Order'!K108=\"\",\"\",'1. Order'!K108)","v":""},{"$f":"IF('1. Order'!M108=\"\",\"\",'1. Order'!M108)","v":""},null,null,null,{"$f":"IF('1. Order'!AF108=\"\",\"\",'1. Order'!AF108)","v":""}]
[{"$f":"IF('1. Order'!B109=\"\",\"\",'1. Order'!B109)","v":""},{"$f":"IF('1. Order'!I109=\"\",\"\",'1. Order'!I109)","v":""},{"$f":"IF('1. Order'!J109=\"\",\"\",'1. Order'!J109)","v":""},{"$f":"IF('1. Order'!K109=\"\",\"\",'1. Order'!K109)","v":""},{"$f":"IF('1. Order'!M109=\"\",\"\",'1. Order'!M109)","v":""},null,null,null,{"$f":"IF('1. Order'!AF109=\"\",\"\",'1. Order'!AF109)","v":""}]
[{"$f":"IF('1. Order'!B110=\"\",\"\",'1. Order'!B110)","v":""},{"$f":"IF('1. Order'!I110=\"\",\"\",'1. Order'!I110)","v":""},{"$f":"IF('1. Order'!J110=\"\",\"\",'1. Order'!J110)","v":""},{"$f":"IF('1. Order'!K110=\"\",\"\",'1. Order'!K110)","v":""},{"$f":"IF('1. Order'!M110=\"\",\"\",'1. Order'!M110)","v":""},null,null,null,{"$f":"IF('1. Order'!AF110=\"\",\"\",'1. Order'!AF110)","v":""}]
[{"$f":"IF('1. Order'!B111=\"\",\"\",'1. Order'!B111)","v":""},{"$f":"IF('1. Order'!I111=\"\",\"\",'1. Order'!I111)","v":""},{"$f":"IF('1. Order'!J111=\"\",\"\",'1. Order'!J111)","v":""},{"$f":"IF('1. Order'!K111=\"\",\"\",'1. Order'!K111)","v":""},{"$f":"IF('1. Order'!M111=\"\",\"\",'1. Order'!M111)","v":""},null,null,null,{"$f":"IF('1. Order'!AF111=\"\",\"\",'1. Order'!AF111)","v":""}]
[{"$f":"IF('1. Order'!B112=\"\",\"\",'1. Order'!B112)","v":""},{"$f":"IF('1. Order'!I112=\"\",\"\",'1. Order'!I112)","v":""},{"$f":"IF('1. Order'!J112=\"\",\"\",'1. Order'!J112)","v":""},{"$f":"IF('1. Order'!K112=\"\",\"\",'1. Order'!K112)","v":""},{"$f":"IF('1. Order'!M112=\"\",\"\",'1. Order'!M112)","v":""},null,null,null,{"$f":"IF('1. Order'!AF112=\"\",\"\",'1. Order'!AF112)","v":""}]
[{"$f":"IF('1. Order'!B113=\"\",\"\",'1. Order'!B113)","v":""},{"$f":"IF('1. Order'!I113=\"\",\"\",'1. Order'!I113)","v":""},{"$f":"IF('1. Order'!J113=\"\",\"\",'1. Order'!J113)","v":""},{"$f":"IF('1. Order'!K113=\"\",\"\",'1. Order'!K113)","v":""},{"$f":"IF('1. Order'!M113=\"\",\"\",'1. Order'!M113)","v":""},null,null,null,{"$f":"IF('1. Order'!AF113=\"\",\"\",'1. Order'!AF113)","v":""}]
[{"$f":"IF('1. Order'!B114=\"\",\"\",'1. Order'!B114)","v":""},{"$f":"IF('1. Order'!I114=\"\",\"\",'1. Order'!I114)","v":""},{"$f":"IF('1. Order'!J114=\"\",\"\",'1. Order'!J114)","v":""},{"$f":"IF('1. Order'!K114=\"\",\"\",'1. Order'!K114)","v":""},{"$f":"IF('1. Order'!M114=\"\",\"\",'1. Order'!M114)","v":""},null,null,null,{"$f":"IF('1. Order'!AF114=\"\",\"\",'1. Order'!AF114)","v":""}]
[{"$f":"IF('1. Order'!B115=\"\",\"\",'1. Order'!B115)","v":""},{"$f":"IF('1. Order'!I115=\"\",\"\",'1. Order'!I115)","v":""},{"$f":"IF('1. Order'!J115=\"\",\"\",'1. Order'!J115)","v":""},{"$f":"IF('1. Order'!K115=\"\",\"\",'1. Order'!K115)","v":""},{"$f":"IF('1. Order'!M115=\"\",\"\",'1. Order'!M115)","v":""},null,null,null,{"$f":"IF('1. Order'!AF115=\"\",\"\",'1. Order'!AF115)","v":""}]
[{"$f":"IF('1. Order'!B116=\"\",\"\",'1. Order'!B116)","v":""},{"$f":"IF('1. Order'!I116=\"\",\"\",'1. Order'!I116)","v":""},{"$f":"IF('1. Order'!J116=\"\",\"\",'1. Order'!J116)","v":""},{"$f":"IF('1. Order'!K116=\"\",\"\",'1. Order'!K116)","v":""},{"$f":"IF('1. Order'!M116=\"\",\"\",'1. Order'!M116)","v":""},null,null,null,{"$f":"IF('1. Order'!AF116=\"\",\"\",'1. Order'!AF116)","v":""}]
[{"$f":"IF('1. Order'!B117=\"\",\"\",'1. Order'!B117)","v":""},{"$f":"IF('1. Order'!I117=\"\",\"\",'1. Order'!I117)","v":""},{"$f":"IF('1. Order'!J117=\"\",\"\",'1. Order'!J117)","v":""},{"$f":"IF('1. Order'!K117=\"\",\"\",'1. Order'!K117)","v":""},{"$f":"IF('1. Order'!M117=\"\",\"\",'1. Order'!M117)","v":""},null,null,null,{"$f":"IF('1. Order'!AF117=\"\",\"\",'1. Order'!AF117)","v":""}]
[{"$f":"IF('1. Order'!B118=\"\",\"\",'1. Order'!B118)","v":""},{"$f":"IF('1. Order'!I118=\"\",\"\",'1. Order'!I118)","v":""},{"$f":"IF('1. Order'!J118=\"\",\"\",'1. Order'!J118)","v":""},{"$f":"IF('1. Order'!K118=\"\",\"\",'1. Order'!K118)","v":""},{"$f":"IF('1. Order'!M118=\"\",\"\",'1. Order'!M118)","v":""},null,null,null,{"$f":"IF('1. Order'!AF118=\"\",\"\",'1. Order'!AF118)","v":""}]
[{"$f":"IF('1. Order'!B119=\"\",\"\",'1. Order'!B119)","v":""},{"$f":"IF('1. Order'!I119=\"\",\"\",'1. Order'!I119)","v":""},{"$f":"IF('1. Order'!J119=\"\",\"\",'1. Order'!J119)","v":""},{"$f":"IF('1. Order'!K119=\"\",\"\",'1. Order'!K119)","v":""},{"$f":"IF('1. Order'!M119=\"\",\"\",'1. Order'!M119)","v":""},null,null,null,{"$f":"IF('1. Order'!AF119=\"\",\"\",'1. Order'!AF119)","v":""}]
[{"$f":"IF('1. Order'!B120=\"\",\"\",'1. Order'!B120)","v":""},{"$f":"IF('1. Order'!I120=\"\",\"\",'1. Order'!I120)","v":""},{"$f":"IF('1. Order'!J120=\"\",\"\",'1. Order'!J120)","v":""},{"$f":"IF('1. Order'!K120=\"\",\"\",'1. Order'!K120)","v":""},{"$f":"IF('1. Order'!M120=\"\",\"\",'1. Order'!M120)","v":""},null,null,null,{"$f":"IF('1. Order'!AF120=\"\",\"\",'1. Order'!AF120)","v":""}]
[{"$f":"IF('1. Order'!B121=\"\",\"\",'1. Order'!B121)","v":""},{"$f":"IF('1. Order'!I121=\"\",\"\",'1. Order'!I121)","v":""},{"$f":"IF('1. Order'!J121=\"\",\"\",'1. Order'!J121)","v":""},{"$f":"IF('1. Order'!K121=\"\",\"\",'1. Order'!K121)","v":""},{"$f":"IF('1. Order'!M121=\"\",\"\",'1. Order'!M121)","v":""},null,null,null,{"$f":"IF('1. Order'!AF121=\"\",\"\",'1. Order'!AF121)","v":""}]
[{"$f":"IF('1. Order'!B122=\"\",\"\",'1. Order'!B122)","v":""},{"$f":"IF('1. Order'!I122=\"\",\"\",'1. Order'!I122)","v":""},{"$f":"IF('1. Order'!J122=\"\",\"\",'1. Order'!J122)","v":""},{"$f":"IF('1. Order'!K122=\"\",\"\",'1. Order'!K122)","v":""},{"$f":"IF('1. Order'!M122=\"\",\"\",'1. Order'!M122)","v":""},null,null,null,{"$f":"IF('1. Order'!AF122=\"\",\"\",'1. Order'!AF122)","v":""}]
[{"$f":"IF('1. Order'!B123=\"\",\"\",'1. Order'!B123)","v":""},{"$f":"IF('1. Order'!I123=\"\",\"\",'1. Order'!I123)","v":""},{"$f":"IF('1. Order'!J123=\"\",\"\",'1. Order'!J123)","v":""},{"$f":"IF('1. Order'!K123=\"\",\"\",'1. Order'!K123)","v":""},{"$f":"IF('1. Order'!M123=\"\",\"\",'1. Order'!M123)","v":""},null,null,null,{"$f":"IF('1. Order'!AF123=\"\",\"\",'1. Order'!AF123)","v":""}]
[{"$f":"IF('1. Order'!B124=\"\",\"\",'1. Order'!B124)","v":""},{"$f":"IF('1. Order'!I124=\"\",\"\",'1. Order'!I124)","v":""},{"$f":"IF('1. Order'!J124=\"\",\"\",'1. Order'!J124)","v":""},{"$f":"IF('1. Order'!K124=\"\",\"\",'1. Order'!K124)","v":""},{"$f":"IF('1. Order'!M124=\"\",\"\",'1. Order'!M124)","v":""},null,null,null,{"$f":"IF('1. Order'!AF124=\"\",\"\",'1. Order'!AF124)","v":""}]
[{"$f":"IF('1. Order'!B125=\"\",\"\",'1. Order'!B125)","v":""},{"$f":"IF('1. Order'!I125=\"\",\"\",'1. Order'!I125)","v":""},{"$f":"IF('1. Order'!J125=\"\",\"\",'1. Order'!J125)","v":""},{"$f":"IF('1. Order'!K125=\"\",\"\",'1. Order'!K125)","v":""},{"$f":"IF('1. Order'!M125=\"\",\"\",'1. Order'!M125)","v":""},null,null,null,{"$f":"IF('1. Order'!AF125=\"\",\"\",'1. Order'!AF125)","v":""}]
[{"$f":"IF('1. Order'!B126=\"\",\"\",'1. Order'!B126)","v":""},{"$f":"IF('1. Order'!I126=\"\",\"\",'1. Order'!I126)","v":""},{"$f":"IF('1. Order'!J126=\"\",\"\",'1. Order'!J126)","v":""},{"$f":"IF('1. Order'!K126=\"\",\"\",'1. Order'!K126)","v":""},{"$f":"IF('1. Order'!M126=\"\",\"\",'1. Order'!M126)","v":""},null,null,null,{"$f":"IF('1. Order'!AF126=\"\",\"\",'1. Order'!AF126)","v":""}]
[{"$f":"IF('1. Order'!B127=\"\",\"\",'1. Order'!B127)","v":""},{"$f":"IF('1. Order'!I127=\"\",\"\",'1. Order'!I127)","v":""},{"$f":"IF('1. Order'!J127=\"\",\"\",'1. Order'!J127)","v":""},{"$f":"IF('1. Order'!K127=\"\",\"\",'1. Order'!K127)","v":""},{"$f":"IF('1. Order'!M127=\"\",\"\",'1. Order'!M127)","v":""},null,null,null,{"$f":"IF('1. Order'!AF127=\"\",\"\",'1. Order'!AF127)","v":""}]
[{"$f":"IF('1. Order'!B128=\"\",\"\",'1. Order'!B128)","v":""},{"$f":"IF('1. Order'!I128=\"\",\"\",'1. Order'!I128)","v":""},{"$f":"IF('1. Order'!J128=\"\",\"\",'1. Order'!J128)","v":""},{"$f":"IF('1. Order'!K128=\"\",\"\",'1. Order'!K128)","v":""},{"$f":"IF('1. Order'!M128=\"\",\"\",'1. Order'!M128)","v":""},null,null,null,{"$f":"IF('1. Order'!AF128=\"\",\"\",'1. Order'!AF128)","v":""}]
[{"$f":"IF('1. Order'!B129=\"\",\"\",'1. Order'!B129)","v":""},{"$f":"IF('1. Order'!I129=\"\",\"\",'1. Order'!I129)","v":""},{"$f":"IF('1. Order'!J129=\"\",\"\",'1. Order'!J129)","v":""},{"$f":"IF('1. Order'!K129=\"\",\"\",'1. Order'!K129)","v":""},{"$f":"IF('1. Order'!M129=\"\",\"\",'1. Order'!M129)","v":""},null,null,null,{"$f":"IF('1. Order'!AF129=\"\",\"\",'1. Order'!AF129)","v":""}]
[{"$f":"IF('1. Order'!B130=\"\",\"\",'1. Order'!B130)","v":""},{"$f":"IF('1. Order'!I130=\"\",\"\",'1. Order'!I130)","v":""},{"$f":"IF('1. Order'!J130=\"\",\"\",'1. Order'!J130)","v":""},{"$f":"IF('1. Order'!K130=\"\",\"\",'1. Order'!K130)","v":""},{"$f":"IF('1. Order'!M130=\"\",\"\",'1. Order'!M130)","v":""},null,null,null,{"$f":"IF('1. Order'!AF130=\"\",\"\",'1. Order'!AF130)","v":""}]
[{"$f":"IF('1. Order'!B131=\"\",\"\",'1. Order'!B131)","v":""},{"$f":"IF('1. Order'!I131=\"\",\"\",'1. Order'!I131)","v":""},{"$f":"IF('1. Order'!J131=\"\",\"\",'1. Order'!J131)","v":""},{"$f":"IF('1. Order'!K131=\"\",\"\",'1. Order'!K131)","v":""},{"$f":"IF('1. Order'!M131=\"\",\"\",'1. Order'!M131)","v":""},null,null,null,{"$f":"IF('1. Order'!AF131=\"\",\"\",'1. Order'!AF131)","v":""}]
[{"$f":"IF('1. Order'!B132=\"\",\"\",'1. Order'!B132)","v":""},{"$f":"IF('1. Order'!I132=\"\",\"\",'1. Order'!I132)","v":""},{"$f":"IF('1. Order'!J132=\"\",\"\",'1. Order'!J132)","v":""},{"$f":"IF('1. Order'!K132=\"\",\"\",'1. Order'!K132)","v":""},{"$f":"IF('1. Order'!M132=\"\",\"\",'1. Order'!M132)","v":""},null,null,null,{"$f":"IF('1. Order'!AF132=\"\",\"\",'1. Order'!AF132)","v":""}]
[{"$f":"IF('1. Order'!B133=\"\",\"\",'1. Order'!B133)","v":""},{"$f":"IF('1. Order'!I133=\"\",\"\",'1. Order'!I133)","v":""},{"$f":"IF('1. Order'!J133=\"\",\"\",'1. Order'!J133)","v":""},{"$f":"IF('1. Order'!K133=\"\",\"\",'1. Order'!K133)","v":""},{"$f":"IF('1. Order'!M133=\"\",\"\",'1. Order'!M133)","v":""},null,null,null,{"$f":"IF('1. Order'!AF133=\"\",\"\",'1. Order'!AF133)","v":""}]
[{"$f":"IF('1. Order'!B134=\"\",\"\",'1. Order'!B134)","v":""},{"$f":"IF('1. Order'!I134=\"\",\"\",'1. Order'!I134)","v":""},{"$f":"IF('1. Order'!J134=\"\",\"\",'1. Order'!J134)","v":""},{"$f":"IF('1. Order'!K134=\"\",\"\",'1. Order'!K134)","v":""},{"$f":"IF('1. Order'!M134=\"\",\"\",'1. Order'!M134)","v":""},null,null,null,{"$f":"IF('1. Order'!AF134=\"\",\"\",'1. Order'!AF134)","v":""}]
[{"$f":"IF('1. Order'!B135=\"\",\"\",'1. Order'!B135)","v":""},{"$f":"IF('1. Order'!I135=\"\",\"\",'1. Order'!I135)","v":""},{"$f":"IF('1. Order'!J135=\"\",\"\",'1. Order'!J135)","v":""},{"$f":"IF('1. Order'!K135=\"\",\"\",'1. Order'!K135)","v":""},{"$f":"IF('1. Order'!M135=\"\",\"\",'1. Order'!M135)","v":""},null,null,null,{"$f":"IF('1. Order'!AF135=\"\",\"\",'1. Order'!AF135)","v":""}]
[{"$f":"IF('1. Order'!B136=\"\",\"\",'1. Order'!B136)","v":""},{"$f":"IF('1. Order'!I136=\"\",\"\",'1. Order'!I136)","v":""},{"$f":"IF('1. Order'!J136=\"\",\"\",'1. Order'!J136)","v":""},{"$f":"IF('1. Order'!K136=\"\",\"\",'1. Order'!K136)","v":""},{"$f":"IF('1. Order'!M136=\"\",\"\",'1. Order'!M136)","v":""},null,null,null,{"$f":"IF('1. Order'!AF136=\"\",\"\",'1. Order'!AF136)","v":""}]
[{"$f":"IF('1. Order'!B137=\"\",\"\",'1. Order'!B137)","v":""},{"$f":"IF('1. Order'!I137=\"\",\"\",'1. Order'!I137)","v":""},{"$f":"IF('1. Order'!J137=\"\",\"\",'1. Order'!J137)","v":""},{"$f":"IF('1. Order'!K137=\"\",\"\",'1. Order'!K137)","v":""},{"$f":"IF('1. Order'!M137=\"\",\"\",'1. Order'!M137)","v":""},null,null,null,{"$f":"IF('1. Order'!AF137=\"\",\"\",'1. Order'!AF137)","v":""}]
[{"$f":"IF('1. Order'!B138=\"\",\"\",'1. Order'!B138)","v":""},{"$f":"IF('1. Order'!I138=\"\",\"\",'1. Order'!I138)","v":""},{"$f":"IF('1. Order'!J138=\"\",\"\",'1. Order'!J138)","v":""},{"$f":"IF('1. Order'!K138=\"\",\"\",'1. Order'!K138)","v":""},{"$f":"IF('1. Order'!M138=\"\",\"\",'1. Order'!M138)","v":""},null,null,null,{"$f":"IF('1. Order'!AF138=\"\",\"\",'1. Order'!AF138)","v":""}]
[{"$f":"IF('1. Order'!B139=\"\",\"\",'1. Order'!B139)","v":""},{"$f":"IF('1. Order'!I139=\"\",\"\",'1. Order'!I139)","v":""},{"$f":"IF('1. Order'!J139=\"\",\"\",'1. Order'!J139)","v":""},{"$f":"IF('1. Order'!K139=\"\",\"\",'1. Order'!K139)","v":""},{"$f":"IF('1. Order'!M139=\"\",\"\",'1. Order'!M139)","v":""},null,null,null,{"$f":"IF('1. Order'!AF139=\"\",\"\",'1. Order'!AF139)","v":""}]
[{"$f":"IF('1. Order'!B140=\"\",\"\",'1. Order'!B140)","v":""},{"$f":"IF('1. Order'!I140=\"\",\"\",'1. Order'!I140)","v":""},{"$f":"IF('1. Order'!J140=\"\",\"\",'1. Order'!J140)","v":""},{"$f":"IF('1. Order'!K140=\"\",\"\",'1. Order'!K140)","v":""},{"$f":"IF('1. Order'!M140=\"\",\"\",'1. Order'!M140)","v":""},null,null,null,{"$f":"IF('1. Order'!AF140=\"\",\"\",'1. Order'!AF140)","v":""}]
[{"$f":"IF('1. Order'!B141=\"\",\"\",'1. Order'!B141)","v":""},{"$f":"IF('1. Order'!I141=\"\",\"\",'1. Order'!I141)","v":""},{"$f":"IF('1. Order'!J141=\"\",\"\",'1. Order'!J141)","v":""},{"$f":"IF('1. Order'!K141=\"\",\"\",'1. Order'!K141)","v":""},{"$f":"IF('1. Order'!M141=\"\",\"\",'1. Order'!M141)","v":""},null,null,null,{"$f":"IF('1. Order'!AF141=\"\",\"\",'1. Order'!AF141)","v":""}]
[{"$f":"IF('1. Order'!B142=\"\",\"\",'1. Order'!B142)","v":""},{"$f":"IF('1. Order'!I142=\"\",\"\",'1. Order'!I142)","v":""},{"$f":"IF('1. Order'!J142=\"\",\"\",'1. Order'!J142)","v":""},{"$f":"IF('1. Order'!K142=\"\",\"\",'1. Order'!K142)","v":""},{"$f":"IF('1. Order'!M142=\"\",\"\",'1. Order'!M142)","v":""},null,null,null,{"$f":"IF('1. Order'!AF142=\"\",\"\",'1. Order'!AF142)","v":""}]
[{"$f":"IF('1. Order'!B143=\"\",\"\",'1. Order'!B143)","v":""},{"$f":"IF('1. Order'!I143=\"\",\"\",'1. Order'!I143)","v":""},{"$f":"IF('1. Order'!J143=\"\",\"\",'1. Order'!J143)","v":""},{"$f":"IF('1. Order'!K143=\"\",\"\",'1. Order'!K143)","v":""},{"$f":"IF('1. Order'!M143=\"\",\"\",'1. Order'!M143)","v":""},null,null,null,{"$f":"IF('1. Order'!AF143=\"\",\"\",'1. Order'!AF143)","v":""}]
[{"$f":"IF('1. Order'!B144=\"\",\"\",'1. Order'!B144)","v":""},{"$f":"IF('1. Order'!I144=\"\",\"\",'1. Order'!I144)","v":""},{"$f":"IF('1. Order'!J144=\"\",\"\",'1. Order'!J144)","v":""},{"$f":"IF('1. Order'!K144=\"\",\"\",'1. Order'!K144)","v":""},{"$f":"IF('1. Order'!M144=\"\",\"\",'1. Order'!M144)","v":""},null,null,null,{"$f":"IF('1. Order'!AF144=\"\",\"\",'1. Order'!AF144)","v":""}]
[{"$f":"IF('1. Order'!B145=\"\",\"\",'1. Order'!B145)","v":""},{"$f":"IF('1. Order'!I145=\"\",\"\",'1. Order'!I145)","v":""},{"$f":"IF('1. Order'!J145=\"\",\"\",'1. Order'!J145)","v":""},{"$f":"IF('1. Order'!K145=\"\",\"\",'1. Order'!K145)","v":""},{"$f":"IF('1. Order'!M145=\"\",\"\",'1. Order'!M145)","v":""},null,null,null,{"$f":"IF('1. Order'!AF145=\"\",\"\",'1. Order'!AF145)","v":""}]
[{"$f":"IF('1. Order'!B146=\"\",\"\",'1. Order'!B146)","v":""},{"$f":"IF('1. Order'!I146=\"\",\"\",'1. Order'!I146)","v":""},{"$f":"IF('1. Order'!J146=\"\",\"\",'1. Order'!J146)","v":""},{"$f":"IF('1. Order'!K146=\"\",\"\",'1. Order'!K146)","v":""},{"$f":"IF('1. Order'!M146=\"\",\"\",'1. Order'!M146)","v":""},null,null,null,{"$f":"IF('1. Order'!AF146=\"\",\"\",'1. Order'!AF146)","v":""}]
[{"$f":"IF('1. Order'!B147=\"\",\"\",'1. Order'!B147)","v":""},{"$f":"IF('1. Order'!I147=\"\",\"\",'1. Order'!I147)","v":""},{"$f":"IF('1. Order'!J147=\"\",\"\",'1. Order'!J147)","v":""},{"$f":"IF('1. Order'!K147=\"\",\"\",'1. Order'!K147)","v":""},{"$f":"IF('1. Order'!M147=\"\",\"\",'1. Order'!M147)","v":""},null,null,null,{"$f":"IF('1. Order'!AF147=\"\",\"\",'1. Order'!AF147)","v":""}]
[{"$f":"IF('1. Order'!B148=\"\",\"\",'1. Order'!B148)","v":""},{"$f":"IF('1. Order'!I148=\"\",\"\",'1. Order'!I148)","v":""},{"$f":"IF('1. Order'!J148=\"\",\"\",'1. Order'!J148)","v":""},{"$f":"IF('1. Order'!K148=\"\",\"\",'1. Order'!K148)","v":""},{"$f":"IF('1. Order'!M148=\"\",\"\",'1. Order'!M148)","v":""},null,null,null,{"$f":"IF('1. Order'!AF148=\"\",\"\",'1. Order'!AF148)","v":""}]
[{"$f":"IF('1. Order'!B149=\"\",\"\",'1. Order'!B149)","v":""},{"$f":"IF('1. Order'!I149=\"\",\"\",'1. Order'!I149)","v":""},{"$f":"IF('1. Order'!J149=\"\",\"\",'1. Order'!J149)","v":""},{"$f":"IF('1. Order'!K149=\"\",\"\",'1. Order'!K149)","v":""},{"$f":"IF('1. Order'!M149=\"\",\"\",'1. Order'!M149)","v":""},null,null,null,{"$f":"IF('1. Order'!AF149=\"\",\"\",'1. Order'!AF149)","v":""}]
[{"$f":"IF('1. Order'!B150=\"\",\"\",'1. Order'!B150)","v":""},{"$f":"IF('1. Order'!I150=\"\",\"\",'1. Order'!I150)","v":""},{"$f":"IF('1. Order'!J150=\"\",\"\",'1. Order'!J150)","v":""},{"$f":"IF('1. Order'!K150=\"\",\"\",'1. Order'!K150)","v":""},{"$f":"IF('1. Order'!M150=\"\",\"\",'1. Order'!M150)","v":""},null,null,null,{"$f":"IF('1. Order'!AF150=\"\",\"\",'1. Order'!AF150)","v":""}]
[{"$f":"IF('1. Order'!B151=\"\",\"\",'1. Order'!B151)","v":""},{"$f":"IF('1. Order'!I151=\"\",\"\",'1. Order'!I151)","v":""},{"$f":"IF('1. Order'!J151=\"\",\"\",'1. Order'!J151)","v":""},{"$f":"IF('1. Order'!K151=\"\",\"\",'1. Order'!K151)","v":""},{"$f":"IF('1. Order'!M151=\"\",\"\",'1. Order'!M151)","v":""},null,null,null,{"$f":"IF('1. Order'!AF151=\"\",\"\",'1. Order'!AF151)","v":""}]
[{"$f":"IF('1. Order'!B152=\"\",\"\",'1. Order'!B152)","v":""},{"$f":"IF('1. Order'!I152=\"\",\"\",'1. Order'!I152)","v":""},{"$f":"IF('1. Order'!J152=\"\",\"\",'1. Order'!J152)","v":""},{"$f":"IF('1. Order'!K152=\"\",\"\",'1. Order'!K152)","v":""},{"$f":"IF('1. Order'!M152=\"\",\"\",'1. Order'!M152)","v":""},null,null,null,{"$f":"IF('1. Order'!AF152=\"\",\"\",'1. Order'!AF152)","v":""}]
[{"$f":"IF('1. Order'!B153=\"\",\"\",'1. Order'!B153)","v":""},{"$f":"IF('1. Order'!I153=\"\",\"\",'1. Order'!I153)","v":""},{"$f":"IF('1. Order'!J153=\"\",\"\",'1. Order'!J153)","v":""},{"$f":"IF('1. Order'!K153=\"\",\"\",'1. Order'!K153)","v":""},{"$f":"IF('1. Order'!M153=\"\",\"\",'1. Order'!M153)","v":""},null,null,null,{"$f":"IF('1. Order'!AF153=\"\",\"\",'1. Order'!AF153)","v":""}]
[{"$f":"IF('1. Order'!B154=\"\",\"\",'1. Order'!B154)","v":""},{"$f":"IF('1. Order'!I154=\"\",\"\",'1. Order'!I154)","v":""},{"$f":"IF('1. Order'!J154=\"\",\"\",'1. Order'!J154)","v":""},{"$f":"IF('1. Order'!K154=\"\",\"\",'1. Order'!K154)","v":""},{"$f":"IF('1. Order'!M154=\"\",\"\",'1. Order'!M154)","v":""},null,null,null,{"$f":"IF('1. Order'!AF154=\"\",\"\",'1. Order'!AF154)","v":""}]
[{"$f":"IF('1. Order'!B155=\"\",\"\",'1. Order'!B155)","v":""},{"$f":"IF('1. Order'!I155=\"\",\"\",'1. Order'!I155)","v":""},{"$f":"IF('1. Order'!J155=\"\",\"\",'1. Order'!J155)","v":""},{"$f":"IF('1. Order'!K155=\"\",\"\",'1. Order'!K155)","v":""},{"$f":"IF('1. Order'!M155=\"\",\"\",'1. Order'!M155)","v":""},null,null,null,{"$f":"IF('1. Order'!AF155=\"\",\"\",'1. Order'!AF155)","v":""}]
[{"$f":"IF('1. Order'!B156=\"\",\"\",'1. Order'!B156)","v":""},{"$f":"IF('1. Order'!I156=\"\",\"\",'1. Order'!I156)","v":""},{"$f":"IF('1. Order'!J156=\"\",\"\",'1. Order'!J156)","v":""},{"$f":"IF('1. Order'!K156=\"\",\"\",'1. Order'!K156)","v":""},{"$f":"IF('1. Order'!M156=\"\",\"\",'1. Order'!M156)","v":""},null,null,null,{"$f":"IF('1. Order'!AF156=\"\",\"\",'1. Order'!AF156)","v":""}]
[{"$f":"IF('1. Order'!B157=\"\",\"\",'1. Order'!B157)","v":""},{"$f":"IF('1. Order'!I157=\"\",\"\",'1. Order'!I157)","v":""},{"$f":"IF('1. Order'!J157=\"\",\"\",'1. Order'!J157)","v":""},{"$f":"IF('1. Order'!K157=\"\",\"\",'1. Order'!K157)","v":""},{"$f":"IF('1. Order'!M157=\"\",\"\",'1. Order'!M157)","v":""},null,null,null,{"$f":"IF('1. Order'!AF157=\"\",\"\",'1. Order'!AF157)","v":""}]
[{"$f":"IF('1. Order'!B158=\"\",\"\",'1. Order'!B158)","v":""},{"$f":"IF('1. Order'!I158=\"\",\"\",'1. Order'!I158)","v":""},{"$f":"IF('1. Order'!J158=\"\",\"\",'1. Order'!J158)","v":""},{"$f":"IF('1. Order'!K158=\"\",\"\",'1. Order'!K158)","v":""},{"$f":"IF('1. Order'!M158=\"\",\"\",'1. Order'!M158)","v":""},null,null,null,{"$f":"IF('1. Order'!AF158=\"\",\"\",'1. Order'!AF158)","v":""}]
[{"$f":"IF('1. Order'!B159=\"\",\"\",'1. Order'!B159)","v":""},{"$f":"IF('1. Order'!I159=\"\",\"\",'1. Order'!I159)","v":""},{"$f":"IF('1. Order'!J159=\"\",\"\",'1. Order'!J159)","v":""},{"$f":"IF('1. Order'!K159=\"\",\"\",'1. Order'!K159)","v":""},{"$f":"IF('1. Order'!M159=\"\",\"\",'1. Order'!M159)","v":""},null,null,null,{"$f":"IF('1. Order'!AF159=\"\",\"\",'1. Order'!AF159)","v":""}]
[{"$f":"IF('1. Order'!B160=\"\",\"\",'1. Order'!B160)","v":""},{"$f":"IF('1. Order'!I160=\"\",\"\",'1. Order'!I160)","v":""},{"$f":"IF('1. Order'!J160=\"\",\"\",'1. Order'!J160)","v":""},{"$f":"IF('1. Order'!K160=\"\",\"\",'1. Order'!K160)","v":""},{"$f":"IF('1. Order'!M160=\"\",\"\",'1. Order'!M160)","v":""},null,null,null,{"$f":"IF('1. Order'!AF160=\"\",\"\",'1. Order'!AF160)","v":""}]
[{"$f":"IF('1. Order'!B161=\"\",\"\",'1. Order'!B161)","v":""},{"$f":"IF('1. Order'!I161=\"\",\"\",'1. Order'!I161)","v":""},{"$f":"IF('1. Order'!J161=\"\",\"\",'1. Order'!J161)","v":""},{"$f":"IF('1. Order'!K161=\"\",\"\",'1. Order'!K161)","v":""},{"$f":"IF('1. Order'!M161=\"\",\"\",'1. Order'!M161)","v":""},null,null,null,{"$f":"IF('1. Order'!AF161=\"\",\"\",'1. Order'!AF161)","v":""}]
[{"$f":"IF('1. Order'!B162=\"\",\"\",'1. Order'!B162)","v":""},{"$f":"IF('1. Order'!I162=\"\",\"\",'1. Order'!I162)","v":""},{"$f":"IF('1. Order'!J162=\"\",\"\",'1. Order'!J162)","v":""},{"$f":"IF('1. Order'!K162=\"\",\"\",'1. Order'!K162)","v":""},{"$f":"IF('1. Order'!M162=\"\",\"\",'1. Order'!M162)","v":""},null,null,null,{"$f":"IF('1. Order'!AF162=\"\",\"\",'1. Order'!AF162)","v":""}]
[{"$f":"IF('1. Order'!B163=\"\",\"\",'1. Order'!B163)","v":""},{"$f":"IF('1. Order'!I163=\"\",\"\",'1. Order'!I163)","v":""},{"$f":"IF('1. Order'!J163=\"\",\"\",'1. Order'!J163)","v":""},{"$f":"IF('1. Order'!K163=\"\",\"\",'1. Order'!K163)","v":""},{"$f":"IF('1. Order'!M163=\"\",\"\",'1. Order'!M163)","v":""},null,null,null,{"$f":"IF('1. Order'!AF163=\"\",\"\",'1. Order'!AF163)","v":""}]
[{"$f":"IF('1. Order'!B164=\"\",\"\",'1. Order'!B164)","v":""},{"$f":"IF('1. Order'!I164=\"\",\"\",'1. Order'!I164)","v":""},{"$f":"IF('1. Order'!J164=\"\",\"\",'1. Order'!J164)","v":""},{"$f":"IF('1. Order'!K164=\"\",\"\",'1. Order'!K164)","v":""},{"$f":"IF('1. Order'!M164=\"\",\"\",'1. Order'!M164)","v":""},null,null,null,{"$f":"IF('1. Order'!AF164=\"\",\"\",'1. Order'!AF164)","v":""}]
[{"$f":"IF('1. Order'!B165=\"\",\"\",'1. Order'!B165)","v":""},{"$f":"IF('1. Order'!I165=\"\",\"\",'1. Order'!I165)","v":""},{"$f":"IF('1. Order'!J165=\"\",\"\",'1. Order'!J165)","v":""},{"$f":"IF('1. Order'!K165=\"\",\"\",'1. Order'!K165)","v":""},{"$f":"IF('1. Order'!M165=\"\",\"\",'1. Order'!M165)","v":""},null,null,null,{"$f":"IF('1. Order'!AF165=\"\",\"\",'1. Order'!AF165)","v":""}]
[{"$f":"IF('1. Order'!B166=\"\",\"\",'1. Order'!B166)","v":""},{"$f":"IF('1. Order'!I166=\"\",\"\",'1. Order'!I166)","v":""},{"$f":"IF('1. Order'!J166=\"\",\"\",'1. Order'!J166)","v":""},{"$f":"IF('1. Order'!K166=\"\",\"\",'1. Order'!K166)","v":""},{"$f":"IF('1. Order'!M166=\"\",\"\",'1. Order'!M166)","v":""},null,null,null,{"$f":"IF('1. Order'!AF166=\"\",\"\",'1. Order'!AF166)","v":""}]
[{"$f":"IF('1. Order'!B167=\"\",\"\",'1. Order'!B167)","v":""},{"$f":"IF('1. Order'!I167=\"\",\"\",'1. Order'!I167)","v":""},{"$f":"IF('1. Order'!J167=\"\",\"\",'1. Order'!J167)","v":""},{"$f":"IF('1. Order'!K167=\"\",\"\",'1. Order'!K167)","v":""},{"$f":"IF('1. Order'!M167=\"\",\"\",'1. Order'!M167)","v":""},null,null,null,{"$f":"IF('1. Order'!AF167=\"\",\"\",'1. Order'!AF167)","v":""}]
[{"$f":"IF('1. Order'!B168=\"\",\"\",'1. Order'!B168)","v":""},{"$f":"IF('1. Order'!I168=\"\",\"\",'1. Order'!I168)","v":""},{"$f":"IF('1. Order'!J168=\"\",\"\",'1. Order'!J168)","v":""},{"$f":"IF('1. Order'!K168=\"\",\"\",'1. Order'!K168)","v":""},{"$f":"IF('1. Order'!M168=\"\",\"\",'1. Order'!M168)","v":""},null,null,null,{"$f":"IF('1. Order'!AF168=\"\",\"\",'1. Order'!AF168)","v":""}]
[{"$f":"IF('1. Order'!B169=\"\",\"\",'1. Order'!B169)","v":""},{"$f":"IF('1. Order'!I169=\"\",\"\",'1. Order'!I169)","v":""},{"$f":"IF('1. Order'!J169=\"\",\"\",'1. Order'!J169)","v":""},{"$f":"IF('1. Order'!K169=\"\",\"\",'1. Order'!K169)","v":""},{"$f":"IF('1. Order'!M169=\"\",\"\",'1. Order'!M169)","v":""},null,null,null,{"$f":"IF('1. Order'!AF169=\"\",\"\",'1. Order'!AF169)","v":""}]
[{"$f":"IF('1. Order'!B170=\"\",\"\",'1. Order'!B170)","v":""},{"$f":"IF('1. Order'!I170=\"\",\"\",'1. Order'!I170)","v":""},{"$f":"IF('1. Order'!J170=\"\",\"\",'1. Order'!J170)","v":""},{"$f":"IF('1. Order'!K170=\"\",\"\",'1. Order'!K170)","v":""},{"$f":"IF('1. Order'!M170=\"\",\"\",'1. Order'!M170)","v":""},null,null,null,{"$f":"IF('1. Order'!AF170=\"\",\"\",'1. Order'!AF170)","v":""}]
[{"$f":"IF('1. Order'!B171=\"\",\"\",'1. Order'!B171)","v":""},{"$f":"IF('1. Order'!I171=\"\",\"\",'1. Order'!I171)","v":""},{"$f":"IF('1. Order'!J171=\"\",\"\",'1. Order'!J171)","v":""},{"$f":"IF('1. Order'!K171=\"\",\"\",'1. Order'!K171)","v":""},{"$f":"IF('1. Order'!M171=\"\",\"\",'1. Order'!M171)","v":""},null,null,null,{"$f":"IF('1. Order'!AF171=\"\",\"\",'1. Order'!AF171)","v":""}]
[{"$f":"IF('1. Order'!B172=\"\",\"\",'1. Order'!B172)","v":""},{"$f":"IF('1. Order'!I172=\"\",\"\",'1. Order'!I172)","v":""},{"$f":"IF('1. Order'!J172=\"\",\"\",'1. Order'!J172)","v":""},{"$f":"IF('1. Order'!K172=\"\",\"\",'1. Order'!K172)","v":""},{"$f":"IF('1. Order'!M172=\"\",\"\",'1. Order'!M172)","v":""},null,null,null,{"$f":"IF('1. Order'!AF172=\"\",\"\",'1. Order'!AF172)","v":""}]
[{"$f":"IF('1. Order'!B173=\"\",\"\",'1. Order'!B173)","v":""},{"$f":"IF('1. Order'!I173=\"\",\"\",'1. Order'!I173)","v":""},{"$f":"IF('1. Order'!J173=\"\",\"\",'1. Order'!J173)","v":""},{"$f":"IF('1. Order'!K173=\"\",\"\",'1. Order'!K173)","v":""},{"$f":"IF('1. Order'!M173=\"\",\"\",'1. Order'!M173)","v":""},null,null,null,{"$f":"IF('1. Order'!AF173=\"\",\"\",'1. Order'!AF173)","v":""}]
[{"$f":"IF('1. Order'!B174=\"\",\"\",'1. Order'!B174)","v":""},{"$f":"IF('1. Order'!I174=\"\",\"\",'1. Order'!I174)","v":""},{"$f":"IF('1. Order'!J174=\"\",\"\",'1. Order'!J174)","v":""},{"$f":"IF('1. Order'!K174=\"\",\"\",'1. Order'!K174)","v":""},{"$f":"IF('1. Order'!M174=\"\",\"\",'1. Order'!M174)","v":""},null,null,null,{"$f":"IF('1. Order'!AF174=\"\",\"\",'1. Order'!AF174)","v":""}]
[{"$f":"IF('1. Order'!B175=\"\",\"\",'1. Order'!B175)","v":""},{"$f":"IF('1. Order'!I175=\"\",\"\",'1. Order'!I175)","v":""},{"$f":"IF('1. Order'!J175=\"\",\"\",'1. Order'!J175)","v":""},{"$f":"IF('1. Order'!K175=\"\",\"\",'1. Order'!K175)","v":""},{"$f":"IF('1. Order'!M175=\"\",\"\",'1. Order'!M175)","v":""},null,null,null,{"$f":"IF('1. Order'!AF175=\"\",\"\",'1. Order'!AF175)","v":""}]
[{"$f":"IF('1. Order'!B176=\"\",\"\",'1. Order'!B176)","v":""},{"$f":"IF('1. Order'!I176=\"\",\"\",'1. Order'!I176)","v":""},{"$f":"IF('1. Order'!J176=\"\",\"\",'1. Order'!J176)","v":""},{"$f":"IF('1. Order'!K176=\"\",\"\",'1. Order'!K176)","v":""},{"$f":"IF('1. Order'!M176=\"\",\"\",'1. Order'!M176)","v":""},null,null,null,{"$f":"IF('1. Order'!AF176=\"\",\"\",'1. Order'!AF176)","v":""}]
[{"$f":"IF('1. Order'!B177=\"\",\"\",'1. Order'!B177)","v":""},{"$f":"IF('1. Order'!I177=\"\",\"\",'1. Order'!I177)","v":""},{"$f":"IF('1. Order'!J177=\"\",\"\",'1. Order'!J177)","v":""},{"$f":"IF('1. Order'!K177=\"\",\"\",'1. Order'!K177)","v":""},{"$f":"IF('1. Order'!M177=\"\",\"\",'1. Order'!M177)","v":""},null,null,null,{"$f":"IF('1. Order'!AF177=\"\",\"\",'1. Order'!AF177)","v":""}]
[{"$f":"IF('1. Order'!B178=\"\",\"\",'1. Order'!B178)","v":""},{"$f":"IF('1. Order'!I178=\"\",\"\",'1. Order'!I178)","v":""},{"$f":"IF('1. Order'!J178=\"\",\"\",'1. Order'!J178)","v":""},{"$f":"IF('1. Order'!K178=\"\",\"\",'1. Order'!K178)","v":""},{"$f":"IF('1. Order'!M178=\"\",\"\",'1. Order'!M178)","v":""},null,null,null,{"$f":"IF('1. Order'!AF178=\"\",\"\",'1. Order'!AF178)","v":""}]
[{"$f":"IF('1. Order'!B179=\"\",\"\",'1. Order'!B179)","v":""},{"$f":"IF('1. Order'!I179=\"\",\"\",'1. Order'!I179)","v":""},{"$f":"IF('1. Order'!J179=\"\",\"\",'1. Order'!J179)","v":""},{"$f":"IF('1. Order'!K179=\"\",\"\",'1. Order'!K179)","v":""},{"$f":"IF('1. Order'!M179=\"\",\"\",'1. Order'!M179)","v":""},null,null,null,{"$f":"IF('1. Order'!AF179=\"\",\"\",'1. Order'!AF179)","v":""}]
[{"$f":"IF('1. Order'!B180=\"\",\"\",'1. Order'!B180)","v":""},{"$f":"IF('1. Order'!I180=\"\",\"\",'1. Order'!I180)","v":""},{"$f":"IF('1. Order'!J180=\"\",\"\",'1. Order'!J180)","v":""},{"$f":"IF('1. Order'!K180=\"\",\"\",'1. Order'!K180)","v":""},{"$f":"IF('1. Order'!M180=\"\",\"\",'1. Order'!M180)","v":""},null,null,null,{"$f":"IF('1. Order'!AF180=\"\",\"\",'1. Order'!AF180)","v":""}]
[{"$f":"IF('1. Order'!B181=\"\",\"\",'1. Order'!B181)","v":""},{"$f":"IF('1. Order'!I181=\"\",\"\",'1. Order'!I181)","v":""},{"$f":"IF('1. Order'!J181=\"\",\"\",'1. Order'!J181)","v":""},{"$f":"IF('1. Order'!K181=\"\",\"\",'1. Order'!K181)","v":""},{"$f":"IF('1. Order'!M181=\"\",\"\",'1. Order'!M181)","v":""},null,null,null,{"$f":"IF('1. Order'!AF181=\"\",\"\",'1. Order'!AF181)","v":""}]
[{"$f":"IF('1. Order'!B182=\"\",\"\",'1. Order'!B182)","v":""},{"$f":"IF('1. Order'!I182=\"\",\"\",'1. Order'!I182)","v":""},{"$f":"IF('1. Order'!J182=\"\",\"\",'1. Order'!J182)","v":""},{"$f":"IF('1. Order'!K182=\"\",\"\",'1. Order'!K182)","v":""},{"$f":"IF('1. Order'!M182=\"\",\"\",'1. Order'!M182)","v":""},null,null,null,{"$f":"IF('1. Order'!AF182=\"\",\"\",'1. Order'!AF182)","v":""}]
[{"$f":"IF('1. Order'!B183=\"\",\"\",'1. Order'!B183)","v":""},{"$f":"IF('1. Order'!I183=\"\",\"\",'1. Order'!I183)","v":""},{"$f":"IF('1. Order'!J183=\"\",\"\",'1. Order'!J183)","v":""},{"$f":"IF('1. Order'!K183=\"\",\"\",'1. Order'!K183)","v":""},{"$f":"IF('1. Order'!M183=\"\",\"\",'1. Order'!M183)","v":""},null,null,null,{"$f":"IF('1. Order'!AF183=\"\",\"\",'1. Order'!AF183)","v":""}]
[{"$f":"IF('1. Order'!B184=\"\",\"\",'1. Order'!B184)","v":""},{"$f":"IF('1. Order'!I184=\"\",\"\",'1. Order'!I184)","v":""},{"$f":"IF('1. Order'!J184=\"\",\"\",'1. Order'!J184)","v":""},{"$f":"IF('1. Order'!K184=\"\",\"\",'1. Order'!K184)","v":""},{"$f":"IF('1. Order'!M184=\"\",\"\",'1. Order'!M184)","v":""},null,null,null,{"$f":"IF('1. Order'!AF184=\"\",\"\",'1. Order'!AF184)","v":""}]
[{"$f":"IF('1. Order'!B185=\"\",\"\",'1. Order'!B185)","v":""},{"$f":"IF('1. Order'!I185=\"\",\"\",'1. Order'!I185)","v":""},{"$f":"IF('1. Order'!J185=\"\",\"\",'1. Order'!J185)","v":""},{"$f":"IF('1. Order'!K185=\"\",\"\",'1. Order'!K185)","v":""},{"$f":"IF('1. Order'!M185=\"\",\"\",'1. Order'!M185)","v":""},null,null,null,{"$f":"IF('1. Order'!AF185=\"\",\"\",'1. Order'!AF185)","v":""}]
[{"$f":"IF('1. Order'!B186=\"\",\"\",'1. Order'!B186)","v":""},{"$f":"IF('1. Order'!I186=\"\",\"\",'1. Order'!I186)","v":""},{"$f":"IF('1. Order'!J186=\"\",\"\",'1. Order'!J186)","v":""},{"$f":"IF('1. Order'!K186=\"\",\"\",'1. Order'!K186)","v":""},{"$f":"IF('1. Order'!M186=\"\",\"\",'1. Order'!M186)","v":""},null,null,null,{"$f":"IF('1. Order'!AF186=\"\",\"\",'1. Order'!AF186)","v":""}]
[{"$f":"IF('1. Order'!B187=\"\",\"\",'1. Order'!B187)","v":""},{"$f":"IF('1. Order'!I187=\"\",\"\",'1. Order'!I187)","v":""},{"$f":"IF('1. Order'!J187=\"\",\"\",'1. Order'!J187)","v":""},{"$f":"IF('1. Order'!K187=\"\",\"\",'1. Order'!K187)","v":""},{"$f":"IF('1. Order'!M187=\"\",\"\",'1. Order'!M187)","v":""},null,null,null,{"$f":"IF('1. Order'!AF187=\"\",\"\",'1. Order'!AF187)","v":""}]
[{"$f":"IF('1. Order'!B188=\"\",\"\",'1. Order'!B188)","v":""},{"$f":"IF('1. Order'!I188=\"\",\"\",'1. Order'!I188)","v":""},{"$f":"IF('1. Order'!J188=\"\",\"\",'1. Order'!J188)","v":""},{"$f":"IF('1. Order'!K188=\"\",\"\",'1. Order'!K188)","v":""},{"$f":"IF('1. Order'!M188=\"\",\"\",'1. Order'!M188)","v":""},null,null,null,{"$f":"IF('1. Order'!AF188=\"\",\"\",'1. Order'!AF188)","v":""}]
[{"$f":"IF('1. Order'!B189=\"\",\"\",'1. Order'!B189)","v":""},{"$f":"IF('1. Order'!I189=\"\",\"\",'1. Order'!I189)","v":""},{"$f":"IF('1. Order'!J189=\"\",\"\",'1. Order'!J189)","v":""},{"$f":"IF('1. Order'!K189=\"\",\"\",'1. Order'!K189)","v":""},{"$f":"IF('1. Order'!M189=\"\",\"\",'1. Order'!M189)","v":""},null,null,null,{"$f":"IF('1. Order'!AF189=\"\",\"\",'1. Order'!AF189)","v":""}]
[{"$f":"IF('1. Order'!B190=\"\",\"\",'1. Order'!B190)","v":""},{"$f":"IF('1. Order'!I190=\"\",\"\",'1. Order'!I190)","v":""},{"$f":"IF('1. Order'!J190=\"\",\"\",'1. Order'!J190)","v":""},{"$f":"IF('1. Order'!K190=\"\",\"\",'1. Order'!K190)","v":""},{"$f":"IF('1. Order'!M190=\"\",\"\",'1. Order'!M190)","v":""},null,null,null,{"$f":"IF('1. Order'!AF190=\"\",\"\",'1. Order'!AF190)","v":""}]
[{"$f":"IF('1. Order'!B191=\"\",\"\",'1. Order'!B191)","v":""},{"$f":"IF('1. Order'!I191=\"\",\"\",'1. Order'!I191)","v":""},{"$f":"IF('1. Order'!J191=\"\",\"\",'1. Order'!J191)","v":""},{"$f":"IF('1. Order'!K191=\"\",\"\",'1. Order'!K191)","v":""},{"$f":"IF('1. Order'!M191=\"\",\"\",'1. Order'!M191)","v":""},null,null,null,{"$f":"IF('1. Order'!AF191=\"\",\"\",'1. Order'!AF191)","v":""}]
[{"$f":"IF('1. Order'!B192=\"\",\"\",'1. Order'!B192)","v":""},{"$f":"IF('1. Order'!I192=\"\",\"\",'1. Order'!I192)","v":""},{"$f":"IF('1. Order'!J192=\"\",\"\",'1. Order'!J192)","v":""},{"$f":"IF('1. Order'!K192=\"\",\"\",'1. Order'!K192)","v":""},{"$f":"IF('1. Order'!M192=\"\",\"\",'1. Order'!M192)","v":""},null,null,null,{"$f":"IF('1. Order'!AF192=\"\",\"\",'1. Order'!AF192)","v":""}]
[{"$f":"IF('1. Order'!B193=\"\",\"\",'1. Order'!B193)","v":""},{"$f":"IF('1. Order'!I193=\"\",\"\",'1. Order'!I193)","v":""},{"$f":"IF('1. Order'!J193=\"\",\"\",'1. Order'!J193)","v":""},{"$f":"IF('1. Order'!K193=\"\",\"\",'1. Order'!K193)","v":""},{"$f":"IF('1. Order'!M193=\"\",\"\",'1. Order'!M193)","v":""},null,null,null,{"$f":"IF('1. Order'!AF193=\"\",\"\",'1. Order'!AF193)","v":""}]
[{"$f":"IF('1. Order'!B194=\"\",\"\",'1. Order'!B194)","v":""},{"$f":"IF('1. Order'!I194=\"\",\"\",'1. Order'!I194)","v":""},{"$f":"IF('1. Order'!J194=\"\",\"\",'1. Order'!J194)","v":""},{"$f":"IF('1. Order'!K194=\"\",\"\",'1. Order'!K194)","v":""},{"$f":"IF('1. Order'!M194=\"\",\"\",'1. Order'!M194)","v":""},null,null,null,{"$f":"IF('1. Order'!AF194=\"\",\"\",'1. Order'!AF194)","v":""}]
[{"$f":"IF('1. Order'!B195=\"\",\"\",'1. Order'!B195)","v":""},{"$f":"IF('1. Order'!I195=\"\",\"\",'1. Order'!I195)","v":""},{"$f":"IF('1. Order'!J195=\"\",\"\",'1. Order'!J195)","v":""},{"$f":"IF('1. Order'!K195=\"\",\"\",'1. Order'!K195)","v":""},{"$f":"IF('1. Order'!M195=\"\",\"\",'1. Order'!M195)","v":""},null,null,null,{"$f":"IF('1. Order'!AF195=\"\",\"\",'1. Order'!AF195)","v":""}]
[{"$f":"IF('1. Order'!B196=\"\",\"\",'1. Order'!B196)","v":""},{"$f":"IF('1. Order'!I196=\"\",\"\",'1. Order'!I196)","v":""},{"$f":"IF('1. Order'!J196=\"\",\"\",'1. Order'!J196)","v":""},{"$f":"IF('1. Order'!K196=\"\",\"\",'1. Order'!K196)","v":""},{"$f":"IF('1. Order'!M196=\"\",\"\",'1. Order'!M196)","v":""},null,null,null,{"$f":"IF('1. Order'!AF196=\"\",\"\",'1. Order'!AF196)","v":""}]
[{"$f":"IF('1. Order'!B197=\"\",\"\",'1. Order'!B197)","v":""},{"$f":"IF('1. Order'!I197=\"\",\"\",'1. Order'!I197)","v":""},{"$f":"IF('1. Order'!J197=\"\",\"\",'1. Order'!J197)","v":""},{"$f":"IF('1. Order'!K197=\"\",\"\",'1. Order'!K197)","v":""},{"$f":"IF('1. Order'!M197=\"\",\"\",'1. Order'!M197)","v":""},null,null,null,{"$f":"IF('1. Order'!AF197=\"\",\"\",'1. Order'!AF197)","v":""}]
[{"$f":"IF('1. Order'!B198=\"\",\"\",'1. Order'!B198)","v":""},{"$f":"IF('1. Order'!I198=\"\",\"\",'1. Order'!I198)","v":""},{"$f":"IF('1. Order'!J198=\"\",\"\",'1. Order'!J198)","v":""},{"$f":"IF('1. Order'!K198=\"\",\"\",'1. Order'!K198)","v":""},{"$f":"IF('1. Order'!M198=\"\",\"\",'1. Order'!M198)","v":""},null,null,null,{"$f":"IF('1. Order'!AF198=\"\",\"\",'1. Order'!AF198)","v":""}]
[{"$f":"IF('1. Order'!B199=\"\",\"\",'1. Order'!B199)","v":""},{"$f":"IF('1. Order'!I199=\"\",\"\",'1. Order'!I199)","v":""},{"$f":"IF('1. Order'!J199=\"\",\"\",'1. Order'!J199)","v":""},{"$f":"IF('1. Order'!K199=\"\",\"\",'1. Order'!K199)","v":""},{"$f":"IF('1. Order'!M199=\"\",\"\",'1. Order'!M199)","v":""},null,null,null,{"$f":"IF('1. Order'!AF199=\"\",\"\",'1. Order'!AF199)","v":""}]
[{"$f":"IF('1. Order'!B200=\"\",\"\",'1. Order'!B200)","v":""},{"$f":"IF('1. Order'!I200=\"\",\"\",'1. Order'!I200)","v":""},{"$f":"IF('1. Order'!J200=\"\",\"\",'1. Order'!J200)","v":""},{"$f":"IF('1. Order'!K200=\"\",\"\",'1. Order'!K200)","v":""},{"$f":"IF('1. Order'!M200=\"\",\"\",'1. Order'!M200)","v":""},null,null,null,{"$f":"IF('1. Order'!AF200=\"\",\"\",'1. Order'!AF200)","v":""}]
[{"$f":"IF('1. Order'!B201=\"\",\"\",'1. Order'!B201)","v":""},{"$f":"IF('1. Order'!I201=\"\",\"\",'1. Order'!I201)","v":""},{"$f":"IF('1. Order'!J201=\"\",\"\",'1. Order'!J201)","v":""},{"$f":"IF('1. Order'!K201=\"\",\"\",'1. Order'!K201)","v":""},{"$f":"IF('1. Order'!M201=\"\",\"\",'1. Order'!M201)","v":""},null,null,null,{"$f":"IF('1. Order'!AF201=\"\",\"\",'1. Order'!AF201)","v":""}]
[{"$f":"IF('1. Order'!B202=\"\",\"\",'1. Order'!B202)","v":""},{"$f":"IF('1. Order'!I202=\"\",\"\",'1. Order'!I202)","v":""},{"$f":"IF('1. Order'!J202=\"\",\"\",'1. Order'!J202)","v":""},{"$f":"IF('1. Order'!K202=\"\",\"\",'1. Order'!K202)","v":""},{"$f":"IF('1. Order'!M202=\"\",\"\",'1. Order'!M202)","v":""},null,null,null,{"$f":"IF('1. Order'!AF202=\"\",\"\",'1. Order'!AF202)","v":""}]
[{"$f":"IF('1. Order'!B203=\"\",\"\",'1. Order'!B203)","v":""},{"$f":"IF('1. Order'!I203=\"\",\"\",'1. Order'!I203)","v":""},{"$f":"IF('1. Order'!J203=\"\",\"\",'1. Order'!J203)","v":""},{"$f":"IF('1. Order'!K203=\"\",\"\",'1. Order'!K203)","v":""},{"$f":"IF('1. Order'!M203=\"\",\"\",'1. Order'!M203)","v":""},null,null,null,{"$f":"IF('1. Order'!AF203=\"\",\"\",'1. Order'!AF203)","v":""}]
[{"$f":"IF('1. Order'!B204=\"\",\"\",'1. Order'!B204)","v":""},{"$f":"IF('1. Order'!I204=\"\",\"\",'1. Order'!I204)","v":""},{"$f":"IF('1. Order'!J204=\"\",\"\",'1. Order'!J204)","v":""},{"$f":"IF('1. Order'!K204=\"\",\"\",'1. Order'!K204)","v":""},{"$f":"IF('1. Order'!M204=\"\",\"\",'1. Order'!M204)","v":""},null,null,null,{"$f":"IF('1. Order'!AF204=\"\",\"\",'1. Order'!AF204)","v":""}]
[{"$f":"IF('1. Order'!B205=\"\",\"\",'1. Order'!B205)","v":""},{"$f":"IF('1. Order'!I205=\"\",\"\",'1. Order'!I205)","v":""},{"$f":"IF('1. Order'!J205=\"\",\"\",'1. Order'!J205)","v":""},{"$f":"IF('1. Order'!K205=\"\",\"\",'1. Order'!K205)","v":""},{"$f":"IF('1. Order'!M205=\"\",\"\",'1. Order'!M205)","v":""},null,null,null,{"$f":"IF('1. Order'!AF205=\"\",\"\",'1. Order'!AF205)","v":""}]
[{"$f":"IF('1. Order'!B206=\"\",\"\",'1. Order'!B206)","v":""},{"$f":"IF('1. Order'!I206=\"\",\"\",'1. Order'!I206)","v":""},{"$f":"IF('1. Order'!J206=\"\",\"\",'1. Order'!J206)","v":""},{"$f":"IF('1. Order'!K206=\"\",\"\",'1. Order'!K206)","v":""},{"$f":"IF('1. Order'!M206=\"\",\"\",'1. Order'!M206)","v":""},null,null,null,{"$f":"IF('1. Order'!AF206=\"\",\"\",'1. Order'!AF206)","v":""}]
[{"$f":"IF('1. Order'!B207=\"\",\"\",'1. Order'!B207)","v":""},{"$f":"IF('1. Order'!I207=\"\",\"\",'1. Order'!I207)","v":""},{"$f":"IF('1. Order'!J207=\"\",\"\",'1. Order'!J207)","v":""},{"$f":"IF('1. Order'!K207=\"\",\"\",'1. Order'!K207)","v":""},{"$f":"IF('1. Order'!M207=\"\",\"\",'1. Order'!M207)","v":""},null,null,null,{"$f":"IF('1. Order'!AF207=\"\",\"\",'1. Order'!AF207)","v":""}]
[{"$f":"IF('1. Order'!B208=\"\",\"\",'1. Order'!B208)","v":""},{"$f":"IF('1. Order'!I208=\"\",\"\",'1. Order'!I208)","v":""},{"$f":"IF('1. Order'!J208=\"\",\"\",'1. Order'!J208)","v":""},{"$f":"IF('1. Order'!K208=\"\",\"\",'1. Order'!K208)","v":""},{"$f":"IF('1. Order'!M208=\"\",\"\",'1. Order'!M208)","v":""},null,null,null,{"$f":"IF('1. Order'!AF208=\"\",\"\",'1. Order'!AF208)","v":""}]
[{"$f":"IF('1. Order'!B209=\"\",\"\",'1. Order'!B209)","v":""},{"$f":"IF('1. Order'!I209=\"\",\"\",'1. Order'!I209)","v":""},{"$f":"IF('1. Order'!J209=\"\",\"\",'1. Order'!J209)","v":""},{"$f":"IF('1. Order'!K209=\"\",\"\",'1. Order'!K209)","v":""},{"$f":"IF('1. Order'!M209=\"\",\"\",'1. Order'!M209)","v":""},null,null,null,{"$f":"IF('1. Order'!AF209=\"\",\"\",'1. Order'!AF209)","v":""}]
[{"$f":"IF('1. Order'!B210=\"\",\"\",'1. Order'!B210)","v":""},{"$f":"IF('1. Order'!I210=\"\",\"\",'1. Order'!I210)","v":""},{"$f":"IF('1. Order'!J210=\"\",\"\",'1. Order'!J210)","v":""},{"$f":"IF('1. Order'!K210=\"\",\"\",'1. Order'!K210)","v":""},{"$f":"IF('1. Order'!M210=\"\",\"\",'1. Order'!M210)","v":""},null,null,null,{"$f":"IF('1. Order'!AF210=\"\",\"\",'1. Order'!AF210)","v":""}]
[{"$f":"IF('1. Order'!B211=\"\",\"\",'1. Order'!B211)","v":""},{"$f":"IF('1. Order'!I211=\"\",\"\",'1. Order'!I211)","v":""},{"$f":"IF('1. Order'!J211=\"\",\"\",'1. Order'!J211)","v":""},{"$f":"IF('1. Order'!K211=\"\",\"\",'1. Order'!K211)","v":""},{"$f":"IF('1. Order'!M211=\"\",\"\",'1. Order'!M211)","v":""},null,null,null,{"$f":"IF('1. Order'!AF211=\"\",\"\",'1. Order'!AF211)","v":""}]
[{"$f":"IF('1. Order'!B212=\"\",\"\",'1. Order'!B212)","v":""},{"$f":"IF('1. Order'!I212=\"\",\"\",'1. Order'!I212)","v":""},{"$f":"IF('1. Order'!J212=\"\",\"\",'1. Order'!J212)","v":""},{"$f":"IF('1. Order'!K212=\"\",\"\",'1. Order'!K212)","v":""},{"$f":"IF('1. Order'!M212=\"\",\"\",'1. Order'!M212)","v":""},null,null,null,{"$f":"IF('1. Order'!AF212=\"\",\"\",'1. Order'!AF212)","v":""}]
[{"$f":"IF('1. Order'!B213=\"\",\"\",'1. Order'!B213)","v":""},{"$f":"IF('1. Order'!I213=\"\",\"\",'1. Order'!I213)","v":""},{"$f":"IF('1. Order'!J213=\"\",\"\",'1. Order'!J213)","v":""},{"$f":"IF('1. Order'!K213=\"\",\"\",'1. Order'!K213)","v":""},{"$f":"IF('1. Order'!M213=\"\",\"\",'1. Order'!M213)","v":""},null,null,null,{"$f":"IF('1. Order'!AF213=\"\",\"\",'1. Order'!AF213)","v":""}]
[{"$f":"IF('1. Order'!B214=\"\",\"\",'1. Order'!B214)","v":""},{"$f":"IF('1. Order'!I214=\"\",\"\",'1. Order'!I214)","v":""},{"$f":"IF('1. Order'!J214=\"\",\"\",'1. Order'!J214)","v":""},{"$f":"IF('1. Order'!K214=\"\",\"\",'1. Order'!K214)","v":""},{"$f":"IF('1. Order'!M214=\"\",\"\",'1. Order'!M214)","v":""},null,null,null,{"$f":"IF('1. Order'!AF214=\"\",\"\",'1. Order'!AF214)","v":""}]
[{"$f":"IF('1. Order'!B215=\"\",\"\",'1. Order'!B215)","v":""},{"$f":"IF('1. Order'!I215=\"\",\"\",'1. Order'!I215)","v":""},{"$f":"IF('1. Order'!J215=\"\",\"\",'1. Order'!J215)","v":""},{"$f":"IF('1. Order'!K215=\"\",\"\",'1. Order'!K215)","v":""},{"$f":"IF('1. Order'!M215=\"\",\"\",'1. Order'!M215)","v":""},null,null,null,{"$f":"IF('1. Order'!AF215=\"\",\"\",'1. Order'!AF215)","v":""}]
[{"$f":"IF('1. Order'!B216=\"\",\"\",'1. Order'!B216)","v":""},{"$f":"IF('1. Order'!I216=\"\",\"\",'1. Order'!I216)","v":""},{"$f":"IF('1. Order'!J216=\"\",\"\",'1. Order'!J216)","v":""},{"$f":"IF('1. Order'!K216=\"\",\"\",'1. Order'!K216)","v":""},{"$f":"IF('1. Order'!M216=\"\",\"\",'1. Order'!M216)","v":""},null,null,null,{"$f":"IF('1. Order'!AF216=\"\",\"\",'1. Order'!AF216)","v":""}]
[{"$f":"IF('1. Order'!B217=\"\",\"\",'1. Order'!B217)","v":""},{"$f":"IF('1. Order'!I217=\"\",\"\",'1. Order'!I217)","v":""},{"$f":"IF('1. Order'!J217=\"\",\"\",'1. Order'!J217)","v":""},{"$f":"IF('1. Order'!K217=\"\",\"\",'1. Order'!K217)","v":""},{"$f":"IF('1. Order'!M217=\"\",\"\",'1. Order'!M217)","v":""},null,null,null,{"$f":"IF('1. Order'!AF217=\"\",\"\",'1. Order'!AF217)","v":""}]
[{"$f":"IF('1. Order'!B218=\"\",\"\",'1. Order'!B218)","v":""},{"$f":"IF('1. Order'!I218=\"\",\"\",'1. Order'!I218)","v":""},{"$f":"IF('1. Order'!J218=\"\",\"\",'1. Order'!J218)","v":""},{"$f":"IF('1. Order'!K218=\"\",\"\",'1. Order'!K218)","v":""},{"$f":"IF('1. Order'!M218=\"\",\"\",'1. Order'!M218)","v":""},null,null,null,{"$f":"IF('1. Order'!AF218=\"\",\"\",'1. Order'!AF218)","v":""}]
[{"$f":"IF('1. Order'!B219=\"\",\"\",'1. Order'!B219)","v":""},{"$f":"IF('1. Order'!I219=\"\",\"\",'1. Order'!I219)","v":""},{"$f":"IF('1. Order'!J219=\"\",\"\",'1. Order'!J219)","v":""},{"$f":"IF('1. Order'!K219=\"\",\"\",'1. Order'!K219)","v":""},{"$f":"IF('1. Order'!M219=\"\",\"\",'1. Order'!M219)","v":""},null,null,null,{"$f":"IF('1. Order'!AF219=\"\",\"\",'1. Order'!AF219)","v":""}]
[{"$f":"IF('1. Order'!B220=\"\",\"\",'1. Order'!B220)","v":""},{"$f":"IF('1. Order'!I220=\"\",\"\",'1. Order'!I220)","v":""},{"$f":"IF('1. Order'!J220=\"\",\"\",'1. Order'!J220)","v":""},{"$f":"IF('1. Order'!K220=\"\",\"\",'1. Order'!K220)","v":""},{"$f":"IF('1. Order'!M220=\"\",\"\",'1. Order'!M220)","v":""},null,null,null,{"$f":"IF('1. Order'!AF220=\"\",\"\",'1. Order'!AF220)","v":""}]
[{"$f":"IF('1. Order'!B221=\"\",\"\",'1. Order'!B221)","v":""},{"$f":"IF('1. Order'!I221=\"\",\"\",'1. Order'!I221)","v":""},{"$f":"IF('1. Order'!J221=\"\",\"\",'1. Order'!J221)","v":""},{"$f":"IF('1. Order'!K221=\"\",\"\",'1. Order'!K221)","v":""},{"$f":"IF('1. Order'!M221=\"\",\"\",'1. Order'!M221)","v":""},null,null,null,{"$f":"IF('1. Order'!AF221=\"\",\"\",'1. Order'!AF221)","v":""}]
[{"$f":"IF('1. Order'!B222=\"\",\"\",'1. Order'!B222)","v":""},{"$f":"IF('1. Order'!I222=\"\",\"\",'1. Order'!I222)","v":""},{"$f":"IF('1. Order'!J222=\"\",\"\",'1. Order'!J222)","v":""},{"$f":"IF('1. Order'!K222=\"\",\"\",'1. Order'!K222)","v":""},{"$f":"IF('1. Order'!M222=\"\",\"\",'1. Order'!M222)","v":""},null,null,null,{"$f":"IF('1. Order'!AF222=\"\",\"\",'1. Order'!AF222)","v":""}]
[{"$f":"IF('1. Order'!B223=\"\",\"\",'1. Order'!B223)","v":""},{"$f":"IF('1. Order'!I223=\"\",\"\",'1. Order'!I223)","v":""},{"$f":"IF('1. Order'!J223=\"\",\"\",'1. Order'!J223)","v":""},{"$f":"IF('1. Order'!K223=\"\",\"\",'1. Order'!K223)","v":""},{"$f":"IF('1. Order'!M223=\"\",\"\",'1. Order'!M223)","v":""},null,null,null,{"$f":"IF('1. Order'!AF223=\"\",\"\",'1. Order'!AF223)","v":""}]
[{"$f":"IF('1. Order'!B224=\"\",\"\",'1. Order'!B224)","v":""},{"$f":"IF('1. Order'!I224=\"\",\"\",'1. Order'!I224)","v":""},{"$f":"IF('1. Order'!J224=\"\",\"\",'1. Order'!J224)","v":""},{"$f":"IF('1. Order'!K224=\"\",\"\",'1. Order'!K224)","v":""},{"$f":"IF('1. Order'!M224=\"\",\"\",'1. Order'!M224)","v":""},null,null,null,{"$f":"IF('1. Order'!AF224=\"\",\"\",'1. Order'!AF224)","v":""}]
[{"$f":"IF('1. Order'!B225=\"\",\"\",'1. Order'!B225)","v":""},{"$f":"IF('1. Order'!I225=\"\",\"\",'1. Order'!I225)","v":""},{"$f":"IF('1. Order'!J225=\"\",\"\",'1. Order'!J225)","v":""},{"$f":"IF('1. Order'!K225=\"\",\"\",'1. Order'!K225)","v":""},{"$f":"IF('1. Order'!M225=\"\",\"\",'1. Order'!M225)","v":""},null,null,null,{"$f":"IF('1. Order'!AF225=\"\",\"\",'1. Order'!AF225)","v":""}]
[{"$f":"IF('1. Order'!B226=\"\",\"\",'1. Order'!B226)","v":""},{"$f":"IF('1. Order'!I226=\"\",\"\",'1. Order'!I226)","v":""},{"$f":"IF('1. Order'!J226=\"\",\"\",'1. Order'!J226)","v":""},{"$f":"IF('1. Order'!K226=\"\",\"\",'1. Order'!K226)","v":""},{"$f":"IF('1. Order'!M226=\"\",\"\",'1. Order'!M226)","v":""},null,null,null,{"$f":"IF('1. Order'!AF226=\"\",\"\",'1. Order'!AF226)","v":""}]
[{"$f":"IF('1. Order'!B227=\"\",\"\",'1. Order'!B227)","v":""},{"$f":"IF('1. Order'!I227=\"\",\"\",'1. Order'!I227)","v":""},{"$f":"IF('1. Order'!J227=\"\",\"\",'1. Order'!J227)","v":""},{"$f":"IF('1. Order'!K227=\"\",\"\",'1. Order'!K227)","v":""},{"$f":"IF('1. Order'!M227=\"\",\"\",'1. Order'!M227)","v":""},null,null,null,{"$f":"IF('1. Order'!AF227=\"\",\"\",'1. Order'!AF227)","v":""}]
[{"$f":"IF('1. Order'!B228=\"\",\"\",'1. Order'!B228)","v":""},{"$f":"IF('1. Order'!I228=\"\",\"\",'1. Order'!I228)","v":""},{"$f":"IF('1. Order'!J228=\"\",\"\",'1. Order'!J228)","v":""},{"$f":"IF('1. Order'!K228=\"\",\"\",'1. Order'!K228)","v":""},{"$f":"IF('1. Order'!M228=\"\",\"\",'1. Order'!M228)","v":""},null,null,null,{"$f":"IF('1. Order'!AF228=\"\",\"\",'1. Order'!AF228)","v":""}]
[{"$f":"IF('1. Order'!B229=\"\",\"\",'1. Order'!B229)","v":""},{"$f":"IF('1. Order'!I229=\"\",\"\",'1. Order'!I229)","v":""},{"$f":"IF('1. Order'!J229=\"\",\"\",'1. Order'!J229)","v":""},{"$f":"IF('1. Order'!K229=\"\",\"\",'1. Order'!K229)","v":""},{"$f":"IF('1. Order'!M229=\"\",\"\",'1. Order'!M229)","v":""},null,null,null,{"$f":"IF('1. Order'!AF229=\"\",\"\",'1. Order'!AF229)","v":""}]
[{"$f":"IF('1. Order'!B230=\"\",\"\",'1. Order'!B230)","v":""},{"$f":"IF('1. Order'!I230=\"\",\"\",'1. Order'!I230)","v":""},{"$f":"IF('1. Order'!J230=\"\",\"\",'1. Order'!J230)","v":""},{"$f":"IF('1. Order'!K230=\"\",\"\",'1. Order'!K230)","v":""},{"$f":"IF('1. Order'!M230=\"\",\"\",'1. Order'!M230)","v":""},null,null,null,{"$f":"IF('1. Order'!AF230=\"\",\"\",'1. Order'!AF230)","v":""}]
[{"$f":"IF('1. Order'!B231=\"\",\"\",'1. Order'!B231)","v":""},{"$f":"IF('1. Order'!I231=\"\",\"\",'1. Order'!I231)","v":""},{"$f":"IF('1. Order'!J231=\"\",\"\",'1. Order'!J231)","v":""},{"$f":"IF('1. Order'!K231=\"\",\"\",'1. Order'!K231)","v":""},{"$f":"IF('1. Order'!M231=\"\",\"\",'1. Order'!M231)","v":""},null,null,null,{"$f":"IF('1. Order'!AF231=\"\",\"\",'1. Order'!AF231)","v":""}]
[{"$f":"IF('1. Order'!B232=\"\",\"\",'1. Order'!B232)","v":""},{"$f":"IF('1. Order'!I232=\"\",\"\",'1. Order'!I232)","v":""},{"$f":"IF('1. Order'!J232=\"\",\"\",'1. Order'!J232)","v":""},{"$f":"IF('1. Order'!K232=\"\",\"\",'1. Order'!K232)","v":""},{"$f":"IF('1. Order'!M232=\"\",\"\",'1. Order'!M232)","v":""},null,null,null,{"$f":"IF('1. Order'!AF232=\"\",\"\",'1. Order'!AF232)","v":""}]
[{"$f":"IF('1. Order'!B233=\"\",\"\",'1. Order'!B233)","v":""},{"$f":"IF('1. Order'!I233=\"\",\"\",'1. Order'!I233)","v":""},{"$f":"IF('1. Order'!J233=\"\",\"\",'1. Order'!J233)","v":""},{"$f":"IF('1. Order'!K233=\"\",\"\",'1. Order'!K233)","v":""},{"$f":"IF('1. Order'!M233=\"\",\"\",'1. Order'!M233)","v":""},null,null,null,{"$f":"IF('1. Order'!AF233=\"\",\"\",'1. Order'!AF233)","v":""}]
[{"$f":"IF('1. Order'!B234=\"\",\"\",'1. Order'!B234)","v":""},{"$f":"IF('1. Order'!I234=\"\",\"\",'1. Order'!I234)","v":""},{"$f":"IF('1. Order'!J234=\"\",\"\",'1. Order'!J234)","v":""},{"$f":"IF('1. Order'!K234=\"\",\"\",'1. Order'!K234)","v":""},{"$f":"IF('1. Order'!M234=\"\",\"\",'1. Order'!M234)","v":""},null,null,null,{"$f":"IF('1. Order'!AF234=\"\",\"\",'1. Order'!AF234)","v":""}]
[{"$f":"IF('1. Order'!B235=\"\",\"\",'1. Order'!B235)","v":""},{"$f":"IF('1. Order'!I235=\"\",\"\",'1. Order'!I235)","v":""},{"$f":"IF('1. Order'!J235=\"\",\"\",'1. Order'!J235)","v":""},{"$f":"IF('1. Order'!K235=\"\",\"\",'1. Order'!K235)","v":""},{"$f":"IF('1. Order'!M235=\"\",\"\",'1. Order'!M235)","v":""},null,null,null,{"$f":"IF('1. Order'!AF235=\"\",\"\",'1. Order'!AF235)","v":""}]
[{"$f":"IF('1. Order'!B236=\"\",\"\",'1. Order'!B236)","v":""},{"$f":"IF('1. Order'!I236=\"\",\"\",'1. Order'!I236)","v":""},{"$f":"IF('1. Order'!J236=\"\",\"\",'1. Order'!J236)","v":""},{"$f":"IF('1. Order'!K236=\"\",\"\",'1. Order'!K236)","v":""},{"$f":"IF('1. Order'!M236=\"\",\"\",'1. Order'!M236)","v":""},null,null,null,{"$f":"IF('1. Order'!AF236=\"\",\"\",'1. Order'!AF236)","v":""}]
[{"$f":"IF('1. Order'!B237=\"\",\"\",'1. Order'!B237)","v":""},{"$f":"IF('1. Order'!I237=\"\",\"\",'1. Order'!I237)","v":""},{"$f":"IF('1. Order'!J237=\"\",\"\",'1. Order'!J237)","v":""},{"$f":"IF('1. Order'!K237=\"\",\"\",'1. Order'!K237)","v":""},{"$f":"IF('1. Order'!M237=\"\",\"\",'1. Order'!M237)","v":""},null,null,null,{"$f":"IF('1. Order'!AF237=\"\",\"\",'1. Order'!AF237)","v":""}]
[{"$f":"IF('1. Order'!B238=\"\",\"\",'1. Order'!B238)","v":""},{"$f":"IF('1. Order'!I238=\"\",\"\",'1. Order'!I238)","v":""},{"$f":"IF('1. Order'!J238=\"\",\"\",'1. Order'!J238)","v":""},{"$f":"IF('1. Order'!K238=\"\",\"\",'1. Order'!K238)","v":""},{"$f":"IF('1. Order'!M238=\"\",\"\",'1. Order'!M238)","v":""},null,null,null,{"$f":"IF('1. Order'!AF238=\"\",\"\",'1. Order'!AF238)","v":""}]
[{"$f":"IF('1. Order'!B239=\"\",\"\",'1. Order'!B239)","v":""},{"$f":"IF('1. Order'!I239=\"\",\"\",'1. Order'!I239)","v":""},{"$f":"IF('1. Order'!J239=\"\",\"\",'1. Order'!J239)","v":""},{"$f":"IF('1. Order'!K239=\"\",\"\",'1. Order'!K239)","v":""},{"$f":"IF('1. Order'!M239=\"\",\"\",'1. Order'!M239)","v":""},null,null,null,{"$f":"IF('1. Order'!AF239=\"\",\"\",'1. Order'!AF239)","v":""}]
[{"$f":"IF('1. Order'!B240=\"\",\"\",'1. Order'!B240)","v":""},{"$f":"IF('1. Order'!I240=\"\",\"\",'1. Order'!I240)","v":""},{"$f":"IF('1. Order'!J240=\"\",\"\",'1. Order'!J240)","v":""},{"$f":"IF('1. Order'!K240=\"\",\"\",'1. Order'!K240)","v":""},{"$f":"IF('1. Order'!M240=\"\",\"\",'1. Order'!M240)","v":""},null,null,null,{"$f":"IF('1. Order'!AF240=\"\",\"\",'1. Order'!AF240)","v":""}]
[{"$f":"IF('1. Order'!B241=\"\",\"\",'1. Order'!B241)","v":""},{"$f":"IF('1. Order'!I241=\"\",\"\",'1. Order'!I241)","v":""},{"$f":"IF('1. Order'!J241=\"\",\"\",'1. Order'!J241)","v":""},{"$f":"IF('1. Order'!K241=\"\",\"\",'1. Order'!K241)","v":""},{"$f":"IF('1. Order'!M241=\"\",\"\",'1. Order'!M241)","v":""},null,null,null,{"$f":"IF('1. Order'!AF241=\"\",\"\",'1. Order'!AF241)","v":""}]
[{"$f":"IF('1. Order'!B242=\"\",\"\",'1. Order'!B242)","v":""},{"$f":"IF('1. Order'!I242=\"\",\"\",'1. Order'!I242)","v":""},{"$f":"IF('1. Order'!J242=\"\",\"\",'1. Order'!J242)","v":""},{"$f":"IF('1. Order'!K242=\"\",\"\",'1. Order'!K242)","v":""},{"$f":"IF('1. Order'!M242=\"\",\"\",'1. Order'!M242)","v":""},null,null,null,{"$f":"IF('1. Order'!AF242=\"\",\"\",'1. Order'!AF242)","v":""}]
[{"$f":"IF('1. Order'!B243=\"\",\"\",'1. Order'!B243)","v":""},{"$f":"IF('1. Order'!I243=\"\",\"\",'1. Order'!I243)","v":""},{"$f":"IF('1. Order'!J243=\"\",\"\",'1. Order'!J243)","v":""},{"$f":"IF('1. Order'!K243=\"\",\"\",'1. Order'!K243)","v":""},{"$f":"IF('1. Order'!M243=\"\",\"\",'1. Order'!M243)","v":""},null,null,null,{"$f":"IF('1. Order'!AF243=\"\",\"\",'1. Order'!AF243)","v":""}]
[{"$f":"IF('1. Order'!B244=\"\",\"\",'1. Order'!B244)","v":""},{"$f":"IF('1. Order'!I244=\"\",\"\",'1. Order'!I244)","v":""},{"$f":"IF('1. Order'!J244=\"\",\"\",'1. Order'!J244)","v":""},{"$f":"IF('1. Order'!K244=\"\",\"\",'1. Order'!K244)","v":""},{"$f":"IF('1. Order'!M244=\"\",\"\",'1. Order'!M244)","v":""},null,null,null,{"$f":"IF('1. Order'!AF244=\"\",\"\",'1. Order'!AF244)","v":""}]
[{"$f":"IF('1. Order'!B245=\"\",\"\",'1. Order'!B245)","v":""},{"$f":"IF('1. Order'!I245=\"\",\"\",'1. Order'!I245)","v":""},{"$f":"IF('1. Order'!J245=\"\",\"\",'1. Order'!J245)","v":""},{"$f":"IF('1. Order'!K245=\"\",\"\",'1. Order'!K245)","v":""},{"$f":"IF('1. Order'!M245=\"\",\"\",'1. Order'!M245)","v":""},null,null,null,{"$f":"IF('1. Order'!AF245=\"\",\"\",'1. Order'!AF245)","v":""}]
[{"$f":"IF('1. Order'!B246=\"\",\"\",'1. Order'!B246)","v":""},{"$f":"IF('1. Order'!I246=\"\",\"\",'1. Order'!I246)","v":""},{"$f":"IF('1. Order'!J246=\"\",\"\",'1. Order'!J246)","v":""},{"$f":"IF('1. Order'!K246=\"\",\"\",'1. Order'!K246)","v":""},{"$f":"IF('1. Order'!M246=\"\",\"\",'1. Order'!M246)","v":""},null,null,null,{"$f":"IF('1. Order'!AF246=\"\",\"\",'1. Order'!AF246)","v":""}]
[{"$f":"IF('1. Order'!B247=\"\",\"\",'1. Order'!B247)","v":""},{"$f":"IF('1. Order'!I247=\"\",\"\",'1. Order'!I247)","v":""},{"$f":"IF('1. Order'!J247=\"\",\"\",'1. Order'!J247)","v":""},{"$f":"IF('1. Order'!K247=\"\",\"\",'1. Order'!K247)","v":""},{"$f":"IF('1. Order'!M247=\"\",\"\",'1. Order'!M247)","v":""},null,null,null,{"$f":"IF('1. Order'!AF247=\"\",\"\",'1. Order'!AF247)","v":""}]
[{"$f":"IF('1. Order'!B248=\"\",\"\",'1. Order'!B248)","v":""},{"$f":"IF('1. Order'!I248=\"\",\"\",'1. Order'!I248)","v":""},{"$f":"IF('1. Order'!J248=\"\",\"\",'1. Order'!J248)","v":""},{"$f":"IF('1. Order'!K248=\"\",\"\",'1. Order'!K248)","v":""},{"$f":"IF('1. Order'!M248=\"\",\"\",'1. Order'!M248)","v":""},null,null,null,{"$f":"IF('1. Order'!AF248=\"\",\"\",'1. Order'!AF248)","v":""}]
[{"$f":"IF('1. Order'!B249=\"\",\"\",'1. Order'!B249)","v":""},{"$f":"IF('1. Order'!I249=\"\",\"\",'1. Order'!I249)","v":""},{"$f":"IF('1. Order'!J249=\"\",\"\",'1. Order'!J249)","v":""},{"$f":"IF('1. Order'!K249=\"\",\"\",'1. Order'!K249)","v":""},{"$f":"IF('1. Order'!M249=\"\",\"\",'1. Order'!M249)","v":""},null,null,null,{"$f":"IF('1. Order'!AF249=\"\",\"\",'1. Order'!AF249)","v":""}]
[{"$f":"IF('1. Order'!B250=\"\",\"\",'1. Order'!B250)","v":""},{"$f":"IF('1. Order'!I250=\"\",\"\",'1. Order'!I250)","v":""},{"$f":"IF('1. Order'!J250=\"\",\"\",'1. Order'!J250)","v":""},{"$f":"IF('1. Order'!K250=\"\",\"\",'1. Order'!K250)","v":""},{"$f":"IF('1. Order'!M250=\"\",\"\",'1. Order'!M250)","v":""},null,null,null,{"$f":"IF('1. Order'!AF250=\"\",\"\",'1. Order'!AF250)","v":""}]
[{"$f":"IF('1. Order'!B251=\"\",\"\",'1. Order'!B251)","v":""},{"$f":"IF('1. Order'!I251=\"\",\"\",'1. Order'!I251)","v":""},{"$f":"IF('1. Order'!J251=\"\",\"\",'1. Order'!J251)","v":""},{"$f":"IF('1. Order'!K251=\"\",\"\",'1. Order'!K251)","v":""},{"$f":"IF('1. Order'!M251=\"\",\"\",'1. Order'!M251)","v":""},null,null,null,{"$f":"IF('1. Order'!AF251=\"\",\"\",'1. Order'!AF251)","v":""}]
[{"$f":"IF('1. Order'!B252=\"\",\"\",'1. Order'!B252)","v":""},{"$f":"IF('1. Order'!I252=\"\",\"\",'1. Order'!I252)","v":""},{"$f":"IF('1. Order'!J252=\"\",\"\",'1. Order'!J252)","v":""},{"$f":"IF('1. Order'!K252=\"\",\"\",'1. Order'!K252)","v":""},{"$f":"IF('1. Order'!M252=\"\",\"\",'1. Order'!M252)","v":""},null,null,null,{"$f":"IF('1. Order'!AF252=\"\",\"\",'1. Order'!AF252)","v":""}]
[{"$f":"IF('1. Order'!B253=\"\",\"\",'1. Order'!B253)","v":""},{"$f":"IF('1. Order'!I253=\"\",\"\",'1. Order'!I253)","v":""},{"$f":"IF('1. Order'!J253=\"\",\"\",'1. Order'!J253)","v":""},{"$f":"IF('1. Order'!K253=\"\",\"\",'1. Order'!K253)","v":""},{"$f":"IF('1. Order'!M253=\"\",\"\",'1. Order'!M253)","v":""},null,null,null,{"$f":"IF('1. Order'!AF253=\"\",\"\",'1. Order'!AF253)","v":""}]
[{"$f":"IF('1. Order'!B254=\"\",\"\",'1. Order'!B254)","v":""},{"$f":"IF('1. Order'!I254=\"\",\"\",'1. Order'!I254)","v":""},{"$f":"IF('1. Order'!J254=\"\",\"\",'1. Order'!J254)","v":""},{"$f":"IF('1. Order'!K254=\"\",\"\",'1. Order'!K254)","v":""},{"$f":"IF('1. Order'!M254=\"\",\"\",'1. Order'!M254)","v":""},null,null,null,{"$f":"IF('1. Order'!AF254=\"\",\"\",'1. Order'!AF254)","v":""}]
[{"$f":"IF('1. Order'!B255=\"\",\"\",'1. Order'!B255)","v":""},{"$f":"IF('1. Order'!I255=\"\",\"\",'1. Order'!I255)","v":""},{"$f":"IF('1. Order'!J255=\"\",\"\",'1. Order'!J255)","v":""},{"$f":"IF('1. Order'!K255=\"\",\"\",'1. Order'!K255)","v":""},{"$f":"IF('1. Order'!M255=\"\",\"\",'1. Order'!M255)","v":""},null,null,null,{"$f":"IF('1. Order'!AF255=\"\",\"\",'1. Order'!AF255)","v":""}]
[{"$f":"IF('1. Order'!B256=\"\",\"\",'1. Order'!B256)","v":""},{"$f":"IF('1. Order'!I256=\"\",\"\",'1. Order'!I256)","v":""},{"$f":"IF('1. Order'!J256=\"\",\"\",'1. Order'!J256)","v":""},{"$f":"IF('1. Order'!K256=\"\",\"\",'1. Order'!K256)","v":""},{"$f":"IF('1. Order'!M256=\"\",\"\",'1. Order'!M256)","v":""},null,null,null,{"$f":"IF('1. Order'!AF256=\"\",\"\",'1. Order'!AF256)","v":""}]
[{"$f":"IF('1. Order'!B257=\"\",\"\",'1. Order'!B257)","v":""},{"$f":"IF('1. Order'!I257=\"\",\"\",'1. Order'!I257)","v":""},{"$f":"IF('1. Order'!J257=\"\",\"\",'1. Order'!J257)","v":""},{"$f":"IF('1. Order'!K257=\"\",\"\",'1. Order'!K257)","v":""},{"$f":"IF('1. Order'!M257=\"\",\"\",'1. Order'!M257)","v":""},null,null,null,{"$f":"IF('1. Order'!AF257=\"\",\"\",'1. Order'!AF257)","v":""}]
[{"$f":"IF('1. Order'!B258=\"\",\"\",'1. Order'!B258)","v":""},{"$f":"IF('1. Order'!I258=\"\",\"\",'1. Order'!I258)","v":""},{"$f":"IF('1. Order'!J258=\"\",\"\",'1. Order'!J258)","v":""},{"$f":"IF('1. Order'!K258=\"\",\"\",'1. Order'!K258)","v":""},{"$f":"IF('1. Order'!M258=\"\",\"\",'1. Order'!M258)","v":""},null,null,null,{"$f":"IF('1. Order'!AF258=\"\",\"\",'1. Order'!AF258)","v":""}]
[{"$f":"IF('1. Order'!B259=\"\",\"\",'1. Order'!B259)","v":""},{"$f":"IF('1. Order'!I259=\"\",\"\",'1. Order'!I259)","v":""},{"$f":"IF('1. Order'!J259=\"\",\"\",'1. Order'!J259)","v":""},{"$f":"IF('1. Order'!K259=\"\",\"\",'1. Order'!K259)","v":""},{"$f":"IF('1. Order'!M259=\"\",\"\",'1. Order'!M259)","v":""},null,null,null,{"$f":"IF('1. Order'!AF259=\"\",\"\",'1. Order'!AF259)","v":""}]
[{"$f":"IF('1. Order'!B260=\"\",\"\",'1. Order'!B260)","v":""},{"$f":"IF('1. Order'!I260=\"\",\"\",'1. Order'!I260)","v":""},{"$f":"IF('1. Order'!J260=\"\",\"\",'1. Order'!J260)","v":""},{"$f":"IF('1. Order'!K260=\"\",\"\",'1. Order'!K260)","v":""},{"$f":"IF('1. Order'!M260=\"\",\"\",'1. Order'!M260)","v":""},null,null,null,{"$f":"IF('1. Order'!AF260=\"\",\"\",'1. Order'!AF260)","v":""}]
[{"$f":"IF('1. Order'!B261=\"\",\"\",'1. Order'!B261)","v":""},{"$f":"IF('1. Order'!I261=\"\",\"\",'1. Order'!I261)","v":""},{"$f":"IF('1. Order'!J261=\"\",\"\",'1. Order'!J261)","v":""},{"$f":"IF('1. Order'!K261=\"\",\"\",'1. Order'!K261)","v":""},{"$f":"IF('1. Order'!M261=\"\",\"\",'1. Order'!M261)","v":""},null,null,null,{"$f":"IF('1. Order'!AF261=\"\",\"\",'1. Order'!AF261)","v":""}]
[{"$f":"IF('1. Order'!B262=\"\",\"\",'1. Order'!B262)","v":""},{"$f":"IF('1. Order'!I262=\"\",\"\",'1. Order'!I262)","v":""},{"$f":"IF('1. Order'!J262=\"\",\"\",'1. Order'!J262)","v":""},{"$f":"IF('1. Order'!K262=\"\",\"\",'1. Order'!K262)","v":""},{"$f":"IF('1. Order'!M262=\"\",\"\",'1. Order'!M262)","v":""},null,null,null,{"$f":"IF('1. Order'!AF262=\"\",\"\",'1. Order'!AF262)","v":""}]
[{"$f":"IF('1. Order'!B263=\"\",\"\",'1. Order'!B263)","v":""},{"$f":"IF('1. Order'!I263=\"\",\"\",'1. Order'!I263)","v":""},{"$f":"IF('1. Order'!J263=\"\",\"\",'1. Order'!J263)","v":""},{"$f":"IF('1. Order'!K263=\"\",\"\",'1. Order'!K263)","v":""},{"$f":"IF('1. Order'!M263=\"\",\"\",'1. Order'!M263)","v":""},null,null,null,{"$f":"IF('1. Order'!AF263=\"\",\"\",'1. Order'!AF263)","v":""}]
[{"$f":"IF('1. Order'!B264=\"\",\"\",'1. Order'!B264)","v":""},{"$f":"IF('1. Order'!I264=\"\",\"\",'1. Order'!I264)","v":""},{"$f":"IF('1. Order'!J264=\"\",\"\",'1. Order'!J264)","v":""},{"$f":"IF('1. Order'!K264=\"\",\"\",'1. Order'!K264)","v":""},{"$f":"IF('1. Order'!M264=\"\",\"\",'1. Order'!M264)","v":""},null,null,null,{"$f":"IF('1. Order'!AF264=\"\",\"\",'1. Order'!AF264)","v":""}]
[{"$f":"IF('1. Order'!B265=\"\",\"\",'1. Order'!B265)","v":""},{"$f":"IF('1. Order'!I265=\"\",\"\",'1. Order'!I265)","v":""},{"$f":"IF('1. Order'!J265=\"\",\"\",'1. Order'!J265)","v":""},{"$f":"IF('1. Order'!K265=\"\",\"\",'1. Order'!K265)","v":""},{"$f":"IF('1. Order'!M265=\"\",\"\",'1. Order'!M265)","v":""},null,null,null,{"$f":"IF('1. Order'!AF265=\"\",\"\",'1. Order'!AF265)","v":""}]
[{"$f":"IF('1. Order'!B266=\"\",\"\",'1. Order'!B266)","v":""},{"$f":"IF('1. Order'!I266=\"\",\"\",'1. Order'!I266)","v":""},{"$f":"IF('1. Order'!J266=\"\",\"\",'1. Order'!J266)","v":""},{"$f":"IF('1. Order'!K266=\"\",\"\",'1. Order'!K266)","v":""},{"$f":"IF('1. Order'!M266=\"\",\"\",'1. Order'!M266)","v":""},null,null,null,{"$f":"IF('1. Order'!AF266=\"\",\"\",'1. Order'!AF266)","v":""}]
[{"$f":"IF('1. Order'!B267=\"\",\"\",'1. Order'!B267)","v":""},{"$f":"IF('1. Order'!I267=\"\",\"\",'1. Order'!I267)","v":""},{"$f":"IF('1. Order'!J267=\"\",\"\",'1. Order'!J267)","v":""},{"$f":"IF('1. Order'!K267=\"\",\"\",'1. Order'!K267)","v":""},{"$f":"IF('1. Order'!M267=\"\",\"\",'1. Order'!M267)","v":""},null,null,null,{"$f":"IF('1. Order'!AF267=\"\",\"\",'1. Order'!AF267)","v":""}]
[{"$f":"IF('1. Order'!B268=\"\",\"\",'1. Order'!B268)","v":""},{"$f":"IF('1. Order'!I268=\"\",\"\",'1. Order'!I268)","v":""},{"$f":"IF('1. Order'!J268=\"\",\"\",'1. Order'!J268)","v":""},{"$f":"IF('1. Order'!K268=\"\",\"\",'1. Order'!K268)","v":""},{"$f":"IF('1. Order'!M268=\"\",\"\",'1. Order'!M268)","v":""},null,null,null,{"$f":"IF('1. Order'!AF268=\"\",\"\",'1. Order'!AF268)","v":""}]
[{"$f":"IF('1. Order'!B269=\"\",\"\",'1. Order'!B269)","v":""},{"$f":"IF('1. Order'!I269=\"\",\"\",'1. Order'!I269)","v":""},{"$f":"IF('1. Order'!J269=\"\",\"\",'1. Order'!J269)","v":""},{"$f":"IF('1. Order'!K269=\"\",\"\",'1. Order'!K269)","v":""},{"$f":"IF('1. Order'!M269=\"\",\"\",'1. Order'!M269)","v":""},null,null,null,{"$f":"IF('1. Order'!AF269=\"\",\"\",'1. Order'!AF269)","v":""}]
[{"$f":"IF('1. Order'!B270=\"\",\"\",'1. Order'!B270)","v":""},{"$f":"IF('1. Order'!I270=\"\",\"\",'1. Order'!I270)","v":""},{"$f":"IF('1. Order'!J270=\"\",\"\",'1. Order'!J270)","v":""},{"$f":"IF('1. Order'!K270=\"\",\"\",'1. Order'!K270)","v":""},{"$f":"IF('1. Order'!M270=\"\",\"\",'1. Order'!M270)","v":""},null,null,null,{"$f":"IF('1. Order'!AF270=\"\",\"\",'1. Order'!AF270)","v":""}]
[{"$f":"IF('1. Order'!B271=\"\",\"\",'1. Order'!B271)","v":""},{"$f":"IF('1. Order'!I271=\"\",\"\",'1. Order'!I271)","v":""},{"$f":"IF('1. Order'!J271=\"\",\"\",'1. Order'!J271)","v":""},{"$f":"IF('1. Order'!K271=\"\",\"\",'1. Order'!K271)","v":""},{"$f":"IF('1. Order'!M271=\"\",\"\",'1. Order'!M271)","v":""},null,null,null,{"$f":"IF('1. Order'!AF271=\"\",\"\",'1. Order'!AF271)","v":""}]
[{"$f":"IF('1. Order'!B272=\"\",\"\",'1. Order'!B272)","v":""},{"$f":"IF('1. Order'!I272=\"\",\"\",'1. Order'!I272)","v":""},{"$f":"IF('1. Order'!J272=\"\",\"\",'1. Order'!J272)","v":""},{"$f":"IF('1. Order'!K272=\"\",\"\",'1. Order'!K272)","v":""},{"$f":"IF('1. Order'!M272=\"\",\"\",'1. Order'!M272)","v":""},null,null,null,{"$f":"IF('1. Order'!AF272=\"\",\"\",'1. Order'!AF272)","v":""}]
[{"$f":"IF('1. Order'!B273=\"\",\"\",'1. Order'!B273)","v":""},{"$f":"IF('1. Order'!I273=\"\",\"\",'1. Order'!I273)","v":""},{"$f":"IF('1. Order'!J273=\"\",\"\",'1. Order'!J273)","v":""},{"$f":"IF('1. Order'!K273=\"\",\"\",'1. Order'!K273)","v":""},{"$f":"IF('1. Order'!M273=\"\",\"\",'1. Order'!M273)","v":""},null,null,null,{"$f":"IF('1. Order'!AF273=\"\",\"\",'1. Order'!AF273)","v":""}]
[{"$f":"IF('1. Order'!B274=\"\",\"\",'1. Order'!B274)","v":""},{"$f":"IF('1. Order'!I274=\"\",\"\",'1. Order'!I274)","v":""},{"$f":"IF('1. Order'!J274=\"\",\"\",'1. Order'!J274)","v":""},{"$f":"IF('1. Order'!K274=\"\",\"\",'1. Order'!K274)","v":""},{"$f":"IF('1. Order'!M274=\"\",\"\",'1. Order'!M274)","v":""},null,null,null,{"$f":"IF('1. Order'!AF274=\"\",\"\",'1. Order'!AF274)","v":""}]
[{"$f":"IF('1. Order'!B275=\"\",\"\",'1. Order'!B275)","v":""},{"$f":"IF('1. Order'!I275=\"\",\"\",'1. Order'!I275)","v":""},{"$f":"IF('1. Order'!J275=\"\",\"\",'1. Order'!J275)","v":""},{"$f":"IF('1. Order'!K275=\"\",\"\",'1. Order'!K275)","v":""},{"$f":"IF('1. Order'!M275=\"\",\"\",'1. Order'!M275)","v":""},null,null,null,{"$f":"IF('1. Order'!AF275=\"\",\"\",'1. Order'!AF275)","v":""}]
[{"$f":"IF('1. Order'!B276=\"\",\"\",'1. Order'!B276)","v":""},{"$f":"IF('1. Order'!I276=\"\",\"\",'1. Order'!I276)","v":""},{"$f":"IF('1. Order'!J276=\"\",\"\",'1. Order'!J276)","v":""},{"$f":"IF('1. Order'!K276=\"\",\"\",'1. Order'!K276)","v":""},{"$f":"IF('1. Order'!M276=\"\",\"\",'1. Order'!M276)","v":""},null,null,null,{"$f":"IF('1. Order'!AF276=\"\",\"\",'1. Order'!AF276)","v":""}]
[{"$f":"IF('1. Order'!B277=\"\",\"\",'1. Order'!B277)","v":""},{"$f":"IF('1. Order'!I277=\"\",\"\",'1. Order'!I277)","v":""},{"$f":"IF('1. Order'!J277=\"\",\"\",'1. Order'!J277)","v":""},{"$f":"IF('1. Order'!K277=\"\",\"\",'1. Order'!K277)","v":""},{"$f":"IF('1. Order'!M277=\"\",\"\",'1. Order'!M277)","v":""},null,null,null,{"$f":"IF('1. Order'!AF277=\"\",\"\",'1. Order'!AF277)","v":""}]
[{"$f":"IF('1. Order'!B278=\"\",\"\",'1. Order'!B278)","v":""},{"$f":"IF('1. Order'!I278=\"\",\"\",'1. Order'!I278)","v":""},{"$f":"IF('1. Order'!J278=\"\",\"\",'1. Order'!J278)","v":""},{"$f":"IF('1. Order'!K278=\"\",\"\",'1. Order'!K278)","v":""},{"$f":"IF('1. Order'!M278=\"\",\"\",'1. Order'!M278)","v":""},null,null,null,{"$f":"IF('1. Order'!AF278=\"\",\"\",'1. Order'!AF278)","v":""}]
[{"$f":"IF('1. Order'!B279=\"\",\"\",'1. Order'!B279)","v":""},{"$f":"IF('1. Order'!I279=\"\",\"\",'1. Order'!I279)","v":""},{"$f":"IF('1. Order'!J279=\"\",\"\",'1. Order'!J279)","v":""},{"$f":"IF('1. Order'!K279=\"\",\"\",'1. Order'!K279)","v":""},{"$f":"IF('1. Order'!M279=\"\",\"\",'1. Order'!M279)","v":""},null,null,null,{"$f":"IF('1. Order'!AF279=\"\",\"\",'1. Order'!AF279)","v":""}]
[{"$f":"IF('1. Order'!B280=\"\",\"\",'1. Order'!B280)","v":""},{"$f":"IF('1. Order'!I280=\"\",\"\",'1. Order'!I280)","v":""},{"$f":"IF('1. Order'!J280=\"\",\"\",'1. Order'!J280)","v":""},{"$f":"IF('1. Order'!K280=\"\",\"\",'1. Order'!K280)","v":""},{"$f":"IF('1. Order'!M280=\"\",\"\",'1. Order'!M280)","v":""},null,null,null,{"$f":"IF('1. Order'!AF280=\"\",\"\",'1. Order'!AF280)","v":""}]
[{"$f":"IF('1. Order'!B281=\"\",\"\",'1. Order'!B281)","v":""},{"$f":"IF('1. Order'!I281=\"\",\"\",'1. Order'!I281)","v":""},{"$f":"IF('1. Order'!J281=\"\",\"\",'1. Order'!J281)","v":""},{"$f":"IF('1. Order'!K281=\"\",\"\",'1. Order'!K281)","v":""},{"$f":"IF('1. Order'!M281=\"\",\"\",'1. Order'!M281)","v":""},null,null,null,{"$f":"IF('1. Order'!AF281=\"\",\"\",'1. Order'!AF281)","v":""}]
[{"$f":"IF('1. Order'!B282=\"\",\"\",'1. Order'!B282)","v":""},{"$f":"IF('1. Order'!I282=\"\",\"\",'1. Order'!I282)","v":""},{"$f":"IF('1. Order'!J282=\"\",\"\",'1. Order'!J282)","v":""},{"$f":"IF('1. Order'!K282=\"\",\"\",'1. Order'!K282)","v":""},{"$f":"IF('1. Order'!M282=\"\",\"\",'1. Order'!M282)","v":""},null,null,null,{"$f":"IF('1. Order'!AF282=\"\",\"\",'1. Order'!AF282)","v":""}]
[{"$f":"IF('1. Order'!B283=\"\",\"\",'1. Order'!B283)","v":""},{"$f":"IF('1. Order'!I283=\"\",\"\",'1. Order'!I283)","v":""},{"$f":"IF('1. Order'!J283=\"\",\"\",'1. Order'!J283)","v":""},{"$f":"IF('1. Order'!K283=\"\",\"\",'1. Order'!K283)","v":""},{"$f":"IF('1. Order'!M283=\"\",\"\",'1. Order'!M283)","v":""},null,null,null,{"$f":"IF('1. Order'!AF283=\"\",\"\",'1. Order'!AF283)","v":""}]
[{"$f":"IF('1. Order'!B284=\"\",\"\",'1. Order'!B284)","v":""},{"$f":"IF('1. Order'!I284=\"\",\"\",'1. Order'!I284)","v":""},{"$f":"IF('1. Order'!J284=\"\",\"\",'1. Order'!J284)","v":""},{"$f":"IF('1. Order'!K284=\"\",\"\",'1. Order'!K284)","v":""},{"$f":"IF('1. Order'!M284=\"\",\"\",'1. Order'!M284)","v":""},null,null,null,{"$f":"IF('1. Order'!AF284=\"\",\"\",'1. Order'!AF284)","v":""}]
[{"$f":"IF('1. Order'!B285=\"\",\"\",'1. Order'!B285)","v":""},{"$f":"IF('1. Order'!I285=\"\",\"\",'1. Order'!I285)","v":""},{"$f":"IF('1. Order'!J285=\"\",\"\",'1. Order'!J285)","v":""},{"$f":"IF('1. Order'!K285=\"\",\"\",'1. Order'!K285)","v":""},{"$f":"IF('1. Order'!M285=\"\",\"\",'1. Order'!M285)","v":""},null,null,null,{"$f":"IF('1. Order'!AF285=\"\",\"\",'1. Order'!AF285)","v":""}]
[{"$f":"IF('1. Order'!B286=\"\",\"\",'1. Order'!B286)","v":""},{"$f":"IF('1. Order'!I286=\"\",\"\",'1. Order'!I286)","v":""},{"$f":"IF('1. Order'!J286=\"\",\"\",'1. Order'!J286)","v":""},{"$f":"IF('1. Order'!K286=\"\",\"\",'1. Order'!K286)","v":""},{"$f":"IF('1. Order'!M286=\"\",\"\",'1. Order'!M286)","v":""},null,null,null,{"$f":"IF('1. Order'!AF286=\"\",\"\",'1. Order'!AF286)","v":""}]
[{"$f":"IF('1. Order'!B287=\"\",\"\",'1. Order'!B287)","v":""},{"$f":"IF('1. Order'!I287=\"\",\"\",'1. Order'!I287)","v":""},{"$f":"IF('1. Order'!J287=\"\",\"\",'1. Order'!J287)","v":""},{"$f":"IF('1. Order'!K287=\"\",\"\",'1. Order'!K287)","v":""},{"$f":"IF('1. Order'!M287=\"\",\"\",'1. Order'!M287)","v":""},null,null,null,{"$f":"IF('1. Order'!AF287=\"\",\"\",'1. Order'!AF287)","v":""}]
[{"$f":"IF('1. Order'!B288=\"\",\"\",'1. Order'!B288)","v":""},{"$f":"IF('1. Order'!I288=\"\",\"\",'1. Order'!I288)","v":""},{"$f":"IF('1. Order'!J288=\"\",\"\",'1. Order'!J288)","v":""},{"$f":"IF('1. Order'!K288=\"\",\"\",'1. Order'!K288)","v":""},{"$f":"IF('1. Order'!M288=\"\",\"\",'1. Order'!M288)","v":""},null,null,null,{"$f":"IF('1. Order'!AF288=\"\",\"\",'1. Order'!AF288)","v":""}]
[{"$f":"IF('1. Order'!B289=\"\",\"\",'1. Order'!B289)","v":""},{"$f":"IF('1. Order'!I289=\"\",\"\",'1. Order'!I289)","v":""},{"$f":"IF('1. Order'!J289=\"\",\"\",'1. Order'!J289)","v":""},{"$f":"IF('1. Order'!K289=\"\",\"\",'1. Order'!K289)","v":""},{"$f":"IF('1. Order'!M289=\"\",\"\",'1. Order'!M289)","v":""},null,null,null,{"$f":"IF('1. Order'!AF289=\"\",\"\",'1. Order'!AF289)","v":""}]
[{"$f":"IF('1. Order'!B290=\"\",\"\",'1. Order'!B290)","v":""},{"$f":"IF('1. Order'!I290=\"\",\"\",'1. Order'!I290)","v":""},{"$f":"IF('1. Order'!J290=\"\",\"\",'1. Order'!J290)","v":""},{"$f":"IF('1. Order'!K290=\"\",\"\",'1. Order'!K290)","v":""},{"$f":"IF('1. Order'!M290=\"\",\"\",'1. Order'!M290)","v":""},null,null,null,{"$f":"IF('1. Order'!AF290=\"\",\"\",'1. Order'!AF290)","v":""}]
[{"$f":"IF('1. Order'!B291=\"\",\"\",'1. Order'!B291)","v":""},{"$f":"IF('1. Order'!I291=\"\",\"\",'1. Order'!I291)","v":""},{"$f":"IF('1. Order'!J291=\"\",\"\",'1. Order'!J291)","v":""},{"$f":"IF('1. Order'!K291=\"\",\"\",'1. Order'!K291)","v":""},{"$f":"IF('1. Order'!M291=\"\",\"\",'1. Order'!M291)","v":""},null,null,null,{"$f":"IF('1. Order'!AF291=\"\",\"\",'1. Order'!AF291)","v":""}]
[{"$f":"IF('1. Order'!B292=\"\",\"\",'1. Order'!B292)","v":""},{"$f":"IF('1. Order'!I292=\"\",\"\",'1. Order'!I292)","v":""},{"$f":"IF('1. Order'!J292=\"\",\"\",'1. Order'!J292)","v":""},{"$f":"IF('1. Order'!K292=\"\",\"\",'1. Order'!K292)","v":""},{"$f":"IF('1. Order'!M292=\"\",\"\",'1. Order'!M292)","v":""},null,null,null,{"$f":"IF('1. Order'!AF292=\"\",\"\",'1. Order'!AF292)","v":""}]
[{"$f":"IF('1. Order'!B293=\"\",\"\",'1. Order'!B293)","v":""},{"$f":"IF('1. Order'!I293=\"\",\"\",'1. Order'!I293)","v":""},{"$f":"IF('1. Order'!J293=\"\",\"\",'1. Order'!J293)","v":""},{"$f":"IF('1. Order'!K293=\"\",\"\",'1. Order'!K293)","v":""},{"$f":"IF('1. Order'!M293=\"\",\"\",'1. Order'!M293)","v":""},null,null,null,{"$f":"IF('1. Order'!AF293=\"\",\"\",'1. Order'!AF293)","v":""}]
[{"$f":"IF('1. Order'!B294=\"\",\"\",'1. Order'!B294)","v":""},{"$f":"IF('1. Order'!I294=\"\",\"\",'1. Order'!I294)","v":""},{"$f":"IF('1. Order'!J294=\"\",\"\",'1. Order'!J294)","v":""},{"$f":"IF('1. Order'!K294=\"\",\"\",'1. Order'!K294)","v":""},{"$f":"IF('1. Order'!M294=\"\",\"\",'1. Order'!M294)","v":""},null,null,null,{"$f":"IF('1. Order'!AF294=\"\",\"\",'1. Order'!AF294)","v":""}]
[{"$f":"IF('1. Order'!B295=\"\",\"\",'1. Order'!B295)","v":""},{"$f":"IF('1. Order'!I295=\"\",\"\",'1. Order'!I295)","v":""},{"$f":"IF('1. Order'!J295=\"\",\"\",'1. Order'!J295)","v":""},{"$f":"IF('1. Order'!K295=\"\",\"\",'1. Order'!K295)","v":""},{"$f":"IF('1. Order'!M295=\"\",\"\",'1. Order'!M295)","v":""},null,null,null,{"$f":"IF('1. Order'!AF295=\"\",\"\",'1. Order'!AF295)","v":""}]
[{"$f":"IF('1. Order'!B296=\"\",\"\",'1. Order'!B296)","v":""},{"$f":"IF('1. Order'!I296=\"\",\"\",'1. Order'!I296)","v":""},{"$f":"IF('1. Order'!J296=\"\",\"\",'1. Order'!J296)","v":""},{"$f":"IF('1. Order'!K296=\"\",\"\",'1. Order'!K296)","v":""},{"$f":"IF('1. Order'!M296=\"\",\"\",'1. Order'!M296)","v":""},null,null,null,{"$f":"IF('1. Order'!AF296=\"\",\"\",'1. Order'!AF296)","v":""}]
[{"$f":"IF('1. Order'!B297=\"\",\"\",'1. Order'!B297)","v":""},{"$f":"IF('1. Order'!I297=\"\",\"\",'1. Order'!I297)","v":""},{"$f":"IF('1. Order'!J297=\"\",\"\",'1. Order'!J297)","v":""},{"$f":"IF('1. Order'!K297=\"\",\"\",'1. Order'!K297)","v":""},{"$f":"IF('1. Order'!M297=\"\",\"\",'1. Order'!M297)","v":""},null,null,null,{"$f":"IF('1. Order'!AF297=\"\",\"\",'1. Order'!AF297)","v":""}]
[{"$f":"IF('1. Order'!B298=\"\",\"\",'1. Order'!B298)","v":""},{"$f":"IF('1. Order'!I298=\"\",\"\",'1. Order'!I298)","v":""},{"$f":"IF('1. Order'!J298=\"\",\"\",'1. Order'!J298)","v":""},{"$f":"IF('1. Order'!K298=\"\",\"\",'1. Order'!K298)","v":""},{"$f":"IF('1. Order'!M298=\"\",\"\",'1. Order'!M298)","v":""},null,null,null,{"$f":"IF('1. Order'!AF298=\"\",\"\",'1. Order'!AF298)","v":""}]
[{"$f":"IF('1. Order'!B299=\"\",\"\",'1. Order'!B299)","v":""},{"$f":"IF('1. Order'!I299=\"\",\"\",'1. Order'!I299)","v":""},{"$f":"IF('1. Order'!J299=\"\",\"\",'1. Order'!J299)","v":""},{"$f":"IF('1. Order'!K299=\"\",\"\",'1. Order'!K299)","v":""},{"$f":"IF('1. Order'!M299=\"\",\"\",'1. Order'!M299)","v":""},null,null,null,{"$f":"IF('1. Order'!AF299=\"\",\"\",'1. Order'!AF299)","v":""}]
[{"$f":"IF('1. Order'!B300=\"\",\"\",'1. Order'!B300)","v":""},{"$f":"IF('1. Order'!I300=\"\",\"\",'1. Order'!I300)","v":""},{"$f":"IF('1. Order'!J300=\"\",\"\",'1. Order'!J300)","v":""},{"$f":"IF('1. Order'!K300=\"\",\"\",'1. Order'!K300)","v":""},{"$f":"IF('1. Order'!M300=\"\",\"\",'1. Order'!M300)","v":""},null,null,null,{"$f":"IF('1. Order'!AF300=\"\",\"\",'1. Order'!AF300)","v":""}]
[{"$f":"IF('1. Order'!B301=\"\",\"\",'1. Order'!B301)","v":""},{"$f":"IF('1. Order'!I301=\"\",\"\",'1. Order'!I301)","v":""},{"$f":"IF('1. Order'!J301=\"\",\"\",'1. Order'!J301)","v":""},{"$f":"IF('1. Order'!K301=\"\",\"\",'1. Order'!K301)","v":""},{"$f":"IF('1. Order'!M301=\"\",\"\",'1. Order'!M301)","v":""},null,null,null,{"$f":"IF('1. Order'!AF301=\"\",\"\",'1. Order'!AF301)","v":""}]
[{"$f":"IF('1. Order'!B302=\"\",\"\",'1. Order'!B302)","v":""},{"$f":"IF('1. Order'!I302=\"\",\"\",'1. Order'!I302)","v":""},{"$f":"IF('1. Order'!J302=\"\",\"\",'1. Order'!J302)","v":""},{"$f":"IF('1. Order'!K302=\"\",\"\",'1. Order'!K302)","v":""},{"$f":"IF('1. Order'!M302=\"\",\"\",'1. Order'!M302)","v":""},null,null,null,{"$f":"IF('1. Order'!AF302=\"\",\"\",'1. Order'!AF302)","v":""}]
[{"$f":"IF('1. Order'!B303=\"\",\"\",'1. Order'!B303)","v":""},{"$f":"IF('1. Order'!I303=\"\",\"\",'1. Order'!I303)","v":""},{"$f":"IF('1. Order'!J303=\"\",\"\",'1. Order'!J303)","v":""},{"$f":"IF('1. Order'!K303=\"\",\"\",'1. Order'!K303)","v":""},{"$f":"IF('1. Order'!M303=\"\",\"\",'1. Order'!M303)","v":""},null,null,null,{"$f":"IF('1. Order'!AF303=\"\",\"\",'1. Order'!AF303)","v":""}]
[{"$f":"IF('1. Order'!B304=\"\",\"\",'1. Order'!B304)","v":""},{"$f":"IF('1. Order'!I304=\"\",\"\",'1. Order'!I304)","v":""},{"$f":"IF('1. Order'!J304=\"\",\"\",'1. Order'!J304)","v":""},{"$f":"IF('1. Order'!K304=\"\",\"\",'1. Order'!K304)","v":""},{"$f":"IF('1. Order'!M304=\"\",\"\",'1. Order'!M304)","v":""},null,null,null,{"$f":"IF('1. Order'!AF304=\"\",\"\",'1. Order'!AF304)","v":""}]
[{"$f":"IF('1. Order'!B305=\"\",\"\",'1. Order'!B305)","v":""},{"$f":"IF('1. Order'!I305=\"\",\"\",'1. Order'!I305)","v":""},{"$f":"IF('1. Order'!J305=\"\",\"\",'1. Order'!J305)","v":""},{"$f":"IF('1. Order'!K305=\"\",\"\",'1. Order'!K305)","v":""},{"$f":"IF('1. Order'!M305=\"\",\"\",'1. Order'!M305)","v":""},null,null,null,{"$f":"IF('1. Order'!AF305=\"\",\"\",'1. Order'!AF305)","v":""}]
[{"$f":"IF('1. Order'!B306=\"\",\"\",'1. Order'!B306)","v":""},{"$f":"IF('1. Order'!I306=\"\",\"\",'1. Order'!I306)","v":""},{"$f":"IF('1. Order'!J306=\"\",\"\",'1. Order'!J306)","v":""},{"$f":"IF('1. Order'!K306=\"\",\"\",'1. Order'!K306)","v":""},{"$f":"IF('1. Order'!M306=\"\",\"\",'1. Order'!M306)","v":""},null,null,null,{"$f":"IF('1. Order'!AF306=\"\",\"\",'1. Order'!AF306)","v":""}]
[{"$f":"IF('1. Order'!B307=\"\",\"\",'1. Order'!B307)","v":""},{"$f":"IF('1. Order'!I307=\"\",\"\",'1. Order'!I307)","v":""},{"$f":"IF('1. Order'!J307=\"\",\"\",'1. Order'!J307)","v":""},{"$f":"IF('1. Order'!K307=\"\",\"\",'1. Order'!K307)","v":""},{"$f":"IF('1. Order'!M307=\"\",\"\",'1. Order'!M307)","v":""},null,null,null,{"$f":"IF('1. Order'!AF307=\"\",\"\",'1. Order'!AF307)","v":""}]
[{"$f":"IF('1. Order'!B308=\"\",\"\",'1. Order'!B308)","v":""},{"$f":"IF('1. Order'!I308=\"\",\"\",'1. Order'!I308)","v":""},{"$f":"IF('1. Order'!J308=\"\",\"\",'1. Order'!J308)","v":""},{"$f":"IF('1. Order'!K308=\"\",\"\",'1. Order'!K308)","v":""},{"$f":"IF('1. Order'!M308=\"\",\"\",'1. Order'!M308)","v":""},null,null,null,{"$f":"IF('1. Order'!AF308=\"\",\"\",'1. Order'!AF308)","v":""}]
[{"$f":"IF('1. Order'!B309=\"\",\"\",'1. Order'!B309)","v":""},{"$f":"IF('1. Order'!I309=\"\",\"\",'1. Order'!I309)","v":""},{"$f":"IF('1. Order'!J309=\"\",\"\",'1. Order'!J309)","v":""},{"$f":"IF('1. Order'!K309=\"\",\"\",'1. Order'!K309)","v":""},{"$f":"IF('1. Order'!M309=\"\",\"\",'1. Order'!M309)","v":""},null,null,null,{"$f":"IF('1. Order'!AF309=\"\",\"\",'1. Order'!AF309)","v":""}]
[{"$f":"IF('1. Order'!B310=\"\",\"\",'1. Order'!B310)","v":""},{"$f":"IF('1. Order'!I310=\"\",\"\",'1. Order'!I310)","v":""},{"$f":"IF('1. Order'!J310=\"\",\"\",'1. Order'!J310)","v":""},{"$f":"IF('1. Order'!K310=\"\",\"\",'1. Order'!K310)","v":""},{"$f":"IF('1. Order'!M310=\"\",\"\",'1. Order'!M310)","v":""},null,null,null,{"$f":"IF('1. Order'!AF310=\"\",\"\",'1. Order'!AF310)","v":""}]
[{"$f":"IF('1. Order'!B311=\"\",\"\",'1. Order'!B311)","v":""},{"$f":"IF('1. Order'!I311=\"\",\"\",'1. Order'!I311)","v":""},{"$f":"IF('1. Order'!J311=\"\",\"\",'1. Order'!J311)","v":""},{"$f":"IF('1. Order'!K311=\"\",\"\",'1. Order'!K311)","v":""},{"$f":"IF('1. Order'!M311=\"\",\"\",'1. Order'!M311)","v":""},null,null,null,{"$f":"IF('1. Order'!AF311=\"\",\"\",'1. Order'!AF311)","v":""}]
[{"$f":"IF('1. Order'!B312=\"\",\"\",'1. Order'!B312)","v":""},{"$f":"IF('1. Order'!I312=\"\",\"\",'1. Order'!I312)","v":""},{"$f":"IF('1. Order'!J312=\"\",\"\",'1. Order'!J312)","v":""},{"$f":"IF('1. Order'!K312=\"\",\"\",'1. Order'!K312)","v":""},{"$f":"IF('1. Order'!M312=\"\",\"\",'1. Order'!M312)","v":""},null,null,null,{"$f":"IF('1. Order'!AF312=\"\",\"\",'1. Order'!AF312)","v":""}]
[{"$f":"IF('1. Order'!B313=\"\",\"\",'1. Order'!B313)","v":""},{"$f":"IF('1. Order'!I313=\"\",\"\",'1. Order'!I313)","v":""},{"$f":"IF('1. Order'!J313=\"\",\"\",'1. Order'!J313)","v":""},{"$f":"IF('1. Order'!K313=\"\",\"\",'1. Order'!K313)","v":""},{"$f":"IF('1. Order'!M313=\"\",\"\",'1. Order'!M313)","v":""},null,null,null,{"$f":"IF('1. Order'!AF313=\"\",\"\",'1. Order'!AF313)","v":""}]
[{"$f":"IF('1. Order'!B314=\"\",\"\",'1. Order'!B314)","v":""},{"$f":"IF('1. Order'!I314=\"\",\"\",'1. Order'!I314)","v":""},{"$f":"IF('1. Order'!J314=\"\",\"\",'1. Order'!J314)","v":""},{"$f":"IF('1. Order'!K314=\"\",\"\",'1. Order'!K314)","v":""},{"$f":"IF('1. Order'!M314=\"\",\"\",'1. Order'!M314)","v":""},null,null,null,{"$f":"IF('1. Order'!AF314=\"\",\"\",'1. Order'!AF314)","v":""}]
[{"$f":"IF('1. Order'!B315=\"\",\"\",'1. Order'!B315)","v":""},{"$f":"IF('1. Order'!I315=\"\",\"\",'1. Order'!I315)","v":""},{"$f":"IF('1. Order'!J315=\"\",\"\",'1. Order'!J315)","v":""},{"$f":"IF('1. Order'!K315=\"\",\"\",'1. Order'!K315)","v":""},{"$f":"IF('1. Order'!M315=\"\",\"\",'1. Order'!M315)","v":""},null,null,null,{"$f":"IF('1. Order'!AF315=\"\",\"\",'1. Order'!AF315)","v":""}]
[{"$f":"IF('1. Order'!B316=\"\",\"\",'1. Order'!B316)","v":""},{"$f":"IF('1. Order'!I316=\"\",\"\",'1. Order'!I316)","v":""},{"$f":"IF('1. Order'!J316=\"\",\"\",'1. Order'!J316)","v":""},{"$f":"IF('1. Order'!K316=\"\",\"\",'1. Order'!K316)","v":""},{"$f":"IF('1. Order'!M316=\"\",\"\",'1. Order'!M316)","v":""},null,null,null,{"$f":"IF('1. Order'!AF316=\"\",\"\",'1. Order'!AF316)","v":""}]
[{"$f":"IF('1. Order'!B317=\"\",\"\",'1. Order'!B317)","v":""},{"$f":"IF('1. Order'!I317=\"\",\"\",'1. Order'!I317)","v":""},{"$f":"IF('1. Order'!J317=\"\",\"\",'1. Order'!J317)","v":""},{"$f":"IF('1. Order'!K317=\"\",\"\",'1. Order'!K317)","v":""},{"$f":"IF('1. Order'!M317=\"\",\"\",'1. Order'!M317)","v":""},null,null,null,{"$f":"IF('1. Order'!AF317=\"\",\"\",'1. Order'!AF317)","v":""}]
[{"$f":"IF('1. Order'!B318=\"\",\"\",'1. Order'!B318)","v":""},{"$f":"IF('1. Order'!I318=\"\",\"\",'1. Order'!I318)","v":""},{"$f":"IF('1. Order'!J318=\"\",\"\",'1. Order'!J318)","v":""},{"$f":"IF('1. Order'!K318=\"\",\"\",'1. Order'!K318)","v":""},{"$f":"IF('1. Order'!M318=\"\",\"\",'1. Order'!M318)","v":""},null,null,null,{"$f":"IF('1. Order'!AF318=\"\",\"\",'1. Order'!AF318)","v":""}]
[{"$f":"IF('1. Order'!B319=\"\",\"\",'1. Order'!B319)","v":""},{"$f":"IF('1. Order'!I319=\"\",\"\",'1. Order'!I319)","v":""},{"$f":"IF('1. Order'!J319=\"\",\"\",'1. Order'!J319)","v":""},{"$f":"IF('1. Order'!K319=\"\",\"\",'1. Order'!K319)","v":""},{"$f":"IF('1. Order'!M319=\"\",\"\",'1. Order'!M319)","v":""},null,null,null,{"$f":"IF('1. Order'!AF319=\"\",\"\",'1. Order'!AF319)","v":""}]
[{"$f":"IF('1. Order'!B320=\"\",\"\",'1. Order'!B320)","v":""},{"$f":"IF('1. Order'!I320=\"\",\"\",'1. Order'!I320)","v":""},{"$f":"IF('1. Order'!J320=\"\",\"\",'1. Order'!J320)","v":""},{"$f":"IF('1. Order'!K320=\"\",\"\",'1. Order'!K320)","v":""},{"$f":"IF('1. Order'!M320=\"\",\"\",'1. Order'!M320)","v":""},null,null,null,{"$f":"IF('1. Order'!AF320=\"\",\"\",'1. Order'!AF320)","v":""}]
[{"$f":"IF('1. Order'!B321=\"\",\"\",'1. Order'!B321)","v":""},{"$f":"IF('1. Order'!I321=\"\",\"\",'1. Order'!I321)","v":""},{"$f":"IF('1. Order'!J321=\"\",\"\",'1. Order'!J321)","v":""},{"$f":"IF('1. Order'!K321=\"\",\"\",'1. Order'!K321)","v":""},{"$f":"IF('1. Order'!M321=\"\",\"\",'1. Order'!M321)","v":""},null,null,null,{"$f":"IF('1. Order'!AF321=\"\",\"\",'1. Order'!AF321)","v":""}]
[{"$f":"IF('1. Order'!B322=\"\",\"\",'1. Order'!B322)","v":""},{"$f":"IF('1. Order'!I322=\"\",\"\",'1. Order'!I322)","v":""},{"$f":"IF('1. Order'!J322=\"\",\"\",'1. Order'!J322)","v":""},{"$f":"IF('1. Order'!K322=\"\",\"\",'1. Order'!K322)","v":""},{"$f":"IF('1. Order'!M322=\"\",\"\",'1. Order'!M322)","v":""},null,null,null,{"$f":"IF('1. Order'!AF322=\"\",\"\",'1. Order'!AF322)","v":""}]
[{"$f":"IF('1. Order'!B323=\"\",\"\",'1. Order'!B323)","v":""},{"$f":"IF('1. Order'!I323=\"\",\"\",'1. Order'!I323)","v":""},{"$f":"IF('1. Order'!J323=\"\",\"\",'1. Order'!J323)","v":""},{"$f":"IF('1. Order'!K323=\"\",\"\",'1. Order'!K323)","v":""},{"$f":"IF('1. Order'!M323=\"\",\"\",'1. Order'!M323)","v":""},null,null,null,{"$f":"IF('1. Order'!AF323=\"\",\"\",'1. Order'!AF323)","v":""}]
[{"$f":"IF('1. Order'!B324=\"\",\"\",'1. Order'!B324)","v":""},{"$f":"IF('1. Order'!I324=\"\",\"\",'1. Order'!I324)","v":""},{"$f":"IF('1. Order'!J324=\"\",\"\",'1. Order'!J324)","v":""},{"$f":"IF('1. Order'!K324=\"\",\"\",'1. Order'!K324)","v":""},{"$f":"IF('1. Order'!M324=\"\",\"\",'1. Order'!M324)","v":""},null,null,null,{"$f":"IF('1. Order'!AF324=\"\",\"\",'1. Order'!AF324)","v":""}]
[{"$f":"IF('1. Order'!B325=\"\",\"\",'1. Order'!B325)","v":""},{"$f":"IF('1. Order'!I325=\"\",\"\",'1. Order'!I325)","v":""},{"$f":"IF('1. Order'!J325=\"\",\"\",'1. Order'!J325)","v":""},{"$f":"IF('1. Order'!K325=\"\",\"\",'1. Order'!K325)","v":""},{"$f":"IF('1. Order'!M325=\"\",\"\",'1. Order'!M325)","v":""},null,null,null,{"$f":"IF('1. Order'!AF325=\"\",\"\",'1. Order'!AF325)","v":""}]
[{"$f":"IF('1. Order'!B326=\"\",\"\",'1. Order'!B326)","v":""},{"$f":"IF('1. Order'!I326=\"\",\"\",'1. Order'!I326)","v":""},{"$f":"IF('1. Order'!J326=\"\",\"\",'1. Order'!J326)","v":""},{"$f":"IF('1. Order'!K326=\"\",\"\",'1. Order'!K326)","v":""},{"$f":"IF('1. Order'!M326=\"\",\"\",'1. Order'!M326)","v":""},null,null,null,{"$f":"IF('1. Order'!AF326=\"\",\"\",'1. Order'!AF326)","v":""}]
[{"$f":"IF('1. Order'!B327=\"\",\"\",'1. Order'!B327)","v":""},{"$f":"IF('1. Order'!I327=\"\",\"\",'1. Order'!I327)","v":""},{"$f":"IF('1. Order'!J327=\"\",\"\",'1. Order'!J327)","v":""},{"$f":"IF('1. Order'!K327=\"\",\"\",'1. Order'!K327)","v":""},{"$f":"IF('1. Order'!M327=\"\",\"\",'1. Order'!M327)","v":""},null,null,null,{"$f":"IF('1. Order'!AF327=\"\",\"\",'1. Order'!AF327)","v":""}]
[{"$f":"IF('1. Order'!B328=\"\",\"\",'1. Order'!B328)","v":""},{"$f":"IF('1. Order'!I328=\"\",\"\",'1. Order'!I328)","v":""},{"$f":"IF('1. Order'!J328=\"\",\"\",'1. Order'!J328)","v":""},{"$f":"IF('1. Order'!K328=\"\",\"\",'1. Order'!K328)","v":""},{"$f":"IF('1. Order'!M328=\"\",\"\",'1. Order'!M328)","v":""},null,null,null,{"$f":"IF('1. Order'!AF328=\"\",\"\",'1. Order'!AF328)","v":""}]
[{"$f":"IF('1. Order'!B329=\"\",\"\",'1. Order'!B329)","v":""},{"$f":"IF('1. Order'!I329=\"\",\"\",'1. Order'!I329)","v":""},{"$f":"IF('1. Order'!J329=\"\",\"\",'1. Order'!J329)","v":""},{"$f":"IF('1. Order'!K329=\"\",\"\",'1. Order'!K329)","v":""},{"$f":"IF('1. Order'!M329=\"\",\"\",'1. Order'!M329)","v":""},null,null,null,{"$f":"IF('1. Order'!AF329=\"\",\"\",'1. Order'!AF329)","v":""}]
[{"$f":"IF('1. Order'!B330=\"\",\"\",'1. Order'!B330)","v":""},{"$f":"IF('1. Order'!I330=\"\",\"\",'1. Order'!I330)","v":""},{"$f":"IF('1. Order'!J330=\"\",\"\",'1. Order'!J330)","v":""},{"$f":"IF('1. Order'!K330=\"\",\"\",'1. Order'!K330)","v":""},{"$f":"IF('1. Order'!M330=\"\",\"\",'1. Order'!M330)","v":""},null,null,null,{"$f":"IF('1. Order'!AF330=\"\",\"\",'1. Order'!AF330)","v":""}]
[{"$f":"IF('1. Order'!B331=\"\",\"\",'1. Order'!B331)","v":""},{"$f":"IF('1. Order'!I331=\"\",\"\",'1. Order'!I331)","v":""},{"$f":"IF('1. Order'!J331=\"\",\"\",'1. Order'!J331)","v":""},{"$f":"IF('1. Order'!K331=\"\",\"\",'1. Order'!K331)","v":""},{"$f":"IF('1. Order'!M331=\"\",\"\",'1. Order'!M331)","v":""},null,null,null,{"$f":"IF('1. Order'!AF331=\"\",\"\",'1. Order'!AF331)","v":""}]
[{"$f":"IF('1. Order'!B332=\"\",\"\",'1. Order'!B332)","v":""},{"$f":"IF('1. Order'!I332=\"\",\"\",'1. Order'!I332)","v":""},{"$f":"IF('1. Order'!J332=\"\",\"\",'1. Order'!J332)","v":""},{"$f":"IF('1. Order'!K332=\"\",\"\",'1. Order'!K332)","v":""},{"$f":"IF('1. Order'!M332=\"\",\"\",'1. Order'!M332)","v":""},null,null,null,{"$f":"IF('1. Order'!AF332=\"\",\"\",'1. Order'!AF332)","v":""}]
[{"$f":"IF('1. Order'!B333=\"\",\"\",'1. Order'!B333)","v":""},{"$f":"IF('1. Order'!I333=\"\",\"\",'1. Order'!I333)","v":""},{"$f":"IF('1. Order'!J333=\"\",\"\",'1. Order'!J333)","v":""},{"$f":"IF('1. Order'!K333=\"\",\"\",'1. Order'!K333)","v":""},{"$f":"IF('1. Order'!M333=\"\",\"\",'1. Order'!M333)","v":""},null,null,null,{"$f":"IF('1. Order'!AF333=\"\",\"\",'1. Order'!AF333)","v":""}]
[{"$f":"IF('1. Order'!B334=\"\",\"\",'1. Order'!B334)","v":""},{"$f":"IF('1. Order'!I334=\"\",\"\",'1. Order'!I334)","v":""},{"$f":"IF('1. Order'!J334=\"\",\"\",'1. Order'!J334)","v":""},{"$f":"IF('1. Order'!K334=\"\",\"\",'1. Order'!K334)","v":""},{"$f":"IF('1. Order'!M334=\"\",\"\",'1. Order'!M334)","v":""},null,null,null,{"$f":"IF('1. Order'!AF334=\"\",\"\",'1. Order'!AF334)","v":""}]
[{"$f":"IF('1. Order'!B335=\"\",\"\",'1. Order'!B335)","v":""},{"$f":"IF('1. Order'!I335=\"\",\"\",'1. Order'!I335)","v":""},{"$f":"IF('1. Order'!J335=\"\",\"\",'1. Order'!J335)","v":""},{"$f":"IF('1. Order'!K335=\"\",\"\",'1. Order'!K335)","v":""},{"$f":"IF('1. Order'!M335=\"\",\"\",'1. Order'!M335)","v":""},null,null,null,{"$f":"IF('1. Order'!AF335=\"\",\"\",'1. Order'!AF335)","v":""}]
[{"$f":"IF('1. Order'!B336=\"\",\"\",'1. Order'!B336)","v":""},{"$f":"IF('1. Order'!I336=\"\",\"\",'1. Order'!I336)","v":""},{"$f":"IF('1. Order'!J336=\"\",\"\",'1. Order'!J336)","v":""},{"$f":"IF('1. Order'!K336=\"\",\"\",'1. Order'!K336)","v":""},{"$f":"IF('1. Order'!M336=\"\",\"\",'1. Order'!M336)","v":""},null,null,null,{"$f":"IF('1. Order'!AF336=\"\",\"\",'1. Order'!AF336)","v":""}]
[{"$f":"IF('1. Order'!B337=\"\",\"\",'1. Order'!B337)","v":""},{"$f":"IF('1. Order'!I337=\"\",\"\",'1. Order'!I337)","v":""},{"$f":"IF('1. Order'!J337=\"\",\"\",'1. Order'!J337)","v":""},{"$f":"IF('1. Order'!K337=\"\",\"\",'1. Order'!K337)","v":""},{"$f":"IF('1. Order'!M337=\"\",\"\",'1. Order'!M337)","v":""},null,null,null,{"$f":"IF('1. Order'!AF337=\"\",\"\",'1. Order'!AF337)","v":""}]
[{"$f":"IF('1. Order'!B338=\"\",\"\",'1. Order'!B338)","v":""},{"$f":"IF('1. Order'!I338=\"\",\"\",'1. Order'!I338)","v":""},{"$f":"IF('1. Order'!J338=\"\",\"\",'1. Order'!J338)","v":""},{"$f":"IF('1. Order'!K338=\"\",\"\",'1. Order'!K338)","v":""},{"$f":"IF('1. Order'!M338=\"\",\"\",'1. Order'!M338)","v":""},null,null,null,{"$f":"IF('1. Order'!AF338=\"\",\"\",'1. Order'!AF338)","v":""}]
[{"$f":"IF('1. Order'!B339=\"\",\"\",'1. Order'!B339)","v":""},{"$f":"IF('1. Order'!I339=\"\",\"\",'1. Order'!I339)","v":""},{"$f":"IF('1. Order'!J339=\"\",\"\",'1. Order'!J339)","v":""},{"$f":"IF('1. Order'!K339=\"\",\"\",'1. Order'!K339)","v":""},{"$f":"IF('1. Order'!M339=\"\",\"\",'1. Order'!M339)","v":""},null,null,null,{"$f":"IF('1. Order'!AF339=\"\",\"\",'1. Order'!AF339)","v":""}]
[{"$f":"IF('1. Order'!B340=\"\",\"\",'1. Order'!B340)","v":""},{"$f":"IF('1. Order'!I340=\"\",\"\",'1. Order'!I340)","v":""},{"$f":"IF('1. Order'!J340=\"\",\"\",'1. Order'!J340)","v":""},{"$f":"IF('1. Order'!K340=\"\",\"\",'1. Order'!K340)","v":""},{"$f":"IF('1. Order'!M340=\"\",\"\",'1. Order'!M340)","v":""},null,null,null,{"$f":"IF('1. Order'!AF340=\"\",\"\",'1. Order'!AF340)","v":""}]
[{"$f":"IF('1. Order'!B341=\"\",\"\",'1. Order'!B341)","v":""},{"$f":"IF('1. Order'!I341=\"\",\"\",'1. Order'!I341)","v":""},{"$f":"IF('1. Order'!J341=\"\",\"\",'1. Order'!J341)","v":""},{"$f":"IF('1. Order'!K341=\"\",\"\",'1. Order'!K341)","v":""},{"$f":"IF('1. Order'!M341=\"\",\"\",'1. Order'!M341)","v":""},null,null,null,{"$f":"IF('1. Order'!AF341=\"\",\"\",'1. Order'!AF341)","v":""}]
[{"$f":"IF('1. Order'!B342=\"\",\"\",'1. Order'!B342)","v":""},{"$f":"IF('1. Order'!I342=\"\",\"\",'1. Order'!I342)","v":""},{"$f":"IF('1. Order'!J342=\"\",\"\",'1. Order'!J342)","v":""},{"$f":"IF('1. Order'!K342=\"\",\"\",'1. Order'!K342)","v":""},{"$f":"IF('1. Order'!M342=\"\",\"\",'1. Order'!M342)","v":""},null,null,null,{"$f":"IF('1. Order'!AF342=\"\",\"\",'1. Order'!AF342)","v":""}]
[{"$f":"IF('1. Order'!B343=\"\",\"\",'1. Order'!B343)","v":""},{"$f":"IF('1. Order'!I343=\"\",\"\",'1. Order'!I343)","v":""},{"$f":"IF('1. Order'!J343=\"\",\"\",'1. Order'!J343)","v":""},{"$f":"IF('1. Order'!K343=\"\",\"\",'1. Order'!K343)","v":""},{"$f":"IF('1. Order'!M343=\"\",\"\",'1. Order'!M343)","v":""},null,null,null,{"$f":"IF('1. Order'!AF343=\"\",\"\",'1. Order'!AF343)","v":""}]
[{"$f":"IF('1. Order'!B344=\"\",\"\",'1. Order'!B344)","v":""},{"$f":"IF('1. Order'!I344=\"\",\"\",'1. Order'!I344)","v":""},{"$f":"IF('1. Order'!J344=\"\",\"\",'1. Order'!J344)","v":""},{"$f":"IF('1. Order'!K344=\"\",\"\",'1. Order'!K344)","v":""},{"$f":"IF('1. Order'!M344=\"\",\"\",'1. Order'!M344)","v":""},null,null,null,{"$f":"IF('1. Order'!AF344=\"\",\"\",'1. Order'!AF344)","v":""}]
[{"$f":"IF('1. Order'!B345=\"\",\"\",'1. Order'!B345)","v":""},{"$f":"IF('1. Order'!I345=\"\",\"\",'1. Order'!I345)","v":""},{"$f":"IF('1. Order'!J345=\"\",\"\",'1. Order'!J345)","v":""},{"$f":"IF('1. Order'!K345=\"\",\"\",'1. Order'!K345)","v":""},{"$f":"IF('1. Order'!M345=\"\",\"\",'1. Order'!M345)","v":""},null,null,null,{"$f":"IF('1. Order'!AF345=\"\",\"\",'1. Order'!AF345)","v":""}]
[{"$f":"IF('1. Order'!B346=\"\",\"\",'1. Order'!B346)","v":""},{"$f":"IF('1. Order'!I346=\"\",\"\",'1. Order'!I346)","v":""},{"$f":"IF('1. Order'!J346=\"\",\"\",'1. Order'!J346)","v":""},{"$f":"IF('1. Order'!K346=\"\",\"\",'1. Order'!K346)","v":""},{"$f":"IF('1. Order'!M346=\"\",\"\",'1. Order'!M346)","v":""},null,null,null,{"$f":"IF('1. Order'!AF346=\"\",\"\",'1. Order'!AF346)","v":""}]
[{"$f":"IF('1. Order'!B347=\"\",\"\",'1. Order'!B347)","v":""},{"$f":"IF('1. Order'!I347=\"\",\"\",'1. Order'!I347)","v":""},{"$f":"IF('1. Order'!J347=\"\",\"\",'1. Order'!J347)","v":""},{"$f":"IF('1. Order'!K347=\"\",\"\",'1. Order'!K347)","v":""},{"$f":"IF('1. Order'!M347=\"\",\"\",'1. Order'!M347)","v":""},null,null,null,{"$f":"IF('1. Order'!AF347=\"\",\"\",'1. Order'!AF347)","v":""}]
[{"$f":"IF('1. Order'!B348=\"\",\"\",'1. Order'!B348)","v":""},{"$f":"IF('1. Order'!I348=\"\",\"\",'1. Order'!I348)","v":""},{"$f":"IF('1. Order'!J348=\"\",\"\",'1. Order'!J348)","v":""},{"$f":"IF('1. Order'!K348=\"\",\"\",'1. Order'!K348)","v":""},{"$f":"IF('1. Order'!M348=\"\",\"\",'1. Order'!M348)","v":""},null,null,null,{"$f":"IF('1. Order'!AF348=\"\",\"\",'1. Order'!AF348)","v":""}]
[{"$f":"IF('1. Order'!B349=\"\",\"\",'1. Order'!B349)","v":""},{"$f":"IF('1. Order'!I349=\"\",\"\",'1. Order'!I349)","v":""},{"$f":"IF('1. Order'!J349=\"\",\"\",'1. Order'!J349)","v":""},{"$f":"IF('1. Order'!K349=\"\",\"\",'1. Order'!K349)","v":""},{"$f":"IF('1. Order'!M349=\"\",\"\",'1. Order'!M349)","v":""},null,null,null,{"$f":"IF('1. Order'!AF349=\"\",\"\",'1. Order'!AF349)","v":""}]
[{"$f":"IF('1. Order'!B350=\"\",\"\",'1. Order'!B350)","v":""},{"$f":"IF('1. Order'!I350=\"\",\"\",'1. Order'!I350)","v":""},{"$f":"IF('1. Order'!J350=\"\",\"\",'1. Order'!J350)","v":""},{"$f":"IF('1. Order'!K350=\"\",\"\",'1. Order'!K350)","v":""},{"$f":"IF('1. Order'!M350=\"\",\"\",'1. Order'!M350)","v":""},null,null,null,{"$f":"IF('1. Order'!AF350=\"\",\"\",'1. Order'!AF350)","v":""}]
[{"$f":"IF('1. Order'!B351=\"\",\"\",'1. Order'!B351)","v":""},{"$f":"IF('1. Order'!I351=\"\",\"\",'1. Order'!I351)","v":""},{"$f":"IF('1. Order'!J351=\"\",\"\",'1. Order'!J351)","v":""},{"$f":"IF('1. Order'!K351=\"\",\"\",'1. Order'!K351)","v":""},{"$f":"IF('1. Order'!M351=\"\",\"\",'1. Order'!M351)","v":""},null,null,null,{"$f":"IF('1. Order'!AF351=\"\",\"\",'1. Order'!AF351)","v":""}]
[{"$f":"IF('1. Order'!B352=\"\",\"\",'1. Order'!B352)","v":""},{"$f":"IF('1. Order'!I352=\"\",\"\",'1. Order'!I352)","v":""},{"$f":"IF('1. Order'!J352=\"\",\"\",'1. Order'!J352)","v":""},{"$f":"IF('1. Order'!K352=\"\",\"\",'1. Order'!K352)","v":""},{"$f":"IF('1. Order'!M352=\"\",\"\",'1. Order'!M352)","v":""},null,null,null,{"$f":"IF('1. Order'!AF352=\"\",\"\",'1. Order'!AF352)","v":""}]
[{"$f":"IF('1. Order'!B353=\"\",\"\",'1. Order'!B353)","v":""},{"$f":"IF('1. Order'!I353=\"\",\"\",'1. Order'!I353)","v":""},{"$f":"IF('1. Order'!J353=\"\",\"\",'1. Order'!J353)","v":""},{"$f":"IF('1. Order'!K353=\"\",\"\",'1. Order'!K353)","v":""},{"$f":"IF('1. Order'!M353=\"\",\"\",'1. Order'!M353)","v":""},null,null,null,{"$f":"IF('1. Order'!AF353=\"\",\"\",'1. Order'!AF353)","v":""}]
[{"$f":"IF('1. Order'!B354=\"\",\"\",'1. Order'!B354)","v":""},{"$f":"IF('1. Order'!I354=\"\",\"\",'1. Order'!I354)","v":""},{"$f":"IF('1. Order'!J354=\"\",\"\",'1. Order'!J354)","v":""},{"$f":"IF('1. Order'!K354=\"\",\"\",'1. Order'!K354)","v":""},{"$f":"IF('1. Order'!M354=\"\",\"\",'1. Order'!M354)","v":""},null,null,null,{"$f":"IF('1. Order'!AF354=\"\",\"\",'1. Order'!AF354)","v":""}]
[{"$f":"IF('1. Order'!B355=\"\",\"\",'1. Order'!B355)","v":""},{"$f":"IF('1. Order'!I355=\"\",\"\",'1. Order'!I355)","v":""},{"$f":"IF('1. Order'!J355=\"\",\"\",'1. Order'!J355)","v":""},{"$f":"IF('1. Order'!K355=\"\",\"\",'1. Order'!K355)","v":""},{"$f":"IF('1. Order'!M355=\"\",\"\",'1. Order'!M355)","v":""},null,null,null,{"$f":"IF('1. Order'!AF355=\"\",\"\",'1. Order'!AF355)","v":""}]
[{"$f":"IF('1. Order'!B356=\"\",\"\",'1. Order'!B356)","v":""},{"$f":"IF('1. Order'!I356=\"\",\"\",'1. Order'!I356)","v":""},{"$f":"IF('1. Order'!J356=\"\",\"\",'1. Order'!J356)","v":""},{"$f":"IF('1. Order'!K356=\"\",\"\",'1. Order'!K356)","v":""},{"$f":"IF('1. Order'!M356=\"\",\"\",'1. Order'!M356)","v":""},null,null,null,{"$f":"IF('1. Order'!AF356=\"\",\"\",'1. Order'!AF356)","v":""}]
[{"$f":"IF('1. Order'!B357=\"\",\"\",'1. Order'!B357)","v":""},{"$f":"IF('1. Order'!I357=\"\",\"\",'1. Order'!I357)","v":""},{"$f":"IF('1. Order'!J357=\"\",\"\",'1. Order'!J357)","v":""},{"$f":"IF('1. Order'!K357=\"\",\"\",'1. Order'!K357)","v":""},{"$f":"IF('1. Order'!M357=\"\",\"\",'1. Order'!M357)","v":""},null,null,null,{"$f":"IF('1. Order'!AF357=\"\",\"\",'1. Order'!AF357)","v":""}]
[{"$f":"IF('1. Order'!B358=\"\",\"\",'1. Order'!B358)","v":""},{"$f":"IF('1. Order'!I358=\"\",\"\",'1. Order'!I358)","v":""},{"$f":"IF('1. Order'!J358=\"\",\"\",'1. Order'!J358)","v":""},{"$f":"IF('1. Order'!K358=\"\",\"\",'1. Order'!K358)","v":""},{"$f":"IF('1. Order'!M358=\"\",\"\",'1. Order'!M358)","v":""},null,null,null,{"$f":"IF('1. Order'!AF358=\"\",\"\",'1. Order'!AF358)","v":""}]
[{"$f":"IF('1. Order'!B359=\"\",\"\",'1. Order'!B359)","v":""},{"$f":"IF('1. Order'!I359=\"\",\"\",'1. Order'!I359)","v":""},{"$f":"IF('1. Order'!J359=\"\",\"\",'1. Order'!J359)","v":""},{"$f":"IF('1. Order'!K359=\"\",\"\",'1. Order'!K359)","v":""},{"$f":"IF('1. Order'!M359=\"\",\"\",'1. Order'!M359)","v":""},null,null,null,{"$f":"IF('1. Order'!AF359=\"\",\"\",'1. Order'!AF359)","v":""}]
[{"$f":"IF('1. Order'!B360=\"\",\"\",'1. Order'!B360)","v":""},{"$f":"IF('1. Order'!I360=\"\",\"\",'1. Order'!I360)","v":""},{"$f":"IF('1. Order'!J360=\"\",\"\",'1. Order'!J360)","v":""},{"$f":"IF('1. Order'!K360=\"\",\"\",'1. Order'!K360)","v":""},{"$f":"IF('1. Order'!M360=\"\",\"\",'1. Order'!M360)","v":""},null,null,null,{"$f":"IF('1. Order'!AF360=\"\",\"\",'1. Order'!AF360)","v":""}]
[{"$f":"IF('1. Order'!B361=\"\",\"\",'1. Order'!B361)","v":""},{"$f":"IF('1. Order'!I361=\"\",\"\",'1. Order'!I361)","v":""},{"$f":"IF('1. Order'!J361=\"\",\"\",'1. Order'!J361)","v":""},{"$f":"IF('1. Order'!K361=\"\",\"\",'1. Order'!K361)","v":""},{"$f":"IF('1. Order'!M361=\"\",\"\",'1. Order'!M361)","v":""},null,null,null,{"$f":"IF('1. Order'!AF361=\"\",\"\",'1. Order'!AF361)","v":""}]
[{"$f":"IF('1. Order'!B362=\"\",\"\",'1. Order'!B362)","v":""},{"$f":"IF('1. Order'!I362=\"\",\"\",'1. Order'!I362)","v":""},{"$f":"IF('1. Order'!J362=\"\",\"\",'1. Order'!J362)","v":""},{"$f":"IF('1. Order'!K362=\"\",\"\",'1. Order'!K362)","v":""},{"$f":"IF('1. Order'!M362=\"\",\"\",'1. Order'!M362)","v":""},null,null,null,{"$f":"IF('1. Order'!AF362=\"\",\"\",'1. Order'!AF362)","v":""}]
[{"$f":"IF('1. Order'!B363=\"\",\"\",'1. Order'!B363)","v":""},{"$f":"IF('1. Order'!I363=\"\",\"\",'1. Order'!I363)","v":""},{"$f":"IF('1. Order'!J363=\"\",\"\",'1. Order'!J363)","v":""},{"$f":"IF('1. Order'!K363=\"\",\"\",'1. Order'!K363)","v":""},{"$f":"IF('1. Order'!M363=\"\",\"\",'1. Order'!M363)","v":""},null,null,null,{"$f":"IF('1. Order'!AF363=\"\",\"\",'1. Order'!AF363)","v":""}]
[{"$f":"IF('1. Order'!B364=\"\",\"\",'1. Order'!B364)","v":""},{"$f":"IF('1. Order'!I364=\"\",\"\",'1. Order'!I364)","v":""},{"$f":"IF('1. Order'!J364=\"\",\"\",'1. Order'!J364)","v":""},{"$f":"IF('1. Order'!K364=\"\",\"\",'1. Order'!K364)","v":""},{"$f":"IF('1. Order'!M364=\"\",\"\",'1. Order'!M364)","v":""},null,null,null,{"$f":"IF('1. Order'!AF364=\"\",\"\",'1. Order'!AF364)","v":""}]
[{"$f":"IF('1. Order'!B365=\"\",\"\",'1. Order'!B365)","v":""},{"$f":"IF('1. Order'!I365=\"\",\"\",'1. Order'!I365)","v":""},{"$f":"IF('1. Order'!J365=\"\",\"\",'1. Order'!J365)","v":""},{"$f":"IF('1. Order'!K365=\"\",\"\",'1. Order'!K365)","v":""},{"$f":"IF('1. Order'!M365=\"\",\"\",'1. Order'!M365)","v":""},null,null,null,{"$f":"IF('1. Order'!AF365=\"\",\"\",'1. Order'!AF365)","v":""}]
[{"$f":"IF('1. Order'!B366=\"\",\"\",'1. Order'!B366)","v":""},{"$f":"IF('1. Order'!I366=\"\",\"\",'1. Order'!I366)","v":""},{"$f":"IF('1. Order'!J366=\"\",\"\",'1. Order'!J366)","v":""},{"$f":"IF('1. Order'!K366=\"\",\"\",'1. Order'!K366)","v":""},{"$f":"IF('1. Order'!M366=\"\",\"\",'1. Order'!M366)","v":""},null,null,null,{"$f":"IF('1. Order'!AF366=\"\",\"\",'1. Order'!AF366)","v":""}]
[{"$f":"IF('1. Order'!B367=\"\",\"\",'1. Order'!B367)","v":""},{"$f":"IF('1. Order'!I367=\"\",\"\",'1. Order'!I367)","v":""},{"$f":"IF('1. Order'!J367=\"\",\"\",'1. Order'!J367)","v":""},{"$f":"IF('1. Order'!K367=\"\",\"\",'1. Order'!K367)","v":""},{"$f":"IF('1. Order'!M367=\"\",\"\",'1. Order'!M367)","v":""},null,null,null,{"$f":"IF('1. Order'!AF367=\"\",\"\",'1. Order'!AF367)","v":""}]
[{"$f":"IF('1. Order'!B368=\"\",\"\",'1. Order'!B368)","v":""},{"$f":"IF('1. Order'!I368=\"\",\"\",'1. Order'!I368)","v":""},{"$f":"IF('1. Order'!J368=\"\",\"\",'1. Order'!J368)","v":""},{"$f":"IF('1. Order'!K368=\"\",\"\",'1. Order'!K368)","v":""},{"$f":"IF('1. Order'!M368=\"\",\"\",'1. Order'!M368)","v":""},null,null,null,{"$f":"IF('1. Order'!AF368=\"\",\"\",'1. Order'!AF368)","v":""}]
[{"$f":"IF('1. Order'!B369=\"\",\"\",'1. Order'!B369)","v":""},{"$f":"IF('1. Order'!I369=\"\",\"\",'1. Order'!I369)","v":""},{"$f":"IF('1. Order'!J369=\"\",\"\",'1. Order'!J369)","v":""},{"$f":"IF('1. Order'!K369=\"\",\"\",'1. Order'!K369)","v":""},{"$f":"IF('1. Order'!M369=\"\",\"\",'1. Order'!M369)","v":""},null,null,null,{"$f":"IF('1. Order'!AF369=\"\",\"\",'1. Order'!AF369)","v":""}]
[{"$f":"IF('1. Order'!B370=\"\",\"\",'1. Order'!B370)","v":""},{"$f":"IF('1. Order'!I370=\"\",\"\",'1. Order'!I370)","v":""},{"$f":"IF('1. Order'!J370=\"\",\"\",'1. Order'!J370)","v":""},{"$f":"IF('1. Order'!K370=\"\",\"\",'1. Order'!K370)","v":""},{"$f":"IF('1. Order'!M370=\"\",\"\",'1. Order'!M370)","v":""},null,null,null,{"$f":"IF('1. Order'!AF370=\"\",\"\",'1. Order'!AF370)","v":""}]
[{"$f":"IF('1. Order'!B371=\"\",\"\",'1. Order'!B371)","v":""},{"$f":"IF('1. Order'!I371=\"\",\"\",'1. Order'!I371)","v":""},{"$f":"IF('1. Order'!J371=\"\",\"\",'1. Order'!J371)","v":""},{"$f":"IF('1. Order'!K371=\"\",\"\",'1. Order'!K371)","v":""},{"$f":"IF('1. Order'!M371=\"\",\"\",'1. Order'!M371)","v":""},null,null,null,{"$f":"IF('1. Order'!AF371=\"\",\"\",'1. Order'!AF371)","v":""}]
[{"$f":"IF('1. Order'!B372=\"\",\"\",'1. Order'!B372)","v":""},{"$f":"IF('1. Order'!I372=\"\",\"\",'1. Order'!I372)","v":""},{"$f":"IF('1. Order'!J372=\"\",\"\",'1. Order'!J372)","v":""},{"$f":"IF('1. Order'!K372=\"\",\"\",'1. Order'!K372)","v":""},{"$f":"IF('1. Order'!M372=\"\",\"\",'1. Order'!M372)","v":""},null,null,null,{"$f":"IF('1. Order'!AF372=\"\",\"\",'1. Order'!AF372)","v":""}]
[{"$f":"IF('1. Order'!B373=\"\",\"\",'1. Order'!B373)","v":""},{"$f":"IF('1. Order'!I373=\"\",\"\",'1. Order'!I373)","v":""},{"$f":"IF('1. Order'!J373=\"\",\"\",'1. Order'!J373)","v":""},{"$f":"IF('1. Order'!K373=\"\",\"\",'1. Order'!K373)","v":""},{"$f":"IF('1. Order'!M373=\"\",\"\",'1. Order'!M373)","v":""},null,null,null,{"$f":"IF('1. Order'!AF373=\"\",\"\",'1. Order'!AF373)","v":""}]
[{"$f":"IF('1. Order'!B374=\"\",\"\",'1. Order'!B374)","v":""},{"$f":"IF('1. Order'!I374=\"\",\"\",'1. Order'!I374)","v":""},{"$f":"IF('1. Order'!J374=\"\",\"\",'1. Order'!J374)","v":""},{"$f":"IF('1. Order'!K374=\"\",\"\",'1. Order'!K374)","v":""},{"$f":"IF('1. Order'!M374=\"\",\"\",'1. Order'!M374)","v":""},null,null,null,{"$f":"IF('1. Order'!AF374=\"\",\"\",'1. Order'!AF374)","v":""}]
[{"$f":"IF('1. Order'!B375=\"\",\"\",'1. Order'!B375)","v":""},{"$f":"IF('1. Order'!I375=\"\",\"\",'1. Order'!I375)","v":""},{"$f":"IF('1. Order'!J375=\"\",\"\",'1. Order'!J375)","v":""},{"$f":"IF('1. Order'!K375=\"\",\"\",'1. Order'!K375)","v":""},{"$f":"IF('1. Order'!M375=\"\",\"\",'1. Order'!M375)","v":""},null,null,null,{"$f":"IF('1. Order'!AF375=\"\",\"\",'1. Order'!AF375)","v":""}]
[{"$f":"IF('1. Order'!B376=\"\",\"\",'1. Order'!B376)","v":""},{"$f":"IF('1. Order'!I376=\"\",\"\",'1. Order'!I376)","v":""},{"$f":"IF('1. Order'!J376=\"\",\"\",'1. Order'!J376)","v":""},{"$f":"IF('1. Order'!K376=\"\",\"\",'1. Order'!K376)","v":""},{"$f":"IF('1. Order'!M376=\"\",\"\",'1. Order'!M376)","v":""},null,null,null,{"$f":"IF('1. Order'!AF376=\"\",\"\",'1. Order'!AF376)","v":""}]
[{"$f":"IF('1. Order'!B377=\"\",\"\",'1. Order'!B377)","v":""},{"$f":"IF('1. Order'!I377=\"\",\"\",'1. Order'!I377)","v":""},{"$f":"IF('1. Order'!J377=\"\",\"\",'1. Order'!J377)","v":""},{"$f":"IF('1. Order'!K377=\"\",\"\",'1. Order'!K377)","v":""},{"$f":"IF('1. Order'!M377=\"\",\"\",'1. Order'!M377)","v":""},null,null,null,{"$f":"IF('1. Order'!AF377=\"\",\"\",'1. Order'!AF377)","v":""}]
[{"$f":"IF('1. Order'!B378=\"\",\"\",'1. Order'!B378)","v":""},{"$f":"IF('1. Order'!I378=\"\",\"\",'1. Order'!I378)","v":""},{"$f":"IF('1. Order'!J378=\"\",\"\",'1. Order'!J378)","v":""},{"$f":"IF('1. Order'!K378=\"\",\"\",'1. Order'!K378)","v":""},{"$f":"IF('1. Order'!M378=\"\",\"\",'1. Order'!M378)","v":""},null,null,null,{"$f":"IF('1. Order'!AF378=\"\",\"\",'1. Order'!AF378)","v":""}]
[{"$f":"IF('1. Order'!B379=\"\",\"\",'1. Order'!B379)","v":""},{"$f":"IF('1. Order'!I379=\"\",\"\",'1. Order'!I379)","v":""},{"$f":"IF('1. Order'!J379=\"\",\"\",'1. Order'!J379)","v":""},{"$f":"IF('1. Order'!K379=\"\",\"\",'1. Order'!K379)","v":""},{"$f":"IF('1. Order'!M379=\"\",\"\",'1. Order'!M379)","v":""},null,null,null,{"$f":"IF('1. Order'!AF379=\"\",\"\",'1. Order'!AF379)","v":""}]
[{"$f":"IF('1. Order'!B380=\"\",\"\",'1. Order'!B380)","v":""},{"$f":"IF('1. Order'!I380=\"\",\"\",'1. Order'!I380)","v":""},{"$f":"IF('1. Order'!J380=\"\",\"\",'1. Order'!J380)","v":""},{"$f":"IF('1. Order'!K380=\"\",\"\",'1. Order'!K380)","v":""},{"$f":"IF('1. Order'!M380=\"\",\"\",'1. Order'!M380)","v":""},null,null,null,{"$f":"IF('1. Order'!AF380=\"\",\"\",'1. Order'!AF380)","v":""}]
[{"$f":"IF('1. Order'!B381=\"\",\"\",'1. Order'!B381)","v":""},{"$f":"IF('1. Order'!I381=\"\",\"\",'1. Order'!I381)","v":""},{"$f":"IF('1. Order'!J381=\"\",\"\",'1. Order'!J381)","v":""},{"$f":"IF('1. Order'!K381=\"\",\"\",'1. Order'!K381)","v":""},{"$f":"IF('1. Order'!M381=\"\",\"\",'1. Order'!M381)","v":""},null,null,null,{"$f":"IF('1. Order'!AF381=\"\",\"\",'1. Order'!AF381)","v":""}]
[{"$f":"IF('1. Order'!B382=\"\",\"\",'1. Order'!B382)","v":""},{"$f":"IF('1. Order'!I382=\"\",\"\",'1. Order'!I382)","v":""},{"$f":"IF('1. Order'!J382=\"\",\"\",'1. Order'!J382)","v":""},{"$f":"IF('1. Order'!K382=\"\",\"\",'1. Order'!K382)","v":""},{"$f":"IF('1. Order'!M382=\"\",\"\",'1. Order'!M382)","v":""},null,null,null,{"$f":"IF('1. Order'!AF382=\"\",\"\",'1. Order'!AF382)","v":""}]
[{"$f":"IF('1. Order'!B383=\"\",\"\",'1. Order'!B383)","v":""},{"$f":"IF('1. Order'!I383=\"\",\"\",'1. Order'!I383)","v":""},{"$f":"IF('1. Order'!J383=\"\",\"\",'1. Order'!J383)","v":""},{"$f":"IF('1. Order'!K383=\"\",\"\",'1. Order'!K383)","v":""},{"$f":"IF('1. Order'!M383=\"\",\"\",'1. Order'!M383)","v":""},null,null,null,{"$f":"IF('1. Order'!AF383=\"\",\"\",'1. Order'!AF383)","v":""}]
[{"$f":"IF('1. Order'!B384=\"\",\"\",'1. Order'!B384)","v":""},{"$f":"IF('1. Order'!I384=\"\",\"\",'1. Order'!I384)","v":""},{"$f":"IF('1. Order'!J384=\"\",\"\",'1. Order'!J384)","v":""},{"$f":"IF('1. Order'!K384=\"\",\"\",'1. Order'!K384)","v":""},{"$f":"IF('1. Order'!M384=\"\",\"\",'1. Order'!M384)","v":""},null,null,null,{"$f":"IF('1. Order'!AF384=\"\",\"\",'1. Order'!AF384)","v":""}]
[{"$f":"IF('1. Order'!B385=\"\",\"\",'1. Order'!B385)","v":""},{"$f":"IF('1. Order'!I385=\"\",\"\",'1. Order'!I385)","v":""},{"$f":"IF('1. Order'!J385=\"\",\"\",'1. Order'!J385)","v":""},{"$f":"IF('1. Order'!K385=\"\",\"\",'1. Order'!K385)","v":""},{"$f":"IF('1. Order'!M385=\"\",\"\",'1. Order'!M385)","v":""},null,null,null,{"$f":"IF('1. Order'!AF385=\"\",\"\",'1. Order'!AF385)","v":""}]
[{"$f":"IF('1. Order'!B386=\"\",\"\",'1. Order'!B386)","v":""},{"$f":"IF('1. Order'!I386=\"\",\"\",'1. Order'!I386)","v":""},{"$f":"IF('1. Order'!J386=\"\",\"\",'1. Order'!J386)","v":""},{"$f":"IF('1. Order'!K386=\"\",\"\",'1. Order'!K386)","v":""},{"$f":"IF('1. Order'!M386=\"\",\"\",'1. Order'!M386)","v":""},null,null,null,{"$f":"IF('1. Order'!AF386=\"\",\"\",'1. Order'!AF386)","v":""}]
[{"$f":"IF('1. Order'!B387=\"\",\"\",'1. Order'!B387)","v":""},{"$f":"IF('1. Order'!I387=\"\",\"\",'1. Order'!I387)","v":""},{"$f":"IF('1. Order'!J387=\"\",\"\",'1. Order'!J387)","v":""},{"$f":"IF('1. Order'!K387=\"\",\"\",'1. Order'!K387)","v":""},{"$f":"IF('1. Order'!M387=\"\",\"\",'1. Order'!M387)","v":""},null,null,null,{"$f":"IF('1. Order'!AF387=\"\",\"\",'1. Order'!AF387)","v":""}]
[{"$f":"IF('1. Order'!B388=\"\",\"\",'1. Order'!B388)","v":""},{"$f":"IF('1. Order'!I388=\"\",\"\",'1. Order'!I388)","v":""},{"$f":"IF('1. Order'!J388=\"\",\"\",'1. Order'!J388)","v":""},{"$f":"IF('1. Order'!K388=\"\",\"\",'1. Order'!K388)","v":""},{"$f":"IF('1. Order'!M388=\"\",\"\",'1. Order'!M388)","v":""},null,null,null,{"$f":"IF('1. Order'!AF388=\"\",\"\",'1. Order'!AF388)","v":""}]
[{"$f":"IF('1. Order'!B389=\"\",\"\",'1. Order'!B389)","v":""},{"$f":"IF('1. Order'!I389=\"\",\"\",'1. Order'!I389)","v":""},{"$f":"IF('1. Order'!J389=\"\",\"\",'1. Order'!J389)","v":""},{"$f":"IF('1. Order'!K389=\"\",\"\",'1. Order'!K389)","v":""},{"$f":"IF('1. Order'!M389=\"\",\"\",'1. Order'!M389)","v":""},null,null,null,{"$f":"IF('1. Order'!AF389=\"\",\"\",'1. Order'!AF389)","v":""}]
[{"$f":"IF('1. Order'!B390=\"\",\"\",'1. Order'!B390)","v":""},{"$f":"IF('1. Order'!I390=\"\",\"\",'1. Order'!I390)","v":""},{"$f":"IF('1. Order'!J390=\"\",\"\",'1. Order'!J390)","v":""},{"$f":"IF('1. Order'!K390=\"\",\"\",'1. Order'!K390)","v":""},{"$f":"IF('1. Order'!M390=\"\",\"\",'1. Order'!M390)","v":""},null,null,null,{"$f":"IF('1. Order'!AF390=\"\",\"\",'1. Order'!AF390)","v":""}]
[{"$f":"IF('1. Order'!B391=\"\",\"\",'1. Order'!B391)","v":""},{"$f":"IF('1. Order'!I391=\"\",\"\",'1. Order'!I391)","v":""},{"$f":"IF('1. Order'!J391=\"\",\"\",'1. Order'!J391)","v":""},{"$f":"IF('1. Order'!K391=\"\",\"\",'1. Order'!K391)","v":""},{"$f":"IF('1. Order'!M391=\"\",\"\",'1. Order'!M391)","v":""},null,null,null,{"$f":"IF('1. Order'!AF391=\"\",\"\",'1. Order'!AF391)","v":""}]
[{"$f":"IF('1. Order'!B392=\"\",\"\",'1. Order'!B392)","v":""},{"$f":"IF('1. Order'!I392=\"\",\"\",'1. Order'!I392)","v":""},{"$f":"IF('1. Order'!J392=\"\",\"\",'1. Order'!J392)","v":""},{"$f":"IF('1. Order'!K392=\"\",\"\",'1. Order'!K392)","v":""},{"$f":"IF('1. Order'!M392=\"\",\"\",'1. Order'!M392)","v":""},null,null,null,{"$f":"IF('1. Order'!AF392=\"\",\"\",'1. Order'!AF392)","v":""}]
[{"$f":"IF('1. Order'!B393=\"\",\"\",'1. Order'!B393)","v":""},{"$f":"IF('1. Order'!I393=\"\",\"\",'1. Order'!I393)","v":""},{"$f":"IF('1. Order'!J393=\"\",\"\",'1. Order'!J393)","v":""},{"$f":"IF('1. Order'!K393=\"\",\"\",'1. Order'!K393)","v":""},{"$f":"IF('1. Order'!M393=\"\",\"\",'1. Order'!M393)","v":""},null,null,null,{"$f":"IF('1. Order'!AF393=\"\",\"\",'1. Order'!AF393)","v":""}]
[{"$f":"IF('1. Order'!B394=\"\",\"\",'1. Order'!B394)","v":""},{"$f":"IF('1. Order'!I394=\"\",\"\",'1. Order'!I394)","v":""},{"$f":"IF('1. Order'!J394=\"\",\"\",'1. Order'!J394)","v":""},{"$f":"IF('1. Order'!K394=\"\",\"\",'1. Order'!K394)","v":""},{"$f":"IF('1. Order'!M394=\"\",\"\",'1. Order'!M394)","v":""},null,null,null,{"$f":"IF('1. Order'!AF394=\"\",\"\",'1. Order'!AF394)","v":""}]
[{"$f":"IF('1. Order'!B395=\"\",\"\",'1. Order'!B395)","v":""},{"$f":"IF('1. Order'!I395=\"\",\"\",'1. Order'!I395)","v":""},{"$f":"IF('1. Order'!J395=\"\",\"\",'1. Order'!J395)","v":""},{"$f":"IF('1. Order'!K395=\"\",\"\",'1. Order'!K395)","v":""},{"$f":"IF('1. Order'!M395=\"\",\"\",'1. Order'!M395)","v":""},null,null,null,{"$f":"IF('1. Order'!AF395=\"\",\"\",'1. Order'!AF395)","v":""}]
[{"$f":"IF('1. Order'!B396=\"\",\"\",'1. Order'!B396)","v":""},{"$f":"IF('1. Order'!I396=\"\",\"\",'1. Order'!I396)","v":""},{"$f":"IF('1. Order'!J396=\"\",\"\",'1. Order'!J396)","v":""},{"$f":"IF('1. Order'!K396=\"\",\"\",'1. Order'!K396)","v":""},{"$f":"IF('1. Order'!M396=\"\",\"\",'1. Order'!M396)","v":""},null,null,null,{"$f":"IF('1. Order'!AF396=\"\",\"\",'1. Order'!AF396)","v":""}]
[{"$f":"IF('1. Order'!B397=\"\",\"\",'1. Order'!B397)","v":""},{"$f":"IF('1. Order'!I397=\"\",\"\",'1. Order'!I397)","v":""},{"$f":"IF('1. Order'!J397=\"\",\"\",'1. Order'!J397)","v":""},{"$f":"IF('1. Order'!K397=\"\",\"\",'1. Order'!K397)","v":""},{"$f":"IF('1. Order'!M397=\"\",\"\",'1. Order'!M397)","v":""},null,null,null,{"$f":"IF('1. Order'!AF397=\"\",\"\",'1. Order'!AF397)","v":""}]
[{"$f":"IF('1. Order'!B398=\"\",\"\",'1. Order'!B398)","v":""},{"$f":"IF('1. Order'!I398=\"\",\"\",'1. Order'!I398)","v":""},{"$f":"IF('1. Order'!J398=\"\",\"\",'1. Order'!J398)","v":""},{"$f":"IF('1. Order'!K398=\"\",\"\",'1. Order'!K398)","v":""},{"$f":"IF('1. Order'!M398=\"\",\"\",'1. Order'!M398)","v":""},null,null,null,{"$f":"IF('1. Order'!AF398=\"\",\"\",'1. Order'!AF398)","v":""}]
[{"$f":"IF('1. Order'!B399=\"\",\"\",'1. Order'!B399)","v":""},{"$f":"IF('1. Order'!I399=\"\",\"\",'1. Order'!I399)","v":""},{"$f":"IF('1. Order'!J399=\"\",\"\",'1. Order'!J399)","v":""},{"$f":"IF('1. Order'!K399=\"\",\"\",'1. Order'!K399)","v":""},{"$f":"IF('1. Order'!M399=\"\",\"\",'1. Order'!M399)","v":""},null,null,null,{"$f":"IF('1. Order'!AF399=\"\",\"\",'1. Order'!AF399)","v":""}]
[{"$f":"IF('1. Order'!B400=\"\",\"\",'1. Order'!B400)","v":""},{"$f":"IF('1. Order'!I400=\"\",\"\",'1. Order'!I400)","v":""},{"$f":"IF('1. Order'!J400=\"\",\"\",'1. Order'!J400)","v":""},{"$f":"IF('1. Order'!K400=\"\",\"\",'1. Order'!K400)","v":""},{"$f":"IF('1. Order'!M400=\"\",\"\",'1. Order'!M400)","v":""},null,null,null,{"$f":"IF('1. Order'!AF400=\"\",\"\",'1. Order'!AF400)","v":""}]
[{"$f":"IF('1. Order'!B401=\"\",\"\",'1. Order'!B401)","v":""},{"$f":"IF('1. Order'!I401=\"\",\"\",'1. Order'!I401)","v":""},{"$f":"IF('1. Order'!J401=\"\",\"\",'1. Order'!J401)","v":""},{"$f":"IF('1. Order'!K401=\"\",\"\",'1. Order'!K401)","v":""},{"$f":"IF('1. Order'!M401=\"\",\"\",'1. Order'!M401)","v":""},null,null,null,{"$f":"IF('1. Order'!AF401=\"\",\"\",'1. Order'!AF401)","v":""}]
[{"$f":"IF('1. Order'!B402=\"\",\"\",'1. Order'!B402)","v":""},{"$f":"IF('1. Order'!I402=\"\",\"\",'1. Order'!I402)","v":""},{"$f":"IF('1. Order'!J402=\"\",\"\",'1. Order'!J402)","v":""},{"$f":"IF('1. Order'!K402=\"\",\"\",'1. Order'!K402)","v":""},{"$f":"IF('1. Order'!M402=\"\",\"\",'1. Order'!M402)","v":""},null,null,null,{"$f":"IF('1. Order'!AF402=\"\",\"\",'1. Order'!AF402)","v":""}]
[{"$f":"IF('1. Order'!B403=\"\",\"\",'1. Order'!B403)","v":""},{"$f":"IF('1. Order'!I403=\"\",\"\",'1. Order'!I403)","v":""},{"$f":"IF('1. Order'!J403=\"\",\"\",'1. Order'!J403)","v":""},{"$f":"IF('1. Order'!K403=\"\",\"\",'1. Order'!K403)","v":""},{"$f":"IF('1. Order'!M403=\"\",\"\",'1. Order'!M403)","v":""},null,null,null,{"$f":"IF('1. Order'!AF403=\"\",\"\",'1. Order'!AF403)","v":""}]
[{"$f":"IF('1. Order'!B404=\"\",\"\",'1. Order'!B404)","v":""},{"$f":"IF('1. Order'!I404=\"\",\"\",'1. Order'!I404)","v":""},{"$f":"IF('1. Order'!J404=\"\",\"\",'1. Order'!J404)","v":""},{"$f":"IF('1. Order'!K404=\"\",\"\",'1. Order'!K404)","v":""},{"$f":"IF('1. Order'!M404=\"\",\"\",'1. Order'!M404)","v":""},null,null,null,{"$f":"IF('1. Order'!AF404=\"\",\"\",'1. Order'!AF404)","v":""}]
[{"$f":"IF('1. Order'!B405=\"\",\"\",'1. Order'!B405)","v":""},{"$f":"IF('1. Order'!I405=\"\",\"\",'1. Order'!I405)","v":""},{"$f":"IF('1. Order'!J405=\"\",\"\",'1. Order'!J405)","v":""},{"$f":"IF('1. Order'!K405=\"\",\"\",'1. Order'!K405)","v":""},{"$f":"IF('1. Order'!M405=\"\",\"\",'1. Order'!M405)","v":""},null,null,null,{"$f":"IF('1. Order'!AF405=\"\",\"\",'1. Order'!AF405)","v":""}]
[{"$f":"IF('1. Order'!B406=\"\",\"\",'1. Order'!B406)","v":""},{"$f":"IF('1. Order'!I406=\"\",\"\",'1. Order'!I406)","v":""},{"$f":"IF('1. Order'!J406=\"\",\"\",'1. Order'!J406)","v":""},{"$f":"IF('1. Order'!K406=\"\",\"\",'1. Order'!K406)","v":""},{"$f":"IF('1. Order'!M406=\"\",\"\",'1. Order'!M406)","v":""},null,null,null,{"$f":"IF('1. Order'!AF406=\"\",\"\",'1. Order'!AF406)","v":""}]
[{"$f":"IF('1. Order'!B407=\"\",\"\",'1. Order'!B407)","v":""},{"$f":"IF('1. Order'!I407=\"\",\"\",'1. Order'!I407)","v":""},{"$f":"IF('1. Order'!J407=\"\",\"\",'1. Order'!J407)","v":""},{"$f":"IF('1. Order'!K407=\"\",\"\",'1. Order'!K407)","v":""},{"$f":"IF('1. Order'!M407=\"\",\"\",'1. Order'!M407)","v":""},null,null,null,{"$f":"IF('1. Order'!AF407=\"\",\"\",'1. Order'!AF407)","v":""}]
[{"$f":"IF('1. Order'!B408=\"\",\"\",'1. Order'!B408)","v":""},{"$f":"IF('1. Order'!I408=\"\",\"\",'1. Order'!I408)","v":""},{"$f":"IF('1. Order'!J408=\"\",\"\",'1. Order'!J408)","v":""},{"$f":"IF('1. Order'!K408=\"\",\"\",'1. Order'!K408)","v":""},{"$f":"IF('1. Order'!M408=\"\",\"\",'1. Order'!M408)","v":""},null,null,null,{"$f":"IF('1. Order'!AF408=\"\",\"\",'1. Order'!AF408)","v":""}]
[{"$f":"IF('1. Order'!B409=\"\",\"\",'1. Order'!B409)","v":""},{"$f":"IF('1. Order'!I409=\"\",\"\",'1. Order'!I409)","v":""},{"$f":"IF('1. Order'!J409=\"\",\"\",'1. Order'!J409)","v":""},{"$f":"IF('1. Order'!K409=\"\",\"\",'1. Order'!K409)","v":""},{"$f":"IF('1. Order'!M409=\"\",\"\",'1. Order'!M409)","v":""},null,null,null,{"$f":"IF('1. Order'!AF409=\"\",\"\",'1. Order'!AF409)","v":""}]
[{"$f":"IF('1. Order'!B410=\"\",\"\",'1. Order'!B410)","v":""},{"$f":"IF('1. Order'!I410=\"\",\"\",'1. Order'!I410)","v":""},{"$f":"IF('1. Order'!J410=\"\",\"\",'1. Order'!J410)","v":""},{"$f":"IF('1. Order'!K410=\"\",\"\",'1. Order'!K410)","v":""},{"$f":"IF('1. Order'!M410=\"\",\"\",'1. Order'!M410)","v":""},null,null,null,{"$f":"IF('1. Order'!AF410=\"\",\"\",'1. Order'!AF410)","v":""}]
[{"$f":"IF('1. Order'!B411=\"\",\"\",'1. Order'!B411)","v":""},{"$f":"IF('1. Order'!I411=\"\",\"\",'1. Order'!I411)","v":""},{"$f":"IF('1. Order'!J411=\"\",\"\",'1. Order'!J411)","v":""},{"$f":"IF('1. Order'!K411=\"\",\"\",'1. Order'!K411)","v":""},{"$f":"IF('1. Order'!M411=\"\",\"\",'1. Order'!M411)","v":""},null,null,null,{"$f":"IF('1. Order'!AF411=\"\",\"\",'1. Order'!AF411)","v":""}]
[{"$f":"IF('1. Order'!B412=\"\",\"\",'1. Order'!B412)","v":""},{"$f":"IF('1. Order'!I412=\"\",\"\",'1. Order'!I412)","v":""},{"$f":"IF('1. Order'!J412=\"\",\"\",'1. Order'!J412)","v":""},{"$f":"IF('1. Order'!K412=\"\",\"\",'1. Order'!K412)","v":""},{"$f":"IF('1. Order'!M412=\"\",\"\",'1. Order'!M412)","v":""},null,null,null,{"$f":"IF('1. Order'!AF412=\"\",\"\",'1. Order'!AF412)","v":""}]
[{"$f":"IF('1. Order'!B413=\"\",\"\",'1. Order'!B413)","v":""},{"$f":"IF('1. Order'!I413=\"\",\"\",'1. Order'!I413)","v":""},{"$f":"IF('1. Order'!J413=\"\",\"\",'1. Order'!J413)","v":""},{"$f":"IF('1. Order'!K413=\"\",\"\",'1. Order'!K413)","v":""},{"$f":"IF('1. Order'!M413=\"\",\"\",'1. Order'!M413)","v":""},null,null,null,{"$f":"IF('1. Order'!AF413=\"\",\"\",'1. Order'!AF413)","v":""}]
[{"$f":"IF('1. Order'!B414=\"\",\"\",'1. Order'!B414)","v":""},{"$f":"IF('1. Order'!I414=\"\",\"\",'1. Order'!I414)","v":""},{"$f":"IF('1. Order'!J414=\"\",\"\",'1. Order'!J414)","v":""},{"$f":"IF('1. Order'!K414=\"\",\"\",'1. Order'!K414)","v":""},{"$f":"IF('1. Order'!M414=\"\",\"\",'1. Order'!M414)","v":""},null,null,null,{"$f":"IF('1. Order'!AF414=\"\",\"\",'1. Order'!AF414)","v":""}]
[{"$f":"IF('1. Order'!B415=\"\",\"\",'1. Order'!B415)","v":""},{"$f":"IF('1. Order'!I415=\"\",\"\",'1. Order'!I415)","v":""},{"$f":"IF('1. Order'!J415=\"\",\"\",'1. Order'!J415)","v":""},{"$f":"IF('1. Order'!K415=\"\",\"\",'1. Order'!K415)","v":""},{"$f":"IF('1. Order'!M415=\"\",\"\",'1. Order'!M415)","v":""},null,null,null,{"$f":"IF('1. Order'!AF415=\"\",\"\",'1. Order'!AF415)","v":""}]
[{"$f":"IF('1. Order'!B416=\"\",\"\",'1. Order'!B416)","v":""},{"$f":"IF('1. Order'!I416=\"\",\"\",'1. Order'!I416)","v":""},{"$f":"IF('1. Order'!J416=\"\",\"\",'1. Order'!J416)","v":""},{"$f":"IF('1. Order'!K416=\"\",\"\",'1. Order'!K416)","v":""},{"$f":"IF('1. Order'!M416=\"\",\"\",'1. Order'!M416)","v":""},null,null,null,{"$f":"IF('1. Order'!AF416=\"\",\"\",'1. Order'!AF416)","v":""}]
[{"$f":"IF('1. Order'!B417=\"\",\"\",'1. Order'!B417)","v":""},{"$f":"IF('1. Order'!I417=\"\",\"\",'1. Order'!I417)","v":""},{"$f":"IF('1. Order'!J417=\"\",\"\",'1. Order'!J417)","v":""},{"$f":"IF('1. Order'!K417=\"\",\"\",'1. Order'!K417)","v":""},{"$f":"IF('1. Order'!M417=\"\",\"\",'1. Order'!M417)","v":""},null,null,null,{"$f":"IF('1. Order'!AF417=\"\",\"\",'1. Order'!AF417)","v":""}]
[{"$f":"IF('1. Order'!B418=\"\",\"\",'1. Order'!B418)","v":""},{"$f":"IF('1. Order'!I418=\"\",\"\",'1. Order'!I418)","v":""},{"$f":"IF('1. Order'!J418=\"\",\"\",'1. Order'!J418)","v":""},{"$f":"IF('1. Order'!K418=\"\",\"\",'1. Order'!K418)","v":""},{"$f":"IF('1. Order'!M418=\"\",\"\",'1. Order'!M418)","v":""},null,null,null,{"$f":"IF('1. Order'!AF418=\"\",\"\",'1. Order'!AF418)","v":""}]
[{"$f":"IF('1. Order'!B419=\"\",\"\",'1. Order'!B419)","v":""},{"$f":"IF('1. Order'!I419=\"\",\"\",'1. Order'!I419)","v":""},{"$f":"IF('1. Order'!J419=\"\",\"\",'1. Order'!J419)","v":""},{"$f":"IF('1. Order'!K419=\"\",\"\",'1. Order'!K419)","v":""},{"$f":"IF('1. Order'!M419=\"\",\"\",'1. Order'!M419)","v":""},null,null,null,{"$f":"IF('1. Order'!AF419=\"\",\"\",'1. Order'!AF419)","v":""}]
[{"$f":"IF('1. Order'!B420=\"\",\"\",'1. Order'!B420)","v":""},{"$f":"IF('1. Order'!I420=\"\",\"\",'1. Order'!I420)","v":""},{"$f":"IF('1. Order'!J420=\"\",\"\",'1. Order'!J420)","v":""},{"$f":"IF('1. Order'!K420=\"\",\"\",'1. Order'!K420)","v":""},{"$f":"IF('1. Order'!M420=\"\",\"\",'1. Order'!M420)","v":""},null,null,null,{"$f":"IF('1. Order'!AF420=\"\",\"\",'1. Order'!AF420)","v":""}]
[{"$f":"IF('1. Order'!B421=\"\",\"\",'1. Order'!B421)","v":""},{"$f":"IF('1. Order'!I421=\"\",\"\",'1. Order'!I421)","v":""},{"$f":"IF('1. Order'!J421=\"\",\"\",'1. Order'!J421)","v":""},{"$f":"IF('1. Order'!K421=\"\",\"\",'1. Order'!K421)","v":""},{"$f":"IF('1. Order'!M421=\"\",\"\",'1. Order'!M421)","v":""},null,null,null,{"$f":"IF('1. Order'!AF421=\"\",\"\",'1. Order'!AF421)","v":""}]
[{"$f":"IF('1. Order'!B422=\"\",\"\",'1. Order'!B422)","v":""},{"$f":"IF('1. Order'!I422=\"\",\"\",'1. Order'!I422)","v":""},{"$f":"IF('1. Order'!J422=\"\",\"\",'1. Order'!J422)","v":""},{"$f":"IF('1. Order'!K422=\"\",\"\",'1. Order'!K422)","v":""},{"$f":"IF('1. Order'!M422=\"\",\"\",'1. Order'!M422)","v":""},null,null,null,{"$f":"IF('1. Order'!AF422=\"\",\"\",'1. Order'!AF422)","v":""}]
[{"$f":"IF('1. Order'!B423=\"\",\"\",'1. Order'!B423)","v":""},{"$f":"IF('1. Order'!I423=\"\",\"\",'1. Order'!I423)","v":""},{"$f":"IF('1. Order'!J423=\"\",\"\",'1. Order'!J423)","v":""},{"$f":"IF('1. Order'!K423=\"\",\"\",'1. Order'!K423)","v":""},{"$f":"IF('1. Order'!M423=\"\",\"\",'1. Order'!M423)","v":""},null,null,null,{"$f":"IF('1. Order'!AF423=\"\",\"\",'1. Order'!AF423)","v":""}]
[{"$f":"IF('1. Order'!B424=\"\",\"\",'1. Order'!B424)","v":""},{"$f":"IF('1. Order'!I424=\"\",\"\",'1. Order'!I424)","v":""},{"$f":"IF('1. Order'!J424=\"\",\"\",'1. Order'!J424)","v":""},{"$f":"IF('1. Order'!K424=\"\",\"\",'1. Order'!K424)","v":""},{"$f":"IF('1. Order'!M424=\"\",\"\",'1. Order'!M424)","v":""},null,null,null,{"$f":"IF('1. Order'!AF424=\"\",\"\",'1. Order'!AF424)","v":""}]
[{"$f":"IF('1. Order'!B425=\"\",\"\",'1. Order'!B425)","v":""},{"$f":"IF('1. Order'!I425=\"\",\"\",'1. Order'!I425)","v":""},{"$f":"IF('1. Order'!J425=\"\",\"\",'1. Order'!J425)","v":""},{"$f":"IF('1. Order'!K425=\"\",\"\",'1. Order'!K425)","v":""},{"$f":"IF('1. Order'!M425=\"\",\"\",'1. Order'!M425)","v":""},null,null,null,{"$f":"IF('1. Order'!AF425=\"\",\"\",'1. Order'!AF425)","v":""}]
[{"$f":"IF('1. Order'!B426=\"\",\"\",'1. Order'!B426)","v":""},{"$f":"IF('1. Order'!I426=\"\",\"\",'1. Order'!I426)","v":""},{"$f":"IF('1. Order'!J426=\"\",\"\",'1. Order'!J426)","v":""},{"$f":"IF('1. Order'!K426=\"\",\"\",'1. Order'!K426)","v":""},{"$f":"IF('1. Order'!M426=\"\",\"\",'1. Order'!M426)","v":""},null,null,null,{"$f":"IF('1. Order'!AF426=\"\",\"\",'1. Order'!AF426)","v":""}]
[{"$f":"IF('1. Order'!B427=\"\",\"\",'1. Order'!B427)","v":""},{"$f":"IF('1. Order'!I427=\"\",\"\",'1. Order'!I427)","v":""},{"$f":"IF('1. Order'!J427=\"\",\"\",'1. Order'!J427)","v":""},{"$f":"IF('1. Order'!K427=\"\",\"\",'1. Order'!K427)","v":""},{"$f":"IF('1. Order'!M427=\"\",\"\",'1. Order'!M427)","v":""},null,null,null,{"$f":"IF('1. Order'!AF427=\"\",\"\",'1. Order'!AF427)","v":""}]
[{"$f":"IF('1. Order'!B428=\"\",\"\",'1. Order'!B428)","v":""},{"$f":"IF('1. Order'!I428=\"\",\"\",'1. Order'!I428)","v":""},{"$f":"IF('1. Order'!J428=\"\",\"\",'1. Order'!J428)","v":""},{"$f":"IF('1. Order'!K428=\"\",\"\",'1. Order'!K428)","v":""},{"$f":"IF('1. Order'!M428=\"\",\"\",'1. Order'!M428)","v":""},null,null,null,{"$f":"IF('1. Order'!AF428=\"\",\"\",'1. Order'!AF428)","v":""}]
[{"$f":"IF('1. Order'!B429=\"\",\"\",'1. Order'!B429)","v":""},{"$f":"IF('1. Order'!I429=\"\",\"\",'1. Order'!I429)","v":""},{"$f":"IF('1. Order'!J429=\"\",\"\",'1. Order'!J429)","v":""},{"$f":"IF('1. Order'!K429=\"\",\"\",'1. Order'!K429)","v":""},{"$f":"IF('1. Order'!M429=\"\",\"\",'1. Order'!M429)","v":""},null,null,null,{"$f":"IF('1. Order'!AF429=\"\",\"\",'1. Order'!AF429)","v":""}]
[{"$f":"IF('1. Order'!B430=\"\",\"\",'1. Order'!B430)","v":""},{"$f":"IF('1. Order'!I430=\"\",\"\",'1. Order'!I430)","v":""},{"$f":"IF('1. Order'!J430=\"\",\"\",'1. Order'!J430)","v":""},{"$f":"IF('1. Order'!K430=\"\",\"\",'1. Order'!K430)","v":""},{"$f":"IF('1. Order'!M430=\"\",\"\",'1. Order'!M430)","v":""},null,null,null,{"$f":"IF('1. Order'!AF430=\"\",\"\",'1. Order'!AF430)","v":""}]
[{"$f":"IF('1. Order'!B431=\"\",\"\",'1. Order'!B431)","v":""},{"$f":"IF('1. Order'!I431=\"\",\"\",'1. Order'!I431)","v":""},{"$f":"IF('1. Order'!J431=\"\",\"\",'1. Order'!J431)","v":""},{"$f":"IF('1. Order'!K431=\"\",\"\",'1. Order'!K431)","v":""},{"$f":"IF('1. Order'!M431=\"\",\"\",'1. Order'!M431)","v":""},null,null,null,{"$f":"IF('1. Order'!AF431=\"\",\"\",'1. Order'!AF431)","v":""}]
[{"$f":"IF('1. Order'!B432=\"\",\"\",'1. Order'!B432)","v":""},{"$f":"IF('1. Order'!I432=\"\",\"\",'1. Order'!I432)","v":""},{"$f":"IF('1. Order'!J432=\"\",\"\",'1. Order'!J432)","v":""},{"$f":"IF('1. Order'!K432=\"\",\"\",'1. Order'!K432)","v":""},{"$f":"IF('1. Order'!M432=\"\",\"\",'1. Order'!M432)","v":""},null,null,null,{"$f":"IF('1. Order'!AF432=\"\",\"\",'1. Order'!AF432)","v":""}]
[{"$f":"IF('1. Order'!B433=\"\",\"\",'1. Order'!B433)","v":""},{"$f":"IF('1. Order'!I433=\"\",\"\",'1. Order'!I433)","v":""},{"$f":"IF('1. Order'!J433=\"\",\"\",'1. Order'!J433)","v":""},{"$f":"IF('1. Order'!K433=\"\",\"\",'1. Order'!K433)","v":""},{"$f":"IF('1. Order'!M433=\"\",\"\",'1. Order'!M433)","v":""},null,null,null,{"$f":"IF('1. Order'!AF433=\"\",\"\",'1. Order'!AF433)","v":""}]
[{"$f":"IF('1. Order'!B434=\"\",\"\",'1. Order'!B434)","v":""},{"$f":"IF('1. Order'!I434=\"\",\"\",'1. Order'!I434)","v":""},{"$f":"IF('1. Order'!J434=\"\",\"\",'1. Order'!J434)","v":""},{"$f":"IF('1. Order'!K434=\"\",\"\",'1. Order'!K434)","v":""},{"$f":"IF('1. Order'!M434=\"\",\"\",'1. Order'!M434)","v":""},null,null,null,{"$f":"IF('1. Order'!AF434=\"\",\"\",'1. Order'!AF434)","v":""}]
[{"$f":"IF('1. Order'!B435=\"\",\"\",'1. Order'!B435)","v":""},{"$f":"IF('1. Order'!I435=\"\",\"\",'1. Order'!I435)","v":""},{"$f":"IF('1. Order'!J435=\"\",\"\",'1. Order'!J435)","v":""},{"$f":"IF('1. Order'!K435=\"\",\"\",'1. Order'!K435)","v":""},{"$f":"IF('1. Order'!M435=\"\",\"\",'1. Order'!M435)","v":""},null,null,null,{"$f":"IF('1. Order'!AF435=\"\",\"\",'1. Order'!AF435)","v":""}]
[{"$f":"IF('1. Order'!B436=\"\",\"\",'1. Order'!B436)","v":""},{"$f":"IF('1. Order'!I436=\"\",\"\",'1. Order'!I436)","v":""},{"$f":"IF('1. Order'!J436=\"\",\"\",'1. Order'!J436)","v":""},{"$f":"IF('1. Order'!K436=\"\",\"\",'1. Order'!K436)","v":""},{"$f":"IF('1. Order'!M436=\"\",\"\",'1. Order'!M436)","v":""},null,null,null,{"$f":"IF('1. Order'!AF436=\"\",\"\",'1. Order'!AF436)","v":""}]
[{"$f":"IF('1. Order'!B437=\"\",\"\",'1. Order'!B437)","v":""},{"$f":"IF('1. Order'!I437=\"\",\"\",'1. Order'!I437)","v":""},{"$f":"IF('1. Order'!J437=\"\",\"\",'1. Order'!J437)","v":""},{"$f":"IF('1. Order'!K437=\"\",\"\",'1. Order'!K437)","v":""},{"$f":"IF('1. Order'!M437=\"\",\"\",'1. Order'!M437)","v":""},null,null,null,{"$f":"IF('1. Order'!AF437=\"\",\"\",'1. Order'!AF437)","v":""}]
[{"$f":"IF('1. Order'!B438=\"\",\"\",'1. Order'!B438)","v":""},{"$f":"IF('1. Order'!I438=\"\",\"\",'1. Order'!I438)","v":""},{"$f":"IF('1. Order'!J438=\"\",\"\",'1. Order'!J438)","v":""},{"$f":"IF('1. Order'!K438=\"\",\"\",'1. Order'!K438)","v":""},{"$f":"IF('1. Order'!M438=\"\",\"\",'1. Order'!M438)","v":""},null,null,null,{"$f":"IF('1. Order'!AF438=\"\",\"\",'1. Order'!AF438)","v":""}]
[{"$f":"IF('1. Order'!B439=\"\",\"\",'1. Order'!B439)","v":""},{"$f":"IF('1. Order'!I439=\"\",\"\",'1. Order'!I439)","v":""},{"$f":"IF('1. Order'!J439=\"\",\"\",'1. Order'!J439)","v":""},{"$f":"IF('1. Order'!K439=\"\",\"\",'1. Order'!K439)","v":""},{"$f":"IF('1. Order'!M439=\"\",\"\",'1. Order'!M439)","v":""},null,null,null,{"$f":"IF('1. Order'!AF439=\"\",\"\",'1. Order'!AF439)","v":""}]
[{"$f":"IF('1. Order'!B440=\"\",\"\",'1. Order'!B440)","v":""},{"$f":"IF('1. Order'!I440=\"\",\"\",'1. Order'!I440)","v":""},{"$f":"IF('1. Order'!J440=\"\",\"\",'1. Order'!J440)","v":""},{"$f":"IF('1. Order'!K440=\"\",\"\",'1. Order'!K440)","v":""},{"$f":"IF('1. Order'!M440=\"\",\"\",'1. Order'!M440)","v":""},null,null,null,{"$f":"IF('1. Order'!AF440=\"\",\"\",'1. Order'!AF440)","v":""}]
[{"$f":"IF('1. Order'!B441=\"\",\"\",'1. Order'!B441)","v":""},{"$f":"IF('1. Order'!I441=\"\",\"\",'1. Order'!I441)","v":""},{"$f":"IF('1. Order'!J441=\"\",\"\",'1. Order'!J441)","v":""},{"$f":"IF('1. Order'!K441=\"\",\"\",'1. Order'!K441)","v":""},{"$f":"IF('1. Order'!M441=\"\",\"\",'1. Order'!M441)","v":""},null,null,null,{"$f":"IF('1. Order'!AF441=\"\",\"\",'1. Order'!AF441)","v":""}]
[{"$f":"IF('1. Order'!B442=\"\",\"\",'1. Order'!B442)","v":""},{"$f":"IF('1. Order'!I442=\"\",\"\",'1. Order'!I442)","v":""},{"$f":"IF('1. Order'!J442=\"\",\"\",'1. Order'!J442)","v":""},{"$f":"IF('1. Order'!K442=\"\",\"\",'1. Order'!K442)","v":""},{"$f":"IF('1. Order'!M442=\"\",\"\",'1. Order'!M442)","v":""},null,null,null,{"$f":"IF('1. Order'!AF442=\"\",\"\",'1. Order'!AF442)","v":""}]
[{"$f":"IF('1. Order'!B443=\"\",\"\",'1. Order'!B443)","v":""},{"$f":"IF('1. Order'!I443=\"\",\"\",'1. Order'!I443)","v":""},{"$f":"IF('1. Order'!J443=\"\",\"\",'1. Order'!J443)","v":""},{"$f":"IF('1. Order'!K443=\"\",\"\",'1. Order'!K443)","v":""},{"$f":"IF('1. Order'!M443=\"\",\"\",'1. Order'!M443)","v":""},null,null,null,{"$f":"IF('1. Order'!AF443=\"\",\"\",'1. Order'!AF443)","v":""}]
[{"$f":"IF('1. Order'!B444=\"\",\"\",'1. Order'!B444)","v":""},{"$f":"IF('1. Order'!I444=\"\",\"\",'1. Order'!I444)","v":""},{"$f":"IF('1. Order'!J444=\"\",\"\",'1. Order'!J444)","v":""},{"$f":"IF('1. Order'!K444=\"\",\"\",'1. Order'!K444)","v":""},{"$f":"IF('1. Order'!M444=\"\",\"\",'1. Order'!M444)","v":""},null,null,null,{"$f":"IF('1. Order'!AF444=\"\",\"\",'1. Order'!AF444)","v":""}]
[{"$f":"IF('1. Order'!B445=\"\",\"\",'1. Order'!B445)","v":""},{"$f":"IF('1. Order'!I445=\"\",\"\",'1. Order'!I445)","v":""},{"$f":"IF('1. Order'!J445=\"\",\"\",'1. Order'!J445)","v":""},{"$f":"IF('1. Order'!K445=\"\",\"\",'1. Order'!K445)","v":""},{"$f":"IF('1. Order'!M445=\"\",\"\",'1. Order'!M445)","v":""},null,null,null,{"$f":"IF('1. Order'!AF445=\"\",\"\",'1. Order'!AF445)","v":""}]
[{"$f":"IF('1. Order'!B446=\"\",\"\",'1. Order'!B446)","v":""},{"$f":"IF('1. Order'!I446=\"\",\"\",'1. Order'!I446)","v":""},{"$f":"IF('1. Order'!J446=\"\",\"\",'1. Order'!J446)","v":""},{"$f":"IF('1. Order'!K446=\"\",\"\",'1. Order'!K446)","v":""},{"$f":"IF('1. Order'!M446=\"\",\"\",'1. Order'!M446)","v":""},null,null,null,{"$f":"IF('1. Order'!AF446=\"\",\"\",'1. Order'!AF446)","v":""}]
[{"$f":"IF('1. Order'!B447=\"\",\"\",'1. Order'!B447)","v":""},{"$f":"IF('1. Order'!I447=\"\",\"\",'1. Order'!I447)","v":""},{"$f":"IF('1. Order'!J447=\"\",\"\",'1. Order'!J447)","v":""},{"$f":"IF('1. Order'!K447=\"\",\"\",'1. Order'!K447)","v":""},{"$f":"IF('1. Order'!M447=\"\",\"\",'1. Order'!M447)","v":""},null,null,null,{"$f":"IF('1. Order'!AF447=\"\",\"\",'1. Order'!AF447)","v":""}]
[{"$f":"IF('1. Order'!B448=\"\",\"\",'1. Order'!B448)","v":""},{"$f":"IF('1. Order'!I448=\"\",\"\",'1. Order'!I448)","v":""},{"$f":"IF('1. Order'!J448=\"\",\"\",'1. Order'!J448)","v":""},{"$f":"IF('1. Order'!K448=\"\",\"\",'1. Order'!K448)","v":""},{"$f":"IF('1. Order'!M448=\"\",\"\",'1. Order'!M448)","v":""},null,null,null,{"$f":"IF('1. Order'!AF448=\"\",\"\",'1. Order'!AF448)","v":""}]
[{"$f":"IF('1. Order'!B449=\"\",\"\",'1. Order'!B449)","v":""},{"$f":"IF('1. Order'!I449=\"\",\"\",'1. Order'!I449)","v":""},{"$f":"IF('1. Order'!J449=\"\",\"\",'1. Order'!J449)","v":""},{"$f":"IF('1. Order'!K449=\"\",\"\",'1. Order'!K449)","v":""},{"$f":"IF('1. Order'!M449=\"\",\"\",'1. Order'!M449)","v":""},null,null,null,{"$f":"IF('1. Order'!AF449=\"\",\"\",'1. Order'!AF449)","v":""}]
[{"$f":"IF('1. Order'!B450=\"\",\"\",'1. Order'!B450)","v":""},{"$f":"IF('1. Order'!I450=\"\",\"\",'1. Order'!I450)","v":""},{"$f":"IF('1. Order'!J450=\"\",\"\",'1. Order'!J450)","v":""},{"$f":"IF('1. Order'!K450=\"\",\"\",'1. Order'!K450)","v":""},{"$f":"IF('1. Order'!M450=\"\",\"\",'1. Order'!M450)","v":""},null,null,null,{"$f":"IF('1. Order'!AF450=\"\",\"\",'1. Order'!AF450)","v":""}]
[{"$f":"IF('1. Order'!B451=\"\",\"\",'1. Order'!B451)","v":""},{"$f":"IF('1. Order'!I451=\"\",\"\",'1. Order'!I451)","v":""},{"$f":"IF('1. Order'!J451=\"\",\"\",'1. Order'!J451)","v":""},{"$f":"IF('1. Order'!K451=\"\",\"\",'1. Order'!K451)","v":""},{"$f":"IF('1. Order'!M451=\"\",\"\",'1. Order'!M451)","v":""},null,null,null,{"$f":"IF('1. Order'!AF451=\"\",\"\",'1. Order'!AF451)","v":""}]
[{"$f":"IF('1. Order'!B452=\"\",\"\",'1. Order'!B452)","v":""},{"$f":"IF('1. Order'!I452=\"\",\"\",'1. Order'!I452)","v":""},{"$f":"IF('1. Order'!J452=\"\",\"\",'1. Order'!J452)","v":""},{"$f":"IF('1. Order'!K452=\"\",\"\",'1. Order'!K452)","v":""},{"$f":"IF('1. Order'!M452=\"\",\"\",'1. Order'!M452)","v":""},null,null,null,{"$f":"IF('1. Order'!AF452=\"\",\"\",'1. Order'!AF452)","v":""}]
[{"$f":"IF('1. Order'!B453=\"\",\"\",'1. Order'!B453)","v":""},{"$f":"IF('1. Order'!I453=\"\",\"\",'1. Order'!I453)","v":""},{"$f":"IF('1. Order'!J453=\"\",\"\",'1. Order'!J453)","v":""},{"$f":"IF('1. Order'!K453=\"\",\"\",'1. Order'!K453)","v":""},{"$f":"IF('1. Order'!M453=\"\",\"\",'1. Order'!M453)","v":""},null,null,null,{"$f":"IF('1. Order'!AF453=\"\",\"\",'1. Order'!AF453)","v":""}]
[{"$f":"IF('1. Order'!B454=\"\",\"\",'1. Order'!B454)","v":""},{"$f":"IF('1. Order'!I454=\"\",\"\",'1. Order'!I454)","v":""},{"$f":"IF('1. Order'!J454=\"\",\"\",'1. Order'!J454)","v":""},{"$f":"IF('1. Order'!K454=\"\",\"\",'1. Order'!K454)","v":""},{"$f":"IF('1. Order'!M454=\"\",\"\",'1. Order'!M454)","v":""},null,null,null,{"$f":"IF('1. Order'!AF454=\"\",\"\",'1. Order'!AF454)","v":""}]
[{"$f":"IF('1. Order'!B455=\"\",\"\",'1. Order'!B455)","v":""},{"$f":"IF('1. Order'!I455=\"\",\"\",'1. Order'!I455)","v":""},{"$f":"IF('1. Order'!J455=\"\",\"\",'1. Order'!J455)","v":""},{"$f":"IF('1. Order'!K455=\"\",\"\",'1. Order'!K455)","v":""},{"$f":"IF('1. Order'!M455=\"\",\"\",'1. Order'!M455)","v":""},null,null,null,{"$f":"IF('1. Order'!AF455=\"\",\"\",'1. Order'!AF455)","v":""}]
[{"$f":"IF('1. Order'!B456=\"\",\"\",'1. Order'!B456)","v":""},{"$f":"IF('1. Order'!I456=\"\",\"\",'1. Order'!I456)","v":""},{"$f":"IF('1. Order'!J456=\"\",\"\",'1. Order'!J456)","v":""},{"$f":"IF('1. Order'!K456=\"\",\"\",'1. Order'!K456)","v":""},{"$f":"IF('1. Order'!M456=\"\",\"\",'1. Order'!M456)","v":""},null,null,null,{"$f":"IF('1. Order'!AF456=\"\",\"\",'1. Order'!AF456)","v":""}]
[{"$f":"IF('1. Order'!B457=\"\",\"\",'1. Order'!B457)","v":""},{"$f":"IF('1. Order'!I457=\"\",\"\",'1. Order'!I457)","v":""},{"$f":"IF('1. Order'!J457=\"\",\"\",'1. Order'!J457)","v":""},{"$f":"IF('1. Order'!K457=\"\",\"\",'1. Order'!K457)","v":""},{"$f":"IF('1. Order'!M457=\"\",\"\",'1. Order'!M457)","v":""},null,null,null,{"$f":"IF('1. Order'!AF457=\"\",\"\",'1. Order'!AF457)","v":""}]
[{"$f":"IF('1. Order'!B458=\"\",\"\",'1. Order'!B458)","v":""},{"$f":"IF('1. Order'!I458=\"\",\"\",'1. Order'!I458)","v":""},{"$f":"IF('1. Order'!J458=\"\",\"\",'1. Order'!J458)","v":""},{"$f":"IF('1. Order'!K458=\"\",\"\",'1. Order'!K458)","v":""},{"$f":"IF('1. Order'!M458=\"\",\"\",'1. Order'!M458)","v":""},null,null,null,{"$f":"IF('1. Order'!AF458=\"\",\"\",'1. Order'!AF458)","v":""}]
[{"$f":"IF('1. Order'!B459=\"\",\"\",'1. Order'!B459)","v":""},{"$f":"IF('1. Order'!I459=\"\",\"\",'1. Order'!I459)","v":""},{"$f":"IF('1. Order'!J459=\"\",\"\",'1. Order'!J459)","v":""},{"$f":"IF('1. Order'!K459=\"\",\"\",'1. Order'!K459)","v":""},{"$f":"IF('1. Order'!M459=\"\",\"\",'1. Order'!M459)","v":""},null,null,null,{"$f":"IF('1. Order'!AF459=\"\",\"\",'1. Order'!AF459)","v":""}]
[{"$f":"IF('1. Order'!B460=\"\",\"\",'1. Order'!B460)","v":""},{"$f":"IF('1. Order'!I460=\"\",\"\",'1. Order'!I460)","v":""},{"$f":"IF('1. Order'!J460=\"\",\"\",'1. Order'!J460)","v":""},{"$f":"IF('1. Order'!K460=\"\",\"\",'1. Order'!K460)","v":""},{"$f":"IF('1. Order'!M460=\"\",\"\",'1. Order'!M460)","v":""},null,null,null,{"$f":"IF('1. Order'!AF460=\"\",\"\",'1. Order'!AF460)","v":""}]
[{"$f":"IF('1. Order'!B461=\"\",\"\",'1. Order'!B461)","v":""},{"$f":"IF('1. Order'!I461=\"\",\"\",'1. Order'!I461)","v":""},{"$f":"IF('1. Order'!J461=\"\",\"\",'1. Order'!J461)","v":""},{"$f":"IF('1. Order'!K461=\"\",\"\",'1. Order'!K461)","v":""},{"$f":"IF('1. Order'!M461=\"\",\"\",'1. Order'!M461)","v":""},null,null,null,{"$f":"IF('1. Order'!AF461=\"\",\"\",'1. Order'!AF461)","v":""}]
[{"$f":"IF('1. Order'!B462=\"\",\"\",'1. Order'!B462)","v":""},{"$f":"IF('1. Order'!I462=\"\",\"\",'1. Order'!I462)","v":""},{"$f":"IF('1. Order'!J462=\"\",\"\",'1. Order'!J462)","v":""},{"$f":"IF('1. Order'!K462=\"\",\"\",'1. Order'!K462)","v":""},{"$f":"IF('1. Order'!M462=\"\",\"\",'1. Order'!M462)","v":""},null,null,null,{"$f":"IF('1. Order'!AF462=\"\",\"\",'1. Order'!AF462)","v":""}]
[{"$f":"IF('1. Order'!B463=\"\",\"\",'1. Order'!B463)","v":""},{"$f":"IF('1. Order'!I463=\"\",\"\",'1. Order'!I463)","v":""},{"$f":"IF('1. Order'!J463=\"\",\"\",'1. Order'!J463)","v":""},{"$f":"IF('1. Order'!K463=\"\",\"\",'1. Order'!K463)","v":""},{"$f":"IF('1. Order'!M463=\"\",\"\",'1. Order'!M463)","v":""},null,null,null,{"$f":"IF('1. Order'!AF463=\"\",\"\",'1. Order'!AF463)","v":""}]
[{"$f":"IF('1. Order'!B464=\"\",\"\",'1. Order'!B464)","v":""},{"$f":"IF('1. Order'!I464=\"\",\"\",'1. Order'!I464)","v":""},{"$f":"IF('1. Order'!J464=\"\",\"\",'1. Order'!J464)","v":""},{"$f":"IF('1. Order'!K464=\"\",\"\",'1. Order'!K464)","v":""},{"$f":"IF('1. Order'!M464=\"\",\"\",'1. Order'!M464)","v":""},null,null,null,{"$f":"IF('1. Order'!AF464=\"\",\"\",'1. Order'!AF464)","v":""}]
[{"$f":"IF('1. Order'!B465=\"\",\"\",'1. Order'!B465)","v":""},{"$f":"IF('1. Order'!I465=\"\",\"\",'1. Order'!I465)","v":""},{"$f":"IF('1. Order'!J465=\"\",\"\",'1. Order'!J465)","v":""},{"$f":"IF('1. Order'!K465=\"\",\"\",'1. Order'!K465)","v":""},{"$f":"IF('1. Order'!M465=\"\",\"\",'1. Order'!M465)","v":""},null,null,null,{"$f":"IF('1. Order'!AF465=\"\",\"\",'1. Order'!AF465)","v":""}]
[{"$f":"IF('1. Order'!B466=\"\",\"\",'1. Order'!B466)","v":""},{"$f":"IF('1. Order'!I466=\"\",\"\",'1. Order'!I466)","v":""},{"$f":"IF('1. Order'!J466=\"\",\"\",'1. Order'!J466)","v":""},{"$f":"IF('1. Order'!K466=\"\",\"\",'1. Order'!K466)","v":""},{"$f":"IF('1. Order'!M466=\"\",\"\",'1. Order'!M466)","v":""},null,null,null,{"$f":"IF('1. Order'!AF466=\"\",\"\",'1. Order'!AF466)","v":""}]
[{"$f":"IF('1. Order'!B467=\"\",\"\",'1. Order'!B467)","v":""},{"$f":"IF('1. Order'!I467=\"\",\"\",'1. Order'!I467)","v":""},{"$f":"IF('1. Order'!J467=\"\",\"\",'1. Order'!J467)","v":""},{"$f":"IF('1. Order'!K467=\"\",\"\",'1. Order'!K467)","v":""},{"$f":"IF('1. Order'!M467=\"\",\"\",'1. Order'!M467)","v":""},null,null,null,{"$f":"IF('1. Order'!AF467=\"\",\"\",'1. Order'!AF467)","v":""}]
[{"$f":"IF('1. Order'!B468=\"\",\"\",'1. Order'!B468)","v":""},{"$f":"IF('1. Order'!I468=\"\",\"\",'1. Order'!I468)","v":""},{"$f":"IF('1. Order'!J468=\"\",\"\",'1. Order'!J468)","v":""},{"$f":"IF('1. Order'!K468=\"\",\"\",'1. Order'!K468)","v":""},{"$f":"IF('1. Order'!M468=\"\",\"\",'1. Order'!M468)","v":""},null,null,null,{"$f":"IF('1. Order'!AF468=\"\",\"\",'1. Order'!AF468)","v":""}]
[{"$f":"IF('1. Order'!B469=\"\",\"\",'1. Order'!B469)","v":""},{"$f":"IF('1. Order'!I469=\"\",\"\",'1. Order'!I469)","v":""},{"$f":"IF('1. Order'!J469=\"\",\"\",'1. Order'!J469)","v":""},{"$f":"IF('1. Order'!K469=\"\",\"\",'1. Order'!K469)","v":""},{"$f":"IF('1. Order'!M469=\"\",\"\",'1. Order'!M469)","v":""},null,null,null,{"$f":"IF('1. Order'!AF469=\"\",\"\",'1. Order'!AF469)","v":""}]
[{"$f":"IF('1. Order'!B470=\"\",\"\",'1. Order'!B470)","v":""},{"$f":"IF('1. Order'!I470=\"\",\"\",'1. Order'!I470)","v":""},{"$f":"IF('1. Order'!J470=\"\",\"\",'1. Order'!J470)","v":""},{"$f":"IF('1. Order'!K470=\"\",\"\",'1. Order'!K470)","v":""},{"$f":"IF('1. Order'!M470=\"\",\"\",'1. Order'!M470)","v":""},null,null,null,{"$f":"IF('1. Order'!AF470=\"\",\"\",'1. Order'!AF470)","v":""}]
[{"$f":"IF('1. Order'!B471=\"\",\"\",'1. Order'!B471)","v":""},{"$f":"IF('1. Order'!I471=\"\",\"\",'1. Order'!I471)","v":""},{"$f":"IF('1. Order'!J471=\"\",\"\",'1. Order'!J471)","v":""},{"$f":"IF('1. Order'!K471=\"\",\"\",'1. Order'!K471)","v":""},{"$f":"IF('1. Order'!M471=\"\",\"\",'1. Order'!M471)","v":""},null,null,null,{"$f":"IF('1. Order'!AF471=\"\",\"\",'1. Order'!AF471)","v":""}]
[{"$f":"IF('1. Order'!B472=\"\",\"\",'1. Order'!B472)","v":""},{"$f":"IF('1. Order'!I472=\"\",\"\",'1. Order'!I472)","v":""},{"$f":"IF('1. Order'!J472=\"\",\"\",'1. Order'!J472)","v":""},{"$f":"IF('1. Order'!K472=\"\",\"\",'1. Order'!K472)","v":""},{"$f":"IF('1. Order'!M472=\"\",\"\",'1. Order'!M472)","v":""},null,null,null,{"$f":"IF('1. Order'!AF472=\"\",\"\",'1. Order'!AF472)","v":""}]
[{"$f":"IF('1. Order'!B473=\"\",\"\",'1. Order'!B473)","v":""},{"$f":"IF('1. Order'!I473=\"\",\"\",'1. Order'!I473)","v":""},{"$f":"IF('1. Order'!J473=\"\",\"\",'1. Order'!J473)","v":""},{"$f":"IF('1. Order'!K473=\"\",\"\",'1. Order'!K473)","v":""},{"$f":"IF('1. Order'!M473=\"\",\"\",'1. Order'!M473)","v":""},null,null,null,{"$f":"IF('1. Order'!AF473=\"\",\"\",'1. Order'!AF473)","v":""}]
[{"$f":"IF('1. Order'!B474=\"\",\"\",'1. Order'!B474)","v":""},{"$f":"IF('1. Order'!I474=\"\",\"\",'1. Order'!I474)","v":""},{"$f":"IF('1. Order'!J474=\"\",\"\",'1. Order'!J474)","v":""},{"$f":"IF('1. Order'!K474=\"\",\"\",'1. Order'!K474)","v":""},{"$f":"IF('1. Order'!M474=\"\",\"\",'1. Order'!M474)","v":""},null,null,null,{"$f":"IF('1. Order'!AF474=\"\",\"\",'1. Order'!AF474)","v":""}]
[{"$f":"IF('1. Order'!B475=\"\",\"\",'1. Order'!B475)","v":""},{"$f":"IF('1. Order'!I475=\"\",\"\",'1. Order'!I475)","v":""},{"$f":"IF('1. Order'!J475=\"\",\"\",'1. Order'!J475)","v":""},{"$f":"IF('1. Order'!K475=\"\",\"\",'1. Order'!K475)","v":""},{"$f":"IF('1. Order'!M475=\"\",\"\",'1. Order'!M475)","v":""},null,null,null,{"$f":"IF('1. Order'!AF475=\"\",\"\",'1. Order'!AF475)","v":""}]
[{"$f":"IF('1. Order'!B476=\"\",\"\",'1. Order'!B476)","v":""},{"$f":"IF('1. Order'!I476=\"\",\"\",'1. Order'!I476)","v":""},{"$f":"IF('1. Order'!J476=\"\",\"\",'1. Order'!J476)","v":""},{"$f":"IF('1. Order'!K476=\"\",\"\",'1. Order'!K476)","v":""},{"$f":"IF('1. Order'!M476=\"\",\"\",'1. Order'!M476)","v":""},null,null,null,{"$f":"IF('1. Order'!AF476=\"\",\"\",'1. Order'!AF476)","v":""}]
[{"$f":"IF('1. Order'!B477=\"\",\"\",'1. Order'!B477)","v":""},{"$f":"IF('1. Order'!I477=\"\",\"\",'1. Order'!I477)","v":""},{"$f":"IF('1. Order'!J477=\"\",\"\",'1. Order'!J477)","v":""},{"$f":"IF('1. Order'!K477=\"\",\"\",'1. Order'!K477)","v":""},{"$f":"IF('1. Order'!M477=\"\",\"\",'1. Order'!M477)","v":""},null,null,null,{"$f":"IF('1. Order'!AF477=\"\",\"\",'1. Order'!AF477)","v":""}]
[{"$f":"IF('1. Order'!B478=\"\",\"\",'1. Order'!B478)","v":""},{"$f":"IF('1. Order'!I478=\"\",\"\",'1. Order'!I478)","v":""},{"$f":"IF('1. Order'!J478=\"\",\"\",'1. Order'!J478)","v":""},{"$f":"IF('1. Order'!K478=\"\",\"\",'1. Order'!K478)","v":""},{"$f":"IF('1. Order'!M478=\"\",\"\",'1. Order'!M478)","v":""},null,null,null,{"$f":"IF('1. Order'!AF478=\"\",\"\",'1. Order'!AF478)","v":""}]
[{"$f":"IF('1. Order'!B479=\"\",\"\",'1. Order'!B479)","v":""},{"$f":"IF('1. Order'!I479=\"\",\"\",'1. Order'!I479)","v":""},{"$f":"IF('1. Order'!J479=\"\",\"\",'1. Order'!J479)","v":""},{"$f":"IF('1. Order'!K479=\"\",\"\",'1. Order'!K479)","v":""},{"$f":"IF('1. Order'!M479=\"\",\"\",'1. Order'!M479)","v":""},null,null,null,{"$f":"IF('1. Order'!AF479=\"\",\"\",'1. Order'!AF479)","v":""}]
[{"$f":"IF('1. Order'!B480=\"\",\"\",'1. Order'!B480)","v":""},{"$f":"IF('1. Order'!I480=\"\",\"\",'1. Order'!I480)","v":""},{"$f":"IF('1. Order'!J480=\"\",\"\",'1. Order'!J480)","v":""},{"$f":"IF('1. Order'!K480=\"\",\"\",'1. Order'!K480)","v":""},{"$f":"IF('1. Order'!M480=\"\",\"\",'1. Order'!M480)","v":""},null,null,null,{"$f":"IF('1. Order'!AF480=\"\",\"\",'1. Order'!AF480)","v":""}]
[{"$f":"IF('1. Order'!B481=\"\",\"\",'1. Order'!B481)","v":""},{"$f":"IF('1. Order'!I481=\"\",\"\",'1. Order'!I481)","v":""},{"$f":"IF('1. Order'!J481=\"\",\"\",'1. Order'!J481)","v":""},{"$f":"IF('1. Order'!K481=\"\",\"\",'1. Order'!K481)","v":""},{"$f":"IF('1. Order'!M481=\"\",\"\",'1. Order'!M481)","v":""},null,null,null,{"$f":"IF('1. Order'!AF481=\"\",\"\",'1. Order'!AF481)","v":""}]
[{"$f":"IF('1. Order'!B482=\"\",\"\",'1. Order'!B482)","v":""},{"$f":"IF('1. Order'!I482=\"\",\"\",'1. Order'!I482)","v":""},{"$f":"IF('1. Order'!J482=\"\",\"\",'1. Order'!J482)","v":""},{"$f":"IF('1. Order'!K482=\"\",\"\",'1. Order'!K482)","v":""},{"$f":"IF('1. Order'!M482=\"\",\"\",'1. Order'!M482)","v":""},null,null,null,{"$f":"IF('1. Order'!AF482=\"\",\"\",'1. Order'!AF482)","v":""}]
[{"$f":"IF('1. Order'!B483=\"\",\"\",'1. Order'!B483)","v":""},{"$f":"IF('1. Order'!I483=\"\",\"\",'1. Order'!I483)","v":""},{"$f":"IF('1. Order'!J483=\"\",\"\",'1. Order'!J483)","v":""},{"$f":"IF('1. Order'!K483=\"\",\"\",'1. Order'!K483)","v":""},{"$f":"IF('1. Order'!M483=\"\",\"\",'1. Order'!M483)","v":""},null,null,null,{"$f":"IF('1. Order'!AF483=\"\",\"\",'1. Order'!AF483)","v":""}]
[{"$f":"IF('1. Order'!B484=\"\",\"\",'1. Order'!B484)","v":""},{"$f":"IF('1. Order'!I484=\"\",\"\",'1. Order'!I484)","v":""},{"$f":"IF('1. Order'!J484=\"\",\"\",'1. Order'!J484)","v":""},{"$f":"IF('1. Order'!K484=\"\",\"\",'1. Order'!K484)","v":""},{"$f":"IF('1. Order'!M484=\"\",\"\",'1. Order'!M484)","v":""},null,null,null,{"$f":"IF('1. Order'!AF484=\"\",\"\",'1. Order'!AF484)","v":""}]
[{"$f":"IF('1. Order'!B485=\"\",\"\",'1. Order'!B485)","v":""},{"$f":"IF('1. Order'!I485=\"\",\"\",'1. Order'!I485)","v":""},{"$f":"IF('1. Order'!J485=\"\",\"\",'1. Order'!J485)","v":""},{"$f":"IF('1. Order'!K485=\"\",\"\",'1. Order'!K485)","v":""},{"$f":"IF('1. Order'!M485=\"\",\"\",'1. Order'!M485)","v":""},null,null,null,{"$f":"IF('1. Order'!AF485=\"\",\"\",'1. Order'!AF485)","v":""}]
[{"$f":"IF('1. Order'!B486=\"\",\"\",'1. Order'!B486)","v":""},{"$f":"IF('1. Order'!I486=\"\",\"\",'1. Order'!I486)","v":""},{"$f":"IF('1. Order'!J486=\"\",\"\",'1. Order'!J486)","v":""},{"$f":"IF('1. Order'!K486=\"\",\"\",'1. Order'!K486)","v":""},{"$f":"IF('1. Order'!M486=\"\",\"\",'1. Order'!M486)","v":""},null,null,null,{"$f":"IF('1. Order'!AF486=\"\",\"\",'1. Order'!AF486)","v":""}]
[{"$f":"IF('1. Order'!B487=\"\",\"\",'1. Order'!B487)","v":""},{"$f":"IF('1. Order'!I487=\"\",\"\",'1. Order'!I487)","v":""},{"$f":"IF('1. Order'!J487=\"\",\"\",'1. Order'!J487)","v":""},{"$f":"IF('1. Order'!K487=\"\",\"\",'1. Order'!K487)","v":""},{"$f":"IF('1. Order'!M487=\"\",\"\",'1. Order'!M487)","v":""},null,null,null,{"$f":"IF('1. Order'!AF487=\"\",\"\",'1. Order'!AF487)","v":""}]
[{"$f":"IF('1. Order'!B488=\"\",\"\",'1. Order'!B488)","v":""},{"$f":"IF('1. Order'!I488=\"\",\"\",'1. Order'!I488)","v":""},{"$f":"IF('1. Order'!J488=\"\",\"\",'1. Order'!J488)","v":""},{"$f":"IF('1. Order'!K488=\"\",\"\",'1. Order'!K488)","v":""},{"$f":"IF('1. Order'!M488=\"\",\"\",'1. Order'!M488)","v":""},null,null,null,{"$f":"IF('1. Order'!AF488=\"\",\"\",'1. Order'!AF488)","v":""}]
[{"$f":"IF('1. Order'!B489=\"\",\"\",'1. Order'!B489)","v":""},{"$f":"IF('1. Order'!I489=\"\",\"\",'1. Order'!I489)","v":""},{"$f":"IF('1. Order'!J489=\"\",\"\",'1. Order'!J489)","v":""},{"$f":"IF('1. Order'!K489=\"\",\"\",'1. Order'!K489)","v":""},{"$f":"IF('1. Order'!M489=\"\",\"\",'1. Order'!M489)","v":""},null,null,null,{"$f":"IF('1. Order'!AF489=\"\",\"\",'1. Order'!AF489)","v":""}]
[{"$f":"IF('1. Order'!B490=\"\",\"\",'1. Order'!B490)","v":""},{"$f":"IF('1. Order'!I490=\"\",\"\",'1. Order'!I490)","v":""},{"$f":"IF('1. Order'!J490=\"\",\"\",'1. Order'!J490)","v":""},{"$f":"IF('1. Order'!K490=\"\",\"\",'1. Order'!K490)","v":""},{"$f":"IF('1. Order'!M490=\"\",\"\",'1. Order'!M490)","v":""},null,null,null,{"$f":"IF('1. Order'!AF490=\"\",\"\",'1. Order'!AF490)","v":""}]
[{"$f":"IF('1. Order'!B491=\"\",\"\",'1. Order'!B491)","v":""},{"$f":"IF('1. Order'!I491=\"\",\"\",'1. Order'!I491)","v":""},{"$f":"IF('1. Order'!J491=\"\",\"\",'1. Order'!J491)","v":""},{"$f":"IF('1. Order'!K491=\"\",\"\",'1. Order'!K491)","v":""},{"$f":"IF('1. Order'!M491=\"\",\"\",'1. Order'!M491)","v":""},null,null,null,{"$f":"IF('1. Order'!AF491=\"\",\"\",'1. Order'!AF491)","v":""}]
[{"$f":"IF('1. Order'!B492=\"\",\"\",'1. Order'!B492)","v":""},{"$f":"IF('1. Order'!I492=\"\",\"\",'1. Order'!I492)","v":""},{"$f":"IF('1. Order'!J492=\"\",\"\",'1. Order'!J492)","v":""},{"$f":"IF('1. Order'!K492=\"\",\"\",'1. Order'!K492)","v":""},{"$f":"IF('1. Order'!M492=\"\",\"\",'1. Order'!M492)","v":""},null,null,null,{"$f":"IF('1. Order'!AF492=\"\",\"\",'1. Order'!AF492)","v":""}]
[{"$f":"IF('1. Order'!B493=\"\",\"\",'1. Order'!B493)","v":""},{"$f":"IF('1. Order'!I493=\"\",\"\",'1. Order'!I493)","v":""},{"$f":"IF('1. Order'!J493=\"\",\"\",'1. Order'!J493)","v":""},{"$f":"IF('1. Order'!K493=\"\",\"\",'1. Order'!K493)","v":""},{"$f":"IF('1. Order'!M493=\"\",\"\",'1. Order'!M493)","v":""},null,null,null,{"$f":"IF('1. Order'!AF493=\"\",\"\",'1. Order'!AF493)","v":""}]
[{"$f":"IF('1. Order'!B494=\"\",\"\",'1. Order'!B494)","v":""},{"$f":"IF('1. Order'!I494=\"\",\"\",'1. Order'!I494)","v":""},{"$f":"IF('1. Order'!J494=\"\",\"\",'1. Order'!J494)","v":""},{"$f":"IF('1. Order'!K494=\"\",\"\",'1. Order'!K494)","v":""},{"$f":"IF('1. Order'!M494=\"\",\"\",'1. Order'!M494)","v":""},null,null,null,{"$f":"IF('1. Order'!AF494=\"\",\"\",'1. Order'!AF494)","v":""}]
[{"$f":"IF('1. Order'!B495=\"\",\"\",'1. Order'!B495)","v":""},{"$f":"IF('1. Order'!I495=\"\",\"\",'1. Order'!I495)","v":""},{"$f":"IF('1. Order'!J495=\"\",\"\",'1. Order'!J495)","v":""},{"$f":"IF('1. Order'!K495=\"\",\"\",'1. Order'!K495)","v":""},{"$f":"IF('1. Order'!M495=\"\",\"\",'1. Order'!M495)","v":""},null,null,null,{"$f":"IF('1. Order'!AF495=\"\",\"\",'1. Order'!AF495)","v":""}]
[{"$f":"IF('1. Order'!B496=\"\",\"\",'1. Order'!B496)","v":""},{"$f":"IF('1. Order'!I496=\"\",\"\",'1. Order'!I496)","v":""},{"$f":"IF('1. Order'!J496=\"\",\"\",'1. Order'!J496)","v":""},{"$f":"IF('1. Order'!K496=\"\",\"\",'1. Order'!K496)","v":""},{"$f":"IF('1. Order'!M496=\"\",\"\",'1. Order'!M496)","v":""},null,null,null,{"$f":"IF('1. Order'!AF496=\"\",\"\",'1. Order'!AF496)","v":""}]
[{"$f":"IF('1. Order'!B497=\"\",\"\",'1. Order'!B497)","v":""},{"$f":"IF('1. Order'!I497=\"\",\"\",'1. Order'!I497)","v":""},{"$f":"IF('1. Order'!J497=\"\",\"\",'1. Order'!J497)","v":""},{"$f":"IF('1. Order'!K497=\"\",\"\",'1. Order'!K497)","v":""},{"$f":"IF('1. Order'!M497=\"\",\"\",'1. Order'!M497)","v":""},null,null,null,{"$f":"IF('1. Order'!AF497=\"\",\"\",'1. Order'!AF497)","v":""}]
[{"$f":"IF('1. Order'!B498=\"\",\"\",'1. Order'!B498)","v":""},{"$f":"IF('1. Order'!I498=\"\",\"\",'1. Order'!I498)","v":""},{"$f":"IF('1. Order'!J498=\"\",\"\",'1. Order'!J498)","v":""},{"$f":"IF('1. Order'!K498=\"\",\"\",'1. Order'!K498)","v":""},{"$f":"IF('1. Order'!M498=\"\",\"\",'1. Order'!M498)","v":""},null,null,null,{"$f":"IF('1. Order'!AF498=\"\",\"\",'1. Order'!AF498)","v":""}]
[{"$f":"IF('1. Order'!B499=\"\",\"\",'1. Order'!B499)","v":""},{"$f":"IF('1. Order'!I499=\"\",\"\",'1. Order'!I499)","v":""},{"$f":"IF('1. Order'!J499=\"\",\"\",'1. Order'!J499)","v":""},{"$f":"IF('1. Order'!K499=\"\",\"\",'1. Order'!K499)","v":""},{"$f":"IF('1. Order'!M499=\"\",\"\",'1. Order'!M499)","v":""},null,null,null,{"$f":"IF('1. Order'!AF499=\"\",\"\",'1. Order'!AF499)","v":""}]
[{"$f":"IF('1. Order'!B500=\"\",\"\",'1. Order'!B500)","v":""},{"$f":"IF('1. Order'!I500=\"\",\"\",'1. Order'!I500)","v":""},{"$f":"IF('1. Order'!J500=\"\",\"\",'1. Order'!J500)","v":""},{"$f":"IF('1. Order'!K500=\"\",\"\",'1. Order'!K500)","v":""},{"$f":"IF('1. Order'!M500=\"\",\"\",'1. Order'!M500)","v":""},null,null,null,{"$f":"IF('1. Order'!AF500=\"\",\"\",'1. Order'!AF500)","v":""}]
[{"$f":"IF('1. Order'!B501=\"\",\"\",'1. Order'!B501)","v":""},{"$f":"IF('1. Order'!I501=\"\",\"\",'1. Order'!I501)","v":""},{"$f":"IF('1. Order'!J501=\"\",\"\",'1. Order'!J501)","v":""},{"$f":"IF('1. Order'!K501=\"\",\"\",'1. Order'!K501)","v":""},{"$f":"IF('1. Order'!M501=\"\",\"\",'1. Order'!M501)","v":""},null,null,null,{"$f":"IF('1. Order'!AF501=\"\",\"\",'1. Order'!AF501)","v":""}]
[{"$f":"IF('1. Order'!B502=\"\",\"\",'1. Order'!B502)","v":""},{"$f":"IF('1. Order'!I502=\"\",\"\",'1. Order'!I502)","v":""},{"$f":"IF('1. Order'!J502=\"\",\"\",'1. Order'!J502)","v":""},{"$f":"IF('1. Order'!K502=\"\",\"\",'1. Order'!K502)","v":""},{"$f":"IF('1. Order'!M502=\"\",\"\",'1. Order'!M502)","v":""},null,null,null,{"$f":"IF('1. Order'!AF502=\"\",\"\",'1. Order'!AF502)","v":""}]
[{"$f":"IF('1. Order'!B503=\"\",\"\",'1. Order'!B503)","v":""},{"$f":"IF('1. Order'!I503=\"\",\"\",'1. Order'!I503)","v":""},{"$f":"IF('1. Order'!J503=\"\",\"\",'1. Order'!J503)","v":""},{"$f":"IF('1. Order'!K503=\"\",\"\",'1. Order'!K503)","v":""},{"$f":"IF('1. Order'!M503=\"\",\"\",'1. Order'!M503)","v":""},null,null,null,{"$f":"IF('1. Order'!AF503=\"\",\"\",'1. Order'!AF503)","v":""}]
[{"$f":"IF('1. Order'!B504=\"\",\"\",'1. Order'!B504)","v":""},{"$f":"IF('1. Order'!I504=\"\",\"\",'1. Order'!I504)","v":""},{"$f":"IF('1. Order'!J504=\"\",\"\",'1. Order'!J504)","v":""},{"$f":"IF('1. Order'!K504=\"\",\"\",'1. Order'!K504)","v":""},{"$f":"IF('1. Order'!M504=\"\",\"\",'1. Order'!M504)","v":""},null,null,null,{"$f":"IF('1. Order'!AF504=\"\",\"\",'1. Order'!AF504)","v":""}]
[{"$f":"IF('1. Order'!B505=\"\",\"\",'1. Order'!B505)","v":""},{"$f":"IF('1. Order'!I505=\"\",\"\",'1. Order'!I505)","v":""},{"$f":"IF('1. Order'!J505=\"\",\"\",'1. Order'!J505)","v":""},{"$f":"IF('1. Order'!K505=\"\",\"\",'1. Order'!K505)","v":""},{"$f":"IF('1. Order'!M505=\"\",\"\",'1. Order'!M505)","v":""},null,null,null,{"$f":"IF('1. Order'!AF505=\"\",\"\",'1. Order'!AF505)","v":""}]
[{"$f":"IF('1. Order'!B506=\"\",\"\",'1. Order'!B506)","v":""},{"$f":"IF('1. Order'!I506=\"\",\"\",'1. Order'!I506)","v":""},{"$f":"IF('1. Order'!J506=\"\",\"\",'1. Order'!J506)","v":""},{"$f":"IF('1. Order'!K506=\"\",\"\",'1. Order'!K506)","v":""},{"$f":"IF('1. Order'!M506=\"\",\"\",'1. Order'!M506)","v":""},null,null,null,{"$f":"IF('1. Order'!AF506=\"\",\"\",'1. Order'!AF506)","v":""}]
[{"$f":"IF('1. Order'!B507=\"\",\"\",'1. Order'!B507)","v":""},{"$f":"IF('1. Order'!I507=\"\",\"\",'1. Order'!I507)","v":""},{"$f":"IF('1. Order'!J507=\"\",\"\",'1. Order'!J507)","v":""},{"$f":"IF('1. Order'!K507=\"\",\"\",'1. Order'!K507)","v":""},{"$f":"IF('1. Order'!M507=\"\",\"\",'1. Order'!M507)","v":""},null,null,null,{"$f":"IF('1. Order'!AF507=\"\",\"\",'1. Order'!AF507)","v":""}]
[{"$f":"IF('1. Order'!B508=\"\",\"\",'1. Order'!B508)","v":""},{"$f":"IF('1. Order'!I508=\"\",\"\",'1. Order'!I508)","v":""},{"$f":"IF('1. Order'!J508=\"\",\"\",'1. Order'!J508)","v":""},{"$f":"IF('1. Order'!K508=\"\",\"\",'1. Order'!K508)","v":""},{"$f":"IF('1. Order'!M508=\"\",\"\",'1. Order'!M508)","v":""},null,null,null,{"$f":"IF('1. Order'!AF508=\"\",\"\",'1. Order'!AF508)","v":""}]
[{"$f":"IF('1. Order'!B509=\"\",\"\",'1. Order'!B509)","v":""},{"$f":"IF('1. Order'!I509=\"\",\"\",'1. Order'!I509)","v":""},{"$f":"IF('1. Order'!J509=\"\",\"\",'1. Order'!J509)","v":""},{"$f":"IF('1. Order'!K509=\"\",\"\",'1. Order'!K509)","v":""},{"$f":"IF('1. Order'!M509=\"\",\"\",'1. Order'!M509)","v":""},null,null,null,{"$f":"IF('1. Order'!AF509=\"\",\"\",'1. Order'!AF509)","v":""}]
[{"$f":"IF('1. Order'!B510=\"\",\"\",'1. Order'!B510)","v":""},{"$f":"IF('1. Order'!I510=\"\",\"\",'1. Order'!I510)","v":""},{"$f":"IF('1. Order'!J510=\"\",\"\",'1. Order'!J510)","v":""},{"$f":"IF('1. Order'!K510=\"\",\"\",'1. Order'!K510)","v":""},{"$f":"IF('1. Order'!M510=\"\",\"\",'1. Order'!M510)","v":""},null,null,null,{"$f":"IF('1. Order'!AF510=\"\",\"\",'1. Order'!AF510)","v":""}]
[{"$f":"IF('1. Order'!B511=\"\",\"\",'1. Order'!B511)","v":""},{"$f":"IF('1. Order'!I511=\"\",\"\",'1. Order'!I511)","v":""},{"$f":"IF('1. Order'!J511=\"\",\"\",'1. Order'!J511)","v":""},{"$f":"IF('1. Order'!K511=\"\",\"\",'1. Order'!K511)","v":""},{"$f":"IF('1. Order'!M511=\"\",\"\",'1. Order'!M511)","v":""},null,null,null,{"$f":"IF('1. Order'!AF511=\"\",\"\",'1. Order'!AF511)","v":""}]
[{"$f":"IF('1. Order'!B512=\"\",\"\",'1. Order'!B512)","v":""},{"$f":"IF('1. Order'!I512=\"\",\"\",'1. Order'!I512)","v":""},{"$f":"IF('1. Order'!J512=\"\",\"\",'1. Order'!J512)","v":""},{"$f":"IF('1. Order'!K512=\"\",\"\",'1. Order'!K512)","v":""},{"$f":"IF('1. Order'!M512=\"\",\"\",'1. Order'!M512)","v":""},null,null,null,{"$f":"IF('1. Order'!AF512=\"\",\"\",'1. Order'!AF512)","v":""}]
[{"$f":"IF('1. Order'!B513=\"\",\"\",'1. Order'!B513)","v":""},{"$f":"IF('1. Order'!I513=\"\",\"\",'1. Order'!I513)","v":""},{"$f":"IF('1. Order'!J513=\"\",\"\",'1. Order'!J513)","v":""},{"$f":"IF('1. Order'!K513=\"\",\"\",'1. Order'!K513)","v":""},{"$f":"IF('1. Order'!M513=\"\",\"\",'1. Order'!M513)","v":""},null,null,null,{"$f":"IF('1. Order'!AF513=\"\",\"\",'1. Order'!AF513)","v":""}]
[{"$f":"IF('1. Order'!B514=\"\",\"\",'1. Order'!B514)","v":""},{"$f":"IF('1. Order'!I514=\"\",\"\",'1. Order'!I514)","v":""},{"$f":"IF('1. Order'!J514=\"\",\"\",'1. Order'!J514)","v":""},{"$f":"IF('1. Order'!K514=\"\",\"\",'1. Order'!K514)","v":""},{"$f":"IF('1. Order'!M514=\"\",\"\",'1. Order'!M514)","v":""},null,null,null,{"$f":"IF('1. Order'!AF514=\"\",\"\",'1. Order'!AF514)","v":""}]
[{"$f":"IF('1. Order'!B515=\"\",\"\",'1. Order'!B515)","v":""},{"$f":"IF('1. Order'!I515=\"\",\"\",'1. Order'!I515)","v":""},{"$f":"IF('1. Order'!J515=\"\",\"\",'1. Order'!J515)","v":""},{"$f":"IF('1. Order'!K515=\"\",\"\",'1. Order'!K515)","v":""},{"$f":"IF('1. Order'!M515=\"\",\"\",'1. Order'!M515)","v":""},null,null,null,{"$f":"IF('1. Order'!AF515=\"\",\"\",'1. Order'!AF515)","v":""}]
[{"$f":"IF('1. Order'!B516=\"\",\"\",'1. Order'!B516)","v":""},{"$f":"IF('1. Order'!I516=\"\",\"\",'1. Order'!I516)","v":""},{"$f":"IF('1. Order'!J516=\"\",\"\",'1. Order'!J516)","v":""},{"$f":"IF('1. Order'!K516=\"\",\"\",'1. Order'!K516)","v":""},{"$f":"IF('1. Order'!M516=\"\",\"\",'1. Order'!M516)","v":""},null,null,null,{"$f":"IF('1. Order'!AF516=\"\",\"\",'1. Order'!AF516)","v":""}]
[{"$f":"IF('1. Order'!B517=\"\",\"\",'1. Order'!B517)","v":""},{"$f":"IF('1. Order'!I517=\"\",\"\",'1. Order'!I517)","v":""},{"$f":"IF('1. Order'!J517=\"\",\"\",'1. Order'!J517)","v":""},{"$f":"IF('1. Order'!K517=\"\",\"\",'1. Order'!K517)","v":""},{"$f":"IF('1. Order'!M517=\"\",\"\",'1. Order'!M517)","v":""},null,null,null,{"$f":"IF('1. Order'!AF517=\"\",\"\",'1. Order'!AF517)","v":""}]
[{"$f":"IF('1. Order'!B518=\"\",\"\",'1. Order'!B518)","v":""},{"$f":"IF('1. Order'!I518=\"\",\"\",'1. Order'!I518)","v":""},{"$f":"IF('1. Order'!J518=\"\",\"\",'1. Order'!J518)","v":""},{"$f":"IF('1. Order'!K518=\"\",\"\",'1. Order'!K518)","v":""},{"$f":"IF('1. Order'!M518=\"\",\"\",'1. Order'!M518)","v":""},null,null,null,{"$f":"IF('1. Order'!AF518=\"\",\"\",'1. Order'!AF518)","v":""}]
[{"$f":"IF('1. Order'!B519=\"\",\"\",'1. Order'!B519)","v":""},{"$f":"IF('1. Order'!I519=\"\",\"\",'1. Order'!I519)","v":""},{"$f":"IF('1. Order'!J519=\"\",\"\",'1. Order'!J519)","v":""},{"$f":"IF('1. Order'!K519=\"\",\"\",'1. Order'!K519)","v":""},{"$f":"IF('1. Order'!M519=\"\",\"\",'1. Order'!M519)","v":""},null,null,null,{"$f":"IF('1. Order'!AF519=\"\",\"\",'1. Order'!AF519)","v":""}]
[{"$f":"IF('1. Order'!B520=\"\",\"\",'1. Order'!B520)","v":""},{"$f":"IF('1. Order'!I520=\"\",\"\",'1. Order'!I520)","v":""},{"$f":"IF('1. Order'!J520=\"\",\"\",'1. Order'!J520)","v":""},{"$f":"IF('1. Order'!K520=\"\",\"\",'1. Order'!K520)","v":""},{"$f":"IF('1. Order'!M520=\"\",\"\",'1. Order'!M520)","v":""},null,null,null,{"$f":"IF('1. Order'!AF520=\"\",\"\",'1. Order'!AF520)","v":""}]
[{"$f":"IF('1. Order'!B521=\"\",\"\",'1. Order'!B521)","v":""},{"$f":"IF('1. Order'!I521=\"\",\"\",'1. Order'!I521)","v":""},{"$f":"IF('1. Order'!J521=\"\",\"\",'1. Order'!J521)","v":""},{"$f":"IF('1. Order'!K521=\"\",\"\",'1. Order'!K521)","v":""},{"$f":"IF('1. Order'!M521=\"\",\"\",'1. Order'!M521)","v":""},null,null,null,{"$f":"IF('1. Order'!AF521=\"\",\"\",'1. Order'!AF521)","v":""}]
[{"$f":"IF('1. Order'!B522=\"\",\"\",'1. Order'!B522)","v":""},{"$f":"IF('1. Order'!I522=\"\",\"\",'1. Order'!I522)","v":""},{"$f":"IF('1. Order'!J522=\"\",\"\",'1. Order'!J522)","v":""},{"$f":"IF('1. Order'!K522=\"\",\"\",'1. Order'!K522)","v":""},{"$f":"IF('1. Order'!M522=\"\",\"\",'1. Order'!M522)","v":""},null,null,null,{"$f":"IF('1. Order'!AF522=\"\",\"\",'1. Order'!AF522)","v":""}]
[{"$f":"IF('1. Order'!B523=\"\",\"\",'1. Order'!B523)","v":""},{"$f":"IF('1. Order'!I523=\"\",\"\",'1. Order'!I523)","v":""},{"$f":"IF('1. Order'!J523=\"\",\"\",'1. Order'!J523)","v":""},{"$f":"IF('1. Order'!K523=\"\",\"\",'1. Order'!K523)","v":""},{"$f":"IF('1. Order'!M523=\"\",\"\",'1. Order'!M523)","v":""},null,null,null,{"$f":"IF('1. Order'!AF523=\"\",\"\",'1. Order'!AF523)","v":""}]
[{"$f":"IF('1. Order'!B524=\"\",\"\",'1. Order'!B524)","v":""},{"$f":"IF('1. Order'!I524=\"\",\"\",'1. Order'!I524)","v":""},{"$f":"IF('1. Order'!J524=\"\",\"\",'1. Order'!J524)","v":""},{"$f":"IF('1. Order'!K524=\"\",\"\",'1. Order'!K524)","v":""},{"$f":"IF('1. Order'!M524=\"\",\"\",'1. Order'!M524)","v":""},null,null,null,{"$f":"IF('1. Order'!AF524=\"\",\"\",'1. Order'!AF524)","v":""}]
[{"$f":"IF('1. Order'!B525=\"\",\"\",'1. Order'!B525)","v":""},{"$f":"IF('1. Order'!I525=\"\",\"\",'1. Order'!I525)","v":""},{"$f":"IF('1. Order'!J525=\"\",\"\",'1. Order'!J525)","v":""},{"$f":"IF('1. Order'!K525=\"\",\"\",'1. Order'!K525)","v":""},{"$f":"IF('1. Order'!M525=\"\",\"\",'1. Order'!M525)","v":""},null,null,null,{"$f":"IF('1. Order'!AF525=\"\",\"\",'1. Order'!AF525)","v":""}]
[{"$f":"IF('1. Order'!B526=\"\",\"\",'1. Order'!B526)","v":""},{"$f":"IF('1. Order'!I526=\"\",\"\",'1. Order'!I526)","v":""},{"$f":"IF('1. Order'!J526=\"\",\"\",'1. Order'!J526)","v":""},{"$f":"IF('1. Order'!K526=\"\",\"\",'1. Order'!K526)","v":""},{"$f":"IF('1. Order'!M526=\"\",\"\",'1. Order'!M526)","v":""},null,null,null,{"$f":"IF('1. Order'!AF526=\"\",\"\",'1. Order'!AF526)","v":""}]
[{"$f":"IF('1. Order'!B527=\"\",\"\",'1. Order'!B527)","v":""},{"$f":"IF('1. Order'!I527=\"\",\"\",'1. Order'!I527)","v":""},{"$f":"IF('1. Order'!J527=\"\",\"\",'1. Order'!J527)","v":""},{"$f":"IF('1. Order'!K527=\"\",\"\",'1. Order'!K527)","v":""},{"$f":"IF('1. Order'!M527=\"\",\"\",'1. Order'!M527)","v":""},null,null,null,{"$f":"IF('1. Order'!AF527=\"\",\"\",'1. Order'!AF527)","v":""}]
[{"$f":"IF('1. Order'!B528=\"\",\"\",'1. Order'!B528)","v":""},{"$f":"IF('1. Order'!I528=\"\",\"\",'1. Order'!I528)","v":""},{"$f":"IF('1. Order'!J528=\"\",\"\",'1. Order'!J528)","v":""},{"$f":"IF('1. Order'!K528=\"\",\"\",'1. Order'!K528)","v":""},{"$f":"IF('1. Order'!M528=\"\",\"\",'1. Order'!M528)","v":""},null,null,null,{"$f":"IF('1. Order'!AF528=\"\",\"\",'1. Order'!AF528)","v":""}]
[{"$f":"IF('1. Order'!B529=\"\",\"\",'1. Order'!B529)","v":""},{"$f":"IF('1. Order'!I529=\"\",\"\",'1. Order'!I529)","v":""},{"$f":"IF('1. Order'!J529=\"\",\"\",'1. Order'!J529)","v":""},{"$f":"IF('1. Order'!K529=\"\",\"\",'1. Order'!K529)","v":""},{"$f":"IF('1. Order'!M529=\"\",\"\",'1. Order'!M529)","v":""},null,null,null,{"$f":"IF('1. Order'!AF529=\"\",\"\",'1. Order'!AF529)","v":""}]
[{"$f":"IF('1. Order'!B530=\"\",\"\",'1. Order'!B530)","v":""},{"$f":"IF('1. Order'!I530=\"\",\"\",'1. Order'!I530)","v":""},{"$f":"IF('1. Order'!J530=\"\",\"\",'1. Order'!J530)","v":""},{"$f":"IF('1. Order'!K530=\"\",\"\",'1. Order'!K530)","v":""},{"$f":"IF('1. Order'!M530=\"\",\"\",'1. Order'!M530)","v":""},null,null,null,{"$f":"IF('1. Order'!AF530=\"\",\"\",'1. Order'!AF530)","v":""}]
[{"$f":"IF('1. Order'!B531=\"\",\"\",'1. Order'!B531)","v":""},{"$f":"IF('1. Order'!I531=\"\",\"\",'1. Order'!I531)","v":""},{"$f":"IF('1. Order'!J531=\"\",\"\",'1. Order'!J531)","v":""},{"$f":"IF('1. Order'!K531=\"\",\"\",'1. Order'!K531)","v":""},{"$f":"IF('1. Order'!M531=\"\",\"\",'1. Order'!M531)","v":""},null,null,null,{"$f":"IF('1. Order'!AF531=\"\",\"\",'1. Order'!AF531)","v":""}]
[{"$f":"IF('1. Order'!B532=\"\",\"\",'1. Order'!B532)","v":""},{"$f":"IF('1. Order'!I532=\"\",\"\",'1. Order'!I532)","v":""},{"$f":"IF('1. Order'!J532=\"\",\"\",'1. Order'!J532)","v":""},{"$f":"IF('1. Order'!K532=\"\",\"\",'1. Order'!K532)","v":""},{"$f":"IF('1. Order'!M532=\"\",\"\",'1. Order'!M532)","v":""},null,null,null,{"$f":"IF('1. Order'!AF532=\"\",\"\",'1. Order'!AF532)","v":""}]
[{"$f":"IF('1. Order'!B533=\"\",\"\",'1. Order'!B533)","v":""},{"$f":"IF('1. Order'!I533=\"\",\"\",'1. Order'!I533)","v":""},{"$f":"IF('1. Order'!J533=\"\",\"\",'1. Order'!J533)","v":""},{"$f":"IF('1. Order'!K533=\"\",\"\",'1. Order'!K533)","v":""},{"$f":"IF('1. Order'!M533=\"\",\"\",'1. Order'!M533)","v":""},null,null,null,{"$f":"IF('1. Order'!AF533=\"\",\"\",'1. Order'!AF533)","v":""}]
[{"$f":"IF('1. Order'!B534=\"\",\"\",'1. Order'!B534)","v":""},{"$f":"IF('1. Order'!I534=\"\",\"\",'1. Order'!I534)","v":""},{"$f":"IF('1. Order'!J534=\"\",\"\",'1. Order'!J534)","v":""},{"$f":"IF('1. Order'!K534=\"\",\"\",'1. Order'!K534)","v":""},{"$f":"IF('1. Order'!M534=\"\",\"\",'1. Order'!M534)","v":""},null,null,null,{"$f":"IF('1. Order'!AF534=\"\",\"\",'1. Order'!AF534)","v":""}]
[{"$f":"IF('1. Order'!B535=\"\",\"\",'1. Order'!B535)","v":""},{"$f":"IF('1. Order'!I535=\"\",\"\",'1. Order'!I535)","v":""},{"$f":"IF('1. Order'!J535=\"\",\"\",'1. Order'!J535)","v":""},{"$f":"IF('1. Order'!K535=\"\",\"\",'1. Order'!K535)","v":""},{"$f":"IF('1. Order'!M535=\"\",\"\",'1. Order'!M535)","v":""},null,null,null,{"$f":"IF('1. Order'!AF535=\"\",\"\",'1. Order'!AF535)","v":""}]
[{"$f":"IF('1. Order'!B536=\"\",\"\",'1. Order'!B536)","v":""},{"$f":"IF('1. Order'!I536=\"\",\"\",'1. Order'!I536)","v":""},{"$f":"IF('1. Order'!J536=\"\",\"\",'1. Order'!J536)","v":""},{"$f":"IF('1. Order'!K536=\"\",\"\",'1. Order'!K536)","v":""},{"$f":"IF('1. Order'!M536=\"\",\"\",'1. Order'!M536)","v":""},null,null,null,{"$f":"IF('1. Order'!AF536=\"\",\"\",'1. Order'!AF536)","v":""}]
[{"$f":"IF('1. Order'!B537=\"\",\"\",'1. Order'!B537)","v":""},{"$f":"IF('1. Order'!I537=\"\",\"\",'1. Order'!I537)","v":""},{"$f":"IF('1. Order'!J537=\"\",\"\",'1. Order'!J537)","v":""},{"$f":"IF('1. Order'!K537=\"\",\"\",'1. Order'!K537)","v":""},{"$f":"IF('1. Order'!M537=\"\",\"\",'1. Order'!M537)","v":""},null,null,null,{"$f":"IF('1. Order'!AF537=\"\",\"\",'1. Order'!AF537)","v":""}]
[{"$f":"IF('1. Order'!B538=\"\",\"\",'1. Order'!B538)","v":""},{"$f":"IF('1. Order'!I538=\"\",\"\",'1. Order'!I538)","v":""},{"$f":"IF('1. Order'!J538=\"\",\"\",'1. Order'!J538)","v":""},{"$f":"IF('1. Order'!K538=\"\",\"\",'1. Order'!K538)","v":""},{"$f":"IF('1. Order'!M538=\"\",\"\",'1. Order'!M538)","v":""},null,null,null,{"$f":"IF('1. Order'!AF538=\"\",\"\",'1. Order'!AF538)","v":""}]
[{"$f":"IF('1. Order'!B539=\"\",\"\",'1. Order'!B539)","v":""},{"$f":"IF('1. Order'!I539=\"\",\"\",'1. Order'!I539)","v":""},{"$f":"IF('1. Order'!J539=\"\",\"\",'1. Order'!J539)","v":""},{"$f":"IF('1. Order'!K539=\"\",\"\",'1. Order'!K539)","v":""},{"$f":"IF('1. Order'!M539=\"\",\"\",'1. Order'!M539)","v":""},null,null,null,{"$f":"IF('1. Order'!AF539=\"\",\"\",'1. Order'!AF539)","v":""}]
[{"$f":"IF('1. Order'!B540=\"\",\"\",'1. Order'!B540)","v":""},{"$f":"IF('1. Order'!I540=\"\",\"\",'1. Order'!I540)","v":""},{"$f":"IF('1. Order'!J540=\"\",\"\",'1. Order'!J540)","v":""},{"$f":"IF('1. Order'!K540=\"\",\"\",'1. Order'!K540)","v":""},{"$f":"IF('1. Order'!M540=\"\",\"\",'1. Order'!M540)","v":""},null,null,null,{"$f":"IF('1. Order'!AF540=\"\",\"\",'1. Order'!AF540)","v":""}]
[{"$f":"IF('1. Order'!B541=\"\",\"\",'1. Order'!B541)","v":""},{"$f":"IF('1. Order'!I541=\"\",\"\",'1. Order'!I541)","v":""},{"$f":"IF('1. Order'!J541=\"\",\"\",'1. Order'!J541)","v":""},{"$f":"IF('1. Order'!K541=\"\",\"\",'1. Order'!K541)","v":""},{"$f":"IF('1. Order'!M541=\"\",\"\",'1. Order'!M541)","v":""},null,null,null,{"$f":"IF('1. Order'!AF541=\"\",\"\",'1. Order'!AF541)","v":""}]
[{"$f":"IF('1. Order'!B542=\"\",\"\",'1. Order'!B542)","v":""},{"$f":"IF('1. Order'!I542=\"\",\"\",'1. Order'!I542)","v":""},{"$f":"IF('1. Order'!J542=\"\",\"\",'1. Order'!J542)","v":""},{"$f":"IF('1. Order'!K542=\"\",\"\",'1. Order'!K542)","v":""},{"$f":"IF('1. Order'!M542=\"\",\"\",'1. Order'!M542)","v":""},null,null,null,{"$f":"IF('1. Order'!AF542=\"\",\"\",'1. Order'!AF542)","v":""}]
[{"$f":"IF('1. Order'!B543=\"\",\"\",'1. Order'!B543)","v":""},{"$f":"IF('1. Order'!I543=\"\",\"\",'1. Order'!I543)","v":""},{"$f":"IF('1. Order'!J543=\"\",\"\",'1. Order'!J543)","v":""},{"$f":"IF('1. Order'!K543=\"\",\"\",'1. Order'!K543)","v":""},{"$f":"IF('1. Order'!M543=\"\",\"\",'1. Order'!M543)","v":""},null,null,null,{"$f":"IF('1. Order'!AF543=\"\",\"\",'1. Order'!AF543)","v":""}]
[{"$f":"IF('1. Order'!B544=\"\",\"\",'1. Order'!B544)","v":""},{"$f":"IF('1. Order'!I544=\"\",\"\",'1. Order'!I544)","v":""},{"$f":"IF('1. Order'!J544=\"\",\"\",'1. Order'!J544)","v":""},{"$f":"IF('1. Order'!K544=\"\",\"\",'1. Order'!K544)","v":""},{"$f":"IF('1. Order'!M544=\"\",\"\",'1. Order'!M544)","v":""},null,null,null,{"$f":"IF('1. Order'!AF544=\"\",\"\",'1. Order'!AF544)","v":""}]
[{"$f":"IF('1. Order'!B545=\"\",\"\",'1. Order'!B545)","v":""},{"$f":"IF('1. Order'!I545=\"\",\"\",'1. Order'!I545)","v":""},{"$f":"IF('1. Order'!J545=\"\",\"\",'1. Order'!J545)","v":""},{"$f":"IF('1. Order'!K545=\"\",\"\",'1. Order'!K545)","v":""},{"$f":"IF('1. Order'!M545=\"\",\"\",'1. Order'!M545)","v":""},null,null,null,{"$f":"IF('1. Order'!AF545=\"\",\"\",'1. Order'!AF545)","v":""}]
[{"$f":"IF('1. Order'!B546=\"\",\"\",'1. Order'!B546)","v":""},{"$f":"IF('1. Order'!I546=\"\",\"\",'1. Order'!I546)","v":""},{"$f":"IF('1. Order'!J546=\"\",\"\",'1. Order'!J546)","v":""},{"$f":"IF('1. Order'!K546=\"\",\"\",'1. Order'!K546)","v":""},{"$f":"IF('1. Order'!M546=\"\",\"\",'1. Order'!M546)","v":""},null,null,null,{"$f":"IF('1. Order'!AF546=\"\",\"\",'1. Order'!AF546)","v":""}]
[{"$f":"IF('1. Order'!B547=\"\",\"\",'1. Order'!B547)","v":""},{"$f":"IF('1. Order'!I547=\"\",\"\",'1. Order'!I547)","v":""},{"$f":"IF('1. Order'!J547=\"\",\"\",'1. Order'!J547)","v":""},{"$f":"IF('1. Order'!K547=\"\",\"\",'1. Order'!K547)","v":""},{"$f":"IF('1. Order'!M547=\"\",\"\",'1. Order'!M547)","v":""},null,null,null,{"$f":"IF('1. Order'!AF547=\"\",\"\",'1. Order'!AF547)","v":""}]
[{"$f":"IF('1. Order'!B548=\"\",\"\",'1. Order'!B548)","v":""},{"$f":"IF('1. Order'!I548=\"\",\"\",'1. Order'!I548)","v":""},{"$f":"IF('1. Order'!J548=\"\",\"\",'1. Order'!J548)","v":""},{"$f":"IF('1. Order'!K548=\"\",\"\",'1. Order'!K548)","v":""},{"$f":"IF('1. Order'!M548=\"\",\"\",'1. Order'!M548)","v":""},null,null,null,{"$f":"IF('1. Order'!AF548=\"\",\"\",'1. Order'!AF548)","v":""}]
[{"$f":"IF('1. Order'!B549=\"\",\"\",'1. Order'!B549)","v":""},{"$f":"IF('1. Order'!I549=\"\",\"\",'1. Order'!I549)","v":""},{"$f":"IF('1. Order'!J549=\"\",\"\",'1. Order'!J549)","v":""},{"$f":"IF('1. Order'!K549=\"\",\"\",'1. Order'!K549)","v":""},{"$f":"IF('1. Order'!M549=\"\",\"\",'1. Order'!M549)","v":""},null,null,null,{"$f":"IF('1. Order'!AF549=\"\",\"\",'1. Order'!AF549)","v":""}]
[{"$f":"IF('1. Order'!B550=\"\",\"\",'1. Order'!B550)","v":""},{"$f":"IF('1. Order'!I550=\"\",\"\",'1. Order'!I550)","v":""},{"$f":"IF('1. Order'!J550=\"\",\"\",'1. Order'!J550)","v":""},{"$f":"IF('1. Order'!K550=\"\",\"\",'1. Order'!K550)","v":""},{"$f":"IF('1. Order'!M550=\"\",\"\",'1. Order'!M550)","v":""},null,null,null,{"$f":"IF('1. Order'!AF550=\"\",\"\",'1. Order'!AF550)","v":""}]
[{"$f":"IF('1. Order'!B551=\"\",\"\",'1. Order'!B551)","v":""},{"$f":"IF('1. Order'!I551=\"\",\"\",'1. Order'!I551)","v":""},{"$f":"IF('1. Order'!J551=\"\",\"\",'1. Order'!J551)","v":""},{"$f":"IF('1. Order'!K551=\"\",\"\",'1. Order'!K551)","v":""},{"$f":"IF('1. Order'!M551=\"\",\"\",'1. Order'!M551)","v":""},null,null,null,{"$f":"IF('1. Order'!AF551=\"\",\"\",'1. Order'!AF551)","v":""}]
[{"$f":"IF('1. Order'!B552=\"\",\"\",'1. Order'!B552)","v":""},{"$f":"IF('1. Order'!I552=\"\",\"\",'1. Order'!I552)","v":""},{"$f":"IF('1. Order'!J552=\"\",\"\",'1. Order'!J552)","v":""},{"$f":"IF('1. Order'!K552=\"\",\"\",'1. Order'!K552)","v":""},{"$f":"IF('1. Order'!M552=\"\",\"\",'1. Order'!M552)","v":""},null,null,null,{"$f":"IF('1. Order'!AF552=\"\",\"\",'1. Order'!AF552)","v":""}]
[{"$f":"IF('1. Order'!B553=\"\",\"\",'1. Order'!B553)","v":""},{"$f":"IF('1. Order'!I553=\"\",\"\",'1. Order'!I553)","v":""},{"$f":"IF('1. Order'!J553=\"\",\"\",'1. Order'!J553)","v":""},{"$f":"IF('1. Order'!K553=\"\",\"\",'1. Order'!K553)","v":""},{"$f":"IF('1. Order'!M553=\"\",\"\",'1. Order'!M553)","v":""},null,null,null,{"$f":"IF('1. Order'!AF553=\"\",\"\",'1. Order'!AF553)","v":""}]
[{"$f":"IF('1. Order'!B554=\"\",\"\",'1. Order'!B554)","v":""},{"$f":"IF('1. Order'!I554=\"\",\"\",'1. Order'!I554)","v":""},{"$f":"IF('1. Order'!J554=\"\",\"\",'1. Order'!J554)","v":""},{"$f":"IF('1. Order'!K554=\"\",\"\",'1. Order'!K554)","v":""},{"$f":"IF('1. Order'!M554=\"\",\"\",'1. Order'!M554)","v":""},null,null,null,{"$f":"IF('1. Order'!AF554=\"\",\"\",'1. Order'!AF554)","v":""}]
[{"$f":"IF('1. Order'!B555=\"\",\"\",'1. Order'!B555)","v":""},{"$f":"IF('1. Order'!I555=\"\",\"\",'1. Order'!I555)","v":""},{"$f":"IF('1. Order'!J555=\"\",\"\",'1. Order'!J555)","v":""},{"$f":"IF('1. Order'!K555=\"\",\"\",'1. Order'!K555)","v":""},{"$f":"IF('1. Order'!M555=\"\",\"\",'1. Order'!M555)","v":""},null,null,null,{"$f":"IF('1. Order'!AF555=\"\",\"\",'1. Order'!AF555)","v":""}]
[{"$f":"IF('1. Order'!B556=\"\",\"\",'1. Order'!B556)","v":""},{"$f":"IF('1. Order'!I556=\"\",\"\",'1. Order'!I556)","v":""},{"$f":"IF('1. Order'!J556=\"\",\"\",'1. Order'!J556)","v":""},{"$f":"IF('1. Order'!K556=\"\",\"\",'1. Order'!K556)","v":""},{"$f":"IF('1. Order'!M556=\"\",\"\",'1. Order'!M556)","v":""},null,null,null,{"$f":"IF('1. Order'!AF556=\"\",\"\",'1. Order'!AF556)","v":""}]
[{"$f":"IF('1. Order'!B557=\"\",\"\",'1. Order'!B557)","v":""},{"$f":"IF('1. Order'!I557=\"\",\"\",'1. Order'!I557)","v":""},{"$f":"IF('1. Order'!J557=\"\",\"\",'1. Order'!J557)","v":""},{"$f":"IF('1. Order'!K557=\"\",\"\",'1. Order'!K557)","v":""},{"$f":"IF('1. Order'!M557=\"\",\"\",'1. Order'!M557)","v":""},null,null,null,{"$f":"IF('1. Order'!AF557=\"\",\"\",'1. Order'!AF557)","v":""}]
[{"$f":"IF('1. Order'!B558=\"\",\"\",'1. Order'!B558)","v":""},{"$f":"IF('1. Order'!I558=\"\",\"\",'1. Order'!I558)","v":""},{"$f":"IF('1. Order'!J558=\"\",\"\",'1. Order'!J558)","v":""},{"$f":"IF('1. Order'!K558=\"\",\"\",'1. Order'!K558)","v":""},{"$f":"IF('1. Order'!M558=\"\",\"\",'1. Order'!M558)","v":""},null,null,null,{"$f":"IF('1. Order'!AF558=\"\",\"\",'1. Order'!AF558)","v":""}]
[{"$f":"IF('1. Order'!B559=\"\",\"\",'1. Order'!B559)","v":""},{"$f":"IF('1. Order'!I559=\"\",\"\",'1. Order'!I559)","v":""},{"$f":"IF('1. Order'!J559=\"\",\"\",'1. Order'!J559)","v":""},{"$f":"IF('1. Order'!K559=\"\",\"\",'1. Order'!K559)","v":""},{"$f":"IF('1. Order'!M559=\"\",\"\",'1. Order'!M559)","v":""},null,null,null,{"$f":"IF('1. Order'!AF559=\"\",\"\",'1. Order'!AF559)","v":""}]
[{"$f":"IF('1. Order'!B560=\"\",\"\",'1. Order'!B560)","v":""},{"$f":"IF('1. Order'!I560=\"\",\"\",'1. Order'!I560)","v":""},{"$f":"IF('1. Order'!J560=\"\",\"\",'1. Order'!J560)","v":""},{"$f":"IF('1. Order'!K560=\"\",\"\",'1. Order'!K560)","v":""},{"$f":"IF('1. Order'!M560=\"\",\"\",'1. Order'!M560)","v":""},null,null,null,{"$f":"IF('1. Order'!AF560=\"\",\"\",'1. Order'!AF560)","v":""}]
[{"$f":"IF('1. Order'!B561=\"\",\"\",'1. Order'!B561)","v":""},{"$f":"IF('1. Order'!I561=\"\",\"\",'1. Order'!I561)","v":""},{"$f":"IF('1. Order'!J561=\"\",\"\",'1. Order'!J561)","v":""},{"$f":"IF('1. Order'!K561=\"\",\"\",'1. Order'!K561)","v":""},{"$f":"IF('1. Order'!M561=\"\",\"\",'1. Order'!M561)","v":""},null,null,null,{"$f":"IF('1. Order'!AF561=\"\",\"\",'1. Order'!AF561)","v":""}]
[{"$f":"IF('1. Order'!B562=\"\",\"\",'1. Order'!B562)","v":""},{"$f":"IF('1. Order'!I562=\"\",\"\",'1. Order'!I562)","v":""},{"$f":"IF('1. Order'!J562=\"\",\"\",'1. Order'!J562)","v":""},{"$f":"IF('1. Order'!K562=\"\",\"\",'1. Order'!K562)","v":""},{"$f":"IF('1. Order'!M562=\"\",\"\",'1. Order'!M562)","v":""},null,null,null,{"$f":"IF('1. Order'!AF562=\"\",\"\",'1. Order'!AF562)","v":""}]
[{"$f":"IF('1. Order'!B563=\"\",\"\",'1. Order'!B563)","v":""},{"$f":"IF('1. Order'!I563=\"\",\"\",'1. Order'!I563)","v":""},{"$f":"IF('1. Order'!J563=\"\",\"\",'1. Order'!J563)","v":""},{"$f":"IF('1. Order'!K563=\"\",\"\",'1. Order'!K563)","v":""},{"$f":"IF('1. Order'!M563=\"\",\"\",'1. Order'!M563)","v":""},null,null,null,{"$f":"IF('1. Order'!AF563=\"\",\"\",'1. Order'!AF563)","v":""}]
[{"$f":"IF('1. Order'!B564=\"\",\"\",'1. Order'!B564)","v":""},{"$f":"IF('1. Order'!I564=\"\",\"\",'1. Order'!I564)","v":""},{"$f":"IF('1. Order'!J564=\"\",\"\",'1. Order'!J564)","v":""},{"$f":"IF('1. Order'!K564=\"\",\"\",'1. Order'!K564)","v":""},{"$f":"IF('1. Order'!M564=\"\",\"\",'1. Order'!M564)","v":""},null,null,null,{"$f":"IF('1. Order'!AF564=\"\",\"\",'1. Order'!AF564)","v":""}]
[{"$f":"IF('1. Order'!B565=\"\",\"\",'1. Order'!B565)","v":""},{"$f":"IF('1. Order'!I565=\"\",\"\",'1. Order'!I565)","v":""},{"$f":"IF('1. Order'!J565=\"\",\"\",'1. Order'!J565)","v":""},{"$f":"IF('1. Order'!K565=\"\",\"\",'1. Order'!K565)","v":""},{"$f":"IF('1. Order'!M565=\"\",\"\",'1. Order'!M565)","v":""},null,null,null,{"$f":"IF('1. Order'!AF565=\"\",\"\",'1. Order'!AF565)","v":""}]
[{"$f":"IF('1. Order'!B566=\"\",\"\",'1. Order'!B566)","v":""},{"$f":"IF('1. Order'!I566=\"\",\"\",'1. Order'!I566)","v":""},{"$f":"IF('1. Order'!J566=\"\",\"\",'1. Order'!J566)","v":""},{"$f":"IF('1. Order'!K566=\"\",\"\",'1. Order'!K566)","v":""},{"$f":"IF('1. Order'!M566=\"\",\"\",'1. Order'!M566)","v":""},null,null,null,{"$f":"IF('1. Order'!AF566=\"\",\"\",'1. Order'!AF566)","v":""}]
[{"$f":"IF('1. Order'!B567=\"\",\"\",'1. Order'!B567)","v":""},{"$f":"IF('1. Order'!I567=\"\",\"\",'1. Order'!I567)","v":""},{"$f":"IF('1. Order'!J567=\"\",\"\",'1. Order'!J567)","v":""},{"$f":"IF('1. Order'!K567=\"\",\"\",'1. Order'!K567)","v":""},{"$f":"IF('1. Order'!M567=\"\",\"\",'1. Order'!M567)","v":""},null,null,null,{"$f":"IF('1. Order'!AF567=\"\",\"\",'1. Order'!AF567)","v":""}]
[{"$f":"IF('1. Order'!B568=\"\",\"\",'1. Order'!B568)","v":""},{"$f":"IF('1. Order'!I568=\"\",\"\",'1. Order'!I568)","v":""},{"$f":"IF('1. Order'!J568=\"\",\"\",'1. Order'!J568)","v":""},{"$f":"IF('1. Order'!K568=\"\",\"\",'1. Order'!K568)","v":""},{"$f":"IF('1. Order'!M568=\"\",\"\",'1. Order'!M568)","v":""},null,null,null,{"$f":"IF('1. Order'!AF568=\"\",\"\",'1. Order'!AF568)","v":""}]
[{"$f":"IF('1. Order'!B569=\"\",\"\",'1. Order'!B569)","v":""},{"$f":"IF('1. Order'!I569=\"\",\"\",'1. Order'!I569)","v":""},{"$f":"IF('1. Order'!J569=\"\",\"\",'1. Order'!J569)","v":""},{"$f":"IF('1. Order'!K569=\"\",\"\",'1. Order'!K569)","v":""},{"$f":"IF('1. Order'!M569=\"\",\"\",'1. Order'!M569)","v":""},null,null,null,{"$f":"IF('1. Order'!AF569=\"\",\"\",'1. Order'!AF569)","v":""}]
[{"$f":"IF('1. Order'!B570=\"\",\"\",'1. Order'!B570)","v":""},{"$f":"IF('1. Order'!I570=\"\",\"\",'1. Order'!I570)","v":""},{"$f":"IF('1. Order'!J570=\"\",\"\",'1. Order'!J570)","v":""},{"$f":"IF('1. Order'!K570=\"\",\"\",'1. Order'!K570)","v":""},{"$f":"IF('1. Order'!M570=\"\",\"\",'1. Order'!M570)","v":""},null,null,null,{"$f":"IF('1. Order'!AF570=\"\",\"\",'1. Order'!AF570)","v":""}]
[{"$f":"IF('1. Order'!B571=\"\",\"\",'1. Order'!B571)","v":""},{"$f":"IF('1. Order'!I571=\"\",\"\",'1. Order'!I571)","v":""},{"$f":"IF('1. Order'!J571=\"\",\"\",'1. Order'!J571)","v":""},{"$f":"IF('1. Order'!K571=\"\",\"\",'1. Order'!K571)","v":""},{"$f":"IF('1. Order'!M571=\"\",\"\",'1. Order'!M571)","v":""},null,null,null,{"$f":"IF('1. Order'!AF571=\"\",\"\",'1. Order'!AF571)","v":""}]
[{"$f":"IF('1. Order'!B572=\"\",\"\",'1. Order'!B572)","v":""},{"$f":"IF('1. Order'!I572=\"\",\"\",'1. Order'!I572)","v":""},{"$f":"IF('1. Order'!J572=\"\",\"\",'1. Order'!J572)","v":""},{"$f":"IF('1. Order'!K572=\"\",\"\",'1. Order'!K572)","v":""},{"$f":"IF('1. Order'!M572=\"\",\"\",'1. Order'!M572)","v":""},null,null,null,{"$f":"IF('1. Order'!AF572=\"\",\"\",'1. Order'!AF572)","v":""}]
[{"$f":"IF('1. Order'!B573=\"\",\"\",'1. Order'!B573)","v":""},{"$f":"IF('1. Order'!I573=\"\",\"\",'1. Order'!I573)","v":""},{"$f":"IF('1. Order'!J573=\"\",\"\",'1. Order'!J573)","v":""},{"$f":"IF('1. Order'!K573=\"\",\"\",'1. Order'!K573)","v":""},{"$f":"IF('1. Order'!M573=\"\",\"\",'1. Order'!M573)","v":""},null,null,null,{"$f":"IF('1. Order'!AF573=\"\",\"\",'1. Order'!AF573)","v":""}]
[{"$f":"IF('1. Order'!B574=\"\",\"\",'1. Order'!B574)","v":""},{"$f":"IF('1. Order'!I574=\"\",\"\",'1. Order'!I574)","v":""},{"$f":"IF('1. Order'!J574=\"\",\"\",'1. Order'!J574)","v":""},{"$f":"IF('1. Order'!K574=\"\",\"\",'1. Order'!K574)","v":""},{"$f":"IF('1. Order'!M574=\"\",\"\",'1. Order'!M574)","v":""},null,null,null,{"$f":"IF('1. Order'!AF574=\"\",\"\",'1. Order'!AF574)","v":""}]
[{"$f":"IF('1. Order'!B575=\"\",\"\",'1. Order'!B575)","v":""},{"$f":"IF('1. Order'!I575=\"\",\"\",'1. Order'!I575)","v":""},{"$f":"IF('1. Order'!J575=\"\",\"\",'1. Order'!J575)","v":""},{"$f":"IF('1. Order'!K575=\"\",\"\",'1. Order'!K575)","v":""},{"$f":"IF('1. Order'!M575=\"\",\"\",'1. Order'!M575)","v":""},null,null,null,{"$f":"IF('1. Order'!AF575=\"\",\"\",'1. Order'!AF575)","v":""}]
[{"$f":"IF('1. Order'!B576=\"\",\"\",'1. Order'!B576)","v":""},{"$f":"IF('1. Order'!I576=\"\",\"\",'1. Order'!I576)","v":""},{"$f":"IF('1. Order'!J576=\"\",\"\",'1. Order'!J576)","v":""},{"$f":"IF('1. Order'!K576=\"\",\"\",'1. Order'!K576)","v":""},{"$f":"IF('1. Order'!M576=\"\",\"\",'1. Order'!M576)","v":""},null,null,null,{"$f":"IF('1. Order'!AF576=\"\",\"\",'1. Order'!AF576)","v":""}]
[{"$f":"IF('1. Order'!B577=\"\",\"\",'1. Order'!B577)","v":""},{"$f":"IF('1. Order'!I577=\"\",\"\",'1. Order'!I577)","v":""},{"$f":"IF('1. Order'!J577=\"\",\"\",'1. Order'!J577)","v":""},{"$f":"IF('1. Order'!K577=\"\",\"\",'1. Order'!K577)","v":""},{"$f":"IF('1. Order'!M577=\"\",\"\",'1. Order'!M577)","v":""},null,null,null,{"$f":"IF('1. Order'!AF577=\"\",\"\",'1. Order'!AF577)","v":""}]
[{"$f":"IF('1. Order'!B578=\"\",\"\",'1. Order'!B578)","v":""},{"$f":"IF('1. Order'!I578=\"\",\"\",'1. Order'!I578)","v":""},{"$f":"IF('1. Order'!J578=\"\",\"\",'1. Order'!J578)","v":""},{"$f":"IF('1. Order'!K578=\"\",\"\",'1. Order'!K578)","v":""},{"$f":"IF('1. Order'!M578=\"\",\"\",'1. Order'!M578)","v":""},null,null,null,{"$f":"IF('1. Order'!AF578=\"\",\"\",'1. Order'!AF578)","v":""}]
[{"$f":"IF('1. Order'!B579=\"\",\"\",'1. Order'!B579)","v":""},{"$f":"IF('1. Order'!I579=\"\",\"\",'1. Order'!I579)","v":""},{"$f":"IF('1. Order'!J579=\"\",\"\",'1. Order'!J579)","v":""},{"$f":"IF('1. Order'!K579=\"\",\"\",'1. Order'!K579)","v":""},{"$f":"IF('1. Order'!M579=\"\",\"\",'1. Order'!M579)","v":""},null,null,null,{"$f":"IF('1. Order'!AF579=\"\",\"\",'1. Order'!AF579)","v":""}]
[{"$f":"IF('1. Order'!B580=\"\",\"\",'1. Order'!B580)","v":""},{"$f":"IF('1. Order'!I580=\"\",\"\",'1. Order'!I580)","v":""},{"$f":"IF('1. Order'!J580=\"\",\"\",'1. Order'!J580)","v":""},{"$f":"IF('1. Order'!K580=\"\",\"\",'1. Order'!K580)","v":""},{"$f":"IF('1. Order'!M580=\"\",\"\",'1. Order'!M580)","v":""},null,null,null,{"$f":"IF('1. Order'!AF580=\"\",\"\",'1. Order'!AF580)","v":""}]
[{"$f":"IF('1. Order'!B581=\"\",\"\",'1. Order'!B581)","v":""},{"$f":"IF('1. Order'!I581=\"\",\"\",'1. Order'!I581)","v":""},{"$f":"IF('1. Order'!J581=\"\",\"\",'1. Order'!J581)","v":""},{"$f":"IF('1. Order'!K581=\"\",\"\",'1. Order'!K581)","v":""},{"$f":"IF('1. Order'!M581=\"\",\"\",'1. Order'!M581)","v":""},null,null,null,{"$f":"IF('1. Order'!AF581=\"\",\"\",'1. Order'!AF581)","v":""}]
[{"$f":"IF('1. Order'!B582=\"\",\"\",'1. Order'!B582)","v":""},{"$f":"IF('1. Order'!I582=\"\",\"\",'1. Order'!I582)","v":""},{"$f":"IF('1. Order'!J582=\"\",\"\",'1. Order'!J582)","v":""},{"$f":"IF('1. Order'!K582=\"\",\"\",'1. Order'!K582)","v":""},{"$f":"IF('1. Order'!M582=\"\",\"\",'1. Order'!M582)","v":""},null,null,null,{"$f":"IF('1. Order'!AF582=\"\",\"\",'1. Order'!AF582)","v":""}]
[{"$f":"IF('1. Order'!B583=\"\",\"\",'1. Order'!B583)","v":""},{"$f":"IF('1. Order'!I583=\"\",\"\",'1. Order'!I583)","v":""},{"$f":"IF('1. Order'!J583=\"\",\"\",'1. Order'!J583)","v":""},{"$f":"IF('1. Order'!K583=\"\",\"\",'1. Order'!K583)","v":""},{"$f":"IF('1. Order'!M583=\"\",\"\",'1. Order'!M583)","v":""},null,null,null,{"$f":"IF('1. Order'!AF583=\"\",\"\",'1. Order'!AF583)","v":""}]
[{"$f":"IF('1. Order'!B584=\"\",\"\",'1. Order'!B584)","v":""},{"$f":"IF('1. Order'!I584=\"\",\"\",'1. Order'!I584)","v":""},{"$f":"IF('1. Order'!J584=\"\",\"\",'1. Order'!J584)","v":""},{"$f":"IF('1. Order'!K584=\"\",\"\",'1. Order'!K584)","v":""},{"$f":"IF('1. Order'!M584=\"\",\"\",'1. Order'!M584)","v":""},null,null,null,{"$f":"IF('1. Order'!AF584=\"\",\"\",'1. Order'!AF584)","v":""}]
[{"$f":"IF('1. Order'!B585=\"\",\"\",'1. Order'!B585)","v":""},{"$f":"IF('1. Order'!I585=\"\",\"\",'1. Order'!I585)","v":""},{"$f":"IF('1. Order'!J585=\"\",\"\",'1. Order'!J585)","v":""},{"$f":"IF('1. Order'!K585=\"\",\"\",'1. Order'!K585)","v":""},{"$f":"IF('1. Order'!M585=\"\",\"\",'1. Order'!M585)","v":""},null,null,null,{"$f":"IF('1. Order'!AF585=\"\",\"\",'1. Order'!AF585)","v":""}]
[{"$f":"IF('1. Order'!B586=\"\",\"\",'1. Order'!B586)","v":""},{"$f":"IF('1. Order'!I586=\"\",\"\",'1. Order'!I586)","v":""},{"$f":"IF('1. Order'!J586=\"\",\"\",'1. Order'!J586)","v":""},{"$f":"IF('1. Order'!K586=\"\",\"\",'1. Order'!K586)","v":""},{"$f":"IF('1. Order'!M586=\"\",\"\",'1. Order'!M586)","v":""},null,null,null,{"$f":"IF('1. Order'!AF586=\"\",\"\",'1. Order'!AF586)","v":""}]
[{"$f":"IF('1. Order'!B587=\"\",\"\",'1. Order'!B587)","v":""},{"$f":"IF('1. Order'!I587=\"\",\"\",'1. Order'!I587)","v":""},{"$f":"IF('1. Order'!J587=\"\",\"\",'1. Order'!J587)","v":""},{"$f":"IF('1. Order'!K587=\"\",\"\",'1. Order'!K587)","v":""},{"$f":"IF('1. Order'!M587=\"\",\"\",'1. Order'!M587)","v":""},null,null,null,{"$f":"IF('1. Order'!AF587=\"\",\"\",'1. Order'!AF587)","v":""}]
[{"$f":"IF('1. Order'!B588=\"\",\"\",'1. Order'!B588)","v":""},{"$f":"IF('1. Order'!I588=\"\",\"\",'1. Order'!I588)","v":""},{"$f":"IF('1. Order'!J588=\"\",\"\",'1. Order'!J588)","v":""},{"$f":"IF('1. Order'!K588=\"\",\"\",'1. Order'!K588)","v":""},{"$f":"IF('1. Order'!M588=\"\",\"\",'1. Order'!M588)","v":""},null,null,null,{"$f":"IF('1. Order'!AF588=\"\",\"\",'1. Order'!AF588)","v":""}]
[{"$f":"IF('1. Order'!B589=\"\",\"\",'1. Order'!B589)","v":""},{"$f":"IF('1. Order'!I589=\"\",\"\",'1. Order'!I589)","v":""},{"$f":"IF('1. Order'!J589=\"\",\"\",'1. Order'!J589)","v":""},{"$f":"IF('1. Order'!K589=\"\",\"\",'1. Order'!K589)","v":""},{"$f":"IF('1. Order'!M589=\"\",\"\",'1. Order'!M589)","v":""},null,null,null,{"$f":"IF('1. Order'!AF589=\"\",\"\",'1. Order'!AF589)","v":""}]
[{"$f":"IF('1. Order'!B590=\"\",\"\",'1. Order'!B590)","v":""},{"$f":"IF('1. Order'!I590=\"\",\"\",'1. Order'!I590)","v":""},{"$f":"IF('1. Order'!J590=\"\",\"\",'1. Order'!J590)","v":""},{"$f":"IF('1. Order'!K590=\"\",\"\",'1. Order'!K590)","v":""},{"$f":"IF('1. Order'!M590=\"\",\"\",'1. Order'!M590)","v":""},null,null,null,{"$f":"IF('1. Order'!AF590=\"\",\"\",'1. Order'!AF590)","v":""}]
[{"$f":"IF('1. Order'!B591=\"\",\"\",'1. Order'!B591)","v":""},{"$f":"IF('1. Order'!I591=\"\",\"\",'1. Order'!I591)","v":""},{"$f":"IF('1. Order'!J591=\"\",\"\",'1. Order'!J591)","v":""},{"$f":"IF('1. Order'!K591=\"\",\"\",'1. Order'!K591)","v":""},{"$f":"IF('1. Order'!M591=\"\",\"\",'1. Order'!M591)","v":""},null,null,null,{"$f":"IF('1. Order'!AF591=\"\",\"\",'1. Order'!AF591)","v":""}]
[{"$f":"IF('1. Order'!B592=\"\",\"\",'1. Order'!B592)","v":""},{"$f":"IF('1. Order'!I592=\"\",\"\",'1. Order'!I592)","v":""},{"$f":"IF('1. Order'!J592=\"\",\"\",'1. Order'!J592)","v":""},{"$f":"IF('1. Order'!K592=\"\",\"\",'1. Order'!K592)","v":""},{"$f":"IF('1. Order'!M592=\"\",\"\",'1. Order'!M592)","v":""},null,null,null,{"$f":"IF('1. Order'!AF592=\"\",\"\",'1. Order'!AF592)","v":""}]
[{"$f":"IF('1. Order'!B593=\"\",\"\",'1. Order'!B593)","v":""},{"$f":"IF('1. Order'!I593=\"\",\"\",'1. Order'!I593)","v":""},{"$f":"IF('1. Order'!J593=\"\",\"\",'1. Order'!J593)","v":""},{"$f":"IF('1. Order'!K593=\"\",\"\",'1. Order'!K593)","v":""},{"$f":"IF('1. Order'!M593=\"\",\"\",'1. Order'!M593)","v":""},null,null,null,{"$f":"IF('1. Order'!AF593=\"\",\"\",'1. Order'!AF593)","v":""}]
[{"$f":"IF('1. Order'!B594=\"\",\"\",'1. Order'!B594)","v":""},{"$f":"IF('1. Order'!I594=\"\",\"\",'1. Order'!I594)","v":""},{"$f":"IF('1. Order'!J594=\"\",\"\",'1. Order'!J594)","v":""},{"$f":"IF('1. Order'!K594=\"\",\"\",'1. Order'!K594)","v":""},{"$f":"IF('1. Order'!M594=\"\",\"\",'1. Order'!M594)","v":""},null,null,null,{"$f":"IF('1. Order'!AF594=\"\",\"\",'1. Order'!AF594)","v":""}]
[{"$f":"IF('1. Order'!B595=\"\",\"\",'1. Order'!B595)","v":""},{"$f":"IF('1. Order'!I595=\"\",\"\",'1. Order'!I595)","v":""},{"$f":"IF('1. Order'!J595=\"\",\"\",'1. Order'!J595)","v":""},{"$f":"IF('1. Order'!K595=\"\",\"\",'1. Order'!K595)","v":""},{"$f":"IF('1. Order'!M595=\"\",\"\",'1. Order'!M595)","v":""},null,null,null,{"$f":"IF('1. Order'!AF595=\"\",\"\",'1. Order'!AF595)","v":""}]
[{"$f":"IF('1. Order'!B596=\"\",\"\",'1. Order'!B596)","v":""},{"$f":"IF('1. Order'!I596=\"\",\"\",'1. Order'!I596)","v":""},{"$f":"IF('1. Order'!J596=\"\",\"\",'1. Order'!J596)","v":""},{"$f":"IF('1. Order'!K596=\"\",\"\",'1. Order'!K596)","v":""},{"$f":"IF('1. Order'!M596=\"\",\"\",'1. Order'!M596)","v":""},null,null,null,{"$f":"IF('1. Order'!AF596=\"\",\"\",'1. Order'!AF596)","v":""}]
[{"$f":"IF('1. Order'!B597=\"\",\"\",'1. Order'!B597)","v":""},{"$f":"IF('1. Order'!I597=\"\",\"\",'1. Order'!I597)","v":""},{"$f":"IF('1. Order'!J597=\"\",\"\",'1. Order'!J597)","v":""},{"$f":"IF('1. Order'!K597=\"\",\"\",'1. Order'!K597)","v":""},{"$f":"IF('1. Order'!M597=\"\",\"\",'1. Order'!M597)","v":""},null,null,null,{"$f":"IF('1. Order'!AF597=\"\",\"\",'1. Order'!AF597)","v":""}]
[{"$f":"IF('1. Order'!B598=\"\",\"\",'1. Order'!B598)","v":""},{"$f":"IF('1. Order'!I598=\"\",\"\",'1. Order'!I598)","v":""},{"$f":"IF('1. Order'!J598=\"\",\"\",'1. Order'!J598)","v":""},{"$f":"IF('1. Order'!K598=\"\",\"\",'1. Order'!K598)","v":""},{"$f":"IF('1. Order'!M598=\"\",\"\",'1. Order'!M598)","v":""},null,null,null,{"$f":"IF('1. Order'!AF598=\"\",\"\",'1. Order'!AF598)","v":""}]
[{"$f":"IF('1. Order'!B599=\"\",\"\",'1. Order'!B599)","v":""},{"$f":"IF('1. Order'!I599=\"\",\"\",'1. Order'!I599)","v":""},{"$f":"IF('1. Order'!J599=\"\",\"\",'1. Order'!J599)","v":""},{"$f":"IF('1. Order'!K599=\"\",\"\",'1. Order'!K599)","v":""},{"$f":"IF('1. Order'!M599=\"\",\"\",'1. Order'!M599)","v":""},null,null,null,{"$f":"IF('1. Order'!AF599=\"\",\"\",'1. Order'!AF599)","v":""}]
[{"$f":"IF('1. Order'!B600=\"\",\"\",'1. Order'!B600)","v":""},{"$f":"IF('1. Order'!I600=\"\",\"\",'1. Order'!I600)","v":""},{"$f":"IF('1. Order'!J600=\"\",\"\",'1. Order'!J600)","v":""},{"$f":"IF('1. Order'!K600=\"\",\"\",'1. Order'!K600)","v":""},{"$f":"IF('1. Order'!M600=\"\",\"\",'1. Order'!M600)","v":""},null,null,null,{"$f":"IF('1. Order'!AF600=\"\",\"\",'1. Order'!AF600)","v":""}]
[{"$f":"IF('1. Order'!B601=\"\",\"\",'1. Order'!B601)","v":""},{"$f":"IF('1. Order'!I601=\"\",\"\",'1. Order'!I601)","v":""},{"$f":"IF('1. Order'!J601=\"\",\"\",'1. Order'!J601)","v":""},{"$f":"IF('1. Order'!K601=\"\",\"\",'1. Order'!K601)","v":""},{"$f":"IF('1. Order'!M601=\"\",\"\",'1. Order'!M601)","v":""},null,null,null,{"$f":"IF('1. Order'!AF601=\"\",\"\",'1. Order'!AF601)","v":""}]
[{"$f":"IF('1. Order'!B602=\"\",\"\",'1. Order'!B602)","v":""},{"$f":"IF('1. Order'!I602=\"\",\"\",'1. Order'!I602)","v":""},{"$f":"IF('1. Order'!J602=\"\",\"\",'1. Order'!J602)","v":""},{"$f":"IF('1. Order'!K602=\"\",\"\",'1. Order'!K602)","v":""},{"$f":"IF('1. Order'!M602=\"\",\"\",'1. Order'!M602)","v":""},null,null,null,{"$f":"IF('1. Order'!AF602=\"\",\"\",'1. Order'!AF602)","v":""}]
[{"$f":"IF('1. Order'!B603=\"\",\"\",'1. Order'!B603)","v":""},{"$f":"IF('1. Order'!I603=\"\",\"\",'1. Order'!I603)","v":""},{"$f":"IF('1. Order'!J603=\"\",\"\",'1. Order'!J603)","v":""},{"$f":"IF('1. Order'!K603=\"\",\"\",'1. Order'!K603)","v":""},{"$f":"IF('1. Order'!M603=\"\",\"\",'1. Order'!M603)","v":""},null,null,null,{"$f":"IF('1. Order'!AF603=\"\",\"\",'1. Order'!AF603)","v":""}]
[{"$f":"IF('1. Order'!B604=\"\",\"\",'1. Order'!B604)","v":""},{"$f":"IF('1. Order'!I604=\"\",\"\",'1. Order'!I604)","v":""},{"$f":"IF('1. Order'!J604=\"\",\"\",'1. Order'!J604)","v":""},{"$f":"IF('1. Order'!K604=\"\",\"\",'1. Order'!K604)","v":""},{"$f":"IF('1. Order'!M604=\"\",\"\",'1. Order'!M604)","v":""},null,null,null,{"$f":"IF('1. Order'!AF604=\"\",\"\",'1. Order'!AF604)","v":""}]
[{"$f":"IF('1. Order'!B605=\"\",\"\",'1. Order'!B605)","v":""},{"$f":"IF('1. Order'!I605=\"\",\"\",'1. Order'!I605)","v":""},{"$f":"IF('1. Order'!J605=\"\",\"\",'1. Order'!J605)","v":""},{"$f":"IF('1. Order'!K605=\"\",\"\",'1. Order'!K605)","v":""},{"$f":"IF('1. Order'!M605=\"\",\"\",'1. Order'!M605)","v":""},null,null,null,{"$f":"IF('1. Order'!AF605=\"\",\"\",'1. Order'!AF605)","v":""}]
[{"$f":"IF('1. Order'!B606=\"\",\"\",'1. Order'!B606)","v":""},{"$f":"IF('1. Order'!I606=\"\",\"\",'1. Order'!I606)","v":""},{"$f":"IF('1. Order'!J606=\"\",\"\",'1. Order'!J606)","v":""},{"$f":"IF('1. Order'!K606=\"\",\"\",'1. Order'!K606)","v":""},{"$f":"IF('1. Order'!M606=\"\",\"\",'1. Order'!M606)","v":""},null,null,null,{"$f":"IF('1. Order'!AF606=\"\",\"\",'1. Order'!AF606)","v":""}]
[{"$f":"IF('1. Order'!B607=\"\",\"\",'1. Order'!B607)","v":""},{"$f":"IF('1. Order'!I607=\"\",\"\",'1. Order'!I607)","v":""},{"$f":"IF('1. Order'!J607=\"\",\"\",'1. Order'!J607)","v":""},{"$f":"IF('1. Order'!K607=\"\",\"\",'1. Order'!K607)","v":""},{"$f":"IF('1. Order'!M607=\"\",\"\",'1. Order'!M607)","v":""},null,null,null,{"$f":"IF('1. Order'!AF607=\"\",\"\",'1. Order'!AF607)","v":""}]
[{"$f":"IF('1. Order'!B608=\"\",\"\",'1. Order'!B608)","v":""},{"$f":"IF('1. Order'!I608=\"\",\"\",'1. Order'!I608)","v":""},{"$f":"IF('1. Order'!J608=\"\",\"\",'1. Order'!J608)","v":""},{"$f":"IF('1. Order'!K608=\"\",\"\",'1. Order'!K608)","v":""},{"$f":"IF('1. Order'!M608=\"\",\"\",'1. Order'!M608)","v":""},null,null,null,{"$f":"IF('1. Order'!AF608=\"\",\"\",'1. Order'!AF608)","v":""}]
[{"$f":"IF('1. Order'!B609=\"\",\"\",'1. Order'!B609)","v":""},{"$f":"IF('1. Order'!I609=\"\",\"\",'1. Order'!I609)","v":""},{"$f":"IF('1. Order'!J609=\"\",\"\",'1. Order'!J609)","v":""},{"$f":"IF('1. Order'!K609=\"\",\"\",'1. Order'!K609)","v":""},{"$f":"IF('1. Order'!M609=\"\",\"\",'1. Order'!M609)","v":""},null,null,null,{"$f":"IF('1. Order'!AF609=\"\",\"\",'1. Order'!AF609)","v":""}]
[{"$f":"IF('1. Order'!B610=\"\",\"\",'1. Order'!B610)","v":""},{"$f":"IF('1. Order'!I610=\"\",\"\",'1. Order'!I610)","v":""},{"$f":"IF('1. Order'!J610=\"\",\"\",'1. Order'!J610)","v":""},{"$f":"IF('1. Order'!K610=\"\",\"\",'1. Order'!K610)","v":""},{"$f":"IF('1. Order'!M610=\"\",\"\",'1. Order'!M610)","v":""},null,null,null,{"$f":"IF('1. Order'!AF610=\"\",\"\",'1. Order'!AF610)","v":""}]
[{"$f":"IF('1. Order'!B611=\"\",\"\",'1. Order'!B611)","v":""},{"$f":"IF('1. Order'!I611=\"\",\"\",'1. Order'!I611)","v":""},{"$f":"IF('1. Order'!J611=\"\",\"\",'1. Order'!J611)","v":""},{"$f":"IF('1. Order'!K611=\"\",\"\",'1. Order'!K611)","v":""},{"$f":"IF('1. Order'!M611=\"\",\"\",'1. Order'!M611)","v":""},null,null,null,{"$f":"IF('1. Order'!AF611=\"\",\"\",'1. Order'!AF611)","v":""}]
[{"$f":"IF('1. Order'!B612=\"\",\"\",'1. Order'!B612)","v":""},{"$f":"IF('1. Order'!I612=\"\",\"\",'1. Order'!I612)","v":""},{"$f":"IF('1. Order'!J612=\"\",\"\",'1. Order'!J612)","v":""},{"$f":"IF('1. Order'!K612=\"\",\"\",'1. Order'!K612)","v":""},{"$f":"IF('1. Order'!M612=\"\",\"\",'1. Order'!M612)","v":""},null,null,null,{"$f":"IF('1. Order'!AF612=\"\",\"\",'1. Order'!AF612)","v":""}]
[{"$f":"IF('1. Order'!B613=\"\",\"\",'1. Order'!B613)","v":""},{"$f":"IF('1. Order'!I613=\"\",\"\",'1. Order'!I613)","v":""},{"$f":"IF('1. Order'!J613=\"\",\"\",'1. Order'!J613)","v":""},{"$f":"IF('1. Order'!K613=\"\",\"\",'1. Order'!K613)","v":""},{"$f":"IF('1. Order'!M613=\"\",\"\",'1. Order'!M613)","v":""},null,null,null,{"$f":"IF('1. Order'!AF613=\"\",\"\",'1. Order'!AF613)","v":""}]
[{"$f":"IF('1. Order'!B614=\"\",\"\",'1. Order'!B614)","v":""},{"$f":"IF('1. Order'!I614=\"\",\"\",'1. Order'!I614)","v":""},{"$f":"IF('1. Order'!J614=\"\",\"\",'1. Order'!J614)","v":""},{"$f":"IF('1. Order'!K614=\"\",\"\",'1. Order'!K614)","v":""},{"$f":"IF('1. Order'!M614=\"\",\"\",'1. Order'!M614)","v":""},null,null,null,{"$f":"IF('1. Order'!AF614=\"\",\"\",'1. Order'!AF614)","v":""}]
[{"$f":"IF('1. Order'!B615=\"\",\"\",'1. Order'!B615)","v":""},{"$f":"IF('1. Order'!I615=\"\",\"\",'1. Order'!I615)","v":""},{"$f":"IF('1. Order'!J615=\"\",\"\",'1. Order'!J615)","v":""},{"$f":"IF('1. Order'!K615=\"\",\"\",'1. Order'!K615)","v":""},{"$f":"IF('1. Order'!M615=\"\",\"\",'1. Order'!M615)","v":""},null,null,null,{"$f":"IF('1. Order'!AF615=\"\",\"\",'1. Order'!AF615)","v":""}]
[{"$f":"IF('1. Order'!B616=\"\",\"\",'1. Order'!B616)","v":""},{"$f":"IF('1. Order'!I616=\"\",\"\",'1. Order'!I616)","v":""},{"$f":"IF('1. Order'!J616=\"\",\"\",'1. Order'!J616)","v":""},{"$f":"IF('1. Order'!K616=\"\",\"\",'1. Order'!K616)","v":""},{"$f":"IF('1. Order'!M616=\"\",\"\",'1. Order'!M616)","v":""},null,null,null,{"$f":"IF('1. Order'!AF616=\"\",\"\",'1. Order'!AF616)","v":""}]
[{"$f":"IF('1. Order'!B617=\"\",\"\",'1. Order'!B617)","v":""},{"$f":"IF('1. Order'!I617=\"\",\"\",'1. Order'!I617)","v":""},{"$f":"IF('1. Order'!J617=\"\",\"\",'1. Order'!J617)","v":""},{"$f":"IF('1. Order'!K617=\"\",\"\",'1. Order'!K617)","v":""},{"$f":"IF('1. Order'!M617=\"\",\"\",'1. Order'!M617)","v":""},null,null,null,{"$f":"IF('1. Order'!AF617=\"\",\"\",'1. Order'!AF617)","v":""}]
[{"$f":"IF('1. Order'!B618=\"\",\"\",'1. Order'!B618)","v":""},{"$f":"IF('1. Order'!I618=\"\",\"\",'1. Order'!I618)","v":""},{"$f":"IF('1. Order'!J618=\"\",\"\",'1. Order'!J618)","v":""},{"$f":"IF('1. Order'!K618=\"\",\"\",'1. Order'!K618)","v":""},{"$f":"IF('1. Order'!M618=\"\",\"\",'1. Order'!M618)","v":""},null,null,null,{"$f":"IF('1. Order'!AF618=\"\",\"\",'1. Order'!AF618)","v":""}]
[{"$f":"IF('1. Order'!B619=\"\",\"\",'1. Order'!B619)","v":""},{"$f":"IF('1. Order'!I619=\"\",\"\",'1. Order'!I619)","v":""},{"$f":"IF('1. Order'!J619=\"\",\"\",'1. Order'!J619)","v":""},{"$f":"IF('1. Order'!K619=\"\",\"\",'1. Order'!K619)","v":""},{"$f":"IF('1. Order'!M619=\"\",\"\",'1. Order'!M619)","v":""},null,null,null,{"$f":"IF('1. Order'!AF619=\"\",\"\",'1. Order'!AF619)","v":""}]
[{"$f":"IF('1. Order'!B620=\"\",\"\",'1. Order'!B620)","v":""},{"$f":"IF('1. Order'!I620=\"\",\"\",'1. Order'!I620)","v":""},{"$f":"IF('1. Order'!J620=\"\",\"\",'1. Order'!J620)","v":""},{"$f":"IF('1. Order'!K620=\"\",\"\",'1. Order'!K620)","v":""},{"$f":"IF('1. Order'!M620=\"\",\"\",'1. Order'!M620)","v":""},null,null,null,{"$f":"IF('1. Order'!AF620=\"\",\"\",'1. Order'!AF620)","v":""}]
[{"$f":"IF('1. Order'!B621=\"\",\"\",'1. Order'!B621)","v":""},{"$f":"IF('1. Order'!I621=\"\",\"\",'1. Order'!I621)","v":""},{"$f":"IF('1. Order'!J621=\"\",\"\",'1. Order'!J621)","v":""},{"$f":"IF('1. Order'!K621=\"\",\"\",'1. Order'!K621)","v":""},{"$f":"IF('1. Order'!M621=\"\",\"\",'1. Order'!M621)","v":""},null,null,null,{"$f":"IF('1. Order'!AF621=\"\",\"\",'1. Order'!AF621)","v":""}]
[{"$f":"IF('1. Order'!B622=\"\",\"\",'1. Order'!B622)","v":""},{"$f":"IF('1. Order'!I622=\"\",\"\",'1. Order'!I622)","v":""},{"$f":"IF('1. Order'!J622=\"\",\"\",'1. Order'!J622)","v":""},{"$f":"IF('1. Order'!K622=\"\",\"\",'1. Order'!K622)","v":""},{"$f":"IF('1. Order'!M622=\"\",\"\",'1. Order'!M622)","v":""},null,null,null,{"$f":"IF('1. Order'!AF622=\"\",\"\",'1. Order'!AF622)","v":""}]
[{"$f":"IF('1. Order'!B623=\"\",\"\",'1. Order'!B623)","v":""},{"$f":"IF('1. Order'!I623=\"\",\"\",'1. Order'!I623)","v":""},{"$f":"IF('1. Order'!J623=\"\",\"\",'1. Order'!J623)","v":""},{"$f":"IF('1. Order'!K623=\"\",\"\",'1. Order'!K623)","v":""},{"$f":"IF('1. Order'!M623=\"\",\"\",'1. Order'!M623)","v":""},null,null,null,{"$f":"IF('1. Order'!AF623=\"\",\"\",'1. Order'!AF623)","v":""}]
[{"$f":"IF('1. Order'!B624=\"\",\"\",'1. Order'!B624)","v":""},{"$f":"IF('1. Order'!I624=\"\",\"\",'1. Order'!I624)","v":""},{"$f":"IF('1. Order'!J624=\"\",\"\",'1. Order'!J624)","v":""},{"$f":"IF('1. Order'!K624=\"\",\"\",'1. Order'!K624)","v":""},{"$f":"IF('1. Order'!M624=\"\",\"\",'1. Order'!M624)","v":""},null,null,null,{"$f":"IF('1. Order'!AF624=\"\",\"\",'1. Order'!AF624)","v":""}]
[{"$f":"IF('1. Order'!B625=\"\",\"\",'1. Order'!B625)","v":""},{"$f":"IF('1. Order'!I625=\"\",\"\",'1. Order'!I625)","v":""},{"$f":"IF('1. Order'!J625=\"\",\"\",'1. Order'!J625)","v":""},{"$f":"IF('1. Order'!K625=\"\",\"\",'1. Order'!K625)","v":""},{"$f":"IF('1. Order'!M625=\"\",\"\",'1. Order'!M625)","v":""},null,null,null,{"$f":"IF('1. Order'!AF625=\"\",\"\",'1. Order'!AF625)","v":""}]
[{"$f":"IF('1. Order'!B626=\"\",\"\",'1. Order'!B626)","v":""},{"$f":"IF('1. Order'!I626=\"\",\"\",'1. Order'!I626)","v":""},{"$f":"IF('1. Order'!J626=\"\",\"\",'1. Order'!J626)","v":""},{"$f":"IF('1. Order'!K626=\"\",\"\",'1. Order'!K626)","v":""},{"$f":"IF('1. Order'!M626=\"\",\"\",'1. Order'!M626)","v":""},null,null,null,{"$f":"IF('1. Order'!AF626=\"\",\"\",'1. Order'!AF626)","v":""}]
[{"$f":"IF('1. Order'!B627=\"\",\"\",'1. Order'!B627)","v":""},{"$f":"IF('1. Order'!I627=\"\",\"\",'1. Order'!I627)","v":""},{"$f":"IF('1. Order'!J627=\"\",\"\",'1. Order'!J627)","v":""},{"$f":"IF('1. Order'!K627=\"\",\"\",'1. Order'!K627)","v":""},{"$f":"IF('1. Order'!M627=\"\",\"\",'1. Order'!M627)","v":""},null,null,null,{"$f":"IF('1. Order'!AF627=\"\",\"\",'1. Order'!AF627)","v":""}]
[{"$f":"IF('1. Order'!B628=\"\",\"\",'1. Order'!B628)","v":""},{"$f":"IF('1. Order'!I628=\"\",\"\",'1. Order'!I628)","v":""},{"$f":"IF('1. Order'!J628=\"\",\"\",'1. Order'!J628)","v":""},{"$f":"IF('1. Order'!K628=\"\",\"\",'1. Order'!K628)","v":""},{"$f":"IF('1. Order'!M628=\"\",\"\",'1. Order'!M628)","v":""},null,null,null,{"$f":"IF('1. Order'!AF628=\"\",\"\",'1. Order'!AF628)","v":""}]
[{"$f":"IF('1. Order'!B629=\"\",\"\",'1. Order'!B629)","v":""},{"$f":"IF('1. Order'!I629=\"\",\"\",'1. Order'!I629)","v":""},{"$f":"IF('1. Order'!J629=\"\",\"\",'1. Order'!J629)","v":""},{"$f":"IF('1. Order'!K629=\"\",\"\",'1. Order'!K629)","v":""},{"$f":"IF('1. Order'!M629=\"\",\"\",'1. Order'!M629)","v":""},null,null,null,{"$f":"IF('1. Order'!AF629=\"\",\"\",'1. Order'!AF629)","v":""}]
[{"$f":"IF('1. Order'!B630=\"\",\"\",'1. Order'!B630)","v":""},{"$f":"IF('1. Order'!I630=\"\",\"\",'1. Order'!I630)","v":""},{"$f":"IF('1. Order'!J630=\"\",\"\",'1. Order'!J630)","v":""},{"$f":"IF('1. Order'!K630=\"\",\"\",'1. Order'!K630)","v":""},{"$f":"IF('1. Order'!M630=\"\",\"\",'1. Order'!M630)","v":""},null,null,null,{"$f":"IF('1. Order'!AF630=\"\",\"\",'1. Order'!AF630)","v":""}]
[{"$f":"IF('1. Order'!B631=\"\",\"\",'1. Order'!B631)","v":""},{"$f":"IF('1. Order'!I631=\"\",\"\",'1. Order'!I631)","v":""},{"$f":"IF('1. Order'!J631=\"\",\"\",'1. Order'!J631)","v":""},{"$f":"IF('1. Order'!K631=\"\",\"\",'1. Order'!K631)","v":""},{"$f":"IF('1. Order'!M631=\"\",\"\",'1. Order'!M631)","v":""},null,null,null,{"$f":"IF('1. Order'!AF631=\"\",\"\",'1. Order'!AF631)","v":""}]
[{"$f":"IF('1. Order'!B632=\"\",\"\",'1. Order'!B632)","v":""},{"$f":"IF('1. Order'!I632=\"\",\"\",'1. Order'!I632)","v":""},{"$f":"IF('1. Order'!J632=\"\",\"\",'1. Order'!J632)","v":""},{"$f":"IF('1. Order'!K632=\"\",\"\",'1. Order'!K632)","v":""},{"$f":"IF('1. Order'!M632=\"\",\"\",'1. Order'!M632)","v":""},null,null,null,{"$f":"IF('1. Order'!AF632=\"\",\"\",'1. Order'!AF632)","v":""}]
[{"$f":"IF('1. Order'!B633=\"\",\"\",'1. Order'!B633)","v":""},{"$f":"IF('1. Order'!I633=\"\",\"\",'1. Order'!I633)","v":""},{"$f":"IF('1. Order'!J633=\"\",\"\",'1. Order'!J633)","v":""},{"$f":"IF('1. Order'!K633=\"\",\"\",'1. Order'!K633)","v":""},{"$f":"IF('1. Order'!M633=\"\",\"\",'1. Order'!M633)","v":""},null,null,null,{"$f":"IF('1. Order'!AF633=\"\",\"\",'1. Order'!AF633)","v":""}]
[{"$f":"IF('1. Order'!B634=\"\",\"\",'1. Order'!B634)","v":""},{"$f":"IF('1. Order'!I634=\"\",\"\",'1. Order'!I634)","v":""},{"$f":"IF('1. Order'!J634=\"\",\"\",'1. Order'!J634)","v":""},{"$f":"IF('1. Order'!K634=\"\",\"\",'1. Order'!K634)","v":""},{"$f":"IF('1. Order'!M634=\"\",\"\",'1. Order'!M634)","v":""},null,null,null,{"$f":"IF('1. Order'!AF634=\"\",\"\",'1. Order'!AF634)","v":""}]
[{"$f":"IF('1. Order'!B635=\"\",\"\",'1. Order'!B635)","v":""},{"$f":"IF('1. Order'!I635=\"\",\"\",'1. Order'!I635)","v":""},{"$f":"IF('1. Order'!J635=\"\",\"\",'1. Order'!J635)","v":""},{"$f":"IF('1. Order'!K635=\"\",\"\",'1. Order'!K635)","v":""},{"$f":"IF('1. Order'!M635=\"\",\"\",'1. Order'!M635)","v":""},null,null,null,{"$f":"IF('1. Order'!AF635=\"\",\"\",'1. Order'!AF635)","v":""}]
[{"$f":"IF('1. Order'!B636=\"\",\"\",'1. Order'!B636)","v":""},{"$f":"IF('1. Order'!I636=\"\",\"\",'1. Order'!I636)","v":""},{"$f":"IF('1. Order'!J636=\"\",\"\",'1. Order'!J636)","v":""},{"$f":"IF('1. Order'!K636=\"\",\"\",'1. Order'!K636)","v":""},{"$f":"IF('1. Order'!M636=\"\",\"\",'1. Order'!M636)","v":""},null,null,null,{"$f":"IF('1. Order'!AF636=\"\",\"\",'1. Order'!AF636)","v":""}]
[{"$f":"IF('1. Order'!B637=\"\",\"\",'1. Order'!B637)","v":""},{"$f":"IF('1. Order'!I637=\"\",\"\",'1. Order'!I637)","v":""},{"$f":"IF('1. Order'!J637=\"\",\"\",'1. Order'!J637)","v":""},{"$f":"IF('1. Order'!K637=\"\",\"\",'1. Order'!K637)","v":""},{"$f":"IF('1. Order'!M637=\"\",\"\",'1. Order'!M637)","v":""},null,null,null,{"$f":"IF('1. Order'!AF637=\"\",\"\",'1. Order'!AF637)","v":""}]
[{"$f":"IF('1. Order'!B638=\"\",\"\",'1. Order'!B638)","v":""},{"$f":"IF('1. Order'!I638=\"\",\"\",'1. Order'!I638)","v":""},{"$f":"IF('1. Order'!J638=\"\",\"\",'1. Order'!J638)","v":""},{"$f":"IF('1. Order'!K638=\"\",\"\",'1. Order'!K638)","v":""},{"$f":"IF('1. Order'!M638=\"\",\"\",'1. Order'!M638)","v":""},null,null,null,{"$f":"IF('1. Order'!AF638=\"\",\"\",'1. Order'!AF638)","v":""}]
[{"$f":"IF('1. Order'!B639=\"\",\"\",'1. Order'!B639)","v":""},{"$f":"IF('1. Order'!I639=\"\",\"\",'1. Order'!I639)","v":""},{"$f":"IF('1. Order'!J639=\"\",\"\",'1. Order'!J639)","v":""},{"$f":"IF('1. Order'!K639=\"\",\"\",'1. Order'!K639)","v":""},{"$f":"IF('1. Order'!M639=\"\",\"\",'1. Order'!M639)","v":""},null,null,null,{"$f":"IF('1. Order'!AF639=\"\",\"\",'1. Order'!AF639)","v":""}]
[{"$f":"IF('1. Order'!B640=\"\",\"\",'1. Order'!B640)","v":""},{"$f":"IF('1. Order'!I640=\"\",\"\",'1. Order'!I640)","v":""},{"$f":"IF('1. Order'!J640=\"\",\"\",'1. Order'!J640)","v":""},{"$f":"IF('1. Order'!K640=\"\",\"\",'1. Order'!K640)","v":""},{"$f":"IF('1. Order'!M640=\"\",\"\",'1. Order'!M640)","v":""},null,null,null,{"$f":"IF('1. Order'!AF640=\"\",\"\",'1. Order'!AF640)","v":""}]
[{"$f":"IF('1. Order'!B641=\"\",\"\",'1. Order'!B641)","v":""},{"$f":"IF('1. Order'!I641=\"\",\"\",'1. Order'!I641)","v":""},{"$f":"IF('1. Order'!J641=\"\",\"\",'1. Order'!J641)","v":""},{"$f":"IF('1. Order'!K641=\"\",\"\",'1. Order'!K641)","v":""},{"$f":"IF('1. Order'!M641=\"\",\"\",'1. Order'!M641)","v":""},null,null,null,{"$f":"IF('1. Order'!AF641=\"\",\"\",'1. Order'!AF641)","v":""}]
[{"$f":"IF('1. Order'!B642=\"\",\"\",'1. Order'!B642)","v":""},{"$f":"IF('1. Order'!I642=\"\",\"\",'1. Order'!I642)","v":""},{"$f":"IF('1. Order'!J642=\"\",\"\",'1. Order'!J642)","v":""},{"$f":"IF('1. Order'!K642=\"\",\"\",'1. Order'!K642)","v":""},{"$f":"IF('1. Order'!M642=\"\",\"\",'1. Order'!M642)","v":""},null,null,null,{"$f":"IF('1. Order'!AF642=\"\",\"\",'1. Order'!AF642)","v":""}]
[{"$f":"IF('1. Order'!B643=\"\",\"\",'1. Order'!B643)","v":""},{"$f":"IF('1. Order'!I643=\"\",\"\",'1. Order'!I643)","v":""},{"$f":"IF('1. Order'!J643=\"\",\"\",'1. Order'!J643)","v":""},{"$f":"IF('1. Order'!K643=\"\",\"\",'1. Order'!K643)","v":""},{"$f":"IF('1. Order'!M643=\"\",\"\",'1. Order'!M643)","v":""},null,null,null,{"$f":"IF('1. Order'!AF643=\"\",\"\",'1. Order'!AF643)","v":""}]
[{"$f":"IF('1. Order'!B644=\"\",\"\",'1. Order'!B644)","v":""},{"$f":"IF('1. Order'!I644=\"\",\"\",'1. Order'!I644)","v":""},{"$f":"IF('1. Order'!J644=\"\",\"\",'1. Order'!J644)","v":""},{"$f":"IF('1. Order'!K644=\"\",\"\",'1. Order'!K644)","v":""},{"$f":"IF('1. Order'!M644=\"\",\"\",'1. Order'!M644)","v":""},null,null,null,{"$f":"IF('1. Order'!AF644=\"\",\"\",'1. Order'!AF644)","v":""}]
[{"$f":"IF('1. Order'!B645=\"\",\"\",'1. Order'!B645)","v":""},{"$f":"IF('1. Order'!I645=\"\",\"\",'1. Order'!I645)","v":""},{"$f":"IF('1. Order'!J645=\"\",\"\",'1. Order'!J645)","v":""},{"$f":"IF('1. Order'!K645=\"\",\"\",'1. Order'!K645)","v":""},{"$f":"IF('1. Order'!M645=\"\",\"\",'1. Order'!M645)","v":""},null,null,null,{"$f":"IF('1. Order'!AF645=\"\",\"\",'1. Order'!AF645)","v":""}]
[{"$f":"IF('1. Order'!B646=\"\",\"\",'1. Order'!B646)","v":""},{"$f":"IF('1. Order'!I646=\"\",\"\",'1. Order'!I646)","v":""},{"$f":"IF('1. Order'!J646=\"\",\"\",'1. Order'!J646)","v":""},{"$f":"IF('1. Order'!K646=\"\",\"\",'1. Order'!K646)","v":""},{"$f":"IF('1. Order'!M646=\"\",\"\",'1. Order'!M646)","v":""},null,null,null,{"$f":"IF('1. Order'!AF646=\"\",\"\",'1. Order'!AF646)","v":""}]
[{"$f":"IF('1. Order'!B647=\"\",\"\",'1. Order'!B647)","v":""},{"$f":"IF('1. Order'!I647=\"\",\"\",'1. Order'!I647)","v":""},{"$f":"IF('1. Order'!J647=\"\",\"\",'1. Order'!J647)","v":""},{"$f":"IF('1. Order'!K647=\"\",\"\",'1. Order'!K647)","v":""},{"$f":"IF('1. Order'!M647=\"\",\"\",'1. Order'!M647)","v":""},null,null,null,{"$f":"IF('1. Order'!AF647=\"\",\"\",'1. Order'!AF647)","v":""}]
[{"$f":"IF('1. Order'!B648=\"\",\"\",'1. Order'!B648)","v":""},{"$f":"IF('1. Order'!I648=\"\",\"\",'1. Order'!I648)","v":""},{"$f":"IF('1. Order'!J648=\"\",\"\",'1. Order'!J648)","v":""},{"$f":"IF('1. Order'!K648=\"\",\"\",'1. Order'!K648)","v":""},{"$f":"IF('1. Order'!M648=\"\",\"\",'1. Order'!M648)","v":""},null,null,null,{"$f":"IF('1. Order'!AF648=\"\",\"\",'1. Order'!AF648)","v":""}]
[{"$f":"IF('1. Order'!B649=\"\",\"\",'1. Order'!B649)","v":""},{"$f":"IF('1. Order'!I649=\"\",\"\",'1. Order'!I649)","v":""},{"$f":"IF('1. Order'!J649=\"\",\"\",'1. Order'!J649)","v":""},{"$f":"IF('1. Order'!K649=\"\",\"\",'1. Order'!K649)","v":""},{"$f":"IF('1. Order'!M649=\"\",\"\",'1. Order'!M649)","v":""},null,null,null,{"$f":"IF('1. Order'!AF649=\"\",\"\",'1. Order'!AF649)","v":""}]
[{"$f":"IF('1. Order'!B650=\"\",\"\",'1. Order'!B650)","v":""},{"$f":"IF('1. Order'!I650=\"\",\"\",'1. Order'!I650)","v":""},{"$f":"IF('1. Order'!J650=\"\",\"\",'1. Order'!J650)","v":""},{"$f":"IF('1. Order'!K650=\"\",\"\",'1. Order'!K650)","v":""},{"$f":"IF('1. Order'!M650=\"\",\"\",'1. Order'!M650)","v":""},null,null,null,{"$f":"IF('1. Order'!AF650=\"\",\"\",'1. Order'!AF650)","v":""}]
[{"$f":"IF('1. Order'!B651=\"\",\"\",'1. Order'!B651)","v":""},{"$f":"IF('1. Order'!I651=\"\",\"\",'1. Order'!I651)","v":""},{"$f":"IF('1. Order'!J651=\"\",\"\",'1. Order'!J651)","v":""},{"$f":"IF('1. Order'!K651=\"\",\"\",'1. Order'!K651)","v":""},{"$f":"IF('1. Order'!M651=\"\",\"\",'1. Order'!M651)","v":""},null,null,null,{"$f":"IF('1. Order'!AF651=\"\",\"\",'1. Order'!AF651)","v":""}]
[{"$f":"IF('1. Order'!B652=\"\",\"\",'1. Order'!B652)","v":""},{"$f":"IF('1. Order'!I652=\"\",\"\",'1. Order'!I652)","v":""},{"$f":"IF('1. Order'!J652=\"\",\"\",'1. Order'!J652)","v":""},{"$f":"IF('1. Order'!K652=\"\",\"\",'1. Order'!K652)","v":""},{"$f":"IF('1. Order'!M652=\"\",\"\",'1. Order'!M652)","v":""},null,null,null,{"$f":"IF('1. Order'!AF652=\"\",\"\",'1. Order'!AF652)","v":""}]
[{"$f":"IF('1. Order'!B653=\"\",\"\",'1. Order'!B653)","v":""},{"$f":"IF('1. Order'!I653=\"\",\"\",'1. Order'!I653)","v":""},{"$f":"IF('1. Order'!J653=\"\",\"\",'1. Order'!J653)","v":""},{"$f":"IF('1. Order'!K653=\"\",\"\",'1. Order'!K653)","v":""},{"$f":"IF('1. Order'!M653=\"\",\"\",'1. Order'!M653)","v":""},null,null,null,{"$f":"IF('1. Order'!AF653=\"\",\"\",'1. Order'!AF653)","v":""}]
[{"$f":"IF('1. Order'!B654=\"\",\"\",'1. Order'!B654)","v":""},{"$f":"IF('1. Order'!I654=\"\",\"\",'1. Order'!I654)","v":""},{"$f":"IF('1. Order'!J654=\"\",\"\",'1. Order'!J654)","v":""},{"$f":"IF('1. Order'!K654=\"\",\"\",'1. Order'!K654)","v":""},{"$f":"IF('1. Order'!M654=\"\",\"\",'1. Order'!M654)","v":""},null,null,null,{"$f":"IF('1. Order'!AF654=\"\",\"\",'1. Order'!AF654)","v":""}]
[{"$f":"IF('1. Order'!B655=\"\",\"\",'1. Order'!B655)","v":""},{"$f":"IF('1. Order'!I655=\"\",\"\",'1. Order'!I655)","v":""},{"$f":"IF('1. Order'!J655=\"\",\"\",'1. Order'!J655)","v":""},{"$f":"IF('1. Order'!K655=\"\",\"\",'1. Order'!K655)","v":""},{"$f":"IF('1. Order'!M655=\"\",\"\",'1. Order'!M655)","v":""},null,null,null,{"$f":"IF('1. Order'!AF655=\"\",\"\",'1. Order'!AF655)","v":""}]
[{"$f":"IF('1. Order'!B656=\"\",\"\",'1. Order'!B656)","v":""},{"$f":"IF('1. Order'!I656=\"\",\"\",'1. Order'!I656)","v":""},{"$f":"IF('1. Order'!J656=\"\",\"\",'1. Order'!J656)","v":""},{"$f":"IF('1. Order'!K656=\"\",\"\",'1. Order'!K656)","v":""},{"$f":"IF('1. Order'!M656=\"\",\"\",'1. Order'!M656)","v":""},null,null,null,{"$f":"IF('1. Order'!AF656=\"\",\"\",'1. Order'!AF656)","v":""}]
[{"$f":"IF('1. Order'!B657=\"\",\"\",'1. Order'!B657)","v":""},{"$f":"IF('1. Order'!I657=\"\",\"\",'1. Order'!I657)","v":""},{"$f":"IF('1. Order'!J657=\"\",\"\",'1. Order'!J657)","v":""},{"$f":"IF('1. Order'!K657=\"\",\"\",'1. Order'!K657)","v":""},{"$f":"IF('1. Order'!M657=\"\",\"\",'1. Order'!M657)","v":""},null,null,null,{"$f":"IF('1. Order'!AF657=\"\",\"\",'1. Order'!AF657)","v":""}]
[{"$f":"IF('1. Order'!B658=\"\",\"\",'1. Order'!B658)","v":""},{"$f":"IF('1. Order'!I658=\"\",\"\",'1. Order'!I658)","v":""},{"$f":"IF('1. Order'!J658=\"\",\"\",'1. Order'!J658)","v":""},{"$f":"IF('1. Order'!K658=\"\",\"\",'1. Order'!K658)","v":""},{"$f":"IF('1. Order'!M658=\"\",\"\",'1. Order'!M658)","v":""},null,null,null,{"$f":"IF('1. Order'!AF658=\"\",\"\",'1. Order'!AF658)","v":""}]
[{"$f":"IF('1. Order'!B659=\"\",\"\",'1. Order'!B659)","v":""},{"$f":"IF('1. Order'!I659=\"\",\"\",'1. Order'!I659)","v":""},{"$f":"IF('1. Order'!J659=\"\",\"\",'1. Order'!J659)","v":""},{"$f":"IF('1. Order'!K659=\"\",\"\",'1. Order'!K659)","v":""},{"$f":"IF('1. Order'!M659=\"\",\"\",'1. Order'!M659)","v":""},null,null,null,{"$f":"IF('1. Order'!AF659=\"\",\"\",'1. Order'!AF659)","v":""}]
[{"$f":"IF('1. Order'!B660=\"\",\"\",'1. Order'!B660)","v":""},{"$f":"IF('1. Order'!I660=\"\",\"\",'1. Order'!I660)","v":""},{"$f":"IF('1. Order'!J660=\"\",\"\",'1. Order'!J660)","v":""},{"$f":"IF('1. Order'!K660=\"\",\"\",'1. Order'!K660)","v":""},{"$f":"IF('1. Order'!M660=\"\",\"\",'1. Order'!M660)","v":""},null,null,null,{"$f":"IF('1. Order'!AF660=\"\",\"\",'1. Order'!AF660)","v":""}]
[{"$f":"IF('1. Order'!B661=\"\",\"\",'1. Order'!B661)","v":""},{"$f":"IF('1. Order'!I661=\"\",\"\",'1. Order'!I661)","v":""},{"$f":"IF('1. Order'!J661=\"\",\"\",'1. Order'!J661)","v":""},{"$f":"IF('1. Order'!K661=\"\",\"\",'1. Order'!K661)","v":""},{"$f":"IF('1. Order'!M661=\"\",\"\",'1. Order'!M661)","v":""},null,null,null,{"$f":"IF('1. Order'!AF661=\"\",\"\",'1. Order'!AF661)","v":""}]
[{"$f":"IF('1. Order'!B662=\"\",\"\",'1. Order'!B662)","v":""},{"$f":"IF('1. Order'!I662=\"\",\"\",'1. Order'!I662)","v":""},{"$f":"IF('1. Order'!J662=\"\",\"\",'1. Order'!J662)","v":""},{"$f":"IF('1. Order'!K662=\"\",\"\",'1. Order'!K662)","v":""},{"$f":"IF('1. Order'!M662=\"\",\"\",'1. Order'!M662)","v":""},null,null,null,{"$f":"IF('1. Order'!AF662=\"\",\"\",'1. Order'!AF662)","v":""}]
[{"$f":"IF('1. Order'!B663=\"\",\"\",'1. Order'!B663)","v":""},{"$f":"IF('1. Order'!I663=\"\",\"\",'1. Order'!I663)","v":""},{"$f":"IF('1. Order'!J663=\"\",\"\",'1. Order'!J663)","v":""},{"$f":"IF('1. Order'!K663=\"\",\"\",'1. Order'!K663)","v":""},{"$f":"IF('1. Order'!M663=\"\",\"\",'1. Order'!M663)","v":""},null,null,null,{"$f":"IF('1. Order'!AF663=\"\",\"\",'1. Order'!AF663)","v":""}]
[{"$f":"IF('1. Order'!B664=\"\",\"\",'1. Order'!B664)","v":""},{"$f":"IF('1. Order'!I664=\"\",\"\",'1. Order'!I664)","v":""},{"$f":"IF('1. Order'!J664=\"\",\"\",'1. Order'!J664)","v":""},{"$f":"IF('1. Order'!K664=\"\",\"\",'1. Order'!K664)","v":""},{"$f":"IF('1. Order'!M664=\"\",\"\",'1. Order'!M664)","v":""},null,null,null,{"$f":"IF('1. Order'!AF664=\"\",\"\",'1. Order'!AF664)","v":""}]
[{"$f":"IF('1. Order'!B665=\"\",\"\",'1. Order'!B665)","v":""},{"$f":"IF('1. Order'!I665=\"\",\"\",'1. Order'!I665)","v":""},{"$f":"IF('1. Order'!J665=\"\",\"\",'1. Order'!J665)","v":""},{"$f":"IF('1. Order'!K665=\"\",\"\",'1. Order'!K665)","v":""},{"$f":"IF('1. Order'!M665=\"\",\"\",'1. Order'!M665)","v":""},null,null,null,{"$f":"IF('1. Order'!AF665=\"\",\"\",'1. Order'!AF665)","v":""}]
[{"$f":"IF('1. Order'!B666=\"\",\"\",'1. Order'!B666)","v":""},{"$f":"IF('1. Order'!I666=\"\",\"\",'1. Order'!I666)","v":""},{"$f":"IF('1. Order'!J666=\"\",\"\",'1. Order'!J666)","v":""},{"$f":"IF('1. Order'!K666=\"\",\"\",'1. Order'!K666)","v":""},{"$f":"IF('1. Order'!M666=\"\",\"\",'1. Order'!M666)","v":""},null,null,null,{"$f":"IF('1. Order'!AF666=\"\",\"\",'1. Order'!AF666)","v":""}]
[{"$f":"IF('1. Order'!B667=\"\",\"\",'1. Order'!B667)","v":""},{"$f":"IF('1. Order'!I667=\"\",\"\",'1. Order'!I667)","v":""},{"$f":"IF('1. Order'!J667=\"\",\"\",'1. Order'!J667)","v":""},{"$f":"IF('1. Order'!K667=\"\",\"\",'1. Order'!K667)","v":""},{"$f":"IF('1. Order'!M667=\"\",\"\",'1. Order'!M667)","v":""},null,null,null,{"$f":"IF('1. Order'!AF667=\"\",\"\",'1. Order'!AF667)","v":""}]
[{"$f":"IF('1. Order'!B668=\"\",\"\",'1. Order'!B668)","v":""},{"$f":"IF('1. Order'!I668=\"\",\"\",'1. Order'!I668)","v":""},{"$f":"IF('1. Order'!J668=\"\",\"\",'1. Order'!J668)","v":""},{"$f":"IF('1. Order'!K668=\"\",\"\",'1. Order'!K668)","v":""},{"$f":"IF('1. Order'!M668=\"\",\"\",'1. Order'!M668)","v":""},null,null,null,{"$f":"IF('1. Order'!AF668=\"\",\"\",'1. Order'!AF668)","v":""}]
[{"$f":"IF('1. Order'!B669=\"\",\"\",'1. Order'!B669)","v":""},{"$f":"IF('1. Order'!I669=\"\",\"\",'1. Order'!I669)","v":""},{"$f":"IF('1. Order'!J669=\"\",\"\",'1. Order'!J669)","v":""},{"$f":"IF('1. Order'!K669=\"\",\"\",'1. Order'!K669)","v":""},{"$f":"IF('1. Order'!M669=\"\",\"\",'1. Order'!M669)","v":""},null,null,null,{"$f":"IF('1. Order'!AF669=\"\",\"\",'1. Order'!AF669)","v":""}]
[{"$f":"IF('1. Order'!B670=\"\",\"\",'1. Order'!B670)","v":""},{"$f":"IF('1. Order'!I670=\"\",\"\",'1. Order'!I670)","v":""},{"$f":"IF('1. Order'!J670=\"\",\"\",'1. Order'!J670)","v":""},{"$f":"IF('1. Order'!K670=\"\",\"\",'1. Order'!K670)","v":""},{"$f":"IF('1. Order'!M670=\"\",\"\",'1. Order'!M670)","v":""},null,null,null,{"$f":"IF('1. Order'!AF670=\"\",\"\",'1. Order'!AF670)","v":""}]
[{"$f":"IF('1. Order'!B671=\"\",\"\",'1. Order'!B671)","v":""},{"$f":"IF('1. Order'!I671=\"\",\"\",'1. Order'!I671)","v":""},{"$f":"IF('1. Order'!J671=\"\",\"\",'1. Order'!J671)","v":""},{"$f":"IF('1. Order'!K671=\"\",\"\",'1. Order'!K671)","v":""},{"$f":"IF('1. Order'!M671=\"\",\"\",'1. Order'!M671)","v":""},null,null,null,{"$f":"IF('1. Order'!AF671=\"\",\"\",'1. Order'!AF671)","v":""}]
[{"$f":"IF('1. Order'!B672=\"\",\"\",'1. Order'!B672)","v":""},{"$f":"IF('1. Order'!I672=\"\",\"\",'1. Order'!I672)","v":""},{"$f":"IF('1. Order'!J672=\"\",\"\",'1. Order'!J672)","v":""},{"$f":"IF('1. Order'!K672=\"\",\"\",'1. Order'!K672)","v":""},{"$f":"IF('1. Order'!M672=\"\",\"\",'1. Order'!M672)","v":""},null,null,null,{"$f":"IF('1. Order'!AF672=\"\",\"\",'1. Order'!AF672)","v":""}]
[{"$f":"IF('1. Order'!B673=\"\",\"\",'1. Order'!B673)","v":""},{"$f":"IF('1. Order'!I673=\"\",\"\",'1. Order'!I673)","v":""},{"$f":"IF('1. Order'!J673=\"\",\"\",'1. Order'!J673)","v":""},{"$f":"IF('1. Order'!K673=\"\",\"\",'1. Order'!K673)","v":""},{"$f":"IF('1. Order'!M673=\"\",\"\",'1. Order'!M673)","v":""},null,null,null,{"$f":"IF('1. Order'!AF673=\"\",\"\",'1. Order'!AF673)","v":""}]
[{"$f":"IF('1. Order'!B674=\"\",\"\",'1. Order'!B674)","v":""},{"$f":"IF('1. Order'!I674=\"\",\"\",'1. Order'!I674)","v":""},{"$f":"IF('1. Order'!J674=\"\",\"\",'1. Order'!J674)","v":""},{"$f":"IF('1. Order'!K674=\"\",\"\",'1. Order'!K674)","v":""},{"$f":"IF('1. Order'!M674=\"\",\"\",'1. Order'!M674)","v":""},null,null,null,{"$f":"IF('1. Order'!AF674=\"\",\"\",'1. Order'!AF674)","v":""}]
[{"$f":"IF('1. Order'!B675=\"\",\"\",'1. Order'!B675)","v":""},{"$f":"IF('1. Order'!I675=\"\",\"\",'1. Order'!I675)","v":""},{"$f":"IF('1. Order'!J675=\"\",\"\",'1. Order'!J675)","v":""},{"$f":"IF('1. Order'!K675=\"\",\"\",'1. Order'!K675)","v":""},{"$f":"IF('1. Order'!M675=\"\",\"\",'1. Order'!M675)","v":""},null,null,null,{"$f":"IF('1. Order'!AF675=\"\",\"\",'1. Order'!AF675)","v":""}]
[{"$f":"IF('1. Order'!B676=\"\",\"\",'1. Order'!B676)","v":""},{"$f":"IF('1. Order'!I676=\"\",\"\",'1. Order'!I676)","v":""},{"$f":"IF('1. Order'!J676=\"\",\"\",'1. Order'!J676)","v":""},{"$f":"IF('1. Order'!K676=\"\",\"\",'1. Order'!K676)","v":""},{"$f":"IF('1. Order'!M676=\"\",\"\",'1. Order'!M676)","v":""},null,null,null,{"$f":"IF('1. Order'!AF676=\"\",\"\",'1. Order'!AF676)","v":""}]
[{"$f":"IF('1. Order'!B677=\"\",\"\",'1. Order'!B677)","v":""},{"$f":"IF('1. Order'!I677=\"\",\"\",'1. Order'!I677)","v":""},{"$f":"IF('1. Order'!J677=\"\",\"\",'1. Order'!J677)","v":""},{"$f":"IF('1. Order'!K677=\"\",\"\",'1. Order'!K677)","v":""},{"$f":"IF('1. Order'!M677=\"\",\"\",'1. Order'!M677)","v":""},null,null,null,{"$f":"IF('1. Order'!AF677=\"\",\"\",'1. Order'!AF677)","v":""}]
[{"$f":"IF('1. Order'!B678=\"\",\"\",'1. Order'!B678)","v":""},{"$f":"IF('1. Order'!I678=\"\",\"\",'1. Order'!I678)","v":""},{"$f":"IF('1. Order'!J678=\"\",\"\",'1. Order'!J678)","v":""},{"$f":"IF('1. Order'!K678=\"\",\"\",'1. Order'!K678)","v":""},{"$f":"IF('1. Order'!M678=\"\",\"\",'1. Order'!M678)","v":""},null,null,null,{"$f":"IF('1. Order'!AF678=\"\",\"\",'1. Order'!AF678)","v":""}]
[{"$f":"IF('1. Order'!B679=\"\",\"\",'1. Order'!B679)","v":""},{"$f":"IF('1. Order'!I679=\"\",\"\",'1. Order'!I679)","v":""},{"$f":"IF('1. Order'!J679=\"\",\"\",'1. Order'!J679)","v":""},{"$f":"IF('1. Order'!K679=\"\",\"\",'1. Order'!K679)","v":""},{"$f":"IF('1. Order'!M679=\"\",\"\",'1. Order'!M679)","v":""},null,null,null,{"$f":"IF('1. Order'!AF679=\"\",\"\",'1. Order'!AF679)","v":""}]
[{"$f":"IF('1. Order'!B680=\"\",\"\",'1. Order'!B680)","v":""},{"$f":"IF('1. Order'!I680=\"\",\"\",'1. Order'!I680)","v":""},{"$f":"IF('1. Order'!J680=\"\",\"\",'1. Order'!J680)","v":""},{"$f":"IF('1. Order'!K680=\"\",\"\",'1. Order'!K680)","v":""},{"$f":"IF('1. Order'!M680=\"\",\"\",'1. Order'!M680)","v":""},null,null,null,{"$f":"IF('1. Order'!AF680=\"\",\"\",'1. Order'!AF680)","v":""}]
[{"$f":"IF('1. Order'!B681=\"\",\"\",'1. Order'!B681)","v":""},{"$f":"IF('1. Order'!I681=\"\",\"\",'1. Order'!I681)","v":""},{"$f":"IF('1. Order'!J681=\"\",\"\",'1. Order'!J681)","v":""},{"$f":"IF('1. Order'!K681=\"\",\"\",'1. Order'!K681)","v":""},{"$f":"IF('1. Order'!M681=\"\",\"\",'1. Order'!M681)","v":""},null,null,null,{"$f":"IF('1. Order'!AF681=\"\",\"\",'1. Order'!AF681)","v":""}]
[{"$f":"IF('1. Order'!B682=\"\",\"\",'1. Order'!B682)","v":""},{"$f":"IF('1. Order'!I682=\"\",\"\",'1. Order'!I682)","v":""},{"$f":"IF('1. Order'!J682=\"\",\"\",'1. Order'!J682)","v":""},{"$f":"IF('1. Order'!K682=\"\",\"\",'1. Order'!K682)","v":""},{"$f":"IF('1. Order'!M682=\"\",\"\",'1. Order'!M682)","v":""},null,null,null,{"$f":"IF('1. Order'!AF682=\"\",\"\",'1. Order'!AF682)","v":""}]
[{"$f":"IF('1. Order'!B683=\"\",\"\",'1. Order'!B683)","v":""},{"$f":"IF('1. Order'!I683=\"\",\"\",'1. Order'!I683)","v":""},{"$f":"IF('1. Order'!J683=\"\",\"\",'1. Order'!J683)","v":""},{"$f":"IF('1. Order'!K683=\"\",\"\",'1. Order'!K683)","v":""},{"$f":"IF('1. Order'!M683=\"\",\"\",'1. Order'!M683)","v":""},null,null,null,{"$f":"IF('1. Order'!AF683=\"\",\"\",'1. Order'!AF683)","v":""}]
[{"$f":"IF('1. Order'!B684=\"\",\"\",'1. Order'!B684)","v":""},{"$f":"IF('1. Order'!I684=\"\",\"\",'1. Order'!I684)","v":""},{"$f":"IF('1. Order'!J684=\"\",\"\",'1. Order'!J684)","v":""},{"$f":"IF('1. Order'!K684=\"\",\"\",'1. Order'!K684)","v":""},{"$f":"IF('1. Order'!M684=\"\",\"\",'1. Order'!M684)","v":""},null,null,null,{"$f":"IF('1. Order'!AF684=\"\",\"\",'1. Order'!AF684)","v":""}]
[{"$f":"IF('1. Order'!B685=\"\",\"\",'1. Order'!B685)","v":""},{"$f":"IF('1. Order'!I685=\"\",\"\",'1. Order'!I685)","v":""},{"$f":"IF('1. Order'!J685=\"\",\"\",'1. Order'!J685)","v":""},{"$f":"IF('1. Order'!K685=\"\",\"\",'1. Order'!K685)","v":""},{"$f":"IF('1. Order'!M685=\"\",\"\",'1. Order'!M685)","v":""},null,null,null,{"$f":"IF('1. Order'!AF685=\"\",\"\",'1. Order'!AF685)","v":""}]
[{"$f":"IF('1. Order'!B686=\"\",\"\",'1. Order'!B686)","v":""},{"$f":"IF('1. Order'!I686=\"\",\"\",'1. Order'!I686)","v":""},{"$f":"IF('1. Order'!J686=\"\",\"\",'1. Order'!J686)","v":""},{"$f":"IF('1. Order'!K686=\"\",\"\",'1. Order'!K686)","v":""},{"$f":"IF('1. Order'!M686=\"\",\"\",'1. Order'!M686)","v":""},null,null,null,{"$f":"IF('1. Order'!AF686=\"\",\"\",'1. Order'!AF686)","v":""}]
[{"$f":"IF('1. Order'!B687=\"\",\"\",'1. Order'!B687)","v":""},{"$f":"IF('1. Order'!I687=\"\",\"\",'1. Order'!I687)","v":""},{"$f":"IF('1. Order'!J687=\"\",\"\",'1. Order'!J687)","v":""},{"$f":"IF('1. Order'!K687=\"\",\"\",'1. Order'!K687)","v":""},{"$f":"IF('1. Order'!M687=\"\",\"\",'1. Order'!M687)","v":""},null,null,null,{"$f":"IF('1. Order'!AF687=\"\",\"\",'1. Order'!AF687)","v":""}]
[{"$f":"IF('1. Order'!B688=\"\",\"\",'1. Order'!B688)","v":""},{"$f":"IF('1. Order'!I688=\"\",\"\",'1. Order'!I688)","v":""},{"$f":"IF('1. Order'!J688=\"\",\"\",'1. Order'!J688)","v":""},{"$f":"IF('1. Order'!K688=\"\",\"\",'1. Order'!K688)","v":""},{"$f":"IF('1. Order'!M688=\"\",\"\",'1. Order'!M688)","v":""},null,null,null,{"$f":"IF('1. Order'!AF688=\"\",\"\",'1. Order'!AF688)","v":""}]
[{"$f":"IF('1. Order'!B689=\"\",\"\",'1. Order'!B689)","v":""},{"$f":"IF('1. Order'!I689=\"\",\"\",'1. Order'!I689)","v":""},{"$f":"IF('1. Order'!J689=\"\",\"\",'1. Order'!J689)","v":""},{"$f":"IF('1. Order'!K689=\"\",\"\",'1. Order'!K689)","v":""},{"$f":"IF('1. Order'!M689=\"\",\"\",'1. Order'!M689)","v":""},null,null,null,{"$f":"IF('1. Order'!AF689=\"\",\"\",'1. Order'!AF689)","v":""}]
[{"$f":"IF('1. Order'!B690=\"\",\"\",'1. Order'!B690)","v":""},{"$f":"IF('1. Order'!I690=\"\",\"\",'1. Order'!I690)","v":""},{"$f":"IF('1. Order'!J690=\"\",\"\",'1. Order'!J690)","v":""},{"$f":"IF('1. Order'!K690=\"\",\"\",'1. Order'!K690)","v":""},{"$f":"IF('1. Order'!M690=\"\",\"\",'1. Order'!M690)","v":""},null,null,null,{"$f":"IF('1. Order'!AF690=\"\",\"\",'1. Order'!AF690)","v":""}]
[{"$f":"IF('1. Order'!B691=\"\",\"\",'1. Order'!B691)","v":""},{"$f":"IF('1. Order'!I691=\"\",\"\",'1. Order'!I691)","v":""},{"$f":"IF('1. Order'!J691=\"\",\"\",'1. Order'!J691)","v":""},{"$f":"IF('1. Order'!K691=\"\",\"\",'1. Order'!K691)","v":""},{"$f":"IF('1. Order'!M691=\"\",\"\",'1. Order'!M691)","v":""},null,null,null,{"$f":"IF('1. Order'!AF691=\"\",\"\",'1. Order'!AF691)","v":""}]
[{"$f":"IF('1. Order'!B692=\"\",\"\",'1. Order'!B692)","v":""},{"$f":"IF('1. Order'!I692=\"\",\"\",'1. Order'!I692)","v":""},{"$f":"IF('1. Order'!J692=\"\",\"\",'1. Order'!J692)","v":""},{"$f":"IF('1. Order'!K692=\"\",\"\",'1. Order'!K692)","v":""},{"$f":"IF('1. Order'!M692=\"\",\"\",'1. Order'!M692)","v":""},null,null,null,{"$f":"IF('1. Order'!AF692=\"\",\"\",'1. Order'!AF692)","v":""}]
[{"$f":"IF('1. Order'!B693=\"\",\"\",'1. Order'!B693)","v":""},{"$f":"IF('1. Order'!I693=\"\",\"\",'1. Order'!I693)","v":""},{"$f":"IF('1. Order'!J693=\"\",\"\",'1. Order'!J693)","v":""},{"$f":"IF('1. Order'!K693=\"\",\"\",'1. Order'!K693)","v":""},{"$f":"IF('1. Order'!M693=\"\",\"\",'1. Order'!M693)","v":""},null,null,null,{"$f":"IF('1. Order'!AF693=\"\",\"\",'1. Order'!AF693)","v":""}]
[{"$f":"IF('1. Order'!B694=\"\",\"\",'1. Order'!B694)","v":""},{"$f":"IF('1. Order'!I694=\"\",\"\",'1. Order'!I694)","v":""},{"$f":"IF('1. Order'!J694=\"\",\"\",'1. Order'!J694)","v":""},{"$f":"IF('1. Order'!K694=\"\",\"\",'1. Order'!K694)","v":""},{"$f":"IF('1. Order'!M694=\"\",\"\",'1. Order'!M694)","v":""},null,null,null,{"$f":"IF('1. Order'!AF694=\"\",\"\",'1. Order'!AF694)","v":""}]
[{"$f":"IF('1. Order'!B695=\"\",\"\",'1. Order'!B695)","v":""},{"$f":"IF('1. Order'!I695=\"\",\"\",'1. Order'!I695)","v":""},{"$f":"IF('1. Order'!J695=\"\",\"\",'1. Order'!J695)","v":""},{"$f":"IF('1. Order'!K695=\"\",\"\",'1. Order'!K695)","v":""},{"$f":"IF('1. Order'!M695=\"\",\"\",'1. Order'!M695)","v":""},null,null,null,{"$f":"IF('1. Order'!AF695=\"\",\"\",'1. Order'!AF695)","v":""}]
[{"$f":"IF('1. Order'!B696=\"\",\"\",'1. Order'!B696)","v":""},{"$f":"IF('1. Order'!I696=\"\",\"\",'1. Order'!I696)","v":""},{"$f":"IF('1. Order'!J696=\"\",\"\",'1. Order'!J696)","v":""},{"$f":"IF('1. Order'!K696=\"\",\"\",'1. Order'!K696)","v":""},{"$f":"IF('1. Order'!M696=\"\",\"\",'1. Order'!M696)","v":""},null,null,null,{"$f":"IF('1. Order'!AF696=\"\",\"\",'1. Order'!AF696)","v":""}]
[{"$f":"IF('1. Order'!B697=\"\",\"\",'1. Order'!B697)","v":""},{"$f":"IF('1. Order'!I697=\"\",\"\",'1. Order'!I697)","v":""},{"$f":"IF('1. Order'!J697=\"\",\"\",'1. Order'!J697)","v":""},{"$f":"IF('1. Order'!K697=\"\",\"\",'1. Order'!K697)","v":""},{"$f":"IF('1. Order'!M697=\"\",\"\",'1. Order'!M697)","v":""},null,null,null,{"$f":"IF('1. Order'!AF697=\"\",\"\",'1. Order'!AF697)","v":""}]
[{"$f":"IF('1. Order'!B698=\"\",\"\",'1. Order'!B698)","v":""},{"$f":"IF('1. Order'!I698=\"\",\"\",'1. Order'!I698)","v":""},{"$f":"IF('1. Order'!J698=\"\",\"\",'1. Order'!J698)","v":""},{"$f":"IF('1. Order'!K698=\"\",\"\",'1. Order'!K698)","v":""},{"$f":"IF('1. Order'!M698=\"\",\"\",'1. Order'!M698)","v":""},null,null,null,{"$f":"IF('1. Order'!AF698=\"\",\"\",'1. Order'!AF698)","v":""}]
[{"$f":"IF('1. Order'!B699=\"\",\"\",'1. Order'!B699)","v":""},{"$f":"IF('1. Order'!I699=\"\",\"\",'1. Order'!I699)","v":""},{"$f":"IF('1. Order'!J699=\"\",\"\",'1. Order'!J699)","v":""},{"$f":"IF('1. Order'!K699=\"\",\"\",'1. Order'!K699)","v":""},{"$f":"IF('1. Order'!M699=\"\",\"\",'1. Order'!M699)","v":""},null,null,null,{"$f":"IF('1. Order'!AF699=\"\",\"\",'1. Order'!AF699)","v":""}]
[{"$f":"IF('1. Order'!B700=\"\",\"\",'1. Order'!B700)","v":""},{"$f":"IF('1. Order'!I700=\"\",\"\",'1. Order'!I700)","v":""},{"$f":"IF('1. Order'!J700=\"\",\"\",'1. Order'!J700)","v":""},{"$f":"IF('1. Order'!K700=\"\",\"\",'1. Order'!K700)","v":""},{"$f":"IF('1. Order'!M700=\"\",\"\",'1. Order'!M700)","v":""},null,null,null,{"$f":"IF('1. Order'!AF700=\"\",\"\",'1. Order'!AF700)","v":""}]
[{"$f":"IF('1. Order'!B701=\"\",\"\",'1. Order'!B701)","v":""},{"$f":"IF('1. Order'!I701=\"\",\"\",'1. Order'!I701)","v":""},{"$f":"IF('1. Order'!J701=\"\",\"\",'1. Order'!J701)","v":""},{"$f":"IF('1. Order'!K701=\"\",\"\",'1. Order'!K701)","v":""},{"$f":"IF('1. Order'!M701=\"\",\"\",'1. Order'!M701)","v":""},null,null,null,{"$f":"IF('1. Order'!AF701=\"\",\"\",'1. Order'!AF701)","v":""}]
[{"$f":"IF('1. Order'!B702=\"\",\"\",'1. Order'!B702)","v":""},{"$f":"IF('1. Order'!I702=\"\",\"\",'1. Order'!I702)","v":""},{"$f":"IF('1. Order'!J702=\"\",\"\",'1. Order'!J702)","v":""},{"$f":"IF('1. Order'!K702=\"\",\"\",'1. Order'!K702)","v":""},{"$f":"IF('1. Order'!M702=\"\",\"\",'1. Order'!M702)","v":""},null,null,null,{"$f":"IF('1. Order'!AF702=\"\",\"\",'1. Order'!AF702)","v":""}]
[{"$f":"IF('1. Order'!B703=\"\",\"\",'1. Order'!B703)","v":""},{"$f":"IF('1. Order'!I703=\"\",\"\",'1. Order'!I703)","v":""},{"$f":"IF('1. Order'!J703=\"\",\"\",'1. Order'!J703)","v":""},{"$f":"IF('1. Order'!K703=\"\",\"\",'1. Order'!K703)","v":""},{"$f":"IF('1. Order'!M703=\"\",\"\",'1. Order'!M703)","v":""},null,null,null,{"$f":"IF('1. Order'!AF703=\"\",\"\",'1. Order'!AF703)","v":""}]
[{"$f":"IF('1. Order'!B704=\"\",\"\",'1. Order'!B704)","v":""},{"$f":"IF('1. Order'!I704=\"\",\"\",'1. Order'!I704)","v":""},{"$f":"IF('1. Order'!J704=\"\",\"\",'1. Order'!J704)","v":""},{"$f":"IF('1. Order'!K704=\"\",\"\",'1. Order'!K704)","v":""},{"$f":"IF('1. Order'!M704=\"\",\"\",'1. Order'!M704)","v":""},null,null,null,{"$f":"IF('1. Order'!AF704=\"\",\"\",'1. Order'!AF704)","v":""}]
[{"$f":"IF('1. Order'!B705=\"\",\"\",'1. Order'!B705)","v":""},{"$f":"IF('1. Order'!I705=\"\",\"\",'1. Order'!I705)","v":""},{"$f":"IF('1. Order'!J705=\"\",\"\",'1. Order'!J705)","v":""},{"$f":"IF('1. Order'!K705=\"\",\"\",'1. Order'!K705)","v":""},{"$f":"IF('1. Order'!M705=\"\",\"\",'1. Order'!M705)","v":""},null,null,null,{"$f":"IF('1. Order'!AF705=\"\",\"\",'1. Order'!AF705)","v":""}]
[{"$f":"IF('1. Order'!B706=\"\",\"\",'1. Order'!B706)","v":""},{"$f":"IF('1. Order'!I706=\"\",\"\",'1. Order'!I706)","v":""},{"$f":"IF('1. Order'!J706=\"\",\"\",'1. Order'!J706)","v":""},{"$f":"IF('1. Order'!K706=\"\",\"\",'1. Order'!K706)","v":""},{"$f":"IF('1. Order'!M706=\"\",\"\",'1. Order'!M706)","v":""},null,null,null,{"$f":"IF('1. Order'!AF706=\"\",\"\",'1. Order'!AF706)","v":""}]
[{"$f":"IF('1. Order'!B707=\"\",\"\",'1. Order'!B707)","v":""},{"$f":"IF('1. Order'!I707=\"\",\"\",'1. Order'!I707)","v":""},{"$f":"IF('1. Order'!J707=\"\",\"\",'1. Order'!J707)","v":""},{"$f":"IF('1. Order'!K707=\"\",\"\",'1. Order'!K707)","v":""},{"$f":"IF('1. Order'!M707=\"\",\"\",'1. Order'!M707)","v":""},null,null,null,{"$f":"IF('1. Order'!AF707=\"\",\"\",'1. Order'!AF707)","v":""}]
[{"$f":"IF('1. Order'!B708=\"\",\"\",'1. Order'!B708)","v":""},{"$f":"IF('1. Order'!I708=\"\",\"\",'1. Order'!I708)","v":""},{"$f":"IF('1. Order'!J708=\"\",\"\",'1. Order'!J708)","v":""},{"$f":"IF('1. Order'!K708=\"\",\"\",'1. Order'!K708)","v":""},{"$f":"IF('1. Order'!M708=\"\",\"\",'1. Order'!M708)","v":""},null,null,null,{"$f":"IF('1. Order'!AF708=\"\",\"\",'1. Order'!AF708)","v":""}]
[{"$f":"IF('1. Order'!B709=\"\",\"\",'1. Order'!B709)","v":""},{"$f":"IF('1. Order'!I709=\"\",\"\",'1. Order'!I709)","v":""},{"$f":"IF('1. Order'!J709=\"\",\"\",'1. Order'!J709)","v":""},{"$f":"IF('1. Order'!K709=\"\",\"\",'1. Order'!K709)","v":""},{"$f":"IF('1. Order'!M709=\"\",\"\",'1. Order'!M709)","v":""},null,null,null,{"$f":"IF('1. Order'!AF709=\"\",\"\",'1. Order'!AF709)","v":""}]
[{"$f":"IF('1. Order'!B710=\"\",\"\",'1. Order'!B710)","v":""},{"$f":"IF('1. Order'!I710=\"\",\"\",'1. Order'!I710)","v":""},{"$f":"IF('1. Order'!J710=\"\",\"\",'1. Order'!J710)","v":""},{"$f":"IF('1. Order'!K710=\"\",\"\",'1. Order'!K710)","v":""},{"$f":"IF('1. Order'!M710=\"\",\"\",'1. Order'!M710)","v":""},null,null,null,{"$f":"IF('1. Order'!AF710=\"\",\"\",'1. Order'!AF710)","v":""}]
[{"$f":"IF('1. Order'!B711=\"\",\"\",'1. Order'!B711)","v":""},{"$f":"IF('1. Order'!I711=\"\",\"\",'1. Order'!I711)","v":""},{"$f":"IF('1. Order'!J711=\"\",\"\",'1. Order'!J711)","v":""},{"$f":"IF('1. Order'!K711=\"\",\"\",'1. Order'!K711)","v":""},{"$f":"IF('1. Order'!M711=\"\",\"\",'1. Order'!M711)","v":""},null,null,null,{"$f":"IF('1. Order'!AF711=\"\",\"\",'1. Order'!AF711)","v":""}]
[{"$f":"IF('1. Order'!B712=\"\",\"\",'1. Order'!B712)","v":""},{"$f":"IF('1. Order'!I712=\"\",\"\",'1. Order'!I712)","v":""},{"$f":"IF('1. Order'!J712=\"\",\"\",'1. Order'!J712)","v":""},{"$f":"IF('1. Order'!K712=\"\",\"\",'1. Order'!K712)","v":""},{"$f":"IF('1. Order'!M712=\"\",\"\",'1. Order'!M712)","v":""},null,null,null,{"$f":"IF('1. Order'!AF712=\"\",\"\",'1. Order'!AF712)","v":""}]
[{"$f":"IF('1. Order'!B713=\"\",\"\",'1. Order'!B713)","v":""},{"$f":"IF('1. Order'!I713=\"\",\"\",'1. Order'!I713)","v":""},{"$f":"IF('1. Order'!J713=\"\",\"\",'1. Order'!J713)","v":""},{"$f":"IF('1. Order'!K713=\"\",\"\",'1. Order'!K713)","v":""},{"$f":"IF('1. Order'!M713=\"\",\"\",'1. Order'!M713)","v":""},null,null,null,{"$f":"IF('1. Order'!AF713=\"\",\"\",'1. Order'!AF713)","v":""}]
[{"$f":"IF('1. Order'!B714=\"\",\"\",'1. Order'!B714)","v":""},{"$f":"IF('1. Order'!I714=\"\",\"\",'1. Order'!I714)","v":""},{"$f":"IF('1. Order'!J714=\"\",\"\",'1. Order'!J714)","v":""},{"$f":"IF('1. Order'!K714=\"\",\"\",'1. Order'!K714)","v":""},{"$f":"IF('1. Order'!M714=\"\",\"\",'1. Order'!M714)","v":""},null,null,null,{"$f":"IF('1. Order'!AF714=\"\",\"\",'1. Order'!AF714)","v":""}]
[{"$f":"IF('1. Order'!B715=\"\",\"\",'1. Order'!B715)","v":""},{"$f":"IF('1. Order'!I715=\"\",\"\",'1. Order'!I715)","v":""},{"$f":"IF('1. Order'!J715=\"\",\"\",'1. Order'!J715)","v":""},{"$f":"IF('1. Order'!K715=\"\",\"\",'1. Order'!K715)","v":""},{"$f":"IF('1. Order'!M715=\"\",\"\",'1. Order'!M715)","v":""},null,null,null,{"$f":"IF('1. Order'!AF715=\"\",\"\",'1. Order'!AF715)","v":""}]
[{"$f":"IF('1. Order'!B716=\"\",\"\",'1. Order'!B716)","v":""},{"$f":"IF('1. Order'!I716=\"\",\"\",'1. Order'!I716)","v":""},{"$f":"IF('1. Order'!J716=\"\",\"\",'1. Order'!J716)","v":""},{"$f":"IF('1. Order'!K716=\"\",\"\",'1. Order'!K716)","v":""},{"$f":"IF('1. Order'!M716=\"\",\"\",'1. Order'!M716)","v":""},null,null,null,{"$f":"IF('1. Order'!AF716=\"\",\"\",'1. Order'!AF716)","v":""}]
[{"$f":"IF('1. Order'!B717=\"\",\"\",'1. Order'!B717)","v":""},{"$f":"IF('1. Order'!I717=\"\",\"\",'1. Order'!I717)","v":""},{"$f":"IF('1. Order'!J717=\"\",\"\",'1. Order'!J717)","v":""},{"$f":"IF('1. Order'!K717=\"\",\"\",'1. Order'!K717)","v":""},{"$f":"IF('1. Order'!M717=\"\",\"\",'1. Order'!M717)","v":""},null,null,null,{"$f":"IF('1. Order'!AF717=\"\",\"\",'1. Order'!AF717)","v":""}]
[{"$f":"IF('1. Order'!B718=\"\",\"\",'1. Order'!B718)","v":""},{"$f":"IF('1. Order'!I718=\"\",\"\",'1. Order'!I718)","v":""},{"$f":"IF('1. Order'!J718=\"\",\"\",'1. Order'!J718)","v":""},{"$f":"IF('1. Order'!K718=\"\",\"\",'1. Order'!K718)","v":""},{"$f":"IF('1. Order'!M718=\"\",\"\",'1. Order'!M718)","v":""},null,null,null,{"$f":"IF('1. Order'!AF718=\"\",\"\",'1. Order'!AF718)","v":""}]
[{"$f":"IF('1. Order'!B719=\"\",\"\",'1. Order'!B719)","v":""},{"$f":"IF('1. Order'!I719=\"\",\"\",'1. Order'!I719)","v":""},{"$f":"IF('1. Order'!J719=\"\",\"\",'1. Order'!J719)","v":""},{"$f":"IF('1. Order'!K719=\"\",\"\",'1. Order'!K719)","v":""},{"$f":"IF('1. Order'!M719=\"\",\"\",'1. Order'!M719)","v":""},null,null,null,{"$f":"IF('1. Order'!AF719=\"\",\"\",'1. Order'!AF719)","v":""}]
[{"$f":"IF('1. Order'!B720=\"\",\"\",'1. Order'!B720)","v":""},{"$f":"IF('1. Order'!I720=\"\",\"\",'1. Order'!I720)","v":""},{"$f":"IF('1. Order'!J720=\"\",\"\",'1. Order'!J720)","v":""},{"$f":"IF('1. Order'!K720=\"\",\"\",'1. Order'!K720)","v":""},{"$f":"IF('1. Order'!M720=\"\",\"\",'1. Order'!M720)","v":""},null,null,null,{"$f":"IF('1. Order'!AF720=\"\",\"\",'1. Order'!AF720)","v":""}]
[{"$f":"IF('1. Order'!B721=\"\",\"\",'1. Order'!B721)","v":""},{"$f":"IF('1. Order'!I721=\"\",\"\",'1. Order'!I721)","v":""},{"$f":"IF('1. Order'!J721=\"\",\"\",'1. Order'!J721)","v":""},{"$f":"IF('1. Order'!K721=\"\",\"\",'1. Order'!K721)","v":""},{"$f":"IF('1. Order'!M721=\"\",\"\",'1. Order'!M721)","v":""},null,null,null,{"$f":"IF('1. Order'!AF721=\"\",\"\",'1. Order'!AF721)","v":""}]
[{"$f":"IF('1. Order'!B722=\"\",\"\",'1. Order'!B722)","v":""},{"$f":"IF('1. Order'!I722=\"\",\"\",'1. Order'!I722)","v":""},{"$f":"IF('1. Order'!J722=\"\",\"\",'1. Order'!J722)","v":""},{"$f":"IF('1. Order'!K722=\"\",\"\",'1. Order'!K722)","v":""},{"$f":"IF('1. Order'!M722=\"\",\"\",'1. Order'!M722)","v":""},null,null,null,{"$f":"IF('1. Order'!AF722=\"\",\"\",'1. Order'!AF722)","v":""}]
[{"$f":"IF('1. Order'!B723=\"\",\"\",'1. Order'!B723)","v":""},{"$f":"IF('1. Order'!I723=\"\",\"\",'1. Order'!I723)","v":""},{"$f":"IF('1. Order'!J723=\"\",\"\",'1. Order'!J723)","v":""},{"$f":"IF('1. Order'!K723=\"\",\"\",'1. Order'!K723)","v":""},{"$f":"IF('1. Order'!M723=\"\",\"\",'1. Order'!M723)","v":""},null,null,null,{"$f":"IF('1. Order'!AF723=\"\",\"\",'1. Order'!AF723)","v":""}]
[{"$f":"IF('1. Order'!B724=\"\",\"\",'1. Order'!B724)","v":""},{"$f":"IF('1. Order'!I724=\"\",\"\",'1. Order'!I724)","v":""},{"$f":"IF('1. Order'!J724=\"\",\"\",'1. Order'!J724)","v":""},{"$f":"IF('1. Order'!K724=\"\",\"\",'1. Order'!K724)","v":""},{"$f":"IF('1. Order'!M724=\"\",\"\",'1. Order'!M724)","v":""},null,null,null,{"$f":"IF('1. Order'!AF724=\"\",\"\",'1. Order'!AF724)","v":""}]
[{"$f":"IF('1. Order'!B725=\"\",\"\",'1. Order'!B725)","v":""},{"$f":"IF('1. Order'!I725=\"\",\"\",'1. Order'!I725)","v":""},{"$f":"IF('1. Order'!J725=\"\",\"\",'1. Order'!J725)","v":""},{"$f":"IF('1. Order'!K725=\"\",\"\",'1. Order'!K725)","v":""},{"$f":"IF('1. Order'!M725=\"\",\"\",'1. Order'!M725)","v":""},null,null,null,{"$f":"IF('1. Order'!AF725=\"\",\"\",'1. Order'!AF725)","v":""}]
[{"$f":"IF('1. Order'!B726=\"\",\"\",'1. Order'!B726)","v":""},{"$f":"IF('1. Order'!I726=\"\",\"\",'1. Order'!I726)","v":""},{"$f":"IF('1. Order'!J726=\"\",\"\",'1. Order'!J726)","v":""},{"$f":"IF('1. Order'!K726=\"\",\"\",'1. Order'!K726)","v":""},{"$f":"IF('1. Order'!M726=\"\",\"\",'1. Order'!M726)","v":""},null,null,null,{"$f":"IF('1. Order'!AF726=\"\",\"\",'1. Order'!AF726)","v":""}]
[{"$f":"IF('1. Order'!B727=\"\",\"\",'1. Order'!B727)","v":""},{"$f":"IF('1. Order'!I727=\"\",\"\",'1. Order'!I727)","v":""},{"$f":"IF('1. Order'!J727=\"\",\"\",'1. Order'!J727)","v":""},{"$f":"IF('1. Order'!K727=\"\",\"\",'1. Order'!K727)","v":""},{"$f":"IF('1. Order'!M727=\"\",\"\",'1. Order'!M727)","v":""},null,null,null,{"$f":"IF('1. Order'!AF727=\"\",\"\",'1. Order'!AF727)","v":""}]
[{"$f":"IF('1. Order'!B728=\"\",\"\",'1. Order'!B728)","v":""},{"$f":"IF('1. Order'!I728=\"\",\"\",'1. Order'!I728)","v":""},{"$f":"IF('1. Order'!J728=\"\",\"\",'1. Order'!J728)","v":""},{"$f":"IF('1. Order'!K728=\"\",\"\",'1. Order'!K728)","v":""},{"$f":"IF('1. Order'!M728=\"\",\"\",'1. Order'!M728)","v":""},null,null,null,{"$f":"IF('1. Order'!AF728=\"\",\"\",'1. Order'!AF728)","v":""}]
[{"$f":"IF('1. Order'!B729=\"\",\"\",'1. Order'!B729)","v":""},{"$f":"IF('1. Order'!I729=\"\",\"\",'1. Order'!I729)","v":""},{"$f":"IF('1. Order'!J729=\"\",\"\",'1. Order'!J729)","v":""},{"$f":"IF('1. Order'!K729=\"\",\"\",'1. Order'!K729)","v":""},{"$f":"IF('1. Order'!M729=\"\",\"\",'1. Order'!M729)","v":""},null,null,null,{"$f":"IF('1. Order'!AF729=\"\",\"\",'1. Order'!AF729)","v":""}]
[{"$f":"IF('1. Order'!B730=\"\",\"\",'1. Order'!B730)","v":""},{"$f":"IF('1. Order'!I730=\"\",\"\",'1. Order'!I730)","v":""},{"$f":"IF('1. Order'!J730=\"\",\"\",'1. Order'!J730)","v":""},{"$f":"IF('1. Order'!K730=\"\",\"\",'1. Order'!K730)","v":""},{"$f":"IF('1. Order'!M730=\"\",\"\",'1. Order'!M730)","v":""},null,null,null,{"$f":"IF('1. Order'!AF730=\"\",\"\",'1. Order'!AF730)","v":""}]
[{"$f":"IF('1. Order'!B731=\"\",\"\",'1. Order'!B731)","v":""},{"$f":"IF('1. Order'!I731=\"\",\"\",'1. Order'!I731)","v":""},{"$f":"IF('1. Order'!J731=\"\",\"\",'1. Order'!J731)","v":""},{"$f":"IF('1. Order'!K731=\"\",\"\",'1. Order'!K731)","v":""},{"$f":"IF('1. Order'!M731=\"\",\"\",'1. Order'!M731)","v":""},null,null,null,{"$f":"IF('1. Order'!AF731=\"\",\"\",'1. Order'!AF731)","v":""}]
[{"$f":"IF('1. Order'!B732=\"\",\"\",'1. Order'!B732)","v":""},{"$f":"IF('1. Order'!I732=\"\",\"\",'1. Order'!I732)","v":""},{"$f":"IF('1. Order'!J732=\"\",\"\",'1. Order'!J732)","v":""},{"$f":"IF('1. Order'!K732=\"\",\"\",'1. Order'!K732)","v":""},{"$f":"IF('1. Order'!M732=\"\",\"\",'1. Order'!M732)","v":""},null,null,null,{"$f":"IF('1. Order'!AF732=\"\",\"\",'1. Order'!AF732)","v":""}]
[{"$f":"IF('1. Order'!B733=\"\",\"\",'1. Order'!B733)","v":""},{"$f":"IF('1. Order'!I733=\"\",\"\",'1. Order'!I733)","v":""},{"$f":"IF('1. Order'!J733=\"\",\"\",'1. Order'!J733)","v":""},{"$f":"IF('1. Order'!K733=\"\",\"\",'1. Order'!K733)","v":""},{"$f":"IF('1. Order'!M733=\"\",\"\",'1. Order'!M733)","v":""},null,null,null,{"$f":"IF('1. Order'!AF733=\"\",\"\",'1. Order'!AF733)","v":""}]
[{"$f":"IF('1. Order'!B734=\"\",\"\",'1. Order'!B734)","v":""},{"$f":"IF('1. Order'!I734=\"\",\"\",'1. Order'!I734)","v":""},{"$f":"IF('1. Order'!J734=\"\",\"\",'1. Order'!J734)","v":""},{"$f":"IF('1. Order'!K734=\"\",\"\",'1. Order'!K734)","v":""},{"$f":"IF('1. Order'!M734=\"\",\"\",'1. Order'!M734)","v":""},null,null,null,{"$f":"IF('1. Order'!AF734=\"\",\"\",'1. Order'!AF734)","v":""}]
[{"$f":"IF('1. Order'!B735=\"\",\"\",'1. Order'!B735)","v":""},{"$f":"IF('1. Order'!I735=\"\",\"\",'1. Order'!I735)","v":""},{"$f":"IF('1. Order'!J735=\"\",\"\",'1. Order'!J735)","v":""},{"$f":"IF('1. Order'!K735=\"\",\"\",'1. Order'!K735)","v":""},{"$f":"IF('1. Order'!M735=\"\",\"\",'1. Order'!M735)","v":""},null,null,null,{"$f":"IF('1. Order'!AF735=\"\",\"\",'1. Order'!AF735)","v":""}]
[{"$f":"IF('1. Order'!B736=\"\",\"\",'1. Order'!B736)","v":""},{"$f":"IF('1. Order'!I736=\"\",\"\",'1. Order'!I736)","v":""},{"$f":"IF('1. Order'!J736=\"\",\"\",'1. Order'!J736)","v":""},{"$f":"IF('1. Order'!K736=\"\",\"\",'1. Order'!K736)","v":""},{"$f":"IF('1. Order'!M736=\"\",\"\",'1. Order'!M736)","v":""},null,null,null,{"$f":"IF('1. Order'!AF736=\"\",\"\",'1. Order'!AF736)","v":""}]
[{"$f":"IF('1. Order'!B737=\"\",\"\",'1. Order'!B737)","v":""},{"$f":"IF('1. Order'!I737=\"\",\"\",'1. Order'!I737)","v":""},{"$f":"IF('1. Order'!J737=\"\",\"\",'1. Order'!J737)","v":""},{"$f":"IF('1. Order'!K737=\"\",\"\",'1. Order'!K737)","v":""},{"$f":"IF('1. Order'!M737=\"\",\"\",'1. Order'!M737)","v":""},null,null,null,{"$f":"IF('1. Order'!AF737=\"\",\"\",'1. Order'!AF737)","v":""}]
[{"$f":"IF('1. Order'!B738=\"\",\"\",'1. Order'!B738)","v":""},{"$f":"IF('1. Order'!I738=\"\",\"\",'1. Order'!I738)","v":""},{"$f":"IF('1. Order'!J738=\"\",\"\",'1. Order'!J738)","v":""},{"$f":"IF('1. Order'!K738=\"\",\"\",'1. Order'!K738)","v":""},{"$f":"IF('1. Order'!M738=\"\",\"\",'1. Order'!M738)","v":""},null,null,null,{"$f":"IF('1. Order'!AF738=\"\",\"\",'1. Order'!AF738)","v":""}]
[{"$f":"IF('1. Order'!B739=\"\",\"\",'1. Order'!B739)","v":""},{"$f":"IF('1. Order'!I739=\"\",\"\",'1. Order'!I739)","v":""},{"$f":"IF('1. Order'!J739=\"\",\"\",'1. Order'!J739)","v":""},{"$f":"IF('1. Order'!K739=\"\",\"\",'1. Order'!K739)","v":""},{"$f":"IF('1. Order'!M739=\"\",\"\",'1. Order'!M739)","v":""},null,null,null,{"$f":"IF('1. Order'!AF739=\"\",\"\",'1. Order'!AF739)","v":""}]
[{"$f":"IF('1. Order'!B740=\"\",\"\",'1. Order'!B740)","v":""},{"$f":"IF('1. Order'!I740=\"\",\"\",'1. Order'!I740)","v":""},{"$f":"IF('1. Order'!J740=\"\",\"\",'1. Order'!J740)","v":""},{"$f":"IF('1. Order'!K740=\"\",\"\",'1. Order'!K740)","v":""},{"$f":"IF('1. Order'!M740=\"\",\"\",'1. Order'!M740)","v":""},null,null,null,{"$f":"IF('1. Order'!AF740=\"\",\"\",'1. Order'!AF740)","v":""}]
[{"$f":"IF('1. Order'!B741=\"\",\"\",'1. Order'!B741)","v":""},{"$f":"IF('1. Order'!I741=\"\",\"\",'1. Order'!I741)","v":""},{"$f":"IF('1. Order'!J741=\"\",\"\",'1. Order'!J741)","v":""},{"$f":"IF('1. Order'!K741=\"\",\"\",'1. Order'!K741)","v":""},{"$f":"IF('1. Order'!M741=\"\",\"\",'1. Order'!M741)","v":""},null,null,null,{"$f":"IF('1. Order'!AF741=\"\",\"\",'1. Order'!AF741)","v":""}]
[{"$f":"IF('1. Order'!B742=\"\",\"\",'1. Order'!B742)","v":""},{"$f":"IF('1. Order'!I742=\"\",\"\",'1. Order'!I742)","v":""},{"$f":"IF('1. Order'!J742=\"\",\"\",'1. Order'!J742)","v":""},{"$f":"IF('1. Order'!K742=\"\",\"\",'1. Order'!K742)","v":""},{"$f":"IF('1. Order'!M742=\"\",\"\",'1. Order'!M742)","v":""},null,null,null,{"$f":"IF('1. Order'!AF742=\"\",\"\",'1. Order'!AF742)","v":""}]
[{"$f":"IF('1. Order'!B743=\"\",\"\",'1. Order'!B743)","v":""},{"$f":"IF('1. Order'!I743=\"\",\"\",'1. Order'!I743)","v":""},{"$f":"IF('1. Order'!J743=\"\",\"\",'1. Order'!J743)","v":""},{"$f":"IF('1. Order'!K743=\"\",\"\",'1. Order'!K743)","v":""},{"$f":"IF('1. Order'!M743=\"\",\"\",'1. Order'!M743)","v":""},null,null,null,{"$f":"IF('1. Order'!AF743=\"\",\"\",'1. Order'!AF743)","v":""}]
[{"$f":"IF('1. Order'!B744=\"\",\"\",'1. Order'!B744)","v":""},{"$f":"IF('1. Order'!I744=\"\",\"\",'1. Order'!I744)","v":""},{"$f":"IF('1. Order'!J744=\"\",\"\",'1. Order'!J744)","v":""},{"$f":"IF('1. Order'!K744=\"\",\"\",'1. Order'!K744)","v":""},{"$f":"IF('1. Order'!M744=\"\",\"\",'1. Order'!M744)","v":""},null,null,null,{"$f":"IF('1. Order'!AF744=\"\",\"\",'1. Order'!AF744)","v":""}]
[{"$f":"IF('1. Order'!B745=\"\",\"\",'1. Order'!B745)","v":""},{"$f":"IF('1. Order'!I745=\"\",\"\",'1. Order'!I745)","v":""},{"$f":"IF('1. Order'!J745=\"\",\"\",'1. Order'!J745)","v":""},{"$f":"IF('1. Order'!K745=\"\",\"\",'1. Order'!K745)","v":""},{"$f":"IF('1. Order'!M745=\"\",\"\",'1. Order'!M745)","v":""},null,null,null,{"$f":"IF('1. Order'!AF745=\"\",\"\",'1. Order'!AF745)","v":""}]
[{"$f":"IF('1. Order'!B746=\"\",\"\",'1. Order'!B746)","v":""},{"$f":"IF('1. Order'!I746=\"\",\"\",'1. Order'!I746)","v":""},{"$f":"IF('1. Order'!J746=\"\",\"\",'1. Order'!J746)","v":""},{"$f":"IF('1. Order'!K746=\"\",\"\",'1. Order'!K746)","v":""},{"$f":"IF('1. Order'!M746=\"\",\"\",'1. Order'!M746)","v":""},null,null,null,{"$f":"IF('1. Order'!AF746=\"\",\"\",'1. Order'!AF746)","v":""}]
[{"$f":"IF('1. Order'!B747=\"\",\"\",'1. Order'!B747)","v":""},{"$f":"IF('1. Order'!I747=\"\",\"\",'1. Order'!I747)","v":""},{"$f":"IF('1. Order'!J747=\"\",\"\",'1. Order'!J747)","v":""},{"$f":"IF('1. Order'!K747=\"\",\"\",'1. Order'!K747)","v":""},{"$f":"IF('1. Order'!M747=\"\",\"\",'1. Order'!M747)","v":""},null,null,null,{"$f":"IF('1. Order'!AF747=\"\",\"\",'1. Order'!AF747)","v":""}]
[{"$f":"IF('1. Order'!B748=\"\",\"\",'1. Order'!B748)","v":""},{"$f":"IF('1. Order'!I748=\"\",\"\",'1. Order'!I748)","v":""},{"$f":"IF('1. Order'!J748=\"\",\"\",'1. Order'!J748)","v":""},{"$f":"IF('1. Order'!K748=\"\",\"\",'1. Order'!K748)","v":""},{"$f":"IF('1. Order'!M748=\"\",\"\",'1. Order'!M748)","v":""},null,null,null,{"$f":"IF('1. Order'!AF748=\"\",\"\",'1. Order'!AF748)","v":""}]
[{"$f":"IF('1. Order'!B749=\"\",\"\",'1. Order'!B749)","v":""},{"$f":"IF('1. Order'!I749=\"\",\"\",'1. Order'!I749)","v":""},{"$f":"IF('1. Order'!J749=\"\",\"\",'1. Order'!J749)","v":""},{"$f":"IF('1. Order'!K749=\"\",\"\",'1. Order'!K749)","v":""},{"$f":"IF('1. Order'!M749=\"\",\"\",'1. Order'!M749)","v":""},null,null,null,{"$f":"IF('1. Order'!AF749=\"\",\"\",'1. Order'!AF749)","v":""}]
[{"$f":"IF('1. Order'!B750=\"\",\"\",'1. Order'!B750)","v":""},{"$f":"IF('1. Order'!I750=\"\",\"\",'1. Order'!I750)","v":""},{"$f":"IF('1. Order'!J750=\"\",\"\",'1. Order'!J750)","v":""},{"$f":"IF('1. Order'!K750=\"\",\"\",'1. Order'!K750)","v":""},{"$f":"IF('1. Order'!M750=\"\",\"\",'1. Order'!M750)","v":""},null,null,null,{"$f":"IF('1. Order'!AF750=\"\",\"\",'1. Order'!AF750)","v":""}]
[{"$f":"IF('1. Order'!B751=\"\",\"\",'1. Order'!B751)","v":""},{"$f":"IF('1. Order'!I751=\"\",\"\",'1. Order'!I751)","v":""},{"$f":"IF('1. Order'!J751=\"\",\"\",'1. Order'!J751)","v":""},{"$f":"IF('1. Order'!K751=\"\",\"\",'1. Order'!K751)","v":""},{"$f":"IF('1. Order'!M751=\"\",\"\",'1. Order'!M751)","v":""},null,null,null,{"$f":"IF('1. Order'!AF751=\"\",\"\",'1. Order'!AF751)","v":""}]
[{"$f":"IF('1. Order'!B752=\"\",\"\",'1. Order'!B752)","v":""},{"$f":"IF('1. Order'!I752=\"\",\"\",'1. Order'!I752)","v":""},{"$f":"IF('1. Order'!J752=\"\",\"\",'1. Order'!J752)","v":""},{"$f":"IF('1. Order'!K752=\"\",\"\",'1. Order'!K752)","v":""},{"$f":"IF('1. Order'!M752=\"\",\"\",'1. Order'!M752)","v":""},null,null,null,{"$f":"IF('1. Order'!AF752=\"\",\"\",'1. Order'!AF752)","v":""}]
[{"$f":"IF('1. Order'!B753=\"\",\"\",'1. Order'!B753)","v":""},{"$f":"IF('1. Order'!I753=\"\",\"\",'1. Order'!I753)","v":""},{"$f":"IF('1. Order'!J753=\"\",\"\",'1. Order'!J753)","v":""},{"$f":"IF('1. Order'!K753=\"\",\"\",'1. Order'!K753)","v":""},{"$f":"IF('1. Order'!M753=\"\",\"\",'1. Order'!M753)","v":""},null,null,null,{"$f":"IF('1. Order'!AF753=\"\",\"\",'1. Order'!AF753)","v":""}]
[{"$f":"IF('1. Order'!B754=\"\",\"\",'1. Order'!B754)","v":""},{"$f":"IF('1. Order'!I754=\"\",\"\",'1. Order'!I754)","v":""},{"$f":"IF('1. Order'!J754=\"\",\"\",'1. Order'!J754)","v":""},{"$f":"IF('1. Order'!K754=\"\",\"\",'1. Order'!K754)","v":""},{"$f":"IF('1. Order'!M754=\"\",\"\",'1. Order'!M754)","v":""},null,null,null,{"$f":"IF('1. Order'!AF754=\"\",\"\",'1. Order'!AF754)","v":""}]
[{"$f":"IF('1. Order'!B755=\"\",\"\",'1. Order'!B755)","v":""},{"$f":"IF('1. Order'!I755=\"\",\"\",'1. Order'!I755)","v":""},{"$f":"IF('1. Order'!J755=\"\",\"\",'1. Order'!J755)","v":""},{"$f":"IF('1. Order'!K755=\"\",\"\",'1. Order'!K755)","v":""},{"$f":"IF('1. Order'!M755=\"\",\"\",'1. Order'!M755)","v":""},null,null,null,{"$f":"IF('1. Order'!AF755=\"\",\"\",'1. Order'!AF755)","v":""}]
[{"$f":"IF('1. Order'!B756=\"\",\"\",'1. Order'!B756)","v":""},{"$f":"IF('1. Order'!I756=\"\",\"\",'1. Order'!I756)","v":""},{"$f":"IF('1. Order'!J756=\"\",\"\",'1. Order'!J756)","v":""},{"$f":"IF('1. Order'!K756=\"\",\"\",'1. Order'!K756)","v":""},{"$f":"IF('1. Order'!M756=\"\",\"\",'1. Order'!M756)","v":""},null,null,null,{"$f":"IF('1. Order'!AF756=\"\",\"\",'1. Order'!AF756)","v":""}]
[{"$f":"IF('1. Order'!B757=\"\",\"\",'1. Order'!B757)","v":""},{"$f":"IF('1. Order'!I757=\"\",\"\",'1. Order'!I757)","v":""},{"$f":"IF('1. Order'!J757=\"\",\"\",'1. Order'!J757)","v":""},{"$f":"IF('1. Order'!K757=\"\",\"\",'1. Order'!K757)","v":""},{"$f":"IF('1. Order'!M757=\"\",\"\",'1. Order'!M757)","v":""},null,null,null,{"$f":"IF('1. Order'!AF757=\"\",\"\",'1. Order'!AF757)","v":""}]
[{"$f":"IF('1. Order'!B758=\"\",\"\",'1. Order'!B758)","v":""},{"$f":"IF('1. Order'!I758=\"\",\"\",'1. Order'!I758)","v":""},{"$f":"IF('1. Order'!J758=\"\",\"\",'1. Order'!J758)","v":""},{"$f":"IF('1. Order'!K758=\"\",\"\",'1. Order'!K758)","v":""},{"$f":"IF('1. Order'!M758=\"\",\"\",'1. Order'!M758)","v":""},null,null,null,{"$f":"IF('1. Order'!AF758=\"\",\"\",'1. Order'!AF758)","v":""}]
[{"$f":"IF('1. Order'!B759=\"\",\"\",'1. Order'!B759)","v":""},{"$f":"IF('1. Order'!I759=\"\",\"\",'1. Order'!I759)","v":""},{"$f":"IF('1. Order'!J759=\"\",\"\",'1. Order'!J759)","v":""},{"$f":"IF('1. Order'!K759=\"\",\"\",'1. Order'!K759)","v":""},{"$f":"IF('1. Order'!M759=\"\",\"\",'1. Order'!M759)","v":""},null,null,null,{"$f":"IF('1. Order'!AF759=\"\",\"\",'1. Order'!AF759)","v":""}]
[{"$f":"IF('1. Order'!B760=\"\",\"\",'1. Order'!B760)","v":""},{"$f":"IF('1. Order'!I760=\"\",\"\",'1. Order'!I760)","v":""},{"$f":"IF('1. Order'!J760=\"\",\"\",'1. Order'!J760)","v":""},{"$f":"IF('1. Order'!K760=\"\",\"\",'1. Order'!K760)","v":""},{"$f":"IF('1. Order'!M760=\"\",\"\",'1. Order'!M760)","v":""},null,null,null,{"$f":"IF('1. Order'!AF760=\"\",\"\",'1. Order'!AF760)","v":""}]
[{"$f":"IF('1. Order'!B761=\"\",\"\",'1. Order'!B761)","v":""},{"$f":"IF('1. Order'!I761=\"\",\"\",'1. Order'!I761)","v":""},{"$f":"IF('1. Order'!J761=\"\",\"\",'1. Order'!J761)","v":""},{"$f":"IF('1. Order'!K761=\"\",\"\",'1. Order'!K761)","v":""},{"$f":"IF('1. Order'!M761=\"\",\"\",'1. Order'!M761)","v":""},null,null,null,{"$f":"IF('1. Order'!AF761=\"\",\"\",'1. Order'!AF761)","v":""}]
[{"$f":"IF('1. Order'!B762=\"\",\"\",'1. Order'!B762)","v":""},{"$f":"IF('1. Order'!I762=\"\",\"\",'1. Order'!I762)","v":""},{"$f":"IF('1. Order'!J762=\"\",\"\",'1. Order'!J762)","v":""},{"$f":"IF('1. Order'!K762=\"\",\"\",'1. Order'!K762)","v":""},{"$f":"IF('1. Order'!M762=\"\",\"\",'1. Order'!M762)","v":""},null,null,null,{"$f":"IF('1. Order'!AF762=\"\",\"\",'1. Order'!AF762)","v":""}]
[{"$f":"IF('1. Order'!B763=\"\",\"\",'1. Order'!B763)","v":""},{"$f":"IF('1. Order'!I763=\"\",\"\",'1. Order'!I763)","v":""},{"$f":"IF('1. Order'!J763=\"\",\"\",'1. Order'!J763)","v":""},{"$f":"IF('1. Order'!K763=\"\",\"\",'1. Order'!K763)","v":""},{"$f":"IF('1. Order'!M763=\"\",\"\",'1. Order'!M763)","v":""},null,null,null,{"$f":"IF('1. Order'!AF763=\"\",\"\",'1. Order'!AF763)","v":""}]
[{"$f":"IF('1. Order'!B764=\"\",\"\",'1. Order'!B764)","v":""},{"$f":"IF('1. Order'!I764=\"\",\"\",'1. Order'!I764)","v":""},{"$f":"IF('1. Order'!J764=\"\",\"\",'1. Order'!J764)","v":""},{"$f":"IF('1. Order'!K764=\"\",\"\",'1. Order'!K764)","v":""},{"$f":"IF('1. Order'!M764=\"\",\"\",'1. Order'!M764)","v":""},null,null,null,{"$f":"IF('1. Order'!AF764=\"\",\"\",'1. Order'!AF764)","v":""}]
[{"$f":"IF('1. Order'!B765=\"\",\"\",'1. Order'!B765)","v":""},{"$f":"IF('1. Order'!I765=\"\",\"\",'1. Order'!I765)","v":""},{"$f":"IF('1. Order'!J765=\"\",\"\",'1. Order'!J765)","v":""},{"$f":"IF('1. Order'!K765=\"\",\"\",'1. Order'!K765)","v":""},{"$f":"IF('1. Order'!M765=\"\",\"\",'1. Order'!M765)","v":""},null,null,null,{"$f":"IF('1. Order'!AF765=\"\",\"\",'1. Order'!AF765)","v":""}]
[{"$f":"IF('1. Order'!B766=\"\",\"\",'1. Order'!B766)","v":""},{"$f":"IF('1. Order'!I766=\"\",\"\",'1. Order'!I766)","v":""},{"$f":"IF('1. Order'!J766=\"\",\"\",'1. Order'!J766)","v":""},{"$f":"IF('1. Order'!K766=\"\",\"\",'1. Order'!K766)","v":""},{"$f":"IF('1. Order'!M766=\"\",\"\",'1. Order'!M766)","v":""},null,null,null,{"$f":"IF('1. Order'!AF766=\"\",\"\",'1. Order'!AF766)","v":""}]
[{"$f":"IF('1. Order'!B767=\"\",\"\",'1. Order'!B767)","v":""},{"$f":"IF('1. Order'!I767=\"\",\"\",'1. Order'!I767)","v":""},{"$f":"IF('1. Order'!J767=\"\",\"\",'1. Order'!J767)","v":""},{"$f":"IF('1. Order'!K767=\"\",\"\",'1. Order'!K767)","v":""},{"$f":"IF('1. Order'!M767=\"\",\"\",'1. Order'!M767)","v":""},null,null,null,{"$f":"IF('1. Order'!AF767=\"\",\"\",'1. Order'!AF767)","v":""}]
[{"$f":"IF('1. Order'!B768=\"\",\"\",'1. Order'!B768)","v":""},{"$f":"IF('1. Order'!I768=\"\",\"\",'1. Order'!I768)","v":""},{"$f":"IF('1. Order'!J768=\"\",\"\",'1. Order'!J768)","v":""},{"$f":"IF('1. Order'!K768=\"\",\"\",'1. Order'!K768)","v":""},{"$f":"IF('1. Order'!M768=\"\",\"\",'1. Order'!M768)","v":""},null,null,null,{"$f":"IF('1. Order'!AF768=\"\",\"\",'1. Order'!AF768)","v":""}]
[{"$f":"IF('1. Order'!B769=\"\",\"\",'1. Order'!B769)","v":""},{"$f":"IF('1. Order'!I769=\"\",\"\",'1. Order'!I769)","v":""},{"$f":"IF('1. Order'!J769=\"\",\"\",'1. Order'!J769)","v":""},{"$f":"IF('1. Order'!K769=\"\",\"\",'1. Order'!K769)","v":""},{"$f":"IF('1. Order'!M769=\"\",\"\",'1. Order'!M769)","v":""},null,null,null,{"$f":"IF('1. Order'!AF769=\"\",\"\",'1. Order'!AF769)","v":""}]
[{"$f":"IF('1. Order'!B770=\"\",\"\",'1. Order'!B770)","v":""},{"$f":"IF('1. Order'!I770=\"\",\"\",'1. Order'!I770)","v":""},{"$f":"IF('1. Order'!J770=\"\",\"\",'1. Order'!J770)","v":""},{"$f":"IF('1. Order'!K770=\"\",\"\",'1. Order'!K770)","v":""},{"$f":"IF('1. Order'!M770=\"\",\"\",'1. Order'!M770)","v":""},null,null,null,{"$f":"IF('1. Order'!AF770=\"\",\"\",'1. Order'!AF770)","v":""}]
[{"$f":"IF('1. Order'!B771=\"\",\"\",'1. Order'!B771)","v":""},{"$f":"IF('1. Order'!I771=\"\",\"\",'1. Order'!I771)","v":""},{"$f":"IF('1. Order'!J771=\"\",\"\",'1. Order'!J771)","v":""},{"$f":"IF('1. Order'!K771=\"\",\"\",'1. Order'!K771)","v":""},{"$f":"IF('1. Order'!M771=\"\",\"\",'1. Order'!M771)","v":""},null,null,null,{"$f":"IF('1. Order'!AF771=\"\",\"\",'1. Order'!AF771)","v":""}]
[{"$f":"IF('1. Order'!B772=\"\",\"\",'1. Order'!B772)","v":""},{"$f":"IF('1. Order'!I772=\"\",\"\",'1. Order'!I772)","v":""},{"$f":"IF('1. Order'!J772=\"\",\"\",'1. Order'!J772)","v":""},{"$f":"IF('1. Order'!K772=\"\",\"\",'1. Order'!K772)","v":""},{"$f":"IF('1. Order'!M772=\"\",\"\",'1. Order'!M772)","v":""},null,null,null,{"$f":"IF('1. Order'!AF772=\"\",\"\",'1. Order'!AF772)","v":""}]
[{"$f":"IF('1. Order'!B773=\"\",\"\",'1. Order'!B773)","v":""},{"$f":"IF('1. Order'!I773=\"\",\"\",'1. Order'!I773)","v":""},{"$f":"IF('1. Order'!J773=\"\",\"\",'1. Order'!J773)","v":""},{"$f":"IF('1. Order'!K773=\"\",\"\",'1. Order'!K773)","v":""},{"$f":"IF('1. Order'!M773=\"\",\"\",'1. Order'!M773)","v":""},null,null,null,{"$f":"IF('1. Order'!AF773=\"\",\"\",'1. Order'!AF773)","v":""}]
[{"$f":"IF('1. Order'!B774=\"\",\"\",'1. Order'!B774)","v":""},{"$f":"IF('1. Order'!I774=\"\",\"\",'1. Order'!I774)","v":""},{"$f":"IF('1. Order'!J774=\"\",\"\",'1. Order'!J774)","v":""},{"$f":"IF('1. Order'!K774=\"\",\"\",'1. Order'!K774)","v":""},{"$f":"IF('1. Order'!M774=\"\",\"\",'1. Order'!M774)","v":""},null,null,null,{"$f":"IF('1. Order'!AF774=\"\",\"\",'1. Order'!AF774)","v":""}]
[{"$f":"IF('1. Order'!B775=\"\",\"\",'1. Order'!B775)","v":""},{"$f":"IF('1. Order'!I775=\"\",\"\",'1. Order'!I775)","v":""},{"$f":"IF('1. Order'!J775=\"\",\"\",'1. Order'!J775)","v":""},{"$f":"IF('1. Order'!K775=\"\",\"\",'1. Order'!K775)","v":""},{"$f":"IF('1. Order'!M775=\"\",\"\",'1. Order'!M775)","v":""},null,null,null,{"$f":"IF('1. Order'!AF775=\"\",\"\",'1. Order'!AF775)","v":""}]
[{"$f":"IF('1. Order'!B776=\"\",\"\",'1. Order'!B776)","v":""},{"$f":"IF('1. Order'!I776=\"\",\"\",'1. Order'!I776)","v":""},{"$f":"IF('1. Order'!J776=\"\",\"\",'1. Order'!J776)","v":""},{"$f":"IF('1. Order'!K776=\"\",\"\",'1. Order'!K776)","v":""},{"$f":"IF('1. Order'!M776=\"\",\"\",'1. Order'!M776)","v":""},null,null,null,{"$f":"IF('1. Order'!AF776=\"\",\"\",'1. Order'!AF776)","v":""}]
[{"$f":"IF('1. Order'!B777=\"\",\"\",'1. Order'!B777)","v":""},{"$f":"IF('1. Order'!I777=\"\",\"\",'1. Order'!I777)","v":""},{"$f":"IF('1. Order'!J777=\"\",\"\",'1. Order'!J777)","v":""},{"$f":"IF('1. Order'!K777=\"\",\"\",'1. Order'!K777)","v":""},{"$f":"IF('1. Order'!M777=\"\",\"\",'1. Order'!M777)","v":""},null,null,null,{"$f":"IF('1. Order'!AF777=\"\",\"\",'1. Order'!AF777)","v":""}]
[{"$f":"IF('1. Order'!B778=\"\",\"\",'1. Order'!B778)","v":""},{"$f":"IF('1. Order'!I778=\"\",\"\",'1. Order'!I778)","v":""},{"$f":"IF('1. Order'!J778=\"\",\"\",'1. Order'!J778)","v":""},{"$f":"IF('1. Order'!K778=\"\",\"\",'1. Order'!K778)","v":""},{"$f":"IF('1. Order'!M778=\"\",\"\",'1. Order'!M778)","v":""},null,null,null,{"$f":"IF('1. Order'!AF778=\"\",\"\",'1. Order'!AF778)","v":""}]
[{"$f":"IF('1. Order'!B779=\"\",\"\",'1. Order'!B779)","v":""},{"$f":"IF('1. Order'!I779=\"\",\"\",'1. Order'!I779)","v":""},{"$f":"IF('1. Order'!J779=\"\",\"\",'1. Order'!J779)","v":""},{"$f":"IF('1. Order'!K779=\"\",\"\",'1. Order'!K779)","v":""},{"$f":"IF('1. Order'!M779=\"\",\"\",'1. Order'!M779)","v":""},null,null,null,{"$f":"IF('1. Order'!AF779=\"\",\"\",'1. Order'!AF779)","v":""}]
[{"$f":"IF('1. Order'!B780=\"\",\"\",'1. Order'!B780)","v":""},{"$f":"IF('1. Order'!I780=\"\",\"\",'1. Order'!I780)","v":""},{"$f":"IF('1. Order'!J780=\"\",\"\",'1. Order'!J780)","v":""},{"$f":"IF('1. Order'!K780=\"\",\"\",'1. Order'!K780)","v":""},{"$f":"IF('1. Order'!M780=\"\",\"\",'1. Order'!M780)","v":""},null,null,null,{"$f":"IF('1. Order'!AF780=\"\",\"\",'1. Order'!AF780)","v":""}]
[{"$f":"IF('1. Order'!B781=\"\",\"\",'1. Order'!B781)","v":""},{"$f":"IF('1. Order'!I781=\"\",\"\",'1. Order'!I781)","v":""},{"$f":"IF('1. Order'!J781=\"\",\"\",'1. Order'!J781)","v":""},{"$f":"IF('1. Order'!K781=\"\",\"\",'1. Order'!K781)","v":""},{"$f":"IF('1. Order'!M781=\"\",\"\",'1. Order'!M781)","v":""},null,null,null,{"$f":"IF('1. Order'!AF781=\"\",\"\",'1. Order'!AF781)","v":""}]
[{"$f":"IF('1. Order'!B782=\"\",\"\",'1. Order'!B782)","v":""},{"$f":"IF('1. Order'!I782=\"\",\"\",'1. Order'!I782)","v":""},{"$f":"IF('1. Order'!J782=\"\",\"\",'1. Order'!J782)","v":""},{"$f":"IF('1. Order'!K782=\"\",\"\",'1. Order'!K782)","v":""},{"$f":"IF('1. Order'!M782=\"\",\"\",'1. Order'!M782)","v":""},null,null,null,{"$f":"IF('1. Order'!AF782=\"\",\"\",'1. Order'!AF782)","v":""}]
[{"$f":"IF('1. Order'!B783=\"\",\"\",'1. Order'!B783)","v":""},{"$f":"IF('1. Order'!I783=\"\",\"\",'1. Order'!I783)","v":""},{"$f":"IF('1. Order'!J783=\"\",\"\",'1. Order'!J783)","v":""},{"$f":"IF('1. Order'!K783=\"\",\"\",'1. Order'!K783)","v":""},{"$f":"IF('1. Order'!M783=\"\",\"\",'1. Order'!M783)","v":""},null,null,null,{"$f":"IF('1. Order'!AF783=\"\",\"\",'1. Order'!AF783)","v":""}]
[{"$f":"IF('1. Order'!B784=\"\",\"\",'1. Order'!B784)","v":""},{"$f":"IF('1. Order'!I784=\"\",\"\",'1. Order'!I784)","v":""},{"$f":"IF('1. Order'!J784=\"\",\"\",'1. Order'!J784)","v":""},{"$f":"IF('1. Order'!K784=\"\",\"\",'1. Order'!K784)","v":""},{"$f":"IF('1. Order'!M784=\"\",\"\",'1. Order'!M784)","v":""},null,null,null,{"$f":"IF('1. Order'!AF784=\"\",\"\",'1. Order'!AF784)","v":""}]
[{"$f":"IF('1. Order'!B785=\"\",\"\",'1. Order'!B785)","v":""},{"$f":"IF('1. Order'!I785=\"\",\"\",'1. Order'!I785)","v":""},{"$f":"IF('1. Order'!J785=\"\",\"\",'1. Order'!J785)","v":""},{"$f":"IF('1. Order'!K785=\"\",\"\",'1. Order'!K785)","v":""},{"$f":"IF('1. Order'!M785=\"\",\"\",'1. Order'!M785)","v":""},null,null,null,{"$f":"IF('1. Order'!AF785=\"\",\"\",'1. Order'!AF785)","v":""}]
[{"$f":"IF('1. Order'!B786=\"\",\"\",'1. Order'!B786)","v":""},{"$f":"IF('1. Order'!I786=\"\",\"\",'1. Order'!I786)","v":""},{"$f":"IF('1. Order'!J786=\"\",\"\",'1. Order'!J786)","v":""},{"$f":"IF('1. Order'!K786=\"\",\"\",'1. Order'!K786)","v":""},{"$f":"IF('1. Order'!M786=\"\",\"\",'1. Order'!M786)","v":""},null,null,null,{"$f":"IF('1. Order'!AF786=\"\",\"\",'1. Order'!AF786)","v":""}]
[{"$f":"IF('1. Order'!B787=\"\",\"\",'1. Order'!B787)","v":""},{"$f":"IF('1. Order'!I787=\"\",\"\",'1. Order'!I787)","v":""},{"$f":"IF('1. Order'!J787=\"\",\"\",'1. Order'!J787)","v":""},{"$f":"IF('1. Order'!K787=\"\",\"\",'1. Order'!K787)","v":""},{"$f":"IF('1. Order'!M787=\"\",\"\",'1. Order'!M787)","v":""},null,null,null,{"$f":"IF('1. Order'!AF787=\"\",\"\",'1. Order'!AF787)","v":""}]
[{"$f":"IF('1. Order'!B788=\"\",\"\",'1. Order'!B788)","v":""},{"$f":"IF('1. Order'!I788=\"\",\"\",'1. Order'!I788)","v":""},{"$f":"IF('1. Order'!J788=\"\",\"\",'1. Order'!J788)","v":""},{"$f":"IF('1. Order'!K788=\"\",\"\",'1. Order'!K788)","v":""},{"$f":"IF('1. Order'!M788=\"\",\"\",'1. Order'!M788)","v":""},null,null,null,{"$f":"IF('1. Order'!AF788=\"\",\"\",'1. Order'!AF788)","v":""}]
[{"$f":"IF('1. Order'!B789=\"\",\"\",'1. Order'!B789)","v":""},{"$f":"IF('1. Order'!I789=\"\",\"\",'1. Order'!I789)","v":""},{"$f":"IF('1. Order'!J789=\"\",\"\",'1. Order'!J789)","v":""},{"$f":"IF('1. Order'!K789=\"\",\"\",'1. Order'!K789)","v":""},{"$f":"IF('1. Order'!M789=\"\",\"\",'1. Order'!M789)","v":""},null,null,null,{"$f":"IF('1. Order'!AF789=\"\",\"\",'1. Order'!AF789)","v":""}]
[{"$f":"IF('1. Order'!B790=\"\",\"\",'1. Order'!B790)","v":""},{"$f":"IF('1. Order'!I790=\"\",\"\",'1. Order'!I790)","v":""},{"$f":"IF('1. Order'!J790=\"\",\"\",'1. Order'!J790)","v":""},{"$f":"IF('1. Order'!K790=\"\",\"\",'1. Order'!K790)","v":""},{"$f":"IF('1. Order'!M790=\"\",\"\",'1. Order'!M790)","v":""},null,null,null,{"$f":"IF('1. Order'!AF790=\"\",\"\",'1. Order'!AF790)","v":""}]
[{"$f":"IF('1. Order'!B791=\"\",\"\",'1. Order'!B791)","v":""},{"$f":"IF('1. Order'!I791=\"\",\"\",'1. Order'!I791)","v":""},{"$f":"IF('1. Order'!J791=\"\",\"\",'1. Order'!J791)","v":""},{"$f":"IF('1. Order'!K791=\"\",\"\",'1. Order'!K791)","v":""},{"$f":"IF('1. Order'!M791=\"\",\"\",'1. Order'!M791)","v":""},null,null,null,{"$f":"IF('1. Order'!AF791=\"\",\"\",'1. Order'!AF791)","v":""}]
[{"$f":"IF('1. Order'!B792=\"\",\"\",'1. Order'!B792)","v":""},{"$f":"IF('1. Order'!I792=\"\",\"\",'1. Order'!I792)","v":""},{"$f":"IF('1. Order'!J792=\"\",\"\",'1. Order'!J792)","v":""},{"$f":"IF('1. Order'!K792=\"\",\"\",'1. Order'!K792)","v":""},{"$f":"IF('1. Order'!M792=\"\",\"\",'1. Order'!M792)","v":""},null,null,null,{"$f":"IF('1. Order'!AF792=\"\",\"\",'1. Order'!AF792)","v":""}]
[{"$f":"IF('1. Order'!B793=\"\",\"\",'1. Order'!B793)","v":""},{"$f":"IF('1. Order'!I793=\"\",\"\",'1. Order'!I793)","v":""},{"$f":"IF('1. Order'!J793=\"\",\"\",'1. Order'!J793)","v":""},{"$f":"IF('1. Order'!K793=\"\",\"\",'1. Order'!K793)","v":""},{"$f":"IF('1. Order'!M793=\"\",\"\",'1. Order'!M793)","v":""},null,null,null,{"$f":"IF('1. Order'!AF793=\"\",\"\",'1. Order'!AF793)","v":""}]
[{"$f":"IF('1. Order'!B794=\"\",\"\",'1. Order'!B794)","v":""},{"$f":"IF('1. Order'!I794=\"\",\"\",'1. Order'!I794)","v":""},{"$f":"IF('1. Order'!J794=\"\",\"\",'1. Order'!J794)","v":""},{"$f":"IF('1. Order'!K794=\"\",\"\",'1. Order'!K794)","v":""},{"$f":"IF('1. Order'!M794=\"\",\"\",'1. Order'!M794)","v":""},null,null,null,{"$f":"IF('1. Order'!AF794=\"\",\"\",'1. Order'!AF794)","v":""}]
[{"$f":"IF('1. Order'!B795=\"\",\"\",'1. Order'!B795)","v":""},{"$f":"IF('1. Order'!I795=\"\",\"\",'1. Order'!I795)","v":""},{"$f":"IF('1. Order'!J795=\"\",\"\",'1. Order'!J795)","v":""},{"$f":"IF('1. Order'!K795=\"\",\"\",'1. Order'!K795)","v":""},{"$f":"IF('1. Order'!M795=\"\",\"\",'1. Order'!M795)","v":""},null,null,null,{"$f":"IF('1. Order'!AF795=\"\",\"\",'1. Order'!AF795)","v":""}]
[{"$f":"IF('1. Order'!B796=\"\",\"\",'1. Order'!B796)","v":""},{"$f":"IF('1. Order'!I796=\"\",\"\",'1. Order'!I796)","v":""},{"$f":"IF('1. Order'!J796=\"\",\"\",'1. Order'!J796)","v":""},{"$f":"IF('1. Order'!K796=\"\",\"\",'1. Order'!K796)","v":""},{"$f":"IF('1. Order'!M796=\"\",\"\",'1. Order'!M796)","v":""},null,null,null,{"$f":"IF('1. Order'!AF796=\"\",\"\",'1. Order'!AF796)","v":""}]
[{"$f":"IF('1. Order'!B797=\"\",\"\",'1. Order'!B797)","v":""},{"$f":"IF('1. Order'!I797=\"\",\"\",'1. Order'!I797)","v":""},{"$f":"IF('1. Order'!J797=\"\",\"\",'1. Order'!J797)","v":""},{"$f":"IF('1. Order'!K797=\"\",\"\",'1. Order'!K797)","v":""},{"$f":"IF('1. Order'!M797=\"\",\"\",'1. Order'!M797)","v":""},null,null,null,{"$f":"IF('1. Order'!AF797=\"\",\"\",'1. Order'!AF797)","v":""}]
[{"$f":"IF('1. Order'!B798=\"\",\"\",'1. Order'!B798)","v":""},{"$f":"IF('1. Order'!I798=\"\",\"\",'1. Order'!I798)","v":""},{"$f":"IF('1. Order'!J798=\"\",\"\",'1. Order'!J798)","v":""},{"$f":"IF('1. Order'!K798=\"\",\"\",'1. Order'!K798)","v":""},{"$f":"IF('1. Order'!M798=\"\",\"\",'1. Order'!M798)","v":""},null,null,null,{"$f":"IF('1. Order'!AF798=\"\",\"\",'1. Order'!AF798)","v":""}]
[{"$f":"IF('1. Order'!B799=\"\",\"\",'1. Order'!B799)","v":""},{"$f":"IF('1. Order'!I799=\"\",\"\",'1. Order'!I799)","v":""},{"$f":"IF('1. Order'!J799=\"\",\"\",'1. Order'!J799)","v":""},{"$f":"IF('1. Order'!K799=\"\",\"\",'1. Order'!K799)","v":""},{"$f":"IF('1. Order'!M799=\"\",\"\",'1. Order'!M799)","v":""},null,null,null,{"$f":"IF('1. Order'!AF799=\"\",\"\",'1. Order'!AF799)","v":""}]
[{"$f":"IF('1. Order'!B800=\"\",\"\",'1. Order'!B800)","v":""},{"$f":"IF('1. Order'!I800=\"\",\"\",'1. Order'!I800)","v":""},{"$f":"IF('1. Order'!J800=\"\",\"\",'1. Order'!J800)","v":""},{"$f":"IF('1. Order'!K800=\"\",\"\",'1. Order'!K800)","v":""},{"$f":"IF('1. Order'!M800=\"\",\"\",'1. Order'!M800)","v":""},null,null,null,{"$f":"IF('1. Order'!AF800=\"\",\"\",'1. Order'!AF800)","v":""}]
[{"$f":"IF('1. Order'!B801=\"\",\"\",'1. Order'!B801)","v":""},{"$f":"IF('1. Order'!I801=\"\",\"\",'1. Order'!I801)","v":""},{"$f":"IF('1. Order'!J801=\"\",\"\",'1. Order'!J801)","v":""},{"$f":"IF('1. Order'!K801=\"\",\"\",'1. Order'!K801)","v":""},{"$f":"IF('1. Order'!M801=\"\",\"\",'1. Order'!M801)","v":""},null,null,null,{"$f":"IF('1. Order'!AF801=\"\",\"\",'1. Order'!AF801)","v":""}]
[{"$f":"IF('1. Order'!B802=\"\",\"\",'1. Order'!B802)","v":""},{"$f":"IF('1. Order'!I802=\"\",\"\",'1. Order'!I802)","v":""},{"$f":"IF('1. Order'!J802=\"\",\"\",'1. Order'!J802)","v":""},{"$f":"IF('1. Order'!K802=\"\",\"\",'1. Order'!K802)","v":""},{"$f":"IF('1. Order'!M802=\"\",\"\",'1. Order'!M802)","v":""},null,null,null,{"$f":"IF('1. Order'!AF802=\"\",\"\",'1. Order'!AF802)","v":""}]
[{"$f":"IF('1. Order'!B803=\"\",\"\",'1. Order'!B803)","v":""},{"$f":"IF('1. Order'!I803=\"\",\"\",'1. Order'!I803)","v":""},{"$f":"IF('1. Order'!J803=\"\",\"\",'1. Order'!J803)","v":""},{"$f":"IF('1. Order'!K803=\"\",\"\",'1. Order'!K803)","v":""},{"$f":"IF('1. Order'!M803=\"\",\"\",'1. Order'!M803)","v":""},null,null,null,{"$f":"IF('1. Order'!AF803=\"\",\"\",'1. Order'!AF803)","v":""}]
[{"$f":"IF('1. Order'!B804=\"\",\"\",'1. Order'!B804)","v":""},{"$f":"IF('1. Order'!I804=\"\",\"\",'1. Order'!I804)","v":""},{"$f":"IF('1. Order'!J804=\"\",\"\",'1. Order'!J804)","v":""},{"$f":"IF('1. Order'!K804=\"\",\"\",'1. Order'!K804)","v":""},{"$f":"IF('1. Order'!M804=\"\",\"\",'1. Order'!M804)","v":""},null,null,null,{"$f":"IF('1. Order'!AF804=\"\",\"\",'1. Order'!AF804)","v":""}]
[{"$f":"IF('1. Order'!B805=\"\",\"\",'1. Order'!B805)","v":""},{"$f":"IF('1. Order'!I805=\"\",\"\",'1. Order'!I805)","v":""},{"$f":"IF('1. Order'!J805=\"\",\"\",'1. Order'!J805)","v":""},{"$f":"IF('1. Order'!K805=\"\",\"\",'1. Order'!K805)","v":""},{"$f":"IF('1. Order'!M805=\"\",\"\",'1. Order'!M805)","v":""},null,null,null,{"$f":"IF('1. Order'!AF805=\"\",\"\",'1. Order'!AF805)","v":""}]
[{"$f":"IF('1. Order'!B806=\"\",\"\",'1. Order'!B806)","v":""},{"$f":"IF('1. Order'!I806=\"\",\"\",'1. Order'!I806)","v":""},{"$f":"IF('1. Order'!J806=\"\",\"\",'1. Order'!J806)","v":""},{"$f":"IF('1. Order'!K806=\"\",\"\",'1. Order'!K806)","v":""},{"$f":"IF('1. Order'!M806=\"\",\"\",'1. Order'!M806)","v":""},null,null,null,{"$f":"IF('1. Order'!AF806=\"\",\"\",'1. Order'!AF806)","v":""}]
[{"$f":"IF('1. Order'!B807=\"\",\"\",'1. Order'!B807)","v":""},{"$f":"IF('1. Order'!I807=\"\",\"\",'1. Order'!I807)","v":""},{"$f":"IF('1. Order'!J807=\"\",\"\",'1. Order'!J807)","v":""},{"$f":"IF('1. Order'!K807=\"\",\"\",'1. Order'!K807)","v":""},{"$f":"IF('1. Order'!M807=\"\",\"\",'1. Order'!M807)","v":""},null,null,null,{"$f":"IF('1. Order'!AF807=\"\",\"\",'1. Order'!AF807)","v":""}]
[{"$f":"IF('1. Order'!B808=\"\",\"\",'1. Order'!B808)","v":""},{"$f":"IF('1. Order'!I808=\"\",\"\",'1. Order'!I808)","v":""},{"$f":"IF('1. Order'!J808=\"\",\"\",'1. Order'!J808)","v":""},{"$f":"IF('1. Order'!K808=\"\",\"\",'1. Order'!K808)","v":""},{"$f":"IF('1. Order'!M808=\"\",\"\",'1. Order'!M808)","v":""},null,null,null,{"$f":"IF('1. Order'!AF808=\"\",\"\",'1. Order'!AF808)","v":""}]
[{"$f":"IF('1. Order'!B809=\"\",\"\",'1. Order'!B809)","v":""},{"$f":"IF('1. Order'!I809=\"\",\"\",'1. Order'!I809)","v":""},{"$f":"IF('1. Order'!J809=\"\",\"\",'1. Order'!J809)","v":""},{"$f":"IF('1. Order'!K809=\"\",\"\",'1. Order'!K809)","v":""},{"$f":"IF('1. Order'!M809=\"\",\"\",'1. Order'!M809)","v":""},null,null,null,{"$f":"IF('1. Order'!AF809=\"\",\"\",'1. Order'!AF809)","v":""}]
[{"$f":"IF('1. Order'!B810=\"\",\"\",'1. Order'!B810)","v":""},{"$f":"IF('1. Order'!I810=\"\",\"\",'1. Order'!I810)","v":""},{"$f":"IF('1. Order'!J810=\"\",\"\",'1. Order'!J810)","v":""},{"$f":"IF('1. Order'!K810=\"\",\"\",'1. Order'!K810)","v":""},{"$f":"IF('1. Order'!M810=\"\",\"\",'1. Order'!M810)","v":""},null,null,null,{"$f":"IF('1. Order'!AF810=\"\",\"\",'1. Order'!AF810)","v":""}]
[{"$f":"IF('1. Order'!B811=\"\",\"\",'1. Order'!B811)","v":""},{"$f":"IF('1. Order'!I811=\"\",\"\",'1. Order'!I811)","v":""},{"$f":"IF('1. Order'!J811=\"\",\"\",'1. Order'!J811)","v":""},{"$f":"IF('1. Order'!K811=\"\",\"\",'1. Order'!K811)","v":""},{"$f":"IF('1. Order'!M811=\"\",\"\",'1. Order'!M811)","v":""},null,null,null,{"$f":"IF('1. Order'!AF811=\"\",\"\",'1. Order'!AF811)","v":""}]
[{"$f":"IF('1. Order'!B812=\"\",\"\",'1. Order'!B812)","v":""},{"$f":"IF('1. Order'!I812=\"\",\"\",'1. Order'!I812)","v":""},{"$f":"IF('1. Order'!J812=\"\",\"\",'1. Order'!J812)","v":""},{"$f":"IF('1. Order'!K812=\"\",\"\",'1. Order'!K812)","v":""},{"$f":"IF('1. Order'!M812=\"\",\"\",'1. Order'!M812)","v":""},null,null,null,{"$f":"IF('1. Order'!AF812=\"\",\"\",'1. Order'!AF812)","v":""}]
[{"$f":"IF('1. Order'!B813=\"\",\"\",'1. Order'!B813)","v":""},{"$f":"IF('1. Order'!I813=\"\",\"\",'1. Order'!I813)","v":""},{"$f":"IF('1. Order'!J813=\"\",\"\",'1. Order'!J813)","v":""},{"$f":"IF('1. Order'!K813=\"\",\"\",'1. Order'!K813)","v":""},{"$f":"IF('1. Order'!M813=\"\",\"\",'1. Order'!M813)","v":""},null,null,null,{"$f":"IF('1. Order'!AF813=\"\",\"\",'1. Order'!AF813)","v":""}]
[{"$f":"IF('1. Order'!B814=\"\",\"\",'1. Order'!B814)","v":""},{"$f":"IF('1. Order'!I814=\"\",\"\",'1. Order'!I814)","v":""},{"$f":"IF('1. Order'!J814=\"\",\"\",'1. Order'!J814)","v":""},{"$f":"IF('1. Order'!K814=\"\",\"\",'1. Order'!K814)","v":""},{"$f":"IF('1. Order'!M814=\"\",\"\",'1. Order'!M814)","v":""},null,null,null,{"$f":"IF('1. Order'!AF814=\"\",\"\",'1. Order'!AF814)","v":""}]
[{"$f":"IF('1. Order'!B815=\"\",\"\",'1. Order'!B815)","v":""},{"$f":"IF('1. Order'!I815=\"\",\"\",'1. Order'!I815)","v":""},{"$f":"IF('1. Order'!J815=\"\",\"\",'1. Order'!J815)","v":""},{"$f":"IF('1. Order'!K815=\"\",\"\",'1. Order'!K815)","v":""},{"$f":"IF('1. Order'!M815=\"\",\"\",'1. Order'!M815)","v":""},null,null,null,{"$f":"IF('1. Order'!AF815=\"\",\"\",'1. Order'!AF815)","v":""}]
[{"$f":"IF('1. Order'!B816=\"\",\"\",'1. Order'!B816)","v":""},{"$f":"IF('1. Order'!I816=\"\",\"\",'1. Order'!I816)","v":""},{"$f":"IF('1. Order'!J816=\"\",\"\",'1. Order'!J816)","v":""},{"$f":"IF('1. Order'!K816=\"\",\"\",'1. Order'!K816)","v":""},{"$f":"IF('1. Order'!M816=\"\",\"\",'1. Order'!M816)","v":""},null,null,null,{"$f":"IF('1. Order'!AF816=\"\",\"\",'1. Order'!AF816)","v":""}]
[{"$f":"IF('1. Order'!B817=\"\",\"\",'1. Order'!B817)","v":""},{"$f":"IF('1. Order'!I817=\"\",\"\",'1. Order'!I817)","v":""},{"$f":"IF('1. Order'!J817=\"\",\"\",'1. Order'!J817)","v":""},{"$f":"IF('1. Order'!K817=\"\",\"\",'1. Order'!K817)","v":""},{"$f":"IF('1. Order'!M817=\"\",\"\",'1. Order'!M817)","v":""},null,null,null,{"$f":"IF('1. Order'!AF817=\"\",\"\",'1. Order'!AF817)","v":""}]
[{"$f":"IF('1. Order'!B818=\"\",\"\",'1. Order'!B818)","v":""},{"$f":"IF('1. Order'!I818=\"\",\"\",'1. Order'!I818)","v":""},{"$f":"IF('1. Order'!J818=\"\",\"\",'1. Order'!J818)","v":""},{"$f":"IF('1. Order'!K818=\"\",\"\",'1. Order'!K818)","v":""},{"$f":"IF('1. Order'!M818=\"\",\"\",'1. Order'!M818)","v":""},null,null,null,{"$f":"IF('1. Order'!AF818=\"\",\"\",'1. Order'!AF818)","v":""}]
[{"$f":"IF('1. Order'!B819=\"\",\"\",'1. Order'!B819)","v":""},{"$f":"IF('1. Order'!I819=\"\",\"\",'1. Order'!I819)","v":""},{"$f":"IF('1. Order'!J819=\"\",\"\",'1. Order'!J819)","v":""},{"$f":"IF('1. Order'!K819=\"\",\"\",'1. Order'!K819)","v":""},{"$f":"IF('1. Order'!M819=\"\",\"\",'1. Order'!M819)","v":""},null,null,null,{"$f":"IF('1. Order'!AF819=\"\",\"\",'1. Order'!AF819)","v":""}]
[{"$f":"IF('1. Order'!B820=\"\",\"\",'1. Order'!B820)","v":""},{"$f":"IF('1. Order'!I820=\"\",\"\",'1. Order'!I820)","v":""},{"$f":"IF('1. Order'!J820=\"\",\"\",'1. Order'!J820)","v":""},{"$f":"IF('1. Order'!K820=\"\",\"\",'1. Order'!K820)","v":""},{"$f":"IF('1. Order'!M820=\"\",\"\",'1. Order'!M820)","v":""},null,null,null,{"$f":"IF('1. Order'!AF820=\"\",\"\",'1. Order'!AF820)","v":""}]
[{"$f":"IF('1. Order'!B821=\"\",\"\",'1. Order'!B821)","v":""},{"$f":"IF('1. Order'!I821=\"\",\"\",'1. Order'!I821)","v":""},{"$f":"IF('1. Order'!J821=\"\",\"\",'1. Order'!J821)","v":""},{"$f":"IF('1. Order'!K821=\"\",\"\",'1. Order'!K821)","v":""},{"$f":"IF('1. Order'!M821=\"\",\"\",'1. Order'!M821)","v":""},null,null,null,{"$f":"IF('1. Order'!AF821=\"\",\"\",'1. Order'!AF821)","v":""}]
[{"$f":"IF('1. Order'!B822=\"\",\"\",'1. Order'!B822)","v":""},{"$f":"IF('1. Order'!I822=\"\",\"\",'1. Order'!I822)","v":""},{"$f":"IF('1. Order'!J822=\"\",\"\",'1. Order'!J822)","v":""},{"$f":"IF('1. Order'!K822=\"\",\"\",'1. Order'!K822)","v":""},{"$f":"IF('1. Order'!M822=\"\",\"\",'1. Order'!M822)","v":""},null,null,null,{"$f":"IF('1. Order'!AF822=\"\",\"\",'1. Order'!AF822)","v":""}]
[{"$f":"IF('1. Order'!B823=\"\",\"\",'1. Order'!B823)","v":""},{"$f":"IF('1. Order'!I823=\"\",\"\",'1. Order'!I823)","v":""},{"$f":"IF('1. Order'!J823=\"\",\"\",'1. Order'!J823)","v":""},{"$f":"IF('1. Order'!K823=\"\",\"\",'1. Order'!K823)","v":""},{"$f":"IF('1. Order'!M823=\"\",\"\",'1. Order'!M823)","v":""},null,null,null,{"$f":"IF('1. Order'!AF823=\"\",\"\",'1. Order'!AF823)","v":""}]
[{"$f":"IF('1. Order'!B824=\"\",\"\",'1. Order'!B824)","v":""},{"$f":"IF('1. Order'!I824=\"\",\"\",'1. Order'!I824)","v":""},{"$f":"IF('1. Order'!J824=\"\",\"\",'1. Order'!J824)","v":""},{"$f":"IF('1. Order'!K824=\"\",\"\",'1. Order'!K824)","v":""},{"$f":"IF('1. Order'!M824=\"\",\"\",'1. Order'!M824)","v":""},null,null,null,{"$f":"IF('1. Order'!AF824=\"\",\"\",'1. Order'!AF824)","v":""}]
[{"$f":"IF('1. Order'!B825=\"\",\"\",'1. Order'!B825)","v":""},{"$f":"IF('1. Order'!I825=\"\",\"\",'1. Order'!I825)","v":""},{"$f":"IF('1. Order'!J825=\"\",\"\",'1. Order'!J825)","v":""},{"$f":"IF('1. Order'!K825=\"\",\"\",'1. Order'!K825)","v":""},{"$f":"IF('1. Order'!M825=\"\",\"\",'1. Order'!M825)","v":""},null,null,null,{"$f":"IF('1. Order'!AF825=\"\",\"\",'1. Order'!AF825)","v":""}]
[{"$f":"IF('1. Order'!B826=\"\",\"\",'1. Order'!B826)","v":""},{"$f":"IF('1. Order'!I826=\"\",\"\",'1. Order'!I826)","v":""},{"$f":"IF('1. Order'!J826=\"\",\"\",'1. Order'!J826)","v":""},{"$f":"IF('1. Order'!K826=\"\",\"\",'1. Order'!K826)","v":""},{"$f":"IF('1. Order'!M826=\"\",\"\",'1. Order'!M826)","v":""},null,null,null,{"$f":"IF('1. Order'!AF826=\"\",\"\",'1. Order'!AF826)","v":""}]
[{"$f":"IF('1. Order'!B827=\"\",\"\",'1. Order'!B827)","v":""},{"$f":"IF('1. Order'!I827=\"\",\"\",'1. Order'!I827)","v":""},{"$f":"IF('1. Order'!J827=\"\",\"\",'1. Order'!J827)","v":""},{"$f":"IF('1. Order'!K827=\"\",\"\",'1. Order'!K827)","v":""},{"$f":"IF('1. Order'!M827=\"\",\"\",'1. Order'!M827)","v":""},null,null,null,{"$f":"IF('1. Order'!AF827=\"\",\"\",'1. Order'!AF827)","v":""}]
[{"$f":"IF('1. Order'!B828=\"\",\"\",'1. Order'!B828)","v":""},{"$f":"IF('1. Order'!I828=\"\",\"\",'1. Order'!I828)","v":""},{"$f":"IF('1. Order'!J828=\"\",\"\",'1. Order'!J828)","v":""},{"$f":"IF('1. Order'!K828=\"\",\"\",'1. Order'!K828)","v":""},{"$f":"IF('1. Order'!M828=\"\",\"\",'1. Order'!M828)","v":""},null,null,null,{"$f":"IF('1. Order'!AF828=\"\",\"\",'1. Order'!AF828)","v":""}]
[{"$f":"IF('1. Order'!B829=\"\",\"\",'1. Order'!B829)","v":""},{"$f":"IF('1. Order'!I829=\"\",\"\",'1. Order'!I829)","v":""},{"$f":"IF('1. Order'!J829=\"\",\"\",'1. Order'!J829)","v":""},{"$f":"IF('1. Order'!K829=\"\",\"\",'1. Order'!K829)","v":""},{"$f":"IF('1. Order'!M829=\"\",\"\",'1. Order'!M829)","v":""},null,null,null,{"$f":"IF('1. Order'!AF829=\"\",\"\",'1. Order'!AF829)","v":""}]
[{"$f":"IF('1. Order'!B830=\"\",\"\",'1. Order'!B830)","v":""},{"$f":"IF('1. Order'!I830=\"\",\"\",'1. Order'!I830)","v":""},{"$f":"IF('1. Order'!J830=\"\",\"\",'1. Order'!J830)","v":""},{"$f":"IF('1. Order'!K830=\"\",\"\",'1. Order'!K830)","v":""},{"$f":"IF('1. Order'!M830=\"\",\"\",'1. Order'!M830)","v":""},null,null,null,{"$f":"IF('1. Order'!AF830=\"\",\"\",'1. Order'!AF830)","v":""}]
[{"$f":"IF('1. Order'!B831=\"\",\"\",'1. Order'!B831)","v":""},{"$f":"IF('1. Order'!I831=\"\",\"\",'1. Order'!I831)","v":""},{"$f":"IF('1. Order'!J831=\"\",\"\",'1. Order'!J831)","v":""},{"$f":"IF('1. Order'!K831=\"\",\"\",'1. Order'!K831)","v":""},{"$f":"IF('1. Order'!M831=\"\",\"\",'1. Order'!M831)","v":""},null,null,null,{"$f":"IF('1. Order'!AF831=\"\",\"\",'1. Order'!AF831)","v":""}]
[{"$f":"IF('1. Order'!B832=\"\",\"\",'1. Order'!B832)","v":""},{"$f":"IF('1. Order'!I832=\"\",\"\",'1. Order'!I832)","v":""},{"$f":"IF('1. Order'!J832=\"\",\"\",'1. Order'!J832)","v":""},{"$f":"IF('1. Order'!K832=\"\",\"\",'1. Order'!K832)","v":""},{"$f":"IF('1. Order'!M832=\"\",\"\",'1. Order'!M832)","v":""},null,null,null,{"$f":"IF('1. Order'!AF832=\"\",\"\",'1. Order'!AF832)","v":""}]
[{"$f":"IF('1. Order'!B833=\"\",\"\",'1. Order'!B833)","v":""},{"$f":"IF('1. Order'!I833=\"\",\"\",'1. Order'!I833)","v":""},{"$f":"IF('1. Order'!J833=\"\",\"\",'1. Order'!J833)","v":""},{"$f":"IF('1. Order'!K833=\"\",\"\",'1. Order'!K833)","v":""},{"$f":"IF('1. Order'!M833=\"\",\"\",'1. Order'!M833)","v":""},null,null,null,{"$f":"IF('1. Order'!AF833=\"\",\"\",'1. Order'!AF833)","v":""}]
[{"$f":"IF('1. Order'!B834=\"\",\"\",'1. Order'!B834)","v":""},{"$f":"IF('1. Order'!I834=\"\",\"\",'1. Order'!I834)","v":""},{"$f":"IF('1. Order'!J834=\"\",\"\",'1. Order'!J834)","v":""},{"$f":"IF('1. Order'!K834=\"\",\"\",'1. Order'!K834)","v":""},{"$f":"IF('1. Order'!M834=\"\",\"\",'1. Order'!M834)","v":""},null,null,null,{"$f":"IF('1. Order'!AF834=\"\",\"\",'1. Order'!AF834)","v":""}]
[{"$f":"IF('1. Order'!B835=\"\",\"\",'1. Order'!B835)","v":""},{"$f":"IF('1. Order'!I835=\"\",\"\",'1. Order'!I835)","v":""},{"$f":"IF('1. Order'!J835=\"\",\"\",'1. Order'!J835)","v":""},{"$f":"IF('1. Order'!K835=\"\",\"\",'1. Order'!K835)","v":""},{"$f":"IF('1. Order'!M835=\"\",\"\",'1. Order'!M835)","v":""},null,null,null,{"$f":"IF('1. Order'!AF835=\"\",\"\",'1. Order'!AF835)","v":""}]
[{"$f":"IF('1. Order'!B836=\"\",\"\",'1. Order'!B836)","v":""},{"$f":"IF('1. Order'!I836=\"\",\"\",'1. Order'!I836)","v":""},{"$f":"IF('1. Order'!J836=\"\",\"\",'1. Order'!J836)","v":""},{"$f":"IF('1. Order'!K836=\"\",\"\",'1. Order'!K836)","v":""},{"$f":"IF('1. Order'!M836=\"\",\"\",'1. Order'!M836)","v":""},null,null,null,{"$f":"IF('1. Order'!AF836=\"\",\"\",'1. Order'!AF836)","v":""}]
[{"$f":"IF('1. Order'!B837=\"\",\"\",'1. Order'!B837)","v":""},{"$f":"IF('1. Order'!I837=\"\",\"\",'1. Order'!I837)","v":""},{"$f":"IF('1. Order'!J837=\"\",\"\",'1. Order'!J837)","v":""},{"$f":"IF('1. Order'!K837=\"\",\"\",'1. Order'!K837)","v":""},{"$f":"IF('1. Order'!M837=\"\",\"\",'1. Order'!M837)","v":""},null,null,null,{"$f":"IF('1. Order'!AF837=\"\",\"\",'1. Order'!AF837)","v":""}]
[{"$f":"IF('1. Order'!B838=\"\",\"\",'1. Order'!B838)","v":""},{"$f":"IF('1. Order'!I838=\"\",\"\",'1. Order'!I838)","v":""},{"$f":"IF('1. Order'!J838=\"\",\"\",'1. Order'!J838)","v":""},{"$f":"IF('1. Order'!K838=\"\",\"\",'1. Order'!K838)","v":""},{"$f":"IF('1. Order'!M838=\"\",\"\",'1. Order'!M838)","v":""},null,null,null,{"$f":"IF('1. Order'!AF838=\"\",\"\",'1. Order'!AF838)","v":""}]
[{"$f":"IF('1. Order'!B839=\"\",\"\",'1. Order'!B839)","v":""},{"$f":"IF('1. Order'!I839=\"\",\"\",'1. Order'!I839)","v":""},{"$f":"IF('1. Order'!J839=\"\",\"\",'1. Order'!J839)","v":""},{"$f":"IF('1. Order'!K839=\"\",\"\",'1. Order'!K839)","v":""},{"$f":"IF('1. Order'!M839=\"\",\"\",'1. Order'!M839)","v":""},null,null,null,{"$f":"IF('1. Order'!AF839=\"\",\"\",'1. Order'!AF839)","v":""}]
[{"$f":"IF('1. Order'!B840=\"\",\"\",'1. Order'!B840)","v":""},{"$f":"IF('1. Order'!I840=\"\",\"\",'1. Order'!I840)","v":""},{"$f":"IF('1. Order'!J840=\"\",\"\",'1. Order'!J840)","v":""},{"$f":"IF('1. Order'!K840=\"\",\"\",'1. Order'!K840)","v":""},{"$f":"IF('1. Order'!M840=\"\",\"\",'1. Order'!M840)","v":""},null,null,null,{"$f":"IF('1. Order'!AF840=\"\",\"\",'1. Order'!AF840)","v":""}]
[{"$f":"IF('1. Order'!B841=\"\",\"\",'1. Order'!B841)","v":""},{"$f":"IF('1. Order'!I841=\"\",\"\",'1. Order'!I841)","v":""},{"$f":"IF('1. Order'!J841=\"\",\"\",'1. Order'!J841)","v":""},{"$f":"IF('1. Order'!K841=\"\",\"\",'1. Order'!K841)","v":""},{"$f":"IF('1. Order'!M841=\"\",\"\",'1. Order'!M841)","v":""},null,null,null,{"$f":"IF('1. Order'!AF841=\"\",\"\",'1. Order'!AF841)","v":""}]
[{"$f":"IF('1. Order'!B842=\"\",\"\",'1. Order'!B842)","v":""},{"$f":"IF('1. Order'!I842=\"\",\"\",'1. Order'!I842)","v":""},{"$f":"IF('1. Order'!J842=\"\",\"\",'1. Order'!J842)","v":""},{"$f":"IF('1. Order'!K842=\"\",\"\",'1. Order'!K842)","v":""},{"$f":"IF('1. Order'!M842=\"\",\"\",'1. Order'!M842)","v":""},null,null,null,{"$f":"IF('1. Order'!AF842=\"\",\"\",'1. Order'!AF842)","v":""}]
[{"$f":"IF('1. Order'!B843=\"\",\"\",'1. Order'!B843)","v":""},{"$f":"IF('1. Order'!I843=\"\",\"\",'1. Order'!I843)","v":""},{"$f":"IF('1. Order'!J843=\"\",\"\",'1. Order'!J843)","v":""},{"$f":"IF('1. Order'!K843=\"\",\"\",'1. Order'!K843)","v":""},{"$f":"IF('1. Order'!M843=\"\",\"\",'1. Order'!M843)","v":""},null,null,null,{"$f":"IF('1. Order'!AF843=\"\",\"\",'1. Order'!AF843)","v":""}]
[{"$f":"IF('1. Order'!B844=\"\",\"\",'1. Order'!B844)","v":""},{"$f":"IF('1. Order'!I844=\"\",\"\",'1. Order'!I844)","v":""},{"$f":"IF('1. Order'!J844=\"\",\"\",'1. Order'!J844)","v":""},{"$f":"IF('1. Order'!K844=\"\",\"\",'1. Order'!K844)","v":""},{"$f":"IF('1. Order'!M844=\"\",\"\",'1. Order'!M844)","v":""},null,null,null,{"$f":"IF('1. Order'!AF844=\"\",\"\",'1. Order'!AF844)","v":""}]
[{"$f":"IF('1. Order'!B845=\"\",\"\",'1. Order'!B845)","v":""},{"$f":"IF('1. Order'!I845=\"\",\"\",'1. Order'!I845)","v":""},{"$f":"IF('1. Order'!J845=\"\",\"\",'1. Order'!J845)","v":""},{"$f":"IF('1. Order'!K845=\"\",\"\",'1. Order'!K845)","v":""},{"$f":"IF('1. Order'!M845=\"\",\"\",'1. Order'!M845)","v":""},null,null,null,{"$f":"IF('1. Order'!AF845=\"\",\"\",'1. Order'!AF845)","v":""}]
[{"$f":"IF('1. Order'!B846=\"\",\"\",'1. Order'!B846)","v":""},{"$f":"IF('1. Order'!I846=\"\",\"\",'1. Order'!I846)","v":""},{"$f":"IF('1. Order'!J846=\"\",\"\",'1. Order'!J846)","v":""},{"$f":"IF('1. Order'!K846=\"\",\"\",'1. Order'!K846)","v":""},{"$f":"IF('1. Order'!M846=\"\",\"\",'1. Order'!M846)","v":""},null,null,null,{"$f":"IF('1. Order'!AF846=\"\",\"\",'1. Order'!AF846)","v":""}]
[{"$f":"IF('1. Order'!B847=\"\",\"\",'1. Order'!B847)","v":""},{"$f":"IF('1. Order'!I847=\"\",\"\",'1. Order'!I847)","v":""},{"$f":"IF('1. Order'!J847=\"\",\"\",'1. Order'!J847)","v":""},{"$f":"IF('1. Order'!K847=\"\",\"\",'1. Order'!K847)","v":""},{"$f":"IF('1. Order'!M847=\"\",\"\",'1. Order'!M847)","v":""},null,null,null,{"$f":"IF('1. Order'!AF847=\"\",\"\",'1. Order'!AF847)","v":""}]
[{"$f":"IF('1. Order'!B848=\"\",\"\",'1. Order'!B848)","v":""},{"$f":"IF('1. Order'!I848=\"\",\"\",'1. Order'!I848)","v":""},{"$f":"IF('1. Order'!J848=\"\",\"\",'1. Order'!J848)","v":""},{"$f":"IF('1. Order'!K848=\"\",\"\",'1. Order'!K848)","v":""},{"$f":"IF('1. Order'!M848=\"\",\"\",'1. Order'!M848)","v":""},null,null,null,{"$f":"IF('1. Order'!AF848=\"\",\"\",'1. Order'!AF848)","v":""}]
[{"$f":"IF('1. Order'!B849=\"\",\"\",'1. Order'!B849)","v":""},{"$f":"IF('1. Order'!I849=\"\",\"\",'1. Order'!I849)","v":""},{"$f":"IF('1. Order'!J849=\"\",\"\",'1. Order'!J849)","v":""},{"$f":"IF('1. Order'!K849=\"\",\"\",'1. Order'!K849)","v":""},{"$f":"IF('1. Order'!M849=\"\",\"\",'1. Order'!M849)","v":""},null,null,null,{"$f":"IF('1. Order'!AF849=\"\",\"\",'1. Order'!AF849)","v":""}]
[{"$f":"IF('1. Order'!B850=\"\",\"\",'1. Order'!B850)","v":""},{"$f":"IF('1. Order'!I850=\"\",\"\",'1. Order'!I850)","v":""},{"$f":"IF('1. Order'!J850=\"\",\"\",'1. Order'!J850)","v":""},{"$f":"IF('1. Order'!K850=\"\",\"\",'1. Order'!K850)","v":""},{"$f":"IF('1. Order'!M850=\"\",\"\",'1. Order'!M850)","v":""},null,null,null,{"$f":"IF('1. Order'!AF850=\"\",\"\",'1. Order'!AF850)","v":""}]
[{"$f":"IF('1. Order'!B851=\"\",\"\",'1. Order'!B851)","v":""},{"$f":"IF('1. Order'!I851=\"\",\"\",'1. Order'!I851)","v":""},{"$f":"IF('1. Order'!J851=\"\",\"\",'1. Order'!J851)","v":""},{"$f":"IF('1. Order'!K851=\"\",\"\",'1. Order'!K851)","v":""},{"$f":"IF('1. Order'!M851=\"\",\"\",'1. Order'!M851)","v":""},null,null,null,{"$f":"IF('1. Order'!AF851=\"\",\"\",'1. Order'!AF851)","v":""}]
[{"$f":"IF('1. Order'!B852=\"\",\"\",'1. Order'!B852)","v":""},{"$f":"IF('1. Order'!I852=\"\",\"\",'1. Order'!I852)","v":""},{"$f":"IF('1. Order'!J852=\"\",\"\",'1. Order'!J852)","v":""},{"$f":"IF('1. Order'!K852=\"\",\"\",'1. Order'!K852)","v":""},{"$f":"IF('1. Order'!M852=\"\",\"\",'1. Order'!M852)","v":""},null,null,null,{"$f":"IF('1. Order'!AF852=\"\",\"\",'1. Order'!AF852)","v":""}]
[{"$f":"IF('1. Order'!B853=\"\",\"\",'1. Order'!B853)","v":""},{"$f":"IF('1. Order'!I853=\"\",\"\",'1. Order'!I853)","v":""},{"$f":"IF('1. Order'!J853=\"\",\"\",'1. Order'!J853)","v":""},{"$f":"IF('1. Order'!K853=\"\",\"\",'1. Order'!K853)","v":""},{"$f":"IF('1. Order'!M853=\"\",\"\",'1. Order'!M853)","v":""},null,null,null,{"$f":"IF('1. Order'!AF853=\"\",\"\",'1. Order'!AF853)","v":""}]
[{"$f":"IF('1. Order'!B854=\"\",\"\",'1. Order'!B854)","v":""},{"$f":"IF('1. Order'!I854=\"\",\"\",'1. Order'!I854)","v":""},{"$f":"IF('1. Order'!J854=\"\",\"\",'1. Order'!J854)","v":""},{"$f":"IF('1. Order'!K854=\"\",\"\",'1. Order'!K854)","v":""},{"$f":"IF('1. Order'!M854=\"\",\"\",'1. Order'!M854)","v":""},null,null,null,{"$f":"IF('1. Order'!AF854=\"\",\"\",'1. Order'!AF854)","v":""}]
[{"$f":"IF('1. Order'!B855=\"\",\"\",'1. Order'!B855)","v":""},{"$f":"IF('1. Order'!I855=\"\",\"\",'1. Order'!I855)","v":""},{"$f":"IF('1. Order'!J855=\"\",\"\",'1. Order'!J855)","v":""},{"$f":"IF('1. Order'!K855=\"\",\"\",'1. Order'!K855)","v":""},{"$f":"IF('1. Order'!M855=\"\",\"\",'1. Order'!M855)","v":""},null,null,null,{"$f":"IF('1. Order'!AF855=\"\",\"\",'1. Order'!AF855)","v":""}]
[{"$f":"IF('1. Order'!B856=\"\",\"\",'1. Order'!B856)","v":""},{"$f":"IF('1. Order'!I856=\"\",\"\",'1. Order'!I856)","v":""},{"$f":"IF('1. Order'!J856=\"\",\"\",'1. Order'!J856)","v":""},{"$f":"IF('1. Order'!K856=\"\",\"\",'1. Order'!K856)","v":""},{"$f":"IF('1. Order'!M856=\"\",\"\",'1. Order'!M856)","v":""},null,null,null,{"$f":"IF('1. Order'!AF856=\"\",\"\",'1. Order'!AF856)","v":""}]
[{"$f":"IF('1. Order'!B857=\"\",\"\",'1. Order'!B857)","v":""},{"$f":"IF('1. Order'!I857=\"\",\"\",'1. Order'!I857)","v":""},{"$f":"IF('1. Order'!J857=\"\",\"\",'1. Order'!J857)","v":""},{"$f":"IF('1. Order'!K857=\"\",\"\",'1. Order'!K857)","v":""},{"$f":"IF('1. Order'!M857=\"\",\"\",'1. Order'!M857)","v":""},null,null,null,{"$f":"IF('1. Order'!AF857=\"\",\"\",'1. Order'!AF857)","v":""}]
[{"$f":"IF('1. Order'!B858=\"\",\"\",'1. Order'!B858)","v":""},{"$f":"IF('1. Order'!I858=\"\",\"\",'1. Order'!I858)","v":""},{"$f":"IF('1. Order'!J858=\"\",\"\",'1. Order'!J858)","v":""},{"$f":"IF('1. Order'!K858=\"\",\"\",'1. Order'!K858)","v":""},{"$f":"IF('1. Order'!M858=\"\",\"\",'1. Order'!M858)","v":""},null,null,null,{"$f":"IF('1. Order'!AF858=\"\",\"\",'1. Order'!AF858)","v":""}]
[{"$f":"IF('1. Order'!B859=\"\",\"\",'1. Order'!B859)","v":""},{"$f":"IF('1. Order'!I859=\"\",\"\",'1. Order'!I859)","v":""},{"$f":"IF('1. Order'!J859=\"\",\"\",'1. Order'!J859)","v":""},{"$f":"IF('1. Order'!K859=\"\",\"\",'1. Order'!K859)","v":""},{"$f":"IF('1. Order'!M859=\"\",\"\",'1. Order'!M859)","v":""},null,null,null,{"$f":"IF('1. Order'!AF859=\"\",\"\",'1. Order'!AF859)","v":""}]
[{"$f":"IF('1. Order'!B860=\"\",\"\",'1. Order'!B860)","v":""},{"$f":"IF('1. Order'!I860=\"\",\"\",'1. Order'!I860)","v":""},{"$f":"IF('1. Order'!J860=\"\",\"\",'1. Order'!J860)","v":""},{"$f":"IF('1. Order'!K860=\"\",\"\",'1. Order'!K860)","v":""},{"$f":"IF('1. Order'!M860=\"\",\"\",'1. Order'!M860)","v":""},null,null,null,{"$f":"IF('1. Order'!AF860=\"\",\"\",'1. Order'!AF860)","v":""}]
[{"$f":"IF('1. Order'!B861=\"\",\"\",'1. Order'!B861)","v":""},{"$f":"IF('1. Order'!I861=\"\",\"\",'1. Order'!I861)","v":""},{"$f":"IF('1. Order'!J861=\"\",\"\",'1. Order'!J861)","v":""},{"$f":"IF('1. Order'!K861=\"\",\"\",'1. Order'!K861)","v":""},{"$f":"IF('1. Order'!M861=\"\",\"\",'1. Order'!M861)","v":""},null,null,null,{"$f":"IF('1. Order'!AF861=\"\",\"\",'1. Order'!AF861)","v":""}]
[{"$f":"IF('1. Order'!B862=\"\",\"\",'1. Order'!B862)","v":""},{"$f":"IF('1. Order'!I862=\"\",\"\",'1. Order'!I862)","v":""},{"$f":"IF('1. Order'!J862=\"\",\"\",'1. Order'!J862)","v":""},{"$f":"IF('1. Order'!K862=\"\",\"\",'1. Order'!K862)","v":""},{"$f":"IF('1. Order'!M862=\"\",\"\",'1. Order'!M862)","v":""},null,null,null,{"$f":"IF('1. Order'!AF862=\"\",\"\",'1. Order'!AF862)","v":""}]
[{"$f":"IF('1. Order'!B863=\"\",\"\",'1. Order'!B863)","v":""},{"$f":"IF('1. Order'!I863=\"\",\"\",'1. Order'!I863)","v":""},{"$f":"IF('1. Order'!J863=\"\",\"\",'1. Order'!J863)","v":""},{"$f":"IF('1. Order'!K863=\"\",\"\",'1. Order'!K863)","v":""},{"$f":"IF('1. Order'!M863=\"\",\"\",'1. Order'!M863)","v":""},null,null,null,{"$f":"IF('1. Order'!AF863=\"\",\"\",'1. Order'!AF863)","v":""}]
[{"$f":"IF('1. Order'!B864=\"\",\"\",'1. Order'!B864)","v":""},{"$f":"IF('1. Order'!I864=\"\",\"\",'1. Order'!I864)","v":""},{"$f":"IF('1. Order'!J864=\"\",\"\",'1. Order'!J864)","v":""},{"$f":"IF('1. Order'!K864=\"\",\"\",'1. Order'!K864)","v":""},{"$f":"IF('1. Order'!M864=\"\",\"\",'1. Order'!M864)","v":""},null,null,null,{"$f":"IF('1. Order'!AF864=\"\",\"\",'1. Order'!AF864)","v":""}]
[{"$f":"IF('1. Order'!B865=\"\",\"\",'1. Order'!B865)","v":""},{"$f":"IF('1. Order'!I865=\"\",\"\",'1. Order'!I865)","v":""},{"$f":"IF('1. Order'!J865=\"\",\"\",'1. Order'!J865)","v":""},{"$f":"IF('1. Order'!K865=\"\",\"\",'1. Order'!K865)","v":""},{"$f":"IF('1. Order'!M865=\"\",\"\",'1. Order'!M865)","v":""},null,null,null,{"$f":"IF('1. Order'!AF865=\"\",\"\",'1. Order'!AF865)","v":""}]
[{"$f":"IF('1. Order'!B866=\"\",\"\",'1. Order'!B866)","v":""},{"$f":"IF('1. Order'!I866=\"\",\"\",'1. Order'!I866)","v":""},{"$f":"IF('1. Order'!J866=\"\",\"\",'1. Order'!J866)","v":""},{"$f":"IF('1. Order'!K866=\"\",\"\",'1. Order'!K866)","v":""},{"$f":"IF('1. Order'!M866=\"\",\"\",'1. Order'!M866)","v":""},null,null,null,{"$f":"IF('1. Order'!AF866=\"\",\"\",'1. Order'!AF866)","v":""}]
[{"$f":"IF('1. Order'!B867=\"\",\"\",'1. Order'!B867)","v":""},{"$f":"IF('1. Order'!I867=\"\",\"\",'1. Order'!I867)","v":""},{"$f":"IF('1. Order'!J867=\"\",\"\",'1. Order'!J867)","v":""},{"$f":"IF('1. Order'!K867=\"\",\"\",'1. Order'!K867)","v":""},{"$f":"IF('1. Order'!M867=\"\",\"\",'1. Order'!M867)","v":""},null,null,null,{"$f":"IF('1. Order'!AF867=\"\",\"\",'1. Order'!AF867)","v":""}]
[{"$f":"IF('1. Order'!B868=\"\",\"\",'1. Order'!B868)","v":""},{"$f":"IF('1. Order'!I868=\"\",\"\",'1. Order'!I868)","v":""},{"$f":"IF('1. Order'!J868=\"\",\"\",'1. Order'!J868)","v":""},{"$f":"IF('1. Order'!K868=\"\",\"\",'1. Order'!K868)","v":""},{"$f":"IF('1. Order'!M868=\"\",\"\",'1. Order'!M868)","v":""},null,null,null,{"$f":"IF('1. Order'!AF868=\"\",\"\",'1. Order'!AF868)","v":""}]
[{"$f":"IF('1. Order'!B869=\"\",\"\",'1. Order'!B869)","v":""},{"$f":"IF('1. Order'!I869=\"\",\"\",'1. Order'!I869)","v":""},{"$f":"IF('1. Order'!J869=\"\",\"\",'1. Order'!J869)","v":""},{"$f":"IF('1. Order'!K869=\"\",\"\",'1. Order'!K869)","v":""},{"$f":"IF('1. Order'!M869=\"\",\"\",'1. Order'!M869)","v":""},null,null,null,{"$f":"IF('1. Order'!AF869=\"\",\"\",'1. Order'!AF869)","v":""}]
[{"$f":"IF('1. Order'!B870=\"\",\"\",'1. Order'!B870)","v":""},{"$f":"IF('1. Order'!I870=\"\",\"\",'1. Order'!I870)","v":""},{"$f":"IF('1. Order'!J870=\"\",\"\",'1. Order'!J870)","v":""},{"$f":"IF('1. Order'!K870=\"\",\"\",'1. Order'!K870)","v":""},{"$f":"IF('1. Order'!M870=\"\",\"\",'1. Order'!M870)","v":""},null,null,null,{"$f":"IF('1. Order'!AF870=\"\",\"\",'1. Order'!AF870)","v":""}]
[{"$f":"IF('1. Order'!B871=\"\",\"\",'1. Order'!B871)","v":""},{"$f":"IF('1. Order'!I871=\"\",\"\",'1. Order'!I871)","v":""},{"$f":"IF('1. Order'!J871=\"\",\"\",'1. Order'!J871)","v":""},{"$f":"IF('1. Order'!K871=\"\",\"\",'1. Order'!K871)","v":""},{"$f":"IF('1. Order'!M871=\"\",\"\",'1. Order'!M871)","v":""},null,null,null,{"$f":"IF('1. Order'!AF871=\"\",\"\",'1. Order'!AF871)","v":""}]
[{"$f":"IF('1. Order'!B872=\"\",\"\",'1. Order'!B872)","v":""},{"$f":"IF('1. Order'!I872=\"\",\"\",'1. Order'!I872)","v":""},{"$f":"IF('1. Order'!J872=\"\",\"\",'1. Order'!J872)","v":""},{"$f":"IF('1. Order'!K872=\"\",\"\",'1. Order'!K872)","v":""},{"$f":"IF('1. Order'!M872=\"\",\"\",'1. Order'!M872)","v":""},null,null,null,{"$f":"IF('1. Order'!AF872=\"\",\"\",'1. Order'!AF872)","v":""}]
[{"$f":"IF('1. Order'!B873=\"\",\"\",'1. Order'!B873)","v":""},{"$f":"IF('1. Order'!I873=\"\",\"\",'1. Order'!I873)","v":""},{"$f":"IF('1. Order'!J873=\"\",\"\",'1. Order'!J873)","v":""},{"$f":"IF('1. Order'!K873=\"\",\"\",'1. Order'!K873)","v":""},{"$f":"IF('1. Order'!M873=\"\",\"\",'1. Order'!M873)","v":""},null,null,null,{"$f":"IF('1. Order'!AF873=\"\",\"\",'1. Order'!AF873)","v":""}]
[{"$f":"IF('1. Order'!B874=\"\",\"\",'1. Order'!B874)","v":""},{"$f":"IF('1. Order'!I874=\"\",\"\",'1. Order'!I874)","v":""},{"$f":"IF('1. Order'!J874=\"\",\"\",'1. Order'!J874)","v":""},{"$f":"IF('1. Order'!K874=\"\",\"\",'1. Order'!K874)","v":""},{"$f":"IF('1. Order'!M874=\"\",\"\",'1. Order'!M874)","v":""},null,null,null,{"$f":"IF('1. Order'!AF874=\"\",\"\",'1. Order'!AF874)","v":""}]
[{"$f":"IF('1. Order'!B875=\"\",\"\",'1. Order'!B875)","v":""},{"$f":"IF('1. Order'!I875=\"\",\"\",'1. Order'!I875)","v":""},{"$f":"IF('1. Order'!J875=\"\",\"\",'1. Order'!J875)","v":""},{"$f":"IF('1. Order'!K875=\"\",\"\",'1. Order'!K875)","v":""},{"$f":"IF('1. Order'!M875=\"\",\"\",'1. Order'!M875)","v":""},null,null,null,{"$f":"IF('1. Order'!AF875=\"\",\"\",'1. Order'!AF875)","v":""}]
[{"$f":"IF('1. Order'!B876=\"\",\"\",'1. Order'!B876)","v":""},{"$f":"IF('1. Order'!I876=\"\",\"\",'1. Order'!I876)","v":""},{"$f":"IF('1. Order'!J876=\"\",\"\",'1. Order'!J876)","v":""},{"$f":"IF('1. Order'!K876=\"\",\"\",'1. Order'!K876)","v":""},{"$f":"IF('1. Order'!M876=\"\",\"\",'1. Order'!M876)","v":""},null,null,null,{"$f":"IF('1. Order'!AF876=\"\",\"\",'1. Order'!AF876)","v":""}]
[{"$f":"IF('1. Order'!B877=\"\",\"\",'1. Order'!B877)","v":""},{"$f":"IF('1. Order'!I877=\"\",\"\",'1. Order'!I877)","v":""},{"$f":"IF('1. Order'!J877=\"\",\"\",'1. Order'!J877)","v":""},{"$f":"IF('1. Order'!K877=\"\",\"\",'1. Order'!K877)","v":""},{"$f":"IF('1. Order'!M877=\"\",\"\",'1. Order'!M877)","v":""},null,null,null,{"$f":"IF('1. Order'!AF877=\"\",\"\",'1. Order'!AF877)","v":""}]
[{"$f":"IF('1. Order'!B878=\"\",\"\",'1. Order'!B878)","v":""},{"$f":"IF('1. Order'!I878=\"\",\"\",'1. Order'!I878)","v":""},{"$f":"IF('1. Order'!J878=\"\",\"\",'1. Order'!J878)","v":""},{"$f":"IF('1. Order'!K878=\"\",\"\",'1. Order'!K878)","v":""},{"$f":"IF('1. Order'!M878=\"\",\"\",'1. Order'!M878)","v":""},null,null,null,{"$f":"IF('1. Order'!AF878=\"\",\"\",'1. Order'!AF878)","v":""}]
[{"$f":"IF('1. Order'!B879=\"\",\"\",'1. Order'!B879)","v":""},{"$f":"IF('1. Order'!I879=\"\",\"\",'1. Order'!I879)","v":""},{"$f":"IF('1. Order'!J879=\"\",\"\",'1. Order'!J879)","v":""},{"$f":"IF('1. Order'!K879=\"\",\"\",'1. Order'!K879)","v":""},{"$f":"IF('1. Order'!M879=\"\",\"\",'1. Order'!M879)","v":""},null,null,null,{"$f":"IF('1. Order'!AF879=\"\",\"\",'1. Order'!AF879)","v":""}]
[{"$f":"IF('1. Order'!B880=\"\",\"\",'1. Order'!B880)","v":""},{"$f":"IF('1. Order'!I880=\"\",\"\",'1. Order'!I880)","v":""},{"$f":"IF('1. Order'!J880=\"\",\"\",'1. Order'!J880)","v":""},{"$f":"IF('1. Order'!K880=\"\",\"\",'1. Order'!K880)","v":""},{"$f":"IF('1. Order'!M880=\"\",\"\",'1. Order'!M880)","v":""},null,null,null,{"$f":"IF('1. Order'!AF880=\"\",\"\",'1. Order'!AF880)","v":""}]
[{"$f":"IF('1. Order'!B881=\"\",\"\",'1. Order'!B881)","v":""},{"$f":"IF('1. Order'!I881=\"\",\"\",'1. Order'!I881)","v":""},{"$f":"IF('1. Order'!J881=\"\",\"\",'1. Order'!J881)","v":""},{"$f":"IF('1. Order'!K881=\"\",\"\",'1. Order'!K881)","v":""},{"$f":"IF('1. Order'!M881=\"\",\"\",'1. Order'!M881)","v":""},null,null,null,{"$f":"IF('1. Order'!AF881=\"\",\"\",'1. Order'!AF881)","v":""}]
[{"$f":"IF('1. Order'!B882=\"\",\"\",'1. Order'!B882)","v":""},{"$f":"IF('1. Order'!I882=\"\",\"\",'1. Order'!I882)","v":""},{"$f":"IF('1. Order'!J882=\"\",\"\",'1. Order'!J882)","v":""},{"$f":"IF('1. Order'!K882=\"\",\"\",'1. Order'!K882)","v":""},{"$f":"IF('1. Order'!M882=\"\",\"\",'1. Order'!M882)","v":""},null,null,null,{"$f":"IF('1. Order'!AF882=\"\",\"\",'1. Order'!AF882)","v":""}]
[{"$f":"IF('1. Order'!B883=\"\",\"\",'1. Order'!B883)","v":""},{"$f":"IF('1. Order'!I883=\"\",\"\",'1. Order'!I883)","v":""},{"$f":"IF('1. Order'!J883=\"\",\"\",'1. Order'!J883)","v":""},{"$f":"IF('1. Order'!K883=\"\",\"\",'1. Order'!K883)","v":""},{"$f":"IF('1. Order'!M883=\"\",\"\",'1. Order'!M883)","v":""},null,null,null,{"$f":"IF('1. Order'!AF883=\"\",\"\",'1. Order'!AF883)","v":""}]
[{"$f":"IF('1. Order'!B884=\"\",\"\",'1. Order'!B884)","v":""},{"$f":"IF('1. Order'!I884=\"\",\"\",'1. Order'!I884)","v":""},{"$f":"IF('1. Order'!J884=\"\",\"\",'1. Order'!J884)","v":""},{"$f":"IF('1. Order'!K884=\"\",\"\",'1. Order'!K884)","v":""},{"$f":"IF('1. Order'!M884=\"\",\"\",'1. Order'!M884)","v":""},null,null,null,{"$f":"IF('1. Order'!AF884=\"\",\"\",'1. Order'!AF884)","v":""}]
[{"$f":"IF('1. Order'!B885=\"\",\"\",'1. Order'!B885)","v":""},{"$f":"IF('1. Order'!I885=\"\",\"\",'1. Order'!I885)","v":""},{"$f":"IF('1. Order'!J885=\"\",\"\",'1. Order'!J885)","v":""},{"$f":"IF('1. Order'!K885=\"\",\"\",'1. Order'!K885)","v":""},{"$f":"IF('1. Order'!M885=\"\",\"\",'1. Order'!M885)","v":""},null,null,null,{"$f":"IF('1. Order'!AF885=\"\",\"\",'1. Order'!AF885)","v":""}]
[{"$f":"IF('1. Order'!B886=\"\",\"\",'1. Order'!B886)","v":""},{"$f":"IF('1. Order'!I886=\"\",\"\",'1. Order'!I886)","v":""},{"$f":"IF('1. Order'!J886=\"\",\"\",'1. Order'!J886)","v":""},{"$f":"IF('1. Order'!K886=\"\",\"\",'1. Order'!K886)","v":""},{"$f":"IF('1. Order'!M886=\"\",\"\",'1. Order'!M886)","v":""},null,null,null,{"$f":"IF('1. Order'!AF886=\"\",\"\",'1. Order'!AF886)","v":""}]
[{"$f":"IF('1. Order'!B887=\"\",\"\",'1. Order'!B887)","v":""},{"$f":"IF('1. Order'!I887=\"\",\"\",'1. Order'!I887)","v":""},{"$f":"IF('1. Order'!J887=\"\",\"\",'1. Order'!J887)","v":""},{"$f":"IF('1. Order'!K887=\"\",\"\",'1. Order'!K887)","v":""},{"$f":"IF('1. Order'!M887=\"\",\"\",'1. Order'!M887)","v":""},null,null,null,{"$f":"IF('1. Order'!AF887=\"\",\"\",'1. Order'!AF887)","v":""}]
[{"$f":"IF('1. Order'!B888=\"\",\"\",'1. Order'!B888)","v":""},{"$f":"IF('1. Order'!I888=\"\",\"\",'1. Order'!I888)","v":""},{"$f":"IF('1. Order'!J888=\"\",\"\",'1. Order'!J888)","v":""},{"$f":"IF('1. Order'!K888=\"\",\"\",'1. Order'!K888)","v":""},{"$f":"IF('1. Order'!M888=\"\",\"\",'1. Order'!M888)","v":""},null,null,null,{"$f":"IF('1. Order'!AF888=\"\",\"\",'1. Order'!AF888)","v":""}]
[{"$f":"IF('1. Order'!B889=\"\",\"\",'1. Order'!B889)","v":""},{"$f":"IF('1. Order'!I889=\"\",\"\",'1. Order'!I889)","v":""},{"$f":"IF('1. Order'!J889=\"\",\"\",'1. Order'!J889)","v":""},{"$f":"IF('1. Order'!K889=\"\",\"\",'1. Order'!K889)","v":""},{"$f":"IF('1. Order'!M889=\"\",\"\",'1. Order'!M889)","v":""},null,null,null,{"$f":"IF('1. Order'!AF889=\"\",\"\",'1. Order'!AF889)","v":""}]
[{"$f":"IF('1. Order'!B890=\"\",\"\",'1. Order'!B890)","v":""},{"$f":"IF('1. Order'!I890=\"\",\"\",'1. Order'!I890)","v":""},{"$f":"IF('1. Order'!J890=\"\",\"\",'1. Order'!J890)","v":""},{"$f":"IF('1. Order'!K890=\"\",\"\",'1. Order'!K890)","v":""},{"$f":"IF('1. Order'!M890=\"\",\"\",'1. Order'!M890)","v":""},null,null,null,{"$f":"IF('1. Order'!AF890=\"\",\"\",'1. Order'!AF890)","v":""}]
[{"$f":"IF('1. Order'!B891=\"\",\"\",'1. Order'!B891)","v":""},{"$f":"IF('1. Order'!I891=\"\",\"\",'1. Order'!I891)","v":""},{"$f":"IF('1. Order'!J891=\"\",\"\",'1. Order'!J891)","v":""},{"$f":"IF('1. Order'!K891=\"\",\"\",'1. Order'!K891)","v":""},{"$f":"IF('1. Order'!M891=\"\",\"\",'1. Order'!M891)","v":""},null,null,null,{"$f":"IF('1. Order'!AF891=\"\",\"\",'1. Order'!AF891)","v":""}]
[{"$f":"IF('1. Order'!B892=\"\",\"\",'1. Order'!B892)","v":""},{"$f":"IF('1. Order'!I892=\"\",\"\",'1. Order'!I892)","v":""},{"$f":"IF('1. Order'!J892=\"\",\"\",'1. Order'!J892)","v":""},{"$f":"IF('1. Order'!K892=\"\",\"\",'1. Order'!K892)","v":""},{"$f":"IF('1. Order'!M892=\"\",\"\",'1. Order'!M892)","v":""},null,null,null,{"$f":"IF('1. Order'!AF892=\"\",\"\",'1. Order'!AF892)","v":""}]
[{"$f":"IF('1. Order'!B893=\"\",\"\",'1. Order'!B893)","v":""},{"$f":"IF('1. Order'!I893=\"\",\"\",'1. Order'!I893)","v":""},{"$f":"IF('1. Order'!J893=\"\",\"\",'1. Order'!J893)","v":""},{"$f":"IF('1. Order'!K893=\"\",\"\",'1. Order'!K893)","v":""},{"$f":"IF('1. Order'!M893=\"\",\"\",'1. Order'!M893)","v":""},null,null,null,{"$f":"IF('1. Order'!AF893=\"\",\"\",'1. Order'!AF893)","v":""}]
[{"$f":"IF('1. Order'!B894=\"\",\"\",'1. Order'!B894)","v":""},{"$f":"IF('1. Order'!I894=\"\",\"\",'1. Order'!I894)","v":""},{"$f":"IF('1. Order'!J894=\"\",\"\",'1. Order'!J894)","v":""},{"$f":"IF('1. Order'!K894=\"\",\"\",'1. Order'!K894)","v":""},{"$f":"IF('1. Order'!M894=\"\",\"\",'1. Order'!M894)","v":""},null,null,null,{"$f":"IF('1. Order'!AF894=\"\",\"\",'1. Order'!AF894)","v":""}]
[{"$f":"IF('1. Order'!B895=\"\",\"\",'1. Order'!B895)","v":""},{"$f":"IF('1. Order'!I895=\"\",\"\",'1. Order'!I895)","v":""},{"$f":"IF('1. Order'!J895=\"\",\"\",'1. Order'!J895)","v":""},{"$f":"IF('1. Order'!K895=\"\",\"\",'1. Order'!K895)","v":""},{"$f":"IF('1. Order'!M895=\"\",\"\",'1. Order'!M895)","v":""},null,null,null,{"$f":"IF('1. Order'!AF895=\"\",\"\",'1. Order'!AF895)","v":""}]
[{"$f":"IF('1. Order'!B896=\"\",\"\",'1. Order'!B896)","v":""},{"$f":"IF('1. Order'!I896=\"\",\"\",'1. Order'!I896)","v":""},{"$f":"IF('1. Order'!J896=\"\",\"\",'1. Order'!J896)","v":""},{"$f":"IF('1. Order'!K896=\"\",\"\",'1. Order'!K896)","v":""},{"$f":"IF('1. Order'!M896=\"\",\"\",'1. Order'!M896)","v":""},null,null,null,{"$f":"IF('1. Order'!AF896=\"\",\"\",'1. Order'!AF896)","v":""}]
[{"$f":"IF('1. Order'!B897=\"\",\"\",'1. Order'!B897)","v":""},{"$f":"IF('1. Order'!I897=\"\",\"\",'1. Order'!I897)","v":""},{"$f":"IF('1. Order'!J897=\"\",\"\",'1. Order'!J897)","v":""},{"$f":"IF('1. Order'!K897=\"\",\"\",'1. Order'!K897)","v":""},{"$f":"IF('1. Order'!M897=\"\",\"\",'1. Order'!M897)","v":""},null,null,null,{"$f":"IF('1. Order'!AF897=\"\",\"\",'1. Order'!AF897)","v":""}]
[{"$f":"IF('1. Order'!B898=\"\",\"\",'1. Order'!B898)","v":""},{"$f":"IF('1. Order'!I898=\"\",\"\",'1. Order'!I898)","v":""},{"$f":"IF('1. Order'!J898=\"\",\"\",'1. Order'!J898)","v":""},{"$f":"IF('1. Order'!K898=\"\",\"\",'1. Order'!K898)","v":""},{"$f":"IF('1. Order'!M898=\"\",\"\",'1. Order'!M898)","v":""},null,null,null,{"$f":"IF('1. Order'!AF898=\"\",\"\",'1. Order'!AF898)","v":""}]
[{"$f":"IF('1. Order'!B899=\"\",\"\",'1. Order'!B899)","v":""},{"$f":"IF('1. Order'!I899=\"\",\"\",'1. Order'!I899)","v":""},{"$f":"IF('1. Order'!J899=\"\",\"\",'1. Order'!J899)","v":""},{"$f":"IF('1. Order'!K899=\"\",\"\",'1. Order'!K899)","v":""},{"$f":"IF('1. Order'!M899=\"\",\"\",'1. Order'!M899)","v":""},null,null,null,{"$f":"IF('1. Order'!AF899=\"\",\"\",'1. Order'!AF899)","v":""}]
[{"$f":"IF('1. Order'!B900=\"\",\"\",'1. Order'!B900)","v":""},{"$f":"IF('1. Order'!I900=\"\",\"\",'1. Order'!I900)","v":""},{"$f":"IF('1. Order'!J900=\"\",\"\",'1. Order'!J900)","v":""},{"$f":"IF('1. Order'!K900=\"\",\"\",'1. Order'!K900)","v":""},{"$f":"IF('1. Order'!M900=\"\",\"\",'1. Order'!M900)","v":""},null,null,null,{"$f":"IF('1. Order'!AF900=\"\",\"\",'1. Order'!AF900)","v":""}]
[{"$f":"IF('1. Order'!B901=\"\",\"\",'1. Order'!B901)","v":""},{"$f":"IF('1. Order'!I901=\"\",\"\",'1. Order'!I901)","v":""},{"$f":"IF('1. Order'!J901=\"\",\"\",'1. Order'!J901)","v":""},{"$f":"IF('1. Order'!K901=\"\",\"\",'1. Order'!K901)","v":""},{"$f":"IF('1. Order'!M901=\"\",\"\",'1. Order'!M901)","v":""},null,null,null,{"$f":"IF('1. Order'!AF901=\"\",\"\",'1. Order'!AF901)","v":""}]
[{"$f":"IF('1. Order'!B902=\"\",\"\",'1. Order'!B902)","v":""},{"$f":"IF('1. Order'!I902=\"\",\"\",'1. Order'!I902)","v":""},{"$f":"IF('1. Order'!J902=\"\",\"\",'1. Order'!J902)","v":""},{"$f":"IF('1. Order'!K902=\"\",\"\",'1. Order'!K902)","v":""},{"$f":"IF('1. Order'!M902=\"\",\"\",'1. Order'!M902)","v":""},null,null,null,{"$f":"IF('1. Order'!AF902=\"\",\"\",'1. Order'!AF902)","v":""}]
[{"$f":"IF('1. Order'!B903=\"\",\"\",'1. Order'!B903)","v":""},{"$f":"IF('1. Order'!I903=\"\",\"\",'1. Order'!I903)","v":""},{"$f":"IF('1. Order'!J903=\"\",\"\",'1. Order'!J903)","v":""},{"$f":"IF('1. Order'!K903=\"\",\"\",'1. Order'!K903)","v":""},{"$f":"IF('1. Order'!M903=\"\",\"\",'1. Order'!M903)","v":""},null,null,null,{"$f":"IF('1. Order'!AF903=\"\",\"\",'1. Order'!AF903)","v":""}]
[{"$f":"IF('1. Order'!B904=\"\",\"\",'1. Order'!B904)","v":""},{"$f":"IF('1. Order'!I904=\"\",\"\",'1. Order'!I904)","v":""},{"$f":"IF('1. Order'!J904=\"\",\"\",'1. Order'!J904)","v":""},{"$f":"IF('1. Order'!K904=\"\",\"\",'1. Order'!K904)","v":""},{"$f":"IF('1. Order'!M904=\"\",\"\",'1. Order'!M904)","v":""},null,null,null,{"$f":"IF('1. Order'!AF904=\"\",\"\",'1. Order'!AF904)","v":""}]
[{"$f":"IF('1. Order'!B905=\"\",\"\",'1. Order'!B905)","v":""},{"$f":"IF('1. Order'!I905=\"\",\"\",'1. Order'!I905)","v":""},{"$f":"IF('1. Order'!J905=\"\",\"\",'1. Order'!J905)","v":""},{"$f":"IF('1. Order'!K905=\"\",\"\",'1. Order'!K905)","v":""},{"$f":"IF('1. Order'!M905=\"\",\"\",'1. Order'!M905)","v":""},null,null,null,{"$f":"IF('1. Order'!AF905=\"\",\"\",'1. Order'!AF905)","v":""}]
[{"$f":"IF('1. Order'!B906=\"\",\"\",'1. Order'!B906)","v":""},{"$f":"IF('1. Order'!I906=\"\",\"\",'1. Order'!I906)","v":""},{"$f":"IF('1. Order'!J906=\"\",\"\",'1. Order'!J906)","v":""},{"$f":"IF('1. Order'!K906=\"\",\"\",'1. Order'!K906)","v":""},{"$f":"IF('1. Order'!M906=\"\",\"\",'1. Order'!M906)","v":""},null,null,null,{"$f":"IF('1. Order'!AF906=\"\",\"\",'1. Order'!AF906)","v":""}]
[{"$f":"IF('1. Order'!B907=\"\",\"\",'1. Order'!B907)","v":""},{"$f":"IF('1. Order'!I907=\"\",\"\",'1. Order'!I907)","v":""},{"$f":"IF('1. Order'!J907=\"\",\"\",'1. Order'!J907)","v":""},{"$f":"IF('1. Order'!K907=\"\",\"\",'1. Order'!K907)","v":""},{"$f":"IF('1. Order'!M907=\"\",\"\",'1. Order'!M907)","v":""},null,null,null,{"$f":"IF('1. Order'!AF907=\"\",\"\",'1. Order'!AF907)","v":""}]
[{"$f":"IF('1. Order'!B908=\"\",\"\",'1. Order'!B908)","v":""},{"$f":"IF('1. Order'!I908=\"\",\"\",'1. Order'!I908)","v":""},{"$f":"IF('1. Order'!J908=\"\",\"\",'1. Order'!J908)","v":""},{"$f":"IF('1. Order'!K908=\"\",\"\",'1. Order'!K908)","v":""},{"$f":"IF('1. Order'!M908=\"\",\"\",'1. Order'!M908)","v":""},null,null,null,{"$f":"IF('1. Order'!AF908=\"\",\"\",'1. Order'!AF908)","v":""}]
[{"$f":"IF('1. Order'!B909=\"\",\"\",'1. Order'!B909)","v":""},{"$f":"IF('1. Order'!I909=\"\",\"\",'1. Order'!I909)","v":""},{"$f":"IF('1. Order'!J909=\"\",\"\",'1. Order'!J909)","v":""},{"$f":"IF('1. Order'!K909=\"\",\"\",'1. Order'!K909)","v":""},{"$f":"IF('1. Order'!M909=\"\",\"\",'1. Order'!M909)","v":""},null,null,null,{"$f":"IF('1. Order'!AF909=\"\",\"\",'1. Order'!AF909)","v":""}]
[{"$f":"IF('1. Order'!B910=\"\",\"\",'1. Order'!B910)","v":""},{"$f":"IF('1. Order'!I910=\"\",\"\",'1. Order'!I910)","v":""},{"$f":"IF('1. Order'!J910=\"\",\"\",'1. Order'!J910)","v":""},{"$f":"IF('1. Order'!K910=\"\",\"\",'1. Order'!K910)","v":""},{"$f":"IF('1. Order'!M910=\"\",\"\",'1. Order'!M910)","v":""},null,null,null,{"$f":"IF('1. Order'!AF910=\"\",\"\",'1. Order'!AF910)","v":""}]
[{"$f":"IF('1. Order'!B911=\"\",\"\",'1. Order'!B911)","v":""},{"$f":"IF('1. Order'!I911=\"\",\"\",'1. Order'!I911)","v":""},{"$f":"IF('1. Order'!J911=\"\",\"\",'1. Order'!J911)","v":""},{"$f":"IF('1. Order'!K911=\"\",\"\",'1. Order'!K911)","v":""},{"$f":"IF('1. Order'!M911=\"\",\"\",'1. Order'!M911)","v":""},null,null,null,{"$f":"IF('1. Order'!AF911=\"\",\"\",'1. Order'!AF911)","v":""}]
[{"$f":"IF('1. Order'!B912=\"\",\"\",'1. Order'!B912)","v":""},{"$f":"IF('1. Order'!I912=\"\",\"\",'1. Order'!I912)","v":""},{"$f":"IF('1. Order'!J912=\"\",\"\",'1. Order'!J912)","v":""},{"$f":"IF('1. Order'!K912=\"\",\"\",'1. Order'!K912)","v":""},{"$f":"IF('1. Order'!M912=\"\",\"\",'1. Order'!M912)","v":""},null,null,null,{"$f":"IF('1. Order'!AF912=\"\",\"\",'1. Order'!AF912)","v":""}]
[{"$f":"IF('1. Order'!B913=\"\",\"\",'1. Order'!B913)","v":""},{"$f":"IF('1. Order'!I913=\"\",\"\",'1. Order'!I913)","v":""},{"$f":"IF('1. Order'!J913=\"\",\"\",'1. Order'!J913)","v":""},{"$f":"IF('1. Order'!K913=\"\",\"\",'1. Order'!K913)","v":""},{"$f":"IF('1. Order'!M913=\"\",\"\",'1. Order'!M913)","v":""},null,null,null,{"$f":"IF('1. Order'!AF913=\"\",\"\",'1. Order'!AF913)","v":""}]
[{"$f":"IF('1. Order'!B914=\"\",\"\",'1. Order'!B914)","v":""},{"$f":"IF('1. Order'!I914=\"\",\"\",'1. Order'!I914)","v":""},{"$f":"IF('1. Order'!J914=\"\",\"\",'1. Order'!J914)","v":""},{"$f":"IF('1. Order'!K914=\"\",\"\",'1. Order'!K914)","v":""},{"$f":"IF('1. Order'!M914=\"\",\"\",'1. Order'!M914)","v":""},null,null,null,{"$f":"IF('1. Order'!AF914=\"\",\"\",'1. Order'!AF914)","v":""}]
[{"$f":"IF('1. Order'!B915=\"\",\"\",'1. Order'!B915)","v":""},{"$f":"IF('1. Order'!I915=\"\",\"\",'1. Order'!I915)","v":""},{"$f":"IF('1. Order'!J915=\"\",\"\",'1. Order'!J915)","v":""},{"$f":"IF('1. Order'!K915=\"\",\"\",'1. Order'!K915)","v":""},{"$f":"IF('1. Order'!M915=\"\",\"\",'1. Order'!M915)","v":""},null,null,null,{"$f":"IF('1. Order'!AF915=\"\",\"\",'1. Order'!AF915)","v":""}]
[{"$f":"IF('1. Order'!B916=\"\",\"\",'1. Order'!B916)","v":""},{"$f":"IF('1. Order'!I916=\"\",\"\",'1. Order'!I916)","v":""},{"$f":"IF('1. Order'!J916=\"\",\"\",'1. Order'!J916)","v":""},{"$f":"IF('1. Order'!K916=\"\",\"\",'1. Order'!K916)","v":""},{"$f":"IF('1. Order'!M916=\"\",\"\",'1. Order'!M916)","v":""},null,null,null,{"$f":"IF('1. Order'!AF916=\"\",\"\",'1. Order'!AF916)","v":""}]
[{"$f":"IF('1. Order'!B917=\"\",\"\",'1. Order'!B917)","v":""},{"$f":"IF('1. Order'!I917=\"\",\"\",'1. Order'!I917)","v":""},{"$f":"IF('1. Order'!J917=\"\",\"\",'1. Order'!J917)","v":""},{"$f":"IF('1. Order'!K917=\"\",\"\",'1. Order'!K917)","v":""},{"$f":"IF('1. Order'!M917=\"\",\"\",'1. Order'!M917)","v":""},null,null,null,{"$f":"IF('1. Order'!AF917=\"\",\"\",'1. Order'!AF917)","v":""}]
[{"$f":"IF('1. Order'!B918=\"\",\"\",'1. Order'!B918)","v":""},{"$f":"IF('1. Order'!I918=\"\",\"\",'1. Order'!I918)","v":""},{"$f":"IF('1. Order'!J918=\"\",\"\",'1. Order'!J918)","v":""},{"$f":"IF('1. Order'!K918=\"\",\"\",'1. Order'!K918)","v":""},{"$f":"IF('1. Order'!M918=\"\",\"\",'1. Order'!M918)","v":""},null,null,null,{"$f":"IF('1. Order'!AF918=\"\",\"\",'1. Order'!AF918)","v":""}]
[{"$f":"IF('1. Order'!B919=\"\",\"\",'1. Order'!B919)","v":""},{"$f":"IF('1. Order'!I919=\"\",\"\",'1. Order'!I919)","v":""},{"$f":"IF('1. Order'!J919=\"\",\"\",'1. Order'!J919)","v":""},{"$f":"IF('1. Order'!K919=\"\",\"\",'1. Order'!K919)","v":""},{"$f":"IF('1. Order'!M919=\"\",\"\",'1. Order'!M919)","v":""},null,null,null,{"$f":"IF('1. Order'!AF919=\"\",\"\",'1. Order'!AF919)","v":""}]
[{"$f":"IF('1. Order'!B920=\"\",\"\",'1. Order'!B920)","v":""},{"$f":"IF('1. Order'!I920=\"\",\"\",'1. Order'!I920)","v":""},{"$f":"IF('1. Order'!J920=\"\",\"\",'1. Order'!J920)","v":""},{"$f":"IF('1. Order'!K920=\"\",\"\",'1. Order'!K920)","v":""},{"$f":"IF('1. Order'!M920=\"\",\"\",'1. Order'!M920)","v":""},null,null,null,{"$f":"IF('1. Order'!AF920=\"\",\"\",'1. Order'!AF920)","v":""}]
[{"$f":"IF('1. Order'!B921=\"\",\"\",'1. Order'!B921)","v":""},{"$f":"IF('1. Order'!I921=\"\",\"\",'1. Order'!I921)","v":""},{"$f":"IF('1. Order'!J921=\"\",\"\",'1. Order'!J921)","v":""},{"$f":"IF('1. Order'!K921=\"\",\"\",'1. Order'!K921)","v":""},{"$f":"IF('1. Order'!M921=\"\",\"\",'1. Order'!M921)","v":""},null,null,null,{"$f":"IF('1. Order'!AF921=\"\",\"\",'1. Order'!AF921)","v":""}]
[{"$f":"IF('1. Order'!B922=\"\",\"\",'1. Order'!B922)","v":""},{"$f":"IF('1. Order'!I922=\"\",\"\",'1. Order'!I922)","v":""},{"$f":"IF('1. Order'!J922=\"\",\"\",'1. Order'!J922)","v":""},{"$f":"IF('1. Order'!K922=\"\",\"\",'1. Order'!K922)","v":""},{"$f":"IF('1. Order'!M922=\"\",\"\",'1. Order'!M922)","v":""},null,null,null,{"$f":"IF('1. Order'!AF922=\"\",\"\",'1. Order'!AF922)","v":""}]
[{"$f":"IF('1. Order'!B923=\"\",\"\",'1. Order'!B923)","v":""},{"$f":"IF('1. Order'!I923=\"\",\"\",'1. Order'!I923)","v":""},{"$f":"IF('1. Order'!J923=\"\",\"\",'1. Order'!J923)","v":""},{"$f":"IF('1. Order'!K923=\"\",\"\",'1. Order'!K923)","v":""},{"$f":"IF('1. Order'!M923=\"\",\"\",'1. Order'!M923)","v":""},null,null,null,{"$f":"IF('1. Order'!AF923=\"\",\"\",'1. Order'!AF923)","v":""}]
[{"$f":"IF('1. Order'!B924=\"\",\"\",'1. Order'!B924)","v":""},{"$f":"IF('1. Order'!I924=\"\",\"\",'1. Order'!I924)","v":""},{"$f":"IF('1. Order'!J924=\"\",\"\",'1. Order'!J924)","v":""},{"$f":"IF('1. Order'!K924=\"\",\"\",'1. Order'!K924)","v":""},{"$f":"IF('1. Order'!M924=\"\",\"\",'1. Order'!M924)","v":""},null,null,null,{"$f":"IF('1. Order'!AF924=\"\",\"\",'1. Order'!AF924)","v":""}]
[{"$f":"IF('1. Order'!B925=\"\",\"\",'1. Order'!B925)","v":""},{"$f":"IF('1. Order'!I925=\"\",\"\",'1. Order'!I925)","v":""},{"$f":"IF('1. Order'!J925=\"\",\"\",'1. Order'!J925)","v":""},{"$f":"IF('1. Order'!K925=\"\",\"\",'1. Order'!K925)","v":""},{"$f":"IF('1. Order'!M925=\"\",\"\",'1. Order'!M925)","v":""},null,null,null,{"$f":"IF('1. Order'!AF925=\"\",\"\",'1. Order'!AF925)","v":""}]
[{"$f":"IF('1. Order'!B926=\"\",\"\",'1. Order'!B926)","v":""},{"$f":"IF('1. Order'!I926=\"\",\"\",'1. Order'!I926)","v":""},{"$f":"IF('1. Order'!J926=\"\",\"\",'1. Order'!J926)","v":""},{"$f":"IF('1. Order'!K926=\"\",\"\",'1. Order'!K926)","v":""},{"$f":"IF('1. Order'!M926=\"\",\"\",'1. Order'!M926)","v":""},null,null,null,{"$f":"IF('1. Order'!AF926=\"\",\"\",'1. Order'!AF926)","v":""}]
[{"$f":"IF('1. Order'!B927=\"\",\"\",'1. Order'!B927)","v":""},{"$f":"IF('1. Order'!I927=\"\",\"\",'1. Order'!I927)","v":""},{"$f":"IF('1. Order'!J927=\"\",\"\",'1. Order'!J927)","v":""},{"$f":"IF('1. Order'!K927=\"\",\"\",'1. Order'!K927)","v":""},{"$f":"IF('1. Order'!M927=\"\",\"\",'1. Order'!M927)","v":""},null,null,null,{"$f":"IF('1. Order'!AF927=\"\",\"\",'1. Order'!AF927)","v":""}]
[{"$f":"IF('1. Order'!B928=\"\",\"\",'1. Order'!B928)","v":""},{"$f":"IF('1. Order'!I928=\"\",\"\",'1. Order'!I928)","v":""},{"$f":"IF('1. Order'!J928=\"\",\"\",'1. Order'!J928)","v":""},{"$f":"IF('1. Order'!K928=\"\",\"\",'1. Order'!K928)","v":""},{"$f":"IF('1. Order'!M928=\"\",\"\",'1. Order'!M928)","v":""},null,null,null,{"$f":"IF('1. Order'!AF928=\"\",\"\",'1. Order'!AF928)","v":""}]
[{"$f":"IF('1. Order'!B929=\"\",\"\",'1. Order'!B929)","v":""},{"$f":"IF('1. Order'!I929=\"\",\"\",'1. Order'!I929)","v":""},{"$f":"IF('1. Order'!J929=\"\",\"\",'1. Order'!J929)","v":""},{"$f":"IF('1. Order'!K929=\"\",\"\",'1. Order'!K929)","v":""},{"$f":"IF('1. Order'!M929=\"\",\"\",'1. Order'!M929)","v":""},null,null,null,{"$f":"IF('1. Order'!AF929=\"\",\"\",'1. Order'!AF929)","v":""}]
[{"$f":"IF('1. Order'!B930=\"\",\"\",'1. Order'!B930)","v":""},{"$f":"IF('1. Order'!I930=\"\",\"\",'1. Order'!I930)","v":""},{"$f":"IF('1. Order'!J930=\"\",\"\",'1. Order'!J930)","v":""},{"$f":"IF('1. Order'!K930=\"\",\"\",'1. Order'!K930)","v":""},{"$f":"IF('1. Order'!M930=\"\",\"\",'1. Order'!M930)","v":""},null,null,null,{"$f":"IF('1. Order'!AF930=\"\",\"\",'1. Order'!AF930)","v":""}]
[{"$f":"IF('1. Order'!B931=\"\",\"\",'1. Order'!B931)","v":""},{"$f":"IF('1. Order'!I931=\"\",\"\",'1. Order'!I931)","v":""},{"$f":"IF('1. Order'!J931=\"\",\"\",'1. Order'!J931)","v":""},{"$f":"IF('1. Order'!K931=\"\",\"\",'1. Order'!K931)","v":""},{"$f":"IF('1. Order'!M931=\"\",\"\",'1. Order'!M931)","v":""},null,null,null,{"$f":"IF('1. Order'!AF931=\"\",\"\",'1. Order'!AF931)","v":""}]
[{"$f":"IF('1. Order'!B932=\"\",\"\",'1. Order'!B932)","v":""},{"$f":"IF('1. Order'!I932=\"\",\"\",'1. Order'!I932)","v":""},{"$f":"IF('1. Order'!J932=\"\",\"\",'1. Order'!J932)","v":""},{"$f":"IF('1. Order'!K932=\"\",\"\",'1. Order'!K932)","v":""},{"$f":"IF('1. Order'!M932=\"\",\"\",'1. Order'!M932)","v":""},null,null,null,{"$f":"IF('1. Order'!AF932=\"\",\"\",'1. Order'!AF932)","v":""}]
[{"$f":"IF('1. Order'!B933=\"\",\"\",'1. Order'!B933)","v":""},{"$f":"IF('1. Order'!I933=\"\",\"\",'1. Order'!I933)","v":""},{"$f":"IF('1. Order'!J933=\"\",\"\",'1. Order'!J933)","v":""},{"$f":"IF('1. Order'!K933=\"\",\"\",'1. Order'!K933)","v":""},{"$f":"IF('1. Order'!M933=\"\",\"\",'1. Order'!M933)","v":""},null,null,null,{"$f":"IF('1. Order'!AF933=\"\",\"\",'1. Order'!AF933)","v":""}]
[{"$f":"IF('1. Order'!B934=\"\",\"\",'1. Order'!B934)","v":""},{"$f":"IF('1. Order'!I934=\"\",\"\",'1. Order'!I934)","v":""},{"$f":"IF('1. Order'!J934=\"\",\"\",'1. Order'!J934)","v":""},{"$f":"IF('1. Order'!K934=\"\",\"\",'1. Order'!K934)","v":""},{"$f":"IF('1. Order'!M934=\"\",\"\",'1. Order'!M934)","v":""},null,null,null,{"$f":"IF('1. Order'!AF934=\"\",\"\",'1. Order'!AF934)","v":""}]
[{"$f":"IF('1. Order'!B935=\"\",\"\",'1. Order'!B935)","v":""},{"$f":"IF('1. Order'!I935=\"\",\"\",'1. Order'!I935)","v":""},{"$f":"IF('1. Order'!J935=\"\",\"\",'1. Order'!J935)","v":""},{"$f":"IF('1. Order'!K935=\"\",\"\",'1. Order'!K935)","v":""},{"$f":"IF('1. Order'!M935=\"\",\"\",'1. Order'!M935)","v":""},null,null,null,{"$f":"IF('1. Order'!AF935=\"\",\"\",'1. Order'!AF935)","v":""}]
[{"$f":"IF('1. Order'!B936=\"\",\"\",'1. Order'!B936)","v":""},{"$f":"IF('1. Order'!I936=\"\",\"\",'1. Order'!I936)","v":""},{"$f":"IF('1. Order'!J936=\"\",\"\",'1. Order'!J936)","v":""},{"$f":"IF('1. Order'!K936=\"\",\"\",'1. Order'!K936)","v":""},{"$f":"IF('1. Order'!M936=\"\",\"\",'1. Order'!M936)","v":""},null,null,null,{"$f":"IF('1. Order'!AF936=\"\",\"\",'1. Order'!AF936)","v":""}]
[{"$f":"IF('1. Order'!B937=\"\",\"\",'1. Order'!B937)","v":""},{"$f":"IF('1. Order'!I937=\"\",\"\",'1. Order'!I937)","v":""},{"$f":"IF('1. Order'!J937=\"\",\"\",'1. Order'!J937)","v":""},{"$f":"IF('1. Order'!K937=\"\",\"\",'1. Order'!K937)","v":""},{"$f":"IF('1. Order'!M937=\"\",\"\",'1. Order'!M937)","v":""},null,null,null,{"$f":"IF('1. Order'!AF937=\"\",\"\",'1. Order'!AF937)","v":""}]
[{"$f":"IF('1. Order'!B938=\"\",\"\",'1. Order'!B938)","v":""},{"$f":"IF('1. Order'!I938=\"\",\"\",'1. Order'!I938)","v":""},{"$f":"IF('1. Order'!J938=\"\",\"\",'1. Order'!J938)","v":""},{"$f":"IF('1. Order'!K938=\"\",\"\",'1. Order'!K938)","v":""},{"$f":"IF('1. Order'!M938=\"\",\"\",'1. Order'!M938)","v":""},null,null,null,{"$f":"IF('1. Order'!AF938=\"\",\"\",'1. Order'!AF938)","v":""}]
[{"$f":"IF('1. Order'!B939=\"\",\"\",'1. Order'!B939)","v":""},{"$f":"IF('1. Order'!I939=\"\",\"\",'1. Order'!I939)","v":""},{"$f":"IF('1. Order'!J939=\"\",\"\",'1. Order'!J939)","v":""},{"$f":"IF('1. Order'!K939=\"\",\"\",'1. Order'!K939)","v":""},{"$f":"IF('1. Order'!M939=\"\",\"\",'1. Order'!M939)","v":""},null,null,null,{"$f":"IF('1. Order'!AF939=\"\",\"\",'1. Order'!AF939)","v":""}]
[{"$f":"IF('1. Order'!B940=\"\",\"\",'1. Order'!B940)","v":""},{"$f":"IF('1. Order'!I940=\"\",\"\",'1. Order'!I940)","v":""},{"$f":"IF('1. Order'!J940=\"\",\"\",'1. Order'!J940)","v":""},{"$f":"IF('1. Order'!K940=\"\",\"\",'1. Order'!K940)","v":""},{"$f":"IF('1. Order'!M940=\"\",\"\",'1. Order'!M940)","v":""},null,null,null,{"$f":"IF('1. Order'!AF940=\"\",\"\",'1. Order'!AF940)","v":""}]
[{"$f":"IF('1. Order'!B941=\"\",\"\",'1. Order'!B941)","v":""},{"$f":"IF('1. Order'!I941=\"\",\"\",'1. Order'!I941)","v":""},{"$f":"IF('1. Order'!J941=\"\",\"\",'1. Order'!J941)","v":""},{"$f":"IF('1. Order'!K941=\"\",\"\",'1. Order'!K941)","v":""},{"$f":"IF('1. Order'!M941=\"\",\"\",'1. Order'!M941)","v":""},null,null,null,{"$f":"IF('1. Order'!AF941=\"\",\"\",'1. Order'!AF941)","v":""}]
[{"$f":"IF('1. Order'!B942=\"\",\"\",'1. Order'!B942)","v":""},{"$f":"IF('1. Order'!I942=\"\",\"\",'1. Order'!I942)","v":""},{"$f":"IF('1. Order'!J942=\"\",\"\",'1. Order'!J942)","v":""},{"$f":"IF('1. Order'!K942=\"\",\"\",'1. Order'!K942)","v":""},{"$f":"IF('1. Order'!M942=\"\",\"\",'1. Order'!M942)","v":""},null,null,null,{"$f":"IF('1. Order'!AF942=\"\",\"\",'1. Order'!AF942)","v":""}]
[{"$f":"IF('1. Order'!B943=\"\",\"\",'1. Order'!B943)","v":""},{"$f":"IF('1. Order'!I943=\"\",\"\",'1. Order'!I943)","v":""},{"$f":"IF('1. Order'!J943=\"\",\"\",'1. Order'!J943)","v":""},{"$f":"IF('1. Order'!K943=\"\",\"\",'1. Order'!K943)","v":""},{"$f":"IF('1. Order'!M943=\"\",\"\",'1. Order'!M943)","v":""},null,null,null,{"$f":"IF('1. Order'!AF943=\"\",\"\",'1. Order'!AF943)","v":""}]
[{"$f":"IF('1. Order'!B944=\"\",\"\",'1. Order'!B944)","v":""},{"$f":"IF('1. Order'!I944=\"\",\"\",'1. Order'!I944)","v":""},{"$f":"IF('1. Order'!J944=\"\",\"\",'1. Order'!J944)","v":""},{"$f":"IF('1. Order'!K944=\"\",\"\",'1. Order'!K944)","v":""},{"$f":"IF('1. Order'!M944=\"\",\"\",'1. Order'!M944)","v":""},null,null,null,{"$f":"IF('1. Order'!AF944=\"\",\"\",'1. Order'!AF944)","v":""}]
[{"$f":"IF('1. Order'!B945=\"\",\"\",'1. Order'!B945)","v":""},{"$f":"IF('1. Order'!I945=\"\",\"\",'1. Order'!I945)","v":""},{"$f":"IF('1. Order'!J945=\"\",\"\",'1. Order'!J945)","v":""},{"$f":"IF('1. Order'!K945=\"\",\"\",'1. Order'!K945)","v":""},{"$f":"IF('1. Order'!M945=\"\",\"\",'1. Order'!M945)","v":""},null,null,null,{"$f":"IF('1. Order'!AF945=\"\",\"\",'1. Order'!AF945)","v":""}]
[{"$f":"IF('1. Order'!B946=\"\",\"\",'1. Order'!B946)","v":""},{"$f":"IF('1. Order'!I946=\"\",\"\",'1. Order'!I946)","v":""},{"$f":"IF('1. Order'!J946=\"\",\"\",'1. Order'!J946)","v":""},{"$f":"IF('1. Order'!K946=\"\",\"\",'1. Order'!K946)","v":""},{"$f":"IF('1. Order'!M946=\"\",\"\",'1. Order'!M946)","v":""},null,null,null,{"$f":"IF('1. Order'!AF946=\"\",\"\",'1. Order'!AF946)","v":""}]
[{"$f":"IF('1. Order'!B947=\"\",\"\",'1. Order'!B947)","v":""},{"$f":"IF('1. Order'!I947=\"\",\"\",'1. Order'!I947)","v":""},{"$f":"IF('1. Order'!J947=\"\",\"\",'1. Order'!J947)","v":""},{"$f":"IF('1. Order'!K947=\"\",\"\",'1. Order'!K947)","v":""},{"$f":"IF('1. Order'!M947=\"\",\"\",'1. Order'!M947)","v":""},null,null,null,{"$f":"IF('1. Order'!AF947=\"\",\"\",'1. Order'!AF947)","v":""}]
[{"$f":"IF('1. Order'!B948=\"\",\"\",'1. Order'!B948)","v":""},{"$f":"IF('1. Order'!I948=\"\",\"\",'1. Order'!I948)","v":""},{"$f":"IF('1. Order'!J948=\"\",\"\",'1. Order'!J948)","v":""},{"$f":"IF('1. Order'!K948=\"\",\"\",'1. Order'!K948)","v":""},{"$f":"IF('1. Order'!M948=\"\",\"\",'1. Order'!M948)","v":""},null,null,null,{"$f":"IF('1. Order'!AF948=\"\",\"\",'1. Order'!AF948)","v":""}]
[{"$f":"IF('1. Order'!B949=\"\",\"\",'1. Order'!B949)","v":""},{"$f":"IF('1. Order'!I949=\"\",\"\",'1. Order'!I949)","v":""},{"$f":"IF('1. Order'!J949=\"\",\"\",'1. Order'!J949)","v":""},{"$f":"IF('1. Order'!K949=\"\",\"\",'1. Order'!K949)","v":""},{"$f":"IF('1. Order'!M949=\"\",\"\",'1. Order'!M949)","v":""},null,null,null,{"$f":"IF('1. Order'!AF949=\"\",\"\",'1. Order'!AF949)","v":""}]
[{"$f":"IF('1. Order'!B950=\"\",\"\",'1. Order'!B950)","v":""},{"$f":"IF('1. Order'!I950=\"\",\"\",'1. Order'!I950)","v":""},{"$f":"IF('1. Order'!J950=\"\",\"\",'1. Order'!J950)","v":""},{"$f":"IF('1. Order'!K950=\"\",\"\",'1. Order'!K950)","v":""},{"$f":"IF('1. Order'!M950=\"\",\"\",'1. Order'!M950)","v":""},null,null,null,{"$f":"IF('1. Order'!AF950=\"\",\"\",'1. Order'!AF950)","v":""}]
[{"$f":"IF('1. Order'!B951=\"\",\"\",'1. Order'!B951)","v":""},{"$f":"IF('1. Order'!I951=\"\",\"\",'1. Order'!I951)","v":""},{"$f":"IF('1. Order'!J951=\"\",\"\",'1. Order'!J951)","v":""},{"$f":"IF('1. Order'!K951=\"\",\"\",'1. Order'!K951)","v":""},{"$f":"IF('1. Order'!M951=\"\",\"\",'1. Order'!M951)","v":""},null,null,null,{"$f":"IF('1. Order'!AF951=\"\",\"\",'1. Order'!AF951)","v":""}]
[{"$f":"IF('1. Order'!B952=\"\",\"\",'1. Order'!B952)","v":""},{"$f":"IF('1. Order'!I952=\"\",\"\",'1. Order'!I952)","v":""},{"$f":"IF('1. Order'!J952=\"\",\"\",'1. Order'!J952)","v":""},{"$f":"IF('1. Order'!K952=\"\",\"\",'1. Order'!K952)","v":""},{"$f":"IF('1. Order'!M952=\"\",\"\",'1. Order'!M952)","v":""},null,null,null,{"$f":"IF('1. Order'!AF952=\"\",\"\",'1. Order'!AF952)","v":""}]
[{"$f":"IF('1. Order'!B953=\"\",\"\",'1. Order'!B953)","v":""},{"$f":"IF('1. Order'!I953=\"\",\"\",'1. Order'!I953)","v":""},{"$f":"IF('1. Order'!J953=\"\",\"\",'1. Order'!J953)","v":""},{"$f":"IF('1. Order'!K953=\"\",\"\",'1. Order'!K953)","v":""},{"$f":"IF('1. Order'!M953=\"\",\"\",'1. Order'!M953)","v":""},null,null,null,{"$f":"IF('1. Order'!AF953=\"\",\"\",'1. Order'!AF953)","v":""}]
[{"$f":"IF('1. Order'!B954=\"\",\"\",'1. Order'!B954)","v":""},{"$f":"IF('1. Order'!I954=\"\",\"\",'1. Order'!I954)","v":""},{"$f":"IF('1. Order'!J954=\"\",\"\",'1. Order'!J954)","v":""},{"$f":"IF('1. Order'!K954=\"\",\"\",'1. Order'!K954)","v":""},{"$f":"IF('1. Order'!M954=\"\",\"\",'1. Order'!M954)","v":""},null,null,null,{"$f":"IF('1. Order'!AF954=\"\",\"\",'1. Order'!AF954)","v":""}]
[{"$f":"IF('1. Order'!B955=\"\",\"\",'1. Order'!B955)","v":""},{"$f":"IF('1. Order'!I955=\"\",\"\",'1. Order'!I955)","v":""},{"$f":"IF('1. Order'!J955=\"\",\"\",'1. Order'!J955)","v":""},{"$f":"IF('1. Order'!K955=\"\",\"\",'1. Order'!K955)","v":""},{"$f":"IF('1. Order'!M955=\"\",\"\",'1. Order'!M955)","v":""},null,null,null,{"$f":"IF('1. Order'!AF955=\"\",\"\",'1. Order'!AF955)","v":""}]
[{"$f":"IF('1. Order'!B956=\"\",\"\",'1. Order'!B956)","v":""},{"$f":"IF('1. Order'!I956=\"\",\"\",'1. Order'!I956)","v":""},{"$f":"IF('1. Order'!J956=\"\",\"\",'1. Order'!J956)","v":""},{"$f":"IF('1. Order'!K956=\"\",\"\",'1. Order'!K956)","v":""},{"$f":"IF('1. Order'!M956=\"\",\"\",'1. Order'!M956)","v":""},null,null,null,{"$f":"IF('1. Order'!AF956=\"\",\"\",'1. Order'!AF956)","v":""}]
[{"$f":"IF('1. Order'!B957=\"\",\"\",'1. Order'!B957)","v":""},{"$f":"IF('1. Order'!I957=\"\",\"\",'1. Order'!I957)","v":""},{"$f":"IF('1. Order'!J957=\"\",\"\",'1. Order'!J957)","v":""},{"$f":"IF('1. Order'!K957=\"\",\"\",'1. Order'!K957)","v":""},{"$f":"IF('1. Order'!M957=\"\",\"\",'1. Order'!M957)","v":""},null,null,null,{"$f":"IF('1. Order'!AF957=\"\",\"\",'1. Order'!AF957)","v":""}]
[{"$f":"IF('1. Order'!B958=\"\",\"\",'1. Order'!B958)","v":""},{"$f":"IF('1. Order'!I958=\"\",\"\",'1. Order'!I958)","v":""},{"$f":"IF('1. Order'!J958=\"\",\"\",'1. Order'!J958)","v":""},{"$f":"IF('1. Order'!K958=\"\",\"\",'1. Order'!K958)","v":""},{"$f":"IF('1. Order'!M958=\"\",\"\",'1. Order'!M958)","v":""},null,null,null,{"$f":"IF('1. Order'!AF958=\"\",\"\",'1. Order'!AF958)","v":""}]
[{"$f":"IF('1. Order'!B959=\"\",\"\",'1. Order'!B959)","v":""},{"$f":"IF('1. Order'!I959=\"\",\"\",'1. Order'!I959)","v":""},{"$f":"IF('1. Order'!J959=\"\",\"\",'1. Order'!J959)","v":""},{"$f":"IF('1. Order'!K959=\"\",\"\",'1. Order'!K959)","v":""},{"$f":"IF('1. Order'!M959=\"\",\"\",'1. Order'!M959)","v":""},null,null,null,{"$f":"IF('1. Order'!AF959=\"\",\"\",'1. Order'!AF959)","v":""}]
[{"$f":"IF('1. Order'!B960=\"\",\"\",'1. Order'!B960)","v":""},{"$f":"IF('1. Order'!I960=\"\",\"\",'1. Order'!I960)","v":""},{"$f":"IF('1. Order'!J960=\"\",\"\",'1. Order'!J960)","v":""},{"$f":"IF('1. Order'!K960=\"\",\"\",'1. Order'!K960)","v":""},{"$f":"IF('1. Order'!M960=\"\",\"\",'1. Order'!M960)","v":""},null,null,null,{"$f":"IF('1. Order'!AF960=\"\",\"\",'1. Order'!AF960)","v":""}]
[{"$f":"IF('1. Order'!B961=\"\",\"\",'1. Order'!B961)","v":""},{"$f":"IF('1. Order'!I961=\"\",\"\",'1. Order'!I961)","v":""},{"$f":"IF('1. Order'!J961=\"\",\"\",'1. Order'!J961)","v":""},{"$f":"IF('1. Order'!K961=\"\",\"\",'1. Order'!K961)","v":""},{"$f":"IF('1. Order'!M961=\"\",\"\",'1. Order'!M961)","v":""},null,null,null,{"$f":"IF('1. Order'!AF961=\"\",\"\",'1. Order'!AF961)","v":""}]
[{"$f":"IF('1. Order'!B962=\"\",\"\",'1. Order'!B962)","v":""},{"$f":"IF('1. Order'!I962=\"\",\"\",'1. Order'!I962)","v":""},{"$f":"IF('1. Order'!J962=\"\",\"\",'1. Order'!J962)","v":""},{"$f":"IF('1. Order'!K962=\"\",\"\",'1. Order'!K962)","v":""},{"$f":"IF('1. Order'!M962=\"\",\"\",'1. Order'!M962)","v":""},null,null,null,{"$f":"IF('1. Order'!AF962=\"\",\"\",'1. Order'!AF962)","v":""}]
[{"$f":"IF('1. Order'!B963=\"\",\"\",'1. Order'!B963)","v":""},{"$f":"IF('1. Order'!I963=\"\",\"\",'1. Order'!I963)","v":""},{"$f":"IF('1. Order'!J963=\"\",\"\",'1. Order'!J963)","v":""},{"$f":"IF('1. Order'!K963=\"\",\"\",'1. Order'!K963)","v":""},{"$f":"IF('1. Order'!M963=\"\",\"\",'1. Order'!M963)","v":""},null,null,null,{"$f":"IF('1. Order'!AF963=\"\",\"\",'1. Order'!AF963)","v":""}]
[{"$f":"IF('1. Order'!B964=\"\",\"\",'1. Order'!B964)","v":""},{"$f":"IF('1. Order'!I964=\"\",\"\",'1. Order'!I964)","v":""},{"$f":"IF('1. Order'!J964=\"\",\"\",'1. Order'!J964)","v":""},{"$f":"IF('1. Order'!K964=\"\",\"\",'1. Order'!K964)","v":""},{"$f":"IF('1. Order'!M964=\"\",\"\",'1. Order'!M964)","v":""},null,null,null,{"$f":"IF('1. Order'!AF964=\"\",\"\",'1. Order'!AF964)","v":""}]
[{"$f":"IF('1. Order'!B965=\"\",\"\",'1. Order'!B965)","v":""},{"$f":"IF('1. Order'!I965=\"\",\"\",'1. Order'!I965)","v":""},{"$f":"IF('1. Order'!J965=\"\",\"\",'1. Order'!J965)","v":""},{"$f":"IF('1. Order'!K965=\"\",\"\",'1. Order'!K965)","v":""},{"$f":"IF('1. Order'!M965=\"\",\"\",'1. Order'!M965)","v":""},null,null,null,{"$f":"IF('1. Order'!AF965=\"\",\"\",'1. Order'!AF965)","v":""}]
[{"$f":"IF('1. Order'!B966=\"\",\"\",'1. Order'!B966)","v":""},{"$f":"IF('1. Order'!I966=\"\",\"\",'1. Order'!I966)","v":""},{"$f":"IF('1. Order'!J966=\"\",\"\",'1. Order'!J966)","v":""},{"$f":"IF('1. Order'!K966=\"\",\"\",'1. Order'!K966)","v":""},{"$f":"IF('1. Order'!M966=\"\",\"\",'1. Order'!M966)","v":""},null,null,null,{"$f":"IF('1. Order'!AF966=\"\",\"\",'1. Order'!AF966)","v":""}]
[{"$f":"IF('1. Order'!B967=\"\",\"\",'1. Order'!B967)","v":""},{"$f":"IF('1. Order'!I967=\"\",\"\",'1. Order'!I967)","v":""},{"$f":"IF('1. Order'!J967=\"\",\"\",'1. Order'!J967)","v":""},{"$f":"IF('1. Order'!K967=\"\",\"\",'1. Order'!K967)","v":""},{"$f":"IF('1. Order'!M967=\"\",\"\",'1. Order'!M967)","v":""},null,null,null,{"$f":"IF('1. Order'!AF967=\"\",\"\",'1. Order'!AF967)","v":""}]
[{"$f":"IF('1. Order'!B968=\"\",\"\",'1. Order'!B968)","v":""},{"$f":"IF('1. Order'!I968=\"\",\"\",'1. Order'!I968)","v":""},{"$f":"IF('1. Order'!J968=\"\",\"\",'1. Order'!J968)","v":""},{"$f":"IF('1. Order'!K968=\"\",\"\",'1. Order'!K968)","v":""},{"$f":"IF('1. Order'!M968=\"\",\"\",'1. Order'!M968)","v":""},null,null,null,{"$f":"IF('1. Order'!AF968=\"\",\"\",'1. Order'!AF968)","v":""}]
[{"$f":"IF('1. Order'!B969=\"\",\"\",'1. Order'!B969)","v":""},{"$f":"IF('1. Order'!I969=\"\",\"\",'1. Order'!I969)","v":""},{"$f":"IF('1. Order'!J969=\"\",\"\",'1. Order'!J969)","v":""},{"$f":"IF('1. Order'!K969=\"\",\"\",'1. Order'!K969)","v":""},{"$f":"IF('1. Order'!M969=\"\",\"\",'1. Order'!M969)","v":""},null,null,null,{"$f":"IF('1. Order'!AF969=\"\",\"\",'1. Order'!AF969)","v":""}]
[{"$f":"IF('1. Order'!B970=\"\",\"\",'1. Order'!B970)","v":""},{"$f":"IF('1. Order'!I970=\"\",\"\",'1. Order'!I970)","v":""},{"$f":"IF('1. Order'!J970=\"\",\"\",'1. Order'!J970)","v":""},{"$f":"IF('1. Order'!K970=\"\",\"\",'1. Order'!K970)","v":""},{"$f":"IF('1. Order'!M970=\"\",\"\",'1. Order'!M970)","v":""},null,null,null,{"$f":"IF('1. Order'!AF970=\"\",\"\",'1. Order'!AF970)","v":""}]
[{"$f":"IF('1. Order'!B971=\"\",\"\",'1. Order'!B971)","v":""},{"$f":"IF('1. Order'!I971=\"\",\"\",'1. Order'!I971)","v":""},{"$f":"IF('1. Order'!J971=\"\",\"\",'1. Order'!J971)","v":""},{"$f":"IF('1. Order'!K971=\"\",\"\",'1. Order'!K971)","v":""},{"$f":"IF('1. Order'!M971=\"\",\"\",'1. Order'!M971)","v":""},null,null,null,{"$f":"IF('1. Order'!AF971=\"\",\"\",'1. Order'!AF971)","v":""}]
[{"$f":"IF('1. Order'!B972=\"\",\"\",'1. Order'!B972)","v":""},{"$f":"IF('1. Order'!I972=\"\",\"\",'1. Order'!I972)","v":""},{"$f":"IF('1. Order'!J972=\"\",\"\",'1. Order'!J972)","v":""},{"$f":"IF('1. Order'!K972=\"\",\"\",'1. Order'!K972)","v":""},{"$f":"IF('1. Order'!M972=\"\",\"\",'1. Order'!M972)","v":""},null,null,null,{"$f":"IF('1. Order'!AF972=\"\",\"\",'1. Order'!AF972)","v":""}]
[{"$f":"IF('1. Order'!B973=\"\",\"\",'1. Order'!B973)","v":""},{"$f":"IF('1. Order'!I973=\"\",\"\",'1. Order'!I973)","v":""},{"$f":"IF('1. Order'!J973=\"\",\"\",'1. Order'!J973)","v":""},{"$f":"IF('1. Order'!K973=\"\",\"\",'1. Order'!K973)","v":""},{"$f":"IF('1. Order'!M973=\"\",\"\",'1. Order'!M973)","v":""},null,null,null,{"$f":"IF('1. Order'!AF973=\"\",\"\",'1. Order'!AF973)","v":""}]
[{"$f":"IF('1. Order'!B974=\"\",\"\",'1. Order'!B974)","v":""},{"$f":"IF('1. Order'!I974=\"\",\"\",'1. Order'!I974)","v":""},{"$f":"IF('1. Order'!J974=\"\",\"\",'1. Order'!J974)","v":""},{"$f":"IF('1. Order'!K974=\"\",\"\",'1. Order'!K974)","v":""},{"$f":"IF('1. Order'!M974=\"\",\"\",'1. Order'!M974)","v":""},null,null,null,{"$f":"IF('1. Order'!AF974=\"\",\"\",'1. Order'!AF974)","v":""}]
[{"$f":"IF('1. Order'!B975=\"\",\"\",'1. Order'!B975)","v":""},{"$f":"IF('1. Order'!I975=\"\",\"\",'1. Order'!I975)","v":""},{"$f":"IF('1. Order'!J975=\"\",\"\",'1. Order'!J975)","v":""},{"$f":"IF('1. Order'!K975=\"\",\"\",'1. Order'!K975)","v":""},{"$f":"IF('1. Order'!M975=\"\",\"\",'1. Order'!M975)","v":""},null,null,null,{"$f":"IF('1. Order'!AF975=\"\",\"\",'1. Order'!AF975)","v":""}]
[{"$f":"IF('1. Order'!B976=\"\",\"\",'1. Order'!B976)","v":""},{"$f":"IF('1. Order'!I976=\"\",\"\",'1. Order'!I976)","v":""},{"$f":"IF('1. Order'!J976=\"\",\"\",'1. Order'!J976)","v":""},{"$f":"IF('1. Order'!K976=\"\",\"\",'1. Order'!K976)","v":""},{"$f":"IF('1. Order'!M976=\"\",\"\",'1. Order'!M976)","v":""},null,null,null,{"$f":"IF('1. Order'!AF976=\"\",\"\",'1. Order'!AF976)","v":""}]
[{"$f":"IF('1. Order'!B977=\"\",\"\",'1. Order'!B977)","v":""},{"$f":"IF('1. Order'!I977=\"\",\"\",'1. Order'!I977)","v":""},{"$f":"IF('1. Order'!J977=\"\",\"\",'1. Order'!J977)","v":""},{"$f":"IF('1. Order'!K977=\"\",\"\",'1. Order'!K977)","v":""},{"$f":"IF('1. Order'!M977=\"\",\"\",'1. Order'!M977)","v":""},null,null,null,{"$f":"IF('1. Order'!AF977=\"\",\"\",'1. Order'!AF977)","v":""}]
[{"$f":"IF('1. Order'!B978=\"\",\"\",'1. Order'!B978)","v":""},{"$f":"IF('1. Order'!I978=\"\",\"\",'1. Order'!I978)","v":""},{"$f":"IF('1. Order'!J978=\"\",\"\",'1. Order'!J978)","v":""},{"$f":"IF('1. Order'!K978=\"\",\"\",'1. Order'!K978)","v":""},{"$f":"IF('1. Order'!M978=\"\",\"\",'1. Order'!M978)","v":""},null,null,null,{"$f":"IF('1. Order'!AF978=\"\",\"\",'1. Order'!AF978)","v":""}]
[{"$f":"IF('1. Order'!B979=\"\",\"\",'1. Order'!B979)","v":""},{"$f":"IF('1. Order'!I979=\"\",\"\",'1. Order'!I979)","v":""},{"$f":"IF('1. Order'!J979=\"\",\"\",'1. Order'!J979)","v":""},{"$f":"IF('1. Order'!K979=\"\",\"\",'1. Order'!K979)","v":""},{"$f":"IF('1. Order'!M979=\"\",\"\",'1. Order'!M979)","v":""},null,null,null,{"$f":"IF('1. Order'!AF979=\"\",\"\",'1. Order'!AF979)","v":""}]
[{"$f":"IF('1. Order'!B980=\"\",\"\",'1. Order'!B980)","v":""},{"$f":"IF('1. Order'!I980=\"\",\"\",'1. Order'!I980)","v":""},{"$f":"IF('1. Order'!J980=\"\",\"\",'1. Order'!J980)","v":""},{"$f":"IF('1. Order'!K980=\"\",\"\",'1. Order'!K980)","v":""},{"$f":"IF('1. Order'!M980=\"\",\"\",'1. Order'!M980)","v":""},null,null,null,{"$f":"IF('1. Order'!AF980=\"\",\"\",'1. Order'!AF980)","v":""}]
[{"$f":"IF('1. Order'!B981=\"\",\"\",'1. Order'!B981)","v":""},{"$f":"IF('1. Order'!I981=\"\",\"\",'1. Order'!I981)","v":""},{"$f":"IF('1. Order'!J981=\"\",\"\",'1. Order'!J981)","v":""},{"$f":"IF('1. Order'!K981=\"\",\"\",'1. Order'!K981)","v":""},{"$f":"IF('1. Order'!M981=\"\",\"\",'1. Order'!M981)","v":""},null,null,null,{"$f":"IF('1. Order'!AF981=\"\",\"\",'1. Order'!AF981)","v":""}]
[{"$f":"IF('1. Order'!B982=\"\",\"\",'1. Order'!B982)","v":""},{"$f":"IF('1. Order'!I982=\"\",\"\",'1. Order'!I982)","v":""},{"$f":"IF('1. Order'!J982=\"\",\"\",'1. Order'!J982)","v":""},{"$f":"IF('1. Order'!K982=\"\",\"\",'1. Order'!K982)","v":""},{"$f":"IF('1. Order'!M982=\"\",\"\",'1. Order'!M982)","v":""},null,null,null,{"$f":"IF('1. Order'!AF982=\"\",\"\",'1. Order'!AF982)","v":""}]
[{"$f":"IF('1. Order'!B983=\"\",\"\",'1. Order'!B983)","v":""},{"$f":"IF('1. Order'!I983=\"\",\"\",'1. Order'!I983)","v":""},{"$f":"IF('1. Order'!J983=\"\",\"\",'1. Order'!J983)","v":""},{"$f":"IF('1. Order'!K983=\"\",\"\",'1. Order'!K983)","v":""},{"$f":"IF('1. Order'!M983=\"\",\"\",'1. Order'!M983)","v":""},null,null,null,{"$f":"IF('1. Order'!AF983=\"\",\"\",'1. Order'!AF983)","v":""}]
[{"$f":"IF('1. Order'!B984=\"\",\"\",'1. Order'!B984)","v":""},{"$f":"IF('1. Order'!I984=\"\",\"\",'1. Order'!I984)","v":""},{"$f":"IF('1. Order'!J984=\"\",\"\",'1. Order'!J984)","v":""},{"$f":"IF('1. Order'!K984=\"\",\"\",'1. Order'!K984)","v":""},{"$f":"IF('1. Order'!M984=\"\",\"\",'1. Order'!M984)","v":""},null,null,null,{"$f":"IF('1. Order'!AF984=\"\",\"\",'1. Order'!AF984)","v":""}]
[{"$f":"IF('1. Order'!B985=\"\",\"\",'1. Order'!B985)","v":""},{"$f":"IF('1. Order'!I985=\"\",\"\",'1. Order'!I985)","v":""},{"$f":"IF('1. Order'!J985=\"\",\"\",'1. Order'!J985)","v":""},{"$f":"IF('1. Order'!K985=\"\",\"\",'1. Order'!K985)","v":""},{"$f":"IF('1. Order'!M985=\"\",\"\",'1. Order'!M985)","v":""},null,null,null,{"$f":"IF('1. Order'!AF985=\"\",\"\",'1. Order'!AF985)","v":""}]
[{"$f":"IF('1. Order'!B986=\"\",\"\",'1. Order'!B986)","v":""},{"$f":"IF('1. Order'!I986=\"\",\"\",'1. Order'!I986)","v":""},{"$f":"IF('1. Order'!J986=\"\",\"\",'1. Order'!J986)","v":""},{"$f":"IF('1. Order'!K986=\"\",\"\",'1. Order'!K986)","v":""},{"$f":"IF('1. Order'!M986=\"\",\"\",'1. Order'!M986)","v":""},null,null,null,{"$f":"IF('1. Order'!AF986=\"\",\"\",'1. Order'!AF986)","v":""}]
[{"$f":"IF('1. Order'!B987=\"\",\"\",'1. Order'!B987)","v":""},{"$f":"IF('1. Order'!I987=\"\",\"\",'1. Order'!I987)","v":""},{"$f":"IF('1. Order'!J987=\"\",\"\",'1. Order'!J987)","v":""},{"$f":"IF('1. Order'!K987=\"\",\"\",'1. Order'!K987)","v":""},{"$f":"IF('1. Order'!M987=\"\",\"\",'1. Order'!M987)","v":""},null,null,null,{"$f":"IF('1. Order'!AF987=\"\",\"\",'1. Order'!AF987)","v":""}]
[{"$f":"IF('1. Order'!B988=\"\",\"\",'1. Order'!B988)","v":""},{"$f":"IF('1. Order'!I988=\"\",\"\",'1. Order'!I988)","v":""},{"$f":"IF('1. Order'!J988=\"\",\"\",'1. Order'!J988)","v":""},{"$f":"IF('1. Order'!K988=\"\",\"\",'1. Order'!K988)","v":""},{"$f":"IF('1. Order'!M988=\"\",\"\",'1. Order'!M988)","v":""},null,null,null,{"$f":"IF('1. Order'!AF988=\"\",\"\",'1. Order'!AF988)","v":""}]
[{"$f":"IF('1. Order'!B989=\"\",\"\",'1. Order'!B989)","v":""},{"$f":"IF('1. Order'!I989=\"\",\"\",'1. Order'!I989)","v":""},{"$f":"IF('1. Order'!J989=\"\",\"\",'1. Order'!J989)","v":""},{"$f":"IF('1. Order'!K989=\"\",\"\",'1. Order'!K989)","v":""},{"$f":"IF('1. Order'!M989=\"\",\"\",'1. Order'!M989)","v":""},null,null,null,{"$f":"IF('1. Order'!AF989=\"\",\"\",'1. Order'!AF989)","v":""}]
[{"$f":"IF('1. Order'!B990=\"\",\"\",'1. Order'!B990)","v":""},{"$f":"IF('1. Order'!I990=\"\",\"\",'1. Order'!I990)","v":""},{"$f":"IF('1. Order'!J990=\"\",\"\",'1. Order'!J990)","v":""},{"$f":"IF('1. Order'!K990=\"\",\"\",'1. Order'!K990)","v":""},{"$f":"IF('1. Order'!M990=\"\",\"\",'1. Order'!M990)","v":""},null,null,null,{"$f":"IF('1. Order'!AF990=\"\",\"\",'1. Order'!AF990)","v":""}]
[{"$f":"IF('1. Order'!B991=\"\",\"\",'1. Order'!B991)","v":""},{"$f":"IF('1. Order'!I991=\"\",\"\",'1. Order'!I991)","v":""},{"$f":"IF('1. Order'!J991=\"\",\"\",'1. Order'!J991)","v":""},{"$f":"IF('1. Order'!K991=\"\",\"\",'1. Order'!K991)","v":""},{"$f":"IF('1. Order'!M991=\"\",\"\",'1. Order'!M991)","v":""},null,null,null,{"$f":"IF('1. Order'!AF991=\"\",\"\",'1. Order'!AF991)","v":""}]
[{"$f":"IF('1. Order'!B992=\"\",\"\",'1. Order'!B992)","v":""},{"$f":"IF('1. Order'!I992=\"\",\"\",'1. Order'!I992)","v":""},{"$f":"IF('1. Order'!J992=\"\",\"\",'1. Order'!J992)","v":""},{"$f":"IF('1. Order'!K992=\"\",\"\",'1. Order'!K992)","v":""},{"$f":"IF('1. Order'!M992=\"\",\"\",'1. Order'!M992)","v":""},null,null,null,{"$f":"IF('1. Order'!AF992=\"\",\"\",'1. Order'!AF992)","v":""}]
[{"$f":"IF('1. Order'!B993=\"\",\"\",'1. Order'!B993)","v":""},{"$f":"IF('1. Order'!I993=\"\",\"\",'1. Order'!I993)","v":""},{"$f":"IF('1. Order'!J993=\"\",\"\",'1. Order'!J993)","v":""},{"$f":"IF('1. Order'!K993=\"\",\"\",'1. Order'!K993)","v":""},{"$f":"IF('1. Order'!M993=\"\",\"\",'1. Order'!M993)","v":""},null,null,null,{"$f":"IF('1. Order'!AF993=\"\",\"\",'1. Order'!AF993)","v":""}]
[{"$f":"IF('1. Order'!B994=\"\",\"\",'1. Order'!B994)","v":""},{"$f":"IF('1. Order'!I994=\"\",\"\",'1. Order'!I994)","v":""},{"$f":"IF('1. Order'!J994=\"\",\"\",'1. Order'!J994)","v":""},{"$f":"IF('1. Order'!K994=\"\",\"\",'1. Order'!K994)","v":""},{"$f":"IF('1. Order'!M994=\"\",\"\",'1. Order'!M994)","v":""},null,null,null,{"$f":"IF('1. Order'!AF994=\"\",\"\",'1. Order'!AF994)","v":""}]
[{"$f":"IF('1. Order'!B995=\"\",\"\",'1. Order'!B995)","v":""},{"$f":"IF('1. Order'!I995=\"\",\"\",'1. Order'!I995)","v":""},{"$f":"IF('1. Order'!J995=\"\",\"\",'1. Order'!J995)","v":""},{"$f":"IF('1. Order'!K995=\"\",\"\",'1. Order'!K995)","v":""},{"$f":"IF('1. Order'!M995=\"\",\"\",'1. Order'!M995)","v":""},null,null,null,{"$f":"IF('1. Order'!AF995=\"\",\"\",'1. Order'!AF995)","v":""}]
[{"$f":"IF('1. Order'!B996=\"\",\"\",'1. Order'!B996)","v":""},{"$f":"IF('1. Order'!I996=\"\",\"\",'1. Order'!I996)","v":""},{"$f":"IF('1. Order'!J996=\"\",\"\",'1. Order'!J996)","v":""},{"$f":"IF('1. Order'!K996=\"\",\"\",'1. Order'!K996)","v":""},{"$f":"IF('1. Order'!M996=\"\",\"\",'1. Order'!M996)","v":""},null,null,null,{"$f":"IF('1. Order'!AF996=\"\",\"\",'1. Order'!AF996)","v":""}]
[{"$f":"IF('1. Order'!B997=\"\",\"\",'1. Order'!B997)","v":""},{"$f":"IF('1. Order'!I997=\"\",\"\",'1. Order'!I997)","v":""},{"$f":"IF('1. Order'!J997=\"\",\"\",'1. Order'!J997)","v":""},{"$f":"IF('1. Order'!K997=\"\",\"\",'1. Order'!K997)","v":""},{"$f":"IF('1. Order'!M997=\"\",\"\",'1. Order'!M997)","v":""},null,null,null,{"$f":"IF('1. Order'!AF997=\"\",\"\",'1. Order'!AF997)","v":""}]
[{"$f":"IF('1. Order'!B998=\"\",\"\",'1. Order'!B998)","v":""},{"$f":"IF('1. Order'!I998=\"\",\"\",'1. Order'!I998)","v":""},{"$f":"IF('1. Order'!J998=\"\",\"\",'1. Order'!J998)","v":""},{"$f":"IF('1. Order'!K998=\"\",\"\",'1. Order'!K998)","v":""},{"$f":"IF('1. Order'!M998=\"\",\"\",'1. Order'!M998)","v":""},null,null,null,{"$f":"IF('1. Order'!AF998=\"\",\"\",'1. Order'!AF998)","v":""}]
[{"$f":"IF('1. Order'!B999=\"\",\"\",'1. Order'!B999)","v":""},{"$f":"IF('1. Order'!I999=\"\",\"\",'1. Order'!I999)","v":""},{"$f":"IF('1. Order'!J999=\"\",\"\",'1. Order'!J999)","v":""},{"$f":"IF('1. Order'!K999=\"\",\"\",'1. Order'!K999)","v":""},{"$f":"IF('1. Order'!M999=\"\",\"\",'1. Order'!M999)","v":""},null,null,null,{"$f":"IF('1. Order'!AF999=\"\",\"\",'1. Order'!AF999)","v":""}]
[{"$f":"IF('1. Order'!B1000=\"\",\"\",'1. Order'!B1000)","v":""},{"$f":"IF('1. Order'!I1000=\"\",\"\",'1. Order'!I1000)","v":""},{"$f":"IF('1. Order'!J1000=\"\",\"\",'1. Order'!J1000)","v":""},{"$f":"IF('1. Order'!K1000=\"\",\"\",'1. Order'!K1000)","v":""},{"$f":"IF('1. Order'!M1000=\"\",\"\",'1. Order'!M1000)","v":""},null,null,null,{"$f":"IF('1. Order'!AF1000=\"\",\"\",'1. Order'!AF1000)","v":""}]
[{"$f":"IF('1. Order'!B1001=\"\",\"\",'1. Order'!B1001)","v":""},{"$f":"IF('1. Order'!I1001=\"\",\"\",'1. Order'!I1001)","v":""},{"$f":"IF('1. Order'!J1001=\"\",\"\",'1. Order'!J1001)","v":""},{"$f":"IF('1. Order'!K1001=\"\",\"\",'1. Order'!K1001)","v":""},{"$f":"IF('1. Order'!M1001=\"\",\"\",'1. Order'!M1001)","v":""},null,null,null,{"$f":"IF('1. Order'!AF1001=\"\",\"\",'1. Order'!AF1001)","v":""}]
[{"$f":"IF('1. Order'!B1002=\"\",\"\",'1. Order'!B1002)","v":""},{"$f":"IF('1. Order'!I1002=\"\",\"\",'1. Order'!I1002)","v":""},{"$f":"IF('1. Order'!J1002=\"\",\"\",'1. Order'!J1002)","v":""},{"$f":"IF('1. Order'!K1002=\"\",\"\",'1. Order'!K1002)","v":""},{"$f":"IF('1. Order'!M1002=\"\",\"\",'1. Order'!M1002)","v":""},null,null,null,{"$f":"IF('1. Order'!AF1002=\"\",\"\",'1. Order'!AF1002)","v":""}]
[{"$f":"IF('1. Order'!B1003=\"\",\"\",'1. Order'!B1003)","v":""},{"$f":"IF('1. Order'!I1003=\"\",\"\",'1. Order'!I1003)","v":""},{"$f":"IF('1. Order'!J1003=\"\",\"\",'1. Order'!J1003)","v":""},{"$f":"IF('1. Order'!K1003=\"\",\"\",'1. Order'!K1003)","v":""},{"$f":"IF('1. Order'!M1003=\"\",\"\",'1. Order'!M1003)","v":""},null,null,null,{"$f":"IF('1. Order'!AF1003=\"\",\"\",'1. Order'!AF1003)","v":""}]
[{"$f":"IF('1. Order'!B1004=\"\",\"\",'1. Order'!B1004)","v":""},{"$f":"IF('1. Order'!I1004=\"\",\"\",'1. Order'!I1004)","v":""},{"$f":"IF('1. Order'!J1004=\"\",\"\",'1. Order'!J1004)","v":""},{"$f":"IF('1. Order'!K1004=\"\",\"\",'1. Order'!K1004)","v":""},{"$f":"IF('1. Order'!M1004=\"\",\"\",'1. Order'!M1004)","v":""},null,null,null,{"$f":"IF('1. Order'!AF1004=\"\",\"\",'1. Order'!AF1004)","v":""}]
[{"$f":"IF('1. Order'!B1005=\"\",\"\",'1. Order'!B1005)","v":""},{"$f":"IF('1. Order'!I1005=\"\",\"\",'1. Order'!I1005)","v":""},{"$f":"IF('1. Order'!J1005=\"\",\"\",'1. Order'!J1005)","v":""},{"$f":"IF('1. Order'!K1005=\"\",\"\",'1. Order'!K1005)","v":""},{"$f":"IF('1. Order'!M1005=\"\",\"\",'1. Order'!M1005)","v":""},null,null,null,{"$f":"IF('1. Order'!AF1005=\"\",\"\",'1. Order'!AF1005)","v":""}]
[{"$f":"IF('1. Order'!B1006=\"\",\"\",'1. Order'!B1006)","v":""},{"$f":"IF('1. Order'!I1006=\"\",\"\",'1. Order'!I1006)","v":""},{"$f":"IF('1. Order'!J1006=\"\",\"\",'1. Order'!J1006)","v":""},{"$f":"IF('1. Order'!K1006=\"\",\"\",'1. Order'!K1006)","v":""},{"$f":"IF('1. Order'!M1006=\"\",\"\",'1. Order'!M1006)","v":""},null,null,null,{"$f":"IF('1. Order'!AF1006=\"\",\"\",'1. Order'!AF1006)","v":""}]
[{"$f":"IF('1. Order'!B1007=\"\",\"\",'1. Order'!B1007)","v":""},{"$f":"IF('1. Order'!I1007=\"\",\"\",'1. Order'!I1007)","v":""},{"$f":"IF('1. Order'!J1007=\"\",\"\",'1. Order'!J1007)","v":""},{"$f":"IF('1. Order'!K1007=\"\",\"\",'1. Order'!K1007)","v":""},{"$f":"IF('1. Order'!M1007=\"\",\"\",'1. Order'!M1007)","v":""},null,null,null,{"$f":"IF('1. Order'!AF1007=\"\",\"\",'1. Order'!AF1007)","v":""}]
[{"$f":"IF('1. Order'!B1008=\"\",\"\",'1. Order'!B1008)","v":""},{"$f":"IF('1. Order'!I1008=\"\",\"\",'1. Order'!I1008)","v":""},{"$f":"IF('1. Order'!J1008=\"\",\"\",'1. Order'!J1008)","v":""},{"$f":"IF('1. Order'!K1008=\"\",\"\",'1. Order'!K1008)","v":""},{"$f":"IF('1. Order'!M1008=\"\",\"\",'1. Order'!M1008)","v":""},null,null,null,{"$f":"IF('1. Order'!AF1008=\"\",\"\",'1. Order'!AF1008)","v":""}]
[{"$f":"IF('1. Order'!B1009=\"\",\"\",'1. Order'!B1009)","v":""},{"$f":"IF('1. Order'!I1009=\"\",\"\",'1. Order'!I1009)","v":""},{"$f":"IF('1. Order'!J1009=\"\",\"\",'1. Order'!J1009)","v":""},{"$f":"IF('1. Order'!K1009=\"\",\"\",'1. Order'!K1009)","v":""},{"$f":"IF('1. Order'!M1009=\"\",\"\",'1. Order'!M1009)","v":""},null,null,null,{"$f":"IF('1. Order'!AF1009=\"\",\"\",'1. Order'!AF1009)","v":""}]
[{"$f":"IF('1. Order'!B1010=\"\",\"\",'1. Order'!B1010)","v":""},{"$f":"IF('1. Order'!I1010=\"\",\"\",'1. Order'!I1010)","v":""},{"$f":"IF('1. Order'!J1010=\"\",\"\",'1. Order'!J1010)","v":""},{"$f":"IF('1. Order'!K1010=\"\",\"\",'1. Order'!K1010)","v":""},{"$f":"IF('1. Order'!M1010=\"\",\"\",'1. Order'!M1010)","v":""},null,null,null,{"$f":"IF('1. Order'!AF1010=\"\",\"\",'1. Order'!AF1010)","v":""}]
[{"$f":"IF('1. Order'!B1011=\"\",\"\",'1. Order'!B1011)","v":""},{"$f":"IF('1. Order'!I1011=\"\",\"\",'1. Order'!I1011)","v":""},{"$f":"IF('1. Order'!J1011=\"\",\"\",'1. Order'!J1011)","v":""},{"$f":"IF('1. Order'!K1011=\"\",\"\",'1. Order'!K1011)","v":""},{"$f":"IF('1. Order'!M1011=\"\",\"\",'1. Order'!M1011)","v":""},null,null,null,{"$f":"IF('1. Order'!AF1011=\"\",\"\",'1. Order'!AF1011)","v":""}]
[{"$f":"IF('1. Order'!B1012=\"\",\"\",'1. Order'!B1012)","v":""},{"$f":"IF('1. Order'!I1012=\"\",\"\",'1. Order'!I1012)","v":""},{"$f":"IF('1. Order'!J1012=\"\",\"\",'1. Order'!J1012)","v":""},{"$f":"IF('1. Order'!K1012=\"\",\"\",'1. Order'!K1012)","v":""},{"$f":"IF('1. Order'!M1012=\"\",\"\",'1. Order'!M1012)","v":""},null,null,null,{"$f":"IF('1. Order'!AF1012=\"\",\"\",'1. Order'!AF1012)","v":""}]
[{"$f":"IF('1. Order'!B1013=\"\",\"\",'1. Order'!B1013)","v":""},{"$f":"IF('1. Order'!I1013=\"\",\"\",'1. Order'!I1013)","v":""},{"$f":"IF('1. Order'!J1013=\"\",\"\",'1. Order'!J1013)","v":""},{"$f":"IF('1. Order'!K1013=\"\",\"\",'1. Order'!K1013)","v":""},{"$f":"IF('1. Order'!M1013=\"\",\"\",'1. Order'!M1013)","v":""},null,null,null,{"$f":"IF('1. Order'!AF1013=\"\",\"\",'1. Order'!AF1013)","v":""}]
[{"$f":"IF('1. Order'!B1014=\"\",\"\",'1. Order'!B1014)","v":""},{"$f":"IF('1. Order'!I1014=\"\",\"\",'1. Order'!I1014)","v":""},{"$f":"IF('1. Order'!J1014=\"\",\"\",'1. Order'!J1014)","v":""},{"$f":"IF('1. Order'!K1014=\"\",\"\",'1. Order'!K1014)","v":""},{"$f":"IF('1. Order'!M1014=\"\",\"\",'1. Order'!M1014)","v":""},null,null,null,{"$f":"IF('1. Order'!AF1014=\"\",\"\",'1. Order'!AF1014)","v":""}]
[{"$f":"IF('1. Order'!B1015=\"\",\"\",'1. Order'!B1015)","v":""},{"$f":"IF('1. Order'!I1015=\"\",\"\",'1. Order'!I1015)","v":""},{"$f":"IF('1. Order'!J1015=\"\",\"\",'1. Order'!J1015)","v":""},{"$f":"IF('1. Order'!K1015=\"\",\"\",'1. Order'!K1015)","v":""},{"$f":"IF('1. Order'!M1015=\"\",\"\",'1. Order'!M1015)","v":""},null,null,null,{"$f":"IF('1. Order'!AF1015=\"\",\"\",'1. Order'!AF1015)","v":""}]
[{"$f":"IF('1. Order'!B1016=\"\",\"\",'1. Order'!B1016)","v":""},{"$f":"IF('1. Order'!I1016=\"\",\"\",'1. Order'!I1016)","v":""},{"$f":"IF('1. Order'!J1016=\"\",\"\",'1. Order'!J1016)","v":""},{"$f":"IF('1. Order'!K1016=\"\",\"\",'1. Order'!K1016)","v":""},{"$f":"IF('1. Order'!M1016=\"\",\"\",'1. Order'!M1016)","v":""},null,null,null,{"$f":"IF('1. Order'!AF1016=\"\",\"\",'1. Order'!AF1016)","v":""}]
[{"$f":"IF('1. Order'!B1017=\"\",\"\",'1. Order'!B1017)","v":""},{"$f":"IF('1. Order'!I1017=\"\",\"\",'1. Order'!I1017)","v":""},{"$f":"IF('1. Order'!J1017=\"\",\"\",'1. Order'!J1017)","v":""},{"$f":"IF('1. Order'!K1017=\"\",\"\",'1. Order'!K1017)","v":""},{"$f":"IF('1. Order'!M1017=\"\",\"\",'1. Order'!M1017)","v":""},null,null,null,{"$f":"IF('1. Order'!AF1017=\"\",\"\",'1. Order'!AF1017)","v":""}]
[{"$f":"IF('1. Order'!B1018=\"\",\"\",'1. Order'!B1018)","v":""},{"$f":"IF('1. Order'!I1018=\"\",\"\",'1. Order'!I1018)","v":""},{"$f":"IF('1. Order'!J1018=\"\",\"\",'1. Order'!J1018)","v":""},{"$f":"IF('1. Order'!K1018=\"\",\"\",'1. Order'!K1018)","v":""},{"$f":"IF('1. Order'!M1018=\"\",\"\",'1. Order'!M1018)","v":""},null,null,null,{"$f":"IF('1. Order'!AF1018=\"\",\"\",'1. Order'!AF1018)","v":""}]
[{"$f":"IF('1. Order'!B1019=\"\",\"\",'1. Order'!B1019)","v":""},{"$f":"IF('1. Order'!I1019=\"\",\"\",'1. Order'!I1019)","v":""},{"$f":"IF('1. Order'!J1019=\"\",\"\",'1. Order'!J1019)","v":""},{"$f":"IF('1. Order'!K1019=\"\",\"\",'1. Order'!K1019)","v":""},{"$f":"IF('1. Order'!M1019=\"\",\"\",'1. Order'!M1019)","v":""},null,null,null,{"$f":"IF('1. Order'!AF1019=\"\",\"\",'1. Order'!AF1019)","v":""}]
[{"$f":"IF('1. Order'!B1020=\"\",\"\",'1. Order'!B1020)","v":""},{"$f":"IF('1. Order'!I1020=\"\",\"\",'1. Order'!I1020)","v":""},{"$f":"IF('1. Order'!J1020=\"\",\"\",'1. Order'!J1020)","v":""},{"$f":"IF('1. Order'!K1020=\"\",\"\",'1. Order'!K1020)","v":""},{"$f":"IF('1. Order'!M1020=\"\",\"\",'1. Order'!M1020)","v":""},null,null,null,{"$f":"IF('1. Order'!AF1020=\"\",\"\",'1. Order'!AF1020)","v":""}]
[{"$f":"IF('1. Order'!B1021=\"\",\"\",'1. Order'!B1021)","v":""},{"$f":"IF('1. Order'!I1021=\"\",\"\",'1. Order'!I1021)","v":""},{"$f":"IF('1. Order'!J1021=\"\",\"\",'1. Order'!J1021)","v":""},{"$f":"IF('1. Order'!K1021=\"\",\"\",'1. Order'!K1021)","v":""},{"$f":"IF('1. Order'!M1021=\"\",\"\",'1. Order'!M1021)","v":""},null,null,null,{"$f":"IF('1. Order'!AF1021=\"\",\"\",'1. Order'!AF1021)","v":""}]
[{"$f":"IF('1. Order'!B1022=\"\",\"\",'1. Order'!B1022)","v":""},{"$f":"IF('1. Order'!I1022=\"\",\"\",'1. Order'!I1022)","v":""},{"$f":"IF('1. Order'!J1022=\"\",\"\",'1. Order'!J1022)","v":""},{"$f":"IF('1. Order'!K1022=\"\",\"\",'1. Order'!K1022)","v":""},{"$f":"IF('1. Order'!M1022=\"\",\"\",'1. Order'!M1022)","v":""},null,null,null,{"$f":"IF('1. Order'!AF1022=\"\",\"\",'1. Order'!AF1022)","v":""}]
[{"$f":"IF('1. Order'!B1023=\"\",\"\",'1. Order'!B1023)","v":""},{"$f":"IF('1. Order'!I1023=\"\",\"\",'1. Order'!I1023)","v":""},{"$f":"IF('1. Order'!J1023=\"\",\"\",'1. Order'!J1023)","v":""},{"$f":"IF('1. Order'!K1023=\"\",\"\",'1. Order'!K1023)","v":""},{"$f":"IF('1. Order'!M1023=\"\",\"\",'1. Order'!M1023)","v":""},null,null,null,{"$f":"IF('1. Order'!AF1023=\"\",\"\",'1. Order'!AF1023)","v":""}]
[{"$f":"IF('1. Order'!B1024=\"\",\"\",'1. Order'!B1024)","v":""},{"$f":"IF('1. Order'!I1024=\"\",\"\",'1. Order'!I1024)","v":""},{"$f":"IF('1. Order'!J1024=\"\",\"\",'1. Order'!J1024)","v":""},{"$f":"IF('1. Order'!K1024=\"\",\"\",'1. Order'!K1024)","v":""},{"$f":"IF('1. Order'!M1024=\"\",\"\",'1. Order'!M1024)","v":""},null,null,null,{"$f":"IF('1. Order'!AF1024=\"\",\"\",'1. Order'!AF1024)","v":""}]
[{"$f":"IF('1. Order'!B1025=\"\",\"\",'1. Order'!B1025)","v":""},{"$f":"IF('1. Order'!I1025=\"\",\"\",'1. Order'!I1025)","v":""},{"$f":"IF('1. Order'!J1025=\"\",\"\",'1. Order'!J1025)","v":""},{"$f":"IF('1. Order'!K1025=\"\",\"\",'1. Order'!K1025)","v":""},{"$f":"IF('1. Order'!M1025=\"\",\"\",'1. Order'!M1025)","v":""},null,null,null,{"$f":"IF('1. Order'!AF1025=\"\",\"\",'1. Order'!AF1025)","v":""}]
[{"$f":"IF('1. Order'!B1026=\"\",\"\",'1. Order'!B1026)","v":""},{"$f":"IF('1. Order'!I1026=\"\",\"\",'1. Order'!I1026)","v":""},{"$f":"IF('1. Order'!J1026=\"\",\"\",'1. Order'!J1026)","v":""},{"$f":"IF('1. Order'!K1026=\"\",\"\",'1. Order'!K1026)","v":""},{"$f":"IF('1. Order'!M1026=\"\",\"\",'1. Order'!M1026)","v":""},null,null,null,{"$f":"IF('1. Order'!AF1026=\"\",\"\",'1. Order'!AF1026)","v":""}]
[{"$f":"IF('1. Order'!B1027=\"\",\"\",'1. Order'!B1027)","v":""},{"$f":"IF('1. Order'!I1027=\"\",\"\",'1. Order'!I1027)","v":""},{"$f":"IF('1. Order'!J1027=\"\",\"\",'1. Order'!J1027)","v":""},{"$f":"IF('1. Order'!K1027=\"\",\"\",'1. Order'!K1027)","v":""},{"$f":"IF('1. Order'!M1027=\"\",\"\",'1. Order'!M1027)","v":""},null,null,null,{"$f":"IF('1. Order'!AF1027=\"\",\"\",'1. Order'!AF1027)","v":""}]
[{"$f":"IF('1. Order'!B1028=\"\",\"\",'1. Order'!B1028)","v":""},{"$f":"IF('1. Order'!I1028=\"\",\"\",'1. Order'!I1028)","v":""},{"$f":"IF('1. Order'!J1028=\"\",\"\",'1. Order'!J1028)","v":""},{"$f":"IF('1. Order'!K1028=\"\",\"\",'1. Order'!K1028)","v":""},{"$f":"IF('1. Order'!M1028=\"\",\"\",'1. Order'!M1028)","v":""},null,null,null,{"$f":"IF('1. Order'!AF1028=\"\",\"\",'1. Order'!AF1028)","v":""}]
[{"$f":"IF('1. Order'!B1029=\"\",\"\",'1. Order'!B1029)","v":""},{"$f":"IF('1. Order'!I1029=\"\",\"\",'1. Order'!I1029)","v":""},{"$f":"IF('1. Order'!J1029=\"\",\"\",'1. Order'!J1029)","v":""},{"$f":"IF('1. Order'!K1029=\"\",\"\",'1. Order'!K1029)","v":""},{"$f":"IF('1. Order'!M1029=\"\",\"\",'1. Order'!M1029)","v":""},null,null,null,{"$f":"IF('1. Order'!AF1029=\"\",\"\",'1. Order'!AF1029)","v":""}]
[{"$f":"IF('1. Order'!B1030=\"\",\"\",'1. Order'!B1030)","v":""},{"$f":"IF('1. Order'!I1030=\"\",\"\",'1. Order'!I1030)","v":""},{"$f":"IF('1. Order'!J1030=\"\",\"\",'1. Order'!J1030)","v":""},{"$f":"IF('1. Order'!K1030=\"\",\"\",'1. Order'!K1030)","v":""},{"$f":"IF('1. Order'!M1030=\"\",\"\",'1. Order'!M1030)","v":""},null,null,null,{"$f":"IF('1. Order'!AF1030=\"\",\"\",'1. Order'!AF1030)","v":""}]
[{"$f":"IF('1. Order'!B1031=\"\",\"\",'1. Order'!B1031)","v":""},{"$f":"IF('1. Order'!I1031=\"\",\"\",'1. Order'!I1031)","v":""},{"$f":"IF('1. Order'!J1031=\"\",\"\",'1. Order'!J1031)","v":""},{"$f":"IF('1. Order'!K1031=\"\",\"\",'1. Order'!K1031)","v":""},{"$f":"IF('1. Order'!M1031=\"\",\"\",'1. Order'!M1031)","v":""},null,null,null,{"$f":"IF('1. Order'!AF1031=\"\",\"\",'1. Order'!AF1031)","v":""}]
[{"$f":"IF('1. Order'!B1032=\"\",\"\",'1. Order'!B1032)","v":""},{"$f":"IF('1. Order'!I1032=\"\",\"\",'1. Order'!I1032)","v":""},{"$f":"IF('1. Order'!J1032=\"\",\"\",'1. Order'!J1032)","v":""},{"$f":"IF('1. Order'!K1032=\"\",\"\",'1. Order'!K1032)","v":""},{"$f":"IF('1. Order'!M1032=\"\",\"\",'1. Order'!M1032)","v":""},null,null,null,{"$f":"IF('1. Order'!AF1032=\"\",\"\",'1. Order'!AF1032)","v":""}]
[{"$f":"IF('1. Order'!B1033=\"\",\"\",'1. Order'!B1033)","v":""},{"$f":"IF('1. Order'!I1033=\"\",\"\",'1. Order'!I1033)","v":""},{"$f":"IF('1. Order'!J1033=\"\",\"\",'1. Order'!J1033)","v":""},{"$f":"IF('1. Order'!K1033=\"\",\"\",'1. Order'!K1033)","v":""},{"$f":"IF('1. Order'!M1033=\"\",\"\",'1. Order'!M1033)","v":""},null,null,null,{"$f":"IF('1. Order'!AF1033=\"\",\"\",'1. Order'!AF1033)","v":""}]
[{"$f":"IF('1. Order'!B1034=\"\",\"\",'1. Order'!B1034)","v":""},{"$f":"IF('1. Order'!I1034=\"\",\"\",'1. Order'!I1034)","v":""},{"$f":"IF('1. Order'!J1034=\"\",\"\",'1. Order'!J1034)","v":""},{"$f":"IF('1. Order'!K1034=\"\",\"\",'1. Order'!K1034)","v":""},{"$f":"IF('1. Order'!M1034=\"\",\"\",'1. Order'!M1034)","v":""},null,null,null,{"$f":"IF('1. Order'!AF1034=\"\",\"\",'1. Order'!AF1034)","v":""}]
[{"$f":"IF('1. Order'!B1035=\"\",\"\",'1. Order'!B1035)","v":""},{"$f":"IF('1. Order'!I1035=\"\",\"\",'1. Order'!I1035)","v":""},{"$f":"IF('1. Order'!J1035=\"\",\"\",'1. Order'!J1035)","v":""},{"$f":"IF('1. Order'!K1035=\"\",\"\",'1. Order'!K1035)","v":""},{"$f":"IF('1. Order'!M1035=\"\",\"\",'1. Order'!M1035)","v":""},null,null,null,{"$f":"IF('1. Order'!AF1035=\"\",\"\",'1. Order'!AF1035)","v":""}]
[{"$f":"IF('1. Order'!B1036=\"\",\"\",'1. Order'!B1036)","v":""},{"$f":"IF('1. Order'!I1036=\"\",\"\",'1. Order'!I1036)","v":""},{"$f":"IF('1. Order'!J1036=\"\",\"\",'1. Order'!J1036)","v":""},{"$f":"IF('1. Order'!K1036=\"\",\"\",'1. Order'!K1036)","v":""},{"$f":"IF('1. Order'!M1036=\"\",\"\",'1. Order'!M1036)","v":""},null,null,null,{"$f":"IF('1. Order'!AF1036=\"\",\"\",'1. Order'!AF1036)","v":""}]
[{"$f":"IF('1. Order'!B1037=\"\",\"\",'1. Order'!B1037)","v":""},{"$f":"IF('1. Order'!I1037=\"\",\"\",'1. Order'!I1037)","v":""},{"$f":"IF('1. Order'!J1037=\"\",\"\",'1. Order'!J1037)","v":""},{"$f":"IF('1. Order'!K1037=\"\",\"\",'1. Order'!K1037)","v":""},{"$f":"IF('1. Order'!M1037=\"\",\"\",'1. Order'!M1037)","v":""},null,null,null,{"$f":"IF('1. Order'!AF1037=\"\",\"\",'1. Order'!AF1037)","v":""}]
[{"$f":"IF('1. Order'!B1038=\"\",\"\",'1. Order'!B1038)","v":""},{"$f":"IF('1. Order'!I1038=\"\",\"\",'1. Order'!I1038)","v":""},{"$f":"IF('1. Order'!J1038=\"\",\"\",'1. Order'!J1038)","v":""},{"$f":"IF('1. Order'!K1038=\"\",\"\",'1. Order'!K1038)","v":""},{"$f":"IF('1. Order'!M1038=\"\",\"\",'1. Order'!M1038)","v":""},null,null,null,{"$f":"IF('1. Order'!AF1038=\"\",\"\",'1. Order'!AF1038)","v":""}]
[{"$f":"IF('1. Order'!B1039=\"\",\"\",'1. Order'!B1039)","v":""},{"$f":"IF('1. Order'!I1039=\"\",\"\",'1. Order'!I1039)","v":""},{"$f":"IF('1. Order'!J1039=\"\",\"\",'1. Order'!J1039)","v":""},{"$f":"IF('1. Order'!K1039=\"\",\"\",'1. Order'!K1039)","v":""},{"$f":"IF('1. Order'!M1039=\"\",\"\",'1. Order'!M1039)","v":""},null,null,null,{"$f":"IF('1. Order'!AF1039=\"\",\"\",'1. Order'!AF1039)","v":""}]
[{"$f":"IF('1. Order'!B1040=\"\",\"\",'1. Order'!B1040)","v":""},{"$f":"IF('1. Order'!I1040=\"\",\"\",'1. Order'!I1040)","v":""},{"$f":"IF('1. Order'!J1040=\"\",\"\",'1. Order'!J1040)","v":""},{"$f":"IF('1. Order'!K1040=\"\",\"\",'1. Order'!K1040)","v":""},{"$f":"IF('1. Order'!M1040=\"\",\"\",'1. Order'!M1040)","v":""},null,null,null,{"$f":"IF('1. Order'!AF1040=\"\",\"\",'1. Order'!AF1040)","v":""}]
[{"$f":"IF('1. Order'!B1041=\"\",\"\",'1. Order'!B1041)","v":""},{"$f":"IF('1. Order'!I1041=\"\",\"\",'1. Order'!I1041)","v":""},{"$f":"IF('1. Order'!J1041=\"\",\"\",'1. Order'!J1041)","v":""},{"$f":"IF('1. Order'!K1041=\"\",\"\",'1. Order'!K1041)","v":""},{"$f":"IF('1. Order'!M1041=\"\",\"\",'1. Order'!M1041)","v":""},null,null,null,{"$f":"IF('1. Order'!AF1041=\"\",\"\",'1. Order'!AF1041)","v":""}]
[{"$f":"IF('1. Order'!B1042=\"\",\"\",'1. Order'!B1042)","v":""},{"$f":"IF('1. Order'!I1042=\"\",\"\",'1. Order'!I1042)","v":""},{"$f":"IF('1. Order'!J1042=\"\",\"\",'1. Order'!J1042)","v":""},{"$f":"IF('1. Order'!K1042=\"\",\"\",'1. Order'!K1042)","v":""},{"$f":"IF('1. Order'!M1042=\"\",\"\",'1. Order'!M1042)","v":""},null,null,null,{"$f":"IF('1. Order'!AF1042=\"\",\"\",'1. Order'!AF1042)","v":""}]
[{"$f":"IF('1. Order'!B1043=\"\",\"\",'1. Order'!B1043)","v":""},{"$f":"IF('1. Order'!I1043=\"\",\"\",'1. Order'!I1043)","v":""},{"$f":"IF('1. Order'!J1043=\"\",\"\",'1. Order'!J1043)","v":""},{"$f":"IF('1. Order'!K1043=\"\",\"\",'1. Order'!K1043)","v":""},{"$f":"IF('1. Order'!M1043=\"\",\"\",'1. Order'!M1043)","v":""},null,null,null,{"$f":"IF('1. Order'!AF1043=\"\",\"\",'1. Order'!AF1043)","v":""}]
[{"$f":"IF('1. Order'!B1044=\"\",\"\",'1. Order'!B1044)","v":""},{"$f":"IF('1. Order'!I1044=\"\",\"\",'1. Order'!I1044)","v":""},{"$f":"IF('1. Order'!J1044=\"\",\"\",'1. Order'!J1044)","v":""},{"$f":"IF('1. Order'!K1044=\"\",\"\",'1. Order'!K1044)","v":""},{"$f":"IF('1. Order'!M1044=\"\",\"\",'1. Order'!M1044)","v":""},null,null,null,{"$f":"IF('1. Order'!AF1044=\"\",\"\",'1. Order'!AF1044)","v":""}]
[{"$f":"IF('1. Order'!B1045=\"\",\"\",'1. Order'!B1045)","v":""},{"$f":"IF('1. Order'!I1045=\"\",\"\",'1. Order'!I1045)","v":""},{"$f":"IF('1. Order'!J1045=\"\",\"\",'1. Order'!J1045)","v":""},{"$f":"IF('1. Order'!K1045=\"\",\"\",'1. Order'!K1045)","v":""},{"$f":"IF('1. Order'!M1045=\"\",\"\",'1. Order'!M1045)","v":""},null,null,null,{"$f":"IF('1. Order'!AF1045=\"\",\"\",'1. Order'!AF1045)","v":""}]
[{"$f":"IF('1. Order'!B1046=\"\",\"\",'1. Order'!B1046)","v":""},{"$f":"IF('1. Order'!I1046=\"\",\"\",'1. Order'!I1046)","v":""},{"$f":"IF('1. Order'!J1046=\"\",\"\",'1. Order'!J1046)","v":""},{"$f":"IF('1. Order'!K1046=\"\",\"\",'1. Order'!K1046)","v":""},{"$f":"IF('1. Order'!M1046=\"\",\"\",'1. Order'!M1046)","v":""},null,null,null,{"$f":"IF('1. Order'!AF1046=\"\",\"\",'1. Order'!AF1046)","v":""}]
[{"$f":"IF('1. Order'!B1047=\"\",\"\",'1. Order'!B1047)","v":""},{"$f":"IF('1. Order'!I1047=\"\",\"\",'1. Order'!I1047)","v":""},{"$f":"IF('1. Order'!J1047=\"\",\"\",'1. Order'!J1047)","v":""},{"$f":"IF('1. Order'!K1047=\"\",\"\",'1. Order'!K1047)","v":""},{"$f":"IF('1. Order'!M1047=\"\",\"\",'1. Order'!M1047)","v":""},null,null,null,{"$f":"IF('1. Order'!AF1047=\"\",\"\",'1. Order'!AF1047)","v":""}]
[{"$f":"IF('1. Order'!B1048=\"\",\"\",'1. Order'!B1048)","v":""},{"$f":"IF('1. Order'!I1048=\"\",\"\",'1. Order'!I1048)","v":""},{"$f":"IF('1. Order'!J1048=\"\",\"\",'1. Order'!J1048)","v":""},{"$f":"IF('1. Order'!K1048=\"\",\"\",'1. Order'!K1048)","v":""},{"$f":"IF('1. Order'!M1048=\"\",\"\",'1. Order'!M1048)","v":""},null,null,null,{"$f":"IF('1. Order'!AF1048=\"\",\"\",'1. Order'!AF1048)","v":""}]
[{"$f":"IF('1. Order'!B1049=\"\",\"\",'1. Order'!B1049)","v":""},{"$f":"IF('1. Order'!I1049=\"\",\"\",'1. Order'!I1049)","v":""},{"$f":"IF('1. Order'!J1049=\"\",\"\",'1. Order'!J1049)","v":""},{"$f":"IF('1. Order'!K1049=\"\",\"\",'1. Order'!K1049)","v":""},{"$f":"IF('1. Order'!M1049=\"\",\"\",'1. Order'!M1049)","v":""},null,null,null,{"$f":"IF('1. Order'!AF1049=\"\",\"\",'1. Order'!AF1049)","v":""}]
[{"$f":"IF('1. Order'!B1050=\"\",\"\",'1. Order'!B1050)","v":""},{"$f":"IF('1. Order'!I1050=\"\",\"\",'1. Order'!I1050)","v":""},{"$f":"IF('1. Order'!J1050=\"\",\"\",'1. Order'!J1050)","v":""},{"$f":"IF('1. Order'!K1050=\"\",\"\",'1. Order'!K1050)","v":""},{"$f":"IF('1. Order'!M1050=\"\",\"\",'1. Order'!M1050)","v":""},null,null,null,{"$f":"IF('1. Order'!AF1050=\"\",\"\",'1. Order'!AF1050)","v":""}]
[{"$f":"IF('1. Order'!B1051=\"\",\"\",'1. Order'!B1051)","v":""},{"$f":"IF('1. Order'!I1051=\"\",\"\",'1. Order'!I1051)","v":""},{"$f":"IF('1. Order'!J1051=\"\",\"\",'1. Order'!J1051)","v":""},{"$f":"IF('1. Order'!K1051=\"\",\"\",'1. Order'!K1051)","v":""},{"$f":"IF('1. Order'!M1051=\"\",\"\",'1. Order'!M1051)","v":""},null,null,null,{"$f":"IF('1. Order'!AF1051=\"\",\"\",'1. Order'!AF1051)","v":""}]
[{"$f":"IF('1. Order'!B1052=\"\",\"\",'1. Order'!B1052)","v":""},{"$f":"IF('1. Order'!I1052=\"\",\"\",'1. Order'!I1052)","v":""},{"$f":"IF('1. Order'!J1052=\"\",\"\",'1. Order'!J1052)","v":""},{"$f":"IF('1. Order'!K1052=\"\",\"\",'1. Order'!K1052)","v":""},{"$f":"IF('1. Order'!M1052=\"\",\"\",'1. Order'!M1052)","v":""},null,null,null,{"$f":"IF('1. Order'!AF1052=\"\",\"\",'1. Order'!AF1052)","v":""}]
[{"$f":"IF('1. Order'!B1053=\"\",\"\",'1. Order'!B1053)","v":""},{"$f":"IF('1. Order'!I1053=\"\",\"\",'1. Order'!I1053)","v":""},{"$f":"IF('1. Order'!J1053=\"\",\"\",'1. Order'!J1053)","v":""},{"$f":"IF('1. Order'!K1053=\"\",\"\",'1. Order'!K1053)","v":""},{"$f":"IF('1. Order'!M1053=\"\",\"\",'1. Order'!M1053)","v":""},null,null,null,{"$f":"IF('1. Order'!AF1053=\"\",\"\",'1. Order'!AF1053)","v":""}]
[{"$f":"IF('1. Order'!B1054=\"\",\"\",'1. Order'!B1054)","v":""},{"$f":"IF('1. Order'!I1054=\"\",\"\",'1. Order'!I1054)","v":""},{"$f":"IF('1. Order'!J1054=\"\",\"\",'1. Order'!J1054)","v":""},{"$f":"IF('1. Order'!K1054=\"\",\"\",'1. Order'!K1054)","v":""},{"$f":"IF('1. Order'!M1054=\"\",\"\",'1. Order'!M1054)","v":""},null,null,null,{"$f":"IF('1. Order'!AF1054=\"\",\"\",'1. Order'!AF1054)","v":""}]
[{"$f":"IF('1. Order'!B1055=\"\",\"\",'1. Order'!B1055)","v":""},{"$f":"IF('1. Order'!I1055=\"\",\"\",'1. Order'!I1055)","v":""},{"$f":"IF('1. Order'!J1055=\"\",\"\",'1. Order'!J1055)","v":""},{"$f":"IF('1. Order'!K1055=\"\",\"\",'1. Order'!K1055)","v":""},{"$f":"IF('1. Order'!M1055=\"\",\"\",'1. Order'!M1055)","v":""},null,null,null,{"$f":"IF('1. Order'!AF1055=\"\",\"\",'1. Order'!AF1055)","v":""}]
[{"$f":"IF('1. Order'!B1056=\"\",\"\",'1. Order'!B1056)","v":""},{"$f":"IF('1. Order'!I1056=\"\",\"\",'1. Order'!I1056)","v":""},{"$f":"IF('1. Order'!J1056=\"\",\"\",'1. Order'!J1056)","v":""},{"$f":"IF('1. Order'!K1056=\"\",\"\",'1. Order'!K1056)","v":""},{"$f":"IF('1. Order'!M1056=\"\",\"\",'1. Order'!M1056)","v":""},null,null,null,{"$f":"IF('1. Order'!AF1056=\"\",\"\",'1. Order'!AF1056)","v":""}]
[{"$f":"IF('1. Order'!B1057=\"\",\"\",'1. Order'!B1057)","v":""},{"$f":"IF('1. Order'!I1057=\"\",\"\",'1. Order'!I1057)","v":""},{"$f":"IF('1. Order'!J1057=\"\",\"\",'1. Order'!J1057)","v":""},{"$f":"IF('1. Order'!K1057=\"\",\"\",'1. Order'!K1057)","v":""},{"$f":"IF('1. Order'!M1057=\"\",\"\",'1. Order'!M1057)","v":""},null,null,null,{"$f":"IF('1. Order'!AF1057=\"\",\"\",'1. Order'!AF1057)","v":""}]
[{"$f":"IF('1. Order'!B1058=\"\",\"\",'1. Order'!B1058)","v":""},{"$f":"IF('1. Order'!I1058=\"\",\"\",'1. Order'!I1058)","v":""},{"$f":"IF('1. Order'!J1058=\"\",\"\",'1. Order'!J1058)","v":""},{"$f":"IF('1. Order'!K1058=\"\",\"\",'1. Order'!K1058)","v":""},{"$f":"IF('1. Order'!M1058=\"\",\"\",'1. Order'!M1058)","v":""},null,null,null,{"$f":"IF('1. Order'!AF1058=\"\",\"\",'1. Order'!AF1058)","v":""}]
[{"$f":"IF('1. Order'!B1059=\"\",\"\",'1. Order'!B1059)","v":""},{"$f":"IF('1. Order'!I1059=\"\",\"\",'1. Order'!I1059)","v":""},{"$f":"IF('1. Order'!J1059=\"\",\"\",'1. Order'!J1059)","v":""},{"$f":"IF('1. Order'!K1059=\"\",\"\",'1. Order'!K1059)","v":""},{"$f":"IF('1. Order'!M1059=\"\",\"\",'1. Order'!M1059)","v":""},null,null,null,{"$f":"IF('1. Order'!AF1059=\"\",\"\",'1. Order'!AF1059)","v":""}]
[{"$f":"IF('1. Order'!B1060=\"\",\"\",'1. Order'!B1060)","v":""},{"$f":"IF('1. Order'!I1060=\"\",\"\",'1. Order'!I1060)","v":""},{"$f":"IF('1. Order'!J1060=\"\",\"\",'1. Order'!J1060)","v":""},{"$f":"IF('1. Order'!K1060=\"\",\"\",'1. Order'!K1060)","v":""},{"$f":"IF('1. Order'!M1060=\"\",\"\",'1. Order'!M1060)","v":""},null,null,null,{"$f":"IF('1. Order'!AF1060=\"\",\"\",'1. Order'!AF1060)","v":""}]
[{"$f":"IF('1. Order'!B1061=\"\",\"\",'1. Order'!B1061)","v":""},{"$f":"IF('1. Order'!I1061=\"\",\"\",'1. Order'!I1061)","v":""},{"$f":"IF('1. Order'!J1061=\"\",\"\",'1. Order'!J1061)","v":""},{"$f":"IF('1. Order'!K1061=\"\",\"\",'1. Order'!K1061)","v":""},{"$f":"IF('1. Order'!M1061=\"\",\"\",'1. Order'!M1061)","v":""},null,null,null,{"$f":"IF('1. Order'!AF1061=\"\",\"\",'1. Order'!AF1061)","v":""}]
[{"$f":"IF('1. Order'!B1062=\"\",\"\",'1. Order'!B1062)","v":""},{"$f":"IF('1. Order'!I1062=\"\",\"\",'1. Order'!I1062)","v":""},{"$f":"IF('1. Order'!J1062=\"\",\"\",'1. Order'!J1062)","v":""},{"$f":"IF('1. Order'!K1062=\"\",\"\",'1. Order'!K1062)","v":""},{"$f":"IF('1. Order'!M1062=\"\",\"\",'1. Order'!M1062)","v":""},null,null,null,{"$f":"IF('1. Order'!AF1062=\"\",\"\",'1. Order'!AF1062)","v":""}]
[{"$f":"IF('1. Order'!B1063=\"\",\"\",'1. Order'!B1063)","v":""},{"$f":"IF('1. Order'!I1063=\"\",\"\",'1. Order'!I1063)","v":""},{"$f":"IF('1. Order'!J1063=\"\",\"\",'1. Order'!J1063)","v":""},{"$f":"IF('1. Order'!K1063=\"\",\"\",'1. Order'!K1063)","v":""},{"$f":"IF('1. Order'!M1063=\"\",\"\",'1. Order'!M1063)","v":""},null,null,null,{"$f":"IF('1. Order'!AF1063=\"\",\"\",'1. Order'!AF1063)","v":""}]
[{"$f":"IF('1. Order'!B1064=\"\",\"\",'1. Order'!B1064)","v":""},{"$f":"IF('1. Order'!I1064=\"\",\"\",'1. Order'!I1064)","v":""},{"$f":"IF('1. Order'!J1064=\"\",\"\",'1. Order'!J1064)","v":""},{"$f":"IF('1. Order'!K1064=\"\",\"\",'1. Order'!K1064)","v":""},{"$f":"IF('1. Order'!M1064=\"\",\"\",'1. Order'!M1064)","v":""},null,null,null,{"$f":"IF('1. Order'!AF1064=\"\",\"\",'1. Order'!AF1064)","v":""}]
[{"$f":"IF('1. Order'!B1065=\"\",\"\",'1. Order'!B1065)","v":""},{"$f":"IF('1. Order'!I1065=\"\",\"\",'1. Order'!I1065)","v":""},{"$f":"IF('1. Order'!J1065=\"\",\"\",'1. Order'!J1065)","v":""},{"$f":"IF('1. Order'!K1065=\"\",\"\",'1. Order'!K1065)","v":""},{"$f":"IF('1. Order'!M1065=\"\",\"\",'1. Order'!M1065)","v":""},null,null,null,{"$f":"IF('1. Order'!AF1065=\"\",\"\",'1. Order'!AF1065)","v":""}]
[{"$f":"IF('1. Order'!B1066=\"\",\"\",'1. Order'!B1066)","v":""},{"$f":"IF('1. Order'!I1066=\"\",\"\",'1. Order'!I1066)","v":""},{"$f":"IF('1. Order'!J1066=\"\",\"\",'1. Order'!J1066)","v":""},{"$f":"IF('1. Order'!K1066=\"\",\"\",'1. Order'!K1066)","v":""},{"$f":"IF('1. Order'!M1066=\"\",\"\",'1. Order'!M1066)","v":""},null,null,null,{"$f":"IF('1. Order'!AF1066=\"\",\"\",'1. Order'!AF1066)","v":""}]
[{"$f":"IF('1. Order'!B1067=\"\",\"\",'1. Order'!B1067)","v":""},{"$f":"IF('1. Order'!I1067=\"\",\"\",'1. Order'!I1067)","v":""},{"$f":"IF('1. Order'!J1067=\"\",\"\",'1. Order'!J1067)","v":""},{"$f":"IF('1. Order'!K1067=\"\",\"\",'1. Order'!K1067)","v":""},{"$f":"IF('1. Order'!M1067=\"\",\"\",'1. Order'!M1067)","v":""},null,null,null,{"$f":"IF('1. Order'!AF1067=\"\",\"\",'1. Order'!AF1067)","v":""}]
[{"$f":"IF('1. Order'!B1068=\"\",\"\",'1. Order'!B1068)","v":""},{"$f":"IF('1. Order'!I1068=\"\",\"\",'1. Order'!I1068)","v":""},{"$f":"IF('1. Order'!J1068=\"\",\"\",'1. Order'!J1068)","v":""},{"$f":"IF('1. Order'!K1068=\"\",\"\",'1. Order'!K1068)","v":""},{"$f":"IF('1. Order'!M1068=\"\",\"\",'1. Order'!M1068)","v":""},null,null,null,{"$f":"IF('1. Order'!AF1068=\"\",\"\",'1. Order'!AF1068)","v":""}]
[{"$f":"IF('1. Order'!B1069=\"\",\"\",'1. Order'!B1069)","v":""},{"$f":"IF('1. Order'!I1069=\"\",\"\",'1. Order'!I1069)","v":""},{"$f":"IF('1. Order'!J1069=\"\",\"\",'1. Order'!J1069)","v":""},{"$f":"IF('1. Order'!K1069=\"\",\"\",'1. Order'!K1069)","v":""},{"$f":"IF('1. Order'!M1069=\"\",\"\",'1. Order'!M1069)","v":""},null,null,null,{"$f":"IF('1. Order'!AF1069=\"\",\"\",'1. Order'!AF1069)","v":""}]
[{"$f":"IF('1. Order'!B1070=\"\",\"\",'1. Order'!B1070)","v":""},{"$f":"IF('1. Order'!I1070=\"\",\"\",'1. Order'!I1070)","v":""},{"$f":"IF('1. Order'!J1070=\"\",\"\",'1. Order'!J1070)","v":""},{"$f":"IF('1. Order'!K1070=\"\",\"\",'1. Order'!K1070)","v":""},{"$f":"IF('1. Order'!M1070=\"\",\"\",'1. Order'!M1070)","v":""},null,null,null,{"$f":"IF('1. Order'!AF1070=\"\",\"\",'1. Order'!AF1070)","v":""}]
[{"$f":"IF('1. Order'!B1071=\"\",\"\",'1. Order'!B1071)","v":""},{"$f":"IF('1. Order'!I1071=\"\",\"\",'1. Order'!I1071)","v":""},{"$f":"IF('1. Order'!J1071=\"\",\"\",'1. Order'!J1071)","v":""},{"$f":"IF('1. Order'!K1071=\"\",\"\",'1. Order'!K1071)","v":""},{"$f":"IF('1. Order'!M1071=\"\",\"\",'1. Order'!M1071)","v":""},null,null,null,{"$f":"IF('1. Order'!AF1071=\"\",\"\",'1. Order'!AF1071)","v":""}]
[{"$f":"IF('1. Order'!B1072=\"\",\"\",'1. Order'!B1072)","v":""},{"$f":"IF('1. Order'!I1072=\"\",\"\",'1. Order'!I1072)","v":""},{"$f":"IF('1. Order'!J1072=\"\",\"\",'1. Order'!J1072)","v":""},{"$f":"IF('1. Order'!K1072=\"\",\"\",'1. Order'!K1072)","v":""},{"$f":"IF('1. Order'!M1072=\"\",\"\",'1. Order'!M1072)","v":""},null,null,null,{"$f":"IF('1. Order'!AF1072=\"\",\"\",'1. Order'!AF1072)","v":""}]
[{"$f":"IF('1. Order'!B1073=\"\",\"\",'1. Order'!B1073)","v":""},{"$f":"IF('1. Order'!I1073=\"\",\"\",'1. Order'!I1073)","v":""},{"$f":"IF('1. Order'!J1073=\"\",\"\",'1. Order'!J1073)","v":""},{"$f":"IF('1. Order'!K1073=\"\",\"\",'1. Order'!K1073)","v":""},{"$f":"IF('1. Order'!M1073=\"\",\"\",'1. Order'!M1073)","v":""},null,null,null,{"$f":"IF('1. Order'!AF1073=\"\",\"\",'1. Order'!AF1073)","v":""}]
[{"$f":"IF('1. Order'!B1074=\"\",\"\",'1. Order'!B1074)","v":""},{"$f":"IF('1. Order'!I1074=\"\",\"\",'1. Order'!I1074)","v":""},{"$f":"IF('1. Order'!J1074=\"\",\"\",'1. Order'!J1074)","v":""},{"$f":"IF('1. Order'!K1074=\"\",\"\",'1. Order'!K1074)","v":""},{"$f":"IF('1. Order'!M1074=\"\",\"\",'1. Order'!M1074)","v":""},null,null,null,{"$f":"IF('1. Order'!AF1074=\"\",\"\",'1. Order'!AF1074)","v":""}]
[{"$f":"IF('1. Order'!B1075=\"\",\"\",'1. Order'!B1075)","v":""},{"$f":"IF('1. Order'!I1075=\"\",\"\",'1. Order'!I1075)","v":""},{"$f":"IF('1. Order'!J1075=\"\",\"\",'1. Order'!J1075)","v":""},{"$f":"IF('1. Order'!K1075=\"\",\"\",'1. Order'!K1075)","v":""},{"$f":"IF('1. Order'!M1075=\"\",\"\",'1. Order'!M1075)","v":""},null,null,null,{"$f":"IF('1. Order'!AF1075=\"\",\"\",'1. Order'!AF1075)","v":""}]
[{"$f":"IF('1. Order'!B1076=\"\",\"\",'1. Order'!B1076)","v":""},{"$f":"IF('1. Order'!I1076=\"\",\"\",'1. Order'!I1076)","v":""},{"$f":"IF('1. Order'!J1076=\"\",\"\",'1. Order'!J1076)","v":""},{"$f":"IF('1. Order'!K1076=\"\",\"\",'1. Order'!K1076)","v":""},{"$f":"IF('1. Order'!M1076=\"\",\"\",'1. Order'!M1076)","v":""},null,null,null,{"$f":"IF('1. Order'!AF1076=\"\",\"\",'1. Order'!AF1076)","v":""}]
[{"$f":"IF('1. Order'!B1077=\"\",\"\",'1. Order'!B1077)","v":""},{"$f":"IF('1. Order'!I1077=\"\",\"\",'1. Order'!I1077)","v":""},{"$f":"IF('1. Order'!J1077=\"\",\"\",'1. Order'!J1077)","v":""},{"$f":"IF('1. Order'!K1077=\"\",\"\",'1. Order'!K1077)","v":""},{"$f":"IF('1. Order'!M1077=\"\",\"\",'1. Order'!M1077)","v":""},null,null,null,{"$f":"IF('1. Order'!AF1077=\"\",\"\",'1. Order'!AF1077)","v":""}]
[{"$f":"IF('1. Order'!B1078=\"\",\"\",'1. Order'!B1078)","v":""},{"$f":"IF('1. Order'!I1078=\"\",\"\",'1. Order'!I1078)","v":""},{"$f":"IF('1. Order'!J1078=\"\",\"\",'1. Order'!J1078)","v":""},{"$f":"IF('1. Order'!K1078=\"\",\"\",'1. Order'!K1078)","v":""},{"$f":"IF('1. Order'!M1078=\"\",\"\",'1. Order'!M1078)","v":""},null,null,null,{"$f":"IF('1. Order'!AF1078=\"\",\"\",'1. Order'!AF1078)","v":""}]
[{"$f":"IF('1. Order'!B1079=\"\",\"\",'1. Order'!B1079)","v":""},{"$f":"IF('1. Order'!I1079=\"\",\"\",'1. Order'!I1079)","v":""},{"$f":"IF('1. Order'!J1079=\"\",\"\",'1. Order'!J1079)","v":""},{"$f":"IF('1. Order'!K1079=\"\",\"\",'1. Order'!K1079)","v":""},{"$f":"IF('1. Order'!M1079=\"\",\"\",'1. Order'!M1079)","v":""},null,null,null,{"$f":"IF('1. Order'!AF1079=\"\",\"\",'1. Order'!AF1079)","v":""}]
[{"$f":"IF('1. Order'!B1080=\"\",\"\",'1. Order'!B1080)","v":""},{"$f":"IF('1. Order'!I1080=\"\",\"\",'1. Order'!I1080)","v":""},{"$f":"IF('1. Order'!J1080=\"\",\"\",'1. Order'!J1080)","v":""},{"$f":"IF('1. Order'!K1080=\"\",\"\",'1. Order'!K1080)","v":""},{"$f":"IF('1. Order'!M1080=\"\",\"\",'1. Order'!M1080)","v":""},null,null,null,{"$f":"IF('1. Order'!AF1080=\"\",\"\",'1. Order'!AF1080)","v":""}]
[{"$f":"IF('1. Order'!B1081=\"\",\"\",'1. Order'!B1081)","v":""},{"$f":"IF('1. Order'!I1081=\"\",\"\",'1. Order'!I1081)","v":""},{"$f":"IF('1. Order'!J1081=\"\",\"\",'1. Order'!J1081)","v":""},{"$f":"IF('1. Order'!K1081=\"\",\"\",'1. Order'!K1081)","v":""},{"$f":"IF('1. Order'!M1081=\"\",\"\",'1. Order'!M1081)","v":""},null,null,null,{"$f":"IF('1. Order'!AF1081=\"\",\"\",'1. Order'!AF1081)","v":""}]
[{"$f":"IF('1. Order'!B1082=\"\",\"\",'1. Order'!B1082)","v":""},{"$f":"IF('1. Order'!I1082=\"\",\"\",'1. Order'!I1082)","v":""},{"$f":"IF('1. Order'!J1082=\"\",\"\",'1. Order'!J1082)","v":""},{"$f":"IF('1. Order'!K1082=\"\",\"\",'1. Order'!K1082)","v":""},{"$f":"IF('1. Order'!M1082=\"\",\"\",'1. Order'!M1082)","v":""},null,null,null,{"$f":"IF('1. Order'!AF1082=\"\",\"\",'1. Order'!AF1082)","v":""}]
[{"$f":"IF('1. Order'!B1083=\"\",\"\",'1. Order'!B1083)","v":""},{"$f":"IF('1. Order'!I1083=\"\",\"\",'1. Order'!I1083)","v":""},{"$f":"IF('1. Order'!J1083=\"\",\"\",'1. Order'!J1083)","v":""},{"$f":"IF('1. Order'!K1083=\"\",\"\",'1. Order'!K1083)","v":""},{"$f":"IF('1. Order'!M1083=\"\",\"\",'1. Order'!M1083)","v":""},null,null,null,{"$f":"IF('1. Order'!AF1083=\"\",\"\",'1. Order'!AF1083)","v":""}]
[{"$f":"IF('1. Order'!B1084=\"\",\"\",'1. Order'!B1084)","v":""},{"$f":"IF('1. Order'!I1084=\"\",\"\",'1. Order'!I1084)","v":""},{"$f":"IF('1. Order'!J1084=\"\",\"\",'1. Order'!J1084)","v":""},{"$f":"IF('1. Order'!K1084=\"\",\"\",'1. Order'!K1084)","v":""},{"$f":"IF('1. Order'!M1084=\"\",\"\",'1. Order'!M1084)","v":""},null,null,null,{"$f":"IF('1. Order'!AF1084=\"\",\"\",'1. Order'!AF1084)","v":""}]
[{"$f":"IF('1. Order'!B1085=\"\",\"\",'1. Order'!B1085)","v":""},{"$f":"IF('1. Order'!I1085=\"\",\"\",'1. Order'!I1085)","v":""},{"$f":"IF('1. Order'!J1085=\"\",\"\",'1. Order'!J1085)","v":""},{"$f":"IF('1. Order'!K1085=\"\",\"\",'1. Order'!K1085)","v":""},{"$f":"IF('1. Order'!M1085=\"\",\"\",'1. Order'!M1085)","v":""},null,null,null,{"$f":"IF('1. Order'!AF1085=\"\",\"\",'1. Order'!AF1085)","v":""}]
[{"$f":"IF('1. Order'!B1086=\"\",\"\",'1. Order'!B1086)","v":""},{"$f":"IF('1. Order'!I1086=\"\",\"\",'1. Order'!I1086)","v":""},{"$f":"IF('1. Order'!J1086=\"\",\"\",'1. Order'!J1086)","v":""},{"$f":"IF('1. Order'!K1086=\"\",\"\",'1. Order'!K1086)","v":""},{"$f":"IF('1. Order'!M1086=\"\",\"\",'1. Order'!M1086)","v":""},null,null,null,{"$f":"IF('1. Order'!AF1086=\"\",\"\",'1. Order'!AF1086)","v":""}]
[{"$f":"IF('1. Order'!B1087=\"\",\"\",'1. Order'!B1087)","v":""},{"$f":"IF('1. Order'!I1087=\"\",\"\",'1. Order'!I1087)","v":""},{"$f":"IF('1. Order'!J1087=\"\",\"\",'1. Order'!J1087)","v":""},{"$f":"IF('1. Order'!K1087=\"\",\"\",'1. Order'!K1087)","v":""},{"$f":"IF('1. Order'!M1087=\"\",\"\",'1. Order'!M1087)","v":""},null,null,null,{"$f":"IF('1. Order'!AF1087=\"\",\"\",'1. Order'!AF1087)","v":""}]
[{"$f":"IF('1. Order'!B1088=\"\",\"\",'1. Order'!B1088)","v":""},{"$f":"IF('1. Order'!I1088=\"\",\"\",'1. Order'!I1088)","v":""},{"$f":"IF('1. Order'!J1088=\"\",\"\",'1. Order'!J1088)","v":""},{"$f":"IF('1. Order'!K1088=\"\",\"\",'1. Order'!K1088)","v":""},{"$f":"IF('1. Order'!M1088=\"\",\"\",'1. Order'!M1088)","v":""},null,null,null,{"$f":"IF('1. Order'!AF1088=\"\",\"\",'1. Order'!AF1088)","v":""}]
[{"$f":"IF('1. Order'!B1089=\"\",\"\",'1. Order'!B1089)","v":""},{"$f":"IF('1. Order'!I1089=\"\",\"\",'1. Order'!I1089)","v":""},{"$f":"IF('1. Order'!J1089=\"\",\"\",'1. Order'!J1089)","v":""},{"$f":"IF('1. Order'!K1089=\"\",\"\",'1. Order'!K1089)","v":""},{"$f":"IF('1. Order'!M1089=\"\",\"\",'1. Order'!M1089)","v":""},null,null,null,{"$f":"IF('1. Order'!AF1089=\"\",\"\",'1. Order'!AF1089)","v":""}]
[{"$f":"IF('1. Order'!B1090=\"\",\"\",'1. Order'!B1090)","v":""},{"$f":"IF('1. Order'!I1090=\"\",\"\",'1. Order'!I1090)","v":""},{"$f":"IF('1. Order'!J1090=\"\",\"\",'1. Order'!J1090)","v":""},{"$f":"IF('1. Order'!K1090=\"\",\"\",'1. Order'!K1090)","v":""},{"$f":"IF('1. Order'!M1090=\"\",\"\",'1. Order'!M1090)","v":""},null,null,null,{"$f":"IF('1. Order'!AF1090=\"\",\"\",'1. Order'!AF1090)","v":""}]
[{"$f":"IF('1. Order'!B1091=\"\",\"\",'1. Order'!B1091)","v":""},{"$f":"IF('1. Order'!I1091=\"\",\"\",'1. Order'!I1091)","v":""},{"$f":"IF('1. Order'!J1091=\"\",\"\",'1. Order'!J1091)","v":""},{"$f":"IF('1. Order'!K1091=\"\",\"\",'1. Order'!K1091)","v":""},{"$f":"IF('1. Order'!M1091=\"\",\"\",'1. Order'!M1091)","v":""},null,null,null,{"$f":"IF('1. Order'!AF1091=\"\",\"\",'1. Order'!AF1091)","v":""}]
[{"$f":"IF('1. Order'!B1092=\"\",\"\",'1. Order'!B1092)","v":""},{"$f":"IF('1. Order'!I1092=\"\",\"\",'1. Order'!I1092)","v":""},{"$f":"IF('1. Order'!J1092=\"\",\"\",'1. Order'!J1092)","v":""},{"$f":"IF('1. Order'!K1092=\"\",\"\",'1. Order'!K1092)","v":""},{"$f":"IF('1. Order'!M1092=\"\",\"\",'1. Order'!M1092)","v":""},null,null,null,{"$f":"IF('1. Order'!AF1092=\"\",\"\",'1. Order'!AF1092)","v":""}]
[{"$f":"IF('1. Order'!B1093=\"\",\"\",'1. Order'!B1093)","v":""},{"$f":"IF('1. Order'!I1093=\"\",\"\",'1. Order'!I1093)","v":""},{"$f":"IF('1. Order'!J1093=\"\",\"\",'1. Order'!J1093)","v":""},{"$f":"IF('1. Order'!K1093=\"\",\"\",'1. Order'!K1093)","v":""},{"$f":"IF('1. Order'!M1093=\"\",\"\",'1. Order'!M1093)","v":""},null,null,null,{"$f":"IF('1. Order'!AF1093=\"\",\"\",'1. Order'!AF1093)","v":""}]
[{"$f":"IF('1. Order'!B1094=\"\",\"\",'1. Order'!B1094)","v":""},{"$f":"IF('1. Order'!I1094=\"\",\"\",'1. Order'!I1094)","v":""},{"$f":"IF('1. Order'!J1094=\"\",\"\",'1. Order'!J1094)","v":""},{"$f":"IF('1. Order'!K1094=\"\",\"\",'1. Order'!K1094)","v":""},{"$f":"IF('1. Order'!M1094=\"\",\"\",'1. Order'!M1094)","v":""},null,null,null,{"$f":"IF('1. Order'!AF1094=\"\",\"\",'1. Order'!AF1094)","v":""}]
[{"$f":"IF('1. Order'!B1095=\"\",\"\",'1. Order'!B1095)","v":""},{"$f":"IF('1. Order'!I1095=\"\",\"\",'1. Order'!I1095)","v":""},{"$f":"IF('1. Order'!J1095=\"\",\"\",'1. Order'!J1095)","v":""},{"$f":"IF('1. Order'!K1095=\"\",\"\",'1. Order'!K1095)","v":""},{"$f":"IF('1. Order'!M1095=\"\",\"\",'1. Order'!M1095)","v":""},null,null,null,{"$f":"IF('1. Order'!AF1095=\"\",\"\",'1. Order'!AF1095)","v":""}]
[{"$f":"IF('1. Order'!B1096=\"\",\"\",'1. Order'!B1096)","v":""},{"$f":"IF('1. Order'!I1096=\"\",\"\",'1. Order'!I1096)","v":""},{"$f":"IF('1. Order'!J1096=\"\",\"\",'1. Order'!J1096)","v":""},{"$f":"IF('1. Order'!K1096=\"\",\"\",'1. Order'!K1096)","v":""},{"$f":"IF('1. Order'!M1096=\"\",\"\",'1. Order'!M1096)","v":""},null,null,null,{"$f":"IF('1. Order'!AF1096=\"\",\"\",'1. Order'!AF1096)","v":""}]
[{"$f":"IF('1. Order'!B1097=\"\",\"\",'1. Order'!B1097)","v":""},{"$f":"IF('1. Order'!I1097=\"\",\"\",'1. Order'!I1097)","v":""},{"$f":"IF('1. Order'!J1097=\"\",\"\",'1. Order'!J1097)","v":""},{"$f":"IF('1. Order'!K1097=\"\",\"\",'1. Order'!K1097)","v":""},{"$f":"IF('1. Order'!M1097=\"\",\"\",'1. Order'!M1097)","v":""},null,null,null,{"$f":"IF('1. Order'!AF1097=\"\",\"\",'1. Order'!AF1097)","v":""}]
[{"$f":"IF('1. Order'!B1098=\"\",\"\",'1. Order'!B1098)","v":""},{"$f":"IF('1. Order'!I1098=\"\",\"\",'1. Order'!I1098)","v":""},{"$f":"IF('1. Order'!J1098=\"\",\"\",'1. Order'!J1098)","v":""},{"$f":"IF('1. Order'!K1098=\"\",\"\",'1. Order'!K1098)","v":""},{"$f":"IF('1. Order'!M1098=\"\",\"\",'1. Order'!M1098)","v":""},null,null,null,{"$f":"IF('1. Order'!AF1098=\"\",\"\",'1. Order'!AF1098)","v":""}]
[{"$f":"IF('1. Order'!B1099=\"\",\"\",'1. Order'!B1099)","v":""},{"$f":"IF('1. Order'!I1099=\"\",\"\",'1. Order'!I1099)","v":""},{"$f":"IF('1. Order'!J1099=\"\",\"\",'1. Order'!J1099)","v":""},{"$f":"IF('1. Order'!K1099=\"\",\"\",'1. Order'!K1099)","v":""},{"$f":"IF('1. Order'!M1099=\"\",\"\",'1. Order'!M1099)","v":""},null,null,null,{"$f":"IF('1. Order'!AF1099=\"\",\"\",'1. Order'!AF1099)","v":""}]
[{"$f":"IF('1. Order'!B1100=\"\",\"\",'1. Order'!B1100)","v":""},{"$f":"IF('1. Order'!I1100=\"\",\"\",'1. Order'!I1100)","v":""},{"$f":"IF('1. Order'!J1100=\"\",\"\",'1. Order'!J1100)","v":""},{"$f":"IF('1. Order'!K1100=\"\",\"\",'1. Order'!K1100)","v":""},{"$f":"IF('1. Order'!M1100=\"\",\"\",'1. Order'!M1100)","v":""},null,null,null,{"$f":"IF('1. Order'!AF1100=\"\",\"\",'1. Order'!AF1100)","v":""}]
[{"$f":"IF('1. Order'!B1101=\"\",\"\",'1. Order'!B1101)","v":""},{"$f":"IF('1. Order'!I1101=\"\",\"\",'1. Order'!I1101)","v":""},{"$f":"IF('1. Order'!J1101=\"\",\"\",'1. Order'!J1101)","v":""},{"$f":"IF('1. Order'!K1101=\"\",\"\",'1. Order'!K1101)","v":""},{"$f":"IF('1. Order'!M1101=\"\",\"\",'1. Order'!M1101)","v":""},null,null,null,{"$f":"IF('1. Order'!AF1101=\"\",\"\",'1. Order'!AF1101)","v":""}]
[{"$f":"IF('1. Order'!B1102=\"\",\"\",'1. Order'!B1102)","v":""},{"$f":"IF('1. Order'!I1102=\"\",\"\",'1. Order'!I1102)","v":""},{"$f":"IF('1. Order'!J1102=\"\",\"\",'1. Order'!J1102)","v":""},{"$f":"IF('1. Order'!K1102=\"\",\"\",'1. Order'!K1102)","v":""},{"$f":"IF('1. Order'!M1102=\"\",\"\",'1. Order'!M1102)","v":""},null,null,null,{"$f":"IF('1. Order'!AF1102=\"\",\"\",'1. Order'!AF1102)","v":""}]
[{"$f":"IF('1. Order'!B1103=\"\",\"\",'1. Order'!B1103)","v":""},{"$f":"IF('1. Order'!I1103=\"\",\"\",'1. Order'!I1103)","v":""},{"$f":"IF('1. Order'!J1103=\"\",\"\",'1. Order'!J1103)","v":""},{"$f":"IF('1. Order'!K1103=\"\",\"\",'1. Order'!K1103)","v":""},{"$f":"IF('1. Order'!M1103=\"\",\"\",'1. Order'!M1103)","v":""},null,null,null,{"$f":"IF('1. Order'!AF1103=\"\",\"\",'1. Order'!AF1103)","v":""}]
[{"$f":"IF('1. Order'!B1104=\"\",\"\",'1. Order'!B1104)","v":""},{"$f":"IF('1. Order'!I1104=\"\",\"\",'1. Order'!I1104)","v":""},{"$f":"IF('1. Order'!J1104=\"\",\"\",'1. Order'!J1104)","v":""},{"$f":"IF('1. Order'!K1104=\"\",\"\",'1. Order'!K1104)","v":""},{"$f":"IF('1. Order'!M1104=\"\",\"\",'1. Order'!M1104)","v":""},null,null,null,{"$f":"IF('1. Order'!AF1104=\"\",\"\",'1. Order'!AF1104)","v":""}]
[{"$f":"IF('1. Order'!B1105=\"\",\"\",'1. Order'!B1105)","v":""},{"$f":"IF('1. Order'!I1105=\"\",\"\",'1. Order'!I1105)","v":""},{"$f":"IF('1. Order'!J1105=\"\",\"\",'1. Order'!J1105)","v":""},{"$f":"IF('1. Order'!K1105=\"\",\"\",'1. Order'!K1105)","v":""},{"$f":"IF('1. Order'!M1105=\"\",\"\",'1. Order'!M1105)","v":""},null,null,null,{"$f":"IF('1. Order'!AF1105=\"\",\"\",'1. Order'!AF1105)","v":""}]
[{"$f":"IF('1. Order'!B1106=\"\",\"\",'1. Order'!B1106)","v":""},{"$f":"IF('1. Order'!I1106=\"\",\"\",'1. Order'!I1106)","v":""},{"$f":"IF('1. Order'!J1106=\"\",\"\",'1. Order'!J1106)","v":""},{"$f":"IF('1. Order'!K1106=\"\",\"\",'1. Order'!K1106)","v":""},{"$f":"IF('1. Order'!M1106=\"\",\"\",'1. Order'!M1106)","v":""},null,null,null,{"$f":"IF('1. Order'!AF1106=\"\",\"\",'1. Order'!AF1106)","v":""}]
[{"$f":"IF('1. Order'!B1107=\"\",\"\",'1. Order'!B1107)","v":""},{"$f":"IF('1. Order'!I1107=\"\",\"\",'1. Order'!I1107)","v":""},{"$f":"IF('1. Order'!J1107=\"\",\"\",'1. Order'!J1107)","v":""},{"$f":"IF('1. Order'!K1107=\"\",\"\",'1. Order'!K1107)","v":""},{"$f":"IF('1. Order'!M1107=\"\",\"\",'1. Order'!M1107)","v":""},null,null,null,{"$f":"IF('1. Order'!AF1107=\"\",\"\",'1. Order'!AF1107)","v":""}]
[{"$f":"IF('1. Order'!B1108=\"\",\"\",'1. Order'!B1108)","v":""},{"$f":"IF('1. Order'!I1108=\"\",\"\",'1. Order'!I1108)","v":""},{"$f":"IF('1. Order'!J1108=\"\",\"\",'1. Order'!J1108)","v":""},{"$f":"IF('1. Order'!K1108=\"\",\"\",'1. Order'!K1108)","v":""},{"$f":"IF('1. Order'!M1108=\"\",\"\",'1. Order'!M1108)","v":""},null,null,null,{"$f":"IF('1. Order'!AF1108=\"\",\"\",'1. Order'!AF1108)","v":""}]
[{"$f":"IF('1. Order'!B1109=\"\",\"\",'1. Order'!B1109)","v":""},{"$f":"IF('1. Order'!I1109=\"\",\"\",'1. Order'!I1109)","v":""},{"$f":"IF('1. Order'!J1109=\"\",\"\",'1. Order'!J1109)","v":""},{"$f":"IF('1. Order'!K1109=\"\",\"\",'1. Order'!K1109)","v":""},{"$f":"IF('1. Order'!M1109=\"\",\"\",'1. Order'!M1109)","v":""},null,null,null,{"$f":"IF('1. Order'!AF1109=\"\",\"\",'1. Order'!AF1109)","v":""}]
[{"$f":"IF('1. Order'!B1110=\"\",\"\",'1. Order'!B1110)","v":""},{"$f":"IF('1. Order'!I1110=\"\",\"\",'1. Order'!I1110)","v":""},{"$f":"IF('1. Order'!J1110=\"\",\"\",'1. Order'!J1110)","v":""},{"$f":"IF('1. Order'!K1110=\"\",\"\",'1. Order'!K1110)","v":""},{"$f":"IF('1. Order'!M1110=\"\",\"\",'1. Order'!M1110)","v":""},null,null,null,{"$f":"IF('1. Order'!AF1110=\"\",\"\",'1. Order'!AF1110)","v":""}]
[{"$f":"IF('1. Order'!B1111=\"\",\"\",'1. Order'!B1111)","v":""},{"$f":"IF('1. Order'!I1111=\"\",\"\",'1. Order'!I1111)","v":""},{"$f":"IF('1. Order'!J1111=\"\",\"\",'1. Order'!J1111)","v":""},{"$f":"IF('1. Order'!K1111=\"\",\"\",'1. Order'!K1111)","v":""},{"$f":"IF('1. Order'!M1111=\"\",\"\",'1. Order'!M1111)","v":""},null,null,null,{"$f":"IF('1. Order'!AF1111=\"\",\"\",'1. Order'!AF1111)","v":""}]
[{"$f":"IF('1. Order'!B1112=\"\",\"\",'1. Order'!B1112)","v":""},{"$f":"IF('1. Order'!I1112=\"\",\"\",'1. Order'!I1112)","v":""},{"$f":"IF('1. Order'!J1112=\"\",\"\",'1. Order'!J1112)","v":""},{"$f":"IF('1. Order'!K1112=\"\",\"\",'1. Order'!K1112)","v":""},{"$f":"IF('1. Order'!M1112=\"\",\"\",'1. Order'!M1112)","v":""},null,null,null,{"$f":"IF('1. Order'!AF1112=\"\",\"\",'1. Order'!AF1112)","v":""}]
[{"$f":"IF('1. Order'!B1113=\"\",\"\",'1. Order'!B1113)","v":""},{"$f":"IF('1. Order'!I1113=\"\",\"\",'1. Order'!I1113)","v":""},{"$f":"IF('1. Order'!J1113=\"\",\"\",'1. Order'!J1113)","v":""},{"$f":"IF('1. Order'!K1113=\"\",\"\",'1. Order'!K1113)","v":""},{"$f":"IF('1. Order'!M1113=\"\",\"\",'1. Order'!M1113)","v":""},null,null,null,{"$f":"IF('1. Order'!AF1113=\"\",\"\",'1. Order'!AF1113)","v":""}]
[{"$f":"IF('1. Order'!B1114=\"\",\"\",'1. Order'!B1114)","v":""},{"$f":"IF('1. Order'!I1114=\"\",\"\",'1. Order'!I1114)","v":""},{"$f":"IF('1. Order'!J1114=\"\",\"\",'1. Order'!J1114)","v":""},{"$f":"IF('1. Order'!K1114=\"\",\"\",'1. Order'!K1114)","v":""},{"$f":"IF('1. Order'!M1114=\"\",\"\",'1. Order'!M1114)","v":""},null,null,null,{"$f":"IF('1. Order'!AF1114=\"\",\"\",'1. Order'!AF1114)","v":""}]
[{"$f":"IF('1. Order'!B1115=\"\",\"\",'1. Order'!B1115)","v":""},{"$f":"IF('1. Order'!I1115=\"\",\"\",'1. Order'!I1115)","v":""},{"$f":"IF('1. Order'!J1115=\"\",\"\",'1. Order'!J1115)","v":""},{"$f":"IF('1. Order'!K1115=\"\",\"\",'1. Order'!K1115)","v":""},{"$f":"IF('1. Order'!M1115=\"\",\"\",'1. Order'!M1115)","v":""},null,null,null,{"$f":"IF('1. Order'!AF1115=\"\",\"\",'1. Order'!AF1115)","v":""}]
[{"$f":"IF('1. Order'!B1116=\"\",\"\",'1. Order'!B1116)","v":""},{"$f":"IF('1. Order'!I1116=\"\",\"\",'1. Order'!I1116)","v":""},{"$f":"IF('1. Order'!J1116=\"\",\"\",'1. Order'!J1116)","v":""},{"$f":"IF('1. Order'!K1116=\"\",\"\",'1. Order'!K1116)","v":""},{"$f":"IF('1. Order'!M1116=\"\",\"\",'1. Order'!M1116)","v":""},null,null,null,{"$f":"IF('1. Order'!AF1116=\"\",\"\",'1. Order'!AF1116)","v":""}]
[{"$f":"IF('1. Order'!B1117=\"\",\"\",'1. Order'!B1117)","v":""},{"$f":"IF('1. Order'!I1117=\"\",\"\",'1. Order'!I1117)","v":""},{"$f":"IF('1. Order'!J1117=\"\",\"\",'1. Order'!J1117)","v":""},{"$f":"IF('1. Order'!K1117=\"\",\"\",'1. Order'!K1117)","v":""},{"$f":"IF('1. Order'!M1117=\"\",\"\",'1. Order'!M1117)","v":""},null,null,null,{"$f":"IF('1. Order'!AF1117=\"\",\"\",'1. Order'!AF1117)","v":""}]
[{"$f":"IF('1. Order'!B1118=\"\",\"\",'1. Order'!B1118)","v":""},{"$f":"IF('1. Order'!I1118=\"\",\"\",'1. Order'!I1118)","v":""},{"$f":"IF('1. Order'!J1118=\"\",\"\",'1. Order'!J1118)","v":""},{"$f":"IF('1. Order'!K1118=\"\",\"\",'1. Order'!K1118)","v":""},{"$f":"IF('1. Order'!M1118=\"\",\"\",'1. Order'!M1118)","v":""},null,null,null,{"$f":"IF('1. Order'!AF1118=\"\",\"\",'1. Order'!AF1118)","v":""}]
[{"$f":"IF('1. Order'!B1119=\"\",\"\",'1. Order'!B1119)","v":""},{"$f":"IF('1. Order'!I1119=\"\",\"\",'1. Order'!I1119)","v":""},{"$f":"IF('1. Order'!J1119=\"\",\"\",'1. Order'!J1119)","v":""},{"$f":"IF('1. Order'!K1119=\"\",\"\",'1. Order'!K1119)","v":""},{"$f":"IF('1. Order'!M1119=\"\",\"\",'1. Order'!M1119)","v":""},null,null,null,{"$f":"IF('1. Order'!AF1119=\"\",\"\",'1. Order'!AF1119)","v":""}]
[{"$f":"IF('1. Order'!B1120=\"\",\"\",'1. Order'!B1120)","v":""},{"$f":"IF('1. Order'!I1120=\"\",\"\",'1. Order'!I1120)","v":""},{"$f":"IF('1. Order'!J1120=\"\",\"\",'1. Order'!J1120)","v":""},{"$f":"IF('1. Order'!K1120=\"\",\"\",'1. Order'!K1120)","v":""},{"$f":"IF('1. Order'!M1120=\"\",\"\",'1. Order'!M1120)","v":""},null,null,null,{"$f":"IF('1. Order'!AF1120=\"\",\"\",'1. Order'!AF1120)","v":""}]
[{"$f":"IF('1. Order'!B1121=\"\",\"\",'1. Order'!B1121)","v":""},{"$f":"IF('1. Order'!I1121=\"\",\"\",'1. Order'!I1121)","v":""},{"$f":"IF('1. Order'!J1121=\"\",\"\",'1. Order'!J1121)","v":""},{"$f":"IF('1. Order'!K1121=\"\",\"\",'1. Order'!K1121)","v":""},{"$f":"IF('1. Order'!M1121=\"\",\"\",'1. Order'!M1121)","v":""},null,null,null,{"$f":"IF('1. Order'!AF1121=\"\",\"\",'1. Order'!AF1121)","v":""}]
[{"$f":"IF('1. Order'!B1122=\"\",\"\",'1. Order'!B1122)","v":""},{"$f":"IF('1. Order'!I1122=\"\",\"\",'1. Order'!I1122)","v":""},{"$f":"IF('1. Order'!J1122=\"\",\"\",'1. Order'!J1122)","v":""},{"$f":"IF('1. Order'!K1122=\"\",\"\",'1. Order'!K1122)","v":""},{"$f":"IF('1. Order'!M1122=\"\",\"\",'1. Order'!M1122)","v":""},null,null,null,{"$f":"IF('1. Order'!AF1122=\"\",\"\",'1. Order'!AF1122)","v":""}]
[{"$f":"IF('1. Order'!B1123=\"\",\"\",'1. Order'!B1123)","v":""},{"$f":"IF('1. Order'!I1123=\"\",\"\",'1. Order'!I1123)","v":""},{"$f":"IF('1. Order'!J1123=\"\",\"\",'1. Order'!J1123)","v":""},{"$f":"IF('1. Order'!K1123=\"\",\"\",'1. Order'!K1123)","v":""},{"$f":"IF('1. Order'!M1123=\"\",\"\",'1. Order'!M1123)","v":""},null,null,null,{"$f":"IF('1. Order'!AF1123=\"\",\"\",'1. Order'!AF1123)","v":""}]
[{"$f":"IF('1. Order'!B1124=\"\",\"\",'1. Order'!B1124)","v":""},{"$f":"IF('1. Order'!I1124=\"\",\"\",'1. Order'!I1124)","v":""},{"$f":"IF('1. Order'!J1124=\"\",\"\",'1. Order'!J1124)","v":""},{"$f":"IF('1. Order'!K1124=\"\",\"\",'1. Order'!K1124)","v":""},{"$f":"IF('1. Order'!M1124=\"\",\"\",'1. Order'!M1124)","v":""},null,null,null,{"$f":"IF('1. Order'!AF1124=\"\",\"\",'1. Order'!AF1124)","v":""}]
[{"$f":"IF('1. Order'!B1125=\"\",\"\",'1. Order'!B1125)","v":""},{"$f":"IF('1. Order'!I1125=\"\",\"\",'1. Order'!I1125)","v":""},{"$f":"IF('1. Order'!J1125=\"\",\"\",'1. Order'!J1125)","v":""},{"$f":"IF('1. Order'!K1125=\"\",\"\",'1. Order'!K1125)","v":""},{"$f":"IF('1. Order'!M1125=\"\",\"\",'1. Order'!M1125)","v":""},null,null,null,{"$f":"IF('1. Order'!AF1125=\"\",\"\",'1. Order'!AF1125)","v":""}]
[{"$f":"IF('1. Order'!B1126=\"\",\"\",'1. Order'!B1126)","v":""},{"$f":"IF('1. Order'!I1126=\"\",\"\",'1. Order'!I1126)","v":""},{"$f":"IF('1. Order'!J1126=\"\",\"\",'1. Order'!J1126)","v":""},{"$f":"IF('1. Order'!K1126=\"\",\"\",'1. Order'!K1126)","v":""},{"$f":"IF('1. Order'!M1126=\"\",\"\",'1. Order'!M1126)","v":""},null,null,null,{"$f":"IF('1. Order'!AF1126=\"\",\"\",'1. Order'!AF1126)","v":""}]
[{"$f":"IF('1. Order'!B1127=\"\",\"\",'1. Order'!B1127)","v":""},{"$f":"IF('1. Order'!I1127=\"\",\"\",'1. Order'!I1127)","v":""},{"$f":"IF('1. Order'!J1127=\"\",\"\",'1. Order'!J1127)","v":""},{"$f":"IF('1. Order'!K1127=\"\",\"\",'1. Order'!K1127)","v":""},{"$f":"IF('1. Order'!M1127=\"\",\"\",'1. Order'!M1127)","v":""},null,null,null,{"$f":"IF('1. Order'!AF1127=\"\",\"\",'1. Order'!AF1127)","v":""}]
[{"$f":"IF('1. Order'!B1128=\"\",\"\",'1. Order'!B1128)","v":""},{"$f":"IF('1. Order'!I1128=\"\",\"\",'1. Order'!I1128)","v":""},{"$f":"IF('1. Order'!J1128=\"\",\"\",'1. Order'!J1128)","v":""},{"$f":"IF('1. Order'!K1128=\"\",\"\",'1. Order'!K1128)","v":""},{"$f":"IF('1. Order'!M1128=\"\",\"\",'1. Order'!M1128)","v":""},null,null,null,{"$f":"IF('1. Order'!AF1128=\"\",\"\",'1. Order'!AF1128)","v":""}]
[{"$f":"IF('1. Order'!B1129=\"\",\"\",'1. Order'!B1129)","v":""},{"$f":"IF('1. Order'!I1129=\"\",\"\",'1. Order'!I1129)","v":""},{"$f":"IF('1. Order'!J1129=\"\",\"\",'1. Order'!J1129)","v":""},{"$f":"IF('1. Order'!K1129=\"\",\"\",'1. Order'!K1129)","v":""},{"$f":"IF('1. Order'!M1129=\"\",\"\",'1. Order'!M1129)","v":""},null,null,null,{"$f":"IF('1. Order'!AF1129=\"\",\"\",'1. Order'!AF1129)","v":""}]
[{"$f":"IF('1. Order'!B1130=\"\",\"\",'1. Order'!B1130)","v":""},{"$f":"IF('1. Order'!I1130=\"\",\"\",'1. Order'!I1130)","v":""},{"$f":"IF('1. Order'!J1130=\"\",\"\",'1. Order'!J1130)","v":""},{"$f":"IF('1. Order'!K1130=\"\",\"\",'1. Order'!K1130)","v":""},{"$f":"IF('1. Order'!M1130=\"\",\"\",'1. Order'!M1130)","v":""},null,null,null,{"$f":"IF('1. Order'!AF1130=\"\",\"\",'1. Order'!AF1130)","v":""}]
[{"$f":"IF('1. Order'!B1131=\"\",\"\",'1. Order'!B1131)","v":""},{"$f":"IF('1. Order'!I1131=\"\",\"\",'1. Order'!I1131)","v":""},{"$f":"IF('1. Order'!J1131=\"\",\"\",'1. Order'!J1131)","v":""},{"$f":"IF('1. Order'!K1131=\"\",\"\",'1. Order'!K1131)","v":""},{"$f":"IF('1. Order'!M1131=\"\",\"\",'1. Order'!M1131)","v":""},null,null,null,{"$f":"IF('1. Order'!AF1131=\"\",\"\",'1. Order'!AF1131)","v":""}]
[{"$f":"IF('1. Order'!B1132=\"\",\"\",'1. Order'!B1132)","v":""},{"$f":"IF('1. Order'!I1132=\"\",\"\",'1. Order'!I1132)","v":""},{"$f":"IF('1. Order'!J1132=\"\",\"\",'1. Order'!J1132)","v":""},{"$f":"IF('1. Order'!K1132=\"\",\"\",'1. Order'!K1132)","v":""},{"$f":"IF('1. Order'!M1132=\"\",\"\",'1. Order'!M1132)","v":""},null,null,null,{"$f":"IF('1. Order'!AF1132=\"\",\"\",'1. Order'!AF1132)","v":""}]
[{"$f":"IF('1. Order'!B1133=\"\",\"\",'1. Order'!B1133)","v":""},{"$f":"IF('1. Order'!I1133=\"\",\"\",'1. Order'!I1133)","v":""},{"$f":"IF('1. Order'!J1133=\"\",\"\",'1. Order'!J1133)","v":""},{"$f":"IF('1. Order'!K1133=\"\",\"\",'1. Order'!K1133)","v":""},{"$f":"IF('1. Order'!M1133=\"\",\"\",'1. Order'!M1133)","v":""},null,null,null,{"$f":"IF('1. Order'!AF1133=\"\",\"\",'1. Order'!AF1133)","v":""}]
[{"$f":"IF('1. Order'!B1134=\"\",\"\",'1. Order'!B1134)","v":""},{"$f":"IF('1. Order'!I1134=\"\",\"\",'1. Order'!I1134)","v":""},{"$f":"IF('1. Order'!J1134=\"\",\"\",'1. Order'!J1134)","v":""},{"$f":"IF('1. Order'!K1134=\"\",\"\",'1. Order'!K1134)","v":""},{"$f":"IF('1. Order'!M1134=\"\",\"\",'1. Order'!M1134)","v":""},null,null,null,{"$f":"IF('1. Order'!AF1134=\"\",\"\",'1. Order'!AF1134)","v":""}]
[{"$f":"IF('1. Order'!B1135=\"\",\"\",'1. Order'!B1135)","v":""},{"$f":"IF('1. Order'!I1135=\"\",\"\",'1. Order'!I1135)","v":""},{"$f":"IF('1. Order'!J1135=\"\",\"\",'1. Order'!J1135)","v":""},{"$f":"IF('1. Order'!K1135=\"\",\"\",'1. Order'!K1135)","v":""},{"$f":"IF('1. Order'!M1135=\"\",\"\",'1. Order'!M1135)","v":""},null,null,null,{"$f":"IF('1. Order'!AF1135=\"\",\"\",'1. Order'!AF1135)","v":""}]
[{"$f":"IF('1. Order'!B1136=\"\",\"\",'1. Order'!B1136)","v":""},{"$f":"IF('1. Order'!I1136=\"\",\"\",'1. Order'!I1136)","v":""},{"$f":"IF('1. Order'!J1136=\"\",\"\",'1. Order'!J1136)","v":""},{"$f":"IF('1. Order'!K1136=\"\",\"\",'1. Order'!K1136)","v":""},{"$f":"IF('1. Order'!M1136=\"\",\"\",'1. Order'!M1136)","v":""},null,null,null,{"$f":"IF('1. Order'!AF1136=\"\",\"\",'1. Order'!AF1136)","v":""}]
[{"$f":"IF('1. Order'!B1137=\"\",\"\",'1. Order'!B1137)","v":""},{"$f":"IF('1. Order'!I1137=\"\",\"\",'1. Order'!I1137)","v":""},{"$f":"IF('1. Order'!J1137=\"\",\"\",'1. Order'!J1137)","v":""},{"$f":"IF('1. Order'!K1137=\"\",\"\",'1. Order'!K1137)","v":""},{"$f":"IF('1. Order'!M1137=\"\",\"\",'1. Order'!M1137)","v":""},null,null,null,{"$f":"IF('1. Order'!AF1137=\"\",\"\",'1. Order'!AF1137)","v":""}]
[{"$f":"IF('1. Order'!B1138=\"\",\"\",'1. Order'!B1138)","v":""},{"$f":"IF('1. Order'!I1138=\"\",\"\",'1. Order'!I1138)","v":""},{"$f":"IF('1. Order'!J1138=\"\",\"\",'1. Order'!J1138)","v":""},{"$f":"IF('1. Order'!K1138=\"\",\"\",'1. Order'!K1138)","v":""},{"$f":"IF('1. Order'!M1138=\"\",\"\",'1. Order'!M1138)","v":""},null,null,null,{"$f":"IF('1. Order'!AF1138=\"\",\"\",'1. Order'!AF1138)","v":""}]
[{"$f":"IF('1. Order'!B1139=\"\",\"\",'1. Order'!B1139)","v":""},{"$f":"IF('1. Order'!I1139=\"\",\"\",'1. Order'!I1139)","v":""},{"$f":"IF('1. Order'!J1139=\"\",\"\",'1. Order'!J1139)","v":""},{"$f":"IF('1. Order'!K1139=\"\",\"\",'1. Order'!K1139)","v":""},{"$f":"IF('1. Order'!M1139=\"\",\"\",'1. Order'!M1139)","v":""},null,null,null,{"$f":"IF('1. Order'!AF1139=\"\",\"\",'1. Order'!AF1139)","v":""}]
[{"$f":"IF('1. Order'!B1140=\"\",\"\",'1. Order'!B1140)","v":""},{"$f":"IF('1. Order'!I1140=\"\",\"\",'1. Order'!I1140)","v":""},{"$f":"IF('1. Order'!J1140=\"\",\"\",'1. Order'!J1140)","v":""},{"$f":"IF('1. Order'!K1140=\"\",\"\",'1. Order'!K1140)","v":""},{"$f":"IF('1. Order'!M1140=\"\",\"\",'1. Order'!M1140)","v":""},null,null,null,{"$f":"IF('1. Order'!AF1140=\"\",\"\",'1. Order'!AF1140)","v":""}]
[{"$f":"IF('1. Order'!B1141=\"\",\"\",'1. Order'!B1141)","v":""},{"$f":"IF('1. Order'!I1141=\"\",\"\",'1. Order'!I1141)","v":""},{"$f":"IF('1. Order'!J1141=\"\",\"\",'1. Order'!J1141)","v":""},{"$f":"IF('1. Order'!K1141=\"\",\"\",'1. Order'!K1141)","v":""},{"$f":"IF('1. Order'!M1141=\"\",\"\",'1. Order'!M1141)","v":""},null,null,null,{"$f":"IF('1. Order'!AF1141=\"\",\"\",'1. Order'!AF1141)","v":""}]
[{"$f":"IF('1. Order'!B1142=\"\",\"\",'1. Order'!B1142)","v":""},{"$f":"IF('1. Order'!I1142=\"\",\"\",'1. Order'!I1142)","v":""},{"$f":"IF('1. Order'!J1142=\"\",\"\",'1. Order'!J1142)","v":""},{"$f":"IF('1. Order'!K1142=\"\",\"\",'1. Order'!K1142)","v":""},{"$f":"IF('1. Order'!M1142=\"\",\"\",'1. Order'!M1142)","v":""},null,null,null,{"$f":"IF('1. Order'!AF1142=\"\",\"\",'1. Order'!AF1142)","v":""}]
[{"$f":"IF('1. Order'!B1143=\"\",\"\",'1. Order'!B1143)","v":""},{"$f":"IF('1. Order'!I1143=\"\",\"\",'1. Order'!I1143)","v":""},{"$f":"IF('1. Order'!J1143=\"\",\"\",'1. Order'!J1143)","v":""},{"$f":"IF('1. Order'!K1143=\"\",\"\",'1. Order'!K1143)","v":""},{"$f":"IF('1. Order'!M1143=\"\",\"\",'1. Order'!M1143)","v":""},null,null,null,{"$f":"IF('1. Order'!AF1143=\"\",\"\",'1. Order'!AF1143)","v":""}]
[{"$f":"IF('1. Order'!B1144=\"\",\"\",'1. Order'!B1144)","v":""},{"$f":"IF('1. Order'!I1144=\"\",\"\",'1. Order'!I1144)","v":""},{"$f":"IF('1. Order'!J1144=\"\",\"\",'1. Order'!J1144)","v":""},{"$f":"IF('1. Order'!K1144=\"\",\"\",'1. Order'!K1144)","v":""},{"$f":"IF('1. Order'!M1144=\"\",\"\",'1. Order'!M1144)","v":""},null,null,null,{"$f":"IF('1. Order'!AF1144=\"\",\"\",'1. Order'!AF1144)","v":""}]
[{"$f":"IF('1. Order'!B1145=\"\",\"\",'1. Order'!B1145)","v":""},{"$f":"IF('1. Order'!I1145=\"\",\"\",'1. Order'!I1145)","v":""},{"$f":"IF('1. Order'!J1145=\"\",\"\",'1. Order'!J1145)","v":""},{"$f":"IF('1. Order'!K1145=\"\",\"\",'1. Order'!K1145)","v":""},{"$f":"IF('1. Order'!M1145=\"\",\"\",'1. Order'!M1145)","v":""},null,null,null,{"$f":"IF('1. Order'!AF1145=\"\",\"\",'1. Order'!AF1145)","v":""}]
[{"$f":"IF('1. Order'!B1146=\"\",\"\",'1. Order'!B1146)","v":""},{"$f":"IF('1. Order'!I1146=\"\",\"\",'1. Order'!I1146)","v":""},{"$f":"IF('1. Order'!J1146=\"\",\"\",'1. Order'!J1146)","v":""},{"$f":"IF('1. Order'!K1146=\"\",\"\",'1. Order'!K1146)","v":""},{"$f":"IF('1. Order'!M1146=\"\",\"\",'1. Order'!M1146)","v":""},null,null,null,{"$f":"IF('1. Order'!AF1146=\"\",\"\",'1. Order'!AF1146)","v":""}]
[{"$f":"IF('1. Order'!B1147=\"\",\"\",'1. Order'!B1147)","v":""},{"$f":"IF('1. Order'!I1147=\"\",\"\",'1. Order'!I1147)","v":""},{"$f":"IF('1. Order'!J1147=\"\",\"\",'1. Order'!J1147)","v":""},{"$f":"IF('1. Order'!K1147=\"\",\"\",'1. Order'!K1147)","v":""},{"$f":"IF('1. Order'!M1147=\"\",\"\",'1. Order'!M1147)","v":""},null,null,null,{"$f":"IF('1. Order'!AF1147=\"\",\"\",'1. Order'!AF1147)","v":""}]
[{"$f":"IF('1. Order'!B1148=\"\",\"\",'1. Order'!B1148)","v":""},{"$f":"IF('1. Order'!I1148=\"\",\"\",'1. Order'!I1148)","v":""},{"$f":"IF('1. Order'!J1148=\"\",\"\",'1. Order'!J1148)","v":""},{"$f":"IF('1. Order'!K1148=\"\",\"\",'1. Order'!K1148)","v":""},{"$f":"IF('1. Order'!M1148=\"\",\"\",'1. Order'!M1148)","v":""},null,null,null,{"$f":"IF('1. Order'!AF1148=\"\",\"\",'1. Order'!AF1148)","v":""}]
[{"$f":"IF('1. Order'!B1149=\"\",\"\",'1. Order'!B1149)","v":""},{"$f":"IF('1. Order'!I1149=\"\",\"\",'1. Order'!I1149)","v":""},{"$f":"IF('1. Order'!J1149=\"\",\"\",'1. Order'!J1149)","v":""},{"$f":"IF('1. Order'!K1149=\"\",\"\",'1. Order'!K1149)","v":""},{"$f":"IF('1. Order'!M1149=\"\",\"\",'1. Order'!M1149)","v":""},null,null,null,{"$f":"IF('1. Order'!AF1149=\"\",\"\",'1. Order'!AF1149)","v":""}]
[{"$f":"IF('1. Order'!B1150=\"\",\"\",'1. Order'!B1150)","v":""},{"$f":"IF('1. Order'!I1150=\"\",\"\",'1. Order'!I1150)","v":""},{"$f":"IF('1. Order'!J1150=\"\",\"\",'1. Order'!J1150)","v":""},{"$f":"IF('1. Order'!K1150=\"\",\"\",'1. Order'!K1150)","v":""},{"$f":"IF('1. Order'!M1150=\"\",\"\",'1. Order'!M1150)","v":""},null,null,null,{"$f":"IF('1. Order'!AF1150=\"\",\"\",'1. Order'!AF1150)","v":""}]
[{"$f":"IF('1. Order'!B1151=\"\",\"\",'1. Order'!B1151)","v":""},{"$f":"IF('1. Order'!I1151=\"\",\"\",'1. Order'!I1151)","v":""},{"$f":"IF('1. Order'!J1151=\"\",\"\",'1. Order'!J1151)","v":""},{"$f":"IF('1. Order'!K1151=\"\",\"\",'1. Order'!K1151)","v":""},{"$f":"IF('1. Order'!M1151=\"\",\"\",'1. Order'!M1151)","v":""},null,null,null,{"$f":"IF('1. Order'!AF1151=\"\",\"\",'1. Order'!AF1151)","v":""}]
[{"$f":"IF('1. Order'!B1152=\"\",\"\",'1. Order'!B1152)","v":""},{"$f":"IF('1. Order'!I1152=\"\",\"\",'1. Order'!I1152)","v":""},{"$f":"IF('1. Order'!J1152=\"\",\"\",'1. Order'!J1152)","v":""},{"$f":"IF('1. Order'!K1152=\"\",\"\",'1. Order'!K1152)","v":""},{"$f":"IF('1. Order'!M1152=\"\",\"\",'1. Order'!M1152)","v":""},null,null,null,{"$f":"IF('1. Order'!AF1152=\"\",\"\",'1. Order'!AF1152)","v":""}]
[{"$f":"IF('1. Order'!B1153=\"\",\"\",'1. Order'!B1153)","v":""},{"$f":"IF('1. Order'!I1153=\"\",\"\",'1. Order'!I1153)","v":""},{"$f":"IF('1. Order'!J1153=\"\",\"\",'1. Order'!J1153)","v":""},{"$f":"IF('1. Order'!K1153=\"\",\"\",'1. Order'!K1153)","v":""},{"$f":"IF('1. Order'!M1153=\"\",\"\",'1. Order'!M1153)","v":""},null,null,null,{"$f":"IF('1. Order'!AF1153=\"\",\"\",'1. Order'!AF1153)","v":""}]
[{"$f":"IF('1. Order'!B1154=\"\",\"\",'1. Order'!B1154)","v":""},{"$f":"IF('1. Order'!I1154=\"\",\"\",'1. Order'!I1154)","v":""},{"$f":"IF('1. Order'!J1154=\"\",\"\",'1. Order'!J1154)","v":""},{"$f":"IF('1. Order'!K1154=\"\",\"\",'1. Order'!K1154)","v":""},{"$f":"IF('1. Order'!M1154=\"\",\"\",'1. Order'!M1154)","v":""},null,null,null,{"$f":"IF('1. Order'!AF1154=\"\",\"\",'1. Order'!AF1154)","v":""}]
[{"$f":"IF('1. Order'!B1155=\"\",\"\",'1. Order'!B1155)","v":""},{"$f":"IF('1. Order'!I1155=\"\",\"\",'1. Order'!I1155)","v":""},{"$f":"IF('1. Order'!J1155=\"\",\"\",'1. Order'!J1155)","v":""},{"$f":"IF('1. Order'!K1155=\"\",\"\",'1. Order'!K1155)","v":""},{"$f":"IF('1. Order'!M1155=\"\",\"\",'1. Order'!M1155)","v":""},null,null,null,{"$f":"IF('1. Order'!AF1155=\"\",\"\",'1. Order'!AF1155)","v":""}]
[{"$f":"IF('1. Order'!B1156=\"\",\"\",'1. Order'!B1156)","v":""},{"$f":"IF('1. Order'!I1156=\"\",\"\",'1. Order'!I1156)","v":""},{"$f":"IF('1. Order'!J1156=\"\",\"\",'1. Order'!J1156)","v":""},{"$f":"IF('1. Order'!K1156=\"\",\"\",'1. Order'!K1156)","v":""},{"$f":"IF('1. Order'!M1156=\"\",\"\",'1. Order'!M1156)","v":""},null,null,null,{"$f":"IF('1. Order'!AF1156=\"\",\"\",'1. Order'!AF1156)","v":""}]
[{"$f":"IF('1. Order'!B1157=\"\",\"\",'1. Order'!B1157)","v":""},{"$f":"IF('1. Order'!I1157=\"\",\"\",'1. Order'!I1157)","v":""},{"$f":"IF('1. Order'!J1157=\"\",\"\",'1. Order'!J1157)","v":""},{"$f":"IF('1. Order'!K1157=\"\",\"\",'1. Order'!K1157)","v":""},{"$f":"IF('1. Order'!M1157=\"\",\"\",'1. Order'!M1157)","v":""},null,null,null,{"$f":"IF('1. Order'!AF1157=\"\",\"\",'1. Order'!AF1157)","v":""}]
[{"$f":"IF('1. Order'!B1158=\"\",\"\",'1. Order'!B1158)","v":""},{"$f":"IF('1. Order'!I1158=\"\",\"\",'1. Order'!I1158)","v":""},{"$f":"IF('1. Order'!J1158=\"\",\"\",'1. Order'!J1158)","v":""},{"$f":"IF('1. Order'!K1158=\"\",\"\",'1. Order'!K1158)","v":""},{"$f":"IF('1. Order'!M1158=\"\",\"\",'1. Order'!M1158)","v":""},null,null,null,{"$f":"IF('1. Order'!AF1158=\"\",\"\",'1. Order'!AF1158)","v":""}]
[{"$f":"IF('1. Order'!B1159=\"\",\"\",'1. Order'!B1159)","v":""},{"$f":"IF('1. Order'!I1159=\"\",\"\",'1. Order'!I1159)","v":""},{"$f":"IF('1. Order'!J1159=\"\",\"\",'1. Order'!J1159)","v":""},{"$f":"IF('1. Order'!K1159=\"\",\"\",'1. Order'!K1159)","v":""},{"$f":"IF('1. Order'!M1159=\"\",\"\",'1. Order'!M1159)","v":""},null,null,null,{"$f":"IF('1. Order'!AF1159=\"\",\"\",'1. Order'!AF1159)","v":""}]
[{"$f":"IF('1. Order'!B1160=\"\",\"\",'1. Order'!B1160)","v":""},{"$f":"IF('1. Order'!I1160=\"\",\"\",'1. Order'!I1160)","v":""},{"$f":"IF('1. Order'!J1160=\"\",\"\",'1. Order'!J1160)","v":""},{"$f":"IF('1. Order'!K1160=\"\",\"\",'1. Order'!K1160)","v":""},{"$f":"IF('1. Order'!M1160=\"\",\"\",'1. Order'!M1160)","v":""},null,null,null,{"$f":"IF('1. Order'!AF1160=\"\",\"\",'1. Order'!AF1160)","v":""}]
[{"$f":"IF('1. Order'!B1161=\"\",\"\",'1. Order'!B1161)","v":""},{"$f":"IF('1. Order'!I1161=\"\",\"\",'1. Order'!I1161)","v":""},{"$f":"IF('1. Order'!J1161=\"\",\"\",'1. Order'!J1161)","v":""},{"$f":"IF('1. Order'!K1161=\"\",\"\",'1. Order'!K1161)","v":""},{"$f":"IF('1. Order'!M1161=\"\",\"\",'1. Order'!M1161)","v":""},null,null,null,{"$f":"IF('1. Order'!AF1161=\"\",\"\",'1. Order'!AF1161)","v":""}]
[{"$f":"IF('1. Order'!B1162=\"\",\"\",'1. Order'!B1162)","v":""},{"$f":"IF('1. Order'!I1162=\"\",\"\",'1. Order'!I1162)","v":""},{"$f":"IF('1. Order'!J1162=\"\",\"\",'1. Order'!J1162)","v":""},{"$f":"IF('1. Order'!K1162=\"\",\"\",'1. Order'!K1162)","v":""},{"$f":"IF('1. Order'!M1162=\"\",\"\",'1. Order'!M1162)","v":""},null,null,null,{"$f":"IF('1. Order'!AF1162=\"\",\"\",'1. Order'!AF1162)","v":""}]
[{"$f":"IF('1. Order'!B1163=\"\",\"\",'1. Order'!B1163)","v":""},{"$f":"IF('1. Order'!I1163=\"\",\"\",'1. Order'!I1163)","v":""},{"$f":"IF('1. Order'!J1163=\"\",\"\",'1. Order'!J1163)","v":""},{"$f":"IF('1. Order'!K1163=\"\",\"\",'1. Order'!K1163)","v":""},{"$f":"IF('1. Order'!M1163=\"\",\"\",'1. Order'!M1163)","v":""},null,null,null,{"$f":"IF('1. Order'!AF1163=\"\",\"\",'1. Order'!AF1163)","v":""}]
[{"$f":"IF('1. Order'!B1164=\"\",\"\",'1. Order'!B1164)","v":""},{"$f":"IF('1. Order'!I1164=\"\",\"\",'1. Order'!I1164)","v":""},{"$f":"IF('1. Order'!J1164=\"\",\"\",'1. Order'!J1164)","v":""},{"$f":"IF('1. Order'!K1164=\"\",\"\",'1. Order'!K1164)","v":""},{"$f":"IF('1. Order'!M1164=\"\",\"\",'1. Order'!M1164)","v":""},null,null,null,{"$f":"IF('1. Order'!AF1164=\"\",\"\",'1. Order'!AF1164)","v":""}]
[{"$f":"IF('1. Order'!B1165=\"\",\"\",'1. Order'!B1165)","v":""},{"$f":"IF('1. Order'!I1165=\"\",\"\",'1. Order'!I1165)","v":""},{"$f":"IF('1. Order'!J1165=\"\",\"\",'1. Order'!J1165)","v":""},{"$f":"IF('1. Order'!K1165=\"\",\"\",'1. Order'!K1165)","v":""},{"$f":"IF('1. Order'!M1165=\"\",\"\",'1. Order'!M1165)","v":""},null,null,null,{"$f":"IF('1. Order'!AF1165=\"\",\"\",'1. Order'!AF1165)","v":""}]
[{"$f":"IF('1. Order'!B1166=\"\",\"\",'1. Order'!B1166)","v":""},{"$f":"IF('1. Order'!I1166=\"\",\"\",'1. Order'!I1166)","v":""},{"$f":"IF('1. Order'!J1166=\"\",\"\",'1. Order'!J1166)","v":""},{"$f":"IF('1. Order'!K1166=\"\",\"\",'1. Order'!K1166)","v":""},{"$f":"IF('1. Order'!M1166=\"\",\"\",'1. Order'!M1166)","v":""},null,null,null,{"$f":"IF('1. Order'!AF1166=\"\",\"\",'1. Order'!AF1166)","v":""}]
[{"$f":"IF('1. Order'!B1167=\"\",\"\",'1. Order'!B1167)","v":""},{"$f":"IF('1. Order'!I1167=\"\",\"\",'1. Order'!I1167)","v":""},{"$f":"IF('1. Order'!J1167=\"\",\"\",'1. Order'!J1167)","v":""},{"$f":"IF('1. Order'!K1167=\"\",\"\",'1. Order'!K1167)","v":""},{"$f":"IF('1. Order'!M1167=\"\",\"\",'1. Order'!M1167)","v":""},null,null,null,{"$f":"IF('1. Order'!AF1167=\"\",\"\",'1. Order'!AF1167)","v":""}]
[{"$f":"IF('1. Order'!B1168=\"\",\"\",'1. Order'!B1168)","v":""},{"$f":"IF('1. Order'!I1168=\"\",\"\",'1. Order'!I1168)","v":""},{"$f":"IF('1. Order'!J1168=\"\",\"\",'1. Order'!J1168)","v":""},{"$f":"IF('1. Order'!K1168=\"\",\"\",'1. Order'!K1168)","v":""},{"$f":"IF('1. Order'!M1168=\"\",\"\",'1. Order'!M1168)","v":""},null,null,null,{"$f":"IF('1. Order'!AF1168=\"\",\"\",'1. Order'!AF1168)","v":""}]
[{"$f":"IF('1. Order'!B1169=\"\",\"\",'1. Order'!B1169)","v":""},{"$f":"IF('1. Order'!I1169=\"\",\"\",'1. Order'!I1169)","v":""},{"$f":"IF('1. Order'!J1169=\"\",\"\",'1. Order'!J1169)","v":""},{"$f":"IF('1. Order'!K1169=\"\",\"\",'1. Order'!K1169)","v":""},{"$f":"IF('1. Order'!M1169=\"\",\"\",'1. Order'!M1169)","v":""},null,null,null,{"$f":"IF('1. Order'!AF1169=\"\",\"\",'1. Order'!AF1169)","v":""}]
[{"$f":"IF('1. Order'!B1170=\"\",\"\",'1. Order'!B1170)","v":""},{"$f":"IF('1. Order'!I1170=\"\",\"\",'1. Order'!I1170)","v":""},{"$f":"IF('1. Order'!J1170=\"\",\"\",'1. Order'!J1170)","v":""},{"$f":"IF('1. Order'!K1170=\"\",\"\",'1. Order'!K1170)","v":""},{"$f":"IF('1. Order'!M1170=\"\",\"\",'1. Order'!M1170)","v":""},null,null,null,{"$f":"IF('1. Order'!AF1170=\"\",\"\",'1. Order'!AF1170)","v":""}]
[{"$f":"IF('1. Order'!B1171=\"\",\"\",'1. Order'!B1171)","v":""},{"$f":"IF('1. Order'!I1171=\"\",\"\",'1. Order'!I1171)","v":""},{"$f":"IF('1. Order'!J1171=\"\",\"\",'1. Order'!J1171)","v":""},{"$f":"IF('1. Order'!K1171=\"\",\"\",'1. Order'!K1171)","v":""},{"$f":"IF('1. Order'!M1171=\"\",\"\",'1. Order'!M1171)","v":""},null,null,null,{"$f":"IF('1. Order'!AF1171=\"\",\"\",'1. Order'!AF1171)","v":""}]
[{"$f":"IF('1. Order'!B1172=\"\",\"\",'1. Order'!B1172)","v":""},{"$f":"IF('1. Order'!I1172=\"\",\"\",'1. Order'!I1172)","v":""},{"$f":"IF('1. Order'!J1172=\"\",\"\",'1. Order'!J1172)","v":""},{"$f":"IF('1. Order'!K1172=\"\",\"\",'1. Order'!K1172)","v":""},{"$f":"IF('1. Order'!M1172=\"\",\"\",'1. Order'!M1172)","v":""},null,null,null,{"$f":"IF('1. Order'!AF1172=\"\",\"\",'1. Order'!AF1172)","v":""}]
[{"$f":"IF('1. Order'!B1173=\"\",\"\",'1. Order'!B1173)","v":""},{"$f":"IF('1. Order'!I1173=\"\",\"\",'1. Order'!I1173)","v":""},{"$f":"IF('1. Order'!J1173=\"\",\"\",'1. Order'!J1173)","v":""},{"$f":"IF('1. Order'!K1173=\"\",\"\",'1. Order'!K1173)","v":""},{"$f":"IF('1. Order'!M1173=\"\",\"\",'1. Order'!M1173)","v":""},null,null,null,{"$f":"IF('1. Order'!AF1173=\"\",\"\",'1. Order'!AF1173)","v":""}]
[{"$f":"IF('1. Order'!B1174=\"\",\"\",'1. Order'!B1174)","v":""},{"$f":"IF('1. Order'!I1174=\"\",\"\",'1. Order'!I1174)","v":""},{"$f":"IF('1. Order'!J1174=\"\",\"\",'1. Order'!J1174)","v":""},{"$f":"IF('1. Order'!K1174=\"\",\"\",'1. Order'!K1174)","v":""},{"$f":"IF('1. Order'!M1174=\"\",\"\",'1. Order'!M1174)","v":""},null,null,null,{"$f":"IF('1. Order'!AF1174=\"\",\"\",'1. Order'!AF1174)","v":""}]
[{"$f":"IF('1. Order'!B1175=\"\",\"\",'1. Order'!B1175)","v":""},{"$f":"IF('1. Order'!I1175=\"\",\"\",'1. Order'!I1175)","v":""},{"$f":"IF('1. Order'!J1175=\"\",\"\",'1. Order'!J1175)","v":""},{"$f":"IF('1. Order'!K1175=\"\",\"\",'1. Order'!K1175)","v":""},{"$f":"IF('1. Order'!M1175=\"\",\"\",'1. Order'!M1175)","v":""},null,null,null,{"$f":"IF('1. Order'!AF1175=\"\",\"\",'1. Order'!AF1175)","v":""}]
[{"$f":"IF('1. Order'!B1176=\"\",\"\",'1. Order'!B1176)","v":""},{"$f":"IF('1. Order'!I1176=\"\",\"\",'1. Order'!I1176)","v":""},{"$f":"IF('1. Order'!J1176=\"\",\"\",'1. Order'!J1176)","v":""},{"$f":"IF('1. Order'!K1176=\"\",\"\",'1. Order'!K1176)","v":""},{"$f":"IF('1. Order'!M1176=\"\",\"\",'1. Order'!M1176)","v":""},null,null,null,{"$f":"IF('1. Order'!AF1176=\"\",\"\",'1. Order'!AF1176)","v":""}]
[{"$f":"IF('1. Order'!B1177=\"\",\"\",'1. Order'!B1177)","v":""},{"$f":"IF('1. Order'!I1177=\"\",\"\",'1. Order'!I1177)","v":""},{"$f":"IF('1. Order'!J1177=\"\",\"\",'1. Order'!J1177)","v":""},{"$f":"IF('1. Order'!K1177=\"\",\"\",'1. Order'!K1177)","v":""},{"$f":"IF('1. Order'!M1177=\"\",\"\",'1. Order'!M1177)","v":""},null,null,null,{"$f":"IF('1. Order'!AF1177=\"\",\"\",'1. Order'!AF1177)","v":""}]
[{"$f":"IF('1. Order'!B1178=\"\",\"\",'1. Order'!B1178)","v":""},{"$f":"IF('1. Order'!I1178=\"\",\"\",'1. Order'!I1178)","v":""},{"$f":"IF('1. Order'!J1178=\"\",\"\",'1. Order'!J1178)","v":""},{"$f":"IF('1. Order'!K1178=\"\",\"\",'1. Order'!K1178)","v":""},{"$f":"IF('1. Order'!M1178=\"\",\"\",'1. Order'!M1178)","v":""},null,null,null,{"$f":"IF('1. Order'!AF1178=\"\",\"\",'1. Order'!AF1178)","v":""}]
[{"$f":"IF('1. Order'!B1179=\"\",\"\",'1. Order'!B1179)","v":""},{"$f":"IF('1. Order'!I1179=\"\",\"\",'1. Order'!I1179)","v":""},{"$f":"IF('1. Order'!J1179=\"\",\"\",'1. Order'!J1179)","v":""},{"$f":"IF('1. Order'!K1179=\"\",\"\",'1. Order'!K1179)","v":""},{"$f":"IF('1. Order'!M1179=\"\",\"\",'1. Order'!M1179)","v":""},null,null,null,{"$f":"IF('1. Order'!AF1179=\"\",\"\",'1. Order'!AF1179)","v":""}]
[{"$f":"IF('1. Order'!B1180=\"\",\"\",'1. Order'!B1180)","v":""},{"$f":"IF('1. Order'!I1180=\"\",\"\",'1. Order'!I1180)","v":""},{"$f":"IF('1. Order'!J1180=\"\",\"\",'1. Order'!J1180)","v":""},{"$f":"IF('1. Order'!K1180=\"\",\"\",'1. Order'!K1180)","v":""},{"$f":"IF('1. Order'!M1180=\"\",\"\",'1. Order'!M1180)","v":""},null,null,null,{"$f":"IF('1. Order'!AF1180=\"\",\"\",'1. Order'!AF1180)","v":""}]
[{"$f":"IF('1. Order'!B1181=\"\",\"\",'1. Order'!B1181)","v":""},{"$f":"IF('1. Order'!I1181=\"\",\"\",'1. Order'!I1181)","v":""},{"$f":"IF('1. Order'!J1181=\"\",\"\",'1. Order'!J1181)","v":""},{"$f":"IF('1. Order'!K1181=\"\",\"\",'1. Order'!K1181)","v":""},{"$f":"IF('1. Order'!M1181=\"\",\"\",'1. Order'!M1181)","v":""},null,null,null,{"$f":"IF('1. Order'!AF1181=\"\",\"\",'1. Order'!AF1181)","v":""}]
[{"$f":"IF('1. Order'!B1182=\"\",\"\",'1. Order'!B1182)","v":""},{"$f":"IF('1. Order'!I1182=\"\",\"\",'1. Order'!I1182)","v":""},{"$f":"IF('1. Order'!J1182=\"\",\"\",'1. Order'!J1182)","v":""},{"$f":"IF('1. Order'!K1182=\"\",\"\",'1. Order'!K1182)","v":""},{"$f":"IF('1. Order'!M1182=\"\",\"\",'1. Order'!M1182)","v":""},null,null,null,{"$f":"IF('1. Order'!AF1182=\"\",\"\",'1. Order'!AF1182)","v":""}]
[{"$f":"IF('1. Order'!B1183=\"\",\"\",'1. Order'!B1183)","v":""},{"$f":"IF('1. Order'!I1183=\"\",\"\",'1. Order'!I1183)","v":""},{"$f":"IF('1. Order'!J1183=\"\",\"\",'1. Order'!J1183)","v":""},{"$f":"IF('1. Order'!K1183=\"\",\"\",'1. Order'!K1183)","v":""},{"$f":"IF('1. Order'!M1183=\"\",\"\",'1. Order'!M1183)","v":""},null,null,null,{"$f":"IF('1. Order'!AF1183=\"\",\"\",'1. Order'!AF1183)","v":""}]
[{"$f":"IF('1. Order'!B1184=\"\",\"\",'1. Order'!B1184)","v":""},{"$f":"IF('1. Order'!I1184=\"\",\"\",'1. Order'!I1184)","v":""},{"$f":"IF('1. Order'!J1184=\"\",\"\",'1. Order'!J1184)","v":""},{"$f":"IF('1. Order'!K1184=\"\",\"\",'1. Order'!K1184)","v":""},{"$f":"IF('1. Order'!M1184=\"\",\"\",'1. Order'!M1184)","v":""},null,null,null,{"$f":"IF('1. Order'!AF1184=\"\",\"\",'1. Order'!AF1184)","v":""}]
[{"$f":"IF('1. Order'!B1185=\"\",\"\",'1. Order'!B1185)","v":""},{"$f":"IF('1. Order'!I1185=\"\",\"\",'1. Order'!I1185)","v":""},{"$f":"IF('1. Order'!J1185=\"\",\"\",'1. Order'!J1185)","v":""},{"$f":"IF('1. Order'!K1185=\"\",\"\",'1. Order'!K1185)","v":""},{"$f":"IF('1. Order'!M1185=\"\",\"\",'1. Order'!M1185)","v":""},null,null,null,{"$f":"IF('1. Order'!AF1185=\"\",\"\",'1. Order'!AF1185)","v":""}]
[{"$f":"IF('1. Order'!B1186=\"\",\"\",'1. Order'!B1186)","v":""},{"$f":"IF('1. Order'!I1186=\"\",\"\",'1. Order'!I1186)","v":""},{"$f":"IF('1. Order'!J1186=\"\",\"\",'1. Order'!J1186)","v":""},{"$f":"IF('1. Order'!K1186=\"\",\"\",'1. Order'!K1186)","v":""},{"$f":"IF('1. Order'!M1186=\"\",\"\",'1. Order'!M1186)","v":""},null,null,null,{"$f":"IF('1. Order'!AF1186=\"\",\"\",'1. Order'!AF1186)","v":""}]
[{"$f":"IF('1. Order'!B1187=\"\",\"\",'1. Order'!B1187)","v":""},{"$f":"IF('1. Order'!I1187=\"\",\"\",'1. Order'!I1187)","v":""},{"$f":"IF('1. Order'!J1187=\"\",\"\",'1. Order'!J1187)","v":""},{"$f":"IF('1. Order'!K1187=\"\",\"\",'1. Order'!K1187)","v":""},{"$f":"IF('1. Order'!M1187=\"\",\"\",'1. Order'!M1187)","v":""},null,null,null,{"$f":"IF('1. Order'!AF1187=\"\",\"\",'1. Order'!AF1187)","v":""}]
[{"$f":"IF('1. Order'!B1188=\"\",\"\",'1. Order'!B1188)","v":""},{"$f":"IF('1. Order'!I1188=\"\",\"\",'1. Order'!I1188)","v":""},{"$f":"IF('1. Order'!J1188=\"\",\"\",'1. Order'!J1188)","v":""},{"$f":"IF('1. Order'!K1188=\"\",\"\",'1. Order'!K1188)","v":""},{"$f":"IF('1. Order'!M1188=\"\",\"\",'1. Order'!M1188)","v":""},null,null,null,{"$f":"IF('1. Order'!AF1188=\"\",\"\",'1. Order'!AF1188)","v":""}]
[{"$f":"IF('1. Order'!B1189=\"\",\"\",'1. Order'!B1189)","v":""},{"$f":"IF('1. Order'!I1189=\"\",\"\",'1. Order'!I1189)","v":""},{"$f":"IF('1. Order'!J1189=\"\",\"\",'1. Order'!J1189)","v":""},{"$f":"IF('1. Order'!K1189=\"\",\"\",'1. Order'!K1189)","v":""},{"$f":"IF('1. Order'!M1189=\"\",\"\",'1. Order'!M1189)","v":""},null,null,null,{"$f":"IF('1. Order'!AF1189=\"\",\"\",'1. Order'!AF1189)","v":""}]
[{"$f":"IF('1. Order'!B1190=\"\",\"\",'1. Order'!B1190)","v":""},{"$f":"IF('1. Order'!I1190=\"\",\"\",'1. Order'!I1190)","v":""},{"$f":"IF('1. Order'!J1190=\"\",\"\",'1. Order'!J1190)","v":""},{"$f":"IF('1. Order'!K1190=\"\",\"\",'1. Order'!K1190)","v":""},{"$f":"IF('1. Order'!M1190=\"\",\"\",'1. Order'!M1190)","v":""},null,null,null,{"$f":"IF('1. Order'!AF1190=\"\",\"\",'1. Order'!AF1190)","v":""}]
[{"$f":"IF('1. Order'!B1191=\"\",\"\",'1. Order'!B1191)","v":""},{"$f":"IF('1. Order'!I1191=\"\",\"\",'1. Order'!I1191)","v":""},{"$f":"IF('1. Order'!J1191=\"\",\"\",'1. Order'!J1191)","v":""},{"$f":"IF('1. Order'!K1191=\"\",\"\",'1. Order'!K1191)","v":""},{"$f":"IF('1. Order'!M1191=\"\",\"\",'1. Order'!M1191)","v":""},null,null,null,{"$f":"IF('1. Order'!AF1191=\"\",\"\",'1. Order'!AF1191)","v":""}]
[{"$f":"IF('1. Order'!B1192=\"\",\"\",'1. Order'!B1192)","v":""},{"$f":"IF('1. Order'!I1192=\"\",\"\",'1. Order'!I1192)","v":""},{"$f":"IF('1. Order'!J1192=\"\",\"\",'1. Order'!J1192)","v":""},{"$f":"IF('1. Order'!K1192=\"\",\"\",'1. Order'!K1192)","v":""},{"$f":"IF('1. Order'!M1192=\"\",\"\",'1. Order'!M1192)","v":""},null,null,null,{"$f":"IF('1. Order'!AF1192=\"\",\"\",'1. Order'!AF1192)","v":""}]
[{"$f":"IF('1. Order'!B1193=\"\",\"\",'1. Order'!B1193)","v":""},{"$f":"IF('1. Order'!I1193=\"\",\"\",'1. Order'!I1193)","v":""},{"$f":"IF('1. Order'!J1193=\"\",\"\",'1. Order'!J1193)","v":""},{"$f":"IF('1. Order'!K1193=\"\",\"\",'1. Order'!K1193)","v":""},{"$f":"IF('1. Order'!M1193=\"\",\"\",'1. Order'!M1193)","v":""},null,null,null,{"$f":"IF('1. Order'!AF1193=\"\",\"\",'1. Order'!AF1193)","v":""}]
[{"$f":"IF('1. Order'!B1194=\"\",\"\",'1. Order'!B1194)","v":""},{"$f":"IF('1. Order'!I1194=\"\",\"\",'1. Order'!I1194)","v":""},{"$f":"IF('1. Order'!J1194=\"\",\"\",'1. Order'!J1194)","v":""},{"$f":"IF('1. Order'!K1194=\"\",\"\",'1. Order'!K1194)","v":""},{"$f":"IF('1. Order'!M1194=\"\",\"\",'1. Order'!M1194)","v":""},null,null,null,{"$f":"IF('1. Order'!AF1194=\"\",\"\",'1. Order'!AF1194)","v":""}]
[{"$f":"IF('1. Order'!B1195=\"\",\"\",'1. Order'!B1195)","v":""},{"$f":"IF('1. Order'!I1195=\"\",\"\",'1. Order'!I1195)","v":""},{"$f":"IF('1. Order'!J1195=\"\",\"\",'1. Order'!J1195)","v":""},{"$f":"IF('1. Order'!K1195=\"\",\"\",'1. Order'!K1195)","v":""},{"$f":"IF('1. Order'!M1195=\"\",\"\",'1. Order'!M1195)","v":""},null,null,null,{"$f":"IF('1. Order'!AF1195=\"\",\"\",'1. Order'!AF1195)","v":""}]
[{"$f":"IF('1. Order'!B1196=\"\",\"\",'1. Order'!B1196)","v":""},{"$f":"IF('1. Order'!I1196=\"\",\"\",'1. Order'!I1196)","v":""},{"$f":"IF('1. Order'!J1196=\"\",\"\",'1. Order'!J1196)","v":""},{"$f":"IF('1. Order'!K1196=\"\",\"\",'1. Order'!K1196)","v":""},{"$f":"IF('1. Order'!M1196=\"\",\"\",'1. Order'!M1196)","v":""},null,null,null,{"$f":"IF('1. Order'!AF1196=\"\",\"\",'1. Order'!AF1196)","v":""}]
[{"$f":"IF('1. Order'!B1197=\"\",\"\",'1. Order'!B1197)","v":""},{"$f":"IF('1. Order'!I1197=\"\",\"\",'1. Order'!I1197)","v":""},{"$f":"IF('1. Order'!J1197=\"\",\"\",'1. Order'!J1197)","v":""},{"$f":"IF('1. Order'!K1197=\"\",\"\",'1. Order'!K1197)","v":""},{"$f":"IF('1. Order'!M1197=\"\",\"\",'1. Order'!M1197)","v":""},null,null,null,{"$f":"IF('1. Order'!AF1197=\"\",\"\",'1. Order'!AF1197)","v":""}]
[{"$f":"IF('1. Order'!B1198=\"\",\"\",'1. Order'!B1198)","v":""},{"$f":"IF('1. Order'!I1198=\"\",\"\",'1. Order'!I1198)","v":""},{"$f":"IF('1. Order'!J1198=\"\",\"\",'1. Order'!J1198)","v":""},{"$f":"IF('1. Order'!K1198=\"\",\"\",'1. Order'!K1198)","v":""},{"$f":"IF('1. Order'!M1198=\"\",\"\",'1. Order'!M1198)","v":""},null,null,null,{"$f":"IF('1. Order'!AF1198=\"\",\"\",'1. Order'!AF1198)","v":""}]
[{"$f":"IF('1. Order'!B1199=\"\",\"\",'1. Order'!B1199)","v":""},{"$f":"IF('1. Order'!I1199=\"\",\"\",'1. Order'!I1199)","v":""},{"$f":"IF('1. Order'!J1199=\"\",\"\",'1. Order'!J1199)","v":""},{"$f":"IF('1. Order'!K1199=\"\",\"\",'1. Order'!K1199)","v":""},{"$f":"IF('1. Order'!M1199=\"\",\"\",'1. Order'!M1199)","v":""},null,null,null,{"$f":"IF('1. Order'!AF1199=\"\",\"\",'1. Order'!AF1199)","v":""}]
[{"$f":"IF('1. Order'!B1200=\"\",\"\",'1. Order'!B1200)","v":""},{"$f":"IF('1. Order'!I1200=\"\",\"\",'1. Order'!I1200)","v":""},{"$f":"IF('1. Order'!J1200=\"\",\"\",'1. Order'!J1200)","v":""},{"$f":"IF('1. Order'!K1200=\"\",\"\",'1. Order'!K1200)","v":""},{"$f":"IF('1. Order'!M1200=\"\",\"\",'1. Order'!M1200)","v":""},null,null,null,{"$f":"IF('1. Order'!AF1200=\"\",\"\",'1. Order'!AF1200)","v":""}]
[{"$f":"IF('1. Order'!B1201=\"\",\"\",'1. Order'!B1201)","v":""},{"$f":"IF('1. Order'!I1201=\"\",\"\",'1. Order'!I1201)","v":""},{"$f":"IF('1. Order'!J1201=\"\",\"\",'1. Order'!J1201)","v":""},{"$f":"IF('1. Order'!K1201=\"\",\"\",'1. Order'!K1201)","v":""},{"$f":"IF('1. Order'!M1201=\"\",\"\",'1. Order'!M1201)","v":""},null,null,null,{"$f":"IF('1. Order'!AF1201=\"\",\"\",'1. Order'!AF1201)","v":""}]
[{"$f":"IF('1. Order'!B1202=\"\",\"\",'1. Order'!B1202)","v":""},{"$f":"IF('1. Order'!I1202=\"\",\"\",'1. Order'!I1202)","v":""},{"$f":"IF('1. Order'!J1202=\"\",\"\",'1. Order'!J1202)","v":""},{"$f":"IF('1. Order'!K1202=\"\",\"\",'1. Order'!K1202)","v":""},{"$f":"IF('1. Order'!M1202=\"\",\"\",'1. Order'!M1202)","v":""},null,null,null,{"$f":"IF('1. Order'!AF1202=\"\",\"\",'1. Order'!AF1202)","v":""}]
[{"$f":"IF('1. Order'!B1203=\"\",\"\",'1. Order'!B1203)","v":""},{"$f":"IF('1. Order'!I1203=\"\",\"\",'1. Order'!I1203)","v":""},{"$f":"IF('1. Order'!J1203=\"\",\"\",'1. Order'!J1203)","v":""},{"$f":"IF('1. Order'!K1203=\"\",\"\",'1. Order'!K1203)","v":""},{"$f":"IF('1. Order'!M1203=\"\",\"\",'1. Order'!M1203)","v":""},null,null,null,{"$f":"IF('1. Order'!AF1203=\"\",\"\",'1. Order'!AF1203)","v":""}]
[{"$f":"IF('1. Order'!B1204=\"\",\"\",'1. Order'!B1204)","v":""},{"$f":"IF('1. Order'!I1204=\"\",\"\",'1. Order'!I1204)","v":""},{"$f":"IF('1. Order'!J1204=\"\",\"\",'1. Order'!J1204)","v":""},{"$f":"IF('1. Order'!K1204=\"\",\"\",'1. Order'!K1204)","v":""},{"$f":"IF('1. Order'!M1204=\"\",\"\",'1. Order'!M1204)","v":""},null,null,null,{"$f":"IF('1. Order'!AF1204=\"\",\"\",'1. Order'!AF1204)","v":""}]
[{"$f":"IF('1. Order'!B1205=\"\",\"\",'1. Order'!B1205)","v":""},{"$f":"IF('1. Order'!I1205=\"\",\"\",'1. Order'!I1205)","v":""},{"$f":"IF('1. Order'!J1205=\"\",\"\",'1. Order'!J1205)","v":""},{"$f":"IF('1. Order'!K1205=\"\",\"\",'1. Order'!K1205)","v":""},{"$f":"IF('1. Order'!M1205=\"\",\"\",'1. Order'!M1205)","v":""},null,null,null,{"$f":"IF('1. Order'!AF1205=\"\",\"\",'1. Order'!AF1205)","v":""}]
[{"$f":"IF('1. Order'!B1206=\"\",\"\",'1. Order'!B1206)","v":""},{"$f":"IF('1. Order'!I1206=\"\",\"\",'1. Order'!I1206)","v":""},{"$f":"IF('1. Order'!J1206=\"\",\"\",'1. Order'!J1206)","v":""},{"$f":"IF('1. Order'!K1206=\"\",\"\",'1. Order'!K1206)","v":""},{"$f":"IF('1. Order'!M1206=\"\",\"\",'1. Order'!M1206)","v":""},null,null,null,{"$f":"IF('1. Order'!AF1206=\"\",\"\",'1. Order'!AF1206)","v":""}]
[{"$f":"IF('1. Order'!B1207=\"\",\"\",'1. Order'!B1207)","v":""},{"$f":"IF('1. Order'!I1207=\"\",\"\",'1. Order'!I1207)","v":""},{"$f":"IF('1. Order'!J1207=\"\",\"\",'1. Order'!J1207)","v":""},{"$f":"IF('1. Order'!K1207=\"\",\"\",'1. Order'!K1207)","v":""},{"$f":"IF('1. Order'!M1207=\"\",\"\",'1. Order'!M1207)","v":""},null,null,null,{"$f":"IF('1. Order'!AF1207=\"\",\"\",'1. Order'!AF1207)","v":""}]
[{"$f":"IF('1. Order'!B1208=\"\",\"\",'1. Order'!B1208)","v":""},{"$f":"IF('1. Order'!I1208=\"\",\"\",'1. Order'!I1208)","v":""},{"$f":"IF('1. Order'!J1208=\"\",\"\",'1. Order'!J1208)","v":""},{"$f":"IF('1. Order'!K1208=\"\",\"\",'1. Order'!K1208)","v":""},{"$f":"IF('1. Order'!M1208=\"\",\"\",'1. Order'!M1208)","v":""},null,null,null,{"$f":"IF('1. Order'!AF1208=\"\",\"\",'1. Order'!AF1208)","v":""}]
[{"$f":"IF('1. Order'!B1209=\"\",\"\",'1. Order'!B1209)","v":""},{"$f":"IF('1. Order'!I1209=\"\",\"\",'1. Order'!I1209)","v":""},{"$f":"IF('1. Order'!J1209=\"\",\"\",'1. Order'!J1209)","v":""},{"$f":"IF('1. Order'!K1209=\"\",\"\",'1. Order'!K1209)","v":""},{"$f":"IF('1. Order'!M1209=\"\",\"\",'1. Order'!M1209)","v":""},null,null,null,{"$f":"IF('1. Order'!AF1209=\"\",\"\",'1. Order'!AF1209)","v":""}]
[{"$f":"IF('1. Order'!B1210=\"\",\"\",'1. Order'!B1210)","v":""},{"$f":"IF('1. Order'!I1210=\"\",\"\",'1. Order'!I1210)","v":""},{"$f":"IF('1. Order'!J1210=\"\",\"\",'1. Order'!J1210)","v":""},{"$f":"IF('1. Order'!K1210=\"\",\"\",'1. Order'!K1210)","v":""},{"$f":"IF('1. Order'!M1210=\"\",\"\",'1. Order'!M1210)","v":""},null,null,null,{"$f":"IF('1. Order'!AF1210=\"\",\"\",'1. Order'!AF1210)","v":""}]
[{"$f":"IF('1. Order'!B1211=\"\",\"\",'1. Order'!B1211)","v":""},{"$f":"IF('1. Order'!I1211=\"\",\"\",'1. Order'!I1211)","v":""},{"$f":"IF('1. Order'!J1211=\"\",\"\",'1. Order'!J1211)","v":""},{"$f":"IF('1. Order'!K1211=\"\",\"\",'1. Order'!K1211)","v":""},{"$f":"IF('1. Order'!M1211=\"\",\"\",'1. Order'!M1211)","v":""},null,null,null,{"$f":"IF('1. Order'!AF1211=\"\",\"\",'1. Order'!AF1211)","v":""}]
[{"$f":"IF('1. Order'!B1212=\"\",\"\",'1. Order'!B1212)","v":""},{"$f":"IF('1. Order'!I1212=\"\",\"\",'1. Order'!I1212)","v":""},{"$f":"IF('1. Order'!J1212=\"\",\"\",'1. Order'!J1212)","v":""},{"$f":"IF('1. Order'!K1212=\"\",\"\",'1. Order'!K1212)","v":""},{"$f":"IF('1. Order'!M1212=\"\",\"\",'1. Order'!M1212)","v":""},null,null,null,{"$f":"IF('1. Order'!AF1212=\"\",\"\",'1. Order'!AF1212)","v":""}]
[{"$f":"IF('1. Order'!B1213=\"\",\"\",'1. Order'!B1213)","v":""},{"$f":"IF('1. Order'!I1213=\"\",\"\",'1. Order'!I1213)","v":""},{"$f":"IF('1. Order'!J1213=\"\",\"\",'1. Order'!J1213)","v":""},{"$f":"IF('1. Order'!K1213=\"\",\"\",'1. Order'!K1213)","v":""},{"$f":"IF('1. Order'!M1213=\"\",\"\",'1. Order'!M1213)","v":""},null,null,null,{"$f":"IF('1. Order'!AF1213=\"\",\"\",'1. Order'!AF1213)","v":""}]
[{"$f":"IF('1. Order'!B1214=\"\",\"\",'1. Order'!B1214)","v":""},{"$f":"IF('1. Order'!I1214=\"\",\"\",'1. Order'!I1214)","v":""},{"$f":"IF('1. Order'!J1214=\"\",\"\",'1. Order'!J1214)","v":""},{"$f":"IF('1. Order'!K1214=\"\",\"\",'1. Order'!K1214)","v":""},{"$f":"IF('1. Order'!M1214=\"\",\"\",'1. Order'!M1214)","v":""},null,null,null,{"$f":"IF('1. Order'!AF1214=\"\",\"\",'1. Order'!AF1214)","v":""}]
[{"$f":"IF('1. Order'!B1215=\"\",\"\",'1. Order'!B1215)","v":""},{"$f":"IF('1. Order'!I1215=\"\",\"\",'1. Order'!I1215)","v":""},{"$f":"IF('1. Order'!J1215=\"\",\"\",'1. Order'!J1215)","v":""},{"$f":"IF('1. Order'!K1215=\"\",\"\",'1. Order'!K1215)","v":""},{"$f":"IF('1. Order'!M1215=\"\",\"\",'1. Order'!M1215)","v":""},null,null,null,{"$f":"IF('1. Order'!AF1215=\"\",\"\",'1. Order'!AF1215)","v":""}]
[{"$f":"IF('1. Order'!B1216=\"\",\"\",'1. Order'!B1216)","v":""},{"$f":"IF('1. Order'!I1216=\"\",\"\",'1. Order'!I1216)","v":""},{"$f":"IF('1. Order'!J1216=\"\",\"\",'1. Order'!J1216)","v":""},{"$f":"IF('1. Order'!K1216=\"\",\"\",'1. Order'!K1216)","v":""},{"$f":"IF('1. Order'!M1216=\"\",\"\",'1. Order'!M1216)","v":""},null,null,null,{"$f":"IF('1. Order'!AF1216=\"\",\"\",'1. Order'!AF1216)","v":""}]
[{"$f":"IF('1. Order'!B1217=\"\",\"\",'1. Order'!B1217)","v":""},{"$f":"IF('1. Order'!I1217=\"\",\"\",'1. Order'!I1217)","v":""},{"$f":"IF('1. Order'!J1217=\"\",\"\",'1. Order'!J1217)","v":""},{"$f":"IF('1. Order'!K1217=\"\",\"\",'1. Order'!K1217)","v":""},{"$f":"IF('1. Order'!M1217=\"\",\"\",'1. Order'!M1217)","v":""},null,null,null,{"$f":"IF('1. Order'!AF1217=\"\",\"\",'1. Order'!AF1217)","v":""}]
[{"$f":"IF('1. Order'!B1218=\"\",\"\",'1. Order'!B1218)","v":""},{"$f":"IF('1. Order'!I1218=\"\",\"\",'1. Order'!I1218)","v":""},{"$f":"IF('1. Order'!J1218=\"\",\"\",'1. Order'!J1218)","v":""},{"$f":"IF('1. Order'!K1218=\"\",\"\",'1. Order'!K1218)","v":""},{"$f":"IF('1. Order'!M1218=\"\",\"\",'1. Order'!M1218)","v":""},null,null,null,{"$f":"IF('1. Order'!AF1218=\"\",\"\",'1. Order'!AF1218)","v":""}]
[{"$f":"IF('1. Order'!B1219=\"\",\"\",'1. Order'!B1219)","v":""},{"$f":"IF('1. Order'!I1219=\"\",\"\",'1. Order'!I1219)","v":""},{"$f":"IF('1. Order'!J1219=\"\",\"\",'1. Order'!J1219)","v":""},{"$f":"IF('1. Order'!K1219=\"\",\"\",'1. Order'!K1219)","v":""},{"$f":"IF('1. Order'!M1219=\"\",\"\",'1. Order'!M1219)","v":""},null,null,null,{"$f":"IF('1. Order'!AF1219=\"\",\"\",'1. Order'!AF1219)","v":""}]
[{"$f":"IF('1. Order'!B1220=\"\",\"\",'1. Order'!B1220)","v":""},{"$f":"IF('1. Order'!I1220=\"\",\"\",'1. Order'!I1220)","v":""},{"$f":"IF('1. Order'!J1220=\"\",\"\",'1. Order'!J1220)","v":""},{"$f":"IF('1. Order'!K1220=\"\",\"\",'1. Order'!K1220)","v":""},{"$f":"IF('1. Order'!M1220=\"\",\"\",'1. Order'!M1220)","v":""},null,null,null,{"$f":"IF('1. Order'!AF1220=\"\",\"\",'1. Order'!AF1220)","v":""}]
[{"$f":"IF('1. Order'!B1221=\"\",\"\",'1. Order'!B1221)","v":""},{"$f":"IF('1. Order'!I1221=\"\",\"\",'1. Order'!I1221)","v":""},{"$f":"IF('1. Order'!J1221=\"\",\"\",'1. Order'!J1221)","v":""},{"$f":"IF('1. Order'!K1221=\"\",\"\",'1. Order'!K1221)","v":""},{"$f":"IF('1. Order'!M1221=\"\",\"\",'1. Order'!M1221)","v":""},null,null,null,{"$f":"IF('1. Order'!AF1221=\"\",\"\",'1. Order'!AF1221)","v":""}]
[{"$f":"IF('1. Order'!B1222=\"\",\"\",'1. Order'!B1222)","v":""},{"$f":"IF('1. Order'!I1222=\"\",\"\",'1. Order'!I1222)","v":""},{"$f":"IF('1. Order'!J1222=\"\",\"\",'1. Order'!J1222)","v":""},{"$f":"IF('1. Order'!K1222=\"\",\"\",'1. Order'!K1222)","v":""},{"$f":"IF('1. Order'!M1222=\"\",\"\",'1. Order'!M1222)","v":""},null,null,null,{"$f":"IF('1. Order'!AF1222=\"\",\"\",'1. Order'!AF1222)","v":""}]
[{"$f":"IF('1. Order'!B1223=\"\",\"\",'1. Order'!B1223)","v":""},{"$f":"IF('1. Order'!I1223=\"\",\"\",'1. Order'!I1223)","v":""},{"$f":"IF('1. Order'!J1223=\"\",\"\",'1. Order'!J1223)","v":""},{"$f":"IF('1. Order'!K1223=\"\",\"\",'1. Order'!K1223)","v":""},{"$f":"IF('1. Order'!M1223=\"\",\"\",'1. Order'!M1223)","v":""},null,null,null,{"$f":"IF('1. Order'!AF1223=\"\",\"\",'1. Order'!AF1223)","v":""}]
[{"$f":"IF('1. Order'!B1224=\"\",\"\",'1. Order'!B1224)","v":""},{"$f":"IF('1. Order'!I1224=\"\",\"\",'1. Order'!I1224)","v":""},{"$f":"IF('1. Order'!J1224=\"\",\"\",'1. Order'!J1224)","v":""},{"$f":"IF('1. Order'!K1224=\"\",\"\",'1. Order'!K1224)","v":""},{"$f":"IF('1. Order'!M1224=\"\",\"\",'1. Order'!M1224)","v":""},null,null,null,{"$f":"IF('1. Order'!AF1224=\"\",\"\",'1. Order'!AF1224)","v":""}]
[{"$f":"IF('1. Order'!B1225=\"\",\"\",'1. Order'!B1225)","v":""},{"$f":"IF('1. Order'!I1225=\"\",\"\",'1. Order'!I1225)","v":""},{"$f":"IF('1. Order'!J1225=\"\",\"\",'1. Order'!J1225)","v":""},{"$f":"IF('1. Order'!K1225=\"\",\"\",'1. Order'!K1225)","v":""},{"$f":"IF('1. Order'!M1225=\"\",\"\",'1. Order'!M1225)","v":""},null,null,null,{"$f":"IF('1. Order'!AF1225=\"\",\"\",'1. Order'!AF1225)","v":""}]
[{"$f":"IF('1. Order'!B1226=\"\",\"\",'1. Order'!B1226)","v":""},{"$f":"IF('1. Order'!I1226=\"\",\"\",'1. Order'!I1226)","v":""},{"$f":"IF('1. Order'!J1226=\"\",\"\",'1. Order'!J1226)","v":""},{"$f":"IF('1. Order'!K1226=\"\",\"\",'1. Order'!K1226)","v":""},{"$f":"IF('1. Order'!M1226=\"\",\"\",'1. Order'!M1226)","v":""},null,null,null,{"$f":"IF('1. Order'!AF1226=\"\",\"\",'1. Order'!AF1226)","v":""}]
[{"$f":"IF('1. Order'!B1227=\"\",\"\",'1. Order'!B1227)","v":""},{"$f":"IF('1. Order'!I1227=\"\",\"\",'1. Order'!I1227)","v":""},{"$f":"IF('1. Order'!J1227=\"\",\"\",'1. Order'!J1227)","v":""},{"$f":"IF('1. Order'!K1227=\"\",\"\",'1. Order'!K1227)","v":""},{"$f":"IF('1. Order'!M1227=\"\",\"\",'1. Order'!M1227)","v":""},null,null,null,{"$f":"IF('1. Order'!AF1227=\"\",\"\",'1. Order'!AF1227)","v":""}]
[{"$f":"IF('1. Order'!B1228=\"\",\"\",'1. Order'!B1228)","v":""},{"$f":"IF('1. Order'!I1228=\"\",\"\",'1. Order'!I1228)","v":""},{"$f":"IF('1. Order'!J1228=\"\",\"\",'1. Order'!J1228)","v":""},{"$f":"IF('1. Order'!K1228=\"\",\"\",'1. Order'!K1228)","v":""},{"$f":"IF('1. Order'!M1228=\"\",\"\",'1. Order'!M1228)","v":""},null,null,null,{"$f":"IF('1. Order'!AF1228=\"\",\"\",'1. Order'!AF1228)","v":""}]
[{"$f":"IF('1. Order'!B1229=\"\",\"\",'1. Order'!B1229)","v":""},{"$f":"IF('1. Order'!I1229=\"\",\"\",'1. Order'!I1229)","v":""},{"$f":"IF('1. Order'!J1229=\"\",\"\",'1. Order'!J1229)","v":""},{"$f":"IF('1. Order'!K1229=\"\",\"\",'1. Order'!K1229)","v":""},{"$f":"IF('1. Order'!M1229=\"\",\"\",'1. Order'!M1229)","v":""},null,null,null,{"$f":"IF('1. Order'!AF1229=\"\",\"\",'1. Order'!AF1229)","v":""}]
[{"$f":"IF('1. Order'!B1230=\"\",\"\",'1. Order'!B1230)","v":""},{"$f":"IF('1. Order'!I1230=\"\",\"\",'1. Order'!I1230)","v":""},{"$f":"IF('1. Order'!J1230=\"\",\"\",'1. Order'!J1230)","v":""},{"$f":"IF('1. Order'!K1230=\"\",\"\",'1. Order'!K1230)","v":""},{"$f":"IF('1. Order'!M1230=\"\",\"\",'1. Order'!M1230)","v":""},null,null,null,{"$f":"IF('1. Order'!AF1230=\"\",\"\",'1. Order'!AF1230)","v":""}]
[{"$f":"IF('1. Order'!B1231=\"\",\"\",'1. Order'!B1231)","v":""},{"$f":"IF('1. Order'!I1231=\"\",\"\",'1. Order'!I1231)","v":""},{"$f":"IF('1. Order'!J1231=\"\",\"\",'1. Order'!J1231)","v":""},{"$f":"IF('1. Order'!K1231=\"\",\"\",'1. Order'!K1231)","v":""},{"$f":"IF('1. Order'!M1231=\"\",\"\",'1. Order'!M1231)","v":""},null,null,null,{"$f":"IF('1. Order'!AF1231=\"\",\"\",'1. Order'!AF1231)","v":""}]
[{"$f":"IF('1. Order'!B1232=\"\",\"\",'1. Order'!B1232)","v":""},{"$f":"IF('1. Order'!I1232=\"\",\"\",'1. Order'!I1232)","v":""},{"$f":"IF('1. Order'!J1232=\"\",\"\",'1. Order'!J1232)","v":""},{"$f":"IF('1. Order'!K1232=\"\",\"\",'1. Order'!K1232)","v":""},{"$f":"IF('1. Order'!M1232=\"\",\"\",'1. Order'!M1232)","v":""},null,null,null,{"$f":"IF('1. Order'!AF1232=\"\",\"\",'1. Order'!AF1232)","v":""}]
[{"$f":"IF('1. Order'!B1233=\"\",\"\",'1. Order'!B1233)","v":""},{"$f":"IF('1. Order'!I1233=\"\",\"\",'1. Order'!I1233)","v":""},{"$f":"IF('1. Order'!J1233=\"\",\"\",'1. Order'!J1233)","v":""},{"$f":"IF('1. Order'!K1233=\"\",\"\",'1. Order'!K1233)","v":""},{"$f":"IF('1. Order'!M1233=\"\",\"\",'1. Order'!M1233)","v":""},null,null,null,{"$f":"IF('1. Order'!AF1233=\"\",\"\",'1. Order'!AF1233)","v":""}]
[{"$f":"IF('1. Order'!B1234=\"\",\"\",'1. Order'!B1234)","v":""},{"$f":"IF('1. Order'!I1234=\"\",\"\",'1. Order'!I1234)","v":""},{"$f":"IF('1. Order'!J1234=\"\",\"\",'1. Order'!J1234)","v":""},{"$f":"IF('1. Order'!K1234=\"\",\"\",'1. Order'!K1234)","v":""},{"$f":"IF('1. Order'!M1234=\"\",\"\",'1. Order'!M1234)","v":""},null,null,null,{"$f":"IF('1. Order'!AF1234=\"\",\"\",'1. Order'!AF1234)","v":""}]
[{"$f":"IF('1. Order'!B1235=\"\",\"\",'1. Order'!B1235)","v":""},{"$f":"IF('1. Order'!I1235=\"\",\"\",'1. Order'!I1235)","v":""},{"$f":"IF('1. Order'!J1235=\"\",\"\",'1. Order'!J1235)","v":""},{"$f":"IF('1. Order'!K1235=\"\",\"\",'1. Order'!K1235)","v":""},{"$f":"IF('1. Order'!M1235=\"\",\"\",'1. Order'!M1235)","v":""},null,null,null,{"$f":"IF('1. Order'!AF1235=\"\",\"\",'1. Order'!AF1235)","v":""}]
[{"$f":"IF('1. Order'!B1236=\"\",\"\",'1. Order'!B1236)","v":""},{"$f":"IF('1. Order'!I1236=\"\",\"\",'1. Order'!I1236)","v":""},{"$f":"IF('1. Order'!J1236=\"\",\"\",'1. Order'!J1236)","v":""},{"$f":"IF('1. Order'!K1236=\"\",\"\",'1. Order'!K1236)","v":""},{"$f":"IF('1. Order'!M1236=\"\",\"\",'1. Order'!M1236)","v":""},null,null,null,{"$f":"IF('1. Order'!AF1236=\"\",\"\",'1. Order'!AF1236)","v":""}]
[{"$f":"IF('1. Order'!B1237=\"\",\"\",'1. Order'!B1237)","v":""},{"$f":"IF('1. Order'!I1237=\"\",\"\",'1. Order'!I1237)","v":""},{"$f":"IF('1. Order'!J1237=\"\",\"\",'1. Order'!J1237)","v":""},{"$f":"IF('1. Order'!K1237=\"\",\"\",'1. Order'!K1237)","v":""},{"$f":"IF('1. Order'!M1237=\"\",\"\",'1. Order'!M1237)","v":""},null,null,null,{"$f":"IF('1. Order'!AF1237=\"\",\"\",'1. Order'!AF1237)","v":""}]
[{"$f":"IF('1. Order'!B1238=\"\",\"\",'1. Order'!B1238)","v":""},{"$f":"IF('1. Order'!I1238=\"\",\"\",'1. Order'!I1238)","v":""},{"$f":"IF('1. Order'!J1238=\"\",\"\",'1. Order'!J1238)","v":""},{"$f":"IF('1. Order'!K1238=\"\",\"\",'1. Order'!K1238)","v":""},{"$f":"IF('1. Order'!M1238=\"\",\"\",'1. Order'!M1238)","v":""},null,null,null,{"$f":"IF('1. Order'!AF1238=\"\",\"\",'1. Order'!AF1238)","v":""}]
[{"$f":"IF('1. Order'!B1239=\"\",\"\",'1. Order'!B1239)","v":""},{"$f":"IF('1. Order'!I1239=\"\",\"\",'1. Order'!I1239)","v":""},{"$f":"IF('1. Order'!J1239=\"\",\"\",'1. Order'!J1239)","v":""},{"$f":"IF('1. Order'!K1239=\"\",\"\",'1. Order'!K1239)","v":""},{"$f":"IF('1. Order'!M1239=\"\",\"\",'1. Order'!M1239)","v":""},null,null,null,{"$f":"IF('1. Order'!AF1239=\"\",\"\",'1. Order'!AF1239)","v":""}]
[{"$f":"IF('1. Order'!B1240=\"\",\"\",'1. Order'!B1240)","v":""},{"$f":"IF('1. Order'!I1240=\"\",\"\",'1. Order'!I1240)","v":""},{"$f":"IF('1. Order'!J1240=\"\",\"\",'1. Order'!J1240)","v":""},{"$f":"IF('1. Order'!K1240=\"\",\"\",'1. Order'!K1240)","v":""},{"$f":"IF('1. Order'!M1240=\"\",\"\",'1. Order'!M1240)","v":""},null,null,null,{"$f":"IF('1. Order'!AF1240=\"\",\"\",'1. Order'!AF1240)","v":""}]
[{"$f":"IF('1. Order'!B1241=\"\",\"\",'1. Order'!B1241)","v":""},{"$f":"IF('1. Order'!I1241=\"\",\"\",'1. Order'!I1241)","v":""},{"$f":"IF('1. Order'!J1241=\"\",\"\",'1. Order'!J1241)","v":""},{"$f":"IF('1. Order'!K1241=\"\",\"\",'1. Order'!K1241)","v":""},{"$f":"IF('1. Order'!M1241=\"\",\"\",'1. Order'!M1241)","v":""},null,null,null,{"$f":"IF('1. Order'!AF1241=\"\",\"\",'1. Order'!AF1241)","v":""}]
[{"$f":"IF('1. Order'!B1242=\"\",\"\",'1. Order'!B1242)","v":""},{"$f":"IF('1. Order'!I1242=\"\",\"\",'1. Order'!I1242)","v":""},{"$f":"IF('1. Order'!J1242=\"\",\"\",'1. Order'!J1242)","v":""},{"$f":"IF('1. Order'!K1242=\"\",\"\",'1. Order'!K1242)","v":""},{"$f":"IF('1. Order'!M1242=\"\",\"\",'1. Order'!M1242)","v":""},null,null,null,{"$f":"IF('1. Order'!AF1242=\"\",\"\",'1. Order'!AF1242)","v":""}]
[{"$f":"IF('1. Order'!B1243=\"\",\"\",'1. Order'!B1243)","v":""},{"$f":"IF('1. Order'!I1243=\"\",\"\",'1. Order'!I1243)","v":""},{"$f":"IF('1. Order'!J1243=\"\",\"\",'1. Order'!J1243)","v":""},{"$f":"IF('1. Order'!K1243=\"\",\"\",'1. Order'!K1243)","v":""},{"$f":"IF('1. Order'!M1243=\"\",\"\",'1. Order'!M1243)","v":""},null,null,null,{"$f":"IF('1. Order'!AF1243=\"\",\"\",'1. Order'!AF1243)","v":""}]
[{"$f":"IF('1. Order'!B1244=\"\",\"\",'1. Order'!B1244)","v":""},{"$f":"IF('1. Order'!I1244=\"\",\"\",'1. Order'!I1244)","v":""},{"$f":"IF('1. Order'!J1244=\"\",\"\",'1. Order'!J1244)","v":""},{"$f":"IF('1. Order'!K1244=\"\",\"\",'1. Order'!K1244)","v":""},{"$f":"IF('1. Order'!M1244=\"\",\"\",'1. Order'!M1244)","v":""},null,null,null,{"$f":"IF('1. Order'!AF1244=\"\",\"\",'1. Order'!AF1244)","v":""}]
[{"$f":"IF('1. Order'!B1245=\"\",\"\",'1. Order'!B1245)","v":""},{"$f":"IF('1. Order'!I1245=\"\",\"\",'1. Order'!I1245)","v":""},{"$f":"IF('1. Order'!J1245=\"\",\"\",'1. Order'!J1245)","v":""},{"$f":"IF('1. Order'!K1245=\"\",\"\",'1. Order'!K1245)","v":""},{"$f":"IF('1. Order'!M1245=\"\",\"\",'1. Order'!M1245)","v":""},null,null,null,{"$f":"IF('1. Order'!AF1245=\"\",\"\",'1. Order'!AF1245)","v":""}]
[{"$f":"IF('1. Order'!B1246=\"\",\"\",'1. Order'!B1246)","v":""},{"$f":"IF('1. Order'!I1246=\"\",\"\",'1. Order'!I1246)","v":""},{"$f":"IF('1. Order'!J1246=\"\",\"\",'1. Order'!J1246)","v":""},{"$f":"IF('1. Order'!K1246=\"\",\"\",'1. Order'!K1246)","v":""},{"$f":"IF('1. Order'!M1246=\"\",\"\",'1. Order'!M1246)","v":""},null,null,null,{"$f":"IF('1. Order'!AF1246=\"\",\"\",'1. Order'!AF1246)","v":""}]
[{"$f":"IF('1. Order'!B1247=\"\",\"\",'1. Order'!B1247)","v":""},{"$f":"IF('1. Order'!I1247=\"\",\"\",'1. Order'!I1247)","v":""},{"$f":"IF('1. Order'!J1247=\"\",\"\",'1. Order'!J1247)","v":""},{"$f":"IF('1. Order'!K1247=\"\",\"\",'1. Order'!K1247)","v":""},{"$f":"IF('1. Order'!M1247=\"\",\"\",'1. Order'!M1247)","v":""},null,null,null,{"$f":"IF('1. Order'!AF1247=\"\",\"\",'1. Order'!AF1247)","v":""}]
[{"$f":"IF('1. Order'!B1248=\"\",\"\",'1. Order'!B1248)","v":""},{"$f":"IF('1. Order'!I1248=\"\",\"\",'1. Order'!I1248)","v":""},{"$f":"IF('1. Order'!J1248=\"\",\"\",'1. Order'!J1248)","v":""},{"$f":"IF('1. Order'!K1248=\"\",\"\",'1. Order'!K1248)","v":""},{"$f":"IF('1. Order'!M1248=\"\",\"\",'1. Order'!M1248)","v":""},null,null,null,{"$f":"IF('1. Order'!AF1248=\"\",\"\",'1. Order'!AF1248)","v":""}]
[{"$f":"IF('1. Order'!B1249=\"\",\"\",'1. Order'!B1249)","v":""},{"$f":"IF('1. Order'!I1249=\"\",\"\",'1. Order'!I1249)","v":""},{"$f":"IF('1. Order'!J1249=\"\",\"\",'1. Order'!J1249)","v":""},{"$f":"IF('1. Order'!K1249=\"\",\"\",'1. Order'!K1249)","v":""},{"$f":"IF('1. Order'!M1249=\"\",\"\",'1. Order'!M1249)","v":""},null,null,null,{"$f":"IF('1. Order'!AF1249=\"\",\"\",'1. Order'!AF1249)","v":""}]
[{"$f":"IF('1. Order'!B1250=\"\",\"\",'1. Order'!B1250)","v":""},{"$f":"IF('1. Order'!I1250=\"\",\"\",'1. Order'!I1250)","v":""},{"$f":"IF('1. Order'!J1250=\"\",\"\",'1. Order'!J1250)","v":""},{"$f":"IF('1. Order'!K1250=\"\",\"\",'1. Order'!K1250)","v":""},{"$f":"IF('1. Order'!M1250=\"\",\"\",'1. Order'!M1250)","v":""},null,null,null,{"$f":"IF('1. Order'!AF1250=\"\",\"\",'1. Order'!AF1250)","v":""}]
[{"$f":"IF('1. Order'!B1251=\"\",\"\",'1. Order'!B1251)","v":""},{"$f":"IF('1. Order'!I1251=\"\",\"\",'1. Order'!I1251)","v":""},{"$f":"IF('1. Order'!J1251=\"\",\"\",'1. Order'!J1251)","v":""},{"$f":"IF('1. Order'!K1251=\"\",\"\",'1. Order'!K1251)","v":""},{"$f":"IF('1. Order'!M1251=\"\",\"\",'1. Order'!M1251)","v":""},null,null,null,{"$f":"IF('1. Order'!AF1251=\"\",\"\",'1. Order'!AF1251)","v":""}]
[{"$f":"IF('1. Order'!B1252=\"\",\"\",'1. Order'!B1252)","v":""},{"$f":"IF('1. Order'!I1252=\"\",\"\",'1. Order'!I1252)","v":""},{"$f":"IF('1. Order'!J1252=\"\",\"\",'1. Order'!J1252)","v":""},{"$f":"IF('1. Order'!K1252=\"\",\"\",'1. Order'!K1252)","v":""},{"$f":"IF('1. Order'!M1252=\"\",\"\",'1. Order'!M1252)","v":""},null,null,null,{"$f":"IF('1. Order'!AF1252=\"\",\"\",'1. Order'!AF1252)","v":""}]
[{"$f":"IF('1. Order'!B1253=\"\",\"\",'1. Order'!B1253)","v":""},{"$f":"IF('1. Order'!I1253=\"\",\"\",'1. Order'!I1253)","v":""},{"$f":"IF('1. Order'!J1253=\"\",\"\",'1. Order'!J1253)","v":""},{"$f":"IF('1. Order'!K1253=\"\",\"\",'1. Order'!K1253)","v":""},{"$f":"IF('1. Order'!M1253=\"\",\"\",'1. Order'!M1253)","v":""},null,null,null,{"$f":"IF('1. Order'!AF1253=\"\",\"\",'1. Order'!AF1253)","v":""}]
[{"$f":"IF('1. Order'!B1254=\"\",\"\",'1. Order'!B1254)","v":""},{"$f":"IF('1. Order'!I1254=\"\",\"\",'1. Order'!I1254)","v":""},{"$f":"IF('1. Order'!J1254=\"\",\"\",'1. Order'!J1254)","v":""},{"$f":"IF('1. Order'!K1254=\"\",\"\",'1. Order'!K1254)","v":""},{"$f":"IF('1. Order'!M1254=\"\",\"\",'1. Order'!M1254)","v":""},null,null,null,{"$f":"IF('1. Order'!AF1254=\"\",\"\",'1. Order'!AF1254)","v":""}]
[{"$f":"IF('1. Order'!B1255=\"\",\"\",'1. Order'!B1255)","v":""},{"$f":"IF('1. Order'!I1255=\"\",\"\",'1. Order'!I1255)","v":""},{"$f":"IF('1. Order'!J1255=\"\",\"\",'1. Order'!J1255)","v":""},{"$f":"IF('1. Order'!K1255=\"\",\"\",'1. Order'!K1255)","v":""},{"$f":"IF('1. Order'!M1255=\"\",\"\",'1. Order'!M1255)","v":""},null,null,null,{"$f":"IF('1. Order'!AF1255=\"\",\"\",'1. Order'!AF1255)","v":""}]
[{"$f":"IF('1. Order'!B1256=\"\",\"\",'1. Order'!B1256)","v":""},{"$f":"IF('1. Order'!I1256=\"\",\"\",'1. Order'!I1256)","v":""},{"$f":"IF('1. Order'!J1256=\"\",\"\",'1. Order'!J1256)","v":""},{"$f":"IF('1. Order'!K1256=\"\",\"\",'1. Order'!K1256)","v":""},{"$f":"IF('1. Order'!M1256=\"\",\"\",'1. Order'!M1256)","v":""},null,null,null,{"$f":"IF('1. Order'!AF1256=\"\",\"\",'1. Order'!AF1256)","v":""}]
[{"$f":"IF('1. Order'!B1257=\"\",\"\",'1. Order'!B1257)","v":""},{"$f":"IF('1. Order'!I1257=\"\",\"\",'1. Order'!I1257)","v":""},{"$f":"IF('1. Order'!J1257=\"\",\"\",'1. Order'!J1257)","v":""},{"$f":"IF('1. Order'!K1257=\"\",\"\",'1. Order'!K1257)","v":""},{"$f":"IF('1. Order'!M1257=\"\",\"\",'1. Order'!M1257)","v":""},null,null,null,{"$f":"IF('1. Order'!AF1257=\"\",\"\",'1. Order'!AF1257)","v":""}]
[{"$f":"IF('1. Order'!B1258=\"\",\"\",'1. Order'!B1258)","v":""},{"$f":"IF('1. Order'!I1258=\"\",\"\",'1. Order'!I1258)","v":""},{"$f":"IF('1. Order'!J1258=\"\",\"\",'1. Order'!J1258)","v":""},{"$f":"IF('1. Order'!K1258=\"\",\"\",'1. Order'!K1258)","v":""},{"$f":"IF('1. Order'!M1258=\"\",\"\",'1. Order'!M1258)","v":""},null,null,null,{"$f":"IF('1. Order'!AF1258=\"\",\"\",'1. Order'!AF1258)","v":""}]
[{"$f":"IF('1. Order'!B1259=\"\",\"\",'1. Order'!B1259)","v":""},{"$f":"IF('1. Order'!I1259=\"\",\"\",'1. Order'!I1259)","v":""},{"$f":"IF('1. Order'!J1259=\"\",\"\",'1. Order'!J1259)","v":""},{"$f":"IF('1. Order'!K1259=\"\",\"\",'1. Order'!K1259)","v":""},{"$f":"IF('1. Order'!M1259=\"\",\"\",'1. Order'!M1259)","v":""},null,null,null,{"$f":"IF('1. Order'!AF1259=\"\",\"\",'1. Order'!AF1259)","v":""}]
[{"$f":"IF('1. Order'!B1260=\"\",\"\",'1. Order'!B1260)","v":""},{"$f":"IF('1. Order'!I1260=\"\",\"\",'1. Order'!I1260)","v":""},{"$f":"IF('1. Order'!J1260=\"\",\"\",'1. Order'!J1260)","v":""},{"$f":"IF('1. Order'!K1260=\"\",\"\",'1. Order'!K1260)","v":""},{"$f":"IF('1. Order'!M1260=\"\",\"\",'1. Order'!M1260)","v":""},null,null,null,{"$f":"IF('1. Order'!AF1260=\"\",\"\",'1. Order'!AF1260)","v":""}]
[{"$f":"IF('1. Order'!B1261=\"\",\"\",'1. Order'!B1261)","v":""},{"$f":"IF('1. Order'!I1261=\"\",\"\",'1. Order'!I1261)","v":""},{"$f":"IF('1. Order'!J1261=\"\",\"\",'1. Order'!J1261)","v":""},{"$f":"IF('1. Order'!K1261=\"\",\"\",'1. Order'!K1261)","v":""},{"$f":"IF('1. Order'!M1261=\"\",\"\",'1. Order'!M1261)","v":""},null,null,null,{"$f":"IF('1. Order'!AF1261=\"\",\"\",'1. Order'!AF1261)","v":""}]
[{"$f":"IF('1. Order'!B1262=\"\",\"\",'1. Order'!B1262)","v":""},{"$f":"IF('1. Order'!I1262=\"\",\"\",'1. Order'!I1262)","v":""},{"$f":"IF('1. Order'!J1262=\"\",\"\",'1. Order'!J1262)","v":""},{"$f":"IF('1. Order'!K1262=\"\",\"\",'1. Order'!K1262)","v":""},{"$f":"IF('1. Order'!M1262=\"\",\"\",'1. Order'!M1262)","v":""},null,null,null,{"$f":"IF('1. Order'!AF1262=\"\",\"\",'1. Order'!AF1262)","v":""}]
[{"$f":"IF('1. Order'!B1263=\"\",\"\",'1. Order'!B1263)","v":""},{"$f":"IF('1. Order'!I1263=\"\",\"\",'1. Order'!I1263)","v":""},{"$f":"IF('1. Order'!J1263=\"\",\"\",'1. Order'!J1263)","v":""},{"$f":"IF('1. Order'!K1263=\"\",\"\",'1. Order'!K1263)","v":""},{"$f":"IF('1. Order'!M1263=\"\",\"\",'1. Order'!M1263)","v":""},null,null,null,{"$f":"IF('1. Order'!AF1263=\"\",\"\",'1. Order'!AF1263)","v":""}]
[{"$f":"IF('1. Order'!B1264=\"\",\"\",'1. Order'!B1264)","v":""},{"$f":"IF('1. Order'!I1264=\"\",\"\",'1. Order'!I1264)","v":""},{"$f":"IF('1. Order'!J1264=\"\",\"\",'1. Order'!J1264)","v":""},{"$f":"IF('1. Order'!K1264=\"\",\"\",'1. Order'!K1264)","v":""},{"$f":"IF('1. Order'!M1264=\"\",\"\",'1. Order'!M1264)","v":""},null,null,null,{"$f":"IF('1. Order'!AF1264=\"\",\"\",'1. Order'!AF1264)","v":""}]
[{"$f":"IF('1. Order'!B1265=\"\",\"\",'1. Order'!B1265)","v":""},{"$f":"IF('1. Order'!I1265=\"\",\"\",'1. Order'!I1265)","v":""},{"$f":"IF('1. Order'!J1265=\"\",\"\",'1. Order'!J1265)","v":""},{"$f":"IF('1. Order'!K1265=\"\",\"\",'1. Order'!K1265)","v":""},{"$f":"IF('1. Order'!M1265=\"\",\"\",'1. Order'!M1265)","v":""},null,null,null,{"$f":"IF('1. Order'!AF1265=\"\",\"\",'1. Order'!AF1265)","v":""}]
[{"$f":"IF('1. Order'!B1266=\"\",\"\",'1. Order'!B1266)","v":""},{"$f":"IF('1. Order'!I1266=\"\",\"\",'1. Order'!I1266)","v":""},{"$f":"IF('1. Order'!J1266=\"\",\"\",'1. Order'!J1266)","v":""},{"$f":"IF('1. Order'!K1266=\"\",\"\",'1. Order'!K1266)","v":""},{"$f":"IF('1. Order'!M1266=\"\",\"\",'1. Order'!M1266)","v":""},null,null,null,{"$f":"IF('1. Order'!AF1266=\"\",\"\",'1. Order'!AF1266)","v":""}]
[{"$f":"IF('1. Order'!B1267=\"\",\"\",'1. Order'!B1267)","v":""},{"$f":"IF('1. Order'!I1267=\"\",\"\",'1. Order'!I1267)","v":""},{"$f":"IF('1. Order'!J1267=\"\",\"\",'1. Order'!J1267)","v":""},{"$f":"IF('1. Order'!K1267=\"\",\"\",'1. Order'!K1267)","v":""},{"$f":"IF('1. Order'!M1267=\"\",\"\",'1. Order'!M1267)","v":""},null,null,null,{"$f":"IF('1. Order'!AF1267=\"\",\"\",'1. Order'!AF1267)","v":""}]
[{"$f":"IF('1. Order'!B1268=\"\",\"\",'1. Order'!B1268)","v":""},{"$f":"IF('1. Order'!I1268=\"\",\"\",'1. Order'!I1268)","v":""},{"$f":"IF('1. Order'!J1268=\"\",\"\",'1. Order'!J1268)","v":""},{"$f":"IF('1. Order'!K1268=\"\",\"\",'1. Order'!K1268)","v":""},{"$f":"IF('1. Order'!M1268=\"\",\"\",'1. Order'!M1268)","v":""},null,null,null,{"$f":"IF('1. Order'!AF1268=\"\",\"\",'1. Order'!AF1268)","v":""}]
[{"$f":"IF('1. Order'!B1269=\"\",\"\",'1. Order'!B1269)","v":""},{"$f":"IF('1. Order'!I1269=\"\",\"\",'1. Order'!I1269)","v":""},{"$f":"IF('1. Order'!J1269=\"\",\"\",'1. Order'!J1269)","v":""},{"$f":"IF('1. Order'!K1269=\"\",\"\",'1. Order'!K1269)","v":""},{"$f":"IF('1. Order'!M1269=\"\",\"\",'1. Order'!M1269)","v":""},null,null,null,{"$f":"IF('1. Order'!AF1269=\"\",\"\",'1. Order'!AF1269)","v":""}]
[{"$f":"IF('1. Order'!B1270=\"\",\"\",'1. Order'!B1270)","v":""},{"$f":"IF('1. Order'!I1270=\"\",\"\",'1. Order'!I1270)","v":""},{"$f":"IF('1. Order'!J1270=\"\",\"\",'1. Order'!J1270)","v":""},{"$f":"IF('1. Order'!K1270=\"\",\"\",'1. Order'!K1270)","v":""},{"$f":"IF('1. Order'!M1270=\"\",\"\",'1. Order'!M1270)","v":""},null,null,null,{"$f":"IF('1. Order'!AF1270=\"\",\"\",'1. Order'!AF1270)","v":""}]
[{"$f":"IF('1. Order'!B1271=\"\",\"\",'1. Order'!B1271)","v":""},{"$f":"IF('1. Order'!I1271=\"\",\"\",'1. Order'!I1271)","v":""},{"$f":"IF('1. Order'!J1271=\"\",\"\",'1. Order'!J1271)","v":""},{"$f":"IF('1. Order'!K1271=\"\",\"\",'1. Order'!K1271)","v":""},{"$f":"IF('1. Order'!M1271=\"\",\"\",'1. Order'!M1271)","v":""},null,null,null,{"$f":"IF('1. Order'!AF1271=\"\",\"\",'1. Order'!AF1271)","v":""}]
[{"$f":"IF('1. Order'!B1272=\"\",\"\",'1. Order'!B1272)","v":""},{"$f":"IF('1. Order'!I1272=\"\",\"\",'1. Order'!I1272)","v":""},{"$f":"IF('1. Order'!J1272=\"\",\"\",'1. Order'!J1272)","v":""},{"$f":"IF('1. Order'!K1272=\"\",\"\",'1. Order'!K1272)","v":""},{"$f":"IF('1. Order'!M1272=\"\",\"\",'1. Order'!M1272)","v":""},null,null,null,{"$f":"IF('1. Order'!AF1272=\"\",\"\",'1. Order'!AF1272)","v":""}]
[{"$f":"IF('1. Order'!B1273=\"\",\"\",'1. Order'!B1273)","v":""},{"$f":"IF('1. Order'!I1273=\"\",\"\",'1. Order'!I1273)","v":""},{"$f":"IF('1. Order'!J1273=\"\",\"\",'1. Order'!J1273)","v":""},{"$f":"IF('1. Order'!K1273=\"\",\"\",'1. Order'!K1273)","v":""},{"$f":"IF('1. Order'!M1273=\"\",\"\",'1. Order'!M1273)","v":""},null,null,null,{"$f":"IF('1. Order'!AF1273=\"\",\"\",'1. Order'!AF1273)","v":""}]
[{"$f":"IF('1. Order'!B1274=\"\",\"\",'1. Order'!B1274)","v":""},{"$f":"IF('1. Order'!I1274=\"\",\"\",'1. Order'!I1274)","v":""},{"$f":"IF('1. Order'!J1274=\"\",\"\",'1. Order'!J1274)","v":""},{"$f":"IF('1. Order'!K1274=\"\",\"\",'1. Order'!K1274)","v":""},{"$f":"IF('1. Order'!M1274=\"\",\"\",'1. Order'!M1274)","v":""},null,null,null,{"$f":"IF('1. Order'!AF1274=\"\",\"\",'1. Order'!AF1274)","v":""}]
[{"$f":"IF('1. Order'!B1275=\"\",\"\",'1. Order'!B1275)","v":""},{"$f":"IF('1. Order'!I1275=\"\",\"\",'1. Order'!I1275)","v":""},{"$f":"IF('1. Order'!J1275=\"\",\"\",'1. Order'!J1275)","v":""},{"$f":"IF('1. Order'!K1275=\"\",\"\",'1. Order'!K1275)","v":""},{"$f":"IF('1. Order'!M1275=\"\",\"\",'1. Order'!M1275)","v":""},null,null,null,{"$f":"IF('1. Order'!AF1275=\"\",\"\",'1. Order'!AF1275)","v":""}]
[{"$f":"IF('1. Order'!B1276=\"\",\"\",'1. Order'!B1276)","v":""},{"$f":"IF('1. Order'!I1276=\"\",\"\",'1. Order'!I1276)","v":""},{"$f":"IF('1. Order'!J1276=\"\",\"\",'1. Order'!J1276)","v":""},{"$f":"IF('1. Order'!K1276=\"\",\"\",'1. Order'!K1276)","v":""},{"$f":"IF('1. Order'!M1276=\"\",\"\",'1. Order'!M1276)","v":""},null,null,null,{"$f":"IF('1. Order'!AF1276=\"\",\"\",'1. Order'!AF1276)","v":""}]
[{"$f":"IF('1. Order'!B1277=\"\",\"\",'1. Order'!B1277)","v":""},{"$f":"IF('1. Order'!I1277=\"\",\"\",'1. Order'!I1277)","v":""},{"$f":"IF('1. Order'!J1277=\"\",\"\",'1. Order'!J1277)","v":""},{"$f":"IF('1. Order'!K1277=\"\",\"\",'1. Order'!K1277)","v":""},{"$f":"IF('1. Order'!M1277=\"\",\"\",'1. Order'!M1277)","v":""},null,null,null,{"$f":"IF('1. Order'!AF1277=\"\",\"\",'1. Order'!AF1277)","v":""}]
[{"$f":"IF('1. Order'!B1278=\"\",\"\",'1. Order'!B1278)","v":""},{"$f":"IF('1. Order'!I1278=\"\",\"\",'1. Order'!I1278)","v":""},{"$f":"IF('1. Order'!J1278=\"\",\"\",'1. Order'!J1278)","v":""},{"$f":"IF('1. Order'!K1278=\"\",\"\",'1. Order'!K1278)","v":""},{"$f":"IF('1. Order'!M1278=\"\",\"\",'1. Order'!M1278)","v":""},null,null,null,{"$f":"IF('1. Order'!AF1278=\"\",\"\",'1. Order'!AF1278)","v":""}]
[{"$f":"IF('1. Order'!B1279=\"\",\"\",'1. Order'!B1279)","v":""},{"$f":"IF('1. Order'!I1279=\"\",\"\",'1. Order'!I1279)","v":""},{"$f":"IF('1. Order'!J1279=\"\",\"\",'1. Order'!J1279)","v":""},{"$f":"IF('1. Order'!K1279=\"\",\"\",'1. Order'!K1279)","v":""},{"$f":"IF('1. Order'!M1279=\"\",\"\",'1. Order'!M1279)","v":""},null,null,null,{"$f":"IF('1. Order'!AF1279=\"\",\"\",'1. Order'!AF1279)","v":""}]
[{"$f":"IF('1. Order'!B1280=\"\",\"\",'1. Order'!B1280)","v":""},{"$f":"IF('1. Order'!I1280=\"\",\"\",'1. Order'!I1280)","v":""},{"$f":"IF('1. Order'!J1280=\"\",\"\",'1. Order'!J1280)","v":""},{"$f":"IF('1. Order'!K1280=\"\",\"\",'1. Order'!K1280)","v":""},{"$f":"IF('1. Order'!M1280=\"\",\"\",'1. Order'!M1280)","v":""},null,null,null,{"$f":"IF('1. Order'!AF1280=\"\",\"\",'1. Order'!AF1280)","v":""}]
[{"$f":"IF('1. Order'!B1281=\"\",\"\",'1. Order'!B1281)","v":""},{"$f":"IF('1. Order'!I1281=\"\",\"\",'1. Order'!I1281)","v":""},{"$f":"IF('1. Order'!J1281=\"\",\"\",'1. Order'!J1281)","v":""},{"$f":"IF('1. Order'!K1281=\"\",\"\",'1. Order'!K1281)","v":""},{"$f":"IF('1. Order'!M1281=\"\",\"\",'1. Order'!M1281)","v":""},null,null,null,{"$f":"IF('1. Order'!AF1281=\"\",\"\",'1. Order'!AF1281)","v":""}]
[{"$f":"IF('1. Order'!B1282=\"\",\"\",'1. Order'!B1282)","v":""},{"$f":"IF('1. Order'!I1282=\"\",\"\",'1. Order'!I1282)","v":""},{"$f":"IF('1. Order'!J1282=\"\",\"\",'1. Order'!J1282)","v":""},{"$f":"IF('1. Order'!K1282=\"\",\"\",'1. Order'!K1282)","v":""},{"$f":"IF('1. Order'!M1282=\"\",\"\",'1. Order'!M1282)","v":""},null,null,null,{"$f":"IF('1. Order'!AF1282=\"\",\"\",'1. Order'!AF1282)","v":""}]
[{"$f":"IF('1. Order'!B1283=\"\",\"\",'1. Order'!B1283)","v":""},{"$f":"IF('1. Order'!I1283=\"\",\"\",'1. Order'!I1283)","v":""},{"$f":"IF('1. Order'!J1283=\"\",\"\",'1. Order'!J1283)","v":""},{"$f":"IF('1. Order'!K1283=\"\",\"\",'1. Order'!K1283)","v":""},{"$f":"IF('1. Order'!M1283=\"\",\"\",'1. Order'!M1283)","v":""},null,null,null,{"$f":"IF('1. Order'!AF1283=\"\",\"\",'1. Order'!AF1283)","v":""}]
[{"$f":"IF('1. Order'!B1284=\"\",\"\",'1. Order'!B1284)","v":""},{"$f":"IF('1. Order'!I1284=\"\",\"\",'1. Order'!I1284)","v":""},{"$f":"IF('1. Order'!J1284=\"\",\"\",'1. Order'!J1284)","v":""},{"$f":"IF('1. Order'!K1284=\"\",\"\",'1. Order'!K1284)","v":""},{"$f":"IF('1. Order'!M1284=\"\",\"\",'1. Order'!M1284)","v":""},null,null,null,{"$f":"IF('1. Order'!AF1284=\"\",\"\",'1. Order'!AF1284)","v":""}]
[{"$f":"IF('1. Order'!B1285=\"\",\"\",'1. Order'!B1285)","v":""},{"$f":"IF('1. Order'!I1285=\"\",\"\",'1. Order'!I1285)","v":""},{"$f":"IF('1. Order'!J1285=\"\",\"\",'1. Order'!J1285)","v":""},{"$f":"IF('1. Order'!K1285=\"\",\"\",'1. Order'!K1285)","v":""},{"$f":"IF('1. Order'!M1285=\"\",\"\",'1. Order'!M1285)","v":""},null,null,null,{"$f":"IF('1. Order'!AF1285=\"\",\"\",'1. Order'!AF1285)","v":""}]
[{"$f":"IF('1. Order'!B1286=\"\",\"\",'1. Order'!B1286)","v":""},{"$f":"IF('1. Order'!I1286=\"\",\"\",'1. Order'!I1286)","v":""},{"$f":"IF('1. Order'!J1286=\"\",\"\",'1. Order'!J1286)","v":""},{"$f":"IF('1. Order'!K1286=\"\",\"\",'1. Order'!K1286)","v":""},{"$f":"IF('1. Order'!M1286=\"\",\"\",'1. Order'!M1286)","v":""},null,null,null,{"$f":"IF('1. Order'!AF1286=\"\",\"\",'1. Order'!AF1286)","v":""}]
[{"$f":"IF('1. Order'!B1287=\"\",\"\",'1. Order'!B1287)","v":""},{"$f":"IF('1. Order'!I1287=\"\",\"\",'1. Order'!I1287)","v":""},{"$f":"IF('1. Order'!J1287=\"\",\"\",'1. Order'!J1287)","v":""},{"$f":"IF('1. Order'!K1287=\"\",\"\",'1. Order'!K1287)","v":""},{"$f":"IF('1. Order'!M1287=\"\",\"\",'1. Order'!M1287)","v":""},null,null,null,{"$f":"IF('1. Order'!AF1287=\"\",\"\",'1. Order'!AF1287)","v":""}]
[{"$f":"IF('1. Order'!B1288=\"\",\"\",'1. Order'!B1288)","v":""},{"$f":"IF('1. Order'!I1288=\"\",\"\",'1. Order'!I1288)","v":""},{"$f":"IF('1. Order'!J1288=\"\",\"\",'1. Order'!J1288)","v":""},{"$f":"IF('1. Order'!K1288=\"\",\"\",'1. Order'!K1288)","v":""},{"$f":"IF('1. Order'!M1288=\"\",\"\",'1. Order'!M1288)","v":""},null,null,null,{"$f":"IF('1. Order'!AF1288=\"\",\"\",'1. Order'!AF1288)","v":""}]
[{"$f":"IF('1. Order'!B1289=\"\",\"\",'1. Order'!B1289)","v":""},{"$f":"IF('1. Order'!I1289=\"\",\"\",'1. Order'!I1289)","v":""},{"$f":"IF('1. Order'!J1289=\"\",\"\",'1. Order'!J1289)","v":""},{"$f":"IF('1. Order'!K1289=\"\",\"\",'1. Order'!K1289)","v":""},{"$f":"IF('1. Order'!M1289=\"\",\"\",'1. Order'!M1289)","v":""},null,null,null,{"$f":"IF('1. Order'!AF1289=\"\",\"\",'1. Order'!AF1289)","v":""}]
[{"$f":"IF('1. Order'!B1290=\"\",\"\",'1. Order'!B1290)","v":""},{"$f":"IF('1. Order'!I1290=\"\",\"\",'1. Order'!I1290)","v":""},{"$f":"IF('1. Order'!J1290=\"\",\"\",'1. Order'!J1290)","v":""},{"$f":"IF('1. Order'!K1290=\"\",\"\",'1. Order'!K1290)","v":""},{"$f":"IF('1. Order'!M1290=\"\",\"\",'1. Order'!M1290)","v":""},null,null,null,{"$f":"IF('1. Order'!AF1290=\"\",\"\",'1. Order'!AF1290)","v":""}]
[{"$f":"IF('1. Order'!B1291=\"\",\"\",'1. Order'!B1291)","v":""},{"$f":"IF('1. Order'!I1291=\"\",\"\",'1. Order'!I1291)","v":""},{"$f":"IF('1. Order'!J1291=\"\",\"\",'1. Order'!J1291)","v":""},{"$f":"IF('1. Order'!K1291=\"\",\"\",'1. Order'!K1291)","v":""},{"$f":"IF('1. Order'!M1291=\"\",\"\",'1. Order'!M1291)","v":""},null,null,null,{"$f":"IF('1. Order'!AF1291=\"\",\"\",'1. Order'!AF1291)","v":""}]
[{"$f":"IF('1. Order'!B1292=\"\",\"\",'1. Order'!B1292)","v":""},{"$f":"IF('1. Order'!I1292=\"\",\"\",'1. Order'!I1292)","v":""},{"$f":"IF('1. Order'!J1292=\"\",\"\",'1. Order'!J1292)","v":""},{"$f":"IF('1. Order'!K1292=\"\",\"\",'1. Order'!K1292)","v":""},{"$f":"IF('1. Order'!M1292=\"\",\"\",'1. Order'!M1292)","v":""},null,null,null,{"$f":"IF('1. Order'!AF1292=\"\",\"\",'1. Order'!AF1292)","v":""}]
[{"$f":"IF('1. Order'!B1293=\"\",\"\",'1. Order'!B1293)","v":""},{"$f":"IF('1. Order'!I1293=\"\",\"\",'1. Order'!I1293)","v":""},{"$f":"IF('1. Order'!J1293=\"\",\"\",'1. Order'!J1293)","v":""},{"$f":"IF('1. Order'!K1293=\"\",\"\",'1. Order'!K1293)","v":""},{"$f":"IF('1. Order'!M1293=\"\",\"\",'1. Order'!M1293)","v":""},null,null,null,{"$f":"IF('1. Order'!AF1293=\"\",\"\",'1. Order'!AF1293)","v":""}]
[{"$f":"IF('1. Order'!B1294=\"\",\"\",'1. Order'!B1294)","v":""},{"$f":"IF('1. Order'!I1294=\"\",\"\",'1. Order'!I1294)","v":""},{"$f":"IF('1. Order'!J1294=\"\",\"\",'1. Order'!J1294)","v":""},{"$f":"IF('1. Order'!K1294=\"\",\"\",'1. Order'!K1294)","v":""},{"$f":"IF('1. Order'!M1294=\"\",\"\",'1. Order'!M1294)","v":""},null,null,null,{"$f":"IF('1. Order'!AF1294=\"\",\"\",'1. Order'!AF1294)","v":""}]
[{"$f":"IF('1. Order'!B1295=\"\",\"\",'1. Order'!B1295)","v":""},{"$f":"IF('1. Order'!I1295=\"\",\"\",'1. Order'!I1295)","v":""},{"$f":"IF('1. Order'!J1295=\"\",\"\",'1. Order'!J1295)","v":""},{"$f":"IF('1. Order'!K1295=\"\",\"\",'1. Order'!K1295)","v":""},{"$f":"IF('1. Order'!M1295=\"\",\"\",'1. Order'!M1295)","v":""},null,null,null,{"$f":"IF('1. Order'!AF1295=\"\",\"\",'1. Order'!AF1295)","v":""}]
[{"$f":"IF('1. Order'!B1296=\"\",\"\",'1. Order'!B1296)","v":""},{"$f":"IF('1. Order'!I1296=\"\",\"\",'1. Order'!I1296)","v":""},{"$f":"IF('1. Order'!J1296=\"\",\"\",'1. Order'!J1296)","v":""},{"$f":"IF('1. Order'!K1296=\"\",\"\",'1. Order'!K1296)","v":""},{"$f":"IF('1. Order'!M1296=\"\",\"\",'1. Order'!M1296)","v":""},null,null,null,{"$f":"IF('1. Order'!AF1296=\"\",\"\",'1. Order'!AF1296)","v":""}]
[{"$f":"IF('1. Order'!B1297=\"\",\"\",'1. Order'!B1297)","v":""},{"$f":"IF('1. Order'!I1297=\"\",\"\",'1. Order'!I1297)","v":""},{"$f":"IF('1. Order'!J1297=\"\",\"\",'1. Order'!J1297)","v":""},{"$f":"IF('1. Order'!K1297=\"\",\"\",'1. Order'!K1297)","v":""},{"$f":"IF('1. Order'!M1297=\"\",\"\",'1. Order'!M1297)","v":""},null,null,null,{"$f":"IF('1. Order'!AF1297=\"\",\"\",'1. Order'!AF1297)","v":""}]
[{"$f":"IF('1. Order'!B1298=\"\",\"\",'1. Order'!B1298)","v":""},{"$f":"IF('1. Order'!I1298=\"\",\"\",'1. Order'!I1298)","v":""},{"$f":"IF('1. Order'!J1298=\"\",\"\",'1. Order'!J1298)","v":""},{"$f":"IF('1. Order'!K1298=\"\",\"\",'1. Order'!K1298)","v":""},{"$f":"IF('1. Order'!M1298=\"\",\"\",'1. Order'!M1298)","v":""},null,null,null,{"$f":"IF('1. Order'!AF1298=\"\",\"\",'1. Order'!AF1298)","v":""}]
[{"$f":"IF('1. Order'!B1299=\"\",\"\",'1. Order'!B1299)","v":""},{"$f":"IF('1. Order'!I1299=\"\",\"\",'1. Order'!I1299)","v":""},{"$f":"IF('1. Order'!J1299=\"\",\"\",'1. Order'!J1299)","v":""},{"$f":"IF('1. Order'!K1299=\"\",\"\",'1. Order'!K1299)","v":""},{"$f":"IF('1. Order'!M1299=\"\",\"\",'1. Order'!M1299)","v":""},null,null,null,{"$f":"IF('1. Order'!AF1299=\"\",\"\",'1. Order'!AF1299)","v":""}]
[{"$f":"IF('1. Order'!B1300=\"\",\"\",'1. Order'!B1300)","v":""},{"$f":"IF('1. Order'!I1300=\"\",\"\",'1. Order'!I1300)","v":""},{"$f":"IF('1. Order'!J1300=\"\",\"\",'1. Order'!J1300)","v":""},{"$f":"IF('1. Order'!K1300=\"\",\"\",'1. Order'!K1300)","v":""},{"$f":"IF('1. Order'!M1300=\"\",\"\",'1. Order'!M1300)","v":""},null,null,null,{"$f":"IF('1. Order'!AF1300=\"\",\"\",'1. Order'!AF1300)","v":""}]
[{"$f":"IF('1. Order'!B1301=\"\",\"\",'1. Order'!B1301)","v":""},{"$f":"IF('1. Order'!I1301=\"\",\"\",'1. Order'!I1301)","v":""},{"$f":"IF('1. Order'!J1301=\"\",\"\",'1. Order'!J1301)","v":""},{"$f":"IF('1. Order'!K1301=\"\",\"\",'1. Order'!K1301)","v":""},{"$f":"IF('1. Order'!M1301=\"\",\"\",'1. Order'!M1301)","v":""},null,null,null,{"$f":"IF('1. Order'!AF1301=\"\",\"\",'1. Order'!AF1301)","v":""}]
[{"$f":"IF('1. Order'!B1302=\"\",\"\",'1. Order'!B1302)","v":""},{"$f":"IF('1. Order'!I1302=\"\",\"\",'1. Order'!I1302)","v":""},{"$f":"IF('1. Order'!J1302=\"\",\"\",'1. Order'!J1302)","v":""},{"$f":"IF('1. Order'!K1302=\"\",\"\",'1. Order'!K1302)","v":""},{"$f":"IF('1. Order'!M1302=\"\",\"\",'1. Order'!M1302)","v":""},null,null,null,{"$f":"IF('1. Order'!AF1302=\"\",\"\",'1. Order'!AF1302)","v":""}]
[{"$f":"IF('1. Order'!B1303=\"\",\"\",'1. Order'!B1303)","v":""},{"$f":"IF('1. Order'!I1303=\"\",\"\",'1. Order'!I1303)","v":""},{"$f":"IF('1. Order'!J1303=\"\",\"\",'1. Order'!J1303)","v":""},{"$f":"IF('1. Order'!K1303=\"\",\"\",'1. Order'!K1303)","v":""},{"$f":"IF('1. Order'!M1303=\"\",\"\",'1. Order'!M1303)","v":""},null,null,null,{"$f":"IF('1. Order'!AF1303=\"\",\"\",'1. Order'!AF1303)","v":""}]
[{"$f":"IF('1. Order'!B1304=\"\",\"\",'1. Order'!B1304)","v":""},{"$f":"IF('1. Order'!I1304=\"\",\"\",'1. Order'!I1304)","v":""},{"$f":"IF('1. Order'!J1304=\"\",\"\",'1. Order'!J1304)","v":""},{"$f":"IF('1. Order'!K1304=\"\",\"\",'1. Order'!K1304)","v":""},{"$f":"IF('1. Order'!M1304=\"\",\"\",'1. Order'!M1304)","v":""},null,null,null,{"$f":"IF('1. Order'!AF1304=\"\",\"\",'1. Order'!AF1304)","v":""}]
[{"$f":"IF('1. Order'!B1305=\"\",\"\",'1. Order'!B1305)","v":""},{"$f":"IF('1. Order'!I1305=\"\",\"\",'1. Order'!I1305)","v":""},{"$f":"IF('1. Order'!J1305=\"\",\"\",'1. Order'!J1305)","v":""},{"$f":"IF('1. Order'!K1305=\"\",\"\",'1. Order'!K1305)","v":""},{"$f":"IF('1. Order'!M1305=\"\",\"\",'1. Order'!M1305)","v":""},null,null,null,{"$f":"IF('1. Order'!AF1305=\"\",\"\",'1. Order'!AF1305)","v":""}]
[{"$f":"IF('1. Order'!B1306=\"\",\"\",'1. Order'!B1306)","v":""},{"$f":"IF('1. Order'!I1306=\"\",\"\",'1. Order'!I1306)","v":""},{"$f":"IF('1. Order'!J1306=\"\",\"\",'1. Order'!J1306)","v":""},{"$f":"IF('1. Order'!K1306=\"\",\"\",'1. Order'!K1306)","v":""},{"$f":"IF('1. Order'!M1306=\"\",\"\",'1. Order'!M1306)","v":""},null,null,null,{"$f":"IF('1. Order'!AF1306=\"\",\"\",'1. Order'!AF1306)","v":""}]
[{"$f":"IF('1. Order'!B1307=\"\",\"\",'1. Order'!B1307)","v":""},{"$f":"IF('1. Order'!I1307=\"\",\"\",'1. Order'!I1307)","v":""},{"$f":"IF('1. Order'!J1307=\"\",\"\",'1. Order'!J1307)","v":""},{"$f":"IF('1. Order'!K1307=\"\",\"\",'1. Order'!K1307)","v":""},{"$f":"IF('1. Order'!M1307=\"\",\"\",'1. Order'!M1307)","v":""},null,null,null,{"$f":"IF('1. Order'!AF1307=\"\",\"\",'1. Order'!AF1307)","v":""}]
[{"$f":"IF('1. Order'!B1308=\"\",\"\",'1. Order'!B1308)","v":""},{"$f":"IF('1. Order'!I1308=\"\",\"\",'1. Order'!I1308)","v":""},{"$f":"IF('1. Order'!J1308=\"\",\"\",'1. Order'!J1308)","v":""},{"$f":"IF('1. Order'!K1308=\"\",\"\",'1. Order'!K1308)","v":""},{"$f":"IF('1. Order'!M1308=\"\",\"\",'1. Order'!M1308)","v":""},null,null,null,{"$f":"IF('1. Order'!AF1308=\"\",\"\",'1. Order'!AF1308)","v":""}]
[{"$f":"IF('1. Order'!B1309=\"\",\"\",'1. Order'!B1309)","v":""},{"$f":"IF('1. Order'!I1309=\"\",\"\",'1. Order'!I1309)","v":""},{"$f":"IF('1. Order'!J1309=\"\",\"\",'1. Order'!J1309)","v":""},{"$f":"IF('1. Order'!K1309=\"\",\"\",'1. Order'!K1309)","v":""},{"$f":"IF('1. Order'!M1309=\"\",\"\",'1. Order'!M1309)","v":""},null,null,null,{"$f":"IF('1. Order'!AF1309=\"\",\"\",'1. Order'!AF1309)","v":""}]
[{"$f":"IF('1. Order'!B1310=\"\",\"\",'1. Order'!B1310)","v":""},{"$f":"IF('1. Order'!I1310=\"\",\"\",'1. Order'!I1310)","v":""},{"$f":"IF('1. Order'!J1310=\"\",\"\",'1. Order'!J1310)","v":""},{"$f":"IF('1. Order'!K1310=\"\",\"\",'1. Order'!K1310)","v":""},{"$f":"IF('1. Order'!M1310=\"\",\"\",'1. Order'!M1310)","v":""},null,null,null,{"$f":"IF('1. Order'!AF1310=\"\",\"\",'1. Order'!AF1310)","v":""}]
[{"$f":"IF('1. Order'!B1311=\"\",\"\",'1. Order'!B1311)","v":""},{"$f":"IF('1. Order'!I1311=\"\",\"\",'1. Order'!I1311)","v":""},{"$f":"IF('1. Order'!J1311=\"\",\"\",'1. Order'!J1311)","v":""},{"$f":"IF('1. Order'!K1311=\"\",\"\",'1. Order'!K1311)","v":""},{"$f":"IF('1. Order'!M1311=\"\",\"\",'1. Order'!M1311)","v":""},null,null,null,{"$f":"IF('1. Order'!AF1311=\"\",\"\",'1. Order'!AF1311)","v":""}]
[{"$f":"IF('1. Order'!B1312=\"\",\"\",'1. Order'!B1312)","v":""},{"$f":"IF('1. Order'!I1312=\"\",\"\",'1. Order'!I1312)","v":""},{"$f":"IF('1. Order'!J1312=\"\",\"\",'1. Order'!J1312)","v":""},{"$f":"IF('1. Order'!K1312=\"\",\"\",'1. Order'!K1312)","v":""},{"$f":"IF('1. Order'!M1312=\"\",\"\",'1. Order'!M1312)","v":""},null,null,null,{"$f":"IF('1. Order'!AF1312=\"\",\"\",'1. Order'!AF1312)","v":""}]
[{"$f":"IF('1. Order'!B1313=\"\",\"\",'1. Order'!B1313)","v":""},{"$f":"IF('1. Order'!I1313=\"\",\"\",'1. Order'!I1313)","v":""},{"$f":"IF('1. Order'!J1313=\"\",\"\",'1. Order'!J1313)","v":""},{"$f":"IF('1. Order'!K1313=\"\",\"\",'1. Order'!K1313)","v":""},{"$f":"IF('1. Order'!M1313=\"\",\"\",'1. Order'!M1313)","v":""},null,null,null,{"$f":"IF('1. Order'!AF1313=\"\",\"\",'1. Order'!AF1313)","v":""}]
[{"$f":"IF('1. Order'!B1314=\"\",\"\",'1. Order'!B1314)","v":""},{"$f":"IF('1. Order'!I1314=\"\",\"\",'1. Order'!I1314)","v":""},{"$f":"IF('1. Order'!J1314=\"\",\"\",'1. Order'!J1314)","v":""},{"$f":"IF('1. Order'!K1314=\"\",\"\",'1. Order'!K1314)","v":""},{"$f":"IF('1. Order'!M1314=\"\",\"\",'1. Order'!M1314)","v":""},null,null,null,{"$f":"IF('1. Order'!AF1314=\"\",\"\",'1. Order'!AF1314)","v":""}]
[{"$f":"IF('1. Order'!B1315=\"\",\"\",'1. Order'!B1315)","v":""},{"$f":"IF('1. Order'!I1315=\"\",\"\",'1. Order'!I1315)","v":""},{"$f":"IF('1. Order'!J1315=\"\",\"\",'1. Order'!J1315)","v":""},{"$f":"IF('1. Order'!K1315=\"\",\"\",'1. Order'!K1315)","v":""},{"$f":"IF('1. Order'!M1315=\"\",\"\",'1. Order'!M1315)","v":""},null,null,null,{"$f":"IF('1. Order'!AF1315=\"\",\"\",'1. Order'!AF1315)","v":""}]
[{"$f":"IF('1. Order'!B1316=\"\",\"\",'1. Order'!B1316)","v":""},{"$f":"IF('1. Order'!I1316=\"\",\"\",'1. Order'!I1316)","v":""},{"$f":"IF('1. Order'!J1316=\"\",\"\",'1. Order'!J1316)","v":""},{"$f":"IF('1. Order'!K1316=\"\",\"\",'1. Order'!K1316)","v":""},{"$f":"IF('1. Order'!M1316=\"\",\"\",'1. Order'!M1316)","v":""},null,null,null,{"$f":"IF('1. Order'!AF1316=\"\",\"\",'1. Order'!AF1316)","v":""}]
[{"$f":"IF('1. Order'!B1317=\"\",\"\",'1. Order'!B1317)","v":""},{"$f":"IF('1. Order'!I1317=\"\",\"\",'1. Order'!I1317)","v":""},{"$f":"IF('1. Order'!J1317=\"\",\"\",'1. Order'!J1317)","v":""},{"$f":"IF('1. Order'!K1317=\"\",\"\",'1. Order'!K1317)","v":""},{"$f":"IF('1. Order'!M1317=\"\",\"\",'1. Order'!M1317)","v":""},null,null,null,{"$f":"IF('1. Order'!AF1317=\"\",\"\",'1. Order'!AF1317)","v":""}]
[{"$f":"IF('1. Order'!B1318=\"\",\"\",'1. Order'!B1318)","v":""},{"$f":"IF('1. Order'!I1318=\"\",\"\",'1. Order'!I1318)","v":""},{"$f":"IF('1. Order'!J1318=\"\",\"\",'1. Order'!J1318)","v":""},{"$f":"IF('1. Order'!K1318=\"\",\"\",'1. Order'!K1318)","v":""},{"$f":"IF('1. Order'!M1318=\"\",\"\",'1. Order'!M1318)","v":""},null,null,null,{"$f":"IF('1. Order'!AF1318=\"\",\"\",'1. Order'!AF1318)","v":""}]
[{"$f":"IF('1. Order'!B1319=\"\",\"\",'1. Order'!B1319)","v":""},{"$f":"IF('1. Order'!I1319=\"\",\"\",'1. Order'!I1319)","v":""},{"$f":"IF('1. Order'!J1319=\"\",\"\",'1. Order'!J1319)","v":""},{"$f":"IF('1. Order'!K1319=\"\",\"\",'1. Order'!K1319)","v":""},{"$f":"IF('1. Order'!M1319=\"\",\"\",'1. Order'!M1319)","v":""},null,null,null,{"$f":"IF('1. Order'!AF1319=\"\",\"\",'1. Order'!AF1319)","v":""}]
[{"$f":"IF('1. Order'!B1320=\"\",\"\",'1. Order'!B1320)","v":""},{"$f":"IF('1. Order'!I1320=\"\",\"\",'1. Order'!I1320)","v":""},{"$f":"IF('1. Order'!J1320=\"\",\"\",'1. Order'!J1320)","v":""},{"$f":"IF('1. Order'!K1320=\"\",\"\",'1. Order'!K1320)","v":""},{"$f":"IF('1. Order'!M1320=\"\",\"\",'1. Order'!M1320)","v":""},null,null,null,{"$f":"IF('1. Order'!AF1320=\"\",\"\",'1. Order'!AF1320)","v":""}]
[{"$f":"IF('1. Order'!B1321=\"\",\"\",'1. Order'!B1321)","v":""},{"$f":"IF('1. Order'!I1321=\"\",\"\",'1. Order'!I1321)","v":""},{"$f":"IF('1. Order'!J1321=\"\",\"\",'1. Order'!J1321)","v":""},{"$f":"IF('1. Order'!K1321=\"\",\"\",'1. Order'!K1321)","v":""},{"$f":"IF('1. Order'!M1321=\"\",\"\",'1. Order'!M1321)","v":""},null,null,null,{"$f":"IF('1. Order'!AF1321=\"\",\"\",'1. Order'!AF1321)","v":""}]
[{"$f":"IF('1. Order'!B1322=\"\",\"\",'1. Order'!B1322)","v":""},{"$f":"IF('1. Order'!I1322=\"\",\"\",'1. Order'!I1322)","v":""},{"$f":"IF('1. Order'!J1322=\"\",\"\",'1. Order'!J1322)","v":""},{"$f":"IF('1. Order'!K1322=\"\",\"\",'1. Order'!K1322)","v":""},{"$f":"IF('1. Order'!M1322=\"\",\"\",'1. Order'!M1322)","v":""},null,null,null,{"$f":"IF('1. Order'!AF1322=\"\",\"\",'1. Order'!AF1322)","v":""}]
[{"$f":"IF('1. Order'!B1323=\"\",\"\",'1. Order'!B1323)","v":""},{"$f":"IF('1. Order'!I1323=\"\",\"\",'1. Order'!I1323)","v":""},{"$f":"IF('1. Order'!J1323=\"\",\"\",'1. Order'!J1323)","v":""},{"$f":"IF('1. Order'!K1323=\"\",\"\",'1. Order'!K1323)","v":""},{"$f":"IF('1. Order'!M1323=\"\",\"\",'1. Order'!M1323)","v":""},null,null,null,{"$f":"IF('1. Order'!AF1323=\"\",\"\",'1. Order'!AF1323)","v":""}]
[{"$f":"IF('1. Order'!B1324=\"\",\"\",'1. Order'!B1324)","v":""},{"$f":"IF('1. Order'!I1324=\"\",\"\",'1. Order'!I1324)","v":""},{"$f":"IF('1. Order'!J1324=\"\",\"\",'1. Order'!J1324)","v":""},{"$f":"IF('1. Order'!K1324=\"\",\"\",'1. Order'!K1324)","v":""},{"$f":"IF('1. Order'!M1324=\"\",\"\",'1. Order'!M1324)","v":""},null,null,null,{"$f":"IF('1. Order'!AF1324=\"\",\"\",'1. Order'!AF1324)","v":""}]
[{"$f":"IF('1. Order'!B1325=\"\",\"\",'1. Order'!B1325)","v":""},{"$f":"IF('1. Order'!I1325=\"\",\"\",'1. Order'!I1325)","v":""},{"$f":"IF('1. Order'!J1325=\"\",\"\",'1. Order'!J1325)","v":""},{"$f":"IF('1. Order'!K1325=\"\",\"\",'1. Order'!K1325)","v":""},{"$f":"IF('1. Order'!M1325=\"\",\"\",'1. Order'!M1325)","v":""},null,null,null,{"$f":"IF('1. Order'!AF1325=\"\",\"\",'1. Order'!AF1325)","v":""}]
[{"$f":"IF('1. Order'!B1326=\"\",\"\",'1. Order'!B1326)","v":""},{"$f":"IF('1. Order'!I1326=\"\",\"\",'1. Order'!I1326)","v":""},{"$f":"IF('1. Order'!J1326=\"\",\"\",'1. Order'!J1326)","v":""},{"$f":"IF('1. Order'!K1326=\"\",\"\",'1. Order'!K1326)","v":""},{"$f":"IF('1. Order'!M1326=\"\",\"\",'1. Order'!M1326)","v":""},null,null,null,{"$f":"IF('1. Order'!AF1326=\"\",\"\",'1. Order'!AF1326)","v":""}]
[{"$f":"IF('1. Order'!B1327=\"\",\"\",'1. Order'!B1327)","v":""},{"$f":"IF('1. Order'!I1327=\"\",\"\",'1. Order'!I1327)","v":""},{"$f":"IF('1. Order'!J1327=\"\",\"\",'1. Order'!J1327)","v":""},{"$f":"IF('1. Order'!K1327=\"\",\"\",'1. Order'!K1327)","v":""},{"$f":"IF('1. Order'!M1327=\"\",\"\",'1. Order'!M1327)","v":""},null,null,null,{"$f":"IF('1. Order'!AF1327=\"\",\"\",'1. Order'!AF1327)","v":""}]
[{"$f":"IF('1. Order'!B1328=\"\",\"\",'1. Order'!B1328)","v":""},{"$f":"IF('1. Order'!I1328=\"\",\"\",'1. Order'!I1328)","v":""},{"$f":"IF('1. Order'!J1328=\"\",\"\",'1. Order'!J1328)","v":""},{"$f":"IF('1. Order'!K1328=\"\",\"\",'1. Order'!K1328)","v":""},{"$f":"IF('1. Order'!M1328=\"\",\"\",'1. Order'!M1328)","v":""},null,null,null,{"$f":"IF('1. Order'!AF1328=\"\",\"\",'1. Order'!AF1328)","v":""}]
[{"$f":"IF('1. Order'!B1329=\"\",\"\",'1. Order'!B1329)","v":""},{"$f":"IF('1. Order'!I1329=\"\",\"\",'1. Order'!I1329)","v":""},{"$f":"IF('1. Order'!J1329=\"\",\"\",'1. Order'!J1329)","v":""},{"$f":"IF('1. Order'!K1329=\"\",\"\",'1. Order'!K1329)","v":""},{"$f":"IF('1. Order'!M1329=\"\",\"\",'1. Order'!M1329)","v":""},null,null,null,{"$f":"IF('1. Order'!AF1329=\"\",\"\",'1. Order'!AF1329)","v":""}]
[{"$f":"IF('1. Order'!B1330=\"\",\"\",'1. Order'!B1330)","v":""},{"$f":"IF('1. Order'!I1330=\"\",\"\",'1. Order'!I1330)","v":""},{"$f":"IF('1. Order'!J1330=\"\",\"\",'1. Order'!J1330)","v":""},{"$f":"IF('1. Order'!K1330=\"\",\"\",'1. Order'!K1330)","v":""},{"$f":"IF('1. Order'!M1330=\"\",\"\",'1. Order'!M1330)","v":""},null,null,null,{"$f":"IF('1. Order'!AF1330=\"\",\"\",'1. Order'!AF1330)","v":""}]
[{"$f":"IF('1. Order'!B1331=\"\",\"\",'1. Order'!B1331)","v":""},{"$f":"IF('1. Order'!I1331=\"\",\"\",'1. Order'!I1331)","v":""},{"$f":"IF('1. Order'!J1331=\"\",\"\",'1. Order'!J1331)","v":""},{"$f":"IF('1. Order'!K1331=\"\",\"\",'1. Order'!K1331)","v":""},{"$f":"IF('1. Order'!M1331=\"\",\"\",'1. Order'!M1331)","v":""},null,null,null,{"$f":"IF('1. Order'!AF1331=\"\",\"\",'1. Order'!AF1331)","v":""}]
[{"$f":"IF('1. Order'!B1332=\"\",\"\",'1. Order'!B1332)","v":""},{"$f":"IF('1. Order'!I1332=\"\",\"\",'1. Order'!I1332)","v":""},{"$f":"IF('1. Order'!J1332=\"\",\"\",'1. Order'!J1332)","v":""},{"$f":"IF('1. Order'!K1332=\"\",\"\",'1. Order'!K1332)","v":""},{"$f":"IF('1. Order'!M1332=\"\",\"\",'1. Order'!M1332)","v":""},null,null,null,{"$f":"IF('1. Order'!AF1332=\"\",\"\",'1. Order'!AF1332)","v":""}]
[{"$f":"IF('1. Order'!B1333=\"\",\"\",'1. Order'!B1333)","v":""},{"$f":"IF('1. Order'!I1333=\"\",\"\",'1. Order'!I1333)","v":""},{"$f":"IF('1. Order'!J1333=\"\",\"\",'1. Order'!J1333)","v":""},{"$f":"IF('1. Order'!K1333=\"\",\"\",'1. Order'!K1333)","v":""},{"$f":"IF('1. Order'!M1333=\"\",\"\",'1. Order'!M1333)","v":""},null,null,null,{"$f":"IF('1. Order'!AF1333=\"\",\"\",'1. Order'!AF1333)","v":""}]
[{"$f":"IF('1. Order'!B1334=\"\",\"\",'1. Order'!B1334)","v":""},{"$f":"IF('1. Order'!I1334=\"\",\"\",'1. Order'!I1334)","v":""},{"$f":"IF('1. Order'!J1334=\"\",\"\",'1. Order'!J1334)","v":""},{"$f":"IF('1. Order'!K1334=\"\",\"\",'1. Order'!K1334)","v":""},{"$f":"IF('1. Order'!M1334=\"\",\"\",'1. Order'!M1334)","v":""},null,null,null,{"$f":"IF('1. Order'!AF1334=\"\",\"\",'1. Order'!AF1334)","v":""}]
[{"$f":"IF('1. Order'!B1335=\"\",\"\",'1. Order'!B1335)","v":""},{"$f":"IF('1. Order'!I1335=\"\",\"\",'1. Order'!I1335)","v":""},{"$f":"IF('1. Order'!J1335=\"\",\"\",'1. Order'!J1335)","v":""},{"$f":"IF('1. Order'!K1335=\"\",\"\",'1. Order'!K1335)","v":""},{"$f":"IF('1. Order'!M1335=\"\",\"\",'1. Order'!M1335)","v":""},null,null,null,{"$f":"IF('1. Order'!AF1335=\"\",\"\",'1. Order'!AF1335)","v":""}]
[{"$f":"IF('1. Order'!B1336=\"\",\"\",'1. Order'!B1336)","v":""},{"$f":"IF('1. Order'!I1336=\"\",\"\",'1. Order'!I1336)","v":""},{"$f":"IF('1. Order'!J1336=\"\",\"\",'1. Order'!J1336)","v":""},{"$f":"IF('1. Order'!K1336=\"\",\"\",'1. Order'!K1336)","v":""},{"$f":"IF('1. Order'!M1336=\"\",\"\",'1. Order'!M1336)","v":""},null,null,null,{"$f":"IF('1. Order'!AF1336=\"\",\"\",'1. Order'!AF1336)","v":""}]
[{"$f":"IF('1. Order'!B1337=\"\",\"\",'1. Order'!B1337)","v":""},{"$f":"IF('1. Order'!I1337=\"\",\"\",'1. Order'!I1337)","v":""},{"$f":"IF('1. Order'!J1337=\"\",\"\",'1. Order'!J1337)","v":""},{"$f":"IF('1. Order'!K1337=\"\",\"\",'1. Order'!K1337)","v":""},{"$f":"IF('1. Order'!M1337=\"\",\"\",'1. Order'!M1337)","v":""},null,null,null,{"$f":"IF('1. Order'!AF1337=\"\",\"\",'1. Order'!AF1337)","v":""}]
[{"$f":"IF('1. Order'!B1338=\"\",\"\",'1. Order'!B1338)","v":""},{"$f":"IF('1. Order'!I1338=\"\",\"\",'1. Order'!I1338)","v":""},{"$f":"IF('1. Order'!J1338=\"\",\"\",'1. Order'!J1338)","v":""},{"$f":"IF('1. Order'!K1338=\"\",\"\",'1. Order'!K1338)","v":""},{"$f":"IF('1. Order'!M1338=\"\",\"\",'1. Order'!M1338)","v":""},null,null,null,{"$f":"IF('1. Order'!AF1338=\"\",\"\",'1. Order'!AF1338)","v":""}]
[{"$f":"IF('1. Order'!B1339=\"\",\"\",'1. Order'!B1339)","v":""},{"$f":"IF('1. Order'!I1339=\"\",\"\",'1. Order'!I1339)","v":""},{"$f":"IF('1. Order'!J1339=\"\",\"\",'1. Order'!J1339)","v":""},{"$f":"IF('1. Order'!K1339=\"\",\"\",'1. Order'!K1339)","v":""},{"$f":"IF('1. Order'!M1339=\"\",\"\",'1. Order'!M1339)","v":""},null,null,null,{"$f":"IF('1. Order'!AF1339=\"\",\"\",'1. Order'!AF1339)","v":""}]
[{"$f":"IF('1. Order'!B1340=\"\",\"\",'1. Order'!B1340)","v":""},{"$f":"IF('1. Order'!I1340=\"\",\"\",'1. Order'!I1340)","v":""},{"$f":"IF('1. Order'!J1340=\"\",\"\",'1. Order'!J1340)","v":""},{"$f":"IF('1. Order'!K1340=\"\",\"\",'1. Order'!K1340)","v":""},{"$f":"IF('1. Order'!M1340=\"\",\"\",'1. Order'!M1340)","v":""},null,null,null,{"$f":"IF('1. Order'!AF1340=\"\",\"\",'1. Order'!AF1340)","v":""}]
[{"$f":"IF('1. Order'!B1341=\"\",\"\",'1. Order'!B1341)","v":""},{"$f":"IF('1. Order'!I1341=\"\",\"\",'1. Order'!I1341)","v":""},{"$f":"IF('1. Order'!J1341=\"\",\"\",'1. Order'!J1341)","v":""},{"$f":"IF('1. Order'!K1341=\"\",\"\",'1. Order'!K1341)","v":""},{"$f":"IF('1. Order'!M1341=\"\",\"\",'1. Order'!M1341)","v":""},null,null,null,{"$f":"IF('1. Order'!AF1341=\"\",\"\",'1. Order'!AF1341)","v":""}]
[{"$f":"IF('1. Order'!B1342=\"\",\"\",'1. Order'!B1342)","v":""},{"$f":"IF('1. Order'!I1342=\"\",\"\",'1. Order'!I1342)","v":""},{"$f":"IF('1. Order'!J1342=\"\",\"\",'1. Order'!J1342)","v":""},{"$f":"IF('1. Order'!K1342=\"\",\"\",'1. Order'!K1342)","v":""},{"$f":"IF('1. Order'!M1342=\"\",\"\",'1. Order'!M1342)","v":""},null,null,null,{"$f":"IF('1. Order'!AF1342=\"\",\"\",'1. Order'!AF1342)","v":""}]
[{"$f":"IF('1. Order'!B1343=\"\",\"\",'1. Order'!B1343)","v":""},{"$f":"IF('1. Order'!I1343=\"\",\"\",'1. Order'!I1343)","v":""},{"$f":"IF('1. Order'!J1343=\"\",\"\",'1. Order'!J1343)","v":""},{"$f":"IF('1. Order'!K1343=\"\",\"\",'1. Order'!K1343)","v":""},{"$f":"IF('1. Order'!M1343=\"\",\"\",'1. Order'!M1343)","v":""},null,null,null,{"$f":"IF('1. Order'!AF1343=\"\",\"\",'1. Order'!AF1343)","v":""}]
[{"$f":"IF('1. Order'!B1344=\"\",\"\",'1. Order'!B1344)","v":""},{"$f":"IF('1. Order'!I1344=\"\",\"\",'1. Order'!I1344)","v":""},{"$f":"IF('1. Order'!J1344=\"\",\"\",'1. Order'!J1344)","v":""},{"$f":"IF('1. Order'!K1344=\"\",\"\",'1. Order'!K1344)","v":""},{"$f":"IF('1. Order'!M1344=\"\",\"\",'1. Order'!M1344)","v":""},null,null,null,{"$f":"IF('1. Order'!AF1344=\"\",\"\",'1. Order'!AF1344)","v":""}]
[{"$f":"IF('1. Order'!B1345=\"\",\"\",'1. Order'!B1345)","v":""},{"$f":"IF('1. Order'!I1345=\"\",\"\",'1. Order'!I1345)","v":""},{"$f":"IF('1. Order'!J1345=\"\",\"\",'1. Order'!J1345)","v":""},{"$f":"IF('1. Order'!K1345=\"\",\"\",'1. Order'!K1345)","v":""},{"$f":"IF('1. Order'!M1345=\"\",\"\",'1. Order'!M1345)","v":""},null,null,null,{"$f":"IF('1. Order'!AF1345=\"\",\"\",'1. Order'!AF1345)","v":""}]
[{"$f":"IF('1. Order'!B1346=\"\",\"\",'1. Order'!B1346)","v":""},{"$f":"IF('1. Order'!I1346=\"\",\"\",'1. Order'!I1346)","v":""},{"$f":"IF('1. Order'!J1346=\"\",\"\",'1. Order'!J1346)","v":""},{"$f":"IF('1. Order'!K1346=\"\",\"\",'1. Order'!K1346)","v":""},{"$f":"IF('1. Order'!M1346=\"\",\"\",'1. Order'!M1346)","v":""},null,null,null,{"$f":"IF('1. Order'!AF1346=\"\",\"\",'1. Order'!AF1346)","v":""}]
[{"$f":"IF('1. Order'!B1347=\"\",\"\",'1. Order'!B1347)","v":""},{"$f":"IF('1. Order'!I1347=\"\",\"\",'1. Order'!I1347)","v":""},{"$f":"IF('1. Order'!J1347=\"\",\"\",'1. Order'!J1347)","v":""},{"$f":"IF('1. Order'!K1347=\"\",\"\",'1. Order'!K1347)","v":""},{"$f":"IF('1. Order'!M1347=\"\",\"\",'1. Order'!M1347)","v":""},null,null,null,{"$f":"IF('1. Order'!AF1347=\"\",\"\",'1. Order'!AF1347)","v":""}]
[{"$f":"IF('1. Order'!B1348=\"\",\"\",'1. Order'!B1348)","v":""},{"$f":"IF('1. Order'!I1348=\"\",\"\",'1. Order'!I1348)","v":""},{"$f":"IF('1. Order'!J1348=\"\",\"\",'1. Order'!J1348)","v":""},{"$f":"IF('1. Order'!K1348=\"\",\"\",'1. Order'!K1348)","v":""},{"$f":"IF('1. Order'!M1348=\"\",\"\",'1. Order'!M1348)","v":""},null,null,null,{"$f":"IF('1. Order'!AF1348=\"\",\"\",'1. Order'!AF1348)","v":""}]
[{"$f":"IF('1. Order'!B1349=\"\",\"\",'1. Order'!B1349)","v":""},{"$f":"IF('1. Order'!I1349=\"\",\"\",'1. Order'!I1349)","v":""},{"$f":"IF('1. Order'!J1349=\"\",\"\",'1. Order'!J1349)","v":""},{"$f":"IF('1. Order'!K1349=\"\",\"\",'1. Order'!K1349)","v":""},{"$f":"IF('1. Order'!M1349=\"\",\"\",'1. Order'!M1349)","v":""},null,null,null,{"$f":"IF('1. Order'!AF1349=\"\",\"\",'1. Order'!AF1349)","v":""}]
[{"$f":"IF('1. Order'!B1350=\"\",\"\",'1. Order'!B1350)","v":""},{"$f":"IF('1. Order'!I1350=\"\",\"\",'1. Order'!I1350)","v":""},{"$f":"IF('1. Order'!J1350=\"\",\"\",'1. Order'!J1350)","v":""},{"$f":"IF('1. Order'!K1350=\"\",\"\",'1. Order'!K1350)","v":""},{"$f":"IF('1. Order'!M1350=\"\",\"\",'1. Order'!M1350)","v":""},null,null,null,{"$f":"IF('1. Order'!AF1350=\"\",\"\",'1. Order'!AF1350)","v":""}]
[{"$f":"IF('1. Order'!B1351=\"\",\"\",'1. Order'!B1351)","v":""},{"$f":"IF('1. Order'!I1351=\"\",\"\",'1. Order'!I1351)","v":""},{"$f":"IF('1. Order'!J1351=\"\",\"\",'1. Order'!J1351)","v":""},{"$f":"IF('1. Order'!K1351=\"\",\"\",'1. Order'!K1351)","v":""},{"$f":"IF('1. Order'!M1351=\"\",\"\",'1. Order'!M1351)","v":""},null,null,null,{"$f":"IF('1. Order'!AF1351=\"\",\"\",'1. Order'!AF1351)","v":""}]
[{"$f":"IF('1. Order'!B1352=\"\",\"\",'1. Order'!B1352)","v":""},{"$f":"IF('1. Order'!I1352=\"\",\"\",'1. Order'!I1352)","v":""},{"$f":"IF('1. Order'!J1352=\"\",\"\",'1. Order'!J1352)","v":""},{"$f":"IF('1. Order'!K1352=\"\",\"\",'1. Order'!K1352)","v":""},{"$f":"IF('1. Order'!M1352=\"\",\"\",'1. Order'!M1352)","v":""},null,null,null,{"$f":"IF('1. Order'!AF1352=\"\",\"\",'1. Order'!AF1352)","v":""}]
[{"$f":"IF('1. Order'!B1353=\"\",\"\",'1. Order'!B1353)","v":""},{"$f":"IF('1. Order'!I1353=\"\",\"\",'1. Order'!I1353)","v":""},{"$f":"IF('1. Order'!J1353=\"\",\"\",'1. Order'!J1353)","v":""},{"$f":"IF('1. Order'!K1353=\"\",\"\",'1. Order'!K1353)","v":""},{"$f":"IF('1. Order'!M1353=\"\",\"\",'1. Order'!M1353)","v":""},null,null,null,{"$f":"IF('1. Order'!AF1353=\"\",\"\",'1. Order'!AF1353)","v":""}]
[{"$f":"IF('1. Order'!B1354=\"\",\"\",'1. Order'!B1354)","v":""},{"$f":"IF('1. Order'!I1354=\"\",\"\",'1. Order'!I1354)","v":""},{"$f":"IF('1. Order'!J1354=\"\",\"\",'1. Order'!J1354)","v":""},{"$f":"IF('1. Order'!K1354=\"\",\"\",'1. Order'!K1354)","v":""},{"$f":"IF('1. Order'!M1354=\"\",\"\",'1. Order'!M1354)","v":""},null,null,null,{"$f":"IF('1. Order'!AF1354=\"\",\"\",'1. Order'!AF1354)","v":""}]
[{"$f":"IF('1. Order'!B1355=\"\",\"\",'1. Order'!B1355)","v":""},{"$f":"IF('1. Order'!I1355=\"\",\"\",'1. Order'!I1355)","v":""},{"$f":"IF('1. Order'!J1355=\"\",\"\",'1. Order'!J1355)","v":""},{"$f":"IF('1. Order'!K1355=\"\",\"\",'1. Order'!K1355)","v":""},{"$f":"IF('1. Order'!M1355=\"\",\"\",'1. Order'!M1355)","v":""},null,null,null,{"$f":"IF('1. Order'!AF1355=\"\",\"\",'1. Order'!AF1355)","v":""}]
[{"$f":"IF('1. Order'!B1356=\"\",\"\",'1. Order'!B1356)","v":""},{"$f":"IF('1. Order'!I1356=\"\",\"\",'1. Order'!I1356)","v":""},{"$f":"IF('1. Order'!J1356=\"\",\"\",'1. Order'!J1356)","v":""},{"$f":"IF('1. Order'!K1356=\"\",\"\",'1. Order'!K1356)","v":""},{"$f":"IF('1. Order'!M1356=\"\",\"\",'1. Order'!M1356)","v":""},null,null,null,{"$f":"IF('1. Order'!AF1356=\"\",\"\",'1. Order'!AF1356)","v":""}]
[{"$f":"IF('1. Order'!B1357=\"\",\"\",'1. Order'!B1357)","v":""},{"$f":"IF('1. Order'!I1357=\"\",\"\",'1. Order'!I1357)","v":""},{"$f":"IF('1. Order'!J1357=\"\",\"\",'1. Order'!J1357)","v":""},{"$f":"IF('1. Order'!K1357=\"\",\"\",'1. Order'!K1357)","v":""},{"$f":"IF('1. Order'!M1357=\"\",\"\",'1. Order'!M1357)","v":""},null,null,null,{"$f":"IF('1. Order'!AF1357=\"\",\"\",'1. Order'!AF1357)","v":""}]
[{"$f":"IF('1. Order'!B1358=\"\",\"\",'1. Order'!B1358)","v":""},{"$f":"IF('1. Order'!I1358=\"\",\"\",'1. Order'!I1358)","v":""},{"$f":"IF('1. Order'!J1358=\"\",\"\",'1. Order'!J1358)","v":""},{"$f":"IF('1. Order'!K1358=\"\",\"\",'1. Order'!K1358)","v":""},{"$f":"IF('1. Order'!M1358=\"\",\"\",'1. Order'!M1358)","v":""},null,null,null,{"$f":"IF('1. Order'!AF1358=\"\",\"\",'1. Order'!AF1358)","v":""}]
[{"$f":"IF('1. Order'!B1359=\"\",\"\",'1. Order'!B1359)","v":""},{"$f":"IF('1. Order'!I1359=\"\",\"\",'1. Order'!I1359)","v":""},{"$f":"IF('1. Order'!J1359=\"\",\"\",'1. Order'!J1359)","v":""},{"$f":"IF('1. Order'!K1359=\"\",\"\",'1. Order'!K1359)","v":""},{"$f":"IF('1. Order'!M1359=\"\",\"\",'1. Order'!M1359)","v":""},null,null,null,{"$f":"IF('1. Order'!AF1359=\"\",\"\",'1. Order'!AF1359)","v":""}]
[{"$f":"IF('1. Order'!B1360=\"\",\"\",'1. Order'!B1360)","v":""},{"$f":"IF('1. Order'!I1360=\"\",\"\",'1. Order'!I1360)","v":""},{"$f":"IF('1. Order'!J1360=\"\",\"\",'1. Order'!J1360)","v":""},{"$f":"IF('1. Order'!K1360=\"\",\"\",'1. Order'!K1360)","v":""},{"$f":"IF('1. Order'!M1360=\"\",\"\",'1. Order'!M1360)","v":""},null,null,null,{"$f":"IF('1. Order'!AF1360=\"\",\"\",'1. Order'!AF1360)","v":""}]
[{"$f":"IF('1. Order'!B1361=\"\",\"\",'1. Order'!B1361)","v":""},{"$f":"IF('1. Order'!I1361=\"\",\"\",'1. Order'!I1361)","v":""},{"$f":"IF('1. Order'!J1361=\"\",\"\",'1. Order'!J1361)","v":""},{"$f":"IF('1. Order'!K1361=\"\",\"\",'1. Order'!K1361)","v":""},{"$f":"IF('1. Order'!M1361=\"\",\"\",'1. Order'!M1361)","v":""},null,null,null,{"$f":"IF('1. Order'!AF1361=\"\",\"\",'1. Order'!AF1361)","v":""}]
[{"$f":"IF('1. Order'!B1362=\"\",\"\",'1. Order'!B1362)","v":""},{"$f":"IF('1. Order'!I1362=\"\",\"\",'1. Order'!I1362)","v":""},{"$f":"IF('1. Order'!J1362=\"\",\"\",'1. Order'!J1362)","v":""},{"$f":"IF('1. Order'!K1362=\"\",\"\",'1. Order'!K1362)","v":""},{"$f":"IF('1. Order'!M1362=\"\",\"\",'1. Order'!M1362)","v":""},null,null,null,{"$f":"IF('1. Order'!AF1362=\"\",\"\",'1. Order'!AF1362)","v":""}]
[{"$f":"IF('1. Order'!B1363=\"\",\"\",'1. Order'!B1363)","v":""},{"$f":"IF('1. Order'!I1363=\"\",\"\",'1. Order'!I1363)","v":""},{"$f":"IF('1. Order'!J1363=\"\",\"\",'1. Order'!J1363)","v":""},{"$f":"IF('1. Order'!K1363=\"\",\"\",'1. Order'!K1363)","v":""},{"$f":"IF('1. Order'!M1363=\"\",\"\",'1. Order'!M1363)","v":""},null,null,null,{"$f":"IF('1. Order'!AF1363=\"\",\"\",'1. Order'!AF1363)","v":""}]
[{"$f":"IF('1. Order'!B1364=\"\",\"\",'1. Order'!B1364)","v":""},{"$f":"IF('1. Order'!I1364=\"\",\"\",'1. Order'!I1364)","v":""},{"$f":"IF('1. Order'!J1364=\"\",\"\",'1. Order'!J1364)","v":""},{"$f":"IF('1. Order'!K1364=\"\",\"\",'1. Order'!K1364)","v":""},{"$f":"IF('1. Order'!M1364=\"\",\"\",'1. Order'!M1364)","v":""},null,null,null,{"$f":"IF('1. Order'!AF1364=\"\",\"\",'1. Order'!AF1364)","v":""}]
[{"$f":"IF('1. Order'!B1365=\"\",\"\",'1. Order'!B1365)","v":""},{"$f":"IF('1. Order'!I1365=\"\",\"\",'1. Order'!I1365)","v":""},{"$f":"IF('1. Order'!J1365=\"\",\"\",'1. Order'!J1365)","v":""},{"$f":"IF('1. Order'!K1365=\"\",\"\",'1. Order'!K1365)","v":""},{"$f":"IF('1. Order'!M1365=\"\",\"\",'1. Order'!M1365)","v":""},null,null,null,{"$f":"IF('1. Order'!AF1365=\"\",\"\",'1. Order'!AF1365)","v":""}]
[{"$f":"IF('1. Order'!B1366=\"\",\"\",'1. Order'!B1366)","v":""},{"$f":"IF('1. Order'!I1366=\"\",\"\",'1. Order'!I1366)","v":""},{"$f":"IF('1. Order'!J1366=\"\",\"\",'1. Order'!J1366)","v":""},{"$f":"IF('1. Order'!K1366=\"\",\"\",'1. Order'!K1366)","v":""},{"$f":"IF('1. Order'!M1366=\"\",\"\",'1. Order'!M1366)","v":""},null,null,null,{"$f":"IF('1. Order'!AF1366=\"\",\"\",'1. Order'!AF1366)","v":""}]
[{"$f":"IF('1. Order'!B1367=\"\",\"\",'1. Order'!B1367)","v":""},{"$f":"IF('1. Order'!I1367=\"\",\"\",'1. Order'!I1367)","v":""},{"$f":"IF('1. Order'!J1367=\"\",\"\",'1. Order'!J1367)","v":""},{"$f":"IF('1. Order'!K1367=\"\",\"\",'1. Order'!K1367)","v":""},{"$f":"IF('1. Order'!M1367=\"\",\"\",'1. Order'!M1367)","v":""},null,null,null,{"$f":"IF('1. Order'!AF1367=\"\",\"\",'1. Order'!AF1367)","v":""}]
[{"$f":"IF('1. Order'!B1368=\"\",\"\",'1. Order'!B1368)","v":""},{"$f":"IF('1. Order'!I1368=\"\",\"\",'1. Order'!I1368)","v":""},{"$f":"IF('1. Order'!J1368=\"\",\"\",'1. Order'!J1368)","v":""},{"$f":"IF('1. Order'!K1368=\"\",\"\",'1. Order'!K1368)","v":""},{"$f":"IF('1. Order'!M1368=\"\",\"\",'1. Order'!M1368)","v":""},null,null,null,{"$f":"IF('1. Order'!AF1368=\"\",\"\",'1. Order'!AF1368)","v":""}]
[{"$f":"IF('1. Order'!B1369=\"\",\"\",'1. Order'!B1369)","v":""},{"$f":"IF('1. Order'!I1369=\"\",\"\",'1. Order'!I1369)","v":""},{"$f":"IF('1. Order'!J1369=\"\",\"\",'1. Order'!J1369)","v":""},{"$f":"IF('1. Order'!K1369=\"\",\"\",'1. Order'!K1369)","v":""},{"$f":"IF('1. Order'!M1369=\"\",\"\",'1. Order'!M1369)","v":""},null,null,null,{"$f":"IF('1. Order'!AF1369=\"\",\"\",'1. Order'!AF1369)","v":""}]
[{"$f":"IF('1. Order'!B1370=\"\",\"\",'1. Order'!B1370)","v":""},{"$f":"IF('1. Order'!I1370=\"\",\"\",'1. Order'!I1370)","v":""},{"$f":"IF('1. Order'!J1370=\"\",\"\",'1. Order'!J1370)","v":""},{"$f":"IF('1. Order'!K1370=\"\",\"\",'1. Order'!K1370)","v":""},{"$f":"IF('1. Order'!M1370=\"\",\"\",'1. Order'!M1370)","v":""},null,null,null,{"$f":"IF('1. Order'!AF1370=\"\",\"\",'1. Order'!AF1370)","v":""}]
[{"$f":"IF('1. Order'!B1371=\"\",\"\",'1. Order'!B1371)","v":""},{"$f":"IF('1. Order'!I1371=\"\",\"\",'1. Order'!I1371)","v":""},{"$f":"IF('1. Order'!J1371=\"\",\"\",'1. Order'!J1371)","v":""},{"$f":"IF('1. Order'!K1371=\"\",\"\",'1. Order'!K1371)","v":""},{"$f":"IF('1. Order'!M1371=\"\",\"\",'1. Order'!M1371)","v":""},null,null,null,{"$f":"IF('1. Order'!AF1371=\"\",\"\",'1. Order'!AF1371)","v":""}]
[{"$f":"IF('1. Order'!B1372=\"\",\"\",'1. Order'!B1372)","v":""},{"$f":"IF('1. Order'!I1372=\"\",\"\",'1. Order'!I1372)","v":""},{"$f":"IF('1. Order'!J1372=\"\",\"\",'1. Order'!J1372)","v":""},{"$f":"IF('1. Order'!K1372=\"\",\"\",'1. Order'!K1372)","v":""},{"$f":"IF('1. Order'!M1372=\"\",\"\",'1. Order'!M1372)","v":""},null,null,null,{"$f":"IF('1. Order'!AF1372=\"\",\"\",'1. Order'!AF1372)","v":""}]
[{"$f":"IF('1. Order'!B1373=\"\",\"\",'1. Order'!B1373)","v":""},{"$f":"IF('1. Order'!I1373=\"\",\"\",'1. Order'!I1373)","v":""},{"$f":"IF('1. Order'!J1373=\"\",\"\",'1. Order'!J1373)","v":""},{"$f":"IF('1. Order'!K1373=\"\",\"\",'1. Order'!K1373)","v":""},{"$f":"IF('1. Order'!M1373=\"\",\"\",'1. Order'!M1373)","v":""},null,null,null,{"$f":"IF('1. Order'!AF1373=\"\",\"\",'1. Order'!AF1373)","v":""}]
[{"$f":"IF('1. Order'!B1374=\"\",\"\",'1. Order'!B1374)","v":""},{"$f":"IF('1. Order'!I1374=\"\",\"\",'1. Order'!I1374)","v":""},{"$f":"IF('1. Order'!J1374=\"\",\"\",'1. Order'!J1374)","v":""},{"$f":"IF('1. Order'!K1374=\"\",\"\",'1. Order'!K1374)","v":""},{"$f":"IF('1. Order'!M1374=\"\",\"\",'1. Order'!M1374)","v":""},null,null,null,{"$f":"IF('1. Order'!AF1374=\"\",\"\",'1. Order'!AF1374)","v":""}]
[{"$f":"IF('1. Order'!B1375=\"\",\"\",'1. Order'!B1375)","v":""},{"$f":"IF('1. Order'!I1375=\"\",\"\",'1. Order'!I1375)","v":""},{"$f":"IF('1. Order'!J1375=\"\",\"\",'1. Order'!J1375)","v":""},{"$f":"IF('1. Order'!K1375=\"\",\"\",'1. Order'!K1375)","v":""},{"$f":"IF('1. Order'!M1375=\"\",\"\",'1. Order'!M1375)","v":""},null,null,null,{"$f":"IF('1. Order'!AF1375=\"\",\"\",'1. Order'!AF1375)","v":""}]
[{"$f":"IF('1. Order'!B1376=\"\",\"\",'1. Order'!B1376)","v":""},{"$f":"IF('1. Order'!I1376=\"\",\"\",'1. Order'!I1376)","v":""},{"$f":"IF('1. Order'!J1376=\"\",\"\",'1. Order'!J1376)","v":""},{"$f":"IF('1. Order'!K1376=\"\",\"\",'1. Order'!K1376)","v":""},{"$f":"IF('1. Order'!M1376=\"\",\"\",'1. Order'!M1376)","v":""},null,null,null,{"$f":"IF('1. Order'!AF1376=\"\",\"\",'1. Order'!AF1376)","v":""}]
[{"$f":"IF('1. Order'!B1377=\"\",\"\",'1. Order'!B1377)","v":""},{"$f":"IF('1. Order'!I1377=\"\",\"\",'1. Order'!I1377)","v":""},{"$f":"IF('1. Order'!J1377=\"\",\"\",'1. Order'!J1377)","v":""},{"$f":"IF('1. Order'!K1377=\"\",\"\",'1. Order'!K1377)","v":""},{"$f":"IF('1. Order'!M1377=\"\",\"\",'1. Order'!M1377)","v":""},null,null,null,{"$f":"IF('1. Order'!AF1377=\"\",\"\",'1. Order'!AF1377)","v":""}]
[{"$f":"IF('1. Order'!B1378=\"\",\"\",'1. Order'!B1378)","v":""},{"$f":"IF('1. Order'!I1378=\"\",\"\",'1. Order'!I1378)","v":""},{"$f":"IF('1. Order'!J1378=\"\",\"\",'1. Order'!J1378)","v":""},{"$f":"IF('1. Order'!K1378=\"\",\"\",'1. Order'!K1378)","v":""},{"$f":"IF('1. Order'!M1378=\"\",\"\",'1. Order'!M1378)","v":""},null,null,null,{"$f":"IF('1. Order'!AF1378=\"\",\"\",'1. Order'!AF1378)","v":""}]
[{"$f":"IF('1. Order'!B1379=\"\",\"\",'1. Order'!B1379)","v":""},{"$f":"IF('1. Order'!I1379=\"\",\"\",'1. Order'!I1379)","v":""},{"$f":"IF('1. Order'!J1379=\"\",\"\",'1. Order'!J1379)","v":""},{"$f":"IF('1. Order'!K1379=\"\",\"\",'1. Order'!K1379)","v":""},{"$f":"IF('1. Order'!M1379=\"\",\"\",'1. Order'!M1379)","v":""},null,null,null,{"$f":"IF('1. Order'!AF1379=\"\",\"\",'1. Order'!AF1379)","v":""}]
[{"$f":"IF('1. Order'!B1380=\"\",\"\",'1. Order'!B1380)","v":""},{"$f":"IF('1. Order'!I1380=\"\",\"\",'1. Order'!I1380)","v":""},{"$f":"IF('1. Order'!J1380=\"\",\"\",'1. Order'!J1380)","v":""},{"$f":"IF('1. Order'!K1380=\"\",\"\",'1. Order'!K1380)","v":""},{"$f":"IF('1. Order'!M1380=\"\",\"\",'1. Order'!M1380)","v":""},null,null,null,{"$f":"IF('1. Order'!AF1380=\"\",\"\",'1. Order'!AF1380)","v":""}]
[{"$f":"IF('1. Order'!B1381=\"\",\"\",'1. Order'!B1381)","v":""},{"$f":"IF('1. Order'!I1381=\"\",\"\",'1. Order'!I1381)","v":""},{"$f":"IF('1. Order'!J1381=\"\",\"\",'1. Order'!J1381)","v":""},{"$f":"IF('1. Order'!K1381=\"\",\"\",'1. Order'!K1381)","v":""},{"$f":"IF('1. Order'!M1381=\"\",\"\",'1. Order'!M1381)","v":""},null,null,null,{"$f":"IF('1. Order'!AF1381=\"\",\"\",'1. Order'!AF1381)","v":""}]
[{"$f":"IF('1. Order'!B1382=\"\",\"\",'1. Order'!B1382)","v":""},{"$f":"IF('1. Order'!I1382=\"\",\"\",'1. Order'!I1382)","v":""},{"$f":"IF('1. Order'!J1382=\"\",\"\",'1. Order'!J1382)","v":""},{"$f":"IF('1. Order'!K1382=\"\",\"\",'1. Order'!K1382)","v":""},{"$f":"IF('1. Order'!M1382=\"\",\"\",'1. Order'!M1382)","v":""},null,null,null,{"$f":"IF('1. Order'!AF1382=\"\",\"\",'1. Order'!AF1382)","v":""}]
[{"$f":"IF('1. Order'!B1383=\"\",\"\",'1. Order'!B1383)","v":""},{"$f":"IF('1. Order'!I1383=\"\",\"\",'1. Order'!I1383)","v":""},{"$f":"IF('1. Order'!J1383=\"\",\"\",'1. Order'!J1383)","v":""},{"$f":"IF('1. Order'!K1383=\"\",\"\",'1. Order'!K1383)","v":""},{"$f":"IF('1. Order'!M1383=\"\",\"\",'1. Order'!M1383)","v":""},null,null,null,{"$f":"IF('1. Order'!AF1383=\"\",\"\",'1. Order'!AF1383)","v":""}]
[{"$f":"IF('1. Order'!B1384=\"\",\"\",'1. Order'!B1384)","v":""},{"$f":"IF('1. Order'!I1384=\"\",\"\",'1. Order'!I1384)","v":""},{"$f":"IF('1. Order'!J1384=\"\",\"\",'1. Order'!J1384)","v":""},{"$f":"IF('1. Order'!K1384=\"\",\"\",'1. Order'!K1384)","v":""},{"$f":"IF('1. Order'!M1384=\"\",\"\",'1. Order'!M1384)","v":""},null,null,null,{"$f":"IF('1. Order'!AF1384=\"\",\"\",'1. Order'!AF1384)","v":""}]
[{"$f":"IF('1. Order'!B1385=\"\",\"\",'1. Order'!B1385)","v":""},{"$f":"IF('1. Order'!I1385=\"\",\"\",'1. Order'!I1385)","v":""},{"$f":"IF('1. Order'!J1385=\"\",\"\",'1. Order'!J1385)","v":""},{"$f":"IF('1. Order'!K1385=\"\",\"\",'1. Order'!K1385)","v":""},{"$f":"IF('1. Order'!M1385=\"\",\"\",'1. Order'!M1385)","v":""},null,null,null,{"$f":"IF('1. Order'!AF1385=\"\",\"\",'1. Order'!AF1385)","v":""}]
[{"$f":"IF('1. Order'!B1386=\"\",\"\",'1. Order'!B1386)","v":""},{"$f":"IF('1. Order'!I1386=\"\",\"\",'1. Order'!I1386)","v":""},{"$f":"IF('1. Order'!J1386=\"\",\"\",'1. Order'!J1386)","v":""},{"$f":"IF('1. Order'!K1386=\"\",\"\",'1. Order'!K1386)","v":""},{"$f":"IF('1. Order'!M1386=\"\",\"\",'1. Order'!M1386)","v":""},null,null,null,{"$f":"IF('1. Order'!AF1386=\"\",\"\",'1. Order'!AF1386)","v":""}]
[{"$f":"IF('1. Order'!B1387=\"\",\"\",'1. Order'!B1387)","v":""},{"$f":"IF('1. Order'!I1387=\"\",\"\",'1. Order'!I1387)","v":""},{"$f":"IF('1. Order'!J1387=\"\",\"\",'1. Order'!J1387)","v":""},{"$f":"IF('1. Order'!K1387=\"\",\"\",'1. Order'!K1387)","v":""},{"$f":"IF('1. Order'!M1387=\"\",\"\",'1. Order'!M1387)","v":""},null,null,null,{"$f":"IF('1. Order'!AF1387=\"\",\"\",'1. Order'!AF1387)","v":""}]
[{"$f":"IF('1. Order'!B1388=\"\",\"\",'1. Order'!B1388)","v":""},{"$f":"IF('1. Order'!I1388=\"\",\"\",'1. Order'!I1388)","v":""},{"$f":"IF('1. Order'!J1388=\"\",\"\",'1. Order'!J1388)","v":""},{"$f":"IF('1. Order'!K1388=\"\",\"\",'1. Order'!K1388)","v":""},{"$f":"IF('1. Order'!M1388=\"\",\"\",'1. Order'!M1388)","v":""},null,null,null,{"$f":"IF('1. Order'!AF1388=\"\",\"\",'1. Order'!AF1388)","v":""}]
[{"$f":"IF('1. Order'!B1389=\"\",\"\",'1. Order'!B1389)","v":""},{"$f":"IF('1. Order'!I1389=\"\",\"\",'1. Order'!I1389)","v":""},{"$f":"IF('1. Order'!J1389=\"\",\"\",'1. Order'!J1389)","v":""},{"$f":"IF('1. Order'!K1389=\"\",\"\",'1. Order'!K1389)","v":""},{"$f":"IF('1. Order'!M1389=\"\",\"\",'1. Order'!M1389)","v":""},null,null,null,{"$f":"IF('1. Order'!AF1389=\"\",\"\",'1. Order'!AF1389)","v":""}]
[{"$f":"IF('1. Order'!B1390=\"\",\"\",'1. Order'!B1390)","v":""},{"$f":"IF('1. Order'!I1390=\"\",\"\",'1. Order'!I1390)","v":""},{"$f":"IF('1. Order'!J1390=\"\",\"\",'1. Order'!J1390)","v":""},{"$f":"IF('1. Order'!K1390=\"\",\"\",'1. Order'!K1390)","v":""},{"$f":"IF('1. Order'!M1390=\"\",\"\",'1. Order'!M1390)","v":""},null,null,null,{"$f":"IF('1. Order'!AF1390=\"\",\"\",'1. Order'!AF1390)","v":""}]
[{"$f":"IF('1. Order'!B1391=\"\",\"\",'1. Order'!B1391)","v":""},{"$f":"IF('1. Order'!I1391=\"\",\"\",'1. Order'!I1391)","v":""},{"$f":"IF('1. Order'!J1391=\"\",\"\",'1. Order'!J1391)","v":""},{"$f":"IF('1. Order'!K1391=\"\",\"\",'1. Order'!K1391)","v":""},{"$f":"IF('1. Order'!M1391=\"\",\"\",'1. Order'!M1391)","v":""},null,null,null,{"$f":"IF('1. Order'!AF1391=\"\",\"\",'1. Order'!AF1391)","v":""}]
[{"$f":"IF('1. Order'!B1392=\"\",\"\",'1. Order'!B1392)","v":""},{"$f":"IF('1. Order'!I1392=\"\",\"\",'1. Order'!I1392)","v":""},{"$f":"IF('1. Order'!J1392=\"\",\"\",'1. Order'!J1392)","v":""},{"$f":"IF('1. Order'!K1392=\"\",\"\",'1. Order'!K1392)","v":""},{"$f":"IF('1. Order'!M1392=\"\",\"\",'1. Order'!M1392)","v":""},null,null,null,{"$f":"IF('1. Order'!AF1392=\"\",\"\",'1. Order'!AF1392)","v":""}]
[{"$f":"IF('1. Order'!B1393=\"\",\"\",'1. Order'!B1393)","v":""},{"$f":"IF('1. Order'!I1393=\"\",\"\",'1. Order'!I1393)","v":""},{"$f":"IF('1. Order'!J1393=\"\",\"\",'1. Order'!J1393)","v":""},{"$f":"IF('1. Order'!K1393=\"\",\"\",'1. Order'!K1393)","v":""},{"$f":"IF('1. Order'!M1393=\"\",\"\",'1. Order'!M1393)","v":""},null,null,null,{"$f":"IF('1. Order'!AF1393=\"\",\"\",'1. Order'!AF1393)","v":""}]
[{"$f":"IF('1. Order'!B1394=\"\",\"\",'1. Order'!B1394)","v":""},{"$f":"IF('1. Order'!I1394=\"\",\"\",'1. Order'!I1394)","v":""},{"$f":"IF('1. Order'!J1394=\"\",\"\",'1. Order'!J1394)","v":""},{"$f":"IF('1. Order'!K1394=\"\",\"\",'1. Order'!K1394)","v":""},{"$f":"IF('1. Order'!M1394=\"\",\"\",'1. Order'!M1394)","v":""},null,null,null,{"$f":"IF('1. Order'!AF1394=\"\",\"\",'1. Order'!AF1394)","v":""}]
[{"$f":"IF('1. Order'!B1395=\"\",\"\",'1. Order'!B1395)","v":""},{"$f":"IF('1. Order'!I1395=\"\",\"\",'1. Order'!I1395)","v":""},{"$f":"IF('1. Order'!J1395=\"\",\"\",'1. Order'!J1395)","v":""},{"$f":"IF('1. Order'!K1395=\"\",\"\",'1. Order'!K1395)","v":""},{"$f":"IF('1. Order'!M1395=\"\",\"\",'1. Order'!M1395)","v":""},null,null,null,{"$f":"IF('1. Order'!AF1395=\"\",\"\",'1. Order'!AF1395)","v":""}]
[{"$f":"IF('1. Order'!B1396=\"\",\"\",'1. Order'!B1396)","v":""},{"$f":"IF('1. Order'!I1396=\"\",\"\",'1. Order'!I1396)","v":""},{"$f":"IF('1. Order'!J1396=\"\",\"\",'1. Order'!J1396)","v":""},{"$f":"IF('1. Order'!K1396=\"\",\"\",'1. Order'!K1396)","v":""},{"$f":"IF('1. Order'!M1396=\"\",\"\",'1. Order'!M1396)","v":""},null,null,null,{"$f":"IF('1. Order'!AF1396=\"\",\"\",'1. Order'!AF1396)","v":""}]
[{"$f":"IF('1. Order'!B1397=\"\",\"\",'1. Order'!B1397)","v":""},{"$f":"IF('1. Order'!I1397=\"\",\"\",'1. Order'!I1397)","v":""},{"$f":"IF('1. Order'!J1397=\"\",\"\",'1. Order'!J1397)","v":""},{"$f":"IF('1. Order'!K1397=\"\",\"\",'1. Order'!K1397)","v":""},{"$f":"IF('1. Order'!M1397=\"\",\"\",'1. Order'!M1397)","v":""},null,null,null,{"$f":"IF('1. Order'!AF1397=\"\",\"\",'1. Order'!AF1397)","v":""}]
[{"$f":"IF('1. Order'!B1398=\"\",\"\",'1. Order'!B1398)","v":""},{"$f":"IF('1. Order'!I1398=\"\",\"\",'1. Order'!I1398)","v":""},{"$f":"IF('1. Order'!J1398=\"\",\"\",'1. Order'!J1398)","v":""},{"$f":"IF('1. Order'!K1398=\"\",\"\",'1. Order'!K1398)","v":""},{"$f":"IF('1. Order'!M1398=\"\",\"\",'1. Order'!M1398)","v":""},null,null,null,{"$f":"IF('1. Order'!AF1398=\"\",\"\",'1. Order'!AF1398)","v":""}]
[{"$f":"IF('1. Order'!B1399=\"\",\"\",'1. Order'!B1399)","v":""},{"$f":"IF('1. Order'!I1399=\"\",\"\",'1. Order'!I1399)","v":""},{"$f":"IF('1. Order'!J1399=\"\",\"\",'1. Order'!J1399)","v":""},{"$f":"IF('1. Order'!K1399=\"\",\"\",'1. Order'!K1399)","v":""},{"$f":"IF('1. Order'!M1399=\"\",\"\",'1. Order'!M1399)","v":""},null,null,null,{"$f":"IF('1. Order'!AF1399=\"\",\"\",'1. Order'!AF1399)","v":""}]
[{"$f":"IF('1. Order'!B1400=\"\",\"\",'1. Order'!B1400)","v":""},{"$f":"IF('1. Order'!I1400=\"\",\"\",'1. Order'!I1400)","v":""},{"$f":"IF('1. Order'!J1400=\"\",\"\",'1. Order'!J1400)","v":""},{"$f":"IF('1. Order'!K1400=\"\",\"\",'1. Order'!K1400)","v":""},{"$f":"IF('1. Order'!M1400=\"\",\"\",'1. Order'!M1400)","v":""},null,null,null,{"$f":"IF('1. Order'!AF1400=\"\",\"\",'1. Order'!AF1400)","v":""}]
[{"$f":"IF('1. Order'!B1401=\"\",\"\",'1. Order'!B1401)","v":""},{"$f":"IF('1. Order'!I1401=\"\",\"\",'1. Order'!I1401)","v":""},{"$f":"IF('1. Order'!J1401=\"\",\"\",'1. Order'!J1401)","v":""},{"$f":"IF('1. Order'!K1401=\"\",\"\",'1. Order'!K1401)","v":""},{"$f":"IF('1. Order'!M1401=\"\",\"\",'1. Order'!M1401)","v":""},null,null,null,{"$f":"IF('1. Order'!AF1401=\"\",\"\",'1. Order'!AF1401)","v":""}]
[{"$f":"IF('1. Order'!B1402=\"\",\"\",'1. Order'!B1402)","v":""},{"$f":"IF('1. Order'!I1402=\"\",\"\",'1. Order'!I1402)","v":""},{"$f":"IF('1. Order'!J1402=\"\",\"\",'1. Order'!J1402)","v":""},{"$f":"IF('1. Order'!K1402=\"\",\"\",'1. Order'!K1402)","v":""},{"$f":"IF('1. Order'!M1402=\"\",\"\",'1. Order'!M1402)","v":""},null,null,null,{"$f":"IF('1. Order'!AF1402=\"\",\"\",'1. Order'!AF1402)","v":""}]
[{"$f":"IF('1. Order'!B1403=\"\",\"\",'1. Order'!B1403)","v":""},{"$f":"IF('1. Order'!I1403=\"\",\"\",'1. Order'!I1403)","v":""},{"$f":"IF('1. Order'!J1403=\"\",\"\",'1. Order'!J1403)","v":""},{"$f":"IF('1. Order'!K1403=\"\",\"\",'1. Order'!K1403)","v":""},{"$f":"IF('1. Order'!M1403=\"\",\"\",'1. Order'!M1403)","v":""},null,null,null,{"$f":"IF('1. Order'!AF1403=\"\",\"\",'1. Order'!AF1403)","v":""}]
[{"$f":"IF('1. Order'!B1404=\"\",\"\",'1. Order'!B1404)","v":""},{"$f":"IF('1. Order'!I1404=\"\",\"\",'1. Order'!I1404)","v":""},{"$f":"IF('1. Order'!J1404=\"\",\"\",'1. Order'!J1404)","v":""},{"$f":"IF('1. Order'!K1404=\"\",\"\",'1. Order'!K1404)","v":""},{"$f":"IF('1. Order'!M1404=\"\",\"\",'1. Order'!M1404)","v":""},null,null,null,{"$f":"IF('1. Order'!AF1404=\"\",\"\",'1. Order'!AF1404)","v":""}]
[{"$f":"IF('1. Order'!B1405=\"\",\"\",'1. Order'!B1405)","v":""},{"$f":"IF('1. Order'!I1405=\"\",\"\",'1. Order'!I1405)","v":""},{"$f":"IF('1. Order'!J1405=\"\",\"\",'1. Order'!J1405)","v":""},{"$f":"IF('1. Order'!K1405=\"\",\"\",'1. Order'!K1405)","v":""},{"$f":"IF('1. Order'!M1405=\"\",\"\",'1. Order'!M1405)","v":""},null,null,null,{"$f":"IF('1. Order'!AF1405=\"\",\"\",'1. Order'!AF1405)","v":""}]
[{"$f":"IF('1. Order'!B1406=\"\",\"\",'1. Order'!B1406)","v":""},{"$f":"IF('1. Order'!I1406=\"\",\"\",'1. Order'!I1406)","v":""},{"$f":"IF('1. Order'!J1406=\"\",\"\",'1. Order'!J1406)","v":""},{"$f":"IF('1. Order'!K1406=\"\",\"\",'1. Order'!K1406)","v":""},{"$f":"IF('1. Order'!M1406=\"\",\"\",'1. Order'!M1406)","v":""},null,null,null,{"$f":"IF('1. Order'!AF1406=\"\",\"\",'1. Order'!AF1406)","v":""}]
[{"$f":"IF('1. Order'!B1407=\"\",\"\",'1. Order'!B1407)","v":""},{"$f":"IF('1. Order'!I1407=\"\",\"\",'1. Order'!I1407)","v":""},{"$f":"IF('1. Order'!J1407=\"\",\"\",'1. Order'!J1407)","v":""},{"$f":"IF('1. Order'!K1407=\"\",\"\",'1. Order'!K1407)","v":""},{"$f":"IF('1. Order'!M1407=\"\",\"\",'1. Order'!M1407)","v":""},null,null,null,{"$f":"IF('1. Order'!AF1407=\"\",\"\",'1. Order'!AF1407)","v":""}]
[{"$f":"IF('1. Order'!B1408=\"\",\"\",'1. Order'!B1408)","v":""},{"$f":"IF('1. Order'!I1408=\"\",\"\",'1. Order'!I1408)","v":""},{"$f":"IF('1. Order'!J1408=\"\",\"\",'1. Order'!J1408)","v":""},{"$f":"IF('1. Order'!K1408=\"\",\"\",'1. Order'!K1408)","v":""},{"$f":"IF('1. Order'!M1408=\"\",\"\",'1. Order'!M1408)","v":""},null,null,null,{"$f":"IF('1. Order'!AF1408=\"\",\"\",'1. Order'!AF1408)","v":""}]
[{"$f":"IF('1. Order'!B1409=\"\",\"\",'1. Order'!B1409)","v":""},{"$f":"IF('1. Order'!I1409=\"\",\"\",'1. Order'!I1409)","v":""},{"$f":"IF('1. Order'!J1409=\"\",\"\",'1. Order'!J1409)","v":""},{"$f":"IF('1. Order'!K1409=\"\",\"\",'1. Order'!K1409)","v":""},{"$f":"IF('1. Order'!M1409=\"\",\"\",'1. Order'!M1409)","v":""},null,null,null,{"$f":"IF('1. Order'!AF1409=\"\",\"\",'1. Order'!AF1409)","v":""}]
[{"$f":"IF('1. Order'!B1410=\"\",\"\",'1. Order'!B1410)","v":""},{"$f":"IF('1. Order'!I1410=\"\",\"\",'1. Order'!I1410)","v":""},{"$f":"IF('1. Order'!J1410=\"\",\"\",'1. Order'!J1410)","v":""},{"$f":"IF('1. Order'!K1410=\"\",\"\",'1. Order'!K1410)","v":""},{"$f":"IF('1. Order'!M1410=\"\",\"\",'1. Order'!M1410)","v":""},null,null,null,{"$f":"IF('1. Order'!AF1410=\"\",\"\",'1. Order'!AF1410)","v":""}]
[{"$f":"IF('1. Order'!B1411=\"\",\"\",'1. Order'!B1411)","v":""},{"$f":"IF('1. Order'!I1411=\"\",\"\",'1. Order'!I1411)","v":""},{"$f":"IF('1. Order'!J1411=\"\",\"\",'1. Order'!J1411)","v":""},{"$f":"IF('1. Order'!K1411=\"\",\"\",'1. Order'!K1411)","v":""},{"$f":"IF('1. Order'!M1411=\"\",\"\",'1. Order'!M1411)","v":""},null,null,null,{"$f":"IF('1. Order'!AF1411=\"\",\"\",'1. Order'!AF1411)","v":""}]
[{"$f":"IF('1. Order'!B1412=\"\",\"\",'1. Order'!B1412)","v":""},{"$f":"IF('1. Order'!I1412=\"\",\"\",'1. Order'!I1412)","v":""},{"$f":"IF('1. Order'!J1412=\"\",\"\",'1. Order'!J1412)","v":""},{"$f":"IF('1. Order'!K1412=\"\",\"\",'1. Order'!K1412)","v":""},{"$f":"IF('1. Order'!M1412=\"\",\"\",'1. Order'!M1412)","v":""},null,null,null,{"$f":"IF('1. Order'!AF1412=\"\",\"\",'1. Order'!AF1412)","v":""}]
[{"$f":"IF('1. Order'!B1413=\"\",\"\",'1. Order'!B1413)","v":""},{"$f":"IF('1. Order'!I1413=\"\",\"\",'1. Order'!I1413)","v":""},{"$f":"IF('1. Order'!J1413=\"\",\"\",'1. Order'!J1413)","v":""},{"$f":"IF('1. Order'!K1413=\"\",\"\",'1. Order'!K1413)","v":""},{"$f":"IF('1. Order'!M1413=\"\",\"\",'1. Order'!M1413)","v":""},null,null,null,{"$f":"IF('1. Order'!AF1413=\"\",\"\",'1. Order'!AF1413)","v":""}]
[{"$f":"IF('1. Order'!B1414=\"\",\"\",'1. Order'!B1414)","v":""},{"$f":"IF('1. Order'!I1414=\"\",\"\",'1. Order'!I1414)","v":""},{"$f":"IF('1. Order'!J1414=\"\",\"\",'1. Order'!J1414)","v":""},{"$f":"IF('1. Order'!K1414=\"\",\"\",'1. Order'!K1414)","v":""},{"$f":"IF('1. Order'!M1414=\"\",\"\",'1. Order'!M1414)","v":""},null,null,null,{"$f":"IF('1. Order'!AF1414=\"\",\"\",'1. Order'!AF1414)","v":""}]
[{"$f":"IF('1. Order'!B1415=\"\",\"\",'1. Order'!B1415)","v":""},{"$f":"IF('1. Order'!I1415=\"\",\"\",'1. Order'!I1415)","v":""},{"$f":"IF('1. Order'!J1415=\"\",\"\",'1. Order'!J1415)","v":""},{"$f":"IF('1. Order'!K1415=\"\",\"\",'1. Order'!K1415)","v":""},{"$f":"IF('1. Order'!M1415=\"\",\"\",'1. Order'!M1415)","v":""},null,null,null,{"$f":"IF('1. Order'!AF1415=\"\",\"\",'1. Order'!AF1415)","v":""}]
[{"$f":"IF('1. Order'!B1416=\"\",\"\",'1. Order'!B1416)","v":""},{"$f":"IF('1. Order'!I1416=\"\",\"\",'1. Order'!I1416)","v":""},{"$f":"IF('1. Order'!J1416=\"\",\"\",'1. Order'!J1416)","v":""},{"$f":"IF('1. Order'!K1416=\"\",\"\",'1. Order'!K1416)","v":""},{"$f":"IF('1. Order'!M1416=\"\",\"\",'1. Order'!M1416)","v":""},null,null,null,{"$f":"IF('1. Order'!AF1416=\"\",\"\",'1. Order'!AF1416)","v":""}]
[{"$f":"IF('1. Order'!B1417=\"\",\"\",'1. Order'!B1417)","v":""},{"$f":"IF('1. Order'!I1417=\"\",\"\",'1. Order'!I1417)","v":""},{"$f":"IF('1. Order'!J1417=\"\",\"\",'1. Order'!J1417)","v":""},{"$f":"IF('1. Order'!K1417=\"\",\"\",'1. Order'!K1417)","v":""},{"$f":"IF('1. Order'!M1417=\"\",\"\",'1. Order'!M1417)","v":""},null,null,null,{"$f":"IF('1. Order'!AF1417=\"\",\"\",'1. Order'!AF1417)","v":""}]
[{"$f":"IF('1. Order'!B1418=\"\",\"\",'1. Order'!B1418)","v":""},{"$f":"IF('1. Order'!I1418=\"\",\"\",'1. Order'!I1418)","v":""},{"$f":"IF('1. Order'!J1418=\"\",\"\",'1. Order'!J1418)","v":""},{"$f":"IF('1. Order'!K1418=\"\",\"\",'1. Order'!K1418)","v":""},{"$f":"IF('1. Order'!M1418=\"\",\"\",'1. Order'!M1418)","v":""},null,null,null,{"$f":"IF('1. Order'!AF1418=\"\",\"\",'1. Order'!AF1418)","v":""}]
[{"$f":"IF('1. Order'!B1419=\"\",\"\",'1. Order'!B1419)","v":""},{"$f":"IF('1. Order'!I1419=\"\",\"\",'1. Order'!I1419)","v":""},{"$f":"IF('1. Order'!J1419=\"\",\"\",'1. Order'!J1419)","v":""},{"$f":"IF('1. Order'!K1419=\"\",\"\",'1. Order'!K1419)","v":""},{"$f":"IF('1. Order'!M1419=\"\",\"\",'1. Order'!M1419)","v":""},null,null,null,{"$f":"IF('1. Order'!AF1419=\"\",\"\",'1. Order'!AF1419)","v":""}]
[{"$f":"IF('1. Order'!B1420=\"\",\"\",'1. Order'!B1420)","v":""},{"$f":"IF('1. Order'!I1420=\"\",\"\",'1. Order'!I1420)","v":""},{"$f":"IF('1. Order'!J1420=\"\",\"\",'1. Order'!J1420)","v":""},{"$f":"IF('1. Order'!K1420=\"\",\"\",'1. Order'!K1420)","v":""},{"$f":"IF('1. Order'!M1420=\"\",\"\",'1. Order'!M1420)","v":""},null,null,null,{"$f":"IF('1. Order'!AF1420=\"\",\"\",'1. Order'!AF1420)","v":""}]
[{"$f":"IF('1. Order'!B1421=\"\",\"\",'1. Order'!B1421)","v":""},{"$f":"IF('1. Order'!I1421=\"\",\"\",'1. Order'!I1421)","v":""},{"$f":"IF('1. Order'!J1421=\"\",\"\",'1. Order'!J1421)","v":""},{"$f":"IF('1. Order'!K1421=\"\",\"\",'1. Order'!K1421)","v":""},{"$f":"IF('1. Order'!M1421=\"\",\"\",'1. Order'!M1421)","v":""},null,null,null,{"$f":"IF('1. Order'!AF1421=\"\",\"\",'1. Order'!AF1421)","v":""}]
[{"$f":"IF('1. Order'!B1422=\"\",\"\",'1. Order'!B1422)","v":""},{"$f":"IF('1. Order'!I1422=\"\",\"\",'1. Order'!I1422)","v":""},{"$f":"IF('1. Order'!J1422=\"\",\"\",'1. Order'!J1422)","v":""},{"$f":"IF('1. Order'!K1422=\"\",\"\",'1. Order'!K1422)","v":""},{"$f":"IF('1. Order'!M1422=\"\",\"\",'1. Order'!M1422)","v":""},null,null,null,{"$f":"IF('1. Order'!AF1422=\"\",\"\",'1. Order'!AF1422)","v":""}]
[{"$f":"IF('1. Order'!B1423=\"\",\"\",'1. Order'!B1423)","v":""},{"$f":"IF('1. Order'!I1423=\"\",\"\",'1. Order'!I1423)","v":""},{"$f":"IF('1. Order'!J1423=\"\",\"\",'1. Order'!J1423)","v":""},{"$f":"IF('1. Order'!K1423=\"\",\"\",'1. Order'!K1423)","v":""},{"$f":"IF('1. Order'!M1423=\"\",\"\",'1. Order'!M1423)","v":""},null,null,null,{"$f":"IF('1. Order'!AF1423=\"\",\"\",'1. Order'!AF1423)","v":""}]
[{"$f":"IF('1. Order'!B1424=\"\",\"\",'1. Order'!B1424)","v":""},{"$f":"IF('1. Order'!I1424=\"\",\"\",'1. Order'!I1424)","v":""},{"$f":"IF('1. Order'!J1424=\"\",\"\",'1. Order'!J1424)","v":""},{"$f":"IF('1. Order'!K1424=\"\",\"\",'1. Order'!K1424)","v":""},{"$f":"IF('1. Order'!M1424=\"\",\"\",'1. Order'!M1424)","v":""},null,null,null,{"$f":"IF('1. Order'!AF1424=\"\",\"\",'1. Order'!AF1424)","v":""}]
[{"$f":"IF('1. Order'!B1425=\"\",\"\",'1. Order'!B1425)","v":""},{"$f":"IF('1. Order'!I1425=\"\",\"\",'1. Order'!I1425)","v":""},{"$f":"IF('1. Order'!J1425=\"\",\"\",'1. Order'!J1425)","v":""},{"$f":"IF('1. Order'!K1425=\"\",\"\",'1. Order'!K1425)","v":""},{"$f":"IF('1. Order'!M1425=\"\",\"\",'1. Order'!M1425)","v":""},null,null,null,{"$f":"IF('1. Order'!AF1425=\"\",\"\",'1. Order'!AF1425)","v":""}]
[{"$f":"IF('1. Order'!B1426=\"\",\"\",'1. Order'!B1426)","v":""},{"$f":"IF('1. Order'!I1426=\"\",\"\",'1. Order'!I1426)","v":""},{"$f":"IF('1. Order'!J1426=\"\",\"\",'1. Order'!J1426)","v":""},{"$f":"IF('1. Order'!K1426=\"\",\"\",'1. Order'!K1426)","v":""},{"$f":"IF('1. Order'!M1426=\"\",\"\",'1. Order'!M1426)","v":""},null,null,null,{"$f":"IF('1. Order'!AF1426=\"\",\"\",'1. Order'!AF1426)","v":""}]
[{"$f":"IF('1. Order'!B1427=\"\",\"\",'1. Order'!B1427)","v":""},{"$f":"IF('1. Order'!I1427=\"\",\"\",'1. Order'!I1427)","v":""},{"$f":"IF('1. Order'!J1427=\"\",\"\",'1. Order'!J1427)","v":""},{"$f":"IF('1. Order'!K1427=\"\",\"\",'1. Order'!K1427)","v":""},{"$f":"IF('1. Order'!M1427=\"\",\"\",'1. Order'!M1427)","v":""},null,null,null,{"$f":"IF('1. Order'!AF1427=\"\",\"\",'1. Order'!AF1427)","v":""}]
[{"$f":"IF('1. Order'!B1428=\"\",\"\",'1. Order'!B1428)","v":""},{"$f":"IF('1. Order'!I1428=\"\",\"\",'1. Order'!I1428)","v":""},{"$f":"IF('1. Order'!J1428=\"\",\"\",'1. Order'!J1428)","v":""},{"$f":"IF('1. Order'!K1428=\"\",\"\",'1. Order'!K1428)","v":""},{"$f":"IF('1. Order'!M1428=\"\",\"\",'1. Order'!M1428)","v":""},null,null,null,{"$f":"IF('1. Order'!AF1428=\"\",\"\",'1. Order'!AF1428)","v":""}]
[{"$f":"IF('1. Order'!B1429=\"\",\"\",'1. Order'!B1429)","v":""},{"$f":"IF('1. Order'!I1429=\"\",\"\",'1. Order'!I1429)","v":""},{"$f":"IF('1. Order'!J1429=\"\",\"\",'1. Order'!J1429)","v":""},{"$f":"IF('1. Order'!K1429=\"\",\"\",'1. Order'!K1429)","v":""},{"$f":"IF('1. Order'!M1429=\"\",\"\",'1. Order'!M1429)","v":""},null,null,null,{"$f":"IF('1. Order'!AF1429=\"\",\"\",'1. Order'!AF1429)","v":""}]
[{"$f":"IF('1. Order'!B1430=\"\",\"\",'1. Order'!B1430)","v":""},{"$f":"IF('1. Order'!I1430=\"\",\"\",'1. Order'!I1430)","v":""},{"$f":"IF('1. Order'!J1430=\"\",\"\",'1. Order'!J1430)","v":""},{"$f":"IF('1. Order'!K1430=\"\",\"\",'1. Order'!K1430)","v":""},{"$f":"IF('1. Order'!M1430=\"\",\"\",'1. Order'!M1430)","v":""},null,null,null,{"$f":"IF('1. Order'!AF1430=\"\",\"\",'1. Order'!AF1430)","v":""}]
[{"$f":"IF('1. Order'!B1431=\"\",\"\",'1. Order'!B1431)","v":""},{"$f":"IF('1. Order'!I1431=\"\",\"\",'1. Order'!I1431)","v":""},{"$f":"IF('1. Order'!J1431=\"\",\"\",'1. Order'!J1431)","v":""},{"$f":"IF('1. Order'!K1431=\"\",\"\",'1. Order'!K1431)","v":""},{"$f":"IF('1. Order'!M1431=\"\",\"\",'1. Order'!M1431)","v":""},null,null,null,{"$f":"IF('1. Order'!AF1431=\"\",\"\",'1. Order'!AF1431)","v":""}]
[{"$f":"IF('1. Order'!B1432=\"\",\"\",'1. Order'!B1432)","v":""},{"$f":"IF('1. Order'!I1432=\"\",\"\",'1. Order'!I1432)","v":""},{"$f":"IF('1. Order'!J1432=\"\",\"\",'1. Order'!J1432)","v":""},{"$f":"IF('1. Order'!K1432=\"\",\"\",'1. Order'!K1432)","v":""},{"$f":"IF('1. Order'!M1432=\"\",\"\",'1. Order'!M1432)","v":""},null,null,null,{"$f":"IF('1. Order'!AF1432=\"\",\"\",'1. Order'!AF1432)","v":""}]
[{"$f":"IF('1. Order'!B1433=\"\",\"\",'1. Order'!B1433)","v":""},{"$f":"IF('1. Order'!I1433=\"\",\"\",'1. Order'!I1433)","v":""},{"$f":"IF('1. Order'!J1433=\"\",\"\",'1. Order'!J1433)","v":""},{"$f":"IF('1. Order'!K1433=\"\",\"\",'1. Order'!K1433)","v":""},{"$f":"IF('1. Order'!M1433=\"\",\"\",'1. Order'!M1433)","v":""},null,null,null,{"$f":"IF('1. Order'!AF1433=\"\",\"\",'1. Order'!AF1433)","v":""}]
[{"$f":"IF('1. Order'!B1434=\"\",\"\",'1. Order'!B1434)","v":""},{"$f":"IF('1. Order'!I1434=\"\",\"\",'1. Order'!I1434)","v":""},{"$f":"IF('1. Order'!J1434=\"\",\"\",'1. Order'!J1434)","v":""},{"$f":"IF('1. Order'!K1434=\"\",\"\",'1. Order'!K1434)","v":""},{"$f":"IF('1. Order'!M1434=\"\",\"\",'1. Order'!M1434)","v":""},null,null,null,{"$f":"IF('1. Order'!AF1434=\"\",\"\",'1. Order'!AF1434)","v":""}]
[{"$f":"IF('1. Order'!B1435=\"\",\"\",'1. Order'!B1435)","v":""},{"$f":"IF('1. Order'!I1435=\"\",\"\",'1. Order'!I1435)","v":""},{"$f":"IF('1. Order'!J1435=\"\",\"\",'1. Order'!J1435)","v":""},{"$f":"IF('1. Order'!K1435=\"\",\"\",'1. Order'!K1435)","v":""},{"$f":"IF('1. Order'!M1435=\"\",\"\",'1. Order'!M1435)","v":""},null,null,null,{"$f":"IF('1. Order'!AF1435=\"\",\"\",'1. Order'!AF1435)","v":""}]
[{"$f":"IF('1. Order'!B1436=\"\",\"\",'1. Order'!B1436)","v":""},{"$f":"IF('1. Order'!I1436=\"\",\"\",'1. Order'!I1436)","v":""},{"$f":"IF('1. Order'!J1436=\"\",\"\",'1. Order'!J1436)","v":""},{"$f":"IF('1. Order'!K1436=\"\",\"\",'1. Order'!K1436)","v":""},{"$f":"IF('1. Order'!M1436=\"\",\"\",'1. Order'!M1436)","v":""},null,null,null,{"$f":"IF('1. Order'!AF1436=\"\",\"\",'1. Order'!AF1436)","v":""}]
[{"$f":"IF('1. Order'!B1437=\"\",\"\",'1. Order'!B1437)","v":""},{"$f":"IF('1. Order'!I1437=\"\",\"\",'1. Order'!I1437)","v":""},{"$f":"IF('1. Order'!J1437=\"\",\"\",'1. Order'!J1437)","v":""},{"$f":"IF('1. Order'!K1437=\"\",\"\",'1. Order'!K1437)","v":""},{"$f":"IF('1. Order'!M1437=\"\",\"\",'1. Order'!M1437)","v":""},null,null,null,{"$f":"IF('1. Order'!AF1437=\"\",\"\",'1. Order'!AF1437)","v":""}]
[{"$f":"IF('1. Order'!B1438=\"\",\"\",'1. Order'!B1438)","v":""},{"$f":"IF('1. Order'!I1438=\"\",\"\",'1. Order'!I1438)","v":""},{"$f":"IF('1. Order'!J1438=\"\",\"\",'1. Order'!J1438)","v":""},{"$f":"IF('1. Order'!K1438=\"\",\"\",'1. Order'!K1438)","v":""},{"$f":"IF('1. Order'!M1438=\"\",\"\",'1. Order'!M1438)","v":""},null,null,null,{"$f":"IF('1. Order'!AF1438=\"\",\"\",'1. Order'!AF1438)","v":""}]
[{"$f":"IF('1. Order'!B1439=\"\",\"\",'1. Order'!B1439)","v":""},{"$f":"IF('1. Order'!I1439=\"\",\"\",'1. Order'!I1439)","v":""},{"$f":"IF('1. Order'!J1439=\"\",\"\",'1. Order'!J1439)","v":""},{"$f":"IF('1. Order'!K1439=\"\",\"\",'1. Order'!K1439)","v":""},{"$f":"IF('1. Order'!M1439=\"\",\"\",'1. Order'!M1439)","v":""},null,null,null,{"$f":"IF('1. Order'!AF1439=\"\",\"\",'1. Order'!AF1439)","v":""}]
[{"$f":"IF('1. Order'!B1440=\"\",\"\",'1. Order'!B1440)","v":""},{"$f":"IF('1. Order'!I1440=\"\",\"\",'1. Order'!I1440)","v":""},{"$f":"IF('1. Order'!J1440=\"\",\"\",'1. Order'!J1440)","v":""},{"$f":"IF('1. Order'!K1440=\"\",\"\",'1. Order'!K1440)","v":""},{"$f":"IF('1. Order'!M1440=\"\",\"\",'1. Order'!M1440)","v":""},null,null,null,{"$f":"IF('1. Order'!AF1440=\"\",\"\",'1. Order'!AF1440)","v":""}]
[{"$f":"IF('1. Order'!B1441=\"\",\"\",'1. Order'!B1441)","v":""},{"$f":"IF('1. Order'!I1441=\"\",\"\",'1. Order'!I1441)","v":""},{"$f":"IF('1. Order'!J1441=\"\",\"\",'1. Order'!J1441)","v":""},{"$f":"IF('1. Order'!K1441=\"\",\"\",'1. Order'!K1441)","v":""},{"$f":"IF('1. Order'!M1441=\"\",\"\",'1. Order'!M1441)","v":""},null,null,null,{"$f":"IF('1. Order'!AF1441=\"\",\"\",'1. Order'!AF1441)","v":""}]
[{"$f":"IF('1. Order'!B1442=\"\",\"\",'1. Order'!B1442)","v":""},{"$f":"IF('1. Order'!I1442=\"\",\"\",'1. Order'!I1442)","v":""},{"$f":"IF('1. Order'!J1442=\"\",\"\",'1. Order'!J1442)","v":""},{"$f":"IF('1. Order'!K1442=\"\",\"\",'1. Order'!K1442)","v":""},{"$f":"IF('1. Order'!M1442=\"\",\"\",'1. Order'!M1442)","v":""},null,null,null,{"$f":"IF('1. Order'!AF1442=\"\",\"\",'1. Order'!AF1442)","v":""}]
[{"$f":"IF('1. Order'!B1443=\"\",\"\",'1. Order'!B1443)","v":""},{"$f":"IF('1. Order'!I1443=\"\",\"\",'1. Order'!I1443)","v":""},{"$f":"IF('1. Order'!J1443=\"\",\"\",'1. Order'!J1443)","v":""},{"$f":"IF('1. Order'!K1443=\"\",\"\",'1. Order'!K1443)","v":""},{"$f":"IF('1. Order'!M1443=\"\",\"\",'1. Order'!M1443)","v":""},null,null,null,{"$f":"IF('1. Order'!AF1443=\"\",\"\",'1. Order'!AF1443)","v":""}]
[{"$f":"IF('1. Order'!B1444=\"\",\"\",'1. Order'!B1444)","v":""},{"$f":"IF('1. Order'!I1444=\"\",\"\",'1. Order'!I1444)","v":""},{"$f":"IF('1. Order'!J1444=\"\",\"\",'1. Order'!J1444)","v":""},{"$f":"IF('1. Order'!K1444=\"\",\"\",'1. Order'!K1444)","v":""},{"$f":"IF('1. Order'!M1444=\"\",\"\",'1. Order'!M1444)","v":""},null,null,null,{"$f":"IF('1. Order'!AF1444=\"\",\"\",'1. Order'!AF1444)","v":""}]
[{"$f":"IF('1. Order'!B1445=\"\",\"\",'1. Order'!B1445)","v":""},{"$f":"IF('1. Order'!I1445=\"\",\"\",'1. Order'!I1445)","v":""},{"$f":"IF('1. Order'!J1445=\"\",\"\",'1. Order'!J1445)","v":""},{"$f":"IF('1. Order'!K1445=\"\",\"\",'1. Order'!K1445)","v":""},{"$f":"IF('1. Order'!M1445=\"\",\"\",'1. Order'!M1445)","v":""},null,null,null,{"$f":"IF('1. Order'!AF1445=\"\",\"\",'1. Order'!AF1445)","v":""}]
[{"$f":"IF('1. Order'!B1446=\"\",\"\",'1. Order'!B1446)","v":""},{"$f":"IF('1. Order'!I1446=\"\",\"\",'1. Order'!I1446)","v":""},{"$f":"IF('1. Order'!J1446=\"\",\"\",'1. Order'!J1446)","v":""},{"$f":"IF('1. Order'!K1446=\"\",\"\",'1. Order'!K1446)","v":""},{"$f":"IF('1. Order'!M1446=\"\",\"\",'1. Order'!M1446)","v":""},null,null,null,{"$f":"IF('1. Order'!AF1446=\"\",\"\",'1. Order'!AF1446)","v":""}]
[{"$f":"IF('1. Order'!B1447=\"\",\"\",'1. Order'!B1447)","v":""},{"$f":"IF('1. Order'!I1447=\"\",\"\",'1. Order'!I1447)","v":""},{"$f":"IF('1. Order'!J1447=\"\",\"\",'1. Order'!J1447)","v":""},{"$f":"IF('1. Order'!K1447=\"\",\"\",'1. Order'!K1447)","v":""},{"$f":"IF('1. Order'!M1447=\"\",\"\",'1. Order'!M1447)","v":""},null,null,null,{"$f":"IF('1. Order'!AF1447=\"\",\"\",'1. Order'!AF1447)","v":""}]
[{"$f":"IF('1. Order'!B1448=\"\",\"\",'1. Order'!B1448)","v":""},{"$f":"IF('1. Order'!I1448=\"\",\"\",'1. Order'!I1448)","v":""},{"$f":"IF('1. Order'!J1448=\"\",\"\",'1. Order'!J1448)","v":""},{"$f":"IF('1. Order'!K1448=\"\",\"\",'1. Order'!K1448)","v":""},{"$f":"IF('1. Order'!M1448=\"\",\"\",'1. Order'!M1448)","v":""},null,null,null,{"$f":"IF('1. Order'!AF1448=\"\",\"\",'1. Order'!AF1448)","v":""}]
[{"$f":"IF('1. Order'!B1449=\"\",\"\",'1. Order'!B1449)","v":""},{"$f":"IF('1. Order'!I1449=\"\",\"\",'1. Order'!I1449)","v":""},{"$f":"IF('1. Order'!J1449=\"\",\"\",'1. Order'!J1449)","v":""},{"$f":"IF('1. Order'!K1449=\"\",\"\",'1. Order'!K1449)","v":""},{"$f":"IF('1. Order'!M1449=\"\",\"\",'1. Order'!M1449)","v":""},null,null,null,{"$f":"IF('1. Order'!AF1449=\"\",\"\",'1. Order'!AF1449)","v":""}]
[{"$f":"IF('1. Order'!B1450=\"\",\"\",'1. Order'!B1450)","v":""},{"$f":"IF('1. Order'!I1450=\"\",\"\",'1. Order'!I1450)","v":""},{"$f":"IF('1. Order'!J1450=\"\",\"\",'1. Order'!J1450)","v":""},{"$f":"IF('1. Order'!K1450=\"\",\"\",'1. Order'!K1450)","v":""},{"$f":"IF('1. Order'!M1450=\"\",\"\",'1. Order'!M1450)","v":""},null,null,null,{"$f":"IF('1. Order'!AF1450=\"\",\"\",'1. Order'!AF1450)","v":""}]
[{"$f":"IF('1. Order'!B1451=\"\",\"\",'1. Order'!B1451)","v":""},{"$f":"IF('1. Order'!I1451=\"\",\"\",'1. Order'!I1451)","v":""},{"$f":"IF('1. Order'!J1451=\"\",\"\",'1. Order'!J1451)","v":""},{"$f":"IF('1. Order'!K1451=\"\",\"\",'1. Order'!K1451)","v":""},{"$f":"IF('1. Order'!M1451=\"\",\"\",'1. Order'!M1451)","v":""},null,null,null,{"$f":"IF('1. Order'!AF1451=\"\",\"\",'1. Order'!AF1451)","v":""}]
[{"$f":"IF('1. Order'!B1452=\"\",\"\",'1. Order'!B1452)","v":""},{"$f":"IF('1. Order'!I1452=\"\",\"\",'1. Order'!I1452)","v":""},{"$f":"IF('1. Order'!J1452=\"\",\"\",'1. Order'!J1452)","v":""},{"$f":"IF('1. Order'!K1452=\"\",\"\",'1. Order'!K1452)","v":""},{"$f":"IF('1. Order'!M1452=\"\",\"\",'1. Order'!M1452)","v":""},null,null,null,{"$f":"IF('1. Order'!AF1452=\"\",\"\",'1. Order'!AF1452)","v":""}]
[{"$f":"IF('1. Order'!B1453=\"\",\"\",'1. Order'!B1453)","v":""},{"$f":"IF('1. Order'!I1453=\"\",\"\",'1. Order'!I1453)","v":""},{"$f":"IF('1. Order'!J1453=\"\",\"\",'1. Order'!J1453)","v":""},{"$f":"IF('1. Order'!K1453=\"\",\"\",'1. Order'!K1453)","v":""},{"$f":"IF('1. Order'!M1453=\"\",\"\",'1. Order'!M1453)","v":""},null,null,null,{"$f":"IF('1. Order'!AF1453=\"\",\"\",'1. Order'!AF1453)","v":""}]
[{"$f":"IF('1. Order'!B1454=\"\",\"\",'1. Order'!B1454)","v":""},{"$f":"IF('1. Order'!I1454=\"\",\"\",'1. Order'!I1454)","v":""},{"$f":"IF('1. Order'!J1454=\"\",\"\",'1. Order'!J1454)","v":""},{"$f":"IF('1. Order'!K1454=\"\",\"\",'1. Order'!K1454)","v":""},{"$f":"IF('1. Order'!M1454=\"\",\"\",'1. Order'!M1454)","v":""},null,null,null,{"$f":"IF('1. Order'!AF1454=\"\",\"\",'1. Order'!AF1454)","v":""}]
[{"$f":"IF('1. Order'!B1455=\"\",\"\",'1. Order'!B1455)","v":""},{"$f":"IF('1. Order'!I1455=\"\",\"\",'1. Order'!I1455)","v":""},{"$f":"IF('1. Order'!J1455=\"\",\"\",'1. Order'!J1455)","v":""},{"$f":"IF('1. Order'!K1455=\"\",\"\",'1. Order'!K1455)","v":""},{"$f":"IF('1. Order'!M1455=\"\",\"\",'1. Order'!M1455)","v":""},null,null,null,{"$f":"IF('1. Order'!AF1455=\"\",\"\",'1. Order'!AF1455)","v":""}]
[{"$f":"IF('1. Order'!B1456=\"\",\"\",'1. Order'!B1456)","v":""},{"$f":"IF('1. Order'!I1456=\"\",\"\",'1. Order'!I1456)","v":""},{"$f":"IF('1. Order'!J1456=\"\",\"\",'1. Order'!J1456)","v":""},{"$f":"IF('1. Order'!K1456=\"\",\"\",'1. Order'!K1456)","v":""},{"$f":"IF('1. Order'!M1456=\"\",\"\",'1. Order'!M1456)","v":""},null,null,null,{"$f":"IF('1. Order'!AF1456=\"\",\"\",'1. Order'!AF1456)","v":""}]
[{"$f":"IF('1. Order'!B1457=\"\",\"\",'1. Order'!B1457)","v":""},{"$f":"IF('1. Order'!I1457=\"\",\"\",'1. Order'!I1457)","v":""},{"$f":"IF('1. Order'!J1457=\"\",\"\",'1. Order'!J1457)","v":""},{"$f":"IF('1. Order'!K1457=\"\",\"\",'1. Order'!K1457)","v":""},{"$f":"IF('1. Order'!M1457=\"\",\"\",'1. Order'!M1457)","v":""},null,null,null,{"$f":"IF('1. Order'!AF1457=\"\",\"\",'1. Order'!AF1457)","v":""}]
[{"$f":"IF('1. Order'!B1458=\"\",\"\",'1. Order'!B1458)","v":""},{"$f":"IF('1. Order'!I1458=\"\",\"\",'1. Order'!I1458)","v":""},{"$f":"IF('1. Order'!J1458=\"\",\"\",'1. Order'!J1458)","v":""},{"$f":"IF('1. Order'!K1458=\"\",\"\",'1. Order'!K1458)","v":""},{"$f":"IF('1. Order'!M1458=\"\",\"\",'1. Order'!M1458)","v":""},null,null,null,{"$f":"IF('1. Order'!AF1458=\"\",\"\",'1. Order'!AF1458)","v":""}]
[{"$f":"IF('1. Order'!B1459=\"\",\"\",'1. Order'!B1459)","v":""},{"$f":"IF('1. Order'!I1459=\"\",\"\",'1. Order'!I1459)","v":""},{"$f":"IF('1. Order'!J1459=\"\",\"\",'1. Order'!J1459)","v":""},{"$f":"IF('1. Order'!K1459=\"\",\"\",'1. Order'!K1459)","v":""},{"$f":"IF('1. Order'!M1459=\"\",\"\",'1. Order'!M1459)","v":""},null,null,null,{"$f":"IF('1. Order'!AF1459=\"\",\"\",'1. Order'!AF1459)","v":""}]
[{"$f":"IF('1. Order'!B1460=\"\",\"\",'1. Order'!B1460)","v":""},{"$f":"IF('1. Order'!I1460=\"\",\"\",'1. Order'!I1460)","v":""},{"$f":"IF('1. Order'!J1460=\"\",\"\",'1. Order'!J1460)","v":""},{"$f":"IF('1. Order'!K1460=\"\",\"\",'1. Order'!K1460)","v":""},{"$f":"IF('1. Order'!M1460=\"\",\"\",'1. Order'!M1460)","v":""},null,null,null,{"$f":"IF('1. Order'!AF1460=\"\",\"\",'1. Order'!AF1460)","v":""}]
[{"$f":"IF('1. Order'!B1461=\"\",\"\",'1. Order'!B1461)","v":""},{"$f":"IF('1. Order'!I1461=\"\",\"\",'1. Order'!I1461)","v":""},{"$f":"IF('1. Order'!J1461=\"\",\"\",'1. Order'!J1461)","v":""},{"$f":"IF('1. Order'!K1461=\"\",\"\",'1. Order'!K1461)","v":""},{"$f":"IF('1. Order'!M1461=\"\",\"\",'1. Order'!M1461)","v":""},null,null,null,{"$f":"IF('1. Order'!AF1461=\"\",\"\",'1. Order'!AF1461)","v":""}]
[{"$f":"IF('1. Order'!B1462=\"\",\"\",'1. Order'!B1462)","v":""},{"$f":"IF('1. Order'!I1462=\"\",\"\",'1. Order'!I1462)","v":""},{"$f":"IF('1. Order'!J1462=\"\",\"\",'1. Order'!J1462)","v":""},{"$f":"IF('1. Order'!K1462=\"\",\"\",'1. Order'!K1462)","v":""},{"$f":"IF('1. Order'!M1462=\"\",\"\",'1. Order'!M1462)","v":""},null,null,null,{"$f":"IF('1. Order'!AF1462=\"\",\"\",'1. Order'!AF1462)","v":""}]
[{"$f":"IF('1. Order'!B1463=\"\",\"\",'1. Order'!B1463)","v":""},{"$f":"IF('1. Order'!I1463=\"\",\"\",'1. Order'!I1463)","v":""},{"$f":"IF('1. Order'!J1463=\"\",\"\",'1. Order'!J1463)","v":""},{"$f":"IF('1. Order'!K1463=\"\",\"\",'1. Order'!K1463)","v":""},{"$f":"IF('1. Order'!M1463=\"\",\"\",'1. Order'!M1463)","v":""},null,null,null,{"$f":"IF('1. Order'!AF1463=\"\",\"\",'1. Order'!AF1463)","v":""}]
[{"$f":"IF('1. Order'!B1464=\"\",\"\",'1. Order'!B1464)","v":""},{"$f":"IF('1. Order'!I1464=\"\",\"\",'1. Order'!I1464)","v":""},{"$f":"IF('1. Order'!J1464=\"\",\"\",'1. Order'!J1464)","v":""},{"$f":"IF('1. Order'!K1464=\"\",\"\",'1. Order'!K1464)","v":""},{"$f":"IF('1. Order'!M1464=\"\",\"\",'1. Order'!M1464)","v":""},null,null,null,{"$f":"IF('1. Order'!AF1464=\"\",\"\",'1. Order'!AF1464)","v":""}]
[{"$f":"IF('1. Order'!B1465=\"\",\"\",'1. Order'!B1465)","v":""},{"$f":"IF('1. Order'!I1465=\"\",\"\",'1. Order'!I1465)","v":""},{"$f":"IF('1. Order'!J1465=\"\",\"\",'1. Order'!J1465)","v":""},{"$f":"IF('1. Order'!K1465=\"\",\"\",'1. Order'!K1465)","v":""},{"$f":"IF('1. Order'!M1465=\"\",\"\",'1. Order'!M1465)","v":""},null,null,null,{"$f":"IF('1. Order'!AF1465=\"\",\"\",'1. Order'!AF1465)","v":""}]
[{"$f":"IF('1. Order'!B1466=\"\",\"\",'1. Order'!B1466)","v":""},{"$f":"IF('1. Order'!I1466=\"\",\"\",'1. Order'!I1466)","v":""},{"$f":"IF('1. Order'!J1466=\"\",\"\",'1. Order'!J1466)","v":""},{"$f":"IF('1. Order'!K1466=\"\",\"\",'1. Order'!K1466)","v":""},{"$f":"IF('1. Order'!M1466=\"\",\"\",'1. Order'!M1466)","v":""},null,null,null,{"$f":"IF('1. Order'!AF1466=\"\",\"\",'1. Order'!AF1466)","v":""}]
[{"$f":"IF('1. Order'!B1467=\"\",\"\",'1. Order'!B1467)","v":""},{"$f":"IF('1. Order'!I1467=\"\",\"\",'1. Order'!I1467)","v":""},{"$f":"IF('1. Order'!J1467=\"\",\"\",'1. Order'!J1467)","v":""},{"$f":"IF('1. Order'!K1467=\"\",\"\",'1. Order'!K1467)","v":""},{"$f":"IF('1. Order'!M1467=\"\",\"\",'1. Order'!M1467)","v":""},null,null,null,{"$f":"IF('1. Order'!AF1467=\"\",\"\",'1. Order'!AF1467)","v":""}]
[{"$f":"IF('1. Order'!B1468=\"\",\"\",'1. Order'!B1468)","v":""},{"$f":"IF('1. Order'!I1468=\"\",\"\",'1. Order'!I1468)","v":""},{"$f":"IF('1. Order'!J1468=\"\",\"\",'1. Order'!J1468)","v":""},{"$f":"IF('1. Order'!K1468=\"\",\"\",'1. Order'!K1468)","v":""},{"$f":"IF('1. Order'!M1468=\"\",\"\",'1. Order'!M1468)","v":""},null,null,null,{"$f":"IF('1. Order'!AF1468=\"\",\"\",'1. Order'!AF1468)","v":""}]
[{"$f":"IF('1. Order'!B1469=\"\",\"\",'1. Order'!B1469)","v":""},{"$f":"IF('1. Order'!I1469=\"\",\"\",'1. Order'!I1469)","v":""},{"$f":"IF('1. Order'!J1469=\"\",\"\",'1. Order'!J1469)","v":""},{"$f":"IF('1. Order'!K1469=\"\",\"\",'1. Order'!K1469)","v":""},{"$f":"IF('1. Order'!M1469=\"\",\"\",'1. Order'!M1469)","v":""},null,null,null,{"$f":"IF('1. Order'!AF1469=\"\",\"\",'1. Order'!AF1469)","v":""}]
[{"$f":"IF('1. Order'!B1470=\"\",\"\",'1. Order'!B1470)","v":""},{"$f":"IF('1. Order'!I1470=\"\",\"\",'1. Order'!I1470)","v":""},{"$f":"IF('1. Order'!J1470=\"\",\"\",'1. Order'!J1470)","v":""},{"$f":"IF('1. Order'!K1470=\"\",\"\",'1. Order'!K1470)","v":""},{"$f":"IF('1. Order'!M1470=\"\",\"\",'1. Order'!M1470)","v":""},null,null,null,{"$f":"IF('1. Order'!AF1470=\"\",\"\",'1. Order'!AF1470)","v":""}]
[{"$f":"IF('1. Order'!B1471=\"\",\"\",'1. Order'!B1471)","v":""},{"$f":"IF('1. Order'!I1471=\"\",\"\",'1. Order'!I1471)","v":""},{"$f":"IF('1. Order'!J1471=\"\",\"\",'1. Order'!J1471)","v":""},{"$f":"IF('1. Order'!K1471=\"\",\"\",'1. Order'!K1471)","v":""},{"$f":"IF('1. Order'!M1471=\"\",\"\",'1. Order'!M1471)","v":""},null,null,null,{"$f":"IF('1. Order'!AF1471=\"\",\"\",'1. Order'!AF1471)","v":""}]
[{"$f":"IF('1. Order'!B1472=\"\",\"\",'1. Order'!B1472)","v":""},{"$f":"IF('1. Order'!I1472=\"\",\"\",'1. Order'!I1472)","v":""},{"$f":"IF('1. Order'!J1472=\"\",\"\",'1. Order'!J1472)","v":""},{"$f":"IF('1. Order'!K1472=\"\",\"\",'1. Order'!K1472)","v":""},{"$f":"IF('1. Order'!M1472=\"\",\"\",'1. Order'!M1472)","v":""},null,null,null,{"$f":"IF('1. Order'!AF1472=\"\",\"\",'1. Order'!AF1472)","v":""}]
[{"$f":"IF('1. Order'!B1473=\"\",\"\",'1. Order'!B1473)","v":""},{"$f":"IF('1. Order'!I1473=\"\",\"\",'1. Order'!I1473)","v":""},{"$f":"IF('1. Order'!J1473=\"\",\"\",'1. Order'!J1473)","v":""},{"$f":"IF('1. Order'!K1473=\"\",\"\",'1. Order'!K1473)","v":""},{"$f":"IF('1. Order'!M1473=\"\",\"\",'1. Order'!M1473)","v":""},null,null,null,{"$f":"IF('1. Order'!AF1473=\"\",\"\",'1. Order'!AF1473)","v":""}]
[{"$f":"IF('1. Order'!B1474=\"\",\"\",'1. Order'!B1474)","v":""},{"$f":"IF('1. Order'!I1474=\"\",\"\",'1. Order'!I1474)","v":""},{"$f":"IF('1. Order'!J1474=\"\",\"\",'1. Order'!J1474)","v":""},{"$f":"IF('1. Order'!K1474=\"\",\"\",'1. Order'!K1474)","v":""},{"$f":"IF('1. Order'!M1474=\"\",\"\",'1. Order'!M1474)","v":""},null,null,null,{"$f":"IF('1. Order'!AF1474=\"\",\"\",'1. Order'!AF1474)","v":""}]
[{"$f":"IF('1. Order'!B1475=\"\",\"\",'1. Order'!B1475)","v":""},{"$f":"IF('1. Order'!I1475=\"\",\"\",'1. Order'!I1475)","v":""},{"$f":"IF('1. Order'!J1475=\"\",\"\",'1. Order'!J1475)","v":""},{"$f":"IF('1. Order'!K1475=\"\",\"\",'1. Order'!K1475)","v":""},{"$f":"IF('1. Order'!M1475=\"\",\"\",'1. Order'!M1475)","v":""},null,null,null,{"$f":"IF('1. Order'!AF1475=\"\",\"\",'1. Order'!AF1475)","v":""}]
[{"$f":"IF('1. Order'!B1476=\"\",\"\",'1. Order'!B1476)","v":""},{"$f":"IF('1. Order'!I1476=\"\",\"\",'1. Order'!I1476)","v":""},{"$f":"IF('1. Order'!J1476=\"\",\"\",'1. Order'!J1476)","v":""},{"$f":"IF('1. Order'!K1476=\"\",\"\",'1. Order'!K1476)","v":""},{"$f":"IF('1. Order'!M1476=\"\",\"\",'1. Order'!M1476)","v":""},null,null,null,{"$f":"IF('1. Order'!AF1476=\"\",\"\",'1. Order'!AF1476)","v":""}]
[{"$f":"IF('1. Order'!B1477=\"\",\"\",'1. Order'!B1477)","v":""},{"$f":"IF('1. Order'!I1477=\"\",\"\",'1. Order'!I1477)","v":""},{"$f":"IF('1. Order'!J1477=\"\",\"\",'1. Order'!J1477)","v":""},{"$f":"IF('1. Order'!K1477=\"\",\"\",'1. Order'!K1477)","v":""},{"$f":"IF('1. Order'!M1477=\"\",\"\",'1. Order'!M1477)","v":""},null,null,null,{"$f":"IF('1. Order'!AF1477=\"\",\"\",'1. Order'!AF1477)","v":""}]
[{"$f":"IF('1. Order'!B1478=\"\",\"\",'1. Order'!B1478)","v":""},{"$f":"IF('1. Order'!I1478=\"\",\"\",'1. Order'!I1478)","v":""},{"$f":"IF('1. Order'!J1478=\"\",\"\",'1. Order'!J1478)","v":""},{"$f":"IF('1. Order'!K1478=\"\",\"\",'1. Order'!K1478)","v":""},{"$f":"IF('1. Order'!M1478=\"\",\"\",'1. Order'!M1478)","v":""},null,null,null,{"$f":"IF('1. Order'!AF1478=\"\",\"\",'1. Order'!AF1478)","v":""}]
[{"$f":"IF('1. Order'!B1479=\"\",\"\",'1. Order'!B1479)","v":""},{"$f":"IF('1. Order'!I1479=\"\",\"\",'1. Order'!I1479)","v":""},{"$f":"IF('1. Order'!J1479=\"\",\"\",'1. Order'!J1479)","v":""},{"$f":"IF('1. Order'!K1479=\"\",\"\",'1. Order'!K1479)","v":""},{"$f":"IF('1. Order'!M1479=\"\",\"\",'1. Order'!M1479)","v":""},null,null,null,{"$f":"IF('1. Order'!AF1479=\"\",\"\",'1. Order'!AF1479)","v":""}]
[{"$f":"IF('1. Order'!B1480=\"\",\"\",'1. Order'!B1480)","v":""},{"$f":"IF('1. Order'!I1480=\"\",\"\",'1. Order'!I1480)","v":""},{"$f":"IF('1. Order'!J1480=\"\",\"\",'1. Order'!J1480)","v":""},{"$f":"IF('1. Order'!K1480=\"\",\"\",'1. Order'!K1480)","v":""},{"$f":"IF('1. Order'!M1480=\"\",\"\",'1. Order'!M1480)","v":""},null,null,null,{"$f":"IF('1. Order'!AF1480=\"\",\"\",'1. Order'!AF1480)","v":""}]
[{"$f":"IF('1. Order'!B1481=\"\",\"\",'1. Order'!B1481)","v":""},{"$f":"IF('1. Order'!I1481=\"\",\"\",'1. Order'!I1481)","v":""},{"$f":"IF('1. Order'!J1481=\"\",\"\",'1. Order'!J1481)","v":""},{"$f":"IF('1. Order'!K1481=\"\",\"\",'1. Order'!K1481)","v":""},{"$f":"IF('1. Order'!M1481=\"\",\"\",'1. Order'!M1481)","v":""},null,null,null,{"$f":"IF('1. Order'!AF1481=\"\",\"\",'1. Order'!AF1481)","v":""}]
[{"$f":"IF('1. Order'!B1482=\"\",\"\",'1. Order'!B1482)","v":""},{"$f":"IF('1. Order'!I1482=\"\",\"\",'1. Order'!I1482)","v":""},{"$f":"IF('1. Order'!J1482=\"\",\"\",'1. Order'!J1482)","v":""},{"$f":"IF('1. Order'!K1482=\"\",\"\",'1. Order'!K1482)","v":""},{"$f":"IF('1. Order'!M1482=\"\",\"\",'1. Order'!M1482)","v":""},null,null,null,{"$f":"IF('1. Order'!AF1482=\"\",\"\",'1. Order'!AF1482)","v":""}]
[{"$f":"IF('1. Order'!B1483=\"\",\"\",'1. Order'!B1483)","v":""},{"$f":"IF('1. Order'!I1483=\"\",\"\",'1. Order'!I1483)","v":""},{"$f":"IF('1. Order'!J1483=\"\",\"\",'1. Order'!J1483)","v":""},{"$f":"IF('1. Order'!K1483=\"\",\"\",'1. Order'!K1483)","v":""},{"$f":"IF('1. Order'!M1483=\"\",\"\",'1. Order'!M1483)","v":""},null,null,null,{"$f":"IF('1. Order'!AF1483=\"\",\"\",'1. Order'!AF1483)","v":""}]
[{"$f":"IF('1. Order'!B1484=\"\",\"\",'1. Order'!B1484)","v":""},{"$f":"IF('1. Order'!I1484=\"\",\"\",'1. Order'!I1484)","v":""},{"$f":"IF('1. Order'!J1484=\"\",\"\",'1. Order'!J1484)","v":""},{"$f":"IF('1. Order'!K1484=\"\",\"\",'1. Order'!K1484)","v":""},{"$f":"IF('1. Order'!M1484=\"\",\"\",'1. Order'!M1484)","v":""},null,null,null,{"$f":"IF('1. Order'!AF1484=\"\",\"\",'1. Order'!AF1484)","v":""}]
[{"$f":"IF('1. Order'!B1485=\"\",\"\",'1. Order'!B1485)","v":""},{"$f":"IF('1. Order'!I1485=\"\",\"\",'1. Order'!I1485)","v":""},{"$f":"IF('1. Order'!J1485=\"\",\"\",'1. Order'!J1485)","v":""},{"$f":"IF('1. Order'!K1485=\"\",\"\",'1. Order'!K1485)","v":""},{"$f":"IF('1. Order'!M1485=\"\",\"\",'1. Order'!M1485)","v":""},null,null,null,{"$f":"IF('1. Order'!AF1485=\"\",\"\",'1. Order'!AF1485)","v":""}]
[{"$f":"IF('1. Order'!B1486=\"\",\"\",'1. Order'!B1486)","v":""},{"$f":"IF('1. Order'!I1486=\"\",\"\",'1. Order'!I1486)","v":""},{"$f":"IF('1. Order'!J1486=\"\",\"\",'1. Order'!J1486)","v":""},{"$f":"IF('1. Order'!K1486=\"\",\"\",'1. Order'!K1486)","v":""},{"$f":"IF('1. Order'!M1486=\"\",\"\",'1. Order'!M1486)","v":""},null,null,null,{"$f":"IF('1. Order'!AF1486=\"\",\"\",'1. Order'!AF1486)","v":""}]
[{"$f":"IF('1. Order'!B1487=\"\",\"\",'1. Order'!B1487)","v":""},{"$f":"IF('1. Order'!I1487=\"\",\"\",'1. Order'!I1487)","v":""},{"$f":"IF('1. Order'!J1487=\"\",\"\",'1. Order'!J1487)","v":""},{"$f":"IF('1. Order'!K1487=\"\",\"\",'1. Order'!K1487)","v":""},{"$f":"IF('1. Order'!M1487=\"\",\"\",'1. Order'!M1487)","v":""},null,null,null,{"$f":"IF('1. Order'!AF1487=\"\",\"\",'1. Order'!AF1487)","v":""}]
[{"$f":"IF('1. Order'!B1488=\"\",\"\",'1. Order'!B1488)","v":""},{"$f":"IF('1. Order'!I1488=\"\",\"\",'1. Order'!I1488)","v":""},{"$f":"IF('1. Order'!J1488=\"\",\"\",'1. Order'!J1488)","v":""},{"$f":"IF('1. Order'!K1488=\"\",\"\",'1. Order'!K1488)","v":""},{"$f":"IF('1. Order'!M1488=\"\",\"\",'1. Order'!M1488)","v":""},null,null,null,{"$f":"IF('1. Order'!AF1488=\"\",\"\",'1. Order'!AF1488)","v":""}]
[{"$f":"IF('1. Order'!B1489=\"\",\"\",'1. Order'!B1489)","v":""},{"$f":"IF('1. Order'!I1489=\"\",\"\",'1. Order'!I1489)","v":""},{"$f":"IF('1. Order'!J1489=\"\",\"\",'1. Order'!J1489)","v":""},{"$f":"IF('1. Order'!K1489=\"\",\"\",'1. Order'!K1489)","v":""},{"$f":"IF('1. Order'!M1489=\"\",\"\",'1. Order'!M1489)","v":""},null,null,null,{"$f":"IF('1. Order'!AF1489=\"\",\"\",'1. Order'!AF1489)","v":""}]
[{"$f":"IF('1. Order'!B1490=\"\",\"\",'1. Order'!B1490)","v":""},{"$f":"IF('1. Order'!I1490=\"\",\"\",'1. Order'!I1490)","v":""},{"$f":"IF('1. Order'!J1490=\"\",\"\",'1. Order'!J1490)","v":""},{"$f":"IF('1. Order'!K1490=\"\",\"\",'1. Order'!K1490)","v":""},{"$f":"IF('1. Order'!M1490=\"\",\"\",'1. Order'!M1490)","v":""},null,null,null,{"$f":"IF('1. Order'!AF1490=\"\",\"\",'1. Order'!AF1490)","v":""}]
[{"$f":"IF('1. Order'!B1491=\"\",\"\",'1. Order'!B1491)","v":""},{"$f":"IF('1. Order'!I1491=\"\",\"\",'1. Order'!I1491)","v":""},{"$f":"IF('1. Order'!J1491=\"\",\"\",'1. Order'!J1491)","v":""},{"$f":"IF('1. Order'!K1491=\"\",\"\",'1. Order'!K1491)","v":""},{"$f":"IF('1. Order'!M1491=\"\",\"\",'1. Order'!M1491)","v":""},null,null,null,{"$f":"IF('1. Order'!AF1491=\"\",\"\",'1. Order'!AF1491)","v":""}]
[{"$f":"IF('1. Order'!B1492=\"\",\"\",'1. Order'!B1492)","v":""},{"$f":"IF('1. Order'!I1492=\"\",\"\",'1. Order'!I1492)","v":""},{"$f":"IF('1. Order'!J1492=\"\",\"\",'1. Order'!J1492)","v":""},{"$f":"IF('1. Order'!K1492=\"\",\"\",'1. Order'!K1492)","v":""},{"$f":"IF('1. Order'!M1492=\"\",\"\",'1. Order'!M1492)","v":""},null,null,null,{"$f":"IF('1. Order'!AF1492=\"\",\"\",'1. Order'!AF1492)","v":""}]
[{"$f":"IF('1. Order'!B1493=\"\",\"\",'1. Order'!B1493)","v":""},{"$f":"IF('1. Order'!I1493=\"\",\"\",'1. Order'!I1493)","v":""},{"$f":"IF('1. Order'!J1493=\"\",\"\",'1. Order'!J1493)","v":""},{"$f":"IF('1. Order'!K1493=\"\",\"\",'1. Order'!K1493)","v":""},{"$f":"IF('1. Order'!M1493=\"\",\"\",'1. Order'!M1493)","v":""},null,null,null,{"$f":"IF('1. Order'!AF1493=\"\",\"\",'1. Order'!AF1493)","v":""}]
[{"$f":"IF('1. Order'!B1494=\"\",\"\",'1. Order'!B1494)","v":""},{"$f":"IF('1. Order'!I1494=\"\",\"\",'1. Order'!I1494)","v":""},{"$f":"IF('1. Order'!J1494=\"\",\"\",'1. Order'!J1494)","v":""},{"$f":"IF('1. Order'!K1494=\"\",\"\",'1. Order'!K1494)","v":""},{"$f":"IF('1. Order'!M1494=\"\",\"\",'1. Order'!M1494)","v":""},null,null,null,{"$f":"IF('1. Order'!AF1494=\"\",\"\",'1. Order'!AF1494)","v":""}]
[{"$f":"IF('1. Order'!B1495=\"\",\"\",'1. Order'!B1495)","v":""},{"$f":"IF('1. Order'!I1495=\"\",\"\",'1. Order'!I1495)","v":""},{"$f":"IF('1. Order'!J1495=\"\",\"\",'1. Order'!J1495)","v":""},{"$f":"IF('1. Order'!K1495=\"\",\"\",'1. Order'!K1495)","v":""},{"$f":"IF('1. Order'!M1495=\"\",\"\",'1. Order'!M1495)","v":""},null,null,null,{"$f":"IF('1. Order'!AF1495=\"\",\"\",'1. Order'!AF1495)","v":""}]
[{"$f":"IF('1. Order'!B1496=\"\",\"\",'1. Order'!B1496)","v":""},{"$f":"IF('1. Order'!I1496=\"\",\"\",'1. Order'!I1496)","v":""},{"$f":"IF('1. Order'!J1496=\"\",\"\",'1. Order'!J1496)","v":""},{"$f":"IF('1. Order'!K1496=\"\",\"\",'1. Order'!K1496)","v":""},{"$f":"IF('1. Order'!M1496=\"\",\"\",'1. Order'!M1496)","v":""},null,null,null,{"$f":"IF('1. Order'!AF1496=\"\",\"\",'1. Order'!AF1496)","v":""}]
[{"$f":"IF('1. Order'!B1497=\"\",\"\",'1. Order'!B1497)","v":""},{"$f":"IF('1. Order'!I1497=\"\",\"\",'1. Order'!I1497)","v":""},{"$f":"IF('1. Order'!J1497=\"\",\"\",'1. Order'!J1497)","v":""},{"$f":"IF('1. Order'!K1497=\"\",\"\",'1. Order'!K1497)","v":""},{"$f":"IF('1. Order'!M1497=\"\",\"\",'1. Order'!M1497)","v":""},null,null,null,{"$f":"IF('1. Order'!AF1497=\"\",\"\",'1. Order'!AF1497)","v":""}]
[{"$f":"IF('1. Order'!B1498=\"\",\"\",'1. Order'!B1498)","v":""},{"$f":"IF('1. Order'!I1498=\"\",\"\",'1. Order'!I1498)","v":""},{"$f":"IF('1. Order'!J1498=\"\",\"\",'1. Order'!J1498)","v":""},{"$f":"IF('1. Order'!K1498=\"\",\"\",'1. Order'!K1498)","v":""},{"$f":"IF('1. Order'!M1498=\"\",\"\",'1. Order'!M1498)","v":""},null,null,null,{"$f":"IF('1. Order'!AF1498=\"\",\"\",'1. Order'!AF1498)","v":""}]
[{"$f":"IF('1. Order'!B1499=\"\",\"\",'1. Order'!B1499)","v":""},{"$f":"IF('1. Order'!I1499=\"\",\"\",'1. Order'!I1499)","v":""},{"$f":"IF('1. Order'!J1499=\"\",\"\",'1. Order'!J1499)","v":""},{"$f":"IF('1. Order'!K1499=\"\",\"\",'1. Order'!K1499)","v":""},{"$f":"IF('1. Order'!M1499=\"\",\"\",'1. Order'!M1499)","v":""},null,null,null,{"$f":"IF('1. Order'!AF1499=\"\",\"\",'1. Order'!AF1499)","v":""}]
[{"$f":"IF('1. Order'!B1500=\"\",\"\",'1. Order'!B1500)","v":""},{"$f":"IF('1. Order'!I1500=\"\",\"\",'1. Order'!I1500)","v":""},{"$f":"IF('1. Order'!J1500=\"\",\"\",'1. Order'!J1500)","v":""},{"$f":"IF('1. Order'!K1500=\"\",\"\",'1. Order'!K1500)","v":""},{"$f":"IF('1. Order'!M1500=\"\",\"\",'1. Order'!M1500)","v":""},null,null,null,{"$f":"IF('1. Order'!AF1500=\"\",\"\",'1. Order'!AF1500)","v":""}]
[{"$f":"IF('1. Order'!B1501=\"\",\"\",'1. Order'!B1501)","v":""},{"$f":"IF('1. Order'!I1501=\"\",\"\",'1. Order'!I1501)","v":""},{"$f":"IF('1. Order'!J1501=\"\",\"\",'1. Order'!J1501)","v":""},{"$f":"IF('1. Order'!K1501=\"\",\"\",'1. Order'!K1501)","v":""},{"$f":"IF('1. Order'!M1501=\"\",\"\",'1. Order'!M1501)","v":""},null,null,null,{"$f":"IF('1. Order'!AF1501=\"\",\"\",'1. Order'!AF1501)","v":""}]
[{"$f":"IF('1. Order'!B1502=\"\",\"\",'1. Order'!B1502)","v":""},{"$f":"IF('1. Order'!I1502=\"\",\"\",'1. Order'!I1502)","v":""},{"$f":"IF('1. Order'!J1502=\"\",\"\",'1. Order'!J1502)","v":""},{"$f":"IF('1. Order'!K1502=\"\",\"\",'1. Order'!K1502)","v":""},{"$f":"IF('1. Order'!M1502=\"\",\"\",'1. Order'!M1502)","v":""},null,null,null,{"$f":"IF('1. Order'!AF1502=\"\",\"\",'1. Order'!AF1502)","v":""}]
[{"$f":"IF('1. Order'!B1503=\"\",\"\",'1. Order'!B1503)","v":""},{"$f":"IF('1. Order'!I1503=\"\",\"\",'1. Order'!I1503)","v":""},{"$f":"IF('1. Order'!J1503=\"\",\"\",'1. Order'!J1503)","v":""},{"$f":"IF('1. Order'!K1503=\"\",\"\",'1. Order'!K1503)","v":""},{"$f":"IF('1. Order'!M1503=\"\",\"\",'1. Order'!M1503)","v":""},null,null,null,{"$f":"IF('1. Order'!AF1503=\"\",\"\",'1. Order'!AF1503)","v":""}]
[{"$f":"IF('1. Order'!B1504=\"\",\"\",'1. Order'!B1504)","v":""},{"$f":"IF('1. Order'!I1504=\"\",\"\",'1. Order'!I1504)","v":""},{"$f":"IF('1. Order'!J1504=\"\",\"\",'1. Order'!J1504)","v":""},{"$f":"IF('1. Order'!K1504=\"\",\"\",'1. Order'!K1504)","v":""},{"$f":"IF('1. Order'!M1504=\"\",\"\",'1. Order'!M1504)","v":""},null,null,null,{"$f":"IF('1. Order'!AF1504=\"\",\"\",'1. Order'!AF1504)","v":""}]
[{"$f":"IF('1. Order'!B1505=\"\",\"\",'1. Order'!B1505)","v":""},{"$f":"IF('1. Order'!I1505=\"\",\"\",'1. Order'!I1505)","v":""},{"$f":"IF('1. Order'!J1505=\"\",\"\",'1. Order'!J1505)","v":""},{"$f":"IF('1. Order'!K1505=\"\",\"\",'1. Order'!K1505)","v":""},{"$f":"IF('1. Order'!M1505=\"\",\"\",'1. Order'!M1505)","v":""},null,null,null,{"$f":"IF('1. Order'!AF1505=\"\",\"\",'1. Order'!AF1505)","v":""}]
[{"$f":"IF('1. Order'!B1506=\"\",\"\",'1. Order'!B1506)","v":""},{"$f":"IF('1. Order'!I1506=\"\",\"\",'1. Order'!I1506)","v":""},{"$f":"IF('1. Order'!J1506=\"\",\"\",'1. Order'!J1506)","v":""},{"$f":"IF('1. Order'!K1506=\"\",\"\",'1. Order'!K1506)","v":""},{"$f":"IF('1. Order'!M1506=\"\",\"\",'1. Order'!M1506)","v":""},null,null,null,{"$f":"IF('1. Order'!AF1506=\"\",\"\",'1. Order'!AF1506)","v":""}]
[{"$f":"IF('1. Order'!B1507=\"\",\"\",'1. Order'!B1507)","v":""},{"$f":"IF('1. Order'!I1507=\"\",\"\",'1. Order'!I1507)","v":""},{"$f":"IF('1. Order'!J1507=\"\",\"\",'1. Order'!J1507)","v":""},{"$f":"IF('1. Order'!K1507=\"\",\"\",'1. Order'!K1507)","v":""},{"$f":"IF('1. Order'!M1507=\"\",\"\",'1. Order'!M1507)","v":""},null,null,null,{"$f":"IF('1. Order'!AF1507=\"\",\"\",'1. Order'!AF1507)","v":""}]
[{"$f":"IF('1. Order'!B1508=\"\",\"\",'1. Order'!B1508)","v":""},{"$f":"IF('1. Order'!I1508=\"\",\"\",'1. Order'!I1508)","v":""},{"$f":"IF('1. Order'!J1508=\"\",\"\",'1. Order'!J1508)","v":""},{"$f":"IF('1. Order'!K1508=\"\",\"\",'1. Order'!K1508)","v":""},{"$f":"IF('1. Order'!M1508=\"\",\"\",'1. Order'!M1508)","v":""},null,null,null,{"$f":"IF('1. Order'!AF1508=\"\",\"\",'1. Order'!AF1508)","v":""}]

{"sheet":"Article Onboarding","index":4,"n_rows":1502,"n_cols":39,"rows_kept":1502,"cut":false,"hidden":true,"merged":[]}
["Leverancier","Merk (volgens PIM)","Merklijn (volgens PIM)","Stijl nr","Inkooptekst","Leverancierskleur (max. 50 posities)","Darwin mover class (volgens PIM)","?","Omschrijving","Categorie","Taxon","Bestelmaat leverancier","Presentatiemaat ","Magazijnmaat (3 cijferig)","Veelvoud","MOQ","Valuta inkoopprijs","Inkoopprijs","Consumenten verkoopprijs","Oorspronkelijke verkoopprijs",null,"CustomCode","ProductWeightSize","Battery","BatteryType","BatteryWeight","BatteryButtonCell","PlugAvailable","Gewicht gram","Inkoopdoorlooptijd","Inkopersgroep","Supplychain planner",null,"OMID code","Opslagzone","LIG-code","Verzendkosten","Verzendmethode"]
["AX leveranciersnummer","Merk","Merklijn","Leveranciers artikelnummer","AX Inkooptekst","Inkoopkleur","DarwinMoverClass","EAN","AX Naam","Artikelgroep code","Taxon","SizeSupplier","SizeDescription","SizeWehkamp","QtyLowest","QtyMultiples","CurrencyCodePurchasePrice","PriceCAP","CVP","OVP","Scratchprice","CustomCode","ProductWeightSize","Battery","BatteryType","BatteryWeight","BatteryButtonCell","PlugAvailable","NetWeight","PurchaseLeadTime","BuyerGroup","SupplyChainPlanner","SalesSegment","OMID","StoreZone","LogisticItemGroup","ShippingCosts","WKShippingMethod","PreferredWarehouseIdentificationCode"]
[{"$f":"IF('1. Order'!F6=\"\",\"\",'1. Order'!F6)","v":{"$error":"#N/A"}},{"$f":"IF('1. Order'!G6=\"\",\"\",'1. Order'!G6)","v":""},{"$f":"IF('1. Order'!H6=\"\",\"\",'1. Order'!H6)","v":""},{"$f":"IF('1. Order'!I6=\"\",\"\",'1. Order'!I6)","v":""},{"$f":"IF('1. Order'!J6=\"\",\"\",'1. Order'!J6)","v":""},{"$f":"IF('1. Order'!K6=\"\",\"\",'1. Order'!K6)","v":""},{"$f":"IF('1. Order'!L6=\"\",\"\",'1. Order'!L6)","v":""},{"$f":"IF('1. Order'!M6=\"\",\"\",'1. Order'!M6)","v":""},{"$f":"IF('1. Order'!N6=\"\",\"\",'1. Order'!N6)","v":""},{"$f":"IF('1. Order'!O6=\"\",\"\",'1. Order'!O6)","v":{"$error":"#N/A"}},{"$f":"IF('1. Order'!P6=\"\",\"\",'1. Order'!P6)","v":{"$error":"#N/A"}},{"$f":"IF('1. Order'!Q6=\"\",\"\",'1. Order'!Q6)","v":""},{"$f":"IF('1. Order'!S6=\"\",\"\",'1. Order'!S6)","v":""},{"$f":"IF('1. Order'!T6=\"\",\"\",'1. Order'!T6)","v":""},{"$f":"IF('1. Order'!W6=\"\",\"\",'1. Order'!W6)","v":""},{"$f":"IF('1. Order'!X6=\"\",\"\",'1. Order'!X6)","v":""},{"$f":"IF('1. Order'!Y6=\"\",\"\",'1. Order'!Y6)","v":"EUR"},{"$f":"IF('1. Order'!Z6=\"\",\"\",'1. Order'!Z6)","v":""},{"$f":"IF('1. Order'!AA6=\"\",\"\",'1. Order'!AA6)","v":""},{"$f":"IF('1. Order'!AB6=\"\",\"\",'1. Order'!AB6)","v":""},null,{"$f":"IF('1. Order'!AT6=\"\",\"\",'1. Order'!AT6)","v":""},{"$f":"IF('1. Order'!AU6=\"\",\"\",'1. Order'!AU6)","v":""},null,null,null,null,null,null,null,{"$f":"IF('1. Order'!AY6=\"\",\"\",'1. Order'!AY6)","v":""},{"$f":"IF('1. Order'!AZ6=\"\",\"\",'1. Order'!AZ6)","v":""},{"$f":"IF('1. Order'!BA6=\"\",\"\",'1. Order'!BA6)","v":""},{"$f":"IF('1. Order'!BB6=\"\",\"\",'1. Order'!BB6)","v":""},{"$f":"IF('1. Order'!BD6=\"\",\"\",'1. Order'!BD6)","v":""},{"$f":"IF('1. Order'!BE6=\"\",\"\",'1. Order'!BE6)","v":""},{"$f":"IF('1. Order'!BF6=\"\",\"\",'1. Order'!BF6)","v":""},{"$f":"IF('1. Order'!BG6=\"\",\"\",'1. Order'!BG6)","v":""},{"$f":"IF('1. Order'!BH6=\"\",\"\",'1. Order'!BH6)","v":"ZWO"}]
[{"$f":"IF('1. Order'!F7=\"\",\"\",'1. Order'!F7)","v":{"$error":"#N/A"}},{"$f":"IF('1. Order'!G7=\"\",\"\",'1. Order'!G7)","v":""},{"$f":"IF('1. Order'!H7=\"\",\"\",'1. Order'!H7)","v":""},{"$f":"IF('1. Order'!I7=\"\",\"\",'1. Order'!I7)","v":""},{"$f":"IF('1. Order'!J7=\"\",\"\",'1. Order'!J7)","v":""},{"$f":"IF('1. Order'!K7=\"\",\"\",'1. Order'!K7)","v":""},{"$f":"IF('1. Order'!L7=\"\",\"\",'1. Order'!L7)","v":""},{"$f":"IF('1. Order'!M7=\"\",\"\",'1. Order'!M7)","v":""},{"$f":"IF('1. Order'!N7=\"\",\"\",'1. Order'!N7)","v":""},{"$f":"IF('1. Order'!O7=\"\",\"\",'1. Order'!O7)","v":{"$error":"#N/A"}},{"$f":"IF('1. Order'!P7=\"\",\"\",'1. Order'!P7)","v":{"$error":"#N/A"}},{"$f":"IF('1. Order'!Q7=\"\",\"\",'1. Order'!Q7)","v":""},{"$f":"IF('1. Order'!S7=\"\",\"\",'1. Order'!S7)","v":""},{"$f":"IF('1. Order'!T7=\"\",\"\",'1. Order'!T7)","v":""},{"$f":"IF('1. Order'!W7=\"\",\"\",'1. Order'!W7)","v":""},{"$f":"IF('1. Order'!X7=\"\",\"\",'1. Order'!X7)","v":""},{"$f":"IF('1. Order'!Y7=\"\",\"\",'1. Order'!Y7)","v":"EUR"},{"$f":"IF('1. Order'!Z7=\"\",\"\",'1. Order'!Z7)","v":""},{"$f":"IF('1. Order'!AA7=\"\",\"\",'1. Order'!AA7)","v":""},{"$f":"IF('1. Order'!AB7=\"\",\"\",'1. Order'!AB7)","v":""},null,{"$f":"IF('1. Order'!AT7=\"\",\"\",'1. Order'!AT7)","v":""},{"$f":"IF('1. Order'!AU7=\"\",\"\",'1. Order'!AU7)","v":""},null,null,null,null,null,null,null,{"$f":"IF('1. Order'!AY7=\"\",\"\",'1. Order'!AY7)","v":""},{"$f":"IF('1. Order'!AZ7=\"\",\"\",'1. Order'!AZ7)","v":""},{"$f":"IF('1. Order'!BA7=\"\",\"\",'1. Order'!BA7)","v":""},{"$f":"IF('1. Order'!BB7=\"\",\"\",'1. Order'!BB7)","v":""},{"$f":"IF('1. Order'!BD7=\"\",\"\",'1. Order'!BD7)","v":""},{"$f":"IF('1. Order'!BE7=\"\",\"\",'1. Order'!BE7)","v":""},{"$f":"IF('1. Order'!BF7=\"\",\"\",'1. Order'!BF7)","v":""},{"$f":"IF('1. Order'!BG7=\"\",\"\",'1. Order'!BG7)","v":""},{"$f":"IF('1. Order'!BH7=\"\",\"\",'1. Order'!BH7)","v":"ZWO"}]
[{"$f":"IF('1. Order'!F8=\"\",\"\",'1. Order'!F8)","v":{"$error":"#N/A"}},{"$f":"IF('1. Order'!G8=\"\",\"\",'1. Order'!G8)","v":""},{"$f":"IF('1. Order'!H8=\"\",\"\",'1. Order'!H8)","v":""},{"$f":"IF('1. Order'!I8=\"\",\"\",'1. Order'!I8)","v":""},{"$f":"IF('1. Order'!J8=\"\",\"\",'1. Order'!J8)","v":""},{"$f":"IF('1. Order'!K8=\"\",\"\",'1. Order'!K8)","v":""},{"$f":"IF('1. Order'!L8=\"\",\"\",'1. Order'!L8)","v":""},{"$f":"IF('1. Order'!M8=\"\",\"\",'1. Order'!M8)","v":""},{"$f":"IF('1. Order'!N8=\"\",\"\",'1. Order'!N8)","v":""},{"$f":"IF('1. Order'!O8=\"\",\"\",'1. Order'!O8)","v":{"$error":"#N/A"}},{"$f":"IF('1. Order'!P8=\"\",\"\",'1. Order'!P8)","v":{"$error":"#N/A"}},{"$f":"IF('1. Order'!Q8=\"\",\"\",'1. Order'!Q8)","v":""},{"$f":"IF('1. Order'!S8=\"\",\"\",'1. Order'!S8)","v":""},{"$f":"IF('1. Order'!T8=\"\",\"\",'1. Order'!T8)","v":""},{"$f":"IF('1. Order'!W8=\"\",\"\",'1. Order'!W8)","v":""},{"$f":"IF('1. Order'!X8=\"\",\"\",'1. Order'!X8)","v":""},{"$f":"IF('1. Order'!Y8=\"\",\"\",'1. Order'!Y8)","v":"EUR"},{"$f":"IF('1. Order'!Z8=\"\",\"\",'1. Order'!Z8)","v":""},{"$f":"IF('1. Order'!AA8=\"\",\"\",'1. Order'!AA8)","v":""},{"$f":"IF('1. Order'!AB8=\"\",\"\",'1. Order'!AB8)","v":""},null,{"$f":"IF('1. Order'!AT8=\"\",\"\",'1. Order'!AT8)","v":""},{"$f":"IF('1. Order'!AU8=\"\",\"\",'1. Order'!AU8)","v":""},null,null,null,null,null,null,null,{"$f":"IF('1. Order'!AY8=\"\",\"\",'1. Order'!AY8)","v":""},{"$f":"IF('1. Order'!AZ8=\"\",\"\",'1. Order'!AZ8)","v":""},{"$f":"IF('1. Order'!BA8=\"\",\"\",'1. Order'!BA8)","v":""},{"$f":"IF('1. Order'!BB8=\"\",\"\",'1. Order'!BB8)","v":""},{"$f":"IF('1. Order'!BD8=\"\",\"\",'1. Order'!BD8)","v":""},{"$f":"IF('1. Order'!BE8=\"\",\"\",'1. Order'!BE8)","v":""},{"$f":"IF('1. Order'!BF8=\"\",\"\",'1. Order'!BF8)","v":""},{"$f":"IF('1. Order'!BG8=\"\",\"\",'1. Order'!BG8)","v":""},{"$f":"IF('1. Order'!BH8=\"\",\"\",'1. Order'!BH8)","v":"ZWO"}]
[{"$f":"IF('1. Order'!F9=\"\",\"\",'1. Order'!F9)","v":{"$error":"#N/A"}},{"$f":"IF('1. Order'!G9=\"\",\"\",'1. Order'!G9)","v":""},{"$f":"IF('1. Order'!H9=\"\",\"\",'1. Order'!H9)","v":""},{"$f":"IF('1. Order'!I9=\"\",\"\",'1. Order'!I9)","v":""},{"$f":"IF('1. Order'!J9=\"\",\"\",'1. Order'!J9)","v":""},{"$f":"IF('1. Order'!K9=\"\",\"\",'1. Order'!K9)","v":""},{"$f":"IF('1. Order'!L9=\"\",\"\",'1. Order'!L9)","v":""},{"$f":"IF('1. Order'!M9=\"\",\"\",'1. Order'!M9)","v":""},{"$f":"IF('1. Order'!N9=\"\",\"\",'1. Order'!N9)","v":""},{"$f":"IF('1. Order'!O9=\"\",\"\",'1. Order'!O9)","v":{"$error":"#N/A"}},{"$f":"IF('1. Order'!P9=\"\",\"\",'1. Order'!P9)","v":{"$error":"#N/A"}},{"$f":"IF('1. Order'!Q9=\"\",\"\",'1. Order'!Q9)","v":""},{"$f":"IF('1. Order'!S9=\"\",\"\",'1. Order'!S9)","v":""},{"$f":"IF('1. Order'!T9=\"\",\"\",'1. Order'!T9)","v":""},{"$f":"IF('1. Order'!W9=\"\",\"\",'1. Order'!W9)","v":""},{"$f":"IF('1. Order'!X9=\"\",\"\",'1. Order'!X9)","v":""},{"$f":"IF('1. Order'!Y9=\"\",\"\",'1. Order'!Y9)","v":"EUR"},{"$f":"IF('1. Order'!Z9=\"\",\"\",'1. Order'!Z9)","v":""},{"$f":"IF('1. Order'!AA9=\"\",\"\",'1. Order'!AA9)","v":""},{"$f":"IF('1. Order'!AB9=\"\",\"\",'1. Order'!AB9)","v":""},null,{"$f":"IF('1. Order'!AT9=\"\",\"\",'1. Order'!AT9)","v":""},{"$f":"IF('1. Order'!AU9=\"\",\"\",'1. Order'!AU9)","v":""},null,null,null,null,null,null,null,{"$f":"IF('1. Order'!AY9=\"\",\"\",'1. Order'!AY9)","v":""},{"$f":"IF('1. Order'!AZ9=\"\",\"\",'1. Order'!AZ9)","v":""},{"$f":"IF('1. Order'!BA9=\"\",\"\",'1. Order'!BA9)","v":""},{"$f":"IF('1. Order'!BB9=\"\",\"\",'1. Order'!BB9)","v":""},{"$f":"IF('1. Order'!BD9=\"\",\"\",'1. Order'!BD9)","v":""},{"$f":"IF('1. Order'!BE9=\"\",\"\",'1. Order'!BE9)","v":""},{"$f":"IF('1. Order'!BF9=\"\",\"\",'1. Order'!BF9)","v":""},{"$f":"IF('1. Order'!BG9=\"\",\"\",'1. Order'!BG9)","v":""},{"$f":"IF('1. Order'!BH9=\"\",\"\",'1. Order'!BH9)","v":"ZWO"}]
[{"$f":"IF('1. Order'!F10=\"\",\"\",'1. Order'!F10)","v":{"$error":"#N/A"}},{"$f":"IF('1. Order'!G10=\"\",\"\",'1. Order'!G10)","v":""},{"$f":"IF('1. Order'!H10=\"\",\"\",'1. Order'!H10)","v":""},{"$f":"IF('1. Order'!I10=\"\",\"\",'1. Order'!I10)","v":""},{"$f":"IF('1. Order'!J10=\"\",\"\",'1. Order'!J10)","v":""},{"$f":"IF('1. Order'!K10=\"\",\"\",'1. Order'!K10)","v":""},{"$f":"IF('1. Order'!L10=\"\",\"\",'1. Order'!L10)","v":""},{"$f":"IF('1. Order'!M10=\"\",\"\",'1. Order'!M10)","v":""},{"$f":"IF('1. Order'!N10=\"\",\"\",'1. Order'!N10)","v":""},{"$f":"IF('1. Order'!O10=\"\",\"\",'1. Order'!O10)","v":{"$error":"#N/A"}},{"$f":"IF('1. Order'!P10=\"\",\"\",'1. Order'!P10)","v":{"$error":"#N/A"}},{"$f":"IF('1. Order'!Q10=\"\",\"\",'1. Order'!Q10)","v":""},{"$f":"IF('1. Order'!S10=\"\",\"\",'1. Order'!S10)","v":""},{"$f":"IF('1. Order'!T10=\"\",\"\",'1. Order'!T10)","v":""},{"$f":"IF('1. Order'!W10=\"\",\"\",'1. Order'!W10)","v":""},{"$f":"IF('1. Order'!X10=\"\",\"\",'1. Order'!X10)","v":""},{"$f":"IF('1. Order'!Y10=\"\",\"\",'1. Order'!Y10)","v":"EUR"},{"$f":"IF('1. Order'!Z10=\"\",\"\",'1. Order'!Z10)","v":""},{"$f":"IF('1. Order'!AA10=\"\",\"\",'1. Order'!AA10)","v":""},{"$f":"IF('1. Order'!AB10=\"\",\"\",'1. Order'!AB10)","v":""},null,{"$f":"IF('1. Order'!AT10=\"\",\"\",'1. Order'!AT10)","v":""},{"$f":"IF('1. Order'!AU10=\"\",\"\",'1. Order'!AU10)","v":""},null,null,null,null,null,null,null,{"$f":"IF('1. Order'!AY10=\"\",\"\",'1. Order'!AY10)","v":""},{"$f":"IF('1. Order'!AZ10=\"\",\"\",'1. Order'!AZ10)","v":""},{"$f":"IF('1. Order'!BA10=\"\",\"\",'1. Order'!BA10)","v":""},{"$f":"IF('1. Order'!BB10=\"\",\"\",'1. Order'!BB10)","v":""},{"$f":"IF('1. Order'!BD10=\"\",\"\",'1. Order'!BD10)","v":""},{"$f":"IF('1. Order'!BE10=\"\",\"\",'1. Order'!BE10)","v":""},{"$f":"IF('1. Order'!BF10=\"\",\"\",'1. Order'!BF10)","v":""},{"$f":"IF('1. Order'!BG10=\"\",\"\",'1. Order'!BG10)","v":""},{"$f":"IF('1. Order'!BH10=\"\",\"\",'1. Order'!BH10)","v":"ZWO"}]
[{"$f":"IF('1. Order'!F11=\"\",\"\",'1. Order'!F11)","v":{"$error":"#N/A"}},{"$f":"IF('1. Order'!G11=\"\",\"\",'1. Order'!G11)","v":""},{"$f":"IF('1. Order'!H11=\"\",\"\",'1. Order'!H11)","v":""},{"$f":"IF('1. Order'!I11=\"\",\"\",'1. Order'!I11)","v":""},{"$f":"IF('1. Order'!J11=\"\",\"\",'1. Order'!J11)","v":""},{"$f":"IF('1. Order'!K11=\"\",\"\",'1. Order'!K11)","v":""},{"$f":"IF('1. Order'!L11=\"\",\"\",'1. Order'!L11)","v":""},{"$f":"IF('1. Order'!M11=\"\",\"\",'1. Order'!M11)","v":""},{"$f":"IF('1. Order'!N11=\"\",\"\",'1. Order'!N11)","v":""},{"$f":"IF('1. Order'!O11=\"\",\"\",'1. Order'!O11)","v":{"$error":"#N/A"}},{"$f":"IF('1. Order'!P11=\"\",\"\",'1. Order'!P11)","v":{"$error":"#N/A"}},{"$f":"IF('1. Order'!Q11=\"\",\"\",'1. Order'!Q11)","v":""},{"$f":"IF('1. Order'!S11=\"\",\"\",'1. Order'!S11)","v":""},{"$f":"IF('1. Order'!T11=\"\",\"\",'1. Order'!T11)","v":""},{"$f":"IF('1. Order'!W11=\"\",\"\",'1. Order'!W11)","v":""},{"$f":"IF('1. Order'!X11=\"\",\"\",'1. Order'!X11)","v":""},{"$f":"IF('1. Order'!Y11=\"\",\"\",'1. Order'!Y11)","v":"EUR"},{"$f":"IF('1. Order'!Z11=\"\",\"\",'1. Order'!Z11)","v":""},{"$f":"IF('1. Order'!AA11=\"\",\"\",'1. Order'!AA11)","v":""},{"$f":"IF('1. Order'!AB11=\"\",\"\",'1. Order'!AB11)","v":""},null,{"$f":"IF('1. Order'!AT11=\"\",\"\",'1. Order'!AT11)","v":""},{"$f":"IF('1. Order'!AU11=\"\",\"\",'1. Order'!AU11)","v":""},null,null,null,null,null,null,null,{"$f":"IF('1. Order'!AY11=\"\",\"\",'1. Order'!AY11)","v":""},{"$f":"IF('1. Order'!AZ11=\"\",\"\",'1. Order'!AZ11)","v":""},{"$f":"IF('1. Order'!BA11=\"\",\"\",'1. Order'!BA11)","v":""},{"$f":"IF('1. Order'!BB11=\"\",\"\",'1. Order'!BB11)","v":""},{"$f":"IF('1. Order'!BD11=\"\",\"\",'1. Order'!BD11)","v":""},{"$f":"IF('1. Order'!BE11=\"\",\"\",'1. Order'!BE11)","v":""},{"$f":"IF('1. Order'!BF11=\"\",\"\",'1. Order'!BF11)","v":""},{"$f":"IF('1. Order'!BG11=\"\",\"\",'1. Order'!BG11)","v":""},{"$f":"IF('1. Order'!BH11=\"\",\"\",'1. Order'!BH11)","v":"ZWO"}]
[{"$f":"IF('1. Order'!F12=\"\",\"\",'1. Order'!F12)","v":{"$error":"#N/A"}},{"$f":"IF('1. Order'!G12=\"\",\"\",'1. Order'!G12)","v":""},{"$f":"IF('1. Order'!H12=\"\",\"\",'1. Order'!H12)","v":""},{"$f":"IF('1. Order'!I12=\"\",\"\",'1. Order'!I12)","v":""},{"$f":"IF('1. Order'!J12=\"\",\"\",'1. Order'!J12)","v":""},{"$f":"IF('1. Order'!K12=\"\",\"\",'1. Order'!K12)","v":""},{"$f":"IF('1. Order'!L12=\"\",\"\",'1. Order'!L12)","v":""},{"$f":"IF('1. Order'!M12=\"\",\"\",'1. Order'!M12)","v":""},{"$f":"IF('1. Order'!N12=\"\",\"\",'1. Order'!N12)","v":""},{"$f":"IF('1. Order'!O12=\"\",\"\",'1. Order'!O12)","v":{"$error":"#N/A"}},{"$f":"IF('1. Order'!P12=\"\",\"\",'1. Order'!P12)","v":{"$error":"#N/A"}},{"$f":"IF('1. Order'!Q12=\"\",\"\",'1. Order'!Q12)","v":""},{"$f":"IF('1. Order'!S12=\"\",\"\",'1. Order'!S12)","v":""},{"$f":"IF('1. Order'!T12=\"\",\"\",'1. Order'!T12)","v":""},{"$f":"IF('1. Order'!W12=\"\",\"\",'1. Order'!W12)","v":""},{"$f":"IF('1. Order'!X12=\"\",\"\",'1. Order'!X12)","v":""},{"$f":"IF('1. Order'!Y12=\"\",\"\",'1. Order'!Y12)","v":"EUR"},{"$f":"IF('1. Order'!Z12=\"\",\"\",'1. Order'!Z12)","v":""},{"$f":"IF('1. Order'!AA12=\"\",\"\",'1. Order'!AA12)","v":""},{"$f":"IF('1. Order'!AB12=\"\",\"\",'1. Order'!AB12)","v":""},null,{"$f":"IF('1. Order'!AT12=\"\",\"\",'1. Order'!AT12)","v":""},{"$f":"IF('1. Order'!AU12=\"\",\"\",'1. Order'!AU12)","v":""},null,null,null,null,null,null,null,{"$f":"IF('1. Order'!AY12=\"\",\"\",'1. Order'!AY12)","v":""},{"$f":"IF('1. Order'!AZ12=\"\",\"\",'1. Order'!AZ12)","v":""},{"$f":"IF('1. Order'!BA12=\"\",\"\",'1. Order'!BA12)","v":""},{"$f":"IF('1. Order'!BB12=\"\",\"\",'1. Order'!BB12)","v":""},{"$f":"IF('1. Order'!BD12=\"\",\"\",'1. Order'!BD12)","v":""},{"$f":"IF('1. Order'!BE12=\"\",\"\",'1. Order'!BE12)","v":""},{"$f":"IF('1. Order'!BF12=\"\",\"\",'1. Order'!BF12)","v":""},{"$f":"IF('1. Order'!BG12=\"\",\"\",'1. Order'!BG12)","v":""},{"$f":"IF('1. Order'!BH12=\"\",\"\",'1. Order'!BH12)","v":"ZWO"}]
[{"$f":"IF('1. Order'!F13=\"\",\"\",'1. Order'!F13)","v":{"$error":"#N/A"}},{"$f":"IF('1. Order'!G13=\"\",\"\",'1. Order'!G13)","v":""},{"$f":"IF('1. Order'!H13=\"\",\"\",'1. Order'!H13)","v":""},{"$f":"IF('1. Order'!I13=\"\",\"\",'1. Order'!I13)","v":""},{"$f":"IF('1. Order'!J13=\"\",\"\",'1. Order'!J13)","v":""},{"$f":"IF('1. Order'!K13=\"\",\"\",'1. Order'!K13)","v":""},{"$f":"IF('1. Order'!L13=\"\",\"\",'1. Order'!L13)","v":""},{"$f":"IF('1. Order'!M13=\"\",\"\",'1. Order'!M13)","v":""},{"$f":"IF('1. Order'!N13=\"\",\"\",'1. Order'!N13)","v":""},{"$f":"IF('1. Order'!O13=\"\",\"\",'1. Order'!O13)","v":{"$error":"#N/A"}},{"$f":"IF('1. Order'!P13=\"\",\"\",'1. Order'!P13)","v":{"$error":"#N/A"}},{"$f":"IF('1. Order'!Q13=\"\",\"\",'1. Order'!Q13)","v":""},{"$f":"IF('1. Order'!S13=\"\",\"\",'1. Order'!S13)","v":""},{"$f":"IF('1. Order'!T13=\"\",\"\",'1. Order'!T13)","v":""},{"$f":"IF('1. Order'!W13=\"\",\"\",'1. Order'!W13)","v":""},{"$f":"IF('1. Order'!X13=\"\",\"\",'1. Order'!X13)","v":""},{"$f":"IF('1. Order'!Y13=\"\",\"\",'1. Order'!Y13)","v":"EUR"},{"$f":"IF('1. Order'!Z13=\"\",\"\",'1. Order'!Z13)","v":""},{"$f":"IF('1. Order'!AA13=\"\",\"\",'1. Order'!AA13)","v":""},{"$f":"IF('1. Order'!AB13=\"\",\"\",'1. Order'!AB13)","v":""},null,{"$f":"IF('1. Order'!AT13=\"\",\"\",'1. Order'!AT13)","v":""},{"$f":"IF('1. Order'!AU13=\"\",\"\",'1. Order'!AU13)","v":""},null,null,null,null,null,null,null,{"$f":"IF('1. Order'!AY13=\"\",\"\",'1. Order'!AY13)","v":""},{"$f":"IF('1. Order'!AZ13=\"\",\"\",'1. Order'!AZ13)","v":""},{"$f":"IF('1. Order'!BA13=\"\",\"\",'1. Order'!BA13)","v":""},{"$f":"IF('1. Order'!BB13=\"\",\"\",'1. Order'!BB13)","v":""},{"$f":"IF('1. Order'!BD13=\"\",\"\",'1. Order'!BD13)","v":""},{"$f":"IF('1. Order'!BE13=\"\",\"\",'1. Order'!BE13)","v":""},{"$f":"IF('1. Order'!BF13=\"\",\"\",'1. Order'!BF13)","v":""},{"$f":"IF('1. Order'!BG13=\"\",\"\",'1. Order'!BG13)","v":""},{"$f":"IF('1. Order'!BH13=\"\",\"\",'1. Order'!BH13)","v":"ZWO"}]
[{"$f":"IF('1. Order'!F14=\"\",\"\",'1. Order'!F14)","v":{"$error":"#N/A"}},{"$f":"IF('1. Order'!G14=\"\",\"\",'1. Order'!G14)","v":""},{"$f":"IF('1. Order'!H14=\"\",\"\",'1. Order'!H14)","v":""},{"$f":"IF('1. Order'!I14=\"\",\"\",'1. Order'!I14)","v":""},{"$f":"IF('1. Order'!J14=\"\",\"\",'1. Order'!J14)","v":""},{"$f":"IF('1. Order'!K14=\"\",\"\",'1. Order'!K14)","v":""},{"$f":"IF('1. Order'!L14=\"\",\"\",'1. Order'!L14)","v":""},{"$f":"IF('1. Order'!M14=\"\",\"\",'1. Order'!M14)","v":""},{"$f":"IF('1. Order'!N14=\"\",\"\",'1. Order'!N14)","v":""},{"$f":"IF('1. Order'!O14=\"\",\"\",'1. Order'!O14)","v":{"$error":"#N/A"}},{"$f":"IF('1. Order'!P14=\"\",\"\",'1. Order'!P14)","v":{"$error":"#N/A"}},{"$f":"IF('1. Order'!Q14=\"\",\"\",'1. Order'!Q14)","v":""},{"$f":"IF('1. Order'!S14=\"\",\"\",'1. Order'!S14)","v":""},{"$f":"IF('1. Order'!T14=\"\",\"\",'1. Order'!T14)","v":""},{"$f":"IF('1. Order'!W14=\"\",\"\",'1. Order'!W14)","v":""},{"$f":"IF('1. Order'!X14=\"\",\"\",'1. Order'!X14)","v":""},{"$f":"IF('1. Order'!Y14=\"\",\"\",'1. Order'!Y14)","v":"EUR"},{"$f":"IF('1. Order'!Z14=\"\",\"\",'1. Order'!Z14)","v":""},{"$f":"IF('1. Order'!AA14=\"\",\"\",'1. Order'!AA14)","v":""},{"$f":"IF('1. Order'!AB14=\"\",\"\",'1. Order'!AB14)","v":""},null,{"$f":"IF('1. Order'!AT14=\"\",\"\",'1. Order'!AT14)","v":""},{"$f":"IF('1. Order'!AU14=\"\",\"\",'1. Order'!AU14)","v":""},null,null,null,null,null,null,null,{"$f":"IF('1. Order'!AY14=\"\",\"\",'1. Order'!AY14)","v":""},{"$f":"IF('1. Order'!AZ14=\"\",\"\",'1. Order'!AZ14)","v":""},{"$f":"IF('1. Order'!BA14=\"\",\"\",'1. Order'!BA14)","v":""},{"$f":"IF('1. Order'!BB14=\"\",\"\",'1. Order'!BB14)","v":""},{"$f":"IF('1. Order'!BD14=\"\",\"\",'1. Order'!BD14)","v":""},{"$f":"IF('1. Order'!BE14=\"\",\"\",'1. Order'!BE14)","v":""},{"$f":"IF('1. Order'!BF14=\"\",\"\",'1. Order'!BF14)","v":""},{"$f":"IF('1. Order'!BG14=\"\",\"\",'1. Order'!BG14)","v":""},{"$f":"IF('1. Order'!BH14=\"\",\"\",'1. Order'!BH14)","v":"ZWO"}]
[{"$f":"IF('1. Order'!F15=\"\",\"\",'1. Order'!F15)","v":{"$error":"#N/A"}},{"$f":"IF('1. Order'!G15=\"\",\"\",'1. Order'!G15)","v":""},{"$f":"IF('1. Order'!H15=\"\",\"\",'1. Order'!H15)","v":""},{"$f":"IF('1. Order'!I15=\"\",\"\",'1. Order'!I15)","v":""},{"$f":"IF('1. Order'!J15=\"\",\"\",'1. Order'!J15)","v":""},{"$f":"IF('1. Order'!K15=\"\",\"\",'1. Order'!K15)","v":""},{"$f":"IF('1. Order'!L15=\"\",\"\",'1. Order'!L15)","v":""},{"$f":"IF('1. Order'!M15=\"\",\"\",'1. Order'!M15)","v":""},{"$f":"IF('1. Order'!N15=\"\",\"\",'1. Order'!N15)","v":""},{"$f":"IF('1. Order'!O15=\"\",\"\",'1. Order'!O15)","v":{"$error":"#N/A"}},{"$f":"IF('1. Order'!P15=\"\",\"\",'1. Order'!P15)","v":{"$error":"#N/A"}},{"$f":"IF('1. Order'!Q15=\"\",\"\",'1. Order'!Q15)","v":""},{"$f":"IF('1. Order'!S15=\"\",\"\",'1. Order'!S15)","v":""},{"$f":"IF('1. Order'!T15=\"\",\"\",'1. Order'!T15)","v":""},{"$f":"IF('1. Order'!W15=\"\",\"\",'1. Order'!W15)","v":""},{"$f":"IF('1. Order'!X15=\"\",\"\",'1. Order'!X15)","v":""},{"$f":"IF('1. Order'!Y15=\"\",\"\",'1. Order'!Y15)","v":"EUR"},{"$f":"IF('1. Order'!Z15=\"\",\"\",'1. Order'!Z15)","v":""},{"$f":"IF('1. Order'!AA15=\"\",\"\",'1. Order'!AA15)","v":""},{"$f":"IF('1. Order'!AB15=\"\",\"\",'1. Order'!AB15)","v":""},null,{"$f":"IF('1. Order'!AT15=\"\",\"\",'1. Order'!AT15)","v":""},{"$f":"IF('1. Order'!AU15=\"\",\"\",'1. Order'!AU15)","v":""},null,null,null,null,null,null,null,{"$f":"IF('1. Order'!AY15=\"\",\"\",'1. Order'!AY15)","v":""},{"$f":"IF('1. Order'!AZ15=\"\",\"\",'1. Order'!AZ15)","v":""},{"$f":"IF('1. Order'!BA15=\"\",\"\",'1. Order'!BA15)","v":""},{"$f":"IF('1. Order'!BB15=\"\",\"\",'1. Order'!BB15)","v":""},{"$f":"IF('1. Order'!BD15=\"\",\"\",'1. Order'!BD15)","v":""},{"$f":"IF('1. Order'!BE15=\"\",\"\",'1. Order'!BE15)","v":""},{"$f":"IF('1. Order'!BF15=\"\",\"\",'1. Order'!BF15)","v":""},{"$f":"IF('1. Order'!BG15=\"\",\"\",'1. Order'!BG15)","v":""},{"$f":"IF('1. Order'!BH15=\"\",\"\",'1. Order'!BH15)","v":"ZWO"}]
[{"$f":"IF('1. Order'!F16=\"\",\"\",'1. Order'!F16)","v":{"$error":"#N/A"}},{"$f":"IF('1. Order'!G16=\"\",\"\",'1. Order'!G16)","v":""},{"$f":"IF('1. Order'!H16=\"\",\"\",'1. Order'!H16)","v":""},{"$f":"IF('1. Order'!I16=\"\",\"\",'1. Order'!I16)","v":""},{"$f":"IF('1. Order'!J16=\"\",\"\",'1. Order'!J16)","v":""},{"$f":"IF('1. Order'!K16=\"\",\"\",'1. Order'!K16)","v":""},{"$f":"IF('1. Order'!L16=\"\",\"\",'1. Order'!L16)","v":""},{"$f":"IF('1. Order'!M16=\"\",\"\",'1. Order'!M16)","v":""},{"$f":"IF('1. Order'!N16=\"\",\"\",'1. Order'!N16)","v":""},{"$f":"IF('1. Order'!O16=\"\",\"\",'1. Order'!O16)","v":{"$error":"#N/A"}},{"$f":"IF('1. Order'!P16=\"\",\"\",'1. Order'!P16)","v":{"$error":"#N/A"}},{"$f":"IF('1. Order'!Q16=\"\",\"\",'1. Order'!Q16)","v":""},{"$f":"IF('1. Order'!S16=\"\",\"\",'1. Order'!S16)","v":""},{"$f":"IF('1. Order'!T16=\"\",\"\",'1. Order'!T16)","v":""},{"$f":"IF('1. Order'!W16=\"\",\"\",'1. Order'!W16)","v":""},{"$f":"IF('1. Order'!X16=\"\",\"\",'1. Order'!X16)","v":""},{"$f":"IF('1. Order'!Y16=\"\",\"\",'1. Order'!Y16)","v":"EUR"},{"$f":"IF('1. Order'!Z16=\"\",\"\",'1. Order'!Z16)","v":""},{"$f":"IF('1. Order'!AA16=\"\",\"\",'1. Order'!AA16)","v":""},{"$f":"IF('1. Order'!AB16=\"\",\"\",'1. Order'!AB16)","v":""},null,{"$f":"IF('1. Order'!AT16=\"\",\"\",'1. Order'!AT16)","v":""},{"$f":"IF('1. Order'!AU16=\"\",\"\",'1. Order'!AU16)","v":""},null,null,null,null,null,null,null,{"$f":"IF('1. Order'!AY16=\"\",\"\",'1. Order'!AY16)","v":""},{"$f":"IF('1. Order'!AZ16=\"\",\"\",'1. Order'!AZ16)","v":""},{"$f":"IF('1. Order'!BA16=\"\",\"\",'1. Order'!BA16)","v":""},{"$f":"IF('1. Order'!BB16=\"\",\"\",'1. Order'!BB16)","v":""},{"$f":"IF('1. Order'!BD16=\"\",\"\",'1. Order'!BD16)","v":""},{"$f":"IF('1. Order'!BE16=\"\",\"\",'1. Order'!BE16)","v":""},{"$f":"IF('1. Order'!BF16=\"\",\"\",'1. Order'!BF16)","v":""},{"$f":"IF('1. Order'!BG16=\"\",\"\",'1. Order'!BG16)","v":""},{"$f":"IF('1. Order'!BH16=\"\",\"\",'1. Order'!BH16)","v":"ZWO"}]
[{"$f":"IF('1. Order'!F17=\"\",\"\",'1. Order'!F17)","v":{"$error":"#N/A"}},{"$f":"IF('1. Order'!G17=\"\",\"\",'1. Order'!G17)","v":""},{"$f":"IF('1. Order'!H17=\"\",\"\",'1. Order'!H17)","v":""},{"$f":"IF('1. Order'!I17=\"\",\"\",'1. Order'!I17)","v":""},{"$f":"IF('1. Order'!J17=\"\",\"\",'1. Order'!J17)","v":""},{"$f":"IF('1. Order'!K17=\"\",\"\",'1. Order'!K17)","v":""},{"$f":"IF('1. Order'!L17=\"\",\"\",'1. Order'!L17)","v":""},{"$f":"IF('1. Order'!M17=\"\",\"\",'1. Order'!M17)","v":""},{"$f":"IF('1. Order'!N17=\"\",\"\",'1. Order'!N17)","v":""},{"$f":"IF('1. Order'!O17=\"\",\"\",'1. Order'!O17)","v":{"$error":"#N/A"}},{"$f":"IF('1. Order'!P17=\"\",\"\",'1. Order'!P17)","v":{"$error":"#N/A"}},{"$f":"IF('1. Order'!Q17=\"\",\"\",'1. Order'!Q17)","v":""},{"$f":"IF('1. Order'!S17=\"\",\"\",'1. Order'!S17)","v":""},{"$f":"IF('1. Order'!T17=\"\",\"\",'1. Order'!T17)","v":""},{"$f":"IF('1. Order'!W17=\"\",\"\",'1. Order'!W17)","v":""},{"$f":"IF('1. Order'!X17=\"\",\"\",'1. Order'!X17)","v":""},{"$f":"IF('1. Order'!Y17=\"\",\"\",'1. Order'!Y17)","v":"EUR"},{"$f":"IF('1. Order'!Z17=\"\",\"\",'1. Order'!Z17)","v":""},{"$f":"IF('1. Order'!AA17=\"\",\"\",'1. Order'!AA17)","v":""},{"$f":"IF('1. Order'!AB17=\"\",\"\",'1. Order'!AB17)","v":""},null,{"$f":"IF('1. Order'!AT17=\"\",\"\",'1. Order'!AT17)","v":""},{"$f":"IF('1. Order'!AU17=\"\",\"\",'1. Order'!AU17)","v":""},null,null,null,null,null,null,null,{"$f":"IF('1. Order'!AY17=\"\",\"\",'1. Order'!AY17)","v":""},{"$f":"IF('1. Order'!AZ17=\"\",\"\",'1. Order'!AZ17)","v":""},{"$f":"IF('1. Order'!BA17=\"\",\"\",'1. Order'!BA17)","v":""},{"$f":"IF('1. Order'!BB17=\"\",\"\",'1. Order'!BB17)","v":""},{"$f":"IF('1. Order'!BD17=\"\",\"\",'1. Order'!BD17)","v":""},{"$f":"IF('1. Order'!BE17=\"\",\"\",'1. Order'!BE17)","v":""},{"$f":"IF('1. Order'!BF17=\"\",\"\",'1. Order'!BF17)","v":""},{"$f":"IF('1. Order'!BG17=\"\",\"\",'1. Order'!BG17)","v":""},{"$f":"IF('1. Order'!BH17=\"\",\"\",'1. Order'!BH17)","v":"ZWO"}]
[{"$f":"IF('1. Order'!F18=\"\",\"\",'1. Order'!F18)","v":{"$error":"#N/A"}},{"$f":"IF('1. Order'!G18=\"\",\"\",'1. Order'!G18)","v":""},{"$f":"IF('1. Order'!H18=\"\",\"\",'1. Order'!H18)","v":""},{"$f":"IF('1. Order'!I18=\"\",\"\",'1. Order'!I18)","v":""},{"$f":"IF('1. Order'!J18=\"\",\"\",'1. Order'!J18)","v":""},{"$f":"IF('1. Order'!K18=\"\",\"\",'1. Order'!K18)","v":""},{"$f":"IF('1. Order'!L18=\"\",\"\",'1. Order'!L18)","v":""},{"$f":"IF('1. Order'!M18=\"\",\"\",'1. Order'!M18)","v":""},{"$f":"IF('1. Order'!N18=\"\",\"\",'1. Order'!N18)","v":""},{"$f":"IF('1. Order'!O18=\"\",\"\",'1. Order'!O18)","v":{"$error":"#N/A"}},{"$f":"IF('1. Order'!P18=\"\",\"\",'1. Order'!P18)","v":{"$error":"#N/A"}},{"$f":"IF('1. Order'!Q18=\"\",\"\",'1. Order'!Q18)","v":""},{"$f":"IF('1. Order'!S18=\"\",\"\",'1. Order'!S18)","v":""},{"$f":"IF('1. Order'!T18=\"\",\"\",'1. Order'!T18)","v":""},{"$f":"IF('1. Order'!W18=\"\",\"\",'1. Order'!W18)","v":""},{"$f":"IF('1. Order'!X18=\"\",\"\",'1. Order'!X18)","v":""},{"$f":"IF('1. Order'!Y18=\"\",\"\",'1. Order'!Y18)","v":"EUR"},{"$f":"IF('1. Order'!Z18=\"\",\"\",'1. Order'!Z18)","v":""},{"$f":"IF('1. Order'!AA18=\"\",\"\",'1. Order'!AA18)","v":""},{"$f":"IF('1. Order'!AB18=\"\",\"\",'1. Order'!AB18)","v":""},null,{"$f":"IF('1. Order'!AT18=\"\",\"\",'1. Order'!AT18)","v":""},{"$f":"IF('1. Order'!AU18=\"\",\"\",'1. Order'!AU18)","v":""},null,null,null,null,null,null,null,{"$f":"IF('1. Order'!AY18=\"\",\"\",'1. Order'!AY18)","v":""},{"$f":"IF('1. Order'!AZ18=\"\",\"\",'1. Order'!AZ18)","v":""},{"$f":"IF('1. Order'!BA18=\"\",\"\",'1. Order'!BA18)","v":""},{"$f":"IF('1. Order'!BB18=\"\",\"\",'1. Order'!BB18)","v":""},{"$f":"IF('1. Order'!BD18=\"\",\"\",'1. Order'!BD18)","v":""},{"$f":"IF('1. Order'!BE18=\"\",\"\",'1. Order'!BE18)","v":""},{"$f":"IF('1. Order'!BF18=\"\",\"\",'1. Order'!BF18)","v":""},{"$f":"IF('1. Order'!BG18=\"\",\"\",'1. Order'!BG18)","v":""},{"$f":"IF('1. Order'!BH18=\"\",\"\",'1. Order'!BH18)","v":"ZWO"}]
[{"$f":"IF('1. Order'!F19=\"\",\"\",'1. Order'!F19)","v":{"$error":"#N/A"}},{"$f":"IF('1. Order'!G19=\"\",\"\",'1. Order'!G19)","v":""},{"$f":"IF('1. Order'!H19=\"\",\"\",'1. Order'!H19)","v":""},{"$f":"IF('1. Order'!I19=\"\",\"\",'1. Order'!I19)","v":""},{"$f":"IF('1. Order'!J19=\"\",\"\",'1. Order'!J19)","v":""},{"$f":"IF('1. Order'!K19=\"\",\"\",'1. Order'!K19)","v":""},{"$f":"IF('1. Order'!L19=\"\",\"\",'1. Order'!L19)","v":""},{"$f":"IF('1. Order'!M19=\"\",\"\",'1. Order'!M19)","v":""},{"$f":"IF('1. Order'!N19=\"\",\"\",'1. Order'!N19)","v":""},{"$f":"IF('1. Order'!O19=\"\",\"\",'1. Order'!O19)","v":{"$error":"#N/A"}},{"$f":"IF('1. Order'!P19=\"\",\"\",'1. Order'!P19)","v":{"$error":"#N/A"}},{"$f":"IF('1. Order'!Q19=\"\",\"\",'1. Order'!Q19)","v":""},{"$f":"IF('1. Order'!S19=\"\",\"\",'1. Order'!S19)","v":""},{"$f":"IF('1. Order'!T19=\"\",\"\",'1. Order'!T19)","v":""},{"$f":"IF('1. Order'!W19=\"\",\"\",'1. Order'!W19)","v":""},{"$f":"IF('1. Order'!X19=\"\",\"\",'1. Order'!X19)","v":""},{"$f":"IF('1. Order'!Y19=\"\",\"\",'1. Order'!Y19)","v":"EUR"},{"$f":"IF('1. Order'!Z19=\"\",\"\",'1. Order'!Z19)","v":""},{"$f":"IF('1. Order'!AA19=\"\",\"\",'1. Order'!AA19)","v":""},{"$f":"IF('1. Order'!AB19=\"\",\"\",'1. Order'!AB19)","v":""},null,{"$f":"IF('1. Order'!AT19=\"\",\"\",'1. Order'!AT19)","v":""},{"$f":"IF('1. Order'!AU19=\"\",\"\",'1. Order'!AU19)","v":""},null,null,null,null,null,null,null,{"$f":"IF('1. Order'!AY19=\"\",\"\",'1. Order'!AY19)","v":""},{"$f":"IF('1. Order'!AZ19=\"\",\"\",'1. Order'!AZ19)","v":""},{"$f":"IF('1. Order'!BA19=\"\",\"\",'1. Order'!BA19)","v":""},{"$f":"IF('1. Order'!BB19=\"\",\"\",'1. Order'!BB19)","v":""},{"$f":"IF('1. Order'!BD19=\"\",\"\",'1. Order'!BD19)","v":""},{"$f":"IF('1. Order'!BE19=\"\",\"\",'1. Order'!BE19)","v":""},{"$f":"IF('1. Order'!BF19=\"\",\"\",'1. Order'!BF19)","v":""},{"$f":"IF('1. Order'!BG19=\"\",\"\",'1. Order'!BG19)","v":""},{"$f":"IF('1. Order'!BH19=\"\",\"\",'1. Order'!BH19)","v":"ZWO"}]
[{"$f":"IF('1. Order'!F20=\"\",\"\",'1. Order'!F20)","v":{"$error":"#N/A"}},{"$f":"IF('1. Order'!G20=\"\",\"\",'1. Order'!G20)","v":""},{"$f":"IF('1. Order'!H20=\"\",\"\",'1. Order'!H20)","v":""},{"$f":"IF('1. Order'!I20=\"\",\"\",'1. Order'!I20)","v":""},{"$f":"IF('1. Order'!J20=\"\",\"\",'1. Order'!J20)","v":""},{"$f":"IF('1. Order'!K20=\"\",\"\",'1. Order'!K20)","v":""},{"$f":"IF('1. Order'!L20=\"\",\"\",'1. Order'!L20)","v":""},{"$f":"IF('1. Order'!M20=\"\",\"\",'1. Order'!M20)","v":""},{"$f":"IF('1. Order'!N20=\"\",\"\",'1. Order'!N20)","v":""},{"$f":"IF('1. Order'!O20=\"\",\"\",'1. Order'!O20)","v":{"$error":"#N/A"}},{"$f":"IF('1. Order'!P20=\"\",\"\",'1. Order'!P20)","v":{"$error":"#N/A"}},{"$f":"IF('1. Order'!Q20=\"\",\"\",'1. Order'!Q20)","v":""},{"$f":"IF('1. Order'!S20=\"\",\"\",'1. Order'!S20)","v":""},{"$f":"IF('1. Order'!T20=\"\",\"\",'1. Order'!T20)","v":""},{"$f":"IF('1. Order'!W20=\"\",\"\",'1. Order'!W20)","v":""},{"$f":"IF('1. Order'!X20=\"\",\"\",'1. Order'!X20)","v":""},{"$f":"IF('1. Order'!Y20=\"\",\"\",'1. Order'!Y20)","v":"EUR"},{"$f":"IF('1. Order'!Z20=\"\",\"\",'1. Order'!Z20)","v":""},{"$f":"IF('1. Order'!AA20=\"\",\"\",'1. Order'!AA20)","v":""},{"$f":"IF('1. Order'!AB20=\"\",\"\",'1. Order'!AB20)","v":""},null,{"$f":"IF('1. Order'!AT20=\"\",\"\",'1. Order'!AT20)","v":""},{"$f":"IF('1. Order'!AU20=\"\",\"\",'1. Order'!AU20)","v":""},null,null,null,null,null,null,null,{"$f":"IF('1. Order'!AY20=\"\",\"\",'1. Order'!AY20)","v":""},{"$f":"IF('1. Order'!AZ20=\"\",\"\",'1. Order'!AZ20)","v":""},{"$f":"IF('1. Order'!BA20=\"\",\"\",'1. Order'!BA20)","v":""},{"$f":"IF('1. Order'!BB20=\"\",\"\",'1. Order'!BB20)","v":""},{"$f":"IF('1. Order'!BD20=\"\",\"\",'1. Order'!BD20)","v":""},{"$f":"IF('1. Order'!BE20=\"\",\"\",'1. Order'!BE20)","v":""},{"$f":"IF('1. Order'!BF20=\"\",\"\",'1. Order'!BF20)","v":""},{"$f":"IF('1. Order'!BG20=\"\",\"\",'1. Order'!BG20)","v":""},{"$f":"IF('1. Order'!BH20=\"\",\"\",'1. Order'!BH20)","v":"ZWO"}]
[{"$f":"IF('1. Order'!F21=\"\",\"\",'1. Order'!F21)","v":{"$error":"#N/A"}},{"$f":"IF('1. Order'!G21=\"\",\"\",'1. Order'!G21)","v":""},{"$f":"IF('1. Order'!H21=\"\",\"\",'1. Order'!H21)","v":""},{"$f":"IF('1. Order'!I21=\"\",\"\",'1. Order'!I21)","v":""},{"$f":"IF('1. Order'!J21=\"\",\"\",'1. Order'!J21)","v":""},{"$f":"IF('1. Order'!K21=\"\",\"\",'1. Order'!K21)","v":""},{"$f":"IF('1. Order'!L21=\"\",\"\",'1. Order'!L21)","v":""},{"$f":"IF('1. Order'!M21=\"\",\"\",'1. Order'!M21)","v":""},{"$f":"IF('1. Order'!N21=\"\",\"\",'1. Order'!N21)","v":""},{"$f":"IF('1. Order'!O21=\"\",\"\",'1. Order'!O21)","v":{"$error":"#N/A"}},{"$f":"IF('1. Order'!P21=\"\",\"\",'1. Order'!P21)","v":{"$error":"#N/A"}},{"$f":"IF('1. Order'!Q21=\"\",\"\",'1. Order'!Q21)","v":""},{"$f":"IF('1. Order'!S21=\"\",\"\",'1. Order'!S21)","v":""},{"$f":"IF('1. Order'!T21=\"\",\"\",'1. Order'!T21)","v":""},{"$f":"IF('1. Order'!W21=\"\",\"\",'1. Order'!W21)","v":""},{"$f":"IF('1. Order'!X21=\"\",\"\",'1. Order'!X21)","v":""},{"$f":"IF('1. Order'!Y21=\"\",\"\",'1. Order'!Y21)","v":"EUR"},{"$f":"IF('1. Order'!Z21=\"\",\"\",'1. Order'!Z21)","v":""},{"$f":"IF('1. Order'!AA21=\"\",\"\",'1. Order'!AA21)","v":""},{"$f":"IF('1. Order'!AB21=\"\",\"\",'1. Order'!AB21)","v":""},null,{"$f":"IF('1. Order'!AT21=\"\",\"\",'1. Order'!AT21)","v":""},{"$f":"IF('1. Order'!AU21=\"\",\"\",'1. Order'!AU21)","v":""},null,null,null,null,null,null,null,{"$f":"IF('1. Order'!AY21=\"\",\"\",'1. Order'!AY21)","v":""},{"$f":"IF('1. Order'!AZ21=\"\",\"\",'1. Order'!AZ21)","v":""},{"$f":"IF('1. Order'!BA21=\"\",\"\",'1. Order'!BA21)","v":""},{"$f":"IF('1. Order'!BB21=\"\",\"\",'1. Order'!BB21)","v":""},{"$f":"IF('1. Order'!BD21=\"\",\"\",'1. Order'!BD21)","v":""},{"$f":"IF('1. Order'!BE21=\"\",\"\",'1. Order'!BE21)","v":""},{"$f":"IF('1. Order'!BF21=\"\",\"\",'1. Order'!BF21)","v":""},{"$f":"IF('1. Order'!BG21=\"\",\"\",'1. Order'!BG21)","v":""},{"$f":"IF('1. Order'!BH21=\"\",\"\",'1. Order'!BH21)","v":"ZWO"}]
[{"$f":"IF('1. Order'!F22=\"\",\"\",'1. Order'!F22)","v":{"$error":"#N/A"}},{"$f":"IF('1. Order'!G22=\"\",\"\",'1. Order'!G22)","v":""},{"$f":"IF('1. Order'!H22=\"\",\"\",'1. Order'!H22)","v":""},{"$f":"IF('1. Order'!I22=\"\",\"\",'1. Order'!I22)","v":""},{"$f":"IF('1. Order'!J22=\"\",\"\",'1. Order'!J22)","v":""},{"$f":"IF('1. Order'!K22=\"\",\"\",'1. Order'!K22)","v":""},{"$f":"IF('1. Order'!L22=\"\",\"\",'1. Order'!L22)","v":""},{"$f":"IF('1. Order'!M22=\"\",\"\",'1. Order'!M22)","v":""},{"$f":"IF('1. Order'!N22=\"\",\"\",'1. Order'!N22)","v":""},{"$f":"IF('1. Order'!O22=\"\",\"\",'1. Order'!O22)","v":{"$error":"#N/A"}},{"$f":"IF('1. Order'!P22=\"\",\"\",'1. Order'!P22)","v":{"$error":"#N/A"}},{"$f":"IF('1. Order'!Q22=\"\",\"\",'1. Order'!Q22)","v":""},{"$f":"IF('1. Order'!S22=\"\",\"\",'1. Order'!S22)","v":""},{"$f":"IF('1. Order'!T22=\"\",\"\",'1. Order'!T22)","v":""},{"$f":"IF('1. Order'!W22=\"\",\"\",'1. Order'!W22)","v":""},{"$f":"IF('1. Order'!X22=\"\",\"\",'1. Order'!X22)","v":""},{"$f":"IF('1. Order'!Y22=\"\",\"\",'1. Order'!Y22)","v":"EUR"},{"$f":"IF('1. Order'!Z22=\"\",\"\",'1. Order'!Z22)","v":""},{"$f":"IF('1. Order'!AA22=\"\",\"\",'1. Order'!AA22)","v":""},{"$f":"IF('1. Order'!AB22=\"\",\"\",'1. Order'!AB22)","v":""},null,{"$f":"IF('1. Order'!AT22=\"\",\"\",'1. Order'!AT22)","v":""},{"$f":"IF('1. Order'!AU22=\"\",\"\",'1. Order'!AU22)","v":""},null,null,null,null,null,null,null,{"$f":"IF('1. Order'!AY22=\"\",\"\",'1. Order'!AY22)","v":""},{"$f":"IF('1. Order'!AZ22=\"\",\"\",'1. Order'!AZ22)","v":""},{"$f":"IF('1. Order'!BA22=\"\",\"\",'1. Order'!BA22)","v":""},{"$f":"IF('1. Order'!BB22=\"\",\"\",'1. Order'!BB22)","v":""},{"$f":"IF('1. Order'!BD22=\"\",\"\",'1. Order'!BD22)","v":""},{"$f":"IF('1. Order'!BE22=\"\",\"\",'1. Order'!BE22)","v":""},{"$f":"IF('1. Order'!BF22=\"\",\"\",'1. Order'!BF22)","v":""},{"$f":"IF('1. Order'!BG22=\"\",\"\",'1. Order'!BG22)","v":""},{"$f":"IF('1. Order'!BH22=\"\",\"\",'1. Order'!BH22)","v":"ZWO"}]
[{"$f":"IF('1. Order'!F23=\"\",\"\",'1. Order'!F23)","v":{"$error":"#N/A"}},{"$f":"IF('1. Order'!G23=\"\",\"\",'1. Order'!G23)","v":""},{"$f":"IF('1. Order'!H23=\"\",\"\",'1. Order'!H23)","v":""},{"$f":"IF('1. Order'!I23=\"\",\"\",'1. Order'!I23)","v":""},{"$f":"IF('1. Order'!J23=\"\",\"\",'1. Order'!J23)","v":""},{"$f":"IF('1. Order'!K23=\"\",\"\",'1. Order'!K23)","v":""},{"$f":"IF('1. Order'!L23=\"\",\"\",'1. Order'!L23)","v":""},{"$f":"IF('1. Order'!M23=\"\",\"\",'1. Order'!M23)","v":""},{"$f":"IF('1. Order'!N23=\"\",\"\",'1. Order'!N23)","v":""},{"$f":"IF('1. Order'!O23=\"\",\"\",'1. Order'!O23)","v":{"$error":"#N/A"}},{"$f":"IF('1. Order'!P23=\"\",\"\",'1. Order'!P23)","v":{"$error":"#N/A"}},{"$f":"IF('1. Order'!Q23=\"\",\"\",'1. Order'!Q23)","v":""},{"$f":"IF('1. Order'!S23=\"\",\"\",'1. Order'!S23)","v":""},{"$f":"IF('1. Order'!T23=\"\",\"\",'1. Order'!T23)","v":""},{"$f":"IF('1. Order'!W23=\"\",\"\",'1. Order'!W23)","v":""},{"$f":"IF('1. Order'!X23=\"\",\"\",'1. Order'!X23)","v":""},{"$f":"IF('1. Order'!Y23=\"\",\"\",'1. Order'!Y23)","v":"EUR"},{"$f":"IF('1. Order'!Z23=\"\",\"\",'1. Order'!Z23)","v":""},{"$f":"IF('1. Order'!AA23=\"\",\"\",'1. Order'!AA23)","v":""},{"$f":"IF('1. Order'!AB23=\"\",\"\",'1. Order'!AB23)","v":""},null,{"$f":"IF('1. Order'!AT23=\"\",\"\",'1. Order'!AT23)","v":""},{"$f":"IF('1. Order'!AU23=\"\",\"\",'1. Order'!AU23)","v":""},null,null,null,null,null,null,null,{"$f":"IF('1. Order'!AY23=\"\",\"\",'1. Order'!AY23)","v":""},{"$f":"IF('1. Order'!AZ23=\"\",\"\",'1. Order'!AZ23)","v":""},{"$f":"IF('1. Order'!BA23=\"\",\"\",'1. Order'!BA23)","v":""},{"$f":"IF('1. Order'!BB23=\"\",\"\",'1. Order'!BB23)","v":""},{"$f":"IF('1. Order'!BD23=\"\",\"\",'1. Order'!BD23)","v":""},{"$f":"IF('1. Order'!BE23=\"\",\"\",'1. Order'!BE23)","v":""},{"$f":"IF('1. Order'!BF23=\"\",\"\",'1. Order'!BF23)","v":""},{"$f":"IF('1. Order'!BG23=\"\",\"\",'1. Order'!BG23)","v":""},{"$f":"IF('1. Order'!BH23=\"\",\"\",'1. Order'!BH23)","v":"ZWO"}]
[{"$f":"IF('1. Order'!F24=\"\",\"\",'1. Order'!F24)","v":{"$error":"#N/A"}},{"$f":"IF('1. Order'!G24=\"\",\"\",'1. Order'!G24)","v":""},{"$f":"IF('1. Order'!H24=\"\",\"\",'1. Order'!H24)","v":""},{"$f":"IF('1. Order'!I24=\"\",\"\",'1. Order'!I24)","v":""},{"$f":"IF('1. Order'!J24=\"\",\"\",'1. Order'!J24)","v":""},{"$f":"IF('1. Order'!K24=\"\",\"\",'1. Order'!K24)","v":""},{"$f":"IF('1. Order'!L24=\"\",\"\",'1. Order'!L24)","v":""},{"$f":"IF('1. Order'!M24=\"\",\"\",'1. Order'!M24)","v":""},{"$f":"IF('1. Order'!N24=\"\",\"\",'1. Order'!N24)","v":""},{"$f":"IF('1. Order'!O24=\"\",\"\",'1. Order'!O24)","v":{"$error":"#N/A"}},{"$f":"IF('1. Order'!P24=\"\",\"\",'1. Order'!P24)","v":{"$error":"#N/A"}},{"$f":"IF('1. Order'!Q24=\"\",\"\",'1. Order'!Q24)","v":""},{"$f":"IF('1. Order'!S24=\"\",\"\",'1. Order'!S24)","v":""},{"$f":"IF('1. Order'!T24=\"\",\"\",'1. Order'!T24)","v":""},{"$f":"IF('1. Order'!W24=\"\",\"\",'1. Order'!W24)","v":""},{"$f":"IF('1. Order'!X24=\"\",\"\",'1. Order'!X24)","v":""},{"$f":"IF('1. Order'!Y24=\"\",\"\",'1. Order'!Y24)","v":"EUR"},{"$f":"IF('1. Order'!Z24=\"\",\"\",'1. Order'!Z24)","v":""},{"$f":"IF('1. Order'!AA24=\"\",\"\",'1. Order'!AA24)","v":""},{"$f":"IF('1. Order'!AB24=\"\",\"\",'1. Order'!AB24)","v":""},null,{"$f":"IF('1. Order'!AT24=\"\",\"\",'1. Order'!AT24)","v":""},{"$f":"IF('1. Order'!AU24=\"\",\"\",'1. Order'!AU24)","v":""},null,null,null,null,null,null,null,{"$f":"IF('1. Order'!AY24=\"\",\"\",'1. Order'!AY24)","v":""},{"$f":"IF('1. Order'!AZ24=\"\",\"\",'1. Order'!AZ24)","v":""},{"$f":"IF('1. Order'!BA24=\"\",\"\",'1. Order'!BA24)","v":""},{"$f":"IF('1. Order'!BB24=\"\",\"\",'1. Order'!BB24)","v":""},{"$f":"IF('1. Order'!BD24=\"\",\"\",'1. Order'!BD24)","v":""},{"$f":"IF('1. Order'!BE24=\"\",\"\",'1. Order'!BE24)","v":""},{"$f":"IF('1. Order'!BF24=\"\",\"\",'1. Order'!BF24)","v":""},{"$f":"IF('1. Order'!BG24=\"\",\"\",'1. Order'!BG24)","v":""},{"$f":"IF('1. Order'!BH24=\"\",\"\",'1. Order'!BH24)","v":"ZWO"}]
[{"$f":"IF('1. Order'!F25=\"\",\"\",'1. Order'!F25)","v":{"$error":"#N/A"}},{"$f":"IF('1. Order'!G25=\"\",\"\",'1. Order'!G25)","v":""},{"$f":"IF('1. Order'!H25=\"\",\"\",'1. Order'!H25)","v":""},{"$f":"IF('1. Order'!I25=\"\",\"\",'1. Order'!I25)","v":""},{"$f":"IF('1. Order'!J25=\"\",\"\",'1. Order'!J25)","v":""},{"$f":"IF('1. Order'!K25=\"\",\"\",'1. Order'!K25)","v":""},{"$f":"IF('1. Order'!L25=\"\",\"\",'1. Order'!L25)","v":""},{"$f":"IF('1. Order'!M25=\"\",\"\",'1. Order'!M25)","v":""},{"$f":"IF('1. Order'!N25=\"\",\"\",'1. Order'!N25)","v":""},{"$f":"IF('1. Order'!O25=\"\",\"\",'1. Order'!O25)","v":{"$error":"#N/A"}},{"$f":"IF('1. Order'!P25=\"\",\"\",'1. Order'!P25)","v":{"$error":"#N/A"}},{"$f":"IF('1. Order'!Q25=\"\",\"\",'1. Order'!Q25)","v":""},{"$f":"IF('1. Order'!S25=\"\",\"\",'1. Order'!S25)","v":""},{"$f":"IF('1. Order'!T25=\"\",\"\",'1. Order'!T25)","v":""},{"$f":"IF('1. Order'!W25=\"\",\"\",'1. Order'!W25)","v":""},{"$f":"IF('1. Order'!X25=\"\",\"\",'1. Order'!X25)","v":""},{"$f":"IF('1. Order'!Y25=\"\",\"\",'1. Order'!Y25)","v":"EUR"},{"$f":"IF('1. Order'!Z25=\"\",\"\",'1. Order'!Z25)","v":""},{"$f":"IF('1. Order'!AA25=\"\",\"\",'1. Order'!AA25)","v":""},{"$f":"IF('1. Order'!AB25=\"\",\"\",'1. Order'!AB25)","v":""},null,{"$f":"IF('1. Order'!AT25=\"\",\"\",'1. Order'!AT25)","v":""},{"$f":"IF('1. Order'!AU25=\"\",\"\",'1. Order'!AU25)","v":""},null,null,null,null,null,null,null,{"$f":"IF('1. Order'!AY25=\"\",\"\",'1. Order'!AY25)","v":""},{"$f":"IF('1. Order'!AZ25=\"\",\"\",'1. Order'!AZ25)","v":""},{"$f":"IF('1. Order'!BA25=\"\",\"\",'1. Order'!BA25)","v":""},{"$f":"IF('1. Order'!BB25=\"\",\"\",'1. Order'!BB25)","v":""},{"$f":"IF('1. Order'!BD25=\"\",\"\",'1. Order'!BD25)","v":""},{"$f":"IF('1. Order'!BE25=\"\",\"\",'1. Order'!BE25)","v":""},{"$f":"IF('1. Order'!BF25=\"\",\"\",'1. Order'!BF25)","v":""},{"$f":"IF('1. Order'!BG25=\"\",\"\",'1. Order'!BG25)","v":""},{"$f":"IF('1. Order'!BH25=\"\",\"\",'1. Order'!BH25)","v":"ZWO"}]
[{"$f":"IF('1. Order'!F26=\"\",\"\",'1. Order'!F26)","v":{"$error":"#N/A"}},{"$f":"IF('1. Order'!G26=\"\",\"\",'1. Order'!G26)","v":""},{"$f":"IF('1. Order'!H26=\"\",\"\",'1. Order'!H26)","v":""},{"$f":"IF('1. Order'!I26=\"\",\"\",'1. Order'!I26)","v":""},{"$f":"IF('1. Order'!J26=\"\",\"\",'1. Order'!J26)","v":""},{"$f":"IF('1. Order'!K26=\"\",\"\",'1. Order'!K26)","v":""},{"$f":"IF('1. Order'!L26=\"\",\"\",'1. Order'!L26)","v":""},{"$f":"IF('1. Order'!M26=\"\",\"\",'1. Order'!M26)","v":""},{"$f":"IF('1. Order'!N26=\"\",\"\",'1. Order'!N26)","v":""},{"$f":"IF('1. Order'!O26=\"\",\"\",'1. Order'!O26)","v":{"$error":"#N/A"}},{"$f":"IF('1. Order'!P26=\"\",\"\",'1. Order'!P26)","v":{"$error":"#N/A"}},{"$f":"IF('1. Order'!Q26=\"\",\"\",'1. Order'!Q26)","v":""},{"$f":"IF('1. Order'!S26=\"\",\"\",'1. Order'!S26)","v":""},{"$f":"IF('1. Order'!T26=\"\",\"\",'1. Order'!T26)","v":""},{"$f":"IF('1. Order'!W26=\"\",\"\",'1. Order'!W26)","v":""},{"$f":"IF('1. Order'!X26=\"\",\"\",'1. Order'!X26)","v":""},{"$f":"IF('1. Order'!Y26=\"\",\"\",'1. Order'!Y26)","v":"EUR"},{"$f":"IF('1. Order'!Z26=\"\",\"\",'1. Order'!Z26)","v":""},{"$f":"IF('1. Order'!AA26=\"\",\"\",'1. Order'!AA26)","v":""},{"$f":"IF('1. Order'!AB26=\"\",\"\",'1. Order'!AB26)","v":""},null,{"$f":"IF('1. Order'!AT26=\"\",\"\",'1. Order'!AT26)","v":""},{"$f":"IF('1. Order'!AU26=\"\",\"\",'1. Order'!AU26)","v":""},null,null,null,null,null,null,null,{"$f":"IF('1. Order'!AY26=\"\",\"\",'1. Order'!AY26)","v":""},{"$f":"IF('1. Order'!AZ26=\"\",\"\",'1. Order'!AZ26)","v":""},{"$f":"IF('1. Order'!BA26=\"\",\"\",'1. Order'!BA26)","v":""},{"$f":"IF('1. Order'!BB26=\"\",\"\",'1. Order'!BB26)","v":""},{"$f":"IF('1. Order'!BD26=\"\",\"\",'1. Order'!BD26)","v":""},{"$f":"IF('1. Order'!BE26=\"\",\"\",'1. Order'!BE26)","v":""},{"$f":"IF('1. Order'!BF26=\"\",\"\",'1. Order'!BF26)","v":""},{"$f":"IF('1. Order'!BG26=\"\",\"\",'1. Order'!BG26)","v":""},{"$f":"IF('1. Order'!BH26=\"\",\"\",'1. Order'!BH26)","v":"ZWO"}]
[{"$f":"IF('1. Order'!F27=\"\",\"\",'1. Order'!F27)","v":{"$error":"#N/A"}},{"$f":"IF('1. Order'!G27=\"\",\"\",'1. Order'!G27)","v":""},{"$f":"IF('1. Order'!H27=\"\",\"\",'1. Order'!H27)","v":""},{"$f":"IF('1. Order'!I27=\"\",\"\",'1. Order'!I27)","v":""},{"$f":"IF('1. Order'!J27=\"\",\"\",'1. Order'!J27)","v":""},{"$f":"IF('1. Order'!K27=\"\",\"\",'1. Order'!K27)","v":""},{"$f":"IF('1. Order'!L27=\"\",\"\",'1. Order'!L27)","v":""},{"$f":"IF('1. Order'!M27=\"\",\"\",'1. Order'!M27)","v":""},{"$f":"IF('1. Order'!N27=\"\",\"\",'1. Order'!N27)","v":""},{"$f":"IF('1. Order'!O27=\"\",\"\",'1. Order'!O27)","v":{"$error":"#N/A"}},{"$f":"IF('1. Order'!P27=\"\",\"\",'1. Order'!P27)","v":{"$error":"#N/A"}},{"$f":"IF('1. Order'!Q27=\"\",\"\",'1. Order'!Q27)","v":""},{"$f":"IF('1. Order'!S27=\"\",\"\",'1. Order'!S27)","v":""},{"$f":"IF('1. Order'!T27=\"\",\"\",'1. Order'!T27)","v":""},{"$f":"IF('1. Order'!W27=\"\",\"\",'1. Order'!W27)","v":""},{"$f":"IF('1. Order'!X27=\"\",\"\",'1. Order'!X27)","v":""},{"$f":"IF('1. Order'!Y27=\"\",\"\",'1. Order'!Y27)","v":"EUR"},{"$f":"IF('1. Order'!Z27=\"\",\"\",'1. Order'!Z27)","v":""},{"$f":"IF('1. Order'!AA27=\"\",\"\",'1. Order'!AA27)","v":""},{"$f":"IF('1. Order'!AB27=\"\",\"\",'1. Order'!AB27)","v":""},null,{"$f":"IF('1. Order'!AT27=\"\",\"\",'1. Order'!AT27)","v":""},{"$f":"IF('1. Order'!AU27=\"\",\"\",'1. Order'!AU27)","v":""},null,null,null,null,null,null,null,{"$f":"IF('1. Order'!AY27=\"\",\"\",'1. Order'!AY27)","v":""},{"$f":"IF('1. Order'!AZ27=\"\",\"\",'1. Order'!AZ27)","v":""},{"$f":"IF('1. Order'!BA27=\"\",\"\",'1. Order'!BA27)","v":""},{"$f":"IF('1. Order'!BB27=\"\",\"\",'1. Order'!BB27)","v":""},{"$f":"IF('1. Order'!BD27=\"\",\"\",'1. Order'!BD27)","v":""},{"$f":"IF('1. Order'!BE27=\"\",\"\",'1. Order'!BE27)","v":""},{"$f":"IF('1. Order'!BF27=\"\",\"\",'1. Order'!BF27)","v":""},{"$f":"IF('1. Order'!BG27=\"\",\"\",'1. Order'!BG27)","v":""},{"$f":"IF('1. Order'!BH27=\"\",\"\",'1. Order'!BH27)","v":"ZWO"}]
[{"$f":"IF('1. Order'!F28=\"\",\"\",'1. Order'!F28)","v":{"$error":"#N/A"}},{"$f":"IF('1. Order'!G28=\"\",\"\",'1. Order'!G28)","v":""},{"$f":"IF('1. Order'!H28=\"\",\"\",'1. Order'!H28)","v":""},{"$f":"IF('1. Order'!I28=\"\",\"\",'1. Order'!I28)","v":""},{"$f":"IF('1. Order'!J28=\"\",\"\",'1. Order'!J28)","v":""},{"$f":"IF('1. Order'!K28=\"\",\"\",'1. Order'!K28)","v":""},{"$f":"IF('1. Order'!L28=\"\",\"\",'1. Order'!L28)","v":""},{"$f":"IF('1. Order'!M28=\"\",\"\",'1. Order'!M28)","v":""},{"$f":"IF('1. Order'!N28=\"\",\"\",'1. Order'!N28)","v":""},{"$f":"IF('1. Order'!O28=\"\",\"\",'1. Order'!O28)","v":{"$error":"#N/A"}},{"$f":"IF('1. Order'!P28=\"\",\"\",'1. Order'!P28)","v":{"$error":"#N/A"}},{"$f":"IF('1. Order'!Q28=\"\",\"\",'1. Order'!Q28)","v":""},{"$f":"IF('1. Order'!S28=\"\",\"\",'1. Order'!S28)","v":""},{"$f":"IF('1. Order'!T28=\"\",\"\",'1. Order'!T28)","v":""},{"$f":"IF('1. Order'!W28=\"\",\"\",'1. Order'!W28)","v":""},{"$f":"IF('1. Order'!X28=\"\",\"\",'1. Order'!X28)","v":""},{"$f":"IF('1. Order'!Y28=\"\",\"\",'1. Order'!Y28)","v":"EUR"},{"$f":"IF('1. Order'!Z28=\"\",\"\",'1. Order'!Z28)","v":""},{"$f":"IF('1. Order'!AA28=\"\",\"\",'1. Order'!AA28)","v":""},{"$f":"IF('1. Order'!AB28=\"\",\"\",'1. Order'!AB28)","v":""},null,{"$f":"IF('1. Order'!AT28=\"\",\"\",'1. Order'!AT28)","v":""},{"$f":"IF('1. Order'!AU28=\"\",\"\",'1. Order'!AU28)","v":""},null,null,null,null,null,null,null,{"$f":"IF('1. Order'!AY28=\"\",\"\",'1. Order'!AY28)","v":""},{"$f":"IF('1. Order'!AZ28=\"\",\"\",'1. Order'!AZ28)","v":""},{"$f":"IF('1. Order'!BA28=\"\",\"\",'1. Order'!BA28)","v":""},{"$f":"IF('1. Order'!BB28=\"\",\"\",'1. Order'!BB28)","v":""},{"$f":"IF('1. Order'!BD28=\"\",\"\",'1. Order'!BD28)","v":""},{"$f":"IF('1. Order'!BE28=\"\",\"\",'1. Order'!BE28)","v":""},{"$f":"IF('1. Order'!BF28=\"\",\"\",'1. Order'!BF28)","v":""},{"$f":"IF('1. Order'!BG28=\"\",\"\",'1. Order'!BG28)","v":""},{"$f":"IF('1. Order'!BH28=\"\",\"\",'1. Order'!BH28)","v":"ZWO"}]
[{"$f":"IF('1. Order'!F29=\"\",\"\",'1. Order'!F29)","v":{"$error":"#N/A"}},{"$f":"IF('1. Order'!G29=\"\",\"\",'1. Order'!G29)","v":""},{"$f":"IF('1. Order'!H29=\"\",\"\",'1. Order'!H29)","v":""},{"$f":"IF('1. Order'!I29=\"\",\"\",'1. Order'!I29)","v":""},{"$f":"IF('1. Order'!J29=\"\",\"\",'1. Order'!J29)","v":""},{"$f":"IF('1. Order'!K29=\"\",\"\",'1. Order'!K29)","v":""},{"$f":"IF('1. Order'!L29=\"\",\"\",'1. Order'!L29)","v":""},{"$f":"IF('1. Order'!M29=\"\",\"\",'1. Order'!M29)","v":""},{"$f":"IF('1. Order'!N29=\"\",\"\",'1. Order'!N29)","v":""},{"$f":"IF('1. Order'!O29=\"\",\"\",'1. Order'!O29)","v":{"$error":"#N/A"}},{"$f":"IF('1. Order'!P29=\"\",\"\",'1. Order'!P29)","v":{"$error":"#N/A"}},{"$f":"IF('1. Order'!Q29=\"\",\"\",'1. Order'!Q29)","v":""},{"$f":"IF('1. Order'!S29=\"\",\"\",'1. Order'!S29)","v":""},{"$f":"IF('1. Order'!T29=\"\",\"\",'1. Order'!T29)","v":""},{"$f":"IF('1. Order'!W29=\"\",\"\",'1. Order'!W29)","v":""},{"$f":"IF('1. Order'!X29=\"\",\"\",'1. Order'!X29)","v":""},{"$f":"IF('1. Order'!Y29=\"\",\"\",'1. Order'!Y29)","v":"EUR"},{"$f":"IF('1. Order'!Z29=\"\",\"\",'1. Order'!Z29)","v":""},{"$f":"IF('1. Order'!AA29=\"\",\"\",'1. Order'!AA29)","v":""},{"$f":"IF('1. Order'!AB29=\"\",\"\",'1. Order'!AB29)","v":""},null,{"$f":"IF('1. Order'!AT29=\"\",\"\",'1. Order'!AT29)","v":""},{"$f":"IF('1. Order'!AU29=\"\",\"\",'1. Order'!AU29)","v":""},null,null,null,null,null,null,null,{"$f":"IF('1. Order'!AY29=\"\",\"\",'1. Order'!AY29)","v":""},{"$f":"IF('1. Order'!AZ29=\"\",\"\",'1. Order'!AZ29)","v":""},{"$f":"IF('1. Order'!BA29=\"\",\"\",'1. Order'!BA29)","v":""},{"$f":"IF('1. Order'!BB29=\"\",\"\",'1. Order'!BB29)","v":""},{"$f":"IF('1. Order'!BD29=\"\",\"\",'1. Order'!BD29)","v":""},{"$f":"IF('1. Order'!BE29=\"\",\"\",'1. Order'!BE29)","v":""},{"$f":"IF('1. Order'!BF29=\"\",\"\",'1. Order'!BF29)","v":""},{"$f":"IF('1. Order'!BG29=\"\",\"\",'1. Order'!BG29)","v":""},{"$f":"IF('1. Order'!BH29=\"\",\"\",'1. Order'!BH29)","v":"ZWO"}]
[{"$f":"IF('1. Order'!F30=\"\",\"\",'1. Order'!F30)","v":{"$error":"#N/A"}},{"$f":"IF('1. Order'!G30=\"\",\"\",'1. Order'!G30)","v":""},{"$f":"IF('1. Order'!H30=\"\",\"\",'1. Order'!H30)","v":""},{"$f":"IF('1. Order'!I30=\"\",\"\",'1. Order'!I30)","v":""},{"$f":"IF('1. Order'!J30=\"\",\"\",'1. Order'!J30)","v":""},{"$f":"IF('1. Order'!K30=\"\",\"\",'1. Order'!K30)","v":""},{"$f":"IF('1. Order'!L30=\"\",\"\",'1. Order'!L30)","v":""},{"$f":"IF('1. Order'!M30=\"\",\"\",'1. Order'!M30)","v":""},{"$f":"IF('1. Order'!N30=\"\",\"\",'1. Order'!N30)","v":""},{"$f":"IF('1. Order'!O30=\"\",\"\",'1. Order'!O30)","v":{"$error":"#N/A"}},{"$f":"IF('1. Order'!P30=\"\",\"\",'1. Order'!P30)","v":{"$error":"#N/A"}},{"$f":"IF('1. Order'!Q30=\"\",\"\",'1. Order'!Q30)","v":""},{"$f":"IF('1. Order'!S30=\"\",\"\",'1. Order'!S30)","v":""},{"$f":"IF('1. Order'!T30=\"\",\"\",'1. Order'!T30)","v":""},{"$f":"IF('1. Order'!W30=\"\",\"\",'1. Order'!W30)","v":""},{"$f":"IF('1. Order'!X30=\"\",\"\",'1. Order'!X30)","v":""},{"$f":"IF('1. Order'!Y30=\"\",\"\",'1. Order'!Y30)","v":"EUR"},{"$f":"IF('1. Order'!Z30=\"\",\"\",'1. Order'!Z30)","v":""},{"$f":"IF('1. Order'!AA30=\"\",\"\",'1. Order'!AA30)","v":""},{"$f":"IF('1. Order'!AB30=\"\",\"\",'1. Order'!AB30)","v":""},null,{"$f":"IF('1. Order'!AT30=\"\",\"\",'1. Order'!AT30)","v":""},{"$f":"IF('1. Order'!AU30=\"\",\"\",'1. Order'!AU30)","v":""},null,null,null,null,null,null,null,{"$f":"IF('1. Order'!AY30=\"\",\"\",'1. Order'!AY30)","v":""},{"$f":"IF('1. Order'!AZ30=\"\",\"\",'1. Order'!AZ30)","v":""},{"$f":"IF('1. Order'!BA30=\"\",\"\",'1. Order'!BA30)","v":""},{"$f":"IF('1. Order'!BB30=\"\",\"\",'1. Order'!BB30)","v":""},{"$f":"IF('1. Order'!BD30=\"\",\"\",'1. Order'!BD30)","v":""},{"$f":"IF('1. Order'!BE30=\"\",\"\",'1. Order'!BE30)","v":""},{"$f":"IF('1. Order'!BF30=\"\",\"\",'1. Order'!BF30)","v":""},{"$f":"IF('1. Order'!BG30=\"\",\"\",'1. Order'!BG30)","v":""},{"$f":"IF('1. Order'!BH30=\"\",\"\",'1. Order'!BH30)","v":"ZWO"}]
[{"$f":"IF('1. Order'!F31=\"\",\"\",'1. Order'!F31)","v":{"$error":"#N/A"}},{"$f":"IF('1. Order'!G31=\"\",\"\",'1. Order'!G31)","v":""},{"$f":"IF('1. Order'!H31=\"\",\"\",'1. Order'!H31)","v":""},{"$f":"IF('1. Order'!I31=\"\",\"\",'1. Order'!I31)","v":""},{"$f":"IF('1. Order'!J31=\"\",\"\",'1. Order'!J31)","v":""},{"$f":"IF('1. Order'!K31=\"\",\"\",'1. Order'!K31)","v":""},{"$f":"IF('1. Order'!L31=\"\",\"\",'1. Order'!L31)","v":""},{"$f":"IF('1. Order'!M31=\"\",\"\",'1. Order'!M31)","v":""},{"$f":"IF('1. Order'!N31=\"\",\"\",'1. Order'!N31)","v":""},{"$f":"IF('1. Order'!O31=\"\",\"\",'1. Order'!O31)","v":{"$error":"#N/A"}},{"$f":"IF('1. Order'!P31=\"\",\"\",'1. Order'!P31)","v":{"$error":"#N/A"}},{"$f":"IF('1. Order'!Q31=\"\",\"\",'1. Order'!Q31)","v":""},{"$f":"IF('1. Order'!S31=\"\",\"\",'1. Order'!S31)","v":""},{"$f":"IF('1. Order'!T31=\"\",\"\",'1. Order'!T31)","v":""},{"$f":"IF('1. Order'!W31=\"\",\"\",'1. Order'!W31)","v":""},{"$f":"IF('1. Order'!X31=\"\",\"\",'1. Order'!X31)","v":""},{"$f":"IF('1. Order'!Y31=\"\",\"\",'1. Order'!Y31)","v":"EUR"},{"$f":"IF('1. Order'!Z31=\"\",\"\",'1. Order'!Z31)","v":""},{"$f":"IF('1. Order'!AA31=\"\",\"\",'1. Order'!AA31)","v":""},{"$f":"IF('1. Order'!AB31=\"\",\"\",'1. Order'!AB31)","v":""},null,{"$f":"IF('1. Order'!AT31=\"\",\"\",'1. Order'!AT31)","v":""},{"$f":"IF('1. Order'!AU31=\"\",\"\",'1. Order'!AU31)","v":""},null,null,null,null,null,null,null,{"$f":"IF('1. Order'!AY31=\"\",\"\",'1. Order'!AY31)","v":""},{"$f":"IF('1. Order'!AZ31=\"\",\"\",'1. Order'!AZ31)","v":""},{"$f":"IF('1. Order'!BA31=\"\",\"\",'1. Order'!BA31)","v":""},{"$f":"IF('1. Order'!BB31=\"\",\"\",'1. Order'!BB31)","v":""},{"$f":"IF('1. Order'!BD31=\"\",\"\",'1. Order'!BD31)","v":""},{"$f":"IF('1. Order'!BE31=\"\",\"\",'1. Order'!BE31)","v":""},{"$f":"IF('1. Order'!BF31=\"\",\"\",'1. Order'!BF31)","v":""},{"$f":"IF('1. Order'!BG31=\"\",\"\",'1. Order'!BG31)","v":""},{"$f":"IF('1. Order'!BH31=\"\",\"\",'1. Order'!BH31)","v":"ZWO"}]
[{"$f":"IF('1. Order'!F32=\"\",\"\",'1. Order'!F32)","v":{"$error":"#N/A"}},{"$f":"IF('1. Order'!G32=\"\",\"\",'1. Order'!G32)","v":""},{"$f":"IF('1. Order'!H32=\"\",\"\",'1. Order'!H32)","v":""},{"$f":"IF('1. Order'!I32=\"\",\"\",'1. Order'!I32)","v":""},{"$f":"IF('1. Order'!J32=\"\",\"\",'1. Order'!J32)","v":""},{"$f":"IF('1. Order'!K32=\"\",\"\",'1. Order'!K32)","v":""},{"$f":"IF('1. Order'!L32=\"\",\"\",'1. Order'!L32)","v":""},{"$f":"IF('1. Order'!M32=\"\",\"\",'1. Order'!M32)","v":""},{"$f":"IF('1. Order'!N32=\"\",\"\",'1. Order'!N32)","v":""},{"$f":"IF('1. Order'!O32=\"\",\"\",'1. Order'!O32)","v":{"$error":"#N/A"}},{"$f":"IF('1. Order'!P32=\"\",\"\",'1. Order'!P32)","v":{"$error":"#N/A"}},{"$f":"IF('1. Order'!Q32=\"\",\"\",'1. Order'!Q32)","v":""},{"$f":"IF('1. Order'!S32=\"\",\"\",'1. Order'!S32)","v":""},{"$f":"IF('1. Order'!T32=\"\",\"\",'1. Order'!T32)","v":""},{"$f":"IF('1. Order'!W32=\"\",\"\",'1. Order'!W32)","v":""},{"$f":"IF('1. Order'!X32=\"\",\"\",'1. Order'!X32)","v":""},{"$f":"IF('1. Order'!Y32=\"\",\"\",'1. Order'!Y32)","v":"EUR"},{"$f":"IF('1. Order'!Z32=\"\",\"\",'1. Order'!Z32)","v":""},{"$f":"IF('1. Order'!AA32=\"\",\"\",'1. Order'!AA32)","v":""},{"$f":"IF('1. Order'!AB32=\"\",\"\",'1. Order'!AB32)","v":""},null,{"$f":"IF('1. Order'!AT32=\"\",\"\",'1. Order'!AT32)","v":""},{"$f":"IF('1. Order'!AU32=\"\",\"\",'1. Order'!AU32)","v":""},null,null,null,null,null,null,null,{"$f":"IF('1. Order'!AY32=\"\",\"\",'1. Order'!AY32)","v":""},{"$f":"IF('1. Order'!AZ32=\"\",\"\",'1. Order'!AZ32)","v":""},{"$f":"IF('1. Order'!BA32=\"\",\"\",'1. Order'!BA32)","v":""},{"$f":"IF('1. Order'!BB32=\"\",\"\",'1. Order'!BB32)","v":""},{"$f":"IF('1. Order'!BD32=\"\",\"\",'1. Order'!BD32)","v":""},{"$f":"IF('1. Order'!BE32=\"\",\"\",'1. Order'!BE32)","v":""},{"$f":"IF('1. Order'!BF32=\"\",\"\",'1. Order'!BF32)","v":""},{"$f":"IF('1. Order'!BG32=\"\",\"\",'1. Order'!BG32)","v":""},{"$f":"IF('1. Order'!BH32=\"\",\"\",'1. Order'!BH32)","v":"ZWO"}]
[{"$f":"IF('1. Order'!F33=\"\",\"\",'1. Order'!F33)","v":{"$error":"#N/A"}},{"$f":"IF('1. Order'!G33=\"\",\"\",'1. Order'!G33)","v":""},{"$f":"IF('1. Order'!H33=\"\",\"\",'1. Order'!H33)","v":""},{"$f":"IF('1. Order'!I33=\"\",\"\",'1. Order'!I33)","v":""},{"$f":"IF('1. Order'!J33=\"\",\"\",'1. Order'!J33)","v":""},{"$f":"IF('1. Order'!K33=\"\",\"\",'1. Order'!K33)","v":""},{"$f":"IF('1. Order'!L33=\"\",\"\",'1. Order'!L33)","v":""},{"$f":"IF('1. Order'!M33=\"\",\"\",'1. Order'!M33)","v":""},{"$f":"IF('1. Order'!N33=\"\",\"\",'1. Order'!N33)","v":""},{"$f":"IF('1. Order'!O33=\"\",\"\",'1. Order'!O33)","v":{"$error":"#N/A"}},{"$f":"IF('1. Order'!P33=\"\",\"\",'1. Order'!P33)","v":{"$error":"#N/A"}},{"$f":"IF('1. Order'!Q33=\"\",\"\",'1. Order'!Q33)","v":""},{"$f":"IF('1. Order'!S33=\"\",\"\",'1. Order'!S33)","v":""},{"$f":"IF('1. Order'!T33=\"\",\"\",'1. Order'!T33)","v":""},{"$f":"IF('1. Order'!W33=\"\",\"\",'1. Order'!W33)","v":""},{"$f":"IF('1. Order'!X33=\"\",\"\",'1. Order'!X33)","v":""},{"$f":"IF('1. Order'!Y33=\"\",\"\",'1. Order'!Y33)","v":"EUR"},{"$f":"IF('1. Order'!Z33=\"\",\"\",'1. Order'!Z33)","v":""},{"$f":"IF('1. Order'!AA33=\"\",\"\",'1. Order'!AA33)","v":""},{"$f":"IF('1. Order'!AB33=\"\",\"\",'1. Order'!AB33)","v":""},null,{"$f":"IF('1. Order'!AT33=\"\",\"\",'1. Order'!AT33)","v":""},{"$f":"IF('1. Order'!AU33=\"\",\"\",'1. Order'!AU33)","v":""},null,null,null,null,null,null,null,{"$f":"IF('1. Order'!AY33=\"\",\"\",'1. Order'!AY33)","v":""},{"$f":"IF('1. Order'!AZ33=\"\",\"\",'1. Order'!AZ33)","v":""},{"$f":"IF('1. Order'!BA33=\"\",\"\",'1. Order'!BA33)","v":""},{"$f":"IF('1. Order'!BB33=\"\",\"\",'1. Order'!BB33)","v":""},{"$f":"IF('1. Order'!BD33=\"\",\"\",'1. Order'!BD33)","v":""},{"$f":"IF('1. Order'!BE33=\"\",\"\",'1. Order'!BE33)","v":""},{"$f":"IF('1. Order'!BF33=\"\",\"\",'1. Order'!BF33)","v":""},{"$f":"IF('1. Order'!BG33=\"\",\"\",'1. Order'!BG33)","v":""},{"$f":"IF('1. Order'!BH33=\"\",\"\",'1. Order'!BH33)","v":"ZWO"}]
[{"$f":"IF('1. Order'!F34=\"\",\"\",'1. Order'!F34)","v":{"$error":"#N/A"}},{"$f":"IF('1. Order'!G34=\"\",\"\",'1. Order'!G34)","v":""},{"$f":"IF('1. Order'!H34=\"\",\"\",'1. Order'!H34)","v":""},{"$f":"IF('1. Order'!I34=\"\",\"\",'1. Order'!I34)","v":""},{"$f":"IF('1. Order'!J34=\"\",\"\",'1. Order'!J34)","v":""},{"$f":"IF('1. Order'!K34=\"\",\"\",'1. Order'!K34)","v":""},{"$f":"IF('1. Order'!L34=\"\",\"\",'1. Order'!L34)","v":""},{"$f":"IF('1. Order'!M34=\"\",\"\",'1. Order'!M34)","v":""},{"$f":"IF('1. Order'!N34=\"\",\"\",'1. Order'!N34)","v":""},{"$f":"IF('1. Order'!O34=\"\",\"\",'1. Order'!O34)","v":{"$error":"#N/A"}},{"$f":"IF('1. Order'!P34=\"\",\"\",'1. Order'!P34)","v":{"$error":"#N/A"}},{"$f":"IF('1. Order'!Q34=\"\",\"\",'1. Order'!Q34)","v":""},{"$f":"IF('1. Order'!S34=\"\",\"\",'1. Order'!S34)","v":""},{"$f":"IF('1. Order'!T34=\"\",\"\",'1. Order'!T34)","v":""},{"$f":"IF('1. Order'!W34=\"\",\"\",'1. Order'!W34)","v":""},{"$f":"IF('1. Order'!X34=\"\",\"\",'1. Order'!X34)","v":""},{"$f":"IF('1. Order'!Y34=\"\",\"\",'1. Order'!Y34)","v":"EUR"},{"$f":"IF('1. Order'!Z34=\"\",\"\",'1. Order'!Z34)","v":""},{"$f":"IF('1. Order'!AA34=\"\",\"\",'1. Order'!AA34)","v":""},{"$f":"IF('1. Order'!AB34=\"\",\"\",'1. Order'!AB34)","v":""},null,{"$f":"IF('1. Order'!AT34=\"\",\"\",'1. Order'!AT34)","v":""},{"$f":"IF('1. Order'!AU34=\"\",\"\",'1. Order'!AU34)","v":""},null,null,null,null,null,null,null,{"$f":"IF('1. Order'!AY34=\"\",\"\",'1. Order'!AY34)","v":""},{"$f":"IF('1. Order'!AZ34=\"\",\"\",'1. Order'!AZ34)","v":""},{"$f":"IF('1. Order'!BA34=\"\",\"\",'1. Order'!BA34)","v":""},{"$f":"IF('1. Order'!BB34=\"\",\"\",'1. Order'!BB34)","v":""},{"$f":"IF('1. Order'!BD34=\"\",\"\",'1. Order'!BD34)","v":""},{"$f":"IF('1. Order'!BE34=\"\",\"\",'1. Order'!BE34)","v":""},{"$f":"IF('1. Order'!BF34=\"\",\"\",'1. Order'!BF34)","v":""},{"$f":"IF('1. Order'!BG34=\"\",\"\",'1. Order'!BG34)","v":""},{"$f":"IF('1. Order'!BH34=\"\",\"\",'1. Order'!BH34)","v":"ZWO"}]
[{"$f":"IF('1. Order'!F35=\"\",\"\",'1. Order'!F35)","v":{"$error":"#N/A"}},{"$f":"IF('1. Order'!G35=\"\",\"\",'1. Order'!G35)","v":""},{"$f":"IF('1. Order'!H35=\"\",\"\",'1. Order'!H35)","v":""},{"$f":"IF('1. Order'!I35=\"\",\"\",'1. Order'!I35)","v":""},{"$f":"IF('1. Order'!J35=\"\",\"\",'1. Order'!J35)","v":""},{"$f":"IF('1. Order'!K35=\"\",\"\",'1. Order'!K35)","v":""},{"$f":"IF('1. Order'!L35=\"\",\"\",'1. Order'!L35)","v":""},{"$f":"IF('1. Order'!M35=\"\",\"\",'1. Order'!M35)","v":""},{"$f":"IF('1. Order'!N35=\"\",\"\",'1. Order'!N35)","v":""},{"$f":"IF('1. Order'!O35=\"\",\"\",'1. Order'!O35)","v":{"$error":"#N/A"}},{"$f":"IF('1. Order'!P35=\"\",\"\",'1. Order'!P35)","v":{"$error":"#N/A"}},{"$f":"IF('1. Order'!Q35=\"\",\"\",'1. Order'!Q35)","v":""},{"$f":"IF('1. Order'!S35=\"\",\"\",'1. Order'!S35)","v":""},{"$f":"IF('1. Order'!T35=\"\",\"\",'1. Order'!T35)","v":""},{"$f":"IF('1. Order'!W35=\"\",\"\",'1. Order'!W35)","v":""},{"$f":"IF('1. Order'!X35=\"\",\"\",'1. Order'!X35)","v":""},{"$f":"IF('1. Order'!Y35=\"\",\"\",'1. Order'!Y35)","v":"EUR"},{"$f":"IF('1. Order'!Z35=\"\",\"\",'1. Order'!Z35)","v":""},{"$f":"IF('1. Order'!AA35=\"\",\"\",'1. Order'!AA35)","v":""},{"$f":"IF('1. Order'!AB35=\"\",\"\",'1. Order'!AB35)","v":""},null,{"$f":"IF('1. Order'!AT35=\"\",\"\",'1. Order'!AT35)","v":""},{"$f":"IF('1. Order'!AU35=\"\",\"\",'1. Order'!AU35)","v":""},null,null,null,null,null,null,null,{"$f":"IF('1. Order'!AY35=\"\",\"\",'1. Order'!AY35)","v":""},{"$f":"IF('1. Order'!AZ35=\"\",\"\",'1. Order'!AZ35)","v":""},{"$f":"IF('1. Order'!BA35=\"\",\"\",'1. Order'!BA35)","v":""},{"$f":"IF('1. Order'!BB35=\"\",\"\",'1. Order'!BB35)","v":""},{"$f":"IF('1. Order'!BD35=\"\",\"\",'1. Order'!BD35)","v":""},{"$f":"IF('1. Order'!BE35=\"\",\"\",'1. Order'!BE35)","v":""},{"$f":"IF('1. Order'!BF35=\"\",\"\",'1. Order'!BF35)","v":""},{"$f":"IF('1. Order'!BG35=\"\",\"\",'1. Order'!BG35)","v":""},{"$f":"IF('1. Order'!BH35=\"\",\"\",'1. Order'!BH35)","v":"ZWO"}]
[{"$f":"IF('1. Order'!F36=\"\",\"\",'1. Order'!F36)","v":{"$error":"#N/A"}},{"$f":"IF('1. Order'!G36=\"\",\"\",'1. Order'!G36)","v":""},{"$f":"IF('1. Order'!H36=\"\",\"\",'1. Order'!H36)","v":""},{"$f":"IF('1. Order'!I36=\"\",\"\",'1. Order'!I36)","v":""},{"$f":"IF('1. Order'!J36=\"\",\"\",'1. Order'!J36)","v":""},{"$f":"IF('1. Order'!K36=\"\",\"\",'1. Order'!K36)","v":""},{"$f":"IF('1. Order'!L36=\"\",\"\",'1. Order'!L36)","v":""},{"$f":"IF('1. Order'!M36=\"\",\"\",'1. Order'!M36)","v":""},{"$f":"IF('1. Order'!N36=\"\",\"\",'1. Order'!N36)","v":""},{"$f":"IF('1. Order'!O36=\"\",\"\",'1. Order'!O36)","v":{"$error":"#N/A"}},{"$f":"IF('1. Order'!P36=\"\",\"\",'1. Order'!P36)","v":{"$error":"#N/A"}},{"$f":"IF('1. Order'!Q36=\"\",\"\",'1. Order'!Q36)","v":""},{"$f":"IF('1. Order'!S36=\"\",\"\",'1. Order'!S36)","v":""},{"$f":"IF('1. Order'!T36=\"\",\"\",'1. Order'!T36)","v":""},{"$f":"IF('1. Order'!W36=\"\",\"\",'1. Order'!W36)","v":""},{"$f":"IF('1. Order'!X36=\"\",\"\",'1. Order'!X36)","v":""},{"$f":"IF('1. Order'!Y36=\"\",\"\",'1. Order'!Y36)","v":"EUR"},{"$f":"IF('1. Order'!Z36=\"\",\"\",'1. Order'!Z36)","v":""},{"$f":"IF('1. Order'!AA36=\"\",\"\",'1. Order'!AA36)","v":""},{"$f":"IF('1. Order'!AB36=\"\",\"\",'1. Order'!AB36)","v":""},null,{"$f":"IF('1. Order'!AT36=\"\",\"\",'1. Order'!AT36)","v":""},{"$f":"IF('1. Order'!AU36=\"\",\"\",'1. Order'!AU36)","v":""},null,null,null,null,null,null,null,{"$f":"IF('1. Order'!AY36=\"\",\"\",'1. Order'!AY36)","v":""},{"$f":"IF('1. Order'!AZ36=\"\",\"\",'1. Order'!AZ36)","v":""},{"$f":"IF('1. Order'!BA36=\"\",\"\",'1. Order'!BA36)","v":""},{"$f":"IF('1. Order'!BB36=\"\",\"\",'1. Order'!BB36)","v":""},{"$f":"IF('1. Order'!BD36=\"\",\"\",'1. Order'!BD36)","v":""},{"$f":"IF('1. Order'!BE36=\"\",\"\",'1. Order'!BE36)","v":""},{"$f":"IF('1. Order'!BF36=\"\",\"\",'1. Order'!BF36)","v":""},{"$f":"IF('1. Order'!BG36=\"\",\"\",'1. Order'!BG36)","v":""},{"$f":"IF('1. Order'!BH36=\"\",\"\",'1. Order'!BH36)","v":"ZWO"}]
[{"$f":"IF('1. Order'!F37=\"\",\"\",'1. Order'!F37)","v":{"$error":"#N/A"}},{"$f":"IF('1. Order'!G37=\"\",\"\",'1. Order'!G37)","v":""},{"$f":"IF('1. Order'!H37=\"\",\"\",'1. Order'!H37)","v":""},{"$f":"IF('1. Order'!I37=\"\",\"\",'1. Order'!I37)","v":""},{"$f":"IF('1. Order'!J37=\"\",\"\",'1. Order'!J37)","v":""},{"$f":"IF('1. Order'!K37=\"\",\"\",'1. Order'!K37)","v":""},{"$f":"IF('1. Order'!L37=\"\",\"\",'1. Order'!L37)","v":""},{"$f":"IF('1. Order'!M37=\"\",\"\",'1. Order'!M37)","v":""},{"$f":"IF('1. Order'!N37=\"\",\"\",'1. Order'!N37)","v":""},{"$f":"IF('1. Order'!O37=\"\",\"\",'1. Order'!O37)","v":{"$error":"#N/A"}},{"$f":"IF('1. Order'!P37=\"\",\"\",'1. Order'!P37)","v":{"$error":"#N/A"}},{"$f":"IF('1. Order'!Q37=\"\",\"\",'1. Order'!Q37)","v":""},{"$f":"IF('1. Order'!S37=\"\",\"\",'1. Order'!S37)","v":""},{"$f":"IF('1. Order'!T37=\"\",\"\",'1. Order'!T37)","v":""},{"$f":"IF('1. Order'!W37=\"\",\"\",'1. Order'!W37)","v":""},{"$f":"IF('1. Order'!X37=\"\",\"\",'1. Order'!X37)","v":""},{"$f":"IF('1. Order'!Y37=\"\",\"\",'1. Order'!Y37)","v":"EUR"},{"$f":"IF('1. Order'!Z37=\"\",\"\",'1. Order'!Z37)","v":""},{"$f":"IF('1. Order'!AA37=\"\",\"\",'1. Order'!AA37)","v":""},{"$f":"IF('1. Order'!AB37=\"\",\"\",'1. Order'!AB37)","v":""},null,{"$f":"IF('1. Order'!AT37=\"\",\"\",'1. Order'!AT37)","v":""},{"$f":"IF('1. Order'!AU37=\"\",\"\",'1. Order'!AU37)","v":""},null,null,null,null,null,null,null,{"$f":"IF('1. Order'!AY37=\"\",\"\",'1. Order'!AY37)","v":""},{"$f":"IF('1. Order'!AZ37=\"\",\"\",'1. Order'!AZ37)","v":""},{"$f":"IF('1. Order'!BA37=\"\",\"\",'1. Order'!BA37)","v":""},{"$f":"IF('1. Order'!BB37=\"\",\"\",'1. Order'!BB37)","v":""},{"$f":"IF('1. Order'!BD37=\"\",\"\",'1. Order'!BD37)","v":""},{"$f":"IF('1. Order'!BE37=\"\",\"\",'1. Order'!BE37)","v":""},{"$f":"IF('1. Order'!BF37=\"\",\"\",'1. Order'!BF37)","v":""},{"$f":"IF('1. Order'!BG37=\"\",\"\",'1. Order'!BG37)","v":""},{"$f":"IF('1. Order'!BH37=\"\",\"\",'1. Order'!BH37)","v":"ZWO"}]
[{"$f":"IF('1. Order'!F38=\"\",\"\",'1. Order'!F38)","v":{"$error":"#N/A"}},{"$f":"IF('1. Order'!G38=\"\",\"\",'1. Order'!G38)","v":""},{"$f":"IF('1. Order'!H38=\"\",\"\",'1. Order'!H38)","v":""},{"$f":"IF('1. Order'!I38=\"\",\"\",'1. Order'!I38)","v":""},{"$f":"IF('1. Order'!J38=\"\",\"\",'1. Order'!J38)","v":""},{"$f":"IF('1. Order'!K38=\"\",\"\",'1. Order'!K38)","v":""},{"$f":"IF('1. Order'!L38=\"\",\"\",'1. Order'!L38)","v":""},{"$f":"IF('1. Order'!M38=\"\",\"\",'1. Order'!M38)","v":""},{"$f":"IF('1. Order'!N38=\"\",\"\",'1. Order'!N38)","v":""},{"$f":"IF('1. Order'!O38=\"\",\"\",'1. Order'!O38)","v":{"$error":"#N/A"}},{"$f":"IF('1. Order'!P38=\"\",\"\",'1. Order'!P38)","v":{"$error":"#N/A"}},{"$f":"IF('1. Order'!Q38=\"\",\"\",'1. Order'!Q38)","v":""},{"$f":"IF('1. Order'!S38=\"\",\"\",'1. Order'!S38)","v":""},{"$f":"IF('1. Order'!T38=\"\",\"\",'1. Order'!T38)","v":""},{"$f":"IF('1. Order'!W38=\"\",\"\",'1. Order'!W38)","v":""},{"$f":"IF('1. Order'!X38=\"\",\"\",'1. Order'!X38)","v":""},{"$f":"IF('1. Order'!Y38=\"\",\"\",'1. Order'!Y38)","v":"EUR"},{"$f":"IF('1. Order'!Z38=\"\",\"\",'1. Order'!Z38)","v":""},{"$f":"IF('1. Order'!AA38=\"\",\"\",'1. Order'!AA38)","v":""},{"$f":"IF('1. Order'!AB38=\"\",\"\",'1. Order'!AB38)","v":""},null,{"$f":"IF('1. Order'!AT38=\"\",\"\",'1. Order'!AT38)","v":""},{"$f":"IF('1. Order'!AU38=\"\",\"\",'1. Order'!AU38)","v":""},null,null,null,null,null,null,null,{"$f":"IF('1. Order'!AY38=\"\",\"\",'1. Order'!AY38)","v":""},{"$f":"IF('1. Order'!AZ38=\"\",\"\",'1. Order'!AZ38)","v":""},{"$f":"IF('1. Order'!BA38=\"\",\"\",'1. Order'!BA38)","v":""},{"$f":"IF('1. Order'!BB38=\"\",\"\",'1. Order'!BB38)","v":""},{"$f":"IF('1. Order'!BD38=\"\",\"\",'1. Order'!BD38)","v":""},{"$f":"IF('1. Order'!BE38=\"\",\"\",'1. Order'!BE38)","v":""},{"$f":"IF('1. Order'!BF38=\"\",\"\",'1. Order'!BF38)","v":""},{"$f":"IF('1. Order'!BG38=\"\",\"\",'1. Order'!BG38)","v":""},{"$f":"IF('1. Order'!BH38=\"\",\"\",'1. Order'!BH38)","v":"ZWO"}]
[{"$f":"IF('1. Order'!F39=\"\",\"\",'1. Order'!F39)","v":{"$error":"#N/A"}},{"$f":"IF('1. Order'!G39=\"\",\"\",'1. Order'!G39)","v":""},{"$f":"IF('1. Order'!H39=\"\",\"\",'1. Order'!H39)","v":""},{"$f":"IF('1. Order'!I39=\"\",\"\",'1. Order'!I39)","v":""},{"$f":"IF('1. Order'!J39=\"\",\"\",'1. Order'!J39)","v":""},{"$f":"IF('1. Order'!K39=\"\",\"\",'1. Order'!K39)","v":""},{"$f":"IF('1. Order'!L39=\"\",\"\",'1. Order'!L39)","v":""},{"$f":"IF('1. Order'!M39=\"\",\"\",'1. Order'!M39)","v":""},{"$f":"IF('1. Order'!N39=\"\",\"\",'1. Order'!N39)","v":""},{"$f":"IF('1. Order'!O39=\"\",\"\",'1. Order'!O39)","v":{"$error":"#N/A"}},{"$f":"IF('1. Order'!P39=\"\",\"\",'1. Order'!P39)","v":{"$error":"#N/A"}},{"$f":"IF('1. Order'!Q39=\"\",\"\",'1. Order'!Q39)","v":""},{"$f":"IF('1. Order'!S39=\"\",\"\",'1. Order'!S39)","v":""},{"$f":"IF('1. Order'!T39=\"\",\"\",'1. Order'!T39)","v":""},{"$f":"IF('1. Order'!W39=\"\",\"\",'1. Order'!W39)","v":""},{"$f":"IF('1. Order'!X39=\"\",\"\",'1. Order'!X39)","v":""},{"$f":"IF('1. Order'!Y39=\"\",\"\",'1. Order'!Y39)","v":"EUR"},{"$f":"IF('1. Order'!Z39=\"\",\"\",'1. Order'!Z39)","v":""},{"$f":"IF('1. Order'!AA39=\"\",\"\",'1. Order'!AA39)","v":""},{"$f":"IF('1. Order'!AB39=\"\",\"\",'1. Order'!AB39)","v":""},null,{"$f":"IF('1. Order'!AT39=\"\",\"\",'1. Order'!AT39)","v":""},{"$f":"IF('1. Order'!AU39=\"\",\"\",'1. Order'!AU39)","v":""},null,null,null,null,null,null,null,{"$f":"IF('1. Order'!AY39=\"\",\"\",'1. Order'!AY39)","v":""},{"$f":"IF('1. Order'!AZ39=\"\",\"\",'1. Order'!AZ39)","v":""},{"$f":"IF('1. Order'!BA39=\"\",\"\",'1. Order'!BA39)","v":""},{"$f":"IF('1. Order'!BB39=\"\",\"\",'1. Order'!BB39)","v":""},{"$f":"IF('1. Order'!BD39=\"\",\"\",'1. Order'!BD39)","v":""},{"$f":"IF('1. Order'!BE39=\"\",\"\",'1. Order'!BE39)","v":""},{"$f":"IF('1. Order'!BF39=\"\",\"\",'1. Order'!BF39)","v":""},{"$f":"IF('1. Order'!BG39=\"\",\"\",'1. Order'!BG39)","v":""},{"$f":"IF('1. Order'!BH39=\"\",\"\",'1. Order'!BH39)","v":"ZWO"}]
[{"$f":"IF('1. Order'!F40=\"\",\"\",'1. Order'!F40)","v":{"$error":"#N/A"}},{"$f":"IF('1. Order'!G40=\"\",\"\",'1. Order'!G40)","v":""},{"$f":"IF('1. Order'!H40=\"\",\"\",'1. Order'!H40)","v":""},{"$f":"IF('1. Order'!I40=\"\",\"\",'1. Order'!I40)","v":""},{"$f":"IF('1. Order'!J40=\"\",\"\",'1. Order'!J40)","v":""},{"$f":"IF('1. Order'!K40=\"\",\"\",'1. Order'!K40)","v":""},{"$f":"IF('1. Order'!L40=\"\",\"\",'1. Order'!L40)","v":""},{"$f":"IF('1. Order'!M40=\"\",\"\",'1. Order'!M40)","v":""},{"$f":"IF('1. Order'!N40=\"\",\"\",'1. Order'!N40)","v":""},{"$f":"IF('1. Order'!O40=\"\",\"\",'1. Order'!O40)","v":{"$error":"#N/A"}},{"$f":"IF('1. Order'!P40=\"\",\"\",'1. Order'!P40)","v":{"$error":"#N/A"}},{"$f":"IF('1. Order'!Q40=\"\",\"\",'1. Order'!Q40)","v":""},{"$f":"IF('1. Order'!S40=\"\",\"\",'1. Order'!S40)","v":""},{"$f":"IF('1. Order'!T40=\"\",\"\",'1. Order'!T40)","v":""},{"$f":"IF('1. Order'!W40=\"\",\"\",'1. Order'!W40)","v":""},{"$f":"IF('1. Order'!X40=\"\",\"\",'1. Order'!X40)","v":""},{"$f":"IF('1. Order'!Y40=\"\",\"\",'1. Order'!Y40)","v":"EUR"},{"$f":"IF('1. Order'!Z40=\"\",\"\",'1. Order'!Z40)","v":""},{"$f":"IF('1. Order'!AA40=\"\",\"\",'1. Order'!AA40)","v":""},{"$f":"IF('1. Order'!AB40=\"\",\"\",'1. Order'!AB40)","v":""},null,{"$f":"IF('1. Order'!AT40=\"\",\"\",'1. Order'!AT40)","v":""},{"$f":"IF('1. Order'!AU40=\"\",\"\",'1. Order'!AU40)","v":""},null,null,null,null,null,null,null,{"$f":"IF('1. Order'!AY40=\"\",\"\",'1. Order'!AY40)","v":""},{"$f":"IF('1. Order'!AZ40=\"\",\"\",'1. Order'!AZ40)","v":""},{"$f":"IF('1. Order'!BA40=\"\",\"\",'1. Order'!BA40)","v":""},{"$f":"IF('1. Order'!BB40=\"\",\"\",'1. Order'!BB40)","v":""},{"$f":"IF('1. Order'!BD40=\"\",\"\",'1. Order'!BD40)","v":""},{"$f":"IF('1. Order'!BE40=\"\",\"\",'1. Order'!BE40)","v":""},{"$f":"IF('1. Order'!BF40=\"\",\"\",'1. Order'!BF40)","v":""},{"$f":"IF('1. Order'!BG40=\"\",\"\",'1. Order'!BG40)","v":""},{"$f":"IF('1. Order'!BH40=\"\",\"\",'1. Order'!BH40)","v":"ZWO"}]
[{"$f":"IF('1. Order'!F41=\"\",\"\",'1. Order'!F41)","v":{"$error":"#N/A"}},{"$f":"IF('1. Order'!G41=\"\",\"\",'1. Order'!G41)","v":""},{"$f":"IF('1. Order'!H41=\"\",\"\",'1. Order'!H41)","v":""},{"$f":"IF('1. Order'!I41=\"\",\"\",'1. Order'!I41)","v":""},{"$f":"IF('1. Order'!J41=\"\",\"\",'1. Order'!J41)","v":""},{"$f":"IF('1. Order'!K41=\"\",\"\",'1. Order'!K41)","v":""},{"$f":"IF('1. Order'!L41=\"\",\"\",'1. Order'!L41)","v":""},{"$f":"IF('1. Order'!M41=\"\",\"\",'1. Order'!M41)","v":""},{"$f":"IF('1. Order'!N41=\"\",\"\",'1. Order'!N41)","v":""},{"$f":"IF('1. Order'!O41=\"\",\"\",'1. Order'!O41)","v":{"$error":"#N/A"}},{"$f":"IF('1. Order'!P41=\"\",\"\",'1. Order'!P41)","v":{"$error":"#N/A"}},{"$f":"IF('1. Order'!Q41=\"\",\"\",'1. Order'!Q41)","v":""},{"$f":"IF('1. Order'!S41=\"\",\"\",'1. Order'!S41)","v":""},{"$f":"IF('1. Order'!T41=\"\",\"\",'1. Order'!T41)","v":""},{"$f":"IF('1. Order'!W41=\"\",\"\",'1. Order'!W41)","v":""},{"$f":"IF('1. Order'!X41=\"\",\"\",'1. Order'!X41)","v":""},{"$f":"IF('1. Order'!Y41=\"\",\"\",'1. Order'!Y41)","v":"EUR"},{"$f":"IF('1. Order'!Z41=\"\",\"\",'1. Order'!Z41)","v":""},{"$f":"IF('1. Order'!AA41=\"\",\"\",'1. Order'!AA41)","v":""},{"$f":"IF('1. Order'!AB41=\"\",\"\",'1. Order'!AB41)","v":""},null,{"$f":"IF('1. Order'!AT41=\"\",\"\",'1. Order'!AT41)","v":""},{"$f":"IF('1. Order'!AU41=\"\",\"\",'1. Order'!AU41)","v":""},null,null,null,null,null,null,null,{"$f":"IF('1. Order'!AY41=\"\",\"\",'1. Order'!AY41)","v":""},{"$f":"IF('1. Order'!AZ41=\"\",\"\",'1. Order'!AZ41)","v":""},{"$f":"IF('1. Order'!BA41=\"\",\"\",'1. Order'!BA41)","v":""},{"$f":"IF('1. Order'!BB41=\"\",\"\",'1. Order'!BB41)","v":""},{"$f":"IF('1. Order'!BD41=\"\",\"\",'1. Order'!BD41)","v":""},{"$f":"IF('1. Order'!BE41=\"\",\"\",'1. Order'!BE41)","v":""},{"$f":"IF('1. Order'!BF41=\"\",\"\",'1. Order'!BF41)","v":""},{"$f":"IF('1. Order'!BG41=\"\",\"\",'1. Order'!BG41)","v":""},{"$f":"IF('1. Order'!BH41=\"\",\"\",'1. Order'!BH41)","v":"ZWO"}]
[{"$f":"IF('1. Order'!F42=\"\",\"\",'1. Order'!F42)","v":{"$error":"#N/A"}},{"$f":"IF('1. Order'!G42=\"\",\"\",'1. Order'!G42)","v":""},{"$f":"IF('1. Order'!H42=\"\",\"\",'1. Order'!H42)","v":""},{"$f":"IF('1. Order'!I42=\"\",\"\",'1. Order'!I42)","v":""},{"$f":"IF('1. Order'!J42=\"\",\"\",'1. Order'!J42)","v":""},{"$f":"IF('1. Order'!K42=\"\",\"\",'1. Order'!K42)","v":""},{"$f":"IF('1. Order'!L42=\"\",\"\",'1. Order'!L42)","v":""},{"$f":"IF('1. Order'!M42=\"\",\"\",'1. Order'!M42)","v":""},{"$f":"IF('1. Order'!N42=\"\",\"\",'1. Order'!N42)","v":""},{"$f":"IF('1. Order'!O42=\"\",\"\",'1. Order'!O42)","v":{"$error":"#N/A"}},{"$f":"IF('1. Order'!P42=\"\",\"\",'1. Order'!P42)","v":{"$error":"#N/A"}},{"$f":"IF('1. Order'!Q42=\"\",\"\",'1. Order'!Q42)","v":""},{"$f":"IF('1. Order'!S42=\"\",\"\",'1. Order'!S42)","v":""},{"$f":"IF('1. Order'!T42=\"\",\"\",'1. Order'!T42)","v":""},{"$f":"IF('1. Order'!W42=\"\",\"\",'1. Order'!W42)","v":""},{"$f":"IF('1. Order'!X42=\"\",\"\",'1. Order'!X42)","v":""},{"$f":"IF('1. Order'!Y42=\"\",\"\",'1. Order'!Y42)","v":"EUR"},{"$f":"IF('1. Order'!Z42=\"\",\"\",'1. Order'!Z42)","v":""},{"$f":"IF('1. Order'!AA42=\"\",\"\",'1. Order'!AA42)","v":""},{"$f":"IF('1. Order'!AB42=\"\",\"\",'1. Order'!AB42)","v":""},null,{"$f":"IF('1. Order'!AT42=\"\",\"\",'1. Order'!AT42)","v":""},{"$f":"IF('1. Order'!AU42=\"\",\"\",'1. Order'!AU42)","v":""},null,null,null,null,null,null,null,{"$f":"IF('1. Order'!AY42=\"\",\"\",'1. Order'!AY42)","v":""},{"$f":"IF('1. Order'!AZ42=\"\",\"\",'1. Order'!AZ42)","v":""},{"$f":"IF('1. Order'!BA42=\"\",\"\",'1. Order'!BA42)","v":""},{"$f":"IF('1. Order'!BB42=\"\",\"\",'1. Order'!BB42)","v":""},{"$f":"IF('1. Order'!BD42=\"\",\"\",'1. Order'!BD42)","v":""},{"$f":"IF('1. Order'!BE42=\"\",\"\",'1. Order'!BE42)","v":""},{"$f":"IF('1. Order'!BF42=\"\",\"\",'1. Order'!BF42)","v":""},{"$f":"IF('1. Order'!BG42=\"\",\"\",'1. Order'!BG42)","v":""},{"$f":"IF('1. Order'!BH42=\"\",\"\",'1. Order'!BH42)","v":"ZWO"}]
[{"$f":"IF('1. Order'!F43=\"\",\"\",'1. Order'!F43)","v":{"$error":"#N/A"}},{"$f":"IF('1. Order'!G43=\"\",\"\",'1. Order'!G43)","v":""},{"$f":"IF('1. Order'!H43=\"\",\"\",'1. Order'!H43)","v":""},{"$f":"IF('1. Order'!I43=\"\",\"\",'1. Order'!I43)","v":""},{"$f":"IF('1. Order'!J43=\"\",\"\",'1. Order'!J43)","v":""},{"$f":"IF('1. Order'!K43=\"\",\"\",'1. Order'!K43)","v":""},{"$f":"IF('1. Order'!L43=\"\",\"\",'1. Order'!L43)","v":""},{"$f":"IF('1. Order'!M43=\"\",\"\",'1. Order'!M43)","v":""},{"$f":"IF('1. Order'!N43=\"\",\"\",'1. Order'!N43)","v":""},{"$f":"IF('1. Order'!O43=\"\",\"\",'1. Order'!O43)","v":{"$error":"#N/A"}},{"$f":"IF('1. Order'!P43=\"\",\"\",'1. Order'!P43)","v":{"$error":"#N/A"}},{"$f":"IF('1. Order'!Q43=\"\",\"\",'1. Order'!Q43)","v":""},{"$f":"IF('1. Order'!S43=\"\",\"\",'1. Order'!S43)","v":""},{"$f":"IF('1. Order'!T43=\"\",\"\",'1. Order'!T43)","v":""},{"$f":"IF('1. Order'!W43=\"\",\"\",'1. Order'!W43)","v":""},{"$f":"IF('1. Order'!X43=\"\",\"\",'1. Order'!X43)","v":""},{"$f":"IF('1. Order'!Y43=\"\",\"\",'1. Order'!Y43)","v":"EUR"},{"$f":"IF('1. Order'!Z43=\"\",\"\",'1. Order'!Z43)","v":""},{"$f":"IF('1. Order'!AA43=\"\",\"\",'1. Order'!AA43)","v":""},{"$f":"IF('1. Order'!AB43=\"\",\"\",'1. Order'!AB43)","v":""},null,{"$f":"IF('1. Order'!AT43=\"\",\"\",'1. Order'!AT43)","v":""},{"$f":"IF('1. Order'!AU43=\"\",\"\",'1. Order'!AU43)","v":""},null,null,null,null,null,null,null,{"$f":"IF('1. Order'!AY43=\"\",\"\",'1. Order'!AY43)","v":""},{"$f":"IF('1. Order'!AZ43=\"\",\"\",'1. Order'!AZ43)","v":""},{"$f":"IF('1. Order'!BA43=\"\",\"\",'1. Order'!BA43)","v":""},{"$f":"IF('1. Order'!BB43=\"\",\"\",'1. Order'!BB43)","v":""},{"$f":"IF('1. Order'!BD43=\"\",\"\",'1. Order'!BD43)","v":""},{"$f":"IF('1. Order'!BE43=\"\",\"\",'1. Order'!BE43)","v":""},{"$f":"IF('1. Order'!BF43=\"\",\"\",'1. Order'!BF43)","v":""},{"$f":"IF('1. Order'!BG43=\"\",\"\",'1. Order'!BG43)","v":""},{"$f":"IF('1. Order'!BH43=\"\",\"\",'1. Order'!BH43)","v":"ZWO"}]
[{"$f":"IF('1. Order'!F44=\"\",\"\",'1. Order'!F44)","v":{"$error":"#N/A"}},{"$f":"IF('1. Order'!G44=\"\",\"\",'1. Order'!G44)","v":""},{"$f":"IF('1. Order'!H44=\"\",\"\",'1. Order'!H44)","v":""},{"$f":"IF('1. Order'!I44=\"\",\"\",'1. Order'!I44)","v":""},{"$f":"IF('1. Order'!J44=\"\",\"\",'1. Order'!J44)","v":""},{"$f":"IF('1. Order'!K44=\"\",\"\",'1. Order'!K44)","v":""},{"$f":"IF('1. Order'!L44=\"\",\"\",'1. Order'!L44)","v":""},{"$f":"IF('1. Order'!M44=\"\",\"\",'1. Order'!M44)","v":""},{"$f":"IF('1. Order'!N44=\"\",\"\",'1. Order'!N44)","v":""},{"$f":"IF('1. Order'!O44=\"\",\"\",'1. Order'!O44)","v":{"$error":"#N/A"}},{"$f":"IF('1. Order'!P44=\"\",\"\",'1. Order'!P44)","v":{"$error":"#N/A"}},{"$f":"IF('1. Order'!Q44=\"\",\"\",'1. Order'!Q44)","v":""},{"$f":"IF('1. Order'!S44=\"\",\"\",'1. Order'!S44)","v":""},{"$f":"IF('1. Order'!T44=\"\",\"\",'1. Order'!T44)","v":""},{"$f":"IF('1. Order'!W44=\"\",\"\",'1. Order'!W44)","v":""},{"$f":"IF('1. Order'!X44=\"\",\"\",'1. Order'!X44)","v":""},{"$f":"IF('1. Order'!Y44=\"\",\"\",'1. Order'!Y44)","v":"EUR"},{"$f":"IF('1. Order'!Z44=\"\",\"\",'1. Order'!Z44)","v":""},{"$f":"IF('1. Order'!AA44=\"\",\"\",'1. Order'!AA44)","v":""},{"$f":"IF('1. Order'!AB44=\"\",\"\",'1. Order'!AB44)","v":""},null,{"$f":"IF('1. Order'!AT44=\"\",\"\",'1. Order'!AT44)","v":""},{"$f":"IF('1. Order'!AU44=\"\",\"\",'1. Order'!AU44)","v":""},null,null,null,null,null,null,null,{"$f":"IF('1. Order'!AY44=\"\",\"\",'1. Order'!AY44)","v":""},{"$f":"IF('1. Order'!AZ44=\"\",\"\",'1. Order'!AZ44)","v":""},{"$f":"IF('1. Order'!BA44=\"\",\"\",'1. Order'!BA44)","v":""},{"$f":"IF('1. Order'!BB44=\"\",\"\",'1. Order'!BB44)","v":""},{"$f":"IF('1. Order'!BD44=\"\",\"\",'1. Order'!BD44)","v":""},{"$f":"IF('1. Order'!BE44=\"\",\"\",'1. Order'!BE44)","v":""},{"$f":"IF('1. Order'!BF44=\"\",\"\",'1. Order'!BF44)","v":""},{"$f":"IF('1. Order'!BG44=\"\",\"\",'1. Order'!BG44)","v":""},{"$f":"IF('1. Order'!BH44=\"\",\"\",'1. Order'!BH44)","v":"ZWO"}]
[{"$f":"IF('1. Order'!F45=\"\",\"\",'1. Order'!F45)","v":{"$error":"#N/A"}},{"$f":"IF('1. Order'!G45=\"\",\"\",'1. Order'!G45)","v":""},{"$f":"IF('1. Order'!H45=\"\",\"\",'1. Order'!H45)","v":""},{"$f":"IF('1. Order'!I45=\"\",\"\",'1. Order'!I45)","v":""},{"$f":"IF('1. Order'!J45=\"\",\"\",'1. Order'!J45)","v":""},{"$f":"IF('1. Order'!K45=\"\",\"\",'1. Order'!K45)","v":""},{"$f":"IF('1. Order'!L45=\"\",\"\",'1. Order'!L45)","v":""},{"$f":"IF('1. Order'!M45=\"\",\"\",'1. Order'!M45)","v":""},{"$f":"IF('1. Order'!N45=\"\",\"\",'1. Order'!N45)","v":""},{"$f":"IF('1. Order'!O45=\"\",\"\",'1. Order'!O45)","v":{"$error":"#N/A"}},{"$f":"IF('1. Order'!P45=\"\",\"\",'1. Order'!P45)","v":{"$error":"#N/A"}},{"$f":"IF('1. Order'!Q45=\"\",\"\",'1. Order'!Q45)","v":""},{"$f":"IF('1. Order'!S45=\"\",\"\",'1. Order'!S45)","v":""},{"$f":"IF('1. Order'!T45=\"\",\"\",'1. Order'!T45)","v":""},{"$f":"IF('1. Order'!W45=\"\",\"\",'1. Order'!W45)","v":""},{"$f":"IF('1. Order'!X45=\"\",\"\",'1. Order'!X45)","v":""},{"$f":"IF('1. Order'!Y45=\"\",\"\",'1. Order'!Y45)","v":"EUR"},{"$f":"IF('1. Order'!Z45=\"\",\"\",'1. Order'!Z45)","v":""},{"$f":"IF('1. Order'!AA45=\"\",\"\",'1. Order'!AA45)","v":""},{"$f":"IF('1. Order'!AB45=\"\",\"\",'1. Order'!AB45)","v":""},null,{"$f":"IF('1. Order'!AT45=\"\",\"\",'1. Order'!AT45)","v":""},{"$f":"IF('1. Order'!AU45=\"\",\"\",'1. Order'!AU45)","v":""},null,null,null,null,null,null,null,{"$f":"IF('1. Order'!AY45=\"\",\"\",'1. Order'!AY45)","v":""},{"$f":"IF('1. Order'!AZ45=\"\",\"\",'1. Order'!AZ45)","v":""},{"$f":"IF('1. Order'!BA45=\"\",\"\",'1. Order'!BA45)","v":""},{"$f":"IF('1. Order'!BB45=\"\",\"\",'1. Order'!BB45)","v":""},{"$f":"IF('1. Order'!BD45=\"\",\"\",'1. Order'!BD45)","v":""},{"$f":"IF('1. Order'!BE45=\"\",\"\",'1. Order'!BE45)","v":""},{"$f":"IF('1. Order'!BF45=\"\",\"\",'1. Order'!BF45)","v":""},{"$f":"IF('1. Order'!BG45=\"\",\"\",'1. Order'!BG45)","v":""},{"$f":"IF('1. Order'!BH45=\"\",\"\",'1. Order'!BH45)","v":"ZWO"}]
[{"$f":"IF('1. Order'!F46=\"\",\"\",'1. Order'!F46)","v":{"$error":"#N/A"}},{"$f":"IF('1. Order'!G46=\"\",\"\",'1. Order'!G46)","v":""},{"$f":"IF('1. Order'!H46=\"\",\"\",'1. Order'!H46)","v":""},{"$f":"IF('1. Order'!I46=\"\",\"\",'1. Order'!I46)","v":""},{"$f":"IF('1. Order'!J46=\"\",\"\",'1. Order'!J46)","v":""},{"$f":"IF('1. Order'!K46=\"\",\"\",'1. Order'!K46)","v":""},{"$f":"IF('1. Order'!L46=\"\",\"\",'1. Order'!L46)","v":""},{"$f":"IF('1. Order'!M46=\"\",\"\",'1. Order'!M46)","v":""},{"$f":"IF('1. Order'!N46=\"\",\"\",'1. Order'!N46)","v":""},{"$f":"IF('1. Order'!O46=\"\",\"\",'1. Order'!O46)","v":{"$error":"#N/A"}},{"$f":"IF('1. Order'!P46=\"\",\"\",'1. Order'!P46)","v":{"$error":"#N/A"}},{"$f":"IF('1. Order'!Q46=\"\",\"\",'1. Order'!Q46)","v":""},{"$f":"IF('1. Order'!S46=\"\",\"\",'1. Order'!S46)","v":""},{"$f":"IF('1. Order'!T46=\"\",\"\",'1. Order'!T46)","v":""},{"$f":"IF('1. Order'!W46=\"\",\"\",'1. Order'!W46)","v":""},{"$f":"IF('1. Order'!X46=\"\",\"\",'1. Order'!X46)","v":""},{"$f":"IF('1. Order'!Y46=\"\",\"\",'1. Order'!Y46)","v":"EUR"},{"$f":"IF('1. Order'!Z46=\"\",\"\",'1. Order'!Z46)","v":""},{"$f":"IF('1. Order'!AA46=\"\",\"\",'1. Order'!AA46)","v":""},{"$f":"IF('1. Order'!AB46=\"\",\"\",'1. Order'!AB46)","v":""},null,{"$f":"IF('1. Order'!AT46=\"\",\"\",'1. Order'!AT46)","v":""},{"$f":"IF('1. Order'!AU46=\"\",\"\",'1. Order'!AU46)","v":""},null,null,null,null,null,null,null,{"$f":"IF('1. Order'!AY46=\"\",\"\",'1. Order'!AY46)","v":""},{"$f":"IF('1. Order'!AZ46=\"\",\"\",'1. Order'!AZ46)","v":""},{"$f":"IF('1. Order'!BA46=\"\",\"\",'1. Order'!BA46)","v":""},{"$f":"IF('1. Order'!BB46=\"\",\"\",'1. Order'!BB46)","v":""},{"$f":"IF('1. Order'!BD46=\"\",\"\",'1. Order'!BD46)","v":""},{"$f":"IF('1. Order'!BE46=\"\",\"\",'1. Order'!BE46)","v":""},{"$f":"IF('1. Order'!BF46=\"\",\"\",'1. Order'!BF46)","v":""},{"$f":"IF('1. Order'!BG46=\"\",\"\",'1. Order'!BG46)","v":""},{"$f":"IF('1. Order'!BH46=\"\",\"\",'1. Order'!BH46)","v":"ZWO"}]
[{"$f":"IF('1. Order'!F47=\"\",\"\",'1. Order'!F47)","v":{"$error":"#N/A"}},{"$f":"IF('1. Order'!G47=\"\",\"\",'1. Order'!G47)","v":""},{"$f":"IF('1. Order'!H47=\"\",\"\",'1. Order'!H47)","v":""},{"$f":"IF('1. Order'!I47=\"\",\"\",'1. Order'!I47)","v":""},{"$f":"IF('1. Order'!J47=\"\",\"\",'1. Order'!J47)","v":""},{"$f":"IF('1. Order'!K47=\"\",\"\",'1. Order'!K47)","v":""},{"$f":"IF('1. Order'!L47=\"\",\"\",'1. Order'!L47)","v":""},{"$f":"IF('1. Order'!M47=\"\",\"\",'1. Order'!M47)","v":""},{"$f":"IF('1. Order'!N47=\"\",\"\",'1. Order'!N47)","v":""},{"$f":"IF('1. Order'!O47=\"\",\"\",'1. Order'!O47)","v":{"$error":"#N/A"}},{"$f":"IF('1. Order'!P47=\"\",\"\",'1. Order'!P47)","v":{"$error":"#N/A"}},{"$f":"IF('1. Order'!Q47=\"\",\"\",'1. Order'!Q47)","v":""},{"$f":"IF('1. Order'!S47=\"\",\"\",'1. Order'!S47)","v":""},{"$f":"IF('1. Order'!T47=\"\",\"\",'1. Order'!T47)","v":""},{"$f":"IF('1. Order'!W47=\"\",\"\",'1. Order'!W47)","v":""},{"$f":"IF('1. Order'!X47=\"\",\"\",'1. Order'!X47)","v":""},{"$f":"IF('1. Order'!Y47=\"\",\"\",'1. Order'!Y47)","v":"EUR"},{"$f":"IF('1. Order'!Z47=\"\",\"\",'1. Order'!Z47)","v":""},{"$f":"IF('1. Order'!AA47=\"\",\"\",'1. Order'!AA47)","v":""},{"$f":"IF('1. Order'!AB47=\"\",\"\",'1. Order'!AB47)","v":""},null,{"$f":"IF('1. Order'!AT47=\"\",\"\",'1. Order'!AT47)","v":""},{"$f":"IF('1. Order'!AU47=\"\",\"\",'1. Order'!AU47)","v":""},null,null,null,null,null,null,null,{"$f":"IF('1. Order'!AY47=\"\",\"\",'1. Order'!AY47)","v":""},{"$f":"IF('1. Order'!AZ47=\"\",\"\",'1. Order'!AZ47)","v":""},{"$f":"IF('1. Order'!BA47=\"\",\"\",'1. Order'!BA47)","v":""},{"$f":"IF('1. Order'!BB47=\"\",\"\",'1. Order'!BB47)","v":""},{"$f":"IF('1. Order'!BD47=\"\",\"\",'1. Order'!BD47)","v":""},{"$f":"IF('1. Order'!BE47=\"\",\"\",'1. Order'!BE47)","v":""},{"$f":"IF('1. Order'!BF47=\"\",\"\",'1. Order'!BF47)","v":""},{"$f":"IF('1. Order'!BG47=\"\",\"\",'1. Order'!BG47)","v":""},{"$f":"IF('1. Order'!BH47=\"\",\"\",'1. Order'!BH47)","v":"ZWO"}]
[{"$f":"IF('1. Order'!F48=\"\",\"\",'1. Order'!F48)","v":{"$error":"#N/A"}},{"$f":"IF('1. Order'!G48=\"\",\"\",'1. Order'!G48)","v":""},{"$f":"IF('1. Order'!H48=\"\",\"\",'1. Order'!H48)","v":""},{"$f":"IF('1. Order'!I48=\"\",\"\",'1. Order'!I48)","v":""},{"$f":"IF('1. Order'!J48=\"\",\"\",'1. Order'!J48)","v":""},{"$f":"IF('1. Order'!K48=\"\",\"\",'1. Order'!K48)","v":""},{"$f":"IF('1. Order'!L48=\"\",\"\",'1. Order'!L48)","v":""},{"$f":"IF('1. Order'!M48=\"\",\"\",'1. Order'!M48)","v":""},{"$f":"IF('1. Order'!N48=\"\",\"\",'1. Order'!N48)","v":""},{"$f":"IF('1. Order'!O48=\"\",\"\",'1. Order'!O48)","v":{"$error":"#N/A"}},{"$f":"IF('1. Order'!P48=\"\",\"\",'1. Order'!P48)","v":{"$error":"#N/A"}},{"$f":"IF('1. Order'!Q48=\"\",\"\",'1. Order'!Q48)","v":""},{"$f":"IF('1. Order'!S48=\"\",\"\",'1. Order'!S48)","v":""},{"$f":"IF('1. Order'!T48=\"\",\"\",'1. Order'!T48)","v":""},{"$f":"IF('1. Order'!W48=\"\",\"\",'1. Order'!W48)","v":""},{"$f":"IF('1. Order'!X48=\"\",\"\",'1. Order'!X48)","v":""},{"$f":"IF('1. Order'!Y48=\"\",\"\",'1. Order'!Y48)","v":"EUR"},{"$f":"IF('1. Order'!Z48=\"\",\"\",'1. Order'!Z48)","v":""},{"$f":"IF('1. Order'!AA48=\"\",\"\",'1. Order'!AA48)","v":""},{"$f":"IF('1. Order'!AB48=\"\",\"\",'1. Order'!AB48)","v":""},null,{"$f":"IF('1. Order'!AT48=\"\",\"\",'1. Order'!AT48)","v":""},{"$f":"IF('1. Order'!AU48=\"\",\"\",'1. Order'!AU48)","v":""},null,null,null,null,null,null,null,{"$f":"IF('1. Order'!AY48=\"\",\"\",'1. Order'!AY48)","v":""},{"$f":"IF('1. Order'!AZ48=\"\",\"\",'1. Order'!AZ48)","v":""},{"$f":"IF('1. Order'!BA48=\"\",\"\",'1. Order'!BA48)","v":""},{"$f":"IF('1. Order'!BB48=\"\",\"\",'1. Order'!BB48)","v":""},{"$f":"IF('1. Order'!BD48=\"\",\"\",'1. Order'!BD48)","v":""},{"$f":"IF('1. Order'!BE48=\"\",\"\",'1. Order'!BE48)","v":""},{"$f":"IF('1. Order'!BF48=\"\",\"\",'1. Order'!BF48)","v":""},{"$f":"IF('1. Order'!BG48=\"\",\"\",'1. Order'!BG48)","v":""},{"$f":"IF('1. Order'!BH48=\"\",\"\",'1. Order'!BH48)","v":"ZWO"}]
[{"$f":"IF('1. Order'!F49=\"\",\"\",'1. Order'!F49)","v":{"$error":"#N/A"}},{"$f":"IF('1. Order'!G49=\"\",\"\",'1. Order'!G49)","v":""},{"$f":"IF('1. Order'!H49=\"\",\"\",'1. Order'!H49)","v":""},{"$f":"IF('1. Order'!I49=\"\",\"\",'1. Order'!I49)","v":""},{"$f":"IF('1. Order'!J49=\"\",\"\",'1. Order'!J49)","v":""},{"$f":"IF('1. Order'!K49=\"\",\"\",'1. Order'!K49)","v":""},{"$f":"IF('1. Order'!L49=\"\",\"\",'1. Order'!L49)","v":""},{"$f":"IF('1. Order'!M49=\"\",\"\",'1. Order'!M49)","v":""},{"$f":"IF('1. Order'!N49=\"\",\"\",'1. Order'!N49)","v":""},{"$f":"IF('1. Order'!O49=\"\",\"\",'1. Order'!O49)","v":{"$error":"#N/A"}},{"$f":"IF('1. Order'!P49=\"\",\"\",'1. Order'!P49)","v":{"$error":"#N/A"}},{"$f":"IF('1. Order'!Q49=\"\",\"\",'1. Order'!Q49)","v":""},{"$f":"IF('1. Order'!S49=\"\",\"\",'1. Order'!S49)","v":""},{"$f":"IF('1. Order'!T49=\"\",\"\",'1. Order'!T49)","v":""},{"$f":"IF('1. Order'!W49=\"\",\"\",'1. Order'!W49)","v":""},{"$f":"IF('1. Order'!X49=\"\",\"\",'1. Order'!X49)","v":""},{"$f":"IF('1. Order'!Y49=\"\",\"\",'1. Order'!Y49)","v":"EUR"},{"$f":"IF('1. Order'!Z49=\"\",\"\",'1. Order'!Z49)","v":""},{"$f":"IF('1. Order'!AA49=\"\",\"\",'1. Order'!AA49)","v":""},{"$f":"IF('1. Order'!AB49=\"\",\"\",'1. Order'!AB49)","v":""},null,{"$f":"IF('1. Order'!AT49=\"\",\"\",'1. Order'!AT49)","v":""},{"$f":"IF('1. Order'!AU49=\"\",\"\",'1. Order'!AU49)","v":""},null,null,null,null,null,null,null,{"$f":"IF('1. Order'!AY49=\"\",\"\",'1. Order'!AY49)","v":""},{"$f":"IF('1. Order'!AZ49=\"\",\"\",'1. Order'!AZ49)","v":""},{"$f":"IF('1. Order'!BA49=\"\",\"\",'1. Order'!BA49)","v":""},{"$f":"IF('1. Order'!BB49=\"\",\"\",'1. Order'!BB49)","v":""},{"$f":"IF('1. Order'!BD49=\"\",\"\",'1. Order'!BD49)","v":""},{"$f":"IF('1. Order'!BE49=\"\",\"\",'1. Order'!BE49)","v":""},{"$f":"IF('1. Order'!BF49=\"\",\"\",'1. Order'!BF49)","v":""},{"$f":"IF('1. Order'!BG49=\"\",\"\",'1. Order'!BG49)","v":""},{"$f":"IF('1. Order'!BH49=\"\",\"\",'1. Order'!BH49)","v":"ZWO"}]
[{"$f":"IF('1. Order'!F50=\"\",\"\",'1. Order'!F50)","v":{"$error":"#N/A"}},{"$f":"IF('1. Order'!G50=\"\",\"\",'1. Order'!G50)","v":""},{"$f":"IF('1. Order'!H50=\"\",\"\",'1. Order'!H50)","v":""},{"$f":"IF('1. Order'!I50=\"\",\"\",'1. Order'!I50)","v":""},{"$f":"IF('1. Order'!J50=\"\",\"\",'1. Order'!J50)","v":""},{"$f":"IF('1. Order'!K50=\"\",\"\",'1. Order'!K50)","v":""},{"$f":"IF('1. Order'!L50=\"\",\"\",'1. Order'!L50)","v":""},{"$f":"IF('1. Order'!M50=\"\",\"\",'1. Order'!M50)","v":""},{"$f":"IF('1. Order'!N50=\"\",\"\",'1. Order'!N50)","v":""},{"$f":"IF('1. Order'!O50=\"\",\"\",'1. Order'!O50)","v":{"$error":"#N/A"}},{"$f":"IF('1. Order'!P50=\"\",\"\",'1. Order'!P50)","v":{"$error":"#N/A"}},{"$f":"IF('1. Order'!Q50=\"\",\"\",'1. Order'!Q50)","v":""},{"$f":"IF('1. Order'!S50=\"\",\"\",'1. Order'!S50)","v":""},{"$f":"IF('1. Order'!T50=\"\",\"\",'1. Order'!T50)","v":""},{"$f":"IF('1. Order'!W50=\"\",\"\",'1. Order'!W50)","v":""},{"$f":"IF('1. Order'!X50=\"\",\"\",'1. Order'!X50)","v":""},{"$f":"IF('1. Order'!Y50=\"\",\"\",'1. Order'!Y50)","v":"EUR"},{"$f":"IF('1. Order'!Z50=\"\",\"\",'1. Order'!Z50)","v":""},{"$f":"IF('1. Order'!AA50=\"\",\"\",'1. Order'!AA50)","v":""},{"$f":"IF('1. Order'!AB50=\"\",\"\",'1. Order'!AB50)","v":""},null,{"$f":"IF('1. Order'!AT50=\"\",\"\",'1. Order'!AT50)","v":""},{"$f":"IF('1. Order'!AU50=\"\",\"\",'1. Order'!AU50)","v":""},null,null,null,null,null,null,null,{"$f":"IF('1. Order'!AY50=\"\",\"\",'1. Order'!AY50)","v":""},{"$f":"IF('1. Order'!AZ50=\"\",\"\",'1. Order'!AZ50)","v":""},{"$f":"IF('1. Order'!BA50=\"\",\"\",'1. Order'!BA50)","v":""},{"$f":"IF('1. Order'!BB50=\"\",\"\",'1. Order'!BB50)","v":""},{"$f":"IF('1. Order'!BD50=\"\",\"\",'1. Order'!BD50)","v":""},{"$f":"IF('1. Order'!BE50=\"\",\"\",'1. Order'!BE50)","v":""},{"$f":"IF('1. Order'!BF50=\"\",\"\",'1. Order'!BF50)","v":""},{"$f":"IF('1. Order'!BG50=\"\",\"\",'1. Order'!BG50)","v":""},{"$f":"IF('1. Order'!BH50=\"\",\"\",'1. Order'!BH50)","v":"ZWO"}]
[{"$f":"IF('1. Order'!F51=\"\",\"\",'1. Order'!F51)","v":{"$error":"#N/A"}},{"$f":"IF('1. Order'!G51=\"\",\"\",'1. Order'!G51)","v":""},{"$f":"IF('1. Order'!H51=\"\",\"\",'1. Order'!H51)","v":""},{"$f":"IF('1. Order'!I51=\"\",\"\",'1. Order'!I51)","v":""},{"$f":"IF('1. Order'!J51=\"\",\"\",'1. Order'!J51)","v":""},{"$f":"IF('1. Order'!K51=\"\",\"\",'1. Order'!K51)","v":""},{"$f":"IF('1. Order'!L51=\"\",\"\",'1. Order'!L51)","v":""},{"$f":"IF('1. Order'!M51=\"\",\"\",'1. Order'!M51)","v":""},{"$f":"IF('1. Order'!N51=\"\",\"\",'1. Order'!N51)","v":""},{"$f":"IF('1. Order'!O51=\"\",\"\",'1. Order'!O51)","v":{"$error":"#N/A"}},{"$f":"IF('1. Order'!P51=\"\",\"\",'1. Order'!P51)","v":{"$error":"#N/A"}},{"$f":"IF('1. Order'!Q51=\"\",\"\",'1. Order'!Q51)","v":""},{"$f":"IF('1. Order'!S51=\"\",\"\",'1. Order'!S51)","v":""},{"$f":"IF('1. Order'!T51=\"\",\"\",'1. Order'!T51)","v":""},{"$f":"IF('1. Order'!W51=\"\",\"\",'1. Order'!W51)","v":""},{"$f":"IF('1. Order'!X51=\"\",\"\",'1. Order'!X51)","v":""},{"$f":"IF('1. Order'!Y51=\"\",\"\",'1. Order'!Y51)","v":"EUR"},{"$f":"IF('1. Order'!Z51=\"\",\"\",'1. Order'!Z51)","v":""},{"$f":"IF('1. Order'!AA51=\"\",\"\",'1. Order'!AA51)","v":""},{"$f":"IF('1. Order'!AB51=\"\",\"\",'1. Order'!AB51)","v":""},null,{"$f":"IF('1. Order'!AT51=\"\",\"\",'1. Order'!AT51)","v":""},{"$f":"IF('1. Order'!AU51=\"\",\"\",'1. Order'!AU51)","v":""},null,null,null,null,null,null,null,{"$f":"IF('1. Order'!AY51=\"\",\"\",'1. Order'!AY51)","v":""},{"$f":"IF('1. Order'!AZ51=\"\",\"\",'1. Order'!AZ51)","v":""},{"$f":"IF('1. Order'!BA51=\"\",\"\",'1. Order'!BA51)","v":""},{"$f":"IF('1. Order'!BB51=\"\",\"\",'1. Order'!BB51)","v":""},{"$f":"IF('1. Order'!BD51=\"\",\"\",'1. Order'!BD51)","v":""},{"$f":"IF('1. Order'!BE51=\"\",\"\",'1. Order'!BE51)","v":""},{"$f":"IF('1. Order'!BF51=\"\",\"\",'1. Order'!BF51)","v":""},{"$f":"IF('1. Order'!BG51=\"\",\"\",'1. Order'!BG51)","v":""},{"$f":"IF('1. Order'!BH51=\"\",\"\",'1. Order'!BH51)","v":"ZWO"}]
[{"$f":"IF('1. Order'!F52=\"\",\"\",'1. Order'!F52)","v":{"$error":"#N/A"}},{"$f":"IF('1. Order'!G52=\"\",\"\",'1. Order'!G52)","v":""},{"$f":"IF('1. Order'!H52=\"\",\"\",'1. Order'!H52)","v":""},{"$f":"IF('1. Order'!I52=\"\",\"\",'1. Order'!I52)","v":""},{"$f":"IF('1. Order'!J52=\"\",\"\",'1. Order'!J52)","v":""},{"$f":"IF('1. Order'!K52=\"\",\"\",'1. Order'!K52)","v":""},{"$f":"IF('1. Order'!L52=\"\",\"\",'1. Order'!L52)","v":""},{"$f":"IF('1. Order'!M52=\"\",\"\",'1. Order'!M52)","v":""},{"$f":"IF('1. Order'!N52=\"\",\"\",'1. Order'!N52)","v":""},{"$f":"IF('1. Order'!O52=\"\",\"\",'1. Order'!O52)","v":{"$error":"#N/A"}},{"$f":"IF('1. Order'!P52=\"\",\"\",'1. Order'!P52)","v":{"$error":"#N/A"}},{"$f":"IF('1. Order'!Q52=\"\",\"\",'1. Order'!Q52)","v":""},{"$f":"IF('1. Order'!S52=\"\",\"\",'1. Order'!S52)","v":""},{"$f":"IF('1. Order'!T52=\"\",\"\",'1. Order'!T52)","v":""},{"$f":"IF('1. Order'!W52=\"\",\"\",'1. Order'!W52)","v":""},{"$f":"IF('1. Order'!X52=\"\",\"\",'1. Order'!X52)","v":""},{"$f":"IF('1. Order'!Y52=\"\",\"\",'1. Order'!Y52)","v":"EUR"},{"$f":"IF('1. Order'!Z52=\"\",\"\",'1. Order'!Z52)","v":""},{"$f":"IF('1. Order'!AA52=\"\",\"\",'1. Order'!AA52)","v":""},{"$f":"IF('1. Order'!AB52=\"\",\"\",'1. Order'!AB52)","v":""},null,{"$f":"IF('1. Order'!AT52=\"\",\"\",'1. Order'!AT52)","v":""},{"$f":"IF('1. Order'!AU52=\"\",\"\",'1. Order'!AU52)","v":""},null,null,null,null,null,null,null,{"$f":"IF('1. Order'!AY52=\"\",\"\",'1. Order'!AY52)","v":""},{"$f":"IF('1. Order'!AZ52=\"\",\"\",'1. Order'!AZ52)","v":""},{"$f":"IF('1. Order'!BA52=\"\",\"\",'1. Order'!BA52)","v":""},{"$f":"IF('1. Order'!BB52=\"\",\"\",'1. Order'!BB52)","v":""},{"$f":"IF('1. Order'!BD52=\"\",\"\",'1. Order'!BD52)","v":""},{"$f":"IF('1. Order'!BE52=\"\",\"\",'1. Order'!BE52)","v":""},{"$f":"IF('1. Order'!BF52=\"\",\"\",'1. Order'!BF52)","v":""},{"$f":"IF('1. Order'!BG52=\"\",\"\",'1. Order'!BG52)","v":""},{"$f":"IF('1. Order'!BH52=\"\",\"\",'1. Order'!BH52)","v":"ZWO"}]
[{"$f":"IF('1. Order'!F53=\"\",\"\",'1. Order'!F53)","v":{"$error":"#N/A"}},{"$f":"IF('1. Order'!G53=\"\",\"\",'1. Order'!G53)","v":""},{"$f":"IF('1. Order'!H53=\"\",\"\",'1. Order'!H53)","v":""},{"$f":"IF('1. Order'!I53=\"\",\"\",'1. Order'!I53)","v":""},{"$f":"IF('1. Order'!J53=\"\",\"\",'1. Order'!J53)","v":""},{"$f":"IF('1. Order'!K53=\"\",\"\",'1. Order'!K53)","v":""},{"$f":"IF('1. Order'!L53=\"\",\"\",'1. Order'!L53)","v":""},{"$f":"IF('1. Order'!M53=\"\",\"\",'1. Order'!M53)","v":""},{"$f":"IF('1. Order'!N53=\"\",\"\",'1. Order'!N53)","v":""},{"$f":"IF('1. Order'!O53=\"\",\"\",'1. Order'!O53)","v":{"$error":"#N/A"}},{"$f":"IF('1. Order'!P53=\"\",\"\",'1. Order'!P53)","v":{"$error":"#N/A"}},{"$f":"IF('1. Order'!Q53=\"\",\"\",'1. Order'!Q53)","v":""},{"$f":"IF('1. Order'!S53=\"\",\"\",'1. Order'!S53)","v":""},{"$f":"IF('1. Order'!T53=\"\",\"\",'1. Order'!T53)","v":""},{"$f":"IF('1. Order'!W53=\"\",\"\",'1. Order'!W53)","v":""},{"$f":"IF('1. Order'!X53=\"\",\"\",'1. Order'!X53)","v":""},{"$f":"IF('1. Order'!Y53=\"\",\"\",'1. Order'!Y53)","v":"EUR"},{"$f":"IF('1. Order'!Z53=\"\",\"\",'1. Order'!Z53)","v":""},{"$f":"IF('1. Order'!AA53=\"\",\"\",'1. Order'!AA53)","v":""},{"$f":"IF('1. Order'!AB53=\"\",\"\",'1. Order'!AB53)","v":""},null,{"$f":"IF('1. Order'!AT53=\"\",\"\",'1. Order'!AT53)","v":""},{"$f":"IF('1. Order'!AU53=\"\",\"\",'1. Order'!AU53)","v":""},null,null,null,null,null,null,null,{"$f":"IF('1. Order'!AY53=\"\",\"\",'1. Order'!AY53)","v":""},{"$f":"IF('1. Order'!AZ53=\"\",\"\",'1. Order'!AZ53)","v":""},{"$f":"IF('1. Order'!BA53=\"\",\"\",'1. Order'!BA53)","v":""},{"$f":"IF('1. Order'!BB53=\"\",\"\",'1. Order'!BB53)","v":""},{"$f":"IF('1. Order'!BD53=\"\",\"\",'1. Order'!BD53)","v":""},{"$f":"IF('1. Order'!BE53=\"\",\"\",'1. Order'!BE53)","v":""},{"$f":"IF('1. Order'!BF53=\"\",\"\",'1. Order'!BF53)","v":""},{"$f":"IF('1. Order'!BG53=\"\",\"\",'1. Order'!BG53)","v":""},{"$f":"IF('1. Order'!BH53=\"\",\"\",'1. Order'!BH53)","v":"ZWO"}]
[{"$f":"IF('1. Order'!F54=\"\",\"\",'1. Order'!F54)","v":{"$error":"#N/A"}},{"$f":"IF('1. Order'!G54=\"\",\"\",'1. Order'!G54)","v":""},{"$f":"IF('1. Order'!H54=\"\",\"\",'1. Order'!H54)","v":""},{"$f":"IF('1. Order'!I54=\"\",\"\",'1. Order'!I54)","v":""},{"$f":"IF('1. Order'!J54=\"\",\"\",'1. Order'!J54)","v":""},{"$f":"IF('1. Order'!K54=\"\",\"\",'1. Order'!K54)","v":""},{"$f":"IF('1. Order'!L54=\"\",\"\",'1. Order'!L54)","v":""},{"$f":"IF('1. Order'!M54=\"\",\"\",'1. Order'!M54)","v":""},{"$f":"IF('1. Order'!N54=\"\",\"\",'1. Order'!N54)","v":""},{"$f":"IF('1. Order'!O54=\"\",\"\",'1. Order'!O54)","v":{"$error":"#N/A"}},{"$f":"IF('1. Order'!P54=\"\",\"\",'1. Order'!P54)","v":{"$error":"#N/A"}},{"$f":"IF('1. Order'!Q54=\"\",\"\",'1. Order'!Q54)","v":""},{"$f":"IF('1. Order'!S54=\"\",\"\",'1. Order'!S54)","v":""},{"$f":"IF('1. Order'!T54=\"\",\"\",'1. Order'!T54)","v":""},{"$f":"IF('1. Order'!W54=\"\",\"\",'1. Order'!W54)","v":""},{"$f":"IF('1. Order'!X54=\"\",\"\",'1. Order'!X54)","v":""},{"$f":"IF('1. Order'!Y54=\"\",\"\",'1. Order'!Y54)","v":"EUR"},{"$f":"IF('1. Order'!Z54=\"\",\"\",'1. Order'!Z54)","v":""},{"$f":"IF('1. Order'!AA54=\"\",\"\",'1. Order'!AA54)","v":""},{"$f":"IF('1. Order'!AB54=\"\",\"\",'1. Order'!AB54)","v":""},null,{"$f":"IF('1. Order'!AT54=\"\",\"\",'1. Order'!AT54)","v":""},{"$f":"IF('1. Order'!AU54=\"\",\"\",'1. Order'!AU54)","v":""},null,null,null,null,null,null,null,{"$f":"IF('1. Order'!AY54=\"\",\"\",'1. Order'!AY54)","v":""},{"$f":"IF('1. Order'!AZ54=\"\",\"\",'1. Order'!AZ54)","v":""},{"$f":"IF('1. Order'!BA54=\"\",\"\",'1. Order'!BA54)","v":""},{"$f":"IF('1. Order'!BB54=\"\",\"\",'1. Order'!BB54)","v":""},{"$f":"IF('1. Order'!BD54=\"\",\"\",'1. Order'!BD54)","v":""},{"$f":"IF('1. Order'!BE54=\"\",\"\",'1. Order'!BE54)","v":""},{"$f":"IF('1. Order'!BF54=\"\",\"\",'1. Order'!BF54)","v":""},{"$f":"IF('1. Order'!BG54=\"\",\"\",'1. Order'!BG54)","v":""},{"$f":"IF('1. Order'!BH54=\"\",\"\",'1. Order'!BH54)","v":"ZWO"}]
[{"$f":"IF('1. Order'!F55=\"\",\"\",'1. Order'!F55)","v":{"$error":"#N/A"}},{"$f":"IF('1. Order'!G55=\"\",\"\",'1. Order'!G55)","v":""},{"$f":"IF('1. Order'!H55=\"\",\"\",'1. Order'!H55)","v":""},{"$f":"IF('1. Order'!I55=\"\",\"\",'1. Order'!I55)","v":""},{"$f":"IF('1. Order'!J55=\"\",\"\",'1. Order'!J55)","v":""},{"$f":"IF('1. Order'!K55=\"\",\"\",'1. Order'!K55)","v":""},{"$f":"IF('1. Order'!L55=\"\",\"\",'1. Order'!L55)","v":""},{"$f":"IF('1. Order'!M55=\"\",\"\",'1. Order'!M55)","v":""},{"$f":"IF('1. Order'!N55=\"\",\"\",'1. Order'!N55)","v":""},{"$f":"IF('1. Order'!O55=\"\",\"\",'1. Order'!O55)","v":{"$error":"#N/A"}},{"$f":"IF('1. Order'!P55=\"\",\"\",'1. Order'!P55)","v":{"$error":"#N/A"}},{"$f":"IF('1. Order'!Q55=\"\",\"\",'1. Order'!Q55)","v":""},{"$f":"IF('1. Order'!S55=\"\",\"\",'1. Order'!S55)","v":""},{"$f":"IF('1. Order'!T55=\"\",\"\",'1. Order'!T55)","v":""},{"$f":"IF('1. Order'!W55=\"\",\"\",'1. Order'!W55)","v":""},{"$f":"IF('1. Order'!X55=\"\",\"\",'1. Order'!X55)","v":""},{"$f":"IF('1. Order'!Y55=\"\",\"\",'1. Order'!Y55)","v":"EUR"},{"$f":"IF('1. Order'!Z55=\"\",\"\",'1. Order'!Z55)","v":""},{"$f":"IF('1. Order'!AA55=\"\",\"\",'1. Order'!AA55)","v":""},{"$f":"IF('1. Order'!AB55=\"\",\"\",'1. Order'!AB55)","v":""},null,{"$f":"IF('1. Order'!AT55=\"\",\"\",'1. Order'!AT55)","v":""},{"$f":"IF('1. Order'!AU55=\"\",\"\",'1. Order'!AU55)","v":""},null,null,null,null,null,null,null,{"$f":"IF('1. Order'!AY55=\"\",\"\",'1. Order'!AY55)","v":""},{"$f":"IF('1. Order'!AZ55=\"\",\"\",'1. Order'!AZ55)","v":""},{"$f":"IF('1. Order'!BA55=\"\",\"\",'1. Order'!BA55)","v":""},{"$f":"IF('1. Order'!BB55=\"\",\"\",'1. Order'!BB55)","v":""},{"$f":"IF('1. Order'!BD55=\"\",\"\",'1. Order'!BD55)","v":""},{"$f":"IF('1. Order'!BE55=\"\",\"\",'1. Order'!BE55)","v":""},{"$f":"IF('1. Order'!BF55=\"\",\"\",'1. Order'!BF55)","v":""},{"$f":"IF('1. Order'!BG55=\"\",\"\",'1. Order'!BG55)","v":""},{"$f":"IF('1. Order'!BH55=\"\",\"\",'1. Order'!BH55)","v":"ZWO"}]
[{"$f":"IF('1. Order'!F56=\"\",\"\",'1. Order'!F56)","v":{"$error":"#N/A"}},{"$f":"IF('1. Order'!G56=\"\",\"\",'1. Order'!G56)","v":""},{"$f":"IF('1. Order'!H56=\"\",\"\",'1. Order'!H56)","v":""},{"$f":"IF('1. Order'!I56=\"\",\"\",'1. Order'!I56)","v":""},{"$f":"IF('1. Order'!J56=\"\",\"\",'1. Order'!J56)","v":""},{"$f":"IF('1. Order'!K56=\"\",\"\",'1. Order'!K56)","v":""},{"$f":"IF('1. Order'!L56=\"\",\"\",'1. Order'!L56)","v":""},{"$f":"IF('1. Order'!M56=\"\",\"\",'1. Order'!M56)","v":""},{"$f":"IF('1. Order'!N56=\"\",\"\",'1. Order'!N56)","v":""},{"$f":"IF('1. Order'!O56=\"\",\"\",'1. Order'!O56)","v":{"$error":"#N/A"}},{"$f":"IF('1. Order'!P56=\"\",\"\",'1. Order'!P56)","v":{"$error":"#N/A"}},{"$f":"IF('1. Order'!Q56=\"\",\"\",'1. Order'!Q56)","v":""},{"$f":"IF('1. Order'!S56=\"\",\"\",'1. Order'!S56)","v":""},{"$f":"IF('1. Order'!T56=\"\",\"\",'1. Order'!T56)","v":""},{"$f":"IF('1. Order'!W56=\"\",\"\",'1. Order'!W56)","v":""},{"$f":"IF('1. Order'!X56=\"\",\"\",'1. Order'!X56)","v":""},{"$f":"IF('1. Order'!Y56=\"\",\"\",'1. Order'!Y56)","v":"EUR"},{"$f":"IF('1. Order'!Z56=\"\",\"\",'1. Order'!Z56)","v":""},{"$f":"IF('1. Order'!AA56=\"\",\"\",'1. Order'!AA56)","v":""},{"$f":"IF('1. Order'!AB56=\"\",\"\",'1. Order'!AB56)","v":""},null,{"$f":"IF('1. Order'!AT56=\"\",\"\",'1. Order'!AT56)","v":""},{"$f":"IF('1. Order'!AU56=\"\",\"\",'1. Order'!AU56)","v":""},null,null,null,null,null,null,null,{"$f":"IF('1. Order'!AY56=\"\",\"\",'1. Order'!AY56)","v":""},{"$f":"IF('1. Order'!AZ56=\"\",\"\",'1. Order'!AZ56)","v":""},{"$f":"IF('1. Order'!BA56=\"\",\"\",'1. Order'!BA56)","v":""},{"$f":"IF('1. Order'!BB56=\"\",\"\",'1. Order'!BB56)","v":""},{"$f":"IF('1. Order'!BD56=\"\",\"\",'1. Order'!BD56)","v":""},{"$f":"IF('1. Order'!BE56=\"\",\"\",'1. Order'!BE56)","v":""},{"$f":"IF('1. Order'!BF56=\"\",\"\",'1. Order'!BF56)","v":""},{"$f":"IF('1. Order'!BG56=\"\",\"\",'1. Order'!BG56)","v":""},{"$f":"IF('1. Order'!BH56=\"\",\"\",'1. Order'!BH56)","v":"ZWO"}]
[{"$f":"IF('1. Order'!F57=\"\",\"\",'1. Order'!F57)","v":{"$error":"#N/A"}},{"$f":"IF('1. Order'!G57=\"\",\"\",'1. Order'!G57)","v":""},{"$f":"IF('1. Order'!H57=\"\",\"\",'1. Order'!H57)","v":""},{"$f":"IF('1. Order'!I57=\"\",\"\",'1. Order'!I57)","v":""},{"$f":"IF('1. Order'!J57=\"\",\"\",'1. Order'!J57)","v":""},{"$f":"IF('1. Order'!K57=\"\",\"\",'1. Order'!K57)","v":""},{"$f":"IF('1. Order'!L57=\"\",\"\",'1. Order'!L57)","v":""},{"$f":"IF('1. Order'!M57=\"\",\"\",'1. Order'!M57)","v":""},{"$f":"IF('1. Order'!N57=\"\",\"\",'1. Order'!N57)","v":""},{"$f":"IF('1. Order'!O57=\"\",\"\",'1. Order'!O57)","v":{"$error":"#N/A"}},{"$f":"IF('1. Order'!P57=\"\",\"\",'1. Order'!P57)","v":{"$error":"#N/A"}},{"$f":"IF('1. Order'!Q57=\"\",\"\",'1. Order'!Q57)","v":""},{"$f":"IF('1. Order'!S57=\"\",\"\",'1. Order'!S57)","v":""},{"$f":"IF('1. Order'!T57=\"\",\"\",'1. Order'!T57)","v":""},{"$f":"IF('1. Order'!W57=\"\",\"\",'1. Order'!W57)","v":""},{"$f":"IF('1. Order'!X57=\"\",\"\",'1. Order'!X57)","v":""},{"$f":"IF('1. Order'!Y57=\"\",\"\",'1. Order'!Y57)","v":"EUR"},{"$f":"IF('1. Order'!Z57=\"\",\"\",'1. Order'!Z57)","v":""},{"$f":"IF('1. Order'!AA57=\"\",\"\",'1. Order'!AA57)","v":""},{"$f":"IF('1. Order'!AB57=\"\",\"\",'1. Order'!AB57)","v":""},null,{"$f":"IF('1. Order'!AT57=\"\",\"\",'1. Order'!AT57)","v":""},{"$f":"IF('1. Order'!AU57=\"\",\"\",'1. Order'!AU57)","v":""},null,null,null,null,null,null,null,{"$f":"IF('1. Order'!AY57=\"\",\"\",'1. Order'!AY57)","v":""},{"$f":"IF('1. Order'!AZ57=\"\",\"\",'1. Order'!AZ57)","v":""},{"$f":"IF('1. Order'!BA57=\"\",\"\",'1. Order'!BA57)","v":""},{"$f":"IF('1. Order'!BB57=\"\",\"\",'1. Order'!BB57)","v":""},{"$f":"IF('1. Order'!BD57=\"\",\"\",'1. Order'!BD57)","v":""},{"$f":"IF('1. Order'!BE57=\"\",\"\",'1. Order'!BE57)","v":""},{"$f":"IF('1. Order'!BF57=\"\",\"\",'1. Order'!BF57)","v":""},{"$f":"IF('1. Order'!BG57=\"\",\"\",'1. Order'!BG57)","v":""},{"$f":"IF('1. Order'!BH57=\"\",\"\",'1. Order'!BH57)","v":"ZWO"}]
[{"$f":"IF('1. Order'!F58=\"\",\"\",'1. Order'!F58)","v":{"$error":"#N/A"}},{"$f":"IF('1. Order'!G58=\"\",\"\",'1. Order'!G58)","v":""},{"$f":"IF('1. Order'!H58=\"\",\"\",'1. Order'!H58)","v":""},{"$f":"IF('1. Order'!I58=\"\",\"\",'1. Order'!I58)","v":""},{"$f":"IF('1. Order'!J58=\"\",\"\",'1. Order'!J58)","v":""},{"$f":"IF('1. Order'!K58=\"\",\"\",'1. Order'!K58)","v":""},{"$f":"IF('1. Order'!L58=\"\",\"\",'1. Order'!L58)","v":""},{"$f":"IF('1. Order'!M58=\"\",\"\",'1. Order'!M58)","v":""},{"$f":"IF('1. Order'!N58=\"\",\"\",'1. Order'!N58)","v":""},{"$f":"IF('1. Order'!O58=\"\",\"\",'1. Order'!O58)","v":{"$error":"#N/A"}},{"$f":"IF('1. Order'!P58=\"\",\"\",'1. Order'!P58)","v":{"$error":"#N/A"}},{"$f":"IF('1. Order'!Q58=\"\",\"\",'1. Order'!Q58)","v":""},{"$f":"IF('1. Order'!S58=\"\",\"\",'1. Order'!S58)","v":""},{"$f":"IF('1. Order'!T58=\"\",\"\",'1. Order'!T58)","v":""},{"$f":"IF('1. Order'!W58=\"\",\"\",'1. Order'!W58)","v":""},{"$f":"IF('1. Order'!X58=\"\",\"\",'1. Order'!X58)","v":""},{"$f":"IF('1. Order'!Y58=\"\",\"\",'1. Order'!Y58)","v":"EUR"},{"$f":"IF('1. Order'!Z58=\"\",\"\",'1. Order'!Z58)","v":""},{"$f":"IF('1. Order'!AA58=\"\",\"\",'1. Order'!AA58)","v":""},{"$f":"IF('1. Order'!AB58=\"\",\"\",'1. Order'!AB58)","v":""},null,{"$f":"IF('1. Order'!AT58=\"\",\"\",'1. Order'!AT58)","v":""},{"$f":"IF('1. Order'!AU58=\"\",\"\",'1. Order'!AU58)","v":""},null,null,null,null,null,null,null,{"$f":"IF('1. Order'!AY58=\"\",\"\",'1. Order'!AY58)","v":""},{"$f":"IF('1. Order'!AZ58=\"\",\"\",'1. Order'!AZ58)","v":""},{"$f":"IF('1. Order'!BA58=\"\",\"\",'1. Order'!BA58)","v":""},{"$f":"IF('1. Order'!BB58=\"\",\"\",'1. Order'!BB58)","v":""},{"$f":"IF('1. Order'!BD58=\"\",\"\",'1. Order'!BD58)","v":""},{"$f":"IF('1. Order'!BE58=\"\",\"\",'1. Order'!BE58)","v":""},{"$f":"IF('1. Order'!BF58=\"\",\"\",'1. Order'!BF58)","v":""},{"$f":"IF('1. Order'!BG58=\"\",\"\",'1. Order'!BG58)","v":""},{"$f":"IF('1. Order'!BH58=\"\",\"\",'1. Order'!BH58)","v":"ZWO"}]
[{"$f":"IF('1. Order'!F59=\"\",\"\",'1. Order'!F59)","v":{"$error":"#N/A"}},{"$f":"IF('1. Order'!G59=\"\",\"\",'1. Order'!G59)","v":""},{"$f":"IF('1. Order'!H59=\"\",\"\",'1. Order'!H59)","v":""},{"$f":"IF('1. Order'!I59=\"\",\"\",'1. Order'!I59)","v":""},{"$f":"IF('1. Order'!J59=\"\",\"\",'1. Order'!J59)","v":""},{"$f":"IF('1. Order'!K59=\"\",\"\",'1. Order'!K59)","v":""},{"$f":"IF('1. Order'!L59=\"\",\"\",'1. Order'!L59)","v":""},{"$f":"IF('1. Order'!M59=\"\",\"\",'1. Order'!M59)","v":""},{"$f":"IF('1. Order'!N59=\"\",\"\",'1. Order'!N59)","v":""},{"$f":"IF('1. Order'!O59=\"\",\"\",'1. Order'!O59)","v":{"$error":"#N/A"}},{"$f":"IF('1. Order'!P59=\"\",\"\",'1. Order'!P59)","v":{"$error":"#N/A"}},{"$f":"IF('1. Order'!Q59=\"\",\"\",'1. Order'!Q59)","v":""},{"$f":"IF('1. Order'!S59=\"\",\"\",'1. Order'!S59)","v":""},{"$f":"IF('1. Order'!T59=\"\",\"\",'1. Order'!T59)","v":""},{"$f":"IF('1. Order'!W59=\"\",\"\",'1. Order'!W59)","v":""},{"$f":"IF('1. Order'!X59=\"\",\"\",'1. Order'!X59)","v":""},{"$f":"IF('1. Order'!Y59=\"\",\"\",'1. Order'!Y59)","v":"EUR"},{"$f":"IF('1. Order'!Z59=\"\",\"\",'1. Order'!Z59)","v":""},{"$f":"IF('1. Order'!AA59=\"\",\"\",'1. Order'!AA59)","v":""},{"$f":"IF('1. Order'!AB59=\"\",\"\",'1. Order'!AB59)","v":""},null,{"$f":"IF('1. Order'!AT59=\"\",\"\",'1. Order'!AT59)","v":""},{"$f":"IF('1. Order'!AU59=\"\",\"\",'1. Order'!AU59)","v":""},null,null,null,null,null,null,null,{"$f":"IF('1. Order'!AY59=\"\",\"\",'1. Order'!AY59)","v":""},{"$f":"IF('1. Order'!AZ59=\"\",\"\",'1. Order'!AZ59)","v":""},{"$f":"IF('1. Order'!BA59=\"\",\"\",'1. Order'!BA59)","v":""},{"$f":"IF('1. Order'!BB59=\"\",\"\",'1. Order'!BB59)","v":""},{"$f":"IF('1. Order'!BD59=\"\",\"\",'1. Order'!BD59)","v":""},{"$f":"IF('1. Order'!BE59=\"\",\"\",'1. Order'!BE59)","v":""},{"$f":"IF('1. Order'!BF59=\"\",\"\",'1. Order'!BF59)","v":""},{"$f":"IF('1. Order'!BG59=\"\",\"\",'1. Order'!BG59)","v":""},{"$f":"IF('1. Order'!BH59=\"\",\"\",'1. Order'!BH59)","v":"ZWO"}]
[{"$f":"IF('1. Order'!F60=\"\",\"\",'1. Order'!F60)","v":{"$error":"#N/A"}},{"$f":"IF('1. Order'!G60=\"\",\"\",'1. Order'!G60)","v":""},{"$f":"IF('1. Order'!H60=\"\",\"\",'1. Order'!H60)","v":""},{"$f":"IF('1. Order'!I60=\"\",\"\",'1. Order'!I60)","v":""},{"$f":"IF('1. Order'!J60=\"\",\"\",'1. Order'!J60)","v":""},{"$f":"IF('1. Order'!K60=\"\",\"\",'1. Order'!K60)","v":""},{"$f":"IF('1. Order'!L60=\"\",\"\",'1. Order'!L60)","v":""},{"$f":"IF('1. Order'!M60=\"\",\"\",'1. Order'!M60)","v":""},{"$f":"IF('1. Order'!N60=\"\",\"\",'1. Order'!N60)","v":""},{"$f":"IF('1. Order'!O60=\"\",\"\",'1. Order'!O60)","v":{"$error":"#N/A"}},{"$f":"IF('1. Order'!P60=\"\",\"\",'1. Order'!P60)","v":{"$error":"#N/A"}},{"$f":"IF('1. Order'!Q60=\"\",\"\",'1. Order'!Q60)","v":""},{"$f":"IF('1. Order'!S60=\"\",\"\",'1. Order'!S60)","v":""},{"$f":"IF('1. Order'!T60=\"\",\"\",'1. Order'!T60)","v":""},{"$f":"IF('1. Order'!W60=\"\",\"\",'1. Order'!W60)","v":""},{"$f":"IF('1. Order'!X60=\"\",\"\",'1. Order'!X60)","v":""},{"$f":"IF('1. Order'!Y60=\"\",\"\",'1. Order'!Y60)","v":"EUR"},{"$f":"IF('1. Order'!Z60=\"\",\"\",'1. Order'!Z60)","v":""},{"$f":"IF('1. Order'!AA60=\"\",\"\",'1. Order'!AA60)","v":""},{"$f":"IF('1. Order'!AB60=\"\",\"\",'1. Order'!AB60)","v":""},null,{"$f":"IF('1. Order'!AT60=\"\",\"\",'1. Order'!AT60)","v":""},{"$f":"IF('1. Order'!AU60=\"\",\"\",'1. Order'!AU60)","v":""},null,null,null,null,null,null,null,{"$f":"IF('1. Order'!AY60=\"\",\"\",'1. Order'!AY60)","v":""},{"$f":"IF('1. Order'!AZ60=\"\",\"\",'1. Order'!AZ60)","v":""},{"$f":"IF('1. Order'!BA60=\"\",\"\",'1. Order'!BA60)","v":""},{"$f":"IF('1. Order'!BB60=\"\",\"\",'1. Order'!BB60)","v":""},{"$f":"IF('1. Order'!BD60=\"\",\"\",'1. Order'!BD60)","v":""},{"$f":"IF('1. Order'!BE60=\"\",\"\",'1. Order'!BE60)","v":""},{"$f":"IF('1. Order'!BF60=\"\",\"\",'1. Order'!BF60)","v":""},{"$f":"IF('1. Order'!BG60=\"\",\"\",'1. Order'!BG60)","v":""},{"$f":"IF('1. Order'!BH60=\"\",\"\",'1. Order'!BH60)","v":"ZWO"}]
[{"$f":"IF('1. Order'!F61=\"\",\"\",'1. Order'!F61)","v":{"$error":"#N/A"}},{"$f":"IF('1. Order'!G61=\"\",\"\",'1. Order'!G61)","v":""},{"$f":"IF('1. Order'!H61=\"\",\"\",'1. Order'!H61)","v":""},{"$f":"IF('1. Order'!I61=\"\",\"\",'1. Order'!I61)","v":""},{"$f":"IF('1. Order'!J61=\"\",\"\",'1. Order'!J61)","v":""},{"$f":"IF('1. Order'!K61=\"\",\"\",'1. Order'!K61)","v":""},{"$f":"IF('1. Order'!L61=\"\",\"\",'1. Order'!L61)","v":""},{"$f":"IF('1. Order'!M61=\"\",\"\",'1. Order'!M61)","v":""},{"$f":"IF('1. Order'!N61=\"\",\"\",'1. Order'!N61)","v":""},{"$f":"IF('1. Order'!O61=\"\",\"\",'1. Order'!O61)","v":{"$error":"#N/A"}},{"$f":"IF('1. Order'!P61=\"\",\"\",'1. Order'!P61)","v":{"$error":"#N/A"}},{"$f":"IF('1. Order'!Q61=\"\",\"\",'1. Order'!Q61)","v":""},{"$f":"IF('1. Order'!S61=\"\",\"\",'1. Order'!S61)","v":""},{"$f":"IF('1. Order'!T61=\"\",\"\",'1. Order'!T61)","v":""},{"$f":"IF('1. Order'!W61=\"\",\"\",'1. Order'!W61)","v":""},{"$f":"IF('1. Order'!X61=\"\",\"\",'1. Order'!X61)","v":""},{"$f":"IF('1. Order'!Y61=\"\",\"\",'1. Order'!Y61)","v":"EUR"},{"$f":"IF('1. Order'!Z61=\"\",\"\",'1. Order'!Z61)","v":""},{"$f":"IF('1. Order'!AA61=\"\",\"\",'1. Order'!AA61)","v":""},{"$f":"IF('1. Order'!AB61=\"\",\"\",'1. Order'!AB61)","v":""},null,{"$f":"IF('1. Order'!AT61=\"\",\"\",'1. Order'!AT61)","v":""},{"$f":"IF('1. Order'!AU61=\"\",\"\",'1. Order'!AU61)","v":""},null,null,null,null,null,null,null,{"$f":"IF('1. Order'!AY61=\"\",\"\",'1. Order'!AY61)","v":""},{"$f":"IF('1. Order'!AZ61=\"\",\"\",'1. Order'!AZ61)","v":""},{"$f":"IF('1. Order'!BA61=\"\",\"\",'1. Order'!BA61)","v":""},{"$f":"IF('1. Order'!BB61=\"\",\"\",'1. Order'!BB61)","v":""},{"$f":"IF('1. Order'!BD61=\"\",\"\",'1. Order'!BD61)","v":""},{"$f":"IF('1. Order'!BE61=\"\",\"\",'1. Order'!BE61)","v":""},{"$f":"IF('1. Order'!BF61=\"\",\"\",'1. Order'!BF61)","v":""},{"$f":"IF('1. Order'!BG61=\"\",\"\",'1. Order'!BG61)","v":""},{"$f":"IF('1. Order'!BH61=\"\",\"\",'1. Order'!BH61)","v":"ZWO"}]
[{"$f":"IF('1. Order'!F62=\"\",\"\",'1. Order'!F62)","v":{"$error":"#N/A"}},{"$f":"IF('1. Order'!G62=\"\",\"\",'1. Order'!G62)","v":""},{"$f":"IF('1. Order'!H62=\"\",\"\",'1. Order'!H62)","v":""},{"$f":"IF('1. Order'!I62=\"\",\"\",'1. Order'!I62)","v":""},{"$f":"IF('1. Order'!J62=\"\",\"\",'1. Order'!J62)","v":""},{"$f":"IF('1. Order'!K62=\"\",\"\",'1. Order'!K62)","v":""},{"$f":"IF('1. Order'!L62=\"\",\"\",'1. Order'!L62)","v":""},{"$f":"IF('1. Order'!M62=\"\",\"\",'1. Order'!M62)","v":""},{"$f":"IF('1. Order'!N62=\"\",\"\",'1. Order'!N62)","v":""},{"$f":"IF('1. Order'!O62=\"\",\"\",'1. Order'!O62)","v":{"$error":"#N/A"}},{"$f":"IF('1. Order'!P62=\"\",\"\",'1. Order'!P62)","v":{"$error":"#N/A"}},{"$f":"IF('1. Order'!Q62=\"\",\"\",'1. Order'!Q62)","v":""},{"$f":"IF('1. Order'!S62=\"\",\"\",'1. Order'!S62)","v":""},{"$f":"IF('1. Order'!T62=\"\",\"\",'1. Order'!T62)","v":""},{"$f":"IF('1. Order'!W62=\"\",\"\",'1. Order'!W62)","v":""},{"$f":"IF('1. Order'!X62=\"\",\"\",'1. Order'!X62)","v":""},{"$f":"IF('1. Order'!Y62=\"\",\"\",'1. Order'!Y62)","v":"EUR"},{"$f":"IF('1. Order'!Z62=\"\",\"\",'1. Order'!Z62)","v":""},{"$f":"IF('1. Order'!AA62=\"\",\"\",'1. Order'!AA62)","v":""},{"$f":"IF('1. Order'!AB62=\"\",\"\",'1. Order'!AB62)","v":""},null,{"$f":"IF('1. Order'!AT62=\"\",\"\",'1. Order'!AT62)","v":""},{"$f":"IF('1. Order'!AU62=\"\",\"\",'1. Order'!AU62)","v":""},null,null,null,null,null,null,null,{"$f":"IF('1. Order'!AY62=\"\",\"\",'1. Order'!AY62)","v":""},{"$f":"IF('1. Order'!AZ62=\"\",\"\",'1. Order'!AZ62)","v":""},{"$f":"IF('1. Order'!BA62=\"\",\"\",'1. Order'!BA62)","v":""},{"$f":"IF('1. Order'!BB62=\"\",\"\",'1. Order'!BB62)","v":""},{"$f":"IF('1. Order'!BD62=\"\",\"\",'1. Order'!BD62)","v":""},{"$f":"IF('1. Order'!BE62=\"\",\"\",'1. Order'!BE62)","v":""},{"$f":"IF('1. Order'!BF62=\"\",\"\",'1. Order'!BF62)","v":""},{"$f":"IF('1. Order'!BG62=\"\",\"\",'1. Order'!BG62)","v":""},{"$f":"IF('1. Order'!BH62=\"\",\"\",'1. Order'!BH62)","v":"ZWO"}]
[{"$f":"IF('1. Order'!F63=\"\",\"\",'1. Order'!F63)","v":{"$error":"#N/A"}},{"$f":"IF('1. Order'!G63=\"\",\"\",'1. Order'!G63)","v":""},{"$f":"IF('1. Order'!H63=\"\",\"\",'1. Order'!H63)","v":""},{"$f":"IF('1. Order'!I63=\"\",\"\",'1. Order'!I63)","v":""},{"$f":"IF('1. Order'!J63=\"\",\"\",'1. Order'!J63)","v":""},{"$f":"IF('1. Order'!K63=\"\",\"\",'1. Order'!K63)","v":""},{"$f":"IF('1. Order'!L63=\"\",\"\",'1. Order'!L63)","v":""},{"$f":"IF('1. Order'!M63=\"\",\"\",'1. Order'!M63)","v":""},{"$f":"IF('1. Order'!N63=\"\",\"\",'1. Order'!N63)","v":""},{"$f":"IF('1. Order'!O63=\"\",\"\",'1. Order'!O63)","v":{"$error":"#N/A"}},{"$f":"IF('1. Order'!P63=\"\",\"\",'1. Order'!P63)","v":{"$error":"#N/A"}},{"$f":"IF('1. Order'!Q63=\"\",\"\",'1. Order'!Q63)","v":""},{"$f":"IF('1. Order'!S63=\"\",\"\",'1. Order'!S63)","v":""},{"$f":"IF('1. Order'!T63=\"\",\"\",'1. Order'!T63)","v":""},{"$f":"IF('1. Order'!W63=\"\",\"\",'1. Order'!W63)","v":""},{"$f":"IF('1. Order'!X63=\"\",\"\",'1. Order'!X63)","v":""},{"$f":"IF('1. Order'!Y63=\"\",\"\",'1. Order'!Y63)","v":"EUR"},{"$f":"IF('1. Order'!Z63=\"\",\"\",'1. Order'!Z63)","v":""},{"$f":"IF('1. Order'!AA63=\"\",\"\",'1. Order'!AA63)","v":""},{"$f":"IF('1. Order'!AB63=\"\",\"\",'1. Order'!AB63)","v":""},null,{"$f":"IF('1. Order'!AT63=\"\",\"\",'1. Order'!AT63)","v":""},{"$f":"IF('1. Order'!AU63=\"\",\"\",'1. Order'!AU63)","v":""},null,null,null,null,null,null,null,{"$f":"IF('1. Order'!AY63=\"\",\"\",'1. Order'!AY63)","v":""},{"$f":"IF('1. Order'!AZ63=\"\",\"\",'1. Order'!AZ63)","v":""},{"$f":"IF('1. Order'!BA63=\"\",\"\",'1. Order'!BA63)","v":""},{"$f":"IF('1. Order'!BB63=\"\",\"\",'1. Order'!BB63)","v":""},{"$f":"IF('1. Order'!BD63=\"\",\"\",'1. Order'!BD63)","v":""},{"$f":"IF('1. Order'!BE63=\"\",\"\",'1. Order'!BE63)","v":""},{"$f":"IF('1. Order'!BF63=\"\",\"\",'1. Order'!BF63)","v":""},{"$f":"IF('1. Order'!BG63=\"\",\"\",'1. Order'!BG63)","v":""},{"$f":"IF('1. Order'!BH63=\"\",\"\",'1. Order'!BH63)","v":"ZWO"}]
[{"$f":"IF('1. Order'!F64=\"\",\"\",'1. Order'!F64)","v":{"$error":"#N/A"}},{"$f":"IF('1. Order'!G64=\"\",\"\",'1. Order'!G64)","v":""},{"$f":"IF('1. Order'!H64=\"\",\"\",'1. Order'!H64)","v":""},{"$f":"IF('1. Order'!I64=\"\",\"\",'1. Order'!I64)","v":""},{"$f":"IF('1. Order'!J64=\"\",\"\",'1. Order'!J64)","v":""},{"$f":"IF('1. Order'!K64=\"\",\"\",'1. Order'!K64)","v":""},{"$f":"IF('1. Order'!L64=\"\",\"\",'1. Order'!L64)","v":""},{"$f":"IF('1. Order'!M64=\"\",\"\",'1. Order'!M64)","v":""},{"$f":"IF('1. Order'!N64=\"\",\"\",'1. Order'!N64)","v":""},{"$f":"IF('1. Order'!O64=\"\",\"\",'1. Order'!O64)","v":{"$error":"#N/A"}},{"$f":"IF('1. Order'!P64=\"\",\"\",'1. Order'!P64)","v":{"$error":"#N/A"}},{"$f":"IF('1. Order'!Q64=\"\",\"\",'1. Order'!Q64)","v":""},{"$f":"IF('1. Order'!S64=\"\",\"\",'1. Order'!S64)","v":""},{"$f":"IF('1. Order'!T64=\"\",\"\",'1. Order'!T64)","v":""},{"$f":"IF('1. Order'!W64=\"\",\"\",'1. Order'!W64)","v":""},{"$f":"IF('1. Order'!X64=\"\",\"\",'1. Order'!X64)","v":""},{"$f":"IF('1. Order'!Y64=\"\",\"\",'1. Order'!Y64)","v":"EUR"},{"$f":"IF('1. Order'!Z64=\"\",\"\",'1. Order'!Z64)","v":""},{"$f":"IF('1. Order'!AA64=\"\",\"\",'1. Order'!AA64)","v":""},{"$f":"IF('1. Order'!AB64=\"\",\"\",'1. Order'!AB64)","v":""},null,{"$f":"IF('1. Order'!AT64=\"\",\"\",'1. Order'!AT64)","v":""},{"$f":"IF('1. Order'!AU64=\"\",\"\",'1. Order'!AU64)","v":""},null,null,null,null,null,null,null,{"$f":"IF('1. Order'!AY64=\"\",\"\",'1. Order'!AY64)","v":""},{"$f":"IF('1. Order'!AZ64=\"\",\"\",'1. Order'!AZ64)","v":""},{"$f":"IF('1. Order'!BA64=\"\",\"\",'1. Order'!BA64)","v":""},{"$f":"IF('1. Order'!BB64=\"\",\"\",'1. Order'!BB64)","v":""},{"$f":"IF('1. Order'!BD64=\"\",\"\",'1. Order'!BD64)","v":""},{"$f":"IF('1. Order'!BE64=\"\",\"\",'1. Order'!BE64)","v":""},{"$f":"IF('1. Order'!BF64=\"\",\"\",'1. Order'!BF64)","v":""},{"$f":"IF('1. Order'!BG64=\"\",\"\",'1. Order'!BG64)","v":""},{"$f":"IF('1. Order'!BH64=\"\",\"\",'1. Order'!BH64)","v":"ZWO"}]
[{"$f":"IF('1. Order'!F65=\"\",\"\",'1. Order'!F65)","v":{"$error":"#N/A"}},{"$f":"IF('1. Order'!G65=\"\",\"\",'1. Order'!G65)","v":""},{"$f":"IF('1. Order'!H65=\"\",\"\",'1. Order'!H65)","v":""},{"$f":"IF('1. Order'!I65=\"\",\"\",'1. Order'!I65)","v":""},{"$f":"IF('1. Order'!J65=\"\",\"\",'1. Order'!J65)","v":""},{"$f":"IF('1. Order'!K65=\"\",\"\",'1. Order'!K65)","v":""},{"$f":"IF('1. Order'!L65=\"\",\"\",'1. Order'!L65)","v":""},{"$f":"IF('1. Order'!M65=\"\",\"\",'1. Order'!M65)","v":""},{"$f":"IF('1. Order'!N65=\"\",\"\",'1. Order'!N65)","v":""},{"$f":"IF('1. Order'!O65=\"\",\"\",'1. Order'!O65)","v":{"$error":"#N/A"}},{"$f":"IF('1. Order'!P65=\"\",\"\",'1. Order'!P65)","v":{"$error":"#N/A"}},{"$f":"IF('1. Order'!Q65=\"\",\"\",'1. Order'!Q65)","v":""},{"$f":"IF('1. Order'!S65=\"\",\"\",'1. Order'!S65)","v":""},{"$f":"IF('1. Order'!T65=\"\",\"\",'1. Order'!T65)","v":""},{"$f":"IF('1. Order'!W65=\"\",\"\",'1. Order'!W65)","v":""},{"$f":"IF('1. Order'!X65=\"\",\"\",'1. Order'!X65)","v":""},{"$f":"IF('1. Order'!Y65=\"\",\"\",'1. Order'!Y65)","v":"EUR"},{"$f":"IF('1. Order'!Z65=\"\",\"\",'1. Order'!Z65)","v":""},{"$f":"IF('1. Order'!AA65=\"\",\"\",'1. Order'!AA65)","v":""},{"$f":"IF('1. Order'!AB65=\"\",\"\",'1. Order'!AB65)","v":""},null,{"$f":"IF('1. Order'!AT65=\"\",\"\",'1. Order'!AT65)","v":""},{"$f":"IF('1. Order'!AU65=\"\",\"\",'1. Order'!AU65)","v":""},null,null,null,null,null,null,null,{"$f":"IF('1. Order'!AY65=\"\",\"\",'1. Order'!AY65)","v":""},{"$f":"IF('1. Order'!AZ65=\"\",\"\",'1. Order'!AZ65)","v":""},{"$f":"IF('1. Order'!BA65=\"\",\"\",'1. Order'!BA65)","v":""},{"$f":"IF('1. Order'!BB65=\"\",\"\",'1. Order'!BB65)","v":""},{"$f":"IF('1. Order'!BD65=\"\",\"\",'1. Order'!BD65)","v":""},{"$f":"IF('1. Order'!BE65=\"\",\"\",'1. Order'!BE65)","v":""},{"$f":"IF('1. Order'!BF65=\"\",\"\",'1. Order'!BF65)","v":""},{"$f":"IF('1. Order'!BG65=\"\",\"\",'1. Order'!BG65)","v":""},{"$f":"IF('1. Order'!BH65=\"\",\"\",'1. Order'!BH65)","v":"ZWO"}]
[{"$f":"IF('1. Order'!F66=\"\",\"\",'1. Order'!F66)","v":{"$error":"#N/A"}},{"$f":"IF('1. Order'!G66=\"\",\"\",'1. Order'!G66)","v":""},{"$f":"IF('1. Order'!H66=\"\",\"\",'1. Order'!H66)","v":""},{"$f":"IF('1. Order'!I66=\"\",\"\",'1. Order'!I66)","v":""},{"$f":"IF('1. Order'!J66=\"\",\"\",'1. Order'!J66)","v":""},{"$f":"IF('1. Order'!K66=\"\",\"\",'1. Order'!K66)","v":""},{"$f":"IF('1. Order'!L66=\"\",\"\",'1. Order'!L66)","v":""},{"$f":"IF('1. Order'!M66=\"\",\"\",'1. Order'!M66)","v":""},{"$f":"IF('1. Order'!N66=\"\",\"\",'1. Order'!N66)","v":""},{"$f":"IF('1. Order'!O66=\"\",\"\",'1. Order'!O66)","v":{"$error":"#N/A"}},{"$f":"IF('1. Order'!P66=\"\",\"\",'1. Order'!P66)","v":{"$error":"#N/A"}},{"$f":"IF('1. Order'!Q66=\"\",\"\",'1. Order'!Q66)","v":""},{"$f":"IF('1. Order'!S66=\"\",\"\",'1. Order'!S66)","v":""},{"$f":"IF('1. Order'!T66=\"\",\"\",'1. Order'!T66)","v":""},{"$f":"IF('1. Order'!W66=\"\",\"\",'1. Order'!W66)","v":""},{"$f":"IF('1. Order'!X66=\"\",\"\",'1. Order'!X66)","v":""},{"$f":"IF('1. Order'!Y66=\"\",\"\",'1. Order'!Y66)","v":"EUR"},{"$f":"IF('1. Order'!Z66=\"\",\"\",'1. Order'!Z66)","v":""},{"$f":"IF('1. Order'!AA66=\"\",\"\",'1. Order'!AA66)","v":""},{"$f":"IF('1. Order'!AB66=\"\",\"\",'1. Order'!AB66)","v":""},null,{"$f":"IF('1. Order'!AT66=\"\",\"\",'1. Order'!AT66)","v":""},{"$f":"IF('1. Order'!AU66=\"\",\"\",'1. Order'!AU66)","v":""},null,null,null,null,null,null,null,{"$f":"IF('1. Order'!AY66=\"\",\"\",'1. Order'!AY66)","v":""},{"$f":"IF('1. Order'!AZ66=\"\",\"\",'1. Order'!AZ66)","v":""},{"$f":"IF('1. Order'!BA66=\"\",\"\",'1. Order'!BA66)","v":""},{"$f":"IF('1. Order'!BB66=\"\",\"\",'1. Order'!BB66)","v":""},{"$f":"IF('1. Order'!BD66=\"\",\"\",'1. Order'!BD66)","v":""},{"$f":"IF('1. Order'!BE66=\"\",\"\",'1. Order'!BE66)","v":""},{"$f":"IF('1. Order'!BF66=\"\",\"\",'1. Order'!BF66)","v":""},{"$f":"IF('1. Order'!BG66=\"\",\"\",'1. Order'!BG66)","v":""},{"$f":"IF('1. Order'!BH66=\"\",\"\",'1. Order'!BH66)","v":"ZWO"}]
[{"$f":"IF('1. Order'!F67=\"\",\"\",'1. Order'!F67)","v":{"$error":"#N/A"}},{"$f":"IF('1. Order'!G67=\"\",\"\",'1. Order'!G67)","v":""},{"$f":"IF('1. Order'!H67=\"\",\"\",'1. Order'!H67)","v":""},{"$f":"IF('1. Order'!I67=\"\",\"\",'1. Order'!I67)","v":""},{"$f":"IF('1. Order'!J67=\"\",\"\",'1. Order'!J67)","v":""},{"$f":"IF('1. Order'!K67=\"\",\"\",'1. Order'!K67)","v":""},{"$f":"IF('1. Order'!L67=\"\",\"\",'1. Order'!L67)","v":""},{"$f":"IF('1. Order'!M67=\"\",\"\",'1. Order'!M67)","v":""},{"$f":"IF('1. Order'!N67=\"\",\"\",'1. Order'!N67)","v":""},{"$f":"IF('1. Order'!O67=\"\",\"\",'1. Order'!O67)","v":{"$error":"#N/A"}},{"$f":"IF('1. Order'!P67=\"\",\"\",'1. Order'!P67)","v":{"$error":"#N/A"}},{"$f":"IF('1. Order'!Q67=\"\",\"\",'1. Order'!Q67)","v":""},{"$f":"IF('1. Order'!S67=\"\",\"\",'1. Order'!S67)","v":""},{"$f":"IF('1. Order'!T67=\"\",\"\",'1. Order'!T67)","v":""},{"$f":"IF('1. Order'!W67=\"\",\"\",'1. Order'!W67)","v":""},{"$f":"IF('1. Order'!X67=\"\",\"\",'1. Order'!X67)","v":""},{"$f":"IF('1. Order'!Y67=\"\",\"\",'1. Order'!Y67)","v":"EUR"},{"$f":"IF('1. Order'!Z67=\"\",\"\",'1. Order'!Z67)","v":""},{"$f":"IF('1. Order'!AA67=\"\",\"\",'1. Order'!AA67)","v":""},{"$f":"IF('1. Order'!AB67=\"\",\"\",'1. Order'!AB67)","v":""},null,{"$f":"IF('1. Order'!AT67=\"\",\"\",'1. Order'!AT67)","v":""},{"$f":"IF('1. Order'!AU67=\"\",\"\",'1. Order'!AU67)","v":""},null,null,null,null,null,null,null,{"$f":"IF('1. Order'!AY67=\"\",\"\",'1. Order'!AY67)","v":""},{"$f":"IF('1. Order'!AZ67=\"\",\"\",'1. Order'!AZ67)","v":""},{"$f":"IF('1. Order'!BA67=\"\",\"\",'1. Order'!BA67)","v":""},{"$f":"IF('1. Order'!BB67=\"\",\"\",'1. Order'!BB67)","v":""},{"$f":"IF('1. Order'!BD67=\"\",\"\",'1. Order'!BD67)","v":""},{"$f":"IF('1. Order'!BE67=\"\",\"\",'1. Order'!BE67)","v":""},{"$f":"IF('1. Order'!BF67=\"\",\"\",'1. Order'!BF67)","v":""},{"$f":"IF('1. Order'!BG67=\"\",\"\",'1. Order'!BG67)","v":""},{"$f":"IF('1. Order'!BH67=\"\",\"\",'1. Order'!BH67)","v":"ZWO"}]
[{"$f":"IF('1. Order'!F68=\"\",\"\",'1. Order'!F68)","v":{"$error":"#N/A"}},{"$f":"IF('1. Order'!G68=\"\",\"\",'1. Order'!G68)","v":""},{"$f":"IF('1. Order'!H68=\"\",\"\",'1. Order'!H68)","v":""},{"$f":"IF('1. Order'!I68=\"\",\"\",'1. Order'!I68)","v":""},{"$f":"IF('1. Order'!J68=\"\",\"\",'1. Order'!J68)","v":""},{"$f":"IF('1. Order'!K68=\"\",\"\",'1. Order'!K68)","v":""},{"$f":"IF('1. Order'!L68=\"\",\"\",'1. Order'!L68)","v":""},{"$f":"IF('1. Order'!M68=\"\",\"\",'1. Order'!M68)","v":""},{"$f":"IF('1. Order'!N68=\"\",\"\",'1. Order'!N68)","v":""},{"$f":"IF('1. Order'!O68=\"\",\"\",'1. Order'!O68)","v":{"$error":"#N/A"}},{"$f":"IF('1. Order'!P68=\"\",\"\",'1. Order'!P68)","v":{"$error":"#N/A"}},{"$f":"IF('1. Order'!Q68=\"\",\"\",'1. Order'!Q68)","v":""},{"$f":"IF('1. Order'!S68=\"\",\"\",'1. Order'!S68)","v":""},{"$f":"IF('1. Order'!T68=\"\",\"\",'1. Order'!T68)","v":""},{"$f":"IF('1. Order'!W68=\"\",\"\",'1. Order'!W68)","v":""},{"$f":"IF('1. Order'!X68=\"\",\"\",'1. Order'!X68)","v":""},{"$f":"IF('1. Order'!Y68=\"\",\"\",'1. Order'!Y68)","v":"EUR"},{"$f":"IF('1. Order'!Z68=\"\",\"\",'1. Order'!Z68)","v":""},{"$f":"IF('1. Order'!AA68=\"\",\"\",'1. Order'!AA68)","v":""},{"$f":"IF('1. Order'!AB68=\"\",\"\",'1. Order'!AB68)","v":""},null,{"$f":"IF('1. Order'!AT68=\"\",\"\",'1. Order'!AT68)","v":""},{"$f":"IF('1. Order'!AU68=\"\",\"\",'1. Order'!AU68)","v":""},null,null,null,null,null,null,null,{"$f":"IF('1. Order'!AY68=\"\",\"\",'1. Order'!AY68)","v":""},{"$f":"IF('1. Order'!AZ68=\"\",\"\",'1. Order'!AZ68)","v":""},{"$f":"IF('1. Order'!BA68=\"\",\"\",'1. Order'!BA68)","v":""},{"$f":"IF('1. Order'!BB68=\"\",\"\",'1. Order'!BB68)","v":""},{"$f":"IF('1. Order'!BD68=\"\",\"\",'1. Order'!BD68)","v":""},{"$f":"IF('1. Order'!BE68=\"\",\"\",'1. Order'!BE68)","v":""},{"$f":"IF('1. Order'!BF68=\"\",\"\",'1. Order'!BF68)","v":""},{"$f":"IF('1. Order'!BG68=\"\",\"\",'1. Order'!BG68)","v":""},{"$f":"IF('1. Order'!BH68=\"\",\"\",'1. Order'!BH68)","v":"ZWO"}]
[{"$f":"IF('1. Order'!F69=\"\",\"\",'1. Order'!F69)","v":{"$error":"#N/A"}},{"$f":"IF('1. Order'!G69=\"\",\"\",'1. Order'!G69)","v":""},{"$f":"IF('1. Order'!H69=\"\",\"\",'1. Order'!H69)","v":""},{"$f":"IF('1. Order'!I69=\"\",\"\",'1. Order'!I69)","v":""},{"$f":"IF('1. Order'!J69=\"\",\"\",'1. Order'!J69)","v":""},{"$f":"IF('1. Order'!K69=\"\",\"\",'1. Order'!K69)","v":""},{"$f":"IF('1. Order'!L69=\"\",\"\",'1. Order'!L69)","v":""},{"$f":"IF('1. Order'!M69=\"\",\"\",'1. Order'!M69)","v":""},{"$f":"IF('1. Order'!N69=\"\",\"\",'1. Order'!N69)","v":""},{"$f":"IF('1. Order'!O69=\"\",\"\",'1. Order'!O69)","v":{"$error":"#N/A"}},{"$f":"IF('1. Order'!P69=\"\",\"\",'1. Order'!P69)","v":{"$error":"#N/A"}},{"$f":"IF('1. Order'!Q69=\"\",\"\",'1. Order'!Q69)","v":""},{"$f":"IF('1. Order'!S69=\"\",\"\",'1. Order'!S69)","v":""},{"$f":"IF('1. Order'!T69=\"\",\"\",'1. Order'!T69)","v":""},{"$f":"IF('1. Order'!W69=\"\",\"\",'1. Order'!W69)","v":""},{"$f":"IF('1. Order'!X69=\"\",\"\",'1. Order'!X69)","v":""},{"$f":"IF('1. Order'!Y69=\"\",\"\",'1. Order'!Y69)","v":"EUR"},{"$f":"IF('1. Order'!Z69=\"\",\"\",'1. Order'!Z69)","v":""},{"$f":"IF('1. Order'!AA69=\"\",\"\",'1. Order'!AA69)","v":""},{"$f":"IF('1. Order'!AB69=\"\",\"\",'1. Order'!AB69)","v":""},null,{"$f":"IF('1. Order'!AT69=\"\",\"\",'1. Order'!AT69)","v":""},{"$f":"IF('1. Order'!AU69=\"\",\"\",'1. Order'!AU69)","v":""},null,null,null,null,null,null,null,{"$f":"IF('1. Order'!AY69=\"\",\"\",'1. Order'!AY69)","v":""},{"$f":"IF('1. Order'!AZ69=\"\",\"\",'1. Order'!AZ69)","v":""},{"$f":"IF('1. Order'!BA69=\"\",\"\",'1. Order'!BA69)","v":""},{"$f":"IF('1. Order'!BB69=\"\",\"\",'1. Order'!BB69)","v":""},{"$f":"IF('1. Order'!BD69=\"\",\"\",'1. Order'!BD69)","v":""},{"$f":"IF('1. Order'!BE69=\"\",\"\",'1. Order'!BE69)","v":""},{"$f":"IF('1. Order'!BF69=\"\",\"\",'1. Order'!BF69)","v":""},{"$f":"IF('1. Order'!BG69=\"\",\"\",'1. Order'!BG69)","v":""},{"$f":"IF('1. Order'!BH69=\"\",\"\",'1. Order'!BH69)","v":"ZWO"}]
[{"$f":"IF('1. Order'!F70=\"\",\"\",'1. Order'!F70)","v":{"$error":"#N/A"}},{"$f":"IF('1. Order'!G70=\"\",\"\",'1. Order'!G70)","v":""},{"$f":"IF('1. Order'!H70=\"\",\"\",'1. Order'!H70)","v":""},{"$f":"IF('1. Order'!I70=\"\",\"\",'1. Order'!I70)","v":""},{"$f":"IF('1. Order'!J70=\"\",\"\",'1. Order'!J70)","v":""},{"$f":"IF('1. Order'!K70=\"\",\"\",'1. Order'!K70)","v":""},{"$f":"IF('1. Order'!L70=\"\",\"\",'1. Order'!L70)","v":""},{"$f":"IF('1. Order'!M70=\"\",\"\",'1. Order'!M70)","v":""},{"$f":"IF('1. Order'!N70=\"\",\"\",'1. Order'!N70)","v":""},{"$f":"IF('1. Order'!O70=\"\",\"\",'1. Order'!O70)","v":{"$error":"#N/A"}},{"$f":"IF('1. Order'!P70=\"\",\"\",'1. Order'!P70)","v":{"$error":"#N/A"}},{"$f":"IF('1. Order'!Q70=\"\",\"\",'1. Order'!Q70)","v":""},{"$f":"IF('1. Order'!S70=\"\",\"\",'1. Order'!S70)","v":""},{"$f":"IF('1. Order'!T70=\"\",\"\",'1. Order'!T70)","v":""},{"$f":"IF('1. Order'!W70=\"\",\"\",'1. Order'!W70)","v":""},{"$f":"IF('1. Order'!X70=\"\",\"\",'1. Order'!X70)","v":""},{"$f":"IF('1. Order'!Y70=\"\",\"\",'1. Order'!Y70)","v":"EUR"},{"$f":"IF('1. Order'!Z70=\"\",\"\",'1. Order'!Z70)","v":""},{"$f":"IF('1. Order'!AA70=\"\",\"\",'1. Order'!AA70)","v":""},{"$f":"IF('1. Order'!AB70=\"\",\"\",'1. Order'!AB70)","v":""},null,{"$f":"IF('1. Order'!AT70=\"\",\"\",'1. Order'!AT70)","v":""},{"$f":"IF('1. Order'!AU70=\"\",\"\",'1. Order'!AU70)","v":""},null,null,null,null,null,null,null,{"$f":"IF('1. Order'!AY70=\"\",\"\",'1. Order'!AY70)","v":""},{"$f":"IF('1. Order'!AZ70=\"\",\"\",'1. Order'!AZ70)","v":""},{"$f":"IF('1. Order'!BA70=\"\",\"\",'1. Order'!BA70)","v":""},{"$f":"IF('1. Order'!BB70=\"\",\"\",'1. Order'!BB70)","v":""},{"$f":"IF('1. Order'!BD70=\"\",\"\",'1. Order'!BD70)","v":""},{"$f":"IF('1. Order'!BE70=\"\",\"\",'1. Order'!BE70)","v":""},{"$f":"IF('1. Order'!BF70=\"\",\"\",'1. Order'!BF70)","v":""},{"$f":"IF('1. Order'!BG70=\"\",\"\",'1. Order'!BG70)","v":""},{"$f":"IF('1. Order'!BH70=\"\",\"\",'1. Order'!BH70)","v":"ZWO"}]
[{"$f":"IF('1. Order'!F71=\"\",\"\",'1. Order'!F71)","v":{"$error":"#N/A"}},{"$f":"IF('1. Order'!G71=\"\",\"\",'1. Order'!G71)","v":""},{"$f":"IF('1. Order'!H71=\"\",\"\",'1. Order'!H71)","v":""},{"$f":"IF('1. Order'!I71=\"\",\"\",'1. Order'!I71)","v":""},{"$f":"IF('1. Order'!J71=\"\",\"\",'1. Order'!J71)","v":""},{"$f":"IF('1. Order'!K71=\"\",\"\",'1. Order'!K71)","v":""},{"$f":"IF('1. Order'!L71=\"\",\"\",'1. Order'!L71)","v":""},{"$f":"IF('1. Order'!M71=\"\",\"\",'1. Order'!M71)","v":""},{"$f":"IF('1. Order'!N71=\"\",\"\",'1. Order'!N71)","v":""},{"$f":"IF('1. Order'!O71=\"\",\"\",'1. Order'!O71)","v":{"$error":"#N/A"}},{"$f":"IF('1. Order'!P71=\"\",\"\",'1. Order'!P71)","v":{"$error":"#N/A"}},{"$f":"IF('1. Order'!Q71=\"\",\"\",'1. Order'!Q71)","v":""},{"$f":"IF('1. Order'!S71=\"\",\"\",'1. Order'!S71)","v":""},{"$f":"IF('1. Order'!T71=\"\",\"\",'1. Order'!T71)","v":""},{"$f":"IF('1. Order'!W71=\"\",\"\",'1. Order'!W71)","v":""},{"$f":"IF('1. Order'!X71=\"\",\"\",'1. Order'!X71)","v":""},{"$f":"IF('1. Order'!Y71=\"\",\"\",'1. Order'!Y71)","v":"EUR"},{"$f":"IF('1. Order'!Z71=\"\",\"\",'1. Order'!Z71)","v":""},{"$f":"IF('1. Order'!AA71=\"\",\"\",'1. Order'!AA71)","v":""},{"$f":"IF('1. Order'!AB71=\"\",\"\",'1. Order'!AB71)","v":""},null,{"$f":"IF('1. Order'!AT71=\"\",\"\",'1. Order'!AT71)","v":""},{"$f":"IF('1. Order'!AU71=\"\",\"\",'1. Order'!AU71)","v":""},null,null,null,null,null,null,null,{"$f":"IF('1. Order'!AY71=\"\",\"\",'1. Order'!AY71)","v":""},{"$f":"IF('1. Order'!AZ71=\"\",\"\",'1. Order'!AZ71)","v":""},{"$f":"IF('1. Order'!BA71=\"\",\"\",'1. Order'!BA71)","v":""},{"$f":"IF('1. Order'!BB71=\"\",\"\",'1. Order'!BB71)","v":""},{"$f":"IF('1. Order'!BD71=\"\",\"\",'1. Order'!BD71)","v":""},{"$f":"IF('1. Order'!BE71=\"\",\"\",'1. Order'!BE71)","v":""},{"$f":"IF('1. Order'!BF71=\"\",\"\",'1. Order'!BF71)","v":""},{"$f":"IF('1. Order'!BG71=\"\",\"\",'1. Order'!BG71)","v":""},{"$f":"IF('1. Order'!BH71=\"\",\"\",'1. Order'!BH71)","v":"ZWO"}]
[{"$f":"IF('1. Order'!F72=\"\",\"\",'1. Order'!F72)","v":{"$error":"#N/A"}},{"$f":"IF('1. Order'!G72=\"\",\"\",'1. Order'!G72)","v":""},{"$f":"IF('1. Order'!H72=\"\",\"\",'1. Order'!H72)","v":""},{"$f":"IF('1. Order'!I72=\"\",\"\",'1. Order'!I72)","v":""},{"$f":"IF('1. Order'!J72=\"\",\"\",'1. Order'!J72)","v":""},{"$f":"IF('1. Order'!K72=\"\",\"\",'1. Order'!K72)","v":""},{"$f":"IF('1. Order'!L72=\"\",\"\",'1. Order'!L72)","v":""},{"$f":"IF('1. Order'!M72=\"\",\"\",'1. Order'!M72)","v":""},{"$f":"IF('1. Order'!N72=\"\",\"\",'1. Order'!N72)","v":""},{"$f":"IF('1. Order'!O72=\"\",\"\",'1. Order'!O72)","v":{"$error":"#N/A"}},{"$f":"IF('1. Order'!P72=\"\",\"\",'1. Order'!P72)","v":{"$error":"#N/A"}},{"$f":"IF('1. Order'!Q72=\"\",\"\",'1. Order'!Q72)","v":""},{"$f":"IF('1. Order'!S72=\"\",\"\",'1. Order'!S72)","v":""},{"$f":"IF('1. Order'!T72=\"\",\"\",'1. Order'!T72)","v":""},{"$f":"IF('1. Order'!W72=\"\",\"\",'1. Order'!W72)","v":""},{"$f":"IF('1. Order'!X72=\"\",\"\",'1. Order'!X72)","v":""},{"$f":"IF('1. Order'!Y72=\"\",\"\",'1. Order'!Y72)","v":"EUR"},{"$f":"IF('1. Order'!Z72=\"\",\"\",'1. Order'!Z72)","v":""},{"$f":"IF('1. Order'!AA72=\"\",\"\",'1. Order'!AA72)","v":""},{"$f":"IF('1. Order'!AB72=\"\",\"\",'1. Order'!AB72)","v":""},null,{"$f":"IF('1. Order'!AT72=\"\",\"\",'1. Order'!AT72)","v":""},{"$f":"IF('1. Order'!AU72=\"\",\"\",'1. Order'!AU72)","v":""},null,null,null,null,null,null,null,{"$f":"IF('1. Order'!AY72=\"\",\"\",'1. Order'!AY72)","v":""},{"$f":"IF('1. Order'!AZ72=\"\",\"\",'1. Order'!AZ72)","v":""},{"$f":"IF('1. Order'!BA72=\"\",\"\",'1. Order'!BA72)","v":""},{"$f":"IF('1. Order'!BB72=\"\",\"\",'1. Order'!BB72)","v":""},{"$f":"IF('1. Order'!BD72=\"\",\"\",'1. Order'!BD72)","v":""},{"$f":"IF('1. Order'!BE72=\"\",\"\",'1. Order'!BE72)","v":""},{"$f":"IF('1. Order'!BF72=\"\",\"\",'1. Order'!BF72)","v":""},{"$f":"IF('1. Order'!BG72=\"\",\"\",'1. Order'!BG72)","v":""},{"$f":"IF('1. Order'!BH72=\"\",\"\",'1. Order'!BH72)","v":"ZWO"}]
[{"$f":"IF('1. Order'!F73=\"\",\"\",'1. Order'!F73)","v":{"$error":"#N/A"}},{"$f":"IF('1. Order'!G73=\"\",\"\",'1. Order'!G73)","v":""},{"$f":"IF('1. Order'!H73=\"\",\"\",'1. Order'!H73)","v":""},{"$f":"IF('1. Order'!I73=\"\",\"\",'1. Order'!I73)","v":""},{"$f":"IF('1. Order'!J73=\"\",\"\",'1. Order'!J73)","v":""},{"$f":"IF('1. Order'!K73=\"\",\"\",'1. Order'!K73)","v":""},{"$f":"IF('1. Order'!L73=\"\",\"\",'1. Order'!L73)","v":""},{"$f":"IF('1. Order'!M73=\"\",\"\",'1. Order'!M73)","v":""},{"$f":"IF('1. Order'!N73=\"\",\"\",'1. Order'!N73)","v":""},{"$f":"IF('1. Order'!O73=\"\",\"\",'1. Order'!O73)","v":{"$error":"#N/A"}},{"$f":"IF('1. Order'!P73=\"\",\"\",'1. Order'!P73)","v":{"$error":"#N/A"}},{"$f":"IF('1. Order'!Q73=\"\",\"\",'1. Order'!Q73)","v":""},{"$f":"IF('1. Order'!S73=\"\",\"\",'1. Order'!S73)","v":""},{"$f":"IF('1. Order'!T73=\"\",\"\",'1. Order'!T73)","v":""},{"$f":"IF('1. Order'!W73=\"\",\"\",'1. Order'!W73)","v":""},{"$f":"IF('1. Order'!X73=\"\",\"\",'1. Order'!X73)","v":""},{"$f":"IF('1. Order'!Y73=\"\",\"\",'1. Order'!Y73)","v":"EUR"},{"$f":"IF('1. Order'!Z73=\"\",\"\",'1. Order'!Z73)","v":""},{"$f":"IF('1. Order'!AA73=\"\",\"\",'1. Order'!AA73)","v":""},{"$f":"IF('1. Order'!AB73=\"\",\"\",'1. Order'!AB73)","v":""},null,{"$f":"IF('1. Order'!AT73=\"\",\"\",'1. Order'!AT73)","v":""},{"$f":"IF('1. Order'!AU73=\"\",\"\",'1. Order'!AU73)","v":""},null,null,null,null,null,null,null,{"$f":"IF('1. Order'!AY73=\"\",\"\",'1. Order'!AY73)","v":""},{"$f":"IF('1. Order'!AZ73=\"\",\"\",'1. Order'!AZ73)","v":""},{"$f":"IF('1. Order'!BA73=\"\",\"\",'1. Order'!BA73)","v":""},{"$f":"IF('1. Order'!BB73=\"\",\"\",'1. Order'!BB73)","v":""},{"$f":"IF('1. Order'!BD73=\"\",\"\",'1. Order'!BD73)","v":""},{"$f":"IF('1. Order'!BE73=\"\",\"\",'1. Order'!BE73)","v":""},{"$f":"IF('1. Order'!BF73=\"\",\"\",'1. Order'!BF73)","v":""},{"$f":"IF('1. Order'!BG73=\"\",\"\",'1. Order'!BG73)","v":""},{"$f":"IF('1. Order'!BH73=\"\",\"\",'1. Order'!BH73)","v":"ZWO"}]
[{"$f":"IF('1. Order'!F74=\"\",\"\",'1. Order'!F74)","v":{"$error":"#N/A"}},{"$f":"IF('1. Order'!G74=\"\",\"\",'1. Order'!G74)","v":""},{"$f":"IF('1. Order'!H74=\"\",\"\",'1. Order'!H74)","v":""},{"$f":"IF('1. Order'!I74=\"\",\"\",'1. Order'!I74)","v":""},{"$f":"IF('1. Order'!J74=\"\",\"\",'1. Order'!J74)","v":""},{"$f":"IF('1. Order'!K74=\"\",\"\",'1. Order'!K74)","v":""},{"$f":"IF('1. Order'!L74=\"\",\"\",'1. Order'!L74)","v":""},{"$f":"IF('1. Order'!M74=\"\",\"\",'1. Order'!M74)","v":""},{"$f":"IF('1. Order'!N74=\"\",\"\",'1. Order'!N74)","v":""},{"$f":"IF('1. Order'!O74=\"\",\"\",'1. Order'!O74)","v":{"$error":"#N/A"}},{"$f":"IF('1. Order'!P74=\"\",\"\",'1. Order'!P74)","v":{"$error":"#N/A"}},{"$f":"IF('1. Order'!Q74=\"\",\"\",'1. Order'!Q74)","v":""},{"$f":"IF('1. Order'!S74=\"\",\"\",'1. Order'!S74)","v":""},{"$f":"IF('1. Order'!T74=\"\",\"\",'1. Order'!T74)","v":""},{"$f":"IF('1. Order'!W74=\"\",\"\",'1. Order'!W74)","v":""},{"$f":"IF('1. Order'!X74=\"\",\"\",'1. Order'!X74)","v":""},{"$f":"IF('1. Order'!Y74=\"\",\"\",'1. Order'!Y74)","v":"EUR"},{"$f":"IF('1. Order'!Z74=\"\",\"\",'1. Order'!Z74)","v":""},{"$f":"IF('1. Order'!AA74=\"\",\"\",'1. Order'!AA74)","v":""},{"$f":"IF('1. Order'!AB74=\"\",\"\",'1. Order'!AB74)","v":""},null,{"$f":"IF('1. Order'!AT74=\"\",\"\",'1. Order'!AT74)","v":""},{"$f":"IF('1. Order'!AU74=\"\",\"\",'1. Order'!AU74)","v":""},null,null,null,null,null,null,null,{"$f":"IF('1. Order'!AY74=\"\",\"\",'1. Order'!AY74)","v":""},{"$f":"IF('1. Order'!AZ74=\"\",\"\",'1. Order'!AZ74)","v":""},{"$f":"IF('1. Order'!BA74=\"\",\"\",'1. Order'!BA74)","v":""},{"$f":"IF('1. Order'!BB74=\"\",\"\",'1. Order'!BB74)","v":""},{"$f":"IF('1. Order'!BD74=\"\",\"\",'1. Order'!BD74)","v":""},{"$f":"IF('1. Order'!BE74=\"\",\"\",'1. Order'!BE74)","v":""},{"$f":"IF('1. Order'!BF74=\"\",\"\",'1. Order'!BF74)","v":""},{"$f":"IF('1. Order'!BG74=\"\",\"\",'1. Order'!BG74)","v":""},{"$f":"IF('1. Order'!BH74=\"\",\"\",'1. Order'!BH74)","v":"ZWO"}]
[{"$f":"IF('1. Order'!F75=\"\",\"\",'1. Order'!F75)","v":{"$error":"#N/A"}},{"$f":"IF('1. Order'!G75=\"\",\"\",'1. Order'!G75)","v":""},{"$f":"IF('1. Order'!H75=\"\",\"\",'1. Order'!H75)","v":""},{"$f":"IF('1. Order'!I75=\"\",\"\",'1. Order'!I75)","v":""},{"$f":"IF('1. Order'!J75=\"\",\"\",'1. Order'!J75)","v":""},{"$f":"IF('1. Order'!K75=\"\",\"\",'1. Order'!K75)","v":""},{"$f":"IF('1. Order'!L75=\"\",\"\",'1. Order'!L75)","v":""},{"$f":"IF('1. Order'!M75=\"\",\"\",'1. Order'!M75)","v":""},{"$f":"IF('1. Order'!N75=\"\",\"\",'1. Order'!N75)","v":""},{"$f":"IF('1. Order'!O75=\"\",\"\",'1. Order'!O75)","v":{"$error":"#N/A"}},{"$f":"IF('1. Order'!P75=\"\",\"\",'1. Order'!P75)","v":{"$error":"#N/A"}},{"$f":"IF('1. Order'!Q75=\"\",\"\",'1. Order'!Q75)","v":""},{"$f":"IF('1. Order'!S75=\"\",\"\",'1. Order'!S75)","v":""},{"$f":"IF('1. Order'!T75=\"\",\"\",'1. Order'!T75)","v":""},{"$f":"IF('1. Order'!W75=\"\",\"\",'1. Order'!W75)","v":""},{"$f":"IF('1. Order'!X75=\"\",\"\",'1. Order'!X75)","v":""},{"$f":"IF('1. Order'!Y75=\"\",\"\",'1. Order'!Y75)","v":"EUR"},{"$f":"IF('1. Order'!Z75=\"\",\"\",'1. Order'!Z75)","v":""},{"$f":"IF('1. Order'!AA75=\"\",\"\",'1. Order'!AA75)","v":""},{"$f":"IF('1. Order'!AB75=\"\",\"\",'1. Order'!AB75)","v":""},null,{"$f":"IF('1. Order'!AT75=\"\",\"\",'1. Order'!AT75)","v":""},{"$f":"IF('1. Order'!AU75=\"\",\"\",'1. Order'!AU75)","v":""},null,null,null,null,null,null,null,{"$f":"IF('1. Order'!AY75=\"\",\"\",'1. Order'!AY75)","v":""},{"$f":"IF('1. Order'!AZ75=\"\",\"\",'1. Order'!AZ75)","v":""},{"$f":"IF('1. Order'!BA75=\"\",\"\",'1. Order'!BA75)","v":""},{"$f":"IF('1. Order'!BB75=\"\",\"\",'1. Order'!BB75)","v":""},{"$f":"IF('1. Order'!BD75=\"\",\"\",'1. Order'!BD75)","v":""},{"$f":"IF('1. Order'!BE75=\"\",\"\",'1. Order'!BE75)","v":""},{"$f":"IF('1. Order'!BF75=\"\",\"\",'1. Order'!BF75)","v":""},{"$f":"IF('1. Order'!BG75=\"\",\"\",'1. Order'!BG75)","v":""},{"$f":"IF('1. Order'!BH75=\"\",\"\",'1. Order'!BH75)","v":"ZWO"}]
[{"$f":"IF('1. Order'!F76=\"\",\"\",'1. Order'!F76)","v":{"$error":"#N/A"}},{"$f":"IF('1. Order'!G76=\"\",\"\",'1. Order'!G76)","v":""},{"$f":"IF('1. Order'!H76=\"\",\"\",'1. Order'!H76)","v":""},{"$f":"IF('1. Order'!I76=\"\",\"\",'1. Order'!I76)","v":""},{"$f":"IF('1. Order'!J76=\"\",\"\",'1. Order'!J76)","v":""},{"$f":"IF('1. Order'!K76=\"\",\"\",'1. Order'!K76)","v":""},{"$f":"IF('1. Order'!L76=\"\",\"\",'1. Order'!L76)","v":""},{"$f":"IF('1. Order'!M76=\"\",\"\",'1. Order'!M76)","v":""},{"$f":"IF('1. Order'!N76=\"\",\"\",'1. Order'!N76)","v":""},{"$f":"IF('1. Order'!O76=\"\",\"\",'1. Order'!O76)","v":{"$error":"#N/A"}},{"$f":"IF('1. Order'!P76=\"\",\"\",'1. Order'!P76)","v":{"$error":"#N/A"}},{"$f":"IF('1. Order'!Q76=\"\",\"\",'1. Order'!Q76)","v":""},{"$f":"IF('1. Order'!S76=\"\",\"\",'1. Order'!S76)","v":""},{"$f":"IF('1. Order'!T76=\"\",\"\",'1. Order'!T76)","v":""},{"$f":"IF('1. Order'!W76=\"\",\"\",'1. Order'!W76)","v":""},{"$f":"IF('1. Order'!X76=\"\",\"\",'1. Order'!X76)","v":""},{"$f":"IF('1. Order'!Y76=\"\",\"\",'1. Order'!Y76)","v":"EUR"},{"$f":"IF('1. Order'!Z76=\"\",\"\",'1. Order'!Z76)","v":""},{"$f":"IF('1. Order'!AA76=\"\",\"\",'1. Order'!AA76)","v":""},{"$f":"IF('1. Order'!AB76=\"\",\"\",'1. Order'!AB76)","v":""},null,{"$f":"IF('1. Order'!AT76=\"\",\"\",'1. Order'!AT76)","v":""},{"$f":"IF('1. Order'!AU76=\"\",\"\",'1. Order'!AU76)","v":""},null,null,null,null,null,null,null,{"$f":"IF('1. Order'!AY76=\"\",\"\",'1. Order'!AY76)","v":""},{"$f":"IF('1. Order'!AZ76=\"\",\"\",'1. Order'!AZ76)","v":""},{"$f":"IF('1. Order'!BA76=\"\",\"\",'1. Order'!BA76)","v":""},{"$f":"IF('1. Order'!BB76=\"\",\"\",'1. Order'!BB76)","v":""},{"$f":"IF('1. Order'!BD76=\"\",\"\",'1. Order'!BD76)","v":""},{"$f":"IF('1. Order'!BE76=\"\",\"\",'1. Order'!BE76)","v":""},{"$f":"IF('1. Order'!BF76=\"\",\"\",'1. Order'!BF76)","v":""},{"$f":"IF('1. Order'!BG76=\"\",\"\",'1. Order'!BG76)","v":""},{"$f":"IF('1. Order'!BH76=\"\",\"\",'1. Order'!BH76)","v":"ZWO"}]
[{"$f":"IF('1. Order'!F77=\"\",\"\",'1. Order'!F77)","v":{"$error":"#N/A"}},{"$f":"IF('1. Order'!G77=\"\",\"\",'1. Order'!G77)","v":""},{"$f":"IF('1. Order'!H77=\"\",\"\",'1. Order'!H77)","v":""},{"$f":"IF('1. Order'!I77=\"\",\"\",'1. Order'!I77)","v":""},{"$f":"IF('1. Order'!J77=\"\",\"\",'1. Order'!J77)","v":""},{"$f":"IF('1. Order'!K77=\"\",\"\",'1. Order'!K77)","v":""},{"$f":"IF('1. Order'!L77=\"\",\"\",'1. Order'!L77)","v":""},{"$f":"IF('1. Order'!M77=\"\",\"\",'1. Order'!M77)","v":""},{"$f":"IF('1. Order'!N77=\"\",\"\",'1. Order'!N77)","v":""},{"$f":"IF('1. Order'!O77=\"\",\"\",'1. Order'!O77)","v":{"$error":"#N/A"}},{"$f":"IF('1. Order'!P77=\"\",\"\",'1. Order'!P77)","v":{"$error":"#N/A"}},{"$f":"IF('1. Order'!Q77=\"\",\"\",'1. Order'!Q77)","v":""},{"$f":"IF('1. Order'!S77=\"\",\"\",'1. Order'!S77)","v":""},{"$f":"IF('1. Order'!T77=\"\",\"\",'1. Order'!T77)","v":""},{"$f":"IF('1. Order'!W77=\"\",\"\",'1. Order'!W77)","v":""},{"$f":"IF('1. Order'!X77=\"\",\"\",'1. Order'!X77)","v":""},{"$f":"IF('1. Order'!Y77=\"\",\"\",'1. Order'!Y77)","v":"EUR"},{"$f":"IF('1. Order'!Z77=\"\",\"\",'1. Order'!Z77)","v":""},{"$f":"IF('1. Order'!AA77=\"\",\"\",'1. Order'!AA77)","v":""},{"$f":"IF('1. Order'!AB77=\"\",\"\",'1. Order'!AB77)","v":""},null,{"$f":"IF('1. Order'!AT77=\"\",\"\",'1. Order'!AT77)","v":""},{"$f":"IF('1. Order'!AU77=\"\",\"\",'1. Order'!AU77)","v":""},null,null,null,null,null,null,null,{"$f":"IF('1. Order'!AY77=\"\",\"\",'1. Order'!AY77)","v":""},{"$f":"IF('1. Order'!AZ77=\"\",\"\",'1. Order'!AZ77)","v":""},{"$f":"IF('1. Order'!BA77=\"\",\"\",'1. Order'!BA77)","v":""},{"$f":"IF('1. Order'!BB77=\"\",\"\",'1. Order'!BB77)","v":""},{"$f":"IF('1. Order'!BD77=\"\",\"\",'1. Order'!BD77)","v":""},{"$f":"IF('1. Order'!BE77=\"\",\"\",'1. Order'!BE77)","v":""},{"$f":"IF('1. Order'!BF77=\"\",\"\",'1. Order'!BF77)","v":""},{"$f":"IF('1. Order'!BG77=\"\",\"\",'1. Order'!BG77)","v":""},{"$f":"IF('1. Order'!BH77=\"\",\"\",'1. Order'!BH77)","v":"ZWO"}]
[{"$f":"IF('1. Order'!F78=\"\",\"\",'1. Order'!F78)","v":{"$error":"#N/A"}},{"$f":"IF('1. Order'!G78=\"\",\"\",'1. Order'!G78)","v":""},{"$f":"IF('1. Order'!H78=\"\",\"\",'1. Order'!H78)","v":""},{"$f":"IF('1. Order'!I78=\"\",\"\",'1. Order'!I78)","v":""},{"$f":"IF('1. Order'!J78=\"\",\"\",'1. Order'!J78)","v":""},{"$f":"IF('1. Order'!K78=\"\",\"\",'1. Order'!K78)","v":""},{"$f":"IF('1. Order'!L78=\"\",\"\",'1. Order'!L78)","v":""},{"$f":"IF('1. Order'!M78=\"\",\"\",'1. Order'!M78)","v":""},{"$f":"IF('1. Order'!N78=\"\",\"\",'1. Order'!N78)","v":""},{"$f":"IF('1. Order'!O78=\"\",\"\",'1. Order'!O78)","v":{"$error":"#N/A"}},{"$f":"IF('1. Order'!P78=\"\",\"\",'1. Order'!P78)","v":{"$error":"#N/A"}},{"$f":"IF('1. Order'!Q78=\"\",\"\",'1. Order'!Q78)","v":""},{"$f":"IF('1. Order'!S78=\"\",\"\",'1. Order'!S78)","v":""},{"$f":"IF('1. Order'!T78=\"\",\"\",'1. Order'!T78)","v":""},{"$f":"IF('1. Order'!W78=\"\",\"\",'1. Order'!W78)","v":""},{"$f":"IF('1. Order'!X78=\"\",\"\",'1. Order'!X78)","v":""},{"$f":"IF('1. Order'!Y78=\"\",\"\",'1. Order'!Y78)","v":"EUR"},{"$f":"IF('1. Order'!Z78=\"\",\"\",'1. Order'!Z78)","v":""},{"$f":"IF('1. Order'!AA78=\"\",\"\",'1. Order'!AA78)","v":""},{"$f":"IF('1. Order'!AB78=\"\",\"\",'1. Order'!AB78)","v":""},null,{"$f":"IF('1. Order'!AT78=\"\",\"\",'1. Order'!AT78)","v":""},{"$f":"IF('1. Order'!AU78=\"\",\"\",'1. Order'!AU78)","v":""},null,null,null,null,null,null,null,{"$f":"IF('1. Order'!AY78=\"\",\"\",'1. Order'!AY78)","v":""},{"$f":"IF('1. Order'!AZ78=\"\",\"\",'1. Order'!AZ78)","v":""},{"$f":"IF('1. Order'!BA78=\"\",\"\",'1. Order'!BA78)","v":""},{"$f":"IF('1. Order'!BB78=\"\",\"\",'1. Order'!BB78)","v":""},{"$f":"IF('1. Order'!BD78=\"\",\"\",'1. Order'!BD78)","v":""},{"$f":"IF('1. Order'!BE78=\"\",\"\",'1. Order'!BE78)","v":""},{"$f":"IF('1. Order'!BF78=\"\",\"\",'1. Order'!BF78)","v":""},{"$f":"IF('1. Order'!BG78=\"\",\"\",'1. Order'!BG78)","v":""},{"$f":"IF('1. Order'!BH78=\"\",\"\",'1. Order'!BH78)","v":"ZWO"}]
[{"$f":"IF('1. Order'!F79=\"\",\"\",'1. Order'!F79)","v":{"$error":"#N/A"}},{"$f":"IF('1. Order'!G79=\"\",\"\",'1. Order'!G79)","v":""},{"$f":"IF('1. Order'!H79=\"\",\"\",'1. Order'!H79)","v":""},{"$f":"IF('1. Order'!I79=\"\",\"\",'1. Order'!I79)","v":""},{"$f":"IF('1. Order'!J79=\"\",\"\",'1. Order'!J79)","v":""},{"$f":"IF('1. Order'!K79=\"\",\"\",'1. Order'!K79)","v":""},{"$f":"IF('1. Order'!L79=\"\",\"\",'1. Order'!L79)","v":""},{"$f":"IF('1. Order'!M79=\"\",\"\",'1. Order'!M79)","v":""},{"$f":"IF('1. Order'!N79=\"\",\"\",'1. Order'!N79)","v":""},{"$f":"IF('1. Order'!O79=\"\",\"\",'1. Order'!O79)","v":{"$error":"#N/A"}},{"$f":"IF('1. Order'!P79=\"\",\"\",'1. Order'!P79)","v":{"$error":"#N/A"}},{"$f":"IF('1. Order'!Q79=\"\",\"\",'1. Order'!Q79)","v":""},{"$f":"IF('1. Order'!S79=\"\",\"\",'1. Order'!S79)","v":""},{"$f":"IF('1. Order'!T79=\"\",\"\",'1. Order'!T79)","v":""},{"$f":"IF('1. Order'!W79=\"\",\"\",'1. Order'!W79)","v":""},{"$f":"IF('1. Order'!X79=\"\",\"\",'1. Order'!X79)","v":""},{"$f":"IF('1. Order'!Y79=\"\",\"\",'1. Order'!Y79)","v":"EUR"},{"$f":"IF('1. Order'!Z79=\"\",\"\",'1. Order'!Z79)","v":""},{"$f":"IF('1. Order'!AA79=\"\",\"\",'1. Order'!AA79)","v":""},{"$f":"IF('1. Order'!AB79=\"\",\"\",'1. Order'!AB79)","v":""},null,{"$f":"IF('1. Order'!AT79=\"\",\"\",'1. Order'!AT79)","v":""},{"$f":"IF('1. Order'!AU79=\"\",\"\",'1. Order'!AU79)","v":""},null,null,null,null,null,null,null,{"$f":"IF('1. Order'!AY79=\"\",\"\",'1. Order'!AY79)","v":""},{"$f":"IF('1. Order'!AZ79=\"\",\"\",'1. Order'!AZ79)","v":""},{"$f":"IF('1. Order'!BA79=\"\",\"\",'1. Order'!BA79)","v":""},{"$f":"IF('1. Order'!BB79=\"\",\"\",'1. Order'!BB79)","v":""},{"$f":"IF('1. Order'!BD79=\"\",\"\",'1. Order'!BD79)","v":""},{"$f":"IF('1. Order'!BE79=\"\",\"\",'1. Order'!BE79)","v":""},{"$f":"IF('1. Order'!BF79=\"\",\"\",'1. Order'!BF79)","v":""},{"$f":"IF('1. Order'!BG79=\"\",\"\",'1. Order'!BG79)","v":""},{"$f":"IF('1. Order'!BH79=\"\",\"\",'1. Order'!BH79)","v":"ZWO"}]
[{"$f":"IF('1. Order'!F80=\"\",\"\",'1. Order'!F80)","v":{"$error":"#N/A"}},{"$f":"IF('1. Order'!G80=\"\",\"\",'1. Order'!G80)","v":""},{"$f":"IF('1. Order'!H80=\"\",\"\",'1. Order'!H80)","v":""},{"$f":"IF('1. Order'!I80=\"\",\"\",'1. Order'!I80)","v":""},{"$f":"IF('1. Order'!J80=\"\",\"\",'1. Order'!J80)","v":""},{"$f":"IF('1. Order'!K80=\"\",\"\",'1. Order'!K80)","v":""},{"$f":"IF('1. Order'!L80=\"\",\"\",'1. Order'!L80)","v":""},{"$f":"IF('1. Order'!M80=\"\",\"\",'1. Order'!M80)","v":""},{"$f":"IF('1. Order'!N80=\"\",\"\",'1. Order'!N80)","v":""},{"$f":"IF('1. Order'!O80=\"\",\"\",'1. Order'!O80)","v":{"$error":"#N/A"}},{"$f":"IF('1. Order'!P80=\"\",\"\",'1. Order'!P80)","v":{"$error":"#N/A"}},{"$f":"IF('1. Order'!Q80=\"\",\"\",'1. Order'!Q80)","v":""},{"$f":"IF('1. Order'!S80=\"\",\"\",'1. Order'!S80)","v":""},{"$f":"IF('1. Order'!T80=\"\",\"\",'1. Order'!T80)","v":""},{"$f":"IF('1. Order'!W80=\"\",\"\",'1. Order'!W80)","v":""},{"$f":"IF('1. Order'!X80=\"\",\"\",'1. Order'!X80)","v":""},{"$f":"IF('1. Order'!Y80=\"\",\"\",'1. Order'!Y80)","v":"EUR"},{"$f":"IF('1. Order'!Z80=\"\",\"\",'1. Order'!Z80)","v":""},{"$f":"IF('1. Order'!AA80=\"\",\"\",'1. Order'!AA80)","v":""},{"$f":"IF('1. Order'!AB80=\"\",\"\",'1. Order'!AB80)","v":""},null,{"$f":"IF('1. Order'!AT80=\"\",\"\",'1. Order'!AT80)","v":""},{"$f":"IF('1. Order'!AU80=\"\",\"\",'1. Order'!AU80)","v":""},null,null,null,null,null,null,null,{"$f":"IF('1. Order'!AY80=\"\",\"\",'1. Order'!AY80)","v":""},{"$f":"IF('1. Order'!AZ80=\"\",\"\",'1. Order'!AZ80)","v":""},{"$f":"IF('1. Order'!BA80=\"\",\"\",'1. Order'!BA80)","v":""},{"$f":"IF('1. Order'!BB80=\"\",\"\",'1. Order'!BB80)","v":""},{"$f":"IF('1. Order'!BD80=\"\",\"\",'1. Order'!BD80)","v":""},{"$f":"IF('1. Order'!BE80=\"\",\"\",'1. Order'!BE80)","v":""},{"$f":"IF('1. Order'!BF80=\"\",\"\",'1. Order'!BF80)","v":""},{"$f":"IF('1. Order'!BG80=\"\",\"\",'1. Order'!BG80)","v":""},{"$f":"IF('1. Order'!BH80=\"\",\"\",'1. Order'!BH80)","v":"ZWO"}]
[{"$f":"IF('1. Order'!F81=\"\",\"\",'1. Order'!F81)","v":{"$error":"#N/A"}},{"$f":"IF('1. Order'!G81=\"\",\"\",'1. Order'!G81)","v":""},{"$f":"IF('1. Order'!H81=\"\",\"\",'1. Order'!H81)","v":""},{"$f":"IF('1. Order'!I81=\"\",\"\",'1. Order'!I81)","v":""},{"$f":"IF('1. Order'!J81=\"\",\"\",'1. Order'!J81)","v":""},{"$f":"IF('1. Order'!K81=\"\",\"\",'1. Order'!K81)","v":""},{"$f":"IF('1. Order'!L81=\"\",\"\",'1. Order'!L81)","v":""},{"$f":"IF('1. Order'!M81=\"\",\"\",'1. Order'!M81)","v":""},{"$f":"IF('1. Order'!N81=\"\",\"\",'1. Order'!N81)","v":""},{"$f":"IF('1. Order'!O81=\"\",\"\",'1. Order'!O81)","v":{"$error":"#N/A"}},{"$f":"IF('1. Order'!P81=\"\",\"\",'1. Order'!P81)","v":{"$error":"#N/A"}},{"$f":"IF('1. Order'!Q81=\"\",\"\",'1. Order'!Q81)","v":""},{"$f":"IF('1. Order'!S81=\"\",\"\",'1. Order'!S81)","v":""},{"$f":"IF('1. Order'!T81=\"\",\"\",'1. Order'!T81)","v":""},{"$f":"IF('1. Order'!W81=\"\",\"\",'1. Order'!W81)","v":""},{"$f":"IF('1. Order'!X81=\"\",\"\",'1. Order'!X81)","v":""},{"$f":"IF('1. Order'!Y81=\"\",\"\",'1. Order'!Y81)","v":"EUR"},{"$f":"IF('1. Order'!Z81=\"\",\"\",'1. Order'!Z81)","v":""},{"$f":"IF('1. Order'!AA81=\"\",\"\",'1. Order'!AA81)","v":""},{"$f":"IF('1. Order'!AB81=\"\",\"\",'1. Order'!AB81)","v":""},null,{"$f":"IF('1. Order'!AT81=\"\",\"\",'1. Order'!AT81)","v":""},{"$f":"IF('1. Order'!AU81=\"\",\"\",'1. Order'!AU81)","v":""},null,null,null,null,null,null,null,{"$f":"IF('1. Order'!AY81=\"\",\"\",'1. Order'!AY81)","v":""},{"$f":"IF('1. Order'!AZ81=\"\",\"\",'1. Order'!AZ81)","v":""},{"$f":"IF('1. Order'!BA81=\"\",\"\",'1. Order'!BA81)","v":""},{"$f":"IF('1. Order'!BB81=\"\",\"\",'1. Order'!BB81)","v":""},{"$f":"IF('1. Order'!BD81=\"\",\"\",'1. Order'!BD81)","v":""},{"$f":"IF('1. Order'!BE81=\"\",\"\",'1. Order'!BE81)","v":""},{"$f":"IF('1. Order'!BF81=\"\",\"\",'1. Order'!BF81)","v":""},{"$f":"IF('1. Order'!BG81=\"\",\"\",'1. Order'!BG81)","v":""},{"$f":"IF('1. Order'!BH81=\"\",\"\",'1. Order'!BH81)","v":"ZWO"}]
[{"$f":"IF('1. Order'!F82=\"\",\"\",'1. Order'!F82)","v":{"$error":"#N/A"}},{"$f":"IF('1. Order'!G82=\"\",\"\",'1. Order'!G82)","v":""},{"$f":"IF('1. Order'!H82=\"\",\"\",'1. Order'!H82)","v":""},{"$f":"IF('1. Order'!I82=\"\",\"\",'1. Order'!I82)","v":""},{"$f":"IF('1. Order'!J82=\"\",\"\",'1. Order'!J82)","v":""},{"$f":"IF('1. Order'!K82=\"\",\"\",'1. Order'!K82)","v":""},{"$f":"IF('1. Order'!L82=\"\",\"\",'1. Order'!L82)","v":""},{"$f":"IF('1. Order'!M82=\"\",\"\",'1. Order'!M82)","v":""},{"$f":"IF('1. Order'!N82=\"\",\"\",'1. Order'!N82)","v":""},{"$f":"IF('1. Order'!O82=\"\",\"\",'1. Order'!O82)","v":{"$error":"#N/A"}},{"$f":"IF('1. Order'!P82=\"\",\"\",'1. Order'!P82)","v":{"$error":"#N/A"}},{"$f":"IF('1. Order'!Q82=\"\",\"\",'1. Order'!Q82)","v":""},{"$f":"IF('1. Order'!S82=\"\",\"\",'1. Order'!S82)","v":""},{"$f":"IF('1. Order'!T82=\"\",\"\",'1. Order'!T82)","v":""},{"$f":"IF('1. Order'!W82=\"\",\"\",'1. Order'!W82)","v":""},{"$f":"IF('1. Order'!X82=\"\",\"\",'1. Order'!X82)","v":""},{"$f":"IF('1. Order'!Y82=\"\",\"\",'1. Order'!Y82)","v":"EUR"},{"$f":"IF('1. Order'!Z82=\"\",\"\",'1. Order'!Z82)","v":""},{"$f":"IF('1. Order'!AA82=\"\",\"\",'1. Order'!AA82)","v":""},{"$f":"IF('1. Order'!AB82=\"\",\"\",'1. Order'!AB82)","v":""},null,{"$f":"IF('1. Order'!AT82=\"\",\"\",'1. Order'!AT82)","v":""},{"$f":"IF('1. Order'!AU82=\"\",\"\",'1. Order'!AU82)","v":""},null,null,null,null,null,null,null,{"$f":"IF('1. Order'!AY82=\"\",\"\",'1. Order'!AY82)","v":""},{"$f":"IF('1. Order'!AZ82=\"\",\"\",'1. Order'!AZ82)","v":""},{"$f":"IF('1. Order'!BA82=\"\",\"\",'1. Order'!BA82)","v":""},{"$f":"IF('1. Order'!BB82=\"\",\"\",'1. Order'!BB82)","v":""},{"$f":"IF('1. Order'!BD82=\"\",\"\",'1. Order'!BD82)","v":""},{"$f":"IF('1. Order'!BE82=\"\",\"\",'1. Order'!BE82)","v":""},{"$f":"IF('1. Order'!BF82=\"\",\"\",'1. Order'!BF82)","v":""},{"$f":"IF('1. Order'!BG82=\"\",\"\",'1. Order'!BG82)","v":""},{"$f":"IF('1. Order'!BH82=\"\",\"\",'1. Order'!BH82)","v":"ZWO"}]
[{"$f":"IF('1. Order'!F83=\"\",\"\",'1. Order'!F83)","v":{"$error":"#N/A"}},{"$f":"IF('1. Order'!G83=\"\",\"\",'1. Order'!G83)","v":""},{"$f":"IF('1. Order'!H83=\"\",\"\",'1. Order'!H83)","v":""},{"$f":"IF('1. Order'!I83=\"\",\"\",'1. Order'!I83)","v":""},{"$f":"IF('1. Order'!J83=\"\",\"\",'1. Order'!J83)","v":""},{"$f":"IF('1. Order'!K83=\"\",\"\",'1. Order'!K83)","v":""},{"$f":"IF('1. Order'!L83=\"\",\"\",'1. Order'!L83)","v":""},{"$f":"IF('1. Order'!M83=\"\",\"\",'1. Order'!M83)","v":""},{"$f":"IF('1. Order'!N83=\"\",\"\",'1. Order'!N83)","v":""},{"$f":"IF('1. Order'!O83=\"\",\"\",'1. Order'!O83)","v":{"$error":"#N/A"}},{"$f":"IF('1. Order'!P83=\"\",\"\",'1. Order'!P83)","v":{"$error":"#N/A"}},{"$f":"IF('1. Order'!Q83=\"\",\"\",'1. Order'!Q83)","v":""},{"$f":"IF('1. Order'!S83=\"\",\"\",'1. Order'!S83)","v":""},{"$f":"IF('1. Order'!T83=\"\",\"\",'1. Order'!T83)","v":""},{"$f":"IF('1. Order'!W83=\"\",\"\",'1. Order'!W83)","v":""},{"$f":"IF('1. Order'!X83=\"\",\"\",'1. Order'!X83)","v":""},{"$f":"IF('1. Order'!Y83=\"\",\"\",'1. Order'!Y83)","v":"EUR"},{"$f":"IF('1. Order'!Z83=\"\",\"\",'1. Order'!Z83)","v":""},{"$f":"IF('1. Order'!AA83=\"\",\"\",'1. Order'!AA83)","v":""},{"$f":"IF('1. Order'!AB83=\"\",\"\",'1. Order'!AB83)","v":""},null,{"$f":"IF('1. Order'!AT83=\"\",\"\",'1. Order'!AT83)","v":""},{"$f":"IF('1. Order'!AU83=\"\",\"\",'1. Order'!AU83)","v":""},null,null,null,null,null,null,null,{"$f":"IF('1. Order'!AY83=\"\",\"\",'1. Order'!AY83)","v":""},{"$f":"IF('1. Order'!AZ83=\"\",\"\",'1. Order'!AZ83)","v":""},{"$f":"IF('1. Order'!BA83=\"\",\"\",'1. Order'!BA83)","v":""},{"$f":"IF('1. Order'!BB83=\"\",\"\",'1. Order'!BB83)","v":""},{"$f":"IF('1. Order'!BD83=\"\",\"\",'1. Order'!BD83)","v":""},{"$f":"IF('1. Order'!BE83=\"\",\"\",'1. Order'!BE83)","v":""},{"$f":"IF('1. Order'!BF83=\"\",\"\",'1. Order'!BF83)","v":""},{"$f":"IF('1. Order'!BG83=\"\",\"\",'1. Order'!BG83)","v":""},{"$f":"IF('1. Order'!BH83=\"\",\"\",'1. Order'!BH83)","v":"ZWO"}]
[{"$f":"IF('1. Order'!F84=\"\",\"\",'1. Order'!F84)","v":{"$error":"#N/A"}},{"$f":"IF('1. Order'!G84=\"\",\"\",'1. Order'!G84)","v":""},{"$f":"IF('1. Order'!H84=\"\",\"\",'1. Order'!H84)","v":""},{"$f":"IF('1. Order'!I84=\"\",\"\",'1. Order'!I84)","v":""},{"$f":"IF('1. Order'!J84=\"\",\"\",'1. Order'!J84)","v":""},{"$f":"IF('1. Order'!K84=\"\",\"\",'1. Order'!K84)","v":""},{"$f":"IF('1. Order'!L84=\"\",\"\",'1. Order'!L84)","v":""},{"$f":"IF('1. Order'!M84=\"\",\"\",'1. Order'!M84)","v":""},{"$f":"IF('1. Order'!N84=\"\",\"\",'1. Order'!N84)","v":""},{"$f":"IF('1. Order'!O84=\"\",\"\",'1. Order'!O84)","v":{"$error":"#N/A"}},{"$f":"IF('1. Order'!P84=\"\",\"\",'1. Order'!P84)","v":{"$error":"#N/A"}},{"$f":"IF('1. Order'!Q84=\"\",\"\",'1. Order'!Q84)","v":""},{"$f":"IF('1. Order'!S84=\"\",\"\",'1. Order'!S84)","v":""},{"$f":"IF('1. Order'!T84=\"\",\"\",'1. Order'!T84)","v":""},{"$f":"IF('1. Order'!W84=\"\",\"\",'1. Order'!W84)","v":""},{"$f":"IF('1. Order'!X84=\"\",\"\",'1. Order'!X84)","v":""},{"$f":"IF('1. Order'!Y84=\"\",\"\",'1. Order'!Y84)","v":"EUR"},{"$f":"IF('1. Order'!Z84=\"\",\"\",'1. Order'!Z84)","v":""},{"$f":"IF('1. Order'!AA84=\"\",\"\",'1. Order'!AA84)","v":""},{"$f":"IF('1. Order'!AB84=\"\",\"\",'1. Order'!AB84)","v":""},null,{"$f":"IF('1. Order'!AT84=\"\",\"\",'1. Order'!AT84)","v":""},{"$f":"IF('1. Order'!AU84=\"\",\"\",'1. Order'!AU84)","v":""},null,null,null,null,null,null,null,{"$f":"IF('1. Order'!AY84=\"\",\"\",'1. Order'!AY84)","v":""},{"$f":"IF('1. Order'!AZ84=\"\",\"\",'1. Order'!AZ84)","v":""},{"$f":"IF('1. Order'!BA84=\"\",\"\",'1. Order'!BA84)","v":""},{"$f":"IF('1. Order'!BB84=\"\",\"\",'1. Order'!BB84)","v":""},{"$f":"IF('1. Order'!BD84=\"\",\"\",'1. Order'!BD84)","v":""},{"$f":"IF('1. Order'!BE84=\"\",\"\",'1. Order'!BE84)","v":""},{"$f":"IF('1. Order'!BF84=\"\",\"\",'1. Order'!BF84)","v":""},{"$f":"IF('1. Order'!BG84=\"\",\"\",'1. Order'!BG84)","v":""},{"$f":"IF('1. Order'!BH84=\"\",\"\",'1. Order'!BH84)","v":"ZWO"}]
[{"$f":"IF('1. Order'!F85=\"\",\"\",'1. Order'!F85)","v":{"$error":"#N/A"}},{"$f":"IF('1. Order'!G85=\"\",\"\",'1. Order'!G85)","v":""},{"$f":"IF('1. Order'!H85=\"\",\"\",'1. Order'!H85)","v":""},{"$f":"IF('1. Order'!I85=\"\",\"\",'1. Order'!I85)","v":""},{"$f":"IF('1. Order'!J85=\"\",\"\",'1. Order'!J85)","v":""},{"$f":"IF('1. Order'!K85=\"\",\"\",'1. Order'!K85)","v":""},{"$f":"IF('1. Order'!L85=\"\",\"\",'1. Order'!L85)","v":""},{"$f":"IF('1. Order'!M85=\"\",\"\",'1. Order'!M85)","v":""},{"$f":"IF('1. Order'!N85=\"\",\"\",'1. Order'!N85)","v":""},{"$f":"IF('1. Order'!O85=\"\",\"\",'1. Order'!O85)","v":{"$error":"#N/A"}},{"$f":"IF('1. Order'!P85=\"\",\"\",'1. Order'!P85)","v":{"$error":"#N/A"}},{"$f":"IF('1. Order'!Q85=\"\",\"\",'1. Order'!Q85)","v":""},{"$f":"IF('1. Order'!S85=\"\",\"\",'1. Order'!S85)","v":""},{"$f":"IF('1. Order'!T85=\"\",\"\",'1. Order'!T85)","v":""},{"$f":"IF('1. Order'!W85=\"\",\"\",'1. Order'!W85)","v":""},{"$f":"IF('1. Order'!X85=\"\",\"\",'1. Order'!X85)","v":""},{"$f":"IF('1. Order'!Y85=\"\",\"\",'1. Order'!Y85)","v":"EUR"},{"$f":"IF('1. Order'!Z85=\"\",\"\",'1. Order'!Z85)","v":""},{"$f":"IF('1. Order'!AA85=\"\",\"\",'1. Order'!AA85)","v":""},{"$f":"IF('1. Order'!AB85=\"\",\"\",'1. Order'!AB85)","v":""},null,{"$f":"IF('1. Order'!AT85=\"\",\"\",'1. Order'!AT85)","v":""},{"$f":"IF('1. Order'!AU85=\"\",\"\",'1. Order'!AU85)","v":""},null,null,null,null,null,null,null,{"$f":"IF('1. Order'!AY85=\"\",\"\",'1. Order'!AY85)","v":""},{"$f":"IF('1. Order'!AZ85=\"\",\"\",'1. Order'!AZ85)","v":""},{"$f":"IF('1. Order'!BA85=\"\",\"\",'1. Order'!BA85)","v":""},{"$f":"IF('1. Order'!BB85=\"\",\"\",'1. Order'!BB85)","v":""},{"$f":"IF('1. Order'!BD85=\"\",\"\",'1. Order'!BD85)","v":""},{"$f":"IF('1. Order'!BE85=\"\",\"\",'1. Order'!BE85)","v":""},{"$f":"IF('1. Order'!BF85=\"\",\"\",'1. Order'!BF85)","v":""},{"$f":"IF('1. Order'!BG85=\"\",\"\",'1. Order'!BG85)","v":""},{"$f":"IF('1. Order'!BH85=\"\",\"\",'1. Order'!BH85)","v":"ZWO"}]
[{"$f":"IF('1. Order'!F86=\"\",\"\",'1. Order'!F86)","v":{"$error":"#N/A"}},{"$f":"IF('1. Order'!G86=\"\",\"\",'1. Order'!G86)","v":""},{"$f":"IF('1. Order'!H86=\"\",\"\",'1. Order'!H86)","v":""},{"$f":"IF('1. Order'!I86=\"\",\"\",'1. Order'!I86)","v":""},{"$f":"IF('1. Order'!J86=\"\",\"\",'1. Order'!J86)","v":""},{"$f":"IF('1. Order'!K86=\"\",\"\",'1. Order'!K86)","v":""},{"$f":"IF('1. Order'!L86=\"\",\"\",'1. Order'!L86)","v":""},{"$f":"IF('1. Order'!M86=\"\",\"\",'1. Order'!M86)","v":""},{"$f":"IF('1. Order'!N86=\"\",\"\",'1. Order'!N86)","v":""},{"$f":"IF('1. Order'!O86=\"\",\"\",'1. Order'!O86)","v":{"$error":"#N/A"}},{"$f":"IF('1. Order'!P86=\"\",\"\",'1. Order'!P86)","v":{"$error":"#N/A"}},{"$f":"IF('1. Order'!Q86=\"\",\"\",'1. Order'!Q86)","v":""},{"$f":"IF('1. Order'!S86=\"\",\"\",'1. Order'!S86)","v":""},{"$f":"IF('1. Order'!T86=\"\",\"\",'1. Order'!T86)","v":""},{"$f":"IF('1. Order'!W86=\"\",\"\",'1. Order'!W86)","v":""},{"$f":"IF('1. Order'!X86=\"\",\"\",'1. Order'!X86)","v":""},{"$f":"IF('1. Order'!Y86=\"\",\"\",'1. Order'!Y86)","v":"EUR"},{"$f":"IF('1. Order'!Z86=\"\",\"\",'1. Order'!Z86)","v":""},{"$f":"IF('1. Order'!AA86=\"\",\"\",'1. Order'!AA86)","v":""},{"$f":"IF('1. Order'!AB86=\"\",\"\",'1. Order'!AB86)","v":""},null,{"$f":"IF('1. Order'!AT86=\"\",\"\",'1. Order'!AT86)","v":""},{"$f":"IF('1. Order'!AU86=\"\",\"\",'1. Order'!AU86)","v":""},null,null,null,null,null,null,null,{"$f":"IF('1. Order'!AY86=\"\",\"\",'1. Order'!AY86)","v":""},{"$f":"IF('1. Order'!AZ86=\"\",\"\",'1. Order'!AZ86)","v":""},{"$f":"IF('1. Order'!BA86=\"\",\"\",'1. Order'!BA86)","v":""},{"$f":"IF('1. Order'!BB86=\"\",\"\",'1. Order'!BB86)","v":""},{"$f":"IF('1. Order'!BD86=\"\",\"\",'1. Order'!BD86)","v":""},{"$f":"IF('1. Order'!BE86=\"\",\"\",'1. Order'!BE86)","v":""},{"$f":"IF('1. Order'!BF86=\"\",\"\",'1. Order'!BF86)","v":""},{"$f":"IF('1. Order'!BG86=\"\",\"\",'1. Order'!BG86)","v":""},{"$f":"IF('1. Order'!BH86=\"\",\"\",'1. Order'!BH86)","v":"ZWO"}]
[{"$f":"IF('1. Order'!F87=\"\",\"\",'1. Order'!F87)","v":{"$error":"#N/A"}},{"$f":"IF('1. Order'!G87=\"\",\"\",'1. Order'!G87)","v":""},{"$f":"IF('1. Order'!H87=\"\",\"\",'1. Order'!H87)","v":""},{"$f":"IF('1. Order'!I87=\"\",\"\",'1. Order'!I87)","v":""},{"$f":"IF('1. Order'!J87=\"\",\"\",'1. Order'!J87)","v":""},{"$f":"IF('1. Order'!K87=\"\",\"\",'1. Order'!K87)","v":""},{"$f":"IF('1. Order'!L87=\"\",\"\",'1. Order'!L87)","v":""},{"$f":"IF('1. Order'!M87=\"\",\"\",'1. Order'!M87)","v":""},{"$f":"IF('1. Order'!N87=\"\",\"\",'1. Order'!N87)","v":""},{"$f":"IF('1. Order'!O87=\"\",\"\",'1. Order'!O87)","v":{"$error":"#N/A"}},{"$f":"IF('1. Order'!P87=\"\",\"\",'1. Order'!P87)","v":{"$error":"#N/A"}},{"$f":"IF('1. Order'!Q87=\"\",\"\",'1. Order'!Q87)","v":""},{"$f":"IF('1. Order'!S87=\"\",\"\",'1. Order'!S87)","v":""},{"$f":"IF('1. Order'!T87=\"\",\"\",'1. Order'!T87)","v":""},{"$f":"IF('1. Order'!W87=\"\",\"\",'1. Order'!W87)","v":""},{"$f":"IF('1. Order'!X87=\"\",\"\",'1. Order'!X87)","v":""},{"$f":"IF('1. Order'!Y87=\"\",\"\",'1. Order'!Y87)","v":"EUR"},{"$f":"IF('1. Order'!Z87=\"\",\"\",'1. Order'!Z87)","v":""},{"$f":"IF('1. Order'!AA87=\"\",\"\",'1. Order'!AA87)","v":""},{"$f":"IF('1. Order'!AB87=\"\",\"\",'1. Order'!AB87)","v":""},null,{"$f":"IF('1. Order'!AT87=\"\",\"\",'1. Order'!AT87)","v":""},{"$f":"IF('1. Order'!AU87=\"\",\"\",'1. Order'!AU87)","v":""},null,null,null,null,null,null,null,{"$f":"IF('1. Order'!AY87=\"\",\"\",'1. Order'!AY87)","v":""},{"$f":"IF('1. Order'!AZ87=\"\",\"\",'1. Order'!AZ87)","v":""},{"$f":"IF('1. Order'!BA87=\"\",\"\",'1. Order'!BA87)","v":""},{"$f":"IF('1. Order'!BB87=\"\",\"\",'1. Order'!BB87)","v":""},{"$f":"IF('1. Order'!BD87=\"\",\"\",'1. Order'!BD87)","v":""},{"$f":"IF('1. Order'!BE87=\"\",\"\",'1. Order'!BE87)","v":""},{"$f":"IF('1. Order'!BF87=\"\",\"\",'1. Order'!BF87)","v":""},{"$f":"IF('1. Order'!BG87=\"\",\"\",'1. Order'!BG87)","v":""},{"$f":"IF('1. Order'!BH87=\"\",\"\",'1. Order'!BH87)","v":"ZWO"}]
[{"$f":"IF('1. Order'!F88=\"\",\"\",'1. Order'!F88)","v":{"$error":"#N/A"}},{"$f":"IF('1. Order'!G88=\"\",\"\",'1. Order'!G88)","v":""},{"$f":"IF('1. Order'!H88=\"\",\"\",'1. Order'!H88)","v":""},{"$f":"IF('1. Order'!I88=\"\",\"\",'1. Order'!I88)","v":""},{"$f":"IF('1. Order'!J88=\"\",\"\",'1. Order'!J88)","v":""},{"$f":"IF('1. Order'!K88=\"\",\"\",'1. Order'!K88)","v":""},{"$f":"IF('1. Order'!L88=\"\",\"\",'1. Order'!L88)","v":""},{"$f":"IF('1. Order'!M88=\"\",\"\",'1. Order'!M88)","v":""},{"$f":"IF('1. Order'!N88=\"\",\"\",'1. Order'!N88)","v":""},{"$f":"IF('1. Order'!O88=\"\",\"\",'1. Order'!O88)","v":{"$error":"#N/A"}},{"$f":"IF('1. Order'!P88=\"\",\"\",'1. Order'!P88)","v":{"$error":"#N/A"}},{"$f":"IF('1. Order'!Q88=\"\",\"\",'1. Order'!Q88)","v":""},{"$f":"IF('1. Order'!S88=\"\",\"\",'1. Order'!S88)","v":""},{"$f":"IF('1. Order'!T88=\"\",\"\",'1. Order'!T88)","v":""},{"$f":"IF('1. Order'!W88=\"\",\"\",'1. Order'!W88)","v":""},{"$f":"IF('1. Order'!X88=\"\",\"\",'1. Order'!X88)","v":""},{"$f":"IF('1. Order'!Y88=\"\",\"\",'1. Order'!Y88)","v":"EUR"},{"$f":"IF('1. Order'!Z88=\"\",\"\",'1. Order'!Z88)","v":""},{"$f":"IF('1. Order'!AA88=\"\",\"\",'1. Order'!AA88)","v":""},{"$f":"IF('1. Order'!AB88=\"\",\"\",'1. Order'!AB88)","v":""},null,{"$f":"IF('1. Order'!AT88=\"\",\"\",'1. Order'!AT88)","v":""},{"$f":"IF('1. Order'!AU88=\"\",\"\",'1. Order'!AU88)","v":""},null,null,null,null,null,null,null,{"$f":"IF('1. Order'!AY88=\"\",\"\",'1. Order'!AY88)","v":""},{"$f":"IF('1. Order'!AZ88=\"\",\"\",'1. Order'!AZ88)","v":""},{"$f":"IF('1. Order'!BA88=\"\",\"\",'1. Order'!BA88)","v":""},{"$f":"IF('1. Order'!BB88=\"\",\"\",'1. Order'!BB88)","v":""},{"$f":"IF('1. Order'!BD88=\"\",\"\",'1. Order'!BD88)","v":""},{"$f":"IF('1. Order'!BE88=\"\",\"\",'1. Order'!BE88)","v":""},{"$f":"IF('1. Order'!BF88=\"\",\"\",'1. Order'!BF88)","v":""},{"$f":"IF('1. Order'!BG88=\"\",\"\",'1. Order'!BG88)","v":""},{"$f":"IF('1. Order'!BH88=\"\",\"\",'1. Order'!BH88)","v":"ZWO"}]
[{"$f":"IF('1. Order'!F89=\"\",\"\",'1. Order'!F89)","v":{"$error":"#N/A"}},{"$f":"IF('1. Order'!G89=\"\",\"\",'1. Order'!G89)","v":""},{"$f":"IF('1. Order'!H89=\"\",\"\",'1. Order'!H89)","v":""},{"$f":"IF('1. Order'!I89=\"\",\"\",'1. Order'!I89)","v":""},{"$f":"IF('1. Order'!J89=\"\",\"\",'1. Order'!J89)","v":""},{"$f":"IF('1. Order'!K89=\"\",\"\",'1. Order'!K89)","v":""},{"$f":"IF('1. Order'!L89=\"\",\"\",'1. Order'!L89)","v":""},{"$f":"IF('1. Order'!M89=\"\",\"\",'1. Order'!M89)","v":""},{"$f":"IF('1. Order'!N89=\"\",\"\",'1. Order'!N89)","v":""},{"$f":"IF('1. Order'!O89=\"\",\"\",'1. Order'!O89)","v":{"$error":"#N/A"}},{"$f":"IF('1. Order'!P89=\"\",\"\",'1. Order'!P89)","v":{"$error":"#N/A"}},{"$f":"IF('1. Order'!Q89=\"\",\"\",'1. Order'!Q89)","v":""},{"$f":"IF('1. Order'!S89=\"\",\"\",'1. Order'!S89)","v":""},{"$f":"IF('1. Order'!T89=\"\",\"\",'1. Order'!T89)","v":""},{"$f":"IF('1. Order'!W89=\"\",\"\",'1. Order'!W89)","v":""},{"$f":"IF('1. Order'!X89=\"\",\"\",'1. Order'!X89)","v":""},{"$f":"IF('1. Order'!Y89=\"\",\"\",'1. Order'!Y89)","v":"EUR"},{"$f":"IF('1. Order'!Z89=\"\",\"\",'1. Order'!Z89)","v":""},{"$f":"IF('1. Order'!AA89=\"\",\"\",'1. Order'!AA89)","v":""},{"$f":"IF('1. Order'!AB89=\"\",\"\",'1. Order'!AB89)","v":""},null,{"$f":"IF('1. Order'!AT89=\"\",\"\",'1. Order'!AT89)","v":""},{"$f":"IF('1. Order'!AU89=\"\",\"\",'1. Order'!AU89)","v":""},null,null,null,null,null,null,null,{"$f":"IF('1. Order'!AY89=\"\",\"\",'1. Order'!AY89)","v":""},{"$f":"IF('1. Order'!AZ89=\"\",\"\",'1. Order'!AZ89)","v":""},{"$f":"IF('1. Order'!BA89=\"\",\"\",'1. Order'!BA89)","v":""},{"$f":"IF('1. Order'!BB89=\"\",\"\",'1. Order'!BB89)","v":""},{"$f":"IF('1. Order'!BD89=\"\",\"\",'1. Order'!BD89)","v":""},{"$f":"IF('1. Order'!BE89=\"\",\"\",'1. Order'!BE89)","v":""},{"$f":"IF('1. Order'!BF89=\"\",\"\",'1. Order'!BF89)","v":""},{"$f":"IF('1. Order'!BG89=\"\",\"\",'1. Order'!BG89)","v":""},{"$f":"IF('1. Order'!BH89=\"\",\"\",'1. Order'!BH89)","v":"ZWO"}]
[{"$f":"IF('1. Order'!F90=\"\",\"\",'1. Order'!F90)","v":{"$error":"#N/A"}},{"$f":"IF('1. Order'!G90=\"\",\"\",'1. Order'!G90)","v":""},{"$f":"IF('1. Order'!H90=\"\",\"\",'1. Order'!H90)","v":""},{"$f":"IF('1. Order'!I90=\"\",\"\",'1. Order'!I90)","v":""},{"$f":"IF('1. Order'!J90=\"\",\"\",'1. Order'!J90)","v":""},{"$f":"IF('1. Order'!K90=\"\",\"\",'1. Order'!K90)","v":""},{"$f":"IF('1. Order'!L90=\"\",\"\",'1. Order'!L90)","v":""},{"$f":"IF('1. Order'!M90=\"\",\"\",'1. Order'!M90)","v":""},{"$f":"IF('1. Order'!N90=\"\",\"\",'1. Order'!N90)","v":""},{"$f":"IF('1. Order'!O90=\"\",\"\",'1. Order'!O90)","v":{"$error":"#N/A"}},{"$f":"IF('1. Order'!P90=\"\",\"\",'1. Order'!P90)","v":{"$error":"#N/A"}},{"$f":"IF('1. Order'!Q90=\"\",\"\",'1. Order'!Q90)","v":""},{"$f":"IF('1. Order'!S90=\"\",\"\",'1. Order'!S90)","v":""},{"$f":"IF('1. Order'!T90=\"\",\"\",'1. Order'!T90)","v":""},{"$f":"IF('1. Order'!W90=\"\",\"\",'1. Order'!W90)","v":""},{"$f":"IF('1. Order'!X90=\"\",\"\",'1. Order'!X90)","v":""},{"$f":"IF('1. Order'!Y90=\"\",\"\",'1. Order'!Y90)","v":"EUR"},{"$f":"IF('1. Order'!Z90=\"\",\"\",'1. Order'!Z90)","v":""},{"$f":"IF('1. Order'!AA90=\"\",\"\",'1. Order'!AA90)","v":""},{"$f":"IF('1. Order'!AB90=\"\",\"\",'1. Order'!AB90)","v":""},null,{"$f":"IF('1. Order'!AT90=\"\",\"\",'1. Order'!AT90)","v":""},{"$f":"IF('1. Order'!AU90=\"\",\"\",'1. Order'!AU90)","v":""},null,null,null,null,null,null,null,{"$f":"IF('1. Order'!AY90=\"\",\"\",'1. Order'!AY90)","v":""},{"$f":"IF('1. Order'!AZ90=\"\",\"\",'1. Order'!AZ90)","v":""},{"$f":"IF('1. Order'!BA90=\"\",\"\",'1. Order'!BA90)","v":""},{"$f":"IF('1. Order'!BB90=\"\",\"\",'1. Order'!BB90)","v":""},{"$f":"IF('1. Order'!BD90=\"\",\"\",'1. Order'!BD90)","v":""},{"$f":"IF('1. Order'!BE90=\"\",\"\",'1. Order'!BE90)","v":""},{"$f":"IF('1. Order'!BF90=\"\",\"\",'1. Order'!BF90)","v":""},{"$f":"IF('1. Order'!BG90=\"\",\"\",'1. Order'!BG90)","v":""},{"$f":"IF('1. Order'!BH90=\"\",\"\",'1. Order'!BH90)","v":"ZWO"}]
[{"$f":"IF('1. Order'!F91=\"\",\"\",'1. Order'!F91)","v":{"$error":"#N/A"}},{"$f":"IF('1. Order'!G91=\"\",\"\",'1. Order'!G91)","v":""},{"$f":"IF('1. Order'!H91=\"\",\"\",'1. Order'!H91)","v":""},{"$f":"IF('1. Order'!I91=\"\",\"\",'1. Order'!I91)","v":""},{"$f":"IF('1. Order'!J91=\"\",\"\",'1. Order'!J91)","v":""},{"$f":"IF('1. Order'!K91=\"\",\"\",'1. Order'!K91)","v":""},{"$f":"IF('1. Order'!L91=\"\",\"\",'1. Order'!L91)","v":""},{"$f":"IF('1. Order'!M91=\"\",\"\",'1. Order'!M91)","v":""},{"$f":"IF('1. Order'!N91=\"\",\"\",'1. Order'!N91)","v":""},{"$f":"IF('1. Order'!O91=\"\",\"\",'1. Order'!O91)","v":{"$error":"#N/A"}},{"$f":"IF('1. Order'!P91=\"\",\"\",'1. Order'!P91)","v":{"$error":"#N/A"}},{"$f":"IF('1. Order'!Q91=\"\",\"\",'1. Order'!Q91)","v":""},{"$f":"IF('1. Order'!S91=\"\",\"\",'1. Order'!S91)","v":""},{"$f":"IF('1. Order'!T91=\"\",\"\",'1. Order'!T91)","v":""},{"$f":"IF('1. Order'!W91=\"\",\"\",'1. Order'!W91)","v":""},{"$f":"IF('1. Order'!X91=\"\",\"\",'1. Order'!X91)","v":""},{"$f":"IF('1. Order'!Y91=\"\",\"\",'1. Order'!Y91)","v":"EUR"},{"$f":"IF('1. Order'!Z91=\"\",\"\",'1. Order'!Z91)","v":""},{"$f":"IF('1. Order'!AA91=\"\",\"\",'1. Order'!AA91)","v":""},{"$f":"IF('1. Order'!AB91=\"\",\"\",'1. Order'!AB91)","v":""},null,{"$f":"IF('1. Order'!AT91=\"\",\"\",'1. Order'!AT91)","v":""},{"$f":"IF('1. Order'!AU91=\"\",\"\",'1. Order'!AU91)","v":""},null,null,null,null,null,null,null,{"$f":"IF('1. Order'!AY91=\"\",\"\",'1. Order'!AY91)","v":""},{"$f":"IF('1. Order'!AZ91=\"\",\"\",'1. Order'!AZ91)","v":""},{"$f":"IF('1. Order'!BA91=\"\",\"\",'1. Order'!BA91)","v":""},{"$f":"IF('1. Order'!BB91=\"\",\"\",'1. Order'!BB91)","v":""},{"$f":"IF('1. Order'!BD91=\"\",\"\",'1. Order'!BD91)","v":""},{"$f":"IF('1. Order'!BE91=\"\",\"\",'1. Order'!BE91)","v":""},{"$f":"IF('1. Order'!BF91=\"\",\"\",'1. Order'!BF91)","v":""},{"$f":"IF('1. Order'!BG91=\"\",\"\",'1. Order'!BG91)","v":""},{"$f":"IF('1. Order'!BH91=\"\",\"\",'1. Order'!BH91)","v":"ZWO"}]
[{"$f":"IF('1. Order'!F92=\"\",\"\",'1. Order'!F92)","v":{"$error":"#N/A"}},{"$f":"IF('1. Order'!G92=\"\",\"\",'1. Order'!G92)","v":""},{"$f":"IF('1. Order'!H92=\"\",\"\",'1. Order'!H92)","v":""},{"$f":"IF('1. Order'!I92=\"\",\"\",'1. Order'!I92)","v":""},{"$f":"IF('1. Order'!J92=\"\",\"\",'1. Order'!J92)","v":""},{"$f":"IF('1. Order'!K92=\"\",\"\",'1. Order'!K92)","v":""},{"$f":"IF('1. Order'!L92=\"\",\"\",'1. Order'!L92)","v":""},{"$f":"IF('1. Order'!M92=\"\",\"\",'1. Order'!M92)","v":""},{"$f":"IF('1. Order'!N92=\"\",\"\",'1. Order'!N92)","v":""},{"$f":"IF('1. Order'!O92=\"\",\"\",'1. Order'!O92)","v":{"$error":"#N/A"}},{"$f":"IF('1. Order'!P92=\"\",\"\",'1. Order'!P92)","v":{"$error":"#N/A"}},{"$f":"IF('1. Order'!Q92=\"\",\"\",'1. Order'!Q92)","v":""},{"$f":"IF('1. Order'!S92=\"\",\"\",'1. Order'!S92)","v":""},{"$f":"IF('1. Order'!T92=\"\",\"\",'1. Order'!T92)","v":""},{"$f":"IF('1. Order'!W92=\"\",\"\",'1. Order'!W92)","v":""},{"$f":"IF('1. Order'!X92=\"\",\"\",'1. Order'!X92)","v":""},{"$f":"IF('1. Order'!Y92=\"\",\"\",'1. Order'!Y92)","v":"EUR"},{"$f":"IF('1. Order'!Z92=\"\",\"\",'1. Order'!Z92)","v":""},{"$f":"IF('1. Order'!AA92=\"\",\"\",'1. Order'!AA92)","v":""},{"$f":"IF('1. Order'!AB92=\"\",\"\",'1. Order'!AB92)","v":""},null,{"$f":"IF('1. Order'!AT92=\"\",\"\",'1. Order'!AT92)","v":""},{"$f":"IF('1. Order'!AU92=\"\",\"\",'1. Order'!AU92)","v":""},null,null,null,null,null,null,null,{"$f":"IF('1. Order'!AY92=\"\",\"\",'1. Order'!AY92)","v":""},{"$f":"IF('1. Order'!AZ92=\"\",\"\",'1. Order'!AZ92)","v":""},{"$f":"IF('1. Order'!BA92=\"\",\"\",'1. Order'!BA92)","v":""},{"$f":"IF('1. Order'!BB92=\"\",\"\",'1. Order'!BB92)","v":""},{"$f":"IF('1. Order'!BD92=\"\",\"\",'1. Order'!BD92)","v":""},{"$f":"IF('1. Order'!BE92=\"\",\"\",'1. Order'!BE92)","v":""},{"$f":"IF('1. Order'!BF92=\"\",\"\",'1. Order'!BF92)","v":""},{"$f":"IF('1. Order'!BG92=\"\",\"\",'1. Order'!BG92)","v":""},{"$f":"IF('1. Order'!BH92=\"\",\"\",'1. Order'!BH92)","v":"ZWO"}]
[{"$f":"IF('1. Order'!F93=\"\",\"\",'1. Order'!F93)","v":{"$error":"#N/A"}},{"$f":"IF('1. Order'!G93=\"\",\"\",'1. Order'!G93)","v":""},{"$f":"IF('1. Order'!H93=\"\",\"\",'1. Order'!H93)","v":""},{"$f":"IF('1. Order'!I93=\"\",\"\",'1. Order'!I93)","v":""},{"$f":"IF('1. Order'!J93=\"\",\"\",'1. Order'!J93)","v":""},{"$f":"IF('1. Order'!K93=\"\",\"\",'1. Order'!K93)","v":""},{"$f":"IF('1. Order'!L93=\"\",\"\",'1. Order'!L93)","v":""},{"$f":"IF('1. Order'!M93=\"\",\"\",'1. Order'!M93)","v":""},{"$f":"IF('1. Order'!N93=\"\",\"\",'1. Order'!N93)","v":""},{"$f":"IF('1. Order'!O93=\"\",\"\",'1. Order'!O93)","v":{"$error":"#N/A"}},{"$f":"IF('1. Order'!P93=\"\",\"\",'1. Order'!P93)","v":{"$error":"#N/A"}},{"$f":"IF('1. Order'!Q93=\"\",\"\",'1. Order'!Q93)","v":""},{"$f":"IF('1. Order'!S93=\"\",\"\",'1. Order'!S93)","v":""},{"$f":"IF('1. Order'!T93=\"\",\"\",'1. Order'!T93)","v":""},{"$f":"IF('1. Order'!W93=\"\",\"\",'1. Order'!W93)","v":""},{"$f":"IF('1. Order'!X93=\"\",\"\",'1. Order'!X93)","v":""},{"$f":"IF('1. Order'!Y93=\"\",\"\",'1. Order'!Y93)","v":"EUR"},{"$f":"IF('1. Order'!Z93=\"\",\"\",'1. Order'!Z93)","v":""},{"$f":"IF('1. Order'!AA93=\"\",\"\",'1. Order'!AA93)","v":""},{"$f":"IF('1. Order'!AB93=\"\",\"\",'1. Order'!AB93)","v":""},null,{"$f":"IF('1. Order'!AT93=\"\",\"\",'1. Order'!AT93)","v":""},{"$f":"IF('1. Order'!AU93=\"\",\"\",'1. Order'!AU93)","v":""},null,null,null,null,null,null,null,{"$f":"IF('1. Order'!AY93=\"\",\"\",'1. Order'!AY93)","v":""},{"$f":"IF('1. Order'!AZ93=\"\",\"\",'1. Order'!AZ93)","v":""},{"$f":"IF('1. Order'!BA93=\"\",\"\",'1. Order'!BA93)","v":""},{"$f":"IF('1. Order'!BB93=\"\",\"\",'1. Order'!BB93)","v":""},{"$f":"IF('1. Order'!BD93=\"\",\"\",'1. Order'!BD93)","v":""},{"$f":"IF('1. Order'!BE93=\"\",\"\",'1. Order'!BE93)","v":""},{"$f":"IF('1. Order'!BF93=\"\",\"\",'1. Order'!BF93)","v":""},{"$f":"IF('1. Order'!BG93=\"\",\"\",'1. Order'!BG93)","v":""},{"$f":"IF('1. Order'!BH93=\"\",\"\",'1. Order'!BH93)","v":"ZWO"}]
[{"$f":"IF('1. Order'!F94=\"\",\"\",'1. Order'!F94)","v":{"$error":"#N/A"}},{"$f":"IF('1. Order'!G94=\"\",\"\",'1. Order'!G94)","v":""},{"$f":"IF('1. Order'!H94=\"\",\"\",'1. Order'!H94)","v":""},{"$f":"IF('1. Order'!I94=\"\",\"\",'1. Order'!I94)","v":""},{"$f":"IF('1. Order'!J94=\"\",\"\",'1. Order'!J94)","v":""},{"$f":"IF('1. Order'!K94=\"\",\"\",'1. Order'!K94)","v":""},{"$f":"IF('1. Order'!L94=\"\",\"\",'1. Order'!L94)","v":""},{"$f":"IF('1. Order'!M94=\"\",\"\",'1. Order'!M94)","v":""},{"$f":"IF('1. Order'!N94=\"\",\"\",'1. Order'!N94)","v":""},{"$f":"IF('1. Order'!O94=\"\",\"\",'1. Order'!O94)","v":{"$error":"#N/A"}},{"$f":"IF('1. Order'!P94=\"\",\"\",'1. Order'!P94)","v":{"$error":"#N/A"}},{"$f":"IF('1. Order'!Q94=\"\",\"\",'1. Order'!Q94)","v":""},{"$f":"IF('1. Order'!S94=\"\",\"\",'1. Order'!S94)","v":""},{"$f":"IF('1. Order'!T94=\"\",\"\",'1. Order'!T94)","v":""},{"$f":"IF('1. Order'!W94=\"\",\"\",'1. Order'!W94)","v":""},{"$f":"IF('1. Order'!X94=\"\",\"\",'1. Order'!X94)","v":""},{"$f":"IF('1. Order'!Y94=\"\",\"\",'1. Order'!Y94)","v":"EUR"},{"$f":"IF('1. Order'!Z94=\"\",\"\",'1. Order'!Z94)","v":""},{"$f":"IF('1. Order'!AA94=\"\",\"\",'1. Order'!AA94)","v":""},{"$f":"IF('1. Order'!AB94=\"\",\"\",'1. Order'!AB94)","v":""},null,{"$f":"IF('1. Order'!AT94=\"\",\"\",'1. Order'!AT94)","v":""},{"$f":"IF('1. Order'!AU94=\"\",\"\",'1. Order'!AU94)","v":""},null,null,null,null,null,null,null,{"$f":"IF('1. Order'!AY94=\"\",\"\",'1. Order'!AY94)","v":""},{"$f":"IF('1. Order'!AZ94=\"\",\"\",'1. Order'!AZ94)","v":""},{"$f":"IF('1. Order'!BA94=\"\",\"\",'1. Order'!BA94)","v":""},{"$f":"IF('1. Order'!BB94=\"\",\"\",'1. Order'!BB94)","v":""},{"$f":"IF('1. Order'!BD94=\"\",\"\",'1. Order'!BD94)","v":""},{"$f":"IF('1. Order'!BE94=\"\",\"\",'1. Order'!BE94)","v":""},{"$f":"IF('1. Order'!BF94=\"\",\"\",'1. Order'!BF94)","v":""},{"$f":"IF('1. Order'!BG94=\"\",\"\",'1. Order'!BG94)","v":""},{"$f":"IF('1. Order'!BH94=\"\",\"\",'1. Order'!BH94)","v":"ZWO"}]
[{"$f":"IF('1. Order'!F95=\"\",\"\",'1. Order'!F95)","v":{"$error":"#N/A"}},{"$f":"IF('1. Order'!G95=\"\",\"\",'1. Order'!G95)","v":""},{"$f":"IF('1. Order'!H95=\"\",\"\",'1. Order'!H95)","v":""},{"$f":"IF('1. Order'!I95=\"\",\"\",'1. Order'!I95)","v":""},{"$f":"IF('1. Order'!J95=\"\",\"\",'1. Order'!J95)","v":""},{"$f":"IF('1. Order'!K95=\"\",\"\",'1. Order'!K95)","v":""},{"$f":"IF('1. Order'!L95=\"\",\"\",'1. Order'!L95)","v":""},{"$f":"IF('1. Order'!M95=\"\",\"\",'1. Order'!M95)","v":""},{"$f":"IF('1. Order'!N95=\"\",\"\",'1. Order'!N95)","v":""},{"$f":"IF('1. Order'!O95=\"\",\"\",'1. Order'!O95)","v":{"$error":"#N/A"}},{"$f":"IF('1. Order'!P95=\"\",\"\",'1. Order'!P95)","v":{"$error":"#N/A"}},{"$f":"IF('1. Order'!Q95=\"\",\"\",'1. Order'!Q95)","v":""},{"$f":"IF('1. Order'!S95=\"\",\"\",'1. Order'!S95)","v":""},{"$f":"IF('1. Order'!T95=\"\",\"\",'1. Order'!T95)","v":""},{"$f":"IF('1. Order'!W95=\"\",\"\",'1. Order'!W95)","v":""},{"$f":"IF('1. Order'!X95=\"\",\"\",'1. Order'!X95)","v":""},{"$f":"IF('1. Order'!Y95=\"\",\"\",'1. Order'!Y95)","v":"EUR"},{"$f":"IF('1. Order'!Z95=\"\",\"\",'1. Order'!Z95)","v":""},{"$f":"IF('1. Order'!AA95=\"\",\"\",'1. Order'!AA95)","v":""},{"$f":"IF('1. Order'!AB95=\"\",\"\",'1. Order'!AB95)","v":""},null,{"$f":"IF('1. Order'!AT95=\"\",\"\",'1. Order'!AT95)","v":""},{"$f":"IF('1. Order'!AU95=\"\",\"\",'1. Order'!AU95)","v":""},null,null,null,null,null,null,null,{"$f":"IF('1. Order'!AY95=\"\",\"\",'1. Order'!AY95)","v":""},{"$f":"IF('1. Order'!AZ95=\"\",\"\",'1. Order'!AZ95)","v":""},{"$f":"IF('1. Order'!BA95=\"\",\"\",'1. Order'!BA95)","v":""},{"$f":"IF('1. Order'!BB95=\"\",\"\",'1. Order'!BB95)","v":""},{"$f":"IF('1. Order'!BD95=\"\",\"\",'1. Order'!BD95)","v":""},{"$f":"IF('1. Order'!BE95=\"\",\"\",'1. Order'!BE95)","v":""},{"$f":"IF('1. Order'!BF95=\"\",\"\",'1. Order'!BF95)","v":""},{"$f":"IF('1. Order'!BG95=\"\",\"\",'1. Order'!BG95)","v":""},{"$f":"IF('1. Order'!BH95=\"\",\"\",'1. Order'!BH95)","v":"ZWO"}]
[{"$f":"IF('1. Order'!F96=\"\",\"\",'1. Order'!F96)","v":{"$error":"#N/A"}},{"$f":"IF('1. Order'!G96=\"\",\"\",'1. Order'!G96)","v":""},{"$f":"IF('1. Order'!H96=\"\",\"\",'1. Order'!H96)","v":""},{"$f":"IF('1. Order'!I96=\"\",\"\",'1. Order'!I96)","v":""},{"$f":"IF('1. Order'!J96=\"\",\"\",'1. Order'!J96)","v":""},{"$f":"IF('1. Order'!K96=\"\",\"\",'1. Order'!K96)","v":""},{"$f":"IF('1. Order'!L96=\"\",\"\",'1. Order'!L96)","v":""},{"$f":"IF('1. Order'!M96=\"\",\"\",'1. Order'!M96)","v":""},{"$f":"IF('1. Order'!N96=\"\",\"\",'1. Order'!N96)","v":""},{"$f":"IF('1. Order'!O96=\"\",\"\",'1. Order'!O96)","v":{"$error":"#N/A"}},{"$f":"IF('1. Order'!P96=\"\",\"\",'1. Order'!P96)","v":{"$error":"#N/A"}},{"$f":"IF('1. Order'!Q96=\"\",\"\",'1. Order'!Q96)","v":""},{"$f":"IF('1. Order'!S96=\"\",\"\",'1. Order'!S96)","v":""},{"$f":"IF('1. Order'!T96=\"\",\"\",'1. Order'!T96)","v":""},{"$f":"IF('1. Order'!W96=\"\",\"\",'1. Order'!W96)","v":""},{"$f":"IF('1. Order'!X96=\"\",\"\",'1. Order'!X96)","v":""},{"$f":"IF('1. Order'!Y96=\"\",\"\",'1. Order'!Y96)","v":"EUR"},{"$f":"IF('1. Order'!Z96=\"\",\"\",'1. Order'!Z96)","v":""},{"$f":"IF('1. Order'!AA96=\"\",\"\",'1. Order'!AA96)","v":""},{"$f":"IF('1. Order'!AB96=\"\",\"\",'1. Order'!AB96)","v":""},null,{"$f":"IF('1. Order'!AT96=\"\",\"\",'1. Order'!AT96)","v":""},{"$f":"IF('1. Order'!AU96=\"\",\"\",'1. Order'!AU96)","v":""},null,null,null,null,null,null,null,{"$f":"IF('1. Order'!AY96=\"\",\"\",'1. Order'!AY96)","v":""},{"$f":"IF('1. Order'!AZ96=\"\",\"\",'1. Order'!AZ96)","v":""},{"$f":"IF('1. Order'!BA96=\"\",\"\",'1. Order'!BA96)","v":""},{"$f":"IF('1. Order'!BB96=\"\",\"\",'1. Order'!BB96)","v":""},{"$f":"IF('1. Order'!BD96=\"\",\"\",'1. Order'!BD96)","v":""},{"$f":"IF('1. Order'!BE96=\"\",\"\",'1. Order'!BE96)","v":""},{"$f":"IF('1. Order'!BF96=\"\",\"\",'1. Order'!BF96)","v":""},{"$f":"IF('1. Order'!BG96=\"\",\"\",'1. Order'!BG96)","v":""},{"$f":"IF('1. Order'!BH96=\"\",\"\",'1. Order'!BH96)","v":"ZWO"}]
[{"$f":"IF('1. Order'!F97=\"\",\"\",'1. Order'!F97)","v":{"$error":"#N/A"}},{"$f":"IF('1. Order'!G97=\"\",\"\",'1. Order'!G97)","v":""},{"$f":"IF('1. Order'!H97=\"\",\"\",'1. Order'!H97)","v":""},{"$f":"IF('1. Order'!I97=\"\",\"\",'1. Order'!I97)","v":""},{"$f":"IF('1. Order'!J97=\"\",\"\",'1. Order'!J97)","v":""},{"$f":"IF('1. Order'!K97=\"\",\"\",'1. Order'!K97)","v":""},{"$f":"IF('1. Order'!L97=\"\",\"\",'1. Order'!L97)","v":""},{"$f":"IF('1. Order'!M97=\"\",\"\",'1. Order'!M97)","v":""},{"$f":"IF('1. Order'!N97=\"\",\"\",'1. Order'!N97)","v":""},{"$f":"IF('1. Order'!O97=\"\",\"\",'1. Order'!O97)","v":{"$error":"#N/A"}},{"$f":"IF('1. Order'!P97=\"\",\"\",'1. Order'!P97)","v":{"$error":"#N/A"}},{"$f":"IF('1. Order'!Q97=\"\",\"\",'1. Order'!Q97)","v":""},{"$f":"IF('1. Order'!S97=\"\",\"\",'1. Order'!S97)","v":""},{"$f":"IF('1. Order'!T97=\"\",\"\",'1. Order'!T97)","v":""},{"$f":"IF('1. Order'!W97=\"\",\"\",'1. Order'!W97)","v":""},{"$f":"IF('1. Order'!X97=\"\",\"\",'1. Order'!X97)","v":""},{"$f":"IF('1. Order'!Y97=\"\",\"\",'1. Order'!Y97)","v":"EUR"},{"$f":"IF('1. Order'!Z97=\"\",\"\",'1. Order'!Z97)","v":""},{"$f":"IF('1. Order'!AA97=\"\",\"\",'1. Order'!AA97)","v":""},{"$f":"IF('1. Order'!AB97=\"\",\"\",'1. Order'!AB97)","v":""},null,{"$f":"IF('1. Order'!AT97=\"\",\"\",'1. Order'!AT97)","v":""},{"$f":"IF('1. Order'!AU97=\"\",\"\",'1. Order'!AU97)","v":""},null,null,null,null,null,null,null,{"$f":"IF('1. Order'!AY97=\"\",\"\",'1. Order'!AY97)","v":""},{"$f":"IF('1. Order'!AZ97=\"\",\"\",'1. Order'!AZ97)","v":""},{"$f":"IF('1. Order'!BA97=\"\",\"\",'1. Order'!BA97)","v":""},{"$f":"IF('1. Order'!BB97=\"\",\"\",'1. Order'!BB97)","v":""},{"$f":"IF('1. Order'!BD97=\"\",\"\",'1. Order'!BD97)","v":""},{"$f":"IF('1. Order'!BE97=\"\",\"\",'1. Order'!BE97)","v":""},{"$f":"IF('1. Order'!BF97=\"\",\"\",'1. Order'!BF97)","v":""},{"$f":"IF('1. Order'!BG97=\"\",\"\",'1. Order'!BG97)","v":""},{"$f":"IF('1. Order'!BH97=\"\",\"\",'1. Order'!BH97)","v":"ZWO"}]
[{"$f":"IF('1. Order'!F98=\"\",\"\",'1. Order'!F98)","v":{"$error":"#N/A"}},{"$f":"IF('1. Order'!G98=\"\",\"\",'1. Order'!G98)","v":""},{"$f":"IF('1. Order'!H98=\"\",\"\",'1. Order'!H98)","v":""},{"$f":"IF('1. Order'!I98=\"\",\"\",'1. Order'!I98)","v":""},{"$f":"IF('1. Order'!J98=\"\",\"\",'1. Order'!J98)","v":""},{"$f":"IF('1. Order'!K98=\"\",\"\",'1. Order'!K98)","v":""},{"$f":"IF('1. Order'!L98=\"\",\"\",'1. Order'!L98)","v":""},{"$f":"IF('1. Order'!M98=\"\",\"\",'1. Order'!M98)","v":""},{"$f":"IF('1. Order'!N98=\"\",\"\",'1. Order'!N98)","v":""},{"$f":"IF('1. Order'!O98=\"\",\"\",'1. Order'!O98)","v":{"$error":"#N/A"}},{"$f":"IF('1. Order'!P98=\"\",\"\",'1. Order'!P98)","v":{"$error":"#N/A"}},{"$f":"IF('1. Order'!Q98=\"\",\"\",'1. Order'!Q98)","v":""},{"$f":"IF('1. Order'!S98=\"\",\"\",'1. Order'!S98)","v":""},{"$f":"IF('1. Order'!T98=\"\",\"\",'1. Order'!T98)","v":""},{"$f":"IF('1. Order'!W98=\"\",\"\",'1. Order'!W98)","v":""},{"$f":"IF('1. Order'!X98=\"\",\"\",'1. Order'!X98)","v":""},{"$f":"IF('1. Order'!Y98=\"\",\"\",'1. Order'!Y98)","v":"EUR"},{"$f":"IF('1. Order'!Z98=\"\",\"\",'1. Order'!Z98)","v":""},{"$f":"IF('1. Order'!AA98=\"\",\"\",'1. Order'!AA98)","v":""},{"$f":"IF('1. Order'!AB98=\"\",\"\",'1. Order'!AB98)","v":""},null,{"$f":"IF('1. Order'!AT98=\"\",\"\",'1. Order'!AT98)","v":""},{"$f":"IF('1. Order'!AU98=\"\",\"\",'1. Order'!AU98)","v":""},null,null,null,null,null,null,null,{"$f":"IF('1. Order'!AY98=\"\",\"\",'1. Order'!AY98)","v":""},{"$f":"IF('1. Order'!AZ98=\"\",\"\",'1. Order'!AZ98)","v":""},{"$f":"IF('1. Order'!BA98=\"\",\"\",'1. Order'!BA98)","v":""},{"$f":"IF('1. Order'!BB98=\"\",\"\",'1. Order'!BB98)","v":""},{"$f":"IF('1. Order'!BD98=\"\",\"\",'1. Order'!BD98)","v":""},{"$f":"IF('1. Order'!BE98=\"\",\"\",'1. Order'!BE98)","v":""},{"$f":"IF('1. Order'!BF98=\"\",\"\",'1. Order'!BF98)","v":""},{"$f":"IF('1. Order'!BG98=\"\",\"\",'1. Order'!BG98)","v":""},{"$f":"IF('1. Order'!BH98=\"\",\"\",'1. Order'!BH98)","v":"ZWO"}]
[{"$f":"IF('1. Order'!F99=\"\",\"\",'1. Order'!F99)","v":{"$error":"#N/A"}},{"$f":"IF('1. Order'!G99=\"\",\"\",'1. Order'!G99)","v":""},{"$f":"IF('1. Order'!H99=\"\",\"\",'1. Order'!H99)","v":""},{"$f":"IF('1. Order'!I99=\"\",\"\",'1. Order'!I99)","v":""},{"$f":"IF('1. Order'!J99=\"\",\"\",'1. Order'!J99)","v":""},{"$f":"IF('1. Order'!K99=\"\",\"\",'1. Order'!K99)","v":""},{"$f":"IF('1. Order'!L99=\"\",\"\",'1. Order'!L99)","v":""},{"$f":"IF('1. Order'!M99=\"\",\"\",'1. Order'!M99)","v":""},{"$f":"IF('1. Order'!N99=\"\",\"\",'1. Order'!N99)","v":""},{"$f":"IF('1. Order'!O99=\"\",\"\",'1. Order'!O99)","v":{"$error":"#N/A"}},{"$f":"IF('1. Order'!P99=\"\",\"\",'1. Order'!P99)","v":{"$error":"#N/A"}},{"$f":"IF('1. Order'!Q99=\"\",\"\",'1. Order'!Q99)","v":""},{"$f":"IF('1. Order'!S99=\"\",\"\",'1. Order'!S99)","v":""},{"$f":"IF('1. Order'!T99=\"\",\"\",'1. Order'!T99)","v":""},{"$f":"IF('1. Order'!W99=\"\",\"\",'1. Order'!W99)","v":""},{"$f":"IF('1. Order'!X99=\"\",\"\",'1. Order'!X99)","v":""},{"$f":"IF('1. Order'!Y99=\"\",\"\",'1. Order'!Y99)","v":"EUR"},{"$f":"IF('1. Order'!Z99=\"\",\"\",'1. Order'!Z99)","v":""},{"$f":"IF('1. Order'!AA99=\"\",\"\",'1. Order'!AA99)","v":""},{"$f":"IF('1. Order'!AB99=\"\",\"\",'1. Order'!AB99)","v":""},null,{"$f":"IF('1. Order'!AT99=\"\",\"\",'1. Order'!AT99)","v":""},{"$f":"IF('1. Order'!AU99=\"\",\"\",'1. Order'!AU99)","v":""},null,null,null,null,null,null,null,{"$f":"IF('1. Order'!AY99=\"\",\"\",'1. Order'!AY99)","v":""},{"$f":"IF('1. Order'!AZ99=\"\",\"\",'1. Order'!AZ99)","v":""},{"$f":"IF('1. Order'!BA99=\"\",\"\",'1. Order'!BA99)","v":""},{"$f":"IF('1. Order'!BB99=\"\",\"\",'1. Order'!BB99)","v":""},{"$f":"IF('1. Order'!BD99=\"\",\"\",'1. Order'!BD99)","v":""},{"$f":"IF('1. Order'!BE99=\"\",\"\",'1. Order'!BE99)","v":""},{"$f":"IF('1. Order'!BF99=\"\",\"\",'1. Order'!BF99)","v":""},{"$f":"IF('1. Order'!BG99=\"\",\"\",'1. Order'!BG99)","v":""},{"$f":"IF('1. Order'!BH99=\"\",\"\",'1. Order'!BH99)","v":"ZWO"}]
[{"$f":"IF('1. Order'!F100=\"\",\"\",'1. Order'!F100)","v":{"$error":"#N/A"}},{"$f":"IF('1. Order'!G100=\"\",\"\",'1. Order'!G100)","v":""},{"$f":"IF('1. Order'!H100=\"\",\"\",'1. Order'!H100)","v":""},{"$f":"IF('1. Order'!I100=\"\",\"\",'1. Order'!I100)","v":""},{"$f":"IF('1. Order'!J100=\"\",\"\",'1. Order'!J100)","v":""},{"$f":"IF('1. Order'!K100=\"\",\"\",'1. Order'!K100)","v":""},{"$f":"IF('1. Order'!L100=\"\",\"\",'1. Order'!L100)","v":""},{"$f":"IF('1. Order'!M100=\"\",\"\",'1. Order'!M100)","v":""},{"$f":"IF('1. Order'!N100=\"\",\"\",'1. Order'!N100)","v":""},{"$f":"IF('1. Order'!O100=\"\",\"\",'1. Order'!O100)","v":{"$error":"#N/A"}},{"$f":"IF('1. Order'!P100=\"\",\"\",'1. Order'!P100)","v":{"$error":"#N/A"}},{"$f":"IF('1. Order'!Q100=\"\",\"\",'1. Order'!Q100)","v":""},{"$f":"IF('1. Order'!S100=\"\",\"\",'1. Order'!S100)","v":""},{"$f":"IF('1. Order'!T100=\"\",\"\",'1. Order'!T100)","v":""},{"$f":"IF('1. Order'!W100=\"\",\"\",'1. Order'!W100)","v":""},{"$f":"IF('1. Order'!X100=\"\",\"\",'1. Order'!X100)","v":""},{"$f":"IF('1. Order'!Y100=\"\",\"\",'1. Order'!Y100)","v":"EUR"},{"$f":"IF('1. Order'!Z100=\"\",\"\",'1. Order'!Z100)","v":""},{"$f":"IF('1. Order'!AA100=\"\",\"\",'1. Order'!AA100)","v":""},{"$f":"IF('1. Order'!AB100=\"\",\"\",'1. Order'!AB100)","v":""},null,{"$f":"IF('1. Order'!AT100=\"\",\"\",'1. Order'!AT100)","v":""},{"$f":"IF('1. Order'!AU100=\"\",\"\",'1. Order'!AU100)","v":""},null,null,null,null,null,null,null,{"$f":"IF('1. Order'!AY100=\"\",\"\",'1. Order'!AY100)","v":""},{"$f":"IF('1. Order'!AZ100=\"\",\"\",'1. Order'!AZ100)","v":""},{"$f":"IF('1. Order'!BA100=\"\",\"\",'1. Order'!BA100)","v":""},{"$f":"IF('1. Order'!BB100=\"\",\"\",'1. Order'!BB100)","v":""},{"$f":"IF('1. Order'!BD100=\"\",\"\",'1. Order'!BD100)","v":""},{"$f":"IF('1. Order'!BE100=\"\",\"\",'1. Order'!BE100)","v":""},{"$f":"IF('1. Order'!BF100=\"\",\"\",'1. Order'!BF100)","v":""},{"$f":"IF('1. Order'!BG100=\"\",\"\",'1. Order'!BG100)","v":""},{"$f":"IF('1. Order'!BH100=\"\",\"\",'1. Order'!BH100)","v":"ZWO"}]
[{"$f":"IF('1. Order'!F101=\"\",\"\",'1. Order'!F101)","v":{"$error":"#N/A"}},{"$f":"IF('1. Order'!G101=\"\",\"\",'1. Order'!G101)","v":""},{"$f":"IF('1. Order'!H101=\"\",\"\",'1. Order'!H101)","v":""},{"$f":"IF('1. Order'!I101=\"\",\"\",'1. Order'!I101)","v":""},{"$f":"IF('1. Order'!J101=\"\",\"\",'1. Order'!J101)","v":""},{"$f":"IF('1. Order'!K101=\"\",\"\",'1. Order'!K101)","v":""},{"$f":"IF('1. Order'!L101=\"\",\"\",'1. Order'!L101)","v":""},{"$f":"IF('1. Order'!M101=\"\",\"\",'1. Order'!M101)","v":""},{"$f":"IF('1. Order'!N101=\"\",\"\",'1. Order'!N101)","v":""},{"$f":"IF('1. Order'!O101=\"\",\"\",'1. Order'!O101)","v":{"$error":"#N/A"}},{"$f":"IF('1. Order'!P101=\"\",\"\",'1. Order'!P101)","v":{"$error":"#N/A"}},{"$f":"IF('1. Order'!Q101=\"\",\"\",'1. Order'!Q101)","v":""},{"$f":"IF('1. Order'!S101=\"\",\"\",'1. Order'!S101)","v":""},{"$f":"IF('1. Order'!T101=\"\",\"\",'1. Order'!T101)","v":""},{"$f":"IF('1. Order'!W101=\"\",\"\",'1. Order'!W101)","v":""},{"$f":"IF('1. Order'!X101=\"\",\"\",'1. Order'!X101)","v":""},{"$f":"IF('1. Order'!Y101=\"\",\"\",'1. Order'!Y101)","v":"EUR"},{"$f":"IF('1. Order'!Z101=\"\",\"\",'1. Order'!Z101)","v":""},{"$f":"IF('1. Order'!AA101=\"\",\"\",'1. Order'!AA101)","v":""},{"$f":"IF('1. Order'!AB101=\"\",\"\",'1. Order'!AB101)","v":""},null,{"$f":"IF('1. Order'!AT101=\"\",\"\",'1. Order'!AT101)","v":""},{"$f":"IF('1. Order'!AU101=\"\",\"\",'1. Order'!AU101)","v":""},null,null,null,null,null,null,null,{"$f":"IF('1. Order'!AY101=\"\",\"\",'1. Order'!AY101)","v":""},{"$f":"IF('1. Order'!AZ101=\"\",\"\",'1. Order'!AZ101)","v":""},{"$f":"IF('1. Order'!BA101=\"\",\"\",'1. Order'!BA101)","v":""},{"$f":"IF('1. Order'!BB101=\"\",\"\",'1. Order'!BB101)","v":""},{"$f":"IF('1. Order'!BD101=\"\",\"\",'1. Order'!BD101)","v":""},{"$f":"IF('1. Order'!BE101=\"\",\"\",'1. Order'!BE101)","v":""},{"$f":"IF('1. Order'!BF101=\"\",\"\",'1. Order'!BF101)","v":""},{"$f":"IF('1. Order'!BG101=\"\",\"\",'1. Order'!BG101)","v":""},{"$f":"IF('1. Order'!BH101=\"\",\"\",'1. Order'!BH101)","v":"ZWO"}]
[{"$f":"IF('1. Order'!F102=\"\",\"\",'1. Order'!F102)","v":{"$error":"#N/A"}},{"$f":"IF('1. Order'!G102=\"\",\"\",'1. Order'!G102)","v":""},{"$f":"IF('1. Order'!H102=\"\",\"\",'1. Order'!H102)","v":""},{"$f":"IF('1. Order'!I102=\"\",\"\",'1. Order'!I102)","v":""},{"$f":"IF('1. Order'!J102=\"\",\"\",'1. Order'!J102)","v":""},{"$f":"IF('1. Order'!K102=\"\",\"\",'1. Order'!K102)","v":""},{"$f":"IF('1. Order'!L102=\"\",\"\",'1. Order'!L102)","v":""},{"$f":"IF('1. Order'!M102=\"\",\"\",'1. Order'!M102)","v":""},{"$f":"IF('1. Order'!N102=\"\",\"\",'1. Order'!N102)","v":""},{"$f":"IF('1. Order'!O102=\"\",\"\",'1. Order'!O102)","v":{"$error":"#N/A"}},{"$f":"IF('1. Order'!P102=\"\",\"\",'1. Order'!P102)","v":{"$error":"#N/A"}},{"$f":"IF('1. Order'!Q102=\"\",\"\",'1. Order'!Q102)","v":""},{"$f":"IF('1. Order'!S102=\"\",\"\",'1. Order'!S102)","v":""},{"$f":"IF('1. Order'!T102=\"\",\"\",'1. Order'!T102)","v":""},{"$f":"IF('1. Order'!W102=\"\",\"\",'1. Order'!W102)","v":""},{"$f":"IF('1. Order'!X102=\"\",\"\",'1. Order'!X102)","v":""},{"$f":"IF('1. Order'!Y102=\"\",\"\",'1. Order'!Y102)","v":"EUR"},{"$f":"IF('1. Order'!Z102=\"\",\"\",'1. Order'!Z102)","v":""},{"$f":"IF('1. Order'!AA102=\"\",\"\",'1. Order'!AA102)","v":""},{"$f":"IF('1. Order'!AB102=\"\",\"\",'1. Order'!AB102)","v":""},null,{"$f":"IF('1. Order'!AT102=\"\",\"\",'1. Order'!AT102)","v":""},{"$f":"IF('1. Order'!AU102=\"\",\"\",'1. Order'!AU102)","v":""},null,null,null,null,null,null,null,{"$f":"IF('1. Order'!AY102=\"\",\"\",'1. Order'!AY102)","v":""},{"$f":"IF('1. Order'!AZ102=\"\",\"\",'1. Order'!AZ102)","v":""},{"$f":"IF('1. Order'!BA102=\"\",\"\",'1. Order'!BA102)","v":""},{"$f":"IF('1. Order'!BB102=\"\",\"\",'1. Order'!BB102)","v":""},{"$f":"IF('1. Order'!BD102=\"\",\"\",'1. Order'!BD102)","v":""},{"$f":"IF('1. Order'!BE102=\"\",\"\",'1. Order'!BE102)","v":""},{"$f":"IF('1. Order'!BF102=\"\",\"\",'1. Order'!BF102)","v":""},{"$f":"IF('1. Order'!BG102=\"\",\"\",'1. Order'!BG102)","v":""},{"$f":"IF('1. Order'!BH102=\"\",\"\",'1. Order'!BH102)","v":"ZWO"}]
[{"$f":"IF('1. Order'!F103=\"\",\"\",'1. Order'!F103)","v":{"$error":"#N/A"}},{"$f":"IF('1. Order'!G103=\"\",\"\",'1. Order'!G103)","v":""},{"$f":"IF('1. Order'!H103=\"\",\"\",'1. Order'!H103)","v":""},{"$f":"IF('1. Order'!I103=\"\",\"\",'1. Order'!I103)","v":""},{"$f":"IF('1. Order'!J103=\"\",\"\",'1. Order'!J103)","v":""},{"$f":"IF('1. Order'!K103=\"\",\"\",'1. Order'!K103)","v":""},{"$f":"IF('1. Order'!L103=\"\",\"\",'1. Order'!L103)","v":""},{"$f":"IF('1. Order'!M103=\"\",\"\",'1. Order'!M103)","v":""},{"$f":"IF('1. Order'!N103=\"\",\"\",'1. Order'!N103)","v":""},{"$f":"IF('1. Order'!O103=\"\",\"\",'1. Order'!O103)","v":{"$error":"#N/A"}},{"$f":"IF('1. Order'!P103=\"\",\"\",'1. Order'!P103)","v":{"$error":"#N/A"}},{"$f":"IF('1. Order'!Q103=\"\",\"\",'1. Order'!Q103)","v":""},{"$f":"IF('1. Order'!S103=\"\",\"\",'1. Order'!S103)","v":""},{"$f":"IF('1. Order'!T103=\"\",\"\",'1. Order'!T103)","v":""},{"$f":"IF('1. Order'!W103=\"\",\"\",'1. Order'!W103)","v":""},{"$f":"IF('1. Order'!X103=\"\",\"\",'1. Order'!X103)","v":""},{"$f":"IF('1. Order'!Y103=\"\",\"\",'1. Order'!Y103)","v":"EUR"},{"$f":"IF('1. Order'!Z103=\"\",\"\",'1. Order'!Z103)","v":""},{"$f":"IF('1. Order'!AA103=\"\",\"\",'1. Order'!AA103)","v":""},{"$f":"IF('1. Order'!AB103=\"\",\"\",'1. Order'!AB103)","v":""},null,{"$f":"IF('1. Order'!AT103=\"\",\"\",'1. Order'!AT103)","v":""},{"$f":"IF('1. Order'!AU103=\"\",\"\",'1. Order'!AU103)","v":""},null,null,null,null,null,null,null,{"$f":"IF('1. Order'!AY103=\"\",\"\",'1. Order'!AY103)","v":""},{"$f":"IF('1. Order'!AZ103=\"\",\"\",'1. Order'!AZ103)","v":""},{"$f":"IF('1. Order'!BA103=\"\",\"\",'1. Order'!BA103)","v":""},{"$f":"IF('1. Order'!BB103=\"\",\"\",'1. Order'!BB103)","v":""},{"$f":"IF('1. Order'!BD103=\"\",\"\",'1. Order'!BD103)","v":""},{"$f":"IF('1. Order'!BE103=\"\",\"\",'1. Order'!BE103)","v":""},{"$f":"IF('1. Order'!BF103=\"\",\"\",'1. Order'!BF103)","v":""},{"$f":"IF('1. Order'!BG103=\"\",\"\",'1. Order'!BG103)","v":""},{"$f":"IF('1. Order'!BH103=\"\",\"\",'1. Order'!BH103)","v":"ZWO"}]
[{"$f":"IF('1. Order'!F104=\"\",\"\",'1. Order'!F104)","v":{"$error":"#N/A"}},{"$f":"IF('1. Order'!G104=\"\",\"\",'1. Order'!G104)","v":""},{"$f":"IF('1. Order'!H104=\"\",\"\",'1. Order'!H104)","v":""},{"$f":"IF('1. Order'!I104=\"\",\"\",'1. Order'!I104)","v":""},{"$f":"IF('1. Order'!J104=\"\",\"\",'1. Order'!J104)","v":""},{"$f":"IF('1. Order'!K104=\"\",\"\",'1. Order'!K104)","v":""},{"$f":"IF('1. Order'!L104=\"\",\"\",'1. Order'!L104)","v":""},{"$f":"IF('1. Order'!M104=\"\",\"\",'1. Order'!M104)","v":""},{"$f":"IF('1. Order'!N104=\"\",\"\",'1. Order'!N104)","v":""},{"$f":"IF('1. Order'!O104=\"\",\"\",'1. Order'!O104)","v":{"$error":"#N/A"}},{"$f":"IF('1. Order'!P104=\"\",\"\",'1. Order'!P104)","v":{"$error":"#N/A"}},{"$f":"IF('1. Order'!Q104=\"\",\"\",'1. Order'!Q104)","v":""},{"$f":"IF('1. Order'!S104=\"\",\"\",'1. Order'!S104)","v":""},{"$f":"IF('1. Order'!T104=\"\",\"\",'1. Order'!T104)","v":""},{"$f":"IF('1. Order'!W104=\"\",\"\",'1. Order'!W104)","v":""},{"$f":"IF('1. Order'!X104=\"\",\"\",'1. Order'!X104)","v":""},{"$f":"IF('1. Order'!Y104=\"\",\"\",'1. Order'!Y104)","v":"EUR"},{"$f":"IF('1. Order'!Z104=\"\",\"\",'1. Order'!Z104)","v":""},{"$f":"IF('1. Order'!AA104=\"\",\"\",'1. Order'!AA104)","v":""},{"$f":"IF('1. Order'!AB104=\"\",\"\",'1. Order'!AB104)","v":""},null,{"$f":"IF('1. Order'!AT104=\"\",\"\",'1. Order'!AT104)","v":""},{"$f":"IF('1. Order'!AU104=\"\",\"\",'1. Order'!AU104)","v":""},null,null,null,null,null,null,null,{"$f":"IF('1. Order'!AY104=\"\",\"\",'1. Order'!AY104)","v":""},{"$f":"IF('1. Order'!AZ104=\"\",\"\",'1. Order'!AZ104)","v":""},{"$f":"IF('1. Order'!BA104=\"\",\"\",'1. Order'!BA104)","v":""},{"$f":"IF('1. Order'!BB104=\"\",\"\",'1. Order'!BB104)","v":""},{"$f":"IF('1. Order'!BD104=\"\",\"\",'1. Order'!BD104)","v":""},{"$f":"IF('1. Order'!BE104=\"\",\"\",'1. Order'!BE104)","v":""},{"$f":"IF('1. Order'!BF104=\"\",\"\",'1. Order'!BF104)","v":""},{"$f":"IF('1. Order'!BG104=\"\",\"\",'1. Order'!BG104)","v":""},{"$f":"IF('1. Order'!BH104=\"\",\"\",'1. Order'!BH104)","v":"ZWO"}]
[{"$f":"IF('1. Order'!F105=\"\",\"\",'1. Order'!F105)","v":{"$error":"#N/A"}},{"$f":"IF('1. Order'!G105=\"\",\"\",'1. Order'!G105)","v":""},{"$f":"IF('1. Order'!H105=\"\",\"\",'1. Order'!H105)","v":""},{"$f":"IF('1. Order'!I105=\"\",\"\",'1. Order'!I105)","v":""},{"$f":"IF('1. Order'!J105=\"\",\"\",'1. Order'!J105)","v":""},{"$f":"IF('1. Order'!K105=\"\",\"\",'1. Order'!K105)","v":""},{"$f":"IF('1. Order'!L105=\"\",\"\",'1. Order'!L105)","v":""},{"$f":"IF('1. Order'!M105=\"\",\"\",'1. Order'!M105)","v":""},{"$f":"IF('1. Order'!N105=\"\",\"\",'1. Order'!N105)","v":""},{"$f":"IF('1. Order'!O105=\"\",\"\",'1. Order'!O105)","v":{"$error":"#N/A"}},{"$f":"IF('1. Order'!P105=\"\",\"\",'1. Order'!P105)","v":{"$error":"#N/A"}},{"$f":"IF('1. Order'!Q105=\"\",\"\",'1. Order'!Q105)","v":""},{"$f":"IF('1. Order'!S105=\"\",\"\",'1. Order'!S105)","v":""},{"$f":"IF('1. Order'!T105=\"\",\"\",'1. Order'!T105)","v":""},{"$f":"IF('1. Order'!W105=\"\",\"\",'1. Order'!W105)","v":""},{"$f":"IF('1. Order'!X105=\"\",\"\",'1. Order'!X105)","v":""},{"$f":"IF('1. Order'!Y105=\"\",\"\",'1. Order'!Y105)","v":"EUR"},{"$f":"IF('1. Order'!Z105=\"\",\"\",'1. Order'!Z105)","v":""},{"$f":"IF('1. Order'!AA105=\"\",\"\",'1. Order'!AA105)","v":""},{"$f":"IF('1. Order'!AB105=\"\",\"\",'1. Order'!AB105)","v":""},null,{"$f":"IF('1. Order'!AT105=\"\",\"\",'1. Order'!AT105)","v":""},{"$f":"IF('1. Order'!AU105=\"\",\"\",'1. Order'!AU105)","v":""},null,null,null,null,null,null,null,{"$f":"IF('1. Order'!AY105=\"\",\"\",'1. Order'!AY105)","v":""},{"$f":"IF('1. Order'!AZ105=\"\",\"\",'1. Order'!AZ105)","v":""},{"$f":"IF('1. Order'!BA105=\"\",\"\",'1. Order'!BA105)","v":""},{"$f":"IF('1. Order'!BB105=\"\",\"\",'1. Order'!BB105)","v":""},{"$f":"IF('1. Order'!BD105=\"\",\"\",'1. Order'!BD105)","v":""},{"$f":"IF('1. Order'!BE105=\"\",\"\",'1. Order'!BE105)","v":""},{"$f":"IF('1. Order'!BF105=\"\",\"\",'1. Order'!BF105)","v":""},{"$f":"IF('1. Order'!BG105=\"\",\"\",'1. Order'!BG105)","v":""},{"$f":"IF('1. Order'!BH105=\"\",\"\",'1. Order'!BH105)","v":"ZWO"}]
[{"$f":"IF('1. Order'!F106=\"\",\"\",'1. Order'!F106)","v":{"$error":"#N/A"}},{"$f":"IF('1. Order'!G106=\"\",\"\",'1. Order'!G106)","v":""},{"$f":"IF('1. Order'!H106=\"\",\"\",'1. Order'!H106)","v":""},{"$f":"IF('1. Order'!I106=\"\",\"\",'1. Order'!I106)","v":""},{"$f":"IF('1. Order'!J106=\"\",\"\",'1. Order'!J106)","v":""},{"$f":"IF('1. Order'!K106=\"\",\"\",'1. Order'!K106)","v":""},{"$f":"IF('1. Order'!L106=\"\",\"\",'1. Order'!L106)","v":""},{"$f":"IF('1. Order'!M106=\"\",\"\",'1. Order'!M106)","v":""},{"$f":"IF('1. Order'!N106=\"\",\"\",'1. Order'!N106)","v":""},{"$f":"IF('1. Order'!O106=\"\",\"\",'1. Order'!O106)","v":{"$error":"#N/A"}},{"$f":"IF('1. Order'!P106=\"\",\"\",'1. Order'!P106)","v":{"$error":"#N/A"}},{"$f":"IF('1. Order'!Q106=\"\",\"\",'1. Order'!Q106)","v":""},{"$f":"IF('1. Order'!S106=\"\",\"\",'1. Order'!S106)","v":""},{"$f":"IF('1. Order'!T106=\"\",\"\",'1. Order'!T106)","v":""},{"$f":"IF('1. Order'!W106=\"\",\"\",'1. Order'!W106)","v":""},{"$f":"IF('1. Order'!X106=\"\",\"\",'1. Order'!X106)","v":""},{"$f":"IF('1. Order'!Y106=\"\",\"\",'1. Order'!Y106)","v":"EUR"},{"$f":"IF('1. Order'!Z106=\"\",\"\",'1. Order'!Z106)","v":""},{"$f":"IF('1. Order'!AA106=\"\",\"\",'1. Order'!AA106)","v":""},{"$f":"IF('1. Order'!AB106=\"\",\"\",'1. Order'!AB106)","v":""},null,{"$f":"IF('1. Order'!AT106=\"\",\"\",'1. Order'!AT106)","v":""},{"$f":"IF('1. Order'!AU106=\"\",\"\",'1. Order'!AU106)","v":""},null,null,null,null,null,null,null,{"$f":"IF('1. Order'!AY106=\"\",\"\",'1. Order'!AY106)","v":""},{"$f":"IF('1. Order'!AZ106=\"\",\"\",'1. Order'!AZ106)","v":""},{"$f":"IF('1. Order'!BA106=\"\",\"\",'1. Order'!BA106)","v":""},{"$f":"IF('1. Order'!BB106=\"\",\"\",'1. Order'!BB106)","v":""},{"$f":"IF('1. Order'!BD106=\"\",\"\",'1. Order'!BD106)","v":""},{"$f":"IF('1. Order'!BE106=\"\",\"\",'1. Order'!BE106)","v":""},{"$f":"IF('1. Order'!BF106=\"\",\"\",'1. Order'!BF106)","v":""},{"$f":"IF('1. Order'!BG106=\"\",\"\",'1. Order'!BG106)","v":""},{"$f":"IF('1. Order'!BH106=\"\",\"\",'1. Order'!BH106)","v":"ZWO"}]
[{"$f":"IF('1. Order'!F107=\"\",\"\",'1. Order'!F107)","v":{"$error":"#N/A"}},{"$f":"IF('1. Order'!G107=\"\",\"\",'1. Order'!G107)","v":""},{"$f":"IF('1. Order'!H107=\"\",\"\",'1. Order'!H107)","v":""},{"$f":"IF('1. Order'!I107=\"\",\"\",'1. Order'!I107)","v":""},{"$f":"IF('1. Order'!J107=\"\",\"\",'1. Order'!J107)","v":""},{"$f":"IF('1. Order'!K107=\"\",\"\",'1. Order'!K107)","v":""},{"$f":"IF('1. Order'!L107=\"\",\"\",'1. Order'!L107)","v":""},{"$f":"IF('1. Order'!M107=\"\",\"\",'1. Order'!M107)","v":""},{"$f":"IF('1. Order'!N107=\"\",\"\",'1. Order'!N107)","v":""},{"$f":"IF('1. Order'!O107=\"\",\"\",'1. Order'!O107)","v":{"$error":"#N/A"}},{"$f":"IF('1. Order'!P107=\"\",\"\",'1. Order'!P107)","v":{"$error":"#N/A"}},{"$f":"IF('1. Order'!Q107=\"\",\"\",'1. Order'!Q107)","v":""},{"$f":"IF('1. Order'!S107=\"\",\"\",'1. Order'!S107)","v":""},{"$f":"IF('1. Order'!T107=\"\",\"\",'1. Order'!T107)","v":""},{"$f":"IF('1. Order'!W107=\"\",\"\",'1. Order'!W107)","v":""},{"$f":"IF('1. Order'!X107=\"\",\"\",'1. Order'!X107)","v":""},{"$f":"IF('1. Order'!Y107=\"\",\"\",'1. Order'!Y107)","v":"EUR"},{"$f":"IF('1. Order'!Z107=\"\",\"\",'1. Order'!Z107)","v":""},{"$f":"IF('1. Order'!AA107=\"\",\"\",'1. Order'!AA107)","v":""},{"$f":"IF('1. Order'!AB107=\"\",\"\",'1. Order'!AB107)","v":""},null,{"$f":"IF('1. Order'!AT107=\"\",\"\",'1. Order'!AT107)","v":""},{"$f":"IF('1. Order'!AU107=\"\",\"\",'1. Order'!AU107)","v":""},null,null,null,null,null,null,null,{"$f":"IF('1. Order'!AY107=\"\",\"\",'1. Order'!AY107)","v":""},{"$f":"IF('1. Order'!AZ107=\"\",\"\",'1. Order'!AZ107)","v":""},{"$f":"IF('1. Order'!BA107=\"\",\"\",'1. Order'!BA107)","v":""},{"$f":"IF('1. Order'!BB107=\"\",\"\",'1. Order'!BB107)","v":""},{"$f":"IF('1. Order'!BD107=\"\",\"\",'1. Order'!BD107)","v":""},{"$f":"IF('1. Order'!BE107=\"\",\"\",'1. Order'!BE107)","v":""},{"$f":"IF('1. Order'!BF107=\"\",\"\",'1. Order'!BF107)","v":""},{"$f":"IF('1. Order'!BG107=\"\",\"\",'1. Order'!BG107)","v":""},{"$f":"IF('1. Order'!BH107=\"\",\"\",'1. Order'!BH107)","v":"ZWO"}]
[{"$f":"IF('1. Order'!F108=\"\",\"\",'1. Order'!F108)","v":{"$error":"#N/A"}},{"$f":"IF('1. Order'!G108=\"\",\"\",'1. Order'!G108)","v":""},{"$f":"IF('1. Order'!H108=\"\",\"\",'1. Order'!H108)","v":""},{"$f":"IF('1. Order'!I108=\"\",\"\",'1. Order'!I108)","v":""},{"$f":"IF('1. Order'!J108=\"\",\"\",'1. Order'!J108)","v":""},{"$f":"IF('1. Order'!K108=\"\",\"\",'1. Order'!K108)","v":""},{"$f":"IF('1. Order'!L108=\"\",\"\",'1. Order'!L108)","v":""},{"$f":"IF('1. Order'!M108=\"\",\"\",'1. Order'!M108)","v":""},{"$f":"IF('1. Order'!N108=\"\",\"\",'1. Order'!N108)","v":""},{"$f":"IF('1. Order'!O108=\"\",\"\",'1. Order'!O108)","v":{"$error":"#N/A"}},{"$f":"IF('1. Order'!P108=\"\",\"\",'1. Order'!P108)","v":{"$error":"#N/A"}},{"$f":"IF('1. Order'!Q108=\"\",\"\",'1. Order'!Q108)","v":""},{"$f":"IF('1. Order'!S108=\"\",\"\",'1. Order'!S108)","v":""},{"$f":"IF('1. Order'!T108=\"\",\"\",'1. Order'!T108)","v":""},{"$f":"IF('1. Order'!W108=\"\",\"\",'1. Order'!W108)","v":""},{"$f":"IF('1. Order'!X108=\"\",\"\",'1. Order'!X108)","v":""},{"$f":"IF('1. Order'!Y108=\"\",\"\",'1. Order'!Y108)","v":"EUR"},{"$f":"IF('1. Order'!Z108=\"\",\"\",'1. Order'!Z108)","v":""},{"$f":"IF('1. Order'!AA108=\"\",\"\",'1. Order'!AA108)","v":""},{"$f":"IF('1. Order'!AB108=\"\",\"\",'1. Order'!AB108)","v":""},null,{"$f":"IF('1. Order'!AT108=\"\",\"\",'1. Order'!AT108)","v":""},{"$f":"IF('1. Order'!AU108=\"\",\"\",'1. Order'!AU108)","v":""},null,null,null,null,null,null,null,{"$f":"IF('1. Order'!AY108=\"\",\"\",'1. Order'!AY108)","v":""},{"$f":"IF('1. Order'!AZ108=\"\",\"\",'1. Order'!AZ108)","v":""},{"$f":"IF('1. Order'!BA108=\"\",\"\",'1. Order'!BA108)","v":""},{"$f":"IF('1. Order'!BB108=\"\",\"\",'1. Order'!BB108)","v":""},{"$f":"IF('1. Order'!BD108=\"\",\"\",'1. Order'!BD108)","v":""},{"$f":"IF('1. Order'!BE108=\"\",\"\",'1. Order'!BE108)","v":""},{"$f":"IF('1. Order'!BF108=\"\",\"\",'1. Order'!BF108)","v":""},{"$f":"IF('1. Order'!BG108=\"\",\"\",'1. Order'!BG108)","v":""},{"$f":"IF('1. Order'!BH108=\"\",\"\",'1. Order'!BH108)","v":"ZWO"}]
[{"$f":"IF('1. Order'!F109=\"\",\"\",'1. Order'!F109)","v":{"$error":"#N/A"}},{"$f":"IF('1. Order'!G109=\"\",\"\",'1. Order'!G109)","v":""},{"$f":"IF('1. Order'!H109=\"\",\"\",'1. Order'!H109)","v":""},{"$f":"IF('1. Order'!I109=\"\",\"\",'1. Order'!I109)","v":""},{"$f":"IF('1. Order'!J109=\"\",\"\",'1. Order'!J109)","v":""},{"$f":"IF('1. Order'!K109=\"\",\"\",'1. Order'!K109)","v":""},{"$f":"IF('1. Order'!L109=\"\",\"\",'1. Order'!L109)","v":""},{"$f":"IF('1. Order'!M109=\"\",\"\",'1. Order'!M109)","v":""},{"$f":"IF('1. Order'!N109=\"\",\"\",'1. Order'!N109)","v":""},{"$f":"IF('1. Order'!O109=\"\",\"\",'1. Order'!O109)","v":{"$error":"#N/A"}},{"$f":"IF('1. Order'!P109=\"\",\"\",'1. Order'!P109)","v":{"$error":"#N/A"}},{"$f":"IF('1. Order'!Q109=\"\",\"\",'1. Order'!Q109)","v":""},{"$f":"IF('1. Order'!S109=\"\",\"\",'1. Order'!S109)","v":""},{"$f":"IF('1. Order'!T109=\"\",\"\",'1. Order'!T109)","v":""},{"$f":"IF('1. Order'!W109=\"\",\"\",'1. Order'!W109)","v":""},{"$f":"IF('1. Order'!X109=\"\",\"\",'1. Order'!X109)","v":""},{"$f":"IF('1. Order'!Y109=\"\",\"\",'1. Order'!Y109)","v":"EUR"},{"$f":"IF('1. Order'!Z109=\"\",\"\",'1. Order'!Z109)","v":""},{"$f":"IF('1. Order'!AA109=\"\",\"\",'1. Order'!AA109)","v":""},{"$f":"IF('1. Order'!AB109=\"\",\"\",'1. Order'!AB109)","v":""},null,{"$f":"IF('1. Order'!AT109=\"\",\"\",'1. Order'!AT109)","v":""},{"$f":"IF('1. Order'!AU109=\"\",\"\",'1. Order'!AU109)","v":""},null,null,null,null,null,null,null,{"$f":"IF('1. Order'!AY109=\"\",\"\",'1. Order'!AY109)","v":""},{"$f":"IF('1. Order'!AZ109=\"\",\"\",'1. Order'!AZ109)","v":""},{"$f":"IF('1. Order'!BA109=\"\",\"\",'1. Order'!BA109)","v":""},{"$f":"IF('1. Order'!BB109=\"\",\"\",'1. Order'!BB109)","v":""},{"$f":"IF('1. Order'!BD109=\"\",\"\",'1. Order'!BD109)","v":""},{"$f":"IF('1. Order'!BE109=\"\",\"\",'1. Order'!BE109)","v":""},{"$f":"IF('1. Order'!BF109=\"\",\"\",'1. Order'!BF109)","v":""},{"$f":"IF('1. Order'!BG109=\"\",\"\",'1. Order'!BG109)","v":""},{"$f":"IF('1. Order'!BH109=\"\",\"\",'1. Order'!BH109)","v":"ZWO"}]
[{"$f":"IF('1. Order'!F110=\"\",\"\",'1. Order'!F110)","v":{"$error":"#N/A"}},{"$f":"IF('1. Order'!G110=\"\",\"\",'1. Order'!G110)","v":""},{"$f":"IF('1. Order'!H110=\"\",\"\",'1. Order'!H110)","v":""},{"$f":"IF('1. Order'!I110=\"\",\"\",'1. Order'!I110)","v":""},{"$f":"IF('1. Order'!J110=\"\",\"\",'1. Order'!J110)","v":""},{"$f":"IF('1. Order'!K110=\"\",\"\",'1. Order'!K110)","v":""},{"$f":"IF('1. Order'!L110=\"\",\"\",'1. Order'!L110)","v":""},{"$f":"IF('1. Order'!M110=\"\",\"\",'1. Order'!M110)","v":""},{"$f":"IF('1. Order'!N110=\"\",\"\",'1. Order'!N110)","v":""},{"$f":"IF('1. Order'!O110=\"\",\"\",'1. Order'!O110)","v":{"$error":"#N/A"}},{"$f":"IF('1. Order'!P110=\"\",\"\",'1. Order'!P110)","v":{"$error":"#N/A"}},{"$f":"IF('1. Order'!Q110=\"\",\"\",'1. Order'!Q110)","v":""},{"$f":"IF('1. Order'!S110=\"\",\"\",'1. Order'!S110)","v":""},{"$f":"IF('1. Order'!T110=\"\",\"\",'1. Order'!T110)","v":""},{"$f":"IF('1. Order'!W110=\"\",\"\",'1. Order'!W110)","v":""},{"$f":"IF('1. Order'!X110=\"\",\"\",'1. Order'!X110)","v":""},{"$f":"IF('1. Order'!Y110=\"\",\"\",'1. Order'!Y110)","v":"EUR"},{"$f":"IF('1. Order'!Z110=\"\",\"\",'1. Order'!Z110)","v":""},{"$f":"IF('1. Order'!AA110=\"\",\"\",'1. Order'!AA110)","v":""},{"$f":"IF('1. Order'!AB110=\"\",\"\",'1. Order'!AB110)","v":""},null,{"$f":"IF('1. Order'!AT110=\"\",\"\",'1. Order'!AT110)","v":""},{"$f":"IF('1. Order'!AU110=\"\",\"\",'1. Order'!AU110)","v":""},null,null,null,null,null,null,null,{"$f":"IF('1. Order'!AY110=\"\",\"\",'1. Order'!AY110)","v":""},{"$f":"IF('1. Order'!AZ110=\"\",\"\",'1. Order'!AZ110)","v":""},{"$f":"IF('1. Order'!BA110=\"\",\"\",'1. Order'!BA110)","v":""},{"$f":"IF('1. Order'!BB110=\"\",\"\",'1. Order'!BB110)","v":""},{"$f":"IF('1. Order'!BD110=\"\",\"\",'1. Order'!BD110)","v":""},{"$f":"IF('1. Order'!BE110=\"\",\"\",'1. Order'!BE110)","v":""},{"$f":"IF('1. Order'!BF110=\"\",\"\",'1. Order'!BF110)","v":""},{"$f":"IF('1. Order'!BG110=\"\",\"\",'1. Order'!BG110)","v":""},{"$f":"IF('1. Order'!BH110=\"\",\"\",'1. Order'!BH110)","v":"ZWO"}]
[{"$f":"IF('1. Order'!F111=\"\",\"\",'1. Order'!F111)","v":{"$error":"#N/A"}},{"$f":"IF('1. Order'!G111=\"\",\"\",'1. Order'!G111)","v":""},{"$f":"IF('1. Order'!H111=\"\",\"\",'1. Order'!H111)","v":""},{"$f":"IF('1. Order'!I111=\"\",\"\",'1. Order'!I111)","v":""},{"$f":"IF('1. Order'!J111=\"\",\"\",'1. Order'!J111)","v":""},{"$f":"IF('1. Order'!K111=\"\",\"\",'1. Order'!K111)","v":""},{"$f":"IF('1. Order'!L111=\"\",\"\",'1. Order'!L111)","v":""},{"$f":"IF('1. Order'!M111=\"\",\"\",'1. Order'!M111)","v":""},{"$f":"IF('1. Order'!N111=\"\",\"\",'1. Order'!N111)","v":""},{"$f":"IF('1. Order'!O111=\"\",\"\",'1. Order'!O111)","v":{"$error":"#N/A"}},{"$f":"IF('1. Order'!P111=\"\",\"\",'1. Order'!P111)","v":{"$error":"#N/A"}},{"$f":"IF('1. Order'!Q111=\"\",\"\",'1. Order'!Q111)","v":""},{"$f":"IF('1. Order'!S111=\"\",\"\",'1. Order'!S111)","v":""},{"$f":"IF('1. Order'!T111=\"\",\"\",'1. Order'!T111)","v":""},{"$f":"IF('1. Order'!W111=\"\",\"\",'1. Order'!W111)","v":""},{"$f":"IF('1. Order'!X111=\"\",\"\",'1. Order'!X111)","v":""},{"$f":"IF('1. Order'!Y111=\"\",\"\",'1. Order'!Y111)","v":"EUR"},{"$f":"IF('1. Order'!Z111=\"\",\"\",'1. Order'!Z111)","v":""},{"$f":"IF('1. Order'!AA111=\"\",\"\",'1. Order'!AA111)","v":""},{"$f":"IF('1. Order'!AB111=\"\",\"\",'1. Order'!AB111)","v":""},null,{"$f":"IF('1. Order'!AT111=\"\",\"\",'1. Order'!AT111)","v":""},{"$f":"IF('1. Order'!AU111=\"\",\"\",'1. Order'!AU111)","v":""},null,null,null,null,null,null,null,{"$f":"IF('1. Order'!AY111=\"\",\"\",'1. Order'!AY111)","v":""},{"$f":"IF('1. Order'!AZ111=\"\",\"\",'1. Order'!AZ111)","v":""},{"$f":"IF('1. Order'!BA111=\"\",\"\",'1. Order'!BA111)","v":""},{"$f":"IF('1. Order'!BB111=\"\",\"\",'1. Order'!BB111)","v":""},{"$f":"IF('1. Order'!BD111=\"\",\"\",'1. Order'!BD111)","v":""},{"$f":"IF('1. Order'!BE111=\"\",\"\",'1. Order'!BE111)","v":""},{"$f":"IF('1. Order'!BF111=\"\",\"\",'1. Order'!BF111)","v":""},{"$f":"IF('1. Order'!BG111=\"\",\"\",'1. Order'!BG111)","v":""},{"$f":"IF('1. Order'!BH111=\"\",\"\",'1. Order'!BH111)","v":"ZWO"}]
[{"$f":"IF('1. Order'!F112=\"\",\"\",'1. Order'!F112)","v":{"$error":"#N/A"}},{"$f":"IF('1. Order'!G112=\"\",\"\",'1. Order'!G112)","v":""},{"$f":"IF('1. Order'!H112=\"\",\"\",'1. Order'!H112)","v":""},{"$f":"IF('1. Order'!I112=\"\",\"\",'1. Order'!I112)","v":""},{"$f":"IF('1. Order'!J112=\"\",\"\",'1. Order'!J112)","v":""},{"$f":"IF('1. Order'!K112=\"\",\"\",'1. Order'!K112)","v":""},{"$f":"IF('1. Order'!L112=\"\",\"\",'1. Order'!L112)","v":""},{"$f":"IF('1. Order'!M112=\"\",\"\",'1. Order'!M112)","v":""},{"$f":"IF('1. Order'!N112=\"\",\"\",'1. Order'!N112)","v":""},{"$f":"IF('1. Order'!O112=\"\",\"\",'1. Order'!O112)","v":{"$error":"#N/A"}},{"$f":"IF('1. Order'!P112=\"\",\"\",'1. Order'!P112)","v":{"$error":"#N/A"}},{"$f":"IF('1. Order'!Q112=\"\",\"\",'1. Order'!Q112)","v":""},{"$f":"IF('1. Order'!S112=\"\",\"\",'1. Order'!S112)","v":""},{"$f":"IF('1. Order'!T112=\"\",\"\",'1. Order'!T112)","v":""},{"$f":"IF('1. Order'!W112=\"\",\"\",'1. Order'!W112)","v":""},{"$f":"IF('1. Order'!X112=\"\",\"\",'1. Order'!X112)","v":""},{"$f":"IF('1. Order'!Y112=\"\",\"\",'1. Order'!Y112)","v":"EUR"},{"$f":"IF('1. Order'!Z112=\"\",\"\",'1. Order'!Z112)","v":""},{"$f":"IF('1. Order'!AA112=\"\",\"\",'1. Order'!AA112)","v":""},{"$f":"IF('1. Order'!AB112=\"\",\"\",'1. Order'!AB112)","v":""},null,{"$f":"IF('1. Order'!AT112=\"\",\"\",'1. Order'!AT112)","v":""},{"$f":"IF('1. Order'!AU112=\"\",\"\",'1. Order'!AU112)","v":""},null,null,null,null,null,null,null,{"$f":"IF('1. Order'!AY112=\"\",\"\",'1. Order'!AY112)","v":""},{"$f":"IF('1. Order'!AZ112=\"\",\"\",'1. Order'!AZ112)","v":""},{"$f":"IF('1. Order'!BA112=\"\",\"\",'1. Order'!BA112)","v":""},{"$f":"IF('1. Order'!BB112=\"\",\"\",'1. Order'!BB112)","v":""},{"$f":"IF('1. Order'!BD112=\"\",\"\",'1. Order'!BD112)","v":""},{"$f":"IF('1. Order'!BE112=\"\",\"\",'1. Order'!BE112)","v":""},{"$f":"IF('1. Order'!BF112=\"\",\"\",'1. Order'!BF112)","v":""},{"$f":"IF('1. Order'!BG112=\"\",\"\",'1. Order'!BG112)","v":""},{"$f":"IF('1. Order'!BH112=\"\",\"\",'1. Order'!BH112)","v":"ZWO"}]
[{"$f":"IF('1. Order'!F113=\"\",\"\",'1. Order'!F113)","v":{"$error":"#N/A"}},{"$f":"IF('1. Order'!G113=\"\",\"\",'1. Order'!G113)","v":""},{"$f":"IF('1. Order'!H113=\"\",\"\",'1. Order'!H113)","v":""},{"$f":"IF('1. Order'!I113=\"\",\"\",'1. Order'!I113)","v":""},{"$f":"IF('1. Order'!J113=\"\",\"\",'1. Order'!J113)","v":""},{"$f":"IF('1. Order'!K113=\"\",\"\",'1. Order'!K113)","v":""},{"$f":"IF('1. Order'!L113=\"\",\"\",'1. Order'!L113)","v":""},{"$f":"IF('1. Order'!M113=\"\",\"\",'1. Order'!M113)","v":""},{"$f":"IF('1. Order'!N113=\"\",\"\",'1. Order'!N113)","v":""},{"$f":"IF('1. Order'!O113=\"\",\"\",'1. Order'!O113)","v":{"$error":"#N/A"}},{"$f":"IF('1. Order'!P113=\"\",\"\",'1. Order'!P113)","v":{"$error":"#N/A"}},{"$f":"IF('1. Order'!Q113=\"\",\"\",'1. Order'!Q113)","v":""},{"$f":"IF('1. Order'!S113=\"\",\"\",'1. Order'!S113)","v":""},{"$f":"IF('1. Order'!T113=\"\",\"\",'1. Order'!T113)","v":""},{"$f":"IF('1. Order'!W113=\"\",\"\",'1. Order'!W113)","v":""},{"$f":"IF('1. Order'!X113=\"\",\"\",'1. Order'!X113)","v":""},{"$f":"IF('1. Order'!Y113=\"\",\"\",'1. Order'!Y113)","v":"EUR"},{"$f":"IF('1. Order'!Z113=\"\",\"\",'1. Order'!Z113)","v":""},{"$f":"IF('1. Order'!AA113=\"\",\"\",'1. Order'!AA113)","v":""},{"$f":"IF('1. Order'!AB113=\"\",\"\",'1. Order'!AB113)","v":""},null,{"$f":"IF('1. Order'!AT113=\"\",\"\",'1. Order'!AT113)","v":""},{"$f":"IF('1. Order'!AU113=\"\",\"\",'1. Order'!AU113)","v":""},null,null,null,null,null,null,null,{"$f":"IF('1. Order'!AY113=\"\",\"\",'1. Order'!AY113)","v":""},{"$f":"IF('1. Order'!AZ113=\"\",\"\",'1. Order'!AZ113)","v":""},{"$f":"IF('1. Order'!BA113=\"\",\"\",'1. Order'!BA113)","v":""},{"$f":"IF('1. Order'!BB113=\"\",\"\",'1. Order'!BB113)","v":""},{"$f":"IF('1. Order'!BD113=\"\",\"\",'1. Order'!BD113)","v":""},{"$f":"IF('1. Order'!BE113=\"\",\"\",'1. Order'!BE113)","v":""},{"$f":"IF('1. Order'!BF113=\"\",\"\",'1. Order'!BF113)","v":""},{"$f":"IF('1. Order'!BG113=\"\",\"\",'1. Order'!BG113)","v":""},{"$f":"IF('1. Order'!BH113=\"\",\"\",'1. Order'!BH113)","v":"ZWO"}]
[{"$f":"IF('1. Order'!F114=\"\",\"\",'1. Order'!F114)","v":{"$error":"#N/A"}},{"$f":"IF('1. Order'!G114=\"\",\"\",'1. Order'!G114)","v":""},{"$f":"IF('1. Order'!H114=\"\",\"\",'1. Order'!H114)","v":""},{"$f":"IF('1. Order'!I114=\"\",\"\",'1. Order'!I114)","v":""},{"$f":"IF('1. Order'!J114=\"\",\"\",'1. Order'!J114)","v":""},{"$f":"IF('1. Order'!K114=\"\",\"\",'1. Order'!K114)","v":""},{"$f":"IF('1. Order'!L114=\"\",\"\",'1. Order'!L114)","v":""},{"$f":"IF('1. Order'!M114=\"\",\"\",'1. Order'!M114)","v":""},{"$f":"IF('1. Order'!N114=\"\",\"\",'1. Order'!N114)","v":""},{"$f":"IF('1. Order'!O114=\"\",\"\",'1. Order'!O114)","v":{"$error":"#N/A"}},{"$f":"IF('1. Order'!P114=\"\",\"\",'1. Order'!P114)","v":{"$error":"#N/A"}},{"$f":"IF('1. Order'!Q114=\"\",\"\",'1. Order'!Q114)","v":""},{"$f":"IF('1. Order'!S114=\"\",\"\",'1. Order'!S114)","v":""},{"$f":"IF('1. Order'!T114=\"\",\"\",'1. Order'!T114)","v":""},{"$f":"IF('1. Order'!W114=\"\",\"\",'1. Order'!W114)","v":""},{"$f":"IF('1. Order'!X114=\"\",\"\",'1. Order'!X114)","v":""},{"$f":"IF('1. Order'!Y114=\"\",\"\",'1. Order'!Y114)","v":"EUR"},{"$f":"IF('1. Order'!Z114=\"\",\"\",'1. Order'!Z114)","v":""},{"$f":"IF('1. Order'!AA114=\"\",\"\",'1. Order'!AA114)","v":""},{"$f":"IF('1. Order'!AB114=\"\",\"\",'1. Order'!AB114)","v":""},null,{"$f":"IF('1. Order'!AT114=\"\",\"\",'1. Order'!AT114)","v":""},{"$f":"IF('1. Order'!AU114=\"\",\"\",'1. Order'!AU114)","v":""},null,null,null,null,null,null,null,{"$f":"IF('1. Order'!AY114=\"\",\"\",'1. Order'!AY114)","v":""},{"$f":"IF('1. Order'!AZ114=\"\",\"\",'1. Order'!AZ114)","v":""},{"$f":"IF('1. Order'!BA114=\"\",\"\",'1. Order'!BA114)","v":""},{"$f":"IF('1. Order'!BB114=\"\",\"\",'1. Order'!BB114)","v":""},{"$f":"IF('1. Order'!BD114=\"\",\"\",'1. Order'!BD114)","v":""},{"$f":"IF('1. Order'!BE114=\"\",\"\",'1. Order'!BE114)","v":""},{"$f":"IF('1. Order'!BF114=\"\",\"\",'1. Order'!BF114)","v":""},{"$f":"IF('1. Order'!BG114=\"\",\"\",'1. Order'!BG114)","v":""},{"$f":"IF('1. Order'!BH114=\"\",\"\",'1. Order'!BH114)","v":"ZWO"}]
[{"$f":"IF('1. Order'!F115=\"\",\"\",'1. Order'!F115)","v":{"$error":"#N/A"}},{"$f":"IF('1. Order'!G115=\"\",\"\",'1. Order'!G115)","v":""},{"$f":"IF('1. Order'!H115=\"\",\"\",'1. Order'!H115)","v":""},{"$f":"IF('1. Order'!I115=\"\",\"\",'1. Order'!I115)","v":""},{"$f":"IF('1. Order'!J115=\"\",\"\",'1. Order'!J115)","v":""},{"$f":"IF('1. Order'!K115=\"\",\"\",'1. Order'!K115)","v":""},{"$f":"IF('1. Order'!L115=\"\",\"\",'1. Order'!L115)","v":""},{"$f":"IF('1. Order'!M115=\"\",\"\",'1. Order'!M115)","v":""},{"$f":"IF('1. Order'!N115=\"\",\"\",'1. Order'!N115)","v":""},{"$f":"IF('1. Order'!O115=\"\",\"\",'1. Order'!O115)","v":{"$error":"#N/A"}},{"$f":"IF('1. Order'!P115=\"\",\"\",'1. Order'!P115)","v":{"$error":"#N/A"}},{"$f":"IF('1. Order'!Q115=\"\",\"\",'1. Order'!Q115)","v":""},{"$f":"IF('1. Order'!S115=\"\",\"\",'1. Order'!S115)","v":""},{"$f":"IF('1. Order'!T115=\"\",\"\",'1. Order'!T115)","v":""},{"$f":"IF('1. Order'!W115=\"\",\"\",'1. Order'!W115)","v":""},{"$f":"IF('1. Order'!X115=\"\",\"\",'1. Order'!X115)","v":""},{"$f":"IF('1. Order'!Y115=\"\",\"\",'1. Order'!Y115)","v":"EUR"},{"$f":"IF('1. Order'!Z115=\"\",\"\",'1. Order'!Z115)","v":""},{"$f":"IF('1. Order'!AA115=\"\",\"\",'1. Order'!AA115)","v":""},{"$f":"IF('1. Order'!AB115=\"\",\"\",'1. Order'!AB115)","v":""},null,{"$f":"IF('1. Order'!AT115=\"\",\"\",'1. Order'!AT115)","v":""},{"$f":"IF('1. Order'!AU115=\"\",\"\",'1. Order'!AU115)","v":""},null,null,null,null,null,null,null,{"$f":"IF('1. Order'!AY115=\"\",\"\",'1. Order'!AY115)","v":""},{"$f":"IF('1. Order'!AZ115=\"\",\"\",'1. Order'!AZ115)","v":""},{"$f":"IF('1. Order'!BA115=\"\",\"\",'1. Order'!BA115)","v":""},{"$f":"IF('1. Order'!BB115=\"\",\"\",'1. Order'!BB115)","v":""},{"$f":"IF('1. Order'!BD115=\"\",\"\",'1. Order'!BD115)","v":""},{"$f":"IF('1. Order'!BE115=\"\",\"\",'1. Order'!BE115)","v":""},{"$f":"IF('1. Order'!BF115=\"\",\"\",'1. Order'!BF115)","v":""},{"$f":"IF('1. Order'!BG115=\"\",\"\",'1. Order'!BG115)","v":""},{"$f":"IF('1. Order'!BH115=\"\",\"\",'1. Order'!BH115)","v":"ZWO"}]
[{"$f":"IF('1. Order'!F116=\"\",\"\",'1. Order'!F116)","v":{"$error":"#N/A"}},{"$f":"IF('1. Order'!G116=\"\",\"\",'1. Order'!G116)","v":""},{"$f":"IF('1. Order'!H116=\"\",\"\",'1. Order'!H116)","v":""},{"$f":"IF('1. Order'!I116=\"\",\"\",'1. Order'!I116)","v":""},{"$f":"IF('1. Order'!J116=\"\",\"\",'1. Order'!J116)","v":""},{"$f":"IF('1. Order'!K116=\"\",\"\",'1. Order'!K116)","v":""},{"$f":"IF('1. Order'!L116=\"\",\"\",'1. Order'!L116)","v":""},{"$f":"IF('1. Order'!M116=\"\",\"\",'1. Order'!M116)","v":""},{"$f":"IF('1. Order'!N116=\"\",\"\",'1. Order'!N116)","v":""},{"$f":"IF('1. Order'!O116=\"\",\"\",'1. Order'!O116)","v":{"$error":"#N/A"}},{"$f":"IF('1. Order'!P116=\"\",\"\",'1. Order'!P116)","v":{"$error":"#N/A"}},{"$f":"IF('1. Order'!Q116=\"\",\"\",'1. Order'!Q116)","v":""},{"$f":"IF('1. Order'!S116=\"\",\"\",'1. Order'!S116)","v":""},{"$f":"IF('1. Order'!T116=\"\",\"\",'1. Order'!T116)","v":""},{"$f":"IF('1. Order'!W116=\"\",\"\",'1. Order'!W116)","v":""},{"$f":"IF('1. Order'!X116=\"\",\"\",'1. Order'!X116)","v":""},{"$f":"IF('1. Order'!Y116=\"\",\"\",'1. Order'!Y116)","v":"EUR"},{"$f":"IF('1. Order'!Z116=\"\",\"\",'1. Order'!Z116)","v":""},{"$f":"IF('1. Order'!AA116=\"\",\"\",'1. Order'!AA116)","v":""},{"$f":"IF('1. Order'!AB116=\"\",\"\",'1. Order'!AB116)","v":""},null,{"$f":"IF('1. Order'!AT116=\"\",\"\",'1. Order'!AT116)","v":""},{"$f":"IF('1. Order'!AU116=\"\",\"\",'1. Order'!AU116)","v":""},null,null,null,null,null,null,null,{"$f":"IF('1. Order'!AY116=\"\",\"\",'1. Order'!AY116)","v":""},{"$f":"IF('1. Order'!AZ116=\"\",\"\",'1. Order'!AZ116)","v":""},{"$f":"IF('1. Order'!BA116=\"\",\"\",'1. Order'!BA116)","v":""},{"$f":"IF('1. Order'!BB116=\"\",\"\",'1. Order'!BB116)","v":""},{"$f":"IF('1. Order'!BD116=\"\",\"\",'1. Order'!BD116)","v":""},{"$f":"IF('1. Order'!BE116=\"\",\"\",'1. Order'!BE116)","v":""},{"$f":"IF('1. Order'!BF116=\"\",\"\",'1. Order'!BF116)","v":""},{"$f":"IF('1. Order'!BG116=\"\",\"\",'1. Order'!BG116)","v":""},{"$f":"IF('1. Order'!BH116=\"\",\"\",'1. Order'!BH116)","v":"ZWO"}]
[{"$f":"IF('1. Order'!F117=\"\",\"\",'1. Order'!F117)","v":{"$error":"#N/A"}},{"$f":"IF('1. Order'!G117=\"\",\"\",'1. Order'!G117)","v":""},{"$f":"IF('1. Order'!H117=\"\",\"\",'1. Order'!H117)","v":""},{"$f":"IF('1. Order'!I117=\"\",\"\",'1. Order'!I117)","v":""},{"$f":"IF('1. Order'!J117=\"\",\"\",'1. Order'!J117)","v":""},{"$f":"IF('1. Order'!K117=\"\",\"\",'1. Order'!K117)","v":""},{"$f":"IF('1. Order'!L117=\"\",\"\",'1. Order'!L117)","v":""},{"$f":"IF('1. Order'!M117=\"\",\"\",'1. Order'!M117)","v":""},{"$f":"IF('1. Order'!N117=\"\",\"\",'1. Order'!N117)","v":""},{"$f":"IF('1. Order'!O117=\"\",\"\",'1. Order'!O117)","v":{"$error":"#N/A"}},{"$f":"IF('1. Order'!P117=\"\",\"\",'1. Order'!P117)","v":{"$error":"#N/A"}},{"$f":"IF('1. Order'!Q117=\"\",\"\",'1. Order'!Q117)","v":""},{"$f":"IF('1. Order'!S117=\"\",\"\",'1. Order'!S117)","v":""},{"$f":"IF('1. Order'!T117=\"\",\"\",'1. Order'!T117)","v":""},{"$f":"IF('1. Order'!W117=\"\",\"\",'1. Order'!W117)","v":""},{"$f":"IF('1. Order'!X117=\"\",\"\",'1. Order'!X117)","v":""},{"$f":"IF('1. Order'!Y117=\"\",\"\",'1. Order'!Y117)","v":"EUR"},{"$f":"IF('1. Order'!Z117=\"\",\"\",'1. Order'!Z117)","v":""},{"$f":"IF('1. Order'!AA117=\"\",\"\",'1. Order'!AA117)","v":""},{"$f":"IF('1. Order'!AB117=\"\",\"\",'1. Order'!AB117)","v":""},null,{"$f":"IF('1. Order'!AT117=\"\",\"\",'1. Order'!AT117)","v":""},{"$f":"IF('1. Order'!AU117=\"\",\"\",'1. Order'!AU117)","v":""},null,null,null,null,null,null,null,{"$f":"IF('1. Order'!AY117=\"\",\"\",'1. Order'!AY117)","v":""},{"$f":"IF('1. Order'!AZ117=\"\",\"\",'1. Order'!AZ117)","v":""},{"$f":"IF('1. Order'!BA117=\"\",\"\",'1. Order'!BA117)","v":""},{"$f":"IF('1. Order'!BB117=\"\",\"\",'1. Order'!BB117)","v":""},{"$f":"IF('1. Order'!BD117=\"\",\"\",'1. Order'!BD117)","v":""},{"$f":"IF('1. Order'!BE117=\"\",\"\",'1. Order'!BE117)","v":""},{"$f":"IF('1. Order'!BF117=\"\",\"\",'1. Order'!BF117)","v":""},{"$f":"IF('1. Order'!BG117=\"\",\"\",'1. Order'!BG117)","v":""},{"$f":"IF('1. Order'!BH117=\"\",\"\",'1. Order'!BH117)","v":"ZWO"}]
[{"$f":"IF('1. Order'!F118=\"\",\"\",'1. Order'!F118)","v":{"$error":"#N/A"}},{"$f":"IF('1. Order'!G118=\"\",\"\",'1. Order'!G118)","v":""},{"$f":"IF('1. Order'!H118=\"\",\"\",'1. Order'!H118)","v":""},{"$f":"IF('1. Order'!I118=\"\",\"\",'1. Order'!I118)","v":""},{"$f":"IF('1. Order'!J118=\"\",\"\",'1. Order'!J118)","v":""},{"$f":"IF('1. Order'!K118=\"\",\"\",'1. Order'!K118)","v":""},{"$f":"IF('1. Order'!L118=\"\",\"\",'1. Order'!L118)","v":""},{"$f":"IF('1. Order'!M118=\"\",\"\",'1. Order'!M118)","v":""},{"$f":"IF('1. Order'!N118=\"\",\"\",'1. Order'!N118)","v":""},{"$f":"IF('1. Order'!O118=\"\",\"\",'1. Order'!O118)","v":{"$error":"#N/A"}},{"$f":"IF('1. Order'!P118=\"\",\"\",'1. Order'!P118)","v":{"$error":"#N/A"}},{"$f":"IF('1. Order'!Q118=\"\",\"\",'1. Order'!Q118)","v":""},{"$f":"IF('1. Order'!S118=\"\",\"\",'1. Order'!S118)","v":""},{"$f":"IF('1. Order'!T118=\"\",\"\",'1. Order'!T118)","v":""},{"$f":"IF('1. Order'!W118=\"\",\"\",'1. Order'!W118)","v":""},{"$f":"IF('1. Order'!X118=\"\",\"\",'1. Order'!X118)","v":""},{"$f":"IF('1. Order'!Y118=\"\",\"\",'1. Order'!Y118)","v":"EUR"},{"$f":"IF('1. Order'!Z118=\"\",\"\",'1. Order'!Z118)","v":""},{"$f":"IF('1. Order'!AA118=\"\",\"\",'1. Order'!AA118)","v":""},{"$f":"IF('1. Order'!AB118=\"\",\"\",'1. Order'!AB118)","v":""},null,{"$f":"IF('1. Order'!AT118=\"\",\"\",'1. Order'!AT118)","v":""},{"$f":"IF('1. Order'!AU118=\"\",\"\",'1. Order'!AU118)","v":""},null,null,null,null,null,null,null,{"$f":"IF('1. Order'!AY118=\"\",\"\",'1. Order'!AY118)","v":""},{"$f":"IF('1. Order'!AZ118=\"\",\"\",'1. Order'!AZ118)","v":""},{"$f":"IF('1. Order'!BA118=\"\",\"\",'1. Order'!BA118)","v":""},{"$f":"IF('1. Order'!BB118=\"\",\"\",'1. Order'!BB118)","v":""},{"$f":"IF('1. Order'!BD118=\"\",\"\",'1. Order'!BD118)","v":""},{"$f":"IF('1. Order'!BE118=\"\",\"\",'1. Order'!BE118)","v":""},{"$f":"IF('1. Order'!BF118=\"\",\"\",'1. Order'!BF118)","v":""},{"$f":"IF('1. Order'!BG118=\"\",\"\",'1. Order'!BG118)","v":""},{"$f":"IF('1. Order'!BH118=\"\",\"\",'1. Order'!BH118)","v":"ZWO"}]
[{"$f":"IF('1. Order'!F119=\"\",\"\",'1. Order'!F119)","v":{"$error":"#N/A"}},{"$f":"IF('1. Order'!G119=\"\",\"\",'1. Order'!G119)","v":""},{"$f":"IF('1. Order'!H119=\"\",\"\",'1. Order'!H119)","v":""},{"$f":"IF('1. Order'!I119=\"\",\"\",'1. Order'!I119)","v":""},{"$f":"IF('1. Order'!J119=\"\",\"\",'1. Order'!J119)","v":""},{"$f":"IF('1. Order'!K119=\"\",\"\",'1. Order'!K119)","v":""},{"$f":"IF('1. Order'!L119=\"\",\"\",'1. Order'!L119)","v":""},{"$f":"IF('1. Order'!M119=\"\",\"\",'1. Order'!M119)","v":""},{"$f":"IF('1. Order'!N119=\"\",\"\",'1. Order'!N119)","v":""},{"$f":"IF('1. Order'!O119=\"\",\"\",'1. Order'!O119)","v":{"$error":"#N/A"}},{"$f":"IF('1. Order'!P119=\"\",\"\",'1. Order'!P119)","v":{"$error":"#N/A"}},{"$f":"IF('1. Order'!Q119=\"\",\"\",'1. Order'!Q119)","v":""},{"$f":"IF('1. Order'!S119=\"\",\"\",'1. Order'!S119)","v":""},{"$f":"IF('1. Order'!T119=\"\",\"\",'1. Order'!T119)","v":""},{"$f":"IF('1. Order'!W119=\"\",\"\",'1. Order'!W119)","v":""},{"$f":"IF('1. Order'!X119=\"\",\"\",'1. Order'!X119)","v":""},{"$f":"IF('1. Order'!Y119=\"\",\"\",'1. Order'!Y119)","v":"EUR"},{"$f":"IF('1. Order'!Z119=\"\",\"\",'1. Order'!Z119)","v":""},{"$f":"IF('1. Order'!AA119=\"\",\"\",'1. Order'!AA119)","v":""},{"$f":"IF('1. Order'!AB119=\"\",\"\",'1. Order'!AB119)","v":""},null,{"$f":"IF('1. Order'!AT119=\"\",\"\",'1. Order'!AT119)","v":""},{"$f":"IF('1. Order'!AU119=\"\",\"\",'1. Order'!AU119)","v":""},null,null,null,null,null,null,null,{"$f":"IF('1. Order'!AY119=\"\",\"\",'1. Order'!AY119)","v":""},{"$f":"IF('1. Order'!AZ119=\"\",\"\",'1. Order'!AZ119)","v":""},{"$f":"IF('1. Order'!BA119=\"\",\"\",'1. Order'!BA119)","v":""},{"$f":"IF('1. Order'!BB119=\"\",\"\",'1. Order'!BB119)","v":""},{"$f":"IF('1. Order'!BD119=\"\",\"\",'1. Order'!BD119)","v":""},{"$f":"IF('1. Order'!BE119=\"\",\"\",'1. Order'!BE119)","v":""},{"$f":"IF('1. Order'!BF119=\"\",\"\",'1. Order'!BF119)","v":""},{"$f":"IF('1. Order'!BG119=\"\",\"\",'1. Order'!BG119)","v":""},{"$f":"IF('1. Order'!BH119=\"\",\"\",'1. Order'!BH119)","v":"ZWO"}]
[{"$f":"IF('1. Order'!F120=\"\",\"\",'1. Order'!F120)","v":{"$error":"#N/A"}},{"$f":"IF('1. Order'!G120=\"\",\"\",'1. Order'!G120)","v":""},{"$f":"IF('1. Order'!H120=\"\",\"\",'1. Order'!H120)","v":""},{"$f":"IF('1. Order'!I120=\"\",\"\",'1. Order'!I120)","v":""},{"$f":"IF('1. Order'!J120=\"\",\"\",'1. Order'!J120)","v":""},{"$f":"IF('1. Order'!K120=\"\",\"\",'1. Order'!K120)","v":""},{"$f":"IF('1. Order'!L120=\"\",\"\",'1. Order'!L120)","v":""},{"$f":"IF('1. Order'!M120=\"\",\"\",'1. Order'!M120)","v":""},{"$f":"IF('1. Order'!N120=\"\",\"\",'1. Order'!N120)","v":""},{"$f":"IF('1. Order'!O120=\"\",\"\",'1. Order'!O120)","v":{"$error":"#N/A"}},{"$f":"IF('1. Order'!P120=\"\",\"\",'1. Order'!P120)","v":{"$error":"#N/A"}},{"$f":"IF('1. Order'!Q120=\"\",\"\",'1. Order'!Q120)","v":""},{"$f":"IF('1. Order'!S120=\"\",\"\",'1. Order'!S120)","v":""},{"$f":"IF('1. Order'!T120=\"\",\"\",'1. Order'!T120)","v":""},{"$f":"IF('1. Order'!W120=\"\",\"\",'1. Order'!W120)","v":""},{"$f":"IF('1. Order'!X120=\"\",\"\",'1. Order'!X120)","v":""},{"$f":"IF('1. Order'!Y120=\"\",\"\",'1. Order'!Y120)","v":"EUR"},{"$f":"IF('1. Order'!Z120=\"\",\"\",'1. Order'!Z120)","v":""},{"$f":"IF('1. Order'!AA120=\"\",\"\",'1. Order'!AA120)","v":""},{"$f":"IF('1. Order'!AB120=\"\",\"\",'1. Order'!AB120)","v":""},null,{"$f":"IF('1. Order'!AT120=\"\",\"\",'1. Order'!AT120)","v":""},{"$f":"IF('1. Order'!AU120=\"\",\"\",'1. Order'!AU120)","v":""},null,null,null,null,null,null,null,{"$f":"IF('1. Order'!AY120=\"\",\"\",'1. Order'!AY120)","v":""},{"$f":"IF('1. Order'!AZ120=\"\",\"\",'1. Order'!AZ120)","v":""},{"$f":"IF('1. Order'!BA120=\"\",\"\",'1. Order'!BA120)","v":""},{"$f":"IF('1. Order'!BB120=\"\",\"\",'1. Order'!BB120)","v":""},{"$f":"IF('1. Order'!BD120=\"\",\"\",'1. Order'!BD120)","v":""},{"$f":"IF('1. Order'!BE120=\"\",\"\",'1. Order'!BE120)","v":""},{"$f":"IF('1. Order'!BF120=\"\",\"\",'1. Order'!BF120)","v":""},{"$f":"IF('1. Order'!BG120=\"\",\"\",'1. Order'!BG120)","v":""},{"$f":"IF('1. Order'!BH120=\"\",\"\",'1. Order'!BH120)","v":"ZWO"}]
[{"$f":"IF('1. Order'!F121=\"\",\"\",'1. Order'!F121)","v":{"$error":"#N/A"}},{"$f":"IF('1. Order'!G121=\"\",\"\",'1. Order'!G121)","v":""},{"$f":"IF('1. Order'!H121=\"\",\"\",'1. Order'!H121)","v":""},{"$f":"IF('1. Order'!I121=\"\",\"\",'1. Order'!I121)","v":""},{"$f":"IF('1. Order'!J121=\"\",\"\",'1. Order'!J121)","v":""},{"$f":"IF('1. Order'!K121=\"\",\"\",'1. Order'!K121)","v":""},{"$f":"IF('1. Order'!L121=\"\",\"\",'1. Order'!L121)","v":""},{"$f":"IF('1. Order'!M121=\"\",\"\",'1. Order'!M121)","v":""},{"$f":"IF('1. Order'!N121=\"\",\"\",'1. Order'!N121)","v":""},{"$f":"IF('1. Order'!O121=\"\",\"\",'1. Order'!O121)","v":{"$error":"#N/A"}},{"$f":"IF('1. Order'!P121=\"\",\"\",'1. Order'!P121)","v":{"$error":"#N/A"}},{"$f":"IF('1. Order'!Q121=\"\",\"\",'1. Order'!Q121)","v":""},{"$f":"IF('1. Order'!S121=\"\",\"\",'1. Order'!S121)","v":""},{"$f":"IF('1. Order'!T121=\"\",\"\",'1. Order'!T121)","v":""},{"$f":"IF('1. Order'!W121=\"\",\"\",'1. Order'!W121)","v":""},{"$f":"IF('1. Order'!X121=\"\",\"\",'1. Order'!X121)","v":""},{"$f":"IF('1. Order'!Y121=\"\",\"\",'1. Order'!Y121)","v":"EUR"},{"$f":"IF('1. Order'!Z121=\"\",\"\",'1. Order'!Z121)","v":""},{"$f":"IF('1. Order'!AA121=\"\",\"\",'1. Order'!AA121)","v":""},{"$f":"IF('1. Order'!AB121=\"\",\"\",'1. Order'!AB121)","v":""},null,{"$f":"IF('1. Order'!AT121=\"\",\"\",'1. Order'!AT121)","v":""},{"$f":"IF('1. Order'!AU121=\"\",\"\",'1. Order'!AU121)","v":""},null,null,null,null,null,null,null,{"$f":"IF('1. Order'!AY121=\"\",\"\",'1. Order'!AY121)","v":""},{"$f":"IF('1. Order'!AZ121=\"\",\"\",'1. Order'!AZ121)","v":""},{"$f":"IF('1. Order'!BA121=\"\",\"\",'1. Order'!BA121)","v":""},{"$f":"IF('1. Order'!BB121=\"\",\"\",'1. Order'!BB121)","v":""},{"$f":"IF('1. Order'!BD121=\"\",\"\",'1. Order'!BD121)","v":""},{"$f":"IF('1. Order'!BE121=\"\",\"\",'1. Order'!BE121)","v":""},{"$f":"IF('1. Order'!BF121=\"\",\"\",'1. Order'!BF121)","v":""},{"$f":"IF('1. Order'!BG121=\"\",\"\",'1. Order'!BG121)","v":""},{"$f":"IF('1. Order'!BH121=\"\",\"\",'1. Order'!BH121)","v":"ZWO"}]
[{"$f":"IF('1. Order'!F122=\"\",\"\",'1. Order'!F122)","v":{"$error":"#N/A"}},{"$f":"IF('1. Order'!G122=\"\",\"\",'1. Order'!G122)","v":""},{"$f":"IF('1. Order'!H122=\"\",\"\",'1. Order'!H122)","v":""},{"$f":"IF('1. Order'!I122=\"\",\"\",'1. Order'!I122)","v":""},{"$f":"IF('1. Order'!J122=\"\",\"\",'1. Order'!J122)","v":""},{"$f":"IF('1. Order'!K122=\"\",\"\",'1. Order'!K122)","v":""},{"$f":"IF('1. Order'!L122=\"\",\"\",'1. Order'!L122)","v":""},{"$f":"IF('1. Order'!M122=\"\",\"\",'1. Order'!M122)","v":""},{"$f":"IF('1. Order'!N122=\"\",\"\",'1. Order'!N122)","v":""},{"$f":"IF('1. Order'!O122=\"\",\"\",'1. Order'!O122)","v":{"$error":"#N/A"}},{"$f":"IF('1. Order'!P122=\"\",\"\",'1. Order'!P122)","v":{"$error":"#N/A"}},{"$f":"IF('1. Order'!Q122=\"\",\"\",'1. Order'!Q122)","v":""},{"$f":"IF('1. Order'!S122=\"\",\"\",'1. Order'!S122)","v":""},{"$f":"IF('1. Order'!T122=\"\",\"\",'1. Order'!T122)","v":""},{"$f":"IF('1. Order'!W122=\"\",\"\",'1. Order'!W122)","v":""},{"$f":"IF('1. Order'!X122=\"\",\"\",'1. Order'!X122)","v":""},{"$f":"IF('1. Order'!Y122=\"\",\"\",'1. Order'!Y122)","v":"EUR"},{"$f":"IF('1. Order'!Z122=\"\",\"\",'1. Order'!Z122)","v":""},{"$f":"IF('1. Order'!AA122=\"\",\"\",'1. Order'!AA122)","v":""},{"$f":"IF('1. Order'!AB122=\"\",\"\",'1. Order'!AB122)","v":""},null,{"$f":"IF('1. Order'!AT122=\"\",\"\",'1. Order'!AT122)","v":""},{"$f":"IF('1. Order'!AU122=\"\",\"\",'1. Order'!AU122)","v":""},null,null,null,null,null,null,null,{"$f":"IF('1. Order'!AY122=\"\",\"\",'1. Order'!AY122)","v":""},{"$f":"IF('1. Order'!AZ122=\"\",\"\",'1. Order'!AZ122)","v":""},{"$f":"IF('1. Order'!BA122=\"\",\"\",'1. Order'!BA122)","v":""},{"$f":"IF('1. Order'!BB122=\"\",\"\",'1. Order'!BB122)","v":""},{"$f":"IF('1. Order'!BD122=\"\",\"\",'1. Order'!BD122)","v":""},{"$f":"IF('1. Order'!BE122=\"\",\"\",'1. Order'!BE122)","v":""},{"$f":"IF('1. Order'!BF122=\"\",\"\",'1. Order'!BF122)","v":""},{"$f":"IF('1. Order'!BG122=\"\",\"\",'1. Order'!BG122)","v":""},{"$f":"IF('1. Order'!BH122=\"\",\"\",'1. Order'!BH122)","v":"ZWO"}]
[{"$f":"IF('1. Order'!F123=\"\",\"\",'1. Order'!F123)","v":{"$error":"#N/A"}},{"$f":"IF('1. Order'!G123=\"\",\"\",'1. Order'!G123)","v":""},{"$f":"IF('1. Order'!H123=\"\",\"\",'1. Order'!H123)","v":""},{"$f":"IF('1. Order'!I123=\"\",\"\",'1. Order'!I123)","v":""},{"$f":"IF('1. Order'!J123=\"\",\"\",'1. Order'!J123)","v":""},{"$f":"IF('1. Order'!K123=\"\",\"\",'1. Order'!K123)","v":""},{"$f":"IF('1. Order'!L123=\"\",\"\",'1. Order'!L123)","v":""},{"$f":"IF('1. Order'!M123=\"\",\"\",'1. Order'!M123)","v":""},{"$f":"IF('1. Order'!N123=\"\",\"\",'1. Order'!N123)","v":""},{"$f":"IF('1. Order'!O123=\"\",\"\",'1. Order'!O123)","v":{"$error":"#N/A"}},{"$f":"IF('1. Order'!P123=\"\",\"\",'1. Order'!P123)","v":{"$error":"#N/A"}},{"$f":"IF('1. Order'!Q123=\"\",\"\",'1. Order'!Q123)","v":""},{"$f":"IF('1. Order'!S123=\"\",\"\",'1. Order'!S123)","v":""},{"$f":"IF('1. Order'!T123=\"\",\"\",'1. Order'!T123)","v":""},{"$f":"IF('1. Order'!W123=\"\",\"\",'1. Order'!W123)","v":""},{"$f":"IF('1. Order'!X123=\"\",\"\",'1. Order'!X123)","v":""},{"$f":"IF('1. Order'!Y123=\"\",\"\",'1. Order'!Y123)","v":"EUR"},{"$f":"IF('1. Order'!Z123=\"\",\"\",'1. Order'!Z123)","v":""},{"$f":"IF('1. Order'!AA123=\"\",\"\",'1. Order'!AA123)","v":""},{"$f":"IF('1. Order'!AB123=\"\",\"\",'1. Order'!AB123)","v":""},null,{"$f":"IF('1. Order'!AT123=\"\",\"\",'1. Order'!AT123)","v":""},{"$f":"IF('1. Order'!AU123=\"\",\"\",'1. Order'!AU123)","v":""},null,null,null,null,null,null,null,{"$f":"IF('1. Order'!AY123=\"\",\"\",'1. Order'!AY123)","v":""},{"$f":"IF('1. Order'!AZ123=\"\",\"\",'1. Order'!AZ123)","v":""},{"$f":"IF('1. Order'!BA123=\"\",\"\",'1. Order'!BA123)","v":""},{"$f":"IF('1. Order'!BB123=\"\",\"\",'1. Order'!BB123)","v":""},{"$f":"IF('1. Order'!BD123=\"\",\"\",'1. Order'!BD123)","v":""},{"$f":"IF('1. Order'!BE123=\"\",\"\",'1. Order'!BE123)","v":""},{"$f":"IF('1. Order'!BF123=\"\",\"\",'1. Order'!BF123)","v":""},{"$f":"IF('1. Order'!BG123=\"\",\"\",'1. Order'!BG123)","v":""},{"$f":"IF('1. Order'!BH123=\"\",\"\",'1. Order'!BH123)","v":"ZWO"}]
[{"$f":"IF('1. Order'!F124=\"\",\"\",'1. Order'!F124)","v":{"$error":"#N/A"}},{"$f":"IF('1. Order'!G124=\"\",\"\",'1. Order'!G124)","v":""},{"$f":"IF('1. Order'!H124=\"\",\"\",'1. Order'!H124)","v":""},{"$f":"IF('1. Order'!I124=\"\",\"\",'1. Order'!I124)","v":""},{"$f":"IF('1. Order'!J124=\"\",\"\",'1. Order'!J124)","v":""},{"$f":"IF('1. Order'!K124=\"\",\"\",'1. Order'!K124)","v":""},{"$f":"IF('1. Order'!L124=\"\",\"\",'1. Order'!L124)","v":""},{"$f":"IF('1. Order'!M124=\"\",\"\",'1. Order'!M124)","v":""},{"$f":"IF('1. Order'!N124=\"\",\"\",'1. Order'!N124)","v":""},{"$f":"IF('1. Order'!O124=\"\",\"\",'1. Order'!O124)","v":{"$error":"#N/A"}},{"$f":"IF('1. Order'!P124=\"\",\"\",'1. Order'!P124)","v":{"$error":"#N/A"}},{"$f":"IF('1. Order'!Q124=\"\",\"\",'1. Order'!Q124)","v":""},{"$f":"IF('1. Order'!S124=\"\",\"\",'1. Order'!S124)","v":""},{"$f":"IF('1. Order'!T124=\"\",\"\",'1. Order'!T124)","v":""},{"$f":"IF('1. Order'!W124=\"\",\"\",'1. Order'!W124)","v":""},{"$f":"IF('1. Order'!X124=\"\",\"\",'1. Order'!X124)","v":""},{"$f":"IF('1. Order'!Y124=\"\",\"\",'1. Order'!Y124)","v":"EUR"},{"$f":"IF('1. Order'!Z124=\"\",\"\",'1. Order'!Z124)","v":""},{"$f":"IF('1. Order'!AA124=\"\",\"\",'1. Order'!AA124)","v":""},{"$f":"IF('1. Order'!AB124=\"\",\"\",'1. Order'!AB124)","v":""},null,{"$f":"IF('1. Order'!AT124=\"\",\"\",'1. Order'!AT124)","v":""},{"$f":"IF('1. Order'!AU124=\"\",\"\",'1. Order'!AU124)","v":""},null,null,null,null,null,null,null,{"$f":"IF('1. Order'!AY124=\"\",\"\",'1. Order'!AY124)","v":""},{"$f":"IF('1. Order'!AZ124=\"\",\"\",'1. Order'!AZ124)","v":""},{"$f":"IF('1. Order'!BA124=\"\",\"\",'1. Order'!BA124)","v":""},{"$f":"IF('1. Order'!BB124=\"\",\"\",'1. Order'!BB124)","v":""},{"$f":"IF('1. Order'!BD124=\"\",\"\",'1. Order'!BD124)","v":""},{"$f":"IF('1. Order'!BE124=\"\",\"\",'1. Order'!BE124)","v":""},{"$f":"IF('1. Order'!BF124=\"\",\"\",'1. Order'!BF124)","v":""},{"$f":"IF('1. Order'!BG124=\"\",\"\",'1. Order'!BG124)","v":""},{"$f":"IF('1. Order'!BH124=\"\",\"\",'1. Order'!BH124)","v":"ZWO"}]
[{"$f":"IF('1. Order'!F125=\"\",\"\",'1. Order'!F125)","v":{"$error":"#N/A"}},{"$f":"IF('1. Order'!G125=\"\",\"\",'1. Order'!G125)","v":""},{"$f":"IF('1. Order'!H125=\"\",\"\",'1. Order'!H125)","v":""},{"$f":"IF('1. Order'!I125=\"\",\"\",'1. Order'!I125)","v":""},{"$f":"IF('1. Order'!J125=\"\",\"\",'1. Order'!J125)","v":""},{"$f":"IF('1. Order'!K125=\"\",\"\",'1. Order'!K125)","v":""},{"$f":"IF('1. Order'!L125=\"\",\"\",'1. Order'!L125)","v":""},{"$f":"IF('1. Order'!M125=\"\",\"\",'1. Order'!M125)","v":""},{"$f":"IF('1. Order'!N125=\"\",\"\",'1. Order'!N125)","v":""},{"$f":"IF('1. Order'!O125=\"\",\"\",'1. Order'!O125)","v":{"$error":"#N/A"}},{"$f":"IF('1. Order'!P125=\"\",\"\",'1. Order'!P125)","v":{"$error":"#N/A"}},{"$f":"IF('1. Order'!Q125=\"\",\"\",'1. Order'!Q125)","v":""},{"$f":"IF('1. Order'!S125=\"\",\"\",'1. Order'!S125)","v":""},{"$f":"IF('1. Order'!T125=\"\",\"\",'1. Order'!T125)","v":""},{"$f":"IF('1. Order'!W125=\"\",\"\",'1. Order'!W125)","v":""},{"$f":"IF('1. Order'!X125=\"\",\"\",'1. Order'!X125)","v":""},{"$f":"IF('1. Order'!Y125=\"\",\"\",'1. Order'!Y125)","v":"EUR"},{"$f":"IF('1. Order'!Z125=\"\",\"\",'1. Order'!Z125)","v":""},{"$f":"IF('1. Order'!AA125=\"\",\"\",'1. Order'!AA125)","v":""},{"$f":"IF('1. Order'!AB125=\"\",\"\",'1. Order'!AB125)","v":""},null,{"$f":"IF('1. Order'!AT125=\"\",\"\",'1. Order'!AT125)","v":""},{"$f":"IF('1. Order'!AU125=\"\",\"\",'1. Order'!AU125)","v":""},null,null,null,null,null,null,null,{"$f":"IF('1. Order'!AY125=\"\",\"\",'1. Order'!AY125)","v":""},{"$f":"IF('1. Order'!AZ125=\"\",\"\",'1. Order'!AZ125)","v":""},{"$f":"IF('1. Order'!BA125=\"\",\"\",'1. Order'!BA125)","v":""},{"$f":"IF('1. Order'!BB125=\"\",\"\",'1. Order'!BB125)","v":""},{"$f":"IF('1. Order'!BD125=\"\",\"\",'1. Order'!BD125)","v":""},{"$f":"IF('1. Order'!BE125=\"\",\"\",'1. Order'!BE125)","v":""},{"$f":"IF('1. Order'!BF125=\"\",\"\",'1. Order'!BF125)","v":""},{"$f":"IF('1. Order'!BG125=\"\",\"\",'1. Order'!BG125)","v":""},{"$f":"IF('1. Order'!BH125=\"\",\"\",'1. Order'!BH125)","v":"ZWO"}]
[{"$f":"IF('1. Order'!F126=\"\",\"\",'1. Order'!F126)","v":{"$error":"#N/A"}},{"$f":"IF('1. Order'!G126=\"\",\"\",'1. Order'!G126)","v":""},{"$f":"IF('1. Order'!H126=\"\",\"\",'1. Order'!H126)","v":""},{"$f":"IF('1. Order'!I126=\"\",\"\",'1. Order'!I126)","v":""},{"$f":"IF('1. Order'!J126=\"\",\"\",'1. Order'!J126)","v":""},{"$f":"IF('1. Order'!K126=\"\",\"\",'1. Order'!K126)","v":""},{"$f":"IF('1. Order'!L126=\"\",\"\",'1. Order'!L126)","v":""},{"$f":"IF('1. Order'!M126=\"\",\"\",'1. Order'!M126)","v":""},{"$f":"IF('1. Order'!N126=\"\",\"\",'1. Order'!N126)","v":""},{"$f":"IF('1. Order'!O126=\"\",\"\",'1. Order'!O126)","v":{"$error":"#N/A"}},{"$f":"IF('1. Order'!P126=\"\",\"\",'1. Order'!P126)","v":{"$error":"#N/A"}},{"$f":"IF('1. Order'!Q126=\"\",\"\",'1. Order'!Q126)","v":""},{"$f":"IF('1. Order'!S126=\"\",\"\",'1. Order'!S126)","v":""},{"$f":"IF('1. Order'!T126=\"\",\"\",'1. Order'!T126)","v":""},{"$f":"IF('1. Order'!W126=\"\",\"\",'1. Order'!W126)","v":""},{"$f":"IF('1. Order'!X126=\"\",\"\",'1. Order'!X126)","v":""},{"$f":"IF('1. Order'!Y126=\"\",\"\",'1. Order'!Y126)","v":"EUR"},{"$f":"IF('1. Order'!Z126=\"\",\"\",'1. Order'!Z126)","v":""},{"$f":"IF('1. Order'!AA126=\"\",\"\",'1. Order'!AA126)","v":""},{"$f":"IF('1. Order'!AB126=\"\",\"\",'1. Order'!AB126)","v":""},null,{"$f":"IF('1. Order'!AT126=\"\",\"\",'1. Order'!AT126)","v":""},{"$f":"IF('1. Order'!AU126=\"\",\"\",'1. Order'!AU126)","v":""},null,null,null,null,null,null,null,{"$f":"IF('1. Order'!AY126=\"\",\"\",'1. Order'!AY126)","v":""},{"$f":"IF('1. Order'!AZ126=\"\",\"\",'1. Order'!AZ126)","v":""},{"$f":"IF('1. Order'!BA126=\"\",\"\",'1. Order'!BA126)","v":""},{"$f":"IF('1. Order'!BB126=\"\",\"\",'1. Order'!BB126)","v":""},{"$f":"IF('1. Order'!BD126=\"\",\"\",'1. Order'!BD126)","v":""},{"$f":"IF('1. Order'!BE126=\"\",\"\",'1. Order'!BE126)","v":""},{"$f":"IF('1. Order'!BF126=\"\",\"\",'1. Order'!BF126)","v":""},{"$f":"IF('1. Order'!BG126=\"\",\"\",'1. Order'!BG126)","v":""},{"$f":"IF('1. Order'!BH126=\"\",\"\",'1. Order'!BH126)","v":"ZWO"}]
[{"$f":"IF('1. Order'!F127=\"\",\"\",'1. Order'!F127)","v":{"$error":"#N/A"}},{"$f":"IF('1. Order'!G127=\"\",\"\",'1. Order'!G127)","v":""},{"$f":"IF('1. Order'!H127=\"\",\"\",'1. Order'!H127)","v":""},{"$f":"IF('1. Order'!I127=\"\",\"\",'1. Order'!I127)","v":""},{"$f":"IF('1. Order'!J127=\"\",\"\",'1. Order'!J127)","v":""},{"$f":"IF('1. Order'!K127=\"\",\"\",'1. Order'!K127)","v":""},{"$f":"IF('1. Order'!L127=\"\",\"\",'1. Order'!L127)","v":""},{"$f":"IF('1. Order'!M127=\"\",\"\",'1. Order'!M127)","v":""},{"$f":"IF('1. Order'!N127=\"\",\"\",'1. Order'!N127)","v":""},{"$f":"IF('1. Order'!O127=\"\",\"\",'1. Order'!O127)","v":{"$error":"#N/A"}},{"$f":"IF('1. Order'!P127=\"\",\"\",'1. Order'!P127)","v":{"$error":"#N/A"}},{"$f":"IF('1. Order'!Q127=\"\",\"\",'1. Order'!Q127)","v":""},{"$f":"IF('1. Order'!S127=\"\",\"\",'1. Order'!S127)","v":""},{"$f":"IF('1. Order'!T127=\"\",\"\",'1. Order'!T127)","v":""},{"$f":"IF('1. Order'!W127=\"\",\"\",'1. Order'!W127)","v":""},{"$f":"IF('1. Order'!X127=\"\",\"\",'1. Order'!X127)","v":""},{"$f":"IF('1. Order'!Y127=\"\",\"\",'1. Order'!Y127)","v":"EUR"},{"$f":"IF('1. Order'!Z127=\"\",\"\",'1. Order'!Z127)","v":""},{"$f":"IF('1. Order'!AA127=\"\",\"\",'1. Order'!AA127)","v":""},{"$f":"IF('1. Order'!AB127=\"\",\"\",'1. Order'!AB127)","v":""},null,{"$f":"IF('1. Order'!AT127=\"\",\"\",'1. Order'!AT127)","v":""},{"$f":"IF('1. Order'!AU127=\"\",\"\",'1. Order'!AU127)","v":""},null,null,null,null,null,null,null,{"$f":"IF('1. Order'!AY127=\"\",\"\",'1. Order'!AY127)","v":""},{"$f":"IF('1. Order'!AZ127=\"\",\"\",'1. Order'!AZ127)","v":""},{"$f":"IF('1. Order'!BA127=\"\",\"\",'1. Order'!BA127)","v":""},{"$f":"IF('1. Order'!BB127=\"\",\"\",'1. Order'!BB127)","v":""},{"$f":"IF('1. Order'!BD127=\"\",\"\",'1. Order'!BD127)","v":""},{"$f":"IF('1. Order'!BE127=\"\",\"\",'1. Order'!BE127)","v":""},{"$f":"IF('1. Order'!BF127=\"\",\"\",'1. Order'!BF127)","v":""},{"$f":"IF('1. Order'!BG127=\"\",\"\",'1. Order'!BG127)","v":""},{"$f":"IF('1. Order'!BH127=\"\",\"\",'1. Order'!BH127)","v":"ZWO"}]
[{"$f":"IF('1. Order'!F128=\"\",\"\",'1. Order'!F128)","v":{"$error":"#N/A"}},{"$f":"IF('1. Order'!G128=\"\",\"\",'1. Order'!G128)","v":""},{"$f":"IF('1. Order'!H128=\"\",\"\",'1. Order'!H128)","v":""},{"$f":"IF('1. Order'!I128=\"\",\"\",'1. Order'!I128)","v":""},{"$f":"IF('1. Order'!J128=\"\",\"\",'1. Order'!J128)","v":""},{"$f":"IF('1. Order'!K128=\"\",\"\",'1. Order'!K128)","v":""},{"$f":"IF('1. Order'!L128=\"\",\"\",'1. Order'!L128)","v":""},{"$f":"IF('1. Order'!M128=\"\",\"\",'1. Order'!M128)","v":""},{"$f":"IF('1. Order'!N128=\"\",\"\",'1. Order'!N128)","v":""},{"$f":"IF('1. Order'!O128=\"\",\"\",'1. Order'!O128)","v":{"$error":"#N/A"}},{"$f":"IF('1. Order'!P128=\"\",\"\",'1. Order'!P128)","v":{"$error":"#N/A"}},{"$f":"IF('1. Order'!Q128=\"\",\"\",'1. Order'!Q128)","v":""},{"$f":"IF('1. Order'!S128=\"\",\"\",'1. Order'!S128)","v":""},{"$f":"IF('1. Order'!T128=\"\",\"\",'1. Order'!T128)","v":""},{"$f":"IF('1. Order'!W128=\"\",\"\",'1. Order'!W128)","v":""},{"$f":"IF('1. Order'!X128=\"\",\"\",'1. Order'!X128)","v":""},{"$f":"IF('1. Order'!Y128=\"\",\"\",'1. Order'!Y128)","v":"EUR"},{"$f":"IF('1. Order'!Z128=\"\",\"\",'1. Order'!Z128)","v":""},{"$f":"IF('1. Order'!AA128=\"\",\"\",'1. Order'!AA128)","v":""},{"$f":"IF('1. Order'!AB128=\"\",\"\",'1. Order'!AB128)","v":""},null,{"$f":"IF('1. Order'!AT128=\"\",\"\",'1. Order'!AT128)","v":""},{"$f":"IF('1. Order'!AU128=\"\",\"\",'1. Order'!AU128)","v":""},null,null,null,null,null,null,null,{"$f":"IF('1. Order'!AY128=\"\",\"\",'1. Order'!AY128)","v":""},{"$f":"IF('1. Order'!AZ128=\"\",\"\",'1. Order'!AZ128)","v":""},{"$f":"IF('1. Order'!BA128=\"\",\"\",'1. Order'!BA128)","v":""},{"$f":"IF('1. Order'!BB128=\"\",\"\",'1. Order'!BB128)","v":""},{"$f":"IF('1. Order'!BD128=\"\",\"\",'1. Order'!BD128)","v":""},{"$f":"IF('1. Order'!BE128=\"\",\"\",'1. Order'!BE128)","v":""},{"$f":"IF('1. Order'!BF128=\"\",\"\",'1. Order'!BF128)","v":""},{"$f":"IF('1. Order'!BG128=\"\",\"\",'1. Order'!BG128)","v":""},{"$f":"IF('1. Order'!BH128=\"\",\"\",'1. Order'!BH128)","v":"ZWO"}]
[{"$f":"IF('1. Order'!F129=\"\",\"\",'1. Order'!F129)","v":{"$error":"#N/A"}},{"$f":"IF('1. Order'!G129=\"\",\"\",'1. Order'!G129)","v":""},{"$f":"IF('1. Order'!H129=\"\",\"\",'1. Order'!H129)","v":""},{"$f":"IF('1. Order'!I129=\"\",\"\",'1. Order'!I129)","v":""},{"$f":"IF('1. Order'!J129=\"\",\"\",'1. Order'!J129)","v":""},{"$f":"IF('1. Order'!K129=\"\",\"\",'1. Order'!K129)","v":""},{"$f":"IF('1. Order'!L129=\"\",\"\",'1. Order'!L129)","v":""},{"$f":"IF('1. Order'!M129=\"\",\"\",'1. Order'!M129)","v":""},{"$f":"IF('1. Order'!N129=\"\",\"\",'1. Order'!N129)","v":""},{"$f":"IF('1. Order'!O129=\"\",\"\",'1. Order'!O129)","v":{"$error":"#N/A"}},{"$f":"IF('1. Order'!P129=\"\",\"\",'1. Order'!P129)","v":{"$error":"#N/A"}},{"$f":"IF('1. Order'!Q129=\"\",\"\",'1. Order'!Q129)","v":""},{"$f":"IF('1. Order'!S129=\"\",\"\",'1. Order'!S129)","v":""},{"$f":"IF('1. Order'!T129=\"\",\"\",'1. Order'!T129)","v":""},{"$f":"IF('1. Order'!W129=\"\",\"\",'1. Order'!W129)","v":""},{"$f":"IF('1. Order'!X129=\"\",\"\",'1. Order'!X129)","v":""},{"$f":"IF('1. Order'!Y129=\"\",\"\",'1. Order'!Y129)","v":"EUR"},{"$f":"IF('1. Order'!Z129=\"\",\"\",'1. Order'!Z129)","v":""},{"$f":"IF('1. Order'!AA129=\"\",\"\",'1. Order'!AA129)","v":""},{"$f":"IF('1. Order'!AB129=\"\",\"\",'1. Order'!AB129)","v":""},null,{"$f":"IF('1. Order'!AT129=\"\",\"\",'1. Order'!AT129)","v":""},{"$f":"IF('1. Order'!AU129=\"\",\"\",'1. Order'!AU129)","v":""},null,null,null,null,null,null,null,{"$f":"IF('1. Order'!AY129=\"\",\"\",'1. Order'!AY129)","v":""},{"$f":"IF('1. Order'!AZ129=\"\",\"\",'1. Order'!AZ129)","v":""},{"$f":"IF('1. Order'!BA129=\"\",\"\",'1. Order'!BA129)","v":""},{"$f":"IF('1. Order'!BB129=\"\",\"\",'1. Order'!BB129)","v":""},{"$f":"IF('1. Order'!BD129=\"\",\"\",'1. Order'!BD129)","v":""},{"$f":"IF('1. Order'!BE129=\"\",\"\",'1. Order'!BE129)","v":""},{"$f":"IF('1. Order'!BF129=\"\",\"\",'1. Order'!BF129)","v":""},{"$f":"IF('1. Order'!BG129=\"\",\"\",'1. Order'!BG129)","v":""},{"$f":"IF('1. Order'!BH129=\"\",\"\",'1. Order'!BH129)","v":"ZWO"}]
[{"$f":"IF('1. Order'!F130=\"\",\"\",'1. Order'!F130)","v":{"$error":"#N/A"}},{"$f":"IF('1. Order'!G130=\"\",\"\",'1. Order'!G130)","v":""},{"$f":"IF('1. Order'!H130=\"\",\"\",'1. Order'!H130)","v":""},{"$f":"IF('1. Order'!I130=\"\",\"\",'1. Order'!I130)","v":""},{"$f":"IF('1. Order'!J130=\"\",\"\",'1. Order'!J130)","v":""},{"$f":"IF('1. Order'!K130=\"\",\"\",'1. Order'!K130)","v":""},{"$f":"IF('1. Order'!L130=\"\",\"\",'1. Order'!L130)","v":""},{"$f":"IF('1. Order'!M130=\"\",\"\",'1. Order'!M130)","v":""},{"$f":"IF('1. Order'!N130=\"\",\"\",'1. Order'!N130)","v":""},{"$f":"IF('1. Order'!O130=\"\",\"\",'1. Order'!O130)","v":{"$error":"#N/A"}},{"$f":"IF('1. Order'!P130=\"\",\"\",'1. Order'!P130)","v":{"$error":"#N/A"}},{"$f":"IF('1. Order'!Q130=\"\",\"\",'1. Order'!Q130)","v":""},{"$f":"IF('1. Order'!S130=\"\",\"\",'1. Order'!S130)","v":""},{"$f":"IF('1. Order'!T130=\"\",\"\",'1. Order'!T130)","v":""},{"$f":"IF('1. Order'!W130=\"\",\"\",'1. Order'!W130)","v":""},{"$f":"IF('1. Order'!X130=\"\",\"\",'1. Order'!X130)","v":""},{"$f":"IF('1. Order'!Y130=\"\",\"\",'1. Order'!Y130)","v":"EUR"},{"$f":"IF('1. Order'!Z130=\"\",\"\",'1. Order'!Z130)","v":""},{"$f":"IF('1. Order'!AA130=\"\",\"\",'1. Order'!AA130)","v":""},{"$f":"IF('1. Order'!AB130=\"\",\"\",'1. Order'!AB130)","v":""},null,{"$f":"IF('1. Order'!AT130=\"\",\"\",'1. Order'!AT130)","v":""},{"$f":"IF('1. Order'!AU130=\"\",\"\",'1. Order'!AU130)","v":""},null,null,null,null,null,null,null,{"$f":"IF('1. Order'!AY130=\"\",\"\",'1. Order'!AY130)","v":""},{"$f":"IF('1. Order'!AZ130=\"\",\"\",'1. Order'!AZ130)","v":""},{"$f":"IF('1. Order'!BA130=\"\",\"\",'1. Order'!BA130)","v":""},{"$f":"IF('1. Order'!BB130=\"\",\"\",'1. Order'!BB130)","v":""},{"$f":"IF('1. Order'!BD130=\"\",\"\",'1. Order'!BD130)","v":""},{"$f":"IF('1. Order'!BE130=\"\",\"\",'1. Order'!BE130)","v":""},{"$f":"IF('1. Order'!BF130=\"\",\"\",'1. Order'!BF130)","v":""},{"$f":"IF('1. Order'!BG130=\"\",\"\",'1. Order'!BG130)","v":""},{"$f":"IF('1. Order'!BH130=\"\",\"\",'1. Order'!BH130)","v":"ZWO"}]
[{"$f":"IF('1. Order'!F131=\"\",\"\",'1. Order'!F131)","v":{"$error":"#N/A"}},{"$f":"IF('1. Order'!G131=\"\",\"\",'1. Order'!G131)","v":""},{"$f":"IF('1. Order'!H131=\"\",\"\",'1. Order'!H131)","v":""},{"$f":"IF('1. Order'!I131=\"\",\"\",'1. Order'!I131)","v":""},{"$f":"IF('1. Order'!J131=\"\",\"\",'1. Order'!J131)","v":""},{"$f":"IF('1. Order'!K131=\"\",\"\",'1. Order'!K131)","v":""},{"$f":"IF('1. Order'!L131=\"\",\"\",'1. Order'!L131)","v":""},{"$f":"IF('1. Order'!M131=\"\",\"\",'1. Order'!M131)","v":""},{"$f":"IF('1. Order'!N131=\"\",\"\",'1. Order'!N131)","v":""},{"$f":"IF('1. Order'!O131=\"\",\"\",'1. Order'!O131)","v":{"$error":"#N/A"}},{"$f":"IF('1. Order'!P131=\"\",\"\",'1. Order'!P131)","v":{"$error":"#N/A"}},{"$f":"IF('1. Order'!Q131=\"\",\"\",'1. Order'!Q131)","v":""},{"$f":"IF('1. Order'!S131=\"\",\"\",'1. Order'!S131)","v":""},{"$f":"IF('1. Order'!T131=\"\",\"\",'1. Order'!T131)","v":""},{"$f":"IF('1. Order'!W131=\"\",\"\",'1. Order'!W131)","v":""},{"$f":"IF('1. Order'!X131=\"\",\"\",'1. Order'!X131)","v":""},{"$f":"IF('1. Order'!Y131=\"\",\"\",'1. Order'!Y131)","v":"EUR"},{"$f":"IF('1. Order'!Z131=\"\",\"\",'1. Order'!Z131)","v":""},{"$f":"IF('1. Order'!AA131=\"\",\"\",'1. Order'!AA131)","v":""},{"$f":"IF('1. Order'!AB131=\"\",\"\",'1. Order'!AB131)","v":""},null,{"$f":"IF('1. Order'!AT131=\"\",\"\",'1. Order'!AT131)","v":""},{"$f":"IF('1. Order'!AU131=\"\",\"\",'1. Order'!AU131)","v":""},null,null,null,null,null,null,null,{"$f":"IF('1. Order'!AY131=\"\",\"\",'1. Order'!AY131)","v":""},{"$f":"IF('1. Order'!AZ131=\"\",\"\",'1. Order'!AZ131)","v":""},{"$f":"IF('1. Order'!BA131=\"\",\"\",'1. Order'!BA131)","v":""},{"$f":"IF('1. Order'!BB131=\"\",\"\",'1. Order'!BB131)","v":""},{"$f":"IF('1. Order'!BD131=\"\",\"\",'1. Order'!BD131)","v":""},{"$f":"IF('1. Order'!BE131=\"\",\"\",'1. Order'!BE131)","v":""},{"$f":"IF('1. Order'!BF131=\"\",\"\",'1. Order'!BF131)","v":""},{"$f":"IF('1. Order'!BG131=\"\",\"\",'1. Order'!BG131)","v":""},{"$f":"IF('1. Order'!BH131=\"\",\"\",'1. Order'!BH131)","v":"ZWO"}]
[{"$f":"IF('1. Order'!F132=\"\",\"\",'1. Order'!F132)","v":{"$error":"#N/A"}},{"$f":"IF('1. Order'!G132=\"\",\"\",'1. Order'!G132)","v":""},{"$f":"IF('1. Order'!H132=\"\",\"\",'1. Order'!H132)","v":""},{"$f":"IF('1. Order'!I132=\"\",\"\",'1. Order'!I132)","v":""},{"$f":"IF('1. Order'!J132=\"\",\"\",'1. Order'!J132)","v":""},{"$f":"IF('1. Order'!K132=\"\",\"\",'1. Order'!K132)","v":""},{"$f":"IF('1. Order'!L132=\"\",\"\",'1. Order'!L132)","v":""},{"$f":"IF('1. Order'!M132=\"\",\"\",'1. Order'!M132)","v":""},{"$f":"IF('1. Order'!N132=\"\",\"\",'1. Order'!N132)","v":""},{"$f":"IF('1. Order'!O132=\"\",\"\",'1. Order'!O132)","v":{"$error":"#N/A"}},{"$f":"IF('1. Order'!P132=\"\",\"\",'1. Order'!P132)","v":{"$error":"#N/A"}},{"$f":"IF('1. Order'!Q132=\"\",\"\",'1. Order'!Q132)","v":""},{"$f":"IF('1. Order'!S132=\"\",\"\",'1. Order'!S132)","v":""},{"$f":"IF('1. Order'!T132=\"\",\"\",'1. Order'!T132)","v":""},{"$f":"IF('1. Order'!W132=\"\",\"\",'1. Order'!W132)","v":""},{"$f":"IF('1. Order'!X132=\"\",\"\",'1. Order'!X132)","v":""},{"$f":"IF('1. Order'!Y132=\"\",\"\",'1. Order'!Y132)","v":"EUR"},{"$f":"IF('1. Order'!Z132=\"\",\"\",'1. Order'!Z132)","v":""},{"$f":"IF('1. Order'!AA132=\"\",\"\",'1. Order'!AA132)","v":""},{"$f":"IF('1. Order'!AB132=\"\",\"\",'1. Order'!AB132)","v":""},null,{"$f":"IF('1. Order'!AT132=\"\",\"\",'1. Order'!AT132)","v":""},{"$f":"IF('1. Order'!AU132=\"\",\"\",'1. Order'!AU132)","v":""},null,null,null,null,null,null,null,{"$f":"IF('1. Order'!AY132=\"\",\"\",'1. Order'!AY132)","v":""},{"$f":"IF('1. Order'!AZ132=\"\",\"\",'1. Order'!AZ132)","v":""},{"$f":"IF('1. Order'!BA132=\"\",\"\",'1. Order'!BA132)","v":""},{"$f":"IF('1. Order'!BB132=\"\",\"\",'1. Order'!BB132)","v":""},{"$f":"IF('1. Order'!BD132=\"\",\"\",'1. Order'!BD132)","v":""},{"$f":"IF('1. Order'!BE132=\"\",\"\",'1. Order'!BE132)","v":""},{"$f":"IF('1. Order'!BF132=\"\",\"\",'1. Order'!BF132)","v":""},{"$f":"IF('1. Order'!BG132=\"\",\"\",'1. Order'!BG132)","v":""},{"$f":"IF('1. Order'!BH132=\"\",\"\",'1. Order'!BH132)","v":"ZWO"}]
[{"$f":"IF('1. Order'!F133=\"\",\"\",'1. Order'!F133)","v":{"$error":"#N/A"}},{"$f":"IF('1. Order'!G133=\"\",\"\",'1. Order'!G133)","v":""},{"$f":"IF('1. Order'!H133=\"\",\"\",'1. Order'!H133)","v":""},{"$f":"IF('1. Order'!I133=\"\",\"\",'1. Order'!I133)","v":""},{"$f":"IF('1. Order'!J133=\"\",\"\",'1. Order'!J133)","v":""},{"$f":"IF('1. Order'!K133=\"\",\"\",'1. Order'!K133)","v":""},{"$f":"IF('1. Order'!L133=\"\",\"\",'1. Order'!L133)","v":""},{"$f":"IF('1. Order'!M133=\"\",\"\",'1. Order'!M133)","v":""},{"$f":"IF('1. Order'!N133=\"\",\"\",'1. Order'!N133)","v":""},{"$f":"IF('1. Order'!O133=\"\",\"\",'1. Order'!O133)","v":{"$error":"#N/A"}},{"$f":"IF('1. Order'!P133=\"\",\"\",'1. Order'!P133)","v":{"$error":"#N/A"}},{"$f":"IF('1. Order'!Q133=\"\",\"\",'1. Order'!Q133)","v":""},{"$f":"IF('1. Order'!S133=\"\",\"\",'1. Order'!S133)","v":""},{"$f":"IF('1. Order'!T133=\"\",\"\",'1. Order'!T133)","v":""},{"$f":"IF('1. Order'!W133=\"\",\"\",'1. Order'!W133)","v":""},{"$f":"IF('1. Order'!X133=\"\",\"\",'1. Order'!X133)","v":""},{"$f":"IF('1. Order'!Y133=\"\",\"\",'1. Order'!Y133)","v":"EUR"},{"$f":"IF('1. Order'!Z133=\"\",\"\",'1. Order'!Z133)","v":""},{"$f":"IF('1. Order'!AA133=\"\",\"\",'1. Order'!AA133)","v":""},{"$f":"IF('1. Order'!AB133=\"\",\"\",'1. Order'!AB133)","v":""},null,{"$f":"IF('1. Order'!AT133=\"\",\"\",'1. Order'!AT133)","v":""},{"$f":"IF('1. Order'!AU133=\"\",\"\",'1. Order'!AU133)","v":""},null,null,null,null,null,null,null,{"$f":"IF('1. Order'!AY133=\"\",\"\",'1. Order'!AY133)","v":""},{"$f":"IF('1. Order'!AZ133=\"\",\"\",'1. Order'!AZ133)","v":""},{"$f":"IF('1. Order'!BA133=\"\",\"\",'1. Order'!BA133)","v":""},{"$f":"IF('1. Order'!BB133=\"\",\"\",'1. Order'!BB133)","v":""},{"$f":"IF('1. Order'!BD133=\"\",\"\",'1. Order'!BD133)","v":""},{"$f":"IF('1. Order'!BE133=\"\",\"\",'1. Order'!BE133)","v":""},{"$f":"IF('1. Order'!BF133=\"\",\"\",'1. Order'!BF133)","v":""},{"$f":"IF('1. Order'!BG133=\"\",\"\",'1. Order'!BG133)","v":""},{"$f":"IF('1. Order'!BH133=\"\",\"\",'1. Order'!BH133)","v":"ZWO"}]
[{"$f":"IF('1. Order'!F134=\"\",\"\",'1. Order'!F134)","v":{"$error":"#N/A"}},{"$f":"IF('1. Order'!G134=\"\",\"\",'1. Order'!G134)","v":""},{"$f":"IF('1. Order'!H134=\"\",\"\",'1. Order'!H134)","v":""},{"$f":"IF('1. Order'!I134=\"\",\"\",'1. Order'!I134)","v":""},{"$f":"IF('1. Order'!J134=\"\",\"\",'1. Order'!J134)","v":""},{"$f":"IF('1. Order'!K134=\"\",\"\",'1. Order'!K134)","v":""},{"$f":"IF('1. Order'!L134=\"\",\"\",'1. Order'!L134)","v":""},{"$f":"IF('1. Order'!M134=\"\",\"\",'1. Order'!M134)","v":""},{"$f":"IF('1. Order'!N134=\"\",\"\",'1. Order'!N134)","v":""},{"$f":"IF('1. Order'!O134=\"\",\"\",'1. Order'!O134)","v":{"$error":"#N/A"}},{"$f":"IF('1. Order'!P134=\"\",\"\",'1. Order'!P134)","v":{"$error":"#N/A"}},{"$f":"IF('1. Order'!Q134=\"\",\"\",'1. Order'!Q134)","v":""},{"$f":"IF('1. Order'!S134=\"\",\"\",'1. Order'!S134)","v":""},{"$f":"IF('1. Order'!T134=\"\",\"\",'1. Order'!T134)","v":""},{"$f":"IF('1. Order'!W134=\"\",\"\",'1. Order'!W134)","v":""},{"$f":"IF('1. Order'!X134=\"\",\"\",'1. Order'!X134)","v":""},{"$f":"IF('1. Order'!Y134=\"\",\"\",'1. Order'!Y134)","v":"EUR"},{"$f":"IF('1. Order'!Z134=\"\",\"\",'1. Order'!Z134)","v":""},{"$f":"IF('1. Order'!AA134=\"\",\"\",'1. Order'!AA134)","v":""},{"$f":"IF('1. Order'!AB134=\"\",\"\",'1. Order'!AB134)","v":""},null,{"$f":"IF('1. Order'!AT134=\"\",\"\",'1. Order'!AT134)","v":""},{"$f":"IF('1. Order'!AU134=\"\",\"\",'1. Order'!AU134)","v":""},null,null,null,null,null,null,null,{"$f":"IF('1. Order'!AY134=\"\",\"\",'1. Order'!AY134)","v":""},{"$f":"IF('1. Order'!AZ134=\"\",\"\",'1. Order'!AZ134)","v":""},{"$f":"IF('1. Order'!BA134=\"\",\"\",'1. Order'!BA134)","v":""},{"$f":"IF('1. Order'!BB134=\"\",\"\",'1. Order'!BB134)","v":""},{"$f":"IF('1. Order'!BD134=\"\",\"\",'1. Order'!BD134)","v":""},{"$f":"IF('1. Order'!BE134=\"\",\"\",'1. Order'!BE134)","v":""},{"$f":"IF('1. Order'!BF134=\"\",\"\",'1. Order'!BF134)","v":""},{"$f":"IF('1. Order'!BG134=\"\",\"\",'1. Order'!BG134)","v":""},{"$f":"IF('1. Order'!BH134=\"\",\"\",'1. Order'!BH134)","v":"ZWO"}]
[{"$f":"IF('1. Order'!F135=\"\",\"\",'1. Order'!F135)","v":{"$error":"#N/A"}},{"$f":"IF('1. Order'!G135=\"\",\"\",'1. Order'!G135)","v":""},{"$f":"IF('1. Order'!H135=\"\",\"\",'1. Order'!H135)","v":""},{"$f":"IF('1. Order'!I135=\"\",\"\",'1. Order'!I135)","v":""},{"$f":"IF('1. Order'!J135=\"\",\"\",'1. Order'!J135)","v":""},{"$f":"IF('1. Order'!K135=\"\",\"\",'1. Order'!K135)","v":""},{"$f":"IF('1. Order'!L135=\"\",\"\",'1. Order'!L135)","v":""},{"$f":"IF('1. Order'!M135=\"\",\"\",'1. Order'!M135)","v":""},{"$f":"IF('1. Order'!N135=\"\",\"\",'1. Order'!N135)","v":""},{"$f":"IF('1. Order'!O135=\"\",\"\",'1. Order'!O135)","v":{"$error":"#N/A"}},{"$f":"IF('1. Order'!P135=\"\",\"\",'1. Order'!P135)","v":{"$error":"#N/A"}},{"$f":"IF('1. Order'!Q135=\"\",\"\",'1. Order'!Q135)","v":""},{"$f":"IF('1. Order'!S135=\"\",\"\",'1. Order'!S135)","v":""},{"$f":"IF('1. Order'!T135=\"\",\"\",'1. Order'!T135)","v":""},{"$f":"IF('1. Order'!W135=\"\",\"\",'1. Order'!W135)","v":""},{"$f":"IF('1. Order'!X135=\"\",\"\",'1. Order'!X135)","v":""},{"$f":"IF('1. Order'!Y135=\"\",\"\",'1. Order'!Y135)","v":"EUR"},{"$f":"IF('1. Order'!Z135=\"\",\"\",'1. Order'!Z135)","v":""},{"$f":"IF('1. Order'!AA135=\"\",\"\",'1. Order'!AA135)","v":""},{"$f":"IF('1. Order'!AB135=\"\",\"\",'1. Order'!AB135)","v":""},null,{"$f":"IF('1. Order'!AT135=\"\",\"\",'1. Order'!AT135)","v":""},{"$f":"IF('1. Order'!AU135=\"\",\"\",'1. Order'!AU135)","v":""},null,null,null,null,null,null,null,{"$f":"IF('1. Order'!AY135=\"\",\"\",'1. Order'!AY135)","v":""},{"$f":"IF('1. Order'!AZ135=\"\",\"\",'1. Order'!AZ135)","v":""},{"$f":"IF('1. Order'!BA135=\"\",\"\",'1. Order'!BA135)","v":""},{"$f":"IF('1. Order'!BB135=\"\",\"\",'1. Order'!BB135)","v":""},{"$f":"IF('1. Order'!BD135=\"\",\"\",'1. Order'!BD135)","v":""},{"$f":"IF('1. Order'!BE135=\"\",\"\",'1. Order'!BE135)","v":""},{"$f":"IF('1. Order'!BF135=\"\",\"\",'1. Order'!BF135)","v":""},{"$f":"IF('1. Order'!BG135=\"\",\"\",'1. Order'!BG135)","v":""},{"$f":"IF('1. Order'!BH135=\"\",\"\",'1. Order'!BH135)","v":"ZWO"}]
[{"$f":"IF('1. Order'!F136=\"\",\"\",'1. Order'!F136)","v":{"$error":"#N/A"}},{"$f":"IF('1. Order'!G136=\"\",\"\",'1. Order'!G136)","v":""},{"$f":"IF('1. Order'!H136=\"\",\"\",'1. Order'!H136)","v":""},{"$f":"IF('1. Order'!I136=\"\",\"\",'1. Order'!I136)","v":""},{"$f":"IF('1. Order'!J136=\"\",\"\",'1. Order'!J136)","v":""},{"$f":"IF('1. Order'!K136=\"\",\"\",'1. Order'!K136)","v":""},{"$f":"IF('1. Order'!L136=\"\",\"\",'1. Order'!L136)","v":""},{"$f":"IF('1. Order'!M136=\"\",\"\",'1. Order'!M136)","v":""},{"$f":"IF('1. Order'!N136=\"\",\"\",'1. Order'!N136)","v":""},{"$f":"IF('1. Order'!O136=\"\",\"\",'1. Order'!O136)","v":{"$error":"#N/A"}},{"$f":"IF('1. Order'!P136=\"\",\"\",'1. Order'!P136)","v":{"$error":"#N/A"}},{"$f":"IF('1. Order'!Q136=\"\",\"\",'1. Order'!Q136)","v":""},{"$f":"IF('1. Order'!S136=\"\",\"\",'1. Order'!S136)","v":""},{"$f":"IF('1. Order'!T136=\"\",\"\",'1. Order'!T136)","v":""},{"$f":"IF('1. Order'!W136=\"\",\"\",'1. Order'!W136)","v":""},{"$f":"IF('1. Order'!X136=\"\",\"\",'1. Order'!X136)","v":""},{"$f":"IF('1. Order'!Y136=\"\",\"\",'1. Order'!Y136)","v":"EUR"},{"$f":"IF('1. Order'!Z136=\"\",\"\",'1. Order'!Z136)","v":""},{"$f":"IF('1. Order'!AA136=\"\",\"\",'1. Order'!AA136)","v":""},{"$f":"IF('1. Order'!AB136=\"\",\"\",'1. Order'!AB136)","v":""},null,{"$f":"IF('1. Order'!AT136=\"\",\"\",'1. Order'!AT136)","v":""},{"$f":"IF('1. Order'!AU136=\"\",\"\",'1. Order'!AU136)","v":""},null,null,null,null,null,null,null,{"$f":"IF('1. Order'!AY136=\"\",\"\",'1. Order'!AY136)","v":""},{"$f":"IF('1. Order'!AZ136=\"\",\"\",'1. Order'!AZ136)","v":""},{"$f":"IF('1. Order'!BA136=\"\",\"\",'1. Order'!BA136)","v":""},{"$f":"IF('1. Order'!BB136=\"\",\"\",'1. Order'!BB136)","v":""},{"$f":"IF('1. Order'!BD136=\"\",\"\",'1. Order'!BD136)","v":""},{"$f":"IF('1. Order'!BE136=\"\",\"\",'1. Order'!BE136)","v":""},{"$f":"IF('1. Order'!BF136=\"\",\"\",'1. Order'!BF136)","v":""},{"$f":"IF('1. Order'!BG136=\"\",\"\",'1. Order'!BG136)","v":""},{"$f":"IF('1. Order'!BH136=\"\",\"\",'1. Order'!BH136)","v":"ZWO"}]
[{"$f":"IF('1. Order'!F137=\"\",\"\",'1. Order'!F137)","v":{"$error":"#N/A"}},{"$f":"IF('1. Order'!G137=\"\",\"\",'1. Order'!G137)","v":""},{"$f":"IF('1. Order'!H137=\"\",\"\",'1. Order'!H137)","v":""},{"$f":"IF('1. Order'!I137=\"\",\"\",'1. Order'!I137)","v":""},{"$f":"IF('1. Order'!J137=\"\",\"\",'1. Order'!J137)","v":""},{"$f":"IF('1. Order'!K137=\"\",\"\",'1. Order'!K137)","v":""},{"$f":"IF('1. Order'!L137=\"\",\"\",'1. Order'!L137)","v":""},{"$f":"IF('1. Order'!M137=\"\",\"\",'1. Order'!M137)","v":""},{"$f":"IF('1. Order'!N137=\"\",\"\",'1. Order'!N137)","v":""},{"$f":"IF('1. Order'!O137=\"\",\"\",'1. Order'!O137)","v":{"$error":"#N/A"}},{"$f":"IF('1. Order'!P137=\"\",\"\",'1. Order'!P137)","v":{"$error":"#N/A"}},{"$f":"IF('1. Order'!Q137=\"\",\"\",'1. Order'!Q137)","v":""},{"$f":"IF('1. Order'!S137=\"\",\"\",'1. Order'!S137)","v":""},{"$f":"IF('1. Order'!T137=\"\",\"\",'1. Order'!T137)","v":""},{"$f":"IF('1. Order'!W137=\"\",\"\",'1. Order'!W137)","v":""},{"$f":"IF('1. Order'!X137=\"\",\"\",'1. Order'!X137)","v":""},{"$f":"IF('1. Order'!Y137=\"\",\"\",'1. Order'!Y137)","v":"EUR"},{"$f":"IF('1. Order'!Z137=\"\",\"\",'1. Order'!Z137)","v":""},{"$f":"IF('1. Order'!AA137=\"\",\"\",'1. Order'!AA137)","v":""},{"$f":"IF('1. Order'!AB137=\"\",\"\",'1. Order'!AB137)","v":""},null,{"$f":"IF('1. Order'!AT137=\"\",\"\",'1. Order'!AT137)","v":""},{"$f":"IF('1. Order'!AU137=\"\",\"\",'1. Order'!AU137)","v":""},null,null,null,null,null,null,null,{"$f":"IF('1. Order'!AY137=\"\",\"\",'1. Order'!AY137)","v":""},{"$f":"IF('1. Order'!AZ137=\"\",\"\",'1. Order'!AZ137)","v":""},{"$f":"IF('1. Order'!BA137=\"\",\"\",'1. Order'!BA137)","v":""},{"$f":"IF('1. Order'!BB137=\"\",\"\",'1. Order'!BB137)","v":""},{"$f":"IF('1. Order'!BD137=\"\",\"\",'1. Order'!BD137)","v":""},{"$f":"IF('1. Order'!BE137=\"\",\"\",'1. Order'!BE137)","v":""},{"$f":"IF('1. Order'!BF137=\"\",\"\",'1. Order'!BF137)","v":""},{"$f":"IF('1. Order'!BG137=\"\",\"\",'1. Order'!BG137)","v":""},{"$f":"IF('1. Order'!BH137=\"\",\"\",'1. Order'!BH137)","v":"ZWO"}]
[{"$f":"IF('1. Order'!F138=\"\",\"\",'1. Order'!F138)","v":{"$error":"#N/A"}},{"$f":"IF('1. Order'!G138=\"\",\"\",'1. Order'!G138)","v":""},{"$f":"IF('1. Order'!H138=\"\",\"\",'1. Order'!H138)","v":""},{"$f":"IF('1. Order'!I138=\"\",\"\",'1. Order'!I138)","v":""},{"$f":"IF('1. Order'!J138=\"\",\"\",'1. Order'!J138)","v":""},{"$f":"IF('1. Order'!K138=\"\",\"\",'1. Order'!K138)","v":""},{"$f":"IF('1. Order'!L138=\"\",\"\",'1. Order'!L138)","v":""},{"$f":"IF('1. Order'!M138=\"\",\"\",'1. Order'!M138)","v":""},{"$f":"IF('1. Order'!N138=\"\",\"\",'1. Order'!N138)","v":""},{"$f":"IF('1. Order'!O138=\"\",\"\",'1. Order'!O138)","v":{"$error":"#N/A"}},{"$f":"IF('1. Order'!P138=\"\",\"\",'1. Order'!P138)","v":{"$error":"#N/A"}},{"$f":"IF('1. Order'!Q138=\"\",\"\",'1. Order'!Q138)","v":""},{"$f":"IF('1. Order'!S138=\"\",\"\",'1. Order'!S138)","v":""},{"$f":"IF('1. Order'!T138=\"\",\"\",'1. Order'!T138)","v":""},{"$f":"IF('1. Order'!W138=\"\",\"\",'1. Order'!W138)","v":""},{"$f":"IF('1. Order'!X138=\"\",\"\",'1. Order'!X138)","v":""},{"$f":"IF('1. Order'!Y138=\"\",\"\",'1. Order'!Y138)","v":"EUR"},{"$f":"IF('1. Order'!Z138=\"\",\"\",'1. Order'!Z138)","v":""},{"$f":"IF('1. Order'!AA138=\"\",\"\",'1. Order'!AA138)","v":""},{"$f":"IF('1. Order'!AB138=\"\",\"\",'1. Order'!AB138)","v":""},null,{"$f":"IF('1. Order'!AT138=\"\",\"\",'1. Order'!AT138)","v":""},{"$f":"IF('1. Order'!AU138=\"\",\"\",'1. Order'!AU138)","v":""},null,null,null,null,null,null,null,{"$f":"IF('1. Order'!AY138=\"\",\"\",'1. Order'!AY138)","v":""},{"$f":"IF('1. Order'!AZ138=\"\",\"\",'1. Order'!AZ138)","v":""},{"$f":"IF('1. Order'!BA138=\"\",\"\",'1. Order'!BA138)","v":""},{"$f":"IF('1. Order'!BB138=\"\",\"\",'1. Order'!BB138)","v":""},{"$f":"IF('1. Order'!BD138=\"\",\"\",'1. Order'!BD138)","v":""},{"$f":"IF('1. Order'!BE138=\"\",\"\",'1. Order'!BE138)","v":""},{"$f":"IF('1. Order'!BF138=\"\",\"\",'1. Order'!BF138)","v":""},{"$f":"IF('1. Order'!BG138=\"\",\"\",'1. Order'!BG138)","v":""},{"$f":"IF('1. Order'!BH138=\"\",\"\",'1. Order'!BH138)","v":"ZWO"}]
[{"$f":"IF('1. Order'!F139=\"\",\"\",'1. Order'!F139)","v":{"$error":"#N/A"}},{"$f":"IF('1. Order'!G139=\"\",\"\",'1. Order'!G139)","v":""},{"$f":"IF('1. Order'!H139=\"\",\"\",'1. Order'!H139)","v":""},{"$f":"IF('1. Order'!I139=\"\",\"\",'1. Order'!I139)","v":""},{"$f":"IF('1. Order'!J139=\"\",\"\",'1. Order'!J139)","v":""},{"$f":"IF('1. Order'!K139=\"\",\"\",'1. Order'!K139)","v":""},{"$f":"IF('1. Order'!L139=\"\",\"\",'1. Order'!L139)","v":""},{"$f":"IF('1. Order'!M139=\"\",\"\",'1. Order'!M139)","v":""},{"$f":"IF('1. Order'!N139=\"\",\"\",'1. Order'!N139)","v":""},{"$f":"IF('1. Order'!O139=\"\",\"\",'1. Order'!O139)","v":{"$error":"#N/A"}},{"$f":"IF('1. Order'!P139=\"\",\"\",'1. Order'!P139)","v":{"$error":"#N/A"}},{"$f":"IF('1. Order'!Q139=\"\",\"\",'1. Order'!Q139)","v":""},{"$f":"IF('1. Order'!S139=\"\",\"\",'1. Order'!S139)","v":""},{"$f":"IF('1. Order'!T139=\"\",\"\",'1. Order'!T139)","v":""},{"$f":"IF('1. Order'!W139=\"\",\"\",'1. Order'!W139)","v":""},{"$f":"IF('1. Order'!X139=\"\",\"\",'1. Order'!X139)","v":""},{"$f":"IF('1. Order'!Y139=\"\",\"\",'1. Order'!Y139)","v":"EUR"},{"$f":"IF('1. Order'!Z139=\"\",\"\",'1. Order'!Z139)","v":""},{"$f":"IF('1. Order'!AA139=\"\",\"\",'1. Order'!AA139)","v":""},{"$f":"IF('1. Order'!AB139=\"\",\"\",'1. Order'!AB139)","v":""},null,{"$f":"IF('1. Order'!AT139=\"\",\"\",'1. Order'!AT139)","v":""},{"$f":"IF('1. Order'!AU139=\"\",\"\",'1. Order'!AU139)","v":""},null,null,null,null,null,null,null,{"$f":"IF('1. Order'!AY139=\"\",\"\",'1. Order'!AY139)","v":""},{"$f":"IF('1. Order'!AZ139=\"\",\"\",'1. Order'!AZ139)","v":""},{"$f":"IF('1. Order'!BA139=\"\",\"\",'1. Order'!BA139)","v":""},{"$f":"IF('1. Order'!BB139=\"\",\"\",'1. Order'!BB139)","v":""},{"$f":"IF('1. Order'!BD139=\"\",\"\",'1. Order'!BD139)","v":""},{"$f":"IF('1. Order'!BE139=\"\",\"\",'1. Order'!BE139)","v":""},{"$f":"IF('1. Order'!BF139=\"\",\"\",'1. Order'!BF139)","v":""},{"$f":"IF('1. Order'!BG139=\"\",\"\",'1. Order'!BG139)","v":""},{"$f":"IF('1. Order'!BH139=\"\",\"\",'1. Order'!BH139)","v":"ZWO"}]
[{"$f":"IF('1. Order'!F140=\"\",\"\",'1. Order'!F140)","v":{"$error":"#N/A"}},{"$f":"IF('1. Order'!G140=\"\",\"\",'1. Order'!G140)","v":""},{"$f":"IF('1. Order'!H140=\"\",\"\",'1. Order'!H140)","v":""},{"$f":"IF('1. Order'!I140=\"\",\"\",'1. Order'!I140)","v":""},{"$f":"IF('1. Order'!J140=\"\",\"\",'1. Order'!J140)","v":""},{"$f":"IF('1. Order'!K140=\"\",\"\",'1. Order'!K140)","v":""},{"$f":"IF('1. Order'!L140=\"\",\"\",'1. Order'!L140)","v":""},{"$f":"IF('1. Order'!M140=\"\",\"\",'1. Order'!M140)","v":""},{"$f":"IF('1. Order'!N140=\"\",\"\",'1. Order'!N140)","v":""},{"$f":"IF('1. Order'!O140=\"\",\"\",'1. Order'!O140)","v":{"$error":"#N/A"}},{"$f":"IF('1. Order'!P140=\"\",\"\",'1. Order'!P140)","v":{"$error":"#N/A"}},{"$f":"IF('1. Order'!Q140=\"\",\"\",'1. Order'!Q140)","v":""},{"$f":"IF('1. Order'!S140=\"\",\"\",'1. Order'!S140)","v":""},{"$f":"IF('1. Order'!T140=\"\",\"\",'1. Order'!T140)","v":""},{"$f":"IF('1. Order'!W140=\"\",\"\",'1. Order'!W140)","v":""},{"$f":"IF('1. Order'!X140=\"\",\"\",'1. Order'!X140)","v":""},{"$f":"IF('1. Order'!Y140=\"\",\"\",'1. Order'!Y140)","v":"EUR"},{"$f":"IF('1. Order'!Z140=\"\",\"\",'1. Order'!Z140)","v":""},{"$f":"IF('1. Order'!AA140=\"\",\"\",'1. Order'!AA140)","v":""},{"$f":"IF('1. Order'!AB140=\"\",\"\",'1. Order'!AB140)","v":""},null,{"$f":"IF('1. Order'!AT140=\"\",\"\",'1. Order'!AT140)","v":""},{"$f":"IF('1. Order'!AU140=\"\",\"\",'1. Order'!AU140)","v":""},null,null,null,null,null,null,null,{"$f":"IF('1. Order'!AY140=\"\",\"\",'1. Order'!AY140)","v":""},{"$f":"IF('1. Order'!AZ140=\"\",\"\",'1. Order'!AZ140)","v":""},{"$f":"IF('1. Order'!BA140=\"\",\"\",'1. Order'!BA140)","v":""},{"$f":"IF('1. Order'!BB140=\"\",\"\",'1. Order'!BB140)","v":""},{"$f":"IF('1. Order'!BD140=\"\",\"\",'1. Order'!BD140)","v":""},{"$f":"IF('1. Order'!BE140=\"\",\"\",'1. Order'!BE140)","v":""},{"$f":"IF('1. Order'!BF140=\"\",\"\",'1. Order'!BF140)","v":""},{"$f":"IF('1. Order'!BG140=\"\",\"\",'1. Order'!BG140)","v":""},{"$f":"IF('1. Order'!BH140=\"\",\"\",'1. Order'!BH140)","v":"ZWO"}]
[{"$f":"IF('1. Order'!F141=\"\",\"\",'1. Order'!F141)","v":{"$error":"#N/A"}},{"$f":"IF('1. Order'!G141=\"\",\"\",'1. Order'!G141)","v":""},{"$f":"IF('1. Order'!H141=\"\",\"\",'1. Order'!H141)","v":""},{"$f":"IF('1. Order'!I141=\"\",\"\",'1. Order'!I141)","v":""},{"$f":"IF('1. Order'!J141=\"\",\"\",'1. Order'!J141)","v":""},{"$f":"IF('1. Order'!K141=\"\",\"\",'1. Order'!K141)","v":""},{"$f":"IF('1. Order'!L141=\"\",\"\",'1. Order'!L141)","v":""},{"$f":"IF('1. Order'!M141=\"\",\"\",'1. Order'!M141)","v":""},{"$f":"IF('1. Order'!N141=\"\",\"\",'1. Order'!N141)","v":""},{"$f":"IF('1. Order'!O141=\"\",\"\",'1. Order'!O141)","v":{"$error":"#N/A"}},{"$f":"IF('1. Order'!P141=\"\",\"\",'1. Order'!P141)","v":{"$error":"#N/A"}},{"$f":"IF('1. Order'!Q141=\"\",\"\",'1. Order'!Q141)","v":""},{"$f":"IF('1. Order'!S141=\"\",\"\",'1. Order'!S141)","v":""},{"$f":"IF('1. Order'!T141=\"\",\"\",'1. Order'!T141)","v":""},{"$f":"IF('1. Order'!W141=\"\",\"\",'1. Order'!W141)","v":""},{"$f":"IF('1. Order'!X141=\"\",\"\",'1. Order'!X141)","v":""},{"$f":"IF('1. Order'!Y141=\"\",\"\",'1. Order'!Y141)","v":"EUR"},{"$f":"IF('1. Order'!Z141=\"\",\"\",'1. Order'!Z141)","v":""},{"$f":"IF('1. Order'!AA141=\"\",\"\",'1. Order'!AA141)","v":""},{"$f":"IF('1. Order'!AB141=\"\",\"\",'1. Order'!AB141)","v":""},null,{"$f":"IF('1. Order'!AT141=\"\",\"\",'1. Order'!AT141)","v":""},{"$f":"IF('1. Order'!AU141=\"\",\"\",'1. Order'!AU141)","v":""},null,null,null,null,null,null,null,{"$f":"IF('1. Order'!AY141=\"\",\"\",'1. Order'!AY141)","v":""},{"$f":"IF('1. Order'!AZ141=\"\",\"\",'1. Order'!AZ141)","v":""},{"$f":"IF('1. Order'!BA141=\"\",\"\",'1. Order'!BA141)","v":""},{"$f":"IF('1. Order'!BB141=\"\",\"\",'1. Order'!BB141)","v":""},{"$f":"IF('1. Order'!BD141=\"\",\"\",'1. Order'!BD141)","v":""},{"$f":"IF('1. Order'!BE141=\"\",\"\",'1. Order'!BE141)","v":""},{"$f":"IF('1. Order'!BF141=\"\",\"\",'1. Order'!BF141)","v":""},{"$f":"IF('1. Order'!BG141=\"\",\"\",'1. Order'!BG141)","v":""},{"$f":"IF('1. Order'!BH141=\"\",\"\",'1. Order'!BH141)","v":"ZWO"}]
[{"$f":"IF('1. Order'!F142=\"\",\"\",'1. Order'!F142)","v":{"$error":"#N/A"}},{"$f":"IF('1. Order'!G142=\"\",\"\",'1. Order'!G142)","v":""},{"$f":"IF('1. Order'!H142=\"\",\"\",'1. Order'!H142)","v":""},{"$f":"IF('1. Order'!I142=\"\",\"\",'1. Order'!I142)","v":""},{"$f":"IF('1. Order'!J142=\"\",\"\",'1. Order'!J142)","v":""},{"$f":"IF('1. Order'!K142=\"\",\"\",'1. Order'!K142)","v":""},{"$f":"IF('1. Order'!L142=\"\",\"\",'1. Order'!L142)","v":""},{"$f":"IF('1. Order'!M142=\"\",\"\",'1. Order'!M142)","v":""},{"$f":"IF('1. Order'!N142=\"\",\"\",'1. Order'!N142)","v":""},{"$f":"IF('1. Order'!O142=\"\",\"\",'1. Order'!O142)","v":{"$error":"#N/A"}},{"$f":"IF('1. Order'!P142=\"\",\"\",'1. Order'!P142)","v":{"$error":"#N/A"}},{"$f":"IF('1. Order'!Q142=\"\",\"\",'1. Order'!Q142)","v":""},{"$f":"IF('1. Order'!S142=\"\",\"\",'1. Order'!S142)","v":""},{"$f":"IF('1. Order'!T142=\"\",\"\",'1. Order'!T142)","v":""},{"$f":"IF('1. Order'!W142=\"\",\"\",'1. Order'!W142)","v":""},{"$f":"IF('1. Order'!X142=\"\",\"\",'1. Order'!X142)","v":""},{"$f":"IF('1. Order'!Y142=\"\",\"\",'1. Order'!Y142)","v":"EUR"},{"$f":"IF('1. Order'!Z142=\"\",\"\",'1. Order'!Z142)","v":""},{"$f":"IF('1. Order'!AA142=\"\",\"\",'1. Order'!AA142)","v":""},{"$f":"IF('1. Order'!AB142=\"\",\"\",'1. Order'!AB142)","v":""},null,{"$f":"IF('1. Order'!AT142=\"\",\"\",'1. Order'!AT142)","v":""},{"$f":"IF('1. Order'!AU142=\"\",\"\",'1. Order'!AU142)","v":""},null,null,null,null,null,null,null,{"$f":"IF('1. Order'!AY142=\"\",\"\",'1. Order'!AY142)","v":""},{"$f":"IF('1. Order'!AZ142=\"\",\"\",'1. Order'!AZ142)","v":""},{"$f":"IF('1. Order'!BA142=\"\",\"\",'1. Order'!BA142)","v":""},{"$f":"IF('1. Order'!BB142=\"\",\"\",'1. Order'!BB142)","v":""},{"$f":"IF('1. Order'!BD142=\"\",\"\",'1. Order'!BD142)","v":""},{"$f":"IF('1. Order'!BE142=\"\",\"\",'1. Order'!BE142)","v":""},{"$f":"IF('1. Order'!BF142=\"\",\"\",'1. Order'!BF142)","v":""},{"$f":"IF('1. Order'!BG142=\"\",\"\",'1. Order'!BG142)","v":""},{"$f":"IF('1. Order'!BH142=\"\",\"\",'1. Order'!BH142)","v":"ZWO"}]
[{"$f":"IF('1. Order'!F143=\"\",\"\",'1. Order'!F143)","v":{"$error":"#N/A"}},{"$f":"IF('1. Order'!G143=\"\",\"\",'1. Order'!G143)","v":""},{"$f":"IF('1. Order'!H143=\"\",\"\",'1. Order'!H143)","v":""},{"$f":"IF('1. Order'!I143=\"\",\"\",'1. Order'!I143)","v":""},{"$f":"IF('1. Order'!J143=\"\",\"\",'1. Order'!J143)","v":""},{"$f":"IF('1. Order'!K143=\"\",\"\",'1. Order'!K143)","v":""},{"$f":"IF('1. Order'!L143=\"\",\"\",'1. Order'!L143)","v":""},{"$f":"IF('1. Order'!M143=\"\",\"\",'1. Order'!M143)","v":""},{"$f":"IF('1. Order'!N143=\"\",\"\",'1. Order'!N143)","v":""},{"$f":"IF('1. Order'!O143=\"\",\"\",'1. Order'!O143)","v":{"$error":"#N/A"}},{"$f":"IF('1. Order'!P143=\"\",\"\",'1. Order'!P143)","v":{"$error":"#N/A"}},{"$f":"IF('1. Order'!Q143=\"\",\"\",'1. Order'!Q143)","v":""},{"$f":"IF('1. Order'!S143=\"\",\"\",'1. Order'!S143)","v":""},{"$f":"IF('1. Order'!T143=\"\",\"\",'1. Order'!T143)","v":""},{"$f":"IF('1. Order'!W143=\"\",\"\",'1. Order'!W143)","v":""},{"$f":"IF('1. Order'!X143=\"\",\"\",'1. Order'!X143)","v":""},{"$f":"IF('1. Order'!Y143=\"\",\"\",'1. Order'!Y143)","v":"EUR"},{"$f":"IF('1. Order'!Z143=\"\",\"\",'1. Order'!Z143)","v":""},{"$f":"IF('1. Order'!AA143=\"\",\"\",'1. Order'!AA143)","v":""},{"$f":"IF('1. Order'!AB143=\"\",\"\",'1. Order'!AB143)","v":""},null,{"$f":"IF('1. Order'!AT143=\"\",\"\",'1. Order'!AT143)","v":""},{"$f":"IF('1. Order'!AU143=\"\",\"\",'1. Order'!AU143)","v":""},null,null,null,null,null,null,null,{"$f":"IF('1. Order'!AY143=\"\",\"\",'1. Order'!AY143)","v":""},{"$f":"IF('1. Order'!AZ143=\"\",\"\",'1. Order'!AZ143)","v":""},{"$f":"IF('1. Order'!BA143=\"\",\"\",'1. Order'!BA143)","v":""},{"$f":"IF('1. Order'!BB143=\"\",\"\",'1. Order'!BB143)","v":""},{"$f":"IF('1. Order'!BD143=\"\",\"\",'1. Order'!BD143)","v":""},{"$f":"IF('1. Order'!BE143=\"\",\"\",'1. Order'!BE143)","v":""},{"$f":"IF('1. Order'!BF143=\"\",\"\",'1. Order'!BF143)","v":""},{"$f":"IF('1. Order'!BG143=\"\",\"\",'1. Order'!BG143)","v":""},{"$f":"IF('1. Order'!BH143=\"\",\"\",'1. Order'!BH143)","v":"ZWO"}]
[{"$f":"IF('1. Order'!F144=\"\",\"\",'1. Order'!F144)","v":{"$error":"#N/A"}},{"$f":"IF('1. Order'!G144=\"\",\"\",'1. Order'!G144)","v":""},{"$f":"IF('1. Order'!H144=\"\",\"\",'1. Order'!H144)","v":""},{"$f":"IF('1. Order'!I144=\"\",\"\",'1. Order'!I144)","v":""},{"$f":"IF('1. Order'!J144=\"\",\"\",'1. Order'!J144)","v":""},{"$f":"IF('1. Order'!K144=\"\",\"\",'1. Order'!K144)","v":""},{"$f":"IF('1. Order'!L144=\"\",\"\",'1. Order'!L144)","v":""},{"$f":"IF('1. Order'!M144=\"\",\"\",'1. Order'!M144)","v":""},{"$f":"IF('1. Order'!N144=\"\",\"\",'1. Order'!N144)","v":""},{"$f":"IF('1. Order'!O144=\"\",\"\",'1. Order'!O144)","v":{"$error":"#N/A"}},{"$f":"IF('1. Order'!P144=\"\",\"\",'1. Order'!P144)","v":{"$error":"#N/A"}},{"$f":"IF('1. Order'!Q144=\"\",\"\",'1. Order'!Q144)","v":""},{"$f":"IF('1. Order'!S144=\"\",\"\",'1. Order'!S144)","v":""},{"$f":"IF('1. Order'!T144=\"\",\"\",'1. Order'!T144)","v":""},{"$f":"IF('1. Order'!W144=\"\",\"\",'1. Order'!W144)","v":""},{"$f":"IF('1. Order'!X144=\"\",\"\",'1. Order'!X144)","v":""},{"$f":"IF('1. Order'!Y144=\"\",\"\",'1. Order'!Y144)","v":"EUR"},{"$f":"IF('1. Order'!Z144=\"\",\"\",'1. Order'!Z144)","v":""},{"$f":"IF('1. Order'!AA144=\"\",\"\",'1. Order'!AA144)","v":""},{"$f":"IF('1. Order'!AB144=\"\",\"\",'1. Order'!AB144)","v":""},null,{"$f":"IF('1. Order'!AT144=\"\",\"\",'1. Order'!AT144)","v":""},{"$f":"IF('1. Order'!AU144=\"\",\"\",'1. Order'!AU144)","v":""},null,null,null,null,null,null,null,{"$f":"IF('1. Order'!AY144=\"\",\"\",'1. Order'!AY144)","v":""},{"$f":"IF('1. Order'!AZ144=\"\",\"\",'1. Order'!AZ144)","v":""},{"$f":"IF('1. Order'!BA144=\"\",\"\",'1. Order'!BA144)","v":""},{"$f":"IF('1. Order'!BB144=\"\",\"\",'1. Order'!BB144)","v":""},{"$f":"IF('1. Order'!BD144=\"\",\"\",'1. Order'!BD144)","v":""},{"$f":"IF('1. Order'!BE144=\"\",\"\",'1. Order'!BE144)","v":""},{"$f":"IF('1. Order'!BF144=\"\",\"\",'1. Order'!BF144)","v":""},{"$f":"IF('1. Order'!BG144=\"\",\"\",'1. Order'!BG144)","v":""},{"$f":"IF('1. Order'!BH144=\"\",\"\",'1. Order'!BH144)","v":"ZWO"}]
[{"$f":"IF('1. Order'!F145=\"\",\"\",'1. Order'!F145)","v":{"$error":"#N/A"}},{"$f":"IF('1. Order'!G145=\"\",\"\",'1. Order'!G145)","v":""},{"$f":"IF('1. Order'!H145=\"\",\"\",'1. Order'!H145)","v":""},{"$f":"IF('1. Order'!I145=\"\",\"\",'1. Order'!I145)","v":""},{"$f":"IF('1. Order'!J145=\"\",\"\",'1. Order'!J145)","v":""},{"$f":"IF('1. Order'!K145=\"\",\"\",'1. Order'!K145)","v":""},{"$f":"IF('1. Order'!L145=\"\",\"\",'1. Order'!L145)","v":""},{"$f":"IF('1. Order'!M145=\"\",\"\",'1. Order'!M145)","v":""},{"$f":"IF('1. Order'!N145=\"\",\"\",'1. Order'!N145)","v":""},{"$f":"IF('1. Order'!O145=\"\",\"\",'1. Order'!O145)","v":{"$error":"#N/A"}},{"$f":"IF('1. Order'!P145=\"\",\"\",'1. Order'!P145)","v":{"$error":"#N/A"}},{"$f":"IF('1. Order'!Q145=\"\",\"\",'1. Order'!Q145)","v":""},{"$f":"IF('1. Order'!S145=\"\",\"\",'1. Order'!S145)","v":""},{"$f":"IF('1. Order'!T145=\"\",\"\",'1. Order'!T145)","v":""},{"$f":"IF('1. Order'!W145=\"\",\"\",'1. Order'!W145)","v":""},{"$f":"IF('1. Order'!X145=\"\",\"\",'1. Order'!X145)","v":""},{"$f":"IF('1. Order'!Y145=\"\",\"\",'1. Order'!Y145)","v":"EUR"},{"$f":"IF('1. Order'!Z145=\"\",\"\",'1. Order'!Z145)","v":""},{"$f":"IF('1. Order'!AA145=\"\",\"\",'1. Order'!AA145)","v":""},{"$f":"IF('1. Order'!AB145=\"\",\"\",'1. Order'!AB145)","v":""},null,{"$f":"IF('1. Order'!AT145=\"\",\"\",'1. Order'!AT145)","v":""},{"$f":"IF('1. Order'!AU145=\"\",\"\",'1. Order'!AU145)","v":""},null,null,null,null,null,null,null,{"$f":"IF('1. Order'!AY145=\"\",\"\",'1. Order'!AY145)","v":""},{"$f":"IF('1. Order'!AZ145=\"\",\"\",'1. Order'!AZ145)","v":""},{"$f":"IF('1. Order'!BA145=\"\",\"\",'1. Order'!BA145)","v":""},{"$f":"IF('1. Order'!BB145=\"\",\"\",'1. Order'!BB145)","v":""},{"$f":"IF('1. Order'!BD145=\"\",\"\",'1. Order'!BD145)","v":""},{"$f":"IF('1. Order'!BE145=\"\",\"\",'1. Order'!BE145)","v":""},{"$f":"IF('1. Order'!BF145=\"\",\"\",'1. Order'!BF145)","v":""},{"$f":"IF('1. Order'!BG145=\"\",\"\",'1. Order'!BG145)","v":""},{"$f":"IF('1. Order'!BH145=\"\",\"\",'1. Order'!BH145)","v":"ZWO"}]
[{"$f":"IF('1. Order'!F146=\"\",\"\",'1. Order'!F146)","v":{"$error":"#N/A"}},{"$f":"IF('1. Order'!G146=\"\",\"\",'1. Order'!G146)","v":""},{"$f":"IF('1. Order'!H146=\"\",\"\",'1. Order'!H146)","v":""},{"$f":"IF('1. Order'!I146=\"\",\"\",'1. Order'!I146)","v":""},{"$f":"IF('1. Order'!J146=\"\",\"\",'1. Order'!J146)","v":""},{"$f":"IF('1. Order'!K146=\"\",\"\",'1. Order'!K146)","v":""},{"$f":"IF('1. Order'!L146=\"\",\"\",'1. Order'!L146)","v":""},{"$f":"IF('1. Order'!M146=\"\",\"\",'1. Order'!M146)","v":""},{"$f":"IF('1. Order'!N146=\"\",\"\",'1. Order'!N146)","v":""},{"$f":"IF('1. Order'!O146=\"\",\"\",'1. Order'!O146)","v":{"$error":"#N/A"}},{"$f":"IF('1. Order'!P146=\"\",\"\",'1. Order'!P146)","v":{"$error":"#N/A"}},{"$f":"IF('1. Order'!Q146=\"\",\"\",'1. Order'!Q146)","v":""},{"$f":"IF('1. Order'!S146=\"\",\"\",'1. Order'!S146)","v":""},{"$f":"IF('1. Order'!T146=\"\",\"\",'1. Order'!T146)","v":""},{"$f":"IF('1. Order'!W146=\"\",\"\",'1. Order'!W146)","v":""},{"$f":"IF('1. Order'!X146=\"\",\"\",'1. Order'!X146)","v":""},{"$f":"IF('1. Order'!Y146=\"\",\"\",'1. Order'!Y146)","v":"EUR"},{"$f":"IF('1. Order'!Z146=\"\",\"\",'1. Order'!Z146)","v":""},{"$f":"IF('1. Order'!AA146=\"\",\"\",'1. Order'!AA146)","v":""},{"$f":"IF('1. Order'!AB146=\"\",\"\",'1. Order'!AB146)","v":""},null,{"$f":"IF('1. Order'!AT146=\"\",\"\",'1. Order'!AT146)","v":""},{"$f":"IF('1. Order'!AU146=\"\",\"\",'1. Order'!AU146)","v":""},null,null,null,null,null,null,null,{"$f":"IF('1. Order'!AY146=\"\",\"\",'1. Order'!AY146)","v":""},{"$f":"IF('1. Order'!AZ146=\"\",\"\",'1. Order'!AZ146)","v":""},{"$f":"IF('1. Order'!BA146=\"\",\"\",'1. Order'!BA146)","v":""},{"$f":"IF('1. Order'!BB146=\"\",\"\",'1. Order'!BB146)","v":""},{"$f":"IF('1. Order'!BD146=\"\",\"\",'1. Order'!BD146)","v":""},{"$f":"IF('1. Order'!BE146=\"\",\"\",'1. Order'!BE146)","v":""},{"$f":"IF('1. Order'!BF146=\"\",\"\",'1. Order'!BF146)","v":""},{"$f":"IF('1. Order'!BG146=\"\",\"\",'1. Order'!BG146)","v":""},{"$f":"IF('1. Order'!BH146=\"\",\"\",'1. Order'!BH146)","v":"ZWO"}]
[{"$f":"IF('1. Order'!F147=\"\",\"\",'1. Order'!F147)","v":{"$error":"#N/A"}},{"$f":"IF('1. Order'!G147=\"\",\"\",'1. Order'!G147)","v":""},{"$f":"IF('1. Order'!H147=\"\",\"\",'1. Order'!H147)","v":""},{"$f":"IF('1. Order'!I147=\"\",\"\",'1. Order'!I147)","v":""},{"$f":"IF('1. Order'!J147=\"\",\"\",'1. Order'!J147)","v":""},{"$f":"IF('1. Order'!K147=\"\",\"\",'1. Order'!K147)","v":""},{"$f":"IF('1. Order'!L147=\"\",\"\",'1. Order'!L147)","v":""},{"$f":"IF('1. Order'!M147=\"\",\"\",'1. Order'!M147)","v":""},{"$f":"IF('1. Order'!N147=\"\",\"\",'1. Order'!N147)","v":""},{"$f":"IF('1. Order'!O147=\"\",\"\",'1. Order'!O147)","v":{"$error":"#N/A"}},{"$f":"IF('1. Order'!P147=\"\",\"\",'1. Order'!P147)","v":{"$error":"#N/A"}},{"$f":"IF('1. Order'!Q147=\"\",\"\",'1. Order'!Q147)","v":""},{"$f":"IF('1. Order'!S147=\"\",\"\",'1. Order'!S147)","v":""},{"$f":"IF('1. Order'!T147=\"\",\"\",'1. Order'!T147)","v":""},{"$f":"IF('1. Order'!W147=\"\",\"\",'1. Order'!W147)","v":""},{"$f":"IF('1. Order'!X147=\"\",\"\",'1. Order'!X147)","v":""},{"$f":"IF('1. Order'!Y147=\"\",\"\",'1. Order'!Y147)","v":"EUR"},{"$f":"IF('1. Order'!Z147=\"\",\"\",'1. Order'!Z147)","v":""},{"$f":"IF('1. Order'!AA147=\"\",\"\",'1. Order'!AA147)","v":""},{"$f":"IF('1. Order'!AB147=\"\",\"\",'1. Order'!AB147)","v":""},null,{"$f":"IF('1. Order'!AT147=\"\",\"\",'1. Order'!AT147)","v":""},{"$f":"IF('1. Order'!AU147=\"\",\"\",'1. Order'!AU147)","v":""},null,null,null,null,null,null,null,{"$f":"IF('1. Order'!AY147=\"\",\"\",'1. Order'!AY147)","v":""},{"$f":"IF('1. Order'!AZ147=\"\",\"\",'1. Order'!AZ147)","v":""},{"$f":"IF('1. Order'!BA147=\"\",\"\",'1. Order'!BA147)","v":""},{"$f":"IF('1. Order'!BB147=\"\",\"\",'1. Order'!BB147)","v":""},{"$f":"IF('1. Order'!BD147=\"\",\"\",'1. Order'!BD147)","v":""},{"$f":"IF('1. Order'!BE147=\"\",\"\",'1. Order'!BE147)","v":""},{"$f":"IF('1. Order'!BF147=\"\",\"\",'1. Order'!BF147)","v":""},{"$f":"IF('1. Order'!BG147=\"\",\"\",'1. Order'!BG147)","v":""},{"$f":"IF('1. Order'!BH147=\"\",\"\",'1. Order'!BH147)","v":"ZWO"}]
[{"$f":"IF('1. Order'!F148=\"\",\"\",'1. Order'!F148)","v":{"$error":"#N/A"}},{"$f":"IF('1. Order'!G148=\"\",\"\",'1. Order'!G148)","v":""},{"$f":"IF('1. Order'!H148=\"\",\"\",'1. Order'!H148)","v":""},{"$f":"IF('1. Order'!I148=\"\",\"\",'1. Order'!I148)","v":""},{"$f":"IF('1. Order'!J148=\"\",\"\",'1. Order'!J148)","v":""},{"$f":"IF('1. Order'!K148=\"\",\"\",'1. Order'!K148)","v":""},{"$f":"IF('1. Order'!L148=\"\",\"\",'1. Order'!L148)","v":""},{"$f":"IF('1. Order'!M148=\"\",\"\",'1. Order'!M148)","v":""},{"$f":"IF('1. Order'!N148=\"\",\"\",'1. Order'!N148)","v":""},{"$f":"IF('1. Order'!O148=\"\",\"\",'1. Order'!O148)","v":{"$error":"#N/A"}},{"$f":"IF('1. Order'!P148=\"\",\"\",'1. Order'!P148)","v":{"$error":"#N/A"}},{"$f":"IF('1. Order'!Q148=\"\",\"\",'1. Order'!Q148)","v":""},{"$f":"IF('1. Order'!S148=\"\",\"\",'1. Order'!S148)","v":""},{"$f":"IF('1. Order'!T148=\"\",\"\",'1. Order'!T148)","v":""},{"$f":"IF('1. Order'!W148=\"\",\"\",'1. Order'!W148)","v":""},{"$f":"IF('1. Order'!X148=\"\",\"\",'1. Order'!X148)","v":""},{"$f":"IF('1. Order'!Y148=\"\",\"\",'1. Order'!Y148)","v":"EUR"},{"$f":"IF('1. Order'!Z148=\"\",\"\",'1. Order'!Z148)","v":""},{"$f":"IF('1. Order'!AA148=\"\",\"\",'1. Order'!AA148)","v":""},{"$f":"IF('1. Order'!AB148=\"\",\"\",'1. Order'!AB148)","v":""},null,{"$f":"IF('1. Order'!AT148=\"\",\"\",'1. Order'!AT148)","v":""},{"$f":"IF('1. Order'!AU148=\"\",\"\",'1. Order'!AU148)","v":""},null,null,null,null,null,null,null,{"$f":"IF('1. Order'!AY148=\"\",\"\",'1. Order'!AY148)","v":""},{"$f":"IF('1. Order'!AZ148=\"\",\"\",'1. Order'!AZ148)","v":""},{"$f":"IF('1. Order'!BA148=\"\",\"\",'1. Order'!BA148)","v":""},{"$f":"IF('1. Order'!BB148=\"\",\"\",'1. Order'!BB148)","v":""},{"$f":"IF('1. Order'!BD148=\"\",\"\",'1. Order'!BD148)","v":""},{"$f":"IF('1. Order'!BE148=\"\",\"\",'1. Order'!BE148)","v":""},{"$f":"IF('1. Order'!BF148=\"\",\"\",'1. Order'!BF148)","v":""},{"$f":"IF('1. Order'!BG148=\"\",\"\",'1. Order'!BG148)","v":""},{"$f":"IF('1. Order'!BH148=\"\",\"\",'1. Order'!BH148)","v":"ZWO"}]
[{"$f":"IF('1. Order'!F149=\"\",\"\",'1. Order'!F149)","v":{"$error":"#N/A"}},{"$f":"IF('1. Order'!G149=\"\",\"\",'1. Order'!G149)","v":""},{"$f":"IF('1. Order'!H149=\"\",\"\",'1. Order'!H149)","v":""},{"$f":"IF('1. Order'!I149=\"\",\"\",'1. Order'!I149)","v":""},{"$f":"IF('1. Order'!J149=\"\",\"\",'1. Order'!J149)","v":""},{"$f":"IF('1. Order'!K149=\"\",\"\",'1. Order'!K149)","v":""},{"$f":"IF('1. Order'!L149=\"\",\"\",'1. Order'!L149)","v":""},{"$f":"IF('1. Order'!M149=\"\",\"\",'1. Order'!M149)","v":""},{"$f":"IF('1. Order'!N149=\"\",\"\",'1. Order'!N149)","v":""},{"$f":"IF('1. Order'!O149=\"\",\"\",'1. Order'!O149)","v":{"$error":"#N/A"}},{"$f":"IF('1. Order'!P149=\"\",\"\",'1. Order'!P149)","v":{"$error":"#N/A"}},{"$f":"IF('1. Order'!Q149=\"\",\"\",'1. Order'!Q149)","v":""},{"$f":"IF('1. Order'!S149=\"\",\"\",'1. Order'!S149)","v":""},{"$f":"IF('1. Order'!T149=\"\",\"\",'1. Order'!T149)","v":""},{"$f":"IF('1. Order'!W149=\"\",\"\",'1. Order'!W149)","v":""},{"$f":"IF('1. Order'!X149=\"\",\"\",'1. Order'!X149)","v":""},{"$f":"IF('1. Order'!Y149=\"\",\"\",'1. Order'!Y149)","v":"EUR"},{"$f":"IF('1. Order'!Z149=\"\",\"\",'1. Order'!Z149)","v":""},{"$f":"IF('1. Order'!AA149=\"\",\"\",'1. Order'!AA149)","v":""},{"$f":"IF('1. Order'!AB149=\"\",\"\",'1. Order'!AB149)","v":""},null,{"$f":"IF('1. Order'!AT149=\"\",\"\",'1. Order'!AT149)","v":""},{"$f":"IF('1. Order'!AU149=\"\",\"\",'1. Order'!AU149)","v":""},null,null,null,null,null,null,null,{"$f":"IF('1. Order'!AY149=\"\",\"\",'1. Order'!AY149)","v":""},{"$f":"IF('1. Order'!AZ149=\"\",\"\",'1. Order'!AZ149)","v":""},{"$f":"IF('1. Order'!BA149=\"\",\"\",'1. Order'!BA149)","v":""},{"$f":"IF('1. Order'!BB149=\"\",\"\",'1. Order'!BB149)","v":""},{"$f":"IF('1. Order'!BD149=\"\",\"\",'1. Order'!BD149)","v":""},{"$f":"IF('1. Order'!BE149=\"\",\"\",'1. Order'!BE149)","v":""},{"$f":"IF('1. Order'!BF149=\"\",\"\",'1. Order'!BF149)","v":""},{"$f":"IF('1. Order'!BG149=\"\",\"\",'1. Order'!BG149)","v":""},{"$f":"IF('1. Order'!BH149=\"\",\"\",'1. Order'!BH149)","v":"ZWO"}]
[{"$f":"IF('1. Order'!F150=\"\",\"\",'1. Order'!F150)","v":{"$error":"#N/A"}},{"$f":"IF('1. Order'!G150=\"\",\"\",'1. Order'!G150)","v":""},{"$f":"IF('1. Order'!H150=\"\",\"\",'1. Order'!H150)","v":""},{"$f":"IF('1. Order'!I150=\"\",\"\",'1. Order'!I150)","v":""},{"$f":"IF('1. Order'!J150=\"\",\"\",'1. Order'!J150)","v":""},{"$f":"IF('1. Order'!K150=\"\",\"\",'1. Order'!K150)","v":""},{"$f":"IF('1. Order'!L150=\"\",\"\",'1. Order'!L150)","v":""},{"$f":"IF('1. Order'!M150=\"\",\"\",'1. Order'!M150)","v":""},{"$f":"IF('1. Order'!N150=\"\",\"\",'1. Order'!N150)","v":""},{"$f":"IF('1. Order'!O150=\"\",\"\",'1. Order'!O150)","v":{"$error":"#N/A"}},{"$f":"IF('1. Order'!P150=\"\",\"\",'1. Order'!P150)","v":{"$error":"#N/A"}},{"$f":"IF('1. Order'!Q150=\"\",\"\",'1. Order'!Q150)","v":""},{"$f":"IF('1. Order'!S150=\"\",\"\",'1. Order'!S150)","v":""},{"$f":"IF('1. Order'!T150=\"\",\"\",'1. Order'!T150)","v":""},{"$f":"IF('1. Order'!W150=\"\",\"\",'1. Order'!W150)","v":""},{"$f":"IF('1. Order'!X150=\"\",\"\",'1. Order'!X150)","v":""},{"$f":"IF('1. Order'!Y150=\"\",\"\",'1. Order'!Y150)","v":"EUR"},{"$f":"IF('1. Order'!Z150=\"\",\"\",'1. Order'!Z150)","v":""},{"$f":"IF('1. Order'!AA150=\"\",\"\",'1. Order'!AA150)","v":""},{"$f":"IF('1. Order'!AB150=\"\",\"\",'1. Order'!AB150)","v":""},null,{"$f":"IF('1. Order'!AT150=\"\",\"\",'1. Order'!AT150)","v":""},{"$f":"IF('1. Order'!AU150=\"\",\"\",'1. Order'!AU150)","v":""},null,null,null,null,null,null,null,{"$f":"IF('1. Order'!AY150=\"\",\"\",'1. Order'!AY150)","v":""},{"$f":"IF('1. Order'!AZ150=\"\",\"\",'1. Order'!AZ150)","v":""},{"$f":"IF('1. Order'!BA150=\"\",\"\",'1. Order'!BA150)","v":""},{"$f":"IF('1. Order'!BB150=\"\",\"\",'1. Order'!BB150)","v":""},{"$f":"IF('1. Order'!BD150=\"\",\"\",'1. Order'!BD150)","v":""},{"$f":"IF('1. Order'!BE150=\"\",\"\",'1. Order'!BE150)","v":""},{"$f":"IF('1. Order'!BF150=\"\",\"\",'1. Order'!BF150)","v":""},{"$f":"IF('1. Order'!BG150=\"\",\"\",'1. Order'!BG150)","v":""},{"$f":"IF('1. Order'!BH150=\"\",\"\",'1. Order'!BH150)","v":"ZWO"}]
[{"$f":"IF('1. Order'!F151=\"\",\"\",'1. Order'!F151)","v":{"$error":"#N/A"}},{"$f":"IF('1. Order'!G151=\"\",\"\",'1. Order'!G151)","v":""},{"$f":"IF('1. Order'!H151=\"\",\"\",'1. Order'!H151)","v":""},{"$f":"IF('1. Order'!I151=\"\",\"\",'1. Order'!I151)","v":""},{"$f":"IF('1. Order'!J151=\"\",\"\",'1. Order'!J151)","v":""},{"$f":"IF('1. Order'!K151=\"\",\"\",'1. Order'!K151)","v":""},{"$f":"IF('1. Order'!L151=\"\",\"\",'1. Order'!L151)","v":""},{"$f":"IF('1. Order'!M151=\"\",\"\",'1. Order'!M151)","v":""},{"$f":"IF('1. Order'!N151=\"\",\"\",'1. Order'!N151)","v":""},{"$f":"IF('1. Order'!O151=\"\",\"\",'1. Order'!O151)","v":{"$error":"#N/A"}},{"$f":"IF('1. Order'!P151=\"\",\"\",'1. Order'!P151)","v":{"$error":"#N/A"}},{"$f":"IF('1. Order'!Q151=\"\",\"\",'1. Order'!Q151)","v":""},{"$f":"IF('1. Order'!S151=\"\",\"\",'1. Order'!S151)","v":""},{"$f":"IF('1. Order'!T151=\"\",\"\",'1. Order'!T151)","v":""},{"$f":"IF('1. Order'!W151=\"\",\"\",'1. Order'!W151)","v":""},{"$f":"IF('1. Order'!X151=\"\",\"\",'1. Order'!X151)","v":""},{"$f":"IF('1. Order'!Y151=\"\",\"\",'1. Order'!Y151)","v":"EUR"},{"$f":"IF('1. Order'!Z151=\"\",\"\",'1. Order'!Z151)","v":""},{"$f":"IF('1. Order'!AA151=\"\",\"\",'1. Order'!AA151)","v":""},{"$f":"IF('1. Order'!AB151=\"\",\"\",'1. Order'!AB151)","v":""},null,{"$f":"IF('1. Order'!AT151=\"\",\"\",'1. Order'!AT151)","v":""},{"$f":"IF('1. Order'!AU151=\"\",\"\",'1. Order'!AU151)","v":""},null,null,null,null,null,null,null,{"$f":"IF('1. Order'!AY151=\"\",\"\",'1. Order'!AY151)","v":""},{"$f":"IF('1. Order'!AZ151=\"\",\"\",'1. Order'!AZ151)","v":""},{"$f":"IF('1. Order'!BA151=\"\",\"\",'1. Order'!BA151)","v":""},{"$f":"IF('1. Order'!BB151=\"\",\"\",'1. Order'!BB151)","v":""},{"$f":"IF('1. Order'!BD151=\"\",\"\",'1. Order'!BD151)","v":""},{"$f":"IF('1. Order'!BE151=\"\",\"\",'1. Order'!BE151)","v":""},{"$f":"IF('1. Order'!BF151=\"\",\"\",'1. Order'!BF151)","v":""},{"$f":"IF('1. Order'!BG151=\"\",\"\",'1. Order'!BG151)","v":""},{"$f":"IF('1. Order'!BH151=\"\",\"\",'1. Order'!BH151)","v":"ZWO"}]
[{"$f":"IF('1. Order'!F152=\"\",\"\",'1. Order'!F152)","v":{"$error":"#N/A"}},{"$f":"IF('1. Order'!G152=\"\",\"\",'1. Order'!G152)","v":""},{"$f":"IF('1. Order'!H152=\"\",\"\",'1. Order'!H152)","v":""},{"$f":"IF('1. Order'!I152=\"\",\"\",'1. Order'!I152)","v":""},{"$f":"IF('1. Order'!J152=\"\",\"\",'1. Order'!J152)","v":""},{"$f":"IF('1. Order'!K152=\"\",\"\",'1. Order'!K152)","v":""},{"$f":"IF('1. Order'!L152=\"\",\"\",'1. Order'!L152)","v":""},{"$f":"IF('1. Order'!M152=\"\",\"\",'1. Order'!M152)","v":""},{"$f":"IF('1. Order'!N152=\"\",\"\",'1. Order'!N152)","v":""},{"$f":"IF('1. Order'!O152=\"\",\"\",'1. Order'!O152)","v":{"$error":"#N/A"}},{"$f":"IF('1. Order'!P152=\"\",\"\",'1. Order'!P152)","v":{"$error":"#N/A"}},{"$f":"IF('1. Order'!Q152=\"\",\"\",'1. Order'!Q152)","v":""},{"$f":"IF('1. Order'!S152=\"\",\"\",'1. Order'!S152)","v":""},{"$f":"IF('1. Order'!T152=\"\",\"\",'1. Order'!T152)","v":""},{"$f":"IF('1. Order'!W152=\"\",\"\",'1. Order'!W152)","v":""},{"$f":"IF('1. Order'!X152=\"\",\"\",'1. Order'!X152)","v":""},{"$f":"IF('1. Order'!Y152=\"\",\"\",'1. Order'!Y152)","v":"EUR"},{"$f":"IF('1. Order'!Z152=\"\",\"\",'1. Order'!Z152)","v":""},{"$f":"IF('1. Order'!AA152=\"\",\"\",'1. Order'!AA152)","v":""},{"$f":"IF('1. Order'!AB152=\"\",\"\",'1. Order'!AB152)","v":""},null,{"$f":"IF('1. Order'!AT152=\"\",\"\",'1. Order'!AT152)","v":""},{"$f":"IF('1. Order'!AU152=\"\",\"\",'1. Order'!AU152)","v":""},null,null,null,null,null,null,null,{"$f":"IF('1. Order'!AY152=\"\",\"\",'1. Order'!AY152)","v":""},{"$f":"IF('1. Order'!AZ152=\"\",\"\",'1. Order'!AZ152)","v":""},{"$f":"IF('1. Order'!BA152=\"\",\"\",'1. Order'!BA152)","v":""},{"$f":"IF('1. Order'!BB152=\"\",\"\",'1. Order'!BB152)","v":""},{"$f":"IF('1. Order'!BD152=\"\",\"\",'1. Order'!BD152)","v":""},{"$f":"IF('1. Order'!BE152=\"\",\"\",'1. Order'!BE152)","v":""},{"$f":"IF('1. Order'!BF152=\"\",\"\",'1. Order'!BF152)","v":""},{"$f":"IF('1. Order'!BG152=\"\",\"\",'1. Order'!BG152)","v":""},{"$f":"IF('1. Order'!BH152=\"\",\"\",'1. Order'!BH152)","v":"ZWO"}]
[{"$f":"IF('1. Order'!F153=\"\",\"\",'1. Order'!F153)","v":{"$error":"#N/A"}},{"$f":"IF('1. Order'!G153=\"\",\"\",'1. Order'!G153)","v":""},{"$f":"IF('1. Order'!H153=\"\",\"\",'1. Order'!H153)","v":""},{"$f":"IF('1. Order'!I153=\"\",\"\",'1. Order'!I153)","v":""},{"$f":"IF('1. Order'!J153=\"\",\"\",'1. Order'!J153)","v":""},{"$f":"IF('1. Order'!K153=\"\",\"\",'1. Order'!K153)","v":""},{"$f":"IF('1. Order'!L153=\"\",\"\",'1. Order'!L153)","v":""},{"$f":"IF('1. Order'!M153=\"\",\"\",'1. Order'!M153)","v":""},{"$f":"IF('1. Order'!N153=\"\",\"\",'1. Order'!N153)","v":""},{"$f":"IF('1. Order'!O153=\"\",\"\",'1. Order'!O153)","v":{"$error":"#N/A"}},{"$f":"IF('1. Order'!P153=\"\",\"\",'1. Order'!P153)","v":{"$error":"#N/A"}},{"$f":"IF('1. Order'!Q153=\"\",\"\",'1. Order'!Q153)","v":""},{"$f":"IF('1. Order'!S153=\"\",\"\",'1. Order'!S153)","v":""},{"$f":"IF('1. Order'!T153=\"\",\"\",'1. Order'!T153)","v":""},{"$f":"IF('1. Order'!W153=\"\",\"\",'1. Order'!W153)","v":""},{"$f":"IF('1. Order'!X153=\"\",\"\",'1. Order'!X153)","v":""},{"$f":"IF('1. Order'!Y153=\"\",\"\",'1. Order'!Y153)","v":"EUR"},{"$f":"IF('1. Order'!Z153=\"\",\"\",'1. Order'!Z153)","v":""},{"$f":"IF('1. Order'!AA153=\"\",\"\",'1. Order'!AA153)","v":""},{"$f":"IF('1. Order'!AB153=\"\",\"\",'1. Order'!AB153)","v":""},null,{"$f":"IF('1. Order'!AT153=\"\",\"\",'1. Order'!AT153)","v":""},{"$f":"IF('1. Order'!AU153=\"\",\"\",'1. Order'!AU153)","v":""},null,null,null,null,null,null,null,{"$f":"IF('1. Order'!AY153=\"\",\"\",'1. Order'!AY153)","v":""},{"$f":"IF('1. Order'!AZ153=\"\",\"\",'1. Order'!AZ153)","v":""},{"$f":"IF('1. Order'!BA153=\"\",\"\",'1. Order'!BA153)","v":""},{"$f":"IF('1. Order'!BB153=\"\",\"\",'1. Order'!BB153)","v":""},{"$f":"IF('1. Order'!BD153=\"\",\"\",'1. Order'!BD153)","v":""},{"$f":"IF('1. Order'!BE153=\"\",\"\",'1. Order'!BE153)","v":""},{"$f":"IF('1. Order'!BF153=\"\",\"\",'1. Order'!BF153)","v":""},{"$f":"IF('1. Order'!BG153=\"\",\"\",'1. Order'!BG153)","v":""},{"$f":"IF('1. Order'!BH153=\"\",\"\",'1. Order'!BH153)","v":"ZWO"}]
[{"$f":"IF('1. Order'!F154=\"\",\"\",'1. Order'!F154)","v":{"$error":"#N/A"}},{"$f":"IF('1. Order'!G154=\"\",\"\",'1. Order'!G154)","v":""},{"$f":"IF('1. Order'!H154=\"\",\"\",'1. Order'!H154)","v":""},{"$f":"IF('1. Order'!I154=\"\",\"\",'1. Order'!I154)","v":""},{"$f":"IF('1. Order'!J154=\"\",\"\",'1. Order'!J154)","v":""},{"$f":"IF('1. Order'!K154=\"\",\"\",'1. Order'!K154)","v":""},{"$f":"IF('1. Order'!L154=\"\",\"\",'1. Order'!L154)","v":""},{"$f":"IF('1. Order'!M154=\"\",\"\",'1. Order'!M154)","v":""},{"$f":"IF('1. Order'!N154=\"\",\"\",'1. Order'!N154)","v":""},{"$f":"IF('1. Order'!O154=\"\",\"\",'1. Order'!O154)","v":{"$error":"#N/A"}},{"$f":"IF('1. Order'!P154=\"\",\"\",'1. Order'!P154)","v":{"$error":"#N/A"}},{"$f":"IF('1. Order'!Q154=\"\",\"\",'1. Order'!Q154)","v":""},{"$f":"IF('1. Order'!S154=\"\",\"\",'1. Order'!S154)","v":""},{"$f":"IF('1. Order'!T154=\"\",\"\",'1. Order'!T154)","v":""},{"$f":"IF('1. Order'!W154=\"\",\"\",'1. Order'!W154)","v":""},{"$f":"IF('1. Order'!X154=\"\",\"\",'1. Order'!X154)","v":""},{"$f":"IF('1. Order'!Y154=\"\",\"\",'1. Order'!Y154)","v":"EUR"},{"$f":"IF('1. Order'!Z154=\"\",\"\",'1. Order'!Z154)","v":""},{"$f":"IF('1. Order'!AA154=\"\",\"\",'1. Order'!AA154)","v":""},{"$f":"IF('1. Order'!AB154=\"\",\"\",'1. Order'!AB154)","v":""},null,{"$f":"IF('1. Order'!AT154=\"\",\"\",'1. Order'!AT154)","v":""},{"$f":"IF('1. Order'!AU154=\"\",\"\",'1. Order'!AU154)","v":""},null,null,null,null,null,null,null,{"$f":"IF('1. Order'!AY154=\"\",\"\",'1. Order'!AY154)","v":""},{"$f":"IF('1. Order'!AZ154=\"\",\"\",'1. Order'!AZ154)","v":""},{"$f":"IF('1. Order'!BA154=\"\",\"\",'1. Order'!BA154)","v":""},{"$f":"IF('1. Order'!BB154=\"\",\"\",'1. Order'!BB154)","v":""},{"$f":"IF('1. Order'!BD154=\"\",\"\",'1. Order'!BD154)","v":""},{"$f":"IF('1. Order'!BE154=\"\",\"\",'1. Order'!BE154)","v":""},{"$f":"IF('1. Order'!BF154=\"\",\"\",'1. Order'!BF154)","v":""},{"$f":"IF('1. Order'!BG154=\"\",\"\",'1. Order'!BG154)","v":""},{"$f":"IF('1. Order'!BH154=\"\",\"\",'1. Order'!BH154)","v":"ZWO"}]
[{"$f":"IF('1. Order'!F155=\"\",\"\",'1. Order'!F155)","v":{"$error":"#N/A"}},{"$f":"IF('1. Order'!G155=\"\",\"\",'1. Order'!G155)","v":""},{"$f":"IF('1. Order'!H155=\"\",\"\",'1. Order'!H155)","v":""},{"$f":"IF('1. Order'!I155=\"\",\"\",'1. Order'!I155)","v":""},{"$f":"IF('1. Order'!J155=\"\",\"\",'1. Order'!J155)","v":""},{"$f":"IF('1. Order'!K155=\"\",\"\",'1. Order'!K155)","v":""},{"$f":"IF('1. Order'!L155=\"\",\"\",'1. Order'!L155)","v":""},{"$f":"IF('1. Order'!M155=\"\",\"\",'1. Order'!M155)","v":""},{"$f":"IF('1. Order'!N155=\"\",\"\",'1. Order'!N155)","v":""},{"$f":"IF('1. Order'!O155=\"\",\"\",'1. Order'!O155)","v":{"$error":"#N/A"}},{"$f":"IF('1. Order'!P155=\"\",\"\",'1. Order'!P155)","v":{"$error":"#N/A"}},{"$f":"IF('1. Order'!Q155=\"\",\"\",'1. Order'!Q155)","v":""},{"$f":"IF('1. Order'!S155=\"\",\"\",'1. Order'!S155)","v":""},{"$f":"IF('1. Order'!T155=\"\",\"\",'1. Order'!T155)","v":""},{"$f":"IF('1. Order'!W155=\"\",\"\",'1. Order'!W155)","v":""},{"$f":"IF('1. Order'!X155=\"\",\"\",'1. Order'!X155)","v":""},{"$f":"IF('1. Order'!Y155=\"\",\"\",'1. Order'!Y155)","v":"EUR"},{"$f":"IF('1. Order'!Z155=\"\",\"\",'1. Order'!Z155)","v":""},{"$f":"IF('1. Order'!AA155=\"\",\"\",'1. Order'!AA155)","v":""},{"$f":"IF('1. Order'!AB155=\"\",\"\",'1. Order'!AB155)","v":""},null,{"$f":"IF('1. Order'!AT155=\"\",\"\",'1. Order'!AT155)","v":""},{"$f":"IF('1. Order'!AU155=\"\",\"\",'1. Order'!AU155)","v":""},null,null,null,null,null,null,null,{"$f":"IF('1. Order'!AY155=\"\",\"\",'1. Order'!AY155)","v":""},{"$f":"IF('1. Order'!AZ155=\"\",\"\",'1. Order'!AZ155)","v":""},{"$f":"IF('1. Order'!BA155=\"\",\"\",'1. Order'!BA155)","v":""},{"$f":"IF('1. Order'!BB155=\"\",\"\",'1. Order'!BB155)","v":""},{"$f":"IF('1. Order'!BD155=\"\",\"\",'1. Order'!BD155)","v":""},{"$f":"IF('1. Order'!BE155=\"\",\"\",'1. Order'!BE155)","v":""},{"$f":"IF('1. Order'!BF155=\"\",\"\",'1. Order'!BF155)","v":""},{"$f":"IF('1. Order'!BG155=\"\",\"\",'1. Order'!BG155)","v":""},{"$f":"IF('1. Order'!BH155=\"\",\"\",'1. Order'!BH155)","v":"ZWO"}]
[{"$f":"IF('1. Order'!F156=\"\",\"\",'1. Order'!F156)","v":{"$error":"#N/A"}},{"$f":"IF('1. Order'!G156=\"\",\"\",'1. Order'!G156)","v":""},{"$f":"IF('1. Order'!H156=\"\",\"\",'1. Order'!H156)","v":""},{"$f":"IF('1. Order'!I156=\"\",\"\",'1. Order'!I156)","v":""},{"$f":"IF('1. Order'!J156=\"\",\"\",'1. Order'!J156)","v":""},{"$f":"IF('1. Order'!K156=\"\",\"\",'1. Order'!K156)","v":""},{"$f":"IF('1. Order'!L156=\"\",\"\",'1. Order'!L156)","v":""},{"$f":"IF('1. Order'!M156=\"\",\"\",'1. Order'!M156)","v":""},{"$f":"IF('1. Order'!N156=\"\",\"\",'1. Order'!N156)","v":""},{"$f":"IF('1. Order'!O156=\"\",\"\",'1. Order'!O156)","v":{"$error":"#N/A"}},{"$f":"IF('1. Order'!P156=\"\",\"\",'1. Order'!P156)","v":{"$error":"#N/A"}},{"$f":"IF('1. Order'!Q156=\"\",\"\",'1. Order'!Q156)","v":""},{"$f":"IF('1. Order'!S156=\"\",\"\",'1. Order'!S156)","v":""},{"$f":"IF('1. Order'!T156=\"\",\"\",'1. Order'!T156)","v":""},{"$f":"IF('1. Order'!W156=\"\",\"\",'1. Order'!W156)","v":""},{"$f":"IF('1. Order'!X156=\"\",\"\",'1. Order'!X156)","v":""},{"$f":"IF('1. Order'!Y156=\"\",\"\",'1. Order'!Y156)","v":"EUR"},{"$f":"IF('1. Order'!Z156=\"\",\"\",'1. Order'!Z156)","v":""},{"$f":"IF('1. Order'!AA156=\"\",\"\",'1. Order'!AA156)","v":""},{"$f":"IF('1. Order'!AB156=\"\",\"\",'1. Order'!AB156)","v":""},null,{"$f":"IF('1. Order'!AT156=\"\",\"\",'1. Order'!AT156)","v":""},{"$f":"IF('1. Order'!AU156=\"\",\"\",'1. Order'!AU156)","v":""},null,null,null,null,null,null,null,{"$f":"IF('1. Order'!AY156=\"\",\"\",'1. Order'!AY156)","v":""},{"$f":"IF('1. Order'!AZ156=\"\",\"\",'1. Order'!AZ156)","v":""},{"$f":"IF('1. Order'!BA156=\"\",\"\",'1. Order'!BA156)","v":""},{"$f":"IF('1. Order'!BB156=\"\",\"\",'1. Order'!BB156)","v":""},{"$f":"IF('1. Order'!BD156=\"\",\"\",'1. Order'!BD156)","v":""},{"$f":"IF('1. Order'!BE156=\"\",\"\",'1. Order'!BE156)","v":""},{"$f":"IF('1. Order'!BF156=\"\",\"\",'1. Order'!BF156)","v":""},{"$f":"IF('1. Order'!BG156=\"\",\"\",'1. Order'!BG156)","v":""},{"$f":"IF('1. Order'!BH156=\"\",\"\",'1. Order'!BH156)","v":"ZWO"}]
[{"$f":"IF('1. Order'!F157=\"\",\"\",'1. Order'!F157)","v":{"$error":"#N/A"}},{"$f":"IF('1. Order'!G157=\"\",\"\",'1. Order'!G157)","v":""},{"$f":"IF('1. Order'!H157=\"\",\"\",'1. Order'!H157)","v":""},{"$f":"IF('1. Order'!I157=\"\",\"\",'1. Order'!I157)","v":""},{"$f":"IF('1. Order'!J157=\"\",\"\",'1. Order'!J157)","v":""},{"$f":"IF('1. Order'!K157=\"\",\"\",'1. Order'!K157)","v":""},{"$f":"IF('1. Order'!L157=\"\",\"\",'1. Order'!L157)","v":""},{"$f":"IF('1. Order'!M157=\"\",\"\",'1. Order'!M157)","v":""},{"$f":"IF('1. Order'!N157=\"\",\"\",'1. Order'!N157)","v":""},{"$f":"IF('1. Order'!O157=\"\",\"\",'1. Order'!O157)","v":{"$error":"#N/A"}},{"$f":"IF('1. Order'!P157=\"\",\"\",'1. Order'!P157)","v":{"$error":"#N/A"}},{"$f":"IF('1. Order'!Q157=\"\",\"\",'1. Order'!Q157)","v":""},{"$f":"IF('1. Order'!S157=\"\",\"\",'1. Order'!S157)","v":""},{"$f":"IF('1. Order'!T157=\"\",\"\",'1. Order'!T157)","v":""},{"$f":"IF('1. Order'!W157=\"\",\"\",'1. Order'!W157)","v":""},{"$f":"IF('1. Order'!X157=\"\",\"\",'1. Order'!X157)","v":""},{"$f":"IF('1. Order'!Y157=\"\",\"\",'1. Order'!Y157)","v":"EUR"},{"$f":"IF('1. Order'!Z157=\"\",\"\",'1. Order'!Z157)","v":""},{"$f":"IF('1. Order'!AA157=\"\",\"\",'1. Order'!AA157)","v":""},{"$f":"IF('1. Order'!AB157=\"\",\"\",'1. Order'!AB157)","v":""},null,{"$f":"IF('1. Order'!AT157=\"\",\"\",'1. Order'!AT157)","v":""},{"$f":"IF('1. Order'!AU157=\"\",\"\",'1. Order'!AU157)","v":""},null,null,null,null,null,null,null,{"$f":"IF('1. Order'!AY157=\"\",\"\",'1. Order'!AY157)","v":""},{"$f":"IF('1. Order'!AZ157=\"\",\"\",'1. Order'!AZ157)","v":""},{"$f":"IF('1. Order'!BA157=\"\",\"\",'1. Order'!BA157)","v":""},{"$f":"IF('1. Order'!BB157=\"\",\"\",'1. Order'!BB157)","v":""},{"$f":"IF('1. Order'!BD157=\"\",\"\",'1. Order'!BD157)","v":""},{"$f":"IF('1. Order'!BE157=\"\",\"\",'1. Order'!BE157)","v":""},{"$f":"IF('1. Order'!BF157=\"\",\"\",'1. Order'!BF157)","v":""},{"$f":"IF('1. Order'!BG157=\"\",\"\",'1. Order'!BG157)","v":""},{"$f":"IF('1. Order'!BH157=\"\",\"\",'1. Order'!BH157)","v":"ZWO"}]
[{"$f":"IF('1. Order'!F158=\"\",\"\",'1. Order'!F158)","v":{"$error":"#N/A"}},{"$f":"IF('1. Order'!G158=\"\",\"\",'1. Order'!G158)","v":""},{"$f":"IF('1. Order'!H158=\"\",\"\",'1. Order'!H158)","v":""},{"$f":"IF('1. Order'!I158=\"\",\"\",'1. Order'!I158)","v":""},{"$f":"IF('1. Order'!J158=\"\",\"\",'1. Order'!J158)","v":""},{"$f":"IF('1. Order'!K158=\"\",\"\",'1. Order'!K158)","v":""},{"$f":"IF('1. Order'!L158=\"\",\"\",'1. Order'!L158)","v":""},{"$f":"IF('1. Order'!M158=\"\",\"\",'1. Order'!M158)","v":""},{"$f":"IF('1. Order'!N158=\"\",\"\",'1. Order'!N158)","v":""},{"$f":"IF('1. Order'!O158=\"\",\"\",'1. Order'!O158)","v":{"$error":"#N/A"}},{"$f":"IF('1. Order'!P158=\"\",\"\",'1. Order'!P158)","v":{"$error":"#N/A"}},{"$f":"IF('1. Order'!Q158=\"\",\"\",'1. Order'!Q158)","v":""},{"$f":"IF('1. Order'!S158=\"\",\"\",'1. Order'!S158)","v":""},{"$f":"IF('1. Order'!T158=\"\",\"\",'1. Order'!T158)","v":""},{"$f":"IF('1. Order'!W158=\"\",\"\",'1. Order'!W158)","v":""},{"$f":"IF('1. Order'!X158=\"\",\"\",'1. Order'!X158)","v":""},{"$f":"IF('1. Order'!Y158=\"\",\"\",'1. Order'!Y158)","v":"EUR"},{"$f":"IF('1. Order'!Z158=\"\",\"\",'1. Order'!Z158)","v":""},{"$f":"IF('1. Order'!AA158=\"\",\"\",'1. Order'!AA158)","v":""},{"$f":"IF('1. Order'!AB158=\"\",\"\",'1. Order'!AB158)","v":""},null,{"$f":"IF('1. Order'!AT158=\"\",\"\",'1. Order'!AT158)","v":""},{"$f":"IF('1. Order'!AU158=\"\",\"\",'1. Order'!AU158)","v":""},null,null,null,null,null,null,null,{"$f":"IF('1. Order'!AY158=\"\",\"\",'1. Order'!AY158)","v":""},{"$f":"IF('1. Order'!AZ158=\"\",\"\",'1. Order'!AZ158)","v":""},{"$f":"IF('1. Order'!BA158=\"\",\"\",'1. Order'!BA158)","v":""},{"$f":"IF('1. Order'!BB158=\"\",\"\",'1. Order'!BB158)","v":""},{"$f":"IF('1. Order'!BD158=\"\",\"\",'1. Order'!BD158)","v":""},{"$f":"IF('1. Order'!BE158=\"\",\"\",'1. Order'!BE158)","v":""},{"$f":"IF('1. Order'!BF158=\"\",\"\",'1. Order'!BF158)","v":""},{"$f":"IF('1. Order'!BG158=\"\",\"\",'1. Order'!BG158)","v":""},{"$f":"IF('1. Order'!BH158=\"\",\"\",'1. Order'!BH158)","v":"ZWO"}]
[{"$f":"IF('1. Order'!F159=\"\",\"\",'1. Order'!F159)","v":{"$error":"#N/A"}},{"$f":"IF('1. Order'!G159=\"\",\"\",'1. Order'!G159)","v":""},{"$f":"IF('1. Order'!H159=\"\",\"\",'1. Order'!H159)","v":""},{"$f":"IF('1. Order'!I159=\"\",\"\",'1. Order'!I159)","v":""},{"$f":"IF('1. Order'!J159=\"\",\"\",'1. Order'!J159)","v":""},{"$f":"IF('1. Order'!K159=\"\",\"\",'1. Order'!K159)","v":""},{"$f":"IF('1. Order'!L159=\"\",\"\",'1. Order'!L159)","v":""},{"$f":"IF('1. Order'!M159=\"\",\"\",'1. Order'!M159)","v":""},{"$f":"IF('1. Order'!N159=\"\",\"\",'1. Order'!N159)","v":""},{"$f":"IF('1. Order'!O159=\"\",\"\",'1. Order'!O159)","v":{"$error":"#N/A"}},{"$f":"IF('1. Order'!P159=\"\",\"\",'1. Order'!P159)","v":{"$error":"#N/A"}},{"$f":"IF('1. Order'!Q159=\"\",\"\",'1. Order'!Q159)","v":""},{"$f":"IF('1. Order'!S159=\"\",\"\",'1. Order'!S159)","v":""},{"$f":"IF('1. Order'!T159=\"\",\"\",'1. Order'!T159)","v":""},{"$f":"IF('1. Order'!W159=\"\",\"\",'1. Order'!W159)","v":""},{"$f":"IF('1. Order'!X159=\"\",\"\",'1. Order'!X159)","v":""},{"$f":"IF('1. Order'!Y159=\"\",\"\",'1. Order'!Y159)","v":"EUR"},{"$f":"IF('1. Order'!Z159=\"\",\"\",'1. Order'!Z159)","v":""},{"$f":"IF('1. Order'!AA159=\"\",\"\",'1. Order'!AA159)","v":""},{"$f":"IF('1. Order'!AB159=\"\",\"\",'1. Order'!AB159)","v":""},null,{"$f":"IF('1. Order'!AT159=\"\",\"\",'1. Order'!AT159)","v":""},{"$f":"IF('1. Order'!AU159=\"\",\"\",'1. Order'!AU159)","v":""},null,null,null,null,null,null,null,{"$f":"IF('1. Order'!AY159=\"\",\"\",'1. Order'!AY159)","v":""},{"$f":"IF('1. Order'!AZ159=\"\",\"\",'1. Order'!AZ159)","v":""},{"$f":"IF('1. Order'!BA159=\"\",\"\",'1. Order'!BA159)","v":""},{"$f":"IF('1. Order'!BB159=\"\",\"\",'1. Order'!BB159)","v":""},{"$f":"IF('1. Order'!BD159=\"\",\"\",'1. Order'!BD159)","v":""},{"$f":"IF('1. Order'!BE159=\"\",\"\",'1. Order'!BE159)","v":""},{"$f":"IF('1. Order'!BF159=\"\",\"\",'1. Order'!BF159)","v":""},{"$f":"IF('1. Order'!BG159=\"\",\"\",'1. Order'!BG159)","v":""},{"$f":"IF('1. Order'!BH159=\"\",\"\",'1. Order'!BH159)","v":"ZWO"}]
[{"$f":"IF('1. Order'!F160=\"\",\"\",'1. Order'!F160)","v":{"$error":"#N/A"}},{"$f":"IF('1. Order'!G160=\"\",\"\",'1. Order'!G160)","v":""},{"$f":"IF('1. Order'!H160=\"\",\"\",'1. Order'!H160)","v":""},{"$f":"IF('1. Order'!I160=\"\",\"\",'1. Order'!I160)","v":""},{"$f":"IF('1. Order'!J160=\"\",\"\",'1. Order'!J160)","v":""},{"$f":"IF('1. Order'!K160=\"\",\"\",'1. Order'!K160)","v":""},{"$f":"IF('1. Order'!L160=\"\",\"\",'1. Order'!L160)","v":""},{"$f":"IF('1. Order'!M160=\"\",\"\",'1. Order'!M160)","v":""},{"$f":"IF('1. Order'!N160=\"\",\"\",'1. Order'!N160)","v":""},{"$f":"IF('1. Order'!O160=\"\",\"\",'1. Order'!O160)","v":{"$error":"#N/A"}},{"$f":"IF('1. Order'!P160=\"\",\"\",'1. Order'!P160)","v":{"$error":"#N/A"}},{"$f":"IF('1. Order'!Q160=\"\",\"\",'1. Order'!Q160)","v":""},{"$f":"IF('1. Order'!S160=\"\",\"\",'1. Order'!S160)","v":""},{"$f":"IF('1. Order'!T160=\"\",\"\",'1. Order'!T160)","v":""},{"$f":"IF('1. Order'!W160=\"\",\"\",'1. Order'!W160)","v":""},{"$f":"IF('1. Order'!X160=\"\",\"\",'1. Order'!X160)","v":""},{"$f":"IF('1. Order'!Y160=\"\",\"\",'1. Order'!Y160)","v":"EUR"},{"$f":"IF('1. Order'!Z160=\"\",\"\",'1. Order'!Z160)","v":""},{"$f":"IF('1. Order'!AA160=\"\",\"\",'1. Order'!AA160)","v":""},{"$f":"IF('1. Order'!AB160=\"\",\"\",'1. Order'!AB160)","v":""},null,{"$f":"IF('1. Order'!AT160=\"\",\"\",'1. Order'!AT160)","v":""},{"$f":"IF('1. Order'!AU160=\"\",\"\",'1. Order'!AU160)","v":""},null,null,null,null,null,null,null,{"$f":"IF('1. Order'!AY160=\"\",\"\",'1. Order'!AY160)","v":""},{"$f":"IF('1. Order'!AZ160=\"\",\"\",'1. Order'!AZ160)","v":""},{"$f":"IF('1. Order'!BA160=\"\",\"\",'1. Order'!BA160)","v":""},{"$f":"IF('1. Order'!BB160=\"\",\"\",'1. Order'!BB160)","v":""},{"$f":"IF('1. Order'!BD160=\"\",\"\",'1. Order'!BD160)","v":""},{"$f":"IF('1. Order'!BE160=\"\",\"\",'1. Order'!BE160)","v":""},{"$f":"IF('1. Order'!BF160=\"\",\"\",'1. Order'!BF160)","v":""},{"$f":"IF('1. Order'!BG160=\"\",\"\",'1. Order'!BG160)","v":""},{"$f":"IF('1. Order'!BH160=\"\",\"\",'1. Order'!BH160)","v":"ZWO"}]
[{"$f":"IF('1. Order'!F161=\"\",\"\",'1. Order'!F161)","v":{"$error":"#N/A"}},{"$f":"IF('1. Order'!G161=\"\",\"\",'1. Order'!G161)","v":""},{"$f":"IF('1. Order'!H161=\"\",\"\",'1. Order'!H161)","v":""},{"$f":"IF('1. Order'!I161=\"\",\"\",'1. Order'!I161)","v":""},{"$f":"IF('1. Order'!J161=\"\",\"\",'1. Order'!J161)","v":""},{"$f":"IF('1. Order'!K161=\"\",\"\",'1. Order'!K161)","v":""},{"$f":"IF('1. Order'!L161=\"\",\"\",'1. Order'!L161)","v":""},{"$f":"IF('1. Order'!M161=\"\",\"\",'1. Order'!M161)","v":""},{"$f":"IF('1. Order'!N161=\"\",\"\",'1. Order'!N161)","v":""},{"$f":"IF('1. Order'!O161=\"\",\"\",'1. Order'!O161)","v":{"$error":"#N/A"}},{"$f":"IF('1. Order'!P161=\"\",\"\",'1. Order'!P161)","v":{"$error":"#N/A"}},{"$f":"IF('1. Order'!Q161=\"\",\"\",'1. Order'!Q161)","v":""},{"$f":"IF('1. Order'!S161=\"\",\"\",'1. Order'!S161)","v":""},{"$f":"IF('1. Order'!T161=\"\",\"\",'1. Order'!T161)","v":""},{"$f":"IF('1. Order'!W161=\"\",\"\",'1. Order'!W161)","v":""},{"$f":"IF('1. Order'!X161=\"\",\"\",'1. Order'!X161)","v":""},{"$f":"IF('1. Order'!Y161=\"\",\"\",'1. Order'!Y161)","v":"EUR"},{"$f":"IF('1. Order'!Z161=\"\",\"\",'1. Order'!Z161)","v":""},{"$f":"IF('1. Order'!AA161=\"\",\"\",'1. Order'!AA161)","v":""},{"$f":"IF('1. Order'!AB161=\"\",\"\",'1. Order'!AB161)","v":""},null,{"$f":"IF('1. Order'!AT161=\"\",\"\",'1. Order'!AT161)","v":""},{"$f":"IF('1. Order'!AU161=\"\",\"\",'1. Order'!AU161)","v":""},null,null,null,null,null,null,null,{"$f":"IF('1. Order'!AY161=\"\",\"\",'1. Order'!AY161)","v":""},{"$f":"IF('1. Order'!AZ161=\"\",\"\",'1. Order'!AZ161)","v":""},{"$f":"IF('1. Order'!BA161=\"\",\"\",'1. Order'!BA161)","v":""},{"$f":"IF('1. Order'!BB161=\"\",\"\",'1. Order'!BB161)","v":""},{"$f":"IF('1. Order'!BD161=\"\",\"\",'1. Order'!BD161)","v":""},{"$f":"IF('1. Order'!BE161=\"\",\"\",'1. Order'!BE161)","v":""},{"$f":"IF('1. Order'!BF161=\"\",\"\",'1. Order'!BF161)","v":""},{"$f":"IF('1. Order'!BG161=\"\",\"\",'1. Order'!BG161)","v":""},{"$f":"IF('1. Order'!BH161=\"\",\"\",'1. Order'!BH161)","v":"ZWO"}]
[{"$f":"IF('1. Order'!F162=\"\",\"\",'1. Order'!F162)","v":{"$error":"#N/A"}},{"$f":"IF('1. Order'!G162=\"\",\"\",'1. Order'!G162)","v":""},{"$f":"IF('1. Order'!H162=\"\",\"\",'1. Order'!H162)","v":""},{"$f":"IF('1. Order'!I162=\"\",\"\",'1. Order'!I162)","v":""},{"$f":"IF('1. Order'!J162=\"\",\"\",'1. Order'!J162)","v":""},{"$f":"IF('1. Order'!K162=\"\",\"\",'1. Order'!K162)","v":""},{"$f":"IF('1. Order'!L162=\"\",\"\",'1. Order'!L162)","v":""},{"$f":"IF('1. Order'!M162=\"\",\"\",'1. Order'!M162)","v":""},{"$f":"IF('1. Order'!N162=\"\",\"\",'1. Order'!N162)","v":""},{"$f":"IF('1. Order'!O162=\"\",\"\",'1. Order'!O162)","v":{"$error":"#N/A"}},{"$f":"IF('1. Order'!P162=\"\",\"\",'1. Order'!P162)","v":{"$error":"#N/A"}},{"$f":"IF('1. Order'!Q162=\"\",\"\",'1. Order'!Q162)","v":""},{"$f":"IF('1. Order'!S162=\"\",\"\",'1. Order'!S162)","v":""},{"$f":"IF('1. Order'!T162=\"\",\"\",'1. Order'!T162)","v":""},{"$f":"IF('1. Order'!W162=\"\",\"\",'1. Order'!W162)","v":""},{"$f":"IF('1. Order'!X162=\"\",\"\",'1. Order'!X162)","v":""},{"$f":"IF('1. Order'!Y162=\"\",\"\",'1. Order'!Y162)","v":"EUR"},{"$f":"IF('1. Order'!Z162=\"\",\"\",'1. Order'!Z162)","v":""},{"$f":"IF('1. Order'!AA162=\"\",\"\",'1. Order'!AA162)","v":""},{"$f":"IF('1. Order'!AB162=\"\",\"\",'1. Order'!AB162)","v":""},null,{"$f":"IF('1. Order'!AT162=\"\",\"\",'1. Order'!AT162)","v":""},{"$f":"IF('1. Order'!AU162=\"\",\"\",'1. Order'!AU162)","v":""},null,null,null,null,null,null,null,{"$f":"IF('1. Order'!AY162=\"\",\"\",'1. Order'!AY162)","v":""},{"$f":"IF('1. Order'!AZ162=\"\",\"\",'1. Order'!AZ162)","v":""},{"$f":"IF('1. Order'!BA162=\"\",\"\",'1. Order'!BA162)","v":""},{"$f":"IF('1. Order'!BB162=\"\",\"\",'1. Order'!BB162)","v":""},{"$f":"IF('1. Order'!BD162=\"\",\"\",'1. Order'!BD162)","v":""},{"$f":"IF('1. Order'!BE162=\"\",\"\",'1. Order'!BE162)","v":""},{"$f":"IF('1. Order'!BF162=\"\",\"\",'1. Order'!BF162)","v":""},{"$f":"IF('1. Order'!BG162=\"\",\"\",'1. Order'!BG162)","v":""},{"$f":"IF('1. Order'!BH162=\"\",\"\",'1. Order'!BH162)","v":"ZWO"}]
[{"$f":"IF('1. Order'!F163=\"\",\"\",'1. Order'!F163)","v":{"$error":"#N/A"}},{"$f":"IF('1. Order'!G163=\"\",\"\",'1. Order'!G163)","v":""},{"$f":"IF('1. Order'!H163=\"\",\"\",'1. Order'!H163)","v":""},{"$f":"IF('1. Order'!I163=\"\",\"\",'1. Order'!I163)","v":""},{"$f":"IF('1. Order'!J163=\"\",\"\",'1. Order'!J163)","v":""},{"$f":"IF('1. Order'!K163=\"\",\"\",'1. Order'!K163)","v":""},{"$f":"IF('1. Order'!L163=\"\",\"\",'1. Order'!L163)","v":""},{"$f":"IF('1. Order'!M163=\"\",\"\",'1. Order'!M163)","v":""},{"$f":"IF('1. Order'!N163=\"\",\"\",'1. Order'!N163)","v":""},{"$f":"IF('1. Order'!O163=\"\",\"\",'1. Order'!O163)","v":{"$error":"#N/A"}},{"$f":"IF('1. Order'!P163=\"\",\"\",'1. Order'!P163)","v":{"$error":"#N/A"}},{"$f":"IF('1. Order'!Q163=\"\",\"\",'1. Order'!Q163)","v":""},{"$f":"IF('1. Order'!S163=\"\",\"\",'1. Order'!S163)","v":""},{"$f":"IF('1. Order'!T163=\"\",\"\",'1. Order'!T163)","v":""},{"$f":"IF('1. Order'!W163=\"\",\"\",'1. Order'!W163)","v":""},{"$f":"IF('1. Order'!X163=\"\",\"\",'1. Order'!X163)","v":""},{"$f":"IF('1. Order'!Y163=\"\",\"\",'1. Order'!Y163)","v":"EUR"},{"$f":"IF('1. Order'!Z163=\"\",\"\",'1. Order'!Z163)","v":""},{"$f":"IF('1. Order'!AA163=\"\",\"\",'1. Order'!AA163)","v":""},{"$f":"IF('1. Order'!AB163=\"\",\"\",'1. Order'!AB163)","v":""},null,{"$f":"IF('1. Order'!AT163=\"\",\"\",'1. Order'!AT163)","v":""},{"$f":"IF('1. Order'!AU163=\"\",\"\",'1. Order'!AU163)","v":""},null,null,null,null,null,null,null,{"$f":"IF('1. Order'!AY163=\"\",\"\",'1. Order'!AY163)","v":""},{"$f":"IF('1. Order'!AZ163=\"\",\"\",'1. Order'!AZ163)","v":""},{"$f":"IF('1. Order'!BA163=\"\",\"\",'1. Order'!BA163)","v":""},{"$f":"IF('1. Order'!BB163=\"\",\"\",'1. Order'!BB163)","v":""},{"$f":"IF('1. Order'!BD163=\"\",\"\",'1. Order'!BD163)","v":""},{"$f":"IF('1. Order'!BE163=\"\",\"\",'1. Order'!BE163)","v":""},{"$f":"IF('1. Order'!BF163=\"\",\"\",'1. Order'!BF163)","v":""},{"$f":"IF('1. Order'!BG163=\"\",\"\",'1. Order'!BG163)","v":""},{"$f":"IF('1. Order'!BH163=\"\",\"\",'1. Order'!BH163)","v":"ZWO"}]
[{"$f":"IF('1. Order'!F164=\"\",\"\",'1. Order'!F164)","v":{"$error":"#N/A"}},{"$f":"IF('1. Order'!G164=\"\",\"\",'1. Order'!G164)","v":""},{"$f":"IF('1. Order'!H164=\"\",\"\",'1. Order'!H164)","v":""},{"$f":"IF('1. Order'!I164=\"\",\"\",'1. Order'!I164)","v":""},{"$f":"IF('1. Order'!J164=\"\",\"\",'1. Order'!J164)","v":""},{"$f":"IF('1. Order'!K164=\"\",\"\",'1. Order'!K164)","v":""},{"$f":"IF('1. Order'!L164=\"\",\"\",'1. Order'!L164)","v":""},{"$f":"IF('1. Order'!M164=\"\",\"\",'1. Order'!M164)","v":""},{"$f":"IF('1. Order'!N164=\"\",\"\",'1. Order'!N164)","v":""},{"$f":"IF('1. Order'!O164=\"\",\"\",'1. Order'!O164)","v":{"$error":"#N/A"}},{"$f":"IF('1. Order'!P164=\"\",\"\",'1. Order'!P164)","v":{"$error":"#N/A"}},{"$f":"IF('1. Order'!Q164=\"\",\"\",'1. Order'!Q164)","v":""},{"$f":"IF('1. Order'!S164=\"\",\"\",'1. Order'!S164)","v":""},{"$f":"IF('1. Order'!T164=\"\",\"\",'1. Order'!T164)","v":""},{"$f":"IF('1. Order'!W164=\"\",\"\",'1. Order'!W164)","v":""},{"$f":"IF('1. Order'!X164=\"\",\"\",'1. Order'!X164)","v":""},{"$f":"IF('1. Order'!Y164=\"\",\"\",'1. Order'!Y164)","v":"EUR"},{"$f":"IF('1. Order'!Z164=\"\",\"\",'1. Order'!Z164)","v":""},{"$f":"IF('1. Order'!AA164=\"\",\"\",'1. Order'!AA164)","v":""},{"$f":"IF('1. Order'!AB164=\"\",\"\",'1. Order'!AB164)","v":""},null,{"$f":"IF('1. Order'!AT164=\"\",\"\",'1. Order'!AT164)","v":""},{"$f":"IF('1. Order'!AU164=\"\",\"\",'1. Order'!AU164)","v":""},null,null,null,null,null,null,null,{"$f":"IF('1. Order'!AY164=\"\",\"\",'1. Order'!AY164)","v":""},{"$f":"IF('1. Order'!AZ164=\"\",\"\",'1. Order'!AZ164)","v":""},{"$f":"IF('1. Order'!BA164=\"\",\"\",'1. Order'!BA164)","v":""},{"$f":"IF('1. Order'!BB164=\"\",\"\",'1. Order'!BB164)","v":""},{"$f":"IF('1. Order'!BD164=\"\",\"\",'1. Order'!BD164)","v":""},{"$f":"IF('1. Order'!BE164=\"\",\"\",'1. Order'!BE164)","v":""},{"$f":"IF('1. Order'!BF164=\"\",\"\",'1. Order'!BF164)","v":""},{"$f":"IF('1. Order'!BG164=\"\",\"\",'1. Order'!BG164)","v":""},{"$f":"IF('1. Order'!BH164=\"\",\"\",'1. Order'!BH164)","v":"ZWO"}]
[{"$f":"IF('1. Order'!F165=\"\",\"\",'1. Order'!F165)","v":{"$error":"#N/A"}},{"$f":"IF('1. Order'!G165=\"\",\"\",'1. Order'!G165)","v":""},{"$f":"IF('1. Order'!H165=\"\",\"\",'1. Order'!H165)","v":""},{"$f":"IF('1. Order'!I165=\"\",\"\",'1. Order'!I165)","v":""},{"$f":"IF('1. Order'!J165=\"\",\"\",'1. Order'!J165)","v":""},{"$f":"IF('1. Order'!K165=\"\",\"\",'1. Order'!K165)","v":""},{"$f":"IF('1. Order'!L165=\"\",\"\",'1. Order'!L165)","v":""},{"$f":"IF('1. Order'!M165=\"\",\"\",'1. Order'!M165)","v":""},{"$f":"IF('1. Order'!N165=\"\",\"\",'1. Order'!N165)","v":""},{"$f":"IF('1. Order'!O165=\"\",\"\",'1. Order'!O165)","v":{"$error":"#N/A"}},{"$f":"IF('1. Order'!P165=\"\",\"\",'1. Order'!P165)","v":{"$error":"#N/A"}},{"$f":"IF('1. Order'!Q165=\"\",\"\",'1. Order'!Q165)","v":""},{"$f":"IF('1. Order'!S165=\"\",\"\",'1. Order'!S165)","v":""},{"$f":"IF('1. Order'!T165=\"\",\"\",'1. Order'!T165)","v":""},{"$f":"IF('1. Order'!W165=\"\",\"\",'1. Order'!W165)","v":""},{"$f":"IF('1. Order'!X165=\"\",\"\",'1. Order'!X165)","v":""},{"$f":"IF('1. Order'!Y165=\"\",\"\",'1. Order'!Y165)","v":"EUR"},{"$f":"IF('1. Order'!Z165=\"\",\"\",'1. Order'!Z165)","v":""},{"$f":"IF('1. Order'!AA165=\"\",\"\",'1. Order'!AA165)","v":""},{"$f":"IF('1. Order'!AB165=\"\",\"\",'1. Order'!AB165)","v":""},null,{"$f":"IF('1. Order'!AT165=\"\",\"\",'1. Order'!AT165)","v":""},{"$f":"IF('1. Order'!AU165=\"\",\"\",'1. Order'!AU165)","v":""},null,null,null,null,null,null,null,{"$f":"IF('1. Order'!AY165=\"\",\"\",'1. Order'!AY165)","v":""},{"$f":"IF('1. Order'!AZ165=\"\",\"\",'1. Order'!AZ165)","v":""},{"$f":"IF('1. Order'!BA165=\"\",\"\",'1. Order'!BA165)","v":""},{"$f":"IF('1. Order'!BB165=\"\",\"\",'1. Order'!BB165)","v":""},{"$f":"IF('1. Order'!BD165=\"\",\"\",'1. Order'!BD165)","v":""},{"$f":"IF('1. Order'!BE165=\"\",\"\",'1. Order'!BE165)","v":""},{"$f":"IF('1. Order'!BF165=\"\",\"\",'1. Order'!BF165)","v":""},{"$f":"IF('1. Order'!BG165=\"\",\"\",'1. Order'!BG165)","v":""},{"$f":"IF('1. Order'!BH165=\"\",\"\",'1. Order'!BH165)","v":"ZWO"}]
[{"$f":"IF('1. Order'!F166=\"\",\"\",'1. Order'!F166)","v":{"$error":"#N/A"}},{"$f":"IF('1. Order'!G166=\"\",\"\",'1. Order'!G166)","v":""},{"$f":"IF('1. Order'!H166=\"\",\"\",'1. Order'!H166)","v":""},{"$f":"IF('1. Order'!I166=\"\",\"\",'1. Order'!I166)","v":""},{"$f":"IF('1. Order'!J166=\"\",\"\",'1. Order'!J166)","v":""},{"$f":"IF('1. Order'!K166=\"\",\"\",'1. Order'!K166)","v":""},{"$f":"IF('1. Order'!L166=\"\",\"\",'1. Order'!L166)","v":""},{"$f":"IF('1. Order'!M166=\"\",\"\",'1. Order'!M166)","v":""},{"$f":"IF('1. Order'!N166=\"\",\"\",'1. Order'!N166)","v":""},{"$f":"IF('1. Order'!O166=\"\",\"\",'1. Order'!O166)","v":{"$error":"#N/A"}},{"$f":"IF('1. Order'!P166=\"\",\"\",'1. Order'!P166)","v":{"$error":"#N/A"}},{"$f":"IF('1. Order'!Q166=\"\",\"\",'1. Order'!Q166)","v":""},{"$f":"IF('1. Order'!S166=\"\",\"\",'1. Order'!S166)","v":""},{"$f":"IF('1. Order'!T166=\"\",\"\",'1. Order'!T166)","v":""},{"$f":"IF('1. Order'!W166=\"\",\"\",'1. Order'!W166)","v":""},{"$f":"IF('1. Order'!X166=\"\",\"\",'1. Order'!X166)","v":""},{"$f":"IF('1. Order'!Y166=\"\",\"\",'1. Order'!Y166)","v":"EUR"},{"$f":"IF('1. Order'!Z166=\"\",\"\",'1. Order'!Z166)","v":""},{"$f":"IF('1. Order'!AA166=\"\",\"\",'1. Order'!AA166)","v":""},{"$f":"IF('1. Order'!AB166=\"\",\"\",'1. Order'!AB166)","v":""},null,{"$f":"IF('1. Order'!AT166=\"\",\"\",'1. Order'!AT166)","v":""},{"$f":"IF('1. Order'!AU166=\"\",\"\",'1. Order'!AU166)","v":""},null,null,null,null,null,null,null,{"$f":"IF('1. Order'!AY166=\"\",\"\",'1. Order'!AY166)","v":""},{"$f":"IF('1. Order'!AZ166=\"\",\"\",'1. Order'!AZ166)","v":""},{"$f":"IF('1. Order'!BA166=\"\",\"\",'1. Order'!BA166)","v":""},{"$f":"IF('1. Order'!BB166=\"\",\"\",'1. Order'!BB166)","v":""},{"$f":"IF('1. Order'!BD166=\"\",\"\",'1. Order'!BD166)","v":""},{"$f":"IF('1. Order'!BE166=\"\",\"\",'1. Order'!BE166)","v":""},{"$f":"IF('1. Order'!BF166=\"\",\"\",'1. Order'!BF166)","v":""},{"$f":"IF('1. Order'!BG166=\"\",\"\",'1. Order'!BG166)","v":""},{"$f":"IF('1. Order'!BH166=\"\",\"\",'1. Order'!BH166)","v":"ZWO"}]
[{"$f":"IF('1. Order'!F167=\"\",\"\",'1. Order'!F167)","v":{"$error":"#N/A"}},{"$f":"IF('1. Order'!G167=\"\",\"\",'1. Order'!G167)","v":""},{"$f":"IF('1. Order'!H167=\"\",\"\",'1. Order'!H167)","v":""},{"$f":"IF('1. Order'!I167=\"\",\"\",'1. Order'!I167)","v":""},{"$f":"IF('1. Order'!J167=\"\",\"\",'1. Order'!J167)","v":""},{"$f":"IF('1. Order'!K167=\"\",\"\",'1. Order'!K167)","v":""},{"$f":"IF('1. Order'!L167=\"\",\"\",'1. Order'!L167)","v":""},{"$f":"IF('1. Order'!M167=\"\",\"\",'1. Order'!M167)","v":""},{"$f":"IF('1. Order'!N167=\"\",\"\",'1. Order'!N167)","v":""},{"$f":"IF('1. Order'!O167=\"\",\"\",'1. Order'!O167)","v":{"$error":"#N/A"}},{"$f":"IF('1. Order'!P167=\"\",\"\",'1. Order'!P167)","v":{"$error":"#N/A"}},{"$f":"IF('1. Order'!Q167=\"\",\"\",'1. Order'!Q167)","v":""},{"$f":"IF('1. Order'!S167=\"\",\"\",'1. Order'!S167)","v":""},{"$f":"IF('1. Order'!T167=\"\",\"\",'1. Order'!T167)","v":""},{"$f":"IF('1. Order'!W167=\"\",\"\",'1. Order'!W167)","v":""},{"$f":"IF('1. Order'!X167=\"\",\"\",'1. Order'!X167)","v":""},{"$f":"IF('1. Order'!Y167=\"\",\"\",'1. Order'!Y167)","v":"EUR"},{"$f":"IF('1. Order'!Z167=\"\",\"\",'1. Order'!Z167)","v":""},{"$f":"IF('1. Order'!AA167=\"\",\"\",'1. Order'!AA167)","v":""},{"$f":"IF('1. Order'!AB167=\"\",\"\",'1. Order'!AB167)","v":""},null,{"$f":"IF('1. Order'!AT167=\"\",\"\",'1. Order'!AT167)","v":""},{"$f":"IF('1. Order'!AU167=\"\",\"\",'1. Order'!AU167)","v":""},null,null,null,null,null,null,null,{"$f":"IF('1. Order'!AY167=\"\",\"\",'1. Order'!AY167)","v":""},{"$f":"IF('1. Order'!AZ167=\"\",\"\",'1. Order'!AZ167)","v":""},{"$f":"IF('1. Order'!BA167=\"\",\"\",'1. Order'!BA167)","v":""},{"$f":"IF('1. Order'!BB167=\"\",\"\",'1. Order'!BB167)","v":""},{"$f":"IF('1. Order'!BD167=\"\",\"\",'1. Order'!BD167)","v":""},{"$f":"IF('1. Order'!BE167=\"\",\"\",'1. Order'!BE167)","v":""},{"$f":"IF('1. Order'!BF167=\"\",\"\",'1. Order'!BF167)","v":""},{"$f":"IF('1. Order'!BG167=\"\",\"\",'1. Order'!BG167)","v":""},{"$f":"IF('1. Order'!BH167=\"\",\"\",'1. Order'!BH167)","v":"ZWO"}]
[{"$f":"IF('1. Order'!F168=\"\",\"\",'1. Order'!F168)","v":{"$error":"#N/A"}},{"$f":"IF('1. Order'!G168=\"\",\"\",'1. Order'!G168)","v":""},{"$f":"IF('1. Order'!H168=\"\",\"\",'1. Order'!H168)","v":""},{"$f":"IF('1. Order'!I168=\"\",\"\",'1. Order'!I168)","v":""},{"$f":"IF('1. Order'!J168=\"\",\"\",'1. Order'!J168)","v":""},{"$f":"IF('1. Order'!K168=\"\",\"\",'1. Order'!K168)","v":""},{"$f":"IF('1. Order'!L168=\"\",\"\",'1. Order'!L168)","v":""},{"$f":"IF('1. Order'!M168=\"\",\"\",'1. Order'!M168)","v":""},{"$f":"IF('1. Order'!N168=\"\",\"\",'1. Order'!N168)","v":""},{"$f":"IF('1. Order'!O168=\"\",\"\",'1. Order'!O168)","v":{"$error":"#N/A"}},{"$f":"IF('1. Order'!P168=\"\",\"\",'1. Order'!P168)","v":{"$error":"#N/A"}},{"$f":"IF('1. Order'!Q168=\"\",\"\",'1. Order'!Q168)","v":""},{"$f":"IF('1. Order'!S168=\"\",\"\",'1. Order'!S168)","v":""},{"$f":"IF('1. Order'!T168=\"\",\"\",'1. Order'!T168)","v":""},{"$f":"IF('1. Order'!W168=\"\",\"\",'1. Order'!W168)","v":""},{"$f":"IF('1. Order'!X168=\"\",\"\",'1. Order'!X168)","v":""},{"$f":"IF('1. Order'!Y168=\"\",\"\",'1. Order'!Y168)","v":"EUR"},{"$f":"IF('1. Order'!Z168=\"\",\"\",'1. Order'!Z168)","v":""},{"$f":"IF('1. Order'!AA168=\"\",\"\",'1. Order'!AA168)","v":""},{"$f":"IF('1. Order'!AB168=\"\",\"\",'1. Order'!AB168)","v":""},null,{"$f":"IF('1. Order'!AT168=\"\",\"\",'1. Order'!AT168)","v":""},{"$f":"IF('1. Order'!AU168=\"\",\"\",'1. Order'!AU168)","v":""},null,null,null,null,null,null,null,{"$f":"IF('1. Order'!AY168=\"\",\"\",'1. Order'!AY168)","v":""},{"$f":"IF('1. Order'!AZ168=\"\",\"\",'1. Order'!AZ168)","v":""},{"$f":"IF('1. Order'!BA168=\"\",\"\",'1. Order'!BA168)","v":""},{"$f":"IF('1. Order'!BB168=\"\",\"\",'1. Order'!BB168)","v":""},{"$f":"IF('1. Order'!BD168=\"\",\"\",'1. Order'!BD168)","v":""},{"$f":"IF('1. Order'!BE168=\"\",\"\",'1. Order'!BE168)","v":""},{"$f":"IF('1. Order'!BF168=\"\",\"\",'1. Order'!BF168)","v":""},{"$f":"IF('1. Order'!BG168=\"\",\"\",'1. Order'!BG168)","v":""},{"$f":"IF('1. Order'!BH168=\"\",\"\",'1. Order'!BH168)","v":"ZWO"}]
[{"$f":"IF('1. Order'!F169=\"\",\"\",'1. Order'!F169)","v":{"$error":"#N/A"}},{"$f":"IF('1. Order'!G169=\"\",\"\",'1. Order'!G169)","v":""},{"$f":"IF('1. Order'!H169=\"\",\"\",'1. Order'!H169)","v":""},{"$f":"IF('1. Order'!I169=\"\",\"\",'1. Order'!I169)","v":""},{"$f":"IF('1. Order'!J169=\"\",\"\",'1. Order'!J169)","v":""},{"$f":"IF('1. Order'!K169=\"\",\"\",'1. Order'!K169)","v":""},{"$f":"IF('1. Order'!L169=\"\",\"\",'1. Order'!L169)","v":""},{"$f":"IF('1. Order'!M169=\"\",\"\",'1. Order'!M169)","v":""},{"$f":"IF('1. Order'!N169=\"\",\"\",'1. Order'!N169)","v":""},{"$f":"IF('1. Order'!O169=\"\",\"\",'1. Order'!O169)","v":{"$error":"#N/A"}},{"$f":"IF('1. Order'!P169=\"\",\"\",'1. Order'!P169)","v":{"$error":"#N/A"}},{"$f":"IF('1. Order'!Q169=\"\",\"\",'1. Order'!Q169)","v":""},{"$f":"IF('1. Order'!S169=\"\",\"\",'1. Order'!S169)","v":""},{"$f":"IF('1. Order'!T169=\"\",\"\",'1. Order'!T169)","v":""},{"$f":"IF('1. Order'!W169=\"\",\"\",'1. Order'!W169)","v":""},{"$f":"IF('1. Order'!X169=\"\",\"\",'1. Order'!X169)","v":""},{"$f":"IF('1. Order'!Y169=\"\",\"\",'1. Order'!Y169)","v":"EUR"},{"$f":"IF('1. Order'!Z169=\"\",\"\",'1. Order'!Z169)","v":""},{"$f":"IF('1. Order'!AA169=\"\",\"\",'1. Order'!AA169)","v":""},{"$f":"IF('1. Order'!AB169=\"\",\"\",'1. Order'!AB169)","v":""},null,{"$f":"IF('1. Order'!AT169=\"\",\"\",'1. Order'!AT169)","v":""},{"$f":"IF('1. Order'!AU169=\"\",\"\",'1. Order'!AU169)","v":""},null,null,null,null,null,null,null,{"$f":"IF('1. Order'!AY169=\"\",\"\",'1. Order'!AY169)","v":""},{"$f":"IF('1. Order'!AZ169=\"\",\"\",'1. Order'!AZ169)","v":""},{"$f":"IF('1. Order'!BA169=\"\",\"\",'1. Order'!BA169)","v":""},{"$f":"IF('1. Order'!BB169=\"\",\"\",'1. Order'!BB169)","v":""},{"$f":"IF('1. Order'!BD169=\"\",\"\",'1. Order'!BD169)","v":""},{"$f":"IF('1. Order'!BE169=\"\",\"\",'1. Order'!BE169)","v":""},{"$f":"IF('1. Order'!BF169=\"\",\"\",'1. Order'!BF169)","v":""},{"$f":"IF('1. Order'!BG169=\"\",\"\",'1. Order'!BG169)","v":""},{"$f":"IF('1. Order'!BH169=\"\",\"\",'1. Order'!BH169)","v":"ZWO"}]
[{"$f":"IF('1. Order'!F170=\"\",\"\",'1. Order'!F170)","v":{"$error":"#N/A"}},{"$f":"IF('1. Order'!G170=\"\",\"\",'1. Order'!G170)","v":""},{"$f":"IF('1. Order'!H170=\"\",\"\",'1. Order'!H170)","v":""},{"$f":"IF('1. Order'!I170=\"\",\"\",'1. Order'!I170)","v":""},{"$f":"IF('1. Order'!J170=\"\",\"\",'1. Order'!J170)","v":""},{"$f":"IF('1. Order'!K170=\"\",\"\",'1. Order'!K170)","v":""},{"$f":"IF('1. Order'!L170=\"\",\"\",'1. Order'!L170)","v":""},{"$f":"IF('1. Order'!M170=\"\",\"\",'1. Order'!M170)","v":""},{"$f":"IF('1. Order'!N170=\"\",\"\",'1. Order'!N170)","v":""},{"$f":"IF('1. Order'!O170=\"\",\"\",'1. Order'!O170)","v":{"$error":"#N/A"}},{"$f":"IF('1. Order'!P170=\"\",\"\",'1. Order'!P170)","v":{"$error":"#N/A"}},{"$f":"IF('1. Order'!Q170=\"\",\"\",'1. Order'!Q170)","v":""},{"$f":"IF('1. Order'!S170=\"\",\"\",'1. Order'!S170)","v":""},{"$f":"IF('1. Order'!T170=\"\",\"\",'1. Order'!T170)","v":""},{"$f":"IF('1. Order'!W170=\"\",\"\",'1. Order'!W170)","v":""},{"$f":"IF('1. Order'!X170=\"\",\"\",'1. Order'!X170)","v":""},{"$f":"IF('1. Order'!Y170=\"\",\"\",'1. Order'!Y170)","v":"EUR"},{"$f":"IF('1. Order'!Z170=\"\",\"\",'1. Order'!Z170)","v":""},{"$f":"IF('1. Order'!AA170=\"\",\"\",'1. Order'!AA170)","v":""},{"$f":"IF('1. Order'!AB170=\"\",\"\",'1. Order'!AB170)","v":""},null,{"$f":"IF('1. Order'!AT170=\"\",\"\",'1. Order'!AT170)","v":""},{"$f":"IF('1. Order'!AU170=\"\",\"\",'1. Order'!AU170)","v":""},null,null,null,null,null,null,null,{"$f":"IF('1. Order'!AY170=\"\",\"\",'1. Order'!AY170)","v":""},{"$f":"IF('1. Order'!AZ170=\"\",\"\",'1. Order'!AZ170)","v":""},{"$f":"IF('1. Order'!BA170=\"\",\"\",'1. Order'!BA170)","v":""},{"$f":"IF('1. Order'!BB170=\"\",\"\",'1. Order'!BB170)","v":""},{"$f":"IF('1. Order'!BD170=\"\",\"\",'1. Order'!BD170)","v":""},{"$f":"IF('1. Order'!BE170=\"\",\"\",'1. Order'!BE170)","v":""},{"$f":"IF('1. Order'!BF170=\"\",\"\",'1. Order'!BF170)","v":""},{"$f":"IF('1. Order'!BG170=\"\",\"\",'1. Order'!BG170)","v":""},{"$f":"IF('1. Order'!BH170=\"\",\"\",'1. Order'!BH170)","v":"ZWO"}]
[{"$f":"IF('1. Order'!F171=\"\",\"\",'1. Order'!F171)","v":{"$error":"#N/A"}},{"$f":"IF('1. Order'!G171=\"\",\"\",'1. Order'!G171)","v":""},{"$f":"IF('1. Order'!H171=\"\",\"\",'1. Order'!H171)","v":""},{"$f":"IF('1. Order'!I171=\"\",\"\",'1. Order'!I171)","v":""},{"$f":"IF('1. Order'!J171=\"\",\"\",'1. Order'!J171)","v":""},{"$f":"IF('1. Order'!K171=\"\",\"\",'1. Order'!K171)","v":""},{"$f":"IF('1. Order'!L171=\"\",\"\",'1. Order'!L171)","v":""},{"$f":"IF('1. Order'!M171=\"\",\"\",'1. Order'!M171)","v":""},{"$f":"IF('1. Order'!N171=\"\",\"\",'1. Order'!N171)","v":""},{"$f":"IF('1. Order'!O171=\"\",\"\",'1. Order'!O171)","v":{"$error":"#N/A"}},{"$f":"IF('1. Order'!P171=\"\",\"\",'1. Order'!P171)","v":{"$error":"#N/A"}},{"$f":"IF('1. Order'!Q171=\"\",\"\",'1. Order'!Q171)","v":""},{"$f":"IF('1. Order'!S171=\"\",\"\",'1. Order'!S171)","v":""},{"$f":"IF('1. Order'!T171=\"\",\"\",'1. Order'!T171)","v":""},{"$f":"IF('1. Order'!W171=\"\",\"\",'1. Order'!W171)","v":""},{"$f":"IF('1. Order'!X171=\"\",\"\",'1. Order'!X171)","v":""},{"$f":"IF('1. Order'!Y171=\"\",\"\",'1. Order'!Y171)","v":"EUR"},{"$f":"IF('1. Order'!Z171=\"\",\"\",'1. Order'!Z171)","v":""},{"$f":"IF('1. Order'!AA171=\"\",\"\",'1. Order'!AA171)","v":""},{"$f":"IF('1. Order'!AB171=\"\",\"\",'1. Order'!AB171)","v":""},null,{"$f":"IF('1. Order'!AT171=\"\",\"\",'1. Order'!AT171)","v":""},{"$f":"IF('1. Order'!AU171=\"\",\"\",'1. Order'!AU171)","v":""},null,null,null,null,null,null,null,{"$f":"IF('1. Order'!AY171=\"\",\"\",'1. Order'!AY171)","v":""},{"$f":"IF('1. Order'!AZ171=\"\",\"\",'1. Order'!AZ171)","v":""},{"$f":"IF('1. Order'!BA171=\"\",\"\",'1. Order'!BA171)","v":""},{"$f":"IF('1. Order'!BB171=\"\",\"\",'1. Order'!BB171)","v":""},{"$f":"IF('1. Order'!BD171=\"\",\"\",'1. Order'!BD171)","v":""},{"$f":"IF('1. Order'!BE171=\"\",\"\",'1. Order'!BE171)","v":""},{"$f":"IF('1. Order'!BF171=\"\",\"\",'1. Order'!BF171)","v":""},{"$f":"IF('1. Order'!BG171=\"\",\"\",'1. Order'!BG171)","v":""},{"$f":"IF('1. Order'!BH171=\"\",\"\",'1. Order'!BH171)","v":"ZWO"}]
[{"$f":"IF('1. Order'!F172=\"\",\"\",'1. Order'!F172)","v":{"$error":"#N/A"}},{"$f":"IF('1. Order'!G172=\"\",\"\",'1. Order'!G172)","v":""},{"$f":"IF('1. Order'!H172=\"\",\"\",'1. Order'!H172)","v":""},{"$f":"IF('1. Order'!I172=\"\",\"\",'1. Order'!I172)","v":""},{"$f":"IF('1. Order'!J172=\"\",\"\",'1. Order'!J172)","v":""},{"$f":"IF('1. Order'!K172=\"\",\"\",'1. Order'!K172)","v":""},{"$f":"IF('1. Order'!L172=\"\",\"\",'1. Order'!L172)","v":""},{"$f":"IF('1. Order'!M172=\"\",\"\",'1. Order'!M172)","v":""},{"$f":"IF('1. Order'!N172=\"\",\"\",'1. Order'!N172)","v":""},{"$f":"IF('1. Order'!O172=\"\",\"\",'1. Order'!O172)","v":{"$error":"#N/A"}},{"$f":"IF('1. Order'!P172=\"\",\"\",'1. Order'!P172)","v":{"$error":"#N/A"}},{"$f":"IF('1. Order'!Q172=\"\",\"\",'1. Order'!Q172)","v":""},{"$f":"IF('1. Order'!S172=\"\",\"\",'1. Order'!S172)","v":""},{"$f":"IF('1. Order'!T172=\"\",\"\",'1. Order'!T172)","v":""},{"$f":"IF('1. Order'!W172=\"\",\"\",'1. Order'!W172)","v":""},{"$f":"IF('1. Order'!X172=\"\",\"\",'1. Order'!X172)","v":""},{"$f":"IF('1. Order'!Y172=\"\",\"\",'1. Order'!Y172)","v":"EUR"},{"$f":"IF('1. Order'!Z172=\"\",\"\",'1. Order'!Z172)","v":""},{"$f":"IF('1. Order'!AA172=\"\",\"\",'1. Order'!AA172)","v":""},{"$f":"IF('1. Order'!AB172=\"\",\"\",'1. Order'!AB172)","v":""},null,{"$f":"IF('1. Order'!AT172=\"\",\"\",'1. Order'!AT172)","v":""},{"$f":"IF('1. Order'!AU172=\"\",\"\",'1. Order'!AU172)","v":""},null,null,null,null,null,null,null,{"$f":"IF('1. Order'!AY172=\"\",\"\",'1. Order'!AY172)","v":""},{"$f":"IF('1. Order'!AZ172=\"\",\"\",'1. Order'!AZ172)","v":""},{"$f":"IF('1. Order'!BA172=\"\",\"\",'1. Order'!BA172)","v":""},{"$f":"IF('1. Order'!BB172=\"\",\"\",'1. Order'!BB172)","v":""},{"$f":"IF('1. Order'!BD172=\"\",\"\",'1. Order'!BD172)","v":""},{"$f":"IF('1. Order'!BE172=\"\",\"\",'1. Order'!BE172)","v":""},{"$f":"IF('1. Order'!BF172=\"\",\"\",'1. Order'!BF172)","v":""},{"$f":"IF('1. Order'!BG172=\"\",\"\",'1. Order'!BG172)","v":""},{"$f":"IF('1. Order'!BH172=\"\",\"\",'1. Order'!BH172)","v":"ZWO"}]
[{"$f":"IF('1. Order'!F173=\"\",\"\",'1. Order'!F173)","v":{"$error":"#N/A"}},{"$f":"IF('1. Order'!G173=\"\",\"\",'1. Order'!G173)","v":""},{"$f":"IF('1. Order'!H173=\"\",\"\",'1. Order'!H173)","v":""},{"$f":"IF('1. Order'!I173=\"\",\"\",'1. Order'!I173)","v":""},{"$f":"IF('1. Order'!J173=\"\",\"\",'1. Order'!J173)","v":""},{"$f":"IF('1. Order'!K173=\"\",\"\",'1. Order'!K173)","v":""},{"$f":"IF('1. Order'!L173=\"\",\"\",'1. Order'!L173)","v":""},{"$f":"IF('1. Order'!M173=\"\",\"\",'1. Order'!M173)","v":""},{"$f":"IF('1. Order'!N173=\"\",\"\",'1. Order'!N173)","v":""},{"$f":"IF('1. Order'!O173=\"\",\"\",'1. Order'!O173)","v":{"$error":"#N/A"}},{"$f":"IF('1. Order'!P173=\"\",\"\",'1. Order'!P173)","v":{"$error":"#N/A"}},{"$f":"IF('1. Order'!Q173=\"\",\"\",'1. Order'!Q173)","v":""},{"$f":"IF('1. Order'!S173=\"\",\"\",'1. Order'!S173)","v":""},{"$f":"IF('1. Order'!T173=\"\",\"\",'1. Order'!T173)","v":""},{"$f":"IF('1. Order'!W173=\"\",\"\",'1. Order'!W173)","v":""},{"$f":"IF('1. Order'!X173=\"\",\"\",'1. Order'!X173)","v":""},{"$f":"IF('1. Order'!Y173=\"\",\"\",'1. Order'!Y173)","v":"EUR"},{"$f":"IF('1. Order'!Z173=\"\",\"\",'1. Order'!Z173)","v":""},{"$f":"IF('1. Order'!AA173=\"\",\"\",'1. Order'!AA173)","v":""},{"$f":"IF('1. Order'!AB173=\"\",\"\",'1. Order'!AB173)","v":""},null,{"$f":"IF('1. Order'!AT173=\"\",\"\",'1. Order'!AT173)","v":""},{"$f":"IF('1. Order'!AU173=\"\",\"\",'1. Order'!AU173)","v":""},null,null,null,null,null,null,null,{"$f":"IF('1. Order'!AY173=\"\",\"\",'1. Order'!AY173)","v":""},{"$f":"IF('1. Order'!AZ173=\"\",\"\",'1. Order'!AZ173)","v":""},{"$f":"IF('1. Order'!BA173=\"\",\"\",'1. Order'!BA173)","v":""},{"$f":"IF('1. Order'!BB173=\"\",\"\",'1. Order'!BB173)","v":""},{"$f":"IF('1. Order'!BD173=\"\",\"\",'1. Order'!BD173)","v":""},{"$f":"IF('1. Order'!BE173=\"\",\"\",'1. Order'!BE173)","v":""},{"$f":"IF('1. Order'!BF173=\"\",\"\",'1. Order'!BF173)","v":""},{"$f":"IF('1. Order'!BG173=\"\",\"\",'1. Order'!BG173)","v":""},{"$f":"IF('1. Order'!BH173=\"\",\"\",'1. Order'!BH173)","v":"ZWO"}]
[{"$f":"IF('1. Order'!F174=\"\",\"\",'1. Order'!F174)","v":{"$error":"#N/A"}},{"$f":"IF('1. Order'!G174=\"\",\"\",'1. Order'!G174)","v":""},{"$f":"IF('1. Order'!H174=\"\",\"\",'1. Order'!H174)","v":""},{"$f":"IF('1. Order'!I174=\"\",\"\",'1. Order'!I174)","v":""},{"$f":"IF('1. Order'!J174=\"\",\"\",'1. Order'!J174)","v":""},{"$f":"IF('1. Order'!K174=\"\",\"\",'1. Order'!K174)","v":""},{"$f":"IF('1. Order'!L174=\"\",\"\",'1. Order'!L174)","v":""},{"$f":"IF('1. Order'!M174=\"\",\"\",'1. Order'!M174)","v":""},{"$f":"IF('1. Order'!N174=\"\",\"\",'1. Order'!N174)","v":""},{"$f":"IF('1. Order'!O174=\"\",\"\",'1. Order'!O174)","v":{"$error":"#N/A"}},{"$f":"IF('1. Order'!P174=\"\",\"\",'1. Order'!P174)","v":{"$error":"#N/A"}},{"$f":"IF('1. Order'!Q174=\"\",\"\",'1. Order'!Q174)","v":""},{"$f":"IF('1. Order'!S174=\"\",\"\",'1. Order'!S174)","v":""},{"$f":"IF('1. Order'!T174=\"\",\"\",'1. Order'!T174)","v":""},{"$f":"IF('1. Order'!W174=\"\",\"\",'1. Order'!W174)","v":""},{"$f":"IF('1. Order'!X174=\"\",\"\",'1. Order'!X174)","v":""},{"$f":"IF('1. Order'!Y174=\"\",\"\",'1. Order'!Y174)","v":"EUR"},{"$f":"IF('1. Order'!Z174=\"\",\"\",'1. Order'!Z174)","v":""},{"$f":"IF('1. Order'!AA174=\"\",\"\",'1. Order'!AA174)","v":""},{"$f":"IF('1. Order'!AB174=\"\",\"\",'1. Order'!AB174)","v":""},null,{"$f":"IF('1. Order'!AT174=\"\",\"\",'1. Order'!AT174)","v":""},{"$f":"IF('1. Order'!AU174=\"\",\"\",'1. Order'!AU174)","v":""},null,null,null,null,null,null,null,{"$f":"IF('1. Order'!AY174=\"\",\"\",'1. Order'!AY174)","v":""},{"$f":"IF('1. Order'!AZ174=\"\",\"\",'1. Order'!AZ174)","v":""},{"$f":"IF('1. Order'!BA174=\"\",\"\",'1. Order'!BA174)","v":""},{"$f":"IF('1. Order'!BB174=\"\",\"\",'1. Order'!BB174)","v":""},{"$f":"IF('1. Order'!BD174=\"\",\"\",'1. Order'!BD174)","v":""},{"$f":"IF('1. Order'!BE174=\"\",\"\",'1. Order'!BE174)","v":""},{"$f":"IF('1. Order'!BF174=\"\",\"\",'1. Order'!BF174)","v":""},{"$f":"IF('1. Order'!BG174=\"\",\"\",'1. Order'!BG174)","v":""},{"$f":"IF('1. Order'!BH174=\"\",\"\",'1. Order'!BH174)","v":"ZWO"}]
[{"$f":"IF('1. Order'!F175=\"\",\"\",'1. Order'!F175)","v":{"$error":"#N/A"}},{"$f":"IF('1. Order'!G175=\"\",\"\",'1. Order'!G175)","v":""},{"$f":"IF('1. Order'!H175=\"\",\"\",'1. Order'!H175)","v":""},{"$f":"IF('1. Order'!I175=\"\",\"\",'1. Order'!I175)","v":""},{"$f":"IF('1. Order'!J175=\"\",\"\",'1. Order'!J175)","v":""},{"$f":"IF('1. Order'!K175=\"\",\"\",'1. Order'!K175)","v":""},{"$f":"IF('1. Order'!L175=\"\",\"\",'1. Order'!L175)","v":""},{"$f":"IF('1. Order'!M175=\"\",\"\",'1. Order'!M175)","v":""},{"$f":"IF('1. Order'!N175=\"\",\"\",'1. Order'!N175)","v":""},{"$f":"IF('1. Order'!O175=\"\",\"\",'1. Order'!O175)","v":{"$error":"#N/A"}},{"$f":"IF('1. Order'!P175=\"\",\"\",'1. Order'!P175)","v":{"$error":"#N/A"}},{"$f":"IF('1. Order'!Q175=\"\",\"\",'1. Order'!Q175)","v":""},{"$f":"IF('1. Order'!S175=\"\",\"\",'1. Order'!S175)","v":""},{"$f":"IF('1. Order'!T175=\"\",\"\",'1. Order'!T175)","v":""},{"$f":"IF('1. Order'!W175=\"\",\"\",'1. Order'!W175)","v":""},{"$f":"IF('1. Order'!X175=\"\",\"\",'1. Order'!X175)","v":""},{"$f":"IF('1. Order'!Y175=\"\",\"\",'1. Order'!Y175)","v":"EUR"},{"$f":"IF('1. Order'!Z175=\"\",\"\",'1. Order'!Z175)","v":""},{"$f":"IF('1. Order'!AA175=\"\",\"\",'1. Order'!AA175)","v":""},{"$f":"IF('1. Order'!AB175=\"\",\"\",'1. Order'!AB175)","v":""},null,{"$f":"IF('1. Order'!AT175=\"\",\"\",'1. Order'!AT175)","v":""},{"$f":"IF('1. Order'!AU175=\"\",\"\",'1. Order'!AU175)","v":""},null,null,null,null,null,null,null,{"$f":"IF('1. Order'!AY175=\"\",\"\",'1. Order'!AY175)","v":""},{"$f":"IF('1. Order'!AZ175=\"\",\"\",'1. Order'!AZ175)","v":""},{"$f":"IF('1. Order'!BA175=\"\",\"\",'1. Order'!BA175)","v":""},{"$f":"IF('1. Order'!BB175=\"\",\"\",'1. Order'!BB175)","v":""},{"$f":"IF('1. Order'!BD175=\"\",\"\",'1. Order'!BD175)","v":""},{"$f":"IF('1. Order'!BE175=\"\",\"\",'1. Order'!BE175)","v":""},{"$f":"IF('1. Order'!BF175=\"\",\"\",'1. Order'!BF175)","v":""},{"$f":"IF('1. Order'!BG175=\"\",\"\",'1. Order'!BG175)","v":""},{"$f":"IF('1. Order'!BH175=\"\",\"\",'1. Order'!BH175)","v":"ZWO"}]
[{"$f":"IF('1. Order'!F176=\"\",\"\",'1. Order'!F176)","v":{"$error":"#N/A"}},{"$f":"IF('1. Order'!G176=\"\",\"\",'1. Order'!G176)","v":""},{"$f":"IF('1. Order'!H176=\"\",\"\",'1. Order'!H176)","v":""},{"$f":"IF('1. Order'!I176=\"\",\"\",'1. Order'!I176)","v":""},{"$f":"IF('1. Order'!J176=\"\",\"\",'1. Order'!J176)","v":""},{"$f":"IF('1. Order'!K176=\"\",\"\",'1. Order'!K176)","v":""},{"$f":"IF('1. Order'!L176=\"\",\"\",'1. Order'!L176)","v":""},{"$f":"IF('1. Order'!M176=\"\",\"\",'1. Order'!M176)","v":""},{"$f":"IF('1. Order'!N176=\"\",\"\",'1. Order'!N176)","v":""},{"$f":"IF('1. Order'!O176=\"\",\"\",'1. Order'!O176)","v":{"$error":"#N/A"}},{"$f":"IF('1. Order'!P176=\"\",\"\",'1. Order'!P176)","v":{"$error":"#N/A"}},{"$f":"IF('1. Order'!Q176=\"\",\"\",'1. Order'!Q176)","v":""},{"$f":"IF('1. Order'!S176=\"\",\"\",'1. Order'!S176)","v":""},{"$f":"IF('1. Order'!T176=\"\",\"\",'1. Order'!T176)","v":""},{"$f":"IF('1. Order'!W176=\"\",\"\",'1. Order'!W176)","v":""},{"$f":"IF('1. Order'!X176=\"\",\"\",'1. Order'!X176)","v":""},{"$f":"IF('1. Order'!Y176=\"\",\"\",'1. Order'!Y176)","v":"EUR"},{"$f":"IF('1. Order'!Z176=\"\",\"\",'1. Order'!Z176)","v":""},{"$f":"IF('1. Order'!AA176=\"\",\"\",'1. Order'!AA176)","v":""},{"$f":"IF('1. Order'!AB176=\"\",\"\",'1. Order'!AB176)","v":""},null,{"$f":"IF('1. Order'!AT176=\"\",\"\",'1. Order'!AT176)","v":""},{"$f":"IF('1. Order'!AU176=\"\",\"\",'1. Order'!AU176)","v":""},null,null,null,null,null,null,null,{"$f":"IF('1. Order'!AY176=\"\",\"\",'1. Order'!AY176)","v":""},{"$f":"IF('1. Order'!AZ176=\"\",\"\",'1. Order'!AZ176)","v":""},{"$f":"IF('1. Order'!BA176=\"\",\"\",'1. Order'!BA176)","v":""},{"$f":"IF('1. Order'!BB176=\"\",\"\",'1. Order'!BB176)","v":""},{"$f":"IF('1. Order'!BD176=\"\",\"\",'1. Order'!BD176)","v":""},{"$f":"IF('1. Order'!BE176=\"\",\"\",'1. Order'!BE176)","v":""},{"$f":"IF('1. Order'!BF176=\"\",\"\",'1. Order'!BF176)","v":""},{"$f":"IF('1. Order'!BG176=\"\",\"\",'1. Order'!BG176)","v":""},{"$f":"IF('1. Order'!BH176=\"\",\"\",'1. Order'!BH176)","v":"ZWO"}]
[{"$f":"IF('1. Order'!F177=\"\",\"\",'1. Order'!F177)","v":{"$error":"#N/A"}},{"$f":"IF('1. Order'!G177=\"\",\"\",'1. Order'!G177)","v":""},{"$f":"IF('1. Order'!H177=\"\",\"\",'1. Order'!H177)","v":""},{"$f":"IF('1. Order'!I177=\"\",\"\",'1. Order'!I177)","v":""},{"$f":"IF('1. Order'!J177=\"\",\"\",'1. Order'!J177)","v":""},{"$f":"IF('1. Order'!K177=\"\",\"\",'1. Order'!K177)","v":""},{"$f":"IF('1. Order'!L177=\"\",\"\",'1. Order'!L177)","v":""},{"$f":"IF('1. Order'!M177=\"\",\"\",'1. Order'!M177)","v":""},{"$f":"IF('1. Order'!N177=\"\",\"\",'1. Order'!N177)","v":""},{"$f":"IF('1. Order'!O177=\"\",\"\",'1. Order'!O177)","v":{"$error":"#N/A"}},{"$f":"IF('1. Order'!P177=\"\",\"\",'1. Order'!P177)","v":{"$error":"#N/A"}},{"$f":"IF('1. Order'!Q177=\"\",\"\",'1. Order'!Q177)","v":""},{"$f":"IF('1. Order'!S177=\"\",\"\",'1. Order'!S177)","v":""},{"$f":"IF('1. Order'!T177=\"\",\"\",'1. Order'!T177)","v":""},{"$f":"IF('1. Order'!W177=\"\",\"\",'1. Order'!W177)","v":""},{"$f":"IF('1. Order'!X177=\"\",\"\",'1. Order'!X177)","v":""},{"$f":"IF('1. Order'!Y177=\"\",\"\",'1. Order'!Y177)","v":"EUR"},{"$f":"IF('1. Order'!Z177=\"\",\"\",'1. Order'!Z177)","v":""},{"$f":"IF('1. Order'!AA177=\"\",\"\",'1. Order'!AA177)","v":""},{"$f":"IF('1. Order'!AB177=\"\",\"\",'1. Order'!AB177)","v":""},null,{"$f":"IF('1. Order'!AT177=\"\",\"\",'1. Order'!AT177)","v":""},{"$f":"IF('1. Order'!AU177=\"\",\"\",'1. Order'!AU177)","v":""},null,null,null,null,null,null,null,{"$f":"IF('1. Order'!AY177=\"\",\"\",'1. Order'!AY177)","v":""},{"$f":"IF('1. Order'!AZ177=\"\",\"\",'1. Order'!AZ177)","v":""},{"$f":"IF('1. Order'!BA177=\"\",\"\",'1. Order'!BA177)","v":""},{"$f":"IF('1. Order'!BB177=\"\",\"\",'1. Order'!BB177)","v":""},{"$f":"IF('1. Order'!BD177=\"\",\"\",'1. Order'!BD177)","v":""},{"$f":"IF('1. Order'!BE177=\"\",\"\",'1. Order'!BE177)","v":""},{"$f":"IF('1. Order'!BF177=\"\",\"\",'1. Order'!BF177)","v":""},{"$f":"IF('1. Order'!BG177=\"\",\"\",'1. Order'!BG177)","v":""},{"$f":"IF('1. Order'!BH177=\"\",\"\",'1. Order'!BH177)","v":"ZWO"}]
[{"$f":"IF('1. Order'!F178=\"\",\"\",'1. Order'!F178)","v":{"$error":"#N/A"}},{"$f":"IF('1. Order'!G178=\"\",\"\",'1. Order'!G178)","v":""},{"$f":"IF('1. Order'!H178=\"\",\"\",'1. Order'!H178)","v":""},{"$f":"IF('1. Order'!I178=\"\",\"\",'1. Order'!I178)","v":""},{"$f":"IF('1. Order'!J178=\"\",\"\",'1. Order'!J178)","v":""},{"$f":"IF('1. Order'!K178=\"\",\"\",'1. Order'!K178)","v":""},{"$f":"IF('1. Order'!L178=\"\",\"\",'1. Order'!L178)","v":""},{"$f":"IF('1. Order'!M178=\"\",\"\",'1. Order'!M178)","v":""},{"$f":"IF('1. Order'!N178=\"\",\"\",'1. Order'!N178)","v":""},{"$f":"IF('1. Order'!O178=\"\",\"\",'1. Order'!O178)","v":{"$error":"#N/A"}},{"$f":"IF('1. Order'!P178=\"\",\"\",'1. Order'!P178)","v":{"$error":"#N/A"}},{"$f":"IF('1. Order'!Q178=\"\",\"\",'1. Order'!Q178)","v":""},{"$f":"IF('1. Order'!S178=\"\",\"\",'1. Order'!S178)","v":""},{"$f":"IF('1. Order'!T178=\"\",\"\",'1. Order'!T178)","v":""},{"$f":"IF('1. Order'!W178=\"\",\"\",'1. Order'!W178)","v":""},{"$f":"IF('1. Order'!X178=\"\",\"\",'1. Order'!X178)","v":""},{"$f":"IF('1. Order'!Y178=\"\",\"\",'1. Order'!Y178)","v":"EUR"},{"$f":"IF('1. Order'!Z178=\"\",\"\",'1. Order'!Z178)","v":""},{"$f":"IF('1. Order'!AA178=\"\",\"\",'1. Order'!AA178)","v":""},{"$f":"IF('1. Order'!AB178=\"\",\"\",'1. Order'!AB178)","v":""},null,{"$f":"IF('1. Order'!AT178=\"\",\"\",'1. Order'!AT178)","v":""},{"$f":"IF('1. Order'!AU178=\"\",\"\",'1. Order'!AU178)","v":""},null,null,null,null,null,null,null,{"$f":"IF('1. Order'!AY178=\"\",\"\",'1. Order'!AY178)","v":""},{"$f":"IF('1. Order'!AZ178=\"\",\"\",'1. Order'!AZ178)","v":""},{"$f":"IF('1. Order'!BA178=\"\",\"\",'1. Order'!BA178)","v":""},{"$f":"IF('1. Order'!BB178=\"\",\"\",'1. Order'!BB178)","v":""},{"$f":"IF('1. Order'!BD178=\"\",\"\",'1. Order'!BD178)","v":""},{"$f":"IF('1. Order'!BE178=\"\",\"\",'1. Order'!BE178)","v":""},{"$f":"IF('1. Order'!BF178=\"\",\"\",'1. Order'!BF178)","v":""},{"$f":"IF('1. Order'!BG178=\"\",\"\",'1. Order'!BG178)","v":""},{"$f":"IF('1. Order'!BH178=\"\",\"\",'1. Order'!BH178)","v":"ZWO"}]
[{"$f":"IF('1. Order'!F179=\"\",\"\",'1. Order'!F179)","v":{"$error":"#N/A"}},{"$f":"IF('1. Order'!G179=\"\",\"\",'1. Order'!G179)","v":""},{"$f":"IF('1. Order'!H179=\"\",\"\",'1. Order'!H179)","v":""},{"$f":"IF('1. Order'!I179=\"\",\"\",'1. Order'!I179)","v":""},{"$f":"IF('1. Order'!J179=\"\",\"\",'1. Order'!J179)","v":""},{"$f":"IF('1. Order'!K179=\"\",\"\",'1. Order'!K179)","v":""},{"$f":"IF('1. Order'!L179=\"\",\"\",'1. Order'!L179)","v":""},{"$f":"IF('1. Order'!M179=\"\",\"\",'1. Order'!M179)","v":""},{"$f":"IF('1. Order'!N179=\"\",\"\",'1. Order'!N179)","v":""},{"$f":"IF('1. Order'!O179=\"\",\"\",'1. Order'!O179)","v":{"$error":"#N/A"}},{"$f":"IF('1. Order'!P179=\"\",\"\",'1. Order'!P179)","v":{"$error":"#N/A"}},{"$f":"IF('1. Order'!Q179=\"\",\"\",'1. Order'!Q179)","v":""},{"$f":"IF('1. Order'!S179=\"\",\"\",'1. Order'!S179)","v":""},{"$f":"IF('1. Order'!T179=\"\",\"\",'1. Order'!T179)","v":""},{"$f":"IF('1. Order'!W179=\"\",\"\",'1. Order'!W179)","v":""},{"$f":"IF('1. Order'!X179=\"\",\"\",'1. Order'!X179)","v":""},{"$f":"IF('1. Order'!Y179=\"\",\"\",'1. Order'!Y179)","v":"EUR"},{"$f":"IF('1. Order'!Z179=\"\",\"\",'1. Order'!Z179)","v":""},{"$f":"IF('1. Order'!AA179=\"\",\"\",'1. Order'!AA179)","v":""},{"$f":"IF('1. Order'!AB179=\"\",\"\",'1. Order'!AB179)","v":""},null,{"$f":"IF('1. Order'!AT179=\"\",\"\",'1. Order'!AT179)","v":""},{"$f":"IF('1. Order'!AU179=\"\",\"\",'1. Order'!AU179)","v":""},null,null,null,null,null,null,null,{"$f":"IF('1. Order'!AY179=\"\",\"\",'1. Order'!AY179)","v":""},{"$f":"IF('1. Order'!AZ179=\"\",\"\",'1. Order'!AZ179)","v":""},{"$f":"IF('1. Order'!BA179=\"\",\"\",'1. Order'!BA179)","v":""},{"$f":"IF('1. Order'!BB179=\"\",\"\",'1. Order'!BB179)","v":""},{"$f":"IF('1. Order'!BD179=\"\",\"\",'1. Order'!BD179)","v":""},{"$f":"IF('1. Order'!BE179=\"\",\"\",'1. Order'!BE179)","v":""},{"$f":"IF('1. Order'!BF179=\"\",\"\",'1. Order'!BF179)","v":""},{"$f":"IF('1. Order'!BG179=\"\",\"\",'1. Order'!BG179)","v":""},{"$f":"IF('1. Order'!BH179=\"\",\"\",'1. Order'!BH179)","v":"ZWO"}]
[{"$f":"IF('1. Order'!F180=\"\",\"\",'1. Order'!F180)","v":{"$error":"#N/A"}},{"$f":"IF('1. Order'!G180=\"\",\"\",'1. Order'!G180)","v":""},{"$f":"IF('1. Order'!H180=\"\",\"\",'1. Order'!H180)","v":""},{"$f":"IF('1. Order'!I180=\"\",\"\",'1. Order'!I180)","v":""},{"$f":"IF('1. Order'!J180=\"\",\"\",'1. Order'!J180)","v":""},{"$f":"IF('1. Order'!K180=\"\",\"\",'1. Order'!K180)","v":""},{"$f":"IF('1. Order'!L180=\"\",\"\",'1. Order'!L180)","v":""},{"$f":"IF('1. Order'!M180=\"\",\"\",'1. Order'!M180)","v":""},{"$f":"IF('1. Order'!N180=\"\",\"\",'1. Order'!N180)","v":""},{"$f":"IF('1. Order'!O180=\"\",\"\",'1. Order'!O180)","v":{"$error":"#N/A"}},{"$f":"IF('1. Order'!P180=\"\",\"\",'1. Order'!P180)","v":{"$error":"#N/A"}},{"$f":"IF('1. Order'!Q180=\"\",\"\",'1. Order'!Q180)","v":""},{"$f":"IF('1. Order'!S180=\"\",\"\",'1. Order'!S180)","v":""},{"$f":"IF('1. Order'!T180=\"\",\"\",'1. Order'!T180)","v":""},{"$f":"IF('1. Order'!W180=\"\",\"\",'1. Order'!W180)","v":""},{"$f":"IF('1. Order'!X180=\"\",\"\",'1. Order'!X180)","v":""},{"$f":"IF('1. Order'!Y180=\"\",\"\",'1. Order'!Y180)","v":"EUR"},{"$f":"IF('1. Order'!Z180=\"\",\"\",'1. Order'!Z180)","v":""},{"$f":"IF('1. Order'!AA180=\"\",\"\",'1. Order'!AA180)","v":""},{"$f":"IF('1. Order'!AB180=\"\",\"\",'1. Order'!AB180)","v":""},null,{"$f":"IF('1. Order'!AT180=\"\",\"\",'1. Order'!AT180)","v":""},{"$f":"IF('1. Order'!AU180=\"\",\"\",'1. Order'!AU180)","v":""},null,null,null,null,null,null,null,{"$f":"IF('1. Order'!AY180=\"\",\"\",'1. Order'!AY180)","v":""},{"$f":"IF('1. Order'!AZ180=\"\",\"\",'1. Order'!AZ180)","v":""},{"$f":"IF('1. Order'!BA180=\"\",\"\",'1. Order'!BA180)","v":""},{"$f":"IF('1. Order'!BB180=\"\",\"\",'1. Order'!BB180)","v":""},{"$f":"IF('1. Order'!BD180=\"\",\"\",'1. Order'!BD180)","v":""},{"$f":"IF('1. Order'!BE180=\"\",\"\",'1. Order'!BE180)","v":""},{"$f":"IF('1. Order'!BF180=\"\",\"\",'1. Order'!BF180)","v":""},{"$f":"IF('1. Order'!BG180=\"\",\"\",'1. Order'!BG180)","v":""},{"$f":"IF('1. Order'!BH180=\"\",\"\",'1. Order'!BH180)","v":"ZWO"}]
[{"$f":"IF('1. Order'!F181=\"\",\"\",'1. Order'!F181)","v":{"$error":"#N/A"}},{"$f":"IF('1. Order'!G181=\"\",\"\",'1. Order'!G181)","v":""},{"$f":"IF('1. Order'!H181=\"\",\"\",'1. Order'!H181)","v":""},{"$f":"IF('1. Order'!I181=\"\",\"\",'1. Order'!I181)","v":""},{"$f":"IF('1. Order'!J181=\"\",\"\",'1. Order'!J181)","v":""},{"$f":"IF('1. Order'!K181=\"\",\"\",'1. Order'!K181)","v":""},{"$f":"IF('1. Order'!L181=\"\",\"\",'1. Order'!L181)","v":""},{"$f":"IF('1. Order'!M181=\"\",\"\",'1. Order'!M181)","v":""},{"$f":"IF('1. Order'!N181=\"\",\"\",'1. Order'!N181)","v":""},{"$f":"IF('1. Order'!O181=\"\",\"\",'1. Order'!O181)","v":{"$error":"#N/A"}},{"$f":"IF('1. Order'!P181=\"\",\"\",'1. Order'!P181)","v":{"$error":"#N/A"}},{"$f":"IF('1. Order'!Q181=\"\",\"\",'1. Order'!Q181)","v":""},{"$f":"IF('1. Order'!S181=\"\",\"\",'1. Order'!S181)","v":""},{"$f":"IF('1. Order'!T181=\"\",\"\",'1. Order'!T181)","v":""},{"$f":"IF('1. Order'!W181=\"\",\"\",'1. Order'!W181)","v":""},{"$f":"IF('1. Order'!X181=\"\",\"\",'1. Order'!X181)","v":""},{"$f":"IF('1. Order'!Y181=\"\",\"\",'1. Order'!Y181)","v":"EUR"},{"$f":"IF('1. Order'!Z181=\"\",\"\",'1. Order'!Z181)","v":""},{"$f":"IF('1. Order'!AA181=\"\",\"\",'1. Order'!AA181)","v":""},{"$f":"IF('1. Order'!AB181=\"\",\"\",'1. Order'!AB181)","v":""},null,{"$f":"IF('1. Order'!AT181=\"\",\"\",'1. Order'!AT181)","v":""},{"$f":"IF('1. Order'!AU181=\"\",\"\",'1. Order'!AU181)","v":""},null,null,null,null,null,null,null,{"$f":"IF('1. Order'!AY181=\"\",\"\",'1. Order'!AY181)","v":""},{"$f":"IF('1. Order'!AZ181=\"\",\"\",'1. Order'!AZ181)","v":""},{"$f":"IF('1. Order'!BA181=\"\",\"\",'1. Order'!BA181)","v":""},{"$f":"IF('1. Order'!BB181=\"\",\"\",'1. Order'!BB181)","v":""},{"$f":"IF('1. Order'!BD181=\"\",\"\",'1. Order'!BD181)","v":""},{"$f":"IF('1. Order'!BE181=\"\",\"\",'1. Order'!BE181)","v":""},{"$f":"IF('1. Order'!BF181=\"\",\"\",'1. Order'!BF181)","v":""},{"$f":"IF('1. Order'!BG181=\"\",\"\",'1. Order'!BG181)","v":""},{"$f":"IF('1. Order'!BH181=\"\",\"\",'1. Order'!BH181)","v":"ZWO"}]
[{"$f":"IF('1. Order'!F182=\"\",\"\",'1. Order'!F182)","v":{"$error":"#N/A"}},{"$f":"IF('1. Order'!G182=\"\",\"\",'1. Order'!G182)","v":""},{"$f":"IF('1. Order'!H182=\"\",\"\",'1. Order'!H182)","v":""},{"$f":"IF('1. Order'!I182=\"\",\"\",'1. Order'!I182)","v":""},{"$f":"IF('1. Order'!J182=\"\",\"\",'1. Order'!J182)","v":""},{"$f":"IF('1. Order'!K182=\"\",\"\",'1. Order'!K182)","v":""},{"$f":"IF('1. Order'!L182=\"\",\"\",'1. Order'!L182)","v":""},{"$f":"IF('1. Order'!M182=\"\",\"\",'1. Order'!M182)","v":""},{"$f":"IF('1. Order'!N182=\"\",\"\",'1. Order'!N182)","v":""},{"$f":"IF('1. Order'!O182=\"\",\"\",'1. Order'!O182)","v":{"$error":"#N/A"}},{"$f":"IF('1. Order'!P182=\"\",\"\",'1. Order'!P182)","v":{"$error":"#N/A"}},{"$f":"IF('1. Order'!Q182=\"\",\"\",'1. Order'!Q182)","v":""},{"$f":"IF('1. Order'!S182=\"\",\"\",'1. Order'!S182)","v":""},{"$f":"IF('1. Order'!T182=\"\",\"\",'1. Order'!T182)","v":""},{"$f":"IF('1. Order'!W182=\"\",\"\",'1. Order'!W182)","v":""},{"$f":"IF('1. Order'!X182=\"\",\"\",'1. Order'!X182)","v":""},{"$f":"IF('1. Order'!Y182=\"\",\"\",'1. Order'!Y182)","v":"EUR"},{"$f":"IF('1. Order'!Z182=\"\",\"\",'1. Order'!Z182)","v":""},{"$f":"IF('1. Order'!AA182=\"\",\"\",'1. Order'!AA182)","v":""},{"$f":"IF('1. Order'!AB182=\"\",\"\",'1. Order'!AB182)","v":""},null,{"$f":"IF('1. Order'!AT182=\"\",\"\",'1. Order'!AT182)","v":""},{"$f":"IF('1. Order'!AU182=\"\",\"\",'1. Order'!AU182)","v":""},null,null,null,null,null,null,null,{"$f":"IF('1. Order'!AY182=\"\",\"\",'1. Order'!AY182)","v":""},{"$f":"IF('1. Order'!AZ182=\"\",\"\",'1. Order'!AZ182)","v":""},{"$f":"IF('1. Order'!BA182=\"\",\"\",'1. Order'!BA182)","v":""},{"$f":"IF('1. Order'!BB182=\"\",\"\",'1. Order'!BB182)","v":""},{"$f":"IF('1. Order'!BD182=\"\",\"\",'1. Order'!BD182)","v":""},{"$f":"IF('1. Order'!BE182=\"\",\"\",'1. Order'!BE182)","v":""},{"$f":"IF('1. Order'!BF182=\"\",\"\",'1. Order'!BF182)","v":""},{"$f":"IF('1. Order'!BG182=\"\",\"\",'1. Order'!BG182)","v":""},{"$f":"IF('1. Order'!BH182=\"\",\"\",'1. Order'!BH182)","v":"ZWO"}]
[{"$f":"IF('1. Order'!F183=\"\",\"\",'1. Order'!F183)","v":{"$error":"#N/A"}},{"$f":"IF('1. Order'!G183=\"\",\"\",'1. Order'!G183)","v":""},{"$f":"IF('1. Order'!H183=\"\",\"\",'1. Order'!H183)","v":""},{"$f":"IF('1. Order'!I183=\"\",\"\",'1. Order'!I183)","v":""},{"$f":"IF('1. Order'!J183=\"\",\"\",'1. Order'!J183)","v":""},{"$f":"IF('1. Order'!K183=\"\",\"\",'1. Order'!K183)","v":""},{"$f":"IF('1. Order'!L183=\"\",\"\",'1. Order'!L183)","v":""},{"$f":"IF('1. Order'!M183=\"\",\"\",'1. Order'!M183)","v":""},{"$f":"IF('1. Order'!N183=\"\",\"\",'1. Order'!N183)","v":""},{"$f":"IF('1. Order'!O183=\"\",\"\",'1. Order'!O183)","v":{"$error":"#N/A"}},{"$f":"IF('1. Order'!P183=\"\",\"\",'1. Order'!P183)","v":{"$error":"#N/A"}},{"$f":"IF('1. Order'!Q183=\"\",\"\",'1. Order'!Q183)","v":""},{"$f":"IF('1. Order'!S183=\"\",\"\",'1. Order'!S183)","v":""},{"$f":"IF('1. Order'!T183=\"\",\"\",'1. Order'!T183)","v":""},{"$f":"IF('1. Order'!W183=\"\",\"\",'1. Order'!W183)","v":""},{"$f":"IF('1. Order'!X183=\"\",\"\",'1. Order'!X183)","v":""},{"$f":"IF('1. Order'!Y183=\"\",\"\",'1. Order'!Y183)","v":"EUR"},{"$f":"IF('1. Order'!Z183=\"\",\"\",'1. Order'!Z183)","v":""},{"$f":"IF('1. Order'!AA183=\"\",\"\",'1. Order'!AA183)","v":""},{"$f":"IF('1. Order'!AB183=\"\",\"\",'1. Order'!AB183)","v":""},null,{"$f":"IF('1. Order'!AT183=\"\",\"\",'1. Order'!AT183)","v":""},{"$f":"IF('1. Order'!AU183=\"\",\"\",'1. Order'!AU183)","v":""},null,null,null,null,null,null,null,{"$f":"IF('1. Order'!AY183=\"\",\"\",'1. Order'!AY183)","v":""},{"$f":"IF('1. Order'!AZ183=\"\",\"\",'1. Order'!AZ183)","v":""},{"$f":"IF('1. Order'!BA183=\"\",\"\",'1. Order'!BA183)","v":""},{"$f":"IF('1. Order'!BB183=\"\",\"\",'1. Order'!BB183)","v":""},{"$f":"IF('1. Order'!BD183=\"\",\"\",'1. Order'!BD183)","v":""},{"$f":"IF('1. Order'!BE183=\"\",\"\",'1. Order'!BE183)","v":""},{"$f":"IF('1. Order'!BF183=\"\",\"\",'1. Order'!BF183)","v":""},{"$f":"IF('1. Order'!BG183=\"\",\"\",'1. Order'!BG183)","v":""},{"$f":"IF('1. Order'!BH183=\"\",\"\",'1. Order'!BH183)","v":"ZWO"}]
[{"$f":"IF('1. Order'!F184=\"\",\"\",'1. Order'!F184)","v":{"$error":"#N/A"}},{"$f":"IF('1. Order'!G184=\"\",\"\",'1. Order'!G184)","v":""},{"$f":"IF('1. Order'!H184=\"\",\"\",'1. Order'!H184)","v":""},{"$f":"IF('1. Order'!I184=\"\",\"\",'1. Order'!I184)","v":""},{"$f":"IF('1. Order'!J184=\"\",\"\",'1. Order'!J184)","v":""},{"$f":"IF('1. Order'!K184=\"\",\"\",'1. Order'!K184)","v":""},{"$f":"IF('1. Order'!L184=\"\",\"\",'1. Order'!L184)","v":""},{"$f":"IF('1. Order'!M184=\"\",\"\",'1. Order'!M184)","v":""},{"$f":"IF('1. Order'!N184=\"\",\"\",'1. Order'!N184)","v":""},{"$f":"IF('1. Order'!O184=\"\",\"\",'1. Order'!O184)","v":{"$error":"#N/A"}},{"$f":"IF('1. Order'!P184=\"\",\"\",'1. Order'!P184)","v":{"$error":"#N/A"}},{"$f":"IF('1. Order'!Q184=\"\",\"\",'1. Order'!Q184)","v":""},{"$f":"IF('1. Order'!S184=\"\",\"\",'1. Order'!S184)","v":""},{"$f":"IF('1. Order'!T184=\"\",\"\",'1. Order'!T184)","v":""},{"$f":"IF('1. Order'!W184=\"\",\"\",'1. Order'!W184)","v":""},{"$f":"IF('1. Order'!X184=\"\",\"\",'1. Order'!X184)","v":""},{"$f":"IF('1. Order'!Y184=\"\",\"\",'1. Order'!Y184)","v":"EUR"},{"$f":"IF('1. Order'!Z184=\"\",\"\",'1. Order'!Z184)","v":""},{"$f":"IF('1. Order'!AA184=\"\",\"\",'1. Order'!AA184)","v":""},{"$f":"IF('1. Order'!AB184=\"\",\"\",'1. Order'!AB184)","v":""},null,{"$f":"IF('1. Order'!AT184=\"\",\"\",'1. Order'!AT184)","v":""},{"$f":"IF('1. Order'!AU184=\"\",\"\",'1. Order'!AU184)","v":""},null,null,null,null,null,null,null,{"$f":"IF('1. Order'!AY184=\"\",\"\",'1. Order'!AY184)","v":""},{"$f":"IF('1. Order'!AZ184=\"\",\"\",'1. Order'!AZ184)","v":""},{"$f":"IF('1. Order'!BA184=\"\",\"\",'1. Order'!BA184)","v":""},{"$f":"IF('1. Order'!BB184=\"\",\"\",'1. Order'!BB184)","v":""},{"$f":"IF('1. Order'!BD184=\"\",\"\",'1. Order'!BD184)","v":""},{"$f":"IF('1. Order'!BE184=\"\",\"\",'1. Order'!BE184)","v":""},{"$f":"IF('1. Order'!BF184=\"\",\"\",'1. Order'!BF184)","v":""},{"$f":"IF('1. Order'!BG184=\"\",\"\",'1. Order'!BG184)","v":""},{"$f":"IF('1. Order'!BH184=\"\",\"\",'1. Order'!BH184)","v":"ZWO"}]
[{"$f":"IF('1. Order'!F185=\"\",\"\",'1. Order'!F185)","v":{"$error":"#N/A"}},{"$f":"IF('1. Order'!G185=\"\",\"\",'1. Order'!G185)","v":""},{"$f":"IF('1. Order'!H185=\"\",\"\",'1. Order'!H185)","v":""},{"$f":"IF('1. Order'!I185=\"\",\"\",'1. Order'!I185)","v":""},{"$f":"IF('1. Order'!J185=\"\",\"\",'1. Order'!J185)","v":""},{"$f":"IF('1. Order'!K185=\"\",\"\",'1. Order'!K185)","v":""},{"$f":"IF('1. Order'!L185=\"\",\"\",'1. Order'!L185)","v":""},{"$f":"IF('1. Order'!M185=\"\",\"\",'1. Order'!M185)","v":""},{"$f":"IF('1. Order'!N185=\"\",\"\",'1. Order'!N185)","v":""},{"$f":"IF('1. Order'!O185=\"\",\"\",'1. Order'!O185)","v":{"$error":"#N/A"}},{"$f":"IF('1. Order'!P185=\"\",\"\",'1. Order'!P185)","v":{"$error":"#N/A"}},{"$f":"IF('1. Order'!Q185=\"\",\"\",'1. Order'!Q185)","v":""},{"$f":"IF('1. Order'!S185=\"\",\"\",'1. Order'!S185)","v":""},{"$f":"IF('1. Order'!T185=\"\",\"\",'1. Order'!T185)","v":""},{"$f":"IF('1. Order'!W185=\"\",\"\",'1. Order'!W185)","v":""},{"$f":"IF('1. Order'!X185=\"\",\"\",'1. Order'!X185)","v":""},{"$f":"IF('1. Order'!Y185=\"\",\"\",'1. Order'!Y185)","v":"EUR"},{"$f":"IF('1. Order'!Z185=\"\",\"\",'1. Order'!Z185)","v":""},{"$f":"IF('1. Order'!AA185=\"\",\"\",'1. Order'!AA185)","v":""},{"$f":"IF('1. Order'!AB185=\"\",\"\",'1. Order'!AB185)","v":""},null,{"$f":"IF('1. Order'!AT185=\"\",\"\",'1. Order'!AT185)","v":""},{"$f":"IF('1. Order'!AU185=\"\",\"\",'1. Order'!AU185)","v":""},null,null,null,null,null,null,null,{"$f":"IF('1. Order'!AY185=\"\",\"\",'1. Order'!AY185)","v":""},{"$f":"IF('1. Order'!AZ185=\"\",\"\",'1. Order'!AZ185)","v":""},{"$f":"IF('1. Order'!BA185=\"\",\"\",'1. Order'!BA185)","v":""},{"$f":"IF('1. Order'!BB185=\"\",\"\",'1. Order'!BB185)","v":""},{"$f":"IF('1. Order'!BD185=\"\",\"\",'1. Order'!BD185)","v":""},{"$f":"IF('1. Order'!BE185=\"\",\"\",'1. Order'!BE185)","v":""},{"$f":"IF('1. Order'!BF185=\"\",\"\",'1. Order'!BF185)","v":""},{"$f":"IF('1. Order'!BG185=\"\",\"\",'1. Order'!BG185)","v":""},{"$f":"IF('1. Order'!BH185=\"\",\"\",'1. Order'!BH185)","v":"ZWO"}]
[{"$f":"IF('1. Order'!F186=\"\",\"\",'1. Order'!F186)","v":{"$error":"#N/A"}},{"$f":"IF('1. Order'!G186=\"\",\"\",'1. Order'!G186)","v":""},{"$f":"IF('1. Order'!H186=\"\",\"\",'1. Order'!H186)","v":""},{"$f":"IF('1. Order'!I186=\"\",\"\",'1. Order'!I186)","v":""},{"$f":"IF('1. Order'!J186=\"\",\"\",'1. Order'!J186)","v":""},{"$f":"IF('1. Order'!K186=\"\",\"\",'1. Order'!K186)","v":""},{"$f":"IF('1. Order'!L186=\"\",\"\",'1. Order'!L186)","v":""},{"$f":"IF('1. Order'!M186=\"\",\"\",'1. Order'!M186)","v":""},{"$f":"IF('1. Order'!N186=\"\",\"\",'1. Order'!N186)","v":""},{"$f":"IF('1. Order'!O186=\"\",\"\",'1. Order'!O186)","v":{"$error":"#N/A"}},{"$f":"IF('1. Order'!P186=\"\",\"\",'1. Order'!P186)","v":{"$error":"#N/A"}},{"$f":"IF('1. Order'!Q186=\"\",\"\",'1. Order'!Q186)","v":""},{"$f":"IF('1. Order'!S186=\"\",\"\",'1. Order'!S186)","v":""},{"$f":"IF('1. Order'!T186=\"\",\"\",'1. Order'!T186)","v":""},{"$f":"IF('1. Order'!W186=\"\",\"\",'1. Order'!W186)","v":""},{"$f":"IF('1. Order'!X186=\"\",\"\",'1. Order'!X186)","v":""},{"$f":"IF('1. Order'!Y186=\"\",\"\",'1. Order'!Y186)","v":"EUR"},{"$f":"IF('1. Order'!Z186=\"\",\"\",'1. Order'!Z186)","v":""},{"$f":"IF('1. Order'!AA186=\"\",\"\",'1. Order'!AA186)","v":""},{"$f":"IF('1. Order'!AB186=\"\",\"\",'1. Order'!AB186)","v":""},null,{"$f":"IF('1. Order'!AT186=\"\",\"\",'1. Order'!AT186)","v":""},{"$f":"IF('1. Order'!AU186=\"\",\"\",'1. Order'!AU186)","v":""},null,null,null,null,null,null,null,{"$f":"IF('1. Order'!AY186=\"\",\"\",'1. Order'!AY186)","v":""},{"$f":"IF('1. Order'!AZ186=\"\",\"\",'1. Order'!AZ186)","v":""},{"$f":"IF('1. Order'!BA186=\"\",\"\",'1. Order'!BA186)","v":""},{"$f":"IF('1. Order'!BB186=\"\",\"\",'1. Order'!BB186)","v":""},{"$f":"IF('1. Order'!BD186=\"\",\"\",'1. Order'!BD186)","v":""},{"$f":"IF('1. Order'!BE186=\"\",\"\",'1. Order'!BE186)","v":""},{"$f":"IF('1. Order'!BF186=\"\",\"\",'1. Order'!BF186)","v":""},{"$f":"IF('1. Order'!BG186=\"\",\"\",'1. Order'!BG186)","v":""},{"$f":"IF('1. Order'!BH186=\"\",\"\",'1. Order'!BH186)","v":"ZWO"}]
[{"$f":"IF('1. Order'!F187=\"\",\"\",'1. Order'!F187)","v":{"$error":"#N/A"}},{"$f":"IF('1. Order'!G187=\"\",\"\",'1. Order'!G187)","v":""},{"$f":"IF('1. Order'!H187=\"\",\"\",'1. Order'!H187)","v":""},{"$f":"IF('1. Order'!I187=\"\",\"\",'1. Order'!I187)","v":""},{"$f":"IF('1. Order'!J187=\"\",\"\",'1. Order'!J187)","v":""},{"$f":"IF('1. Order'!K187=\"\",\"\",'1. Order'!K187)","v":""},{"$f":"IF('1. Order'!L187=\"\",\"\",'1. Order'!L187)","v":""},{"$f":"IF('1. Order'!M187=\"\",\"\",'1. Order'!M187)","v":""},{"$f":"IF('1. Order'!N187=\"\",\"\",'1. Order'!N187)","v":""},{"$f":"IF('1. Order'!O187=\"\",\"\",'1. Order'!O187)","v":{"$error":"#N/A"}},{"$f":"IF('1. Order'!P187=\"\",\"\",'1. Order'!P187)","v":{"$error":"#N/A"}},{"$f":"IF('1. Order'!Q187=\"\",\"\",'1. Order'!Q187)","v":""},{"$f":"IF('1. Order'!S187=\"\",\"\",'1. Order'!S187)","v":""},{"$f":"IF('1. Order'!T187=\"\",\"\",'1. Order'!T187)","v":""},{"$f":"IF('1. Order'!W187=\"\",\"\",'1. Order'!W187)","v":""},{"$f":"IF('1. Order'!X187=\"\",\"\",'1. Order'!X187)","v":""},{"$f":"IF('1. Order'!Y187=\"\",\"\",'1. Order'!Y187)","v":"EUR"},{"$f":"IF('1. Order'!Z187=\"\",\"\",'1. Order'!Z187)","v":""},{"$f":"IF('1. Order'!AA187=\"\",\"\",'1. Order'!AA187)","v":""},{"$f":"IF('1. Order'!AB187=\"\",\"\",'1. Order'!AB187)","v":""},null,{"$f":"IF('1. Order'!AT187=\"\",\"\",'1. Order'!AT187)","v":""},{"$f":"IF('1. Order'!AU187=\"\",\"\",'1. Order'!AU187)","v":""},null,null,null,null,null,null,null,{"$f":"IF('1. Order'!AY187=\"\",\"\",'1. Order'!AY187)","v":""},{"$f":"IF('1. Order'!AZ187=\"\",\"\",'1. Order'!AZ187)","v":""},{"$f":"IF('1. Order'!BA187=\"\",\"\",'1. Order'!BA187)","v":""},{"$f":"IF('1. Order'!BB187=\"\",\"\",'1. Order'!BB187)","v":""},{"$f":"IF('1. Order'!BD187=\"\",\"\",'1. Order'!BD187)","v":""},{"$f":"IF('1. Order'!BE187=\"\",\"\",'1. Order'!BE187)","v":""},{"$f":"IF('1. Order'!BF187=\"\",\"\",'1. Order'!BF187)","v":""},{"$f":"IF('1. Order'!BG187=\"\",\"\",'1. Order'!BG187)","v":""},{"$f":"IF('1. Order'!BH187=\"\",\"\",'1. Order'!BH187)","v":"ZWO"}]
[{"$f":"IF('1. Order'!F188=\"\",\"\",'1. Order'!F188)","v":{"$error":"#N/A"}},{"$f":"IF('1. Order'!G188=\"\",\"\",'1. Order'!G188)","v":""},{"$f":"IF('1. Order'!H188=\"\",\"\",'1. Order'!H188)","v":""},{"$f":"IF('1. Order'!I188=\"\",\"\",'1. Order'!I188)","v":""},{"$f":"IF('1. Order'!J188=\"\",\"\",'1. Order'!J188)","v":""},{"$f":"IF('1. Order'!K188=\"\",\"\",'1. Order'!K188)","v":""},{"$f":"IF('1. Order'!L188=\"\",\"\",'1. Order'!L188)","v":""},{"$f":"IF('1. Order'!M188=\"\",\"\",'1. Order'!M188)","v":""},{"$f":"IF('1. Order'!N188=\"\",\"\",'1. Order'!N188)","v":""},{"$f":"IF('1. Order'!O188=\"\",\"\",'1. Order'!O188)","v":{"$error":"#N/A"}},{"$f":"IF('1. Order'!P188=\"\",\"\",'1. Order'!P188)","v":{"$error":"#N/A"}},{"$f":"IF('1. Order'!Q188=\"\",\"\",'1. Order'!Q188)","v":""},{"$f":"IF('1. Order'!S188=\"\",\"\",'1. Order'!S188)","v":""},{"$f":"IF('1. Order'!T188=\"\",\"\",'1. Order'!T188)","v":""},{"$f":"IF('1. Order'!W188=\"\",\"\",'1. Order'!W188)","v":""},{"$f":"IF('1. Order'!X188=\"\",\"\",'1. Order'!X188)","v":""},{"$f":"IF('1. Order'!Y188=\"\",\"\",'1. Order'!Y188)","v":"EUR"},{"$f":"IF('1. Order'!Z188=\"\",\"\",'1. Order'!Z188)","v":""},{"$f":"IF('1. Order'!AA188=\"\",\"\",'1. Order'!AA188)","v":""},{"$f":"IF('1. Order'!AB188=\"\",\"\",'1. Order'!AB188)","v":""},null,{"$f":"IF('1. Order'!AT188=\"\",\"\",'1. Order'!AT188)","v":""},{"$f":"IF('1. Order'!AU188=\"\",\"\",'1. Order'!AU188)","v":""},null,null,null,null,null,null,null,{"$f":"IF('1. Order'!AY188=\"\",\"\",'1. Order'!AY188)","v":""},{"$f":"IF('1. Order'!AZ188=\"\",\"\",'1. Order'!AZ188)","v":""},{"$f":"IF('1. Order'!BA188=\"\",\"\",'1. Order'!BA188)","v":""},{"$f":"IF('1. Order'!BB188=\"\",\"\",'1. Order'!BB188)","v":""},{"$f":"IF('1. Order'!BD188=\"\",\"\",'1. Order'!BD188)","v":""},{"$f":"IF('1. Order'!BE188=\"\",\"\",'1. Order'!BE188)","v":""},{"$f":"IF('1. Order'!BF188=\"\",\"\",'1. Order'!BF188)","v":""},{"$f":"IF('1. Order'!BG188=\"\",\"\",'1. Order'!BG188)","v":""},{"$f":"IF('1. Order'!BH188=\"\",\"\",'1. Order'!BH188)","v":"ZWO"}]
[{"$f":"IF('1. Order'!F189=\"\",\"\",'1. Order'!F189)","v":{"$error":"#N/A"}},{"$f":"IF('1. Order'!G189=\"\",\"\",'1. Order'!G189)","v":""},{"$f":"IF('1. Order'!H189=\"\",\"\",'1. Order'!H189)","v":""},{"$f":"IF('1. Order'!I189=\"\",\"\",'1. Order'!I189)","v":""},{"$f":"IF('1. Order'!J189=\"\",\"\",'1. Order'!J189)","v":""},{"$f":"IF('1. Order'!K189=\"\",\"\",'1. Order'!K189)","v":""},{"$f":"IF('1. Order'!L189=\"\",\"\",'1. Order'!L189)","v":""},{"$f":"IF('1. Order'!M189=\"\",\"\",'1. Order'!M189)","v":""},{"$f":"IF('1. Order'!N189=\"\",\"\",'1. Order'!N189)","v":""},{"$f":"IF('1. Order'!O189=\"\",\"\",'1. Order'!O189)","v":{"$error":"#N/A"}},{"$f":"IF('1. Order'!P189=\"\",\"\",'1. Order'!P189)","v":{"$error":"#N/A"}},{"$f":"IF('1. Order'!Q189=\"\",\"\",'1. Order'!Q189)","v":""},{"$f":"IF('1. Order'!S189=\"\",\"\",'1. Order'!S189)","v":""},{"$f":"IF('1. Order'!T189=\"\",\"\",'1. Order'!T189)","v":""},{"$f":"IF('1. Order'!W189=\"\",\"\",'1. Order'!W189)","v":""},{"$f":"IF('1. Order'!X189=\"\",\"\",'1. Order'!X189)","v":""},{"$f":"IF('1. Order'!Y189=\"\",\"\",'1. Order'!Y189)","v":"EUR"},{"$f":"IF('1. Order'!Z189=\"\",\"\",'1. Order'!Z189)","v":""},{"$f":"IF('1. Order'!AA189=\"\",\"\",'1. Order'!AA189)","v":""},{"$f":"IF('1. Order'!AB189=\"\",\"\",'1. Order'!AB189)","v":""},null,{"$f":"IF('1. Order'!AT189=\"\",\"\",'1. Order'!AT189)","v":""},{"$f":"IF('1. Order'!AU189=\"\",\"\",'1. Order'!AU189)","v":""},null,null,null,null,null,null,null,{"$f":"IF('1. Order'!AY189=\"\",\"\",'1. Order'!AY189)","v":""},{"$f":"IF('1. Order'!AZ189=\"\",\"\",'1. Order'!AZ189)","v":""},{"$f":"IF('1. Order'!BA189=\"\",\"\",'1. Order'!BA189)","v":""},{"$f":"IF('1. Order'!BB189=\"\",\"\",'1. Order'!BB189)","v":""},{"$f":"IF('1. Order'!BD189=\"\",\"\",'1. Order'!BD189)","v":""},{"$f":"IF('1. Order'!BE189=\"\",\"\",'1. Order'!BE189)","v":""},{"$f":"IF('1. Order'!BF189=\"\",\"\",'1. Order'!BF189)","v":""},{"$f":"IF('1. Order'!BG189=\"\",\"\",'1. Order'!BG189)","v":""},{"$f":"IF('1. Order'!BH189=\"\",\"\",'1. Order'!BH189)","v":"ZWO"}]
[{"$f":"IF('1. Order'!F190=\"\",\"\",'1. Order'!F190)","v":{"$error":"#N/A"}},{"$f":"IF('1. Order'!G190=\"\",\"\",'1. Order'!G190)","v":""},{"$f":"IF('1. Order'!H190=\"\",\"\",'1. Order'!H190)","v":""},{"$f":"IF('1. Order'!I190=\"\",\"\",'1. Order'!I190)","v":""},{"$f":"IF('1. Order'!J190=\"\",\"\",'1. Order'!J190)","v":""},{"$f":"IF('1. Order'!K190=\"\",\"\",'1. Order'!K190)","v":""},{"$f":"IF('1. Order'!L190=\"\",\"\",'1. Order'!L190)","v":""},{"$f":"IF('1. Order'!M190=\"\",\"\",'1. Order'!M190)","v":""},{"$f":"IF('1. Order'!N190=\"\",\"\",'1. Order'!N190)","v":""},{"$f":"IF('1. Order'!O190=\"\",\"\",'1. Order'!O190)","v":{"$error":"#N/A"}},{"$f":"IF('1. Order'!P190=\"\",\"\",'1. Order'!P190)","v":{"$error":"#N/A"}},{"$f":"IF('1. Order'!Q190=\"\",\"\",'1. Order'!Q190)","v":""},{"$f":"IF('1. Order'!S190=\"\",\"\",'1. Order'!S190)","v":""},{"$f":"IF('1. Order'!T190=\"\",\"\",'1. Order'!T190)","v":""},{"$f":"IF('1. Order'!W190=\"\",\"\",'1. Order'!W190)","v":""},{"$f":"IF('1. Order'!X190=\"\",\"\",'1. Order'!X190)","v":""},{"$f":"IF('1. Order'!Y190=\"\",\"\",'1. Order'!Y190)","v":"EUR"},{"$f":"IF('1. Order'!Z190=\"\",\"\",'1. Order'!Z190)","v":""},{"$f":"IF('1. Order'!AA190=\"\",\"\",'1. Order'!AA190)","v":""},{"$f":"IF('1. Order'!AB190=\"\",\"\",'1. Order'!AB190)","v":""},null,{"$f":"IF('1. Order'!AT190=\"\",\"\",'1. Order'!AT190)","v":""},{"$f":"IF('1. Order'!AU190=\"\",\"\",'1. Order'!AU190)","v":""},null,null,null,null,null,null,null,{"$f":"IF('1. Order'!AY190=\"\",\"\",'1. Order'!AY190)","v":""},{"$f":"IF('1. Order'!AZ190=\"\",\"\",'1. Order'!AZ190)","v":""},{"$f":"IF('1. Order'!BA190=\"\",\"\",'1. Order'!BA190)","v":""},{"$f":"IF('1. Order'!BB190=\"\",\"\",'1. Order'!BB190)","v":""},{"$f":"IF('1. Order'!BD190=\"\",\"\",'1. Order'!BD190)","v":""},{"$f":"IF('1. Order'!BE190=\"\",\"\",'1. Order'!BE190)","v":""},{"$f":"IF('1. Order'!BF190=\"\",\"\",'1. Order'!BF190)","v":""},{"$f":"IF('1. Order'!BG190=\"\",\"\",'1. Order'!BG190)","v":""},{"$f":"IF('1. Order'!BH190=\"\",\"\",'1. Order'!BH190)","v":"ZWO"}]
[{"$f":"IF('1. Order'!F191=\"\",\"\",'1. Order'!F191)","v":{"$error":"#N/A"}},{"$f":"IF('1. Order'!G191=\"\",\"\",'1. Order'!G191)","v":""},{"$f":"IF('1. Order'!H191=\"\",\"\",'1. Order'!H191)","v":""},{"$f":"IF('1. Order'!I191=\"\",\"\",'1. Order'!I191)","v":""},{"$f":"IF('1. Order'!J191=\"\",\"\",'1. Order'!J191)","v":""},{"$f":"IF('1. Order'!K191=\"\",\"\",'1. Order'!K191)","v":""},{"$f":"IF('1. Order'!L191=\"\",\"\",'1. Order'!L191)","v":""},{"$f":"IF('1. Order'!M191=\"\",\"\",'1. Order'!M191)","v":""},{"$f":"IF('1. Order'!N191=\"\",\"\",'1. Order'!N191)","v":""},{"$f":"IF('1. Order'!O191=\"\",\"\",'1. Order'!O191)","v":{"$error":"#N/A"}},{"$f":"IF('1. Order'!P191=\"\",\"\",'1. Order'!P191)","v":{"$error":"#N/A"}},{"$f":"IF('1. Order'!Q191=\"\",\"\",'1. Order'!Q191)","v":""},{"$f":"IF('1. Order'!S191=\"\",\"\",'1. Order'!S191)","v":""},{"$f":"IF('1. Order'!T191=\"\",\"\",'1. Order'!T191)","v":""},{"$f":"IF('1. Order'!W191=\"\",\"\",'1. Order'!W191)","v":""},{"$f":"IF('1. Order'!X191=\"\",\"\",'1. Order'!X191)","v":""},{"$f":"IF('1. Order'!Y191=\"\",\"\",'1. Order'!Y191)","v":"EUR"},{"$f":"IF('1. Order'!Z191=\"\",\"\",'1. Order'!Z191)","v":""},{"$f":"IF('1. Order'!AA191=\"\",\"\",'1. Order'!AA191)","v":""},{"$f":"IF('1. Order'!AB191=\"\",\"\",'1. Order'!AB191)","v":""},null,{"$f":"IF('1. Order'!AT191=\"\",\"\",'1. Order'!AT191)","v":""},{"$f":"IF('1. Order'!AU191=\"\",\"\",'1. Order'!AU191)","v":""},null,null,null,null,null,null,null,{"$f":"IF('1. Order'!AY191=\"\",\"\",'1. Order'!AY191)","v":""},{"$f":"IF('1. Order'!AZ191=\"\",\"\",'1. Order'!AZ191)","v":""},{"$f":"IF('1. Order'!BA191=\"\",\"\",'1. Order'!BA191)","v":""},{"$f":"IF('1. Order'!BB191=\"\",\"\",'1. Order'!BB191)","v":""},{"$f":"IF('1. Order'!BD191=\"\",\"\",'1. Order'!BD191)","v":""},{"$f":"IF('1. Order'!BE191=\"\",\"\",'1. Order'!BE191)","v":""},{"$f":"IF('1. Order'!BF191=\"\",\"\",'1. Order'!BF191)","v":""},{"$f":"IF('1. Order'!BG191=\"\",\"\",'1. Order'!BG191)","v":""},{"$f":"IF('1. Order'!BH191=\"\",\"\",'1. Order'!BH191)","v":"ZWO"}]
[{"$f":"IF('1. Order'!F192=\"\",\"\",'1. Order'!F192)","v":{"$error":"#N/A"}},{"$f":"IF('1. Order'!G192=\"\",\"\",'1. Order'!G192)","v":""},{"$f":"IF('1. Order'!H192=\"\",\"\",'1. Order'!H192)","v":""},{"$f":"IF('1. Order'!I192=\"\",\"\",'1. Order'!I192)","v":""},{"$f":"IF('1. Order'!J192=\"\",\"\",'1. Order'!J192)","v":""},{"$f":"IF('1. Order'!K192=\"\",\"\",'1. Order'!K192)","v":""},{"$f":"IF('1. Order'!L192=\"\",\"\",'1. Order'!L192)","v":""},{"$f":"IF('1. Order'!M192=\"\",\"\",'1. Order'!M192)","v":""},{"$f":"IF('1. Order'!N192=\"\",\"\",'1. Order'!N192)","v":""},{"$f":"IF('1. Order'!O192=\"\",\"\",'1. Order'!O192)","v":{"$error":"#N/A"}},{"$f":"IF('1. Order'!P192=\"\",\"\",'1. Order'!P192)","v":{"$error":"#N/A"}},{"$f":"IF('1. Order'!Q192=\"\",\"\",'1. Order'!Q192)","v":""},{"$f":"IF('1. Order'!S192=\"\",\"\",'1. Order'!S192)","v":""},{"$f":"IF('1. Order'!T192=\"\",\"\",'1. Order'!T192)","v":""},{"$f":"IF('1. Order'!W192=\"\",\"\",'1. Order'!W192)","v":""},{"$f":"IF('1. Order'!X192=\"\",\"\",'1. Order'!X192)","v":""},{"$f":"IF('1. Order'!Y192=\"\",\"\",'1. Order'!Y192)","v":"EUR"},{"$f":"IF('1. Order'!Z192=\"\",\"\",'1. Order'!Z192)","v":""},{"$f":"IF('1. Order'!AA192=\"\",\"\",'1. Order'!AA192)","v":""},{"$f":"IF('1. Order'!AB192=\"\",\"\",'1. Order'!AB192)","v":""},null,{"$f":"IF('1. Order'!AT192=\"\",\"\",'1. Order'!AT192)","v":""},{"$f":"IF('1. Order'!AU192=\"\",\"\",'1. Order'!AU192)","v":""},null,null,null,null,null,null,null,{"$f":"IF('1. Order'!AY192=\"\",\"\",'1. Order'!AY192)","v":""},{"$f":"IF('1. Order'!AZ192=\"\",\"\",'1. Order'!AZ192)","v":""},{"$f":"IF('1. Order'!BA192=\"\",\"\",'1. Order'!BA192)","v":""},{"$f":"IF('1. Order'!BB192=\"\",\"\",'1. Order'!BB192)","v":""},{"$f":"IF('1. Order'!BD192=\"\",\"\",'1. Order'!BD192)","v":""},{"$f":"IF('1. Order'!BE192=\"\",\"\",'1. Order'!BE192)","v":""},{"$f":"IF('1. Order'!BF192=\"\",\"\",'1. Order'!BF192)","v":""},{"$f":"IF('1. Order'!BG192=\"\",\"\",'1. Order'!BG192)","v":""},{"$f":"IF('1. Order'!BH192=\"\",\"\",'1. Order'!BH192)","v":"ZWO"}]
[{"$f":"IF('1. Order'!F193=\"\",\"\",'1. Order'!F193)","v":{"$error":"#N/A"}},{"$f":"IF('1. Order'!G193=\"\",\"\",'1. Order'!G193)","v":""},{"$f":"IF('1. Order'!H193=\"\",\"\",'1. Order'!H193)","v":""},{"$f":"IF('1. Order'!I193=\"\",\"\",'1. Order'!I193)","v":""},{"$f":"IF('1. Order'!J193=\"\",\"\",'1. Order'!J193)","v":""},{"$f":"IF('1. Order'!K193=\"\",\"\",'1. Order'!K193)","v":""},{"$f":"IF('1. Order'!L193=\"\",\"\",'1. Order'!L193)","v":""},{"$f":"IF('1. Order'!M193=\"\",\"\",'1. Order'!M193)","v":""},{"$f":"IF('1. Order'!N193=\"\",\"\",'1. Order'!N193)","v":""},{"$f":"IF('1. Order'!O193=\"\",\"\",'1. Order'!O193)","v":{"$error":"#N/A"}},{"$f":"IF('1. Order'!P193=\"\",\"\",'1. Order'!P193)","v":{"$error":"#N/A"}},{"$f":"IF('1. Order'!Q193=\"\",\"\",'1. Order'!Q193)","v":""},{"$f":"IF('1. Order'!S193=\"\",\"\",'1. Order'!S193)","v":""},{"$f":"IF('1. Order'!T193=\"\",\"\",'1. Order'!T193)","v":""},{"$f":"IF('1. Order'!W193=\"\",\"\",'1. Order'!W193)","v":""},{"$f":"IF('1. Order'!X193=\"\",\"\",'1. Order'!X193)","v":""},{"$f":"IF('1. Order'!Y193=\"\",\"\",'1. Order'!Y193)","v":"EUR"},{"$f":"IF('1. Order'!Z193=\"\",\"\",'1. Order'!Z193)","v":""},{"$f":"IF('1. Order'!AA193=\"\",\"\",'1. Order'!AA193)","v":""},{"$f":"IF('1. Order'!AB193=\"\",\"\",'1. Order'!AB193)","v":""},null,{"$f":"IF('1. Order'!AT193=\"\",\"\",'1. Order'!AT193)","v":""},{"$f":"IF('1. Order'!AU193=\"\",\"\",'1. Order'!AU193)","v":""},null,null,null,null,null,null,null,{"$f":"IF('1. Order'!AY193=\"\",\"\",'1. Order'!AY193)","v":""},{"$f":"IF('1. Order'!AZ193=\"\",\"\",'1. Order'!AZ193)","v":""},{"$f":"IF('1. Order'!BA193=\"\",\"\",'1. Order'!BA193)","v":""},{"$f":"IF('1. Order'!BB193=\"\",\"\",'1. Order'!BB193)","v":""},{"$f":"IF('1. Order'!BD193=\"\",\"\",'1. Order'!BD193)","v":""},{"$f":"IF('1. Order'!BE193=\"\",\"\",'1. Order'!BE193)","v":""},{"$f":"IF('1. Order'!BF193=\"\",\"\",'1. Order'!BF193)","v":""},{"$f":"IF('1. Order'!BG193=\"\",\"\",'1. Order'!BG193)","v":""},{"$f":"IF('1. Order'!BH193=\"\",\"\",'1. Order'!BH193)","v":"ZWO"}]
[{"$f":"IF('1. Order'!F194=\"\",\"\",'1. Order'!F194)","v":{"$error":"#N/A"}},{"$f":"IF('1. Order'!G194=\"\",\"\",'1. Order'!G194)","v":""},{"$f":"IF('1. Order'!H194=\"\",\"\",'1. Order'!H194)","v":""},{"$f":"IF('1. Order'!I194=\"\",\"\",'1. Order'!I194)","v":""},{"$f":"IF('1. Order'!J194=\"\",\"\",'1. Order'!J194)","v":""},{"$f":"IF('1. Order'!K194=\"\",\"\",'1. Order'!K194)","v":""},{"$f":"IF('1. Order'!L194=\"\",\"\",'1. Order'!L194)","v":""},{"$f":"IF('1. Order'!M194=\"\",\"\",'1. Order'!M194)","v":""},{"$f":"IF('1. Order'!N194=\"\",\"\",'1. Order'!N194)","v":""},{"$f":"IF('1. Order'!O194=\"\",\"\",'1. Order'!O194)","v":{"$error":"#N/A"}},{"$f":"IF('1. Order'!P194=\"\",\"\",'1. Order'!P194)","v":{"$error":"#N/A"}},{"$f":"IF('1. Order'!Q194=\"\",\"\",'1. Order'!Q194)","v":""},{"$f":"IF('1. Order'!S194=\"\",\"\",'1. Order'!S194)","v":""},{"$f":"IF('1. Order'!T194=\"\",\"\",'1. Order'!T194)","v":""},{"$f":"IF('1. Order'!W194=\"\",\"\",'1. Order'!W194)","v":""},{"$f":"IF('1. Order'!X194=\"\",\"\",'1. Order'!X194)","v":""},{"$f":"IF('1. Order'!Y194=\"\",\"\",'1. Order'!Y194)","v":"EUR"},{"$f":"IF('1. Order'!Z194=\"\",\"\",'1. Order'!Z194)","v":""},{"$f":"IF('1. Order'!AA194=\"\",\"\",'1. Order'!AA194)","v":""},{"$f":"IF('1. Order'!AB194=\"\",\"\",'1. Order'!AB194)","v":""},null,{"$f":"IF('1. Order'!AT194=\"\",\"\",'1. Order'!AT194)","v":""},{"$f":"IF('1. Order'!AU194=\"\",\"\",'1. Order'!AU194)","v":""},null,null,null,null,null,null,null,{"$f":"IF('1. Order'!AY194=\"\",\"\",'1. Order'!AY194)","v":""},{"$f":"IF('1. Order'!AZ194=\"\",\"\",'1. Order'!AZ194)","v":""},{"$f":"IF('1. Order'!BA194=\"\",\"\",'1. Order'!BA194)","v":""},{"$f":"IF('1. Order'!BB194=\"\",\"\",'1. Order'!BB194)","v":""},{"$f":"IF('1. Order'!BD194=\"\",\"\",'1. Order'!BD194)","v":""},{"$f":"IF('1. Order'!BE194=\"\",\"\",'1. Order'!BE194)","v":""},{"$f":"IF('1. Order'!BF194=\"\",\"\",'1. Order'!BF194)","v":""},{"$f":"IF('1. Order'!BG194=\"\",\"\",'1. Order'!BG194)","v":""},{"$f":"IF('1. Order'!BH194=\"\",\"\",'1. Order'!BH194)","v":"ZWO"}]
[{"$f":"IF('1. Order'!F195=\"\",\"\",'1. Order'!F195)","v":{"$error":"#N/A"}},{"$f":"IF('1. Order'!G195=\"\",\"\",'1. Order'!G195)","v":""},{"$f":"IF('1. Order'!H195=\"\",\"\",'1. Order'!H195)","v":""},{"$f":"IF('1. Order'!I195=\"\",\"\",'1. Order'!I195)","v":""},{"$f":"IF('1. Order'!J195=\"\",\"\",'1. Order'!J195)","v":""},{"$f":"IF('1. Order'!K195=\"\",\"\",'1. Order'!K195)","v":""},{"$f":"IF('1. Order'!L195=\"\",\"\",'1. Order'!L195)","v":""},{"$f":"IF('1. Order'!M195=\"\",\"\",'1. Order'!M195)","v":""},{"$f":"IF('1. Order'!N195=\"\",\"\",'1. Order'!N195)","v":""},{"$f":"IF('1. Order'!O195=\"\",\"\",'1. Order'!O195)","v":{"$error":"#N/A"}},{"$f":"IF('1. Order'!P195=\"\",\"\",'1. Order'!P195)","v":{"$error":"#N/A"}},{"$f":"IF('1. Order'!Q195=\"\",\"\",'1. Order'!Q195)","v":""},{"$f":"IF('1. Order'!S195=\"\",\"\",'1. Order'!S195)","v":""},{"$f":"IF('1. Order'!T195=\"\",\"\",'1. Order'!T195)","v":""},{"$f":"IF('1. Order'!W195=\"\",\"\",'1. Order'!W195)","v":""},{"$f":"IF('1. Order'!X195=\"\",\"\",'1. Order'!X195)","v":""},{"$f":"IF('1. Order'!Y195=\"\",\"\",'1. Order'!Y195)","v":"EUR"},{"$f":"IF('1. Order'!Z195=\"\",\"\",'1. Order'!Z195)","v":""},{"$f":"IF('1. Order'!AA195=\"\",\"\",'1. Order'!AA195)","v":""},{"$f":"IF('1. Order'!AB195=\"\",\"\",'1. Order'!AB195)","v":""},null,{"$f":"IF('1. Order'!AT195=\"\",\"\",'1. Order'!AT195)","v":""},{"$f":"IF('1. Order'!AU195=\"\",\"\",'1. Order'!AU195)","v":""},null,null,null,null,null,null,null,{"$f":"IF('1. Order'!AY195=\"\",\"\",'1. Order'!AY195)","v":""},{"$f":"IF('1. Order'!AZ195=\"\",\"\",'1. Order'!AZ195)","v":""},{"$f":"IF('1. Order'!BA195=\"\",\"\",'1. Order'!BA195)","v":""},{"$f":"IF('1. Order'!BB195=\"\",\"\",'1. Order'!BB195)","v":""},{"$f":"IF('1. Order'!BD195=\"\",\"\",'1. Order'!BD195)","v":""},{"$f":"IF('1. Order'!BE195=\"\",\"\",'1. Order'!BE195)","v":""},{"$f":"IF('1. Order'!BF195=\"\",\"\",'1. Order'!BF195)","v":""},{"$f":"IF('1. Order'!BG195=\"\",\"\",'1. Order'!BG195)","v":""},{"$f":"IF('1. Order'!BH195=\"\",\"\",'1. Order'!BH195)","v":"ZWO"}]
[{"$f":"IF('1. Order'!F196=\"\",\"\",'1. Order'!F196)","v":{"$error":"#N/A"}},{"$f":"IF('1. Order'!G196=\"\",\"\",'1. Order'!G196)","v":""},{"$f":"IF('1. Order'!H196=\"\",\"\",'1. Order'!H196)","v":""},{"$f":"IF('1. Order'!I196=\"\",\"\",'1. Order'!I196)","v":""},{"$f":"IF('1. Order'!J196=\"\",\"\",'1. Order'!J196)","v":""},{"$f":"IF('1. Order'!K196=\"\",\"\",'1. Order'!K196)","v":""},{"$f":"IF('1. Order'!L196=\"\",\"\",'1. Order'!L196)","v":""},{"$f":"IF('1. Order'!M196=\"\",\"\",'1. Order'!M196)","v":""},{"$f":"IF('1. Order'!N196=\"\",\"\",'1. Order'!N196)","v":""},{"$f":"IF('1. Order'!O196=\"\",\"\",'1. Order'!O196)","v":{"$error":"#N/A"}},{"$f":"IF('1. Order'!P196=\"\",\"\",'1. Order'!P196)","v":{"$error":"#N/A"}},{"$f":"IF('1. Order'!Q196=\"\",\"\",'1. Order'!Q196)","v":""},{"$f":"IF('1. Order'!S196=\"\",\"\",'1. Order'!S196)","v":""},{"$f":"IF('1. Order'!T196=\"\",\"\",'1. Order'!T196)","v":""},{"$f":"IF('1. Order'!W196=\"\",\"\",'1. Order'!W196)","v":""},{"$f":"IF('1. Order'!X196=\"\",\"\",'1. Order'!X196)","v":""},{"$f":"IF('1. Order'!Y196=\"\",\"\",'1. Order'!Y196)","v":"EUR"},{"$f":"IF('1. Order'!Z196=\"\",\"\",'1. Order'!Z196)","v":""},{"$f":"IF('1. Order'!AA196=\"\",\"\",'1. Order'!AA196)","v":""},{"$f":"IF('1. Order'!AB196=\"\",\"\",'1. Order'!AB196)","v":""},null,{"$f":"IF('1. Order'!AT196=\"\",\"\",'1. Order'!AT196)","v":""},{"$f":"IF('1. Order'!AU196=\"\",\"\",'1. Order'!AU196)","v":""},null,null,null,null,null,null,null,{"$f":"IF('1. Order'!AY196=\"\",\"\",'1. Order'!AY196)","v":""},{"$f":"IF('1. Order'!AZ196=\"\",\"\",'1. Order'!AZ196)","v":""},{"$f":"IF('1. Order'!BA196=\"\",\"\",'1. Order'!BA196)","v":""},{"$f":"IF('1. Order'!BB196=\"\",\"\",'1. Order'!BB196)","v":""},{"$f":"IF('1. Order'!BD196=\"\",\"\",'1. Order'!BD196)","v":""},{"$f":"IF('1. Order'!BE196=\"\",\"\",'1. Order'!BE196)","v":""},{"$f":"IF('1. Order'!BF196=\"\",\"\",'1. Order'!BF196)","v":""},{"$f":"IF('1. Order'!BG196=\"\",\"\",'1. Order'!BG196)","v":""},{"$f":"IF('1. Order'!BH196=\"\",\"\",'1. Order'!BH196)","v":"ZWO"}]
[{"$f":"IF('1. Order'!F197=\"\",\"\",'1. Order'!F197)","v":{"$error":"#N/A"}},{"$f":"IF('1. Order'!G197=\"\",\"\",'1. Order'!G197)","v":""},{"$f":"IF('1. Order'!H197=\"\",\"\",'1. Order'!H197)","v":""},{"$f":"IF('1. Order'!I197=\"\",\"\",'1. Order'!I197)","v":""},{"$f":"IF('1. Order'!J197=\"\",\"\",'1. Order'!J197)","v":""},{"$f":"IF('1. Order'!K197=\"\",\"\",'1. Order'!K197)","v":""},{"$f":"IF('1. Order'!L197=\"\",\"\",'1. Order'!L197)","v":""},{"$f":"IF('1. Order'!M197=\"\",\"\",'1. Order'!M197)","v":""},{"$f":"IF('1. Order'!N197=\"\",\"\",'1. Order'!N197)","v":""},{"$f":"IF('1. Order'!O197=\"\",\"\",'1. Order'!O197)","v":{"$error":"#N/A"}},{"$f":"IF('1. Order'!P197=\"\",\"\",'1. Order'!P197)","v":{"$error":"#N/A"}},{"$f":"IF('1. Order'!Q197=\"\",\"\",'1. Order'!Q197)","v":""},{"$f":"IF('1. Order'!S197=\"\",\"\",'1. Order'!S197)","v":""},{"$f":"IF('1. Order'!T197=\"\",\"\",'1. Order'!T197)","v":""},{"$f":"IF('1. Order'!W197=\"\",\"\",'1. Order'!W197)","v":""},{"$f":"IF('1. Order'!X197=\"\",\"\",'1. Order'!X197)","v":""},{"$f":"IF('1. Order'!Y197=\"\",\"\",'1. Order'!Y197)","v":"EUR"},{"$f":"IF('1. Order'!Z197=\"\",\"\",'1. Order'!Z197)","v":""},{"$f":"IF('1. Order'!AA197=\"\",\"\",'1. Order'!AA197)","v":""},{"$f":"IF('1. Order'!AB197=\"\",\"\",'1. Order'!AB197)","v":""},null,{"$f":"IF('1. Order'!AT197=\"\",\"\",'1. Order'!AT197)","v":""},{"$f":"IF('1. Order'!AU197=\"\",\"\",'1. Order'!AU197)","v":""},null,null,null,null,null,null,null,{"$f":"IF('1. Order'!AY197=\"\",\"\",'1. Order'!AY197)","v":""},{"$f":"IF('1. Order'!AZ197=\"\",\"\",'1. Order'!AZ197)","v":""},{"$f":"IF('1. Order'!BA197=\"\",\"\",'1. Order'!BA197)","v":""},{"$f":"IF('1. Order'!BB197=\"\",\"\",'1. Order'!BB197)","v":""},{"$f":"IF('1. Order'!BD197=\"\",\"\",'1. Order'!BD197)","v":""},{"$f":"IF('1. Order'!BE197=\"\",\"\",'1. Order'!BE197)","v":""},{"$f":"IF('1. Order'!BF197=\"\",\"\",'1. Order'!BF197)","v":""},{"$f":"IF('1. Order'!BG197=\"\",\"\",'1. Order'!BG197)","v":""},{"$f":"IF('1. Order'!BH197=\"\",\"\",'1. Order'!BH197)","v":"ZWO"}]
[{"$f":"IF('1. Order'!F198=\"\",\"\",'1. Order'!F198)","v":{"$error":"#N/A"}},{"$f":"IF('1. Order'!G198=\"\",\"\",'1. Order'!G198)","v":""},{"$f":"IF('1. Order'!H198=\"\",\"\",'1. Order'!H198)","v":""},{"$f":"IF('1. Order'!I198=\"\",\"\",'1. Order'!I198)","v":""},{"$f":"IF('1. Order'!J198=\"\",\"\",'1. Order'!J198)","v":""},{"$f":"IF('1. Order'!K198=\"\",\"\",'1. Order'!K198)","v":""},{"$f":"IF('1. Order'!L198=\"\",\"\",'1. Order'!L198)","v":""},{"$f":"IF('1. Order'!M198=\"\",\"\",'1. Order'!M198)","v":""},{"$f":"IF('1. Order'!N198=\"\",\"\",'1. Order'!N198)","v":""},{"$f":"IF('1. Order'!O198=\"\",\"\",'1. Order'!O198)","v":{"$error":"#N/A"}},{"$f":"IF('1. Order'!P198=\"\",\"\",'1. Order'!P198)","v":{"$error":"#N/A"}},{"$f":"IF('1. Order'!Q198=\"\",\"\",'1. Order'!Q198)","v":""},{"$f":"IF('1. Order'!S198=\"\",\"\",'1. Order'!S198)","v":""},{"$f":"IF('1. Order'!T198=\"\",\"\",'1. Order'!T198)","v":""},{"$f":"IF('1. Order'!W198=\"\",\"\",'1. Order'!W198)","v":""},{"$f":"IF('1. Order'!X198=\"\",\"\",'1. Order'!X198)","v":""},{"$f":"IF('1. Order'!Y198=\"\",\"\",'1. Order'!Y198)","v":"EUR"},{"$f":"IF('1. Order'!Z198=\"\",\"\",'1. Order'!Z198)","v":""},{"$f":"IF('1. Order'!AA198=\"\",\"\",'1. Order'!AA198)","v":""},{"$f":"IF('1. Order'!AB198=\"\",\"\",'1. Order'!AB198)","v":""},null,{"$f":"IF('1. Order'!AT198=\"\",\"\",'1. Order'!AT198)","v":""},{"$f":"IF('1. Order'!AU198=\"\",\"\",'1. Order'!AU198)","v":""},null,null,null,null,null,null,null,{"$f":"IF('1. Order'!AY198=\"\",\"\",'1. Order'!AY198)","v":""},{"$f":"IF('1. Order'!AZ198=\"\",\"\",'1. Order'!AZ198)","v":""},{"$f":"IF('1. Order'!BA198=\"\",\"\",'1. Order'!BA198)","v":""},{"$f":"IF('1. Order'!BB198=\"\",\"\",'1. Order'!BB198)","v":""},{"$f":"IF('1. Order'!BD198=\"\",\"\",'1. Order'!BD198)","v":""},{"$f":"IF('1. Order'!BE198=\"\",\"\",'1. Order'!BE198)","v":""},{"$f":"IF('1. Order'!BF198=\"\",\"\",'1. Order'!BF198)","v":""},{"$f":"IF('1. Order'!BG198=\"\",\"\",'1. Order'!BG198)","v":""},{"$f":"IF('1. Order'!BH198=\"\",\"\",'1. Order'!BH198)","v":"ZWO"}]
[{"$f":"IF('1. Order'!F199=\"\",\"\",'1. Order'!F199)","v":{"$error":"#N/A"}},{"$f":"IF('1. Order'!G199=\"\",\"\",'1. Order'!G199)","v":""},{"$f":"IF('1. Order'!H199=\"\",\"\",'1. Order'!H199)","v":""},{"$f":"IF('1. Order'!I199=\"\",\"\",'1. Order'!I199)","v":""},{"$f":"IF('1. Order'!J199=\"\",\"\",'1. Order'!J199)","v":""},{"$f":"IF('1. Order'!K199=\"\",\"\",'1. Order'!K199)","v":""},{"$f":"IF('1. Order'!L199=\"\",\"\",'1. Order'!L199)","v":""},{"$f":"IF('1. Order'!M199=\"\",\"\",'1. Order'!M199)","v":""},{"$f":"IF('1. Order'!N199=\"\",\"\",'1. Order'!N199)","v":""},{"$f":"IF('1. Order'!O199=\"\",\"\",'1. Order'!O199)","v":{"$error":"#N/A"}},{"$f":"IF('1. Order'!P199=\"\",\"\",'1. Order'!P199)","v":{"$error":"#N/A"}},{"$f":"IF('1. Order'!Q199=\"\",\"\",'1. Order'!Q199)","v":""},{"$f":"IF('1. Order'!S199=\"\",\"\",'1. Order'!S199)","v":""},{"$f":"IF('1. Order'!T199=\"\",\"\",'1. Order'!T199)","v":""},{"$f":"IF('1. Order'!W199=\"\",\"\",'1. Order'!W199)","v":""},{"$f":"IF('1. Order'!X199=\"\",\"\",'1. Order'!X199)","v":""},{"$f":"IF('1. Order'!Y199=\"\",\"\",'1. Order'!Y199)","v":"EUR"},{"$f":"IF('1. Order'!Z199=\"\",\"\",'1. Order'!Z199)","v":""},{"$f":"IF('1. Order'!AA199=\"\",\"\",'1. Order'!AA199)","v":""},{"$f":"IF('1. Order'!AB199=\"\",\"\",'1. Order'!AB199)","v":""},null,{"$f":"IF('1. Order'!AT199=\"\",\"\",'1. Order'!AT199)","v":""},{"$f":"IF('1. Order'!AU199=\"\",\"\",'1. Order'!AU199)","v":""},null,null,null,null,null,null,null,{"$f":"IF('1. Order'!AY199=\"\",\"\",'1. Order'!AY199)","v":""},{"$f":"IF('1. Order'!AZ199=\"\",\"\",'1. Order'!AZ199)","v":""},{"$f":"IF('1. Order'!BA199=\"\",\"\",'1. Order'!BA199)","v":""},{"$f":"IF('1. Order'!BB199=\"\",\"\",'1. Order'!BB199)","v":""},{"$f":"IF('1. Order'!BD199=\"\",\"\",'1. Order'!BD199)","v":""},{"$f":"IF('1. Order'!BE199=\"\",\"\",'1. Order'!BE199)","v":""},{"$f":"IF('1. Order'!BF199=\"\",\"\",'1. Order'!BF199)","v":""},{"$f":"IF('1. Order'!BG199=\"\",\"\",'1. Order'!BG199)","v":""},{"$f":"IF('1. Order'!BH199=\"\",\"\",'1. Order'!BH199)","v":"ZWO"}]
[{"$f":"IF('1. Order'!F200=\"\",\"\",'1. Order'!F200)","v":{"$error":"#N/A"}},{"$f":"IF('1. Order'!G200=\"\",\"\",'1. Order'!G200)","v":""},{"$f":"IF('1. Order'!H200=\"\",\"\",'1. Order'!H200)","v":""},{"$f":"IF('1. Order'!I200=\"\",\"\",'1. Order'!I200)","v":""},{"$f":"IF('1. Order'!J200=\"\",\"\",'1. Order'!J200)","v":""},{"$f":"IF('1. Order'!K200=\"\",\"\",'1. Order'!K200)","v":""},{"$f":"IF('1. Order'!L200=\"\",\"\",'1. Order'!L200)","v":""},{"$f":"IF('1. Order'!M200=\"\",\"\",'1. Order'!M200)","v":""},{"$f":"IF('1. Order'!N200=\"\",\"\",'1. Order'!N200)","v":""},{"$f":"IF('1. Order'!O200=\"\",\"\",'1. Order'!O200)","v":{"$error":"#N/A"}},{"$f":"IF('1. Order'!P200=\"\",\"\",'1. Order'!P200)","v":{"$error":"#N/A"}},{"$f":"IF('1. Order'!Q200=\"\",\"\",'1. Order'!Q200)","v":""},{"$f":"IF('1. Order'!S200=\"\",\"\",'1. Order'!S200)","v":""},{"$f":"IF('1. Order'!T200=\"\",\"\",'1. Order'!T200)","v":""},{"$f":"IF('1. Order'!W200=\"\",\"\",'1. Order'!W200)","v":""},{"$f":"IF('1. Order'!X200=\"\",\"\",'1. Order'!X200)","v":""},{"$f":"IF('1. Order'!Y200=\"\",\"\",'1. Order'!Y200)","v":"EUR"},{"$f":"IF('1. Order'!Z200=\"\",\"\",'1. Order'!Z200)","v":""},{"$f":"IF('1. Order'!AA200=\"\",\"\",'1. Order'!AA200)","v":""},{"$f":"IF('1. Order'!AB200=\"\",\"\",'1. Order'!AB200)","v":""},null,{"$f":"IF('1. Order'!AT200=\"\",\"\",'1. Order'!AT200)","v":""},{"$f":"IF('1. Order'!AU200=\"\",\"\",'1. Order'!AU200)","v":""},null,null,null,null,null,null,null,{"$f":"IF('1. Order'!AY200=\"\",\"\",'1. Order'!AY200)","v":""},{"$f":"IF('1. Order'!AZ200=\"\",\"\",'1. Order'!AZ200)","v":""},{"$f":"IF('1. Order'!BA200=\"\",\"\",'1. Order'!BA200)","v":""},{"$f":"IF('1. Order'!BB200=\"\",\"\",'1. Order'!BB200)","v":""},{"$f":"IF('1. Order'!BD200=\"\",\"\",'1. Order'!BD200)","v":""},{"$f":"IF('1. Order'!BE200=\"\",\"\",'1. Order'!BE200)","v":""},{"$f":"IF('1. Order'!BF200=\"\",\"\",'1. Order'!BF200)","v":""},{"$f":"IF('1. Order'!BG200=\"\",\"\",'1. Order'!BG200)","v":""},{"$f":"IF('1. Order'!BH200=\"\",\"\",'1. Order'!BH200)","v":"ZWO"}]
[{"$f":"IF('1. Order'!F201=\"\",\"\",'1. Order'!F201)","v":{"$error":"#N/A"}},{"$f":"IF('1. Order'!G201=\"\",\"\",'1. Order'!G201)","v":""},{"$f":"IF('1. Order'!H201=\"\",\"\",'1. Order'!H201)","v":""},{"$f":"IF('1. Order'!I201=\"\",\"\",'1. Order'!I201)","v":""},{"$f":"IF('1. Order'!J201=\"\",\"\",'1. Order'!J201)","v":""},{"$f":"IF('1. Order'!K201=\"\",\"\",'1. Order'!K201)","v":""},{"$f":"IF('1. Order'!L201=\"\",\"\",'1. Order'!L201)","v":""},{"$f":"IF('1. Order'!M201=\"\",\"\",'1. Order'!M201)","v":""},{"$f":"IF('1. Order'!N201=\"\",\"\",'1. Order'!N201)","v":""},{"$f":"IF('1. Order'!O201=\"\",\"\",'1. Order'!O201)","v":{"$error":"#N/A"}},{"$f":"IF('1. Order'!P201=\"\",\"\",'1. Order'!P201)","v":{"$error":"#N/A"}},{"$f":"IF('1. Order'!Q201=\"\",\"\",'1. Order'!Q201)","v":""},{"$f":"IF('1. Order'!S201=\"\",\"\",'1. Order'!S201)","v":""},{"$f":"IF('1. Order'!T201=\"\",\"\",'1. Order'!T201)","v":""},{"$f":"IF('1. Order'!W201=\"\",\"\",'1. Order'!W201)","v":""},{"$f":"IF('1. Order'!X201=\"\",\"\",'1. Order'!X201)","v":""},{"$f":"IF('1. Order'!Y201=\"\",\"\",'1. Order'!Y201)","v":"EUR"},{"$f":"IF('1. Order'!Z201=\"\",\"\",'1. Order'!Z201)","v":""},{"$f":"IF('1. Order'!AA201=\"\",\"\",'1. Order'!AA201)","v":""},{"$f":"IF('1. Order'!AB201=\"\",\"\",'1. Order'!AB201)","v":""},null,{"$f":"IF('1. Order'!AT201=\"\",\"\",'1. Order'!AT201)","v":""},{"$f":"IF('1. Order'!AU201=\"\",\"\",'1. Order'!AU201)","v":""},null,null,null,null,null,null,null,{"$f":"IF('1. Order'!AY201=\"\",\"\",'1. Order'!AY201)","v":""},{"$f":"IF('1. Order'!AZ201=\"\",\"\",'1. Order'!AZ201)","v":""},{"$f":"IF('1. Order'!BA201=\"\",\"\",'1. Order'!BA201)","v":""},{"$f":"IF('1. Order'!BB201=\"\",\"\",'1. Order'!BB201)","v":""},{"$f":"IF('1. Order'!BD201=\"\",\"\",'1. Order'!BD201)","v":""},{"$f":"IF('1. Order'!BE201=\"\",\"\",'1. Order'!BE201)","v":""},{"$f":"IF('1. Order'!BF201=\"\",\"\",'1. Order'!BF201)","v":""},{"$f":"IF('1. Order'!BG201=\"\",\"\",'1. Order'!BG201)","v":""},{"$f":"IF('1. Order'!BH201=\"\",\"\",'1. Order'!BH201)","v":"ZWO"}]
[{"$f":"IF('1. Order'!F202=\"\",\"\",'1. Order'!F202)","v":{"$error":"#N/A"}},{"$f":"IF('1. Order'!G202=\"\",\"\",'1. Order'!G202)","v":""},{"$f":"IF('1. Order'!H202=\"\",\"\",'1. Order'!H202)","v":""},{"$f":"IF('1. Order'!I202=\"\",\"\",'1. Order'!I202)","v":""},{"$f":"IF('1. Order'!J202=\"\",\"\",'1. Order'!J202)","v":""},{"$f":"IF('1. Order'!K202=\"\",\"\",'1. Order'!K202)","v":""},{"$f":"IF('1. Order'!L202=\"\",\"\",'1. Order'!L202)","v":""},{"$f":"IF('1. Order'!M202=\"\",\"\",'1. Order'!M202)","v":""},{"$f":"IF('1. Order'!N202=\"\",\"\",'1. Order'!N202)","v":""},{"$f":"IF('1. Order'!O202=\"\",\"\",'1. Order'!O202)","v":{"$error":"#N/A"}},{"$f":"IF('1. Order'!P202=\"\",\"\",'1. Order'!P202)","v":{"$error":"#N/A"}},{"$f":"IF('1. Order'!Q202=\"\",\"\",'1. Order'!Q202)","v":""},{"$f":"IF('1. Order'!S202=\"\",\"\",'1. Order'!S202)","v":""},{"$f":"IF('1. Order'!T202=\"\",\"\",'1. Order'!T202)","v":""},{"$f":"IF('1. Order'!W202=\"\",\"\",'1. Order'!W202)","v":""},{"$f":"IF('1. Order'!X202=\"\",\"\",'1. Order'!X202)","v":""},{"$f":"IF('1. Order'!Y202=\"\",\"\",'1. Order'!Y202)","v":"EUR"},{"$f":"IF('1. Order'!Z202=\"\",\"\",'1. Order'!Z202)","v":""},{"$f":"IF('1. Order'!AA202=\"\",\"\",'1. Order'!AA202)","v":""},{"$f":"IF('1. Order'!AB202=\"\",\"\",'1. Order'!AB202)","v":""},null,{"$f":"IF('1. Order'!AT202=\"\",\"\",'1. Order'!AT202)","v":""},{"$f":"IF('1. Order'!AU202=\"\",\"\",'1. Order'!AU202)","v":""},null,null,null,null,null,null,null,{"$f":"IF('1. Order'!AY202=\"\",\"\",'1. Order'!AY202)","v":""},{"$f":"IF('1. Order'!AZ202=\"\",\"\",'1. Order'!AZ202)","v":""},{"$f":"IF('1. Order'!BA202=\"\",\"\",'1. Order'!BA202)","v":""},{"$f":"IF('1. Order'!BB202=\"\",\"\",'1. Order'!BB202)","v":""},{"$f":"IF('1. Order'!BD202=\"\",\"\",'1. Order'!BD202)","v":""},{"$f":"IF('1. Order'!BE202=\"\",\"\",'1. Order'!BE202)","v":""},{"$f":"IF('1. Order'!BF202=\"\",\"\",'1. Order'!BF202)","v":""},{"$f":"IF('1. Order'!BG202=\"\",\"\",'1. Order'!BG202)","v":""},{"$f":"IF('1. Order'!BH202=\"\",\"\",'1. Order'!BH202)","v":"ZWO"}]
[{"$f":"IF('1. Order'!F203=\"\",\"\",'1. Order'!F203)","v":{"$error":"#N/A"}},{"$f":"IF('1. Order'!G203=\"\",\"\",'1. Order'!G203)","v":""},{"$f":"IF('1. Order'!H203=\"\",\"\",'1. Order'!H203)","v":""},{"$f":"IF('1. Order'!I203=\"\",\"\",'1. Order'!I203)","v":""},{"$f":"IF('1. Order'!J203=\"\",\"\",'1. Order'!J203)","v":""},{"$f":"IF('1. Order'!K203=\"\",\"\",'1. Order'!K203)","v":""},{"$f":"IF('1. Order'!L203=\"\",\"\",'1. Order'!L203)","v":""},{"$f":"IF('1. Order'!M203=\"\",\"\",'1. Order'!M203)","v":""},{"$f":"IF('1. Order'!N203=\"\",\"\",'1. Order'!N203)","v":""},{"$f":"IF('1. Order'!O203=\"\",\"\",'1. Order'!O203)","v":{"$error":"#N/A"}},{"$f":"IF('1. Order'!P203=\"\",\"\",'1. Order'!P203)","v":{"$error":"#N/A"}},{"$f":"IF('1. Order'!Q203=\"\",\"\",'1. Order'!Q203)","v":""},{"$f":"IF('1. Order'!S203=\"\",\"\",'1. Order'!S203)","v":""},{"$f":"IF('1. Order'!T203=\"\",\"\",'1. Order'!T203)","v":""},{"$f":"IF('1. Order'!W203=\"\",\"\",'1. Order'!W203)","v":""},{"$f":"IF('1. Order'!X203=\"\",\"\",'1. Order'!X203)","v":""},{"$f":"IF('1. Order'!Y203=\"\",\"\",'1. Order'!Y203)","v":"EUR"},{"$f":"IF('1. Order'!Z203=\"\",\"\",'1. Order'!Z203)","v":""},{"$f":"IF('1. Order'!AA203=\"\",\"\",'1. Order'!AA203)","v":""},{"$f":"IF('1. Order'!AB203=\"\",\"\",'1. Order'!AB203)","v":""},null,{"$f":"IF('1. Order'!AT203=\"\",\"\",'1. Order'!AT203)","v":""},{"$f":"IF('1. Order'!AU203=\"\",\"\",'1. Order'!AU203)","v":""},null,null,null,null,null,null,null,{"$f":"IF('1. Order'!AY203=\"\",\"\",'1. Order'!AY203)","v":""},{"$f":"IF('1. Order'!AZ203=\"\",\"\",'1. Order'!AZ203)","v":""},{"$f":"IF('1. Order'!BA203=\"\",\"\",'1. Order'!BA203)","v":""},{"$f":"IF('1. Order'!BB203=\"\",\"\",'1. Order'!BB203)","v":""},{"$f":"IF('1. Order'!BD203=\"\",\"\",'1. Order'!BD203)","v":""},{"$f":"IF('1. Order'!BE203=\"\",\"\",'1. Order'!BE203)","v":""},{"$f":"IF('1. Order'!BF203=\"\",\"\",'1. Order'!BF203)","v":""},{"$f":"IF('1. Order'!BG203=\"\",\"\",'1. Order'!BG203)","v":""},{"$f":"IF('1. Order'!BH203=\"\",\"\",'1. Order'!BH203)","v":"ZWO"}]
[{"$f":"IF('1. Order'!F204=\"\",\"\",'1. Order'!F204)","v":{"$error":"#N/A"}},{"$f":"IF('1. Order'!G204=\"\",\"\",'1. Order'!G204)","v":""},{"$f":"IF('1. Order'!H204=\"\",\"\",'1. Order'!H204)","v":""},{"$f":"IF('1. Order'!I204=\"\",\"\",'1. Order'!I204)","v":""},{"$f":"IF('1. Order'!J204=\"\",\"\",'1. Order'!J204)","v":""},{"$f":"IF('1. Order'!K204=\"\",\"\",'1. Order'!K204)","v":""},{"$f":"IF('1. Order'!L204=\"\",\"\",'1. Order'!L204)","v":""},{"$f":"IF('1. Order'!M204=\"\",\"\",'1. Order'!M204)","v":""},{"$f":"IF('1. Order'!N204=\"\",\"\",'1. Order'!N204)","v":""},{"$f":"IF('1. Order'!O204=\"\",\"\",'1. Order'!O204)","v":{"$error":"#N/A"}},{"$f":"IF('1. Order'!P204=\"\",\"\",'1. Order'!P204)","v":{"$error":"#N/A"}},{"$f":"IF('1. Order'!Q204=\"\",\"\",'1. Order'!Q204)","v":""},{"$f":"IF('1. Order'!S204=\"\",\"\",'1. Order'!S204)","v":""},{"$f":"IF('1. Order'!T204=\"\",\"\",'1. Order'!T204)","v":""},{"$f":"IF('1. Order'!W204=\"\",\"\",'1. Order'!W204)","v":""},{"$f":"IF('1. Order'!X204=\"\",\"\",'1. Order'!X204)","v":""},{"$f":"IF('1. Order'!Y204=\"\",\"\",'1. Order'!Y204)","v":"EUR"},{"$f":"IF('1. Order'!Z204=\"\",\"\",'1. Order'!Z204)","v":""},{"$f":"IF('1. Order'!AA204=\"\",\"\",'1. Order'!AA204)","v":""},{"$f":"IF('1. Order'!AB204=\"\",\"\",'1. Order'!AB204)","v":""},null,{"$f":"IF('1. Order'!AT204=\"\",\"\",'1. Order'!AT204)","v":""},{"$f":"IF('1. Order'!AU204=\"\",\"\",'1. Order'!AU204)","v":""},null,null,null,null,null,null,null,{"$f":"IF('1. Order'!AY204=\"\",\"\",'1. Order'!AY204)","v":""},{"$f":"IF('1. Order'!AZ204=\"\",\"\",'1. Order'!AZ204)","v":""},{"$f":"IF('1. Order'!BA204=\"\",\"\",'1. Order'!BA204)","v":""},{"$f":"IF('1. Order'!BB204=\"\",\"\",'1. Order'!BB204)","v":""},{"$f":"IF('1. Order'!BD204=\"\",\"\",'1. Order'!BD204)","v":""},{"$f":"IF('1. Order'!BE204=\"\",\"\",'1. Order'!BE204)","v":""},{"$f":"IF('1. Order'!BF204=\"\",\"\",'1. Order'!BF204)","v":""},{"$f":"IF('1. Order'!BG204=\"\",\"\",'1. Order'!BG204)","v":""},{"$f":"IF('1. Order'!BH204=\"\",\"\",'1. Order'!BH204)","v":"ZWO"}]
[{"$f":"IF('1. Order'!F205=\"\",\"\",'1. Order'!F205)","v":{"$error":"#N/A"}},{"$f":"IF('1. Order'!G205=\"\",\"\",'1. Order'!G205)","v":""},{"$f":"IF('1. Order'!H205=\"\",\"\",'1. Order'!H205)","v":""},{"$f":"IF('1. Order'!I205=\"\",\"\",'1. Order'!I205)","v":""},{"$f":"IF('1. Order'!J205=\"\",\"\",'1. Order'!J205)","v":""},{"$f":"IF('1. Order'!K205=\"\",\"\",'1. Order'!K205)","v":""},{"$f":"IF('1. Order'!L205=\"\",\"\",'1. Order'!L205)","v":""},{"$f":"IF('1. Order'!M205=\"\",\"\",'1. Order'!M205)","v":""},{"$f":"IF('1. Order'!N205=\"\",\"\",'1. Order'!N205)","v":""},{"$f":"IF('1. Order'!O205=\"\",\"\",'1. Order'!O205)","v":{"$error":"#N/A"}},{"$f":"IF('1. Order'!P205=\"\",\"\",'1. Order'!P205)","v":{"$error":"#N/A"}},{"$f":"IF('1. Order'!Q205=\"\",\"\",'1. Order'!Q205)","v":""},{"$f":"IF('1. Order'!S205=\"\",\"\",'1. Order'!S205)","v":""},{"$f":"IF('1. Order'!T205=\"\",\"\",'1. Order'!T205)","v":""},{"$f":"IF('1. Order'!W205=\"\",\"\",'1. Order'!W205)","v":""},{"$f":"IF('1. Order'!X205=\"\",\"\",'1. Order'!X205)","v":""},{"$f":"IF('1. Order'!Y205=\"\",\"\",'1. Order'!Y205)","v":"EUR"},{"$f":"IF('1. Order'!Z205=\"\",\"\",'1. Order'!Z205)","v":""},{"$f":"IF('1. Order'!AA205=\"\",\"\",'1. Order'!AA205)","v":""},{"$f":"IF('1. Order'!AB205=\"\",\"\",'1. Order'!AB205)","v":""},null,{"$f":"IF('1. Order'!AT205=\"\",\"\",'1. Order'!AT205)","v":""},{"$f":"IF('1. Order'!AU205=\"\",\"\",'1. Order'!AU205)","v":""},null,null,null,null,null,null,null,{"$f":"IF('1. Order'!AY205=\"\",\"\",'1. Order'!AY205)","v":""},{"$f":"IF('1. Order'!AZ205=\"\",\"\",'1. Order'!AZ205)","v":""},{"$f":"IF('1. Order'!BA205=\"\",\"\",'1. Order'!BA205)","v":""},{"$f":"IF('1. Order'!BB205=\"\",\"\",'1. Order'!BB205)","v":""},{"$f":"IF('1. Order'!BD205=\"\",\"\",'1. Order'!BD205)","v":""},{"$f":"IF('1. Order'!BE205=\"\",\"\",'1. Order'!BE205)","v":""},{"$f":"IF('1. Order'!BF205=\"\",\"\",'1. Order'!BF205)","v":""},{"$f":"IF('1. Order'!BG205=\"\",\"\",'1. Order'!BG205)","v":""},{"$f":"IF('1. Order'!BH205=\"\",\"\",'1. Order'!BH205)","v":"ZWO"}]
[{"$f":"IF('1. Order'!F206=\"\",\"\",'1. Order'!F206)","v":{"$error":"#N/A"}},{"$f":"IF('1. Order'!G206=\"\",\"\",'1. Order'!G206)","v":""},{"$f":"IF('1. Order'!H206=\"\",\"\",'1. Order'!H206)","v":""},{"$f":"IF('1. Order'!I206=\"\",\"\",'1. Order'!I206)","v":""},{"$f":"IF('1. Order'!J206=\"\",\"\",'1. Order'!J206)","v":""},{"$f":"IF('1. Order'!K206=\"\",\"\",'1. Order'!K206)","v":""},{"$f":"IF('1. Order'!L206=\"\",\"\",'1. Order'!L206)","v":""},{"$f":"IF('1. Order'!M206=\"\",\"\",'1. Order'!M206)","v":""},{"$f":"IF('1. Order'!N206=\"\",\"\",'1. Order'!N206)","v":""},{"$f":"IF('1. Order'!O206=\"\",\"\",'1. Order'!O206)","v":{"$error":"#N/A"}},{"$f":"IF('1. Order'!P206=\"\",\"\",'1. Order'!P206)","v":{"$error":"#N/A"}},{"$f":"IF('1. Order'!Q206=\"\",\"\",'1. Order'!Q206)","v":""},{"$f":"IF('1. Order'!S206=\"\",\"\",'1. Order'!S206)","v":""},{"$f":"IF('1. Order'!T206=\"\",\"\",'1. Order'!T206)","v":""},{"$f":"IF('1. Order'!W206=\"\",\"\",'1. Order'!W206)","v":""},{"$f":"IF('1. Order'!X206=\"\",\"\",'1. Order'!X206)","v":""},{"$f":"IF('1. Order'!Y206=\"\",\"\",'1. Order'!Y206)","v":"EUR"},{"$f":"IF('1. Order'!Z206=\"\",\"\",'1. Order'!Z206)","v":""},{"$f":"IF('1. Order'!AA206=\"\",\"\",'1. Order'!AA206)","v":""},{"$f":"IF('1. Order'!AB206=\"\",\"\",'1. Order'!AB206)","v":""},null,{"$f":"IF('1. Order'!AT206=\"\",\"\",'1. Order'!AT206)","v":""},{"$f":"IF('1. Order'!AU206=\"\",\"\",'1. Order'!AU206)","v":""},null,null,null,null,null,null,null,{"$f":"IF('1. Order'!AY206=\"\",\"\",'1. Order'!AY206)","v":""},{"$f":"IF('1. Order'!AZ206=\"\",\"\",'1. Order'!AZ206)","v":""},{"$f":"IF('1. Order'!BA206=\"\",\"\",'1. Order'!BA206)","v":""},{"$f":"IF('1. Order'!BB206=\"\",\"\",'1. Order'!BB206)","v":""},{"$f":"IF('1. Order'!BD206=\"\",\"\",'1. Order'!BD206)","v":""},{"$f":"IF('1. Order'!BE206=\"\",\"\",'1. Order'!BE206)","v":""},{"$f":"IF('1. Order'!BF206=\"\",\"\",'1. Order'!BF206)","v":""},{"$f":"IF('1. Order'!BG206=\"\",\"\",'1. Order'!BG206)","v":""},{"$f":"IF('1. Order'!BH206=\"\",\"\",'1. Order'!BH206)","v":"ZWO"}]
[{"$f":"IF('1. Order'!F207=\"\",\"\",'1. Order'!F207)","v":{"$error":"#N/A"}},{"$f":"IF('1. Order'!G207=\"\",\"\",'1. Order'!G207)","v":""},{"$f":"IF('1. Order'!H207=\"\",\"\",'1. Order'!H207)","v":""},{"$f":"IF('1. Order'!I207=\"\",\"\",'1. Order'!I207)","v":""},{"$f":"IF('1. Order'!J207=\"\",\"\",'1. Order'!J207)","v":""},{"$f":"IF('1. Order'!K207=\"\",\"\",'1. Order'!K207)","v":""},{"$f":"IF('1. Order'!L207=\"\",\"\",'1. Order'!L207)","v":""},{"$f":"IF('1. Order'!M207=\"\",\"\",'1. Order'!M207)","v":""},{"$f":"IF('1. Order'!N207=\"\",\"\",'1. Order'!N207)","v":""},{"$f":"IF('1. Order'!O207=\"\",\"\",'1. Order'!O207)","v":{"$error":"#N/A"}},{"$f":"IF('1. Order'!P207=\"\",\"\",'1. Order'!P207)","v":{"$error":"#N/A"}},{"$f":"IF('1. Order'!Q207=\"\",\"\",'1. Order'!Q207)","v":""},{"$f":"IF('1. Order'!S207=\"\",\"\",'1. Order'!S207)","v":""},{"$f":"IF('1. Order'!T207=\"\",\"\",'1. Order'!T207)","v":""},{"$f":"IF('1. Order'!W207=\"\",\"\",'1. Order'!W207)","v":""},{"$f":"IF('1. Order'!X207=\"\",\"\",'1. Order'!X207)","v":""},{"$f":"IF('1. Order'!Y207=\"\",\"\",'1. Order'!Y207)","v":"EUR"},{"$f":"IF('1. Order'!Z207=\"\",\"\",'1. Order'!Z207)","v":""},{"$f":"IF('1. Order'!AA207=\"\",\"\",'1. Order'!AA207)","v":""},{"$f":"IF('1. Order'!AB207=\"\",\"\",'1. Order'!AB207)","v":""},null,{"$f":"IF('1. Order'!AT207=\"\",\"\",'1. Order'!AT207)","v":""},{"$f":"IF('1. Order'!AU207=\"\",\"\",'1. Order'!AU207)","v":""},null,null,null,null,null,null,null,{"$f":"IF('1. Order'!AY207=\"\",\"\",'1. Order'!AY207)","v":""},{"$f":"IF('1. Order'!AZ207=\"\",\"\",'1. Order'!AZ207)","v":""},{"$f":"IF('1. Order'!BA207=\"\",\"\",'1. Order'!BA207)","v":""},{"$f":"IF('1. Order'!BB207=\"\",\"\",'1. Order'!BB207)","v":""},{"$f":"IF('1. Order'!BD207=\"\",\"\",'1. Order'!BD207)","v":""},{"$f":"IF('1. Order'!BE207=\"\",\"\",'1. Order'!BE207)","v":""},{"$f":"IF('1. Order'!BF207=\"\",\"\",'1. Order'!BF207)","v":""},{"$f":"IF('1. Order'!BG207=\"\",\"\",'1. Order'!BG207)","v":""},{"$f":"IF('1. Order'!BH207=\"\",\"\",'1. Order'!BH207)","v":"ZWO"}]
[{"$f":"IF('1. Order'!F208=\"\",\"\",'1. Order'!F208)","v":{"$error":"#N/A"}},{"$f":"IF('1. Order'!G208=\"\",\"\",'1. Order'!G208)","v":""},{"$f":"IF('1. Order'!H208=\"\",\"\",'1. Order'!H208)","v":""},{"$f":"IF('1. Order'!I208=\"\",\"\",'1. Order'!I208)","v":""},{"$f":"IF('1. Order'!J208=\"\",\"\",'1. Order'!J208)","v":""},{"$f":"IF('1. Order'!K208=\"\",\"\",'1. Order'!K208)","v":""},{"$f":"IF('1. Order'!L208=\"\",\"\",'1. Order'!L208)","v":""},{"$f":"IF('1. Order'!M208=\"\",\"\",'1. Order'!M208)","v":""},{"$f":"IF('1. Order'!N208=\"\",\"\",'1. Order'!N208)","v":""},{"$f":"IF('1. Order'!O208=\"\",\"\",'1. Order'!O208)","v":{"$error":"#N/A"}},{"$f":"IF('1. Order'!P208=\"\",\"\",'1. Order'!P208)","v":{"$error":"#N/A"}},{"$f":"IF('1. Order'!Q208=\"\",\"\",'1. Order'!Q208)","v":""},{"$f":"IF('1. Order'!S208=\"\",\"\",'1. Order'!S208)","v":""},{"$f":"IF('1. Order'!T208=\"\",\"\",'1. Order'!T208)","v":""},{"$f":"IF('1. Order'!W208=\"\",\"\",'1. Order'!W208)","v":""},{"$f":"IF('1. Order'!X208=\"\",\"\",'1. Order'!X208)","v":""},{"$f":"IF('1. Order'!Y208=\"\",\"\",'1. Order'!Y208)","v":"EUR"},{"$f":"IF('1. Order'!Z208=\"\",\"\",'1. Order'!Z208)","v":""},{"$f":"IF('1. Order'!AA208=\"\",\"\",'1. Order'!AA208)","v":""},{"$f":"IF('1. Order'!AB208=\"\",\"\",'1. Order'!AB208)","v":""},null,{"$f":"IF('1. Order'!AT208=\"\",\"\",'1. Order'!AT208)","v":""},{"$f":"IF('1. Order'!AU208=\"\",\"\",'1. Order'!AU208)","v":""},null,null,null,null,null,null,null,{"$f":"IF('1. Order'!AY208=\"\",\"\",'1. Order'!AY208)","v":""},{"$f":"IF('1. Order'!AZ208=\"\",\"\",'1. Order'!AZ208)","v":""},{"$f":"IF('1. Order'!BA208=\"\",\"\",'1. Order'!BA208)","v":""},{"$f":"IF('1. Order'!BB208=\"\",\"\",'1. Order'!BB208)","v":""},{"$f":"IF('1. Order'!BD208=\"\",\"\",'1. Order'!BD208)","v":""},{"$f":"IF('1. Order'!BE208=\"\",\"\",'1. Order'!BE208)","v":""},{"$f":"IF('1. Order'!BF208=\"\",\"\",'1. Order'!BF208)","v":""},{"$f":"IF('1. Order'!BG208=\"\",\"\",'1. Order'!BG208)","v":""},{"$f":"IF('1. Order'!BH208=\"\",\"\",'1. Order'!BH208)","v":"ZWO"}]
[{"$f":"IF('1. Order'!F209=\"\",\"\",'1. Order'!F209)","v":{"$error":"#N/A"}},{"$f":"IF('1. Order'!G209=\"\",\"\",'1. Order'!G209)","v":""},{"$f":"IF('1. Order'!H209=\"\",\"\",'1. Order'!H209)","v":""},{"$f":"IF('1. Order'!I209=\"\",\"\",'1. Order'!I209)","v":""},{"$f":"IF('1. Order'!J209=\"\",\"\",'1. Order'!J209)","v":""},{"$f":"IF('1. Order'!K209=\"\",\"\",'1. Order'!K209)","v":""},{"$f":"IF('1. Order'!L209=\"\",\"\",'1. Order'!L209)","v":""},{"$f":"IF('1. Order'!M209=\"\",\"\",'1. Order'!M209)","v":""},{"$f":"IF('1. Order'!N209=\"\",\"\",'1. Order'!N209)","v":""},{"$f":"IF('1. Order'!O209=\"\",\"\",'1. Order'!O209)","v":{"$error":"#N/A"}},{"$f":"IF('1. Order'!P209=\"\",\"\",'1. Order'!P209)","v":{"$error":"#N/A"}},{"$f":"IF('1. Order'!Q209=\"\",\"\",'1. Order'!Q209)","v":""},{"$f":"IF('1. Order'!S209=\"\",\"\",'1. Order'!S209)","v":""},{"$f":"IF('1. Order'!T209=\"\",\"\",'1. Order'!T209)","v":""},{"$f":"IF('1. Order'!W209=\"\",\"\",'1. Order'!W209)","v":""},{"$f":"IF('1. Order'!X209=\"\",\"\",'1. Order'!X209)","v":""},{"$f":"IF('1. Order'!Y209=\"\",\"\",'1. Order'!Y209)","v":"EUR"},{"$f":"IF('1. Order'!Z209=\"\",\"\",'1. Order'!Z209)","v":""},{"$f":"IF('1. Order'!AA209=\"\",\"\",'1. Order'!AA209)","v":""},{"$f":"IF('1. Order'!AB209=\"\",\"\",'1. Order'!AB209)","v":""},null,{"$f":"IF('1. Order'!AT209=\"\",\"\",'1. Order'!AT209)","v":""},{"$f":"IF('1. Order'!AU209=\"\",\"\",'1. Order'!AU209)","v":""},null,null,null,null,null,null,null,{"$f":"IF('1. Order'!AY209=\"\",\"\",'1. Order'!AY209)","v":""},{"$f":"IF('1. Order'!AZ209=\"\",\"\",'1. Order'!AZ209)","v":""},{"$f":"IF('1. Order'!BA209=\"\",\"\",'1. Order'!BA209)","v":""},{"$f":"IF('1. Order'!BB209=\"\",\"\",'1. Order'!BB209)","v":""},{"$f":"IF('1. Order'!BD209=\"\",\"\",'1. Order'!BD209)","v":""},{"$f":"IF('1. Order'!BE209=\"\",\"\",'1. Order'!BE209)","v":""},{"$f":"IF('1. Order'!BF209=\"\",\"\",'1. Order'!BF209)","v":""},{"$f":"IF('1. Order'!BG209=\"\",\"\",'1. Order'!BG209)","v":""},{"$f":"IF('1. Order'!BH209=\"\",\"\",'1. Order'!BH209)","v":"ZWO"}]
[{"$f":"IF('1. Order'!F210=\"\",\"\",'1. Order'!F210)","v":{"$error":"#N/A"}},{"$f":"IF('1. Order'!G210=\"\",\"\",'1. Order'!G210)","v":""},{"$f":"IF('1. Order'!H210=\"\",\"\",'1. Order'!H210)","v":""},{"$f":"IF('1. Order'!I210=\"\",\"\",'1. Order'!I210)","v":""},{"$f":"IF('1. Order'!J210=\"\",\"\",'1. Order'!J210)","v":""},{"$f":"IF('1. Order'!K210=\"\",\"\",'1. Order'!K210)","v":""},{"$f":"IF('1. Order'!L210=\"\",\"\",'1. Order'!L210)","v":""},{"$f":"IF('1. Order'!M210=\"\",\"\",'1. Order'!M210)","v":""},{"$f":"IF('1. Order'!N210=\"\",\"\",'1. Order'!N210)","v":""},{"$f":"IF('1. Order'!O210=\"\",\"\",'1. Order'!O210)","v":{"$error":"#N/A"}},{"$f":"IF('1. Order'!P210=\"\",\"\",'1. Order'!P210)","v":{"$error":"#N/A"}},{"$f":"IF('1. Order'!Q210=\"\",\"\",'1. Order'!Q210)","v":""},{"$f":"IF('1. Order'!S210=\"\",\"\",'1. Order'!S210)","v":""},{"$f":"IF('1. Order'!T210=\"\",\"\",'1. Order'!T210)","v":""},{"$f":"IF('1. Order'!W210=\"\",\"\",'1. Order'!W210)","v":""},{"$f":"IF('1. Order'!X210=\"\",\"\",'1. Order'!X210)","v":""},{"$f":"IF('1. Order'!Y210=\"\",\"\",'1. Order'!Y210)","v":"EUR"},{"$f":"IF('1. Order'!Z210=\"\",\"\",'1. Order'!Z210)","v":""},{"$f":"IF('1. Order'!AA210=\"\",\"\",'1. Order'!AA210)","v":""},{"$f":"IF('1. Order'!AB210=\"\",\"\",'1. Order'!AB210)","v":""},null,{"$f":"IF('1. Order'!AT210=\"\",\"\",'1. Order'!AT210)","v":""},{"$f":"IF('1. Order'!AU210=\"\",\"\",'1. Order'!AU210)","v":""},null,null,null,null,null,null,null,{"$f":"IF('1. Order'!AY210=\"\",\"\",'1. Order'!AY210)","v":""},{"$f":"IF('1. Order'!AZ210=\"\",\"\",'1. Order'!AZ210)","v":""},{"$f":"IF('1. Order'!BA210=\"\",\"\",'1. Order'!BA210)","v":""},{"$f":"IF('1. Order'!BB210=\"\",\"\",'1. Order'!BB210)","v":""},{"$f":"IF('1. Order'!BD210=\"\",\"\",'1. Order'!BD210)","v":""},{"$f":"IF('1. Order'!BE210=\"\",\"\",'1. Order'!BE210)","v":""},{"$f":"IF('1. Order'!BF210=\"\",\"\",'1. Order'!BF210)","v":""},{"$f":"IF('1. Order'!BG210=\"\",\"\",'1. Order'!BG210)","v":""},{"$f":"IF('1. Order'!BH210=\"\",\"\",'1. Order'!BH210)","v":"ZWO"}]
[{"$f":"IF('1. Order'!F211=\"\",\"\",'1. Order'!F211)","v":{"$error":"#N/A"}},{"$f":"IF('1. Order'!G211=\"\",\"\",'1. Order'!G211)","v":""},{"$f":"IF('1. Order'!H211=\"\",\"\",'1. Order'!H211)","v":""},{"$f":"IF('1. Order'!I211=\"\",\"\",'1. Order'!I211)","v":""},{"$f":"IF('1. Order'!J211=\"\",\"\",'1. Order'!J211)","v":""},{"$f":"IF('1. Order'!K211=\"\",\"\",'1. Order'!K211)","v":""},{"$f":"IF('1. Order'!L211=\"\",\"\",'1. Order'!L211)","v":""},{"$f":"IF('1. Order'!M211=\"\",\"\",'1. Order'!M211)","v":""},{"$f":"IF('1. Order'!N211=\"\",\"\",'1. Order'!N211)","v":""},{"$f":"IF('1. Order'!O211=\"\",\"\",'1. Order'!O211)","v":{"$error":"#N/A"}},{"$f":"IF('1. Order'!P211=\"\",\"\",'1. Order'!P211)","v":{"$error":"#N/A"}},{"$f":"IF('1. Order'!Q211=\"\",\"\",'1. Order'!Q211)","v":""},{"$f":"IF('1. Order'!S211=\"\",\"\",'1. Order'!S211)","v":""},{"$f":"IF('1. Order'!T211=\"\",\"\",'1. Order'!T211)","v":""},{"$f":"IF('1. Order'!W211=\"\",\"\",'1. Order'!W211)","v":""},{"$f":"IF('1. Order'!X211=\"\",\"\",'1. Order'!X211)","v":""},{"$f":"IF('1. Order'!Y211=\"\",\"\",'1. Order'!Y211)","v":"EUR"},{"$f":"IF('1. Order'!Z211=\"\",\"\",'1. Order'!Z211)","v":""},{"$f":"IF('1. Order'!AA211=\"\",\"\",'1. Order'!AA211)","v":""},{"$f":"IF('1. Order'!AB211=\"\",\"\",'1. Order'!AB211)","v":""},null,{"$f":"IF('1. Order'!AT211=\"\",\"\",'1. Order'!AT211)","v":""},{"$f":"IF('1. Order'!AU211=\"\",\"\",'1. Order'!AU211)","v":""},null,null,null,null,null,null,null,{"$f":"IF('1. Order'!AY211=\"\",\"\",'1. Order'!AY211)","v":""},{"$f":"IF('1. Order'!AZ211=\"\",\"\",'1. Order'!AZ211)","v":""},{"$f":"IF('1. Order'!BA211=\"\",\"\",'1. Order'!BA211)","v":""},{"$f":"IF('1. Order'!BB211=\"\",\"\",'1. Order'!BB211)","v":""},{"$f":"IF('1. Order'!BD211=\"\",\"\",'1. Order'!BD211)","v":""},{"$f":"IF('1. Order'!BE211=\"\",\"\",'1. Order'!BE211)","v":""},{"$f":"IF('1. Order'!BF211=\"\",\"\",'1. Order'!BF211)","v":""},{"$f":"IF('1. Order'!BG211=\"\",\"\",'1. Order'!BG211)","v":""},{"$f":"IF('1. Order'!BH211=\"\",\"\",'1. Order'!BH211)","v":"ZWO"}]
[{"$f":"IF('1. Order'!F212=\"\",\"\",'1. Order'!F212)","v":{"$error":"#N/A"}},{"$f":"IF('1. Order'!G212=\"\",\"\",'1. Order'!G212)","v":""},{"$f":"IF('1. Order'!H212=\"\",\"\",'1. Order'!H212)","v":""},{"$f":"IF('1. Order'!I212=\"\",\"\",'1. Order'!I212)","v":""},{"$f":"IF('1. Order'!J212=\"\",\"\",'1. Order'!J212)","v":""},{"$f":"IF('1. Order'!K212=\"\",\"\",'1. Order'!K212)","v":""},{"$f":"IF('1. Order'!L212=\"\",\"\",'1. Order'!L212)","v":""},{"$f":"IF('1. Order'!M212=\"\",\"\",'1. Order'!M212)","v":""},{"$f":"IF('1. Order'!N212=\"\",\"\",'1. Order'!N212)","v":""},{"$f":"IF('1. Order'!O212=\"\",\"\",'1. Order'!O212)","v":{"$error":"#N/A"}},{"$f":"IF('1. Order'!P212=\"\",\"\",'1. Order'!P212)","v":{"$error":"#N/A"}},{"$f":"IF('1. Order'!Q212=\"\",\"\",'1. Order'!Q212)","v":""},{"$f":"IF('1. Order'!S212=\"\",\"\",'1. Order'!S212)","v":""},{"$f":"IF('1. Order'!T212=\"\",\"\",'1. Order'!T212)","v":""},{"$f":"IF('1. Order'!W212=\"\",\"\",'1. Order'!W212)","v":""},{"$f":"IF('1. Order'!X212=\"\",\"\",'1. Order'!X212)","v":""},{"$f":"IF('1. Order'!Y212=\"\",\"\",'1. Order'!Y212)","v":"EUR"},{"$f":"IF('1. Order'!Z212=\"\",\"\",'1. Order'!Z212)","v":""},{"$f":"IF('1. Order'!AA212=\"\",\"\",'1. Order'!AA212)","v":""},{"$f":"IF('1. Order'!AB212=\"\",\"\",'1. Order'!AB212)","v":""},null,{"$f":"IF('1. Order'!AT212=\"\",\"\",'1. Order'!AT212)","v":""},{"$f":"IF('1. Order'!AU212=\"\",\"\",'1. Order'!AU212)","v":""},null,null,null,null,null,null,null,{"$f":"IF('1. Order'!AY212=\"\",\"\",'1. Order'!AY212)","v":""},{"$f":"IF('1. Order'!AZ212=\"\",\"\",'1. Order'!AZ212)","v":""},{"$f":"IF('1. Order'!BA212=\"\",\"\",'1. Order'!BA212)","v":""},{"$f":"IF('1. Order'!BB212=\"\",\"\",'1. Order'!BB212)","v":""},{"$f":"IF('1. Order'!BD212=\"\",\"\",'1. Order'!BD212)","v":""},{"$f":"IF('1. Order'!BE212=\"\",\"\",'1. Order'!BE212)","v":""},{"$f":"IF('1. Order'!BF212=\"\",\"\",'1. Order'!BF212)","v":""},{"$f":"IF('1. Order'!BG212=\"\",\"\",'1. Order'!BG212)","v":""},{"$f":"IF('1. Order'!BH212=\"\",\"\",'1. Order'!BH212)","v":"ZWO"}]
[{"$f":"IF('1. Order'!F213=\"\",\"\",'1. Order'!F213)","v":{"$error":"#N/A"}},{"$f":"IF('1. Order'!G213=\"\",\"\",'1. Order'!G213)","v":""},{"$f":"IF('1. Order'!H213=\"\",\"\",'1. Order'!H213)","v":""},{"$f":"IF('1. Order'!I213=\"\",\"\",'1. Order'!I213)","v":""},{"$f":"IF('1. Order'!J213=\"\",\"\",'1. Order'!J213)","v":""},{"$f":"IF('1. Order'!K213=\"\",\"\",'1. Order'!K213)","v":""},{"$f":"IF('1. Order'!L213=\"\",\"\",'1. Order'!L213)","v":""},{"$f":"IF('1. Order'!M213=\"\",\"\",'1. Order'!M213)","v":""},{"$f":"IF('1. Order'!N213=\"\",\"\",'1. Order'!N213)","v":""},{"$f":"IF('1. Order'!O213=\"\",\"\",'1. Order'!O213)","v":{"$error":"#N/A"}},{"$f":"IF('1. Order'!P213=\"\",\"\",'1. Order'!P213)","v":{"$error":"#N/A"}},{"$f":"IF('1. Order'!Q213=\"\",\"\",'1. Order'!Q213)","v":""},{"$f":"IF('1. Order'!S213=\"\",\"\",'1. Order'!S213)","v":""},{"$f":"IF('1. Order'!T213=\"\",\"\",'1. Order'!T213)","v":""},{"$f":"IF('1. Order'!W213=\"\",\"\",'1. Order'!W213)","v":""},{"$f":"IF('1. Order'!X213=\"\",\"\",'1. Order'!X213)","v":""},{"$f":"IF('1. Order'!Y213=\"\",\"\",'1. Order'!Y213)","v":"EUR"},{"$f":"IF('1. Order'!Z213=\"\",\"\",'1. Order'!Z213)","v":""},{"$f":"IF('1. Order'!AA213=\"\",\"\",'1. Order'!AA213)","v":""},{"$f":"IF('1. Order'!AB213=\"\",\"\",'1. Order'!AB213)","v":""},null,{"$f":"IF('1. Order'!AT213=\"\",\"\",'1. Order'!AT213)","v":""},{"$f":"IF('1. Order'!AU213=\"\",\"\",'1. Order'!AU213)","v":""},null,null,null,null,null,null,null,{"$f":"IF('1. Order'!AY213=\"\",\"\",'1. Order'!AY213)","v":""},{"$f":"IF('1. Order'!AZ213=\"\",\"\",'1. Order'!AZ213)","v":""},{"$f":"IF('1. Order'!BA213=\"\",\"\",'1. Order'!BA213)","v":""},{"$f":"IF('1. Order'!BB213=\"\",\"\",'1. Order'!BB213)","v":""},{"$f":"IF('1. Order'!BD213=\"\",\"\",'1. Order'!BD213)","v":""},{"$f":"IF('1. Order'!BE213=\"\",\"\",'1. Order'!BE213)","v":""},{"$f":"IF('1. Order'!BF213=\"\",\"\",'1. Order'!BF213)","v":""},{"$f":"IF('1. Order'!BG213=\"\",\"\",'1. Order'!BG213)","v":""},{"$f":"IF('1. Order'!BH213=\"\",\"\",'1. Order'!BH213)","v":"ZWO"}]
[{"$f":"IF('1. Order'!F214=\"\",\"\",'1. Order'!F214)","v":{"$error":"#N/A"}},{"$f":"IF('1. Order'!G214=\"\",\"\",'1. Order'!G214)","v":""},{"$f":"IF('1. Order'!H214=\"\",\"\",'1. Order'!H214)","v":""},{"$f":"IF('1. Order'!I214=\"\",\"\",'1. Order'!I214)","v":""},{"$f":"IF('1. Order'!J214=\"\",\"\",'1. Order'!J214)","v":""},{"$f":"IF('1. Order'!K214=\"\",\"\",'1. Order'!K214)","v":""},{"$f":"IF('1. Order'!L214=\"\",\"\",'1. Order'!L214)","v":""},{"$f":"IF('1. Order'!M214=\"\",\"\",'1. Order'!M214)","v":""},{"$f":"IF('1. Order'!N214=\"\",\"\",'1. Order'!N214)","v":""},{"$f":"IF('1. Order'!O214=\"\",\"\",'1. Order'!O214)","v":{"$error":"#N/A"}},{"$f":"IF('1. Order'!P214=\"\",\"\",'1. Order'!P214)","v":{"$error":"#N/A"}},{"$f":"IF('1. Order'!Q214=\"\",\"\",'1. Order'!Q214)","v":""},{"$f":"IF('1. Order'!S214=\"\",\"\",'1. Order'!S214)","v":""},{"$f":"IF('1. Order'!T214=\"\",\"\",'1. Order'!T214)","v":""},{"$f":"IF('1. Order'!W214=\"\",\"\",'1. Order'!W214)","v":""},{"$f":"IF('1. Order'!X214=\"\",\"\",'1. Order'!X214)","v":""},{"$f":"IF('1. Order'!Y214=\"\",\"\",'1. Order'!Y214)","v":"EUR"},{"$f":"IF('1. Order'!Z214=\"\",\"\",'1. Order'!Z214)","v":""},{"$f":"IF('1. Order'!AA214=\"\",\"\",'1. Order'!AA214)","v":""},{"$f":"IF('1. Order'!AB214=\"\",\"\",'1. Order'!AB214)","v":""},null,{"$f":"IF('1. Order'!AT214=\"\",\"\",'1. Order'!AT214)","v":""},{"$f":"IF('1. Order'!AU214=\"\",\"\",'1. Order'!AU214)","v":""},null,null,null,null,null,null,null,{"$f":"IF('1. Order'!AY214=\"\",\"\",'1. Order'!AY214)","v":""},{"$f":"IF('1. Order'!AZ214=\"\",\"\",'1. Order'!AZ214)","v":""},{"$f":"IF('1. Order'!BA214=\"\",\"\",'1. Order'!BA214)","v":""},{"$f":"IF('1. Order'!BB214=\"\",\"\",'1. Order'!BB214)","v":""},{"$f":"IF('1. Order'!BD214=\"\",\"\",'1. Order'!BD214)","v":""},{"$f":"IF('1. Order'!BE214=\"\",\"\",'1. Order'!BE214)","v":""},{"$f":"IF('1. Order'!BF214=\"\",\"\",'1. Order'!BF214)","v":""},{"$f":"IF('1. Order'!BG214=\"\",\"\",'1. Order'!BG214)","v":""},{"$f":"IF('1. Order'!BH214=\"\",\"\",'1. Order'!BH214)","v":"ZWO"}]
[{"$f":"IF('1. Order'!F215=\"\",\"\",'1. Order'!F215)","v":{"$error":"#N/A"}},{"$f":"IF('1. Order'!G215=\"\",\"\",'1. Order'!G215)","v":""},{"$f":"IF('1. Order'!H215=\"\",\"\",'1. Order'!H215)","v":""},{"$f":"IF('1. Order'!I215=\"\",\"\",'1. Order'!I215)","v":""},{"$f":"IF('1. Order'!J215=\"\",\"\",'1. Order'!J215)","v":""},{"$f":"IF('1. Order'!K215=\"\",\"\",'1. Order'!K215)","v":""},{"$f":"IF('1. Order'!L215=\"\",\"\",'1. Order'!L215)","v":""},{"$f":"IF('1. Order'!M215=\"\",\"\",'1. Order'!M215)","v":""},{"$f":"IF('1. Order'!N215=\"\",\"\",'1. Order'!N215)","v":""},{"$f":"IF('1. Order'!O215=\"\",\"\",'1. Order'!O215)","v":{"$error":"#N/A"}},{"$f":"IF('1. Order'!P215=\"\",\"\",'1. Order'!P215)","v":{"$error":"#N/A"}},{"$f":"IF('1. Order'!Q215=\"\",\"\",'1. Order'!Q215)","v":""},{"$f":"IF('1. Order'!S215=\"\",\"\",'1. Order'!S215)","v":""},{"$f":"IF('1. Order'!T215=\"\",\"\",'1. Order'!T215)","v":""},{"$f":"IF('1. Order'!W215=\"\",\"\",'1. Order'!W215)","v":""},{"$f":"IF('1. Order'!X215=\"\",\"\",'1. Order'!X215)","v":""},{"$f":"IF('1. Order'!Y215=\"\",\"\",'1. Order'!Y215)","v":"EUR"},{"$f":"IF('1. Order'!Z215=\"\",\"\",'1. Order'!Z215)","v":""},{"$f":"IF('1. Order'!AA215=\"\",\"\",'1. Order'!AA215)","v":""},{"$f":"IF('1. Order'!AB215=\"\",\"\",'1. Order'!AB215)","v":""},null,{"$f":"IF('1. Order'!AT215=\"\",\"\",'1. Order'!AT215)","v":""},{"$f":"IF('1. Order'!AU215=\"\",\"\",'1. Order'!AU215)","v":""},null,null,null,null,null,null,null,{"$f":"IF('1. Order'!AY215=\"\",\"\",'1. Order'!AY215)","v":""},{"$f":"IF('1. Order'!AZ215=\"\",\"\",'1. Order'!AZ215)","v":""},{"$f":"IF('1. Order'!BA215=\"\",\"\",'1. Order'!BA215)","v":""},{"$f":"IF('1. Order'!BB215=\"\",\"\",'1. Order'!BB215)","v":""},{"$f":"IF('1. Order'!BD215=\"\",\"\",'1. Order'!BD215)","v":""},{"$f":"IF('1. Order'!BE215=\"\",\"\",'1. Order'!BE215)","v":""},{"$f":"IF('1. Order'!BF215=\"\",\"\",'1. Order'!BF215)","v":""},{"$f":"IF('1. Order'!BG215=\"\",\"\",'1. Order'!BG215)","v":""},{"$f":"IF('1. Order'!BH215=\"\",\"\",'1. Order'!BH215)","v":"ZWO"}]
[{"$f":"IF('1. Order'!F216=\"\",\"\",'1. Order'!F216)","v":{"$error":"#N/A"}},{"$f":"IF('1. Order'!G216=\"\",\"\",'1. Order'!G216)","v":""},{"$f":"IF('1. Order'!H216=\"\",\"\",'1. Order'!H216)","v":""},{"$f":"IF('1. Order'!I216=\"\",\"\",'1. Order'!I216)","v":""},{"$f":"IF('1. Order'!J216=\"\",\"\",'1. Order'!J216)","v":""},{"$f":"IF('1. Order'!K216=\"\",\"\",'1. Order'!K216)","v":""},{"$f":"IF('1. Order'!L216=\"\",\"\",'1. Order'!L216)","v":""},{"$f":"IF('1. Order'!M216=\"\",\"\",'1. Order'!M216)","v":""},{"$f":"IF('1. Order'!N216=\"\",\"\",'1. Order'!N216)","v":""},{"$f":"IF('1. Order'!O216=\"\",\"\",'1. Order'!O216)","v":{"$error":"#N/A"}},{"$f":"IF('1. Order'!P216=\"\",\"\",'1. Order'!P216)","v":{"$error":"#N/A"}},{"$f":"IF('1. Order'!Q216=\"\",\"\",'1. Order'!Q216)","v":""},{"$f":"IF('1. Order'!S216=\"\",\"\",'1. Order'!S216)","v":""},{"$f":"IF('1. Order'!T216=\"\",\"\",'1. Order'!T216)","v":""},{"$f":"IF('1. Order'!W216=\"\",\"\",'1. Order'!W216)","v":""},{"$f":"IF('1. Order'!X216=\"\",\"\",'1. Order'!X216)","v":""},{"$f":"IF('1. Order'!Y216=\"\",\"\",'1. Order'!Y216)","v":"EUR"},{"$f":"IF('1. Order'!Z216=\"\",\"\",'1. Order'!Z216)","v":""},{"$f":"IF('1. Order'!AA216=\"\",\"\",'1. Order'!AA216)","v":""},{"$f":"IF('1. Order'!AB216=\"\",\"\",'1. Order'!AB216)","v":""},null,{"$f":"IF('1. Order'!AT216=\"\",\"\",'1. Order'!AT216)","v":""},{"$f":"IF('1. Order'!AU216=\"\",\"\",'1. Order'!AU216)","v":""},null,null,null,null,null,null,null,{"$f":"IF('1. Order'!AY216=\"\",\"\",'1. Order'!AY216)","v":""},{"$f":"IF('1. Order'!AZ216=\"\",\"\",'1. Order'!AZ216)","v":""},{"$f":"IF('1. Order'!BA216=\"\",\"\",'1. Order'!BA216)","v":""},{"$f":"IF('1. Order'!BB216=\"\",\"\",'1. Order'!BB216)","v":""},{"$f":"IF('1. Order'!BD216=\"\",\"\",'1. Order'!BD216)","v":""},{"$f":"IF('1. Order'!BE216=\"\",\"\",'1. Order'!BE216)","v":""},{"$f":"IF('1. Order'!BF216=\"\",\"\",'1. Order'!BF216)","v":""},{"$f":"IF('1. Order'!BG216=\"\",\"\",'1. Order'!BG216)","v":""},{"$f":"IF('1. Order'!BH216=\"\",\"\",'1. Order'!BH216)","v":"ZWO"}]
[{"$f":"IF('1. Order'!F217=\"\",\"\",'1. Order'!F217)","v":{"$error":"#N/A"}},{"$f":"IF('1. Order'!G217=\"\",\"\",'1. Order'!G217)","v":""},{"$f":"IF('1. Order'!H217=\"\",\"\",'1. Order'!H217)","v":""},{"$f":"IF('1. Order'!I217=\"\",\"\",'1. Order'!I217)","v":""},{"$f":"IF('1. Order'!J217=\"\",\"\",'1. Order'!J217)","v":""},{"$f":"IF('1. Order'!K217=\"\",\"\",'1. Order'!K217)","v":""},{"$f":"IF('1. Order'!L217=\"\",\"\",'1. Order'!L217)","v":""},{"$f":"IF('1. Order'!M217=\"\",\"\",'1. Order'!M217)","v":""},{"$f":"IF('1. Order'!N217=\"\",\"\",'1. Order'!N217)","v":""},{"$f":"IF('1. Order'!O217=\"\",\"\",'1. Order'!O217)","v":{"$error":"#N/A"}},{"$f":"IF('1. Order'!P217=\"\",\"\",'1. Order'!P217)","v":{"$error":"#N/A"}},{"$f":"IF('1. Order'!Q217=\"\",\"\",'1. Order'!Q217)","v":""},{"$f":"IF('1. Order'!S217=\"\",\"\",'1. Order'!S217)","v":""},{"$f":"IF('1. Order'!T217=\"\",\"\",'1. Order'!T217)","v":""},{"$f":"IF('1. Order'!W217=\"\",\"\",'1. Order'!W217)","v":""},{"$f":"IF('1. Order'!X217=\"\",\"\",'1. Order'!X217)","v":""},{"$f":"IF('1. Order'!Y217=\"\",\"\",'1. Order'!Y217)","v":"EUR"},{"$f":"IF('1. Order'!Z217=\"\",\"\",'1. Order'!Z217)","v":""},{"$f":"IF('1. Order'!AA217=\"\",\"\",'1. Order'!AA217)","v":""},{"$f":"IF('1. Order'!AB217=\"\",\"\",'1. Order'!AB217)","v":""},null,{"$f":"IF('1. Order'!AT217=\"\",\"\",'1. Order'!AT217)","v":""},{"$f":"IF('1. Order'!AU217=\"\",\"\",'1. Order'!AU217)","v":""},null,null,null,null,null,null,null,{"$f":"IF('1. Order'!AY217=\"\",\"\",'1. Order'!AY217)","v":""},{"$f":"IF('1. Order'!AZ217=\"\",\"\",'1. Order'!AZ217)","v":""},{"$f":"IF('1. Order'!BA217=\"\",\"\",'1. Order'!BA217)","v":""},{"$f":"IF('1. Order'!BB217=\"\",\"\",'1. Order'!BB217)","v":""},{"$f":"IF('1. Order'!BD217=\"\",\"\",'1. Order'!BD217)","v":""},{"$f":"IF('1. Order'!BE217=\"\",\"\",'1. Order'!BE217)","v":""},{"$f":"IF('1. Order'!BF217=\"\",\"\",'1. Order'!BF217)","v":""},{"$f":"IF('1. Order'!BG217=\"\",\"\",'1. Order'!BG217)","v":""},{"$f":"IF('1. Order'!BH217=\"\",\"\",'1. Order'!BH217)","v":"ZWO"}]
[{"$f":"IF('1. Order'!F218=\"\",\"\",'1. Order'!F218)","v":{"$error":"#N/A"}},{"$f":"IF('1. Order'!G218=\"\",\"\",'1. Order'!G218)","v":""},{"$f":"IF('1. Order'!H218=\"\",\"\",'1. Order'!H218)","v":""},{"$f":"IF('1. Order'!I218=\"\",\"\",'1. Order'!I218)","v":""},{"$f":"IF('1. Order'!J218=\"\",\"\",'1. Order'!J218)","v":""},{"$f":"IF('1. Order'!K218=\"\",\"\",'1. Order'!K218)","v":""},{"$f":"IF('1. Order'!L218=\"\",\"\",'1. Order'!L218)","v":""},{"$f":"IF('1. Order'!M218=\"\",\"\",'1. Order'!M218)","v":""},{"$f":"IF('1. Order'!N218=\"\",\"\",'1. Order'!N218)","v":""},{"$f":"IF('1. Order'!O218=\"\",\"\",'1. Order'!O218)","v":{"$error":"#N/A"}},{"$f":"IF('1. Order'!P218=\"\",\"\",'1. Order'!P218)","v":{"$error":"#N/A"}},{"$f":"IF('1. Order'!Q218=\"\",\"\",'1. Order'!Q218)","v":""},{"$f":"IF('1. Order'!S218=\"\",\"\",'1. Order'!S218)","v":""},{"$f":"IF('1. Order'!T218=\"\",\"\",'1. Order'!T218)","v":""},{"$f":"IF('1. Order'!W218=\"\",\"\",'1. Order'!W218)","v":""},{"$f":"IF('1. Order'!X218=\"\",\"\",'1. Order'!X218)","v":""},{"$f":"IF('1. Order'!Y218=\"\",\"\",'1. Order'!Y218)","v":"EUR"},{"$f":"IF('1. Order'!Z218=\"\",\"\",'1. Order'!Z218)","v":""},{"$f":"IF('1. Order'!AA218=\"\",\"\",'1. Order'!AA218)","v":""},{"$f":"IF('1. Order'!AB218=\"\",\"\",'1. Order'!AB218)","v":""},null,{"$f":"IF('1. Order'!AT218=\"\",\"\",'1. Order'!AT218)","v":""},{"$f":"IF('1. Order'!AU218=\"\",\"\",'1. Order'!AU218)","v":""},null,null,null,null,null,null,null,{"$f":"IF('1. Order'!AY218=\"\",\"\",'1. Order'!AY218)","v":""},{"$f":"IF('1. Order'!AZ218=\"\",\"\",'1. Order'!AZ218)","v":""},{"$f":"IF('1. Order'!BA218=\"\",\"\",'1. Order'!BA218)","v":""},{"$f":"IF('1. Order'!BB218=\"\",\"\",'1. Order'!BB218)","v":""},{"$f":"IF('1. Order'!BD218=\"\",\"\",'1. Order'!BD218)","v":""},{"$f":"IF('1. Order'!BE218=\"\",\"\",'1. Order'!BE218)","v":""},{"$f":"IF('1. Order'!BF218=\"\",\"\",'1. Order'!BF218)","v":""},{"$f":"IF('1. Order'!BG218=\"\",\"\",'1. Order'!BG218)","v":""},{"$f":"IF('1. Order'!BH218=\"\",\"\",'1. Order'!BH218)","v":"ZWO"}]
[{"$f":"IF('1. Order'!F219=\"\",\"\",'1. Order'!F219)","v":{"$error":"#N/A"}},{"$f":"IF('1. Order'!G219=\"\",\"\",'1. Order'!G219)","v":""},{"$f":"IF('1. Order'!H219=\"\",\"\",'1. Order'!H219)","v":""},{"$f":"IF('1. Order'!I219=\"\",\"\",'1. Order'!I219)","v":""},{"$f":"IF('1. Order'!J219=\"\",\"\",'1. Order'!J219)","v":""},{"$f":"IF('1. Order'!K219=\"\",\"\",'1. Order'!K219)","v":""},{"$f":"IF('1. Order'!L219=\"\",\"\",'1. Order'!L219)","v":""},{"$f":"IF('1. Order'!M219=\"\",\"\",'1. Order'!M219)","v":""},{"$f":"IF('1. Order'!N219=\"\",\"\",'1. Order'!N219)","v":""},{"$f":"IF('1. Order'!O219=\"\",\"\",'1. Order'!O219)","v":{"$error":"#N/A"}},{"$f":"IF('1. Order'!P219=\"\",\"\",'1. Order'!P219)","v":{"$error":"#N/A"}},{"$f":"IF('1. Order'!Q219=\"\",\"\",'1. Order'!Q219)","v":""},{"$f":"IF('1. Order'!S219=\"\",\"\",'1. Order'!S219)","v":""},{"$f":"IF('1. Order'!T219=\"\",\"\",'1. Order'!T219)","v":""},{"$f":"IF('1. Order'!W219=\"\",\"\",'1. Order'!W219)","v":""},{"$f":"IF('1. Order'!X219=\"\",\"\",'1. Order'!X219)","v":""},{"$f":"IF('1. Order'!Y219=\"\",\"\",'1. Order'!Y219)","v":"EUR"},{"$f":"IF('1. Order'!Z219=\"\",\"\",'1. Order'!Z219)","v":""},{"$f":"IF('1. Order'!AA219=\"\",\"\",'1. Order'!AA219)","v":""},{"$f":"IF('1. Order'!AB219=\"\",\"\",'1. Order'!AB219)","v":""},null,{"$f":"IF('1. Order'!AT219=\"\",\"\",'1. Order'!AT219)","v":""},{"$f":"IF('1. Order'!AU219=\"\",\"\",'1. Order'!AU219)","v":""},null,null,null,null,null,null,null,{"$f":"IF('1. Order'!AY219=\"\",\"\",'1. Order'!AY219)","v":""},{"$f":"IF('1. Order'!AZ219=\"\",\"\",'1. Order'!AZ219)","v":""},{"$f":"IF('1. Order'!BA219=\"\",\"\",'1. Order'!BA219)","v":""},{"$f":"IF('1. Order'!BB219=\"\",\"\",'1. Order'!BB219)","v":""},{"$f":"IF('1. Order'!BD219=\"\",\"\",'1. Order'!BD219)","v":""},{"$f":"IF('1. Order'!BE219=\"\",\"\",'1. Order'!BE219)","v":""},{"$f":"IF('1. Order'!BF219=\"\",\"\",'1. Order'!BF219)","v":""},{"$f":"IF('1. Order'!BG219=\"\",\"\",'1. Order'!BG219)","v":""},{"$f":"IF('1. Order'!BH219=\"\",\"\",'1. Order'!BH219)","v":"ZWO"}]
[{"$f":"IF('1. Order'!F220=\"\",\"\",'1. Order'!F220)","v":{"$error":"#N/A"}},{"$f":"IF('1. Order'!G220=\"\",\"\",'1. Order'!G220)","v":""},{"$f":"IF('1. Order'!H220=\"\",\"\",'1. Order'!H220)","v":""},{"$f":"IF('1. Order'!I220=\"\",\"\",'1. Order'!I220)","v":""},{"$f":"IF('1. Order'!J220=\"\",\"\",'1. Order'!J220)","v":""},{"$f":"IF('1. Order'!K220=\"\",\"\",'1. Order'!K220)","v":""},{"$f":"IF('1. Order'!L220=\"\",\"\",'1. Order'!L220)","v":""},{"$f":"IF('1. Order'!M220=\"\",\"\",'1. Order'!M220)","v":""},{"$f":"IF('1. Order'!N220=\"\",\"\",'1. Order'!N220)","v":""},{"$f":"IF('1. Order'!O220=\"\",\"\",'1. Order'!O220)","v":{"$error":"#N/A"}},{"$f":"IF('1. Order'!P220=\"\",\"\",'1. Order'!P220)","v":{"$error":"#N/A"}},{"$f":"IF('1. Order'!Q220=\"\",\"\",'1. Order'!Q220)","v":""},{"$f":"IF('1. Order'!S220=\"\",\"\",'1. Order'!S220)","v":""},{"$f":"IF('1. Order'!T220=\"\",\"\",'1. Order'!T220)","v":""},{"$f":"IF('1. Order'!W220=\"\",\"\",'1. Order'!W220)","v":""},{"$f":"IF('1. Order'!X220=\"\",\"\",'1. Order'!X220)","v":""},{"$f":"IF('1. Order'!Y220=\"\",\"\",'1. Order'!Y220)","v":"EUR"},{"$f":"IF('1. Order'!Z220=\"\",\"\",'1. Order'!Z220)","v":""},{"$f":"IF('1. Order'!AA220=\"\",\"\",'1. Order'!AA220)","v":""},{"$f":"IF('1. Order'!AB220=\"\",\"\",'1. Order'!AB220)","v":""},null,{"$f":"IF('1. Order'!AT220=\"\",\"\",'1. Order'!AT220)","v":""},{"$f":"IF('1. Order'!AU220=\"\",\"\",'1. Order'!AU220)","v":""},null,null,null,null,null,null,null,{"$f":"IF('1. Order'!AY220=\"\",\"\",'1. Order'!AY220)","v":""},{"$f":"IF('1. Order'!AZ220=\"\",\"\",'1. Order'!AZ220)","v":""},{"$f":"IF('1. Order'!BA220=\"\",\"\",'1. Order'!BA220)","v":""},{"$f":"IF('1. Order'!BB220=\"\",\"\",'1. Order'!BB220)","v":""},{"$f":"IF('1. Order'!BD220=\"\",\"\",'1. Order'!BD220)","v":""},{"$f":"IF('1. Order'!BE220=\"\",\"\",'1. Order'!BE220)","v":""},{"$f":"IF('1. Order'!BF220=\"\",\"\",'1. Order'!BF220)","v":""},{"$f":"IF('1. Order'!BG220=\"\",\"\",'1. Order'!BG220)","v":""},{"$f":"IF('1. Order'!BH220=\"\",\"\",'1. Order'!BH220)","v":"ZWO"}]
[{"$f":"IF('1. Order'!F221=\"\",\"\",'1. Order'!F221)","v":{"$error":"#N/A"}},{"$f":"IF('1. Order'!G221=\"\",\"\",'1. Order'!G221)","v":""},{"$f":"IF('1. Order'!H221=\"\",\"\",'1. Order'!H221)","v":""},{"$f":"IF('1. Order'!I221=\"\",\"\",'1. Order'!I221)","v":""},{"$f":"IF('1. Order'!J221=\"\",\"\",'1. Order'!J221)","v":""},{"$f":"IF('1. Order'!K221=\"\",\"\",'1. Order'!K221)","v":""},{"$f":"IF('1. Order'!L221=\"\",\"\",'1. Order'!L221)","v":""},{"$f":"IF('1. Order'!M221=\"\",\"\",'1. Order'!M221)","v":""},{"$f":"IF('1. Order'!N221=\"\",\"\",'1. Order'!N221)","v":""},{"$f":"IF('1. Order'!O221=\"\",\"\",'1. Order'!O221)","v":{"$error":"#N/A"}},{"$f":"IF('1. Order'!P221=\"\",\"\",'1. Order'!P221)","v":{"$error":"#N/A"}},{"$f":"IF('1. Order'!Q221=\"\",\"\",'1. Order'!Q221)","v":""},{"$f":"IF('1. Order'!S221=\"\",\"\",'1. Order'!S221)","v":""},{"$f":"IF('1. Order'!T221=\"\",\"\",'1. Order'!T221)","v":""},{"$f":"IF('1. Order'!W221=\"\",\"\",'1. Order'!W221)","v":""},{"$f":"IF('1. Order'!X221=\"\",\"\",'1. Order'!X221)","v":""},{"$f":"IF('1. Order'!Y221=\"\",\"\",'1. Order'!Y221)","v":"EUR"},{"$f":"IF('1. Order'!Z221=\"\",\"\",'1. Order'!Z221)","v":""},{"$f":"IF('1. Order'!AA221=\"\",\"\",'1. Order'!AA221)","v":""},{"$f":"IF('1. Order'!AB221=\"\",\"\",'1. Order'!AB221)","v":""},null,{"$f":"IF('1. Order'!AT221=\"\",\"\",'1. Order'!AT221)","v":""},{"$f":"IF('1. Order'!AU221=\"\",\"\",'1. Order'!AU221)","v":""},null,null,null,null,null,null,null,{"$f":"IF('1. Order'!AY221=\"\",\"\",'1. Order'!AY221)","v":""},{"$f":"IF('1. Order'!AZ221=\"\",\"\",'1. Order'!AZ221)","v":""},{"$f":"IF('1. Order'!BA221=\"\",\"\",'1. Order'!BA221)","v":""},{"$f":"IF('1. Order'!BB221=\"\",\"\",'1. Order'!BB221)","v":""},{"$f":"IF('1. Order'!BD221=\"\",\"\",'1. Order'!BD221)","v":""},{"$f":"IF('1. Order'!BE221=\"\",\"\",'1. Order'!BE221)","v":""},{"$f":"IF('1. Order'!BF221=\"\",\"\",'1. Order'!BF221)","v":""},{"$f":"IF('1. Order'!BG221=\"\",\"\",'1. Order'!BG221)","v":""},{"$f":"IF('1. Order'!BH221=\"\",\"\",'1. Order'!BH221)","v":"ZWO"}]
[{"$f":"IF('1. Order'!F222=\"\",\"\",'1. Order'!F222)","v":{"$error":"#N/A"}},{"$f":"IF('1. Order'!G222=\"\",\"\",'1. Order'!G222)","v":""},{"$f":"IF('1. Order'!H222=\"\",\"\",'1. Order'!H222)","v":""},{"$f":"IF('1. Order'!I222=\"\",\"\",'1. Order'!I222)","v":""},{"$f":"IF('1. Order'!J222=\"\",\"\",'1. Order'!J222)","v":""},{"$f":"IF('1. Order'!K222=\"\",\"\",'1. Order'!K222)","v":""},{"$f":"IF('1. Order'!L222=\"\",\"\",'1. Order'!L222)","v":""},{"$f":"IF('1. Order'!M222=\"\",\"\",'1. Order'!M222)","v":""},{"$f":"IF('1. Order'!N222=\"\",\"\",'1. Order'!N222)","v":""},{"$f":"IF('1. Order'!O222=\"\",\"\",'1. Order'!O222)","v":{"$error":"#N/A"}},{"$f":"IF('1. Order'!P222=\"\",\"\",'1. Order'!P222)","v":{"$error":"#N/A"}},{"$f":"IF('1. Order'!Q222=\"\",\"\",'1. Order'!Q222)","v":""},{"$f":"IF('1. Order'!S222=\"\",\"\",'1. Order'!S222)","v":""},{"$f":"IF('1. Order'!T222=\"\",\"\",'1. Order'!T222)","v":""},{"$f":"IF('1. Order'!W222=\"\",\"\",'1. Order'!W222)","v":""},{"$f":"IF('1. Order'!X222=\"\",\"\",'1. Order'!X222)","v":""},{"$f":"IF('1. Order'!Y222=\"\",\"\",'1. Order'!Y222)","v":"EUR"},{"$f":"IF('1. Order'!Z222=\"\",\"\",'1. Order'!Z222)","v":""},{"$f":"IF('1. Order'!AA222=\"\",\"\",'1. Order'!AA222)","v":""},{"$f":"IF('1. Order'!AB222=\"\",\"\",'1. Order'!AB222)","v":""},null,{"$f":"IF('1. Order'!AT222=\"\",\"\",'1. Order'!AT222)","v":""},{"$f":"IF('1. Order'!AU222=\"\",\"\",'1. Order'!AU222)","v":""},null,null,null,null,null,null,null,{"$f":"IF('1. Order'!AY222=\"\",\"\",'1. Order'!AY222)","v":""},{"$f":"IF('1. Order'!AZ222=\"\",\"\",'1. Order'!AZ222)","v":""},{"$f":"IF('1. Order'!BA222=\"\",\"\",'1. Order'!BA222)","v":""},{"$f":"IF('1. Order'!BB222=\"\",\"\",'1. Order'!BB222)","v":""},{"$f":"IF('1. Order'!BD222=\"\",\"\",'1. Order'!BD222)","v":""},{"$f":"IF('1. Order'!BE222=\"\",\"\",'1. Order'!BE222)","v":""},{"$f":"IF('1. Order'!BF222=\"\",\"\",'1. Order'!BF222)","v":""},{"$f":"IF('1. Order'!BG222=\"\",\"\",'1. Order'!BG222)","v":""},{"$f":"IF('1. Order'!BH222=\"\",\"\",'1. Order'!BH222)","v":"ZWO"}]
[{"$f":"IF('1. Order'!F223=\"\",\"\",'1. Order'!F223)","v":{"$error":"#N/A"}},{"$f":"IF('1. Order'!G223=\"\",\"\",'1. Order'!G223)","v":""},{"$f":"IF('1. Order'!H223=\"\",\"\",'1. Order'!H223)","v":""},{"$f":"IF('1. Order'!I223=\"\",\"\",'1. Order'!I223)","v":""},{"$f":"IF('1. Order'!J223=\"\",\"\",'1. Order'!J223)","v":""},{"$f":"IF('1. Order'!K223=\"\",\"\",'1. Order'!K223)","v":""},{"$f":"IF('1. Order'!L223=\"\",\"\",'1. Order'!L223)","v":""},{"$f":"IF('1. Order'!M223=\"\",\"\",'1. Order'!M223)","v":""},{"$f":"IF('1. Order'!N223=\"\",\"\",'1. Order'!N223)","v":""},{"$f":"IF('1. Order'!O223=\"\",\"\",'1. Order'!O223)","v":{"$error":"#N/A"}},{"$f":"IF('1. Order'!P223=\"\",\"\",'1. Order'!P223)","v":{"$error":"#N/A"}},{"$f":"IF('1. Order'!Q223=\"\",\"\",'1. Order'!Q223)","v":""},{"$f":"IF('1. Order'!S223=\"\",\"\",'1. Order'!S223)","v":""},{"$f":"IF('1. Order'!T223=\"\",\"\",'1. Order'!T223)","v":""},{"$f":"IF('1. Order'!W223=\"\",\"\",'1. Order'!W223)","v":""},{"$f":"IF('1. Order'!X223=\"\",\"\",'1. Order'!X223)","v":""},{"$f":"IF('1. Order'!Y223=\"\",\"\",'1. Order'!Y223)","v":"EUR"},{"$f":"IF('1. Order'!Z223=\"\",\"\",'1. Order'!Z223)","v":""},{"$f":"IF('1. Order'!AA223=\"\",\"\",'1. Order'!AA223)","v":""},{"$f":"IF('1. Order'!AB223=\"\",\"\",'1. Order'!AB223)","v":""},null,{"$f":"IF('1. Order'!AT223=\"\",\"\",'1. Order'!AT223)","v":""},{"$f":"IF('1. Order'!AU223=\"\",\"\",'1. Order'!AU223)","v":""},null,null,null,null,null,null,null,{"$f":"IF('1. Order'!AY223=\"\",\"\",'1. Order'!AY223)","v":""},{"$f":"IF('1. Order'!AZ223=\"\",\"\",'1. Order'!AZ223)","v":""},{"$f":"IF('1. Order'!BA223=\"\",\"\",'1. Order'!BA223)","v":""},{"$f":"IF('1. Order'!BB223=\"\",\"\",'1. Order'!BB223)","v":""},{"$f":"IF('1. Order'!BD223=\"\",\"\",'1. Order'!BD223)","v":""},{"$f":"IF('1. Order'!BE223=\"\",\"\",'1. Order'!BE223)","v":""},{"$f":"IF('1. Order'!BF223=\"\",\"\",'1. Order'!BF223)","v":""},{"$f":"IF('1. Order'!BG223=\"\",\"\",'1. Order'!BG223)","v":""},{"$f":"IF('1. Order'!BH223=\"\",\"\",'1. Order'!BH223)","v":"ZWO"}]
[{"$f":"IF('1. Order'!F224=\"\",\"\",'1. Order'!F224)","v":{"$error":"#N/A"}},{"$f":"IF('1. Order'!G224=\"\",\"\",'1. Order'!G224)","v":""},{"$f":"IF('1. Order'!H224=\"\",\"\",'1. Order'!H224)","v":""},{"$f":"IF('1. Order'!I224=\"\",\"\",'1. Order'!I224)","v":""},{"$f":"IF('1. Order'!J224=\"\",\"\",'1. Order'!J224)","v":""},{"$f":"IF('1. Order'!K224=\"\",\"\",'1. Order'!K224)","v":""},{"$f":"IF('1. Order'!L224=\"\",\"\",'1. Order'!L224)","v":""},{"$f":"IF('1. Order'!M224=\"\",\"\",'1. Order'!M224)","v":""},{"$f":"IF('1. Order'!N224=\"\",\"\",'1. Order'!N224)","v":""},{"$f":"IF('1. Order'!O224=\"\",\"\",'1. Order'!O224)","v":{"$error":"#N/A"}},{"$f":"IF('1. Order'!P224=\"\",\"\",'1. Order'!P224)","v":{"$error":"#N/A"}},{"$f":"IF('1. Order'!Q224=\"\",\"\",'1. Order'!Q224)","v":""},{"$f":"IF('1. Order'!S224=\"\",\"\",'1. Order'!S224)","v":""},{"$f":"IF('1. Order'!T224=\"\",\"\",'1. Order'!T224)","v":""},{"$f":"IF('1. Order'!W224=\"\",\"\",'1. Order'!W224)","v":""},{"$f":"IF('1. Order'!X224=\"\",\"\",'1. Order'!X224)","v":""},{"$f":"IF('1. Order'!Y224=\"\",\"\",'1. Order'!Y224)","v":"EUR"},{"$f":"IF('1. Order'!Z224=\"\",\"\",'1. Order'!Z224)","v":""},{"$f":"IF('1. Order'!AA224=\"\",\"\",'1. Order'!AA224)","v":""},{"$f":"IF('1. Order'!AB224=\"\",\"\",'1. Order'!AB224)","v":""},null,{"$f":"IF('1. Order'!AT224=\"\",\"\",'1. Order'!AT224)","v":""},{"$f":"IF('1. Order'!AU224=\"\",\"\",'1. Order'!AU224)","v":""},null,null,null,null,null,null,null,{"$f":"IF('1. Order'!AY224=\"\",\"\",'1. Order'!AY224)","v":""},{"$f":"IF('1. Order'!AZ224=\"\",\"\",'1. Order'!AZ224)","v":""},{"$f":"IF('1. Order'!BA224=\"\",\"\",'1. Order'!BA224)","v":""},{"$f":"IF('1. Order'!BB224=\"\",\"\",'1. Order'!BB224)","v":""},{"$f":"IF('1. Order'!BD224=\"\",\"\",'1. Order'!BD224)","v":""},{"$f":"IF('1. Order'!BE224=\"\",\"\",'1. Order'!BE224)","v":""},{"$f":"IF('1. Order'!BF224=\"\",\"\",'1. Order'!BF224)","v":""},{"$f":"IF('1. Order'!BG224=\"\",\"\",'1. Order'!BG224)","v":""},{"$f":"IF('1. Order'!BH224=\"\",\"\",'1. Order'!BH224)","v":"ZWO"}]
[{"$f":"IF('1. Order'!F225=\"\",\"\",'1. Order'!F225)","v":{"$error":"#N/A"}},{"$f":"IF('1. Order'!G225=\"\",\"\",'1. Order'!G225)","v":""},{"$f":"IF('1. Order'!H225=\"\",\"\",'1. Order'!H225)","v":""},{"$f":"IF('1. Order'!I225=\"\",\"\",'1. Order'!I225)","v":""},{"$f":"IF('1. Order'!J225=\"\",\"\",'1. Order'!J225)","v":""},{"$f":"IF('1. Order'!K225=\"\",\"\",'1. Order'!K225)","v":""},{"$f":"IF('1. Order'!L225=\"\",\"\",'1. Order'!L225)","v":""},{"$f":"IF('1. Order'!M225=\"\",\"\",'1. Order'!M225)","v":""},{"$f":"IF('1. Order'!N225=\"\",\"\",'1. Order'!N225)","v":""},{"$f":"IF('1. Order'!O225=\"\",\"\",'1. Order'!O225)","v":{"$error":"#N/A"}},{"$f":"IF('1. Order'!P225=\"\",\"\",'1. Order'!P225)","v":{"$error":"#N/A"}},{"$f":"IF('1. Order'!Q225=\"\",\"\",'1. Order'!Q225)","v":""},{"$f":"IF('1. Order'!S225=\"\",\"\",'1. Order'!S225)","v":""},{"$f":"IF('1. Order'!T225=\"\",\"\",'1. Order'!T225)","v":""},{"$f":"IF('1. Order'!W225=\"\",\"\",'1. Order'!W225)","v":""},{"$f":"IF('1. Order'!X225=\"\",\"\",'1. Order'!X225)","v":""},{"$f":"IF('1. Order'!Y225=\"\",\"\",'1. Order'!Y225)","v":"EUR"},{"$f":"IF('1. Order'!Z225=\"\",\"\",'1. Order'!Z225)","v":""},{"$f":"IF('1. Order'!AA225=\"\",\"\",'1. Order'!AA225)","v":""},{"$f":"IF('1. Order'!AB225=\"\",\"\",'1. Order'!AB225)","v":""},null,{"$f":"IF('1. Order'!AT225=\"\",\"\",'1. Order'!AT225)","v":""},{"$f":"IF('1. Order'!AU225=\"\",\"\",'1. Order'!AU225)","v":""},null,null,null,null,null,null,null,{"$f":"IF('1. Order'!AY225=\"\",\"\",'1. Order'!AY225)","v":""},{"$f":"IF('1. Order'!AZ225=\"\",\"\",'1. Order'!AZ225)","v":""},{"$f":"IF('1. Order'!BA225=\"\",\"\",'1. Order'!BA225)","v":""},{"$f":"IF('1. Order'!BB225=\"\",\"\",'1. Order'!BB225)","v":""},{"$f":"IF('1. Order'!BD225=\"\",\"\",'1. Order'!BD225)","v":""},{"$f":"IF('1. Order'!BE225=\"\",\"\",'1. Order'!BE225)","v":""},{"$f":"IF('1. Order'!BF225=\"\",\"\",'1. Order'!BF225)","v":""},{"$f":"IF('1. Order'!BG225=\"\",\"\",'1. Order'!BG225)","v":""},{"$f":"IF('1. Order'!BH225=\"\",\"\",'1. Order'!BH225)","v":"ZWO"}]
[{"$f":"IF('1. Order'!F226=\"\",\"\",'1. Order'!F226)","v":{"$error":"#N/A"}},{"$f":"IF('1. Order'!G226=\"\",\"\",'1. Order'!G226)","v":""},{"$f":"IF('1. Order'!H226=\"\",\"\",'1. Order'!H226)","v":""},{"$f":"IF('1. Order'!I226=\"\",\"\",'1. Order'!I226)","v":""},{"$f":"IF('1. Order'!J226=\"\",\"\",'1. Order'!J226)","v":""},{"$f":"IF('1. Order'!K226=\"\",\"\",'1. Order'!K226)","v":""},{"$f":"IF('1. Order'!L226=\"\",\"\",'1. Order'!L226)","v":""},{"$f":"IF('1. Order'!M226=\"\",\"\",'1. Order'!M226)","v":""},{"$f":"IF('1. Order'!N226=\"\",\"\",'1. Order'!N226)","v":""},{"$f":"IF('1. Order'!O226=\"\",\"\",'1. Order'!O226)","v":{"$error":"#N/A"}},{"$f":"IF('1. Order'!P226=\"\",\"\",'1. Order'!P226)","v":{"$error":"#N/A"}},{"$f":"IF('1. Order'!Q226=\"\",\"\",'1. Order'!Q226)","v":""},{"$f":"IF('1. Order'!S226=\"\",\"\",'1. Order'!S226)","v":""},{"$f":"IF('1. Order'!T226=\"\",\"\",'1. Order'!T226)","v":""},{"$f":"IF('1. Order'!W226=\"\",\"\",'1. Order'!W226)","v":""},{"$f":"IF('1. Order'!X226=\"\",\"\",'1. Order'!X226)","v":""},{"$f":"IF('1. Order'!Y226=\"\",\"\",'1. Order'!Y226)","v":"EUR"},{"$f":"IF('1. Order'!Z226=\"\",\"\",'1. Order'!Z226)","v":""},{"$f":"IF('1. Order'!AA226=\"\",\"\",'1. Order'!AA226)","v":""},{"$f":"IF('1. Order'!AB226=\"\",\"\",'1. Order'!AB226)","v":""},null,{"$f":"IF('1. Order'!AT226=\"\",\"\",'1. Order'!AT226)","v":""},{"$f":"IF('1. Order'!AU226=\"\",\"\",'1. Order'!AU226)","v":""},null,null,null,null,null,null,null,{"$f":"IF('1. Order'!AY226=\"\",\"\",'1. Order'!AY226)","v":""},{"$f":"IF('1. Order'!AZ226=\"\",\"\",'1. Order'!AZ226)","v":""},{"$f":"IF('1. Order'!BA226=\"\",\"\",'1. Order'!BA226)","v":""},{"$f":"IF('1. Order'!BB226=\"\",\"\",'1. Order'!BB226)","v":""},{"$f":"IF('1. Order'!BD226=\"\",\"\",'1. Order'!BD226)","v":""},{"$f":"IF('1. Order'!BE226=\"\",\"\",'1. Order'!BE226)","v":""},{"$f":"IF('1. Order'!BF226=\"\",\"\",'1. Order'!BF226)","v":""},{"$f":"IF('1. Order'!BG226=\"\",\"\",'1. Order'!BG226)","v":""},{"$f":"IF('1. Order'!BH226=\"\",\"\",'1. Order'!BH226)","v":"ZWO"}]
[{"$f":"IF('1. Order'!F227=\"\",\"\",'1. Order'!F227)","v":{"$error":"#N/A"}},{"$f":"IF('1. Order'!G227=\"\",\"\",'1. Order'!G227)","v":""},{"$f":"IF('1. Order'!H227=\"\",\"\",'1. Order'!H227)","v":""},{"$f":"IF('1. Order'!I227=\"\",\"\",'1. Order'!I227)","v":""},{"$f":"IF('1. Order'!J227=\"\",\"\",'1. Order'!J227)","v":""},{"$f":"IF('1. Order'!K227=\"\",\"\",'1. Order'!K227)","v":""},{"$f":"IF('1. Order'!L227=\"\",\"\",'1. Order'!L227)","v":""},{"$f":"IF('1. Order'!M227=\"\",\"\",'1. Order'!M227)","v":""},{"$f":"IF('1. Order'!N227=\"\",\"\",'1. Order'!N227)","v":""},{"$f":"IF('1. Order'!O227=\"\",\"\",'1. Order'!O227)","v":{"$error":"#N/A"}},{"$f":"IF('1. Order'!P227=\"\",\"\",'1. Order'!P227)","v":{"$error":"#N/A"}},{"$f":"IF('1. Order'!Q227=\"\",\"\",'1. Order'!Q227)","v":""},{"$f":"IF('1. Order'!S227=\"\",\"\",'1. Order'!S227)","v":""},{"$f":"IF('1. Order'!T227=\"\",\"\",'1. Order'!T227)","v":""},{"$f":"IF('1. Order'!W227=\"\",\"\",'1. Order'!W227)","v":""},{"$f":"IF('1. Order'!X227=\"\",\"\",'1. Order'!X227)","v":""},{"$f":"IF('1. Order'!Y227=\"\",\"\",'1. Order'!Y227)","v":"EUR"},{"$f":"IF('1. Order'!Z227=\"\",\"\",'1. Order'!Z227)","v":""},{"$f":"IF('1. Order'!AA227=\"\",\"\",'1. Order'!AA227)","v":""},{"$f":"IF('1. Order'!AB227=\"\",\"\",'1. Order'!AB227)","v":""},null,{"$f":"IF('1. Order'!AT227=\"\",\"\",'1. Order'!AT227)","v":""},{"$f":"IF('1. Order'!AU227=\"\",\"\",'1. Order'!AU227)","v":""},null,null,null,null,null,null,null,{"$f":"IF('1. Order'!AY227=\"\",\"\",'1. Order'!AY227)","v":""},{"$f":"IF('1. Order'!AZ227=\"\",\"\",'1. Order'!AZ227)","v":""},{"$f":"IF('1. Order'!BA227=\"\",\"\",'1. Order'!BA227)","v":""},{"$f":"IF('1. Order'!BB227=\"\",\"\",'1. Order'!BB227)","v":""},{"$f":"IF('1. Order'!BD227=\"\",\"\",'1. Order'!BD227)","v":""},{"$f":"IF('1. Order'!BE227=\"\",\"\",'1. Order'!BE227)","v":""},{"$f":"IF('1. Order'!BF227=\"\",\"\",'1. Order'!BF227)","v":""},{"$f":"IF('1. Order'!BG227=\"\",\"\",'1. Order'!BG227)","v":""},{"$f":"IF('1. Order'!BH227=\"\",\"\",'1. Order'!BH227)","v":"ZWO"}]
[{"$f":"IF('1. Order'!F228=\"\",\"\",'1. Order'!F228)","v":{"$error":"#N/A"}},{"$f":"IF('1. Order'!G228=\"\",\"\",'1. Order'!G228)","v":""},{"$f":"IF('1. Order'!H228=\"\",\"\",'1. Order'!H228)","v":""},{"$f":"IF('1. Order'!I228=\"\",\"\",'1. Order'!I228)","v":""},{"$f":"IF('1. Order'!J228=\"\",\"\",'1. Order'!J228)","v":""},{"$f":"IF('1. Order'!K228=\"\",\"\",'1. Order'!K228)","v":""},{"$f":"IF('1. Order'!L228=\"\",\"\",'1. Order'!L228)","v":""},{"$f":"IF('1. Order'!M228=\"\",\"\",'1. Order'!M228)","v":""},{"$f":"IF('1. Order'!N228=\"\",\"\",'1. Order'!N228)","v":""},{"$f":"IF('1. Order'!O228=\"\",\"\",'1. Order'!O228)","v":{"$error":"#N/A"}},{"$f":"IF('1. Order'!P228=\"\",\"\",'1. Order'!P228)","v":{"$error":"#N/A"}},{"$f":"IF('1. Order'!Q228=\"\",\"\",'1. Order'!Q228)","v":""},{"$f":"IF('1. Order'!S228=\"\",\"\",'1. Order'!S228)","v":""},{"$f":"IF('1. Order'!T228=\"\",\"\",'1. Order'!T228)","v":""},{"$f":"IF('1. Order'!W228=\"\",\"\",'1. Order'!W228)","v":""},{"$f":"IF('1. Order'!X228=\"\",\"\",'1. Order'!X228)","v":""},{"$f":"IF('1. Order'!Y228=\"\",\"\",'1. Order'!Y228)","v":"EUR"},{"$f":"IF('1. Order'!Z228=\"\",\"\",'1. Order'!Z228)","v":""},{"$f":"IF('1. Order'!AA228=\"\",\"\",'1. Order'!AA228)","v":""},{"$f":"IF('1. Order'!AB228=\"\",\"\",'1. Order'!AB228)","v":""},null,{"$f":"IF('1. Order'!AT228=\"\",\"\",'1. Order'!AT228)","v":""},{"$f":"IF('1. Order'!AU228=\"\",\"\",'1. Order'!AU228)","v":""},null,null,null,null,null,null,null,{"$f":"IF('1. Order'!AY228=\"\",\"\",'1. Order'!AY228)","v":""},{"$f":"IF('1. Order'!AZ228=\"\",\"\",'1. Order'!AZ228)","v":""},{"$f":"IF('1. Order'!BA228=\"\",\"\",'1. Order'!BA228)","v":""},{"$f":"IF('1. Order'!BB228=\"\",\"\",'1. Order'!BB228)","v":""},{"$f":"IF('1. Order'!BD228=\"\",\"\",'1. Order'!BD228)","v":""},{"$f":"IF('1. Order'!BE228=\"\",\"\",'1. Order'!BE228)","v":""},{"$f":"IF('1. Order'!BF228=\"\",\"\",'1. Order'!BF228)","v":""},{"$f":"IF('1. Order'!BG228=\"\",\"\",'1. Order'!BG228)","v":""},{"$f":"IF('1. Order'!BH228=\"\",\"\",'1. Order'!BH228)","v":"ZWO"}]
[{"$f":"IF('1. Order'!F229=\"\",\"\",'1. Order'!F229)","v":{"$error":"#N/A"}},{"$f":"IF('1. Order'!G229=\"\",\"\",'1. Order'!G229)","v":""},{"$f":"IF('1. Order'!H229=\"\",\"\",'1. Order'!H229)","v":""},{"$f":"IF('1. Order'!I229=\"\",\"\",'1. Order'!I229)","v":""},{"$f":"IF('1. Order'!J229=\"\",\"\",'1. Order'!J229)","v":""},{"$f":"IF('1. Order'!K229=\"\",\"\",'1. Order'!K229)","v":""},{"$f":"IF('1. Order'!L229=\"\",\"\",'1. Order'!L229)","v":""},{"$f":"IF('1. Order'!M229=\"\",\"\",'1. Order'!M229)","v":""},{"$f":"IF('1. Order'!N229=\"\",\"\",'1. Order'!N229)","v":""},{"$f":"IF('1. Order'!O229=\"\",\"\",'1. Order'!O229)","v":{"$error":"#N/A"}},{"$f":"IF('1. Order'!P229=\"\",\"\",'1. Order'!P229)","v":{"$error":"#N/A"}},{"$f":"IF('1. Order'!Q229=\"\",\"\",'1. Order'!Q229)","v":""},{"$f":"IF('1. Order'!S229=\"\",\"\",'1. Order'!S229)","v":""},{"$f":"IF('1. Order'!T229=\"\",\"\",'1. Order'!T229)","v":""},{"$f":"IF('1. Order'!W229=\"\",\"\",'1. Order'!W229)","v":""},{"$f":"IF('1. Order'!X229=\"\",\"\",'1. Order'!X229)","v":""},{"$f":"IF('1. Order'!Y229=\"\",\"\",'1. Order'!Y229)","v":"EUR"},{"$f":"IF('1. Order'!Z229=\"\",\"\",'1. Order'!Z229)","v":""},{"$f":"IF('1. Order'!AA229=\"\",\"\",'1. Order'!AA229)","v":""},{"$f":"IF('1. Order'!AB229=\"\",\"\",'1. Order'!AB229)","v":""},null,{"$f":"IF('1. Order'!AT229=\"\",\"\",'1. Order'!AT229)","v":""},{"$f":"IF('1. Order'!AU229=\"\",\"\",'1. Order'!AU229)","v":""},null,null,null,null,null,null,null,{"$f":"IF('1. Order'!AY229=\"\",\"\",'1. Order'!AY229)","v":""},{"$f":"IF('1. Order'!AZ229=\"\",\"\",'1. Order'!AZ229)","v":""},{"$f":"IF('1. Order'!BA229=\"\",\"\",'1. Order'!BA229)","v":""},{"$f":"IF('1. Order'!BB229=\"\",\"\",'1. Order'!BB229)","v":""},{"$f":"IF('1. Order'!BD229=\"\",\"\",'1. Order'!BD229)","v":""},{"$f":"IF('1. Order'!BE229=\"\",\"\",'1. Order'!BE229)","v":""},{"$f":"IF('1. Order'!BF229=\"\",\"\",'1. Order'!BF229)","v":""},{"$f":"IF('1. Order'!BG229=\"\",\"\",'1. Order'!BG229)","v":""},{"$f":"IF('1. Order'!BH229=\"\",\"\",'1. Order'!BH229)","v":"ZWO"}]
[{"$f":"IF('1. Order'!F230=\"\",\"\",'1. Order'!F230)","v":{"$error":"#N/A"}},{"$f":"IF('1. Order'!G230=\"\",\"\",'1. Order'!G230)","v":""},{"$f":"IF('1. Order'!H230=\"\",\"\",'1. Order'!H230)","v":""},{"$f":"IF('1. Order'!I230=\"\",\"\",'1. Order'!I230)","v":""},{"$f":"IF('1. Order'!J230=\"\",\"\",'1. Order'!J230)","v":""},{"$f":"IF('1. Order'!K230=\"\",\"\",'1. Order'!K230)","v":""},{"$f":"IF('1. Order'!L230=\"\",\"\",'1. Order'!L230)","v":""},{"$f":"IF('1. Order'!M230=\"\",\"\",'1. Order'!M230)","v":""},{"$f":"IF('1. Order'!N230=\"\",\"\",'1. Order'!N230)","v":""},{"$f":"IF('1. Order'!O230=\"\",\"\",'1. Order'!O230)","v":{"$error":"#N/A"}},{"$f":"IF('1. Order'!P230=\"\",\"\",'1. Order'!P230)","v":{"$error":"#N/A"}},{"$f":"IF('1. Order'!Q230=\"\",\"\",'1. Order'!Q230)","v":""},{"$f":"IF('1. Order'!S230=\"\",\"\",'1. Order'!S230)","v":""},{"$f":"IF('1. Order'!T230=\"\",\"\",'1. Order'!T230)","v":""},{"$f":"IF('1. Order'!W230=\"\",\"\",'1. Order'!W230)","v":""},{"$f":"IF('1. Order'!X230=\"\",\"\",'1. Order'!X230)","v":""},{"$f":"IF('1. Order'!Y230=\"\",\"\",'1. Order'!Y230)","v":"EUR"},{"$f":"IF('1. Order'!Z230=\"\",\"\",'1. Order'!Z230)","v":""},{"$f":"IF('1. Order'!AA230=\"\",\"\",'1. Order'!AA230)","v":""},{"$f":"IF('1. Order'!AB230=\"\",\"\",'1. Order'!AB230)","v":""},null,{"$f":"IF('1. Order'!AT230=\"\",\"\",'1. Order'!AT230)","v":""},{"$f":"IF('1. Order'!AU230=\"\",\"\",'1. Order'!AU230)","v":""},null,null,null,null,null,null,null,{"$f":"IF('1. Order'!AY230=\"\",\"\",'1. Order'!AY230)","v":""},{"$f":"IF('1. Order'!AZ230=\"\",\"\",'1. Order'!AZ230)","v":""},{"$f":"IF('1. Order'!BA230=\"\",\"\",'1. Order'!BA230)","v":""},{"$f":"IF('1. Order'!BB230=\"\",\"\",'1. Order'!BB230)","v":""},{"$f":"IF('1. Order'!BD230=\"\",\"\",'1. Order'!BD230)","v":""},{"$f":"IF('1. Order'!BE230=\"\",\"\",'1. Order'!BE230)","v":""},{"$f":"IF('1. Order'!BF230=\"\",\"\",'1. Order'!BF230)","v":""},{"$f":"IF('1. Order'!BG230=\"\",\"\",'1. Order'!BG230)","v":""},{"$f":"IF('1. Order'!BH230=\"\",\"\",'1. Order'!BH230)","v":"ZWO"}]
[{"$f":"IF('1. Order'!F231=\"\",\"\",'1. Order'!F231)","v":{"$error":"#N/A"}},{"$f":"IF('1. Order'!G231=\"\",\"\",'1. Order'!G231)","v":""},{"$f":"IF('1. Order'!H231=\"\",\"\",'1. Order'!H231)","v":""},{"$f":"IF('1. Order'!I231=\"\",\"\",'1. Order'!I231)","v":""},{"$f":"IF('1. Order'!J231=\"\",\"\",'1. Order'!J231)","v":""},{"$f":"IF('1. Order'!K231=\"\",\"\",'1. Order'!K231)","v":""},{"$f":"IF('1. Order'!L231=\"\",\"\",'1. Order'!L231)","v":""},{"$f":"IF('1. Order'!M231=\"\",\"\",'1. Order'!M231)","v":""},{"$f":"IF('1. Order'!N231=\"\",\"\",'1. Order'!N231)","v":""},{"$f":"IF('1. Order'!O231=\"\",\"\",'1. Order'!O231)","v":{"$error":"#N/A"}},{"$f":"IF('1. Order'!P231=\"\",\"\",'1. Order'!P231)","v":{"$error":"#N/A"}},{"$f":"IF('1. Order'!Q231=\"\",\"\",'1. Order'!Q231)","v":""},{"$f":"IF('1. Order'!S231=\"\",\"\",'1. Order'!S231)","v":""},{"$f":"IF('1. Order'!T231=\"\",\"\",'1. Order'!T231)","v":""},{"$f":"IF('1. Order'!W231=\"\",\"\",'1. Order'!W231)","v":""},{"$f":"IF('1. Order'!X231=\"\",\"\",'1. Order'!X231)","v":""},{"$f":"IF('1. Order'!Y231=\"\",\"\",'1. Order'!Y231)","v":"EUR"},{"$f":"IF('1. Order'!Z231=\"\",\"\",'1. Order'!Z231)","v":""},{"$f":"IF('1. Order'!AA231=\"\",\"\",'1. Order'!AA231)","v":""},{"$f":"IF('1. Order'!AB231=\"\",\"\",'1. Order'!AB231)","v":""},null,{"$f":"IF('1. Order'!AT231=\"\",\"\",'1. Order'!AT231)","v":""},{"$f":"IF('1. Order'!AU231=\"\",\"\",'1. Order'!AU231)","v":""},null,null,null,null,null,null,null,{"$f":"IF('1. Order'!AY231=\"\",\"\",'1. Order'!AY231)","v":""},{"$f":"IF('1. Order'!AZ231=\"\",\"\",'1. Order'!AZ231)","v":""},{"$f":"IF('1. Order'!BA231=\"\",\"\",'1. Order'!BA231)","v":""},{"$f":"IF('1. Order'!BB231=\"\",\"\",'1. Order'!BB231)","v":""},{"$f":"IF('1. Order'!BD231=\"\",\"\",'1. Order'!BD231)","v":""},{"$f":"IF('1. Order'!BE231=\"\",\"\",'1. Order'!BE231)","v":""},{"$f":"IF('1. Order'!BF231=\"\",\"\",'1. Order'!BF231)","v":""},{"$f":"IF('1. Order'!BG231=\"\",\"\",'1. Order'!BG231)","v":""},{"$f":"IF('1. Order'!BH231=\"\",\"\",'1. Order'!BH231)","v":"ZWO"}]
[{"$f":"IF('1. Order'!F232=\"\",\"\",'1. Order'!F232)","v":{"$error":"#N/A"}},{"$f":"IF('1. Order'!G232=\"\",\"\",'1. Order'!G232)","v":""},{"$f":"IF('1. Order'!H232=\"\",\"\",'1. Order'!H232)","v":""},{"$f":"IF('1. Order'!I232=\"\",\"\",'1. Order'!I232)","v":""},{"$f":"IF('1. Order'!J232=\"\",\"\",'1. Order'!J232)","v":""},{"$f":"IF('1. Order'!K232=\"\",\"\",'1. Order'!K232)","v":""},{"$f":"IF('1. Order'!L232=\"\",\"\",'1. Order'!L232)","v":""},{"$f":"IF('1. Order'!M232=\"\",\"\",'1. Order'!M232)","v":""},{"$f":"IF('1. Order'!N232=\"\",\"\",'1. Order'!N232)","v":""},{"$f":"IF('1. Order'!O232=\"\",\"\",'1. Order'!O232)","v":{"$error":"#N/A"}},{"$f":"IF('1. Order'!P232=\"\",\"\",'1. Order'!P232)","v":{"$error":"#N/A"}},{"$f":"IF('1. Order'!Q232=\"\",\"\",'1. Order'!Q232)","v":""},{"$f":"IF('1. Order'!S232=\"\",\"\",'1. Order'!S232)","v":""},{"$f":"IF('1. Order'!T232=\"\",\"\",'1. Order'!T232)","v":""},{"$f":"IF('1. Order'!W232=\"\",\"\",'1. Order'!W232)","v":""},{"$f":"IF('1. Order'!X232=\"\",\"\",'1. Order'!X232)","v":""},{"$f":"IF('1. Order'!Y232=\"\",\"\",'1. Order'!Y232)","v":"EUR"},{"$f":"IF('1. Order'!Z232=\"\",\"\",'1. Order'!Z232)","v":""},{"$f":"IF('1. Order'!AA232=\"\",\"\",'1. Order'!AA232)","v":""},{"$f":"IF('1. Order'!AB232=\"\",\"\",'1. Order'!AB232)","v":""},null,{"$f":"IF('1. Order'!AT232=\"\",\"\",'1. Order'!AT232)","v":""},{"$f":"IF('1. Order'!AU232=\"\",\"\",'1. Order'!AU232)","v":""},null,null,null,null,null,null,null,{"$f":"IF('1. Order'!AY232=\"\",\"\",'1. Order'!AY232)","v":""},{"$f":"IF('1. Order'!AZ232=\"\",\"\",'1. Order'!AZ232)","v":""},{"$f":"IF('1. Order'!BA232=\"\",\"\",'1. Order'!BA232)","v":""},{"$f":"IF('1. Order'!BB232=\"\",\"\",'1. Order'!BB232)","v":""},{"$f":"IF('1. Order'!BD232=\"\",\"\",'1. Order'!BD232)","v":""},{"$f":"IF('1. Order'!BE232=\"\",\"\",'1. Order'!BE232)","v":""},{"$f":"IF('1. Order'!BF232=\"\",\"\",'1. Order'!BF232)","v":""},{"$f":"IF('1. Order'!BG232=\"\",\"\",'1. Order'!BG232)","v":""},{"$f":"IF('1. Order'!BH232=\"\",\"\",'1. Order'!BH232)","v":"ZWO"}]
[{"$f":"IF('1. Order'!F233=\"\",\"\",'1. Order'!F233)","v":{"$error":"#N/A"}},{"$f":"IF('1. Order'!G233=\"\",\"\",'1. Order'!G233)","v":""},{"$f":"IF('1. Order'!H233=\"\",\"\",'1. Order'!H233)","v":""},{"$f":"IF('1. Order'!I233=\"\",\"\",'1. Order'!I233)","v":""},{"$f":"IF('1. Order'!J233=\"\",\"\",'1. Order'!J233)","v":""},{"$f":"IF('1. Order'!K233=\"\",\"\",'1. Order'!K233)","v":""},{"$f":"IF('1. Order'!L233=\"\",\"\",'1. Order'!L233)","v":""},{"$f":"IF('1. Order'!M233=\"\",\"\",'1. Order'!M233)","v":""},{"$f":"IF('1. Order'!N233=\"\",\"\",'1. Order'!N233)","v":""},{"$f":"IF('1. Order'!O233=\"\",\"\",'1. Order'!O233)","v":{"$error":"#N/A"}},{"$f":"IF('1. Order'!P233=\"\",\"\",'1. Order'!P233)","v":{"$error":"#N/A"}},{"$f":"IF('1. Order'!Q233=\"\",\"\",'1. Order'!Q233)","v":""},{"$f":"IF('1. Order'!S233=\"\",\"\",'1. Order'!S233)","v":""},{"$f":"IF('1. Order'!T233=\"\",\"\",'1. Order'!T233)","v":""},{"$f":"IF('1. Order'!W233=\"\",\"\",'1. Order'!W233)","v":""},{"$f":"IF('1. Order'!X233=\"\",\"\",'1. Order'!X233)","v":""},{"$f":"IF('1. Order'!Y233=\"\",\"\",'1. Order'!Y233)","v":"EUR"},{"$f":"IF('1. Order'!Z233=\"\",\"\",'1. Order'!Z233)","v":""},{"$f":"IF('1. Order'!AA233=\"\",\"\",'1. Order'!AA233)","v":""},{"$f":"IF('1. Order'!AB233=\"\",\"\",'1. Order'!AB233)","v":""},null,{"$f":"IF('1. Order'!AT233=\"\",\"\",'1. Order'!AT233)","v":""},{"$f":"IF('1. Order'!AU233=\"\",\"\",'1. Order'!AU233)","v":""},null,null,null,null,null,null,null,{"$f":"IF('1. Order'!AY233=\"\",\"\",'1. Order'!AY233)","v":""},{"$f":"IF('1. Order'!AZ233=\"\",\"\",'1. Order'!AZ233)","v":""},{"$f":"IF('1. Order'!BA233=\"\",\"\",'1. Order'!BA233)","v":""},{"$f":"IF('1. Order'!BB233=\"\",\"\",'1. Order'!BB233)","v":""},{"$f":"IF('1. Order'!BD233=\"\",\"\",'1. Order'!BD233)","v":""},{"$f":"IF('1. Order'!BE233=\"\",\"\",'1. Order'!BE233)","v":""},{"$f":"IF('1. Order'!BF233=\"\",\"\",'1. Order'!BF233)","v":""},{"$f":"IF('1. Order'!BG233=\"\",\"\",'1. Order'!BG233)","v":""},{"$f":"IF('1. Order'!BH233=\"\",\"\",'1. Order'!BH233)","v":"ZWO"}]
[{"$f":"IF('1. Order'!F234=\"\",\"\",'1. Order'!F234)","v":{"$error":"#N/A"}},{"$f":"IF('1. Order'!G234=\"\",\"\",'1. Order'!G234)","v":""},{"$f":"IF('1. Order'!H234=\"\",\"\",'1. Order'!H234)","v":""},{"$f":"IF('1. Order'!I234=\"\",\"\",'1. Order'!I234)","v":""},{"$f":"IF('1. Order'!J234=\"\",\"\",'1. Order'!J234)","v":""},{"$f":"IF('1. Order'!K234=\"\",\"\",'1. Order'!K234)","v":""},{"$f":"IF('1. Order'!L234=\"\",\"\",'1. Order'!L234)","v":""},{"$f":"IF('1. Order'!M234=\"\",\"\",'1. Order'!M234)","v":""},{"$f":"IF('1. Order'!N234=\"\",\"\",'1. Order'!N234)","v":""},{"$f":"IF('1. Order'!O234=\"\",\"\",'1. Order'!O234)","v":{"$error":"#N/A"}},{"$f":"IF('1. Order'!P234=\"\",\"\",'1. Order'!P234)","v":{"$error":"#N/A"}},{"$f":"IF('1. Order'!Q234=\"\",\"\",'1. Order'!Q234)","v":""},{"$f":"IF('1. Order'!S234=\"\",\"\",'1. Order'!S234)","v":""},{"$f":"IF('1. Order'!T234=\"\",\"\",'1. Order'!T234)","v":""},{"$f":"IF('1. Order'!W234=\"\",\"\",'1. Order'!W234)","v":""},{"$f":"IF('1. Order'!X234=\"\",\"\",'1. Order'!X234)","v":""},{"$f":"IF('1. Order'!Y234=\"\",\"\",'1. Order'!Y234)","v":"EUR"},{"$f":"IF('1. Order'!Z234=\"\",\"\",'1. Order'!Z234)","v":""},{"$f":"IF('1. Order'!AA234=\"\",\"\",'1. Order'!AA234)","v":""},{"$f":"IF('1. Order'!AB234=\"\",\"\",'1. Order'!AB234)","v":""},null,{"$f":"IF('1. Order'!AT234=\"\",\"\",'1. Order'!AT234)","v":""},{"$f":"IF('1. Order'!AU234=\"\",\"\",'1. Order'!AU234)","v":""},null,null,null,null,null,null,null,{"$f":"IF('1. Order'!AY234=\"\",\"\",'1. Order'!AY234)","v":""},{"$f":"IF('1. Order'!AZ234=\"\",\"\",'1. Order'!AZ234)","v":""},{"$f":"IF('1. Order'!BA234=\"\",\"\",'1. Order'!BA234)","v":""},{"$f":"IF('1. Order'!BB234=\"\",\"\",'1. Order'!BB234)","v":""},{"$f":"IF('1. Order'!BD234=\"\",\"\",'1. Order'!BD234)","v":""},{"$f":"IF('1. Order'!BE234=\"\",\"\",'1. Order'!BE234)","v":""},{"$f":"IF('1. Order'!BF234=\"\",\"\",'1. Order'!BF234)","v":""},{"$f":"IF('1. Order'!BG234=\"\",\"\",'1. Order'!BG234)","v":""},{"$f":"IF('1. Order'!BH234=\"\",\"\",'1. Order'!BH234)","v":"ZWO"}]
[{"$f":"IF('1. Order'!F235=\"\",\"\",'1. Order'!F235)","v":{"$error":"#N/A"}},{"$f":"IF('1. Order'!G235=\"\",\"\",'1. Order'!G235)","v":""},{"$f":"IF('1. Order'!H235=\"\",\"\",'1. Order'!H235)","v":""},{"$f":"IF('1. Order'!I235=\"\",\"\",'1. Order'!I235)","v":""},{"$f":"IF('1. Order'!J235=\"\",\"\",'1. Order'!J235)","v":""},{"$f":"IF('1. Order'!K235=\"\",\"\",'1. Order'!K235)","v":""},{"$f":"IF('1. Order'!L235=\"\",\"\",'1. Order'!L235)","v":""},{"$f":"IF('1. Order'!M235=\"\",\"\",'1. Order'!M235)","v":""},{"$f":"IF('1. Order'!N235=\"\",\"\",'1. Order'!N235)","v":""},{"$f":"IF('1. Order'!O235=\"\",\"\",'1. Order'!O235)","v":{"$error":"#N/A"}},{"$f":"IF('1. Order'!P235=\"\",\"\",'1. Order'!P235)","v":{"$error":"#N/A"}},{"$f":"IF('1. Order'!Q235=\"\",\"\",'1. Order'!Q235)","v":""},{"$f":"IF('1. Order'!S235=\"\",\"\",'1. Order'!S235)","v":""},{"$f":"IF('1. Order'!T235=\"\",\"\",'1. Order'!T235)","v":""},{"$f":"IF('1. Order'!W235=\"\",\"\",'1. Order'!W235)","v":""},{"$f":"IF('1. Order'!X235=\"\",\"\",'1. Order'!X235)","v":""},{"$f":"IF('1. Order'!Y235=\"\",\"\",'1. Order'!Y235)","v":"EUR"},{"$f":"IF('1. Order'!Z235=\"\",\"\",'1. Order'!Z235)","v":""},{"$f":"IF('1. Order'!AA235=\"\",\"\",'1. Order'!AA235)","v":""},{"$f":"IF('1. Order'!AB235=\"\",\"\",'1. Order'!AB235)","v":""},null,{"$f":"IF('1. Order'!AT235=\"\",\"\",'1. Order'!AT235)","v":""},{"$f":"IF('1. Order'!AU235=\"\",\"\",'1. Order'!AU235)","v":""},null,null,null,null,null,null,null,{"$f":"IF('1. Order'!AY235=\"\",\"\",'1. Order'!AY235)","v":""},{"$f":"IF('1. Order'!AZ235=\"\",\"\",'1. Order'!AZ235)","v":""},{"$f":"IF('1. Order'!BA235=\"\",\"\",'1. Order'!BA235)","v":""},{"$f":"IF('1. Order'!BB235=\"\",\"\",'1. Order'!BB235)","v":""},{"$f":"IF('1. Order'!BD235=\"\",\"\",'1. Order'!BD235)","v":""},{"$f":"IF('1. Order'!BE235=\"\",\"\",'1. Order'!BE235)","v":""},{"$f":"IF('1. Order'!BF235=\"\",\"\",'1. Order'!BF235)","v":""},{"$f":"IF('1. Order'!BG235=\"\",\"\",'1. Order'!BG235)","v":""},{"$f":"IF('1. Order'!BH235=\"\",\"\",'1. Order'!BH235)","v":"ZWO"}]
[{"$f":"IF('1. Order'!F236=\"\",\"\",'1. Order'!F236)","v":{"$error":"#N/A"}},{"$f":"IF('1. Order'!G236=\"\",\"\",'1. Order'!G236)","v":""},{"$f":"IF('1. Order'!H236=\"\",\"\",'1. Order'!H236)","v":""},{"$f":"IF('1. Order'!I236=\"\",\"\",'1. Order'!I236)","v":""},{"$f":"IF('1. Order'!J236=\"\",\"\",'1. Order'!J236)","v":""},{"$f":"IF('1. Order'!K236=\"\",\"\",'1. Order'!K236)","v":""},{"$f":"IF('1. Order'!L236=\"\",\"\",'1. Order'!L236)","v":""},{"$f":"IF('1. Order'!M236=\"\",\"\",'1. Order'!M236)","v":""},{"$f":"IF('1. Order'!N236=\"\",\"\",'1. Order'!N236)","v":""},{"$f":"IF('1. Order'!O236=\"\",\"\",'1. Order'!O236)","v":{"$error":"#N/A"}},{"$f":"IF('1. Order'!P236=\"\",\"\",'1. Order'!P236)","v":{"$error":"#N/A"}},{"$f":"IF('1. Order'!Q236=\"\",\"\",'1. Order'!Q236)","v":""},{"$f":"IF('1. Order'!S236=\"\",\"\",'1. Order'!S236)","v":""},{"$f":"IF('1. Order'!T236=\"\",\"\",'1. Order'!T236)","v":""},{"$f":"IF('1. Order'!W236=\"\",\"\",'1. Order'!W236)","v":""},{"$f":"IF('1. Order'!X236=\"\",\"\",'1. Order'!X236)","v":""},{"$f":"IF('1. Order'!Y236=\"\",\"\",'1. Order'!Y236)","v":"EUR"},{"$f":"IF('1. Order'!Z236=\"\",\"\",'1. Order'!Z236)","v":""},{"$f":"IF('1. Order'!AA236=\"\",\"\",'1. Order'!AA236)","v":""},{"$f":"IF('1. Order'!AB236=\"\",\"\",'1. Order'!AB236)","v":""},null,{"$f":"IF('1. Order'!AT236=\"\",\"\",'1. Order'!AT236)","v":""},{"$f":"IF('1. Order'!AU236=\"\",\"\",'1. Order'!AU236)","v":""},null,null,null,null,null,null,null,{"$f":"IF('1. Order'!AY236=\"\",\"\",'1. Order'!AY236)","v":""},{"$f":"IF('1. Order'!AZ236=\"\",\"\",'1. Order'!AZ236)","v":""},{"$f":"IF('1. Order'!BA236=\"\",\"\",'1. Order'!BA236)","v":""},{"$f":"IF('1. Order'!BB236=\"\",\"\",'1. Order'!BB236)","v":""},{"$f":"IF('1. Order'!BD236=\"\",\"\",'1. Order'!BD236)","v":""},{"$f":"IF('1. Order'!BE236=\"\",\"\",'1. Order'!BE236)","v":""},{"$f":"IF('1. Order'!BF236=\"\",\"\",'1. Order'!BF236)","v":""},{"$f":"IF('1. Order'!BG236=\"\",\"\",'1. Order'!BG236)","v":""},{"$f":"IF('1. Order'!BH236=\"\",\"\",'1. Order'!BH236)","v":"ZWO"}]
[{"$f":"IF('1. Order'!F237=\"\",\"\",'1. Order'!F237)","v":{"$error":"#N/A"}},{"$f":"IF('1. Order'!G237=\"\",\"\",'1. Order'!G237)","v":""},{"$f":"IF('1. Order'!H237=\"\",\"\",'1. Order'!H237)","v":""},{"$f":"IF('1. Order'!I237=\"\",\"\",'1. Order'!I237)","v":""},{"$f":"IF('1. Order'!J237=\"\",\"\",'1. Order'!J237)","v":""},{"$f":"IF('1. Order'!K237=\"\",\"\",'1. Order'!K237)","v":""},{"$f":"IF('1. Order'!L237=\"\",\"\",'1. Order'!L237)","v":""},{"$f":"IF('1. Order'!M237=\"\",\"\",'1. Order'!M237)","v":""},{"$f":"IF('1. Order'!N237=\"\",\"\",'1. Order'!N237)","v":""},{"$f":"IF('1. Order'!O237=\"\",\"\",'1. Order'!O237)","v":{"$error":"#N/A"}},{"$f":"IF('1. Order'!P237=\"\",\"\",'1. Order'!P237)","v":{"$error":"#N/A"}},{"$f":"IF('1. Order'!Q237=\"\",\"\",'1. Order'!Q237)","v":""},{"$f":"IF('1. Order'!S237=\"\",\"\",'1. Order'!S237)","v":""},{"$f":"IF('1. Order'!T237=\"\",\"\",'1. Order'!T237)","v":""},{"$f":"IF('1. Order'!W237=\"\",\"\",'1. Order'!W237)","v":""},{"$f":"IF('1. Order'!X237=\"\",\"\",'1. Order'!X237)","v":""},{"$f":"IF('1. Order'!Y237=\"\",\"\",'1. Order'!Y237)","v":"EUR"},{"$f":"IF('1. Order'!Z237=\"\",\"\",'1. Order'!Z237)","v":""},{"$f":"IF('1. Order'!AA237=\"\",\"\",'1. Order'!AA237)","v":""},{"$f":"IF('1. Order'!AB237=\"\",\"\",'1. Order'!AB237)","v":""},null,{"$f":"IF('1. Order'!AT237=\"\",\"\",'1. Order'!AT237)","v":""},{"$f":"IF('1. Order'!AU237=\"\",\"\",'1. Order'!AU237)","v":""},null,null,null,null,null,null,null,{"$f":"IF('1. Order'!AY237=\"\",\"\",'1. Order'!AY237)","v":""},{"$f":"IF('1. Order'!AZ237=\"\",\"\",'1. Order'!AZ237)","v":""},{"$f":"IF('1. Order'!BA237=\"\",\"\",'1. Order'!BA237)","v":""},{"$f":"IF('1. Order'!BB237=\"\",\"\",'1. Order'!BB237)","v":""},{"$f":"IF('1. Order'!BD237=\"\",\"\",'1. Order'!BD237)","v":""},{"$f":"IF('1. Order'!BE237=\"\",\"\",'1. Order'!BE237)","v":""},{"$f":"IF('1. Order'!BF237=\"\",\"\",'1. Order'!BF237)","v":""},{"$f":"IF('1. Order'!BG237=\"\",\"\",'1. Order'!BG237)","v":""},{"$f":"IF('1. Order'!BH237=\"\",\"\",'1. Order'!BH237)","v":"ZWO"}]
[{"$f":"IF('1. Order'!F238=\"\",\"\",'1. Order'!F238)","v":{"$error":"#N/A"}},{"$f":"IF('1. Order'!G238=\"\",\"\",'1. Order'!G238)","v":""},{"$f":"IF('1. Order'!H238=\"\",\"\",'1. Order'!H238)","v":""},{"$f":"IF('1. Order'!I238=\"\",\"\",'1. Order'!I238)","v":""},{"$f":"IF('1. Order'!J238=\"\",\"\",'1. Order'!J238)","v":""},{"$f":"IF('1. Order'!K238=\"\",\"\",'1. Order'!K238)","v":""},{"$f":"IF('1. Order'!L238=\"\",\"\",'1. Order'!L238)","v":""},{"$f":"IF('1. Order'!M238=\"\",\"\",'1. Order'!M238)","v":""},{"$f":"IF('1. Order'!N238=\"\",\"\",'1. Order'!N238)","v":""},{"$f":"IF('1. Order'!O238=\"\",\"\",'1. Order'!O238)","v":{"$error":"#N/A"}},{"$f":"IF('1. Order'!P238=\"\",\"\",'1. Order'!P238)","v":{"$error":"#N/A"}},{"$f":"IF('1. Order'!Q238=\"\",\"\",'1. Order'!Q238)","v":""},{"$f":"IF('1. Order'!S238=\"\",\"\",'1. Order'!S238)","v":""},{"$f":"IF('1. Order'!T238=\"\",\"\",'1. Order'!T238)","v":""},{"$f":"IF('1. Order'!W238=\"\",\"\",'1. Order'!W238)","v":""},{"$f":"IF('1. Order'!X238=\"\",\"\",'1. Order'!X238)","v":""},{"$f":"IF('1. Order'!Y238=\"\",\"\",'1. Order'!Y238)","v":"EUR"},{"$f":"IF('1. Order'!Z238=\"\",\"\",'1. Order'!Z238)","v":""},{"$f":"IF('1. Order'!AA238=\"\",\"\",'1. Order'!AA238)","v":""},{"$f":"IF('1. Order'!AB238=\"\",\"\",'1. Order'!AB238)","v":""},null,{"$f":"IF('1. Order'!AT238=\"\",\"\",'1. Order'!AT238)","v":""},{"$f":"IF('1. Order'!AU238=\"\",\"\",'1. Order'!AU238)","v":""},null,null,null,null,null,null,null,{"$f":"IF('1. Order'!AY238=\"\",\"\",'1. Order'!AY238)","v":""},{"$f":"IF('1. Order'!AZ238=\"\",\"\",'1. Order'!AZ238)","v":""},{"$f":"IF('1. Order'!BA238=\"\",\"\",'1. Order'!BA238)","v":""},{"$f":"IF('1. Order'!BB238=\"\",\"\",'1. Order'!BB238)","v":""},{"$f":"IF('1. Order'!BD238=\"\",\"\",'1. Order'!BD238)","v":""},{"$f":"IF('1. Order'!BE238=\"\",\"\",'1. Order'!BE238)","v":""},{"$f":"IF('1. Order'!BF238=\"\",\"\",'1. Order'!BF238)","v":""},{"$f":"IF('1. Order'!BG238=\"\",\"\",'1. Order'!BG238)","v":""},{"$f":"IF('1. Order'!BH238=\"\",\"\",'1. Order'!BH238)","v":"ZWO"}]
[{"$f":"IF('1. Order'!F239=\"\",\"\",'1. Order'!F239)","v":{"$error":"#N/A"}},{"$f":"IF('1. Order'!G239=\"\",\"\",'1. Order'!G239)","v":""},{"$f":"IF('1. Order'!H239=\"\",\"\",'1. Order'!H239)","v":""},{"$f":"IF('1. Order'!I239=\"\",\"\",'1. Order'!I239)","v":""},{"$f":"IF('1. Order'!J239=\"\",\"\",'1. Order'!J239)","v":""},{"$f":"IF('1. Order'!K239=\"\",\"\",'1. Order'!K239)","v":""},{"$f":"IF('1. Order'!L239=\"\",\"\",'1. Order'!L239)","v":""},{"$f":"IF('1. Order'!M239=\"\",\"\",'1. Order'!M239)","v":""},{"$f":"IF('1. Order'!N239=\"\",\"\",'1. Order'!N239)","v":""},{"$f":"IF('1. Order'!O239=\"\",\"\",'1. Order'!O239)","v":{"$error":"#N/A"}},{"$f":"IF('1. Order'!P239=\"\",\"\",'1. Order'!P239)","v":{"$error":"#N/A"}},{"$f":"IF('1. Order'!Q239=\"\",\"\",'1. Order'!Q239)","v":""},{"$f":"IF('1. Order'!S239=\"\",\"\",'1. Order'!S239)","v":""},{"$f":"IF('1. Order'!T239=\"\",\"\",'1. Order'!T239)","v":""},{"$f":"IF('1. Order'!W239=\"\",\"\",'1. Order'!W239)","v":""},{"$f":"IF('1. Order'!X239=\"\",\"\",'1. Order'!X239)","v":""},{"$f":"IF('1. Order'!Y239=\"\",\"\",'1. Order'!Y239)","v":"EUR"},{"$f":"IF('1. Order'!Z239=\"\",\"\",'1. Order'!Z239)","v":""},{"$f":"IF('1. Order'!AA239=\"\",\"\",'1. Order'!AA239)","v":""},{"$f":"IF('1. Order'!AB239=\"\",\"\",'1. Order'!AB239)","v":""},null,{"$f":"IF('1. Order'!AT239=\"\",\"\",'1. Order'!AT239)","v":""},{"$f":"IF('1. Order'!AU239=\"\",\"\",'1. Order'!AU239)","v":""},null,null,null,null,null,null,null,{"$f":"IF('1. Order'!AY239=\"\",\"\",'1. Order'!AY239)","v":""},{"$f":"IF('1. Order'!AZ239=\"\",\"\",'1. Order'!AZ239)","v":""},{"$f":"IF('1. Order'!BA239=\"\",\"\",'1. Order'!BA239)","v":""},{"$f":"IF('1. Order'!BB239=\"\",\"\",'1. Order'!BB239)","v":""},{"$f":"IF('1. Order'!BD239=\"\",\"\",'1. Order'!BD239)","v":""},{"$f":"IF('1. Order'!BE239=\"\",\"\",'1. Order'!BE239)","v":""},{"$f":"IF('1. Order'!BF239=\"\",\"\",'1. Order'!BF239)","v":""},{"$f":"IF('1. Order'!BG239=\"\",\"\",'1. Order'!BG239)","v":""},{"$f":"IF('1. Order'!BH239=\"\",\"\",'1. Order'!BH239)","v":"ZWO"}]
[{"$f":"IF('1. Order'!F240=\"\",\"\",'1. Order'!F240)","v":{"$error":"#N/A"}},{"$f":"IF('1. Order'!G240=\"\",\"\",'1. Order'!G240)","v":""},{"$f":"IF('1. Order'!H240=\"\",\"\",'1. Order'!H240)","v":""},{"$f":"IF('1. Order'!I240=\"\",\"\",'1. Order'!I240)","v":""},{"$f":"IF('1. Order'!J240=\"\",\"\",'1. Order'!J240)","v":""},{"$f":"IF('1. Order'!K240=\"\",\"\",'1. Order'!K240)","v":""},{"$f":"IF('1. Order'!L240=\"\",\"\",'1. Order'!L240)","v":""},{"$f":"IF('1. Order'!M240=\"\",\"\",'1. Order'!M240)","v":""},{"$f":"IF('1. Order'!N240=\"\",\"\",'1. Order'!N240)","v":""},{"$f":"IF('1. Order'!O240=\"\",\"\",'1. Order'!O240)","v":{"$error":"#N/A"}},{"$f":"IF('1. Order'!P240=\"\",\"\",'1. Order'!P240)","v":{"$error":"#N/A"}},{"$f":"IF('1. Order'!Q240=\"\",\"\",'1. Order'!Q240)","v":""},{"$f":"IF('1. Order'!S240=\"\",\"\",'1. Order'!S240)","v":""},{"$f":"IF('1. Order'!T240=\"\",\"\",'1. Order'!T240)","v":""},{"$f":"IF('1. Order'!W240=\"\",\"\",'1. Order'!W240)","v":""},{"$f":"IF('1. Order'!X240=\"\",\"\",'1. Order'!X240)","v":""},{"$f":"IF('1. Order'!Y240=\"\",\"\",'1. Order'!Y240)","v":"EUR"},{"$f":"IF('1. Order'!Z240=\"\",\"\",'1. Order'!Z240)","v":""},{"$f":"IF('1. Order'!AA240=\"\",\"\",'1. Order'!AA240)","v":""},{"$f":"IF('1. Order'!AB240=\"\",\"\",'1. Order'!AB240)","v":""},null,{"$f":"IF('1. Order'!AT240=\"\",\"\",'1. Order'!AT240)","v":""},{"$f":"IF('1. Order'!AU240=\"\",\"\",'1. Order'!AU240)","v":""},null,null,null,null,null,null,null,{"$f":"IF('1. Order'!AY240=\"\",\"\",'1. Order'!AY240)","v":""},{"$f":"IF('1. Order'!AZ240=\"\",\"\",'1. Order'!AZ240)","v":""},{"$f":"IF('1. Order'!BA240=\"\",\"\",'1. Order'!BA240)","v":""},{"$f":"IF('1. Order'!BB240=\"\",\"\",'1. Order'!BB240)","v":""},{"$f":"IF('1. Order'!BD240=\"\",\"\",'1. Order'!BD240)","v":""},{"$f":"IF('1. Order'!BE240=\"\",\"\",'1. Order'!BE240)","v":""},{"$f":"IF('1. Order'!BF240=\"\",\"\",'1. Order'!BF240)","v":""},{"$f":"IF('1. Order'!BG240=\"\",\"\",'1. Order'!BG240)","v":""},{"$f":"IF('1. Order'!BH240=\"\",\"\",'1. Order'!BH240)","v":"ZWO"}]
[{"$f":"IF('1. Order'!F241=\"\",\"\",'1. Order'!F241)","v":{"$error":"#N/A"}},{"$f":"IF('1. Order'!G241=\"\",\"\",'1. Order'!G241)","v":""},{"$f":"IF('1. Order'!H241=\"\",\"\",'1. Order'!H241)","v":""},{"$f":"IF('1. Order'!I241=\"\",\"\",'1. Order'!I241)","v":""},{"$f":"IF('1. Order'!J241=\"\",\"\",'1. Order'!J241)","v":""},{"$f":"IF('1. Order'!K241=\"\",\"\",'1. Order'!K241)","v":""},{"$f":"IF('1. Order'!L241=\"\",\"\",'1. Order'!L241)","v":""},{"$f":"IF('1. Order'!M241=\"\",\"\",'1. Order'!M241)","v":""},{"$f":"IF('1. Order'!N241=\"\",\"\",'1. Order'!N241)","v":""},{"$f":"IF('1. Order'!O241=\"\",\"\",'1. Order'!O241)","v":{"$error":"#N/A"}},{"$f":"IF('1. Order'!P241=\"\",\"\",'1. Order'!P241)","v":{"$error":"#N/A"}},{"$f":"IF('1. Order'!Q241=\"\",\"\",'1. Order'!Q241)","v":""},{"$f":"IF('1. Order'!S241=\"\",\"\",'1. Order'!S241)","v":""},{"$f":"IF('1. Order'!T241=\"\",\"\",'1. Order'!T241)","v":""},{"$f":"IF('1. Order'!W241=\"\",\"\",'1. Order'!W241)","v":""},{"$f":"IF('1. Order'!X241=\"\",\"\",'1. Order'!X241)","v":""},{"$f":"IF('1. Order'!Y241=\"\",\"\",'1. Order'!Y241)","v":"EUR"},{"$f":"IF('1. Order'!Z241=\"\",\"\",'1. Order'!Z241)","v":""},{"$f":"IF('1. Order'!AA241=\"\",\"\",'1. Order'!AA241)","v":""},{"$f":"IF('1. Order'!AB241=\"\",\"\",'1. Order'!AB241)","v":""},null,{"$f":"IF('1. Order'!AT241=\"\",\"\",'1. Order'!AT241)","v":""},{"$f":"IF('1. Order'!AU241=\"\",\"\",'1. Order'!AU241)","v":""},null,null,null,null,null,null,null,{"$f":"IF('1. Order'!AY241=\"\",\"\",'1. Order'!AY241)","v":""},{"$f":"IF('1. Order'!AZ241=\"\",\"\",'1. Order'!AZ241)","v":""},{"$f":"IF('1. Order'!BA241=\"\",\"\",'1. Order'!BA241)","v":""},{"$f":"IF('1. Order'!BB241=\"\",\"\",'1. Order'!BB241)","v":""},{"$f":"IF('1. Order'!BD241=\"\",\"\",'1. Order'!BD241)","v":""},{"$f":"IF('1. Order'!BE241=\"\",\"\",'1. Order'!BE241)","v":""},{"$f":"IF('1. Order'!BF241=\"\",\"\",'1. Order'!BF241)","v":""},{"$f":"IF('1. Order'!BG241=\"\",\"\",'1. Order'!BG241)","v":""},{"$f":"IF('1. Order'!BH241=\"\",\"\",'1. Order'!BH241)","v":"ZWO"}]
[{"$f":"IF('1. Order'!F242=\"\",\"\",'1. Order'!F242)","v":{"$error":"#N/A"}},{"$f":"IF('1. Order'!G242=\"\",\"\",'1. Order'!G242)","v":""},{"$f":"IF('1. Order'!H242=\"\",\"\",'1. Order'!H242)","v":""},{"$f":"IF('1. Order'!I242=\"\",\"\",'1. Order'!I242)","v":""},{"$f":"IF('1. Order'!J242=\"\",\"\",'1. Order'!J242)","v":""},{"$f":"IF('1. Order'!K242=\"\",\"\",'1. Order'!K242)","v":""},{"$f":"IF('1. Order'!L242=\"\",\"\",'1. Order'!L242)","v":""},{"$f":"IF('1. Order'!M242=\"\",\"\",'1. Order'!M242)","v":""},{"$f":"IF('1. Order'!N242=\"\",\"\",'1. Order'!N242)","v":""},{"$f":"IF('1. Order'!O242=\"\",\"\",'1. Order'!O242)","v":{"$error":"#N/A"}},{"$f":"IF('1. Order'!P242=\"\",\"\",'1. Order'!P242)","v":{"$error":"#N/A"}},{"$f":"IF('1. Order'!Q242=\"\",\"\",'1. Order'!Q242)","v":""},{"$f":"IF('1. Order'!S242=\"\",\"\",'1. Order'!S242)","v":""},{"$f":"IF('1. Order'!T242=\"\",\"\",'1. Order'!T242)","v":""},{"$f":"IF('1. Order'!W242=\"\",\"\",'1. Order'!W242)","v":""},{"$f":"IF('1. Order'!X242=\"\",\"\",'1. Order'!X242)","v":""},{"$f":"IF('1. Order'!Y242=\"\",\"\",'1. Order'!Y242)","v":"EUR"},{"$f":"IF('1. Order'!Z242=\"\",\"\",'1. Order'!Z242)","v":""},{"$f":"IF('1. Order'!AA242=\"\",\"\",'1. Order'!AA242)","v":""},{"$f":"IF('1. Order'!AB242=\"\",\"\",'1. Order'!AB242)","v":""},null,{"$f":"IF('1. Order'!AT242=\"\",\"\",'1. Order'!AT242)","v":""},{"$f":"IF('1. Order'!AU242=\"\",\"\",'1. Order'!AU242)","v":""},null,null,null,null,null,null,null,{"$f":"IF('1. Order'!AY242=\"\",\"\",'1. Order'!AY242)","v":""},{"$f":"IF('1. Order'!AZ242=\"\",\"\",'1. Order'!AZ242)","v":""},{"$f":"IF('1. Order'!BA242=\"\",\"\",'1. Order'!BA242)","v":""},{"$f":"IF('1. Order'!BB242=\"\",\"\",'1. Order'!BB242)","v":""},{"$f":"IF('1. Order'!BD242=\"\",\"\",'1. Order'!BD242)","v":""},{"$f":"IF('1. Order'!BE242=\"\",\"\",'1. Order'!BE242)","v":""},{"$f":"IF('1. Order'!BF242=\"\",\"\",'1. Order'!BF242)","v":""},{"$f":"IF('1. Order'!BG242=\"\",\"\",'1. Order'!BG242)","v":""},{"$f":"IF('1. Order'!BH242=\"\",\"\",'1. Order'!BH242)","v":"ZWO"}]
[{"$f":"IF('1. Order'!F243=\"\",\"\",'1. Order'!F243)","v":{"$error":"#N/A"}},{"$f":"IF('1. Order'!G243=\"\",\"\",'1. Order'!G243)","v":""},{"$f":"IF('1. Order'!H243=\"\",\"\",'1. Order'!H243)","v":""},{"$f":"IF('1. Order'!I243=\"\",\"\",'1. Order'!I243)","v":""},{"$f":"IF('1. Order'!J243=\"\",\"\",'1. Order'!J243)","v":""},{"$f":"IF('1. Order'!K243=\"\",\"\",'1. Order'!K243)","v":""},{"$f":"IF('1. Order'!L243=\"\",\"\",'1. Order'!L243)","v":""},{"$f":"IF('1. Order'!M243=\"\",\"\",'1. Order'!M243)","v":""},{"$f":"IF('1. Order'!N243=\"\",\"\",'1. Order'!N243)","v":""},{"$f":"IF('1. Order'!O243=\"\",\"\",'1. Order'!O243)","v":{"$error":"#N/A"}},{"$f":"IF('1. Order'!P243=\"\",\"\",'1. Order'!P243)","v":{"$error":"#N/A"}},{"$f":"IF('1. Order'!Q243=\"\",\"\",'1. Order'!Q243)","v":""},{"$f":"IF('1. Order'!S243=\"\",\"\",'1. Order'!S243)","v":""},{"$f":"IF('1. Order'!T243=\"\",\"\",'1. Order'!T243)","v":""},{"$f":"IF('1. Order'!W243=\"\",\"\",'1. Order'!W243)","v":""},{"$f":"IF('1. Order'!X243=\"\",\"\",'1. Order'!X243)","v":""},{"$f":"IF('1. Order'!Y243=\"\",\"\",'1. Order'!Y243)","v":"EUR"},{"$f":"IF('1. Order'!Z243=\"\",\"\",'1. Order'!Z243)","v":""},{"$f":"IF('1. Order'!AA243=\"\",\"\",'1. Order'!AA243)","v":""},{"$f":"IF('1. Order'!AB243=\"\",\"\",'1. Order'!AB243)","v":""},null,{"$f":"IF('1. Order'!AT243=\"\",\"\",'1. Order'!AT243)","v":""},{"$f":"IF('1. Order'!AU243=\"\",\"\",'1. Order'!AU243)","v":""},null,null,null,null,null,null,null,{"$f":"IF('1. Order'!AY243=\"\",\"\",'1. Order'!AY243)","v":""},{"$f":"IF('1. Order'!AZ243=\"\",\"\",'1. Order'!AZ243)","v":""},{"$f":"IF('1. Order'!BA243=\"\",\"\",'1. Order'!BA243)","v":""},{"$f":"IF('1. Order'!BB243=\"\",\"\",'1. Order'!BB243)","v":""},{"$f":"IF('1. Order'!BD243=\"\",\"\",'1. Order'!BD243)","v":""},{"$f":"IF('1. Order'!BE243=\"\",\"\",'1. Order'!BE243)","v":""},{"$f":"IF('1. Order'!BF243=\"\",\"\",'1. Order'!BF243)","v":""},{"$f":"IF('1. Order'!BG243=\"\",\"\",'1. Order'!BG243)","v":""},{"$f":"IF('1. Order'!BH243=\"\",\"\",'1. Order'!BH243)","v":"ZWO"}]
[{"$f":"IF('1. Order'!F244=\"\",\"\",'1. Order'!F244)","v":{"$error":"#N/A"}},{"$f":"IF('1. Order'!G244=\"\",\"\",'1. Order'!G244)","v":""},{"$f":"IF('1. Order'!H244=\"\",\"\",'1. Order'!H244)","v":""},{"$f":"IF('1. Order'!I244=\"\",\"\",'1. Order'!I244)","v":""},{"$f":"IF('1. Order'!J244=\"\",\"\",'1. Order'!J244)","v":""},{"$f":"IF('1. Order'!K244=\"\",\"\",'1. Order'!K244)","v":""},{"$f":"IF('1. Order'!L244=\"\",\"\",'1. Order'!L244)","v":""},{"$f":"IF('1. Order'!M244=\"\",\"\",'1. Order'!M244)","v":""},{"$f":"IF('1. Order'!N244=\"\",\"\",'1. Order'!N244)","v":""},{"$f":"IF('1. Order'!O244=\"\",\"\",'1. Order'!O244)","v":{"$error":"#N/A"}},{"$f":"IF('1. Order'!P244=\"\",\"\",'1. Order'!P244)","v":{"$error":"#N/A"}},{"$f":"IF('1. Order'!Q244=\"\",\"\",'1. Order'!Q244)","v":""},{"$f":"IF('1. Order'!S244=\"\",\"\",'1. Order'!S244)","v":""},{"$f":"IF('1. Order'!T244=\"\",\"\",'1. Order'!T244)","v":""},{"$f":"IF('1. Order'!W244=\"\",\"\",'1. Order'!W244)","v":""},{"$f":"IF('1. Order'!X244=\"\",\"\",'1. Order'!X244)","v":""},{"$f":"IF('1. Order'!Y244=\"\",\"\",'1. Order'!Y244)","v":"EUR"},{"$f":"IF('1. Order'!Z244=\"\",\"\",'1. Order'!Z244)","v":""},{"$f":"IF('1. Order'!AA244=\"\",\"\",'1. Order'!AA244)","v":""},{"$f":"IF('1. Order'!AB244=\"\",\"\",'1. Order'!AB244)","v":""},null,{"$f":"IF('1. Order'!AT244=\"\",\"\",'1. Order'!AT244)","v":""},{"$f":"IF('1. Order'!AU244=\"\",\"\",'1. Order'!AU244)","v":""},null,null,null,null,null,null,null,{"$f":"IF('1. Order'!AY244=\"\",\"\",'1. Order'!AY244)","v":""},{"$f":"IF('1. Order'!AZ244=\"\",\"\",'1. Order'!AZ244)","v":""},{"$f":"IF('1. Order'!BA244=\"\",\"\",'1. Order'!BA244)","v":""},{"$f":"IF('1. Order'!BB244=\"\",\"\",'1. Order'!BB244)","v":""},{"$f":"IF('1. Order'!BD244=\"\",\"\",'1. Order'!BD244)","v":""},{"$f":"IF('1. Order'!BE244=\"\",\"\",'1. Order'!BE244)","v":""},{"$f":"IF('1. Order'!BF244=\"\",\"\",'1. Order'!BF244)","v":""},{"$f":"IF('1. Order'!BG244=\"\",\"\",'1. Order'!BG244)","v":""},{"$f":"IF('1. Order'!BH244=\"\",\"\",'1. Order'!BH244)","v":"ZWO"}]
[{"$f":"IF('1. Order'!F245=\"\",\"\",'1. Order'!F245)","v":{"$error":"#N/A"}},{"$f":"IF('1. Order'!G245=\"\",\"\",'1. Order'!G245)","v":""},{"$f":"IF('1. Order'!H245=\"\",\"\",'1. Order'!H245)","v":""},{"$f":"IF('1. Order'!I245=\"\",\"\",'1. Order'!I245)","v":""},{"$f":"IF('1. Order'!J245=\"\",\"\",'1. Order'!J245)","v":""},{"$f":"IF('1. Order'!K245=\"\",\"\",'1. Order'!K245)","v":""},{"$f":"IF('1. Order'!L245=\"\",\"\",'1. Order'!L245)","v":""},{"$f":"IF('1. Order'!M245=\"\",\"\",'1. Order'!M245)","v":""},{"$f":"IF('1. Order'!N245=\"\",\"\",'1. Order'!N245)","v":""},{"$f":"IF('1. Order'!O245=\"\",\"\",'1. Order'!O245)","v":{"$error":"#N/A"}},{"$f":"IF('1. Order'!P245=\"\",\"\",'1. Order'!P245)","v":{"$error":"#N/A"}},{"$f":"IF('1. Order'!Q245=\"\",\"\",'1. Order'!Q245)","v":""},{"$f":"IF('1. Order'!S245=\"\",\"\",'1. Order'!S245)","v":""},{"$f":"IF('1. Order'!T245=\"\",\"\",'1. Order'!T245)","v":""},{"$f":"IF('1. Order'!W245=\"\",\"\",'1. Order'!W245)","v":""},{"$f":"IF('1. Order'!X245=\"\",\"\",'1. Order'!X245)","v":""},{"$f":"IF('1. Order'!Y245=\"\",\"\",'1. Order'!Y245)","v":"EUR"},{"$f":"IF('1. Order'!Z245=\"\",\"\",'1. Order'!Z245)","v":""},{"$f":"IF('1. Order'!AA245=\"\",\"\",'1. Order'!AA245)","v":""},{"$f":"IF('1. Order'!AB245=\"\",\"\",'1. Order'!AB245)","v":""},null,{"$f":"IF('1. Order'!AT245=\"\",\"\",'1. Order'!AT245)","v":""},{"$f":"IF('1. Order'!AU245=\"\",\"\",'1. Order'!AU245)","v":""},null,null,null,null,null,null,null,{"$f":"IF('1. Order'!AY245=\"\",\"\",'1. Order'!AY245)","v":""},{"$f":"IF('1. Order'!AZ245=\"\",\"\",'1. Order'!AZ245)","v":""},{"$f":"IF('1. Order'!BA245=\"\",\"\",'1. Order'!BA245)","v":""},{"$f":"IF('1. Order'!BB245=\"\",\"\",'1. Order'!BB245)","v":""},{"$f":"IF('1. Order'!BD245=\"\",\"\",'1. Order'!BD245)","v":""},{"$f":"IF('1. Order'!BE245=\"\",\"\",'1. Order'!BE245)","v":""},{"$f":"IF('1. Order'!BF245=\"\",\"\",'1. Order'!BF245)","v":""},{"$f":"IF('1. Order'!BG245=\"\",\"\",'1. Order'!BG245)","v":""},{"$f":"IF('1. Order'!BH245=\"\",\"\",'1. Order'!BH245)","v":"ZWO"}]
[{"$f":"IF('1. Order'!F246=\"\",\"\",'1. Order'!F246)","v":{"$error":"#N/A"}},{"$f":"IF('1. Order'!G246=\"\",\"\",'1. Order'!G246)","v":""},{"$f":"IF('1. Order'!H246=\"\",\"\",'1. Order'!H246)","v":""},{"$f":"IF('1. Order'!I246=\"\",\"\",'1. Order'!I246)","v":""},{"$f":"IF('1. Order'!J246=\"\",\"\",'1. Order'!J246)","v":""},{"$f":"IF('1. Order'!K246=\"\",\"\",'1. Order'!K246)","v":""},{"$f":"IF('1. Order'!L246=\"\",\"\",'1. Order'!L246)","v":""},{"$f":"IF('1. Order'!M246=\"\",\"\",'1. Order'!M246)","v":""},{"$f":"IF('1. Order'!N246=\"\",\"\",'1. Order'!N246)","v":""},{"$f":"IF('1. Order'!O246=\"\",\"\",'1. Order'!O246)","v":{"$error":"#N/A"}},{"$f":"IF('1. Order'!P246=\"\",\"\",'1. Order'!P246)","v":{"$error":"#N/A"}},{"$f":"IF('1. Order'!Q246=\"\",\"\",'1. Order'!Q246)","v":""},{"$f":"IF('1. Order'!S246=\"\",\"\",'1. Order'!S246)","v":""},{"$f":"IF('1. Order'!T246=\"\",\"\",'1. Order'!T246)","v":""},{"$f":"IF('1. Order'!W246=\"\",\"\",'1. Order'!W246)","v":""},{"$f":"IF('1. Order'!X246=\"\",\"\",'1. Order'!X246)","v":""},{"$f":"IF('1. Order'!Y246=\"\",\"\",'1. Order'!Y246)","v":"EUR"},{"$f":"IF('1. Order'!Z246=\"\",\"\",'1. Order'!Z246)","v":""},{"$f":"IF('1. Order'!AA246=\"\",\"\",'1. Order'!AA246)","v":""},{"$f":"IF('1. Order'!AB246=\"\",\"\",'1. Order'!AB246)","v":""},null,{"$f":"IF('1. Order'!AT246=\"\",\"\",'1. Order'!AT246)","v":""},{"$f":"IF('1. Order'!AU246=\"\",\"\",'1. Order'!AU246)","v":""},null,null,null,null,null,null,null,{"$f":"IF('1. Order'!AY246=\"\",\"\",'1. Order'!AY246)","v":""},{"$f":"IF('1. Order'!AZ246=\"\",\"\",'1. Order'!AZ246)","v":""},{"$f":"IF('1. Order'!BA246=\"\",\"\",'1. Order'!BA246)","v":""},{"$f":"IF('1. Order'!BB246=\"\",\"\",'1. Order'!BB246)","v":""},{"$f":"IF('1. Order'!BD246=\"\",\"\",'1. Order'!BD246)","v":""},{"$f":"IF('1. Order'!BE246=\"\",\"\",'1. Order'!BE246)","v":""},{"$f":"IF('1. Order'!BF246=\"\",\"\",'1. Order'!BF246)","v":""},{"$f":"IF('1. Order'!BG246=\"\",\"\",'1. Order'!BG246)","v":""},{"$f":"IF('1. Order'!BH246=\"\",\"\",'1. Order'!BH246)","v":"ZWO"}]
[{"$f":"IF('1. Order'!F247=\"\",\"\",'1. Order'!F247)","v":{"$error":"#N/A"}},{"$f":"IF('1. Order'!G247=\"\",\"\",'1. Order'!G247)","v":""},{"$f":"IF('1. Order'!H247=\"\",\"\",'1. Order'!H247)","v":""},{"$f":"IF('1. Order'!I247=\"\",\"\",'1. Order'!I247)","v":""},{"$f":"IF('1. Order'!J247=\"\",\"\",'1. Order'!J247)","v":""},{"$f":"IF('1. Order'!K247=\"\",\"\",'1. Order'!K247)","v":""},{"$f":"IF('1. Order'!L247=\"\",\"\",'1. Order'!L247)","v":""},{"$f":"IF('1. Order'!M247=\"\",\"\",'1. Order'!M247)","v":""},{"$f":"IF('1. Order'!N247=\"\",\"\",'1. Order'!N247)","v":""},{"$f":"IF('1. Order'!O247=\"\",\"\",'1. Order'!O247)","v":{"$error":"#N/A"}},{"$f":"IF('1. Order'!P247=\"\",\"\",'1. Order'!P247)","v":{"$error":"#N/A"}},{"$f":"IF('1. Order'!Q247=\"\",\"\",'1. Order'!Q247)","v":""},{"$f":"IF('1. Order'!S247=\"\",\"\",'1. Order'!S247)","v":""},{"$f":"IF('1. Order'!T247=\"\",\"\",'1. Order'!T247)","v":""},{"$f":"IF('1. Order'!W247=\"\",\"\",'1. Order'!W247)","v":""},{"$f":"IF('1. Order'!X247=\"\",\"\",'1. Order'!X247)","v":""},{"$f":"IF('1. Order'!Y247=\"\",\"\",'1. Order'!Y247)","v":"EUR"},{"$f":"IF('1. Order'!Z247=\"\",\"\",'1. Order'!Z247)","v":""},{"$f":"IF('1. Order'!AA247=\"\",\"\",'1. Order'!AA247)","v":""},{"$f":"IF('1. Order'!AB247=\"\",\"\",'1. Order'!AB247)","v":""},null,{"$f":"IF('1. Order'!AT247=\"\",\"\",'1. Order'!AT247)","v":""},{"$f":"IF('1. Order'!AU247=\"\",\"\",'1. Order'!AU247)","v":""},null,null,null,null,null,null,null,{"$f":"IF('1. Order'!AY247=\"\",\"\",'1. Order'!AY247)","v":""},{"$f":"IF('1. Order'!AZ247=\"\",\"\",'1. Order'!AZ247)","v":""},{"$f":"IF('1. Order'!BA247=\"\",\"\",'1. Order'!BA247)","v":""},{"$f":"IF('1. Order'!BB247=\"\",\"\",'1. Order'!BB247)","v":""},{"$f":"IF('1. Order'!BD247=\"\",\"\",'1. Order'!BD247)","v":""},{"$f":"IF('1. Order'!BE247=\"\",\"\",'1. Order'!BE247)","v":""},{"$f":"IF('1. Order'!BF247=\"\",\"\",'1. Order'!BF247)","v":""},{"$f":"IF('1. Order'!BG247=\"\",\"\",'1. Order'!BG247)","v":""},{"$f":"IF('1. Order'!BH247=\"\",\"\",'1. Order'!BH247)","v":"ZWO"}]
[{"$f":"IF('1. Order'!F248=\"\",\"\",'1. Order'!F248)","v":{"$error":"#N/A"}},{"$f":"IF('1. Order'!G248=\"\",\"\",'1. Order'!G248)","v":""},{"$f":"IF('1. Order'!H248=\"\",\"\",'1. Order'!H248)","v":""},{"$f":"IF('1. Order'!I248=\"\",\"\",'1. Order'!I248)","v":""},{"$f":"IF('1. Order'!J248=\"\",\"\",'1. Order'!J248)","v":""},{"$f":"IF('1. Order'!K248=\"\",\"\",'1. Order'!K248)","v":""},{"$f":"IF('1. Order'!L248=\"\",\"\",'1. Order'!L248)","v":""},{"$f":"IF('1. Order'!M248=\"\",\"\",'1. Order'!M248)","v":""},{"$f":"IF('1. Order'!N248=\"\",\"\",'1. Order'!N248)","v":""},{"$f":"IF('1. Order'!O248=\"\",\"\",'1. Order'!O248)","v":{"$error":"#N/A"}},{"$f":"IF('1. Order'!P248=\"\",\"\",'1. Order'!P248)","v":{"$error":"#N/A"}},{"$f":"IF('1. Order'!Q248=\"\",\"\",'1. Order'!Q248)","v":""},{"$f":"IF('1. Order'!S248=\"\",\"\",'1. Order'!S248)","v":""},{"$f":"IF('1. Order'!T248=\"\",\"\",'1. Order'!T248)","v":""},{"$f":"IF('1. Order'!W248=\"\",\"\",'1. Order'!W248)","v":""},{"$f":"IF('1. Order'!X248=\"\",\"\",'1. Order'!X248)","v":""},{"$f":"IF('1. Order'!Y248=\"\",\"\",'1. Order'!Y248)","v":"EUR"},{"$f":"IF('1. Order'!Z248=\"\",\"\",'1. Order'!Z248)","v":""},{"$f":"IF('1. Order'!AA248=\"\",\"\",'1. Order'!AA248)","v":""},{"$f":"IF('1. Order'!AB248=\"\",\"\",'1. Order'!AB248)","v":""},null,{"$f":"IF('1. Order'!AT248=\"\",\"\",'1. Order'!AT248)","v":""},{"$f":"IF('1. Order'!AU248=\"\",\"\",'1. Order'!AU248)","v":""},null,null,null,null,null,null,null,{"$f":"IF('1. Order'!AY248=\"\",\"\",'1. Order'!AY248)","v":""},{"$f":"IF('1. Order'!AZ248=\"\",\"\",'1. Order'!AZ248)","v":""},{"$f":"IF('1. Order'!BA248=\"\",\"\",'1. Order'!BA248)","v":""},{"$f":"IF('1. Order'!BB248=\"\",\"\",'1. Order'!BB248)","v":""},{"$f":"IF('1. Order'!BD248=\"\",\"\",'1. Order'!BD248)","v":""},{"$f":"IF('1. Order'!BE248=\"\",\"\",'1. Order'!BE248)","v":""},{"$f":"IF('1. Order'!BF248=\"\",\"\",'1. Order'!BF248)","v":""},{"$f":"IF('1. Order'!BG248=\"\",\"\",'1. Order'!BG248)","v":""},{"$f":"IF('1. Order'!BH248=\"\",\"\",'1. Order'!BH248)","v":"ZWO"}]
[{"$f":"IF('1. Order'!F249=\"\",\"\",'1. Order'!F249)","v":{"$error":"#N/A"}},{"$f":"IF('1. Order'!G249=\"\",\"\",'1. Order'!G249)","v":""},{"$f":"IF('1. Order'!H249=\"\",\"\",'1. Order'!H249)","v":""},{"$f":"IF('1. Order'!I249=\"\",\"\",'1. Order'!I249)","v":""},{"$f":"IF('1. Order'!J249=\"\",\"\",'1. Order'!J249)","v":""},{"$f":"IF('1. Order'!K249=\"\",\"\",'1. Order'!K249)","v":""},{"$f":"IF('1. Order'!L249=\"\",\"\",'1. Order'!L249)","v":""},{"$f":"IF('1. Order'!M249=\"\",\"\",'1. Order'!M249)","v":""},{"$f":"IF('1. Order'!N249=\"\",\"\",'1. Order'!N249)","v":""},{"$f":"IF('1. Order'!O249=\"\",\"\",'1. Order'!O249)","v":{"$error":"#N/A"}},{"$f":"IF('1. Order'!P249=\"\",\"\",'1. Order'!P249)","v":{"$error":"#N/A"}},{"$f":"IF('1. Order'!Q249=\"\",\"\",'1. Order'!Q249)","v":""},{"$f":"IF('1. Order'!S249=\"\",\"\",'1. Order'!S249)","v":""},{"$f":"IF('1. Order'!T249=\"\",\"\",'1. Order'!T249)","v":""},{"$f":"IF('1. Order'!W249=\"\",\"\",'1. Order'!W249)","v":""},{"$f":"IF('1. Order'!X249=\"\",\"\",'1. Order'!X249)","v":""},{"$f":"IF('1. Order'!Y249=\"\",\"\",'1. Order'!Y249)","v":"EUR"},{"$f":"IF('1. Order'!Z249=\"\",\"\",'1. Order'!Z249)","v":""},{"$f":"IF('1. Order'!AA249=\"\",\"\",'1. Order'!AA249)","v":""},{"$f":"IF('1. Order'!AB249=\"\",\"\",'1. Order'!AB249)","v":""},null,{"$f":"IF('1. Order'!AT249=\"\",\"\",'1. Order'!AT249)","v":""},{"$f":"IF('1. Order'!AU249=\"\",\"\",'1. Order'!AU249)","v":""},null,null,null,null,null,null,null,{"$f":"IF('1. Order'!AY249=\"\",\"\",'1. Order'!AY249)","v":""},{"$f":"IF('1. Order'!AZ249=\"\",\"\",'1. Order'!AZ249)","v":""},{"$f":"IF('1. Order'!BA249=\"\",\"\",'1. Order'!BA249)","v":""},{"$f":"IF('1. Order'!BB249=\"\",\"\",'1. Order'!BB249)","v":""},{"$f":"IF('1. Order'!BD249=\"\",\"\",'1. Order'!BD249)","v":""},{"$f":"IF('1. Order'!BE249=\"\",\"\",'1. Order'!BE249)","v":""},{"$f":"IF('1. Order'!BF249=\"\",\"\",'1. Order'!BF249)","v":""},{"$f":"IF('1. Order'!BG249=\"\",\"\",'1. Order'!BG249)","v":""},{"$f":"IF('1. Order'!BH249=\"\",\"\",'1. Order'!BH249)","v":"ZWO"}]
[{"$f":"IF('1. Order'!F250=\"\",\"\",'1. Order'!F250)","v":{"$error":"#N/A"}},{"$f":"IF('1. Order'!G250=\"\",\"\",'1. Order'!G250)","v":""},{"$f":"IF('1. Order'!H250=\"\",\"\",'1. Order'!H250)","v":""},{"$f":"IF('1. Order'!I250=\"\",\"\",'1. Order'!I250)","v":""},{"$f":"IF('1. Order'!J250=\"\",\"\",'1. Order'!J250)","v":""},{"$f":"IF('1. Order'!K250=\"\",\"\",'1. Order'!K250)","v":""},{"$f":"IF('1. Order'!L250=\"\",\"\",'1. Order'!L250)","v":""},{"$f":"IF('1. Order'!M250=\"\",\"\",'1. Order'!M250)","v":""},{"$f":"IF('1. Order'!N250=\"\",\"\",'1. Order'!N250)","v":""},{"$f":"IF('1. Order'!O250=\"\",\"\",'1. Order'!O250)","v":{"$error":"#N/A"}},{"$f":"IF('1. Order'!P250=\"\",\"\",'1. Order'!P250)","v":{"$error":"#N/A"}},{"$f":"IF('1. Order'!Q250=\"\",\"\",'1. Order'!Q250)","v":""},{"$f":"IF('1. Order'!S250=\"\",\"\",'1. Order'!S250)","v":""},{"$f":"IF('1. Order'!T250=\"\",\"\",'1. Order'!T250)","v":""},{"$f":"IF('1. Order'!W250=\"\",\"\",'1. Order'!W250)","v":""},{"$f":"IF('1. Order'!X250=\"\",\"\",'1. Order'!X250)","v":""},{"$f":"IF('1. Order'!Y250=\"\",\"\",'1. Order'!Y250)","v":"EUR"},{"$f":"IF('1. Order'!Z250=\"\",\"\",'1. Order'!Z250)","v":""},{"$f":"IF('1. Order'!AA250=\"\",\"\",'1. Order'!AA250)","v":""},{"$f":"IF('1. Order'!AB250=\"\",\"\",'1. Order'!AB250)","v":""},null,{"$f":"IF('1. Order'!AT250=\"\",\"\",'1. Order'!AT250)","v":""},{"$f":"IF('1. Order'!AU250=\"\",\"\",'1. Order'!AU250)","v":""},null,null,null,null,null,null,null,{"$f":"IF('1. Order'!AY250=\"\",\"\",'1. Order'!AY250)","v":""},{"$f":"IF('1. Order'!AZ250=\"\",\"\",'1. Order'!AZ250)","v":""},{"$f":"IF('1. Order'!BA250=\"\",\"\",'1. Order'!BA250)","v":""},{"$f":"IF('1. Order'!BB250=\"\",\"\",'1. Order'!BB250)","v":""},{"$f":"IF('1. Order'!BD250=\"\",\"\",'1. Order'!BD250)","v":""},{"$f":"IF('1. Order'!BE250=\"\",\"\",'1. Order'!BE250)","v":""},{"$f":"IF('1. Order'!BF250=\"\",\"\",'1. Order'!BF250)","v":""},{"$f":"IF('1. Order'!BG250=\"\",\"\",'1. Order'!BG250)","v":""},{"$f":"IF('1. Order'!BH250=\"\",\"\",'1. Order'!BH250)","v":"ZWO"}]
[{"$f":"IF('1. Order'!F251=\"\",\"\",'1. Order'!F251)","v":{"$error":"#N/A"}},{"$f":"IF('1. Order'!G251=\"\",\"\",'1. Order'!G251)","v":""},{"$f":"IF('1. Order'!H251=\"\",\"\",'1. Order'!H251)","v":""},{"$f":"IF('1. Order'!I251=\"\",\"\",'1. Order'!I251)","v":""},{"$f":"IF('1. Order'!J251=\"\",\"\",'1. Order'!J251)","v":""},{"$f":"IF('1. Order'!K251=\"\",\"\",'1. Order'!K251)","v":""},{"$f":"IF('1. Order'!L251=\"\",\"\",'1. Order'!L251)","v":""},{"$f":"IF('1. Order'!M251=\"\",\"\",'1. Order'!M251)","v":""},{"$f":"IF('1. Order'!N251=\"\",\"\",'1. Order'!N251)","v":""},{"$f":"IF('1. Order'!O251=\"\",\"\",'1. Order'!O251)","v":{"$error":"#N/A"}},{"$f":"IF('1. Order'!P251=\"\",\"\",'1. Order'!P251)","v":{"$error":"#N/A"}},{"$f":"IF('1. Order'!Q251=\"\",\"\",'1. Order'!Q251)","v":""},{"$f":"IF('1. Order'!S251=\"\",\"\",'1. Order'!S251)","v":""},{"$f":"IF('1. Order'!T251=\"\",\"\",'1. Order'!T251)","v":""},{"$f":"IF('1. Order'!W251=\"\",\"\",'1. Order'!W251)","v":""},{"$f":"IF('1. Order'!X251=\"\",\"\",'1. Order'!X251)","v":""},{"$f":"IF('1. Order'!Y251=\"\",\"\",'1. Order'!Y251)","v":"EUR"},{"$f":"IF('1. Order'!Z251=\"\",\"\",'1. Order'!Z251)","v":""},{"$f":"IF('1. Order'!AA251=\"\",\"\",'1. Order'!AA251)","v":""},{"$f":"IF('1. Order'!AB251=\"\",\"\",'1. Order'!AB251)","v":""},null,{"$f":"IF('1. Order'!AT251=\"\",\"\",'1. Order'!AT251)","v":""},{"$f":"IF('1. Order'!AU251=\"\",\"\",'1. Order'!AU251)","v":""},null,null,null,null,null,null,null,{"$f":"IF('1. Order'!AY251=\"\",\"\",'1. Order'!AY251)","v":""},{"$f":"IF('1. Order'!AZ251=\"\",\"\",'1. Order'!AZ251)","v":""},{"$f":"IF('1. Order'!BA251=\"\",\"\",'1. Order'!BA251)","v":""},{"$f":"IF('1. Order'!BB251=\"\",\"\",'1. Order'!BB251)","v":""},{"$f":"IF('1. Order'!BD251=\"\",\"\",'1. Order'!BD251)","v":""},{"$f":"IF('1. Order'!BE251=\"\",\"\",'1. Order'!BE251)","v":""},{"$f":"IF('1. Order'!BF251=\"\",\"\",'1. Order'!BF251)","v":""},{"$f":"IF('1. Order'!BG251=\"\",\"\",'1. Order'!BG251)","v":""},{"$f":"IF('1. Order'!BH251=\"\",\"\",'1. Order'!BH251)","v":"ZWO"}]
[{"$f":"IF('1. Order'!F252=\"\",\"\",'1. Order'!F252)","v":{"$error":"#N/A"}},{"$f":"IF('1. Order'!G252=\"\",\"\",'1. Order'!G252)","v":""},{"$f":"IF('1. Order'!H252=\"\",\"\",'1. Order'!H252)","v":""},{"$f":"IF('1. Order'!I252=\"\",\"\",'1. Order'!I252)","v":""},{"$f":"IF('1. Order'!J252=\"\",\"\",'1. Order'!J252)","v":""},{"$f":"IF('1. Order'!K252=\"\",\"\",'1. Order'!K252)","v":""},{"$f":"IF('1. Order'!L252=\"\",\"\",'1. Order'!L252)","v":""},{"$f":"IF('1. Order'!M252=\"\",\"\",'1. Order'!M252)","v":""},{"$f":"IF('1. Order'!N252=\"\",\"\",'1. Order'!N252)","v":""},{"$f":"IF('1. Order'!O252=\"\",\"\",'1. Order'!O252)","v":{"$error":"#N/A"}},{"$f":"IF('1. Order'!P252=\"\",\"\",'1. Order'!P252)","v":{"$error":"#N/A"}},{"$f":"IF('1. Order'!Q252=\"\",\"\",'1. Order'!Q252)","v":""},{"$f":"IF('1. Order'!S252=\"\",\"\",'1. Order'!S252)","v":""},{"$f":"IF('1. Order'!T252=\"\",\"\",'1. Order'!T252)","v":""},{"$f":"IF('1. Order'!W252=\"\",\"\",'1. Order'!W252)","v":""},{"$f":"IF('1. Order'!X252=\"\",\"\",'1. Order'!X252)","v":""},{"$f":"IF('1. Order'!Y252=\"\",\"\",'1. Order'!Y252)","v":"EUR"},{"$f":"IF('1. Order'!Z252=\"\",\"\",'1. Order'!Z252)","v":""},{"$f":"IF('1. Order'!AA252=\"\",\"\",'1. Order'!AA252)","v":""},{"$f":"IF('1. Order'!AB252=\"\",\"\",'1. Order'!AB252)","v":""},null,{"$f":"IF('1. Order'!AT252=\"\",\"\",'1. Order'!AT252)","v":""},{"$f":"IF('1. Order'!AU252=\"\",\"\",'1. Order'!AU252)","v":""},null,null,null,null,null,null,null,{"$f":"IF('1. Order'!AY252=\"\",\"\",'1. Order'!AY252)","v":""},{"$f":"IF('1. Order'!AZ252=\"\",\"\",'1. Order'!AZ252)","v":""},{"$f":"IF('1. Order'!BA252=\"\",\"\",'1. Order'!BA252)","v":""},{"$f":"IF('1. Order'!BB252=\"\",\"\",'1. Order'!BB252)","v":""},{"$f":"IF('1. Order'!BD252=\"\",\"\",'1. Order'!BD252)","v":""},{"$f":"IF('1. Order'!BE252=\"\",\"\",'1. Order'!BE252)","v":""},{"$f":"IF('1. Order'!BF252=\"\",\"\",'1. Order'!BF252)","v":""},{"$f":"IF('1. Order'!BG252=\"\",\"\",'1. Order'!BG252)","v":""},{"$f":"IF('1. Order'!BH252=\"\",\"\",'1. Order'!BH252)","v":"ZWO"}]
[{"$f":"IF('1. Order'!F253=\"\",\"\",'1. Order'!F253)","v":{"$error":"#N/A"}},{"$f":"IF('1. Order'!G253=\"\",\"\",'1. Order'!G253)","v":""},{"$f":"IF('1. Order'!H253=\"\",\"\",'1. Order'!H253)","v":""},{"$f":"IF('1. Order'!I253=\"\",\"\",'1. Order'!I253)","v":""},{"$f":"IF('1. Order'!J253=\"\",\"\",'1. Order'!J253)","v":""},{"$f":"IF('1. Order'!K253=\"\",\"\",'1. Order'!K253)","v":""},{"$f":"IF('1. Order'!L253=\"\",\"\",'1. Order'!L253)","v":""},{"$f":"IF('1. Order'!M253=\"\",\"\",'1. Order'!M253)","v":""},{"$f":"IF('1. Order'!N253=\"\",\"\",'1. Order'!N253)","v":""},{"$f":"IF('1. Order'!O253=\"\",\"\",'1. Order'!O253)","v":{"$error":"#N/A"}},{"$f":"IF('1. Order'!P253=\"\",\"\",'1. Order'!P253)","v":{"$error":"#N/A"}},{"$f":"IF('1. Order'!Q253=\"\",\"\",'1. Order'!Q253)","v":""},{"$f":"IF('1. Order'!S253=\"\",\"\",'1. Order'!S253)","v":""},{"$f":"IF('1. Order'!T253=\"\",\"\",'1. Order'!T253)","v":""},{"$f":"IF('1. Order'!W253=\"\",\"\",'1. Order'!W253)","v":""},{"$f":"IF('1. Order'!X253=\"\",\"\",'1. Order'!X253)","v":""},{"$f":"IF('1. Order'!Y253=\"\",\"\",'1. Order'!Y253)","v":"EUR"},{"$f":"IF('1. Order'!Z253=\"\",\"\",'1. Order'!Z253)","v":""},{"$f":"IF('1. Order'!AA253=\"\",\"\",'1. Order'!AA253)","v":""},{"$f":"IF('1. Order'!AB253=\"\",\"\",'1. Order'!AB253)","v":""},null,{"$f":"IF('1. Order'!AT253=\"\",\"\",'1. Order'!AT253)","v":""},{"$f":"IF('1. Order'!AU253=\"\",\"\",'1. Order'!AU253)","v":""},null,null,null,null,null,null,null,{"$f":"IF('1. Order'!AY253=\"\",\"\",'1. Order'!AY253)","v":""},{"$f":"IF('1. Order'!AZ253=\"\",\"\",'1. Order'!AZ253)","v":""},{"$f":"IF('1. Order'!BA253=\"\",\"\",'1. Order'!BA253)","v":""},{"$f":"IF('1. Order'!BB253=\"\",\"\",'1. Order'!BB253)","v":""},{"$f":"IF('1. Order'!BD253=\"\",\"\",'1. Order'!BD253)","v":""},{"$f":"IF('1. Order'!BE253=\"\",\"\",'1. Order'!BE253)","v":""},{"$f":"IF('1. Order'!BF253=\"\",\"\",'1. Order'!BF253)","v":""},{"$f":"IF('1. Order'!BG253=\"\",\"\",'1. Order'!BG253)","v":""},{"$f":"IF('1. Order'!BH253=\"\",\"\",'1. Order'!BH253)","v":"ZWO"}]
[{"$f":"IF('1. Order'!F254=\"\",\"\",'1. Order'!F254)","v":{"$error":"#N/A"}},{"$f":"IF('1. Order'!G254=\"\",\"\",'1. Order'!G254)","v":""},{"$f":"IF('1. Order'!H254=\"\",\"\",'1. Order'!H254)","v":""},{"$f":"IF('1. Order'!I254=\"\",\"\",'1. Order'!I254)","v":""},{"$f":"IF('1. Order'!J254=\"\",\"\",'1. Order'!J254)","v":""},{"$f":"IF('1. Order'!K254=\"\",\"\",'1. Order'!K254)","v":""},{"$f":"IF('1. Order'!L254=\"\",\"\",'1. Order'!L254)","v":""},{"$f":"IF('1. Order'!M254=\"\",\"\",'1. Order'!M254)","v":""},{"$f":"IF('1. Order'!N254=\"\",\"\",'1. Order'!N254)","v":""},{"$f":"IF('1. Order'!O254=\"\",\"\",'1. Order'!O254)","v":{"$error":"#N/A"}},{"$f":"IF('1. Order'!P254=\"\",\"\",'1. Order'!P254)","v":{"$error":"#N/A"}},{"$f":"IF('1. Order'!Q254=\"\",\"\",'1. Order'!Q254)","v":""},{"$f":"IF('1. Order'!S254=\"\",\"\",'1. Order'!S254)","v":""},{"$f":"IF('1. Order'!T254=\"\",\"\",'1. Order'!T254)","v":""},{"$f":"IF('1. Order'!W254=\"\",\"\",'1. Order'!W254)","v":""},{"$f":"IF('1. Order'!X254=\"\",\"\",'1. Order'!X254)","v":""},{"$f":"IF('1. Order'!Y254=\"\",\"\",'1. Order'!Y254)","v":"EUR"},{"$f":"IF('1. Order'!Z254=\"\",\"\",'1. Order'!Z254)","v":""},{"$f":"IF('1. Order'!AA254=\"\",\"\",'1. Order'!AA254)","v":""},{"$f":"IF('1. Order'!AB254=\"\",\"\",'1. Order'!AB254)","v":""},null,{"$f":"IF('1. Order'!AT254=\"\",\"\",'1. Order'!AT254)","v":""},{"$f":"IF('1. Order'!AU254=\"\",\"\",'1. Order'!AU254)","v":""},null,null,null,null,null,null,null,{"$f":"IF('1. Order'!AY254=\"\",\"\",'1. Order'!AY254)","v":""},{"$f":"IF('1. Order'!AZ254=\"\",\"\",'1. Order'!AZ254)","v":""},{"$f":"IF('1. Order'!BA254=\"\",\"\",'1. Order'!BA254)","v":""},{"$f":"IF('1. Order'!BB254=\"\",\"\",'1. Order'!BB254)","v":""},{"$f":"IF('1. Order'!BD254=\"\",\"\",'1. Order'!BD254)","v":""},{"$f":"IF('1. Order'!BE254=\"\",\"\",'1. Order'!BE254)","v":""},{"$f":"IF('1. Order'!BF254=\"\",\"\",'1. Order'!BF254)","v":""},{"$f":"IF('1. Order'!BG254=\"\",\"\",'1. Order'!BG254)","v":""},{"$f":"IF('1. Order'!BH254=\"\",\"\",'1. Order'!BH254)","v":"ZWO"}]
[{"$f":"IF('1. Order'!F255=\"\",\"\",'1. Order'!F255)","v":{"$error":"#N/A"}},{"$f":"IF('1. Order'!G255=\"\",\"\",'1. Order'!G255)","v":""},{"$f":"IF('1. Order'!H255=\"\",\"\",'1. Order'!H255)","v":""},{"$f":"IF('1. Order'!I255=\"\",\"\",'1. Order'!I255)","v":""},{"$f":"IF('1. Order'!J255=\"\",\"\",'1. Order'!J255)","v":""},{"$f":"IF('1. Order'!K255=\"\",\"\",'1. Order'!K255)","v":""},{"$f":"IF('1. Order'!L255=\"\",\"\",'1. Order'!L255)","v":""},{"$f":"IF('1. Order'!M255=\"\",\"\",'1. Order'!M255)","v":""},{"$f":"IF('1. Order'!N255=\"\",\"\",'1. Order'!N255)","v":""},{"$f":"IF('1. Order'!O255=\"\",\"\",'1. Order'!O255)","v":{"$error":"#N/A"}},{"$f":"IF('1. Order'!P255=\"\",\"\",'1. Order'!P255)","v":{"$error":"#N/A"}},{"$f":"IF('1. Order'!Q255=\"\",\"\",'1. Order'!Q255)","v":""},{"$f":"IF('1. Order'!S255=\"\",\"\",'1. Order'!S255)","v":""},{"$f":"IF('1. Order'!T255=\"\",\"\",'1. Order'!T255)","v":""},{"$f":"IF('1. Order'!W255=\"\",\"\",'1. Order'!W255)","v":""},{"$f":"IF('1. Order'!X255=\"\",\"\",'1. Order'!X255)","v":""},{"$f":"IF('1. Order'!Y255=\"\",\"\",'1. Order'!Y255)","v":"EUR"},{"$f":"IF('1. Order'!Z255=\"\",\"\",'1. Order'!Z255)","v":""},{"$f":"IF('1. Order'!AA255=\"\",\"\",'1. Order'!AA255)","v":""},{"$f":"IF('1. Order'!AB255=\"\",\"\",'1. Order'!AB255)","v":""},null,{"$f":"IF('1. Order'!AT255=\"\",\"\",'1. Order'!AT255)","v":""},{"$f":"IF('1. Order'!AU255=\"\",\"\",'1. Order'!AU255)","v":""},null,null,null,null,null,null,null,{"$f":"IF('1. Order'!AY255=\"\",\"\",'1. Order'!AY255)","v":""},{"$f":"IF('1. Order'!AZ255=\"\",\"\",'1. Order'!AZ255)","v":""},{"$f":"IF('1. Order'!BA255=\"\",\"\",'1. Order'!BA255)","v":""},{"$f":"IF('1. Order'!BB255=\"\",\"\",'1. Order'!BB255)","v":""},{"$f":"IF('1. Order'!BD255=\"\",\"\",'1. Order'!BD255)","v":""},{"$f":"IF('1. Order'!BE255=\"\",\"\",'1. Order'!BE255)","v":""},{"$f":"IF('1. Order'!BF255=\"\",\"\",'1. Order'!BF255)","v":""},{"$f":"IF('1. Order'!BG255=\"\",\"\",'1. Order'!BG255)","v":""},{"$f":"IF('1. Order'!BH255=\"\",\"\",'1. Order'!BH255)","v":"ZWO"}]
[{"$f":"IF('1. Order'!F256=\"\",\"\",'1. Order'!F256)","v":{"$error":"#N/A"}},{"$f":"IF('1. Order'!G256=\"\",\"\",'1. Order'!G256)","v":""},{"$f":"IF('1. Order'!H256=\"\",\"\",'1. Order'!H256)","v":""},{"$f":"IF('1. Order'!I256=\"\",\"\",'1. Order'!I256)","v":""},{"$f":"IF('1. Order'!J256=\"\",\"\",'1. Order'!J256)","v":""},{"$f":"IF('1. Order'!K256=\"\",\"\",'1. Order'!K256)","v":""},{"$f":"IF('1. Order'!L256=\"\",\"\",'1. Order'!L256)","v":""},{"$f":"IF('1. Order'!M256=\"\",\"\",'1. Order'!M256)","v":""},{"$f":"IF('1. Order'!N256=\"\",\"\",'1. Order'!N256)","v":""},{"$f":"IF('1. Order'!O256=\"\",\"\",'1. Order'!O256)","v":{"$error":"#N/A"}},{"$f":"IF('1. Order'!P256=\"\",\"\",'1. Order'!P256)","v":{"$error":"#N/A"}},{"$f":"IF('1. Order'!Q256=\"\",\"\",'1. Order'!Q256)","v":""},{"$f":"IF('1. Order'!S256=\"\",\"\",'1. Order'!S256)","v":""},{"$f":"IF('1. Order'!T256=\"\",\"\",'1. Order'!T256)","v":""},{"$f":"IF('1. Order'!W256=\"\",\"\",'1. Order'!W256)","v":""},{"$f":"IF('1. Order'!X256=\"\",\"\",'1. Order'!X256)","v":""},{"$f":"IF('1. Order'!Y256=\"\",\"\",'1. Order'!Y256)","v":"EUR"},{"$f":"IF('1. Order'!Z256=\"\",\"\",'1. Order'!Z256)","v":""},{"$f":"IF('1. Order'!AA256=\"\",\"\",'1. Order'!AA256)","v":""},{"$f":"IF('1. Order'!AB256=\"\",\"\",'1. Order'!AB256)","v":""},null,{"$f":"IF('1. Order'!AT256=\"\",\"\",'1. Order'!AT256)","v":""},{"$f":"IF('1. Order'!AU256=\"\",\"\",'1. Order'!AU256)","v":""},null,null,null,null,null,null,null,{"$f":"IF('1. Order'!AY256=\"\",\"\",'1. Order'!AY256)","v":""},{"$f":"IF('1. Order'!AZ256=\"\",\"\",'1. Order'!AZ256)","v":""},{"$f":"IF('1. Order'!BA256=\"\",\"\",'1. Order'!BA256)","v":""},{"$f":"IF('1. Order'!BB256=\"\",\"\",'1. Order'!BB256)","v":""},{"$f":"IF('1. Order'!BD256=\"\",\"\",'1. Order'!BD256)","v":""},{"$f":"IF('1. Order'!BE256=\"\",\"\",'1. Order'!BE256)","v":""},{"$f":"IF('1. Order'!BF256=\"\",\"\",'1. Order'!BF256)","v":""},{"$f":"IF('1. Order'!BG256=\"\",\"\",'1. Order'!BG256)","v":""},{"$f":"IF('1. Order'!BH256=\"\",\"\",'1. Order'!BH256)","v":"ZWO"}]
[{"$f":"IF('1. Order'!F257=\"\",\"\",'1. Order'!F257)","v":{"$error":"#N/A"}},{"$f":"IF('1. Order'!G257=\"\",\"\",'1. Order'!G257)","v":""},{"$f":"IF('1. Order'!H257=\"\",\"\",'1. Order'!H257)","v":""},{"$f":"IF('1. Order'!I257=\"\",\"\",'1. Order'!I257)","v":""},{"$f":"IF('1. Order'!J257=\"\",\"\",'1. Order'!J257)","v":""},{"$f":"IF('1. Order'!K257=\"\",\"\",'1. Order'!K257)","v":""},{"$f":"IF('1. Order'!L257=\"\",\"\",'1. Order'!L257)","v":""},{"$f":"IF('1. Order'!M257=\"\",\"\",'1. Order'!M257)","v":""},{"$f":"IF('1. Order'!N257=\"\",\"\",'1. Order'!N257)","v":""},{"$f":"IF('1. Order'!O257=\"\",\"\",'1. Order'!O257)","v":{"$error":"#N/A"}},{"$f":"IF('1. Order'!P257=\"\",\"\",'1. Order'!P257)","v":{"$error":"#N/A"}},{"$f":"IF('1. Order'!Q257=\"\",\"\",'1. Order'!Q257)","v":""},{"$f":"IF('1. Order'!S257=\"\",\"\",'1. Order'!S257)","v":""},{"$f":"IF('1. Order'!T257=\"\",\"\",'1. Order'!T257)","v":""},{"$f":"IF('1. Order'!W257=\"\",\"\",'1. Order'!W257)","v":""},{"$f":"IF('1. Order'!X257=\"\",\"\",'1. Order'!X257)","v":""},{"$f":"IF('1. Order'!Y257=\"\",\"\",'1. Order'!Y257)","v":"EUR"},{"$f":"IF('1. Order'!Z257=\"\",\"\",'1. Order'!Z257)","v":""},{"$f":"IF('1. Order'!AA257=\"\",\"\",'1. Order'!AA257)","v":""},{"$f":"IF('1. Order'!AB257=\"\",\"\",'1. Order'!AB257)","v":""},null,{"$f":"IF('1. Order'!AT257=\"\",\"\",'1. Order'!AT257)","v":""},{"$f":"IF('1. Order'!AU257=\"\",\"\",'1. Order'!AU257)","v":""},null,null,null,null,null,null,null,{"$f":"IF('1. Order'!AY257=\"\",\"\",'1. Order'!AY257)","v":""},{"$f":"IF('1. Order'!AZ257=\"\",\"\",'1. Order'!AZ257)","v":""},{"$f":"IF('1. Order'!BA257=\"\",\"\",'1. Order'!BA257)","v":""},{"$f":"IF('1. Order'!BB257=\"\",\"\",'1. Order'!BB257)","v":""},{"$f":"IF('1. Order'!BD257=\"\",\"\",'1. Order'!BD257)","v":""},{"$f":"IF('1. Order'!BE257=\"\",\"\",'1. Order'!BE257)","v":""},{"$f":"IF('1. Order'!BF257=\"\",\"\",'1. Order'!BF257)","v":""},{"$f":"IF('1. Order'!BG257=\"\",\"\",'1. Order'!BG257)","v":""},{"$f":"IF('1. Order'!BH257=\"\",\"\",'1. Order'!BH257)","v":"ZWO"}]
[{"$f":"IF('1. Order'!F258=\"\",\"\",'1. Order'!F258)","v":{"$error":"#N/A"}},{"$f":"IF('1. Order'!G258=\"\",\"\",'1. Order'!G258)","v":""},{"$f":"IF('1. Order'!H258=\"\",\"\",'1. Order'!H258)","v":""},{"$f":"IF('1. Order'!I258=\"\",\"\",'1. Order'!I258)","v":""},{"$f":"IF('1. Order'!J258=\"\",\"\",'1. Order'!J258)","v":""},{"$f":"IF('1. Order'!K258=\"\",\"\",'1. Order'!K258)","v":""},{"$f":"IF('1. Order'!L258=\"\",\"\",'1. Order'!L258)","v":""},{"$f":"IF('1. Order'!M258=\"\",\"\",'1. Order'!M258)","v":""},{"$f":"IF('1. Order'!N258=\"\",\"\",'1. Order'!N258)","v":""},{"$f":"IF('1. Order'!O258=\"\",\"\",'1. Order'!O258)","v":{"$error":"#N/A"}},{"$f":"IF('1. Order'!P258=\"\",\"\",'1. Order'!P258)","v":{"$error":"#N/A"}},{"$f":"IF('1. Order'!Q258=\"\",\"\",'1. Order'!Q258)","v":""},{"$f":"IF('1. Order'!S258=\"\",\"\",'1. Order'!S258)","v":""},{"$f":"IF('1. Order'!T258=\"\",\"\",'1. Order'!T258)","v":""},{"$f":"IF('1. Order'!W258=\"\",\"\",'1. Order'!W258)","v":""},{"$f":"IF('1. Order'!X258=\"\",\"\",'1. Order'!X258)","v":""},{"$f":"IF('1. Order'!Y258=\"\",\"\",'1. Order'!Y258)","v":"EUR"},{"$f":"IF('1. Order'!Z258=\"\",\"\",'1. Order'!Z258)","v":""},{"$f":"IF('1. Order'!AA258=\"\",\"\",'1. Order'!AA258)","v":""},{"$f":"IF('1. Order'!AB258=\"\",\"\",'1. Order'!AB258)","v":""},null,{"$f":"IF('1. Order'!AT258=\"\",\"\",'1. Order'!AT258)","v":""},{"$f":"IF('1. Order'!AU258=\"\",\"\",'1. Order'!AU258)","v":""},null,null,null,null,null,null,null,{"$f":"IF('1. Order'!AY258=\"\",\"\",'1. Order'!AY258)","v":""},{"$f":"IF('1. Order'!AZ258=\"\",\"\",'1. Order'!AZ258)","v":""},{"$f":"IF('1. Order'!BA258=\"\",\"\",'1. Order'!BA258)","v":""},{"$f":"IF('1. Order'!BB258=\"\",\"\",'1. Order'!BB258)","v":""},{"$f":"IF('1. Order'!BD258=\"\",\"\",'1. Order'!BD258)","v":""},{"$f":"IF('1. Order'!BE258=\"\",\"\",'1. Order'!BE258)","v":""},{"$f":"IF('1. Order'!BF258=\"\",\"\",'1. Order'!BF258)","v":""},{"$f":"IF('1. Order'!BG258=\"\",\"\",'1. Order'!BG258)","v":""},{"$f":"IF('1. Order'!BH258=\"\",\"\",'1. Order'!BH258)","v":"ZWO"}]
[{"$f":"IF('1. Order'!F259=\"\",\"\",'1. Order'!F259)","v":{"$error":"#N/A"}},{"$f":"IF('1. Order'!G259=\"\",\"\",'1. Order'!G259)","v":""},{"$f":"IF('1. Order'!H259=\"\",\"\",'1. Order'!H259)","v":""},{"$f":"IF('1. Order'!I259=\"\",\"\",'1. Order'!I259)","v":""},{"$f":"IF('1. Order'!J259=\"\",\"\",'1. Order'!J259)","v":""},{"$f":"IF('1. Order'!K259=\"\",\"\",'1. Order'!K259)","v":""},{"$f":"IF('1. Order'!L259=\"\",\"\",'1. Order'!L259)","v":""},{"$f":"IF('1. Order'!M259=\"\",\"\",'1. Order'!M259)","v":""},{"$f":"IF('1. Order'!N259=\"\",\"\",'1. Order'!N259)","v":""},{"$f":"IF('1. Order'!O259=\"\",\"\",'1. Order'!O259)","v":{"$error":"#N/A"}},{"$f":"IF('1. Order'!P259=\"\",\"\",'1. Order'!P259)","v":{"$error":"#N/A"}},{"$f":"IF('1. Order'!Q259=\"\",\"\",'1. Order'!Q259)","v":""},{"$f":"IF('1. Order'!S259=\"\",\"\",'1. Order'!S259)","v":""},{"$f":"IF('1. Order'!T259=\"\",\"\",'1. Order'!T259)","v":""},{"$f":"IF('1. Order'!W259=\"\",\"\",'1. Order'!W259)","v":""},{"$f":"IF('1. Order'!X259=\"\",\"\",'1. Order'!X259)","v":""},{"$f":"IF('1. Order'!Y259=\"\",\"\",'1. Order'!Y259)","v":"EUR"},{"$f":"IF('1. Order'!Z259=\"\",\"\",'1. Order'!Z259)","v":""},{"$f":"IF('1. Order'!AA259=\"\",\"\",'1. Order'!AA259)","v":""},{"$f":"IF('1. Order'!AB259=\"\",\"\",'1. Order'!AB259)","v":""},null,{"$f":"IF('1. Order'!AT259=\"\",\"\",'1. Order'!AT259)","v":""},{"$f":"IF('1. Order'!AU259=\"\",\"\",'1. Order'!AU259)","v":""},null,null,null,null,null,null,null,{"$f":"IF('1. Order'!AY259=\"\",\"\",'1. Order'!AY259)","v":""},{"$f":"IF('1. Order'!AZ259=\"\",\"\",'1. Order'!AZ259)","v":""},{"$f":"IF('1. Order'!BA259=\"\",\"\",'1. Order'!BA259)","v":""},{"$f":"IF('1. Order'!BB259=\"\",\"\",'1. Order'!BB259)","v":""},{"$f":"IF('1. Order'!BD259=\"\",\"\",'1. Order'!BD259)","v":""},{"$f":"IF('1. Order'!BE259=\"\",\"\",'1. Order'!BE259)","v":""},{"$f":"IF('1. Order'!BF259=\"\",\"\",'1. Order'!BF259)","v":""},{"$f":"IF('1. Order'!BG259=\"\",\"\",'1. Order'!BG259)","v":""},{"$f":"IF('1. Order'!BH259=\"\",\"\",'1. Order'!BH259)","v":"ZWO"}]
[{"$f":"IF('1. Order'!F260=\"\",\"\",'1. Order'!F260)","v":{"$error":"#N/A"}},{"$f":"IF('1. Order'!G260=\"\",\"\",'1. Order'!G260)","v":""},{"$f":"IF('1. Order'!H260=\"\",\"\",'1. Order'!H260)","v":""},{"$f":"IF('1. Order'!I260=\"\",\"\",'1. Order'!I260)","v":""},{"$f":"IF('1. Order'!J260=\"\",\"\",'1. Order'!J260)","v":""},{"$f":"IF('1. Order'!K260=\"\",\"\",'1. Order'!K260)","v":""},{"$f":"IF('1. Order'!L260=\"\",\"\",'1. Order'!L260)","v":""},{"$f":"IF('1. Order'!M260=\"\",\"\",'1. Order'!M260)","v":""},{"$f":"IF('1. Order'!N260=\"\",\"\",'1. Order'!N260)","v":""},{"$f":"IF('1. Order'!O260=\"\",\"\",'1. Order'!O260)","v":{"$error":"#N/A"}},{"$f":"IF('1. Order'!P260=\"\",\"\",'1. Order'!P260)","v":{"$error":"#N/A"}},{"$f":"IF('1. Order'!Q260=\"\",\"\",'1. Order'!Q260)","v":""},{"$f":"IF('1. Order'!S260=\"\",\"\",'1. Order'!S260)","v":""},{"$f":"IF('1. Order'!T260=\"\",\"\",'1. Order'!T260)","v":""},{"$f":"IF('1. Order'!W260=\"\",\"\",'1. Order'!W260)","v":""},{"$f":"IF('1. Order'!X260=\"\",\"\",'1. Order'!X260)","v":""},{"$f":"IF('1. Order'!Y260=\"\",\"\",'1. Order'!Y260)","v":"EUR"},{"$f":"IF('1. Order'!Z260=\"\",\"\",'1. Order'!Z260)","v":""},{"$f":"IF('1. Order'!AA260=\"\",\"\",'1. Order'!AA260)","v":""},{"$f":"IF('1. Order'!AB260=\"\",\"\",'1. Order'!AB260)","v":""},null,{"$f":"IF('1. Order'!AT260=\"\",\"\",'1. Order'!AT260)","v":""},{"$f":"IF('1. Order'!AU260=\"\",\"\",'1. Order'!AU260)","v":""},null,null,null,null,null,null,null,{"$f":"IF('1. Order'!AY260=\"\",\"\",'1. Order'!AY260)","v":""},{"$f":"IF('1. Order'!AZ260=\"\",\"\",'1. Order'!AZ260)","v":""},{"$f":"IF('1. Order'!BA260=\"\",\"\",'1. Order'!BA260)","v":""},{"$f":"IF('1. Order'!BB260=\"\",\"\",'1. Order'!BB260)","v":""},{"$f":"IF('1. Order'!BD260=\"\",\"\",'1. Order'!BD260)","v":""},{"$f":"IF('1. Order'!BE260=\"\",\"\",'1. Order'!BE260)","v":""},{"$f":"IF('1. Order'!BF260=\"\",\"\",'1. Order'!BF260)","v":""},{"$f":"IF('1. Order'!BG260=\"\",\"\",'1. Order'!BG260)","v":""},{"$f":"IF('1. Order'!BH260=\"\",\"\",'1. Order'!BH260)","v":"ZWO"}]
[{"$f":"IF('1. Order'!F261=\"\",\"\",'1. Order'!F261)","v":{"$error":"#N/A"}},{"$f":"IF('1. Order'!G261=\"\",\"\",'1. Order'!G261)","v":""},{"$f":"IF('1. Order'!H261=\"\",\"\",'1. Order'!H261)","v":""},{"$f":"IF('1. Order'!I261=\"\",\"\",'1. Order'!I261)","v":""},{"$f":"IF('1. Order'!J261=\"\",\"\",'1. Order'!J261)","v":""},{"$f":"IF('1. Order'!K261=\"\",\"\",'1. Order'!K261)","v":""},{"$f":"IF('1. Order'!L261=\"\",\"\",'1. Order'!L261)","v":""},{"$f":"IF('1. Order'!M261=\"\",\"\",'1. Order'!M261)","v":""},{"$f":"IF('1. Order'!N261=\"\",\"\",'1. Order'!N261)","v":""},{"$f":"IF('1. Order'!O261=\"\",\"\",'1. Order'!O261)","v":{"$error":"#N/A"}},{"$f":"IF('1. Order'!P261=\"\",\"\",'1. Order'!P261)","v":{"$error":"#N/A"}},{"$f":"IF('1. Order'!Q261=\"\",\"\",'1. Order'!Q261)","v":""},{"$f":"IF('1. Order'!S261=\"\",\"\",'1. Order'!S261)","v":""},{"$f":"IF('1. Order'!T261=\"\",\"\",'1. Order'!T261)","v":""},{"$f":"IF('1. Order'!W261=\"\",\"\",'1. Order'!W261)","v":""},{"$f":"IF('1. Order'!X261=\"\",\"\",'1. Order'!X261)","v":""},{"$f":"IF('1. Order'!Y261=\"\",\"\",'1. Order'!Y261)","v":"EUR"},{"$f":"IF('1. Order'!Z261=\"\",\"\",'1. Order'!Z261)","v":""},{"$f":"IF('1. Order'!AA261=\"\",\"\",'1. Order'!AA261)","v":""},{"$f":"IF('1. Order'!AB261=\"\",\"\",'1. Order'!AB261)","v":""},null,{"$f":"IF('1. Order'!AT261=\"\",\"\",'1. Order'!AT261)","v":""},{"$f":"IF('1. Order'!AU261=\"\",\"\",'1. Order'!AU261)","v":""},null,null,null,null,null,null,null,{"$f":"IF('1. Order'!AY261=\"\",\"\",'1. Order'!AY261)","v":""},{"$f":"IF('1. Order'!AZ261=\"\",\"\",'1. Order'!AZ261)","v":""},{"$f":"IF('1. Order'!BA261=\"\",\"\",'1. Order'!BA261)","v":""},{"$f":"IF('1. Order'!BB261=\"\",\"\",'1. Order'!BB261)","v":""},{"$f":"IF('1. Order'!BD261=\"\",\"\",'1. Order'!BD261)","v":""},{"$f":"IF('1. Order'!BE261=\"\",\"\",'1. Order'!BE261)","v":""},{"$f":"IF('1. Order'!BF261=\"\",\"\",'1. Order'!BF261)","v":""},{"$f":"IF('1. Order'!BG261=\"\",\"\",'1. Order'!BG261)","v":""},{"$f":"IF('1. Order'!BH261=\"\",\"\",'1. Order'!BH261)","v":"ZWO"}]
[{"$f":"IF('1. Order'!F262=\"\",\"\",'1. Order'!F262)","v":{"$error":"#N/A"}},{"$f":"IF('1. Order'!G262=\"\",\"\",'1. Order'!G262)","v":""},{"$f":"IF('1. Order'!H262=\"\",\"\",'1. Order'!H262)","v":""},{"$f":"IF('1. Order'!I262=\"\",\"\",'1. Order'!I262)","v":""},{"$f":"IF('1. Order'!J262=\"\",\"\",'1. Order'!J262)","v":""},{"$f":"IF('1. Order'!K262=\"\",\"\",'1. Order'!K262)","v":""},{"$f":"IF('1. Order'!L262=\"\",\"\",'1. Order'!L262)","v":""},{"$f":"IF('1. Order'!M262=\"\",\"\",'1. Order'!M262)","v":""},{"$f":"IF('1. Order'!N262=\"\",\"\",'1. Order'!N262)","v":""},{"$f":"IF('1. Order'!O262=\"\",\"\",'1. Order'!O262)","v":{"$error":"#N/A"}},{"$f":"IF('1. Order'!P262=\"\",\"\",'1. Order'!P262)","v":{"$error":"#N/A"}},{"$f":"IF('1. Order'!Q262=\"\",\"\",'1. Order'!Q262)","v":""},{"$f":"IF('1. Order'!S262=\"\",\"\",'1. Order'!S262)","v":""},{"$f":"IF('1. Order'!T262=\"\",\"\",'1. Order'!T262)","v":""},{"$f":"IF('1. Order'!W262=\"\",\"\",'1. Order'!W262)","v":""},{"$f":"IF('1. Order'!X262=\"\",\"\",'1. Order'!X262)","v":""},{"$f":"IF('1. Order'!Y262=\"\",\"\",'1. Order'!Y262)","v":"EUR"},{"$f":"IF('1. Order'!Z262=\"\",\"\",'1. Order'!Z262)","v":""},{"$f":"IF('1. Order'!AA262=\"\",\"\",'1. Order'!AA262)","v":""},{"$f":"IF('1. Order'!AB262=\"\",\"\",'1. Order'!AB262)","v":""},null,{"$f":"IF('1. Order'!AT262=\"\",\"\",'1. Order'!AT262)","v":""},{"$f":"IF('1. Order'!AU262=\"\",\"\",'1. Order'!AU262)","v":""},null,null,null,null,null,null,null,{"$f":"IF('1. Order'!AY262=\"\",\"\",'1. Order'!AY262)","v":""},{"$f":"IF('1. Order'!AZ262=\"\",\"\",'1. Order'!AZ262)","v":""},{"$f":"IF('1. Order'!BA262=\"\",\"\",'1. Order'!BA262)","v":""},{"$f":"IF('1. Order'!BB262=\"\",\"\",'1. Order'!BB262)","v":""},{"$f":"IF('1. Order'!BD262=\"\",\"\",'1. Order'!BD262)","v":""},{"$f":"IF('1. Order'!BE262=\"\",\"\",'1. Order'!BE262)","v":""},{"$f":"IF('1. Order'!BF262=\"\",\"\",'1. Order'!BF262)","v":""},{"$f":"IF('1. Order'!BG262=\"\",\"\",'1. Order'!BG262)","v":""},{"$f":"IF('1. Order'!BH262=\"\",\"\",'1. Order'!BH262)","v":"ZWO"}]
[{"$f":"IF('1. Order'!F263=\"\",\"\",'1. Order'!F263)","v":{"$error":"#N/A"}},{"$f":"IF('1. Order'!G263=\"\",\"\",'1. Order'!G263)","v":""},{"$f":"IF('1. Order'!H263=\"\",\"\",'1. Order'!H263)","v":""},{"$f":"IF('1. Order'!I263=\"\",\"\",'1. Order'!I263)","v":""},{"$f":"IF('1. Order'!J263=\"\",\"\",'1. Order'!J263)","v":""},{"$f":"IF('1. Order'!K263=\"\",\"\",'1. Order'!K263)","v":""},{"$f":"IF('1. Order'!L263=\"\",\"\",'1. Order'!L263)","v":""},{"$f":"IF('1. Order'!M263=\"\",\"\",'1. Order'!M263)","v":""},{"$f":"IF('1. Order'!N263=\"\",\"\",'1. Order'!N263)","v":""},{"$f":"IF('1. Order'!O263=\"\",\"\",'1. Order'!O263)","v":{"$error":"#N/A"}},{"$f":"IF('1. Order'!P263=\"\",\"\",'1. Order'!P263)","v":{"$error":"#N/A"}},{"$f":"IF('1. Order'!Q263=\"\",\"\",'1. Order'!Q263)","v":""},{"$f":"IF('1. Order'!S263=\"\",\"\",'1. Order'!S263)","v":""},{"$f":"IF('1. Order'!T263=\"\",\"\",'1. Order'!T263)","v":""},{"$f":"IF('1. Order'!W263=\"\",\"\",'1. Order'!W263)","v":""},{"$f":"IF('1. Order'!X263=\"\",\"\",'1. Order'!X263)","v":""},{"$f":"IF('1. Order'!Y263=\"\",\"\",'1. Order'!Y263)","v":"EUR"},{"$f":"IF('1. Order'!Z263=\"\",\"\",'1. Order'!Z263)","v":""},{"$f":"IF('1. Order'!AA263=\"\",\"\",'1. Order'!AA263)","v":""},{"$f":"IF('1. Order'!AB263=\"\",\"\",'1. Order'!AB263)","v":""},null,{"$f":"IF('1. Order'!AT263=\"\",\"\",'1. Order'!AT263)","v":""},{"$f":"IF('1. Order'!AU263=\"\",\"\",'1. Order'!AU263)","v":""},null,null,null,null,null,null,null,{"$f":"IF('1. Order'!AY263=\"\",\"\",'1. Order'!AY263)","v":""},{"$f":"IF('1. Order'!AZ263=\"\",\"\",'1. Order'!AZ263)","v":""},{"$f":"IF('1. Order'!BA263=\"\",\"\",'1. Order'!BA263)","v":""},{"$f":"IF('1. Order'!BB263=\"\",\"\",'1. Order'!BB263)","v":""},{"$f":"IF('1. Order'!BD263=\"\",\"\",'1. Order'!BD263)","v":""},{"$f":"IF('1. Order'!BE263=\"\",\"\",'1. Order'!BE263)","v":""},{"$f":"IF('1. Order'!BF263=\"\",\"\",'1. Order'!BF263)","v":""},{"$f":"IF('1. Order'!BG263=\"\",\"\",'1. Order'!BG263)","v":""},{"$f":"IF('1. Order'!BH263=\"\",\"\",'1. Order'!BH263)","v":"ZWO"}]
[{"$f":"IF('1. Order'!F264=\"\",\"\",'1. Order'!F264)","v":{"$error":"#N/A"}},{"$f":"IF('1. Order'!G264=\"\",\"\",'1. Order'!G264)","v":""},{"$f":"IF('1. Order'!H264=\"\",\"\",'1. Order'!H264)","v":""},{"$f":"IF('1. Order'!I264=\"\",\"\",'1. Order'!I264)","v":""},{"$f":"IF('1. Order'!J264=\"\",\"\",'1. Order'!J264)","v":""},{"$f":"IF('1. Order'!K264=\"\",\"\",'1. Order'!K264)","v":""},{"$f":"IF('1. Order'!L264=\"\",\"\",'1. Order'!L264)","v":""},{"$f":"IF('1. Order'!M264=\"\",\"\",'1. Order'!M264)","v":""},{"$f":"IF('1. Order'!N264=\"\",\"\",'1. Order'!N264)","v":""},{"$f":"IF('1. Order'!O264=\"\",\"\",'1. Order'!O264)","v":{"$error":"#N/A"}},{"$f":"IF('1. Order'!P264=\"\",\"\",'1. Order'!P264)","v":{"$error":"#N/A"}},{"$f":"IF('1. Order'!Q264=\"\",\"\",'1. Order'!Q264)","v":""},{"$f":"IF('1. Order'!S264=\"\",\"\",'1. Order'!S264)","v":""},{"$f":"IF('1. Order'!T264=\"\",\"\",'1. Order'!T264)","v":""},{"$f":"IF('1. Order'!W264=\"\",\"\",'1. Order'!W264)","v":""},{"$f":"IF('1. Order'!X264=\"\",\"\",'1. Order'!X264)","v":""},{"$f":"IF('1. Order'!Y264=\"\",\"\",'1. Order'!Y264)","v":"EUR"},{"$f":"IF('1. Order'!Z264=\"\",\"\",'1. Order'!Z264)","v":""},{"$f":"IF('1. Order'!AA264=\"\",\"\",'1. Order'!AA264)","v":""},{"$f":"IF('1. Order'!AB264=\"\",\"\",'1. Order'!AB264)","v":""},null,{"$f":"IF('1. Order'!AT264=\"\",\"\",'1. Order'!AT264)","v":""},{"$f":"IF('1. Order'!AU264=\"\",\"\",'1. Order'!AU264)","v":""},null,null,null,null,null,null,null,{"$f":"IF('1. Order'!AY264=\"\",\"\",'1. Order'!AY264)","v":""},{"$f":"IF('1. Order'!AZ264=\"\",\"\",'1. Order'!AZ264)","v":""},{"$f":"IF('1. Order'!BA264=\"\",\"\",'1. Order'!BA264)","v":""},{"$f":"IF('1. Order'!BB264=\"\",\"\",'1. Order'!BB264)","v":""},{"$f":"IF('1. Order'!BD264=\"\",\"\",'1. Order'!BD264)","v":""},{"$f":"IF('1. Order'!BE264=\"\",\"\",'1. Order'!BE264)","v":""},{"$f":"IF('1. Order'!BF264=\"\",\"\",'1. Order'!BF264)","v":""},{"$f":"IF('1. Order'!BG264=\"\",\"\",'1. Order'!BG264)","v":""},{"$f":"IF('1. Order'!BH264=\"\",\"\",'1. Order'!BH264)","v":"ZWO"}]
[{"$f":"IF('1. Order'!F265=\"\",\"\",'1. Order'!F265)","v":{"$error":"#N/A"}},{"$f":"IF('1. Order'!G265=\"\",\"\",'1. Order'!G265)","v":""},{"$f":"IF('1. Order'!H265=\"\",\"\",'1. Order'!H265)","v":""},{"$f":"IF('1. Order'!I265=\"\",\"\",'1. Order'!I265)","v":""},{"$f":"IF('1. Order'!J265=\"\",\"\",'1. Order'!J265)","v":""},{"$f":"IF('1. Order'!K265=\"\",\"\",'1. Order'!K265)","v":""},{"$f":"IF('1. Order'!L265=\"\",\"\",'1. Order'!L265)","v":""},{"$f":"IF('1. Order'!M265=\"\",\"\",'1. Order'!M265)","v":""},{"$f":"IF('1. Order'!N265=\"\",\"\",'1. Order'!N265)","v":""},{"$f":"IF('1. Order'!O265=\"\",\"\",'1. Order'!O265)","v":{"$error":"#N/A"}},{"$f":"IF('1. Order'!P265=\"\",\"\",'1. Order'!P265)","v":{"$error":"#N/A"}},{"$f":"IF('1. Order'!Q265=\"\",\"\",'1. Order'!Q265)","v":""},{"$f":"IF('1. Order'!S265=\"\",\"\",'1. Order'!S265)","v":""},{"$f":"IF('1. Order'!T265=\"\",\"\",'1. Order'!T265)","v":""},{"$f":"IF('1. Order'!W265=\"\",\"\",'1. Order'!W265)","v":""},{"$f":"IF('1. Order'!X265=\"\",\"\",'1. Order'!X265)","v":""},{"$f":"IF('1. Order'!Y265=\"\",\"\",'1. Order'!Y265)","v":"EUR"},{"$f":"IF('1. Order'!Z265=\"\",\"\",'1. Order'!Z265)","v":""},{"$f":"IF('1. Order'!AA265=\"\",\"\",'1. Order'!AA265)","v":""},{"$f":"IF('1. Order'!AB265=\"\",\"\",'1. Order'!AB265)","v":""},null,{"$f":"IF('1. Order'!AT265=\"\",\"\",'1. Order'!AT265)","v":""},{"$f":"IF('1. Order'!AU265=\"\",\"\",'1. Order'!AU265)","v":""},null,null,null,null,null,null,null,{"$f":"IF('1. Order'!AY265=\"\",\"\",'1. Order'!AY265)","v":""},{"$f":"IF('1. Order'!AZ265=\"\",\"\",'1. Order'!AZ265)","v":""},{"$f":"IF('1. Order'!BA265=\"\",\"\",'1. Order'!BA265)","v":""},{"$f":"IF('1. Order'!BB265=\"\",\"\",'1. Order'!BB265)","v":""},{"$f":"IF('1. Order'!BD265=\"\",\"\",'1. Order'!BD265)","v":""},{"$f":"IF('1. Order'!BE265=\"\",\"\",'1. Order'!BE265)","v":""},{"$f":"IF('1. Order'!BF265=\"\",\"\",'1. Order'!BF265)","v":""},{"$f":"IF('1. Order'!BG265=\"\",\"\",'1. Order'!BG265)","v":""},{"$f":"IF('1. Order'!BH265=\"\",\"\",'1. Order'!BH265)","v":"ZWO"}]
[{"$f":"IF('1. Order'!F266=\"\",\"\",'1. Order'!F266)","v":{"$error":"#N/A"}},{"$f":"IF('1. Order'!G266=\"\",\"\",'1. Order'!G266)","v":""},{"$f":"IF('1. Order'!H266=\"\",\"\",'1. Order'!H266)","v":""},{"$f":"IF('1. Order'!I266=\"\",\"\",'1. Order'!I266)","v":""},{"$f":"IF('1. Order'!J266=\"\",\"\",'1. Order'!J266)","v":""},{"$f":"IF('1. Order'!K266=\"\",\"\",'1. Order'!K266)","v":""},{"$f":"IF('1. Order'!L266=\"\",\"\",'1. Order'!L266)","v":""},{"$f":"IF('1. Order'!M266=\"\",\"\",'1. Order'!M266)","v":""},{"$f":"IF('1. Order'!N266=\"\",\"\",'1. Order'!N266)","v":""},{"$f":"IF('1. Order'!O266=\"\",\"\",'1. Order'!O266)","v":{"$error":"#N/A"}},{"$f":"IF('1. Order'!P266=\"\",\"\",'1. Order'!P266)","v":{"$error":"#N/A"}},{"$f":"IF('1. Order'!Q266=\"\",\"\",'1. Order'!Q266)","v":""},{"$f":"IF('1. Order'!S266=\"\",\"\",'1. Order'!S266)","v":""},{"$f":"IF('1. Order'!T266=\"\",\"\",'1. Order'!T266)","v":""},{"$f":"IF('1. Order'!W266=\"\",\"\",'1. Order'!W266)","v":""},{"$f":"IF('1. Order'!X266=\"\",\"\",'1. Order'!X266)","v":""},{"$f":"IF('1. Order'!Y266=\"\",\"\",'1. Order'!Y266)","v":"EUR"},{"$f":"IF('1. Order'!Z266=\"\",\"\",'1. Order'!Z266)","v":""},{"$f":"IF('1. Order'!AA266=\"\",\"\",'1. Order'!AA266)","v":""},{"$f":"IF('1. Order'!AB266=\"\",\"\",'1. Order'!AB266)","v":""},null,{"$f":"IF('1. Order'!AT266=\"\",\"\",'1. Order'!AT266)","v":""},{"$f":"IF('1. Order'!AU266=\"\",\"\",'1. Order'!AU266)","v":""},null,null,null,null,null,null,null,{"$f":"IF('1. Order'!AY266=\"\",\"\",'1. Order'!AY266)","v":""},{"$f":"IF('1. Order'!AZ266=\"\",\"\",'1. Order'!AZ266)","v":""},{"$f":"IF('1. Order'!BA266=\"\",\"\",'1. Order'!BA266)","v":""},{"$f":"IF('1. Order'!BB266=\"\",\"\",'1. Order'!BB266)","v":""},{"$f":"IF('1. Order'!BD266=\"\",\"\",'1. Order'!BD266)","v":""},{"$f":"IF('1. Order'!BE266=\"\",\"\",'1. Order'!BE266)","v":""},{"$f":"IF('1. Order'!BF266=\"\",\"\",'1. Order'!BF266)","v":""},{"$f":"IF('1. Order'!BG266=\"\",\"\",'1. Order'!BG266)","v":""},{"$f":"IF('1. Order'!BH266=\"\",\"\",'1. Order'!BH266)","v":"ZWO"}]
[{"$f":"IF('1. Order'!F267=\"\",\"\",'1. Order'!F267)","v":{"$error":"#N/A"}},{"$f":"IF('1. Order'!G267=\"\",\"\",'1. Order'!G267)","v":""},{"$f":"IF('1. Order'!H267=\"\",\"\",'1. Order'!H267)","v":""},{"$f":"IF('1. Order'!I267=\"\",\"\",'1. Order'!I267)","v":""},{"$f":"IF('1. Order'!J267=\"\",\"\",'1. Order'!J267)","v":""},{"$f":"IF('1. Order'!K267=\"\",\"\",'1. Order'!K267)","v":""},{"$f":"IF('1. Order'!L267=\"\",\"\",'1. Order'!L267)","v":""},{"$f":"IF('1. Order'!M267=\"\",\"\",'1. Order'!M267)","v":""},{"$f":"IF('1. Order'!N267=\"\",\"\",'1. Order'!N267)","v":""},{"$f":"IF('1. Order'!O267=\"\",\"\",'1. Order'!O267)","v":{"$error":"#N/A"}},{"$f":"IF('1. Order'!P267=\"\",\"\",'1. Order'!P267)","v":{"$error":"#N/A"}},{"$f":"IF('1. Order'!Q267=\"\",\"\",'1. Order'!Q267)","v":""},{"$f":"IF('1. Order'!S267=\"\",\"\",'1. Order'!S267)","v":""},{"$f":"IF('1. Order'!T267=\"\",\"\",'1. Order'!T267)","v":""},{"$f":"IF('1. Order'!W267=\"\",\"\",'1. Order'!W267)","v":""},{"$f":"IF('1. Order'!X267=\"\",\"\",'1. Order'!X267)","v":""},{"$f":"IF('1. Order'!Y267=\"\",\"\",'1. Order'!Y267)","v":"EUR"},{"$f":"IF('1. Order'!Z267=\"\",\"\",'1. Order'!Z267)","v":""},{"$f":"IF('1. Order'!AA267=\"\",\"\",'1. Order'!AA267)","v":""},{"$f":"IF('1. Order'!AB267=\"\",\"\",'1. Order'!AB267)","v":""},null,{"$f":"IF('1. Order'!AT267=\"\",\"\",'1. Order'!AT267)","v":""},{"$f":"IF('1. Order'!AU267=\"\",\"\",'1. Order'!AU267)","v":""},null,null,null,null,null,null,null,{"$f":"IF('1. Order'!AY267=\"\",\"\",'1. Order'!AY267)","v":""},{"$f":"IF('1. Order'!AZ267=\"\",\"\",'1. Order'!AZ267)","v":""},{"$f":"IF('1. Order'!BA267=\"\",\"\",'1. Order'!BA267)","v":""},{"$f":"IF('1. Order'!BB267=\"\",\"\",'1. Order'!BB267)","v":""},{"$f":"IF('1. Order'!BD267=\"\",\"\",'1. Order'!BD267)","v":""},{"$f":"IF('1. Order'!BE267=\"\",\"\",'1. Order'!BE267)","v":""},{"$f":"IF('1. Order'!BF267=\"\",\"\",'1. Order'!BF267)","v":""},{"$f":"IF('1. Order'!BG267=\"\",\"\",'1. Order'!BG267)","v":""},{"$f":"IF('1. Order'!BH267=\"\",\"\",'1. Order'!BH267)","v":"ZWO"}]
[{"$f":"IF('1. Order'!F268=\"\",\"\",'1. Order'!F268)","v":{"$error":"#N/A"}},{"$f":"IF('1. Order'!G268=\"\",\"\",'1. Order'!G268)","v":""},{"$f":"IF('1. Order'!H268=\"\",\"\",'1. Order'!H268)","v":""},{"$f":"IF('1. Order'!I268=\"\",\"\",'1. Order'!I268)","v":""},{"$f":"IF('1. Order'!J268=\"\",\"\",'1. Order'!J268)","v":""},{"$f":"IF('1. Order'!K268=\"\",\"\",'1. Order'!K268)","v":""},{"$f":"IF('1. Order'!L268=\"\",\"\",'1. Order'!L268)","v":""},{"$f":"IF('1. Order'!M268=\"\",\"\",'1. Order'!M268)","v":""},{"$f":"IF('1. Order'!N268=\"\",\"\",'1. Order'!N268)","v":""},{"$f":"IF('1. Order'!O268=\"\",\"\",'1. Order'!O268)","v":{"$error":"#N/A"}},{"$f":"IF('1. Order'!P268=\"\",\"\",'1. Order'!P268)","v":{"$error":"#N/A"}},{"$f":"IF('1. Order'!Q268=\"\",\"\",'1. Order'!Q268)","v":""},{"$f":"IF('1. Order'!S268=\"\",\"\",'1. Order'!S268)","v":""},{"$f":"IF('1. Order'!T268=\"\",\"\",'1. Order'!T268)","v":""},{"$f":"IF('1. Order'!W268=\"\",\"\",'1. Order'!W268)","v":""},{"$f":"IF('1. Order'!X268=\"\",\"\",'1. Order'!X268)","v":""},{"$f":"IF('1. Order'!Y268=\"\",\"\",'1. Order'!Y268)","v":"EUR"},{"$f":"IF('1. Order'!Z268=\"\",\"\",'1. Order'!Z268)","v":""},{"$f":"IF('1. Order'!AA268=\"\",\"\",'1. Order'!AA268)","v":""},{"$f":"IF('1. Order'!AB268=\"\",\"\",'1. Order'!AB268)","v":""},null,{"$f":"IF('1. Order'!AT268=\"\",\"\",'1. Order'!AT268)","v":""},{"$f":"IF('1. Order'!AU268=\"\",\"\",'1. Order'!AU268)","v":""},null,null,null,null,null,null,null,{"$f":"IF('1. Order'!AY268=\"\",\"\",'1. Order'!AY268)","v":""},{"$f":"IF('1. Order'!AZ268=\"\",\"\",'1. Order'!AZ268)","v":""},{"$f":"IF('1. Order'!BA268=\"\",\"\",'1. Order'!BA268)","v":""},{"$f":"IF('1. Order'!BB268=\"\",\"\",'1. Order'!BB268)","v":""},{"$f":"IF('1. Order'!BD268=\"\",\"\",'1. Order'!BD268)","v":""},{"$f":"IF('1. Order'!BE268=\"\",\"\",'1. Order'!BE268)","v":""},{"$f":"IF('1. Order'!BF268=\"\",\"\",'1. Order'!BF268)","v":""},{"$f":"IF('1. Order'!BG268=\"\",\"\",'1. Order'!BG268)","v":""},{"$f":"IF('1. Order'!BH268=\"\",\"\",'1. Order'!BH268)","v":"ZWO"}]
[{"$f":"IF('1. Order'!F269=\"\",\"\",'1. Order'!F269)","v":{"$error":"#N/A"}},{"$f":"IF('1. Order'!G269=\"\",\"\",'1. Order'!G269)","v":""},{"$f":"IF('1. Order'!H269=\"\",\"\",'1. Order'!H269)","v":""},{"$f":"IF('1. Order'!I269=\"\",\"\",'1. Order'!I269)","v":""},{"$f":"IF('1. Order'!J269=\"\",\"\",'1. Order'!J269)","v":""},{"$f":"IF('1. Order'!K269=\"\",\"\",'1. Order'!K269)","v":""},{"$f":"IF('1. Order'!L269=\"\",\"\",'1. Order'!L269)","v":""},{"$f":"IF('1. Order'!M269=\"\",\"\",'1. Order'!M269)","v":""},{"$f":"IF('1. Order'!N269=\"\",\"\",'1. Order'!N269)","v":""},{"$f":"IF('1. Order'!O269=\"\",\"\",'1. Order'!O269)","v":{"$error":"#N/A"}},{"$f":"IF('1. Order'!P269=\"\",\"\",'1. Order'!P269)","v":{"$error":"#N/A"}},{"$f":"IF('1. Order'!Q269=\"\",\"\",'1. Order'!Q269)","v":""},{"$f":"IF('1. Order'!S269=\"\",\"\",'1. Order'!S269)","v":""},{"$f":"IF('1. Order'!T269=\"\",\"\",'1. Order'!T269)","v":""},{"$f":"IF('1. Order'!W269=\"\",\"\",'1. Order'!W269)","v":""},{"$f":"IF('1. Order'!X269=\"\",\"\",'1. Order'!X269)","v":""},{"$f":"IF('1. Order'!Y269=\"\",\"\",'1. Order'!Y269)","v":"EUR"},{"$f":"IF('1. Order'!Z269=\"\",\"\",'1. Order'!Z269)","v":""},{"$f":"IF('1. Order'!AA269=\"\",\"\",'1. Order'!AA269)","v":""},{"$f":"IF('1. Order'!AB269=\"\",\"\",'1. Order'!AB269)","v":""},null,{"$f":"IF('1. Order'!AT269=\"\",\"\",'1. Order'!AT269)","v":""},{"$f":"IF('1. Order'!AU269=\"\",\"\",'1. Order'!AU269)","v":""},null,null,null,null,null,null,null,{"$f":"IF('1. Order'!AY269=\"\",\"\",'1. Order'!AY269)","v":""},{"$f":"IF('1. Order'!AZ269=\"\",\"\",'1. Order'!AZ269)","v":""},{"$f":"IF('1. Order'!BA269=\"\",\"\",'1. Order'!BA269)","v":""},{"$f":"IF('1. Order'!BB269=\"\",\"\",'1. Order'!BB269)","v":""},{"$f":"IF('1. Order'!BD269=\"\",\"\",'1. Order'!BD269)","v":""},{"$f":"IF('1. Order'!BE269=\"\",\"\",'1. Order'!BE269)","v":""},{"$f":"IF('1. Order'!BF269=\"\",\"\",'1. Order'!BF269)","v":""},{"$f":"IF('1. Order'!BG269=\"\",\"\",'1. Order'!BG269)","v":""},{"$f":"IF('1. Order'!BH269=\"\",\"\",'1. Order'!BH269)","v":"ZWO"}]
[{"$f":"IF('1. Order'!F270=\"\",\"\",'1. Order'!F270)","v":{"$error":"#N/A"}},{"$f":"IF('1. Order'!G270=\"\",\"\",'1. Order'!G270)","v":""},{"$f":"IF('1. Order'!H270=\"\",\"\",'1. Order'!H270)","v":""},{"$f":"IF('1. Order'!I270=\"\",\"\",'1. Order'!I270)","v":""},{"$f":"IF('1. Order'!J270=\"\",\"\",'1. Order'!J270)","v":""},{"$f":"IF('1. Order'!K270=\"\",\"\",'1. Order'!K270)","v":""},{"$f":"IF('1. Order'!L270=\"\",\"\",'1. Order'!L270)","v":""},{"$f":"IF('1. Order'!M270=\"\",\"\",'1. Order'!M270)","v":""},{"$f":"IF('1. Order'!N270=\"\",\"\",'1. Order'!N270)","v":""},{"$f":"IF('1. Order'!O270=\"\",\"\",'1. Order'!O270)","v":{"$error":"#N/A"}},{"$f":"IF('1. Order'!P270=\"\",\"\",'1. Order'!P270)","v":{"$error":"#N/A"}},{"$f":"IF('1. Order'!Q270=\"\",\"\",'1. Order'!Q270)","v":""},{"$f":"IF('1. Order'!S270=\"\",\"\",'1. Order'!S270)","v":""},{"$f":"IF('1. Order'!T270=\"\",\"\",'1. Order'!T270)","v":""},{"$f":"IF('1. Order'!W270=\"\",\"\",'1. Order'!W270)","v":""},{"$f":"IF('1. Order'!X270=\"\",\"\",'1. Order'!X270)","v":""},{"$f":"IF('1. Order'!Y270=\"\",\"\",'1. Order'!Y270)","v":"EUR"},{"$f":"IF('1. Order'!Z270=\"\",\"\",'1. Order'!Z270)","v":""},{"$f":"IF('1. Order'!AA270=\"\",\"\",'1. Order'!AA270)","v":""},{"$f":"IF('1. Order'!AB270=\"\",\"\",'1. Order'!AB270)","v":""},null,{"$f":"IF('1. Order'!AT270=\"\",\"\",'1. Order'!AT270)","v":""},{"$f":"IF('1. Order'!AU270=\"\",\"\",'1. Order'!AU270)","v":""},null,null,null,null,null,null,null,{"$f":"IF('1. Order'!AY270=\"\",\"\",'1. Order'!AY270)","v":""},{"$f":"IF('1. Order'!AZ270=\"\",\"\",'1. Order'!AZ270)","v":""},{"$f":"IF('1. Order'!BA270=\"\",\"\",'1. Order'!BA270)","v":""},{"$f":"IF('1. Order'!BB270=\"\",\"\",'1. Order'!BB270)","v":""},{"$f":"IF('1. Order'!BD270=\"\",\"\",'1. Order'!BD270)","v":""},{"$f":"IF('1. Order'!BE270=\"\",\"\",'1. Order'!BE270)","v":""},{"$f":"IF('1. Order'!BF270=\"\",\"\",'1. Order'!BF270)","v":""},{"$f":"IF('1. Order'!BG270=\"\",\"\",'1. Order'!BG270)","v":""},{"$f":"IF('1. Order'!BH270=\"\",\"\",'1. Order'!BH270)","v":"ZWO"}]
[{"$f":"IF('1. Order'!F271=\"\",\"\",'1. Order'!F271)","v":{"$error":"#N/A"}},{"$f":"IF('1. Order'!G271=\"\",\"\",'1. Order'!G271)","v":""},{"$f":"IF('1. Order'!H271=\"\",\"\",'1. Order'!H271)","v":""},{"$f":"IF('1. Order'!I271=\"\",\"\",'1. Order'!I271)","v":""},{"$f":"IF('1. Order'!J271=\"\",\"\",'1. Order'!J271)","v":""},{"$f":"IF('1. Order'!K271=\"\",\"\",'1. Order'!K271)","v":""},{"$f":"IF('1. Order'!L271=\"\",\"\",'1. Order'!L271)","v":""},{"$f":"IF('1. Order'!M271=\"\",\"\",'1. Order'!M271)","v":""},{"$f":"IF('1. Order'!N271=\"\",\"\",'1. Order'!N271)","v":""},{"$f":"IF('1. Order'!O271=\"\",\"\",'1. Order'!O271)","v":{"$error":"#N/A"}},{"$f":"IF('1. Order'!P271=\"\",\"\",'1. Order'!P271)","v":{"$error":"#N/A"}},{"$f":"IF('1. Order'!Q271=\"\",\"\",'1. Order'!Q271)","v":""},{"$f":"IF('1. Order'!S271=\"\",\"\",'1. Order'!S271)","v":""},{"$f":"IF('1. Order'!T271=\"\",\"\",'1. Order'!T271)","v":""},{"$f":"IF('1. Order'!W271=\"\",\"\",'1. Order'!W271)","v":""},{"$f":"IF('1. Order'!X271=\"\",\"\",'1. Order'!X271)","v":""},{"$f":"IF('1. Order'!Y271=\"\",\"\",'1. Order'!Y271)","v":"EUR"},{"$f":"IF('1. Order'!Z271=\"\",\"\",'1. Order'!Z271)","v":""},{"$f":"IF('1. Order'!AA271=\"\",\"\",'1. Order'!AA271)","v":""},{"$f":"IF('1. Order'!AB271=\"\",\"\",'1. Order'!AB271)","v":""},null,{"$f":"IF('1. Order'!AT271=\"\",\"\",'1. Order'!AT271)","v":""},{"$f":"IF('1. Order'!AU271=\"\",\"\",'1. Order'!AU271)","v":""},null,null,null,null,null,null,null,{"$f":"IF('1. Order'!AY271=\"\",\"\",'1. Order'!AY271)","v":""},{"$f":"IF('1. Order'!AZ271=\"\",\"\",'1. Order'!AZ271)","v":""},{"$f":"IF('1. Order'!BA271=\"\",\"\",'1. Order'!BA271)","v":""},{"$f":"IF('1. Order'!BB271=\"\",\"\",'1. Order'!BB271)","v":""},{"$f":"IF('1. Order'!BD271=\"\",\"\",'1. Order'!BD271)","v":""},{"$f":"IF('1. Order'!BE271=\"\",\"\",'1. Order'!BE271)","v":""},{"$f":"IF('1. Order'!BF271=\"\",\"\",'1. Order'!BF271)","v":""},{"$f":"IF('1. Order'!BG271=\"\",\"\",'1. Order'!BG271)","v":""},{"$f":"IF('1. Order'!BH271=\"\",\"\",'1. Order'!BH271)","v":"ZWO"}]
[{"$f":"IF('1. Order'!F272=\"\",\"\",'1. Order'!F272)","v":{"$error":"#N/A"}},{"$f":"IF('1. Order'!G272=\"\",\"\",'1. Order'!G272)","v":""},{"$f":"IF('1. Order'!H272=\"\",\"\",'1. Order'!H272)","v":""},{"$f":"IF('1. Order'!I272=\"\",\"\",'1. Order'!I272)","v":""},{"$f":"IF('1. Order'!J272=\"\",\"\",'1. Order'!J272)","v":""},{"$f":"IF('1. Order'!K272=\"\",\"\",'1. Order'!K272)","v":""},{"$f":"IF('1. Order'!L272=\"\",\"\",'1. Order'!L272)","v":""},{"$f":"IF('1. Order'!M272=\"\",\"\",'1. Order'!M272)","v":""},{"$f":"IF('1. Order'!N272=\"\",\"\",'1. Order'!N272)","v":""},{"$f":"IF('1. Order'!O272=\"\",\"\",'1. Order'!O272)","v":{"$error":"#N/A"}},{"$f":"IF('1. Order'!P272=\"\",\"\",'1. Order'!P272)","v":{"$error":"#N/A"}},{"$f":"IF('1. Order'!Q272=\"\",\"\",'1. Order'!Q272)","v":""},{"$f":"IF('1. Order'!S272=\"\",\"\",'1. Order'!S272)","v":""},{"$f":"IF('1. Order'!T272=\"\",\"\",'1. Order'!T272)","v":""},{"$f":"IF('1. Order'!W272=\"\",\"\",'1. Order'!W272)","v":""},{"$f":"IF('1. Order'!X272=\"\",\"\",'1. Order'!X272)","v":""},{"$f":"IF('1. Order'!Y272=\"\",\"\",'1. Order'!Y272)","v":"EUR"},{"$f":"IF('1. Order'!Z272=\"\",\"\",'1. Order'!Z272)","v":""},{"$f":"IF('1. Order'!AA272=\"\",\"\",'1. Order'!AA272)","v":""},{"$f":"IF('1. Order'!AB272=\"\",\"\",'1. Order'!AB272)","v":""},null,{"$f":"IF('1. Order'!AT272=\"\",\"\",'1. Order'!AT272)","v":""},{"$f":"IF('1. Order'!AU272=\"\",\"\",'1. Order'!AU272)","v":""},null,null,null,null,null,null,null,{"$f":"IF('1. Order'!AY272=\"\",\"\",'1. Order'!AY272)","v":""},{"$f":"IF('1. Order'!AZ272=\"\",\"\",'1. Order'!AZ272)","v":""},{"$f":"IF('1. Order'!BA272=\"\",\"\",'1. Order'!BA272)","v":""},{"$f":"IF('1. Order'!BB272=\"\",\"\",'1. Order'!BB272)","v":""},{"$f":"IF('1. Order'!BD272=\"\",\"\",'1. Order'!BD272)","v":""},{"$f":"IF('1. Order'!BE272=\"\",\"\",'1. Order'!BE272)","v":""},{"$f":"IF('1. Order'!BF272=\"\",\"\",'1. Order'!BF272)","v":""},{"$f":"IF('1. Order'!BG272=\"\",\"\",'1. Order'!BG272)","v":""},{"$f":"IF('1. Order'!BH272=\"\",\"\",'1. Order'!BH272)","v":"ZWO"}]
[{"$f":"IF('1. Order'!F273=\"\",\"\",'1. Order'!F273)","v":{"$error":"#N/A"}},{"$f":"IF('1. Order'!G273=\"\",\"\",'1. Order'!G273)","v":""},{"$f":"IF('1. Order'!H273=\"\",\"\",'1. Order'!H273)","v":""},{"$f":"IF('1. Order'!I273=\"\",\"\",'1. Order'!I273)","v":""},{"$f":"IF('1. Order'!J273=\"\",\"\",'1. Order'!J273)","v":""},{"$f":"IF('1. Order'!K273=\"\",\"\",'1. Order'!K273)","v":""},{"$f":"IF('1. Order'!L273=\"\",\"\",'1. Order'!L273)","v":""},{"$f":"IF('1. Order'!M273=\"\",\"\",'1. Order'!M273)","v":""},{"$f":"IF('1. Order'!N273=\"\",\"\",'1. Order'!N273)","v":""},{"$f":"IF('1. Order'!O273=\"\",\"\",'1. Order'!O273)","v":{"$error":"#N/A"}},{"$f":"IF('1. Order'!P273=\"\",\"\",'1. Order'!P273)","v":{"$error":"#N/A"}},{"$f":"IF('1. Order'!Q273=\"\",\"\",'1. Order'!Q273)","v":""},{"$f":"IF('1. Order'!S273=\"\",\"\",'1. Order'!S273)","v":""},{"$f":"IF('1. Order'!T273=\"\",\"\",'1. Order'!T273)","v":""},{"$f":"IF('1. Order'!W273=\"\",\"\",'1. Order'!W273)","v":""},{"$f":"IF('1. Order'!X273=\"\",\"\",'1. Order'!X273)","v":""},{"$f":"IF('1. Order'!Y273=\"\",\"\",'1. Order'!Y273)","v":"EUR"},{"$f":"IF('1. Order'!Z273=\"\",\"\",'1. Order'!Z273)","v":""},{"$f":"IF('1. Order'!AA273=\"\",\"\",'1. Order'!AA273)","v":""},{"$f":"IF('1. Order'!AB273=\"\",\"\",'1. Order'!AB273)","v":""},null,{"$f":"IF('1. Order'!AT273=\"\",\"\",'1. Order'!AT273)","v":""},{"$f":"IF('1. Order'!AU273=\"\",\"\",'1. Order'!AU273)","v":""},null,null,null,null,null,null,null,{"$f":"IF('1. Order'!AY273=\"\",\"\",'1. Order'!AY273)","v":""},{"$f":"IF('1. Order'!AZ273=\"\",\"\",'1. Order'!AZ273)","v":""},{"$f":"IF('1. Order'!BA273=\"\",\"\",'1. Order'!BA273)","v":""},{"$f":"IF('1. Order'!BB273=\"\",\"\",'1. Order'!BB273)","v":""},{"$f":"IF('1. Order'!BD273=\"\",\"\",'1. Order'!BD273)","v":""},{"$f":"IF('1. Order'!BE273=\"\",\"\",'1. Order'!BE273)","v":""},{"$f":"IF('1. Order'!BF273=\"\",\"\",'1. Order'!BF273)","v":""},{"$f":"IF('1. Order'!BG273=\"\",\"\",'1. Order'!BG273)","v":""},{"$f":"IF('1. Order'!BH273=\"\",\"\",'1. Order'!BH273)","v":"ZWO"}]
[{"$f":"IF('1. Order'!F274=\"\",\"\",'1. Order'!F274)","v":{"$error":"#N/A"}},{"$f":"IF('1. Order'!G274=\"\",\"\",'1. Order'!G274)","v":""},{"$f":"IF('1. Order'!H274=\"\",\"\",'1. Order'!H274)","v":""},{"$f":"IF('1. Order'!I274=\"\",\"\",'1. Order'!I274)","v":""},{"$f":"IF('1. Order'!J274=\"\",\"\",'1. Order'!J274)","v":""},{"$f":"IF('1. Order'!K274=\"\",\"\",'1. Order'!K274)","v":""},{"$f":"IF('1. Order'!L274=\"\",\"\",'1. Order'!L274)","v":""},{"$f":"IF('1. Order'!M274=\"\",\"\",'1. Order'!M274)","v":""},{"$f":"IF('1. Order'!N274=\"\",\"\",'1. Order'!N274)","v":""},{"$f":"IF('1. Order'!O274=\"\",\"\",'1. Order'!O274)","v":{"$error":"#N/A"}},{"$f":"IF('1. Order'!P274=\"\",\"\",'1. Order'!P274)","v":{"$error":"#N/A"}},{"$f":"IF('1. Order'!Q274=\"\",\"\",'1. Order'!Q274)","v":""},{"$f":"IF('1. Order'!S274=\"\",\"\",'1. Order'!S274)","v":""},{"$f":"IF('1. Order'!T274=\"\",\"\",'1. Order'!T274)","v":""},{"$f":"IF('1. Order'!W274=\"\",\"\",'1. Order'!W274)","v":""},{"$f":"IF('1. Order'!X274=\"\",\"\",'1. Order'!X274)","v":""},{"$f":"IF('1. Order'!Y274=\"\",\"\",'1. Order'!Y274)","v":"EUR"},{"$f":"IF('1. Order'!Z274=\"\",\"\",'1. Order'!Z274)","v":""},{"$f":"IF('1. Order'!AA274=\"\",\"\",'1. Order'!AA274)","v":""},{"$f":"IF('1. Order'!AB274=\"\",\"\",'1. Order'!AB274)","v":""},null,{"$f":"IF('1. Order'!AT274=\"\",\"\",'1. Order'!AT274)","v":""},{"$f":"IF('1. Order'!AU274=\"\",\"\",'1. Order'!AU274)","v":""},null,null,null,null,null,null,null,{"$f":"IF('1. Order'!AY274=\"\",\"\",'1. Order'!AY274)","v":""},{"$f":"IF('1. Order'!AZ274=\"\",\"\",'1. Order'!AZ274)","v":""},{"$f":"IF('1. Order'!BA274=\"\",\"\",'1. Order'!BA274)","v":""},{"$f":"IF('1. Order'!BB274=\"\",\"\",'1. Order'!BB274)","v":""},{"$f":"IF('1. Order'!BD274=\"\",\"\",'1. Order'!BD274)","v":""},{"$f":"IF('1. Order'!BE274=\"\",\"\",'1. Order'!BE274)","v":""},{"$f":"IF('1. Order'!BF274=\"\",\"\",'1. Order'!BF274)","v":""},{"$f":"IF('1. Order'!BG274=\"\",\"\",'1. Order'!BG274)","v":""},{"$f":"IF('1. Order'!BH274=\"\",\"\",'1. Order'!BH274)","v":"ZWO"}]
[{"$f":"IF('1. Order'!F275=\"\",\"\",'1. Order'!F275)","v":{"$error":"#N/A"}},{"$f":"IF('1. Order'!G275=\"\",\"\",'1. Order'!G275)","v":""},{"$f":"IF('1. Order'!H275=\"\",\"\",'1. Order'!H275)","v":""},{"$f":"IF('1. Order'!I275=\"\",\"\",'1. Order'!I275)","v":""},{"$f":"IF('1. Order'!J275=\"\",\"\",'1. Order'!J275)","v":""},{"$f":"IF('1. Order'!K275=\"\",\"\",'1. Order'!K275)","v":""},{"$f":"IF('1. Order'!L275=\"\",\"\",'1. Order'!L275)","v":""},{"$f":"IF('1. Order'!M275=\"\",\"\",'1. Order'!M275)","v":""},{"$f":"IF('1. Order'!N275=\"\",\"\",'1. Order'!N275)","v":""},{"$f":"IF('1. Order'!O275=\"\",\"\",'1. Order'!O275)","v":{"$error":"#N/A"}},{"$f":"IF('1. Order'!P275=\"\",\"\",'1. Order'!P275)","v":{"$error":"#N/A"}},{"$f":"IF('1. Order'!Q275=\"\",\"\",'1. Order'!Q275)","v":""},{"$f":"IF('1. Order'!S275=\"\",\"\",'1. Order'!S275)","v":""},{"$f":"IF('1. Order'!T275=\"\",\"\",'1. Order'!T275)","v":""},{"$f":"IF('1. Order'!W275=\"\",\"\",'1. Order'!W275)","v":""},{"$f":"IF('1. Order'!X275=\"\",\"\",'1. Order'!X275)","v":""},{"$f":"IF('1. Order'!Y275=\"\",\"\",'1. Order'!Y275)","v":"EUR"},{"$f":"IF('1. Order'!Z275=\"\",\"\",'1. Order'!Z275)","v":""},{"$f":"IF('1. Order'!AA275=\"\",\"\",'1. Order'!AA275)","v":""},{"$f":"IF('1. Order'!AB275=\"\",\"\",'1. Order'!AB275)","v":""},null,{"$f":"IF('1. Order'!AT275=\"\",\"\",'1. Order'!AT275)","v":""},{"$f":"IF('1. Order'!AU275=\"\",\"\",'1. Order'!AU275)","v":""},null,null,null,null,null,null,null,{"$f":"IF('1. Order'!AY275=\"\",\"\",'1. Order'!AY275)","v":""},{"$f":"IF('1. Order'!AZ275=\"\",\"\",'1. Order'!AZ275)","v":""},{"$f":"IF('1. Order'!BA275=\"\",\"\",'1. Order'!BA275)","v":""},{"$f":"IF('1. Order'!BB275=\"\",\"\",'1. Order'!BB275)","v":""},{"$f":"IF('1. Order'!BD275=\"\",\"\",'1. Order'!BD275)","v":""},{"$f":"IF('1. Order'!BE275=\"\",\"\",'1. Order'!BE275)","v":""},{"$f":"IF('1. Order'!BF275=\"\",\"\",'1. Order'!BF275)","v":""},{"$f":"IF('1. Order'!BG275=\"\",\"\",'1. Order'!BG275)","v":""},{"$f":"IF('1. Order'!BH275=\"\",\"\",'1. Order'!BH275)","v":"ZWO"}]
[{"$f":"IF('1. Order'!F276=\"\",\"\",'1. Order'!F276)","v":{"$error":"#N/A"}},{"$f":"IF('1. Order'!G276=\"\",\"\",'1. Order'!G276)","v":""},{"$f":"IF('1. Order'!H276=\"\",\"\",'1. Order'!H276)","v":""},{"$f":"IF('1. Order'!I276=\"\",\"\",'1. Order'!I276)","v":""},{"$f":"IF('1. Order'!J276=\"\",\"\",'1. Order'!J276)","v":""},{"$f":"IF('1. Order'!K276=\"\",\"\",'1. Order'!K276)","v":""},{"$f":"IF('1. Order'!L276=\"\",\"\",'1. Order'!L276)","v":""},{"$f":"IF('1. Order'!M276=\"\",\"\",'1. Order'!M276)","v":""},{"$f":"IF('1. Order'!N276=\"\",\"\",'1. Order'!N276)","v":""},{"$f":"IF('1. Order'!O276=\"\",\"\",'1. Order'!O276)","v":{"$error":"#N/A"}},{"$f":"IF('1. Order'!P276=\"\",\"\",'1. Order'!P276)","v":{"$error":"#N/A"}},{"$f":"IF('1. Order'!Q276=\"\",\"\",'1. Order'!Q276)","v":""},{"$f":"IF('1. Order'!S276=\"\",\"\",'1. Order'!S276)","v":""},{"$f":"IF('1. Order'!T276=\"\",\"\",'1. Order'!T276)","v":""},{"$f":"IF('1. Order'!W276=\"\",\"\",'1. Order'!W276)","v":""},{"$f":"IF('1. Order'!X276=\"\",\"\",'1. Order'!X276)","v":""},{"$f":"IF('1. Order'!Y276=\"\",\"\",'1. Order'!Y276)","v":"EUR"},{"$f":"IF('1. Order'!Z276=\"\",\"\",'1. Order'!Z276)","v":""},{"$f":"IF('1. Order'!AA276=\"\",\"\",'1. Order'!AA276)","v":""},{"$f":"IF('1. Order'!AB276=\"\",\"\",'1. Order'!AB276)","v":""},null,{"$f":"IF('1. Order'!AT276=\"\",\"\",'1. Order'!AT276)","v":""},{"$f":"IF('1. Order'!AU276=\"\",\"\",'1. Order'!AU276)","v":""},null,null,null,null,null,null,null,{"$f":"IF('1. Order'!AY276=\"\",\"\",'1. Order'!AY276)","v":""},{"$f":"IF('1. Order'!AZ276=\"\",\"\",'1. Order'!AZ276)","v":""},{"$f":"IF('1. Order'!BA276=\"\",\"\",'1. Order'!BA276)","v":""},{"$f":"IF('1. Order'!BB276=\"\",\"\",'1. Order'!BB276)","v":""},{"$f":"IF('1. Order'!BD276=\"\",\"\",'1. Order'!BD276)","v":""},{"$f":"IF('1. Order'!BE276=\"\",\"\",'1. Order'!BE276)","v":""},{"$f":"IF('1. Order'!BF276=\"\",\"\",'1. Order'!BF276)","v":""},{"$f":"IF('1. Order'!BG276=\"\",\"\",'1. Order'!BG276)","v":""},{"$f":"IF('1. Order'!BH276=\"\",\"\",'1. Order'!BH276)","v":"ZWO"}]
[{"$f":"IF('1. Order'!F277=\"\",\"\",'1. Order'!F277)","v":{"$error":"#N/A"}},{"$f":"IF('1. Order'!G277=\"\",\"\",'1. Order'!G277)","v":""},{"$f":"IF('1. Order'!H277=\"\",\"\",'1. Order'!H277)","v":""},{"$f":"IF('1. Order'!I277=\"\",\"\",'1. Order'!I277)","v":""},{"$f":"IF('1. Order'!J277=\"\",\"\",'1. Order'!J277)","v":""},{"$f":"IF('1. Order'!K277=\"\",\"\",'1. Order'!K277)","v":""},{"$f":"IF('1. Order'!L277=\"\",\"\",'1. Order'!L277)","v":""},{"$f":"IF('1. Order'!M277=\"\",\"\",'1. Order'!M277)","v":""},{"$f":"IF('1. Order'!N277=\"\",\"\",'1. Order'!N277)","v":""},{"$f":"IF('1. Order'!O277=\"\",\"\",'1. Order'!O277)","v":{"$error":"#N/A"}},{"$f":"IF('1. Order'!P277=\"\",\"\",'1. Order'!P277)","v":{"$error":"#N/A"}},{"$f":"IF('1. Order'!Q277=\"\",\"\",'1. Order'!Q277)","v":""},{"$f":"IF('1. Order'!S277=\"\",\"\",'1. Order'!S277)","v":""},{"$f":"IF('1. Order'!T277=\"\",\"\",'1. Order'!T277)","v":""},{"$f":"IF('1. Order'!W277=\"\",\"\",'1. Order'!W277)","v":""},{"$f":"IF('1. Order'!X277=\"\",\"\",'1. Order'!X277)","v":""},{"$f":"IF('1. Order'!Y277=\"\",\"\",'1. Order'!Y277)","v":"EUR"},{"$f":"IF('1. Order'!Z277=\"\",\"\",'1. Order'!Z277)","v":""},{"$f":"IF('1. Order'!AA277=\"\",\"\",'1. Order'!AA277)","v":""},{"$f":"IF('1. Order'!AB277=\"\",\"\",'1. Order'!AB277)","v":""},null,{"$f":"IF('1. Order'!AT277=\"\",\"\",'1. Order'!AT277)","v":""},{"$f":"IF('1. Order'!AU277=\"\",\"\",'1. Order'!AU277)","v":""},null,null,null,null,null,null,null,{"$f":"IF('1. Order'!AY277=\"\",\"\",'1. Order'!AY277)","v":""},{"$f":"IF('1. Order'!AZ277=\"\",\"\",'1. Order'!AZ277)","v":""},{"$f":"IF('1. Order'!BA277=\"\",\"\",'1. Order'!BA277)","v":""},{"$f":"IF('1. Order'!BB277=\"\",\"\",'1. Order'!BB277)","v":""},{"$f":"IF('1. Order'!BD277=\"\",\"\",'1. Order'!BD277)","v":""},{"$f":"IF('1. Order'!BE277=\"\",\"\",'1. Order'!BE277)","v":""},{"$f":"IF('1. Order'!BF277=\"\",\"\",'1. Order'!BF277)","v":""},{"$f":"IF('1. Order'!BG277=\"\",\"\",'1. Order'!BG277)","v":""},{"$f":"IF('1. Order'!BH277=\"\",\"\",'1. Order'!BH277)","v":"ZWO"}]
[{"$f":"IF('1. Order'!F278=\"\",\"\",'1. Order'!F278)","v":{"$error":"#N/A"}},{"$f":"IF('1. Order'!G278=\"\",\"\",'1. Order'!G278)","v":""},{"$f":"IF('1. Order'!H278=\"\",\"\",'1. Order'!H278)","v":""},{"$f":"IF('1. Order'!I278=\"\",\"\",'1. Order'!I278)","v":""},{"$f":"IF('1. Order'!J278=\"\",\"\",'1. Order'!J278)","v":""},{"$f":"IF('1. Order'!K278=\"\",\"\",'1. Order'!K278)","v":""},{"$f":"IF('1. Order'!L278=\"\",\"\",'1. Order'!L278)","v":""},{"$f":"IF('1. Order'!M278=\"\",\"\",'1. Order'!M278)","v":""},{"$f":"IF('1. Order'!N278=\"\",\"\",'1. Order'!N278)","v":""},{"$f":"IF('1. Order'!O278=\"\",\"\",'1. Order'!O278)","v":{"$error":"#N/A"}},{"$f":"IF('1. Order'!P278=\"\",\"\",'1. Order'!P278)","v":{"$error":"#N/A"}},{"$f":"IF('1. Order'!Q278=\"\",\"\",'1. Order'!Q278)","v":""},{"$f":"IF('1. Order'!S278=\"\",\"\",'1. Order'!S278)","v":""},{"$f":"IF('1. Order'!T278=\"\",\"\",'1. Order'!T278)","v":""},{"$f":"IF('1. Order'!W278=\"\",\"\",'1. Order'!W278)","v":""},{"$f":"IF('1. Order'!X278=\"\",\"\",'1. Order'!X278)","v":""},{"$f":"IF('1. Order'!Y278=\"\",\"\",'1. Order'!Y278)","v":"EUR"},{"$f":"IF('1. Order'!Z278=\"\",\"\",'1. Order'!Z278)","v":""},{"$f":"IF('1. Order'!AA278=\"\",\"\",'1. Order'!AA278)","v":""},{"$f":"IF('1. Order'!AB278=\"\",\"\",'1. Order'!AB278)","v":""},null,{"$f":"IF('1. Order'!AT278=\"\",\"\",'1. Order'!AT278)","v":""},{"$f":"IF('1. Order'!AU278=\"\",\"\",'1. Order'!AU278)","v":""},null,null,null,null,null,null,null,{"$f":"IF('1. Order'!AY278=\"\",\"\",'1. Order'!AY278)","v":""},{"$f":"IF('1. Order'!AZ278=\"\",\"\",'1. Order'!AZ278)","v":""},{"$f":"IF('1. Order'!BA278=\"\",\"\",'1. Order'!BA278)","v":""},{"$f":"IF('1. Order'!BB278=\"\",\"\",'1. Order'!BB278)","v":""},{"$f":"IF('1. Order'!BD278=\"\",\"\",'1. Order'!BD278)","v":""},{"$f":"IF('1. Order'!BE278=\"\",\"\",'1. Order'!BE278)","v":""},{"$f":"IF('1. Order'!BF278=\"\",\"\",'1. Order'!BF278)","v":""},{"$f":"IF('1. Order'!BG278=\"\",\"\",'1. Order'!BG278)","v":""},{"$f":"IF('1. Order'!BH278=\"\",\"\",'1. Order'!BH278)","v":"ZWO"}]
[{"$f":"IF('1. Order'!F279=\"\",\"\",'1. Order'!F279)","v":{"$error":"#N/A"}},{"$f":"IF('1. Order'!G279=\"\",\"\",'1. Order'!G279)","v":""},{"$f":"IF('1. Order'!H279=\"\",\"\",'1. Order'!H279)","v":""},{"$f":"IF('1. Order'!I279=\"\",\"\",'1. Order'!I279)","v":""},{"$f":"IF('1. Order'!J279=\"\",\"\",'1. Order'!J279)","v":""},{"$f":"IF('1. Order'!K279=\"\",\"\",'1. Order'!K279)","v":""},{"$f":"IF('1. Order'!L279=\"\",\"\",'1. Order'!L279)","v":""},{"$f":"IF('1. Order'!M279=\"\",\"\",'1. Order'!M279)","v":""},{"$f":"IF('1. Order'!N279=\"\",\"\",'1. Order'!N279)","v":""},{"$f":"IF('1. Order'!O279=\"\",\"\",'1. Order'!O279)","v":{"$error":"#N/A"}},{"$f":"IF('1. Order'!P279=\"\",\"\",'1. Order'!P279)","v":{"$error":"#N/A"}},{"$f":"IF('1. Order'!Q279=\"\",\"\",'1. Order'!Q279)","v":""},{"$f":"IF('1. Order'!S279=\"\",\"\",'1. Order'!S279)","v":""},{"$f":"IF('1. Order'!T279=\"\",\"\",'1. Order'!T279)","v":""},{"$f":"IF('1. Order'!W279=\"\",\"\",'1. Order'!W279)","v":""},{"$f":"IF('1. Order'!X279=\"\",\"\",'1. Order'!X279)","v":""},{"$f":"IF('1. Order'!Y279=\"\",\"\",'1. Order'!Y279)","v":"EUR"},{"$f":"IF('1. Order'!Z279=\"\",\"\",'1. Order'!Z279)","v":""},{"$f":"IF('1. Order'!AA279=\"\",\"\",'1. Order'!AA279)","v":""},{"$f":"IF('1. Order'!AB279=\"\",\"\",'1. Order'!AB279)","v":""},null,{"$f":"IF('1. Order'!AT279=\"\",\"\",'1. Order'!AT279)","v":""},{"$f":"IF('1. Order'!AU279=\"\",\"\",'1. Order'!AU279)","v":""},null,null,null,null,null,null,null,{"$f":"IF('1. Order'!AY279=\"\",\"\",'1. Order'!AY279)","v":""},{"$f":"IF('1. Order'!AZ279=\"\",\"\",'1. Order'!AZ279)","v":""},{"$f":"IF('1. Order'!BA279=\"\",\"\",'1. Order'!BA279)","v":""},{"$f":"IF('1. Order'!BB279=\"\",\"\",'1. Order'!BB279)","v":""},{"$f":"IF('1. Order'!BD279=\"\",\"\",'1. Order'!BD279)","v":""},{"$f":"IF('1. Order'!BE279=\"\",\"\",'1. Order'!BE279)","v":""},{"$f":"IF('1. Order'!BF279=\"\",\"\",'1. Order'!BF279)","v":""},{"$f":"IF('1. Order'!BG279=\"\",\"\",'1. Order'!BG279)","v":""},{"$f":"IF('1. Order'!BH279=\"\",\"\",'1. Order'!BH279)","v":"ZWO"}]
[{"$f":"IF('1. Order'!F280=\"\",\"\",'1. Order'!F280)","v":{"$error":"#N/A"}},{"$f":"IF('1. Order'!G280=\"\",\"\",'1. Order'!G280)","v":""},{"$f":"IF('1. Order'!H280=\"\",\"\",'1. Order'!H280)","v":""},{"$f":"IF('1. Order'!I280=\"\",\"\",'1. Order'!I280)","v":""},{"$f":"IF('1. Order'!J280=\"\",\"\",'1. Order'!J280)","v":""},{"$f":"IF('1. Order'!K280=\"\",\"\",'1. Order'!K280)","v":""},{"$f":"IF('1. Order'!L280=\"\",\"\",'1. Order'!L280)","v":""},{"$f":"IF('1. Order'!M280=\"\",\"\",'1. Order'!M280)","v":""},{"$f":"IF('1. Order'!N280=\"\",\"\",'1. Order'!N280)","v":""},{"$f":"IF('1. Order'!O280=\"\",\"\",'1. Order'!O280)","v":{"$error":"#N/A"}},{"$f":"IF('1. Order'!P280=\"\",\"\",'1. Order'!P280)","v":{"$error":"#N/A"}},{"$f":"IF('1. Order'!Q280=\"\",\"\",'1. Order'!Q280)","v":""},{"$f":"IF('1. Order'!S280=\"\",\"\",'1. Order'!S280)","v":""},{"$f":"IF('1. Order'!T280=\"\",\"\",'1. Order'!T280)","v":""},{"$f":"IF('1. Order'!W280=\"\",\"\",'1. Order'!W280)","v":""},{"$f":"IF('1. Order'!X280=\"\",\"\",'1. Order'!X280)","v":""},{"$f":"IF('1. Order'!Y280=\"\",\"\",'1. Order'!Y280)","v":"EUR"},{"$f":"IF('1. Order'!Z280=\"\",\"\",'1. Order'!Z280)","v":""},{"$f":"IF('1. Order'!AA280=\"\",\"\",'1. Order'!AA280)","v":""},{"$f":"IF('1. Order'!AB280=\"\",\"\",'1. Order'!AB280)","v":""},null,{"$f":"IF('1. Order'!AT280=\"\",\"\",'1. Order'!AT280)","v":""},{"$f":"IF('1. Order'!AU280=\"\",\"\",'1. Order'!AU280)","v":""},null,null,null,null,null,null,null,{"$f":"IF('1. Order'!AY280=\"\",\"\",'1. Order'!AY280)","v":""},{"$f":"IF('1. Order'!AZ280=\"\",\"\",'1. Order'!AZ280)","v":""},{"$f":"IF('1. Order'!BA280=\"\",\"\",'1. Order'!BA280)","v":""},{"$f":"IF('1. Order'!BB280=\"\",\"\",'1. Order'!BB280)","v":""},{"$f":"IF('1. Order'!BD280=\"\",\"\",'1. Order'!BD280)","v":""},{"$f":"IF('1. Order'!BE280=\"\",\"\",'1. Order'!BE280)","v":""},{"$f":"IF('1. Order'!BF280=\"\",\"\",'1. Order'!BF280)","v":""},{"$f":"IF('1. Order'!BG280=\"\",\"\",'1. Order'!BG280)","v":""},{"$f":"IF('1. Order'!BH280=\"\",\"\",'1. Order'!BH280)","v":"ZWO"}]
[{"$f":"IF('1. Order'!F281=\"\",\"\",'1. Order'!F281)","v":{"$error":"#N/A"}},{"$f":"IF('1. Order'!G281=\"\",\"\",'1. Order'!G281)","v":""},{"$f":"IF('1. Order'!H281=\"\",\"\",'1. Order'!H281)","v":""},{"$f":"IF('1. Order'!I281=\"\",\"\",'1. Order'!I281)","v":""},{"$f":"IF('1. Order'!J281=\"\",\"\",'1. Order'!J281)","v":""},{"$f":"IF('1. Order'!K281=\"\",\"\",'1. Order'!K281)","v":""},{"$f":"IF('1. Order'!L281=\"\",\"\",'1. Order'!L281)","v":""},{"$f":"IF('1. Order'!M281=\"\",\"\",'1. Order'!M281)","v":""},{"$f":"IF('1. Order'!N281=\"\",\"\",'1. Order'!N281)","v":""},{"$f":"IF('1. Order'!O281=\"\",\"\",'1. Order'!O281)","v":{"$error":"#N/A"}},{"$f":"IF('1. Order'!P281=\"\",\"\",'1. Order'!P281)","v":{"$error":"#N/A"}},{"$f":"IF('1. Order'!Q281=\"\",\"\",'1. Order'!Q281)","v":""},{"$f":"IF('1. Order'!S281=\"\",\"\",'1. Order'!S281)","v":""},{"$f":"IF('1. Order'!T281=\"\",\"\",'1. Order'!T281)","v":""},{"$f":"IF('1. Order'!W281=\"\",\"\",'1. Order'!W281)","v":""},{"$f":"IF('1. Order'!X281=\"\",\"\",'1. Order'!X281)","v":""},{"$f":"IF('1. Order'!Y281=\"\",\"\",'1. Order'!Y281)","v":"EUR"},{"$f":"IF('1. Order'!Z281=\"\",\"\",'1. Order'!Z281)","v":""},{"$f":"IF('1. Order'!AA281=\"\",\"\",'1. Order'!AA281)","v":""},{"$f":"IF('1. Order'!AB281=\"\",\"\",'1. Order'!AB281)","v":""},null,{"$f":"IF('1. Order'!AT281=\"\",\"\",'1. Order'!AT281)","v":""},{"$f":"IF('1. Order'!AU281=\"\",\"\",'1. Order'!AU281)","v":""},null,null,null,null,null,null,null,{"$f":"IF('1. Order'!AY281=\"\",\"\",'1. Order'!AY281)","v":""},{"$f":"IF('1. Order'!AZ281=\"\",\"\",'1. Order'!AZ281)","v":""},{"$f":"IF('1. Order'!BA281=\"\",\"\",'1. Order'!BA281)","v":""},{"$f":"IF('1. Order'!BB281=\"\",\"\",'1. Order'!BB281)","v":""},{"$f":"IF('1. Order'!BD281=\"\",\"\",'1. Order'!BD281)","v":""},{"$f":"IF('1. Order'!BE281=\"\",\"\",'1. Order'!BE281)","v":""},{"$f":"IF('1. Order'!BF281=\"\",\"\",'1. Order'!BF281)","v":""},{"$f":"IF('1. Order'!BG281=\"\",\"\",'1. Order'!BG281)","v":""},{"$f":"IF('1. Order'!BH281=\"\",\"\",'1. Order'!BH281)","v":"ZWO"}]
[{"$f":"IF('1. Order'!F282=\"\",\"\",'1. Order'!F282)","v":{"$error":"#N/A"}},{"$f":"IF('1. Order'!G282=\"\",\"\",'1. Order'!G282)","v":""},{"$f":"IF('1. Order'!H282=\"\",\"\",'1. Order'!H282)","v":""},{"$f":"IF('1. Order'!I282=\"\",\"\",'1. Order'!I282)","v":""},{"$f":"IF('1. Order'!J282=\"\",\"\",'1. Order'!J282)","v":""},{"$f":"IF('1. Order'!K282=\"\",\"\",'1. Order'!K282)","v":""},{"$f":"IF('1. Order'!L282=\"\",\"\",'1. Order'!L282)","v":""},{"$f":"IF('1. Order'!M282=\"\",\"\",'1. Order'!M282)","v":""},{"$f":"IF('1. Order'!N282=\"\",\"\",'1. Order'!N282)","v":""},{"$f":"IF('1. Order'!O282=\"\",\"\",'1. Order'!O282)","v":{"$error":"#N/A"}},{"$f":"IF('1. Order'!P282=\"\",\"\",'1. Order'!P282)","v":{"$error":"#N/A"}},{"$f":"IF('1. Order'!Q282=\"\",\"\",'1. Order'!Q282)","v":""},{"$f":"IF('1. Order'!S282=\"\",\"\",'1. Order'!S282)","v":""},{"$f":"IF('1. Order'!T282=\"\",\"\",'1. Order'!T282)","v":""},{"$f":"IF('1. Order'!W282=\"\",\"\",'1. Order'!W282)","v":""},{"$f":"IF('1. Order'!X282=\"\",\"\",'1. Order'!X282)","v":""},{"$f":"IF('1. Order'!Y282=\"\",\"\",'1. Order'!Y282)","v":"EUR"},{"$f":"IF('1. Order'!Z282=\"\",\"\",'1. Order'!Z282)","v":""},{"$f":"IF('1. Order'!AA282=\"\",\"\",'1. Order'!AA282)","v":""},{"$f":"IF('1. Order'!AB282=\"\",\"\",'1. Order'!AB282)","v":""},null,{"$f":"IF('1. Order'!AT282=\"\",\"\",'1. Order'!AT282)","v":""},{"$f":"IF('1. Order'!AU282=\"\",\"\",'1. Order'!AU282)","v":""},null,null,null,null,null,null,null,{"$f":"IF('1. Order'!AY282=\"\",\"\",'1. Order'!AY282)","v":""},{"$f":"IF('1. Order'!AZ282=\"\",\"\",'1. Order'!AZ282)","v":""},{"$f":"IF('1. Order'!BA282=\"\",\"\",'1. Order'!BA282)","v":""},{"$f":"IF('1. Order'!BB282=\"\",\"\",'1. Order'!BB282)","v":""},{"$f":"IF('1. Order'!BD282=\"\",\"\",'1. Order'!BD282)","v":""},{"$f":"IF('1. Order'!BE282=\"\",\"\",'1. Order'!BE282)","v":""},{"$f":"IF('1. Order'!BF282=\"\",\"\",'1. Order'!BF282)","v":""},{"$f":"IF('1. Order'!BG282=\"\",\"\",'1. Order'!BG282)","v":""},{"$f":"IF('1. Order'!BH282=\"\",\"\",'1. Order'!BH282)","v":"ZWO"}]
[{"$f":"IF('1. Order'!F283=\"\",\"\",'1. Order'!F283)","v":{"$error":"#N/A"}},{"$f":"IF('1. Order'!G283=\"\",\"\",'1. Order'!G283)","v":""},{"$f":"IF('1. Order'!H283=\"\",\"\",'1. Order'!H283)","v":""},{"$f":"IF('1. Order'!I283=\"\",\"\",'1. Order'!I283)","v":""},{"$f":"IF('1. Order'!J283=\"\",\"\",'1. Order'!J283)","v":""},{"$f":"IF('1. Order'!K283=\"\",\"\",'1. Order'!K283)","v":""},{"$f":"IF('1. Order'!L283=\"\",\"\",'1. Order'!L283)","v":""},{"$f":"IF('1. Order'!M283=\"\",\"\",'1. Order'!M283)","v":""},{"$f":"IF('1. Order'!N283=\"\",\"\",'1. Order'!N283)","v":""},{"$f":"IF('1. Order'!O283=\"\",\"\",'1. Order'!O283)","v":{"$error":"#N/A"}},{"$f":"IF('1. Order'!P283=\"\",\"\",'1. Order'!P283)","v":{"$error":"#N/A"}},{"$f":"IF('1. Order'!Q283=\"\",\"\",'1. Order'!Q283)","v":""},{"$f":"IF('1. Order'!S283=\"\",\"\",'1. Order'!S283)","v":""},{"$f":"IF('1. Order'!T283=\"\",\"\",'1. Order'!T283)","v":""},{"$f":"IF('1. Order'!W283=\"\",\"\",'1. Order'!W283)","v":""},{"$f":"IF('1. Order'!X283=\"\",\"\",'1. Order'!X283)","v":""},{"$f":"IF('1. Order'!Y283=\"\",\"\",'1. Order'!Y283)","v":"EUR"},{"$f":"IF('1. Order'!Z283=\"\",\"\",'1. Order'!Z283)","v":""},{"$f":"IF('1. Order'!AA283=\"\",\"\",'1. Order'!AA283)","v":""},{"$f":"IF('1. Order'!AB283=\"\",\"\",'1. Order'!AB283)","v":""},null,{"$f":"IF('1. Order'!AT283=\"\",\"\",'1. Order'!AT283)","v":""},{"$f":"IF('1. Order'!AU283=\"\",\"\",'1. Order'!AU283)","v":""},null,null,null,null,null,null,null,{"$f":"IF('1. Order'!AY283=\"\",\"\",'1. Order'!AY283)","v":""},{"$f":"IF('1. Order'!AZ283=\"\",\"\",'1. Order'!AZ283)","v":""},{"$f":"IF('1. Order'!BA283=\"\",\"\",'1. Order'!BA283)","v":""},{"$f":"IF('1. Order'!BB283=\"\",\"\",'1. Order'!BB283)","v":""},{"$f":"IF('1. Order'!BD283=\"\",\"\",'1. Order'!BD283)","v":""},{"$f":"IF('1. Order'!BE283=\"\",\"\",'1. Order'!BE283)","v":""},{"$f":"IF('1. Order'!BF283=\"\",\"\",'1. Order'!BF283)","v":""},{"$f":"IF('1. Order'!BG283=\"\",\"\",'1. Order'!BG283)","v":""},{"$f":"IF('1. Order'!BH283=\"\",\"\",'1. Order'!BH283)","v":"ZWO"}]
[{"$f":"IF('1. Order'!F284=\"\",\"\",'1. Order'!F284)","v":{"$error":"#N/A"}},{"$f":"IF('1. Order'!G284=\"\",\"\",'1. Order'!G284)","v":""},{"$f":"IF('1. Order'!H284=\"\",\"\",'1. Order'!H284)","v":""},{"$f":"IF('1. Order'!I284=\"\",\"\",'1. Order'!I284)","v":""},{"$f":"IF('1. Order'!J284=\"\",\"\",'1. Order'!J284)","v":""},{"$f":"IF('1. Order'!K284=\"\",\"\",'1. Order'!K284)","v":""},{"$f":"IF('1. Order'!L284=\"\",\"\",'1. Order'!L284)","v":""},{"$f":"IF('1. Order'!M284=\"\",\"\",'1. Order'!M284)","v":""},{"$f":"IF('1. Order'!N284=\"\",\"\",'1. Order'!N284)","v":""},{"$f":"IF('1. Order'!O284=\"\",\"\",'1. Order'!O284)","v":{"$error":"#N/A"}},{"$f":"IF('1. Order'!P284=\"\",\"\",'1. Order'!P284)","v":{"$error":"#N/A"}},{"$f":"IF('1. Order'!Q284=\"\",\"\",'1. Order'!Q284)","v":""},{"$f":"IF('1. Order'!S284=\"\",\"\",'1. Order'!S284)","v":""},{"$f":"IF('1. Order'!T284=\"\",\"\",'1. Order'!T284)","v":""},{"$f":"IF('1. Order'!W284=\"\",\"\",'1. Order'!W284)","v":""},{"$f":"IF('1. Order'!X284=\"\",\"\",'1. Order'!X284)","v":""},{"$f":"IF('1. Order'!Y284=\"\",\"\",'1. Order'!Y284)","v":"EUR"},{"$f":"IF('1. Order'!Z284=\"\",\"\",'1. Order'!Z284)","v":""},{"$f":"IF('1. Order'!AA284=\"\",\"\",'1. Order'!AA284)","v":""},{"$f":"IF('1. Order'!AB284=\"\",\"\",'1. Order'!AB284)","v":""},null,{"$f":"IF('1. Order'!AT284=\"\",\"\",'1. Order'!AT284)","v":""},{"$f":"IF('1. Order'!AU284=\"\",\"\",'1. Order'!AU284)","v":""},null,null,null,null,null,null,null,{"$f":"IF('1. Order'!AY284=\"\",\"\",'1. Order'!AY284)","v":""},{"$f":"IF('1. Order'!AZ284=\"\",\"\",'1. Order'!AZ284)","v":""},{"$f":"IF('1. Order'!BA284=\"\",\"\",'1. Order'!BA284)","v":""},{"$f":"IF('1. Order'!BB284=\"\",\"\",'1. Order'!BB284)","v":""},{"$f":"IF('1. Order'!BD284=\"\",\"\",'1. Order'!BD284)","v":""},{"$f":"IF('1. Order'!BE284=\"\",\"\",'1. Order'!BE284)","v":""},{"$f":"IF('1. Order'!BF284=\"\",\"\",'1. Order'!BF284)","v":""},{"$f":"IF('1. Order'!BG284=\"\",\"\",'1. Order'!BG284)","v":""},{"$f":"IF('1. Order'!BH284=\"\",\"\",'1. Order'!BH284)","v":"ZWO"}]
[{"$f":"IF('1. Order'!F285=\"\",\"\",'1. Order'!F285)","v":{"$error":"#N/A"}},{"$f":"IF('1. Order'!G285=\"\",\"\",'1. Order'!G285)","v":""},{"$f":"IF('1. Order'!H285=\"\",\"\",'1. Order'!H285)","v":""},{"$f":"IF('1. Order'!I285=\"\",\"\",'1. Order'!I285)","v":""},{"$f":"IF('1. Order'!J285=\"\",\"\",'1. Order'!J285)","v":""},{"$f":"IF('1. Order'!K285=\"\",\"\",'1. Order'!K285)","v":""},{"$f":"IF('1. Order'!L285=\"\",\"\",'1. Order'!L285)","v":""},{"$f":"IF('1. Order'!M285=\"\",\"\",'1. Order'!M285)","v":""},{"$f":"IF('1. Order'!N285=\"\",\"\",'1. Order'!N285)","v":""},{"$f":"IF('1. Order'!O285=\"\",\"\",'1. Order'!O285)","v":{"$error":"#N/A"}},{"$f":"IF('1. Order'!P285=\"\",\"\",'1. Order'!P285)","v":{"$error":"#N/A"}},{"$f":"IF('1. Order'!Q285=\"\",\"\",'1. Order'!Q285)","v":""},{"$f":"IF('1. Order'!S285=\"\",\"\",'1. Order'!S285)","v":""},{"$f":"IF('1. Order'!T285=\"\",\"\",'1. Order'!T285)","v":""},{"$f":"IF('1. Order'!W285=\"\",\"\",'1. Order'!W285)","v":""},{"$f":"IF('1. Order'!X285=\"\",\"\",'1. Order'!X285)","v":""},{"$f":"IF('1. Order'!Y285=\"\",\"\",'1. Order'!Y285)","v":"EUR"},{"$f":"IF('1. Order'!Z285=\"\",\"\",'1. Order'!Z285)","v":""},{"$f":"IF('1. Order'!AA285=\"\",\"\",'1. Order'!AA285)","v":""},{"$f":"IF('1. Order'!AB285=\"\",\"\",'1. Order'!AB285)","v":""},null,{"$f":"IF('1. Order'!AT285=\"\",\"\",'1. Order'!AT285)","v":""},{"$f":"IF('1. Order'!AU285=\"\",\"\",'1. Order'!AU285)","v":""},null,null,null,null,null,null,null,{"$f":"IF('1. Order'!AY285=\"\",\"\",'1. Order'!AY285)","v":""},{"$f":"IF('1. Order'!AZ285=\"\",\"\",'1. Order'!AZ285)","v":""},{"$f":"IF('1. Order'!BA285=\"\",\"\",'1. Order'!BA285)","v":""},{"$f":"IF('1. Order'!BB285=\"\",\"\",'1. Order'!BB285)","v":""},{"$f":"IF('1. Order'!BD285=\"\",\"\",'1. Order'!BD285)","v":""},{"$f":"IF('1. Order'!BE285=\"\",\"\",'1. Order'!BE285)","v":""},{"$f":"IF('1. Order'!BF285=\"\",\"\",'1. Order'!BF285)","v":""},{"$f":"IF('1. Order'!BG285=\"\",\"\",'1. Order'!BG285)","v":""},{"$f":"IF('1. Order'!BH285=\"\",\"\",'1. Order'!BH285)","v":"ZWO"}]
[{"$f":"IF('1. Order'!F286=\"\",\"\",'1. Order'!F286)","v":{"$error":"#N/A"}},{"$f":"IF('1. Order'!G286=\"\",\"\",'1. Order'!G286)","v":""},{"$f":"IF('1. Order'!H286=\"\",\"\",'1. Order'!H286)","v":""},{"$f":"IF('1. Order'!I286=\"\",\"\",'1. Order'!I286)","v":""},{"$f":"IF('1. Order'!J286=\"\",\"\",'1. Order'!J286)","v":""},{"$f":"IF('1. Order'!K286=\"\",\"\",'1. Order'!K286)","v":""},{"$f":"IF('1. Order'!L286=\"\",\"\",'1. Order'!L286)","v":""},{"$f":"IF('1. Order'!M286=\"\",\"\",'1. Order'!M286)","v":""},{"$f":"IF('1. Order'!N286=\"\",\"\",'1. Order'!N286)","v":""},{"$f":"IF('1. Order'!O286=\"\",\"\",'1. Order'!O286)","v":{"$error":"#N/A"}},{"$f":"IF('1. Order'!P286=\"\",\"\",'1. Order'!P286)","v":{"$error":"#N/A"}},{"$f":"IF('1. Order'!Q286=\"\",\"\",'1. Order'!Q286)","v":""},{"$f":"IF('1. Order'!S286=\"\",\"\",'1. Order'!S286)","v":""},{"$f":"IF('1. Order'!T286=\"\",\"\",'1. Order'!T286)","v":""},{"$f":"IF('1. Order'!W286=\"\",\"\",'1. Order'!W286)","v":""},{"$f":"IF('1. Order'!X286=\"\",\"\",'1. Order'!X286)","v":""},{"$f":"IF('1. Order'!Y286=\"\",\"\",'1. Order'!Y286)","v":"EUR"},{"$f":"IF('1. Order'!Z286=\"\",\"\",'1. Order'!Z286)","v":""},{"$f":"IF('1. Order'!AA286=\"\",\"\",'1. Order'!AA286)","v":""},{"$f":"IF('1. Order'!AB286=\"\",\"\",'1. Order'!AB286)","v":""},null,{"$f":"IF('1. Order'!AT286=\"\",\"\",'1. Order'!AT286)","v":""},{"$f":"IF('1. Order'!AU286=\"\",\"\",'1. Order'!AU286)","v":""},null,null,null,null,null,null,null,{"$f":"IF('1. Order'!AY286=\"\",\"\",'1. Order'!AY286)","v":""},{"$f":"IF('1. Order'!AZ286=\"\",\"\",'1. Order'!AZ286)","v":""},{"$f":"IF('1. Order'!BA286=\"\",\"\",'1. Order'!BA286)","v":""},{"$f":"IF('1. Order'!BB286=\"\",\"\",'1. Order'!BB286)","v":""},{"$f":"IF('1. Order'!BD286=\"\",\"\",'1. Order'!BD286)","v":""},{"$f":"IF('1. Order'!BE286=\"\",\"\",'1. Order'!BE286)","v":""},{"$f":"IF('1. Order'!BF286=\"\",\"\",'1. Order'!BF286)","v":""},{"$f":"IF('1. Order'!BG286=\"\",\"\",'1. Order'!BG286)","v":""},{"$f":"IF('1. Order'!BH286=\"\",\"\",'1. Order'!BH286)","v":"ZWO"}]
[{"$f":"IF('1. Order'!F287=\"\",\"\",'1. Order'!F287)","v":{"$error":"#N/A"}},{"$f":"IF('1. Order'!G287=\"\",\"\",'1. Order'!G287)","v":""},{"$f":"IF('1. Order'!H287=\"\",\"\",'1. Order'!H287)","v":""},{"$f":"IF('1. Order'!I287=\"\",\"\",'1. Order'!I287)","v":""},{"$f":"IF('1. Order'!J287=\"\",\"\",'1. Order'!J287)","v":""},{"$f":"IF('1. Order'!K287=\"\",\"\",'1. Order'!K287)","v":""},{"$f":"IF('1. Order'!L287=\"\",\"\",'1. Order'!L287)","v":""},{"$f":"IF('1. Order'!M287=\"\",\"\",'1. Order'!M287)","v":""},{"$f":"IF('1. Order'!N287=\"\",\"\",'1. Order'!N287)","v":""},{"$f":"IF('1. Order'!O287=\"\",\"\",'1. Order'!O287)","v":{"$error":"#N/A"}},{"$f":"IF('1. Order'!P287=\"\",\"\",'1. Order'!P287)","v":{"$error":"#N/A"}},{"$f":"IF('1. Order'!Q287=\"\",\"\",'1. Order'!Q287)","v":""},{"$f":"IF('1. Order'!S287=\"\",\"\",'1. Order'!S287)","v":""},{"$f":"IF('1. Order'!T287=\"\",\"\",'1. Order'!T287)","v":""},{"$f":"IF('1. Order'!W287=\"\",\"\",'1. Order'!W287)","v":""},{"$f":"IF('1. Order'!X287=\"\",\"\",'1. Order'!X287)","v":""},{"$f":"IF('1. Order'!Y287=\"\",\"\",'1. Order'!Y287)","v":"EUR"},{"$f":"IF('1. Order'!Z287=\"\",\"\",'1. Order'!Z287)","v":""},{"$f":"IF('1. Order'!AA287=\"\",\"\",'1. Order'!AA287)","v":""},{"$f":"IF('1. Order'!AB287=\"\",\"\",'1. Order'!AB287)","v":""},null,{"$f":"IF('1. Order'!AT287=\"\",\"\",'1. Order'!AT287)","v":""},{"$f":"IF('1. Order'!AU287=\"\",\"\",'1. Order'!AU287)","v":""},null,null,null,null,null,null,null,{"$f":"IF('1. Order'!AY287=\"\",\"\",'1. Order'!AY287)","v":""},{"$f":"IF('1. Order'!AZ287=\"\",\"\",'1. Order'!AZ287)","v":""},{"$f":"IF('1. Order'!BA287=\"\",\"\",'1. Order'!BA287)","v":""},{"$f":"IF('1. Order'!BB287=\"\",\"\",'1. Order'!BB287)","v":""},{"$f":"IF('1. Order'!BD287=\"\",\"\",'1. Order'!BD287)","v":""},{"$f":"IF('1. Order'!BE287=\"\",\"\",'1. Order'!BE287)","v":""},{"$f":"IF('1. Order'!BF287=\"\",\"\",'1. Order'!BF287)","v":""},{"$f":"IF('1. Order'!BG287=\"\",\"\",'1. Order'!BG287)","v":""},{"$f":"IF('1. Order'!BH287=\"\",\"\",'1. Order'!BH287)","v":"ZWO"}]
[{"$f":"IF('1. Order'!F288=\"\",\"\",'1. Order'!F288)","v":{"$error":"#N/A"}},{"$f":"IF('1. Order'!G288=\"\",\"\",'1. Order'!G288)","v":""},{"$f":"IF('1. Order'!H288=\"\",\"\",'1. Order'!H288)","v":""},{"$f":"IF('1. Order'!I288=\"\",\"\",'1. Order'!I288)","v":""},{"$f":"IF('1. Order'!J288=\"\",\"\",'1. Order'!J288)","v":""},{"$f":"IF('1. Order'!K288=\"\",\"\",'1. Order'!K288)","v":""},{"$f":"IF('1. Order'!L288=\"\",\"\",'1. Order'!L288)","v":""},{"$f":"IF('1. Order'!M288=\"\",\"\",'1. Order'!M288)","v":""},{"$f":"IF('1. Order'!N288=\"\",\"\",'1. Order'!N288)","v":""},{"$f":"IF('1. Order'!O288=\"\",\"\",'1. Order'!O288)","v":{"$error":"#N/A"}},{"$f":"IF('1. Order'!P288=\"\",\"\",'1. Order'!P288)","v":{"$error":"#N/A"}},{"$f":"IF('1. Order'!Q288=\"\",\"\",'1. Order'!Q288)","v":""},{"$f":"IF('1. Order'!S288=\"\",\"\",'1. Order'!S288)","v":""},{"$f":"IF('1. Order'!T288=\"\",\"\",'1. Order'!T288)","v":""},{"$f":"IF('1. Order'!W288=\"\",\"\",'1. Order'!W288)","v":""},{"$f":"IF('1. Order'!X288=\"\",\"\",'1. Order'!X288)","v":""},{"$f":"IF('1. Order'!Y288=\"\",\"\",'1. Order'!Y288)","v":"EUR"},{"$f":"IF('1. Order'!Z288=\"\",\"\",'1. Order'!Z288)","v":""},{"$f":"IF('1. Order'!AA288=\"\",\"\",'1. Order'!AA288)","v":""},{"$f":"IF('1. Order'!AB288=\"\",\"\",'1. Order'!AB288)","v":""},null,{"$f":"IF('1. Order'!AT288=\"\",\"\",'1. Order'!AT288)","v":""},{"$f":"IF('1. Order'!AU288=\"\",\"\",'1. Order'!AU288)","v":""},null,null,null,null,null,null,null,{"$f":"IF('1. Order'!AY288=\"\",\"\",'1. Order'!AY288)","v":""},{"$f":"IF('1. Order'!AZ288=\"\",\"\",'1. Order'!AZ288)","v":""},{"$f":"IF('1. Order'!BA288=\"\",\"\",'1. Order'!BA288)","v":""},{"$f":"IF('1. Order'!BB288=\"\",\"\",'1. Order'!BB288)","v":""},{"$f":"IF('1. Order'!BD288=\"\",\"\",'1. Order'!BD288)","v":""},{"$f":"IF('1. Order'!BE288=\"\",\"\",'1. Order'!BE288)","v":""},{"$f":"IF('1. Order'!BF288=\"\",\"\",'1. Order'!BF288)","v":""},{"$f":"IF('1. Order'!BG288=\"\",\"\",'1. Order'!BG288)","v":""},{"$f":"IF('1. Order'!BH288=\"\",\"\",'1. Order'!BH288)","v":"ZWO"}]
[{"$f":"IF('1. Order'!F289=\"\",\"\",'1. Order'!F289)","v":{"$error":"#N/A"}},{"$f":"IF('1. Order'!G289=\"\",\"\",'1. Order'!G289)","v":""},{"$f":"IF('1. Order'!H289=\"\",\"\",'1. Order'!H289)","v":""},{"$f":"IF('1. Order'!I289=\"\",\"\",'1. Order'!I289)","v":""},{"$f":"IF('1. Order'!J289=\"\",\"\",'1. Order'!J289)","v":""},{"$f":"IF('1. Order'!K289=\"\",\"\",'1. Order'!K289)","v":""},{"$f":"IF('1. Order'!L289=\"\",\"\",'1. Order'!L289)","v":""},{"$f":"IF('1. Order'!M289=\"\",\"\",'1. Order'!M289)","v":""},{"$f":"IF('1. Order'!N289=\"\",\"\",'1. Order'!N289)","v":""},{"$f":"IF('1. Order'!O289=\"\",\"\",'1. Order'!O289)","v":{"$error":"#N/A"}},{"$f":"IF('1. Order'!P289=\"\",\"\",'1. Order'!P289)","v":{"$error":"#N/A"}},{"$f":"IF('1. Order'!Q289=\"\",\"\",'1. Order'!Q289)","v":""},{"$f":"IF('1. Order'!S289=\"\",\"\",'1. Order'!S289)","v":""},{"$f":"IF('1. Order'!T289=\"\",\"\",'1. Order'!T289)","v":""},{"$f":"IF('1. Order'!W289=\"\",\"\",'1. Order'!W289)","v":""},{"$f":"IF('1. Order'!X289=\"\",\"\",'1. Order'!X289)","v":""},{"$f":"IF('1. Order'!Y289=\"\",\"\",'1. Order'!Y289)","v":"EUR"},{"$f":"IF('1. Order'!Z289=\"\",\"\",'1. Order'!Z289)","v":""},{"$f":"IF('1. Order'!AA289=\"\",\"\",'1. Order'!AA289)","v":""},{"$f":"IF('1. Order'!AB289=\"\",\"\",'1. Order'!AB289)","v":""},null,{"$f":"IF('1. Order'!AT289=\"\",\"\",'1. Order'!AT289)","v":""},{"$f":"IF('1. Order'!AU289=\"\",\"\",'1. Order'!AU289)","v":""},null,null,null,null,null,null,null,{"$f":"IF('1. Order'!AY289=\"\",\"\",'1. Order'!AY289)","v":""},{"$f":"IF('1. Order'!AZ289=\"\",\"\",'1. Order'!AZ289)","v":""},{"$f":"IF('1. Order'!BA289=\"\",\"\",'1. Order'!BA289)","v":""},{"$f":"IF('1. Order'!BB289=\"\",\"\",'1. Order'!BB289)","v":""},{"$f":"IF('1. Order'!BD289=\"\",\"\",'1. Order'!BD289)","v":""},{"$f":"IF('1. Order'!BE289=\"\",\"\",'1. Order'!BE289)","v":""},{"$f":"IF('1. Order'!BF289=\"\",\"\",'1. Order'!BF289)","v":""},{"$f":"IF('1. Order'!BG289=\"\",\"\",'1. Order'!BG289)","v":""},{"$f":"IF('1. Order'!BH289=\"\",\"\",'1. Order'!BH289)","v":"ZWO"}]
[{"$f":"IF('1. Order'!F290=\"\",\"\",'1. Order'!F290)","v":{"$error":"#N/A"}},{"$f":"IF('1. Order'!G290=\"\",\"\",'1. Order'!G290)","v":""},{"$f":"IF('1. Order'!H290=\"\",\"\",'1. Order'!H290)","v":""},{"$f":"IF('1. Order'!I290=\"\",\"\",'1. Order'!I290)","v":""},{"$f":"IF('1. Order'!J290=\"\",\"\",'1. Order'!J290)","v":""},{"$f":"IF('1. Order'!K290=\"\",\"\",'1. Order'!K290)","v":""},{"$f":"IF('1. Order'!L290=\"\",\"\",'1. Order'!L290)","v":""},{"$f":"IF('1. Order'!M290=\"\",\"\",'1. Order'!M290)","v":""},{"$f":"IF('1. Order'!N290=\"\",\"\",'1. Order'!N290)","v":""},{"$f":"IF('1. Order'!O290=\"\",\"\",'1. Order'!O290)","v":{"$error":"#N/A"}},{"$f":"IF('1. Order'!P290=\"\",\"\",'1. Order'!P290)","v":{"$error":"#N/A"}},{"$f":"IF('1. Order'!Q290=\"\",\"\",'1. Order'!Q290)","v":""},{"$f":"IF('1. Order'!S290=\"\",\"\",'1. Order'!S290)","v":""},{"$f":"IF('1. Order'!T290=\"\",\"\",'1. Order'!T290)","v":""},{"$f":"IF('1. Order'!W290=\"\",\"\",'1. Order'!W290)","v":""},{"$f":"IF('1. Order'!X290=\"\",\"\",'1. Order'!X290)","v":""},{"$f":"IF('1. Order'!Y290=\"\",\"\",'1. Order'!Y290)","v":"EUR"},{"$f":"IF('1. Order'!Z290=\"\",\"\",'1. Order'!Z290)","v":""},{"$f":"IF('1. Order'!AA290=\"\",\"\",'1. Order'!AA290)","v":""},{"$f":"IF('1. Order'!AB290=\"\",\"\",'1. Order'!AB290)","v":""},null,{"$f":"IF('1. Order'!AT290=\"\",\"\",'1. Order'!AT290)","v":""},{"$f":"IF('1. Order'!AU290=\"\",\"\",'1. Order'!AU290)","v":""},null,null,null,null,null,null,null,{"$f":"IF('1. Order'!AY290=\"\",\"\",'1. Order'!AY290)","v":""},{"$f":"IF('1. Order'!AZ290=\"\",\"\",'1. Order'!AZ290)","v":""},{"$f":"IF('1. Order'!BA290=\"\",\"\",'1. Order'!BA290)","v":""},{"$f":"IF('1. Order'!BB290=\"\",\"\",'1. Order'!BB290)","v":""},{"$f":"IF('1. Order'!BD290=\"\",\"\",'1. Order'!BD290)","v":""},{"$f":"IF('1. Order'!BE290=\"\",\"\",'1. Order'!BE290)","v":""},{"$f":"IF('1. Order'!BF290=\"\",\"\",'1. Order'!BF290)","v":""},{"$f":"IF('1. Order'!BG290=\"\",\"\",'1. Order'!BG290)","v":""},{"$f":"IF('1. Order'!BH290=\"\",\"\",'1. Order'!BH290)","v":"ZWO"}]
[{"$f":"IF('1. Order'!F291=\"\",\"\",'1. Order'!F291)","v":{"$error":"#N/A"}},{"$f":"IF('1. Order'!G291=\"\",\"\",'1. Order'!G291)","v":""},{"$f":"IF('1. Order'!H291=\"\",\"\",'1. Order'!H291)","v":""},{"$f":"IF('1. Order'!I291=\"\",\"\",'1. Order'!I291)","v":""},{"$f":"IF('1. Order'!J291=\"\",\"\",'1. Order'!J291)","v":""},{"$f":"IF('1. Order'!K291=\"\",\"\",'1. Order'!K291)","v":""},{"$f":"IF('1. Order'!L291=\"\",\"\",'1. Order'!L291)","v":""},{"$f":"IF('1. Order'!M291=\"\",\"\",'1. Order'!M291)","v":""},{"$f":"IF('1. Order'!N291=\"\",\"\",'1. Order'!N291)","v":""},{"$f":"IF('1. Order'!O291=\"\",\"\",'1. Order'!O291)","v":{"$error":"#N/A"}},{"$f":"IF('1. Order'!P291=\"\",\"\",'1. Order'!P291)","v":{"$error":"#N/A"}},{"$f":"IF('1. Order'!Q291=\"\",\"\",'1. Order'!Q291)","v":""},{"$f":"IF('1. Order'!S291=\"\",\"\",'1. Order'!S291)","v":""},{"$f":"IF('1. Order'!T291=\"\",\"\",'1. Order'!T291)","v":""},{"$f":"IF('1. Order'!W291=\"\",\"\",'1. Order'!W291)","v":""},{"$f":"IF('1. Order'!X291=\"\",\"\",'1. Order'!X291)","v":""},{"$f":"IF('1. Order'!Y291=\"\",\"\",'1. Order'!Y291)","v":"EUR"},{"$f":"IF('1. Order'!Z291=\"\",\"\",'1. Order'!Z291)","v":""},{"$f":"IF('1. Order'!AA291=\"\",\"\",'1. Order'!AA291)","v":""},{"$f":"IF('1. Order'!AB291=\"\",\"\",'1. Order'!AB291)","v":""},null,{"$f":"IF('1. Order'!AT291=\"\",\"\",'1. Order'!AT291)","v":""},{"$f":"IF('1. Order'!AU291=\"\",\"\",'1. Order'!AU291)","v":""},null,null,null,null,null,null,null,{"$f":"IF('1. Order'!AY291=\"\",\"\",'1. Order'!AY291)","v":""},{"$f":"IF('1. Order'!AZ291=\"\",\"\",'1. Order'!AZ291)","v":""},{"$f":"IF('1. Order'!BA291=\"\",\"\",'1. Order'!BA291)","v":""},{"$f":"IF('1. Order'!BB291=\"\",\"\",'1. Order'!BB291)","v":""},{"$f":"IF('1. Order'!BD291=\"\",\"\",'1. Order'!BD291)","v":""},{"$f":"IF('1. Order'!BE291=\"\",\"\",'1. Order'!BE291)","v":""},{"$f":"IF('1. Order'!BF291=\"\",\"\",'1. Order'!BF291)","v":""},{"$f":"IF('1. Order'!BG291=\"\",\"\",'1. Order'!BG291)","v":""},{"$f":"IF('1. Order'!BH291=\"\",\"\",'1. Order'!BH291)","v":"ZWO"}]
[{"$f":"IF('1. Order'!F292=\"\",\"\",'1. Order'!F292)","v":{"$error":"#N/A"}},{"$f":"IF('1. Order'!G292=\"\",\"\",'1. Order'!G292)","v":""},{"$f":"IF('1. Order'!H292=\"\",\"\",'1. Order'!H292)","v":""},{"$f":"IF('1. Order'!I292=\"\",\"\",'1. Order'!I292)","v":""},{"$f":"IF('1. Order'!J292=\"\",\"\",'1. Order'!J292)","v":""},{"$f":"IF('1. Order'!K292=\"\",\"\",'1. Order'!K292)","v":""},{"$f":"IF('1. Order'!L292=\"\",\"\",'1. Order'!L292)","v":""},{"$f":"IF('1. Order'!M292=\"\",\"\",'1. Order'!M292)","v":""},{"$f":"IF('1. Order'!N292=\"\",\"\",'1. Order'!N292)","v":""},{"$f":"IF('1. Order'!O292=\"\",\"\",'1. Order'!O292)","v":{"$error":"#N/A"}},{"$f":"IF('1. Order'!P292=\"\",\"\",'1. Order'!P292)","v":{"$error":"#N/A"}},{"$f":"IF('1. Order'!Q292=\"\",\"\",'1. Order'!Q292)","v":""},{"$f":"IF('1. Order'!S292=\"\",\"\",'1. Order'!S292)","v":""},{"$f":"IF('1. Order'!T292=\"\",\"\",'1. Order'!T292)","v":""},{"$f":"IF('1. Order'!W292=\"\",\"\",'1. Order'!W292)","v":""},{"$f":"IF('1. Order'!X292=\"\",\"\",'1. Order'!X292)","v":""},{"$f":"IF('1. Order'!Y292=\"\",\"\",'1. Order'!Y292)","v":"EUR"},{"$f":"IF('1. Order'!Z292=\"\",\"\",'1. Order'!Z292)","v":""},{"$f":"IF('1. Order'!AA292=\"\",\"\",'1. Order'!AA292)","v":""},{"$f":"IF('1. Order'!AB292=\"\",\"\",'1. Order'!AB292)","v":""},null,{"$f":"IF('1. Order'!AT292=\"\",\"\",'1. Order'!AT292)","v":""},{"$f":"IF('1. Order'!AU292=\"\",\"\",'1. Order'!AU292)","v":""},null,null,null,null,null,null,null,{"$f":"IF('1. Order'!AY292=\"\",\"\",'1. Order'!AY292)","v":""},{"$f":"IF('1. Order'!AZ292=\"\",\"\",'1. Order'!AZ292)","v":""},{"$f":"IF('1. Order'!BA292=\"\",\"\",'1. Order'!BA292)","v":""},{"$f":"IF('1. Order'!BB292=\"\",\"\",'1. Order'!BB292)","v":""},{"$f":"IF('1. Order'!BD292=\"\",\"\",'1. Order'!BD292)","v":""},{"$f":"IF('1. Order'!BE292=\"\",\"\",'1. Order'!BE292)","v":""},{"$f":"IF('1. Order'!BF292=\"\",\"\",'1. Order'!BF292)","v":""},{"$f":"IF('1. Order'!BG292=\"\",\"\",'1. Order'!BG292)","v":""},{"$f":"IF('1. Order'!BH292=\"\",\"\",'1. Order'!BH292)","v":"ZWO"}]
[{"$f":"IF('1. Order'!F293=\"\",\"\",'1. Order'!F293)","v":{"$error":"#N/A"}},{"$f":"IF('1. Order'!G293=\"\",\"\",'1. Order'!G293)","v":""},{"$f":"IF('1. Order'!H293=\"\",\"\",'1. Order'!H293)","v":""},{"$f":"IF('1. Order'!I293=\"\",\"\",'1. Order'!I293)","v":""},{"$f":"IF('1. Order'!J293=\"\",\"\",'1. Order'!J293)","v":""},{"$f":"IF('1. Order'!K293=\"\",\"\",'1. Order'!K293)","v":""},{"$f":"IF('1. Order'!L293=\"\",\"\",'1. Order'!L293)","v":""},{"$f":"IF('1. Order'!M293=\"\",\"\",'1. Order'!M293)","v":""},{"$f":"IF('1. Order'!N293=\"\",\"\",'1. Order'!N293)","v":""},{"$f":"IF('1. Order'!O293=\"\",\"\",'1. Order'!O293)","v":{"$error":"#N/A"}},{"$f":"IF('1. Order'!P293=\"\",\"\",'1. Order'!P293)","v":{"$error":"#N/A"}},{"$f":"IF('1. Order'!Q293=\"\",\"\",'1. Order'!Q293)","v":""},{"$f":"IF('1. Order'!S293=\"\",\"\",'1. Order'!S293)","v":""},{"$f":"IF('1. Order'!T293=\"\",\"\",'1. Order'!T293)","v":""},{"$f":"IF('1. Order'!W293=\"\",\"\",'1. Order'!W293)","v":""},{"$f":"IF('1. Order'!X293=\"\",\"\",'1. Order'!X293)","v":""},{"$f":"IF('1. Order'!Y293=\"\",\"\",'1. Order'!Y293)","v":"EUR"},{"$f":"IF('1. Order'!Z293=\"\",\"\",'1. Order'!Z293)","v":""},{"$f":"IF('1. Order'!AA293=\"\",\"\",'1. Order'!AA293)","v":""},{"$f":"IF('1. Order'!AB293=\"\",\"\",'1. Order'!AB293)","v":""},null,{"$f":"IF('1. Order'!AT293=\"\",\"\",'1. Order'!AT293)","v":""},{"$f":"IF('1. Order'!AU293=\"\",\"\",'1. Order'!AU293)","v":""},null,null,null,null,null,null,null,{"$f":"IF('1. Order'!AY293=\"\",\"\",'1. Order'!AY293)","v":""},{"$f":"IF('1. Order'!AZ293=\"\",\"\",'1. Order'!AZ293)","v":""},{"$f":"IF('1. Order'!BA293=\"\",\"\",'1. Order'!BA293)","v":""},{"$f":"IF('1. Order'!BB293=\"\",\"\",'1. Order'!BB293)","v":""},{"$f":"IF('1. Order'!BD293=\"\",\"\",'1. Order'!BD293)","v":""},{"$f":"IF('1. Order'!BE293=\"\",\"\",'1. Order'!BE293)","v":""},{"$f":"IF('1. Order'!BF293=\"\",\"\",'1. Order'!BF293)","v":""},{"$f":"IF('1. Order'!BG293=\"\",\"\",'1. Order'!BG293)","v":""},{"$f":"IF('1. Order'!BH293=\"\",\"\",'1. Order'!BH293)","v":"ZWO"}]
[{"$f":"IF('1. Order'!F294=\"\",\"\",'1. Order'!F294)","v":{"$error":"#N/A"}},{"$f":"IF('1. Order'!G294=\"\",\"\",'1. Order'!G294)","v":""},{"$f":"IF('1. Order'!H294=\"\",\"\",'1. Order'!H294)","v":""},{"$f":"IF('1. Order'!I294=\"\",\"\",'1. Order'!I294)","v":""},{"$f":"IF('1. Order'!J294=\"\",\"\",'1. Order'!J294)","v":""},{"$f":"IF('1. Order'!K294=\"\",\"\",'1. Order'!K294)","v":""},{"$f":"IF('1. Order'!L294=\"\",\"\",'1. Order'!L294)","v":""},{"$f":"IF('1. Order'!M294=\"\",\"\",'1. Order'!M294)","v":""},{"$f":"IF('1. Order'!N294=\"\",\"\",'1. Order'!N294)","v":""},{"$f":"IF('1. Order'!O294=\"\",\"\",'1. Order'!O294)","v":{"$error":"#N/A"}},{"$f":"IF('1. Order'!P294=\"\",\"\",'1. Order'!P294)","v":{"$error":"#N/A"}},{"$f":"IF('1. Order'!Q294=\"\",\"\",'1. Order'!Q294)","v":""},{"$f":"IF('1. Order'!S294=\"\",\"\",'1. Order'!S294)","v":""},{"$f":"IF('1. Order'!T294=\"\",\"\",'1. Order'!T294)","v":""},{"$f":"IF('1. Order'!W294=\"\",\"\",'1. Order'!W294)","v":""},{"$f":"IF('1. Order'!X294=\"\",\"\",'1. Order'!X294)","v":""},{"$f":"IF('1. Order'!Y294=\"\",\"\",'1. Order'!Y294)","v":"EUR"},{"$f":"IF('1. Order'!Z294=\"\",\"\",'1. Order'!Z294)","v":""},{"$f":"IF('1. Order'!AA294=\"\",\"\",'1. Order'!AA294)","v":""},{"$f":"IF('1. Order'!AB294=\"\",\"\",'1. Order'!AB294)","v":""},null,{"$f":"IF('1. Order'!AT294=\"\",\"\",'1. Order'!AT294)","v":""},{"$f":"IF('1. Order'!AU294=\"\",\"\",'1. Order'!AU294)","v":""},null,null,null,null,null,null,null,{"$f":"IF('1. Order'!AY294=\"\",\"\",'1. Order'!AY294)","v":""},{"$f":"IF('1. Order'!AZ294=\"\",\"\",'1. Order'!AZ294)","v":""},{"$f":"IF('1. Order'!BA294=\"\",\"\",'1. Order'!BA294)","v":""},{"$f":"IF('1. Order'!BB294=\"\",\"\",'1. Order'!BB294)","v":""},{"$f":"IF('1. Order'!BD294=\"\",\"\",'1. Order'!BD294)","v":""},{"$f":"IF('1. Order'!BE294=\"\",\"\",'1. Order'!BE294)","v":""},{"$f":"IF('1. Order'!BF294=\"\",\"\",'1. Order'!BF294)","v":""},{"$f":"IF('1. Order'!BG294=\"\",\"\",'1. Order'!BG294)","v":""},{"$f":"IF('1. Order'!BH294=\"\",\"\",'1. Order'!BH294)","v":"ZWO"}]
[{"$f":"IF('1. Order'!F295=\"\",\"\",'1. Order'!F295)","v":{"$error":"#N/A"}},{"$f":"IF('1. Order'!G295=\"\",\"\",'1. Order'!G295)","v":""},{"$f":"IF('1. Order'!H295=\"\",\"\",'1. Order'!H295)","v":""},{"$f":"IF('1. Order'!I295=\"\",\"\",'1. Order'!I295)","v":""},{"$f":"IF('1. Order'!J295=\"\",\"\",'1. Order'!J295)","v":""},{"$f":"IF('1. Order'!K295=\"\",\"\",'1. Order'!K295)","v":""},{"$f":"IF('1. Order'!L295=\"\",\"\",'1. Order'!L295)","v":""},{"$f":"IF('1. Order'!M295=\"\",\"\",'1. Order'!M295)","v":""},{"$f":"IF('1. Order'!N295=\"\",\"\",'1. Order'!N295)","v":""},{"$f":"IF('1. Order'!O295=\"\",\"\",'1. Order'!O295)","v":{"$error":"#N/A"}},{"$f":"IF('1. Order'!P295=\"\",\"\",'1. Order'!P295)","v":{"$error":"#N/A"}},{"$f":"IF('1. Order'!Q295=\"\",\"\",'1. Order'!Q295)","v":""},{"$f":"IF('1. Order'!S295=\"\",\"\",'1. Order'!S295)","v":""},{"$f":"IF('1. Order'!T295=\"\",\"\",'1. Order'!T295)","v":""},{"$f":"IF('1. Order'!W295=\"\",\"\",'1. Order'!W295)","v":""},{"$f":"IF('1. Order'!X295=\"\",\"\",'1. Order'!X295)","v":""},{"$f":"IF('1. Order'!Y295=\"\",\"\",'1. Order'!Y295)","v":"EUR"},{"$f":"IF('1. Order'!Z295=\"\",\"\",'1. Order'!Z295)","v":""},{"$f":"IF('1. Order'!AA295=\"\",\"\",'1. Order'!AA295)","v":""},{"$f":"IF('1. Order'!AB295=\"\",\"\",'1. Order'!AB295)","v":""},null,{"$f":"IF('1. Order'!AT295=\"\",\"\",'1. Order'!AT295)","v":""},{"$f":"IF('1. Order'!AU295=\"\",\"\",'1. Order'!AU295)","v":""},null,null,null,null,null,null,null,{"$f":"IF('1. Order'!AY295=\"\",\"\",'1. Order'!AY295)","v":""},{"$f":"IF('1. Order'!AZ295=\"\",\"\",'1. Order'!AZ295)","v":""},{"$f":"IF('1. Order'!BA295=\"\",\"\",'1. Order'!BA295)","v":""},{"$f":"IF('1. Order'!BB295=\"\",\"\",'1. Order'!BB295)","v":""},{"$f":"IF('1. Order'!BD295=\"\",\"\",'1. Order'!BD295)","v":""},{"$f":"IF('1. Order'!BE295=\"\",\"\",'1. Order'!BE295)","v":""},{"$f":"IF('1. Order'!BF295=\"\",\"\",'1. Order'!BF295)","v":""},{"$f":"IF('1. Order'!BG295=\"\",\"\",'1. Order'!BG295)","v":""},{"$f":"IF('1. Order'!BH295=\"\",\"\",'1. Order'!BH295)","v":"ZWO"}]
[{"$f":"IF('1. Order'!F296=\"\",\"\",'1. Order'!F296)","v":{"$error":"#N/A"}},{"$f":"IF('1. Order'!G296=\"\",\"\",'1. Order'!G296)","v":""},{"$f":"IF('1. Order'!H296=\"\",\"\",'1. Order'!H296)","v":""},{"$f":"IF('1. Order'!I296=\"\",\"\",'1. Order'!I296)","v":""},{"$f":"IF('1. Order'!J296=\"\",\"\",'1. Order'!J296)","v":""},{"$f":"IF('1. Order'!K296=\"\",\"\",'1. Order'!K296)","v":""},{"$f":"IF('1. Order'!L296=\"\",\"\",'1. Order'!L296)","v":""},{"$f":"IF('1. Order'!M296=\"\",\"\",'1. Order'!M296)","v":""},{"$f":"IF('1. Order'!N296=\"\",\"\",'1. Order'!N296)","v":""},{"$f":"IF('1. Order'!O296=\"\",\"\",'1. Order'!O296)","v":{"$error":"#N/A"}},{"$f":"IF('1. Order'!P296=\"\",\"\",'1. Order'!P296)","v":{"$error":"#N/A"}},{"$f":"IF('1. Order'!Q296=\"\",\"\",'1. Order'!Q296)","v":""},{"$f":"IF('1. Order'!S296=\"\",\"\",'1. Order'!S296)","v":""},{"$f":"IF('1. Order'!T296=\"\",\"\",'1. Order'!T296)","v":""},{"$f":"IF('1. Order'!W296=\"\",\"\",'1. Order'!W296)","v":""},{"$f":"IF('1. Order'!X296=\"\",\"\",'1. Order'!X296)","v":""},{"$f":"IF('1. Order'!Y296=\"\",\"\",'1. Order'!Y296)","v":"EUR"},{"$f":"IF('1. Order'!Z296=\"\",\"\",'1. Order'!Z296)","v":""},{"$f":"IF('1. Order'!AA296=\"\",\"\",'1. Order'!AA296)","v":""},{"$f":"IF('1. Order'!AB296=\"\",\"\",'1. Order'!AB296)","v":""},null,{"$f":"IF('1. Order'!AT296=\"\",\"\",'1. Order'!AT296)","v":""},{"$f":"IF('1. Order'!AU296=\"\",\"\",'1. Order'!AU296)","v":""},null,null,null,null,null,null,null,{"$f":"IF('1. Order'!AY296=\"\",\"\",'1. Order'!AY296)","v":""},{"$f":"IF('1. Order'!AZ296=\"\",\"\",'1. Order'!AZ296)","v":""},{"$f":"IF('1. Order'!BA296=\"\",\"\",'1. Order'!BA296)","v":""},{"$f":"IF('1. Order'!BB296=\"\",\"\",'1. Order'!BB296)","v":""},{"$f":"IF('1. Order'!BD296=\"\",\"\",'1. Order'!BD296)","v":""},{"$f":"IF('1. Order'!BE296=\"\",\"\",'1. Order'!BE296)","v":""},{"$f":"IF('1. Order'!BF296=\"\",\"\",'1. Order'!BF296)","v":""},{"$f":"IF('1. Order'!BG296=\"\",\"\",'1. Order'!BG296)","v":""},{"$f":"IF('1. Order'!BH296=\"\",\"\",'1. Order'!BH296)","v":"ZWO"}]
[{"$f":"IF('1. Order'!F297=\"\",\"\",'1. Order'!F297)","v":{"$error":"#N/A"}},{"$f":"IF('1. Order'!G297=\"\",\"\",'1. Order'!G297)","v":""},{"$f":"IF('1. Order'!H297=\"\",\"\",'1. Order'!H297)","v":""},{"$f":"IF('1. Order'!I297=\"\",\"\",'1. Order'!I297)","v":""},{"$f":"IF('1. Order'!J297=\"\",\"\",'1. Order'!J297)","v":""},{"$f":"IF('1. Order'!K297=\"\",\"\",'1. Order'!K297)","v":""},{"$f":"IF('1. Order'!L297=\"\",\"\",'1. Order'!L297)","v":""},{"$f":"IF('1. Order'!M297=\"\",\"\",'1. Order'!M297)","v":""},{"$f":"IF('1. Order'!N297=\"\",\"\",'1. Order'!N297)","v":""},{"$f":"IF('1. Order'!O297=\"\",\"\",'1. Order'!O297)","v":{"$error":"#N/A"}},{"$f":"IF('1. Order'!P297=\"\",\"\",'1. Order'!P297)","v":{"$error":"#N/A"}},{"$f":"IF('1. Order'!Q297=\"\",\"\",'1. Order'!Q297)","v":""},{"$f":"IF('1. Order'!S297=\"\",\"\",'1. Order'!S297)","v":""},{"$f":"IF('1. Order'!T297=\"\",\"\",'1. Order'!T297)","v":""},{"$f":"IF('1. Order'!W297=\"\",\"\",'1. Order'!W297)","v":""},{"$f":"IF('1. Order'!X297=\"\",\"\",'1. Order'!X297)","v":""},{"$f":"IF('1. Order'!Y297=\"\",\"\",'1. Order'!Y297)","v":"EUR"},{"$f":"IF('1. Order'!Z297=\"\",\"\",'1. Order'!Z297)","v":""},{"$f":"IF('1. Order'!AA297=\"\",\"\",'1. Order'!AA297)","v":""},{"$f":"IF('1. Order'!AB297=\"\",\"\",'1. Order'!AB297)","v":""},null,{"$f":"IF('1. Order'!AT297=\"\",\"\",'1. Order'!AT297)","v":""},{"$f":"IF('1. Order'!AU297=\"\",\"\",'1. Order'!AU297)","v":""},null,null,null,null,null,null,null,{"$f":"IF('1. Order'!AY297=\"\",\"\",'1. Order'!AY297)","v":""},{"$f":"IF('1. Order'!AZ297=\"\",\"\",'1. Order'!AZ297)","v":""},{"$f":"IF('1. Order'!BA297=\"\",\"\",'1. Order'!BA297)","v":""},{"$f":"IF('1. Order'!BB297=\"\",\"\",'1. Order'!BB297)","v":""},{"$f":"IF('1. Order'!BD297=\"\",\"\",'1. Order'!BD297)","v":""},{"$f":"IF('1. Order'!BE297=\"\",\"\",'1. Order'!BE297)","v":""},{"$f":"IF('1. Order'!BF297=\"\",\"\",'1. Order'!BF297)","v":""},{"$f":"IF('1. Order'!BG297=\"\",\"\",'1. Order'!BG297)","v":""},{"$f":"IF('1. Order'!BH297=\"\",\"\",'1. Order'!BH297)","v":"ZWO"}]
[{"$f":"IF('1. Order'!F298=\"\",\"\",'1. Order'!F298)","v":{"$error":"#N/A"}},{"$f":"IF('1. Order'!G298=\"\",\"\",'1. Order'!G298)","v":""},{"$f":"IF('1. Order'!H298=\"\",\"\",'1. Order'!H298)","v":""},{"$f":"IF('1. Order'!I298=\"\",\"\",'1. Order'!I298)","v":""},{"$f":"IF('1. Order'!J298=\"\",\"\",'1. Order'!J298)","v":""},{"$f":"IF('1. Order'!K298=\"\",\"\",'1. Order'!K298)","v":""},{"$f":"IF('1. Order'!L298=\"\",\"\",'1. Order'!L298)","v":""},{"$f":"IF('1. Order'!M298=\"\",\"\",'1. Order'!M298)","v":""},{"$f":"IF('1. Order'!N298=\"\",\"\",'1. Order'!N298)","v":""},{"$f":"IF('1. Order'!O298=\"\",\"\",'1. Order'!O298)","v":{"$error":"#N/A"}},{"$f":"IF('1. Order'!P298=\"\",\"\",'1. Order'!P298)","v":{"$error":"#N/A"}},{"$f":"IF('1. Order'!Q298=\"\",\"\",'1. Order'!Q298)","v":""},{"$f":"IF('1. Order'!S298=\"\",\"\",'1. Order'!S298)","v":""},{"$f":"IF('1. Order'!T298=\"\",\"\",'1. Order'!T298)","v":""},{"$f":"IF('1. Order'!W298=\"\",\"\",'1. Order'!W298)","v":""},{"$f":"IF('1. Order'!X298=\"\",\"\",'1. Order'!X298)","v":""},{"$f":"IF('1. Order'!Y298=\"\",\"\",'1. Order'!Y298)","v":"EUR"},{"$f":"IF('1. Order'!Z298=\"\",\"\",'1. Order'!Z298)","v":""},{"$f":"IF('1. Order'!AA298=\"\",\"\",'1. Order'!AA298)","v":""},{"$f":"IF('1. Order'!AB298=\"\",\"\",'1. Order'!AB298)","v":""},null,{"$f":"IF('1. Order'!AT298=\"\",\"\",'1. Order'!AT298)","v":""},{"$f":"IF('1. Order'!AU298=\"\",\"\",'1. Order'!AU298)","v":""},null,null,null,null,null,null,null,{"$f":"IF('1. Order'!AY298=\"\",\"\",'1. Order'!AY298)","v":""},{"$f":"IF('1. Order'!AZ298=\"\",\"\",'1. Order'!AZ298)","v":""},{"$f":"IF('1. Order'!BA298=\"\",\"\",'1. Order'!BA298)","v":""},{"$f":"IF('1. Order'!BB298=\"\",\"\",'1. Order'!BB298)","v":""},{"$f":"IF('1. Order'!BD298=\"\",\"\",'1. Order'!BD298)","v":""},{"$f":"IF('1. Order'!BE298=\"\",\"\",'1. Order'!BE298)","v":""},{"$f":"IF('1. Order'!BF298=\"\",\"\",'1. Order'!BF298)","v":""},{"$f":"IF('1. Order'!BG298=\"\",\"\",'1. Order'!BG298)","v":""},{"$f":"IF('1. Order'!BH298=\"\",\"\",'1. Order'!BH298)","v":"ZWO"}]
[{"$f":"IF('1. Order'!F299=\"\",\"\",'1. Order'!F299)","v":{"$error":"#N/A"}},{"$f":"IF('1. Order'!G299=\"\",\"\",'1. Order'!G299)","v":""},{"$f":"IF('1. Order'!H299=\"\",\"\",'1. Order'!H299)","v":""},{"$f":"IF('1. Order'!I299=\"\",\"\",'1. Order'!I299)","v":""},{"$f":"IF('1. Order'!J299=\"\",\"\",'1. Order'!J299)","v":""},{"$f":"IF('1. Order'!K299=\"\",\"\",'1. Order'!K299)","v":""},{"$f":"IF('1. Order'!L299=\"\",\"\",'1. Order'!L299)","v":""},{"$f":"IF('1. Order'!M299=\"\",\"\",'1. Order'!M299)","v":""},{"$f":"IF('1. Order'!N299=\"\",\"\",'1. Order'!N299)","v":""},{"$f":"IF('1. Order'!O299=\"\",\"\",'1. Order'!O299)","v":{"$error":"#N/A"}},{"$f":"IF('1. Order'!P299=\"\",\"\",'1. Order'!P299)","v":{"$error":"#N/A"}},{"$f":"IF('1. Order'!Q299=\"\",\"\",'1. Order'!Q299)","v":""},{"$f":"IF('1. Order'!S299=\"\",\"\",'1. Order'!S299)","v":""},{"$f":"IF('1. Order'!T299=\"\",\"\",'1. Order'!T299)","v":""},{"$f":"IF('1. Order'!W299=\"\",\"\",'1. Order'!W299)","v":""},{"$f":"IF('1. Order'!X299=\"\",\"\",'1. Order'!X299)","v":""},{"$f":"IF('1. Order'!Y299=\"\",\"\",'1. Order'!Y299)","v":"EUR"},{"$f":"IF('1. Order'!Z299=\"\",\"\",'1. Order'!Z299)","v":""},{"$f":"IF('1. Order'!AA299=\"\",\"\",'1. Order'!AA299)","v":""},{"$f":"IF('1. Order'!AB299=\"\",\"\",'1. Order'!AB299)","v":""},null,{"$f":"IF('1. Order'!AT299=\"\",\"\",'1. Order'!AT299)","v":""},{"$f":"IF('1. Order'!AU299=\"\",\"\",'1. Order'!AU299)","v":""},null,null,null,null,null,null,null,{"$f":"IF('1. Order'!AY299=\"\",\"\",'1. Order'!AY299)","v":""},{"$f":"IF('1. Order'!AZ299=\"\",\"\",'1. Order'!AZ299)","v":""},{"$f":"IF('1. Order'!BA299=\"\",\"\",'1. Order'!BA299)","v":""},{"$f":"IF('1. Order'!BB299=\"\",\"\",'1. Order'!BB299)","v":""},{"$f":"IF('1. Order'!BD299=\"\",\"\",'1. Order'!BD299)","v":""},{"$f":"IF('1. Order'!BE299=\"\",\"\",'1. Order'!BE299)","v":""},{"$f":"IF('1. Order'!BF299=\"\",\"\",'1. Order'!BF299)","v":""},{"$f":"IF('1. Order'!BG299=\"\",\"\",'1. Order'!BG299)","v":""},{"$f":"IF('1. Order'!BH299=\"\",\"\",'1. Order'!BH299)","v":"ZWO"}]
[{"$f":"IF('1. Order'!F300=\"\",\"\",'1. Order'!F300)","v":{"$error":"#N/A"}},{"$f":"IF('1. Order'!G300=\"\",\"\",'1. Order'!G300)","v":""},{"$f":"IF('1. Order'!H300=\"\",\"\",'1. Order'!H300)","v":""},{"$f":"IF('1. Order'!I300=\"\",\"\",'1. Order'!I300)","v":""},{"$f":"IF('1. Order'!J300=\"\",\"\",'1. Order'!J300)","v":""},{"$f":"IF('1. Order'!K300=\"\",\"\",'1. Order'!K300)","v":""},{"$f":"IF('1. Order'!L300=\"\",\"\",'1. Order'!L300)","v":""},{"$f":"IF('1. Order'!M300=\"\",\"\",'1. Order'!M300)","v":""},{"$f":"IF('1. Order'!N300=\"\",\"\",'1. Order'!N300)","v":""},{"$f":"IF('1. Order'!O300=\"\",\"\",'1. Order'!O300)","v":{"$error":"#N/A"}},{"$f":"IF('1. Order'!P300=\"\",\"\",'1. Order'!P300)","v":{"$error":"#N/A"}},{"$f":"IF('1. Order'!Q300=\"\",\"\",'1. Order'!Q300)","v":""},{"$f":"IF('1. Order'!S300=\"\",\"\",'1. Order'!S300)","v":""},{"$f":"IF('1. Order'!T300=\"\",\"\",'1. Order'!T300)","v":""},{"$f":"IF('1. Order'!W300=\"\",\"\",'1. Order'!W300)","v":""},{"$f":"IF('1. Order'!X300=\"\",\"\",'1. Order'!X300)","v":""},{"$f":"IF('1. Order'!Y300=\"\",\"\",'1. Order'!Y300)","v":"EUR"},{"$f":"IF('1. Order'!Z300=\"\",\"\",'1. Order'!Z300)","v":""},{"$f":"IF('1. Order'!AA300=\"\",\"\",'1. Order'!AA300)","v":""},{"$f":"IF('1. Order'!AB300=\"\",\"\",'1. Order'!AB300)","v":""},null,{"$f":"IF('1. Order'!AT300=\"\",\"\",'1. Order'!AT300)","v":""},{"$f":"IF('1. Order'!AU300=\"\",\"\",'1. Order'!AU300)","v":""},null,null,null,null,null,null,null,{"$f":"IF('1. Order'!AY300=\"\",\"\",'1. Order'!AY300)","v":""},{"$f":"IF('1. Order'!AZ300=\"\",\"\",'1. Order'!AZ300)","v":""},{"$f":"IF('1. Order'!BA300=\"\",\"\",'1. Order'!BA300)","v":""},{"$f":"IF('1. Order'!BB300=\"\",\"\",'1. Order'!BB300)","v":""},{"$f":"IF('1. Order'!BD300=\"\",\"\",'1. Order'!BD300)","v":""},{"$f":"IF('1. Order'!BE300=\"\",\"\",'1. Order'!BE300)","v":""},{"$f":"IF('1. Order'!BF300=\"\",\"\",'1. Order'!BF300)","v":""},{"$f":"IF('1. Order'!BG300=\"\",\"\",'1. Order'!BG300)","v":""},{"$f":"IF('1. Order'!BH300=\"\",\"\",'1. Order'!BH300)","v":"ZWO"}]
[{"$f":"IF('1. Order'!F301=\"\",\"\",'1. Order'!F301)","v":{"$error":"#N/A"}},{"$f":"IF('1. Order'!G301=\"\",\"\",'1. Order'!G301)","v":""},{"$f":"IF('1. Order'!H301=\"\",\"\",'1. Order'!H301)","v":""},{"$f":"IF('1. Order'!I301=\"\",\"\",'1. Order'!I301)","v":""},{"$f":"IF('1. Order'!J301=\"\",\"\",'1. Order'!J301)","v":""},{"$f":"IF('1. Order'!K301=\"\",\"\",'1. Order'!K301)","v":""},{"$f":"IF('1. Order'!L301=\"\",\"\",'1. Order'!L301)","v":""},{"$f":"IF('1. Order'!M301=\"\",\"\",'1. Order'!M301)","v":""},{"$f":"IF('1. Order'!N301=\"\",\"\",'1. Order'!N301)","v":""},{"$f":"IF('1. Order'!O301=\"\",\"\",'1. Order'!O301)","v":{"$error":"#N/A"}},{"$f":"IF('1. Order'!P301=\"\",\"\",'1. Order'!P301)","v":{"$error":"#N/A"}},{"$f":"IF('1. Order'!Q301=\"\",\"\",'1. Order'!Q301)","v":""},{"$f":"IF('1. Order'!S301=\"\",\"\",'1. Order'!S301)","v":""},{"$f":"IF('1. Order'!T301=\"\",\"\",'1. Order'!T301)","v":""},{"$f":"IF('1. Order'!W301=\"\",\"\",'1. Order'!W301)","v":""},{"$f":"IF('1. Order'!X301=\"\",\"\",'1. Order'!X301)","v":""},{"$f":"IF('1. Order'!Y301=\"\",\"\",'1. Order'!Y301)","v":"EUR"},{"$f":"IF('1. Order'!Z301=\"\",\"\",'1. Order'!Z301)","v":""},{"$f":"IF('1. Order'!AA301=\"\",\"\",'1. Order'!AA301)","v":""},{"$f":"IF('1. Order'!AB301=\"\",\"\",'1. Order'!AB301)","v":""},null,{"$f":"IF('1. Order'!AT301=\"\",\"\",'1. Order'!AT301)","v":""},{"$f":"IF('1. Order'!AU301=\"\",\"\",'1. Order'!AU301)","v":""},null,null,null,null,null,null,null,{"$f":"IF('1. Order'!AY301=\"\",\"\",'1. Order'!AY301)","v":""},{"$f":"IF('1. Order'!AZ301=\"\",\"\",'1. Order'!AZ301)","v":""},{"$f":"IF('1. Order'!BA301=\"\",\"\",'1. Order'!BA301)","v":""},{"$f":"IF('1. Order'!BB301=\"\",\"\",'1. Order'!BB301)","v":""},{"$f":"IF('1. Order'!BD301=\"\",\"\",'1. Order'!BD301)","v":""},{"$f":"IF('1. Order'!BE301=\"\",\"\",'1. Order'!BE301)","v":""},{"$f":"IF('1. Order'!BF301=\"\",\"\",'1. Order'!BF301)","v":""},{"$f":"IF('1. Order'!BG301=\"\",\"\",'1. Order'!BG301)","v":""},{"$f":"IF('1. Order'!BH301=\"\",\"\",'1. Order'!BH301)","v":"ZWO"}]
[{"$f":"IF('1. Order'!F302=\"\",\"\",'1. Order'!F302)","v":{"$error":"#N/A"}},{"$f":"IF('1. Order'!G302=\"\",\"\",'1. Order'!G302)","v":""},{"$f":"IF('1. Order'!H302=\"\",\"\",'1. Order'!H302)","v":""},{"$f":"IF('1. Order'!I302=\"\",\"\",'1. Order'!I302)","v":""},{"$f":"IF('1. Order'!J302=\"\",\"\",'1. Order'!J302)","v":""},{"$f":"IF('1. Order'!K302=\"\",\"\",'1. Order'!K302)","v":""},{"$f":"IF('1. Order'!L302=\"\",\"\",'1. Order'!L302)","v":""},{"$f":"IF('1. Order'!M302=\"\",\"\",'1. Order'!M302)","v":""},{"$f":"IF('1. Order'!N302=\"\",\"\",'1. Order'!N302)","v":""},{"$f":"IF('1. Order'!O302=\"\",\"\",'1. Order'!O302)","v":{"$error":"#N/A"}},{"$f":"IF('1. Order'!P302=\"\",\"\",'1. Order'!P302)","v":{"$error":"#N/A"}},{"$f":"IF('1. Order'!Q302=\"\",\"\",'1. Order'!Q302)","v":""},{"$f":"IF('1. Order'!S302=\"\",\"\",'1. Order'!S302)","v":""},{"$f":"IF('1. Order'!T302=\"\",\"\",'1. Order'!T302)","v":""},{"$f":"IF('1. Order'!W302=\"\",\"\",'1. Order'!W302)","v":""},{"$f":"IF('1. Order'!X302=\"\",\"\",'1. Order'!X302)","v":""},{"$f":"IF('1. Order'!Y302=\"\",\"\",'1. Order'!Y302)","v":"EUR"},{"$f":"IF('1. Order'!Z302=\"\",\"\",'1. Order'!Z302)","v":""},{"$f":"IF('1. Order'!AA302=\"\",\"\",'1. Order'!AA302)","v":""},{"$f":"IF('1. Order'!AB302=\"\",\"\",'1. Order'!AB302)","v":""},null,{"$f":"IF('1. Order'!AT302=\"\",\"\",'1. Order'!AT302)","v":""},{"$f":"IF('1. Order'!AU302=\"\",\"\",'1. Order'!AU302)","v":""},null,null,null,null,null,null,null,{"$f":"IF('1. Order'!AY302=\"\",\"\",'1. Order'!AY302)","v":""},{"$f":"IF('1. Order'!AZ302=\"\",\"\",'1. Order'!AZ302)","v":""},{"$f":"IF('1. Order'!BA302=\"\",\"\",'1. Order'!BA302)","v":""},{"$f":"IF('1. Order'!BB302=\"\",\"\",'1. Order'!BB302)","v":""},{"$f":"IF('1. Order'!BD302=\"\",\"\",'1. Order'!BD302)","v":""},{"$f":"IF('1. Order'!BE302=\"\",\"\",'1. Order'!BE302)","v":""},{"$f":"IF('1. Order'!BF302=\"\",\"\",'1. Order'!BF302)","v":""},{"$f":"IF('1. Order'!BG302=\"\",\"\",'1. Order'!BG302)","v":""},{"$f":"IF('1. Order'!BH302=\"\",\"\",'1. Order'!BH302)","v":"ZWO"}]
[{"$f":"IF('1. Order'!F303=\"\",\"\",'1. Order'!F303)","v":{"$error":"#N/A"}},{"$f":"IF('1. Order'!G303=\"\",\"\",'1. Order'!G303)","v":""},{"$f":"IF('1. Order'!H303=\"\",\"\",'1. Order'!H303)","v":""},{"$f":"IF('1. Order'!I303=\"\",\"\",'1. Order'!I303)","v":""},{"$f":"IF('1. Order'!J303=\"\",\"\",'1. Order'!J303)","v":""},{"$f":"IF('1. Order'!K303=\"\",\"\",'1. Order'!K303)","v":""},{"$f":"IF('1. Order'!L303=\"\",\"\",'1. Order'!L303)","v":""},{"$f":"IF('1. Order'!M303=\"\",\"\",'1. Order'!M303)","v":""},{"$f":"IF('1. Order'!N303=\"\",\"\",'1. Order'!N303)","v":""},{"$f":"IF('1. Order'!O303=\"\",\"\",'1. Order'!O303)","v":{"$error":"#N/A"}},{"$f":"IF('1. Order'!P303=\"\",\"\",'1. Order'!P303)","v":{"$error":"#N/A"}},{"$f":"IF('1. Order'!Q303=\"\",\"\",'1. Order'!Q303)","v":""},{"$f":"IF('1. Order'!S303=\"\",\"\",'1. Order'!S303)","v":""},{"$f":"IF('1. Order'!T303=\"\",\"\",'1. Order'!T303)","v":""},{"$f":"IF('1. Order'!W303=\"\",\"\",'1. Order'!W303)","v":""},{"$f":"IF('1. Order'!X303=\"\",\"\",'1. Order'!X303)","v":""},{"$f":"IF('1. Order'!Y303=\"\",\"\",'1. Order'!Y303)","v":"EUR"},{"$f":"IF('1. Order'!Z303=\"\",\"\",'1. Order'!Z303)","v":""},{"$f":"IF('1. Order'!AA303=\"\",\"\",'1. Order'!AA303)","v":""},{"$f":"IF('1. Order'!AB303=\"\",\"\",'1. Order'!AB303)","v":""},null,{"$f":"IF('1. Order'!AT303=\"\",\"\",'1. Order'!AT303)","v":""},{"$f":"IF('1. Order'!AU303=\"\",\"\",'1. Order'!AU303)","v":""},null,null,null,null,null,null,null,{"$f":"IF('1. Order'!AY303=\"\",\"\",'1. Order'!AY303)","v":""},{"$f":"IF('1. Order'!AZ303=\"\",\"\",'1. Order'!AZ303)","v":""},{"$f":"IF('1. Order'!BA303=\"\",\"\",'1. Order'!BA303)","v":""},{"$f":"IF('1. Order'!BB303=\"\",\"\",'1. Order'!BB303)","v":""},{"$f":"IF('1. Order'!BD303=\"\",\"\",'1. Order'!BD303)","v":""},{"$f":"IF('1. Order'!BE303=\"\",\"\",'1. Order'!BE303)","v":""},{"$f":"IF('1. Order'!BF303=\"\",\"\",'1. Order'!BF303)","v":""},{"$f":"IF('1. Order'!BG303=\"\",\"\",'1. Order'!BG303)","v":""},{"$f":"IF('1. Order'!BH303=\"\",\"\",'1. Order'!BH303)","v":"ZWO"}]
[{"$f":"IF('1. Order'!F304=\"\",\"\",'1. Order'!F304)","v":{"$error":"#N/A"}},{"$f":"IF('1. Order'!G304=\"\",\"\",'1. Order'!G304)","v":""},{"$f":"IF('1. Order'!H304=\"\",\"\",'1. Order'!H304)","v":""},{"$f":"IF('1. Order'!I304=\"\",\"\",'1. Order'!I304)","v":""},{"$f":"IF('1. Order'!J304=\"\",\"\",'1. Order'!J304)","v":""},{"$f":"IF('1. Order'!K304=\"\",\"\",'1. Order'!K304)","v":""},{"$f":"IF('1. Order'!L304=\"\",\"\",'1. Order'!L304)","v":""},{"$f":"IF('1. Order'!M304=\"\",\"\",'1. Order'!M304)","v":""},{"$f":"IF('1. Order'!N304=\"\",\"\",'1. Order'!N304)","v":""},{"$f":"IF('1. Order'!O304=\"\",\"\",'1. Order'!O304)","v":{"$error":"#N/A"}},{"$f":"IF('1. Order'!P304=\"\",\"\",'1. Order'!P304)","v":{"$error":"#N/A"}},{"$f":"IF('1. Order'!Q304=\"\",\"\",'1. Order'!Q304)","v":""},{"$f":"IF('1. Order'!S304=\"\",\"\",'1. Order'!S304)","v":""},{"$f":"IF('1. Order'!T304=\"\",\"\",'1. Order'!T304)","v":""},{"$f":"IF('1. Order'!W304=\"\",\"\",'1. Order'!W304)","v":""},{"$f":"IF('1. Order'!X304=\"\",\"\",'1. Order'!X304)","v":""},{"$f":"IF('1. Order'!Y304=\"\",\"\",'1. Order'!Y304)","v":"EUR"},{"$f":"IF('1. Order'!Z304=\"\",\"\",'1. Order'!Z304)","v":""},{"$f":"IF('1. Order'!AA304=\"\",\"\",'1. Order'!AA304)","v":""},{"$f":"IF('1. Order'!AB304=\"\",\"\",'1. Order'!AB304)","v":""},null,{"$f":"IF('1. Order'!AT304=\"\",\"\",'1. Order'!AT304)","v":""},{"$f":"IF('1. Order'!AU304=\"\",\"\",'1. Order'!AU304)","v":""},null,null,null,null,null,null,null,{"$f":"IF('1. Order'!AY304=\"\",\"\",'1. Order'!AY304)","v":""},{"$f":"IF('1. Order'!AZ304=\"\",\"\",'1. Order'!AZ304)","v":""},{"$f":"IF('1. Order'!BA304=\"\",\"\",'1. Order'!BA304)","v":""},{"$f":"IF('1. Order'!BB304=\"\",\"\",'1. Order'!BB304)","v":""},{"$f":"IF('1. Order'!BD304=\"\",\"\",'1. Order'!BD304)","v":""},{"$f":"IF('1. Order'!BE304=\"\",\"\",'1. Order'!BE304)","v":""},{"$f":"IF('1. Order'!BF304=\"\",\"\",'1. Order'!BF304)","v":""},{"$f":"IF('1. Order'!BG304=\"\",\"\",'1. Order'!BG304)","v":""},{"$f":"IF('1. Order'!BH304=\"\",\"\",'1. Order'!BH304)","v":"ZWO"}]
[{"$f":"IF('1. Order'!F305=\"\",\"\",'1. Order'!F305)","v":{"$error":"#N/A"}},{"$f":"IF('1. Order'!G305=\"\",\"\",'1. Order'!G305)","v":""},{"$f":"IF('1. Order'!H305=\"\",\"\",'1. Order'!H305)","v":""},{"$f":"IF('1. Order'!I305=\"\",\"\",'1. Order'!I305)","v":""},{"$f":"IF('1. Order'!J305=\"\",\"\",'1. Order'!J305)","v":""},{"$f":"IF('1. Order'!K305=\"\",\"\",'1. Order'!K305)","v":""},{"$f":"IF('1. Order'!L305=\"\",\"\",'1. Order'!L305)","v":""},{"$f":"IF('1. Order'!M305=\"\",\"\",'1. Order'!M305)","v":""},{"$f":"IF('1. Order'!N305=\"\",\"\",'1. Order'!N305)","v":""},{"$f":"IF('1. Order'!O305=\"\",\"\",'1. Order'!O305)","v":{"$error":"#N/A"}},{"$f":"IF('1. Order'!P305=\"\",\"\",'1. Order'!P305)","v":{"$error":"#N/A"}},{"$f":"IF('1. Order'!Q305=\"\",\"\",'1. Order'!Q305)","v":""},{"$f":"IF('1. Order'!S305=\"\",\"\",'1. Order'!S305)","v":""},{"$f":"IF('1. Order'!T305=\"\",\"\",'1. Order'!T305)","v":""},{"$f":"IF('1. Order'!W305=\"\",\"\",'1. Order'!W305)","v":""},{"$f":"IF('1. Order'!X305=\"\",\"\",'1. Order'!X305)","v":""},{"$f":"IF('1. Order'!Y305=\"\",\"\",'1. Order'!Y305)","v":"EUR"},{"$f":"IF('1. Order'!Z305=\"\",\"\",'1. Order'!Z305)","v":""},{"$f":"IF('1. Order'!AA305=\"\",\"\",'1. Order'!AA305)","v":""},{"$f":"IF('1. Order'!AB305=\"\",\"\",'1. Order'!AB305)","v":""},null,{"$f":"IF('1. Order'!AT305=\"\",\"\",'1. Order'!AT305)","v":""},{"$f":"IF('1. Order'!AU305=\"\",\"\",'1. Order'!AU305)","v":""},null,null,null,null,null,null,null,{"$f":"IF('1. Order'!AY305=\"\",\"\",'1. Order'!AY305)","v":""},{"$f":"IF('1. Order'!AZ305=\"\",\"\",'1. Order'!AZ305)","v":""},{"$f":"IF('1. Order'!BA305=\"\",\"\",'1. Order'!BA305)","v":""},{"$f":"IF('1. Order'!BB305=\"\",\"\",'1. Order'!BB305)","v":""},{"$f":"IF('1. Order'!BD305=\"\",\"\",'1. Order'!BD305)","v":""},{"$f":"IF('1. Order'!BE305=\"\",\"\",'1. Order'!BE305)","v":""},{"$f":"IF('1. Order'!BF305=\"\",\"\",'1. Order'!BF305)","v":""},{"$f":"IF('1. Order'!BG305=\"\",\"\",'1. Order'!BG305)","v":""},{"$f":"IF('1. Order'!BH305=\"\",\"\",'1. Order'!BH305)","v":"ZWO"}]
[{"$f":"IF('1. Order'!F306=\"\",\"\",'1. Order'!F306)","v":{"$error":"#N/A"}},{"$f":"IF('1. Order'!G306=\"\",\"\",'1. Order'!G306)","v":""},{"$f":"IF('1. Order'!H306=\"\",\"\",'1. Order'!H306)","v":""},{"$f":"IF('1. Order'!I306=\"\",\"\",'1. Order'!I306)","v":""},{"$f":"IF('1. Order'!J306=\"\",\"\",'1. Order'!J306)","v":""},{"$f":"IF('1. Order'!K306=\"\",\"\",'1. Order'!K306)","v":""},{"$f":"IF('1. Order'!L306=\"\",\"\",'1. Order'!L306)","v":""},{"$f":"IF('1. Order'!M306=\"\",\"\",'1. Order'!M306)","v":""},{"$f":"IF('1. Order'!N306=\"\",\"\",'1. Order'!N306)","v":""},{"$f":"IF('1. Order'!O306=\"\",\"\",'1. Order'!O306)","v":{"$error":"#N/A"}},{"$f":"IF('1. Order'!P306=\"\",\"\",'1. Order'!P306)","v":{"$error":"#N/A"}},{"$f":"IF('1. Order'!Q306=\"\",\"\",'1. Order'!Q306)","v":""},{"$f":"IF('1. Order'!S306=\"\",\"\",'1. Order'!S306)","v":""},{"$f":"IF('1. Order'!T306=\"\",\"\",'1. Order'!T306)","v":""},{"$f":"IF('1. Order'!W306=\"\",\"\",'1. Order'!W306)","v":""},{"$f":"IF('1. Order'!X306=\"\",\"\",'1. Order'!X306)","v":""},{"$f":"IF('1. Order'!Y306=\"\",\"\",'1. Order'!Y306)","v":"EUR"},{"$f":"IF('1. Order'!Z306=\"\",\"\",'1. Order'!Z306)","v":""},{"$f":"IF('1. Order'!AA306=\"\",\"\",'1. Order'!AA306)","v":""},{"$f":"IF('1. Order'!AB306=\"\",\"\",'1. Order'!AB306)","v":""},null,{"$f":"IF('1. Order'!AT306=\"\",\"\",'1. Order'!AT306)","v":""},{"$f":"IF('1. Order'!AU306=\"\",\"\",'1. Order'!AU306)","v":""},null,null,null,null,null,null,null,{"$f":"IF('1. Order'!AY306=\"\",\"\",'1. Order'!AY306)","v":""},{"$f":"IF('1. Order'!AZ306=\"\",\"\",'1. Order'!AZ306)","v":""},{"$f":"IF('1. Order'!BA306=\"\",\"\",'1. Order'!BA306)","v":""},{"$f":"IF('1. Order'!BB306=\"\",\"\",'1. Order'!BB306)","v":""},{"$f":"IF('1. Order'!BD306=\"\",\"\",'1. Order'!BD306)","v":""},{"$f":"IF('1. Order'!BE306=\"\",\"\",'1. Order'!BE306)","v":""},{"$f":"IF('1. Order'!BF306=\"\",\"\",'1. Order'!BF306)","v":""},{"$f":"IF('1. Order'!BG306=\"\",\"\",'1. Order'!BG306)","v":""},{"$f":"IF('1. Order'!BH306=\"\",\"\",'1. Order'!BH306)","v":"ZWO"}]
[{"$f":"IF('1. Order'!F307=\"\",\"\",'1. Order'!F307)","v":{"$error":"#N/A"}},{"$f":"IF('1. Order'!G307=\"\",\"\",'1. Order'!G307)","v":""},{"$f":"IF('1. Order'!H307=\"\",\"\",'1. Order'!H307)","v":""},{"$f":"IF('1. Order'!I307=\"\",\"\",'1. Order'!I307)","v":""},{"$f":"IF('1. Order'!J307=\"\",\"\",'1. Order'!J307)","v":""},{"$f":"IF('1. Order'!K307=\"\",\"\",'1. Order'!K307)","v":""},{"$f":"IF('1. Order'!L307=\"\",\"\",'1. Order'!L307)","v":""},{"$f":"IF('1. Order'!M307=\"\",\"\",'1. Order'!M307)","v":""},{"$f":"IF('1. Order'!N307=\"\",\"\",'1. Order'!N307)","v":""},{"$f":"IF('1. Order'!O307=\"\",\"\",'1. Order'!O307)","v":{"$error":"#N/A"}},{"$f":"IF('1. Order'!P307=\"\",\"\",'1. Order'!P307)","v":{"$error":"#N/A"}},{"$f":"IF('1. Order'!Q307=\"\",\"\",'1. Order'!Q307)","v":""},{"$f":"IF('1. Order'!S307=\"\",\"\",'1. Order'!S307)","v":""},{"$f":"IF('1. Order'!T307=\"\",\"\",'1. Order'!T307)","v":""},{"$f":"IF('1. Order'!W307=\"\",\"\",'1. Order'!W307)","v":""},{"$f":"IF('1. Order'!X307=\"\",\"\",'1. Order'!X307)","v":""},{"$f":"IF('1. Order'!Y307=\"\",\"\",'1. Order'!Y307)","v":"EUR"},{"$f":"IF('1. Order'!Z307=\"\",\"\",'1. Order'!Z307)","v":""},{"$f":"IF('1. Order'!AA307=\"\",\"\",'1. Order'!AA307)","v":""},{"$f":"IF('1. Order'!AB307=\"\",\"\",'1. Order'!AB307)","v":""},null,{"$f":"IF('1. Order'!AT307=\"\",\"\",'1. Order'!AT307)","v":""},{"$f":"IF('1. Order'!AU307=\"\",\"\",'1. Order'!AU307)","v":""},null,null,null,null,null,null,null,{"$f":"IF('1. Order'!AY307=\"\",\"\",'1. Order'!AY307)","v":""},{"$f":"IF('1. Order'!AZ307=\"\",\"\",'1. Order'!AZ307)","v":""},{"$f":"IF('1. Order'!BA307=\"\",\"\",'1. Order'!BA307)","v":""},{"$f":"IF('1. Order'!BB307=\"\",\"\",'1. Order'!BB307)","v":""},{"$f":"IF('1. Order'!BD307=\"\",\"\",'1. Order'!BD307)","v":""},{"$f":"IF('1. Order'!BE307=\"\",\"\",'1. Order'!BE307)","v":""},{"$f":"IF('1. Order'!BF307=\"\",\"\",'1. Order'!BF307)","v":""},{"$f":"IF('1. Order'!BG307=\"\",\"\",'1. Order'!BG307)","v":""},{"$f":"IF('1. Order'!BH307=\"\",\"\",'1. Order'!BH307)","v":"ZWO"}]
[{"$f":"IF('1. Order'!F308=\"\",\"\",'1. Order'!F308)","v":{"$error":"#N/A"}},{"$f":"IF('1. Order'!G308=\"\",\"\",'1. Order'!G308)","v":""},{"$f":"IF('1. Order'!H308=\"\",\"\",'1. Order'!H308)","v":""},{"$f":"IF('1. Order'!I308=\"\",\"\",'1. Order'!I308)","v":""},{"$f":"IF('1. Order'!J308=\"\",\"\",'1. Order'!J308)","v":""},{"$f":"IF('1. Order'!K308=\"\",\"\",'1. Order'!K308)","v":""},{"$f":"IF('1. Order'!L308=\"\",\"\",'1. Order'!L308)","v":""},{"$f":"IF('1. Order'!M308=\"\",\"\",'1. Order'!M308)","v":""},{"$f":"IF('1. Order'!N308=\"\",\"\",'1. Order'!N308)","v":""},{"$f":"IF('1. Order'!O308=\"\",\"\",'1. Order'!O308)","v":{"$error":"#N/A"}},{"$f":"IF('1. Order'!P308=\"\",\"\",'1. Order'!P308)","v":{"$error":"#N/A"}},{"$f":"IF('1. Order'!Q308=\"\",\"\",'1. Order'!Q308)","v":""},{"$f":"IF('1. Order'!S308=\"\",\"\",'1. Order'!S308)","v":""},{"$f":"IF('1. Order'!T308=\"\",\"\",'1. Order'!T308)","v":""},{"$f":"IF('1. Order'!W308=\"\",\"\",'1. Order'!W308)","v":""},{"$f":"IF('1. Order'!X308=\"\",\"\",'1. Order'!X308)","v":""},{"$f":"IF('1. Order'!Y308=\"\",\"\",'1. Order'!Y308)","v":"EUR"},{"$f":"IF('1. Order'!Z308=\"\",\"\",'1. Order'!Z308)","v":""},{"$f":"IF('1. Order'!AA308=\"\",\"\",'1. Order'!AA308)","v":""},{"$f":"IF('1. Order'!AB308=\"\",\"\",'1. Order'!AB308)","v":""},null,{"$f":"IF('1. Order'!AT308=\"\",\"\",'1. Order'!AT308)","v":""},{"$f":"IF('1. Order'!AU308=\"\",\"\",'1. Order'!AU308)","v":""},null,null,null,null,null,null,null,{"$f":"IF('1. Order'!AY308=\"\",\"\",'1. Order'!AY308)","v":""},{"$f":"IF('1. Order'!AZ308=\"\",\"\",'1. Order'!AZ308)","v":""},{"$f":"IF('1. Order'!BA308=\"\",\"\",'1. Order'!BA308)","v":""},{"$f":"IF('1. Order'!BB308=\"\",\"\",'1. Order'!BB308)","v":""},{"$f":"IF('1. Order'!BD308=\"\",\"\",'1. Order'!BD308)","v":""},{"$f":"IF('1. Order'!BE308=\"\",\"\",'1. Order'!BE308)","v":""},{"$f":"IF('1. Order'!BF308=\"\",\"\",'1. Order'!BF308)","v":""},{"$f":"IF('1. Order'!BG308=\"\",\"\",'1. Order'!BG308)","v":""},{"$f":"IF('1. Order'!BH308=\"\",\"\",'1. Order'!BH308)","v":"ZWO"}]
[{"$f":"IF('1. Order'!F309=\"\",\"\",'1. Order'!F309)","v":{"$error":"#N/A"}},{"$f":"IF('1. Order'!G309=\"\",\"\",'1. Order'!G309)","v":""},{"$f":"IF('1. Order'!H309=\"\",\"\",'1. Order'!H309)","v":""},{"$f":"IF('1. Order'!I309=\"\",\"\",'1. Order'!I309)","v":""},{"$f":"IF('1. Order'!J309=\"\",\"\",'1. Order'!J309)","v":""},{"$f":"IF('1. Order'!K309=\"\",\"\",'1. Order'!K309)","v":""},{"$f":"IF('1. Order'!L309=\"\",\"\",'1. Order'!L309)","v":""},{"$f":"IF('1. Order'!M309=\"\",\"\",'1. Order'!M309)","v":""},{"$f":"IF('1. Order'!N309=\"\",\"\",'1. Order'!N309)","v":""},{"$f":"IF('1. Order'!O309=\"\",\"\",'1. Order'!O309)","v":{"$error":"#N/A"}},{"$f":"IF('1. Order'!P309=\"\",\"\",'1. Order'!P309)","v":{"$error":"#N/A"}},{"$f":"IF('1. Order'!Q309=\"\",\"\",'1. Order'!Q309)","v":""},{"$f":"IF('1. Order'!S309=\"\",\"\",'1. Order'!S309)","v":""},{"$f":"IF('1. Order'!T309=\"\",\"\",'1. Order'!T309)","v":""},{"$f":"IF('1. Order'!W309=\"\",\"\",'1. Order'!W309)","v":""},{"$f":"IF('1. Order'!X309=\"\",\"\",'1. Order'!X309)","v":""},{"$f":"IF('1. Order'!Y309=\"\",\"\",'1. Order'!Y309)","v":"EUR"},{"$f":"IF('1. Order'!Z309=\"\",\"\",'1. Order'!Z309)","v":""},{"$f":"IF('1. Order'!AA309=\"\",\"\",'1. Order'!AA309)","v":""},{"$f":"IF('1. Order'!AB309=\"\",\"\",'1. Order'!AB309)","v":""},null,{"$f":"IF('1. Order'!AT309=\"\",\"\",'1. Order'!AT309)","v":""},{"$f":"IF('1. Order'!AU309=\"\",\"\",'1. Order'!AU309)","v":""},null,null,null,null,null,null,null,{"$f":"IF('1. Order'!AY309=\"\",\"\",'1. Order'!AY309)","v":""},{"$f":"IF('1. Order'!AZ309=\"\",\"\",'1. Order'!AZ309)","v":""},{"$f":"IF('1. Order'!BA309=\"\",\"\",'1. Order'!BA309)","v":""},{"$f":"IF('1. Order'!BB309=\"\",\"\",'1. Order'!BB309)","v":""},{"$f":"IF('1. Order'!BD309=\"\",\"\",'1. Order'!BD309)","v":""},{"$f":"IF('1. Order'!BE309=\"\",\"\",'1. Order'!BE309)","v":""},{"$f":"IF('1. Order'!BF309=\"\",\"\",'1. Order'!BF309)","v":""},{"$f":"IF('1. Order'!BG309=\"\",\"\",'1. Order'!BG309)","v":""},{"$f":"IF('1. Order'!BH309=\"\",\"\",'1. Order'!BH309)","v":"ZWO"}]
[{"$f":"IF('1. Order'!F310=\"\",\"\",'1. Order'!F310)","v":{"$error":"#N/A"}},{"$f":"IF('1. Order'!G310=\"\",\"\",'1. Order'!G310)","v":""},{"$f":"IF('1. Order'!H310=\"\",\"\",'1. Order'!H310)","v":""},{"$f":"IF('1. Order'!I310=\"\",\"\",'1. Order'!I310)","v":""},{"$f":"IF('1. Order'!J310=\"\",\"\",'1. Order'!J310)","v":""},{"$f":"IF('1. Order'!K310=\"\",\"\",'1. Order'!K310)","v":""},{"$f":"IF('1. Order'!L310=\"\",\"\",'1. Order'!L310)","v":""},{"$f":"IF('1. Order'!M310=\"\",\"\",'1. Order'!M310)","v":""},{"$f":"IF('1. Order'!N310=\"\",\"\",'1. Order'!N310)","v":""},{"$f":"IF('1. Order'!O310=\"\",\"\",'1. Order'!O310)","v":{"$error":"#N/A"}},{"$f":"IF('1. Order'!P310=\"\",\"\",'1. Order'!P310)","v":{"$error":"#N/A"}},{"$f":"IF('1. Order'!Q310=\"\",\"\",'1. Order'!Q310)","v":""},{"$f":"IF('1. Order'!S310=\"\",\"\",'1. Order'!S310)","v":""},{"$f":"IF('1. Order'!T310=\"\",\"\",'1. Order'!T310)","v":""},{"$f":"IF('1. Order'!W310=\"\",\"\",'1. Order'!W310)","v":""},{"$f":"IF('1. Order'!X310=\"\",\"\",'1. Order'!X310)","v":""},{"$f":"IF('1. Order'!Y310=\"\",\"\",'1. Order'!Y310)","v":"EUR"},{"$f":"IF('1. Order'!Z310=\"\",\"\",'1. Order'!Z310)","v":""},{"$f":"IF('1. Order'!AA310=\"\",\"\",'1. Order'!AA310)","v":""},{"$f":"IF('1. Order'!AB310=\"\",\"\",'1. Order'!AB310)","v":""},null,{"$f":"IF('1. Order'!AT310=\"\",\"\",'1. Order'!AT310)","v":""},{"$f":"IF('1. Order'!AU310=\"\",\"\",'1. Order'!AU310)","v":""},null,null,null,null,null,null,null,{"$f":"IF('1. Order'!AY310=\"\",\"\",'1. Order'!AY310)","v":""},{"$f":"IF('1. Order'!AZ310=\"\",\"\",'1. Order'!AZ310)","v":""},{"$f":"IF('1. Order'!BA310=\"\",\"\",'1. Order'!BA310)","v":""},{"$f":"IF('1. Order'!BB310=\"\",\"\",'1. Order'!BB310)","v":""},{"$f":"IF('1. Order'!BD310=\"\",\"\",'1. Order'!BD310)","v":""},{"$f":"IF('1. Order'!BE310=\"\",\"\",'1. Order'!BE310)","v":""},{"$f":"IF('1. Order'!BF310=\"\",\"\",'1. Order'!BF310)","v":""},{"$f":"IF('1. Order'!BG310=\"\",\"\",'1. Order'!BG310)","v":""},{"$f":"IF('1. Order'!BH310=\"\",\"\",'1. Order'!BH310)","v":"ZWO"}]
[{"$f":"IF('1. Order'!F311=\"\",\"\",'1. Order'!F311)","v":{"$error":"#N/A"}},{"$f":"IF('1. Order'!G311=\"\",\"\",'1. Order'!G311)","v":""},{"$f":"IF('1. Order'!H311=\"\",\"\",'1. Order'!H311)","v":""},{"$f":"IF('1. Order'!I311=\"\",\"\",'1. Order'!I311)","v":""},{"$f":"IF('1. Order'!J311=\"\",\"\",'1. Order'!J311)","v":""},{"$f":"IF('1. Order'!K311=\"\",\"\",'1. Order'!K311)","v":""},{"$f":"IF('1. Order'!L311=\"\",\"\",'1. Order'!L311)","v":""},{"$f":"IF('1. Order'!M311=\"\",\"\",'1. Order'!M311)","v":""},{"$f":"IF('1. Order'!N311=\"\",\"\",'1. Order'!N311)","v":""},{"$f":"IF('1. Order'!O311=\"\",\"\",'1. Order'!O311)","v":{"$error":"#N/A"}},{"$f":"IF('1. Order'!P311=\"\",\"\",'1. Order'!P311)","v":{"$error":"#N/A"}},{"$f":"IF('1. Order'!Q311=\"\",\"\",'1. Order'!Q311)","v":""},{"$f":"IF('1. Order'!S311=\"\",\"\",'1. Order'!S311)","v":""},{"$f":"IF('1. Order'!T311=\"\",\"\",'1. Order'!T311)","v":""},{"$f":"IF('1. Order'!W311=\"\",\"\",'1. Order'!W311)","v":""},{"$f":"IF('1. Order'!X311=\"\",\"\",'1. Order'!X311)","v":""},{"$f":"IF('1. Order'!Y311=\"\",\"\",'1. Order'!Y311)","v":"EUR"},{"$f":"IF('1. Order'!Z311=\"\",\"\",'1. Order'!Z311)","v":""},{"$f":"IF('1. Order'!AA311=\"\",\"\",'1. Order'!AA311)","v":""},{"$f":"IF('1. Order'!AB311=\"\",\"\",'1. Order'!AB311)","v":""},null,{"$f":"IF('1. Order'!AT311=\"\",\"\",'1. Order'!AT311)","v":""},{"$f":"IF('1. Order'!AU311=\"\",\"\",'1. Order'!AU311)","v":""},null,null,null,null,null,null,null,{"$f":"IF('1. Order'!AY311=\"\",\"\",'1. Order'!AY311)","v":""},{"$f":"IF('1. Order'!AZ311=\"\",\"\",'1. Order'!AZ311)","v":""},{"$f":"IF('1. Order'!BA311=\"\",\"\",'1. Order'!BA311)","v":""},{"$f":"IF('1. Order'!BB311=\"\",\"\",'1. Order'!BB311)","v":""},{"$f":"IF('1. Order'!BD311=\"\",\"\",'1. Order'!BD311)","v":""},{"$f":"IF('1. Order'!BE311=\"\",\"\",'1. Order'!BE311)","v":""},{"$f":"IF('1. Order'!BF311=\"\",\"\",'1. Order'!BF311)","v":""},{"$f":"IF('1. Order'!BG311=\"\",\"\",'1. Order'!BG311)","v":""},{"$f":"IF('1. Order'!BH311=\"\",\"\",'1. Order'!BH311)","v":"ZWO"}]
[{"$f":"IF('1. Order'!F312=\"\",\"\",'1. Order'!F312)","v":{"$error":"#N/A"}},{"$f":"IF('1. Order'!G312=\"\",\"\",'1. Order'!G312)","v":""},{"$f":"IF('1. Order'!H312=\"\",\"\",'1. Order'!H312)","v":""},{"$f":"IF('1. Order'!I312=\"\",\"\",'1. Order'!I312)","v":""},{"$f":"IF('1. Order'!J312=\"\",\"\",'1. Order'!J312)","v":""},{"$f":"IF('1. Order'!K312=\"\",\"\",'1. Order'!K312)","v":""},{"$f":"IF('1. Order'!L312=\"\",\"\",'1. Order'!L312)","v":""},{"$f":"IF('1. Order'!M312=\"\",\"\",'1. Order'!M312)","v":""},{"$f":"IF('1. Order'!N312=\"\",\"\",'1. Order'!N312)","v":""},{"$f":"IF('1. Order'!O312=\"\",\"\",'1. Order'!O312)","v":{"$error":"#N/A"}},{"$f":"IF('1. Order'!P312=\"\",\"\",'1. Order'!P312)","v":{"$error":"#N/A"}},{"$f":"IF('1. Order'!Q312=\"\",\"\",'1. Order'!Q312)","v":""},{"$f":"IF('1. Order'!S312=\"\",\"\",'1. Order'!S312)","v":""},{"$f":"IF('1. Order'!T312=\"\",\"\",'1. Order'!T312)","v":""},{"$f":"IF('1. Order'!W312=\"\",\"\",'1. Order'!W312)","v":""},{"$f":"IF('1. Order'!X312=\"\",\"\",'1. Order'!X312)","v":""},{"$f":"IF('1. Order'!Y312=\"\",\"\",'1. Order'!Y312)","v":"EUR"},{"$f":"IF('1. Order'!Z312=\"\",\"\",'1. Order'!Z312)","v":""},{"$f":"IF('1. Order'!AA312=\"\",\"\",'1. Order'!AA312)","v":""},{"$f":"IF('1. Order'!AB312=\"\",\"\",'1. Order'!AB312)","v":""},null,{"$f":"IF('1. Order'!AT312=\"\",\"\",'1. Order'!AT312)","v":""},{"$f":"IF('1. Order'!AU312=\"\",\"\",'1. Order'!AU312)","v":""},null,null,null,null,null,null,null,{"$f":"IF('1. Order'!AY312=\"\",\"\",'1. Order'!AY312)","v":""},{"$f":"IF('1. Order'!AZ312=\"\",\"\",'1. Order'!AZ312)","v":""},{"$f":"IF('1. Order'!BA312=\"\",\"\",'1. Order'!BA312)","v":""},{"$f":"IF('1. Order'!BB312=\"\",\"\",'1. Order'!BB312)","v":""},{"$f":"IF('1. Order'!BD312=\"\",\"\",'1. Order'!BD312)","v":""},{"$f":"IF('1. Order'!BE312=\"\",\"\",'1. Order'!BE312)","v":""},{"$f":"IF('1. Order'!BF312=\"\",\"\",'1. Order'!BF312)","v":""},{"$f":"IF('1. Order'!BG312=\"\",\"\",'1. Order'!BG312)","v":""},{"$f":"IF('1. Order'!BH312=\"\",\"\",'1. Order'!BH312)","v":"ZWO"}]
[{"$f":"IF('1. Order'!F313=\"\",\"\",'1. Order'!F313)","v":{"$error":"#N/A"}},{"$f":"IF('1. Order'!G313=\"\",\"\",'1. Order'!G313)","v":""},{"$f":"IF('1. Order'!H313=\"\",\"\",'1. Order'!H313)","v":""},{"$f":"IF('1. Order'!I313=\"\",\"\",'1. Order'!I313)","v":""},{"$f":"IF('1. Order'!J313=\"\",\"\",'1. Order'!J313)","v":""},{"$f":"IF('1. Order'!K313=\"\",\"\",'1. Order'!K313)","v":""},{"$f":"IF('1. Order'!L313=\"\",\"\",'1. Order'!L313)","v":""},{"$f":"IF('1. Order'!M313=\"\",\"\",'1. Order'!M313)","v":""},{"$f":"IF('1. Order'!N313=\"\",\"\",'1. Order'!N313)","v":""},{"$f":"IF('1. Order'!O313=\"\",\"\",'1. Order'!O313)","v":{"$error":"#N/A"}},{"$f":"IF('1. Order'!P313=\"\",\"\",'1. Order'!P313)","v":{"$error":"#N/A"}},{"$f":"IF('1. Order'!Q313=\"\",\"\",'1. Order'!Q313)","v":""},{"$f":"IF('1. Order'!S313=\"\",\"\",'1. Order'!S313)","v":""},{"$f":"IF('1. Order'!T313=\"\",\"\",'1. Order'!T313)","v":""},{"$f":"IF('1. Order'!W313=\"\",\"\",'1. Order'!W313)","v":""},{"$f":"IF('1. Order'!X313=\"\",\"\",'1. Order'!X313)","v":""},{"$f":"IF('1. Order'!Y313=\"\",\"\",'1. Order'!Y313)","v":"EUR"},{"$f":"IF('1. Order'!Z313=\"\",\"\",'1. Order'!Z313)","v":""},{"$f":"IF('1. Order'!AA313=\"\",\"\",'1. Order'!AA313)","v":""},{"$f":"IF('1. Order'!AB313=\"\",\"\",'1. Order'!AB313)","v":""},null,{"$f":"IF('1. Order'!AT313=\"\",\"\",'1. Order'!AT313)","v":""},{"$f":"IF('1. Order'!AU313=\"\",\"\",'1. Order'!AU313)","v":""},null,null,null,null,null,null,null,{"$f":"IF('1. Order'!AY313=\"\",\"\",'1. Order'!AY313)","v":""},{"$f":"IF('1. Order'!AZ313=\"\",\"\",'1. Order'!AZ313)","v":""},{"$f":"IF('1. Order'!BA313=\"\",\"\",'1. Order'!BA313)","v":""},{"$f":"IF('1. Order'!BB313=\"\",\"\",'1. Order'!BB313)","v":""},{"$f":"IF('1. Order'!BD313=\"\",\"\",'1. Order'!BD313)","v":""},{"$f":"IF('1. Order'!BE313=\"\",\"\",'1. Order'!BE313)","v":""},{"$f":"IF('1. Order'!BF313=\"\",\"\",'1. Order'!BF313)","v":""},{"$f":"IF('1. Order'!BG313=\"\",\"\",'1. Order'!BG313)","v":""},{"$f":"IF('1. Order'!BH313=\"\",\"\",'1. Order'!BH313)","v":"ZWO"}]
[{"$f":"IF('1. Order'!F314=\"\",\"\",'1. Order'!F314)","v":{"$error":"#N/A"}},{"$f":"IF('1. Order'!G314=\"\",\"\",'1. Order'!G314)","v":""},{"$f":"IF('1. Order'!H314=\"\",\"\",'1. Order'!H314)","v":""},{"$f":"IF('1. Order'!I314=\"\",\"\",'1. Order'!I314)","v":""},{"$f":"IF('1. Order'!J314=\"\",\"\",'1. Order'!J314)","v":""},{"$f":"IF('1. Order'!K314=\"\",\"\",'1. Order'!K314)","v":""},{"$f":"IF('1. Order'!L314=\"\",\"\",'1. Order'!L314)","v":""},{"$f":"IF('1. Order'!M314=\"\",\"\",'1. Order'!M314)","v":""},{"$f":"IF('1. Order'!N314=\"\",\"\",'1. Order'!N314)","v":""},{"$f":"IF('1. Order'!O314=\"\",\"\",'1. Order'!O314)","v":{"$error":"#N/A"}},{"$f":"IF('1. Order'!P314=\"\",\"\",'1. Order'!P314)","v":{"$error":"#N/A"}},{"$f":"IF('1. Order'!Q314=\"\",\"\",'1. Order'!Q314)","v":""},{"$f":"IF('1. Order'!S314=\"\",\"\",'1. Order'!S314)","v":""},{"$f":"IF('1. Order'!T314=\"\",\"\",'1. Order'!T314)","v":""},{"$f":"IF('1. Order'!W314=\"\",\"\",'1. Order'!W314)","v":""},{"$f":"IF('1. Order'!X314=\"\",\"\",'1. Order'!X314)","v":""},{"$f":"IF('1. Order'!Y314=\"\",\"\",'1. Order'!Y314)","v":"EUR"},{"$f":"IF('1. Order'!Z314=\"\",\"\",'1. Order'!Z314)","v":""},{"$f":"IF('1. Order'!AA314=\"\",\"\",'1. Order'!AA314)","v":""},{"$f":"IF('1. Order'!AB314=\"\",\"\",'1. Order'!AB314)","v":""},null,{"$f":"IF('1. Order'!AT314=\"\",\"\",'1. Order'!AT314)","v":""},{"$f":"IF('1. Order'!AU314=\"\",\"\",'1. Order'!AU314)","v":""},null,null,null,null,null,null,null,{"$f":"IF('1. Order'!AY314=\"\",\"\",'1. Order'!AY314)","v":""},{"$f":"IF('1. Order'!AZ314=\"\",\"\",'1. Order'!AZ314)","v":""},{"$f":"IF('1. Order'!BA314=\"\",\"\",'1. Order'!BA314)","v":""},{"$f":"IF('1. Order'!BB314=\"\",\"\",'1. Order'!BB314)","v":""},{"$f":"IF('1. Order'!BD314=\"\",\"\",'1. Order'!BD314)","v":""},{"$f":"IF('1. Order'!BE314=\"\",\"\",'1. Order'!BE314)","v":""},{"$f":"IF('1. Order'!BF314=\"\",\"\",'1. Order'!BF314)","v":""},{"$f":"IF('1. Order'!BG314=\"\",\"\",'1. Order'!BG314)","v":""},{"$f":"IF('1. Order'!BH314=\"\",\"\",'1. Order'!BH314)","v":"ZWO"}]
[{"$f":"IF('1. Order'!F315=\"\",\"\",'1. Order'!F315)","v":{"$error":"#N/A"}},{"$f":"IF('1. Order'!G315=\"\",\"\",'1. Order'!G315)","v":""},{"$f":"IF('1. Order'!H315=\"\",\"\",'1. Order'!H315)","v":""},{"$f":"IF('1. Order'!I315=\"\",\"\",'1. Order'!I315)","v":""},{"$f":"IF('1. Order'!J315=\"\",\"\",'1. Order'!J315)","v":""},{"$f":"IF('1. Order'!K315=\"\",\"\",'1. Order'!K315)","v":""},{"$f":"IF('1. Order'!L315=\"\",\"\",'1. Order'!L315)","v":""},{"$f":"IF('1. Order'!M315=\"\",\"\",'1. Order'!M315)","v":""},{"$f":"IF('1. Order'!N315=\"\",\"\",'1. Order'!N315)","v":""},{"$f":"IF('1. Order'!O315=\"\",\"\",'1. Order'!O315)","v":{"$error":"#N/A"}},{"$f":"IF('1. Order'!P315=\"\",\"\",'1. Order'!P315)","v":{"$error":"#N/A"}},{"$f":"IF('1. Order'!Q315=\"\",\"\",'1. Order'!Q315)","v":""},{"$f":"IF('1. Order'!S315=\"\",\"\",'1. Order'!S315)","v":""},{"$f":"IF('1. Order'!T315=\"\",\"\",'1. Order'!T315)","v":""},{"$f":"IF('1. Order'!W315=\"\",\"\",'1. Order'!W315)","v":""},{"$f":"IF('1. Order'!X315=\"\",\"\",'1. Order'!X315)","v":""},{"$f":"IF('1. Order'!Y315=\"\",\"\",'1. Order'!Y315)","v":"EUR"},{"$f":"IF('1. Order'!Z315=\"\",\"\",'1. Order'!Z315)","v":""},{"$f":"IF('1. Order'!AA315=\"\",\"\",'1. Order'!AA315)","v":""},{"$f":"IF('1. Order'!AB315=\"\",\"\",'1. Order'!AB315)","v":""},null,{"$f":"IF('1. Order'!AT315=\"\",\"\",'1. Order'!AT315)","v":""},{"$f":"IF('1. Order'!AU315=\"\",\"\",'1. Order'!AU315)","v":""},null,null,null,null,null,null,null,{"$f":"IF('1. Order'!AY315=\"\",\"\",'1. Order'!AY315)","v":""},{"$f":"IF('1. Order'!AZ315=\"\",\"\",'1. Order'!AZ315)","v":""},{"$f":"IF('1. Order'!BA315=\"\",\"\",'1. Order'!BA315)","v":""},{"$f":"IF('1. Order'!BB315=\"\",\"\",'1. Order'!BB315)","v":""},{"$f":"IF('1. Order'!BD315=\"\",\"\",'1. Order'!BD315)","v":""},{"$f":"IF('1. Order'!BE315=\"\",\"\",'1. Order'!BE315)","v":""},{"$f":"IF('1. Order'!BF315=\"\",\"\",'1. Order'!BF315)","v":""},{"$f":"IF('1. Order'!BG315=\"\",\"\",'1. Order'!BG315)","v":""},{"$f":"IF('1. Order'!BH315=\"\",\"\",'1. Order'!BH315)","v":"ZWO"}]
[{"$f":"IF('1. Order'!F316=\"\",\"\",'1. Order'!F316)","v":{"$error":"#N/A"}},{"$f":"IF('1. Order'!G316=\"\",\"\",'1. Order'!G316)","v":""},{"$f":"IF('1. Order'!H316=\"\",\"\",'1. Order'!H316)","v":""},{"$f":"IF('1. Order'!I316=\"\",\"\",'1. Order'!I316)","v":""},{"$f":"IF('1. Order'!J316=\"\",\"\",'1. Order'!J316)","v":""},{"$f":"IF('1. Order'!K316=\"\",\"\",'1. Order'!K316)","v":""},{"$f":"IF('1. Order'!L316=\"\",\"\",'1. Order'!L316)","v":""},{"$f":"IF('1. Order'!M316=\"\",\"\",'1. Order'!M316)","v":""},{"$f":"IF('1. Order'!N316=\"\",\"\",'1. Order'!N316)","v":""},{"$f":"IF('1. Order'!O316=\"\",\"\",'1. Order'!O316)","v":{"$error":"#N/A"}},{"$f":"IF('1. Order'!P316=\"\",\"\",'1. Order'!P316)","v":{"$error":"#N/A"}},{"$f":"IF('1. Order'!Q316=\"\",\"\",'1. Order'!Q316)","v":""},{"$f":"IF('1. Order'!S316=\"\",\"\",'1. Order'!S316)","v":""},{"$f":"IF('1. Order'!T316=\"\",\"\",'1. Order'!T316)","v":""},{"$f":"IF('1. Order'!W316=\"\",\"\",'1. Order'!W316)","v":""},{"$f":"IF('1. Order'!X316=\"\",\"\",'1. Order'!X316)","v":""},{"$f":"IF('1. Order'!Y316=\"\",\"\",'1. Order'!Y316)","v":"EUR"},{"$f":"IF('1. Order'!Z316=\"\",\"\",'1. Order'!Z316)","v":""},{"$f":"IF('1. Order'!AA316=\"\",\"\",'1. Order'!AA316)","v":""},{"$f":"IF('1. Order'!AB316=\"\",\"\",'1. Order'!AB316)","v":""},null,{"$f":"IF('1. Order'!AT316=\"\",\"\",'1. Order'!AT316)","v":""},{"$f":"IF('1. Order'!AU316=\"\",\"\",'1. Order'!AU316)","v":""},null,null,null,null,null,null,null,{"$f":"IF('1. Order'!AY316=\"\",\"\",'1. Order'!AY316)","v":""},{"$f":"IF('1. Order'!AZ316=\"\",\"\",'1. Order'!AZ316)","v":""},{"$f":"IF('1. Order'!BA316=\"\",\"\",'1. Order'!BA316)","v":""},{"$f":"IF('1. Order'!BB316=\"\",\"\",'1. Order'!BB316)","v":""},{"$f":"IF('1. Order'!BD316=\"\",\"\",'1. Order'!BD316)","v":""},{"$f":"IF('1. Order'!BE316=\"\",\"\",'1. Order'!BE316)","v":""},{"$f":"IF('1. Order'!BF316=\"\",\"\",'1. Order'!BF316)","v":""},{"$f":"IF('1. Order'!BG316=\"\",\"\",'1. Order'!BG316)","v":""},{"$f":"IF('1. Order'!BH316=\"\",\"\",'1. Order'!BH316)","v":"ZWO"}]
[{"$f":"IF('1. Order'!F317=\"\",\"\",'1. Order'!F317)","v":{"$error":"#N/A"}},{"$f":"IF('1. Order'!G317=\"\",\"\",'1. Order'!G317)","v":""},{"$f":"IF('1. Order'!H317=\"\",\"\",'1. Order'!H317)","v":""},{"$f":"IF('1. Order'!I317=\"\",\"\",'1. Order'!I317)","v":""},{"$f":"IF('1. Order'!J317=\"\",\"\",'1. Order'!J317)","v":""},{"$f":"IF('1. Order'!K317=\"\",\"\",'1. Order'!K317)","v":""},{"$f":"IF('1. Order'!L317=\"\",\"\",'1. Order'!L317)","v":""},{"$f":"IF('1. Order'!M317=\"\",\"\",'1. Order'!M317)","v":""},{"$f":"IF('1. Order'!N317=\"\",\"\",'1. Order'!N317)","v":""},{"$f":"IF('1. Order'!O317=\"\",\"\",'1. Order'!O317)","v":{"$error":"#N/A"}},{"$f":"IF('1. Order'!P317=\"\",\"\",'1. Order'!P317)","v":{"$error":"#N/A"}},{"$f":"IF('1. Order'!Q317=\"\",\"\",'1. Order'!Q317)","v":""},{"$f":"IF('1. Order'!S317=\"\",\"\",'1. Order'!S317)","v":""},{"$f":"IF('1. Order'!T317=\"\",\"\",'1. Order'!T317)","v":""},{"$f":"IF('1. Order'!W317=\"\",\"\",'1. Order'!W317)","v":""},{"$f":"IF('1. Order'!X317=\"\",\"\",'1. Order'!X317)","v":""},{"$f":"IF('1. Order'!Y317=\"\",\"\",'1. Order'!Y317)","v":"EUR"},{"$f":"IF('1. Order'!Z317=\"\",\"\",'1. Order'!Z317)","v":""},{"$f":"IF('1. Order'!AA317=\"\",\"\",'1. Order'!AA317)","v":""},{"$f":"IF('1. Order'!AB317=\"\",\"\",'1. Order'!AB317)","v":""},null,{"$f":"IF('1. Order'!AT317=\"\",\"\",'1. Order'!AT317)","v":""},{"$f":"IF('1. Order'!AU317=\"\",\"\",'1. Order'!AU317)","v":""},null,null,null,null,null,null,null,{"$f":"IF('1. Order'!AY317=\"\",\"\",'1. Order'!AY317)","v":""},{"$f":"IF('1. Order'!AZ317=\"\",\"\",'1. Order'!AZ317)","v":""},{"$f":"IF('1. Order'!BA317=\"\",\"\",'1. Order'!BA317)","v":""},{"$f":"IF('1. Order'!BB317=\"\",\"\",'1. Order'!BB317)","v":""},{"$f":"IF('1. Order'!BD317=\"\",\"\",'1. Order'!BD317)","v":""},{"$f":"IF('1. Order'!BE317=\"\",\"\",'1. Order'!BE317)","v":""},{"$f":"IF('1. Order'!BF317=\"\",\"\",'1. Order'!BF317)","v":""},{"$f":"IF('1. Order'!BG317=\"\",\"\",'1. Order'!BG317)","v":""},{"$f":"IF('1. Order'!BH317=\"\",\"\",'1. Order'!BH317)","v":"ZWO"}]
[{"$f":"IF('1. Order'!F318=\"\",\"\",'1. Order'!F318)","v":{"$error":"#N/A"}},{"$f":"IF('1. Order'!G318=\"\",\"\",'1. Order'!G318)","v":""},{"$f":"IF('1. Order'!H318=\"\",\"\",'1. Order'!H318)","v":""},{"$f":"IF('1. Order'!I318=\"\",\"\",'1. Order'!I318)","v":""},{"$f":"IF('1. Order'!J318=\"\",\"\",'1. Order'!J318)","v":""},{"$f":"IF('1. Order'!K318=\"\",\"\",'1. Order'!K318)","v":""},{"$f":"IF('1. Order'!L318=\"\",\"\",'1. Order'!L318)","v":""},{"$f":"IF('1. Order'!M318=\"\",\"\",'1. Order'!M318)","v":""},{"$f":"IF('1. Order'!N318=\"\",\"\",'1. Order'!N318)","v":""},{"$f":"IF('1. Order'!O318=\"\",\"\",'1. Order'!O318)","v":{"$error":"#N/A"}},{"$f":"IF('1. Order'!P318=\"\",\"\",'1. Order'!P318)","v":{"$error":"#N/A"}},{"$f":"IF('1. Order'!Q318=\"\",\"\",'1. Order'!Q318)","v":""},{"$f":"IF('1. Order'!S318=\"\",\"\",'1. Order'!S318)","v":""},{"$f":"IF('1. Order'!T318=\"\",\"\",'1. Order'!T318)","v":""},{"$f":"IF('1. Order'!W318=\"\",\"\",'1. Order'!W318)","v":""},{"$f":"IF('1. Order'!X318=\"\",\"\",'1. Order'!X318)","v":""},{"$f":"IF('1. Order'!Y318=\"\",\"\",'1. Order'!Y318)","v":"EUR"},{"$f":"IF('1. Order'!Z318=\"\",\"\",'1. Order'!Z318)","v":""},{"$f":"IF('1. Order'!AA318=\"\",\"\",'1. Order'!AA318)","v":""},{"$f":"IF('1. Order'!AB318=\"\",\"\",'1. Order'!AB318)","v":""},null,{"$f":"IF('1. Order'!AT318=\"\",\"\",'1. Order'!AT318)","v":""},{"$f":"IF('1. Order'!AU318=\"\",\"\",'1. Order'!AU318)","v":""},null,null,null,null,null,null,null,{"$f":"IF('1. Order'!AY318=\"\",\"\",'1. Order'!AY318)","v":""},{"$f":"IF('1. Order'!AZ318=\"\",\"\",'1. Order'!AZ318)","v":""},{"$f":"IF('1. Order'!BA318=\"\",\"\",'1. Order'!BA318)","v":""},{"$f":"IF('1. Order'!BB318=\"\",\"\",'1. Order'!BB318)","v":""},{"$f":"IF('1. Order'!BD318=\"\",\"\",'1. Order'!BD318)","v":""},{"$f":"IF('1. Order'!BE318=\"\",\"\",'1. Order'!BE318)","v":""},{"$f":"IF('1. Order'!BF318=\"\",\"\",'1. Order'!BF318)","v":""},{"$f":"IF('1. Order'!BG318=\"\",\"\",'1. Order'!BG318)","v":""},{"$f":"IF('1. Order'!BH318=\"\",\"\",'1. Order'!BH318)","v":"ZWO"}]
[{"$f":"IF('1. Order'!F319=\"\",\"\",'1. Order'!F319)","v":{"$error":"#N/A"}},{"$f":"IF('1. Order'!G319=\"\",\"\",'1. Order'!G319)","v":""},{"$f":"IF('1. Order'!H319=\"\",\"\",'1. Order'!H319)","v":""},{"$f":"IF('1. Order'!I319=\"\",\"\",'1. Order'!I319)","v":""},{"$f":"IF('1. Order'!J319=\"\",\"\",'1. Order'!J319)","v":""},{"$f":"IF('1. Order'!K319=\"\",\"\",'1. Order'!K319)","v":""},{"$f":"IF('1. Order'!L319=\"\",\"\",'1. Order'!L319)","v":""},{"$f":"IF('1. Order'!M319=\"\",\"\",'1. Order'!M319)","v":""},{"$f":"IF('1. Order'!N319=\"\",\"\",'1. Order'!N319)","v":""},{"$f":"IF('1. Order'!O319=\"\",\"\",'1. Order'!O319)","v":{"$error":"#N/A"}},{"$f":"IF('1. Order'!P319=\"\",\"\",'1. Order'!P319)","v":{"$error":"#N/A"}},{"$f":"IF('1. Order'!Q319=\"\",\"\",'1. Order'!Q319)","v":""},{"$f":"IF('1. Order'!S319=\"\",\"\",'1. Order'!S319)","v":""},{"$f":"IF('1. Order'!T319=\"\",\"\",'1. Order'!T319)","v":""},{"$f":"IF('1. Order'!W319=\"\",\"\",'1. Order'!W319)","v":""},{"$f":"IF('1. Order'!X319=\"\",\"\",'1. Order'!X319)","v":""},{"$f":"IF('1. Order'!Y319=\"\",\"\",'1. Order'!Y319)","v":"EUR"},{"$f":"IF('1. Order'!Z319=\"\",\"\",'1. Order'!Z319)","v":""},{"$f":"IF('1. Order'!AA319=\"\",\"\",'1. Order'!AA319)","v":""},{"$f":"IF('1. Order'!AB319=\"\",\"\",'1. Order'!AB319)","v":""},null,{"$f":"IF('1. Order'!AT319=\"\",\"\",'1. Order'!AT319)","v":""},{"$f":"IF('1. Order'!AU319=\"\",\"\",'1. Order'!AU319)","v":""},null,null,null,null,null,null,null,{"$f":"IF('1. Order'!AY319=\"\",\"\",'1. Order'!AY319)","v":""},{"$f":"IF('1. Order'!AZ319=\"\",\"\",'1. Order'!AZ319)","v":""},{"$f":"IF('1. Order'!BA319=\"\",\"\",'1. Order'!BA319)","v":""},{"$f":"IF('1. Order'!BB319=\"\",\"\",'1. Order'!BB319)","v":""},{"$f":"IF('1. Order'!BD319=\"\",\"\",'1. Order'!BD319)","v":""},{"$f":"IF('1. Order'!BE319=\"\",\"\",'1. Order'!BE319)","v":""},{"$f":"IF('1. Order'!BF319=\"\",\"\",'1. Order'!BF319)","v":""},{"$f":"IF('1. Order'!BG319=\"\",\"\",'1. Order'!BG319)","v":""},{"$f":"IF('1. Order'!BH319=\"\",\"\",'1. Order'!BH319)","v":"ZWO"}]
[{"$f":"IF('1. Order'!F320=\"\",\"\",'1. Order'!F320)","v":{"$error":"#N/A"}},{"$f":"IF('1. Order'!G320=\"\",\"\",'1. Order'!G320)","v":""},{"$f":"IF('1. Order'!H320=\"\",\"\",'1. Order'!H320)","v":""},{"$f":"IF('1. Order'!I320=\"\",\"\",'1. Order'!I320)","v":""},{"$f":"IF('1. Order'!J320=\"\",\"\",'1. Order'!J320)","v":""},{"$f":"IF('1. Order'!K320=\"\",\"\",'1. Order'!K320)","v":""},{"$f":"IF('1. Order'!L320=\"\",\"\",'1. Order'!L320)","v":""},{"$f":"IF('1. Order'!M320=\"\",\"\",'1. Order'!M320)","v":""},{"$f":"IF('1. Order'!N320=\"\",\"\",'1. Order'!N320)","v":""},{"$f":"IF('1. Order'!O320=\"\",\"\",'1. Order'!O320)","v":{"$error":"#N/A"}},{"$f":"IF('1. Order'!P320=\"\",\"\",'1. Order'!P320)","v":{"$error":"#N/A"}},{"$f":"IF('1. Order'!Q320=\"\",\"\",'1. Order'!Q320)","v":""},{"$f":"IF('1. Order'!S320=\"\",\"\",'1. Order'!S320)","v":""},{"$f":"IF('1. Order'!T320=\"\",\"\",'1. Order'!T320)","v":""},{"$f":"IF('1. Order'!W320=\"\",\"\",'1. Order'!W320)","v":""},{"$f":"IF('1. Order'!X320=\"\",\"\",'1. Order'!X320)","v":""},{"$f":"IF('1. Order'!Y320=\"\",\"\",'1. Order'!Y320)","v":"EUR"},{"$f":"IF('1. Order'!Z320=\"\",\"\",'1. Order'!Z320)","v":""},{"$f":"IF('1. Order'!AA320=\"\",\"\",'1. Order'!AA320)","v":""},{"$f":"IF('1. Order'!AB320=\"\",\"\",'1. Order'!AB320)","v":""},null,{"$f":"IF('1. Order'!AT320=\"\",\"\",'1. Order'!AT320)","v":""},{"$f":"IF('1. Order'!AU320=\"\",\"\",'1. Order'!AU320)","v":""},null,null,null,null,null,null,null,{"$f":"IF('1. Order'!AY320=\"\",\"\",'1. Order'!AY320)","v":""},{"$f":"IF('1. Order'!AZ320=\"\",\"\",'1. Order'!AZ320)","v":""},{"$f":"IF('1. Order'!BA320=\"\",\"\",'1. Order'!BA320)","v":""},{"$f":"IF('1. Order'!BB320=\"\",\"\",'1. Order'!BB320)","v":""},{"$f":"IF('1. Order'!BD320=\"\",\"\",'1. Order'!BD320)","v":""},{"$f":"IF('1. Order'!BE320=\"\",\"\",'1. Order'!BE320)","v":""},{"$f":"IF('1. Order'!BF320=\"\",\"\",'1. Order'!BF320)","v":""},{"$f":"IF('1. Order'!BG320=\"\",\"\",'1. Order'!BG320)","v":""},{"$f":"IF('1. Order'!BH320=\"\",\"\",'1. Order'!BH320)","v":"ZWO"}]
[{"$f":"IF('1. Order'!F321=\"\",\"\",'1. Order'!F321)","v":{"$error":"#N/A"}},{"$f":"IF('1. Order'!G321=\"\",\"\",'1. Order'!G321)","v":""},{"$f":"IF('1. Order'!H321=\"\",\"\",'1. Order'!H321)","v":""},{"$f":"IF('1. Order'!I321=\"\",\"\",'1. Order'!I321)","v":""},{"$f":"IF('1. Order'!J321=\"\",\"\",'1. Order'!J321)","v":""},{"$f":"IF('1. Order'!K321=\"\",\"\",'1. Order'!K321)","v":""},{"$f":"IF('1. Order'!L321=\"\",\"\",'1. Order'!L321)","v":""},{"$f":"IF('1. Order'!M321=\"\",\"\",'1. Order'!M321)","v":""},{"$f":"IF('1. Order'!N321=\"\",\"\",'1. Order'!N321)","v":""},{"$f":"IF('1. Order'!O321=\"\",\"\",'1. Order'!O321)","v":{"$error":"#N/A"}},{"$f":"IF('1. Order'!P321=\"\",\"\",'1. Order'!P321)","v":{"$error":"#N/A"}},{"$f":"IF('1. Order'!Q321=\"\",\"\",'1. Order'!Q321)","v":""},{"$f":"IF('1. Order'!S321=\"\",\"\",'1. Order'!S321)","v":""},{"$f":"IF('1. Order'!T321=\"\",\"\",'1. Order'!T321)","v":""},{"$f":"IF('1. Order'!W321=\"\",\"\",'1. Order'!W321)","v":""},{"$f":"IF('1. Order'!X321=\"\",\"\",'1. Order'!X321)","v":""},{"$f":"IF('1. Order'!Y321=\"\",\"\",'1. Order'!Y321)","v":"EUR"},{"$f":"IF('1. Order'!Z321=\"\",\"\",'1. Order'!Z321)","v":""},{"$f":"IF('1. Order'!AA321=\"\",\"\",'1. Order'!AA321)","v":""},{"$f":"IF('1. Order'!AB321=\"\",\"\",'1. Order'!AB321)","v":""},null,{"$f":"IF('1. Order'!AT321=\"\",\"\",'1. Order'!AT321)","v":""},{"$f":"IF('1. Order'!AU321=\"\",\"\",'1. Order'!AU321)","v":""},null,null,null,null,null,null,null,{"$f":"IF('1. Order'!AY321=\"\",\"\",'1. Order'!AY321)","v":""},{"$f":"IF('1. Order'!AZ321=\"\",\"\",'1. Order'!AZ321)","v":""},{"$f":"IF('1. Order'!BA321=\"\",\"\",'1. Order'!BA321)","v":""},{"$f":"IF('1. Order'!BB321=\"\",\"\",'1. Order'!BB321)","v":""},{"$f":"IF('1. Order'!BD321=\"\",\"\",'1. Order'!BD321)","v":""},{"$f":"IF('1. Order'!BE321=\"\",\"\",'1. Order'!BE321)","v":""},{"$f":"IF('1. Order'!BF321=\"\",\"\",'1. Order'!BF321)","v":""},{"$f":"IF('1. Order'!BG321=\"\",\"\",'1. Order'!BG321)","v":""},{"$f":"IF('1. Order'!BH321=\"\",\"\",'1. Order'!BH321)","v":"ZWO"}]
[{"$f":"IF('1. Order'!F322=\"\",\"\",'1. Order'!F322)","v":{"$error":"#N/A"}},{"$f":"IF('1. Order'!G322=\"\",\"\",'1. Order'!G322)","v":""},{"$f":"IF('1. Order'!H322=\"\",\"\",'1. Order'!H322)","v":""},{"$f":"IF('1. Order'!I322=\"\",\"\",'1. Order'!I322)","v":""},{"$f":"IF('1. Order'!J322=\"\",\"\",'1. Order'!J322)","v":""},{"$f":"IF('1. Order'!K322=\"\",\"\",'1. Order'!K322)","v":""},{"$f":"IF('1. Order'!L322=\"\",\"\",'1. Order'!L322)","v":""},{"$f":"IF('1. Order'!M322=\"\",\"\",'1. Order'!M322)","v":""},{"$f":"IF('1. Order'!N322=\"\",\"\",'1. Order'!N322)","v":""},{"$f":"IF('1. Order'!O322=\"\",\"\",'1. Order'!O322)","v":{"$error":"#N/A"}},{"$f":"IF('1. Order'!P322=\"\",\"\",'1. Order'!P322)","v":{"$error":"#N/A"}},{"$f":"IF('1. Order'!Q322=\"\",\"\",'1. Order'!Q322)","v":""},{"$f":"IF('1. Order'!S322=\"\",\"\",'1. Order'!S322)","v":""},{"$f":"IF('1. Order'!T322=\"\",\"\",'1. Order'!T322)","v":""},{"$f":"IF('1. Order'!W322=\"\",\"\",'1. Order'!W322)","v":""},{"$f":"IF('1. Order'!X322=\"\",\"\",'1. Order'!X322)","v":""},{"$f":"IF('1. Order'!Y322=\"\",\"\",'1. Order'!Y322)","v":"EUR"},{"$f":"IF('1. Order'!Z322=\"\",\"\",'1. Order'!Z322)","v":""},{"$f":"IF('1. Order'!AA322=\"\",\"\",'1. Order'!AA322)","v":""},{"$f":"IF('1. Order'!AB322=\"\",\"\",'1. Order'!AB322)","v":""},null,{"$f":"IF('1. Order'!AT322=\"\",\"\",'1. Order'!AT322)","v":""},{"$f":"IF('1. Order'!AU322=\"\",\"\",'1. Order'!AU322)","v":""},null,null,null,null,null,null,null,{"$f":"IF('1. Order'!AY322=\"\",\"\",'1. Order'!AY322)","v":""},{"$f":"IF('1. Order'!AZ322=\"\",\"\",'1. Order'!AZ322)","v":""},{"$f":"IF('1. Order'!BA322=\"\",\"\",'1. Order'!BA322)","v":""},{"$f":"IF('1. Order'!BB322=\"\",\"\",'1. Order'!BB322)","v":""},{"$f":"IF('1. Order'!BD322=\"\",\"\",'1. Order'!BD322)","v":""},{"$f":"IF('1. Order'!BE322=\"\",\"\",'1. Order'!BE322)","v":""},{"$f":"IF('1. Order'!BF322=\"\",\"\",'1. Order'!BF322)","v":""},{"$f":"IF('1. Order'!BG322=\"\",\"\",'1. Order'!BG322)","v":""},{"$f":"IF('1. Order'!BH322=\"\",\"\",'1. Order'!BH322)","v":"ZWO"}]
[{"$f":"IF('1. Order'!F323=\"\",\"\",'1. Order'!F323)","v":{"$error":"#N/A"}},{"$f":"IF('1. Order'!G323=\"\",\"\",'1. Order'!G323)","v":""},{"$f":"IF('1. Order'!H323=\"\",\"\",'1. Order'!H323)","v":""},{"$f":"IF('1. Order'!I323=\"\",\"\",'1. Order'!I323)","v":""},{"$f":"IF('1. Order'!J323=\"\",\"\",'1. Order'!J323)","v":""},{"$f":"IF('1. Order'!K323=\"\",\"\",'1. Order'!K323)","v":""},{"$f":"IF('1. Order'!L323=\"\",\"\",'1. Order'!L323)","v":""},{"$f":"IF('1. Order'!M323=\"\",\"\",'1. Order'!M323)","v":""},{"$f":"IF('1. Order'!N323=\"\",\"\",'1. Order'!N323)","v":""},{"$f":"IF('1. Order'!O323=\"\",\"\",'1. Order'!O323)","v":{"$error":"#N/A"}},{"$f":"IF('1. Order'!P323=\"\",\"\",'1. Order'!P323)","v":{"$error":"#N/A"}},{"$f":"IF('1. Order'!Q323=\"\",\"\",'1. Order'!Q323)","v":""},{"$f":"IF('1. Order'!S323=\"\",\"\",'1. Order'!S323)","v":""},{"$f":"IF('1. Order'!T323=\"\",\"\",'1. Order'!T323)","v":""},{"$f":"IF('1. Order'!W323=\"\",\"\",'1. Order'!W323)","v":""},{"$f":"IF('1. Order'!X323=\"\",\"\",'1. Order'!X323)","v":""},{"$f":"IF('1. Order'!Y323=\"\",\"\",'1. Order'!Y323)","v":"EUR"},{"$f":"IF('1. Order'!Z323=\"\",\"\",'1. Order'!Z323)","v":""},{"$f":"IF('1. Order'!AA323=\"\",\"\",'1. Order'!AA323)","v":""},{"$f":"IF('1. Order'!AB323=\"\",\"\",'1. Order'!AB323)","v":""},null,{"$f":"IF('1. Order'!AT323=\"\",\"\",'1. Order'!AT323)","v":""},{"$f":"IF('1. Order'!AU323=\"\",\"\",'1. Order'!AU323)","v":""},null,null,null,null,null,null,null,{"$f":"IF('1. Order'!AY323=\"\",\"\",'1. Order'!AY323)","v":""},{"$f":"IF('1. Order'!AZ323=\"\",\"\",'1. Order'!AZ323)","v":""},{"$f":"IF('1. Order'!BA323=\"\",\"\",'1. Order'!BA323)","v":""},{"$f":"IF('1. Order'!BB323=\"\",\"\",'1. Order'!BB323)","v":""},{"$f":"IF('1. Order'!BD323=\"\",\"\",'1. Order'!BD323)","v":""},{"$f":"IF('1. Order'!BE323=\"\",\"\",'1. Order'!BE323)","v":""},{"$f":"IF('1. Order'!BF323=\"\",\"\",'1. Order'!BF323)","v":""},{"$f":"IF('1. Order'!BG323=\"\",\"\",'1. Order'!BG323)","v":""},{"$f":"IF('1. Order'!BH323=\"\",\"\",'1. Order'!BH323)","v":"ZWO"}]
[{"$f":"IF('1. Order'!F324=\"\",\"\",'1. Order'!F324)","v":{"$error":"#N/A"}},{"$f":"IF('1. Order'!G324=\"\",\"\",'1. Order'!G324)","v":""},{"$f":"IF('1. Order'!H324=\"\",\"\",'1. Order'!H324)","v":""},{"$f":"IF('1. Order'!I324=\"\",\"\",'1. Order'!I324)","v":""},{"$f":"IF('1. Order'!J324=\"\",\"\",'1. Order'!J324)","v":""},{"$f":"IF('1. Order'!K324=\"\",\"\",'1. Order'!K324)","v":""},{"$f":"IF('1. Order'!L324=\"\",\"\",'1. Order'!L324)","v":""},{"$f":"IF('1. Order'!M324=\"\",\"\",'1. Order'!M324)","v":""},{"$f":"IF('1. Order'!N324=\"\",\"\",'1. Order'!N324)","v":""},{"$f":"IF('1. Order'!O324=\"\",\"\",'1. Order'!O324)","v":{"$error":"#N/A"}},{"$f":"IF('1. Order'!P324=\"\",\"\",'1. Order'!P324)","v":{"$error":"#N/A"}},{"$f":"IF('1. Order'!Q324=\"\",\"\",'1. Order'!Q324)","v":""},{"$f":"IF('1. Order'!S324=\"\",\"\",'1. Order'!S324)","v":""},{"$f":"IF('1. Order'!T324=\"\",\"\",'1. Order'!T324)","v":""},{"$f":"IF('1. Order'!W324=\"\",\"\",'1. Order'!W324)","v":""},{"$f":"IF('1. Order'!X324=\"\",\"\",'1. Order'!X324)","v":""},{"$f":"IF('1. Order'!Y324=\"\",\"\",'1. Order'!Y324)","v":"EUR"},{"$f":"IF('1. Order'!Z324=\"\",\"\",'1. Order'!Z324)","v":""},{"$f":"IF('1. Order'!AA324=\"\",\"\",'1. Order'!AA324)","v":""},{"$f":"IF('1. Order'!AB324=\"\",\"\",'1. Order'!AB324)","v":""},null,{"$f":"IF('1. Order'!AT324=\"\",\"\",'1. Order'!AT324)","v":""},{"$f":"IF('1. Order'!AU324=\"\",\"\",'1. Order'!AU324)","v":""},null,null,null,null,null,null,null,{"$f":"IF('1. Order'!AY324=\"\",\"\",'1. Order'!AY324)","v":""},{"$f":"IF('1. Order'!AZ324=\"\",\"\",'1. Order'!AZ324)","v":""},{"$f":"IF('1. Order'!BA324=\"\",\"\",'1. Order'!BA324)","v":""},{"$f":"IF('1. Order'!BB324=\"\",\"\",'1. Order'!BB324)","v":""},{"$f":"IF('1. Order'!BD324=\"\",\"\",'1. Order'!BD324)","v":""},{"$f":"IF('1. Order'!BE324=\"\",\"\",'1. Order'!BE324)","v":""},{"$f":"IF('1. Order'!BF324=\"\",\"\",'1. Order'!BF324)","v":""},{"$f":"IF('1. Order'!BG324=\"\",\"\",'1. Order'!BG324)","v":""},{"$f":"IF('1. Order'!BH324=\"\",\"\",'1. Order'!BH324)","v":"ZWO"}]
[{"$f":"IF('1. Order'!F325=\"\",\"\",'1. Order'!F325)","v":{"$error":"#N/A"}},{"$f":"IF('1. Order'!G325=\"\",\"\",'1. Order'!G325)","v":""},{"$f":"IF('1. Order'!H325=\"\",\"\",'1. Order'!H325)","v":""},{"$f":"IF('1. Order'!I325=\"\",\"\",'1. Order'!I325)","v":""},{"$f":"IF('1. Order'!J325=\"\",\"\",'1. Order'!J325)","v":""},{"$f":"IF('1. Order'!K325=\"\",\"\",'1. Order'!K325)","v":""},{"$f":"IF('1. Order'!L325=\"\",\"\",'1. Order'!L325)","v":""},{"$f":"IF('1. Order'!M325=\"\",\"\",'1. Order'!M325)","v":""},{"$f":"IF('1. Order'!N325=\"\",\"\",'1. Order'!N325)","v":""},{"$f":"IF('1. Order'!O325=\"\",\"\",'1. Order'!O325)","v":{"$error":"#N/A"}},{"$f":"IF('1. Order'!P325=\"\",\"\",'1. Order'!P325)","v":{"$error":"#N/A"}},{"$f":"IF('1. Order'!Q325=\"\",\"\",'1. Order'!Q325)","v":""},{"$f":"IF('1. Order'!S325=\"\",\"\",'1. Order'!S325)","v":""},{"$f":"IF('1. Order'!T325=\"\",\"\",'1. Order'!T325)","v":""},{"$f":"IF('1. Order'!W325=\"\",\"\",'1. Order'!W325)","v":""},{"$f":"IF('1. Order'!X325=\"\",\"\",'1. Order'!X325)","v":""},{"$f":"IF('1. Order'!Y325=\"\",\"\",'1. Order'!Y325)","v":"EUR"},{"$f":"IF('1. Order'!Z325=\"\",\"\",'1. Order'!Z325)","v":""},{"$f":"IF('1. Order'!AA325=\"\",\"\",'1. Order'!AA325)","v":""},{"$f":"IF('1. Order'!AB325=\"\",\"\",'1. Order'!AB325)","v":""},null,{"$f":"IF('1. Order'!AT325=\"\",\"\",'1. Order'!AT325)","v":""},{"$f":"IF('1. Order'!AU325=\"\",\"\",'1. Order'!AU325)","v":""},null,null,null,null,null,null,null,{"$f":"IF('1. Order'!AY325=\"\",\"\",'1. Order'!AY325)","v":""},{"$f":"IF('1. Order'!AZ325=\"\",\"\",'1. Order'!AZ325)","v":""},{"$f":"IF('1. Order'!BA325=\"\",\"\",'1. Order'!BA325)","v":""},{"$f":"IF('1. Order'!BB325=\"\",\"\",'1. Order'!BB325)","v":""},{"$f":"IF('1. Order'!BD325=\"\",\"\",'1. Order'!BD325)","v":""},{"$f":"IF('1. Order'!BE325=\"\",\"\",'1. Order'!BE325)","v":""},{"$f":"IF('1. Order'!BF325=\"\",\"\",'1. Order'!BF325)","v":""},{"$f":"IF('1. Order'!BG325=\"\",\"\",'1. Order'!BG325)","v":""},{"$f":"IF('1. Order'!BH325=\"\",\"\",'1. Order'!BH325)","v":"ZWO"}]
[{"$f":"IF('1. Order'!F326=\"\",\"\",'1. Order'!F326)","v":{"$error":"#N/A"}},{"$f":"IF('1. Order'!G326=\"\",\"\",'1. Order'!G326)","v":""},{"$f":"IF('1. Order'!H326=\"\",\"\",'1. Order'!H326)","v":""},{"$f":"IF('1. Order'!I326=\"\",\"\",'1. Order'!I326)","v":""},{"$f":"IF('1. Order'!J326=\"\",\"\",'1. Order'!J326)","v":""},{"$f":"IF('1. Order'!K326=\"\",\"\",'1. Order'!K326)","v":""},{"$f":"IF('1. Order'!L326=\"\",\"\",'1. Order'!L326)","v":""},{"$f":"IF('1. Order'!M326=\"\",\"\",'1. Order'!M326)","v":""},{"$f":"IF('1. Order'!N326=\"\",\"\",'1. Order'!N326)","v":""},{"$f":"IF('1. Order'!O326=\"\",\"\",'1. Order'!O326)","v":{"$error":"#N/A"}},{"$f":"IF('1. Order'!P326=\"\",\"\",'1. Order'!P326)","v":{"$error":"#N/A"}},{"$f":"IF('1. Order'!Q326=\"\",\"\",'1. Order'!Q326)","v":""},{"$f":"IF('1. Order'!S326=\"\",\"\",'1. Order'!S326)","v":""},{"$f":"IF('1. Order'!T326=\"\",\"\",'1. Order'!T326)","v":""},{"$f":"IF('1. Order'!W326=\"\",\"\",'1. Order'!W326)","v":""},{"$f":"IF('1. Order'!X326=\"\",\"\",'1. Order'!X326)","v":""},{"$f":"IF('1. Order'!Y326=\"\",\"\",'1. Order'!Y326)","v":"EUR"},{"$f":"IF('1. Order'!Z326=\"\",\"\",'1. Order'!Z326)","v":""},{"$f":"IF('1. Order'!AA326=\"\",\"\",'1. Order'!AA326)","v":""},{"$f":"IF('1. Order'!AB326=\"\",\"\",'1. Order'!AB326)","v":""},null,{"$f":"IF('1. Order'!AT326=\"\",\"\",'1. Order'!AT326)","v":""},{"$f":"IF('1. Order'!AU326=\"\",\"\",'1. Order'!AU326)","v":""},null,null,null,null,null,null,null,{"$f":"IF('1. Order'!AY326=\"\",\"\",'1. Order'!AY326)","v":""},{"$f":"IF('1. Order'!AZ326=\"\",\"\",'1. Order'!AZ326)","v":""},{"$f":"IF('1. Order'!BA326=\"\",\"\",'1. Order'!BA326)","v":""},{"$f":"IF('1. Order'!BB326=\"\",\"\",'1. Order'!BB326)","v":""},{"$f":"IF('1. Order'!BD326=\"\",\"\",'1. Order'!BD326)","v":""},{"$f":"IF('1. Order'!BE326=\"\",\"\",'1. Order'!BE326)","v":""},{"$f":"IF('1. Order'!BF326=\"\",\"\",'1. Order'!BF326)","v":""},{"$f":"IF('1. Order'!BG326=\"\",\"\",'1. Order'!BG326)","v":""},{"$f":"IF('1. Order'!BH326=\"\",\"\",'1. Order'!BH326)","v":"ZWO"}]
[{"$f":"IF('1. Order'!F327=\"\",\"\",'1. Order'!F327)","v":{"$error":"#N/A"}},{"$f":"IF('1. Order'!G327=\"\",\"\",'1. Order'!G327)","v":""},{"$f":"IF('1. Order'!H327=\"\",\"\",'1. Order'!H327)","v":""},{"$f":"IF('1. Order'!I327=\"\",\"\",'1. Order'!I327)","v":""},{"$f":"IF('1. Order'!J327=\"\",\"\",'1. Order'!J327)","v":""},{"$f":"IF('1. Order'!K327=\"\",\"\",'1. Order'!K327)","v":""},{"$f":"IF('1. Order'!L327=\"\",\"\",'1. Order'!L327)","v":""},{"$f":"IF('1. Order'!M327=\"\",\"\",'1. Order'!M327)","v":""},{"$f":"IF('1. Order'!N327=\"\",\"\",'1. Order'!N327)","v":""},{"$f":"IF('1. Order'!O327=\"\",\"\",'1. Order'!O327)","v":{"$error":"#N/A"}},{"$f":"IF('1. Order'!P327=\"\",\"\",'1. Order'!P327)","v":{"$error":"#N/A"}},{"$f":"IF('1. Order'!Q327=\"\",\"\",'1. Order'!Q327)","v":""},{"$f":"IF('1. Order'!S327=\"\",\"\",'1. Order'!S327)","v":""},{"$f":"IF('1. Order'!T327=\"\",\"\",'1. Order'!T327)","v":""},{"$f":"IF('1. Order'!W327=\"\",\"\",'1. Order'!W327)","v":""},{"$f":"IF('1. Order'!X327=\"\",\"\",'1. Order'!X327)","v":""},{"$f":"IF('1. Order'!Y327=\"\",\"\",'1. Order'!Y327)","v":"EUR"},{"$f":"IF('1. Order'!Z327=\"\",\"\",'1. Order'!Z327)","v":""},{"$f":"IF('1. Order'!AA327=\"\",\"\",'1. Order'!AA327)","v":""},{"$f":"IF('1. Order'!AB327=\"\",\"\",'1. Order'!AB327)","v":""},null,{"$f":"IF('1. Order'!AT327=\"\",\"\",'1. Order'!AT327)","v":""},{"$f":"IF('1. Order'!AU327=\"\",\"\",'1. Order'!AU327)","v":""},null,null,null,null,null,null,null,{"$f":"IF('1. Order'!AY327=\"\",\"\",'1. Order'!AY327)","v":""},{"$f":"IF('1. Order'!AZ327=\"\",\"\",'1. Order'!AZ327)","v":""},{"$f":"IF('1. Order'!BA327=\"\",\"\",'1. Order'!BA327)","v":""},{"$f":"IF('1. Order'!BB327=\"\",\"\",'1. Order'!BB327)","v":""},{"$f":"IF('1. Order'!BD327=\"\",\"\",'1. Order'!BD327)","v":""},{"$f":"IF('1. Order'!BE327=\"\",\"\",'1. Order'!BE327)","v":""},{"$f":"IF('1. Order'!BF327=\"\",\"\",'1. Order'!BF327)","v":""},{"$f":"IF('1. Order'!BG327=\"\",\"\",'1. Order'!BG327)","v":""},{"$f":"IF('1. Order'!BH327=\"\",\"\",'1. Order'!BH327)","v":"ZWO"}]
[{"$f":"IF('1. Order'!F328=\"\",\"\",'1. Order'!F328)","v":{"$error":"#N/A"}},{"$f":"IF('1. Order'!G328=\"\",\"\",'1. Order'!G328)","v":""},{"$f":"IF('1. Order'!H328=\"\",\"\",'1. Order'!H328)","v":""},{"$f":"IF('1. Order'!I328=\"\",\"\",'1. Order'!I328)","v":""},{"$f":"IF('1. Order'!J328=\"\",\"\",'1. Order'!J328)","v":""},{"$f":"IF('1. Order'!K328=\"\",\"\",'1. Order'!K328)","v":""},{"$f":"IF('1. Order'!L328=\"\",\"\",'1. Order'!L328)","v":""},{"$f":"IF('1. Order'!M328=\"\",\"\",'1. Order'!M328)","v":""},{"$f":"IF('1. Order'!N328=\"\",\"\",'1. Order'!N328)","v":""},{"$f":"IF('1. Order'!O328=\"\",\"\",'1. Order'!O328)","v":{"$error":"#N/A"}},{"$f":"IF('1. Order'!P328=\"\",\"\",'1. Order'!P328)","v":{"$error":"#N/A"}},{"$f":"IF('1. Order'!Q328=\"\",\"\",'1. Order'!Q328)","v":""},{"$f":"IF('1. Order'!S328=\"\",\"\",'1. Order'!S328)","v":""},{"$f":"IF('1. Order'!T328=\"\",\"\",'1. Order'!T328)","v":""},{"$f":"IF('1. Order'!W328=\"\",\"\",'1. Order'!W328)","v":""},{"$f":"IF('1. Order'!X328=\"\",\"\",'1. Order'!X328)","v":""},{"$f":"IF('1. Order'!Y328=\"\",\"\",'1. Order'!Y328)","v":"EUR"},{"$f":"IF('1. Order'!Z328=\"\",\"\",'1. Order'!Z328)","v":""},{"$f":"IF('1. Order'!AA328=\"\",\"\",'1. Order'!AA328)","v":""},{"$f":"IF('1. Order'!AB328=\"\",\"\",'1. Order'!AB328)","v":""},null,{"$f":"IF('1. Order'!AT328=\"\",\"\",'1. Order'!AT328)","v":""},{"$f":"IF('1. Order'!AU328=\"\",\"\",'1. Order'!AU328)","v":""},null,null,null,null,null,null,null,{"$f":"IF('1. Order'!AY328=\"\",\"\",'1. Order'!AY328)","v":""},{"$f":"IF('1. Order'!AZ328=\"\",\"\",'1. Order'!AZ328)","v":""},{"$f":"IF('1. Order'!BA328=\"\",\"\",'1. Order'!BA328)","v":""},{"$f":"IF('1. Order'!BB328=\"\",\"\",'1. Order'!BB328)","v":""},{"$f":"IF('1. Order'!BD328=\"\",\"\",'1. Order'!BD328)","v":""},{"$f":"IF('1. Order'!BE328=\"\",\"\",'1. Order'!BE328)","v":""},{"$f":"IF('1. Order'!BF328=\"\",\"\",'1. Order'!BF328)","v":""},{"$f":"IF('1. Order'!BG328=\"\",\"\",'1. Order'!BG328)","v":""},{"$f":"IF('1. Order'!BH328=\"\",\"\",'1. Order'!BH328)","v":"ZWO"}]
[{"$f":"IF('1. Order'!F329=\"\",\"\",'1. Order'!F329)","v":{"$error":"#N/A"}},{"$f":"IF('1. Order'!G329=\"\",\"\",'1. Order'!G329)","v":""},{"$f":"IF('1. Order'!H329=\"\",\"\",'1. Order'!H329)","v":""},{"$f":"IF('1. Order'!I329=\"\",\"\",'1. Order'!I329)","v":""},{"$f":"IF('1. Order'!J329=\"\",\"\",'1. Order'!J329)","v":""},{"$f":"IF('1. Order'!K329=\"\",\"\",'1. Order'!K329)","v":""},{"$f":"IF('1. Order'!L329=\"\",\"\",'1. Order'!L329)","v":""},{"$f":"IF('1. Order'!M329=\"\",\"\",'1. Order'!M329)","v":""},{"$f":"IF('1. Order'!N329=\"\",\"\",'1. Order'!N329)","v":""},{"$f":"IF('1. Order'!O329=\"\",\"\",'1. Order'!O329)","v":{"$error":"#N/A"}},{"$f":"IF('1. Order'!P329=\"\",\"\",'1. Order'!P329)","v":{"$error":"#N/A"}},{"$f":"IF('1. Order'!Q329=\"\",\"\",'1. Order'!Q329)","v":""},{"$f":"IF('1. Order'!S329=\"\",\"\",'1. Order'!S329)","v":""},{"$f":"IF('1. Order'!T329=\"\",\"\",'1. Order'!T329)","v":""},{"$f":"IF('1. Order'!W329=\"\",\"\",'1. Order'!W329)","v":""},{"$f":"IF('1. Order'!X329=\"\",\"\",'1. Order'!X329)","v":""},{"$f":"IF('1. Order'!Y329=\"\",\"\",'1. Order'!Y329)","v":"EUR"},{"$f":"IF('1. Order'!Z329=\"\",\"\",'1. Order'!Z329)","v":""},{"$f":"IF('1. Order'!AA329=\"\",\"\",'1. Order'!AA329)","v":""},{"$f":"IF('1. Order'!AB329=\"\",\"\",'1. Order'!AB329)","v":""},null,{"$f":"IF('1. Order'!AT329=\"\",\"\",'1. Order'!AT329)","v":""},{"$f":"IF('1. Order'!AU329=\"\",\"\",'1. Order'!AU329)","v":""},null,null,null,null,null,null,null,{"$f":"IF('1. Order'!AY329=\"\",\"\",'1. Order'!AY329)","v":""},{"$f":"IF('1. Order'!AZ329=\"\",\"\",'1. Order'!AZ329)","v":""},{"$f":"IF('1. Order'!BA329=\"\",\"\",'1. Order'!BA329)","v":""},{"$f":"IF('1. Order'!BB329=\"\",\"\",'1. Order'!BB329)","v":""},{"$f":"IF('1. Order'!BD329=\"\",\"\",'1. Order'!BD329)","v":""},{"$f":"IF('1. Order'!BE329=\"\",\"\",'1. Order'!BE329)","v":""},{"$f":"IF('1. Order'!BF329=\"\",\"\",'1. Order'!BF329)","v":""},{"$f":"IF('1. Order'!BG329=\"\",\"\",'1. Order'!BG329)","v":""},{"$f":"IF('1. Order'!BH329=\"\",\"\",'1. Order'!BH329)","v":"ZWO"}]
[{"$f":"IF('1. Order'!F330=\"\",\"\",'1. Order'!F330)","v":{"$error":"#N/A"}},{"$f":"IF('1. Order'!G330=\"\",\"\",'1. Order'!G330)","v":""},{"$f":"IF('1. Order'!H330=\"\",\"\",'1. Order'!H330)","v":""},{"$f":"IF('1. Order'!I330=\"\",\"\",'1. Order'!I330)","v":""},{"$f":"IF('1. Order'!J330=\"\",\"\",'1. Order'!J330)","v":""},{"$f":"IF('1. Order'!K330=\"\",\"\",'1. Order'!K330)","v":""},{"$f":"IF('1. Order'!L330=\"\",\"\",'1. Order'!L330)","v":""},{"$f":"IF('1. Order'!M330=\"\",\"\",'1. Order'!M330)","v":""},{"$f":"IF('1. Order'!N330=\"\",\"\",'1. Order'!N330)","v":""},{"$f":"IF('1. Order'!O330=\"\",\"\",'1. Order'!O330)","v":{"$error":"#N/A"}},{"$f":"IF('1. Order'!P330=\"\",\"\",'1. Order'!P330)","v":{"$error":"#N/A"}},{"$f":"IF('1. Order'!Q330=\"\",\"\",'1. Order'!Q330)","v":""},{"$f":"IF('1. Order'!S330=\"\",\"\",'1. Order'!S330)","v":""},{"$f":"IF('1. Order'!T330=\"\",\"\",'1. Order'!T330)","v":""},{"$f":"IF('1. Order'!W330=\"\",\"\",'1. Order'!W330)","v":""},{"$f":"IF('1. Order'!X330=\"\",\"\",'1. Order'!X330)","v":""},{"$f":"IF('1. Order'!Y330=\"\",\"\",'1. Order'!Y330)","v":"EUR"},{"$f":"IF('1. Order'!Z330=\"\",\"\",'1. Order'!Z330)","v":""},{"$f":"IF('1. Order'!AA330=\"\",\"\",'1. Order'!AA330)","v":""},{"$f":"IF('1. Order'!AB330=\"\",\"\",'1. Order'!AB330)","v":""},null,{"$f":"IF('1. Order'!AT330=\"\",\"\",'1. Order'!AT330)","v":""},{"$f":"IF('1. Order'!AU330=\"\",\"\",'1. Order'!AU330)","v":""},null,null,null,null,null,null,null,{"$f":"IF('1. Order'!AY330=\"\",\"\",'1. Order'!AY330)","v":""},{"$f":"IF('1. Order'!AZ330=\"\",\"\",'1. Order'!AZ330)","v":""},{"$f":"IF('1. Order'!BA330=\"\",\"\",'1. Order'!BA330)","v":""},{"$f":"IF('1. Order'!BB330=\"\",\"\",'1. Order'!BB330)","v":""},{"$f":"IF('1. Order'!BD330=\"\",\"\",'1. Order'!BD330)","v":""},{"$f":"IF('1. Order'!BE330=\"\",\"\",'1. Order'!BE330)","v":""},{"$f":"IF('1. Order'!BF330=\"\",\"\",'1. Order'!BF330)","v":""},{"$f":"IF('1. Order'!BG330=\"\",\"\",'1. Order'!BG330)","v":""},{"$f":"IF('1. Order'!BH330=\"\",\"\",'1. Order'!BH330)","v":"ZWO"}]
[{"$f":"IF('1. Order'!F331=\"\",\"\",'1. Order'!F331)","v":{"$error":"#N/A"}},{"$f":"IF('1. Order'!G331=\"\",\"\",'1. Order'!G331)","v":""},{"$f":"IF('1. Order'!H331=\"\",\"\",'1. Order'!H331)","v":""},{"$f":"IF('1. Order'!I331=\"\",\"\",'1. Order'!I331)","v":""},{"$f":"IF('1. Order'!J331=\"\",\"\",'1. Order'!J331)","v":""},{"$f":"IF('1. Order'!K331=\"\",\"\",'1. Order'!K331)","v":""},{"$f":"IF('1. Order'!L331=\"\",\"\",'1. Order'!L331)","v":""},{"$f":"IF('1. Order'!M331=\"\",\"\",'1. Order'!M331)","v":""},{"$f":"IF('1. Order'!N331=\"\",\"\",'1. Order'!N331)","v":""},{"$f":"IF('1. Order'!O331=\"\",\"\",'1. Order'!O331)","v":{"$error":"#N/A"}},{"$f":"IF('1. Order'!P331=\"\",\"\",'1. Order'!P331)","v":{"$error":"#N/A"}},{"$f":"IF('1. Order'!Q331=\"\",\"\",'1. Order'!Q331)","v":""},{"$f":"IF('1. Order'!S331=\"\",\"\",'1. Order'!S331)","v":""},{"$f":"IF('1. Order'!T331=\"\",\"\",'1. Order'!T331)","v":""},{"$f":"IF('1. Order'!W331=\"\",\"\",'1. Order'!W331)","v":""},{"$f":"IF('1. Order'!X331=\"\",\"\",'1. Order'!X331)","v":""},{"$f":"IF('1. Order'!Y331=\"\",\"\",'1. Order'!Y331)","v":"EUR"},{"$f":"IF('1. Order'!Z331=\"\",\"\",'1. Order'!Z331)","v":""},{"$f":"IF('1. Order'!AA331=\"\",\"\",'1. Order'!AA331)","v":""},{"$f":"IF('1. Order'!AB331=\"\",\"\",'1. Order'!AB331)","v":""},null,{"$f":"IF('1. Order'!AT331=\"\",\"\",'1. Order'!AT331)","v":""},{"$f":"IF('1. Order'!AU331=\"\",\"\",'1. Order'!AU331)","v":""},null,null,null,null,null,null,null,{"$f":"IF('1. Order'!AY331=\"\",\"\",'1. Order'!AY331)","v":""},{"$f":"IF('1. Order'!AZ331=\"\",\"\",'1. Order'!AZ331)","v":""},{"$f":"IF('1. Order'!BA331=\"\",\"\",'1. Order'!BA331)","v":""},{"$f":"IF('1. Order'!BB331=\"\",\"\",'1. Order'!BB331)","v":""},{"$f":"IF('1. Order'!BD331=\"\",\"\",'1. Order'!BD331)","v":""},{"$f":"IF('1. Order'!BE331=\"\",\"\",'1. Order'!BE331)","v":""},{"$f":"IF('1. Order'!BF331=\"\",\"\",'1. Order'!BF331)","v":""},{"$f":"IF('1. Order'!BG331=\"\",\"\",'1. Order'!BG331)","v":""},{"$f":"IF('1. Order'!BH331=\"\",\"\",'1. Order'!BH331)","v":"ZWO"}]
[{"$f":"IF('1. Order'!F332=\"\",\"\",'1. Order'!F332)","v":{"$error":"#N/A"}},{"$f":"IF('1. Order'!G332=\"\",\"\",'1. Order'!G332)","v":""},{"$f":"IF('1. Order'!H332=\"\",\"\",'1. Order'!H332)","v":""},{"$f":"IF('1. Order'!I332=\"\",\"\",'1. Order'!I332)","v":""},{"$f":"IF('1. Order'!J332=\"\",\"\",'1. Order'!J332)","v":""},{"$f":"IF('1. Order'!K332=\"\",\"\",'1. Order'!K332)","v":""},{"$f":"IF('1. Order'!L332=\"\",\"\",'1. Order'!L332)","v":""},{"$f":"IF('1. Order'!M332=\"\",\"\",'1. Order'!M332)","v":""},{"$f":"IF('1. Order'!N332=\"\",\"\",'1. Order'!N332)","v":""},{"$f":"IF('1. Order'!O332=\"\",\"\",'1. Order'!O332)","v":{"$error":"#N/A"}},{"$f":"IF('1. Order'!P332=\"\",\"\",'1. Order'!P332)","v":{"$error":"#N/A"}},{"$f":"IF('1. Order'!Q332=\"\",\"\",'1. Order'!Q332)","v":""},{"$f":"IF('1. Order'!S332=\"\",\"\",'1. Order'!S332)","v":""},{"$f":"IF('1. Order'!T332=\"\",\"\",'1. Order'!T332)","v":""},{"$f":"IF('1. Order'!W332=\"\",\"\",'1. Order'!W332)","v":""},{"$f":"IF('1. Order'!X332=\"\",\"\",'1. Order'!X332)","v":""},{"$f":"IF('1. Order'!Y332=\"\",\"\",'1. Order'!Y332)","v":"EUR"},{"$f":"IF('1. Order'!Z332=\"\",\"\",'1. Order'!Z332)","v":""},{"$f":"IF('1. Order'!AA332=\"\",\"\",'1. Order'!AA332)","v":""},{"$f":"IF('1. Order'!AB332=\"\",\"\",'1. Order'!AB332)","v":""},null,{"$f":"IF('1. Order'!AT332=\"\",\"\",'1. Order'!AT332)","v":""},{"$f":"IF('1. Order'!AU332=\"\",\"\",'1. Order'!AU332)","v":""},null,null,null,null,null,null,null,{"$f":"IF('1. Order'!AY332=\"\",\"\",'1. Order'!AY332)","v":""},{"$f":"IF('1. Order'!AZ332=\"\",\"\",'1. Order'!AZ332)","v":""},{"$f":"IF('1. Order'!BA332=\"\",\"\",'1. Order'!BA332)","v":""},{"$f":"IF('1. Order'!BB332=\"\",\"\",'1. Order'!BB332)","v":""},{"$f":"IF('1. Order'!BD332=\"\",\"\",'1. Order'!BD332)","v":""},{"$f":"IF('1. Order'!BE332=\"\",\"\",'1. Order'!BE332)","v":""},{"$f":"IF('1. Order'!BF332=\"\",\"\",'1. Order'!BF332)","v":""},{"$f":"IF('1. Order'!BG332=\"\",\"\",'1. Order'!BG332)","v":""},{"$f":"IF('1. Order'!BH332=\"\",\"\",'1. Order'!BH332)","v":"ZWO"}]
[{"$f":"IF('1. Order'!F333=\"\",\"\",'1. Order'!F333)","v":{"$error":"#N/A"}},{"$f":"IF('1. Order'!G333=\"\",\"\",'1. Order'!G333)","v":""},{"$f":"IF('1. Order'!H333=\"\",\"\",'1. Order'!H333)","v":""},{"$f":"IF('1. Order'!I333=\"\",\"\",'1. Order'!I333)","v":""},{"$f":"IF('1. Order'!J333=\"\",\"\",'1. Order'!J333)","v":""},{"$f":"IF('1. Order'!K333=\"\",\"\",'1. Order'!K333)","v":""},{"$f":"IF('1. Order'!L333=\"\",\"\",'1. Order'!L333)","v":""},{"$f":"IF('1. Order'!M333=\"\",\"\",'1. Order'!M333)","v":""},{"$f":"IF('1. Order'!N333=\"\",\"\",'1. Order'!N333)","v":""},{"$f":"IF('1. Order'!O333=\"\",\"\",'1. Order'!O333)","v":{"$error":"#N/A"}},{"$f":"IF('1. Order'!P333=\"\",\"\",'1. Order'!P333)","v":{"$error":"#N/A"}},{"$f":"IF('1. Order'!Q333=\"\",\"\",'1. Order'!Q333)","v":""},{"$f":"IF('1. Order'!S333=\"\",\"\",'1. Order'!S333)","v":""},{"$f":"IF('1. Order'!T333=\"\",\"\",'1. Order'!T333)","v":""},{"$f":"IF('1. Order'!W333=\"\",\"\",'1. Order'!W333)","v":""},{"$f":"IF('1. Order'!X333=\"\",\"\",'1. Order'!X333)","v":""},{"$f":"IF('1. Order'!Y333=\"\",\"\",'1. Order'!Y333)","v":"EUR"},{"$f":"IF('1. Order'!Z333=\"\",\"\",'1. Order'!Z333)","v":""},{"$f":"IF('1. Order'!AA333=\"\",\"\",'1. Order'!AA333)","v":""},{"$f":"IF('1. Order'!AB333=\"\",\"\",'1. Order'!AB333)","v":""},null,{"$f":"IF('1. Order'!AT333=\"\",\"\",'1. Order'!AT333)","v":""},{"$f":"IF('1. Order'!AU333=\"\",\"\",'1. Order'!AU333)","v":""},null,null,null,null,null,null,null,{"$f":"IF('1. Order'!AY333=\"\",\"\",'1. Order'!AY333)","v":""},{"$f":"IF('1. Order'!AZ333=\"\",\"\",'1. Order'!AZ333)","v":""},{"$f":"IF('1. Order'!BA333=\"\",\"\",'1. Order'!BA333)","v":""},{"$f":"IF('1. Order'!BB333=\"\",\"\",'1. Order'!BB333)","v":""},{"$f":"IF('1. Order'!BD333=\"\",\"\",'1. Order'!BD333)","v":""},{"$f":"IF('1. Order'!BE333=\"\",\"\",'1. Order'!BE333)","v":""},{"$f":"IF('1. Order'!BF333=\"\",\"\",'1. Order'!BF333)","v":""},{"$f":"IF('1. Order'!BG333=\"\",\"\",'1. Order'!BG333)","v":""},{"$f":"IF('1. Order'!BH333=\"\",\"\",'1. Order'!BH333)","v":"ZWO"}]
[{"$f":"IF('1. Order'!F334=\"\",\"\",'1. Order'!F334)","v":{"$error":"#N/A"}},{"$f":"IF('1. Order'!G334=\"\",\"\",'1. Order'!G334)","v":""},{"$f":"IF('1. Order'!H334=\"\",\"\",'1. Order'!H334)","v":""},{"$f":"IF('1. Order'!I334=\"\",\"\",'1. Order'!I334)","v":""},{"$f":"IF('1. Order'!J334=\"\",\"\",'1. Order'!J334)","v":""},{"$f":"IF('1. Order'!K334=\"\",\"\",'1. Order'!K334)","v":""},{"$f":"IF('1. Order'!L334=\"\",\"\",'1. Order'!L334)","v":""},{"$f":"IF('1. Order'!M334=\"\",\"\",'1. Order'!M334)","v":""},{"$f":"IF('1. Order'!N334=\"\",\"\",'1. Order'!N334)","v":""},{"$f":"IF('1. Order'!O334=\"\",\"\",'1. Order'!O334)","v":{"$error":"#N/A"}},{"$f":"IF('1. Order'!P334=\"\",\"\",'1. Order'!P334)","v":{"$error":"#N/A"}},{"$f":"IF('1. Order'!Q334=\"\",\"\",'1. Order'!Q334)","v":""},{"$f":"IF('1. Order'!S334=\"\",\"\",'1. Order'!S334)","v":""},{"$f":"IF('1. Order'!T334=\"\",\"\",'1. Order'!T334)","v":""},{"$f":"IF('1. Order'!W334=\"\",\"\",'1. Order'!W334)","v":""},{"$f":"IF('1. Order'!X334=\"\",\"\",'1. Order'!X334)","v":""},{"$f":"IF('1. Order'!Y334=\"\",\"\",'1. Order'!Y334)","v":"EUR"},{"$f":"IF('1. Order'!Z334=\"\",\"\",'1. Order'!Z334)","v":""},{"$f":"IF('1. Order'!AA334=\"\",\"\",'1. Order'!AA334)","v":""},{"$f":"IF('1. Order'!AB334=\"\",\"\",'1. Order'!AB334)","v":""},null,{"$f":"IF('1. Order'!AT334=\"\",\"\",'1. Order'!AT334)","v":""},{"$f":"IF('1. Order'!AU334=\"\",\"\",'1. Order'!AU334)","v":""},null,null,null,null,null,null,null,{"$f":"IF('1. Order'!AY334=\"\",\"\",'1. Order'!AY334)","v":""},{"$f":"IF('1. Order'!AZ334=\"\",\"\",'1. Order'!AZ334)","v":""},{"$f":"IF('1. Order'!BA334=\"\",\"\",'1. Order'!BA334)","v":""},{"$f":"IF('1. Order'!BB334=\"\",\"\",'1. Order'!BB334)","v":""},{"$f":"IF('1. Order'!BD334=\"\",\"\",'1. Order'!BD334)","v":""},{"$f":"IF('1. Order'!BE334=\"\",\"\",'1. Order'!BE334)","v":""},{"$f":"IF('1. Order'!BF334=\"\",\"\",'1. Order'!BF334)","v":""},{"$f":"IF('1. Order'!BG334=\"\",\"\",'1. Order'!BG334)","v":""},{"$f":"IF('1. Order'!BH334=\"\",\"\",'1. Order'!BH334)","v":"ZWO"}]
[{"$f":"IF('1. Order'!F335=\"\",\"\",'1. Order'!F335)","v":{"$error":"#N/A"}},{"$f":"IF('1. Order'!G335=\"\",\"\",'1. Order'!G335)","v":""},{"$f":"IF('1. Order'!H335=\"\",\"\",'1. Order'!H335)","v":""},{"$f":"IF('1. Order'!I335=\"\",\"\",'1. Order'!I335)","v":""},{"$f":"IF('1. Order'!J335=\"\",\"\",'1. Order'!J335)","v":""},{"$f":"IF('1. Order'!K335=\"\",\"\",'1. Order'!K335)","v":""},{"$f":"IF('1. Order'!L335=\"\",\"\",'1. Order'!L335)","v":""},{"$f":"IF('1. Order'!M335=\"\",\"\",'1. Order'!M335)","v":""},{"$f":"IF('1. Order'!N335=\"\",\"\",'1. Order'!N335)","v":""},{"$f":"IF('1. Order'!O335=\"\",\"\",'1. Order'!O335)","v":{"$error":"#N/A"}},{"$f":"IF('1. Order'!P335=\"\",\"\",'1. Order'!P335)","v":{"$error":"#N/A"}},{"$f":"IF('1. Order'!Q335=\"\",\"\",'1. Order'!Q335)","v":""},{"$f":"IF('1. Order'!S335=\"\",\"\",'1. Order'!S335)","v":""},{"$f":"IF('1. Order'!T335=\"\",\"\",'1. Order'!T335)","v":""},{"$f":"IF('1. Order'!W335=\"\",\"\",'1. Order'!W335)","v":""},{"$f":"IF('1. Order'!X335=\"\",\"\",'1. Order'!X335)","v":""},{"$f":"IF('1. Order'!Y335=\"\",\"\",'1. Order'!Y335)","v":"EUR"},{"$f":"IF('1. Order'!Z335=\"\",\"\",'1. Order'!Z335)","v":""},{"$f":"IF('1. Order'!AA335=\"\",\"\",'1. Order'!AA335)","v":""},{"$f":"IF('1. Order'!AB335=\"\",\"\",'1. Order'!AB335)","v":""},null,{"$f":"IF('1. Order'!AT335=\"\",\"\",'1. Order'!AT335)","v":""},{"$f":"IF('1. Order'!AU335=\"\",\"\",'1. Order'!AU335)","v":""},null,null,null,null,null,null,null,{"$f":"IF('1. Order'!AY335=\"\",\"\",'1. Order'!AY335)","v":""},{"$f":"IF('1. Order'!AZ335=\"\",\"\",'1. Order'!AZ335)","v":""},{"$f":"IF('1. Order'!BA335=\"\",\"\",'1. Order'!BA335)","v":""},{"$f":"IF('1. Order'!BB335=\"\",\"\",'1. Order'!BB335)","v":""},{"$f":"IF('1. Order'!BD335=\"\",\"\",'1. Order'!BD335)","v":""},{"$f":"IF('1. Order'!BE335=\"\",\"\",'1. Order'!BE335)","v":""},{"$f":"IF('1. Order'!BF335=\"\",\"\",'1. Order'!BF335)","v":""},{"$f":"IF('1. Order'!BG335=\"\",\"\",'1. Order'!BG335)","v":""},{"$f":"IF('1. Order'!BH335=\"\",\"\",'1. Order'!BH335)","v":"ZWO"}]
[{"$f":"IF('1. Order'!F336=\"\",\"\",'1. Order'!F336)","v":{"$error":"#N/A"}},{"$f":"IF('1. Order'!G336=\"\",\"\",'1. Order'!G336)","v":""},{"$f":"IF('1. Order'!H336=\"\",\"\",'1. Order'!H336)","v":""},{"$f":"IF('1. Order'!I336=\"\",\"\",'1. Order'!I336)","v":""},{"$f":"IF('1. Order'!J336=\"\",\"\",'1. Order'!J336)","v":""},{"$f":"IF('1. Order'!K336=\"\",\"\",'1. Order'!K336)","v":""},{"$f":"IF('1. Order'!L336=\"\",\"\",'1. Order'!L336)","v":""},{"$f":"IF('1. Order'!M336=\"\",\"\",'1. Order'!M336)","v":""},{"$f":"IF('1. Order'!N336=\"\",\"\",'1. Order'!N336)","v":""},{"$f":"IF('1. Order'!O336=\"\",\"\",'1. Order'!O336)","v":{"$error":"#N/A"}},{"$f":"IF('1. Order'!P336=\"\",\"\",'1. Order'!P336)","v":{"$error":"#N/A"}},{"$f":"IF('1. Order'!Q336=\"\",\"\",'1. Order'!Q336)","v":""},{"$f":"IF('1. Order'!S336=\"\",\"\",'1. Order'!S336)","v":""},{"$f":"IF('1. Order'!T336=\"\",\"\",'1. Order'!T336)","v":""},{"$f":"IF('1. Order'!W336=\"\",\"\",'1. Order'!W336)","v":""},{"$f":"IF('1. Order'!X336=\"\",\"\",'1. Order'!X336)","v":""},{"$f":"IF('1. Order'!Y336=\"\",\"\",'1. Order'!Y336)","v":"EUR"},{"$f":"IF('1. Order'!Z336=\"\",\"\",'1. Order'!Z336)","v":""},{"$f":"IF('1. Order'!AA336=\"\",\"\",'1. Order'!AA336)","v":""},{"$f":"IF('1. Order'!AB336=\"\",\"\",'1. Order'!AB336)","v":""},null,{"$f":"IF('1. Order'!AT336=\"\",\"\",'1. Order'!AT336)","v":""},{"$f":"IF('1. Order'!AU336=\"\",\"\",'1. Order'!AU336)","v":""},null,null,null,null,null,null,null,{"$f":"IF('1. Order'!AY336=\"\",\"\",'1. Order'!AY336)","v":""},{"$f":"IF('1. Order'!AZ336=\"\",\"\",'1. Order'!AZ336)","v":""},{"$f":"IF('1. Order'!BA336=\"\",\"\",'1. Order'!BA336)","v":""},{"$f":"IF('1. Order'!BB336=\"\",\"\",'1. Order'!BB336)","v":""},{"$f":"IF('1. Order'!BD336=\"\",\"\",'1. Order'!BD336)","v":""},{"$f":"IF('1. Order'!BE336=\"\",\"\",'1. Order'!BE336)","v":""},{"$f":"IF('1. Order'!BF336=\"\",\"\",'1. Order'!BF336)","v":""},{"$f":"IF('1. Order'!BG336=\"\",\"\",'1. Order'!BG336)","v":""},{"$f":"IF('1. Order'!BH336=\"\",\"\",'1. Order'!BH336)","v":"ZWO"}]
[{"$f":"IF('1. Order'!F337=\"\",\"\",'1. Order'!F337)","v":{"$error":"#N/A"}},{"$f":"IF('1. Order'!G337=\"\",\"\",'1. Order'!G337)","v":""},{"$f":"IF('1. Order'!H337=\"\",\"\",'1. Order'!H337)","v":""},{"$f":"IF('1. Order'!I337=\"\",\"\",'1. Order'!I337)","v":""},{"$f":"IF('1. Order'!J337=\"\",\"\",'1. Order'!J337)","v":""},{"$f":"IF('1. Order'!K337=\"\",\"\",'1. Order'!K337)","v":""},{"$f":"IF('1. Order'!L337=\"\",\"\",'1. Order'!L337)","v":""},{"$f":"IF('1. Order'!M337=\"\",\"\",'1. Order'!M337)","v":""},{"$f":"IF('1. Order'!N337=\"\",\"\",'1. Order'!N337)","v":""},{"$f":"IF('1. Order'!O337=\"\",\"\",'1. Order'!O337)","v":{"$error":"#N/A"}},{"$f":"IF('1. Order'!P337=\"\",\"\",'1. Order'!P337)","v":{"$error":"#N/A"}},{"$f":"IF('1. Order'!Q337=\"\",\"\",'1. Order'!Q337)","v":""},{"$f":"IF('1. Order'!S337=\"\",\"\",'1. Order'!S337)","v":""},{"$f":"IF('1. Order'!T337=\"\",\"\",'1. Order'!T337)","v":""},{"$f":"IF('1. Order'!W337=\"\",\"\",'1. Order'!W337)","v":""},{"$f":"IF('1. Order'!X337=\"\",\"\",'1. Order'!X337)","v":""},{"$f":"IF('1. Order'!Y337=\"\",\"\",'1. Order'!Y337)","v":"EUR"},{"$f":"IF('1. Order'!Z337=\"\",\"\",'1. Order'!Z337)","v":""},{"$f":"IF('1. Order'!AA337=\"\",\"\",'1. Order'!AA337)","v":""},{"$f":"IF('1. Order'!AB337=\"\",\"\",'1. Order'!AB337)","v":""},null,{"$f":"IF('1. Order'!AT337=\"\",\"\",'1. Order'!AT337)","v":""},{"$f":"IF('1. Order'!AU337=\"\",\"\",'1. Order'!AU337)","v":""},null,null,null,null,null,null,null,{"$f":"IF('1. Order'!AY337=\"\",\"\",'1. Order'!AY337)","v":""},{"$f":"IF('1. Order'!AZ337=\"\",\"\",'1. Order'!AZ337)","v":""},{"$f":"IF('1. Order'!BA337=\"\",\"\",'1. Order'!BA337)","v":""},{"$f":"IF('1. Order'!BB337=\"\",\"\",'1. Order'!BB337)","v":""},{"$f":"IF('1. Order'!BD337=\"\",\"\",'1. Order'!BD337)","v":""},{"$f":"IF('1. Order'!BE337=\"\",\"\",'1. Order'!BE337)","v":""},{"$f":"IF('1. Order'!BF337=\"\",\"\",'1. Order'!BF337)","v":""},{"$f":"IF('1. Order'!BG337=\"\",\"\",'1. Order'!BG337)","v":""},{"$f":"IF('1. Order'!BH337=\"\",\"\",'1. Order'!BH337)","v":"ZWO"}]
[{"$f":"IF('1. Order'!F338=\"\",\"\",'1. Order'!F338)","v":{"$error":"#N/A"}},{"$f":"IF('1. Order'!G338=\"\",\"\",'1. Order'!G338)","v":""},{"$f":"IF('1. Order'!H338=\"\",\"\",'1. Order'!H338)","v":""},{"$f":"IF('1. Order'!I338=\"\",\"\",'1. Order'!I338)","v":""},{"$f":"IF('1. Order'!J338=\"\",\"\",'1. Order'!J338)","v":""},{"$f":"IF('1. Order'!K338=\"\",\"\",'1. Order'!K338)","v":""},{"$f":"IF('1. Order'!L338=\"\",\"\",'1. Order'!L338)","v":""},{"$f":"IF('1. Order'!M338=\"\",\"\",'1. Order'!M338)","v":""},{"$f":"IF('1. Order'!N338=\"\",\"\",'1. Order'!N338)","v":""},{"$f":"IF('1. Order'!O338=\"\",\"\",'1. Order'!O338)","v":{"$error":"#N/A"}},{"$f":"IF('1. Order'!P338=\"\",\"\",'1. Order'!P338)","v":{"$error":"#N/A"}},{"$f":"IF('1. Order'!Q338=\"\",\"\",'1. Order'!Q338)","v":""},{"$f":"IF('1. Order'!S338=\"\",\"\",'1. Order'!S338)","v":""},{"$f":"IF('1. Order'!T338=\"\",\"\",'1. Order'!T338)","v":""},{"$f":"IF('1. Order'!W338=\"\",\"\",'1. Order'!W338)","v":""},{"$f":"IF('1. Order'!X338=\"\",\"\",'1. Order'!X338)","v":""},{"$f":"IF('1. Order'!Y338=\"\",\"\",'1. Order'!Y338)","v":"EUR"},{"$f":"IF('1. Order'!Z338=\"\",\"\",'1. Order'!Z338)","v":""},{"$f":"IF('1. Order'!AA338=\"\",\"\",'1. Order'!AA338)","v":""},{"$f":"IF('1. Order'!AB338=\"\",\"\",'1. Order'!AB338)","v":""},null,{"$f":"IF('1. Order'!AT338=\"\",\"\",'1. Order'!AT338)","v":""},{"$f":"IF('1. Order'!AU338=\"\",\"\",'1. Order'!AU338)","v":""},null,null,null,null,null,null,null,{"$f":"IF('1. Order'!AY338=\"\",\"\",'1. Order'!AY338)","v":""},{"$f":"IF('1. Order'!AZ338=\"\",\"\",'1. Order'!AZ338)","v":""},{"$f":"IF('1. Order'!BA338=\"\",\"\",'1. Order'!BA338)","v":""},{"$f":"IF('1. Order'!BB338=\"\",\"\",'1. Order'!BB338)","v":""},{"$f":"IF('1. Order'!BD338=\"\",\"\",'1. Order'!BD338)","v":""},{"$f":"IF('1. Order'!BE338=\"\",\"\",'1. Order'!BE338)","v":""},{"$f":"IF('1. Order'!BF338=\"\",\"\",'1. Order'!BF338)","v":""},{"$f":"IF('1. Order'!BG338=\"\",\"\",'1. Order'!BG338)","v":""},{"$f":"IF('1. Order'!BH338=\"\",\"\",'1. Order'!BH338)","v":"ZWO"}]
[{"$f":"IF('1. Order'!F339=\"\",\"\",'1. Order'!F339)","v":{"$error":"#N/A"}},{"$f":"IF('1. Order'!G339=\"\",\"\",'1. Order'!G339)","v":""},{"$f":"IF('1. Order'!H339=\"\",\"\",'1. Order'!H339)","v":""},{"$f":"IF('1. Order'!I339=\"\",\"\",'1. Order'!I339)","v":""},{"$f":"IF('1. Order'!J339=\"\",\"\",'1. Order'!J339)","v":""},{"$f":"IF('1. Order'!K339=\"\",\"\",'1. Order'!K339)","v":""},{"$f":"IF('1. Order'!L339=\"\",\"\",'1. Order'!L339)","v":""},{"$f":"IF('1. Order'!M339=\"\",\"\",'1. Order'!M339)","v":""},{"$f":"IF('1. Order'!N339=\"\",\"\",'1. Order'!N339)","v":""},{"$f":"IF('1. Order'!O339=\"\",\"\",'1. Order'!O339)","v":{"$error":"#N/A"}},{"$f":"IF('1. Order'!P339=\"\",\"\",'1. Order'!P339)","v":{"$error":"#N/A"}},{"$f":"IF('1. Order'!Q339=\"\",\"\",'1. Order'!Q339)","v":""},{"$f":"IF('1. Order'!S339=\"\",\"\",'1. Order'!S339)","v":""},{"$f":"IF('1. Order'!T339=\"\",\"\",'1. Order'!T339)","v":""},{"$f":"IF('1. Order'!W339=\"\",\"\",'1. Order'!W339)","v":""},{"$f":"IF('1. Order'!X339=\"\",\"\",'1. Order'!X339)","v":""},{"$f":"IF('1. Order'!Y339=\"\",\"\",'1. Order'!Y339)","v":"EUR"},{"$f":"IF('1. Order'!Z339=\"\",\"\",'1. Order'!Z339)","v":""},{"$f":"IF('1. Order'!AA339=\"\",\"\",'1. Order'!AA339)","v":""},{"$f":"IF('1. Order'!AB339=\"\",\"\",'1. Order'!AB339)","v":""},null,{"$f":"IF('1. Order'!AT339=\"\",\"\",'1. Order'!AT339)","v":""},{"$f":"IF('1. Order'!AU339=\"\",\"\",'1. Order'!AU339)","v":""},null,null,null,null,null,null,null,{"$f":"IF('1. Order'!AY339=\"\",\"\",'1. Order'!AY339)","v":""},{"$f":"IF('1. Order'!AZ339=\"\",\"\",'1. Order'!AZ339)","v":""},{"$f":"IF('1. Order'!BA339=\"\",\"\",'1. Order'!BA339)","v":""},{"$f":"IF('1. Order'!BB339=\"\",\"\",'1. Order'!BB339)","v":""},{"$f":"IF('1. Order'!BD339=\"\",\"\",'1. Order'!BD339)","v":""},{"$f":"IF('1. Order'!BE339=\"\",\"\",'1. Order'!BE339)","v":""},{"$f":"IF('1. Order'!BF339=\"\",\"\",'1. Order'!BF339)","v":""},{"$f":"IF('1. Order'!BG339=\"\",\"\",'1. Order'!BG339)","v":""},{"$f":"IF('1. Order'!BH339=\"\",\"\",'1. Order'!BH339)","v":"ZWO"}]
[{"$f":"IF('1. Order'!F340=\"\",\"\",'1. Order'!F340)","v":{"$error":"#N/A"}},{"$f":"IF('1. Order'!G340=\"\",\"\",'1. Order'!G340)","v":""},{"$f":"IF('1. Order'!H340=\"\",\"\",'1. Order'!H340)","v":""},{"$f":"IF('1. Order'!I340=\"\",\"\",'1. Order'!I340)","v":""},{"$f":"IF('1. Order'!J340=\"\",\"\",'1. Order'!J340)","v":""},{"$f":"IF('1. Order'!K340=\"\",\"\",'1. Order'!K340)","v":""},{"$f":"IF('1. Order'!L340=\"\",\"\",'1. Order'!L340)","v":""},{"$f":"IF('1. Order'!M340=\"\",\"\",'1. Order'!M340)","v":""},{"$f":"IF('1. Order'!N340=\"\",\"\",'1. Order'!N340)","v":""},{"$f":"IF('1. Order'!O340=\"\",\"\",'1. Order'!O340)","v":{"$error":"#N/A"}},{"$f":"IF('1. Order'!P340=\"\",\"\",'1. Order'!P340)","v":{"$error":"#N/A"}},{"$f":"IF('1. Order'!Q340=\"\",\"\",'1. Order'!Q340)","v":""},{"$f":"IF('1. Order'!S340=\"\",\"\",'1. Order'!S340)","v":""},{"$f":"IF('1. Order'!T340=\"\",\"\",'1. Order'!T340)","v":""},{"$f":"IF('1. Order'!W340=\"\",\"\",'1. Order'!W340)","v":""},{"$f":"IF('1. Order'!X340=\"\",\"\",'1. Order'!X340)","v":""},{"$f":"IF('1. Order'!Y340=\"\",\"\",'1. Order'!Y340)","v":"EUR"},{"$f":"IF('1. Order'!Z340=\"\",\"\",'1. Order'!Z340)","v":""},{"$f":"IF('1. Order'!AA340=\"\",\"\",'1. Order'!AA340)","v":""},{"$f":"IF('1. Order'!AB340=\"\",\"\",'1. Order'!AB340)","v":""},null,{"$f":"IF('1. Order'!AT340=\"\",\"\",'1. Order'!AT340)","v":""},{"$f":"IF('1. Order'!AU340=\"\",\"\",'1. Order'!AU340)","v":""},null,null,null,null,null,null,null,{"$f":"IF('1. Order'!AY340=\"\",\"\",'1. Order'!AY340)","v":""},{"$f":"IF('1. Order'!AZ340=\"\",\"\",'1. Order'!AZ340)","v":""},{"$f":"IF('1. Order'!BA340=\"\",\"\",'1. Order'!BA340)","v":""},{"$f":"IF('1. Order'!BB340=\"\",\"\",'1. Order'!BB340)","v":""},{"$f":"IF('1. Order'!BD340=\"\",\"\",'1. Order'!BD340)","v":""},{"$f":"IF('1. Order'!BE340=\"\",\"\",'1. Order'!BE340)","v":""},{"$f":"IF('1. Order'!BF340=\"\",\"\",'1. Order'!BF340)","v":""},{"$f":"IF('1. Order'!BG340=\"\",\"\",'1. Order'!BG340)","v":""},{"$f":"IF('1. Order'!BH340=\"\",\"\",'1. Order'!BH340)","v":"ZWO"}]
[{"$f":"IF('1. Order'!F341=\"\",\"\",'1. Order'!F341)","v":{"$error":"#N/A"}},{"$f":"IF('1. Order'!G341=\"\",\"\",'1. Order'!G341)","v":""},{"$f":"IF('1. Order'!H341=\"\",\"\",'1. Order'!H341)","v":""},{"$f":"IF('1. Order'!I341=\"\",\"\",'1. Order'!I341)","v":""},{"$f":"IF('1. Order'!J341=\"\",\"\",'1. Order'!J341)","v":""},{"$f":"IF('1. Order'!K341=\"\",\"\",'1. Order'!K341)","v":""},{"$f":"IF('1. Order'!L341=\"\",\"\",'1. Order'!L341)","v":""},{"$f":"IF('1. Order'!M341=\"\",\"\",'1. Order'!M341)","v":""},{"$f":"IF('1. Order'!N341=\"\",\"\",'1. Order'!N341)","v":""},{"$f":"IF('1. Order'!O341=\"\",\"\",'1. Order'!O341)","v":{"$error":"#N/A"}},{"$f":"IF('1. Order'!P341=\"\",\"\",'1. Order'!P341)","v":{"$error":"#N/A"}},{"$f":"IF('1. Order'!Q341=\"\",\"\",'1. Order'!Q341)","v":""},{"$f":"IF('1. Order'!S341=\"\",\"\",'1. Order'!S341)","v":""},{"$f":"IF('1. Order'!T341=\"\",\"\",'1. Order'!T341)","v":""},{"$f":"IF('1. Order'!W341=\"\",\"\",'1. Order'!W341)","v":""},{"$f":"IF('1. Order'!X341=\"\",\"\",'1. Order'!X341)","v":""},{"$f":"IF('1. Order'!Y341=\"\",\"\",'1. Order'!Y341)","v":"EUR"},{"$f":"IF('1. Order'!Z341=\"\",\"\",'1. Order'!Z341)","v":""},{"$f":"IF('1. Order'!AA341=\"\",\"\",'1. Order'!AA341)","v":""},{"$f":"IF('1. Order'!AB341=\"\",\"\",'1. Order'!AB341)","v":""},null,{"$f":"IF('1. Order'!AT341=\"\",\"\",'1. Order'!AT341)","v":""},{"$f":"IF('1. Order'!AU341=\"\",\"\",'1. Order'!AU341)","v":""},null,null,null,null,null,null,null,{"$f":"IF('1. Order'!AY341=\"\",\"\",'1. Order'!AY341)","v":""},{"$f":"IF('1. Order'!AZ341=\"\",\"\",'1. Order'!AZ341)","v":""},{"$f":"IF('1. Order'!BA341=\"\",\"\",'1. Order'!BA341)","v":""},{"$f":"IF('1. Order'!BB341=\"\",\"\",'1. Order'!BB341)","v":""},{"$f":"IF('1. Order'!BD341=\"\",\"\",'1. Order'!BD341)","v":""},{"$f":"IF('1. Order'!BE341=\"\",\"\",'1. Order'!BE341)","v":""},{"$f":"IF('1. Order'!BF341=\"\",\"\",'1. Order'!BF341)","v":""},{"$f":"IF('1. Order'!BG341=\"\",\"\",'1. Order'!BG341)","v":""},{"$f":"IF('1. Order'!BH341=\"\",\"\",'1. Order'!BH341)","v":"ZWO"}]
[{"$f":"IF('1. Order'!F342=\"\",\"\",'1. Order'!F342)","v":{"$error":"#N/A"}},{"$f":"IF('1. Order'!G342=\"\",\"\",'1. Order'!G342)","v":""},{"$f":"IF('1. Order'!H342=\"\",\"\",'1. Order'!H342)","v":""},{"$f":"IF('1. Order'!I342=\"\",\"\",'1. Order'!I342)","v":""},{"$f":"IF('1. Order'!J342=\"\",\"\",'1. Order'!J342)","v":""},{"$f":"IF('1. Order'!K342=\"\",\"\",'1. Order'!K342)","v":""},{"$f":"IF('1. Order'!L342=\"\",\"\",'1. Order'!L342)","v":""},{"$f":"IF('1. Order'!M342=\"\",\"\",'1. Order'!M342)","v":""},{"$f":"IF('1. Order'!N342=\"\",\"\",'1. Order'!N342)","v":""},{"$f":"IF('1. Order'!O342=\"\",\"\",'1. Order'!O342)","v":{"$error":"#N/A"}},{"$f":"IF('1. Order'!P342=\"\",\"\",'1. Order'!P342)","v":{"$error":"#N/A"}},{"$f":"IF('1. Order'!Q342=\"\",\"\",'1. Order'!Q342)","v":""},{"$f":"IF('1. Order'!S342=\"\",\"\",'1. Order'!S342)","v":""},{"$f":"IF('1. Order'!T342=\"\",\"\",'1. Order'!T342)","v":""},{"$f":"IF('1. Order'!W342=\"\",\"\",'1. Order'!W342)","v":""},{"$f":"IF('1. Order'!X342=\"\",\"\",'1. Order'!X342)","v":""},{"$f":"IF('1. Order'!Y342=\"\",\"\",'1. Order'!Y342)","v":"EUR"},{"$f":"IF('1. Order'!Z342=\"\",\"\",'1. Order'!Z342)","v":""},{"$f":"IF('1. Order'!AA342=\"\",\"\",'1. Order'!AA342)","v":""},{"$f":"IF('1. Order'!AB342=\"\",\"\",'1. Order'!AB342)","v":""},null,{"$f":"IF('1. Order'!AT342=\"\",\"\",'1. Order'!AT342)","v":""},{"$f":"IF('1. Order'!AU342=\"\",\"\",'1. Order'!AU342)","v":""},null,null,null,null,null,null,null,{"$f":"IF('1. Order'!AY342=\"\",\"\",'1. Order'!AY342)","v":""},{"$f":"IF('1. Order'!AZ342=\"\",\"\",'1. Order'!AZ342)","v":""},{"$f":"IF('1. Order'!BA342=\"\",\"\",'1. Order'!BA342)","v":""},{"$f":"IF('1. Order'!BB342=\"\",\"\",'1. Order'!BB342)","v":""},{"$f":"IF('1. Order'!BD342=\"\",\"\",'1. Order'!BD342)","v":""},{"$f":"IF('1. Order'!BE342=\"\",\"\",'1. Order'!BE342)","v":""},{"$f":"IF('1. Order'!BF342=\"\",\"\",'1. Order'!BF342)","v":""},{"$f":"IF('1. Order'!BG342=\"\",\"\",'1. Order'!BG342)","v":""},{"$f":"IF('1. Order'!BH342=\"\",\"\",'1. Order'!BH342)","v":"ZWO"}]
[{"$f":"IF('1. Order'!F343=\"\",\"\",'1. Order'!F343)","v":{"$error":"#N/A"}},{"$f":"IF('1. Order'!G343=\"\",\"\",'1. Order'!G343)","v":""},{"$f":"IF('1. Order'!H343=\"\",\"\",'1. Order'!H343)","v":""},{"$f":"IF('1. Order'!I343=\"\",\"\",'1. Order'!I343)","v":""},{"$f":"IF('1. Order'!J343=\"\",\"\",'1. Order'!J343)","v":""},{"$f":"IF('1. Order'!K343=\"\",\"\",'1. Order'!K343)","v":""},{"$f":"IF('1. Order'!L343=\"\",\"\",'1. Order'!L343)","v":""},{"$f":"IF('1. Order'!M343=\"\",\"\",'1. Order'!M343)","v":""},{"$f":"IF('1. Order'!N343=\"\",\"\",'1. Order'!N343)","v":""},{"$f":"IF('1. Order'!O343=\"\",\"\",'1. Order'!O343)","v":{"$error":"#N/A"}},{"$f":"IF('1. Order'!P343=\"\",\"\",'1. Order'!P343)","v":{"$error":"#N/A"}},{"$f":"IF('1. Order'!Q343=\"\",\"\",'1. Order'!Q343)","v":""},{"$f":"IF('1. Order'!S343=\"\",\"\",'1. Order'!S343)","v":""},{"$f":"IF('1. Order'!T343=\"\",\"\",'1. Order'!T343)","v":""},{"$f":"IF('1. Order'!W343=\"\",\"\",'1. Order'!W343)","v":""},{"$f":"IF('1. Order'!X343=\"\",\"\",'1. Order'!X343)","v":""},{"$f":"IF('1. Order'!Y343=\"\",\"\",'1. Order'!Y343)","v":"EUR"},{"$f":"IF('1. Order'!Z343=\"\",\"\",'1. Order'!Z343)","v":""},{"$f":"IF('1. Order'!AA343=\"\",\"\",'1. Order'!AA343)","v":""},{"$f":"IF('1. Order'!AB343=\"\",\"\",'1. Order'!AB343)","v":""},null,{"$f":"IF('1. Order'!AT343=\"\",\"\",'1. Order'!AT343)","v":""},{"$f":"IF('1. Order'!AU343=\"\",\"\",'1. Order'!AU343)","v":""},null,null,null,null,null,null,null,{"$f":"IF('1. Order'!AY343=\"\",\"\",'1. Order'!AY343)","v":""},{"$f":"IF('1. Order'!AZ343=\"\",\"\",'1. Order'!AZ343)","v":""},{"$f":"IF('1. Order'!BA343=\"\",\"\",'1. Order'!BA343)","v":""},{"$f":"IF('1. Order'!BB343=\"\",\"\",'1. Order'!BB343)","v":""},{"$f":"IF('1. Order'!BD343=\"\",\"\",'1. Order'!BD343)","v":""},{"$f":"IF('1. Order'!BE343=\"\",\"\",'1. Order'!BE343)","v":""},{"$f":"IF('1. Order'!BF343=\"\",\"\",'1. Order'!BF343)","v":""},{"$f":"IF('1. Order'!BG343=\"\",\"\",'1. Order'!BG343)","v":""},{"$f":"IF('1. Order'!BH343=\"\",\"\",'1. Order'!BH343)","v":"ZWO"}]
[{"$f":"IF('1. Order'!F344=\"\",\"\",'1. Order'!F344)","v":{"$error":"#N/A"}},{"$f":"IF('1. Order'!G344=\"\",\"\",'1. Order'!G344)","v":""},{"$f":"IF('1. Order'!H344=\"\",\"\",'1. Order'!H344)","v":""},{"$f":"IF('1. Order'!I344=\"\",\"\",'1. Order'!I344)","v":""},{"$f":"IF('1. Order'!J344=\"\",\"\",'1. Order'!J344)","v":""},{"$f":"IF('1. Order'!K344=\"\",\"\",'1. Order'!K344)","v":""},{"$f":"IF('1. Order'!L344=\"\",\"\",'1. Order'!L344)","v":""},{"$f":"IF('1. Order'!M344=\"\",\"\",'1. Order'!M344)","v":""},{"$f":"IF('1. Order'!N344=\"\",\"\",'1. Order'!N344)","v":""},{"$f":"IF('1. Order'!O344=\"\",\"\",'1. Order'!O344)","v":{"$error":"#N/A"}},{"$f":"IF('1. Order'!P344=\"\",\"\",'1. Order'!P344)","v":{"$error":"#N/A"}},{"$f":"IF('1. Order'!Q344=\"\",\"\",'1. Order'!Q344)","v":""},{"$f":"IF('1. Order'!S344=\"\",\"\",'1. Order'!S344)","v":""},{"$f":"IF('1. Order'!T344=\"\",\"\",'1. Order'!T344)","v":""},{"$f":"IF('1. Order'!W344=\"\",\"\",'1. Order'!W344)","v":""},{"$f":"IF('1. Order'!X344=\"\",\"\",'1. Order'!X344)","v":""},{"$f":"IF('1. Order'!Y344=\"\",\"\",'1. Order'!Y344)","v":"EUR"},{"$f":"IF('1. Order'!Z344=\"\",\"\",'1. Order'!Z344)","v":""},{"$f":"IF('1. Order'!AA344=\"\",\"\",'1. Order'!AA344)","v":""},{"$f":"IF('1. Order'!AB344=\"\",\"\",'1. Order'!AB344)","v":""},null,{"$f":"IF('1. Order'!AT344=\"\",\"\",'1. Order'!AT344)","v":""},{"$f":"IF('1. Order'!AU344=\"\",\"\",'1. Order'!AU344)","v":""},null,null,null,null,null,null,null,{"$f":"IF('1. Order'!AY344=\"\",\"\",'1. Order'!AY344)","v":""},{"$f":"IF('1. Order'!AZ344=\"\",\"\",'1. Order'!AZ344)","v":""},{"$f":"IF('1. Order'!BA344=\"\",\"\",'1. Order'!BA344)","v":""},{"$f":"IF('1. Order'!BB344=\"\",\"\",'1. Order'!BB344)","v":""},{"$f":"IF('1. Order'!BD344=\"\",\"\",'1. Order'!BD344)","v":""},{"$f":"IF('1. Order'!BE344=\"\",\"\",'1. Order'!BE344)","v":""},{"$f":"IF('1. Order'!BF344=\"\",\"\",'1. Order'!BF344)","v":""},{"$f":"IF('1. Order'!BG344=\"\",\"\",'1. Order'!BG344)","v":""},{"$f":"IF('1. Order'!BH344=\"\",\"\",'1. Order'!BH344)","v":"ZWO"}]
[{"$f":"IF('1. Order'!F345=\"\",\"\",'1. Order'!F345)","v":{"$error":"#N/A"}},{"$f":"IF('1. Order'!G345=\"\",\"\",'1. Order'!G345)","v":""},{"$f":"IF('1. Order'!H345=\"\",\"\",'1. Order'!H345)","v":""},{"$f":"IF('1. Order'!I345=\"\",\"\",'1. Order'!I345)","v":""},{"$f":"IF('1. Order'!J345=\"\",\"\",'1. Order'!J345)","v":""},{"$f":"IF('1. Order'!K345=\"\",\"\",'1. Order'!K345)","v":""},{"$f":"IF('1. Order'!L345=\"\",\"\",'1. Order'!L345)","v":""},{"$f":"IF('1. Order'!M345=\"\",\"\",'1. Order'!M345)","v":""},{"$f":"IF('1. Order'!N345=\"\",\"\",'1. Order'!N345)","v":""},{"$f":"IF('1. Order'!O345=\"\",\"\",'1. Order'!O345)","v":{"$error":"#N/A"}},{"$f":"IF('1. Order'!P345=\"\",\"\",'1. Order'!P345)","v":{"$error":"#N/A"}},{"$f":"IF('1. Order'!Q345=\"\",\"\",'1. Order'!Q345)","v":""},{"$f":"IF('1. Order'!S345=\"\",\"\",'1. Order'!S345)","v":""},{"$f":"IF('1. Order'!T345=\"\",\"\",'1. Order'!T345)","v":""},{"$f":"IF('1. Order'!W345=\"\",\"\",'1. Order'!W345)","v":""},{"$f":"IF('1. Order'!X345=\"\",\"\",'1. Order'!X345)","v":""},{"$f":"IF('1. Order'!Y345=\"\",\"\",'1. Order'!Y345)","v":"EUR"},{"$f":"IF('1. Order'!Z345=\"\",\"\",'1. Order'!Z345)","v":""},{"$f":"IF('1. Order'!AA345=\"\",\"\",'1. Order'!AA345)","v":""},{"$f":"IF('1. Order'!AB345=\"\",\"\",'1. Order'!AB345)","v":""},null,{"$f":"IF('1. Order'!AT345=\"\",\"\",'1. Order'!AT345)","v":""},{"$f":"IF('1. Order'!AU345=\"\",\"\",'1. Order'!AU345)","v":""},null,null,null,null,null,null,null,{"$f":"IF('1. Order'!AY345=\"\",\"\",'1. Order'!AY345)","v":""},{"$f":"IF('1. Order'!AZ345=\"\",\"\",'1. Order'!AZ345)","v":""},{"$f":"IF('1. Order'!BA345=\"\",\"\",'1. Order'!BA345)","v":""},{"$f":"IF('1. Order'!BB345=\"\",\"\",'1. Order'!BB345)","v":""},{"$f":"IF('1. Order'!BD345=\"\",\"\",'1. Order'!BD345)","v":""},{"$f":"IF('1. Order'!BE345=\"\",\"\",'1. Order'!BE345)","v":""},{"$f":"IF('1. Order'!BF345=\"\",\"\",'1. Order'!BF345)","v":""},{"$f":"IF('1. Order'!BG345=\"\",\"\",'1. Order'!BG345)","v":""},{"$f":"IF('1. Order'!BH345=\"\",\"\",'1. Order'!BH345)","v":"ZWO"}]
[{"$f":"IF('1. Order'!F346=\"\",\"\",'1. Order'!F346)","v":{"$error":"#N/A"}},{"$f":"IF('1. Order'!G346=\"\",\"\",'1. Order'!G346)","v":""},{"$f":"IF('1. Order'!H346=\"\",\"\",'1. Order'!H346)","v":""},{"$f":"IF('1. Order'!I346=\"\",\"\",'1. Order'!I346)","v":""},{"$f":"IF('1. Order'!J346=\"\",\"\",'1. Order'!J346)","v":""},{"$f":"IF('1. Order'!K346=\"\",\"\",'1. Order'!K346)","v":""},{"$f":"IF('1. Order'!L346=\"\",\"\",'1. Order'!L346)","v":""},{"$f":"IF('1. Order'!M346=\"\",\"\",'1. Order'!M346)","v":""},{"$f":"IF('1. Order'!N346=\"\",\"\",'1. Order'!N346)","v":""},{"$f":"IF('1. Order'!O346=\"\",\"\",'1. Order'!O346)","v":{"$error":"#N/A"}},{"$f":"IF('1. Order'!P346=\"\",\"\",'1. Order'!P346)","v":{"$error":"#N/A"}},{"$f":"IF('1. Order'!Q346=\"\",\"\",'1. Order'!Q346)","v":""},{"$f":"IF('1. Order'!S346=\"\",\"\",'1. Order'!S346)","v":""},{"$f":"IF('1. Order'!T346=\"\",\"\",'1. Order'!T346)","v":""},{"$f":"IF('1. Order'!W346=\"\",\"\",'1. Order'!W346)","v":""},{"$f":"IF('1. Order'!X346=\"\",\"\",'1. Order'!X346)","v":""},{"$f":"IF('1. Order'!Y346=\"\",\"\",'1. Order'!Y346)","v":"EUR"},{"$f":"IF('1. Order'!Z346=\"\",\"\",'1. Order'!Z346)","v":""},{"$f":"IF('1. Order'!AA346=\"\",\"\",'1. Order'!AA346)","v":""},{"$f":"IF('1. Order'!AB346=\"\",\"\",'1. Order'!AB346)","v":""},null,{"$f":"IF('1. Order'!AT346=\"\",\"\",'1. Order'!AT346)","v":""},{"$f":"IF('1. Order'!AU346=\"\",\"\",'1. Order'!AU346)","v":""},null,null,null,null,null,null,null,{"$f":"IF('1. Order'!AY346=\"\",\"\",'1. Order'!AY346)","v":""},{"$f":"IF('1. Order'!AZ346=\"\",\"\",'1. Order'!AZ346)","v":""},{"$f":"IF('1. Order'!BA346=\"\",\"\",'1. Order'!BA346)","v":""},{"$f":"IF('1. Order'!BB346=\"\",\"\",'1. Order'!BB346)","v":""},{"$f":"IF('1. Order'!BD346=\"\",\"\",'1. Order'!BD346)","v":""},{"$f":"IF('1. Order'!BE346=\"\",\"\",'1. Order'!BE346)","v":""},{"$f":"IF('1. Order'!BF346=\"\",\"\",'1. Order'!BF346)","v":""},{"$f":"IF('1. Order'!BG346=\"\",\"\",'1. Order'!BG346)","v":""},{"$f":"IF('1. Order'!BH346=\"\",\"\",'1. Order'!BH346)","v":"ZWO"}]
[{"$f":"IF('1. Order'!F347=\"\",\"\",'1. Order'!F347)","v":{"$error":"#N/A"}},{"$f":"IF('1. Order'!G347=\"\",\"\",'1. Order'!G347)","v":""},{"$f":"IF('1. Order'!H347=\"\",\"\",'1. Order'!H347)","v":""},{"$f":"IF('1. Order'!I347=\"\",\"\",'1. Order'!I347)","v":""},{"$f":"IF('1. Order'!J347=\"\",\"\",'1. Order'!J347)","v":""},{"$f":"IF('1. Order'!K347=\"\",\"\",'1. Order'!K347)","v":""},{"$f":"IF('1. Order'!L347=\"\",\"\",'1. Order'!L347)","v":""},{"$f":"IF('1. Order'!M347=\"\",\"\",'1. Order'!M347)","v":""},{"$f":"IF('1. Order'!N347=\"\",\"\",'1. Order'!N347)","v":""},{"$f":"IF('1. Order'!O347=\"\",\"\",'1. Order'!O347)","v":{"$error":"#N/A"}},{"$f":"IF('1. Order'!P347=\"\",\"\",'1. Order'!P347)","v":{"$error":"#N/A"}},{"$f":"IF('1. Order'!Q347=\"\",\"\",'1. Order'!Q347)","v":""},{"$f":"IF('1. Order'!S347=\"\",\"\",'1. Order'!S347)","v":""},{"$f":"IF('1. Order'!T347=\"\",\"\",'1. Order'!T347)","v":""},{"$f":"IF('1. Order'!W347=\"\",\"\",'1. Order'!W347)","v":""},{"$f":"IF('1. Order'!X347=\"\",\"\",'1. Order'!X347)","v":""},{"$f":"IF('1. Order'!Y347=\"\",\"\",'1. Order'!Y347)","v":"EUR"},{"$f":"IF('1. Order'!Z347=\"\",\"\",'1. Order'!Z347)","v":""},{"$f":"IF('1. Order'!AA347=\"\",\"\",'1. Order'!AA347)","v":""},{"$f":"IF('1. Order'!AB347=\"\",\"\",'1. Order'!AB347)","v":""},null,{"$f":"IF('1. Order'!AT347=\"\",\"\",'1. Order'!AT347)","v":""},{"$f":"IF('1. Order'!AU347=\"\",\"\",'1. Order'!AU347)","v":""},null,null,null,null,null,null,null,{"$f":"IF('1. Order'!AY347=\"\",\"\",'1. Order'!AY347)","v":""},{"$f":"IF('1. Order'!AZ347=\"\",\"\",'1. Order'!AZ347)","v":""},{"$f":"IF('1. Order'!BA347=\"\",\"\",'1. Order'!BA347)","v":""},{"$f":"IF('1. Order'!BB347=\"\",\"\",'1. Order'!BB347)","v":""},{"$f":"IF('1. Order'!BD347=\"\",\"\",'1. Order'!BD347)","v":""},{"$f":"IF('1. Order'!BE347=\"\",\"\",'1. Order'!BE347)","v":""},{"$f":"IF('1. Order'!BF347=\"\",\"\",'1. Order'!BF347)","v":""},{"$f":"IF('1. Order'!BG347=\"\",\"\",'1. Order'!BG347)","v":""},{"$f":"IF('1. Order'!BH347=\"\",\"\",'1. Order'!BH347)","v":"ZWO"}]
[{"$f":"IF('1. Order'!F348=\"\",\"\",'1. Order'!F348)","v":{"$error":"#N/A"}},{"$f":"IF('1. Order'!G348=\"\",\"\",'1. Order'!G348)","v":""},{"$f":"IF('1. Order'!H348=\"\",\"\",'1. Order'!H348)","v":""},{"$f":"IF('1. Order'!I348=\"\",\"\",'1. Order'!I348)","v":""},{"$f":"IF('1. Order'!J348=\"\",\"\",'1. Order'!J348)","v":""},{"$f":"IF('1. Order'!K348=\"\",\"\",'1. Order'!K348)","v":""},{"$f":"IF('1. Order'!L348=\"\",\"\",'1. Order'!L348)","v":""},{"$f":"IF('1. Order'!M348=\"\",\"\",'1. Order'!M348)","v":""},{"$f":"IF('1. Order'!N348=\"\",\"\",'1. Order'!N348)","v":""},{"$f":"IF('1. Order'!O348=\"\",\"\",'1. Order'!O348)","v":{"$error":"#N/A"}},{"$f":"IF('1. Order'!P348=\"\",\"\",'1. Order'!P348)","v":{"$error":"#N/A"}},{"$f":"IF('1. Order'!Q348=\"\",\"\",'1. Order'!Q348)","v":""},{"$f":"IF('1. Order'!S348=\"\",\"\",'1. Order'!S348)","v":""},{"$f":"IF('1. Order'!T348=\"\",\"\",'1. Order'!T348)","v":""},{"$f":"IF('1. Order'!W348=\"\",\"\",'1. Order'!W348)","v":""},{"$f":"IF('1. Order'!X348=\"\",\"\",'1. Order'!X348)","v":""},{"$f":"IF('1. Order'!Y348=\"\",\"\",'1. Order'!Y348)","v":"EUR"},{"$f":"IF('1. Order'!Z348=\"\",\"\",'1. Order'!Z348)","v":""},{"$f":"IF('1. Order'!AA348=\"\",\"\",'1. Order'!AA348)","v":""},{"$f":"IF('1. Order'!AB348=\"\",\"\",'1. Order'!AB348)","v":""},null,{"$f":"IF('1. Order'!AT348=\"\",\"\",'1. Order'!AT348)","v":""},{"$f":"IF('1. Order'!AU348=\"\",\"\",'1. Order'!AU348)","v":""},null,null,null,null,null,null,null,{"$f":"IF('1. Order'!AY348=\"\",\"\",'1. Order'!AY348)","v":""},{"$f":"IF('1. Order'!AZ348=\"\",\"\",'1. Order'!AZ348)","v":""},{"$f":"IF('1. Order'!BA348=\"\",\"\",'1. Order'!BA348)","v":""},{"$f":"IF('1. Order'!BB348=\"\",\"\",'1. Order'!BB348)","v":""},{"$f":"IF('1. Order'!BD348=\"\",\"\",'1. Order'!BD348)","v":""},{"$f":"IF('1. Order'!BE348=\"\",\"\",'1. Order'!BE348)","v":""},{"$f":"IF('1. Order'!BF348=\"\",\"\",'1. Order'!BF348)","v":""},{"$f":"IF('1. Order'!BG348=\"\",\"\",'1. Order'!BG348)","v":""},{"$f":"IF('1. Order'!BH348=\"\",\"\",'1. Order'!BH348)","v":"ZWO"}]
[{"$f":"IF('1. Order'!F349=\"\",\"\",'1. Order'!F349)","v":{"$error":"#N/A"}},{"$f":"IF('1. Order'!G349=\"\",\"\",'1. Order'!G349)","v":""},{"$f":"IF('1. Order'!H349=\"\",\"\",'1. Order'!H349)","v":""},{"$f":"IF('1. Order'!I349=\"\",\"\",'1. Order'!I349)","v":""},{"$f":"IF('1. Order'!J349=\"\",\"\",'1. Order'!J349)","v":""},{"$f":"IF('1. Order'!K349=\"\",\"\",'1. Order'!K349)","v":""},{"$f":"IF('1. Order'!L349=\"\",\"\",'1. Order'!L349)","v":""},{"$f":"IF('1. Order'!M349=\"\",\"\",'1. Order'!M349)","v":""},{"$f":"IF('1. Order'!N349=\"\",\"\",'1. Order'!N349)","v":""},{"$f":"IF('1. Order'!O349=\"\",\"\",'1. Order'!O349)","v":{"$error":"#N/A"}},{"$f":"IF('1. Order'!P349=\"\",\"\",'1. Order'!P349)","v":{"$error":"#N/A"}},{"$f":"IF('1. Order'!Q349=\"\",\"\",'1. Order'!Q349)","v":""},{"$f":"IF('1. Order'!S349=\"\",\"\",'1. Order'!S349)","v":""},{"$f":"IF('1. Order'!T349=\"\",\"\",'1. Order'!T349)","v":""},{"$f":"IF('1. Order'!W349=\"\",\"\",'1. Order'!W349)","v":""},{"$f":"IF('1. Order'!X349=\"\",\"\",'1. Order'!X349)","v":""},{"$f":"IF('1. Order'!Y349=\"\",\"\",'1. Order'!Y349)","v":"EUR"},{"$f":"IF('1. Order'!Z349=\"\",\"\",'1. Order'!Z349)","v":""},{"$f":"IF('1. Order'!AA349=\"\",\"\",'1. Order'!AA349)","v":""},{"$f":"IF('1. Order'!AB349=\"\",\"\",'1. Order'!AB349)","v":""},null,{"$f":"IF('1. Order'!AT349=\"\",\"\",'1. Order'!AT349)","v":""},{"$f":"IF('1. Order'!AU349=\"\",\"\",'1. Order'!AU349)","v":""},null,null,null,null,null,null,null,{"$f":"IF('1. Order'!AY349=\"\",\"\",'1. Order'!AY349)","v":""},{"$f":"IF('1. Order'!AZ349=\"\",\"\",'1. Order'!AZ349)","v":""},{"$f":"IF('1. Order'!BA349=\"\",\"\",'1. Order'!BA349)","v":""},{"$f":"IF('1. Order'!BB349=\"\",\"\",'1. Order'!BB349)","v":""},{"$f":"IF('1. Order'!BD349=\"\",\"\",'1. Order'!BD349)","v":""},{"$f":"IF('1. Order'!BE349=\"\",\"\",'1. Order'!BE349)","v":""},{"$f":"IF('1. Order'!BF349=\"\",\"\",'1. Order'!BF349)","v":""},{"$f":"IF('1. Order'!BG349=\"\",\"\",'1. Order'!BG349)","v":""},{"$f":"IF('1. Order'!BH349=\"\",\"\",'1. Order'!BH349)","v":"ZWO"}]
[{"$f":"IF('1. Order'!F350=\"\",\"\",'1. Order'!F350)","v":{"$error":"#N/A"}},{"$f":"IF('1. Order'!G350=\"\",\"\",'1. Order'!G350)","v":""},{"$f":"IF('1. Order'!H350=\"\",\"\",'1. Order'!H350)","v":""},{"$f":"IF('1. Order'!I350=\"\",\"\",'1. Order'!I350)","v":""},{"$f":"IF('1. Order'!J350=\"\",\"\",'1. Order'!J350)","v":""},{"$f":"IF('1. Order'!K350=\"\",\"\",'1. Order'!K350)","v":""},{"$f":"IF('1. Order'!L350=\"\",\"\",'1. Order'!L350)","v":""},{"$f":"IF('1. Order'!M350=\"\",\"\",'1. Order'!M350)","v":""},{"$f":"IF('1. Order'!N350=\"\",\"\",'1. Order'!N350)","v":""},{"$f":"IF('1. Order'!O350=\"\",\"\",'1. Order'!O350)","v":{"$error":"#N/A"}},{"$f":"IF('1. Order'!P350=\"\",\"\",'1. Order'!P350)","v":{"$error":"#N/A"}},{"$f":"IF('1. Order'!Q350=\"\",\"\",'1. Order'!Q350)","v":""},{"$f":"IF('1. Order'!S350=\"\",\"\",'1. Order'!S350)","v":""},{"$f":"IF('1. Order'!T350=\"\",\"\",'1. Order'!T350)","v":""},{"$f":"IF('1. Order'!W350=\"\",\"\",'1. Order'!W350)","v":""},{"$f":"IF('1. Order'!X350=\"\",\"\",'1. Order'!X350)","v":""},{"$f":"IF('1. Order'!Y350=\"\",\"\",'1. Order'!Y350)","v":"EUR"},{"$f":"IF('1. Order'!Z350=\"\",\"\",'1. Order'!Z350)","v":""},{"$f":"IF('1. Order'!AA350=\"\",\"\",'1. Order'!AA350)","v":""},{"$f":"IF('1. Order'!AB350=\"\",\"\",'1. Order'!AB350)","v":""},null,{"$f":"IF('1. Order'!AT350=\"\",\"\",'1. Order'!AT350)","v":""},{"$f":"IF('1. Order'!AU350=\"\",\"\",'1. Order'!AU350)","v":""},null,null,null,null,null,null,null,{"$f":"IF('1. Order'!AY350=\"\",\"\",'1. Order'!AY350)","v":""},{"$f":"IF('1. Order'!AZ350=\"\",\"\",'1. Order'!AZ350)","v":""},{"$f":"IF('1. Order'!BA350=\"\",\"\",'1. Order'!BA350)","v":""},{"$f":"IF('1. Order'!BB350=\"\",\"\",'1. Order'!BB350)","v":""},{"$f":"IF('1. Order'!BD350=\"\",\"\",'1. Order'!BD350)","v":""},{"$f":"IF('1. Order'!BE350=\"\",\"\",'1. Order'!BE350)","v":""},{"$f":"IF('1. Order'!BF350=\"\",\"\",'1. Order'!BF350)","v":""},{"$f":"IF('1. Order'!BG350=\"\",\"\",'1. Order'!BG350)","v":""},{"$f":"IF('1. Order'!BH350=\"\",\"\",'1. Order'!BH350)","v":"ZWO"}]
[{"$f":"IF('1. Order'!F351=\"\",\"\",'1. Order'!F351)","v":{"$error":"#N/A"}},{"$f":"IF('1. Order'!G351=\"\",\"\",'1. Order'!G351)","v":""},{"$f":"IF('1. Order'!H351=\"\",\"\",'1. Order'!H351)","v":""},{"$f":"IF('1. Order'!I351=\"\",\"\",'1. Order'!I351)","v":""},{"$f":"IF('1. Order'!J351=\"\",\"\",'1. Order'!J351)","v":""},{"$f":"IF('1. Order'!K351=\"\",\"\",'1. Order'!K351)","v":""},{"$f":"IF('1. Order'!L351=\"\",\"\",'1. Order'!L351)","v":""},{"$f":"IF('1. Order'!M351=\"\",\"\",'1. Order'!M351)","v":""},{"$f":"IF('1. Order'!N351=\"\",\"\",'1. Order'!N351)","v":""},{"$f":"IF('1. Order'!O351=\"\",\"\",'1. Order'!O351)","v":{"$error":"#N/A"}},{"$f":"IF('1. Order'!P351=\"\",\"\",'1. Order'!P351)","v":{"$error":"#N/A"}},{"$f":"IF('1. Order'!Q351=\"\",\"\",'1. Order'!Q351)","v":""},{"$f":"IF('1. Order'!S351=\"\",\"\",'1. Order'!S351)","v":""},{"$f":"IF('1. Order'!T351=\"\",\"\",'1. Order'!T351)","v":""},{"$f":"IF('1. Order'!W351=\"\",\"\",'1. Order'!W351)","v":""},{"$f":"IF('1. Order'!X351=\"\",\"\",'1. Order'!X351)","v":""},{"$f":"IF('1. Order'!Y351=\"\",\"\",'1. Order'!Y351)","v":"EUR"},{"$f":"IF('1. Order'!Z351=\"\",\"\",'1. Order'!Z351)","v":""},{"$f":"IF('1. Order'!AA351=\"\",\"\",'1. Order'!AA351)","v":""},{"$f":"IF('1. Order'!AB351=\"\",\"\",'1. Order'!AB351)","v":""},null,{"$f":"IF('1. Order'!AT351=\"\",\"\",'1. Order'!AT351)","v":""},{"$f":"IF('1. Order'!AU351=\"\",\"\",'1. Order'!AU351)","v":""},null,null,null,null,null,null,null,{"$f":"IF('1. Order'!AY351=\"\",\"\",'1. Order'!AY351)","v":""},{"$f":"IF('1. Order'!AZ351=\"\",\"\",'1. Order'!AZ351)","v":""},{"$f":"IF('1. Order'!BA351=\"\",\"\",'1. Order'!BA351)","v":""},{"$f":"IF('1. Order'!BB351=\"\",\"\",'1. Order'!BB351)","v":""},{"$f":"IF('1. Order'!BD351=\"\",\"\",'1. Order'!BD351)","v":""},{"$f":"IF('1. Order'!BE351=\"\",\"\",'1. Order'!BE351)","v":""},{"$f":"IF('1. Order'!BF351=\"\",\"\",'1. Order'!BF351)","v":""},{"$f":"IF('1. Order'!BG351=\"\",\"\",'1. Order'!BG351)","v":""},{"$f":"IF('1. Order'!BH351=\"\",\"\",'1. Order'!BH351)","v":"ZWO"}]
[{"$f":"IF('1. Order'!F352=\"\",\"\",'1. Order'!F352)","v":{"$error":"#N/A"}},{"$f":"IF('1. Order'!G352=\"\",\"\",'1. Order'!G352)","v":""},{"$f":"IF('1. Order'!H352=\"\",\"\",'1. Order'!H352)","v":""},{"$f":"IF('1. Order'!I352=\"\",\"\",'1. Order'!I352)","v":""},{"$f":"IF('1. Order'!J352=\"\",\"\",'1. Order'!J352)","v":""},{"$f":"IF('1. Order'!K352=\"\",\"\",'1. Order'!K352)","v":""},{"$f":"IF('1. Order'!L352=\"\",\"\",'1. Order'!L352)","v":""},{"$f":"IF('1. Order'!M352=\"\",\"\",'1. Order'!M352)","v":""},{"$f":"IF('1. Order'!N352=\"\",\"\",'1. Order'!N352)","v":""},{"$f":"IF('1. Order'!O352=\"\",\"\",'1. Order'!O352)","v":{"$error":"#N/A"}},{"$f":"IF('1. Order'!P352=\"\",\"\",'1. Order'!P352)","v":{"$error":"#N/A"}},{"$f":"IF('1. Order'!Q352=\"\",\"\",'1. Order'!Q352)","v":""},{"$f":"IF('1. Order'!S352=\"\",\"\",'1. Order'!S352)","v":""},{"$f":"IF('1. Order'!T352=\"\",\"\",'1. Order'!T352)","v":""},{"$f":"IF('1. Order'!W352=\"\",\"\",'1. Order'!W352)","v":""},{"$f":"IF('1. Order'!X352=\"\",\"\",'1. Order'!X352)","v":""},{"$f":"IF('1. Order'!Y352=\"\",\"\",'1. Order'!Y352)","v":"EUR"},{"$f":"IF('1. Order'!Z352=\"\",\"\",'1. Order'!Z352)","v":""},{"$f":"IF('1. Order'!AA352=\"\",\"\",'1. Order'!AA352)","v":""},{"$f":"IF('1. Order'!AB352=\"\",\"\",'1. Order'!AB352)","v":""},null,{"$f":"IF('1. Order'!AT352=\"\",\"\",'1. Order'!AT352)","v":""},{"$f":"IF('1. Order'!AU352=\"\",\"\",'1. Order'!AU352)","v":""},null,null,null,null,null,null,null,{"$f":"IF('1. Order'!AY352=\"\",\"\",'1. Order'!AY352)","v":""},{"$f":"IF('1. Order'!AZ352=\"\",\"\",'1. Order'!AZ352)","v":""},{"$f":"IF('1. Order'!BA352=\"\",\"\",'1. Order'!BA352)","v":""},{"$f":"IF('1. Order'!BB352=\"\",\"\",'1. Order'!BB352)","v":""},{"$f":"IF('1. Order'!BD352=\"\",\"\",'1. Order'!BD352)","v":""},{"$f":"IF('1. Order'!BE352=\"\",\"\",'1. Order'!BE352)","v":""},{"$f":"IF('1. Order'!BF352=\"\",\"\",'1. Order'!BF352)","v":""},{"$f":"IF('1. Order'!BG352=\"\",\"\",'1. Order'!BG352)","v":""},{"$f":"IF('1. Order'!BH352=\"\",\"\",'1. Order'!BH352)","v":"ZWO"}]
[{"$f":"IF('1. Order'!F353=\"\",\"\",'1. Order'!F353)","v":{"$error":"#N/A"}},{"$f":"IF('1. Order'!G353=\"\",\"\",'1. Order'!G353)","v":""},{"$f":"IF('1. Order'!H353=\"\",\"\",'1. Order'!H353)","v":""},{"$f":"IF('1. Order'!I353=\"\",\"\",'1. Order'!I353)","v":""},{"$f":"IF('1. Order'!J353=\"\",\"\",'1. Order'!J353)","v":""},{"$f":"IF('1. Order'!K353=\"\",\"\",'1. Order'!K353)","v":""},{"$f":"IF('1. Order'!L353=\"\",\"\",'1. Order'!L353)","v":""},{"$f":"IF('1. Order'!M353=\"\",\"\",'1. Order'!M353)","v":""},{"$f":"IF('1. Order'!N353=\"\",\"\",'1. Order'!N353)","v":""},{"$f":"IF('1. Order'!O353=\"\",\"\",'1. Order'!O353)","v":{"$error":"#N/A"}},{"$f":"IF('1. Order'!P353=\"\",\"\",'1. Order'!P353)","v":{"$error":"#N/A"}},{"$f":"IF('1. Order'!Q353=\"\",\"\",'1. Order'!Q353)","v":""},{"$f":"IF('1. Order'!S353=\"\",\"\",'1. Order'!S353)","v":""},{"$f":"IF('1. Order'!T353=\"\",\"\",'1. Order'!T353)","v":""},{"$f":"IF('1. Order'!W353=\"\",\"\",'1. Order'!W353)","v":""},{"$f":"IF('1. Order'!X353=\"\",\"\",'1. Order'!X353)","v":""},{"$f":"IF('1. Order'!Y353=\"\",\"\",'1. Order'!Y353)","v":"EUR"},{"$f":"IF('1. Order'!Z353=\"\",\"\",'1. Order'!Z353)","v":""},{"$f":"IF('1. Order'!AA353=\"\",\"\",'1. Order'!AA353)","v":""},{"$f":"IF('1. Order'!AB353=\"\",\"\",'1. Order'!AB353)","v":""},null,{"$f":"IF('1. Order'!AT353=\"\",\"\",'1. Order'!AT353)","v":""},{"$f":"IF('1. Order'!AU353=\"\",\"\",'1. Order'!AU353)","v":""},null,null,null,null,null,null,null,{"$f":"IF('1. Order'!AY353=\"\",\"\",'1. Order'!AY353)","v":""},{"$f":"IF('1. Order'!AZ353=\"\",\"\",'1. Order'!AZ353)","v":""},{"$f":"IF('1. Order'!BA353=\"\",\"\",'1. Order'!BA353)","v":""},{"$f":"IF('1. Order'!BB353=\"\",\"\",'1. Order'!BB353)","v":""},{"$f":"IF('1. Order'!BD353=\"\",\"\",'1. Order'!BD353)","v":""},{"$f":"IF('1. Order'!BE353=\"\",\"\",'1. Order'!BE353)","v":""},{"$f":"IF('1. Order'!BF353=\"\",\"\",'1. Order'!BF353)","v":""},{"$f":"IF('1. Order'!BG353=\"\",\"\",'1. Order'!BG353)","v":""},{"$f":"IF('1. Order'!BH353=\"\",\"\",'1. Order'!BH353)","v":"ZWO"}]
[{"$f":"IF('1. Order'!F354=\"\",\"\",'1. Order'!F354)","v":{"$error":"#N/A"}},{"$f":"IF('1. Order'!G354=\"\",\"\",'1. Order'!G354)","v":""},{"$f":"IF('1. Order'!H354=\"\",\"\",'1. Order'!H354)","v":""},{"$f":"IF('1. Order'!I354=\"\",\"\",'1. Order'!I354)","v":""},{"$f":"IF('1. Order'!J354=\"\",\"\",'1. Order'!J354)","v":""},{"$f":"IF('1. Order'!K354=\"\",\"\",'1. Order'!K354)","v":""},{"$f":"IF('1. Order'!L354=\"\",\"\",'1. Order'!L354)","v":""},{"$f":"IF('1. Order'!M354=\"\",\"\",'1. Order'!M354)","v":""},{"$f":"IF('1. Order'!N354=\"\",\"\",'1. Order'!N354)","v":""},{"$f":"IF('1. Order'!O354=\"\",\"\",'1. Order'!O354)","v":{"$error":"#N/A"}},{"$f":"IF('1. Order'!P354=\"\",\"\",'1. Order'!P354)","v":{"$error":"#N/A"}},{"$f":"IF('1. Order'!Q354=\"\",\"\",'1. Order'!Q354)","v":""},{"$f":"IF('1. Order'!S354=\"\",\"\",'1. Order'!S354)","v":""},{"$f":"IF('1. Order'!T354=\"\",\"\",'1. Order'!T354)","v":""},{"$f":"IF('1. Order'!W354=\"\",\"\",'1. Order'!W354)","v":""},{"$f":"IF('1. Order'!X354=\"\",\"\",'1. Order'!X354)","v":""},{"$f":"IF('1. Order'!Y354=\"\",\"\",'1. Order'!Y354)","v":"EUR"},{"$f":"IF('1. Order'!Z354=\"\",\"\",'1. Order'!Z354)","v":""},{"$f":"IF('1. Order'!AA354=\"\",\"\",'1. Order'!AA354)","v":""},{"$f":"IF('1. Order'!AB354=\"\",\"\",'1. Order'!AB354)","v":""},null,{"$f":"IF('1. Order'!AT354=\"\",\"\",'1. Order'!AT354)","v":""},{"$f":"IF('1. Order'!AU354=\"\",\"\",'1. Order'!AU354)","v":""},null,null,null,null,null,null,null,{"$f":"IF('1. Order'!AY354=\"\",\"\",'1. Order'!AY354)","v":""},{"$f":"IF('1. Order'!AZ354=\"\",\"\",'1. Order'!AZ354)","v":""},{"$f":"IF('1. Order'!BA354=\"\",\"\",'1. Order'!BA354)","v":""},{"$f":"IF('1. Order'!BB354=\"\",\"\",'1. Order'!BB354)","v":""},{"$f":"IF('1. Order'!BD354=\"\",\"\",'1. Order'!BD354)","v":""},{"$f":"IF('1. Order'!BE354=\"\",\"\",'1. Order'!BE354)","v":""},{"$f":"IF('1. Order'!BF354=\"\",\"\",'1. Order'!BF354)","v":""},{"$f":"IF('1. Order'!BG354=\"\",\"\",'1. Order'!BG354)","v":""},{"$f":"IF('1. Order'!BH354=\"\",\"\",'1. Order'!BH354)","v":"ZWO"}]
[{"$f":"IF('1. Order'!F355=\"\",\"\",'1. Order'!F355)","v":{"$error":"#N/A"}},{"$f":"IF('1. Order'!G355=\"\",\"\",'1. Order'!G355)","v":""},{"$f":"IF('1. Order'!H355=\"\",\"\",'1. Order'!H355)","v":""},{"$f":"IF('1. Order'!I355=\"\",\"\",'1. Order'!I355)","v":""},{"$f":"IF('1. Order'!J355=\"\",\"\",'1. Order'!J355)","v":""},{"$f":"IF('1. Order'!K355=\"\",\"\",'1. Order'!K355)","v":""},{"$f":"IF('1. Order'!L355=\"\",\"\",'1. Order'!L355)","v":""},{"$f":"IF('1. Order'!M355=\"\",\"\",'1. Order'!M355)","v":""},{"$f":"IF('1. Order'!N355=\"\",\"\",'1. Order'!N355)","v":""},{"$f":"IF('1. Order'!O355=\"\",\"\",'1. Order'!O355)","v":{"$error":"#N/A"}},{"$f":"IF('1. Order'!P355=\"\",\"\",'1. Order'!P355)","v":{"$error":"#N/A"}},{"$f":"IF('1. Order'!Q355=\"\",\"\",'1. Order'!Q355)","v":""},{"$f":"IF('1. Order'!S355=\"\",\"\",'1. Order'!S355)","v":""},{"$f":"IF('1. Order'!T355=\"\",\"\",'1. Order'!T355)","v":""},{"$f":"IF('1. Order'!W355=\"\",\"\",'1. Order'!W355)","v":""},{"$f":"IF('1. Order'!X355=\"\",\"\",'1. Order'!X355)","v":""},{"$f":"IF('1. Order'!Y355=\"\",\"\",'1. Order'!Y355)","v":"EUR"},{"$f":"IF('1. Order'!Z355=\"\",\"\",'1. Order'!Z355)","v":""},{"$f":"IF('1. Order'!AA355=\"\",\"\",'1. Order'!AA355)","v":""},{"$f":"IF('1. Order'!AB355=\"\",\"\",'1. Order'!AB355)","v":""},null,{"$f":"IF('1. Order'!AT355=\"\",\"\",'1. Order'!AT355)","v":""},{"$f":"IF('1. Order'!AU355=\"\",\"\",'1. Order'!AU355)","v":""},null,null,null,null,null,null,null,{"$f":"IF('1. Order'!AY355=\"\",\"\",'1. Order'!AY355)","v":""},{"$f":"IF('1. Order'!AZ355=\"\",\"\",'1. Order'!AZ355)","v":""},{"$f":"IF('1. Order'!BA355=\"\",\"\",'1. Order'!BA355)","v":""},{"$f":"IF('1. Order'!BB355=\"\",\"\",'1. Order'!BB355)","v":""},{"$f":"IF('1. Order'!BD355=\"\",\"\",'1. Order'!BD355)","v":""},{"$f":"IF('1. Order'!BE355=\"\",\"\",'1. Order'!BE355)","v":""},{"$f":"IF('1. Order'!BF355=\"\",\"\",'1. Order'!BF355)","v":""},{"$f":"IF('1. Order'!BG355=\"\",\"\",'1. Order'!BG355)","v":""},{"$f":"IF('1. Order'!BH355=\"\",\"\",'1. Order'!BH355)","v":"ZWO"}]
[{"$f":"IF('1. Order'!F356=\"\",\"\",'1. Order'!F356)","v":{"$error":"#N/A"}},{"$f":"IF('1. Order'!G356=\"\",\"\",'1. Order'!G356)","v":""},{"$f":"IF('1. Order'!H356=\"\",\"\",'1. Order'!H356)","v":""},{"$f":"IF('1. Order'!I356=\"\",\"\",'1. Order'!I356)","v":""},{"$f":"IF('1. Order'!J356=\"\",\"\",'1. Order'!J356)","v":""},{"$f":"IF('1. Order'!K356=\"\",\"\",'1. Order'!K356)","v":""},{"$f":"IF('1. Order'!L356=\"\",\"\",'1. Order'!L356)","v":""},{"$f":"IF('1. Order'!M356=\"\",\"\",'1. Order'!M356)","v":""},{"$f":"IF('1. Order'!N356=\"\",\"\",'1. Order'!N356)","v":""},{"$f":"IF('1. Order'!O356=\"\",\"\",'1. Order'!O356)","v":{"$error":"#N/A"}},{"$f":"IF('1. Order'!P356=\"\",\"\",'1. Order'!P356)","v":{"$error":"#N/A"}},{"$f":"IF('1. Order'!Q356=\"\",\"\",'1. Order'!Q356)","v":""},{"$f":"IF('1. Order'!S356=\"\",\"\",'1. Order'!S356)","v":""},{"$f":"IF('1. Order'!T356=\"\",\"\",'1. Order'!T356)","v":""},{"$f":"IF('1. Order'!W356=\"\",\"\",'1. Order'!W356)","v":""},{"$f":"IF('1. Order'!X356=\"\",\"\",'1. Order'!X356)","v":""},{"$f":"IF('1. Order'!Y356=\"\",\"\",'1. Order'!Y356)","v":"EUR"},{"$f":"IF('1. Order'!Z356=\"\",\"\",'1. Order'!Z356)","v":""},{"$f":"IF('1. Order'!AA356=\"\",\"\",'1. Order'!AA356)","v":""},{"$f":"IF('1. Order'!AB356=\"\",\"\",'1. Order'!AB356)","v":""},null,{"$f":"IF('1. Order'!AT356=\"\",\"\",'1. Order'!AT356)","v":""},{"$f":"IF('1. Order'!AU356=\"\",\"\",'1. Order'!AU356)","v":""},null,null,null,null,null,null,null,{"$f":"IF('1. Order'!AY356=\"\",\"\",'1. Order'!AY356)","v":""},{"$f":"IF('1. Order'!AZ356=\"\",\"\",'1. Order'!AZ356)","v":""},{"$f":"IF('1. Order'!BA356=\"\",\"\",'1. Order'!BA356)","v":""},{"$f":"IF('1. Order'!BB356=\"\",\"\",'1. Order'!BB356)","v":""},{"$f":"IF('1. Order'!BD356=\"\",\"\",'1. Order'!BD356)","v":""},{"$f":"IF('1. Order'!BE356=\"\",\"\",'1. Order'!BE356)","v":""},{"$f":"IF('1. Order'!BF356=\"\",\"\",'1. Order'!BF356)","v":""},{"$f":"IF('1. Order'!BG356=\"\",\"\",'1. Order'!BG356)","v":""},{"$f":"IF('1. Order'!BH356=\"\",\"\",'1. Order'!BH356)","v":"ZWO"}]
[{"$f":"IF('1. Order'!F357=\"\",\"\",'1. Order'!F357)","v":{"$error":"#N/A"}},{"$f":"IF('1. Order'!G357=\"\",\"\",'1. Order'!G357)","v":""},{"$f":"IF('1. Order'!H357=\"\",\"\",'1. Order'!H357)","v":""},{"$f":"IF('1. Order'!I357=\"\",\"\",'1. Order'!I357)","v":""},{"$f":"IF('1. Order'!J357=\"\",\"\",'1. Order'!J357)","v":""},{"$f":"IF('1. Order'!K357=\"\",\"\",'1. Order'!K357)","v":""},{"$f":"IF('1. Order'!L357=\"\",\"\",'1. Order'!L357)","v":""},{"$f":"IF('1. Order'!M357=\"\",\"\",'1. Order'!M357)","v":""},{"$f":"IF('1. Order'!N357=\"\",\"\",'1. Order'!N357)","v":""},{"$f":"IF('1. Order'!O357=\"\",\"\",'1. Order'!O357)","v":{"$error":"#N/A"}},{"$f":"IF('1. Order'!P357=\"\",\"\",'1. Order'!P357)","v":{"$error":"#N/A"}},{"$f":"IF('1. Order'!Q357=\"\",\"\",'1. Order'!Q357)","v":""},{"$f":"IF('1. Order'!S357=\"\",\"\",'1. Order'!S357)","v":""},{"$f":"IF('1. Order'!T357=\"\",\"\",'1. Order'!T357)","v":""},{"$f":"IF('1. Order'!W357=\"\",\"\",'1. Order'!W357)","v":""},{"$f":"IF('1. Order'!X357=\"\",\"\",'1. Order'!X357)","v":""},{"$f":"IF('1. Order'!Y357=\"\",\"\",'1. Order'!Y357)","v":"EUR"},{"$f":"IF('1. Order'!Z357=\"\",\"\",'1. Order'!Z357)","v":""},{"$f":"IF('1. Order'!AA357=\"\",\"\",'1. Order'!AA357)","v":""},{"$f":"IF('1. Order'!AB357=\"\",\"\",'1. Order'!AB357)","v":""},null,{"$f":"IF('1. Order'!AT357=\"\",\"\",'1. Order'!AT357)","v":""},{"$f":"IF('1. Order'!AU357=\"\",\"\",'1. Order'!AU357)","v":""},null,null,null,null,null,null,null,{"$f":"IF('1. Order'!AY357=\"\",\"\",'1. Order'!AY357)","v":""},{"$f":"IF('1. Order'!AZ357=\"\",\"\",'1. Order'!AZ357)","v":""},{"$f":"IF('1. Order'!BA357=\"\",\"\",'1. Order'!BA357)","v":""},{"$f":"IF('1. Order'!BB357=\"\",\"\",'1. Order'!BB357)","v":""},{"$f":"IF('1. Order'!BD357=\"\",\"\",'1. Order'!BD357)","v":""},{"$f":"IF('1. Order'!BE357=\"\",\"\",'1. Order'!BE357)","v":""},{"$f":"IF('1. Order'!BF357=\"\",\"\",'1. Order'!BF357)","v":""},{"$f":"IF('1. Order'!BG357=\"\",\"\",'1. Order'!BG357)","v":""},{"$f":"IF('1. Order'!BH357=\"\",\"\",'1. Order'!BH357)","v":"ZWO"}]
[{"$f":"IF('1. Order'!F358=\"\",\"\",'1. Order'!F358)","v":{"$error":"#N/A"}},{"$f":"IF('1. Order'!G358=\"\",\"\",'1. Order'!G358)","v":""},{"$f":"IF('1. Order'!H358=\"\",\"\",'1. Order'!H358)","v":""},{"$f":"IF('1. Order'!I358=\"\",\"\",'1. Order'!I358)","v":""},{"$f":"IF('1. Order'!J358=\"\",\"\",'1. Order'!J358)","v":""},{"$f":"IF('1. Order'!K358=\"\",\"\",'1. Order'!K358)","v":""},{"$f":"IF('1. Order'!L358=\"\",\"\",'1. Order'!L358)","v":""},{"$f":"IF('1. Order'!M358=\"\",\"\",'1. Order'!M358)","v":""},{"$f":"IF('1. Order'!N358=\"\",\"\",'1. Order'!N358)","v":""},{"$f":"IF('1. Order'!O358=\"\",\"\",'1. Order'!O358)","v":{"$error":"#N/A"}},{"$f":"IF('1. Order'!P358=\"\",\"\",'1. Order'!P358)","v":{"$error":"#N/A"}},{"$f":"IF('1. Order'!Q358=\"\",\"\",'1. Order'!Q358)","v":""},{"$f":"IF('1. Order'!S358=\"\",\"\",'1. Order'!S358)","v":""},{"$f":"IF('1. Order'!T358=\"\",\"\",'1. Order'!T358)","v":""},{"$f":"IF('1. Order'!W358=\"\",\"\",'1. Order'!W358)","v":""},{"$f":"IF('1. Order'!X358=\"\",\"\",'1. Order'!X358)","v":""},{"$f":"IF('1. Order'!Y358=\"\",\"\",'1. Order'!Y358)","v":"EUR"},{"$f":"IF('1. Order'!Z358=\"\",\"\",'1. Order'!Z358)","v":""},{"$f":"IF('1. Order'!AA358=\"\",\"\",'1. Order'!AA358)","v":""},{"$f":"IF('1. Order'!AB358=\"\",\"\",'1. Order'!AB358)","v":""},null,{"$f":"IF('1. Order'!AT358=\"\",\"\",'1. Order'!AT358)","v":""},{"$f":"IF('1. Order'!AU358=\"\",\"\",'1. Order'!AU358)","v":""},null,null,null,null,null,null,null,{"$f":"IF('1. Order'!AY358=\"\",\"\",'1. Order'!AY358)","v":""},{"$f":"IF('1. Order'!AZ358=\"\",\"\",'1. Order'!AZ358)","v":""},{"$f":"IF('1. Order'!BA358=\"\",\"\",'1. Order'!BA358)","v":""},{"$f":"IF('1. Order'!BB358=\"\",\"\",'1. Order'!BB358)","v":""},{"$f":"IF('1. Order'!BD358=\"\",\"\",'1. Order'!BD358)","v":""},{"$f":"IF('1. Order'!BE358=\"\",\"\",'1. Order'!BE358)","v":""},{"$f":"IF('1. Order'!BF358=\"\",\"\",'1. Order'!BF358)","v":""},{"$f":"IF('1. Order'!BG358=\"\",\"\",'1. Order'!BG358)","v":""},{"$f":"IF('1. Order'!BH358=\"\",\"\",'1. Order'!BH358)","v":"ZWO"}]
[{"$f":"IF('1. Order'!F359=\"\",\"\",'1. Order'!F359)","v":{"$error":"#N/A"}},{"$f":"IF('1. Order'!G359=\"\",\"\",'1. Order'!G359)","v":""},{"$f":"IF('1. Order'!H359=\"\",\"\",'1. Order'!H359)","v":""},{"$f":"IF('1. Order'!I359=\"\",\"\",'1. Order'!I359)","v":""},{"$f":"IF('1. Order'!J359=\"\",\"\",'1. Order'!J359)","v":""},{"$f":"IF('1. Order'!K359=\"\",\"\",'1. Order'!K359)","v":""},{"$f":"IF('1. Order'!L359=\"\",\"\",'1. Order'!L359)","v":""},{"$f":"IF('1. Order'!M359=\"\",\"\",'1. Order'!M359)","v":""},{"$f":"IF('1. Order'!N359=\"\",\"\",'1. Order'!N359)","v":""},{"$f":"IF('1. Order'!O359=\"\",\"\",'1. Order'!O359)","v":{"$error":"#N/A"}},{"$f":"IF('1. Order'!P359=\"\",\"\",'1. Order'!P359)","v":{"$error":"#N/A"}},{"$f":"IF('1. Order'!Q359=\"\",\"\",'1. Order'!Q359)","v":""},{"$f":"IF('1. Order'!S359=\"\",\"\",'1. Order'!S359)","v":""},{"$f":"IF('1. Order'!T359=\"\",\"\",'1. Order'!T359)","v":""},{"$f":"IF('1. Order'!W359=\"\",\"\",'1. Order'!W359)","v":""},{"$f":"IF('1. Order'!X359=\"\",\"\",'1. Order'!X359)","v":""},{"$f":"IF('1. Order'!Y359=\"\",\"\",'1. Order'!Y359)","v":"EUR"},{"$f":"IF('1. Order'!Z359=\"\",\"\",'1. Order'!Z359)","v":""},{"$f":"IF('1. Order'!AA359=\"\",\"\",'1. Order'!AA359)","v":""},{"$f":"IF('1. Order'!AB359=\"\",\"\",'1. Order'!AB359)","v":""},null,{"$f":"IF('1. Order'!AT359=\"\",\"\",'1. Order'!AT359)","v":""},{"$f":"IF('1. Order'!AU359=\"\",\"\",'1. Order'!AU359)","v":""},null,null,null,null,null,null,null,{"$f":"IF('1. Order'!AY359=\"\",\"\",'1. Order'!AY359)","v":""},{"$f":"IF('1. Order'!AZ359=\"\",\"\",'1. Order'!AZ359)","v":""},{"$f":"IF('1. Order'!BA359=\"\",\"\",'1. Order'!BA359)","v":""},{"$f":"IF('1. Order'!BB359=\"\",\"\",'1. Order'!BB359)","v":""},{"$f":"IF('1. Order'!BD359=\"\",\"\",'1. Order'!BD359)","v":""},{"$f":"IF('1. Order'!BE359=\"\",\"\",'1. Order'!BE359)","v":""},{"$f":"IF('1. Order'!BF359=\"\",\"\",'1. Order'!BF359)","v":""},{"$f":"IF('1. Order'!BG359=\"\",\"\",'1. Order'!BG359)","v":""},{"$f":"IF('1. Order'!BH359=\"\",\"\",'1. Order'!BH359)","v":"ZWO"}]
[{"$f":"IF('1. Order'!F360=\"\",\"\",'1. Order'!F360)","v":{"$error":"#N/A"}},{"$f":"IF('1. Order'!G360=\"\",\"\",'1. Order'!G360)","v":""},{"$f":"IF('1. Order'!H360=\"\",\"\",'1. Order'!H360)","v":""},{"$f":"IF('1. Order'!I360=\"\",\"\",'1. Order'!I360)","v":""},{"$f":"IF('1. Order'!J360=\"\",\"\",'1. Order'!J360)","v":""},{"$f":"IF('1. Order'!K360=\"\",\"\",'1. Order'!K360)","v":""},{"$f":"IF('1. Order'!L360=\"\",\"\",'1. Order'!L360)","v":""},{"$f":"IF('1. Order'!M360=\"\",\"\",'1. Order'!M360)","v":""},{"$f":"IF('1. Order'!N360=\"\",\"\",'1. Order'!N360)","v":""},{"$f":"IF('1. Order'!O360=\"\",\"\",'1. Order'!O360)","v":{"$error":"#N/A"}},{"$f":"IF('1. Order'!P360=\"\",\"\",'1. Order'!P360)","v":{"$error":"#N/A"}},{"$f":"IF('1. Order'!Q360=\"\",\"\",'1. Order'!Q360)","v":""},{"$f":"IF('1. Order'!S360=\"\",\"\",'1. Order'!S360)","v":""},{"$f":"IF('1. Order'!T360=\"\",\"\",'1. Order'!T360)","v":""},{"$f":"IF('1. Order'!W360=\"\",\"\",'1. Order'!W360)","v":""},{"$f":"IF('1. Order'!X360=\"\",\"\",'1. Order'!X360)","v":""},{"$f":"IF('1. Order'!Y360=\"\",\"\",'1. Order'!Y360)","v":"EUR"},{"$f":"IF('1. Order'!Z360=\"\",\"\",'1. Order'!Z360)","v":""},{"$f":"IF('1. Order'!AA360=\"\",\"\",'1. Order'!AA360)","v":""},{"$f":"IF('1. Order'!AB360=\"\",\"\",'1. Order'!AB360)","v":""},null,{"$f":"IF('1. Order'!AT360=\"\",\"\",'1. Order'!AT360)","v":""},{"$f":"IF('1. Order'!AU360=\"\",\"\",'1. Order'!AU360)","v":""},null,null,null,null,null,null,null,{"$f":"IF('1. Order'!AY360=\"\",\"\",'1. Order'!AY360)","v":""},{"$f":"IF('1. Order'!AZ360=\"\",\"\",'1. Order'!AZ360)","v":""},{"$f":"IF('1. Order'!BA360=\"\",\"\",'1. Order'!BA360)","v":""},{"$f":"IF('1. Order'!BB360=\"\",\"\",'1. Order'!BB360)","v":""},{"$f":"IF('1. Order'!BD360=\"\",\"\",'1. Order'!BD360)","v":""},{"$f":"IF('1. Order'!BE360=\"\",\"\",'1. Order'!BE360)","v":""},{"$f":"IF('1. Order'!BF360=\"\",\"\",'1. Order'!BF360)","v":""},{"$f":"IF('1. Order'!BG360=\"\",\"\",'1. Order'!BG360)","v":""},{"$f":"IF('1. Order'!BH360=\"\",\"\",'1. Order'!BH360)","v":"ZWO"}]
[{"$f":"IF('1. Order'!F361=\"\",\"\",'1. Order'!F361)","v":{"$error":"#N/A"}},{"$f":"IF('1. Order'!G361=\"\",\"\",'1. Order'!G361)","v":""},{"$f":"IF('1. Order'!H361=\"\",\"\",'1. Order'!H361)","v":""},{"$f":"IF('1. Order'!I361=\"\",\"\",'1. Order'!I361)","v":""},{"$f":"IF('1. Order'!J361=\"\",\"\",'1. Order'!J361)","v":""},{"$f":"IF('1. Order'!K361=\"\",\"\",'1. Order'!K361)","v":""},{"$f":"IF('1. Order'!L361=\"\",\"\",'1. Order'!L361)","v":""},{"$f":"IF('1. Order'!M361=\"\",\"\",'1. Order'!M361)","v":""},{"$f":"IF('1. Order'!N361=\"\",\"\",'1. Order'!N361)","v":""},{"$f":"IF('1. Order'!O361=\"\",\"\",'1. Order'!O361)","v":{"$error":"#N/A"}},{"$f":"IF('1. Order'!P361=\"\",\"\",'1. Order'!P361)","v":{"$error":"#N/A"}},{"$f":"IF('1. Order'!Q361=\"\",\"\",'1. Order'!Q361)","v":""},{"$f":"IF('1. Order'!S361=\"\",\"\",'1. Order'!S361)","v":""},{"$f":"IF('1. Order'!T361=\"\",\"\",'1. Order'!T361)","v":""},{"$f":"IF('1. Order'!W361=\"\",\"\",'1. Order'!W361)","v":""},{"$f":"IF('1. Order'!X361=\"\",\"\",'1. Order'!X361)","v":""},{"$f":"IF('1. Order'!Y361=\"\",\"\",'1. Order'!Y361)","v":"EUR"},{"$f":"IF('1. Order'!Z361=\"\",\"\",'1. Order'!Z361)","v":""},{"$f":"IF('1. Order'!AA361=\"\",\"\",'1. Order'!AA361)","v":""},{"$f":"IF('1. Order'!AB361=\"\",\"\",'1. Order'!AB361)","v":""},null,{"$f":"IF('1. Order'!AT361=\"\",\"\",'1. Order'!AT361)","v":""},{"$f":"IF('1. Order'!AU361=\"\",\"\",'1. Order'!AU361)","v":""},null,null,null,null,null,null,null,{"$f":"IF('1. Order'!AY361=\"\",\"\",'1. Order'!AY361)","v":""},{"$f":"IF('1. Order'!AZ361=\"\",\"\",'1. Order'!AZ361)","v":""},{"$f":"IF('1. Order'!BA361=\"\",\"\",'1. Order'!BA361)","v":""},{"$f":"IF('1. Order'!BB361=\"\",\"\",'1. Order'!BB361)","v":""},{"$f":"IF('1. Order'!BD361=\"\",\"\",'1. Order'!BD361)","v":""},{"$f":"IF('1. Order'!BE361=\"\",\"\",'1. Order'!BE361)","v":""},{"$f":"IF('1. Order'!BF361=\"\",\"\",'1. Order'!BF361)","v":""},{"$f":"IF('1. Order'!BG361=\"\",\"\",'1. Order'!BG361)","v":""},{"$f":"IF('1. Order'!BH361=\"\",\"\",'1. Order'!BH361)","v":"ZWO"}]
[{"$f":"IF('1. Order'!F362=\"\",\"\",'1. Order'!F362)","v":{"$error":"#N/A"}},{"$f":"IF('1. Order'!G362=\"\",\"\",'1. Order'!G362)","v":""},{"$f":"IF('1. Order'!H362=\"\",\"\",'1. Order'!H362)","v":""},{"$f":"IF('1. Order'!I362=\"\",\"\",'1. Order'!I362)","v":""},{"$f":"IF('1. Order'!J362=\"\",\"\",'1. Order'!J362)","v":""},{"$f":"IF('1. Order'!K362=\"\",\"\",'1. Order'!K362)","v":""},{"$f":"IF('1. Order'!L362=\"\",\"\",'1. Order'!L362)","v":""},{"$f":"IF('1. Order'!M362=\"\",\"\",'1. Order'!M362)","v":""},{"$f":"IF('1. Order'!N362=\"\",\"\",'1. Order'!N362)","v":""},{"$f":"IF('1. Order'!O362=\"\",\"\",'1. Order'!O362)","v":{"$error":"#N/A"}},{"$f":"IF('1. Order'!P362=\"\",\"\",'1. Order'!P362)","v":{"$error":"#N/A"}},{"$f":"IF('1. Order'!Q362=\"\",\"\",'1. Order'!Q362)","v":""},{"$f":"IF('1. Order'!S362=\"\",\"\",'1. Order'!S362)","v":""},{"$f":"IF('1. Order'!T362=\"\",\"\",'1. Order'!T362)","v":""},{"$f":"IF('1. Order'!W362=\"\",\"\",'1. Order'!W362)","v":""},{"$f":"IF('1. Order'!X362=\"\",\"\",'1. Order'!X362)","v":""},{"$f":"IF('1. Order'!Y362=\"\",\"\",'1. Order'!Y362)","v":"EUR"},{"$f":"IF('1. Order'!Z362=\"\",\"\",'1. Order'!Z362)","v":""},{"$f":"IF('1. Order'!AA362=\"\",\"\",'1. Order'!AA362)","v":""},{"$f":"IF('1. Order'!AB362=\"\",\"\",'1. Order'!AB362)","v":""},null,{"$f":"IF('1. Order'!AT362=\"\",\"\",'1. Order'!AT362)","v":""},{"$f":"IF('1. Order'!AU362=\"\",\"\",'1. Order'!AU362)","v":""},null,null,null,null,null,null,null,{"$f":"IF('1. Order'!AY362=\"\",\"\",'1. Order'!AY362)","v":""},{"$f":"IF('1. Order'!AZ362=\"\",\"\",'1. Order'!AZ362)","v":""},{"$f":"IF('1. Order'!BA362=\"\",\"\",'1. Order'!BA362)","v":""},{"$f":"IF('1. Order'!BB362=\"\",\"\",'1. Order'!BB362)","v":""},{"$f":"IF('1. Order'!BD362=\"\",\"\",'1. Order'!BD362)","v":""},{"$f":"IF('1. Order'!BE362=\"\",\"\",'1. Order'!BE362)","v":""},{"$f":"IF('1. Order'!BF362=\"\",\"\",'1. Order'!BF362)","v":""},{"$f":"IF('1. Order'!BG362=\"\",\"\",'1. Order'!BG362)","v":""},{"$f":"IF('1. Order'!BH362=\"\",\"\",'1. Order'!BH362)","v":"ZWO"}]
[{"$f":"IF('1. Order'!F363=\"\",\"\",'1. Order'!F363)","v":{"$error":"#N/A"}},{"$f":"IF('1. Order'!G363=\"\",\"\",'1. Order'!G363)","v":""},{"$f":"IF('1. Order'!H363=\"\",\"\",'1. Order'!H363)","v":""},{"$f":"IF('1. Order'!I363=\"\",\"\",'1. Order'!I363)","v":""},{"$f":"IF('1. Order'!J363=\"\",\"\",'1. Order'!J363)","v":""},{"$f":"IF('1. Order'!K363=\"\",\"\",'1. Order'!K363)","v":""},{"$f":"IF('1. Order'!L363=\"\",\"\",'1. Order'!L363)","v":""},{"$f":"IF('1. Order'!M363=\"\",\"\",'1. Order'!M363)","v":""},{"$f":"IF('1. Order'!N363=\"\",\"\",'1. Order'!N363)","v":""},{"$f":"IF('1. Order'!O363=\"\",\"\",'1. Order'!O363)","v":{"$error":"#N/A"}},{"$f":"IF('1. Order'!P363=\"\",\"\",'1. Order'!P363)","v":{"$error":"#N/A"}},{"$f":"IF('1. Order'!Q363=\"\",\"\",'1. Order'!Q363)","v":""},{"$f":"IF('1. Order'!S363=\"\",\"\",'1. Order'!S363)","v":""},{"$f":"IF('1. Order'!T363=\"\",\"\",'1. Order'!T363)","v":""},{"$f":"IF('1. Order'!W363=\"\",\"\",'1. Order'!W363)","v":""},{"$f":"IF('1. Order'!X363=\"\",\"\",'1. Order'!X363)","v":""},{"$f":"IF('1. Order'!Y363=\"\",\"\",'1. Order'!Y363)","v":"EUR"},{"$f":"IF('1. Order'!Z363=\"\",\"\",'1. Order'!Z363)","v":""},{"$f":"IF('1. Order'!AA363=\"\",\"\",'1. Order'!AA363)","v":""},{"$f":"IF('1. Order'!AB363=\"\",\"\",'1. Order'!AB363)","v":""},null,{"$f":"IF('1. Order'!AT363=\"\",\"\",'1. Order'!AT363)","v":""},{"$f":"IF('1. Order'!AU363=\"\",\"\",'1. Order'!AU363)","v":""},null,null,null,null,null,null,null,{"$f":"IF('1. Order'!AY363=\"\",\"\",'1. Order'!AY363)","v":""},{"$f":"IF('1. Order'!AZ363=\"\",\"\",'1. Order'!AZ363)","v":""},{"$f":"IF('1. Order'!BA363=\"\",\"\",'1. Order'!BA363)","v":""},{"$f":"IF('1. Order'!BB363=\"\",\"\",'1. Order'!BB363)","v":""},{"$f":"IF('1. Order'!BD363=\"\",\"\",'1. Order'!BD363)","v":""},{"$f":"IF('1. Order'!BE363=\"\",\"\",'1. Order'!BE363)","v":""},{"$f":"IF('1. Order'!BF363=\"\",\"\",'1. Order'!BF363)","v":""},{"$f":"IF('1. Order'!BG363=\"\",\"\",'1. Order'!BG363)","v":""},{"$f":"IF('1. Order'!BH363=\"\",\"\",'1. Order'!BH363)","v":"ZWO"}]
[{"$f":"IF('1. Order'!F364=\"\",\"\",'1. Order'!F364)","v":{"$error":"#N/A"}},{"$f":"IF('1. Order'!G364=\"\",\"\",'1. Order'!G364)","v":""},{"$f":"IF('1. Order'!H364=\"\",\"\",'1. Order'!H364)","v":""},{"$f":"IF('1. Order'!I364=\"\",\"\",'1. Order'!I364)","v":""},{"$f":"IF('1. Order'!J364=\"\",\"\",'1. Order'!J364)","v":""},{"$f":"IF('1. Order'!K364=\"\",\"\",'1. Order'!K364)","v":""},{"$f":"IF('1. Order'!L364=\"\",\"\",'1. Order'!L364)","v":""},{"$f":"IF('1. Order'!M364=\"\",\"\",'1. Order'!M364)","v":""},{"$f":"IF('1. Order'!N364=\"\",\"\",'1. Order'!N364)","v":""},{"$f":"IF('1. Order'!O364=\"\",\"\",'1. Order'!O364)","v":{"$error":"#N/A"}},{"$f":"IF('1. Order'!P364=\"\",\"\",'1. Order'!P364)","v":{"$error":"#N/A"}},{"$f":"IF('1. Order'!Q364=\"\",\"\",'1. Order'!Q364)","v":""},{"$f":"IF('1. Order'!S364=\"\",\"\",'1. Order'!S364)","v":""},{"$f":"IF('1. Order'!T364=\"\",\"\",'1. Order'!T364)","v":""},{"$f":"IF('1. Order'!W364=\"\",\"\",'1. Order'!W364)","v":""},{"$f":"IF('1. Order'!X364=\"\",\"\",'1. Order'!X364)","v":""},{"$f":"IF('1. Order'!Y364=\"\",\"\",'1. Order'!Y364)","v":"EUR"},{"$f":"IF('1. Order'!Z364=\"\",\"\",'1. Order'!Z364)","v":""},{"$f":"IF('1. Order'!AA364=\"\",\"\",'1. Order'!AA364)","v":""},{"$f":"IF('1. Order'!AB364=\"\",\"\",'1. Order'!AB364)","v":""},null,{"$f":"IF('1. Order'!AT364=\"\",\"\",'1. Order'!AT364)","v":""},{"$f":"IF('1. Order'!AU364=\"\",\"\",'1. Order'!AU364)","v":""},null,null,null,null,null,null,null,{"$f":"IF('1. Order'!AY364=\"\",\"\",'1. Order'!AY364)","v":""},{"$f":"IF('1. Order'!AZ364=\"\",\"\",'1. Order'!AZ364)","v":""},{"$f":"IF('1. Order'!BA364=\"\",\"\",'1. Order'!BA364)","v":""},{"$f":"IF('1. Order'!BB364=\"\",\"\",'1. Order'!BB364)","v":""},{"$f":"IF('1. Order'!BD364=\"\",\"\",'1. Order'!BD364)","v":""},{"$f":"IF('1. Order'!BE364=\"\",\"\",'1. Order'!BE364)","v":""},{"$f":"IF('1. Order'!BF364=\"\",\"\",'1. Order'!BF364)","v":""},{"$f":"IF('1. Order'!BG364=\"\",\"\",'1. Order'!BG364)","v":""},{"$f":"IF('1. Order'!BH364=\"\",\"\",'1. Order'!BH364)","v":"ZWO"}]
[{"$f":"IF('1. Order'!F365=\"\",\"\",'1. Order'!F365)","v":{"$error":"#N/A"}},{"$f":"IF('1. Order'!G365=\"\",\"\",'1. Order'!G365)","v":""},{"$f":"IF('1. Order'!H365=\"\",\"\",'1. Order'!H365)","v":""},{"$f":"IF('1. Order'!I365=\"\",\"\",'1. Order'!I365)","v":""},{"$f":"IF('1. Order'!J365=\"\",\"\",'1. Order'!J365)","v":""},{"$f":"IF('1. Order'!K365=\"\",\"\",'1. Order'!K365)","v":""},{"$f":"IF('1. Order'!L365=\"\",\"\",'1. Order'!L365)","v":""},{"$f":"IF('1. Order'!M365=\"\",\"\",'1. Order'!M365)","v":""},{"$f":"IF('1. Order'!N365=\"\",\"\",'1. Order'!N365)","v":""},{"$f":"IF('1. Order'!O365=\"\",\"\",'1. Order'!O365)","v":{"$error":"#N/A"}},{"$f":"IF('1. Order'!P365=\"\",\"\",'1. Order'!P365)","v":{"$error":"#N/A"}},{"$f":"IF('1. Order'!Q365=\"\",\"\",'1. Order'!Q365)","v":""},{"$f":"IF('1. Order'!S365=\"\",\"\",'1. Order'!S365)","v":""},{"$f":"IF('1. Order'!T365=\"\",\"\",'1. Order'!T365)","v":""},{"$f":"IF('1. Order'!W365=\"\",\"\",'1. Order'!W365)","v":""},{"$f":"IF('1. Order'!X365=\"\",\"\",'1. Order'!X365)","v":""},{"$f":"IF('1. Order'!Y365=\"\",\"\",'1. Order'!Y365)","v":"EUR"},{"$f":"IF('1. Order'!Z365=\"\",\"\",'1. Order'!Z365)","v":""},{"$f":"IF('1. Order'!AA365=\"\",\"\",'1. Order'!AA365)","v":""},{"$f":"IF('1. Order'!AB365=\"\",\"\",'1. Order'!AB365)","v":""},null,{"$f":"IF('1. Order'!AT365=\"\",\"\",'1. Order'!AT365)","v":""},{"$f":"IF('1. Order'!AU365=\"\",\"\",'1. Order'!AU365)","v":""},null,null,null,null,null,null,null,{"$f":"IF('1. Order'!AY365=\"\",\"\",'1. Order'!AY365)","v":""},{"$f":"IF('1. Order'!AZ365=\"\",\"\",'1. Order'!AZ365)","v":""},{"$f":"IF('1. Order'!BA365=\"\",\"\",'1. Order'!BA365)","v":""},{"$f":"IF('1. Order'!BB365=\"\",\"\",'1. Order'!BB365)","v":""},{"$f":"IF('1. Order'!BD365=\"\",\"\",'1. Order'!BD365)","v":""},{"$f":"IF('1. Order'!BE365=\"\",\"\",'1. Order'!BE365)","v":""},{"$f":"IF('1. Order'!BF365=\"\",\"\",'1. Order'!BF365)","v":""},{"$f":"IF('1. Order'!BG365=\"\",\"\",'1. Order'!BG365)","v":""},{"$f":"IF('1. Order'!BH365=\"\",\"\",'1. Order'!BH365)","v":"ZWO"}]
[{"$f":"IF('1. Order'!F366=\"\",\"\",'1. Order'!F366)","v":{"$error":"#N/A"}},{"$f":"IF('1. Order'!G366=\"\",\"\",'1. Order'!G366)","v":""},{"$f":"IF('1. Order'!H366=\"\",\"\",'1. Order'!H366)","v":""},{"$f":"IF('1. Order'!I366=\"\",\"\",'1. Order'!I366)","v":""},{"$f":"IF('1. Order'!J366=\"\",\"\",'1. Order'!J366)","v":""},{"$f":"IF('1. Order'!K366=\"\",\"\",'1. Order'!K366)","v":""},{"$f":"IF('1. Order'!L366=\"\",\"\",'1. Order'!L366)","v":""},{"$f":"IF('1. Order'!M366=\"\",\"\",'1. Order'!M366)","v":""},{"$f":"IF('1. Order'!N366=\"\",\"\",'1. Order'!N366)","v":""},{"$f":"IF('1. Order'!O366=\"\",\"\",'1. Order'!O366)","v":{"$error":"#N/A"}},{"$f":"IF('1. Order'!P366=\"\",\"\",'1. Order'!P366)","v":{"$error":"#N/A"}},{"$f":"IF('1. Order'!Q366=\"\",\"\",'1. Order'!Q366)","v":""},{"$f":"IF('1. Order'!S366=\"\",\"\",'1. Order'!S366)","v":""},{"$f":"IF('1. Order'!T366=\"\",\"\",'1. Order'!T366)","v":""},{"$f":"IF('1. Order'!W366=\"\",\"\",'1. Order'!W366)","v":""},{"$f":"IF('1. Order'!X366=\"\",\"\",'1. Order'!X366)","v":""},{"$f":"IF('1. Order'!Y366=\"\",\"\",'1. Order'!Y366)","v":"EUR"},{"$f":"IF('1. Order'!Z366=\"\",\"\",'1. Order'!Z366)","v":""},{"$f":"IF('1. Order'!AA366=\"\",\"\",'1. Order'!AA366)","v":""},{"$f":"IF('1. Order'!AB366=\"\",\"\",'1. Order'!AB366)","v":""},null,{"$f":"IF('1. Order'!AT366=\"\",\"\",'1. Order'!AT366)","v":""},{"$f":"IF('1. Order'!AU366=\"\",\"\",'1. Order'!AU366)","v":""},null,null,null,null,null,null,null,{"$f":"IF('1. Order'!AY366=\"\",\"\",'1. Order'!AY366)","v":""},{"$f":"IF('1. Order'!AZ366=\"\",\"\",'1. Order'!AZ366)","v":""},{"$f":"IF('1. Order'!BA366=\"\",\"\",'1. Order'!BA366)","v":""},{"$f":"IF('1. Order'!BB366=\"\",\"\",'1. Order'!BB366)","v":""},{"$f":"IF('1. Order'!BD366=\"\",\"\",'1. Order'!BD366)","v":""},{"$f":"IF('1. Order'!BE366=\"\",\"\",'1. Order'!BE366)","v":""},{"$f":"IF('1. Order'!BF366=\"\",\"\",'1. Order'!BF366)","v":""},{"$f":"IF('1. Order'!BG366=\"\",\"\",'1. Order'!BG366)","v":""},{"$f":"IF('1. Order'!BH366=\"\",\"\",'1. Order'!BH366)","v":"ZWO"}]
[{"$f":"IF('1. Order'!F367=\"\",\"\",'1. Order'!F367)","v":{"$error":"#N/A"}},{"$f":"IF('1. Order'!G367=\"\",\"\",'1. Order'!G367)","v":""},{"$f":"IF('1. Order'!H367=\"\",\"\",'1. Order'!H367)","v":""},{"$f":"IF('1. Order'!I367=\"\",\"\",'1. Order'!I367)","v":""},{"$f":"IF('1. Order'!J367=\"\",\"\",'1. Order'!J367)","v":""},{"$f":"IF('1. Order'!K367=\"\",\"\",'1. Order'!K367)","v":""},{"$f":"IF('1. Order'!L367=\"\",\"\",'1. Order'!L367)","v":""},{"$f":"IF('1. Order'!M367=\"\",\"\",'1. Order'!M367)","v":""},{"$f":"IF('1. Order'!N367=\"\",\"\",'1. Order'!N367)","v":""},{"$f":"IF('1. Order'!O367=\"\",\"\",'1. Order'!O367)","v":{"$error":"#N/A"}},{"$f":"IF('1. Order'!P367=\"\",\"\",'1. Order'!P367)","v":{"$error":"#N/A"}},{"$f":"IF('1. Order'!Q367=\"\",\"\",'1. Order'!Q367)","v":""},{"$f":"IF('1. Order'!S367=\"\",\"\",'1. Order'!S367)","v":""},{"$f":"IF('1. Order'!T367=\"\",\"\",'1. Order'!T367)","v":""},{"$f":"IF('1. Order'!W367=\"\",\"\",'1. Order'!W367)","v":""},{"$f":"IF('1. Order'!X367=\"\",\"\",'1. Order'!X367)","v":""},{"$f":"IF('1. Order'!Y367=\"\",\"\",'1. Order'!Y367)","v":"EUR"},{"$f":"IF('1. Order'!Z367=\"\",\"\",'1. Order'!Z367)","v":""},{"$f":"IF('1. Order'!AA367=\"\",\"\",'1. Order'!AA367)","v":""},{"$f":"IF('1. Order'!AB367=\"\",\"\",'1. Order'!AB367)","v":""},null,{"$f":"IF('1. Order'!AT367=\"\",\"\",'1. Order'!AT367)","v":""},{"$f":"IF('1. Order'!AU367=\"\",\"\",'1. Order'!AU367)","v":""},null,null,null,null,null,null,null,{"$f":"IF('1. Order'!AY367=\"\",\"\",'1. Order'!AY367)","v":""},{"$f":"IF('1. Order'!AZ367=\"\",\"\",'1. Order'!AZ367)","v":""},{"$f":"IF('1. Order'!BA367=\"\",\"\",'1. Order'!BA367)","v":""},{"$f":"IF('1. Order'!BB367=\"\",\"\",'1. Order'!BB367)","v":""},{"$f":"IF('1. Order'!BD367=\"\",\"\",'1. Order'!BD367)","v":""},{"$f":"IF('1. Order'!BE367=\"\",\"\",'1. Order'!BE367)","v":""},{"$f":"IF('1. Order'!BF367=\"\",\"\",'1. Order'!BF367)","v":""},{"$f":"IF('1. Order'!BG367=\"\",\"\",'1. Order'!BG367)","v":""},{"$f":"IF('1. Order'!BH367=\"\",\"\",'1. Order'!BH367)","v":"ZWO"}]
[{"$f":"IF('1. Order'!F368=\"\",\"\",'1. Order'!F368)","v":{"$error":"#N/A"}},{"$f":"IF('1. Order'!G368=\"\",\"\",'1. Order'!G368)","v":""},{"$f":"IF('1. Order'!H368=\"\",\"\",'1. Order'!H368)","v":""},{"$f":"IF('1. Order'!I368=\"\",\"\",'1. Order'!I368)","v":""},{"$f":"IF('1. Order'!J368=\"\",\"\",'1. Order'!J368)","v":""},{"$f":"IF('1. Order'!K368=\"\",\"\",'1. Order'!K368)","v":""},{"$f":"IF('1. Order'!L368=\"\",\"\",'1. Order'!L368)","v":""},{"$f":"IF('1. Order'!M368=\"\",\"\",'1. Order'!M368)","v":""},{"$f":"IF('1. Order'!N368=\"\",\"\",'1. Order'!N368)","v":""},{"$f":"IF('1. Order'!O368=\"\",\"\",'1. Order'!O368)","v":{"$error":"#N/A"}},{"$f":"IF('1. Order'!P368=\"\",\"\",'1. Order'!P368)","v":{"$error":"#N/A"}},{"$f":"IF('1. Order'!Q368=\"\",\"\",'1. Order'!Q368)","v":""},{"$f":"IF('1. Order'!S368=\"\",\"\",'1. Order'!S368)","v":""},{"$f":"IF('1. Order'!T368=\"\",\"\",'1. Order'!T368)","v":""},{"$f":"IF('1. Order'!W368=\"\",\"\",'1. Order'!W368)","v":""},{"$f":"IF('1. Order'!X368=\"\",\"\",'1. Order'!X368)","v":""},{"$f":"IF('1. Order'!Y368=\"\",\"\",'1. Order'!Y368)","v":"EUR"},{"$f":"IF('1. Order'!Z368=\"\",\"\",'1. Order'!Z368)","v":""},{"$f":"IF('1. Order'!AA368=\"\",\"\",'1. Order'!AA368)","v":""},{"$f":"IF('1. Order'!AB368=\"\",\"\",'1. Order'!AB368)","v":""},null,{"$f":"IF('1. Order'!AT368=\"\",\"\",'1. Order'!AT368)","v":""},{"$f":"IF('1. Order'!AU368=\"\",\"\",'1. Order'!AU368)","v":""},null,null,null,null,null,null,null,{"$f":"IF('1. Order'!AY368=\"\",\"\",'1. Order'!AY368)","v":""},{"$f":"IF('1. Order'!AZ368=\"\",\"\",'1. Order'!AZ368)","v":""},{"$f":"IF('1. Order'!BA368=\"\",\"\",'1. Order'!BA368)","v":""},{"$f":"IF('1. Order'!BB368=\"\",\"\",'1. Order'!BB368)","v":""},{"$f":"IF('1. Order'!BD368=\"\",\"\",'1. Order'!BD368)","v":""},{"$f":"IF('1. Order'!BE368=\"\",\"\",'1. Order'!BE368)","v":""},{"$f":"IF('1. Order'!BF368=\"\",\"\",'1. Order'!BF368)","v":""},{"$f":"IF('1. Order'!BG368=\"\",\"\",'1. Order'!BG368)","v":""},{"$f":"IF('1. Order'!BH368=\"\",\"\",'1. Order'!BH368)","v":"ZWO"}]
[{"$f":"IF('1. Order'!F369=\"\",\"\",'1. Order'!F369)","v":{"$error":"#N/A"}},{"$f":"IF('1. Order'!G369=\"\",\"\",'1. Order'!G369)","v":""},{"$f":"IF('1. Order'!H369=\"\",\"\",'1. Order'!H369)","v":""},{"$f":"IF('1. Order'!I369=\"\",\"\",'1. Order'!I369)","v":""},{"$f":"IF('1. Order'!J369=\"\",\"\",'1. Order'!J369)","v":""},{"$f":"IF('1. Order'!K369=\"\",\"\",'1. Order'!K369)","v":""},{"$f":"IF('1. Order'!L369=\"\",\"\",'1. Order'!L369)","v":""},{"$f":"IF('1. Order'!M369=\"\",\"\",'1. Order'!M369)","v":""},{"$f":"IF('1. Order'!N369=\"\",\"\",'1. Order'!N369)","v":""},{"$f":"IF('1. Order'!O369=\"\",\"\",'1. Order'!O369)","v":{"$error":"#N/A"}},{"$f":"IF('1. Order'!P369=\"\",\"\",'1. Order'!P369)","v":{"$error":"#N/A"}},{"$f":"IF('1. Order'!Q369=\"\",\"\",'1. Order'!Q369)","v":""},{"$f":"IF('1. Order'!S369=\"\",\"\",'1. Order'!S369)","v":""},{"$f":"IF('1. Order'!T369=\"\",\"\",'1. Order'!T369)","v":""},{"$f":"IF('1. Order'!W369=\"\",\"\",'1. Order'!W369)","v":""},{"$f":"IF('1. Order'!X369=\"\",\"\",'1. Order'!X369)","v":""},{"$f":"IF('1. Order'!Y369=\"\",\"\",'1. Order'!Y369)","v":"EUR"},{"$f":"IF('1. Order'!Z369=\"\",\"\",'1. Order'!Z369)","v":""},{"$f":"IF('1. Order'!AA369=\"\",\"\",'1. Order'!AA369)","v":""},{"$f":"IF('1. Order'!AB369=\"\",\"\",'1. Order'!AB369)","v":""},null,{"$f":"IF('1. Order'!AT369=\"\",\"\",'1. Order'!AT369)","v":""},{"$f":"IF('1. Order'!AU369=\"\",\"\",'1. Order'!AU369)","v":""},null,null,null,null,null,null,null,{"$f":"IF('1. Order'!AY369=\"\",\"\",'1. Order'!AY369)","v":""},{"$f":"IF('1. Order'!AZ369=\"\",\"\",'1. Order'!AZ369)","v":""},{"$f":"IF('1. Order'!BA369=\"\",\"\",'1. Order'!BA369)","v":""},{"$f":"IF('1. Order'!BB369=\"\",\"\",'1. Order'!BB369)","v":""},{"$f":"IF('1. Order'!BD369=\"\",\"\",'1. Order'!BD369)","v":""},{"$f":"IF('1. Order'!BE369=\"\",\"\",'1. Order'!BE369)","v":""},{"$f":"IF('1. Order'!BF369=\"\",\"\",'1. Order'!BF369)","v":""},{"$f":"IF('1. Order'!BG369=\"\",\"\",'1. Order'!BG369)","v":""},{"$f":"IF('1. Order'!BH369=\"\",\"\",'1. Order'!BH369)","v":"ZWO"}]
[{"$f":"IF('1. Order'!F370=\"\",\"\",'1. Order'!F370)","v":{"$error":"#N/A"}},{"$f":"IF('1. Order'!G370=\"\",\"\",'1. Order'!G370)","v":""},{"$f":"IF('1. Order'!H370=\"\",\"\",'1. Order'!H370)","v":""},{"$f":"IF('1. Order'!I370=\"\",\"\",'1. Order'!I370)","v":""},{"$f":"IF('1. Order'!J370=\"\",\"\",'1. Order'!J370)","v":""},{"$f":"IF('1. Order'!K370=\"\",\"\",'1. Order'!K370)","v":""},{"$f":"IF('1. Order'!L370=\"\",\"\",'1. Order'!L370)","v":""},{"$f":"IF('1. Order'!M370=\"\",\"\",'1. Order'!M370)","v":""},{"$f":"IF('1. Order'!N370=\"\",\"\",'1. Order'!N370)","v":""},{"$f":"IF('1. Order'!O370=\"\",\"\",'1. Order'!O370)","v":{"$error":"#N/A"}},{"$f":"IF('1. Order'!P370=\"\",\"\",'1. Order'!P370)","v":{"$error":"#N/A"}},{"$f":"IF('1. Order'!Q370=\"\",\"\",'1. Order'!Q370)","v":""},{"$f":"IF('1. Order'!S370=\"\",\"\",'1. Order'!S370)","v":""},{"$f":"IF('1. Order'!T370=\"\",\"\",'1. Order'!T370)","v":""},{"$f":"IF('1. Order'!W370=\"\",\"\",'1. Order'!W370)","v":""},{"$f":"IF('1. Order'!X370=\"\",\"\",'1. Order'!X370)","v":""},{"$f":"IF('1. Order'!Y370=\"\",\"\",'1. Order'!Y370)","v":"EUR"},{"$f":"IF('1. Order'!Z370=\"\",\"\",'1. Order'!Z370)","v":""},{"$f":"IF('1. Order'!AA370=\"\",\"\",'1. Order'!AA370)","v":""},{"$f":"IF('1. Order'!AB370=\"\",\"\",'1. Order'!AB370)","v":""},null,{"$f":"IF('1. Order'!AT370=\"\",\"\",'1. Order'!AT370)","v":""},{"$f":"IF('1. Order'!AU370=\"\",\"\",'1. Order'!AU370)","v":""},null,null,null,null,null,null,null,{"$f":"IF('1. Order'!AY370=\"\",\"\",'1. Order'!AY370)","v":""},{"$f":"IF('1. Order'!AZ370=\"\",\"\",'1. Order'!AZ370)","v":""},{"$f":"IF('1. Order'!BA370=\"\",\"\",'1. Order'!BA370)","v":""},{"$f":"IF('1. Order'!BB370=\"\",\"\",'1. Order'!BB370)","v":""},{"$f":"IF('1. Order'!BD370=\"\",\"\",'1. Order'!BD370)","v":""},{"$f":"IF('1. Order'!BE370=\"\",\"\",'1. Order'!BE370)","v":""},{"$f":"IF('1. Order'!BF370=\"\",\"\",'1. Order'!BF370)","v":""},{"$f":"IF('1. Order'!BG370=\"\",\"\",'1. Order'!BG370)","v":""},{"$f":"IF('1. Order'!BH370=\"\",\"\",'1. Order'!BH370)","v":"ZWO"}]
[{"$f":"IF('1. Order'!F371=\"\",\"\",'1. Order'!F371)","v":{"$error":"#N/A"}},{"$f":"IF('1. Order'!G371=\"\",\"\",'1. Order'!G371)","v":""},{"$f":"IF('1. Order'!H371=\"\",\"\",'1. Order'!H371)","v":""},{"$f":"IF('1. Order'!I371=\"\",\"\",'1. Order'!I371)","v":""},{"$f":"IF('1. Order'!J371=\"\",\"\",'1. Order'!J371)","v":""},{"$f":"IF('1. Order'!K371=\"\",\"\",'1. Order'!K371)","v":""},{"$f":"IF('1. Order'!L371=\"\",\"\",'1. Order'!L371)","v":""},{"$f":"IF('1. Order'!M371=\"\",\"\",'1. Order'!M371)","v":""},{"$f":"IF('1. Order'!N371=\"\",\"\",'1. Order'!N371)","v":""},{"$f":"IF('1. Order'!O371=\"\",\"\",'1. Order'!O371)","v":{"$error":"#N/A"}},{"$f":"IF('1. Order'!P371=\"\",\"\",'1. Order'!P371)","v":{"$error":"#N/A"}},{"$f":"IF('1. Order'!Q371=\"\",\"\",'1. Order'!Q371)","v":""},{"$f":"IF('1. Order'!S371=\"\",\"\",'1. Order'!S371)","v":""},{"$f":"IF('1. Order'!T371=\"\",\"\",'1. Order'!T371)","v":""},{"$f":"IF('1. Order'!W371=\"\",\"\",'1. Order'!W371)","v":""},{"$f":"IF('1. Order'!X371=\"\",\"\",'1. Order'!X371)","v":""},{"$f":"IF('1. Order'!Y371=\"\",\"\",'1. Order'!Y371)","v":"EUR"},{"$f":"IF('1. Order'!Z371=\"\",\"\",'1. Order'!Z371)","v":""},{"$f":"IF('1. Order'!AA371=\"\",\"\",'1. Order'!AA371)","v":""},{"$f":"IF('1. Order'!AB371=\"\",\"\",'1. Order'!AB371)","v":""},null,{"$f":"IF('1. Order'!AT371=\"\",\"\",'1. Order'!AT371)","v":""},{"$f":"IF('1. Order'!AU371=\"\",\"\",'1. Order'!AU371)","v":""},null,null,null,null,null,null,null,{"$f":"IF('1. Order'!AY371=\"\",\"\",'1. Order'!AY371)","v":""},{"$f":"IF('1. Order'!AZ371=\"\",\"\",'1. Order'!AZ371)","v":""},{"$f":"IF('1. Order'!BA371=\"\",\"\",'1. Order'!BA371)","v":""},{"$f":"IF('1. Order'!BB371=\"\",\"\",'1. Order'!BB371)","v":""},{"$f":"IF('1. Order'!BD371=\"\",\"\",'1. Order'!BD371)","v":""},{"$f":"IF('1. Order'!BE371=\"\",\"\",'1. Order'!BE371)","v":""},{"$f":"IF('1. Order'!BF371=\"\",\"\",'1. Order'!BF371)","v":""},{"$f":"IF('1. Order'!BG371=\"\",\"\",'1. Order'!BG371)","v":""},{"$f":"IF('1. Order'!BH371=\"\",\"\",'1. Order'!BH371)","v":"ZWO"}]
[{"$f":"IF('1. Order'!F372=\"\",\"\",'1. Order'!F372)","v":{"$error":"#N/A"}},{"$f":"IF('1. Order'!G372=\"\",\"\",'1. Order'!G372)","v":""},{"$f":"IF('1. Order'!H372=\"\",\"\",'1. Order'!H372)","v":""},{"$f":"IF('1. Order'!I372=\"\",\"\",'1. Order'!I372)","v":""},{"$f":"IF('1. Order'!J372=\"\",\"\",'1. Order'!J372)","v":""},{"$f":"IF('1. Order'!K372=\"\",\"\",'1. Order'!K372)","v":""},{"$f":"IF('1. Order'!L372=\"\",\"\",'1. Order'!L372)","v":""},{"$f":"IF('1. Order'!M372=\"\",\"\",'1. Order'!M372)","v":""},{"$f":"IF('1. Order'!N372=\"\",\"\",'1. Order'!N372)","v":""},{"$f":"IF('1. Order'!O372=\"\",\"\",'1. Order'!O372)","v":{"$error":"#N/A"}},{"$f":"IF('1. Order'!P372=\"\",\"\",'1. Order'!P372)","v":{"$error":"#N/A"}},{"$f":"IF('1. Order'!Q372=\"\",\"\",'1. Order'!Q372)","v":""},{"$f":"IF('1. Order'!S372=\"\",\"\",'1. Order'!S372)","v":""},{"$f":"IF('1. Order'!T372=\"\",\"\",'1. Order'!T372)","v":""},{"$f":"IF('1. Order'!W372=\"\",\"\",'1. Order'!W372)","v":""},{"$f":"IF('1. Order'!X372=\"\",\"\",'1. Order'!X372)","v":""},{"$f":"IF('1. Order'!Y372=\"\",\"\",'1. Order'!Y372)","v":"EUR"},{"$f":"IF('1. Order'!Z372=\"\",\"\",'1. Order'!Z372)","v":""},{"$f":"IF('1. Order'!AA372=\"\",\"\",'1. Order'!AA372)","v":""},{"$f":"IF('1. Order'!AB372=\"\",\"\",'1. Order'!AB372)","v":""},null,{"$f":"IF('1. Order'!AT372=\"\",\"\",'1. Order'!AT372)","v":""},{"$f":"IF('1. Order'!AU372=\"\",\"\",'1. Order'!AU372)","v":""},null,null,null,null,null,null,null,{"$f":"IF('1. Order'!AY372=\"\",\"\",'1. Order'!AY372)","v":""},{"$f":"IF('1. Order'!AZ372=\"\",\"\",'1. Order'!AZ372)","v":""},{"$f":"IF('1. Order'!BA372=\"\",\"\",'1. Order'!BA372)","v":""},{"$f":"IF('1. Order'!BB372=\"\",\"\",'1. Order'!BB372)","v":""},{"$f":"IF('1. Order'!BD372=\"\",\"\",'1. Order'!BD372)","v":""},{"$f":"IF('1. Order'!BE372=\"\",\"\",'1. Order'!BE372)","v":""},{"$f":"IF('1. Order'!BF372=\"\",\"\",'1. Order'!BF372)","v":""},{"$f":"IF('1. Order'!BG372=\"\",\"\",'1. Order'!BG372)","v":""},{"$f":"IF('1. Order'!BH372=\"\",\"\",'1. Order'!BH372)","v":"ZWO"}]
[{"$f":"IF('1. Order'!F373=\"\",\"\",'1. Order'!F373)","v":{"$error":"#N/A"}},{"$f":"IF('1. Order'!G373=\"\",\"\",'1. Order'!G373)","v":""},{"$f":"IF('1. Order'!H373=\"\",\"\",'1. Order'!H373)","v":""},{"$f":"IF('1. Order'!I373=\"\",\"\",'1. Order'!I373)","v":""},{"$f":"IF('1. Order'!J373=\"\",\"\",'1. Order'!J373)","v":""},{"$f":"IF('1. Order'!K373=\"\",\"\",'1. Order'!K373)","v":""},{"$f":"IF('1. Order'!L373=\"\",\"\",'1. Order'!L373)","v":""},{"$f":"IF('1. Order'!M373=\"\",\"\",'1. Order'!M373)","v":""},{"$f":"IF('1. Order'!N373=\"\",\"\",'1. Order'!N373)","v":""},{"$f":"IF('1. Order'!O373=\"\",\"\",'1. Order'!O373)","v":{"$error":"#N/A"}},{"$f":"IF('1. Order'!P373=\"\",\"\",'1. Order'!P373)","v":{"$error":"#N/A"}},{"$f":"IF('1. Order'!Q373=\"\",\"\",'1. Order'!Q373)","v":""},{"$f":"IF('1. Order'!S373=\"\",\"\",'1. Order'!S373)","v":""},{"$f":"IF('1. Order'!T373=\"\",\"\",'1. Order'!T373)","v":""},{"$f":"IF('1. Order'!W373=\"\",\"\",'1. Order'!W373)","v":""},{"$f":"IF('1. Order'!X373=\"\",\"\",'1. Order'!X373)","v":""},{"$f":"IF('1. Order'!Y373=\"\",\"\",'1. Order'!Y373)","v":"EUR"},{"$f":"IF('1. Order'!Z373=\"\",\"\",'1. Order'!Z373)","v":""},{"$f":"IF('1. Order'!AA373=\"\",\"\",'1. Order'!AA373)","v":""},{"$f":"IF('1. Order'!AB373=\"\",\"\",'1. Order'!AB373)","v":""},null,{"$f":"IF('1. Order'!AT373=\"\",\"\",'1. Order'!AT373)","v":""},{"$f":"IF('1. Order'!AU373=\"\",\"\",'1. Order'!AU373)","v":""},null,null,null,null,null,null,null,{"$f":"IF('1. Order'!AY373=\"\",\"\",'1. Order'!AY373)","v":""},{"$f":"IF('1. Order'!AZ373=\"\",\"\",'1. Order'!AZ373)","v":""},{"$f":"IF('1. Order'!BA373=\"\",\"\",'1. Order'!BA373)","v":""},{"$f":"IF('1. Order'!BB373=\"\",\"\",'1. Order'!BB373)","v":""},{"$f":"IF('1. Order'!BD373=\"\",\"\",'1. Order'!BD373)","v":""},{"$f":"IF('1. Order'!BE373=\"\",\"\",'1. Order'!BE373)","v":""},{"$f":"IF('1. Order'!BF373=\"\",\"\",'1. Order'!BF373)","v":""},{"$f":"IF('1. Order'!BG373=\"\",\"\",'1. Order'!BG373)","v":""},{"$f":"IF('1. Order'!BH373=\"\",\"\",'1. Order'!BH373)","v":"ZWO"}]
[{"$f":"IF('1. Order'!F374=\"\",\"\",'1. Order'!F374)","v":{"$error":"#N/A"}},{"$f":"IF('1. Order'!G374=\"\",\"\",'1. Order'!G374)","v":""},{"$f":"IF('1. Order'!H374=\"\",\"\",'1. Order'!H374)","v":""},{"$f":"IF('1. Order'!I374=\"\",\"\",'1. Order'!I374)","v":""},{"$f":"IF('1. Order'!J374=\"\",\"\",'1. Order'!J374)","v":""},{"$f":"IF('1. Order'!K374=\"\",\"\",'1. Order'!K374)","v":""},{"$f":"IF('1. Order'!L374=\"\",\"\",'1. Order'!L374)","v":""},{"$f":"IF('1. Order'!M374=\"\",\"\",'1. Order'!M374)","v":""},{"$f":"IF('1. Order'!N374=\"\",\"\",'1. Order'!N374)","v":""},{"$f":"IF('1. Order'!O374=\"\",\"\",'1. Order'!O374)","v":{"$error":"#N/A"}},{"$f":"IF('1. Order'!P374=\"\",\"\",'1. Order'!P374)","v":{"$error":"#N/A"}},{"$f":"IF('1. Order'!Q374=\"\",\"\",'1. Order'!Q374)","v":""},{"$f":"IF('1. Order'!S374=\"\",\"\",'1. Order'!S374)","v":""},{"$f":"IF('1. Order'!T374=\"\",\"\",'1. Order'!T374)","v":""},{"$f":"IF('1. Order'!W374=\"\",\"\",'1. Order'!W374)","v":""},{"$f":"IF('1. Order'!X374=\"\",\"\",'1. Order'!X374)","v":""},{"$f":"IF('1. Order'!Y374=\"\",\"\",'1. Order'!Y374)","v":"EUR"},{"$f":"IF('1. Order'!Z374=\"\",\"\",'1. Order'!Z374)","v":""},{"$f":"IF('1. Order'!AA374=\"\",\"\",'1. Order'!AA374)","v":""},{"$f":"IF('1. Order'!AB374=\"\",\"\",'1. Order'!AB374)","v":""},null,{"$f":"IF('1. Order'!AT374=\"\",\"\",'1. Order'!AT374)","v":""},{"$f":"IF('1. Order'!AU374=\"\",\"\",'1. Order'!AU374)","v":""},null,null,null,null,null,null,null,{"$f":"IF('1. Order'!AY374=\"\",\"\",'1. Order'!AY374)","v":""},{"$f":"IF('1. Order'!AZ374=\"\",\"\",'1. Order'!AZ374)","v":""},{"$f":"IF('1. Order'!BA374=\"\",\"\",'1. Order'!BA374)","v":""},{"$f":"IF('1. Order'!BB374=\"\",\"\",'1. Order'!BB374)","v":""},{"$f":"IF('1. Order'!BD374=\"\",\"\",'1. Order'!BD374)","v":""},{"$f":"IF('1. Order'!BE374=\"\",\"\",'1. Order'!BE374)","v":""},{"$f":"IF('1. Order'!BF374=\"\",\"\",'1. Order'!BF374)","v":""},{"$f":"IF('1. Order'!BG374=\"\",\"\",'1. Order'!BG374)","v":""},{"$f":"IF('1. Order'!BH374=\"\",\"\",'1. Order'!BH374)","v":"ZWO"}]
[{"$f":"IF('1. Order'!F375=\"\",\"\",'1. Order'!F375)","v":{"$error":"#N/A"}},{"$f":"IF('1. Order'!G375=\"\",\"\",'1. Order'!G375)","v":""},{"$f":"IF('1. Order'!H375=\"\",\"\",'1. Order'!H375)","v":""},{"$f":"IF('1. Order'!I375=\"\",\"\",'1. Order'!I375)","v":""},{"$f":"IF('1. Order'!J375=\"\",\"\",'1. Order'!J375)","v":""},{"$f":"IF('1. Order'!K375=\"\",\"\",'1. Order'!K375)","v":""},{"$f":"IF('1. Order'!L375=\"\",\"\",'1. Order'!L375)","v":""},{"$f":"IF('1. Order'!M375=\"\",\"\",'1. Order'!M375)","v":""},{"$f":"IF('1. Order'!N375=\"\",\"\",'1. Order'!N375)","v":""},{"$f":"IF('1. Order'!O375=\"\",\"\",'1. Order'!O375)","v":{"$error":"#N/A"}},{"$f":"IF('1. Order'!P375=\"\",\"\",'1. Order'!P375)","v":{"$error":"#N/A"}},{"$f":"IF('1. Order'!Q375=\"\",\"\",'1. Order'!Q375)","v":""},{"$f":"IF('1. Order'!S375=\"\",\"\",'1. Order'!S375)","v":""},{"$f":"IF('1. Order'!T375=\"\",\"\",'1. Order'!T375)","v":""},{"$f":"IF('1. Order'!W375=\"\",\"\",'1. Order'!W375)","v":""},{"$f":"IF('1. Order'!X375=\"\",\"\",'1. Order'!X375)","v":""},{"$f":"IF('1. Order'!Y375=\"\",\"\",'1. Order'!Y375)","v":"EUR"},{"$f":"IF('1. Order'!Z375=\"\",\"\",'1. Order'!Z375)","v":""},{"$f":"IF('1. Order'!AA375=\"\",\"\",'1. Order'!AA375)","v":""},{"$f":"IF('1. Order'!AB375=\"\",\"\",'1. Order'!AB375)","v":""},null,{"$f":"IF('1. Order'!AT375=\"\",\"\",'1. Order'!AT375)","v":""},{"$f":"IF('1. Order'!AU375=\"\",\"\",'1. Order'!AU375)","v":""},null,null,null,null,null,null,null,{"$f":"IF('1. Order'!AY375=\"\",\"\",'1. Order'!AY375)","v":""},{"$f":"IF('1. Order'!AZ375=\"\",\"\",'1. Order'!AZ375)","v":""},{"$f":"IF('1. Order'!BA375=\"\",\"\",'1. Order'!BA375)","v":""},{"$f":"IF('1. Order'!BB375=\"\",\"\",'1. Order'!BB375)","v":""},{"$f":"IF('1. Order'!BD375=\"\",\"\",'1. Order'!BD375)","v":""},{"$f":"IF('1. Order'!BE375=\"\",\"\",'1. Order'!BE375)","v":""},{"$f":"IF('1. Order'!BF375=\"\",\"\",'1. Order'!BF375)","v":""},{"$f":"IF('1. Order'!BG375=\"\",\"\",'1. Order'!BG375)","v":""},{"$f":"IF('1. Order'!BH375=\"\",\"\",'1. Order'!BH375)","v":"ZWO"}]
[{"$f":"IF('1. Order'!F376=\"\",\"\",'1. Order'!F376)","v":{"$error":"#N/A"}},{"$f":"IF('1. Order'!G376=\"\",\"\",'1. Order'!G376)","v":""},{"$f":"IF('1. Order'!H376=\"\",\"\",'1. Order'!H376)","v":""},{"$f":"IF('1. Order'!I376=\"\",\"\",'1. Order'!I376)","v":""},{"$f":"IF('1. Order'!J376=\"\",\"\",'1. Order'!J376)","v":""},{"$f":"IF('1. Order'!K376=\"\",\"\",'1. Order'!K376)","v":""},{"$f":"IF('1. Order'!L376=\"\",\"\",'1. Order'!L376)","v":""},{"$f":"IF('1. Order'!M376=\"\",\"\",'1. Order'!M376)","v":""},{"$f":"IF('1. Order'!N376=\"\",\"\",'1. Order'!N376)","v":""},{"$f":"IF('1. Order'!O376=\"\",\"\",'1. Order'!O376)","v":{"$error":"#N/A"}},{"$f":"IF('1. Order'!P376=\"\",\"\",'1. Order'!P376)","v":{"$error":"#N/A"}},{"$f":"IF('1. Order'!Q376=\"\",\"\",'1. Order'!Q376)","v":""},{"$f":"IF('1. Order'!S376=\"\",\"\",'1. Order'!S376)","v":""},{"$f":"IF('1. Order'!T376=\"\",\"\",'1. Order'!T376)","v":""},{"$f":"IF('1. Order'!W376=\"\",\"\",'1. Order'!W376)","v":""},{"$f":"IF('1. Order'!X376=\"\",\"\",'1. Order'!X376)","v":""},{"$f":"IF('1. Order'!Y376=\"\",\"\",'1. Order'!Y376)","v":"EUR"},{"$f":"IF('1. Order'!Z376=\"\",\"\",'1. Order'!Z376)","v":""},{"$f":"IF('1. Order'!AA376=\"\",\"\",'1. Order'!AA376)","v":""},{"$f":"IF('1. Order'!AB376=\"\",\"\",'1. Order'!AB376)","v":""},null,{"$f":"IF('1. Order'!AT376=\"\",\"\",'1. Order'!AT376)","v":""},{"$f":"IF('1. Order'!AU376=\"\",\"\",'1. Order'!AU376)","v":""},null,null,null,null,null,null,null,{"$f":"IF('1. Order'!AY376=\"\",\"\",'1. Order'!AY376)","v":""},{"$f":"IF('1. Order'!AZ376=\"\",\"\",'1. Order'!AZ376)","v":""},{"$f":"IF('1. Order'!BA376=\"\",\"\",'1. Order'!BA376)","v":""},{"$f":"IF('1. Order'!BB376=\"\",\"\",'1. Order'!BB376)","v":""},{"$f":"IF('1. Order'!BD376=\"\",\"\",'1. Order'!BD376)","v":""},{"$f":"IF('1. Order'!BE376=\"\",\"\",'1. Order'!BE376)","v":""},{"$f":"IF('1. Order'!BF376=\"\",\"\",'1. Order'!BF376)","v":""},{"$f":"IF('1. Order'!BG376=\"\",\"\",'1. Order'!BG376)","v":""},{"$f":"IF('1. Order'!BH376=\"\",\"\",'1. Order'!BH376)","v":"ZWO"}]
[{"$f":"IF('1. Order'!F377=\"\",\"\",'1. Order'!F377)","v":{"$error":"#N/A"}},{"$f":"IF('1. Order'!G377=\"\",\"\",'1. Order'!G377)","v":""},{"$f":"IF('1. Order'!H377=\"\",\"\",'1. Order'!H377)","v":""},{"$f":"IF('1. Order'!I377=\"\",\"\",'1. Order'!I377)","v":""},{"$f":"IF('1. Order'!J377=\"\",\"\",'1. Order'!J377)","v":""},{"$f":"IF('1. Order'!K377=\"\",\"\",'1. Order'!K377)","v":""},{"$f":"IF('1. Order'!L377=\"\",\"\",'1. Order'!L377)","v":""},{"$f":"IF('1. Order'!M377=\"\",\"\",'1. Order'!M377)","v":""},{"$f":"IF('1. Order'!N377=\"\",\"\",'1. Order'!N377)","v":""},{"$f":"IF('1. Order'!O377=\"\",\"\",'1. Order'!O377)","v":{"$error":"#N/A"}},{"$f":"IF('1. Order'!P377=\"\",\"\",'1. Order'!P377)","v":{"$error":"#N/A"}},{"$f":"IF('1. Order'!Q377=\"\",\"\",'1. Order'!Q377)","v":""},{"$f":"IF('1. Order'!S377=\"\",\"\",'1. Order'!S377)","v":""},{"$f":"IF('1. Order'!T377=\"\",\"\",'1. Order'!T377)","v":""},{"$f":"IF('1. Order'!W377=\"\",\"\",'1. Order'!W377)","v":""},{"$f":"IF('1. Order'!X377=\"\",\"\",'1. Order'!X377)","v":""},{"$f":"IF('1. Order'!Y377=\"\",\"\",'1. Order'!Y377)","v":"EUR"},{"$f":"IF('1. Order'!Z377=\"\",\"\",'1. Order'!Z377)","v":""},{"$f":"IF('1. Order'!AA377=\"\",\"\",'1. Order'!AA377)","v":""},{"$f":"IF('1. Order'!AB377=\"\",\"\",'1. Order'!AB377)","v":""},null,{"$f":"IF('1. Order'!AT377=\"\",\"\",'1. Order'!AT377)","v":""},{"$f":"IF('1. Order'!AU377=\"\",\"\",'1. Order'!AU377)","v":""},null,null,null,null,null,null,null,{"$f":"IF('1. Order'!AY377=\"\",\"\",'1. Order'!AY377)","v":""},{"$f":"IF('1. Order'!AZ377=\"\",\"\",'1. Order'!AZ377)","v":""},{"$f":"IF('1. Order'!BA377=\"\",\"\",'1. Order'!BA377)","v":""},{"$f":"IF('1. Order'!BB377=\"\",\"\",'1. Order'!BB377)","v":""},{"$f":"IF('1. Order'!BD377=\"\",\"\",'1. Order'!BD377)","v":""},{"$f":"IF('1. Order'!BE377=\"\",\"\",'1. Order'!BE377)","v":""},{"$f":"IF('1. Order'!BF377=\"\",\"\",'1. Order'!BF377)","v":""},{"$f":"IF('1. Order'!BG377=\"\",\"\",'1. Order'!BG377)","v":""},{"$f":"IF('1. Order'!BH377=\"\",\"\",'1. Order'!BH377)","v":"ZWO"}]
[{"$f":"IF('1. Order'!F378=\"\",\"\",'1. Order'!F378)","v":{"$error":"#N/A"}},{"$f":"IF('1. Order'!G378=\"\",\"\",'1. Order'!G378)","v":""},{"$f":"IF('1. Order'!H378=\"\",\"\",'1. Order'!H378)","v":""},{"$f":"IF('1. Order'!I378=\"\",\"\",'1. Order'!I378)","v":""},{"$f":"IF('1. Order'!J378=\"\",\"\",'1. Order'!J378)","v":""},{"$f":"IF('1. Order'!K378=\"\",\"\",'1. Order'!K378)","v":""},{"$f":"IF('1. Order'!L378=\"\",\"\",'1. Order'!L378)","v":""},{"$f":"IF('1. Order'!M378=\"\",\"\",'1. Order'!M378)","v":""},{"$f":"IF('1. Order'!N378=\"\",\"\",'1. Order'!N378)","v":""},{"$f":"IF('1. Order'!O378=\"\",\"\",'1. Order'!O378)","v":{"$error":"#N/A"}},{"$f":"IF('1. Order'!P378=\"\",\"\",'1. Order'!P378)","v":{"$error":"#N/A"}},{"$f":"IF('1. Order'!Q378=\"\",\"\",'1. Order'!Q378)","v":""},{"$f":"IF('1. Order'!S378=\"\",\"\",'1. Order'!S378)","v":""},{"$f":"IF('1. Order'!T378=\"\",\"\",'1. Order'!T378)","v":""},{"$f":"IF('1. Order'!W378=\"\",\"\",'1. Order'!W378)","v":""},{"$f":"IF('1. Order'!X378=\"\",\"\",'1. Order'!X378)","v":""},{"$f":"IF('1. Order'!Y378=\"\",\"\",'1. Order'!Y378)","v":"EUR"},{"$f":"IF('1. Order'!Z378=\"\",\"\",'1. Order'!Z378)","v":""},{"$f":"IF('1. Order'!AA378=\"\",\"\",'1. Order'!AA378)","v":""},{"$f":"IF('1. Order'!AB378=\"\",\"\",'1. Order'!AB378)","v":""},null,{"$f":"IF('1. Order'!AT378=\"\",\"\",'1. Order'!AT378)","v":""},{"$f":"IF('1. Order'!AU378=\"\",\"\",'1. Order'!AU378)","v":""},null,null,null,null,null,null,null,{"$f":"IF('1. Order'!AY378=\"\",\"\",'1. Order'!AY378)","v":""},{"$f":"IF('1. Order'!AZ378=\"\",\"\",'1. Order'!AZ378)","v":""},{"$f":"IF('1. Order'!BA378=\"\",\"\",'1. Order'!BA378)","v":""},{"$f":"IF('1. Order'!BB378=\"\",\"\",'1. Order'!BB378)","v":""},{"$f":"IF('1. Order'!BD378=\"\",\"\",'1. Order'!BD378)","v":""},{"$f":"IF('1. Order'!BE378=\"\",\"\",'1. Order'!BE378)","v":""},{"$f":"IF('1. Order'!BF378=\"\",\"\",'1. Order'!BF378)","v":""},{"$f":"IF('1. Order'!BG378=\"\",\"\",'1. Order'!BG378)","v":""},{"$f":"IF('1. Order'!BH378=\"\",\"\",'1. Order'!BH378)","v":"ZWO"}]
[{"$f":"IF('1. Order'!F379=\"\",\"\",'1. Order'!F379)","v":{"$error":"#N/A"}},{"$f":"IF('1. Order'!G379=\"\",\"\",'1. Order'!G379)","v":""},{"$f":"IF('1. Order'!H379=\"\",\"\",'1. Order'!H379)","v":""},{"$f":"IF('1. Order'!I379=\"\",\"\",'1. Order'!I379)","v":""},{"$f":"IF('1. Order'!J379=\"\",\"\",'1. Order'!J379)","v":""},{"$f":"IF('1. Order'!K379=\"\",\"\",'1. Order'!K379)","v":""},{"$f":"IF('1. Order'!L379=\"\",\"\",'1. Order'!L379)","v":""},{"$f":"IF('1. Order'!M379=\"\",\"\",'1. Order'!M379)","v":""},{"$f":"IF('1. Order'!N379=\"\",\"\",'1. Order'!N379)","v":""},{"$f":"IF('1. Order'!O379=\"\",\"\",'1. Order'!O379)","v":{"$error":"#N/A"}},{"$f":"IF('1. Order'!P379=\"\",\"\",'1. Order'!P379)","v":{"$error":"#N/A"}},{"$f":"IF('1. Order'!Q379=\"\",\"\",'1. Order'!Q379)","v":""},{"$f":"IF('1. Order'!S379=\"\",\"\",'1. Order'!S379)","v":""},{"$f":"IF('1. Order'!T379=\"\",\"\",'1. Order'!T379)","v":""},{"$f":"IF('1. Order'!W379=\"\",\"\",'1. Order'!W379)","v":""},{"$f":"IF('1. Order'!X379=\"\",\"\",'1. Order'!X379)","v":""},{"$f":"IF('1. Order'!Y379=\"\",\"\",'1. Order'!Y379)","v":"EUR"},{"$f":"IF('1. Order'!Z379=\"\",\"\",'1. Order'!Z379)","v":""},{"$f":"IF('1. Order'!AA379=\"\",\"\",'1. Order'!AA379)","v":""},{"$f":"IF('1. Order'!AB379=\"\",\"\",'1. Order'!AB379)","v":""},null,{"$f":"IF('1. Order'!AT379=\"\",\"\",'1. Order'!AT379)","v":""},{"$f":"IF('1. Order'!AU379=\"\",\"\",'1. Order'!AU379)","v":""},null,null,null,null,null,null,null,{"$f":"IF('1. Order'!AY379=\"\",\"\",'1. Order'!AY379)","v":""},{"$f":"IF('1. Order'!AZ379=\"\",\"\",'1. Order'!AZ379)","v":""},{"$f":"IF('1. Order'!BA379=\"\",\"\",'1. Order'!BA379)","v":""},{"$f":"IF('1. Order'!BB379=\"\",\"\",'1. Order'!BB379)","v":""},{"$f":"IF('1. Order'!BD379=\"\",\"\",'1. Order'!BD379)","v":""},{"$f":"IF('1. Order'!BE379=\"\",\"\",'1. Order'!BE379)","v":""},{"$f":"IF('1. Order'!BF379=\"\",\"\",'1. Order'!BF379)","v":""},{"$f":"IF('1. Order'!BG379=\"\",\"\",'1. Order'!BG379)","v":""},{"$f":"IF('1. Order'!BH379=\"\",\"\",'1. Order'!BH379)","v":"ZWO"}]
[{"$f":"IF('1. Order'!F380=\"\",\"\",'1. Order'!F380)","v":{"$error":"#N/A"}},{"$f":"IF('1. Order'!G380=\"\",\"\",'1. Order'!G380)","v":""},{"$f":"IF('1. Order'!H380=\"\",\"\",'1. Order'!H380)","v":""},{"$f":"IF('1. Order'!I380=\"\",\"\",'1. Order'!I380)","v":""},{"$f":"IF('1. Order'!J380=\"\",\"\",'1. Order'!J380)","v":""},{"$f":"IF('1. Order'!K380=\"\",\"\",'1. Order'!K380)","v":""},{"$f":"IF('1. Order'!L380=\"\",\"\",'1. Order'!L380)","v":""},{"$f":"IF('1. Order'!M380=\"\",\"\",'1. Order'!M380)","v":""},{"$f":"IF('1. Order'!N380=\"\",\"\",'1. Order'!N380)","v":""},{"$f":"IF('1. Order'!O380=\"\",\"\",'1. Order'!O380)","v":{"$error":"#N/A"}},{"$f":"IF('1. Order'!P380=\"\",\"\",'1. Order'!P380)","v":{"$error":"#N/A"}},{"$f":"IF('1. Order'!Q380=\"\",\"\",'1. Order'!Q380)","v":""},{"$f":"IF('1. Order'!S380=\"\",\"\",'1. Order'!S380)","v":""},{"$f":"IF('1. Order'!T380=\"\",\"\",'1. Order'!T380)","v":""},{"$f":"IF('1. Order'!W380=\"\",\"\",'1. Order'!W380)","v":""},{"$f":"IF('1. Order'!X380=\"\",\"\",'1. Order'!X380)","v":""},{"$f":"IF('1. Order'!Y380=\"\",\"\",'1. Order'!Y380)","v":"EUR"},{"$f":"IF('1. Order'!Z380=\"\",\"\",'1. Order'!Z380)","v":""},{"$f":"IF('1. Order'!AA380=\"\",\"\",'1. Order'!AA380)","v":""},{"$f":"IF('1. Order'!AB380=\"\",\"\",'1. Order'!AB380)","v":""},null,{"$f":"IF('1. Order'!AT380=\"\",\"\",'1. Order'!AT380)","v":""},{"$f":"IF('1. Order'!AU380=\"\",\"\",'1. Order'!AU380)","v":""},null,null,null,null,null,null,null,{"$f":"IF('1. Order'!AY380=\"\",\"\",'1. Order'!AY380)","v":""},{"$f":"IF('1. Order'!AZ380=\"\",\"\",'1. Order'!AZ380)","v":""},{"$f":"IF('1. Order'!BA380=\"\",\"\",'1. Order'!BA380)","v":""},{"$f":"IF('1. Order'!BB380=\"\",\"\",'1. Order'!BB380)","v":""},{"$f":"IF('1. Order'!BD380=\"\",\"\",'1. Order'!BD380)","v":""},{"$f":"IF('1. Order'!BE380=\"\",\"\",'1. Order'!BE380)","v":""},{"$f":"IF('1. Order'!BF380=\"\",\"\",'1. Order'!BF380)","v":""},{"$f":"IF('1. Order'!BG380=\"\",\"\",'1. Order'!BG380)","v":""},{"$f":"IF('1. Order'!BH380=\"\",\"\",'1. Order'!BH380)","v":"ZWO"}]
[{"$f":"IF('1. Order'!F381=\"\",\"\",'1. Order'!F381)","v":{"$error":"#N/A"}},{"$f":"IF('1. Order'!G381=\"\",\"\",'1. Order'!G381)","v":""},{"$f":"IF('1. Order'!H381=\"\",\"\",'1. Order'!H381)","v":""},{"$f":"IF('1. Order'!I381=\"\",\"\",'1. Order'!I381)","v":""},{"$f":"IF('1. Order'!J381=\"\",\"\",'1. Order'!J381)","v":""},{"$f":"IF('1. Order'!K381=\"\",\"\",'1. Order'!K381)","v":""},{"$f":"IF('1. Order'!L381=\"\",\"\",'1. Order'!L381)","v":""},{"$f":"IF('1. Order'!M381=\"\",\"\",'1. Order'!M381)","v":""},{"$f":"IF('1. Order'!N381=\"\",\"\",'1. Order'!N381)","v":""},{"$f":"IF('1. Order'!O381=\"\",\"\",'1. Order'!O381)","v":{"$error":"#N/A"}},{"$f":"IF('1. Order'!P381=\"\",\"\",'1. Order'!P381)","v":{"$error":"#N/A"}},{"$f":"IF('1. Order'!Q381=\"\",\"\",'1. Order'!Q381)","v":""},{"$f":"IF('1. Order'!S381=\"\",\"\",'1. Order'!S381)","v":""},{"$f":"IF('1. Order'!T381=\"\",\"\",'1. Order'!T381)","v":""},{"$f":"IF('1. Order'!W381=\"\",\"\",'1. Order'!W381)","v":""},{"$f":"IF('1. Order'!X381=\"\",\"\",'1. Order'!X381)","v":""},{"$f":"IF('1. Order'!Y381=\"\",\"\",'1. Order'!Y381)","v":"EUR"},{"$f":"IF('1. Order'!Z381=\"\",\"\",'1. Order'!Z381)","v":""},{"$f":"IF('1. Order'!AA381=\"\",\"\",'1. Order'!AA381)","v":""},{"$f":"IF('1. Order'!AB381=\"\",\"\",'1. Order'!AB381)","v":""},null,{"$f":"IF('1. Order'!AT381=\"\",\"\",'1. Order'!AT381)","v":""},{"$f":"IF('1. Order'!AU381=\"\",\"\",'1. Order'!AU381)","v":""},null,null,null,null,null,null,null,{"$f":"IF('1. Order'!AY381=\"\",\"\",'1. Order'!AY381)","v":""},{"$f":"IF('1. Order'!AZ381=\"\",\"\",'1. Order'!AZ381)","v":""},{"$f":"IF('1. Order'!BA381=\"\",\"\",'1. Order'!BA381)","v":""},{"$f":"IF('1. Order'!BB381=\"\",\"\",'1. Order'!BB381)","v":""},{"$f":"IF('1. Order'!BD381=\"\",\"\",'1. Order'!BD381)","v":""},{"$f":"IF('1. Order'!BE381=\"\",\"\",'1. Order'!BE381)","v":""},{"$f":"IF('1. Order'!BF381=\"\",\"\",'1. Order'!BF381)","v":""},{"$f":"IF('1. Order'!BG381=\"\",\"\",'1. Order'!BG381)","v":""},{"$f":"IF('1. Order'!BH381=\"\",\"\",'1. Order'!BH381)","v":"ZWO"}]
[{"$f":"IF('1. Order'!F382=\"\",\"\",'1. Order'!F382)","v":{"$error":"#N/A"}},{"$f":"IF('1. Order'!G382=\"\",\"\",'1. Order'!G382)","v":""},{"$f":"IF('1. Order'!H382=\"\",\"\",'1. Order'!H382)","v":""},{"$f":"IF('1. Order'!I382=\"\",\"\",'1. Order'!I382)","v":""},{"$f":"IF('1. Order'!J382=\"\",\"\",'1. Order'!J382)","v":""},{"$f":"IF('1. Order'!K382=\"\",\"\",'1. Order'!K382)","v":""},{"$f":"IF('1. Order'!L382=\"\",\"\",'1. Order'!L382)","v":""},{"$f":"IF('1. Order'!M382=\"\",\"\",'1. Order'!M382)","v":""},{"$f":"IF('1. Order'!N382=\"\",\"\",'1. Order'!N382)","v":""},{"$f":"IF('1. Order'!O382=\"\",\"\",'1. Order'!O382)","v":{"$error":"#N/A"}},{"$f":"IF('1. Order'!P382=\"\",\"\",'1. Order'!P382)","v":{"$error":"#N/A"}},{"$f":"IF('1. Order'!Q382=\"\",\"\",'1. Order'!Q382)","v":""},{"$f":"IF('1. Order'!S382=\"\",\"\",'1. Order'!S382)","v":""},{"$f":"IF('1. Order'!T382=\"\",\"\",'1. Order'!T382)","v":""},{"$f":"IF('1. Order'!W382=\"\",\"\",'1. Order'!W382)","v":""},{"$f":"IF('1. Order'!X382=\"\",\"\",'1. Order'!X382)","v":""},{"$f":"IF('1. Order'!Y382=\"\",\"\",'1. Order'!Y382)","v":"EUR"},{"$f":"IF('1. Order'!Z382=\"\",\"\",'1. Order'!Z382)","v":""},{"$f":"IF('1. Order'!AA382=\"\",\"\",'1. Order'!AA382)","v":""},{"$f":"IF('1. Order'!AB382=\"\",\"\",'1. Order'!AB382)","v":""},null,{"$f":"IF('1. Order'!AT382=\"\",\"\",'1. Order'!AT382)","v":""},{"$f":"IF('1. Order'!AU382=\"\",\"\",'1. Order'!AU382)","v":""},null,null,null,null,null,null,null,{"$f":"IF('1. Order'!AY382=\"\",\"\",'1. Order'!AY382)","v":""},{"$f":"IF('1. Order'!AZ382=\"\",\"\",'1. Order'!AZ382)","v":""},{"$f":"IF('1. Order'!BA382=\"\",\"\",'1. Order'!BA382)","v":""},{"$f":"IF('1. Order'!BB382=\"\",\"\",'1. Order'!BB382)","v":""},{"$f":"IF('1. Order'!BD382=\"\",\"\",'1. Order'!BD382)","v":""},{"$f":"IF('1. Order'!BE382=\"\",\"\",'1. Order'!BE382)","v":""},{"$f":"IF('1. Order'!BF382=\"\",\"\",'1. Order'!BF382)","v":""},{"$f":"IF('1. Order'!BG382=\"\",\"\",'1. Order'!BG382)","v":""},{"$f":"IF('1. Order'!BH382=\"\",\"\",'1. Order'!BH382)","v":"ZWO"}]
[{"$f":"IF('1. Order'!F383=\"\",\"\",'1. Order'!F383)","v":{"$error":"#N/A"}},{"$f":"IF('1. Order'!G383=\"\",\"\",'1. Order'!G383)","v":""},{"$f":"IF('1. Order'!H383=\"\",\"\",'1. Order'!H383)","v":""},{"$f":"IF('1. Order'!I383=\"\",\"\",'1. Order'!I383)","v":""},{"$f":"IF('1. Order'!J383=\"\",\"\",'1. Order'!J383)","v":""},{"$f":"IF('1. Order'!K383=\"\",\"\",'1. Order'!K383)","v":""},{"$f":"IF('1. Order'!L383=\"\",\"\",'1. Order'!L383)","v":""},{"$f":"IF('1. Order'!M383=\"\",\"\",'1. Order'!M383)","v":""},{"$f":"IF('1. Order'!N383=\"\",\"\",'1. Order'!N383)","v":""},{"$f":"IF('1. Order'!O383=\"\",\"\",'1. Order'!O383)","v":{"$error":"#N/A"}},{"$f":"IF('1. Order'!P383=\"\",\"\",'1. Order'!P383)","v":{"$error":"#N/A"}},{"$f":"IF('1. Order'!Q383=\"\",\"\",'1. Order'!Q383)","v":""},{"$f":"IF('1. Order'!S383=\"\",\"\",'1. Order'!S383)","v":""},{"$f":"IF('1. Order'!T383=\"\",\"\",'1. Order'!T383)","v":""},{"$f":"IF('1. Order'!W383=\"\",\"\",'1. Order'!W383)","v":""},{"$f":"IF('1. Order'!X383=\"\",\"\",'1. Order'!X383)","v":""},{"$f":"IF('1. Order'!Y383=\"\",\"\",'1. Order'!Y383)","v":"EUR"},{"$f":"IF('1. Order'!Z383=\"\",\"\",'1. Order'!Z383)","v":""},{"$f":"IF('1. Order'!AA383=\"\",\"\",'1. Order'!AA383)","v":""},{"$f":"IF('1. Order'!AB383=\"\",\"\",'1. Order'!AB383)","v":""},null,{"$f":"IF('1. Order'!AT383=\"\",\"\",'1. Order'!AT383)","v":""},{"$f":"IF('1. Order'!AU383=\"\",\"\",'1. Order'!AU383)","v":""},null,null,null,null,null,null,null,{"$f":"IF('1. Order'!AY383=\"\",\"\",'1. Order'!AY383)","v":""},{"$f":"IF('1. Order'!AZ383=\"\",\"\",'1. Order'!AZ383)","v":""},{"$f":"IF('1. Order'!BA383=\"\",\"\",'1. Order'!BA383)","v":""},{"$f":"IF('1. Order'!BB383=\"\",\"\",'1. Order'!BB383)","v":""},{"$f":"IF('1. Order'!BD383=\"\",\"\",'1. Order'!BD383)","v":""},{"$f":"IF('1. Order'!BE383=\"\",\"\",'1. Order'!BE383)","v":""},{"$f":"IF('1. Order'!BF383=\"\",\"\",'1. Order'!BF383)","v":""},{"$f":"IF('1. Order'!BG383=\"\",\"\",'1. Order'!BG383)","v":""},{"$f":"IF('1. Order'!BH383=\"\",\"\",'1. Order'!BH383)","v":"ZWO"}]
[{"$f":"IF('1. Order'!F384=\"\",\"\",'1. Order'!F384)","v":{"$error":"#N/A"}},{"$f":"IF('1. Order'!G384=\"\",\"\",'1. Order'!G384)","v":""},{"$f":"IF('1. Order'!H384=\"\",\"\",'1. Order'!H384)","v":""},{"$f":"IF('1. Order'!I384=\"\",\"\",'1. Order'!I384)","v":""},{"$f":"IF('1. Order'!J384=\"\",\"\",'1. Order'!J384)","v":""},{"$f":"IF('1. Order'!K384=\"\",\"\",'1. Order'!K384)","v":""},{"$f":"IF('1. Order'!L384=\"\",\"\",'1. Order'!L384)","v":""},{"$f":"IF('1. Order'!M384=\"\",\"\",'1. Order'!M384)","v":""},{"$f":"IF('1. Order'!N384=\"\",\"\",'1. Order'!N384)","v":""},{"$f":"IF('1. Order'!O384=\"\",\"\",'1. Order'!O384)","v":{"$error":"#N/A"}},{"$f":"IF('1. Order'!P384=\"\",\"\",'1. Order'!P384)","v":{"$error":"#N/A"}},{"$f":"IF('1. Order'!Q384=\"\",\"\",'1. Order'!Q384)","v":""},{"$f":"IF('1. Order'!S384=\"\",\"\",'1. Order'!S384)","v":""},{"$f":"IF('1. Order'!T384=\"\",\"\",'1. Order'!T384)","v":""},{"$f":"IF('1. Order'!W384=\"\",\"\",'1. Order'!W384)","v":""},{"$f":"IF('1. Order'!X384=\"\",\"\",'1. Order'!X384)","v":""},{"$f":"IF('1. Order'!Y384=\"\",\"\",'1. Order'!Y384)","v":"EUR"},{"$f":"IF('1. Order'!Z384=\"\",\"\",'1. Order'!Z384)","v":""},{"$f":"IF('1. Order'!AA384=\"\",\"\",'1. Order'!AA384)","v":""},{"$f":"IF('1. Order'!AB384=\"\",\"\",'1. Order'!AB384)","v":""},null,{"$f":"IF('1. Order'!AT384=\"\",\"\",'1. Order'!AT384)","v":""},{"$f":"IF('1. Order'!AU384=\"\",\"\",'1. Order'!AU384)","v":""},null,null,null,null,null,null,null,{"$f":"IF('1. Order'!AY384=\"\",\"\",'1. Order'!AY384)","v":""},{"$f":"IF('1. Order'!AZ384=\"\",\"\",'1. Order'!AZ384)","v":""},{"$f":"IF('1. Order'!BA384=\"\",\"\",'1. Order'!BA384)","v":""},{"$f":"IF('1. Order'!BB384=\"\",\"\",'1. Order'!BB384)","v":""},{"$f":"IF('1. Order'!BD384=\"\",\"\",'1. Order'!BD384)","v":""},{"$f":"IF('1. Order'!BE384=\"\",\"\",'1. Order'!BE384)","v":""},{"$f":"IF('1. Order'!BF384=\"\",\"\",'1. Order'!BF384)","v":""},{"$f":"IF('1. Order'!BG384=\"\",\"\",'1. Order'!BG384)","v":""},{"$f":"IF('1. Order'!BH384=\"\",\"\",'1. Order'!BH384)","v":"ZWO"}]
[{"$f":"IF('1. Order'!F385=\"\",\"\",'1. Order'!F385)","v":{"$error":"#N/A"}},{"$f":"IF('1. Order'!G385=\"\",\"\",'1. Order'!G385)","v":""},{"$f":"IF('1. Order'!H385=\"\",\"\",'1. Order'!H385)","v":""},{"$f":"IF('1. Order'!I385=\"\",\"\",'1. Order'!I385)","v":""},{"$f":"IF('1. Order'!J385=\"\",\"\",'1. Order'!J385)","v":""},{"$f":"IF('1. Order'!K385=\"\",\"\",'1. Order'!K385)","v":""},{"$f":"IF('1. Order'!L385=\"\",\"\",'1. Order'!L385)","v":""},{"$f":"IF('1. Order'!M385=\"\",\"\",'1. Order'!M385)","v":""},{"$f":"IF('1. Order'!N385=\"\",\"\",'1. Order'!N385)","v":""},{"$f":"IF('1. Order'!O385=\"\",\"\",'1. Order'!O385)","v":{"$error":"#N/A"}},{"$f":"IF('1. Order'!P385=\"\",\"\",'1. Order'!P385)","v":{"$error":"#N/A"}},{"$f":"IF('1. Order'!Q385=\"\",\"\",'1. Order'!Q385)","v":""},{"$f":"IF('1. Order'!S385=\"\",\"\",'1. Order'!S385)","v":""},{"$f":"IF('1. Order'!T385=\"\",\"\",'1. Order'!T385)","v":""},{"$f":"IF('1. Order'!W385=\"\",\"\",'1. Order'!W385)","v":""},{"$f":"IF('1. Order'!X385=\"\",\"\",'1. Order'!X385)","v":""},{"$f":"IF('1. Order'!Y385=\"\",\"\",'1. Order'!Y385)","v":"EUR"},{"$f":"IF('1. Order'!Z385=\"\",\"\",'1. Order'!Z385)","v":""},{"$f":"IF('1. Order'!AA385=\"\",\"\",'1. Order'!AA385)","v":""},{"$f":"IF('1. Order'!AB385=\"\",\"\",'1. Order'!AB385)","v":""},null,{"$f":"IF('1. Order'!AT385=\"\",\"\",'1. Order'!AT385)","v":""},{"$f":"IF('1. Order'!AU385=\"\",\"\",'1. Order'!AU385)","v":""},null,null,null,null,null,null,null,{"$f":"IF('1. Order'!AY385=\"\",\"\",'1. Order'!AY385)","v":""},{"$f":"IF('1. Order'!AZ385=\"\",\"\",'1. Order'!AZ385)","v":""},{"$f":"IF('1. Order'!BA385=\"\",\"\",'1. Order'!BA385)","v":""},{"$f":"IF('1. Order'!BB385=\"\",\"\",'1. Order'!BB385)","v":""},{"$f":"IF('1. Order'!BD385=\"\",\"\",'1. Order'!BD385)","v":""},{"$f":"IF('1. Order'!BE385=\"\",\"\",'1. Order'!BE385)","v":""},{"$f":"IF('1. Order'!BF385=\"\",\"\",'1. Order'!BF385)","v":""},{"$f":"IF('1. Order'!BG385=\"\",\"\",'1. Order'!BG385)","v":""},{"$f":"IF('1. Order'!BH385=\"\",\"\",'1. Order'!BH385)","v":"ZWO"}]
[{"$f":"IF('1. Order'!F386=\"\",\"\",'1. Order'!F386)","v":{"$error":"#N/A"}},{"$f":"IF('1. Order'!G386=\"\",\"\",'1. Order'!G386)","v":""},{"$f":"IF('1. Order'!H386=\"\",\"\",'1. Order'!H386)","v":""},{"$f":"IF('1. Order'!I386=\"\",\"\",'1. Order'!I386)","v":""},{"$f":"IF('1. Order'!J386=\"\",\"\",'1. Order'!J386)","v":""},{"$f":"IF('1. Order'!K386=\"\",\"\",'1. Order'!K386)","v":""},{"$f":"IF('1. Order'!L386=\"\",\"\",'1. Order'!L386)","v":""},{"$f":"IF('1. Order'!M386=\"\",\"\",'1. Order'!M386)","v":""},{"$f":"IF('1. Order'!N386=\"\",\"\",'1. Order'!N386)","v":""},{"$f":"IF('1. Order'!O386=\"\",\"\",'1. Order'!O386)","v":{"$error":"#N/A"}},{"$f":"IF('1. Order'!P386=\"\",\"\",'1. Order'!P386)","v":{"$error":"#N/A"}},{"$f":"IF('1. Order'!Q386=\"\",\"\",'1. Order'!Q386)","v":""},{"$f":"IF('1. Order'!S386=\"\",\"\",'1. Order'!S386)","v":""},{"$f":"IF('1. Order'!T386=\"\",\"\",'1. Order'!T386)","v":""},{"$f":"IF('1. Order'!W386=\"\",\"\",'1. Order'!W386)","v":""},{"$f":"IF('1. Order'!X386=\"\",\"\",'1. Order'!X386)","v":""},{"$f":"IF('1. Order'!Y386=\"\",\"\",'1. Order'!Y386)","v":"EUR"},{"$f":"IF('1. Order'!Z386=\"\",\"\",'1. Order'!Z386)","v":""},{"$f":"IF('1. Order'!AA386=\"\",\"\",'1. Order'!AA386)","v":""},{"$f":"IF('1. Order'!AB386=\"\",\"\",'1. Order'!AB386)","v":""},null,{"$f":"IF('1. Order'!AT386=\"\",\"\",'1. Order'!AT386)","v":""},{"$f":"IF('1. Order'!AU386=\"\",\"\",'1. Order'!AU386)","v":""},null,null,null,null,null,null,null,{"$f":"IF('1. Order'!AY386=\"\",\"\",'1. Order'!AY386)","v":""},{"$f":"IF('1. Order'!AZ386=\"\",\"\",'1. Order'!AZ386)","v":""},{"$f":"IF('1. Order'!BA386=\"\",\"\",'1. Order'!BA386)","v":""},{"$f":"IF('1. Order'!BB386=\"\",\"\",'1. Order'!BB386)","v":""},{"$f":"IF('1. Order'!BD386=\"\",\"\",'1. Order'!BD386)","v":""},{"$f":"IF('1. Order'!BE386=\"\",\"\",'1. Order'!BE386)","v":""},{"$f":"IF('1. Order'!BF386=\"\",\"\",'1. Order'!BF386)","v":""},{"$f":"IF('1. Order'!BG386=\"\",\"\",'1. Order'!BG386)","v":""},{"$f":"IF('1. Order'!BH386=\"\",\"\",'1. Order'!BH386)","v":"ZWO"}]
[{"$f":"IF('1. Order'!F387=\"\",\"\",'1. Order'!F387)","v":{"$error":"#N/A"}},{"$f":"IF('1. Order'!G387=\"\",\"\",'1. Order'!G387)","v":""},{"$f":"IF('1. Order'!H387=\"\",\"\",'1. Order'!H387)","v":""},{"$f":"IF('1. Order'!I387=\"\",\"\",'1. Order'!I387)","v":""},{"$f":"IF('1. Order'!J387=\"\",\"\",'1. Order'!J387)","v":""},{"$f":"IF('1. Order'!K387=\"\",\"\",'1. Order'!K387)","v":""},{"$f":"IF('1. Order'!L387=\"\",\"\",'1. Order'!L387)","v":""},{"$f":"IF('1. Order'!M387=\"\",\"\",'1. Order'!M387)","v":""},{"$f":"IF('1. Order'!N387=\"\",\"\",'1. Order'!N387)","v":""},{"$f":"IF('1. Order'!O387=\"\",\"\",'1. Order'!O387)","v":{"$error":"#N/A"}},{"$f":"IF('1. Order'!P387=\"\",\"\",'1. Order'!P387)","v":{"$error":"#N/A"}},{"$f":"IF('1. Order'!Q387=\"\",\"\",'1. Order'!Q387)","v":""},{"$f":"IF('1. Order'!S387=\"\",\"\",'1. Order'!S387)","v":""},{"$f":"IF('1. Order'!T387=\"\",\"\",'1. Order'!T387)","v":""},{"$f":"IF('1. Order'!W387=\"\",\"\",'1. Order'!W387)","v":""},{"$f":"IF('1. Order'!X387=\"\",\"\",'1. Order'!X387)","v":""},{"$f":"IF('1. Order'!Y387=\"\",\"\",'1. Order'!Y387)","v":"EUR"},{"$f":"IF('1. Order'!Z387=\"\",\"\",'1. Order'!Z387)","v":""},{"$f":"IF('1. Order'!AA387=\"\",\"\",'1. Order'!AA387)","v":""},{"$f":"IF('1. Order'!AB387=\"\",\"\",'1. Order'!AB387)","v":""},null,{"$f":"IF('1. Order'!AT387=\"\",\"\",'1. Order'!AT387)","v":""},{"$f":"IF('1. Order'!AU387=\"\",\"\",'1. Order'!AU387)","v":""},null,null,null,null,null,null,null,{"$f":"IF('1. Order'!AY387=\"\",\"\",'1. Order'!AY387)","v":""},{"$f":"IF('1. Order'!AZ387=\"\",\"\",'1. Order'!AZ387)","v":""},{"$f":"IF('1. Order'!BA387=\"\",\"\",'1. Order'!BA387)","v":""},{"$f":"IF('1. Order'!BB387=\"\",\"\",'1. Order'!BB387)","v":""},{"$f":"IF('1. Order'!BD387=\"\",\"\",'1. Order'!BD387)","v":""},{"$f":"IF('1. Order'!BE387=\"\",\"\",'1. Order'!BE387)","v":""},{"$f":"IF('1. Order'!BF387=\"\",\"\",'1. Order'!BF387)","v":""},{"$f":"IF('1. Order'!BG387=\"\",\"\",'1. Order'!BG387)","v":""},{"$f":"IF('1. Order'!BH387=\"\",\"\",'1. Order'!BH387)","v":"ZWO"}]
[{"$f":"IF('1. Order'!F388=\"\",\"\",'1. Order'!F388)","v":{"$error":"#N/A"}},{"$f":"IF('1. Order'!G388=\"\",\"\",'1. Order'!G388)","v":""},{"$f":"IF('1. Order'!H388=\"\",\"\",'1. Order'!H388)","v":""},{"$f":"IF('1. Order'!I388=\"\",\"\",'1. Order'!I388)","v":""},{"$f":"IF('1. Order'!J388=\"\",\"\",'1. Order'!J388)","v":""},{"$f":"IF('1. Order'!K388=\"\",\"\",'1. Order'!K388)","v":""},{"$f":"IF('1. Order'!L388=\"\",\"\",'1. Order'!L388)","v":""},{"$f":"IF('1. Order'!M388=\"\",\"\",'1. Order'!M388)","v":""},{"$f":"IF('1. Order'!N388=\"\",\"\",'1. Order'!N388)","v":""},{"$f":"IF('1. Order'!O388=\"\",\"\",'1. Order'!O388)","v":{"$error":"#N/A"}},{"$f":"IF('1. Order'!P388=\"\",\"\",'1. Order'!P388)","v":{"$error":"#N/A"}},{"$f":"IF('1. Order'!Q388=\"\",\"\",'1. Order'!Q388)","v":""},{"$f":"IF('1. Order'!S388=\"\",\"\",'1. Order'!S388)","v":""},{"$f":"IF('1. Order'!T388=\"\",\"\",'1. Order'!T388)","v":""},{"$f":"IF('1. Order'!W388=\"\",\"\",'1. Order'!W388)","v":""},{"$f":"IF('1. Order'!X388=\"\",\"\",'1. Order'!X388)","v":""},{"$f":"IF('1. Order'!Y388=\"\",\"\",'1. Order'!Y388)","v":"EUR"},{"$f":"IF('1. Order'!Z388=\"\",\"\",'1. Order'!Z388)","v":""},{"$f":"IF('1. Order'!AA388=\"\",\"\",'1. Order'!AA388)","v":""},{"$f":"IF('1. Order'!AB388=\"\",\"\",'1. Order'!AB388)","v":""},null,{"$f":"IF('1. Order'!AT388=\"\",\"\",'1. Order'!AT388)","v":""},{"$f":"IF('1. Order'!AU388=\"\",\"\",'1. Order'!AU388)","v":""},null,null,null,null,null,null,null,{"$f":"IF('1. Order'!AY388=\"\",\"\",'1. Order'!AY388)","v":""},{"$f":"IF('1. Order'!AZ388=\"\",\"\",'1. Order'!AZ388)","v":""},{"$f":"IF('1. Order'!BA388=\"\",\"\",'1. Order'!BA388)","v":""},{"$f":"IF('1. Order'!BB388=\"\",\"\",'1. Order'!BB388)","v":""},{"$f":"IF('1. Order'!BD388=\"\",\"\",'1. Order'!BD388)","v":""},{"$f":"IF('1. Order'!BE388=\"\",\"\",'1. Order'!BE388)","v":""},{"$f":"IF('1. Order'!BF388=\"\",\"\",'1. Order'!BF388)","v":""},{"$f":"IF('1. Order'!BG388=\"\",\"\",'1. Order'!BG388)","v":""},{"$f":"IF('1. Order'!BH388=\"\",\"\",'1. Order'!BH388)","v":"ZWO"}]
[{"$f":"IF('1. Order'!F389=\"\",\"\",'1. Order'!F389)","v":{"$error":"#N/A"}},{"$f":"IF('1. Order'!G389=\"\",\"\",'1. Order'!G389)","v":""},{"$f":"IF('1. Order'!H389=\"\",\"\",'1. Order'!H389)","v":""},{"$f":"IF('1. Order'!I389=\"\",\"\",'1. Order'!I389)","v":""},{"$f":"IF('1. Order'!J389=\"\",\"\",'1. Order'!J389)","v":""},{"$f":"IF('1. Order'!K389=\"\",\"\",'1. Order'!K389)","v":""},{"$f":"IF('1. Order'!L389=\"\",\"\",'1. Order'!L389)","v":""},{"$f":"IF('1. Order'!M389=\"\",\"\",'1. Order'!M389)","v":""},{"$f":"IF('1. Order'!N389=\"\",\"\",'1. Order'!N389)","v":""},{"$f":"IF('1. Order'!O389=\"\",\"\",'1. Order'!O389)","v":{"$error":"#N/A"}},{"$f":"IF('1. Order'!P389=\"\",\"\",'1. Order'!P389)","v":{"$error":"#N/A"}},{"$f":"IF('1. Order'!Q389=\"\",\"\",'1. Order'!Q389)","v":""},{"$f":"IF('1. Order'!S389=\"\",\"\",'1. Order'!S389)","v":""},{"$f":"IF('1. Order'!T389=\"\",\"\",'1. Order'!T389)","v":""},{"$f":"IF('1. Order'!W389=\"\",\"\",'1. Order'!W389)","v":""},{"$f":"IF('1. Order'!X389=\"\",\"\",'1. Order'!X389)","v":""},{"$f":"IF('1. Order'!Y389=\"\",\"\",'1. Order'!Y389)","v":"EUR"},{"$f":"IF('1. Order'!Z389=\"\",\"\",'1. Order'!Z389)","v":""},{"$f":"IF('1. Order'!AA389=\"\",\"\",'1. Order'!AA389)","v":""},{"$f":"IF('1. Order'!AB389=\"\",\"\",'1. Order'!AB389)","v":""},null,{"$f":"IF('1. Order'!AT389=\"\",\"\",'1. Order'!AT389)","v":""},{"$f":"IF('1. Order'!AU389=\"\",\"\",'1. Order'!AU389)","v":""},null,null,null,null,null,null,null,{"$f":"IF('1. Order'!AY389=\"\",\"\",'1. Order'!AY389)","v":""},{"$f":"IF('1. Order'!AZ389=\"\",\"\",'1. Order'!AZ389)","v":""},{"$f":"IF('1. Order'!BA389=\"\",\"\",'1. Order'!BA389)","v":""},{"$f":"IF('1. Order'!BB389=\"\",\"\",'1. Order'!BB389)","v":""},{"$f":"IF('1. Order'!BD389=\"\",\"\",'1. Order'!BD389)","v":""},{"$f":"IF('1. Order'!BE389=\"\",\"\",'1. Order'!BE389)","v":""},{"$f":"IF('1. Order'!BF389=\"\",\"\",'1. Order'!BF389)","v":""},{"$f":"IF('1. Order'!BG389=\"\",\"\",'1. Order'!BG389)","v":""},{"$f":"IF('1. Order'!BH389=\"\",\"\",'1. Order'!BH389)","v":"ZWO"}]
[{"$f":"IF('1. Order'!F390=\"\",\"\",'1. Order'!F390)","v":{"$error":"#N/A"}},{"$f":"IF('1. Order'!G390=\"\",\"\",'1. Order'!G390)","v":""},{"$f":"IF('1. Order'!H390=\"\",\"\",'1. Order'!H390)","v":""},{"$f":"IF('1. Order'!I390=\"\",\"\",'1. Order'!I390)","v":""},{"$f":"IF('1. Order'!J390=\"\",\"\",'1. Order'!J390)","v":""},{"$f":"IF('1. Order'!K390=\"\",\"\",'1. Order'!K390)","v":""},{"$f":"IF('1. Order'!L390=\"\",\"\",'1. Order'!L390)","v":""},{"$f":"IF('1. Order'!M390=\"\",\"\",'1. Order'!M390)","v":""},{"$f":"IF('1. Order'!N390=\"\",\"\",'1. Order'!N390)","v":""},{"$f":"IF('1. Order'!O390=\"\",\"\",'1. Order'!O390)","v":{"$error":"#N/A"}},{"$f":"IF('1. Order'!P390=\"\",\"\",'1. Order'!P390)","v":{"$error":"#N/A"}},{"$f":"IF('1. Order'!Q390=\"\",\"\",'1. Order'!Q390)","v":""},{"$f":"IF('1. Order'!S390=\"\",\"\",'1. Order'!S390)","v":""},{"$f":"IF('1. Order'!T390=\"\",\"\",'1. Order'!T390)","v":""},{"$f":"IF('1. Order'!W390=\"\",\"\",'1. Order'!W390)","v":""},{"$f":"IF('1. Order'!X390=\"\",\"\",'1. Order'!X390)","v":""},{"$f":"IF('1. Order'!Y390=\"\",\"\",'1. Order'!Y390)","v":"EUR"},{"$f":"IF('1. Order'!Z390=\"\",\"\",'1. Order'!Z390)","v":""},{"$f":"IF('1. Order'!AA390=\"\",\"\",'1. Order'!AA390)","v":""},{"$f":"IF('1. Order'!AB390=\"\",\"\",'1. Order'!AB390)","v":""},null,{"$f":"IF('1. Order'!AT390=\"\",\"\",'1. Order'!AT390)","v":""},{"$f":"IF('1. Order'!AU390=\"\",\"\",'1. Order'!AU390)","v":""},null,null,null,null,null,null,null,{"$f":"IF('1. Order'!AY390=\"\",\"\",'1. Order'!AY390)","v":""},{"$f":"IF('1. Order'!AZ390=\"\",\"\",'1. Order'!AZ390)","v":""},{"$f":"IF('1. Order'!BA390=\"\",\"\",'1. Order'!BA390)","v":""},{"$f":"IF('1. Order'!BB390=\"\",\"\",'1. Order'!BB390)","v":""},{"$f":"IF('1. Order'!BD390=\"\",\"\",'1. Order'!BD390)","v":""},{"$f":"IF('1. Order'!BE390=\"\",\"\",'1. Order'!BE390)","v":""},{"$f":"IF('1. Order'!BF390=\"\",\"\",'1. Order'!BF390)","v":""},{"$f":"IF('1. Order'!BG390=\"\",\"\",'1. Order'!BG390)","v":""},{"$f":"IF('1. Order'!BH390=\"\",\"\",'1. Order'!BH390)","v":"ZWO"}]
[{"$f":"IF('1. Order'!F391=\"\",\"\",'1. Order'!F391)","v":{"$error":"#N/A"}},{"$f":"IF('1. Order'!G391=\"\",\"\",'1. Order'!G391)","v":""},{"$f":"IF('1. Order'!H391=\"\",\"\",'1. Order'!H391)","v":""},{"$f":"IF('1. Order'!I391=\"\",\"\",'1. Order'!I391)","v":""},{"$f":"IF('1. Order'!J391=\"\",\"\",'1. Order'!J391)","v":""},{"$f":"IF('1. Order'!K391=\"\",\"\",'1. Order'!K391)","v":""},{"$f":"IF('1. Order'!L391=\"\",\"\",'1. Order'!L391)","v":""},{"$f":"IF('1. Order'!M391=\"\",\"\",'1. Order'!M391)","v":""},{"$f":"IF('1. Order'!N391=\"\",\"\",'1. Order'!N391)","v":""},{"$f":"IF('1. Order'!O391=\"\",\"\",'1. Order'!O391)","v":{"$error":"#N/A"}},{"$f":"IF('1. Order'!P391=\"\",\"\",'1. Order'!P391)","v":{"$error":"#N/A"}},{"$f":"IF('1. Order'!Q391=\"\",\"\",'1. Order'!Q391)","v":""},{"$f":"IF('1. Order'!S391=\"\",\"\",'1. Order'!S391)","v":""},{"$f":"IF('1. Order'!T391=\"\",\"\",'1. Order'!T391)","v":""},{"$f":"IF('1. Order'!W391=\"\",\"\",'1. Order'!W391)","v":""},{"$f":"IF('1. Order'!X391=\"\",\"\",'1. Order'!X391)","v":""},{"$f":"IF('1. Order'!Y391=\"\",\"\",'1. Order'!Y391)","v":"EUR"},{"$f":"IF('1. Order'!Z391=\"\",\"\",'1. Order'!Z391)","v":""},{"$f":"IF('1. Order'!AA391=\"\",\"\",'1. Order'!AA391)","v":""},{"$f":"IF('1. Order'!AB391=\"\",\"\",'1. Order'!AB391)","v":""},null,{"$f":"IF('1. Order'!AT391=\"\",\"\",'1. Order'!AT391)","v":""},{"$f":"IF('1. Order'!AU391=\"\",\"\",'1. Order'!AU391)","v":""},null,null,null,null,null,null,null,{"$f":"IF('1. Order'!AY391=\"\",\"\",'1. Order'!AY391)","v":""},{"$f":"IF('1. Order'!AZ391=\"\",\"\",'1. Order'!AZ391)","v":""},{"$f":"IF('1. Order'!BA391=\"\",\"\",'1. Order'!BA391)","v":""},{"$f":"IF('1. Order'!BB391=\"\",\"\",'1. Order'!BB391)","v":""},{"$f":"IF('1. Order'!BD391=\"\",\"\",'1. Order'!BD391)","v":""},{"$f":"IF('1. Order'!BE391=\"\",\"\",'1. Order'!BE391)","v":""},{"$f":"IF('1. Order'!BF391=\"\",\"\",'1. Order'!BF391)","v":""},{"$f":"IF('1. Order'!BG391=\"\",\"\",'1. Order'!BG391)","v":""},{"$f":"IF('1. Order'!BH391=\"\",\"\",'1. Order'!BH391)","v":"ZWO"}]
[{"$f":"IF('1. Order'!F392=\"\",\"\",'1. Order'!F392)","v":{"$error":"#N/A"}},{"$f":"IF('1. Order'!G392=\"\",\"\",'1. Order'!G392)","v":""},{"$f":"IF('1. Order'!H392=\"\",\"\",'1. Order'!H392)","v":""},{"$f":"IF('1. Order'!I392=\"\",\"\",'1. Order'!I392)","v":""},{"$f":"IF('1. Order'!J392=\"\",\"\",'1. Order'!J392)","v":""},{"$f":"IF('1. Order'!K392=\"\",\"\",'1. Order'!K392)","v":""},{"$f":"IF('1. Order'!L392=\"\",\"\",'1. Order'!L392)","v":""},{"$f":"IF('1. Order'!M392=\"\",\"\",'1. Order'!M392)","v":""},{"$f":"IF('1. Order'!N392=\"\",\"\",'1. Order'!N392)","v":""},{"$f":"IF('1. Order'!O392=\"\",\"\",'1. Order'!O392)","v":{"$error":"#N/A"}},{"$f":"IF('1. Order'!P392=\"\",\"\",'1. Order'!P392)","v":{"$error":"#N/A"}},{"$f":"IF('1. Order'!Q392=\"\",\"\",'1. Order'!Q392)","v":""},{"$f":"IF('1. Order'!S392=\"\",\"\",'1. Order'!S392)","v":""},{"$f":"IF('1. Order'!T392=\"\",\"\",'1. Order'!T392)","v":""},{"$f":"IF('1. Order'!W392=\"\",\"\",'1. Order'!W392)","v":""},{"$f":"IF('1. Order'!X392=\"\",\"\",'1. Order'!X392)","v":""},{"$f":"IF('1. Order'!Y392=\"\",\"\",'1. Order'!Y392)","v":"EUR"},{"$f":"IF('1. Order'!Z392=\"\",\"\",'1. Order'!Z392)","v":""},{"$f":"IF('1. Order'!AA392=\"\",\"\",'1. Order'!AA392)","v":""},{"$f":"IF('1. Order'!AB392=\"\",\"\",'1. Order'!AB392)","v":""},null,{"$f":"IF('1. Order'!AT392=\"\",\"\",'1. Order'!AT392)","v":""},{"$f":"IF('1. Order'!AU392=\"\",\"\",'1. Order'!AU392)","v":""},null,null,null,null,null,null,null,{"$f":"IF('1. Order'!AY392=\"\",\"\",'1. Order'!AY392)","v":""},{"$f":"IF('1. Order'!AZ392=\"\",\"\",'1. Order'!AZ392)","v":""},{"$f":"IF('1. Order'!BA392=\"\",\"\",'1. Order'!BA392)","v":""},{"$f":"IF('1. Order'!BB392=\"\",\"\",'1. Order'!BB392)","v":""},{"$f":"IF('1. Order'!BD392=\"\",\"\",'1. Order'!BD392)","v":""},{"$f":"IF('1. Order'!BE392=\"\",\"\",'1. Order'!BE392)","v":""},{"$f":"IF('1. Order'!BF392=\"\",\"\",'1. Order'!BF392)","v":""},{"$f":"IF('1. Order'!BG392=\"\",\"\",'1. Order'!BG392)","v":""},{"$f":"IF('1. Order'!BH392=\"\",\"\",'1. Order'!BH392)","v":"ZWO"}]
[{"$f":"IF('1. Order'!F393=\"\",\"\",'1. Order'!F393)","v":{"$error":"#N/A"}},{"$f":"IF('1. Order'!G393=\"\",\"\",'1. Order'!G393)","v":""},{"$f":"IF('1. Order'!H393=\"\",\"\",'1. Order'!H393)","v":""},{"$f":"IF('1. Order'!I393=\"\",\"\",'1. Order'!I393)","v":""},{"$f":"IF('1. Order'!J393=\"\",\"\",'1. Order'!J393)","v":""},{"$f":"IF('1. Order'!K393=\"\",\"\",'1. Order'!K393)","v":""},{"$f":"IF('1. Order'!L393=\"\",\"\",'1. Order'!L393)","v":""},{"$f":"IF('1. Order'!M393=\"\",\"\",'1. Order'!M393)","v":""},{"$f":"IF('1. Order'!N393=\"\",\"\",'1. Order'!N393)","v":""},{"$f":"IF('1. Order'!O393=\"\",\"\",'1. Order'!O393)","v":{"$error":"#N/A"}},{"$f":"IF('1. Order'!P393=\"\",\"\",'1. Order'!P393)","v":{"$error":"#N/A"}},{"$f":"IF('1. Order'!Q393=\"\",\"\",'1. Order'!Q393)","v":""},{"$f":"IF('1. Order'!S393=\"\",\"\",'1. Order'!S393)","v":""},{"$f":"IF('1. Order'!T393=\"\",\"\",'1. Order'!T393)","v":""},{"$f":"IF('1. Order'!W393=\"\",\"\",'1. Order'!W393)","v":""},{"$f":"IF('1. Order'!X393=\"\",\"\",'1. Order'!X393)","v":""},{"$f":"IF('1. Order'!Y393=\"\",\"\",'1. Order'!Y393)","v":"EUR"},{"$f":"IF('1. Order'!Z393=\"\",\"\",'1. Order'!Z393)","v":""},{"$f":"IF('1. Order'!AA393=\"\",\"\",'1. Order'!AA393)","v":""},{"$f":"IF('1. Order'!AB393=\"\",\"\",'1. Order'!AB393)","v":""},null,{"$f":"IF('1. Order'!AT393=\"\",\"\",'1. Order'!AT393)","v":""},{"$f":"IF('1. Order'!AU393=\"\",\"\",'1. Order'!AU393)","v":""},null,null,null,null,null,null,null,{"$f":"IF('1. Order'!AY393=\"\",\"\",'1. Order'!AY393)","v":""},{"$f":"IF('1. Order'!AZ393=\"\",\"\",'1. Order'!AZ393)","v":""},{"$f":"IF('1. Order'!BA393=\"\",\"\",'1. Order'!BA393)","v":""},{"$f":"IF('1. Order'!BB393=\"\",\"\",'1. Order'!BB393)","v":""},{"$f":"IF('1. Order'!BD393=\"\",\"\",'1. Order'!BD393)","v":""},{"$f":"IF('1. Order'!BE393=\"\",\"\",'1. Order'!BE393)","v":""},{"$f":"IF('1. Order'!BF393=\"\",\"\",'1. Order'!BF393)","v":""},{"$f":"IF('1. Order'!BG393=\"\",\"\",'1. Order'!BG393)","v":""},{"$f":"IF('1. Order'!BH393=\"\",\"\",'1. Order'!BH393)","v":"ZWO"}]
[{"$f":"IF('1. Order'!F394=\"\",\"\",'1. Order'!F394)","v":{"$error":"#N/A"}},{"$f":"IF('1. Order'!G394=\"\",\"\",'1. Order'!G394)","v":""},{"$f":"IF('1. Order'!H394=\"\",\"\",'1. Order'!H394)","v":""},{"$f":"IF('1. Order'!I394=\"\",\"\",'1. Order'!I394)","v":""},{"$f":"IF('1. Order'!J394=\"\",\"\",'1. Order'!J394)","v":""},{"$f":"IF('1. Order'!K394=\"\",\"\",'1. Order'!K394)","v":""},{"$f":"IF('1. Order'!L394=\"\",\"\",'1. Order'!L394)","v":""},{"$f":"IF('1. Order'!M394=\"\",\"\",'1. Order'!M394)","v":""},{"$f":"IF('1. Order'!N394=\"\",\"\",'1. Order'!N394)","v":""},{"$f":"IF('1. Order'!O394=\"\",\"\",'1. Order'!O394)","v":{"$error":"#N/A"}},{"$f":"IF('1. Order'!P394=\"\",\"\",'1. Order'!P394)","v":{"$error":"#N/A"}},{"$f":"IF('1. Order'!Q394=\"\",\"\",'1. Order'!Q394)","v":""},{"$f":"IF('1. Order'!S394=\"\",\"\",'1. Order'!S394)","v":""},{"$f":"IF('1. Order'!T394=\"\",\"\",'1. Order'!T394)","v":""},{"$f":"IF('1. Order'!W394=\"\",\"\",'1. Order'!W394)","v":""},{"$f":"IF('1. Order'!X394=\"\",\"\",'1. Order'!X394)","v":""},{"$f":"IF('1. Order'!Y394=\"\",\"\",'1. Order'!Y394)","v":"EUR"},{"$f":"IF('1. Order'!Z394=\"\",\"\",'1. Order'!Z394)","v":""},{"$f":"IF('1. Order'!AA394=\"\",\"\",'1. Order'!AA394)","v":""},{"$f":"IF('1. Order'!AB394=\"\",\"\",'1. Order'!AB394)","v":""},null,{"$f":"IF('1. Order'!AT394=\"\",\"\",'1. Order'!AT394)","v":""},{"$f":"IF('1. Order'!AU394=\"\",\"\",'1. Order'!AU394)","v":""},null,null,null,null,null,null,null,{"$f":"IF('1. Order'!AY394=\"\",\"\",'1. Order'!AY394)","v":""},{"$f":"IF('1. Order'!AZ394=\"\",\"\",'1. Order'!AZ394)","v":""},{"$f":"IF('1. Order'!BA394=\"\",\"\",'1. Order'!BA394)","v":""},{"$f":"IF('1. Order'!BB394=\"\",\"\",'1. Order'!BB394)","v":""},{"$f":"IF('1. Order'!BD394=\"\",\"\",'1. Order'!BD394)","v":""},{"$f":"IF('1. Order'!BE394=\"\",\"\",'1. Order'!BE394)","v":""},{"$f":"IF('1. Order'!BF394=\"\",\"\",'1. Order'!BF394)","v":""},{"$f":"IF('1. Order'!BG394=\"\",\"\",'1. Order'!BG394)","v":""},{"$f":"IF('1. Order'!BH394=\"\",\"\",'1. Order'!BH394)","v":"ZWO"}]
[{"$f":"IF('1. Order'!F395=\"\",\"\",'1. Order'!F395)","v":{"$error":"#N/A"}},{"$f":"IF('1. Order'!G395=\"\",\"\",'1. Order'!G395)","v":""},{"$f":"IF('1. Order'!H395=\"\",\"\",'1. Order'!H395)","v":""},{"$f":"IF('1. Order'!I395=\"\",\"\",'1. Order'!I395)","v":""},{"$f":"IF('1. Order'!J395=\"\",\"\",'1. Order'!J395)","v":""},{"$f":"IF('1. Order'!K395=\"\",\"\",'1. Order'!K395)","v":""},{"$f":"IF('1. Order'!L395=\"\",\"\",'1. Order'!L395)","v":""},{"$f":"IF('1. Order'!M395=\"\",\"\",'1. Order'!M395)","v":""},{"$f":"IF('1. Order'!N395=\"\",\"\",'1. Order'!N395)","v":""},{"$f":"IF('1. Order'!O395=\"\",\"\",'1. Order'!O395)","v":{"$error":"#N/A"}},{"$f":"IF('1. Order'!P395=\"\",\"\",'1. Order'!P395)","v":{"$error":"#N/A"}},{"$f":"IF('1. Order'!Q395=\"\",\"\",'1. Order'!Q395)","v":""},{"$f":"IF('1. Order'!S395=\"\",\"\",'1. Order'!S395)","v":""},{"$f":"IF('1. Order'!T395=\"\",\"\",'1. Order'!T395)","v":""},{"$f":"IF('1. Order'!W395=\"\",\"\",'1. Order'!W395)","v":""},{"$f":"IF('1. Order'!X395=\"\",\"\",'1. Order'!X395)","v":""},{"$f":"IF('1. Order'!Y395=\"\",\"\",'1. Order'!Y395)","v":"EUR"},{"$f":"IF('1. Order'!Z395=\"\",\"\",'1. Order'!Z395)","v":""},{"$f":"IF('1. Order'!AA395=\"\",\"\",'1. Order'!AA395)","v":""},{"$f":"IF('1. Order'!AB395=\"\",\"\",'1. Order'!AB395)","v":""},null,{"$f":"IF('1. Order'!AT395=\"\",\"\",'1. Order'!AT395)","v":""},{"$f":"IF('1. Order'!AU395=\"\",\"\",'1. Order'!AU395)","v":""},null,null,null,null,null,null,null,{"$f":"IF('1. Order'!AY395=\"\",\"\",'1. Order'!AY395)","v":""},{"$f":"IF('1. Order'!AZ395=\"\",\"\",'1. Order'!AZ395)","v":""},{"$f":"IF('1. Order'!BA395=\"\",\"\",'1. Order'!BA395)","v":""},{"$f":"IF('1. Order'!BB395=\"\",\"\",'1. Order'!BB395)","v":""},{"$f":"IF('1. Order'!BD395=\"\",\"\",'1. Order'!BD395)","v":""},{"$f":"IF('1. Order'!BE395=\"\",\"\",'1. Order'!BE395)","v":""},{"$f":"IF('1. Order'!BF395=\"\",\"\",'1. Order'!BF395)","v":""},{"$f":"IF('1. Order'!BG395=\"\",\"\",'1. Order'!BG395)","v":""},{"$f":"IF('1. Order'!BH395=\"\",\"\",'1. Order'!BH395)","v":"ZWO"}]
[{"$f":"IF('1. Order'!F396=\"\",\"\",'1. Order'!F396)","v":{"$error":"#N/A"}},{"$f":"IF('1. Order'!G396=\"\",\"\",'1. Order'!G396)","v":""},{"$f":"IF('1. Order'!H396=\"\",\"\",'1. Order'!H396)","v":""},{"$f":"IF('1. Order'!I396=\"\",\"\",'1. Order'!I396)","v":""},{"$f":"IF('1. Order'!J396=\"\",\"\",'1. Order'!J396)","v":""},{"$f":"IF('1. Order'!K396=\"\",\"\",'1. Order'!K396)","v":""},{"$f":"IF('1. Order'!L396=\"\",\"\",'1. Order'!L396)","v":""},{"$f":"IF('1. Order'!M396=\"\",\"\",'1. Order'!M396)","v":""},{"$f":"IF('1. Order'!N396=\"\",\"\",'1. Order'!N396)","v":""},{"$f":"IF('1. Order'!O396=\"\",\"\",'1. Order'!O396)","v":{"$error":"#N/A"}},{"$f":"IF('1. Order'!P396=\"\",\"\",'1. Order'!P396)","v":{"$error":"#N/A"}},{"$f":"IF('1. Order'!Q396=\"\",\"\",'1. Order'!Q396)","v":""},{"$f":"IF('1. Order'!S396=\"\",\"\",'1. Order'!S396)","v":""},{"$f":"IF('1. Order'!T396=\"\",\"\",'1. Order'!T396)","v":""},{"$f":"IF('1. Order'!W396=\"\",\"\",'1. Order'!W396)","v":""},{"$f":"IF('1. Order'!X396=\"\",\"\",'1. Order'!X396)","v":""},{"$f":"IF('1. Order'!Y396=\"\",\"\",'1. Order'!Y396)","v":"EUR"},{"$f":"IF('1. Order'!Z396=\"\",\"\",'1. Order'!Z396)","v":""},{"$f":"IF('1. Order'!AA396=\"\",\"\",'1. Order'!AA396)","v":""},{"$f":"IF('1. Order'!AB396=\"\",\"\",'1. Order'!AB396)","v":""},null,{"$f":"IF('1. Order'!AT396=\"\",\"\",'1. Order'!AT396)","v":""},{"$f":"IF('1. Order'!AU396=\"\",\"\",'1. Order'!AU396)","v":""},null,null,null,null,null,null,null,{"$f":"IF('1. Order'!AY396=\"\",\"\",'1. Order'!AY396)","v":""},{"$f":"IF('1. Order'!AZ396=\"\",\"\",'1. Order'!AZ396)","v":""},{"$f":"IF('1. Order'!BA396=\"\",\"\",'1. Order'!BA396)","v":""},{"$f":"IF('1. Order'!BB396=\"\",\"\",'1. Order'!BB396)","v":""},{"$f":"IF('1. Order'!BD396=\"\",\"\",'1. Order'!BD396)","v":""},{"$f":"IF('1. Order'!BE396=\"\",\"\",'1. Order'!BE396)","v":""},{"$f":"IF('1. Order'!BF396=\"\",\"\",'1. Order'!BF396)","v":""},{"$f":"IF('1. Order'!BG396=\"\",\"\",'1. Order'!BG396)","v":""},{"$f":"IF('1. Order'!BH396=\"\",\"\",'1. Order'!BH396)","v":"ZWO"}]
[{"$f":"IF('1. Order'!F397=\"\",\"\",'1. Order'!F397)","v":{"$error":"#N/A"}},{"$f":"IF('1. Order'!G397=\"\",\"\",'1. Order'!G397)","v":""},{"$f":"IF('1. Order'!H397=\"\",\"\",'1. Order'!H397)","v":""},{"$f":"IF('1. Order'!I397=\"\",\"\",'1. Order'!I397)","v":""},{"$f":"IF('1. Order'!J397=\"\",\"\",'1. Order'!J397)","v":""},{"$f":"IF('1. Order'!K397=\"\",\"\",'1. Order'!K397)","v":""},{"$f":"IF('1. Order'!L397=\"\",\"\",'1. Order'!L397)","v":""},{"$f":"IF('1. Order'!M397=\"\",\"\",'1. Order'!M397)","v":""},{"$f":"IF('1. Order'!N397=\"\",\"\",'1. Order'!N397)","v":""},{"$f":"IF('1. Order'!O397=\"\",\"\",'1. Order'!O397)","v":{"$error":"#N/A"}},{"$f":"IF('1. Order'!P397=\"\",\"\",'1. Order'!P397)","v":{"$error":"#N/A"}},{"$f":"IF('1. Order'!Q397=\"\",\"\",'1. Order'!Q397)","v":""},{"$f":"IF('1. Order'!S397=\"\",\"\",'1. Order'!S397)","v":""},{"$f":"IF('1. Order'!T397=\"\",\"\",'1. Order'!T397)","v":""},{"$f":"IF('1. Order'!W397=\"\",\"\",'1. Order'!W397)","v":""},{"$f":"IF('1. Order'!X397=\"\",\"\",'1. Order'!X397)","v":""},{"$f":"IF('1. Order'!Y397=\"\",\"\",'1. Order'!Y397)","v":"EUR"},{"$f":"IF('1. Order'!Z397=\"\",\"\",'1. Order'!Z397)","v":""},{"$f":"IF('1. Order'!AA397=\"\",\"\",'1. Order'!AA397)","v":""},{"$f":"IF('1. Order'!AB397=\"\",\"\",'1. Order'!AB397)","v":""},null,{"$f":"IF('1. Order'!AT397=\"\",\"\",'1. Order'!AT397)","v":""},{"$f":"IF('1. Order'!AU397=\"\",\"\",'1. Order'!AU397)","v":""},null,null,null,null,null,null,null,{"$f":"IF('1. Order'!AY397=\"\",\"\",'1. Order'!AY397)","v":""},{"$f":"IF('1. Order'!AZ397=\"\",\"\",'1. Order'!AZ397)","v":""},{"$f":"IF('1. Order'!BA397=\"\",\"\",'1. Order'!BA397)","v":""},{"$f":"IF('1. Order'!BB397=\"\",\"\",'1. Order'!BB397)","v":""},{"$f":"IF('1. Order'!BD397=\"\",\"\",'1. Order'!BD397)","v":""},{"$f":"IF('1. Order'!BE397=\"\",\"\",'1. Order'!BE397)","v":""},{"$f":"IF('1. Order'!BF397=\"\",\"\",'1. Order'!BF397)","v":""},{"$f":"IF('1. Order'!BG397=\"\",\"\",'1. Order'!BG397)","v":""},{"$f":"IF('1. Order'!BH397=\"\",\"\",'1. Order'!BH397)","v":"ZWO"}]
[{"$f":"IF('1. Order'!F398=\"\",\"\",'1. Order'!F398)","v":{"$error":"#N/A"}},{"$f":"IF('1. Order'!G398=\"\",\"\",'1. Order'!G398)","v":""},{"$f":"IF('1. Order'!H398=\"\",\"\",'1. Order'!H398)","v":""},{"$f":"IF('1. Order'!I398=\"\",\"\",'1. Order'!I398)","v":""},{"$f":"IF('1. Order'!J398=\"\",\"\",'1. Order'!J398)","v":""},{"$f":"IF('1. Order'!K398=\"\",\"\",'1. Order'!K398)","v":""},{"$f":"IF('1. Order'!L398=\"\",\"\",'1. Order'!L398)","v":""},{"$f":"IF('1. Order'!M398=\"\",\"\",'1. Order'!M398)","v":""},{"$f":"IF('1. Order'!N398=\"\",\"\",'1. Order'!N398)","v":""},{"$f":"IF('1. Order'!O398=\"\",\"\",'1. Order'!O398)","v":{"$error":"#N/A"}},{"$f":"IF('1. Order'!P398=\"\",\"\",'1. Order'!P398)","v":{"$error":"#N/A"}},{"$f":"IF('1. Order'!Q398=\"\",\"\",'1. Order'!Q398)","v":""},{"$f":"IF('1. Order'!S398=\"\",\"\",'1. Order'!S398)","v":""},{"$f":"IF('1. Order'!T398=\"\",\"\",'1. Order'!T398)","v":""},{"$f":"IF('1. Order'!W398=\"\",\"\",'1. Order'!W398)","v":""},{"$f":"IF('1. Order'!X398=\"\",\"\",'1. Order'!X398)","v":""},{"$f":"IF('1. Order'!Y398=\"\",\"\",'1. Order'!Y398)","v":"EUR"},{"$f":"IF('1. Order'!Z398=\"\",\"\",'1. Order'!Z398)","v":""},{"$f":"IF('1. Order'!AA398=\"\",\"\",'1. Order'!AA398)","v":""},{"$f":"IF('1. Order'!AB398=\"\",\"\",'1. Order'!AB398)","v":""},null,{"$f":"IF('1. Order'!AT398=\"\",\"\",'1. Order'!AT398)","v":""},{"$f":"IF('1. Order'!AU398=\"\",\"\",'1. Order'!AU398)","v":""},null,null,null,null,null,null,null,{"$f":"IF('1. Order'!AY398=\"\",\"\",'1. Order'!AY398)","v":""},{"$f":"IF('1. Order'!AZ398=\"\",\"\",'1. Order'!AZ398)","v":""},{"$f":"IF('1. Order'!BA398=\"\",\"\",'1. Order'!BA398)","v":""},{"$f":"IF('1. Order'!BB398=\"\",\"\",'1. Order'!BB398)","v":""},{"$f":"IF('1. Order'!BD398=\"\",\"\",'1. Order'!BD398)","v":""},{"$f":"IF('1. Order'!BE398=\"\",\"\",'1. Order'!BE398)","v":""},{"$f":"IF('1. Order'!BF398=\"\",\"\",'1. Order'!BF398)","v":""},{"$f":"IF('1. Order'!BG398=\"\",\"\",'1. Order'!BG398)","v":""},{"$f":"IF('1. Order'!BH398=\"\",\"\",'1. Order'!BH398)","v":"ZWO"}]
[{"$f":"IF('1. Order'!F399=\"\",\"\",'1. Order'!F399)","v":{"$error":"#N/A"}},{"$f":"IF('1. Order'!G399=\"\",\"\",'1. Order'!G399)","v":""},{"$f":"IF('1. Order'!H399=\"\",\"\",'1. Order'!H399)","v":""},{"$f":"IF('1. Order'!I399=\"\",\"\",'1. Order'!I399)","v":""},{"$f":"IF('1. Order'!J399=\"\",\"\",'1. Order'!J399)","v":""},{"$f":"IF('1. Order'!K399=\"\",\"\",'1. Order'!K399)","v":""},{"$f":"IF('1. Order'!L399=\"\",\"\",'1. Order'!L399)","v":""},{"$f":"IF('1. Order'!M399=\"\",\"\",'1. Order'!M399)","v":""},{"$f":"IF('1. Order'!N399=\"\",\"\",'1. Order'!N399)","v":""},{"$f":"IF('1. Order'!O399=\"\",\"\",'1. Order'!O399)","v":{"$error":"#N/A"}},{"$f":"IF('1. Order'!P399=\"\",\"\",'1. Order'!P399)","v":{"$error":"#N/A"}},{"$f":"IF('1. Order'!Q399=\"\",\"\",'1. Order'!Q399)","v":""},{"$f":"IF('1. Order'!S399=\"\",\"\",'1. Order'!S399)","v":""},{"$f":"IF('1. Order'!T399=\"\",\"\",'1. Order'!T399)","v":""},{"$f":"IF('1. Order'!W399=\"\",\"\",'1. Order'!W399)","v":""},{"$f":"IF('1. Order'!X399=\"\",\"\",'1. Order'!X399)","v":""},{"$f":"IF('1. Order'!Y399=\"\",\"\",'1. Order'!Y399)","v":"EUR"},{"$f":"IF('1. Order'!Z399=\"\",\"\",'1. Order'!Z399)","v":""},{"$f":"IF('1. Order'!AA399=\"\",\"\",'1. Order'!AA399)","v":""},{"$f":"IF('1. Order'!AB399=\"\",\"\",'1. Order'!AB399)","v":""},null,{"$f":"IF('1. Order'!AT399=\"\",\"\",'1. Order'!AT399)","v":""},{"$f":"IF('1. Order'!AU399=\"\",\"\",'1. Order'!AU399)","v":""},null,null,null,null,null,null,null,{"$f":"IF('1. Order'!AY399=\"\",\"\",'1. Order'!AY399)","v":""},{"$f":"IF('1. Order'!AZ399=\"\",\"\",'1. Order'!AZ399)","v":""},{"$f":"IF('1. Order'!BA399=\"\",\"\",'1. Order'!BA399)","v":""},{"$f":"IF('1. Order'!BB399=\"\",\"\",'1. Order'!BB399)","v":""},{"$f":"IF('1. Order'!BD399=\"\",\"\",'1. Order'!BD399)","v":""},{"$f":"IF('1. Order'!BE399=\"\",\"\",'1. Order'!BE399)","v":""},{"$f":"IF('1. Order'!BF399=\"\",\"\",'1. Order'!BF399)","v":""},{"$f":"IF('1. Order'!BG399=\"\",\"\",'1. Order'!BG399)","v":""},{"$f":"IF('1. Order'!BH399=\"\",\"\",'1. Order'!BH399)","v":"ZWO"}]
[{"$f":"IF('1. Order'!F400=\"\",\"\",'1. Order'!F400)","v":{"$error":"#N/A"}},{"$f":"IF('1. Order'!G400=\"\",\"\",'1. Order'!G400)","v":""},{"$f":"IF('1. Order'!H400=\"\",\"\",'1. Order'!H400)","v":""},{"$f":"IF('1. Order'!I400=\"\",\"\",'1. Order'!I400)","v":""},{"$f":"IF('1. Order'!J400=\"\",\"\",'1. Order'!J400)","v":""},{"$f":"IF('1. Order'!K400=\"\",\"\",'1. Order'!K400)","v":""},{"$f":"IF('1. Order'!L400=\"\",\"\",'1. Order'!L400)","v":""},{"$f":"IF('1. Order'!M400=\"\",\"\",'1. Order'!M400)","v":""},{"$f":"IF('1. Order'!N400=\"\",\"\",'1. Order'!N400)","v":""},{"$f":"IF('1. Order'!O400=\"\",\"\",'1. Order'!O400)","v":{"$error":"#N/A"}},{"$f":"IF('1. Order'!P400=\"\",\"\",'1. Order'!P400)","v":{"$error":"#N/A"}},{"$f":"IF('1. Order'!Q400=\"\",\"\",'1. Order'!Q400)","v":""},{"$f":"IF('1. Order'!S400=\"\",\"\",'1. Order'!S400)","v":""},{"$f":"IF('1. Order'!T400=\"\",\"\",'1. Order'!T400)","v":""},{"$f":"IF('1. Order'!W400=\"\",\"\",'1. Order'!W400)","v":""},{"$f":"IF('1. Order'!X400=\"\",\"\",'1. Order'!X400)","v":""},{"$f":"IF('1. Order'!Y400=\"\",\"\",'1. Order'!Y400)","v":"EUR"},{"$f":"IF('1. Order'!Z400=\"\",\"\",'1. Order'!Z400)","v":""},{"$f":"IF('1. Order'!AA400=\"\",\"\",'1. Order'!AA400)","v":""},{"$f":"IF('1. Order'!AB400=\"\",\"\",'1. Order'!AB400)","v":""},null,{"$f":"IF('1. Order'!AT400=\"\",\"\",'1. Order'!AT400)","v":""},{"$f":"IF('1. Order'!AU400=\"\",\"\",'1. Order'!AU400)","v":""},null,null,null,null,null,null,null,{"$f":"IF('1. Order'!AY400=\"\",\"\",'1. Order'!AY400)","v":""},{"$f":"IF('1. Order'!AZ400=\"\",\"\",'1. Order'!AZ400)","v":""},{"$f":"IF('1. Order'!BA400=\"\",\"\",'1. Order'!BA400)","v":""},{"$f":"IF('1. Order'!BB400=\"\",\"\",'1. Order'!BB400)","v":""},{"$f":"IF('1. Order'!BD400=\"\",\"\",'1. Order'!BD400)","v":""},{"$f":"IF('1. Order'!BE400=\"\",\"\",'1. Order'!BE400)","v":""},{"$f":"IF('1. Order'!BF400=\"\",\"\",'1. Order'!BF400)","v":""},{"$f":"IF('1. Order'!BG400=\"\",\"\",'1. Order'!BG400)","v":""},{"$f":"IF('1. Order'!BH400=\"\",\"\",'1. Order'!BH400)","v":"ZWO"}]
[{"$f":"IF('1. Order'!F401=\"\",\"\",'1. Order'!F401)","v":{"$error":"#N/A"}},{"$f":"IF('1. Order'!G401=\"\",\"\",'1. Order'!G401)","v":""},{"$f":"IF('1. Order'!H401=\"\",\"\",'1. Order'!H401)","v":""},{"$f":"IF('1. Order'!I401=\"\",\"\",'1. Order'!I401)","v":""},{"$f":"IF('1. Order'!J401=\"\",\"\",'1. Order'!J401)","v":""},{"$f":"IF('1. Order'!K401=\"\",\"\",'1. Order'!K401)","v":""},{"$f":"IF('1. Order'!L401=\"\",\"\",'1. Order'!L401)","v":""},{"$f":"IF('1. Order'!M401=\"\",\"\",'1. Order'!M401)","v":""},{"$f":"IF('1. Order'!N401=\"\",\"\",'1. Order'!N401)","v":""},{"$f":"IF('1. Order'!O401=\"\",\"\",'1. Order'!O401)","v":{"$error":"#N/A"}},{"$f":"IF('1. Order'!P401=\"\",\"\",'1. Order'!P401)","v":{"$error":"#N/A"}},{"$f":"IF('1. Order'!Q401=\"\",\"\",'1. Order'!Q401)","v":""},{"$f":"IF('1. Order'!S401=\"\",\"\",'1. Order'!S401)","v":""},{"$f":"IF('1. Order'!T401=\"\",\"\",'1. Order'!T401)","v":""},{"$f":"IF('1. Order'!W401=\"\",\"\",'1. Order'!W401)","v":""},{"$f":"IF('1. Order'!X401=\"\",\"\",'1. Order'!X401)","v":""},{"$f":"IF('1. Order'!Y401=\"\",\"\",'1. Order'!Y401)","v":"EUR"},{"$f":"IF('1. Order'!Z401=\"\",\"\",'1. Order'!Z401)","v":""},{"$f":"IF('1. Order'!AA401=\"\",\"\",'1. Order'!AA401)","v":""},{"$f":"IF('1. Order'!AB401=\"\",\"\",'1. Order'!AB401)","v":""},null,{"$f":"IF('1. Order'!AT401=\"\",\"\",'1. Order'!AT401)","v":""},{"$f":"IF('1. Order'!AU401=\"\",\"\",'1. Order'!AU401)","v":""},null,null,null,null,null,null,null,{"$f":"IF('1. Order'!AY401=\"\",\"\",'1. Order'!AY401)","v":""},{"$f":"IF('1. Order'!AZ401=\"\",\"\",'1. Order'!AZ401)","v":""},{"$f":"IF('1. Order'!BA401=\"\",\"\",'1. Order'!BA401)","v":""},{"$f":"IF('1. Order'!BB401=\"\",\"\",'1. Order'!BB401)","v":""},{"$f":"IF('1. Order'!BD401=\"\",\"\",'1. Order'!BD401)","v":""},{"$f":"IF('1. Order'!BE401=\"\",\"\",'1. Order'!BE401)","v":""},{"$f":"IF('1. Order'!BF401=\"\",\"\",'1. Order'!BF401)","v":""},{"$f":"IF('1. Order'!BG401=\"\",\"\",'1. Order'!BG401)","v":""},{"$f":"IF('1. Order'!BH401=\"\",\"\",'1. Order'!BH401)","v":"ZWO"}]
[{"$f":"IF('1. Order'!F402=\"\",\"\",'1. Order'!F402)","v":{"$error":"#N/A"}},{"$f":"IF('1. Order'!G402=\"\",\"\",'1. Order'!G402)","v":""},{"$f":"IF('1. Order'!H402=\"\",\"\",'1. Order'!H402)","v":""},{"$f":"IF('1. Order'!I402=\"\",\"\",'1. Order'!I402)","v":""},{"$f":"IF('1. Order'!J402=\"\",\"\",'1. Order'!J402)","v":""},{"$f":"IF('1. Order'!K402=\"\",\"\",'1. Order'!K402)","v":""},{"$f":"IF('1. Order'!L402=\"\",\"\",'1. Order'!L402)","v":""},{"$f":"IF('1. Order'!M402=\"\",\"\",'1. Order'!M402)","v":""},{"$f":"IF('1. Order'!N402=\"\",\"\",'1. Order'!N402)","v":""},{"$f":"IF('1. Order'!O402=\"\",\"\",'1. Order'!O402)","v":{"$error":"#N/A"}},{"$f":"IF('1. Order'!P402=\"\",\"\",'1. Order'!P402)","v":{"$error":"#N/A"}},{"$f":"IF('1. Order'!Q402=\"\",\"\",'1. Order'!Q402)","v":""},{"$f":"IF('1. Order'!S402=\"\",\"\",'1. Order'!S402)","v":""},{"$f":"IF('1. Order'!T402=\"\",\"\",'1. Order'!T402)","v":""},{"$f":"IF('1. Order'!W402=\"\",\"\",'1. Order'!W402)","v":""},{"$f":"IF('1. Order'!X402=\"\",\"\",'1. Order'!X402)","v":""},{"$f":"IF('1. Order'!Y402=\"\",\"\",'1. Order'!Y402)","v":"EUR"},{"$f":"IF('1. Order'!Z402=\"\",\"\",'1. Order'!Z402)","v":""},{"$f":"IF('1. Order'!AA402=\"\",\"\",'1. Order'!AA402)","v":""},{"$f":"IF('1. Order'!AB402=\"\",\"\",'1. Order'!AB402)","v":""},null,{"$f":"IF('1. Order'!AT402=\"\",\"\",'1. Order'!AT402)","v":""},{"$f":"IF('1. Order'!AU402=\"\",\"\",'1. Order'!AU402)","v":""},null,null,null,null,null,null,null,{"$f":"IF('1. Order'!AY402=\"\",\"\",'1. Order'!AY402)","v":""},{"$f":"IF('1. Order'!AZ402=\"\",\"\",'1. Order'!AZ402)","v":""},{"$f":"IF('1. Order'!BA402=\"\",\"\",'1. Order'!BA402)","v":""},{"$f":"IF('1. Order'!BB402=\"\",\"\",'1. Order'!BB402)","v":""},{"$f":"IF('1. Order'!BD402=\"\",\"\",'1. Order'!BD402)","v":""},{"$f":"IF('1. Order'!BE402=\"\",\"\",'1. Order'!BE402)","v":""},{"$f":"IF('1. Order'!BF402=\"\",\"\",'1. Order'!BF402)","v":""},{"$f":"IF('1. Order'!BG402=\"\",\"\",'1. Order'!BG402)","v":""},{"$f":"IF('1. Order'!BH402=\"\",\"\",'1. Order'!BH402)","v":"ZWO"}]
[{"$f":"IF('1. Order'!F403=\"\",\"\",'1. Order'!F403)","v":{"$error":"#N/A"}},{"$f":"IF('1. Order'!G403=\"\",\"\",'1. Order'!G403)","v":""},{"$f":"IF('1. Order'!H403=\"\",\"\",'1. Order'!H403)","v":""},{"$f":"IF('1. Order'!I403=\"\",\"\",'1. Order'!I403)","v":""},{"$f":"IF('1. Order'!J403=\"\",\"\",'1. Order'!J403)","v":""},{"$f":"IF('1. Order'!K403=\"\",\"\",'1. Order'!K403)","v":""},{"$f":"IF('1. Order'!L403=\"\",\"\",'1. Order'!L403)","v":""},{"$f":"IF('1. Order'!M403=\"\",\"\",'1. Order'!M403)","v":""},{"$f":"IF('1. Order'!N403=\"\",\"\",'1. Order'!N403)","v":""},{"$f":"IF('1. Order'!O403=\"\",\"\",'1. Order'!O403)","v":{"$error":"#N/A"}},{"$f":"IF('1. Order'!P403=\"\",\"\",'1. Order'!P403)","v":{"$error":"#N/A"}},{"$f":"IF('1. Order'!Q403=\"\",\"\",'1. Order'!Q403)","v":""},{"$f":"IF('1. Order'!S403=\"\",\"\",'1. Order'!S403)","v":""},{"$f":"IF('1. Order'!T403=\"\",\"\",'1. Order'!T403)","v":""},{"$f":"IF('1. Order'!W403=\"\",\"\",'1. Order'!W403)","v":""},{"$f":"IF('1. Order'!X403=\"\",\"\",'1. Order'!X403)","v":""},{"$f":"IF('1. Order'!Y403=\"\",\"\",'1. Order'!Y403)","v":"EUR"},{"$f":"IF('1. Order'!Z403=\"\",\"\",'1. Order'!Z403)","v":""},{"$f":"IF('1. Order'!AA403=\"\",\"\",'1. Order'!AA403)","v":""},{"$f":"IF('1. Order'!AB403=\"\",\"\",'1. Order'!AB403)","v":""},null,{"$f":"IF('1. Order'!AT403=\"\",\"\",'1. Order'!AT403)","v":""},{"$f":"IF('1. Order'!AU403=\"\",\"\",'1. Order'!AU403)","v":""},null,null,null,null,null,null,null,{"$f":"IF('1. Order'!AY403=\"\",\"\",'1. Order'!AY403)","v":""},{"$f":"IF('1. Order'!AZ403=\"\",\"\",'1. Order'!AZ403)","v":""},{"$f":"IF('1. Order'!BA403=\"\",\"\",'1. Order'!BA403)","v":""},{"$f":"IF('1. Order'!BB403=\"\",\"\",'1. Order'!BB403)","v":""},{"$f":"IF('1. Order'!BD403=\"\",\"\",'1. Order'!BD403)","v":""},{"$f":"IF('1. Order'!BE403=\"\",\"\",'1. Order'!BE403)","v":""},{"$f":"IF('1. Order'!BF403=\"\",\"\",'1. Order'!BF403)","v":""},{"$f":"IF('1. Order'!BG403=\"\",\"\",'1. Order'!BG403)","v":""},{"$f":"IF('1. Order'!BH403=\"\",\"\",'1. Order'!BH403)","v":"ZWO"}]
[{"$f":"IF('1. Order'!F404=\"\",\"\",'1. Order'!F404)","v":{"$error":"#N/A"}},{"$f":"IF('1. Order'!G404=\"\",\"\",'1. Order'!G404)","v":""},{"$f":"IF('1. Order'!H404=\"\",\"\",'1. Order'!H404)","v":""},{"$f":"IF('1. Order'!I404=\"\",\"\",'1. Order'!I404)","v":""},{"$f":"IF('1. Order'!J404=\"\",\"\",'1. Order'!J404)","v":""},{"$f":"IF('1. Order'!K404=\"\",\"\",'1. Order'!K404)","v":""},{"$f":"IF('1. Order'!L404=\"\",\"\",'1. Order'!L404)","v":""},{"$f":"IF('1. Order'!M404=\"\",\"\",'1. Order'!M404)","v":""},{"$f":"IF('1. Order'!N404=\"\",\"\",'1. Order'!N404)","v":""},{"$f":"IF('1. Order'!O404=\"\",\"\",'1. Order'!O404)","v":{"$error":"#N/A"}},{"$f":"IF('1. Order'!P404=\"\",\"\",'1. Order'!P404)","v":{"$error":"#N/A"}},{"$f":"IF('1. Order'!Q404=\"\",\"\",'1. Order'!Q404)","v":""},{"$f":"IF('1. Order'!S404=\"\",\"\",'1. Order'!S404)","v":""},{"$f":"IF('1. Order'!T404=\"\",\"\",'1. Order'!T404)","v":""},{"$f":"IF('1. Order'!W404=\"\",\"\",'1. Order'!W404)","v":""},{"$f":"IF('1. Order'!X404=\"\",\"\",'1. Order'!X404)","v":""},{"$f":"IF('1. Order'!Y404=\"\",\"\",'1. Order'!Y404)","v":"EUR"},{"$f":"IF('1. Order'!Z404=\"\",\"\",'1. Order'!Z404)","v":""},{"$f":"IF('1. Order'!AA404=\"\",\"\",'1. Order'!AA404)","v":""},{"$f":"IF('1. Order'!AB404=\"\",\"\",'1. Order'!AB404)","v":""},null,{"$f":"IF('1. Order'!AT404=\"\",\"\",'1. Order'!AT404)","v":""},{"$f":"IF('1. Order'!AU404=\"\",\"\",'1. Order'!AU404)","v":""},null,null,null,null,null,null,null,{"$f":"IF('1. Order'!AY404=\"\",\"\",'1. Order'!AY404)","v":""},{"$f":"IF('1. Order'!AZ404=\"\",\"\",'1. Order'!AZ404)","v":""},{"$f":"IF('1. Order'!BA404=\"\",\"\",'1. Order'!BA404)","v":""},{"$f":"IF('1. Order'!BB404=\"\",\"\",'1. Order'!BB404)","v":""},{"$f":"IF('1. Order'!BD404=\"\",\"\",'1. Order'!BD404)","v":""},{"$f":"IF('1. Order'!BE404=\"\",\"\",'1. Order'!BE404)","v":""},{"$f":"IF('1. Order'!BF404=\"\",\"\",'1. Order'!BF404)","v":""},{"$f":"IF('1. Order'!BG404=\"\",\"\",'1. Order'!BG404)","v":""},{"$f":"IF('1. Order'!BH404=\"\",\"\",'1. Order'!BH404)","v":"ZWO"}]
[{"$f":"IF('1. Order'!F405=\"\",\"\",'1. Order'!F405)","v":{"$error":"#N/A"}},{"$f":"IF('1. Order'!G405=\"\",\"\",'1. Order'!G405)","v":""},{"$f":"IF('1. Order'!H405=\"\",\"\",'1. Order'!H405)","v":""},{"$f":"IF('1. Order'!I405=\"\",\"\",'1. Order'!I405)","v":""},{"$f":"IF('1. Order'!J405=\"\",\"\",'1. Order'!J405)","v":""},{"$f":"IF('1. Order'!K405=\"\",\"\",'1. Order'!K405)","v":""},{"$f":"IF('1. Order'!L405=\"\",\"\",'1. Order'!L405)","v":""},{"$f":"IF('1. Order'!M405=\"\",\"\",'1. Order'!M405)","v":""},{"$f":"IF('1. Order'!N405=\"\",\"\",'1. Order'!N405)","v":""},{"$f":"IF('1. Order'!O405=\"\",\"\",'1. Order'!O405)","v":{"$error":"#N/A"}},{"$f":"IF('1. Order'!P405=\"\",\"\",'1. Order'!P405)","v":{"$error":"#N/A"}},{"$f":"IF('1. Order'!Q405=\"\",\"\",'1. Order'!Q405)","v":""},{"$f":"IF('1. Order'!S405=\"\",\"\",'1. Order'!S405)","v":""},{"$f":"IF('1. Order'!T405=\"\",\"\",'1. Order'!T405)","v":""},{"$f":"IF('1. Order'!W405=\"\",\"\",'1. Order'!W405)","v":""},{"$f":"IF('1. Order'!X405=\"\",\"\",'1. Order'!X405)","v":""},{"$f":"IF('1. Order'!Y405=\"\",\"\",'1. Order'!Y405)","v":"EUR"},{"$f":"IF('1. Order'!Z405=\"\",\"\",'1. Order'!Z405)","v":""},{"$f":"IF('1. Order'!AA405=\"\",\"\",'1. Order'!AA405)","v":""},{"$f":"IF('1. Order'!AB405=\"\",\"\",'1. Order'!AB405)","v":""},null,{"$f":"IF('1. Order'!AT405=\"\",\"\",'1. Order'!AT405)","v":""},{"$f":"IF('1. Order'!AU405=\"\",\"\",'1. Order'!AU405)","v":""},null,null,null,null,null,null,null,{"$f":"IF('1. Order'!AY405=\"\",\"\",'1. Order'!AY405)","v":""},{"$f":"IF('1. Order'!AZ405=\"\",\"\",'1. Order'!AZ405)","v":""},{"$f":"IF('1. Order'!BA405=\"\",\"\",'1. Order'!BA405)","v":""},{"$f":"IF('1. Order'!BB405=\"\",\"\",'1. Order'!BB405)","v":""},{"$f":"IF('1. Order'!BD405=\"\",\"\",'1. Order'!BD405)","v":""},{"$f":"IF('1. Order'!BE405=\"\",\"\",'1. Order'!BE405)","v":""},{"$f":"IF('1. Order'!BF405=\"\",\"\",'1. Order'!BF405)","v":""},{"$f":"IF('1. Order'!BG405=\"\",\"\",'1. Order'!BG405)","v":""},{"$f":"IF('1. Order'!BH405=\"\",\"\",'1. Order'!BH405)","v":"ZWO"}]
[{"$f":"IF('1. Order'!F406=\"\",\"\",'1. Order'!F406)","v":{"$error":"#N/A"}},{"$f":"IF('1. Order'!G406=\"\",\"\",'1. Order'!G406)","v":""},{"$f":"IF('1. Order'!H406=\"\",\"\",'1. Order'!H406)","v":""},{"$f":"IF('1. Order'!I406=\"\",\"\",'1. Order'!I406)","v":""},{"$f":"IF('1. Order'!J406=\"\",\"\",'1. Order'!J406)","v":""},{"$f":"IF('1. Order'!K406=\"\",\"\",'1. Order'!K406)","v":""},{"$f":"IF('1. Order'!L406=\"\",\"\",'1. Order'!L406)","v":""},{"$f":"IF('1. Order'!M406=\"\",\"\",'1. Order'!M406)","v":""},{"$f":"IF('1. Order'!N406=\"\",\"\",'1. Order'!N406)","v":""},{"$f":"IF('1. Order'!O406=\"\",\"\",'1. Order'!O406)","v":{"$error":"#N/A"}},{"$f":"IF('1. Order'!P406=\"\",\"\",'1. Order'!P406)","v":{"$error":"#N/A"}},{"$f":"IF('1. Order'!Q406=\"\",\"\",'1. Order'!Q406)","v":""},{"$f":"IF('1. Order'!S406=\"\",\"\",'1. Order'!S406)","v":""},{"$f":"IF('1. Order'!T406=\"\",\"\",'1. Order'!T406)","v":""},{"$f":"IF('1. Order'!W406=\"\",\"\",'1. Order'!W406)","v":""},{"$f":"IF('1. Order'!X406=\"\",\"\",'1. Order'!X406)","v":""},{"$f":"IF('1. Order'!Y406=\"\",\"\",'1. Order'!Y406)","v":"EUR"},{"$f":"IF('1. Order'!Z406=\"\",\"\",'1. Order'!Z406)","v":""},{"$f":"IF('1. Order'!AA406=\"\",\"\",'1. Order'!AA406)","v":""},{"$f":"IF('1. Order'!AB406=\"\",\"\",'1. Order'!AB406)","v":""},null,{"$f":"IF('1. Order'!AT406=\"\",\"\",'1. Order'!AT406)","v":""},{"$f":"IF('1. Order'!AU406=\"\",\"\",'1. Order'!AU406)","v":""},null,null,null,null,null,null,null,{"$f":"IF('1. Order'!AY406=\"\",\"\",'1. Order'!AY406)","v":""},{"$f":"IF('1. Order'!AZ406=\"\",\"\",'1. Order'!AZ406)","v":""},{"$f":"IF('1. Order'!BA406=\"\",\"\",'1. Order'!BA406)","v":""},{"$f":"IF('1. Order'!BB406=\"\",\"\",'1. Order'!BB406)","v":""},{"$f":"IF('1. Order'!BD406=\"\",\"\",'1. Order'!BD406)","v":""},{"$f":"IF('1. Order'!BE406=\"\",\"\",'1. Order'!BE406)","v":""},{"$f":"IF('1. Order'!BF406=\"\",\"\",'1. Order'!BF406)","v":""},{"$f":"IF('1. Order'!BG406=\"\",\"\",'1. Order'!BG406)","v":""},{"$f":"IF('1. Order'!BH406=\"\",\"\",'1. Order'!BH406)","v":"ZWO"}]
[{"$f":"IF('1. Order'!F407=\"\",\"\",'1. Order'!F407)","v":{"$error":"#N/A"}},{"$f":"IF('1. Order'!G407=\"\",\"\",'1. Order'!G407)","v":""},{"$f":"IF('1. Order'!H407=\"\",\"\",'1. Order'!H407)","v":""},{"$f":"IF('1. Order'!I407=\"\",\"\",'1. Order'!I407)","v":""},{"$f":"IF('1. Order'!J407=\"\",\"\",'1. Order'!J407)","v":""},{"$f":"IF('1. Order'!K407=\"\",\"\",'1. Order'!K407)","v":""},{"$f":"IF('1. Order'!L407=\"\",\"\",'1. Order'!L407)","v":""},{"$f":"IF('1. Order'!M407=\"\",\"\",'1. Order'!M407)","v":""},{"$f":"IF('1. Order'!N407=\"\",\"\",'1. Order'!N407)","v":""},{"$f":"IF('1. Order'!O407=\"\",\"\",'1. Order'!O407)","v":{"$error":"#N/A"}},{"$f":"IF('1. Order'!P407=\"\",\"\",'1. Order'!P407)","v":{"$error":"#N/A"}},{"$f":"IF('1. Order'!Q407=\"\",\"\",'1. Order'!Q407)","v":""},{"$f":"IF('1. Order'!S407=\"\",\"\",'1. Order'!S407)","v":""},{"$f":"IF('1. Order'!T407=\"\",\"\",'1. Order'!T407)","v":""},{"$f":"IF('1. Order'!W407=\"\",\"\",'1. Order'!W407)","v":""},{"$f":"IF('1. Order'!X407=\"\",\"\",'1. Order'!X407)","v":""},{"$f":"IF('1. Order'!Y407=\"\",\"\",'1. Order'!Y407)","v":"EUR"},{"$f":"IF('1. Order'!Z407=\"\",\"\",'1. Order'!Z407)","v":""},{"$f":"IF('1. Order'!AA407=\"\",\"\",'1. Order'!AA407)","v":""},{"$f":"IF('1. Order'!AB407=\"\",\"\",'1. Order'!AB407)","v":""},null,{"$f":"IF('1. Order'!AT407=\"\",\"\",'1. Order'!AT407)","v":""},{"$f":"IF('1. Order'!AU407=\"\",\"\",'1. Order'!AU407)","v":""},null,null,null,null,null,null,null,{"$f":"IF('1. Order'!AY407=\"\",\"\",'1. Order'!AY407)","v":""},{"$f":"IF('1. Order'!AZ407=\"\",\"\",'1. Order'!AZ407)","v":""},{"$f":"IF('1. Order'!BA407=\"\",\"\",'1. Order'!BA407)","v":""},{"$f":"IF('1. Order'!BB407=\"\",\"\",'1. Order'!BB407)","v":""},{"$f":"IF('1. Order'!BD407=\"\",\"\",'1. Order'!BD407)","v":""},{"$f":"IF('1. Order'!BE407=\"\",\"\",'1. Order'!BE407)","v":""},{"$f":"IF('1. Order'!BF407=\"\",\"\",'1. Order'!BF407)","v":""},{"$f":"IF('1. Order'!BG407=\"\",\"\",'1. Order'!BG407)","v":""},{"$f":"IF('1. Order'!BH407=\"\",\"\",'1. Order'!BH407)","v":"ZWO"}]
[{"$f":"IF('1. Order'!F408=\"\",\"\",'1. Order'!F408)","v":{"$error":"#N/A"}},{"$f":"IF('1. Order'!G408=\"\",\"\",'1. Order'!G408)","v":""},{"$f":"IF('1. Order'!H408=\"\",\"\",'1. Order'!H408)","v":""},{"$f":"IF('1. Order'!I408=\"\",\"\",'1. Order'!I408)","v":""},{"$f":"IF('1. Order'!J408=\"\",\"\",'1. Order'!J408)","v":""},{"$f":"IF('1. Order'!K408=\"\",\"\",'1. Order'!K408)","v":""},{"$f":"IF('1. Order'!L408=\"\",\"\",'1. Order'!L408)","v":""},{"$f":"IF('1. Order'!M408=\"\",\"\",'1. Order'!M408)","v":""},{"$f":"IF('1. Order'!N408=\"\",\"\",'1. Order'!N408)","v":""},{"$f":"IF('1. Order'!O408=\"\",\"\",'1. Order'!O408)","v":{"$error":"#N/A"}},{"$f":"IF('1. Order'!P408=\"\",\"\",'1. Order'!P408)","v":{"$error":"#N/A"}},{"$f":"IF('1. Order'!Q408=\"\",\"\",'1. Order'!Q408)","v":""},{"$f":"IF('1. Order'!S408=\"\",\"\",'1. Order'!S408)","v":""},{"$f":"IF('1. Order'!T408=\"\",\"\",'1. Order'!T408)","v":""},{"$f":"IF('1. Order'!W408=\"\",\"\",'1. Order'!W408)","v":""},{"$f":"IF('1. Order'!X408=\"\",\"\",'1. Order'!X408)","v":""},{"$f":"IF('1. Order'!Y408=\"\",\"\",'1. Order'!Y408)","v":"EUR"},{"$f":"IF('1. Order'!Z408=\"\",\"\",'1. Order'!Z408)","v":""},{"$f":"IF('1. Order'!AA408=\"\",\"\",'1. Order'!AA408)","v":""},{"$f":"IF('1. Order'!AB408=\"\",\"\",'1. Order'!AB408)","v":""},null,{"$f":"IF('1. Order'!AT408=\"\",\"\",'1. Order'!AT408)","v":""},{"$f":"IF('1. Order'!AU408=\"\",\"\",'1. Order'!AU408)","v":""},null,null,null,null,null,null,null,{"$f":"IF('1. Order'!AY408=\"\",\"\",'1. Order'!AY408)","v":""},{"$f":"IF('1. Order'!AZ408=\"\",\"\",'1. Order'!AZ408)","v":""},{"$f":"IF('1. Order'!BA408=\"\",\"\",'1. Order'!BA408)","v":""},{"$f":"IF('1. Order'!BB408=\"\",\"\",'1. Order'!BB408)","v":""},{"$f":"IF('1. Order'!BD408=\"\",\"\",'1. Order'!BD408)","v":""},{"$f":"IF('1. Order'!BE408=\"\",\"\",'1. Order'!BE408)","v":""},{"$f":"IF('1. Order'!BF408=\"\",\"\",'1. Order'!BF408)","v":""},{"$f":"IF('1. Order'!BG408=\"\",\"\",'1. Order'!BG408)","v":""},{"$f":"IF('1. Order'!BH408=\"\",\"\",'1. Order'!BH408)","v":"ZWO"}]
[{"$f":"IF('1. Order'!F409=\"\",\"\",'1. Order'!F409)","v":{"$error":"#N/A"}},{"$f":"IF('1. Order'!G409=\"\",\"\",'1. Order'!G409)","v":""},{"$f":"IF('1. Order'!H409=\"\",\"\",'1. Order'!H409)","v":""},{"$f":"IF('1. Order'!I409=\"\",\"\",'1. Order'!I409)","v":""},{"$f":"IF('1. Order'!J409=\"\",\"\",'1. Order'!J409)","v":""},{"$f":"IF('1. Order'!K409=\"\",\"\",'1. Order'!K409)","v":""},{"$f":"IF('1. Order'!L409=\"\",\"\",'1. Order'!L409)","v":""},{"$f":"IF('1. Order'!M409=\"\",\"\",'1. Order'!M409)","v":""},{"$f":"IF('1. Order'!N409=\"\",\"\",'1. Order'!N409)","v":""},{"$f":"IF('1. Order'!O409=\"\",\"\",'1. Order'!O409)","v":{"$error":"#N/A"}},{"$f":"IF('1. Order'!P409=\"\",\"\",'1. Order'!P409)","v":{"$error":"#N/A"}},{"$f":"IF('1. Order'!Q409=\"\",\"\",'1. Order'!Q409)","v":""},{"$f":"IF('1. Order'!S409=\"\",\"\",'1. Order'!S409)","v":""},{"$f":"IF('1. Order'!T409=\"\",\"\",'1. Order'!T409)","v":""},{"$f":"IF('1. Order'!W409=\"\",\"\",'1. Order'!W409)","v":""},{"$f":"IF('1. Order'!X409=\"\",\"\",'1. Order'!X409)","v":""},{"$f":"IF('1. Order'!Y409=\"\",\"\",'1. Order'!Y409)","v":"EUR"},{"$f":"IF('1. Order'!Z409=\"\",\"\",'1. Order'!Z409)","v":""},{"$f":"IF('1. Order'!AA409=\"\",\"\",'1. Order'!AA409)","v":""},{"$f":"IF('1. Order'!AB409=\"\",\"\",'1. Order'!AB409)","v":""},null,{"$f":"IF('1. Order'!AT409=\"\",\"\",'1. Order'!AT409)","v":""},{"$f":"IF('1. Order'!AU409=\"\",\"\",'1. Order'!AU409)","v":""},null,null,null,null,null,null,null,{"$f":"IF('1. Order'!AY409=\"\",\"\",'1. Order'!AY409)","v":""},{"$f":"IF('1. Order'!AZ409=\"\",\"\",'1. Order'!AZ409)","v":""},{"$f":"IF('1. Order'!BA409=\"\",\"\",'1. Order'!BA409)","v":""},{"$f":"IF('1. Order'!BB409=\"\",\"\",'1. Order'!BB409)","v":""},{"$f":"IF('1. Order'!BD409=\"\",\"\",'1. Order'!BD409)","v":""},{"$f":"IF('1. Order'!BE409=\"\",\"\",'1. Order'!BE409)","v":""},{"$f":"IF('1. Order'!BF409=\"\",\"\",'1. Order'!BF409)","v":""},{"$f":"IF('1. Order'!BG409=\"\",\"\",'1. Order'!BG409)","v":""},{"$f":"IF('1. Order'!BH409=\"\",\"\",'1. Order'!BH409)","v":"ZWO"}]
[{"$f":"IF('1. Order'!F410=\"\",\"\",'1. Order'!F410)","v":{"$error":"#N/A"}},{"$f":"IF('1. Order'!G410=\"\",\"\",'1. Order'!G410)","v":""},{"$f":"IF('1. Order'!H410=\"\",\"\",'1. Order'!H410)","v":""},{"$f":"IF('1. Order'!I410=\"\",\"\",'1. Order'!I410)","v":""},{"$f":"IF('1. Order'!J410=\"\",\"\",'1. Order'!J410)","v":""},{"$f":"IF('1. Order'!K410=\"\",\"\",'1. Order'!K410)","v":""},{"$f":"IF('1. Order'!L410=\"\",\"\",'1. Order'!L410)","v":""},{"$f":"IF('1. Order'!M410=\"\",\"\",'1. Order'!M410)","v":""},{"$f":"IF('1. Order'!N410=\"\",\"\",'1. Order'!N410)","v":""},{"$f":"IF('1. Order'!O410=\"\",\"\",'1. Order'!O410)","v":{"$error":"#N/A"}},{"$f":"IF('1. Order'!P410=\"\",\"\",'1. Order'!P410)","v":{"$error":"#N/A"}},{"$f":"IF('1. Order'!Q410=\"\",\"\",'1. Order'!Q410)","v":""},{"$f":"IF('1. Order'!S410=\"\",\"\",'1. Order'!S410)","v":""},{"$f":"IF('1. Order'!T410=\"\",\"\",'1. Order'!T410)","v":""},{"$f":"IF('1. Order'!W410=\"\",\"\",'1. Order'!W410)","v":""},{"$f":"IF('1. Order'!X410=\"\",\"\",'1. Order'!X410)","v":""},{"$f":"IF('1. Order'!Y410=\"\",\"\",'1. Order'!Y410)","v":"EUR"},{"$f":"IF('1. Order'!Z410=\"\",\"\",'1. Order'!Z410)","v":""},{"$f":"IF('1. Order'!AA410=\"\",\"\",'1. Order'!AA410)","v":""},{"$f":"IF('1. Order'!AB410=\"\",\"\",'1. Order'!AB410)","v":""},null,{"$f":"IF('1. Order'!AT410=\"\",\"\",'1. Order'!AT410)","v":""},{"$f":"IF('1. Order'!AU410=\"\",\"\",'1. Order'!AU410)","v":""},null,null,null,null,null,null,null,{"$f":"IF('1. Order'!AY410=\"\",\"\",'1. Order'!AY410)","v":""},{"$f":"IF('1. Order'!AZ410=\"\",\"\",'1. Order'!AZ410)","v":""},{"$f":"IF('1. Order'!BA410=\"\",\"\",'1. Order'!BA410)","v":""},{"$f":"IF('1. Order'!BB410=\"\",\"\",'1. Order'!BB410)","v":""},{"$f":"IF('1. Order'!BD410=\"\",\"\",'1. Order'!BD410)","v":""},{"$f":"IF('1. Order'!BE410=\"\",\"\",'1. Order'!BE410)","v":""},{"$f":"IF('1. Order'!BF410=\"\",\"\",'1. Order'!BF410)","v":""},{"$f":"IF('1. Order'!BG410=\"\",\"\",'1. Order'!BG410)","v":""},{"$f":"IF('1. Order'!BH410=\"\",\"\",'1. Order'!BH410)","v":"ZWO"}]
[{"$f":"IF('1. Order'!F411=\"\",\"\",'1. Order'!F411)","v":{"$error":"#N/A"}},{"$f":"IF('1. Order'!G411=\"\",\"\",'1. Order'!G411)","v":""},{"$f":"IF('1. Order'!H411=\"\",\"\",'1. Order'!H411)","v":""},{"$f":"IF('1. Order'!I411=\"\",\"\",'1. Order'!I411)","v":""},{"$f":"IF('1. Order'!J411=\"\",\"\",'1. Order'!J411)","v":""},{"$f":"IF('1. Order'!K411=\"\",\"\",'1. Order'!K411)","v":""},{"$f":"IF('1. Order'!L411=\"\",\"\",'1. Order'!L411)","v":""},{"$f":"IF('1. Order'!M411=\"\",\"\",'1. Order'!M411)","v":""},{"$f":"IF('1. Order'!N411=\"\",\"\",'1. Order'!N411)","v":""},{"$f":"IF('1. Order'!O411=\"\",\"\",'1. Order'!O411)","v":{"$error":"#N/A"}},{"$f":"IF('1. Order'!P411=\"\",\"\",'1. Order'!P411)","v":{"$error":"#N/A"}},{"$f":"IF('1. Order'!Q411=\"\",\"\",'1. Order'!Q411)","v":""},{"$f":"IF('1. Order'!S411=\"\",\"\",'1. Order'!S411)","v":""},{"$f":"IF('1. Order'!T411=\"\",\"\",'1. Order'!T411)","v":""},{"$f":"IF('1. Order'!W411=\"\",\"\",'1. Order'!W411)","v":""},{"$f":"IF('1. Order'!X411=\"\",\"\",'1. Order'!X411)","v":""},{"$f":"IF('1. Order'!Y411=\"\",\"\",'1. Order'!Y411)","v":"EUR"},{"$f":"IF('1. Order'!Z411=\"\",\"\",'1. Order'!Z411)","v":""},{"$f":"IF('1. Order'!AA411=\"\",\"\",'1. Order'!AA411)","v":""},{"$f":"IF('1. Order'!AB411=\"\",\"\",'1. Order'!AB411)","v":""},null,{"$f":"IF('1. Order'!AT411=\"\",\"\",'1. Order'!AT411)","v":""},{"$f":"IF('1. Order'!AU411=\"\",\"\",'1. Order'!AU411)","v":""},null,null,null,null,null,null,null,{"$f":"IF('1. Order'!AY411=\"\",\"\",'1. Order'!AY411)","v":""},{"$f":"IF('1. Order'!AZ411=\"\",\"\",'1. Order'!AZ411)","v":""},{"$f":"IF('1. Order'!BA411=\"\",\"\",'1. Order'!BA411)","v":""},{"$f":"IF('1. Order'!BB411=\"\",\"\",'1. Order'!BB411)","v":""},{"$f":"IF('1. Order'!BD411=\"\",\"\",'1. Order'!BD411)","v":""},{"$f":"IF('1. Order'!BE411=\"\",\"\",'1. Order'!BE411)","v":""},{"$f":"IF('1. Order'!BF411=\"\",\"\",'1. Order'!BF411)","v":""},{"$f":"IF('1. Order'!BG411=\"\",\"\",'1. Order'!BG411)","v":""},{"$f":"IF('1. Order'!BH411=\"\",\"\",'1. Order'!BH411)","v":"ZWO"}]
[{"$f":"IF('1. Order'!F412=\"\",\"\",'1. Order'!F412)","v":{"$error":"#N/A"}},{"$f":"IF('1. Order'!G412=\"\",\"\",'1. Order'!G412)","v":""},{"$f":"IF('1. Order'!H412=\"\",\"\",'1. Order'!H412)","v":""},{"$f":"IF('1. Order'!I412=\"\",\"\",'1. Order'!I412)","v":""},{"$f":"IF('1. Order'!J412=\"\",\"\",'1. Order'!J412)","v":""},{"$f":"IF('1. Order'!K412=\"\",\"\",'1. Order'!K412)","v":""},{"$f":"IF('1. Order'!L412=\"\",\"\",'1. Order'!L412)","v":""},{"$f":"IF('1. Order'!M412=\"\",\"\",'1. Order'!M412)","v":""},{"$f":"IF('1. Order'!N412=\"\",\"\",'1. Order'!N412)","v":""},{"$f":"IF('1. Order'!O412=\"\",\"\",'1. Order'!O412)","v":{"$error":"#N/A"}},{"$f":"IF('1. Order'!P412=\"\",\"\",'1. Order'!P412)","v":{"$error":"#N/A"}},{"$f":"IF('1. Order'!Q412=\"\",\"\",'1. Order'!Q412)","v":""},{"$f":"IF('1. Order'!S412=\"\",\"\",'1. Order'!S412)","v":""},{"$f":"IF('1. Order'!T412=\"\",\"\",'1. Order'!T412)","v":""},{"$f":"IF('1. Order'!W412=\"\",\"\",'1. Order'!W412)","v":""},{"$f":"IF('1. Order'!X412=\"\",\"\",'1. Order'!X412)","v":""},{"$f":"IF('1. Order'!Y412=\"\",\"\",'1. Order'!Y412)","v":"EUR"},{"$f":"IF('1. Order'!Z412=\"\",\"\",'1. Order'!Z412)","v":""},{"$f":"IF('1. Order'!AA412=\"\",\"\",'1. Order'!AA412)","v":""},{"$f":"IF('1. Order'!AB412=\"\",\"\",'1. Order'!AB412)","v":""},null,{"$f":"IF('1. Order'!AT412=\"\",\"\",'1. Order'!AT412)","v":""},{"$f":"IF('1. Order'!AU412=\"\",\"\",'1. Order'!AU412)","v":""},null,null,null,null,null,null,null,{"$f":"IF('1. Order'!AY412=\"\",\"\",'1. Order'!AY412)","v":""},{"$f":"IF('1. Order'!AZ412=\"\",\"\",'1. Order'!AZ412)","v":""},{"$f":"IF('1. Order'!BA412=\"\",\"\",'1. Order'!BA412)","v":""},{"$f":"IF('1. Order'!BB412=\"\",\"\",'1. Order'!BB412)","v":""},{"$f":"IF('1. Order'!BD412=\"\",\"\",'1. Order'!BD412)","v":""},{"$f":"IF('1. Order'!BE412=\"\",\"\",'1. Order'!BE412)","v":""},{"$f":"IF('1. Order'!BF412=\"\",\"\",'1. Order'!BF412)","v":""},{"$f":"IF('1. Order'!BG412=\"\",\"\",'1. Order'!BG412)","v":""},{"$f":"IF('1. Order'!BH412=\"\",\"\",'1. Order'!BH412)","v":"ZWO"}]
[{"$f":"IF('1. Order'!F413=\"\",\"\",'1. Order'!F413)","v":{"$error":"#N/A"}},{"$f":"IF('1. Order'!G413=\"\",\"\",'1. Order'!G413)","v":""},{"$f":"IF('1. Order'!H413=\"\",\"\",'1. Order'!H413)","v":""},{"$f":"IF('1. Order'!I413=\"\",\"\",'1. Order'!I413)","v":""},{"$f":"IF('1. Order'!J413=\"\",\"\",'1. Order'!J413)","v":""},{"$f":"IF('1. Order'!K413=\"\",\"\",'1. Order'!K413)","v":""},{"$f":"IF('1. Order'!L413=\"\",\"\",'1. Order'!L413)","v":""},{"$f":"IF('1. Order'!M413=\"\",\"\",'1. Order'!M413)","v":""},{"$f":"IF('1. Order'!N413=\"\",\"\",'1. Order'!N413)","v":""},{"$f":"IF('1. Order'!O413=\"\",\"\",'1. Order'!O413)","v":{"$error":"#N/A"}},{"$f":"IF('1. Order'!P413=\"\",\"\",'1. Order'!P413)","v":{"$error":"#N/A"}},{"$f":"IF('1. Order'!Q413=\"\",\"\",'1. Order'!Q413)","v":""},{"$f":"IF('1. Order'!S413=\"\",\"\",'1. Order'!S413)","v":""},{"$f":"IF('1. Order'!T413=\"\",\"\",'1. Order'!T413)","v":""},{"$f":"IF('1. Order'!W413=\"\",\"\",'1. Order'!W413)","v":""},{"$f":"IF('1. Order'!X413=\"\",\"\",'1. Order'!X413)","v":""},{"$f":"IF('1. Order'!Y413=\"\",\"\",'1. Order'!Y413)","v":"EUR"},{"$f":"IF('1. Order'!Z413=\"\",\"\",'1. Order'!Z413)","v":""},{"$f":"IF('1. Order'!AA413=\"\",\"\",'1. Order'!AA413)","v":""},{"$f":"IF('1. Order'!AB413=\"\",\"\",'1. Order'!AB413)","v":""},null,{"$f":"IF('1. Order'!AT413=\"\",\"\",'1. Order'!AT413)","v":""},{"$f":"IF('1. Order'!AU413=\"\",\"\",'1. Order'!AU413)","v":""},null,null,null,null,null,null,null,{"$f":"IF('1. Order'!AY413=\"\",\"\",'1. Order'!AY413)","v":""},{"$f":"IF('1. Order'!AZ413=\"\",\"\",'1. Order'!AZ413)","v":""},{"$f":"IF('1. Order'!BA413=\"\",\"\",'1. Order'!BA413)","v":""},{"$f":"IF('1. Order'!BB413=\"\",\"\",'1. Order'!BB413)","v":""},{"$f":"IF('1. Order'!BD413=\"\",\"\",'1. Order'!BD413)","v":""},{"$f":"IF('1. Order'!BE413=\"\",\"\",'1. Order'!BE413)","v":""},{"$f":"IF('1. Order'!BF413=\"\",\"\",'1. Order'!BF413)","v":""},{"$f":"IF('1. Order'!BG413=\"\",\"\",'1. Order'!BG413)","v":""},{"$f":"IF('1. Order'!BH413=\"\",\"\",'1. Order'!BH413)","v":"ZWO"}]
[{"$f":"IF('1. Order'!F414=\"\",\"\",'1. Order'!F414)","v":{"$error":"#N/A"}},{"$f":"IF('1. Order'!G414=\"\",\"\",'1. Order'!G414)","v":""},{"$f":"IF('1. Order'!H414=\"\",\"\",'1. Order'!H414)","v":""},{"$f":"IF('1. Order'!I414=\"\",\"\",'1. Order'!I414)","v":""},{"$f":"IF('1. Order'!J414=\"\",\"\",'1. Order'!J414)","v":""},{"$f":"IF('1. Order'!K414=\"\",\"\",'1. Order'!K414)","v":""},{"$f":"IF('1. Order'!L414=\"\",\"\",'1. Order'!L414)","v":""},{"$f":"IF('1. Order'!M414=\"\",\"\",'1. Order'!M414)","v":""},{"$f":"IF('1. Order'!N414=\"\",\"\",'1. Order'!N414)","v":""},{"$f":"IF('1. Order'!O414=\"\",\"\",'1. Order'!O414)","v":{"$error":"#N/A"}},{"$f":"IF('1. Order'!P414=\"\",\"\",'1. Order'!P414)","v":{"$error":"#N/A"}},{"$f":"IF('1. Order'!Q414=\"\",\"\",'1. Order'!Q414)","v":""},{"$f":"IF('1. Order'!S414=\"\",\"\",'1. Order'!S414)","v":""},{"$f":"IF('1. Order'!T414=\"\",\"\",'1. Order'!T414)","v":""},{"$f":"IF('1. Order'!W414=\"\",\"\",'1. Order'!W414)","v":""},{"$f":"IF('1. Order'!X414=\"\",\"\",'1. Order'!X414)","v":""},{"$f":"IF('1. Order'!Y414=\"\",\"\",'1. Order'!Y414)","v":"EUR"},{"$f":"IF('1. Order'!Z414=\"\",\"\",'1. Order'!Z414)","v":""},{"$f":"IF('1. Order'!AA414=\"\",\"\",'1. Order'!AA414)","v":""},{"$f":"IF('1. Order'!AB414=\"\",\"\",'1. Order'!AB414)","v":""},null,{"$f":"IF('1. Order'!AT414=\"\",\"\",'1. Order'!AT414)","v":""},{"$f":"IF('1. Order'!AU414=\"\",\"\",'1. Order'!AU414)","v":""},null,null,null,null,null,null,null,{"$f":"IF('1. Order'!AY414=\"\",\"\",'1. Order'!AY414)","v":""},{"$f":"IF('1. Order'!AZ414=\"\",\"\",'1. Order'!AZ414)","v":""},{"$f":"IF('1. Order'!BA414=\"\",\"\",'1. Order'!BA414)","v":""},{"$f":"IF('1. Order'!BB414=\"\",\"\",'1. Order'!BB414)","v":""},{"$f":"IF('1. Order'!BD414=\"\",\"\",'1. Order'!BD414)","v":""},{"$f":"IF('1. Order'!BE414=\"\",\"\",'1. Order'!BE414)","v":""},{"$f":"IF('1. Order'!BF414=\"\",\"\",'1. Order'!BF414)","v":""},{"$f":"IF('1. Order'!BG414=\"\",\"\",'1. Order'!BG414)","v":""},{"$f":"IF('1. Order'!BH414=\"\",\"\",'1. Order'!BH414)","v":"ZWO"}]
[{"$f":"IF('1. Order'!F415=\"\",\"\",'1. Order'!F415)","v":{"$error":"#N/A"}},{"$f":"IF('1. Order'!G415=\"\",\"\",'1. Order'!G415)","v":""},{"$f":"IF('1. Order'!H415=\"\",\"\",'1. Order'!H415)","v":""},{"$f":"IF('1. Order'!I415=\"\",\"\",'1. Order'!I415)","v":""},{"$f":"IF('1. Order'!J415=\"\",\"\",'1. Order'!J415)","v":""},{"$f":"IF('1. Order'!K415=\"\",\"\",'1. Order'!K415)","v":""},{"$f":"IF('1. Order'!L415=\"\",\"\",'1. Order'!L415)","v":""},{"$f":"IF('1. Order'!M415=\"\",\"\",'1. Order'!M415)","v":""},{"$f":"IF('1. Order'!N415=\"\",\"\",'1. Order'!N415)","v":""},{"$f":"IF('1. Order'!O415=\"\",\"\",'1. Order'!O415)","v":{"$error":"#N/A"}},{"$f":"IF('1. Order'!P415=\"\",\"\",'1. Order'!P415)","v":{"$error":"#N/A"}},{"$f":"IF('1. Order'!Q415=\"\",\"\",'1. Order'!Q415)","v":""},{"$f":"IF('1. Order'!S415=\"\",\"\",'1. Order'!S415)","v":""},{"$f":"IF('1. Order'!T415=\"\",\"\",'1. Order'!T415)","v":""},{"$f":"IF('1. Order'!W415=\"\",\"\",'1. Order'!W415)","v":""},{"$f":"IF('1. Order'!X415=\"\",\"\",'1. Order'!X415)","v":""},{"$f":"IF('1. Order'!Y415=\"\",\"\",'1. Order'!Y415)","v":"EUR"},{"$f":"IF('1. Order'!Z415=\"\",\"\",'1. Order'!Z415)","v":""},{"$f":"IF('1. Order'!AA415=\"\",\"\",'1. Order'!AA415)","v":""},{"$f":"IF('1. Order'!AB415=\"\",\"\",'1. Order'!AB415)","v":""},null,{"$f":"IF('1. Order'!AT415=\"\",\"\",'1. Order'!AT415)","v":""},{"$f":"IF('1. Order'!AU415=\"\",\"\",'1. Order'!AU415)","v":""},null,null,null,null,null,null,null,{"$f":"IF('1. Order'!AY415=\"\",\"\",'1. Order'!AY415)","v":""},{"$f":"IF('1. Order'!AZ415=\"\",\"\",'1. Order'!AZ415)","v":""},{"$f":"IF('1. Order'!BA415=\"\",\"\",'1. Order'!BA415)","v":""},{"$f":"IF('1. Order'!BB415=\"\",\"\",'1. Order'!BB415)","v":""},{"$f":"IF('1. Order'!BD415=\"\",\"\",'1. Order'!BD415)","v":""},{"$f":"IF('1. Order'!BE415=\"\",\"\",'1. Order'!BE415)","v":""},{"$f":"IF('1. Order'!BF415=\"\",\"\",'1. Order'!BF415)","v":""},{"$f":"IF('1. Order'!BG415=\"\",\"\",'1. Order'!BG415)","v":""},{"$f":"IF('1. Order'!BH415=\"\",\"\",'1. Order'!BH415)","v":"ZWO"}]
[{"$f":"IF('1. Order'!F416=\"\",\"\",'1. Order'!F416)","v":{"$error":"#N/A"}},{"$f":"IF('1. Order'!G416=\"\",\"\",'1. Order'!G416)","v":""},{"$f":"IF('1. Order'!H416=\"\",\"\",'1. Order'!H416)","v":""},{"$f":"IF('1. Order'!I416=\"\",\"\",'1. Order'!I416)","v":""},{"$f":"IF('1. Order'!J416=\"\",\"\",'1. Order'!J416)","v":""},{"$f":"IF('1. Order'!K416=\"\",\"\",'1. Order'!K416)","v":""},{"$f":"IF('1. Order'!L416=\"\",\"\",'1. Order'!L416)","v":""},{"$f":"IF('1. Order'!M416=\"\",\"\",'1. Order'!M416)","v":""},{"$f":"IF('1. Order'!N416=\"\",\"\",'1. Order'!N416)","v":""},{"$f":"IF('1. Order'!O416=\"\",\"\",'1. Order'!O416)","v":{"$error":"#N/A"}},{"$f":"IF('1. Order'!P416=\"\",\"\",'1. Order'!P416)","v":{"$error":"#N/A"}},{"$f":"IF('1. Order'!Q416=\"\",\"\",'1. Order'!Q416)","v":""},{"$f":"IF('1. Order'!S416=\"\",\"\",'1. Order'!S416)","v":""},{"$f":"IF('1. Order'!T416=\"\",\"\",'1. Order'!T416)","v":""},{"$f":"IF('1. Order'!W416=\"\",\"\",'1. Order'!W416)","v":""},{"$f":"IF('1. Order'!X416=\"\",\"\",'1. Order'!X416)","v":""},{"$f":"IF('1. Order'!Y416=\"\",\"\",'1. Order'!Y416)","v":"EUR"},{"$f":"IF('1. Order'!Z416=\"\",\"\",'1. Order'!Z416)","v":""},{"$f":"IF('1. Order'!AA416=\"\",\"\",'1. Order'!AA416)","v":""},{"$f":"IF('1. Order'!AB416=\"\",\"\",'1. Order'!AB416)","v":""},null,{"$f":"IF('1. Order'!AT416=\"\",\"\",'1. Order'!AT416)","v":""},{"$f":"IF('1. Order'!AU416=\"\",\"\",'1. Order'!AU416)","v":""},null,null,null,null,null,null,null,{"$f":"IF('1. Order'!AY416=\"\",\"\",'1. Order'!AY416)","v":""},{"$f":"IF('1. Order'!AZ416=\"\",\"\",'1. Order'!AZ416)","v":""},{"$f":"IF('1. Order'!BA416=\"\",\"\",'1. Order'!BA416)","v":""},{"$f":"IF('1. Order'!BB416=\"\",\"\",'1. Order'!BB416)","v":""},{"$f":"IF('1. Order'!BD416=\"\",\"\",'1. Order'!BD416)","v":""},{"$f":"IF('1. Order'!BE416=\"\",\"\",'1. Order'!BE416)","v":""},{"$f":"IF('1. Order'!BF416=\"\",\"\",'1. Order'!BF416)","v":""},{"$f":"IF('1. Order'!BG416=\"\",\"\",'1. Order'!BG416)","v":""},{"$f":"IF('1. Order'!BH416=\"\",\"\",'1. Order'!BH416)","v":"ZWO"}]
[{"$f":"IF('1. Order'!F417=\"\",\"\",'1. Order'!F417)","v":{"$error":"#N/A"}},{"$f":"IF('1. Order'!G417=\"\",\"\",'1. Order'!G417)","v":""},{"$f":"IF('1. Order'!H417=\"\",\"\",'1. Order'!H417)","v":""},{"$f":"IF('1. Order'!I417=\"\",\"\",'1. Order'!I417)","v":""},{"$f":"IF('1. Order'!J417=\"\",\"\",'1. Order'!J417)","v":""},{"$f":"IF('1. Order'!K417=\"\",\"\",'1. Order'!K417)","v":""},{"$f":"IF('1. Order'!L417=\"\",\"\",'1. Order'!L417)","v":""},{"$f":"IF('1. Order'!M417=\"\",\"\",'1. Order'!M417)","v":""},{"$f":"IF('1. Order'!N417=\"\",\"\",'1. Order'!N417)","v":""},{"$f":"IF('1. Order'!O417=\"\",\"\",'1. Order'!O417)","v":{"$error":"#N/A"}},{"$f":"IF('1. Order'!P417=\"\",\"\",'1. Order'!P417)","v":{"$error":"#N/A"}},{"$f":"IF('1. Order'!Q417=\"\",\"\",'1. Order'!Q417)","v":""},{"$f":"IF('1. Order'!S417=\"\",\"\",'1. Order'!S417)","v":""},{"$f":"IF('1. Order'!T417=\"\",\"\",'1. Order'!T417)","v":""},{"$f":"IF('1. Order'!W417=\"\",\"\",'1. Order'!W417)","v":""},{"$f":"IF('1. Order'!X417=\"\",\"\",'1. Order'!X417)","v":""},{"$f":"IF('1. Order'!Y417=\"\",\"\",'1. Order'!Y417)","v":"EUR"},{"$f":"IF('1. Order'!Z417=\"\",\"\",'1. Order'!Z417)","v":""},{"$f":"IF('1. Order'!AA417=\"\",\"\",'1. Order'!AA417)","v":""},{"$f":"IF('1. Order'!AB417=\"\",\"\",'1. Order'!AB417)","v":""},null,{"$f":"IF('1. Order'!AT417=\"\",\"\",'1. Order'!AT417)","v":""},{"$f":"IF('1. Order'!AU417=\"\",\"\",'1. Order'!AU417)","v":""},null,null,null,null,null,null,null,{"$f":"IF('1. Order'!AY417=\"\",\"\",'1. Order'!AY417)","v":""},{"$f":"IF('1. Order'!AZ417=\"\",\"\",'1. Order'!AZ417)","v":""},{"$f":"IF('1. Order'!BA417=\"\",\"\",'1. Order'!BA417)","v":""},{"$f":"IF('1. Order'!BB417=\"\",\"\",'1. Order'!BB417)","v":""},{"$f":"IF('1. Order'!BD417=\"\",\"\",'1. Order'!BD417)","v":""},{"$f":"IF('1. Order'!BE417=\"\",\"\",'1. Order'!BE417)","v":""},{"$f":"IF('1. Order'!BF417=\"\",\"\",'1. Order'!BF417)","v":""},{"$f":"IF('1. Order'!BG417=\"\",\"\",'1. Order'!BG417)","v":""},{"$f":"IF('1. Order'!BH417=\"\",\"\",'1. Order'!BH417)","v":"ZWO"}]
[{"$f":"IF('1. Order'!F418=\"\",\"\",'1. Order'!F418)","v":{"$error":"#N/A"}},{"$f":"IF('1. Order'!G418=\"\",\"\",'1. Order'!G418)","v":""},{"$f":"IF('1. Order'!H418=\"\",\"\",'1. Order'!H418)","v":""},{"$f":"IF('1. Order'!I418=\"\",\"\",'1. Order'!I418)","v":""},{"$f":"IF('1. Order'!J418=\"\",\"\",'1. Order'!J418)","v":""},{"$f":"IF('1. Order'!K418=\"\",\"\",'1. Order'!K418)","v":""},{"$f":"IF('1. Order'!L418=\"\",\"\",'1. Order'!L418)","v":""},{"$f":"IF('1. Order'!M418=\"\",\"\",'1. Order'!M418)","v":""},{"$f":"IF('1. Order'!N418=\"\",\"\",'1. Order'!N418)","v":""},{"$f":"IF('1. Order'!O418=\"\",\"\",'1. Order'!O418)","v":{"$error":"#N/A"}},{"$f":"IF('1. Order'!P418=\"\",\"\",'1. Order'!P418)","v":{"$error":"#N/A"}},{"$f":"IF('1. Order'!Q418=\"\",\"\",'1. Order'!Q418)","v":""},{"$f":"IF('1. Order'!S418=\"\",\"\",'1. Order'!S418)","v":""},{"$f":"IF('1. Order'!T418=\"\",\"\",'1. Order'!T418)","v":""},{"$f":"IF('1. Order'!W418=\"\",\"\",'1. Order'!W418)","v":""},{"$f":"IF('1. Order'!X418=\"\",\"\",'1. Order'!X418)","v":""},{"$f":"IF('1. Order'!Y418=\"\",\"\",'1. Order'!Y418)","v":"EUR"},{"$f":"IF('1. Order'!Z418=\"\",\"\",'1. Order'!Z418)","v":""},{"$f":"IF('1. Order'!AA418=\"\",\"\",'1. Order'!AA418)","v":""},{"$f":"IF('1. Order'!AB418=\"\",\"\",'1. Order'!AB418)","v":""},null,{"$f":"IF('1. Order'!AT418=\"\",\"\",'1. Order'!AT418)","v":""},{"$f":"IF('1. Order'!AU418=\"\",\"\",'1. Order'!AU418)","v":""},null,null,null,null,null,null,null,{"$f":"IF('1. Order'!AY418=\"\",\"\",'1. Order'!AY418)","v":""},{"$f":"IF('1. Order'!AZ418=\"\",\"\",'1. Order'!AZ418)","v":""},{"$f":"IF('1. Order'!BA418=\"\",\"\",'1. Order'!BA418)","v":""},{"$f":"IF('1. Order'!BB418=\"\",\"\",'1. Order'!BB418)","v":""},{"$f":"IF('1. Order'!BD418=\"\",\"\",'1. Order'!BD418)","v":""},{"$f":"IF('1. Order'!BE418=\"\",\"\",'1. Order'!BE418)","v":""},{"$f":"IF('1. Order'!BF418=\"\",\"\",'1. Order'!BF418)","v":""},{"$f":"IF('1. Order'!BG418=\"\",\"\",'1. Order'!BG418)","v":""},{"$f":"IF('1. Order'!BH418=\"\",\"\",'1. Order'!BH418)","v":"ZWO"}]
[{"$f":"IF('1. Order'!F419=\"\",\"\",'1. Order'!F419)","v":{"$error":"#N/A"}},{"$f":"IF('1. Order'!G419=\"\",\"\",'1. Order'!G419)","v":""},{"$f":"IF('1. Order'!H419=\"\",\"\",'1. Order'!H419)","v":""},{"$f":"IF('1. Order'!I419=\"\",\"\",'1. Order'!I419)","v":""},{"$f":"IF('1. Order'!J419=\"\",\"\",'1. Order'!J419)","v":""},{"$f":"IF('1. Order'!K419=\"\",\"\",'1. Order'!K419)","v":""},{"$f":"IF('1. Order'!L419=\"\",\"\",'1. Order'!L419)","v":""},{"$f":"IF('1. Order'!M419=\"\",\"\",'1. Order'!M419)","v":""},{"$f":"IF('1. Order'!N419=\"\",\"\",'1. Order'!N419)","v":""},{"$f":"IF('1. Order'!O419=\"\",\"\",'1. Order'!O419)","v":{"$error":"#N/A"}},{"$f":"IF('1. Order'!P419=\"\",\"\",'1. Order'!P419)","v":{"$error":"#N/A"}},{"$f":"IF('1. Order'!Q419=\"\",\"\",'1. Order'!Q419)","v":""},{"$f":"IF('1. Order'!S419=\"\",\"\",'1. Order'!S419)","v":""},{"$f":"IF('1. Order'!T419=\"\",\"\",'1. Order'!T419)","v":""},{"$f":"IF('1. Order'!W419=\"\",\"\",'1. Order'!W419)","v":""},{"$f":"IF('1. Order'!X419=\"\",\"\",'1. Order'!X419)","v":""},{"$f":"IF('1. Order'!Y419=\"\",\"\",'1. Order'!Y419)","v":"EUR"},{"$f":"IF('1. Order'!Z419=\"\",\"\",'1. Order'!Z419)","v":""},{"$f":"IF('1. Order'!AA419=\"\",\"\",'1. Order'!AA419)","v":""},{"$f":"IF('1. Order'!AB419=\"\",\"\",'1. Order'!AB419)","v":""},null,{"$f":"IF('1. Order'!AT419=\"\",\"\",'1. Order'!AT419)","v":""},{"$f":"IF('1. Order'!AU419=\"\",\"\",'1. Order'!AU419)","v":""},null,null,null,null,null,null,null,{"$f":"IF('1. Order'!AY419=\"\",\"\",'1. Order'!AY419)","v":""},{"$f":"IF('1. Order'!AZ419=\"\",\"\",'1. Order'!AZ419)","v":""},{"$f":"IF('1. Order'!BA419=\"\",\"\",'1. Order'!BA419)","v":""},{"$f":"IF('1. Order'!BB419=\"\",\"\",'1. Order'!BB419)","v":""},{"$f":"IF('1. Order'!BD419=\"\",\"\",'1. Order'!BD419)","v":""},{"$f":"IF('1. Order'!BE419=\"\",\"\",'1. Order'!BE419)","v":""},{"$f":"IF('1. Order'!BF419=\"\",\"\",'1. Order'!BF419)","v":""},{"$f":"IF('1. Order'!BG419=\"\",\"\",'1. Order'!BG419)","v":""},{"$f":"IF('1. Order'!BH419=\"\",\"\",'1. Order'!BH419)","v":"ZWO"}]
[{"$f":"IF('1. Order'!F420=\"\",\"\",'1. Order'!F420)","v":{"$error":"#N/A"}},{"$f":"IF('1. Order'!G420=\"\",\"\",'1. Order'!G420)","v":""},{"$f":"IF('1. Order'!H420=\"\",\"\",'1. Order'!H420)","v":""},{"$f":"IF('1. Order'!I420=\"\",\"\",'1. Order'!I420)","v":""},{"$f":"IF('1. Order'!J420=\"\",\"\",'1. Order'!J420)","v":""},{"$f":"IF('1. Order'!K420=\"\",\"\",'1. Order'!K420)","v":""},{"$f":"IF('1. Order'!L420=\"\",\"\",'1. Order'!L420)","v":""},{"$f":"IF('1. Order'!M420=\"\",\"\",'1. Order'!M420)","v":""},{"$f":"IF('1. Order'!N420=\"\",\"\",'1. Order'!N420)","v":""},{"$f":"IF('1. Order'!O420=\"\",\"\",'1. Order'!O420)","v":{"$error":"#N/A"}},{"$f":"IF('1. Order'!P420=\"\",\"\",'1. Order'!P420)","v":{"$error":"#N/A"}},{"$f":"IF('1. Order'!Q420=\"\",\"\",'1. Order'!Q420)","v":""},{"$f":"IF('1. Order'!S420=\"\",\"\",'1. Order'!S420)","v":""},{"$f":"IF('1. Order'!T420=\"\",\"\",'1. Order'!T420)","v":""},{"$f":"IF('1. Order'!W420=\"\",\"\",'1. Order'!W420)","v":""},{"$f":"IF('1. Order'!X420=\"\",\"\",'1. Order'!X420)","v":""},{"$f":"IF('1. Order'!Y420=\"\",\"\",'1. Order'!Y420)","v":"EUR"},{"$f":"IF('1. Order'!Z420=\"\",\"\",'1. Order'!Z420)","v":""},{"$f":"IF('1. Order'!AA420=\"\",\"\",'1. Order'!AA420)","v":""},{"$f":"IF('1. Order'!AB420=\"\",\"\",'1. Order'!AB420)","v":""},null,{"$f":"IF('1. Order'!AT420=\"\",\"\",'1. Order'!AT420)","v":""},{"$f":"IF('1. Order'!AU420=\"\",\"\",'1. Order'!AU420)","v":""},null,null,null,null,null,null,null,{"$f":"IF('1. Order'!AY420=\"\",\"\",'1. Order'!AY420)","v":""},{"$f":"IF('1. Order'!AZ420=\"\",\"\",'1. Order'!AZ420)","v":""},{"$f":"IF('1. Order'!BA420=\"\",\"\",'1. Order'!BA420)","v":""},{"$f":"IF('1. Order'!BB420=\"\",\"\",'1. Order'!BB420)","v":""},{"$f":"IF('1. Order'!BD420=\"\",\"\",'1. Order'!BD420)","v":""},{"$f":"IF('1. Order'!BE420=\"\",\"\",'1. Order'!BE420)","v":""},{"$f":"IF('1. Order'!BF420=\"\",\"\",'1. Order'!BF420)","v":""},{"$f":"IF('1. Order'!BG420=\"\",\"\",'1. Order'!BG420)","v":""},{"$f":"IF('1. Order'!BH420=\"\",\"\",'1. Order'!BH420)","v":"ZWO"}]
[{"$f":"IF('1. Order'!F421=\"\",\"\",'1. Order'!F421)","v":{"$error":"#N/A"}},{"$f":"IF('1. Order'!G421=\"\",\"\",'1. Order'!G421)","v":""},{"$f":"IF('1. Order'!H421=\"\",\"\",'1. Order'!H421)","v":""},{"$f":"IF('1. Order'!I421=\"\",\"\",'1. Order'!I421)","v":""},{"$f":"IF('1. Order'!J421=\"\",\"\",'1. Order'!J421)","v":""},{"$f":"IF('1. Order'!K421=\"\",\"\",'1. Order'!K421)","v":""},{"$f":"IF('1. Order'!L421=\"\",\"\",'1. Order'!L421)","v":""},{"$f":"IF('1. Order'!M421=\"\",\"\",'1. Order'!M421)","v":""},{"$f":"IF('1. Order'!N421=\"\",\"\",'1. Order'!N421)","v":""},{"$f":"IF('1. Order'!O421=\"\",\"\",'1. Order'!O421)","v":{"$error":"#N/A"}},{"$f":"IF('1. Order'!P421=\"\",\"\",'1. Order'!P421)","v":{"$error":"#N/A"}},{"$f":"IF('1. Order'!Q421=\"\",\"\",'1. Order'!Q421)","v":""},{"$f":"IF('1. Order'!S421=\"\",\"\",'1. Order'!S421)","v":""},{"$f":"IF('1. Order'!T421=\"\",\"\",'1. Order'!T421)","v":""},{"$f":"IF('1. Order'!W421=\"\",\"\",'1. Order'!W421)","v":""},{"$f":"IF('1. Order'!X421=\"\",\"\",'1. Order'!X421)","v":""},{"$f":"IF('1. Order'!Y421=\"\",\"\",'1. Order'!Y421)","v":"EUR"},{"$f":"IF('1. Order'!Z421=\"\",\"\",'1. Order'!Z421)","v":""},{"$f":"IF('1. Order'!AA421=\"\",\"\",'1. Order'!AA421)","v":""},{"$f":"IF('1. Order'!AB421=\"\",\"\",'1. Order'!AB421)","v":""},null,{"$f":"IF('1. Order'!AT421=\"\",\"\",'1. Order'!AT421)","v":""},{"$f":"IF('1. Order'!AU421=\"\",\"\",'1. Order'!AU421)","v":""},null,null,null,null,null,null,null,{"$f":"IF('1. Order'!AY421=\"\",\"\",'1. Order'!AY421)","v":""},{"$f":"IF('1. Order'!AZ421=\"\",\"\",'1. Order'!AZ421)","v":""},{"$f":"IF('1. Order'!BA421=\"\",\"\",'1. Order'!BA421)","v":""},{"$f":"IF('1. Order'!BB421=\"\",\"\",'1. Order'!BB421)","v":""},{"$f":"IF('1. Order'!BD421=\"\",\"\",'1. Order'!BD421)","v":""},{"$f":"IF('1. Order'!BE421=\"\",\"\",'1. Order'!BE421)","v":""},{"$f":"IF('1. Order'!BF421=\"\",\"\",'1. Order'!BF421)","v":""},{"$f":"IF('1. Order'!BG421=\"\",\"\",'1. Order'!BG421)","v":""},{"$f":"IF('1. Order'!BH421=\"\",\"\",'1. Order'!BH421)","v":"ZWO"}]
[{"$f":"IF('1. Order'!F422=\"\",\"\",'1. Order'!F422)","v":{"$error":"#N/A"}},{"$f":"IF('1. Order'!G422=\"\",\"\",'1. Order'!G422)","v":""},{"$f":"IF('1. Order'!H422=\"\",\"\",'1. Order'!H422)","v":""},{"$f":"IF('1. Order'!I422=\"\",\"\",'1. Order'!I422)","v":""},{"$f":"IF('1. Order'!J422=\"\",\"\",'1. Order'!J422)","v":""},{"$f":"IF('1. Order'!K422=\"\",\"\",'1. Order'!K422)","v":""},{"$f":"IF('1. Order'!L422=\"\",\"\",'1. Order'!L422)","v":""},{"$f":"IF('1. Order'!M422=\"\",\"\",'1. Order'!M422)","v":""},{"$f":"IF('1. Order'!N422=\"\",\"\",'1. Order'!N422)","v":""},{"$f":"IF('1. Order'!O422=\"\",\"\",'1. Order'!O422)","v":{"$error":"#N/A"}},{"$f":"IF('1. Order'!P422=\"\",\"\",'1. Order'!P422)","v":{"$error":"#N/A"}},{"$f":"IF('1. Order'!Q422=\"\",\"\",'1. Order'!Q422)","v":""},{"$f":"IF('1. Order'!S422=\"\",\"\",'1. Order'!S422)","v":""},{"$f":"IF('1. Order'!T422=\"\",\"\",'1. Order'!T422)","v":""},{"$f":"IF('1. Order'!W422=\"\",\"\",'1. Order'!W422)","v":""},{"$f":"IF('1. Order'!X422=\"\",\"\",'1. Order'!X422)","v":""},{"$f":"IF('1. Order'!Y422=\"\",\"\",'1. Order'!Y422)","v":"EUR"},{"$f":"IF('1. Order'!Z422=\"\",\"\",'1. Order'!Z422)","v":""},{"$f":"IF('1. Order'!AA422=\"\",\"\",'1. Order'!AA422)","v":""},{"$f":"IF('1. Order'!AB422=\"\",\"\",'1. Order'!AB422)","v":""},null,{"$f":"IF('1. Order'!AT422=\"\",\"\",'1. Order'!AT422)","v":""},{"$f":"IF('1. Order'!AU422=\"\",\"\",'1. Order'!AU422)","v":""},null,null,null,null,null,null,null,{"$f":"IF('1. Order'!AY422=\"\",\"\",'1. Order'!AY422)","v":""},{"$f":"IF('1. Order'!AZ422=\"\",\"\",'1. Order'!AZ422)","v":""},{"$f":"IF('1. Order'!BA422=\"\",\"\",'1. Order'!BA422)","v":""},{"$f":"IF('1. Order'!BB422=\"\",\"\",'1. Order'!BB422)","v":""},{"$f":"IF('1. Order'!BD422=\"\",\"\",'1. Order'!BD422)","v":""},{"$f":"IF('1. Order'!BE422=\"\",\"\",'1. Order'!BE422)","v":""},{"$f":"IF('1. Order'!BF422=\"\",\"\",'1. Order'!BF422)","v":""},{"$f":"IF('1. Order'!BG422=\"\",\"\",'1. Order'!BG422)","v":""},{"$f":"IF('1. Order'!BH422=\"\",\"\",'1. Order'!BH422)","v":"ZWO"}]
[{"$f":"IF('1. Order'!F423=\"\",\"\",'1. Order'!F423)","v":{"$error":"#N/A"}},{"$f":"IF('1. Order'!G423=\"\",\"\",'1. Order'!G423)","v":""},{"$f":"IF('1. Order'!H423=\"\",\"\",'1. Order'!H423)","v":""},{"$f":"IF('1. Order'!I423=\"\",\"\",'1. Order'!I423)","v":""},{"$f":"IF('1. Order'!J423=\"\",\"\",'1. Order'!J423)","v":""},{"$f":"IF('1. Order'!K423=\"\",\"\",'1. Order'!K423)","v":""},{"$f":"IF('1. Order'!L423=\"\",\"\",'1. Order'!L423)","v":""},{"$f":"IF('1. Order'!M423=\"\",\"\",'1. Order'!M423)","v":""},{"$f":"IF('1. Order'!N423=\"\",\"\",'1. Order'!N423)","v":""},{"$f":"IF('1. Order'!O423=\"\",\"\",'1. Order'!O423)","v":{"$error":"#N/A"}},{"$f":"IF('1. Order'!P423=\"\",\"\",'1. Order'!P423)","v":{"$error":"#N/A"}},{"$f":"IF('1. Order'!Q423=\"\",\"\",'1. Order'!Q423)","v":""},{"$f":"IF('1. Order'!S423=\"\",\"\",'1. Order'!S423)","v":""},{"$f":"IF('1. Order'!T423=\"\",\"\",'1. Order'!T423)","v":""},{"$f":"IF('1. Order'!W423=\"\",\"\",'1. Order'!W423)","v":""},{"$f":"IF('1. Order'!X423=\"\",\"\",'1. Order'!X423)","v":""},{"$f":"IF('1. Order'!Y423=\"\",\"\",'1. Order'!Y423)","v":"EUR"},{"$f":"IF('1. Order'!Z423=\"\",\"\",'1. Order'!Z423)","v":""},{"$f":"IF('1. Order'!AA423=\"\",\"\",'1. Order'!AA423)","v":""},{"$f":"IF('1. Order'!AB423=\"\",\"\",'1. Order'!AB423)","v":""},null,{"$f":"IF('1. Order'!AT423=\"\",\"\",'1. Order'!AT423)","v":""},{"$f":"IF('1. Order'!AU423=\"\",\"\",'1. Order'!AU423)","v":""},null,null,null,null,null,null,null,{"$f":"IF('1. Order'!AY423=\"\",\"\",'1. Order'!AY423)","v":""},{"$f":"IF('1. Order'!AZ423=\"\",\"\",'1. Order'!AZ423)","v":""},{"$f":"IF('1. Order'!BA423=\"\",\"\",'1. Order'!BA423)","v":""},{"$f":"IF('1. Order'!BB423=\"\",\"\",'1. Order'!BB423)","v":""},{"$f":"IF('1. Order'!BD423=\"\",\"\",'1. Order'!BD423)","v":""},{"$f":"IF('1. Order'!BE423=\"\",\"\",'1. Order'!BE423)","v":""},{"$f":"IF('1. Order'!BF423=\"\",\"\",'1. Order'!BF423)","v":""},{"$f":"IF('1. Order'!BG423=\"\",\"\",'1. Order'!BG423)","v":""},{"$f":"IF('1. Order'!BH423=\"\",\"\",'1. Order'!BH423)","v":"ZWO"}]
[{"$f":"IF('1. Order'!F424=\"\",\"\",'1. Order'!F424)","v":{"$error":"#N/A"}},{"$f":"IF('1. Order'!G424=\"\",\"\",'1. Order'!G424)","v":""},{"$f":"IF('1. Order'!H424=\"\",\"\",'1. Order'!H424)","v":""},{"$f":"IF('1. Order'!I424=\"\",\"\",'1. Order'!I424)","v":""},{"$f":"IF('1. Order'!J424=\"\",\"\",'1. Order'!J424)","v":""},{"$f":"IF('1. Order'!K424=\"\",\"\",'1. Order'!K424)","v":""},{"$f":"IF('1. Order'!L424=\"\",\"\",'1. Order'!L424)","v":""},{"$f":"IF('1. Order'!M424=\"\",\"\",'1. Order'!M424)","v":""},{"$f":"IF('1. Order'!N424=\"\",\"\",'1. Order'!N424)","v":""},{"$f":"IF('1. Order'!O424=\"\",\"\",'1. Order'!O424)","v":{"$error":"#N/A"}},{"$f":"IF('1. Order'!P424=\"\",\"\",'1. Order'!P424)","v":{"$error":"#N/A"}},{"$f":"IF('1. Order'!Q424=\"\",\"\",'1. Order'!Q424)","v":""},{"$f":"IF('1. Order'!S424=\"\",\"\",'1. Order'!S424)","v":""},{"$f":"IF('1. Order'!T424=\"\",\"\",'1. Order'!T424)","v":""},{"$f":"IF('1. Order'!W424=\"\",\"\",'1. Order'!W424)","v":""},{"$f":"IF('1. Order'!X424=\"\",\"\",'1. Order'!X424)","v":""},{"$f":"IF('1. Order'!Y424=\"\",\"\",'1. Order'!Y424)","v":"EUR"},{"$f":"IF('1. Order'!Z424=\"\",\"\",'1. Order'!Z424)","v":""},{"$f":"IF('1. Order'!AA424=\"\",\"\",'1. Order'!AA424)","v":""},{"$f":"IF('1. Order'!AB424=\"\",\"\",'1. Order'!AB424)","v":""},null,{"$f":"IF('1. Order'!AT424=\"\",\"\",'1. Order'!AT424)","v":""},{"$f":"IF('1. Order'!AU424=\"\",\"\",'1. Order'!AU424)","v":""},null,null,null,null,null,null,null,{"$f":"IF('1. Order'!AY424=\"\",\"\",'1. Order'!AY424)","v":""},{"$f":"IF('1. Order'!AZ424=\"\",\"\",'1. Order'!AZ424)","v":""},{"$f":"IF('1. Order'!BA424=\"\",\"\",'1. Order'!BA424)","v":""},{"$f":"IF('1. Order'!BB424=\"\",\"\",'1. Order'!BB424)","v":""},{"$f":"IF('1. Order'!BD424=\"\",\"\",'1. Order'!BD424)","v":""},{"$f":"IF('1. Order'!BE424=\"\",\"\",'1. Order'!BE424)","v":""},{"$f":"IF('1. Order'!BF424=\"\",\"\",'1. Order'!BF424)","v":""},{"$f":"IF('1. Order'!BG424=\"\",\"\",'1. Order'!BG424)","v":""},{"$f":"IF('1. Order'!BH424=\"\",\"\",'1. Order'!BH424)","v":"ZWO"}]
[{"$f":"IF('1. Order'!F425=\"\",\"\",'1. Order'!F425)","v":{"$error":"#N/A"}},{"$f":"IF('1. Order'!G425=\"\",\"\",'1. Order'!G425)","v":""},{"$f":"IF('1. Order'!H425=\"\",\"\",'1. Order'!H425)","v":""},{"$f":"IF('1. Order'!I425=\"\",\"\",'1. Order'!I425)","v":""},{"$f":"IF('1. Order'!J425=\"\",\"\",'1. Order'!J425)","v":""},{"$f":"IF('1. Order'!K425=\"\",\"\",'1. Order'!K425)","v":""},{"$f":"IF('1. Order'!L425=\"\",\"\",'1. Order'!L425)","v":""},{"$f":"IF('1. Order'!M425=\"\",\"\",'1. Order'!M425)","v":""},{"$f":"IF('1. Order'!N425=\"\",\"\",'1. Order'!N425)","v":""},{"$f":"IF('1. Order'!O425=\"\",\"\",'1. Order'!O425)","v":{"$error":"#N/A"}},{"$f":"IF('1. Order'!P425=\"\",\"\",'1. Order'!P425)","v":{"$error":"#N/A"}},{"$f":"IF('1. Order'!Q425=\"\",\"\",'1. Order'!Q425)","v":""},{"$f":"IF('1. Order'!S425=\"\",\"\",'1. Order'!S425)","v":""},{"$f":"IF('1. Order'!T425=\"\",\"\",'1. Order'!T425)","v":""},{"$f":"IF('1. Order'!W425=\"\",\"\",'1. Order'!W425)","v":""},{"$f":"IF('1. Order'!X425=\"\",\"\",'1. Order'!X425)","v":""},{"$f":"IF('1. Order'!Y425=\"\",\"\",'1. Order'!Y425)","v":"EUR"},{"$f":"IF('1. Order'!Z425=\"\",\"\",'1. Order'!Z425)","v":""},{"$f":"IF('1. Order'!AA425=\"\",\"\",'1. Order'!AA425)","v":""},{"$f":"IF('1. Order'!AB425=\"\",\"\",'1. Order'!AB425)","v":""},null,{"$f":"IF('1. Order'!AT425=\"\",\"\",'1. Order'!AT425)","v":""},{"$f":"IF('1. Order'!AU425=\"\",\"\",'1. Order'!AU425)","v":""},null,null,null,null,null,null,null,{"$f":"IF('1. Order'!AY425=\"\",\"\",'1. Order'!AY425)","v":""},{"$f":"IF('1. Order'!AZ425=\"\",\"\",'1. Order'!AZ425)","v":""},{"$f":"IF('1. Order'!BA425=\"\",\"\",'1. Order'!BA425)","v":""},{"$f":"IF('1. Order'!BB425=\"\",\"\",'1. Order'!BB425)","v":""},{"$f":"IF('1. Order'!BD425=\"\",\"\",'1. Order'!BD425)","v":""},{"$f":"IF('1. Order'!BE425=\"\",\"\",'1. Order'!BE425)","v":""},{"$f":"IF('1. Order'!BF425=\"\",\"\",'1. Order'!BF425)","v":""},{"$f":"IF('1. Order'!BG425=\"\",\"\",'1. Order'!BG425)","v":""},{"$f":"IF('1. Order'!BH425=\"\",\"\",'1. Order'!BH425)","v":"ZWO"}]
[{"$f":"IF('1. Order'!F426=\"\",\"\",'1. Order'!F426)","v":{"$error":"#N/A"}},{"$f":"IF('1. Order'!G426=\"\",\"\",'1. Order'!G426)","v":""},{"$f":"IF('1. Order'!H426=\"\",\"\",'1. Order'!H426)","v":""},{"$f":"IF('1. Order'!I426=\"\",\"\",'1. Order'!I426)","v":""},{"$f":"IF('1. Order'!J426=\"\",\"\",'1. Order'!J426)","v":""},{"$f":"IF('1. Order'!K426=\"\",\"\",'1. Order'!K426)","v":""},{"$f":"IF('1. Order'!L426=\"\",\"\",'1. Order'!L426)","v":""},{"$f":"IF('1. Order'!M426=\"\",\"\",'1. Order'!M426)","v":""},{"$f":"IF('1. Order'!N426=\"\",\"\",'1. Order'!N426)","v":""},{"$f":"IF('1. Order'!O426=\"\",\"\",'1. Order'!O426)","v":{"$error":"#N/A"}},{"$f":"IF('1. Order'!P426=\"\",\"\",'1. Order'!P426)","v":{"$error":"#N/A"}},{"$f":"IF('1. Order'!Q426=\"\",\"\",'1. Order'!Q426)","v":""},{"$f":"IF('1. Order'!S426=\"\",\"\",'1. Order'!S426)","v":""},{"$f":"IF('1. Order'!T426=\"\",\"\",'1. Order'!T426)","v":""},{"$f":"IF('1. Order'!W426=\"\",\"\",'1. Order'!W426)","v":""},{"$f":"IF('1. Order'!X426=\"\",\"\",'1. Order'!X426)","v":""},{"$f":"IF('1. Order'!Y426=\"\",\"\",'1. Order'!Y426)","v":"EUR"},{"$f":"IF('1. Order'!Z426=\"\",\"\",'1. Order'!Z426)","v":""},{"$f":"IF('1. Order'!AA426=\"\",\"\",'1. Order'!AA426)","v":""},{"$f":"IF('1. Order'!AB426=\"\",\"\",'1. Order'!AB426)","v":""},null,{"$f":"IF('1. Order'!AT426=\"\",\"\",'1. Order'!AT426)","v":""},{"$f":"IF('1. Order'!AU426=\"\",\"\",'1. Order'!AU426)","v":""},null,null,null,null,null,null,null,{"$f":"IF('1. Order'!AY426=\"\",\"\",'1. Order'!AY426)","v":""},{"$f":"IF('1. Order'!AZ426=\"\",\"\",'1. Order'!AZ426)","v":""},{"$f":"IF('1. Order'!BA426=\"\",\"\",'1. Order'!BA426)","v":""},{"$f":"IF('1. Order'!BB426=\"\",\"\",'1. Order'!BB426)","v":""},{"$f":"IF('1. Order'!BD426=\"\",\"\",'1. Order'!BD426)","v":""},{"$f":"IF('1. Order'!BE426=\"\",\"\",'1. Order'!BE426)","v":""},{"$f":"IF('1. Order'!BF426=\"\",\"\",'1. Order'!BF426)","v":""},{"$f":"IF('1. Order'!BG426=\"\",\"\",'1. Order'!BG426)","v":""},{"$f":"IF('1. Order'!BH426=\"\",\"\",'1. Order'!BH426)","v":"ZWO"}]
[{"$f":"IF('1. Order'!F427=\"\",\"\",'1. Order'!F427)","v":{"$error":"#N/A"}},{"$f":"IF('1. Order'!G427=\"\",\"\",'1. Order'!G427)","v":""},{"$f":"IF('1. Order'!H427=\"\",\"\",'1. Order'!H427)","v":""},{"$f":"IF('1. Order'!I427=\"\",\"\",'1. Order'!I427)","v":""},{"$f":"IF('1. Order'!J427=\"\",\"\",'1. Order'!J427)","v":""},{"$f":"IF('1. Order'!K427=\"\",\"\",'1. Order'!K427)","v":""},{"$f":"IF('1. Order'!L427=\"\",\"\",'1. Order'!L427)","v":""},{"$f":"IF('1. Order'!M427=\"\",\"\",'1. Order'!M427)","v":""},{"$f":"IF('1. Order'!N427=\"\",\"\",'1. Order'!N427)","v":""},{"$f":"IF('1. Order'!O427=\"\",\"\",'1. Order'!O427)","v":{"$error":"#N/A"}},{"$f":"IF('1. Order'!P427=\"\",\"\",'1. Order'!P427)","v":{"$error":"#N/A"}},{"$f":"IF('1. Order'!Q427=\"\",\"\",'1. Order'!Q427)","v":""},{"$f":"IF('1. Order'!S427=\"\",\"\",'1. Order'!S427)","v":""},{"$f":"IF('1. Order'!T427=\"\",\"\",'1. Order'!T427)","v":""},{"$f":"IF('1. Order'!W427=\"\",\"\",'1. Order'!W427)","v":""},{"$f":"IF('1. Order'!X427=\"\",\"\",'1. Order'!X427)","v":""},{"$f":"IF('1. Order'!Y427=\"\",\"\",'1. Order'!Y427)","v":"EUR"},{"$f":"IF('1. Order'!Z427=\"\",\"\",'1. Order'!Z427)","v":""},{"$f":"IF('1. Order'!AA427=\"\",\"\",'1. Order'!AA427)","v":""},{"$f":"IF('1. Order'!AB427=\"\",\"\",'1. Order'!AB427)","v":""},null,{"$f":"IF('1. Order'!AT427=\"\",\"\",'1. Order'!AT427)","v":""},{"$f":"IF('1. Order'!AU427=\"\",\"\",'1. Order'!AU427)","v":""},null,null,null,null,null,null,null,{"$f":"IF('1. Order'!AY427=\"\",\"\",'1. Order'!AY427)","v":""},{"$f":"IF('1. Order'!AZ427=\"\",\"\",'1. Order'!AZ427)","v":""},{"$f":"IF('1. Order'!BA427=\"\",\"\",'1. Order'!BA427)","v":""},{"$f":"IF('1. Order'!BB427=\"\",\"\",'1. Order'!BB427)","v":""},{"$f":"IF('1. Order'!BD427=\"\",\"\",'1. Order'!BD427)","v":""},{"$f":"IF('1. Order'!BE427=\"\",\"\",'1. Order'!BE427)","v":""},{"$f":"IF('1. Order'!BF427=\"\",\"\",'1. Order'!BF427)","v":""},{"$f":"IF('1. Order'!BG427=\"\",\"\",'1. Order'!BG427)","v":""},{"$f":"IF('1. Order'!BH427=\"\",\"\",'1. Order'!BH427)","v":"ZWO"}]
[{"$f":"IF('1. Order'!F428=\"\",\"\",'1. Order'!F428)","v":{"$error":"#N/A"}},{"$f":"IF('1. Order'!G428=\"\",\"\",'1. Order'!G428)","v":""},{"$f":"IF('1. Order'!H428=\"\",\"\",'1. Order'!H428)","v":""},{"$f":"IF('1. Order'!I428=\"\",\"\",'1. Order'!I428)","v":""},{"$f":"IF('1. Order'!J428=\"\",\"\",'1. Order'!J428)","v":""},{"$f":"IF('1. Order'!K428=\"\",\"\",'1. Order'!K428)","v":""},{"$f":"IF('1. Order'!L428=\"\",\"\",'1. Order'!L428)","v":""},{"$f":"IF('1. Order'!M428=\"\",\"\",'1. Order'!M428)","v":""},{"$f":"IF('1. Order'!N428=\"\",\"\",'1. Order'!N428)","v":""},{"$f":"IF('1. Order'!O428=\"\",\"\",'1. Order'!O428)","v":{"$error":"#N/A"}},{"$f":"IF('1. Order'!P428=\"\",\"\",'1. Order'!P428)","v":{"$error":"#N/A"}},{"$f":"IF('1. Order'!Q428=\"\",\"\",'1. Order'!Q428)","v":""},{"$f":"IF('1. Order'!S428=\"\",\"\",'1. Order'!S428)","v":""},{"$f":"IF('1. Order'!T428=\"\",\"\",'1. Order'!T428)","v":""},{"$f":"IF('1. Order'!W428=\"\",\"\",'1. Order'!W428)","v":""},{"$f":"IF('1. Order'!X428=\"\",\"\",'1. Order'!X428)","v":""},{"$f":"IF('1. Order'!Y428=\"\",\"\",'1. Order'!Y428)","v":"EUR"},{"$f":"IF('1. Order'!Z428=\"\",\"\",'1. Order'!Z428)","v":""},{"$f":"IF('1. Order'!AA428=\"\",\"\",'1. Order'!AA428)","v":""},{"$f":"IF('1. Order'!AB428=\"\",\"\",'1. Order'!AB428)","v":""},null,{"$f":"IF('1. Order'!AT428=\"\",\"\",'1. Order'!AT428)","v":""},{"$f":"IF('1. Order'!AU428=\"\",\"\",'1. Order'!AU428)","v":""},null,null,null,null,null,null,null,{"$f":"IF('1. Order'!AY428=\"\",\"\",'1. Order'!AY428)","v":""},{"$f":"IF('1. Order'!AZ428=\"\",\"\",'1. Order'!AZ428)","v":""},{"$f":"IF('1. Order'!BA428=\"\",\"\",'1. Order'!BA428)","v":""},{"$f":"IF('1. Order'!BB428=\"\",\"\",'1. Order'!BB428)","v":""},{"$f":"IF('1. Order'!BD428=\"\",\"\",'1. Order'!BD428)","v":""},{"$f":"IF('1. Order'!BE428=\"\",\"\",'1. Order'!BE428)","v":""},{"$f":"IF('1. Order'!BF428=\"\",\"\",'1. Order'!BF428)","v":""},{"$f":"IF('1. Order'!BG428=\"\",\"\",'1. Order'!BG428)","v":""},{"$f":"IF('1. Order'!BH428=\"\",\"\",'1. Order'!BH428)","v":"ZWO"}]
[{"$f":"IF('1. Order'!F429=\"\",\"\",'1. Order'!F429)","v":{"$error":"#N/A"}},{"$f":"IF('1. Order'!G429=\"\",\"\",'1. Order'!G429)","v":""},{"$f":"IF('1. Order'!H429=\"\",\"\",'1. Order'!H429)","v":""},{"$f":"IF('1. Order'!I429=\"\",\"\",'1. Order'!I429)","v":""},{"$f":"IF('1. Order'!J429=\"\",\"\",'1. Order'!J429)","v":""},{"$f":"IF('1. Order'!K429=\"\",\"\",'1. Order'!K429)","v":""},{"$f":"IF('1. Order'!L429=\"\",\"\",'1. Order'!L429)","v":""},{"$f":"IF('1. Order'!M429=\"\",\"\",'1. Order'!M429)","v":""},{"$f":"IF('1. Order'!N429=\"\",\"\",'1. Order'!N429)","v":""},{"$f":"IF('1. Order'!O429=\"\",\"\",'1. Order'!O429)","v":{"$error":"#N/A"}},{"$f":"IF('1. Order'!P429=\"\",\"\",'1. Order'!P429)","v":{"$error":"#N/A"}},{"$f":"IF('1. Order'!Q429=\"\",\"\",'1. Order'!Q429)","v":""},{"$f":"IF('1. Order'!S429=\"\",\"\",'1. Order'!S429)","v":""},{"$f":"IF('1. Order'!T429=\"\",\"\",'1. Order'!T429)","v":""},{"$f":"IF('1. Order'!W429=\"\",\"\",'1. Order'!W429)","v":""},{"$f":"IF('1. Order'!X429=\"\",\"\",'1. Order'!X429)","v":""},{"$f":"IF('1. Order'!Y429=\"\",\"\",'1. Order'!Y429)","v":"EUR"},{"$f":"IF('1. Order'!Z429=\"\",\"\",'1. Order'!Z429)","v":""},{"$f":"IF('1. Order'!AA429=\"\",\"\",'1. Order'!AA429)","v":""},{"$f":"IF('1. Order'!AB429=\"\",\"\",'1. Order'!AB429)","v":""},null,{"$f":"IF('1. Order'!AT429=\"\",\"\",'1. Order'!AT429)","v":""},{"$f":"IF('1. Order'!AU429=\"\",\"\",'1. Order'!AU429)","v":""},null,null,null,null,null,null,null,{"$f":"IF('1. Order'!AY429=\"\",\"\",'1. Order'!AY429)","v":""},{"$f":"IF('1. Order'!AZ429=\"\",\"\",'1. Order'!AZ429)","v":""},{"$f":"IF('1. Order'!BA429=\"\",\"\",'1. Order'!BA429)","v":""},{"$f":"IF('1. Order'!BB429=\"\",\"\",'1. Order'!BB429)","v":""},{"$f":"IF('1. Order'!BD429=\"\",\"\",'1. Order'!BD429)","v":""},{"$f":"IF('1. Order'!BE429=\"\",\"\",'1. Order'!BE429)","v":""},{"$f":"IF('1. Order'!BF429=\"\",\"\",'1. Order'!BF429)","v":""},{"$f":"IF('1. Order'!BG429=\"\",\"\",'1. Order'!BG429)","v":""},{"$f":"IF('1. Order'!BH429=\"\",\"\",'1. Order'!BH429)","v":"ZWO"}]
[{"$f":"IF('1. Order'!F430=\"\",\"\",'1. Order'!F430)","v":{"$error":"#N/A"}},{"$f":"IF('1. Order'!G430=\"\",\"\",'1. Order'!G430)","v":""},{"$f":"IF('1. Order'!H430=\"\",\"\",'1. Order'!H430)","v":""},{"$f":"IF('1. Order'!I430=\"\",\"\",'1. Order'!I430)","v":""},{"$f":"IF('1. Order'!J430=\"\",\"\",'1. Order'!J430)","v":""},{"$f":"IF('1. Order'!K430=\"\",\"\",'1. Order'!K430)","v":""},{"$f":"IF('1. Order'!L430=\"\",\"\",'1. Order'!L430)","v":""},{"$f":"IF('1. Order'!M430=\"\",\"\",'1. Order'!M430)","v":""},{"$f":"IF('1. Order'!N430=\"\",\"\",'1. Order'!N430)","v":""},{"$f":"IF('1. Order'!O430=\"\",\"\",'1. Order'!O430)","v":{"$error":"#N/A"}},{"$f":"IF('1. Order'!P430=\"\",\"\",'1. Order'!P430)","v":{"$error":"#N/A"}},{"$f":"IF('1. Order'!Q430=\"\",\"\",'1. Order'!Q430)","v":""},{"$f":"IF('1. Order'!S430=\"\",\"\",'1. Order'!S430)","v":""},{"$f":"IF('1. Order'!T430=\"\",\"\",'1. Order'!T430)","v":""},{"$f":"IF('1. Order'!W430=\"\",\"\",'1. Order'!W430)","v":""},{"$f":"IF('1. Order'!X430=\"\",\"\",'1. Order'!X430)","v":""},{"$f":"IF('1. Order'!Y430=\"\",\"\",'1. Order'!Y430)","v":"EUR"},{"$f":"IF('1. Order'!Z430=\"\",\"\",'1. Order'!Z430)","v":""},{"$f":"IF('1. Order'!AA430=\"\",\"\",'1. Order'!AA430)","v":""},{"$f":"IF('1. Order'!AB430=\"\",\"\",'1. Order'!AB430)","v":""},null,{"$f":"IF('1. Order'!AT430=\"\",\"\",'1. Order'!AT430)","v":""},{"$f":"IF('1. Order'!AU430=\"\",\"\",'1. Order'!AU430)","v":""},null,null,null,null,null,null,null,{"$f":"IF('1. Order'!AY430=\"\",\"\",'1. Order'!AY430)","v":""},{"$f":"IF('1. Order'!AZ430=\"\",\"\",'1. Order'!AZ430)","v":""},{"$f":"IF('1. Order'!BA430=\"\",\"\",'1. Order'!BA430)","v":""},{"$f":"IF('1. Order'!BB430=\"\",\"\",'1. Order'!BB430)","v":""},{"$f":"IF('1. Order'!BD430=\"\",\"\",'1. Order'!BD430)","v":""},{"$f":"IF('1. Order'!BE430=\"\",\"\",'1. Order'!BE430)","v":""},{"$f":"IF('1. Order'!BF430=\"\",\"\",'1. Order'!BF430)","v":""},{"$f":"IF('1. Order'!BG430=\"\",\"\",'1. Order'!BG430)","v":""},{"$f":"IF('1. Order'!BH430=\"\",\"\",'1. Order'!BH430)","v":"ZWO"}]
[{"$f":"IF('1. Order'!F431=\"\",\"\",'1. Order'!F431)","v":{"$error":"#N/A"}},{"$f":"IF('1. Order'!G431=\"\",\"\",'1. Order'!G431)","v":""},{"$f":"IF('1. Order'!H431=\"\",\"\",'1. Order'!H431)","v":""},{"$f":"IF('1. Order'!I431=\"\",\"\",'1. Order'!I431)","v":""},{"$f":"IF('1. Order'!J431=\"\",\"\",'1. Order'!J431)","v":""},{"$f":"IF('1. Order'!K431=\"\",\"\",'1. Order'!K431)","v":""},{"$f":"IF('1. Order'!L431=\"\",\"\",'1. Order'!L431)","v":""},{"$f":"IF('1. Order'!M431=\"\",\"\",'1. Order'!M431)","v":""},{"$f":"IF('1. Order'!N431=\"\",\"\",'1. Order'!N431)","v":""},{"$f":"IF('1. Order'!O431=\"\",\"\",'1. Order'!O431)","v":{"$error":"#N/A"}},{"$f":"IF('1. Order'!P431=\"\",\"\",'1. Order'!P431)","v":{"$error":"#N/A"}},{"$f":"IF('1. Order'!Q431=\"\",\"\",'1. Order'!Q431)","v":""},{"$f":"IF('1. Order'!S431=\"\",\"\",'1. Order'!S431)","v":""},{"$f":"IF('1. Order'!T431=\"\",\"\",'1. Order'!T431)","v":""},{"$f":"IF('1. Order'!W431=\"\",\"\",'1. Order'!W431)","v":""},{"$f":"IF('1. Order'!X431=\"\",\"\",'1. Order'!X431)","v":""},{"$f":"IF('1. Order'!Y431=\"\",\"\",'1. Order'!Y431)","v":"EUR"},{"$f":"IF('1. Order'!Z431=\"\",\"\",'1. Order'!Z431)","v":""},{"$f":"IF('1. Order'!AA431=\"\",\"\",'1. Order'!AA431)","v":""},{"$f":"IF('1. Order'!AB431=\"\",\"\",'1. Order'!AB431)","v":""},null,{"$f":"IF('1. Order'!AT431=\"\",\"\",'1. Order'!AT431)","v":""},{"$f":"IF('1. Order'!AU431=\"\",\"\",'1. Order'!AU431)","v":""},null,null,null,null,null,null,null,{"$f":"IF('1. Order'!AY431=\"\",\"\",'1. Order'!AY431)","v":""},{"$f":"IF('1. Order'!AZ431=\"\",\"\",'1. Order'!AZ431)","v":""},{"$f":"IF('1. Order'!BA431=\"\",\"\",'1. Order'!BA431)","v":""},{"$f":"IF('1. Order'!BB431=\"\",\"\",'1. Order'!BB431)","v":""},{"$f":"IF('1. Order'!BD431=\"\",\"\",'1. Order'!BD431)","v":""},{"$f":"IF('1. Order'!BE431=\"\",\"\",'1. Order'!BE431)","v":""},{"$f":"IF('1. Order'!BF431=\"\",\"\",'1. Order'!BF431)","v":""},{"$f":"IF('1. Order'!BG431=\"\",\"\",'1. Order'!BG431)","v":""},{"$f":"IF('1. Order'!BH431=\"\",\"\",'1. Order'!BH431)","v":"ZWO"}]
[{"$f":"IF('1. Order'!F432=\"\",\"\",'1. Order'!F432)","v":{"$error":"#N/A"}},{"$f":"IF('1. Order'!G432=\"\",\"\",'1. Order'!G432)","v":""},{"$f":"IF('1. Order'!H432=\"\",\"\",'1. Order'!H432)","v":""},{"$f":"IF('1. Order'!I432=\"\",\"\",'1. Order'!I432)","v":""},{"$f":"IF('1. Order'!J432=\"\",\"\",'1. Order'!J432)","v":""},{"$f":"IF('1. Order'!K432=\"\",\"\",'1. Order'!K432)","v":""},{"$f":"IF('1. Order'!L432=\"\",\"\",'1. Order'!L432)","v":""},{"$f":"IF('1. Order'!M432=\"\",\"\",'1. Order'!M432)","v":""},{"$f":"IF('1. Order'!N432=\"\",\"\",'1. Order'!N432)","v":""},{"$f":"IF('1. Order'!O432=\"\",\"\",'1. Order'!O432)","v":{"$error":"#N/A"}},{"$f":"IF('1. Order'!P432=\"\",\"\",'1. Order'!P432)","v":{"$error":"#N/A"}},{"$f":"IF('1. Order'!Q432=\"\",\"\",'1. Order'!Q432)","v":""},{"$f":"IF('1. Order'!S432=\"\",\"\",'1. Order'!S432)","v":""},{"$f":"IF('1. Order'!T432=\"\",\"\",'1. Order'!T432)","v":""},{"$f":"IF('1. Order'!W432=\"\",\"\",'1. Order'!W432)","v":""},{"$f":"IF('1. Order'!X432=\"\",\"\",'1. Order'!X432)","v":""},{"$f":"IF('1. Order'!Y432=\"\",\"\",'1. Order'!Y432)","v":"EUR"},{"$f":"IF('1. Order'!Z432=\"\",\"\",'1. Order'!Z432)","v":""},{"$f":"IF('1. Order'!AA432=\"\",\"\",'1. Order'!AA432)","v":""},{"$f":"IF('1. Order'!AB432=\"\",\"\",'1. Order'!AB432)","v":""},null,{"$f":"IF('1. Order'!AT432=\"\",\"\",'1. Order'!AT432)","v":""},{"$f":"IF('1. Order'!AU432=\"\",\"\",'1. Order'!AU432)","v":""},null,null,null,null,null,null,null,{"$f":"IF('1. Order'!AY432=\"\",\"\",'1. Order'!AY432)","v":""},{"$f":"IF('1. Order'!AZ432=\"\",\"\",'1. Order'!AZ432)","v":""},{"$f":"IF('1. Order'!BA432=\"\",\"\",'1. Order'!BA432)","v":""},{"$f":"IF('1. Order'!BB432=\"\",\"\",'1. Order'!BB432)","v":""},{"$f":"IF('1. Order'!BD432=\"\",\"\",'1. Order'!BD432)","v":""},{"$f":"IF('1. Order'!BE432=\"\",\"\",'1. Order'!BE432)","v":""},{"$f":"IF('1. Order'!BF432=\"\",\"\",'1. Order'!BF432)","v":""},{"$f":"IF('1. Order'!BG432=\"\",\"\",'1. Order'!BG432)","v":""},{"$f":"IF('1. Order'!BH432=\"\",\"\",'1. Order'!BH432)","v":"ZWO"}]
[{"$f":"IF('1. Order'!F433=\"\",\"\",'1. Order'!F433)","v":{"$error":"#N/A"}},{"$f":"IF('1. Order'!G433=\"\",\"\",'1. Order'!G433)","v":""},{"$f":"IF('1. Order'!H433=\"\",\"\",'1. Order'!H433)","v":""},{"$f":"IF('1. Order'!I433=\"\",\"\",'1. Order'!I433)","v":""},{"$f":"IF('1. Order'!J433=\"\",\"\",'1. Order'!J433)","v":""},{"$f":"IF('1. Order'!K433=\"\",\"\",'1. Order'!K433)","v":""},{"$f":"IF('1. Order'!L433=\"\",\"\",'1. Order'!L433)","v":""},{"$f":"IF('1. Order'!M433=\"\",\"\",'1. Order'!M433)","v":""},{"$f":"IF('1. Order'!N433=\"\",\"\",'1. Order'!N433)","v":""},{"$f":"IF('1. Order'!O433=\"\",\"\",'1. Order'!O433)","v":{"$error":"#N/A"}},{"$f":"IF('1. Order'!P433=\"\",\"\",'1. Order'!P433)","v":{"$error":"#N/A"}},{"$f":"IF('1. Order'!Q433=\"\",\"\",'1. Order'!Q433)","v":""},{"$f":"IF('1. Order'!S433=\"\",\"\",'1. Order'!S433)","v":""},{"$f":"IF('1. Order'!T433=\"\",\"\",'1. Order'!T433)","v":""},{"$f":"IF('1. Order'!W433=\"\",\"\",'1. Order'!W433)","v":""},{"$f":"IF('1. Order'!X433=\"\",\"\",'1. Order'!X433)","v":""},{"$f":"IF('1. Order'!Y433=\"\",\"\",'1. Order'!Y433)","v":"EUR"},{"$f":"IF('1. Order'!Z433=\"\",\"\",'1. Order'!Z433)","v":""},{"$f":"IF('1. Order'!AA433=\"\",\"\",'1. Order'!AA433)","v":""},{"$f":"IF('1. Order'!AB433=\"\",\"\",'1. Order'!AB433)","v":""},null,{"$f":"IF('1. Order'!AT433=\"\",\"\",'1. Order'!AT433)","v":""},{"$f":"IF('1. Order'!AU433=\"\",\"\",'1. Order'!AU433)","v":""},null,null,null,null,null,null,null,{"$f":"IF('1. Order'!AY433=\"\",\"\",'1. Order'!AY433)","v":""},{"$f":"IF('1. Order'!AZ433=\"\",\"\",'1. Order'!AZ433)","v":""},{"$f":"IF('1. Order'!BA433=\"\",\"\",'1. Order'!BA433)","v":""},{"$f":"IF('1. Order'!BB433=\"\",\"\",'1. Order'!BB433)","v":""},{"$f":"IF('1. Order'!BD433=\"\",\"\",'1. Order'!BD433)","v":""},{"$f":"IF('1. Order'!BE433=\"\",\"\",'1. Order'!BE433)","v":""},{"$f":"IF('1. Order'!BF433=\"\",\"\",'1. Order'!BF433)","v":""},{"$f":"IF('1. Order'!BG433=\"\",\"\",'1. Order'!BG433)","v":""},{"$f":"IF('1. Order'!BH433=\"\",\"\",'1. Order'!BH433)","v":"ZWO"}]
[{"$f":"IF('1. Order'!F434=\"\",\"\",'1. Order'!F434)","v":{"$error":"#N/A"}},{"$f":"IF('1. Order'!G434=\"\",\"\",'1. Order'!G434)","v":""},{"$f":"IF('1. Order'!H434=\"\",\"\",'1. Order'!H434)","v":""},{"$f":"IF('1. Order'!I434=\"\",\"\",'1. Order'!I434)","v":""},{"$f":"IF('1. Order'!J434=\"\",\"\",'1. Order'!J434)","v":""},{"$f":"IF('1. Order'!K434=\"\",\"\",'1. Order'!K434)","v":""},{"$f":"IF('1. Order'!L434=\"\",\"\",'1. Order'!L434)","v":""},{"$f":"IF('1. Order'!M434=\"\",\"\",'1. Order'!M434)","v":""},{"$f":"IF('1. Order'!N434=\"\",\"\",'1. Order'!N434)","v":""},{"$f":"IF('1. Order'!O434=\"\",\"\",'1. Order'!O434)","v":{"$error":"#N/A"}},{"$f":"IF('1. Order'!P434=\"\",\"\",'1. Order'!P434)","v":{"$error":"#N/A"}},{"$f":"IF('1. Order'!Q434=\"\",\"\",'1. Order'!Q434)","v":""},{"$f":"IF('1. Order'!S434=\"\",\"\",'1. Order'!S434)","v":""},{"$f":"IF('1. Order'!T434=\"\",\"\",'1. Order'!T434)","v":""},{"$f":"IF('1. Order'!W434=\"\",\"\",'1. Order'!W434)","v":""},{"$f":"IF('1. Order'!X434=\"\",\"\",'1. Order'!X434)","v":""},{"$f":"IF('1. Order'!Y434=\"\",\"\",'1. Order'!Y434)","v":"EUR"},{"$f":"IF('1. Order'!Z434=\"\",\"\",'1. Order'!Z434)","v":""},{"$f":"IF('1. Order'!AA434=\"\",\"\",'1. Order'!AA434)","v":""},{"$f":"IF('1. Order'!AB434=\"\",\"\",'1. Order'!AB434)","v":""},null,{"$f":"IF('1. Order'!AT434=\"\",\"\",'1. Order'!AT434)","v":""},{"$f":"IF('1. Order'!AU434=\"\",\"\",'1. Order'!AU434)","v":""},null,null,null,null,null,null,null,{"$f":"IF('1. Order'!AY434=\"\",\"\",'1. Order'!AY434)","v":""},{"$f":"IF('1. Order'!AZ434=\"\",\"\",'1. Order'!AZ434)","v":""},{"$f":"IF('1. Order'!BA434=\"\",\"\",'1. Order'!BA434)","v":""},{"$f":"IF('1. Order'!BB434=\"\",\"\",'1. Order'!BB434)","v":""},{"$f":"IF('1. Order'!BD434=\"\",\"\",'1. Order'!BD434)","v":""},{"$f":"IF('1. Order'!BE434=\"\",\"\",'1. Order'!BE434)","v":""},{"$f":"IF('1. Order'!BF434=\"\",\"\",'1. Order'!BF434)","v":""},{"$f":"IF('1. Order'!BG434=\"\",\"\",'1. Order'!BG434)","v":""},{"$f":"IF('1. Order'!BH434=\"\",\"\",'1. Order'!BH434)","v":"ZWO"}]
[{"$f":"IF('1. Order'!F435=\"\",\"\",'1. Order'!F435)","v":{"$error":"#N/A"}},{"$f":"IF('1. Order'!G435=\"\",\"\",'1. Order'!G435)","v":""},{"$f":"IF('1. Order'!H435=\"\",\"\",'1. Order'!H435)","v":""},{"$f":"IF('1. Order'!I435=\"\",\"\",'1. Order'!I435)","v":""},{"$f":"IF('1. Order'!J435=\"\",\"\",'1. Order'!J435)","v":""},{"$f":"IF('1. Order'!K435=\"\",\"\",'1. Order'!K435)","v":""},{"$f":"IF('1. Order'!L435=\"\",\"\",'1. Order'!L435)","v":""},{"$f":"IF('1. Order'!M435=\"\",\"\",'1. Order'!M435)","v":""},{"$f":"IF('1. Order'!N435=\"\",\"\",'1. Order'!N435)","v":""},{"$f":"IF('1. Order'!O435=\"\",\"\",'1. Order'!O435)","v":{"$error":"#N/A"}},{"$f":"IF('1. Order'!P435=\"\",\"\",'1. Order'!P435)","v":{"$error":"#N/A"}},{"$f":"IF('1. Order'!Q435=\"\",\"\",'1. Order'!Q435)","v":""},{"$f":"IF('1. Order'!S435=\"\",\"\",'1. Order'!S435)","v":""},{"$f":"IF('1. Order'!T435=\"\",\"\",'1. Order'!T435)","v":""},{"$f":"IF('1. Order'!W435=\"\",\"\",'1. Order'!W435)","v":""},{"$f":"IF('1. Order'!X435=\"\",\"\",'1. Order'!X435)","v":""},{"$f":"IF('1. Order'!Y435=\"\",\"\",'1. Order'!Y435)","v":"EUR"},{"$f":"IF('1. Order'!Z435=\"\",\"\",'1. Order'!Z435)","v":""},{"$f":"IF('1. Order'!AA435=\"\",\"\",'1. Order'!AA435)","v":""},{"$f":"IF('1. Order'!AB435=\"\",\"\",'1. Order'!AB435)","v":""},null,{"$f":"IF('1. Order'!AT435=\"\",\"\",'1. Order'!AT435)","v":""},{"$f":"IF('1. Order'!AU435=\"\",\"\",'1. Order'!AU435)","v":""},null,null,null,null,null,null,null,{"$f":"IF('1. Order'!AY435=\"\",\"\",'1. Order'!AY435)","v":""},{"$f":"IF('1. Order'!AZ435=\"\",\"\",'1. Order'!AZ435)","v":""},{"$f":"IF('1. Order'!BA435=\"\",\"\",'1. Order'!BA435)","v":""},{"$f":"IF('1. Order'!BB435=\"\",\"\",'1. Order'!BB435)","v":""},{"$f":"IF('1. Order'!BD435=\"\",\"\",'1. Order'!BD435)","v":""},{"$f":"IF('1. Order'!BE435=\"\",\"\",'1. Order'!BE435)","v":""},{"$f":"IF('1. Order'!BF435=\"\",\"\",'1. Order'!BF435)","v":""},{"$f":"IF('1. Order'!BG435=\"\",\"\",'1. Order'!BG435)","v":""},{"$f":"IF('1. Order'!BH435=\"\",\"\",'1. Order'!BH435)","v":"ZWO"}]
[{"$f":"IF('1. Order'!F436=\"\",\"\",'1. Order'!F436)","v":{"$error":"#N/A"}},{"$f":"IF('1. Order'!G436=\"\",\"\",'1. Order'!G436)","v":""},{"$f":"IF('1. Order'!H436=\"\",\"\",'1. Order'!H436)","v":""},{"$f":"IF('1. Order'!I436=\"\",\"\",'1. Order'!I436)","v":""},{"$f":"IF('1. Order'!J436=\"\",\"\",'1. Order'!J436)","v":""},{"$f":"IF('1. Order'!K436=\"\",\"\",'1. Order'!K436)","v":""},{"$f":"IF('1. Order'!L436=\"\",\"\",'1. Order'!L436)","v":""},{"$f":"IF('1. Order'!M436=\"\",\"\",'1. Order'!M436)","v":""},{"$f":"IF('1. Order'!N436=\"\",\"\",'1. Order'!N436)","v":""},{"$f":"IF('1. Order'!O436=\"\",\"\",'1. Order'!O436)","v":{"$error":"#N/A"}},{"$f":"IF('1. Order'!P436=\"\",\"\",'1. Order'!P436)","v":{"$error":"#N/A"}},{"$f":"IF('1. Order'!Q436=\"\",\"\",'1. Order'!Q436)","v":""},{"$f":"IF('1. Order'!S436=\"\",\"\",'1. Order'!S436)","v":""},{"$f":"IF('1. Order'!T436=\"\",\"\",'1. Order'!T436)","v":""},{"$f":"IF('1. Order'!W436=\"\",\"\",'1. Order'!W436)","v":""},{"$f":"IF('1. Order'!X436=\"\",\"\",'1. Order'!X436)","v":""},{"$f":"IF('1. Order'!Y436=\"\",\"\",'1. Order'!Y436)","v":"EUR"},{"$f":"IF('1. Order'!Z436=\"\",\"\",'1. Order'!Z436)","v":""},{"$f":"IF('1. Order'!AA436=\"\",\"\",'1. Order'!AA436)","v":""},{"$f":"IF('1. Order'!AB436=\"\",\"\",'1. Order'!AB436)","v":""},null,{"$f":"IF('1. Order'!AT436=\"\",\"\",'1. Order'!AT436)","v":""},{"$f":"IF('1. Order'!AU436=\"\",\"\",'1. Order'!AU436)","v":""},null,null,null,null,null,null,null,{"$f":"IF('1. Order'!AY436=\"\",\"\",'1. Order'!AY436)","v":""},{"$f":"IF('1. Order'!AZ436=\"\",\"\",'1. Order'!AZ436)","v":""},{"$f":"IF('1. Order'!BA436=\"\",\"\",'1. Order'!BA436)","v":""},{"$f":"IF('1. Order'!BB436=\"\",\"\",'1. Order'!BB436)","v":""},{"$f":"IF('1. Order'!BD436=\"\",\"\",'1. Order'!BD436)","v":""},{"$f":"IF('1. Order'!BE436=\"\",\"\",'1. Order'!BE436)","v":""},{"$f":"IF('1. Order'!BF436=\"\",\"\",'1. Order'!BF436)","v":""},{"$f":"IF('1. Order'!BG436=\"\",\"\",'1. Order'!BG436)","v":""},{"$f":"IF('1. Order'!BH436=\"\",\"\",'1. Order'!BH436)","v":"ZWO"}]
[{"$f":"IF('1. Order'!F437=\"\",\"\",'1. Order'!F437)","v":{"$error":"#N/A"}},{"$f":"IF('1. Order'!G437=\"\",\"\",'1. Order'!G437)","v":""},{"$f":"IF('1. Order'!H437=\"\",\"\",'1. Order'!H437)","v":""},{"$f":"IF('1. Order'!I437=\"\",\"\",'1. Order'!I437)","v":""},{"$f":"IF('1. Order'!J437=\"\",\"\",'1. Order'!J437)","v":""},{"$f":"IF('1. Order'!K437=\"\",\"\",'1. Order'!K437)","v":""},{"$f":"IF('1. Order'!L437=\"\",\"\",'1. Order'!L437)","v":""},{"$f":"IF('1. Order'!M437=\"\",\"\",'1. Order'!M437)","v":""},{"$f":"IF('1. Order'!N437=\"\",\"\",'1. Order'!N437)","v":""},{"$f":"IF('1. Order'!O437=\"\",\"\",'1. Order'!O437)","v":{"$error":"#N/A"}},{"$f":"IF('1. Order'!P437=\"\",\"\",'1. Order'!P437)","v":{"$error":"#N/A"}},{"$f":"IF('1. Order'!Q437=\"\",\"\",'1. Order'!Q437)","v":""},{"$f":"IF('1. Order'!S437=\"\",\"\",'1. Order'!S437)","v":""},{"$f":"IF('1. Order'!T437=\"\",\"\",'1. Order'!T437)","v":""},{"$f":"IF('1. Order'!W437=\"\",\"\",'1. Order'!W437)","v":""},{"$f":"IF('1. Order'!X437=\"\",\"\",'1. Order'!X437)","v":""},{"$f":"IF('1. Order'!Y437=\"\",\"\",'1. Order'!Y437)","v":"EUR"},{"$f":"IF('1. Order'!Z437=\"\",\"\",'1. Order'!Z437)","v":""},{"$f":"IF('1. Order'!AA437=\"\",\"\",'1. Order'!AA437)","v":""},{"$f":"IF('1. Order'!AB437=\"\",\"\",'1. Order'!AB437)","v":""},null,{"$f":"IF('1. Order'!AT437=\"\",\"\",'1. Order'!AT437)","v":""},{"$f":"IF('1. Order'!AU437=\"\",\"\",'1. Order'!AU437)","v":""},null,null,null,null,null,null,null,{"$f":"IF('1. Order'!AY437=\"\",\"\",'1. Order'!AY437)","v":""},{"$f":"IF('1. Order'!AZ437=\"\",\"\",'1. Order'!AZ437)","v":""},{"$f":"IF('1. Order'!BA437=\"\",\"\",'1. Order'!BA437)","v":""},{"$f":"IF('1. Order'!BB437=\"\",\"\",'1. Order'!BB437)","v":""},{"$f":"IF('1. Order'!BD437=\"\",\"\",'1. Order'!BD437)","v":""},{"$f":"IF('1. Order'!BE437=\"\",\"\",'1. Order'!BE437)","v":""},{"$f":"IF('1. Order'!BF437=\"\",\"\",'1. Order'!BF437)","v":""},{"$f":"IF('1. Order'!BG437=\"\",\"\",'1. Order'!BG437)","v":""},{"$f":"IF('1. Order'!BH437=\"\",\"\",'1. Order'!BH437)","v":"ZWO"}]
[{"$f":"IF('1. Order'!F438=\"\",\"\",'1. Order'!F438)","v":{"$error":"#N/A"}},{"$f":"IF('1. Order'!G438=\"\",\"\",'1. Order'!G438)","v":""},{"$f":"IF('1. Order'!H438=\"\",\"\",'1. Order'!H438)","v":""},{"$f":"IF('1. Order'!I438=\"\",\"\",'1. Order'!I438)","v":""},{"$f":"IF('1. Order'!J438=\"\",\"\",'1. Order'!J438)","v":""},{"$f":"IF('1. Order'!K438=\"\",\"\",'1. Order'!K438)","v":""},{"$f":"IF('1. Order'!L438=\"\",\"\",'1. Order'!L438)","v":""},{"$f":"IF('1. Order'!M438=\"\",\"\",'1. Order'!M438)","v":""},{"$f":"IF('1. Order'!N438=\"\",\"\",'1. Order'!N438)","v":""},{"$f":"IF('1. Order'!O438=\"\",\"\",'1. Order'!O438)","v":{"$error":"#N/A"}},{"$f":"IF('1. Order'!P438=\"\",\"\",'1. Order'!P438)","v":{"$error":"#N/A"}},{"$f":"IF('1. Order'!Q438=\"\",\"\",'1. Order'!Q438)","v":""},{"$f":"IF('1. Order'!S438=\"\",\"\",'1. Order'!S438)","v":""},{"$f":"IF('1. Order'!T438=\"\",\"\",'1. Order'!T438)","v":""},{"$f":"IF('1. Order'!W438=\"\",\"\",'1. Order'!W438)","v":""},{"$f":"IF('1. Order'!X438=\"\",\"\",'1. Order'!X438)","v":""},{"$f":"IF('1. Order'!Y438=\"\",\"\",'1. Order'!Y438)","v":"EUR"},{"$f":"IF('1. Order'!Z438=\"\",\"\",'1. Order'!Z438)","v":""},{"$f":"IF('1. Order'!AA438=\"\",\"\",'1. Order'!AA438)","v":""},{"$f":"IF('1. Order'!AB438=\"\",\"\",'1. Order'!AB438)","v":""},null,{"$f":"IF('1. Order'!AT438=\"\",\"\",'1. Order'!AT438)","v":""},{"$f":"IF('1. Order'!AU438=\"\",\"\",'1. Order'!AU438)","v":""},null,null,null,null,null,null,null,{"$f":"IF('1. Order'!AY438=\"\",\"\",'1. Order'!AY438)","v":""},{"$f":"IF('1. Order'!AZ438=\"\",\"\",'1. Order'!AZ438)","v":""},{"$f":"IF('1. Order'!BA438=\"\",\"\",'1. Order'!BA438)","v":""},{"$f":"IF('1. Order'!BB438=\"\",\"\",'1. Order'!BB438)","v":""},{"$f":"IF('1. Order'!BD438=\"\",\"\",'1. Order'!BD438)","v":""},{"$f":"IF('1. Order'!BE438=\"\",\"\",'1. Order'!BE438)","v":""},{"$f":"IF('1. Order'!BF438=\"\",\"\",'1. Order'!BF438)","v":""},{"$f":"IF('1. Order'!BG438=\"\",\"\",'1. Order'!BG438)","v":""},{"$f":"IF('1. Order'!BH438=\"\",\"\",'1. Order'!BH438)","v":"ZWO"}]
[{"$f":"IF('1. Order'!F439=\"\",\"\",'1. Order'!F439)","v":{"$error":"#N/A"}},{"$f":"IF('1. Order'!G439=\"\",\"\",'1. Order'!G439)","v":""},{"$f":"IF('1. Order'!H439=\"\",\"\",'1. Order'!H439)","v":""},{"$f":"IF('1. Order'!I439=\"\",\"\",'1. Order'!I439)","v":""},{"$f":"IF('1. Order'!J439=\"\",\"\",'1. Order'!J439)","v":""},{"$f":"IF('1. Order'!K439=\"\",\"\",'1. Order'!K439)","v":""},{"$f":"IF('1. Order'!L439=\"\",\"\",'1. Order'!L439)","v":""},{"$f":"IF('1. Order'!M439=\"\",\"\",'1. Order'!M439)","v":""},{"$f":"IF('1. Order'!N439=\"\",\"\",'1. Order'!N439)","v":""},{"$f":"IF('1. Order'!O439=\"\",\"\",'1. Order'!O439)","v":{"$error":"#N/A"}},{"$f":"IF('1. Order'!P439=\"\",\"\",'1. Order'!P439)","v":{"$error":"#N/A"}},{"$f":"IF('1. Order'!Q439=\"\",\"\",'1. Order'!Q439)","v":""},{"$f":"IF('1. Order'!S439=\"\",\"\",'1. Order'!S439)","v":""},{"$f":"IF('1. Order'!T439=\"\",\"\",'1. Order'!T439)","v":""},{"$f":"IF('1. Order'!W439=\"\",\"\",'1. Order'!W439)","v":""},{"$f":"IF('1. Order'!X439=\"\",\"\",'1. Order'!X439)","v":""},{"$f":"IF('1. Order'!Y439=\"\",\"\",'1. Order'!Y439)","v":"EUR"},{"$f":"IF('1. Order'!Z439=\"\",\"\",'1. Order'!Z439)","v":""},{"$f":"IF('1. Order'!AA439=\"\",\"\",'1. Order'!AA439)","v":""},{"$f":"IF('1. Order'!AB439=\"\",\"\",'1. Order'!AB439)","v":""},null,{"$f":"IF('1. Order'!AT439=\"\",\"\",'1. Order'!AT439)","v":""},{"$f":"IF('1. Order'!AU439=\"\",\"\",'1. Order'!AU439)","v":""},null,null,null,null,null,null,null,{"$f":"IF('1. Order'!AY439=\"\",\"\",'1. Order'!AY439)","v":""},{"$f":"IF('1. Order'!AZ439=\"\",\"\",'1. Order'!AZ439)","v":""},{"$f":"IF('1. Order'!BA439=\"\",\"\",'1. Order'!BA439)","v":""},{"$f":"IF('1. Order'!BB439=\"\",\"\",'1. Order'!BB439)","v":""},{"$f":"IF('1. Order'!BD439=\"\",\"\",'1. Order'!BD439)","v":""},{"$f":"IF('1. Order'!BE439=\"\",\"\",'1. Order'!BE439)","v":""},{"$f":"IF('1. Order'!BF439=\"\",\"\",'1. Order'!BF439)","v":""},{"$f":"IF('1. Order'!BG439=\"\",\"\",'1. Order'!BG439)","v":""},{"$f":"IF('1. Order'!BH439=\"\",\"\",'1. Order'!BH439)","v":"ZWO"}]
[{"$f":"IF('1. Order'!F440=\"\",\"\",'1. Order'!F440)","v":{"$error":"#N/A"}},{"$f":"IF('1. Order'!G440=\"\",\"\",'1. Order'!G440)","v":""},{"$f":"IF('1. Order'!H440=\"\",\"\",'1. Order'!H440)","v":""},{"$f":"IF('1. Order'!I440=\"\",\"\",'1. Order'!I440)","v":""},{"$f":"IF('1. Order'!J440=\"\",\"\",'1. Order'!J440)","v":""},{"$f":"IF('1. Order'!K440=\"\",\"\",'1. Order'!K440)","v":""},{"$f":"IF('1. Order'!L440=\"\",\"\",'1. Order'!L440)","v":""},{"$f":"IF('1. Order'!M440=\"\",\"\",'1. Order'!M440)","v":""},{"$f":"IF('1. Order'!N440=\"\",\"\",'1. Order'!N440)","v":""},{"$f":"IF('1. Order'!O440=\"\",\"\",'1. Order'!O440)","v":{"$error":"#N/A"}},{"$f":"IF('1. Order'!P440=\"\",\"\",'1. Order'!P440)","v":{"$error":"#N/A"}},{"$f":"IF('1. Order'!Q440=\"\",\"\",'1. Order'!Q440)","v":""},{"$f":"IF('1. Order'!S440=\"\",\"\",'1. Order'!S440)","v":""},{"$f":"IF('1. Order'!T440=\"\",\"\",'1. Order'!T440)","v":""},{"$f":"IF('1. Order'!W440=\"\",\"\",'1. Order'!W440)","v":""},{"$f":"IF('1. Order'!X440=\"\",\"\",'1. Order'!X440)","v":""},{"$f":"IF('1. Order'!Y440=\"\",\"\",'1. Order'!Y440)","v":"EUR"},{"$f":"IF('1. Order'!Z440=\"\",\"\",'1. Order'!Z440)","v":""},{"$f":"IF('1. Order'!AA440=\"\",\"\",'1. Order'!AA440)","v":""},{"$f":"IF('1. Order'!AB440=\"\",\"\",'1. Order'!AB440)","v":""},null,{"$f":"IF('1. Order'!AT440=\"\",\"\",'1. Order'!AT440)","v":""},{"$f":"IF('1. Order'!AU440=\"\",\"\",'1. Order'!AU440)","v":""},null,null,null,null,null,null,null,{"$f":"IF('1. Order'!AY440=\"\",\"\",'1. Order'!AY440)","v":""},{"$f":"IF('1. Order'!AZ440=\"\",\"\",'1. Order'!AZ440)","v":""},{"$f":"IF('1. Order'!BA440=\"\",\"\",'1. Order'!BA440)","v":""},{"$f":"IF('1. Order'!BB440=\"\",\"\",'1. Order'!BB440)","v":""},{"$f":"IF('1. Order'!BD440=\"\",\"\",'1. Order'!BD440)","v":""},{"$f":"IF('1. Order'!BE440=\"\",\"\",'1. Order'!BE440)","v":""},{"$f":"IF('1. Order'!BF440=\"\",\"\",'1. Order'!BF440)","v":""},{"$f":"IF('1. Order'!BG440=\"\",\"\",'1. Order'!BG440)","v":""},{"$f":"IF('1. Order'!BH440=\"\",\"\",'1. Order'!BH440)","v":"ZWO"}]
[{"$f":"IF('1. Order'!F441=\"\",\"\",'1. Order'!F441)","v":{"$error":"#N/A"}},{"$f":"IF('1. Order'!G441=\"\",\"\",'1. Order'!G441)","v":""},{"$f":"IF('1. Order'!H441=\"\",\"\",'1. Order'!H441)","v":""},{"$f":"IF('1. Order'!I441=\"\",\"\",'1. Order'!I441)","v":""},{"$f":"IF('1. Order'!J441=\"\",\"\",'1. Order'!J441)","v":""},{"$f":"IF('1. Order'!K441=\"\",\"\",'1. Order'!K441)","v":""},{"$f":"IF('1. Order'!L441=\"\",\"\",'1. Order'!L441)","v":""},{"$f":"IF('1. Order'!M441=\"\",\"\",'1. Order'!M441)","v":""},{"$f":"IF('1. Order'!N441=\"\",\"\",'1. Order'!N441)","v":""},{"$f":"IF('1. Order'!O441=\"\",\"\",'1. Order'!O441)","v":{"$error":"#N/A"}},{"$f":"IF('1. Order'!P441=\"\",\"\",'1. Order'!P441)","v":{"$error":"#N/A"}},{"$f":"IF('1. Order'!Q441=\"\",\"\",'1. Order'!Q441)","v":""},{"$f":"IF('1. Order'!S441=\"\",\"\",'1. Order'!S441)","v":""},{"$f":"IF('1. Order'!T441=\"\",\"\",'1. Order'!T441)","v":""},{"$f":"IF('1. Order'!W441=\"\",\"\",'1. Order'!W441)","v":""},{"$f":"IF('1. Order'!X441=\"\",\"\",'1. Order'!X441)","v":""},{"$f":"IF('1. Order'!Y441=\"\",\"\",'1. Order'!Y441)","v":"EUR"},{"$f":"IF('1. Order'!Z441=\"\",\"\",'1. Order'!Z441)","v":""},{"$f":"IF('1. Order'!AA441=\"\",\"\",'1. Order'!AA441)","v":""},{"$f":"IF('1. Order'!AB441=\"\",\"\",'1. Order'!AB441)","v":""},null,{"$f":"IF('1. Order'!AT441=\"\",\"\",'1. Order'!AT441)","v":""},{"$f":"IF('1. Order'!AU441=\"\",\"\",'1. Order'!AU441)","v":""},null,null,null,null,null,null,null,{"$f":"IF('1. Order'!AY441=\"\",\"\",'1. Order'!AY441)","v":""},{"$f":"IF('1. Order'!AZ441=\"\",\"\",'1. Order'!AZ441)","v":""},{"$f":"IF('1. Order'!BA441=\"\",\"\",'1. Order'!BA441)","v":""},{"$f":"IF('1. Order'!BB441=\"\",\"\",'1. Order'!BB441)","v":""},{"$f":"IF('1. Order'!BD441=\"\",\"\",'1. Order'!BD441)","v":""},{"$f":"IF('1. Order'!BE441=\"\",\"\",'1. Order'!BE441)","v":""},{"$f":"IF('1. Order'!BF441=\"\",\"\",'1. Order'!BF441)","v":""},{"$f":"IF('1. Order'!BG441=\"\",\"\",'1. Order'!BG441)","v":""},{"$f":"IF('1. Order'!BH441=\"\",\"\",'1. Order'!BH441)","v":"ZWO"}]
[{"$f":"IF('1. Order'!F442=\"\",\"\",'1. Order'!F442)","v":{"$error":"#N/A"}},{"$f":"IF('1. Order'!G442=\"\",\"\",'1. Order'!G442)","v":""},{"$f":"IF('1. Order'!H442=\"\",\"\",'1. Order'!H442)","v":""},{"$f":"IF('1. Order'!I442=\"\",\"\",'1. Order'!I442)","v":""},{"$f":"IF('1. Order'!J442=\"\",\"\",'1. Order'!J442)","v":""},{"$f":"IF('1. Order'!K442=\"\",\"\",'1. Order'!K442)","v":""},{"$f":"IF('1. Order'!L442=\"\",\"\",'1. Order'!L442)","v":""},{"$f":"IF('1. Order'!M442=\"\",\"\",'1. Order'!M442)","v":""},{"$f":"IF('1. Order'!N442=\"\",\"\",'1. Order'!N442)","v":""},{"$f":"IF('1. Order'!O442=\"\",\"\",'1. Order'!O442)","v":{"$error":"#N/A"}},{"$f":"IF('1. Order'!P442=\"\",\"\",'1. Order'!P442)","v":{"$error":"#N/A"}},{"$f":"IF('1. Order'!Q442=\"\",\"\",'1. Order'!Q442)","v":""},{"$f":"IF('1. Order'!S442=\"\",\"\",'1. Order'!S442)","v":""},{"$f":"IF('1. Order'!T442=\"\",\"\",'1. Order'!T442)","v":""},{"$f":"IF('1. Order'!W442=\"\",\"\",'1. Order'!W442)","v":""},{"$f":"IF('1. Order'!X442=\"\",\"\",'1. Order'!X442)","v":""},{"$f":"IF('1. Order'!Y442=\"\",\"\",'1. Order'!Y442)","v":"EUR"},{"$f":"IF('1. Order'!Z442=\"\",\"\",'1. Order'!Z442)","v":""},{"$f":"IF('1. Order'!AA442=\"\",\"\",'1. Order'!AA442)","v":""},{"$f":"IF('1. Order'!AB442=\"\",\"\",'1. Order'!AB442)","v":""},null,{"$f":"IF('1. Order'!AT442=\"\",\"\",'1. Order'!AT442)","v":""},{"$f":"IF('1. Order'!AU442=\"\",\"\",'1. Order'!AU442)","v":""},null,null,null,null,null,null,null,{"$f":"IF('1. Order'!AY442=\"\",\"\",'1. Order'!AY442)","v":""},{"$f":"IF('1. Order'!AZ442=\"\",\"\",'1. Order'!AZ442)","v":""},{"$f":"IF('1. Order'!BA442=\"\",\"\",'1. Order'!BA442)","v":""},{"$f":"IF('1. Order'!BB442=\"\",\"\",'1. Order'!BB442)","v":""},{"$f":"IF('1. Order'!BD442=\"\",\"\",'1. Order'!BD442)","v":""},{"$f":"IF('1. Order'!BE442=\"\",\"\",'1. Order'!BE442)","v":""},{"$f":"IF('1. Order'!BF442=\"\",\"\",'1. Order'!BF442)","v":""},{"$f":"IF('1. Order'!BG442=\"\",\"\",'1. Order'!BG442)","v":""},{"$f":"IF('1. Order'!BH442=\"\",\"\",'1. Order'!BH442)","v":"ZWO"}]
[{"$f":"IF('1. Order'!F443=\"\",\"\",'1. Order'!F443)","v":{"$error":"#N/A"}},{"$f":"IF('1. Order'!G443=\"\",\"\",'1. Order'!G443)","v":""},{"$f":"IF('1. Order'!H443=\"\",\"\",'1. Order'!H443)","v":""},{"$f":"IF('1. Order'!I443=\"\",\"\",'1. Order'!I443)","v":""},{"$f":"IF('1. Order'!J443=\"\",\"\",'1. Order'!J443)","v":""},{"$f":"IF('1. Order'!K443=\"\",\"\",'1. Order'!K443)","v":""},{"$f":"IF('1. Order'!L443=\"\",\"\",'1. Order'!L443)","v":""},{"$f":"IF('1. Order'!M443=\"\",\"\",'1. Order'!M443)","v":""},{"$f":"IF('1. Order'!N443=\"\",\"\",'1. Order'!N443)","v":""},{"$f":"IF('1. Order'!O443=\"\",\"\",'1. Order'!O443)","v":{"$error":"#N/A"}},{"$f":"IF('1. Order'!P443=\"\",\"\",'1. Order'!P443)","v":{"$error":"#N/A"}},{"$f":"IF('1. Order'!Q443=\"\",\"\",'1. Order'!Q443)","v":""},{"$f":"IF('1. Order'!S443=\"\",\"\",'1. Order'!S443)","v":""},{"$f":"IF('1. Order'!T443=\"\",\"\",'1. Order'!T443)","v":""},{"$f":"IF('1. Order'!W443=\"\",\"\",'1. Order'!W443)","v":""},{"$f":"IF('1. Order'!X443=\"\",\"\",'1. Order'!X443)","v":""},{"$f":"IF('1. Order'!Y443=\"\",\"\",'1. Order'!Y443)","v":"EUR"},{"$f":"IF('1. Order'!Z443=\"\",\"\",'1. Order'!Z443)","v":""},{"$f":"IF('1. Order'!AA443=\"\",\"\",'1. Order'!AA443)","v":""},{"$f":"IF('1. Order'!AB443=\"\",\"\",'1. Order'!AB443)","v":""},null,{"$f":"IF('1. Order'!AT443=\"\",\"\",'1. Order'!AT443)","v":""},{"$f":"IF('1. Order'!AU443=\"\",\"\",'1. Order'!AU443)","v":""},null,null,null,null,null,null,null,{"$f":"IF('1. Order'!AY443=\"\",\"\",'1. Order'!AY443)","v":""},{"$f":"IF('1. Order'!AZ443=\"\",\"\",'1. Order'!AZ443)","v":""},{"$f":"IF('1. Order'!BA443=\"\",\"\",'1. Order'!BA443)","v":""},{"$f":"IF('1. Order'!BB443=\"\",\"\",'1. Order'!BB443)","v":""},{"$f":"IF('1. Order'!BD443=\"\",\"\",'1. Order'!BD443)","v":""},{"$f":"IF('1. Order'!BE443=\"\",\"\",'1. Order'!BE443)","v":""},{"$f":"IF('1. Order'!BF443=\"\",\"\",'1. Order'!BF443)","v":""},{"$f":"IF('1. Order'!BG443=\"\",\"\",'1. Order'!BG443)","v":""},{"$f":"IF('1. Order'!BH443=\"\",\"\",'1. Order'!BH443)","v":"ZWO"}]
[{"$f":"IF('1. Order'!F444=\"\",\"\",'1. Order'!F444)","v":{"$error":"#N/A"}},{"$f":"IF('1. Order'!G444=\"\",\"\",'1. Order'!G444)","v":""},{"$f":"IF('1. Order'!H444=\"\",\"\",'1. Order'!H444)","v":""},{"$f":"IF('1. Order'!I444=\"\",\"\",'1. Order'!I444)","v":""},{"$f":"IF('1. Order'!J444=\"\",\"\",'1. Order'!J444)","v":""},{"$f":"IF('1. Order'!K444=\"\",\"\",'1. Order'!K444)","v":""},{"$f":"IF('1. Order'!L444=\"\",\"\",'1. Order'!L444)","v":""},{"$f":"IF('1. Order'!M444=\"\",\"\",'1. Order'!M444)","v":""},{"$f":"IF('1. Order'!N444=\"\",\"\",'1. Order'!N444)","v":""},{"$f":"IF('1. Order'!O444=\"\",\"\",'1. Order'!O444)","v":{"$error":"#N/A"}},{"$f":"IF('1. Order'!P444=\"\",\"\",'1. Order'!P444)","v":{"$error":"#N/A"}},{"$f":"IF('1. Order'!Q444=\"\",\"\",'1. Order'!Q444)","v":""},{"$f":"IF('1. Order'!S444=\"\",\"\",'1. Order'!S444)","v":""},{"$f":"IF('1. Order'!T444=\"\",\"\",'1. Order'!T444)","v":""},{"$f":"IF('1. Order'!W444=\"\",\"\",'1. Order'!W444)","v":""},{"$f":"IF('1. Order'!X444=\"\",\"\",'1. Order'!X444)","v":""},{"$f":"IF('1. Order'!Y444=\"\",\"\",'1. Order'!Y444)","v":"EUR"},{"$f":"IF('1. Order'!Z444=\"\",\"\",'1. Order'!Z444)","v":""},{"$f":"IF('1. Order'!AA444=\"\",\"\",'1. Order'!AA444)","v":""},{"$f":"IF('1. Order'!AB444=\"\",\"\",'1. Order'!AB444)","v":""},null,{"$f":"IF('1. Order'!AT444=\"\",\"\",'1. Order'!AT444)","v":""},{"$f":"IF('1. Order'!AU444=\"\",\"\",'1. Order'!AU444)","v":""},null,null,null,null,null,null,null,{"$f":"IF('1. Order'!AY444=\"\",\"\",'1. Order'!AY444)","v":""},{"$f":"IF('1. Order'!AZ444=\"\",\"\",'1. Order'!AZ444)","v":""},{"$f":"IF('1. Order'!BA444=\"\",\"\",'1. Order'!BA444)","v":""},{"$f":"IF('1. Order'!BB444=\"\",\"\",'1. Order'!BB444)","v":""},{"$f":"IF('1. Order'!BD444=\"\",\"\",'1. Order'!BD444)","v":""},{"$f":"IF('1. Order'!BE444=\"\",\"\",'1. Order'!BE444)","v":""},{"$f":"IF('1. Order'!BF444=\"\",\"\",'1. Order'!BF444)","v":""},{"$f":"IF('1. Order'!BG444=\"\",\"\",'1. Order'!BG444)","v":""},{"$f":"IF('1. Order'!BH444=\"\",\"\",'1. Order'!BH444)","v":"ZWO"}]
[{"$f":"IF('1. Order'!F445=\"\",\"\",'1. Order'!F445)","v":{"$error":"#N/A"}},{"$f":"IF('1. Order'!G445=\"\",\"\",'1. Order'!G445)","v":""},{"$f":"IF('1. Order'!H445=\"\",\"\",'1. Order'!H445)","v":""},{"$f":"IF('1. Order'!I445=\"\",\"\",'1. Order'!I445)","v":""},{"$f":"IF('1. Order'!J445=\"\",\"\",'1. Order'!J445)","v":""},{"$f":"IF('1. Order'!K445=\"\",\"\",'1. Order'!K445)","v":""},{"$f":"IF('1. Order'!L445=\"\",\"\",'1. Order'!L445)","v":""},{"$f":"IF('1. Order'!M445=\"\",\"\",'1. Order'!M445)","v":""},{"$f":"IF('1. Order'!N445=\"\",\"\",'1. Order'!N445)","v":""},{"$f":"IF('1. Order'!O445=\"\",\"\",'1. Order'!O445)","v":{"$error":"#N/A"}},{"$f":"IF('1. Order'!P445=\"\",\"\",'1. Order'!P445)","v":{"$error":"#N/A"}},{"$f":"IF('1. Order'!Q445=\"\",\"\",'1. Order'!Q445)","v":""},{"$f":"IF('1. Order'!S445=\"\",\"\",'1. Order'!S445)","v":""},{"$f":"IF('1. Order'!T445=\"\",\"\",'1. Order'!T445)","v":""},{"$f":"IF('1. Order'!W445=\"\",\"\",'1. Order'!W445)","v":""},{"$f":"IF('1. Order'!X445=\"\",\"\",'1. Order'!X445)","v":""},{"$f":"IF('1. Order'!Y445=\"\",\"\",'1. Order'!Y445)","v":"EUR"},{"$f":"IF('1. Order'!Z445=\"\",\"\",'1. Order'!Z445)","v":""},{"$f":"IF('1. Order'!AA445=\"\",\"\",'1. Order'!AA445)","v":""},{"$f":"IF('1. Order'!AB445=\"\",\"\",'1. Order'!AB445)","v":""},null,{"$f":"IF('1. Order'!AT445=\"\",\"\",'1. Order'!AT445)","v":""},{"$f":"IF('1. Order'!AU445=\"\",\"\",'1. Order'!AU445)","v":""},null,null,null,null,null,null,null,{"$f":"IF('1. Order'!AY445=\"\",\"\",'1. Order'!AY445)","v":""},{"$f":"IF('1. Order'!AZ445=\"\",\"\",'1. Order'!AZ445)","v":""},{"$f":"IF('1. Order'!BA445=\"\",\"\",'1. Order'!BA445)","v":""},{"$f":"IF('1. Order'!BB445=\"\",\"\",'1. Order'!BB445)","v":""},{"$f":"IF('1. Order'!BD445=\"\",\"\",'1. Order'!BD445)","v":""},{"$f":"IF('1. Order'!BE445=\"\",\"\",'1. Order'!BE445)","v":""},{"$f":"IF('1. Order'!BF445=\"\",\"\",'1. Order'!BF445)","v":""},{"$f":"IF('1. Order'!BG445=\"\",\"\",'1. Order'!BG445)","v":""},{"$f":"IF('1. Order'!BH445=\"\",\"\",'1. Order'!BH445)","v":"ZWO"}]
[{"$f":"IF('1. Order'!F446=\"\",\"\",'1. Order'!F446)","v":{"$error":"#N/A"}},{"$f":"IF('1. Order'!G446=\"\",\"\",'1. Order'!G446)","v":""},{"$f":"IF('1. Order'!H446=\"\",\"\",'1. Order'!H446)","v":""},{"$f":"IF('1. Order'!I446=\"\",\"\",'1. Order'!I446)","v":""},{"$f":"IF('1. Order'!J446=\"\",\"\",'1. Order'!J446)","v":""},{"$f":"IF('1. Order'!K446=\"\",\"\",'1. Order'!K446)","v":""},{"$f":"IF('1. Order'!L446=\"\",\"\",'1. Order'!L446)","v":""},{"$f":"IF('1. Order'!M446=\"\",\"\",'1. Order'!M446)","v":""},{"$f":"IF('1. Order'!N446=\"\",\"\",'1. Order'!N446)","v":""},{"$f":"IF('1. Order'!O446=\"\",\"\",'1. Order'!O446)","v":{"$error":"#N/A"}},{"$f":"IF('1. Order'!P446=\"\",\"\",'1. Order'!P446)","v":{"$error":"#N/A"}},{"$f":"IF('1. Order'!Q446=\"\",\"\",'1. Order'!Q446)","v":""},{"$f":"IF('1. Order'!S446=\"\",\"\",'1. Order'!S446)","v":""},{"$f":"IF('1. Order'!T446=\"\",\"\",'1. Order'!T446)","v":""},{"$f":"IF('1. Order'!W446=\"\",\"\",'1. Order'!W446)","v":""},{"$f":"IF('1. Order'!X446=\"\",\"\",'1. Order'!X446)","v":""},{"$f":"IF('1. Order'!Y446=\"\",\"\",'1. Order'!Y446)","v":"EUR"},{"$f":"IF('1. Order'!Z446=\"\",\"\",'1. Order'!Z446)","v":""},{"$f":"IF('1. Order'!AA446=\"\",\"\",'1. Order'!AA446)","v":""},{"$f":"IF('1. Order'!AB446=\"\",\"\",'1. Order'!AB446)","v":""},null,{"$f":"IF('1. Order'!AT446=\"\",\"\",'1. Order'!AT446)","v":""},{"$f":"IF('1. Order'!AU446=\"\",\"\",'1. Order'!AU446)","v":""},null,null,null,null,null,null,null,{"$f":"IF('1. Order'!AY446=\"\",\"\",'1. Order'!AY446)","v":""},{"$f":"IF('1. Order'!AZ446=\"\",\"\",'1. Order'!AZ446)","v":""},{"$f":"IF('1. Order'!BA446=\"\",\"\",'1. Order'!BA446)","v":""},{"$f":"IF('1. Order'!BB446=\"\",\"\",'1. Order'!BB446)","v":""},{"$f":"IF('1. Order'!BD446=\"\",\"\",'1. Order'!BD446)","v":""},{"$f":"IF('1. Order'!BE446=\"\",\"\",'1. Order'!BE446)","v":""},{"$f":"IF('1. Order'!BF446=\"\",\"\",'1. Order'!BF446)","v":""},{"$f":"IF('1. Order'!BG446=\"\",\"\",'1. Order'!BG446)","v":""},{"$f":"IF('1. Order'!BH446=\"\",\"\",'1. Order'!BH446)","v":"ZWO"}]
[{"$f":"IF('1. Order'!F447=\"\",\"\",'1. Order'!F447)","v":{"$error":"#N/A"}},{"$f":"IF('1. Order'!G447=\"\",\"\",'1. Order'!G447)","v":""},{"$f":"IF('1. Order'!H447=\"\",\"\",'1. Order'!H447)","v":""},{"$f":"IF('1. Order'!I447=\"\",\"\",'1. Order'!I447)","v":""},{"$f":"IF('1. Order'!J447=\"\",\"\",'1. Order'!J447)","v":""},{"$f":"IF('1. Order'!K447=\"\",\"\",'1. Order'!K447)","v":""},{"$f":"IF('1. Order'!L447=\"\",\"\",'1. Order'!L447)","v":""},{"$f":"IF('1. Order'!M447=\"\",\"\",'1. Order'!M447)","v":""},{"$f":"IF('1. Order'!N447=\"\",\"\",'1. Order'!N447)","v":""},{"$f":"IF('1. Order'!O447=\"\",\"\",'1. Order'!O447)","v":{"$error":"#N/A"}},{"$f":"IF('1. Order'!P447=\"\",\"\",'1. Order'!P447)","v":{"$error":"#N/A"}},{"$f":"IF('1. Order'!Q447=\"\",\"\",'1. Order'!Q447)","v":""},{"$f":"IF('1. Order'!S447=\"\",\"\",'1. Order'!S447)","v":""},{"$f":"IF('1. Order'!T447=\"\",\"\",'1. Order'!T447)","v":""},{"$f":"IF('1. Order'!W447=\"\",\"\",'1. Order'!W447)","v":""},{"$f":"IF('1. Order'!X447=\"\",\"\",'1. Order'!X447)","v":""},{"$f":"IF('1. Order'!Y447=\"\",\"\",'1. Order'!Y447)","v":"EUR"},{"$f":"IF('1. Order'!Z447=\"\",\"\",'1. Order'!Z447)","v":""},{"$f":"IF('1. Order'!AA447=\"\",\"\",'1. Order'!AA447)","v":""},{"$f":"IF('1. Order'!AB447=\"\",\"\",'1. Order'!AB447)","v":""},null,{"$f":"IF('1. Order'!AT447=\"\",\"\",'1. Order'!AT447)","v":""},{"$f":"IF('1. Order'!AU447=\"\",\"\",'1. Order'!AU447)","v":""},null,null,null,null,null,null,null,{"$f":"IF('1. Order'!AY447=\"\",\"\",'1. Order'!AY447)","v":""},{"$f":"IF('1. Order'!AZ447=\"\",\"\",'1. Order'!AZ447)","v":""},{"$f":"IF('1. Order'!BA447=\"\",\"\",'1. Order'!BA447)","v":""},{"$f":"IF('1. Order'!BB447=\"\",\"\",'1. Order'!BB447)","v":""},{"$f":"IF('1. Order'!BD447=\"\",\"\",'1. Order'!BD447)","v":""},{"$f":"IF('1. Order'!BE447=\"\",\"\",'1. Order'!BE447)","v":""},{"$f":"IF('1. Order'!BF447=\"\",\"\",'1. Order'!BF447)","v":""},{"$f":"IF('1. Order'!BG447=\"\",\"\",'1. Order'!BG447)","v":""},{"$f":"IF('1. Order'!BH447=\"\",\"\",'1. Order'!BH447)","v":"ZWO"}]
[{"$f":"IF('1. Order'!F448=\"\",\"\",'1. Order'!F448)","v":{"$error":"#N/A"}},{"$f":"IF('1. Order'!G448=\"\",\"\",'1. Order'!G448)","v":""},{"$f":"IF('1. Order'!H448=\"\",\"\",'1. Order'!H448)","v":""},{"$f":"IF('1. Order'!I448=\"\",\"\",'1. Order'!I448)","v":""},{"$f":"IF('1. Order'!J448=\"\",\"\",'1. Order'!J448)","v":""},{"$f":"IF('1. Order'!K448=\"\",\"\",'1. Order'!K448)","v":""},{"$f":"IF('1. Order'!L448=\"\",\"\",'1. Order'!L448)","v":""},{"$f":"IF('1. Order'!M448=\"\",\"\",'1. Order'!M448)","v":""},{"$f":"IF('1. Order'!N448=\"\",\"\",'1. Order'!N448)","v":""},{"$f":"IF('1. Order'!O448=\"\",\"\",'1. Order'!O448)","v":{"$error":"#N/A"}},{"$f":"IF('1. Order'!P448=\"\",\"\",'1. Order'!P448)","v":{"$error":"#N/A"}},{"$f":"IF('1. Order'!Q448=\"\",\"\",'1. Order'!Q448)","v":""},{"$f":"IF('1. Order'!S448=\"\",\"\",'1. Order'!S448)","v":""},{"$f":"IF('1. Order'!T448=\"\",\"\",'1. Order'!T448)","v":""},{"$f":"IF('1. Order'!W448=\"\",\"\",'1. Order'!W448)","v":""},{"$f":"IF('1. Order'!X448=\"\",\"\",'1. Order'!X448)","v":""},{"$f":"IF('1. Order'!Y448=\"\",\"\",'1. Order'!Y448)","v":"EUR"},{"$f":"IF('1. Order'!Z448=\"\",\"\",'1. Order'!Z448)","v":""},{"$f":"IF('1. Order'!AA448=\"\",\"\",'1. Order'!AA448)","v":""},{"$f":"IF('1. Order'!AB448=\"\",\"\",'1. Order'!AB448)","v":""},null,{"$f":"IF('1. Order'!AT448=\"\",\"\",'1. Order'!AT448)","v":""},{"$f":"IF('1. Order'!AU448=\"\",\"\",'1. Order'!AU448)","v":""},null,null,null,null,null,null,null,{"$f":"IF('1. Order'!AY448=\"\",\"\",'1. Order'!AY448)","v":""},{"$f":"IF('1. Order'!AZ448=\"\",\"\",'1. Order'!AZ448)","v":""},{"$f":"IF('1. Order'!BA448=\"\",\"\",'1. Order'!BA448)","v":""},{"$f":"IF('1. Order'!BB448=\"\",\"\",'1. Order'!BB448)","v":""},{"$f":"IF('1. Order'!BD448=\"\",\"\",'1. Order'!BD448)","v":""},{"$f":"IF('1. Order'!BE448=\"\",\"\",'1. Order'!BE448)","v":""},{"$f":"IF('1. Order'!BF448=\"\",\"\",'1. Order'!BF448)","v":""},{"$f":"IF('1. Order'!BG448=\"\",\"\",'1. Order'!BG448)","v":""},{"$f":"IF('1. Order'!BH448=\"\",\"\",'1. Order'!BH448)","v":"ZWO"}]
[{"$f":"IF('1. Order'!F449=\"\",\"\",'1. Order'!F449)","v":{"$error":"#N/A"}},{"$f":"IF('1. Order'!G449=\"\",\"\",'1. Order'!G449)","v":""},{"$f":"IF('1. Order'!H449=\"\",\"\",'1. Order'!H449)","v":""},{"$f":"IF('1. Order'!I449=\"\",\"\",'1. Order'!I449)","v":""},{"$f":"IF('1. Order'!J449=\"\",\"\",'1. Order'!J449)","v":""},{"$f":"IF('1. Order'!K449=\"\",\"\",'1. Order'!K449)","v":""},{"$f":"IF('1. Order'!L449=\"\",\"\",'1. Order'!L449)","v":""},{"$f":"IF('1. Order'!M449=\"\",\"\",'1. Order'!M449)","v":""},{"$f":"IF('1. Order'!N449=\"\",\"\",'1. Order'!N449)","v":""},{"$f":"IF('1. Order'!O449=\"\",\"\",'1. Order'!O449)","v":{"$error":"#N/A"}},{"$f":"IF('1. Order'!P449=\"\",\"\",'1. Order'!P449)","v":{"$error":"#N/A"}},{"$f":"IF('1. Order'!Q449=\"\",\"\",'1. Order'!Q449)","v":""},{"$f":"IF('1. Order'!S449=\"\",\"\",'1. Order'!S449)","v":""},{"$f":"IF('1. Order'!T449=\"\",\"\",'1. Order'!T449)","v":""},{"$f":"IF('1. Order'!W449=\"\",\"\",'1. Order'!W449)","v":""},{"$f":"IF('1. Order'!X449=\"\",\"\",'1. Order'!X449)","v":""},{"$f":"IF('1. Order'!Y449=\"\",\"\",'1. Order'!Y449)","v":"EUR"},{"$f":"IF('1. Order'!Z449=\"\",\"\",'1. Order'!Z449)","v":""},{"$f":"IF('1. Order'!AA449=\"\",\"\",'1. Order'!AA449)","v":""},{"$f":"IF('1. Order'!AB449=\"\",\"\",'1. Order'!AB449)","v":""},null,{"$f":"IF('1. Order'!AT449=\"\",\"\",'1. Order'!AT449)","v":""},{"$f":"IF('1. Order'!AU449=\"\",\"\",'1. Order'!AU449)","v":""},null,null,null,null,null,null,null,{"$f":"IF('1. Order'!AY449=\"\",\"\",'1. Order'!AY449)","v":""},{"$f":"IF('1. Order'!AZ449=\"\",\"\",'1. Order'!AZ449)","v":""},{"$f":"IF('1. Order'!BA449=\"\",\"\",'1. Order'!BA449)","v":""},{"$f":"IF('1. Order'!BB449=\"\",\"\",'1. Order'!BB449)","v":""},{"$f":"IF('1. Order'!BD449=\"\",\"\",'1. Order'!BD449)","v":""},{"$f":"IF('1. Order'!BE449=\"\",\"\",'1. Order'!BE449)","v":""},{"$f":"IF('1. Order'!BF449=\"\",\"\",'1. Order'!BF449)","v":""},{"$f":"IF('1. Order'!BG449=\"\",\"\",'1. Order'!BG449)","v":""},{"$f":"IF('1. Order'!BH449=\"\",\"\",'1. Order'!BH449)","v":"ZWO"}]
[{"$f":"IF('1. Order'!F450=\"\",\"\",'1. Order'!F450)","v":{"$error":"#N/A"}},{"$f":"IF('1. Order'!G450=\"\",\"\",'1. Order'!G450)","v":""},{"$f":"IF('1. Order'!H450=\"\",\"\",'1. Order'!H450)","v":""},{"$f":"IF('1. Order'!I450=\"\",\"\",'1. Order'!I450)","v":""},{"$f":"IF('1. Order'!J450=\"\",\"\",'1. Order'!J450)","v":""},{"$f":"IF('1. Order'!K450=\"\",\"\",'1. Order'!K450)","v":""},{"$f":"IF('1. Order'!L450=\"\",\"\",'1. Order'!L450)","v":""},{"$f":"IF('1. Order'!M450=\"\",\"\",'1. Order'!M450)","v":""},{"$f":"IF('1. Order'!N450=\"\",\"\",'1. Order'!N450)","v":""},{"$f":"IF('1. Order'!O450=\"\",\"\",'1. Order'!O450)","v":{"$error":"#N/A"}},{"$f":"IF('1. Order'!P450=\"\",\"\",'1. Order'!P450)","v":{"$error":"#N/A"}},{"$f":"IF('1. Order'!Q450=\"\",\"\",'1. Order'!Q450)","v":""},{"$f":"IF('1. Order'!S450=\"\",\"\",'1. Order'!S450)","v":""},{"$f":"IF('1. Order'!T450=\"\",\"\",'1. Order'!T450)","v":""},{"$f":"IF('1. Order'!W450=\"\",\"\",'1. Order'!W450)","v":""},{"$f":"IF('1. Order'!X450=\"\",\"\",'1. Order'!X450)","v":""},{"$f":"IF('1. Order'!Y450=\"\",\"\",'1. Order'!Y450)","v":"EUR"},{"$f":"IF('1. Order'!Z450=\"\",\"\",'1. Order'!Z450)","v":""},{"$f":"IF('1. Order'!AA450=\"\",\"\",'1. Order'!AA450)","v":""},{"$f":"IF('1. Order'!AB450=\"\",\"\",'1. Order'!AB450)","v":""},null,{"$f":"IF('1. Order'!AT450=\"\",\"\",'1. Order'!AT450)","v":""},{"$f":"IF('1. Order'!AU450=\"\",\"\",'1. Order'!AU450)","v":""},null,null,null,null,null,null,null,{"$f":"IF('1. Order'!AY450=\"\",\"\",'1. Order'!AY450)","v":""},{"$f":"IF('1. Order'!AZ450=\"\",\"\",'1. Order'!AZ450)","v":""},{"$f":"IF('1. Order'!BA450=\"\",\"\",'1. Order'!BA450)","v":""},{"$f":"IF('1. Order'!BB450=\"\",\"\",'1. Order'!BB450)","v":""},{"$f":"IF('1. Order'!BD450=\"\",\"\",'1. Order'!BD450)","v":""},{"$f":"IF('1. Order'!BE450=\"\",\"\",'1. Order'!BE450)","v":""},{"$f":"IF('1. Order'!BF450=\"\",\"\",'1. Order'!BF450)","v":""},{"$f":"IF('1. Order'!BG450=\"\",\"\",'1. Order'!BG450)","v":""},{"$f":"IF('1. Order'!BH450=\"\",\"\",'1. Order'!BH450)","v":"ZWO"}]
[{"$f":"IF('1. Order'!F451=\"\",\"\",'1. Order'!F451)","v":{"$error":"#N/A"}},{"$f":"IF('1. Order'!G451=\"\",\"\",'1. Order'!G451)","v":""},{"$f":"IF('1. Order'!H451=\"\",\"\",'1. Order'!H451)","v":""},{"$f":"IF('1. Order'!I451=\"\",\"\",'1. Order'!I451)","v":""},{"$f":"IF('1. Order'!J451=\"\",\"\",'1. Order'!J451)","v":""},{"$f":"IF('1. Order'!K451=\"\",\"\",'1. Order'!K451)","v":""},{"$f":"IF('1. Order'!L451=\"\",\"\",'1. Order'!L451)","v":""},{"$f":"IF('1. Order'!M451=\"\",\"\",'1. Order'!M451)","v":""},{"$f":"IF('1. Order'!N451=\"\",\"\",'1. Order'!N451)","v":""},{"$f":"IF('1. Order'!O451=\"\",\"\",'1. Order'!O451)","v":{"$error":"#N/A"}},{"$f":"IF('1. Order'!P451=\"\",\"\",'1. Order'!P451)","v":{"$error":"#N/A"}},{"$f":"IF('1. Order'!Q451=\"\",\"\",'1. Order'!Q451)","v":""},{"$f":"IF('1. Order'!S451=\"\",\"\",'1. Order'!S451)","v":""},{"$f":"IF('1. Order'!T451=\"\",\"\",'1. Order'!T451)","v":""},{"$f":"IF('1. Order'!W451=\"\",\"\",'1. Order'!W451)","v":""},{"$f":"IF('1. Order'!X451=\"\",\"\",'1. Order'!X451)","v":""},{"$f":"IF('1. Order'!Y451=\"\",\"\",'1. Order'!Y451)","v":"EUR"},{"$f":"IF('1. Order'!Z451=\"\",\"\",'1. Order'!Z451)","v":""},{"$f":"IF('1. Order'!AA451=\"\",\"\",'1. Order'!AA451)","v":""},{"$f":"IF('1. Order'!AB451=\"\",\"\",'1. Order'!AB451)","v":""},null,{"$f":"IF('1. Order'!AT451=\"\",\"\",'1. Order'!AT451)","v":""},{"$f":"IF('1. Order'!AU451=\"\",\"\",'1. Order'!AU451)","v":""},null,null,null,null,null,null,null,{"$f":"IF('1. Order'!AY451=\"\",\"\",'1. Order'!AY451)","v":""},{"$f":"IF('1. Order'!AZ451=\"\",\"\",'1. Order'!AZ451)","v":""},{"$f":"IF('1. Order'!BA451=\"\",\"\",'1. Order'!BA451)","v":""},{"$f":"IF('1. Order'!BB451=\"\",\"\",'1. Order'!BB451)","v":""},{"$f":"IF('1. Order'!BD451=\"\",\"\",'1. Order'!BD451)","v":""},{"$f":"IF('1. Order'!BE451=\"\",\"\",'1. Order'!BE451)","v":""},{"$f":"IF('1. Order'!BF451=\"\",\"\",'1. Order'!BF451)","v":""},{"$f":"IF('1. Order'!BG451=\"\",\"\",'1. Order'!BG451)","v":""},{"$f":"IF('1. Order'!BH451=\"\",\"\",'1. Order'!BH451)","v":"ZWO"}]
[{"$f":"IF('1. Order'!F452=\"\",\"\",'1. Order'!F452)","v":{"$error":"#N/A"}},{"$f":"IF('1. Order'!G452=\"\",\"\",'1. Order'!G452)","v":""},{"$f":"IF('1. Order'!H452=\"\",\"\",'1. Order'!H452)","v":""},{"$f":"IF('1. Order'!I452=\"\",\"\",'1. Order'!I452)","v":""},{"$f":"IF('1. Order'!J452=\"\",\"\",'1. Order'!J452)","v":""},{"$f":"IF('1. Order'!K452=\"\",\"\",'1. Order'!K452)","v":""},{"$f":"IF('1. Order'!L452=\"\",\"\",'1. Order'!L452)","v":""},{"$f":"IF('1. Order'!M452=\"\",\"\",'1. Order'!M452)","v":""},{"$f":"IF('1. Order'!N452=\"\",\"\",'1. Order'!N452)","v":""},{"$f":"IF('1. Order'!O452=\"\",\"\",'1. Order'!O452)","v":{"$error":"#N/A"}},{"$f":"IF('1. Order'!P452=\"\",\"\",'1. Order'!P452)","v":{"$error":"#N/A"}},{"$f":"IF('1. Order'!Q452=\"\",\"\",'1. Order'!Q452)","v":""},{"$f":"IF('1. Order'!S452=\"\",\"\",'1. Order'!S452)","v":""},{"$f":"IF('1. Order'!T452=\"\",\"\",'1. Order'!T452)","v":""},{"$f":"IF('1. Order'!W452=\"\",\"\",'1. Order'!W452)","v":""},{"$f":"IF('1. Order'!X452=\"\",\"\",'1. Order'!X452)","v":""},{"$f":"IF('1. Order'!Y452=\"\",\"\",'1. Order'!Y452)","v":"EUR"},{"$f":"IF('1. Order'!Z452=\"\",\"\",'1. Order'!Z452)","v":""},{"$f":"IF('1. Order'!AA452=\"\",\"\",'1. Order'!AA452)","v":""},{"$f":"IF('1. Order'!AB452=\"\",\"\",'1. Order'!AB452)","v":""},null,{"$f":"IF('1. Order'!AT452=\"\",\"\",'1. Order'!AT452)","v":""},{"$f":"IF('1. Order'!AU452=\"\",\"\",'1. Order'!AU452)","v":""},null,null,null,null,null,null,null,{"$f":"IF('1. Order'!AY452=\"\",\"\",'1. Order'!AY452)","v":""},{"$f":"IF('1. Order'!AZ452=\"\",\"\",'1. Order'!AZ452)","v":""},{"$f":"IF('1. Order'!BA452=\"\",\"\",'1. Order'!BA452)","v":""},{"$f":"IF('1. Order'!BB452=\"\",\"\",'1. Order'!BB452)","v":""},{"$f":"IF('1. Order'!BD452=\"\",\"\",'1. Order'!BD452)","v":""},{"$f":"IF('1. Order'!BE452=\"\",\"\",'1. Order'!BE452)","v":""},{"$f":"IF('1. Order'!BF452=\"\",\"\",'1. Order'!BF452)","v":""},{"$f":"IF('1. Order'!BG452=\"\",\"\",'1. Order'!BG452)","v":""},{"$f":"IF('1. Order'!BH452=\"\",\"\",'1. Order'!BH452)","v":"ZWO"}]
[{"$f":"IF('1. Order'!F453=\"\",\"\",'1. Order'!F453)","v":{"$error":"#N/A"}},{"$f":"IF('1. Order'!G453=\"\",\"\",'1. Order'!G453)","v":""},{"$f":"IF('1. Order'!H453=\"\",\"\",'1. Order'!H453)","v":""},{"$f":"IF('1. Order'!I453=\"\",\"\",'1. Order'!I453)","v":""},{"$f":"IF('1. Order'!J453=\"\",\"\",'1. Order'!J453)","v":""},{"$f":"IF('1. Order'!K453=\"\",\"\",'1. Order'!K453)","v":""},{"$f":"IF('1. Order'!L453=\"\",\"\",'1. Order'!L453)","v":""},{"$f":"IF('1. Order'!M453=\"\",\"\",'1. Order'!M453)","v":""},{"$f":"IF('1. Order'!N453=\"\",\"\",'1. Order'!N453)","v":""},{"$f":"IF('1. Order'!O453=\"\",\"\",'1. Order'!O453)","v":{"$error":"#N/A"}},{"$f":"IF('1. Order'!P453=\"\",\"\",'1. Order'!P453)","v":{"$error":"#N/A"}},{"$f":"IF('1. Order'!Q453=\"\",\"\",'1. Order'!Q453)","v":""},{"$f":"IF('1. Order'!S453=\"\",\"\",'1. Order'!S453)","v":""},{"$f":"IF('1. Order'!T453=\"\",\"\",'1. Order'!T453)","v":""},{"$f":"IF('1. Order'!W453=\"\",\"\",'1. Order'!W453)","v":""},{"$f":"IF('1. Order'!X453=\"\",\"\",'1. Order'!X453)","v":""},{"$f":"IF('1. Order'!Y453=\"\",\"\",'1. Order'!Y453)","v":"EUR"},{"$f":"IF('1. Order'!Z453=\"\",\"\",'1. Order'!Z453)","v":""},{"$f":"IF('1. Order'!AA453=\"\",\"\",'1. Order'!AA453)","v":""},{"$f":"IF('1. Order'!AB453=\"\",\"\",'1. Order'!AB453)","v":""},null,{"$f":"IF('1. Order'!AT453=\"\",\"\",'1. Order'!AT453)","v":""},{"$f":"IF('1. Order'!AU453=\"\",\"\",'1. Order'!AU453)","v":""},null,null,null,null,null,null,null,{"$f":"IF('1. Order'!AY453=\"\",\"\",'1. Order'!AY453)","v":""},{"$f":"IF('1. Order'!AZ453=\"\",\"\",'1. Order'!AZ453)","v":""},{"$f":"IF('1. Order'!BA453=\"\",\"\",'1. Order'!BA453)","v":""},{"$f":"IF('1. Order'!BB453=\"\",\"\",'1. Order'!BB453)","v":""},{"$f":"IF('1. Order'!BD453=\"\",\"\",'1. Order'!BD453)","v":""},{"$f":"IF('1. Order'!BE453=\"\",\"\",'1. Order'!BE453)","v":""},{"$f":"IF('1. Order'!BF453=\"\",\"\",'1. Order'!BF453)","v":""},{"$f":"IF('1. Order'!BG453=\"\",\"\",'1. Order'!BG453)","v":""},{"$f":"IF('1. Order'!BH453=\"\",\"\",'1. Order'!BH453)","v":"ZWO"}]
[{"$f":"IF('1. Order'!F454=\"\",\"\",'1. Order'!F454)","v":{"$error":"#N/A"}},{"$f":"IF('1. Order'!G454=\"\",\"\",'1. Order'!G454)","v":""},{"$f":"IF('1. Order'!H454=\"\",\"\",'1. Order'!H454)","v":""},{"$f":"IF('1. Order'!I454=\"\",\"\",'1. Order'!I454)","v":""},{"$f":"IF('1. Order'!J454=\"\",\"\",'1. Order'!J454)","v":""},{"$f":"IF('1. Order'!K454=\"\",\"\",'1. Order'!K454)","v":""},{"$f":"IF('1. Order'!L454=\"\",\"\",'1. Order'!L454)","v":""},{"$f":"IF('1. Order'!M454=\"\",\"\",'1. Order'!M454)","v":""},{"$f":"IF('1. Order'!N454=\"\",\"\",'1. Order'!N454)","v":""},{"$f":"IF('1. Order'!O454=\"\",\"\",'1. Order'!O454)","v":{"$error":"#N/A"}},{"$f":"IF('1. Order'!P454=\"\",\"\",'1. Order'!P454)","v":{"$error":"#N/A"}},{"$f":"IF('1. Order'!Q454=\"\",\"\",'1. Order'!Q454)","v":""},{"$f":"IF('1. Order'!S454=\"\",\"\",'1. Order'!S454)","v":""},{"$f":"IF('1. Order'!T454=\"\",\"\",'1. Order'!T454)","v":""},{"$f":"IF('1. Order'!W454=\"\",\"\",'1. Order'!W454)","v":""},{"$f":"IF('1. Order'!X454=\"\",\"\",'1. Order'!X454)","v":""},{"$f":"IF('1. Order'!Y454=\"\",\"\",'1. Order'!Y454)","v":"EUR"},{"$f":"IF('1. Order'!Z454=\"\",\"\",'1. Order'!Z454)","v":""},{"$f":"IF('1. Order'!AA454=\"\",\"\",'1. Order'!AA454)","v":""},{"$f":"IF('1. Order'!AB454=\"\",\"\",'1. Order'!AB454)","v":""},null,{"$f":"IF('1. Order'!AT454=\"\",\"\",'1. Order'!AT454)","v":""},{"$f":"IF('1. Order'!AU454=\"\",\"\",'1. Order'!AU454)","v":""},null,null,null,null,null,null,null,{"$f":"IF('1. Order'!AY454=\"\",\"\",'1. Order'!AY454)","v":""},{"$f":"IF('1. Order'!AZ454=\"\",\"\",'1. Order'!AZ454)","v":""},{"$f":"IF('1. Order'!BA454=\"\",\"\",'1. Order'!BA454)","v":""},{"$f":"IF('1. Order'!BB454=\"\",\"\",'1. Order'!BB454)","v":""},{"$f":"IF('1. Order'!BD454=\"\",\"\",'1. Order'!BD454)","v":""},{"$f":"IF('1. Order'!BE454=\"\",\"\",'1. Order'!BE454)","v":""},{"$f":"IF('1. Order'!BF454=\"\",\"\",'1. Order'!BF454)","v":""},{"$f":"IF('1. Order'!BG454=\"\",\"\",'1. Order'!BG454)","v":""},{"$f":"IF('1. Order'!BH454=\"\",\"\",'1. Order'!BH454)","v":"ZWO"}]
[{"$f":"IF('1. Order'!F455=\"\",\"\",'1. Order'!F455)","v":{"$error":"#N/A"}},{"$f":"IF('1. Order'!G455=\"\",\"\",'1. Order'!G455)","v":""},{"$f":"IF('1. Order'!H455=\"\",\"\",'1. Order'!H455)","v":""},{"$f":"IF('1. Order'!I455=\"\",\"\",'1. Order'!I455)","v":""},{"$f":"IF('1. Order'!J455=\"\",\"\",'1. Order'!J455)","v":""},{"$f":"IF('1. Order'!K455=\"\",\"\",'1. Order'!K455)","v":""},{"$f":"IF('1. Order'!L455=\"\",\"\",'1. Order'!L455)","v":""},{"$f":"IF('1. Order'!M455=\"\",\"\",'1. Order'!M455)","v":""},{"$f":"IF('1. Order'!N455=\"\",\"\",'1. Order'!N455)","v":""},{"$f":"IF('1. Order'!O455=\"\",\"\",'1. Order'!O455)","v":{"$error":"#N/A"}},{"$f":"IF('1. Order'!P455=\"\",\"\",'1. Order'!P455)","v":{"$error":"#N/A"}},{"$f":"IF('1. Order'!Q455=\"\",\"\",'1. Order'!Q455)","v":""},{"$f":"IF('1. Order'!S455=\"\",\"\",'1. Order'!S455)","v":""},{"$f":"IF('1. Order'!T455=\"\",\"\",'1. Order'!T455)","v":""},{"$f":"IF('1. Order'!W455=\"\",\"\",'1. Order'!W455)","v":""},{"$f":"IF('1. Order'!X455=\"\",\"\",'1. Order'!X455)","v":""},{"$f":"IF('1. Order'!Y455=\"\",\"\",'1. Order'!Y455)","v":"EUR"},{"$f":"IF('1. Order'!Z455=\"\",\"\",'1. Order'!Z455)","v":""},{"$f":"IF('1. Order'!AA455=\"\",\"\",'1. Order'!AA455)","v":""},{"$f":"IF('1. Order'!AB455=\"\",\"\",'1. Order'!AB455)","v":""},null,{"$f":"IF('1. Order'!AT455=\"\",\"\",'1. Order'!AT455)","v":""},{"$f":"IF('1. Order'!AU455=\"\",\"\",'1. Order'!AU455)","v":""},null,null,null,null,null,null,null,{"$f":"IF('1. Order'!AY455=\"\",\"\",'1. Order'!AY455)","v":""},{"$f":"IF('1. Order'!AZ455=\"\",\"\",'1. Order'!AZ455)","v":""},{"$f":"IF('1. Order'!BA455=\"\",\"\",'1. Order'!BA455)","v":""},{"$f":"IF('1. Order'!BB455=\"\",\"\",'1. Order'!BB455)","v":""},{"$f":"IF('1. Order'!BD455=\"\",\"\",'1. Order'!BD455)","v":""},{"$f":"IF('1. Order'!BE455=\"\",\"\",'1. Order'!BE455)","v":""},{"$f":"IF('1. Order'!BF455=\"\",\"\",'1. Order'!BF455)","v":""},{"$f":"IF('1. Order'!BG455=\"\",\"\",'1. Order'!BG455)","v":""},{"$f":"IF('1. Order'!BH455=\"\",\"\",'1. Order'!BH455)","v":"ZWO"}]
[{"$f":"IF('1. Order'!F456=\"\",\"\",'1. Order'!F456)","v":{"$error":"#N/A"}},{"$f":"IF('1. Order'!G456=\"\",\"\",'1. Order'!G456)","v":""},{"$f":"IF('1. Order'!H456=\"\",\"\",'1. Order'!H456)","v":""},{"$f":"IF('1. Order'!I456=\"\",\"\",'1. Order'!I456)","v":""},{"$f":"IF('1. Order'!J456=\"\",\"\",'1. Order'!J456)","v":""},{"$f":"IF('1. Order'!K456=\"\",\"\",'1. Order'!K456)","v":""},{"$f":"IF('1. Order'!L456=\"\",\"\",'1. Order'!L456)","v":""},{"$f":"IF('1. Order'!M456=\"\",\"\",'1. Order'!M456)","v":""},{"$f":"IF('1. Order'!N456=\"\",\"\",'1. Order'!N456)","v":""},{"$f":"IF('1. Order'!O456=\"\",\"\",'1. Order'!O456)","v":{"$error":"#N/A"}},{"$f":"IF('1. Order'!P456=\"\",\"\",'1. Order'!P456)","v":{"$error":"#N/A"}},{"$f":"IF('1. Order'!Q456=\"\",\"\",'1. Order'!Q456)","v":""},{"$f":"IF('1. Order'!S456=\"\",\"\",'1. Order'!S456)","v":""},{"$f":"IF('1. Order'!T456=\"\",\"\",'1. Order'!T456)","v":""},{"$f":"IF('1. Order'!W456=\"\",\"\",'1. Order'!W456)","v":""},{"$f":"IF('1. Order'!X456=\"\",\"\",'1. Order'!X456)","v":""},{"$f":"IF('1. Order'!Y456=\"\",\"\",'1. Order'!Y456)","v":"EUR"},{"$f":"IF('1. Order'!Z456=\"\",\"\",'1. Order'!Z456)","v":""},{"$f":"IF('1. Order'!AA456=\"\",\"\",'1. Order'!AA456)","v":""},{"$f":"IF('1. Order'!AB456=\"\",\"\",'1. Order'!AB456)","v":""},null,{"$f":"IF('1. Order'!AT456=\"\",\"\",'1. Order'!AT456)","v":""},{"$f":"IF('1. Order'!AU456=\"\",\"\",'1. Order'!AU456)","v":""},null,null,null,null,null,null,null,{"$f":"IF('1. Order'!AY456=\"\",\"\",'1. Order'!AY456)","v":""},{"$f":"IF('1. Order'!AZ456=\"\",\"\",'1. Order'!AZ456)","v":""},{"$f":"IF('1. Order'!BA456=\"\",\"\",'1. Order'!BA456)","v":""},{"$f":"IF('1. Order'!BB456=\"\",\"\",'1. Order'!BB456)","v":""},{"$f":"IF('1. Order'!BD456=\"\",\"\",'1. Order'!BD456)","v":""},{"$f":"IF('1. Order'!BE456=\"\",\"\",'1. Order'!BE456)","v":""},{"$f":"IF('1. Order'!BF456=\"\",\"\",'1. Order'!BF456)","v":""},{"$f":"IF('1. Order'!BG456=\"\",\"\",'1. Order'!BG456)","v":""},{"$f":"IF('1. Order'!BH456=\"\",\"\",'1. Order'!BH456)","v":"ZWO"}]
[{"$f":"IF('1. Order'!F457=\"\",\"\",'1. Order'!F457)","v":{"$error":"#N/A"}},{"$f":"IF('1. Order'!G457=\"\",\"\",'1. Order'!G457)","v":""},{"$f":"IF('1. Order'!H457=\"\",\"\",'1. Order'!H457)","v":""},{"$f":"IF('1. Order'!I457=\"\",\"\",'1. Order'!I457)","v":""},{"$f":"IF('1. Order'!J457=\"\",\"\",'1. Order'!J457)","v":""},{"$f":"IF('1. Order'!K457=\"\",\"\",'1. Order'!K457)","v":""},{"$f":"IF('1. Order'!L457=\"\",\"\",'1. Order'!L457)","v":""},{"$f":"IF('1. Order'!M457=\"\",\"\",'1. Order'!M457)","v":""},{"$f":"IF('1. Order'!N457=\"\",\"\",'1. Order'!N457)","v":""},{"$f":"IF('1. Order'!O457=\"\",\"\",'1. Order'!O457)","v":{"$error":"#N/A"}},{"$f":"IF('1. Order'!P457=\"\",\"\",'1. Order'!P457)","v":{"$error":"#N/A"}},{"$f":"IF('1. Order'!Q457=\"\",\"\",'1. Order'!Q457)","v":""},{"$f":"IF('1. Order'!S457=\"\",\"\",'1. Order'!S457)","v":""},{"$f":"IF('1. Order'!T457=\"\",\"\",'1. Order'!T457)","v":""},{"$f":"IF('1. Order'!W457=\"\",\"\",'1. Order'!W457)","v":""},{"$f":"IF('1. Order'!X457=\"\",\"\",'1. Order'!X457)","v":""},{"$f":"IF('1. Order'!Y457=\"\",\"\",'1. Order'!Y457)","v":"EUR"},{"$f":"IF('1. Order'!Z457=\"\",\"\",'1. Order'!Z457)","v":""},{"$f":"IF('1. Order'!AA457=\"\",\"\",'1. Order'!AA457)","v":""},{"$f":"IF('1. Order'!AB457=\"\",\"\",'1. Order'!AB457)","v":""},null,{"$f":"IF('1. Order'!AT457=\"\",\"\",'1. Order'!AT457)","v":""},{"$f":"IF('1. Order'!AU457=\"\",\"\",'1. Order'!AU457)","v":""},null,null,null,null,null,null,null,{"$f":"IF('1. Order'!AY457=\"\",\"\",'1. Order'!AY457)","v":""},{"$f":"IF('1. Order'!AZ457=\"\",\"\",'1. Order'!AZ457)","v":""},{"$f":"IF('1. Order'!BA457=\"\",\"\",'1. Order'!BA457)","v":""},{"$f":"IF('1. Order'!BB457=\"\",\"\",'1. Order'!BB457)","v":""},{"$f":"IF('1. Order'!BD457=\"\",\"\",'1. Order'!BD457)","v":""},{"$f":"IF('1. Order'!BE457=\"\",\"\",'1. Order'!BE457)","v":""},{"$f":"IF('1. Order'!BF457=\"\",\"\",'1. Order'!BF457)","v":""},{"$f":"IF('1. Order'!BG457=\"\",\"\",'1. Order'!BG457)","v":""},{"$f":"IF('1. Order'!BH457=\"\",\"\",'1. Order'!BH457)","v":"ZWO"}]
[{"$f":"IF('1. Order'!F458=\"\",\"\",'1. Order'!F458)","v":{"$error":"#N/A"}},{"$f":"IF('1. Order'!G458=\"\",\"\",'1. Order'!G458)","v":""},{"$f":"IF('1. Order'!H458=\"\",\"\",'1. Order'!H458)","v":""},{"$f":"IF('1. Order'!I458=\"\",\"\",'1. Order'!I458)","v":""},{"$f":"IF('1. Order'!J458=\"\",\"\",'1. Order'!J458)","v":""},{"$f":"IF('1. Order'!K458=\"\",\"\",'1. Order'!K458)","v":""},{"$f":"IF('1. Order'!L458=\"\",\"\",'1. Order'!L458)","v":""},{"$f":"IF('1. Order'!M458=\"\",\"\",'1. Order'!M458)","v":""},{"$f":"IF('1. Order'!N458=\"\",\"\",'1. Order'!N458)","v":""},{"$f":"IF('1. Order'!O458=\"\",\"\",'1. Order'!O458)","v":{"$error":"#N/A"}},{"$f":"IF('1. Order'!P458=\"\",\"\",'1. Order'!P458)","v":{"$error":"#N/A"}},{"$f":"IF('1. Order'!Q458=\"\",\"\",'1. Order'!Q458)","v":""},{"$f":"IF('1. Order'!S458=\"\",\"\",'1. Order'!S458)","v":""},{"$f":"IF('1. Order'!T458=\"\",\"\",'1. Order'!T458)","v":""},{"$f":"IF('1. Order'!W458=\"\",\"\",'1. Order'!W458)","v":""},{"$f":"IF('1. Order'!X458=\"\",\"\",'1. Order'!X458)","v":""},{"$f":"IF('1. Order'!Y458=\"\",\"\",'1. Order'!Y458)","v":"EUR"},{"$f":"IF('1. Order'!Z458=\"\",\"\",'1. Order'!Z458)","v":""},{"$f":"IF('1. Order'!AA458=\"\",\"\",'1. Order'!AA458)","v":""},{"$f":"IF('1. Order'!AB458=\"\",\"\",'1. Order'!AB458)","v":""},null,{"$f":"IF('1. Order'!AT458=\"\",\"\",'1. Order'!AT458)","v":""},{"$f":"IF('1. Order'!AU458=\"\",\"\",'1. Order'!AU458)","v":""},null,null,null,null,null,null,null,{"$f":"IF('1. Order'!AY458=\"\",\"\",'1. Order'!AY458)","v":""},{"$f":"IF('1. Order'!AZ458=\"\",\"\",'1. Order'!AZ458)","v":""},{"$f":"IF('1. Order'!BA458=\"\",\"\",'1. Order'!BA458)","v":""},{"$f":"IF('1. Order'!BB458=\"\",\"\",'1. Order'!BB458)","v":""},{"$f":"IF('1. Order'!BD458=\"\",\"\",'1. Order'!BD458)","v":""},{"$f":"IF('1. Order'!BE458=\"\",\"\",'1. Order'!BE458)","v":""},{"$f":"IF('1. Order'!BF458=\"\",\"\",'1. Order'!BF458)","v":""},{"$f":"IF('1. Order'!BG458=\"\",\"\",'1. Order'!BG458)","v":""},{"$f":"IF('1. Order'!BH458=\"\",\"\",'1. Order'!BH458)","v":"ZWO"}]
[{"$f":"IF('1. Order'!F459=\"\",\"\",'1. Order'!F459)","v":{"$error":"#N/A"}},{"$f":"IF('1. Order'!G459=\"\",\"\",'1. Order'!G459)","v":""},{"$f":"IF('1. Order'!H459=\"\",\"\",'1. Order'!H459)","v":""},{"$f":"IF('1. Order'!I459=\"\",\"\",'1. Order'!I459)","v":""},{"$f":"IF('1. Order'!J459=\"\",\"\",'1. Order'!J459)","v":""},{"$f":"IF('1. Order'!K459=\"\",\"\",'1. Order'!K459)","v":""},{"$f":"IF('1. Order'!L459=\"\",\"\",'1. Order'!L459)","v":""},{"$f":"IF('1. Order'!M459=\"\",\"\",'1. Order'!M459)","v":""},{"$f":"IF('1. Order'!N459=\"\",\"\",'1. Order'!N459)","v":""},{"$f":"IF('1. Order'!O459=\"\",\"\",'1. Order'!O459)","v":{"$error":"#N/A"}},{"$f":"IF('1. Order'!P459=\"\",\"\",'1. Order'!P459)","v":{"$error":"#N/A"}},{"$f":"IF('1. Order'!Q459=\"\",\"\",'1. Order'!Q459)","v":""},{"$f":"IF('1. Order'!S459=\"\",\"\",'1. Order'!S459)","v":""},{"$f":"IF('1. Order'!T459=\"\",\"\",'1. Order'!T459)","v":""},{"$f":"IF('1. Order'!W459=\"\",\"\",'1. Order'!W459)","v":""},{"$f":"IF('1. Order'!X459=\"\",\"\",'1. Order'!X459)","v":""},{"$f":"IF('1. Order'!Y459=\"\",\"\",'1. Order'!Y459)","v":"EUR"},{"$f":"IF('1. Order'!Z459=\"\",\"\",'1. Order'!Z459)","v":""},{"$f":"IF('1. Order'!AA459=\"\",\"\",'1. Order'!AA459)","v":""},{"$f":"IF('1. Order'!AB459=\"\",\"\",'1. Order'!AB459)","v":""},null,{"$f":"IF('1. Order'!AT459=\"\",\"\",'1. Order'!AT459)","v":""},{"$f":"IF('1. Order'!AU459=\"\",\"\",'1. Order'!AU459)","v":""},null,null,null,null,null,null,null,{"$f":"IF('1. Order'!AY459=\"\",\"\",'1. Order'!AY459)","v":""},{"$f":"IF('1. Order'!AZ459=\"\",\"\",'1. Order'!AZ459)","v":""},{"$f":"IF('1. Order'!BA459=\"\",\"\",'1. Order'!BA459)","v":""},{"$f":"IF('1. Order'!BB459=\"\",\"\",'1. Order'!BB459)","v":""},{"$f":"IF('1. Order'!BD459=\"\",\"\",'1. Order'!BD459)","v":""},{"$f":"IF('1. Order'!BE459=\"\",\"\",'1. Order'!BE459)","v":""},{"$f":"IF('1. Order'!BF459=\"\",\"\",'1. Order'!BF459)","v":""},{"$f":"IF('1. Order'!BG459=\"\",\"\",'1. Order'!BG459)","v":""},{"$f":"IF('1. Order'!BH459=\"\",\"\",'1. Order'!BH459)","v":"ZWO"}]
[{"$f":"IF('1. Order'!F460=\"\",\"\",'1. Order'!F460)","v":{"$error":"#N/A"}},{"$f":"IF('1. Order'!G460=\"\",\"\",'1. Order'!G460)","v":""},{"$f":"IF('1. Order'!H460=\"\",\"\",'1. Order'!H460)","v":""},{"$f":"IF('1. Order'!I460=\"\",\"\",'1. Order'!I460)","v":""},{"$f":"IF('1. Order'!J460=\"\",\"\",'1. Order'!J460)","v":""},{"$f":"IF('1. Order'!K460=\"\",\"\",'1. Order'!K460)","v":""},{"$f":"IF('1. Order'!L460=\"\",\"\",'1. Order'!L460)","v":""},{"$f":"IF('1. Order'!M460=\"\",\"\",'1. Order'!M460)","v":""},{"$f":"IF('1. Order'!N460=\"\",\"\",'1. Order'!N460)","v":""},{"$f":"IF('1. Order'!O460=\"\",\"\",'1. Order'!O460)","v":{"$error":"#N/A"}},{"$f":"IF('1. Order'!P460=\"\",\"\",'1. Order'!P460)","v":{"$error":"#N/A"}},{"$f":"IF('1. Order'!Q460=\"\",\"\",'1. Order'!Q460)","v":""},{"$f":"IF('1. Order'!S460=\"\",\"\",'1. Order'!S460)","v":""},{"$f":"IF('1. Order'!T460=\"\",\"\",'1. Order'!T460)","v":""},{"$f":"IF('1. Order'!W460=\"\",\"\",'1. Order'!W460)","v":""},{"$f":"IF('1. Order'!X460=\"\",\"\",'1. Order'!X460)","v":""},{"$f":"IF('1. Order'!Y460=\"\",\"\",'1. Order'!Y460)","v":"EUR"},{"$f":"IF('1. Order'!Z460=\"\",\"\",'1. Order'!Z460)","v":""},{"$f":"IF('1. Order'!AA460=\"\",\"\",'1. Order'!AA460)","v":""},{"$f":"IF('1. Order'!AB460=\"\",\"\",'1. Order'!AB460)","v":""},null,{"$f":"IF('1. Order'!AT460=\"\",\"\",'1. Order'!AT460)","v":""},{"$f":"IF('1. Order'!AU460=\"\",\"\",'1. Order'!AU460)","v":""},null,null,null,null,null,null,null,{"$f":"IF('1. Order'!AY460=\"\",\"\",'1. Order'!AY460)","v":""},{"$f":"IF('1. Order'!AZ460=\"\",\"\",'1. Order'!AZ460)","v":""},{"$f":"IF('1. Order'!BA460=\"\",\"\",'1. Order'!BA460)","v":""},{"$f":"IF('1. Order'!BB460=\"\",\"\",'1. Order'!BB460)","v":""},{"$f":"IF('1. Order'!BD460=\"\",\"\",'1. Order'!BD460)","v":""},{"$f":"IF('1. Order'!BE460=\"\",\"\",'1. Order'!BE460)","v":""},{"$f":"IF('1. Order'!BF460=\"\",\"\",'1. Order'!BF460)","v":""},{"$f":"IF('1. Order'!BG460=\"\",\"\",'1. Order'!BG460)","v":""},{"$f":"IF('1. Order'!BH460=\"\",\"\",'1. Order'!BH460)","v":"ZWO"}]
[{"$f":"IF('1. Order'!F461=\"\",\"\",'1. Order'!F461)","v":{"$error":"#N/A"}},{"$f":"IF('1. Order'!G461=\"\",\"\",'1. Order'!G461)","v":""},{"$f":"IF('1. Order'!H461=\"\",\"\",'1. Order'!H461)","v":""},{"$f":"IF('1. Order'!I461=\"\",\"\",'1. Order'!I461)","v":""},{"$f":"IF('1. Order'!J461=\"\",\"\",'1. Order'!J461)","v":""},{"$f":"IF('1. Order'!K461=\"\",\"\",'1. Order'!K461)","v":""},{"$f":"IF('1. Order'!L461=\"\",\"\",'1. Order'!L461)","v":""},{"$f":"IF('1. Order'!M461=\"\",\"\",'1. Order'!M461)","v":""},{"$f":"IF('1. Order'!N461=\"\",\"\",'1. Order'!N461)","v":""},{"$f":"IF('1. Order'!O461=\"\",\"\",'1. Order'!O461)","v":{"$error":"#N/A"}},{"$f":"IF('1. Order'!P461=\"\",\"\",'1. Order'!P461)","v":{"$error":"#N/A"}},{"$f":"IF('1. Order'!Q461=\"\",\"\",'1. Order'!Q461)","v":""},{"$f":"IF('1. Order'!S461=\"\",\"\",'1. Order'!S461)","v":""},{"$f":"IF('1. Order'!T461=\"\",\"\",'1. Order'!T461)","v":""},{"$f":"IF('1. Order'!W461=\"\",\"\",'1. Order'!W461)","v":""},{"$f":"IF('1. Order'!X461=\"\",\"\",'1. Order'!X461)","v":""},{"$f":"IF('1. Order'!Y461=\"\",\"\",'1. Order'!Y461)","v":"EUR"},{"$f":"IF('1. Order'!Z461=\"\",\"\",'1. Order'!Z461)","v":""},{"$f":"IF('1. Order'!AA461=\"\",\"\",'1. Order'!AA461)","v":""},{"$f":"IF('1. Order'!AB461=\"\",\"\",'1. Order'!AB461)","v":""},null,{"$f":"IF('1. Order'!AT461=\"\",\"\",'1. Order'!AT461)","v":""},{"$f":"IF('1. Order'!AU461=\"\",\"\",'1. Order'!AU461)","v":""},null,null,null,null,null,null,null,{"$f":"IF('1. Order'!AY461=\"\",\"\",'1. Order'!AY461)","v":""},{"$f":"IF('1. Order'!AZ461=\"\",\"\",'1. Order'!AZ461)","v":""},{"$f":"IF('1. Order'!BA461=\"\",\"\",'1. Order'!BA461)","v":""},{"$f":"IF('1. Order'!BB461=\"\",\"\",'1. Order'!BB461)","v":""},{"$f":"IF('1. Order'!BD461=\"\",\"\",'1. Order'!BD461)","v":""},{"$f":"IF('1. Order'!BE461=\"\",\"\",'1. Order'!BE461)","v":""},{"$f":"IF('1. Order'!BF461=\"\",\"\",'1. Order'!BF461)","v":""},{"$f":"IF('1. Order'!BG461=\"\",\"\",'1. Order'!BG461)","v":""},{"$f":"IF('1. Order'!BH461=\"\",\"\",'1. Order'!BH461)","v":"ZWO"}]
[{"$f":"IF('1. Order'!F462=\"\",\"\",'1. Order'!F462)","v":{"$error":"#N/A"}},{"$f":"IF('1. Order'!G462=\"\",\"\",'1. Order'!G462)","v":""},{"$f":"IF('1. Order'!H462=\"\",\"\",'1. Order'!H462)","v":""},{"$f":"IF('1. Order'!I462=\"\",\"\",'1. Order'!I462)","v":""},{"$f":"IF('1. Order'!J462=\"\",\"\",'1. Order'!J462)","v":""},{"$f":"IF('1. Order'!K462=\"\",\"\",'1. Order'!K462)","v":""},{"$f":"IF('1. Order'!L462=\"\",\"\",'1. Order'!L462)","v":""},{"$f":"IF('1. Order'!M462=\"\",\"\",'1. Order'!M462)","v":""},{"$f":"IF('1. Order'!N462=\"\",\"\",'1. Order'!N462)","v":""},{"$f":"IF('1. Order'!O462=\"\",\"\",'1. Order'!O462)","v":{"$error":"#N/A"}},{"$f":"IF('1. Order'!P462=\"\",\"\",'1. Order'!P462)","v":{"$error":"#N/A"}},{"$f":"IF('1. Order'!Q462=\"\",\"\",'1. Order'!Q462)","v":""},{"$f":"IF('1. Order'!S462=\"\",\"\",'1. Order'!S462)","v":""},{"$f":"IF('1. Order'!T462=\"\",\"\",'1. Order'!T462)","v":""},{"$f":"IF('1. Order'!W462=\"\",\"\",'1. Order'!W462)","v":""},{"$f":"IF('1. Order'!X462=\"\",\"\",'1. Order'!X462)","v":""},{"$f":"IF('1. Order'!Y462=\"\",\"\",'1. Order'!Y462)","v":"EUR"},{"$f":"IF('1. Order'!Z462=\"\",\"\",'1. Order'!Z462)","v":""},{"$f":"IF('1. Order'!AA462=\"\",\"\",'1. Order'!AA462)","v":""},{"$f":"IF('1. Order'!AB462=\"\",\"\",'1. Order'!AB462)","v":""},null,{"$f":"IF('1. Order'!AT462=\"\",\"\",'1. Order'!AT462)","v":""},{"$f":"IF('1. Order'!AU462=\"\",\"\",'1. Order'!AU462)","v":""},null,null,null,null,null,null,null,{"$f":"IF('1. Order'!AY462=\"\",\"\",'1. Order'!AY462)","v":""},{"$f":"IF('1. Order'!AZ462=\"\",\"\",'1. Order'!AZ462)","v":""},{"$f":"IF('1. Order'!BA462=\"\",\"\",'1. Order'!BA462)","v":""},{"$f":"IF('1. Order'!BB462=\"\",\"\",'1. Order'!BB462)","v":""},{"$f":"IF('1. Order'!BD462=\"\",\"\",'1. Order'!BD462)","v":""},{"$f":"IF('1. Order'!BE462=\"\",\"\",'1. Order'!BE462)","v":""},{"$f":"IF('1. Order'!BF462=\"\",\"\",'1. Order'!BF462)","v":""},{"$f":"IF('1. Order'!BG462=\"\",\"\",'1. Order'!BG462)","v":""},{"$f":"IF('1. Order'!BH462=\"\",\"\",'1. Order'!BH462)","v":"ZWO"}]
[{"$f":"IF('1. Order'!F463=\"\",\"\",'1. Order'!F463)","v":{"$error":"#N/A"}},{"$f":"IF('1. Order'!G463=\"\",\"\",'1. Order'!G463)","v":""},{"$f":"IF('1. Order'!H463=\"\",\"\",'1. Order'!H463)","v":""},{"$f":"IF('1. Order'!I463=\"\",\"\",'1. Order'!I463)","v":""},{"$f":"IF('1. Order'!J463=\"\",\"\",'1. Order'!J463)","v":""},{"$f":"IF('1. Order'!K463=\"\",\"\",'1. Order'!K463)","v":""},{"$f":"IF('1. Order'!L463=\"\",\"\",'1. Order'!L463)","v":""},{"$f":"IF('1. Order'!M463=\"\",\"\",'1. Order'!M463)","v":""},{"$f":"IF('1. Order'!N463=\"\",\"\",'1. Order'!N463)","v":""},{"$f":"IF('1. Order'!O463=\"\",\"\",'1. Order'!O463)","v":{"$error":"#N/A"}},{"$f":"IF('1. Order'!P463=\"\",\"\",'1. Order'!P463)","v":{"$error":"#N/A"}},{"$f":"IF('1. Order'!Q463=\"\",\"\",'1. Order'!Q463)","v":""},{"$f":"IF('1. Order'!S463=\"\",\"\",'1. Order'!S463)","v":""},{"$f":"IF('1. Order'!T463=\"\",\"\",'1. Order'!T463)","v":""},{"$f":"IF('1. Order'!W463=\"\",\"\",'1. Order'!W463)","v":""},{"$f":"IF('1. Order'!X463=\"\",\"\",'1. Order'!X463)","v":""},{"$f":"IF('1. Order'!Y463=\"\",\"\",'1. Order'!Y463)","v":"EUR"},{"$f":"IF('1. Order'!Z463=\"\",\"\",'1. Order'!Z463)","v":""},{"$f":"IF('1. Order'!AA463=\"\",\"\",'1. Order'!AA463)","v":""},{"$f":"IF('1. Order'!AB463=\"\",\"\",'1. Order'!AB463)","v":""},null,{"$f":"IF('1. Order'!AT463=\"\",\"\",'1. Order'!AT463)","v":""},{"$f":"IF('1. Order'!AU463=\"\",\"\",'1. Order'!AU463)","v":""},null,null,null,null,null,null,null,{"$f":"IF('1. Order'!AY463=\"\",\"\",'1. Order'!AY463)","v":""},{"$f":"IF('1. Order'!AZ463=\"\",\"\",'1. Order'!AZ463)","v":""},{"$f":"IF('1. Order'!BA463=\"\",\"\",'1. Order'!BA463)","v":""},{"$f":"IF('1. Order'!BB463=\"\",\"\",'1. Order'!BB463)","v":""},{"$f":"IF('1. Order'!BD463=\"\",\"\",'1. Order'!BD463)","v":""},{"$f":"IF('1. Order'!BE463=\"\",\"\",'1. Order'!BE463)","v":""},{"$f":"IF('1. Order'!BF463=\"\",\"\",'1. Order'!BF463)","v":""},{"$f":"IF('1. Order'!BG463=\"\",\"\",'1. Order'!BG463)","v":""},{"$f":"IF('1. Order'!BH463=\"\",\"\",'1. Order'!BH463)","v":"ZWO"}]
[{"$f":"IF('1. Order'!F464=\"\",\"\",'1. Order'!F464)","v":{"$error":"#N/A"}},{"$f":"IF('1. Order'!G464=\"\",\"\",'1. Order'!G464)","v":""},{"$f":"IF('1. Order'!H464=\"\",\"\",'1. Order'!H464)","v":""},{"$f":"IF('1. Order'!I464=\"\",\"\",'1. Order'!I464)","v":""},{"$f":"IF('1. Order'!J464=\"\",\"\",'1. Order'!J464)","v":""},{"$f":"IF('1. Order'!K464=\"\",\"\",'1. Order'!K464)","v":""},{"$f":"IF('1. Order'!L464=\"\",\"\",'1. Order'!L464)","v":""},{"$f":"IF('1. Order'!M464=\"\",\"\",'1. Order'!M464)","v":""},{"$f":"IF('1. Order'!N464=\"\",\"\",'1. Order'!N464)","v":""},{"$f":"IF('1. Order'!O464=\"\",\"\",'1. Order'!O464)","v":{"$error":"#N/A"}},{"$f":"IF('1. Order'!P464=\"\",\"\",'1. Order'!P464)","v":{"$error":"#N/A"}},{"$f":"IF('1. Order'!Q464=\"\",\"\",'1. Order'!Q464)","v":""},{"$f":"IF('1. Order'!S464=\"\",\"\",'1. Order'!S464)","v":""},{"$f":"IF('1. Order'!T464=\"\",\"\",'1. Order'!T464)","v":""},{"$f":"IF('1. Order'!W464=\"\",\"\",'1. Order'!W464)","v":""},{"$f":"IF('1. Order'!X464=\"\",\"\",'1. Order'!X464)","v":""},{"$f":"IF('1. Order'!Y464=\"\",\"\",'1. Order'!Y464)","v":"EUR"},{"$f":"IF('1. Order'!Z464=\"\",\"\",'1. Order'!Z464)","v":""},{"$f":"IF('1. Order'!AA464=\"\",\"\",'1. Order'!AA464)","v":""},{"$f":"IF('1. Order'!AB464=\"\",\"\",'1. Order'!AB464)","v":""},null,{"$f":"IF('1. Order'!AT464=\"\",\"\",'1. Order'!AT464)","v":""},{"$f":"IF('1. Order'!AU464=\"\",\"\",'1. Order'!AU464)","v":""},null,null,null,null,null,null,null,{"$f":"IF('1. Order'!AY464=\"\",\"\",'1. Order'!AY464)","v":""},{"$f":"IF('1. Order'!AZ464=\"\",\"\",'1. Order'!AZ464)","v":""},{"$f":"IF('1. Order'!BA464=\"\",\"\",'1. Order'!BA464)","v":""},{"$f":"IF('1. Order'!BB464=\"\",\"\",'1. Order'!BB464)","v":""},{"$f":"IF('1. Order'!BD464=\"\",\"\",'1. Order'!BD464)","v":""},{"$f":"IF('1. Order'!BE464=\"\",\"\",'1. Order'!BE464)","v":""},{"$f":"IF('1. Order'!BF464=\"\",\"\",'1. Order'!BF464)","v":""},{"$f":"IF('1. Order'!BG464=\"\",\"\",'1. Order'!BG464)","v":""},{"$f":"IF('1. Order'!BH464=\"\",\"\",'1. Order'!BH464)","v":"ZWO"}]
[{"$f":"IF('1. Order'!F465=\"\",\"\",'1. Order'!F465)","v":{"$error":"#N/A"}},{"$f":"IF('1. Order'!G465=\"\",\"\",'1. Order'!G465)","v":""},{"$f":"IF('1. Order'!H465=\"\",\"\",'1. Order'!H465)","v":""},{"$f":"IF('1. Order'!I465=\"\",\"\",'1. Order'!I465)","v":""},{"$f":"IF('1. Order'!J465=\"\",\"\",'1. Order'!J465)","v":""},{"$f":"IF('1. Order'!K465=\"\",\"\",'1. Order'!K465)","v":""},{"$f":"IF('1. Order'!L465=\"\",\"\",'1. Order'!L465)","v":""},{"$f":"IF('1. Order'!M465=\"\",\"\",'1. Order'!M465)","v":""},{"$f":"IF('1. Order'!N465=\"\",\"\",'1. Order'!N465)","v":""},{"$f":"IF('1. Order'!O465=\"\",\"\",'1. Order'!O465)","v":{"$error":"#N/A"}},{"$f":"IF('1. Order'!P465=\"\",\"\",'1. Order'!P465)","v":{"$error":"#N/A"}},{"$f":"IF('1. Order'!Q465=\"\",\"\",'1. Order'!Q465)","v":""},{"$f":"IF('1. Order'!S465=\"\",\"\",'1. Order'!S465)","v":""},{"$f":"IF('1. Order'!T465=\"\",\"\",'1. Order'!T465)","v":""},{"$f":"IF('1. Order'!W465=\"\",\"\",'1. Order'!W465)","v":""},{"$f":"IF('1. Order'!X465=\"\",\"\",'1. Order'!X465)","v":""},{"$f":"IF('1. Order'!Y465=\"\",\"\",'1. Order'!Y465)","v":"EUR"},{"$f":"IF('1. Order'!Z465=\"\",\"\",'1. Order'!Z465)","v":""},{"$f":"IF('1. Order'!AA465=\"\",\"\",'1. Order'!AA465)","v":""},{"$f":"IF('1. Order'!AB465=\"\",\"\",'1. Order'!AB465)","v":""},null,{"$f":"IF('1. Order'!AT465=\"\",\"\",'1. Order'!AT465)","v":""},{"$f":"IF('1. Order'!AU465=\"\",\"\",'1. Order'!AU465)","v":""},null,null,null,null,null,null,null,{"$f":"IF('1. Order'!AY465=\"\",\"\",'1. Order'!AY465)","v":""},{"$f":"IF('1. Order'!AZ465=\"\",\"\",'1. Order'!AZ465)","v":""},{"$f":"IF('1. Order'!BA465=\"\",\"\",'1. Order'!BA465)","v":""},{"$f":"IF('1. Order'!BB465=\"\",\"\",'1. Order'!BB465)","v":""},{"$f":"IF('1. Order'!BD465=\"\",\"\",'1. Order'!BD465)","v":""},{"$f":"IF('1. Order'!BE465=\"\",\"\",'1. Order'!BE465)","v":""},{"$f":"IF('1. Order'!BF465=\"\",\"\",'1. Order'!BF465)","v":""},{"$f":"IF('1. Order'!BG465=\"\",\"\",'1. Order'!BG465)","v":""},{"$f":"IF('1. Order'!BH465=\"\",\"\",'1. Order'!BH465)","v":"ZWO"}]
[{"$f":"IF('1. Order'!F466=\"\",\"\",'1. Order'!F466)","v":{"$error":"#N/A"}},{"$f":"IF('1. Order'!G466=\"\",\"\",'1. Order'!G466)","v":""},{"$f":"IF('1. Order'!H466=\"\",\"\",'1. Order'!H466)","v":""},{"$f":"IF('1. Order'!I466=\"\",\"\",'1. Order'!I466)","v":""},{"$f":"IF('1. Order'!J466=\"\",\"\",'1. Order'!J466)","v":""},{"$f":"IF('1. Order'!K466=\"\",\"\",'1. Order'!K466)","v":""},{"$f":"IF('1. Order'!L466=\"\",\"\",'1. Order'!L466)","v":""},{"$f":"IF('1. Order'!M466=\"\",\"\",'1. Order'!M466)","v":""},{"$f":"IF('1. Order'!N466=\"\",\"\",'1. Order'!N466)","v":""},{"$f":"IF('1. Order'!O466=\"\",\"\",'1. Order'!O466)","v":{"$error":"#N/A"}},{"$f":"IF('1. Order'!P466=\"\",\"\",'1. Order'!P466)","v":{"$error":"#N/A"}},{"$f":"IF('1. Order'!Q466=\"\",\"\",'1. Order'!Q466)","v":""},{"$f":"IF('1. Order'!S466=\"\",\"\",'1. Order'!S466)","v":""},{"$f":"IF('1. Order'!T466=\"\",\"\",'1. Order'!T466)","v":""},{"$f":"IF('1. Order'!W466=\"\",\"\",'1. Order'!W466)","v":""},{"$f":"IF('1. Order'!X466=\"\",\"\",'1. Order'!X466)","v":""},{"$f":"IF('1. Order'!Y466=\"\",\"\",'1. Order'!Y466)","v":"EUR"},{"$f":"IF('1. Order'!Z466=\"\",\"\",'1. Order'!Z466)","v":""},{"$f":"IF('1. Order'!AA466=\"\",\"\",'1. Order'!AA466)","v":""},{"$f":"IF('1. Order'!AB466=\"\",\"\",'1. Order'!AB466)","v":""},null,{"$f":"IF('1. Order'!AT466=\"\",\"\",'1. Order'!AT466)","v":""},{"$f":"IF('1. Order'!AU466=\"\",\"\",'1. Order'!AU466)","v":""},null,null,null,null,null,null,null,{"$f":"IF('1. Order'!AY466=\"\",\"\",'1. Order'!AY466)","v":""},{"$f":"IF('1. Order'!AZ466=\"\",\"\",'1. Order'!AZ466)","v":""},{"$f":"IF('1. Order'!BA466=\"\",\"\",'1. Order'!BA466)","v":""},{"$f":"IF('1. Order'!BB466=\"\",\"\",'1. Order'!BB466)","v":""},{"$f":"IF('1. Order'!BD466=\"\",\"\",'1. Order'!BD466)","v":""},{"$f":"IF('1. Order'!BE466=\"\",\"\",'1. Order'!BE466)","v":""},{"$f":"IF('1. Order'!BF466=\"\",\"\",'1. Order'!BF466)","v":""},{"$f":"IF('1. Order'!BG466=\"\",\"\",'1. Order'!BG466)","v":""},{"$f":"IF('1. Order'!BH466=\"\",\"\",'1. Order'!BH466)","v":"ZWO"}]
[{"$f":"IF('1. Order'!F467=\"\",\"\",'1. Order'!F467)","v":{"$error":"#N/A"}},{"$f":"IF('1. Order'!G467=\"\",\"\",'1. Order'!G467)","v":""},{"$f":"IF('1. Order'!H467=\"\",\"\",'1. Order'!H467)","v":""},{"$f":"IF('1. Order'!I467=\"\",\"\",'1. Order'!I467)","v":""},{"$f":"IF('1. Order'!J467=\"\",\"\",'1. Order'!J467)","v":""},{"$f":"IF('1. Order'!K467=\"\",\"\",'1. Order'!K467)","v":""},{"$f":"IF('1. Order'!L467=\"\",\"\",'1. Order'!L467)","v":""},{"$f":"IF('1. Order'!M467=\"\",\"\",'1. Order'!M467)","v":""},{"$f":"IF('1. Order'!N467=\"\",\"\",'1. Order'!N467)","v":""},{"$f":"IF('1. Order'!O467=\"\",\"\",'1. Order'!O467)","v":{"$error":"#N/A"}},{"$f":"IF('1. Order'!P467=\"\",\"\",'1. Order'!P467)","v":{"$error":"#N/A"}},{"$f":"IF('1. Order'!Q467=\"\",\"\",'1. Order'!Q467)","v":""},{"$f":"IF('1. Order'!S467=\"\",\"\",'1. Order'!S467)","v":""},{"$f":"IF('1. Order'!T467=\"\",\"\",'1. Order'!T467)","v":""},{"$f":"IF('1. Order'!W467=\"\",\"\",'1. Order'!W467)","v":""},{"$f":"IF('1. Order'!X467=\"\",\"\",'1. Order'!X467)","v":""},{"$f":"IF('1. Order'!Y467=\"\",\"\",'1. Order'!Y467)","v":"EUR"},{"$f":"IF('1. Order'!Z467=\"\",\"\",'1. Order'!Z467)","v":""},{"$f":"IF('1. Order'!AA467=\"\",\"\",'1. Order'!AA467)","v":""},{"$f":"IF('1. Order'!AB467=\"\",\"\",'1. Order'!AB467)","v":""},null,{"$f":"IF('1. Order'!AT467=\"\",\"\",'1. Order'!AT467)","v":""},{"$f":"IF('1. Order'!AU467=\"\",\"\",'1. Order'!AU467)","v":""},null,null,null,null,null,null,null,{"$f":"IF('1. Order'!AY467=\"\",\"\",'1. Order'!AY467)","v":""},{"$f":"IF('1. Order'!AZ467=\"\",\"\",'1. Order'!AZ467)","v":""},{"$f":"IF('1. Order'!BA467=\"\",\"\",'1. Order'!BA467)","v":""},{"$f":"IF('1. Order'!BB467=\"\",\"\",'1. Order'!BB467)","v":""},{"$f":"IF('1. Order'!BD467=\"\",\"\",'1. Order'!BD467)","v":""},{"$f":"IF('1. Order'!BE467=\"\",\"\",'1. Order'!BE467)","v":""},{"$f":"IF('1. Order'!BF467=\"\",\"\",'1. Order'!BF467)","v":""},{"$f":"IF('1. Order'!BG467=\"\",\"\",'1. Order'!BG467)","v":""},{"$f":"IF('1. Order'!BH467=\"\",\"\",'1. Order'!BH467)","v":"ZWO"}]
[{"$f":"IF('1. Order'!F468=\"\",\"\",'1. Order'!F468)","v":{"$error":"#N/A"}},{"$f":"IF('1. Order'!G468=\"\",\"\",'1. Order'!G468)","v":""},{"$f":"IF('1. Order'!H468=\"\",\"\",'1. Order'!H468)","v":""},{"$f":"IF('1. Order'!I468=\"\",\"\",'1. Order'!I468)","v":""},{"$f":"IF('1. Order'!J468=\"\",\"\",'1. Order'!J468)","v":""},{"$f":"IF('1. Order'!K468=\"\",\"\",'1. Order'!K468)","v":""},{"$f":"IF('1. Order'!L468=\"\",\"\",'1. Order'!L468)","v":""},{"$f":"IF('1. Order'!M468=\"\",\"\",'1. Order'!M468)","v":""},{"$f":"IF('1. Order'!N468=\"\",\"\",'1. Order'!N468)","v":""},{"$f":"IF('1. Order'!O468=\"\",\"\",'1. Order'!O468)","v":{"$error":"#N/A"}},{"$f":"IF('1. Order'!P468=\"\",\"\",'1. Order'!P468)","v":{"$error":"#N/A"}},{"$f":"IF('1. Order'!Q468=\"\",\"\",'1. Order'!Q468)","v":""},{"$f":"IF('1. Order'!S468=\"\",\"\",'1. Order'!S468)","v":""},{"$f":"IF('1. Order'!T468=\"\",\"\",'1. Order'!T468)","v":""},{"$f":"IF('1. Order'!W468=\"\",\"\",'1. Order'!W468)","v":""},{"$f":"IF('1. Order'!X468=\"\",\"\",'1. Order'!X468)","v":""},{"$f":"IF('1. Order'!Y468=\"\",\"\",'1. Order'!Y468)","v":"EUR"},{"$f":"IF('1. Order'!Z468=\"\",\"\",'1. Order'!Z468)","v":""},{"$f":"IF('1. Order'!AA468=\"\",\"\",'1. Order'!AA468)","v":""},{"$f":"IF('1. Order'!AB468=\"\",\"\",'1. Order'!AB468)","v":""},null,{"$f":"IF('1. Order'!AT468=\"\",\"\",'1. Order'!AT468)","v":""},{"$f":"IF('1. Order'!AU468=\"\",\"\",'1. Order'!AU468)","v":""},null,null,null,null,null,null,null,{"$f":"IF('1. Order'!AY468=\"\",\"\",'1. Order'!AY468)","v":""},{"$f":"IF('1. Order'!AZ468=\"\",\"\",'1. Order'!AZ468)","v":""},{"$f":"IF('1. Order'!BA468=\"\",\"\",'1. Order'!BA468)","v":""},{"$f":"IF('1. Order'!BB468=\"\",\"\",'1. Order'!BB468)","v":""},{"$f":"IF('1. Order'!BD468=\"\",\"\",'1. Order'!BD468)","v":""},{"$f":"IF('1. Order'!BE468=\"\",\"\",'1. Order'!BE468)","v":""},{"$f":"IF('1. Order'!BF468=\"\",\"\",'1. Order'!BF468)","v":""},{"$f":"IF('1. Order'!BG468=\"\",\"\",'1. Order'!BG468)","v":""},{"$f":"IF('1. Order'!BH468=\"\",\"\",'1. Order'!BH468)","v":"ZWO"}]
[{"$f":"IF('1. Order'!F469=\"\",\"\",'1. Order'!F469)","v":{"$error":"#N/A"}},{"$f":"IF('1. Order'!G469=\"\",\"\",'1. Order'!G469)","v":""},{"$f":"IF('1. Order'!H469=\"\",\"\",'1. Order'!H469)","v":""},{"$f":"IF('1. Order'!I469=\"\",\"\",'1. Order'!I469)","v":""},{"$f":"IF('1. Order'!J469=\"\",\"\",'1. Order'!J469)","v":""},{"$f":"IF('1. Order'!K469=\"\",\"\",'1. Order'!K469)","v":""},{"$f":"IF('1. Order'!L469=\"\",\"\",'1. Order'!L469)","v":""},{"$f":"IF('1. Order'!M469=\"\",\"\",'1. Order'!M469)","v":""},{"$f":"IF('1. Order'!N469=\"\",\"\",'1. Order'!N469)","v":""},{"$f":"IF('1. Order'!O469=\"\",\"\",'1. Order'!O469)","v":{"$error":"#N/A"}},{"$f":"IF('1. Order'!P469=\"\",\"\",'1. Order'!P469)","v":{"$error":"#N/A"}},{"$f":"IF('1. Order'!Q469=\"\",\"\",'1. Order'!Q469)","v":""},{"$f":"IF('1. Order'!S469=\"\",\"\",'1. Order'!S469)","v":""},{"$f":"IF('1. Order'!T469=\"\",\"\",'1. Order'!T469)","v":""},{"$f":"IF('1. Order'!W469=\"\",\"\",'1. Order'!W469)","v":""},{"$f":"IF('1. Order'!X469=\"\",\"\",'1. Order'!X469)","v":""},{"$f":"IF('1. Order'!Y469=\"\",\"\",'1. Order'!Y469)","v":"EUR"},{"$f":"IF('1. Order'!Z469=\"\",\"\",'1. Order'!Z469)","v":""},{"$f":"IF('1. Order'!AA469=\"\",\"\",'1. Order'!AA469)","v":""},{"$f":"IF('1. Order'!AB469=\"\",\"\",'1. Order'!AB469)","v":""},null,{"$f":"IF('1. Order'!AT469=\"\",\"\",'1. Order'!AT469)","v":""},{"$f":"IF('1. Order'!AU469=\"\",\"\",'1. Order'!AU469)","v":""},null,null,null,null,null,null,null,{"$f":"IF('1. Order'!AY469=\"\",\"\",'1. Order'!AY469)","v":""},{"$f":"IF('1. Order'!AZ469=\"\",\"\",'1. Order'!AZ469)","v":""},{"$f":"IF('1. Order'!BA469=\"\",\"\",'1. Order'!BA469)","v":""},{"$f":"IF('1. Order'!BB469=\"\",\"\",'1. Order'!BB469)","v":""},{"$f":"IF('1. Order'!BD469=\"\",\"\",'1. Order'!BD469)","v":""},{"$f":"IF('1. Order'!BE469=\"\",\"\",'1. Order'!BE469)","v":""},{"$f":"IF('1. Order'!BF469=\"\",\"\",'1. Order'!BF469)","v":""},{"$f":"IF('1. Order'!BG469=\"\",\"\",'1. Order'!BG469)","v":""},{"$f":"IF('1. Order'!BH469=\"\",\"\",'1. Order'!BH469)","v":"ZWO"}]
[{"$f":"IF('1. Order'!F470=\"\",\"\",'1. Order'!F470)","v":{"$error":"#N/A"}},{"$f":"IF('1. Order'!G470=\"\",\"\",'1. Order'!G470)","v":""},{"$f":"IF('1. Order'!H470=\"\",\"\",'1. Order'!H470)","v":""},{"$f":"IF('1. Order'!I470=\"\",\"\",'1. Order'!I470)","v":""},{"$f":"IF('1. Order'!J470=\"\",\"\",'1. Order'!J470)","v":""},{"$f":"IF('1. Order'!K470=\"\",\"\",'1. Order'!K470)","v":""},{"$f":"IF('1. Order'!L470=\"\",\"\",'1. Order'!L470)","v":""},{"$f":"IF('1. Order'!M470=\"\",\"\",'1. Order'!M470)","v":""},{"$f":"IF('1. Order'!N470=\"\",\"\",'1. Order'!N470)","v":""},{"$f":"IF('1. Order'!O470=\"\",\"\",'1. Order'!O470)","v":{"$error":"#N/A"}},{"$f":"IF('1. Order'!P470=\"\",\"\",'1. Order'!P470)","v":{"$error":"#N/A"}},{"$f":"IF('1. Order'!Q470=\"\",\"\",'1. Order'!Q470)","v":""},{"$f":"IF('1. Order'!S470=\"\",\"\",'1. Order'!S470)","v":""},{"$f":"IF('1. Order'!T470=\"\",\"\",'1. Order'!T470)","v":""},{"$f":"IF('1. Order'!W470=\"\",\"\",'1. Order'!W470)","v":""},{"$f":"IF('1. Order'!X470=\"\",\"\",'1. Order'!X470)","v":""},{"$f":"IF('1. Order'!Y470=\"\",\"\",'1. Order'!Y470)","v":"EUR"},{"$f":"IF('1. Order'!Z470=\"\",\"\",'1. Order'!Z470)","v":""},{"$f":"IF('1. Order'!AA470=\"\",\"\",'1. Order'!AA470)","v":""},{"$f":"IF('1. Order'!AB470=\"\",\"\",'1. Order'!AB470)","v":""},null,{"$f":"IF('1. Order'!AT470=\"\",\"\",'1. Order'!AT470)","v":""},{"$f":"IF('1. Order'!AU470=\"\",\"\",'1. Order'!AU470)","v":""},null,null,null,null,null,null,null,{"$f":"IF('1. Order'!AY470=\"\",\"\",'1. Order'!AY470)","v":""},{"$f":"IF('1. Order'!AZ470=\"\",\"\",'1. Order'!AZ470)","v":""},{"$f":"IF('1. Order'!BA470=\"\",\"\",'1. Order'!BA470)","v":""},{"$f":"IF('1. Order'!BB470=\"\",\"\",'1. Order'!BB470)","v":""},{"$f":"IF('1. Order'!BD470=\"\",\"\",'1. Order'!BD470)","v":""},{"$f":"IF('1. Order'!BE470=\"\",\"\",'1. Order'!BE470)","v":""},{"$f":"IF('1. Order'!BF470=\"\",\"\",'1. Order'!BF470)","v":""},{"$f":"IF('1. Order'!BG470=\"\",\"\",'1. Order'!BG470)","v":""},{"$f":"IF('1. Order'!BH470=\"\",\"\",'1. Order'!BH470)","v":"ZWO"}]
[{"$f":"IF('1. Order'!F471=\"\",\"\",'1. Order'!F471)","v":{"$error":"#N/A"}},{"$f":"IF('1. Order'!G471=\"\",\"\",'1. Order'!G471)","v":""},{"$f":"IF('1. Order'!H471=\"\",\"\",'1. Order'!H471)","v":""},{"$f":"IF('1. Order'!I471=\"\",\"\",'1. Order'!I471)","v":""},{"$f":"IF('1. Order'!J471=\"\",\"\",'1. Order'!J471)","v":""},{"$f":"IF('1. Order'!K471=\"\",\"\",'1. Order'!K471)","v":""},{"$f":"IF('1. Order'!L471=\"\",\"\",'1. Order'!L471)","v":""},{"$f":"IF('1. Order'!M471=\"\",\"\",'1. Order'!M471)","v":""},{"$f":"IF('1. Order'!N471=\"\",\"\",'1. Order'!N471)","v":""},{"$f":"IF('1. Order'!O471=\"\",\"\",'1. Order'!O471)","v":{"$error":"#N/A"}},{"$f":"IF('1. Order'!P471=\"\",\"\",'1. Order'!P471)","v":{"$error":"#N/A"}},{"$f":"IF('1. Order'!Q471=\"\",\"\",'1. Order'!Q471)","v":""},{"$f":"IF('1. Order'!S471=\"\",\"\",'1. Order'!S471)","v":""},{"$f":"IF('1. Order'!T471=\"\",\"\",'1. Order'!T471)","v":""},{"$f":"IF('1. Order'!W471=\"\",\"\",'1. Order'!W471)","v":""},{"$f":"IF('1. Order'!X471=\"\",\"\",'1. Order'!X471)","v":""},{"$f":"IF('1. Order'!Y471=\"\",\"\",'1. Order'!Y471)","v":"EUR"},{"$f":"IF('1. Order'!Z471=\"\",\"\",'1. Order'!Z471)","v":""},{"$f":"IF('1. Order'!AA471=\"\",\"\",'1. Order'!AA471)","v":""},{"$f":"IF('1. Order'!AB471=\"\",\"\",'1. Order'!AB471)","v":""},null,{"$f":"IF('1. Order'!AT471=\"\",\"\",'1. Order'!AT471)","v":""},{"$f":"IF('1. Order'!AU471=\"\",\"\",'1. Order'!AU471)","v":""},null,null,null,null,null,null,null,{"$f":"IF('1. Order'!AY471=\"\",\"\",'1. Order'!AY471)","v":""},{"$f":"IF('1. Order'!AZ471=\"\",\"\",'1. Order'!AZ471)","v":""},{"$f":"IF('1. Order'!BA471=\"\",\"\",'1. Order'!BA471)","v":""},{"$f":"IF('1. Order'!BB471=\"\",\"\",'1. Order'!BB471)","v":""},{"$f":"IF('1. Order'!BD471=\"\",\"\",'1. Order'!BD471)","v":""},{"$f":"IF('1. Order'!BE471=\"\",\"\",'1. Order'!BE471)","v":""},{"$f":"IF('1. Order'!BF471=\"\",\"\",'1. Order'!BF471)","v":""},{"$f":"IF('1. Order'!BG471=\"\",\"\",'1. Order'!BG471)","v":""},{"$f":"IF('1. Order'!BH471=\"\",\"\",'1. Order'!BH471)","v":"ZWO"}]
[{"$f":"IF('1. Order'!F472=\"\",\"\",'1. Order'!F472)","v":{"$error":"#N/A"}},{"$f":"IF('1. Order'!G472=\"\",\"\",'1. Order'!G472)","v":""},{"$f":"IF('1. Order'!H472=\"\",\"\",'1. Order'!H472)","v":""},{"$f":"IF('1. Order'!I472=\"\",\"\",'1. Order'!I472)","v":""},{"$f":"IF('1. Order'!J472=\"\",\"\",'1. Order'!J472)","v":""},{"$f":"IF('1. Order'!K472=\"\",\"\",'1. Order'!K472)","v":""},{"$f":"IF('1. Order'!L472=\"\",\"\",'1. Order'!L472)","v":""},{"$f":"IF('1. Order'!M472=\"\",\"\",'1. Order'!M472)","v":""},{"$f":"IF('1. Order'!N472=\"\",\"\",'1. Order'!N472)","v":""},{"$f":"IF('1. Order'!O472=\"\",\"\",'1. Order'!O472)","v":{"$error":"#N/A"}},{"$f":"IF('1. Order'!P472=\"\",\"\",'1. Order'!P472)","v":{"$error":"#N/A"}},{"$f":"IF('1. Order'!Q472=\"\",\"\",'1. Order'!Q472)","v":""},{"$f":"IF('1. Order'!S472=\"\",\"\",'1. Order'!S472)","v":""},{"$f":"IF('1. Order'!T472=\"\",\"\",'1. Order'!T472)","v":""},{"$f":"IF('1. Order'!W472=\"\",\"\",'1. Order'!W472)","v":""},{"$f":"IF('1. Order'!X472=\"\",\"\",'1. Order'!X472)","v":""},{"$f":"IF('1. Order'!Y472=\"\",\"\",'1. Order'!Y472)","v":"EUR"},{"$f":"IF('1. Order'!Z472=\"\",\"\",'1. Order'!Z472)","v":""},{"$f":"IF('1. Order'!AA472=\"\",\"\",'1. Order'!AA472)","v":""},{"$f":"IF('1. Order'!AB472=\"\",\"\",'1. Order'!AB472)","v":""},null,{"$f":"IF('1. Order'!AT472=\"\",\"\",'1. Order'!AT472)","v":""},{"$f":"IF('1. Order'!AU472=\"\",\"\",'1. Order'!AU472)","v":""},null,null,null,null,null,null,null,{"$f":"IF('1. Order'!AY472=\"\",\"\",'1. Order'!AY472)","v":""},{"$f":"IF('1. Order'!AZ472=\"\",\"\",'1. Order'!AZ472)","v":""},{"$f":"IF('1. Order'!BA472=\"\",\"\",'1. Order'!BA472)","v":""},{"$f":"IF('1. Order'!BB472=\"\",\"\",'1. Order'!BB472)","v":""},{"$f":"IF('1. Order'!BD472=\"\",\"\",'1. Order'!BD472)","v":""},{"$f":"IF('1. Order'!BE472=\"\",\"\",'1. Order'!BE472)","v":""},{"$f":"IF('1. Order'!BF472=\"\",\"\",'1. Order'!BF472)","v":""},{"$f":"IF('1. Order'!BG472=\"\",\"\",'1. Order'!BG472)","v":""},{"$f":"IF('1. Order'!BH472=\"\",\"\",'1. Order'!BH472)","v":"ZWO"}]
[{"$f":"IF('1. Order'!F473=\"\",\"\",'1. Order'!F473)","v":{"$error":"#N/A"}},{"$f":"IF('1. Order'!G473=\"\",\"\",'1. Order'!G473)","v":""},{"$f":"IF('1. Order'!H473=\"\",\"\",'1. Order'!H473)","v":""},{"$f":"IF('1. Order'!I473=\"\",\"\",'1. Order'!I473)","v":""},{"$f":"IF('1. Order'!J473=\"\",\"\",'1. Order'!J473)","v":""},{"$f":"IF('1. Order'!K473=\"\",\"\",'1. Order'!K473)","v":""},{"$f":"IF('1. Order'!L473=\"\",\"\",'1. Order'!L473)","v":""},{"$f":"IF('1. Order'!M473=\"\",\"\",'1. Order'!M473)","v":""},{"$f":"IF('1. Order'!N473=\"\",\"\",'1. Order'!N473)","v":""},{"$f":"IF('1. Order'!O473=\"\",\"\",'1. Order'!O473)","v":{"$error":"#N/A"}},{"$f":"IF('1. Order'!P473=\"\",\"\",'1. Order'!P473)","v":{"$error":"#N/A"}},{"$f":"IF('1. Order'!Q473=\"\",\"\",'1. Order'!Q473)","v":""},{"$f":"IF('1. Order'!S473=\"\",\"\",'1. Order'!S473)","v":""},{"$f":"IF('1. Order'!T473=\"\",\"\",'1. Order'!T473)","v":""},{"$f":"IF('1. Order'!W473=\"\",\"\",'1. Order'!W473)","v":""},{"$f":"IF('1. Order'!X473=\"\",\"\",'1. Order'!X473)","v":""},{"$f":"IF('1. Order'!Y473=\"\",\"\",'1. Order'!Y473)","v":"EUR"},{"$f":"IF('1. Order'!Z473=\"\",\"\",'1. Order'!Z473)","v":""},{"$f":"IF('1. Order'!AA473=\"\",\"\",'1. Order'!AA473)","v":""},{"$f":"IF('1. Order'!AB473=\"\",\"\",'1. Order'!AB473)","v":""},null,{"$f":"IF('1. Order'!AT473=\"\",\"\",'1. Order'!AT473)","v":""},{"$f":"IF('1. Order'!AU473=\"\",\"\",'1. Order'!AU473)","v":""},null,null,null,null,null,null,null,{"$f":"IF('1. Order'!AY473=\"\",\"\",'1. Order'!AY473)","v":""},{"$f":"IF('1. Order'!AZ473=\"\",\"\",'1. Order'!AZ473)","v":""},{"$f":"IF('1. Order'!BA473=\"\",\"\",'1. Order'!BA473)","v":""},{"$f":"IF('1. Order'!BB473=\"\",\"\",'1. Order'!BB473)","v":""},{"$f":"IF('1. Order'!BD473=\"\",\"\",'1. Order'!BD473)","v":""},{"$f":"IF('1. Order'!BE473=\"\",\"\",'1. Order'!BE473)","v":""},{"$f":"IF('1. Order'!BF473=\"\",\"\",'1. Order'!BF473)","v":""},{"$f":"IF('1. Order'!BG473=\"\",\"\",'1. Order'!BG473)","v":""},{"$f":"IF('1. Order'!BH473=\"\",\"\",'1. Order'!BH473)","v":"ZWO"}]
[{"$f":"IF('1. Order'!F474=\"\",\"\",'1. Order'!F474)","v":{"$error":"#N/A"}},{"$f":"IF('1. Order'!G474=\"\",\"\",'1. Order'!G474)","v":""},{"$f":"IF('1. Order'!H474=\"\",\"\",'1. Order'!H474)","v":""},{"$f":"IF('1. Order'!I474=\"\",\"\",'1. Order'!I474)","v":""},{"$f":"IF('1. Order'!J474=\"\",\"\",'1. Order'!J474)","v":""},{"$f":"IF('1. Order'!K474=\"\",\"\",'1. Order'!K474)","v":""},{"$f":"IF('1. Order'!L474=\"\",\"\",'1. Order'!L474)","v":""},{"$f":"IF('1. Order'!M474=\"\",\"\",'1. Order'!M474)","v":""},{"$f":"IF('1. Order'!N474=\"\",\"\",'1. Order'!N474)","v":""},{"$f":"IF('1. Order'!O474=\"\",\"\",'1. Order'!O474)","v":{"$error":"#N/A"}},{"$f":"IF('1. Order'!P474=\"\",\"\",'1. Order'!P474)","v":{"$error":"#N/A"}},{"$f":"IF('1. Order'!Q474=\"\",\"\",'1. Order'!Q474)","v":""},{"$f":"IF('1. Order'!S474=\"\",\"\",'1. Order'!S474)","v":""},{"$f":"IF('1. Order'!T474=\"\",\"\",'1. Order'!T474)","v":""},{"$f":"IF('1. Order'!W474=\"\",\"\",'1. Order'!W474)","v":""},{"$f":"IF('1. Order'!X474=\"\",\"\",'1. Order'!X474)","v":""},{"$f":"IF('1. Order'!Y474=\"\",\"\",'1. Order'!Y474)","v":"EUR"},{"$f":"IF('1. Order'!Z474=\"\",\"\",'1. Order'!Z474)","v":""},{"$f":"IF('1. Order'!AA474=\"\",\"\",'1. Order'!AA474)","v":""},{"$f":"IF('1. Order'!AB474=\"\",\"\",'1. Order'!AB474)","v":""},null,{"$f":"IF('1. Order'!AT474=\"\",\"\",'1. Order'!AT474)","v":""},{"$f":"IF('1. Order'!AU474=\"\",\"\",'1. Order'!AU474)","v":""},null,null,null,null,null,null,null,{"$f":"IF('1. Order'!AY474=\"\",\"\",'1. Order'!AY474)","v":""},{"$f":"IF('1. Order'!AZ474=\"\",\"\",'1. Order'!AZ474)","v":""},{"$f":"IF('1. Order'!BA474=\"\",\"\",'1. Order'!BA474)","v":""},{"$f":"IF('1. Order'!BB474=\"\",\"\",'1. Order'!BB474)","v":""},{"$f":"IF('1. Order'!BD474=\"\",\"\",'1. Order'!BD474)","v":""},{"$f":"IF('1. Order'!BE474=\"\",\"\",'1. Order'!BE474)","v":""},{"$f":"IF('1. Order'!BF474=\"\",\"\",'1. Order'!BF474)","v":""},{"$f":"IF('1. Order'!BG474=\"\",\"\",'1. Order'!BG474)","v":""},{"$f":"IF('1. Order'!BH474=\"\",\"\",'1. Order'!BH474)","v":"ZWO"}]
[{"$f":"IF('1. Order'!F475=\"\",\"\",'1. Order'!F475)","v":{"$error":"#N/A"}},{"$f":"IF('1. Order'!G475=\"\",\"\",'1. Order'!G475)","v":""},{"$f":"IF('1. Order'!H475=\"\",\"\",'1. Order'!H475)","v":""},{"$f":"IF('1. Order'!I475=\"\",\"\",'1. Order'!I475)","v":""},{"$f":"IF('1. Order'!J475=\"\",\"\",'1. Order'!J475)","v":""},{"$f":"IF('1. Order'!K475=\"\",\"\",'1. Order'!K475)","v":""},{"$f":"IF('1. Order'!L475=\"\",\"\",'1. Order'!L475)","v":""},{"$f":"IF('1. Order'!M475=\"\",\"\",'1. Order'!M475)","v":""},{"$f":"IF('1. Order'!N475=\"\",\"\",'1. Order'!N475)","v":""},{"$f":"IF('1. Order'!O475=\"\",\"\",'1. Order'!O475)","v":{"$error":"#N/A"}},{"$f":"IF('1. Order'!P475=\"\",\"\",'1. Order'!P475)","v":{"$error":"#N/A"}},{"$f":"IF('1. Order'!Q475=\"\",\"\",'1. Order'!Q475)","v":""},{"$f":"IF('1. Order'!S475=\"\",\"\",'1. Order'!S475)","v":""},{"$f":"IF('1. Order'!T475=\"\",\"\",'1. Order'!T475)","v":""},{"$f":"IF('1. Order'!W475=\"\",\"\",'1. Order'!W475)","v":""},{"$f":"IF('1. Order'!X475=\"\",\"\",'1. Order'!X475)","v":""},{"$f":"IF('1. Order'!Y475=\"\",\"\",'1. Order'!Y475)","v":"EUR"},{"$f":"IF('1. Order'!Z475=\"\",\"\",'1. Order'!Z475)","v":""},{"$f":"IF('1. Order'!AA475=\"\",\"\",'1. Order'!AA475)","v":""},{"$f":"IF('1. Order'!AB475=\"\",\"\",'1. Order'!AB475)","v":""},null,{"$f":"IF('1. Order'!AT475=\"\",\"\",'1. Order'!AT475)","v":""},{"$f":"IF('1. Order'!AU475=\"\",\"\",'1. Order'!AU475)","v":""},null,null,null,null,null,null,null,{"$f":"IF('1. Order'!AY475=\"\",\"\",'1. Order'!AY475)","v":""},{"$f":"IF('1. Order'!AZ475=\"\",\"\",'1. Order'!AZ475)","v":""},{"$f":"IF('1. Order'!BA475=\"\",\"\",'1. Order'!BA475)","v":""},{"$f":"IF('1. Order'!BB475=\"\",\"\",'1. Order'!BB475)","v":""},{"$f":"IF('1. Order'!BD475=\"\",\"\",'1. Order'!BD475)","v":""},{"$f":"IF('1. Order'!BE475=\"\",\"\",'1. Order'!BE475)","v":""},{"$f":"IF('1. Order'!BF475=\"\",\"\",'1. Order'!BF475)","v":""},{"$f":"IF('1. Order'!BG475=\"\",\"\",'1. Order'!BG475)","v":""},{"$f":"IF('1. Order'!BH475=\"\",\"\",'1. Order'!BH475)","v":"ZWO"}]
[{"$f":"IF('1. Order'!F476=\"\",\"\",'1. Order'!F476)","v":{"$error":"#N/A"}},{"$f":"IF('1. Order'!G476=\"\",\"\",'1. Order'!G476)","v":""},{"$f":"IF('1. Order'!H476=\"\",\"\",'1. Order'!H476)","v":""},{"$f":"IF('1. Order'!I476=\"\",\"\",'1. Order'!I476)","v":""},{"$f":"IF('1. Order'!J476=\"\",\"\",'1. Order'!J476)","v":""},{"$f":"IF('1. Order'!K476=\"\",\"\",'1. Order'!K476)","v":""},{"$f":"IF('1. Order'!L476=\"\",\"\",'1. Order'!L476)","v":""},{"$f":"IF('1. Order'!M476=\"\",\"\",'1. Order'!M476)","v":""},{"$f":"IF('1. Order'!N476=\"\",\"\",'1. Order'!N476)","v":""},{"$f":"IF('1. Order'!O476=\"\",\"\",'1. Order'!O476)","v":{"$error":"#N/A"}},{"$f":"IF('1. Order'!P476=\"\",\"\",'1. Order'!P476)","v":{"$error":"#N/A"}},{"$f":"IF('1. Order'!Q476=\"\",\"\",'1. Order'!Q476)","v":""},{"$f":"IF('1. Order'!S476=\"\",\"\",'1. Order'!S476)","v":""},{"$f":"IF('1. Order'!T476=\"\",\"\",'1. Order'!T476)","v":""},{"$f":"IF('1. Order'!W476=\"\",\"\",'1. Order'!W476)","v":""},{"$f":"IF('1. Order'!X476=\"\",\"\",'1. Order'!X476)","v":""},{"$f":"IF('1. Order'!Y476=\"\",\"\",'1. Order'!Y476)","v":"EUR"},{"$f":"IF('1. Order'!Z476=\"\",\"\",'1. Order'!Z476)","v":""},{"$f":"IF('1. Order'!AA476=\"\",\"\",'1. Order'!AA476)","v":""},{"$f":"IF('1. Order'!AB476=\"\",\"\",'1. Order'!AB476)","v":""},null,{"$f":"IF('1. Order'!AT476=\"\",\"\",'1. Order'!AT476)","v":""},{"$f":"IF('1. Order'!AU476=\"\",\"\",'1. Order'!AU476)","v":""},null,null,null,null,null,null,null,{"$f":"IF('1. Order'!AY476=\"\",\"\",'1. Order'!AY476)","v":""},{"$f":"IF('1. Order'!AZ476=\"\",\"\",'1. Order'!AZ476)","v":""},{"$f":"IF('1. Order'!BA476=\"\",\"\",'1. Order'!BA476)","v":""},{"$f":"IF('1. Order'!BB476=\"\",\"\",'1. Order'!BB476)","v":""},{"$f":"IF('1. Order'!BD476=\"\",\"\",'1. Order'!BD476)","v":""},{"$f":"IF('1. Order'!BE476=\"\",\"\",'1. Order'!BE476)","v":""},{"$f":"IF('1. Order'!BF476=\"\",\"\",'1. Order'!BF476)","v":""},{"$f":"IF('1. Order'!BG476=\"\",\"\",'1. Order'!BG476)","v":""},{"$f":"IF('1. Order'!BH476=\"\",\"\",'1. Order'!BH476)","v":"ZWO"}]
[{"$f":"IF('1. Order'!F477=\"\",\"\",'1. Order'!F477)","v":{"$error":"#N/A"}},{"$f":"IF('1. Order'!G477=\"\",\"\",'1. Order'!G477)","v":""},{"$f":"IF('1. Order'!H477=\"\",\"\",'1. Order'!H477)","v":""},{"$f":"IF('1. Order'!I477=\"\",\"\",'1. Order'!I477)","v":""},{"$f":"IF('1. Order'!J477=\"\",\"\",'1. Order'!J477)","v":""},{"$f":"IF('1. Order'!K477=\"\",\"\",'1. Order'!K477)","v":""},{"$f":"IF('1. Order'!L477=\"\",\"\",'1. Order'!L477)","v":""},{"$f":"IF('1. Order'!M477=\"\",\"\",'1. Order'!M477)","v":""},{"$f":"IF('1. Order'!N477=\"\",\"\",'1. Order'!N477)","v":""},{"$f":"IF('1. Order'!O477=\"\",\"\",'1. Order'!O477)","v":{"$error":"#N/A"}},{"$f":"IF('1. Order'!P477=\"\",\"\",'1. Order'!P477)","v":{"$error":"#N/A"}},{"$f":"IF('1. Order'!Q477=\"\",\"\",'1. Order'!Q477)","v":""},{"$f":"IF('1. Order'!S477=\"\",\"\",'1. Order'!S477)","v":""},{"$f":"IF('1. Order'!T477=\"\",\"\",'1. Order'!T477)","v":""},{"$f":"IF('1. Order'!W477=\"\",\"\",'1. Order'!W477)","v":""},{"$f":"IF('1. Order'!X477=\"\",\"\",'1. Order'!X477)","v":""},{"$f":"IF('1. Order'!Y477=\"\",\"\",'1. Order'!Y477)","v":"EUR"},{"$f":"IF('1. Order'!Z477=\"\",\"\",'1. Order'!Z477)","v":""},{"$f":"IF('1. Order'!AA477=\"\",\"\",'1. Order'!AA477)","v":""},{"$f":"IF('1. Order'!AB477=\"\",\"\",'1. Order'!AB477)","v":""},null,{"$f":"IF('1. Order'!AT477=\"\",\"\",'1. Order'!AT477)","v":""},{"$f":"IF('1. Order'!AU477=\"\",\"\",'1. Order'!AU477)","v":""},null,null,null,null,null,null,null,{"$f":"IF('1. Order'!AY477=\"\",\"\",'1. Order'!AY477)","v":""},{"$f":"IF('1. Order'!AZ477=\"\",\"\",'1. Order'!AZ477)","v":""},{"$f":"IF('1. Order'!BA477=\"\",\"\",'1. Order'!BA477)","v":""},{"$f":"IF('1. Order'!BB477=\"\",\"\",'1. Order'!BB477)","v":""},{"$f":"IF('1. Order'!BD477=\"\",\"\",'1. Order'!BD477)","v":""},{"$f":"IF('1. Order'!BE477=\"\",\"\",'1. Order'!BE477)","v":""},{"$f":"IF('1. Order'!BF477=\"\",\"\",'1. Order'!BF477)","v":""},{"$f":"IF('1. Order'!BG477=\"\",\"\",'1. Order'!BG477)","v":""},{"$f":"IF('1. Order'!BH477=\"\",\"\",'1. Order'!BH477)","v":"ZWO"}]
[{"$f":"IF('1. Order'!F478=\"\",\"\",'1. Order'!F478)","v":{"$error":"#N/A"}},{"$f":"IF('1. Order'!G478=\"\",\"\",'1. Order'!G478)","v":""},{"$f":"IF('1. Order'!H478=\"\",\"\",'1. Order'!H478)","v":""},{"$f":"IF('1. Order'!I478=\"\",\"\",'1. Order'!I478)","v":""},{"$f":"IF('1. Order'!J478=\"\",\"\",'1. Order'!J478)","v":""},{"$f":"IF('1. Order'!K478=\"\",\"\",'1. Order'!K478)","v":""},{"$f":"IF('1. Order'!L478=\"\",\"\",'1. Order'!L478)","v":""},{"$f":"IF('1. Order'!M478=\"\",\"\",'1. Order'!M478)","v":""},{"$f":"IF('1. Order'!N478=\"\",\"\",'1. Order'!N478)","v":""},{"$f":"IF('1. Order'!O478=\"\",\"\",'1. Order'!O478)","v":{"$error":"#N/A"}},{"$f":"IF('1. Order'!P478=\"\",\"\",'1. Order'!P478)","v":{"$error":"#N/A"}},{"$f":"IF('1. Order'!Q478=\"\",\"\",'1. Order'!Q478)","v":""},{"$f":"IF('1. Order'!S478=\"\",\"\",'1. Order'!S478)","v":""},{"$f":"IF('1. Order'!T478=\"\",\"\",'1. Order'!T478)","v":""},{"$f":"IF('1. Order'!W478=\"\",\"\",'1. Order'!W478)","v":""},{"$f":"IF('1. Order'!X478=\"\",\"\",'1. Order'!X478)","v":""},{"$f":"IF('1. Order'!Y478=\"\",\"\",'1. Order'!Y478)","v":"EUR"},{"$f":"IF('1. Order'!Z478=\"\",\"\",'1. Order'!Z478)","v":""},{"$f":"IF('1. Order'!AA478=\"\",\"\",'1. Order'!AA478)","v":""},{"$f":"IF('1. Order'!AB478=\"\",\"\",'1. Order'!AB478)","v":""},null,{"$f":"IF('1. Order'!AT478=\"\",\"\",'1. Order'!AT478)","v":""},{"$f":"IF('1. Order'!AU478=\"\",\"\",'1. Order'!AU478)","v":""},null,null,null,null,null,null,null,{"$f":"IF('1. Order'!AY478=\"\",\"\",'1. Order'!AY478)","v":""},{"$f":"IF('1. Order'!AZ478=\"\",\"\",'1. Order'!AZ478)","v":""},{"$f":"IF('1. Order'!BA478=\"\",\"\",'1. Order'!BA478)","v":""},{"$f":"IF('1. Order'!BB478=\"\",\"\",'1. Order'!BB478)","v":""},{"$f":"IF('1. Order'!BD478=\"\",\"\",'1. Order'!BD478)","v":""},{"$f":"IF('1. Order'!BE478=\"\",\"\",'1. Order'!BE478)","v":""},{"$f":"IF('1. Order'!BF478=\"\",\"\",'1. Order'!BF478)","v":""},{"$f":"IF('1. Order'!BG478=\"\",\"\",'1. Order'!BG478)","v":""},{"$f":"IF('1. Order'!BH478=\"\",\"\",'1. Order'!BH478)","v":"ZWO"}]
[{"$f":"IF('1. Order'!F479=\"\",\"\",'1. Order'!F479)","v":{"$error":"#N/A"}},{"$f":"IF('1. Order'!G479=\"\",\"\",'1. Order'!G479)","v":""},{"$f":"IF('1. Order'!H479=\"\",\"\",'1. Order'!H479)","v":""},{"$f":"IF('1. Order'!I479=\"\",\"\",'1. Order'!I479)","v":""},{"$f":"IF('1. Order'!J479=\"\",\"\",'1. Order'!J479)","v":""},{"$f":"IF('1. Order'!K479=\"\",\"\",'1. Order'!K479)","v":""},{"$f":"IF('1. Order'!L479=\"\",\"\",'1. Order'!L479)","v":""},{"$f":"IF('1. Order'!M479=\"\",\"\",'1. Order'!M479)","v":""},{"$f":"IF('1. Order'!N479=\"\",\"\",'1. Order'!N479)","v":""},{"$f":"IF('1. Order'!O479=\"\",\"\",'1. Order'!O479)","v":{"$error":"#N/A"}},{"$f":"IF('1. Order'!P479=\"\",\"\",'1. Order'!P479)","v":{"$error":"#N/A"}},{"$f":"IF('1. Order'!Q479=\"\",\"\",'1. Order'!Q479)","v":""},{"$f":"IF('1. Order'!S479=\"\",\"\",'1. Order'!S479)","v":""},{"$f":"IF('1. Order'!T479=\"\",\"\",'1. Order'!T479)","v":""},{"$f":"IF('1. Order'!W479=\"\",\"\",'1. Order'!W479)","v":""},{"$f":"IF('1. Order'!X479=\"\",\"\",'1. Order'!X479)","v":""},{"$f":"IF('1. Order'!Y479=\"\",\"\",'1. Order'!Y479)","v":"EUR"},{"$f":"IF('1. Order'!Z479=\"\",\"\",'1. Order'!Z479)","v":""},{"$f":"IF('1. Order'!AA479=\"\",\"\",'1. Order'!AA479)","v":""},{"$f":"IF('1. Order'!AB479=\"\",\"\",'1. Order'!AB479)","v":""},null,{"$f":"IF('1. Order'!AT479=\"\",\"\",'1. Order'!AT479)","v":""},{"$f":"IF('1. Order'!AU479=\"\",\"\",'1. Order'!AU479)","v":""},null,null,null,null,null,null,null,{"$f":"IF('1. Order'!AY479=\"\",\"\",'1. Order'!AY479)","v":""},{"$f":"IF('1. Order'!AZ479=\"\",\"\",'1. Order'!AZ479)","v":""},{"$f":"IF('1. Order'!BA479=\"\",\"\",'1. Order'!BA479)","v":""},{"$f":"IF('1. Order'!BB479=\"\",\"\",'1. Order'!BB479)","v":""},{"$f":"IF('1. Order'!BD479=\"\",\"\",'1. Order'!BD479)","v":""},{"$f":"IF('1. Order'!BE479=\"\",\"\",'1. Order'!BE479)","v":""},{"$f":"IF('1. Order'!BF479=\"\",\"\",'1. Order'!BF479)","v":""},{"$f":"IF('1. Order'!BG479=\"\",\"\",'1. Order'!BG479)","v":""},{"$f":"IF('1. Order'!BH479=\"\",\"\",'1. Order'!BH479)","v":"ZWO"}]
[{"$f":"IF('1. Order'!F480=\"\",\"\",'1. Order'!F480)","v":{"$error":"#N/A"}},{"$f":"IF('1. Order'!G480=\"\",\"\",'1. Order'!G480)","v":""},{"$f":"IF('1. Order'!H480=\"\",\"\",'1. Order'!H480)","v":""},{"$f":"IF('1. Order'!I480=\"\",\"\",'1. Order'!I480)","v":""},{"$f":"IF('1. Order'!J480=\"\",\"\",'1. Order'!J480)","v":""},{"$f":"IF('1. Order'!K480=\"\",\"\",'1. Order'!K480)","v":""},{"$f":"IF('1. Order'!L480=\"\",\"\",'1. Order'!L480)","v":""},{"$f":"IF('1. Order'!M480=\"\",\"\",'1. Order'!M480)","v":""},{"$f":"IF('1. Order'!N480=\"\",\"\",'1. Order'!N480)","v":""},{"$f":"IF('1. Order'!O480=\"\",\"\",'1. Order'!O480)","v":{"$error":"#N/A"}},{"$f":"IF('1. Order'!P480=\"\",\"\",'1. Order'!P480)","v":{"$error":"#N/A"}},{"$f":"IF('1. Order'!Q480=\"\",\"\",'1. Order'!Q480)","v":""},{"$f":"IF('1. Order'!S480=\"\",\"\",'1. Order'!S480)","v":""},{"$f":"IF('1. Order'!T480=\"\",\"\",'1. Order'!T480)","v":""},{"$f":"IF('1. Order'!W480=\"\",\"\",'1. Order'!W480)","v":""},{"$f":"IF('1. Order'!X480=\"\",\"\",'1. Order'!X480)","v":""},{"$f":"IF('1. Order'!Y480=\"\",\"\",'1. Order'!Y480)","v":"EUR"},{"$f":"IF('1. Order'!Z480=\"\",\"\",'1. Order'!Z480)","v":""},{"$f":"IF('1. Order'!AA480=\"\",\"\",'1. Order'!AA480)","v":""},{"$f":"IF('1. Order'!AB480=\"\",\"\",'1. Order'!AB480)","v":""},null,{"$f":"IF('1. Order'!AT480=\"\",\"\",'1. Order'!AT480)","v":""},{"$f":"IF('1. Order'!AU480=\"\",\"\",'1. Order'!AU480)","v":""},null,null,null,null,null,null,null,{"$f":"IF('1. Order'!AY480=\"\",\"\",'1. Order'!AY480)","v":""},{"$f":"IF('1. Order'!AZ480=\"\",\"\",'1. Order'!AZ480)","v":""},{"$f":"IF('1. Order'!BA480=\"\",\"\",'1. Order'!BA480)","v":""},{"$f":"IF('1. Order'!BB480=\"\",\"\",'1. Order'!BB480)","v":""},{"$f":"IF('1. Order'!BD480=\"\",\"\",'1. Order'!BD480)","v":""},{"$f":"IF('1. Order'!BE480=\"\",\"\",'1. Order'!BE480)","v":""},{"$f":"IF('1. Order'!BF480=\"\",\"\",'1. Order'!BF480)","v":""},{"$f":"IF('1. Order'!BG480=\"\",\"\",'1. Order'!BG480)","v":""},{"$f":"IF('1. Order'!BH480=\"\",\"\",'1. Order'!BH480)","v":"ZWO"}]
[{"$f":"IF('1. Order'!F481=\"\",\"\",'1. Order'!F481)","v":{"$error":"#N/A"}},{"$f":"IF('1. Order'!G481=\"\",\"\",'1. Order'!G481)","v":""},{"$f":"IF('1. Order'!H481=\"\",\"\",'1. Order'!H481)","v":""},{"$f":"IF('1. Order'!I481=\"\",\"\",'1. Order'!I481)","v":""},{"$f":"IF('1. Order'!J481=\"\",\"\",'1. Order'!J481)","v":""},{"$f":"IF('1. Order'!K481=\"\",\"\",'1. Order'!K481)","v":""},{"$f":"IF('1. Order'!L481=\"\",\"\",'1. Order'!L481)","v":""},{"$f":"IF('1. Order'!M481=\"\",\"\",'1. Order'!M481)","v":""},{"$f":"IF('1. Order'!N481=\"\",\"\",'1. Order'!N481)","v":""},{"$f":"IF('1. Order'!O481=\"\",\"\",'1. Order'!O481)","v":{"$error":"#N/A"}},{"$f":"IF('1. Order'!P481=\"\",\"\",'1. Order'!P481)","v":{"$error":"#N/A"}},{"$f":"IF('1. Order'!Q481=\"\",\"\",'1. Order'!Q481)","v":""},{"$f":"IF('1. Order'!S481=\"\",\"\",'1. Order'!S481)","v":""},{"$f":"IF('1. Order'!T481=\"\",\"\",'1. Order'!T481)","v":""},{"$f":"IF('1. Order'!W481=\"\",\"\",'1. Order'!W481)","v":""},{"$f":"IF('1. Order'!X481=\"\",\"\",'1. Order'!X481)","v":""},{"$f":"IF('1. Order'!Y481=\"\",\"\",'1. Order'!Y481)","v":"EUR"},{"$f":"IF('1. Order'!Z481=\"\",\"\",'1. Order'!Z481)","v":""},{"$f":"IF('1. Order'!AA481=\"\",\"\",'1. Order'!AA481)","v":""},{"$f":"IF('1. Order'!AB481=\"\",\"\",'1. Order'!AB481)","v":""},null,{"$f":"IF('1. Order'!AT481=\"\",\"\",'1. Order'!AT481)","v":""},{"$f":"IF('1. Order'!AU481=\"\",\"\",'1. Order'!AU481)","v":""},null,null,null,null,null,null,null,{"$f":"IF('1. Order'!AY481=\"\",\"\",'1. Order'!AY481)","v":""},{"$f":"IF('1. Order'!AZ481=\"\",\"\",'1. Order'!AZ481)","v":""},{"$f":"IF('1. Order'!BA481=\"\",\"\",'1. Order'!BA481)","v":""},{"$f":"IF('1. Order'!BB481=\"\",\"\",'1. Order'!BB481)","v":""},{"$f":"IF('1. Order'!BD481=\"\",\"\",'1. Order'!BD481)","v":""},{"$f":"IF('1. Order'!BE481=\"\",\"\",'1. Order'!BE481)","v":""},{"$f":"IF('1. Order'!BF481=\"\",\"\",'1. Order'!BF481)","v":""},{"$f":"IF('1. Order'!BG481=\"\",\"\",'1. Order'!BG481)","v":""},{"$f":"IF('1. Order'!BH481=\"\",\"\",'1. Order'!BH481)","v":"ZWO"}]
[{"$f":"IF('1. Order'!F482=\"\",\"\",'1. Order'!F482)","v":{"$error":"#N/A"}},{"$f":"IF('1. Order'!G482=\"\",\"\",'1. Order'!G482)","v":""},{"$f":"IF('1. Order'!H482=\"\",\"\",'1. Order'!H482)","v":""},{"$f":"IF('1. Order'!I482=\"\",\"\",'1. Order'!I482)","v":""},{"$f":"IF('1. Order'!J482=\"\",\"\",'1. Order'!J482)","v":""},{"$f":"IF('1. Order'!K482=\"\",\"\",'1. Order'!K482)","v":""},{"$f":"IF('1. Order'!L482=\"\",\"\",'1. Order'!L482)","v":""},{"$f":"IF('1. Order'!M482=\"\",\"\",'1. Order'!M482)","v":""},{"$f":"IF('1. Order'!N482=\"\",\"\",'1. Order'!N482)","v":""},{"$f":"IF('1. Order'!O482=\"\",\"\",'1. Order'!O482)","v":{"$error":"#N/A"}},{"$f":"IF('1. Order'!P482=\"\",\"\",'1. Order'!P482)","v":{"$error":"#N/A"}},{"$f":"IF('1. Order'!Q482=\"\",\"\",'1. Order'!Q482)","v":""},{"$f":"IF('1. Order'!S482=\"\",\"\",'1. Order'!S482)","v":""},{"$f":"IF('1. Order'!T482=\"\",\"\",'1. Order'!T482)","v":""},{"$f":"IF('1. Order'!W482=\"\",\"\",'1. Order'!W482)","v":""},{"$f":"IF('1. Order'!X482=\"\",\"\",'1. Order'!X482)","v":""},{"$f":"IF('1. Order'!Y482=\"\",\"\",'1. Order'!Y482)","v":"EUR"},{"$f":"IF('1. Order'!Z482=\"\",\"\",'1. Order'!Z482)","v":""},{"$f":"IF('1. Order'!AA482=\"\",\"\",'1. Order'!AA482)","v":""},{"$f":"IF('1. Order'!AB482=\"\",\"\",'1. Order'!AB482)","v":""},null,{"$f":"IF('1. Order'!AT482=\"\",\"\",'1. Order'!AT482)","v":""},{"$f":"IF('1. Order'!AU482=\"\",\"\",'1. Order'!AU482)","v":""},null,null,null,null,null,null,null,{"$f":"IF('1. Order'!AY482=\"\",\"\",'1. Order'!AY482)","v":""},{"$f":"IF('1. Order'!AZ482=\"\",\"\",'1. Order'!AZ482)","v":""},{"$f":"IF('1. Order'!BA482=\"\",\"\",'1. Order'!BA482)","v":""},{"$f":"IF('1. Order'!BB482=\"\",\"\",'1. Order'!BB482)","v":""},{"$f":"IF('1. Order'!BD482=\"\",\"\",'1. Order'!BD482)","v":""},{"$f":"IF('1. Order'!BE482=\"\",\"\",'1. Order'!BE482)","v":""},{"$f":"IF('1. Order'!BF482=\"\",\"\",'1. Order'!BF482)","v":""},{"$f":"IF('1. Order'!BG482=\"\",\"\",'1. Order'!BG482)","v":""},{"$f":"IF('1. Order'!BH482=\"\",\"\",'1. Order'!BH482)","v":"ZWO"}]
[{"$f":"IF('1. Order'!F483=\"\",\"\",'1. Order'!F483)","v":{"$error":"#N/A"}},{"$f":"IF('1. Order'!G483=\"\",\"\",'1. Order'!G483)","v":""},{"$f":"IF('1. Order'!H483=\"\",\"\",'1. Order'!H483)","v":""},{"$f":"IF('1. Order'!I483=\"\",\"\",'1. Order'!I483)","v":""},{"$f":"IF('1. Order'!J483=\"\",\"\",'1. Order'!J483)","v":""},{"$f":"IF('1. Order'!K483=\"\",\"\",'1. Order'!K483)","v":""},{"$f":"IF('1. Order'!L483=\"\",\"\",'1. Order'!L483)","v":""},{"$f":"IF('1. Order'!M483=\"\",\"\",'1. Order'!M483)","v":""},{"$f":"IF('1. Order'!N483=\"\",\"\",'1. Order'!N483)","v":""},{"$f":"IF('1. Order'!O483=\"\",\"\",'1. Order'!O483)","v":{"$error":"#N/A"}},{"$f":"IF('1. Order'!P483=\"\",\"\",'1. Order'!P483)","v":{"$error":"#N/A"}},{"$f":"IF('1. Order'!Q483=\"\",\"\",'1. Order'!Q483)","v":""},{"$f":"IF('1. Order'!S483=\"\",\"\",'1. Order'!S483)","v":""},{"$f":"IF('1. Order'!T483=\"\",\"\",'1. Order'!T483)","v":""},{"$f":"IF('1. Order'!W483=\"\",\"\",'1. Order'!W483)","v":""},{"$f":"IF('1. Order'!X483=\"\",\"\",'1. Order'!X483)","v":""},{"$f":"IF('1. Order'!Y483=\"\",\"\",'1. Order'!Y483)","v":"EUR"},{"$f":"IF('1. Order'!Z483=\"\",\"\",'1. Order'!Z483)","v":""},{"$f":"IF('1. Order'!AA483=\"\",\"\",'1. Order'!AA483)","v":""},{"$f":"IF('1. Order'!AB483=\"\",\"\",'1. Order'!AB483)","v":""},null,{"$f":"IF('1. Order'!AT483=\"\",\"\",'1. Order'!AT483)","v":""},{"$f":"IF('1. Order'!AU483=\"\",\"\",'1. Order'!AU483)","v":""},null,null,null,null,null,null,null,{"$f":"IF('1. Order'!AY483=\"\",\"\",'1. Order'!AY483)","v":""},{"$f":"IF('1. Order'!AZ483=\"\",\"\",'1. Order'!AZ483)","v":""},{"$f":"IF('1. Order'!BA483=\"\",\"\",'1. Order'!BA483)","v":""},{"$f":"IF('1. Order'!BB483=\"\",\"\",'1. Order'!BB483)","v":""},{"$f":"IF('1. Order'!BD483=\"\",\"\",'1. Order'!BD483)","v":""},{"$f":"IF('1. Order'!BE483=\"\",\"\",'1. Order'!BE483)","v":""},{"$f":"IF('1. Order'!BF483=\"\",\"\",'1. Order'!BF483)","v":""},{"$f":"IF('1. Order'!BG483=\"\",\"\",'1. Order'!BG483)","v":""},{"$f":"IF('1. Order'!BH483=\"\",\"\",'1. Order'!BH483)","v":"ZWO"}]
[{"$f":"IF('1. Order'!F484=\"\",\"\",'1. Order'!F484)","v":{"$error":"#N/A"}},{"$f":"IF('1. Order'!G484=\"\",\"\",'1. Order'!G484)","v":""},{"$f":"IF('1. Order'!H484=\"\",\"\",'1. Order'!H484)","v":""},{"$f":"IF('1. Order'!I484=\"\",\"\",'1. Order'!I484)","v":""},{"$f":"IF('1. Order'!J484=\"\",\"\",'1. Order'!J484)","v":""},{"$f":"IF('1. Order'!K484=\"\",\"\",'1. Order'!K484)","v":""},{"$f":"IF('1. Order'!L484=\"\",\"\",'1. Order'!L484)","v":""},{"$f":"IF('1. Order'!M484=\"\",\"\",'1. Order'!M484)","v":""},{"$f":"IF('1. Order'!N484=\"\",\"\",'1. Order'!N484)","v":""},{"$f":"IF('1. Order'!O484=\"\",\"\",'1. Order'!O484)","v":{"$error":"#N/A"}},{"$f":"IF('1. Order'!P484=\"\",\"\",'1. Order'!P484)","v":{"$error":"#N/A"}},{"$f":"IF('1. Order'!Q484=\"\",\"\",'1. Order'!Q484)","v":""},{"$f":"IF('1. Order'!S484=\"\",\"\",'1. Order'!S484)","v":""},{"$f":"IF('1. Order'!T484=\"\",\"\",'1. Order'!T484)","v":""},{"$f":"IF('1. Order'!W484=\"\",\"\",'1. Order'!W484)","v":""},{"$f":"IF('1. Order'!X484=\"\",\"\",'1. Order'!X484)","v":""},{"$f":"IF('1. Order'!Y484=\"\",\"\",'1. Order'!Y484)","v":"EUR"},{"$f":"IF('1. Order'!Z484=\"\",\"\",'1. Order'!Z484)","v":""},{"$f":"IF('1. Order'!AA484=\"\",\"\",'1. Order'!AA484)","v":""},{"$f":"IF('1. Order'!AB484=\"\",\"\",'1. Order'!AB484)","v":""},null,{"$f":"IF('1. Order'!AT484=\"\",\"\",'1. Order'!AT484)","v":""},{"$f":"IF('1. Order'!AU484=\"\",\"\",'1. Order'!AU484)","v":""},null,null,null,null,null,null,null,{"$f":"IF('1. Order'!AY484=\"\",\"\",'1. Order'!AY484)","v":""},{"$f":"IF('1. Order'!AZ484=\"\",\"\",'1. Order'!AZ484)","v":""},{"$f":"IF('1. Order'!BA484=\"\",\"\",'1. Order'!BA484)","v":""},{"$f":"IF('1. Order'!BB484=\"\",\"\",'1. Order'!BB484)","v":""},{"$f":"IF('1. Order'!BD484=\"\",\"\",'1. Order'!BD484)","v":""},{"$f":"IF('1. Order'!BE484=\"\",\"\",'1. Order'!BE484)","v":""},{"$f":"IF('1. Order'!BF484=\"\",\"\",'1. Order'!BF484)","v":""},{"$f":"IF('1. Order'!BG484=\"\",\"\",'1. Order'!BG484)","v":""},{"$f":"IF('1. Order'!BH484=\"\",\"\",'1. Order'!BH484)","v":"ZWO"}]
[{"$f":"IF('1. Order'!F485=\"\",\"\",'1. Order'!F485)","v":{"$error":"#N/A"}},{"$f":"IF('1. Order'!G485=\"\",\"\",'1. Order'!G485)","v":""},{"$f":"IF('1. Order'!H485=\"\",\"\",'1. Order'!H485)","v":""},{"$f":"IF('1. Order'!I485=\"\",\"\",'1. Order'!I485)","v":""},{"$f":"IF('1. Order'!J485=\"\",\"\",'1. Order'!J485)","v":""},{"$f":"IF('1. Order'!K485=\"\",\"\",'1. Order'!K485)","v":""},{"$f":"IF('1. Order'!L485=\"\",\"\",'1. Order'!L485)","v":""},{"$f":"IF('1. Order'!M485=\"\",\"\",'1. Order'!M485)","v":""},{"$f":"IF('1. Order'!N485=\"\",\"\",'1. Order'!N485)","v":""},{"$f":"IF('1. Order'!O485=\"\",\"\",'1. Order'!O485)","v":{"$error":"#N/A"}},{"$f":"IF('1. Order'!P485=\"\",\"\",'1. Order'!P485)","v":{"$error":"#N/A"}},{"$f":"IF('1. Order'!Q485=\"\",\"\",'1. Order'!Q485)","v":""},{"$f":"IF('1. Order'!S485=\"\",\"\",'1. Order'!S485)","v":""},{"$f":"IF('1. Order'!T485=\"\",\"\",'1. Order'!T485)","v":""},{"$f":"IF('1. Order'!W485=\"\",\"\",'1. Order'!W485)","v":""},{"$f":"IF('1. Order'!X485=\"\",\"\",'1. Order'!X485)","v":""},{"$f":"IF('1. Order'!Y485=\"\",\"\",'1. Order'!Y485)","v":"EUR"},{"$f":"IF('1. Order'!Z485=\"\",\"\",'1. Order'!Z485)","v":""},{"$f":"IF('1. Order'!AA485=\"\",\"\",'1. Order'!AA485)","v":""},{"$f":"IF('1. Order'!AB485=\"\",\"\",'1. Order'!AB485)","v":""},null,{"$f":"IF('1. Order'!AT485=\"\",\"\",'1. Order'!AT485)","v":""},{"$f":"IF('1. Order'!AU485=\"\",\"\",'1. Order'!AU485)","v":""},null,null,null,null,null,null,null,{"$f":"IF('1. Order'!AY485=\"\",\"\",'1. Order'!AY485)","v":""},{"$f":"IF('1. Order'!AZ485=\"\",\"\",'1. Order'!AZ485)","v":""},{"$f":"IF('1. Order'!BA485=\"\",\"\",'1. Order'!BA485)","v":""},{"$f":"IF('1. Order'!BB485=\"\",\"\",'1. Order'!BB485)","v":""},{"$f":"IF('1. Order'!BD485=\"\",\"\",'1. Order'!BD485)","v":""},{"$f":"IF('1. Order'!BE485=\"\",\"\",'1. Order'!BE485)","v":""},{"$f":"IF('1. Order'!BF485=\"\",\"\",'1. Order'!BF485)","v":""},{"$f":"IF('1. Order'!BG485=\"\",\"\",'1. Order'!BG485)","v":""},{"$f":"IF('1. Order'!BH485=\"\",\"\",'1. Order'!BH485)","v":"ZWO"}]
[{"$f":"IF('1. Order'!F486=\"\",\"\",'1. Order'!F486)","v":{"$error":"#N/A"}},{"$f":"IF('1. Order'!G486=\"\",\"\",'1. Order'!G486)","v":""},{"$f":"IF('1. Order'!H486=\"\",\"\",'1. Order'!H486)","v":""},{"$f":"IF('1. Order'!I486=\"\",\"\",'1. Order'!I486)","v":""},{"$f":"IF('1. Order'!J486=\"\",\"\",'1. Order'!J486)","v":""},{"$f":"IF('1. Order'!K486=\"\",\"\",'1. Order'!K486)","v":""},{"$f":"IF('1. Order'!L486=\"\",\"\",'1. Order'!L486)","v":""},{"$f":"IF('1. Order'!M486=\"\",\"\",'1. Order'!M486)","v":""},{"$f":"IF('1. Order'!N486=\"\",\"\",'1. Order'!N486)","v":""},{"$f":"IF('1. Order'!O486=\"\",\"\",'1. Order'!O486)","v":{"$error":"#N/A"}},{"$f":"IF('1. Order'!P486=\"\",\"\",'1. Order'!P486)","v":{"$error":"#N/A"}},{"$f":"IF('1. Order'!Q486=\"\",\"\",'1. Order'!Q486)","v":""},{"$f":"IF('1. Order'!S486=\"\",\"\",'1. Order'!S486)","v":""},{"$f":"IF('1. Order'!T486=\"\",\"\",'1. Order'!T486)","v":""},{"$f":"IF('1. Order'!W486=\"\",\"\",'1. Order'!W486)","v":""},{"$f":"IF('1. Order'!X486=\"\",\"\",'1. Order'!X486)","v":""},{"$f":"IF('1. Order'!Y486=\"\",\"\",'1. Order'!Y486)","v":"EUR"},{"$f":"IF('1. Order'!Z486=\"\",\"\",'1. Order'!Z486)","v":""},{"$f":"IF('1. Order'!AA486=\"\",\"\",'1. Order'!AA486)","v":""},{"$f":"IF('1. Order'!AB486=\"\",\"\",'1. Order'!AB486)","v":""},null,{"$f":"IF('1. Order'!AT486=\"\",\"\",'1. Order'!AT486)","v":""},{"$f":"IF('1. Order'!AU486=\"\",\"\",'1. Order'!AU486)","v":""},null,null,null,null,null,null,null,{"$f":"IF('1. Order'!AY486=\"\",\"\",'1. Order'!AY486)","v":""},{"$f":"IF('1. Order'!AZ486=\"\",\"\",'1. Order'!AZ486)","v":""},{"$f":"IF('1. Order'!BA486=\"\",\"\",'1. Order'!BA486)","v":""},{"$f":"IF('1. Order'!BB486=\"\",\"\",'1. Order'!BB486)","v":""},{"$f":"IF('1. Order'!BD486=\"\",\"\",'1. Order'!BD486)","v":""},{"$f":"IF('1. Order'!BE486=\"\",\"\",'1. Order'!BE486)","v":""},{"$f":"IF('1. Order'!BF486=\"\",\"\",'1. Order'!BF486)","v":""},{"$f":"IF('1. Order'!BG486=\"\",\"\",'1. Order'!BG486)","v":""},{"$f":"IF('1. Order'!BH486=\"\",\"\",'1. Order'!BH486)","v":"ZWO"}]
[{"$f":"IF('1. Order'!F487=\"\",\"\",'1. Order'!F487)","v":{"$error":"#N/A"}},{"$f":"IF('1. Order'!G487=\"\",\"\",'1. Order'!G487)","v":""},{"$f":"IF('1. Order'!H487=\"\",\"\",'1. Order'!H487)","v":""},{"$f":"IF('1. Order'!I487=\"\",\"\",'1. Order'!I487)","v":""},{"$f":"IF('1. Order'!J487=\"\",\"\",'1. Order'!J487)","v":""},{"$f":"IF('1. Order'!K487=\"\",\"\",'1. Order'!K487)","v":""},{"$f":"IF('1. Order'!L487=\"\",\"\",'1. Order'!L487)","v":""},{"$f":"IF('1. Order'!M487=\"\",\"\",'1. Order'!M487)","v":""},{"$f":"IF('1. Order'!N487=\"\",\"\",'1. Order'!N487)","v":""},{"$f":"IF('1. Order'!O487=\"\",\"\",'1. Order'!O487)","v":{"$error":"#N/A"}},{"$f":"IF('1. Order'!P487=\"\",\"\",'1. Order'!P487)","v":{"$error":"#N/A"}},{"$f":"IF('1. Order'!Q487=\"\",\"\",'1. Order'!Q487)","v":""},{"$f":"IF('1. Order'!S487=\"\",\"\",'1. Order'!S487)","v":""},{"$f":"IF('1. Order'!T487=\"\",\"\",'1. Order'!T487)","v":""},{"$f":"IF('1. Order'!W487=\"\",\"\",'1. Order'!W487)","v":""},{"$f":"IF('1. Order'!X487=\"\",\"\",'1. Order'!X487)","v":""},{"$f":"IF('1. Order'!Y487=\"\",\"\",'1. Order'!Y487)","v":"EUR"},{"$f":"IF('1. Order'!Z487=\"\",\"\",'1. Order'!Z487)","v":""},{"$f":"IF('1. Order'!AA487=\"\",\"\",'1. Order'!AA487)","v":""},{"$f":"IF('1. Order'!AB487=\"\",\"\",'1. Order'!AB487)","v":""},null,{"$f":"IF('1. Order'!AT487=\"\",\"\",'1. Order'!AT487)","v":""},{"$f":"IF('1. Order'!AU487=\"\",\"\",'1. Order'!AU487)","v":""},null,null,null,null,null,null,null,{"$f":"IF('1. Order'!AY487=\"\",\"\",'1. Order'!AY487)","v":""},{"$f":"IF('1. Order'!AZ487=\"\",\"\",'1. Order'!AZ487)","v":""},{"$f":"IF('1. Order'!BA487=\"\",\"\",'1. Order'!BA487)","v":""},{"$f":"IF('1. Order'!BB487=\"\",\"\",'1. Order'!BB487)","v":""},{"$f":"IF('1. Order'!BD487=\"\",\"\",'1. Order'!BD487)","v":""},{"$f":"IF('1. Order'!BE487=\"\",\"\",'1. Order'!BE487)","v":""},{"$f":"IF('1. Order'!BF487=\"\",\"\",'1. Order'!BF487)","v":""},{"$f":"IF('1. Order'!BG487=\"\",\"\",'1. Order'!BG487)","v":""},{"$f":"IF('1. Order'!BH487=\"\",\"\",'1. Order'!BH487)","v":"ZWO"}]
[{"$f":"IF('1. Order'!F488=\"\",\"\",'1. Order'!F488)","v":{"$error":"#N/A"}},{"$f":"IF('1. Order'!G488=\"\",\"\",'1. Order'!G488)","v":""},{"$f":"IF('1. Order'!H488=\"\",\"\",'1. Order'!H488)","v":""},{"$f":"IF('1. Order'!I488=\"\",\"\",'1. Order'!I488)","v":""},{"$f":"IF('1. Order'!J488=\"\",\"\",'1. Order'!J488)","v":""},{"$f":"IF('1. Order'!K488=\"\",\"\",'1. Order'!K488)","v":""},{"$f":"IF('1. Order'!L488=\"\",\"\",'1. Order'!L488)","v":""},{"$f":"IF('1. Order'!M488=\"\",\"\",'1. Order'!M488)","v":""},{"$f":"IF('1. Order'!N488=\"\",\"\",'1. Order'!N488)","v":""},{"$f":"IF('1. Order'!O488=\"\",\"\",'1. Order'!O488)","v":{"$error":"#N/A"}},{"$f":"IF('1. Order'!P488=\"\",\"\",'1. Order'!P488)","v":{"$error":"#N/A"}},{"$f":"IF('1. Order'!Q488=\"\",\"\",'1. Order'!Q488)","v":""},{"$f":"IF('1. Order'!S488=\"\",\"\",'1. Order'!S488)","v":""},{"$f":"IF('1. Order'!T488=\"\",\"\",'1. Order'!T488)","v":""},{"$f":"IF('1. Order'!W488=\"\",\"\",'1. Order'!W488)","v":""},{"$f":"IF('1. Order'!X488=\"\",\"\",'1. Order'!X488)","v":""},{"$f":"IF('1. Order'!Y488=\"\",\"\",'1. Order'!Y488)","v":"EUR"},{"$f":"IF('1. Order'!Z488=\"\",\"\",'1. Order'!Z488)","v":""},{"$f":"IF('1. Order'!AA488=\"\",\"\",'1. Order'!AA488)","v":""},{"$f":"IF('1. Order'!AB488=\"\",\"\",'1. Order'!AB488)","v":""},null,{"$f":"IF('1. Order'!AT488=\"\",\"\",'1. Order'!AT488)","v":""},{"$f":"IF('1. Order'!AU488=\"\",\"\",'1. Order'!AU488)","v":""},null,null,null,null,null,null,null,{"$f":"IF('1. Order'!AY488=\"\",\"\",'1. Order'!AY488)","v":""},{"$f":"IF('1. Order'!AZ488=\"\",\"\",'1. Order'!AZ488)","v":""},{"$f":"IF('1. Order'!BA488=\"\",\"\",'1. Order'!BA488)","v":""},{"$f":"IF('1. Order'!BB488=\"\",\"\",'1. Order'!BB488)","v":""},{"$f":"IF('1. Order'!BD488=\"\",\"\",'1. Order'!BD488)","v":""},{"$f":"IF('1. Order'!BE488=\"\",\"\",'1. Order'!BE488)","v":""},{"$f":"IF('1. Order'!BF488=\"\",\"\",'1. Order'!BF488)","v":""},{"$f":"IF('1. Order'!BG488=\"\",\"\",'1. Order'!BG488)","v":""},{"$f":"IF('1. Order'!BH488=\"\",\"\",'1. Order'!BH488)","v":"ZWO"}]
[{"$f":"IF('1. Order'!F489=\"\",\"\",'1. Order'!F489)","v":{"$error":"#N/A"}},{"$f":"IF('1. Order'!G489=\"\",\"\",'1. Order'!G489)","v":""},{"$f":"IF('1. Order'!H489=\"\",\"\",'1. Order'!H489)","v":""},{"$f":"IF('1. Order'!I489=\"\",\"\",'1. Order'!I489)","v":""},{"$f":"IF('1. Order'!J489=\"\",\"\",'1. Order'!J489)","v":""},{"$f":"IF('1. Order'!K489=\"\",\"\",'1. Order'!K489)","v":""},{"$f":"IF('1. Order'!L489=\"\",\"\",'1. Order'!L489)","v":""},{"$f":"IF('1. Order'!M489=\"\",\"\",'1. Order'!M489)","v":""},{"$f":"IF('1. Order'!N489=\"\",\"\",'1. Order'!N489)","v":""},{"$f":"IF('1. Order'!O489=\"\",\"\",'1. Order'!O489)","v":{"$error":"#N/A"}},{"$f":"IF('1. Order'!P489=\"\",\"\",'1. Order'!P489)","v":{"$error":"#N/A"}},{"$f":"IF('1. Order'!Q489=\"\",\"\",'1. Order'!Q489)","v":""},{"$f":"IF('1. Order'!S489=\"\",\"\",'1. Order'!S489)","v":""},{"$f":"IF('1. Order'!T489=\"\",\"\",'1. Order'!T489)","v":""},{"$f":"IF('1. Order'!W489=\"\",\"\",'1. Order'!W489)","v":""},{"$f":"IF('1. Order'!X489=\"\",\"\",'1. Order'!X489)","v":""},{"$f":"IF('1. Order'!Y489=\"\",\"\",'1. Order'!Y489)","v":"EUR"},{"$f":"IF('1. Order'!Z489=\"\",\"\",'1. Order'!Z489)","v":""},{"$f":"IF('1. Order'!AA489=\"\",\"\",'1. Order'!AA489)","v":""},{"$f":"IF('1. Order'!AB489=\"\",\"\",'1. Order'!AB489)","v":""},null,{"$f":"IF('1. Order'!AT489=\"\",\"\",'1. Order'!AT489)","v":""},{"$f":"IF('1. Order'!AU489=\"\",\"\",'1. Order'!AU489)","v":""},null,null,null,null,null,null,null,{"$f":"IF('1. Order'!AY489=\"\",\"\",'1. Order'!AY489)","v":""},{"$f":"IF('1. Order'!AZ489=\"\",\"\",'1. Order'!AZ489)","v":""},{"$f":"IF('1. Order'!BA489=\"\",\"\",'1. Order'!BA489)","v":""},{"$f":"IF('1. Order'!BB489=\"\",\"\",'1. Order'!BB489)","v":""},{"$f":"IF('1. Order'!BD489=\"\",\"\",'1. Order'!BD489)","v":""},{"$f":"IF('1. Order'!BE489=\"\",\"\",'1. Order'!BE489)","v":""},{"$f":"IF('1. Order'!BF489=\"\",\"\",'1. Order'!BF489)","v":""},{"$f":"IF('1. Order'!BG489=\"\",\"\",'1. Order'!BG489)","v":""},{"$f":"IF('1. Order'!BH489=\"\",\"\",'1. Order'!BH489)","v":"ZWO"}]
[{"$f":"IF('1. Order'!F490=\"\",\"\",'1. Order'!F490)","v":{"$error":"#N/A"}},{"$f":"IF('1. Order'!G490=\"\",\"\",'1. Order'!G490)","v":""},{"$f":"IF('1. Order'!H490=\"\",\"\",'1. Order'!H490)","v":""},{"$f":"IF('1. Order'!I490=\"\",\"\",'1. Order'!I490)","v":""},{"$f":"IF('1. Order'!J490=\"\",\"\",'1. Order'!J490)","v":""},{"$f":"IF('1. Order'!K490=\"\",\"\",'1. Order'!K490)","v":""},{"$f":"IF('1. Order'!L490=\"\",\"\",'1. Order'!L490)","v":""},{"$f":"IF('1. Order'!M490=\"\",\"\",'1. Order'!M490)","v":""},{"$f":"IF('1. Order'!N490=\"\",\"\",'1. Order'!N490)","v":""},{"$f":"IF('1. Order'!O490=\"\",\"\",'1. Order'!O490)","v":{"$error":"#N/A"}},{"$f":"IF('1. Order'!P490=\"\",\"\",'1. Order'!P490)","v":{"$error":"#N/A"}},{"$f":"IF('1. Order'!Q490=\"\",\"\",'1. Order'!Q490)","v":""},{"$f":"IF('1. Order'!S490=\"\",\"\",'1. Order'!S490)","v":""},{"$f":"IF('1. Order'!T490=\"\",\"\",'1. Order'!T490)","v":""},{"$f":"IF('1. Order'!W490=\"\",\"\",'1. Order'!W490)","v":""},{"$f":"IF('1. Order'!X490=\"\",\"\",'1. Order'!X490)","v":""},{"$f":"IF('1. Order'!Y490=\"\",\"\",'1. Order'!Y490)","v":"EUR"},{"$f":"IF('1. Order'!Z490=\"\",\"\",'1. Order'!Z490)","v":""},{"$f":"IF('1. Order'!AA490=\"\",\"\",'1. Order'!AA490)","v":""},{"$f":"IF('1. Order'!AB490=\"\",\"\",'1. Order'!AB490)","v":""},null,{"$f":"IF('1. Order'!AT490=\"\",\"\",'1. Order'!AT490)","v":""},{"$f":"IF('1. Order'!AU490=\"\",\"\",'1. Order'!AU490)","v":""},null,null,null,null,null,null,null,{"$f":"IF('1. Order'!AY490=\"\",\"\",'1. Order'!AY490)","v":""},{"$f":"IF('1. Order'!AZ490=\"\",\"\",'1. Order'!AZ490)","v":""},{"$f":"IF('1. Order'!BA490=\"\",\"\",'1. Order'!BA490)","v":""},{"$f":"IF('1. Order'!BB490=\"\",\"\",'1. Order'!BB490)","v":""},{"$f":"IF('1. Order'!BD490=\"\",\"\",'1. Order'!BD490)","v":""},{"$f":"IF('1. Order'!BE490=\"\",\"\",'1. Order'!BE490)","v":""},{"$f":"IF('1. Order'!BF490=\"\",\"\",'1. Order'!BF490)","v":""},{"$f":"IF('1. Order'!BG490=\"\",\"\",'1. Order'!BG490)","v":""},{"$f":"IF('1. Order'!BH490=\"\",\"\",'1. Order'!BH490)","v":"ZWO"}]
[{"$f":"IF('1. Order'!F491=\"\",\"\",'1. Order'!F491)","v":{"$error":"#N/A"}},{"$f":"IF('1. Order'!G491=\"\",\"\",'1. Order'!G491)","v":""},{"$f":"IF('1. Order'!H491=\"\",\"\",'1. Order'!H491)","v":""},{"$f":"IF('1. Order'!I491=\"\",\"\",'1. Order'!I491)","v":""},{"$f":"IF('1. Order'!J491=\"\",\"\",'1. Order'!J491)","v":""},{"$f":"IF('1. Order'!K491=\"\",\"\",'1. Order'!K491)","v":""},{"$f":"IF('1. Order'!L491=\"\",\"\",'1. Order'!L491)","v":""},{"$f":"IF('1. Order'!M491=\"\",\"\",'1. Order'!M491)","v":""},{"$f":"IF('1. Order'!N491=\"\",\"\",'1. Order'!N491)","v":""},{"$f":"IF('1. Order'!O491=\"\",\"\",'1. Order'!O491)","v":{"$error":"#N/A"}},{"$f":"IF('1. Order'!P491=\"\",\"\",'1. Order'!P491)","v":{"$error":"#N/A"}},{"$f":"IF('1. Order'!Q491=\"\",\"\",'1. Order'!Q491)","v":""},{"$f":"IF('1. Order'!S491=\"\",\"\",'1. Order'!S491)","v":""},{"$f":"IF('1. Order'!T491=\"\",\"\",'1. Order'!T491)","v":""},{"$f":"IF('1. Order'!W491=\"\",\"\",'1. Order'!W491)","v":""},{"$f":"IF('1. Order'!X491=\"\",\"\",'1. Order'!X491)","v":""},{"$f":"IF('1. Order'!Y491=\"\",\"\",'1. Order'!Y491)","v":"EUR"},{"$f":"IF('1. Order'!Z491=\"\",\"\",'1. Order'!Z491)","v":""},{"$f":"IF('1. Order'!AA491=\"\",\"\",'1. Order'!AA491)","v":""},{"$f":"IF('1. Order'!AB491=\"\",\"\",'1. Order'!AB491)","v":""},null,{"$f":"IF('1. Order'!AT491=\"\",\"\",'1. Order'!AT491)","v":""},{"$f":"IF('1. Order'!AU491=\"\",\"\",'1. Order'!AU491)","v":""},null,null,null,null,null,null,null,{"$f":"IF('1. Order'!AY491=\"\",\"\",'1. Order'!AY491)","v":""},{"$f":"IF('1. Order'!AZ491=\"\",\"\",'1. Order'!AZ491)","v":""},{"$f":"IF('1. Order'!BA491=\"\",\"\",'1. Order'!BA491)","v":""},{"$f":"IF('1. Order'!BB491=\"\",\"\",'1. Order'!BB491)","v":""},{"$f":"IF('1. Order'!BD491=\"\",\"\",'1. Order'!BD491)","v":""},{"$f":"IF('1. Order'!BE491=\"\",\"\",'1. Order'!BE491)","v":""},{"$f":"IF('1. Order'!BF491=\"\",\"\",'1. Order'!BF491)","v":""},{"$f":"IF('1. Order'!BG491=\"\",\"\",'1. Order'!BG491)","v":""},{"$f":"IF('1. Order'!BH491=\"\",\"\",'1. Order'!BH491)","v":"ZWO"}]
[{"$f":"IF('1. Order'!F492=\"\",\"\",'1. Order'!F492)","v":{"$error":"#N/A"}},{"$f":"IF('1. Order'!G492=\"\",\"\",'1. Order'!G492)","v":""},{"$f":"IF('1. Order'!H492=\"\",\"\",'1. Order'!H492)","v":""},{"$f":"IF('1. Order'!I492=\"\",\"\",'1. Order'!I492)","v":""},{"$f":"IF('1. Order'!J492=\"\",\"\",'1. Order'!J492)","v":""},{"$f":"IF('1. Order'!K492=\"\",\"\",'1. Order'!K492)","v":""},{"$f":"IF('1. Order'!L492=\"\",\"\",'1. Order'!L492)","v":""},{"$f":"IF('1. Order'!M492=\"\",\"\",'1. Order'!M492)","v":""},{"$f":"IF('1. Order'!N492=\"\",\"\",'1. Order'!N492)","v":""},{"$f":"IF('1. Order'!O492=\"\",\"\",'1. Order'!O492)","v":{"$error":"#N/A"}},{"$f":"IF('1. Order'!P492=\"\",\"\",'1. Order'!P492)","v":{"$error":"#N/A"}},{"$f":"IF('1. Order'!Q492=\"\",\"\",'1. Order'!Q492)","v":""},{"$f":"IF('1. Order'!S492=\"\",\"\",'1. Order'!S492)","v":""},{"$f":"IF('1. Order'!T492=\"\",\"\",'1. Order'!T492)","v":""},{"$f":"IF('1. Order'!W492=\"\",\"\",'1. Order'!W492)","v":""},{"$f":"IF('1. Order'!X492=\"\",\"\",'1. Order'!X492)","v":""},{"$f":"IF('1. Order'!Y492=\"\",\"\",'1. Order'!Y492)","v":"EUR"},{"$f":"IF('1. Order'!Z492=\"\",\"\",'1. Order'!Z492)","v":""},{"$f":"IF('1. Order'!AA492=\"\",\"\",'1. Order'!AA492)","v":""},{"$f":"IF('1. Order'!AB492=\"\",\"\",'1. Order'!AB492)","v":""},null,{"$f":"IF('1. Order'!AT492=\"\",\"\",'1. Order'!AT492)","v":""},{"$f":"IF('1. Order'!AU492=\"\",\"\",'1. Order'!AU492)","v":""},null,null,null,null,null,null,null,{"$f":"IF('1. Order'!AY492=\"\",\"\",'1. Order'!AY492)","v":""},{"$f":"IF('1. Order'!AZ492=\"\",\"\",'1. Order'!AZ492)","v":""},{"$f":"IF('1. Order'!BA492=\"\",\"\",'1. Order'!BA492)","v":""},{"$f":"IF('1. Order'!BB492=\"\",\"\",'1. Order'!BB492)","v":""},{"$f":"IF('1. Order'!BD492=\"\",\"\",'1. Order'!BD492)","v":""},{"$f":"IF('1. Order'!BE492=\"\",\"\",'1. Order'!BE492)","v":""},{"$f":"IF('1. Order'!BF492=\"\",\"\",'1. Order'!BF492)","v":""},{"$f":"IF('1. Order'!BG492=\"\",\"\",'1. Order'!BG492)","v":""},{"$f":"IF('1. Order'!BH492=\"\",\"\",'1. Order'!BH492)","v":"ZWO"}]
[{"$f":"IF('1. Order'!F493=\"\",\"\",'1. Order'!F493)","v":{"$error":"#N/A"}},{"$f":"IF('1. Order'!G493=\"\",\"\",'1. Order'!G493)","v":""},{"$f":"IF('1. Order'!H493=\"\",\"\",'1. Order'!H493)","v":""},{"$f":"IF('1. Order'!I493=\"\",\"\",'1. Order'!I493)","v":""},{"$f":"IF('1. Order'!J493=\"\",\"\",'1. Order'!J493)","v":""},{"$f":"IF('1. Order'!K493=\"\",\"\",'1. Order'!K493)","v":""},{"$f":"IF('1. Order'!L493=\"\",\"\",'1. Order'!L493)","v":""},{"$f":"IF('1. Order'!M493=\"\",\"\",'1. Order'!M493)","v":""},{"$f":"IF('1. Order'!N493=\"\",\"\",'1. Order'!N493)","v":""},{"$f":"IF('1. Order'!O493=\"\",\"\",'1. Order'!O493)","v":{"$error":"#N/A"}},{"$f":"IF('1. Order'!P493=\"\",\"\",'1. Order'!P493)","v":{"$error":"#N/A"}},{"$f":"IF('1. Order'!Q493=\"\",\"\",'1. Order'!Q493)","v":""},{"$f":"IF('1. Order'!S493=\"\",\"\",'1. Order'!S493)","v":""},{"$f":"IF('1. Order'!T493=\"\",\"\",'1. Order'!T493)","v":""},{"$f":"IF('1. Order'!W493=\"\",\"\",'1. Order'!W493)","v":""},{"$f":"IF('1. Order'!X493=\"\",\"\",'1. Order'!X493)","v":""},{"$f":"IF('1. Order'!Y493=\"\",\"\",'1. Order'!Y493)","v":"EUR"},{"$f":"IF('1. Order'!Z493=\"\",\"\",'1. Order'!Z493)","v":""},{"$f":"IF('1. Order'!AA493=\"\",\"\",'1. Order'!AA493)","v":""},{"$f":"IF('1. Order'!AB493=\"\",\"\",'1. Order'!AB493)","v":""},null,{"$f":"IF('1. Order'!AT493=\"\",\"\",'1. Order'!AT493)","v":""},{"$f":"IF('1. Order'!AU493=\"\",\"\",'1. Order'!AU493)","v":""},null,null,null,null,null,null,null,{"$f":"IF('1. Order'!AY493=\"\",\"\",'1. Order'!AY493)","v":""},{"$f":"IF('1. Order'!AZ493=\"\",\"\",'1. Order'!AZ493)","v":""},{"$f":"IF('1. Order'!BA493=\"\",\"\",'1. Order'!BA493)","v":""},{"$f":"IF('1. Order'!BB493=\"\",\"\",'1. Order'!BB493)","v":""},{"$f":"IF('1. Order'!BD493=\"\",\"\",'1. Order'!BD493)","v":""},{"$f":"IF('1. Order'!BE493=\"\",\"\",'1. Order'!BE493)","v":""},{"$f":"IF('1. Order'!BF493=\"\",\"\",'1. Order'!BF493)","v":""},{"$f":"IF('1. Order'!BG493=\"\",\"\",'1. Order'!BG493)","v":""},{"$f":"IF('1. Order'!BH493=\"\",\"\",'1. Order'!BH493)","v":"ZWO"}]
[{"$f":"IF('1. Order'!F494=\"\",\"\",'1. Order'!F494)","v":{"$error":"#N/A"}},{"$f":"IF('1. Order'!G494=\"\",\"\",'1. Order'!G494)","v":""},{"$f":"IF('1. Order'!H494=\"\",\"\",'1. Order'!H494)","v":""},{"$f":"IF('1. Order'!I494=\"\",\"\",'1. Order'!I494)","v":""},{"$f":"IF('1. Order'!J494=\"\",\"\",'1. Order'!J494)","v":""},{"$f":"IF('1. Order'!K494=\"\",\"\",'1. Order'!K494)","v":""},{"$f":"IF('1. Order'!L494=\"\",\"\",'1. Order'!L494)","v":""},{"$f":"IF('1. Order'!M494=\"\",\"\",'1. Order'!M494)","v":""},{"$f":"IF('1. Order'!N494=\"\",\"\",'1. Order'!N494)","v":""},{"$f":"IF('1. Order'!O494=\"\",\"\",'1. Order'!O494)","v":{"$error":"#N/A"}},{"$f":"IF('1. Order'!P494=\"\",\"\",'1. Order'!P494)","v":{"$error":"#N/A"}},{"$f":"IF('1. Order'!Q494=\"\",\"\",'1. Order'!Q494)","v":""},{"$f":"IF('1. Order'!S494=\"\",\"\",'1. Order'!S494)","v":""},{"$f":"IF('1. Order'!T494=\"\",\"\",'1. Order'!T494)","v":""},{"$f":"IF('1. Order'!W494=\"\",\"\",'1. Order'!W494)","v":""},{"$f":"IF('1. Order'!X494=\"\",\"\",'1. Order'!X494)","v":""},{"$f":"IF('1. Order'!Y494=\"\",\"\",'1. Order'!Y494)","v":"EUR"},{"$f":"IF('1. Order'!Z494=\"\",\"\",'1. Order'!Z494)","v":""},{"$f":"IF('1. Order'!AA494=\"\",\"\",'1. Order'!AA494)","v":""},{"$f":"IF('1. Order'!AB494=\"\",\"\",'1. Order'!AB494)","v":""},null,{"$f":"IF('1. Order'!AT494=\"\",\"\",'1. Order'!AT494)","v":""},{"$f":"IF('1. Order'!AU494=\"\",\"\",'1. Order'!AU494)","v":""},null,null,null,null,null,null,null,{"$f":"IF('1. Order'!AY494=\"\",\"\",'1. Order'!AY494)","v":""},{"$f":"IF('1. Order'!AZ494=\"\",\"\",'1. Order'!AZ494)","v":""},{"$f":"IF('1. Order'!BA494=\"\",\"\",'1. Order'!BA494)","v":""},{"$f":"IF('1. Order'!BB494=\"\",\"\",'1. Order'!BB494)","v":""},{"$f":"IF('1. Order'!BD494=\"\",\"\",'1. Order'!BD494)","v":""},{"$f":"IF('1. Order'!BE494=\"\",\"\",'1. Order'!BE494)","v":""},{"$f":"IF('1. Order'!BF494=\"\",\"\",'1. Order'!BF494)","v":""},{"$f":"IF('1. Order'!BG494=\"\",\"\",'1. Order'!BG494)","v":""},{"$f":"IF('1. Order'!BH494=\"\",\"\",'1. Order'!BH494)","v":"ZWO"}]
[{"$f":"IF('1. Order'!F495=\"\",\"\",'1. Order'!F495)","v":{"$error":"#N/A"}},{"$f":"IF('1. Order'!G495=\"\",\"\",'1. Order'!G495)","v":""},{"$f":"IF('1. Order'!H495=\"\",\"\",'1. Order'!H495)","v":""},{"$f":"IF('1. Order'!I495=\"\",\"\",'1. Order'!I495)","v":""},{"$f":"IF('1. Order'!J495=\"\",\"\",'1. Order'!J495)","v":""},{"$f":"IF('1. Order'!K495=\"\",\"\",'1. Order'!K495)","v":""},{"$f":"IF('1. Order'!L495=\"\",\"\",'1. Order'!L495)","v":""},{"$f":"IF('1. Order'!M495=\"\",\"\",'1. Order'!M495)","v":""},{"$f":"IF('1. Order'!N495=\"\",\"\",'1. Order'!N495)","v":""},{"$f":"IF('1. Order'!O495=\"\",\"\",'1. Order'!O495)","v":{"$error":"#N/A"}},{"$f":"IF('1. Order'!P495=\"\",\"\",'1. Order'!P495)","v":{"$error":"#N/A"}},{"$f":"IF('1. Order'!Q495=\"\",\"\",'1. Order'!Q495)","v":""},{"$f":"IF('1. Order'!S495=\"\",\"\",'1. Order'!S495)","v":""},{"$f":"IF('1. Order'!T495=\"\",\"\",'1. Order'!T495)","v":""},{"$f":"IF('1. Order'!W495=\"\",\"\",'1. Order'!W495)","v":""},{"$f":"IF('1. Order'!X495=\"\",\"\",'1. Order'!X495)","v":""},{"$f":"IF('1. Order'!Y495=\"\",\"\",'1. Order'!Y495)","v":"EUR"},{"$f":"IF('1. Order'!Z495=\"\",\"\",'1. Order'!Z495)","v":""},{"$f":"IF('1. Order'!AA495=\"\",\"\",'1. Order'!AA495)","v":""},{"$f":"IF('1. Order'!AB495=\"\",\"\",'1. Order'!AB495)","v":""},null,{"$f":"IF('1. Order'!AT495=\"\",\"\",'1. Order'!AT495)","v":""},{"$f":"IF('1. Order'!AU495=\"\",\"\",'1. Order'!AU495)","v":""},null,null,null,null,null,null,null,{"$f":"IF('1. Order'!AY495=\"\",\"\",'1. Order'!AY495)","v":""},{"$f":"IF('1. Order'!AZ495=\"\",\"\",'1. Order'!AZ495)","v":""},{"$f":"IF('1. Order'!BA495=\"\",\"\",'1. Order'!BA495)","v":""},{"$f":"IF('1. Order'!BB495=\"\",\"\",'1. Order'!BB495)","v":""},{"$f":"IF('1. Order'!BD495=\"\",\"\",'1. Order'!BD495)","v":""},{"$f":"IF('1. Order'!BE495=\"\",\"\",'1. Order'!BE495)","v":""},{"$f":"IF('1. Order'!BF495=\"\",\"\",'1. Order'!BF495)","v":""},{"$f":"IF('1. Order'!BG495=\"\",\"\",'1. Order'!BG495)","v":""},{"$f":"IF('1. Order'!BH495=\"\",\"\",'1. Order'!BH495)","v":"ZWO"}]
[{"$f":"IF('1. Order'!F496=\"\",\"\",'1. Order'!F496)","v":{"$error":"#N/A"}},{"$f":"IF('1. Order'!G496=\"\",\"\",'1. Order'!G496)","v":""},{"$f":"IF('1. Order'!H496=\"\",\"\",'1. Order'!H496)","v":""},{"$f":"IF('1. Order'!I496=\"\",\"\",'1. Order'!I496)","v":""},{"$f":"IF('1. Order'!J496=\"\",\"\",'1. Order'!J496)","v":""},{"$f":"IF('1. Order'!K496=\"\",\"\",'1. Order'!K496)","v":""},{"$f":"IF('1. Order'!L496=\"\",\"\",'1. Order'!L496)","v":""},{"$f":"IF('1. Order'!M496=\"\",\"\",'1. Order'!M496)","v":""},{"$f":"IF('1. Order'!N496=\"\",\"\",'1. Order'!N496)","v":""},{"$f":"IF('1. Order'!O496=\"\",\"\",'1. Order'!O496)","v":{"$error":"#N/A"}},{"$f":"IF('1. Order'!P496=\"\",\"\",'1. Order'!P496)","v":{"$error":"#N/A"}},{"$f":"IF('1. Order'!Q496=\"\",\"\",'1. Order'!Q496)","v":""},{"$f":"IF('1. Order'!S496=\"\",\"\",'1. Order'!S496)","v":""},{"$f":"IF('1. Order'!T496=\"\",\"\",'1. Order'!T496)","v":""},{"$f":"IF('1. Order'!W496=\"\",\"\",'1. Order'!W496)","v":""},{"$f":"IF('1. Order'!X496=\"\",\"\",'1. Order'!X496)","v":""},{"$f":"IF('1. Order'!Y496=\"\",\"\",'1. Order'!Y496)","v":"EUR"},{"$f":"IF('1. Order'!Z496=\"\",\"\",'1. Order'!Z496)","v":""},{"$f":"IF('1. Order'!AA496=\"\",\"\",'1. Order'!AA496)","v":""},{"$f":"IF('1. Order'!AB496=\"\",\"\",'1. Order'!AB496)","v":""},null,{"$f":"IF('1. Order'!AT496=\"\",\"\",'1. Order'!AT496)","v":""},{"$f":"IF('1. Order'!AU496=\"\",\"\",'1. Order'!AU496)","v":""},null,null,null,null,null,null,null,{"$f":"IF('1. Order'!AY496=\"\",\"\",'1. Order'!AY496)","v":""},{"$f":"IF('1. Order'!AZ496=\"\",\"\",'1. Order'!AZ496)","v":""},{"$f":"IF('1. Order'!BA496=\"\",\"\",'1. Order'!BA496)","v":""},{"$f":"IF('1. Order'!BB496=\"\",\"\",'1. Order'!BB496)","v":""},{"$f":"IF('1. Order'!BD496=\"\",\"\",'1. Order'!BD496)","v":""},{"$f":"IF('1. Order'!BE496=\"\",\"\",'1. Order'!BE496)","v":""},{"$f":"IF('1. Order'!BF496=\"\",\"\",'1. Order'!BF496)","v":""},{"$f":"IF('1. Order'!BG496=\"\",\"\",'1. Order'!BG496)","v":""},{"$f":"IF('1. Order'!BH496=\"\",\"\",'1. Order'!BH496)","v":"ZWO"}]
[{"$f":"IF('1. Order'!F497=\"\",\"\",'1. Order'!F497)","v":{"$error":"#N/A"}},{"$f":"IF('1. Order'!G497=\"\",\"\",'1. Order'!G497)","v":""},{"$f":"IF('1. Order'!H497=\"\",\"\",'1. Order'!H497)","v":""},{"$f":"IF('1. Order'!I497=\"\",\"\",'1. Order'!I497)","v":""},{"$f":"IF('1. Order'!J497=\"\",\"\",'1. Order'!J497)","v":""},{"$f":"IF('1. Order'!K497=\"\",\"\",'1. Order'!K497)","v":""},{"$f":"IF('1. Order'!L497=\"\",\"\",'1. Order'!L497)","v":""},{"$f":"IF('1. Order'!M497=\"\",\"\",'1. Order'!M497)","v":""},{"$f":"IF('1. Order'!N497=\"\",\"\",'1. Order'!N497)","v":""},{"$f":"IF('1. Order'!O497=\"\",\"\",'1. Order'!O497)","v":{"$error":"#N/A"}},{"$f":"IF('1. Order'!P497=\"\",\"\",'1. Order'!P497)","v":{"$error":"#N/A"}},{"$f":"IF('1. Order'!Q497=\"\",\"\",'1. Order'!Q497)","v":""},{"$f":"IF('1. Order'!S497=\"\",\"\",'1. Order'!S497)","v":""},{"$f":"IF('1. Order'!T497=\"\",\"\",'1. Order'!T497)","v":""},{"$f":"IF('1. Order'!W497=\"\",\"\",'1. Order'!W497)","v":""},{"$f":"IF('1. Order'!X497=\"\",\"\",'1. Order'!X497)","v":""},{"$f":"IF('1. Order'!Y497=\"\",\"\",'1. Order'!Y497)","v":"EUR"},{"$f":"IF('1. Order'!Z497=\"\",\"\",'1. Order'!Z497)","v":""},{"$f":"IF('1. Order'!AA497=\"\",\"\",'1. Order'!AA497)","v":""},{"$f":"IF('1. Order'!AB497=\"\",\"\",'1. Order'!AB497)","v":""},null,{"$f":"IF('1. Order'!AT497=\"\",\"\",'1. Order'!AT497)","v":""},{"$f":"IF('1. Order'!AU497=\"\",\"\",'1. Order'!AU497)","v":""},null,null,null,null,null,null,null,{"$f":"IF('1. Order'!AY497=\"\",\"\",'1. Order'!AY497)","v":""},{"$f":"IF('1. Order'!AZ497=\"\",\"\",'1. Order'!AZ497)","v":""},{"$f":"IF('1. Order'!BA497=\"\",\"\",'1. Order'!BA497)","v":""},{"$f":"IF('1. Order'!BB497=\"\",\"\",'1. Order'!BB497)","v":""},{"$f":"IF('1. Order'!BD497=\"\",\"\",'1. Order'!BD497)","v":""},{"$f":"IF('1. Order'!BE497=\"\",\"\",'1. Order'!BE497)","v":""},{"$f":"IF('1. Order'!BF497=\"\",\"\",'1. Order'!BF497)","v":""},{"$f":"IF('1. Order'!BG497=\"\",\"\",'1. Order'!BG497)","v":""},{"$f":"IF('1. Order'!BH497=\"\",\"\",'1. Order'!BH497)","v":"ZWO"}]
[{"$f":"IF('1. Order'!F498=\"\",\"\",'1. Order'!F498)","v":{"$error":"#N/A"}},{"$f":"IF('1. Order'!G498=\"\",\"\",'1. Order'!G498)","v":""},{"$f":"IF('1. Order'!H498=\"\",\"\",'1. Order'!H498)","v":""},{"$f":"IF('1. Order'!I498=\"\",\"\",'1. Order'!I498)","v":""},{"$f":"IF('1. Order'!J498=\"\",\"\",'1. Order'!J498)","v":""},{"$f":"IF('1. Order'!K498=\"\",\"\",'1. Order'!K498)","v":""},{"$f":"IF('1. Order'!L498=\"\",\"\",'1. Order'!L498)","v":""},{"$f":"IF('1. Order'!M498=\"\",\"\",'1. Order'!M498)","v":""},{"$f":"IF('1. Order'!N498=\"\",\"\",'1. Order'!N498)","v":""},{"$f":"IF('1. Order'!O498=\"\",\"\",'1. Order'!O498)","v":{"$error":"#N/A"}},{"$f":"IF('1. Order'!P498=\"\",\"\",'1. Order'!P498)","v":{"$error":"#N/A"}},{"$f":"IF('1. Order'!Q498=\"\",\"\",'1. Order'!Q498)","v":""},{"$f":"IF('1. Order'!S498=\"\",\"\",'1. Order'!S498)","v":""},{"$f":"IF('1. Order'!T498=\"\",\"\",'1. Order'!T498)","v":""},{"$f":"IF('1. Order'!W498=\"\",\"\",'1. Order'!W498)","v":""},{"$f":"IF('1. Order'!X498=\"\",\"\",'1. Order'!X498)","v":""},{"$f":"IF('1. Order'!Y498=\"\",\"\",'1. Order'!Y498)","v":"EUR"},{"$f":"IF('1. Order'!Z498=\"\",\"\",'1. Order'!Z498)","v":""},{"$f":"IF('1. Order'!AA498=\"\",\"\",'1. Order'!AA498)","v":""},{"$f":"IF('1. Order'!AB498=\"\",\"\",'1. Order'!AB498)","v":""},null,{"$f":"IF('1. Order'!AT498=\"\",\"\",'1. Order'!AT498)","v":""},{"$f":"IF('1. Order'!AU498=\"\",\"\",'1. Order'!AU498)","v":""},null,null,null,null,null,null,null,{"$f":"IF('1. Order'!AY498=\"\",\"\",'1. Order'!AY498)","v":""},{"$f":"IF('1. Order'!AZ498=\"\",\"\",'1. Order'!AZ498)","v":""},{"$f":"IF('1. Order'!BA498=\"\",\"\",'1. Order'!BA498)","v":""},{"$f":"IF('1. Order'!BB498=\"\",\"\",'1. Order'!BB498)","v":""},{"$f":"IF('1. Order'!BD498=\"\",\"\",'1. Order'!BD498)","v":""},{"$f":"IF('1. Order'!BE498=\"\",\"\",'1. Order'!BE498)","v":""},{"$f":"IF('1. Order'!BF498=\"\",\"\",'1. Order'!BF498)","v":""},{"$f":"IF('1. Order'!BG498=\"\",\"\",'1. Order'!BG498)","v":""},{"$f":"IF('1. Order'!BH498=\"\",\"\",'1. Order'!BH498)","v":"ZWO"}]
[{"$f":"IF('1. Order'!F499=\"\",\"\",'1. Order'!F499)","v":{"$error":"#N/A"}},{"$f":"IF('1. Order'!G499=\"\",\"\",'1. Order'!G499)","v":""},{"$f":"IF('1. Order'!H499=\"\",\"\",'1. Order'!H499)","v":""},{"$f":"IF('1. Order'!I499=\"\",\"\",'1. Order'!I499)","v":""},{"$f":"IF('1. Order'!J499=\"\",\"\",'1. Order'!J499)","v":""},{"$f":"IF('1. Order'!K499=\"\",\"\",'1. Order'!K499)","v":""},{"$f":"IF('1. Order'!L499=\"\",\"\",'1. Order'!L499)","v":""},{"$f":"IF('1. Order'!M499=\"\",\"\",'1. Order'!M499)","v":""},{"$f":"IF('1. Order'!N499=\"\",\"\",'1. Order'!N499)","v":""},{"$f":"IF('1. Order'!O499=\"\",\"\",'1. Order'!O499)","v":{"$error":"#N/A"}},{"$f":"IF('1. Order'!P499=\"\",\"\",'1. Order'!P499)","v":{"$error":"#N/A"}},{"$f":"IF('1. Order'!Q499=\"\",\"\",'1. Order'!Q499)","v":""},{"$f":"IF('1. Order'!S499=\"\",\"\",'1. Order'!S499)","v":""},{"$f":"IF('1. Order'!T499=\"\",\"\",'1. Order'!T499)","v":""},{"$f":"IF('1. Order'!W499=\"\",\"\",'1. Order'!W499)","v":""},{"$f":"IF('1. Order'!X499=\"\",\"\",'1. Order'!X499)","v":""},{"$f":"IF('1. Order'!Y499=\"\",\"\",'1. Order'!Y499)","v":"EUR"},{"$f":"IF('1. Order'!Z499=\"\",\"\",'1. Order'!Z499)","v":""},{"$f":"IF('1. Order'!AA499=\"\",\"\",'1. Order'!AA499)","v":""},{"$f":"IF('1. Order'!AB499=\"\",\"\",'1. Order'!AB499)","v":""},null,{"$f":"IF('1. Order'!AT499=\"\",\"\",'1. Order'!AT499)","v":""},{"$f":"IF('1. Order'!AU499=\"\",\"\",'1. Order'!AU499)","v":""},null,null,null,null,null,null,null,{"$f":"IF('1. Order'!AY499=\"\",\"\",'1. Order'!AY499)","v":""},{"$f":"IF('1. Order'!AZ499=\"\",\"\",'1. Order'!AZ499)","v":""},{"$f":"IF('1. Order'!BA499=\"\",\"\",'1. Order'!BA499)","v":""},{"$f":"IF('1. Order'!BB499=\"\",\"\",'1. Order'!BB499)","v":""},{"$f":"IF('1. Order'!BD499=\"\",\"\",'1. Order'!BD499)","v":""},{"$f":"IF('1. Order'!BE499=\"\",\"\",'1. Order'!BE499)","v":""},{"$f":"IF('1. Order'!BF499=\"\",\"\",'1. Order'!BF499)","v":""},{"$f":"IF('1. Order'!BG499=\"\",\"\",'1. Order'!BG499)","v":""},{"$f":"IF('1. Order'!BH499=\"\",\"\",'1. Order'!BH499)","v":"ZWO"}]
[{"$f":"IF('1. Order'!F500=\"\",\"\",'1. Order'!F500)","v":{"$error":"#N/A"}},{"$f":"IF('1. Order'!G500=\"\",\"\",'1. Order'!G500)","v":""},{"$f":"IF('1. Order'!H500=\"\",\"\",'1. Order'!H500)","v":""},{"$f":"IF('1. Order'!I500=\"\",\"\",'1. Order'!I500)","v":""},{"$f":"IF('1. Order'!J500=\"\",\"\",'1. Order'!J500)","v":""},{"$f":"IF('1. Order'!K500=\"\",\"\",'1. Order'!K500)","v":""},{"$f":"IF('1. Order'!L500=\"\",\"\",'1. Order'!L500)","v":""},{"$f":"IF('1. Order'!M500=\"\",\"\",'1. Order'!M500)","v":""},{"$f":"IF('1. Order'!N500=\"\",\"\",'1. Order'!N500)","v":""},{"$f":"IF('1. Order'!O500=\"\",\"\",'1. Order'!O500)","v":{"$error":"#N/A"}},{"$f":"IF('1. Order'!P500=\"\",\"\",'1. Order'!P500)","v":{"$error":"#N/A"}},{"$f":"IF('1. Order'!Q500=\"\",\"\",'1. Order'!Q500)","v":""},{"$f":"IF('1. Order'!S500=\"\",\"\",'1. Order'!S500)","v":""},{"$f":"IF('1. Order'!T500=\"\",\"\",'1. Order'!T500)","v":""},{"$f":"IF('1. Order'!W500=\"\",\"\",'1. Order'!W500)","v":""},{"$f":"IF('1. Order'!X500=\"\",\"\",'1. Order'!X500)","v":""},{"$f":"IF('1. Order'!Y500=\"\",\"\",'1. Order'!Y500)","v":"EUR"},{"$f":"IF('1. Order'!Z500=\"\",\"\",'1. Order'!Z500)","v":""},{"$f":"IF('1. Order'!AA500=\"\",\"\",'1. Order'!AA500)","v":""},{"$f":"IF('1. Order'!AB500=\"\",\"\",'1. Order'!AB500)","v":""},null,{"$f":"IF('1. Order'!AT500=\"\",\"\",'1. Order'!AT500)","v":""},{"$f":"IF('1. Order'!AU500=\"\",\"\",'1. Order'!AU500)","v":""},null,null,null,null,null,null,null,{"$f":"IF('1. Order'!AY500=\"\",\"\",'1. Order'!AY500)","v":""},{"$f":"IF('1. Order'!AZ500=\"\",\"\",'1. Order'!AZ500)","v":""},{"$f":"IF('1. Order'!BA500=\"\",\"\",'1. Order'!BA500)","v":""},{"$f":"IF('1. Order'!BB500=\"\",\"\",'1. Order'!BB500)","v":""},{"$f":"IF('1. Order'!BD500=\"\",\"\",'1. Order'!BD500)","v":""},{"$f":"IF('1. Order'!BE500=\"\",\"\",'1. Order'!BE500)","v":""},{"$f":"IF('1. Order'!BF500=\"\",\"\",'1. Order'!BF500)","v":""},{"$f":"IF('1. Order'!BG500=\"\",\"\",'1. Order'!BG500)","v":""},{"$f":"IF('1. Order'!BH500=\"\",\"\",'1. Order'!BH500)","v":"ZWO"}]
[{"$f":"IF('1. Order'!F501=\"\",\"\",'1. Order'!F501)","v":{"$error":"#N/A"}},{"$f":"IF('1. Order'!G501=\"\",\"\",'1. Order'!G501)","v":""},{"$f":"IF('1. Order'!H501=\"\",\"\",'1. Order'!H501)","v":""},{"$f":"IF('1. Order'!I501=\"\",\"\",'1. Order'!I501)","v":""},{"$f":"IF('1. Order'!J501=\"\",\"\",'1. Order'!J501)","v":""},{"$f":"IF('1. Order'!K501=\"\",\"\",'1. Order'!K501)","v":""},{"$f":"IF('1. Order'!L501=\"\",\"\",'1. Order'!L501)","v":""},{"$f":"IF('1. Order'!M501=\"\",\"\",'1. Order'!M501)","v":""},{"$f":"IF('1. Order'!N501=\"\",\"\",'1. Order'!N501)","v":""},{"$f":"IF('1. Order'!O501=\"\",\"\",'1. Order'!O501)","v":{"$error":"#N/A"}},{"$f":"IF('1. Order'!P501=\"\",\"\",'1. Order'!P501)","v":{"$error":"#N/A"}},{"$f":"IF('1. Order'!Q501=\"\",\"\",'1. Order'!Q501)","v":""},{"$f":"IF('1. Order'!S501=\"\",\"\",'1. Order'!S501)","v":""},{"$f":"IF('1. Order'!T501=\"\",\"\",'1. Order'!T501)","v":""},{"$f":"IF('1. Order'!W501=\"\",\"\",'1. Order'!W501)","v":""},{"$f":"IF('1. Order'!X501=\"\",\"\",'1. Order'!X501)","v":""},{"$f":"IF('1. Order'!Y501=\"\",\"\",'1. Order'!Y501)","v":"EUR"},{"$f":"IF('1. Order'!Z501=\"\",\"\",'1. Order'!Z501)","v":""},{"$f":"IF('1. Order'!AA501=\"\",\"\",'1. Order'!AA501)","v":""},{"$f":"IF('1. Order'!AB501=\"\",\"\",'1. Order'!AB501)","v":""},null,{"$f":"IF('1. Order'!AT501=\"\",\"\",'1. Order'!AT501)","v":""},{"$f":"IF('1. Order'!AU501=\"\",\"\",'1. Order'!AU501)","v":""},null,null,null,null,null,null,null,{"$f":"IF('1. Order'!AY501=\"\",\"\",'1. Order'!AY501)","v":""},{"$f":"IF('1. Order'!AZ501=\"\",\"\",'1. Order'!AZ501)","v":""},{"$f":"IF('1. Order'!BA501=\"\",\"\",'1. Order'!BA501)","v":""},{"$f":"IF('1. Order'!BB501=\"\",\"\",'1. Order'!BB501)","v":""},{"$f":"IF('1. Order'!BD501=\"\",\"\",'1. Order'!BD501)","v":""},{"$f":"IF('1. Order'!BE501=\"\",\"\",'1. Order'!BE501)","v":""},{"$f":"IF('1. Order'!BF501=\"\",\"\",'1. Order'!BF501)","v":""},{"$f":"IF('1. Order'!BG501=\"\",\"\",'1. Order'!BG501)","v":""},{"$f":"IF('1. Order'!BH501=\"\",\"\",'1. Order'!BH501)","v":"ZWO"}]
[{"$f":"IF('1. Order'!F502=\"\",\"\",'1. Order'!F502)","v":{"$error":"#N/A"}},{"$f":"IF('1. Order'!G502=\"\",\"\",'1. Order'!G502)","v":""},{"$f":"IF('1. Order'!H502=\"\",\"\",'1. Order'!H502)","v":""},{"$f":"IF('1. Order'!I502=\"\",\"\",'1. Order'!I502)","v":""},{"$f":"IF('1. Order'!J502=\"\",\"\",'1. Order'!J502)","v":""},{"$f":"IF('1. Order'!K502=\"\",\"\",'1. Order'!K502)","v":""},{"$f":"IF('1. Order'!L502=\"\",\"\",'1. Order'!L502)","v":""},{"$f":"IF('1. Order'!M502=\"\",\"\",'1. Order'!M502)","v":""},{"$f":"IF('1. Order'!N502=\"\",\"\",'1. Order'!N502)","v":""},{"$f":"IF('1. Order'!O502=\"\",\"\",'1. Order'!O502)","v":{"$error":"#N/A"}},{"$f":"IF('1. Order'!P502=\"\",\"\",'1. Order'!P502)","v":{"$error":"#N/A"}},{"$f":"IF('1. Order'!Q502=\"\",\"\",'1. Order'!Q502)","v":""},{"$f":"IF('1. Order'!S502=\"\",\"\",'1. Order'!S502)","v":""},{"$f":"IF('1. Order'!T502=\"\",\"\",'1. Order'!T502)","v":""},{"$f":"IF('1. Order'!W502=\"\",\"\",'1. Order'!W502)","v":""},{"$f":"IF('1. Order'!X502=\"\",\"\",'1. Order'!X502)","v":""},{"$f":"IF('1. Order'!Y502=\"\",\"\",'1. Order'!Y502)","v":"EUR"},{"$f":"IF('1. Order'!Z502=\"\",\"\",'1. Order'!Z502)","v":""},{"$f":"IF('1. Order'!AA502=\"\",\"\",'1. Order'!AA502)","v":""},{"$f":"IF('1. Order'!AB502=\"\",\"\",'1. Order'!AB502)","v":""},null,{"$f":"IF('1. Order'!AT502=\"\",\"\",'1. Order'!AT502)","v":""},{"$f":"IF('1. Order'!AU502=\"\",\"\",'1. Order'!AU502)","v":""},null,null,null,null,null,null,null,{"$f":"IF('1. Order'!AY502=\"\",\"\",'1. Order'!AY502)","v":""},{"$f":"IF('1. Order'!AZ502=\"\",\"\",'1. Order'!AZ502)","v":""},{"$f":"IF('1. Order'!BA502=\"\",\"\",'1. Order'!BA502)","v":""},{"$f":"IF('1. Order'!BB502=\"\",\"\",'1. Order'!BB502)","v":""},{"$f":"IF('1. Order'!BD502=\"\",\"\",'1. Order'!BD502)","v":""},{"$f":"IF('1. Order'!BE502=\"\",\"\",'1. Order'!BE502)","v":""},{"$f":"IF('1. Order'!BF502=\"\",\"\",'1. Order'!BF502)","v":""},{"$f":"IF('1. Order'!BG502=\"\",\"\",'1. Order'!BG502)","v":""},{"$f":"IF('1. Order'!BH502=\"\",\"\",'1. Order'!BH502)","v":"ZWO"}]
[{"$f":"IF('1. Order'!F503=\"\",\"\",'1. Order'!F503)","v":{"$error":"#N/A"}},{"$f":"IF('1. Order'!G503=\"\",\"\",'1. Order'!G503)","v":""},{"$f":"IF('1. Order'!H503=\"\",\"\",'1. Order'!H503)","v":""},{"$f":"IF('1. Order'!I503=\"\",\"\",'1. Order'!I503)","v":""},{"$f":"IF('1. Order'!J503=\"\",\"\",'1. Order'!J503)","v":""},{"$f":"IF('1. Order'!K503=\"\",\"\",'1. Order'!K503)","v":""},{"$f":"IF('1. Order'!L503=\"\",\"\",'1. Order'!L503)","v":""},{"$f":"IF('1. Order'!M503=\"\",\"\",'1. Order'!M503)","v":""},{"$f":"IF('1. Order'!N503=\"\",\"\",'1. Order'!N503)","v":""},{"$f":"IF('1. Order'!O503=\"\",\"\",'1. Order'!O503)","v":{"$error":"#N/A"}},{"$f":"IF('1. Order'!P503=\"\",\"\",'1. Order'!P503)","v":{"$error":"#N/A"}},{"$f":"IF('1. Order'!Q503=\"\",\"\",'1. Order'!Q503)","v":""},{"$f":"IF('1. Order'!S503=\"\",\"\",'1. Order'!S503)","v":""},{"$f":"IF('1. Order'!T503=\"\",\"\",'1. Order'!T503)","v":""},{"$f":"IF('1. Order'!W503=\"\",\"\",'1. Order'!W503)","v":""},{"$f":"IF('1. Order'!X503=\"\",\"\",'1. Order'!X503)","v":""},{"$f":"IF('1. Order'!Y503=\"\",\"\",'1. Order'!Y503)","v":"EUR"},{"$f":"IF('1. Order'!Z503=\"\",\"\",'1. Order'!Z503)","v":""},{"$f":"IF('1. Order'!AA503=\"\",\"\",'1. Order'!AA503)","v":""},{"$f":"IF('1. Order'!AB503=\"\",\"\",'1. Order'!AB503)","v":""},null,{"$f":"IF('1. Order'!AT503=\"\",\"\",'1. Order'!AT503)","v":""},{"$f":"IF('1. Order'!AU503=\"\",\"\",'1. Order'!AU503)","v":""},null,null,null,null,null,null,null,{"$f":"IF('1. Order'!AY503=\"\",\"\",'1. Order'!AY503)","v":""},{"$f":"IF('1. Order'!AZ503=\"\",\"\",'1. Order'!AZ503)","v":""},{"$f":"IF('1. Order'!BA503=\"\",\"\",'1. Order'!BA503)","v":""},{"$f":"IF('1. Order'!BB503=\"\",\"\",'1. Order'!BB503)","v":""},{"$f":"IF('1. Order'!BD503=\"\",\"\",'1. Order'!BD503)","v":""},{"$f":"IF('1. Order'!BE503=\"\",\"\",'1. Order'!BE503)","v":""},{"$f":"IF('1. Order'!BF503=\"\",\"\",'1. Order'!BF503)","v":""},{"$f":"IF('1. Order'!BG503=\"\",\"\",'1. Order'!BG503)","v":""},{"$f":"IF('1. Order'!BH503=\"\",\"\",'1. Order'!BH503)","v":"ZWO"}]
[{"$f":"IF('1. Order'!F504=\"\",\"\",'1. Order'!F504)","v":{"$error":"#N/A"}},{"$f":"IF('1. Order'!G504=\"\",\"\",'1. Order'!G504)","v":""},{"$f":"IF('1. Order'!H504=\"\",\"\",'1. Order'!H504)","v":""},{"$f":"IF('1. Order'!I504=\"\",\"\",'1. Order'!I504)","v":""},{"$f":"IF('1. Order'!J504=\"\",\"\",'1. Order'!J504)","v":""},{"$f":"IF('1. Order'!K504=\"\",\"\",'1. Order'!K504)","v":""},{"$f":"IF('1. Order'!L504=\"\",\"\",'1. Order'!L504)","v":""},{"$f":"IF('1. Order'!M504=\"\",\"\",'1. Order'!M504)","v":""},{"$f":"IF('1. Order'!N504=\"\",\"\",'1. Order'!N504)","v":""},{"$f":"IF('1. Order'!O504=\"\",\"\",'1. Order'!O504)","v":{"$error":"#N/A"}},{"$f":"IF('1. Order'!P504=\"\",\"\",'1. Order'!P504)","v":{"$error":"#N/A"}},{"$f":"IF('1. Order'!Q504=\"\",\"\",'1. Order'!Q504)","v":""},{"$f":"IF('1. Order'!S504=\"\",\"\",'1. Order'!S504)","v":""},{"$f":"IF('1. Order'!T504=\"\",\"\",'1. Order'!T504)","v":""},{"$f":"IF('1. Order'!W504=\"\",\"\",'1. Order'!W504)","v":""},{"$f":"IF('1. Order'!X504=\"\",\"\",'1. Order'!X504)","v":""},{"$f":"IF('1. Order'!Y504=\"\",\"\",'1. Order'!Y504)","v":"EUR"},{"$f":"IF('1. Order'!Z504=\"\",\"\",'1. Order'!Z504)","v":""},{"$f":"IF('1. Order'!AA504=\"\",\"\",'1. Order'!AA504)","v":""},{"$f":"IF('1. Order'!AB504=\"\",\"\",'1. Order'!AB504)","v":""},null,{"$f":"IF('1. Order'!AT504=\"\",\"\",'1. Order'!AT504)","v":""},{"$f":"IF('1. Order'!AU504=\"\",\"\",'1. Order'!AU504)","v":""},null,null,null,null,null,null,null,{"$f":"IF('1. Order'!AY504=\"\",\"\",'1. Order'!AY504)","v":""},{"$f":"IF('1. Order'!AZ504=\"\",\"\",'1. Order'!AZ504)","v":""},{"$f":"IF('1. Order'!BA504=\"\",\"\",'1. Order'!BA504)","v":""},{"$f":"IF('1. Order'!BB504=\"\",\"\",'1. Order'!BB504)","v":""},{"$f":"IF('1. Order'!BD504=\"\",\"\",'1. Order'!BD504)","v":""},{"$f":"IF('1. Order'!BE504=\"\",\"\",'1. Order'!BE504)","v":""},{"$f":"IF('1. Order'!BF504=\"\",\"\",'1. Order'!BF504)","v":""},{"$f":"IF('1. Order'!BG504=\"\",\"\",'1. Order'!BG504)","v":""},{"$f":"IF('1. Order'!BH504=\"\",\"\",'1. Order'!BH504)","v":"ZWO"}]
[{"$f":"IF('1. Order'!F505=\"\",\"\",'1. Order'!F505)","v":{"$error":"#N/A"}},{"$f":"IF('1. Order'!G505=\"\",\"\",'1. Order'!G505)","v":""},{"$f":"IF('1. Order'!H505=\"\",\"\",'1. Order'!H505)","v":""},{"$f":"IF('1. Order'!I505=\"\",\"\",'1. Order'!I505)","v":""},{"$f":"IF('1. Order'!J505=\"\",\"\",'1. Order'!J505)","v":""},{"$f":"IF('1. Order'!K505=\"\",\"\",'1. Order'!K505)","v":""},{"$f":"IF('1. Order'!L505=\"\",\"\",'1. Order'!L505)","v":""},{"$f":"IF('1. Order'!M505=\"\",\"\",'1. Order'!M505)","v":""},{"$f":"IF('1. Order'!N505=\"\",\"\",'1. Order'!N505)","v":""},{"$f":"IF('1. Order'!O505=\"\",\"\",'1. Order'!O505)","v":{"$error":"#N/A"}},{"$f":"IF('1. Order'!P505=\"\",\"\",'1. Order'!P505)","v":{"$error":"#N/A"}},{"$f":"IF('1. Order'!Q505=\"\",\"\",'1. Order'!Q505)","v":""},{"$f":"IF('1. Order'!S505=\"\",\"\",'1. Order'!S505)","v":""},{"$f":"IF('1. Order'!T505=\"\",\"\",'1. Order'!T505)","v":""},{"$f":"IF('1. Order'!W505=\"\",\"\",'1. Order'!W505)","v":""},{"$f":"IF('1. Order'!X505=\"\",\"\",'1. Order'!X505)","v":""},{"$f":"IF('1. Order'!Y505=\"\",\"\",'1. Order'!Y505)","v":"EUR"},{"$f":"IF('1. Order'!Z505=\"\",\"\",'1. Order'!Z505)","v":""},{"$f":"IF('1. Order'!AA505=\"\",\"\",'1. Order'!AA505)","v":""},{"$f":"IF('1. Order'!AB505=\"\",\"\",'1. Order'!AB505)","v":""},null,{"$f":"IF('1. Order'!AT505=\"\",\"\",'1. Order'!AT505)","v":""},{"$f":"IF('1. Order'!AU505=\"\",\"\",'1. Order'!AU505)","v":""},null,null,null,null,null,null,null,{"$f":"IF('1. Order'!AY505=\"\",\"\",'1. Order'!AY505)","v":""},{"$f":"IF('1. Order'!AZ505=\"\",\"\",'1. Order'!AZ505)","v":""},{"$f":"IF('1. Order'!BA505=\"\",\"\",'1. Order'!BA505)","v":""},{"$f":"IF('1. Order'!BB505=\"\",\"\",'1. Order'!BB505)","v":""},{"$f":"IF('1. Order'!BD505=\"\",\"\",'1. Order'!BD505)","v":""},{"$f":"IF('1. Order'!BE505=\"\",\"\",'1. Order'!BE505)","v":""},{"$f":"IF('1. Order'!BF505=\"\",\"\",'1. Order'!BF505)","v":""},{"$f":"IF('1. Order'!BG505=\"\",\"\",'1. Order'!BG505)","v":""},{"$f":"IF('1. Order'!BH505=\"\",\"\",'1. Order'!BH505)","v":"ZWO"}]
[{"$f":"IF('1. Order'!F506=\"\",\"\",'1. Order'!F506)","v":{"$error":"#N/A"}},{"$f":"IF('1. Order'!G506=\"\",\"\",'1. Order'!G506)","v":""},{"$f":"IF('1. Order'!H506=\"\",\"\",'1. Order'!H506)","v":""},{"$f":"IF('1. Order'!I506=\"\",\"\",'1. Order'!I506)","v":""},{"$f":"IF('1. Order'!J506=\"\",\"\",'1. Order'!J506)","v":""},{"$f":"IF('1. Order'!K506=\"\",\"\",'1. Order'!K506)","v":""},{"$f":"IF('1. Order'!L506=\"\",\"\",'1. Order'!L506)","v":""},{"$f":"IF('1. Order'!M506=\"\",\"\",'1. Order'!M506)","v":""},{"$f":"IF('1. Order'!N506=\"\",\"\",'1. Order'!N506)","v":""},{"$f":"IF('1. Order'!O506=\"\",\"\",'1. Order'!O506)","v":{"$error":"#N/A"}},{"$f":"IF('1. Order'!P506=\"\",\"\",'1. Order'!P506)","v":{"$error":"#N/A"}},{"$f":"IF('1. Order'!Q506=\"\",\"\",'1. Order'!Q506)","v":""},{"$f":"IF('1. Order'!S506=\"\",\"\",'1. Order'!S506)","v":""},{"$f":"IF('1. Order'!T506=\"\",\"\",'1. Order'!T506)","v":""},{"$f":"IF('1. Order'!W506=\"\",\"\",'1. Order'!W506)","v":""},{"$f":"IF('1. Order'!X506=\"\",\"\",'1. Order'!X506)","v":""},{"$f":"IF('1. Order'!Y506=\"\",\"\",'1. Order'!Y506)","v":"EUR"},{"$f":"IF('1. Order'!Z506=\"\",\"\",'1. Order'!Z506)","v":""},{"$f":"IF('1. Order'!AA506=\"\",\"\",'1. Order'!AA506)","v":""},{"$f":"IF('1. Order'!AB506=\"\",\"\",'1. Order'!AB506)","v":""},null,{"$f":"IF('1. Order'!AT506=\"\",\"\",'1. Order'!AT506)","v":""},{"$f":"IF('1. Order'!AU506=\"\",\"\",'1. Order'!AU506)","v":""},null,null,null,null,null,null,null,{"$f":"IF('1. Order'!AY506=\"\",\"\",'1. Order'!AY506)","v":""},{"$f":"IF('1. Order'!AZ506=\"\",\"\",'1. Order'!AZ506)","v":""},{"$f":"IF('1. Order'!BA506=\"\",\"\",'1. Order'!BA506)","v":""},{"$f":"IF('1. Order'!BB506=\"\",\"\",'1. Order'!BB506)","v":""},{"$f":"IF('1. Order'!BD506=\"\",\"\",'1. Order'!BD506)","v":""},{"$f":"IF('1. Order'!BE506=\"\",\"\",'1. Order'!BE506)","v":""},{"$f":"IF('1. Order'!BF506=\"\",\"\",'1. Order'!BF506)","v":""},{"$f":"IF('1. Order'!BG506=\"\",\"\",'1. Order'!BG506)","v":""},{"$f":"IF('1. Order'!BH506=\"\",\"\",'1. Order'!BH506)","v":"ZWO"}]
[{"$f":"IF('1. Order'!F507=\"\",\"\",'1. Order'!F507)","v":{"$error":"#N/A"}},{"$f":"IF('1. Order'!G507=\"\",\"\",'1. Order'!G507)","v":""},{"$f":"IF('1. Order'!H507=\"\",\"\",'1. Order'!H507)","v":""},{"$f":"IF('1. Order'!I507=\"\",\"\",'1. Order'!I507)","v":""},{"$f":"IF('1. Order'!J507=\"\",\"\",'1. Order'!J507)","v":""},{"$f":"IF('1. Order'!K507=\"\",\"\",'1. Order'!K507)","v":""},{"$f":"IF('1. Order'!L507=\"\",\"\",'1. Order'!L507)","v":""},{"$f":"IF('1. Order'!M507=\"\",\"\",'1. Order'!M507)","v":""},{"$f":"IF('1. Order'!N507=\"\",\"\",'1. Order'!N507)","v":""},{"$f":"IF('1. Order'!O507=\"\",\"\",'1. Order'!O507)","v":{"$error":"#N/A"}},{"$f":"IF('1. Order'!P507=\"\",\"\",'1. Order'!P507)","v":{"$error":"#N/A"}},{"$f":"IF('1. Order'!Q507=\"\",\"\",'1. Order'!Q507)","v":""},{"$f":"IF('1. Order'!S507=\"\",\"\",'1. Order'!S507)","v":""},{"$f":"IF('1. Order'!T507=\"\",\"\",'1. Order'!T507)","v":""},{"$f":"IF('1. Order'!W507=\"\",\"\",'1. Order'!W507)","v":""},{"$f":"IF('1. Order'!X507=\"\",\"\",'1. Order'!X507)","v":""},{"$f":"IF('1. Order'!Y507=\"\",\"\",'1. Order'!Y507)","v":"EUR"},{"$f":"IF('1. Order'!Z507=\"\",\"\",'1. Order'!Z507)","v":""},{"$f":"IF('1. Order'!AA507=\"\",\"\",'1. Order'!AA507)","v":""},{"$f":"IF('1. Order'!AB507=\"\",\"\",'1. Order'!AB507)","v":""},null,{"$f":"IF('1. Order'!AT507=\"\",\"\",'1. Order'!AT507)","v":""},{"$f":"IF('1. Order'!AU507=\"\",\"\",'1. Order'!AU507)","v":""},null,null,null,null,null,null,null,{"$f":"IF('1. Order'!AY507=\"\",\"\",'1. Order'!AY507)","v":""},{"$f":"IF('1. Order'!AZ507=\"\",\"\",'1. Order'!AZ507)","v":""},{"$f":"IF('1. Order'!BA507=\"\",\"\",'1. Order'!BA507)","v":""},{"$f":"IF('1. Order'!BB507=\"\",\"\",'1. Order'!BB507)","v":""},{"$f":"IF('1. Order'!BD507=\"\",\"\",'1. Order'!BD507)","v":""},{"$f":"IF('1. Order'!BE507=\"\",\"\",'1. Order'!BE507)","v":""},{"$f":"IF('1. Order'!BF507=\"\",\"\",'1. Order'!BF507)","v":""},{"$f":"IF('1. Order'!BG507=\"\",\"\",'1. Order'!BG507)","v":""},{"$f":"IF('1. Order'!BH507=\"\",\"\",'1. Order'!BH507)","v":"ZWO"}]
[{"$f":"IF('1. Order'!F508=\"\",\"\",'1. Order'!F508)","v":{"$error":"#N/A"}},{"$f":"IF('1. Order'!G508=\"\",\"\",'1. Order'!G508)","v":""},{"$f":"IF('1. Order'!H508=\"\",\"\",'1. Order'!H508)","v":""},{"$f":"IF('1. Order'!I508=\"\",\"\",'1. Order'!I508)","v":""},{"$f":"IF('1. Order'!J508=\"\",\"\",'1. Order'!J508)","v":""},{"$f":"IF('1. Order'!K508=\"\",\"\",'1. Order'!K508)","v":""},{"$f":"IF('1. Order'!L508=\"\",\"\",'1. Order'!L508)","v":""},{"$f":"IF('1. Order'!M508=\"\",\"\",'1. Order'!M508)","v":""},{"$f":"IF('1. Order'!N508=\"\",\"\",'1. Order'!N508)","v":""},{"$f":"IF('1. Order'!O508=\"\",\"\",'1. Order'!O508)","v":{"$error":"#N/A"}},{"$f":"IF('1. Order'!P508=\"\",\"\",'1. Order'!P508)","v":{"$error":"#N/A"}},{"$f":"IF('1. Order'!Q508=\"\",\"\",'1. Order'!Q508)","v":""},{"$f":"IF('1. Order'!S508=\"\",\"\",'1. Order'!S508)","v":""},{"$f":"IF('1. Order'!T508=\"\",\"\",'1. Order'!T508)","v":""},{"$f":"IF('1. Order'!W508=\"\",\"\",'1. Order'!W508)","v":""},{"$f":"IF('1. Order'!X508=\"\",\"\",'1. Order'!X508)","v":""},{"$f":"IF('1. Order'!Y508=\"\",\"\",'1. Order'!Y508)","v":"EUR"},{"$f":"IF('1. Order'!Z508=\"\",\"\",'1. Order'!Z508)","v":""},{"$f":"IF('1. Order'!AA508=\"\",\"\",'1. Order'!AA508)","v":""},{"$f":"IF('1. Order'!AB508=\"\",\"\",'1. Order'!AB508)","v":""},null,{"$f":"IF('1. Order'!AT508=\"\",\"\",'1. Order'!AT508)","v":""},{"$f":"IF('1. Order'!AU508=\"\",\"\",'1. Order'!AU508)","v":""},null,null,null,null,null,null,null,{"$f":"IF('1. Order'!AY508=\"\",\"\",'1. Order'!AY508)","v":""},{"$f":"IF('1. Order'!AZ508=\"\",\"\",'1. Order'!AZ508)","v":""},{"$f":"IF('1. Order'!BA508=\"\",\"\",'1. Order'!BA508)","v":""},{"$f":"IF('1. Order'!BB508=\"\",\"\",'1. Order'!BB508)","v":""},{"$f":"IF('1. Order'!BD508=\"\",\"\",'1. Order'!BD508)","v":""},{"$f":"IF('1. Order'!BE508=\"\",\"\",'1. Order'!BE508)","v":""},{"$f":"IF('1. Order'!BF508=\"\",\"\",'1. Order'!BF508)","v":""},{"$f":"IF('1. Order'!BG508=\"\",\"\",'1. Order'!BG508)","v":""},{"$f":"IF('1. Order'!BH508=\"\",\"\",'1. Order'!BH508)","v":"ZWO"}]
[{"$f":"IF('1. Order'!F509=\"\",\"\",'1. Order'!F509)","v":{"$error":"#N/A"}},{"$f":"IF('1. Order'!G509=\"\",\"\",'1. Order'!G509)","v":""},{"$f":"IF('1. Order'!H509=\"\",\"\",'1. Order'!H509)","v":""},{"$f":"IF('1. Order'!I509=\"\",\"\",'1. Order'!I509)","v":""},{"$f":"IF('1. Order'!J509=\"\",\"\",'1. Order'!J509)","v":""},{"$f":"IF('1. Order'!K509=\"\",\"\",'1. Order'!K509)","v":""},{"$f":"IF('1. Order'!L509=\"\",\"\",'1. Order'!L509)","v":""},{"$f":"IF('1. Order'!M509=\"\",\"\",'1. Order'!M509)","v":""},{"$f":"IF('1. Order'!N509=\"\",\"\",'1. Order'!N509)","v":""},{"$f":"IF('1. Order'!O509=\"\",\"\",'1. Order'!O509)","v":{"$error":"#N/A"}},{"$f":"IF('1. Order'!P509=\"\",\"\",'1. Order'!P509)","v":{"$error":"#N/A"}},{"$f":"IF('1. Order'!Q509=\"\",\"\",'1. Order'!Q509)","v":""},{"$f":"IF('1. Order'!S509=\"\",\"\",'1. Order'!S509)","v":""},{"$f":"IF('1. Order'!T509=\"\",\"\",'1. Order'!T509)","v":""},{"$f":"IF('1. Order'!W509=\"\",\"\",'1. Order'!W509)","v":""},{"$f":"IF('1. Order'!X509=\"\",\"\",'1. Order'!X509)","v":""},{"$f":"IF('1. Order'!Y509=\"\",\"\",'1. Order'!Y509)","v":"EUR"},{"$f":"IF('1. Order'!Z509=\"\",\"\",'1. Order'!Z509)","v":""},{"$f":"IF('1. Order'!AA509=\"\",\"\",'1. Order'!AA509)","v":""},{"$f":"IF('1. Order'!AB509=\"\",\"\",'1. Order'!AB509)","v":""},null,{"$f":"IF('1. Order'!AT509=\"\",\"\",'1. Order'!AT509)","v":""},{"$f":"IF('1. Order'!AU509=\"\",\"\",'1. Order'!AU509)","v":""},null,null,null,null,null,null,null,{"$f":"IF('1. Order'!AY509=\"\",\"\",'1. Order'!AY509)","v":""},{"$f":"IF('1. Order'!AZ509=\"\",\"\",'1. Order'!AZ509)","v":""},{"$f":"IF('1. Order'!BA509=\"\",\"\",'1. Order'!BA509)","v":""},{"$f":"IF('1. Order'!BB509=\"\",\"\",'1. Order'!BB509)","v":""},{"$f":"IF('1. Order'!BD509=\"\",\"\",'1. Order'!BD509)","v":""},{"$f":"IF('1. Order'!BE509=\"\",\"\",'1. Order'!BE509)","v":""},{"$f":"IF('1. Order'!BF509=\"\",\"\",'1. Order'!BF509)","v":""},{"$f":"IF('1. Order'!BG509=\"\",\"\",'1. Order'!BG509)","v":""},{"$f":"IF('1. Order'!BH509=\"\",\"\",'1. Order'!BH509)","v":"ZWO"}]
[{"$f":"IF('1. Order'!F510=\"\",\"\",'1. Order'!F510)","v":{"$error":"#N/A"}},{"$f":"IF('1. Order'!G510=\"\",\"\",'1. Order'!G510)","v":""},{"$f":"IF('1. Order'!H510=\"\",\"\",'1. Order'!H510)","v":""},{"$f":"IF('1. Order'!I510=\"\",\"\",'1. Order'!I510)","v":""},{"$f":"IF('1. Order'!J510=\"\",\"\",'1. Order'!J510)","v":""},{"$f":"IF('1. Order'!K510=\"\",\"\",'1. Order'!K510)","v":""},{"$f":"IF('1. Order'!L510=\"\",\"\",'1. Order'!L510)","v":""},{"$f":"IF('1. Order'!M510=\"\",\"\",'1. Order'!M510)","v":""},{"$f":"IF('1. Order'!N510=\"\",\"\",'1. Order'!N510)","v":""},{"$f":"IF('1. Order'!O510=\"\",\"\",'1. Order'!O510)","v":{"$error":"#N/A"}},{"$f":"IF('1. Order'!P510=\"\",\"\",'1. Order'!P510)","v":{"$error":"#N/A"}},{"$f":"IF('1. Order'!Q510=\"\",\"\",'1. Order'!Q510)","v":""},{"$f":"IF('1. Order'!S510=\"\",\"\",'1. Order'!S510)","v":""},{"$f":"IF('1. Order'!T510=\"\",\"\",'1. Order'!T510)","v":""},{"$f":"IF('1. Order'!W510=\"\",\"\",'1. Order'!W510)","v":""},{"$f":"IF('1. Order'!X510=\"\",\"\",'1. Order'!X510)","v":""},{"$f":"IF('1. Order'!Y510=\"\",\"\",'1. Order'!Y510)","v":"EUR"},{"$f":"IF('1. Order'!Z510=\"\",\"\",'1. Order'!Z510)","v":""},{"$f":"IF('1. Order'!AA510=\"\",\"\",'1. Order'!AA510)","v":""},{"$f":"IF('1. Order'!AB510=\"\",\"\",'1. Order'!AB510)","v":""},null,{"$f":"IF('1. Order'!AT510=\"\",\"\",'1. Order'!AT510)","v":""},{"$f":"IF('1. Order'!AU510=\"\",\"\",'1. Order'!AU510)","v":""},null,null,null,null,null,null,null,{"$f":"IF('1. Order'!AY510=\"\",\"\",'1. Order'!AY510)","v":""},{"$f":"IF('1. Order'!AZ510=\"\",\"\",'1. Order'!AZ510)","v":""},{"$f":"IF('1. Order'!BA510=\"\",\"\",'1. Order'!BA510)","v":""},{"$f":"IF('1. Order'!BB510=\"\",\"\",'1. Order'!BB510)","v":""},{"$f":"IF('1. Order'!BD510=\"\",\"\",'1. Order'!BD510)","v":""},{"$f":"IF('1. Order'!BE510=\"\",\"\",'1. Order'!BE510)","v":""},{"$f":"IF('1. Order'!BF510=\"\",\"\",'1. Order'!BF510)","v":""},{"$f":"IF('1. Order'!BG510=\"\",\"\",'1. Order'!BG510)","v":""},{"$f":"IF('1. Order'!BH510=\"\",\"\",'1. Order'!BH510)","v":"ZWO"}]
[{"$f":"IF('1. Order'!F511=\"\",\"\",'1. Order'!F511)","v":{"$error":"#N/A"}},{"$f":"IF('1. Order'!G511=\"\",\"\",'1. Order'!G511)","v":""},{"$f":"IF('1. Order'!H511=\"\",\"\",'1. Order'!H511)","v":""},{"$f":"IF('1. Order'!I511=\"\",\"\",'1. Order'!I511)","v":""},{"$f":"IF('1. Order'!J511=\"\",\"\",'1. Order'!J511)","v":""},{"$f":"IF('1. Order'!K511=\"\",\"\",'1. Order'!K511)","v":""},{"$f":"IF('1. Order'!L511=\"\",\"\",'1. Order'!L511)","v":""},{"$f":"IF('1. Order'!M511=\"\",\"\",'1. Order'!M511)","v":""},{"$f":"IF('1. Order'!N511=\"\",\"\",'1. Order'!N511)","v":""},{"$f":"IF('1. Order'!O511=\"\",\"\",'1. Order'!O511)","v":{"$error":"#N/A"}},{"$f":"IF('1. Order'!P511=\"\",\"\",'1. Order'!P511)","v":{"$error":"#N/A"}},{"$f":"IF('1. Order'!Q511=\"\",\"\",'1. Order'!Q511)","v":""},{"$f":"IF('1. Order'!S511=\"\",\"\",'1. Order'!S511)","v":""},{"$f":"IF('1. Order'!T511=\"\",\"\",'1. Order'!T511)","v":""},{"$f":"IF('1. Order'!W511=\"\",\"\",'1. Order'!W511)","v":""},{"$f":"IF('1. Order'!X511=\"\",\"\",'1. Order'!X511)","v":""},{"$f":"IF('1. Order'!Y511=\"\",\"\",'1. Order'!Y511)","v":"EUR"},{"$f":"IF('1. Order'!Z511=\"\",\"\",'1. Order'!Z511)","v":""},{"$f":"IF('1. Order'!AA511=\"\",\"\",'1. Order'!AA511)","v":""},{"$f":"IF('1. Order'!AB511=\"\",\"\",'1. Order'!AB511)","v":""},null,{"$f":"IF('1. Order'!AT511=\"\",\"\",'1. Order'!AT511)","v":""},{"$f":"IF('1. Order'!AU511=\"\",\"\",'1. Order'!AU511)","v":""},null,null,null,null,null,null,null,{"$f":"IF('1. Order'!AY511=\"\",\"\",'1. Order'!AY511)","v":""},{"$f":"IF('1. Order'!AZ511=\"\",\"\",'1. Order'!AZ511)","v":""},{"$f":"IF('1. Order'!BA511=\"\",\"\",'1. Order'!BA511)","v":""},{"$f":"IF('1. Order'!BB511=\"\",\"\",'1. Order'!BB511)","v":""},{"$f":"IF('1. Order'!BD511=\"\",\"\",'1. Order'!BD511)","v":""},{"$f":"IF('1. Order'!BE511=\"\",\"\",'1. Order'!BE511)","v":""},{"$f":"IF('1. Order'!BF511=\"\",\"\",'1. Order'!BF511)","v":""},{"$f":"IF('1. Order'!BG511=\"\",\"\",'1. Order'!BG511)","v":""},{"$f":"IF('1. Order'!BH511=\"\",\"\",'1. Order'!BH511)","v":"ZWO"}]
[{"$f":"IF('1. Order'!F512=\"\",\"\",'1. Order'!F512)","v":{"$error":"#N/A"}},{"$f":"IF('1. Order'!G512=\"\",\"\",'1. Order'!G512)","v":""},{"$f":"IF('1. Order'!H512=\"\",\"\",'1. Order'!H512)","v":""},{"$f":"IF('1. Order'!I512=\"\",\"\",'1. Order'!I512)","v":""},{"$f":"IF('1. Order'!J512=\"\",\"\",'1. Order'!J512)","v":""},{"$f":"IF('1. Order'!K512=\"\",\"\",'1. Order'!K512)","v":""},{"$f":"IF('1. Order'!L512=\"\",\"\",'1. Order'!L512)","v":""},{"$f":"IF('1. Order'!M512=\"\",\"\",'1. Order'!M512)","v":""},{"$f":"IF('1. Order'!N512=\"\",\"\",'1. Order'!N512)","v":""},{"$f":"IF('1. Order'!O512=\"\",\"\",'1. Order'!O512)","v":{"$error":"#N/A"}},{"$f":"IF('1. Order'!P512=\"\",\"\",'1. Order'!P512)","v":{"$error":"#N/A"}},{"$f":"IF('1. Order'!Q512=\"\",\"\",'1. Order'!Q512)","v":""},{"$f":"IF('1. Order'!S512=\"\",\"\",'1. Order'!S512)","v":""},{"$f":"IF('1. Order'!T512=\"\",\"\",'1. Order'!T512)","v":""},{"$f":"IF('1. Order'!W512=\"\",\"\",'1. Order'!W512)","v":""},{"$f":"IF('1. Order'!X512=\"\",\"\",'1. Order'!X512)","v":""},{"$f":"IF('1. Order'!Y512=\"\",\"\",'1. Order'!Y512)","v":"EUR"},{"$f":"IF('1. Order'!Z512=\"\",\"\",'1. Order'!Z512)","v":""},{"$f":"IF('1. Order'!AA512=\"\",\"\",'1. Order'!AA512)","v":""},{"$f":"IF('1. Order'!AB512=\"\",\"\",'1. Order'!AB512)","v":""},null,{"$f":"IF('1. Order'!AT512=\"\",\"\",'1. Order'!AT512)","v":""},{"$f":"IF('1. Order'!AU512=\"\",\"\",'1. Order'!AU512)","v":""},null,null,null,null,null,null,null,{"$f":"IF('1. Order'!AY512=\"\",\"\",'1. Order'!AY512)","v":""},{"$f":"IF('1. Order'!AZ512=\"\",\"\",'1. Order'!AZ512)","v":""},{"$f":"IF('1. Order'!BA512=\"\",\"\",'1. Order'!BA512)","v":""},{"$f":"IF('1. Order'!BB512=\"\",\"\",'1. Order'!BB512)","v":""},{"$f":"IF('1. Order'!BD512=\"\",\"\",'1. Order'!BD512)","v":""},{"$f":"IF('1. Order'!BE512=\"\",\"\",'1. Order'!BE512)","v":""},{"$f":"IF('1. Order'!BF512=\"\",\"\",'1. Order'!BF512)","v":""},{"$f":"IF('1. Order'!BG512=\"\",\"\",'1. Order'!BG512)","v":""},{"$f":"IF('1. Order'!BH512=\"\",\"\",'1. Order'!BH512)","v":"ZWO"}]
[{"$f":"IF('1. Order'!F513=\"\",\"\",'1. Order'!F513)","v":{"$error":"#N/A"}},{"$f":"IF('1. Order'!G513=\"\",\"\",'1. Order'!G513)","v":""},{"$f":"IF('1. Order'!H513=\"\",\"\",'1. Order'!H513)","v":""},{"$f":"IF('1. Order'!I513=\"\",\"\",'1. Order'!I513)","v":""},{"$f":"IF('1. Order'!J513=\"\",\"\",'1. Order'!J513)","v":""},{"$f":"IF('1. Order'!K513=\"\",\"\",'1. Order'!K513)","v":""},{"$f":"IF('1. Order'!L513=\"\",\"\",'1. Order'!L513)","v":""},{"$f":"IF('1. Order'!M513=\"\",\"\",'1. Order'!M513)","v":""},{"$f":"IF('1. Order'!N513=\"\",\"\",'1. Order'!N513)","v":""},{"$f":"IF('1. Order'!O513=\"\",\"\",'1. Order'!O513)","v":{"$error":"#N/A"}},{"$f":"IF('1. Order'!P513=\"\",\"\",'1. Order'!P513)","v":{"$error":"#N/A"}},{"$f":"IF('1. Order'!Q513=\"\",\"\",'1. Order'!Q513)","v":""},{"$f":"IF('1. Order'!S513=\"\",\"\",'1. Order'!S513)","v":""},{"$f":"IF('1. Order'!T513=\"\",\"\",'1. Order'!T513)","v":""},{"$f":"IF('1. Order'!W513=\"\",\"\",'1. Order'!W513)","v":""},{"$f":"IF('1. Order'!X513=\"\",\"\",'1. Order'!X513)","v":""},{"$f":"IF('1. Order'!Y513=\"\",\"\",'1. Order'!Y513)","v":"EUR"},{"$f":"IF('1. Order'!Z513=\"\",\"\",'1. Order'!Z513)","v":""},{"$f":"IF('1. Order'!AA513=\"\",\"\",'1. Order'!AA513)","v":""},{"$f":"IF('1. Order'!AB513=\"\",\"\",'1. Order'!AB513)","v":""},null,{"$f":"IF('1. Order'!AT513=\"\",\"\",'1. Order'!AT513)","v":""},{"$f":"IF('1. Order'!AU513=\"\",\"\",'1. Order'!AU513)","v":""},null,null,null,null,null,null,null,{"$f":"IF('1. Order'!AY513=\"\",\"\",'1. Order'!AY513)","v":""},{"$f":"IF('1. Order'!AZ513=\"\",\"\",'1. Order'!AZ513)","v":""},{"$f":"IF('1. Order'!BA513=\"\",\"\",'1. Order'!BA513)","v":""},{"$f":"IF('1. Order'!BB513=\"\",\"\",'1. Order'!BB513)","v":""},{"$f":"IF('1. Order'!BD513=\"\",\"\",'1. Order'!BD513)","v":""},{"$f":"IF('1. Order'!BE513=\"\",\"\",'1. Order'!BE513)","v":""},{"$f":"IF('1. Order'!BF513=\"\",\"\",'1. Order'!BF513)","v":""},{"$f":"IF('1. Order'!BG513=\"\",\"\",'1. Order'!BG513)","v":""},{"$f":"IF('1. Order'!BH513=\"\",\"\",'1. Order'!BH513)","v":"ZWO"}]
[{"$f":"IF('1. Order'!F514=\"\",\"\",'1. Order'!F514)","v":{"$error":"#N/A"}},{"$f":"IF('1. Order'!G514=\"\",\"\",'1. Order'!G514)","v":""},{"$f":"IF('1. Order'!H514=\"\",\"\",'1. Order'!H514)","v":""},{"$f":"IF('1. Order'!I514=\"\",\"\",'1. Order'!I514)","v":""},{"$f":"IF('1. Order'!J514=\"\",\"\",'1. Order'!J514)","v":""},{"$f":"IF('1. Order'!K514=\"\",\"\",'1. Order'!K514)","v":""},{"$f":"IF('1. Order'!L514=\"\",\"\",'1. Order'!L514)","v":""},{"$f":"IF('1. Order'!M514=\"\",\"\",'1. Order'!M514)","v":""},{"$f":"IF('1. Order'!N514=\"\",\"\",'1. Order'!N514)","v":""},{"$f":"IF('1. Order'!O514=\"\",\"\",'1. Order'!O514)","v":{"$error":"#N/A"}},{"$f":"IF('1. Order'!P514=\"\",\"\",'1. Order'!P514)","v":{"$error":"#N/A"}},{"$f":"IF('1. Order'!Q514=\"\",\"\",'1. Order'!Q514)","v":""},{"$f":"IF('1. Order'!S514=\"\",\"\",'1. Order'!S514)","v":""},{"$f":"IF('1. Order'!T514=\"\",\"\",'1. Order'!T514)","v":""},{"$f":"IF('1. Order'!W514=\"\",\"\",'1. Order'!W514)","v":""},{"$f":"IF('1. Order'!X514=\"\",\"\",'1. Order'!X514)","v":""},{"$f":"IF('1. Order'!Y514=\"\",\"\",'1. Order'!Y514)","v":"EUR"},{"$f":"IF('1. Order'!Z514=\"\",\"\",'1. Order'!Z514)","v":""},{"$f":"IF('1. Order'!AA514=\"\",\"\",'1. Order'!AA514)","v":""},{"$f":"IF('1. Order'!AB514=\"\",\"\",'1. Order'!AB514)","v":""},null,{"$f":"IF('1. Order'!AT514=\"\",\"\",'1. Order'!AT514)","v":""},{"$f":"IF('1. Order'!AU514=\"\",\"\",'1. Order'!AU514)","v":""},null,null,null,null,null,null,null,{"$f":"IF('1. Order'!AY514=\"\",\"\",'1. Order'!AY514)","v":""},{"$f":"IF('1. Order'!AZ514=\"\",\"\",'1. Order'!AZ514)","v":""},{"$f":"IF('1. Order'!BA514=\"\",\"\",'1. Order'!BA514)","v":""},{"$f":"IF('1. Order'!BB514=\"\",\"\",'1. Order'!BB514)","v":""},{"$f":"IF('1. Order'!BD514=\"\",\"\",'1. Order'!BD514)","v":""},{"$f":"IF('1. Order'!BE514=\"\",\"\",'1. Order'!BE514)","v":""},{"$f":"IF('1. Order'!BF514=\"\",\"\",'1. Order'!BF514)","v":""},{"$f":"IF('1. Order'!BG514=\"\",\"\",'1. Order'!BG514)","v":""},{"$f":"IF('1. Order'!BH514=\"\",\"\",'1. Order'!BH514)","v":"ZWO"}]
[{"$f":"IF('1. Order'!F515=\"\",\"\",'1. Order'!F515)","v":{"$error":"#N/A"}},{"$f":"IF('1. Order'!G515=\"\",\"\",'1. Order'!G515)","v":""},{"$f":"IF('1. Order'!H515=\"\",\"\",'1. Order'!H515)","v":""},{"$f":"IF('1. Order'!I515=\"\",\"\",'1. Order'!I515)","v":""},{"$f":"IF('1. Order'!J515=\"\",\"\",'1. Order'!J515)","v":""},{"$f":"IF('1. Order'!K515=\"\",\"\",'1. Order'!K515)","v":""},{"$f":"IF('1. Order'!L515=\"\",\"\",'1. Order'!L515)","v":""},{"$f":"IF('1. Order'!M515=\"\",\"\",'1. Order'!M515)","v":""},{"$f":"IF('1. Order'!N515=\"\",\"\",'1. Order'!N515)","v":""},{"$f":"IF('1. Order'!O515=\"\",\"\",'1. Order'!O515)","v":{"$error":"#N/A"}},{"$f":"IF('1. Order'!P515=\"\",\"\",'1. Order'!P515)","v":{"$error":"#N/A"}},{"$f":"IF('1. Order'!Q515=\"\",\"\",'1. Order'!Q515)","v":""},{"$f":"IF('1. Order'!S515=\"\",\"\",'1. Order'!S515)","v":""},{"$f":"IF('1. Order'!T515=\"\",\"\",'1. Order'!T515)","v":""},{"$f":"IF('1. Order'!W515=\"\",\"\",'1. Order'!W515)","v":""},{"$f":"IF('1. Order'!X515=\"\",\"\",'1. Order'!X515)","v":""},{"$f":"IF('1. Order'!Y515=\"\",\"\",'1. Order'!Y515)","v":"EUR"},{"$f":"IF('1. Order'!Z515=\"\",\"\",'1. Order'!Z515)","v":""},{"$f":"IF('1. Order'!AA515=\"\",\"\",'1. Order'!AA515)","v":""},{"$f":"IF('1. Order'!AB515=\"\",\"\",'1. Order'!AB515)","v":""},null,{"$f":"IF('1. Order'!AT515=\"\",\"\",'1. Order'!AT515)","v":""},{"$f":"IF('1. Order'!AU515=\"\",\"\",'1. Order'!AU515)","v":""},null,null,null,null,null,null,null,{"$f":"IF('1. Order'!AY515=\"\",\"\",'1. Order'!AY515)","v":""},{"$f":"IF('1. Order'!AZ515=\"\",\"\",'1. Order'!AZ515)","v":""},{"$f":"IF('1. Order'!BA515=\"\",\"\",'1. Order'!BA515)","v":""},{"$f":"IF('1. Order'!BB515=\"\",\"\",'1. Order'!BB515)","v":""},{"$f":"IF('1. Order'!BD515=\"\",\"\",'1. Order'!BD515)","v":""},{"$f":"IF('1. Order'!BE515=\"\",\"\",'1. Order'!BE515)","v":""},{"$f":"IF('1. Order'!BF515=\"\",\"\",'1. Order'!BF515)","v":""},{"$f":"IF('1. Order'!BG515=\"\",\"\",'1. Order'!BG515)","v":""},{"$f":"IF('1. Order'!BH515=\"\",\"\",'1. Order'!BH515)","v":"ZWO"}]
[{"$f":"IF('1. Order'!F516=\"\",\"\",'1. Order'!F516)","v":{"$error":"#N/A"}},{"$f":"IF('1. Order'!G516=\"\",\"\",'1. Order'!G516)","v":""},{"$f":"IF('1. Order'!H516=\"\",\"\",'1. Order'!H516)","v":""},{"$f":"IF('1. Order'!I516=\"\",\"\",'1. Order'!I516)","v":""},{"$f":"IF('1. Order'!J516=\"\",\"\",'1. Order'!J516)","v":""},{"$f":"IF('1. Order'!K516=\"\",\"\",'1. Order'!K516)","v":""},{"$f":"IF('1. Order'!L516=\"\",\"\",'1. Order'!L516)","v":""},{"$f":"IF('1. Order'!M516=\"\",\"\",'1. Order'!M516)","v":""},{"$f":"IF('1. Order'!N516=\"\",\"\",'1. Order'!N516)","v":""},{"$f":"IF('1. Order'!O516=\"\",\"\",'1. Order'!O516)","v":{"$error":"#N/A"}},{"$f":"IF('1. Order'!P516=\"\",\"\",'1. Order'!P516)","v":{"$error":"#N/A"}},{"$f":"IF('1. Order'!Q516=\"\",\"\",'1. Order'!Q516)","v":""},{"$f":"IF('1. Order'!S516=\"\",\"\",'1. Order'!S516)","v":""},{"$f":"IF('1. Order'!T516=\"\",\"\",'1. Order'!T516)","v":""},{"$f":"IF('1. Order'!W516=\"\",\"\",'1. Order'!W516)","v":""},{"$f":"IF('1. Order'!X516=\"\",\"\",'1. Order'!X516)","v":""},{"$f":"IF('1. Order'!Y516=\"\",\"\",'1. Order'!Y516)","v":"EUR"},{"$f":"IF('1. Order'!Z516=\"\",\"\",'1. Order'!Z516)","v":""},{"$f":"IF('1. Order'!AA516=\"\",\"\",'1. Order'!AA516)","v":""},{"$f":"IF('1. Order'!AB516=\"\",\"\",'1. Order'!AB516)","v":""},null,{"$f":"IF('1. Order'!AT516=\"\",\"\",'1. Order'!AT516)","v":""},{"$f":"IF('1. Order'!AU516=\"\",\"\",'1. Order'!AU516)","v":""},null,null,null,null,null,null,null,{"$f":"IF('1. Order'!AY516=\"\",\"\",'1. Order'!AY516)","v":""},{"$f":"IF('1. Order'!AZ516=\"\",\"\",'1. Order'!AZ516)","v":""},{"$f":"IF('1. Order'!BA516=\"\",\"\",'1. Order'!BA516)","v":""},{"$f":"IF('1. Order'!BB516=\"\",\"\",'1. Order'!BB516)","v":""},{"$f":"IF('1. Order'!BD516=\"\",\"\",'1. Order'!BD516)","v":""},{"$f":"IF('1. Order'!BE516=\"\",\"\",'1. Order'!BE516)","v":""},{"$f":"IF('1. Order'!BF516=\"\",\"\",'1. Order'!BF516)","v":""},{"$f":"IF('1. Order'!BG516=\"\",\"\",'1. Order'!BG516)","v":""},{"$f":"IF('1. Order'!BH516=\"\",\"\",'1. Order'!BH516)","v":"ZWO"}]
[{"$f":"IF('1. Order'!F517=\"\",\"\",'1. Order'!F517)","v":{"$error":"#N/A"}},{"$f":"IF('1. Order'!G517=\"\",\"\",'1. Order'!G517)","v":""},{"$f":"IF('1. Order'!H517=\"\",\"\",'1. Order'!H517)","v":""},{"$f":"IF('1. Order'!I517=\"\",\"\",'1. Order'!I517)","v":""},{"$f":"IF('1. Order'!J517=\"\",\"\",'1. Order'!J517)","v":""},{"$f":"IF('1. Order'!K517=\"\",\"\",'1. Order'!K517)","v":""},{"$f":"IF('1. Order'!L517=\"\",\"\",'1. Order'!L517)","v":""},{"$f":"IF('1. Order'!M517=\"\",\"\",'1. Order'!M517)","v":""},{"$f":"IF('1. Order'!N517=\"\",\"\",'1. Order'!N517)","v":""},{"$f":"IF('1. Order'!O517=\"\",\"\",'1. Order'!O517)","v":{"$error":"#N/A"}},{"$f":"IF('1. Order'!P517=\"\",\"\",'1. Order'!P517)","v":{"$error":"#N/A"}},{"$f":"IF('1. Order'!Q517=\"\",\"\",'1. Order'!Q517)","v":""},{"$f":"IF('1. Order'!S517=\"\",\"\",'1. Order'!S517)","v":""},{"$f":"IF('1. Order'!T517=\"\",\"\",'1. Order'!T517)","v":""},{"$f":"IF('1. Order'!W517=\"\",\"\",'1. Order'!W517)","v":""},{"$f":"IF('1. Order'!X517=\"\",\"\",'1. Order'!X517)","v":""},{"$f":"IF('1. Order'!Y517=\"\",\"\",'1. Order'!Y517)","v":"EUR"},{"$f":"IF('1. Order'!Z517=\"\",\"\",'1. Order'!Z517)","v":""},{"$f":"IF('1. Order'!AA517=\"\",\"\",'1. Order'!AA517)","v":""},{"$f":"IF('1. Order'!AB517=\"\",\"\",'1. Order'!AB517)","v":""},null,{"$f":"IF('1. Order'!AT517=\"\",\"\",'1. Order'!AT517)","v":""},{"$f":"IF('1. Order'!AU517=\"\",\"\",'1. Order'!AU517)","v":""},null,null,null,null,null,null,null,{"$f":"IF('1. Order'!AY517=\"\",\"\",'1. Order'!AY517)","v":""},{"$f":"IF('1. Order'!AZ517=\"\",\"\",'1. Order'!AZ517)","v":""},{"$f":"IF('1. Order'!BA517=\"\",\"\",'1. Order'!BA517)","v":""},{"$f":"IF('1. Order'!BB517=\"\",\"\",'1. Order'!BB517)","v":""},{"$f":"IF('1. Order'!BD517=\"\",\"\",'1. Order'!BD517)","v":""},{"$f":"IF('1. Order'!BE517=\"\",\"\",'1. Order'!BE517)","v":""},{"$f":"IF('1. Order'!BF517=\"\",\"\",'1. Order'!BF517)","v":""},{"$f":"IF('1. Order'!BG517=\"\",\"\",'1. Order'!BG517)","v":""},{"$f":"IF('1. Order'!BH517=\"\",\"\",'1. Order'!BH517)","v":"ZWO"}]
[{"$f":"IF('1. Order'!F518=\"\",\"\",'1. Order'!F518)","v":{"$error":"#N/A"}},{"$f":"IF('1. Order'!G518=\"\",\"\",'1. Order'!G518)","v":""},{"$f":"IF('1. Order'!H518=\"\",\"\",'1. Order'!H518)","v":""},{"$f":"IF('1. Order'!I518=\"\",\"\",'1. Order'!I518)","v":""},{"$f":"IF('1. Order'!J518=\"\",\"\",'1. Order'!J518)","v":""},{"$f":"IF('1. Order'!K518=\"\",\"\",'1. Order'!K518)","v":""},{"$f":"IF('1. Order'!L518=\"\",\"\",'1. Order'!L518)","v":""},{"$f":"IF('1. Order'!M518=\"\",\"\",'1. Order'!M518)","v":""},{"$f":"IF('1. Order'!N518=\"\",\"\",'1. Order'!N518)","v":""},{"$f":"IF('1. Order'!O518=\"\",\"\",'1. Order'!O518)","v":{"$error":"#N/A"}},{"$f":"IF('1. Order'!P518=\"\",\"\",'1. Order'!P518)","v":{"$error":"#N/A"}},{"$f":"IF('1. Order'!Q518=\"\",\"\",'1. Order'!Q518)","v":""},{"$f":"IF('1. Order'!S518=\"\",\"\",'1. Order'!S518)","v":""},{"$f":"IF('1. Order'!T518=\"\",\"\",'1. Order'!T518)","v":""},{"$f":"IF('1. Order'!W518=\"\",\"\",'1. Order'!W518)","v":""},{"$f":"IF('1. Order'!X518=\"\",\"\",'1. Order'!X518)","v":""},{"$f":"IF('1. Order'!Y518=\"\",\"\",'1. Order'!Y518)","v":"EUR"},{"$f":"IF('1. Order'!Z518=\"\",\"\",'1. Order'!Z518)","v":""},{"$f":"IF('1. Order'!AA518=\"\",\"\",'1. Order'!AA518)","v":""},{"$f":"IF('1. Order'!AB518=\"\",\"\",'1. Order'!AB518)","v":""},null,{"$f":"IF('1. Order'!AT518=\"\",\"\",'1. Order'!AT518)","v":""},{"$f":"IF('1. Order'!AU518=\"\",\"\",'1. Order'!AU518)","v":""},null,null,null,null,null,null,null,{"$f":"IF('1. Order'!AY518=\"\",\"\",'1. Order'!AY518)","v":""},{"$f":"IF('1. Order'!AZ518=\"\",\"\",'1. Order'!AZ518)","v":""},{"$f":"IF('1. Order'!BA518=\"\",\"\",'1. Order'!BA518)","v":""},{"$f":"IF('1. Order'!BB518=\"\",\"\",'1. Order'!BB518)","v":""},{"$f":"IF('1. Order'!BD518=\"\",\"\",'1. Order'!BD518)","v":""},{"$f":"IF('1. Order'!BE518=\"\",\"\",'1. Order'!BE518)","v":""},{"$f":"IF('1. Order'!BF518=\"\",\"\",'1. Order'!BF518)","v":""},{"$f":"IF('1. Order'!BG518=\"\",\"\",'1. Order'!BG518)","v":""},{"$f":"IF('1. Order'!BH518=\"\",\"\",'1. Order'!BH518)","v":"ZWO"}]
[{"$f":"IF('1. Order'!F519=\"\",\"\",'1. Order'!F519)","v":{"$error":"#N/A"}},{"$f":"IF('1. Order'!G519=\"\",\"\",'1. Order'!G519)","v":""},{"$f":"IF('1. Order'!H519=\"\",\"\",'1. Order'!H519)","v":""},{"$f":"IF('1. Order'!I519=\"\",\"\",'1. Order'!I519)","v":""},{"$f":"IF('1. Order'!J519=\"\",\"\",'1. Order'!J519)","v":""},{"$f":"IF('1. Order'!K519=\"\",\"\",'1. Order'!K519)","v":""},{"$f":"IF('1. Order'!L519=\"\",\"\",'1. Order'!L519)","v":""},{"$f":"IF('1. Order'!M519=\"\",\"\",'1. Order'!M519)","v":""},{"$f":"IF('1. Order'!N519=\"\",\"\",'1. Order'!N519)","v":""},{"$f":"IF('1. Order'!O519=\"\",\"\",'1. Order'!O519)","v":{"$error":"#N/A"}},{"$f":"IF('1. Order'!P519=\"\",\"\",'1. Order'!P519)","v":{"$error":"#N/A"}},{"$f":"IF('1. Order'!Q519=\"\",\"\",'1. Order'!Q519)","v":""},{"$f":"IF('1. Order'!S519=\"\",\"\",'1. Order'!S519)","v":""},{"$f":"IF('1. Order'!T519=\"\",\"\",'1. Order'!T519)","v":""},{"$f":"IF('1. Order'!W519=\"\",\"\",'1. Order'!W519)","v":""},{"$f":"IF('1. Order'!X519=\"\",\"\",'1. Order'!X519)","v":""},{"$f":"IF('1. Order'!Y519=\"\",\"\",'1. Order'!Y519)","v":"EUR"},{"$f":"IF('1. Order'!Z519=\"\",\"\",'1. Order'!Z519)","v":""},{"$f":"IF('1. Order'!AA519=\"\",\"\",'1. Order'!AA519)","v":""},{"$f":"IF('1. Order'!AB519=\"\",\"\",'1. Order'!AB519)","v":""},null,{"$f":"IF('1. Order'!AT519=\"\",\"\",'1. Order'!AT519)","v":""},{"$f":"IF('1. Order'!AU519=\"\",\"\",'1. Order'!AU519)","v":""},null,null,null,null,null,null,null,{"$f":"IF('1. Order'!AY519=\"\",\"\",'1. Order'!AY519)","v":""},{"$f":"IF('1. Order'!AZ519=\"\",\"\",'1. Order'!AZ519)","v":""},{"$f":"IF('1. Order'!BA519=\"\",\"\",'1. Order'!BA519)","v":""},{"$f":"IF('1. Order'!BB519=\"\",\"\",'1. Order'!BB519)","v":""},{"$f":"IF('1. Order'!BD519=\"\",\"\",'1. Order'!BD519)","v":""},{"$f":"IF('1. Order'!BE519=\"\",\"\",'1. Order'!BE519)","v":""},{"$f":"IF('1. Order'!BF519=\"\",\"\",'1. Order'!BF519)","v":""},{"$f":"IF('1. Order'!BG519=\"\",\"\",'1. Order'!BG519)","v":""},{"$f":"IF('1. Order'!BH519=\"\",\"\",'1. Order'!BH519)","v":"ZWO"}]
[{"$f":"IF('1. Order'!F520=\"\",\"\",'1. Order'!F520)","v":{"$error":"#N/A"}},{"$f":"IF('1. Order'!G520=\"\",\"\",'1. Order'!G520)","v":""},{"$f":"IF('1. Order'!H520=\"\",\"\",'1. Order'!H520)","v":""},{"$f":"IF('1. Order'!I520=\"\",\"\",'1. Order'!I520)","v":""},{"$f":"IF('1. Order'!J520=\"\",\"\",'1. Order'!J520)","v":""},{"$f":"IF('1. Order'!K520=\"\",\"\",'1. Order'!K520)","v":""},{"$f":"IF('1. Order'!L520=\"\",\"\",'1. Order'!L520)","v":""},{"$f":"IF('1. Order'!M520=\"\",\"\",'1. Order'!M520)","v":""},{"$f":"IF('1. Order'!N520=\"\",\"\",'1. Order'!N520)","v":""},{"$f":"IF('1. Order'!O520=\"\",\"\",'1. Order'!O520)","v":{"$error":"#N/A"}},{"$f":"IF('1. Order'!P520=\"\",\"\",'1. Order'!P520)","v":{"$error":"#N/A"}},{"$f":"IF('1. Order'!Q520=\"\",\"\",'1. Order'!Q520)","v":""},{"$f":"IF('1. Order'!S520=\"\",\"\",'1. Order'!S520)","v":""},{"$f":"IF('1. Order'!T520=\"\",\"\",'1. Order'!T520)","v":""},{"$f":"IF('1. Order'!W520=\"\",\"\",'1. Order'!W520)","v":""},{"$f":"IF('1. Order'!X520=\"\",\"\",'1. Order'!X520)","v":""},{"$f":"IF('1. Order'!Y520=\"\",\"\",'1. Order'!Y520)","v":"EUR"},{"$f":"IF('1. Order'!Z520=\"\",\"\",'1. Order'!Z520)","v":""},{"$f":"IF('1. Order'!AA520=\"\",\"\",'1. Order'!AA520)","v":""},{"$f":"IF('1. Order'!AB520=\"\",\"\",'1. Order'!AB520)","v":""},null,{"$f":"IF('1. Order'!AT520=\"\",\"\",'1. Order'!AT520)","v":""},{"$f":"IF('1. Order'!AU520=\"\",\"\",'1. Order'!AU520)","v":""},null,null,null,null,null,null,null,{"$f":"IF('1. Order'!AY520=\"\",\"\",'1. Order'!AY520)","v":""},{"$f":"IF('1. Order'!AZ520=\"\",\"\",'1. Order'!AZ520)","v":""},{"$f":"IF('1. Order'!BA520=\"\",\"\",'1. Order'!BA520)","v":""},{"$f":"IF('1. Order'!BB520=\"\",\"\",'1. Order'!BB520)","v":""},{"$f":"IF('1. Order'!BD520=\"\",\"\",'1. Order'!BD520)","v":""},{"$f":"IF('1. Order'!BE520=\"\",\"\",'1. Order'!BE520)","v":""},{"$f":"IF('1. Order'!BF520=\"\",\"\",'1. Order'!BF520)","v":""},{"$f":"IF('1. Order'!BG520=\"\",\"\",'1. Order'!BG520)","v":""},{"$f":"IF('1. Order'!BH520=\"\",\"\",'1. Order'!BH520)","v":"ZWO"}]
[{"$f":"IF('1. Order'!F521=\"\",\"\",'1. Order'!F521)","v":{"$error":"#N/A"}},{"$f":"IF('1. Order'!G521=\"\",\"\",'1. Order'!G521)","v":""},{"$f":"IF('1. Order'!H521=\"\",\"\",'1. Order'!H521)","v":""},{"$f":"IF('1. Order'!I521=\"\",\"\",'1. Order'!I521)","v":""},{"$f":"IF('1. Order'!J521=\"\",\"\",'1. Order'!J521)","v":""},{"$f":"IF('1. Order'!K521=\"\",\"\",'1. Order'!K521)","v":""},{"$f":"IF('1. Order'!L521=\"\",\"\",'1. Order'!L521)","v":""},{"$f":"IF('1. Order'!M521=\"\",\"\",'1. Order'!M521)","v":""},{"$f":"IF('1. Order'!N521=\"\",\"\",'1. Order'!N521)","v":""},{"$f":"IF('1. Order'!O521=\"\",\"\",'1. Order'!O521)","v":{"$error":"#N/A"}},{"$f":"IF('1. Order'!P521=\"\",\"\",'1. Order'!P521)","v":{"$error":"#N/A"}},{"$f":"IF('1. Order'!Q521=\"\",\"\",'1. Order'!Q521)","v":""},{"$f":"IF('1. Order'!S521=\"\",\"\",'1. Order'!S521)","v":""},{"$f":"IF('1. Order'!T521=\"\",\"\",'1. Order'!T521)","v":""},{"$f":"IF('1. Order'!W521=\"\",\"\",'1. Order'!W521)","v":""},{"$f":"IF('1. Order'!X521=\"\",\"\",'1. Order'!X521)","v":""},{"$f":"IF('1. Order'!Y521=\"\",\"\",'1. Order'!Y521)","v":"EUR"},{"$f":"IF('1. Order'!Z521=\"\",\"\",'1. Order'!Z521)","v":""},{"$f":"IF('1. Order'!AA521=\"\",\"\",'1. Order'!AA521)","v":""},{"$f":"IF('1. Order'!AB521=\"\",\"\",'1. Order'!AB521)","v":""},null,{"$f":"IF('1. Order'!AT521=\"\",\"\",'1. Order'!AT521)","v":""},{"$f":"IF('1. Order'!AU521=\"\",\"\",'1. Order'!AU521)","v":""},null,null,null,null,null,null,null,{"$f":"IF('1. Order'!AY521=\"\",\"\",'1. Order'!AY521)","v":""},{"$f":"IF('1. Order'!AZ521=\"\",\"\",'1. Order'!AZ521)","v":""},{"$f":"IF('1. Order'!BA521=\"\",\"\",'1. Order'!BA521)","v":""},{"$f":"IF('1. Order'!BB521=\"\",\"\",'1. Order'!BB521)","v":""},{"$f":"IF('1. Order'!BD521=\"\",\"\",'1. Order'!BD521)","v":""},{"$f":"IF('1. Order'!BE521=\"\",\"\",'1. Order'!BE521)","v":""},{"$f":"IF('1. Order'!BF521=\"\",\"\",'1. Order'!BF521)","v":""},{"$f":"IF('1. Order'!BG521=\"\",\"\",'1. Order'!BG521)","v":""},{"$f":"IF('1. Order'!BH521=\"\",\"\",'1. Order'!BH521)","v":"ZWO"}]
[{"$f":"IF('1. Order'!F522=\"\",\"\",'1. Order'!F522)","v":{"$error":"#N/A"}},{"$f":"IF('1. Order'!G522=\"\",\"\",'1. Order'!G522)","v":""},{"$f":"IF('1. Order'!H522=\"\",\"\",'1. Order'!H522)","v":""},{"$f":"IF('1. Order'!I522=\"\",\"\",'1. Order'!I522)","v":""},{"$f":"IF('1. Order'!J522=\"\",\"\",'1. Order'!J522)","v":""},{"$f":"IF('1. Order'!K522=\"\",\"\",'1. Order'!K522)","v":""},{"$f":"IF('1. Order'!L522=\"\",\"\",'1. Order'!L522)","v":""},{"$f":"IF('1. Order'!M522=\"\",\"\",'1. Order'!M522)","v":""},{"$f":"IF('1. Order'!N522=\"\",\"\",'1. Order'!N522)","v":""},{"$f":"IF('1. Order'!O522=\"\",\"\",'1. Order'!O522)","v":{"$error":"#N/A"}},{"$f":"IF('1. Order'!P522=\"\",\"\",'1. Order'!P522)","v":{"$error":"#N/A"}},{"$f":"IF('1. Order'!Q522=\"\",\"\",'1. Order'!Q522)","v":""},{"$f":"IF('1. Order'!S522=\"\",\"\",'1. Order'!S522)","v":""},{"$f":"IF('1. Order'!T522=\"\",\"\",'1. Order'!T522)","v":""},{"$f":"IF('1. Order'!W522=\"\",\"\",'1. Order'!W522)","v":""},{"$f":"IF('1. Order'!X522=\"\",\"\",'1. Order'!X522)","v":""},{"$f":"IF('1. Order'!Y522=\"\",\"\",'1. Order'!Y522)","v":"EUR"},{"$f":"IF('1. Order'!Z522=\"\",\"\",'1. Order'!Z522)","v":""},{"$f":"IF('1. Order'!AA522=\"\",\"\",'1. Order'!AA522)","v":""},{"$f":"IF('1. Order'!AB522=\"\",\"\",'1. Order'!AB522)","v":""},null,{"$f":"IF('1. Order'!AT522=\"\",\"\",'1. Order'!AT522)","v":""},{"$f":"IF('1. Order'!AU522=\"\",\"\",'1. Order'!AU522)","v":""},null,null,null,null,null,null,null,{"$f":"IF('1. Order'!AY522=\"\",\"\",'1. Order'!AY522)","v":""},{"$f":"IF('1. Order'!AZ522=\"\",\"\",'1. Order'!AZ522)","v":""},{"$f":"IF('1. Order'!BA522=\"\",\"\",'1. Order'!BA522)","v":""},{"$f":"IF('1. Order'!BB522=\"\",\"\",'1. Order'!BB522)","v":""},{"$f":"IF('1. Order'!BD522=\"\",\"\",'1. Order'!BD522)","v":""},{"$f":"IF('1. Order'!BE522=\"\",\"\",'1. Order'!BE522)","v":""},{"$f":"IF('1. Order'!BF522=\"\",\"\",'1. Order'!BF522)","v":""},{"$f":"IF('1. Order'!BG522=\"\",\"\",'1. Order'!BG522)","v":""},{"$f":"IF('1. Order'!BH522=\"\",\"\",'1. Order'!BH522)","v":"ZWO"}]
[{"$f":"IF('1. Order'!F523=\"\",\"\",'1. Order'!F523)","v":{"$error":"#N/A"}},{"$f":"IF('1. Order'!G523=\"\",\"\",'1. Order'!G523)","v":""},{"$f":"IF('1. Order'!H523=\"\",\"\",'1. Order'!H523)","v":""},{"$f":"IF('1. Order'!I523=\"\",\"\",'1. Order'!I523)","v":""},{"$f":"IF('1. Order'!J523=\"\",\"\",'1. Order'!J523)","v":""},{"$f":"IF('1. Order'!K523=\"\",\"\",'1. Order'!K523)","v":""},{"$f":"IF('1. Order'!L523=\"\",\"\",'1. Order'!L523)","v":""},{"$f":"IF('1. Order'!M523=\"\",\"\",'1. Order'!M523)","v":""},{"$f":"IF('1. Order'!N523=\"\",\"\",'1. Order'!N523)","v":""},{"$f":"IF('1. Order'!O523=\"\",\"\",'1. Order'!O523)","v":{"$error":"#N/A"}},{"$f":"IF('1. Order'!P523=\"\",\"\",'1. Order'!P523)","v":{"$error":"#N/A"}},{"$f":"IF('1. Order'!Q523=\"\",\"\",'1. Order'!Q523)","v":""},{"$f":"IF('1. Order'!S523=\"\",\"\",'1. Order'!S523)","v":""},{"$f":"IF('1. Order'!T523=\"\",\"\",'1. Order'!T523)","v":""},{"$f":"IF('1. Order'!W523=\"\",\"\",'1. Order'!W523)","v":""},{"$f":"IF('1. Order'!X523=\"\",\"\",'1. Order'!X523)","v":""},{"$f":"IF('1. Order'!Y523=\"\",\"\",'1. Order'!Y523)","v":"EUR"},{"$f":"IF('1. Order'!Z523=\"\",\"\",'1. Order'!Z523)","v":""},{"$f":"IF('1. Order'!AA523=\"\",\"\",'1. Order'!AA523)","v":""},{"$f":"IF('1. Order'!AB523=\"\",\"\",'1. Order'!AB523)","v":""},null,{"$f":"IF('1. Order'!AT523=\"\",\"\",'1. Order'!AT523)","v":""},{"$f":"IF('1. Order'!AU523=\"\",\"\",'1. Order'!AU523)","v":""},null,null,null,null,null,null,null,{"$f":"IF('1. Order'!AY523=\"\",\"\",'1. Order'!AY523)","v":""},{"$f":"IF('1. Order'!AZ523=\"\",\"\",'1. Order'!AZ523)","v":""},{"$f":"IF('1. Order'!BA523=\"\",\"\",'1. Order'!BA523)","v":""},{"$f":"IF('1. Order'!BB523=\"\",\"\",'1. Order'!BB523)","v":""},{"$f":"IF('1. Order'!BD523=\"\",\"\",'1. Order'!BD523)","v":""},{"$f":"IF('1. Order'!BE523=\"\",\"\",'1. Order'!BE523)","v":""},{"$f":"IF('1. Order'!BF523=\"\",\"\",'1. Order'!BF523)","v":""},{"$f":"IF('1. Order'!BG523=\"\",\"\",'1. Order'!BG523)","v":""},{"$f":"IF('1. Order'!BH523=\"\",\"\",'1. Order'!BH523)","v":"ZWO"}]
[{"$f":"IF('1. Order'!F524=\"\",\"\",'1. Order'!F524)","v":{"$error":"#N/A"}},{"$f":"IF('1. Order'!G524=\"\",\"\",'1. Order'!G524)","v":""},{"$f":"IF('1. Order'!H524=\"\",\"\",'1. Order'!H524)","v":""},{"$f":"IF('1. Order'!I524=\"\",\"\",'1. Order'!I524)","v":""},{"$f":"IF('1. Order'!J524=\"\",\"\",'1. Order'!J524)","v":""},{"$f":"IF('1. Order'!K524=\"\",\"\",'1. Order'!K524)","v":""},{"$f":"IF('1. Order'!L524=\"\",\"\",'1. Order'!L524)","v":""},{"$f":"IF('1. Order'!M524=\"\",\"\",'1. Order'!M524)","v":""},{"$f":"IF('1. Order'!N524=\"\",\"\",'1. Order'!N524)","v":""},{"$f":"IF('1. Order'!O524=\"\",\"\",'1. Order'!O524)","v":{"$error":"#N/A"}},{"$f":"IF('1. Order'!P524=\"\",\"\",'1. Order'!P524)","v":{"$error":"#N/A"}},{"$f":"IF('1. Order'!Q524=\"\",\"\",'1. Order'!Q524)","v":""},{"$f":"IF('1. Order'!S524=\"\",\"\",'1. Order'!S524)","v":""},{"$f":"IF('1. Order'!T524=\"\",\"\",'1. Order'!T524)","v":""},{"$f":"IF('1. Order'!W524=\"\",\"\",'1. Order'!W524)","v":""},{"$f":"IF('1. Order'!X524=\"\",\"\",'1. Order'!X524)","v":""},{"$f":"IF('1. Order'!Y524=\"\",\"\",'1. Order'!Y524)","v":"EUR"},{"$f":"IF('1. Order'!Z524=\"\",\"\",'1. Order'!Z524)","v":""},{"$f":"IF('1. Order'!AA524=\"\",\"\",'1. Order'!AA524)","v":""},{"$f":"IF('1. Order'!AB524=\"\",\"\",'1. Order'!AB524)","v":""},null,{"$f":"IF('1. Order'!AT524=\"\",\"\",'1. Order'!AT524)","v":""},{"$f":"IF('1. Order'!AU524=\"\",\"\",'1. Order'!AU524)","v":""},null,null,null,null,null,null,null,{"$f":"IF('1. Order'!AY524=\"\",\"\",'1. Order'!AY524)","v":""},{"$f":"IF('1. Order'!AZ524=\"\",\"\",'1. Order'!AZ524)","v":""},{"$f":"IF('1. Order'!BA524=\"\",\"\",'1. Order'!BA524)","v":""},{"$f":"IF('1. Order'!BB524=\"\",\"\",'1. Order'!BB524)","v":""},{"$f":"IF('1. Order'!BD524=\"\",\"\",'1. Order'!BD524)","v":""},{"$f":"IF('1. Order'!BE524=\"\",\"\",'1. Order'!BE524)","v":""},{"$f":"IF('1. Order'!BF524=\"\",\"\",'1. Order'!BF524)","v":""},{"$f":"IF('1. Order'!BG524=\"\",\"\",'1. Order'!BG524)","v":""},{"$f":"IF('1. Order'!BH524=\"\",\"\",'1. Order'!BH524)","v":"ZWO"}]
[{"$f":"IF('1. Order'!F525=\"\",\"\",'1. Order'!F525)","v":{"$error":"#N/A"}},{"$f":"IF('1. Order'!G525=\"\",\"\",'1. Order'!G525)","v":""},{"$f":"IF('1. Order'!H525=\"\",\"\",'1. Order'!H525)","v":""},{"$f":"IF('1. Order'!I525=\"\",\"\",'1. Order'!I525)","v":""},{"$f":"IF('1. Order'!J525=\"\",\"\",'1. Order'!J525)","v":""},{"$f":"IF('1. Order'!K525=\"\",\"\",'1. Order'!K525)","v":""},{"$f":"IF('1. Order'!L525=\"\",\"\",'1. Order'!L525)","v":""},{"$f":"IF('1. Order'!M525=\"\",\"\",'1. Order'!M525)","v":""},{"$f":"IF('1. Order'!N525=\"\",\"\",'1. Order'!N525)","v":""},{"$f":"IF('1. Order'!O525=\"\",\"\",'1. Order'!O525)","v":{"$error":"#N/A"}},{"$f":"IF('1. Order'!P525=\"\",\"\",'1. Order'!P525)","v":{"$error":"#N/A"}},{"$f":"IF('1. Order'!Q525=\"\",\"\",'1. Order'!Q525)","v":""},{"$f":"IF('1. Order'!S525=\"\",\"\",'1. Order'!S525)","v":""},{"$f":"IF('1. Order'!T525=\"\",\"\",'1. Order'!T525)","v":""},{"$f":"IF('1. Order'!W525=\"\",\"\",'1. Order'!W525)","v":""},{"$f":"IF('1. Order'!X525=\"\",\"\",'1. Order'!X525)","v":""},{"$f":"IF('1. Order'!Y525=\"\",\"\",'1. Order'!Y525)","v":"EUR"},{"$f":"IF('1. Order'!Z525=\"\",\"\",'1. Order'!Z525)","v":""},{"$f":"IF('1. Order'!AA525=\"\",\"\",'1. Order'!AA525)","v":""},{"$f":"IF('1. Order'!AB525=\"\",\"\",'1. Order'!AB525)","v":""},null,{"$f":"IF('1. Order'!AT525=\"\",\"\",'1. Order'!AT525)","v":""},{"$f":"IF('1. Order'!AU525=\"\",\"\",'1. Order'!AU525)","v":""},null,null,null,null,null,null,null,{"$f":"IF('1. Order'!AY525=\"\",\"\",'1. Order'!AY525)","v":""},{"$f":"IF('1. Order'!AZ525=\"\",\"\",'1. Order'!AZ525)","v":""},{"$f":"IF('1. Order'!BA525=\"\",\"\",'1. Order'!BA525)","v":""},{"$f":"IF('1. Order'!BB525=\"\",\"\",'1. Order'!BB525)","v":""},{"$f":"IF('1. Order'!BD525=\"\",\"\",'1. Order'!BD525)","v":""},{"$f":"IF('1. Order'!BE525=\"\",\"\",'1. Order'!BE525)","v":""},{"$f":"IF('1. Order'!BF525=\"\",\"\",'1. Order'!BF525)","v":""},{"$f":"IF('1. Order'!BG525=\"\",\"\",'1. Order'!BG525)","v":""},{"$f":"IF('1. Order'!BH525=\"\",\"\",'1. Order'!BH525)","v":"ZWO"}]
[{"$f":"IF('1. Order'!F526=\"\",\"\",'1. Order'!F526)","v":{"$error":"#N/A"}},{"$f":"IF('1. Order'!G526=\"\",\"\",'1. Order'!G526)","v":""},{"$f":"IF('1. Order'!H526=\"\",\"\",'1. Order'!H526)","v":""},{"$f":"IF('1. Order'!I526=\"\",\"\",'1. Order'!I526)","v":""},{"$f":"IF('1. Order'!J526=\"\",\"\",'1. Order'!J526)","v":""},{"$f":"IF('1. Order'!K526=\"\",\"\",'1. Order'!K526)","v":""},{"$f":"IF('1. Order'!L526=\"\",\"\",'1. Order'!L526)","v":""},{"$f":"IF('1. Order'!M526=\"\",\"\",'1. Order'!M526)","v":""},{"$f":"IF('1. Order'!N526=\"\",\"\",'1. Order'!N526)","v":""},{"$f":"IF('1. Order'!O526=\"\",\"\",'1. Order'!O526)","v":{"$error":"#N/A"}},{"$f":"IF('1. Order'!P526=\"\",\"\",'1. Order'!P526)","v":{"$error":"#N/A"}},{"$f":"IF('1. Order'!Q526=\"\",\"\",'1. Order'!Q526)","v":""},{"$f":"IF('1. Order'!S526=\"\",\"\",'1. Order'!S526)","v":""},{"$f":"IF('1. Order'!T526=\"\",\"\",'1. Order'!T526)","v":""},{"$f":"IF('1. Order'!W526=\"\",\"\",'1. Order'!W526)","v":""},{"$f":"IF('1. Order'!X526=\"\",\"\",'1. Order'!X526)","v":""},{"$f":"IF('1. Order'!Y526=\"\",\"\",'1. Order'!Y526)","v":"EUR"},{"$f":"IF('1. Order'!Z526=\"\",\"\",'1. Order'!Z526)","v":""},{"$f":"IF('1. Order'!AA526=\"\",\"\",'1. Order'!AA526)","v":""},{"$f":"IF('1. Order'!AB526=\"\",\"\",'1. Order'!AB526)","v":""},null,{"$f":"IF('1. Order'!AT526=\"\",\"\",'1. Order'!AT526)","v":""},{"$f":"IF('1. Order'!AU526=\"\",\"\",'1. Order'!AU526)","v":""},null,null,null,null,null,null,null,{"$f":"IF('1. Order'!AY526=\"\",\"\",'1. Order'!AY526)","v":""},{"$f":"IF('1. Order'!AZ526=\"\",\"\",'1. Order'!AZ526)","v":""},{"$f":"IF('1. Order'!BA526=\"\",\"\",'1. Order'!BA526)","v":""},{"$f":"IF('1. Order'!BB526=\"\",\"\",'1. Order'!BB526)","v":""},{"$f":"IF('1. Order'!BD526=\"\",\"\",'1. Order'!BD526)","v":""},{"$f":"IF('1. Order'!BE526=\"\",\"\",'1. Order'!BE526)","v":""},{"$f":"IF('1. Order'!BF526=\"\",\"\",'1. Order'!BF526)","v":""},{"$f":"IF('1. Order'!BG526=\"\",\"\",'1. Order'!BG526)","v":""},{"$f":"IF('1. Order'!BH526=\"\",\"\",'1. Order'!BH526)","v":"ZWO"}]
[{"$f":"IF('1. Order'!F527=\"\",\"\",'1. Order'!F527)","v":{"$error":"#N/A"}},{"$f":"IF('1. Order'!G527=\"\",\"\",'1. Order'!G527)","v":""},{"$f":"IF('1. Order'!H527=\"\",\"\",'1. Order'!H527)","v":""},{"$f":"IF('1. Order'!I527=\"\",\"\",'1. Order'!I527)","v":""},{"$f":"IF('1. Order'!J527=\"\",\"\",'1. Order'!J527)","v":""},{"$f":"IF('1. Order'!K527=\"\",\"\",'1. Order'!K527)","v":""},{"$f":"IF('1. Order'!L527=\"\",\"\",'1. Order'!L527)","v":""},{"$f":"IF('1. Order'!M527=\"\",\"\",'1. Order'!M527)","v":""},{"$f":"IF('1. Order'!N527=\"\",\"\",'1. Order'!N527)","v":""},{"$f":"IF('1. Order'!O527=\"\",\"\",'1. Order'!O527)","v":{"$error":"#N/A"}},{"$f":"IF('1. Order'!P527=\"\",\"\",'1. Order'!P527)","v":{"$error":"#N/A"}},{"$f":"IF('1. Order'!Q527=\"\",\"\",'1. Order'!Q527)","v":""},{"$f":"IF('1. Order'!S527=\"\",\"\",'1. Order'!S527)","v":""},{"$f":"IF('1. Order'!T527=\"\",\"\",'1. Order'!T527)","v":""},{"$f":"IF('1. Order'!W527=\"\",\"\",'1. Order'!W527)","v":""},{"$f":"IF('1. Order'!X527=\"\",\"\",'1. Order'!X527)","v":""},{"$f":"IF('1. Order'!Y527=\"\",\"\",'1. Order'!Y527)","v":"EUR"},{"$f":"IF('1. Order'!Z527=\"\",\"\",'1. Order'!Z527)","v":""},{"$f":"IF('1. Order'!AA527=\"\",\"\",'1. Order'!AA527)","v":""},{"$f":"IF('1. Order'!AB527=\"\",\"\",'1. Order'!AB527)","v":""},null,{"$f":"IF('1. Order'!AT527=\"\",\"\",'1. Order'!AT527)","v":""},{"$f":"IF('1. Order'!AU527=\"\",\"\",'1. Order'!AU527)","v":""},null,null,null,null,null,null,null,{"$f":"IF('1. Order'!AY527=\"\",\"\",'1. Order'!AY527)","v":""},{"$f":"IF('1. Order'!AZ527=\"\",\"\",'1. Order'!AZ527)","v":""},{"$f":"IF('1. Order'!BA527=\"\",\"\",'1. Order'!BA527)","v":""},{"$f":"IF('1. Order'!BB527=\"\",\"\",'1. Order'!BB527)","v":""},{"$f":"IF('1. Order'!BD527=\"\",\"\",'1. Order'!BD527)","v":""},{"$f":"IF('1. Order'!BE527=\"\",\"\",'1. Order'!BE527)","v":""},{"$f":"IF('1. Order'!BF527=\"\",\"\",'1. Order'!BF527)","v":""},{"$f":"IF('1. Order'!BG527=\"\",\"\",'1. Order'!BG527)","v":""},{"$f":"IF('1. Order'!BH527=\"\",\"\",'1. Order'!BH527)","v":"ZWO"}]
[{"$f":"IF('1. Order'!F528=\"\",\"\",'1. Order'!F528)","v":{"$error":"#N/A"}},{"$f":"IF('1. Order'!G528=\"\",\"\",'1. Order'!G528)","v":""},{"$f":"IF('1. Order'!H528=\"\",\"\",'1. Order'!H528)","v":""},{"$f":"IF('1. Order'!I528=\"\",\"\",'1. Order'!I528)","v":""},{"$f":"IF('1. Order'!J528=\"\",\"\",'1. Order'!J528)","v":""},{"$f":"IF('1. Order'!K528=\"\",\"\",'1. Order'!K528)","v":""},{"$f":"IF('1. Order'!L528=\"\",\"\",'1. Order'!L528)","v":""},{"$f":"IF('1. Order'!M528=\"\",\"\",'1. Order'!M528)","v":""},{"$f":"IF('1. Order'!N528=\"\",\"\",'1. Order'!N528)","v":""},{"$f":"IF('1. Order'!O528=\"\",\"\",'1. Order'!O528)","v":{"$error":"#N/A"}},{"$f":"IF('1. Order'!P528=\"\",\"\",'1. Order'!P528)","v":{"$error":"#N/A"}},{"$f":"IF('1. Order'!Q528=\"\",\"\",'1. Order'!Q528)","v":""},{"$f":"IF('1. Order'!S528=\"\",\"\",'1. Order'!S528)","v":""},{"$f":"IF('1. Order'!T528=\"\",\"\",'1. Order'!T528)","v":""},{"$f":"IF('1. Order'!W528=\"\",\"\",'1. Order'!W528)","v":""},{"$f":"IF('1. Order'!X528=\"\",\"\",'1. Order'!X528)","v":""},{"$f":"IF('1. Order'!Y528=\"\",\"\",'1. Order'!Y528)","v":"EUR"},{"$f":"IF('1. Order'!Z528=\"\",\"\",'1. Order'!Z528)","v":""},{"$f":"IF('1. Order'!AA528=\"\",\"\",'1. Order'!AA528)","v":""},{"$f":"IF('1. Order'!AB528=\"\",\"\",'1. Order'!AB528)","v":""},null,{"$f":"IF('1. Order'!AT528=\"\",\"\",'1. Order'!AT528)","v":""},{"$f":"IF('1. Order'!AU528=\"\",\"\",'1. Order'!AU528)","v":""},null,null,null,null,null,null,null,{"$f":"IF('1. Order'!AY528=\"\",\"\",'1. Order'!AY528)","v":""},{"$f":"IF('1. Order'!AZ528=\"\",\"\",'1. Order'!AZ528)","v":""},{"$f":"IF('1. Order'!BA528=\"\",\"\",'1. Order'!BA528)","v":""},{"$f":"IF('1. Order'!BB528=\"\",\"\",'1. Order'!BB528)","v":""},{"$f":"IF('1. Order'!BD528=\"\",\"\",'1. Order'!BD528)","v":""},{"$f":"IF('1. Order'!BE528=\"\",\"\",'1. Order'!BE528)","v":""},{"$f":"IF('1. Order'!BF528=\"\",\"\",'1. Order'!BF528)","v":""},{"$f":"IF('1. Order'!BG528=\"\",\"\",'1. Order'!BG528)","v":""},{"$f":"IF('1. Order'!BH528=\"\",\"\",'1. Order'!BH528)","v":"ZWO"}]
[{"$f":"IF('1. Order'!F529=\"\",\"\",'1. Order'!F529)","v":{"$error":"#N/A"}},{"$f":"IF('1. Order'!G529=\"\",\"\",'1. Order'!G529)","v":""},{"$f":"IF('1. Order'!H529=\"\",\"\",'1. Order'!H529)","v":""},{"$f":"IF('1. Order'!I529=\"\",\"\",'1. Order'!I529)","v":""},{"$f":"IF('1. Order'!J529=\"\",\"\",'1. Order'!J529)","v":""},{"$f":"IF('1. Order'!K529=\"\",\"\",'1. Order'!K529)","v":""},{"$f":"IF('1. Order'!L529=\"\",\"\",'1. Order'!L529)","v":""},{"$f":"IF('1. Order'!M529=\"\",\"\",'1. Order'!M529)","v":""},{"$f":"IF('1. Order'!N529=\"\",\"\",'1. Order'!N529)","v":""},{"$f":"IF('1. Order'!O529=\"\",\"\",'1. Order'!O529)","v":{"$error":"#N/A"}},{"$f":"IF('1. Order'!P529=\"\",\"\",'1. Order'!P529)","v":{"$error":"#N/A"}},{"$f":"IF('1. Order'!Q529=\"\",\"\",'1. Order'!Q529)","v":""},{"$f":"IF('1. Order'!S529=\"\",\"\",'1. Order'!S529)","v":""},{"$f":"IF('1. Order'!T529=\"\",\"\",'1. Order'!T529)","v":""},{"$f":"IF('1. Order'!W529=\"\",\"\",'1. Order'!W529)","v":""},{"$f":"IF('1. Order'!X529=\"\",\"\",'1. Order'!X529)","v":""},{"$f":"IF('1. Order'!Y529=\"\",\"\",'1. Order'!Y529)","v":"EUR"},{"$f":"IF('1. Order'!Z529=\"\",\"\",'1. Order'!Z529)","v":""},{"$f":"IF('1. Order'!AA529=\"\",\"\",'1. Order'!AA529)","v":""},{"$f":"IF('1. Order'!AB529=\"\",\"\",'1. Order'!AB529)","v":""},null,{"$f":"IF('1. Order'!AT529=\"\",\"\",'1. Order'!AT529)","v":""},{"$f":"IF('1. Order'!AU529=\"\",\"\",'1. Order'!AU529)","v":""},null,null,null,null,null,null,null,{"$f":"IF('1. Order'!AY529=\"\",\"\",'1. Order'!AY529)","v":""},{"$f":"IF('1. Order'!AZ529=\"\",\"\",'1. Order'!AZ529)","v":""},{"$f":"IF('1. Order'!BA529=\"\",\"\",'1. Order'!BA529)","v":""},{"$f":"IF('1. Order'!BB529=\"\",\"\",'1. Order'!BB529)","v":""},{"$f":"IF('1. Order'!BD529=\"\",\"\",'1. Order'!BD529)","v":""},{"$f":"IF('1. Order'!BE529=\"\",\"\",'1. Order'!BE529)","v":""},{"$f":"IF('1. Order'!BF529=\"\",\"\",'1. Order'!BF529)","v":""},{"$f":"IF('1. Order'!BG529=\"\",\"\",'1. Order'!BG529)","v":""},{"$f":"IF('1. Order'!BH529=\"\",\"\",'1. Order'!BH529)","v":"ZWO"}]
[{"$f":"IF('1. Order'!F530=\"\",\"\",'1. Order'!F530)","v":{"$error":"#N/A"}},{"$f":"IF('1. Order'!G530=\"\",\"\",'1. Order'!G530)","v":""},{"$f":"IF('1. Order'!H530=\"\",\"\",'1. Order'!H530)","v":""},{"$f":"IF('1. Order'!I530=\"\",\"\",'1. Order'!I530)","v":""},{"$f":"IF('1. Order'!J530=\"\",\"\",'1. Order'!J530)","v":""},{"$f":"IF('1. Order'!K530=\"\",\"\",'1. Order'!K530)","v":""},{"$f":"IF('1. Order'!L530=\"\",\"\",'1. Order'!L530)","v":""},{"$f":"IF('1. Order'!M530=\"\",\"\",'1. Order'!M530)","v":""},{"$f":"IF('1. Order'!N530=\"\",\"\",'1. Order'!N530)","v":""},{"$f":"IF('1. Order'!O530=\"\",\"\",'1. Order'!O530)","v":{"$error":"#N/A"}},{"$f":"IF('1. Order'!P530=\"\",\"\",'1. Order'!P530)","v":{"$error":"#N/A"}},{"$f":"IF('1. Order'!Q530=\"\",\"\",'1. Order'!Q530)","v":""},{"$f":"IF('1. Order'!S530=\"\",\"\",'1. Order'!S530)","v":""},{"$f":"IF('1. Order'!T530=\"\",\"\",'1. Order'!T530)","v":""},{"$f":"IF('1. Order'!W530=\"\",\"\",'1. Order'!W530)","v":""},{"$f":"IF('1. Order'!X530=\"\",\"\",'1. Order'!X530)","v":""},{"$f":"IF('1. Order'!Y530=\"\",\"\",'1. Order'!Y530)","v":"EUR"},{"$f":"IF('1. Order'!Z530=\"\",\"\",'1. Order'!Z530)","v":""},{"$f":"IF('1. Order'!AA530=\"\",\"\",'1. Order'!AA530)","v":""},{"$f":"IF('1. Order'!AB530=\"\",\"\",'1. Order'!AB530)","v":""},null,{"$f":"IF('1. Order'!AT530=\"\",\"\",'1. Order'!AT530)","v":""},{"$f":"IF('1. Order'!AU530=\"\",\"\",'1. Order'!AU530)","v":""},null,null,null,null,null,null,null,{"$f":"IF('1. Order'!AY530=\"\",\"\",'1. Order'!AY530)","v":""},{"$f":"IF('1. Order'!AZ530=\"\",\"\",'1. Order'!AZ530)","v":""},{"$f":"IF('1. Order'!BA530=\"\",\"\",'1. Order'!BA530)","v":""},{"$f":"IF('1. Order'!BB530=\"\",\"\",'1. Order'!BB530)","v":""},{"$f":"IF('1. Order'!BD530=\"\",\"\",'1. Order'!BD530)","v":""},{"$f":"IF('1. Order'!BE530=\"\",\"\",'1. Order'!BE530)","v":""},{"$f":"IF('1. Order'!BF530=\"\",\"\",'1. Order'!BF530)","v":""},{"$f":"IF('1. Order'!BG530=\"\",\"\",'1. Order'!BG530)","v":""},{"$f":"IF('1. Order'!BH530=\"\",\"\",'1. Order'!BH530)","v":"ZWO"}]
[{"$f":"IF('1. Order'!F531=\"\",\"\",'1. Order'!F531)","v":{"$error":"#N/A"}},{"$f":"IF('1. Order'!G531=\"\",\"\",'1. Order'!G531)","v":""},{"$f":"IF('1. Order'!H531=\"\",\"\",'1. Order'!H531)","v":""},{"$f":"IF('1. Order'!I531=\"\",\"\",'1. Order'!I531)","v":""},{"$f":"IF('1. Order'!J531=\"\",\"\",'1. Order'!J531)","v":""},{"$f":"IF('1. Order'!K531=\"\",\"\",'1. Order'!K531)","v":""},{"$f":"IF('1. Order'!L531=\"\",\"\",'1. Order'!L531)","v":""},{"$f":"IF('1. Order'!M531=\"\",\"\",'1. Order'!M531)","v":""},{"$f":"IF('1. Order'!N531=\"\",\"\",'1. Order'!N531)","v":""},{"$f":"IF('1. Order'!O531=\"\",\"\",'1. Order'!O531)","v":{"$error":"#N/A"}},{"$f":"IF('1. Order'!P531=\"\",\"\",'1. Order'!P531)","v":{"$error":"#N/A"}},{"$f":"IF('1. Order'!Q531=\"\",\"\",'1. Order'!Q531)","v":""},{"$f":"IF('1. Order'!S531=\"\",\"\",'1. Order'!S531)","v":""},{"$f":"IF('1. Order'!T531=\"\",\"\",'1. Order'!T531)","v":""},{"$f":"IF('1. Order'!W531=\"\",\"\",'1. Order'!W531)","v":""},{"$f":"IF('1. Order'!X531=\"\",\"\",'1. Order'!X531)","v":""},{"$f":"IF('1. Order'!Y531=\"\",\"\",'1. Order'!Y531)","v":"EUR"},{"$f":"IF('1. Order'!Z531=\"\",\"\",'1. Order'!Z531)","v":""},{"$f":"IF('1. Order'!AA531=\"\",\"\",'1. Order'!AA531)","v":""},{"$f":"IF('1. Order'!AB531=\"\",\"\",'1. Order'!AB531)","v":""},null,{"$f":"IF('1. Order'!AT531=\"\",\"\",'1. Order'!AT531)","v":""},{"$f":"IF('1. Order'!AU531=\"\",\"\",'1. Order'!AU531)","v":""},null,null,null,null,null,null,null,{"$f":"IF('1. Order'!AY531=\"\",\"\",'1. Order'!AY531)","v":""},{"$f":"IF('1. Order'!AZ531=\"\",\"\",'1. Order'!AZ531)","v":""},{"$f":"IF('1. Order'!BA531=\"\",\"\",'1. Order'!BA531)","v":""},{"$f":"IF('1. Order'!BB531=\"\",\"\",'1. Order'!BB531)","v":""},{"$f":"IF('1. Order'!BD531=\"\",\"\",'1. Order'!BD531)","v":""},{"$f":"IF('1. Order'!BE531=\"\",\"\",'1. Order'!BE531)","v":""},{"$f":"IF('1. Order'!BF531=\"\",\"\",'1. Order'!BF531)","v":""},{"$f":"IF('1. Order'!BG531=\"\",\"\",'1. Order'!BG531)","v":""},{"$f":"IF('1. Order'!BH531=\"\",\"\",'1. Order'!BH531)","v":"ZWO"}]
[{"$f":"IF('1. Order'!F532=\"\",\"\",'1. Order'!F532)","v":{"$error":"#N/A"}},{"$f":"IF('1. Order'!G532=\"\",\"\",'1. Order'!G532)","v":""},{"$f":"IF('1. Order'!H532=\"\",\"\",'1. Order'!H532)","v":""},{"$f":"IF('1. Order'!I532=\"\",\"\",'1. Order'!I532)","v":""},{"$f":"IF('1. Order'!J532=\"\",\"\",'1. Order'!J532)","v":""},{"$f":"IF('1. Order'!K532=\"\",\"\",'1. Order'!K532)","v":""},{"$f":"IF('1. Order'!L532=\"\",\"\",'1. Order'!L532)","v":""},{"$f":"IF('1. Order'!M532=\"\",\"\",'1. Order'!M532)","v":""},{"$f":"IF('1. Order'!N532=\"\",\"\",'1. Order'!N532)","v":""},{"$f":"IF('1. Order'!O532=\"\",\"\",'1. Order'!O532)","v":{"$error":"#N/A"}},{"$f":"IF('1. Order'!P532=\"\",\"\",'1. Order'!P532)","v":{"$error":"#N/A"}},{"$f":"IF('1. Order'!Q532=\"\",\"\",'1. Order'!Q532)","v":""},{"$f":"IF('1. Order'!S532=\"\",\"\",'1. Order'!S532)","v":""},{"$f":"IF('1. Order'!T532=\"\",\"\",'1. Order'!T532)","v":""},{"$f":"IF('1. Order'!W532=\"\",\"\",'1. Order'!W532)","v":""},{"$f":"IF('1. Order'!X532=\"\",\"\",'1. Order'!X532)","v":""},{"$f":"IF('1. Order'!Y532=\"\",\"\",'1. Order'!Y532)","v":"EUR"},{"$f":"IF('1. Order'!Z532=\"\",\"\",'1. Order'!Z532)","v":""},{"$f":"IF('1. Order'!AA532=\"\",\"\",'1. Order'!AA532)","v":""},{"$f":"IF('1. Order'!AB532=\"\",\"\",'1. Order'!AB532)","v":""},null,{"$f":"IF('1. Order'!AT532=\"\",\"\",'1. Order'!AT532)","v":""},{"$f":"IF('1. Order'!AU532=\"\",\"\",'1. Order'!AU532)","v":""},null,null,null,null,null,null,null,{"$f":"IF('1. Order'!AY532=\"\",\"\",'1. Order'!AY532)","v":""},{"$f":"IF('1. Order'!AZ532=\"\",\"\",'1. Order'!AZ532)","v":""},{"$f":"IF('1. Order'!BA532=\"\",\"\",'1. Order'!BA532)","v":""},{"$f":"IF('1. Order'!BB532=\"\",\"\",'1. Order'!BB532)","v":""},{"$f":"IF('1. Order'!BD532=\"\",\"\",'1. Order'!BD532)","v":""},{"$f":"IF('1. Order'!BE532=\"\",\"\",'1. Order'!BE532)","v":""},{"$f":"IF('1. Order'!BF532=\"\",\"\",'1. Order'!BF532)","v":""},{"$f":"IF('1. Order'!BG532=\"\",\"\",'1. Order'!BG532)","v":""},{"$f":"IF('1. Order'!BH532=\"\",\"\",'1. Order'!BH532)","v":"ZWO"}]
[{"$f":"IF('1. Order'!F533=\"\",\"\",'1. Order'!F533)","v":{"$error":"#N/A"}},{"$f":"IF('1. Order'!G533=\"\",\"\",'1. Order'!G533)","v":""},{"$f":"IF('1. Order'!H533=\"\",\"\",'1. Order'!H533)","v":""},{"$f":"IF('1. Order'!I533=\"\",\"\",'1. Order'!I533)","v":""},{"$f":"IF('1. Order'!J533=\"\",\"\",'1. Order'!J533)","v":""},{"$f":"IF('1. Order'!K533=\"\",\"\",'1. Order'!K533)","v":""},{"$f":"IF('1. Order'!L533=\"\",\"\",'1. Order'!L533)","v":""},{"$f":"IF('1. Order'!M533=\"\",\"\",'1. Order'!M533)","v":""},{"$f":"IF('1. Order'!N533=\"\",\"\",'1. Order'!N533)","v":""},{"$f":"IF('1. Order'!O533=\"\",\"\",'1. Order'!O533)","v":{"$error":"#N/A"}},{"$f":"IF('1. Order'!P533=\"\",\"\",'1. Order'!P533)","v":{"$error":"#N/A"}},{"$f":"IF('1. Order'!Q533=\"\",\"\",'1. Order'!Q533)","v":""},{"$f":"IF('1. Order'!S533=\"\",\"\",'1. Order'!S533)","v":""},{"$f":"IF('1. Order'!T533=\"\",\"\",'1. Order'!T533)","v":""},{"$f":"IF('1. Order'!W533=\"\",\"\",'1. Order'!W533)","v":""},{"$f":"IF('1. Order'!X533=\"\",\"\",'1. Order'!X533)","v":""},{"$f":"IF('1. Order'!Y533=\"\",\"\",'1. Order'!Y533)","v":"EUR"},{"$f":"IF('1. Order'!Z533=\"\",\"\",'1. Order'!Z533)","v":""},{"$f":"IF('1. Order'!AA533=\"\",\"\",'1. Order'!AA533)","v":""},{"$f":"IF('1. Order'!AB533=\"\",\"\",'1. Order'!AB533)","v":""},null,{"$f":"IF('1. Order'!AT533=\"\",\"\",'1. Order'!AT533)","v":""},{"$f":"IF('1. Order'!AU533=\"\",\"\",'1. Order'!AU533)","v":""},null,null,null,null,null,null,null,{"$f":"IF('1. Order'!AY533=\"\",\"\",'1. Order'!AY533)","v":""},{"$f":"IF('1. Order'!AZ533=\"\",\"\",'1. Order'!AZ533)","v":""},{"$f":"IF('1. Order'!BA533=\"\",\"\",'1. Order'!BA533)","v":""},{"$f":"IF('1. Order'!BB533=\"\",\"\",'1. Order'!BB533)","v":""},{"$f":"IF('1. Order'!BD533=\"\",\"\",'1. Order'!BD533)","v":""},{"$f":"IF('1. Order'!BE533=\"\",\"\",'1. Order'!BE533)","v":""},{"$f":"IF('1. Order'!BF533=\"\",\"\",'1. Order'!BF533)","v":""},{"$f":"IF('1. Order'!BG533=\"\",\"\",'1. Order'!BG533)","v":""},{"$f":"IF('1. Order'!BH533=\"\",\"\",'1. Order'!BH533)","v":"ZWO"}]
[{"$f":"IF('1. Order'!F534=\"\",\"\",'1. Order'!F534)","v":{"$error":"#N/A"}},{"$f":"IF('1. Order'!G534=\"\",\"\",'1. Order'!G534)","v":""},{"$f":"IF('1. Order'!H534=\"\",\"\",'1. Order'!H534)","v":""},{"$f":"IF('1. Order'!I534=\"\",\"\",'1. Order'!I534)","v":""},{"$f":"IF('1. Order'!J534=\"\",\"\",'1. Order'!J534)","v":""},{"$f":"IF('1. Order'!K534=\"\",\"\",'1. Order'!K534)","v":""},{"$f":"IF('1. Order'!L534=\"\",\"\",'1. Order'!L534)","v":""},{"$f":"IF('1. Order'!M534=\"\",\"\",'1. Order'!M534)","v":""},{"$f":"IF('1. Order'!N534=\"\",\"\",'1. Order'!N534)","v":""},{"$f":"IF('1. Order'!O534=\"\",\"\",'1. Order'!O534)","v":{"$error":"#N/A"}},{"$f":"IF('1. Order'!P534=\"\",\"\",'1. Order'!P534)","v":{"$error":"#N/A"}},{"$f":"IF('1. Order'!Q534=\"\",\"\",'1. Order'!Q534)","v":""},{"$f":"IF('1. Order'!S534=\"\",\"\",'1. Order'!S534)","v":""},{"$f":"IF('1. Order'!T534=\"\",\"\",'1. Order'!T534)","v":""},{"$f":"IF('1. Order'!W534=\"\",\"\",'1. Order'!W534)","v":""},{"$f":"IF('1. Order'!X534=\"\",\"\",'1. Order'!X534)","v":""},{"$f":"IF('1. Order'!Y534=\"\",\"\",'1. Order'!Y534)","v":"EUR"},{"$f":"IF('1. Order'!Z534=\"\",\"\",'1. Order'!Z534)","v":""},{"$f":"IF('1. Order'!AA534=\"\",\"\",'1. Order'!AA534)","v":""},{"$f":"IF('1. Order'!AB534=\"\",\"\",'1. Order'!AB534)","v":""},null,{"$f":"IF('1. Order'!AT534=\"\",\"\",'1. Order'!AT534)","v":""},{"$f":"IF('1. Order'!AU534=\"\",\"\",'1. Order'!AU534)","v":""},null,null,null,null,null,null,null,{"$f":"IF('1. Order'!AY534=\"\",\"\",'1. Order'!AY534)","v":""},{"$f":"IF('1. Order'!AZ534=\"\",\"\",'1. Order'!AZ534)","v":""},{"$f":"IF('1. Order'!BA534=\"\",\"\",'1. Order'!BA534)","v":""},{"$f":"IF('1. Order'!BB534=\"\",\"\",'1. Order'!BB534)","v":""},{"$f":"IF('1. Order'!BD534=\"\",\"\",'1. Order'!BD534)","v":""},{"$f":"IF('1. Order'!BE534=\"\",\"\",'1. Order'!BE534)","v":""},{"$f":"IF('1. Order'!BF534=\"\",\"\",'1. Order'!BF534)","v":""},{"$f":"IF('1. Order'!BG534=\"\",\"\",'1. Order'!BG534)","v":""},{"$f":"IF('1. Order'!BH534=\"\",\"\",'1. Order'!BH534)","v":"ZWO"}]
[{"$f":"IF('1. Order'!F535=\"\",\"\",'1. Order'!F535)","v":{"$error":"#N/A"}},{"$f":"IF('1. Order'!G535=\"\",\"\",'1. Order'!G535)","v":""},{"$f":"IF('1. Order'!H535=\"\",\"\",'1. Order'!H535)","v":""},{"$f":"IF('1. Order'!I535=\"\",\"\",'1. Order'!I535)","v":""},{"$f":"IF('1. Order'!J535=\"\",\"\",'1. Order'!J535)","v":""},{"$f":"IF('1. Order'!K535=\"\",\"\",'1. Order'!K535)","v":""},{"$f":"IF('1. Order'!L535=\"\",\"\",'1. Order'!L535)","v":""},{"$f":"IF('1. Order'!M535=\"\",\"\",'1. Order'!M535)","v":""},{"$f":"IF('1. Order'!N535=\"\",\"\",'1. Order'!N535)","v":""},{"$f":"IF('1. Order'!O535=\"\",\"\",'1. Order'!O535)","v":{"$error":"#N/A"}},{"$f":"IF('1. Order'!P535=\"\",\"\",'1. Order'!P535)","v":{"$error":"#N/A"}},{"$f":"IF('1. Order'!Q535=\"\",\"\",'1. Order'!Q535)","v":""},{"$f":"IF('1. Order'!S535=\"\",\"\",'1. Order'!S535)","v":""},{"$f":"IF('1. Order'!T535=\"\",\"\",'1. Order'!T535)","v":""},{"$f":"IF('1. Order'!W535=\"\",\"\",'1. Order'!W535)","v":""},{"$f":"IF('1. Order'!X535=\"\",\"\",'1. Order'!X535)","v":""},{"$f":"IF('1. Order'!Y535=\"\",\"\",'1. Order'!Y535)","v":"EUR"},{"$f":"IF('1. Order'!Z535=\"\",\"\",'1. Order'!Z535)","v":""},{"$f":"IF('1. Order'!AA535=\"\",\"\",'1. Order'!AA535)","v":""},{"$f":"IF('1. Order'!AB535=\"\",\"\",'1. Order'!AB535)","v":""},null,{"$f":"IF('1. Order'!AT535=\"\",\"\",'1. Order'!AT535)","v":""},{"$f":"IF('1. Order'!AU535=\"\",\"\",'1. Order'!AU535)","v":""},null,null,null,null,null,null,null,{"$f":"IF('1. Order'!AY535=\"\",\"\",'1. Order'!AY535)","v":""},{"$f":"IF('1. Order'!AZ535=\"\",\"\",'1. Order'!AZ535)","v":""},{"$f":"IF('1. Order'!BA535=\"\",\"\",'1. Order'!BA535)","v":""},{"$f":"IF('1. Order'!BB535=\"\",\"\",'1. Order'!BB535)","v":""},{"$f":"IF('1. Order'!BD535=\"\",\"\",'1. Order'!BD535)","v":""},{"$f":"IF('1. Order'!BE535=\"\",\"\",'1. Order'!BE535)","v":""},{"$f":"IF('1. Order'!BF535=\"\",\"\",'1. Order'!BF535)","v":""},{"$f":"IF('1. Order'!BG535=\"\",\"\",'1. Order'!BG535)","v":""},{"$f":"IF('1. Order'!BH535=\"\",\"\",'1. Order'!BH535)","v":"ZWO"}]
[{"$f":"IF('1. Order'!F536=\"\",\"\",'1. Order'!F536)","v":{"$error":"#N/A"}},{"$f":"IF('1. Order'!G536=\"\",\"\",'1. Order'!G536)","v":""},{"$f":"IF('1. Order'!H536=\"\",\"\",'1. Order'!H536)","v":""},{"$f":"IF('1. Order'!I536=\"\",\"\",'1. Order'!I536)","v":""},{"$f":"IF('1. Order'!J536=\"\",\"\",'1. Order'!J536)","v":""},{"$f":"IF('1. Order'!K536=\"\",\"\",'1. Order'!K536)","v":""},{"$f":"IF('1. Order'!L536=\"\",\"\",'1. Order'!L536)","v":""},{"$f":"IF('1. Order'!M536=\"\",\"\",'1. Order'!M536)","v":""},{"$f":"IF('1. Order'!N536=\"\",\"\",'1. Order'!N536)","v":""},{"$f":"IF('1. Order'!O536=\"\",\"\",'1. Order'!O536)","v":{"$error":"#N/A"}},{"$f":"IF('1. Order'!P536=\"\",\"\",'1. Order'!P536)","v":{"$error":"#N/A"}},{"$f":"IF('1. Order'!Q536=\"\",\"\",'1. Order'!Q536)","v":""},{"$f":"IF('1. Order'!S536=\"\",\"\",'1. Order'!S536)","v":""},{"$f":"IF('1. Order'!T536=\"\",\"\",'1. Order'!T536)","v":""},{"$f":"IF('1. Order'!W536=\"\",\"\",'1. Order'!W536)","v":""},{"$f":"IF('1. Order'!X536=\"\",\"\",'1. Order'!X536)","v":""},{"$f":"IF('1. Order'!Y536=\"\",\"\",'1. Order'!Y536)","v":"EUR"},{"$f":"IF('1. Order'!Z536=\"\",\"\",'1. Order'!Z536)","v":""},{"$f":"IF('1. Order'!AA536=\"\",\"\",'1. Order'!AA536)","v":""},{"$f":"IF('1. Order'!AB536=\"\",\"\",'1. Order'!AB536)","v":""},null,{"$f":"IF('1. Order'!AT536=\"\",\"\",'1. Order'!AT536)","v":""},{"$f":"IF('1. Order'!AU536=\"\",\"\",'1. Order'!AU536)","v":""},null,null,null,null,null,null,null,{"$f":"IF('1. Order'!AY536=\"\",\"\",'1. Order'!AY536)","v":""},{"$f":"IF('1. Order'!AZ536=\"\",\"\",'1. Order'!AZ536)","v":""},{"$f":"IF('1. Order'!BA536=\"\",\"\",'1. Order'!BA536)","v":""},{"$f":"IF('1. Order'!BB536=\"\",\"\",'1. Order'!BB536)","v":""},{"$f":"IF('1. Order'!BD536=\"\",\"\",'1. Order'!BD536)","v":""},{"$f":"IF('1. Order'!BE536=\"\",\"\",'1. Order'!BE536)","v":""},{"$f":"IF('1. Order'!BF536=\"\",\"\",'1. Order'!BF536)","v":""},{"$f":"IF('1. Order'!BG536=\"\",\"\",'1. Order'!BG536)","v":""},{"$f":"IF('1. Order'!BH536=\"\",\"\",'1. Order'!BH536)","v":"ZWO"}]
[{"$f":"IF('1. Order'!F537=\"\",\"\",'1. Order'!F537)","v":{"$error":"#N/A"}},{"$f":"IF('1. Order'!G537=\"\",\"\",'1. Order'!G537)","v":""},{"$f":"IF('1. Order'!H537=\"\",\"\",'1. Order'!H537)","v":""},{"$f":"IF('1. Order'!I537=\"\",\"\",'1. Order'!I537)","v":""},{"$f":"IF('1. Order'!J537=\"\",\"\",'1. Order'!J537)","v":""},{"$f":"IF('1. Order'!K537=\"\",\"\",'1. Order'!K537)","v":""},{"$f":"IF('1. Order'!L537=\"\",\"\",'1. Order'!L537)","v":""},{"$f":"IF('1. Order'!M537=\"\",\"\",'1. Order'!M537)","v":""},{"$f":"IF('1. Order'!N537=\"\",\"\",'1. Order'!N537)","v":""},{"$f":"IF('1. Order'!O537=\"\",\"\",'1. Order'!O537)","v":{"$error":"#N/A"}},{"$f":"IF('1. Order'!P537=\"\",\"\",'1. Order'!P537)","v":{"$error":"#N/A"}},{"$f":"IF('1. Order'!Q537=\"\",\"\",'1. Order'!Q537)","v":""},{"$f":"IF('1. Order'!S537=\"\",\"\",'1. Order'!S537)","v":""},{"$f":"IF('1. Order'!T537=\"\",\"\",'1. Order'!T537)","v":""},{"$f":"IF('1. Order'!W537=\"\",\"\",'1. Order'!W537)","v":""},{"$f":"IF('1. Order'!X537=\"\",\"\",'1. Order'!X537)","v":""},{"$f":"IF('1. Order'!Y537=\"\",\"\",'1. Order'!Y537)","v":"EUR"},{"$f":"IF('1. Order'!Z537=\"\",\"\",'1. Order'!Z537)","v":""},{"$f":"IF('1. Order'!AA537=\"\",\"\",'1. Order'!AA537)","v":""},{"$f":"IF('1. Order'!AB537=\"\",\"\",'1. Order'!AB537)","v":""},null,{"$f":"IF('1. Order'!AT537=\"\",\"\",'1. Order'!AT537)","v":""},{"$f":"IF('1. Order'!AU537=\"\",\"\",'1. Order'!AU537)","v":""},null,null,null,null,null,null,null,{"$f":"IF('1. Order'!AY537=\"\",\"\",'1. Order'!AY537)","v":""},{"$f":"IF('1. Order'!AZ537=\"\",\"\",'1. Order'!AZ537)","v":""},{"$f":"IF('1. Order'!BA537=\"\",\"\",'1. Order'!BA537)","v":""},{"$f":"IF('1. Order'!BB537=\"\",\"\",'1. Order'!BB537)","v":""},{"$f":"IF('1. Order'!BD537=\"\",\"\",'1. Order'!BD537)","v":""},{"$f":"IF('1. Order'!BE537=\"\",\"\",'1. Order'!BE537)","v":""},{"$f":"IF('1. Order'!BF537=\"\",\"\",'1. Order'!BF537)","v":""},{"$f":"IF('1. Order'!BG537=\"\",\"\",'1. Order'!BG537)","v":""},{"$f":"IF('1. Order'!BH537=\"\",\"\",'1. Order'!BH537)","v":"ZWO"}]
[{"$f":"IF('1. Order'!F538=\"\",\"\",'1. Order'!F538)","v":{"$error":"#N/A"}},{"$f":"IF('1. Order'!G538=\"\",\"\",'1. Order'!G538)","v":""},{"$f":"IF('1. Order'!H538=\"\",\"\",'1. Order'!H538)","v":""},{"$f":"IF('1. Order'!I538=\"\",\"\",'1. Order'!I538)","v":""},{"$f":"IF('1. Order'!J538=\"\",\"\",'1. Order'!J538)","v":""},{"$f":"IF('1. Order'!K538=\"\",\"\",'1. Order'!K538)","v":""},{"$f":"IF('1. Order'!L538=\"\",\"\",'1. Order'!L538)","v":""},{"$f":"IF('1. Order'!M538=\"\",\"\",'1. Order'!M538)","v":""},{"$f":"IF('1. Order'!N538=\"\",\"\",'1. Order'!N538)","v":""},{"$f":"IF('1. Order'!O538=\"\",\"\",'1. Order'!O538)","v":{"$error":"#N/A"}},{"$f":"IF('1. Order'!P538=\"\",\"\",'1. Order'!P538)","v":{"$error":"#N/A"}},{"$f":"IF('1. Order'!Q538=\"\",\"\",'1. Order'!Q538)","v":""},{"$f":"IF('1. Order'!S538=\"\",\"\",'1. Order'!S538)","v":""},{"$f":"IF('1. Order'!T538=\"\",\"\",'1. Order'!T538)","v":""},{"$f":"IF('1. Order'!W538=\"\",\"\",'1. Order'!W538)","v":""},{"$f":"IF('1. Order'!X538=\"\",\"\",'1. Order'!X538)","v":""},{"$f":"IF('1. Order'!Y538=\"\",\"\",'1. Order'!Y538)","v":"EUR"},{"$f":"IF('1. Order'!Z538=\"\",\"\",'1. Order'!Z538)","v":""},{"$f":"IF('1. Order'!AA538=\"\",\"\",'1. Order'!AA538)","v":""},{"$f":"IF('1. Order'!AB538=\"\",\"\",'1. Order'!AB538)","v":""},null,{"$f":"IF('1. Order'!AT538=\"\",\"\",'1. Order'!AT538)","v":""},{"$f":"IF('1. Order'!AU538=\"\",\"\",'1. Order'!AU538)","v":""},null,null,null,null,null,null,null,{"$f":"IF('1. Order'!AY538=\"\",\"\",'1. Order'!AY538)","v":""},{"$f":"IF('1. Order'!AZ538=\"\",\"\",'1. Order'!AZ538)","v":""},{"$f":"IF('1. Order'!BA538=\"\",\"\",'1. Order'!BA538)","v":""},{"$f":"IF('1. Order'!BB538=\"\",\"\",'1. Order'!BB538)","v":""},{"$f":"IF('1. Order'!BD538=\"\",\"\",'1. Order'!BD538)","v":""},{"$f":"IF('1. Order'!BE538=\"\",\"\",'1. Order'!BE538)","v":""},{"$f":"IF('1. Order'!BF538=\"\",\"\",'1. Order'!BF538)","v":""},{"$f":"IF('1. Order'!BG538=\"\",\"\",'1. Order'!BG538)","v":""},{"$f":"IF('1. Order'!BH538=\"\",\"\",'1. Order'!BH538)","v":"ZWO"}]
[{"$f":"IF('1. Order'!F539=\"\",\"\",'1. Order'!F539)","v":{"$error":"#N/A"}},{"$f":"IF('1. Order'!G539=\"\",\"\",'1. Order'!G539)","v":""},{"$f":"IF('1. Order'!H539=\"\",\"\",'1. Order'!H539)","v":""},{"$f":"IF('1. Order'!I539=\"\",\"\",'1. Order'!I539)","v":""},{"$f":"IF('1. Order'!J539=\"\",\"\",'1. Order'!J539)","v":""},{"$f":"IF('1. Order'!K539=\"\",\"\",'1. Order'!K539)","v":""},{"$f":"IF('1. Order'!L539=\"\",\"\",'1. Order'!L539)","v":""},{"$f":"IF('1. Order'!M539=\"\",\"\",'1. Order'!M539)","v":""},{"$f":"IF('1. Order'!N539=\"\",\"\",'1. Order'!N539)","v":""},{"$f":"IF('1. Order'!O539=\"\",\"\",'1. Order'!O539)","v":{"$error":"#N/A"}},{"$f":"IF('1. Order'!P539=\"\",\"\",'1. Order'!P539)","v":{"$error":"#N/A"}},{"$f":"IF('1. Order'!Q539=\"\",\"\",'1. Order'!Q539)","v":""},{"$f":"IF('1. Order'!S539=\"\",\"\",'1. Order'!S539)","v":""},{"$f":"IF('1. Order'!T539=\"\",\"\",'1. Order'!T539)","v":""},{"$f":"IF('1. Order'!W539=\"\",\"\",'1. Order'!W539)","v":""},{"$f":"IF('1. Order'!X539=\"\",\"\",'1. Order'!X539)","v":""},{"$f":"IF('1. Order'!Y539=\"\",\"\",'1. Order'!Y539)","v":"EUR"},{"$f":"IF('1. Order'!Z539=\"\",\"\",'1. Order'!Z539)","v":""},{"$f":"IF('1. Order'!AA539=\"\",\"\",'1. Order'!AA539)","v":""},{"$f":"IF('1. Order'!AB539=\"\",\"\",'1. Order'!AB539)","v":""},null,{"$f":"IF('1. Order'!AT539=\"\",\"\",'1. Order'!AT539)","v":""},{"$f":"IF('1. Order'!AU539=\"\",\"\",'1. Order'!AU539)","v":""},null,null,null,null,null,null,null,{"$f":"IF('1. Order'!AY539=\"\",\"\",'1. Order'!AY539)","v":""},{"$f":"IF('1. Order'!AZ539=\"\",\"\",'1. Order'!AZ539)","v":""},{"$f":"IF('1. Order'!BA539=\"\",\"\",'1. Order'!BA539)","v":""},{"$f":"IF('1. Order'!BB539=\"\",\"\",'1. Order'!BB539)","v":""},{"$f":"IF('1. Order'!BD539=\"\",\"\",'1. Order'!BD539)","v":""},{"$f":"IF('1. Order'!BE539=\"\",\"\",'1. Order'!BE539)","v":""},{"$f":"IF('1. Order'!BF539=\"\",\"\",'1. Order'!BF539)","v":""},{"$f":"IF('1. Order'!BG539=\"\",\"\",'1. Order'!BG539)","v":""},{"$f":"IF('1. Order'!BH539=\"\",\"\",'1. Order'!BH539)","v":"ZWO"}]
[{"$f":"IF('1. Order'!F540=\"\",\"\",'1. Order'!F540)","v":{"$error":"#N/A"}},{"$f":"IF('1. Order'!G540=\"\",\"\",'1. Order'!G540)","v":""},{"$f":"IF('1. Order'!H540=\"\",\"\",'1. Order'!H540)","v":""},{"$f":"IF('1. Order'!I540=\"\",\"\",'1. Order'!I540)","v":""},{"$f":"IF('1. Order'!J540=\"\",\"\",'1. Order'!J540)","v":""},{"$f":"IF('1. Order'!K540=\"\",\"\",'1. Order'!K540)","v":""},{"$f":"IF('1. Order'!L540=\"\",\"\",'1. Order'!L540)","v":""},{"$f":"IF('1. Order'!M540=\"\",\"\",'1. Order'!M540)","v":""},{"$f":"IF('1. Order'!N540=\"\",\"\",'1. Order'!N540)","v":""},{"$f":"IF('1. Order'!O540=\"\",\"\",'1. Order'!O540)","v":{"$error":"#N/A"}},{"$f":"IF('1. Order'!P540=\"\",\"\",'1. Order'!P540)","v":{"$error":"#N/A"}},{"$f":"IF('1. Order'!Q540=\"\",\"\",'1. Order'!Q540)","v":""},{"$f":"IF('1. Order'!S540=\"\",\"\",'1. Order'!S540)","v":""},{"$f":"IF('1. Order'!T540=\"\",\"\",'1. Order'!T540)","v":""},{"$f":"IF('1. Order'!W540=\"\",\"\",'1. Order'!W540)","v":""},{"$f":"IF('1. Order'!X540=\"\",\"\",'1. Order'!X540)","v":""},{"$f":"IF('1. Order'!Y540=\"\",\"\",'1. Order'!Y540)","v":"EUR"},{"$f":"IF('1. Order'!Z540=\"\",\"\",'1. Order'!Z540)","v":""},{"$f":"IF('1. Order'!AA540=\"\",\"\",'1. Order'!AA540)","v":""},{"$f":"IF('1. Order'!AB540=\"\",\"\",'1. Order'!AB540)","v":""},null,{"$f":"IF('1. Order'!AT540=\"\",\"\",'1. Order'!AT540)","v":""},{"$f":"IF('1. Order'!AU540=\"\",\"\",'1. Order'!AU540)","v":""},null,null,null,null,null,null,null,{"$f":"IF('1. Order'!AY540=\"\",\"\",'1. Order'!AY540)","v":""},{"$f":"IF('1. Order'!AZ540=\"\",\"\",'1. Order'!AZ540)","v":""},{"$f":"IF('1. Order'!BA540=\"\",\"\",'1. Order'!BA540)","v":""},{"$f":"IF('1. Order'!BB540=\"\",\"\",'1. Order'!BB540)","v":""},{"$f":"IF('1. Order'!BD540=\"\",\"\",'1. Order'!BD540)","v":""},{"$f":"IF('1. Order'!BE540=\"\",\"\",'1. Order'!BE540)","v":""},{"$f":"IF('1. Order'!BF540=\"\",\"\",'1. Order'!BF540)","v":""},{"$f":"IF('1. Order'!BG540=\"\",\"\",'1. Order'!BG540)","v":""},{"$f":"IF('1. Order'!BH540=\"\",\"\",'1. Order'!BH540)","v":"ZWO"}]
[{"$f":"IF('1. Order'!F541=\"\",\"\",'1. Order'!F541)","v":{"$error":"#N/A"}},{"$f":"IF('1. Order'!G541=\"\",\"\",'1. Order'!G541)","v":""},{"$f":"IF('1. Order'!H541=\"\",\"\",'1. Order'!H541)","v":""},{"$f":"IF('1. Order'!I541=\"\",\"\",'1. Order'!I541)","v":""},{"$f":"IF('1. Order'!J541=\"\",\"\",'1. Order'!J541)","v":""},{"$f":"IF('1. Order'!K541=\"\",\"\",'1. Order'!K541)","v":""},{"$f":"IF('1. Order'!L541=\"\",\"\",'1. Order'!L541)","v":""},{"$f":"IF('1. Order'!M541=\"\",\"\",'1. Order'!M541)","v":""},{"$f":"IF('1. Order'!N541=\"\",\"\",'1. Order'!N541)","v":""},{"$f":"IF('1. Order'!O541=\"\",\"\",'1. Order'!O541)","v":{"$error":"#N/A"}},{"$f":"IF('1. Order'!P541=\"\",\"\",'1. Order'!P541)","v":{"$error":"#N/A"}},{"$f":"IF('1. Order'!Q541=\"\",\"\",'1. Order'!Q541)","v":""},{"$f":"IF('1. Order'!S541=\"\",\"\",'1. Order'!S541)","v":""},{"$f":"IF('1. Order'!T541=\"\",\"\",'1. Order'!T541)","v":""},{"$f":"IF('1. Order'!W541=\"\",\"\",'1. Order'!W541)","v":""},{"$f":"IF('1. Order'!X541=\"\",\"\",'1. Order'!X541)","v":""},{"$f":"IF('1. Order'!Y541=\"\",\"\",'1. Order'!Y541)","v":"EUR"},{"$f":"IF('1. Order'!Z541=\"\",\"\",'1. Order'!Z541)","v":""},{"$f":"IF('1. Order'!AA541=\"\",\"\",'1. Order'!AA541)","v":""},{"$f":"IF('1. Order'!AB541=\"\",\"\",'1. Order'!AB541)","v":""},null,{"$f":"IF('1. Order'!AT541=\"\",\"\",'1. Order'!AT541)","v":""},{"$f":"IF('1. Order'!AU541=\"\",\"\",'1. Order'!AU541)","v":""},null,null,null,null,null,null,null,{"$f":"IF('1. Order'!AY541=\"\",\"\",'1. Order'!AY541)","v":""},{"$f":"IF('1. Order'!AZ541=\"\",\"\",'1. Order'!AZ541)","v":""},{"$f":"IF('1. Order'!BA541=\"\",\"\",'1. Order'!BA541)","v":""},{"$f":"IF('1. Order'!BB541=\"\",\"\",'1. Order'!BB541)","v":""},{"$f":"IF('1. Order'!BD541=\"\",\"\",'1. Order'!BD541)","v":""},{"$f":"IF('1. Order'!BE541=\"\",\"\",'1. Order'!BE541)","v":""},{"$f":"IF('1. Order'!BF541=\"\",\"\",'1. Order'!BF541)","v":""},{"$f":"IF('1. Order'!BG541=\"\",\"\",'1. Order'!BG541)","v":""},{"$f":"IF('1. Order'!BH541=\"\",\"\",'1. Order'!BH541)","v":"ZWO"}]
[{"$f":"IF('1. Order'!F542=\"\",\"\",'1. Order'!F542)","v":{"$error":"#N/A"}},{"$f":"IF('1. Order'!G542=\"\",\"\",'1. Order'!G542)","v":""},{"$f":"IF('1. Order'!H542=\"\",\"\",'1. Order'!H542)","v":""},{"$f":"IF('1. Order'!I542=\"\",\"\",'1. Order'!I542)","v":""},{"$f":"IF('1. Order'!J542=\"\",\"\",'1. Order'!J542)","v":""},{"$f":"IF('1. Order'!K542=\"\",\"\",'1. Order'!K542)","v":""},{"$f":"IF('1. Order'!L542=\"\",\"\",'1. Order'!L542)","v":""},{"$f":"IF('1. Order'!M542=\"\",\"\",'1. Order'!M542)","v":""},{"$f":"IF('1. Order'!N542=\"\",\"\",'1. Order'!N542)","v":""},{"$f":"IF('1. Order'!O542=\"\",\"\",'1. Order'!O542)","v":{"$error":"#N/A"}},{"$f":"IF('1. Order'!P542=\"\",\"\",'1. Order'!P542)","v":{"$error":"#N/A"}},{"$f":"IF('1. Order'!Q542=\"\",\"\",'1. Order'!Q542)","v":""},{"$f":"IF('1. Order'!S542=\"\",\"\",'1. Order'!S542)","v":""},{"$f":"IF('1. Order'!T542=\"\",\"\",'1. Order'!T542)","v":""},{"$f":"IF('1. Order'!W542=\"\",\"\",'1. Order'!W542)","v":""},{"$f":"IF('1. Order'!X542=\"\",\"\",'1. Order'!X542)","v":""},{"$f":"IF('1. Order'!Y542=\"\",\"\",'1. Order'!Y542)","v":"EUR"},{"$f":"IF('1. Order'!Z542=\"\",\"\",'1. Order'!Z542)","v":""},{"$f":"IF('1. Order'!AA542=\"\",\"\",'1. Order'!AA542)","v":""},{"$f":"IF('1. Order'!AB542=\"\",\"\",'1. Order'!AB542)","v":""},null,{"$f":"IF('1. Order'!AT542=\"\",\"\",'1. Order'!AT542)","v":""},{"$f":"IF('1. Order'!AU542=\"\",\"\",'1. Order'!AU542)","v":""},null,null,null,null,null,null,null,{"$f":"IF('1. Order'!AY542=\"\",\"\",'1. Order'!AY542)","v":""},{"$f":"IF('1. Order'!AZ542=\"\",\"\",'1. Order'!AZ542)","v":""},{"$f":"IF('1. Order'!BA542=\"\",\"\",'1. Order'!BA542)","v":""},{"$f":"IF('1. Order'!BB542=\"\",\"\",'1. Order'!BB542)","v":""},{"$f":"IF('1. Order'!BD542=\"\",\"\",'1. Order'!BD542)","v":""},{"$f":"IF('1. Order'!BE542=\"\",\"\",'1. Order'!BE542)","v":""},{"$f":"IF('1. Order'!BF542=\"\",\"\",'1. Order'!BF542)","v":""},{"$f":"IF('1. Order'!BG542=\"\",\"\",'1. Order'!BG542)","v":""},{"$f":"IF('1. Order'!BH542=\"\",\"\",'1. Order'!BH542)","v":"ZWO"}]
[{"$f":"IF('1. Order'!F543=\"\",\"\",'1. Order'!F543)","v":{"$error":"#N/A"}},{"$f":"IF('1. Order'!G543=\"\",\"\",'1. Order'!G543)","v":""},{"$f":"IF('1. Order'!H543=\"\",\"\",'1. Order'!H543)","v":""},{"$f":"IF('1. Order'!I543=\"\",\"\",'1. Order'!I543)","v":""},{"$f":"IF('1. Order'!J543=\"\",\"\",'1. Order'!J543)","v":""},{"$f":"IF('1. Order'!K543=\"\",\"\",'1. Order'!K543)","v":""},{"$f":"IF('1. Order'!L543=\"\",\"\",'1. Order'!L543)","v":""},{"$f":"IF('1. Order'!M543=\"\",\"\",'1. Order'!M543)","v":""},{"$f":"IF('1. Order'!N543=\"\",\"\",'1. Order'!N543)","v":""},{"$f":"IF('1. Order'!O543=\"\",\"\",'1. Order'!O543)","v":{"$error":"#N/A"}},{"$f":"IF('1. Order'!P543=\"\",\"\",'1. Order'!P543)","v":{"$error":"#N/A"}},{"$f":"IF('1. Order'!Q543=\"\",\"\",'1. Order'!Q543)","v":""},{"$f":"IF('1. Order'!S543=\"\",\"\",'1. Order'!S543)","v":""},{"$f":"IF('1. Order'!T543=\"\",\"\",'1. Order'!T543)","v":""},{"$f":"IF('1. Order'!W543=\"\",\"\",'1. Order'!W543)","v":""},{"$f":"IF('1. Order'!X543=\"\",\"\",'1. Order'!X543)","v":""},{"$f":"IF('1. Order'!Y543=\"\",\"\",'1. Order'!Y543)","v":"EUR"},{"$f":"IF('1. Order'!Z543=\"\",\"\",'1. Order'!Z543)","v":""},{"$f":"IF('1. Order'!AA543=\"\",\"\",'1. Order'!AA543)","v":""},{"$f":"IF('1. Order'!AB543=\"\",\"\",'1. Order'!AB543)","v":""},null,{"$f":"IF('1. Order'!AT543=\"\",\"\",'1. Order'!AT543)","v":""},{"$f":"IF('1. Order'!AU543=\"\",\"\",'1. Order'!AU543)","v":""},null,null,null,null,null,null,null,{"$f":"IF('1. Order'!AY543=\"\",\"\",'1. Order'!AY543)","v":""},{"$f":"IF('1. Order'!AZ543=\"\",\"\",'1. Order'!AZ543)","v":""},{"$f":"IF('1. Order'!BA543=\"\",\"\",'1. Order'!BA543)","v":""},{"$f":"IF('1. Order'!BB543=\"\",\"\",'1. Order'!BB543)","v":""},{"$f":"IF('1. Order'!BD543=\"\",\"\",'1. Order'!BD543)","v":""},{"$f":"IF('1. Order'!BE543=\"\",\"\",'1. Order'!BE543)","v":""},{"$f":"IF('1. Order'!BF543=\"\",\"\",'1. Order'!BF543)","v":""},{"$f":"IF('1. Order'!BG543=\"\",\"\",'1. Order'!BG543)","v":""},{"$f":"IF('1. Order'!BH543=\"\",\"\",'1. Order'!BH543)","v":"ZWO"}]
[{"$f":"IF('1. Order'!F544=\"\",\"\",'1. Order'!F544)","v":{"$error":"#N/A"}},{"$f":"IF('1. Order'!G544=\"\",\"\",'1. Order'!G544)","v":""},{"$f":"IF('1. Order'!H544=\"\",\"\",'1. Order'!H544)","v":""},{"$f":"IF('1. Order'!I544=\"\",\"\",'1. Order'!I544)","v":""},{"$f":"IF('1. Order'!J544=\"\",\"\",'1. Order'!J544)","v":""},{"$f":"IF('1. Order'!K544=\"\",\"\",'1. Order'!K544)","v":""},{"$f":"IF('1. Order'!L544=\"\",\"\",'1. Order'!L544)","v":""},{"$f":"IF('1. Order'!M544=\"\",\"\",'1. Order'!M544)","v":""},{"$f":"IF('1. Order'!N544=\"\",\"\",'1. Order'!N544)","v":""},{"$f":"IF('1. Order'!O544=\"\",\"\",'1. Order'!O544)","v":{"$error":"#N/A"}},{"$f":"IF('1. Order'!P544=\"\",\"\",'1. Order'!P544)","v":{"$error":"#N/A"}},{"$f":"IF('1. Order'!Q544=\"\",\"\",'1. Order'!Q544)","v":""},{"$f":"IF('1. Order'!S544=\"\",\"\",'1. Order'!S544)","v":""},{"$f":"IF('1. Order'!T544=\"\",\"\",'1. Order'!T544)","v":""},{"$f":"IF('1. Order'!W544=\"\",\"\",'1. Order'!W544)","v":""},{"$f":"IF('1. Order'!X544=\"\",\"\",'1. Order'!X544)","v":""},{"$f":"IF('1. Order'!Y544=\"\",\"\",'1. Order'!Y544)","v":"EUR"},{"$f":"IF('1. Order'!Z544=\"\",\"\",'1. Order'!Z544)","v":""},{"$f":"IF('1. Order'!AA544=\"\",\"\",'1. Order'!AA544)","v":""},{"$f":"IF('1. Order'!AB544=\"\",\"\",'1. Order'!AB544)","v":""},null,{"$f":"IF('1. Order'!AT544=\"\",\"\",'1. Order'!AT544)","v":""},{"$f":"IF('1. Order'!AU544=\"\",\"\",'1. Order'!AU544)","v":""},null,null,null,null,null,null,null,{"$f":"IF('1. Order'!AY544=\"\",\"\",'1. Order'!AY544)","v":""},{"$f":"IF('1. Order'!AZ544=\"\",\"\",'1. Order'!AZ544)","v":""},{"$f":"IF('1. Order'!BA544=\"\",\"\",'1. Order'!BA544)","v":""},{"$f":"IF('1. Order'!BB544=\"\",\"\",'1. Order'!BB544)","v":""},{"$f":"IF('1. Order'!BD544=\"\",\"\",'1. Order'!BD544)","v":""},{"$f":"IF('1. Order'!BE544=\"\",\"\",'1. Order'!BE544)","v":""},{"$f":"IF('1. Order'!BF544=\"\",\"\",'1. Order'!BF544)","v":""},{"$f":"IF('1. Order'!BG544=\"\",\"\",'1. Order'!BG544)","v":""},{"$f":"IF('1. Order'!BH544=\"\",\"\",'1. Order'!BH544)","v":"ZWO"}]
[{"$f":"IF('1. Order'!F545=\"\",\"\",'1. Order'!F545)","v":{"$error":"#N/A"}},{"$f":"IF('1. Order'!G545=\"\",\"\",'1. Order'!G545)","v":""},{"$f":"IF('1. Order'!H545=\"\",\"\",'1. Order'!H545)","v":""},{"$f":"IF('1. Order'!I545=\"\",\"\",'1. Order'!I545)","v":""},{"$f":"IF('1. Order'!J545=\"\",\"\",'1. Order'!J545)","v":""},{"$f":"IF('1. Order'!K545=\"\",\"\",'1. Order'!K545)","v":""},{"$f":"IF('1. Order'!L545=\"\",\"\",'1. Order'!L545)","v":""},{"$f":"IF('1. Order'!M545=\"\",\"\",'1. Order'!M545)","v":""},{"$f":"IF('1. Order'!N545=\"\",\"\",'1. Order'!N545)","v":""},{"$f":"IF('1. Order'!O545=\"\",\"\",'1. Order'!O545)","v":{"$error":"#N/A"}},{"$f":"IF('1. Order'!P545=\"\",\"\",'1. Order'!P545)","v":{"$error":"#N/A"}},{"$f":"IF('1. Order'!Q545=\"\",\"\",'1. Order'!Q545)","v":""},{"$f":"IF('1. Order'!S545=\"\",\"\",'1. Order'!S545)","v":""},{"$f":"IF('1. Order'!T545=\"\",\"\",'1. Order'!T545)","v":""},{"$f":"IF('1. Order'!W545=\"\",\"\",'1. Order'!W545)","v":""},{"$f":"IF('1. Order'!X545=\"\",\"\",'1. Order'!X545)","v":""},{"$f":"IF('1. Order'!Y545=\"\",\"\",'1. Order'!Y545)","v":"EUR"},{"$f":"IF('1. Order'!Z545=\"\",\"\",'1. Order'!Z545)","v":""},{"$f":"IF('1. Order'!AA545=\"\",\"\",'1. Order'!AA545)","v":""},{"$f":"IF('1. Order'!AB545=\"\",\"\",'1. Order'!AB545)","v":""},null,{"$f":"IF('1. Order'!AT545=\"\",\"\",'1. Order'!AT545)","v":""},{"$f":"IF('1. Order'!AU545=\"\",\"\",'1. Order'!AU545)","v":""},null,null,null,null,null,null,null,{"$f":"IF('1. Order'!AY545=\"\",\"\",'1. Order'!AY545)","v":""},{"$f":"IF('1. Order'!AZ545=\"\",\"\",'1. Order'!AZ545)","v":""},{"$f":"IF('1. Order'!BA545=\"\",\"\",'1. Order'!BA545)","v":""},{"$f":"IF('1. Order'!BB545=\"\",\"\",'1. Order'!BB545)","v":""},{"$f":"IF('1. Order'!BD545=\"\",\"\",'1. Order'!BD545)","v":""},{"$f":"IF('1. Order'!BE545=\"\",\"\",'1. Order'!BE545)","v":""},{"$f":"IF('1. Order'!BF545=\"\",\"\",'1. Order'!BF545)","v":""},{"$f":"IF('1. Order'!BG545=\"\",\"\",'1. Order'!BG545)","v":""},{"$f":"IF('1. Order'!BH545=\"\",\"\",'1. Order'!BH545)","v":"ZWO"}]
[{"$f":"IF('1. Order'!F546=\"\",\"\",'1. Order'!F546)","v":{"$error":"#N/A"}},{"$f":"IF('1. Order'!G546=\"\",\"\",'1. Order'!G546)","v":""},{"$f":"IF('1. Order'!H546=\"\",\"\",'1. Order'!H546)","v":""},{"$f":"IF('1. Order'!I546=\"\",\"\",'1. Order'!I546)","v":""},{"$f":"IF('1. Order'!J546=\"\",\"\",'1. Order'!J546)","v":""},{"$f":"IF('1. Order'!K546=\"\",\"\",'1. Order'!K546)","v":""},{"$f":"IF('1. Order'!L546=\"\",\"\",'1. Order'!L546)","v":""},{"$f":"IF('1. Order'!M546=\"\",\"\",'1. Order'!M546)","v":""},{"$f":"IF('1. Order'!N546=\"\",\"\",'1. Order'!N546)","v":""},{"$f":"IF('1. Order'!O546=\"\",\"\",'1. Order'!O546)","v":{"$error":"#N/A"}},{"$f":"IF('1. Order'!P546=\"\",\"\",'1. Order'!P546)","v":{"$error":"#N/A"}},{"$f":"IF('1. Order'!Q546=\"\",\"\",'1. Order'!Q546)","v":""},{"$f":"IF('1. Order'!S546=\"\",\"\",'1. Order'!S546)","v":""},{"$f":"IF('1. Order'!T546=\"\",\"\",'1. Order'!T546)","v":""},{"$f":"IF('1. Order'!W546=\"\",\"\",'1. Order'!W546)","v":""},{"$f":"IF('1. Order'!X546=\"\",\"\",'1. Order'!X546)","v":""},{"$f":"IF('1. Order'!Y546=\"\",\"\",'1. Order'!Y546)","v":"EUR"},{"$f":"IF('1. Order'!Z546=\"\",\"\",'1. Order'!Z546)","v":""},{"$f":"IF('1. Order'!AA546=\"\",\"\",'1. Order'!AA546)","v":""},{"$f":"IF('1. Order'!AB546=\"\",\"\",'1. Order'!AB546)","v":""},null,{"$f":"IF('1. Order'!AT546=\"\",\"\",'1. Order'!AT546)","v":""},{"$f":"IF('1. Order'!AU546=\"\",\"\",'1. Order'!AU546)","v":""},null,null,null,null,null,null,null,{"$f":"IF('1. Order'!AY546=\"\",\"\",'1. Order'!AY546)","v":""},{"$f":"IF('1. Order'!AZ546=\"\",\"\",'1. Order'!AZ546)","v":""},{"$f":"IF('1. Order'!BA546=\"\",\"\",'1. Order'!BA546)","v":""},{"$f":"IF('1. Order'!BB546=\"\",\"\",'1. Order'!BB546)","v":""},{"$f":"IF('1. Order'!BD546=\"\",\"\",'1. Order'!BD546)","v":""},{"$f":"IF('1. Order'!BE546=\"\",\"\",'1. Order'!BE546)","v":""},{"$f":"IF('1. Order'!BF546=\"\",\"\",'1. Order'!BF546)","v":""},{"$f":"IF('1. Order'!BG546=\"\",\"\",'1. Order'!BG546)","v":""},{"$f":"IF('1. Order'!BH546=\"\",\"\",'1. Order'!BH546)","v":"ZWO"}]
[{"$f":"IF('1. Order'!F547=\"\",\"\",'1. Order'!F547)","v":{"$error":"#N/A"}},{"$f":"IF('1. Order'!G547=\"\",\"\",'1. Order'!G547)","v":""},{"$f":"IF('1. Order'!H547=\"\",\"\",'1. Order'!H547)","v":""},{"$f":"IF('1. Order'!I547=\"\",\"\",'1. Order'!I547)","v":""},{"$f":"IF('1. Order'!J547=\"\",\"\",'1. Order'!J547)","v":""},{"$f":"IF('1. Order'!K547=\"\",\"\",'1. Order'!K547)","v":""},{"$f":"IF('1. Order'!L547=\"\",\"\",'1. Order'!L547)","v":""},{"$f":"IF('1. Order'!M547=\"\",\"\",'1. Order'!M547)","v":""},{"$f":"IF('1. Order'!N547=\"\",\"\",'1. Order'!N547)","v":""},{"$f":"IF('1. Order'!O547=\"\",\"\",'1. Order'!O547)","v":{"$error":"#N/A"}},{"$f":"IF('1. Order'!P547=\"\",\"\",'1. Order'!P547)","v":{"$error":"#N/A"}},{"$f":"IF('1. Order'!Q547=\"\",\"\",'1. Order'!Q547)","v":""},{"$f":"IF('1. Order'!S547=\"\",\"\",'1. Order'!S547)","v":""},{"$f":"IF('1. Order'!T547=\"\",\"\",'1. Order'!T547)","v":""},{"$f":"IF('1. Order'!W547=\"\",\"\",'1. Order'!W547)","v":""},{"$f":"IF('1. Order'!X547=\"\",\"\",'1. Order'!X547)","v":""},{"$f":"IF('1. Order'!Y547=\"\",\"\",'1. Order'!Y547)","v":"EUR"},{"$f":"IF('1. Order'!Z547=\"\",\"\",'1. Order'!Z547)","v":""},{"$f":"IF('1. Order'!AA547=\"\",\"\",'1. Order'!AA547)","v":""},{"$f":"IF('1. Order'!AB547=\"\",\"\",'1. Order'!AB547)","v":""},null,{"$f":"IF('1. Order'!AT547=\"\",\"\",'1. Order'!AT547)","v":""},{"$f":"IF('1. Order'!AU547=\"\",\"\",'1. Order'!AU547)","v":""},null,null,null,null,null,null,null,{"$f":"IF('1. Order'!AY547=\"\",\"\",'1. Order'!AY547)","v":""},{"$f":"IF('1. Order'!AZ547=\"\",\"\",'1. Order'!AZ547)","v":""},{"$f":"IF('1. Order'!BA547=\"\",\"\",'1. Order'!BA547)","v":""},{"$f":"IF('1. Order'!BB547=\"\",\"\",'1. Order'!BB547)","v":""},{"$f":"IF('1. Order'!BD547=\"\",\"\",'1. Order'!BD547)","v":""},{"$f":"IF('1. Order'!BE547=\"\",\"\",'1. Order'!BE547)","v":""},{"$f":"IF('1. Order'!BF547=\"\",\"\",'1. Order'!BF547)","v":""},{"$f":"IF('1. Order'!BG547=\"\",\"\",'1. Order'!BG547)","v":""},{"$f":"IF('1. Order'!BH547=\"\",\"\",'1. Order'!BH547)","v":"ZWO"}]
[{"$f":"IF('1. Order'!F548=\"\",\"\",'1. Order'!F548)","v":{"$error":"#N/A"}},{"$f":"IF('1. Order'!G548=\"\",\"\",'1. Order'!G548)","v":""},{"$f":"IF('1. Order'!H548=\"\",\"\",'1. Order'!H548)","v":""},{"$f":"IF('1. Order'!I548=\"\",\"\",'1. Order'!I548)","v":""},{"$f":"IF('1. Order'!J548=\"\",\"\",'1. Order'!J548)","v":""},{"$f":"IF('1. Order'!K548=\"\",\"\",'1. Order'!K548)","v":""},{"$f":"IF('1. Order'!L548=\"\",\"\",'1. Order'!L548)","v":""},{"$f":"IF('1. Order'!M548=\"\",\"\",'1. Order'!M548)","v":""},{"$f":"IF('1. Order'!N548=\"\",\"\",'1. Order'!N548)","v":""},{"$f":"IF('1. Order'!O548=\"\",\"\",'1. Order'!O548)","v":{"$error":"#N/A"}},{"$f":"IF('1. Order'!P548=\"\",\"\",'1. Order'!P548)","v":{"$error":"#N/A"}},{"$f":"IF('1. Order'!Q548=\"\",\"\",'1. Order'!Q548)","v":""},{"$f":"IF('1. Order'!S548=\"\",\"\",'1. Order'!S548)","v":""},{"$f":"IF('1. Order'!T548=\"\",\"\",'1. Order'!T548)","v":""},{"$f":"IF('1. Order'!W548=\"\",\"\",'1. Order'!W548)","v":""},{"$f":"IF('1. Order'!X548=\"\",\"\",'1. Order'!X548)","v":""},{"$f":"IF('1. Order'!Y548=\"\",\"\",'1. Order'!Y548)","v":"EUR"},{"$f":"IF('1. Order'!Z548=\"\",\"\",'1. Order'!Z548)","v":""},{"$f":"IF('1. Order'!AA548=\"\",\"\",'1. Order'!AA548)","v":""},{"$f":"IF('1. Order'!AB548=\"\",\"\",'1. Order'!AB548)","v":""},null,{"$f":"IF('1. Order'!AT548=\"\",\"\",'1. Order'!AT548)","v":""},{"$f":"IF('1. Order'!AU548=\"\",\"\",'1. Order'!AU548)","v":""},null,null,null,null,null,null,null,{"$f":"IF('1. Order'!AY548=\"\",\"\",'1. Order'!AY548)","v":""},{"$f":"IF('1. Order'!AZ548=\"\",\"\",'1. Order'!AZ548)","v":""},{"$f":"IF('1. Order'!BA548=\"\",\"\",'1. Order'!BA548)","v":""},{"$f":"IF('1. Order'!BB548=\"\",\"\",'1. Order'!BB548)","v":""},{"$f":"IF('1. Order'!BD548=\"\",\"\",'1. Order'!BD548)","v":""},{"$f":"IF('1. Order'!BE548=\"\",\"\",'1. Order'!BE548)","v":""},{"$f":"IF('1. Order'!BF548=\"\",\"\",'1. Order'!BF548)","v":""},{"$f":"IF('1. Order'!BG548=\"\",\"\",'1. Order'!BG548)","v":""},{"$f":"IF('1. Order'!BH548=\"\",\"\",'1. Order'!BH548)","v":"ZWO"}]
[{"$f":"IF('1. Order'!F549=\"\",\"\",'1. Order'!F549)","v":{"$error":"#N/A"}},{"$f":"IF('1. Order'!G549=\"\",\"\",'1. Order'!G549)","v":""},{"$f":"IF('1. Order'!H549=\"\",\"\",'1. Order'!H549)","v":""},{"$f":"IF('1. Order'!I549=\"\",\"\",'1. Order'!I549)","v":""},{"$f":"IF('1. Order'!J549=\"\",\"\",'1. Order'!J549)","v":""},{"$f":"IF('1. Order'!K549=\"\",\"\",'1. Order'!K549)","v":""},{"$f":"IF('1. Order'!L549=\"\",\"\",'1. Order'!L549)","v":""},{"$f":"IF('1. Order'!M549=\"\",\"\",'1. Order'!M549)","v":""},{"$f":"IF('1. Order'!N549=\"\",\"\",'1. Order'!N549)","v":""},{"$f":"IF('1. Order'!O549=\"\",\"\",'1. Order'!O549)","v":{"$error":"#N/A"}},{"$f":"IF('1. Order'!P549=\"\",\"\",'1. Order'!P549)","v":{"$error":"#N/A"}},{"$f":"IF('1. Order'!Q549=\"\",\"\",'1. Order'!Q549)","v":""},{"$f":"IF('1. Order'!S549=\"\",\"\",'1. Order'!S549)","v":""},{"$f":"IF('1. Order'!T549=\"\",\"\",'1. Order'!T549)","v":""},{"$f":"IF('1. Order'!W549=\"\",\"\",'1. Order'!W549)","v":""},{"$f":"IF('1. Order'!X549=\"\",\"\",'1. Order'!X549)","v":""},{"$f":"IF('1. Order'!Y549=\"\",\"\",'1. Order'!Y549)","v":"EUR"},{"$f":"IF('1. Order'!Z549=\"\",\"\",'1. Order'!Z549)","v":""},{"$f":"IF('1. Order'!AA549=\"\",\"\",'1. Order'!AA549)","v":""},{"$f":"IF('1. Order'!AB549=\"\",\"\",'1. Order'!AB549)","v":""},null,{"$f":"IF('1. Order'!AT549=\"\",\"\",'1. Order'!AT549)","v":""},{"$f":"IF('1. Order'!AU549=\"\",\"\",'1. Order'!AU549)","v":""},null,null,null,null,null,null,null,{"$f":"IF('1. Order'!AY549=\"\",\"\",'1. Order'!AY549)","v":""},{"$f":"IF('1. Order'!AZ549=\"\",\"\",'1. Order'!AZ549)","v":""},{"$f":"IF('1. Order'!BA549=\"\",\"\",'1. Order'!BA549)","v":""},{"$f":"IF('1. Order'!BB549=\"\",\"\",'1. Order'!BB549)","v":""},{"$f":"IF('1. Order'!BD549=\"\",\"\",'1. Order'!BD549)","v":""},{"$f":"IF('1. Order'!BE549=\"\",\"\",'1. Order'!BE549)","v":""},{"$f":"IF('1. Order'!BF549=\"\",\"\",'1. Order'!BF549)","v":""},{"$f":"IF('1. Order'!BG549=\"\",\"\",'1. Order'!BG549)","v":""},{"$f":"IF('1. Order'!BH549=\"\",\"\",'1. Order'!BH549)","v":"ZWO"}]
[{"$f":"IF('1. Order'!F550=\"\",\"\",'1. Order'!F550)","v":{"$error":"#N/A"}},{"$f":"IF('1. Order'!G550=\"\",\"\",'1. Order'!G550)","v":""},{"$f":"IF('1. Order'!H550=\"\",\"\",'1. Order'!H550)","v":""},{"$f":"IF('1. Order'!I550=\"\",\"\",'1. Order'!I550)","v":""},{"$f":"IF('1. Order'!J550=\"\",\"\",'1. Order'!J550)","v":""},{"$f":"IF('1. Order'!K550=\"\",\"\",'1. Order'!K550)","v":""},{"$f":"IF('1. Order'!L550=\"\",\"\",'1. Order'!L550)","v":""},{"$f":"IF('1. Order'!M550=\"\",\"\",'1. Order'!M550)","v":""},{"$f":"IF('1. Order'!N550=\"\",\"\",'1. Order'!N550)","v":""},{"$f":"IF('1. Order'!O550=\"\",\"\",'1. Order'!O550)","v":{"$error":"#N/A"}},{"$f":"IF('1. Order'!P550=\"\",\"\",'1. Order'!P550)","v":{"$error":"#N/A"}},{"$f":"IF('1. Order'!Q550=\"\",\"\",'1. Order'!Q550)","v":""},{"$f":"IF('1. Order'!S550=\"\",\"\",'1. Order'!S550)","v":""},{"$f":"IF('1. Order'!T550=\"\",\"\",'1. Order'!T550)","v":""},{"$f":"IF('1. Order'!W550=\"\",\"\",'1. Order'!W550)","v":""},{"$f":"IF('1. Order'!X550=\"\",\"\",'1. Order'!X550)","v":""},{"$f":"IF('1. Order'!Y550=\"\",\"\",'1. Order'!Y550)","v":"EUR"},{"$f":"IF('1. Order'!Z550=\"\",\"\",'1. Order'!Z550)","v":""},{"$f":"IF('1. Order'!AA550=\"\",\"\",'1. Order'!AA550)","v":""},{"$f":"IF('1. Order'!AB550=\"\",\"\",'1. Order'!AB550)","v":""},null,{"$f":"IF('1. Order'!AT550=\"\",\"\",'1. Order'!AT550)","v":""},{"$f":"IF('1. Order'!AU550=\"\",\"\",'1. Order'!AU550)","v":""},null,null,null,null,null,null,null,{"$f":"IF('1. Order'!AY550=\"\",\"\",'1. Order'!AY550)","v":""},{"$f":"IF('1. Order'!AZ550=\"\",\"\",'1. Order'!AZ550)","v":""},{"$f":"IF('1. Order'!BA550=\"\",\"\",'1. Order'!BA550)","v":""},{"$f":"IF('1. Order'!BB550=\"\",\"\",'1. Order'!BB550)","v":""},{"$f":"IF('1. Order'!BD550=\"\",\"\",'1. Order'!BD550)","v":""},{"$f":"IF('1. Order'!BE550=\"\",\"\",'1. Order'!BE550)","v":""},{"$f":"IF('1. Order'!BF550=\"\",\"\",'1. Order'!BF550)","v":""},{"$f":"IF('1. Order'!BG550=\"\",\"\",'1. Order'!BG550)","v":""},{"$f":"IF('1. Order'!BH550=\"\",\"\",'1. Order'!BH550)","v":"ZWO"}]
[{"$f":"IF('1. Order'!F551=\"\",\"\",'1. Order'!F551)","v":{"$error":"#N/A"}},{"$f":"IF('1. Order'!G551=\"\",\"\",'1. Order'!G551)","v":""},{"$f":"IF('1. Order'!H551=\"\",\"\",'1. Order'!H551)","v":""},{"$f":"IF('1. Order'!I551=\"\",\"\",'1. Order'!I551)","v":""},{"$f":"IF('1. Order'!J551=\"\",\"\",'1. Order'!J551)","v":""},{"$f":"IF('1. Order'!K551=\"\",\"\",'1. Order'!K551)","v":""},{"$f":"IF('1. Order'!L551=\"\",\"\",'1. Order'!L551)","v":""},{"$f":"IF('1. Order'!M551=\"\",\"\",'1. Order'!M551)","v":""},{"$f":"IF('1. Order'!N551=\"\",\"\",'1. Order'!N551)","v":""},{"$f":"IF('1. Order'!O551=\"\",\"\",'1. Order'!O551)","v":{"$error":"#N/A"}},{"$f":"IF('1. Order'!P551=\"\",\"\",'1. Order'!P551)","v":{"$error":"#N/A"}},{"$f":"IF('1. Order'!Q551=\"\",\"\",'1. Order'!Q551)","v":""},{"$f":"IF('1. Order'!S551=\"\",\"\",'1. Order'!S551)","v":""},{"$f":"IF('1. Order'!T551=\"\",\"\",'1. Order'!T551)","v":""},{"$f":"IF('1. Order'!W551=\"\",\"\",'1. Order'!W551)","v":""},{"$f":"IF('1. Order'!X551=\"\",\"\",'1. Order'!X551)","v":""},{"$f":"IF('1. Order'!Y551=\"\",\"\",'1. Order'!Y551)","v":"EUR"},{"$f":"IF('1. Order'!Z551=\"\",\"\",'1. Order'!Z551)","v":""},{"$f":"IF('1. Order'!AA551=\"\",\"\",'1. Order'!AA551)","v":""},{"$f":"IF('1. Order'!AB551=\"\",\"\",'1. Order'!AB551)","v":""},null,{"$f":"IF('1. Order'!AT551=\"\",\"\",'1. Order'!AT551)","v":""},{"$f":"IF('1. Order'!AU551=\"\",\"\",'1. Order'!AU551)","v":""},null,null,null,null,null,null,null,{"$f":"IF('1. Order'!AY551=\"\",\"\",'1. Order'!AY551)","v":""},{"$f":"IF('1. Order'!AZ551=\"\",\"\",'1. Order'!AZ551)","v":""},{"$f":"IF('1. Order'!BA551=\"\",\"\",'1. Order'!BA551)","v":""},{"$f":"IF('1. Order'!BB551=\"\",\"\",'1. Order'!BB551)","v":""},{"$f":"IF('1. Order'!BD551=\"\",\"\",'1. Order'!BD551)","v":""},{"$f":"IF('1. Order'!BE551=\"\",\"\",'1. Order'!BE551)","v":""},{"$f":"IF('1. Order'!BF551=\"\",\"\",'1. Order'!BF551)","v":""},{"$f":"IF('1. Order'!BG551=\"\",\"\",'1. Order'!BG551)","v":""},{"$f":"IF('1. Order'!BH551=\"\",\"\",'1. Order'!BH551)","v":"ZWO"}]
[{"$f":"IF('1. Order'!F552=\"\",\"\",'1. Order'!F552)","v":{"$error":"#N/A"}},{"$f":"IF('1. Order'!G552=\"\",\"\",'1. Order'!G552)","v":""},{"$f":"IF('1. Order'!H552=\"\",\"\",'1. Order'!H552)","v":""},{"$f":"IF('1. Order'!I552=\"\",\"\",'1. Order'!I552)","v":""},{"$f":"IF('1. Order'!J552=\"\",\"\",'1. Order'!J552)","v":""},{"$f":"IF('1. Order'!K552=\"\",\"\",'1. Order'!K552)","v":""},{"$f":"IF('1. Order'!L552=\"\",\"\",'1. Order'!L552)","v":""},{"$f":"IF('1. Order'!M552=\"\",\"\",'1. Order'!M552)","v":""},{"$f":"IF('1. Order'!N552=\"\",\"\",'1. Order'!N552)","v":""},{"$f":"IF('1. Order'!O552=\"\",\"\",'1. Order'!O552)","v":{"$error":"#N/A"}},{"$f":"IF('1. Order'!P552=\"\",\"\",'1. Order'!P552)","v":{"$error":"#N/A"}},{"$f":"IF('1. Order'!Q552=\"\",\"\",'1. Order'!Q552)","v":""},{"$f":"IF('1. Order'!S552=\"\",\"\",'1. Order'!S552)","v":""},{"$f":"IF('1. Order'!T552=\"\",\"\",'1. Order'!T552)","v":""},{"$f":"IF('1. Order'!W552=\"\",\"\",'1. Order'!W552)","v":""},{"$f":"IF('1. Order'!X552=\"\",\"\",'1. Order'!X552)","v":""},{"$f":"IF('1. Order'!Y552=\"\",\"\",'1. Order'!Y552)","v":"EUR"},{"$f":"IF('1. Order'!Z552=\"\",\"\",'1. Order'!Z552)","v":""},{"$f":"IF('1. Order'!AA552=\"\",\"\",'1. Order'!AA552)","v":""},{"$f":"IF('1. Order'!AB552=\"\",\"\",'1. Order'!AB552)","v":""},null,{"$f":"IF('1. Order'!AT552=\"\",\"\",'1. Order'!AT552)","v":""},{"$f":"IF('1. Order'!AU552=\"\",\"\",'1. Order'!AU552)","v":""},null,null,null,null,null,null,null,{"$f":"IF('1. Order'!AY552=\"\",\"\",'1. Order'!AY552)","v":""},{"$f":"IF('1. Order'!AZ552=\"\",\"\",'1. Order'!AZ552)","v":""},{"$f":"IF('1. Order'!BA552=\"\",\"\",'1. Order'!BA552)","v":""},{"$f":"IF('1. Order'!BB552=\"\",\"\",'1. Order'!BB552)","v":""},{"$f":"IF('1. Order'!BD552=\"\",\"\",'1. Order'!BD552)","v":""},{"$f":"IF('1. Order'!BE552=\"\",\"\",'1. Order'!BE552)","v":""},{"$f":"IF('1. Order'!BF552=\"\",\"\",'1. Order'!BF552)","v":""},{"$f":"IF('1. Order'!BG552=\"\",\"\",'1. Order'!BG552)","v":""},{"$f":"IF('1. Order'!BH552=\"\",\"\",'1. Order'!BH552)","v":"ZWO"}]
[{"$f":"IF('1. Order'!F553=\"\",\"\",'1. Order'!F553)","v":{"$error":"#N/A"}},{"$f":"IF('1. Order'!G553=\"\",\"\",'1. Order'!G553)","v":""},{"$f":"IF('1. Order'!H553=\"\",\"\",'1. Order'!H553)","v":""},{"$f":"IF('1. Order'!I553=\"\",\"\",'1. Order'!I553)","v":""},{"$f":"IF('1. Order'!J553=\"\",\"\",'1. Order'!J553)","v":""},{"$f":"IF('1. Order'!K553=\"\",\"\",'1. Order'!K553)","v":""},{"$f":"IF('1. Order'!L553=\"\",\"\",'1. Order'!L553)","v":""},{"$f":"IF('1. Order'!M553=\"\",\"\",'1. Order'!M553)","v":""},{"$f":"IF('1. Order'!N553=\"\",\"\",'1. Order'!N553)","v":""},{"$f":"IF('1. Order'!O553=\"\",\"\",'1. Order'!O553)","v":{"$error":"#N/A"}},{"$f":"IF('1. Order'!P553=\"\",\"\",'1. Order'!P553)","v":{"$error":"#N/A"}},{"$f":"IF('1. Order'!Q553=\"\",\"\",'1. Order'!Q553)","v":""},{"$f":"IF('1. Order'!S553=\"\",\"\",'1. Order'!S553)","v":""},{"$f":"IF('1. Order'!T553=\"\",\"\",'1. Order'!T553)","v":""},{"$f":"IF('1. Order'!W553=\"\",\"\",'1. Order'!W553)","v":""},{"$f":"IF('1. Order'!X553=\"\",\"\",'1. Order'!X553)","v":""},{"$f":"IF('1. Order'!Y553=\"\",\"\",'1. Order'!Y553)","v":"EUR"},{"$f":"IF('1. Order'!Z553=\"\",\"\",'1. Order'!Z553)","v":""},{"$f":"IF('1. Order'!AA553=\"\",\"\",'1. Order'!AA553)","v":""},{"$f":"IF('1. Order'!AB553=\"\",\"\",'1. Order'!AB553)","v":""},null,{"$f":"IF('1. Order'!AT553=\"\",\"\",'1. Order'!AT553)","v":""},{"$f":"IF('1. Order'!AU553=\"\",\"\",'1. Order'!AU553)","v":""},null,null,null,null,null,null,null,{"$f":"IF('1. Order'!AY553=\"\",\"\",'1. Order'!AY553)","v":""},{"$f":"IF('1. Order'!AZ553=\"\",\"\",'1. Order'!AZ553)","v":""},{"$f":"IF('1. Order'!BA553=\"\",\"\",'1. Order'!BA553)","v":""},{"$f":"IF('1. Order'!BB553=\"\",\"\",'1. Order'!BB553)","v":""},{"$f":"IF('1. Order'!BD553=\"\",\"\",'1. Order'!BD553)","v":""},{"$f":"IF('1. Order'!BE553=\"\",\"\",'1. Order'!BE553)","v":""},{"$f":"IF('1. Order'!BF553=\"\",\"\",'1. Order'!BF553)","v":""},{"$f":"IF('1. Order'!BG553=\"\",\"\",'1. Order'!BG553)","v":""},{"$f":"IF('1. Order'!BH553=\"\",\"\",'1. Order'!BH553)","v":"ZWO"}]
[{"$f":"IF('1. Order'!F554=\"\",\"\",'1. Order'!F554)","v":{"$error":"#N/A"}},{"$f":"IF('1. Order'!G554=\"\",\"\",'1. Order'!G554)","v":""},{"$f":"IF('1. Order'!H554=\"\",\"\",'1. Order'!H554)","v":""},{"$f":"IF('1. Order'!I554=\"\",\"\",'1. Order'!I554)","v":""},{"$f":"IF('1. Order'!J554=\"\",\"\",'1. Order'!J554)","v":""},{"$f":"IF('1. Order'!K554=\"\",\"\",'1. Order'!K554)","v":""},{"$f":"IF('1. Order'!L554=\"\",\"\",'1. Order'!L554)","v":""},{"$f":"IF('1. Order'!M554=\"\",\"\",'1. Order'!M554)","v":""},{"$f":"IF('1. Order'!N554=\"\",\"\",'1. Order'!N554)","v":""},{"$f":"IF('1. Order'!O554=\"\",\"\",'1. Order'!O554)","v":{"$error":"#N/A"}},{"$f":"IF('1. Order'!P554=\"\",\"\",'1. Order'!P554)","v":{"$error":"#N/A"}},{"$f":"IF('1. Order'!Q554=\"\",\"\",'1. Order'!Q554)","v":""},{"$f":"IF('1. Order'!S554=\"\",\"\",'1. Order'!S554)","v":""},{"$f":"IF('1. Order'!T554=\"\",\"\",'1. Order'!T554)","v":""},{"$f":"IF('1. Order'!W554=\"\",\"\",'1. Order'!W554)","v":""},{"$f":"IF('1. Order'!X554=\"\",\"\",'1. Order'!X554)","v":""},{"$f":"IF('1. Order'!Y554=\"\",\"\",'1. Order'!Y554)","v":"EUR"},{"$f":"IF('1. Order'!Z554=\"\",\"\",'1. Order'!Z554)","v":""},{"$f":"IF('1. Order'!AA554=\"\",\"\",'1. Order'!AA554)","v":""},{"$f":"IF('1. Order'!AB554=\"\",\"\",'1. Order'!AB554)","v":""},null,{"$f":"IF('1. Order'!AT554=\"\",\"\",'1. Order'!AT554)","v":""},{"$f":"IF('1. Order'!AU554=\"\",\"\",'1. Order'!AU554)","v":""},null,null,null,null,null,null,null,{"$f":"IF('1. Order'!AY554=\"\",\"\",'1. Order'!AY554)","v":""},{"$f":"IF('1. Order'!AZ554=\"\",\"\",'1. Order'!AZ554)","v":""},{"$f":"IF('1. Order'!BA554=\"\",\"\",'1. Order'!BA554)","v":""},{"$f":"IF('1. Order'!BB554=\"\",\"\",'1. Order'!BB554)","v":""},{"$f":"IF('1. Order'!BD554=\"\",\"\",'1. Order'!BD554)","v":""},{"$f":"IF('1. Order'!BE554=\"\",\"\",'1. Order'!BE554)","v":""},{"$f":"IF('1. Order'!BF554=\"\",\"\",'1. Order'!BF554)","v":""},{"$f":"IF('1. Order'!BG554=\"\",\"\",'1. Order'!BG554)","v":""},{"$f":"IF('1. Order'!BH554=\"\",\"\",'1. Order'!BH554)","v":"ZWO"}]
[{"$f":"IF('1. Order'!F555=\"\",\"\",'1. Order'!F555)","v":{"$error":"#N/A"}},{"$f":"IF('1. Order'!G555=\"\",\"\",'1. Order'!G555)","v":""},{"$f":"IF('1. Order'!H555=\"\",\"\",'1. Order'!H555)","v":""},{"$f":"IF('1. Order'!I555=\"\",\"\",'1. Order'!I555)","v":""},{"$f":"IF('1. Order'!J555=\"\",\"\",'1. Order'!J555)","v":""},{"$f":"IF('1. Order'!K555=\"\",\"\",'1. Order'!K555)","v":""},{"$f":"IF('1. Order'!L555=\"\",\"\",'1. Order'!L555)","v":""},{"$f":"IF('1. Order'!M555=\"\",\"\",'1. Order'!M555)","v":""},{"$f":"IF('1. Order'!N555=\"\",\"\",'1. Order'!N555)","v":""},{"$f":"IF('1. Order'!O555=\"\",\"\",'1. Order'!O555)","v":{"$error":"#N/A"}},{"$f":"IF('1. Order'!P555=\"\",\"\",'1. Order'!P555)","v":{"$error":"#N/A"}},{"$f":"IF('1. Order'!Q555=\"\",\"\",'1. Order'!Q555)","v":""},{"$f":"IF('1. Order'!S555=\"\",\"\",'1. Order'!S555)","v":""},{"$f":"IF('1. Order'!T555=\"\",\"\",'1. Order'!T555)","v":""},{"$f":"IF('1. Order'!W555=\"\",\"\",'1. Order'!W555)","v":""},{"$f":"IF('1. Order'!X555=\"\",\"\",'1. Order'!X555)","v":""},{"$f":"IF('1. Order'!Y555=\"\",\"\",'1. Order'!Y555)","v":"EUR"},{"$f":"IF('1. Order'!Z555=\"\",\"\",'1. Order'!Z555)","v":""},{"$f":"IF('1. Order'!AA555=\"\",\"\",'1. Order'!AA555)","v":""},{"$f":"IF('1. Order'!AB555=\"\",\"\",'1. Order'!AB555)","v":""},null,{"$f":"IF('1. Order'!AT555=\"\",\"\",'1. Order'!AT555)","v":""},{"$f":"IF('1. Order'!AU555=\"\",\"\",'1. Order'!AU555)","v":""},null,null,null,null,null,null,null,{"$f":"IF('1. Order'!AY555=\"\",\"\",'1. Order'!AY555)","v":""},{"$f":"IF('1. Order'!AZ555=\"\",\"\",'1. Order'!AZ555)","v":""},{"$f":"IF('1. Order'!BA555=\"\",\"\",'1. Order'!BA555)","v":""},{"$f":"IF('1. Order'!BB555=\"\",\"\",'1. Order'!BB555)","v":""},{"$f":"IF('1. Order'!BD555=\"\",\"\",'1. Order'!BD555)","v":""},{"$f":"IF('1. Order'!BE555=\"\",\"\",'1. Order'!BE555)","v":""},{"$f":"IF('1. Order'!BF555=\"\",\"\",'1. Order'!BF555)","v":""},{"$f":"IF('1. Order'!BG555=\"\",\"\",'1. Order'!BG555)","v":""},{"$f":"IF('1. Order'!BH555=\"\",\"\",'1. Order'!BH555)","v":"ZWO"}]
[{"$f":"IF('1. Order'!F556=\"\",\"\",'1. Order'!F556)","v":{"$error":"#N/A"}},{"$f":"IF('1. Order'!G556=\"\",\"\",'1. Order'!G556)","v":""},{"$f":"IF('1. Order'!H556=\"\",\"\",'1. Order'!H556)","v":""},{"$f":"IF('1. Order'!I556=\"\",\"\",'1. Order'!I556)","v":""},{"$f":"IF('1. Order'!J556=\"\",\"\",'1. Order'!J556)","v":""},{"$f":"IF('1. Order'!K556=\"\",\"\",'1. Order'!K556)","v":""},{"$f":"IF('1. Order'!L556=\"\",\"\",'1. Order'!L556)","v":""},{"$f":"IF('1. Order'!M556=\"\",\"\",'1. Order'!M556)","v":""},{"$f":"IF('1. Order'!N556=\"\",\"\",'1. Order'!N556)","v":""},{"$f":"IF('1. Order'!O556=\"\",\"\",'1. Order'!O556)","v":{"$error":"#N/A"}},{"$f":"IF('1. Order'!P556=\"\",\"\",'1. Order'!P556)","v":{"$error":"#N/A"}},{"$f":"IF('1. Order'!Q556=\"\",\"\",'1. Order'!Q556)","v":""},{"$f":"IF('1. Order'!S556=\"\",\"\",'1. Order'!S556)","v":""},{"$f":"IF('1. Order'!T556=\"\",\"\",'1. Order'!T556)","v":""},{"$f":"IF('1. Order'!W556=\"\",\"\",'1. Order'!W556)","v":""},{"$f":"IF('1. Order'!X556=\"\",\"\",'1. Order'!X556)","v":""},{"$f":"IF('1. Order'!Y556=\"\",\"\",'1. Order'!Y556)","v":"EUR"},{"$f":"IF('1. Order'!Z556=\"\",\"\",'1. Order'!Z556)","v":""},{"$f":"IF('1. Order'!AA556=\"\",\"\",'1. Order'!AA556)","v":""},{"$f":"IF('1. Order'!AB556=\"\",\"\",'1. Order'!AB556)","v":""},null,{"$f":"IF('1. Order'!AT556=\"\",\"\",'1. Order'!AT556)","v":""},{"$f":"IF('1. Order'!AU556=\"\",\"\",'1. Order'!AU556)","v":""},null,null,null,null,null,null,null,{"$f":"IF('1. Order'!AY556=\"\",\"\",'1. Order'!AY556)","v":""},{"$f":"IF('1. Order'!AZ556=\"\",\"\",'1. Order'!AZ556)","v":""},{"$f":"IF('1. Order'!BA556=\"\",\"\",'1. Order'!BA556)","v":""},{"$f":"IF('1. Order'!BB556=\"\",\"\",'1. Order'!BB556)","v":""},{"$f":"IF('1. Order'!BD556=\"\",\"\",'1. Order'!BD556)","v":""},{"$f":"IF('1. Order'!BE556=\"\",\"\",'1. Order'!BE556)","v":""},{"$f":"IF('1. Order'!BF556=\"\",\"\",'1. Order'!BF556)","v":""},{"$f":"IF('1. Order'!BG556=\"\",\"\",'1. Order'!BG556)","v":""},{"$f":"IF('1. Order'!BH556=\"\",\"\",'1. Order'!BH556)","v":"ZWO"}]
[{"$f":"IF('1. Order'!F557=\"\",\"\",'1. Order'!F557)","v":{"$error":"#N/A"}},{"$f":"IF('1. Order'!G557=\"\",\"\",'1. Order'!G557)","v":""},{"$f":"IF('1. Order'!H557=\"\",\"\",'1. Order'!H557)","v":""},{"$f":"IF('1. Order'!I557=\"\",\"\",'1. Order'!I557)","v":""},{"$f":"IF('1. Order'!J557=\"\",\"\",'1. Order'!J557)","v":""},{"$f":"IF('1. Order'!K557=\"\",\"\",'1. Order'!K557)","v":""},{"$f":"IF('1. Order'!L557=\"\",\"\",'1. Order'!L557)","v":""},{"$f":"IF('1. Order'!M557=\"\",\"\",'1. Order'!M557)","v":""},{"$f":"IF('1. Order'!N557=\"\",\"\",'1. Order'!N557)","v":""},{"$f":"IF('1. Order'!O557=\"\",\"\",'1. Order'!O557)","v":{"$error":"#N/A"}},{"$f":"IF('1. Order'!P557=\"\",\"\",'1. Order'!P557)","v":{"$error":"#N/A"}},{"$f":"IF('1. Order'!Q557=\"\",\"\",'1. Order'!Q557)","v":""},{"$f":"IF('1. Order'!S557=\"\",\"\",'1. Order'!S557)","v":""},{"$f":"IF('1. Order'!T557=\"\",\"\",'1. Order'!T557)","v":""},{"$f":"IF('1. Order'!W557=\"\",\"\",'1. Order'!W557)","v":""},{"$f":"IF('1. Order'!X557=\"\",\"\",'1. Order'!X557)","v":""},{"$f":"IF('1. Order'!Y557=\"\",\"\",'1. Order'!Y557)","v":"EUR"},{"$f":"IF('1. Order'!Z557=\"\",\"\",'1. Order'!Z557)","v":""},{"$f":"IF('1. Order'!AA557=\"\",\"\",'1. Order'!AA557)","v":""},{"$f":"IF('1. Order'!AB557=\"\",\"\",'1. Order'!AB557)","v":""},null,{"$f":"IF('1. Order'!AT557=\"\",\"\",'1. Order'!AT557)","v":""},{"$f":"IF('1. Order'!AU557=\"\",\"\",'1. Order'!AU557)","v":""},null,null,null,null,null,null,null,{"$f":"IF('1. Order'!AY557=\"\",\"\",'1. Order'!AY557)","v":""},{"$f":"IF('1. Order'!AZ557=\"\",\"\",'1. Order'!AZ557)","v":""},{"$f":"IF('1. Order'!BA557=\"\",\"\",'1. Order'!BA557)","v":""},{"$f":"IF('1. Order'!BB557=\"\",\"\",'1. Order'!BB557)","v":""},{"$f":"IF('1. Order'!BD557=\"\",\"\",'1. Order'!BD557)","v":""},{"$f":"IF('1. Order'!BE557=\"\",\"\",'1. Order'!BE557)","v":""},{"$f":"IF('1. Order'!BF557=\"\",\"\",'1. Order'!BF557)","v":""},{"$f":"IF('1. Order'!BG557=\"\",\"\",'1. Order'!BG557)","v":""},{"$f":"IF('1. Order'!BH557=\"\",\"\",'1. Order'!BH557)","v":"ZWO"}]
[{"$f":"IF('1. Order'!F558=\"\",\"\",'1. Order'!F558)","v":{"$error":"#N/A"}},{"$f":"IF('1. Order'!G558=\"\",\"\",'1. Order'!G558)","v":""},{"$f":"IF('1. Order'!H558=\"\",\"\",'1. Order'!H558)","v":""},{"$f":"IF('1. Order'!I558=\"\",\"\",'1. Order'!I558)","v":""},{"$f":"IF('1. Order'!J558=\"\",\"\",'1. Order'!J558)","v":""},{"$f":"IF('1. Order'!K558=\"\",\"\",'1. Order'!K558)","v":""},{"$f":"IF('1. Order'!L558=\"\",\"\",'1. Order'!L558)","v":""},{"$f":"IF('1. Order'!M558=\"\",\"\",'1. Order'!M558)","v":""},{"$f":"IF('1. Order'!N558=\"\",\"\",'1. Order'!N558)","v":""},{"$f":"IF('1. Order'!O558=\"\",\"\",'1. Order'!O558)","v":{"$error":"#N/A"}},{"$f":"IF('1. Order'!P558=\"\",\"\",'1. Order'!P558)","v":{"$error":"#N/A"}},{"$f":"IF('1. Order'!Q558=\"\",\"\",'1. Order'!Q558)","v":""},{"$f":"IF('1. Order'!S558=\"\",\"\",'1. Order'!S558)","v":""},{"$f":"IF('1. Order'!T558=\"\",\"\",'1. Order'!T558)","v":""},{"$f":"IF('1. Order'!W558=\"\",\"\",'1. Order'!W558)","v":""},{"$f":"IF('1. Order'!X558=\"\",\"\",'1. Order'!X558)","v":""},{"$f":"IF('1. Order'!Y558=\"\",\"\",'1. Order'!Y558)","v":"EUR"},{"$f":"IF('1. Order'!Z558=\"\",\"\",'1. Order'!Z558)","v":""},{"$f":"IF('1. Order'!AA558=\"\",\"\",'1. Order'!AA558)","v":""},{"$f":"IF('1. Order'!AB558=\"\",\"\",'1. Order'!AB558)","v":""},null,{"$f":"IF('1. Order'!AT558=\"\",\"\",'1. Order'!AT558)","v":""},{"$f":"IF('1. Order'!AU558=\"\",\"\",'1. Order'!AU558)","v":""},null,null,null,null,null,null,null,{"$f":"IF('1. Order'!AY558=\"\",\"\",'1. Order'!AY558)","v":""},{"$f":"IF('1. Order'!AZ558=\"\",\"\",'1. Order'!AZ558)","v":""},{"$f":"IF('1. Order'!BA558=\"\",\"\",'1. Order'!BA558)","v":""},{"$f":"IF('1. Order'!BB558=\"\",\"\",'1. Order'!BB558)","v":""},{"$f":"IF('1. Order'!BD558=\"\",\"\",'1. Order'!BD558)","v":""},{"$f":"IF('1. Order'!BE558=\"\",\"\",'1. Order'!BE558)","v":""},{"$f":"IF('1. Order'!BF558=\"\",\"\",'1. Order'!BF558)","v":""},{"$f":"IF('1. Order'!BG558=\"\",\"\",'1. Order'!BG558)","v":""},{"$f":"IF('1. Order'!BH558=\"\",\"\",'1. Order'!BH558)","v":"ZWO"}]
[{"$f":"IF('1. Order'!F559=\"\",\"\",'1. Order'!F559)","v":{"$error":"#N/A"}},{"$f":"IF('1. Order'!G559=\"\",\"\",'1. Order'!G559)","v":""},{"$f":"IF('1. Order'!H559=\"\",\"\",'1. Order'!H559)","v":""},{"$f":"IF('1. Order'!I559=\"\",\"\",'1. Order'!I559)","v":""},{"$f":"IF('1. Order'!J559=\"\",\"\",'1. Order'!J559)","v":""},{"$f":"IF('1. Order'!K559=\"\",\"\",'1. Order'!K559)","v":""},{"$f":"IF('1. Order'!L559=\"\",\"\",'1. Order'!L559)","v":""},{"$f":"IF('1. Order'!M559=\"\",\"\",'1. Order'!M559)","v":""},{"$f":"IF('1. Order'!N559=\"\",\"\",'1. Order'!N559)","v":""},{"$f":"IF('1. Order'!O559=\"\",\"\",'1. Order'!O559)","v":{"$error":"#N/A"}},{"$f":"IF('1. Order'!P559=\"\",\"\",'1. Order'!P559)","v":{"$error":"#N/A"}},{"$f":"IF('1. Order'!Q559=\"\",\"\",'1. Order'!Q559)","v":""},{"$f":"IF('1. Order'!S559=\"\",\"\",'1. Order'!S559)","v":""},{"$f":"IF('1. Order'!T559=\"\",\"\",'1. Order'!T559)","v":""},{"$f":"IF('1. Order'!W559=\"\",\"\",'1. Order'!W559)","v":""},{"$f":"IF('1. Order'!X559=\"\",\"\",'1. Order'!X559)","v":""},{"$f":"IF('1. Order'!Y559=\"\",\"\",'1. Order'!Y559)","v":"EUR"},{"$f":"IF('1. Order'!Z559=\"\",\"\",'1. Order'!Z559)","v":""},{"$f":"IF('1. Order'!AA559=\"\",\"\",'1. Order'!AA559)","v":""},{"$f":"IF('1. Order'!AB559=\"\",\"\",'1. Order'!AB559)","v":""},null,{"$f":"IF('1. Order'!AT559=\"\",\"\",'1. Order'!AT559)","v":""},{"$f":"IF('1. Order'!AU559=\"\",\"\",'1. Order'!AU559)","v":""},null,null,null,null,null,null,null,{"$f":"IF('1. Order'!AY559=\"\",\"\",'1. Order'!AY559)","v":""},{"$f":"IF('1. Order'!AZ559=\"\",\"\",'1. Order'!AZ559)","v":""},{"$f":"IF('1. Order'!BA559=\"\",\"\",'1. Order'!BA559)","v":""},{"$f":"IF('1. Order'!BB559=\"\",\"\",'1. Order'!BB559)","v":""},{"$f":"IF('1. Order'!BD559=\"\",\"\",'1. Order'!BD559)","v":""},{"$f":"IF('1. Order'!BE559=\"\",\"\",'1. Order'!BE559)","v":""},{"$f":"IF('1. Order'!BF559=\"\",\"\",'1. Order'!BF559)","v":""},{"$f":"IF('1. Order'!BG559=\"\",\"\",'1. Order'!BG559)","v":""},{"$f":"IF('1. Order'!BH559=\"\",\"\",'1. Order'!BH559)","v":"ZWO"}]
[{"$f":"IF('1. Order'!F560=\"\",\"\",'1. Order'!F560)","v":{"$error":"#N/A"}},{"$f":"IF('1. Order'!G560=\"\",\"\",'1. Order'!G560)","v":""},{"$f":"IF('1. Order'!H560=\"\",\"\",'1. Order'!H560)","v":""},{"$f":"IF('1. Order'!I560=\"\",\"\",'1. Order'!I560)","v":""},{"$f":"IF('1. Order'!J560=\"\",\"\",'1. Order'!J560)","v":""},{"$f":"IF('1. Order'!K560=\"\",\"\",'1. Order'!K560)","v":""},{"$f":"IF('1. Order'!L560=\"\",\"\",'1. Order'!L560)","v":""},{"$f":"IF('1. Order'!M560=\"\",\"\",'1. Order'!M560)","v":""},{"$f":"IF('1. Order'!N560=\"\",\"\",'1. Order'!N560)","v":""},{"$f":"IF('1. Order'!O560=\"\",\"\",'1. Order'!O560)","v":{"$error":"#N/A"}},{"$f":"IF('1. Order'!P560=\"\",\"\",'1. Order'!P560)","v":{"$error":"#N/A"}},{"$f":"IF('1. Order'!Q560=\"\",\"\",'1. Order'!Q560)","v":""},{"$f":"IF('1. Order'!S560=\"\",\"\",'1. Order'!S560)","v":""},{"$f":"IF('1. Order'!T560=\"\",\"\",'1. Order'!T560)","v":""},{"$f":"IF('1. Order'!W560=\"\",\"\",'1. Order'!W560)","v":""},{"$f":"IF('1. Order'!X560=\"\",\"\",'1. Order'!X560)","v":""},{"$f":"IF('1. Order'!Y560=\"\",\"\",'1. Order'!Y560)","v":"EUR"},{"$f":"IF('1. Order'!Z560=\"\",\"\",'1. Order'!Z560)","v":""},{"$f":"IF('1. Order'!AA560=\"\",\"\",'1. Order'!AA560)","v":""},{"$f":"IF('1. Order'!AB560=\"\",\"\",'1. Order'!AB560)","v":""},null,{"$f":"IF('1. Order'!AT560=\"\",\"\",'1. Order'!AT560)","v":""},{"$f":"IF('1. Order'!AU560=\"\",\"\",'1. Order'!AU560)","v":""},null,null,null,null,null,null,null,{"$f":"IF('1. Order'!AY560=\"\",\"\",'1. Order'!AY560)","v":""},{"$f":"IF('1. Order'!AZ560=\"\",\"\",'1. Order'!AZ560)","v":""},{"$f":"IF('1. Order'!BA560=\"\",\"\",'1. Order'!BA560)","v":""},{"$f":"IF('1. Order'!BB560=\"\",\"\",'1. Order'!BB560)","v":""},{"$f":"IF('1. Order'!BD560=\"\",\"\",'1. Order'!BD560)","v":""},{"$f":"IF('1. Order'!BE560=\"\",\"\",'1. Order'!BE560)","v":""},{"$f":"IF('1. Order'!BF560=\"\",\"\",'1. Order'!BF560)","v":""},{"$f":"IF('1. Order'!BG560=\"\",\"\",'1. Order'!BG560)","v":""},{"$f":"IF('1. Order'!BH560=\"\",\"\",'1. Order'!BH560)","v":"ZWO"}]
[{"$f":"IF('1. Order'!F561=\"\",\"\",'1. Order'!F561)","v":{"$error":"#N/A"}},{"$f":"IF('1. Order'!G561=\"\",\"\",'1. Order'!G561)","v":""},{"$f":"IF('1. Order'!H561=\"\",\"\",'1. Order'!H561)","v":""},{"$f":"IF('1. Order'!I561=\"\",\"\",'1. Order'!I561)","v":""},{"$f":"IF('1. Order'!J561=\"\",\"\",'1. Order'!J561)","v":""},{"$f":"IF('1. Order'!K561=\"\",\"\",'1. Order'!K561)","v":""},{"$f":"IF('1. Order'!L561=\"\",\"\",'1. Order'!L561)","v":""},{"$f":"IF('1. Order'!M561=\"\",\"\",'1. Order'!M561)","v":""},{"$f":"IF('1. Order'!N561=\"\",\"\",'1. Order'!N561)","v":""},{"$f":"IF('1. Order'!O561=\"\",\"\",'1. Order'!O561)","v":{"$error":"#N/A"}},{"$f":"IF('1. Order'!P561=\"\",\"\",'1. Order'!P561)","v":{"$error":"#N/A"}},{"$f":"IF('1. Order'!Q561=\"\",\"\",'1. Order'!Q561)","v":""},{"$f":"IF('1. Order'!S561=\"\",\"\",'1. Order'!S561)","v":""},{"$f":"IF('1. Order'!T561=\"\",\"\",'1. Order'!T561)","v":""},{"$f":"IF('1. Order'!W561=\"\",\"\",'1. Order'!W561)","v":""},{"$f":"IF('1. Order'!X561=\"\",\"\",'1. Order'!X561)","v":""},{"$f":"IF('1. Order'!Y561=\"\",\"\",'1. Order'!Y561)","v":"EUR"},{"$f":"IF('1. Order'!Z561=\"\",\"\",'1. Order'!Z561)","v":""},{"$f":"IF('1. Order'!AA561=\"\",\"\",'1. Order'!AA561)","v":""},{"$f":"IF('1. Order'!AB561=\"\",\"\",'1. Order'!AB561)","v":""},null,{"$f":"IF('1. Order'!AT561=\"\",\"\",'1. Order'!AT561)","v":""},{"$f":"IF('1. Order'!AU561=\"\",\"\",'1. Order'!AU561)","v":""},null,null,null,null,null,null,null,{"$f":"IF('1. Order'!AY561=\"\",\"\",'1. Order'!AY561)","v":""},{"$f":"IF('1. Order'!AZ561=\"\",\"\",'1. Order'!AZ561)","v":""},{"$f":"IF('1. Order'!BA561=\"\",\"\",'1. Order'!BA561)","v":""},{"$f":"IF('1. Order'!BB561=\"\",\"\",'1. Order'!BB561)","v":""},{"$f":"IF('1. Order'!BD561=\"\",\"\",'1. Order'!BD561)","v":""},{"$f":"IF('1. Order'!BE561=\"\",\"\",'1. Order'!BE561)","v":""},{"$f":"IF('1. Order'!BF561=\"\",\"\",'1. Order'!BF561)","v":""},{"$f":"IF('1. Order'!BG561=\"\",\"\",'1. Order'!BG561)","v":""},{"$f":"IF('1. Order'!BH561=\"\",\"\",'1. Order'!BH561)","v":"ZWO"}]
[{"$f":"IF('1. Order'!F562=\"\",\"\",'1. Order'!F562)","v":{"$error":"#N/A"}},{"$f":"IF('1. Order'!G562=\"\",\"\",'1. Order'!G562)","v":""},{"$f":"IF('1. Order'!H562=\"\",\"\",'1. Order'!H562)","v":""},{"$f":"IF('1. Order'!I562=\"\",\"\",'1. Order'!I562)","v":""},{"$f":"IF('1. Order'!J562=\"\",\"\",'1. Order'!J562)","v":""},{"$f":"IF('1. Order'!K562=\"\",\"\",'1. Order'!K562)","v":""},{"$f":"IF('1. Order'!L562=\"\",\"\",'1. Order'!L562)","v":""},{"$f":"IF('1. Order'!M562=\"\",\"\",'1. Order'!M562)","v":""},{"$f":"IF('1. Order'!N562=\"\",\"\",'1. Order'!N562)","v":""},{"$f":"IF('1. Order'!O562=\"\",\"\",'1. Order'!O562)","v":{"$error":"#N/A"}},{"$f":"IF('1. Order'!P562=\"\",\"\",'1. Order'!P562)","v":{"$error":"#N/A"}},{"$f":"IF('1. Order'!Q562=\"\",\"\",'1. Order'!Q562)","v":""},{"$f":"IF('1. Order'!S562=\"\",\"\",'1. Order'!S562)","v":""},{"$f":"IF('1. Order'!T562=\"\",\"\",'1. Order'!T562)","v":""},{"$f":"IF('1. Order'!W562=\"\",\"\",'1. Order'!W562)","v":""},{"$f":"IF('1. Order'!X562=\"\",\"\",'1. Order'!X562)","v":""},{"$f":"IF('1. Order'!Y562=\"\",\"\",'1. Order'!Y562)","v":"EUR"},{"$f":"IF('1. Order'!Z562=\"\",\"\",'1. Order'!Z562)","v":""},{"$f":"IF('1. Order'!AA562=\"\",\"\",'1. Order'!AA562)","v":""},{"$f":"IF('1. Order'!AB562=\"\",\"\",'1. Order'!AB562)","v":""},null,{"$f":"IF('1. Order'!AT562=\"\",\"\",'1. Order'!AT562)","v":""},{"$f":"IF('1. Order'!AU562=\"\",\"\",'1. Order'!AU562)","v":""},null,null,null,null,null,null,null,{"$f":"IF('1. Order'!AY562=\"\",\"\",'1. Order'!AY562)","v":""},{"$f":"IF('1. Order'!AZ562=\"\",\"\",'1. Order'!AZ562)","v":""},{"$f":"IF('1. Order'!BA562=\"\",\"\",'1. Order'!BA562)","v":""},{"$f":"IF('1. Order'!BB562=\"\",\"\",'1. Order'!BB562)","v":""},{"$f":"IF('1. Order'!BD562=\"\",\"\",'1. Order'!BD562)","v":""},{"$f":"IF('1. Order'!BE562=\"\",\"\",'1. Order'!BE562)","v":""},{"$f":"IF('1. Order'!BF562=\"\",\"\",'1. Order'!BF562)","v":""},{"$f":"IF('1. Order'!BG562=\"\",\"\",'1. Order'!BG562)","v":""},{"$f":"IF('1. Order'!BH562=\"\",\"\",'1. Order'!BH562)","v":"ZWO"}]
[{"$f":"IF('1. Order'!F563=\"\",\"\",'1. Order'!F563)","v":{"$error":"#N/A"}},{"$f":"IF('1. Order'!G563=\"\",\"\",'1. Order'!G563)","v":""},{"$f":"IF('1. Order'!H563=\"\",\"\",'1. Order'!H563)","v":""},{"$f":"IF('1. Order'!I563=\"\",\"\",'1. Order'!I563)","v":""},{"$f":"IF('1. Order'!J563=\"\",\"\",'1. Order'!J563)","v":""},{"$f":"IF('1. Order'!K563=\"\",\"\",'1. Order'!K563)","v":""},{"$f":"IF('1. Order'!L563=\"\",\"\",'1. Order'!L563)","v":""},{"$f":"IF('1. Order'!M563=\"\",\"\",'1. Order'!M563)","v":""},{"$f":"IF('1. Order'!N563=\"\",\"\",'1. Order'!N563)","v":""},{"$f":"IF('1. Order'!O563=\"\",\"\",'1. Order'!O563)","v":{"$error":"#N/A"}},{"$f":"IF('1. Order'!P563=\"\",\"\",'1. Order'!P563)","v":{"$error":"#N/A"}},{"$f":"IF('1. Order'!Q563=\"\",\"\",'1. Order'!Q563)","v":""},{"$f":"IF('1. Order'!S563=\"\",\"\",'1. Order'!S563)","v":""},{"$f":"IF('1. Order'!T563=\"\",\"\",'1. Order'!T563)","v":""},{"$f":"IF('1. Order'!W563=\"\",\"\",'1. Order'!W563)","v":""},{"$f":"IF('1. Order'!X563=\"\",\"\",'1. Order'!X563)","v":""},{"$f":"IF('1. Order'!Y563=\"\",\"\",'1. Order'!Y563)","v":"EUR"},{"$f":"IF('1. Order'!Z563=\"\",\"\",'1. Order'!Z563)","v":""},{"$f":"IF('1. Order'!AA563=\"\",\"\",'1. Order'!AA563)","v":""},{"$f":"IF('1. Order'!AB563=\"\",\"\",'1. Order'!AB563)","v":""},null,{"$f":"IF('1. Order'!AT563=\"\",\"\",'1. Order'!AT563)","v":""},{"$f":"IF('1. Order'!AU563=\"\",\"\",'1. Order'!AU563)","v":""},null,null,null,null,null,null,null,{"$f":"IF('1. Order'!AY563=\"\",\"\",'1. Order'!AY563)","v":""},{"$f":"IF('1. Order'!AZ563=\"\",\"\",'1. Order'!AZ563)","v":""},{"$f":"IF('1. Order'!BA563=\"\",\"\",'1. Order'!BA563)","v":""},{"$f":"IF('1. Order'!BB563=\"\",\"\",'1. Order'!BB563)","v":""},{"$f":"IF('1. Order'!BD563=\"\",\"\",'1. Order'!BD563)","v":""},{"$f":"IF('1. Order'!BE563=\"\",\"\",'1. Order'!BE563)","v":""},{"$f":"IF('1. Order'!BF563=\"\",\"\",'1. Order'!BF563)","v":""},{"$f":"IF('1. Order'!BG563=\"\",\"\",'1. Order'!BG563)","v":""},{"$f":"IF('1. Order'!BH563=\"\",\"\",'1. Order'!BH563)","v":"ZWO"}]
[{"$f":"IF('1. Order'!F564=\"\",\"\",'1. Order'!F564)","v":{"$error":"#N/A"}},{"$f":"IF('1. Order'!G564=\"\",\"\",'1. Order'!G564)","v":""},{"$f":"IF('1. Order'!H564=\"\",\"\",'1. Order'!H564)","v":""},{"$f":"IF('1. Order'!I564=\"\",\"\",'1. Order'!I564)","v":""},{"$f":"IF('1. Order'!J564=\"\",\"\",'1. Order'!J564)","v":""},{"$f":"IF('1. Order'!K564=\"\",\"\",'1. Order'!K564)","v":""},{"$f":"IF('1. Order'!L564=\"\",\"\",'1. Order'!L564)","v":""},{"$f":"IF('1. Order'!M564=\"\",\"\",'1. Order'!M564)","v":""},{"$f":"IF('1. Order'!N564=\"\",\"\",'1. Order'!N564)","v":""},{"$f":"IF('1. Order'!O564=\"\",\"\",'1. Order'!O564)","v":{"$error":"#N/A"}},{"$f":"IF('1. Order'!P564=\"\",\"\",'1. Order'!P564)","v":{"$error":"#N/A"}},{"$f":"IF('1. Order'!Q564=\"\",\"\",'1. Order'!Q564)","v":""},{"$f":"IF('1. Order'!S564=\"\",\"\",'1. Order'!S564)","v":""},{"$f":"IF('1. Order'!T564=\"\",\"\",'1. Order'!T564)","v":""},{"$f":"IF('1. Order'!W564=\"\",\"\",'1. Order'!W564)","v":""},{"$f":"IF('1. Order'!X564=\"\",\"\",'1. Order'!X564)","v":""},{"$f":"IF('1. Order'!Y564=\"\",\"\",'1. Order'!Y564)","v":"EUR"},{"$f":"IF('1. Order'!Z564=\"\",\"\",'1. Order'!Z564)","v":""},{"$f":"IF('1. Order'!AA564=\"\",\"\",'1. Order'!AA564)","v":""},{"$f":"IF('1. Order'!AB564=\"\",\"\",'1. Order'!AB564)","v":""},null,{"$f":"IF('1. Order'!AT564=\"\",\"\",'1. Order'!AT564)","v":""},{"$f":"IF('1. Order'!AU564=\"\",\"\",'1. Order'!AU564)","v":""},null,null,null,null,null,null,null,{"$f":"IF('1. Order'!AY564=\"\",\"\",'1. Order'!AY564)","v":""},{"$f":"IF('1. Order'!AZ564=\"\",\"\",'1. Order'!AZ564)","v":""},{"$f":"IF('1. Order'!BA564=\"\",\"\",'1. Order'!BA564)","v":""},{"$f":"IF('1. Order'!BB564=\"\",\"\",'1. Order'!BB564)","v":""},{"$f":"IF('1. Order'!BD564=\"\",\"\",'1. Order'!BD564)","v":""},{"$f":"IF('1. Order'!BE564=\"\",\"\",'1. Order'!BE564)","v":""},{"$f":"IF('1. Order'!BF564=\"\",\"\",'1. Order'!BF564)","v":""},{"$f":"IF('1. Order'!BG564=\"\",\"\",'1. Order'!BG564)","v":""},{"$f":"IF('1. Order'!BH564=\"\",\"\",'1. Order'!BH564)","v":"ZWO"}]
[{"$f":"IF('1. Order'!F565=\"\",\"\",'1. Order'!F565)","v":{"$error":"#N/A"}},{"$f":"IF('1. Order'!G565=\"\",\"\",'1. Order'!G565)","v":""},{"$f":"IF('1. Order'!H565=\"\",\"\",'1. Order'!H565)","v":""},{"$f":"IF('1. Order'!I565=\"\",\"\",'1. Order'!I565)","v":""},{"$f":"IF('1. Order'!J565=\"\",\"\",'1. Order'!J565)","v":""},{"$f":"IF('1. Order'!K565=\"\",\"\",'1. Order'!K565)","v":""},{"$f":"IF('1. Order'!L565=\"\",\"\",'1. Order'!L565)","v":""},{"$f":"IF('1. Order'!M565=\"\",\"\",'1. Order'!M565)","v":""},{"$f":"IF('1. Order'!N565=\"\",\"\",'1. Order'!N565)","v":""},{"$f":"IF('1. Order'!O565=\"\",\"\",'1. Order'!O565)","v":{"$error":"#N/A"}},{"$f":"IF('1. Order'!P565=\"\",\"\",'1. Order'!P565)","v":{"$error":"#N/A"}},{"$f":"IF('1. Order'!Q565=\"\",\"\",'1. Order'!Q565)","v":""},{"$f":"IF('1. Order'!S565=\"\",\"\",'1. Order'!S565)","v":""},{"$f":"IF('1. Order'!T565=\"\",\"\",'1. Order'!T565)","v":""},{"$f":"IF('1. Order'!W565=\"\",\"\",'1. Order'!W565)","v":""},{"$f":"IF('1. Order'!X565=\"\",\"\",'1. Order'!X565)","v":""},{"$f":"IF('1. Order'!Y565=\"\",\"\",'1. Order'!Y565)","v":"EUR"},{"$f":"IF('1. Order'!Z565=\"\",\"\",'1. Order'!Z565)","v":""},{"$f":"IF('1. Order'!AA565=\"\",\"\",'1. Order'!AA565)","v":""},{"$f":"IF('1. Order'!AB565=\"\",\"\",'1. Order'!AB565)","v":""},null,{"$f":"IF('1. Order'!AT565=\"\",\"\",'1. Order'!AT565)","v":""},{"$f":"IF('1. Order'!AU565=\"\",\"\",'1. Order'!AU565)","v":""},null,null,null,null,null,null,null,{"$f":"IF('1. Order'!AY565=\"\",\"\",'1. Order'!AY565)","v":""},{"$f":"IF('1. Order'!AZ565=\"\",\"\",'1. Order'!AZ565)","v":""},{"$f":"IF('1. Order'!BA565=\"\",\"\",'1. Order'!BA565)","v":""},{"$f":"IF('1. Order'!BB565=\"\",\"\",'1. Order'!BB565)","v":""},{"$f":"IF('1. Order'!BD565=\"\",\"\",'1. Order'!BD565)","v":""},{"$f":"IF('1. Order'!BE565=\"\",\"\",'1. Order'!BE565)","v":""},{"$f":"IF('1. Order'!BF565=\"\",\"\",'1. Order'!BF565)","v":""},{"$f":"IF('1. Order'!BG565=\"\",\"\",'1. Order'!BG565)","v":""},{"$f":"IF('1. Order'!BH565=\"\",\"\",'1. Order'!BH565)","v":"ZWO"}]
[{"$f":"IF('1. Order'!F566=\"\",\"\",'1. Order'!F566)","v":{"$error":"#N/A"}},{"$f":"IF('1. Order'!G566=\"\",\"\",'1. Order'!G566)","v":""},{"$f":"IF('1. Order'!H566=\"\",\"\",'1. Order'!H566)","v":""},{"$f":"IF('1. Order'!I566=\"\",\"\",'1. Order'!I566)","v":""},{"$f":"IF('1. Order'!J566=\"\",\"\",'1. Order'!J566)","v":""},{"$f":"IF('1. Order'!K566=\"\",\"\",'1. Order'!K566)","v":""},{"$f":"IF('1. Order'!L566=\"\",\"\",'1. Order'!L566)","v":""},{"$f":"IF('1. Order'!M566=\"\",\"\",'1. Order'!M566)","v":""},{"$f":"IF('1. Order'!N566=\"\",\"\",'1. Order'!N566)","v":""},{"$f":"IF('1. Order'!O566=\"\",\"\",'1. Order'!O566)","v":{"$error":"#N/A"}},{"$f":"IF('1. Order'!P566=\"\",\"\",'1. Order'!P566)","v":{"$error":"#N/A"}},{"$f":"IF('1. Order'!Q566=\"\",\"\",'1. Order'!Q566)","v":""},{"$f":"IF('1. Order'!S566=\"\",\"\",'1. Order'!S566)","v":""},{"$f":"IF('1. Order'!T566=\"\",\"\",'1. Order'!T566)","v":""},{"$f":"IF('1. Order'!W566=\"\",\"\",'1. Order'!W566)","v":""},{"$f":"IF('1. Order'!X566=\"\",\"\",'1. Order'!X566)","v":""},{"$f":"IF('1. Order'!Y566=\"\",\"\",'1. Order'!Y566)","v":"EUR"},{"$f":"IF('1. Order'!Z566=\"\",\"\",'1. Order'!Z566)","v":""},{"$f":"IF('1. Order'!AA566=\"\",\"\",'1. Order'!AA566)","v":""},{"$f":"IF('1. Order'!AB566=\"\",\"\",'1. Order'!AB566)","v":""},null,{"$f":"IF('1. Order'!AT566=\"\",\"\",'1. Order'!AT566)","v":""},{"$f":"IF('1. Order'!AU566=\"\",\"\",'1. Order'!AU566)","v":""},null,null,null,null,null,null,null,{"$f":"IF('1. Order'!AY566=\"\",\"\",'1. Order'!AY566)","v":""},{"$f":"IF('1. Order'!AZ566=\"\",\"\",'1. Order'!AZ566)","v":""},{"$f":"IF('1. Order'!BA566=\"\",\"\",'1. Order'!BA566)","v":""},{"$f":"IF('1. Order'!BB566=\"\",\"\",'1. Order'!BB566)","v":""},{"$f":"IF('1. Order'!BD566=\"\",\"\",'1. Order'!BD566)","v":""},{"$f":"IF('1. Order'!BE566=\"\",\"\",'1. Order'!BE566)","v":""},{"$f":"IF('1. Order'!BF566=\"\",\"\",'1. Order'!BF566)","v":""},{"$f":"IF('1. Order'!BG566=\"\",\"\",'1. Order'!BG566)","v":""},{"$f":"IF('1. Order'!BH566=\"\",\"\",'1. Order'!BH566)","v":"ZWO"}]
[{"$f":"IF('1. Order'!F567=\"\",\"\",'1. Order'!F567)","v":{"$error":"#N/A"}},{"$f":"IF('1. Order'!G567=\"\",\"\",'1. Order'!G567)","v":""},{"$f":"IF('1. Order'!H567=\"\",\"\",'1. Order'!H567)","v":""},{"$f":"IF('1. Order'!I567=\"\",\"\",'1. Order'!I567)","v":""},{"$f":"IF('1. Order'!J567=\"\",\"\",'1. Order'!J567)","v":""},{"$f":"IF('1. Order'!K567=\"\",\"\",'1. Order'!K567)","v":""},{"$f":"IF('1. Order'!L567=\"\",\"\",'1. Order'!L567)","v":""},{"$f":"IF('1. Order'!M567=\"\",\"\",'1. Order'!M567)","v":""},{"$f":"IF('1. Order'!N567=\"\",\"\",'1. Order'!N567)","v":""},{"$f":"IF('1. Order'!O567=\"\",\"\",'1. Order'!O567)","v":{"$error":"#N/A"}},{"$f":"IF('1. Order'!P567=\"\",\"\",'1. Order'!P567)","v":{"$error":"#N/A"}},{"$f":"IF('1. Order'!Q567=\"\",\"\",'1. Order'!Q567)","v":""},{"$f":"IF('1. Order'!S567=\"\",\"\",'1. Order'!S567)","v":""},{"$f":"IF('1. Order'!T567=\"\",\"\",'1. Order'!T567)","v":""},{"$f":"IF('1. Order'!W567=\"\",\"\",'1. Order'!W567)","v":""},{"$f":"IF('1. Order'!X567=\"\",\"\",'1. Order'!X567)","v":""},{"$f":"IF('1. Order'!Y567=\"\",\"\",'1. Order'!Y567)","v":"EUR"},{"$f":"IF('1. Order'!Z567=\"\",\"\",'1. Order'!Z567)","v":""},{"$f":"IF('1. Order'!AA567=\"\",\"\",'1. Order'!AA567)","v":""},{"$f":"IF('1. Order'!AB567=\"\",\"\",'1. Order'!AB567)","v":""},null,{"$f":"IF('1. Order'!AT567=\"\",\"\",'1. Order'!AT567)","v":""},{"$f":"IF('1. Order'!AU567=\"\",\"\",'1. Order'!AU567)","v":""},null,null,null,null,null,null,null,{"$f":"IF('1. Order'!AY567=\"\",\"\",'1. Order'!AY567)","v":""},{"$f":"IF('1. Order'!AZ567=\"\",\"\",'1. Order'!AZ567)","v":""},{"$f":"IF('1. Order'!BA567=\"\",\"\",'1. Order'!BA567)","v":""},{"$f":"IF('1. Order'!BB567=\"\",\"\",'1. Order'!BB567)","v":""},{"$f":"IF('1. Order'!BD567=\"\",\"\",'1. Order'!BD567)","v":""},{"$f":"IF('1. Order'!BE567=\"\",\"\",'1. Order'!BE567)","v":""},{"$f":"IF('1. Order'!BF567=\"\",\"\",'1. Order'!BF567)","v":""},{"$f":"IF('1. Order'!BG567=\"\",\"\",'1. Order'!BG567)","v":""},{"$f":"IF('1. Order'!BH567=\"\",\"\",'1. Order'!BH567)","v":"ZWO"}]
[{"$f":"IF('1. Order'!F568=\"\",\"\",'1. Order'!F568)","v":{"$error":"#N/A"}},{"$f":"IF('1. Order'!G568=\"\",\"\",'1. Order'!G568)","v":""},{"$f":"IF('1. Order'!H568=\"\",\"\",'1. Order'!H568)","v":""},{"$f":"IF('1. Order'!I568=\"\",\"\",'1. Order'!I568)","v":""},{"$f":"IF('1. Order'!J568=\"\",\"\",'1. Order'!J568)","v":""},{"$f":"IF('1. Order'!K568=\"\",\"\",'1. Order'!K568)","v":""},{"$f":"IF('1. Order'!L568=\"\",\"\",'1. Order'!L568)","v":""},{"$f":"IF('1. Order'!M568=\"\",\"\",'1. Order'!M568)","v":""},{"$f":"IF('1. Order'!N568=\"\",\"\",'1. Order'!N568)","v":""},{"$f":"IF('1. Order'!O568=\"\",\"\",'1. Order'!O568)","v":{"$error":"#N/A"}},{"$f":"IF('1. Order'!P568=\"\",\"\",'1. Order'!P568)","v":{"$error":"#N/A"}},{"$f":"IF('1. Order'!Q568=\"\",\"\",'1. Order'!Q568)","v":""},{"$f":"IF('1. Order'!S568=\"\",\"\",'1. Order'!S568)","v":""},{"$f":"IF('1. Order'!T568=\"\",\"\",'1. Order'!T568)","v":""},{"$f":"IF('1. Order'!W568=\"\",\"\",'1. Order'!W568)","v":""},{"$f":"IF('1. Order'!X568=\"\",\"\",'1. Order'!X568)","v":""},{"$f":"IF('1. Order'!Y568=\"\",\"\",'1. Order'!Y568)","v":"EUR"},{"$f":"IF('1. Order'!Z568=\"\",\"\",'1. Order'!Z568)","v":""},{"$f":"IF('1. Order'!AA568=\"\",\"\",'1. Order'!AA568)","v":""},{"$f":"IF('1. Order'!AB568=\"\",\"\",'1. Order'!AB568)","v":""},null,{"$f":"IF('1. Order'!AT568=\"\",\"\",'1. Order'!AT568)","v":""},{"$f":"IF('1. Order'!AU568=\"\",\"\",'1. Order'!AU568)","v":""},null,null,null,null,null,null,null,{"$f":"IF('1. Order'!AY568=\"\",\"\",'1. Order'!AY568)","v":""},{"$f":"IF('1. Order'!AZ568=\"\",\"\",'1. Order'!AZ568)","v":""},{"$f":"IF('1. Order'!BA568=\"\",\"\",'1. Order'!BA568)","v":""},{"$f":"IF('1. Order'!BB568=\"\",\"\",'1. Order'!BB568)","v":""},{"$f":"IF('1. Order'!BD568=\"\",\"\",'1. Order'!BD568)","v":""},{"$f":"IF('1. Order'!BE568=\"\",\"\",'1. Order'!BE568)","v":""},{"$f":"IF('1. Order'!BF568=\"\",\"\",'1. Order'!BF568)","v":""},{"$f":"IF('1. Order'!BG568=\"\",\"\",'1. Order'!BG568)","v":""},{"$f":"IF('1. Order'!BH568=\"\",\"\",'1. Order'!BH568)","v":"ZWO"}]
[{"$f":"IF('1. Order'!F569=\"\",\"\",'1. Order'!F569)","v":{"$error":"#N/A"}},{"$f":"IF('1. Order'!G569=\"\",\"\",'1. Order'!G569)","v":""},{"$f":"IF('1. Order'!H569=\"\",\"\",'1. Order'!H569)","v":""},{"$f":"IF('1. Order'!I569=\"\",\"\",'1. Order'!I569)","v":""},{"$f":"IF('1. Order'!J569=\"\",\"\",'1. Order'!J569)","v":""},{"$f":"IF('1. Order'!K569=\"\",\"\",'1. Order'!K569)","v":""},{"$f":"IF('1. Order'!L569=\"\",\"\",'1. Order'!L569)","v":""},{"$f":"IF('1. Order'!M569=\"\",\"\",'1. Order'!M569)","v":""},{"$f":"IF('1. Order'!N569=\"\",\"\",'1. Order'!N569)","v":""},{"$f":"IF('1. Order'!O569=\"\",\"\",'1. Order'!O569)","v":{"$error":"#N/A"}},{"$f":"IF('1. Order'!P569=\"\",\"\",'1. Order'!P569)","v":{"$error":"#N/A"}},{"$f":"IF('1. Order'!Q569=\"\",\"\",'1. Order'!Q569)","v":""},{"$f":"IF('1. Order'!S569=\"\",\"\",'1. Order'!S569)","v":""},{"$f":"IF('1. Order'!T569=\"\",\"\",'1. Order'!T569)","v":""},{"$f":"IF('1. Order'!W569=\"\",\"\",'1. Order'!W569)","v":""},{"$f":"IF('1. Order'!X569=\"\",\"\",'1. Order'!X569)","v":""},{"$f":"IF('1. Order'!Y569=\"\",\"\",'1. Order'!Y569)","v":"EUR"},{"$f":"IF('1. Order'!Z569=\"\",\"\",'1. Order'!Z569)","v":""},{"$f":"IF('1. Order'!AA569=\"\",\"\",'1. Order'!AA569)","v":""},{"$f":"IF('1. Order'!AB569=\"\",\"\",'1. Order'!AB569)","v":""},null,{"$f":"IF('1. Order'!AT569=\"\",\"\",'1. Order'!AT569)","v":""},{"$f":"IF('1. Order'!AU569=\"\",\"\",'1. Order'!AU569)","v":""},null,null,null,null,null,null,null,{"$f":"IF('1. Order'!AY569=\"\",\"\",'1. Order'!AY569)","v":""},{"$f":"IF('1. Order'!AZ569=\"\",\"\",'1. Order'!AZ569)","v":""},{"$f":"IF('1. Order'!BA569=\"\",\"\",'1. Order'!BA569)","v":""},{"$f":"IF('1. Order'!BB569=\"\",\"\",'1. Order'!BB569)","v":""},{"$f":"IF('1. Order'!BD569=\"\",\"\",'1. Order'!BD569)","v":""},{"$f":"IF('1. Order'!BE569=\"\",\"\",'1. Order'!BE569)","v":""},{"$f":"IF('1. Order'!BF569=\"\",\"\",'1. Order'!BF569)","v":""},{"$f":"IF('1. Order'!BG569=\"\",\"\",'1. Order'!BG569)","v":""},{"$f":"IF('1. Order'!BH569=\"\",\"\",'1. Order'!BH569)","v":"ZWO"}]
[{"$f":"IF('1. Order'!F570=\"\",\"\",'1. Order'!F570)","v":{"$error":"#N/A"}},{"$f":"IF('1. Order'!G570=\"\",\"\",'1. Order'!G570)","v":""},{"$f":"IF('1. Order'!H570=\"\",\"\",'1. Order'!H570)","v":""},{"$f":"IF('1. Order'!I570=\"\",\"\",'1. Order'!I570)","v":""},{"$f":"IF('1. Order'!J570=\"\",\"\",'1. Order'!J570)","v":""},{"$f":"IF('1. Order'!K570=\"\",\"\",'1. Order'!K570)","v":""},{"$f":"IF('1. Order'!L570=\"\",\"\",'1. Order'!L570)","v":""},{"$f":"IF('1. Order'!M570=\"\",\"\",'1. Order'!M570)","v":""},{"$f":"IF('1. Order'!N570=\"\",\"\",'1. Order'!N570)","v":""},{"$f":"IF('1. Order'!O570=\"\",\"\",'1. Order'!O570)","v":{"$error":"#N/A"}},{"$f":"IF('1. Order'!P570=\"\",\"\",'1. Order'!P570)","v":{"$error":"#N/A"}},{"$f":"IF('1. Order'!Q570=\"\",\"\",'1. Order'!Q570)","v":""},{"$f":"IF('1. Order'!S570=\"\",\"\",'1. Order'!S570)","v":""},{"$f":"IF('1. Order'!T570=\"\",\"\",'1. Order'!T570)","v":""},{"$f":"IF('1. Order'!W570=\"\",\"\",'1. Order'!W570)","v":""},{"$f":"IF('1. Order'!X570=\"\",\"\",'1. Order'!X570)","v":""},{"$f":"IF('1. Order'!Y570=\"\",\"\",'1. Order'!Y570)","v":"EUR"},{"$f":"IF('1. Order'!Z570=\"\",\"\",'1. Order'!Z570)","v":""},{"$f":"IF('1. Order'!AA570=\"\",\"\",'1. Order'!AA570)","v":""},{"$f":"IF('1. Order'!AB570=\"\",\"\",'1. Order'!AB570)","v":""},null,{"$f":"IF('1. Order'!AT570=\"\",\"\",'1. Order'!AT570)","v":""},{"$f":"IF('1. Order'!AU570=\"\",\"\",'1. Order'!AU570)","v":""},null,null,null,null,null,null,null,{"$f":"IF('1. Order'!AY570=\"\",\"\",'1. Order'!AY570)","v":""},{"$f":"IF('1. Order'!AZ570=\"\",\"\",'1. Order'!AZ570)","v":""},{"$f":"IF('1. Order'!BA570=\"\",\"\",'1. Order'!BA570)","v":""},{"$f":"IF('1. Order'!BB570=\"\",\"\",'1. Order'!BB570)","v":""},{"$f":"IF('1. Order'!BD570=\"\",\"\",'1. Order'!BD570)","v":""},{"$f":"IF('1. Order'!BE570=\"\",\"\",'1. Order'!BE570)","v":""},{"$f":"IF('1. Order'!BF570=\"\",\"\",'1. Order'!BF570)","v":""},{"$f":"IF('1. Order'!BG570=\"\",\"\",'1. Order'!BG570)","v":""},{"$f":"IF('1. Order'!BH570=\"\",\"\",'1. Order'!BH570)","v":"ZWO"}]
[{"$f":"IF('1. Order'!F571=\"\",\"\",'1. Order'!F571)","v":{"$error":"#N/A"}},{"$f":"IF('1. Order'!G571=\"\",\"\",'1. Order'!G571)","v":""},{"$f":"IF('1. Order'!H571=\"\",\"\",'1. Order'!H571)","v":""},{"$f":"IF('1. Order'!I571=\"\",\"\",'1. Order'!I571)","v":""},{"$f":"IF('1. Order'!J571=\"\",\"\",'1. Order'!J571)","v":""},{"$f":"IF('1. Order'!K571=\"\",\"\",'1. Order'!K571)","v":""},{"$f":"IF('1. Order'!L571=\"\",\"\",'1. Order'!L571)","v":""},{"$f":"IF('1. Order'!M571=\"\",\"\",'1. Order'!M571)","v":""},{"$f":"IF('1. Order'!N571=\"\",\"\",'1. Order'!N571)","v":""},{"$f":"IF('1. Order'!O571=\"\",\"\",'1. Order'!O571)","v":{"$error":"#N/A"}},{"$f":"IF('1. Order'!P571=\"\",\"\",'1. Order'!P571)","v":{"$error":"#N/A"}},{"$f":"IF('1. Order'!Q571=\"\",\"\",'1. Order'!Q571)","v":""},{"$f":"IF('1. Order'!S571=\"\",\"\",'1. Order'!S571)","v":""},{"$f":"IF('1. Order'!T571=\"\",\"\",'1. Order'!T571)","v":""},{"$f":"IF('1. Order'!W571=\"\",\"\",'1. Order'!W571)","v":""},{"$f":"IF('1. Order'!X571=\"\",\"\",'1. Order'!X571)","v":""},{"$f":"IF('1. Order'!Y571=\"\",\"\",'1. Order'!Y571)","v":"EUR"},{"$f":"IF('1. Order'!Z571=\"\",\"\",'1. Order'!Z571)","v":""},{"$f":"IF('1. Order'!AA571=\"\",\"\",'1. Order'!AA571)","v":""},{"$f":"IF('1. Order'!AB571=\"\",\"\",'1. Order'!AB571)","v":""},null,{"$f":"IF('1. Order'!AT571=\"\",\"\",'1. Order'!AT571)","v":""},{"$f":"IF('1. Order'!AU571=\"\",\"\",'1. Order'!AU571)","v":""},null,null,null,null,null,null,null,{"$f":"IF('1. Order'!AY571=\"\",\"\",'1. Order'!AY571)","v":""},{"$f":"IF('1. Order'!AZ571=\"\",\"\",'1. Order'!AZ571)","v":""},{"$f":"IF('1. Order'!BA571=\"\",\"\",'1. Order'!BA571)","v":""},{"$f":"IF('1. Order'!BB571=\"\",\"\",'1. Order'!BB571)","v":""},{"$f":"IF('1. Order'!BD571=\"\",\"\",'1. Order'!BD571)","v":""},{"$f":"IF('1. Order'!BE571=\"\",\"\",'1. Order'!BE571)","v":""},{"$f":"IF('1. Order'!BF571=\"\",\"\",'1. Order'!BF571)","v":""},{"$f":"IF('1. Order'!BG571=\"\",\"\",'1. Order'!BG571)","v":""},{"$f":"IF('1. Order'!BH571=\"\",\"\",'1. Order'!BH571)","v":"ZWO"}]
[{"$f":"IF('1. Order'!F572=\"\",\"\",'1. Order'!F572)","v":{"$error":"#N/A"}},{"$f":"IF('1. Order'!G572=\"\",\"\",'1. Order'!G572)","v":""},{"$f":"IF('1. Order'!H572=\"\",\"\",'1. Order'!H572)","v":""},{"$f":"IF('1. Order'!I572=\"\",\"\",'1. Order'!I572)","v":""},{"$f":"IF('1. Order'!J572=\"\",\"\",'1. Order'!J572)","v":""},{"$f":"IF('1. Order'!K572=\"\",\"\",'1. Order'!K572)","v":""},{"$f":"IF('1. Order'!L572=\"\",\"\",'1. Order'!L572)","v":""},{"$f":"IF('1. Order'!M572=\"\",\"\",'1. Order'!M572)","v":""},{"$f":"IF('1. Order'!N572=\"\",\"\",'1. Order'!N572)","v":""},{"$f":"IF('1. Order'!O572=\"\",\"\",'1. Order'!O572)","v":{"$error":"#N/A"}},{"$f":"IF('1. Order'!P572=\"\",\"\",'1. Order'!P572)","v":{"$error":"#N/A"}},{"$f":"IF('1. Order'!Q572=\"\",\"\",'1. Order'!Q572)","v":""},{"$f":"IF('1. Order'!S572=\"\",\"\",'1. Order'!S572)","v":""},{"$f":"IF('1. Order'!T572=\"\",\"\",'1. Order'!T572)","v":""},{"$f":"IF('1. Order'!W572=\"\",\"\",'1. Order'!W572)","v":""},{"$f":"IF('1. Order'!X572=\"\",\"\",'1. Order'!X572)","v":""},{"$f":"IF('1. Order'!Y572=\"\",\"\",'1. Order'!Y572)","v":"EUR"},{"$f":"IF('1. Order'!Z572=\"\",\"\",'1. Order'!Z572)","v":""},{"$f":"IF('1. Order'!AA572=\"\",\"\",'1. Order'!AA572)","v":""},{"$f":"IF('1. Order'!AB572=\"\",\"\",'1. Order'!AB572)","v":""},null,{"$f":"IF('1. Order'!AT572=\"\",\"\",'1. Order'!AT572)","v":""},{"$f":"IF('1. Order'!AU572=\"\",\"\",'1. Order'!AU572)","v":""},null,null,null,null,null,null,null,{"$f":"IF('1. Order'!AY572=\"\",\"\",'1. Order'!AY572)","v":""},{"$f":"IF('1. Order'!AZ572=\"\",\"\",'1. Order'!AZ572)","v":""},{"$f":"IF('1. Order'!BA572=\"\",\"\",'1. Order'!BA572)","v":""},{"$f":"IF('1. Order'!BB572=\"\",\"\",'1. Order'!BB572)","v":""},{"$f":"IF('1. Order'!BD572=\"\",\"\",'1. Order'!BD572)","v":""},{"$f":"IF('1. Order'!BE572=\"\",\"\",'1. Order'!BE572)","v":""},{"$f":"IF('1. Order'!BF572=\"\",\"\",'1. Order'!BF572)","v":""},{"$f":"IF('1. Order'!BG572=\"\",\"\",'1. Order'!BG572)","v":""},{"$f":"IF('1. Order'!BH572=\"\",\"\",'1. Order'!BH572)","v":"ZWO"}]
[{"$f":"IF('1. Order'!F573=\"\",\"\",'1. Order'!F573)","v":{"$error":"#N/A"}},{"$f":"IF('1. Order'!G573=\"\",\"\",'1. Order'!G573)","v":""},{"$f":"IF('1. Order'!H573=\"\",\"\",'1. Order'!H573)","v":""},{"$f":"IF('1. Order'!I573=\"\",\"\",'1. Order'!I573)","v":""},{"$f":"IF('1. Order'!J573=\"\",\"\",'1. Order'!J573)","v":""},{"$f":"IF('1. Order'!K573=\"\",\"\",'1. Order'!K573)","v":""},{"$f":"IF('1. Order'!L573=\"\",\"\",'1. Order'!L573)","v":""},{"$f":"IF('1. Order'!M573=\"\",\"\",'1. Order'!M573)","v":""},{"$f":"IF('1. Order'!N573=\"\",\"\",'1. Order'!N573)","v":""},{"$f":"IF('1. Order'!O573=\"\",\"\",'1. Order'!O573)","v":{"$error":"#N/A"}},{"$f":"IF('1. Order'!P573=\"\",\"\",'1. Order'!P573)","v":{"$error":"#N/A"}},{"$f":"IF('1. Order'!Q573=\"\",\"\",'1. Order'!Q573)","v":""},{"$f":"IF('1. Order'!S573=\"\",\"\",'1. Order'!S573)","v":""},{"$f":"IF('1. Order'!T573=\"\",\"\",'1. Order'!T573)","v":""},{"$f":"IF('1. Order'!W573=\"\",\"\",'1. Order'!W573)","v":""},{"$f":"IF('1. Order'!X573=\"\",\"\",'1. Order'!X573)","v":""},{"$f":"IF('1. Order'!Y573=\"\",\"\",'1. Order'!Y573)","v":"EUR"},{"$f":"IF('1. Order'!Z573=\"\",\"\",'1. Order'!Z573)","v":""},{"$f":"IF('1. Order'!AA573=\"\",\"\",'1. Order'!AA573)","v":""},{"$f":"IF('1. Order'!AB573=\"\",\"\",'1. Order'!AB573)","v":""},null,{"$f":"IF('1. Order'!AT573=\"\",\"\",'1. Order'!AT573)","v":""},{"$f":"IF('1. Order'!AU573=\"\",\"\",'1. Order'!AU573)","v":""},null,null,null,null,null,null,null,{"$f":"IF('1. Order'!AY573=\"\",\"\",'1. Order'!AY573)","v":""},{"$f":"IF('1. Order'!AZ573=\"\",\"\",'1. Order'!AZ573)","v":""},{"$f":"IF('1. Order'!BA573=\"\",\"\",'1. Order'!BA573)","v":""},{"$f":"IF('1. Order'!BB573=\"\",\"\",'1. Order'!BB573)","v":""},{"$f":"IF('1. Order'!BD573=\"\",\"\",'1. Order'!BD573)","v":""},{"$f":"IF('1. Order'!BE573=\"\",\"\",'1. Order'!BE573)","v":""},{"$f":"IF('1. Order'!BF573=\"\",\"\",'1. Order'!BF573)","v":""},{"$f":"IF('1. Order'!BG573=\"\",\"\",'1. Order'!BG573)","v":""},{"$f":"IF('1. Order'!BH573=\"\",\"\",'1. Order'!BH573)","v":"ZWO"}]
[{"$f":"IF('1. Order'!F574=\"\",\"\",'1. Order'!F574)","v":{"$error":"#N/A"}},{"$f":"IF('1. Order'!G574=\"\",\"\",'1. Order'!G574)","v":""},{"$f":"IF('1. Order'!H574=\"\",\"\",'1. Order'!H574)","v":""},{"$f":"IF('1. Order'!I574=\"\",\"\",'1. Order'!I574)","v":""},{"$f":"IF('1. Order'!J574=\"\",\"\",'1. Order'!J574)","v":""},{"$f":"IF('1. Order'!K574=\"\",\"\",'1. Order'!K574)","v":""},{"$f":"IF('1. Order'!L574=\"\",\"\",'1. Order'!L574)","v":""},{"$f":"IF('1. Order'!M574=\"\",\"\",'1. Order'!M574)","v":""},{"$f":"IF('1. Order'!N574=\"\",\"\",'1. Order'!N574)","v":""},{"$f":"IF('1. Order'!O574=\"\",\"\",'1. Order'!O574)","v":{"$error":"#N/A"}},{"$f":"IF('1. Order'!P574=\"\",\"\",'1. Order'!P574)","v":{"$error":"#N/A"}},{"$f":"IF('1. Order'!Q574=\"\",\"\",'1. Order'!Q574)","v":""},{"$f":"IF('1. Order'!S574=\"\",\"\",'1. Order'!S574)","v":""},{"$f":"IF('1. Order'!T574=\"\",\"\",'1. Order'!T574)","v":""},{"$f":"IF('1. Order'!W574=\"\",\"\",'1. Order'!W574)","v":""},{"$f":"IF('1. Order'!X574=\"\",\"\",'1. Order'!X574)","v":""},{"$f":"IF('1. Order'!Y574=\"\",\"\",'1. Order'!Y574)","v":"EUR"},{"$f":"IF('1. Order'!Z574=\"\",\"\",'1. Order'!Z574)","v":""},{"$f":"IF('1. Order'!AA574=\"\",\"\",'1. Order'!AA574)","v":""},{"$f":"IF('1. Order'!AB574=\"\",\"\",'1. Order'!AB574)","v":""},null,{"$f":"IF('1. Order'!AT574=\"\",\"\",'1. Order'!AT574)","v":""},{"$f":"IF('1. Order'!AU574=\"\",\"\",'1. Order'!AU574)","v":""},null,null,null,null,null,null,null,{"$f":"IF('1. Order'!AY574=\"\",\"\",'1. Order'!AY574)","v":""},{"$f":"IF('1. Order'!AZ574=\"\",\"\",'1. Order'!AZ574)","v":""},{"$f":"IF('1. Order'!BA574=\"\",\"\",'1. Order'!BA574)","v":""},{"$f":"IF('1. Order'!BB574=\"\",\"\",'1. Order'!BB574)","v":""},{"$f":"IF('1. Order'!BD574=\"\",\"\",'1. Order'!BD574)","v":""},{"$f":"IF('1. Order'!BE574=\"\",\"\",'1. Order'!BE574)","v":""},{"$f":"IF('1. Order'!BF574=\"\",\"\",'1. Order'!BF574)","v":""},{"$f":"IF('1. Order'!BG574=\"\",\"\",'1. Order'!BG574)","v":""},{"$f":"IF('1. Order'!BH574=\"\",\"\",'1. Order'!BH574)","v":"ZWO"}]
[{"$f":"IF('1. Order'!F575=\"\",\"\",'1. Order'!F575)","v":{"$error":"#N/A"}},{"$f":"IF('1. Order'!G575=\"\",\"\",'1. Order'!G575)","v":""},{"$f":"IF('1. Order'!H575=\"\",\"\",'1. Order'!H575)","v":""},{"$f":"IF('1. Order'!I575=\"\",\"\",'1. Order'!I575)","v":""},{"$f":"IF('1. Order'!J575=\"\",\"\",'1. Order'!J575)","v":""},{"$f":"IF('1. Order'!K575=\"\",\"\",'1. Order'!K575)","v":""},{"$f":"IF('1. Order'!L575=\"\",\"\",'1. Order'!L575)","v":""},{"$f":"IF('1. Order'!M575=\"\",\"\",'1. Order'!M575)","v":""},{"$f":"IF('1. Order'!N575=\"\",\"\",'1. Order'!N575)","v":""},{"$f":"IF('1. Order'!O575=\"\",\"\",'1. Order'!O575)","v":{"$error":"#N/A"}},{"$f":"IF('1. Order'!P575=\"\",\"\",'1. Order'!P575)","v":{"$error":"#N/A"}},{"$f":"IF('1. Order'!Q575=\"\",\"\",'1. Order'!Q575)","v":""},{"$f":"IF('1. Order'!S575=\"\",\"\",'1. Order'!S575)","v":""},{"$f":"IF('1. Order'!T575=\"\",\"\",'1. Order'!T575)","v":""},{"$f":"IF('1. Order'!W575=\"\",\"\",'1. Order'!W575)","v":""},{"$f":"IF('1. Order'!X575=\"\",\"\",'1. Order'!X575)","v":""},{"$f":"IF('1. Order'!Y575=\"\",\"\",'1. Order'!Y575)","v":"EUR"},{"$f":"IF('1. Order'!Z575=\"\",\"\",'1. Order'!Z575)","v":""},{"$f":"IF('1. Order'!AA575=\"\",\"\",'1. Order'!AA575)","v":""},{"$f":"IF('1. Order'!AB575=\"\",\"\",'1. Order'!AB575)","v":""},null,{"$f":"IF('1. Order'!AT575=\"\",\"\",'1. Order'!AT575)","v":""},{"$f":"IF('1. Order'!AU575=\"\",\"\",'1. Order'!AU575)","v":""},null,null,null,null,null,null,null,{"$f":"IF('1. Order'!AY575=\"\",\"\",'1. Order'!AY575)","v":""},{"$f":"IF('1. Order'!AZ575=\"\",\"\",'1. Order'!AZ575)","v":""},{"$f":"IF('1. Order'!BA575=\"\",\"\",'1. Order'!BA575)","v":""},{"$f":"IF('1. Order'!BB575=\"\",\"\",'1. Order'!BB575)","v":""},{"$f":"IF('1. Order'!BD575=\"\",\"\",'1. Order'!BD575)","v":""},{"$f":"IF('1. Order'!BE575=\"\",\"\",'1. Order'!BE575)","v":""},{"$f":"IF('1. Order'!BF575=\"\",\"\",'1. Order'!BF575)","v":""},{"$f":"IF('1. Order'!BG575=\"\",\"\",'1. Order'!BG575)","v":""},{"$f":"IF('1. Order'!BH575=\"\",\"\",'1. Order'!BH575)","v":"ZWO"}]
[{"$f":"IF('1. Order'!F576=\"\",\"\",'1. Order'!F576)","v":{"$error":"#N/A"}},{"$f":"IF('1. Order'!G576=\"\",\"\",'1. Order'!G576)","v":""},{"$f":"IF('1. Order'!H576=\"\",\"\",'1. Order'!H576)","v":""},{"$f":"IF('1. Order'!I576=\"\",\"\",'1. Order'!I576)","v":""},{"$f":"IF('1. Order'!J576=\"\",\"\",'1. Order'!J576)","v":""},{"$f":"IF('1. Order'!K576=\"\",\"\",'1. Order'!K576)","v":""},{"$f":"IF('1. Order'!L576=\"\",\"\",'1. Order'!L576)","v":""},{"$f":"IF('1. Order'!M576=\"\",\"\",'1. Order'!M576)","v":""},{"$f":"IF('1. Order'!N576=\"\",\"\",'1. Order'!N576)","v":""},{"$f":"IF('1. Order'!O576=\"\",\"\",'1. Order'!O576)","v":{"$error":"#N/A"}},{"$f":"IF('1. Order'!P576=\"\",\"\",'1. Order'!P576)","v":{"$error":"#N/A"}},{"$f":"IF('1. Order'!Q576=\"\",\"\",'1. Order'!Q576)","v":""},{"$f":"IF('1. Order'!S576=\"\",\"\",'1. Order'!S576)","v":""},{"$f":"IF('1. Order'!T576=\"\",\"\",'1. Order'!T576)","v":""},{"$f":"IF('1. Order'!W576=\"\",\"\",'1. Order'!W576)","v":""},{"$f":"IF('1. Order'!X576=\"\",\"\",'1. Order'!X576)","v":""},{"$f":"IF('1. Order'!Y576=\"\",\"\",'1. Order'!Y576)","v":"EUR"},{"$f":"IF('1. Order'!Z576=\"\",\"\",'1. Order'!Z576)","v":""},{"$f":"IF('1. Order'!AA576=\"\",\"\",'1. Order'!AA576)","v":""},{"$f":"IF('1. Order'!AB576=\"\",\"\",'1. Order'!AB576)","v":""},null,{"$f":"IF('1. Order'!AT576=\"\",\"\",'1. Order'!AT576)","v":""},{"$f":"IF('1. Order'!AU576=\"\",\"\",'1. Order'!AU576)","v":""},null,null,null,null,null,null,null,{"$f":"IF('1. Order'!AY576=\"\",\"\",'1. Order'!AY576)","v":""},{"$f":"IF('1. Order'!AZ576=\"\",\"\",'1. Order'!AZ576)","v":""},{"$f":"IF('1. Order'!BA576=\"\",\"\",'1. Order'!BA576)","v":""},{"$f":"IF('1. Order'!BB576=\"\",\"\",'1. Order'!BB576)","v":""},{"$f":"IF('1. Order'!BD576=\"\",\"\",'1. Order'!BD576)","v":""},{"$f":"IF('1. Order'!BE576=\"\",\"\",'1. Order'!BE576)","v":""},{"$f":"IF('1. Order'!BF576=\"\",\"\",'1. Order'!BF576)","v":""},{"$f":"IF('1. Order'!BG576=\"\",\"\",'1. Order'!BG576)","v":""},{"$f":"IF('1. Order'!BH576=\"\",\"\",'1. Order'!BH576)","v":"ZWO"}]
[{"$f":"IF('1. Order'!F577=\"\",\"\",'1. Order'!F577)","v":{"$error":"#N/A"}},{"$f":"IF('1. Order'!G577=\"\",\"\",'1. Order'!G577)","v":""},{"$f":"IF('1. Order'!H577=\"\",\"\",'1. Order'!H577)","v":""},{"$f":"IF('1. Order'!I577=\"\",\"\",'1. Order'!I577)","v":""},{"$f":"IF('1. Order'!J577=\"\",\"\",'1. Order'!J577)","v":""},{"$f":"IF('1. Order'!K577=\"\",\"\",'1. Order'!K577)","v":""},{"$f":"IF('1. Order'!L577=\"\",\"\",'1. Order'!L577)","v":""},{"$f":"IF('1. Order'!M577=\"\",\"\",'1. Order'!M577)","v":""},{"$f":"IF('1. Order'!N577=\"\",\"\",'1. Order'!N577)","v":""},{"$f":"IF('1. Order'!O577=\"\",\"\",'1. Order'!O577)","v":{"$error":"#N/A"}},{"$f":"IF('1. Order'!P577=\"\",\"\",'1. Order'!P577)","v":{"$error":"#N/A"}},{"$f":"IF('1. Order'!Q577=\"\",\"\",'1. Order'!Q577)","v":""},{"$f":"IF('1. Order'!S577=\"\",\"\",'1. Order'!S577)","v":""},{"$f":"IF('1. Order'!T577=\"\",\"\",'1. Order'!T577)","v":""},{"$f":"IF('1. Order'!W577=\"\",\"\",'1. Order'!W577)","v":""},{"$f":"IF('1. Order'!X577=\"\",\"\",'1. Order'!X577)","v":""},{"$f":"IF('1. Order'!Y577=\"\",\"\",'1. Order'!Y577)","v":"EUR"},{"$f":"IF('1. Order'!Z577=\"\",\"\",'1. Order'!Z577)","v":""},{"$f":"IF('1. Order'!AA577=\"\",\"\",'1. Order'!AA577)","v":""},{"$f":"IF('1. Order'!AB577=\"\",\"\",'1. Order'!AB577)","v":""},null,{"$f":"IF('1. Order'!AT577=\"\",\"\",'1. Order'!AT577)","v":""},{"$f":"IF('1. Order'!AU577=\"\",\"\",'1. Order'!AU577)","v":""},null,null,null,null,null,null,null,{"$f":"IF('1. Order'!AY577=\"\",\"\",'1. Order'!AY577)","v":""},{"$f":"IF('1. Order'!AZ577=\"\",\"\",'1. Order'!AZ577)","v":""},{"$f":"IF('1. Order'!BA577=\"\",\"\",'1. Order'!BA577)","v":""},{"$f":"IF('1. Order'!BB577=\"\",\"\",'1. Order'!BB577)","v":""},{"$f":"IF('1. Order'!BD577=\"\",\"\",'1. Order'!BD577)","v":""},{"$f":"IF('1. Order'!BE577=\"\",\"\",'1. Order'!BE577)","v":""},{"$f":"IF('1. Order'!BF577=\"\",\"\",'1. Order'!BF577)","v":""},{"$f":"IF('1. Order'!BG577=\"\",\"\",'1. Order'!BG577)","v":""},{"$f":"IF('1. Order'!BH577=\"\",\"\",'1. Order'!BH577)","v":"ZWO"}]
[{"$f":"IF('1. Order'!F578=\"\",\"\",'1. Order'!F578)","v":{"$error":"#N/A"}},{"$f":"IF('1. Order'!G578=\"\",\"\",'1. Order'!G578)","v":""},{"$f":"IF('1. Order'!H578=\"\",\"\",'1. Order'!H578)","v":""},{"$f":"IF('1. Order'!I578=\"\",\"\",'1. Order'!I578)","v":""},{"$f":"IF('1. Order'!J578=\"\",\"\",'1. Order'!J578)","v":""},{"$f":"IF('1. Order'!K578=\"\",\"\",'1. Order'!K578)","v":""},{"$f":"IF('1. Order'!L578=\"\",\"\",'1. Order'!L578)","v":""},{"$f":"IF('1. Order'!M578=\"\",\"\",'1. Order'!M578)","v":""},{"$f":"IF('1. Order'!N578=\"\",\"\",'1. Order'!N578)","v":""},{"$f":"IF('1. Order'!O578=\"\",\"\",'1. Order'!O578)","v":{"$error":"#N/A"}},{"$f":"IF('1. Order'!P578=\"\",\"\",'1. Order'!P578)","v":{"$error":"#N/A"}},{"$f":"IF('1. Order'!Q578=\"\",\"\",'1. Order'!Q578)","v":""},{"$f":"IF('1. Order'!S578=\"\",\"\",'1. Order'!S578)","v":""},{"$f":"IF('1. Order'!T578=\"\",\"\",'1. Order'!T578)","v":""},{"$f":"IF('1. Order'!W578=\"\",\"\",'1. Order'!W578)","v":""},{"$f":"IF('1. Order'!X578=\"\",\"\",'1. Order'!X578)","v":""},{"$f":"IF('1. Order'!Y578=\"\",\"\",'1. Order'!Y578)","v":"EUR"},{"$f":"IF('1. Order'!Z578=\"\",\"\",'1. Order'!Z578)","v":""},{"$f":"IF('1. Order'!AA578=\"\",\"\",'1. Order'!AA578)","v":""},{"$f":"IF('1. Order'!AB578=\"\",\"\",'1. Order'!AB578)","v":""},null,{"$f":"IF('1. Order'!AT578=\"\",\"\",'1. Order'!AT578)","v":""},{"$f":"IF('1. Order'!AU578=\"\",\"\",'1. Order'!AU578)","v":""},null,null,null,null,null,null,null,{"$f":"IF('1. Order'!AY578=\"\",\"\",'1. Order'!AY578)","v":""},{"$f":"IF('1. Order'!AZ578=\"\",\"\",'1. Order'!AZ578)","v":""},{"$f":"IF('1. Order'!BA578=\"\",\"\",'1. Order'!BA578)","v":""},{"$f":"IF('1. Order'!BB578=\"\",\"\",'1. Order'!BB578)","v":""},{"$f":"IF('1. Order'!BD578=\"\",\"\",'1. Order'!BD578)","v":""},{"$f":"IF('1. Order'!BE578=\"\",\"\",'1. Order'!BE578)","v":""},{"$f":"IF('1. Order'!BF578=\"\",\"\",'1. Order'!BF578)","v":""},{"$f":"IF('1. Order'!BG578=\"\",\"\",'1. Order'!BG578)","v":""},{"$f":"IF('1. Order'!BH578=\"\",\"\",'1. Order'!BH578)","v":"ZWO"}]
[{"$f":"IF('1. Order'!F579=\"\",\"\",'1. Order'!F579)","v":{"$error":"#N/A"}},{"$f":"IF('1. Order'!G579=\"\",\"\",'1. Order'!G579)","v":""},{"$f":"IF('1. Order'!H579=\"\",\"\",'1. Order'!H579)","v":""},{"$f":"IF('1. Order'!I579=\"\",\"\",'1. Order'!I579)","v":""},{"$f":"IF('1. Order'!J579=\"\",\"\",'1. Order'!J579)","v":""},{"$f":"IF('1. Order'!K579=\"\",\"\",'1. Order'!K579)","v":""},{"$f":"IF('1. Order'!L579=\"\",\"\",'1. Order'!L579)","v":""},{"$f":"IF('1. Order'!M579=\"\",\"\",'1. Order'!M579)","v":""},{"$f":"IF('1. Order'!N579=\"\",\"\",'1. Order'!N579)","v":""},{"$f":"IF('1. Order'!O579=\"\",\"\",'1. Order'!O579)","v":{"$error":"#N/A"}},{"$f":"IF('1. Order'!P579=\"\",\"\",'1. Order'!P579)","v":{"$error":"#N/A"}},{"$f":"IF('1. Order'!Q579=\"\",\"\",'1. Order'!Q579)","v":""},{"$f":"IF('1. Order'!S579=\"\",\"\",'1. Order'!S579)","v":""},{"$f":"IF('1. Order'!T579=\"\",\"\",'1. Order'!T579)","v":""},{"$f":"IF('1. Order'!W579=\"\",\"\",'1. Order'!W579)","v":""},{"$f":"IF('1. Order'!X579=\"\",\"\",'1. Order'!X579)","v":""},{"$f":"IF('1. Order'!Y579=\"\",\"\",'1. Order'!Y579)","v":"EUR"},{"$f":"IF('1. Order'!Z579=\"\",\"\",'1. Order'!Z579)","v":""},{"$f":"IF('1. Order'!AA579=\"\",\"\",'1. Order'!AA579)","v":""},{"$f":"IF('1. Order'!AB579=\"\",\"\",'1. Order'!AB579)","v":""},null,{"$f":"IF('1. Order'!AT579=\"\",\"\",'1. Order'!AT579)","v":""},{"$f":"IF('1. Order'!AU579=\"\",\"\",'1. Order'!AU579)","v":""},null,null,null,null,null,null,null,{"$f":"IF('1. Order'!AY579=\"\",\"\",'1. Order'!AY579)","v":""},{"$f":"IF('1. Order'!AZ579=\"\",\"\",'1. Order'!AZ579)","v":""},{"$f":"IF('1. Order'!BA579=\"\",\"\",'1. Order'!BA579)","v":""},{"$f":"IF('1. Order'!BB579=\"\",\"\",'1. Order'!BB579)","v":""},{"$f":"IF('1. Order'!BD579=\"\",\"\",'1. Order'!BD579)","v":""},{"$f":"IF('1. Order'!BE579=\"\",\"\",'1. Order'!BE579)","v":""},{"$f":"IF('1. Order'!BF579=\"\",\"\",'1. Order'!BF579)","v":""},{"$f":"IF('1. Order'!BG579=\"\",\"\",'1. Order'!BG579)","v":""},{"$f":"IF('1. Order'!BH579=\"\",\"\",'1. Order'!BH579)","v":"ZWO"}]
[{"$f":"IF('1. Order'!F580=\"\",\"\",'1. Order'!F580)","v":{"$error":"#N/A"}},{"$f":"IF('1. Order'!G580=\"\",\"\",'1. Order'!G580)","v":""},{"$f":"IF('1. Order'!H580=\"\",\"\",'1. Order'!H580)","v":""},{"$f":"IF('1. Order'!I580=\"\",\"\",'1. Order'!I580)","v":""},{"$f":"IF('1. Order'!J580=\"\",\"\",'1. Order'!J580)","v":""},{"$f":"IF('1. Order'!K580=\"\",\"\",'1. Order'!K580)","v":""},{"$f":"IF('1. Order'!L580=\"\",\"\",'1. Order'!L580)","v":""},{"$f":"IF('1. Order'!M580=\"\",\"\",'1. Order'!M580)","v":""},{"$f":"IF('1. Order'!N580=\"\",\"\",'1. Order'!N580)","v":""},{"$f":"IF('1. Order'!O580=\"\",\"\",'1. Order'!O580)","v":{"$error":"#N/A"}},{"$f":"IF('1. Order'!P580=\"\",\"\",'1. Order'!P580)","v":{"$error":"#N/A"}},{"$f":"IF('1. Order'!Q580=\"\",\"\",'1. Order'!Q580)","v":""},{"$f":"IF('1. Order'!S580=\"\",\"\",'1. Order'!S580)","v":""},{"$f":"IF('1. Order'!T580=\"\",\"\",'1. Order'!T580)","v":""},{"$f":"IF('1. Order'!W580=\"\",\"\",'1. Order'!W580)","v":""},{"$f":"IF('1. Order'!X580=\"\",\"\",'1. Order'!X580)","v":""},{"$f":"IF('1. Order'!Y580=\"\",\"\",'1. Order'!Y580)","v":"EUR"},{"$f":"IF('1. Order'!Z580=\"\",\"\",'1. Order'!Z580)","v":""},{"$f":"IF('1. Order'!AA580=\"\",\"\",'1. Order'!AA580)","v":""},{"$f":"IF('1. Order'!AB580=\"\",\"\",'1. Order'!AB580)","v":""},null,{"$f":"IF('1. Order'!AT580=\"\",\"\",'1. Order'!AT580)","v":""},{"$f":"IF('1. Order'!AU580=\"\",\"\",'1. Order'!AU580)","v":""},null,null,null,null,null,null,null,{"$f":"IF('1. Order'!AY580=\"\",\"\",'1. Order'!AY580)","v":""},{"$f":"IF('1. Order'!AZ580=\"\",\"\",'1. Order'!AZ580)","v":""},{"$f":"IF('1. Order'!BA580=\"\",\"\",'1. Order'!BA580)","v":""},{"$f":"IF('1. Order'!BB580=\"\",\"\",'1. Order'!BB580)","v":""},{"$f":"IF('1. Order'!BD580=\"\",\"\",'1. Order'!BD580)","v":""},{"$f":"IF('1. Order'!BE580=\"\",\"\",'1. Order'!BE580)","v":""},{"$f":"IF('1. Order'!BF580=\"\",\"\",'1. Order'!BF580)","v":""},{"$f":"IF('1. Order'!BG580=\"\",\"\",'1. Order'!BG580)","v":""},{"$f":"IF('1. Order'!BH580=\"\",\"\",'1. Order'!BH580)","v":"ZWO"}]
[{"$f":"IF('1. Order'!F581=\"\",\"\",'1. Order'!F581)","v":{"$error":"#N/A"}},{"$f":"IF('1. Order'!G581=\"\",\"\",'1. Order'!G581)","v":""},{"$f":"IF('1. Order'!H581=\"\",\"\",'1. Order'!H581)","v":""},{"$f":"IF('1. Order'!I581=\"\",\"\",'1. Order'!I581)","v":""},{"$f":"IF('1. Order'!J581=\"\",\"\",'1. Order'!J581)","v":""},{"$f":"IF('1. Order'!K581=\"\",\"\",'1. Order'!K581)","v":""},{"$f":"IF('1. Order'!L581=\"\",\"\",'1. Order'!L581)","v":""},{"$f":"IF('1. Order'!M581=\"\",\"\",'1. Order'!M581)","v":""},{"$f":"IF('1. Order'!N581=\"\",\"\",'1. Order'!N581)","v":""},{"$f":"IF('1. Order'!O581=\"\",\"\",'1. Order'!O581)","v":{"$error":"#N/A"}},{"$f":"IF('1. Order'!P581=\"\",\"\",'1. Order'!P581)","v":{"$error":"#N/A"}},{"$f":"IF('1. Order'!Q581=\"\",\"\",'1. Order'!Q581)","v":""},{"$f":"IF('1. Order'!S581=\"\",\"\",'1. Order'!S581)","v":""},{"$f":"IF('1. Order'!T581=\"\",\"\",'1. Order'!T581)","v":""},{"$f":"IF('1. Order'!W581=\"\",\"\",'1. Order'!W581)","v":""},{"$f":"IF('1. Order'!X581=\"\",\"\",'1. Order'!X581)","v":""},{"$f":"IF('1. Order'!Y581=\"\",\"\",'1. Order'!Y581)","v":"EUR"},{"$f":"IF('1. Order'!Z581=\"\",\"\",'1. Order'!Z581)","v":""},{"$f":"IF('1. Order'!AA581=\"\",\"\",'1. Order'!AA581)","v":""},{"$f":"IF('1. Order'!AB581=\"\",\"\",'1. Order'!AB581)","v":""},null,{"$f":"IF('1. Order'!AT581=\"\",\"\",'1. Order'!AT581)","v":""},{"$f":"IF('1. Order'!AU581=\"\",\"\",'1. Order'!AU581)","v":""},null,null,null,null,null,null,null,{"$f":"IF('1. Order'!AY581=\"\",\"\",'1. Order'!AY581)","v":""},{"$f":"IF('1. Order'!AZ581=\"\",\"\",'1. Order'!AZ581)","v":""},{"$f":"IF('1. Order'!BA581=\"\",\"\",'1. Order'!BA581)","v":""},{"$f":"IF('1. Order'!BB581=\"\",\"\",'1. Order'!BB581)","v":""},{"$f":"IF('1. Order'!BD581=\"\",\"\",'1. Order'!BD581)","v":""},{"$f":"IF('1. Order'!BE581=\"\",\"\",'1. Order'!BE581)","v":""},{"$f":"IF('1. Order'!BF581=\"\",\"\",'1. Order'!BF581)","v":""},{"$f":"IF('1. Order'!BG581=\"\",\"\",'1. Order'!BG581)","v":""},{"$f":"IF('1. Order'!BH581=\"\",\"\",'1. Order'!BH581)","v":"ZWO"}]
[{"$f":"IF('1. Order'!F582=\"\",\"\",'1. Order'!F582)","v":{"$error":"#N/A"}},{"$f":"IF('1. Order'!G582=\"\",\"\",'1. Order'!G582)","v":""},{"$f":"IF('1. Order'!H582=\"\",\"\",'1. Order'!H582)","v":""},{"$f":"IF('1. Order'!I582=\"\",\"\",'1. Order'!I582)","v":""},{"$f":"IF('1. Order'!J582=\"\",\"\",'1. Order'!J582)","v":""},{"$f":"IF('1. Order'!K582=\"\",\"\",'1. Order'!K582)","v":""},{"$f":"IF('1. Order'!L582=\"\",\"\",'1. Order'!L582)","v":""},{"$f":"IF('1. Order'!M582=\"\",\"\",'1. Order'!M582)","v":""},{"$f":"IF('1. Order'!N582=\"\",\"\",'1. Order'!N582)","v":""},{"$f":"IF('1. Order'!O582=\"\",\"\",'1. Order'!O582)","v":{"$error":"#N/A"}},{"$f":"IF('1. Order'!P582=\"\",\"\",'1. Order'!P582)","v":{"$error":"#N/A"}},{"$f":"IF('1. Order'!Q582=\"\",\"\",'1. Order'!Q582)","v":""},{"$f":"IF('1. Order'!S582=\"\",\"\",'1. Order'!S582)","v":""},{"$f":"IF('1. Order'!T582=\"\",\"\",'1. Order'!T582)","v":""},{"$f":"IF('1. Order'!W582=\"\",\"\",'1. Order'!W582)","v":""},{"$f":"IF('1. Order'!X582=\"\",\"\",'1. Order'!X582)","v":""},{"$f":"IF('1. Order'!Y582=\"\",\"\",'1. Order'!Y582)","v":"EUR"},{"$f":"IF('1. Order'!Z582=\"\",\"\",'1. Order'!Z582)","v":""},{"$f":"IF('1. Order'!AA582=\"\",\"\",'1. Order'!AA582)","v":""},{"$f":"IF('1. Order'!AB582=\"\",\"\",'1. Order'!AB582)","v":""},null,{"$f":"IF('1. Order'!AT582=\"\",\"\",'1. Order'!AT582)","v":""},{"$f":"IF('1. Order'!AU582=\"\",\"\",'1. Order'!AU582)","v":""},null,null,null,null,null,null,null,{"$f":"IF('1. Order'!AY582=\"\",\"\",'1. Order'!AY582)","v":""},{"$f":"IF('1. Order'!AZ582=\"\",\"\",'1. Order'!AZ582)","v":""},{"$f":"IF('1. Order'!BA582=\"\",\"\",'1. Order'!BA582)","v":""},{"$f":"IF('1. Order'!BB582=\"\",\"\",'1. Order'!BB582)","v":""},{"$f":"IF('1. Order'!BD582=\"\",\"\",'1. Order'!BD582)","v":""},{"$f":"IF('1. Order'!BE582=\"\",\"\",'1. Order'!BE582)","v":""},{"$f":"IF('1. Order'!BF582=\"\",\"\",'1. Order'!BF582)","v":""},{"$f":"IF('1. Order'!BG582=\"\",\"\",'1. Order'!BG582)","v":""},{"$f":"IF('1. Order'!BH582=\"\",\"\",'1. Order'!BH582)","v":"ZWO"}]
[{"$f":"IF('1. Order'!F583=\"\",\"\",'1. Order'!F583)","v":{"$error":"#N/A"}},{"$f":"IF('1. Order'!G583=\"\",\"\",'1. Order'!G583)","v":""},{"$f":"IF('1. Order'!H583=\"\",\"\",'1. Order'!H583)","v":""},{"$f":"IF('1. Order'!I583=\"\",\"\",'1. Order'!I583)","v":""},{"$f":"IF('1. Order'!J583=\"\",\"\",'1. Order'!J583)","v":""},{"$f":"IF('1. Order'!K583=\"\",\"\",'1. Order'!K583)","v":""},{"$f":"IF('1. Order'!L583=\"\",\"\",'1. Order'!L583)","v":""},{"$f":"IF('1. Order'!M583=\"\",\"\",'1. Order'!M583)","v":""},{"$f":"IF('1. Order'!N583=\"\",\"\",'1. Order'!N583)","v":""},{"$f":"IF('1. Order'!O583=\"\",\"\",'1. Order'!O583)","v":{"$error":"#N/A"}},{"$f":"IF('1. Order'!P583=\"\",\"\",'1. Order'!P583)","v":{"$error":"#N/A"}},{"$f":"IF('1. Order'!Q583=\"\",\"\",'1. Order'!Q583)","v":""},{"$f":"IF('1. Order'!S583=\"\",\"\",'1. Order'!S583)","v":""},{"$f":"IF('1. Order'!T583=\"\",\"\",'1. Order'!T583)","v":""},{"$f":"IF('1. Order'!W583=\"\",\"\",'1. Order'!W583)","v":""},{"$f":"IF('1. Order'!X583=\"\",\"\",'1. Order'!X583)","v":""},{"$f":"IF('1. Order'!Y583=\"\",\"\",'1. Order'!Y583)","v":"EUR"},{"$f":"IF('1. Order'!Z583=\"\",\"\",'1. Order'!Z583)","v":""},{"$f":"IF('1. Order'!AA583=\"\",\"\",'1. Order'!AA583)","v":""},{"$f":"IF('1. Order'!AB583=\"\",\"\",'1. Order'!AB583)","v":""},null,{"$f":"IF('1. Order'!AT583=\"\",\"\",'1. Order'!AT583)","v":""},{"$f":"IF('1. Order'!AU583=\"\",\"\",'1. Order'!AU583)","v":""},null,null,null,null,null,null,null,{"$f":"IF('1. Order'!AY583=\"\",\"\",'1. Order'!AY583)","v":""},{"$f":"IF('1. Order'!AZ583=\"\",\"\",'1. Order'!AZ583)","v":""},{"$f":"IF('1. Order'!BA583=\"\",\"\",'1. Order'!BA583)","v":""},{"$f":"IF('1. Order'!BB583=\"\",\"\",'1. Order'!BB583)","v":""},{"$f":"IF('1. Order'!BD583=\"\",\"\",'1. Order'!BD583)","v":""},{"$f":"IF('1. Order'!BE583=\"\",\"\",'1. Order'!BE583)","v":""},{"$f":"IF('1. Order'!BF583=\"\",\"\",'1. Order'!BF583)","v":""},{"$f":"IF('1. Order'!BG583=\"\",\"\",'1. Order'!BG583)","v":""},{"$f":"IF('1. Order'!BH583=\"\",\"\",'1. Order'!BH583)","v":"ZWO"}]
[{"$f":"IF('1. Order'!F584=\"\",\"\",'1. Order'!F584)","v":{"$error":"#N/A"}},{"$f":"IF('1. Order'!G584=\"\",\"\",'1. Order'!G584)","v":""},{"$f":"IF('1. Order'!H584=\"\",\"\",'1. Order'!H584)","v":""},{"$f":"IF('1. Order'!I584=\"\",\"\",'1. Order'!I584)","v":""},{"$f":"IF('1. Order'!J584=\"\",\"\",'1. Order'!J584)","v":""},{"$f":"IF('1. Order'!K584=\"\",\"\",'1. Order'!K584)","v":""},{"$f":"IF('1. Order'!L584=\"\",\"\",'1. Order'!L584)","v":""},{"$f":"IF('1. Order'!M584=\"\",\"\",'1. Order'!M584)","v":""},{"$f":"IF('1. Order'!N584=\"\",\"\",'1. Order'!N584)","v":""},{"$f":"IF('1. Order'!O584=\"\",\"\",'1. Order'!O584)","v":{"$error":"#N/A"}},{"$f":"IF('1. Order'!P584=\"\",\"\",'1. Order'!P584)","v":{"$error":"#N/A"}},{"$f":"IF('1. Order'!Q584=\"\",\"\",'1. Order'!Q584)","v":""},{"$f":"IF('1. Order'!S584=\"\",\"\",'1. Order'!S584)","v":""},{"$f":"IF('1. Order'!T584=\"\",\"\",'1. Order'!T584)","v":""},{"$f":"IF('1. Order'!W584=\"\",\"\",'1. Order'!W584)","v":""},{"$f":"IF('1. Order'!X584=\"\",\"\",'1. Order'!X584)","v":""},{"$f":"IF('1. Order'!Y584=\"\",\"\",'1. Order'!Y584)","v":"EUR"},{"$f":"IF('1. Order'!Z584=\"\",\"\",'1. Order'!Z584)","v":""},{"$f":"IF('1. Order'!AA584=\"\",\"\",'1. Order'!AA584)","v":""},{"$f":"IF('1. Order'!AB584=\"\",\"\",'1. Order'!AB584)","v":""},null,{"$f":"IF('1. Order'!AT584=\"\",\"\",'1. Order'!AT584)","v":""},{"$f":"IF('1. Order'!AU584=\"\",\"\",'1. Order'!AU584)","v":""},null,null,null,null,null,null,null,{"$f":"IF('1. Order'!AY584=\"\",\"\",'1. Order'!AY584)","v":""},{"$f":"IF('1. Order'!AZ584=\"\",\"\",'1. Order'!AZ584)","v":""},{"$f":"IF('1. Order'!BA584=\"\",\"\",'1. Order'!BA584)","v":""},{"$f":"IF('1. Order'!BB584=\"\",\"\",'1. Order'!BB584)","v":""},{"$f":"IF('1. Order'!BD584=\"\",\"\",'1. Order'!BD584)","v":""},{"$f":"IF('1. Order'!BE584=\"\",\"\",'1. Order'!BE584)","v":""},{"$f":"IF('1. Order'!BF584=\"\",\"\",'1. Order'!BF584)","v":""},{"$f":"IF('1. Order'!BG584=\"\",\"\",'1. Order'!BG584)","v":""},{"$f":"IF('1. Order'!BH584=\"\",\"\",'1. Order'!BH584)","v":"ZWO"}]
[{"$f":"IF('1. Order'!F585=\"\",\"\",'1. Order'!F585)","v":{"$error":"#N/A"}},{"$f":"IF('1. Order'!G585=\"\",\"\",'1. Order'!G585)","v":""},{"$f":"IF('1. Order'!H585=\"\",\"\",'1. Order'!H585)","v":""},{"$f":"IF('1. Order'!I585=\"\",\"\",'1. Order'!I585)","v":""},{"$f":"IF('1. Order'!J585=\"\",\"\",'1. Order'!J585)","v":""},{"$f":"IF('1. Order'!K585=\"\",\"\",'1. Order'!K585)","v":""},{"$f":"IF('1. Order'!L585=\"\",\"\",'1. Order'!L585)","v":""},{"$f":"IF('1. Order'!M585=\"\",\"\",'1. Order'!M585)","v":""},{"$f":"IF('1. Order'!N585=\"\",\"\",'1. Order'!N585)","v":""},{"$f":"IF('1. Order'!O585=\"\",\"\",'1. Order'!O585)","v":{"$error":"#N/A"}},{"$f":"IF('1. Order'!P585=\"\",\"\",'1. Order'!P585)","v":{"$error":"#N/A"}},{"$f":"IF('1. Order'!Q585=\"\",\"\",'1. Order'!Q585)","v":""},{"$f":"IF('1. Order'!S585=\"\",\"\",'1. Order'!S585)","v":""},{"$f":"IF('1. Order'!T585=\"\",\"\",'1. Order'!T585)","v":""},{"$f":"IF('1. Order'!W585=\"\",\"\",'1. Order'!W585)","v":""},{"$f":"IF('1. Order'!X585=\"\",\"\",'1. Order'!X585)","v":""},{"$f":"IF('1. Order'!Y585=\"\",\"\",'1. Order'!Y585)","v":"EUR"},{"$f":"IF('1. Order'!Z585=\"\",\"\",'1. Order'!Z585)","v":""},{"$f":"IF('1. Order'!AA585=\"\",\"\",'1. Order'!AA585)","v":""},{"$f":"IF('1. Order'!AB585=\"\",\"\",'1. Order'!AB585)","v":""},null,{"$f":"IF('1. Order'!AT585=\"\",\"\",'1. Order'!AT585)","v":""},{"$f":"IF('1. Order'!AU585=\"\",\"\",'1. Order'!AU585)","v":""},null,null,null,null,null,null,null,{"$f":"IF('1. Order'!AY585=\"\",\"\",'1. Order'!AY585)","v":""},{"$f":"IF('1. Order'!AZ585=\"\",\"\",'1. Order'!AZ585)","v":""},{"$f":"IF('1. Order'!BA585=\"\",\"\",'1. Order'!BA585)","v":""},{"$f":"IF('1. Order'!BB585=\"\",\"\",'1. Order'!BB585)","v":""},{"$f":"IF('1. Order'!BD585=\"\",\"\",'1. Order'!BD585)","v":""},{"$f":"IF('1. Order'!BE585=\"\",\"\",'1. Order'!BE585)","v":""},{"$f":"IF('1. Order'!BF585=\"\",\"\",'1. Order'!BF585)","v":""},{"$f":"IF('1. Order'!BG585=\"\",\"\",'1. Order'!BG585)","v":""},{"$f":"IF('1. Order'!BH585=\"\",\"\",'1. Order'!BH585)","v":"ZWO"}]
[{"$f":"IF('1. Order'!F586=\"\",\"\",'1. Order'!F586)","v":{"$error":"#N/A"}},{"$f":"IF('1. Order'!G586=\"\",\"\",'1. Order'!G586)","v":""},{"$f":"IF('1. Order'!H586=\"\",\"\",'1. Order'!H586)","v":""},{"$f":"IF('1. Order'!I586=\"\",\"\",'1. Order'!I586)","v":""},{"$f":"IF('1. Order'!J586=\"\",\"\",'1. Order'!J586)","v":""},{"$f":"IF('1. Order'!K586=\"\",\"\",'1. Order'!K586)","v":""},{"$f":"IF('1. Order'!L586=\"\",\"\",'1. Order'!L586)","v":""},{"$f":"IF('1. Order'!M586=\"\",\"\",'1. Order'!M586)","v":""},{"$f":"IF('1. Order'!N586=\"\",\"\",'1. Order'!N586)","v":""},{"$f":"IF('1. Order'!O586=\"\",\"\",'1. Order'!O586)","v":{"$error":"#N/A"}},{"$f":"IF('1. Order'!P586=\"\",\"\",'1. Order'!P586)","v":{"$error":"#N/A"}},{"$f":"IF('1. Order'!Q586=\"\",\"\",'1. Order'!Q586)","v":""},{"$f":"IF('1. Order'!S586=\"\",\"\",'1. Order'!S586)","v":""},{"$f":"IF('1. Order'!T586=\"\",\"\",'1. Order'!T586)","v":""},{"$f":"IF('1. Order'!W586=\"\",\"\",'1. Order'!W586)","v":""},{"$f":"IF('1. Order'!X586=\"\",\"\",'1. Order'!X586)","v":""},{"$f":"IF('1. Order'!Y586=\"\",\"\",'1. Order'!Y586)","v":"EUR"},{"$f":"IF('1. Order'!Z586=\"\",\"\",'1. Order'!Z586)","v":""},{"$f":"IF('1. Order'!AA586=\"\",\"\",'1. Order'!AA586)","v":""},{"$f":"IF('1. Order'!AB586=\"\",\"\",'1. Order'!AB586)","v":""},null,{"$f":"IF('1. Order'!AT586=\"\",\"\",'1. Order'!AT586)","v":""},{"$f":"IF('1. Order'!AU586=\"\",\"\",'1. Order'!AU586)","v":""},null,null,null,null,null,null,null,{"$f":"IF('1. Order'!AY586=\"\",\"\",'1. Order'!AY586)","v":""},{"$f":"IF('1. Order'!AZ586=\"\",\"\",'1. Order'!AZ586)","v":""},{"$f":"IF('1. Order'!BA586=\"\",\"\",'1. Order'!BA586)","v":""},{"$f":"IF('1. Order'!BB586=\"\",\"\",'1. Order'!BB586)","v":""},{"$f":"IF('1. Order'!BD586=\"\",\"\",'1. Order'!BD586)","v":""},{"$f":"IF('1. Order'!BE586=\"\",\"\",'1. Order'!BE586)","v":""},{"$f":"IF('1. Order'!BF586=\"\",\"\",'1. Order'!BF586)","v":""},{"$f":"IF('1. Order'!BG586=\"\",\"\",'1. Order'!BG586)","v":""},{"$f":"IF('1. Order'!BH586=\"\",\"\",'1. Order'!BH586)","v":"ZWO"}]
[{"$f":"IF('1. Order'!F587=\"\",\"\",'1. Order'!F587)","v":{"$error":"#N/A"}},{"$f":"IF('1. Order'!G587=\"\",\"\",'1. Order'!G587)","v":""},{"$f":"IF('1. Order'!H587=\"\",\"\",'1. Order'!H587)","v":""},{"$f":"IF('1. Order'!I587=\"\",\"\",'1. Order'!I587)","v":""},{"$f":"IF('1. Order'!J587=\"\",\"\",'1. Order'!J587)","v":""},{"$f":"IF('1. Order'!K587=\"\",\"\",'1. Order'!K587)","v":""},{"$f":"IF('1. Order'!L587=\"\",\"\",'1. Order'!L587)","v":""},{"$f":"IF('1. Order'!M587=\"\",\"\",'1. Order'!M587)","v":""},{"$f":"IF('1. Order'!N587=\"\",\"\",'1. Order'!N587)","v":""},{"$f":"IF('1. Order'!O587=\"\",\"\",'1. Order'!O587)","v":{"$error":"#N/A"}},{"$f":"IF('1. Order'!P587=\"\",\"\",'1. Order'!P587)","v":{"$error":"#N/A"}},{"$f":"IF('1. Order'!Q587=\"\",\"\",'1. Order'!Q587)","v":""},{"$f":"IF('1. Order'!S587=\"\",\"\",'1. Order'!S587)","v":""},{"$f":"IF('1. Order'!T587=\"\",\"\",'1. Order'!T587)","v":""},{"$f":"IF('1. Order'!W587=\"\",\"\",'1. Order'!W587)","v":""},{"$f":"IF('1. Order'!X587=\"\",\"\",'1. Order'!X587)","v":""},{"$f":"IF('1. Order'!Y587=\"\",\"\",'1. Order'!Y587)","v":"EUR"},{"$f":"IF('1. Order'!Z587=\"\",\"\",'1. Order'!Z587)","v":""},{"$f":"IF('1. Order'!AA587=\"\",\"\",'1. Order'!AA587)","v":""},{"$f":"IF('1. Order'!AB587=\"\",\"\",'1. Order'!AB587)","v":""},null,{"$f":"IF('1. Order'!AT587=\"\",\"\",'1. Order'!AT587)","v":""},{"$f":"IF('1. Order'!AU587=\"\",\"\",'1. Order'!AU587)","v":""},null,null,null,null,null,null,null,{"$f":"IF('1. Order'!AY587=\"\",\"\",'1. Order'!AY587)","v":""},{"$f":"IF('1. Order'!AZ587=\"\",\"\",'1. Order'!AZ587)","v":""},{"$f":"IF('1. Order'!BA587=\"\",\"\",'1. Order'!BA587)","v":""},{"$f":"IF('1. Order'!BB587=\"\",\"\",'1. Order'!BB587)","v":""},{"$f":"IF('1. Order'!BD587=\"\",\"\",'1. Order'!BD587)","v":""},{"$f":"IF('1. Order'!BE587=\"\",\"\",'1. Order'!BE587)","v":""},{"$f":"IF('1. Order'!BF587=\"\",\"\",'1. Order'!BF587)","v":""},{"$f":"IF('1. Order'!BG587=\"\",\"\",'1. Order'!BG587)","v":""},{"$f":"IF('1. Order'!BH587=\"\",\"\",'1. Order'!BH587)","v":"ZWO"}]
[{"$f":"IF('1. Order'!F588=\"\",\"\",'1. Order'!F588)","v":{"$error":"#N/A"}},{"$f":"IF('1. Order'!G588=\"\",\"\",'1. Order'!G588)","v":""},{"$f":"IF('1. Order'!H588=\"\",\"\",'1. Order'!H588)","v":""},{"$f":"IF('1. Order'!I588=\"\",\"\",'1. Order'!I588)","v":""},{"$f":"IF('1. Order'!J588=\"\",\"\",'1. Order'!J588)","v":""},{"$f":"IF('1. Order'!K588=\"\",\"\",'1. Order'!K588)","v":""},{"$f":"IF('1. Order'!L588=\"\",\"\",'1. Order'!L588)","v":""},{"$f":"IF('1. Order'!M588=\"\",\"\",'1. Order'!M588)","v":""},{"$f":"IF('1. Order'!N588=\"\",\"\",'1. Order'!N588)","v":""},{"$f":"IF('1. Order'!O588=\"\",\"\",'1. Order'!O588)","v":{"$error":"#N/A"}},{"$f":"IF('1. Order'!P588=\"\",\"\",'1. Order'!P588)","v":{"$error":"#N/A"}},{"$f":"IF('1. Order'!Q588=\"\",\"\",'1. Order'!Q588)","v":""},{"$f":"IF('1. Order'!S588=\"\",\"\",'1. Order'!S588)","v":""},{"$f":"IF('1. Order'!T588=\"\",\"\",'1. Order'!T588)","v":""},{"$f":"IF('1. Order'!W588=\"\",\"\",'1. Order'!W588)","v":""},{"$f":"IF('1. Order'!X588=\"\",\"\",'1. Order'!X588)","v":""},{"$f":"IF('1. Order'!Y588=\"\",\"\",'1. Order'!Y588)","v":"EUR"},{"$f":"IF('1. Order'!Z588=\"\",\"\",'1. Order'!Z588)","v":""},{"$f":"IF('1. Order'!AA588=\"\",\"\",'1. Order'!AA588)","v":""},{"$f":"IF('1. Order'!AB588=\"\",\"\",'1. Order'!AB588)","v":""},null,{"$f":"IF('1. Order'!AT588=\"\",\"\",'1. Order'!AT588)","v":""},{"$f":"IF('1. Order'!AU588=\"\",\"\",'1. Order'!AU588)","v":""},null,null,null,null,null,null,null,{"$f":"IF('1. Order'!AY588=\"\",\"\",'1. Order'!AY588)","v":""},{"$f":"IF('1. Order'!AZ588=\"\",\"\",'1. Order'!AZ588)","v":""},{"$f":"IF('1. Order'!BA588=\"\",\"\",'1. Order'!BA588)","v":""},{"$f":"IF('1. Order'!BB588=\"\",\"\",'1. Order'!BB588)","v":""},{"$f":"IF('1. Order'!BD588=\"\",\"\",'1. Order'!BD588)","v":""},{"$f":"IF('1. Order'!BE588=\"\",\"\",'1. Order'!BE588)","v":""},{"$f":"IF('1. Order'!BF588=\"\",\"\",'1. Order'!BF588)","v":""},{"$f":"IF('1. Order'!BG588=\"\",\"\",'1. Order'!BG588)","v":""},{"$f":"IF('1. Order'!BH588=\"\",\"\",'1. Order'!BH588)","v":"ZWO"}]
[{"$f":"IF('1. Order'!F589=\"\",\"\",'1. Order'!F589)","v":{"$error":"#N/A"}},{"$f":"IF('1. Order'!G589=\"\",\"\",'1. Order'!G589)","v":""},{"$f":"IF('1. Order'!H589=\"\",\"\",'1. Order'!H589)","v":""},{"$f":"IF('1. Order'!I589=\"\",\"\",'1. Order'!I589)","v":""},{"$f":"IF('1. Order'!J589=\"\",\"\",'1. Order'!J589)","v":""},{"$f":"IF('1. Order'!K589=\"\",\"\",'1. Order'!K589)","v":""},{"$f":"IF('1. Order'!L589=\"\",\"\",'1. Order'!L589)","v":""},{"$f":"IF('1. Order'!M589=\"\",\"\",'1. Order'!M589)","v":""},{"$f":"IF('1. Order'!N589=\"\",\"\",'1. Order'!N589)","v":""},{"$f":"IF('1. Order'!O589=\"\",\"\",'1. Order'!O589)","v":{"$error":"#N/A"}},{"$f":"IF('1. Order'!P589=\"\",\"\",'1. Order'!P589)","v":{"$error":"#N/A"}},{"$f":"IF('1. Order'!Q589=\"\",\"\",'1. Order'!Q589)","v":""},{"$f":"IF('1. Order'!S589=\"\",\"\",'1. Order'!S589)","v":""},{"$f":"IF('1. Order'!T589=\"\",\"\",'1. Order'!T589)","v":""},{"$f":"IF('1. Order'!W589=\"\",\"\",'1. Order'!W589)","v":""},{"$f":"IF('1. Order'!X589=\"\",\"\",'1. Order'!X589)","v":""},{"$f":"IF('1. Order'!Y589=\"\",\"\",'1. Order'!Y589)","v":"EUR"},{"$f":"IF('1. Order'!Z589=\"\",\"\",'1. Order'!Z589)","v":""},{"$f":"IF('1. Order'!AA589=\"\",\"\",'1. Order'!AA589)","v":""},{"$f":"IF('1. Order'!AB589=\"\",\"\",'1. Order'!AB589)","v":""},null,{"$f":"IF('1. Order'!AT589=\"\",\"\",'1. Order'!AT589)","v":""},{"$f":"IF('1. Order'!AU589=\"\",\"\",'1. Order'!AU589)","v":""},null,null,null,null,null,null,null,{"$f":"IF('1. Order'!AY589=\"\",\"\",'1. Order'!AY589)","v":""},{"$f":"IF('1. Order'!AZ589=\"\",\"\",'1. Order'!AZ589)","v":""},{"$f":"IF('1. Order'!BA589=\"\",\"\",'1. Order'!BA589)","v":""},{"$f":"IF('1. Order'!BB589=\"\",\"\",'1. Order'!BB589)","v":""},{"$f":"IF('1. Order'!BD589=\"\",\"\",'1. Order'!BD589)","v":""},{"$f":"IF('1. Order'!BE589=\"\",\"\",'1. Order'!BE589)","v":""},{"$f":"IF('1. Order'!BF589=\"\",\"\",'1. Order'!BF589)","v":""},{"$f":"IF('1. Order'!BG589=\"\",\"\",'1. Order'!BG589)","v":""},{"$f":"IF('1. Order'!BH589=\"\",\"\",'1. Order'!BH589)","v":"ZWO"}]
[{"$f":"IF('1. Order'!F590=\"\",\"\",'1. Order'!F590)","v":{"$error":"#N/A"}},{"$f":"IF('1. Order'!G590=\"\",\"\",'1. Order'!G590)","v":""},{"$f":"IF('1. Order'!H590=\"\",\"\",'1. Order'!H590)","v":""},{"$f":"IF('1. Order'!I590=\"\",\"\",'1. Order'!I590)","v":""},{"$f":"IF('1. Order'!J590=\"\",\"\",'1. Order'!J590)","v":""},{"$f":"IF('1. Order'!K590=\"\",\"\",'1. Order'!K590)","v":""},{"$f":"IF('1. Order'!L590=\"\",\"\",'1. Order'!L590)","v":""},{"$f":"IF('1. Order'!M590=\"\",\"\",'1. Order'!M590)","v":""},{"$f":"IF('1. Order'!N590=\"\",\"\",'1. Order'!N590)","v":""},{"$f":"IF('1. Order'!O590=\"\",\"\",'1. Order'!O590)","v":{"$error":"#N/A"}},{"$f":"IF('1. Order'!P590=\"\",\"\",'1. Order'!P590)","v":{"$error":"#N/A"}},{"$f":"IF('1. Order'!Q590=\"\",\"\",'1. Order'!Q590)","v":""},{"$f":"IF('1. Order'!S590=\"\",\"\",'1. Order'!S590)","v":""},{"$f":"IF('1. Order'!T590=\"\",\"\",'1. Order'!T590)","v":""},{"$f":"IF('1. Order'!W590=\"\",\"\",'1. Order'!W590)","v":""},{"$f":"IF('1. Order'!X590=\"\",\"\",'1. Order'!X590)","v":""},{"$f":"IF('1. Order'!Y590=\"\",\"\",'1. Order'!Y590)","v":"EUR"},{"$f":"IF('1. Order'!Z590=\"\",\"\",'1. Order'!Z590)","v":""},{"$f":"IF('1. Order'!AA590=\"\",\"\",'1. Order'!AA590)","v":""},{"$f":"IF('1. Order'!AB590=\"\",\"\",'1. Order'!AB590)","v":""},null,{"$f":"IF('1. Order'!AT590=\"\",\"\",'1. Order'!AT590)","v":""},{"$f":"IF('1. Order'!AU590=\"\",\"\",'1. Order'!AU590)","v":""},null,null,null,null,null,null,null,{"$f":"IF('1. Order'!AY590=\"\",\"\",'1. Order'!AY590)","v":""},{"$f":"IF('1. Order'!AZ590=\"\",\"\",'1. Order'!AZ590)","v":""},{"$f":"IF('1. Order'!BA590=\"\",\"\",'1. Order'!BA590)","v":""},{"$f":"IF('1. Order'!BB590=\"\",\"\",'1. Order'!BB590)","v":""},{"$f":"IF('1. Order'!BD590=\"\",\"\",'1. Order'!BD590)","v":""},{"$f":"IF('1. Order'!BE590=\"\",\"\",'1. Order'!BE590)","v":""},{"$f":"IF('1. Order'!BF590=\"\",\"\",'1. Order'!BF590)","v":""},{"$f":"IF('1. Order'!BG590=\"\",\"\",'1. Order'!BG590)","v":""},{"$f":"IF('1. Order'!BH590=\"\",\"\",'1. Order'!BH590)","v":"ZWO"}]
[{"$f":"IF('1. Order'!F591=\"\",\"\",'1. Order'!F591)","v":{"$error":"#N/A"}},{"$f":"IF('1. Order'!G591=\"\",\"\",'1. Order'!G591)","v":""},{"$f":"IF('1. Order'!H591=\"\",\"\",'1. Order'!H591)","v":""},{"$f":"IF('1. Order'!I591=\"\",\"\",'1. Order'!I591)","v":""},{"$f":"IF('1. Order'!J591=\"\",\"\",'1. Order'!J591)","v":""},{"$f":"IF('1. Order'!K591=\"\",\"\",'1. Order'!K591)","v":""},{"$f":"IF('1. Order'!L591=\"\",\"\",'1. Order'!L591)","v":""},{"$f":"IF('1. Order'!M591=\"\",\"\",'1. Order'!M591)","v":""},{"$f":"IF('1. Order'!N591=\"\",\"\",'1. Order'!N591)","v":""},{"$f":"IF('1. Order'!O591=\"\",\"\",'1. Order'!O591)","v":{"$error":"#N/A"}},{"$f":"IF('1. Order'!P591=\"\",\"\",'1. Order'!P591)","v":{"$error":"#N/A"}},{"$f":"IF('1. Order'!Q591=\"\",\"\",'1. Order'!Q591)","v":""},{"$f":"IF('1. Order'!S591=\"\",\"\",'1. Order'!S591)","v":""},{"$f":"IF('1. Order'!T591=\"\",\"\",'1. Order'!T591)","v":""},{"$f":"IF('1. Order'!W591=\"\",\"\",'1. Order'!W591)","v":""},{"$f":"IF('1. Order'!X591=\"\",\"\",'1. Order'!X591)","v":""},{"$f":"IF('1. Order'!Y591=\"\",\"\",'1. Order'!Y591)","v":"EUR"},{"$f":"IF('1. Order'!Z591=\"\",\"\",'1. Order'!Z591)","v":""},{"$f":"IF('1. Order'!AA591=\"\",\"\",'1. Order'!AA591)","v":""},{"$f":"IF('1. Order'!AB591=\"\",\"\",'1. Order'!AB591)","v":""},null,{"$f":"IF('1. Order'!AT591=\"\",\"\",'1. Order'!AT591)","v":""},{"$f":"IF('1. Order'!AU591=\"\",\"\",'1. Order'!AU591)","v":""},null,null,null,null,null,null,null,{"$f":"IF('1. Order'!AY591=\"\",\"\",'1. Order'!AY591)","v":""},{"$f":"IF('1. Order'!AZ591=\"\",\"\",'1. Order'!AZ591)","v":""},{"$f":"IF('1. Order'!BA591=\"\",\"\",'1. Order'!BA591)","v":""},{"$f":"IF('1. Order'!BB591=\"\",\"\",'1. Order'!BB591)","v":""},{"$f":"IF('1. Order'!BD591=\"\",\"\",'1. Order'!BD591)","v":""},{"$f":"IF('1. Order'!BE591=\"\",\"\",'1. Order'!BE591)","v":""},{"$f":"IF('1. Order'!BF591=\"\",\"\",'1. Order'!BF591)","v":""},{"$f":"IF('1. Order'!BG591=\"\",\"\",'1. Order'!BG591)","v":""},{"$f":"IF('1. Order'!BH591=\"\",\"\",'1. Order'!BH591)","v":"ZWO"}]
[{"$f":"IF('1. Order'!F592=\"\",\"\",'1. Order'!F592)","v":{"$error":"#N/A"}},{"$f":"IF('1. Order'!G592=\"\",\"\",'1. Order'!G592)","v":""},{"$f":"IF('1. Order'!H592=\"\",\"\",'1. Order'!H592)","v":""},{"$f":"IF('1. Order'!I592=\"\",\"\",'1. Order'!I592)","v":""},{"$f":"IF('1. Order'!J592=\"\",\"\",'1. Order'!J592)","v":""},{"$f":"IF('1. Order'!K592=\"\",\"\",'1. Order'!K592)","v":""},{"$f":"IF('1. Order'!L592=\"\",\"\",'1. Order'!L592)","v":""},{"$f":"IF('1. Order'!M592=\"\",\"\",'1. Order'!M592)","v":""},{"$f":"IF('1. Order'!N592=\"\",\"\",'1. Order'!N592)","v":""},{"$f":"IF('1. Order'!O592=\"\",\"\",'1. Order'!O592)","v":{"$error":"#N/A"}},{"$f":"IF('1. Order'!P592=\"\",\"\",'1. Order'!P592)","v":{"$error":"#N/A"}},{"$f":"IF('1. Order'!Q592=\"\",\"\",'1. Order'!Q592)","v":""},{"$f":"IF('1. Order'!S592=\"\",\"\",'1. Order'!S592)","v":""},{"$f":"IF('1. Order'!T592=\"\",\"\",'1. Order'!T592)","v":""},{"$f":"IF('1. Order'!W592=\"\",\"\",'1. Order'!W592)","v":""},{"$f":"IF('1. Order'!X592=\"\",\"\",'1. Order'!X592)","v":""},{"$f":"IF('1. Order'!Y592=\"\",\"\",'1. Order'!Y592)","v":"EUR"},{"$f":"IF('1. Order'!Z592=\"\",\"\",'1. Order'!Z592)","v":""},{"$f":"IF('1. Order'!AA592=\"\",\"\",'1. Order'!AA592)","v":""},{"$f":"IF('1. Order'!AB592=\"\",\"\",'1. Order'!AB592)","v":""},null,{"$f":"IF('1. Order'!AT592=\"\",\"\",'1. Order'!AT592)","v":""},{"$f":"IF('1. Order'!AU592=\"\",\"\",'1. Order'!AU592)","v":""},null,null,null,null,null,null,null,{"$f":"IF('1. Order'!AY592=\"\",\"\",'1. Order'!AY592)","v":""},{"$f":"IF('1. Order'!AZ592=\"\",\"\",'1. Order'!AZ592)","v":""},{"$f":"IF('1. Order'!BA592=\"\",\"\",'1. Order'!BA592)","v":""},{"$f":"IF('1. Order'!BB592=\"\",\"\",'1. Order'!BB592)","v":""},{"$f":"IF('1. Order'!BD592=\"\",\"\",'1. Order'!BD592)","v":""},{"$f":"IF('1. Order'!BE592=\"\",\"\",'1. Order'!BE592)","v":""},{"$f":"IF('1. Order'!BF592=\"\",\"\",'1. Order'!BF592)","v":""},{"$f":"IF('1. Order'!BG592=\"\",\"\",'1. Order'!BG592)","v":""},{"$f":"IF('1. Order'!BH592=\"\",\"\",'1. Order'!BH592)","v":"ZWO"}]
[{"$f":"IF('1. Order'!F593=\"\",\"\",'1. Order'!F593)","v":{"$error":"#N/A"}},{"$f":"IF('1. Order'!G593=\"\",\"\",'1. Order'!G593)","v":""},{"$f":"IF('1. Order'!H593=\"\",\"\",'1. Order'!H593)","v":""},{"$f":"IF('1. Order'!I593=\"\",\"\",'1. Order'!I593)","v":""},{"$f":"IF('1. Order'!J593=\"\",\"\",'1. Order'!J593)","v":""},{"$f":"IF('1. Order'!K593=\"\",\"\",'1. Order'!K593)","v":""},{"$f":"IF('1. Order'!L593=\"\",\"\",'1. Order'!L593)","v":""},{"$f":"IF('1. Order'!M593=\"\",\"\",'1. Order'!M593)","v":""},{"$f":"IF('1. Order'!N593=\"\",\"\",'1. Order'!N593)","v":""},{"$f":"IF('1. Order'!O593=\"\",\"\",'1. Order'!O593)","v":{"$error":"#N/A"}},{"$f":"IF('1. Order'!P593=\"\",\"\",'1. Order'!P593)","v":{"$error":"#N/A"}},{"$f":"IF('1. Order'!Q593=\"\",\"\",'1. Order'!Q593)","v":""},{"$f":"IF('1. Order'!S593=\"\",\"\",'1. Order'!S593)","v":""},{"$f":"IF('1. Order'!T593=\"\",\"\",'1. Order'!T593)","v":""},{"$f":"IF('1. Order'!W593=\"\",\"\",'1. Order'!W593)","v":""},{"$f":"IF('1. Order'!X593=\"\",\"\",'1. Order'!X593)","v":""},{"$f":"IF('1. Order'!Y593=\"\",\"\",'1. Order'!Y593)","v":"EUR"},{"$f":"IF('1. Order'!Z593=\"\",\"\",'1. Order'!Z593)","v":""},{"$f":"IF('1. Order'!AA593=\"\",\"\",'1. Order'!AA593)","v":""},{"$f":"IF('1. Order'!AB593=\"\",\"\",'1. Order'!AB593)","v":""},null,{"$f":"IF('1. Order'!AT593=\"\",\"\",'1. Order'!AT593)","v":""},{"$f":"IF('1. Order'!AU593=\"\",\"\",'1. Order'!AU593)","v":""},null,null,null,null,null,null,null,{"$f":"IF('1. Order'!AY593=\"\",\"\",'1. Order'!AY593)","v":""},{"$f":"IF('1. Order'!AZ593=\"\",\"\",'1. Order'!AZ593)","v":""},{"$f":"IF('1. Order'!BA593=\"\",\"\",'1. Order'!BA593)","v":""},{"$f":"IF('1. Order'!BB593=\"\",\"\",'1. Order'!BB593)","v":""},{"$f":"IF('1. Order'!BD593=\"\",\"\",'1. Order'!BD593)","v":""},{"$f":"IF('1. Order'!BE593=\"\",\"\",'1. Order'!BE593)","v":""},{"$f":"IF('1. Order'!BF593=\"\",\"\",'1. Order'!BF593)","v":""},{"$f":"IF('1. Order'!BG593=\"\",\"\",'1. Order'!BG593)","v":""},{"$f":"IF('1. Order'!BH593=\"\",\"\",'1. Order'!BH593)","v":"ZWO"}]
[{"$f":"IF('1. Order'!F594=\"\",\"\",'1. Order'!F594)","v":{"$error":"#N/A"}},{"$f":"IF('1. Order'!G594=\"\",\"\",'1. Order'!G594)","v":""},{"$f":"IF('1. Order'!H594=\"\",\"\",'1. Order'!H594)","v":""},{"$f":"IF('1. Order'!I594=\"\",\"\",'1. Order'!I594)","v":""},{"$f":"IF('1. Order'!J594=\"\",\"\",'1. Order'!J594)","v":""},{"$f":"IF('1. Order'!K594=\"\",\"\",'1. Order'!K594)","v":""},{"$f":"IF('1. Order'!L594=\"\",\"\",'1. Order'!L594)","v":""},{"$f":"IF('1. Order'!M594=\"\",\"\",'1. Order'!M594)","v":""},{"$f":"IF('1. Order'!N594=\"\",\"\",'1. Order'!N594)","v":""},{"$f":"IF('1. Order'!O594=\"\",\"\",'1. Order'!O594)","v":{"$error":"#N/A"}},{"$f":"IF('1. Order'!P594=\"\",\"\",'1. Order'!P594)","v":{"$error":"#N/A"}},{"$f":"IF('1. Order'!Q594=\"\",\"\",'1. Order'!Q594)","v":""},{"$f":"IF('1. Order'!S594=\"\",\"\",'1. Order'!S594)","v":""},{"$f":"IF('1. Order'!T594=\"\",\"\",'1. Order'!T594)","v":""},{"$f":"IF('1. Order'!W594=\"\",\"\",'1. Order'!W594)","v":""},{"$f":"IF('1. Order'!X594=\"\",\"\",'1. Order'!X594)","v":""},{"$f":"IF('1. Order'!Y594=\"\",\"\",'1. Order'!Y594)","v":"EUR"},{"$f":"IF('1. Order'!Z594=\"\",\"\",'1. Order'!Z594)","v":""},{"$f":"IF('1. Order'!AA594=\"\",\"\",'1. Order'!AA594)","v":""},{"$f":"IF('1. Order'!AB594=\"\",\"\",'1. Order'!AB594)","v":""},null,{"$f":"IF('1. Order'!AT594=\"\",\"\",'1. Order'!AT594)","v":""},{"$f":"IF('1. Order'!AU594=\"\",\"\",'1. Order'!AU594)","v":""},null,null,null,null,null,null,null,{"$f":"IF('1. Order'!AY594=\"\",\"\",'1. Order'!AY594)","v":""},{"$f":"IF('1. Order'!AZ594=\"\",\"\",'1. Order'!AZ594)","v":""},{"$f":"IF('1. Order'!BA594=\"\",\"\",'1. Order'!BA594)","v":""},{"$f":"IF('1. Order'!BB594=\"\",\"\",'1. Order'!BB594)","v":""},{"$f":"IF('1. Order'!BD594=\"\",\"\",'1. Order'!BD594)","v":""},{"$f":"IF('1. Order'!BE594=\"\",\"\",'1. Order'!BE594)","v":""},{"$f":"IF('1. Order'!BF594=\"\",\"\",'1. Order'!BF594)","v":""},{"$f":"IF('1. Order'!BG594=\"\",\"\",'1. Order'!BG594)","v":""},{"$f":"IF('1. Order'!BH594=\"\",\"\",'1. Order'!BH594)","v":"ZWO"}]
[{"$f":"IF('1. Order'!F595=\"\",\"\",'1. Order'!F595)","v":{"$error":"#N/A"}},{"$f":"IF('1. Order'!G595=\"\",\"\",'1. Order'!G595)","v":""},{"$f":"IF('1. Order'!H595=\"\",\"\",'1. Order'!H595)","v":""},{"$f":"IF('1. Order'!I595=\"\",\"\",'1. Order'!I595)","v":""},{"$f":"IF('1. Order'!J595=\"\",\"\",'1. Order'!J595)","v":""},{"$f":"IF('1. Order'!K595=\"\",\"\",'1. Order'!K595)","v":""},{"$f":"IF('1. Order'!L595=\"\",\"\",'1. Order'!L595)","v":""},{"$f":"IF('1. Order'!M595=\"\",\"\",'1. Order'!M595)","v":""},{"$f":"IF('1. Order'!N595=\"\",\"\",'1. Order'!N595)","v":""},{"$f":"IF('1. Order'!O595=\"\",\"\",'1. Order'!O595)","v":{"$error":"#N/A"}},{"$f":"IF('1. Order'!P595=\"\",\"\",'1. Order'!P595)","v":{"$error":"#N/A"}},{"$f":"IF('1. Order'!Q595=\"\",\"\",'1. Order'!Q595)","v":""},{"$f":"IF('1. Order'!S595=\"\",\"\",'1. Order'!S595)","v":""},{"$f":"IF('1. Order'!T595=\"\",\"\",'1. Order'!T595)","v":""},{"$f":"IF('1. Order'!W595=\"\",\"\",'1. Order'!W595)","v":""},{"$f":"IF('1. Order'!X595=\"\",\"\",'1. Order'!X595)","v":""},{"$f":"IF('1. Order'!Y595=\"\",\"\",'1. Order'!Y595)","v":"EUR"},{"$f":"IF('1. Order'!Z595=\"\",\"\",'1. Order'!Z595)","v":""},{"$f":"IF('1. Order'!AA595=\"\",\"\",'1. Order'!AA595)","v":""},{"$f":"IF('1. Order'!AB595=\"\",\"\",'1. Order'!AB595)","v":""},null,{"$f":"IF('1. Order'!AT595=\"\",\"\",'1. Order'!AT595)","v":""},{"$f":"IF('1. Order'!AU595=\"\",\"\",'1. Order'!AU595)","v":""},null,null,null,null,null,null,null,{"$f":"IF('1. Order'!AY595=\"\",\"\",'1. Order'!AY595)","v":""},{"$f":"IF('1. Order'!AZ595=\"\",\"\",'1. Order'!AZ595)","v":""},{"$f":"IF('1. Order'!BA595=\"\",\"\",'1. Order'!BA595)","v":""},{"$f":"IF('1. Order'!BB595=\"\",\"\",'1. Order'!BB595)","v":""},{"$f":"IF('1. Order'!BD595=\"\",\"\",'1. Order'!BD595)","v":""},{"$f":"IF('1. Order'!BE595=\"\",\"\",'1. Order'!BE595)","v":""},{"$f":"IF('1. Order'!BF595=\"\",\"\",'1. Order'!BF595)","v":""},{"$f":"IF('1. Order'!BG595=\"\",\"\",'1. Order'!BG595)","v":""},{"$f":"IF('1. Order'!BH595=\"\",\"\",'1. Order'!BH595)","v":"ZWO"}]
[{"$f":"IF('1. Order'!F596=\"\",\"\",'1. Order'!F596)","v":{"$error":"#N/A"}},{"$f":"IF('1. Order'!G596=\"\",\"\",'1. Order'!G596)","v":""},{"$f":"IF('1. Order'!H596=\"\",\"\",'1. Order'!H596)","v":""},{"$f":"IF('1. Order'!I596=\"\",\"\",'1. Order'!I596)","v":""},{"$f":"IF('1. Order'!J596=\"\",\"\",'1. Order'!J596)","v":""},{"$f":"IF('1. Order'!K596=\"\",\"\",'1. Order'!K596)","v":""},{"$f":"IF('1. Order'!L596=\"\",\"\",'1. Order'!L596)","v":""},{"$f":"IF('1. Order'!M596=\"\",\"\",'1. Order'!M596)","v":""},{"$f":"IF('1. Order'!N596=\"\",\"\",'1. Order'!N596)","v":""},{"$f":"IF('1. Order'!O596=\"\",\"\",'1. Order'!O596)","v":{"$error":"#N/A"}},{"$f":"IF('1. Order'!P596=\"\",\"\",'1. Order'!P596)","v":{"$error":"#N/A"}},{"$f":"IF('1. Order'!Q596=\"\",\"\",'1. Order'!Q596)","v":""},{"$f":"IF('1. Order'!S596=\"\",\"\",'1. Order'!S596)","v":""},{"$f":"IF('1. Order'!T596=\"\",\"\",'1. Order'!T596)","v":""},{"$f":"IF('1. Order'!W596=\"\",\"\",'1. Order'!W596)","v":""},{"$f":"IF('1. Order'!X596=\"\",\"\",'1. Order'!X596)","v":""},{"$f":"IF('1. Order'!Y596=\"\",\"\",'1. Order'!Y596)","v":"EUR"},{"$f":"IF('1. Order'!Z596=\"\",\"\",'1. Order'!Z596)","v":""},{"$f":"IF('1. Order'!AA596=\"\",\"\",'1. Order'!AA596)","v":""},{"$f":"IF('1. Order'!AB596=\"\",\"\",'1. Order'!AB596)","v":""},null,{"$f":"IF('1. Order'!AT596=\"\",\"\",'1. Order'!AT596)","v":""},{"$f":"IF('1. Order'!AU596=\"\",\"\",'1. Order'!AU596)","v":""},null,null,null,null,null,null,null,{"$f":"IF('1. Order'!AY596=\"\",\"\",'1. Order'!AY596)","v":""},{"$f":"IF('1. Order'!AZ596=\"\",\"\",'1. Order'!AZ596)","v":""},{"$f":"IF('1. Order'!BA596=\"\",\"\",'1. Order'!BA596)","v":""},{"$f":"IF('1. Order'!BB596=\"\",\"\",'1. Order'!BB596)","v":""},{"$f":"IF('1. Order'!BD596=\"\",\"\",'1. Order'!BD596)","v":""},{"$f":"IF('1. Order'!BE596=\"\",\"\",'1. Order'!BE596)","v":""},{"$f":"IF('1. Order'!BF596=\"\",\"\",'1. Order'!BF596)","v":""},{"$f":"IF('1. Order'!BG596=\"\",\"\",'1. Order'!BG596)","v":""},{"$f":"IF('1. Order'!BH596=\"\",\"\",'1. Order'!BH596)","v":"ZWO"}]
[{"$f":"IF('1. Order'!F597=\"\",\"\",'1. Order'!F597)","v":{"$error":"#N/A"}},{"$f":"IF('1. Order'!G597=\"\",\"\",'1. Order'!G597)","v":""},{"$f":"IF('1. Order'!H597=\"\",\"\",'1. Order'!H597)","v":""},{"$f":"IF('1. Order'!I597=\"\",\"\",'1. Order'!I597)","v":""},{"$f":"IF('1. Order'!J597=\"\",\"\",'1. Order'!J597)","v":""},{"$f":"IF('1. Order'!K597=\"\",\"\",'1. Order'!K597)","v":""},{"$f":"IF('1. Order'!L597=\"\",\"\",'1. Order'!L597)","v":""},{"$f":"IF('1. Order'!M597=\"\",\"\",'1. Order'!M597)","v":""},{"$f":"IF('1. Order'!N597=\"\",\"\",'1. Order'!N597)","v":""},{"$f":"IF('1. Order'!O597=\"\",\"\",'1. Order'!O597)","v":{"$error":"#N/A"}},{"$f":"IF('1. Order'!P597=\"\",\"\",'1. Order'!P597)","v":{"$error":"#N/A"}},{"$f":"IF('1. Order'!Q597=\"\",\"\",'1. Order'!Q597)","v":""},{"$f":"IF('1. Order'!S597=\"\",\"\",'1. Order'!S597)","v":""},{"$f":"IF('1. Order'!T597=\"\",\"\",'1. Order'!T597)","v":""},{"$f":"IF('1. Order'!W597=\"\",\"\",'1. Order'!W597)","v":""},{"$f":"IF('1. Order'!X597=\"\",\"\",'1. Order'!X597)","v":""},{"$f":"IF('1. Order'!Y597=\"\",\"\",'1. Order'!Y597)","v":"EUR"},{"$f":"IF('1. Order'!Z597=\"\",\"\",'1. Order'!Z597)","v":""},{"$f":"IF('1. Order'!AA597=\"\",\"\",'1. Order'!AA597)","v":""},{"$f":"IF('1. Order'!AB597=\"\",\"\",'1. Order'!AB597)","v":""},null,{"$f":"IF('1. Order'!AT597=\"\",\"\",'1. Order'!AT597)","v":""},{"$f":"IF('1. Order'!AU597=\"\",\"\",'1. Order'!AU597)","v":""},null,null,null,null,null,null,null,{"$f":"IF('1. Order'!AY597=\"\",\"\",'1. Order'!AY597)","v":""},{"$f":"IF('1. Order'!AZ597=\"\",\"\",'1. Order'!AZ597)","v":""},{"$f":"IF('1. Order'!BA597=\"\",\"\",'1. Order'!BA597)","v":""},{"$f":"IF('1. Order'!BB597=\"\",\"\",'1. Order'!BB597)","v":""},{"$f":"IF('1. Order'!BD597=\"\",\"\",'1. Order'!BD597)","v":""},{"$f":"IF('1. Order'!BE597=\"\",\"\",'1. Order'!BE597)","v":""},{"$f":"IF('1. Order'!BF597=\"\",\"\",'1. Order'!BF597)","v":""},{"$f":"IF('1. Order'!BG597=\"\",\"\",'1. Order'!BG597)","v":""},{"$f":"IF('1. Order'!BH597=\"\",\"\",'1. Order'!BH597)","v":"ZWO"}]
[{"$f":"IF('1. Order'!F598=\"\",\"\",'1. Order'!F598)","v":{"$error":"#N/A"}},{"$f":"IF('1. Order'!G598=\"\",\"\",'1. Order'!G598)","v":""},{"$f":"IF('1. Order'!H598=\"\",\"\",'1. Order'!H598)","v":""},{"$f":"IF('1. Order'!I598=\"\",\"\",'1. Order'!I598)","v":""},{"$f":"IF('1. Order'!J598=\"\",\"\",'1. Order'!J598)","v":""},{"$f":"IF('1. Order'!K598=\"\",\"\",'1. Order'!K598)","v":""},{"$f":"IF('1. Order'!L598=\"\",\"\",'1. Order'!L598)","v":""},{"$f":"IF('1. Order'!M598=\"\",\"\",'1. Order'!M598)","v":""},{"$f":"IF('1. Order'!N598=\"\",\"\",'1. Order'!N598)","v":""},{"$f":"IF('1. Order'!O598=\"\",\"\",'1. Order'!O598)","v":{"$error":"#N/A"}},{"$f":"IF('1. Order'!P598=\"\",\"\",'1. Order'!P598)","v":{"$error":"#N/A"}},{"$f":"IF('1. Order'!Q598=\"\",\"\",'1. Order'!Q598)","v":""},{"$f":"IF('1. Order'!S598=\"\",\"\",'1. Order'!S598)","v":""},{"$f":"IF('1. Order'!T598=\"\",\"\",'1. Order'!T598)","v":""},{"$f":"IF('1. Order'!W598=\"\",\"\",'1. Order'!W598)","v":""},{"$f":"IF('1. Order'!X598=\"\",\"\",'1. Order'!X598)","v":""},{"$f":"IF('1. Order'!Y598=\"\",\"\",'1. Order'!Y598)","v":"EUR"},{"$f":"IF('1. Order'!Z598=\"\",\"\",'1. Order'!Z598)","v":""},{"$f":"IF('1. Order'!AA598=\"\",\"\",'1. Order'!AA598)","v":""},{"$f":"IF('1. Order'!AB598=\"\",\"\",'1. Order'!AB598)","v":""},null,{"$f":"IF('1. Order'!AT598=\"\",\"\",'1. Order'!AT598)","v":""},{"$f":"IF('1. Order'!AU598=\"\",\"\",'1. Order'!AU598)","v":""},null,null,null,null,null,null,null,{"$f":"IF('1. Order'!AY598=\"\",\"\",'1. Order'!AY598)","v":""},{"$f":"IF('1. Order'!AZ598=\"\",\"\",'1. Order'!AZ598)","v":""},{"$f":"IF('1. Order'!BA598=\"\",\"\",'1. Order'!BA598)","v":""},{"$f":"IF('1. Order'!BB598=\"\",\"\",'1. Order'!BB598)","v":""},{"$f":"IF('1. Order'!BD598=\"\",\"\",'1. Order'!BD598)","v":""},{"$f":"IF('1. Order'!BE598=\"\",\"\",'1. Order'!BE598)","v":""},{"$f":"IF('1. Order'!BF598=\"\",\"\",'1. Order'!BF598)","v":""},{"$f":"IF('1. Order'!BG598=\"\",\"\",'1. Order'!BG598)","v":""},{"$f":"IF('1. Order'!BH598=\"\",\"\",'1. Order'!BH598)","v":"ZWO"}]
[{"$f":"IF('1. Order'!F599=\"\",\"\",'1. Order'!F599)","v":{"$error":"#N/A"}},{"$f":"IF('1. Order'!G599=\"\",\"\",'1. Order'!G599)","v":""},{"$f":"IF('1. Order'!H599=\"\",\"\",'1. Order'!H599)","v":""},{"$f":"IF('1. Order'!I599=\"\",\"\",'1. Order'!I599)","v":""},{"$f":"IF('1. Order'!J599=\"\",\"\",'1. Order'!J599)","v":""},{"$f":"IF('1. Order'!K599=\"\",\"\",'1. Order'!K599)","v":""},{"$f":"IF('1. Order'!L599=\"\",\"\",'1. Order'!L599)","v":""},{"$f":"IF('1. Order'!M599=\"\",\"\",'1. Order'!M599)","v":""},{"$f":"IF('1. Order'!N599=\"\",\"\",'1. Order'!N599)","v":""},{"$f":"IF('1. Order'!O599=\"\",\"\",'1. Order'!O599)","v":{"$error":"#N/A"}},{"$f":"IF('1. Order'!P599=\"\",\"\",'1. Order'!P599)","v":{"$error":"#N/A"}},{"$f":"IF('1. Order'!Q599=\"\",\"\",'1. Order'!Q599)","v":""},{"$f":"IF('1. Order'!S599=\"\",\"\",'1. Order'!S599)","v":""},{"$f":"IF('1. Order'!T599=\"\",\"\",'1. Order'!T599)","v":""},{"$f":"IF('1. Order'!W599=\"\",\"\",'1. Order'!W599)","v":""},{"$f":"IF('1. Order'!X599=\"\",\"\",'1. Order'!X599)","v":""},{"$f":"IF('1. Order'!Y599=\"\",\"\",'1. Order'!Y599)","v":"EUR"},{"$f":"IF('1. Order'!Z599=\"\",\"\",'1. Order'!Z599)","v":""},{"$f":"IF('1. Order'!AA599=\"\",\"\",'1. Order'!AA599)","v":""},{"$f":"IF('1. Order'!AB599=\"\",\"\",'1. Order'!AB599)","v":""},null,{"$f":"IF('1. Order'!AT599=\"\",\"\",'1. Order'!AT599)","v":""},{"$f":"IF('1. Order'!AU599=\"\",\"\",'1. Order'!AU599)","v":""},null,null,null,null,null,null,null,{"$f":"IF('1. Order'!AY599=\"\",\"\",'1. Order'!AY599)","v":""},{"$f":"IF('1. Order'!AZ599=\"\",\"\",'1. Order'!AZ599)","v":""},{"$f":"IF('1. Order'!BA599=\"\",\"\",'1. Order'!BA599)","v":""},{"$f":"IF('1. Order'!BB599=\"\",\"\",'1. Order'!BB599)","v":""},{"$f":"IF('1. Order'!BD599=\"\",\"\",'1. Order'!BD599)","v":""},{"$f":"IF('1. Order'!BE599=\"\",\"\",'1. Order'!BE599)","v":""},{"$f":"IF('1. Order'!BF599=\"\",\"\",'1. Order'!BF599)","v":""},{"$f":"IF('1. Order'!BG599=\"\",\"\",'1. Order'!BG599)","v":""},{"$f":"IF('1. Order'!BH599=\"\",\"\",'1. Order'!BH599)","v":"ZWO"}]
[{"$f":"IF('1. Order'!F600=\"\",\"\",'1. Order'!F600)","v":{"$error":"#N/A"}},{"$f":"IF('1. Order'!G600=\"\",\"\",'1. Order'!G600)","v":""},{"$f":"IF('1. Order'!H600=\"\",\"\",'1. Order'!H600)","v":""},{"$f":"IF('1. Order'!I600=\"\",\"\",'1. Order'!I600)","v":""},{"$f":"IF('1. Order'!J600=\"\",\"\",'1. Order'!J600)","v":""},{"$f":"IF('1. Order'!K600=\"\",\"\",'1. Order'!K600)","v":""},{"$f":"IF('1. Order'!L600=\"\",\"\",'1. Order'!L600)","v":""},{"$f":"IF('1. Order'!M600=\"\",\"\",'1. Order'!M600)","v":""},{"$f":"IF('1. Order'!N600=\"\",\"\",'1. Order'!N600)","v":""},{"$f":"IF('1. Order'!O600=\"\",\"\",'1. Order'!O600)","v":{"$error":"#N/A"}},{"$f":"IF('1. Order'!P600=\"\",\"\",'1. Order'!P600)","v":{"$error":"#N/A"}},{"$f":"IF('1. Order'!Q600=\"\",\"\",'1. Order'!Q600)","v":""},{"$f":"IF('1. Order'!S600=\"\",\"\",'1. Order'!S600)","v":""},{"$f":"IF('1. Order'!T600=\"\",\"\",'1. Order'!T600)","v":""},{"$f":"IF('1. Order'!W600=\"\",\"\",'1. Order'!W600)","v":""},{"$f":"IF('1. Order'!X600=\"\",\"\",'1. Order'!X600)","v":""},{"$f":"IF('1. Order'!Y600=\"\",\"\",'1. Order'!Y600)","v":"EUR"},{"$f":"IF('1. Order'!Z600=\"\",\"\",'1. Order'!Z600)","v":""},{"$f":"IF('1. Order'!AA600=\"\",\"\",'1. Order'!AA600)","v":""},{"$f":"IF('1. Order'!AB600=\"\",\"\",'1. Order'!AB600)","v":""},null,{"$f":"IF('1. Order'!AT600=\"\",\"\",'1. Order'!AT600)","v":""},{"$f":"IF('1. Order'!AU600=\"\",\"\",'1. Order'!AU600)","v":""},null,null,null,null,null,null,null,{"$f":"IF('1. Order'!AY600=\"\",\"\",'1. Order'!AY600)","v":""},{"$f":"IF('1. Order'!AZ600=\"\",\"\",'1. Order'!AZ600)","v":""},{"$f":"IF('1. Order'!BA600=\"\",\"\",'1. Order'!BA600)","v":""},{"$f":"IF('1. Order'!BB600=\"\",\"\",'1. Order'!BB600)","v":""},{"$f":"IF('1. Order'!BD600=\"\",\"\",'1. Order'!BD600)","v":""},{"$f":"IF('1. Order'!BE600=\"\",\"\",'1. Order'!BE600)","v":""},{"$f":"IF('1. Order'!BF600=\"\",\"\",'1. Order'!BF600)","v":""},{"$f":"IF('1. Order'!BG600=\"\",\"\",'1. Order'!BG600)","v":""},{"$f":"IF('1. Order'!BH600=\"\",\"\",'1. Order'!BH600)","v":"ZWO"}]
[{"$f":"IF('1. Order'!F601=\"\",\"\",'1. Order'!F601)","v":{"$error":"#N/A"}},{"$f":"IF('1. Order'!G601=\"\",\"\",'1. Order'!G601)","v":""},{"$f":"IF('1. Order'!H601=\"\",\"\",'1. Order'!H601)","v":""},{"$f":"IF('1. Order'!I601=\"\",\"\",'1. Order'!I601)","v":""},{"$f":"IF('1. Order'!J601=\"\",\"\",'1. Order'!J601)","v":""},{"$f":"IF('1. Order'!K601=\"\",\"\",'1. Order'!K601)","v":""},{"$f":"IF('1. Order'!L601=\"\",\"\",'1. Order'!L601)","v":""},{"$f":"IF('1. Order'!M601=\"\",\"\",'1. Order'!M601)","v":""},{"$f":"IF('1. Order'!N601=\"\",\"\",'1. Order'!N601)","v":""},{"$f":"IF('1. Order'!O601=\"\",\"\",'1. Order'!O601)","v":{"$error":"#N/A"}},{"$f":"IF('1. Order'!P601=\"\",\"\",'1. Order'!P601)","v":{"$error":"#N/A"}},{"$f":"IF('1. Order'!Q601=\"\",\"\",'1. Order'!Q601)","v":""},{"$f":"IF('1. Order'!S601=\"\",\"\",'1. Order'!S601)","v":""},{"$f":"IF('1. Order'!T601=\"\",\"\",'1. Order'!T601)","v":""},{"$f":"IF('1. Order'!W601=\"\",\"\",'1. Order'!W601)","v":""},{"$f":"IF('1. Order'!X601=\"\",\"\",'1. Order'!X601)","v":""},{"$f":"IF('1. Order'!Y601=\"\",\"\",'1. Order'!Y601)","v":"EUR"},{"$f":"IF('1. Order'!Z601=\"\",\"\",'1. Order'!Z601)","v":""},{"$f":"IF('1. Order'!AA601=\"\",\"\",'1. Order'!AA601)","v":""},{"$f":"IF('1. Order'!AB601=\"\",\"\",'1. Order'!AB601)","v":""},null,{"$f":"IF('1. Order'!AT601=\"\",\"\",'1. Order'!AT601)","v":""},{"$f":"IF('1. Order'!AU601=\"\",\"\",'1. Order'!AU601)","v":""},null,null,null,null,null,null,null,{"$f":"IF('1. Order'!AY601=\"\",\"\",'1. Order'!AY601)","v":""},{"$f":"IF('1. Order'!AZ601=\"\",\"\",'1. Order'!AZ601)","v":""},{"$f":"IF('1. Order'!BA601=\"\",\"\",'1. Order'!BA601)","v":""},{"$f":"IF('1. Order'!BB601=\"\",\"\",'1. Order'!BB601)","v":""},{"$f":"IF('1. Order'!BD601=\"\",\"\",'1. Order'!BD601)","v":""},{"$f":"IF('1. Order'!BE601=\"\",\"\",'1. Order'!BE601)","v":""},{"$f":"IF('1. Order'!BF601=\"\",\"\",'1. Order'!BF601)","v":""},{"$f":"IF('1. Order'!BG601=\"\",\"\",'1. Order'!BG601)","v":""},{"$f":"IF('1. Order'!BH601=\"\",\"\",'1. Order'!BH601)","v":"ZWO"}]
[{"$f":"IF('1. Order'!F602=\"\",\"\",'1. Order'!F602)","v":{"$error":"#N/A"}},{"$f":"IF('1. Order'!G602=\"\",\"\",'1. Order'!G602)","v":""},{"$f":"IF('1. Order'!H602=\"\",\"\",'1. Order'!H602)","v":""},{"$f":"IF('1. Order'!I602=\"\",\"\",'1. Order'!I602)","v":""},{"$f":"IF('1. Order'!J602=\"\",\"\",'1. Order'!J602)","v":""},{"$f":"IF('1. Order'!K602=\"\",\"\",'1. Order'!K602)","v":""},{"$f":"IF('1. Order'!L602=\"\",\"\",'1. Order'!L602)","v":""},{"$f":"IF('1. Order'!M602=\"\",\"\",'1. Order'!M602)","v":""},{"$f":"IF('1. Order'!N602=\"\",\"\",'1. Order'!N602)","v":""},{"$f":"IF('1. Order'!O602=\"\",\"\",'1. Order'!O602)","v":{"$error":"#N/A"}},{"$f":"IF('1. Order'!P602=\"\",\"\",'1. Order'!P602)","v":{"$error":"#N/A"}},{"$f":"IF('1. Order'!Q602=\"\",\"\",'1. Order'!Q602)","v":""},{"$f":"IF('1. Order'!S602=\"\",\"\",'1. Order'!S602)","v":""},{"$f":"IF('1. Order'!T602=\"\",\"\",'1. Order'!T602)","v":""},{"$f":"IF('1. Order'!W602=\"\",\"\",'1. Order'!W602)","v":""},{"$f":"IF('1. Order'!X602=\"\",\"\",'1. Order'!X602)","v":""},{"$f":"IF('1. Order'!Y602=\"\",\"\",'1. Order'!Y602)","v":"EUR"},{"$f":"IF('1. Order'!Z602=\"\",\"\",'1. Order'!Z602)","v":""},{"$f":"IF('1. Order'!AA602=\"\",\"\",'1. Order'!AA602)","v":""},{"$f":"IF('1. Order'!AB602=\"\",\"\",'1. Order'!AB602)","v":""},null,{"$f":"IF('1. Order'!AT602=\"\",\"\",'1. Order'!AT602)","v":""},{"$f":"IF('1. Order'!AU602=\"\",\"\",'1. Order'!AU602)","v":""},null,null,null,null,null,null,null,{"$f":"IF('1. Order'!AY602=\"\",\"\",'1. Order'!AY602)","v":""},{"$f":"IF('1. Order'!AZ602=\"\",\"\",'1. Order'!AZ602)","v":""},{"$f":"IF('1. Order'!BA602=\"\",\"\",'1. Order'!BA602)","v":""},{"$f":"IF('1. Order'!BB602=\"\",\"\",'1. Order'!BB602)","v":""},{"$f":"IF('1. Order'!BD602=\"\",\"\",'1. Order'!BD602)","v":""},{"$f":"IF('1. Order'!BE602=\"\",\"\",'1. Order'!BE602)","v":""},{"$f":"IF('1. Order'!BF602=\"\",\"\",'1. Order'!BF602)","v":""},{"$f":"IF('1. Order'!BG602=\"\",\"\",'1. Order'!BG602)","v":""},{"$f":"IF('1. Order'!BH602=\"\",\"\",'1. Order'!BH602)","v":"ZWO"}]
[{"$f":"IF('1. Order'!F603=\"\",\"\",'1. Order'!F603)","v":{"$error":"#N/A"}},{"$f":"IF('1. Order'!G603=\"\",\"\",'1. Order'!G603)","v":""},{"$f":"IF('1. Order'!H603=\"\",\"\",'1. Order'!H603)","v":""},{"$f":"IF('1. Order'!I603=\"\",\"\",'1. Order'!I603)","v":""},{"$f":"IF('1. Order'!J603=\"\",\"\",'1. Order'!J603)","v":""},{"$f":"IF('1. Order'!K603=\"\",\"\",'1. Order'!K603)","v":""},{"$f":"IF('1. Order'!L603=\"\",\"\",'1. Order'!L603)","v":""},{"$f":"IF('1. Order'!M603=\"\",\"\",'1. Order'!M603)","v":""},{"$f":"IF('1. Order'!N603=\"\",\"\",'1. Order'!N603)","v":""},{"$f":"IF('1. Order'!O603=\"\",\"\",'1. Order'!O603)","v":{"$error":"#N/A"}},{"$f":"IF('1. Order'!P603=\"\",\"\",'1. Order'!P603)","v":{"$error":"#N/A"}},{"$f":"IF('1. Order'!Q603=\"\",\"\",'1. Order'!Q603)","v":""},{"$f":"IF('1. Order'!S603=\"\",\"\",'1. Order'!S603)","v":""},{"$f":"IF('1. Order'!T603=\"\",\"\",'1. Order'!T603)","v":""},{"$f":"IF('1. Order'!W603=\"\",\"\",'1. Order'!W603)","v":""},{"$f":"IF('1. Order'!X603=\"\",\"\",'1. Order'!X603)","v":""},{"$f":"IF('1. Order'!Y603=\"\",\"\",'1. Order'!Y603)","v":"EUR"},{"$f":"IF('1. Order'!Z603=\"\",\"\",'1. Order'!Z603)","v":""},{"$f":"IF('1. Order'!AA603=\"\",\"\",'1. Order'!AA603)","v":""},{"$f":"IF('1. Order'!AB603=\"\",\"\",'1. Order'!AB603)","v":""},null,{"$f":"IF('1. Order'!AT603=\"\",\"\",'1. Order'!AT603)","v":""},{"$f":"IF('1. Order'!AU603=\"\",\"\",'1. Order'!AU603)","v":""},null,null,null,null,null,null,null,{"$f":"IF('1. Order'!AY603=\"\",\"\",'1. Order'!AY603)","v":""},{"$f":"IF('1. Order'!AZ603=\"\",\"\",'1. Order'!AZ603)","v":""},{"$f":"IF('1. Order'!BA603=\"\",\"\",'1. Order'!BA603)","v":""},{"$f":"IF('1. Order'!BB603=\"\",\"\",'1. Order'!BB603)","v":""},{"$f":"IF('1. Order'!BD603=\"\",\"\",'1. Order'!BD603)","v":""},{"$f":"IF('1. Order'!BE603=\"\",\"\",'1. Order'!BE603)","v":""},{"$f":"IF('1. Order'!BF603=\"\",\"\",'1. Order'!BF603)","v":""},{"$f":"IF('1. Order'!BG603=\"\",\"\",'1. Order'!BG603)","v":""},{"$f":"IF('1. Order'!BH603=\"\",\"\",'1. Order'!BH603)","v":"ZWO"}]
[{"$f":"IF('1. Order'!F604=\"\",\"\",'1. Order'!F604)","v":{"$error":"#N/A"}},{"$f":"IF('1. Order'!G604=\"\",\"\",'1. Order'!G604)","v":""},{"$f":"IF('1. Order'!H604=\"\",\"\",'1. Order'!H604)","v":""},{"$f":"IF('1. Order'!I604=\"\",\"\",'1. Order'!I604)","v":""},{"$f":"IF('1. Order'!J604=\"\",\"\",'1. Order'!J604)","v":""},{"$f":"IF('1. Order'!K604=\"\",\"\",'1. Order'!K604)","v":""},{"$f":"IF('1. Order'!L604=\"\",\"\",'1. Order'!L604)","v":""},{"$f":"IF('1. Order'!M604=\"\",\"\",'1. Order'!M604)","v":""},{"$f":"IF('1. Order'!N604=\"\",\"\",'1. Order'!N604)","v":""},{"$f":"IF('1. Order'!O604=\"\",\"\",'1. Order'!O604)","v":{"$error":"#N/A"}},{"$f":"IF('1. Order'!P604=\"\",\"\",'1. Order'!P604)","v":{"$error":"#N/A"}},{"$f":"IF('1. Order'!Q604=\"\",\"\",'1. Order'!Q604)","v":""},{"$f":"IF('1. Order'!S604=\"\",\"\",'1. Order'!S604)","v":""},{"$f":"IF('1. Order'!T604=\"\",\"\",'1. Order'!T604)","v":""},{"$f":"IF('1. Order'!W604=\"\",\"\",'1. Order'!W604)","v":""},{"$f":"IF('1. Order'!X604=\"\",\"\",'1. Order'!X604)","v":""},{"$f":"IF('1. Order'!Y604=\"\",\"\",'1. Order'!Y604)","v":"EUR"},{"$f":"IF('1. Order'!Z604=\"\",\"\",'1. Order'!Z604)","v":""},{"$f":"IF('1. Order'!AA604=\"\",\"\",'1. Order'!AA604)","v":""},{"$f":"IF('1. Order'!AB604=\"\",\"\",'1. Order'!AB604)","v":""},null,{"$f":"IF('1. Order'!AT604=\"\",\"\",'1. Order'!AT604)","v":""},{"$f":"IF('1. Order'!AU604=\"\",\"\",'1. Order'!AU604)","v":""},null,null,null,null,null,null,null,{"$f":"IF('1. Order'!AY604=\"\",\"\",'1. Order'!AY604)","v":""},{"$f":"IF('1. Order'!AZ604=\"\",\"\",'1. Order'!AZ604)","v":""},{"$f":"IF('1. Order'!BA604=\"\",\"\",'1. Order'!BA604)","v":""},{"$f":"IF('1. Order'!BB604=\"\",\"\",'1. Order'!BB604)","v":""},{"$f":"IF('1. Order'!BD604=\"\",\"\",'1. Order'!BD604)","v":""},{"$f":"IF('1. Order'!BE604=\"\",\"\",'1. Order'!BE604)","v":""},{"$f":"IF('1. Order'!BF604=\"\",\"\",'1. Order'!BF604)","v":""},{"$f":"IF('1. Order'!BG604=\"\",\"\",'1. Order'!BG604)","v":""},{"$f":"IF('1. Order'!BH604=\"\",\"\",'1. Order'!BH604)","v":"ZWO"}]
[{"$f":"IF('1. Order'!F605=\"\",\"\",'1. Order'!F605)","v":{"$error":"#N/A"}},{"$f":"IF('1. Order'!G605=\"\",\"\",'1. Order'!G605)","v":""},{"$f":"IF('1. Order'!H605=\"\",\"\",'1. Order'!H605)","v":""},{"$f":"IF('1. Order'!I605=\"\",\"\",'1. Order'!I605)","v":""},{"$f":"IF('1. Order'!J605=\"\",\"\",'1. Order'!J605)","v":""},{"$f":"IF('1. Order'!K605=\"\",\"\",'1. Order'!K605)","v":""},{"$f":"IF('1. Order'!L605=\"\",\"\",'1. Order'!L605)","v":""},{"$f":"IF('1. Order'!M605=\"\",\"\",'1. Order'!M605)","v":""},{"$f":"IF('1. Order'!N605=\"\",\"\",'1. Order'!N605)","v":""},{"$f":"IF('1. Order'!O605=\"\",\"\",'1. Order'!O605)","v":{"$error":"#N/A"}},{"$f":"IF('1. Order'!P605=\"\",\"\",'1. Order'!P605)","v":{"$error":"#N/A"}},{"$f":"IF('1. Order'!Q605=\"\",\"\",'1. Order'!Q605)","v":""},{"$f":"IF('1. Order'!S605=\"\",\"\",'1. Order'!S605)","v":""},{"$f":"IF('1. Order'!T605=\"\",\"\",'1. Order'!T605)","v":""},{"$f":"IF('1. Order'!W605=\"\",\"\",'1. Order'!W605)","v":""},{"$f":"IF('1. Order'!X605=\"\",\"\",'1. Order'!X605)","v":""},{"$f":"IF('1. Order'!Y605=\"\",\"\",'1. Order'!Y605)","v":"EUR"},{"$f":"IF('1. Order'!Z605=\"\",\"\",'1. Order'!Z605)","v":""},{"$f":"IF('1. Order'!AA605=\"\",\"\",'1. Order'!AA605)","v":""},{"$f":"IF('1. Order'!AB605=\"\",\"\",'1. Order'!AB605)","v":""},null,{"$f":"IF('1. Order'!AT605=\"\",\"\",'1. Order'!AT605)","v":""},{"$f":"IF('1. Order'!AU605=\"\",\"\",'1. Order'!AU605)","v":""},null,null,null,null,null,null,null,{"$f":"IF('1. Order'!AY605=\"\",\"\",'1. Order'!AY605)","v":""},{"$f":"IF('1. Order'!AZ605=\"\",\"\",'1. Order'!AZ605)","v":""},{"$f":"IF('1. Order'!BA605=\"\",\"\",'1. Order'!BA605)","v":""},{"$f":"IF('1. Order'!BB605=\"\",\"\",'1. Order'!BB605)","v":""},{"$f":"IF('1. Order'!BD605=\"\",\"\",'1. Order'!BD605)","v":""},{"$f":"IF('1. Order'!BE605=\"\",\"\",'1. Order'!BE605)","v":""},{"$f":"IF('1. Order'!BF605=\"\",\"\",'1. Order'!BF605)","v":""},{"$f":"IF('1. Order'!BG605=\"\",\"\",'1. Order'!BG605)","v":""},{"$f":"IF('1. Order'!BH605=\"\",\"\",'1. Order'!BH605)","v":"ZWO"}]
[{"$f":"IF('1. Order'!F606=\"\",\"\",'1. Order'!F606)","v":{"$error":"#N/A"}},{"$f":"IF('1. Order'!G606=\"\",\"\",'1. Order'!G606)","v":""},{"$f":"IF('1. Order'!H606=\"\",\"\",'1. Order'!H606)","v":""},{"$f":"IF('1. Order'!I606=\"\",\"\",'1. Order'!I606)","v":""},{"$f":"IF('1. Order'!J606=\"\",\"\",'1. Order'!J606)","v":""},{"$f":"IF('1. Order'!K606=\"\",\"\",'1. Order'!K606)","v":""},{"$f":"IF('1. Order'!L606=\"\",\"\",'1. Order'!L606)","v":""},{"$f":"IF('1. Order'!M606=\"\",\"\",'1. Order'!M606)","v":""},{"$f":"IF('1. Order'!N606=\"\",\"\",'1. Order'!N606)","v":""},{"$f":"IF('1. Order'!O606=\"\",\"\",'1. Order'!O606)","v":{"$error":"#N/A"}},{"$f":"IF('1. Order'!P606=\"\",\"\",'1. Order'!P606)","v":{"$error":"#N/A"}},{"$f":"IF('1. Order'!Q606=\"\",\"\",'1. Order'!Q606)","v":""},{"$f":"IF('1. Order'!S606=\"\",\"\",'1. Order'!S606)","v":""},{"$f":"IF('1. Order'!T606=\"\",\"\",'1. Order'!T606)","v":""},{"$f":"IF('1. Order'!W606=\"\",\"\",'1. Order'!W606)","v":""},{"$f":"IF('1. Order'!X606=\"\",\"\",'1. Order'!X606)","v":""},{"$f":"IF('1. Order'!Y606=\"\",\"\",'1. Order'!Y606)","v":"EUR"},{"$f":"IF('1. Order'!Z606=\"\",\"\",'1. Order'!Z606)","v":""},{"$f":"IF('1. Order'!AA606=\"\",\"\",'1. Order'!AA606)","v":""},{"$f":"IF('1. Order'!AB606=\"\",\"\",'1. Order'!AB606)","v":""},null,{"$f":"IF('1. Order'!AT606=\"\",\"\",'1. Order'!AT606)","v":""},{"$f":"IF('1. Order'!AU606=\"\",\"\",'1. Order'!AU606)","v":""},null,null,null,null,null,null,null,{"$f":"IF('1. Order'!AY606=\"\",\"\",'1. Order'!AY606)","v":""},{"$f":"IF('1. Order'!AZ606=\"\",\"\",'1. Order'!AZ606)","v":""},{"$f":"IF('1. Order'!BA606=\"\",\"\",'1. Order'!BA606)","v":""},{"$f":"IF('1. Order'!BB606=\"\",\"\",'1. Order'!BB606)","v":""},{"$f":"IF('1. Order'!BD606=\"\",\"\",'1. Order'!BD606)","v":""},{"$f":"IF('1. Order'!BE606=\"\",\"\",'1. Order'!BE606)","v":""},{"$f":"IF('1. Order'!BF606=\"\",\"\",'1. Order'!BF606)","v":""},{"$f":"IF('1. Order'!BG606=\"\",\"\",'1. Order'!BG606)","v":""},{"$f":"IF('1. Order'!BH606=\"\",\"\",'1. Order'!BH606)","v":"ZWO"}]
[{"$f":"IF('1. Order'!F607=\"\",\"\",'1. Order'!F607)","v":{"$error":"#N/A"}},{"$f":"IF('1. Order'!G607=\"\",\"\",'1. Order'!G607)","v":""},{"$f":"IF('1. Order'!H607=\"\",\"\",'1. Order'!H607)","v":""},{"$f":"IF('1. Order'!I607=\"\",\"\",'1. Order'!I607)","v":""},{"$f":"IF('1. Order'!J607=\"\",\"\",'1. Order'!J607)","v":""},{"$f":"IF('1. Order'!K607=\"\",\"\",'1. Order'!K607)","v":""},{"$f":"IF('1. Order'!L607=\"\",\"\",'1. Order'!L607)","v":""},{"$f":"IF('1. Order'!M607=\"\",\"\",'1. Order'!M607)","v":""},{"$f":"IF('1. Order'!N607=\"\",\"\",'1. Order'!N607)","v":""},{"$f":"IF('1. Order'!O607=\"\",\"\",'1. Order'!O607)","v":{"$error":"#N/A"}},{"$f":"IF('1. Order'!P607=\"\",\"\",'1. Order'!P607)","v":{"$error":"#N/A"}},{"$f":"IF('1. Order'!Q607=\"\",\"\",'1. Order'!Q607)","v":""},{"$f":"IF('1. Order'!S607=\"\",\"\",'1. Order'!S607)","v":""},{"$f":"IF('1. Order'!T607=\"\",\"\",'1. Order'!T607)","v":""},{"$f":"IF('1. Order'!W607=\"\",\"\",'1. Order'!W607)","v":""},{"$f":"IF('1. Order'!X607=\"\",\"\",'1. Order'!X607)","v":""},{"$f":"IF('1. Order'!Y607=\"\",\"\",'1. Order'!Y607)","v":"EUR"},{"$f":"IF('1. Order'!Z607=\"\",\"\",'1. Order'!Z607)","v":""},{"$f":"IF('1. Order'!AA607=\"\",\"\",'1. Order'!AA607)","v":""},{"$f":"IF('1. Order'!AB607=\"\",\"\",'1. Order'!AB607)","v":""},null,{"$f":"IF('1. Order'!AT607=\"\",\"\",'1. Order'!AT607)","v":""},{"$f":"IF('1. Order'!AU607=\"\",\"\",'1. Order'!AU607)","v":""},null,null,null,null,null,null,null,{"$f":"IF('1. Order'!AY607=\"\",\"\",'1. Order'!AY607)","v":""},{"$f":"IF('1. Order'!AZ607=\"\",\"\",'1. Order'!AZ607)","v":""},{"$f":"IF('1. Order'!BA607=\"\",\"\",'1. Order'!BA607)","v":""},{"$f":"IF('1. Order'!BB607=\"\",\"\",'1. Order'!BB607)","v":""},{"$f":"IF('1. Order'!BD607=\"\",\"\",'1. Order'!BD607)","v":""},{"$f":"IF('1. Order'!BE607=\"\",\"\",'1. Order'!BE607)","v":""},{"$f":"IF('1. Order'!BF607=\"\",\"\",'1. Order'!BF607)","v":""},{"$f":"IF('1. Order'!BG607=\"\",\"\",'1. Order'!BG607)","v":""},{"$f":"IF('1. Order'!BH607=\"\",\"\",'1. Order'!BH607)","v":"ZWO"}]
[{"$f":"IF('1. Order'!F608=\"\",\"\",'1. Order'!F608)","v":{"$error":"#N/A"}},{"$f":"IF('1. Order'!G608=\"\",\"\",'1. Order'!G608)","v":""},{"$f":"IF('1. Order'!H608=\"\",\"\",'1. Order'!H608)","v":""},{"$f":"IF('1. Order'!I608=\"\",\"\",'1. Order'!I608)","v":""},{"$f":"IF('1. Order'!J608=\"\",\"\",'1. Order'!J608)","v":""},{"$f":"IF('1. Order'!K608=\"\",\"\",'1. Order'!K608)","v":""},{"$f":"IF('1. Order'!L608=\"\",\"\",'1. Order'!L608)","v":""},{"$f":"IF('1. Order'!M608=\"\",\"\",'1. Order'!M608)","v":""},{"$f":"IF('1. Order'!N608=\"\",\"\",'1. Order'!N608)","v":""},{"$f":"IF('1. Order'!O608=\"\",\"\",'1. Order'!O608)","v":{"$error":"#N/A"}},{"$f":"IF('1. Order'!P608=\"\",\"\",'1. Order'!P608)","v":{"$error":"#N/A"}},{"$f":"IF('1. Order'!Q608=\"\",\"\",'1. Order'!Q608)","v":""},{"$f":"IF('1. Order'!S608=\"\",\"\",'1. Order'!S608)","v":""},{"$f":"IF('1. Order'!T608=\"\",\"\",'1. Order'!T608)","v":""},{"$f":"IF('1. Order'!W608=\"\",\"\",'1. Order'!W608)","v":""},{"$f":"IF('1. Order'!X608=\"\",\"\",'1. Order'!X608)","v":""},{"$f":"IF('1. Order'!Y608=\"\",\"\",'1. Order'!Y608)","v":"EUR"},{"$f":"IF('1. Order'!Z608=\"\",\"\",'1. Order'!Z608)","v":""},{"$f":"IF('1. Order'!AA608=\"\",\"\",'1. Order'!AA608)","v":""},{"$f":"IF('1. Order'!AB608=\"\",\"\",'1. Order'!AB608)","v":""},null,{"$f":"IF('1. Order'!AT608=\"\",\"\",'1. Order'!AT608)","v":""},{"$f":"IF('1. Order'!AU608=\"\",\"\",'1. Order'!AU608)","v":""},null,null,null,null,null,null,null,{"$f":"IF('1. Order'!AY608=\"\",\"\",'1. Order'!AY608)","v":""},{"$f":"IF('1. Order'!AZ608=\"\",\"\",'1. Order'!AZ608)","v":""},{"$f":"IF('1. Order'!BA608=\"\",\"\",'1. Order'!BA608)","v":""},{"$f":"IF('1. Order'!BB608=\"\",\"\",'1. Order'!BB608)","v":""},{"$f":"IF('1. Order'!BD608=\"\",\"\",'1. Order'!BD608)","v":""},{"$f":"IF('1. Order'!BE608=\"\",\"\",'1. Order'!BE608)","v":""},{"$f":"IF('1. Order'!BF608=\"\",\"\",'1. Order'!BF608)","v":""},{"$f":"IF('1. Order'!BG608=\"\",\"\",'1. Order'!BG608)","v":""},{"$f":"IF('1. Order'!BH608=\"\",\"\",'1. Order'!BH608)","v":"ZWO"}]
[{"$f":"IF('1. Order'!F609=\"\",\"\",'1. Order'!F609)","v":{"$error":"#N/A"}},{"$f":"IF('1. Order'!G609=\"\",\"\",'1. Order'!G609)","v":""},{"$f":"IF('1. Order'!H609=\"\",\"\",'1. Order'!H609)","v":""},{"$f":"IF('1. Order'!I609=\"\",\"\",'1. Order'!I609)","v":""},{"$f":"IF('1. Order'!J609=\"\",\"\",'1. Order'!J609)","v":""},{"$f":"IF('1. Order'!K609=\"\",\"\",'1. Order'!K609)","v":""},{"$f":"IF('1. Order'!L609=\"\",\"\",'1. Order'!L609)","v":""},{"$f":"IF('1. Order'!M609=\"\",\"\",'1. Order'!M609)","v":""},{"$f":"IF('1. Order'!N609=\"\",\"\",'1. Order'!N609)","v":""},{"$f":"IF('1. Order'!O609=\"\",\"\",'1. Order'!O609)","v":{"$error":"#N/A"}},{"$f":"IF('1. Order'!P609=\"\",\"\",'1. Order'!P609)","v":{"$error":"#N/A"}},{"$f":"IF('1. Order'!Q609=\"\",\"\",'1. Order'!Q609)","v":""},{"$f":"IF('1. Order'!S609=\"\",\"\",'1. Order'!S609)","v":""},{"$f":"IF('1. Order'!T609=\"\",\"\",'1. Order'!T609)","v":""},{"$f":"IF('1. Order'!W609=\"\",\"\",'1. Order'!W609)","v":""},{"$f":"IF('1. Order'!X609=\"\",\"\",'1. Order'!X609)","v":""},{"$f":"IF('1. Order'!Y609=\"\",\"\",'1. Order'!Y609)","v":"EUR"},{"$f":"IF('1. Order'!Z609=\"\",\"\",'1. Order'!Z609)","v":""},{"$f":"IF('1. Order'!AA609=\"\",\"\",'1. Order'!AA609)","v":""},{"$f":"IF('1. Order'!AB609=\"\",\"\",'1. Order'!AB609)","v":""},null,{"$f":"IF('1. Order'!AT609=\"\",\"\",'1. Order'!AT609)","v":""},{"$f":"IF('1. Order'!AU609=\"\",\"\",'1. Order'!AU609)","v":""},null,null,null,null,null,null,null,{"$f":"IF('1. Order'!AY609=\"\",\"\",'1. Order'!AY609)","v":""},{"$f":"IF('1. Order'!AZ609=\"\",\"\",'1. Order'!AZ609)","v":""},{"$f":"IF('1. Order'!BA609=\"\",\"\",'1. Order'!BA609)","v":""},{"$f":"IF('1. Order'!BB609=\"\",\"\",'1. Order'!BB609)","v":""},{"$f":"IF('1. Order'!BD609=\"\",\"\",'1. Order'!BD609)","v":""},{"$f":"IF('1. Order'!BE609=\"\",\"\",'1. Order'!BE609)","v":""},{"$f":"IF('1. Order'!BF609=\"\",\"\",'1. Order'!BF609)","v":""},{"$f":"IF('1. Order'!BG609=\"\",\"\",'1. Order'!BG609)","v":""},{"$f":"IF('1. Order'!BH609=\"\",\"\",'1. Order'!BH609)","v":"ZWO"}]
[{"$f":"IF('1. Order'!F610=\"\",\"\",'1. Order'!F610)","v":{"$error":"#N/A"}},{"$f":"IF('1. Order'!G610=\"\",\"\",'1. Order'!G610)","v":""},{"$f":"IF('1. Order'!H610=\"\",\"\",'1. Order'!H610)","v":""},{"$f":"IF('1. Order'!I610=\"\",\"\",'1. Order'!I610)","v":""},{"$f":"IF('1. Order'!J610=\"\",\"\",'1. Order'!J610)","v":""},{"$f":"IF('1. Order'!K610=\"\",\"\",'1. Order'!K610)","v":""},{"$f":"IF('1. Order'!L610=\"\",\"\",'1. Order'!L610)","v":""},{"$f":"IF('1. Order'!M610=\"\",\"\",'1. Order'!M610)","v":""},{"$f":"IF('1. Order'!N610=\"\",\"\",'1. Order'!N610)","v":""},{"$f":"IF('1. Order'!O610=\"\",\"\",'1. Order'!O610)","v":{"$error":"#N/A"}},{"$f":"IF('1. Order'!P610=\"\",\"\",'1. Order'!P610)","v":{"$error":"#N/A"}},{"$f":"IF('1. Order'!Q610=\"\",\"\",'1. Order'!Q610)","v":""},{"$f":"IF('1. Order'!S610=\"\",\"\",'1. Order'!S610)","v":""},{"$f":"IF('1. Order'!T610=\"\",\"\",'1. Order'!T610)","v":""},{"$f":"IF('1. Order'!W610=\"\",\"\",'1. Order'!W610)","v":""},{"$f":"IF('1. Order'!X610=\"\",\"\",'1. Order'!X610)","v":""},{"$f":"IF('1. Order'!Y610=\"\",\"\",'1. Order'!Y610)","v":"EUR"},{"$f":"IF('1. Order'!Z610=\"\",\"\",'1. Order'!Z610)","v":""},{"$f":"IF('1. Order'!AA610=\"\",\"\",'1. Order'!AA610)","v":""},{"$f":"IF('1. Order'!AB610=\"\",\"\",'1. Order'!AB610)","v":""},null,{"$f":"IF('1. Order'!AT610=\"\",\"\",'1. Order'!AT610)","v":""},{"$f":"IF('1. Order'!AU610=\"\",\"\",'1. Order'!AU610)","v":""},null,null,null,null,null,null,null,{"$f":"IF('1. Order'!AY610=\"\",\"\",'1. Order'!AY610)","v":""},{"$f":"IF('1. Order'!AZ610=\"\",\"\",'1. Order'!AZ610)","v":""},{"$f":"IF('1. Order'!BA610=\"\",\"\",'1. Order'!BA610)","v":""},{"$f":"IF('1. Order'!BB610=\"\",\"\",'1. Order'!BB610)","v":""},{"$f":"IF('1. Order'!BD610=\"\",\"\",'1. Order'!BD610)","v":""},{"$f":"IF('1. Order'!BE610=\"\",\"\",'1. Order'!BE610)","v":""},{"$f":"IF('1. Order'!BF610=\"\",\"\",'1. Order'!BF610)","v":""},{"$f":"IF('1. Order'!BG610=\"\",\"\",'1. Order'!BG610)","v":""},{"$f":"IF('1. Order'!BH610=\"\",\"\",'1. Order'!BH610)","v":"ZWO"}]
[{"$f":"IF('1. Order'!F611=\"\",\"\",'1. Order'!F611)","v":{"$error":"#N/A"}},{"$f":"IF('1. Order'!G611=\"\",\"\",'1. Order'!G611)","v":""},{"$f":"IF('1. Order'!H611=\"\",\"\",'1. Order'!H611)","v":""},{"$f":"IF('1. Order'!I611=\"\",\"\",'1. Order'!I611)","v":""},{"$f":"IF('1. Order'!J611=\"\",\"\",'1. Order'!J611)","v":""},{"$f":"IF('1. Order'!K611=\"\",\"\",'1. Order'!K611)","v":""},{"$f":"IF('1. Order'!L611=\"\",\"\",'1. Order'!L611)","v":""},{"$f":"IF('1. Order'!M611=\"\",\"\",'1. Order'!M611)","v":""},{"$f":"IF('1. Order'!N611=\"\",\"\",'1. Order'!N611)","v":""},{"$f":"IF('1. Order'!O611=\"\",\"\",'1. Order'!O611)","v":{"$error":"#N/A"}},{"$f":"IF('1. Order'!P611=\"\",\"\",'1. Order'!P611)","v":{"$error":"#N/A"}},{"$f":"IF('1. Order'!Q611=\"\",\"\",'1. Order'!Q611)","v":""},{"$f":"IF('1. Order'!S611=\"\",\"\",'1. Order'!S611)","v":""},{"$f":"IF('1. Order'!T611=\"\",\"\",'1. Order'!T611)","v":""},{"$f":"IF('1. Order'!W611=\"\",\"\",'1. Order'!W611)","v":""},{"$f":"IF('1. Order'!X611=\"\",\"\",'1. Order'!X611)","v":""},{"$f":"IF('1. Order'!Y611=\"\",\"\",'1. Order'!Y611)","v":"EUR"},{"$f":"IF('1. Order'!Z611=\"\",\"\",'1. Order'!Z611)","v":""},{"$f":"IF('1. Order'!AA611=\"\",\"\",'1. Order'!AA611)","v":""},{"$f":"IF('1. Order'!AB611=\"\",\"\",'1. Order'!AB611)","v":""},null,{"$f":"IF('1. Order'!AT611=\"\",\"\",'1. Order'!AT611)","v":""},{"$f":"IF('1. Order'!AU611=\"\",\"\",'1. Order'!AU611)","v":""},null,null,null,null,null,null,null,{"$f":"IF('1. Order'!AY611=\"\",\"\",'1. Order'!AY611)","v":""},{"$f":"IF('1. Order'!AZ611=\"\",\"\",'1. Order'!AZ611)","v":""},{"$f":"IF('1. Order'!BA611=\"\",\"\",'1. Order'!BA611)","v":""},{"$f":"IF('1. Order'!BB611=\"\",\"\",'1. Order'!BB611)","v":""},{"$f":"IF('1. Order'!BD611=\"\",\"\",'1. Order'!BD611)","v":""},{"$f":"IF('1. Order'!BE611=\"\",\"\",'1. Order'!BE611)","v":""},{"$f":"IF('1. Order'!BF611=\"\",\"\",'1. Order'!BF611)","v":""},{"$f":"IF('1. Order'!BG611=\"\",\"\",'1. Order'!BG611)","v":""},{"$f":"IF('1. Order'!BH611=\"\",\"\",'1. Order'!BH611)","v":"ZWO"}]
[{"$f":"IF('1. Order'!F612=\"\",\"\",'1. Order'!F612)","v":{"$error":"#N/A"}},{"$f":"IF('1. Order'!G612=\"\",\"\",'1. Order'!G612)","v":""},{"$f":"IF('1. Order'!H612=\"\",\"\",'1. Order'!H612)","v":""},{"$f":"IF('1. Order'!I612=\"\",\"\",'1. Order'!I612)","v":""},{"$f":"IF('1. Order'!J612=\"\",\"\",'1. Order'!J612)","v":""},{"$f":"IF('1. Order'!K612=\"\",\"\",'1. Order'!K612)","v":""},{"$f":"IF('1. Order'!L612=\"\",\"\",'1. Order'!L612)","v":""},{"$f":"IF('1. Order'!M612=\"\",\"\",'1. Order'!M612)","v":""},{"$f":"IF('1. Order'!N612=\"\",\"\",'1. Order'!N612)","v":""},{"$f":"IF('1. Order'!O612=\"\",\"\",'1. Order'!O612)","v":{"$error":"#N/A"}},{"$f":"IF('1. Order'!P612=\"\",\"\",'1. Order'!P612)","v":{"$error":"#N/A"}},{"$f":"IF('1. Order'!Q612=\"\",\"\",'1. Order'!Q612)","v":""},{"$f":"IF('1. Order'!S612=\"\",\"\",'1. Order'!S612)","v":""},{"$f":"IF('1. Order'!T612=\"\",\"\",'1. Order'!T612)","v":""},{"$f":"IF('1. Order'!W612=\"\",\"\",'1. Order'!W612)","v":""},{"$f":"IF('1. Order'!X612=\"\",\"\",'1. Order'!X612)","v":""},{"$f":"IF('1. Order'!Y612=\"\",\"\",'1. Order'!Y612)","v":"EUR"},{"$f":"IF('1. Order'!Z612=\"\",\"\",'1. Order'!Z612)","v":""},{"$f":"IF('1. Order'!AA612=\"\",\"\",'1. Order'!AA612)","v":""},{"$f":"IF('1. Order'!AB612=\"\",\"\",'1. Order'!AB612)","v":""},null,{"$f":"IF('1. Order'!AT612=\"\",\"\",'1. Order'!AT612)","v":""},{"$f":"IF('1. Order'!AU612=\"\",\"\",'1. Order'!AU612)","v":""},null,null,null,null,null,null,null,{"$f":"IF('1. Order'!AY612=\"\",\"\",'1. Order'!AY612)","v":""},{"$f":"IF('1. Order'!AZ612=\"\",\"\",'1. Order'!AZ612)","v":""},{"$f":"IF('1. Order'!BA612=\"\",\"\",'1. Order'!BA612)","v":""},{"$f":"IF('1. Order'!BB612=\"\",\"\",'1. Order'!BB612)","v":""},{"$f":"IF('1. Order'!BD612=\"\",\"\",'1. Order'!BD612)","v":""},{"$f":"IF('1. Order'!BE612=\"\",\"\",'1. Order'!BE612)","v":""},{"$f":"IF('1. Order'!BF612=\"\",\"\",'1. Order'!BF612)","v":""},{"$f":"IF('1. Order'!BG612=\"\",\"\",'1. Order'!BG612)","v":""},{"$f":"IF('1. Order'!BH612=\"\",\"\",'1. Order'!BH612)","v":"ZWO"}]
[{"$f":"IF('1. Order'!F613=\"\",\"\",'1. Order'!F613)","v":{"$error":"#N/A"}},{"$f":"IF('1. Order'!G613=\"\",\"\",'1. Order'!G613)","v":""},{"$f":"IF('1. Order'!H613=\"\",\"\",'1. Order'!H613)","v":""},{"$f":"IF('1. Order'!I613=\"\",\"\",'1. Order'!I613)","v":""},{"$f":"IF('1. Order'!J613=\"\",\"\",'1. Order'!J613)","v":""},{"$f":"IF('1. Order'!K613=\"\",\"\",'1. Order'!K613)","v":""},{"$f":"IF('1. Order'!L613=\"\",\"\",'1. Order'!L613)","v":""},{"$f":"IF('1. Order'!M613=\"\",\"\",'1. Order'!M613)","v":""},{"$f":"IF('1. Order'!N613=\"\",\"\",'1. Order'!N613)","v":""},{"$f":"IF('1. Order'!O613=\"\",\"\",'1. Order'!O613)","v":{"$error":"#N/A"}},{"$f":"IF('1. Order'!P613=\"\",\"\",'1. Order'!P613)","v":{"$error":"#N/A"}},{"$f":"IF('1. Order'!Q613=\"\",\"\",'1. Order'!Q613)","v":""},{"$f":"IF('1. Order'!S613=\"\",\"\",'1. Order'!S613)","v":""},{"$f":"IF('1. Order'!T613=\"\",\"\",'1. Order'!T613)","v":""},{"$f":"IF('1. Order'!W613=\"\",\"\",'1. Order'!W613)","v":""},{"$f":"IF('1. Order'!X613=\"\",\"\",'1. Order'!X613)","v":""},{"$f":"IF('1. Order'!Y613=\"\",\"\",'1. Order'!Y613)","v":"EUR"},{"$f":"IF('1. Order'!Z613=\"\",\"\",'1. Order'!Z613)","v":""},{"$f":"IF('1. Order'!AA613=\"\",\"\",'1. Order'!AA613)","v":""},{"$f":"IF('1. Order'!AB613=\"\",\"\",'1. Order'!AB613)","v":""},null,{"$f":"IF('1. Order'!AT613=\"\",\"\",'1. Order'!AT613)","v":""},{"$f":"IF('1. Order'!AU613=\"\",\"\",'1. Order'!AU613)","v":""},null,null,null,null,null,null,null,{"$f":"IF('1. Order'!AY613=\"\",\"\",'1. Order'!AY613)","v":""},{"$f":"IF('1. Order'!AZ613=\"\",\"\",'1. Order'!AZ613)","v":""},{"$f":"IF('1. Order'!BA613=\"\",\"\",'1. Order'!BA613)","v":""},{"$f":"IF('1. Order'!BB613=\"\",\"\",'1. Order'!BB613)","v":""},{"$f":"IF('1. Order'!BD613=\"\",\"\",'1. Order'!BD613)","v":""},{"$f":"IF('1. Order'!BE613=\"\",\"\",'1. Order'!BE613)","v":""},{"$f":"IF('1. Order'!BF613=\"\",\"\",'1. Order'!BF613)","v":""},{"$f":"IF('1. Order'!BG613=\"\",\"\",'1. Order'!BG613)","v":""},{"$f":"IF('1. Order'!BH613=\"\",\"\",'1. Order'!BH613)","v":"ZWO"}]
[{"$f":"IF('1. Order'!F614=\"\",\"\",'1. Order'!F614)","v":{"$error":"#N/A"}},{"$f":"IF('1. Order'!G614=\"\",\"\",'1. Order'!G614)","v":""},{"$f":"IF('1. Order'!H614=\"\",\"\",'1. Order'!H614)","v":""},{"$f":"IF('1. Order'!I614=\"\",\"\",'1. Order'!I614)","v":""},{"$f":"IF('1. Order'!J614=\"\",\"\",'1. Order'!J614)","v":""},{"$f":"IF('1. Order'!K614=\"\",\"\",'1. Order'!K614)","v":""},{"$f":"IF('1. Order'!L614=\"\",\"\",'1. Order'!L614)","v":""},{"$f":"IF('1. Order'!M614=\"\",\"\",'1. Order'!M614)","v":""},{"$f":"IF('1. Order'!N614=\"\",\"\",'1. Order'!N614)","v":""},{"$f":"IF('1. Order'!O614=\"\",\"\",'1. Order'!O614)","v":{"$error":"#N/A"}},{"$f":"IF('1. Order'!P614=\"\",\"\",'1. Order'!P614)","v":{"$error":"#N/A"}},{"$f":"IF('1. Order'!Q614=\"\",\"\",'1. Order'!Q614)","v":""},{"$f":"IF('1. Order'!S614=\"\",\"\",'1. Order'!S614)","v":""},{"$f":"IF('1. Order'!T614=\"\",\"\",'1. Order'!T614)","v":""},{"$f":"IF('1. Order'!W614=\"\",\"\",'1. Order'!W614)","v":""},{"$f":"IF('1. Order'!X614=\"\",\"\",'1. Order'!X614)","v":""},{"$f":"IF('1. Order'!Y614=\"\",\"\",'1. Order'!Y614)","v":"EUR"},{"$f":"IF('1. Order'!Z614=\"\",\"\",'1. Order'!Z614)","v":""},{"$f":"IF('1. Order'!AA614=\"\",\"\",'1. Order'!AA614)","v":""},{"$f":"IF('1. Order'!AB614=\"\",\"\",'1. Order'!AB614)","v":""},null,{"$f":"IF('1. Order'!AT614=\"\",\"\",'1. Order'!AT614)","v":""},{"$f":"IF('1. Order'!AU614=\"\",\"\",'1. Order'!AU614)","v":""},null,null,null,null,null,null,null,{"$f":"IF('1. Order'!AY614=\"\",\"\",'1. Order'!AY614)","v":""},{"$f":"IF('1. Order'!AZ614=\"\",\"\",'1. Order'!AZ614)","v":""},{"$f":"IF('1. Order'!BA614=\"\",\"\",'1. Order'!BA614)","v":""},{"$f":"IF('1. Order'!BB614=\"\",\"\",'1. Order'!BB614)","v":""},{"$f":"IF('1. Order'!BD614=\"\",\"\",'1. Order'!BD614)","v":""},{"$f":"IF('1. Order'!BE614=\"\",\"\",'1. Order'!BE614)","v":""},{"$f":"IF('1. Order'!BF614=\"\",\"\",'1. Order'!BF614)","v":""},{"$f":"IF('1. Order'!BG614=\"\",\"\",'1. Order'!BG614)","v":""},{"$f":"IF('1. Order'!BH614=\"\",\"\",'1. Order'!BH614)","v":"ZWO"}]
[{"$f":"IF('1. Order'!F615=\"\",\"\",'1. Order'!F615)","v":{"$error":"#N/A"}},{"$f":"IF('1. Order'!G615=\"\",\"\",'1. Order'!G615)","v":""},{"$f":"IF('1. Order'!H615=\"\",\"\",'1. Order'!H615)","v":""},{"$f":"IF('1. Order'!I615=\"\",\"\",'1. Order'!I615)","v":""},{"$f":"IF('1. Order'!J615=\"\",\"\",'1. Order'!J615)","v":""},{"$f":"IF('1. Order'!K615=\"\",\"\",'1. Order'!K615)","v":""},{"$f":"IF('1. Order'!L615=\"\",\"\",'1. Order'!L615)","v":""},{"$f":"IF('1. Order'!M615=\"\",\"\",'1. Order'!M615)","v":""},{"$f":"IF('1. Order'!N615=\"\",\"\",'1. Order'!N615)","v":""},{"$f":"IF('1. Order'!O615=\"\",\"\",'1. Order'!O615)","v":{"$error":"#N/A"}},{"$f":"IF('1. Order'!P615=\"\",\"\",'1. Order'!P615)","v":{"$error":"#N/A"}},{"$f":"IF('1. Order'!Q615=\"\",\"\",'1. Order'!Q615)","v":""},{"$f":"IF('1. Order'!S615=\"\",\"\",'1. Order'!S615)","v":""},{"$f":"IF('1. Order'!T615=\"\",\"\",'1. Order'!T615)","v":""},{"$f":"IF('1. Order'!W615=\"\",\"\",'1. Order'!W615)","v":""},{"$f":"IF('1. Order'!X615=\"\",\"\",'1. Order'!X615)","v":""},{"$f":"IF('1. Order'!Y615=\"\",\"\",'1. Order'!Y615)","v":"EUR"},{"$f":"IF('1. Order'!Z615=\"\",\"\",'1. Order'!Z615)","v":""},{"$f":"IF('1. Order'!AA615=\"\",\"\",'1. Order'!AA615)","v":""},{"$f":"IF('1. Order'!AB615=\"\",\"\",'1. Order'!AB615)","v":""},null,{"$f":"IF('1. Order'!AT615=\"\",\"\",'1. Order'!AT615)","v":""},{"$f":"IF('1. Order'!AU615=\"\",\"\",'1. Order'!AU615)","v":""},null,null,null,null,null,null,null,{"$f":"IF('1. Order'!AY615=\"\",\"\",'1. Order'!AY615)","v":""},{"$f":"IF('1. Order'!AZ615=\"\",\"\",'1. Order'!AZ615)","v":""},{"$f":"IF('1. Order'!BA615=\"\",\"\",'1. Order'!BA615)","v":""},{"$f":"IF('1. Order'!BB615=\"\",\"\",'1. Order'!BB615)","v":""},{"$f":"IF('1. Order'!BD615=\"\",\"\",'1. Order'!BD615)","v":""},{"$f":"IF('1. Order'!BE615=\"\",\"\",'1. Order'!BE615)","v":""},{"$f":"IF('1. Order'!BF615=\"\",\"\",'1. Order'!BF615)","v":""},{"$f":"IF('1. Order'!BG615=\"\",\"\",'1. Order'!BG615)","v":""},{"$f":"IF('1. Order'!BH615=\"\",\"\",'1. Order'!BH615)","v":"ZWO"}]
[{"$f":"IF('1. Order'!F616=\"\",\"\",'1. Order'!F616)","v":{"$error":"#N/A"}},{"$f":"IF('1. Order'!G616=\"\",\"\",'1. Order'!G616)","v":""},{"$f":"IF('1. Order'!H616=\"\",\"\",'1. Order'!H616)","v":""},{"$f":"IF('1. Order'!I616=\"\",\"\",'1. Order'!I616)","v":""},{"$f":"IF('1. Order'!J616=\"\",\"\",'1. Order'!J616)","v":""},{"$f":"IF('1. Order'!K616=\"\",\"\",'1. Order'!K616)","v":""},{"$f":"IF('1. Order'!L616=\"\",\"\",'1. Order'!L616)","v":""},{"$f":"IF('1. Order'!M616=\"\",\"\",'1. Order'!M616)","v":""},{"$f":"IF('1. Order'!N616=\"\",\"\",'1. Order'!N616)","v":""},{"$f":"IF('1. Order'!O616=\"\",\"\",'1. Order'!O616)","v":{"$error":"#N/A"}},{"$f":"IF('1. Order'!P616=\"\",\"\",'1. Order'!P616)","v":{"$error":"#N/A"}},{"$f":"IF('1. Order'!Q616=\"\",\"\",'1. Order'!Q616)","v":""},{"$f":"IF('1. Order'!S616=\"\",\"\",'1. Order'!S616)","v":""},{"$f":"IF('1. Order'!T616=\"\",\"\",'1. Order'!T616)","v":""},{"$f":"IF('1. Order'!W616=\"\",\"\",'1. Order'!W616)","v":""},{"$f":"IF('1. Order'!X616=\"\",\"\",'1. Order'!X616)","v":""},{"$f":"IF('1. Order'!Y616=\"\",\"\",'1. Order'!Y616)","v":"EUR"},{"$f":"IF('1. Order'!Z616=\"\",\"\",'1. Order'!Z616)","v":""},{"$f":"IF('1. Order'!AA616=\"\",\"\",'1. Order'!AA616)","v":""},{"$f":"IF('1. Order'!AB616=\"\",\"\",'1. Order'!AB616)","v":""},null,{"$f":"IF('1. Order'!AT616=\"\",\"\",'1. Order'!AT616)","v":""},{"$f":"IF('1. Order'!AU616=\"\",\"\",'1. Order'!AU616)","v":""},null,null,null,null,null,null,null,{"$f":"IF('1. Order'!AY616=\"\",\"\",'1. Order'!AY616)","v":""},{"$f":"IF('1. Order'!AZ616=\"\",\"\",'1. Order'!AZ616)","v":""},{"$f":"IF('1. Order'!BA616=\"\",\"\",'1. Order'!BA616)","v":""},{"$f":"IF('1. Order'!BB616=\"\",\"\",'1. Order'!BB616)","v":""},{"$f":"IF('1. Order'!BD616=\"\",\"\",'1. Order'!BD616)","v":""},{"$f":"IF('1. Order'!BE616=\"\",\"\",'1. Order'!BE616)","v":""},{"$f":"IF('1. Order'!BF616=\"\",\"\",'1. Order'!BF616)","v":""},{"$f":"IF('1. Order'!BG616=\"\",\"\",'1. Order'!BG616)","v":""},{"$f":"IF('1. Order'!BH616=\"\",\"\",'1. Order'!BH616)","v":"ZWO"}]
[{"$f":"IF('1. Order'!F617=\"\",\"\",'1. Order'!F617)","v":{"$error":"#N/A"}},{"$f":"IF('1. Order'!G617=\"\",\"\",'1. Order'!G617)","v":""},{"$f":"IF('1. Order'!H617=\"\",\"\",'1. Order'!H617)","v":""},{"$f":"IF('1. Order'!I617=\"\",\"\",'1. Order'!I617)","v":""},{"$f":"IF('1. Order'!J617=\"\",\"\",'1. Order'!J617)","v":""},{"$f":"IF('1. Order'!K617=\"\",\"\",'1. Order'!K617)","v":""},{"$f":"IF('1. Order'!L617=\"\",\"\",'1. Order'!L617)","v":""},{"$f":"IF('1. Order'!M617=\"\",\"\",'1. Order'!M617)","v":""},{"$f":"IF('1. Order'!N617=\"\",\"\",'1. Order'!N617)","v":""},{"$f":"IF('1. Order'!O617=\"\",\"\",'1. Order'!O617)","v":{"$error":"#N/A"}},{"$f":"IF('1. Order'!P617=\"\",\"\",'1. Order'!P617)","v":{"$error":"#N/A"}},{"$f":"IF('1. Order'!Q617=\"\",\"\",'1. Order'!Q617)","v":""},{"$f":"IF('1. Order'!S617=\"\",\"\",'1. Order'!S617)","v":""},{"$f":"IF('1. Order'!T617=\"\",\"\",'1. Order'!T617)","v":""},{"$f":"IF('1. Order'!W617=\"\",\"\",'1. Order'!W617)","v":""},{"$f":"IF('1. Order'!X617=\"\",\"\",'1. Order'!X617)","v":""},{"$f":"IF('1. Order'!Y617=\"\",\"\",'1. Order'!Y617)","v":"EUR"},{"$f":"IF('1. Order'!Z617=\"\",\"\",'1. Order'!Z617)","v":""},{"$f":"IF('1. Order'!AA617=\"\",\"\",'1. Order'!AA617)","v":""},{"$f":"IF('1. Order'!AB617=\"\",\"\",'1. Order'!AB617)","v":""},null,{"$f":"IF('1. Order'!AT617=\"\",\"\",'1. Order'!AT617)","v":""},{"$f":"IF('1. Order'!AU617=\"\",\"\",'1. Order'!AU617)","v":""},null,null,null,null,null,null,null,{"$f":"IF('1. Order'!AY617=\"\",\"\",'1. Order'!AY617)","v":""},{"$f":"IF('1. Order'!AZ617=\"\",\"\",'1. Order'!AZ617)","v":""},{"$f":"IF('1. Order'!BA617=\"\",\"\",'1. Order'!BA617)","v":""},{"$f":"IF('1. Order'!BB617=\"\",\"\",'1. Order'!BB617)","v":""},{"$f":"IF('1. Order'!BD617=\"\",\"\",'1. Order'!BD617)","v":""},{"$f":"IF('1. Order'!BE617=\"\",\"\",'1. Order'!BE617)","v":""},{"$f":"IF('1. Order'!BF617=\"\",\"\",'1. Order'!BF617)","v":""},{"$f":"IF('1. Order'!BG617=\"\",\"\",'1. Order'!BG617)","v":""},{"$f":"IF('1. Order'!BH617=\"\",\"\",'1. Order'!BH617)","v":"ZWO"}]
[{"$f":"IF('1. Order'!F618=\"\",\"\",'1. Order'!F618)","v":{"$error":"#N/A"}},{"$f":"IF('1. Order'!G618=\"\",\"\",'1. Order'!G618)","v":""},{"$f":"IF('1. Order'!H618=\"\",\"\",'1. Order'!H618)","v":""},{"$f":"IF('1. Order'!I618=\"\",\"\",'1. Order'!I618)","v":""},{"$f":"IF('1. Order'!J618=\"\",\"\",'1. Order'!J618)","v":""},{"$f":"IF('1. Order'!K618=\"\",\"\",'1. Order'!K618)","v":""},{"$f":"IF('1. Order'!L618=\"\",\"\",'1. Order'!L618)","v":""},{"$f":"IF('1. Order'!M618=\"\",\"\",'1. Order'!M618)","v":""},{"$f":"IF('1. Order'!N618=\"\",\"\",'1. Order'!N618)","v":""},{"$f":"IF('1. Order'!O618=\"\",\"\",'1. Order'!O618)","v":{"$error":"#N/A"}},{"$f":"IF('1. Order'!P618=\"\",\"\",'1. Order'!P618)","v":{"$error":"#N/A"}},{"$f":"IF('1. Order'!Q618=\"\",\"\",'1. Order'!Q618)","v":""},{"$f":"IF('1. Order'!S618=\"\",\"\",'1. Order'!S618)","v":""},{"$f":"IF('1. Order'!T618=\"\",\"\",'1. Order'!T618)","v":""},{"$f":"IF('1. Order'!W618=\"\",\"\",'1. Order'!W618)","v":""},{"$f":"IF('1. Order'!X618=\"\",\"\",'1. Order'!X618)","v":""},{"$f":"IF('1. Order'!Y618=\"\",\"\",'1. Order'!Y618)","v":"EUR"},{"$f":"IF('1. Order'!Z618=\"\",\"\",'1. Order'!Z618)","v":""},{"$f":"IF('1. Order'!AA618=\"\",\"\",'1. Order'!AA618)","v":""},{"$f":"IF('1. Order'!AB618=\"\",\"\",'1. Order'!AB618)","v":""},null,{"$f":"IF('1. Order'!AT618=\"\",\"\",'1. Order'!AT618)","v":""},{"$f":"IF('1. Order'!AU618=\"\",\"\",'1. Order'!AU618)","v":""},null,null,null,null,null,null,null,{"$f":"IF('1. Order'!AY618=\"\",\"\",'1. Order'!AY618)","v":""},{"$f":"IF('1. Order'!AZ618=\"\",\"\",'1. Order'!AZ618)","v":""},{"$f":"IF('1. Order'!BA618=\"\",\"\",'1. Order'!BA618)","v":""},{"$f":"IF('1. Order'!BB618=\"\",\"\",'1. Order'!BB618)","v":""},{"$f":"IF('1. Order'!BD618=\"\",\"\",'1. Order'!BD618)","v":""},{"$f":"IF('1. Order'!BE618=\"\",\"\",'1. Order'!BE618)","v":""},{"$f":"IF('1. Order'!BF618=\"\",\"\",'1. Order'!BF618)","v":""},{"$f":"IF('1. Order'!BG618=\"\",\"\",'1. Order'!BG618)","v":""},{"$f":"IF('1. Order'!BH618=\"\",\"\",'1. Order'!BH618)","v":"ZWO"}]
[{"$f":"IF('1. Order'!F619=\"\",\"\",'1. Order'!F619)","v":{"$error":"#N/A"}},{"$f":"IF('1. Order'!G619=\"\",\"\",'1. Order'!G619)","v":""},{"$f":"IF('1. Order'!H619=\"\",\"\",'1. Order'!H619)","v":""},{"$f":"IF('1. Order'!I619=\"\",\"\",'1. Order'!I619)","v":""},{"$f":"IF('1. Order'!J619=\"\",\"\",'1. Order'!J619)","v":""},{"$f":"IF('1. Order'!K619=\"\",\"\",'1. Order'!K619)","v":""},{"$f":"IF('1. Order'!L619=\"\",\"\",'1. Order'!L619)","v":""},{"$f":"IF('1. Order'!M619=\"\",\"\",'1. Order'!M619)","v":""},{"$f":"IF('1. Order'!N619=\"\",\"\",'1. Order'!N619)","v":""},{"$f":"IF('1. Order'!O619=\"\",\"\",'1. Order'!O619)","v":{"$error":"#N/A"}},{"$f":"IF('1. Order'!P619=\"\",\"\",'1. Order'!P619)","v":{"$error":"#N/A"}},{"$f":"IF('1. Order'!Q619=\"\",\"\",'1. Order'!Q619)","v":""},{"$f":"IF('1. Order'!S619=\"\",\"\",'1. Order'!S619)","v":""},{"$f":"IF('1. Order'!T619=\"\",\"\",'1. Order'!T619)","v":""},{"$f":"IF('1. Order'!W619=\"\",\"\",'1. Order'!W619)","v":""},{"$f":"IF('1. Order'!X619=\"\",\"\",'1. Order'!X619)","v":""},{"$f":"IF('1. Order'!Y619=\"\",\"\",'1. Order'!Y619)","v":"EUR"},{"$f":"IF('1. Order'!Z619=\"\",\"\",'1. Order'!Z619)","v":""},{"$f":"IF('1. Order'!AA619=\"\",\"\",'1. Order'!AA619)","v":""},{"$f":"IF('1. Order'!AB619=\"\",\"\",'1. Order'!AB619)","v":""},null,{"$f":"IF('1. Order'!AT619=\"\",\"\",'1. Order'!AT619)","v":""},{"$f":"IF('1. Order'!AU619=\"\",\"\",'1. Order'!AU619)","v":""},null,null,null,null,null,null,null,{"$f":"IF('1. Order'!AY619=\"\",\"\",'1. Order'!AY619)","v":""},{"$f":"IF('1. Order'!AZ619=\"\",\"\",'1. Order'!AZ619)","v":""},{"$f":"IF('1. Order'!BA619=\"\",\"\",'1. Order'!BA619)","v":""},{"$f":"IF('1. Order'!BB619=\"\",\"\",'1. Order'!BB619)","v":""},{"$f":"IF('1. Order'!BD619=\"\",\"\",'1. Order'!BD619)","v":""},{"$f":"IF('1. Order'!BE619=\"\",\"\",'1. Order'!BE619)","v":""},{"$f":"IF('1. Order'!BF619=\"\",\"\",'1. Order'!BF619)","v":""},{"$f":"IF('1. Order'!BG619=\"\",\"\",'1. Order'!BG619)","v":""},{"$f":"IF('1. Order'!BH619=\"\",\"\",'1. Order'!BH619)","v":"ZWO"}]
[{"$f":"IF('1. Order'!F620=\"\",\"\",'1. Order'!F620)","v":{"$error":"#N/A"}},{"$f":"IF('1. Order'!G620=\"\",\"\",'1. Order'!G620)","v":""},{"$f":"IF('1. Order'!H620=\"\",\"\",'1. Order'!H620)","v":""},{"$f":"IF('1. Order'!I620=\"\",\"\",'1. Order'!I620)","v":""},{"$f":"IF('1. Order'!J620=\"\",\"\",'1. Order'!J620)","v":""},{"$f":"IF('1. Order'!K620=\"\",\"\",'1. Order'!K620)","v":""},{"$f":"IF('1. Order'!L620=\"\",\"\",'1. Order'!L620)","v":""},{"$f":"IF('1. Order'!M620=\"\",\"\",'1. Order'!M620)","v":""},{"$f":"IF('1. Order'!N620=\"\",\"\",'1. Order'!N620)","v":""},{"$f":"IF('1. Order'!O620=\"\",\"\",'1. Order'!O620)","v":{"$error":"#N/A"}},{"$f":"IF('1. Order'!P620=\"\",\"\",'1. Order'!P620)","v":{"$error":"#N/A"}},{"$f":"IF('1. Order'!Q620=\"\",\"\",'1. Order'!Q620)","v":""},{"$f":"IF('1. Order'!S620=\"\",\"\",'1. Order'!S620)","v":""},{"$f":"IF('1. Order'!T620=\"\",\"\",'1. Order'!T620)","v":""},{"$f":"IF('1. Order'!W620=\"\",\"\",'1. Order'!W620)","v":""},{"$f":"IF('1. Order'!X620=\"\",\"\",'1. Order'!X620)","v":""},{"$f":"IF('1. Order'!Y620=\"\",\"\",'1. Order'!Y620)","v":"EUR"},{"$f":"IF('1. Order'!Z620=\"\",\"\",'1. Order'!Z620)","v":""},{"$f":"IF('1. Order'!AA620=\"\",\"\",'1. Order'!AA620)","v":""},{"$f":"IF('1. Order'!AB620=\"\",\"\",'1. Order'!AB620)","v":""},null,{"$f":"IF('1. Order'!AT620=\"\",\"\",'1. Order'!AT620)","v":""},{"$f":"IF('1. Order'!AU620=\"\",\"\",'1. Order'!AU620)","v":""},null,null,null,null,null,null,null,{"$f":"IF('1. Order'!AY620=\"\",\"\",'1. Order'!AY620)","v":""},{"$f":"IF('1. Order'!AZ620=\"\",\"\",'1. Order'!AZ620)","v":""},{"$f":"IF('1. Order'!BA620=\"\",\"\",'1. Order'!BA620)","v":""},{"$f":"IF('1. Order'!BB620=\"\",\"\",'1. Order'!BB620)","v":""},{"$f":"IF('1. Order'!BD620=\"\",\"\",'1. Order'!BD620)","v":""},{"$f":"IF('1. Order'!BE620=\"\",\"\",'1. Order'!BE620)","v":""},{"$f":"IF('1. Order'!BF620=\"\",\"\",'1. Order'!BF620)","v":""},{"$f":"IF('1. Order'!BG620=\"\",\"\",'1. Order'!BG620)","v":""},{"$f":"IF('1. Order'!BH620=\"\",\"\",'1. Order'!BH620)","v":"ZWO"}]
[{"$f":"IF('1. Order'!F621=\"\",\"\",'1. Order'!F621)","v":{"$error":"#N/A"}},{"$f":"IF('1. Order'!G621=\"\",\"\",'1. Order'!G621)","v":""},{"$f":"IF('1. Order'!H621=\"\",\"\",'1. Order'!H621)","v":""},{"$f":"IF('1. Order'!I621=\"\",\"\",'1. Order'!I621)","v":""},{"$f":"IF('1. Order'!J621=\"\",\"\",'1. Order'!J621)","v":""},{"$f":"IF('1. Order'!K621=\"\",\"\",'1. Order'!K621)","v":""},{"$f":"IF('1. Order'!L621=\"\",\"\",'1. Order'!L621)","v":""},{"$f":"IF('1. Order'!M621=\"\",\"\",'1. Order'!M621)","v":""},{"$f":"IF('1. Order'!N621=\"\",\"\",'1. Order'!N621)","v":""},{"$f":"IF('1. Order'!O621=\"\",\"\",'1. Order'!O621)","v":{"$error":"#N/A"}},{"$f":"IF('1. Order'!P621=\"\",\"\",'1. Order'!P621)","v":{"$error":"#N/A"}},{"$f":"IF('1. Order'!Q621=\"\",\"\",'1. Order'!Q621)","v":""},{"$f":"IF('1. Order'!S621=\"\",\"\",'1. Order'!S621)","v":""},{"$f":"IF('1. Order'!T621=\"\",\"\",'1. Order'!T621)","v":""},{"$f":"IF('1. Order'!W621=\"\",\"\",'1. Order'!W621)","v":""},{"$f":"IF('1. Order'!X621=\"\",\"\",'1. Order'!X621)","v":""},{"$f":"IF('1. Order'!Y621=\"\",\"\",'1. Order'!Y621)","v":"EUR"},{"$f":"IF('1. Order'!Z621=\"\",\"\",'1. Order'!Z621)","v":""},{"$f":"IF('1. Order'!AA621=\"\",\"\",'1. Order'!AA621)","v":""},{"$f":"IF('1. Order'!AB621=\"\",\"\",'1. Order'!AB621)","v":""},null,{"$f":"IF('1. Order'!AT621=\"\",\"\",'1. Order'!AT621)","v":""},{"$f":"IF('1. Order'!AU621=\"\",\"\",'1. Order'!AU621)","v":""},null,null,null,null,null,null,null,{"$f":"IF('1. Order'!AY621=\"\",\"\",'1. Order'!AY621)","v":""},{"$f":"IF('1. Order'!AZ621=\"\",\"\",'1. Order'!AZ621)","v":""},{"$f":"IF('1. Order'!BA621=\"\",\"\",'1. Order'!BA621)","v":""},{"$f":"IF('1. Order'!BB621=\"\",\"\",'1. Order'!BB621)","v":""},{"$f":"IF('1. Order'!BD621=\"\",\"\",'1. Order'!BD621)","v":""},{"$f":"IF('1. Order'!BE621=\"\",\"\",'1. Order'!BE621)","v":""},{"$f":"IF('1. Order'!BF621=\"\",\"\",'1. Order'!BF621)","v":""},{"$f":"IF('1. Order'!BG621=\"\",\"\",'1. Order'!BG621)","v":""},{"$f":"IF('1. Order'!BH621=\"\",\"\",'1. Order'!BH621)","v":"ZWO"}]
[{"$f":"IF('1. Order'!F622=\"\",\"\",'1. Order'!F622)","v":{"$error":"#N/A"}},{"$f":"IF('1. Order'!G622=\"\",\"\",'1. Order'!G622)","v":""},{"$f":"IF('1. Order'!H622=\"\",\"\",'1. Order'!H622)","v":""},{"$f":"IF('1. Order'!I622=\"\",\"\",'1. Order'!I622)","v":""},{"$f":"IF('1. Order'!J622=\"\",\"\",'1. Order'!J622)","v":""},{"$f":"IF('1. Order'!K622=\"\",\"\",'1. Order'!K622)","v":""},{"$f":"IF('1. Order'!L622=\"\",\"\",'1. Order'!L622)","v":""},{"$f":"IF('1. Order'!M622=\"\",\"\",'1. Order'!M622)","v":""},{"$f":"IF('1. Order'!N622=\"\",\"\",'1. Order'!N622)","v":""},{"$f":"IF('1. Order'!O622=\"\",\"\",'1. Order'!O622)","v":{"$error":"#N/A"}},{"$f":"IF('1. Order'!P622=\"\",\"\",'1. Order'!P622)","v":{"$error":"#N/A"}},{"$f":"IF('1. Order'!Q622=\"\",\"\",'1. Order'!Q622)","v":""},{"$f":"IF('1. Order'!S622=\"\",\"\",'1. Order'!S622)","v":""},{"$f":"IF('1. Order'!T622=\"\",\"\",'1. Order'!T622)","v":""},{"$f":"IF('1. Order'!W622=\"\",\"\",'1. Order'!W622)","v":""},{"$f":"IF('1. Order'!X622=\"\",\"\",'1. Order'!X622)","v":""},{"$f":"IF('1. Order'!Y622=\"\",\"\",'1. Order'!Y622)","v":"EUR"},{"$f":"IF('1. Order'!Z622=\"\",\"\",'1. Order'!Z622)","v":""},{"$f":"IF('1. Order'!AA622=\"\",\"\",'1. Order'!AA622)","v":""},{"$f":"IF('1. Order'!AB622=\"\",\"\",'1. Order'!AB622)","v":""},null,{"$f":"IF('1. Order'!AT622=\"\",\"\",'1. Order'!AT622)","v":""},{"$f":"IF('1. Order'!AU622=\"\",\"\",'1. Order'!AU622)","v":""},null,null,null,null,null,null,null,{"$f":"IF('1. Order'!AY622=\"\",\"\",'1. Order'!AY622)","v":""},{"$f":"IF('1. Order'!AZ622=\"\",\"\",'1. Order'!AZ622)","v":""},{"$f":"IF('1. Order'!BA622=\"\",\"\",'1. Order'!BA622)","v":""},{"$f":"IF('1. Order'!BB622=\"\",\"\",'1. Order'!BB622)","v":""},{"$f":"IF('1. Order'!BD622=\"\",\"\",'1. Order'!BD622)","v":""},{"$f":"IF('1. Order'!BE622=\"\",\"\",'1. Order'!BE622)","v":""},{"$f":"IF('1. Order'!BF622=\"\",\"\",'1. Order'!BF622)","v":""},{"$f":"IF('1. Order'!BG622=\"\",\"\",'1. Order'!BG622)","v":""},{"$f":"IF('1. Order'!BH622=\"\",\"\",'1. Order'!BH622)","v":"ZWO"}]
[{"$f":"IF('1. Order'!F623=\"\",\"\",'1. Order'!F623)","v":{"$error":"#N/A"}},{"$f":"IF('1. Order'!G623=\"\",\"\",'1. Order'!G623)","v":""},{"$f":"IF('1. Order'!H623=\"\",\"\",'1. Order'!H623)","v":""},{"$f":"IF('1. Order'!I623=\"\",\"\",'1. Order'!I623)","v":""},{"$f":"IF('1. Order'!J623=\"\",\"\",'1. Order'!J623)","v":""},{"$f":"IF('1. Order'!K623=\"\",\"\",'1. Order'!K623)","v":""},{"$f":"IF('1. Order'!L623=\"\",\"\",'1. Order'!L623)","v":""},{"$f":"IF('1. Order'!M623=\"\",\"\",'1. Order'!M623)","v":""},{"$f":"IF('1. Order'!N623=\"\",\"\",'1. Order'!N623)","v":""},{"$f":"IF('1. Order'!O623=\"\",\"\",'1. Order'!O623)","v":{"$error":"#N/A"}},{"$f":"IF('1. Order'!P623=\"\",\"\",'1. Order'!P623)","v":{"$error":"#N/A"}},{"$f":"IF('1. Order'!Q623=\"\",\"\",'1. Order'!Q623)","v":""},{"$f":"IF('1. Order'!S623=\"\",\"\",'1. Order'!S623)","v":""},{"$f":"IF('1. Order'!T623=\"\",\"\",'1. Order'!T623)","v":""},{"$f":"IF('1. Order'!W623=\"\",\"\",'1. Order'!W623)","v":""},{"$f":"IF('1. Order'!X623=\"\",\"\",'1. Order'!X623)","v":""},{"$f":"IF('1. Order'!Y623=\"\",\"\",'1. Order'!Y623)","v":"EUR"},{"$f":"IF('1. Order'!Z623=\"\",\"\",'1. Order'!Z623)","v":""},{"$f":"IF('1. Order'!AA623=\"\",\"\",'1. Order'!AA623)","v":""},{"$f":"IF('1. Order'!AB623=\"\",\"\",'1. Order'!AB623)","v":""},null,{"$f":"IF('1. Order'!AT623=\"\",\"\",'1. Order'!AT623)","v":""},{"$f":"IF('1. Order'!AU623=\"\",\"\",'1. Order'!AU623)","v":""},null,null,null,null,null,null,null,{"$f":"IF('1. Order'!AY623=\"\",\"\",'1. Order'!AY623)","v":""},{"$f":"IF('1. Order'!AZ623=\"\",\"\",'1. Order'!AZ623)","v":""},{"$f":"IF('1. Order'!BA623=\"\",\"\",'1. Order'!BA623)","v":""},{"$f":"IF('1. Order'!BB623=\"\",\"\",'1. Order'!BB623)","v":""},{"$f":"IF('1. Order'!BD623=\"\",\"\",'1. Order'!BD623)","v":""},{"$f":"IF('1. Order'!BE623=\"\",\"\",'1. Order'!BE623)","v":""},{"$f":"IF('1. Order'!BF623=\"\",\"\",'1. Order'!BF623)","v":""},{"$f":"IF('1. Order'!BG623=\"\",\"\",'1. Order'!BG623)","v":""},{"$f":"IF('1. Order'!BH623=\"\",\"\",'1. Order'!BH623)","v":"ZWO"}]
[{"$f":"IF('1. Order'!F624=\"\",\"\",'1. Order'!F624)","v":{"$error":"#N/A"}},{"$f":"IF('1. Order'!G624=\"\",\"\",'1. Order'!G624)","v":""},{"$f":"IF('1. Order'!H624=\"\",\"\",'1. Order'!H624)","v":""},{"$f":"IF('1. Order'!I624=\"\",\"\",'1. Order'!I624)","v":""},{"$f":"IF('1. Order'!J624=\"\",\"\",'1. Order'!J624)","v":""},{"$f":"IF('1. Order'!K624=\"\",\"\",'1. Order'!K624)","v":""},{"$f":"IF('1. Order'!L624=\"\",\"\",'1. Order'!L624)","v":""},{"$f":"IF('1. Order'!M624=\"\",\"\",'1. Order'!M624)","v":""},{"$f":"IF('1. Order'!N624=\"\",\"\",'1. Order'!N624)","v":""},{"$f":"IF('1. Order'!O624=\"\",\"\",'1. Order'!O624)","v":{"$error":"#N/A"}},{"$f":"IF('1. Order'!P624=\"\",\"\",'1. Order'!P624)","v":{"$error":"#N/A"}},{"$f":"IF('1. Order'!Q624=\"\",\"\",'1. Order'!Q624)","v":""},{"$f":"IF('1. Order'!S624=\"\",\"\",'1. Order'!S624)","v":""},{"$f":"IF('1. Order'!T624=\"\",\"\",'1. Order'!T624)","v":""},{"$f":"IF('1. Order'!W624=\"\",\"\",'1. Order'!W624)","v":""},{"$f":"IF('1. Order'!X624=\"\",\"\",'1. Order'!X624)","v":""},{"$f":"IF('1. Order'!Y624=\"\",\"\",'1. Order'!Y624)","v":"EUR"},{"$f":"IF('1. Order'!Z624=\"\",\"\",'1. Order'!Z624)","v":""},{"$f":"IF('1. Order'!AA624=\"\",\"\",'1. Order'!AA624)","v":""},{"$f":"IF('1. Order'!AB624=\"\",\"\",'1. Order'!AB624)","v":""},null,{"$f":"IF('1. Order'!AT624=\"\",\"\",'1. Order'!AT624)","v":""},{"$f":"IF('1. Order'!AU624=\"\",\"\",'1. Order'!AU624)","v":""},null,null,null,null,null,null,null,{"$f":"IF('1. Order'!AY624=\"\",\"\",'1. Order'!AY624)","v":""},{"$f":"IF('1. Order'!AZ624=\"\",\"\",'1. Order'!AZ624)","v":""},{"$f":"IF('1. Order'!BA624=\"\",\"\",'1. Order'!BA624)","v":""},{"$f":"IF('1. Order'!BB624=\"\",\"\",'1. Order'!BB624)","v":""},{"$f":"IF('1. Order'!BD624=\"\",\"\",'1. Order'!BD624)","v":""},{"$f":"IF('1. Order'!BE624=\"\",\"\",'1. Order'!BE624)","v":""},{"$f":"IF('1. Order'!BF624=\"\",\"\",'1. Order'!BF624)","v":""},{"$f":"IF('1. Order'!BG624=\"\",\"\",'1. Order'!BG624)","v":""},{"$f":"IF('1. Order'!BH624=\"\",\"\",'1. Order'!BH624)","v":"ZWO"}]
[{"$f":"IF('1. Order'!F625=\"\",\"\",'1. Order'!F625)","v":{"$error":"#N/A"}},{"$f":"IF('1. Order'!G625=\"\",\"\",'1. Order'!G625)","v":""},{"$f":"IF('1. Order'!H625=\"\",\"\",'1. Order'!H625)","v":""},{"$f":"IF('1. Order'!I625=\"\",\"\",'1. Order'!I625)","v":""},{"$f":"IF('1. Order'!J625=\"\",\"\",'1. Order'!J625)","v":""},{"$f":"IF('1. Order'!K625=\"\",\"\",'1. Order'!K625)","v":""},{"$f":"IF('1. Order'!L625=\"\",\"\",'1. Order'!L625)","v":""},{"$f":"IF('1. Order'!M625=\"\",\"\",'1. Order'!M625)","v":""},{"$f":"IF('1. Order'!N625=\"\",\"\",'1. Order'!N625)","v":""},{"$f":"IF('1. Order'!O625=\"\",\"\",'1. Order'!O625)","v":{"$error":"#N/A"}},{"$f":"IF('1. Order'!P625=\"\",\"\",'1. Order'!P625)","v":{"$error":"#N/A"}},{"$f":"IF('1. Order'!Q625=\"\",\"\",'1. Order'!Q625)","v":""},{"$f":"IF('1. Order'!S625=\"\",\"\",'1. Order'!S625)","v":""},{"$f":"IF('1. Order'!T625=\"\",\"\",'1. Order'!T625)","v":""},{"$f":"IF('1. Order'!W625=\"\",\"\",'1. Order'!W625)","v":""},{"$f":"IF('1. Order'!X625=\"\",\"\",'1. Order'!X625)","v":""},{"$f":"IF('1. Order'!Y625=\"\",\"\",'1. Order'!Y625)","v":"EUR"},{"$f":"IF('1. Order'!Z625=\"\",\"\",'1. Order'!Z625)","v":""},{"$f":"IF('1. Order'!AA625=\"\",\"\",'1. Order'!AA625)","v":""},{"$f":"IF('1. Order'!AB625=\"\",\"\",'1. Order'!AB625)","v":""},null,{"$f":"IF('1. Order'!AT625=\"\",\"\",'1. Order'!AT625)","v":""},{"$f":"IF('1. Order'!AU625=\"\",\"\",'1. Order'!AU625)","v":""},null,null,null,null,null,null,null,{"$f":"IF('1. Order'!AY625=\"\",\"\",'1. Order'!AY625)","v":""},{"$f":"IF('1. Order'!AZ625=\"\",\"\",'1. Order'!AZ625)","v":""},{"$f":"IF('1. Order'!BA625=\"\",\"\",'1. Order'!BA625)","v":""},{"$f":"IF('1. Order'!BB625=\"\",\"\",'1. Order'!BB625)","v":""},{"$f":"IF('1. Order'!BD625=\"\",\"\",'1. Order'!BD625)","v":""},{"$f":"IF('1. Order'!BE625=\"\",\"\",'1. Order'!BE625)","v":""},{"$f":"IF('1. Order'!BF625=\"\",\"\",'1. Order'!BF625)","v":""},{"$f":"IF('1. Order'!BG625=\"\",\"\",'1. Order'!BG625)","v":""},{"$f":"IF('1. Order'!BH625=\"\",\"\",'1. Order'!BH625)","v":"ZWO"}]
[{"$f":"IF('1. Order'!F626=\"\",\"\",'1. Order'!F626)","v":{"$error":"#N/A"}},{"$f":"IF('1. Order'!G626=\"\",\"\",'1. Order'!G626)","v":""},{"$f":"IF('1. Order'!H626=\"\",\"\",'1. Order'!H626)","v":""},{"$f":"IF('1. Order'!I626=\"\",\"\",'1. Order'!I626)","v":""},{"$f":"IF('1. Order'!J626=\"\",\"\",'1. Order'!J626)","v":""},{"$f":"IF('1. Order'!K626=\"\",\"\",'1. Order'!K626)","v":""},{"$f":"IF('1. Order'!L626=\"\",\"\",'1. Order'!L626)","v":""},{"$f":"IF('1. Order'!M626=\"\",\"\",'1. Order'!M626)","v":""},{"$f":"IF('1. Order'!N626=\"\",\"\",'1. Order'!N626)","v":""},{"$f":"IF('1. Order'!O626=\"\",\"\",'1. Order'!O626)","v":{"$error":"#N/A"}},{"$f":"IF('1. Order'!P626=\"\",\"\",'1. Order'!P626)","v":{"$error":"#N/A"}},{"$f":"IF('1. Order'!Q626=\"\",\"\",'1. Order'!Q626)","v":""},{"$f":"IF('1. Order'!S626=\"\",\"\",'1. Order'!S626)","v":""},{"$f":"IF('1. Order'!T626=\"\",\"\",'1. Order'!T626)","v":""},{"$f":"IF('1. Order'!W626=\"\",\"\",'1. Order'!W626)","v":""},{"$f":"IF('1. Order'!X626=\"\",\"\",'1. Order'!X626)","v":""},{"$f":"IF('1. Order'!Y626=\"\",\"\",'1. Order'!Y626)","v":"EUR"},{"$f":"IF('1. Order'!Z626=\"\",\"\",'1. Order'!Z626)","v":""},{"$f":"IF('1. Order'!AA626=\"\",\"\",'1. Order'!AA626)","v":""},{"$f":"IF('1. Order'!AB626=\"\",\"\",'1. Order'!AB626)","v":""},null,{"$f":"IF('1. Order'!AT626=\"\",\"\",'1. Order'!AT626)","v":""},{"$f":"IF('1. Order'!AU626=\"\",\"\",'1. Order'!AU626)","v":""},null,null,null,null,null,null,null,{"$f":"IF('1. Order'!AY626=\"\",\"\",'1. Order'!AY626)","v":""},{"$f":"IF('1. Order'!AZ626=\"\",\"\",'1. Order'!AZ626)","v":""},{"$f":"IF('1. Order'!BA626=\"\",\"\",'1. Order'!BA626)","v":""},{"$f":"IF('1. Order'!BB626=\"\",\"\",'1. Order'!BB626)","v":""},{"$f":"IF('1. Order'!BD626=\"\",\"\",'1. Order'!BD626)","v":""},{"$f":"IF('1. Order'!BE626=\"\",\"\",'1. Order'!BE626)","v":""},{"$f":"IF('1. Order'!BF626=\"\",\"\",'1. Order'!BF626)","v":""},{"$f":"IF('1. Order'!BG626=\"\",\"\",'1. Order'!BG626)","v":""},{"$f":"IF('1. Order'!BH626=\"\",\"\",'1. Order'!BH626)","v":"ZWO"}]
[{"$f":"IF('1. Order'!F627=\"\",\"\",'1. Order'!F627)","v":{"$error":"#N/A"}},{"$f":"IF('1. Order'!G627=\"\",\"\",'1. Order'!G627)","v":""},{"$f":"IF('1. Order'!H627=\"\",\"\",'1. Order'!H627)","v":""},{"$f":"IF('1. Order'!I627=\"\",\"\",'1. Order'!I627)","v":""},{"$f":"IF('1. Order'!J627=\"\",\"\",'1. Order'!J627)","v":""},{"$f":"IF('1. Order'!K627=\"\",\"\",'1. Order'!K627)","v":""},{"$f":"IF('1. Order'!L627=\"\",\"\",'1. Order'!L627)","v":""},{"$f":"IF('1. Order'!M627=\"\",\"\",'1. Order'!M627)","v":""},{"$f":"IF('1. Order'!N627=\"\",\"\",'1. Order'!N627)","v":""},{"$f":"IF('1. Order'!O627=\"\",\"\",'1. Order'!O627)","v":{"$error":"#N/A"}},{"$f":"IF('1. Order'!P627=\"\",\"\",'1. Order'!P627)","v":{"$error":"#N/A"}},{"$f":"IF('1. Order'!Q627=\"\",\"\",'1. Order'!Q627)","v":""},{"$f":"IF('1. Order'!S627=\"\",\"\",'1. Order'!S627)","v":""},{"$f":"IF('1. Order'!T627=\"\",\"\",'1. Order'!T627)","v":""},{"$f":"IF('1. Order'!W627=\"\",\"\",'1. Order'!W627)","v":""},{"$f":"IF('1. Order'!X627=\"\",\"\",'1. Order'!X627)","v":""},{"$f":"IF('1. Order'!Y627=\"\",\"\",'1. Order'!Y627)","v":"EUR"},{"$f":"IF('1. Order'!Z627=\"\",\"\",'1. Order'!Z627)","v":""},{"$f":"IF('1. Order'!AA627=\"\",\"\",'1. Order'!AA627)","v":""},{"$f":"IF('1. Order'!AB627=\"\",\"\",'1. Order'!AB627)","v":""},null,{"$f":"IF('1. Order'!AT627=\"\",\"\",'1. Order'!AT627)","v":""},{"$f":"IF('1. Order'!AU627=\"\",\"\",'1. Order'!AU627)","v":""},null,null,null,null,null,null,null,{"$f":"IF('1. Order'!AY627=\"\",\"\",'1. Order'!AY627)","v":""},{"$f":"IF('1. Order'!AZ627=\"\",\"\",'1. Order'!AZ627)","v":""},{"$f":"IF('1. Order'!BA627=\"\",\"\",'1. Order'!BA627)","v":""},{"$f":"IF('1. Order'!BB627=\"\",\"\",'1. Order'!BB627)","v":""},{"$f":"IF('1. Order'!BD627=\"\",\"\",'1. Order'!BD627)","v":""},{"$f":"IF('1. Order'!BE627=\"\",\"\",'1. Order'!BE627)","v":""},{"$f":"IF('1. Order'!BF627=\"\",\"\",'1. Order'!BF627)","v":""},{"$f":"IF('1. Order'!BG627=\"\",\"\",'1. Order'!BG627)","v":""},{"$f":"IF('1. Order'!BH627=\"\",\"\",'1. Order'!BH627)","v":"ZWO"}]
[{"$f":"IF('1. Order'!F628=\"\",\"\",'1. Order'!F628)","v":{"$error":"#N/A"}},{"$f":"IF('1. Order'!G628=\"\",\"\",'1. Order'!G628)","v":""},{"$f":"IF('1. Order'!H628=\"\",\"\",'1. Order'!H628)","v":""},{"$f":"IF('1. Order'!I628=\"\",\"\",'1. Order'!I628)","v":""},{"$f":"IF('1. Order'!J628=\"\",\"\",'1. Order'!J628)","v":""},{"$f":"IF('1. Order'!K628=\"\",\"\",'1. Order'!K628)","v":""},{"$f":"IF('1. Order'!L628=\"\",\"\",'1. Order'!L628)","v":""},{"$f":"IF('1. Order'!M628=\"\",\"\",'1. Order'!M628)","v":""},{"$f":"IF('1. Order'!N628=\"\",\"\",'1. Order'!N628)","v":""},{"$f":"IF('1. Order'!O628=\"\",\"\",'1. Order'!O628)","v":{"$error":"#N/A"}},{"$f":"IF('1. Order'!P628=\"\",\"\",'1. Order'!P628)","v":{"$error":"#N/A"}},{"$f":"IF('1. Order'!Q628=\"\",\"\",'1. Order'!Q628)","v":""},{"$f":"IF('1. Order'!S628=\"\",\"\",'1. Order'!S628)","v":""},{"$f":"IF('1. Order'!T628=\"\",\"\",'1. Order'!T628)","v":""},{"$f":"IF('1. Order'!W628=\"\",\"\",'1. Order'!W628)","v":""},{"$f":"IF('1. Order'!X628=\"\",\"\",'1. Order'!X628)","v":""},{"$f":"IF('1. Order'!Y628=\"\",\"\",'1. Order'!Y628)","v":"EUR"},{"$f":"IF('1. Order'!Z628=\"\",\"\",'1. Order'!Z628)","v":""},{"$f":"IF('1. Order'!AA628=\"\",\"\",'1. Order'!AA628)","v":""},{"$f":"IF('1. Order'!AB628=\"\",\"\",'1. Order'!AB628)","v":""},null,{"$f":"IF('1. Order'!AT628=\"\",\"\",'1. Order'!AT628)","v":""},{"$f":"IF('1. Order'!AU628=\"\",\"\",'1. Order'!AU628)","v":""},null,null,null,null,null,null,null,{"$f":"IF('1. Order'!AY628=\"\",\"\",'1. Order'!AY628)","v":""},{"$f":"IF('1. Order'!AZ628=\"\",\"\",'1. Order'!AZ628)","v":""},{"$f":"IF('1. Order'!BA628=\"\",\"\",'1. Order'!BA628)","v":""},{"$f":"IF('1. Order'!BB628=\"\",\"\",'1. Order'!BB628)","v":""},{"$f":"IF('1. Order'!BD628=\"\",\"\",'1. Order'!BD628)","v":""},{"$f":"IF('1. Order'!BE628=\"\",\"\",'1. Order'!BE628)","v":""},{"$f":"IF('1. Order'!BF628=\"\",\"\",'1. Order'!BF628)","v":""},{"$f":"IF('1. Order'!BG628=\"\",\"\",'1. Order'!BG628)","v":""},{"$f":"IF('1. Order'!BH628=\"\",\"\",'1. Order'!BH628)","v":"ZWO"}]
[{"$f":"IF('1. Order'!F629=\"\",\"\",'1. Order'!F629)","v":{"$error":"#N/A"}},{"$f":"IF('1. Order'!G629=\"\",\"\",'1. Order'!G629)","v":""},{"$f":"IF('1. Order'!H629=\"\",\"\",'1. Order'!H629)","v":""},{"$f":"IF('1. Order'!I629=\"\",\"\",'1. Order'!I629)","v":""},{"$f":"IF('1. Order'!J629=\"\",\"\",'1. Order'!J629)","v":""},{"$f":"IF('1. Order'!K629=\"\",\"\",'1. Order'!K629)","v":""},{"$f":"IF('1. Order'!L629=\"\",\"\",'1. Order'!L629)","v":""},{"$f":"IF('1. Order'!M629=\"\",\"\",'1. Order'!M629)","v":""},{"$f":"IF('1. Order'!N629=\"\",\"\",'1. Order'!N629)","v":""},{"$f":"IF('1. Order'!O629=\"\",\"\",'1. Order'!O629)","v":{"$error":"#N/A"}},{"$f":"IF('1. Order'!P629=\"\",\"\",'1. Order'!P629)","v":{"$error":"#N/A"}},{"$f":"IF('1. Order'!Q629=\"\",\"\",'1. Order'!Q629)","v":""},{"$f":"IF('1. Order'!S629=\"\",\"\",'1. Order'!S629)","v":""},{"$f":"IF('1. Order'!T629=\"\",\"\",'1. Order'!T629)","v":""},{"$f":"IF('1. Order'!W629=\"\",\"\",'1. Order'!W629)","v":""},{"$f":"IF('1. Order'!X629=\"\",\"\",'1. Order'!X629)","v":""},{"$f":"IF('1. Order'!Y629=\"\",\"\",'1. Order'!Y629)","v":"EUR"},{"$f":"IF('1. Order'!Z629=\"\",\"\",'1. Order'!Z629)","v":""},{"$f":"IF('1. Order'!AA629=\"\",\"\",'1. Order'!AA629)","v":""},{"$f":"IF('1. Order'!AB629=\"\",\"\",'1. Order'!AB629)","v":""},null,{"$f":"IF('1. Order'!AT629=\"\",\"\",'1. Order'!AT629)","v":""},{"$f":"IF('1. Order'!AU629=\"\",\"\",'1. Order'!AU629)","v":""},null,null,null,null,null,null,null,{"$f":"IF('1. Order'!AY629=\"\",\"\",'1. Order'!AY629)","v":""},{"$f":"IF('1. Order'!AZ629=\"\",\"\",'1. Order'!AZ629)","v":""},{"$f":"IF('1. Order'!BA629=\"\",\"\",'1. Order'!BA629)","v":""},{"$f":"IF('1. Order'!BB629=\"\",\"\",'1. Order'!BB629)","v":""},{"$f":"IF('1. Order'!BD629=\"\",\"\",'1. Order'!BD629)","v":""},{"$f":"IF('1. Order'!BE629=\"\",\"\",'1. Order'!BE629)","v":""},{"$f":"IF('1. Order'!BF629=\"\",\"\",'1. Order'!BF629)","v":""},{"$f":"IF('1. Order'!BG629=\"\",\"\",'1. Order'!BG629)","v":""},{"$f":"IF('1. Order'!BH629=\"\",\"\",'1. Order'!BH629)","v":"ZWO"}]
[{"$f":"IF('1. Order'!F630=\"\",\"\",'1. Order'!F630)","v":{"$error":"#N/A"}},{"$f":"IF('1. Order'!G630=\"\",\"\",'1. Order'!G630)","v":""},{"$f":"IF('1. Order'!H630=\"\",\"\",'1. Order'!H630)","v":""},{"$f":"IF('1. Order'!I630=\"\",\"\",'1. Order'!I630)","v":""},{"$f":"IF('1. Order'!J630=\"\",\"\",'1. Order'!J630)","v":""},{"$f":"IF('1. Order'!K630=\"\",\"\",'1. Order'!K630)","v":""},{"$f":"IF('1. Order'!L630=\"\",\"\",'1. Order'!L630)","v":""},{"$f":"IF('1. Order'!M630=\"\",\"\",'1. Order'!M630)","v":""},{"$f":"IF('1. Order'!N630=\"\",\"\",'1. Order'!N630)","v":""},{"$f":"IF('1. Order'!O630=\"\",\"\",'1. Order'!O630)","v":{"$error":"#N/A"}},{"$f":"IF('1. Order'!P630=\"\",\"\",'1. Order'!P630)","v":{"$error":"#N/A"}},{"$f":"IF('1. Order'!Q630=\"\",\"\",'1. Order'!Q630)","v":""},{"$f":"IF('1. Order'!S630=\"\",\"\",'1. Order'!S630)","v":""},{"$f":"IF('1. Order'!T630=\"\",\"\",'1. Order'!T630)","v":""},{"$f":"IF('1. Order'!W630=\"\",\"\",'1. Order'!W630)","v":""},{"$f":"IF('1. Order'!X630=\"\",\"\",'1. Order'!X630)","v":""},{"$f":"IF('1. Order'!Y630=\"\",\"\",'1. Order'!Y630)","v":"EUR"},{"$f":"IF('1. Order'!Z630=\"\",\"\",'1. Order'!Z630)","v":""},{"$f":"IF('1. Order'!AA630=\"\",\"\",'1. Order'!AA630)","v":""},{"$f":"IF('1. Order'!AB630=\"\",\"\",'1. Order'!AB630)","v":""},null,{"$f":"IF('1. Order'!AT630=\"\",\"\",'1. Order'!AT630)","v":""},{"$f":"IF('1. Order'!AU630=\"\",\"\",'1. Order'!AU630)","v":""},null,null,null,null,null,null,null,{"$f":"IF('1. Order'!AY630=\"\",\"\",'1. Order'!AY630)","v":""},{"$f":"IF('1. Order'!AZ630=\"\",\"\",'1. Order'!AZ630)","v":""},{"$f":"IF('1. Order'!BA630=\"\",\"\",'1. Order'!BA630)","v":""},{"$f":"IF('1. Order'!BB630=\"\",\"\",'1. Order'!BB630)","v":""},{"$f":"IF('1. Order'!BD630=\"\",\"\",'1. Order'!BD630)","v":""},{"$f":"IF('1. Order'!BE630=\"\",\"\",'1. Order'!BE630)","v":""},{"$f":"IF('1. Order'!BF630=\"\",\"\",'1. Order'!BF630)","v":""},{"$f":"IF('1. Order'!BG630=\"\",\"\",'1. Order'!BG630)","v":""},{"$f":"IF('1. Order'!BH630=\"\",\"\",'1. Order'!BH630)","v":"ZWO"}]
[{"$f":"IF('1. Order'!F631=\"\",\"\",'1. Order'!F631)","v":{"$error":"#N/A"}},{"$f":"IF('1. Order'!G631=\"\",\"\",'1. Order'!G631)","v":""},{"$f":"IF('1. Order'!H631=\"\",\"\",'1. Order'!H631)","v":""},{"$f":"IF('1. Order'!I631=\"\",\"\",'1. Order'!I631)","v":""},{"$f":"IF('1. Order'!J631=\"\",\"\",'1. Order'!J631)","v":""},{"$f":"IF('1. Order'!K631=\"\",\"\",'1. Order'!K631)","v":""},{"$f":"IF('1. Order'!L631=\"\",\"\",'1. Order'!L631)","v":""},{"$f":"IF('1. Order'!M631=\"\",\"\",'1. Order'!M631)","v":""},{"$f":"IF('1. Order'!N631=\"\",\"\",'1. Order'!N631)","v":""},{"$f":"IF('1. Order'!O631=\"\",\"\",'1. Order'!O631)","v":{"$error":"#N/A"}},{"$f":"IF('1. Order'!P631=\"\",\"\",'1. Order'!P631)","v":{"$error":"#N/A"}},{"$f":"IF('1. Order'!Q631=\"\",\"\",'1. Order'!Q631)","v":""},{"$f":"IF('1. Order'!S631=\"\",\"\",'1. Order'!S631)","v":""},{"$f":"IF('1. Order'!T631=\"\",\"\",'1. Order'!T631)","v":""},{"$f":"IF('1. Order'!W631=\"\",\"\",'1. Order'!W631)","v":""},{"$f":"IF('1. Order'!X631=\"\",\"\",'1. Order'!X631)","v":""},{"$f":"IF('1. Order'!Y631=\"\",\"\",'1. Order'!Y631)","v":"EUR"},{"$f":"IF('1. Order'!Z631=\"\",\"\",'1. Order'!Z631)","v":""},{"$f":"IF('1. Order'!AA631=\"\",\"\",'1. Order'!AA631)","v":""},{"$f":"IF('1. Order'!AB631=\"\",\"\",'1. Order'!AB631)","v":""},null,{"$f":"IF('1. Order'!AT631=\"\",\"\",'1. Order'!AT631)","v":""},{"$f":"IF('1. Order'!AU631=\"\",\"\",'1. Order'!AU631)","v":""},null,null,null,null,null,null,null,{"$f":"IF('1. Order'!AY631=\"\",\"\",'1. Order'!AY631)","v":""},{"$f":"IF('1. Order'!AZ631=\"\",\"\",'1. Order'!AZ631)","v":""},{"$f":"IF('1. Order'!BA631=\"\",\"\",'1. Order'!BA631)","v":""},{"$f":"IF('1. Order'!BB631=\"\",\"\",'1. Order'!BB631)","v":""},{"$f":"IF('1. Order'!BD631=\"\",\"\",'1. Order'!BD631)","v":""},{"$f":"IF('1. Order'!BE631=\"\",\"\",'1. Order'!BE631)","v":""},{"$f":"IF('1. Order'!BF631=\"\",\"\",'1. Order'!BF631)","v":""},{"$f":"IF('1. Order'!BG631=\"\",\"\",'1. Order'!BG631)","v":""},{"$f":"IF('1. Order'!BH631=\"\",\"\",'1. Order'!BH631)","v":"ZWO"}]
[{"$f":"IF('1. Order'!F632=\"\",\"\",'1. Order'!F632)","v":{"$error":"#N/A"}},{"$f":"IF('1. Order'!G632=\"\",\"\",'1. Order'!G632)","v":""},{"$f":"IF('1. Order'!H632=\"\",\"\",'1. Order'!H632)","v":""},{"$f":"IF('1. Order'!I632=\"\",\"\",'1. Order'!I632)","v":""},{"$f":"IF('1. Order'!J632=\"\",\"\",'1. Order'!J632)","v":""},{"$f":"IF('1. Order'!K632=\"\",\"\",'1. Order'!K632)","v":""},{"$f":"IF('1. Order'!L632=\"\",\"\",'1. Order'!L632)","v":""},{"$f":"IF('1. Order'!M632=\"\",\"\",'1. Order'!M632)","v":""},{"$f":"IF('1. Order'!N632=\"\",\"\",'1. Order'!N632)","v":""},{"$f":"IF('1. Order'!O632=\"\",\"\",'1. Order'!O632)","v":{"$error":"#N/A"}},{"$f":"IF('1. Order'!P632=\"\",\"\",'1. Order'!P632)","v":{"$error":"#N/A"}},{"$f":"IF('1. Order'!Q632=\"\",\"\",'1. Order'!Q632)","v":""},{"$f":"IF('1. Order'!S632=\"\",\"\",'1. Order'!S632)","v":""},{"$f":"IF('1. Order'!T632=\"\",\"\",'1. Order'!T632)","v":""},{"$f":"IF('1. Order'!W632=\"\",\"\",'1. Order'!W632)","v":""},{"$f":"IF('1. Order'!X632=\"\",\"\",'1. Order'!X632)","v":""},{"$f":"IF('1. Order'!Y632=\"\",\"\",'1. Order'!Y632)","v":"EUR"},{"$f":"IF('1. Order'!Z632=\"\",\"\",'1. Order'!Z632)","v":""},{"$f":"IF('1. Order'!AA632=\"\",\"\",'1. Order'!AA632)","v":""},{"$f":"IF('1. Order'!AB632=\"\",\"\",'1. Order'!AB632)","v":""},null,{"$f":"IF('1. Order'!AT632=\"\",\"\",'1. Order'!AT632)","v":""},{"$f":"IF('1. Order'!AU632=\"\",\"\",'1. Order'!AU632)","v":""},null,null,null,null,null,null,null,{"$f":"IF('1. Order'!AY632=\"\",\"\",'1. Order'!AY632)","v":""},{"$f":"IF('1. Order'!AZ632=\"\",\"\",'1. Order'!AZ632)","v":""},{"$f":"IF('1. Order'!BA632=\"\",\"\",'1. Order'!BA632)","v":""},{"$f":"IF('1. Order'!BB632=\"\",\"\",'1. Order'!BB632)","v":""},{"$f":"IF('1. Order'!BD632=\"\",\"\",'1. Order'!BD632)","v":""},{"$f":"IF('1. Order'!BE632=\"\",\"\",'1. Order'!BE632)","v":""},{"$f":"IF('1. Order'!BF632=\"\",\"\",'1. Order'!BF632)","v":""},{"$f":"IF('1. Order'!BG632=\"\",\"\",'1. Order'!BG632)","v":""},{"$f":"IF('1. Order'!BH632=\"\",\"\",'1. Order'!BH632)","v":"ZWO"}]
[{"$f":"IF('1. Order'!F633=\"\",\"\",'1. Order'!F633)","v":{"$error":"#N/A"}},{"$f":"IF('1. Order'!G633=\"\",\"\",'1. Order'!G633)","v":""},{"$f":"IF('1. Order'!H633=\"\",\"\",'1. Order'!H633)","v":""},{"$f":"IF('1. Order'!I633=\"\",\"\",'1. Order'!I633)","v":""},{"$f":"IF('1. Order'!J633=\"\",\"\",'1. Order'!J633)","v":""},{"$f":"IF('1. Order'!K633=\"\",\"\",'1. Order'!K633)","v":""},{"$f":"IF('1. Order'!L633=\"\",\"\",'1. Order'!L633)","v":""},{"$f":"IF('1. Order'!M633=\"\",\"\",'1. Order'!M633)","v":""},{"$f":"IF('1. Order'!N633=\"\",\"\",'1. Order'!N633)","v":""},{"$f":"IF('1. Order'!O633=\"\",\"\",'1. Order'!O633)","v":{"$error":"#N/A"}},{"$f":"IF('1. Order'!P633=\"\",\"\",'1. Order'!P633)","v":{"$error":"#N/A"}},{"$f":"IF('1. Order'!Q633=\"\",\"\",'1. Order'!Q633)","v":""},{"$f":"IF('1. Order'!S633=\"\",\"\",'1. Order'!S633)","v":""},{"$f":"IF('1. Order'!T633=\"\",\"\",'1. Order'!T633)","v":""},{"$f":"IF('1. Order'!W633=\"\",\"\",'1. Order'!W633)","v":""},{"$f":"IF('1. Order'!X633=\"\",\"\",'1. Order'!X633)","v":""},{"$f":"IF('1. Order'!Y633=\"\",\"\",'1. Order'!Y633)","v":"EUR"},{"$f":"IF('1. Order'!Z633=\"\",\"\",'1. Order'!Z633)","v":""},{"$f":"IF('1. Order'!AA633=\"\",\"\",'1. Order'!AA633)","v":""},{"$f":"IF('1. Order'!AB633=\"\",\"\",'1. Order'!AB633)","v":""},null,{"$f":"IF('1. Order'!AT633=\"\",\"\",'1. Order'!AT633)","v":""},{"$f":"IF('1. Order'!AU633=\"\",\"\",'1. Order'!AU633)","v":""},null,null,null,null,null,null,null,{"$f":"IF('1. Order'!AY633=\"\",\"\",'1. Order'!AY633)","v":""},{"$f":"IF('1. Order'!AZ633=\"\",\"\",'1. Order'!AZ633)","v":""},{"$f":"IF('1. Order'!BA633=\"\",\"\",'1. Order'!BA633)","v":""},{"$f":"IF('1. Order'!BB633=\"\",\"\",'1. Order'!BB633)","v":""},{"$f":"IF('1. Order'!BD633=\"\",\"\",'1. Order'!BD633)","v":""},{"$f":"IF('1. Order'!BE633=\"\",\"\",'1. Order'!BE633)","v":""},{"$f":"IF('1. Order'!BF633=\"\",\"\",'1. Order'!BF633)","v":""},{"$f":"IF('1. Order'!BG633=\"\",\"\",'1. Order'!BG633)","v":""},{"$f":"IF('1. Order'!BH633=\"\",\"\",'1. Order'!BH633)","v":"ZWO"}]
[{"$f":"IF('1. Order'!F634=\"\",\"\",'1. Order'!F634)","v":{"$error":"#N/A"}},{"$f":"IF('1. Order'!G634=\"\",\"\",'1. Order'!G634)","v":""},{"$f":"IF('1. Order'!H634=\"\",\"\",'1. Order'!H634)","v":""},{"$f":"IF('1. Order'!I634=\"\",\"\",'1. Order'!I634)","v":""},{"$f":"IF('1. Order'!J634=\"\",\"\",'1. Order'!J634)","v":""},{"$f":"IF('1. Order'!K634=\"\",\"\",'1. Order'!K634)","v":""},{"$f":"IF('1. Order'!L634=\"\",\"\",'1. Order'!L634)","v":""},{"$f":"IF('1. Order'!M634=\"\",\"\",'1. Order'!M634)","v":""},{"$f":"IF('1. Order'!N634=\"\",\"\",'1. Order'!N634)","v":""},{"$f":"IF('1. Order'!O634=\"\",\"\",'1. Order'!O634)","v":{"$error":"#N/A"}},{"$f":"IF('1. Order'!P634=\"\",\"\",'1. Order'!P634)","v":{"$error":"#N/A"}},{"$f":"IF('1. Order'!Q634=\"\",\"\",'1. Order'!Q634)","v":""},{"$f":"IF('1. Order'!S634=\"\",\"\",'1. Order'!S634)","v":""},{"$f":"IF('1. Order'!T634=\"\",\"\",'1. Order'!T634)","v":""},{"$f":"IF('1. Order'!W634=\"\",\"\",'1. Order'!W634)","v":""},{"$f":"IF('1. Order'!X634=\"\",\"\",'1. Order'!X634)","v":""},{"$f":"IF('1. Order'!Y634=\"\",\"\",'1. Order'!Y634)","v":"EUR"},{"$f":"IF('1. Order'!Z634=\"\",\"\",'1. Order'!Z634)","v":""},{"$f":"IF('1. Order'!AA634=\"\",\"\",'1. Order'!AA634)","v":""},{"$f":"IF('1. Order'!AB634=\"\",\"\",'1. Order'!AB634)","v":""},null,{"$f":"IF('1. Order'!AT634=\"\",\"\",'1. Order'!AT634)","v":""},{"$f":"IF('1. Order'!AU634=\"\",\"\",'1. Order'!AU634)","v":""},null,null,null,null,null,null,null,{"$f":"IF('1. Order'!AY634=\"\",\"\",'1. Order'!AY634)","v":""},{"$f":"IF('1. Order'!AZ634=\"\",\"\",'1. Order'!AZ634)","v":""},{"$f":"IF('1. Order'!BA634=\"\",\"\",'1. Order'!BA634)","v":""},{"$f":"IF('1. Order'!BB634=\"\",\"\",'1. Order'!BB634)","v":""},{"$f":"IF('1. Order'!BD634=\"\",\"\",'1. Order'!BD634)","v":""},{"$f":"IF('1. Order'!BE634=\"\",\"\",'1. Order'!BE634)","v":""},{"$f":"IF('1. Order'!BF634=\"\",\"\",'1. Order'!BF634)","v":""},{"$f":"IF('1. Order'!BG634=\"\",\"\",'1. Order'!BG634)","v":""},{"$f":"IF('1. Order'!BH634=\"\",\"\",'1. Order'!BH634)","v":"ZWO"}]
[{"$f":"IF('1. Order'!F635=\"\",\"\",'1. Order'!F635)","v":{"$error":"#N/A"}},{"$f":"IF('1. Order'!G635=\"\",\"\",'1. Order'!G635)","v":""},{"$f":"IF('1. Order'!H635=\"\",\"\",'1. Order'!H635)","v":""},{"$f":"IF('1. Order'!I635=\"\",\"\",'1. Order'!I635)","v":""},{"$f":"IF('1. Order'!J635=\"\",\"\",'1. Order'!J635)","v":""},{"$f":"IF('1. Order'!K635=\"\",\"\",'1. Order'!K635)","v":""},{"$f":"IF('1. Order'!L635=\"\",\"\",'1. Order'!L635)","v":""},{"$f":"IF('1. Order'!M635=\"\",\"\",'1. Order'!M635)","v":""},{"$f":"IF('1. Order'!N635=\"\",\"\",'1. Order'!N635)","v":""},{"$f":"IF('1. Order'!O635=\"\",\"\",'1. Order'!O635)","v":{"$error":"#N/A"}},{"$f":"IF('1. Order'!P635=\"\",\"\",'1. Order'!P635)","v":{"$error":"#N/A"}},{"$f":"IF('1. Order'!Q635=\"\",\"\",'1. Order'!Q635)","v":""},{"$f":"IF('1. Order'!S635=\"\",\"\",'1. Order'!S635)","v":""},{"$f":"IF('1. Order'!T635=\"\",\"\",'1. Order'!T635)","v":""},{"$f":"IF('1. Order'!W635=\"\",\"\",'1. Order'!W635)","v":""},{"$f":"IF('1. Order'!X635=\"\",\"\",'1. Order'!X635)","v":""},{"$f":"IF('1. Order'!Y635=\"\",\"\",'1. Order'!Y635)","v":"EUR"},{"$f":"IF('1. Order'!Z635=\"\",\"\",'1. Order'!Z635)","v":""},{"$f":"IF('1. Order'!AA635=\"\",\"\",'1. Order'!AA635)","v":""},{"$f":"IF('1. Order'!AB635=\"\",\"\",'1. Order'!AB635)","v":""},null,{"$f":"IF('1. Order'!AT635=\"\",\"\",'1. Order'!AT635)","v":""},{"$f":"IF('1. Order'!AU635=\"\",\"\",'1. Order'!AU635)","v":""},null,null,null,null,null,null,null,{"$f":"IF('1. Order'!AY635=\"\",\"\",'1. Order'!AY635)","v":""},{"$f":"IF('1. Order'!AZ635=\"\",\"\",'1. Order'!AZ635)","v":""},{"$f":"IF('1. Order'!BA635=\"\",\"\",'1. Order'!BA635)","v":""},{"$f":"IF('1. Order'!BB635=\"\",\"\",'1. Order'!BB635)","v":""},{"$f":"IF('1. Order'!BD635=\"\",\"\",'1. Order'!BD635)","v":""},{"$f":"IF('1. Order'!BE635=\"\",\"\",'1. Order'!BE635)","v":""},{"$f":"IF('1. Order'!BF635=\"\",\"\",'1. Order'!BF635)","v":""},{"$f":"IF('1. Order'!BG635=\"\",\"\",'1. Order'!BG635)","v":""},{"$f":"IF('1. Order'!BH635=\"\",\"\",'1. Order'!BH635)","v":"ZWO"}]
[{"$f":"IF('1. Order'!F636=\"\",\"\",'1. Order'!F636)","v":{"$error":"#N/A"}},{"$f":"IF('1. Order'!G636=\"\",\"\",'1. Order'!G636)","v":""},{"$f":"IF('1. Order'!H636=\"\",\"\",'1. Order'!H636)","v":""},{"$f":"IF('1. Order'!I636=\"\",\"\",'1. Order'!I636)","v":""},{"$f":"IF('1. Order'!J636=\"\",\"\",'1. Order'!J636)","v":""},{"$f":"IF('1. Order'!K636=\"\",\"\",'1. Order'!K636)","v":""},{"$f":"IF('1. Order'!L636=\"\",\"\",'1. Order'!L636)","v":""},{"$f":"IF('1. Order'!M636=\"\",\"\",'1. Order'!M636)","v":""},{"$f":"IF('1. Order'!N636=\"\",\"\",'1. Order'!N636)","v":""},{"$f":"IF('1. Order'!O636=\"\",\"\",'1. Order'!O636)","v":{"$error":"#N/A"}},{"$f":"IF('1. Order'!P636=\"\",\"\",'1. Order'!P636)","v":{"$error":"#N/A"}},{"$f":"IF('1. Order'!Q636=\"\",\"\",'1. Order'!Q636)","v":""},{"$f":"IF('1. Order'!S636=\"\",\"\",'1. Order'!S636)","v":""},{"$f":"IF('1. Order'!T636=\"\",\"\",'1. Order'!T636)","v":""},{"$f":"IF('1. Order'!W636=\"\",\"\",'1. Order'!W636)","v":""},{"$f":"IF('1. Order'!X636=\"\",\"\",'1. Order'!X636)","v":""},{"$f":"IF('1. Order'!Y636=\"\",\"\",'1. Order'!Y636)","v":"EUR"},{"$f":"IF('1. Order'!Z636=\"\",\"\",'1. Order'!Z636)","v":""},{"$f":"IF('1. Order'!AA636=\"\",\"\",'1. Order'!AA636)","v":""},{"$f":"IF('1. Order'!AB636=\"\",\"\",'1. Order'!AB636)","v":""},null,{"$f":"IF('1. Order'!AT636=\"\",\"\",'1. Order'!AT636)","v":""},{"$f":"IF('1. Order'!AU636=\"\",\"\",'1. Order'!AU636)","v":""},null,null,null,null,null,null,null,{"$f":"IF('1. Order'!AY636=\"\",\"\",'1. Order'!AY636)","v":""},{"$f":"IF('1. Order'!AZ636=\"\",\"\",'1. Order'!AZ636)","v":""},{"$f":"IF('1. Order'!BA636=\"\",\"\",'1. Order'!BA636)","v":""},{"$f":"IF('1. Order'!BB636=\"\",\"\",'1. Order'!BB636)","v":""},{"$f":"IF('1. Order'!BD636=\"\",\"\",'1. Order'!BD636)","v":""},{"$f":"IF('1. Order'!BE636=\"\",\"\",'1. Order'!BE636)","v":""},{"$f":"IF('1. Order'!BF636=\"\",\"\",'1. Order'!BF636)","v":""},{"$f":"IF('1. Order'!BG636=\"\",\"\",'1. Order'!BG636)","v":""},{"$f":"IF('1. Order'!BH636=\"\",\"\",'1. Order'!BH636)","v":"ZWO"}]
[{"$f":"IF('1. Order'!F637=\"\",\"\",'1. Order'!F637)","v":{"$error":"#N/A"}},{"$f":"IF('1. Order'!G637=\"\",\"\",'1. Order'!G637)","v":""},{"$f":"IF('1. Order'!H637=\"\",\"\",'1. Order'!H637)","v":""},{"$f":"IF('1. Order'!I637=\"\",\"\",'1. Order'!I637)","v":""},{"$f":"IF('1. Order'!J637=\"\",\"\",'1. Order'!J637)","v":""},{"$f":"IF('1. Order'!K637=\"\",\"\",'1. Order'!K637)","v":""},{"$f":"IF('1. Order'!L637=\"\",\"\",'1. Order'!L637)","v":""},{"$f":"IF('1. Order'!M637=\"\",\"\",'1. Order'!M637)","v":""},{"$f":"IF('1. Order'!N637=\"\",\"\",'1. Order'!N637)","v":""},{"$f":"IF('1. Order'!O637=\"\",\"\",'1. Order'!O637)","v":{"$error":"#N/A"}},{"$f":"IF('1. Order'!P637=\"\",\"\",'1. Order'!P637)","v":{"$error":"#N/A"}},{"$f":"IF('1. Order'!Q637=\"\",\"\",'1. Order'!Q637)","v":""},{"$f":"IF('1. Order'!S637=\"\",\"\",'1. Order'!S637)","v":""},{"$f":"IF('1. Order'!T637=\"\",\"\",'1. Order'!T637)","v":""},{"$f":"IF('1. Order'!W637=\"\",\"\",'1. Order'!W637)","v":""},{"$f":"IF('1. Order'!X637=\"\",\"\",'1. Order'!X637)","v":""},{"$f":"IF('1. Order'!Y637=\"\",\"\",'1. Order'!Y637)","v":"EUR"},{"$f":"IF('1. Order'!Z637=\"\",\"\",'1. Order'!Z637)","v":""},{"$f":"IF('1. Order'!AA637=\"\",\"\",'1. Order'!AA637)","v":""},{"$f":"IF('1. Order'!AB637=\"\",\"\",'1. Order'!AB637)","v":""},null,{"$f":"IF('1. Order'!AT637=\"\",\"\",'1. Order'!AT637)","v":""},{"$f":"IF('1. Order'!AU637=\"\",\"\",'1. Order'!AU637)","v":""},null,null,null,null,null,null,null,{"$f":"IF('1. Order'!AY637=\"\",\"\",'1. Order'!AY637)","v":""},{"$f":"IF('1. Order'!AZ637=\"\",\"\",'1. Order'!AZ637)","v":""},{"$f":"IF('1. Order'!BA637=\"\",\"\",'1. Order'!BA637)","v":""},{"$f":"IF('1. Order'!BB637=\"\",\"\",'1. Order'!BB637)","v":""},{"$f":"IF('1. Order'!BD637=\"\",\"\",'1. Order'!BD637)","v":""},{"$f":"IF('1. Order'!BE637=\"\",\"\",'1. Order'!BE637)","v":""},{"$f":"IF('1. Order'!BF637=\"\",\"\",'1. Order'!BF637)","v":""},{"$f":"IF('1. Order'!BG637=\"\",\"\",'1. Order'!BG637)","v":""},{"$f":"IF('1. Order'!BH637=\"\",\"\",'1. Order'!BH637)","v":"ZWO"}]
[{"$f":"IF('1. Order'!F638=\"\",\"\",'1. Order'!F638)","v":{"$error":"#N/A"}},{"$f":"IF('1. Order'!G638=\"\",\"\",'1. Order'!G638)","v":""},{"$f":"IF('1. Order'!H638=\"\",\"\",'1. Order'!H638)","v":""},{"$f":"IF('1. Order'!I638=\"\",\"\",'1. Order'!I638)","v":""},{"$f":"IF('1. Order'!J638=\"\",\"\",'1. Order'!J638)","v":""},{"$f":"IF('1. Order'!K638=\"\",\"\",'1. Order'!K638)","v":""},{"$f":"IF('1. Order'!L638=\"\",\"\",'1. Order'!L638)","v":""},{"$f":"IF('1. Order'!M638=\"\",\"\",'1. Order'!M638)","v":""},{"$f":"IF('1. Order'!N638=\"\",\"\",'1. Order'!N638)","v":""},{"$f":"IF('1. Order'!O638=\"\",\"\",'1. Order'!O638)","v":{"$error":"#N/A"}},{"$f":"IF('1. Order'!P638=\"\",\"\",'1. Order'!P638)","v":{"$error":"#N/A"}},{"$f":"IF('1. Order'!Q638=\"\",\"\",'1. Order'!Q638)","v":""},{"$f":"IF('1. Order'!S638=\"\",\"\",'1. Order'!S638)","v":""},{"$f":"IF('1. Order'!T638=\"\",\"\",'1. Order'!T638)","v":""},{"$f":"IF('1. Order'!W638=\"\",\"\",'1. Order'!W638)","v":""},{"$f":"IF('1. Order'!X638=\"\",\"\",'1. Order'!X638)","v":""},{"$f":"IF('1. Order'!Y638=\"\",\"\",'1. Order'!Y638)","v":"EUR"},{"$f":"IF('1. Order'!Z638=\"\",\"\",'1. Order'!Z638)","v":""},{"$f":"IF('1. Order'!AA638=\"\",\"\",'1. Order'!AA638)","v":""},{"$f":"IF('1. Order'!AB638=\"\",\"\",'1. Order'!AB638)","v":""},null,{"$f":"IF('1. Order'!AT638=\"\",\"\",'1. Order'!AT638)","v":""},{"$f":"IF('1. Order'!AU638=\"\",\"\",'1. Order'!AU638)","v":""},null,null,null,null,null,null,null,{"$f":"IF('1. Order'!AY638=\"\",\"\",'1. Order'!AY638)","v":""},{"$f":"IF('1. Order'!AZ638=\"\",\"\",'1. Order'!AZ638)","v":""},{"$f":"IF('1. Order'!BA638=\"\",\"\",'1. Order'!BA638)","v":""},{"$f":"IF('1. Order'!BB638=\"\",\"\",'1. Order'!BB638)","v":""},{"$f":"IF('1. Order'!BD638=\"\",\"\",'1. Order'!BD638)","v":""},{"$f":"IF('1. Order'!BE638=\"\",\"\",'1. Order'!BE638)","v":""},{"$f":"IF('1. Order'!BF638=\"\",\"\",'1. Order'!BF638)","v":""},{"$f":"IF('1. Order'!BG638=\"\",\"\",'1. Order'!BG638)","v":""},{"$f":"IF('1. Order'!BH638=\"\",\"\",'1. Order'!BH638)","v":"ZWO"}]
[{"$f":"IF('1. Order'!F639=\"\",\"\",'1. Order'!F639)","v":{"$error":"#N/A"}},{"$f":"IF('1. Order'!G639=\"\",\"\",'1. Order'!G639)","v":""},{"$f":"IF('1. Order'!H639=\"\",\"\",'1. Order'!H639)","v":""},{"$f":"IF('1. Order'!I639=\"\",\"\",'1. Order'!I639)","v":""},{"$f":"IF('1. Order'!J639=\"\",\"\",'1. Order'!J639)","v":""},{"$f":"IF('1. Order'!K639=\"\",\"\",'1. Order'!K639)","v":""},{"$f":"IF('1. Order'!L639=\"\",\"\",'1. Order'!L639)","v":""},{"$f":"IF('1. Order'!M639=\"\",\"\",'1. Order'!M639)","v":""},{"$f":"IF('1. Order'!N639=\"\",\"\",'1. Order'!N639)","v":""},{"$f":"IF('1. Order'!O639=\"\",\"\",'1. Order'!O639)","v":{"$error":"#N/A"}},{"$f":"IF('1. Order'!P639=\"\",\"\",'1. Order'!P639)","v":{"$error":"#N/A"}},{"$f":"IF('1. Order'!Q639=\"\",\"\",'1. Order'!Q639)","v":""},{"$f":"IF('1. Order'!S639=\"\",\"\",'1. Order'!S639)","v":""},{"$f":"IF('1. Order'!T639=\"\",\"\",'1. Order'!T639)","v":""},{"$f":"IF('1. Order'!W639=\"\",\"\",'1. Order'!W639)","v":""},{"$f":"IF('1. Order'!X639=\"\",\"\",'1. Order'!X639)","v":""},{"$f":"IF('1. Order'!Y639=\"\",\"\",'1. Order'!Y639)","v":"EUR"},{"$f":"IF('1. Order'!Z639=\"\",\"\",'1. Order'!Z639)","v":""},{"$f":"IF('1. Order'!AA639=\"\",\"\",'1. Order'!AA639)","v":""},{"$f":"IF('1. Order'!AB639=\"\",\"\",'1. Order'!AB639)","v":""},null,{"$f":"IF('1. Order'!AT639=\"\",\"\",'1. Order'!AT639)","v":""},{"$f":"IF('1. Order'!AU639=\"\",\"\",'1. Order'!AU639)","v":""},null,null,null,null,null,null,null,{"$f":"IF('1. Order'!AY639=\"\",\"\",'1. Order'!AY639)","v":""},{"$f":"IF('1. Order'!AZ639=\"\",\"\",'1. Order'!AZ639)","v":""},{"$f":"IF('1. Order'!BA639=\"\",\"\",'1. Order'!BA639)","v":""},{"$f":"IF('1. Order'!BB639=\"\",\"\",'1. Order'!BB639)","v":""},{"$f":"IF('1. Order'!BD639=\"\",\"\",'1. Order'!BD639)","v":""},{"$f":"IF('1. Order'!BE639=\"\",\"\",'1. Order'!BE639)","v":""},{"$f":"IF('1. Order'!BF639=\"\",\"\",'1. Order'!BF639)","v":""},{"$f":"IF('1. Order'!BG639=\"\",\"\",'1. Order'!BG639)","v":""},{"$f":"IF('1. Order'!BH639=\"\",\"\",'1. Order'!BH639)","v":"ZWO"}]
[{"$f":"IF('1. Order'!F640=\"\",\"\",'1. Order'!F640)","v":{"$error":"#N/A"}},{"$f":"IF('1. Order'!G640=\"\",\"\",'1. Order'!G640)","v":""},{"$f":"IF('1. Order'!H640=\"\",\"\",'1. Order'!H640)","v":""},{"$f":"IF('1. Order'!I640=\"\",\"\",'1. Order'!I640)","v":""},{"$f":"IF('1. Order'!J640=\"\",\"\",'1. Order'!J640)","v":""},{"$f":"IF('1. Order'!K640=\"\",\"\",'1. Order'!K640)","v":""},{"$f":"IF('1. Order'!L640=\"\",\"\",'1. Order'!L640)","v":""},{"$f":"IF('1. Order'!M640=\"\",\"\",'1. Order'!M640)","v":""},{"$f":"IF('1. Order'!N640=\"\",\"\",'1. Order'!N640)","v":""},{"$f":"IF('1. Order'!O640=\"\",\"\",'1. Order'!O640)","v":{"$error":"#N/A"}},{"$f":"IF('1. Order'!P640=\"\",\"\",'1. Order'!P640)","v":{"$error":"#N/A"}},{"$f":"IF('1. Order'!Q640=\"\",\"\",'1. Order'!Q640)","v":""},{"$f":"IF('1. Order'!S640=\"\",\"\",'1. Order'!S640)","v":""},{"$f":"IF('1. Order'!T640=\"\",\"\",'1. Order'!T640)","v":""},{"$f":"IF('1. Order'!W640=\"\",\"\",'1. Order'!W640)","v":""},{"$f":"IF('1. Order'!X640=\"\",\"\",'1. Order'!X640)","v":""},{"$f":"IF('1. Order'!Y640=\"\",\"\",'1. Order'!Y640)","v":"EUR"},{"$f":"IF('1. Order'!Z640=\"\",\"\",'1. Order'!Z640)","v":""},{"$f":"IF('1. Order'!AA640=\"\",\"\",'1. Order'!AA640)","v":""},{"$f":"IF('1. Order'!AB640=\"\",\"\",'1. Order'!AB640)","v":""},null,{"$f":"IF('1. Order'!AT640=\"\",\"\",'1. Order'!AT640)","v":""},{"$f":"IF('1. Order'!AU640=\"\",\"\",'1. Order'!AU640)","v":""},null,null,null,null,null,null,null,{"$f":"IF('1. Order'!AY640=\"\",\"\",'1. Order'!AY640)","v":""},{"$f":"IF('1. Order'!AZ640=\"\",\"\",'1. Order'!AZ640)","v":""},{"$f":"IF('1. Order'!BA640=\"\",\"\",'1. Order'!BA640)","v":""},{"$f":"IF('1. Order'!BB640=\"\",\"\",'1. Order'!BB640)","v":""},{"$f":"IF('1. Order'!BD640=\"\",\"\",'1. Order'!BD640)","v":""},{"$f":"IF('1. Order'!BE640=\"\",\"\",'1. Order'!BE640)","v":""},{"$f":"IF('1. Order'!BF640=\"\",\"\",'1. Order'!BF640)","v":""},{"$f":"IF('1. Order'!BG640=\"\",\"\",'1. Order'!BG640)","v":""},{"$f":"IF('1. Order'!BH640=\"\",\"\",'1. Order'!BH640)","v":"ZWO"}]
[{"$f":"IF('1. Order'!F641=\"\",\"\",'1. Order'!F641)","v":{"$error":"#N/A"}},{"$f":"IF('1. Order'!G641=\"\",\"\",'1. Order'!G641)","v":""},{"$f":"IF('1. Order'!H641=\"\",\"\",'1. Order'!H641)","v":""},{"$f":"IF('1. Order'!I641=\"\",\"\",'1. Order'!I641)","v":""},{"$f":"IF('1. Order'!J641=\"\",\"\",'1. Order'!J641)","v":""},{"$f":"IF('1. Order'!K641=\"\",\"\",'1. Order'!K641)","v":""},{"$f":"IF('1. Order'!L641=\"\",\"\",'1. Order'!L641)","v":""},{"$f":"IF('1. Order'!M641=\"\",\"\",'1. Order'!M641)","v":""},{"$f":"IF('1. Order'!N641=\"\",\"\",'1. Order'!N641)","v":""},{"$f":"IF('1. Order'!O641=\"\",\"\",'1. Order'!O641)","v":{"$error":"#N/A"}},{"$f":"IF('1. Order'!P641=\"\",\"\",'1. Order'!P641)","v":{"$error":"#N/A"}},{"$f":"IF('1. Order'!Q641=\"\",\"\",'1. Order'!Q641)","v":""},{"$f":"IF('1. Order'!S641=\"\",\"\",'1. Order'!S641)","v":""},{"$f":"IF('1. Order'!T641=\"\",\"\",'1. Order'!T641)","v":""},{"$f":"IF('1. Order'!W641=\"\",\"\",'1. Order'!W641)","v":""},{"$f":"IF('1. Order'!X641=\"\",\"\",'1. Order'!X641)","v":""},{"$f":"IF('1. Order'!Y641=\"\",\"\",'1. Order'!Y641)","v":"EUR"},{"$f":"IF('1. Order'!Z641=\"\",\"\",'1. Order'!Z641)","v":""},{"$f":"IF('1. Order'!AA641=\"\",\"\",'1. Order'!AA641)","v":""},{"$f":"IF('1. Order'!AB641=\"\",\"\",'1. Order'!AB641)","v":""},null,{"$f":"IF('1. Order'!AT641=\"\",\"\",'1. Order'!AT641)","v":""},{"$f":"IF('1. Order'!AU641=\"\",\"\",'1. Order'!AU641)","v":""},null,null,null,null,null,null,null,{"$f":"IF('1. Order'!AY641=\"\",\"\",'1. Order'!AY641)","v":""},{"$f":"IF('1. Order'!AZ641=\"\",\"\",'1. Order'!AZ641)","v":""},{"$f":"IF('1. Order'!BA641=\"\",\"\",'1. Order'!BA641)","v":""},{"$f":"IF('1. Order'!BB641=\"\",\"\",'1. Order'!BB641)","v":""},{"$f":"IF('1. Order'!BD641=\"\",\"\",'1. Order'!BD641)","v":""},{"$f":"IF('1. Order'!BE641=\"\",\"\",'1. Order'!BE641)","v":""},{"$f":"IF('1. Order'!BF641=\"\",\"\",'1. Order'!BF641)","v":""},{"$f":"IF('1. Order'!BG641=\"\",\"\",'1. Order'!BG641)","v":""},{"$f":"IF('1. Order'!BH641=\"\",\"\",'1. Order'!BH641)","v":"ZWO"}]
[{"$f":"IF('1. Order'!F642=\"\",\"\",'1. Order'!F642)","v":{"$error":"#N/A"}},{"$f":"IF('1. Order'!G642=\"\",\"\",'1. Order'!G642)","v":""},{"$f":"IF('1. Order'!H642=\"\",\"\",'1. Order'!H642)","v":""},{"$f":"IF('1. Order'!I642=\"\",\"\",'1. Order'!I642)","v":""},{"$f":"IF('1. Order'!J642=\"\",\"\",'1. Order'!J642)","v":""},{"$f":"IF('1. Order'!K642=\"\",\"\",'1. Order'!K642)","v":""},{"$f":"IF('1. Order'!L642=\"\",\"\",'1. Order'!L642)","v":""},{"$f":"IF('1. Order'!M642=\"\",\"\",'1. Order'!M642)","v":""},{"$f":"IF('1. Order'!N642=\"\",\"\",'1. Order'!N642)","v":""},{"$f":"IF('1. Order'!O642=\"\",\"\",'1. Order'!O642)","v":{"$error":"#N/A"}},{"$f":"IF('1. Order'!P642=\"\",\"\",'1. Order'!P642)","v":{"$error":"#N/A"}},{"$f":"IF('1. Order'!Q642=\"\",\"\",'1. Order'!Q642)","v":""},{"$f":"IF('1. Order'!S642=\"\",\"\",'1. Order'!S642)","v":""},{"$f":"IF('1. Order'!T642=\"\",\"\",'1. Order'!T642)","v":""},{"$f":"IF('1. Order'!W642=\"\",\"\",'1. Order'!W642)","v":""},{"$f":"IF('1. Order'!X642=\"\",\"\",'1. Order'!X642)","v":""},{"$f":"IF('1. Order'!Y642=\"\",\"\",'1. Order'!Y642)","v":"EUR"},{"$f":"IF('1. Order'!Z642=\"\",\"\",'1. Order'!Z642)","v":""},{"$f":"IF('1. Order'!AA642=\"\",\"\",'1. Order'!AA642)","v":""},{"$f":"IF('1. Order'!AB642=\"\",\"\",'1. Order'!AB642)","v":""},null,{"$f":"IF('1. Order'!AT642=\"\",\"\",'1. Order'!AT642)","v":""},{"$f":"IF('1. Order'!AU642=\"\",\"\",'1. Order'!AU642)","v":""},null,null,null,null,null,null,null,{"$f":"IF('1. Order'!AY642=\"\",\"\",'1. Order'!AY642)","v":""},{"$f":"IF('1. Order'!AZ642=\"\",\"\",'1. Order'!AZ642)","v":""},{"$f":"IF('1. Order'!BA642=\"\",\"\",'1. Order'!BA642)","v":""},{"$f":"IF('1. Order'!BB642=\"\",\"\",'1. Order'!BB642)","v":""},{"$f":"IF('1. Order'!BD642=\"\",\"\",'1. Order'!BD642)","v":""},{"$f":"IF('1. Order'!BE642=\"\",\"\",'1. Order'!BE642)","v":""},{"$f":"IF('1. Order'!BF642=\"\",\"\",'1. Order'!BF642)","v":""},{"$f":"IF('1. Order'!BG642=\"\",\"\",'1. Order'!BG642)","v":""},{"$f":"IF('1. Order'!BH642=\"\",\"\",'1. Order'!BH642)","v":"ZWO"}]
[{"$f":"IF('1. Order'!F643=\"\",\"\",'1. Order'!F643)","v":{"$error":"#N/A"}},{"$f":"IF('1. Order'!G643=\"\",\"\",'1. Order'!G643)","v":""},{"$f":"IF('1. Order'!H643=\"\",\"\",'1. Order'!H643)","v":""},{"$f":"IF('1. Order'!I643=\"\",\"\",'1. Order'!I643)","v":""},{"$f":"IF('1. Order'!J643=\"\",\"\",'1. Order'!J643)","v":""},{"$f":"IF('1. Order'!K643=\"\",\"\",'1. Order'!K643)","v":""},{"$f":"IF('1. Order'!L643=\"\",\"\",'1. Order'!L643)","v":""},{"$f":"IF('1. Order'!M643=\"\",\"\",'1. Order'!M643)","v":""},{"$f":"IF('1. Order'!N643=\"\",\"\",'1. Order'!N643)","v":""},{"$f":"IF('1. Order'!O643=\"\",\"\",'1. Order'!O643)","v":{"$error":"#N/A"}},{"$f":"IF('1. Order'!P643=\"\",\"\",'1. Order'!P643)","v":{"$error":"#N/A"}},{"$f":"IF('1. Order'!Q643=\"\",\"\",'1. Order'!Q643)","v":""},{"$f":"IF('1. Order'!S643=\"\",\"\",'1. Order'!S643)","v":""},{"$f":"IF('1. Order'!T643=\"\",\"\",'1. Order'!T643)","v":""},{"$f":"IF('1. Order'!W643=\"\",\"\",'1. Order'!W643)","v":""},{"$f":"IF('1. Order'!X643=\"\",\"\",'1. Order'!X643)","v":""},{"$f":"IF('1. Order'!Y643=\"\",\"\",'1. Order'!Y643)","v":"EUR"},{"$f":"IF('1. Order'!Z643=\"\",\"\",'1. Order'!Z643)","v":""},{"$f":"IF('1. Order'!AA643=\"\",\"\",'1. Order'!AA643)","v":""},{"$f":"IF('1. Order'!AB643=\"\",\"\",'1. Order'!AB643)","v":""},null,{"$f":"IF('1. Order'!AT643=\"\",\"\",'1. Order'!AT643)","v":""},{"$f":"IF('1. Order'!AU643=\"\",\"\",'1. Order'!AU643)","v":""},null,null,null,null,null,null,null,{"$f":"IF('1. Order'!AY643=\"\",\"\",'1. Order'!AY643)","v":""},{"$f":"IF('1. Order'!AZ643=\"\",\"\",'1. Order'!AZ643)","v":""},{"$f":"IF('1. Order'!BA643=\"\",\"\",'1. Order'!BA643)","v":""},{"$f":"IF('1. Order'!BB643=\"\",\"\",'1. Order'!BB643)","v":""},{"$f":"IF('1. Order'!BD643=\"\",\"\",'1. Order'!BD643)","v":""},{"$f":"IF('1. Order'!BE643=\"\",\"\",'1. Order'!BE643)","v":""},{"$f":"IF('1. Order'!BF643=\"\",\"\",'1. Order'!BF643)","v":""},{"$f":"IF('1. Order'!BG643=\"\",\"\",'1. Order'!BG643)","v":""},{"$f":"IF('1. Order'!BH643=\"\",\"\",'1. Order'!BH643)","v":"ZWO"}]
[{"$f":"IF('1. Order'!F644=\"\",\"\",'1. Order'!F644)","v":{"$error":"#N/A"}},{"$f":"IF('1. Order'!G644=\"\",\"\",'1. Order'!G644)","v":""},{"$f":"IF('1. Order'!H644=\"\",\"\",'1. Order'!H644)","v":""},{"$f":"IF('1. Order'!I644=\"\",\"\",'1. Order'!I644)","v":""},{"$f":"IF('1. Order'!J644=\"\",\"\",'1. Order'!J644)","v":""},{"$f":"IF('1. Order'!K644=\"\",\"\",'1. Order'!K644)","v":""},{"$f":"IF('1. Order'!L644=\"\",\"\",'1. Order'!L644)","v":""},{"$f":"IF('1. Order'!M644=\"\",\"\",'1. Order'!M644)","v":""},{"$f":"IF('1. Order'!N644=\"\",\"\",'1. Order'!N644)","v":""},{"$f":"IF('1. Order'!O644=\"\",\"\",'1. Order'!O644)","v":{"$error":"#N/A"}},{"$f":"IF('1. Order'!P644=\"\",\"\",'1. Order'!P644)","v":{"$error":"#N/A"}},{"$f":"IF('1. Order'!Q644=\"\",\"\",'1. Order'!Q644)","v":""},{"$f":"IF('1. Order'!S644=\"\",\"\",'1. Order'!S644)","v":""},{"$f":"IF('1. Order'!T644=\"\",\"\",'1. Order'!T644)","v":""},{"$f":"IF('1. Order'!W644=\"\",\"\",'1. Order'!W644)","v":""},{"$f":"IF('1. Order'!X644=\"\",\"\",'1. Order'!X644)","v":""},{"$f":"IF('1. Order'!Y644=\"\",\"\",'1. Order'!Y644)","v":"EUR"},{"$f":"IF('1. Order'!Z644=\"\",\"\",'1. Order'!Z644)","v":""},{"$f":"IF('1. Order'!AA644=\"\",\"\",'1. Order'!AA644)","v":""},{"$f":"IF('1. Order'!AB644=\"\",\"\",'1. Order'!AB644)","v":""},null,{"$f":"IF('1. Order'!AT644=\"\",\"\",'1. Order'!AT644)","v":""},{"$f":"IF('1. Order'!AU644=\"\",\"\",'1. Order'!AU644)","v":""},null,null,null,null,null,null,null,{"$f":"IF('1. Order'!AY644=\"\",\"\",'1. Order'!AY644)","v":""},{"$f":"IF('1. Order'!AZ644=\"\",\"\",'1. Order'!AZ644)","v":""},{"$f":"IF('1. Order'!BA644=\"\",\"\",'1. Order'!BA644)","v":""},{"$f":"IF('1. Order'!BB644=\"\",\"\",'1. Order'!BB644)","v":""},{"$f":"IF('1. Order'!BD644=\"\",\"\",'1. Order'!BD644)","v":""},{"$f":"IF('1. Order'!BE644=\"\",\"\",'1. Order'!BE644)","v":""},{"$f":"IF('1. Order'!BF644=\"\",\"\",'1. Order'!BF644)","v":""},{"$f":"IF('1. Order'!BG644=\"\",\"\",'1. Order'!BG644)","v":""},{"$f":"IF('1. Order'!BH644=\"\",\"\",'1. Order'!BH644)","v":"ZWO"}]
[{"$f":"IF('1. Order'!F645=\"\",\"\",'1. Order'!F645)","v":{"$error":"#N/A"}},{"$f":"IF('1. Order'!G645=\"\",\"\",'1. Order'!G645)","v":""},{"$f":"IF('1. Order'!H645=\"\",\"\",'1. Order'!H645)","v":""},{"$f":"IF('1. Order'!I645=\"\",\"\",'1. Order'!I645)","v":""},{"$f":"IF('1. Order'!J645=\"\",\"\",'1. Order'!J645)","v":""},{"$f":"IF('1. Order'!K645=\"\",\"\",'1. Order'!K645)","v":""},{"$f":"IF('1. Order'!L645=\"\",\"\",'1. Order'!L645)","v":""},{"$f":"IF('1. Order'!M645=\"\",\"\",'1. Order'!M645)","v":""},{"$f":"IF('1. Order'!N645=\"\",\"\",'1. Order'!N645)","v":""},{"$f":"IF('1. Order'!O645=\"\",\"\",'1. Order'!O645)","v":{"$error":"#N/A"}},{"$f":"IF('1. Order'!P645=\"\",\"\",'1. Order'!P645)","v":{"$error":"#N/A"}},{"$f":"IF('1. Order'!Q645=\"\",\"\",'1. Order'!Q645)","v":""},{"$f":"IF('1. Order'!S645=\"\",\"\",'1. Order'!S645)","v":""},{"$f":"IF('1. Order'!T645=\"\",\"\",'1. Order'!T645)","v":""},{"$f":"IF('1. Order'!W645=\"\",\"\",'1. Order'!W645)","v":""},{"$f":"IF('1. Order'!X645=\"\",\"\",'1. Order'!X645)","v":""},{"$f":"IF('1. Order'!Y645=\"\",\"\",'1. Order'!Y645)","v":"EUR"},{"$f":"IF('1. Order'!Z645=\"\",\"\",'1. Order'!Z645)","v":""},{"$f":"IF('1. Order'!AA645=\"\",\"\",'1. Order'!AA645)","v":""},{"$f":"IF('1. Order'!AB645=\"\",\"\",'1. Order'!AB645)","v":""},null,{"$f":"IF('1. Order'!AT645=\"\",\"\",'1. Order'!AT645)","v":""},{"$f":"IF('1. Order'!AU645=\"\",\"\",'1. Order'!AU645)","v":""},null,null,null,null,null,null,null,{"$f":"IF('1. Order'!AY645=\"\",\"\",'1. Order'!AY645)","v":""},{"$f":"IF('1. Order'!AZ645=\"\",\"\",'1. Order'!AZ645)","v":""},{"$f":"IF('1. Order'!BA645=\"\",\"\",'1. Order'!BA645)","v":""},{"$f":"IF('1. Order'!BB645=\"\",\"\",'1. Order'!BB645)","v":""},{"$f":"IF('1. Order'!BD645=\"\",\"\",'1. Order'!BD645)","v":""},{"$f":"IF('1. Order'!BE645=\"\",\"\",'1. Order'!BE645)","v":""},{"$f":"IF('1. Order'!BF645=\"\",\"\",'1. Order'!BF645)","v":""},{"$f":"IF('1. Order'!BG645=\"\",\"\",'1. Order'!BG645)","v":""},{"$f":"IF('1. Order'!BH645=\"\",\"\",'1. Order'!BH645)","v":"ZWO"}]
[{"$f":"IF('1. Order'!F646=\"\",\"\",'1. Order'!F646)","v":{"$error":"#N/A"}},{"$f":"IF('1. Order'!G646=\"\",\"\",'1. Order'!G646)","v":""},{"$f":"IF('1. Order'!H646=\"\",\"\",'1. Order'!H646)","v":""},{"$f":"IF('1. Order'!I646=\"\",\"\",'1. Order'!I646)","v":""},{"$f":"IF('1. Order'!J646=\"\",\"\",'1. Order'!J646)","v":""},{"$f":"IF('1. Order'!K646=\"\",\"\",'1. Order'!K646)","v":""},{"$f":"IF('1. Order'!L646=\"\",\"\",'1. Order'!L646)","v":""},{"$f":"IF('1. Order'!M646=\"\",\"\",'1. Order'!M646)","v":""},{"$f":"IF('1. Order'!N646=\"\",\"\",'1. Order'!N646)","v":""},{"$f":"IF('1. Order'!O646=\"\",\"\",'1. Order'!O646)","v":{"$error":"#N/A"}},{"$f":"IF('1. Order'!P646=\"\",\"\",'1. Order'!P646)","v":{"$error":"#N/A"}},{"$f":"IF('1. Order'!Q646=\"\",\"\",'1. Order'!Q646)","v":""},{"$f":"IF('1. Order'!S646=\"\",\"\",'1. Order'!S646)","v":""},{"$f":"IF('1. Order'!T646=\"\",\"\",'1. Order'!T646)","v":""},{"$f":"IF('1. Order'!W646=\"\",\"\",'1. Order'!W646)","v":""},{"$f":"IF('1. Order'!X646=\"\",\"\",'1. Order'!X646)","v":""},{"$f":"IF('1. Order'!Y646=\"\",\"\",'1. Order'!Y646)","v":"EUR"},{"$f":"IF('1. Order'!Z646=\"\",\"\",'1. Order'!Z646)","v":""},{"$f":"IF('1. Order'!AA646=\"\",\"\",'1. Order'!AA646)","v":""},{"$f":"IF('1. Order'!AB646=\"\",\"\",'1. Order'!AB646)","v":""},null,{"$f":"IF('1. Order'!AT646=\"\",\"\",'1. Order'!AT646)","v":""},{"$f":"IF('1. Order'!AU646=\"\",\"\",'1. Order'!AU646)","v":""},null,null,null,null,null,null,null,{"$f":"IF('1. Order'!AY646=\"\",\"\",'1. Order'!AY646)","v":""},{"$f":"IF('1. Order'!AZ646=\"\",\"\",'1. Order'!AZ646)","v":""},{"$f":"IF('1. Order'!BA646=\"\",\"\",'1. Order'!BA646)","v":""},{"$f":"IF('1. Order'!BB646=\"\",\"\",'1. Order'!BB646)","v":""},{"$f":"IF('1. Order'!BD646=\"\",\"\",'1. Order'!BD646)","v":""},{"$f":"IF('1. Order'!BE646=\"\",\"\",'1. Order'!BE646)","v":""},{"$f":"IF('1. Order'!BF646=\"\",\"\",'1. Order'!BF646)","v":""},{"$f":"IF('1. Order'!BG646=\"\",\"\",'1. Order'!BG646)","v":""},{"$f":"IF('1. Order'!BH646=\"\",\"\",'1. Order'!BH646)","v":"ZWO"}]
[{"$f":"IF('1. Order'!F647=\"\",\"\",'1. Order'!F647)","v":{"$error":"#N/A"}},{"$f":"IF('1. Order'!G647=\"\",\"\",'1. Order'!G647)","v":""},{"$f":"IF('1. Order'!H647=\"\",\"\",'1. Order'!H647)","v":""},{"$f":"IF('1. Order'!I647=\"\",\"\",'1. Order'!I647)","v":""},{"$f":"IF('1. Order'!J647=\"\",\"\",'1. Order'!J647)","v":""},{"$f":"IF('1. Order'!K647=\"\",\"\",'1. Order'!K647)","v":""},{"$f":"IF('1. Order'!L647=\"\",\"\",'1. Order'!L647)","v":""},{"$f":"IF('1. Order'!M647=\"\",\"\",'1. Order'!M647)","v":""},{"$f":"IF('1. Order'!N647=\"\",\"\",'1. Order'!N647)","v":""},{"$f":"IF('1. Order'!O647=\"\",\"\",'1. Order'!O647)","v":{"$error":"#N/A"}},{"$f":"IF('1. Order'!P647=\"\",\"\",'1. Order'!P647)","v":{"$error":"#N/A"}},{"$f":"IF('1. Order'!Q647=\"\",\"\",'1. Order'!Q647)","v":""},{"$f":"IF('1. Order'!S647=\"\",\"\",'1. Order'!S647)","v":""},{"$f":"IF('1. Order'!T647=\"\",\"\",'1. Order'!T647)","v":""},{"$f":"IF('1. Order'!W647=\"\",\"\",'1. Order'!W647)","v":""},{"$f":"IF('1. Order'!X647=\"\",\"\",'1. Order'!X647)","v":""},{"$f":"IF('1. Order'!Y647=\"\",\"\",'1. Order'!Y647)","v":"EUR"},{"$f":"IF('1. Order'!Z647=\"\",\"\",'1. Order'!Z647)","v":""},{"$f":"IF('1. Order'!AA647=\"\",\"\",'1. Order'!AA647)","v":""},{"$f":"IF('1. Order'!AB647=\"\",\"\",'1. Order'!AB647)","v":""},null,{"$f":"IF('1. Order'!AT647=\"\",\"\",'1. Order'!AT647)","v":""},{"$f":"IF('1. Order'!AU647=\"\",\"\",'1. Order'!AU647)","v":""},null,null,null,null,null,null,null,{"$f":"IF('1. Order'!AY647=\"\",\"\",'1. Order'!AY647)","v":""},{"$f":"IF('1. Order'!AZ647=\"\",\"\",'1. Order'!AZ647)","v":""},{"$f":"IF('1. Order'!BA647=\"\",\"\",'1. Order'!BA647)","v":""},{"$f":"IF('1. Order'!BB647=\"\",\"\",'1. Order'!BB647)","v":""},{"$f":"IF('1. Order'!BD647=\"\",\"\",'1. Order'!BD647)","v":""},{"$f":"IF('1. Order'!BE647=\"\",\"\",'1. Order'!BE647)","v":""},{"$f":"IF('1. Order'!BF647=\"\",\"\",'1. Order'!BF647)","v":""},{"$f":"IF('1. Order'!BG647=\"\",\"\",'1. Order'!BG647)","v":""},{"$f":"IF('1. Order'!BH647=\"\",\"\",'1. Order'!BH647)","v":"ZWO"}]
[{"$f":"IF('1. Order'!F648=\"\",\"\",'1. Order'!F648)","v":{"$error":"#N/A"}},{"$f":"IF('1. Order'!G648=\"\",\"\",'1. Order'!G648)","v":""},{"$f":"IF('1. Order'!H648=\"\",\"\",'1. Order'!H648)","v":""},{"$f":"IF('1. Order'!I648=\"\",\"\",'1. Order'!I648)","v":""},{"$f":"IF('1. Order'!J648=\"\",\"\",'1. Order'!J648)","v":""},{"$f":"IF('1. Order'!K648=\"\",\"\",'1. Order'!K648)","v":""},{"$f":"IF('1. Order'!L648=\"\",\"\",'1. Order'!L648)","v":""},{"$f":"IF('1. Order'!M648=\"\",\"\",'1. Order'!M648)","v":""},{"$f":"IF('1. Order'!N648=\"\",\"\",'1. Order'!N648)","v":""},{"$f":"IF('1. Order'!O648=\"\",\"\",'1. Order'!O648)","v":{"$error":"#N/A"}},{"$f":"IF('1. Order'!P648=\"\",\"\",'1. Order'!P648)","v":{"$error":"#N/A"}},{"$f":"IF('1. Order'!Q648=\"\",\"\",'1. Order'!Q648)","v":""},{"$f":"IF('1. Order'!S648=\"\",\"\",'1. Order'!S648)","v":""},{"$f":"IF('1. Order'!T648=\"\",\"\",'1. Order'!T648)","v":""},{"$f":"IF('1. Order'!W648=\"\",\"\",'1. Order'!W648)","v":""},{"$f":"IF('1. Order'!X648=\"\",\"\",'1. Order'!X648)","v":""},{"$f":"IF('1. Order'!Y648=\"\",\"\",'1. Order'!Y648)","v":"EUR"},{"$f":"IF('1. Order'!Z648=\"\",\"\",'1. Order'!Z648)","v":""},{"$f":"IF('1. Order'!AA648=\"\",\"\",'1. Order'!AA648)","v":""},{"$f":"IF('1. Order'!AB648=\"\",\"\",'1. Order'!AB648)","v":""},null,{"$f":"IF('1. Order'!AT648=\"\",\"\",'1. Order'!AT648)","v":""},{"$f":"IF('1. Order'!AU648=\"\",\"\",'1. Order'!AU648)","v":""},null,null,null,null,null,null,null,{"$f":"IF('1. Order'!AY648=\"\",\"\",'1. Order'!AY648)","v":""},{"$f":"IF('1. Order'!AZ648=\"\",\"\",'1. Order'!AZ648)","v":""},{"$f":"IF('1. Order'!BA648=\"\",\"\",'1. Order'!BA648)","v":""},{"$f":"IF('1. Order'!BB648=\"\",\"\",'1. Order'!BB648)","v":""},{"$f":"IF('1. Order'!BD648=\"\",\"\",'1. Order'!BD648)","v":""},{"$f":"IF('1. Order'!BE648=\"\",\"\",'1. Order'!BE648)","v":""},{"$f":"IF('1. Order'!BF648=\"\",\"\",'1. Order'!BF648)","v":""},{"$f":"IF('1. Order'!BG648=\"\",\"\",'1. Order'!BG648)","v":""},{"$f":"IF('1. Order'!BH648=\"\",\"\",'1. Order'!BH648)","v":"ZWO"}]
[{"$f":"IF('1. Order'!F649=\"\",\"\",'1. Order'!F649)","v":{"$error":"#N/A"}},{"$f":"IF('1. Order'!G649=\"\",\"\",'1. Order'!G649)","v":""},{"$f":"IF('1. Order'!H649=\"\",\"\",'1. Order'!H649)","v":""},{"$f":"IF('1. Order'!I649=\"\",\"\",'1. Order'!I649)","v":""},{"$f":"IF('1. Order'!J649=\"\",\"\",'1. Order'!J649)","v":""},{"$f":"IF('1. Order'!K649=\"\",\"\",'1. Order'!K649)","v":""},{"$f":"IF('1. Order'!L649=\"\",\"\",'1. Order'!L649)","v":""},{"$f":"IF('1. Order'!M649=\"\",\"\",'1. Order'!M649)","v":""},{"$f":"IF('1. Order'!N649=\"\",\"\",'1. Order'!N649)","v":""},{"$f":"IF('1. Order'!O649=\"\",\"\",'1. Order'!O649)","v":{"$error":"#N/A"}},{"$f":"IF('1. Order'!P649=\"\",\"\",'1. Order'!P649)","v":{"$error":"#N/A"}},{"$f":"IF('1. Order'!Q649=\"\",\"\",'1. Order'!Q649)","v":""},{"$f":"IF('1. Order'!S649=\"\",\"\",'1. Order'!S649)","v":""},{"$f":"IF('1. Order'!T649=\"\",\"\",'1. Order'!T649)","v":""},{"$f":"IF('1. Order'!W649=\"\",\"\",'1. Order'!W649)","v":""},{"$f":"IF('1. Order'!X649=\"\",\"\",'1. Order'!X649)","v":""},{"$f":"IF('1. Order'!Y649=\"\",\"\",'1. Order'!Y649)","v":"EUR"},{"$f":"IF('1. Order'!Z649=\"\",\"\",'1. Order'!Z649)","v":""},{"$f":"IF('1. Order'!AA649=\"\",\"\",'1. Order'!AA649)","v":""},{"$f":"IF('1. Order'!AB649=\"\",\"\",'1. Order'!AB649)","v":""},null,{"$f":"IF('1. Order'!AT649=\"\",\"\",'1. Order'!AT649)","v":""},{"$f":"IF('1. Order'!AU649=\"\",\"\",'1. Order'!AU649)","v":""},null,null,null,null,null,null,null,{"$f":"IF('1. Order'!AY649=\"\",\"\",'1. Order'!AY649)","v":""},{"$f":"IF('1. Order'!AZ649=\"\",\"\",'1. Order'!AZ649)","v":""},{"$f":"IF('1. Order'!BA649=\"\",\"\",'1. Order'!BA649)","v":""},{"$f":"IF('1. Order'!BB649=\"\",\"\",'1. Order'!BB649)","v":""},{"$f":"IF('1. Order'!BD649=\"\",\"\",'1. Order'!BD649)","v":""},{"$f":"IF('1. Order'!BE649=\"\",\"\",'1. Order'!BE649)","v":""},{"$f":"IF('1. Order'!BF649=\"\",\"\",'1. Order'!BF649)","v":""},{"$f":"IF('1. Order'!BG649=\"\",\"\",'1. Order'!BG649)","v":""},{"$f":"IF('1. Order'!BH649=\"\",\"\",'1. Order'!BH649)","v":"ZWO"}]
[{"$f":"IF('1. Order'!F650=\"\",\"\",'1. Order'!F650)","v":{"$error":"#N/A"}},{"$f":"IF('1. Order'!G650=\"\",\"\",'1. Order'!G650)","v":""},{"$f":"IF('1. Order'!H650=\"\",\"\",'1. Order'!H650)","v":""},{"$f":"IF('1. Order'!I650=\"\",\"\",'1. Order'!I650)","v":""},{"$f":"IF('1. Order'!J650=\"\",\"\",'1. Order'!J650)","v":""},{"$f":"IF('1. Order'!K650=\"\",\"\",'1. Order'!K650)","v":""},{"$f":"IF('1. Order'!L650=\"\",\"\",'1. Order'!L650)","v":""},{"$f":"IF('1. Order'!M650=\"\",\"\",'1. Order'!M650)","v":""},{"$f":"IF('1. Order'!N650=\"\",\"\",'1. Order'!N650)","v":""},{"$f":"IF('1. Order'!O650=\"\",\"\",'1. Order'!O650)","v":{"$error":"#N/A"}},{"$f":"IF('1. Order'!P650=\"\",\"\",'1. Order'!P650)","v":{"$error":"#N/A"}},{"$f":"IF('1. Order'!Q650=\"\",\"\",'1. Order'!Q650)","v":""},{"$f":"IF('1. Order'!S650=\"\",\"\",'1. Order'!S650)","v":""},{"$f":"IF('1. Order'!T650=\"\",\"\",'1. Order'!T650)","v":""},{"$f":"IF('1. Order'!W650=\"\",\"\",'1. Order'!W650)","v":""},{"$f":"IF('1. Order'!X650=\"\",\"\",'1. Order'!X650)","v":""},{"$f":"IF('1. Order'!Y650=\"\",\"\",'1. Order'!Y650)","v":"EUR"},{"$f":"IF('1. Order'!Z650=\"\",\"\",'1. Order'!Z650)","v":""},{"$f":"IF('1. Order'!AA650=\"\",\"\",'1. Order'!AA650)","v":""},{"$f":"IF('1. Order'!AB650=\"\",\"\",'1. Order'!AB650)","v":""},null,{"$f":"IF('1. Order'!AT650=\"\",\"\",'1. Order'!AT650)","v":""},{"$f":"IF('1. Order'!AU650=\"\",\"\",'1. Order'!AU650)","v":""},null,null,null,null,null,null,null,{"$f":"IF('1. Order'!AY650=\"\",\"\",'1. Order'!AY650)","v":""},{"$f":"IF('1. Order'!AZ650=\"\",\"\",'1. Order'!AZ650)","v":""},{"$f":"IF('1. Order'!BA650=\"\",\"\",'1. Order'!BA650)","v":""},{"$f":"IF('1. Order'!BB650=\"\",\"\",'1. Order'!BB650)","v":""},{"$f":"IF('1. Order'!BD650=\"\",\"\",'1. Order'!BD650)","v":""},{"$f":"IF('1. Order'!BE650=\"\",\"\",'1. Order'!BE650)","v":""},{"$f":"IF('1. Order'!BF650=\"\",\"\",'1. Order'!BF650)","v":""},{"$f":"IF('1. Order'!BG650=\"\",\"\",'1. Order'!BG650)","v":""},{"$f":"IF('1. Order'!BH650=\"\",\"\",'1. Order'!BH650)","v":"ZWO"}]
[{"$f":"IF('1. Order'!F651=\"\",\"\",'1. Order'!F651)","v":{"$error":"#N/A"}},{"$f":"IF('1. Order'!G651=\"\",\"\",'1. Order'!G651)","v":""},{"$f":"IF('1. Order'!H651=\"\",\"\",'1. Order'!H651)","v":""},{"$f":"IF('1. Order'!I651=\"\",\"\",'1. Order'!I651)","v":""},{"$f":"IF('1. Order'!J651=\"\",\"\",'1. Order'!J651)","v":""},{"$f":"IF('1. Order'!K651=\"\",\"\",'1. Order'!K651)","v":""},{"$f":"IF('1. Order'!L651=\"\",\"\",'1. Order'!L651)","v":""},{"$f":"IF('1. Order'!M651=\"\",\"\",'1. Order'!M651)","v":""},{"$f":"IF('1. Order'!N651=\"\",\"\",'1. Order'!N651)","v":""},{"$f":"IF('1. Order'!O651=\"\",\"\",'1. Order'!O651)","v":{"$error":"#N/A"}},{"$f":"IF('1. Order'!P651=\"\",\"\",'1. Order'!P651)","v":{"$error":"#N/A"}},{"$f":"IF('1. Order'!Q651=\"\",\"\",'1. Order'!Q651)","v":""},{"$f":"IF('1. Order'!S651=\"\",\"\",'1. Order'!S651)","v":""},{"$f":"IF('1. Order'!T651=\"\",\"\",'1. Order'!T651)","v":""},{"$f":"IF('1. Order'!W651=\"\",\"\",'1. Order'!W651)","v":""},{"$f":"IF('1. Order'!X651=\"\",\"\",'1. Order'!X651)","v":""},{"$f":"IF('1. Order'!Y651=\"\",\"\",'1. Order'!Y651)","v":"EUR"},{"$f":"IF('1. Order'!Z651=\"\",\"\",'1. Order'!Z651)","v":""},{"$f":"IF('1. Order'!AA651=\"\",\"\",'1. Order'!AA651)","v":""},{"$f":"IF('1. Order'!AB651=\"\",\"\",'1. Order'!AB651)","v":""},null,{"$f":"IF('1. Order'!AT651=\"\",\"\",'1. Order'!AT651)","v":""},{"$f":"IF('1. Order'!AU651=\"\",\"\",'1. Order'!AU651)","v":""},null,null,null,null,null,null,null,{"$f":"IF('1. Order'!AY651=\"\",\"\",'1. Order'!AY651)","v":""},{"$f":"IF('1. Order'!AZ651=\"\",\"\",'1. Order'!AZ651)","v":""},{"$f":"IF('1. Order'!BA651=\"\",\"\",'1. Order'!BA651)","v":""},{"$f":"IF('1. Order'!BB651=\"\",\"\",'1. Order'!BB651)","v":""},{"$f":"IF('1. Order'!BD651=\"\",\"\",'1. Order'!BD651)","v":""},{"$f":"IF('1. Order'!BE651=\"\",\"\",'1. Order'!BE651)","v":""},{"$f":"IF('1. Order'!BF651=\"\",\"\",'1. Order'!BF651)","v":""},{"$f":"IF('1. Order'!BG651=\"\",\"\",'1. Order'!BG651)","v":""},{"$f":"IF('1. Order'!BH651=\"\",\"\",'1. Order'!BH651)","v":"ZWO"}]
[{"$f":"IF('1. Order'!F652=\"\",\"\",'1. Order'!F652)","v":{"$error":"#N/A"}},{"$f":"IF('1. Order'!G652=\"\",\"\",'1. Order'!G652)","v":""},{"$f":"IF('1. Order'!H652=\"\",\"\",'1. Order'!H652)","v":""},{"$f":"IF('1. Order'!I652=\"\",\"\",'1. Order'!I652)","v":""},{"$f":"IF('1. Order'!J652=\"\",\"\",'1. Order'!J652)","v":""},{"$f":"IF('1. Order'!K652=\"\",\"\",'1. Order'!K652)","v":""},{"$f":"IF('1. Order'!L652=\"\",\"\",'1. Order'!L652)","v":""},{"$f":"IF('1. Order'!M652=\"\",\"\",'1. Order'!M652)","v":""},{"$f":"IF('1. Order'!N652=\"\",\"\",'1. Order'!N652)","v":""},{"$f":"IF('1. Order'!O652=\"\",\"\",'1. Order'!O652)","v":{"$error":"#N/A"}},{"$f":"IF('1. Order'!P652=\"\",\"\",'1. Order'!P652)","v":{"$error":"#N/A"}},{"$f":"IF('1. Order'!Q652=\"\",\"\",'1. Order'!Q652)","v":""},{"$f":"IF('1. Order'!S652=\"\",\"\",'1. Order'!S652)","v":""},{"$f":"IF('1. Order'!T652=\"\",\"\",'1. Order'!T652)","v":""},{"$f":"IF('1. Order'!W652=\"\",\"\",'1. Order'!W652)","v":""},{"$f":"IF('1. Order'!X652=\"\",\"\",'1. Order'!X652)","v":""},{"$f":"IF('1. Order'!Y652=\"\",\"\",'1. Order'!Y652)","v":"EUR"},{"$f":"IF('1. Order'!Z652=\"\",\"\",'1. Order'!Z652)","v":""},{"$f":"IF('1. Order'!AA652=\"\",\"\",'1. Order'!AA652)","v":""},{"$f":"IF('1. Order'!AB652=\"\",\"\",'1. Order'!AB652)","v":""},null,{"$f":"IF('1. Order'!AT652=\"\",\"\",'1. Order'!AT652)","v":""},{"$f":"IF('1. Order'!AU652=\"\",\"\",'1. Order'!AU652)","v":""},null,null,null,null,null,null,null,{"$f":"IF('1. Order'!AY652=\"\",\"\",'1. Order'!AY652)","v":""},{"$f":"IF('1. Order'!AZ652=\"\",\"\",'1. Order'!AZ652)","v":""},{"$f":"IF('1. Order'!BA652=\"\",\"\",'1. Order'!BA652)","v":""},{"$f":"IF('1. Order'!BB652=\"\",\"\",'1. Order'!BB652)","v":""},{"$f":"IF('1. Order'!BD652=\"\",\"\",'1. Order'!BD652)","v":""},{"$f":"IF('1. Order'!BE652=\"\",\"\",'1. Order'!BE652)","v":""},{"$f":"IF('1. Order'!BF652=\"\",\"\",'1. Order'!BF652)","v":""},{"$f":"IF('1. Order'!BG652=\"\",\"\",'1. Order'!BG652)","v":""},{"$f":"IF('1. Order'!BH652=\"\",\"\",'1. Order'!BH652)","v":"ZWO"}]
[{"$f":"IF('1. Order'!F653=\"\",\"\",'1. Order'!F653)","v":{"$error":"#N/A"}},{"$f":"IF('1. Order'!G653=\"\",\"\",'1. Order'!G653)","v":""},{"$f":"IF('1. Order'!H653=\"\",\"\",'1. Order'!H653)","v":""},{"$f":"IF('1. Order'!I653=\"\",\"\",'1. Order'!I653)","v":""},{"$f":"IF('1. Order'!J653=\"\",\"\",'1. Order'!J653)","v":""},{"$f":"IF('1. Order'!K653=\"\",\"\",'1. Order'!K653)","v":""},{"$f":"IF('1. Order'!L653=\"\",\"\",'1. Order'!L653)","v":""},{"$f":"IF('1. Order'!M653=\"\",\"\",'1. Order'!M653)","v":""},{"$f":"IF('1. Order'!N653=\"\",\"\",'1. Order'!N653)","v":""},{"$f":"IF('1. Order'!O653=\"\",\"\",'1. Order'!O653)","v":{"$error":"#N/A"}},{"$f":"IF('1. Order'!P653=\"\",\"\",'1. Order'!P653)","v":{"$error":"#N/A"}},{"$f":"IF('1. Order'!Q653=\"\",\"\",'1. Order'!Q653)","v":""},{"$f":"IF('1. Order'!S653=\"\",\"\",'1. Order'!S653)","v":""},{"$f":"IF('1. Order'!T653=\"\",\"\",'1. Order'!T653)","v":""},{"$f":"IF('1. Order'!W653=\"\",\"\",'1. Order'!W653)","v":""},{"$f":"IF('1. Order'!X653=\"\",\"\",'1. Order'!X653)","v":""},{"$f":"IF('1. Order'!Y653=\"\",\"\",'1. Order'!Y653)","v":"EUR"},{"$f":"IF('1. Order'!Z653=\"\",\"\",'1. Order'!Z653)","v":""},{"$f":"IF('1. Order'!AA653=\"\",\"\",'1. Order'!AA653)","v":""},{"$f":"IF('1. Order'!AB653=\"\",\"\",'1. Order'!AB653)","v":""},null,{"$f":"IF('1. Order'!AT653=\"\",\"\",'1. Order'!AT653)","v":""},{"$f":"IF('1. Order'!AU653=\"\",\"\",'1. Order'!AU653)","v":""},null,null,null,null,null,null,null,{"$f":"IF('1. Order'!AY653=\"\",\"\",'1. Order'!AY653)","v":""},{"$f":"IF('1. Order'!AZ653=\"\",\"\",'1. Order'!AZ653)","v":""},{"$f":"IF('1. Order'!BA653=\"\",\"\",'1. Order'!BA653)","v":""},{"$f":"IF('1. Order'!BB653=\"\",\"\",'1. Order'!BB653)","v":""},{"$f":"IF('1. Order'!BD653=\"\",\"\",'1. Order'!BD653)","v":""},{"$f":"IF('1. Order'!BE653=\"\",\"\",'1. Order'!BE653)","v":""},{"$f":"IF('1. Order'!BF653=\"\",\"\",'1. Order'!BF653)","v":""},{"$f":"IF('1. Order'!BG653=\"\",\"\",'1. Order'!BG653)","v":""},{"$f":"IF('1. Order'!BH653=\"\",\"\",'1. Order'!BH653)","v":"ZWO"}]
[{"$f":"IF('1. Order'!F654=\"\",\"\",'1. Order'!F654)","v":{"$error":"#N/A"}},{"$f":"IF('1. Order'!G654=\"\",\"\",'1. Order'!G654)","v":""},{"$f":"IF('1. Order'!H654=\"\",\"\",'1. Order'!H654)","v":""},{"$f":"IF('1. Order'!I654=\"\",\"\",'1. Order'!I654)","v":""},{"$f":"IF('1. Order'!J654=\"\",\"\",'1. Order'!J654)","v":""},{"$f":"IF('1. Order'!K654=\"\",\"\",'1. Order'!K654)","v":""},{"$f":"IF('1. Order'!L654=\"\",\"\",'1. Order'!L654)","v":""},{"$f":"IF('1. Order'!M654=\"\",\"\",'1. Order'!M654)","v":""},{"$f":"IF('1. Order'!N654=\"\",\"\",'1. Order'!N654)","v":""},{"$f":"IF('1. Order'!O654=\"\",\"\",'1. Order'!O654)","v":{"$error":"#N/A"}},{"$f":"IF('1. Order'!P654=\"\",\"\",'1. Order'!P654)","v":{"$error":"#N/A"}},{"$f":"IF('1. Order'!Q654=\"\",\"\",'1. Order'!Q654)","v":""},{"$f":"IF('1. Order'!S654=\"\",\"\",'1. Order'!S654)","v":""},{"$f":"IF('1. Order'!T654=\"\",\"\",'1. Order'!T654)","v":""},{"$f":"IF('1. Order'!W654=\"\",\"\",'1. Order'!W654)","v":""},{"$f":"IF('1. Order'!X654=\"\",\"\",'1. Order'!X654)","v":""},{"$f":"IF('1. Order'!Y654=\"\",\"\",'1. Order'!Y654)","v":"EUR"},{"$f":"IF('1. Order'!Z654=\"\",\"\",'1. Order'!Z654)","v":""},{"$f":"IF('1. Order'!AA654=\"\",\"\",'1. Order'!AA654)","v":""},{"$f":"IF('1. Order'!AB654=\"\",\"\",'1. Order'!AB654)","v":""},null,{"$f":"IF('1. Order'!AT654=\"\",\"\",'1. Order'!AT654)","v":""},{"$f":"IF('1. Order'!AU654=\"\",\"\",'1. Order'!AU654)","v":""},null,null,null,null,null,null,null,{"$f":"IF('1. Order'!AY654=\"\",\"\",'1. Order'!AY654)","v":""},{"$f":"IF('1. Order'!AZ654=\"\",\"\",'1. Order'!AZ654)","v":""},{"$f":"IF('1. Order'!BA654=\"\",\"\",'1. Order'!BA654)","v":""},{"$f":"IF('1. Order'!BB654=\"\",\"\",'1. Order'!BB654)","v":""},{"$f":"IF('1. Order'!BD654=\"\",\"\",'1. Order'!BD654)","v":""},{"$f":"IF('1. Order'!BE654=\"\",\"\",'1. Order'!BE654)","v":""},{"$f":"IF('1. Order'!BF654=\"\",\"\",'1. Order'!BF654)","v":""},{"$f":"IF('1. Order'!BG654=\"\",\"\",'1. Order'!BG654)","v":""},{"$f":"IF('1. Order'!BH654=\"\",\"\",'1. Order'!BH654)","v":"ZWO"}]
[{"$f":"IF('1. Order'!F655=\"\",\"\",'1. Order'!F655)","v":{"$error":"#N/A"}},{"$f":"IF('1. Order'!G655=\"\",\"\",'1. Order'!G655)","v":""},{"$f":"IF('1. Order'!H655=\"\",\"\",'1. Order'!H655)","v":""},{"$f":"IF('1. Order'!I655=\"\",\"\",'1. Order'!I655)","v":""},{"$f":"IF('1. Order'!J655=\"\",\"\",'1. Order'!J655)","v":""},{"$f":"IF('1. Order'!K655=\"\",\"\",'1. Order'!K655)","v":""},{"$f":"IF('1. Order'!L655=\"\",\"\",'1. Order'!L655)","v":""},{"$f":"IF('1. Order'!M655=\"\",\"\",'1. Order'!M655)","v":""},{"$f":"IF('1. Order'!N655=\"\",\"\",'1. Order'!N655)","v":""},{"$f":"IF('1. Order'!O655=\"\",\"\",'1. Order'!O655)","v":{"$error":"#N/A"}},{"$f":"IF('1. Order'!P655=\"\",\"\",'1. Order'!P655)","v":{"$error":"#N/A"}},{"$f":"IF('1. Order'!Q655=\"\",\"\",'1. Order'!Q655)","v":""},{"$f":"IF('1. Order'!S655=\"\",\"\",'1. Order'!S655)","v":""},{"$f":"IF('1. Order'!T655=\"\",\"\",'1. Order'!T655)","v":""},{"$f":"IF('1. Order'!W655=\"\",\"\",'1. Order'!W655)","v":""},{"$f":"IF('1. Order'!X655=\"\",\"\",'1. Order'!X655)","v":""},{"$f":"IF('1. Order'!Y655=\"\",\"\",'1. Order'!Y655)","v":"EUR"},{"$f":"IF('1. Order'!Z655=\"\",\"\",'1. Order'!Z655)","v":""},{"$f":"IF('1. Order'!AA655=\"\",\"\",'1. Order'!AA655)","v":""},{"$f":"IF('1. Order'!AB655=\"\",\"\",'1. Order'!AB655)","v":""},null,{"$f":"IF('1. Order'!AT655=\"\",\"\",'1. Order'!AT655)","v":""},{"$f":"IF('1. Order'!AU655=\"\",\"\",'1. Order'!AU655)","v":""},null,null,null,null,null,null,null,{"$f":"IF('1. Order'!AY655=\"\",\"\",'1. Order'!AY655)","v":""},{"$f":"IF('1. Order'!AZ655=\"\",\"\",'1. Order'!AZ655)","v":""},{"$f":"IF('1. Order'!BA655=\"\",\"\",'1. Order'!BA655)","v":""},{"$f":"IF('1. Order'!BB655=\"\",\"\",'1. Order'!BB655)","v":""},{"$f":"IF('1. Order'!BD655=\"\",\"\",'1. Order'!BD655)","v":""},{"$f":"IF('1. Order'!BE655=\"\",\"\",'1. Order'!BE655)","v":""},{"$f":"IF('1. Order'!BF655=\"\",\"\",'1. Order'!BF655)","v":""},{"$f":"IF('1. Order'!BG655=\"\",\"\",'1. Order'!BG655)","v":""},{"$f":"IF('1. Order'!BH655=\"\",\"\",'1. Order'!BH655)","v":"ZWO"}]
[{"$f":"IF('1. Order'!F656=\"\",\"\",'1. Order'!F656)","v":{"$error":"#N/A"}},{"$f":"IF('1. Order'!G656=\"\",\"\",'1. Order'!G656)","v":""},{"$f":"IF('1. Order'!H656=\"\",\"\",'1. Order'!H656)","v":""},{"$f":"IF('1. Order'!I656=\"\",\"\",'1. Order'!I656)","v":""},{"$f":"IF('1. Order'!J656=\"\",\"\",'1. Order'!J656)","v":""},{"$f":"IF('1. Order'!K656=\"\",\"\",'1. Order'!K656)","v":""},{"$f":"IF('1. Order'!L656=\"\",\"\",'1. Order'!L656)","v":""},{"$f":"IF('1. Order'!M656=\"\",\"\",'1. Order'!M656)","v":""},{"$f":"IF('1. Order'!N656=\"\",\"\",'1. Order'!N656)","v":""},{"$f":"IF('1. Order'!O656=\"\",\"\",'1. Order'!O656)","v":{"$error":"#N/A"}},{"$f":"IF('1. Order'!P656=\"\",\"\",'1. Order'!P656)","v":{"$error":"#N/A"}},{"$f":"IF('1. Order'!Q656=\"\",\"\",'1. Order'!Q656)","v":""},{"$f":"IF('1. Order'!S656=\"\",\"\",'1. Order'!S656)","v":""},{"$f":"IF('1. Order'!T656=\"\",\"\",'1. Order'!T656)","v":""},{"$f":"IF('1. Order'!W656=\"\",\"\",'1. Order'!W656)","v":""},{"$f":"IF('1. Order'!X656=\"\",\"\",'1. Order'!X656)","v":""},{"$f":"IF('1. Order'!Y656=\"\",\"\",'1. Order'!Y656)","v":"EUR"},{"$f":"IF('1. Order'!Z656=\"\",\"\",'1. Order'!Z656)","v":""},{"$f":"IF('1. Order'!AA656=\"\",\"\",'1. Order'!AA656)","v":""},{"$f":"IF('1. Order'!AB656=\"\",\"\",'1. Order'!AB656)","v":""},null,{"$f":"IF('1. Order'!AT656=\"\",\"\",'1. Order'!AT656)","v":""},{"$f":"IF('1. Order'!AU656=\"\",\"\",'1. Order'!AU656)","v":""},null,null,null,null,null,null,null,{"$f":"IF('1. Order'!AY656=\"\",\"\",'1. Order'!AY656)","v":""},{"$f":"IF('1. Order'!AZ656=\"\",\"\",'1. Order'!AZ656)","v":""},{"$f":"IF('1. Order'!BA656=\"\",\"\",'1. Order'!BA656)","v":""},{"$f":"IF('1. Order'!BB656=\"\",\"\",'1. Order'!BB656)","v":""},{"$f":"IF('1. Order'!BD656=\"\",\"\",'1. Order'!BD656)","v":""},{"$f":"IF('1. Order'!BE656=\"\",\"\",'1. Order'!BE656)","v":""},{"$f":"IF('1. Order'!BF656=\"\",\"\",'1. Order'!BF656)","v":""},{"$f":"IF('1. Order'!BG656=\"\",\"\",'1. Order'!BG656)","v":""},{"$f":"IF('1. Order'!BH656=\"\",\"\",'1. Order'!BH656)","v":"ZWO"}]
[{"$f":"IF('1. Order'!F657=\"\",\"\",'1. Order'!F657)","v":{"$error":"#N/A"}},{"$f":"IF('1. Order'!G657=\"\",\"\",'1. Order'!G657)","v":""},{"$f":"IF('1. Order'!H657=\"\",\"\",'1. Order'!H657)","v":""},{"$f":"IF('1. Order'!I657=\"\",\"\",'1. Order'!I657)","v":""},{"$f":"IF('1. Order'!J657=\"\",\"\",'1. Order'!J657)","v":""},{"$f":"IF('1. Order'!K657=\"\",\"\",'1. Order'!K657)","v":""},{"$f":"IF('1. Order'!L657=\"\",\"\",'1. Order'!L657)","v":""},{"$f":"IF('1. Order'!M657=\"\",\"\",'1. Order'!M657)","v":""},{"$f":"IF('1. Order'!N657=\"\",\"\",'1. Order'!N657)","v":""},{"$f":"IF('1. Order'!O657=\"\",\"\",'1. Order'!O657)","v":{"$error":"#N/A"}},{"$f":"IF('1. Order'!P657=\"\",\"\",'1. Order'!P657)","v":{"$error":"#N/A"}},{"$f":"IF('1. Order'!Q657=\"\",\"\",'1. Order'!Q657)","v":""},{"$f":"IF('1. Order'!S657=\"\",\"\",'1. Order'!S657)","v":""},{"$f":"IF('1. Order'!T657=\"\",\"\",'1. Order'!T657)","v":""},{"$f":"IF('1. Order'!W657=\"\",\"\",'1. Order'!W657)","v":""},{"$f":"IF('1. Order'!X657=\"\",\"\",'1. Order'!X657)","v":""},{"$f":"IF('1. Order'!Y657=\"\",\"\",'1. Order'!Y657)","v":"EUR"},{"$f":"IF('1. Order'!Z657=\"\",\"\",'1. Order'!Z657)","v":""},{"$f":"IF('1. Order'!AA657=\"\",\"\",'1. Order'!AA657)","v":""},{"$f":"IF('1. Order'!AB657=\"\",\"\",'1. Order'!AB657)","v":""},null,{"$f":"IF('1. Order'!AT657=\"\",\"\",'1. Order'!AT657)","v":""},{"$f":"IF('1. Order'!AU657=\"\",\"\",'1. Order'!AU657)","v":""},null,null,null,null,null,null,null,{"$f":"IF('1. Order'!AY657=\"\",\"\",'1. Order'!AY657)","v":""},{"$f":"IF('1. Order'!AZ657=\"\",\"\",'1. Order'!AZ657)","v":""},{"$f":"IF('1. Order'!BA657=\"\",\"\",'1. Order'!BA657)","v":""},{"$f":"IF('1. Order'!BB657=\"\",\"\",'1. Order'!BB657)","v":""},{"$f":"IF('1. Order'!BD657=\"\",\"\",'1. Order'!BD657)","v":""},{"$f":"IF('1. Order'!BE657=\"\",\"\",'1. Order'!BE657)","v":""},{"$f":"IF('1. Order'!BF657=\"\",\"\",'1. Order'!BF657)","v":""},{"$f":"IF('1. Order'!BG657=\"\",\"\",'1. Order'!BG657)","v":""},{"$f":"IF('1. Order'!BH657=\"\",\"\",'1. Order'!BH657)","v":"ZWO"}]
[{"$f":"IF('1. Order'!F658=\"\",\"\",'1. Order'!F658)","v":{"$error":"#N/A"}},{"$f":"IF('1. Order'!G658=\"\",\"\",'1. Order'!G658)","v":""},{"$f":"IF('1. Order'!H658=\"\",\"\",'1. Order'!H658)","v":""},{"$f":"IF('1. Order'!I658=\"\",\"\",'1. Order'!I658)","v":""},{"$f":"IF('1. Order'!J658=\"\",\"\",'1. Order'!J658)","v":""},{"$f":"IF('1. Order'!K658=\"\",\"\",'1. Order'!K658)","v":""},{"$f":"IF('1. Order'!L658=\"\",\"\",'1. Order'!L658)","v":""},{"$f":"IF('1. Order'!M658=\"\",\"\",'1. Order'!M658)","v":""},{"$f":"IF('1. Order'!N658=\"\",\"\",'1. Order'!N658)","v":""},{"$f":"IF('1. Order'!O658=\"\",\"\",'1. Order'!O658)","v":{"$error":"#N/A"}},{"$f":"IF('1. Order'!P658=\"\",\"\",'1. Order'!P658)","v":{"$error":"#N/A"}},{"$f":"IF('1. Order'!Q658=\"\",\"\",'1. Order'!Q658)","v":""},{"$f":"IF('1. Order'!S658=\"\",\"\",'1. Order'!S658)","v":""},{"$f":"IF('1. Order'!T658=\"\",\"\",'1. Order'!T658)","v":""},{"$f":"IF('1. Order'!W658=\"\",\"\",'1. Order'!W658)","v":""},{"$f":"IF('1. Order'!X658=\"\",\"\",'1. Order'!X658)","v":""},{"$f":"IF('1. Order'!Y658=\"\",\"\",'1. Order'!Y658)","v":"EUR"},{"$f":"IF('1. Order'!Z658=\"\",\"\",'1. Order'!Z658)","v":""},{"$f":"IF('1. Order'!AA658=\"\",\"\",'1. Order'!AA658)","v":""},{"$f":"IF('1. Order'!AB658=\"\",\"\",'1. Order'!AB658)","v":""},null,{"$f":"IF('1. Order'!AT658=\"\",\"\",'1. Order'!AT658)","v":""},{"$f":"IF('1. Order'!AU658=\"\",\"\",'1. Order'!AU658)","v":""},null,null,null,null,null,null,null,{"$f":"IF('1. Order'!AY658=\"\",\"\",'1. Order'!AY658)","v":""},{"$f":"IF('1. Order'!AZ658=\"\",\"\",'1. Order'!AZ658)","v":""},{"$f":"IF('1. Order'!BA658=\"\",\"\",'1. Order'!BA658)","v":""},{"$f":"IF('1. Order'!BB658=\"\",\"\",'1. Order'!BB658)","v":""},{"$f":"IF('1. Order'!BD658=\"\",\"\",'1. Order'!BD658)","v":""},{"$f":"IF('1. Order'!BE658=\"\",\"\",'1. Order'!BE658)","v":""},{"$f":"IF('1. Order'!BF658=\"\",\"\",'1. Order'!BF658)","v":""},{"$f":"IF('1. Order'!BG658=\"\",\"\",'1. Order'!BG658)","v":""},{"$f":"IF('1. Order'!BH658=\"\",\"\",'1. Order'!BH658)","v":"ZWO"}]
[{"$f":"IF('1. Order'!F659=\"\",\"\",'1. Order'!F659)","v":{"$error":"#N/A"}},{"$f":"IF('1. Order'!G659=\"\",\"\",'1. Order'!G659)","v":""},{"$f":"IF('1. Order'!H659=\"\",\"\",'1. Order'!H659)","v":""},{"$f":"IF('1. Order'!I659=\"\",\"\",'1. Order'!I659)","v":""},{"$f":"IF('1. Order'!J659=\"\",\"\",'1. Order'!J659)","v":""},{"$f":"IF('1. Order'!K659=\"\",\"\",'1. Order'!K659)","v":""},{"$f":"IF('1. Order'!L659=\"\",\"\",'1. Order'!L659)","v":""},{"$f":"IF('1. Order'!M659=\"\",\"\",'1. Order'!M659)","v":""},{"$f":"IF('1. Order'!N659=\"\",\"\",'1. Order'!N659)","v":""},{"$f":"IF('1. Order'!O659=\"\",\"\",'1. Order'!O659)","v":{"$error":"#N/A"}},{"$f":"IF('1. Order'!P659=\"\",\"\",'1. Order'!P659)","v":{"$error":"#N/A"}},{"$f":"IF('1. Order'!Q659=\"\",\"\",'1. Order'!Q659)","v":""},{"$f":"IF('1. Order'!S659=\"\",\"\",'1. Order'!S659)","v":""},{"$f":"IF('1. Order'!T659=\"\",\"\",'1. Order'!T659)","v":""},{"$f":"IF('1. Order'!W659=\"\",\"\",'1. Order'!W659)","v":""},{"$f":"IF('1. Order'!X659=\"\",\"\",'1. Order'!X659)","v":""},{"$f":"IF('1. Order'!Y659=\"\",\"\",'1. Order'!Y659)","v":"EUR"},{"$f":"IF('1. Order'!Z659=\"\",\"\",'1. Order'!Z659)","v":""},{"$f":"IF('1. Order'!AA659=\"\",\"\",'1. Order'!AA659)","v":""},{"$f":"IF('1. Order'!AB659=\"\",\"\",'1. Order'!AB659)","v":""},null,{"$f":"IF('1. Order'!AT659=\"\",\"\",'1. Order'!AT659)","v":""},{"$f":"IF('1. Order'!AU659=\"\",\"\",'1. Order'!AU659)","v":""},null,null,null,null,null,null,null,{"$f":"IF('1. Order'!AY659=\"\",\"\",'1. Order'!AY659)","v":""},{"$f":"IF('1. Order'!AZ659=\"\",\"\",'1. Order'!AZ659)","v":""},{"$f":"IF('1. Order'!BA659=\"\",\"\",'1. Order'!BA659)","v":""},{"$f":"IF('1. Order'!BB659=\"\",\"\",'1. Order'!BB659)","v":""},{"$f":"IF('1. Order'!BD659=\"\",\"\",'1. Order'!BD659)","v":""},{"$f":"IF('1. Order'!BE659=\"\",\"\",'1. Order'!BE659)","v":""},{"$f":"IF('1. Order'!BF659=\"\",\"\",'1. Order'!BF659)","v":""},{"$f":"IF('1. Order'!BG659=\"\",\"\",'1. Order'!BG659)","v":""},{"$f":"IF('1. Order'!BH659=\"\",\"\",'1. Order'!BH659)","v":"ZWO"}]
[{"$f":"IF('1. Order'!F660=\"\",\"\",'1. Order'!F660)","v":{"$error":"#N/A"}},{"$f":"IF('1. Order'!G660=\"\",\"\",'1. Order'!G660)","v":""},{"$f":"IF('1. Order'!H660=\"\",\"\",'1. Order'!H660)","v":""},{"$f":"IF('1. Order'!I660=\"\",\"\",'1. Order'!I660)","v":""},{"$f":"IF('1. Order'!J660=\"\",\"\",'1. Order'!J660)","v":""},{"$f":"IF('1. Order'!K660=\"\",\"\",'1. Order'!K660)","v":""},{"$f":"IF('1. Order'!L660=\"\",\"\",'1. Order'!L660)","v":""},{"$f":"IF('1. Order'!M660=\"\",\"\",'1. Order'!M660)","v":""},{"$f":"IF('1. Order'!N660=\"\",\"\",'1. Order'!N660)","v":""},{"$f":"IF('1. Order'!O660=\"\",\"\",'1. Order'!O660)","v":{"$error":"#N/A"}},{"$f":"IF('1. Order'!P660=\"\",\"\",'1. Order'!P660)","v":{"$error":"#N/A"}},{"$f":"IF('1. Order'!Q660=\"\",\"\",'1. Order'!Q660)","v":""},{"$f":"IF('1. Order'!S660=\"\",\"\",'1. Order'!S660)","v":""},{"$f":"IF('1. Order'!T660=\"\",\"\",'1. Order'!T660)","v":""},{"$f":"IF('1. Order'!W660=\"\",\"\",'1. Order'!W660)","v":""},{"$f":"IF('1. Order'!X660=\"\",\"\",'1. Order'!X660)","v":""},{"$f":"IF('1. Order'!Y660=\"\",\"\",'1. Order'!Y660)","v":"EUR"},{"$f":"IF('1. Order'!Z660=\"\",\"\",'1. Order'!Z660)","v":""},{"$f":"IF('1. Order'!AA660=\"\",\"\",'1. Order'!AA660)","v":""},{"$f":"IF('1. Order'!AB660=\"\",\"\",'1. Order'!AB660)","v":""},null,{"$f":"IF('1. Order'!AT660=\"\",\"\",'1. Order'!AT660)","v":""},{"$f":"IF('1. Order'!AU660=\"\",\"\",'1. Order'!AU660)","v":""},null,null,null,null,null,null,null,{"$f":"IF('1. Order'!AY660=\"\",\"\",'1. Order'!AY660)","v":""},{"$f":"IF('1. Order'!AZ660=\"\",\"\",'1. Order'!AZ660)","v":""},{"$f":"IF('1. Order'!BA660=\"\",\"\",'1. Order'!BA660)","v":""},{"$f":"IF('1. Order'!BB660=\"\",\"\",'1. Order'!BB660)","v":""},{"$f":"IF('1. Order'!BD660=\"\",\"\",'1. Order'!BD660)","v":""},{"$f":"IF('1. Order'!BE660=\"\",\"\",'1. Order'!BE660)","v":""},{"$f":"IF('1. Order'!BF660=\"\",\"\",'1. Order'!BF660)","v":""},{"$f":"IF('1. Order'!BG660=\"\",\"\",'1. Order'!BG660)","v":""},{"$f":"IF('1. Order'!BH660=\"\",\"\",'1. Order'!BH660)","v":"ZWO"}]
[{"$f":"IF('1. Order'!F661=\"\",\"\",'1. Order'!F661)","v":{"$error":"#N/A"}},{"$f":"IF('1. Order'!G661=\"\",\"\",'1. Order'!G661)","v":""},{"$f":"IF('1. Order'!H661=\"\",\"\",'1. Order'!H661)","v":""},{"$f":"IF('1. Order'!I661=\"\",\"\",'1. Order'!I661)","v":""},{"$f":"IF('1. Order'!J661=\"\",\"\",'1. Order'!J661)","v":""},{"$f":"IF('1. Order'!K661=\"\",\"\",'1. Order'!K661)","v":""},{"$f":"IF('1. Order'!L661=\"\",\"\",'1. Order'!L661)","v":""},{"$f":"IF('1. Order'!M661=\"\",\"\",'1. Order'!M661)","v":""},{"$f":"IF('1. Order'!N661=\"\",\"\",'1. Order'!N661)","v":""},{"$f":"IF('1. Order'!O661=\"\",\"\",'1. Order'!O661)","v":{"$error":"#N/A"}},{"$f":"IF('1. Order'!P661=\"\",\"\",'1. Order'!P661)","v":{"$error":"#N/A"}},{"$f":"IF('1. Order'!Q661=\"\",\"\",'1. Order'!Q661)","v":""},{"$f":"IF('1. Order'!S661=\"\",\"\",'1. Order'!S661)","v":""},{"$f":"IF('1. Order'!T661=\"\",\"\",'1. Order'!T661)","v":""},{"$f":"IF('1. Order'!W661=\"\",\"\",'1. Order'!W661)","v":""},{"$f":"IF('1. Order'!X661=\"\",\"\",'1. Order'!X661)","v":""},{"$f":"IF('1. Order'!Y661=\"\",\"\",'1. Order'!Y661)","v":"EUR"},{"$f":"IF('1. Order'!Z661=\"\",\"\",'1. Order'!Z661)","v":""},{"$f":"IF('1. Order'!AA661=\"\",\"\",'1. Order'!AA661)","v":""},{"$f":"IF('1. Order'!AB661=\"\",\"\",'1. Order'!AB661)","v":""},null,{"$f":"IF('1. Order'!AT661=\"\",\"\",'1. Order'!AT661)","v":""},{"$f":"IF('1. Order'!AU661=\"\",\"\",'1. Order'!AU661)","v":""},null,null,null,null,null,null,null,{"$f":"IF('1. Order'!AY661=\"\",\"\",'1. Order'!AY661)","v":""},{"$f":"IF('1. Order'!AZ661=\"\",\"\",'1. Order'!AZ661)","v":""},{"$f":"IF('1. Order'!BA661=\"\",\"\",'1. Order'!BA661)","v":""},{"$f":"IF('1. Order'!BB661=\"\",\"\",'1. Order'!BB661)","v":""},{"$f":"IF('1. Order'!BD661=\"\",\"\",'1. Order'!BD661)","v":""},{"$f":"IF('1. Order'!BE661=\"\",\"\",'1. Order'!BE661)","v":""},{"$f":"IF('1. Order'!BF661=\"\",\"\",'1. Order'!BF661)","v":""},{"$f":"IF('1. Order'!BG661=\"\",\"\",'1. Order'!BG661)","v":""},{"$f":"IF('1. Order'!BH661=\"\",\"\",'1. Order'!BH661)","v":"ZWO"}]
[{"$f":"IF('1. Order'!F662=\"\",\"\",'1. Order'!F662)","v":{"$error":"#N/A"}},{"$f":"IF('1. Order'!G662=\"\",\"\",'1. Order'!G662)","v":""},{"$f":"IF('1. Order'!H662=\"\",\"\",'1. Order'!H662)","v":""},{"$f":"IF('1. Order'!I662=\"\",\"\",'1. Order'!I662)","v":""},{"$f":"IF('1. Order'!J662=\"\",\"\",'1. Order'!J662)","v":""},{"$f":"IF('1. Order'!K662=\"\",\"\",'1. Order'!K662)","v":""},{"$f":"IF('1. Order'!L662=\"\",\"\",'1. Order'!L662)","v":""},{"$f":"IF('1. Order'!M662=\"\",\"\",'1. Order'!M662)","v":""},{"$f":"IF('1. Order'!N662=\"\",\"\",'1. Order'!N662)","v":""},{"$f":"IF('1. Order'!O662=\"\",\"\",'1. Order'!O662)","v":{"$error":"#N/A"}},{"$f":"IF('1. Order'!P662=\"\",\"\",'1. Order'!P662)","v":{"$error":"#N/A"}},{"$f":"IF('1. Order'!Q662=\"\",\"\",'1. Order'!Q662)","v":""},{"$f":"IF('1. Order'!S662=\"\",\"\",'1. Order'!S662)","v":""},{"$f":"IF('1. Order'!T662=\"\",\"\",'1. Order'!T662)","v":""},{"$f":"IF('1. Order'!W662=\"\",\"\",'1. Order'!W662)","v":""},{"$f":"IF('1. Order'!X662=\"\",\"\",'1. Order'!X662)","v":""},{"$f":"IF('1. Order'!Y662=\"\",\"\",'1. Order'!Y662)","v":"EUR"},{"$f":"IF('1. Order'!Z662=\"\",\"\",'1. Order'!Z662)","v":""},{"$f":"IF('1. Order'!AA662=\"\",\"\",'1. Order'!AA662)","v":""},{"$f":"IF('1. Order'!AB662=\"\",\"\",'1. Order'!AB662)","v":""},null,{"$f":"IF('1. Order'!AT662=\"\",\"\",'1. Order'!AT662)","v":""},{"$f":"IF('1. Order'!AU662=\"\",\"\",'1. Order'!AU662)","v":""},null,null,null,null,null,null,null,{"$f":"IF('1. Order'!AY662=\"\",\"\",'1. Order'!AY662)","v":""},{"$f":"IF('1. Order'!AZ662=\"\",\"\",'1. Order'!AZ662)","v":""},{"$f":"IF('1. Order'!BA662=\"\",\"\",'1. Order'!BA662)","v":""},{"$f":"IF('1. Order'!BB662=\"\",\"\",'1. Order'!BB662)","v":""},{"$f":"IF('1. Order'!BD662=\"\",\"\",'1. Order'!BD662)","v":""},{"$f":"IF('1. Order'!BE662=\"\",\"\",'1. Order'!BE662)","v":""},{"$f":"IF('1. Order'!BF662=\"\",\"\",'1. Order'!BF662)","v":""},{"$f":"IF('1. Order'!BG662=\"\",\"\",'1. Order'!BG662)","v":""},{"$f":"IF('1. Order'!BH662=\"\",\"\",'1. Order'!BH662)","v":"ZWO"}]
[{"$f":"IF('1. Order'!F663=\"\",\"\",'1. Order'!F663)","v":{"$error":"#N/A"}},{"$f":"IF('1. Order'!G663=\"\",\"\",'1. Order'!G663)","v":""},{"$f":"IF('1. Order'!H663=\"\",\"\",'1. Order'!H663)","v":""},{"$f":"IF('1. Order'!I663=\"\",\"\",'1. Order'!I663)","v":""},{"$f":"IF('1. Order'!J663=\"\",\"\",'1. Order'!J663)","v":""},{"$f":"IF('1. Order'!K663=\"\",\"\",'1. Order'!K663)","v":""},{"$f":"IF('1. Order'!L663=\"\",\"\",'1. Order'!L663)","v":""},{"$f":"IF('1. Order'!M663=\"\",\"\",'1. Order'!M663)","v":""},{"$f":"IF('1. Order'!N663=\"\",\"\",'1. Order'!N663)","v":""},{"$f":"IF('1. Order'!O663=\"\",\"\",'1. Order'!O663)","v":{"$error":"#N/A"}},{"$f":"IF('1. Order'!P663=\"\",\"\",'1. Order'!P663)","v":{"$error":"#N/A"}},{"$f":"IF('1. Order'!Q663=\"\",\"\",'1. Order'!Q663)","v":""},{"$f":"IF('1. Order'!S663=\"\",\"\",'1. Order'!S663)","v":""},{"$f":"IF('1. Order'!T663=\"\",\"\",'1. Order'!T663)","v":""},{"$f":"IF('1. Order'!W663=\"\",\"\",'1. Order'!W663)","v":""},{"$f":"IF('1. Order'!X663=\"\",\"\",'1. Order'!X663)","v":""},{"$f":"IF('1. Order'!Y663=\"\",\"\",'1. Order'!Y663)","v":"EUR"},{"$f":"IF('1. Order'!Z663=\"\",\"\",'1. Order'!Z663)","v":""},{"$f":"IF('1. Order'!AA663=\"\",\"\",'1. Order'!AA663)","v":""},{"$f":"IF('1. Order'!AB663=\"\",\"\",'1. Order'!AB663)","v":""},null,{"$f":"IF('1. Order'!AT663=\"\",\"\",'1. Order'!AT663)","v":""},{"$f":"IF('1. Order'!AU663=\"\",\"\",'1. Order'!AU663)","v":""},null,null,null,null,null,null,null,{"$f":"IF('1. Order'!AY663=\"\",\"\",'1. Order'!AY663)","v":""},{"$f":"IF('1. Order'!AZ663=\"\",\"\",'1. Order'!AZ663)","v":""},{"$f":"IF('1. Order'!BA663=\"\",\"\",'1. Order'!BA663)","v":""},{"$f":"IF('1. Order'!BB663=\"\",\"\",'1. Order'!BB663)","v":""},{"$f":"IF('1. Order'!BD663=\"\",\"\",'1. Order'!BD663)","v":""},{"$f":"IF('1. Order'!BE663=\"\",\"\",'1. Order'!BE663)","v":""},{"$f":"IF('1. Order'!BF663=\"\",\"\",'1. Order'!BF663)","v":""},{"$f":"IF('1. Order'!BG663=\"\",\"\",'1. Order'!BG663)","v":""},{"$f":"IF('1. Order'!BH663=\"\",\"\",'1. Order'!BH663)","v":"ZWO"}]
[{"$f":"IF('1. Order'!F664=\"\",\"\",'1. Order'!F664)","v":{"$error":"#N/A"}},{"$f":"IF('1. Order'!G664=\"\",\"\",'1. Order'!G664)","v":""},{"$f":"IF('1. Order'!H664=\"\",\"\",'1. Order'!H664)","v":""},{"$f":"IF('1. Order'!I664=\"\",\"\",'1. Order'!I664)","v":""},{"$f":"IF('1. Order'!J664=\"\",\"\",'1. Order'!J664)","v":""},{"$f":"IF('1. Order'!K664=\"\",\"\",'1. Order'!K664)","v":""},{"$f":"IF('1. Order'!L664=\"\",\"\",'1. Order'!L664)","v":""},{"$f":"IF('1. Order'!M664=\"\",\"\",'1. Order'!M664)","v":""},{"$f":"IF('1. Order'!N664=\"\",\"\",'1. Order'!N664)","v":""},{"$f":"IF('1. Order'!O664=\"\",\"\",'1. Order'!O664)","v":{"$error":"#N/A"}},{"$f":"IF('1. Order'!P664=\"\",\"\",'1. Order'!P664)","v":{"$error":"#N/A"}},{"$f":"IF('1. Order'!Q664=\"\",\"\",'1. Order'!Q664)","v":""},{"$f":"IF('1. Order'!S664=\"\",\"\",'1. Order'!S664)","v":""},{"$f":"IF('1. Order'!T664=\"\",\"\",'1. Order'!T664)","v":""},{"$f":"IF('1. Order'!W664=\"\",\"\",'1. Order'!W664)","v":""},{"$f":"IF('1. Order'!X664=\"\",\"\",'1. Order'!X664)","v":""},{"$f":"IF('1. Order'!Y664=\"\",\"\",'1. Order'!Y664)","v":"EUR"},{"$f":"IF('1. Order'!Z664=\"\",\"\",'1. Order'!Z664)","v":""},{"$f":"IF('1. Order'!AA664=\"\",\"\",'1. Order'!AA664)","v":""},{"$f":"IF('1. Order'!AB664=\"\",\"\",'1. Order'!AB664)","v":""},null,{"$f":"IF('1. Order'!AT664=\"\",\"\",'1. Order'!AT664)","v":""},{"$f":"IF('1. Order'!AU664=\"\",\"\",'1. Order'!AU664)","v":""},null,null,null,null,null,null,null,{"$f":"IF('1. Order'!AY664=\"\",\"\",'1. Order'!AY664)","v":""},{"$f":"IF('1. Order'!AZ664=\"\",\"\",'1. Order'!AZ664)","v":""},{"$f":"IF('1. Order'!BA664=\"\",\"\",'1. Order'!BA664)","v":""},{"$f":"IF('1. Order'!BB664=\"\",\"\",'1. Order'!BB664)","v":""},{"$f":"IF('1. Order'!BD664=\"\",\"\",'1. Order'!BD664)","v":""},{"$f":"IF('1. Order'!BE664=\"\",\"\",'1. Order'!BE664)","v":""},{"$f":"IF('1. Order'!BF664=\"\",\"\",'1. Order'!BF664)","v":""},{"$f":"IF('1. Order'!BG664=\"\",\"\",'1. Order'!BG664)","v":""},{"$f":"IF('1. Order'!BH664=\"\",\"\",'1. Order'!BH664)","v":"ZWO"}]
[{"$f":"IF('1. Order'!F665=\"\",\"\",'1. Order'!F665)","v":{"$error":"#N/A"}},{"$f":"IF('1. Order'!G665=\"\",\"\",'1. Order'!G665)","v":""},{"$f":"IF('1. Order'!H665=\"\",\"\",'1. Order'!H665)","v":""},{"$f":"IF('1. Order'!I665=\"\",\"\",'1. Order'!I665)","v":""},{"$f":"IF('1. Order'!J665=\"\",\"\",'1. Order'!J665)","v":""},{"$f":"IF('1. Order'!K665=\"\",\"\",'1. Order'!K665)","v":""},{"$f":"IF('1. Order'!L665=\"\",\"\",'1. Order'!L665)","v":""},{"$f":"IF('1. Order'!M665=\"\",\"\",'1. Order'!M665)","v":""},{"$f":"IF('1. Order'!N665=\"\",\"\",'1. Order'!N665)","v":""},{"$f":"IF('1. Order'!O665=\"\",\"\",'1. Order'!O665)","v":{"$error":"#N/A"}},{"$f":"IF('1. Order'!P665=\"\",\"\",'1. Order'!P665)","v":{"$error":"#N/A"}},{"$f":"IF('1. Order'!Q665=\"\",\"\",'1. Order'!Q665)","v":""},{"$f":"IF('1. Order'!S665=\"\",\"\",'1. Order'!S665)","v":""},{"$f":"IF('1. Order'!T665=\"\",\"\",'1. Order'!T665)","v":""},{"$f":"IF('1. Order'!W665=\"\",\"\",'1. Order'!W665)","v":""},{"$f":"IF('1. Order'!X665=\"\",\"\",'1. Order'!X665)","v":""},{"$f":"IF('1. Order'!Y665=\"\",\"\",'1. Order'!Y665)","v":"EUR"},{"$f":"IF('1. Order'!Z665=\"\",\"\",'1. Order'!Z665)","v":""},{"$f":"IF('1. Order'!AA665=\"\",\"\",'1. Order'!AA665)","v":""},{"$f":"IF('1. Order'!AB665=\"\",\"\",'1. Order'!AB665)","v":""},null,{"$f":"IF('1. Order'!AT665=\"\",\"\",'1. Order'!AT665)","v":""},{"$f":"IF('1. Order'!AU665=\"\",\"\",'1. Order'!AU665)","v":""},null,null,null,null,null,null,null,{"$f":"IF('1. Order'!AY665=\"\",\"\",'1. Order'!AY665)","v":""},{"$f":"IF('1. Order'!AZ665=\"\",\"\",'1. Order'!AZ665)","v":""},{"$f":"IF('1. Order'!BA665=\"\",\"\",'1. Order'!BA665)","v":""},{"$f":"IF('1. Order'!BB665=\"\",\"\",'1. Order'!BB665)","v":""},{"$f":"IF('1. Order'!BD665=\"\",\"\",'1. Order'!BD665)","v":""},{"$f":"IF('1. Order'!BE665=\"\",\"\",'1. Order'!BE665)","v":""},{"$f":"IF('1. Order'!BF665=\"\",\"\",'1. Order'!BF665)","v":""},{"$f":"IF('1. Order'!BG665=\"\",\"\",'1. Order'!BG665)","v":""},{"$f":"IF('1. Order'!BH665=\"\",\"\",'1. Order'!BH665)","v":"ZWO"}]
[{"$f":"IF('1. Order'!F666=\"\",\"\",'1. Order'!F666)","v":{"$error":"#N/A"}},{"$f":"IF('1. Order'!G666=\"\",\"\",'1. Order'!G666)","v":""},{"$f":"IF('1. Order'!H666=\"\",\"\",'1. Order'!H666)","v":""},{"$f":"IF('1. Order'!I666=\"\",\"\",'1. Order'!I666)","v":""},{"$f":"IF('1. Order'!J666=\"\",\"\",'1. Order'!J666)","v":""},{"$f":"IF('1. Order'!K666=\"\",\"\",'1. Order'!K666)","v":""},{"$f":"IF('1. Order'!L666=\"\",\"\",'1. Order'!L666)","v":""},{"$f":"IF('1. Order'!M666=\"\",\"\",'1. Order'!M666)","v":""},{"$f":"IF('1. Order'!N666=\"\",\"\",'1. Order'!N666)","v":""},{"$f":"IF('1. Order'!O666=\"\",\"\",'1. Order'!O666)","v":{"$error":"#N/A"}},{"$f":"IF('1. Order'!P666=\"\",\"\",'1. Order'!P666)","v":{"$error":"#N/A"}},{"$f":"IF('1. Order'!Q666=\"\",\"\",'1. Order'!Q666)","v":""},{"$f":"IF('1. Order'!S666=\"\",\"\",'1. Order'!S666)","v":""},{"$f":"IF('1. Order'!T666=\"\",\"\",'1. Order'!T666)","v":""},{"$f":"IF('1. Order'!W666=\"\",\"\",'1. Order'!W666)","v":""},{"$f":"IF('1. Order'!X666=\"\",\"\",'1. Order'!X666)","v":""},{"$f":"IF('1. Order'!Y666=\"\",\"\",'1. Order'!Y666)","v":"EUR"},{"$f":"IF('1. Order'!Z666=\"\",\"\",'1. Order'!Z666)","v":""},{"$f":"IF('1. Order'!AA666=\"\",\"\",'1. Order'!AA666)","v":""},{"$f":"IF('1. Order'!AB666=\"\",\"\",'1. Order'!AB666)","v":""},null,{"$f":"IF('1. Order'!AT666=\"\",\"\",'1. Order'!AT666)","v":""},{"$f":"IF('1. Order'!AU666=\"\",\"\",'1. Order'!AU666)","v":""},null,null,null,null,null,null,null,{"$f":"IF('1. Order'!AY666=\"\",\"\",'1. Order'!AY666)","v":""},{"$f":"IF('1. Order'!AZ666=\"\",\"\",'1. Order'!AZ666)","v":""},{"$f":"IF('1. Order'!BA666=\"\",\"\",'1. Order'!BA666)","v":""},{"$f":"IF('1. Order'!BB666=\"\",\"\",'1. Order'!BB666)","v":""},{"$f":"IF('1. Order'!BD666=\"\",\"\",'1. Order'!BD666)","v":""},{"$f":"IF('1. Order'!BE666=\"\",\"\",'1. Order'!BE666)","v":""},{"$f":"IF('1. Order'!BF666=\"\",\"\",'1. Order'!BF666)","v":""},{"$f":"IF('1. Order'!BG666=\"\",\"\",'1. Order'!BG666)","v":""},{"$f":"IF('1. Order'!BH666=\"\",\"\",'1. Order'!BH666)","v":"ZWO"}]
[{"$f":"IF('1. Order'!F667=\"\",\"\",'1. Order'!F667)","v":{"$error":"#N/A"}},{"$f":"IF('1. Order'!G667=\"\",\"\",'1. Order'!G667)","v":""},{"$f":"IF('1. Order'!H667=\"\",\"\",'1. Order'!H667)","v":""},{"$f":"IF('1. Order'!I667=\"\",\"\",'1. Order'!I667)","v":""},{"$f":"IF('1. Order'!J667=\"\",\"\",'1. Order'!J667)","v":""},{"$f":"IF('1. Order'!K667=\"\",\"\",'1. Order'!K667)","v":""},{"$f":"IF('1. Order'!L667=\"\",\"\",'1. Order'!L667)","v":""},{"$f":"IF('1. Order'!M667=\"\",\"\",'1. Order'!M667)","v":""},{"$f":"IF('1. Order'!N667=\"\",\"\",'1. Order'!N667)","v":""},{"$f":"IF('1. Order'!O667=\"\",\"\",'1. Order'!O667)","v":{"$error":"#N/A"}},{"$f":"IF('1. Order'!P667=\"\",\"\",'1. Order'!P667)","v":{"$error":"#N/A"}},{"$f":"IF('1. Order'!Q667=\"\",\"\",'1. Order'!Q667)","v":""},{"$f":"IF('1. Order'!S667=\"\",\"\",'1. Order'!S667)","v":""},{"$f":"IF('1. Order'!T667=\"\",\"\",'1. Order'!T667)","v":""},{"$f":"IF('1. Order'!W667=\"\",\"\",'1. Order'!W667)","v":""},{"$f":"IF('1. Order'!X667=\"\",\"\",'1. Order'!X667)","v":""},{"$f":"IF('1. Order'!Y667=\"\",\"\",'1. Order'!Y667)","v":"EUR"},{"$f":"IF('1. Order'!Z667=\"\",\"\",'1. Order'!Z667)","v":""},{"$f":"IF('1. Order'!AA667=\"\",\"\",'1. Order'!AA667)","v":""},{"$f":"IF('1. Order'!AB667=\"\",\"\",'1. Order'!AB667)","v":""},null,{"$f":"IF('1. Order'!AT667=\"\",\"\",'1. Order'!AT667)","v":""},{"$f":"IF('1. Order'!AU667=\"\",\"\",'1. Order'!AU667)","v":""},null,null,null,null,null,null,null,{"$f":"IF('1. Order'!AY667=\"\",\"\",'1. Order'!AY667)","v":""},{"$f":"IF('1. Order'!AZ667=\"\",\"\",'1. Order'!AZ667)","v":""},{"$f":"IF('1. Order'!BA667=\"\",\"\",'1. Order'!BA667)","v":""},{"$f":"IF('1. Order'!BB667=\"\",\"\",'1. Order'!BB667)","v":""},{"$f":"IF('1. Order'!BD667=\"\",\"\",'1. Order'!BD667)","v":""},{"$f":"IF('1. Order'!BE667=\"\",\"\",'1. Order'!BE667)","v":""},{"$f":"IF('1. Order'!BF667=\"\",\"\",'1. Order'!BF667)","v":""},{"$f":"IF('1. Order'!BG667=\"\",\"\",'1. Order'!BG667)","v":""},{"$f":"IF('1. Order'!BH667=\"\",\"\",'1. Order'!BH667)","v":"ZWO"}]
[{"$f":"IF('1. Order'!F668=\"\",\"\",'1. Order'!F668)","v":{"$error":"#N/A"}},{"$f":"IF('1. Order'!G668=\"\",\"\",'1. Order'!G668)","v":""},{"$f":"IF('1. Order'!H668=\"\",\"\",'1. Order'!H668)","v":""},{"$f":"IF('1. Order'!I668=\"\",\"\",'1. Order'!I668)","v":""},{"$f":"IF('1. Order'!J668=\"\",\"\",'1. Order'!J668)","v":""},{"$f":"IF('1. Order'!K668=\"\",\"\",'1. Order'!K668)","v":""},{"$f":"IF('1. Order'!L668=\"\",\"\",'1. Order'!L668)","v":""},{"$f":"IF('1. Order'!M668=\"\",\"\",'1. Order'!M668)","v":""},{"$f":"IF('1. Order'!N668=\"\",\"\",'1. Order'!N668)","v":""},{"$f":"IF('1. Order'!O668=\"\",\"\",'1. Order'!O668)","v":{"$error":"#N/A"}},{"$f":"IF('1. Order'!P668=\"\",\"\",'1. Order'!P668)","v":{"$error":"#N/A"}},{"$f":"IF('1. Order'!Q668=\"\",\"\",'1. Order'!Q668)","v":""},{"$f":"IF('1. Order'!S668=\"\",\"\",'1. Order'!S668)","v":""},{"$f":"IF('1. Order'!T668=\"\",\"\",'1. Order'!T668)","v":""},{"$f":"IF('1. Order'!W668=\"\",\"\",'1. Order'!W668)","v":""},{"$f":"IF('1. Order'!X668=\"\",\"\",'1. Order'!X668)","v":""},{"$f":"IF('1. Order'!Y668=\"\",\"\",'1. Order'!Y668)","v":"EUR"},{"$f":"IF('1. Order'!Z668=\"\",\"\",'1. Order'!Z668)","v":""},{"$f":"IF('1. Order'!AA668=\"\",\"\",'1. Order'!AA668)","v":""},{"$f":"IF('1. Order'!AB668=\"\",\"\",'1. Order'!AB668)","v":""},null,{"$f":"IF('1. Order'!AT668=\"\",\"\",'1. Order'!AT668)","v":""},{"$f":"IF('1. Order'!AU668=\"\",\"\",'1. Order'!AU668)","v":""},null,null,null,null,null,null,null,{"$f":"IF('1. Order'!AY668=\"\",\"\",'1. Order'!AY668)","v":""},{"$f":"IF('1. Order'!AZ668=\"\",\"\",'1. Order'!AZ668)","v":""},{"$f":"IF('1. Order'!BA668=\"\",\"\",'1. Order'!BA668)","v":""},{"$f":"IF('1. Order'!BB668=\"\",\"\",'1. Order'!BB668)","v":""},{"$f":"IF('1. Order'!BD668=\"\",\"\",'1. Order'!BD668)","v":""},{"$f":"IF('1. Order'!BE668=\"\",\"\",'1. Order'!BE668)","v":""},{"$f":"IF('1. Order'!BF668=\"\",\"\",'1. Order'!BF668)","v":""},{"$f":"IF('1. Order'!BG668=\"\",\"\",'1. Order'!BG668)","v":""},{"$f":"IF('1. Order'!BH668=\"\",\"\",'1. Order'!BH668)","v":"ZWO"}]
[{"$f":"IF('1. Order'!F669=\"\",\"\",'1. Order'!F669)","v":{"$error":"#N/A"}},{"$f":"IF('1. Order'!G669=\"\",\"\",'1. Order'!G669)","v":""},{"$f":"IF('1. Order'!H669=\"\",\"\",'1. Order'!H669)","v":""},{"$f":"IF('1. Order'!I669=\"\",\"\",'1. Order'!I669)","v":""},{"$f":"IF('1. Order'!J669=\"\",\"\",'1. Order'!J669)","v":""},{"$f":"IF('1. Order'!K669=\"\",\"\",'1. Order'!K669)","v":""},{"$f":"IF('1. Order'!L669=\"\",\"\",'1. Order'!L669)","v":""},{"$f":"IF('1. Order'!M669=\"\",\"\",'1. Order'!M669)","v":""},{"$f":"IF('1. Order'!N669=\"\",\"\",'1. Order'!N669)","v":""},{"$f":"IF('1. Order'!O669=\"\",\"\",'1. Order'!O669)","v":{"$error":"#N/A"}},{"$f":"IF('1. Order'!P669=\"\",\"\",'1. Order'!P669)","v":{"$error":"#N/A"}},{"$f":"IF('1. Order'!Q669=\"\",\"\",'1. Order'!Q669)","v":""},{"$f":"IF('1. Order'!S669=\"\",\"\",'1. Order'!S669)","v":""},{"$f":"IF('1. Order'!T669=\"\",\"\",'1. Order'!T669)","v":""},{"$f":"IF('1. Order'!W669=\"\",\"\",'1. Order'!W669)","v":""},{"$f":"IF('1. Order'!X669=\"\",\"\",'1. Order'!X669)","v":""},{"$f":"IF('1. Order'!Y669=\"\",\"\",'1. Order'!Y669)","v":"EUR"},{"$f":"IF('1. Order'!Z669=\"\",\"\",'1. Order'!Z669)","v":""},{"$f":"IF('1. Order'!AA669=\"\",\"\",'1. Order'!AA669)","v":""},{"$f":"IF('1. Order'!AB669=\"\",\"\",'1. Order'!AB669)","v":""},null,{"$f":"IF('1. Order'!AT669=\"\",\"\",'1. Order'!AT669)","v":""},{"$f":"IF('1. Order'!AU669=\"\",\"\",'1. Order'!AU669)","v":""},null,null,null,null,null,null,null,{"$f":"IF('1. Order'!AY669=\"\",\"\",'1. Order'!AY669)","v":""},{"$f":"IF('1. Order'!AZ669=\"\",\"\",'1. Order'!AZ669)","v":""},{"$f":"IF('1. Order'!BA669=\"\",\"\",'1. Order'!BA669)","v":""},{"$f":"IF('1. Order'!BB669=\"\",\"\",'1. Order'!BB669)","v":""},{"$f":"IF('1. Order'!BD669=\"\",\"\",'1. Order'!BD669)","v":""},{"$f":"IF('1. Order'!BE669=\"\",\"\",'1. Order'!BE669)","v":""},{"$f":"IF('1. Order'!BF669=\"\",\"\",'1. Order'!BF669)","v":""},{"$f":"IF('1. Order'!BG669=\"\",\"\",'1. Order'!BG669)","v":""},{"$f":"IF('1. Order'!BH669=\"\",\"\",'1. Order'!BH669)","v":"ZWO"}]
[{"$f":"IF('1. Order'!F670=\"\",\"\",'1. Order'!F670)","v":{"$error":"#N/A"}},{"$f":"IF('1. Order'!G670=\"\",\"\",'1. Order'!G670)","v":""},{"$f":"IF('1. Order'!H670=\"\",\"\",'1. Order'!H670)","v":""},{"$f":"IF('1. Order'!I670=\"\",\"\",'1. Order'!I670)","v":""},{"$f":"IF('1. Order'!J670=\"\",\"\",'1. Order'!J670)","v":""},{"$f":"IF('1. Order'!K670=\"\",\"\",'1. Order'!K670)","v":""},{"$f":"IF('1. Order'!L670=\"\",\"\",'1. Order'!L670)","v":""},{"$f":"IF('1. Order'!M670=\"\",\"\",'1. Order'!M670)","v":""},{"$f":"IF('1. Order'!N670=\"\",\"\",'1. Order'!N670)","v":""},{"$f":"IF('1. Order'!O670=\"\",\"\",'1. Order'!O670)","v":{"$error":"#N/A"}},{"$f":"IF('1. Order'!P670=\"\",\"\",'1. Order'!P670)","v":{"$error":"#N/A"}},{"$f":"IF('1. Order'!Q670=\"\",\"\",'1. Order'!Q670)","v":""},{"$f":"IF('1. Order'!S670=\"\",\"\",'1. Order'!S670)","v":""},{"$f":"IF('1. Order'!T670=\"\",\"\",'1. Order'!T670)","v":""},{"$f":"IF('1. Order'!W670=\"\",\"\",'1. Order'!W670)","v":""},{"$f":"IF('1. Order'!X670=\"\",\"\",'1. Order'!X670)","v":""},{"$f":"IF('1. Order'!Y670=\"\",\"\",'1. Order'!Y670)","v":"EUR"},{"$f":"IF('1. Order'!Z670=\"\",\"\",'1. Order'!Z670)","v":""},{"$f":"IF('1. Order'!AA670=\"\",\"\",'1. Order'!AA670)","v":""},{"$f":"IF('1. Order'!AB670=\"\",\"\",'1. Order'!AB670)","v":""},null,{"$f":"IF('1. Order'!AT670=\"\",\"\",'1. Order'!AT670)","v":""},{"$f":"IF('1. Order'!AU670=\"\",\"\",'1. Order'!AU670)","v":""},null,null,null,null,null,null,null,{"$f":"IF('1. Order'!AY670=\"\",\"\",'1. Order'!AY670)","v":""},{"$f":"IF('1. Order'!AZ670=\"\",\"\",'1. Order'!AZ670)","v":""},{"$f":"IF('1. Order'!BA670=\"\",\"\",'1. Order'!BA670)","v":""},{"$f":"IF('1. Order'!BB670=\"\",\"\",'1. Order'!BB670)","v":""},{"$f":"IF('1. Order'!BD670=\"\",\"\",'1. Order'!BD670)","v":""},{"$f":"IF('1. Order'!BE670=\"\",\"\",'1. Order'!BE670)","v":""},{"$f":"IF('1. Order'!BF670=\"\",\"\",'1. Order'!BF670)","v":""},{"$f":"IF('1. Order'!BG670=\"\",\"\",'1. Order'!BG670)","v":""},{"$f":"IF('1. Order'!BH670=\"\",\"\",'1. Order'!BH670)","v":"ZWO"}]
[{"$f":"IF('1. Order'!F671=\"\",\"\",'1. Order'!F671)","v":{"$error":"#N/A"}},{"$f":"IF('1. Order'!G671=\"\",\"\",'1. Order'!G671)","v":""},{"$f":"IF('1. Order'!H671=\"\",\"\",'1. Order'!H671)","v":""},{"$f":"IF('1. Order'!I671=\"\",\"\",'1. Order'!I671)","v":""},{"$f":"IF('1. Order'!J671=\"\",\"\",'1. Order'!J671)","v":""},{"$f":"IF('1. Order'!K671=\"\",\"\",'1. Order'!K671)","v":""},{"$f":"IF('1. Order'!L671=\"\",\"\",'1. Order'!L671)","v":""},{"$f":"IF('1. Order'!M671=\"\",\"\",'1. Order'!M671)","v":""},{"$f":"IF('1. Order'!N671=\"\",\"\",'1. Order'!N671)","v":""},{"$f":"IF('1. Order'!O671=\"\",\"\",'1. Order'!O671)","v":{"$error":"#N/A"}},{"$f":"IF('1. Order'!P671=\"\",\"\",'1. Order'!P671)","v":{"$error":"#N/A"}},{"$f":"IF('1. Order'!Q671=\"\",\"\",'1. Order'!Q671)","v":""},{"$f":"IF('1. Order'!S671=\"\",\"\",'1. Order'!S671)","v":""},{"$f":"IF('1. Order'!T671=\"\",\"\",'1. Order'!T671)","v":""},{"$f":"IF('1. Order'!W671=\"\",\"\",'1. Order'!W671)","v":""},{"$f":"IF('1. Order'!X671=\"\",\"\",'1. Order'!X671)","v":""},{"$f":"IF('1. Order'!Y671=\"\",\"\",'1. Order'!Y671)","v":"EUR"},{"$f":"IF('1. Order'!Z671=\"\",\"\",'1. Order'!Z671)","v":""},{"$f":"IF('1. Order'!AA671=\"\",\"\",'1. Order'!AA671)","v":""},{"$f":"IF('1. Order'!AB671=\"\",\"\",'1. Order'!AB671)","v":""},null,{"$f":"IF('1. Order'!AT671=\"\",\"\",'1. Order'!AT671)","v":""},{"$f":"IF('1. Order'!AU671=\"\",\"\",'1. Order'!AU671)","v":""},null,null,null,null,null,null,null,{"$f":"IF('1. Order'!AY671=\"\",\"\",'1. Order'!AY671)","v":""},{"$f":"IF('1. Order'!AZ671=\"\",\"\",'1. Order'!AZ671)","v":""},{"$f":"IF('1. Order'!BA671=\"\",\"\",'1. Order'!BA671)","v":""},{"$f":"IF('1. Order'!BB671=\"\",\"\",'1. Order'!BB671)","v":""},{"$f":"IF('1. Order'!BD671=\"\",\"\",'1. Order'!BD671)","v":""},{"$f":"IF('1. Order'!BE671=\"\",\"\",'1. Order'!BE671)","v":""},{"$f":"IF('1. Order'!BF671=\"\",\"\",'1. Order'!BF671)","v":""},{"$f":"IF('1. Order'!BG671=\"\",\"\",'1. Order'!BG671)","v":""},{"$f":"IF('1. Order'!BH671=\"\",\"\",'1. Order'!BH671)","v":"ZWO"}]
[{"$f":"IF('1. Order'!F672=\"\",\"\",'1. Order'!F672)","v":{"$error":"#N/A"}},{"$f":"IF('1. Order'!G672=\"\",\"\",'1. Order'!G672)","v":""},{"$f":"IF('1. Order'!H672=\"\",\"\",'1. Order'!H672)","v":""},{"$f":"IF('1. Order'!I672=\"\",\"\",'1. Order'!I672)","v":""},{"$f":"IF('1. Order'!J672=\"\",\"\",'1. Order'!J672)","v":""},{"$f":"IF('1. Order'!K672=\"\",\"\",'1. Order'!K672)","v":""},{"$f":"IF('1. Order'!L672=\"\",\"\",'1. Order'!L672)","v":""},{"$f":"IF('1. Order'!M672=\"\",\"\",'1. Order'!M672)","v":""},{"$f":"IF('1. Order'!N672=\"\",\"\",'1. Order'!N672)","v":""},{"$f":"IF('1. Order'!O672=\"\",\"\",'1. Order'!O672)","v":{"$error":"#N/A"}},{"$f":"IF('1. Order'!P672=\"\",\"\",'1. Order'!P672)","v":{"$error":"#N/A"}},{"$f":"IF('1. Order'!Q672=\"\",\"\",'1. Order'!Q672)","v":""},{"$f":"IF('1. Order'!S672=\"\",\"\",'1. Order'!S672)","v":""},{"$f":"IF('1. Order'!T672=\"\",\"\",'1. Order'!T672)","v":""},{"$f":"IF('1. Order'!W672=\"\",\"\",'1. Order'!W672)","v":""},{"$f":"IF('1. Order'!X672=\"\",\"\",'1. Order'!X672)","v":""},{"$f":"IF('1. Order'!Y672=\"\",\"\",'1. Order'!Y672)","v":"EUR"},{"$f":"IF('1. Order'!Z672=\"\",\"\",'1. Order'!Z672)","v":""},{"$f":"IF('1. Order'!AA672=\"\",\"\",'1. Order'!AA672)","v":""},{"$f":"IF('1. Order'!AB672=\"\",\"\",'1. Order'!AB672)","v":""},null,{"$f":"IF('1. Order'!AT672=\"\",\"\",'1. Order'!AT672)","v":""},{"$f":"IF('1. Order'!AU672=\"\",\"\",'1. Order'!AU672)","v":""},null,null,null,null,null,null,null,{"$f":"IF('1. Order'!AY672=\"\",\"\",'1. Order'!AY672)","v":""},{"$f":"IF('1. Order'!AZ672=\"\",\"\",'1. Order'!AZ672)","v":""},{"$f":"IF('1. Order'!BA672=\"\",\"\",'1. Order'!BA672)","v":""},{"$f":"IF('1. Order'!BB672=\"\",\"\",'1. Order'!BB672)","v":""},{"$f":"IF('1. Order'!BD672=\"\",\"\",'1. Order'!BD672)","v":""},{"$f":"IF('1. Order'!BE672=\"\",\"\",'1. Order'!BE672)","v":""},{"$f":"IF('1. Order'!BF672=\"\",\"\",'1. Order'!BF672)","v":""},{"$f":"IF('1. Order'!BG672=\"\",\"\",'1. Order'!BG672)","v":""},{"$f":"IF('1. Order'!BH672=\"\",\"\",'1. Order'!BH672)","v":"ZWO"}]
[{"$f":"IF('1. Order'!F673=\"\",\"\",'1. Order'!F673)","v":{"$error":"#N/A"}},{"$f":"IF('1. Order'!G673=\"\",\"\",'1. Order'!G673)","v":""},{"$f":"IF('1. Order'!H673=\"\",\"\",'1. Order'!H673)","v":""},{"$f":"IF('1. Order'!I673=\"\",\"\",'1. Order'!I673)","v":""},{"$f":"IF('1. Order'!J673=\"\",\"\",'1. Order'!J673)","v":""},{"$f":"IF('1. Order'!K673=\"\",\"\",'1. Order'!K673)","v":""},{"$f":"IF('1. Order'!L673=\"\",\"\",'1. Order'!L673)","v":""},{"$f":"IF('1. Order'!M673=\"\",\"\",'1. Order'!M673)","v":""},{"$f":"IF('1. Order'!N673=\"\",\"\",'1. Order'!N673)","v":""},{"$f":"IF('1. Order'!O673=\"\",\"\",'1. Order'!O673)","v":{"$error":"#N/A"}},{"$f":"IF('1. Order'!P673=\"\",\"\",'1. Order'!P673)","v":{"$error":"#N/A"}},{"$f":"IF('1. Order'!Q673=\"\",\"\",'1. Order'!Q673)","v":""},{"$f":"IF('1. Order'!S673=\"\",\"\",'1. Order'!S673)","v":""},{"$f":"IF('1. Order'!T673=\"\",\"\",'1. Order'!T673)","v":""},{"$f":"IF('1. Order'!W673=\"\",\"\",'1. Order'!W673)","v":""},{"$f":"IF('1. Order'!X673=\"\",\"\",'1. Order'!X673)","v":""},{"$f":"IF('1. Order'!Y673=\"\",\"\",'1. Order'!Y673)","v":"EUR"},{"$f":"IF('1. Order'!Z673=\"\",\"\",'1. Order'!Z673)","v":""},{"$f":"IF('1. Order'!AA673=\"\",\"\",'1. Order'!AA673)","v":""},{"$f":"IF('1. Order'!AB673=\"\",\"\",'1. Order'!AB673)","v":""},null,{"$f":"IF('1. Order'!AT673=\"\",\"\",'1. Order'!AT673)","v":""},{"$f":"IF('1. Order'!AU673=\"\",\"\",'1. Order'!AU673)","v":""},null,null,null,null,null,null,null,{"$f":"IF('1. Order'!AY673=\"\",\"\",'1. Order'!AY673)","v":""},{"$f":"IF('1. Order'!AZ673=\"\",\"\",'1. Order'!AZ673)","v":""},{"$f":"IF('1. Order'!BA673=\"\",\"\",'1. Order'!BA673)","v":""},{"$f":"IF('1. Order'!BB673=\"\",\"\",'1. Order'!BB673)","v":""},{"$f":"IF('1. Order'!BD673=\"\",\"\",'1. Order'!BD673)","v":""},{"$f":"IF('1. Order'!BE673=\"\",\"\",'1. Order'!BE673)","v":""},{"$f":"IF('1. Order'!BF673=\"\",\"\",'1. Order'!BF673)","v":""},{"$f":"IF('1. Order'!BG673=\"\",\"\",'1. Order'!BG673)","v":""},{"$f":"IF('1. Order'!BH673=\"\",\"\",'1. Order'!BH673)","v":"ZWO"}]
[{"$f":"IF('1. Order'!F674=\"\",\"\",'1. Order'!F674)","v":{"$error":"#N/A"}},{"$f":"IF('1. Order'!G674=\"\",\"\",'1. Order'!G674)","v":""},{"$f":"IF('1. Order'!H674=\"\",\"\",'1. Order'!H674)","v":""},{"$f":"IF('1. Order'!I674=\"\",\"\",'1. Order'!I674)","v":""},{"$f":"IF('1. Order'!J674=\"\",\"\",'1. Order'!J674)","v":""},{"$f":"IF('1. Order'!K674=\"\",\"\",'1. Order'!K674)","v":""},{"$f":"IF('1. Order'!L674=\"\",\"\",'1. Order'!L674)","v":""},{"$f":"IF('1. Order'!M674=\"\",\"\",'1. Order'!M674)","v":""},{"$f":"IF('1. Order'!N674=\"\",\"\",'1. Order'!N674)","v":""},{"$f":"IF('1. Order'!O674=\"\",\"\",'1. Order'!O674)","v":{"$error":"#N/A"}},{"$f":"IF('1. Order'!P674=\"\",\"\",'1. Order'!P674)","v":{"$error":"#N/A"}},{"$f":"IF('1. Order'!Q674=\"\",\"\",'1. Order'!Q674)","v":""},{"$f":"IF('1. Order'!S674=\"\",\"\",'1. Order'!S674)","v":""},{"$f":"IF('1. Order'!T674=\"\",\"\",'1. Order'!T674)","v":""},{"$f":"IF('1. Order'!W674=\"\",\"\",'1. Order'!W674)","v":""},{"$f":"IF('1. Order'!X674=\"\",\"\",'1. Order'!X674)","v":""},{"$f":"IF('1. Order'!Y674=\"\",\"\",'1. Order'!Y674)","v":"EUR"},{"$f":"IF('1. Order'!Z674=\"\",\"\",'1. Order'!Z674)","v":""},{"$f":"IF('1. Order'!AA674=\"\",\"\",'1. Order'!AA674)","v":""},{"$f":"IF('1. Order'!AB674=\"\",\"\",'1. Order'!AB674)","v":""},null,{"$f":"IF('1. Order'!AT674=\"\",\"\",'1. Order'!AT674)","v":""},{"$f":"IF('1. Order'!AU674=\"\",\"\",'1. Order'!AU674)","v":""},null,null,null,null,null,null,null,{"$f":"IF('1. Order'!AY674=\"\",\"\",'1. Order'!AY674)","v":""},{"$f":"IF('1. Order'!AZ674=\"\",\"\",'1. Order'!AZ674)","v":""},{"$f":"IF('1. Order'!BA674=\"\",\"\",'1. Order'!BA674)","v":""},{"$f":"IF('1. Order'!BB674=\"\",\"\",'1. Order'!BB674)","v":""},{"$f":"IF('1. Order'!BD674=\"\",\"\",'1. Order'!BD674)","v":""},{"$f":"IF('1. Order'!BE674=\"\",\"\",'1. Order'!BE674)","v":""},{"$f":"IF('1. Order'!BF674=\"\",\"\",'1. Order'!BF674)","v":""},{"$f":"IF('1. Order'!BG674=\"\",\"\",'1. Order'!BG674)","v":""},{"$f":"IF('1. Order'!BH674=\"\",\"\",'1. Order'!BH674)","v":"ZWO"}]
[{"$f":"IF('1. Order'!F675=\"\",\"\",'1. Order'!F675)","v":{"$error":"#N/A"}},{"$f":"IF('1. Order'!G675=\"\",\"\",'1. Order'!G675)","v":""},{"$f":"IF('1. Order'!H675=\"\",\"\",'1. Order'!H675)","v":""},{"$f":"IF('1. Order'!I675=\"\",\"\",'1. Order'!I675)","v":""},{"$f":"IF('1. Order'!J675=\"\",\"\",'1. Order'!J675)","v":""},{"$f":"IF('1. Order'!K675=\"\",\"\",'1. Order'!K675)","v":""},{"$f":"IF('1. Order'!L675=\"\",\"\",'1. Order'!L675)","v":""},{"$f":"IF('1. Order'!M675=\"\",\"\",'1. Order'!M675)","v":""},{"$f":"IF('1. Order'!N675=\"\",\"\",'1. Order'!N675)","v":""},{"$f":"IF('1. Order'!O675=\"\",\"\",'1. Order'!O675)","v":{"$error":"#N/A"}},{"$f":"IF('1. Order'!P675=\"\",\"\",'1. Order'!P675)","v":{"$error":"#N/A"}},{"$f":"IF('1. Order'!Q675=\"\",\"\",'1. Order'!Q675)","v":""},{"$f":"IF('1. Order'!S675=\"\",\"\",'1. Order'!S675)","v":""},{"$f":"IF('1. Order'!T675=\"\",\"\",'1. Order'!T675)","v":""},{"$f":"IF('1. Order'!W675=\"\",\"\",'1. Order'!W675)","v":""},{"$f":"IF('1. Order'!X675=\"\",\"\",'1. Order'!X675)","v":""},{"$f":"IF('1. Order'!Y675=\"\",\"\",'1. Order'!Y675)","v":"EUR"},{"$f":"IF('1. Order'!Z675=\"\",\"\",'1. Order'!Z675)","v":""},{"$f":"IF('1. Order'!AA675=\"\",\"\",'1. Order'!AA675)","v":""},{"$f":"IF('1. Order'!AB675=\"\",\"\",'1. Order'!AB675)","v":""},null,{"$f":"IF('1. Order'!AT675=\"\",\"\",'1. Order'!AT675)","v":""},{"$f":"IF('1. Order'!AU675=\"\",\"\",'1. Order'!AU675)","v":""},null,null,null,null,null,null,null,{"$f":"IF('1. Order'!AY675=\"\",\"\",'1. Order'!AY675)","v":""},{"$f":"IF('1. Order'!AZ675=\"\",\"\",'1. Order'!AZ675)","v":""},{"$f":"IF('1. Order'!BA675=\"\",\"\",'1. Order'!BA675)","v":""},{"$f":"IF('1. Order'!BB675=\"\",\"\",'1. Order'!BB675)","v":""},{"$f":"IF('1. Order'!BD675=\"\",\"\",'1. Order'!BD675)","v":""},{"$f":"IF('1. Order'!BE675=\"\",\"\",'1. Order'!BE675)","v":""},{"$f":"IF('1. Order'!BF675=\"\",\"\",'1. Order'!BF675)","v":""},{"$f":"IF('1. Order'!BG675=\"\",\"\",'1. Order'!BG675)","v":""},{"$f":"IF('1. Order'!BH675=\"\",\"\",'1. Order'!BH675)","v":"ZWO"}]
[{"$f":"IF('1. Order'!F676=\"\",\"\",'1. Order'!F676)","v":{"$error":"#N/A"}},{"$f":"IF('1. Order'!G676=\"\",\"\",'1. Order'!G676)","v":""},{"$f":"IF('1. Order'!H676=\"\",\"\",'1. Order'!H676)","v":""},{"$f":"IF('1. Order'!I676=\"\",\"\",'1. Order'!I676)","v":""},{"$f":"IF('1. Order'!J676=\"\",\"\",'1. Order'!J676)","v":""},{"$f":"IF('1. Order'!K676=\"\",\"\",'1. Order'!K676)","v":""},{"$f":"IF('1. Order'!L676=\"\",\"\",'1. Order'!L676)","v":""},{"$f":"IF('1. Order'!M676=\"\",\"\",'1. Order'!M676)","v":""},{"$f":"IF('1. Order'!N676=\"\",\"\",'1. Order'!N676)","v":""},{"$f":"IF('1. Order'!O676=\"\",\"\",'1. Order'!O676)","v":{"$error":"#N/A"}},{"$f":"IF('1. Order'!P676=\"\",\"\",'1. Order'!P676)","v":{"$error":"#N/A"}},{"$f":"IF('1. Order'!Q676=\"\",\"\",'1. Order'!Q676)","v":""},{"$f":"IF('1. Order'!S676=\"\",\"\",'1. Order'!S676)","v":""},{"$f":"IF('1. Order'!T676=\"\",\"\",'1. Order'!T676)","v":""},{"$f":"IF('1. Order'!W676=\"\",\"\",'1. Order'!W676)","v":""},{"$f":"IF('1. Order'!X676=\"\",\"\",'1. Order'!X676)","v":""},{"$f":"IF('1. Order'!Y676=\"\",\"\",'1. Order'!Y676)","v":"EUR"},{"$f":"IF('1. Order'!Z676=\"\",\"\",'1. Order'!Z676)","v":""},{"$f":"IF('1. Order'!AA676=\"\",\"\",'1. Order'!AA676)","v":""},{"$f":"IF('1. Order'!AB676=\"\",\"\",'1. Order'!AB676)","v":""},null,{"$f":"IF('1. Order'!AT676=\"\",\"\",'1. Order'!AT676)","v":""},{"$f":"IF('1. Order'!AU676=\"\",\"\",'1. Order'!AU676)","v":""},null,null,null,null,null,null,null,{"$f":"IF('1. Order'!AY676=\"\",\"\",'1. Order'!AY676)","v":""},{"$f":"IF('1. Order'!AZ676=\"\",\"\",'1. Order'!AZ676)","v":""},{"$f":"IF('1. Order'!BA676=\"\",\"\",'1. Order'!BA676)","v":""},{"$f":"IF('1. Order'!BB676=\"\",\"\",'1. Order'!BB676)","v":""},{"$f":"IF('1. Order'!BD676=\"\",\"\",'1. Order'!BD676)","v":""},{"$f":"IF('1. Order'!BE676=\"\",\"\",'1. Order'!BE676)","v":""},{"$f":"IF('1. Order'!BF676=\"\",\"\",'1. Order'!BF676)","v":""},{"$f":"IF('1. Order'!BG676=\"\",\"\",'1. Order'!BG676)","v":""},{"$f":"IF('1. Order'!BH676=\"\",\"\",'1. Order'!BH676)","v":"ZWO"}]
[{"$f":"IF('1. Order'!F677=\"\",\"\",'1. Order'!F677)","v":{"$error":"#N/A"}},{"$f":"IF('1. Order'!G677=\"\",\"\",'1. Order'!G677)","v":""},{"$f":"IF('1. Order'!H677=\"\",\"\",'1. Order'!H677)","v":""},{"$f":"IF('1. Order'!I677=\"\",\"\",'1. Order'!I677)","v":""},{"$f":"IF('1. Order'!J677=\"\",\"\",'1. Order'!J677)","v":""},{"$f":"IF('1. Order'!K677=\"\",\"\",'1. Order'!K677)","v":""},{"$f":"IF('1. Order'!L677=\"\",\"\",'1. Order'!L677)","v":""},{"$f":"IF('1. Order'!M677=\"\",\"\",'1. Order'!M677)","v":""},{"$f":"IF('1. Order'!N677=\"\",\"\",'1. Order'!N677)","v":""},{"$f":"IF('1. Order'!O677=\"\",\"\",'1. Order'!O677)","v":{"$error":"#N/A"}},{"$f":"IF('1. Order'!P677=\"\",\"\",'1. Order'!P677)","v":{"$error":"#N/A"}},{"$f":"IF('1. Order'!Q677=\"\",\"\",'1. Order'!Q677)","v":""},{"$f":"IF('1. Order'!S677=\"\",\"\",'1. Order'!S677)","v":""},{"$f":"IF('1. Order'!T677=\"\",\"\",'1. Order'!T677)","v":""},{"$f":"IF('1. Order'!W677=\"\",\"\",'1. Order'!W677)","v":""},{"$f":"IF('1. Order'!X677=\"\",\"\",'1. Order'!X677)","v":""},{"$f":"IF('1. Order'!Y677=\"\",\"\",'1. Order'!Y677)","v":"EUR"},{"$f":"IF('1. Order'!Z677=\"\",\"\",'1. Order'!Z677)","v":""},{"$f":"IF('1. Order'!AA677=\"\",\"\",'1. Order'!AA677)","v":""},{"$f":"IF('1. Order'!AB677=\"\",\"\",'1. Order'!AB677)","v":""},null,{"$f":"IF('1. Order'!AT677=\"\",\"\",'1. Order'!AT677)","v":""},{"$f":"IF('1. Order'!AU677=\"\",\"\",'1. Order'!AU677)","v":""},null,null,null,null,null,null,null,{"$f":"IF('1. Order'!AY677=\"\",\"\",'1. Order'!AY677)","v":""},{"$f":"IF('1. Order'!AZ677=\"\",\"\",'1. Order'!AZ677)","v":""},{"$f":"IF('1. Order'!BA677=\"\",\"\",'1. Order'!BA677)","v":""},{"$f":"IF('1. Order'!BB677=\"\",\"\",'1. Order'!BB677)","v":""},{"$f":"IF('1. Order'!BD677=\"\",\"\",'1. Order'!BD677)","v":""},{"$f":"IF('1. Order'!BE677=\"\",\"\",'1. Order'!BE677)","v":""},{"$f":"IF('1. Order'!BF677=\"\",\"\",'1. Order'!BF677)","v":""},{"$f":"IF('1. Order'!BG677=\"\",\"\",'1. Order'!BG677)","v":""},{"$f":"IF('1. Order'!BH677=\"\",\"\",'1. Order'!BH677)","v":"ZWO"}]
[{"$f":"IF('1. Order'!F678=\"\",\"\",'1. Order'!F678)","v":{"$error":"#N/A"}},{"$f":"IF('1. Order'!G678=\"\",\"\",'1. Order'!G678)","v":""},{"$f":"IF('1. Order'!H678=\"\",\"\",'1. Order'!H678)","v":""},{"$f":"IF('1. Order'!I678=\"\",\"\",'1. Order'!I678)","v":""},{"$f":"IF('1. Order'!J678=\"\",\"\",'1. Order'!J678)","v":""},{"$f":"IF('1. Order'!K678=\"\",\"\",'1. Order'!K678)","v":""},{"$f":"IF('1. Order'!L678=\"\",\"\",'1. Order'!L678)","v":""},{"$f":"IF('1. Order'!M678=\"\",\"\",'1. Order'!M678)","v":""},{"$f":"IF('1. Order'!N678=\"\",\"\",'1. Order'!N678)","v":""},{"$f":"IF('1. Order'!O678=\"\",\"\",'1. Order'!O678)","v":{"$error":"#N/A"}},{"$f":"IF('1. Order'!P678=\"\",\"\",'1. Order'!P678)","v":{"$error":"#N/A"}},{"$f":"IF('1. Order'!Q678=\"\",\"\",'1. Order'!Q678)","v":""},{"$f":"IF('1. Order'!S678=\"\",\"\",'1. Order'!S678)","v":""},{"$f":"IF('1. Order'!T678=\"\",\"\",'1. Order'!T678)","v":""},{"$f":"IF('1. Order'!W678=\"\",\"\",'1. Order'!W678)","v":""},{"$f":"IF('1. Order'!X678=\"\",\"\",'1. Order'!X678)","v":""},{"$f":"IF('1. Order'!Y678=\"\",\"\",'1. Order'!Y678)","v":"EUR"},{"$f":"IF('1. Order'!Z678=\"\",\"\",'1. Order'!Z678)","v":""},{"$f":"IF('1. Order'!AA678=\"\",\"\",'1. Order'!AA678)","v":""},{"$f":"IF('1. Order'!AB678=\"\",\"\",'1. Order'!AB678)","v":""},null,{"$f":"IF('1. Order'!AT678=\"\",\"\",'1. Order'!AT678)","v":""},{"$f":"IF('1. Order'!AU678=\"\",\"\",'1. Order'!AU678)","v":""},null,null,null,null,null,null,null,{"$f":"IF('1. Order'!AY678=\"\",\"\",'1. Order'!AY678)","v":""},{"$f":"IF('1. Order'!AZ678=\"\",\"\",'1. Order'!AZ678)","v":""},{"$f":"IF('1. Order'!BA678=\"\",\"\",'1. Order'!BA678)","v":""},{"$f":"IF('1. Order'!BB678=\"\",\"\",'1. Order'!BB678)","v":""},{"$f":"IF('1. Order'!BD678=\"\",\"\",'1. Order'!BD678)","v":""},{"$f":"IF('1. Order'!BE678=\"\",\"\",'1. Order'!BE678)","v":""},{"$f":"IF('1. Order'!BF678=\"\",\"\",'1. Order'!BF678)","v":""},{"$f":"IF('1. Order'!BG678=\"\",\"\",'1. Order'!BG678)","v":""},{"$f":"IF('1. Order'!BH678=\"\",\"\",'1. Order'!BH678)","v":"ZWO"}]
[{"$f":"IF('1. Order'!F679=\"\",\"\",'1. Order'!F679)","v":{"$error":"#N/A"}},{"$f":"IF('1. Order'!G679=\"\",\"\",'1. Order'!G679)","v":""},{"$f":"IF('1. Order'!H679=\"\",\"\",'1. Order'!H679)","v":""},{"$f":"IF('1. Order'!I679=\"\",\"\",'1. Order'!I679)","v":""},{"$f":"IF('1. Order'!J679=\"\",\"\",'1. Order'!J679)","v":""},{"$f":"IF('1. Order'!K679=\"\",\"\",'1. Order'!K679)","v":""},{"$f":"IF('1. Order'!L679=\"\",\"\",'1. Order'!L679)","v":""},{"$f":"IF('1. Order'!M679=\"\",\"\",'1. Order'!M679)","v":""},{"$f":"IF('1. Order'!N679=\"\",\"\",'1. Order'!N679)","v":""},{"$f":"IF('1. Order'!O679=\"\",\"\",'1. Order'!O679)","v":{"$error":"#N/A"}},{"$f":"IF('1. Order'!P679=\"\",\"\",'1. Order'!P679)","v":{"$error":"#N/A"}},{"$f":"IF('1. Order'!Q679=\"\",\"\",'1. Order'!Q679)","v":""},{"$f":"IF('1. Order'!S679=\"\",\"\",'1. Order'!S679)","v":""},{"$f":"IF('1. Order'!T679=\"\",\"\",'1. Order'!T679)","v":""},{"$f":"IF('1. Order'!W679=\"\",\"\",'1. Order'!W679)","v":""},{"$f":"IF('1. Order'!X679=\"\",\"\",'1. Order'!X679)","v":""},{"$f":"IF('1. Order'!Y679=\"\",\"\",'1. Order'!Y679)","v":"EUR"},{"$f":"IF('1. Order'!Z679=\"\",\"\",'1. Order'!Z679)","v":""},{"$f":"IF('1. Order'!AA679=\"\",\"\",'1. Order'!AA679)","v":""},{"$f":"IF('1. Order'!AB679=\"\",\"\",'1. Order'!AB679)","v":""},null,{"$f":"IF('1. Order'!AT679=\"\",\"\",'1. Order'!AT679)","v":""},{"$f":"IF('1. Order'!AU679=\"\",\"\",'1. Order'!AU679)","v":""},null,null,null,null,null,null,null,{"$f":"IF('1. Order'!AY679=\"\",\"\",'1. Order'!AY679)","v":""},{"$f":"IF('1. Order'!AZ679=\"\",\"\",'1. Order'!AZ679)","v":""},{"$f":"IF('1. Order'!BA679=\"\",\"\",'1. Order'!BA679)","v":""},{"$f":"IF('1. Order'!BB679=\"\",\"\",'1. Order'!BB679)","v":""},{"$f":"IF('1. Order'!BD679=\"\",\"\",'1. Order'!BD679)","v":""},{"$f":"IF('1. Order'!BE679=\"\",\"\",'1. Order'!BE679)","v":""},{"$f":"IF('1. Order'!BF679=\"\",\"\",'1. Order'!BF679)","v":""},{"$f":"IF('1. Order'!BG679=\"\",\"\",'1. Order'!BG679)","v":""},{"$f":"IF('1. Order'!BH679=\"\",\"\",'1. Order'!BH679)","v":"ZWO"}]
[{"$f":"IF('1. Order'!F680=\"\",\"\",'1. Order'!F680)","v":{"$error":"#N/A"}},{"$f":"IF('1. Order'!G680=\"\",\"\",'1. Order'!G680)","v":""},{"$f":"IF('1. Order'!H680=\"\",\"\",'1. Order'!H680)","v":""},{"$f":"IF('1. Order'!I680=\"\",\"\",'1. Order'!I680)","v":""},{"$f":"IF('1. Order'!J680=\"\",\"\",'1. Order'!J680)","v":""},{"$f":"IF('1. Order'!K680=\"\",\"\",'1. Order'!K680)","v":""},{"$f":"IF('1. Order'!L680=\"\",\"\",'1. Order'!L680)","v":""},{"$f":"IF('1. Order'!M680=\"\",\"\",'1. Order'!M680)","v":""},{"$f":"IF('1. Order'!N680=\"\",\"\",'1. Order'!N680)","v":""},{"$f":"IF('1. Order'!O680=\"\",\"\",'1. Order'!O680)","v":{"$error":"#N/A"}},{"$f":"IF('1. Order'!P680=\"\",\"\",'1. Order'!P680)","v":{"$error":"#N/A"}},{"$f":"IF('1. Order'!Q680=\"\",\"\",'1. Order'!Q680)","v":""},{"$f":"IF('1. Order'!S680=\"\",\"\",'1. Order'!S680)","v":""},{"$f":"IF('1. Order'!T680=\"\",\"\",'1. Order'!T680)","v":""},{"$f":"IF('1. Order'!W680=\"\",\"\",'1. Order'!W680)","v":""},{"$f":"IF('1. Order'!X680=\"\",\"\",'1. Order'!X680)","v":""},{"$f":"IF('1. Order'!Y680=\"\",\"\",'1. Order'!Y680)","v":"EUR"},{"$f":"IF('1. Order'!Z680=\"\",\"\",'1. Order'!Z680)","v":""},{"$f":"IF('1. Order'!AA680=\"\",\"\",'1. Order'!AA680)","v":""},{"$f":"IF('1. Order'!AB680=\"\",\"\",'1. Order'!AB680)","v":""},null,{"$f":"IF('1. Order'!AT680=\"\",\"\",'1. Order'!AT680)","v":""},{"$f":"IF('1. Order'!AU680=\"\",\"\",'1. Order'!AU680)","v":""},null,null,null,null,null,null,null,{"$f":"IF('1. Order'!AY680=\"\",\"\",'1. Order'!AY680)","v":""},{"$f":"IF('1. Order'!AZ680=\"\",\"\",'1. Order'!AZ680)","v":""},{"$f":"IF('1. Order'!BA680=\"\",\"\",'1. Order'!BA680)","v":""},{"$f":"IF('1. Order'!BB680=\"\",\"\",'1. Order'!BB680)","v":""},{"$f":"IF('1. Order'!BD680=\"\",\"\",'1. Order'!BD680)","v":""},{"$f":"IF('1. Order'!BE680=\"\",\"\",'1. Order'!BE680)","v":""},{"$f":"IF('1. Order'!BF680=\"\",\"\",'1. Order'!BF680)","v":""},{"$f":"IF('1. Order'!BG680=\"\",\"\",'1. Order'!BG680)","v":""},{"$f":"IF('1. Order'!BH680=\"\",\"\",'1. Order'!BH680)","v":"ZWO"}]
[{"$f":"IF('1. Order'!F681=\"\",\"\",'1. Order'!F681)","v":{"$error":"#N/A"}},{"$f":"IF('1. Order'!G681=\"\",\"\",'1. Order'!G681)","v":""},{"$f":"IF('1. Order'!H681=\"\",\"\",'1. Order'!H681)","v":""},{"$f":"IF('1. Order'!I681=\"\",\"\",'1. Order'!I681)","v":""},{"$f":"IF('1. Order'!J681=\"\",\"\",'1. Order'!J681)","v":""},{"$f":"IF('1. Order'!K681=\"\",\"\",'1. Order'!K681)","v":""},{"$f":"IF('1. Order'!L681=\"\",\"\",'1. Order'!L681)","v":""},{"$f":"IF('1. Order'!M681=\"\",\"\",'1. Order'!M681)","v":""},{"$f":"IF('1. Order'!N681=\"\",\"\",'1. Order'!N681)","v":""},{"$f":"IF('1. Order'!O681=\"\",\"\",'1. Order'!O681)","v":{"$error":"#N/A"}},{"$f":"IF('1. Order'!P681=\"\",\"\",'1. Order'!P681)","v":{"$error":"#N/A"}},{"$f":"IF('1. Order'!Q681=\"\",\"\",'1. Order'!Q681)","v":""},{"$f":"IF('1. Order'!S681=\"\",\"\",'1. Order'!S681)","v":""},{"$f":"IF('1. Order'!T681=\"\",\"\",'1. Order'!T681)","v":""},{"$f":"IF('1. Order'!W681=\"\",\"\",'1. Order'!W681)","v":""},{"$f":"IF('1. Order'!X681=\"\",\"\",'1. Order'!X681)","v":""},{"$f":"IF('1. Order'!Y681=\"\",\"\",'1. Order'!Y681)","v":"EUR"},{"$f":"IF('1. Order'!Z681=\"\",\"\",'1. Order'!Z681)","v":""},{"$f":"IF('1. Order'!AA681=\"\",\"\",'1. Order'!AA681)","v":""},{"$f":"IF('1. Order'!AB681=\"\",\"\",'1. Order'!AB681)","v":""},null,{"$f":"IF('1. Order'!AT681=\"\",\"\",'1. Order'!AT681)","v":""},{"$f":"IF('1. Order'!AU681=\"\",\"\",'1. Order'!AU681)","v":""},null,null,null,null,null,null,null,{"$f":"IF('1. Order'!AY681=\"\",\"\",'1. Order'!AY681)","v":""},{"$f":"IF('1. Order'!AZ681=\"\",\"\",'1. Order'!AZ681)","v":""},{"$f":"IF('1. Order'!BA681=\"\",\"\",'1. Order'!BA681)","v":""},{"$f":"IF('1. Order'!BB681=\"\",\"\",'1. Order'!BB681)","v":""},{"$f":"IF('1. Order'!BD681=\"\",\"\",'1. Order'!BD681)","v":""},{"$f":"IF('1. Order'!BE681=\"\",\"\",'1. Order'!BE681)","v":""},{"$f":"IF('1. Order'!BF681=\"\",\"\",'1. Order'!BF681)","v":""},{"$f":"IF('1. Order'!BG681=\"\",\"\",'1. Order'!BG681)","v":""},{"$f":"IF('1. Order'!BH681=\"\",\"\",'1. Order'!BH681)","v":"ZWO"}]
[{"$f":"IF('1. Order'!F682=\"\",\"\",'1. Order'!F682)","v":{"$error":"#N/A"}},{"$f":"IF('1. Order'!G682=\"\",\"\",'1. Order'!G682)","v":""},{"$f":"IF('1. Order'!H682=\"\",\"\",'1. Order'!H682)","v":""},{"$f":"IF('1. Order'!I682=\"\",\"\",'1. Order'!I682)","v":""},{"$f":"IF('1. Order'!J682=\"\",\"\",'1. Order'!J682)","v":""},{"$f":"IF('1. Order'!K682=\"\",\"\",'1. Order'!K682)","v":""},{"$f":"IF('1. Order'!L682=\"\",\"\",'1. Order'!L682)","v":""},{"$f":"IF('1. Order'!M682=\"\",\"\",'1. Order'!M682)","v":""},{"$f":"IF('1. Order'!N682=\"\",\"\",'1. Order'!N682)","v":""},{"$f":"IF('1. Order'!O682=\"\",\"\",'1. Order'!O682)","v":{"$error":"#N/A"}},{"$f":"IF('1. Order'!P682=\"\",\"\",'1. Order'!P682)","v":{"$error":"#N/A"}},{"$f":"IF('1. Order'!Q682=\"\",\"\",'1. Order'!Q682)","v":""},{"$f":"IF('1. Order'!S682=\"\",\"\",'1. Order'!S682)","v":""},{"$f":"IF('1. Order'!T682=\"\",\"\",'1. Order'!T682)","v":""},{"$f":"IF('1. Order'!W682=\"\",\"\",'1. Order'!W682)","v":""},{"$f":"IF('1. Order'!X682=\"\",\"\",'1. Order'!X682)","v":""},{"$f":"IF('1. Order'!Y682=\"\",\"\",'1. Order'!Y682)","v":"EUR"},{"$f":"IF('1. Order'!Z682=\"\",\"\",'1. Order'!Z682)","v":""},{"$f":"IF('1. Order'!AA682=\"\",\"\",'1. Order'!AA682)","v":""},{"$f":"IF('1. Order'!AB682=\"\",\"\",'1. Order'!AB682)","v":""},null,{"$f":"IF('1. Order'!AT682=\"\",\"\",'1. Order'!AT682)","v":""},{"$f":"IF('1. Order'!AU682=\"\",\"\",'1. Order'!AU682)","v":""},null,null,null,null,null,null,null,{"$f":"IF('1. Order'!AY682=\"\",\"\",'1. Order'!AY682)","v":""},{"$f":"IF('1. Order'!AZ682=\"\",\"\",'1. Order'!AZ682)","v":""},{"$f":"IF('1. Order'!BA682=\"\",\"\",'1. Order'!BA682)","v":""},{"$f":"IF('1. Order'!BB682=\"\",\"\",'1. Order'!BB682)","v":""},{"$f":"IF('1. Order'!BD682=\"\",\"\",'1. Order'!BD682)","v":""},{"$f":"IF('1. Order'!BE682=\"\",\"\",'1. Order'!BE682)","v":""},{"$f":"IF('1. Order'!BF682=\"\",\"\",'1. Order'!BF682)","v":""},{"$f":"IF('1. Order'!BG682=\"\",\"\",'1. Order'!BG682)","v":""},{"$f":"IF('1. Order'!BH682=\"\",\"\",'1. Order'!BH682)","v":"ZWO"}]
[{"$f":"IF('1. Order'!F683=\"\",\"\",'1. Order'!F683)","v":{"$error":"#N/A"}},{"$f":"IF('1. Order'!G683=\"\",\"\",'1. Order'!G683)","v":""},{"$f":"IF('1. Order'!H683=\"\",\"\",'1. Order'!H683)","v":""},{"$f":"IF('1. Order'!I683=\"\",\"\",'1. Order'!I683)","v":""},{"$f":"IF('1. Order'!J683=\"\",\"\",'1. Order'!J683)","v":""},{"$f":"IF('1. Order'!K683=\"\",\"\",'1. Order'!K683)","v":""},{"$f":"IF('1. Order'!L683=\"\",\"\",'1. Order'!L683)","v":""},{"$f":"IF('1. Order'!M683=\"\",\"\",'1. Order'!M683)","v":""},{"$f":"IF('1. Order'!N683=\"\",\"\",'1. Order'!N683)","v":""},{"$f":"IF('1. Order'!O683=\"\",\"\",'1. Order'!O683)","v":{"$error":"#N/A"}},{"$f":"IF('1. Order'!P683=\"\",\"\",'1. Order'!P683)","v":{"$error":"#N/A"}},{"$f":"IF('1. Order'!Q683=\"\",\"\",'1. Order'!Q683)","v":""},{"$f":"IF('1. Order'!S683=\"\",\"\",'1. Order'!S683)","v":""},{"$f":"IF('1. Order'!T683=\"\",\"\",'1. Order'!T683)","v":""},{"$f":"IF('1. Order'!W683=\"\",\"\",'1. Order'!W683)","v":""},{"$f":"IF('1. Order'!X683=\"\",\"\",'1. Order'!X683)","v":""},{"$f":"IF('1. Order'!Y683=\"\",\"\",'1. Order'!Y683)","v":"EUR"},{"$f":"IF('1. Order'!Z683=\"\",\"\",'1. Order'!Z683)","v":""},{"$f":"IF('1. Order'!AA683=\"\",\"\",'1. Order'!AA683)","v":""},{"$f":"IF('1. Order'!AB683=\"\",\"\",'1. Order'!AB683)","v":""},null,{"$f":"IF('1. Order'!AT683=\"\",\"\",'1. Order'!AT683)","v":""},{"$f":"IF('1. Order'!AU683=\"\",\"\",'1. Order'!AU683)","v":""},null,null,null,null,null,null,null,{"$f":"IF('1. Order'!AY683=\"\",\"\",'1. Order'!AY683)","v":""},{"$f":"IF('1. Order'!AZ683=\"\",\"\",'1. Order'!AZ683)","v":""},{"$f":"IF('1. Order'!BA683=\"\",\"\",'1. Order'!BA683)","v":""},{"$f":"IF('1. Order'!BB683=\"\",\"\",'1. Order'!BB683)","v":""},{"$f":"IF('1. Order'!BD683=\"\",\"\",'1. Order'!BD683)","v":""},{"$f":"IF('1. Order'!BE683=\"\",\"\",'1. Order'!BE683)","v":""},{"$f":"IF('1. Order'!BF683=\"\",\"\",'1. Order'!BF683)","v":""},{"$f":"IF('1. Order'!BG683=\"\",\"\",'1. Order'!BG683)","v":""},{"$f":"IF('1. Order'!BH683=\"\",\"\",'1. Order'!BH683)","v":"ZWO"}]
[{"$f":"IF('1. Order'!F684=\"\",\"\",'1. Order'!F684)","v":{"$error":"#N/A"}},{"$f":"IF('1. Order'!G684=\"\",\"\",'1. Order'!G684)","v":""},{"$f":"IF('1. Order'!H684=\"\",\"\",'1. Order'!H684)","v":""},{"$f":"IF('1. Order'!I684=\"\",\"\",'1. Order'!I684)","v":""},{"$f":"IF('1. Order'!J684=\"\",\"\",'1. Order'!J684)","v":""},{"$f":"IF('1. Order'!K684=\"\",\"\",'1. Order'!K684)","v":""},{"$f":"IF('1. Order'!L684=\"\",\"\",'1. Order'!L684)","v":""},{"$f":"IF('1. Order'!M684=\"\",\"\",'1. Order'!M684)","v":""},{"$f":"IF('1. Order'!N684=\"\",\"\",'1. Order'!N684)","v":""},{"$f":"IF('1. Order'!O684=\"\",\"\",'1. Order'!O684)","v":{"$error":"#N/A"}},{"$f":"IF('1. Order'!P684=\"\",\"\",'1. Order'!P684)","v":{"$error":"#N/A"}},{"$f":"IF('1. Order'!Q684=\"\",\"\",'1. Order'!Q684)","v":""},{"$f":"IF('1. Order'!S684=\"\",\"\",'1. Order'!S684)","v":""},{"$f":"IF('1. Order'!T684=\"\",\"\",'1. Order'!T684)","v":""},{"$f":"IF('1. Order'!W684=\"\",\"\",'1. Order'!W684)","v":""},{"$f":"IF('1. Order'!X684=\"\",\"\",'1. Order'!X684)","v":""},{"$f":"IF('1. Order'!Y684=\"\",\"\",'1. Order'!Y684)","v":"EUR"},{"$f":"IF('1. Order'!Z684=\"\",\"\",'1. Order'!Z684)","v":""},{"$f":"IF('1. Order'!AA684=\"\",\"\",'1. Order'!AA684)","v":""},{"$f":"IF('1. Order'!AB684=\"\",\"\",'1. Order'!AB684)","v":""},null,{"$f":"IF('1. Order'!AT684=\"\",\"\",'1. Order'!AT684)","v":""},{"$f":"IF('1. Order'!AU684=\"\",\"\",'1. Order'!AU684)","v":""},null,null,null,null,null,null,null,{"$f":"IF('1. Order'!AY684=\"\",\"\",'1. Order'!AY684)","v":""},{"$f":"IF('1. Order'!AZ684=\"\",\"\",'1. Order'!AZ684)","v":""},{"$f":"IF('1. Order'!BA684=\"\",\"\",'1. Order'!BA684)","v":""},{"$f":"IF('1. Order'!BB684=\"\",\"\",'1. Order'!BB684)","v":""},{"$f":"IF('1. Order'!BD684=\"\",\"\",'1. Order'!BD684)","v":""},{"$f":"IF('1. Order'!BE684=\"\",\"\",'1. Order'!BE684)","v":""},{"$f":"IF('1. Order'!BF684=\"\",\"\",'1. Order'!BF684)","v":""},{"$f":"IF('1. Order'!BG684=\"\",\"\",'1. Order'!BG684)","v":""},{"$f":"IF('1. Order'!BH684=\"\",\"\",'1. Order'!BH684)","v":"ZWO"}]
[{"$f":"IF('1. Order'!F685=\"\",\"\",'1. Order'!F685)","v":{"$error":"#N/A"}},{"$f":"IF('1. Order'!G685=\"\",\"\",'1. Order'!G685)","v":""},{"$f":"IF('1. Order'!H685=\"\",\"\",'1. Order'!H685)","v":""},{"$f":"IF('1. Order'!I685=\"\",\"\",'1. Order'!I685)","v":""},{"$f":"IF('1. Order'!J685=\"\",\"\",'1. Order'!J685)","v":""},{"$f":"IF('1. Order'!K685=\"\",\"\",'1. Order'!K685)","v":""},{"$f":"IF('1. Order'!L685=\"\",\"\",'1. Order'!L685)","v":""},{"$f":"IF('1. Order'!M685=\"\",\"\",'1. Order'!M685)","v":""},{"$f":"IF('1. Order'!N685=\"\",\"\",'1. Order'!N685)","v":""},{"$f":"IF('1. Order'!O685=\"\",\"\",'1. Order'!O685)","v":{"$error":"#N/A"}},{"$f":"IF('1. Order'!P685=\"\",\"\",'1. Order'!P685)","v":{"$error":"#N/A"}},{"$f":"IF('1. Order'!Q685=\"\",\"\",'1. Order'!Q685)","v":""},{"$f":"IF('1. Order'!S685=\"\",\"\",'1. Order'!S685)","v":""},{"$f":"IF('1. Order'!T685=\"\",\"\",'1. Order'!T685)","v":""},{"$f":"IF('1. Order'!W685=\"\",\"\",'1. Order'!W685)","v":""},{"$f":"IF('1. Order'!X685=\"\",\"\",'1. Order'!X685)","v":""},{"$f":"IF('1. Order'!Y685=\"\",\"\",'1. Order'!Y685)","v":"EUR"},{"$f":"IF('1. Order'!Z685=\"\",\"\",'1. Order'!Z685)","v":""},{"$f":"IF('1. Order'!AA685=\"\",\"\",'1. Order'!AA685)","v":""},{"$f":"IF('1. Order'!AB685=\"\",\"\",'1. Order'!AB685)","v":""},null,{"$f":"IF('1. Order'!AT685=\"\",\"\",'1. Order'!AT685)","v":""},{"$f":"IF('1. Order'!AU685=\"\",\"\",'1. Order'!AU685)","v":""},null,null,null,null,null,null,null,{"$f":"IF('1. Order'!AY685=\"\",\"\",'1. Order'!AY685)","v":""},{"$f":"IF('1. Order'!AZ685=\"\",\"\",'1. Order'!AZ685)","v":""},{"$f":"IF('1. Order'!BA685=\"\",\"\",'1. Order'!BA685)","v":""},{"$f":"IF('1. Order'!BB685=\"\",\"\",'1. Order'!BB685)","v":""},{"$f":"IF('1. Order'!BD685=\"\",\"\",'1. Order'!BD685)","v":""},{"$f":"IF('1. Order'!BE685=\"\",\"\",'1. Order'!BE685)","v":""},{"$f":"IF('1. Order'!BF685=\"\",\"\",'1. Order'!BF685)","v":""},{"$f":"IF('1. Order'!BG685=\"\",\"\",'1. Order'!BG685)","v":""},{"$f":"IF('1. Order'!BH685=\"\",\"\",'1. Order'!BH685)","v":"ZWO"}]
[{"$f":"IF('1. Order'!F686=\"\",\"\",'1. Order'!F686)","v":{"$error":"#N/A"}},{"$f":"IF('1. Order'!G686=\"\",\"\",'1. Order'!G686)","v":""},{"$f":"IF('1. Order'!H686=\"\",\"\",'1. Order'!H686)","v":""},{"$f":"IF('1. Order'!I686=\"\",\"\",'1. Order'!I686)","v":""},{"$f":"IF('1. Order'!J686=\"\",\"\",'1. Order'!J686)","v":""},{"$f":"IF('1. Order'!K686=\"\",\"\",'1. Order'!K686)","v":""},{"$f":"IF('1. Order'!L686=\"\",\"\",'1. Order'!L686)","v":""},{"$f":"IF('1. Order'!M686=\"\",\"\",'1. Order'!M686)","v":""},{"$f":"IF('1. Order'!N686=\"\",\"\",'1. Order'!N686)","v":""},{"$f":"IF('1. Order'!O686=\"\",\"\",'1. Order'!O686)","v":{"$error":"#N/A"}},{"$f":"IF('1. Order'!P686=\"\",\"\",'1. Order'!P686)","v":{"$error":"#N/A"}},{"$f":"IF('1. Order'!Q686=\"\",\"\",'1. Order'!Q686)","v":""},{"$f":"IF('1. Order'!S686=\"\",\"\",'1. Order'!S686)","v":""},{"$f":"IF('1. Order'!T686=\"\",\"\",'1. Order'!T686)","v":""},{"$f":"IF('1. Order'!W686=\"\",\"\",'1. Order'!W686)","v":""},{"$f":"IF('1. Order'!X686=\"\",\"\",'1. Order'!X686)","v":""},{"$f":"IF('1. Order'!Y686=\"\",\"\",'1. Order'!Y686)","v":"EUR"},{"$f":"IF('1. Order'!Z686=\"\",\"\",'1. Order'!Z686)","v":""},{"$f":"IF('1. Order'!AA686=\"\",\"\",'1. Order'!AA686)","v":""},{"$f":"IF('1. Order'!AB686=\"\",\"\",'1. Order'!AB686)","v":""},null,{"$f":"IF('1. Order'!AT686=\"\",\"\",'1. Order'!AT686)","v":""},{"$f":"IF('1. Order'!AU686=\"\",\"\",'1. Order'!AU686)","v":""},null,null,null,null,null,null,null,{"$f":"IF('1. Order'!AY686=\"\",\"\",'1. Order'!AY686)","v":""},{"$f":"IF('1. Order'!AZ686=\"\",\"\",'1. Order'!AZ686)","v":""},{"$f":"IF('1. Order'!BA686=\"\",\"\",'1. Order'!BA686)","v":""},{"$f":"IF('1. Order'!BB686=\"\",\"\",'1. Order'!BB686)","v":""},{"$f":"IF('1. Order'!BD686=\"\",\"\",'1. Order'!BD686)","v":""},{"$f":"IF('1. Order'!BE686=\"\",\"\",'1. Order'!BE686)","v":""},{"$f":"IF('1. Order'!BF686=\"\",\"\",'1. Order'!BF686)","v":""},{"$f":"IF('1. Order'!BG686=\"\",\"\",'1. Order'!BG686)","v":""},{"$f":"IF('1. Order'!BH686=\"\",\"\",'1. Order'!BH686)","v":"ZWO"}]
[{"$f":"IF('1. Order'!F687=\"\",\"\",'1. Order'!F687)","v":{"$error":"#N/A"}},{"$f":"IF('1. Order'!G687=\"\",\"\",'1. Order'!G687)","v":""},{"$f":"IF('1. Order'!H687=\"\",\"\",'1. Order'!H687)","v":""},{"$f":"IF('1. Order'!I687=\"\",\"\",'1. Order'!I687)","v":""},{"$f":"IF('1. Order'!J687=\"\",\"\",'1. Order'!J687)","v":""},{"$f":"IF('1. Order'!K687=\"\",\"\",'1. Order'!K687)","v":""},{"$f":"IF('1. Order'!L687=\"\",\"\",'1. Order'!L687)","v":""},{"$f":"IF('1. Order'!M687=\"\",\"\",'1. Order'!M687)","v":""},{"$f":"IF('1. Order'!N687=\"\",\"\",'1. Order'!N687)","v":""},{"$f":"IF('1. Order'!O687=\"\",\"\",'1. Order'!O687)","v":{"$error":"#N/A"}},{"$f":"IF('1. Order'!P687=\"\",\"\",'1. Order'!P687)","v":{"$error":"#N/A"}},{"$f":"IF('1. Order'!Q687=\"\",\"\",'1. Order'!Q687)","v":""},{"$f":"IF('1. Order'!S687=\"\",\"\",'1. Order'!S687)","v":""},{"$f":"IF('1. Order'!T687=\"\",\"\",'1. Order'!T687)","v":""},{"$f":"IF('1. Order'!W687=\"\",\"\",'1. Order'!W687)","v":""},{"$f":"IF('1. Order'!X687=\"\",\"\",'1. Order'!X687)","v":""},{"$f":"IF('1. Order'!Y687=\"\",\"\",'1. Order'!Y687)","v":"EUR"},{"$f":"IF('1. Order'!Z687=\"\",\"\",'1. Order'!Z687)","v":""},{"$f":"IF('1. Order'!AA687=\"\",\"\",'1. Order'!AA687)","v":""},{"$f":"IF('1. Order'!AB687=\"\",\"\",'1. Order'!AB687)","v":""},null,{"$f":"IF('1. Order'!AT687=\"\",\"\",'1. Order'!AT687)","v":""},{"$f":"IF('1. Order'!AU687=\"\",\"\",'1. Order'!AU687)","v":""},null,null,null,null,null,null,null,{"$f":"IF('1. Order'!AY687=\"\",\"\",'1. Order'!AY687)","v":""},{"$f":"IF('1. Order'!AZ687=\"\",\"\",'1. Order'!AZ687)","v":""},{"$f":"IF('1. Order'!BA687=\"\",\"\",'1. Order'!BA687)","v":""},{"$f":"IF('1. Order'!BB687=\"\",\"\",'1. Order'!BB687)","v":""},{"$f":"IF('1. Order'!BD687=\"\",\"\",'1. Order'!BD687)","v":""},{"$f":"IF('1. Order'!BE687=\"\",\"\",'1. Order'!BE687)","v":""},{"$f":"IF('1. Order'!BF687=\"\",\"\",'1. Order'!BF687)","v":""},{"$f":"IF('1. Order'!BG687=\"\",\"\",'1. Order'!BG687)","v":""},{"$f":"IF('1. Order'!BH687=\"\",\"\",'1. Order'!BH687)","v":"ZWO"}]
[{"$f":"IF('1. Order'!F688=\"\",\"\",'1. Order'!F688)","v":{"$error":"#N/A"}},{"$f":"IF('1. Order'!G688=\"\",\"\",'1. Order'!G688)","v":""},{"$f":"IF('1. Order'!H688=\"\",\"\",'1. Order'!H688)","v":""},{"$f":"IF('1. Order'!I688=\"\",\"\",'1. Order'!I688)","v":""},{"$f":"IF('1. Order'!J688=\"\",\"\",'1. Order'!J688)","v":""},{"$f":"IF('1. Order'!K688=\"\",\"\",'1. Order'!K688)","v":""},{"$f":"IF('1. Order'!L688=\"\",\"\",'1. Order'!L688)","v":""},{"$f":"IF('1. Order'!M688=\"\",\"\",'1. Order'!M688)","v":""},{"$f":"IF('1. Order'!N688=\"\",\"\",'1. Order'!N688)","v":""},{"$f":"IF('1. Order'!O688=\"\",\"\",'1. Order'!O688)","v":{"$error":"#N/A"}},{"$f":"IF('1. Order'!P688=\"\",\"\",'1. Order'!P688)","v":{"$error":"#N/A"}},{"$f":"IF('1. Order'!Q688=\"\",\"\",'1. Order'!Q688)","v":""},{"$f":"IF('1. Order'!S688=\"\",\"\",'1. Order'!S688)","v":""},{"$f":"IF('1. Order'!T688=\"\",\"\",'1. Order'!T688)","v":""},{"$f":"IF('1. Order'!W688=\"\",\"\",'1. Order'!W688)","v":""},{"$f":"IF('1. Order'!X688=\"\",\"\",'1. Order'!X688)","v":""},{"$f":"IF('1. Order'!Y688=\"\",\"\",'1. Order'!Y688)","v":"EUR"},{"$f":"IF('1. Order'!Z688=\"\",\"\",'1. Order'!Z688)","v":""},{"$f":"IF('1. Order'!AA688=\"\",\"\",'1. Order'!AA688)","v":""},{"$f":"IF('1. Order'!AB688=\"\",\"\",'1. Order'!AB688)","v":""},null,{"$f":"IF('1. Order'!AT688=\"\",\"\",'1. Order'!AT688)","v":""},{"$f":"IF('1. Order'!AU688=\"\",\"\",'1. Order'!AU688)","v":""},null,null,null,null,null,null,null,{"$f":"IF('1. Order'!AY688=\"\",\"\",'1. Order'!AY688)","v":""},{"$f":"IF('1. Order'!AZ688=\"\",\"\",'1. Order'!AZ688)","v":""},{"$f":"IF('1. Order'!BA688=\"\",\"\",'1. Order'!BA688)","v":""},{"$f":"IF('1. Order'!BB688=\"\",\"\",'1. Order'!BB688)","v":""},{"$f":"IF('1. Order'!BD688=\"\",\"\",'1. Order'!BD688)","v":""},{"$f":"IF('1. Order'!BE688=\"\",\"\",'1. Order'!BE688)","v":""},{"$f":"IF('1. Order'!BF688=\"\",\"\",'1. Order'!BF688)","v":""},{"$f":"IF('1. Order'!BG688=\"\",\"\",'1. Order'!BG688)","v":""},{"$f":"IF('1. Order'!BH688=\"\",\"\",'1. Order'!BH688)","v":"ZWO"}]
[{"$f":"IF('1. Order'!F689=\"\",\"\",'1. Order'!F689)","v":{"$error":"#N/A"}},{"$f":"IF('1. Order'!G689=\"\",\"\",'1. Order'!G689)","v":""},{"$f":"IF('1. Order'!H689=\"\",\"\",'1. Order'!H689)","v":""},{"$f":"IF('1. Order'!I689=\"\",\"\",'1. Order'!I689)","v":""},{"$f":"IF('1. Order'!J689=\"\",\"\",'1. Order'!J689)","v":""},{"$f":"IF('1. Order'!K689=\"\",\"\",'1. Order'!K689)","v":""},{"$f":"IF('1. Order'!L689=\"\",\"\",'1. Order'!L689)","v":""},{"$f":"IF('1. Order'!M689=\"\",\"\",'1. Order'!M689)","v":""},{"$f":"IF('1. Order'!N689=\"\",\"\",'1. Order'!N689)","v":""},{"$f":"IF('1. Order'!O689=\"\",\"\",'1. Order'!O689)","v":{"$error":"#N/A"}},{"$f":"IF('1. Order'!P689=\"\",\"\",'1. Order'!P689)","v":{"$error":"#N/A"}},{"$f":"IF('1. Order'!Q689=\"\",\"\",'1. Order'!Q689)","v":""},{"$f":"IF('1. Order'!S689=\"\",\"\",'1. Order'!S689)","v":""},{"$f":"IF('1. Order'!T689=\"\",\"\",'1. Order'!T689)","v":""},{"$f":"IF('1. Order'!W689=\"\",\"\",'1. Order'!W689)","v":""},{"$f":"IF('1. Order'!X689=\"\",\"\",'1. Order'!X689)","v":""},{"$f":"IF('1. Order'!Y689=\"\",\"\",'1. Order'!Y689)","v":"EUR"},{"$f":"IF('1. Order'!Z689=\"\",\"\",'1. Order'!Z689)","v":""},{"$f":"IF('1. Order'!AA689=\"\",\"\",'1. Order'!AA689)","v":""},{"$f":"IF('1. Order'!AB689=\"\",\"\",'1. Order'!AB689)","v":""},null,{"$f":"IF('1. Order'!AT689=\"\",\"\",'1. Order'!AT689)","v":""},{"$f":"IF('1. Order'!AU689=\"\",\"\",'1. Order'!AU689)","v":""},null,null,null,null,null,null,null,{"$f":"IF('1. Order'!AY689=\"\",\"\",'1. Order'!AY689)","v":""},{"$f":"IF('1. Order'!AZ689=\"\",\"\",'1. Order'!AZ689)","v":""},{"$f":"IF('1. Order'!BA689=\"\",\"\",'1. Order'!BA689)","v":""},{"$f":"IF('1. Order'!BB689=\"\",\"\",'1. Order'!BB689)","v":""},{"$f":"IF('1. Order'!BD689=\"\",\"\",'1. Order'!BD689)","v":""},{"$f":"IF('1. Order'!BE689=\"\",\"\",'1. Order'!BE689)","v":""},{"$f":"IF('1. Order'!BF689=\"\",\"\",'1. Order'!BF689)","v":""},{"$f":"IF('1. Order'!BG689=\"\",\"\",'1. Order'!BG689)","v":""},{"$f":"IF('1. Order'!BH689=\"\",\"\",'1. Order'!BH689)","v":"ZWO"}]
[{"$f":"IF('1. Order'!F690=\"\",\"\",'1. Order'!F690)","v":{"$error":"#N/A"}},{"$f":"IF('1. Order'!G690=\"\",\"\",'1. Order'!G690)","v":""},{"$f":"IF('1. Order'!H690=\"\",\"\",'1. Order'!H690)","v":""},{"$f":"IF('1. Order'!I690=\"\",\"\",'1. Order'!I690)","v":""},{"$f":"IF('1. Order'!J690=\"\",\"\",'1. Order'!J690)","v":""},{"$f":"IF('1. Order'!K690=\"\",\"\",'1. Order'!K690)","v":""},{"$f":"IF('1. Order'!L690=\"\",\"\",'1. Order'!L690)","v":""},{"$f":"IF('1. Order'!M690=\"\",\"\",'1. Order'!M690)","v":""},{"$f":"IF('1. Order'!N690=\"\",\"\",'1. Order'!N690)","v":""},{"$f":"IF('1. Order'!O690=\"\",\"\",'1. Order'!O690)","v":{"$error":"#N/A"}},{"$f":"IF('1. Order'!P690=\"\",\"\",'1. Order'!P690)","v":{"$error":"#N/A"}},{"$f":"IF('1. Order'!Q690=\"\",\"\",'1. Order'!Q690)","v":""},{"$f":"IF('1. Order'!S690=\"\",\"\",'1. Order'!S690)","v":""},{"$f":"IF('1. Order'!T690=\"\",\"\",'1. Order'!T690)","v":""},{"$f":"IF('1. Order'!W690=\"\",\"\",'1. Order'!W690)","v":""},{"$f":"IF('1. Order'!X690=\"\",\"\",'1. Order'!X690)","v":""},{"$f":"IF('1. Order'!Y690=\"\",\"\",'1. Order'!Y690)","v":"EUR"},{"$f":"IF('1. Order'!Z690=\"\",\"\",'1. Order'!Z690)","v":""},{"$f":"IF('1. Order'!AA690=\"\",\"\",'1. Order'!AA690)","v":""},{"$f":"IF('1. Order'!AB690=\"\",\"\",'1. Order'!AB690)","v":""},null,{"$f":"IF('1. Order'!AT690=\"\",\"\",'1. Order'!AT690)","v":""},{"$f":"IF('1. Order'!AU690=\"\",\"\",'1. Order'!AU690)","v":""},null,null,null,null,null,null,null,{"$f":"IF('1. Order'!AY690=\"\",\"\",'1. Order'!AY690)","v":""},{"$f":"IF('1. Order'!AZ690=\"\",\"\",'1. Order'!AZ690)","v":""},{"$f":"IF('1. Order'!BA690=\"\",\"\",'1. Order'!BA690)","v":""},{"$f":"IF('1. Order'!BB690=\"\",\"\",'1. Order'!BB690)","v":""},{"$f":"IF('1. Order'!BD690=\"\",\"\",'1. Order'!BD690)","v":""},{"$f":"IF('1. Order'!BE690=\"\",\"\",'1. Order'!BE690)","v":""},{"$f":"IF('1. Order'!BF690=\"\",\"\",'1. Order'!BF690)","v":""},{"$f":"IF('1. Order'!BG690=\"\",\"\",'1. Order'!BG690)","v":""},{"$f":"IF('1. Order'!BH690=\"\",\"\",'1. Order'!BH690)","v":"ZWO"}]
[{"$f":"IF('1. Order'!F691=\"\",\"\",'1. Order'!F691)","v":{"$error":"#N/A"}},{"$f":"IF('1. Order'!G691=\"\",\"\",'1. Order'!G691)","v":""},{"$f":"IF('1. Order'!H691=\"\",\"\",'1. Order'!H691)","v":""},{"$f":"IF('1. Order'!I691=\"\",\"\",'1. Order'!I691)","v":""},{"$f":"IF('1. Order'!J691=\"\",\"\",'1. Order'!J691)","v":""},{"$f":"IF('1. Order'!K691=\"\",\"\",'1. Order'!K691)","v":""},{"$f":"IF('1. Order'!L691=\"\",\"\",'1. Order'!L691)","v":""},{"$f":"IF('1. Order'!M691=\"\",\"\",'1. Order'!M691)","v":""},{"$f":"IF('1. Order'!N691=\"\",\"\",'1. Order'!N691)","v":""},{"$f":"IF('1. Order'!O691=\"\",\"\",'1. Order'!O691)","v":{"$error":"#N/A"}},{"$f":"IF('1. Order'!P691=\"\",\"\",'1. Order'!P691)","v":{"$error":"#N/A"}},{"$f":"IF('1. Order'!Q691=\"\",\"\",'1. Order'!Q691)","v":""},{"$f":"IF('1. Order'!S691=\"\",\"\",'1. Order'!S691)","v":""},{"$f":"IF('1. Order'!T691=\"\",\"\",'1. Order'!T691)","v":""},{"$f":"IF('1. Order'!W691=\"\",\"\",'1. Order'!W691)","v":""},{"$f":"IF('1. Order'!X691=\"\",\"\",'1. Order'!X691)","v":""},{"$f":"IF('1. Order'!Y691=\"\",\"\",'1. Order'!Y691)","v":"EUR"},{"$f":"IF('1. Order'!Z691=\"\",\"\",'1. Order'!Z691)","v":""},{"$f":"IF('1. Order'!AA691=\"\",\"\",'1. Order'!AA691)","v":""},{"$f":"IF('1. Order'!AB691=\"\",\"\",'1. Order'!AB691)","v":""},null,{"$f":"IF('1. Order'!AT691=\"\",\"\",'1. Order'!AT691)","v":""},{"$f":"IF('1. Order'!AU691=\"\",\"\",'1. Order'!AU691)","v":""},null,null,null,null,null,null,null,{"$f":"IF('1. Order'!AY691=\"\",\"\",'1. Order'!AY691)","v":""},{"$f":"IF('1. Order'!AZ691=\"\",\"\",'1. Order'!AZ691)","v":""},{"$f":"IF('1. Order'!BA691=\"\",\"\",'1. Order'!BA691)","v":""},{"$f":"IF('1. Order'!BB691=\"\",\"\",'1. Order'!BB691)","v":""},{"$f":"IF('1. Order'!BD691=\"\",\"\",'1. Order'!BD691)","v":""},{"$f":"IF('1. Order'!BE691=\"\",\"\",'1. Order'!BE691)","v":""},{"$f":"IF('1. Order'!BF691=\"\",\"\",'1. Order'!BF691)","v":""},{"$f":"IF('1. Order'!BG691=\"\",\"\",'1. Order'!BG691)","v":""},{"$f":"IF('1. Order'!BH691=\"\",\"\",'1. Order'!BH691)","v":"ZWO"}]
[{"$f":"IF('1. Order'!F692=\"\",\"\",'1. Order'!F692)","v":{"$error":"#N/A"}},{"$f":"IF('1. Order'!G692=\"\",\"\",'1. Order'!G692)","v":""},{"$f":"IF('1. Order'!H692=\"\",\"\",'1. Order'!H692)","v":""},{"$f":"IF('1. Order'!I692=\"\",\"\",'1. Order'!I692)","v":""},{"$f":"IF('1. Order'!J692=\"\",\"\",'1. Order'!J692)","v":""},{"$f":"IF('1. Order'!K692=\"\",\"\",'1. Order'!K692)","v":""},{"$f":"IF('1. Order'!L692=\"\",\"\",'1. Order'!L692)","v":""},{"$f":"IF('1. Order'!M692=\"\",\"\",'1. Order'!M692)","v":""},{"$f":"IF('1. Order'!N692=\"\",\"\",'1. Order'!N692)","v":""},{"$f":"IF('1. Order'!O692=\"\",\"\",'1. Order'!O692)","v":{"$error":"#N/A"}},{"$f":"IF('1. Order'!P692=\"\",\"\",'1. Order'!P692)","v":{"$error":"#N/A"}},{"$f":"IF('1. Order'!Q692=\"\",\"\",'1. Order'!Q692)","v":""},{"$f":"IF('1. Order'!S692=\"\",\"\",'1. Order'!S692)","v":""},{"$f":"IF('1. Order'!T692=\"\",\"\",'1. Order'!T692)","v":""},{"$f":"IF('1. Order'!W692=\"\",\"\",'1. Order'!W692)","v":""},{"$f":"IF('1. Order'!X692=\"\",\"\",'1. Order'!X692)","v":""},{"$f":"IF('1. Order'!Y692=\"\",\"\",'1. Order'!Y692)","v":"EUR"},{"$f":"IF('1. Order'!Z692=\"\",\"\",'1. Order'!Z692)","v":""},{"$f":"IF('1. Order'!AA692=\"\",\"\",'1. Order'!AA692)","v":""},{"$f":"IF('1. Order'!AB692=\"\",\"\",'1. Order'!AB692)","v":""},null,{"$f":"IF('1. Order'!AT692=\"\",\"\",'1. Order'!AT692)","v":""},{"$f":"IF('1. Order'!AU692=\"\",\"\",'1. Order'!AU692)","v":""},null,null,null,null,null,null,null,{"$f":"IF('1. Order'!AY692=\"\",\"\",'1. Order'!AY692)","v":""},{"$f":"IF('1. Order'!AZ692=\"\",\"\",'1. Order'!AZ692)","v":""},{"$f":"IF('1. Order'!BA692=\"\",\"\",'1. Order'!BA692)","v":""},{"$f":"IF('1. Order'!BB692=\"\",\"\",'1. Order'!BB692)","v":""},{"$f":"IF('1. Order'!BD692=\"\",\"\",'1. Order'!BD692)","v":""},{"$f":"IF('1. Order'!BE692=\"\",\"\",'1. Order'!BE692)","v":""},{"$f":"IF('1. Order'!BF692=\"\",\"\",'1. Order'!BF692)","v":""},{"$f":"IF('1. Order'!BG692=\"\",\"\",'1. Order'!BG692)","v":""},{"$f":"IF('1. Order'!BH692=\"\",\"\",'1. Order'!BH692)","v":"ZWO"}]
[{"$f":"IF('1. Order'!F693=\"\",\"\",'1. Order'!F693)","v":{"$error":"#N/A"}},{"$f":"IF('1. Order'!G693=\"\",\"\",'1. Order'!G693)","v":""},{"$f":"IF('1. Order'!H693=\"\",\"\",'1. Order'!H693)","v":""},{"$f":"IF('1. Order'!I693=\"\",\"\",'1. Order'!I693)","v":""},{"$f":"IF('1. Order'!J693=\"\",\"\",'1. Order'!J693)","v":""},{"$f":"IF('1. Order'!K693=\"\",\"\",'1. Order'!K693)","v":""},{"$f":"IF('1. Order'!L693=\"\",\"\",'1. Order'!L693)","v":""},{"$f":"IF('1. Order'!M693=\"\",\"\",'1. Order'!M693)","v":""},{"$f":"IF('1. Order'!N693=\"\",\"\",'1. Order'!N693)","v":""},{"$f":"IF('1. Order'!O693=\"\",\"\",'1. Order'!O693)","v":{"$error":"#N/A"}},{"$f":"IF('1. Order'!P693=\"\",\"\",'1. Order'!P693)","v":{"$error":"#N/A"}},{"$f":"IF('1. Order'!Q693=\"\",\"\",'1. Order'!Q693)","v":""},{"$f":"IF('1. Order'!S693=\"\",\"\",'1. Order'!S693)","v":""},{"$f":"IF('1. Order'!T693=\"\",\"\",'1. Order'!T693)","v":""},{"$f":"IF('1. Order'!W693=\"\",\"\",'1. Order'!W693)","v":""},{"$f":"IF('1. Order'!X693=\"\",\"\",'1. Order'!X693)","v":""},{"$f":"IF('1. Order'!Y693=\"\",\"\",'1. Order'!Y693)","v":"EUR"},{"$f":"IF('1. Order'!Z693=\"\",\"\",'1. Order'!Z693)","v":""},{"$f":"IF('1. Order'!AA693=\"\",\"\",'1. Order'!AA693)","v":""},{"$f":"IF('1. Order'!AB693=\"\",\"\",'1. Order'!AB693)","v":""},null,{"$f":"IF('1. Order'!AT693=\"\",\"\",'1. Order'!AT693)","v":""},{"$f":"IF('1. Order'!AU693=\"\",\"\",'1. Order'!AU693)","v":""},null,null,null,null,null,null,null,{"$f":"IF('1. Order'!AY693=\"\",\"\",'1. Order'!AY693)","v":""},{"$f":"IF('1. Order'!AZ693=\"\",\"\",'1. Order'!AZ693)","v":""},{"$f":"IF('1. Order'!BA693=\"\",\"\",'1. Order'!BA693)","v":""},{"$f":"IF('1. Order'!BB693=\"\",\"\",'1. Order'!BB693)","v":""},{"$f":"IF('1. Order'!BD693=\"\",\"\",'1. Order'!BD693)","v":""},{"$f":"IF('1. Order'!BE693=\"\",\"\",'1. Order'!BE693)","v":""},{"$f":"IF('1. Order'!BF693=\"\",\"\",'1. Order'!BF693)","v":""},{"$f":"IF('1. Order'!BG693=\"\",\"\",'1. Order'!BG693)","v":""},{"$f":"IF('1. Order'!BH693=\"\",\"\",'1. Order'!BH693)","v":"ZWO"}]
[{"$f":"IF('1. Order'!F694=\"\",\"\",'1. Order'!F694)","v":{"$error":"#N/A"}},{"$f":"IF('1. Order'!G694=\"\",\"\",'1. Order'!G694)","v":""},{"$f":"IF('1. Order'!H694=\"\",\"\",'1. Order'!H694)","v":""},{"$f":"IF('1. Order'!I694=\"\",\"\",'1. Order'!I694)","v":""},{"$f":"IF('1. Order'!J694=\"\",\"\",'1. Order'!J694)","v":""},{"$f":"IF('1. Order'!K694=\"\",\"\",'1. Order'!K694)","v":""},{"$f":"IF('1. Order'!L694=\"\",\"\",'1. Order'!L694)","v":""},{"$f":"IF('1. Order'!M694=\"\",\"\",'1. Order'!M694)","v":""},{"$f":"IF('1. Order'!N694=\"\",\"\",'1. Order'!N694)","v":""},{"$f":"IF('1. Order'!O694=\"\",\"\",'1. Order'!O694)","v":{"$error":"#N/A"}},{"$f":"IF('1. Order'!P694=\"\",\"\",'1. Order'!P694)","v":{"$error":"#N/A"}},{"$f":"IF('1. Order'!Q694=\"\",\"\",'1. Order'!Q694)","v":""},{"$f":"IF('1. Order'!S694=\"\",\"\",'1. Order'!S694)","v":""},{"$f":"IF('1. Order'!T694=\"\",\"\",'1. Order'!T694)","v":""},{"$f":"IF('1. Order'!W694=\"\",\"\",'1. Order'!W694)","v":""},{"$f":"IF('1. Order'!X694=\"\",\"\",'1. Order'!X694)","v":""},{"$f":"IF('1. Order'!Y694=\"\",\"\",'1. Order'!Y694)","v":"EUR"},{"$f":"IF('1. Order'!Z694=\"\",\"\",'1. Order'!Z694)","v":""},{"$f":"IF('1. Order'!AA694=\"\",\"\",'1. Order'!AA694)","v":""},{"$f":"IF('1. Order'!AB694=\"\",\"\",'1. Order'!AB694)","v":""},null,{"$f":"IF('1. Order'!AT694=\"\",\"\",'1. Order'!AT694)","v":""},{"$f":"IF('1. Order'!AU694=\"\",\"\",'1. Order'!AU694)","v":""},null,null,null,null,null,null,null,{"$f":"IF('1. Order'!AY694=\"\",\"\",'1. Order'!AY694)","v":""},{"$f":"IF('1. Order'!AZ694=\"\",\"\",'1. Order'!AZ694)","v":""},{"$f":"IF('1. Order'!BA694=\"\",\"\",'1. Order'!BA694)","v":""},{"$f":"IF('1. Order'!BB694=\"\",\"\",'1. Order'!BB694)","v":""},{"$f":"IF('1. Order'!BD694=\"\",\"\",'1. Order'!BD694)","v":""},{"$f":"IF('1. Order'!BE694=\"\",\"\",'1. Order'!BE694)","v":""},{"$f":"IF('1. Order'!BF694=\"\",\"\",'1. Order'!BF694)","v":""},{"$f":"IF('1. Order'!BG694=\"\",\"\",'1. Order'!BG694)","v":""},{"$f":"IF('1. Order'!BH694=\"\",\"\",'1. Order'!BH694)","v":"ZWO"}]
[{"$f":"IF('1. Order'!F695=\"\",\"\",'1. Order'!F695)","v":{"$error":"#N/A"}},{"$f":"IF('1. Order'!G695=\"\",\"\",'1. Order'!G695)","v":""},{"$f":"IF('1. Order'!H695=\"\",\"\",'1. Order'!H695)","v":""},{"$f":"IF('1. Order'!I695=\"\",\"\",'1. Order'!I695)","v":""},{"$f":"IF('1. Order'!J695=\"\",\"\",'1. Order'!J695)","v":""},{"$f":"IF('1. Order'!K695=\"\",\"\",'1. Order'!K695)","v":""},{"$f":"IF('1. Order'!L695=\"\",\"\",'1. Order'!L695)","v":""},{"$f":"IF('1. Order'!M695=\"\",\"\",'1. Order'!M695)","v":""},{"$f":"IF('1. Order'!N695=\"\",\"\",'1. Order'!N695)","v":""},{"$f":"IF('1. Order'!O695=\"\",\"\",'1. Order'!O695)","v":{"$error":"#N/A"}},{"$f":"IF('1. Order'!P695=\"\",\"\",'1. Order'!P695)","v":{"$error":"#N/A"}},{"$f":"IF('1. Order'!Q695=\"\",\"\",'1. Order'!Q695)","v":""},{"$f":"IF('1. Order'!S695=\"\",\"\",'1. Order'!S695)","v":""},{"$f":"IF('1. Order'!T695=\"\",\"\",'1. Order'!T695)","v":""},{"$f":"IF('1. Order'!W695=\"\",\"\",'1. Order'!W695)","v":""},{"$f":"IF('1. Order'!X695=\"\",\"\",'1. Order'!X695)","v":""},{"$f":"IF('1. Order'!Y695=\"\",\"\",'1. Order'!Y695)","v":"EUR"},{"$f":"IF('1. Order'!Z695=\"\",\"\",'1. Order'!Z695)","v":""},{"$f":"IF('1. Order'!AA695=\"\",\"\",'1. Order'!AA695)","v":""},{"$f":"IF('1. Order'!AB695=\"\",\"\",'1. Order'!AB695)","v":""},null,{"$f":"IF('1. Order'!AT695=\"\",\"\",'1. Order'!AT695)","v":""},{"$f":"IF('1. Order'!AU695=\"\",\"\",'1. Order'!AU695)","v":""},null,null,null,null,null,null,null,{"$f":"IF('1. Order'!AY695=\"\",\"\",'1. Order'!AY695)","v":""},{"$f":"IF('1. Order'!AZ695=\"\",\"\",'1. Order'!AZ695)","v":""},{"$f":"IF('1. Order'!BA695=\"\",\"\",'1. Order'!BA695)","v":""},{"$f":"IF('1. Order'!BB695=\"\",\"\",'1. Order'!BB695)","v":""},{"$f":"IF('1. Order'!BD695=\"\",\"\",'1. Order'!BD695)","v":""},{"$f":"IF('1. Order'!BE695=\"\",\"\",'1. Order'!BE695)","v":""},{"$f":"IF('1. Order'!BF695=\"\",\"\",'1. Order'!BF695)","v":""},{"$f":"IF('1. Order'!BG695=\"\",\"\",'1. Order'!BG695)","v":""},{"$f":"IF('1. Order'!BH695=\"\",\"\",'1. Order'!BH695)","v":"ZWO"}]
[{"$f":"IF('1. Order'!F696=\"\",\"\",'1. Order'!F696)","v":{"$error":"#N/A"}},{"$f":"IF('1. Order'!G696=\"\",\"\",'1. Order'!G696)","v":""},{"$f":"IF('1. Order'!H696=\"\",\"\",'1. Order'!H696)","v":""},{"$f":"IF('1. Order'!I696=\"\",\"\",'1. Order'!I696)","v":""},{"$f":"IF('1. Order'!J696=\"\",\"\",'1. Order'!J696)","v":""},{"$f":"IF('1. Order'!K696=\"\",\"\",'1. Order'!K696)","v":""},{"$f":"IF('1. Order'!L696=\"\",\"\",'1. Order'!L696)","v":""},{"$f":"IF('1. Order'!M696=\"\",\"\",'1. Order'!M696)","v":""},{"$f":"IF('1. Order'!N696=\"\",\"\",'1. Order'!N696)","v":""},{"$f":"IF('1. Order'!O696=\"\",\"\",'1. Order'!O696)","v":{"$error":"#N/A"}},{"$f":"IF('1. Order'!P696=\"\",\"\",'1. Order'!P696)","v":{"$error":"#N/A"}},{"$f":"IF('1. Order'!Q696=\"\",\"\",'1. Order'!Q696)","v":""},{"$f":"IF('1. Order'!S696=\"\",\"\",'1. Order'!S696)","v":""},{"$f":"IF('1. Order'!T696=\"\",\"\",'1. Order'!T696)","v":""},{"$f":"IF('1. Order'!W696=\"\",\"\",'1. Order'!W696)","v":""},{"$f":"IF('1. Order'!X696=\"\",\"\",'1. Order'!X696)","v":""},{"$f":"IF('1. Order'!Y696=\"\",\"\",'1. Order'!Y696)","v":"EUR"},{"$f":"IF('1. Order'!Z696=\"\",\"\",'1. Order'!Z696)","v":""},{"$f":"IF('1. Order'!AA696=\"\",\"\",'1. Order'!AA696)","v":""},{"$f":"IF('1. Order'!AB696=\"\",\"\",'1. Order'!AB696)","v":""},null,{"$f":"IF('1. Order'!AT696=\"\",\"\",'1. Order'!AT696)","v":""},{"$f":"IF('1. Order'!AU696=\"\",\"\",'1. Order'!AU696)","v":""},null,null,null,null,null,null,null,{"$f":"IF('1. Order'!AY696=\"\",\"\",'1. Order'!AY696)","v":""},{"$f":"IF('1. Order'!AZ696=\"\",\"\",'1. Order'!AZ696)","v":""},{"$f":"IF('1. Order'!BA696=\"\",\"\",'1. Order'!BA696)","v":""},{"$f":"IF('1. Order'!BB696=\"\",\"\",'1. Order'!BB696)","v":""},{"$f":"IF('1. Order'!BD696=\"\",\"\",'1. Order'!BD696)","v":""},{"$f":"IF('1. Order'!BE696=\"\",\"\",'1. Order'!BE696)","v":""},{"$f":"IF('1. Order'!BF696=\"\",\"\",'1. Order'!BF696)","v":""},{"$f":"IF('1. Order'!BG696=\"\",\"\",'1. Order'!BG696)","v":""},{"$f":"IF('1. Order'!BH696=\"\",\"\",'1. Order'!BH696)","v":"ZWO"}]
[{"$f":"IF('1. Order'!F697=\"\",\"\",'1. Order'!F697)","v":{"$error":"#N/A"}},{"$f":"IF('1. Order'!G697=\"\",\"\",'1. Order'!G697)","v":""},{"$f":"IF('1. Order'!H697=\"\",\"\",'1. Order'!H697)","v":""},{"$f":"IF('1. Order'!I697=\"\",\"\",'1. Order'!I697)","v":""},{"$f":"IF('1. Order'!J697=\"\",\"\",'1. Order'!J697)","v":""},{"$f":"IF('1. Order'!K697=\"\",\"\",'1. Order'!K697)","v":""},{"$f":"IF('1. Order'!L697=\"\",\"\",'1. Order'!L697)","v":""},{"$f":"IF('1. Order'!M697=\"\",\"\",'1. Order'!M697)","v":""},{"$f":"IF('1. Order'!N697=\"\",\"\",'1. Order'!N697)","v":""},{"$f":"IF('1. Order'!O697=\"\",\"\",'1. Order'!O697)","v":{"$error":"#N/A"}},{"$f":"IF('1. Order'!P697=\"\",\"\",'1. Order'!P697)","v":{"$error":"#N/A"}},{"$f":"IF('1. Order'!Q697=\"\",\"\",'1. Order'!Q697)","v":""},{"$f":"IF('1. Order'!S697=\"\",\"\",'1. Order'!S697)","v":""},{"$f":"IF('1. Order'!T697=\"\",\"\",'1. Order'!T697)","v":""},{"$f":"IF('1. Order'!W697=\"\",\"\",'1. Order'!W697)","v":""},{"$f":"IF('1. Order'!X697=\"\",\"\",'1. Order'!X697)","v":""},{"$f":"IF('1. Order'!Y697=\"\",\"\",'1. Order'!Y697)","v":"EUR"},{"$f":"IF('1. Order'!Z697=\"\",\"\",'1. Order'!Z697)","v":""},{"$f":"IF('1. Order'!AA697=\"\",\"\",'1. Order'!AA697)","v":""},{"$f":"IF('1. Order'!AB697=\"\",\"\",'1. Order'!AB697)","v":""},null,{"$f":"IF('1. Order'!AT697=\"\",\"\",'1. Order'!AT697)","v":""},{"$f":"IF('1. Order'!AU697=\"\",\"\",'1. Order'!AU697)","v":""},null,null,null,null,null,null,null,{"$f":"IF('1. Order'!AY697=\"\",\"\",'1. Order'!AY697)","v":""},{"$f":"IF('1. Order'!AZ697=\"\",\"\",'1. Order'!AZ697)","v":""},{"$f":"IF('1. Order'!BA697=\"\",\"\",'1. Order'!BA697)","v":""},{"$f":"IF('1. Order'!BB697=\"\",\"\",'1. Order'!BB697)","v":""},{"$f":"IF('1. Order'!BD697=\"\",\"\",'1. Order'!BD697)","v":""},{"$f":"IF('1. Order'!BE697=\"\",\"\",'1. Order'!BE697)","v":""},{"$f":"IF('1. Order'!BF697=\"\",\"\",'1. Order'!BF697)","v":""},{"$f":"IF('1. Order'!BG697=\"\",\"\",'1. Order'!BG697)","v":""},{"$f":"IF('1. Order'!BH697=\"\",\"\",'1. Order'!BH697)","v":"ZWO"}]
[{"$f":"IF('1. Order'!F698=\"\",\"\",'1. Order'!F698)","v":{"$error":"#N/A"}},{"$f":"IF('1. Order'!G698=\"\",\"\",'1. Order'!G698)","v":""},{"$f":"IF('1. Order'!H698=\"\",\"\",'1. Order'!H698)","v":""},{"$f":"IF('1. Order'!I698=\"\",\"\",'1. Order'!I698)","v":""},{"$f":"IF('1. Order'!J698=\"\",\"\",'1. Order'!J698)","v":""},{"$f":"IF('1. Order'!K698=\"\",\"\",'1. Order'!K698)","v":""},{"$f":"IF('1. Order'!L698=\"\",\"\",'1. Order'!L698)","v":""},{"$f":"IF('1. Order'!M698=\"\",\"\",'1. Order'!M698)","v":""},{"$f":"IF('1. Order'!N698=\"\",\"\",'1. Order'!N698)","v":""},{"$f":"IF('1. Order'!O698=\"\",\"\",'1. Order'!O698)","v":{"$error":"#N/A"}},{"$f":"IF('1. Order'!P698=\"\",\"\",'1. Order'!P698)","v":{"$error":"#N/A"}},{"$f":"IF('1. Order'!Q698=\"\",\"\",'1. Order'!Q698)","v":""},{"$f":"IF('1. Order'!S698=\"\",\"\",'1. Order'!S698)","v":""},{"$f":"IF('1. Order'!T698=\"\",\"\",'1. Order'!T698)","v":""},{"$f":"IF('1. Order'!W698=\"\",\"\",'1. Order'!W698)","v":""},{"$f":"IF('1. Order'!X698=\"\",\"\",'1. Order'!X698)","v":""},{"$f":"IF('1. Order'!Y698=\"\",\"\",'1. Order'!Y698)","v":"EUR"},{"$f":"IF('1. Order'!Z698=\"\",\"\",'1. Order'!Z698)","v":""},{"$f":"IF('1. Order'!AA698=\"\",\"\",'1. Order'!AA698)","v":""},{"$f":"IF('1. Order'!AB698=\"\",\"\",'1. Order'!AB698)","v":""},null,{"$f":"IF('1. Order'!AT698=\"\",\"\",'1. Order'!AT698)","v":""},{"$f":"IF('1. Order'!AU698=\"\",\"\",'1. Order'!AU698)","v":""},null,null,null,null,null,null,null,{"$f":"IF('1. Order'!AY698=\"\",\"\",'1. Order'!AY698)","v":""},{"$f":"IF('1. Order'!AZ698=\"\",\"\",'1. Order'!AZ698)","v":""},{"$f":"IF('1. Order'!BA698=\"\",\"\",'1. Order'!BA698)","v":""},{"$f":"IF('1. Order'!BB698=\"\",\"\",'1. Order'!BB698)","v":""},{"$f":"IF('1. Order'!BD698=\"\",\"\",'1. Order'!BD698)","v":""},{"$f":"IF('1. Order'!BE698=\"\",\"\",'1. Order'!BE698)","v":""},{"$f":"IF('1. Order'!BF698=\"\",\"\",'1. Order'!BF698)","v":""},{"$f":"IF('1. Order'!BG698=\"\",\"\",'1. Order'!BG698)","v":""},{"$f":"IF('1. Order'!BH698=\"\",\"\",'1. Order'!BH698)","v":"ZWO"}]
[{"$f":"IF('1. Order'!F699=\"\",\"\",'1. Order'!F699)","v":{"$error":"#N/A"}},{"$f":"IF('1. Order'!G699=\"\",\"\",'1. Order'!G699)","v":""},{"$f":"IF('1. Order'!H699=\"\",\"\",'1. Order'!H699)","v":""},{"$f":"IF('1. Order'!I699=\"\",\"\",'1. Order'!I699)","v":""},{"$f":"IF('1. Order'!J699=\"\",\"\",'1. Order'!J699)","v":""},{"$f":"IF('1. Order'!K699=\"\",\"\",'1. Order'!K699)","v":""},{"$f":"IF('1. Order'!L699=\"\",\"\",'1. Order'!L699)","v":""},{"$f":"IF('1. Order'!M699=\"\",\"\",'1. Order'!M699)","v":""},{"$f":"IF('1. Order'!N699=\"\",\"\",'1. Order'!N699)","v":""},{"$f":"IF('1. Order'!O699=\"\",\"\",'1. Order'!O699)","v":{"$error":"#N/A"}},{"$f":"IF('1. Order'!P699=\"\",\"\",'1. Order'!P699)","v":{"$error":"#N/A"}},{"$f":"IF('1. Order'!Q699=\"\",\"\",'1. Order'!Q699)","v":""},{"$f":"IF('1. Order'!S699=\"\",\"\",'1. Order'!S699)","v":""},{"$f":"IF('1. Order'!T699=\"\",\"\",'1. Order'!T699)","v":""},{"$f":"IF('1. Order'!W699=\"\",\"\",'1. Order'!W699)","v":""},{"$f":"IF('1. Order'!X699=\"\",\"\",'1. Order'!X699)","v":""},{"$f":"IF('1. Order'!Y699=\"\",\"\",'1. Order'!Y699)","v":"EUR"},{"$f":"IF('1. Order'!Z699=\"\",\"\",'1. Order'!Z699)","v":""},{"$f":"IF('1. Order'!AA699=\"\",\"\",'1. Order'!AA699)","v":""},{"$f":"IF('1. Order'!AB699=\"\",\"\",'1. Order'!AB699)","v":""},null,{"$f":"IF('1. Order'!AT699=\"\",\"\",'1. Order'!AT699)","v":""},{"$f":"IF('1. Order'!AU699=\"\",\"\",'1. Order'!AU699)","v":""},null,null,null,null,null,null,null,{"$f":"IF('1. Order'!AY699=\"\",\"\",'1. Order'!AY699)","v":""},{"$f":"IF('1. Order'!AZ699=\"\",\"\",'1. Order'!AZ699)","v":""},{"$f":"IF('1. Order'!BA699=\"\",\"\",'1. Order'!BA699)","v":""},{"$f":"IF('1. Order'!BB699=\"\",\"\",'1. Order'!BB699)","v":""},{"$f":"IF('1. Order'!BD699=\"\",\"\",'1. Order'!BD699)","v":""},{"$f":"IF('1. Order'!BE699=\"\",\"\",'1. Order'!BE699)","v":""},{"$f":"IF('1. Order'!BF699=\"\",\"\",'1. Order'!BF699)","v":""},{"$f":"IF('1. Order'!BG699=\"\",\"\",'1. Order'!BG699)","v":""},{"$f":"IF('1. Order'!BH699=\"\",\"\",'1. Order'!BH699)","v":"ZWO"}]
[{"$f":"IF('1. Order'!F700=\"\",\"\",'1. Order'!F700)","v":{"$error":"#N/A"}},{"$f":"IF('1. Order'!G700=\"\",\"\",'1. Order'!G700)","v":""},{"$f":"IF('1. Order'!H700=\"\",\"\",'1. Order'!H700)","v":""},{"$f":"IF('1. Order'!I700=\"\",\"\",'1. Order'!I700)","v":""},{"$f":"IF('1. Order'!J700=\"\",\"\",'1. Order'!J700)","v":""},{"$f":"IF('1. Order'!K700=\"\",\"\",'1. Order'!K700)","v":""},{"$f":"IF('1. Order'!L700=\"\",\"\",'1. Order'!L700)","v":""},{"$f":"IF('1. Order'!M700=\"\",\"\",'1. Order'!M700)","v":""},{"$f":"IF('1. Order'!N700=\"\",\"\",'1. Order'!N700)","v":""},{"$f":"IF('1. Order'!O700=\"\",\"\",'1. Order'!O700)","v":{"$error":"#N/A"}},{"$f":"IF('1. Order'!P700=\"\",\"\",'1. Order'!P700)","v":{"$error":"#N/A"}},{"$f":"IF('1. Order'!Q700=\"\",\"\",'1. Order'!Q700)","v":""},{"$f":"IF('1. Order'!S700=\"\",\"\",'1. Order'!S700)","v":""},{"$f":"IF('1. Order'!T700=\"\",\"\",'1. Order'!T700)","v":""},{"$f":"IF('1. Order'!W700=\"\",\"\",'1. Order'!W700)","v":""},{"$f":"IF('1. Order'!X700=\"\",\"\",'1. Order'!X700)","v":""},{"$f":"IF('1. Order'!Y700=\"\",\"\",'1. Order'!Y700)","v":"EUR"},{"$f":"IF('1. Order'!Z700=\"\",\"\",'1. Order'!Z700)","v":""},{"$f":"IF('1. Order'!AA700=\"\",\"\",'1. Order'!AA700)","v":""},{"$f":"IF('1. Order'!AB700=\"\",\"\",'1. Order'!AB700)","v":""},null,{"$f":"IF('1. Order'!AT700=\"\",\"\",'1. Order'!AT700)","v":""},{"$f":"IF('1. Order'!AU700=\"\",\"\",'1. Order'!AU700)","v":""},null,null,null,null,null,null,null,{"$f":"IF('1. Order'!AY700=\"\",\"\",'1. Order'!AY700)","v":""},{"$f":"IF('1. Order'!AZ700=\"\",\"\",'1. Order'!AZ700)","v":""},{"$f":"IF('1. Order'!BA700=\"\",\"\",'1. Order'!BA700)","v":""},{"$f":"IF('1. Order'!BB700=\"\",\"\",'1. Order'!BB700)","v":""},{"$f":"IF('1. Order'!BD700=\"\",\"\",'1. Order'!BD700)","v":""},{"$f":"IF('1. Order'!BE700=\"\",\"\",'1. Order'!BE700)","v":""},{"$f":"IF('1. Order'!BF700=\"\",\"\",'1. Order'!BF700)","v":""},{"$f":"IF('1. Order'!BG700=\"\",\"\",'1. Order'!BG700)","v":""},{"$f":"IF('1. Order'!BH700=\"\",\"\",'1. Order'!BH700)","v":"ZWO"}]
[{"$f":"IF('1. Order'!F701=\"\",\"\",'1. Order'!F701)","v":{"$error":"#N/A"}},{"$f":"IF('1. Order'!G701=\"\",\"\",'1. Order'!G701)","v":""},{"$f":"IF('1. Order'!H701=\"\",\"\",'1. Order'!H701)","v":""},{"$f":"IF('1. Order'!I701=\"\",\"\",'1. Order'!I701)","v":""},{"$f":"IF('1. Order'!J701=\"\",\"\",'1. Order'!J701)","v":""},{"$f":"IF('1. Order'!K701=\"\",\"\",'1. Order'!K701)","v":""},{"$f":"IF('1. Order'!L701=\"\",\"\",'1. Order'!L701)","v":""},{"$f":"IF('1. Order'!M701=\"\",\"\",'1. Order'!M701)","v":""},{"$f":"IF('1. Order'!N701=\"\",\"\",'1. Order'!N701)","v":""},{"$f":"IF('1. Order'!O701=\"\",\"\",'1. Order'!O701)","v":{"$error":"#N/A"}},{"$f":"IF('1. Order'!P701=\"\",\"\",'1. Order'!P701)","v":{"$error":"#N/A"}},{"$f":"IF('1. Order'!Q701=\"\",\"\",'1. Order'!Q701)","v":""},{"$f":"IF('1. Order'!S701=\"\",\"\",'1. Order'!S701)","v":""},{"$f":"IF('1. Order'!T701=\"\",\"\",'1. Order'!T701)","v":""},{"$f":"IF('1. Order'!W701=\"\",\"\",'1. Order'!W701)","v":""},{"$f":"IF('1. Order'!X701=\"\",\"\",'1. Order'!X701)","v":""},{"$f":"IF('1. Order'!Y701=\"\",\"\",'1. Order'!Y701)","v":"EUR"},{"$f":"IF('1. Order'!Z701=\"\",\"\",'1. Order'!Z701)","v":""},{"$f":"IF('1. Order'!AA701=\"\",\"\",'1. Order'!AA701)","v":""},{"$f":"IF('1. Order'!AB701=\"\",\"\",'1. Order'!AB701)","v":""},null,{"$f":"IF('1. Order'!AT701=\"\",\"\",'1. Order'!AT701)","v":""},{"$f":"IF('1. Order'!AU701=\"\",\"\",'1. Order'!AU701)","v":""},null,null,null,null,null,null,null,{"$f":"IF('1. Order'!AY701=\"\",\"\",'1. Order'!AY701)","v":""},{"$f":"IF('1. Order'!AZ701=\"\",\"\",'1. Order'!AZ701)","v":""},{"$f":"IF('1. Order'!BA701=\"\",\"\",'1. Order'!BA701)","v":""},{"$f":"IF('1. Order'!BB701=\"\",\"\",'1. Order'!BB701)","v":""},{"$f":"IF('1. Order'!BD701=\"\",\"\",'1. Order'!BD701)","v":""},{"$f":"IF('1. Order'!BE701=\"\",\"\",'1. Order'!BE701)","v":""},{"$f":"IF('1. Order'!BF701=\"\",\"\",'1. Order'!BF701)","v":""},{"$f":"IF('1. Order'!BG701=\"\",\"\",'1. Order'!BG701)","v":""},{"$f":"IF('1. Order'!BH701=\"\",\"\",'1. Order'!BH701)","v":"ZWO"}]
[{"$f":"IF('1. Order'!F702=\"\",\"\",'1. Order'!F702)","v":{"$error":"#N/A"}},{"$f":"IF('1. Order'!G702=\"\",\"\",'1. Order'!G702)","v":""},{"$f":"IF('1. Order'!H702=\"\",\"\",'1. Order'!H702)","v":""},{"$f":"IF('1. Order'!I702=\"\",\"\",'1. Order'!I702)","v":""},{"$f":"IF('1. Order'!J702=\"\",\"\",'1. Order'!J702)","v":""},{"$f":"IF('1. Order'!K702=\"\",\"\",'1. Order'!K702)","v":""},{"$f":"IF('1. Order'!L702=\"\",\"\",'1. Order'!L702)","v":""},{"$f":"IF('1. Order'!M702=\"\",\"\",'1. Order'!M702)","v":""},{"$f":"IF('1. Order'!N702=\"\",\"\",'1. Order'!N702)","v":""},{"$f":"IF('1. Order'!O702=\"\",\"\",'1. Order'!O702)","v":{"$error":"#N/A"}},{"$f":"IF('1. Order'!P702=\"\",\"\",'1. Order'!P702)","v":{"$error":"#N/A"}},{"$f":"IF('1. Order'!Q702=\"\",\"\",'1. Order'!Q702)","v":""},{"$f":"IF('1. Order'!S702=\"\",\"\",'1. Order'!S702)","v":""},{"$f":"IF('1. Order'!T702=\"\",\"\",'1. Order'!T702)","v":""},{"$f":"IF('1. Order'!W702=\"\",\"\",'1. Order'!W702)","v":""},{"$f":"IF('1. Order'!X702=\"\",\"\",'1. Order'!X702)","v":""},{"$f":"IF('1. Order'!Y702=\"\",\"\",'1. Order'!Y702)","v":"EUR"},{"$f":"IF('1. Order'!Z702=\"\",\"\",'1. Order'!Z702)","v":""},{"$f":"IF('1. Order'!AA702=\"\",\"\",'1. Order'!AA702)","v":""},{"$f":"IF('1. Order'!AB702=\"\",\"\",'1. Order'!AB702)","v":""},null,{"$f":"IF('1. Order'!AT702=\"\",\"\",'1. Order'!AT702)","v":""},{"$f":"IF('1. Order'!AU702=\"\",\"\",'1. Order'!AU702)","v":""},null,null,null,null,null,null,null,{"$f":"IF('1. Order'!AY702=\"\",\"\",'1. Order'!AY702)","v":""},{"$f":"IF('1. Order'!AZ702=\"\",\"\",'1. Order'!AZ702)","v":""},{"$f":"IF('1. Order'!BA702=\"\",\"\",'1. Order'!BA702)","v":""},{"$f":"IF('1. Order'!BB702=\"\",\"\",'1. Order'!BB702)","v":""},{"$f":"IF('1. Order'!BD702=\"\",\"\",'1. Order'!BD702)","v":""},{"$f":"IF('1. Order'!BE702=\"\",\"\",'1. Order'!BE702)","v":""},{"$f":"IF('1. Order'!BF702=\"\",\"\",'1. Order'!BF702)","v":""},{"$f":"IF('1. Order'!BG702=\"\",\"\",'1. Order'!BG702)","v":""},{"$f":"IF('1. Order'!BH702=\"\",\"\",'1. Order'!BH702)","v":"ZWO"}]
[{"$f":"IF('1. Order'!F703=\"\",\"\",'1. Order'!F703)","v":{"$error":"#N/A"}},{"$f":"IF('1. Order'!G703=\"\",\"\",'1. Order'!G703)","v":""},{"$f":"IF('1. Order'!H703=\"\",\"\",'1. Order'!H703)","v":""},{"$f":"IF('1. Order'!I703=\"\",\"\",'1. Order'!I703)","v":""},{"$f":"IF('1. Order'!J703=\"\",\"\",'1. Order'!J703)","v":""},{"$f":"IF('1. Order'!K703=\"\",\"\",'1. Order'!K703)","v":""},{"$f":"IF('1. Order'!L703=\"\",\"\",'1. Order'!L703)","v":""},{"$f":"IF('1. Order'!M703=\"\",\"\",'1. Order'!M703)","v":""},{"$f":"IF('1. Order'!N703=\"\",\"\",'1. Order'!N703)","v":""},{"$f":"IF('1. Order'!O703=\"\",\"\",'1. Order'!O703)","v":{"$error":"#N/A"}},{"$f":"IF('1. Order'!P703=\"\",\"\",'1. Order'!P703)","v":{"$error":"#N/A"}},{"$f":"IF('1. Order'!Q703=\"\",\"\",'1. Order'!Q703)","v":""},{"$f":"IF('1. Order'!S703=\"\",\"\",'1. Order'!S703)","v":""},{"$f":"IF('1. Order'!T703=\"\",\"\",'1. Order'!T703)","v":""},{"$f":"IF('1. Order'!W703=\"\",\"\",'1. Order'!W703)","v":""},{"$f":"IF('1. Order'!X703=\"\",\"\",'1. Order'!X703)","v":""},{"$f":"IF('1. Order'!Y703=\"\",\"\",'1. Order'!Y703)","v":"EUR"},{"$f":"IF('1. Order'!Z703=\"\",\"\",'1. Order'!Z703)","v":""},{"$f":"IF('1. Order'!AA703=\"\",\"\",'1. Order'!AA703)","v":""},{"$f":"IF('1. Order'!AB703=\"\",\"\",'1. Order'!AB703)","v":""},null,{"$f":"IF('1. Order'!AT703=\"\",\"\",'1. Order'!AT703)","v":""},{"$f":"IF('1. Order'!AU703=\"\",\"\",'1. Order'!AU703)","v":""},null,null,null,null,null,null,null,{"$f":"IF('1. Order'!AY703=\"\",\"\",'1. Order'!AY703)","v":""},{"$f":"IF('1. Order'!AZ703=\"\",\"\",'1. Order'!AZ703)","v":""},{"$f":"IF('1. Order'!BA703=\"\",\"\",'1. Order'!BA703)","v":""},{"$f":"IF('1. Order'!BB703=\"\",\"\",'1. Order'!BB703)","v":""},{"$f":"IF('1. Order'!BD703=\"\",\"\",'1. Order'!BD703)","v":""},{"$f":"IF('1. Order'!BE703=\"\",\"\",'1. Order'!BE703)","v":""},{"$f":"IF('1. Order'!BF703=\"\",\"\",'1. Order'!BF703)","v":""},{"$f":"IF('1. Order'!BG703=\"\",\"\",'1. Order'!BG703)","v":""},{"$f":"IF('1. Order'!BH703=\"\",\"\",'1. Order'!BH703)","v":"ZWO"}]
[{"$f":"IF('1. Order'!F704=\"\",\"\",'1. Order'!F704)","v":{"$error":"#N/A"}},{"$f":"IF('1. Order'!G704=\"\",\"\",'1. Order'!G704)","v":""},{"$f":"IF('1. Order'!H704=\"\",\"\",'1. Order'!H704)","v":""},{"$f":"IF('1. Order'!I704=\"\",\"\",'1. Order'!I704)","v":""},{"$f":"IF('1. Order'!J704=\"\",\"\",'1. Order'!J704)","v":""},{"$f":"IF('1. Order'!K704=\"\",\"\",'1. Order'!K704)","v":""},{"$f":"IF('1. Order'!L704=\"\",\"\",'1. Order'!L704)","v":""},{"$f":"IF('1. Order'!M704=\"\",\"\",'1. Order'!M704)","v":""},{"$f":"IF('1. Order'!N704=\"\",\"\",'1. Order'!N704)","v":""},{"$f":"IF('1. Order'!O704=\"\",\"\",'1. Order'!O704)","v":{"$error":"#N/A"}},{"$f":"IF('1. Order'!P704=\"\",\"\",'1. Order'!P704)","v":{"$error":"#N/A"}},{"$f":"IF('1. Order'!Q704=\"\",\"\",'1. Order'!Q704)","v":""},{"$f":"IF('1. Order'!S704=\"\",\"\",'1. Order'!S704)","v":""},{"$f":"IF('1. Order'!T704=\"\",\"\",'1. Order'!T704)","v":""},{"$f":"IF('1. Order'!W704=\"\",\"\",'1. Order'!W704)","v":""},{"$f":"IF('1. Order'!X704=\"\",\"\",'1. Order'!X704)","v":""},{"$f":"IF('1. Order'!Y704=\"\",\"\",'1. Order'!Y704)","v":"EUR"},{"$f":"IF('1. Order'!Z704=\"\",\"\",'1. Order'!Z704)","v":""},{"$f":"IF('1. Order'!AA704=\"\",\"\",'1. Order'!AA704)","v":""},{"$f":"IF('1. Order'!AB704=\"\",\"\",'1. Order'!AB704)","v":""},null,{"$f":"IF('1. Order'!AT704=\"\",\"\",'1. Order'!AT704)","v":""},{"$f":"IF('1. Order'!AU704=\"\",\"\",'1. Order'!AU704)","v":""},null,null,null,null,null,null,null,{"$f":"IF('1. Order'!AY704=\"\",\"\",'1. Order'!AY704)","v":""},{"$f":"IF('1. Order'!AZ704=\"\",\"\",'1. Order'!AZ704)","v":""},{"$f":"IF('1. Order'!BA704=\"\",\"\",'1. Order'!BA704)","v":""},{"$f":"IF('1. Order'!BB704=\"\",\"\",'1. Order'!BB704)","v":""},{"$f":"IF('1. Order'!BD704=\"\",\"\",'1. Order'!BD704)","v":""},{"$f":"IF('1. Order'!BE704=\"\",\"\",'1. Order'!BE704)","v":""},{"$f":"IF('1. Order'!BF704=\"\",\"\",'1. Order'!BF704)","v":""},{"$f":"IF('1. Order'!BG704=\"\",\"\",'1. Order'!BG704)","v":""},{"$f":"IF('1. Order'!BH704=\"\",\"\",'1. Order'!BH704)","v":"ZWO"}]
[{"$f":"IF('1. Order'!F705=\"\",\"\",'1. Order'!F705)","v":{"$error":"#N/A"}},{"$f":"IF('1. Order'!G705=\"\",\"\",'1. Order'!G705)","v":""},{"$f":"IF('1. Order'!H705=\"\",\"\",'1. Order'!H705)","v":""},{"$f":"IF('1. Order'!I705=\"\",\"\",'1. Order'!I705)","v":""},{"$f":"IF('1. Order'!J705=\"\",\"\",'1. Order'!J705)","v":""},{"$f":"IF('1. Order'!K705=\"\",\"\",'1. Order'!K705)","v":""},{"$f":"IF('1. Order'!L705=\"\",\"\",'1. Order'!L705)","v":""},{"$f":"IF('1. Order'!M705=\"\",\"\",'1. Order'!M705)","v":""},{"$f":"IF('1. Order'!N705=\"\",\"\",'1. Order'!N705)","v":""},{"$f":"IF('1. Order'!O705=\"\",\"\",'1. Order'!O705)","v":{"$error":"#N/A"}},{"$f":"IF('1. Order'!P705=\"\",\"\",'1. Order'!P705)","v":{"$error":"#N/A"}},{"$f":"IF('1. Order'!Q705=\"\",\"\",'1. Order'!Q705)","v":""},{"$f":"IF('1. Order'!S705=\"\",\"\",'1. Order'!S705)","v":""},{"$f":"IF('1. Order'!T705=\"\",\"\",'1. Order'!T705)","v":""},{"$f":"IF('1. Order'!W705=\"\",\"\",'1. Order'!W705)","v":""},{"$f":"IF('1. Order'!X705=\"\",\"\",'1. Order'!X705)","v":""},{"$f":"IF('1. Order'!Y705=\"\",\"\",'1. Order'!Y705)","v":"EUR"},{"$f":"IF('1. Order'!Z705=\"\",\"\",'1. Order'!Z705)","v":""},{"$f":"IF('1. Order'!AA705=\"\",\"\",'1. Order'!AA705)","v":""},{"$f":"IF('1. Order'!AB705=\"\",\"\",'1. Order'!AB705)","v":""},null,{"$f":"IF('1. Order'!AT705=\"\",\"\",'1. Order'!AT705)","v":""},{"$f":"IF('1. Order'!AU705=\"\",\"\",'1. Order'!AU705)","v":""},null,null,null,null,null,null,null,{"$f":"IF('1. Order'!AY705=\"\",\"\",'1. Order'!AY705)","v":""},{"$f":"IF('1. Order'!AZ705=\"\",\"\",'1. Order'!AZ705)","v":""},{"$f":"IF('1. Order'!BA705=\"\",\"\",'1. Order'!BA705)","v":""},{"$f":"IF('1. Order'!BB705=\"\",\"\",'1. Order'!BB705)","v":""},{"$f":"IF('1. Order'!BD705=\"\",\"\",'1. Order'!BD705)","v":""},{"$f":"IF('1. Order'!BE705=\"\",\"\",'1. Order'!BE705)","v":""},{"$f":"IF('1. Order'!BF705=\"\",\"\",'1. Order'!BF705)","v":""},{"$f":"IF('1. Order'!BG705=\"\",\"\",'1. Order'!BG705)","v":""},{"$f":"IF('1. Order'!BH705=\"\",\"\",'1. Order'!BH705)","v":"ZWO"}]
[{"$f":"IF('1. Order'!F706=\"\",\"\",'1. Order'!F706)","v":{"$error":"#N/A"}},{"$f":"IF('1. Order'!G706=\"\",\"\",'1. Order'!G706)","v":""},{"$f":"IF('1. Order'!H706=\"\",\"\",'1. Order'!H706)","v":""},{"$f":"IF('1. Order'!I706=\"\",\"\",'1. Order'!I706)","v":""},{"$f":"IF('1. Order'!J706=\"\",\"\",'1. Order'!J706)","v":""},{"$f":"IF('1. Order'!K706=\"\",\"\",'1. Order'!K706)","v":""},{"$f":"IF('1. Order'!L706=\"\",\"\",'1. Order'!L706)","v":""},{"$f":"IF('1. Order'!M706=\"\",\"\",'1. Order'!M706)","v":""},{"$f":"IF('1. Order'!N706=\"\",\"\",'1. Order'!N706)","v":""},{"$f":"IF('1. Order'!O706=\"\",\"\",'1. Order'!O706)","v":{"$error":"#N/A"}},{"$f":"IF('1. Order'!P706=\"\",\"\",'1. Order'!P706)","v":{"$error":"#N/A"}},{"$f":"IF('1. Order'!Q706=\"\",\"\",'1. Order'!Q706)","v":""},{"$f":"IF('1. Order'!S706=\"\",\"\",'1. Order'!S706)","v":""},{"$f":"IF('1. Order'!T706=\"\",\"\",'1. Order'!T706)","v":""},{"$f":"IF('1. Order'!W706=\"\",\"\",'1. Order'!W706)","v":""},{"$f":"IF('1. Order'!X706=\"\",\"\",'1. Order'!X706)","v":""},{"$f":"IF('1. Order'!Y706=\"\",\"\",'1. Order'!Y706)","v":"EUR"},{"$f":"IF('1. Order'!Z706=\"\",\"\",'1. Order'!Z706)","v":""},{"$f":"IF('1. Order'!AA706=\"\",\"\",'1. Order'!AA706)","v":""},{"$f":"IF('1. Order'!AB706=\"\",\"\",'1. Order'!AB706)","v":""},null,{"$f":"IF('1. Order'!AT706=\"\",\"\",'1. Order'!AT706)","v":""},{"$f":"IF('1. Order'!AU706=\"\",\"\",'1. Order'!AU706)","v":""},null,null,null,null,null,null,null,{"$f":"IF('1. Order'!AY706=\"\",\"\",'1. Order'!AY706)","v":""},{"$f":"IF('1. Order'!AZ706=\"\",\"\",'1. Order'!AZ706)","v":""},{"$f":"IF('1. Order'!BA706=\"\",\"\",'1. Order'!BA706)","v":""},{"$f":"IF('1. Order'!BB706=\"\",\"\",'1. Order'!BB706)","v":""},{"$f":"IF('1. Order'!BD706=\"\",\"\",'1. Order'!BD706)","v":""},{"$f":"IF('1. Order'!BE706=\"\",\"\",'1. Order'!BE706)","v":""},{"$f":"IF('1. Order'!BF706=\"\",\"\",'1. Order'!BF706)","v":""},{"$f":"IF('1. Order'!BG706=\"\",\"\",'1. Order'!BG706)","v":""},{"$f":"IF('1. Order'!BH706=\"\",\"\",'1. Order'!BH706)","v":"ZWO"}]
[{"$f":"IF('1. Order'!F707=\"\",\"\",'1. Order'!F707)","v":{"$error":"#N/A"}},{"$f":"IF('1. Order'!G707=\"\",\"\",'1. Order'!G707)","v":""},{"$f":"IF('1. Order'!H707=\"\",\"\",'1. Order'!H707)","v":""},{"$f":"IF('1. Order'!I707=\"\",\"\",'1. Order'!I707)","v":""},{"$f":"IF('1. Order'!J707=\"\",\"\",'1. Order'!J707)","v":""},{"$f":"IF('1. Order'!K707=\"\",\"\",'1. Order'!K707)","v":""},{"$f":"IF('1. Order'!L707=\"\",\"\",'1. Order'!L707)","v":""},{"$f":"IF('1. Order'!M707=\"\",\"\",'1. Order'!M707)","v":""},{"$f":"IF('1. Order'!N707=\"\",\"\",'1. Order'!N707)","v":""},{"$f":"IF('1. Order'!O707=\"\",\"\",'1. Order'!O707)","v":{"$error":"#N/A"}},{"$f":"IF('1. Order'!P707=\"\",\"\",'1. Order'!P707)","v":{"$error":"#N/A"}},{"$f":"IF('1. Order'!Q707=\"\",\"\",'1. Order'!Q707)","v":""},{"$f":"IF('1. Order'!S707=\"\",\"\",'1. Order'!S707)","v":""},{"$f":"IF('1. Order'!T707=\"\",\"\",'1. Order'!T707)","v":""},{"$f":"IF('1. Order'!W707=\"\",\"\",'1. Order'!W707)","v":""},{"$f":"IF('1. Order'!X707=\"\",\"\",'1. Order'!X707)","v":""},{"$f":"IF('1. Order'!Y707=\"\",\"\",'1. Order'!Y707)","v":"EUR"},{"$f":"IF('1. Order'!Z707=\"\",\"\",'1. Order'!Z707)","v":""},{"$f":"IF('1. Order'!AA707=\"\",\"\",'1. Order'!AA707)","v":""},{"$f":"IF('1. Order'!AB707=\"\",\"\",'1. Order'!AB707)","v":""},null,{"$f":"IF('1. Order'!AT707=\"\",\"\",'1. Order'!AT707)","v":""},{"$f":"IF('1. Order'!AU707=\"\",\"\",'1. Order'!AU707)","v":""},null,null,null,null,null,null,null,{"$f":"IF('1. Order'!AY707=\"\",\"\",'1. Order'!AY707)","v":""},{"$f":"IF('1. Order'!AZ707=\"\",\"\",'1. Order'!AZ707)","v":""},{"$f":"IF('1. Order'!BA707=\"\",\"\",'1. Order'!BA707)","v":""},{"$f":"IF('1. Order'!BB707=\"\",\"\",'1. Order'!BB707)","v":""},{"$f":"IF('1. Order'!BD707=\"\",\"\",'1. Order'!BD707)","v":""},{"$f":"IF('1. Order'!BE707=\"\",\"\",'1. Order'!BE707)","v":""},{"$f":"IF('1. Order'!BF707=\"\",\"\",'1. Order'!BF707)","v":""},{"$f":"IF('1. Order'!BG707=\"\",\"\",'1. Order'!BG707)","v":""},{"$f":"IF('1. Order'!BH707=\"\",\"\",'1. Order'!BH707)","v":"ZWO"}]
[{"$f":"IF('1. Order'!F708=\"\",\"\",'1. Order'!F708)","v":{"$error":"#N/A"}},{"$f":"IF('1. Order'!G708=\"\",\"\",'1. Order'!G708)","v":""},{"$f":"IF('1. Order'!H708=\"\",\"\",'1. Order'!H708)","v":""},{"$f":"IF('1. Order'!I708=\"\",\"\",'1. Order'!I708)","v":""},{"$f":"IF('1. Order'!J708=\"\",\"\",'1. Order'!J708)","v":""},{"$f":"IF('1. Order'!K708=\"\",\"\",'1. Order'!K708)","v":""},{"$f":"IF('1. Order'!L708=\"\",\"\",'1. Order'!L708)","v":""},{"$f":"IF('1. Order'!M708=\"\",\"\",'1. Order'!M708)","v":""},{"$f":"IF('1. Order'!N708=\"\",\"\",'1. Order'!N708)","v":""},{"$f":"IF('1. Order'!O708=\"\",\"\",'1. Order'!O708)","v":{"$error":"#N/A"}},{"$f":"IF('1. Order'!P708=\"\",\"\",'1. Order'!P708)","v":{"$error":"#N/A"}},{"$f":"IF('1. Order'!Q708=\"\",\"\",'1. Order'!Q708)","v":""},{"$f":"IF('1. Order'!S708=\"\",\"\",'1. Order'!S708)","v":""},{"$f":"IF('1. Order'!T708=\"\",\"\",'1. Order'!T708)","v":""},{"$f":"IF('1. Order'!W708=\"\",\"\",'1. Order'!W708)","v":""},{"$f":"IF('1. Order'!X708=\"\",\"\",'1. Order'!X708)","v":""},{"$f":"IF('1. Order'!Y708=\"\",\"\",'1. Order'!Y708)","v":"EUR"},{"$f":"IF('1. Order'!Z708=\"\",\"\",'1. Order'!Z708)","v":""},{"$f":"IF('1. Order'!AA708=\"\",\"\",'1. Order'!AA708)","v":""},{"$f":"IF('1. Order'!AB708=\"\",\"\",'1. Order'!AB708)","v":""},null,{"$f":"IF('1. Order'!AT708=\"\",\"\",'1. Order'!AT708)","v":""},{"$f":"IF('1. Order'!AU708=\"\",\"\",'1. Order'!AU708)","v":""},null,null,null,null,null,null,null,{"$f":"IF('1. Order'!AY708=\"\",\"\",'1. Order'!AY708)","v":""},{"$f":"IF('1. Order'!AZ708=\"\",\"\",'1. Order'!AZ708)","v":""},{"$f":"IF('1. Order'!BA708=\"\",\"\",'1. Order'!BA708)","v":""},{"$f":"IF('1. Order'!BB708=\"\",\"\",'1. Order'!BB708)","v":""},{"$f":"IF('1. Order'!BD708=\"\",\"\",'1. Order'!BD708)","v":""},{"$f":"IF('1. Order'!BE708=\"\",\"\",'1. Order'!BE708)","v":""},{"$f":"IF('1. Order'!BF708=\"\",\"\",'1. Order'!BF708)","v":""},{"$f":"IF('1. Order'!BG708=\"\",\"\",'1. Order'!BG708)","v":""},{"$f":"IF('1. Order'!BH708=\"\",\"\",'1. Order'!BH708)","v":"ZWO"}]
[{"$f":"IF('1. Order'!F709=\"\",\"\",'1. Order'!F709)","v":{"$error":"#N/A"}},{"$f":"IF('1. Order'!G709=\"\",\"\",'1. Order'!G709)","v":""},{"$f":"IF('1. Order'!H709=\"\",\"\",'1. Order'!H709)","v":""},{"$f":"IF('1. Order'!I709=\"\",\"\",'1. Order'!I709)","v":""},{"$f":"IF('1. Order'!J709=\"\",\"\",'1. Order'!J709)","v":""},{"$f":"IF('1. Order'!K709=\"\",\"\",'1. Order'!K709)","v":""},{"$f":"IF('1. Order'!L709=\"\",\"\",'1. Order'!L709)","v":""},{"$f":"IF('1. Order'!M709=\"\",\"\",'1. Order'!M709)","v":""},{"$f":"IF('1. Order'!N709=\"\",\"\",'1. Order'!N709)","v":""},{"$f":"IF('1. Order'!O709=\"\",\"\",'1. Order'!O709)","v":{"$error":"#N/A"}},{"$f":"IF('1. Order'!P709=\"\",\"\",'1. Order'!P709)","v":{"$error":"#N/A"}},{"$f":"IF('1. Order'!Q709=\"\",\"\",'1. Order'!Q709)","v":""},{"$f":"IF('1. Order'!S709=\"\",\"\",'1. Order'!S709)","v":""},{"$f":"IF('1. Order'!T709=\"\",\"\",'1. Order'!T709)","v":""},{"$f":"IF('1. Order'!W709=\"\",\"\",'1. Order'!W709)","v":""},{"$f":"IF('1. Order'!X709=\"\",\"\",'1. Order'!X709)","v":""},{"$f":"IF('1. Order'!Y709=\"\",\"\",'1. Order'!Y709)","v":"EUR"},{"$f":"IF('1. Order'!Z709=\"\",\"\",'1. Order'!Z709)","v":""},{"$f":"IF('1. Order'!AA709=\"\",\"\",'1. Order'!AA709)","v":""},{"$f":"IF('1. Order'!AB709=\"\",\"\",'1. Order'!AB709)","v":""},null,{"$f":"IF('1. Order'!AT709=\"\",\"\",'1. Order'!AT709)","v":""},{"$f":"IF('1. Order'!AU709=\"\",\"\",'1. Order'!AU709)","v":""},null,null,null,null,null,null,null,{"$f":"IF('1. Order'!AY709=\"\",\"\",'1. Order'!AY709)","v":""},{"$f":"IF('1. Order'!AZ709=\"\",\"\",'1. Order'!AZ709)","v":""},{"$f":"IF('1. Order'!BA709=\"\",\"\",'1. Order'!BA709)","v":""},{"$f":"IF('1. Order'!BB709=\"\",\"\",'1. Order'!BB709)","v":""},{"$f":"IF('1. Order'!BD709=\"\",\"\",'1. Order'!BD709)","v":""},{"$f":"IF('1. Order'!BE709=\"\",\"\",'1. Order'!BE709)","v":""},{"$f":"IF('1. Order'!BF709=\"\",\"\",'1. Order'!BF709)","v":""},{"$f":"IF('1. Order'!BG709=\"\",\"\",'1. Order'!BG709)","v":""},{"$f":"IF('1. Order'!BH709=\"\",\"\",'1. Order'!BH709)","v":"ZWO"}]
[{"$f":"IF('1. Order'!F710=\"\",\"\",'1. Order'!F710)","v":{"$error":"#N/A"}},{"$f":"IF('1. Order'!G710=\"\",\"\",'1. Order'!G710)","v":""},{"$f":"IF('1. Order'!H710=\"\",\"\",'1. Order'!H710)","v":""},{"$f":"IF('1. Order'!I710=\"\",\"\",'1. Order'!I710)","v":""},{"$f":"IF('1. Order'!J710=\"\",\"\",'1. Order'!J710)","v":""},{"$f":"IF('1. Order'!K710=\"\",\"\",'1. Order'!K710)","v":""},{"$f":"IF('1. Order'!L710=\"\",\"\",'1. Order'!L710)","v":""},{"$f":"IF('1. Order'!M710=\"\",\"\",'1. Order'!M710)","v":""},{"$f":"IF('1. Order'!N710=\"\",\"\",'1. Order'!N710)","v":""},{"$f":"IF('1. Order'!O710=\"\",\"\",'1. Order'!O710)","v":{"$error":"#N/A"}},{"$f":"IF('1. Order'!P710=\"\",\"\",'1. Order'!P710)","v":{"$error":"#N/A"}},{"$f":"IF('1. Order'!Q710=\"\",\"\",'1. Order'!Q710)","v":""},{"$f":"IF('1. Order'!S710=\"\",\"\",'1. Order'!S710)","v":""},{"$f":"IF('1. Order'!T710=\"\",\"\",'1. Order'!T710)","v":""},{"$f":"IF('1. Order'!W710=\"\",\"\",'1. Order'!W710)","v":""},{"$f":"IF('1. Order'!X710=\"\",\"\",'1. Order'!X710)","v":""},{"$f":"IF('1. Order'!Y710=\"\",\"\",'1. Order'!Y710)","v":"EUR"},{"$f":"IF('1. Order'!Z710=\"\",\"\",'1. Order'!Z710)","v":""},{"$f":"IF('1. Order'!AA710=\"\",\"\",'1. Order'!AA710)","v":""},{"$f":"IF('1. Order'!AB710=\"\",\"\",'1. Order'!AB710)","v":""},null,{"$f":"IF('1. Order'!AT710=\"\",\"\",'1. Order'!AT710)","v":""},{"$f":"IF('1. Order'!AU710=\"\",\"\",'1. Order'!AU710)","v":""},null,null,null,null,null,null,null,{"$f":"IF('1. Order'!AY710=\"\",\"\",'1. Order'!AY710)","v":""},{"$f":"IF('1. Order'!AZ710=\"\",\"\",'1. Order'!AZ710)","v":""},{"$f":"IF('1. Order'!BA710=\"\",\"\",'1. Order'!BA710)","v":""},{"$f":"IF('1. Order'!BB710=\"\",\"\",'1. Order'!BB710)","v":""},{"$f":"IF('1. Order'!BD710=\"\",\"\",'1. Order'!BD710)","v":""},{"$f":"IF('1. Order'!BE710=\"\",\"\",'1. Order'!BE710)","v":""},{"$f":"IF('1. Order'!BF710=\"\",\"\",'1. Order'!BF710)","v":""},{"$f":"IF('1. Order'!BG710=\"\",\"\",'1. Order'!BG710)","v":""},{"$f":"IF('1. Order'!BH710=\"\",\"\",'1. Order'!BH710)","v":"ZWO"}]
[{"$f":"IF('1. Order'!F711=\"\",\"\",'1. Order'!F711)","v":{"$error":"#N/A"}},{"$f":"IF('1. Order'!G711=\"\",\"\",'1. Order'!G711)","v":""},{"$f":"IF('1. Order'!H711=\"\",\"\",'1. Order'!H711)","v":""},{"$f":"IF('1. Order'!I711=\"\",\"\",'1. Order'!I711)","v":""},{"$f":"IF('1. Order'!J711=\"\",\"\",'1. Order'!J711)","v":""},{"$f":"IF('1. Order'!K711=\"\",\"\",'1. Order'!K711)","v":""},{"$f":"IF('1. Order'!L711=\"\",\"\",'1. Order'!L711)","v":""},{"$f":"IF('1. Order'!M711=\"\",\"\",'1. Order'!M711)","v":""},{"$f":"IF('1. Order'!N711=\"\",\"\",'1. Order'!N711)","v":""},{"$f":"IF('1. Order'!O711=\"\",\"\",'1. Order'!O711)","v":{"$error":"#N/A"}},{"$f":"IF('1. Order'!P711=\"\",\"\",'1. Order'!P711)","v":{"$error":"#N/A"}},{"$f":"IF('1. Order'!Q711=\"\",\"\",'1. Order'!Q711)","v":""},{"$f":"IF('1. Order'!S711=\"\",\"\",'1. Order'!S711)","v":""},{"$f":"IF('1. Order'!T711=\"\",\"\",'1. Order'!T711)","v":""},{"$f":"IF('1. Order'!W711=\"\",\"\",'1. Order'!W711)","v":""},{"$f":"IF('1. Order'!X711=\"\",\"\",'1. Order'!X711)","v":""},{"$f":"IF('1. Order'!Y711=\"\",\"\",'1. Order'!Y711)","v":"EUR"},{"$f":"IF('1. Order'!Z711=\"\",\"\",'1. Order'!Z711)","v":""},{"$f":"IF('1. Order'!AA711=\"\",\"\",'1. Order'!AA711)","v":""},{"$f":"IF('1. Order'!AB711=\"\",\"\",'1. Order'!AB711)","v":""},null,{"$f":"IF('1. Order'!AT711=\"\",\"\",'1. Order'!AT711)","v":""},{"$f":"IF('1. Order'!AU711=\"\",\"\",'1. Order'!AU711)","v":""},null,null,null,null,null,null,null,{"$f":"IF('1. Order'!AY711=\"\",\"\",'1. Order'!AY711)","v":""},{"$f":"IF('1. Order'!AZ711=\"\",\"\",'1. Order'!AZ711)","v":""},{"$f":"IF('1. Order'!BA711=\"\",\"\",'1. Order'!BA711)","v":""},{"$f":"IF('1. Order'!BB711=\"\",\"\",'1. Order'!BB711)","v":""},{"$f":"IF('1. Order'!BD711=\"\",\"\",'1. Order'!BD711)","v":""},{"$f":"IF('1. Order'!BE711=\"\",\"\",'1. Order'!BE711)","v":""},{"$f":"IF('1. Order'!BF711=\"\",\"\",'1. Order'!BF711)","v":""},{"$f":"IF('1. Order'!BG711=\"\",\"\",'1. Order'!BG711)","v":""},{"$f":"IF('1. Order'!BH711=\"\",\"\",'1. Order'!BH711)","v":"ZWO"}]
[{"$f":"IF('1. Order'!F712=\"\",\"\",'1. Order'!F712)","v":{"$error":"#N/A"}},{"$f":"IF('1. Order'!G712=\"\",\"\",'1. Order'!G712)","v":""},{"$f":"IF('1. Order'!H712=\"\",\"\",'1. Order'!H712)","v":""},{"$f":"IF('1. Order'!I712=\"\",\"\",'1. Order'!I712)","v":""},{"$f":"IF('1. Order'!J712=\"\",\"\",'1. Order'!J712)","v":""},{"$f":"IF('1. Order'!K712=\"\",\"\",'1. Order'!K712)","v":""},{"$f":"IF('1. Order'!L712=\"\",\"\",'1. Order'!L712)","v":""},{"$f":"IF('1. Order'!M712=\"\",\"\",'1. Order'!M712)","v":""},{"$f":"IF('1. Order'!N712=\"\",\"\",'1. Order'!N712)","v":""},{"$f":"IF('1. Order'!O712=\"\",\"\",'1. Order'!O712)","v":{"$error":"#N/A"}},{"$f":"IF('1. Order'!P712=\"\",\"\",'1. Order'!P712)","v":{"$error":"#N/A"}},{"$f":"IF('1. Order'!Q712=\"\",\"\",'1. Order'!Q712)","v":""},{"$f":"IF('1. Order'!S712=\"\",\"\",'1. Order'!S712)","v":""},{"$f":"IF('1. Order'!T712=\"\",\"\",'1. Order'!T712)","v":""},{"$f":"IF('1. Order'!W712=\"\",\"\",'1. Order'!W712)","v":""},{"$f":"IF('1. Order'!X712=\"\",\"\",'1. Order'!X712)","v":""},{"$f":"IF('1. Order'!Y712=\"\",\"\",'1. Order'!Y712)","v":"EUR"},{"$f":"IF('1. Order'!Z712=\"\",\"\",'1. Order'!Z712)","v":""},{"$f":"IF('1. Order'!AA712=\"\",\"\",'1. Order'!AA712)","v":""},{"$f":"IF('1. Order'!AB712=\"\",\"\",'1. Order'!AB712)","v":""},null,{"$f":"IF('1. Order'!AT712=\"\",\"\",'1. Order'!AT712)","v":""},{"$f":"IF('1. Order'!AU712=\"\",\"\",'1. Order'!AU712)","v":""},null,null,null,null,null,null,null,{"$f":"IF('1. Order'!AY712=\"\",\"\",'1. Order'!AY712)","v":""},{"$f":"IF('1. Order'!AZ712=\"\",\"\",'1. Order'!AZ712)","v":""},{"$f":"IF('1. Order'!BA712=\"\",\"\",'1. Order'!BA712)","v":""},{"$f":"IF('1. Order'!BB712=\"\",\"\",'1. Order'!BB712)","v":""},{"$f":"IF('1. Order'!BD712=\"\",\"\",'1. Order'!BD712)","v":""},{"$f":"IF('1. Order'!BE712=\"\",\"\",'1. Order'!BE712)","v":""},{"$f":"IF('1. Order'!BF712=\"\",\"\",'1. Order'!BF712)","v":""},{"$f":"IF('1. Order'!BG712=\"\",\"\",'1. Order'!BG712)","v":""},{"$f":"IF('1. Order'!BH712=\"\",\"\",'1. Order'!BH712)","v":"ZWO"}]
[{"$f":"IF('1. Order'!F713=\"\",\"\",'1. Order'!F713)","v":{"$error":"#N/A"}},{"$f":"IF('1. Order'!G713=\"\",\"\",'1. Order'!G713)","v":""},{"$f":"IF('1. Order'!H713=\"\",\"\",'1. Order'!H713)","v":""},{"$f":"IF('1. Order'!I713=\"\",\"\",'1. Order'!I713)","v":""},{"$f":"IF('1. Order'!J713=\"\",\"\",'1. Order'!J713)","v":""},{"$f":"IF('1. Order'!K713=\"\",\"\",'1. Order'!K713)","v":""},{"$f":"IF('1. Order'!L713=\"\",\"\",'1. Order'!L713)","v":""},{"$f":"IF('1. Order'!M713=\"\",\"\",'1. Order'!M713)","v":""},{"$f":"IF('1. Order'!N713=\"\",\"\",'1. Order'!N713)","v":""},{"$f":"IF('1. Order'!O713=\"\",\"\",'1. Order'!O713)","v":{"$error":"#N/A"}},{"$f":"IF('1. Order'!P713=\"\",\"\",'1. Order'!P713)","v":{"$error":"#N/A"}},{"$f":"IF('1. Order'!Q713=\"\",\"\",'1. Order'!Q713)","v":""},{"$f":"IF('1. Order'!S713=\"\",\"\",'1. Order'!S713)","v":""},{"$f":"IF('1. Order'!T713=\"\",\"\",'1. Order'!T713)","v":""},{"$f":"IF('1. Order'!W713=\"\",\"\",'1. Order'!W713)","v":""},{"$f":"IF('1. Order'!X713=\"\",\"\",'1. Order'!X713)","v":""},{"$f":"IF('1. Order'!Y713=\"\",\"\",'1. Order'!Y713)","v":"EUR"},{"$f":"IF('1. Order'!Z713=\"\",\"\",'1. Order'!Z713)","v":""},{"$f":"IF('1. Order'!AA713=\"\",\"\",'1. Order'!AA713)","v":""},{"$f":"IF('1. Order'!AB713=\"\",\"\",'1. Order'!AB713)","v":""},null,{"$f":"IF('1. Order'!AT713=\"\",\"\",'1. Order'!AT713)","v":""},{"$f":"IF('1. Order'!AU713=\"\",\"\",'1. Order'!AU713)","v":""},null,null,null,null,null,null,null,{"$f":"IF('1. Order'!AY713=\"\",\"\",'1. Order'!AY713)","v":""},{"$f":"IF('1. Order'!AZ713=\"\",\"\",'1. Order'!AZ713)","v":""},{"$f":"IF('1. Order'!BA713=\"\",\"\",'1. Order'!BA713)","v":""},{"$f":"IF('1. Order'!BB713=\"\",\"\",'1. Order'!BB713)","v":""},{"$f":"IF('1. Order'!BD713=\"\",\"\",'1. Order'!BD713)","v":""},{"$f":"IF('1. Order'!BE713=\"\",\"\",'1. Order'!BE713)","v":""},{"$f":"IF('1. Order'!BF713=\"\",\"\",'1. Order'!BF713)","v":""},{"$f":"IF('1. Order'!BG713=\"\",\"\",'1. Order'!BG713)","v":""},{"$f":"IF('1. Order'!BH713=\"\",\"\",'1. Order'!BH713)","v":"ZWO"}]
[{"$f":"IF('1. Order'!F714=\"\",\"\",'1. Order'!F714)","v":{"$error":"#N/A"}},{"$f":"IF('1. Order'!G714=\"\",\"\",'1. Order'!G714)","v":""},{"$f":"IF('1. Order'!H714=\"\",\"\",'1. Order'!H714)","v":""},{"$f":"IF('1. Order'!I714=\"\",\"\",'1. Order'!I714)","v":""},{"$f":"IF('1. Order'!J714=\"\",\"\",'1. Order'!J714)","v":""},{"$f":"IF('1. Order'!K714=\"\",\"\",'1. Order'!K714)","v":""},{"$f":"IF('1. Order'!L714=\"\",\"\",'1. Order'!L714)","v":""},{"$f":"IF('1. Order'!M714=\"\",\"\",'1. Order'!M714)","v":""},{"$f":"IF('1. Order'!N714=\"\",\"\",'1. Order'!N714)","v":""},{"$f":"IF('1. Order'!O714=\"\",\"\",'1. Order'!O714)","v":{"$error":"#N/A"}},{"$f":"IF('1. Order'!P714=\"\",\"\",'1. Order'!P714)","v":{"$error":"#N/A"}},{"$f":"IF('1. Order'!Q714=\"\",\"\",'1. Order'!Q714)","v":""},{"$f":"IF('1. Order'!S714=\"\",\"\",'1. Order'!S714)","v":""},{"$f":"IF('1. Order'!T714=\"\",\"\",'1. Order'!T714)","v":""},{"$f":"IF('1. Order'!W714=\"\",\"\",'1. Order'!W714)","v":""},{"$f":"IF('1. Order'!X714=\"\",\"\",'1. Order'!X714)","v":""},{"$f":"IF('1. Order'!Y714=\"\",\"\",'1. Order'!Y714)","v":"EUR"},{"$f":"IF('1. Order'!Z714=\"\",\"\",'1. Order'!Z714)","v":""},{"$f":"IF('1. Order'!AA714=\"\",\"\",'1. Order'!AA714)","v":""},{"$f":"IF('1. Order'!AB714=\"\",\"\",'1. Order'!AB714)","v":""},null,{"$f":"IF('1. Order'!AT714=\"\",\"\",'1. Order'!AT714)","v":""},{"$f":"IF('1. Order'!AU714=\"\",\"\",'1. Order'!AU714)","v":""},null,null,null,null,null,null,null,{"$f":"IF('1. Order'!AY714=\"\",\"\",'1. Order'!AY714)","v":""},{"$f":"IF('1. Order'!AZ714=\"\",\"\",'1. Order'!AZ714)","v":""},{"$f":"IF('1. Order'!BA714=\"\",\"\",'1. Order'!BA714)","v":""},{"$f":"IF('1. Order'!BB714=\"\",\"\",'1. Order'!BB714)","v":""},{"$f":"IF('1. Order'!BD714=\"\",\"\",'1. Order'!BD714)","v":""},{"$f":"IF('1. Order'!BE714=\"\",\"\",'1. Order'!BE714)","v":""},{"$f":"IF('1. Order'!BF714=\"\",\"\",'1. Order'!BF714)","v":""},{"$f":"IF('1. Order'!BG714=\"\",\"\",'1. Order'!BG714)","v":""},{"$f":"IF('1. Order'!BH714=\"\",\"\",'1. Order'!BH714)","v":"ZWO"}]
[{"$f":"IF('1. Order'!F715=\"\",\"\",'1. Order'!F715)","v":{"$error":"#N/A"}},{"$f":"IF('1. Order'!G715=\"\",\"\",'1. Order'!G715)","v":""},{"$f":"IF('1. Order'!H715=\"\",\"\",'1. Order'!H715)","v":""},{"$f":"IF('1. Order'!I715=\"\",\"\",'1. Order'!I715)","v":""},{"$f":"IF('1. Order'!J715=\"\",\"\",'1. Order'!J715)","v":""},{"$f":"IF('1. Order'!K715=\"\",\"\",'1. Order'!K715)","v":""},{"$f":"IF('1. Order'!L715=\"\",\"\",'1. Order'!L715)","v":""},{"$f":"IF('1. Order'!M715=\"\",\"\",'1. Order'!M715)","v":""},{"$f":"IF('1. Order'!N715=\"\",\"\",'1. Order'!N715)","v":""},{"$f":"IF('1. Order'!O715=\"\",\"\",'1. Order'!O715)","v":{"$error":"#N/A"}},{"$f":"IF('1. Order'!P715=\"\",\"\",'1. Order'!P715)","v":{"$error":"#N/A"}},{"$f":"IF('1. Order'!Q715=\"\",\"\",'1. Order'!Q715)","v":""},{"$f":"IF('1. Order'!S715=\"\",\"\",'1. Order'!S715)","v":""},{"$f":"IF('1. Order'!T715=\"\",\"\",'1. Order'!T715)","v":""},{"$f":"IF('1. Order'!W715=\"\",\"\",'1. Order'!W715)","v":""},{"$f":"IF('1. Order'!X715=\"\",\"\",'1. Order'!X715)","v":""},{"$f":"IF('1. Order'!Y715=\"\",\"\",'1. Order'!Y715)","v":"EUR"},{"$f":"IF('1. Order'!Z715=\"\",\"\",'1. Order'!Z715)","v":""},{"$f":"IF('1. Order'!AA715=\"\",\"\",'1. Order'!AA715)","v":""},{"$f":"IF('1. Order'!AB715=\"\",\"\",'1. Order'!AB715)","v":""},null,{"$f":"IF('1. Order'!AT715=\"\",\"\",'1. Order'!AT715)","v":""},{"$f":"IF('1. Order'!AU715=\"\",\"\",'1. Order'!AU715)","v":""},null,null,null,null,null,null,null,{"$f":"IF('1. Order'!AY715=\"\",\"\",'1. Order'!AY715)","v":""},{"$f":"IF('1. Order'!AZ715=\"\",\"\",'1. Order'!AZ715)","v":""},{"$f":"IF('1. Order'!BA715=\"\",\"\",'1. Order'!BA715)","v":""},{"$f":"IF('1. Order'!BB715=\"\",\"\",'1. Order'!BB715)","v":""},{"$f":"IF('1. Order'!BD715=\"\",\"\",'1. Order'!BD715)","v":""},{"$f":"IF('1. Order'!BE715=\"\",\"\",'1. Order'!BE715)","v":""},{"$f":"IF('1. Order'!BF715=\"\",\"\",'1. Order'!BF715)","v":""},{"$f":"IF('1. Order'!BG715=\"\",\"\",'1. Order'!BG715)","v":""},{"$f":"IF('1. Order'!BH715=\"\",\"\",'1. Order'!BH715)","v":"ZWO"}]
[{"$f":"IF('1. Order'!F716=\"\",\"\",'1. Order'!F716)","v":{"$error":"#N/A"}},{"$f":"IF('1. Order'!G716=\"\",\"\",'1. Order'!G716)","v":""},{"$f":"IF('1. Order'!H716=\"\",\"\",'1. Order'!H716)","v":""},{"$f":"IF('1. Order'!I716=\"\",\"\",'1. Order'!I716)","v":""},{"$f":"IF('1. Order'!J716=\"\",\"\",'1. Order'!J716)","v":""},{"$f":"IF('1. Order'!K716=\"\",\"\",'1. Order'!K716)","v":""},{"$f":"IF('1. Order'!L716=\"\",\"\",'1. Order'!L716)","v":""},{"$f":"IF('1. Order'!M716=\"\",\"\",'1. Order'!M716)","v":""},{"$f":"IF('1. Order'!N716=\"\",\"\",'1. Order'!N716)","v":""},{"$f":"IF('1. Order'!O716=\"\",\"\",'1. Order'!O716)","v":{"$error":"#N/A"}},{"$f":"IF('1. Order'!P716=\"\",\"\",'1. Order'!P716)","v":{"$error":"#N/A"}},{"$f":"IF('1. Order'!Q716=\"\",\"\",'1. Order'!Q716)","v":""},{"$f":"IF('1. Order'!S716=\"\",\"\",'1. Order'!S716)","v":""},{"$f":"IF('1. Order'!T716=\"\",\"\",'1. Order'!T716)","v":""},{"$f":"IF('1. Order'!W716=\"\",\"\",'1. Order'!W716)","v":""},{"$f":"IF('1. Order'!X716=\"\",\"\",'1. Order'!X716)","v":""},{"$f":"IF('1. Order'!Y716=\"\",\"\",'1. Order'!Y716)","v":"EUR"},{"$f":"IF('1. Order'!Z716=\"\",\"\",'1. Order'!Z716)","v":""},{"$f":"IF('1. Order'!AA716=\"\",\"\",'1. Order'!AA716)","v":""},{"$f":"IF('1. Order'!AB716=\"\",\"\",'1. Order'!AB716)","v":""},null,{"$f":"IF('1. Order'!AT716=\"\",\"\",'1. Order'!AT716)","v":""},{"$f":"IF('1. Order'!AU716=\"\",\"\",'1. Order'!AU716)","v":""},null,null,null,null,null,null,null,{"$f":"IF('1. Order'!AY716=\"\",\"\",'1. Order'!AY716)","v":""},{"$f":"IF('1. Order'!AZ716=\"\",\"\",'1. Order'!AZ716)","v":""},{"$f":"IF('1. Order'!BA716=\"\",\"\",'1. Order'!BA716)","v":""},{"$f":"IF('1. Order'!BB716=\"\",\"\",'1. Order'!BB716)","v":""},{"$f":"IF('1. Order'!BD716=\"\",\"\",'1. Order'!BD716)","v":""},{"$f":"IF('1. Order'!BE716=\"\",\"\",'1. Order'!BE716)","v":""},{"$f":"IF('1. Order'!BF716=\"\",\"\",'1. Order'!BF716)","v":""},{"$f":"IF('1. Order'!BG716=\"\",\"\",'1. Order'!BG716)","v":""},{"$f":"IF('1. Order'!BH716=\"\",\"\",'1. Order'!BH716)","v":"ZWO"}]
[{"$f":"IF('1. Order'!F717=\"\",\"\",'1. Order'!F717)","v":{"$error":"#N/A"}},{"$f":"IF('1. Order'!G717=\"\",\"\",'1. Order'!G717)","v":""},{"$f":"IF('1. Order'!H717=\"\",\"\",'1. Order'!H717)","v":""},{"$f":"IF('1. Order'!I717=\"\",\"\",'1. Order'!I717)","v":""},{"$f":"IF('1. Order'!J717=\"\",\"\",'1. Order'!J717)","v":""},{"$f":"IF('1. Order'!K717=\"\",\"\",'1. Order'!K717)","v":""},{"$f":"IF('1. Order'!L717=\"\",\"\",'1. Order'!L717)","v":""},{"$f":"IF('1. Order'!M717=\"\",\"\",'1. Order'!M717)","v":""},{"$f":"IF('1. Order'!N717=\"\",\"\",'1. Order'!N717)","v":""},{"$f":"IF('1. Order'!O717=\"\",\"\",'1. Order'!O717)","v":{"$error":"#N/A"}},{"$f":"IF('1. Order'!P717=\"\",\"\",'1. Order'!P717)","v":{"$error":"#N/A"}},{"$f":"IF('1. Order'!Q717=\"\",\"\",'1. Order'!Q717)","v":""},{"$f":"IF('1. Order'!S717=\"\",\"\",'1. Order'!S717)","v":""},{"$f":"IF('1. Order'!T717=\"\",\"\",'1. Order'!T717)","v":""},{"$f":"IF('1. Order'!W717=\"\",\"\",'1. Order'!W717)","v":""},{"$f":"IF('1. Order'!X717=\"\",\"\",'1. Order'!X717)","v":""},{"$f":"IF('1. Order'!Y717=\"\",\"\",'1. Order'!Y717)","v":"EUR"},{"$f":"IF('1. Order'!Z717=\"\",\"\",'1. Order'!Z717)","v":""},{"$f":"IF('1. Order'!AA717=\"\",\"\",'1. Order'!AA717)","v":""},{"$f":"IF('1. Order'!AB717=\"\",\"\",'1. Order'!AB717)","v":""},null,{"$f":"IF('1. Order'!AT717=\"\",\"\",'1. Order'!AT717)","v":""},{"$f":"IF('1. Order'!AU717=\"\",\"\",'1. Order'!AU717)","v":""},null,null,null,null,null,null,null,{"$f":"IF('1. Order'!AY717=\"\",\"\",'1. Order'!AY717)","v":""},{"$f":"IF('1. Order'!AZ717=\"\",\"\",'1. Order'!AZ717)","v":""},{"$f":"IF('1. Order'!BA717=\"\",\"\",'1. Order'!BA717)","v":""},{"$f":"IF('1. Order'!BB717=\"\",\"\",'1. Order'!BB717)","v":""},{"$f":"IF('1. Order'!BD717=\"\",\"\",'1. Order'!BD717)","v":""},{"$f":"IF('1. Order'!BE717=\"\",\"\",'1. Order'!BE717)","v":""},{"$f":"IF('1. Order'!BF717=\"\",\"\",'1. Order'!BF717)","v":""},{"$f":"IF('1. Order'!BG717=\"\",\"\",'1. Order'!BG717)","v":""},{"$f":"IF('1. Order'!BH717=\"\",\"\",'1. Order'!BH717)","v":"ZWO"}]
[{"$f":"IF('1. Order'!F718=\"\",\"\",'1. Order'!F718)","v":{"$error":"#N/A"}},{"$f":"IF('1. Order'!G718=\"\",\"\",'1. Order'!G718)","v":""},{"$f":"IF('1. Order'!H718=\"\",\"\",'1. Order'!H718)","v":""},{"$f":"IF('1. Order'!I718=\"\",\"\",'1. Order'!I718)","v":""},{"$f":"IF('1. Order'!J718=\"\",\"\",'1. Order'!J718)","v":""},{"$f":"IF('1. Order'!K718=\"\",\"\",'1. Order'!K718)","v":""},{"$f":"IF('1. Order'!L718=\"\",\"\",'1. Order'!L718)","v":""},{"$f":"IF('1. Order'!M718=\"\",\"\",'1. Order'!M718)","v":""},{"$f":"IF('1. Order'!N718=\"\",\"\",'1. Order'!N718)","v":""},{"$f":"IF('1. Order'!O718=\"\",\"\",'1. Order'!O718)","v":{"$error":"#N/A"}},{"$f":"IF('1. Order'!P718=\"\",\"\",'1. Order'!P718)","v":{"$error":"#N/A"}},{"$f":"IF('1. Order'!Q718=\"\",\"\",'1. Order'!Q718)","v":""},{"$f":"IF('1. Order'!S718=\"\",\"\",'1. Order'!S718)","v":""},{"$f":"IF('1. Order'!T718=\"\",\"\",'1. Order'!T718)","v":""},{"$f":"IF('1. Order'!W718=\"\",\"\",'1. Order'!W718)","v":""},{"$f":"IF('1. Order'!X718=\"\",\"\",'1. Order'!X718)","v":""},{"$f":"IF('1. Order'!Y718=\"\",\"\",'1. Order'!Y718)","v":"EUR"},{"$f":"IF('1. Order'!Z718=\"\",\"\",'1. Order'!Z718)","v":""},{"$f":"IF('1. Order'!AA718=\"\",\"\",'1. Order'!AA718)","v":""},{"$f":"IF('1. Order'!AB718=\"\",\"\",'1. Order'!AB718)","v":""},null,{"$f":"IF('1. Order'!AT718=\"\",\"\",'1. Order'!AT718)","v":""},{"$f":"IF('1. Order'!AU718=\"\",\"\",'1. Order'!AU718)","v":""},null,null,null,null,null,null,null,{"$f":"IF('1. Order'!AY718=\"\",\"\",'1. Order'!AY718)","v":""},{"$f":"IF('1. Order'!AZ718=\"\",\"\",'1. Order'!AZ718)","v":""},{"$f":"IF('1. Order'!BA718=\"\",\"\",'1. Order'!BA718)","v":""},{"$f":"IF('1. Order'!BB718=\"\",\"\",'1. Order'!BB718)","v":""},{"$f":"IF('1. Order'!BD718=\"\",\"\",'1. Order'!BD718)","v":""},{"$f":"IF('1. Order'!BE718=\"\",\"\",'1. Order'!BE718)","v":""},{"$f":"IF('1. Order'!BF718=\"\",\"\",'1. Order'!BF718)","v":""},{"$f":"IF('1. Order'!BG718=\"\",\"\",'1. Order'!BG718)","v":""},{"$f":"IF('1. Order'!BH718=\"\",\"\",'1. Order'!BH718)","v":"ZWO"}]
[{"$f":"IF('1. Order'!F719=\"\",\"\",'1. Order'!F719)","v":{"$error":"#N/A"}},{"$f":"IF('1. Order'!G719=\"\",\"\",'1. Order'!G719)","v":""},{"$f":"IF('1. Order'!H719=\"\",\"\",'1. Order'!H719)","v":""},{"$f":"IF('1. Order'!I719=\"\",\"\",'1. Order'!I719)","v":""},{"$f":"IF('1. Order'!J719=\"\",\"\",'1. Order'!J719)","v":""},{"$f":"IF('1. Order'!K719=\"\",\"\",'1. Order'!K719)","v":""},{"$f":"IF('1. Order'!L719=\"\",\"\",'1. Order'!L719)","v":""},{"$f":"IF('1. Order'!M719=\"\",\"\",'1. Order'!M719)","v":""},{"$f":"IF('1. Order'!N719=\"\",\"\",'1. Order'!N719)","v":""},{"$f":"IF('1. Order'!O719=\"\",\"\",'1. Order'!O719)","v":{"$error":"#N/A"}},{"$f":"IF('1. Order'!P719=\"\",\"\",'1. Order'!P719)","v":{"$error":"#N/A"}},{"$f":"IF('1. Order'!Q719=\"\",\"\",'1. Order'!Q719)","v":""},{"$f":"IF('1. Order'!S719=\"\",\"\",'1. Order'!S719)","v":""},{"$f":"IF('1. Order'!T719=\"\",\"\",'1. Order'!T719)","v":""},{"$f":"IF('1. Order'!W719=\"\",\"\",'1. Order'!W719)","v":""},{"$f":"IF('1. Order'!X719=\"\",\"\",'1. Order'!X719)","v":""},{"$f":"IF('1. Order'!Y719=\"\",\"\",'1. Order'!Y719)","v":"EUR"},{"$f":"IF('1. Order'!Z719=\"\",\"\",'1. Order'!Z719)","v":""},{"$f":"IF('1. Order'!AA719=\"\",\"\",'1. Order'!AA719)","v":""},{"$f":"IF('1. Order'!AB719=\"\",\"\",'1. Order'!AB719)","v":""},null,{"$f":"IF('1. Order'!AT719=\"\",\"\",'1. Order'!AT719)","v":""},{"$f":"IF('1. Order'!AU719=\"\",\"\",'1. Order'!AU719)","v":""},null,null,null,null,null,null,null,{"$f":"IF('1. Order'!AY719=\"\",\"\",'1. Order'!AY719)","v":""},{"$f":"IF('1. Order'!AZ719=\"\",\"\",'1. Order'!AZ719)","v":""},{"$f":"IF('1. Order'!BA719=\"\",\"\",'1. Order'!BA719)","v":""},{"$f":"IF('1. Order'!BB719=\"\",\"\",'1. Order'!BB719)","v":""},{"$f":"IF('1. Order'!BD719=\"\",\"\",'1. Order'!BD719)","v":""},{"$f":"IF('1. Order'!BE719=\"\",\"\",'1. Order'!BE719)","v":""},{"$f":"IF('1. Order'!BF719=\"\",\"\",'1. Order'!BF719)","v":""},{"$f":"IF('1. Order'!BG719=\"\",\"\",'1. Order'!BG719)","v":""},{"$f":"IF('1. Order'!BH719=\"\",\"\",'1. Order'!BH719)","v":"ZWO"}]
[{"$f":"IF('1. Order'!F720=\"\",\"\",'1. Order'!F720)","v":{"$error":"#N/A"}},{"$f":"IF('1. Order'!G720=\"\",\"\",'1. Order'!G720)","v":""},{"$f":"IF('1. Order'!H720=\"\",\"\",'1. Order'!H720)","v":""},{"$f":"IF('1. Order'!I720=\"\",\"\",'1. Order'!I720)","v":""},{"$f":"IF('1. Order'!J720=\"\",\"\",'1. Order'!J720)","v":""},{"$f":"IF('1. Order'!K720=\"\",\"\",'1. Order'!K720)","v":""},{"$f":"IF('1. Order'!L720=\"\",\"\",'1. Order'!L720)","v":""},{"$f":"IF('1. Order'!M720=\"\",\"\",'1. Order'!M720)","v":""},{"$f":"IF('1. Order'!N720=\"\",\"\",'1. Order'!N720)","v":""},{"$f":"IF('1. Order'!O720=\"\",\"\",'1. Order'!O720)","v":{"$error":"#N/A"}},{"$f":"IF('1. Order'!P720=\"\",\"\",'1. Order'!P720)","v":{"$error":"#N/A"}},{"$f":"IF('1. Order'!Q720=\"\",\"\",'1. Order'!Q720)","v":""},{"$f":"IF('1. Order'!S720=\"\",\"\",'1. Order'!S720)","v":""},{"$f":"IF('1. Order'!T720=\"\",\"\",'1. Order'!T720)","v":""},{"$f":"IF('1. Order'!W720=\"\",\"\",'1. Order'!W720)","v":""},{"$f":"IF('1. Order'!X720=\"\",\"\",'1. Order'!X720)","v":""},{"$f":"IF('1. Order'!Y720=\"\",\"\",'1. Order'!Y720)","v":"EUR"},{"$f":"IF('1. Order'!Z720=\"\",\"\",'1. Order'!Z720)","v":""},{"$f":"IF('1. Order'!AA720=\"\",\"\",'1. Order'!AA720)","v":""},{"$f":"IF('1. Order'!AB720=\"\",\"\",'1. Order'!AB720)","v":""},null,{"$f":"IF('1. Order'!AT720=\"\",\"\",'1. Order'!AT720)","v":""},{"$f":"IF('1. Order'!AU720=\"\",\"\",'1. Order'!AU720)","v":""},null,null,null,null,null,null,null,{"$f":"IF('1. Order'!AY720=\"\",\"\",'1. Order'!AY720)","v":""},{"$f":"IF('1. Order'!AZ720=\"\",\"\",'1. Order'!AZ720)","v":""},{"$f":"IF('1. Order'!BA720=\"\",\"\",'1. Order'!BA720)","v":""},{"$f":"IF('1. Order'!BB720=\"\",\"\",'1. Order'!BB720)","v":""},{"$f":"IF('1. Order'!BD720=\"\",\"\",'1. Order'!BD720)","v":""},{"$f":"IF('1. Order'!BE720=\"\",\"\",'1. Order'!BE720)","v":""},{"$f":"IF('1. Order'!BF720=\"\",\"\",'1. Order'!BF720)","v":""},{"$f":"IF('1. Order'!BG720=\"\",\"\",'1. Order'!BG720)","v":""},{"$f":"IF('1. Order'!BH720=\"\",\"\",'1. Order'!BH720)","v":"ZWO"}]
[{"$f":"IF('1. Order'!F721=\"\",\"\",'1. Order'!F721)","v":{"$error":"#N/A"}},{"$f":"IF('1. Order'!G721=\"\",\"\",'1. Order'!G721)","v":""},{"$f":"IF('1. Order'!H721=\"\",\"\",'1. Order'!H721)","v":""},{"$f":"IF('1. Order'!I721=\"\",\"\",'1. Order'!I721)","v":""},{"$f":"IF('1. Order'!J721=\"\",\"\",'1. Order'!J721)","v":""},{"$f":"IF('1. Order'!K721=\"\",\"\",'1. Order'!K721)","v":""},{"$f":"IF('1. Order'!L721=\"\",\"\",'1. Order'!L721)","v":""},{"$f":"IF('1. Order'!M721=\"\",\"\",'1. Order'!M721)","v":""},{"$f":"IF('1. Order'!N721=\"\",\"\",'1. Order'!N721)","v":""},{"$f":"IF('1. Order'!O721=\"\",\"\",'1. Order'!O721)","v":{"$error":"#N/A"}},{"$f":"IF('1. Order'!P721=\"\",\"\",'1. Order'!P721)","v":{"$error":"#N/A"}},{"$f":"IF('1. Order'!Q721=\"\",\"\",'1. Order'!Q721)","v":""},{"$f":"IF('1. Order'!S721=\"\",\"\",'1. Order'!S721)","v":""},{"$f":"IF('1. Order'!T721=\"\",\"\",'1. Order'!T721)","v":""},{"$f":"IF('1. Order'!W721=\"\",\"\",'1. Order'!W721)","v":""},{"$f":"IF('1. Order'!X721=\"\",\"\",'1. Order'!X721)","v":""},{"$f":"IF('1. Order'!Y721=\"\",\"\",'1. Order'!Y721)","v":"EUR"},{"$f":"IF('1. Order'!Z721=\"\",\"\",'1. Order'!Z721)","v":""},{"$f":"IF('1. Order'!AA721=\"\",\"\",'1. Order'!AA721)","v":""},{"$f":"IF('1. Order'!AB721=\"\",\"\",'1. Order'!AB721)","v":""},null,{"$f":"IF('1. Order'!AT721=\"\",\"\",'1. Order'!AT721)","v":""},{"$f":"IF('1. Order'!AU721=\"\",\"\",'1. Order'!AU721)","v":""},null,null,null,null,null,null,null,{"$f":"IF('1. Order'!AY721=\"\",\"\",'1. Order'!AY721)","v":""},{"$f":"IF('1. Order'!AZ721=\"\",\"\",'1. Order'!AZ721)","v":""},{"$f":"IF('1. Order'!BA721=\"\",\"\",'1. Order'!BA721)","v":""},{"$f":"IF('1. Order'!BB721=\"\",\"\",'1. Order'!BB721)","v":""},{"$f":"IF('1. Order'!BD721=\"\",\"\",'1. Order'!BD721)","v":""},{"$f":"IF('1. Order'!BE721=\"\",\"\",'1. Order'!BE721)","v":""},{"$f":"IF('1. Order'!BF721=\"\",\"\",'1. Order'!BF721)","v":""},{"$f":"IF('1. Order'!BG721=\"\",\"\",'1. Order'!BG721)","v":""},{"$f":"IF('1. Order'!BH721=\"\",\"\",'1. Order'!BH721)","v":"ZWO"}]
[{"$f":"IF('1. Order'!F722=\"\",\"\",'1. Order'!F722)","v":{"$error":"#N/A"}},{"$f":"IF('1. Order'!G722=\"\",\"\",'1. Order'!G722)","v":""},{"$f":"IF('1. Order'!H722=\"\",\"\",'1. Order'!H722)","v":""},{"$f":"IF('1. Order'!I722=\"\",\"\",'1. Order'!I722)","v":""},{"$f":"IF('1. Order'!J722=\"\",\"\",'1. Order'!J722)","v":""},{"$f":"IF('1. Order'!K722=\"\",\"\",'1. Order'!K722)","v":""},{"$f":"IF('1. Order'!L722=\"\",\"\",'1. Order'!L722)","v":""},{"$f":"IF('1. Order'!M722=\"\",\"\",'1. Order'!M722)","v":""},{"$f":"IF('1. Order'!N722=\"\",\"\",'1. Order'!N722)","v":""},{"$f":"IF('1. Order'!O722=\"\",\"\",'1. Order'!O722)","v":{"$error":"#N/A"}},{"$f":"IF('1. Order'!P722=\"\",\"\",'1. Order'!P722)","v":{"$error":"#N/A"}},{"$f":"IF('1. Order'!Q722=\"\",\"\",'1. Order'!Q722)","v":""},{"$f":"IF('1. Order'!S722=\"\",\"\",'1. Order'!S722)","v":""},{"$f":"IF('1. Order'!T722=\"\",\"\",'1. Order'!T722)","v":""},{"$f":"IF('1. Order'!W722=\"\",\"\",'1. Order'!W722)","v":""},{"$f":"IF('1. Order'!X722=\"\",\"\",'1. Order'!X722)","v":""},{"$f":"IF('1. Order'!Y722=\"\",\"\",'1. Order'!Y722)","v":"EUR"},{"$f":"IF('1. Order'!Z722=\"\",\"\",'1. Order'!Z722)","v":""},{"$f":"IF('1. Order'!AA722=\"\",\"\",'1. Order'!AA722)","v":""},{"$f":"IF('1. Order'!AB722=\"\",\"\",'1. Order'!AB722)","v":""},null,{"$f":"IF('1. Order'!AT722=\"\",\"\",'1. Order'!AT722)","v":""},{"$f":"IF('1. Order'!AU722=\"\",\"\",'1. Order'!AU722)","v":""},null,null,null,null,null,null,null,{"$f":"IF('1. Order'!AY722=\"\",\"\",'1. Order'!AY722)","v":""},{"$f":"IF('1. Order'!AZ722=\"\",\"\",'1. Order'!AZ722)","v":""},{"$f":"IF('1. Order'!BA722=\"\",\"\",'1. Order'!BA722)","v":""},{"$f":"IF('1. Order'!BB722=\"\",\"\",'1. Order'!BB722)","v":""},{"$f":"IF('1. Order'!BD722=\"\",\"\",'1. Order'!BD722)","v":""},{"$f":"IF('1. Order'!BE722=\"\",\"\",'1. Order'!BE722)","v":""},{"$f":"IF('1. Order'!BF722=\"\",\"\",'1. Order'!BF722)","v":""},{"$f":"IF('1. Order'!BG722=\"\",\"\",'1. Order'!BG722)","v":""},{"$f":"IF('1. Order'!BH722=\"\",\"\",'1. Order'!BH722)","v":"ZWO"}]
[{"$f":"IF('1. Order'!F723=\"\",\"\",'1. Order'!F723)","v":{"$error":"#N/A"}},{"$f":"IF('1. Order'!G723=\"\",\"\",'1. Order'!G723)","v":""},{"$f":"IF('1. Order'!H723=\"\",\"\",'1. Order'!H723)","v":""},{"$f":"IF('1. Order'!I723=\"\",\"\",'1. Order'!I723)","v":""},{"$f":"IF('1. Order'!J723=\"\",\"\",'1. Order'!J723)","v":""},{"$f":"IF('1. Order'!K723=\"\",\"\",'1. Order'!K723)","v":""},{"$f":"IF('1. Order'!L723=\"\",\"\",'1. Order'!L723)","v":""},{"$f":"IF('1. Order'!M723=\"\",\"\",'1. Order'!M723)","v":""},{"$f":"IF('1. Order'!N723=\"\",\"\",'1. Order'!N723)","v":""},{"$f":"IF('1. Order'!O723=\"\",\"\",'1. Order'!O723)","v":{"$error":"#N/A"}},{"$f":"IF('1. Order'!P723=\"\",\"\",'1. Order'!P723)","v":{"$error":"#N/A"}},{"$f":"IF('1. Order'!Q723=\"\",\"\",'1. Order'!Q723)","v":""},{"$f":"IF('1. Order'!S723=\"\",\"\",'1. Order'!S723)","v":""},{"$f":"IF('1. Order'!T723=\"\",\"\",'1. Order'!T723)","v":""},{"$f":"IF('1. Order'!W723=\"\",\"\",'1. Order'!W723)","v":""},{"$f":"IF('1. Order'!X723=\"\",\"\",'1. Order'!X723)","v":""},{"$f":"IF('1. Order'!Y723=\"\",\"\",'1. Order'!Y723)","v":"EUR"},{"$f":"IF('1. Order'!Z723=\"\",\"\",'1. Order'!Z723)","v":""},{"$f":"IF('1. Order'!AA723=\"\",\"\",'1. Order'!AA723)","v":""},{"$f":"IF('1. Order'!AB723=\"\",\"\",'1. Order'!AB723)","v":""},null,{"$f":"IF('1. Order'!AT723=\"\",\"\",'1. Order'!AT723)","v":""},{"$f":"IF('1. Order'!AU723=\"\",\"\",'1. Order'!AU723)","v":""},null,null,null,null,null,null,null,{"$f":"IF('1. Order'!AY723=\"\",\"\",'1. Order'!AY723)","v":""},{"$f":"IF('1. Order'!AZ723=\"\",\"\",'1. Order'!AZ723)","v":""},{"$f":"IF('1. Order'!BA723=\"\",\"\",'1. Order'!BA723)","v":""},{"$f":"IF('1. Order'!BB723=\"\",\"\",'1. Order'!BB723)","v":""},{"$f":"IF('1. Order'!BD723=\"\",\"\",'1. Order'!BD723)","v":""},{"$f":"IF('1. Order'!BE723=\"\",\"\",'1. Order'!BE723)","v":""},{"$f":"IF('1. Order'!BF723=\"\",\"\",'1. Order'!BF723)","v":""},{"$f":"IF('1. Order'!BG723=\"\",\"\",'1. Order'!BG723)","v":""},{"$f":"IF('1. Order'!BH723=\"\",\"\",'1. Order'!BH723)","v":"ZWO"}]
[{"$f":"IF('1. Order'!F724=\"\",\"\",'1. Order'!F724)","v":{"$error":"#N/A"}},{"$f":"IF('1. Order'!G724=\"\",\"\",'1. Order'!G724)","v":""},{"$f":"IF('1. Order'!H724=\"\",\"\",'1. Order'!H724)","v":""},{"$f":"IF('1. Order'!I724=\"\",\"\",'1. Order'!I724)","v":""},{"$f":"IF('1. Order'!J724=\"\",\"\",'1. Order'!J724)","v":""},{"$f":"IF('1. Order'!K724=\"\",\"\",'1. Order'!K724)","v":""},{"$f":"IF('1. Order'!L724=\"\",\"\",'1. Order'!L724)","v":""},{"$f":"IF('1. Order'!M724=\"\",\"\",'1. Order'!M724)","v":""},{"$f":"IF('1. Order'!N724=\"\",\"\",'1. Order'!N724)","v":""},{"$f":"IF('1. Order'!O724=\"\",\"\",'1. Order'!O724)","v":{"$error":"#N/A"}},{"$f":"IF('1. Order'!P724=\"\",\"\",'1. Order'!P724)","v":{"$error":"#N/A"}},{"$f":"IF('1. Order'!Q724=\"\",\"\",'1. Order'!Q724)","v":""},{"$f":"IF('1. Order'!S724=\"\",\"\",'1. Order'!S724)","v":""},{"$f":"IF('1. Order'!T724=\"\",\"\",'1. Order'!T724)","v":""},{"$f":"IF('1. Order'!W724=\"\",\"\",'1. Order'!W724)","v":""},{"$f":"IF('1. Order'!X724=\"\",\"\",'1. Order'!X724)","v":""},{"$f":"IF('1. Order'!Y724=\"\",\"\",'1. Order'!Y724)","v":"EUR"},{"$f":"IF('1. Order'!Z724=\"\",\"\",'1. Order'!Z724)","v":""},{"$f":"IF('1. Order'!AA724=\"\",\"\",'1. Order'!AA724)","v":""},{"$f":"IF('1. Order'!AB724=\"\",\"\",'1. Order'!AB724)","v":""},null,{"$f":"IF('1. Order'!AT724=\"\",\"\",'1. Order'!AT724)","v":""},{"$f":"IF('1. Order'!AU724=\"\",\"\",'1. Order'!AU724)","v":""},null,null,null,null,null,null,null,{"$f":"IF('1. Order'!AY724=\"\",\"\",'1. Order'!AY724)","v":""},{"$f":"IF('1. Order'!AZ724=\"\",\"\",'1. Order'!AZ724)","v":""},{"$f":"IF('1. Order'!BA724=\"\",\"\",'1. Order'!BA724)","v":""},{"$f":"IF('1. Order'!BB724=\"\",\"\",'1. Order'!BB724)","v":""},{"$f":"IF('1. Order'!BD724=\"\",\"\",'1. Order'!BD724)","v":""},{"$f":"IF('1. Order'!BE724=\"\",\"\",'1. Order'!BE724)","v":""},{"$f":"IF('1. Order'!BF724=\"\",\"\",'1. Order'!BF724)","v":""},{"$f":"IF('1. Order'!BG724=\"\",\"\",'1. Order'!BG724)","v":""},{"$f":"IF('1. Order'!BH724=\"\",\"\",'1. Order'!BH724)","v":"ZWO"}]
[{"$f":"IF('1. Order'!F725=\"\",\"\",'1. Order'!F725)","v":{"$error":"#N/A"}},{"$f":"IF('1. Order'!G725=\"\",\"\",'1. Order'!G725)","v":""},{"$f":"IF('1. Order'!H725=\"\",\"\",'1. Order'!H725)","v":""},{"$f":"IF('1. Order'!I725=\"\",\"\",'1. Order'!I725)","v":""},{"$f":"IF('1. Order'!J725=\"\",\"\",'1. Order'!J725)","v":""},{"$f":"IF('1. Order'!K725=\"\",\"\",'1. Order'!K725)","v":""},{"$f":"IF('1. Order'!L725=\"\",\"\",'1. Order'!L725)","v":""},{"$f":"IF('1. Order'!M725=\"\",\"\",'1. Order'!M725)","v":""},{"$f":"IF('1. Order'!N725=\"\",\"\",'1. Order'!N725)","v":""},{"$f":"IF('1. Order'!O725=\"\",\"\",'1. Order'!O725)","v":{"$error":"#N/A"}},{"$f":"IF('1. Order'!P725=\"\",\"\",'1. Order'!P725)","v":{"$error":"#N/A"}},{"$f":"IF('1. Order'!Q725=\"\",\"\",'1. Order'!Q725)","v":""},{"$f":"IF('1. Order'!S725=\"\",\"\",'1. Order'!S725)","v":""},{"$f":"IF('1. Order'!T725=\"\",\"\",'1. Order'!T725)","v":""},{"$f":"IF('1. Order'!W725=\"\",\"\",'1. Order'!W725)","v":""},{"$f":"IF('1. Order'!X725=\"\",\"\",'1. Order'!X725)","v":""},{"$f":"IF('1. Order'!Y725=\"\",\"\",'1. Order'!Y725)","v":"EUR"},{"$f":"IF('1. Order'!Z725=\"\",\"\",'1. Order'!Z725)","v":""},{"$f":"IF('1. Order'!AA725=\"\",\"\",'1. Order'!AA725)","v":""},{"$f":"IF('1. Order'!AB725=\"\",\"\",'1. Order'!AB725)","v":""},null,{"$f":"IF('1. Order'!AT725=\"\",\"\",'1. Order'!AT725)","v":""},{"$f":"IF('1. Order'!AU725=\"\",\"\",'1. Order'!AU725)","v":""},null,null,null,null,null,null,null,{"$f":"IF('1. Order'!AY725=\"\",\"\",'1. Order'!AY725)","v":""},{"$f":"IF('1. Order'!AZ725=\"\",\"\",'1. Order'!AZ725)","v":""},{"$f":"IF('1. Order'!BA725=\"\",\"\",'1. Order'!BA725)","v":""},{"$f":"IF('1. Order'!BB725=\"\",\"\",'1. Order'!BB725)","v":""},{"$f":"IF('1. Order'!BD725=\"\",\"\",'1. Order'!BD725)","v":""},{"$f":"IF('1. Order'!BE725=\"\",\"\",'1. Order'!BE725)","v":""},{"$f":"IF('1. Order'!BF725=\"\",\"\",'1. Order'!BF725)","v":""},{"$f":"IF('1. Order'!BG725=\"\",\"\",'1. Order'!BG725)","v":""},{"$f":"IF('1. Order'!BH725=\"\",\"\",'1. Order'!BH725)","v":"ZWO"}]
[{"$f":"IF('1. Order'!F726=\"\",\"\",'1. Order'!F726)","v":{"$error":"#N/A"}},{"$f":"IF('1. Order'!G726=\"\",\"\",'1. Order'!G726)","v":""},{"$f":"IF('1. Order'!H726=\"\",\"\",'1. Order'!H726)","v":""},{"$f":"IF('1. Order'!I726=\"\",\"\",'1. Order'!I726)","v":""},{"$f":"IF('1. Order'!J726=\"\",\"\",'1. Order'!J726)","v":""},{"$f":"IF('1. Order'!K726=\"\",\"\",'1. Order'!K726)","v":""},{"$f":"IF('1. Order'!L726=\"\",\"\",'1. Order'!L726)","v":""},{"$f":"IF('1. Order'!M726=\"\",\"\",'1. Order'!M726)","v":""},{"$f":"IF('1. Order'!N726=\"\",\"\",'1. Order'!N726)","v":""},{"$f":"IF('1. Order'!O726=\"\",\"\",'1. Order'!O726)","v":{"$error":"#N/A"}},{"$f":"IF('1. Order'!P726=\"\",\"\",'1. Order'!P726)","v":{"$error":"#N/A"}},{"$f":"IF('1. Order'!Q726=\"\",\"\",'1. Order'!Q726)","v":""},{"$f":"IF('1. Order'!S726=\"\",\"\",'1. Order'!S726)","v":""},{"$f":"IF('1. Order'!T726=\"\",\"\",'1. Order'!T726)","v":""},{"$f":"IF('1. Order'!W726=\"\",\"\",'1. Order'!W726)","v":""},{"$f":"IF('1. Order'!X726=\"\",\"\",'1. Order'!X726)","v":""},{"$f":"IF('1. Order'!Y726=\"\",\"\",'1. Order'!Y726)","v":"EUR"},{"$f":"IF('1. Order'!Z726=\"\",\"\",'1. Order'!Z726)","v":""},{"$f":"IF('1. Order'!AA726=\"\",\"\",'1. Order'!AA726)","v":""},{"$f":"IF('1. Order'!AB726=\"\",\"\",'1. Order'!AB726)","v":""},null,{"$f":"IF('1. Order'!AT726=\"\",\"\",'1. Order'!AT726)","v":""},{"$f":"IF('1. Order'!AU726=\"\",\"\",'1. Order'!AU726)","v":""},null,null,null,null,null,null,null,{"$f":"IF('1. Order'!AY726=\"\",\"\",'1. Order'!AY726)","v":""},{"$f":"IF('1. Order'!AZ726=\"\",\"\",'1. Order'!AZ726)","v":""},{"$f":"IF('1. Order'!BA726=\"\",\"\",'1. Order'!BA726)","v":""},{"$f":"IF('1. Order'!BB726=\"\",\"\",'1. Order'!BB726)","v":""},{"$f":"IF('1. Order'!BD726=\"\",\"\",'1. Order'!BD726)","v":""},{"$f":"IF('1. Order'!BE726=\"\",\"\",'1. Order'!BE726)","v":""},{"$f":"IF('1. Order'!BF726=\"\",\"\",'1. Order'!BF726)","v":""},{"$f":"IF('1. Order'!BG726=\"\",\"\",'1. Order'!BG726)","v":""},{"$f":"IF('1. Order'!BH726=\"\",\"\",'1. Order'!BH726)","v":"ZWO"}]
[{"$f":"IF('1. Order'!F727=\"\",\"\",'1. Order'!F727)","v":{"$error":"#N/A"}},{"$f":"IF('1. Order'!G727=\"\",\"\",'1. Order'!G727)","v":""},{"$f":"IF('1. Order'!H727=\"\",\"\",'1. Order'!H727)","v":""},{"$f":"IF('1. Order'!I727=\"\",\"\",'1. Order'!I727)","v":""},{"$f":"IF('1. Order'!J727=\"\",\"\",'1. Order'!J727)","v":""},{"$f":"IF('1. Order'!K727=\"\",\"\",'1. Order'!K727)","v":""},{"$f":"IF('1. Order'!L727=\"\",\"\",'1. Order'!L727)","v":""},{"$f":"IF('1. Order'!M727=\"\",\"\",'1. Order'!M727)","v":""},{"$f":"IF('1. Order'!N727=\"\",\"\",'1. Order'!N727)","v":""},{"$f":"IF('1. Order'!O727=\"\",\"\",'1. Order'!O727)","v":{"$error":"#N/A"}},{"$f":"IF('1. Order'!P727=\"\",\"\",'1. Order'!P727)","v":{"$error":"#N/A"}},{"$f":"IF('1. Order'!Q727=\"\",\"\",'1. Order'!Q727)","v":""},{"$f":"IF('1. Order'!S727=\"\",\"\",'1. Order'!S727)","v":""},{"$f":"IF('1. Order'!T727=\"\",\"\",'1. Order'!T727)","v":""},{"$f":"IF('1. Order'!W727=\"\",\"\",'1. Order'!W727)","v":""},{"$f":"IF('1. Order'!X727=\"\",\"\",'1. Order'!X727)","v":""},{"$f":"IF('1. Order'!Y727=\"\",\"\",'1. Order'!Y727)","v":"EUR"},{"$f":"IF('1. Order'!Z727=\"\",\"\",'1. Order'!Z727)","v":""},{"$f":"IF('1. Order'!AA727=\"\",\"\",'1. Order'!AA727)","v":""},{"$f":"IF('1. Order'!AB727=\"\",\"\",'1. Order'!AB727)","v":""},null,{"$f":"IF('1. Order'!AT727=\"\",\"\",'1. Order'!AT727)","v":""},{"$f":"IF('1. Order'!AU727=\"\",\"\",'1. Order'!AU727)","v":""},null,null,null,null,null,null,null,{"$f":"IF('1. Order'!AY727=\"\",\"\",'1. Order'!AY727)","v":""},{"$f":"IF('1. Order'!AZ727=\"\",\"\",'1. Order'!AZ727)","v":""},{"$f":"IF('1. Order'!BA727=\"\",\"\",'1. Order'!BA727)","v":""},{"$f":"IF('1. Order'!BB727=\"\",\"\",'1. Order'!BB727)","v":""},{"$f":"IF('1. Order'!BD727=\"\",\"\",'1. Order'!BD727)","v":""},{"$f":"IF('1. Order'!BE727=\"\",\"\",'1. Order'!BE727)","v":""},{"$f":"IF('1. Order'!BF727=\"\",\"\",'1. Order'!BF727)","v":""},{"$f":"IF('1. Order'!BG727=\"\",\"\",'1. Order'!BG727)","v":""},{"$f":"IF('1. Order'!BH727=\"\",\"\",'1. Order'!BH727)","v":"ZWO"}]
[{"$f":"IF('1. Order'!F728=\"\",\"\",'1. Order'!F728)","v":{"$error":"#N/A"}},{"$f":"IF('1. Order'!G728=\"\",\"\",'1. Order'!G728)","v":""},{"$f":"IF('1. Order'!H728=\"\",\"\",'1. Order'!H728)","v":""},{"$f":"IF('1. Order'!I728=\"\",\"\",'1. Order'!I728)","v":""},{"$f":"IF('1. Order'!J728=\"\",\"\",'1. Order'!J728)","v":""},{"$f":"IF('1. Order'!K728=\"\",\"\",'1. Order'!K728)","v":""},{"$f":"IF('1. Order'!L728=\"\",\"\",'1. Order'!L728)","v":""},{"$f":"IF('1. Order'!M728=\"\",\"\",'1. Order'!M728)","v":""},{"$f":"IF('1. Order'!N728=\"\",\"\",'1. Order'!N728)","v":""},{"$f":"IF('1. Order'!O728=\"\",\"\",'1. Order'!O728)","v":{"$error":"#N/A"}},{"$f":"IF('1. Order'!P728=\"\",\"\",'1. Order'!P728)","v":{"$error":"#N/A"}},{"$f":"IF('1. Order'!Q728=\"\",\"\",'1. Order'!Q728)","v":""},{"$f":"IF('1. Order'!S728=\"\",\"\",'1. Order'!S728)","v":""},{"$f":"IF('1. Order'!T728=\"\",\"\",'1. Order'!T728)","v":""},{"$f":"IF('1. Order'!W728=\"\",\"\",'1. Order'!W728)","v":""},{"$f":"IF('1. Order'!X728=\"\",\"\",'1. Order'!X728)","v":""},{"$f":"IF('1. Order'!Y728=\"\",\"\",'1. Order'!Y728)","v":"EUR"},{"$f":"IF('1. Order'!Z728=\"\",\"\",'1. Order'!Z728)","v":""},{"$f":"IF('1. Order'!AA728=\"\",\"\",'1. Order'!AA728)","v":""},{"$f":"IF('1. Order'!AB728=\"\",\"\",'1. Order'!AB728)","v":""},null,{"$f":"IF('1. Order'!AT728=\"\",\"\",'1. Order'!AT728)","v":""},{"$f":"IF('1. Order'!AU728=\"\",\"\",'1. Order'!AU728)","v":""},null,null,null,null,null,null,null,{"$f":"IF('1. Order'!AY728=\"\",\"\",'1. Order'!AY728)","v":""},{"$f":"IF('1. Order'!AZ728=\"\",\"\",'1. Order'!AZ728)","v":""},{"$f":"IF('1. Order'!BA728=\"\",\"\",'1. Order'!BA728)","v":""},{"$f":"IF('1. Order'!BB728=\"\",\"\",'1. Order'!BB728)","v":""},{"$f":"IF('1. Order'!BD728=\"\",\"\",'1. Order'!BD728)","v":""},{"$f":"IF('1. Order'!BE728=\"\",\"\",'1. Order'!BE728)","v":""},{"$f":"IF('1. Order'!BF728=\"\",\"\",'1. Order'!BF728)","v":""},{"$f":"IF('1. Order'!BG728=\"\",\"\",'1. Order'!BG728)","v":""},{"$f":"IF('1. Order'!BH728=\"\",\"\",'1. Order'!BH728)","v":"ZWO"}]
[{"$f":"IF('1. Order'!F729=\"\",\"\",'1. Order'!F729)","v":{"$error":"#N/A"}},{"$f":"IF('1. Order'!G729=\"\",\"\",'1. Order'!G729)","v":""},{"$f":"IF('1. Order'!H729=\"\",\"\",'1. Order'!H729)","v":""},{"$f":"IF('1. Order'!I729=\"\",\"\",'1. Order'!I729)","v":""},{"$f":"IF('1. Order'!J729=\"\",\"\",'1. Order'!J729)","v":""},{"$f":"IF('1. Order'!K729=\"\",\"\",'1. Order'!K729)","v":""},{"$f":"IF('1. Order'!L729=\"\",\"\",'1. Order'!L729)","v":""},{"$f":"IF('1. Order'!M729=\"\",\"\",'1. Order'!M729)","v":""},{"$f":"IF('1. Order'!N729=\"\",\"\",'1. Order'!N729)","v":""},{"$f":"IF('1. Order'!O729=\"\",\"\",'1. Order'!O729)","v":{"$error":"#N/A"}},{"$f":"IF('1. Order'!P729=\"\",\"\",'1. Order'!P729)","v":{"$error":"#N/A"}},{"$f":"IF('1. Order'!Q729=\"\",\"\",'1. Order'!Q729)","v":""},{"$f":"IF('1. Order'!S729=\"\",\"\",'1. Order'!S729)","v":""},{"$f":"IF('1. Order'!T729=\"\",\"\",'1. Order'!T729)","v":""},{"$f":"IF('1. Order'!W729=\"\",\"\",'1. Order'!W729)","v":""},{"$f":"IF('1. Order'!X729=\"\",\"\",'1. Order'!X729)","v":""},{"$f":"IF('1. Order'!Y729=\"\",\"\",'1. Order'!Y729)","v":"EUR"},{"$f":"IF('1. Order'!Z729=\"\",\"\",'1. Order'!Z729)","v":""},{"$f":"IF('1. Order'!AA729=\"\",\"\",'1. Order'!AA729)","v":""},{"$f":"IF('1. Order'!AB729=\"\",\"\",'1. Order'!AB729)","v":""},null,{"$f":"IF('1. Order'!AT729=\"\",\"\",'1. Order'!AT729)","v":""},{"$f":"IF('1. Order'!AU729=\"\",\"\",'1. Order'!AU729)","v":""},null,null,null,null,null,null,null,{"$f":"IF('1. Order'!AY729=\"\",\"\",'1. Order'!AY729)","v":""},{"$f":"IF('1. Order'!AZ729=\"\",\"\",'1. Order'!AZ729)","v":""},{"$f":"IF('1. Order'!BA729=\"\",\"\",'1. Order'!BA729)","v":""},{"$f":"IF('1. Order'!BB729=\"\",\"\",'1. Order'!BB729)","v":""},{"$f":"IF('1. Order'!BD729=\"\",\"\",'1. Order'!BD729)","v":""},{"$f":"IF('1. Order'!BE729=\"\",\"\",'1. Order'!BE729)","v":""},{"$f":"IF('1. Order'!BF729=\"\",\"\",'1. Order'!BF729)","v":""},{"$f":"IF('1. Order'!BG729=\"\",\"\",'1. Order'!BG729)","v":""},{"$f":"IF('1. Order'!BH729=\"\",\"\",'1. Order'!BH729)","v":"ZWO"}]
[{"$f":"IF('1. Order'!F730=\"\",\"\",'1. Order'!F730)","v":{"$error":"#N/A"}},{"$f":"IF('1. Order'!G730=\"\",\"\",'1. Order'!G730)","v":""},{"$f":"IF('1. Order'!H730=\"\",\"\",'1. Order'!H730)","v":""},{"$f":"IF('1. Order'!I730=\"\",\"\",'1. Order'!I730)","v":""},{"$f":"IF('1. Order'!J730=\"\",\"\",'1. Order'!J730)","v":""},{"$f":"IF('1. Order'!K730=\"\",\"\",'1. Order'!K730)","v":""},{"$f":"IF('1. Order'!L730=\"\",\"\",'1. Order'!L730)","v":""},{"$f":"IF('1. Order'!M730=\"\",\"\",'1. Order'!M730)","v":""},{"$f":"IF('1. Order'!N730=\"\",\"\",'1. Order'!N730)","v":""},{"$f":"IF('1. Order'!O730=\"\",\"\",'1. Order'!O730)","v":{"$error":"#N/A"}},{"$f":"IF('1. Order'!P730=\"\",\"\",'1. Order'!P730)","v":{"$error":"#N/A"}},{"$f":"IF('1. Order'!Q730=\"\",\"\",'1. Order'!Q730)","v":""},{"$f":"IF('1. Order'!S730=\"\",\"\",'1. Order'!S730)","v":""},{"$f":"IF('1. Order'!T730=\"\",\"\",'1. Order'!T730)","v":""},{"$f":"IF('1. Order'!W730=\"\",\"\",'1. Order'!W730)","v":""},{"$f":"IF('1. Order'!X730=\"\",\"\",'1. Order'!X730)","v":""},{"$f":"IF('1. Order'!Y730=\"\",\"\",'1. Order'!Y730)","v":"EUR"},{"$f":"IF('1. Order'!Z730=\"\",\"\",'1. Order'!Z730)","v":""},{"$f":"IF('1. Order'!AA730=\"\",\"\",'1. Order'!AA730)","v":""},{"$f":"IF('1. Order'!AB730=\"\",\"\",'1. Order'!AB730)","v":""},null,{"$f":"IF('1. Order'!AT730=\"\",\"\",'1. Order'!AT730)","v":""},{"$f":"IF('1. Order'!AU730=\"\",\"\",'1. Order'!AU730)","v":""},null,null,null,null,null,null,null,{"$f":"IF('1. Order'!AY730=\"\",\"\",'1. Order'!AY730)","v":""},{"$f":"IF('1. Order'!AZ730=\"\",\"\",'1. Order'!AZ730)","v":""},{"$f":"IF('1. Order'!BA730=\"\",\"\",'1. Order'!BA730)","v":""},{"$f":"IF('1. Order'!BB730=\"\",\"\",'1. Order'!BB730)","v":""},{"$f":"IF('1. Order'!BD730=\"\",\"\",'1. Order'!BD730)","v":""},{"$f":"IF('1. Order'!BE730=\"\",\"\",'1. Order'!BE730)","v":""},{"$f":"IF('1. Order'!BF730=\"\",\"\",'1. Order'!BF730)","v":""},{"$f":"IF('1. Order'!BG730=\"\",\"\",'1. Order'!BG730)","v":""},{"$f":"IF('1. Order'!BH730=\"\",\"\",'1. Order'!BH730)","v":"ZWO"}]
[{"$f":"IF('1. Order'!F731=\"\",\"\",'1. Order'!F731)","v":{"$error":"#N/A"}},{"$f":"IF('1. Order'!G731=\"\",\"\",'1. Order'!G731)","v":""},{"$f":"IF('1. Order'!H731=\"\",\"\",'1. Order'!H731)","v":""},{"$f":"IF('1. Order'!I731=\"\",\"\",'1. Order'!I731)","v":""},{"$f":"IF('1. Order'!J731=\"\",\"\",'1. Order'!J731)","v":""},{"$f":"IF('1. Order'!K731=\"\",\"\",'1. Order'!K731)","v":""},{"$f":"IF('1. Order'!L731=\"\",\"\",'1. Order'!L731)","v":""},{"$f":"IF('1. Order'!M731=\"\",\"\",'1. Order'!M731)","v":""},{"$f":"IF('1. Order'!N731=\"\",\"\",'1. Order'!N731)","v":""},{"$f":"IF('1. Order'!O731=\"\",\"\",'1. Order'!O731)","v":{"$error":"#N/A"}},{"$f":"IF('1. Order'!P731=\"\",\"\",'1. Order'!P731)","v":{"$error":"#N/A"}},{"$f":"IF('1. Order'!Q731=\"\",\"\",'1. Order'!Q731)","v":""},{"$f":"IF('1. Order'!S731=\"\",\"\",'1. Order'!S731)","v":""},{"$f":"IF('1. Order'!T731=\"\",\"\",'1. Order'!T731)","v":""},{"$f":"IF('1. Order'!W731=\"\",\"\",'1. Order'!W731)","v":""},{"$f":"IF('1. Order'!X731=\"\",\"\",'1. Order'!X731)","v":""},{"$f":"IF('1. Order'!Y731=\"\",\"\",'1. Order'!Y731)","v":"EUR"},{"$f":"IF('1. Order'!Z731=\"\",\"\",'1. Order'!Z731)","v":""},{"$f":"IF('1. Order'!AA731=\"\",\"\",'1. Order'!AA731)","v":""},{"$f":"IF('1. Order'!AB731=\"\",\"\",'1. Order'!AB731)","v":""},null,{"$f":"IF('1. Order'!AT731=\"\",\"\",'1. Order'!AT731)","v":""},{"$f":"IF('1. Order'!AU731=\"\",\"\",'1. Order'!AU731)","v":""},null,null,null,null,null,null,null,{"$f":"IF('1. Order'!AY731=\"\",\"\",'1. Order'!AY731)","v":""},{"$f":"IF('1. Order'!AZ731=\"\",\"\",'1. Order'!AZ731)","v":""},{"$f":"IF('1. Order'!BA731=\"\",\"\",'1. Order'!BA731)","v":""},{"$f":"IF('1. Order'!BB731=\"\",\"\",'1. Order'!BB731)","v":""},{"$f":"IF('1. Order'!BD731=\"\",\"\",'1. Order'!BD731)","v":""},{"$f":"IF('1. Order'!BE731=\"\",\"\",'1. Order'!BE731)","v":""},{"$f":"IF('1. Order'!BF731=\"\",\"\",'1. Order'!BF731)","v":""},{"$f":"IF('1. Order'!BG731=\"\",\"\",'1. Order'!BG731)","v":""},{"$f":"IF('1. Order'!BH731=\"\",\"\",'1. Order'!BH731)","v":"ZWO"}]
[{"$f":"IF('1. Order'!F732=\"\",\"\",'1. Order'!F732)","v":{"$error":"#N/A"}},{"$f":"IF('1. Order'!G732=\"\",\"\",'1. Order'!G732)","v":""},{"$f":"IF('1. Order'!H732=\"\",\"\",'1. Order'!H732)","v":""},{"$f":"IF('1. Order'!I732=\"\",\"\",'1. Order'!I732)","v":""},{"$f":"IF('1. Order'!J732=\"\",\"\",'1. Order'!J732)","v":""},{"$f":"IF('1. Order'!K732=\"\",\"\",'1. Order'!K732)","v":""},{"$f":"IF('1. Order'!L732=\"\",\"\",'1. Order'!L732)","v":""},{"$f":"IF('1. Order'!M732=\"\",\"\",'1. Order'!M732)","v":""},{"$f":"IF('1. Order'!N732=\"\",\"\",'1. Order'!N732)","v":""},{"$f":"IF('1. Order'!O732=\"\",\"\",'1. Order'!O732)","v":{"$error":"#N/A"}},{"$f":"IF('1. Order'!P732=\"\",\"\",'1. Order'!P732)","v":{"$error":"#N/A"}},{"$f":"IF('1. Order'!Q732=\"\",\"\",'1. Order'!Q732)","v":""},{"$f":"IF('1. Order'!S732=\"\",\"\",'1. Order'!S732)","v":""},{"$f":"IF('1. Order'!T732=\"\",\"\",'1. Order'!T732)","v":""},{"$f":"IF('1. Order'!W732=\"\",\"\",'1. Order'!W732)","v":""},{"$f":"IF('1. Order'!X732=\"\",\"\",'1. Order'!X732)","v":""},{"$f":"IF('1. Order'!Y732=\"\",\"\",'1. Order'!Y732)","v":"EUR"},{"$f":"IF('1. Order'!Z732=\"\",\"\",'1. Order'!Z732)","v":""},{"$f":"IF('1. Order'!AA732=\"\",\"\",'1. Order'!AA732)","v":""},{"$f":"IF('1. Order'!AB732=\"\",\"\",'1. Order'!AB732)","v":""},null,{"$f":"IF('1. Order'!AT732=\"\",\"\",'1. Order'!AT732)","v":""},{"$f":"IF('1. Order'!AU732=\"\",\"\",'1. Order'!AU732)","v":""},null,null,null,null,null,null,null,{"$f":"IF('1. Order'!AY732=\"\",\"\",'1. Order'!AY732)","v":""},{"$f":"IF('1. Order'!AZ732=\"\",\"\",'1. Order'!AZ732)","v":""},{"$f":"IF('1. Order'!BA732=\"\",\"\",'1. Order'!BA732)","v":""},{"$f":"IF('1. Order'!BB732=\"\",\"\",'1. Order'!BB732)","v":""},{"$f":"IF('1. Order'!BD732=\"\",\"\",'1. Order'!BD732)","v":""},{"$f":"IF('1. Order'!BE732=\"\",\"\",'1. Order'!BE732)","v":""},{"$f":"IF('1. Order'!BF732=\"\",\"\",'1. Order'!BF732)","v":""},{"$f":"IF('1. Order'!BG732=\"\",\"\",'1. Order'!BG732)","v":""},{"$f":"IF('1. Order'!BH732=\"\",\"\",'1. Order'!BH732)","v":"ZWO"}]
[{"$f":"IF('1. Order'!F733=\"\",\"\",'1. Order'!F733)","v":{"$error":"#N/A"}},{"$f":"IF('1. Order'!G733=\"\",\"\",'1. Order'!G733)","v":""},{"$f":"IF('1. Order'!H733=\"\",\"\",'1. Order'!H733)","v":""},{"$f":"IF('1. Order'!I733=\"\",\"\",'1. Order'!I733)","v":""},{"$f":"IF('1. Order'!J733=\"\",\"\",'1. Order'!J733)","v":""},{"$f":"IF('1. Order'!K733=\"\",\"\",'1. Order'!K733)","v":""},{"$f":"IF('1. Order'!L733=\"\",\"\",'1. Order'!L733)","v":""},{"$f":"IF('1. Order'!M733=\"\",\"\",'1. Order'!M733)","v":""},{"$f":"IF('1. Order'!N733=\"\",\"\",'1. Order'!N733)","v":""},{"$f":"IF('1. Order'!O733=\"\",\"\",'1. Order'!O733)","v":{"$error":"#N/A"}},{"$f":"IF('1. Order'!P733=\"\",\"\",'1. Order'!P733)","v":{"$error":"#N/A"}},{"$f":"IF('1. Order'!Q733=\"\",\"\",'1. Order'!Q733)","v":""},{"$f":"IF('1. Order'!S733=\"\",\"\",'1. Order'!S733)","v":""},{"$f":"IF('1. Order'!T733=\"\",\"\",'1. Order'!T733)","v":""},{"$f":"IF('1. Order'!W733=\"\",\"\",'1. Order'!W733)","v":""},{"$f":"IF('1. Order'!X733=\"\",\"\",'1. Order'!X733)","v":""},{"$f":"IF('1. Order'!Y733=\"\",\"\",'1. Order'!Y733)","v":"EUR"},{"$f":"IF('1. Order'!Z733=\"\",\"\",'1. Order'!Z733)","v":""},{"$f":"IF('1. Order'!AA733=\"\",\"\",'1. Order'!AA733)","v":""},{"$f":"IF('1. Order'!AB733=\"\",\"\",'1. Order'!AB733)","v":""},null,{"$f":"IF('1. Order'!AT733=\"\",\"\",'1. Order'!AT733)","v":""},{"$f":"IF('1. Order'!AU733=\"\",\"\",'1. Order'!AU733)","v":""},null,null,null,null,null,null,null,{"$f":"IF('1. Order'!AY733=\"\",\"\",'1. Order'!AY733)","v":""},{"$f":"IF('1. Order'!AZ733=\"\",\"\",'1. Order'!AZ733)","v":""},{"$f":"IF('1. Order'!BA733=\"\",\"\",'1. Order'!BA733)","v":""},{"$f":"IF('1. Order'!BB733=\"\",\"\",'1. Order'!BB733)","v":""},{"$f":"IF('1. Order'!BD733=\"\",\"\",'1. Order'!BD733)","v":""},{"$f":"IF('1. Order'!BE733=\"\",\"\",'1. Order'!BE733)","v":""},{"$f":"IF('1. Order'!BF733=\"\",\"\",'1. Order'!BF733)","v":""},{"$f":"IF('1. Order'!BG733=\"\",\"\",'1. Order'!BG733)","v":""},{"$f":"IF('1. Order'!BH733=\"\",\"\",'1. Order'!BH733)","v":"ZWO"}]
[{"$f":"IF('1. Order'!F734=\"\",\"\",'1. Order'!F734)","v":{"$error":"#N/A"}},{"$f":"IF('1. Order'!G734=\"\",\"\",'1. Order'!G734)","v":""},{"$f":"IF('1. Order'!H734=\"\",\"\",'1. Order'!H734)","v":""},{"$f":"IF('1. Order'!I734=\"\",\"\",'1. Order'!I734)","v":""},{"$f":"IF('1. Order'!J734=\"\",\"\",'1. Order'!J734)","v":""},{"$f":"IF('1. Order'!K734=\"\",\"\",'1. Order'!K734)","v":""},{"$f":"IF('1. Order'!L734=\"\",\"\",'1. Order'!L734)","v":""},{"$f":"IF('1. Order'!M734=\"\",\"\",'1. Order'!M734)","v":""},{"$f":"IF('1. Order'!N734=\"\",\"\",'1. Order'!N734)","v":""},{"$f":"IF('1. Order'!O734=\"\",\"\",'1. Order'!O734)","v":{"$error":"#N/A"}},{"$f":"IF('1. Order'!P734=\"\",\"\",'1. Order'!P734)","v":{"$error":"#N/A"}},{"$f":"IF('1. Order'!Q734=\"\",\"\",'1. Order'!Q734)","v":""},{"$f":"IF('1. Order'!S734=\"\",\"\",'1. Order'!S734)","v":""},{"$f":"IF('1. Order'!T734=\"\",\"\",'1. Order'!T734)","v":""},{"$f":"IF('1. Order'!W734=\"\",\"\",'1. Order'!W734)","v":""},{"$f":"IF('1. Order'!X734=\"\",\"\",'1. Order'!X734)","v":""},{"$f":"IF('1. Order'!Y734=\"\",\"\",'1. Order'!Y734)","v":"EUR"},{"$f":"IF('1. Order'!Z734=\"\",\"\",'1. Order'!Z734)","v":""},{"$f":"IF('1. Order'!AA734=\"\",\"\",'1. Order'!AA734)","v":""},{"$f":"IF('1. Order'!AB734=\"\",\"\",'1. Order'!AB734)","v":""},null,{"$f":"IF('1. Order'!AT734=\"\",\"\",'1. Order'!AT734)","v":""},{"$f":"IF('1. Order'!AU734=\"\",\"\",'1. Order'!AU734)","v":""},null,null,null,null,null,null,null,{"$f":"IF('1. Order'!AY734=\"\",\"\",'1. Order'!AY734)","v":""},{"$f":"IF('1. Order'!AZ734=\"\",\"\",'1. Order'!AZ734)","v":""},{"$f":"IF('1. Order'!BA734=\"\",\"\",'1. Order'!BA734)","v":""},{"$f":"IF('1. Order'!BB734=\"\",\"\",'1. Order'!BB734)","v":""},{"$f":"IF('1. Order'!BD734=\"\",\"\",'1. Order'!BD734)","v":""},{"$f":"IF('1. Order'!BE734=\"\",\"\",'1. Order'!BE734)","v":""},{"$f":"IF('1. Order'!BF734=\"\",\"\",'1. Order'!BF734)","v":""},{"$f":"IF('1. Order'!BG734=\"\",\"\",'1. Order'!BG734)","v":""},{"$f":"IF('1. Order'!BH734=\"\",\"\",'1. Order'!BH734)","v":"ZWO"}]
[{"$f":"IF('1. Order'!F735=\"\",\"\",'1. Order'!F735)","v":{"$error":"#N/A"}},{"$f":"IF('1. Order'!G735=\"\",\"\",'1. Order'!G735)","v":""},{"$f":"IF('1. Order'!H735=\"\",\"\",'1. Order'!H735)","v":""},{"$f":"IF('1. Order'!I735=\"\",\"\",'1. Order'!I735)","v":""},{"$f":"IF('1. Order'!J735=\"\",\"\",'1. Order'!J735)","v":""},{"$f":"IF('1. Order'!K735=\"\",\"\",'1. Order'!K735)","v":""},{"$f":"IF('1. Order'!L735=\"\",\"\",'1. Order'!L735)","v":""},{"$f":"IF('1. Order'!M735=\"\",\"\",'1. Order'!M735)","v":""},{"$f":"IF('1. Order'!N735=\"\",\"\",'1. Order'!N735)","v":""},{"$f":"IF('1. Order'!O735=\"\",\"\",'1. Order'!O735)","v":{"$error":"#N/A"}},{"$f":"IF('1. Order'!P735=\"\",\"\",'1. Order'!P735)","v":{"$error":"#N/A"}},{"$f":"IF('1. Order'!Q735=\"\",\"\",'1. Order'!Q735)","v":""},{"$f":"IF('1. Order'!S735=\"\",\"\",'1. Order'!S735)","v":""},{"$f":"IF('1. Order'!T735=\"\",\"\",'1. Order'!T735)","v":""},{"$f":"IF('1. Order'!W735=\"\",\"\",'1. Order'!W735)","v":""},{"$f":"IF('1. Order'!X735=\"\",\"\",'1. Order'!X735)","v":""},{"$f":"IF('1. Order'!Y735=\"\",\"\",'1. Order'!Y735)","v":"EUR"},{"$f":"IF('1. Order'!Z735=\"\",\"\",'1. Order'!Z735)","v":""},{"$f":"IF('1. Order'!AA735=\"\",\"\",'1. Order'!AA735)","v":""},{"$f":"IF('1. Order'!AB735=\"\",\"\",'1. Order'!AB735)","v":""},null,{"$f":"IF('1. Order'!AT735=\"\",\"\",'1. Order'!AT735)","v":""},{"$f":"IF('1. Order'!AU735=\"\",\"\",'1. Order'!AU735)","v":""},null,null,null,null,null,null,null,{"$f":"IF('1. Order'!AY735=\"\",\"\",'1. Order'!AY735)","v":""},{"$f":"IF('1. Order'!AZ735=\"\",\"\",'1. Order'!AZ735)","v":""},{"$f":"IF('1. Order'!BA735=\"\",\"\",'1. Order'!BA735)","v":""},{"$f":"IF('1. Order'!BB735=\"\",\"\",'1. Order'!BB735)","v":""},{"$f":"IF('1. Order'!BD735=\"\",\"\",'1. Order'!BD735)","v":""},{"$f":"IF('1. Order'!BE735=\"\",\"\",'1. Order'!BE735)","v":""},{"$f":"IF('1. Order'!BF735=\"\",\"\",'1. Order'!BF735)","v":""},{"$f":"IF('1. Order'!BG735=\"\",\"\",'1. Order'!BG735)","v":""},{"$f":"IF('1. Order'!BH735=\"\",\"\",'1. Order'!BH735)","v":"ZWO"}]
[{"$f":"IF('1. Order'!F736=\"\",\"\",'1. Order'!F736)","v":{"$error":"#N/A"}},{"$f":"IF('1. Order'!G736=\"\",\"\",'1. Order'!G736)","v":""},{"$f":"IF('1. Order'!H736=\"\",\"\",'1. Order'!H736)","v":""},{"$f":"IF('1. Order'!I736=\"\",\"\",'1. Order'!I736)","v":""},{"$f":"IF('1. Order'!J736=\"\",\"\",'1. Order'!J736)","v":""},{"$f":"IF('1. Order'!K736=\"\",\"\",'1. Order'!K736)","v":""},{"$f":"IF('1. Order'!L736=\"\",\"\",'1. Order'!L736)","v":""},{"$f":"IF('1. Order'!M736=\"\",\"\",'1. Order'!M736)","v":""},{"$f":"IF('1. Order'!N736=\"\",\"\",'1. Order'!N736)","v":""},{"$f":"IF('1. Order'!O736=\"\",\"\",'1. Order'!O736)","v":{"$error":"#N/A"}},{"$f":"IF('1. Order'!P736=\"\",\"\",'1. Order'!P736)","v":{"$error":"#N/A"}},{"$f":"IF('1. Order'!Q736=\"\",\"\",'1. Order'!Q736)","v":""},{"$f":"IF('1. Order'!S736=\"\",\"\",'1. Order'!S736)","v":""},{"$f":"IF('1. Order'!T736=\"\",\"\",'1. Order'!T736)","v":""},{"$f":"IF('1. Order'!W736=\"\",\"\",'1. Order'!W736)","v":""},{"$f":"IF('1. Order'!X736=\"\",\"\",'1. Order'!X736)","v":""},{"$f":"IF('1. Order'!Y736=\"\",\"\",'1. Order'!Y736)","v":"EUR"},{"$f":"IF('1. Order'!Z736=\"\",\"\",'1. Order'!Z736)","v":""},{"$f":"IF('1. Order'!AA736=\"\",\"\",'1. Order'!AA736)","v":""},{"$f":"IF('1. Order'!AB736=\"\",\"\",'1. Order'!AB736)","v":""},null,{"$f":"IF('1. Order'!AT736=\"\",\"\",'1. Order'!AT736)","v":""},{"$f":"IF('1. Order'!AU736=\"\",\"\",'1. Order'!AU736)","v":""},null,null,null,null,null,null,null,{"$f":"IF('1. Order'!AY736=\"\",\"\",'1. Order'!AY736)","v":""},{"$f":"IF('1. Order'!AZ736=\"\",\"\",'1. Order'!AZ736)","v":""},{"$f":"IF('1. Order'!BA736=\"\",\"\",'1. Order'!BA736)","v":""},{"$f":"IF('1. Order'!BB736=\"\",\"\",'1. Order'!BB736)","v":""},{"$f":"IF('1. Order'!BD736=\"\",\"\",'1. Order'!BD736)","v":""},{"$f":"IF('1. Order'!BE736=\"\",\"\",'1. Order'!BE736)","v":""},{"$f":"IF('1. Order'!BF736=\"\",\"\",'1. Order'!BF736)","v":""},{"$f":"IF('1. Order'!BG736=\"\",\"\",'1. Order'!BG736)","v":""},{"$f":"IF('1. Order'!BH736=\"\",\"\",'1. Order'!BH736)","v":"ZWO"}]
[{"$f":"IF('1. Order'!F737=\"\",\"\",'1. Order'!F737)","v":{"$error":"#N/A"}},{"$f":"IF('1. Order'!G737=\"\",\"\",'1. Order'!G737)","v":""},{"$f":"IF('1. Order'!H737=\"\",\"\",'1. Order'!H737)","v":""},{"$f":"IF('1. Order'!I737=\"\",\"\",'1. Order'!I737)","v":""},{"$f":"IF('1. Order'!J737=\"\",\"\",'1. Order'!J737)","v":""},{"$f":"IF('1. Order'!K737=\"\",\"\",'1. Order'!K737)","v":""},{"$f":"IF('1. Order'!L737=\"\",\"\",'1. Order'!L737)","v":""},{"$f":"IF('1. Order'!M737=\"\",\"\",'1. Order'!M737)","v":""},{"$f":"IF('1. Order'!N737=\"\",\"\",'1. Order'!N737)","v":""},{"$f":"IF('1. Order'!O737=\"\",\"\",'1. Order'!O737)","v":{"$error":"#N/A"}},{"$f":"IF('1. Order'!P737=\"\",\"\",'1. Order'!P737)","v":{"$error":"#N/A"}},{"$f":"IF('1. Order'!Q737=\"\",\"\",'1. Order'!Q737)","v":""},{"$f":"IF('1. Order'!S737=\"\",\"\",'1. Order'!S737)","v":""},{"$f":"IF('1. Order'!T737=\"\",\"\",'1. Order'!T737)","v":""},{"$f":"IF('1. Order'!W737=\"\",\"\",'1. Order'!W737)","v":""},{"$f":"IF('1. Order'!X737=\"\",\"\",'1. Order'!X737)","v":""},{"$f":"IF('1. Order'!Y737=\"\",\"\",'1. Order'!Y737)","v":"EUR"},{"$f":"IF('1. Order'!Z737=\"\",\"\",'1. Order'!Z737)","v":""},{"$f":"IF('1. Order'!AA737=\"\",\"\",'1. Order'!AA737)","v":""},{"$f":"IF('1. Order'!AB737=\"\",\"\",'1. Order'!AB737)","v":""},null,{"$f":"IF('1. Order'!AT737=\"\",\"\",'1. Order'!AT737)","v":""},{"$f":"IF('1. Order'!AU737=\"\",\"\",'1. Order'!AU737)","v":""},null,null,null,null,null,null,null,{"$f":"IF('1. Order'!AY737=\"\",\"\",'1. Order'!AY737)","v":""},{"$f":"IF('1. Order'!AZ737=\"\",\"\",'1. Order'!AZ737)","v":""},{"$f":"IF('1. Order'!BA737=\"\",\"\",'1. Order'!BA737)","v":""},{"$f":"IF('1. Order'!BB737=\"\",\"\",'1. Order'!BB737)","v":""},{"$f":"IF('1. Order'!BD737=\"\",\"\",'1. Order'!BD737)","v":""},{"$f":"IF('1. Order'!BE737=\"\",\"\",'1. Order'!BE737)","v":""},{"$f":"IF('1. Order'!BF737=\"\",\"\",'1. Order'!BF737)","v":""},{"$f":"IF('1. Order'!BG737=\"\",\"\",'1. Order'!BG737)","v":""},{"$f":"IF('1. Order'!BH737=\"\",\"\",'1. Order'!BH737)","v":"ZWO"}]
[{"$f":"IF('1. Order'!F738=\"\",\"\",'1. Order'!F738)","v":{"$error":"#N/A"}},{"$f":"IF('1. Order'!G738=\"\",\"\",'1. Order'!G738)","v":""},{"$f":"IF('1. Order'!H738=\"\",\"\",'1. Order'!H738)","v":""},{"$f":"IF('1. Order'!I738=\"\",\"\",'1. Order'!I738)","v":""},{"$f":"IF('1. Order'!J738=\"\",\"\",'1. Order'!J738)","v":""},{"$f":"IF('1. Order'!K738=\"\",\"\",'1. Order'!K738)","v":""},{"$f":"IF('1. Order'!L738=\"\",\"\",'1. Order'!L738)","v":""},{"$f":"IF('1. Order'!M738=\"\",\"\",'1. Order'!M738)","v":""},{"$f":"IF('1. Order'!N738=\"\",\"\",'1. Order'!N738)","v":""},{"$f":"IF('1. Order'!O738=\"\",\"\",'1. Order'!O738)","v":{"$error":"#N/A"}},{"$f":"IF('1. Order'!P738=\"\",\"\",'1. Order'!P738)","v":{"$error":"#N/A"}},{"$f":"IF('1. Order'!Q738=\"\",\"\",'1. Order'!Q738)","v":""},{"$f":"IF('1. Order'!S738=\"\",\"\",'1. Order'!S738)","v":""},{"$f":"IF('1. Order'!T738=\"\",\"\",'1. Order'!T738)","v":""},{"$f":"IF('1. Order'!W738=\"\",\"\",'1. Order'!W738)","v":""},{"$f":"IF('1. Order'!X738=\"\",\"\",'1. Order'!X738)","v":""},{"$f":"IF('1. Order'!Y738=\"\",\"\",'1. Order'!Y738)","v":"EUR"},{"$f":"IF('1. Order'!Z738=\"\",\"\",'1. Order'!Z738)","v":""},{"$f":"IF('1. Order'!AA738=\"\",\"\",'1. Order'!AA738)","v":""},{"$f":"IF('1. Order'!AB738=\"\",\"\",'1. Order'!AB738)","v":""},null,{"$f":"IF('1. Order'!AT738=\"\",\"\",'1. Order'!AT738)","v":""},{"$f":"IF('1. Order'!AU738=\"\",\"\",'1. Order'!AU738)","v":""},null,null,null,null,null,null,null,{"$f":"IF('1. Order'!AY738=\"\",\"\",'1. Order'!AY738)","v":""},{"$f":"IF('1. Order'!AZ738=\"\",\"\",'1. Order'!AZ738)","v":""},{"$f":"IF('1. Order'!BA738=\"\",\"\",'1. Order'!BA738)","v":""},{"$f":"IF('1. Order'!BB738=\"\",\"\",'1. Order'!BB738)","v":""},{"$f":"IF('1. Order'!BD738=\"\",\"\",'1. Order'!BD738)","v":""},{"$f":"IF('1. Order'!BE738=\"\",\"\",'1. Order'!BE738)","v":""},{"$f":"IF('1. Order'!BF738=\"\",\"\",'1. Order'!BF738)","v":""},{"$f":"IF('1. Order'!BG738=\"\",\"\",'1. Order'!BG738)","v":""},{"$f":"IF('1. Order'!BH738=\"\",\"\",'1. Order'!BH738)","v":"ZWO"}]
[{"$f":"IF('1. Order'!F739=\"\",\"\",'1. Order'!F739)","v":{"$error":"#N/A"}},{"$f":"IF('1. Order'!G739=\"\",\"\",'1. Order'!G739)","v":""},{"$f":"IF('1. Order'!H739=\"\",\"\",'1. Order'!H739)","v":""},{"$f":"IF('1. Order'!I739=\"\",\"\",'1. Order'!I739)","v":""},{"$f":"IF('1. Order'!J739=\"\",\"\",'1. Order'!J739)","v":""},{"$f":"IF('1. Order'!K739=\"\",\"\",'1. Order'!K739)","v":""},{"$f":"IF('1. Order'!L739=\"\",\"\",'1. Order'!L739)","v":""},{"$f":"IF('1. Order'!M739=\"\",\"\",'1. Order'!M739)","v":""},{"$f":"IF('1. Order'!N739=\"\",\"\",'1. Order'!N739)","v":""},{"$f":"IF('1. Order'!O739=\"\",\"\",'1. Order'!O739)","v":{"$error":"#N/A"}},{"$f":"IF('1. Order'!P739=\"\",\"\",'1. Order'!P739)","v":{"$error":"#N/A"}},{"$f":"IF('1. Order'!Q739=\"\",\"\",'1. Order'!Q739)","v":""},{"$f":"IF('1. Order'!S739=\"\",\"\",'1. Order'!S739)","v":""},{"$f":"IF('1. Order'!T739=\"\",\"\",'1. Order'!T739)","v":""},{"$f":"IF('1. Order'!W739=\"\",\"\",'1. Order'!W739)","v":""},{"$f":"IF('1. Order'!X739=\"\",\"\",'1. Order'!X739)","v":""},{"$f":"IF('1. Order'!Y739=\"\",\"\",'1. Order'!Y739)","v":"EUR"},{"$f":"IF('1. Order'!Z739=\"\",\"\",'1. Order'!Z739)","v":""},{"$f":"IF('1. Order'!AA739=\"\",\"\",'1. Order'!AA739)","v":""},{"$f":"IF('1. Order'!AB739=\"\",\"\",'1. Order'!AB739)","v":""},null,{"$f":"IF('1. Order'!AT739=\"\",\"\",'1. Order'!AT739)","v":""},{"$f":"IF('1. Order'!AU739=\"\",\"\",'1. Order'!AU739)","v":""},null,null,null,null,null,null,null,{"$f":"IF('1. Order'!AY739=\"\",\"\",'1. Order'!AY739)","v":""},{"$f":"IF('1. Order'!AZ739=\"\",\"\",'1. Order'!AZ739)","v":""},{"$f":"IF('1. Order'!BA739=\"\",\"\",'1. Order'!BA739)","v":""},{"$f":"IF('1. Order'!BB739=\"\",\"\",'1. Order'!BB739)","v":""},{"$f":"IF('1. Order'!BD739=\"\",\"\",'1. Order'!BD739)","v":""},{"$f":"IF('1. Order'!BE739=\"\",\"\",'1. Order'!BE739)","v":""},{"$f":"IF('1. Order'!BF739=\"\",\"\",'1. Order'!BF739)","v":""},{"$f":"IF('1. Order'!BG739=\"\",\"\",'1. Order'!BG739)","v":""},{"$f":"IF('1. Order'!BH739=\"\",\"\",'1. Order'!BH739)","v":"ZWO"}]
[{"$f":"IF('1. Order'!F740=\"\",\"\",'1. Order'!F740)","v":{"$error":"#N/A"}},{"$f":"IF('1. Order'!G740=\"\",\"\",'1. Order'!G740)","v":""},{"$f":"IF('1. Order'!H740=\"\",\"\",'1. Order'!H740)","v":""},{"$f":"IF('1. Order'!I740=\"\",\"\",'1. Order'!I740)","v":""},{"$f":"IF('1. Order'!J740=\"\",\"\",'1. Order'!J740)","v":""},{"$f":"IF('1. Order'!K740=\"\",\"\",'1. Order'!K740)","v":""},{"$f":"IF('1. Order'!L740=\"\",\"\",'1. Order'!L740)","v":""},{"$f":"IF('1. Order'!M740=\"\",\"\",'1. Order'!M740)","v":""},{"$f":"IF('1. Order'!N740=\"\",\"\",'1. Order'!N740)","v":""},{"$f":"IF('1. Order'!O740=\"\",\"\",'1. Order'!O740)","v":{"$error":"#N/A"}},{"$f":"IF('1. Order'!P740=\"\",\"\",'1. Order'!P740)","v":{"$error":"#N/A"}},{"$f":"IF('1. Order'!Q740=\"\",\"\",'1. Order'!Q740)","v":""},{"$f":"IF('1. Order'!S740=\"\",\"\",'1. Order'!S740)","v":""},{"$f":"IF('1. Order'!T740=\"\",\"\",'1. Order'!T740)","v":""},{"$f":"IF('1. Order'!W740=\"\",\"\",'1. Order'!W740)","v":""},{"$f":"IF('1. Order'!X740=\"\",\"\",'1. Order'!X740)","v":""},{"$f":"IF('1. Order'!Y740=\"\",\"\",'1. Order'!Y740)","v":"EUR"},{"$f":"IF('1. Order'!Z740=\"\",\"\",'1. Order'!Z740)","v":""},{"$f":"IF('1. Order'!AA740=\"\",\"\",'1. Order'!AA740)","v":""},{"$f":"IF('1. Order'!AB740=\"\",\"\",'1. Order'!AB740)","v":""},null,{"$f":"IF('1. Order'!AT740=\"\",\"\",'1. Order'!AT740)","v":""},{"$f":"IF('1. Order'!AU740=\"\",\"\",'1. Order'!AU740)","v":""},null,null,null,null,null,null,null,{"$f":"IF('1. Order'!AY740=\"\",\"\",'1. Order'!AY740)","v":""},{"$f":"IF('1. Order'!AZ740=\"\",\"\",'1. Order'!AZ740)","v":""},{"$f":"IF('1. Order'!BA740=\"\",\"\",'1. Order'!BA740)","v":""},{"$f":"IF('1. Order'!BB740=\"\",\"\",'1. Order'!BB740)","v":""},{"$f":"IF('1. Order'!BD740=\"\",\"\",'1. Order'!BD740)","v":""},{"$f":"IF('1. Order'!BE740=\"\",\"\",'1. Order'!BE740)","v":""},{"$f":"IF('1. Order'!BF740=\"\",\"\",'1. Order'!BF740)","v":""},{"$f":"IF('1. Order'!BG740=\"\",\"\",'1. Order'!BG740)","v":""},{"$f":"IF('1. Order'!BH740=\"\",\"\",'1. Order'!BH740)","v":"ZWO"}]
[{"$f":"IF('1. Order'!F741=\"\",\"\",'1. Order'!F741)","v":{"$error":"#N/A"}},{"$f":"IF('1. Order'!G741=\"\",\"\",'1. Order'!G741)","v":""},{"$f":"IF('1. Order'!H741=\"\",\"\",'1. Order'!H741)","v":""},{"$f":"IF('1. Order'!I741=\"\",\"\",'1. Order'!I741)","v":""},{"$f":"IF('1. Order'!J741=\"\",\"\",'1. Order'!J741)","v":""},{"$f":"IF('1. Order'!K741=\"\",\"\",'1. Order'!K741)","v":""},{"$f":"IF('1. Order'!L741=\"\",\"\",'1. Order'!L741)","v":""},{"$f":"IF('1. Order'!M741=\"\",\"\",'1. Order'!M741)","v":""},{"$f":"IF('1. Order'!N741=\"\",\"\",'1. Order'!N741)","v":""},{"$f":"IF('1. Order'!O741=\"\",\"\",'1. Order'!O741)","v":{"$error":"#N/A"}},{"$f":"IF('1. Order'!P741=\"\",\"\",'1. Order'!P741)","v":{"$error":"#N/A"}},{"$f":"IF('1. Order'!Q741=\"\",\"\",'1. Order'!Q741)","v":""},{"$f":"IF('1. Order'!S741=\"\",\"\",'1. Order'!S741)","v":""},{"$f":"IF('1. Order'!T741=\"\",\"\",'1. Order'!T741)","v":""},{"$f":"IF('1. Order'!W741=\"\",\"\",'1. Order'!W741)","v":""},{"$f":"IF('1. Order'!X741=\"\",\"\",'1. Order'!X741)","v":""},{"$f":"IF('1. Order'!Y741=\"\",\"\",'1. Order'!Y741)","v":"EUR"},{"$f":"IF('1. Order'!Z741=\"\",\"\",'1. Order'!Z741)","v":""},{"$f":"IF('1. Order'!AA741=\"\",\"\",'1. Order'!AA741)","v":""},{"$f":"IF('1. Order'!AB741=\"\",\"\",'1. Order'!AB741)","v":""},null,{"$f":"IF('1. Order'!AT741=\"\",\"\",'1. Order'!AT741)","v":""},{"$f":"IF('1. Order'!AU741=\"\",\"\",'1. Order'!AU741)","v":""},null,null,null,null,null,null,null,{"$f":"IF('1. Order'!AY741=\"\",\"\",'1. Order'!AY741)","v":""},{"$f":"IF('1. Order'!AZ741=\"\",\"\",'1. Order'!AZ741)","v":""},{"$f":"IF('1. Order'!BA741=\"\",\"\",'1. Order'!BA741)","v":""},{"$f":"IF('1. Order'!BB741=\"\",\"\",'1. Order'!BB741)","v":""},{"$f":"IF('1. Order'!BD741=\"\",\"\",'1. Order'!BD741)","v":""},{"$f":"IF('1. Order'!BE741=\"\",\"\",'1. Order'!BE741)","v":""},{"$f":"IF('1. Order'!BF741=\"\",\"\",'1. Order'!BF741)","v":""},{"$f":"IF('1. Order'!BG741=\"\",\"\",'1. Order'!BG741)","v":""},{"$f":"IF('1. Order'!BH741=\"\",\"\",'1. Order'!BH741)","v":"ZWO"}]
[{"$f":"IF('1. Order'!F742=\"\",\"\",'1. Order'!F742)","v":{"$error":"#N/A"}},{"$f":"IF('1. Order'!G742=\"\",\"\",'1. Order'!G742)","v":""},{"$f":"IF('1. Order'!H742=\"\",\"\",'1. Order'!H742)","v":""},{"$f":"IF('1. Order'!I742=\"\",\"\",'1. Order'!I742)","v":""},{"$f":"IF('1. Order'!J742=\"\",\"\",'1. Order'!J742)","v":""},{"$f":"IF('1. Order'!K742=\"\",\"\",'1. Order'!K742)","v":""},{"$f":"IF('1. Order'!L742=\"\",\"\",'1. Order'!L742)","v":""},{"$f":"IF('1. Order'!M742=\"\",\"\",'1. Order'!M742)","v":""},{"$f":"IF('1. Order'!N742=\"\",\"\",'1. Order'!N742)","v":""},{"$f":"IF('1. Order'!O742=\"\",\"\",'1. Order'!O742)","v":{"$error":"#N/A"}},{"$f":"IF('1. Order'!P742=\"\",\"\",'1. Order'!P742)","v":{"$error":"#N/A"}},{"$f":"IF('1. Order'!Q742=\"\",\"\",'1. Order'!Q742)","v":""},{"$f":"IF('1. Order'!S742=\"\",\"\",'1. Order'!S742)","v":""},{"$f":"IF('1. Order'!T742=\"\",\"\",'1. Order'!T742)","v":""},{"$f":"IF('1. Order'!W742=\"\",\"\",'1. Order'!W742)","v":""},{"$f":"IF('1. Order'!X742=\"\",\"\",'1. Order'!X742)","v":""},{"$f":"IF('1. Order'!Y742=\"\",\"\",'1. Order'!Y742)","v":"EUR"},{"$f":"IF('1. Order'!Z742=\"\",\"\",'1. Order'!Z742)","v":""},{"$f":"IF('1. Order'!AA742=\"\",\"\",'1. Order'!AA742)","v":""},{"$f":"IF('1. Order'!AB742=\"\",\"\",'1. Order'!AB742)","v":""},null,{"$f":"IF('1. Order'!AT742=\"\",\"\",'1. Order'!AT742)","v":""},{"$f":"IF('1. Order'!AU742=\"\",\"\",'1. Order'!AU742)","v":""},null,null,null,null,null,null,null,{"$f":"IF('1. Order'!AY742=\"\",\"\",'1. Order'!AY742)","v":""},{"$f":"IF('1. Order'!AZ742=\"\",\"\",'1. Order'!AZ742)","v":""},{"$f":"IF('1. Order'!BA742=\"\",\"\",'1. Order'!BA742)","v":""},{"$f":"IF('1. Order'!BB742=\"\",\"\",'1. Order'!BB742)","v":""},{"$f":"IF('1. Order'!BD742=\"\",\"\",'1. Order'!BD742)","v":""},{"$f":"IF('1. Order'!BE742=\"\",\"\",'1. Order'!BE742)","v":""},{"$f":"IF('1. Order'!BF742=\"\",\"\",'1. Order'!BF742)","v":""},{"$f":"IF('1. Order'!BG742=\"\",\"\",'1. Order'!BG742)","v":""},{"$f":"IF('1. Order'!BH742=\"\",\"\",'1. Order'!BH742)","v":"ZWO"}]
[{"$f":"IF('1. Order'!F743=\"\",\"\",'1. Order'!F743)","v":{"$error":"#N/A"}},{"$f":"IF('1. Order'!G743=\"\",\"\",'1. Order'!G743)","v":""},{"$f":"IF('1. Order'!H743=\"\",\"\",'1. Order'!H743)","v":""},{"$f":"IF('1. Order'!I743=\"\",\"\",'1. Order'!I743)","v":""},{"$f":"IF('1. Order'!J743=\"\",\"\",'1. Order'!J743)","v":""},{"$f":"IF('1. Order'!K743=\"\",\"\",'1. Order'!K743)","v":""},{"$f":"IF('1. Order'!L743=\"\",\"\",'1. Order'!L743)","v":""},{"$f":"IF('1. Order'!M743=\"\",\"\",'1. Order'!M743)","v":""},{"$f":"IF('1. Order'!N743=\"\",\"\",'1. Order'!N743)","v":""},{"$f":"IF('1. Order'!O743=\"\",\"\",'1. Order'!O743)","v":{"$error":"#N/A"}},{"$f":"IF('1. Order'!P743=\"\",\"\",'1. Order'!P743)","v":{"$error":"#N/A"}},{"$f":"IF('1. Order'!Q743=\"\",\"\",'1. Order'!Q743)","v":""},{"$f":"IF('1. Order'!S743=\"\",\"\",'1. Order'!S743)","v":""},{"$f":"IF('1. Order'!T743=\"\",\"\",'1. Order'!T743)","v":""},{"$f":"IF('1. Order'!W743=\"\",\"\",'1. Order'!W743)","v":""},{"$f":"IF('1. Order'!X743=\"\",\"\",'1. Order'!X743)","v":""},{"$f":"IF('1. Order'!Y743=\"\",\"\",'1. Order'!Y743)","v":"EUR"},{"$f":"IF('1. Order'!Z743=\"\",\"\",'1. Order'!Z743)","v":""},{"$f":"IF('1. Order'!AA743=\"\",\"\",'1. Order'!AA743)","v":""},{"$f":"IF('1. Order'!AB743=\"\",\"\",'1. Order'!AB743)","v":""},null,{"$f":"IF('1. Order'!AT743=\"\",\"\",'1. Order'!AT743)","v":""},{"$f":"IF('1. Order'!AU743=\"\",\"\",'1. Order'!AU743)","v":""},null,null,null,null,null,null,null,{"$f":"IF('1. Order'!AY743=\"\",\"\",'1. Order'!AY743)","v":""},{"$f":"IF('1. Order'!AZ743=\"\",\"\",'1. Order'!AZ743)","v":""},{"$f":"IF('1. Order'!BA743=\"\",\"\",'1. Order'!BA743)","v":""},{"$f":"IF('1. Order'!BB743=\"\",\"\",'1. Order'!BB743)","v":""},{"$f":"IF('1. Order'!BD743=\"\",\"\",'1. Order'!BD743)","v":""},{"$f":"IF('1. Order'!BE743=\"\",\"\",'1. Order'!BE743)","v":""},{"$f":"IF('1. Order'!BF743=\"\",\"\",'1. Order'!BF743)","v":""},{"$f":"IF('1. Order'!BG743=\"\",\"\",'1. Order'!BG743)","v":""},{"$f":"IF('1. Order'!BH743=\"\",\"\",'1. Order'!BH743)","v":"ZWO"}]
[{"$f":"IF('1. Order'!F744=\"\",\"\",'1. Order'!F744)","v":{"$error":"#N/A"}},{"$f":"IF('1. Order'!G744=\"\",\"\",'1. Order'!G744)","v":""},{"$f":"IF('1. Order'!H744=\"\",\"\",'1. Order'!H744)","v":""},{"$f":"IF('1. Order'!I744=\"\",\"\",'1. Order'!I744)","v":""},{"$f":"IF('1. Order'!J744=\"\",\"\",'1. Order'!J744)","v":""},{"$f":"IF('1. Order'!K744=\"\",\"\",'1. Order'!K744)","v":""},{"$f":"IF('1. Order'!L744=\"\",\"\",'1. Order'!L744)","v":""},{"$f":"IF('1. Order'!M744=\"\",\"\",'1. Order'!M744)","v":""},{"$f":"IF('1. Order'!N744=\"\",\"\",'1. Order'!N744)","v":""},{"$f":"IF('1. Order'!O744=\"\",\"\",'1. Order'!O744)","v":{"$error":"#N/A"}},{"$f":"IF('1. Order'!P744=\"\",\"\",'1. Order'!P744)","v":{"$error":"#N/A"}},{"$f":"IF('1. Order'!Q744=\"\",\"\",'1. Order'!Q744)","v":""},{"$f":"IF('1. Order'!S744=\"\",\"\",'1. Order'!S744)","v":""},{"$f":"IF('1. Order'!T744=\"\",\"\",'1. Order'!T744)","v":""},{"$f":"IF('1. Order'!W744=\"\",\"\",'1. Order'!W744)","v":""},{"$f":"IF('1. Order'!X744=\"\",\"\",'1. Order'!X744)","v":""},{"$f":"IF('1. Order'!Y744=\"\",\"\",'1. Order'!Y744)","v":"EUR"},{"$f":"IF('1. Order'!Z744=\"\",\"\",'1. Order'!Z744)","v":""},{"$f":"IF('1. Order'!AA744=\"\",\"\",'1. Order'!AA744)","v":""},{"$f":"IF('1. Order'!AB744=\"\",\"\",'1. Order'!AB744)","v":""},null,{"$f":"IF('1. Order'!AT744=\"\",\"\",'1. Order'!AT744)","v":""},{"$f":"IF('1. Order'!AU744=\"\",\"\",'1. Order'!AU744)","v":""},null,null,null,null,null,null,null,{"$f":"IF('1. Order'!AY744=\"\",\"\",'1. Order'!AY744)","v":""},{"$f":"IF('1. Order'!AZ744=\"\",\"\",'1. Order'!AZ744)","v":""},{"$f":"IF('1. Order'!BA744=\"\",\"\",'1. Order'!BA744)","v":""},{"$f":"IF('1. Order'!BB744=\"\",\"\",'1. Order'!BB744)","v":""},{"$f":"IF('1. Order'!BD744=\"\",\"\",'1. Order'!BD744)","v":""},{"$f":"IF('1. Order'!BE744=\"\",\"\",'1. Order'!BE744)","v":""},{"$f":"IF('1. Order'!BF744=\"\",\"\",'1. Order'!BF744)","v":""},{"$f":"IF('1. Order'!BG744=\"\",\"\",'1. Order'!BG744)","v":""},{"$f":"IF('1. Order'!BH744=\"\",\"\",'1. Order'!BH744)","v":"ZWO"}]
[{"$f":"IF('1. Order'!F745=\"\",\"\",'1. Order'!F745)","v":{"$error":"#N/A"}},{"$f":"IF('1. Order'!G745=\"\",\"\",'1. Order'!G745)","v":""},{"$f":"IF('1. Order'!H745=\"\",\"\",'1. Order'!H745)","v":""},{"$f":"IF('1. Order'!I745=\"\",\"\",'1. Order'!I745)","v":""},{"$f":"IF('1. Order'!J745=\"\",\"\",'1. Order'!J745)","v":""},{"$f":"IF('1. Order'!K745=\"\",\"\",'1. Order'!K745)","v":""},{"$f":"IF('1. Order'!L745=\"\",\"\",'1. Order'!L745)","v":""},{"$f":"IF('1. Order'!M745=\"\",\"\",'1. Order'!M745)","v":""},{"$f":"IF('1. Order'!N745=\"\",\"\",'1. Order'!N745)","v":""},{"$f":"IF('1. Order'!O745=\"\",\"\",'1. Order'!O745)","v":{"$error":"#N/A"}},{"$f":"IF('1. Order'!P745=\"\",\"\",'1. Order'!P745)","v":{"$error":"#N/A"}},{"$f":"IF('1. Order'!Q745=\"\",\"\",'1. Order'!Q745)","v":""},{"$f":"IF('1. Order'!S745=\"\",\"\",'1. Order'!S745)","v":""},{"$f":"IF('1. Order'!T745=\"\",\"\",'1. Order'!T745)","v":""},{"$f":"IF('1. Order'!W745=\"\",\"\",'1. Order'!W745)","v":""},{"$f":"IF('1. Order'!X745=\"\",\"\",'1. Order'!X745)","v":""},{"$f":"IF('1. Order'!Y745=\"\",\"\",'1. Order'!Y745)","v":"EUR"},{"$f":"IF('1. Order'!Z745=\"\",\"\",'1. Order'!Z745)","v":""},{"$f":"IF('1. Order'!AA745=\"\",\"\",'1. Order'!AA745)","v":""},{"$f":"IF('1. Order'!AB745=\"\",\"\",'1. Order'!AB745)","v":""},null,{"$f":"IF('1. Order'!AT745=\"\",\"\",'1. Order'!AT745)","v":""},{"$f":"IF('1. Order'!AU745=\"\",\"\",'1. Order'!AU745)","v":""},null,null,null,null,null,null,null,{"$f":"IF('1. Order'!AY745=\"\",\"\",'1. Order'!AY745)","v":""},{"$f":"IF('1. Order'!AZ745=\"\",\"\",'1. Order'!AZ745)","v":""},{"$f":"IF('1. Order'!BA745=\"\",\"\",'1. Order'!BA745)","v":""},{"$f":"IF('1. Order'!BB745=\"\",\"\",'1. Order'!BB745)","v":""},{"$f":"IF('1. Order'!BD745=\"\",\"\",'1. Order'!BD745)","v":""},{"$f":"IF('1. Order'!BE745=\"\",\"\",'1. Order'!BE745)","v":""},{"$f":"IF('1. Order'!BF745=\"\",\"\",'1. Order'!BF745)","v":""},{"$f":"IF('1. Order'!BG745=\"\",\"\",'1. Order'!BG745)","v":""},{"$f":"IF('1. Order'!BH745=\"\",\"\",'1. Order'!BH745)","v":"ZWO"}]
[{"$f":"IF('1. Order'!F746=\"\",\"\",'1. Order'!F746)","v":{"$error":"#N/A"}},{"$f":"IF('1. Order'!G746=\"\",\"\",'1. Order'!G746)","v":""},{"$f":"IF('1. Order'!H746=\"\",\"\",'1. Order'!H746)","v":""},{"$f":"IF('1. Order'!I746=\"\",\"\",'1. Order'!I746)","v":""},{"$f":"IF('1. Order'!J746=\"\",\"\",'1. Order'!J746)","v":""},{"$f":"IF('1. Order'!K746=\"\",\"\",'1. Order'!K746)","v":""},{"$f":"IF('1. Order'!L746=\"\",\"\",'1. Order'!L746)","v":""},{"$f":"IF('1. Order'!M746=\"\",\"\",'1. Order'!M746)","v":""},{"$f":"IF('1. Order'!N746=\"\",\"\",'1. Order'!N746)","v":""},{"$f":"IF('1. Order'!O746=\"\",\"\",'1. Order'!O746)","v":{"$error":"#N/A"}},{"$f":"IF('1. Order'!P746=\"\",\"\",'1. Order'!P746)","v":{"$error":"#N/A"}},{"$f":"IF('1. Order'!Q746=\"\",\"\",'1. Order'!Q746)","v":""},{"$f":"IF('1. Order'!S746=\"\",\"\",'1. Order'!S746)","v":""},{"$f":"IF('1. Order'!T746=\"\",\"\",'1. Order'!T746)","v":""},{"$f":"IF('1. Order'!W746=\"\",\"\",'1. Order'!W746)","v":""},{"$f":"IF('1. Order'!X746=\"\",\"\",'1. Order'!X746)","v":""},{"$f":"IF('1. Order'!Y746=\"\",\"\",'1. Order'!Y746)","v":"EUR"},{"$f":"IF('1. Order'!Z746=\"\",\"\",'1. Order'!Z746)","v":""},{"$f":"IF('1. Order'!AA746=\"\",\"\",'1. Order'!AA746)","v":""},{"$f":"IF('1. Order'!AB746=\"\",\"\",'1. Order'!AB746)","v":""},null,{"$f":"IF('1. Order'!AT746=\"\",\"\",'1. Order'!AT746)","v":""},{"$f":"IF('1. Order'!AU746=\"\",\"\",'1. Order'!AU746)","v":""},null,null,null,null,null,null,null,{"$f":"IF('1. Order'!AY746=\"\",\"\",'1. Order'!AY746)","v":""},{"$f":"IF('1. Order'!AZ746=\"\",\"\",'1. Order'!AZ746)","v":""},{"$f":"IF('1. Order'!BA746=\"\",\"\",'1. Order'!BA746)","v":""},{"$f":"IF('1. Order'!BB746=\"\",\"\",'1. Order'!BB746)","v":""},{"$f":"IF('1. Order'!BD746=\"\",\"\",'1. Order'!BD746)","v":""},{"$f":"IF('1. Order'!BE746=\"\",\"\",'1. Order'!BE746)","v":""},{"$f":"IF('1. Order'!BF746=\"\",\"\",'1. Order'!BF746)","v":""},{"$f":"IF('1. Order'!BG746=\"\",\"\",'1. Order'!BG746)","v":""},{"$f":"IF('1. Order'!BH746=\"\",\"\",'1. Order'!BH746)","v":"ZWO"}]
[{"$f":"IF('1. Order'!F747=\"\",\"\",'1. Order'!F747)","v":{"$error":"#N/A"}},{"$f":"IF('1. Order'!G747=\"\",\"\",'1. Order'!G747)","v":""},{"$f":"IF('1. Order'!H747=\"\",\"\",'1. Order'!H747)","v":""},{"$f":"IF('1. Order'!I747=\"\",\"\",'1. Order'!I747)","v":""},{"$f":"IF('1. Order'!J747=\"\",\"\",'1. Order'!J747)","v":""},{"$f":"IF('1. Order'!K747=\"\",\"\",'1. Order'!K747)","v":""},{"$f":"IF('1. Order'!L747=\"\",\"\",'1. Order'!L747)","v":""},{"$f":"IF('1. Order'!M747=\"\",\"\",'1. Order'!M747)","v":""},{"$f":"IF('1. Order'!N747=\"\",\"\",'1. Order'!N747)","v":""},{"$f":"IF('1. Order'!O747=\"\",\"\",'1. Order'!O747)","v":{"$error":"#N/A"}},{"$f":"IF('1. Order'!P747=\"\",\"\",'1. Order'!P747)","v":{"$error":"#N/A"}},{"$f":"IF('1. Order'!Q747=\"\",\"\",'1. Order'!Q747)","v":""},{"$f":"IF('1. Order'!S747=\"\",\"\",'1. Order'!S747)","v":""},{"$f":"IF('1. Order'!T747=\"\",\"\",'1. Order'!T747)","v":""},{"$f":"IF('1. Order'!W747=\"\",\"\",'1. Order'!W747)","v":""},{"$f":"IF('1. Order'!X747=\"\",\"\",'1. Order'!X747)","v":""},{"$f":"IF('1. Order'!Y747=\"\",\"\",'1. Order'!Y747)","v":"EUR"},{"$f":"IF('1. Order'!Z747=\"\",\"\",'1. Order'!Z747)","v":""},{"$f":"IF('1. Order'!AA747=\"\",\"\",'1. Order'!AA747)","v":""},{"$f":"IF('1. Order'!AB747=\"\",\"\",'1. Order'!AB747)","v":""},null,{"$f":"IF('1. Order'!AT747=\"\",\"\",'1. Order'!AT747)","v":""},{"$f":"IF('1. Order'!AU747=\"\",\"\",'1. Order'!AU747)","v":""},null,null,null,null,null,null,null,{"$f":"IF('1. Order'!AY747=\"\",\"\",'1. Order'!AY747)","v":""},{"$f":"IF('1. Order'!AZ747=\"\",\"\",'1. Order'!AZ747)","v":""},{"$f":"IF('1. Order'!BA747=\"\",\"\",'1. Order'!BA747)","v":""},{"$f":"IF('1. Order'!BB747=\"\",\"\",'1. Order'!BB747)","v":""},{"$f":"IF('1. Order'!BD747=\"\",\"\",'1. Order'!BD747)","v":""},{"$f":"IF('1. Order'!BE747=\"\",\"\",'1. Order'!BE747)","v":""},{"$f":"IF('1. Order'!BF747=\"\",\"\",'1. Order'!BF747)","v":""},{"$f":"IF('1. Order'!BG747=\"\",\"\",'1. Order'!BG747)","v":""},{"$f":"IF('1. Order'!BH747=\"\",\"\",'1. Order'!BH747)","v":"ZWO"}]
[{"$f":"IF('1. Order'!F748=\"\",\"\",'1. Order'!F748)","v":{"$error":"#N/A"}},{"$f":"IF('1. Order'!G748=\"\",\"\",'1. Order'!G748)","v":""},{"$f":"IF('1. Order'!H748=\"\",\"\",'1. Order'!H748)","v":""},{"$f":"IF('1. Order'!I748=\"\",\"\",'1. Order'!I748)","v":""},{"$f":"IF('1. Order'!J748=\"\",\"\",'1. Order'!J748)","v":""},{"$f":"IF('1. Order'!K748=\"\",\"\",'1. Order'!K748)","v":""},{"$f":"IF('1. Order'!L748=\"\",\"\",'1. Order'!L748)","v":""},{"$f":"IF('1. Order'!M748=\"\",\"\",'1. Order'!M748)","v":""},{"$f":"IF('1. Order'!N748=\"\",\"\",'1. Order'!N748)","v":""},{"$f":"IF('1. Order'!O748=\"\",\"\",'1. Order'!O748)","v":{"$error":"#N/A"}},{"$f":"IF('1. Order'!P748=\"\",\"\",'1. Order'!P748)","v":{"$error":"#N/A"}},{"$f":"IF('1. Order'!Q748=\"\",\"\",'1. Order'!Q748)","v":""},{"$f":"IF('1. Order'!S748=\"\",\"\",'1. Order'!S748)","v":""},{"$f":"IF('1. Order'!T748=\"\",\"\",'1. Order'!T748)","v":""},{"$f":"IF('1. Order'!W748=\"\",\"\",'1. Order'!W748)","v":""},{"$f":"IF('1. Order'!X748=\"\",\"\",'1. Order'!X748)","v":""},{"$f":"IF('1. Order'!Y748=\"\",\"\",'1. Order'!Y748)","v":"EUR"},{"$f":"IF('1. Order'!Z748=\"\",\"\",'1. Order'!Z748)","v":""},{"$f":"IF('1. Order'!AA748=\"\",\"\",'1. Order'!AA748)","v":""},{"$f":"IF('1. Order'!AB748=\"\",\"\",'1. Order'!AB748)","v":""},null,{"$f":"IF('1. Order'!AT748=\"\",\"\",'1. Order'!AT748)","v":""},{"$f":"IF('1. Order'!AU748=\"\",\"\",'1. Order'!AU748)","v":""},null,null,null,null,null,null,null,{"$f":"IF('1. Order'!AY748=\"\",\"\",'1. Order'!AY748)","v":""},{"$f":"IF('1. Order'!AZ748=\"\",\"\",'1. Order'!AZ748)","v":""},{"$f":"IF('1. Order'!BA748=\"\",\"\",'1. Order'!BA748)","v":""},{"$f":"IF('1. Order'!BB748=\"\",\"\",'1. Order'!BB748)","v":""},{"$f":"IF('1. Order'!BD748=\"\",\"\",'1. Order'!BD748)","v":""},{"$f":"IF('1. Order'!BE748=\"\",\"\",'1. Order'!BE748)","v":""},{"$f":"IF('1. Order'!BF748=\"\",\"\",'1. Order'!BF748)","v":""},{"$f":"IF('1. Order'!BG748=\"\",\"\",'1. Order'!BG748)","v":""},{"$f":"IF('1. Order'!BH748=\"\",\"\",'1. Order'!BH748)","v":"ZWO"}]
[{"$f":"IF('1. Order'!F749=\"\",\"\",'1. Order'!F749)","v":{"$error":"#N/A"}},{"$f":"IF('1. Order'!G749=\"\",\"\",'1. Order'!G749)","v":""},{"$f":"IF('1. Order'!H749=\"\",\"\",'1. Order'!H749)","v":""},{"$f":"IF('1. Order'!I749=\"\",\"\",'1. Order'!I749)","v":""},{"$f":"IF('1. Order'!J749=\"\",\"\",'1. Order'!J749)","v":""},{"$f":"IF('1. Order'!K749=\"\",\"\",'1. Order'!K749)","v":""},{"$f":"IF('1. Order'!L749=\"\",\"\",'1. Order'!L749)","v":""},{"$f":"IF('1. Order'!M749=\"\",\"\",'1. Order'!M749)","v":""},{"$f":"IF('1. Order'!N749=\"\",\"\",'1. Order'!N749)","v":""},{"$f":"IF('1. Order'!O749=\"\",\"\",'1. Order'!O749)","v":{"$error":"#N/A"}},{"$f":"IF('1. Order'!P749=\"\",\"\",'1. Order'!P749)","v":{"$error":"#N/A"}},{"$f":"IF('1. Order'!Q749=\"\",\"\",'1. Order'!Q749)","v":""},{"$f":"IF('1. Order'!S749=\"\",\"\",'1. Order'!S749)","v":""},{"$f":"IF('1. Order'!T749=\"\",\"\",'1. Order'!T749)","v":""},{"$f":"IF('1. Order'!W749=\"\",\"\",'1. Order'!W749)","v":""},{"$f":"IF('1. Order'!X749=\"\",\"\",'1. Order'!X749)","v":""},{"$f":"IF('1. Order'!Y749=\"\",\"\",'1. Order'!Y749)","v":"EUR"},{"$f":"IF('1. Order'!Z749=\"\",\"\",'1. Order'!Z749)","v":""},{"$f":"IF('1. Order'!AA749=\"\",\"\",'1. Order'!AA749)","v":""},{"$f":"IF('1. Order'!AB749=\"\",\"\",'1. Order'!AB749)","v":""},null,{"$f":"IF('1. Order'!AT749=\"\",\"\",'1. Order'!AT749)","v":""},{"$f":"IF('1. Order'!AU749=\"\",\"\",'1. Order'!AU749)","v":""},null,null,null,null,null,null,null,{"$f":"IF('1. Order'!AY749=\"\",\"\",'1. Order'!AY749)","v":""},{"$f":"IF('1. Order'!AZ749=\"\",\"\",'1. Order'!AZ749)","v":""},{"$f":"IF('1. Order'!BA749=\"\",\"\",'1. Order'!BA749)","v":""},{"$f":"IF('1. Order'!BB749=\"\",\"\",'1. Order'!BB749)","v":""},{"$f":"IF('1. Order'!BD749=\"\",\"\",'1. Order'!BD749)","v":""},{"$f":"IF('1. Order'!BE749=\"\",\"\",'1. Order'!BE749)","v":""},{"$f":"IF('1. Order'!BF749=\"\",\"\",'1. Order'!BF749)","v":""},{"$f":"IF('1. Order'!BG749=\"\",\"\",'1. Order'!BG749)","v":""},{"$f":"IF('1. Order'!BH749=\"\",\"\",'1. Order'!BH749)","v":"ZWO"}]
[{"$f":"IF('1. Order'!F750=\"\",\"\",'1. Order'!F750)","v":{"$error":"#N/A"}},{"$f":"IF('1. Order'!G750=\"\",\"\",'1. Order'!G750)","v":""},{"$f":"IF('1. Order'!H750=\"\",\"\",'1. Order'!H750)","v":""},{"$f":"IF('1. Order'!I750=\"\",\"\",'1. Order'!I750)","v":""},{"$f":"IF('1. Order'!J750=\"\",\"\",'1. Order'!J750)","v":""},{"$f":"IF('1. Order'!K750=\"\",\"\",'1. Order'!K750)","v":""},{"$f":"IF('1. Order'!L750=\"\",\"\",'1. Order'!L750)","v":""},{"$f":"IF('1. Order'!M750=\"\",\"\",'1. Order'!M750)","v":""},{"$f":"IF('1. Order'!N750=\"\",\"\",'1. Order'!N750)","v":""},{"$f":"IF('1. Order'!O750=\"\",\"\",'1. Order'!O750)","v":{"$error":"#N/A"}},{"$f":"IF('1. Order'!P750=\"\",\"\",'1. Order'!P750)","v":{"$error":"#N/A"}},{"$f":"IF('1. Order'!Q750=\"\",\"\",'1. Order'!Q750)","v":""},{"$f":"IF('1. Order'!S750=\"\",\"\",'1. Order'!S750)","v":""},{"$f":"IF('1. Order'!T750=\"\",\"\",'1. Order'!T750)","v":""},{"$f":"IF('1. Order'!W750=\"\",\"\",'1. Order'!W750)","v":""},{"$f":"IF('1. Order'!X750=\"\",\"\",'1. Order'!X750)","v":""},{"$f":"IF('1. Order'!Y750=\"\",\"\",'1. Order'!Y750)","v":"EUR"},{"$f":"IF('1. Order'!Z750=\"\",\"\",'1. Order'!Z750)","v":""},{"$f":"IF('1. Order'!AA750=\"\",\"\",'1. Order'!AA750)","v":""},{"$f":"IF('1. Order'!AB750=\"\",\"\",'1. Order'!AB750)","v":""},null,{"$f":"IF('1. Order'!AT750=\"\",\"\",'1. Order'!AT750)","v":""},{"$f":"IF('1. Order'!AU750=\"\",\"\",'1. Order'!AU750)","v":""},null,null,null,null,null,null,null,{"$f":"IF('1. Order'!AY750=\"\",\"\",'1. Order'!AY750)","v":""},{"$f":"IF('1. Order'!AZ750=\"\",\"\",'1. Order'!AZ750)","v":""},{"$f":"IF('1. Order'!BA750=\"\",\"\",'1. Order'!BA750)","v":""},{"$f":"IF('1. Order'!BB750=\"\",\"\",'1. Order'!BB750)","v":""},{"$f":"IF('1. Order'!BD750=\"\",\"\",'1. Order'!BD750)","v":""},{"$f":"IF('1. Order'!BE750=\"\",\"\",'1. Order'!BE750)","v":""},{"$f":"IF('1. Order'!BF750=\"\",\"\",'1. Order'!BF750)","v":""},{"$f":"IF('1. Order'!BG750=\"\",\"\",'1. Order'!BG750)","v":""},{"$f":"IF('1. Order'!BH750=\"\",\"\",'1. Order'!BH750)","v":"ZWO"}]
[{"$f":"IF('1. Order'!F751=\"\",\"\",'1. Order'!F751)","v":{"$error":"#N/A"}},{"$f":"IF('1. Order'!G751=\"\",\"\",'1. Order'!G751)","v":""},{"$f":"IF('1. Order'!H751=\"\",\"\",'1. Order'!H751)","v":""},{"$f":"IF('1. Order'!I751=\"\",\"\",'1. Order'!I751)","v":""},{"$f":"IF('1. Order'!J751=\"\",\"\",'1. Order'!J751)","v":""},{"$f":"IF('1. Order'!K751=\"\",\"\",'1. Order'!K751)","v":""},{"$f":"IF('1. Order'!L751=\"\",\"\",'1. Order'!L751)","v":""},{"$f":"IF('1. Order'!M751=\"\",\"\",'1. Order'!M751)","v":""},{"$f":"IF('1. Order'!N751=\"\",\"\",'1. Order'!N751)","v":""},{"$f":"IF('1. Order'!O751=\"\",\"\",'1. Order'!O751)","v":{"$error":"#N/A"}},{"$f":"IF('1. Order'!P751=\"\",\"\",'1. Order'!P751)","v":{"$error":"#N/A"}},{"$f":"IF('1. Order'!Q751=\"\",\"\",'1. Order'!Q751)","v":""},{"$f":"IF('1. Order'!S751=\"\",\"\",'1. Order'!S751)","v":""},{"$f":"IF('1. Order'!T751=\"\",\"\",'1. Order'!T751)","v":""},{"$f":"IF('1. Order'!W751=\"\",\"\",'1. Order'!W751)","v":""},{"$f":"IF('1. Order'!X751=\"\",\"\",'1. Order'!X751)","v":""},{"$f":"IF('1. Order'!Y751=\"\",\"\",'1. Order'!Y751)","v":"EUR"},{"$f":"IF('1. Order'!Z751=\"\",\"\",'1. Order'!Z751)","v":""},{"$f":"IF('1. Order'!AA751=\"\",\"\",'1. Order'!AA751)","v":""},{"$f":"IF('1. Order'!AB751=\"\",\"\",'1. Order'!AB751)","v":""},null,{"$f":"IF('1. Order'!AT751=\"\",\"\",'1. Order'!AT751)","v":""},{"$f":"IF('1. Order'!AU751=\"\",\"\",'1. Order'!AU751)","v":""},null,null,null,null,null,null,null,{"$f":"IF('1. Order'!AY751=\"\",\"\",'1. Order'!AY751)","v":""},{"$f":"IF('1. Order'!AZ751=\"\",\"\",'1. Order'!AZ751)","v":""},{"$f":"IF('1. Order'!BA751=\"\",\"\",'1. Order'!BA751)","v":""},{"$f":"IF('1. Order'!BB751=\"\",\"\",'1. Order'!BB751)","v":""},{"$f":"IF('1. Order'!BD751=\"\",\"\",'1. Order'!BD751)","v":""},{"$f":"IF('1. Order'!BE751=\"\",\"\",'1. Order'!BE751)","v":""},{"$f":"IF('1. Order'!BF751=\"\",\"\",'1. Order'!BF751)","v":""},{"$f":"IF('1. Order'!BG751=\"\",\"\",'1. Order'!BG751)","v":""},{"$f":"IF('1. Order'!BH751=\"\",\"\",'1. Order'!BH751)","v":"ZWO"}]
[{"$f":"IF('1. Order'!F752=\"\",\"\",'1. Order'!F752)","v":{"$error":"#N/A"}},{"$f":"IF('1. Order'!G752=\"\",\"\",'1. Order'!G752)","v":""},{"$f":"IF('1. Order'!H752=\"\",\"\",'1. Order'!H752)","v":""},{"$f":"IF('1. Order'!I752=\"\",\"\",'1. Order'!I752)","v":""},{"$f":"IF('1. Order'!J752=\"\",\"\",'1. Order'!J752)","v":""},{"$f":"IF('1. Order'!K752=\"\",\"\",'1. Order'!K752)","v":""},{"$f":"IF('1. Order'!L752=\"\",\"\",'1. Order'!L752)","v":""},{"$f":"IF('1. Order'!M752=\"\",\"\",'1. Order'!M752)","v":""},{"$f":"IF('1. Order'!N752=\"\",\"\",'1. Order'!N752)","v":""},{"$f":"IF('1. Order'!O752=\"\",\"\",'1. Order'!O752)","v":{"$error":"#N/A"}},{"$f":"IF('1. Order'!P752=\"\",\"\",'1. Order'!P752)","v":{"$error":"#N/A"}},{"$f":"IF('1. Order'!Q752=\"\",\"\",'1. Order'!Q752)","v":""},{"$f":"IF('1. Order'!S752=\"\",\"\",'1. Order'!S752)","v":""},{"$f":"IF('1. Order'!T752=\"\",\"\",'1. Order'!T752)","v":""},{"$f":"IF('1. Order'!W752=\"\",\"\",'1. Order'!W752)","v":""},{"$f":"IF('1. Order'!X752=\"\",\"\",'1. Order'!X752)","v":""},{"$f":"IF('1. Order'!Y752=\"\",\"\",'1. Order'!Y752)","v":"EUR"},{"$f":"IF('1. Order'!Z752=\"\",\"\",'1. Order'!Z752)","v":""},{"$f":"IF('1. Order'!AA752=\"\",\"\",'1. Order'!AA752)","v":""},{"$f":"IF('1. Order'!AB752=\"\",\"\",'1. Order'!AB752)","v":""},null,{"$f":"IF('1. Order'!AT752=\"\",\"\",'1. Order'!AT752)","v":""},{"$f":"IF('1. Order'!AU752=\"\",\"\",'1. Order'!AU752)","v":""},null,null,null,null,null,null,null,{"$f":"IF('1. Order'!AY752=\"\",\"\",'1. Order'!AY752)","v":""},{"$f":"IF('1. Order'!AZ752=\"\",\"\",'1. Order'!AZ752)","v":""},{"$f":"IF('1. Order'!BA752=\"\",\"\",'1. Order'!BA752)","v":""},{"$f":"IF('1. Order'!BB752=\"\",\"\",'1. Order'!BB752)","v":""},{"$f":"IF('1. Order'!BD752=\"\",\"\",'1. Order'!BD752)","v":""},{"$f":"IF('1. Order'!BE752=\"\",\"\",'1. Order'!BE752)","v":""},{"$f":"IF('1. Order'!BF752=\"\",\"\",'1. Order'!BF752)","v":""},{"$f":"IF('1. Order'!BG752=\"\",\"\",'1. Order'!BG752)","v":""},{"$f":"IF('1. Order'!BH752=\"\",\"\",'1. Order'!BH752)","v":"ZWO"}]
[{"$f":"IF('1. Order'!F753=\"\",\"\",'1. Order'!F753)","v":{"$error":"#N/A"}},{"$f":"IF('1. Order'!G753=\"\",\"\",'1. Order'!G753)","v":""},{"$f":"IF('1. Order'!H753=\"\",\"\",'1. Order'!H753)","v":""},{"$f":"IF('1. Order'!I753=\"\",\"\",'1. Order'!I753)","v":""},{"$f":"IF('1. Order'!J753=\"\",\"\",'1. Order'!J753)","v":""},{"$f":"IF('1. Order'!K753=\"\",\"\",'1. Order'!K753)","v":""},{"$f":"IF('1. Order'!L753=\"\",\"\",'1. Order'!L753)","v":""},{"$f":"IF('1. Order'!M753=\"\",\"\",'1. Order'!M753)","v":""},{"$f":"IF('1. Order'!N753=\"\",\"\",'1. Order'!N753)","v":""},{"$f":"IF('1. Order'!O753=\"\",\"\",'1. Order'!O753)","v":{"$error":"#N/A"}},{"$f":"IF('1. Order'!P753=\"\",\"\",'1. Order'!P753)","v":{"$error":"#N/A"}},{"$f":"IF('1. Order'!Q753=\"\",\"\",'1. Order'!Q753)","v":""},{"$f":"IF('1. Order'!S753=\"\",\"\",'1. Order'!S753)","v":""},{"$f":"IF('1. Order'!T753=\"\",\"\",'1. Order'!T753)","v":""},{"$f":"IF('1. Order'!W753=\"\",\"\",'1. Order'!W753)","v":""},{"$f":"IF('1. Order'!X753=\"\",\"\",'1. Order'!X753)","v":""},{"$f":"IF('1. Order'!Y753=\"\",\"\",'1. Order'!Y753)","v":"EUR"},{"$f":"IF('1. Order'!Z753=\"\",\"\",'1. Order'!Z753)","v":""},{"$f":"IF('1. Order'!AA753=\"\",\"\",'1. Order'!AA753)","v":""},{"$f":"IF('1. Order'!AB753=\"\",\"\",'1. Order'!AB753)","v":""},null,{"$f":"IF('1. Order'!AT753=\"\",\"\",'1. Order'!AT753)","v":""},{"$f":"IF('1. Order'!AU753=\"\",\"\",'1. Order'!AU753)","v":""},null,null,null,null,null,null,null,{"$f":"IF('1. Order'!AY753=\"\",\"\",'1. Order'!AY753)","v":""},{"$f":"IF('1. Order'!AZ753=\"\",\"\",'1. Order'!AZ753)","v":""},{"$f":"IF('1. Order'!BA753=\"\",\"\",'1. Order'!BA753)","v":""},{"$f":"IF('1. Order'!BB753=\"\",\"\",'1. Order'!BB753)","v":""},{"$f":"IF('1. Order'!BD753=\"\",\"\",'1. Order'!BD753)","v":""},{"$f":"IF('1. Order'!BE753=\"\",\"\",'1. Order'!BE753)","v":""},{"$f":"IF('1. Order'!BF753=\"\",\"\",'1. Order'!BF753)","v":""},{"$f":"IF('1. Order'!BG753=\"\",\"\",'1. Order'!BG753)","v":""},{"$f":"IF('1. Order'!BH753=\"\",\"\",'1. Order'!BH753)","v":"ZWO"}]
[{"$f":"IF('1. Order'!F754=\"\",\"\",'1. Order'!F754)","v":{"$error":"#N/A"}},{"$f":"IF('1. Order'!G754=\"\",\"\",'1. Order'!G754)","v":""},{"$f":"IF('1. Order'!H754=\"\",\"\",'1. Order'!H754)","v":""},{"$f":"IF('1. Order'!I754=\"\",\"\",'1. Order'!I754)","v":""},{"$f":"IF('1. Order'!J754=\"\",\"\",'1. Order'!J754)","v":""},{"$f":"IF('1. Order'!K754=\"\",\"\",'1. Order'!K754)","v":""},{"$f":"IF('1. Order'!L754=\"\",\"\",'1. Order'!L754)","v":""},{"$f":"IF('1. Order'!M754=\"\",\"\",'1. Order'!M754)","v":""},{"$f":"IF('1. Order'!N754=\"\",\"\",'1. Order'!N754)","v":""},{"$f":"IF('1. Order'!O754=\"\",\"\",'1. Order'!O754)","v":{"$error":"#N/A"}},{"$f":"IF('1. Order'!P754=\"\",\"\",'1. Order'!P754)","v":{"$error":"#N/A"}},{"$f":"IF('1. Order'!Q754=\"\",\"\",'1. Order'!Q754)","v":""},{"$f":"IF('1. Order'!S754=\"\",\"\",'1. Order'!S754)","v":""},{"$f":"IF('1. Order'!T754=\"\",\"\",'1. Order'!T754)","v":""},{"$f":"IF('1. Order'!W754=\"\",\"\",'1. Order'!W754)","v":""},{"$f":"IF('1. Order'!X754=\"\",\"\",'1. Order'!X754)","v":""},{"$f":"IF('1. Order'!Y754=\"\",\"\",'1. Order'!Y754)","v":"EUR"},{"$f":"IF('1. Order'!Z754=\"\",\"\",'1. Order'!Z754)","v":""},{"$f":"IF('1. Order'!AA754=\"\",\"\",'1. Order'!AA754)","v":""},{"$f":"IF('1. Order'!AB754=\"\",\"\",'1. Order'!AB754)","v":""},null,{"$f":"IF('1. Order'!AT754=\"\",\"\",'1. Order'!AT754)","v":""},{"$f":"IF('1. Order'!AU754=\"\",\"\",'1. Order'!AU754)","v":""},null,null,null,null,null,null,null,{"$f":"IF('1. Order'!AY754=\"\",\"\",'1. Order'!AY754)","v":""},{"$f":"IF('1. Order'!AZ754=\"\",\"\",'1. Order'!AZ754)","v":""},{"$f":"IF('1. Order'!BA754=\"\",\"\",'1. Order'!BA754)","v":""},{"$f":"IF('1. Order'!BB754=\"\",\"\",'1. Order'!BB754)","v":""},{"$f":"IF('1. Order'!BD754=\"\",\"\",'1. Order'!BD754)","v":""},{"$f":"IF('1. Order'!BE754=\"\",\"\",'1. Order'!BE754)","v":""},{"$f":"IF('1. Order'!BF754=\"\",\"\",'1. Order'!BF754)","v":""},{"$f":"IF('1. Order'!BG754=\"\",\"\",'1. Order'!BG754)","v":""},{"$f":"IF('1. Order'!BH754=\"\",\"\",'1. Order'!BH754)","v":"ZWO"}]
[{"$f":"IF('1. Order'!F755=\"\",\"\",'1. Order'!F755)","v":{"$error":"#N/A"}},{"$f":"IF('1. Order'!G755=\"\",\"\",'1. Order'!G755)","v":""},{"$f":"IF('1. Order'!H755=\"\",\"\",'1. Order'!H755)","v":""},{"$f":"IF('1. Order'!I755=\"\",\"\",'1. Order'!I755)","v":""},{"$f":"IF('1. Order'!J755=\"\",\"\",'1. Order'!J755)","v":""},{"$f":"IF('1. Order'!K755=\"\",\"\",'1. Order'!K755)","v":""},{"$f":"IF('1. Order'!L755=\"\",\"\",'1. Order'!L755)","v":""},{"$f":"IF('1. Order'!M755=\"\",\"\",'1. Order'!M755)","v":""},{"$f":"IF('1. Order'!N755=\"\",\"\",'1. Order'!N755)","v":""},{"$f":"IF('1. Order'!O755=\"\",\"\",'1. Order'!O755)","v":{"$error":"#N/A"}},{"$f":"IF('1. Order'!P755=\"\",\"\",'1. Order'!P755)","v":{"$error":"#N/A"}},{"$f":"IF('1. Order'!Q755=\"\",\"\",'1. Order'!Q755)","v":""},{"$f":"IF('1. Order'!S755=\"\",\"\",'1. Order'!S755)","v":""},{"$f":"IF('1. Order'!T755=\"\",\"\",'1. Order'!T755)","v":""},{"$f":"IF('1. Order'!W755=\"\",\"\",'1. Order'!W755)","v":""},{"$f":"IF('1. Order'!X755=\"\",\"\",'1. Order'!X755)","v":""},{"$f":"IF('1. Order'!Y755=\"\",\"\",'1. Order'!Y755)","v":"EUR"},{"$f":"IF('1. Order'!Z755=\"\",\"\",'1. Order'!Z755)","v":""},{"$f":"IF('1. Order'!AA755=\"\",\"\",'1. Order'!AA755)","v":""},{"$f":"IF('1. Order'!AB755=\"\",\"\",'1. Order'!AB755)","v":""},null,{"$f":"IF('1. Order'!AT755=\"\",\"\",'1. Order'!AT755)","v":""},{"$f":"IF('1. Order'!AU755=\"\",\"\",'1. Order'!AU755)","v":""},null,null,null,null,null,null,null,{"$f":"IF('1. Order'!AY755=\"\",\"\",'1. Order'!AY755)","v":""},{"$f":"IF('1. Order'!AZ755=\"\",\"\",'1. Order'!AZ755)","v":""},{"$f":"IF('1. Order'!BA755=\"\",\"\",'1. Order'!BA755)","v":""},{"$f":"IF('1. Order'!BB755=\"\",\"\",'1. Order'!BB755)","v":""},{"$f":"IF('1. Order'!BD755=\"\",\"\",'1. Order'!BD755)","v":""},{"$f":"IF('1. Order'!BE755=\"\",\"\",'1. Order'!BE755)","v":""},{"$f":"IF('1. Order'!BF755=\"\",\"\",'1. Order'!BF755)","v":""},{"$f":"IF('1. Order'!BG755=\"\",\"\",'1. Order'!BG755)","v":""},{"$f":"IF('1. Order'!BH755=\"\",\"\",'1. Order'!BH755)","v":"ZWO"}]
[{"$f":"IF('1. Order'!F756=\"\",\"\",'1. Order'!F756)","v":{"$error":"#N/A"}},{"$f":"IF('1. Order'!G756=\"\",\"\",'1. Order'!G756)","v":""},{"$f":"IF('1. Order'!H756=\"\",\"\",'1. Order'!H756)","v":""},{"$f":"IF('1. Order'!I756=\"\",\"\",'1. Order'!I756)","v":""},{"$f":"IF('1. Order'!J756=\"\",\"\",'1. Order'!J756)","v":""},{"$f":"IF('1. Order'!K756=\"\",\"\",'1. Order'!K756)","v":""},{"$f":"IF('1. Order'!L756=\"\",\"\",'1. Order'!L756)","v":""},{"$f":"IF('1. Order'!M756=\"\",\"\",'1. Order'!M756)","v":""},{"$f":"IF('1. Order'!N756=\"\",\"\",'1. Order'!N756)","v":""},{"$f":"IF('1. Order'!O756=\"\",\"\",'1. Order'!O756)","v":{"$error":"#N/A"}},{"$f":"IF('1. Order'!P756=\"\",\"\",'1. Order'!P756)","v":{"$error":"#N/A"}},{"$f":"IF('1. Order'!Q756=\"\",\"\",'1. Order'!Q756)","v":""},{"$f":"IF('1. Order'!S756=\"\",\"\",'1. Order'!S756)","v":""},{"$f":"IF('1. Order'!T756=\"\",\"\",'1. Order'!T756)","v":""},{"$f":"IF('1. Order'!W756=\"\",\"\",'1. Order'!W756)","v":""},{"$f":"IF('1. Order'!X756=\"\",\"\",'1. Order'!X756)","v":""},{"$f":"IF('1. Order'!Y756=\"\",\"\",'1. Order'!Y756)","v":"EUR"},{"$f":"IF('1. Order'!Z756=\"\",\"\",'1. Order'!Z756)","v":""},{"$f":"IF('1. Order'!AA756=\"\",\"\",'1. Order'!AA756)","v":""},{"$f":"IF('1. Order'!AB756=\"\",\"\",'1. Order'!AB756)","v":""},null,{"$f":"IF('1. Order'!AT756=\"\",\"\",'1. Order'!AT756)","v":""},{"$f":"IF('1. Order'!AU756=\"\",\"\",'1. Order'!AU756)","v":""},null,null,null,null,null,null,null,{"$f":"IF('1. Order'!AY756=\"\",\"\",'1. Order'!AY756)","v":""},{"$f":"IF('1. Order'!AZ756=\"\",\"\",'1. Order'!AZ756)","v":""},{"$f":"IF('1. Order'!BA756=\"\",\"\",'1. Order'!BA756)","v":""},{"$f":"IF('1. Order'!BB756=\"\",\"\",'1. Order'!BB756)","v":""},{"$f":"IF('1. Order'!BD756=\"\",\"\",'1. Order'!BD756)","v":""},{"$f":"IF('1. Order'!BE756=\"\",\"\",'1. Order'!BE756)","v":""},{"$f":"IF('1. Order'!BF756=\"\",\"\",'1. Order'!BF756)","v":""},{"$f":"IF('1. Order'!BG756=\"\",\"\",'1. Order'!BG756)","v":""},{"$f":"IF('1. Order'!BH756=\"\",\"\",'1. Order'!BH756)","v":"ZWO"}]
[{"$f":"IF('1. Order'!F757=\"\",\"\",'1. Order'!F757)","v":{"$error":"#N/A"}},{"$f":"IF('1. Order'!G757=\"\",\"\",'1. Order'!G757)","v":""},{"$f":"IF('1. Order'!H757=\"\",\"\",'1. Order'!H757)","v":""},{"$f":"IF('1. Order'!I757=\"\",\"\",'1. Order'!I757)","v":""},{"$f":"IF('1. Order'!J757=\"\",\"\",'1. Order'!J757)","v":""},{"$f":"IF('1. Order'!K757=\"\",\"\",'1. Order'!K757)","v":""},{"$f":"IF('1. Order'!L757=\"\",\"\",'1. Order'!L757)","v":""},{"$f":"IF('1. Order'!M757=\"\",\"\",'1. Order'!M757)","v":""},{"$f":"IF('1. Order'!N757=\"\",\"\",'1. Order'!N757)","v":""},{"$f":"IF('1. Order'!O757=\"\",\"\",'1. Order'!O757)","v":{"$error":"#N/A"}},{"$f":"IF('1. Order'!P757=\"\",\"\",'1. Order'!P757)","v":{"$error":"#N/A"}},{"$f":"IF('1. Order'!Q757=\"\",\"\",'1. Order'!Q757)","v":""},{"$f":"IF('1. Order'!S757=\"\",\"\",'1. Order'!S757)","v":""},{"$f":"IF('1. Order'!T757=\"\",\"\",'1. Order'!T757)","v":""},{"$f":"IF('1. Order'!W757=\"\",\"\",'1. Order'!W757)","v":""},{"$f":"IF('1. Order'!X757=\"\",\"\",'1. Order'!X757)","v":""},{"$f":"IF('1. Order'!Y757=\"\",\"\",'1. Order'!Y757)","v":"EUR"},{"$f":"IF('1. Order'!Z757=\"\",\"\",'1. Order'!Z757)","v":""},{"$f":"IF('1. Order'!AA757=\"\",\"\",'1. Order'!AA757)","v":""},{"$f":"IF('1. Order'!AB757=\"\",\"\",'1. Order'!AB757)","v":""},null,{"$f":"IF('1. Order'!AT757=\"\",\"\",'1. Order'!AT757)","v":""},{"$f":"IF('1. Order'!AU757=\"\",\"\",'1. Order'!AU757)","v":""},null,null,null,null,null,null,null,{"$f":"IF('1. Order'!AY757=\"\",\"\",'1. Order'!AY757)","v":""},{"$f":"IF('1. Order'!AZ757=\"\",\"\",'1. Order'!AZ757)","v":""},{"$f":"IF('1. Order'!BA757=\"\",\"\",'1. Order'!BA757)","v":""},{"$f":"IF('1. Order'!BB757=\"\",\"\",'1. Order'!BB757)","v":""},{"$f":"IF('1. Order'!BD757=\"\",\"\",'1. Order'!BD757)","v":""},{"$f":"IF('1. Order'!BE757=\"\",\"\",'1. Order'!BE757)","v":""},{"$f":"IF('1. Order'!BF757=\"\",\"\",'1. Order'!BF757)","v":""},{"$f":"IF('1. Order'!BG757=\"\",\"\",'1. Order'!BG757)","v":""},{"$f":"IF('1. Order'!BH757=\"\",\"\",'1. Order'!BH757)","v":"ZWO"}]
[{"$f":"IF('1. Order'!F758=\"\",\"\",'1. Order'!F758)","v":{"$error":"#N/A"}},{"$f":"IF('1. Order'!G758=\"\",\"\",'1. Order'!G758)","v":""},{"$f":"IF('1. Order'!H758=\"\",\"\",'1. Order'!H758)","v":""},{"$f":"IF('1. Order'!I758=\"\",\"\",'1. Order'!I758)","v":""},{"$f":"IF('1. Order'!J758=\"\",\"\",'1. Order'!J758)","v":""},{"$f":"IF('1. Order'!K758=\"\",\"\",'1. Order'!K758)","v":""},{"$f":"IF('1. Order'!L758=\"\",\"\",'1. Order'!L758)","v":""},{"$f":"IF('1. Order'!M758=\"\",\"\",'1. Order'!M758)","v":""},{"$f":"IF('1. Order'!N758=\"\",\"\",'1. Order'!N758)","v":""},{"$f":"IF('1. Order'!O758=\"\",\"\",'1. Order'!O758)","v":{"$error":"#N/A"}},{"$f":"IF('1. Order'!P758=\"\",\"\",'1. Order'!P758)","v":{"$error":"#N/A"}},{"$f":"IF('1. Order'!Q758=\"\",\"\",'1. Order'!Q758)","v":""},{"$f":"IF('1. Order'!S758=\"\",\"\",'1. Order'!S758)","v":""},{"$f":"IF('1. Order'!T758=\"\",\"\",'1. Order'!T758)","v":""},{"$f":"IF('1. Order'!W758=\"\",\"\",'1. Order'!W758)","v":""},{"$f":"IF('1. Order'!X758=\"\",\"\",'1. Order'!X758)","v":""},{"$f":"IF('1. Order'!Y758=\"\",\"\",'1. Order'!Y758)","v":"EUR"},{"$f":"IF('1. Order'!Z758=\"\",\"\",'1. Order'!Z758)","v":""},{"$f":"IF('1. Order'!AA758=\"\",\"\",'1. Order'!AA758)","v":""},{"$f":"IF('1. Order'!AB758=\"\",\"\",'1. Order'!AB758)","v":""},null,{"$f":"IF('1. Order'!AT758=\"\",\"\",'1. Order'!AT758)","v":""},{"$f":"IF('1. Order'!AU758=\"\",\"\",'1. Order'!AU758)","v":""},null,null,null,null,null,null,null,{"$f":"IF('1. Order'!AY758=\"\",\"\",'1. Order'!AY758)","v":""},{"$f":"IF('1. Order'!AZ758=\"\",\"\",'1. Order'!AZ758)","v":""},{"$f":"IF('1. Order'!BA758=\"\",\"\",'1. Order'!BA758)","v":""},{"$f":"IF('1. Order'!BB758=\"\",\"\",'1. Order'!BB758)","v":""},{"$f":"IF('1. Order'!BD758=\"\",\"\",'1. Order'!BD758)","v":""},{"$f":"IF('1. Order'!BE758=\"\",\"\",'1. Order'!BE758)","v":""},{"$f":"IF('1. Order'!BF758=\"\",\"\",'1. Order'!BF758)","v":""},{"$f":"IF('1. Order'!BG758=\"\",\"\",'1. Order'!BG758)","v":""},{"$f":"IF('1. Order'!BH758=\"\",\"\",'1. Order'!BH758)","v":"ZWO"}]
[{"$f":"IF('1. Order'!F759=\"\",\"\",'1. Order'!F759)","v":{"$error":"#N/A"}},{"$f":"IF('1. Order'!G759=\"\",\"\",'1. Order'!G759)","v":""},{"$f":"IF('1. Order'!H759=\"\",\"\",'1. Order'!H759)","v":""},{"$f":"IF('1. Order'!I759=\"\",\"\",'1. Order'!I759)","v":""},{"$f":"IF('1. Order'!J759=\"\",\"\",'1. Order'!J759)","v":""},{"$f":"IF('1. Order'!K759=\"\",\"\",'1. Order'!K759)","v":""},{"$f":"IF('1. Order'!L759=\"\",\"\",'1. Order'!L759)","v":""},{"$f":"IF('1. Order'!M759=\"\",\"\",'1. Order'!M759)","v":""},{"$f":"IF('1. Order'!N759=\"\",\"\",'1. Order'!N759)","v":""},{"$f":"IF('1. Order'!O759=\"\",\"\",'1. Order'!O759)","v":{"$error":"#N/A"}},{"$f":"IF('1. Order'!P759=\"\",\"\",'1. Order'!P759)","v":{"$error":"#N/A"}},{"$f":"IF('1. Order'!Q759=\"\",\"\",'1. Order'!Q759)","v":""},{"$f":"IF('1. Order'!S759=\"\",\"\",'1. Order'!S759)","v":""},{"$f":"IF('1. Order'!T759=\"\",\"\",'1. Order'!T759)","v":""},{"$f":"IF('1. Order'!W759=\"\",\"\",'1. Order'!W759)","v":""},{"$f":"IF('1. Order'!X759=\"\",\"\",'1. Order'!X759)","v":""},{"$f":"IF('1. Order'!Y759=\"\",\"\",'1. Order'!Y759)","v":"EUR"},{"$f":"IF('1. Order'!Z759=\"\",\"\",'1. Order'!Z759)","v":""},{"$f":"IF('1. Order'!AA759=\"\",\"\",'1. Order'!AA759)","v":""},{"$f":"IF('1. Order'!AB759=\"\",\"\",'1. Order'!AB759)","v":""},null,{"$f":"IF('1. Order'!AT759=\"\",\"\",'1. Order'!AT759)","v":""},{"$f":"IF('1. Order'!AU759=\"\",\"\",'1. Order'!AU759)","v":""},null,null,null,null,null,null,null,{"$f":"IF('1. Order'!AY759=\"\",\"\",'1. Order'!AY759)","v":""},{"$f":"IF('1. Order'!AZ759=\"\",\"\",'1. Order'!AZ759)","v":""},{"$f":"IF('1. Order'!BA759=\"\",\"\",'1. Order'!BA759)","v":""},{"$f":"IF('1. Order'!BB759=\"\",\"\",'1. Order'!BB759)","v":""},{"$f":"IF('1. Order'!BD759=\"\",\"\",'1. Order'!BD759)","v":""},{"$f":"IF('1. Order'!BE759=\"\",\"\",'1. Order'!BE759)","v":""},{"$f":"IF('1. Order'!BF759=\"\",\"\",'1. Order'!BF759)","v":""},{"$f":"IF('1. Order'!BG759=\"\",\"\",'1. Order'!BG759)","v":""},{"$f":"IF('1. Order'!BH759=\"\",\"\",'1. Order'!BH759)","v":"ZWO"}]
[{"$f":"IF('1. Order'!F760=\"\",\"\",'1. Order'!F760)","v":{"$error":"#N/A"}},{"$f":"IF('1. Order'!G760=\"\",\"\",'1. Order'!G760)","v":""},{"$f":"IF('1. Order'!H760=\"\",\"\",'1. Order'!H760)","v":""},{"$f":"IF('1. Order'!I760=\"\",\"\",'1. Order'!I760)","v":""},{"$f":"IF('1. Order'!J760=\"\",\"\",'1. Order'!J760)","v":""},{"$f":"IF('1. Order'!K760=\"\",\"\",'1. Order'!K760)","v":""},{"$f":"IF('1. Order'!L760=\"\",\"\",'1. Order'!L760)","v":""},{"$f":"IF('1. Order'!M760=\"\",\"\",'1. Order'!M760)","v":""},{"$f":"IF('1. Order'!N760=\"\",\"\",'1. Order'!N760)","v":""},{"$f":"IF('1. Order'!O760=\"\",\"\",'1. Order'!O760)","v":{"$error":"#N/A"}},{"$f":"IF('1. Order'!P760=\"\",\"\",'1. Order'!P760)","v":{"$error":"#N/A"}},{"$f":"IF('1. Order'!Q760=\"\",\"\",'1. Order'!Q760)","v":""},{"$f":"IF('1. Order'!S760=\"\",\"\",'1. Order'!S760)","v":""},{"$f":"IF('1. Order'!T760=\"\",\"\",'1. Order'!T760)","v":""},{"$f":"IF('1. Order'!W760=\"\",\"\",'1. Order'!W760)","v":""},{"$f":"IF('1. Order'!X760=\"\",\"\",'1. Order'!X760)","v":""},{"$f":"IF('1. Order'!Y760=\"\",\"\",'1. Order'!Y760)","v":"EUR"},{"$f":"IF('1. Order'!Z760=\"\",\"\",'1. Order'!Z760)","v":""},{"$f":"IF('1. Order'!AA760=\"\",\"\",'1. Order'!AA760)","v":""},{"$f":"IF('1. Order'!AB760=\"\",\"\",'1. Order'!AB760)","v":""},null,{"$f":"IF('1. Order'!AT760=\"\",\"\",'1. Order'!AT760)","v":""},{"$f":"IF('1. Order'!AU760=\"\",\"\",'1. Order'!AU760)","v":""},null,null,null,null,null,null,null,{"$f":"IF('1. Order'!AY760=\"\",\"\",'1. Order'!AY760)","v":""},{"$f":"IF('1. Order'!AZ760=\"\",\"\",'1. Order'!AZ760)","v":""},{"$f":"IF('1. Order'!BA760=\"\",\"\",'1. Order'!BA760)","v":""},{"$f":"IF('1. Order'!BB760=\"\",\"\",'1. Order'!BB760)","v":""},{"$f":"IF('1. Order'!BD760=\"\",\"\",'1. Order'!BD760)","v":""},{"$f":"IF('1. Order'!BE760=\"\",\"\",'1. Order'!BE760)","v":""},{"$f":"IF('1. Order'!BF760=\"\",\"\",'1. Order'!BF760)","v":""},{"$f":"IF('1. Order'!BG760=\"\",\"\",'1. Order'!BG760)","v":""},{"$f":"IF('1. Order'!BH760=\"\",\"\",'1. Order'!BH760)","v":"ZWO"}]
[{"$f":"IF('1. Order'!F761=\"\",\"\",'1. Order'!F761)","v":{"$error":"#N/A"}},{"$f":"IF('1. Order'!G761=\"\",\"\",'1. Order'!G761)","v":""},{"$f":"IF('1. Order'!H761=\"\",\"\",'1. Order'!H761)","v":""},{"$f":"IF('1. Order'!I761=\"\",\"\",'1. Order'!I761)","v":""},{"$f":"IF('1. Order'!J761=\"\",\"\",'1. Order'!J761)","v":""},{"$f":"IF('1. Order'!K761=\"\",\"\",'1. Order'!K761)","v":""},{"$f":"IF('1. Order'!L761=\"\",\"\",'1. Order'!L761)","v":""},{"$f":"IF('1. Order'!M761=\"\",\"\",'1. Order'!M761)","v":""},{"$f":"IF('1. Order'!N761=\"\",\"\",'1. Order'!N761)","v":""},{"$f":"IF('1. Order'!O761=\"\",\"\",'1. Order'!O761)","v":{"$error":"#N/A"}},{"$f":"IF('1. Order'!P761=\"\",\"\",'1. Order'!P761)","v":{"$error":"#N/A"}},{"$f":"IF('1. Order'!Q761=\"\",\"\",'1. Order'!Q761)","v":""},{"$f":"IF('1. Order'!S761=\"\",\"\",'1. Order'!S761)","v":""},{"$f":"IF('1. Order'!T761=\"\",\"\",'1. Order'!T761)","v":""},{"$f":"IF('1. Order'!W761=\"\",\"\",'1. Order'!W761)","v":""},{"$f":"IF('1. Order'!X761=\"\",\"\",'1. Order'!X761)","v":""},{"$f":"IF('1. Order'!Y761=\"\",\"\",'1. Order'!Y761)","v":"EUR"},{"$f":"IF('1. Order'!Z761=\"\",\"\",'1. Order'!Z761)","v":""},{"$f":"IF('1. Order'!AA761=\"\",\"\",'1. Order'!AA761)","v":""},{"$f":"IF('1. Order'!AB761=\"\",\"\",'1. Order'!AB761)","v":""},null,{"$f":"IF('1. Order'!AT761=\"\",\"\",'1. Order'!AT761)","v":""},{"$f":"IF('1. Order'!AU761=\"\",\"\",'1. Order'!AU761)","v":""},null,null,null,null,null,null,null,{"$f":"IF('1. Order'!AY761=\"\",\"\",'1. Order'!AY761)","v":""},{"$f":"IF('1. Order'!AZ761=\"\",\"\",'1. Order'!AZ761)","v":""},{"$f":"IF('1. Order'!BA761=\"\",\"\",'1. Order'!BA761)","v":""},{"$f":"IF('1. Order'!BB761=\"\",\"\",'1. Order'!BB761)","v":""},{"$f":"IF('1. Order'!BD761=\"\",\"\",'1. Order'!BD761)","v":""},{"$f":"IF('1. Order'!BE761=\"\",\"\",'1. Order'!BE761)","v":""},{"$f":"IF('1. Order'!BF761=\"\",\"\",'1. Order'!BF761)","v":""},{"$f":"IF('1. Order'!BG761=\"\",\"\",'1. Order'!BG761)","v":""},{"$f":"IF('1. Order'!BH761=\"\",\"\",'1. Order'!BH761)","v":"ZWO"}]
[{"$f":"IF('1. Order'!F762=\"\",\"\",'1. Order'!F762)","v":{"$error":"#N/A"}},{"$f":"IF('1. Order'!G762=\"\",\"\",'1. Order'!G762)","v":""},{"$f":"IF('1. Order'!H762=\"\",\"\",'1. Order'!H762)","v":""},{"$f":"IF('1. Order'!I762=\"\",\"\",'1. Order'!I762)","v":""},{"$f":"IF('1. Order'!J762=\"\",\"\",'1. Order'!J762)","v":""},{"$f":"IF('1. Order'!K762=\"\",\"\",'1. Order'!K762)","v":""},{"$f":"IF('1. Order'!L762=\"\",\"\",'1. Order'!L762)","v":""},{"$f":"IF('1. Order'!M762=\"\",\"\",'1. Order'!M762)","v":""},{"$f":"IF('1. Order'!N762=\"\",\"\",'1. Order'!N762)","v":""},{"$f":"IF('1. Order'!O762=\"\",\"\",'1. Order'!O762)","v":{"$error":"#N/A"}},{"$f":"IF('1. Order'!P762=\"\",\"\",'1. Order'!P762)","v":{"$error":"#N/A"}},{"$f":"IF('1. Order'!Q762=\"\",\"\",'1. Order'!Q762)","v":""},{"$f":"IF('1. Order'!S762=\"\",\"\",'1. Order'!S762)","v":""},{"$f":"IF('1. Order'!T762=\"\",\"\",'1. Order'!T762)","v":""},{"$f":"IF('1. Order'!W762=\"\",\"\",'1. Order'!W762)","v":""},{"$f":"IF('1. Order'!X762=\"\",\"\",'1. Order'!X762)","v":""},{"$f":"IF('1. Order'!Y762=\"\",\"\",'1. Order'!Y762)","v":"EUR"},{"$f":"IF('1. Order'!Z762=\"\",\"\",'1. Order'!Z762)","v":""},{"$f":"IF('1. Order'!AA762=\"\",\"\",'1. Order'!AA762)","v":""},{"$f":"IF('1. Order'!AB762=\"\",\"\",'1. Order'!AB762)","v":""},null,{"$f":"IF('1. Order'!AT762=\"\",\"\",'1. Order'!AT762)","v":""},{"$f":"IF('1. Order'!AU762=\"\",\"\",'1. Order'!AU762)","v":""},null,null,null,null,null,null,null,{"$f":"IF('1. Order'!AY762=\"\",\"\",'1. Order'!AY762)","v":""},{"$f":"IF('1. Order'!AZ762=\"\",\"\",'1. Order'!AZ762)","v":""},{"$f":"IF('1. Order'!BA762=\"\",\"\",'1. Order'!BA762)","v":""},{"$f":"IF('1. Order'!BB762=\"\",\"\",'1. Order'!BB762)","v":""},{"$f":"IF('1. Order'!BD762=\"\",\"\",'1. Order'!BD762)","v":""},{"$f":"IF('1. Order'!BE762=\"\",\"\",'1. Order'!BE762)","v":""},{"$f":"IF('1. Order'!BF762=\"\",\"\",'1. Order'!BF762)","v":""},{"$f":"IF('1. Order'!BG762=\"\",\"\",'1. Order'!BG762)","v":""},{"$f":"IF('1. Order'!BH762=\"\",\"\",'1. Order'!BH762)","v":"ZWO"}]
[{"$f":"IF('1. Order'!F763=\"\",\"\",'1. Order'!F763)","v":{"$error":"#N/A"}},{"$f":"IF('1. Order'!G763=\"\",\"\",'1. Order'!G763)","v":""},{"$f":"IF('1. Order'!H763=\"\",\"\",'1. Order'!H763)","v":""},{"$f":"IF('1. Order'!I763=\"\",\"\",'1. Order'!I763)","v":""},{"$f":"IF('1. Order'!J763=\"\",\"\",'1. Order'!J763)","v":""},{"$f":"IF('1. Order'!K763=\"\",\"\",'1. Order'!K763)","v":""},{"$f":"IF('1. Order'!L763=\"\",\"\",'1. Order'!L763)","v":""},{"$f":"IF('1. Order'!M763=\"\",\"\",'1. Order'!M763)","v":""},{"$f":"IF('1. Order'!N763=\"\",\"\",'1. Order'!N763)","v":""},{"$f":"IF('1. Order'!O763=\"\",\"\",'1. Order'!O763)","v":{"$error":"#N/A"}},{"$f":"IF('1. Order'!P763=\"\",\"\",'1. Order'!P763)","v":{"$error":"#N/A"}},{"$f":"IF('1. Order'!Q763=\"\",\"\",'1. Order'!Q763)","v":""},{"$f":"IF('1. Order'!S763=\"\",\"\",'1. Order'!S763)","v":""},{"$f":"IF('1. Order'!T763=\"\",\"\",'1. Order'!T763)","v":""},{"$f":"IF('1. Order'!W763=\"\",\"\",'1. Order'!W763)","v":""},{"$f":"IF('1. Order'!X763=\"\",\"\",'1. Order'!X763)","v":""},{"$f":"IF('1. Order'!Y763=\"\",\"\",'1. Order'!Y763)","v":"EUR"},{"$f":"IF('1. Order'!Z763=\"\",\"\",'1. Order'!Z763)","v":""},{"$f":"IF('1. Order'!AA763=\"\",\"\",'1. Order'!AA763)","v":""},{"$f":"IF('1. Order'!AB763=\"\",\"\",'1. Order'!AB763)","v":""},null,{"$f":"IF('1. Order'!AT763=\"\",\"\",'1. Order'!AT763)","v":""},{"$f":"IF('1. Order'!AU763=\"\",\"\",'1. Order'!AU763)","v":""},null,null,null,null,null,null,null,{"$f":"IF('1. Order'!AY763=\"\",\"\",'1. Order'!AY763)","v":""},{"$f":"IF('1. Order'!AZ763=\"\",\"\",'1. Order'!AZ763)","v":""},{"$f":"IF('1. Order'!BA763=\"\",\"\",'1. Order'!BA763)","v":""},{"$f":"IF('1. Order'!BB763=\"\",\"\",'1. Order'!BB763)","v":""},{"$f":"IF('1. Order'!BD763=\"\",\"\",'1. Order'!BD763)","v":""},{"$f":"IF('1. Order'!BE763=\"\",\"\",'1. Order'!BE763)","v":""},{"$f":"IF('1. Order'!BF763=\"\",\"\",'1. Order'!BF763)","v":""},{"$f":"IF('1. Order'!BG763=\"\",\"\",'1. Order'!BG763)","v":""},{"$f":"IF('1. Order'!BH763=\"\",\"\",'1. Order'!BH763)","v":"ZWO"}]
[{"$f":"IF('1. Order'!F764=\"\",\"\",'1. Order'!F764)","v":{"$error":"#N/A"}},{"$f":"IF('1. Order'!G764=\"\",\"\",'1. Order'!G764)","v":""},{"$f":"IF('1. Order'!H764=\"\",\"\",'1. Order'!H764)","v":""},{"$f":"IF('1. Order'!I764=\"\",\"\",'1. Order'!I764)","v":""},{"$f":"IF('1. Order'!J764=\"\",\"\",'1. Order'!J764)","v":""},{"$f":"IF('1. Order'!K764=\"\",\"\",'1. Order'!K764)","v":""},{"$f":"IF('1. Order'!L764=\"\",\"\",'1. Order'!L764)","v":""},{"$f":"IF('1. Order'!M764=\"\",\"\",'1. Order'!M764)","v":""},{"$f":"IF('1. Order'!N764=\"\",\"\",'1. Order'!N764)","v":""},{"$f":"IF('1. Order'!O764=\"\",\"\",'1. Order'!O764)","v":{"$error":"#N/A"}},{"$f":"IF('1. Order'!P764=\"\",\"\",'1. Order'!P764)","v":{"$error":"#N/A"}},{"$f":"IF('1. Order'!Q764=\"\",\"\",'1. Order'!Q764)","v":""},{"$f":"IF('1. Order'!S764=\"\",\"\",'1. Order'!S764)","v":""},{"$f":"IF('1. Order'!T764=\"\",\"\",'1. Order'!T764)","v":""},{"$f":"IF('1. Order'!W764=\"\",\"\",'1. Order'!W764)","v":""},{"$f":"IF('1. Order'!X764=\"\",\"\",'1. Order'!X764)","v":""},{"$f":"IF('1. Order'!Y764=\"\",\"\",'1. Order'!Y764)","v":"EUR"},{"$f":"IF('1. Order'!Z764=\"\",\"\",'1. Order'!Z764)","v":""},{"$f":"IF('1. Order'!AA764=\"\",\"\",'1. Order'!AA764)","v":""},{"$f":"IF('1. Order'!AB764=\"\",\"\",'1. Order'!AB764)","v":""},null,{"$f":"IF('1. Order'!AT764=\"\",\"\",'1. Order'!AT764)","v":""},{"$f":"IF('1. Order'!AU764=\"\",\"\",'1. Order'!AU764)","v":""},null,null,null,null,null,null,null,{"$f":"IF('1. Order'!AY764=\"\",\"\",'1. Order'!AY764)","v":""},{"$f":"IF('1. Order'!AZ764=\"\",\"\",'1. Order'!AZ764)","v":""},{"$f":"IF('1. Order'!BA764=\"\",\"\",'1. Order'!BA764)","v":""},{"$f":"IF('1. Order'!BB764=\"\",\"\",'1. Order'!BB764)","v":""},{"$f":"IF('1. Order'!BD764=\"\",\"\",'1. Order'!BD764)","v":""},{"$f":"IF('1. Order'!BE764=\"\",\"\",'1. Order'!BE764)","v":""},{"$f":"IF('1. Order'!BF764=\"\",\"\",'1. Order'!BF764)","v":""},{"$f":"IF('1. Order'!BG764=\"\",\"\",'1. Order'!BG764)","v":""},{"$f":"IF('1. Order'!BH764=\"\",\"\",'1. Order'!BH764)","v":"ZWO"}]
[{"$f":"IF('1. Order'!F765=\"\",\"\",'1. Order'!F765)","v":{"$error":"#N/A"}},{"$f":"IF('1. Order'!G765=\"\",\"\",'1. Order'!G765)","v":""},{"$f":"IF('1. Order'!H765=\"\",\"\",'1. Order'!H765)","v":""},{"$f":"IF('1. Order'!I765=\"\",\"\",'1. Order'!I765)","v":""},{"$f":"IF('1. Order'!J765=\"\",\"\",'1. Order'!J765)","v":""},{"$f":"IF('1. Order'!K765=\"\",\"\",'1. Order'!K765)","v":""},{"$f":"IF('1. Order'!L765=\"\",\"\",'1. Order'!L765)","v":""},{"$f":"IF('1. Order'!M765=\"\",\"\",'1. Order'!M765)","v":""},{"$f":"IF('1. Order'!N765=\"\",\"\",'1. Order'!N765)","v":""},{"$f":"IF('1. Order'!O765=\"\",\"\",'1. Order'!O765)","v":{"$error":"#N/A"}},{"$f":"IF('1. Order'!P765=\"\",\"\",'1. Order'!P765)","v":{"$error":"#N/A"}},{"$f":"IF('1. Order'!Q765=\"\",\"\",'1. Order'!Q765)","v":""},{"$f":"IF('1. Order'!S765=\"\",\"\",'1. Order'!S765)","v":""},{"$f":"IF('1. Order'!T765=\"\",\"\",'1. Order'!T765)","v":""},{"$f":"IF('1. Order'!W765=\"\",\"\",'1. Order'!W765)","v":""},{"$f":"IF('1. Order'!X765=\"\",\"\",'1. Order'!X765)","v":""},{"$f":"IF('1. Order'!Y765=\"\",\"\",'1. Order'!Y765)","v":"EUR"},{"$f":"IF('1. Order'!Z765=\"\",\"\",'1. Order'!Z765)","v":""},{"$f":"IF('1. Order'!AA765=\"\",\"\",'1. Order'!AA765)","v":""},{"$f":"IF('1. Order'!AB765=\"\",\"\",'1. Order'!AB765)","v":""},null,{"$f":"IF('1. Order'!AT765=\"\",\"\",'1. Order'!AT765)","v":""},{"$f":"IF('1. Order'!AU765=\"\",\"\",'1. Order'!AU765)","v":""},null,null,null,null,null,null,null,{"$f":"IF('1. Order'!AY765=\"\",\"\",'1. Order'!AY765)","v":""},{"$f":"IF('1. Order'!AZ765=\"\",\"\",'1. Order'!AZ765)","v":""},{"$f":"IF('1. Order'!BA765=\"\",\"\",'1. Order'!BA765)","v":""},{"$f":"IF('1. Order'!BB765=\"\",\"\",'1. Order'!BB765)","v":""},{"$f":"IF('1. Order'!BD765=\"\",\"\",'1. Order'!BD765)","v":""},{"$f":"IF('1. Order'!BE765=\"\",\"\",'1. Order'!BE765)","v":""},{"$f":"IF('1. Order'!BF765=\"\",\"\",'1. Order'!BF765)","v":""},{"$f":"IF('1. Order'!BG765=\"\",\"\",'1. Order'!BG765)","v":""},{"$f":"IF('1. Order'!BH765=\"\",\"\",'1. Order'!BH765)","v":"ZWO"}]
[{"$f":"IF('1. Order'!F766=\"\",\"\",'1. Order'!F766)","v":{"$error":"#N/A"}},{"$f":"IF('1. Order'!G766=\"\",\"\",'1. Order'!G766)","v":""},{"$f":"IF('1. Order'!H766=\"\",\"\",'1. Order'!H766)","v":""},{"$f":"IF('1. Order'!I766=\"\",\"\",'1. Order'!I766)","v":""},{"$f":"IF('1. Order'!J766=\"\",\"\",'1. Order'!J766)","v":""},{"$f":"IF('1. Order'!K766=\"\",\"\",'1. Order'!K766)","v":""},{"$f":"IF('1. Order'!L766=\"\",\"\",'1. Order'!L766)","v":""},{"$f":"IF('1. Order'!M766=\"\",\"\",'1. Order'!M766)","v":""},{"$f":"IF('1. Order'!N766=\"\",\"\",'1. Order'!N766)","v":""},{"$f":"IF('1. Order'!O766=\"\",\"\",'1. Order'!O766)","v":{"$error":"#N/A"}},{"$f":"IF('1. Order'!P766=\"\",\"\",'1. Order'!P766)","v":{"$error":"#N/A"}},{"$f":"IF('1. Order'!Q766=\"\",\"\",'1. Order'!Q766)","v":""},{"$f":"IF('1. Order'!S766=\"\",\"\",'1. Order'!S766)","v":""},{"$f":"IF('1. Order'!T766=\"\",\"\",'1. Order'!T766)","v":""},{"$f":"IF('1. Order'!W766=\"\",\"\",'1. Order'!W766)","v":""},{"$f":"IF('1. Order'!X766=\"\",\"\",'1. Order'!X766)","v":""},{"$f":"IF('1. Order'!Y766=\"\",\"\",'1. Order'!Y766)","v":"EUR"},{"$f":"IF('1. Order'!Z766=\"\",\"\",'1. Order'!Z766)","v":""},{"$f":"IF('1. Order'!AA766=\"\",\"\",'1. Order'!AA766)","v":""},{"$f":"IF('1. Order'!AB766=\"\",\"\",'1. Order'!AB766)","v":""},null,{"$f":"IF('1. Order'!AT766=\"\",\"\",'1. Order'!AT766)","v":""},{"$f":"IF('1. Order'!AU766=\"\",\"\",'1. Order'!AU766)","v":""},null,null,null,null,null,null,null,{"$f":"IF('1. Order'!AY766=\"\",\"\",'1. Order'!AY766)","v":""},{"$f":"IF('1. Order'!AZ766=\"\",\"\",'1. Order'!AZ766)","v":""},{"$f":"IF('1. Order'!BA766=\"\",\"\",'1. Order'!BA766)","v":""},{"$f":"IF('1. Order'!BB766=\"\",\"\",'1. Order'!BB766)","v":""},{"$f":"IF('1. Order'!BD766=\"\",\"\",'1. Order'!BD766)","v":""},{"$f":"IF('1. Order'!BE766=\"\",\"\",'1. Order'!BE766)","v":""},{"$f":"IF('1. Order'!BF766=\"\",\"\",'1. Order'!BF766)","v":""},{"$f":"IF('1. Order'!BG766=\"\",\"\",'1. Order'!BG766)","v":""},{"$f":"IF('1. Order'!BH766=\"\",\"\",'1. Order'!BH766)","v":"ZWO"}]
[{"$f":"IF('1. Order'!F767=\"\",\"\",'1. Order'!F767)","v":{"$error":"#N/A"}},{"$f":"IF('1. Order'!G767=\"\",\"\",'1. Order'!G767)","v":""},{"$f":"IF('1. Order'!H767=\"\",\"\",'1. Order'!H767)","v":""},{"$f":"IF('1. Order'!I767=\"\",\"\",'1. Order'!I767)","v":""},{"$f":"IF('1. Order'!J767=\"\",\"\",'1. Order'!J767)","v":""},{"$f":"IF('1. Order'!K767=\"\",\"\",'1. Order'!K767)","v":""},{"$f":"IF('1. Order'!L767=\"\",\"\",'1. Order'!L767)","v":""},{"$f":"IF('1. Order'!M767=\"\",\"\",'1. Order'!M767)","v":""},{"$f":"IF('1. Order'!N767=\"\",\"\",'1. Order'!N767)","v":""},{"$f":"IF('1. Order'!O767=\"\",\"\",'1. Order'!O767)","v":{"$error":"#N/A"}},{"$f":"IF('1. Order'!P767=\"\",\"\",'1. Order'!P767)","v":{"$error":"#N/A"}},{"$f":"IF('1. Order'!Q767=\"\",\"\",'1. Order'!Q767)","v":""},{"$f":"IF('1. Order'!S767=\"\",\"\",'1. Order'!S767)","v":""},{"$f":"IF('1. Order'!T767=\"\",\"\",'1. Order'!T767)","v":""},{"$f":"IF('1. Order'!W767=\"\",\"\",'1. Order'!W767)","v":""},{"$f":"IF('1. Order'!X767=\"\",\"\",'1. Order'!X767)","v":""},{"$f":"IF('1. Order'!Y767=\"\",\"\",'1. Order'!Y767)","v":"EUR"},{"$f":"IF('1. Order'!Z767=\"\",\"\",'1. Order'!Z767)","v":""},{"$f":"IF('1. Order'!AA767=\"\",\"\",'1. Order'!AA767)","v":""},{"$f":"IF('1. Order'!AB767=\"\",\"\",'1. Order'!AB767)","v":""},null,{"$f":"IF('1. Order'!AT767=\"\",\"\",'1. Order'!AT767)","v":""},{"$f":"IF('1. Order'!AU767=\"\",\"\",'1. Order'!AU767)","v":""},null,null,null,null,null,null,null,{"$f":"IF('1. Order'!AY767=\"\",\"\",'1. Order'!AY767)","v":""},{"$f":"IF('1. Order'!AZ767=\"\",\"\",'1. Order'!AZ767)","v":""},{"$f":"IF('1. Order'!BA767=\"\",\"\",'1. Order'!BA767)","v":""},{"$f":"IF('1. Order'!BB767=\"\",\"\",'1. Order'!BB767)","v":""},{"$f":"IF('1. Order'!BD767=\"\",\"\",'1. Order'!BD767)","v":""},{"$f":"IF('1. Order'!BE767=\"\",\"\",'1. Order'!BE767)","v":""},{"$f":"IF('1. Order'!BF767=\"\",\"\",'1. Order'!BF767)","v":""},{"$f":"IF('1. Order'!BG767=\"\",\"\",'1. Order'!BG767)","v":""},{"$f":"IF('1. Order'!BH767=\"\",\"\",'1. Order'!BH767)","v":"ZWO"}]
[{"$f":"IF('1. Order'!F768=\"\",\"\",'1. Order'!F768)","v":{"$error":"#N/A"}},{"$f":"IF('1. Order'!G768=\"\",\"\",'1. Order'!G768)","v":""},{"$f":"IF('1. Order'!H768=\"\",\"\",'1. Order'!H768)","v":""},{"$f":"IF('1. Order'!I768=\"\",\"\",'1. Order'!I768)","v":""},{"$f":"IF('1. Order'!J768=\"\",\"\",'1. Order'!J768)","v":""},{"$f":"IF('1. Order'!K768=\"\",\"\",'1. Order'!K768)","v":""},{"$f":"IF('1. Order'!L768=\"\",\"\",'1. Order'!L768)","v":""},{"$f":"IF('1. Order'!M768=\"\",\"\",'1. Order'!M768)","v":""},{"$f":"IF('1. Order'!N768=\"\",\"\",'1. Order'!N768)","v":""},{"$f":"IF('1. Order'!O768=\"\",\"\",'1. Order'!O768)","v":{"$error":"#N/A"}},{"$f":"IF('1. Order'!P768=\"\",\"\",'1. Order'!P768)","v":{"$error":"#N/A"}},{"$f":"IF('1. Order'!Q768=\"\",\"\",'1. Order'!Q768)","v":""},{"$f":"IF('1. Order'!S768=\"\",\"\",'1. Order'!S768)","v":""},{"$f":"IF('1. Order'!T768=\"\",\"\",'1. Order'!T768)","v":""},{"$f":"IF('1. Order'!W768=\"\",\"\",'1. Order'!W768)","v":""},{"$f":"IF('1. Order'!X768=\"\",\"\",'1. Order'!X768)","v":""},{"$f":"IF('1. Order'!Y768=\"\",\"\",'1. Order'!Y768)","v":"EUR"},{"$f":"IF('1. Order'!Z768=\"\",\"\",'1. Order'!Z768)","v":""},{"$f":"IF('1. Order'!AA768=\"\",\"\",'1. Order'!AA768)","v":""},{"$f":"IF('1. Order'!AB768=\"\",\"\",'1. Order'!AB768)","v":""},null,{"$f":"IF('1. Order'!AT768=\"\",\"\",'1. Order'!AT768)","v":""},{"$f":"IF('1. Order'!AU768=\"\",\"\",'1. Order'!AU768)","v":""},null,null,null,null,null,null,null,{"$f":"IF('1. Order'!AY768=\"\",\"\",'1. Order'!AY768)","v":""},{"$f":"IF('1. Order'!AZ768=\"\",\"\",'1. Order'!AZ768)","v":""},{"$f":"IF('1. Order'!BA768=\"\",\"\",'1. Order'!BA768)","v":""},{"$f":"IF('1. Order'!BB768=\"\",\"\",'1. Order'!BB768)","v":""},{"$f":"IF('1. Order'!BD768=\"\",\"\",'1. Order'!BD768)","v":""},{"$f":"IF('1. Order'!BE768=\"\",\"\",'1. Order'!BE768)","v":""},{"$f":"IF('1. Order'!BF768=\"\",\"\",'1. Order'!BF768)","v":""},{"$f":"IF('1. Order'!BG768=\"\",\"\",'1. Order'!BG768)","v":""},{"$f":"IF('1. Order'!BH768=\"\",\"\",'1. Order'!BH768)","v":"ZWO"}]
[{"$f":"IF('1. Order'!F769=\"\",\"\",'1. Order'!F769)","v":{"$error":"#N/A"}},{"$f":"IF('1. Order'!G769=\"\",\"\",'1. Order'!G769)","v":""},{"$f":"IF('1. Order'!H769=\"\",\"\",'1. Order'!H769)","v":""},{"$f":"IF('1. Order'!I769=\"\",\"\",'1. Order'!I769)","v":""},{"$f":"IF('1. Order'!J769=\"\",\"\",'1. Order'!J769)","v":""},{"$f":"IF('1. Order'!K769=\"\",\"\",'1. Order'!K769)","v":""},{"$f":"IF('1. Order'!L769=\"\",\"\",'1. Order'!L769)","v":""},{"$f":"IF('1. Order'!M769=\"\",\"\",'1. Order'!M769)","v":""},{"$f":"IF('1. Order'!N769=\"\",\"\",'1. Order'!N769)","v":""},{"$f":"IF('1. Order'!O769=\"\",\"\",'1. Order'!O769)","v":{"$error":"#N/A"}},{"$f":"IF('1. Order'!P769=\"\",\"\",'1. Order'!P769)","v":{"$error":"#N/A"}},{"$f":"IF('1. Order'!Q769=\"\",\"\",'1. Order'!Q769)","v":""},{"$f":"IF('1. Order'!S769=\"\",\"\",'1. Order'!S769)","v":""},{"$f":"IF('1. Order'!T769=\"\",\"\",'1. Order'!T769)","v":""},{"$f":"IF('1. Order'!W769=\"\",\"\",'1. Order'!W769)","v":""},{"$f":"IF('1. Order'!X769=\"\",\"\",'1. Order'!X769)","v":""},{"$f":"IF('1. Order'!Y769=\"\",\"\",'1. Order'!Y769)","v":"EUR"},{"$f":"IF('1. Order'!Z769=\"\",\"\",'1. Order'!Z769)","v":""},{"$f":"IF('1. Order'!AA769=\"\",\"\",'1. Order'!AA769)","v":""},{"$f":"IF('1. Order'!AB769=\"\",\"\",'1. Order'!AB769)","v":""},null,{"$f":"IF('1. Order'!AT769=\"\",\"\",'1. Order'!AT769)","v":""},{"$f":"IF('1. Order'!AU769=\"\",\"\",'1. Order'!AU769)","v":""},null,null,null,null,null,null,null,{"$f":"IF('1. Order'!AY769=\"\",\"\",'1. Order'!AY769)","v":""},{"$f":"IF('1. Order'!AZ769=\"\",\"\",'1. Order'!AZ769)","v":""},{"$f":"IF('1. Order'!BA769=\"\",\"\",'1. Order'!BA769)","v":""},{"$f":"IF('1. Order'!BB769=\"\",\"\",'1. Order'!BB769)","v":""},{"$f":"IF('1. Order'!BD769=\"\",\"\",'1. Order'!BD769)","v":""},{"$f":"IF('1. Order'!BE769=\"\",\"\",'1. Order'!BE769)","v":""},{"$f":"IF('1. Order'!BF769=\"\",\"\",'1. Order'!BF769)","v":""},{"$f":"IF('1. Order'!BG769=\"\",\"\",'1. Order'!BG769)","v":""},{"$f":"IF('1. Order'!BH769=\"\",\"\",'1. Order'!BH769)","v":"ZWO"}]
[{"$f":"IF('1. Order'!F770=\"\",\"\",'1. Order'!F770)","v":{"$error":"#N/A"}},{"$f":"IF('1. Order'!G770=\"\",\"\",'1. Order'!G770)","v":""},{"$f":"IF('1. Order'!H770=\"\",\"\",'1. Order'!H770)","v":""},{"$f":"IF('1. Order'!I770=\"\",\"\",'1. Order'!I770)","v":""},{"$f":"IF('1. Order'!J770=\"\",\"\",'1. Order'!J770)","v":""},{"$f":"IF('1. Order'!K770=\"\",\"\",'1. Order'!K770)","v":""},{"$f":"IF('1. Order'!L770=\"\",\"\",'1. Order'!L770)","v":""},{"$f":"IF('1. Order'!M770=\"\",\"\",'1. Order'!M770)","v":""},{"$f":"IF('1. Order'!N770=\"\",\"\",'1. Order'!N770)","v":""},{"$f":"IF('1. Order'!O770=\"\",\"\",'1. Order'!O770)","v":{"$error":"#N/A"}},{"$f":"IF('1. Order'!P770=\"\",\"\",'1. Order'!P770)","v":{"$error":"#N/A"}},{"$f":"IF('1. Order'!Q770=\"\",\"\",'1. Order'!Q770)","v":""},{"$f":"IF('1. Order'!S770=\"\",\"\",'1. Order'!S770)","v":""},{"$f":"IF('1. Order'!T770=\"\",\"\",'1. Order'!T770)","v":""},{"$f":"IF('1. Order'!W770=\"\",\"\",'1. Order'!W770)","v":""},{"$f":"IF('1. Order'!X770=\"\",\"\",'1. Order'!X770)","v":""},{"$f":"IF('1. Order'!Y770=\"\",\"\",'1. Order'!Y770)","v":"EUR"},{"$f":"IF('1. Order'!Z770=\"\",\"\",'1. Order'!Z770)","v":""},{"$f":"IF('1. Order'!AA770=\"\",\"\",'1. Order'!AA770)","v":""},{"$f":"IF('1. Order'!AB770=\"\",\"\",'1. Order'!AB770)","v":""},null,{"$f":"IF('1. Order'!AT770=\"\",\"\",'1. Order'!AT770)","v":""},{"$f":"IF('1. Order'!AU770=\"\",\"\",'1. Order'!AU770)","v":""},null,null,null,null,null,null,null,{"$f":"IF('1. Order'!AY770=\"\",\"\",'1. Order'!AY770)","v":""},{"$f":"IF('1. Order'!AZ770=\"\",\"\",'1. Order'!AZ770)","v":""},{"$f":"IF('1. Order'!BA770=\"\",\"\",'1. Order'!BA770)","v":""},{"$f":"IF('1. Order'!BB770=\"\",\"\",'1. Order'!BB770)","v":""},{"$f":"IF('1. Order'!BD770=\"\",\"\",'1. Order'!BD770)","v":""},{"$f":"IF('1. Order'!BE770=\"\",\"\",'1. Order'!BE770)","v":""},{"$f":"IF('1. Order'!BF770=\"\",\"\",'1. Order'!BF770)","v":""},{"$f":"IF('1. Order'!BG770=\"\",\"\",'1. Order'!BG770)","v":""},{"$f":"IF('1. Order'!BH770=\"\",\"\",'1. Order'!BH770)","v":"ZWO"}]
[{"$f":"IF('1. Order'!F771=\"\",\"\",'1. Order'!F771)","v":{"$error":"#N/A"}},{"$f":"IF('1. Order'!G771=\"\",\"\",'1. Order'!G771)","v":""},{"$f":"IF('1. Order'!H771=\"\",\"\",'1. Order'!H771)","v":""},{"$f":"IF('1. Order'!I771=\"\",\"\",'1. Order'!I771)","v":""},{"$f":"IF('1. Order'!J771=\"\",\"\",'1. Order'!J771)","v":""},{"$f":"IF('1. Order'!K771=\"\",\"\",'1. Order'!K771)","v":""},{"$f":"IF('1. Order'!L771=\"\",\"\",'1. Order'!L771)","v":""},{"$f":"IF('1. Order'!M771=\"\",\"\",'1. Order'!M771)","v":""},{"$f":"IF('1. Order'!N771=\"\",\"\",'1. Order'!N771)","v":""},{"$f":"IF('1. Order'!O771=\"\",\"\",'1. Order'!O771)","v":{"$error":"#N/A"}},{"$f":"IF('1. Order'!P771=\"\",\"\",'1. Order'!P771)","v":{"$error":"#N/A"}},{"$f":"IF('1. Order'!Q771=\"\",\"\",'1. Order'!Q771)","v":""},{"$f":"IF('1. Order'!S771=\"\",\"\",'1. Order'!S771)","v":""},{"$f":"IF('1. Order'!T771=\"\",\"\",'1. Order'!T771)","v":""},{"$f":"IF('1. Order'!W771=\"\",\"\",'1. Order'!W771)","v":""},{"$f":"IF('1. Order'!X771=\"\",\"\",'1. Order'!X771)","v":""},{"$f":"IF('1. Order'!Y771=\"\",\"\",'1. Order'!Y771)","v":"EUR"},{"$f":"IF('1. Order'!Z771=\"\",\"\",'1. Order'!Z771)","v":""},{"$f":"IF('1. Order'!AA771=\"\",\"\",'1. Order'!AA771)","v":""},{"$f":"IF('1. Order'!AB771=\"\",\"\",'1. Order'!AB771)","v":""},null,{"$f":"IF('1. Order'!AT771=\"\",\"\",'1. Order'!AT771)","v":""},{"$f":"IF('1. Order'!AU771=\"\",\"\",'1. Order'!AU771)","v":""},null,null,null,null,null,null,null,{"$f":"IF('1. Order'!AY771=\"\",\"\",'1. Order'!AY771)","v":""},{"$f":"IF('1. Order'!AZ771=\"\",\"\",'1. Order'!AZ771)","v":""},{"$f":"IF('1. Order'!BA771=\"\",\"\",'1. Order'!BA771)","v":""},{"$f":"IF('1. Order'!BB771=\"\",\"\",'1. Order'!BB771)","v":""},{"$f":"IF('1. Order'!BD771=\"\",\"\",'1. Order'!BD771)","v":""},{"$f":"IF('1. Order'!BE771=\"\",\"\",'1. Order'!BE771)","v":""},{"$f":"IF('1. Order'!BF771=\"\",\"\",'1. Order'!BF771)","v":""},{"$f":"IF('1. Order'!BG771=\"\",\"\",'1. Order'!BG771)","v":""},{"$f":"IF('1. Order'!BH771=\"\",\"\",'1. Order'!BH771)","v":"ZWO"}]
[{"$f":"IF('1. Order'!F772=\"\",\"\",'1. Order'!F772)","v":{"$error":"#N/A"}},{"$f":"IF('1. Order'!G772=\"\",\"\",'1. Order'!G772)","v":""},{"$f":"IF('1. Order'!H772=\"\",\"\",'1. Order'!H772)","v":""},{"$f":"IF('1. Order'!I772=\"\",\"\",'1. Order'!I772)","v":""},{"$f":"IF('1. Order'!J772=\"\",\"\",'1. Order'!J772)","v":""},{"$f":"IF('1. Order'!K772=\"\",\"\",'1. Order'!K772)","v":""},{"$f":"IF('1. Order'!L772=\"\",\"\",'1. Order'!L772)","v":""},{"$f":"IF('1. Order'!M772=\"\",\"\",'1. Order'!M772)","v":""},{"$f":"IF('1. Order'!N772=\"\",\"\",'1. Order'!N772)","v":""},{"$f":"IF('1. Order'!O772=\"\",\"\",'1. Order'!O772)","v":{"$error":"#N/A"}},{"$f":"IF('1. Order'!P772=\"\",\"\",'1. Order'!P772)","v":{"$error":"#N/A"}},{"$f":"IF('1. Order'!Q772=\"\",\"\",'1. Order'!Q772)","v":""},{"$f":"IF('1. Order'!S772=\"\",\"\",'1. Order'!S772)","v":""},{"$f":"IF('1. Order'!T772=\"\",\"\",'1. Order'!T772)","v":""},{"$f":"IF('1. Order'!W772=\"\",\"\",'1. Order'!W772)","v":""},{"$f":"IF('1. Order'!X772=\"\",\"\",'1. Order'!X772)","v":""},{"$f":"IF('1. Order'!Y772=\"\",\"\",'1. Order'!Y772)","v":"EUR"},{"$f":"IF('1. Order'!Z772=\"\",\"\",'1. Order'!Z772)","v":""},{"$f":"IF('1. Order'!AA772=\"\",\"\",'1. Order'!AA772)","v":""},{"$f":"IF('1. Order'!AB772=\"\",\"\",'1. Order'!AB772)","v":""},null,{"$f":"IF('1. Order'!AT772=\"\",\"\",'1. Order'!AT772)","v":""},{"$f":"IF('1. Order'!AU772=\"\",\"\",'1. Order'!AU772)","v":""},null,null,null,null,null,null,null,{"$f":"IF('1. Order'!AY772=\"\",\"\",'1. Order'!AY772)","v":""},{"$f":"IF('1. Order'!AZ772=\"\",\"\",'1. Order'!AZ772)","v":""},{"$f":"IF('1. Order'!BA772=\"\",\"\",'1. Order'!BA772)","v":""},{"$f":"IF('1. Order'!BB772=\"\",\"\",'1. Order'!BB772)","v":""},{"$f":"IF('1. Order'!BD772=\"\",\"\",'1. Order'!BD772)","v":""},{"$f":"IF('1. Order'!BE772=\"\",\"\",'1. Order'!BE772)","v":""},{"$f":"IF('1. Order'!BF772=\"\",\"\",'1. Order'!BF772)","v":""},{"$f":"IF('1. Order'!BG772=\"\",\"\",'1. Order'!BG772)","v":""},{"$f":"IF('1. Order'!BH772=\"\",\"\",'1. Order'!BH772)","v":"ZWO"}]
[{"$f":"IF('1. Order'!F773=\"\",\"\",'1. Order'!F773)","v":{"$error":"#N/A"}},{"$f":"IF('1. Order'!G773=\"\",\"\",'1. Order'!G773)","v":""},{"$f":"IF('1. Order'!H773=\"\",\"\",'1. Order'!H773)","v":""},{"$f":"IF('1. Order'!I773=\"\",\"\",'1. Order'!I773)","v":""},{"$f":"IF('1. Order'!J773=\"\",\"\",'1. Order'!J773)","v":""},{"$f":"IF('1. Order'!K773=\"\",\"\",'1. Order'!K773)","v":""},{"$f":"IF('1. Order'!L773=\"\",\"\",'1. Order'!L773)","v":""},{"$f":"IF('1. Order'!M773=\"\",\"\",'1. Order'!M773)","v":""},{"$f":"IF('1. Order'!N773=\"\",\"\",'1. Order'!N773)","v":""},{"$f":"IF('1. Order'!O773=\"\",\"\",'1. Order'!O773)","v":{"$error":"#N/A"}},{"$f":"IF('1. Order'!P773=\"\",\"\",'1. Order'!P773)","v":{"$error":"#N/A"}},{"$f":"IF('1. Order'!Q773=\"\",\"\",'1. Order'!Q773)","v":""},{"$f":"IF('1. Order'!S773=\"\",\"\",'1. Order'!S773)","v":""},{"$f":"IF('1. Order'!T773=\"\",\"\",'1. Order'!T773)","v":""},{"$f":"IF('1. Order'!W773=\"\",\"\",'1. Order'!W773)","v":""},{"$f":"IF('1. Order'!X773=\"\",\"\",'1. Order'!X773)","v":""},{"$f":"IF('1. Order'!Y773=\"\",\"\",'1. Order'!Y773)","v":"EUR"},{"$f":"IF('1. Order'!Z773=\"\",\"\",'1. Order'!Z773)","v":""},{"$f":"IF('1. Order'!AA773=\"\",\"\",'1. Order'!AA773)","v":""},{"$f":"IF('1. Order'!AB773=\"\",\"\",'1. Order'!AB773)","v":""},null,{"$f":"IF('1. Order'!AT773=\"\",\"\",'1. Order'!AT773)","v":""},{"$f":"IF('1. Order'!AU773=\"\",\"\",'1. Order'!AU773)","v":""},null,null,null,null,null,null,null,{"$f":"IF('1. Order'!AY773=\"\",\"\",'1. Order'!AY773)","v":""},{"$f":"IF('1. Order'!AZ773=\"\",\"\",'1. Order'!AZ773)","v":""},{"$f":"IF('1. Order'!BA773=\"\",\"\",'1. Order'!BA773)","v":""},{"$f":"IF('1. Order'!BB773=\"\",\"\",'1. Order'!BB773)","v":""},{"$f":"IF('1. Order'!BD773=\"\",\"\",'1. Order'!BD773)","v":""},{"$f":"IF('1. Order'!BE773=\"\",\"\",'1. Order'!BE773)","v":""},{"$f":"IF('1. Order'!BF773=\"\",\"\",'1. Order'!BF773)","v":""},{"$f":"IF('1. Order'!BG773=\"\",\"\",'1. Order'!BG773)","v":""},{"$f":"IF('1. Order'!BH773=\"\",\"\",'1. Order'!BH773)","v":"ZWO"}]
[{"$f":"IF('1. Order'!F774=\"\",\"\",'1. Order'!F774)","v":{"$error":"#N/A"}},{"$f":"IF('1. Order'!G774=\"\",\"\",'1. Order'!G774)","v":""},{"$f":"IF('1. Order'!H774=\"\",\"\",'1. Order'!H774)","v":""},{"$f":"IF('1. Order'!I774=\"\",\"\",'1. Order'!I774)","v":""},{"$f":"IF('1. Order'!J774=\"\",\"\",'1. Order'!J774)","v":""},{"$f":"IF('1. Order'!K774=\"\",\"\",'1. Order'!K774)","v":""},{"$f":"IF('1. Order'!L774=\"\",\"\",'1. Order'!L774)","v":""},{"$f":"IF('1. Order'!M774=\"\",\"\",'1. Order'!M774)","v":""},{"$f":"IF('1. Order'!N774=\"\",\"\",'1. Order'!N774)","v":""},{"$f":"IF('1. Order'!O774=\"\",\"\",'1. Order'!O774)","v":{"$error":"#N/A"}},{"$f":"IF('1. Order'!P774=\"\",\"\",'1. Order'!P774)","v":{"$error":"#N/A"}},{"$f":"IF('1. Order'!Q774=\"\",\"\",'1. Order'!Q774)","v":""},{"$f":"IF('1. Order'!S774=\"\",\"\",'1. Order'!S774)","v":""},{"$f":"IF('1. Order'!T774=\"\",\"\",'1. Order'!T774)","v":""},{"$f":"IF('1. Order'!W774=\"\",\"\",'1. Order'!W774)","v":""},{"$f":"IF('1. Order'!X774=\"\",\"\",'1. Order'!X774)","v":""},{"$f":"IF('1. Order'!Y774=\"\",\"\",'1. Order'!Y774)","v":"EUR"},{"$f":"IF('1. Order'!Z774=\"\",\"\",'1. Order'!Z774)","v":""},{"$f":"IF('1. Order'!AA774=\"\",\"\",'1. Order'!AA774)","v":""},{"$f":"IF('1. Order'!AB774=\"\",\"\",'1. Order'!AB774)","v":""},null,{"$f":"IF('1. Order'!AT774=\"\",\"\",'1. Order'!AT774)","v":""},{"$f":"IF('1. Order'!AU774=\"\",\"\",'1. Order'!AU774)","v":""},null,null,null,null,null,null,null,{"$f":"IF('1. Order'!AY774=\"\",\"\",'1. Order'!AY774)","v":""},{"$f":"IF('1. Order'!AZ774=\"\",\"\",'1. Order'!AZ774)","v":""},{"$f":"IF('1. Order'!BA774=\"\",\"\",'1. Order'!BA774)","v":""},{"$f":"IF('1. Order'!BB774=\"\",\"\",'1. Order'!BB774)","v":""},{"$f":"IF('1. Order'!BD774=\"\",\"\",'1. Order'!BD774)","v":""},{"$f":"IF('1. Order'!BE774=\"\",\"\",'1. Order'!BE774)","v":""},{"$f":"IF('1. Order'!BF774=\"\",\"\",'1. Order'!BF774)","v":""},{"$f":"IF('1. Order'!BG774=\"\",\"\",'1. Order'!BG774)","v":""},{"$f":"IF('1. Order'!BH774=\"\",\"\",'1. Order'!BH774)","v":"ZWO"}]
[{"$f":"IF('1. Order'!F775=\"\",\"\",'1. Order'!F775)","v":{"$error":"#N/A"}},{"$f":"IF('1. Order'!G775=\"\",\"\",'1. Order'!G775)","v":""},{"$f":"IF('1. Order'!H775=\"\",\"\",'1. Order'!H775)","v":""},{"$f":"IF('1. Order'!I775=\"\",\"\",'1. Order'!I775)","v":""},{"$f":"IF('1. Order'!J775=\"\",\"\",'1. Order'!J775)","v":""},{"$f":"IF('1. Order'!K775=\"\",\"\",'1. Order'!K775)","v":""},{"$f":"IF('1. Order'!L775=\"\",\"\",'1. Order'!L775)","v":""},{"$f":"IF('1. Order'!M775=\"\",\"\",'1. Order'!M775)","v":""},{"$f":"IF('1. Order'!N775=\"\",\"\",'1. Order'!N775)","v":""},{"$f":"IF('1. Order'!O775=\"\",\"\",'1. Order'!O775)","v":{"$error":"#N/A"}},{"$f":"IF('1. Order'!P775=\"\",\"\",'1. Order'!P775)","v":{"$error":"#N/A"}},{"$f":"IF('1. Order'!Q775=\"\",\"\",'1. Order'!Q775)","v":""},{"$f":"IF('1. Order'!S775=\"\",\"\",'1. Order'!S775)","v":""},{"$f":"IF('1. Order'!T775=\"\",\"\",'1. Order'!T775)","v":""},{"$f":"IF('1. Order'!W775=\"\",\"\",'1. Order'!W775)","v":""},{"$f":"IF('1. Order'!X775=\"\",\"\",'1. Order'!X775)","v":""},{"$f":"IF('1. Order'!Y775=\"\",\"\",'1. Order'!Y775)","v":"EUR"},{"$f":"IF('1. Order'!Z775=\"\",\"\",'1. Order'!Z775)","v":""},{"$f":"IF('1. Order'!AA775=\"\",\"\",'1. Order'!AA775)","v":""},{"$f":"IF('1. Order'!AB775=\"\",\"\",'1. Order'!AB775)","v":""},null,{"$f":"IF('1. Order'!AT775=\"\",\"\",'1. Order'!AT775)","v":""},{"$f":"IF('1. Order'!AU775=\"\",\"\",'1. Order'!AU775)","v":""},null,null,null,null,null,null,null,{"$f":"IF('1. Order'!AY775=\"\",\"\",'1. Order'!AY775)","v":""},{"$f":"IF('1. Order'!AZ775=\"\",\"\",'1. Order'!AZ775)","v":""},{"$f":"IF('1. Order'!BA775=\"\",\"\",'1. Order'!BA775)","v":""},{"$f":"IF('1. Order'!BB775=\"\",\"\",'1. Order'!BB775)","v":""},{"$f":"IF('1. Order'!BD775=\"\",\"\",'1. Order'!BD775)","v":""},{"$f":"IF('1. Order'!BE775=\"\",\"\",'1. Order'!BE775)","v":""},{"$f":"IF('1. Order'!BF775=\"\",\"\",'1. Order'!BF775)","v":""},{"$f":"IF('1. Order'!BG775=\"\",\"\",'1. Order'!BG775)","v":""},{"$f":"IF('1. Order'!BH775=\"\",\"\",'1. Order'!BH775)","v":"ZWO"}]
[{"$f":"IF('1. Order'!F776=\"\",\"\",'1. Order'!F776)","v":{"$error":"#N/A"}},{"$f":"IF('1. Order'!G776=\"\",\"\",'1. Order'!G776)","v":""},{"$f":"IF('1. Order'!H776=\"\",\"\",'1. Order'!H776)","v":""},{"$f":"IF('1. Order'!I776=\"\",\"\",'1. Order'!I776)","v":""},{"$f":"IF('1. Order'!J776=\"\",\"\",'1. Order'!J776)","v":""},{"$f":"IF('1. Order'!K776=\"\",\"\",'1. Order'!K776)","v":""},{"$f":"IF('1. Order'!L776=\"\",\"\",'1. Order'!L776)","v":""},{"$f":"IF('1. Order'!M776=\"\",\"\",'1. Order'!M776)","v":""},{"$f":"IF('1. Order'!N776=\"\",\"\",'1. Order'!N776)","v":""},{"$f":"IF('1. Order'!O776=\"\",\"\",'1. Order'!O776)","v":{"$error":"#N/A"}},{"$f":"IF('1. Order'!P776=\"\",\"\",'1. Order'!P776)","v":{"$error":"#N/A"}},{"$f":"IF('1. Order'!Q776=\"\",\"\",'1. Order'!Q776)","v":""},{"$f":"IF('1. Order'!S776=\"\",\"\",'1. Order'!S776)","v":""},{"$f":"IF('1. Order'!T776=\"\",\"\",'1. Order'!T776)","v":""},{"$f":"IF('1. Order'!W776=\"\",\"\",'1. Order'!W776)","v":""},{"$f":"IF('1. Order'!X776=\"\",\"\",'1. Order'!X776)","v":""},{"$f":"IF('1. Order'!Y776=\"\",\"\",'1. Order'!Y776)","v":"EUR"},{"$f":"IF('1. Order'!Z776=\"\",\"\",'1. Order'!Z776)","v":""},{"$f":"IF('1. Order'!AA776=\"\",\"\",'1. Order'!AA776)","v":""},{"$f":"IF('1. Order'!AB776=\"\",\"\",'1. Order'!AB776)","v":""},null,{"$f":"IF('1. Order'!AT776=\"\",\"\",'1. Order'!AT776)","v":""},{"$f":"IF('1. Order'!AU776=\"\",\"\",'1. Order'!AU776)","v":""},null,null,null,null,null,null,null,{"$f":"IF('1. Order'!AY776=\"\",\"\",'1. Order'!AY776)","v":""},{"$f":"IF('1. Order'!AZ776=\"\",\"\",'1. Order'!AZ776)","v":""},{"$f":"IF('1. Order'!BA776=\"\",\"\",'1. Order'!BA776)","v":""},{"$f":"IF('1. Order'!BB776=\"\",\"\",'1. Order'!BB776)","v":""},{"$f":"IF('1. Order'!BD776=\"\",\"\",'1. Order'!BD776)","v":""},{"$f":"IF('1. Order'!BE776=\"\",\"\",'1. Order'!BE776)","v":""},{"$f":"IF('1. Order'!BF776=\"\",\"\",'1. Order'!BF776)","v":""},{"$f":"IF('1. Order'!BG776=\"\",\"\",'1. Order'!BG776)","v":""},{"$f":"IF('1. Order'!BH776=\"\",\"\",'1. Order'!BH776)","v":"ZWO"}]
[{"$f":"IF('1. Order'!F777=\"\",\"\",'1. Order'!F777)","v":{"$error":"#N/A"}},{"$f":"IF('1. Order'!G777=\"\",\"\",'1. Order'!G777)","v":""},{"$f":"IF('1. Order'!H777=\"\",\"\",'1. Order'!H777)","v":""},{"$f":"IF('1. Order'!I777=\"\",\"\",'1. Order'!I777)","v":""},{"$f":"IF('1. Order'!J777=\"\",\"\",'1. Order'!J777)","v":""},{"$f":"IF('1. Order'!K777=\"\",\"\",'1. Order'!K777)","v":""},{"$f":"IF('1. Order'!L777=\"\",\"\",'1. Order'!L777)","v":""},{"$f":"IF('1. Order'!M777=\"\",\"\",'1. Order'!M777)","v":""},{"$f":"IF('1. Order'!N777=\"\",\"\",'1. Order'!N777)","v":""},{"$f":"IF('1. Order'!O777=\"\",\"\",'1. Order'!O777)","v":{"$error":"#N/A"}},{"$f":"IF('1. Order'!P777=\"\",\"\",'1. Order'!P777)","v":{"$error":"#N/A"}},{"$f":"IF('1. Order'!Q777=\"\",\"\",'1. Order'!Q777)","v":""},{"$f":"IF('1. Order'!S777=\"\",\"\",'1. Order'!S777)","v":""},{"$f":"IF('1. Order'!T777=\"\",\"\",'1. Order'!T777)","v":""},{"$f":"IF('1. Order'!W777=\"\",\"\",'1. Order'!W777)","v":""},{"$f":"IF('1. Order'!X777=\"\",\"\",'1. Order'!X777)","v":""},{"$f":"IF('1. Order'!Y777=\"\",\"\",'1. Order'!Y777)","v":"EUR"},{"$f":"IF('1. Order'!Z777=\"\",\"\",'1. Order'!Z777)","v":""},{"$f":"IF('1. Order'!AA777=\"\",\"\",'1. Order'!AA777)","v":""},{"$f":"IF('1. Order'!AB777=\"\",\"\",'1. Order'!AB777)","v":""},null,{"$f":"IF('1. Order'!AT777=\"\",\"\",'1. Order'!AT777)","v":""},{"$f":"IF('1. Order'!AU777=\"\",\"\",'1. Order'!AU777)","v":""},null,null,null,null,null,null,null,{"$f":"IF('1. Order'!AY777=\"\",\"\",'1. Order'!AY777)","v":""},{"$f":"IF('1. Order'!AZ777=\"\",\"\",'1. Order'!AZ777)","v":""},{"$f":"IF('1. Order'!BA777=\"\",\"\",'1. Order'!BA777)","v":""},{"$f":"IF('1. Order'!BB777=\"\",\"\",'1. Order'!BB777)","v":""},{"$f":"IF('1. Order'!BD777=\"\",\"\",'1. Order'!BD777)","v":""},{"$f":"IF('1. Order'!BE777=\"\",\"\",'1. Order'!BE777)","v":""},{"$f":"IF('1. Order'!BF777=\"\",\"\",'1. Order'!BF777)","v":""},{"$f":"IF('1. Order'!BG777=\"\",\"\",'1. Order'!BG777)","v":""},{"$f":"IF('1. Order'!BH777=\"\",\"\",'1. Order'!BH777)","v":"ZWO"}]
[{"$f":"IF('1. Order'!F778=\"\",\"\",'1. Order'!F778)","v":{"$error":"#N/A"}},{"$f":"IF('1. Order'!G778=\"\",\"\",'1. Order'!G778)","v":""},{"$f":"IF('1. Order'!H778=\"\",\"\",'1. Order'!H778)","v":""},{"$f":"IF('1. Order'!I778=\"\",\"\",'1. Order'!I778)","v":""},{"$f":"IF('1. Order'!J778=\"\",\"\",'1. Order'!J778)","v":""},{"$f":"IF('1. Order'!K778=\"\",\"\",'1. Order'!K778)","v":""},{"$f":"IF('1. Order'!L778=\"\",\"\",'1. Order'!L778)","v":""},{"$f":"IF('1. Order'!M778=\"\",\"\",'1. Order'!M778)","v":""},{"$f":"IF('1. Order'!N778=\"\",\"\",'1. Order'!N778)","v":""},{"$f":"IF('1. Order'!O778=\"\",\"\",'1. Order'!O778)","v":{"$error":"#N/A"}},{"$f":"IF('1. Order'!P778=\"\",\"\",'1. Order'!P778)","v":{"$error":"#N/A"}},{"$f":"IF('1. Order'!Q778=\"\",\"\",'1. Order'!Q778)","v":""},{"$f":"IF('1. Order'!S778=\"\",\"\",'1. Order'!S778)","v":""},{"$f":"IF('1. Order'!T778=\"\",\"\",'1. Order'!T778)","v":""},{"$f":"IF('1. Order'!W778=\"\",\"\",'1. Order'!W778)","v":""},{"$f":"IF('1. Order'!X778=\"\",\"\",'1. Order'!X778)","v":""},{"$f":"IF('1. Order'!Y778=\"\",\"\",'1. Order'!Y778)","v":"EUR"},{"$f":"IF('1. Order'!Z778=\"\",\"\",'1. Order'!Z778)","v":""},{"$f":"IF('1. Order'!AA778=\"\",\"\",'1. Order'!AA778)","v":""},{"$f":"IF('1. Order'!AB778=\"\",\"\",'1. Order'!AB778)","v":""},null,{"$f":"IF('1. Order'!AT778=\"\",\"\",'1. Order'!AT778)","v":""},{"$f":"IF('1. Order'!AU778=\"\",\"\",'1. Order'!AU778)","v":""},null,null,null,null,null,null,null,{"$f":"IF('1. Order'!AY778=\"\",\"\",'1. Order'!AY778)","v":""},{"$f":"IF('1. Order'!AZ778=\"\",\"\",'1. Order'!AZ778)","v":""},{"$f":"IF('1. Order'!BA778=\"\",\"\",'1. Order'!BA778)","v":""},{"$f":"IF('1. Order'!BB778=\"\",\"\",'1. Order'!BB778)","v":""},{"$f":"IF('1. Order'!BD778=\"\",\"\",'1. Order'!BD778)","v":""},{"$f":"IF('1. Order'!BE778=\"\",\"\",'1. Order'!BE778)","v":""},{"$f":"IF('1. Order'!BF778=\"\",\"\",'1. Order'!BF778)","v":""},{"$f":"IF('1. Order'!BG778=\"\",\"\",'1. Order'!BG778)","v":""},{"$f":"IF('1. Order'!BH778=\"\",\"\",'1. Order'!BH778)","v":"ZWO"}]
[{"$f":"IF('1. Order'!F779=\"\",\"\",'1. Order'!F779)","v":{"$error":"#N/A"}},{"$f":"IF('1. Order'!G779=\"\",\"\",'1. Order'!G779)","v":""},{"$f":"IF('1. Order'!H779=\"\",\"\",'1. Order'!H779)","v":""},{"$f":"IF('1. Order'!I779=\"\",\"\",'1. Order'!I779)","v":""},{"$f":"IF('1. Order'!J779=\"\",\"\",'1. Order'!J779)","v":""},{"$f":"IF('1. Order'!K779=\"\",\"\",'1. Order'!K779)","v":""},{"$f":"IF('1. Order'!L779=\"\",\"\",'1. Order'!L779)","v":""},{"$f":"IF('1. Order'!M779=\"\",\"\",'1. Order'!M779)","v":""},{"$f":"IF('1. Order'!N779=\"\",\"\",'1. Order'!N779)","v":""},{"$f":"IF('1. Order'!O779=\"\",\"\",'1. Order'!O779)","v":{"$error":"#N/A"}},{"$f":"IF('1. Order'!P779=\"\",\"\",'1. Order'!P779)","v":{"$error":"#N/A"}},{"$f":"IF('1. Order'!Q779=\"\",\"\",'1. Order'!Q779)","v":""},{"$f":"IF('1. Order'!S779=\"\",\"\",'1. Order'!S779)","v":""},{"$f":"IF('1. Order'!T779=\"\",\"\",'1. Order'!T779)","v":""},{"$f":"IF('1. Order'!W779=\"\",\"\",'1. Order'!W779)","v":""},{"$f":"IF('1. Order'!X779=\"\",\"\",'1. Order'!X779)","v":""},{"$f":"IF('1. Order'!Y779=\"\",\"\",'1. Order'!Y779)","v":"EUR"},{"$f":"IF('1. Order'!Z779=\"\",\"\",'1. Order'!Z779)","v":""},{"$f":"IF('1. Order'!AA779=\"\",\"\",'1. Order'!AA779)","v":""},{"$f":"IF('1. Order'!AB779=\"\",\"\",'1. Order'!AB779)","v":""},null,{"$f":"IF('1. Order'!AT779=\"\",\"\",'1. Order'!AT779)","v":""},{"$f":"IF('1. Order'!AU779=\"\",\"\",'1. Order'!AU779)","v":""},null,null,null,null,null,null,null,{"$f":"IF('1. Order'!AY779=\"\",\"\",'1. Order'!AY779)","v":""},{"$f":"IF('1. Order'!AZ779=\"\",\"\",'1. Order'!AZ779)","v":""},{"$f":"IF('1. Order'!BA779=\"\",\"\",'1. Order'!BA779)","v":""},{"$f":"IF('1. Order'!BB779=\"\",\"\",'1. Order'!BB779)","v":""},{"$f":"IF('1. Order'!BD779=\"\",\"\",'1. Order'!BD779)","v":""},{"$f":"IF('1. Order'!BE779=\"\",\"\",'1. Order'!BE779)","v":""},{"$f":"IF('1. Order'!BF779=\"\",\"\",'1. Order'!BF779)","v":""},{"$f":"IF('1. Order'!BG779=\"\",\"\",'1. Order'!BG779)","v":""},{"$f":"IF('1. Order'!BH779=\"\",\"\",'1. Order'!BH779)","v":"ZWO"}]
[{"$f":"IF('1. Order'!F780=\"\",\"\",'1. Order'!F780)","v":{"$error":"#N/A"}},{"$f":"IF('1. Order'!G780=\"\",\"\",'1. Order'!G780)","v":""},{"$f":"IF('1. Order'!H780=\"\",\"\",'1. Order'!H780)","v":""},{"$f":"IF('1. Order'!I780=\"\",\"\",'1. Order'!I780)","v":""},{"$f":"IF('1. Order'!J780=\"\",\"\",'1. Order'!J780)","v":""},{"$f":"IF('1. Order'!K780=\"\",\"\",'1. Order'!K780)","v":""},{"$f":"IF('1. Order'!L780=\"\",\"\",'1. Order'!L780)","v":""},{"$f":"IF('1. Order'!M780=\"\",\"\",'1. Order'!M780)","v":""},{"$f":"IF('1. Order'!N780=\"\",\"\",'1. Order'!N780)","v":""},{"$f":"IF('1. Order'!O780=\"\",\"\",'1. Order'!O780)","v":{"$error":"#N/A"}},{"$f":"IF('1. Order'!P780=\"\",\"\",'1. Order'!P780)","v":{"$error":"#N/A"}},{"$f":"IF('1. Order'!Q780=\"\",\"\",'1. Order'!Q780)","v":""},{"$f":"IF('1. Order'!S780=\"\",\"\",'1. Order'!S780)","v":""},{"$f":"IF('1. Order'!T780=\"\",\"\",'1. Order'!T780)","v":""},{"$f":"IF('1. Order'!W780=\"\",\"\",'1. Order'!W780)","v":""},{"$f":"IF('1. Order'!X780=\"\",\"\",'1. Order'!X780)","v":""},{"$f":"IF('1. Order'!Y780=\"\",\"\",'1. Order'!Y780)","v":"EUR"},{"$f":"IF('1. Order'!Z780=\"\",\"\",'1. Order'!Z780)","v":""},{"$f":"IF('1. Order'!AA780=\"\",\"\",'1. Order'!AA780)","v":""},{"$f":"IF('1. Order'!AB780=\"\",\"\",'1. Order'!AB780)","v":""},null,{"$f":"IF('1. Order'!AT780=\"\",\"\",'1. Order'!AT780)","v":""},{"$f":"IF('1. Order'!AU780=\"\",\"\",'1. Order'!AU780)","v":""},null,null,null,null,null,null,null,{"$f":"IF('1. Order'!AY780=\"\",\"\",'1. Order'!AY780)","v":""},{"$f":"IF('1. Order'!AZ780=\"\",\"\",'1. Order'!AZ780)","v":""},{"$f":"IF('1. Order'!BA780=\"\",\"\",'1. Order'!BA780)","v":""},{"$f":"IF('1. Order'!BB780=\"\",\"\",'1. Order'!BB780)","v":""},{"$f":"IF('1. Order'!BD780=\"\",\"\",'1. Order'!BD780)","v":""},{"$f":"IF('1. Order'!BE780=\"\",\"\",'1. Order'!BE780)","v":""},{"$f":"IF('1. Order'!BF780=\"\",\"\",'1. Order'!BF780)","v":""},{"$f":"IF('1. Order'!BG780=\"\",\"\",'1. Order'!BG780)","v":""},{"$f":"IF('1. Order'!BH780=\"\",\"\",'1. Order'!BH780)","v":"ZWO"}]
[{"$f":"IF('1. Order'!F781=\"\",\"\",'1. Order'!F781)","v":{"$error":"#N/A"}},{"$f":"IF('1. Order'!G781=\"\",\"\",'1. Order'!G781)","v":""},{"$f":"IF('1. Order'!H781=\"\",\"\",'1. Order'!H781)","v":""},{"$f":"IF('1. Order'!I781=\"\",\"\",'1. Order'!I781)","v":""},{"$f":"IF('1. Order'!J781=\"\",\"\",'1. Order'!J781)","v":""},{"$f":"IF('1. Order'!K781=\"\",\"\",'1. Order'!K781)","v":""},{"$f":"IF('1. Order'!L781=\"\",\"\",'1. Order'!L781)","v":""},{"$f":"IF('1. Order'!M781=\"\",\"\",'1. Order'!M781)","v":""},{"$f":"IF('1. Order'!N781=\"\",\"\",'1. Order'!N781)","v":""},{"$f":"IF('1. Order'!O781=\"\",\"\",'1. Order'!O781)","v":{"$error":"#N/A"}},{"$f":"IF('1. Order'!P781=\"\",\"\",'1. Order'!P781)","v":{"$error":"#N/A"}},{"$f":"IF('1. Order'!Q781=\"\",\"\",'1. Order'!Q781)","v":""},{"$f":"IF('1. Order'!S781=\"\",\"\",'1. Order'!S781)","v":""},{"$f":"IF('1. Order'!T781=\"\",\"\",'1. Order'!T781)","v":""},{"$f":"IF('1. Order'!W781=\"\",\"\",'1. Order'!W781)","v":""},{"$f":"IF('1. Order'!X781=\"\",\"\",'1. Order'!X781)","v":""},{"$f":"IF('1. Order'!Y781=\"\",\"\",'1. Order'!Y781)","v":"EUR"},{"$f":"IF('1. Order'!Z781=\"\",\"\",'1. Order'!Z781)","v":""},{"$f":"IF('1. Order'!AA781=\"\",\"\",'1. Order'!AA781)","v":""},{"$f":"IF('1. Order'!AB781=\"\",\"\",'1. Order'!AB781)","v":""},null,{"$f":"IF('1. Order'!AT781=\"\",\"\",'1. Order'!AT781)","v":""},{"$f":"IF('1. Order'!AU781=\"\",\"\",'1. Order'!AU781)","v":""},null,null,null,null,null,null,null,{"$f":"IF('1. Order'!AY781=\"\",\"\",'1. Order'!AY781)","v":""},{"$f":"IF('1. Order'!AZ781=\"\",\"\",'1. Order'!AZ781)","v":""},{"$f":"IF('1. Order'!BA781=\"\",\"\",'1. Order'!BA781)","v":""},{"$f":"IF('1. Order'!BB781=\"\",\"\",'1. Order'!BB781)","v":""},{"$f":"IF('1. Order'!BD781=\"\",\"\",'1. Order'!BD781)","v":""},{"$f":"IF('1. Order'!BE781=\"\",\"\",'1. Order'!BE781)","v":""},{"$f":"IF('1. Order'!BF781=\"\",\"\",'1. Order'!BF781)","v":""},{"$f":"IF('1. Order'!BG781=\"\",\"\",'1. Order'!BG781)","v":""},{"$f":"IF('1. Order'!BH781=\"\",\"\",'1. Order'!BH781)","v":"ZWO"}]
[{"$f":"IF('1. Order'!F782=\"\",\"\",'1. Order'!F782)","v":{"$error":"#N/A"}},{"$f":"IF('1. Order'!G782=\"\",\"\",'1. Order'!G782)","v":""},{"$f":"IF('1. Order'!H782=\"\",\"\",'1. Order'!H782)","v":""},{"$f":"IF('1. Order'!I782=\"\",\"\",'1. Order'!I782)","v":""},{"$f":"IF('1. Order'!J782=\"\",\"\",'1. Order'!J782)","v":""},{"$f":"IF('1. Order'!K782=\"\",\"\",'1. Order'!K782)","v":""},{"$f":"IF('1. Order'!L782=\"\",\"\",'1. Order'!L782)","v":""},{"$f":"IF('1. Order'!M782=\"\",\"\",'1. Order'!M782)","v":""},{"$f":"IF('1. Order'!N782=\"\",\"\",'1. Order'!N782)","v":""},{"$f":"IF('1. Order'!O782=\"\",\"\",'1. Order'!O782)","v":{"$error":"#N/A"}},{"$f":"IF('1. Order'!P782=\"\",\"\",'1. Order'!P782)","v":{"$error":"#N/A"}},{"$f":"IF('1. Order'!Q782=\"\",\"\",'1. Order'!Q782)","v":""},{"$f":"IF('1. Order'!S782=\"\",\"\",'1. Order'!S782)","v":""},{"$f":"IF('1. Order'!T782=\"\",\"\",'1. Order'!T782)","v":""},{"$f":"IF('1. Order'!W782=\"\",\"\",'1. Order'!W782)","v":""},{"$f":"IF('1. Order'!X782=\"\",\"\",'1. Order'!X782)","v":""},{"$f":"IF('1. Order'!Y782=\"\",\"\",'1. Order'!Y782)","v":"EUR"},{"$f":"IF('1. Order'!Z782=\"\",\"\",'1. Order'!Z782)","v":""},{"$f":"IF('1. Order'!AA782=\"\",\"\",'1. Order'!AA782)","v":""},{"$f":"IF('1. Order'!AB782=\"\",\"\",'1. Order'!AB782)","v":""},null,{"$f":"IF('1. Order'!AT782=\"\",\"\",'1. Order'!AT782)","v":""},{"$f":"IF('1. Order'!AU782=\"\",\"\",'1. Order'!AU782)","v":""},null,null,null,null,null,null,null,{"$f":"IF('1. Order'!AY782=\"\",\"\",'1. Order'!AY782)","v":""},{"$f":"IF('1. Order'!AZ782=\"\",\"\",'1. Order'!AZ782)","v":""},{"$f":"IF('1. Order'!BA782=\"\",\"\",'1. Order'!BA782)","v":""},{"$f":"IF('1. Order'!BB782=\"\",\"\",'1. Order'!BB782)","v":""},{"$f":"IF('1. Order'!BD782=\"\",\"\",'1. Order'!BD782)","v":""},{"$f":"IF('1. Order'!BE782=\"\",\"\",'1. Order'!BE782)","v":""},{"$f":"IF('1. Order'!BF782=\"\",\"\",'1. Order'!BF782)","v":""},{"$f":"IF('1. Order'!BG782=\"\",\"\",'1. Order'!BG782)","v":""},{"$f":"IF('1. Order'!BH782=\"\",\"\",'1. Order'!BH782)","v":"ZWO"}]
[{"$f":"IF('1. Order'!F783=\"\",\"\",'1. Order'!F783)","v":{"$error":"#N/A"}},{"$f":"IF('1. Order'!G783=\"\",\"\",'1. Order'!G783)","v":""},{"$f":"IF('1. Order'!H783=\"\",\"\",'1. Order'!H783)","v":""},{"$f":"IF('1. Order'!I783=\"\",\"\",'1. Order'!I783)","v":""},{"$f":"IF('1. Order'!J783=\"\",\"\",'1. Order'!J783)","v":""},{"$f":"IF('1. Order'!K783=\"\",\"\",'1. Order'!K783)","v":""},{"$f":"IF('1. Order'!L783=\"\",\"\",'1. Order'!L783)","v":""},{"$f":"IF('1. Order'!M783=\"\",\"\",'1. Order'!M783)","v":""},{"$f":"IF('1. Order'!N783=\"\",\"\",'1. Order'!N783)","v":""},{"$f":"IF('1. Order'!O783=\"\",\"\",'1. Order'!O783)","v":{"$error":"#N/A"}},{"$f":"IF('1. Order'!P783=\"\",\"\",'1. Order'!P783)","v":{"$error":"#N/A"}},{"$f":"IF('1. Order'!Q783=\"\",\"\",'1. Order'!Q783)","v":""},{"$f":"IF('1. Order'!S783=\"\",\"\",'1. Order'!S783)","v":""},{"$f":"IF('1. Order'!T783=\"\",\"\",'1. Order'!T783)","v":""},{"$f":"IF('1. Order'!W783=\"\",\"\",'1. Order'!W783)","v":""},{"$f":"IF('1. Order'!X783=\"\",\"\",'1. Order'!X783)","v":""},{"$f":"IF('1. Order'!Y783=\"\",\"\",'1. Order'!Y783)","v":"EUR"},{"$f":"IF('1. Order'!Z783=\"\",\"\",'1. Order'!Z783)","v":""},{"$f":"IF('1. Order'!AA783=\"\",\"\",'1. Order'!AA783)","v":""},{"$f":"IF('1. Order'!AB783=\"\",\"\",'1. Order'!AB783)","v":""},null,{"$f":"IF('1. Order'!AT783=\"\",\"\",'1. Order'!AT783)","v":""},{"$f":"IF('1. Order'!AU783=\"\",\"\",'1. Order'!AU783)","v":""},null,null,null,null,null,null,null,{"$f":"IF('1. Order'!AY783=\"\",\"\",'1. Order'!AY783)","v":""},{"$f":"IF('1. Order'!AZ783=\"\",\"\",'1. Order'!AZ783)","v":""},{"$f":"IF('1. Order'!BA783=\"\",\"\",'1. Order'!BA783)","v":""},{"$f":"IF('1. Order'!BB783=\"\",\"\",'1. Order'!BB783)","v":""},{"$f":"IF('1. Order'!BD783=\"\",\"\",'1. Order'!BD783)","v":""},{"$f":"IF('1. Order'!BE783=\"\",\"\",'1. Order'!BE783)","v":""},{"$f":"IF('1. Order'!BF783=\"\",\"\",'1. Order'!BF783)","v":""},{"$f":"IF('1. Order'!BG783=\"\",\"\",'1. Order'!BG783)","v":""},{"$f":"IF('1. Order'!BH783=\"\",\"\",'1. Order'!BH783)","v":"ZWO"}]
[{"$f":"IF('1. Order'!F784=\"\",\"\",'1. Order'!F784)","v":{"$error":"#N/A"}},{"$f":"IF('1. Order'!G784=\"\",\"\",'1. Order'!G784)","v":""},{"$f":"IF('1. Order'!H784=\"\",\"\",'1. Order'!H784)","v":""},{"$f":"IF('1. Order'!I784=\"\",\"\",'1. Order'!I784)","v":""},{"$f":"IF('1. Order'!J784=\"\",\"\",'1. Order'!J784)","v":""},{"$f":"IF('1. Order'!K784=\"\",\"\",'1. Order'!K784)","v":""},{"$f":"IF('1. Order'!L784=\"\",\"\",'1. Order'!L784)","v":""},{"$f":"IF('1. Order'!M784=\"\",\"\",'1. Order'!M784)","v":""},{"$f":"IF('1. Order'!N784=\"\",\"\",'1. Order'!N784)","v":""},{"$f":"IF('1. Order'!O784=\"\",\"\",'1. Order'!O784)","v":{"$error":"#N/A"}},{"$f":"IF('1. Order'!P784=\"\",\"\",'1. Order'!P784)","v":{"$error":"#N/A"}},{"$f":"IF('1. Order'!Q784=\"\",\"\",'1. Order'!Q784)","v":""},{"$f":"IF('1. Order'!S784=\"\",\"\",'1. Order'!S784)","v":""},{"$f":"IF('1. Order'!T784=\"\",\"\",'1. Order'!T784)","v":""},{"$f":"IF('1. Order'!W784=\"\",\"\",'1. Order'!W784)","v":""},{"$f":"IF('1. Order'!X784=\"\",\"\",'1. Order'!X784)","v":""},{"$f":"IF('1. Order'!Y784=\"\",\"\",'1. Order'!Y784)","v":"EUR"},{"$f":"IF('1. Order'!Z784=\"\",\"\",'1. Order'!Z784)","v":""},{"$f":"IF('1. Order'!AA784=\"\",\"\",'1. Order'!AA784)","v":""},{"$f":"IF('1. Order'!AB784=\"\",\"\",'1. Order'!AB784)","v":""},null,{"$f":"IF('1. Order'!AT784=\"\",\"\",'1. Order'!AT784)","v":""},{"$f":"IF('1. Order'!AU784=\"\",\"\",'1. Order'!AU784)","v":""},null,null,null,null,null,null,null,{"$f":"IF('1. Order'!AY784=\"\",\"\",'1. Order'!AY784)","v":""},{"$f":"IF('1. Order'!AZ784=\"\",\"\",'1. Order'!AZ784)","v":""},{"$f":"IF('1. Order'!BA784=\"\",\"\",'1. Order'!BA784)","v":""},{"$f":"IF('1. Order'!BB784=\"\",\"\",'1. Order'!BB784)","v":""},{"$f":"IF('1. Order'!BD784=\"\",\"\",'1. Order'!BD784)","v":""},{"$f":"IF('1. Order'!BE784=\"\",\"\",'1. Order'!BE784)","v":""},{"$f":"IF('1. Order'!BF784=\"\",\"\",'1. Order'!BF784)","v":""},{"$f":"IF('1. Order'!BG784=\"\",\"\",'1. Order'!BG784)","v":""},{"$f":"IF('1. Order'!BH784=\"\",\"\",'1. Order'!BH784)","v":"ZWO"}]
[{"$f":"IF('1. Order'!F785=\"\",\"\",'1. Order'!F785)","v":{"$error":"#N/A"}},{"$f":"IF('1. Order'!G785=\"\",\"\",'1. Order'!G785)","v":""},{"$f":"IF('1. Order'!H785=\"\",\"\",'1. Order'!H785)","v":""},{"$f":"IF('1. Order'!I785=\"\",\"\",'1. Order'!I785)","v":""},{"$f":"IF('1. Order'!J785=\"\",\"\",'1. Order'!J785)","v":""},{"$f":"IF('1. Order'!K785=\"\",\"\",'1. Order'!K785)","v":""},{"$f":"IF('1. Order'!L785=\"\",\"\",'1. Order'!L785)","v":""},{"$f":"IF('1. Order'!M785=\"\",\"\",'1. Order'!M785)","v":""},{"$f":"IF('1. Order'!N785=\"\",\"\",'1. Order'!N785)","v":""},{"$f":"IF('1. Order'!O785=\"\",\"\",'1. Order'!O785)","v":{"$error":"#N/A"}},{"$f":"IF('1. Order'!P785=\"\",\"\",'1. Order'!P785)","v":{"$error":"#N/A"}},{"$f":"IF('1. Order'!Q785=\"\",\"\",'1. Order'!Q785)","v":""},{"$f":"IF('1. Order'!S785=\"\",\"\",'1. Order'!S785)","v":""},{"$f":"IF('1. Order'!T785=\"\",\"\",'1. Order'!T785)","v":""},{"$f":"IF('1. Order'!W785=\"\",\"\",'1. Order'!W785)","v":""},{"$f":"IF('1. Order'!X785=\"\",\"\",'1. Order'!X785)","v":""},{"$f":"IF('1. Order'!Y785=\"\",\"\",'1. Order'!Y785)","v":"EUR"},{"$f":"IF('1. Order'!Z785=\"\",\"\",'1. Order'!Z785)","v":""},{"$f":"IF('1. Order'!AA785=\"\",\"\",'1. Order'!AA785)","v":""},{"$f":"IF('1. Order'!AB785=\"\",\"\",'1. Order'!AB785)","v":""},null,{"$f":"IF('1. Order'!AT785=\"\",\"\",'1. Order'!AT785)","v":""},{"$f":"IF('1. Order'!AU785=\"\",\"\",'1. Order'!AU785)","v":""},null,null,null,null,null,null,null,{"$f":"IF('1. Order'!AY785=\"\",\"\",'1. Order'!AY785)","v":""},{"$f":"IF('1. Order'!AZ785=\"\",\"\",'1. Order'!AZ785)","v":""},{"$f":"IF('1. Order'!BA785=\"\",\"\",'1. Order'!BA785)","v":""},{"$f":"IF('1. Order'!BB785=\"\",\"\",'1. Order'!BB785)","v":""},{"$f":"IF('1. Order'!BD785=\"\",\"\",'1. Order'!BD785)","v":""},{"$f":"IF('1. Order'!BE785=\"\",\"\",'1. Order'!BE785)","v":""},{"$f":"IF('1. Order'!BF785=\"\",\"\",'1. Order'!BF785)","v":""},{"$f":"IF('1. Order'!BG785=\"\",\"\",'1. Order'!BG785)","v":""},{"$f":"IF('1. Order'!BH785=\"\",\"\",'1. Order'!BH785)","v":"ZWO"}]
[{"$f":"IF('1. Order'!F786=\"\",\"\",'1. Order'!F786)","v":{"$error":"#N/A"}},{"$f":"IF('1. Order'!G786=\"\",\"\",'1. Order'!G786)","v":""},{"$f":"IF('1. Order'!H786=\"\",\"\",'1. Order'!H786)","v":""},{"$f":"IF('1. Order'!I786=\"\",\"\",'1. Order'!I786)","v":""},{"$f":"IF('1. Order'!J786=\"\",\"\",'1. Order'!J786)","v":""},{"$f":"IF('1. Order'!K786=\"\",\"\",'1. Order'!K786)","v":""},{"$f":"IF('1. Order'!L786=\"\",\"\",'1. Order'!L786)","v":""},{"$f":"IF('1. Order'!M786=\"\",\"\",'1. Order'!M786)","v":""},{"$f":"IF('1. Order'!N786=\"\",\"\",'1. Order'!N786)","v":""},{"$f":"IF('1. Order'!O786=\"\",\"\",'1. Order'!O786)","v":{"$error":"#N/A"}},{"$f":"IF('1. Order'!P786=\"\",\"\",'1. Order'!P786)","v":{"$error":"#N/A"}},{"$f":"IF('1. Order'!Q786=\"\",\"\",'1. Order'!Q786)","v":""},{"$f":"IF('1. Order'!S786=\"\",\"\",'1. Order'!S786)","v":""},{"$f":"IF('1. Order'!T786=\"\",\"\",'1. Order'!T786)","v":""},{"$f":"IF('1. Order'!W786=\"\",\"\",'1. Order'!W786)","v":""},{"$f":"IF('1. Order'!X786=\"\",\"\",'1. Order'!X786)","v":""},{"$f":"IF('1. Order'!Y786=\"\",\"\",'1. Order'!Y786)","v":"EUR"},{"$f":"IF('1. Order'!Z786=\"\",\"\",'1. Order'!Z786)","v":""},{"$f":"IF('1. Order'!AA786=\"\",\"\",'1. Order'!AA786)","v":""},{"$f":"IF('1. Order'!AB786=\"\",\"\",'1. Order'!AB786)","v":""},null,{"$f":"IF('1. Order'!AT786=\"\",\"\",'1. Order'!AT786)","v":""},{"$f":"IF('1. Order'!AU786=\"\",\"\",'1. Order'!AU786)","v":""},null,null,null,null,null,null,null,{"$f":"IF('1. Order'!AY786=\"\",\"\",'1. Order'!AY786)","v":""},{"$f":"IF('1. Order'!AZ786=\"\",\"\",'1. Order'!AZ786)","v":""},{"$f":"IF('1. Order'!BA786=\"\",\"\",'1. Order'!BA786)","v":""},{"$f":"IF('1. Order'!BB786=\"\",\"\",'1. Order'!BB786)","v":""},{"$f":"IF('1. Order'!BD786=\"\",\"\",'1. Order'!BD786)","v":""},{"$f":"IF('1. Order'!BE786=\"\",\"\",'1. Order'!BE786)","v":""},{"$f":"IF('1. Order'!BF786=\"\",\"\",'1. Order'!BF786)","v":""},{"$f":"IF('1. Order'!BG786=\"\",\"\",'1. Order'!BG786)","v":""},{"$f":"IF('1. Order'!BH786=\"\",\"\",'1. Order'!BH786)","v":"ZWO"}]
[{"$f":"IF('1. Order'!F787=\"\",\"\",'1. Order'!F787)","v":{"$error":"#N/A"}},{"$f":"IF('1. Order'!G787=\"\",\"\",'1. Order'!G787)","v":""},{"$f":"IF('1. Order'!H787=\"\",\"\",'1. Order'!H787)","v":""},{"$f":"IF('1. Order'!I787=\"\",\"\",'1. Order'!I787)","v":""},{"$f":"IF('1. Order'!J787=\"\",\"\",'1. Order'!J787)","v":""},{"$f":"IF('1. Order'!K787=\"\",\"\",'1. Order'!K787)","v":""},{"$f":"IF('1. Order'!L787=\"\",\"\",'1. Order'!L787)","v":""},{"$f":"IF('1. Order'!M787=\"\",\"\",'1. Order'!M787)","v":""},{"$f":"IF('1. Order'!N787=\"\",\"\",'1. Order'!N787)","v":""},{"$f":"IF('1. Order'!O787=\"\",\"\",'1. Order'!O787)","v":{"$error":"#N/A"}},{"$f":"IF('1. Order'!P787=\"\",\"\",'1. Order'!P787)","v":{"$error":"#N/A"}},{"$f":"IF('1. Order'!Q787=\"\",\"\",'1. Order'!Q787)","v":""},{"$f":"IF('1. Order'!S787=\"\",\"\",'1. Order'!S787)","v":""},{"$f":"IF('1. Order'!T787=\"\",\"\",'1. Order'!T787)","v":""},{"$f":"IF('1. Order'!W787=\"\",\"\",'1. Order'!W787)","v":""},{"$f":"IF('1. Order'!X787=\"\",\"\",'1. Order'!X787)","v":""},{"$f":"IF('1. Order'!Y787=\"\",\"\",'1. Order'!Y787)","v":"EUR"},{"$f":"IF('1. Order'!Z787=\"\",\"\",'1. Order'!Z787)","v":""},{"$f":"IF('1. Order'!AA787=\"\",\"\",'1. Order'!AA787)","v":""},{"$f":"IF('1. Order'!AB787=\"\",\"\",'1. Order'!AB787)","v":""},null,{"$f":"IF('1. Order'!AT787=\"\",\"\",'1. Order'!AT787)","v":""},{"$f":"IF('1. Order'!AU787=\"\",\"\",'1. Order'!AU787)","v":""},null,null,null,null,null,null,null,{"$f":"IF('1. Order'!AY787=\"\",\"\",'1. Order'!AY787)","v":""},{"$f":"IF('1. Order'!AZ787=\"\",\"\",'1. Order'!AZ787)","v":""},{"$f":"IF('1. Order'!BA787=\"\",\"\",'1. Order'!BA787)","v":""},{"$f":"IF('1. Order'!BB787=\"\",\"\",'1. Order'!BB787)","v":""},{"$f":"IF('1. Order'!BD787=\"\",\"\",'1. Order'!BD787)","v":""},{"$f":"IF('1. Order'!BE787=\"\",\"\",'1. Order'!BE787)","v":""},{"$f":"IF('1. Order'!BF787=\"\",\"\",'1. Order'!BF787)","v":""},{"$f":"IF('1. Order'!BG787=\"\",\"\",'1. Order'!BG787)","v":""},{"$f":"IF('1. Order'!BH787=\"\",\"\",'1. Order'!BH787)","v":"ZWO"}]
[{"$f":"IF('1. Order'!F788=\"\",\"\",'1. Order'!F788)","v":{"$error":"#N/A"}},{"$f":"IF('1. Order'!G788=\"\",\"\",'1. Order'!G788)","v":""},{"$f":"IF('1. Order'!H788=\"\",\"\",'1. Order'!H788)","v":""},{"$f":"IF('1. Order'!I788=\"\",\"\",'1. Order'!I788)","v":""},{"$f":"IF('1. Order'!J788=\"\",\"\",'1. Order'!J788)","v":""},{"$f":"IF('1. Order'!K788=\"\",\"\",'1. Order'!K788)","v":""},{"$f":"IF('1. Order'!L788=\"\",\"\",'1. Order'!L788)","v":""},{"$f":"IF('1. Order'!M788=\"\",\"\",'1. Order'!M788)","v":""},{"$f":"IF('1. Order'!N788=\"\",\"\",'1. Order'!N788)","v":""},{"$f":"IF('1. Order'!O788=\"\",\"\",'1. Order'!O788)","v":{"$error":"#N/A"}},{"$f":"IF('1. Order'!P788=\"\",\"\",'1. Order'!P788)","v":{"$error":"#N/A"}},{"$f":"IF('1. Order'!Q788=\"\",\"\",'1. Order'!Q788)","v":""},{"$f":"IF('1. Order'!S788=\"\",\"\",'1. Order'!S788)","v":""},{"$f":"IF('1. Order'!T788=\"\",\"\",'1. Order'!T788)","v":""},{"$f":"IF('1. Order'!W788=\"\",\"\",'1. Order'!W788)","v":""},{"$f":"IF('1. Order'!X788=\"\",\"\",'1. Order'!X788)","v":""},{"$f":"IF('1. Order'!Y788=\"\",\"\",'1. Order'!Y788)","v":"EUR"},{"$f":"IF('1. Order'!Z788=\"\",\"\",'1. Order'!Z788)","v":""},{"$f":"IF('1. Order'!AA788=\"\",\"\",'1. Order'!AA788)","v":""},{"$f":"IF('1. Order'!AB788=\"\",\"\",'1. Order'!AB788)","v":""},null,{"$f":"IF('1. Order'!AT788=\"\",\"\",'1. Order'!AT788)","v":""},{"$f":"IF('1. Order'!AU788=\"\",\"\",'1. Order'!AU788)","v":""},null,null,null,null,null,null,null,{"$f":"IF('1. Order'!AY788=\"\",\"\",'1. Order'!AY788)","v":""},{"$f":"IF('1. Order'!AZ788=\"\",\"\",'1. Order'!AZ788)","v":""},{"$f":"IF('1. Order'!BA788=\"\",\"\",'1. Order'!BA788)","v":""},{"$f":"IF('1. Order'!BB788=\"\",\"\",'1. Order'!BB788)","v":""},{"$f":"IF('1. Order'!BD788=\"\",\"\",'1. Order'!BD788)","v":""},{"$f":"IF('1. Order'!BE788=\"\",\"\",'1. Order'!BE788)","v":""},{"$f":"IF('1. Order'!BF788=\"\",\"\",'1. Order'!BF788)","v":""},{"$f":"IF('1. Order'!BG788=\"\",\"\",'1. Order'!BG788)","v":""},{"$f":"IF('1. Order'!BH788=\"\",\"\",'1. Order'!BH788)","v":"ZWO"}]
[{"$f":"IF('1. Order'!F789=\"\",\"\",'1. Order'!F789)","v":{"$error":"#N/A"}},{"$f":"IF('1. Order'!G789=\"\",\"\",'1. Order'!G789)","v":""},{"$f":"IF('1. Order'!H789=\"\",\"\",'1. Order'!H789)","v":""},{"$f":"IF('1. Order'!I789=\"\",\"\",'1. Order'!I789)","v":""},{"$f":"IF('1. Order'!J789=\"\",\"\",'1. Order'!J789)","v":""},{"$f":"IF('1. Order'!K789=\"\",\"\",'1. Order'!K789)","v":""},{"$f":"IF('1. Order'!L789=\"\",\"\",'1. Order'!L789)","v":""},{"$f":"IF('1. Order'!M789=\"\",\"\",'1. Order'!M789)","v":""},{"$f":"IF('1. Order'!N789=\"\",\"\",'1. Order'!N789)","v":""},{"$f":"IF('1. Order'!O789=\"\",\"\",'1. Order'!O789)","v":{"$error":"#N/A"}},{"$f":"IF('1. Order'!P789=\"\",\"\",'1. Order'!P789)","v":{"$error":"#N/A"}},{"$f":"IF('1. Order'!Q789=\"\",\"\",'1. Order'!Q789)","v":""},{"$f":"IF('1. Order'!S789=\"\",\"\",'1. Order'!S789)","v":""},{"$f":"IF('1. Order'!T789=\"\",\"\",'1. Order'!T789)","v":""},{"$f":"IF('1. Order'!W789=\"\",\"\",'1. Order'!W789)","v":""},{"$f":"IF('1. Order'!X789=\"\",\"\",'1. Order'!X789)","v":""},{"$f":"IF('1. Order'!Y789=\"\",\"\",'1. Order'!Y789)","v":"EUR"},{"$f":"IF('1. Order'!Z789=\"\",\"\",'1. Order'!Z789)","v":""},{"$f":"IF('1. Order'!AA789=\"\",\"\",'1. Order'!AA789)","v":""},{"$f":"IF('1. Order'!AB789=\"\",\"\",'1. Order'!AB789)","v":""},null,{"$f":"IF('1. Order'!AT789=\"\",\"\",'1. Order'!AT789)","v":""},{"$f":"IF('1. Order'!AU789=\"\",\"\",'1. Order'!AU789)","v":""},null,null,null,null,null,null,null,{"$f":"IF('1. Order'!AY789=\"\",\"\",'1. Order'!AY789)","v":""},{"$f":"IF('1. Order'!AZ789=\"\",\"\",'1. Order'!AZ789)","v":""},{"$f":"IF('1. Order'!BA789=\"\",\"\",'1. Order'!BA789)","v":""},{"$f":"IF('1. Order'!BB789=\"\",\"\",'1. Order'!BB789)","v":""},{"$f":"IF('1. Order'!BD789=\"\",\"\",'1. Order'!BD789)","v":""},{"$f":"IF('1. Order'!BE789=\"\",\"\",'1. Order'!BE789)","v":""},{"$f":"IF('1. Order'!BF789=\"\",\"\",'1. Order'!BF789)","v":""},{"$f":"IF('1. Order'!BG789=\"\",\"\",'1. Order'!BG789)","v":""},{"$f":"IF('1. Order'!BH789=\"\",\"\",'1. Order'!BH789)","v":"ZWO"}]
[{"$f":"IF('1. Order'!F790=\"\",\"\",'1. Order'!F790)","v":{"$error":"#N/A"}},{"$f":"IF('1. Order'!G790=\"\",\"\",'1. Order'!G790)","v":""},{"$f":"IF('1. Order'!H790=\"\",\"\",'1. Order'!H790)","v":""},{"$f":"IF('1. Order'!I790=\"\",\"\",'1. Order'!I790)","v":""},{"$f":"IF('1. Order'!J790=\"\",\"\",'1. Order'!J790)","v":""},{"$f":"IF('1. Order'!K790=\"\",\"\",'1. Order'!K790)","v":""},{"$f":"IF('1. Order'!L790=\"\",\"\",'1. Order'!L790)","v":""},{"$f":"IF('1. Order'!M790=\"\",\"\",'1. Order'!M790)","v":""},{"$f":"IF('1. Order'!N790=\"\",\"\",'1. Order'!N790)","v":""},{"$f":"IF('1. Order'!O790=\"\",\"\",'1. Order'!O790)","v":{"$error":"#N/A"}},{"$f":"IF('1. Order'!P790=\"\",\"\",'1. Order'!P790)","v":{"$error":"#N/A"}},{"$f":"IF('1. Order'!Q790=\"\",\"\",'1. Order'!Q790)","v":""},{"$f":"IF('1. Order'!S790=\"\",\"\",'1. Order'!S790)","v":""},{"$f":"IF('1. Order'!T790=\"\",\"\",'1. Order'!T790)","v":""},{"$f":"IF('1. Order'!W790=\"\",\"\",'1. Order'!W790)","v":""},{"$f":"IF('1. Order'!X790=\"\",\"\",'1. Order'!X790)","v":""},{"$f":"IF('1. Order'!Y790=\"\",\"\",'1. Order'!Y790)","v":"EUR"},{"$f":"IF('1. Order'!Z790=\"\",\"\",'1. Order'!Z790)","v":""},{"$f":"IF('1. Order'!AA790=\"\",\"\",'1. Order'!AA790)","v":""},{"$f":"IF('1. Order'!AB790=\"\",\"\",'1. Order'!AB790)","v":""},null,{"$f":"IF('1. Order'!AT790=\"\",\"\",'1. Order'!AT790)","v":""},{"$f":"IF('1. Order'!AU790=\"\",\"\",'1. Order'!AU790)","v":""},null,null,null,null,null,null,null,{"$f":"IF('1. Order'!AY790=\"\",\"\",'1. Order'!AY790)","v":""},{"$f":"IF('1. Order'!AZ790=\"\",\"\",'1. Order'!AZ790)","v":""},{"$f":"IF('1. Order'!BA790=\"\",\"\",'1. Order'!BA790)","v":""},{"$f":"IF('1. Order'!BB790=\"\",\"\",'1. Order'!BB790)","v":""},{"$f":"IF('1. Order'!BD790=\"\",\"\",'1. Order'!BD790)","v":""},{"$f":"IF('1. Order'!BE790=\"\",\"\",'1. Order'!BE790)","v":""},{"$f":"IF('1. Order'!BF790=\"\",\"\",'1. Order'!BF790)","v":""},{"$f":"IF('1. Order'!BG790=\"\",\"\",'1. Order'!BG790)","v":""},{"$f":"IF('1. Order'!BH790=\"\",\"\",'1. Order'!BH790)","v":"ZWO"}]
[{"$f":"IF('1. Order'!F791=\"\",\"\",'1. Order'!F791)","v":{"$error":"#N/A"}},{"$f":"IF('1. Order'!G791=\"\",\"\",'1. Order'!G791)","v":""},{"$f":"IF('1. Order'!H791=\"\",\"\",'1. Order'!H791)","v":""},{"$f":"IF('1. Order'!I791=\"\",\"\",'1. Order'!I791)","v":""},{"$f":"IF('1. Order'!J791=\"\",\"\",'1. Order'!J791)","v":""},{"$f":"IF('1. Order'!K791=\"\",\"\",'1. Order'!K791)","v":""},{"$f":"IF('1. Order'!L791=\"\",\"\",'1. Order'!L791)","v":""},{"$f":"IF('1. Order'!M791=\"\",\"\",'1. Order'!M791)","v":""},{"$f":"IF('1. Order'!N791=\"\",\"\",'1. Order'!N791)","v":""},{"$f":"IF('1. Order'!O791=\"\",\"\",'1. Order'!O791)","v":{"$error":"#N/A"}},{"$f":"IF('1. Order'!P791=\"\",\"\",'1. Order'!P791)","v":{"$error":"#N/A"}},{"$f":"IF('1. Order'!Q791=\"\",\"\",'1. Order'!Q791)","v":""},{"$f":"IF('1. Order'!S791=\"\",\"\",'1. Order'!S791)","v":""},{"$f":"IF('1. Order'!T791=\"\",\"\",'1. Order'!T791)","v":""},{"$f":"IF('1. Order'!W791=\"\",\"\",'1. Order'!W791)","v":""},{"$f":"IF('1. Order'!X791=\"\",\"\",'1. Order'!X791)","v":""},{"$f":"IF('1. Order'!Y791=\"\",\"\",'1. Order'!Y791)","v":"EUR"},{"$f":"IF('1. Order'!Z791=\"\",\"\",'1. Order'!Z791)","v":""},{"$f":"IF('1. Order'!AA791=\"\",\"\",'1. Order'!AA791)","v":""},{"$f":"IF('1. Order'!AB791=\"\",\"\",'1. Order'!AB791)","v":""},null,{"$f":"IF('1. Order'!AT791=\"\",\"\",'1. Order'!AT791)","v":""},{"$f":"IF('1. Order'!AU791=\"\",\"\",'1. Order'!AU791)","v":""},null,null,null,null,null,null,null,{"$f":"IF('1. Order'!AY791=\"\",\"\",'1. Order'!AY791)","v":""},{"$f":"IF('1. Order'!AZ791=\"\",\"\",'1. Order'!AZ791)","v":""},{"$f":"IF('1. Order'!BA791=\"\",\"\",'1. Order'!BA791)","v":""},{"$f":"IF('1. Order'!BB791=\"\",\"\",'1. Order'!BB791)","v":""},{"$f":"IF('1. Order'!BD791=\"\",\"\",'1. Order'!BD791)","v":""},{"$f":"IF('1. Order'!BE791=\"\",\"\",'1. Order'!BE791)","v":""},{"$f":"IF('1. Order'!BF791=\"\",\"\",'1. Order'!BF791)","v":""},{"$f":"IF('1. Order'!BG791=\"\",\"\",'1. Order'!BG791)","v":""},{"$f":"IF('1. Order'!BH791=\"\",\"\",'1. Order'!BH791)","v":"ZWO"}]
[{"$f":"IF('1. Order'!F792=\"\",\"\",'1. Order'!F792)","v":{"$error":"#N/A"}},{"$f":"IF('1. Order'!G792=\"\",\"\",'1. Order'!G792)","v":""},{"$f":"IF('1. Order'!H792=\"\",\"\",'1. Order'!H792)","v":""},{"$f":"IF('1. Order'!I792=\"\",\"\",'1. Order'!I792)","v":""},{"$f":"IF('1. Order'!J792=\"\",\"\",'1. Order'!J792)","v":""},{"$f":"IF('1. Order'!K792=\"\",\"\",'1. Order'!K792)","v":""},{"$f":"IF('1. Order'!L792=\"\",\"\",'1. Order'!L792)","v":""},{"$f":"IF('1. Order'!M792=\"\",\"\",'1. Order'!M792)","v":""},{"$f":"IF('1. Order'!N792=\"\",\"\",'1. Order'!N792)","v":""},{"$f":"IF('1. Order'!O792=\"\",\"\",'1. Order'!O792)","v":{"$error":"#N/A"}},{"$f":"IF('1. Order'!P792=\"\",\"\",'1. Order'!P792)","v":{"$error":"#N/A"}},{"$f":"IF('1. Order'!Q792=\"\",\"\",'1. Order'!Q792)","v":""},{"$f":"IF('1. Order'!S792=\"\",\"\",'1. Order'!S792)","v":""},{"$f":"IF('1. Order'!T792=\"\",\"\",'1. Order'!T792)","v":""},{"$f":"IF('1. Order'!W792=\"\",\"\",'1. Order'!W792)","v":""},{"$f":"IF('1. Order'!X792=\"\",\"\",'1. Order'!X792)","v":""},{"$f":"IF('1. Order'!Y792=\"\",\"\",'1. Order'!Y792)","v":"EUR"},{"$f":"IF('1. Order'!Z792=\"\",\"\",'1. Order'!Z792)","v":""},{"$f":"IF('1. Order'!AA792=\"\",\"\",'1. Order'!AA792)","v":""},{"$f":"IF('1. Order'!AB792=\"\",\"\",'1. Order'!AB792)","v":""},null,{"$f":"IF('1. Order'!AT792=\"\",\"\",'1. Order'!AT792)","v":""},{"$f":"IF('1. Order'!AU792=\"\",\"\",'1. Order'!AU792)","v":""},null,null,null,null,null,null,null,{"$f":"IF('1. Order'!AY792=\"\",\"\",'1. Order'!AY792)","v":""},{"$f":"IF('1. Order'!AZ792=\"\",\"\",'1. Order'!AZ792)","v":""},{"$f":"IF('1. Order'!BA792=\"\",\"\",'1. Order'!BA792)","v":""},{"$f":"IF('1. Order'!BB792=\"\",\"\",'1. Order'!BB792)","v":""},{"$f":"IF('1. Order'!BD792=\"\",\"\",'1. Order'!BD792)","v":""},{"$f":"IF('1. Order'!BE792=\"\",\"\",'1. Order'!BE792)","v":""},{"$f":"IF('1. Order'!BF792=\"\",\"\",'1. Order'!BF792)","v":""},{"$f":"IF('1. Order'!BG792=\"\",\"\",'1. Order'!BG792)","v":""},{"$f":"IF('1. Order'!BH792=\"\",\"\",'1. Order'!BH792)","v":"ZWO"}]
[{"$f":"IF('1. Order'!F793=\"\",\"\",'1. Order'!F793)","v":{"$error":"#N/A"}},{"$f":"IF('1. Order'!G793=\"\",\"\",'1. Order'!G793)","v":""},{"$f":"IF('1. Order'!H793=\"\",\"\",'1. Order'!H793)","v":""},{"$f":"IF('1. Order'!I793=\"\",\"\",'1. Order'!I793)","v":""},{"$f":"IF('1. Order'!J793=\"\",\"\",'1. Order'!J793)","v":""},{"$f":"IF('1. Order'!K793=\"\",\"\",'1. Order'!K793)","v":""},{"$f":"IF('1. Order'!L793=\"\",\"\",'1. Order'!L793)","v":""},{"$f":"IF('1. Order'!M793=\"\",\"\",'1. Order'!M793)","v":""},{"$f":"IF('1. Order'!N793=\"\",\"\",'1. Order'!N793)","v":""},{"$f":"IF('1. Order'!O793=\"\",\"\",'1. Order'!O793)","v":{"$error":"#N/A"}},{"$f":"IF('1. Order'!P793=\"\",\"\",'1. Order'!P793)","v":{"$error":"#N/A"}},{"$f":"IF('1. Order'!Q793=\"\",\"\",'1. Order'!Q793)","v":""},{"$f":"IF('1. Order'!S793=\"\",\"\",'1. Order'!S793)","v":""},{"$f":"IF('1. Order'!T793=\"\",\"\",'1. Order'!T793)","v":""},{"$f":"IF('1. Order'!W793=\"\",\"\",'1. Order'!W793)","v":""},{"$f":"IF('1. Order'!X793=\"\",\"\",'1. Order'!X793)","v":""},{"$f":"IF('1. Order'!Y793=\"\",\"\",'1. Order'!Y793)","v":"EUR"},{"$f":"IF('1. Order'!Z793=\"\",\"\",'1. Order'!Z793)","v":""},{"$f":"IF('1. Order'!AA793=\"\",\"\",'1. Order'!AA793)","v":""},{"$f":"IF('1. Order'!AB793=\"\",\"\",'1. Order'!AB793)","v":""},null,{"$f":"IF('1. Order'!AT793=\"\",\"\",'1. Order'!AT793)","v":""},{"$f":"IF('1. Order'!AU793=\"\",\"\",'1. Order'!AU793)","v":""},null,null,null,null,null,null,null,{"$f":"IF('1. Order'!AY793=\"\",\"\",'1. Order'!AY793)","v":""},{"$f":"IF('1. Order'!AZ793=\"\",\"\",'1. Order'!AZ793)","v":""},{"$f":"IF('1. Order'!BA793=\"\",\"\",'1. Order'!BA793)","v":""},{"$f":"IF('1. Order'!BB793=\"\",\"\",'1. Order'!BB793)","v":""},{"$f":"IF('1. Order'!BD793=\"\",\"\",'1. Order'!BD793)","v":""},{"$f":"IF('1. Order'!BE793=\"\",\"\",'1. Order'!BE793)","v":""},{"$f":"IF('1. Order'!BF793=\"\",\"\",'1. Order'!BF793)","v":""},{"$f":"IF('1. Order'!BG793=\"\",\"\",'1. Order'!BG793)","v":""},{"$f":"IF('1. Order'!BH793=\"\",\"\",'1. Order'!BH793)","v":"ZWO"}]
[{"$f":"IF('1. Order'!F794=\"\",\"\",'1. Order'!F794)","v":{"$error":"#N/A"}},{"$f":"IF('1. Order'!G794=\"\",\"\",'1. Order'!G794)","v":""},{"$f":"IF('1. Order'!H794=\"\",\"\",'1. Order'!H794)","v":""},{"$f":"IF('1. Order'!I794=\"\",\"\",'1. Order'!I794)","v":""},{"$f":"IF('1. Order'!J794=\"\",\"\",'1. Order'!J794)","v":""},{"$f":"IF('1. Order'!K794=\"\",\"\",'1. Order'!K794)","v":""},{"$f":"IF('1. Order'!L794=\"\",\"\",'1. Order'!L794)","v":""},{"$f":"IF('1. Order'!M794=\"\",\"\",'1. Order'!M794)","v":""},{"$f":"IF('1. Order'!N794=\"\",\"\",'1. Order'!N794)","v":""},{"$f":"IF('1. Order'!O794=\"\",\"\",'1. Order'!O794)","v":{"$error":"#N/A"}},{"$f":"IF('1. Order'!P794=\"\",\"\",'1. Order'!P794)","v":{"$error":"#N/A"}},{"$f":"IF('1. Order'!Q794=\"\",\"\",'1. Order'!Q794)","v":""},{"$f":"IF('1. Order'!S794=\"\",\"\",'1. Order'!S794)","v":""},{"$f":"IF('1. Order'!T794=\"\",\"\",'1. Order'!T794)","v":""},{"$f":"IF('1. Order'!W794=\"\",\"\",'1. Order'!W794)","v":""},{"$f":"IF('1. Order'!X794=\"\",\"\",'1. Order'!X794)","v":""},{"$f":"IF('1. Order'!Y794=\"\",\"\",'1. Order'!Y794)","v":"EUR"},{"$f":"IF('1. Order'!Z794=\"\",\"\",'1. Order'!Z794)","v":""},{"$f":"IF('1. Order'!AA794=\"\",\"\",'1. Order'!AA794)","v":""},{"$f":"IF('1. Order'!AB794=\"\",\"\",'1. Order'!AB794)","v":""},null,{"$f":"IF('1. Order'!AT794=\"\",\"\",'1. Order'!AT794)","v":""},{"$f":"IF('1. Order'!AU794=\"\",\"\",'1. Order'!AU794)","v":""},null,null,null,null,null,null,null,{"$f":"IF('1. Order'!AY794=\"\",\"\",'1. Order'!AY794)","v":""},{"$f":"IF('1. Order'!AZ794=\"\",\"\",'1. Order'!AZ794)","v":""},{"$f":"IF('1. Order'!BA794=\"\",\"\",'1. Order'!BA794)","v":""},{"$f":"IF('1. Order'!BB794=\"\",\"\",'1. Order'!BB794)","v":""},{"$f":"IF('1. Order'!BD794=\"\",\"\",'1. Order'!BD794)","v":""},{"$f":"IF('1. Order'!BE794=\"\",\"\",'1. Order'!BE794)","v":""},{"$f":"IF('1. Order'!BF794=\"\",\"\",'1. Order'!BF794)","v":""},{"$f":"IF('1. Order'!BG794=\"\",\"\",'1. Order'!BG794)","v":""},{"$f":"IF('1. Order'!BH794=\"\",\"\",'1. Order'!BH794)","v":"ZWO"}]
[{"$f":"IF('1. Order'!F795=\"\",\"\",'1. Order'!F795)","v":{"$error":"#N/A"}},{"$f":"IF('1. Order'!G795=\"\",\"\",'1. Order'!G795)","v":""},{"$f":"IF('1. Order'!H795=\"\",\"\",'1. Order'!H795)","v":""},{"$f":"IF('1. Order'!I795=\"\",\"\",'1. Order'!I795)","v":""},{"$f":"IF('1. Order'!J795=\"\",\"\",'1. Order'!J795)","v":""},{"$f":"IF('1. Order'!K795=\"\",\"\",'1. Order'!K795)","v":""},{"$f":"IF('1. Order'!L795=\"\",\"\",'1. Order'!L795)","v":""},{"$f":"IF('1. Order'!M795=\"\",\"\",'1. Order'!M795)","v":""},{"$f":"IF('1. Order'!N795=\"\",\"\",'1. Order'!N795)","v":""},{"$f":"IF('1. Order'!O795=\"\",\"\",'1. Order'!O795)","v":{"$error":"#N/A"}},{"$f":"IF('1. Order'!P795=\"\",\"\",'1. Order'!P795)","v":{"$error":"#N/A"}},{"$f":"IF('1. Order'!Q795=\"\",\"\",'1. Order'!Q795)","v":""},{"$f":"IF('1. Order'!S795=\"\",\"\",'1. Order'!S795)","v":""},{"$f":"IF('1. Order'!T795=\"\",\"\",'1. Order'!T795)","v":""},{"$f":"IF('1. Order'!W795=\"\",\"\",'1. Order'!W795)","v":""},{"$f":"IF('1. Order'!X795=\"\",\"\",'1. Order'!X795)","v":""},{"$f":"IF('1. Order'!Y795=\"\",\"\",'1. Order'!Y795)","v":"EUR"},{"$f":"IF('1. Order'!Z795=\"\",\"\",'1. Order'!Z795)","v":""},{"$f":"IF('1. Order'!AA795=\"\",\"\",'1. Order'!AA795)","v":""},{"$f":"IF('1. Order'!AB795=\"\",\"\",'1. Order'!AB795)","v":""},null,{"$f":"IF('1. Order'!AT795=\"\",\"\",'1. Order'!AT795)","v":""},{"$f":"IF('1. Order'!AU795=\"\",\"\",'1. Order'!AU795)","v":""},null,null,null,null,null,null,null,{"$f":"IF('1. Order'!AY795=\"\",\"\",'1. Order'!AY795)","v":""},{"$f":"IF('1. Order'!AZ795=\"\",\"\",'1. Order'!AZ795)","v":""},{"$f":"IF('1. Order'!BA795=\"\",\"\",'1. Order'!BA795)","v":""},{"$f":"IF('1. Order'!BB795=\"\",\"\",'1. Order'!BB795)","v":""},{"$f":"IF('1. Order'!BD795=\"\",\"\",'1. Order'!BD795)","v":""},{"$f":"IF('1. Order'!BE795=\"\",\"\",'1. Order'!BE795)","v":""},{"$f":"IF('1. Order'!BF795=\"\",\"\",'1. Order'!BF795)","v":""},{"$f":"IF('1. Order'!BG795=\"\",\"\",'1. Order'!BG795)","v":""},{"$f":"IF('1. Order'!BH795=\"\",\"\",'1. Order'!BH795)","v":"ZWO"}]
[{"$f":"IF('1. Order'!F796=\"\",\"\",'1. Order'!F796)","v":{"$error":"#N/A"}},{"$f":"IF('1. Order'!G796=\"\",\"\",'1. Order'!G796)","v":""},{"$f":"IF('1. Order'!H796=\"\",\"\",'1. Order'!H796)","v":""},{"$f":"IF('1. Order'!I796=\"\",\"\",'1. Order'!I796)","v":""},{"$f":"IF('1. Order'!J796=\"\",\"\",'1. Order'!J796)","v":""},{"$f":"IF('1. Order'!K796=\"\",\"\",'1. Order'!K796)","v":""},{"$f":"IF('1. Order'!L796=\"\",\"\",'1. Order'!L796)","v":""},{"$f":"IF('1. Order'!M796=\"\",\"\",'1. Order'!M796)","v":""},{"$f":"IF('1. Order'!N796=\"\",\"\",'1. Order'!N796)","v":""},{"$f":"IF('1. Order'!O796=\"\",\"\",'1. Order'!O796)","v":{"$error":"#N/A"}},{"$f":"IF('1. Order'!P796=\"\",\"\",'1. Order'!P796)","v":{"$error":"#N/A"}},{"$f":"IF('1. Order'!Q796=\"\",\"\",'1. Order'!Q796)","v":""},{"$f":"IF('1. Order'!S796=\"\",\"\",'1. Order'!S796)","v":""},{"$f":"IF('1. Order'!T796=\"\",\"\",'1. Order'!T796)","v":""},{"$f":"IF('1. Order'!W796=\"\",\"\",'1. Order'!W796)","v":""},{"$f":"IF('1. Order'!X796=\"\",\"\",'1. Order'!X796)","v":""},{"$f":"IF('1. Order'!Y796=\"\",\"\",'1. Order'!Y796)","v":"EUR"},{"$f":"IF('1. Order'!Z796=\"\",\"\",'1. Order'!Z796)","v":""},{"$f":"IF('1. Order'!AA796=\"\",\"\",'1. Order'!AA796)","v":""},{"$f":"IF('1. Order'!AB796=\"\",\"\",'1. Order'!AB796)","v":""},null,{"$f":"IF('1. Order'!AT796=\"\",\"\",'1. Order'!AT796)","v":""},{"$f":"IF('1. Order'!AU796=\"\",\"\",'1. Order'!AU796)","v":""},null,null,null,null,null,null,null,{"$f":"IF('1. Order'!AY796=\"\",\"\",'1. Order'!AY796)","v":""},{"$f":"IF('1. Order'!AZ796=\"\",\"\",'1. Order'!AZ796)","v":""},{"$f":"IF('1. Order'!BA796=\"\",\"\",'1. Order'!BA796)","v":""},{"$f":"IF('1. Order'!BB796=\"\",\"\",'1. Order'!BB796)","v":""},{"$f":"IF('1. Order'!BD796=\"\",\"\",'1. Order'!BD796)","v":""},{"$f":"IF('1. Order'!BE796=\"\",\"\",'1. Order'!BE796)","v":""},{"$f":"IF('1. Order'!BF796=\"\",\"\",'1. Order'!BF796)","v":""},{"$f":"IF('1. Order'!BG796=\"\",\"\",'1. Order'!BG796)","v":""},{"$f":"IF('1. Order'!BH796=\"\",\"\",'1. Order'!BH796)","v":"ZWO"}]
[{"$f":"IF('1. Order'!F797=\"\",\"\",'1. Order'!F797)","v":{"$error":"#N/A"}},{"$f":"IF('1. Order'!G797=\"\",\"\",'1. Order'!G797)","v":""},{"$f":"IF('1. Order'!H797=\"\",\"\",'1. Order'!H797)","v":""},{"$f":"IF('1. Order'!I797=\"\",\"\",'1. Order'!I797)","v":""},{"$f":"IF('1. Order'!J797=\"\",\"\",'1. Order'!J797)","v":""},{"$f":"IF('1. Order'!K797=\"\",\"\",'1. Order'!K797)","v":""},{"$f":"IF('1. Order'!L797=\"\",\"\",'1. Order'!L797)","v":""},{"$f":"IF('1. Order'!M797=\"\",\"\",'1. Order'!M797)","v":""},{"$f":"IF('1. Order'!N797=\"\",\"\",'1. Order'!N797)","v":""},{"$f":"IF('1. Order'!O797=\"\",\"\",'1. Order'!O797)","v":{"$error":"#N/A"}},{"$f":"IF('1. Order'!P797=\"\",\"\",'1. Order'!P797)","v":{"$error":"#N/A"}},{"$f":"IF('1. Order'!Q797=\"\",\"\",'1. Order'!Q797)","v":""},{"$f":"IF('1. Order'!S797=\"\",\"\",'1. Order'!S797)","v":""},{"$f":"IF('1. Order'!T797=\"\",\"\",'1. Order'!T797)","v":""},{"$f":"IF('1. Order'!W797=\"\",\"\",'1. Order'!W797)","v":""},{"$f":"IF('1. Order'!X797=\"\",\"\",'1. Order'!X797)","v":""},{"$f":"IF('1. Order'!Y797=\"\",\"\",'1. Order'!Y797)","v":"EUR"},{"$f":"IF('1. Order'!Z797=\"\",\"\",'1. Order'!Z797)","v":""},{"$f":"IF('1. Order'!AA797=\"\",\"\",'1. Order'!AA797)","v":""},{"$f":"IF('1. Order'!AB797=\"\",\"\",'1. Order'!AB797)","v":""},null,{"$f":"IF('1. Order'!AT797=\"\",\"\",'1. Order'!AT797)","v":""},{"$f":"IF('1. Order'!AU797=\"\",\"\",'1. Order'!AU797)","v":""},null,null,null,null,null,null,null,{"$f":"IF('1. Order'!AY797=\"\",\"\",'1. Order'!AY797)","v":""},{"$f":"IF('1. Order'!AZ797=\"\",\"\",'1. Order'!AZ797)","v":""},{"$f":"IF('1. Order'!BA797=\"\",\"\",'1. Order'!BA797)","v":""},{"$f":"IF('1. Order'!BB797=\"\",\"\",'1. Order'!BB797)","v":""},{"$f":"IF('1. Order'!BD797=\"\",\"\",'1. Order'!BD797)","v":""},{"$f":"IF('1. Order'!BE797=\"\",\"\",'1. Order'!BE797)","v":""},{"$f":"IF('1. Order'!BF797=\"\",\"\",'1. Order'!BF797)","v":""},{"$f":"IF('1. Order'!BG797=\"\",\"\",'1. Order'!BG797)","v":""},{"$f":"IF('1. Order'!BH797=\"\",\"\",'1. Order'!BH797)","v":"ZWO"}]
[{"$f":"IF('1. Order'!F798=\"\",\"\",'1. Order'!F798)","v":{"$error":"#N/A"}},{"$f":"IF('1. Order'!G798=\"\",\"\",'1. Order'!G798)","v":""},{"$f":"IF('1. Order'!H798=\"\",\"\",'1. Order'!H798)","v":""},{"$f":"IF('1. Order'!I798=\"\",\"\",'1. Order'!I798)","v":""},{"$f":"IF('1. Order'!J798=\"\",\"\",'1. Order'!J798)","v":""},{"$f":"IF('1. Order'!K798=\"\",\"\",'1. Order'!K798)","v":""},{"$f":"IF('1. Order'!L798=\"\",\"\",'1. Order'!L798)","v":""},{"$f":"IF('1. Order'!M798=\"\",\"\",'1. Order'!M798)","v":""},{"$f":"IF('1. Order'!N798=\"\",\"\",'1. Order'!N798)","v":""},{"$f":"IF('1. Order'!O798=\"\",\"\",'1. Order'!O798)","v":{"$error":"#N/A"}},{"$f":"IF('1. Order'!P798=\"\",\"\",'1. Order'!P798)","v":{"$error":"#N/A"}},{"$f":"IF('1. Order'!Q798=\"\",\"\",'1. Order'!Q798)","v":""},{"$f":"IF('1. Order'!S798=\"\",\"\",'1. Order'!S798)","v":""},{"$f":"IF('1. Order'!T798=\"\",\"\",'1. Order'!T798)","v":""},{"$f":"IF('1. Order'!W798=\"\",\"\",'1. Order'!W798)","v":""},{"$f":"IF('1. Order'!X798=\"\",\"\",'1. Order'!X798)","v":""},{"$f":"IF('1. Order'!Y798=\"\",\"\",'1. Order'!Y798)","v":"EUR"},{"$f":"IF('1. Order'!Z798=\"\",\"\",'1. Order'!Z798)","v":""},{"$f":"IF('1. Order'!AA798=\"\",\"\",'1. Order'!AA798)","v":""},{"$f":"IF('1. Order'!AB798=\"\",\"\",'1. Order'!AB798)","v":""},null,{"$f":"IF('1. Order'!AT798=\"\",\"\",'1. Order'!AT798)","v":""},{"$f":"IF('1. Order'!AU798=\"\",\"\",'1. Order'!AU798)","v":""},null,null,null,null,null,null,null,{"$f":"IF('1. Order'!AY798=\"\",\"\",'1. Order'!AY798)","v":""},{"$f":"IF('1. Order'!AZ798=\"\",\"\",'1. Order'!AZ798)","v":""},{"$f":"IF('1. Order'!BA798=\"\",\"\",'1. Order'!BA798)","v":""},{"$f":"IF('1. Order'!BB798=\"\",\"\",'1. Order'!BB798)","v":""},{"$f":"IF('1. Order'!BD798=\"\",\"\",'1. Order'!BD798)","v":""},{"$f":"IF('1. Order'!BE798=\"\",\"\",'1. Order'!BE798)","v":""},{"$f":"IF('1. Order'!BF798=\"\",\"\",'1. Order'!BF798)","v":""},{"$f":"IF('1. Order'!BG798=\"\",\"\",'1. Order'!BG798)","v":""},{"$f":"IF('1. Order'!BH798=\"\",\"\",'1. Order'!BH798)","v":"ZWO"}]
[{"$f":"IF('1. Order'!F799=\"\",\"\",'1. Order'!F799)","v":{"$error":"#N/A"}},{"$f":"IF('1. Order'!G799=\"\",\"\",'1. Order'!G799)","v":""},{"$f":"IF('1. Order'!H799=\"\",\"\",'1. Order'!H799)","v":""},{"$f":"IF('1. Order'!I799=\"\",\"\",'1. Order'!I799)","v":""},{"$f":"IF('1. Order'!J799=\"\",\"\",'1. Order'!J799)","v":""},{"$f":"IF('1. Order'!K799=\"\",\"\",'1. Order'!K799)","v":""},{"$f":"IF('1. Order'!L799=\"\",\"\",'1. Order'!L799)","v":""},{"$f":"IF('1. Order'!M799=\"\",\"\",'1. Order'!M799)","v":""},{"$f":"IF('1. Order'!N799=\"\",\"\",'1. Order'!N799)","v":""},{"$f":"IF('1. Order'!O799=\"\",\"\",'1. Order'!O799)","v":{"$error":"#N/A"}},{"$f":"IF('1. Order'!P799=\"\",\"\",'1. Order'!P799)","v":{"$error":"#N/A"}},{"$f":"IF('1. Order'!Q799=\"\",\"\",'1. Order'!Q799)","v":""},{"$f":"IF('1. Order'!S799=\"\",\"\",'1. Order'!S799)","v":""},{"$f":"IF('1. Order'!T799=\"\",\"\",'1. Order'!T799)","v":""},{"$f":"IF('1. Order'!W799=\"\",\"\",'1. Order'!W799)","v":""},{"$f":"IF('1. Order'!X799=\"\",\"\",'1. Order'!X799)","v":""},{"$f":"IF('1. Order'!Y799=\"\",\"\",'1. Order'!Y799)","v":"EUR"},{"$f":"IF('1. Order'!Z799=\"\",\"\",'1. Order'!Z799)","v":""},{"$f":"IF('1. Order'!AA799=\"\",\"\",'1. Order'!AA799)","v":""},{"$f":"IF('1. Order'!AB799=\"\",\"\",'1. Order'!AB799)","v":""},null,{"$f":"IF('1. Order'!AT799=\"\",\"\",'1. Order'!AT799)","v":""},{"$f":"IF('1. Order'!AU799=\"\",\"\",'1. Order'!AU799)","v":""},null,null,null,null,null,null,null,{"$f":"IF('1. Order'!AY799=\"\",\"\",'1. Order'!AY799)","v":""},{"$f":"IF('1. Order'!AZ799=\"\",\"\",'1. Order'!AZ799)","v":""},{"$f":"IF('1. Order'!BA799=\"\",\"\",'1. Order'!BA799)","v":""},{"$f":"IF('1. Order'!BB799=\"\",\"\",'1. Order'!BB799)","v":""},{"$f":"IF('1. Order'!BD799=\"\",\"\",'1. Order'!BD799)","v":""},{"$f":"IF('1. Order'!BE799=\"\",\"\",'1. Order'!BE799)","v":""},{"$f":"IF('1. Order'!BF799=\"\",\"\",'1. Order'!BF799)","v":""},{"$f":"IF('1. Order'!BG799=\"\",\"\",'1. Order'!BG799)","v":""},{"$f":"IF('1. Order'!BH799=\"\",\"\",'1. Order'!BH799)","v":"ZWO"}]
[{"$f":"IF('1. Order'!F800=\"\",\"\",'1. Order'!F800)","v":{"$error":"#N/A"}},{"$f":"IF('1. Order'!G800=\"\",\"\",'1. Order'!G800)","v":""},{"$f":"IF('1. Order'!H800=\"\",\"\",'1. Order'!H800)","v":""},{"$f":"IF('1. Order'!I800=\"\",\"\",'1. Order'!I800)","v":""},{"$f":"IF('1. Order'!J800=\"\",\"\",'1. Order'!J800)","v":""},{"$f":"IF('1. Order'!K800=\"\",\"\",'1. Order'!K800)","v":""},{"$f":"IF('1. Order'!L800=\"\",\"\",'1. Order'!L800)","v":""},{"$f":"IF('1. Order'!M800=\"\",\"\",'1. Order'!M800)","v":""},{"$f":"IF('1. Order'!N800=\"\",\"\",'1. Order'!N800)","v":""},{"$f":"IF('1. Order'!O800=\"\",\"\",'1. Order'!O800)","v":{"$error":"#N/A"}},{"$f":"IF('1. Order'!P800=\"\",\"\",'1. Order'!P800)","v":{"$error":"#N/A"}},{"$f":"IF('1. Order'!Q800=\"\",\"\",'1. Order'!Q800)","v":""},{"$f":"IF('1. Order'!S800=\"\",\"\",'1. Order'!S800)","v":""},{"$f":"IF('1. Order'!T800=\"\",\"\",'1. Order'!T800)","v":""},{"$f":"IF('1. Order'!W800=\"\",\"\",'1. Order'!W800)","v":""},{"$f":"IF('1. Order'!X800=\"\",\"\",'1. Order'!X800)","v":""},{"$f":"IF('1. Order'!Y800=\"\",\"\",'1. Order'!Y800)","v":"EUR"},{"$f":"IF('1. Order'!Z800=\"\",\"\",'1. Order'!Z800)","v":""},{"$f":"IF('1. Order'!AA800=\"\",\"\",'1. Order'!AA800)","v":""},{"$f":"IF('1. Order'!AB800=\"\",\"\",'1. Order'!AB800)","v":""},null,{"$f":"IF('1. Order'!AT800=\"\",\"\",'1. Order'!AT800)","v":""},{"$f":"IF('1. Order'!AU800=\"\",\"\",'1. Order'!AU800)","v":""},null,null,null,null,null,null,null,{"$f":"IF('1. Order'!AY800=\"\",\"\",'1. Order'!AY800)","v":""},{"$f":"IF('1. Order'!AZ800=\"\",\"\",'1. Order'!AZ800)","v":""},{"$f":"IF('1. Order'!BA800=\"\",\"\",'1. Order'!BA800)","v":""},{"$f":"IF('1. Order'!BB800=\"\",\"\",'1. Order'!BB800)","v":""},{"$f":"IF('1. Order'!BD800=\"\",\"\",'1. Order'!BD800)","v":""},{"$f":"IF('1. Order'!BE800=\"\",\"\",'1. Order'!BE800)","v":""},{"$f":"IF('1. Order'!BF800=\"\",\"\",'1. Order'!BF800)","v":""},{"$f":"IF('1. Order'!BG800=\"\",\"\",'1. Order'!BG800)","v":""},{"$f":"IF('1. Order'!BH800=\"\",\"\",'1. Order'!BH800)","v":"ZWO"}]
[{"$f":"IF('1. Order'!F801=\"\",\"\",'1. Order'!F801)","v":{"$error":"#N/A"}},{"$f":"IF('1. Order'!G801=\"\",\"\",'1. Order'!G801)","v":""},{"$f":"IF('1. Order'!H801=\"\",\"\",'1. Order'!H801)","v":""},{"$f":"IF('1. Order'!I801=\"\",\"\",'1. Order'!I801)","v":""},{"$f":"IF('1. Order'!J801=\"\",\"\",'1. Order'!J801)","v":""},{"$f":"IF('1. Order'!K801=\"\",\"\",'1. Order'!K801)","v":""},{"$f":"IF('1. Order'!L801=\"\",\"\",'1. Order'!L801)","v":""},{"$f":"IF('1. Order'!M801=\"\",\"\",'1. Order'!M801)","v":""},{"$f":"IF('1. Order'!N801=\"\",\"\",'1. Order'!N801)","v":""},{"$f":"IF('1. Order'!O801=\"\",\"\",'1. Order'!O801)","v":{"$error":"#N/A"}},{"$f":"IF('1. Order'!P801=\"\",\"\",'1. Order'!P801)","v":{"$error":"#N/A"}},{"$f":"IF('1. Order'!Q801=\"\",\"\",'1. Order'!Q801)","v":""},{"$f":"IF('1. Order'!S801=\"\",\"\",'1. Order'!S801)","v":""},{"$f":"IF('1. Order'!T801=\"\",\"\",'1. Order'!T801)","v":""},{"$f":"IF('1. Order'!W801=\"\",\"\",'1. Order'!W801)","v":""},{"$f":"IF('1. Order'!X801=\"\",\"\",'1. Order'!X801)","v":""},{"$f":"IF('1. Order'!Y801=\"\",\"\",'1. Order'!Y801)","v":"EUR"},{"$f":"IF('1. Order'!Z801=\"\",\"\",'1. Order'!Z801)","v":""},{"$f":"IF('1. Order'!AA801=\"\",\"\",'1. Order'!AA801)","v":""},{"$f":"IF('1. Order'!AB801=\"\",\"\",'1. Order'!AB801)","v":""},null,{"$f":"IF('1. Order'!AT801=\"\",\"\",'1. Order'!AT801)","v":""},{"$f":"IF('1. Order'!AU801=\"\",\"\",'1. Order'!AU801)","v":""},null,null,null,null,null,null,null,{"$f":"IF('1. Order'!AY801=\"\",\"\",'1. Order'!AY801)","v":""},{"$f":"IF('1. Order'!AZ801=\"\",\"\",'1. Order'!AZ801)","v":""},{"$f":"IF('1. Order'!BA801=\"\",\"\",'1. Order'!BA801)","v":""},{"$f":"IF('1. Order'!BB801=\"\",\"\",'1. Order'!BB801)","v":""},{"$f":"IF('1. Order'!BD801=\"\",\"\",'1. Order'!BD801)","v":""},{"$f":"IF('1. Order'!BE801=\"\",\"\",'1. Order'!BE801)","v":""},{"$f":"IF('1. Order'!BF801=\"\",\"\",'1. Order'!BF801)","v":""},{"$f":"IF('1. Order'!BG801=\"\",\"\",'1. Order'!BG801)","v":""},{"$f":"IF('1. Order'!BH801=\"\",\"\",'1. Order'!BH801)","v":"ZWO"}]
[{"$f":"IF('1. Order'!F802=\"\",\"\",'1. Order'!F802)","v":{"$error":"#N/A"}},{"$f":"IF('1. Order'!G802=\"\",\"\",'1. Order'!G802)","v":""},{"$f":"IF('1. Order'!H802=\"\",\"\",'1. Order'!H802)","v":""},{"$f":"IF('1. Order'!I802=\"\",\"\",'1. Order'!I802)","v":""},{"$f":"IF('1. Order'!J802=\"\",\"\",'1. Order'!J802)","v":""},{"$f":"IF('1. Order'!K802=\"\",\"\",'1. Order'!K802)","v":""},{"$f":"IF('1. Order'!L802=\"\",\"\",'1. Order'!L802)","v":""},{"$f":"IF('1. Order'!M802=\"\",\"\",'1. Order'!M802)","v":""},{"$f":"IF('1. Order'!N802=\"\",\"\",'1. Order'!N802)","v":""},{"$f":"IF('1. Order'!O802=\"\",\"\",'1. Order'!O802)","v":{"$error":"#N/A"}},{"$f":"IF('1. Order'!P802=\"\",\"\",'1. Order'!P802)","v":{"$error":"#N/A"}},{"$f":"IF('1. Order'!Q802=\"\",\"\",'1. Order'!Q802)","v":""},{"$f":"IF('1. Order'!S802=\"\",\"\",'1. Order'!S802)","v":""},{"$f":"IF('1. Order'!T802=\"\",\"\",'1. Order'!T802)","v":""},{"$f":"IF('1. Order'!W802=\"\",\"\",'1. Order'!W802)","v":""},{"$f":"IF('1. Order'!X802=\"\",\"\",'1. Order'!X802)","v":""},{"$f":"IF('1. Order'!Y802=\"\",\"\",'1. Order'!Y802)","v":"EUR"},{"$f":"IF('1. Order'!Z802=\"\",\"\",'1. Order'!Z802)","v":""},{"$f":"IF('1. Order'!AA802=\"\",\"\",'1. Order'!AA802)","v":""},{"$f":"IF('1. Order'!AB802=\"\",\"\",'1. Order'!AB802)","v":""},null,{"$f":"IF('1. Order'!AT802=\"\",\"\",'1. Order'!AT802)","v":""},{"$f":"IF('1. Order'!AU802=\"\",\"\",'1. Order'!AU802)","v":""},null,null,null,null,null,null,null,{"$f":"IF('1. Order'!AY802=\"\",\"\",'1. Order'!AY802)","v":""},{"$f":"IF('1. Order'!AZ802=\"\",\"\",'1. Order'!AZ802)","v":""},{"$f":"IF('1. Order'!BA802=\"\",\"\",'1. Order'!BA802)","v":""},{"$f":"IF('1. Order'!BB802=\"\",\"\",'1. Order'!BB802)","v":""},{"$f":"IF('1. Order'!BD802=\"\",\"\",'1. Order'!BD802)","v":""},{"$f":"IF('1. Order'!BE802=\"\",\"\",'1. Order'!BE802)","v":""},{"$f":"IF('1. Order'!BF802=\"\",\"\",'1. Order'!BF802)","v":""},{"$f":"IF('1. Order'!BG802=\"\",\"\",'1. Order'!BG802)","v":""},{"$f":"IF('1. Order'!BH802=\"\",\"\",'1. Order'!BH802)","v":"ZWO"}]
[{"$f":"IF('1. Order'!F803=\"\",\"\",'1. Order'!F803)","v":{"$error":"#N/A"}},{"$f":"IF('1. Order'!G803=\"\",\"\",'1. Order'!G803)","v":""},{"$f":"IF('1. Order'!H803=\"\",\"\",'1. Order'!H803)","v":""},{"$f":"IF('1. Order'!I803=\"\",\"\",'1. Order'!I803)","v":""},{"$f":"IF('1. Order'!J803=\"\",\"\",'1. Order'!J803)","v":""},{"$f":"IF('1. Order'!K803=\"\",\"\",'1. Order'!K803)","v":""},{"$f":"IF('1. Order'!L803=\"\",\"\",'1. Order'!L803)","v":""},{"$f":"IF('1. Order'!M803=\"\",\"\",'1. Order'!M803)","v":""},{"$f":"IF('1. Order'!N803=\"\",\"\",'1. Order'!N803)","v":""},{"$f":"IF('1. Order'!O803=\"\",\"\",'1. Order'!O803)","v":{"$error":"#N/A"}},{"$f":"IF('1. Order'!P803=\"\",\"\",'1. Order'!P803)","v":{"$error":"#N/A"}},{"$f":"IF('1. Order'!Q803=\"\",\"\",'1. Order'!Q803)","v":""},{"$f":"IF('1. Order'!S803=\"\",\"\",'1. Order'!S803)","v":""},{"$f":"IF('1. Order'!T803=\"\",\"\",'1. Order'!T803)","v":""},{"$f":"IF('1. Order'!W803=\"\",\"\",'1. Order'!W803)","v":""},{"$f":"IF('1. Order'!X803=\"\",\"\",'1. Order'!X803)","v":""},{"$f":"IF('1. Order'!Y803=\"\",\"\",'1. Order'!Y803)","v":"EUR"},{"$f":"IF('1. Order'!Z803=\"\",\"\",'1. Order'!Z803)","v":""},{"$f":"IF('1. Order'!AA803=\"\",\"\",'1. Order'!AA803)","v":""},{"$f":"IF('1. Order'!AB803=\"\",\"\",'1. Order'!AB803)","v":""},null,{"$f":"IF('1. Order'!AT803=\"\",\"\",'1. Order'!AT803)","v":""},{"$f":"IF('1. Order'!AU803=\"\",\"\",'1. Order'!AU803)","v":""},null,null,null,null,null,null,null,{"$f":"IF('1. Order'!AY803=\"\",\"\",'1. Order'!AY803)","v":""},{"$f":"IF('1. Order'!AZ803=\"\",\"\",'1. Order'!AZ803)","v":""},{"$f":"IF('1. Order'!BA803=\"\",\"\",'1. Order'!BA803)","v":""},{"$f":"IF('1. Order'!BB803=\"\",\"\",'1. Order'!BB803)","v":""},{"$f":"IF('1. Order'!BD803=\"\",\"\",'1. Order'!BD803)","v":""},{"$f":"IF('1. Order'!BE803=\"\",\"\",'1. Order'!BE803)","v":""},{"$f":"IF('1. Order'!BF803=\"\",\"\",'1. Order'!BF803)","v":""},{"$f":"IF('1. Order'!BG803=\"\",\"\",'1. Order'!BG803)","v":""},{"$f":"IF('1. Order'!BH803=\"\",\"\",'1. Order'!BH803)","v":"ZWO"}]
[{"$f":"IF('1. Order'!F804=\"\",\"\",'1. Order'!F804)","v":{"$error":"#N/A"}},{"$f":"IF('1. Order'!G804=\"\",\"\",'1. Order'!G804)","v":""},{"$f":"IF('1. Order'!H804=\"\",\"\",'1. Order'!H804)","v":""},{"$f":"IF('1. Order'!I804=\"\",\"\",'1. Order'!I804)","v":""},{"$f":"IF('1. Order'!J804=\"\",\"\",'1. Order'!J804)","v":""},{"$f":"IF('1. Order'!K804=\"\",\"\",'1. Order'!K804)","v":""},{"$f":"IF('1. Order'!L804=\"\",\"\",'1. Order'!L804)","v":""},{"$f":"IF('1. Order'!M804=\"\",\"\",'1. Order'!M804)","v":""},{"$f":"IF('1. Order'!N804=\"\",\"\",'1. Order'!N804)","v":""},{"$f":"IF('1. Order'!O804=\"\",\"\",'1. Order'!O804)","v":{"$error":"#N/A"}},{"$f":"IF('1. Order'!P804=\"\",\"\",'1. Order'!P804)","v":{"$error":"#N/A"}},{"$f":"IF('1. Order'!Q804=\"\",\"\",'1. Order'!Q804)","v":""},{"$f":"IF('1. Order'!S804=\"\",\"\",'1. Order'!S804)","v":""},{"$f":"IF('1. Order'!T804=\"\",\"\",'1. Order'!T804)","v":""},{"$f":"IF('1. Order'!W804=\"\",\"\",'1. Order'!W804)","v":""},{"$f":"IF('1. Order'!X804=\"\",\"\",'1. Order'!X804)","v":""},{"$f":"IF('1. Order'!Y804=\"\",\"\",'1. Order'!Y804)","v":"EUR"},{"$f":"IF('1. Order'!Z804=\"\",\"\",'1. Order'!Z804)","v":""},{"$f":"IF('1. Order'!AA804=\"\",\"\",'1. Order'!AA804)","v":""},{"$f":"IF('1. Order'!AB804=\"\",\"\",'1. Order'!AB804)","v":""},null,{"$f":"IF('1. Order'!AT804=\"\",\"\",'1. Order'!AT804)","v":""},{"$f":"IF('1. Order'!AU804=\"\",\"\",'1. Order'!AU804)","v":""},null,null,null,null,null,null,null,{"$f":"IF('1. Order'!AY804=\"\",\"\",'1. Order'!AY804)","v":""},{"$f":"IF('1. Order'!AZ804=\"\",\"\",'1. Order'!AZ804)","v":""},{"$f":"IF('1. Order'!BA804=\"\",\"\",'1. Order'!BA804)","v":""},{"$f":"IF('1. Order'!BB804=\"\",\"\",'1. Order'!BB804)","v":""},{"$f":"IF('1. Order'!BD804=\"\",\"\",'1. Order'!BD804)","v":""},{"$f":"IF('1. Order'!BE804=\"\",\"\",'1. Order'!BE804)","v":""},{"$f":"IF('1. Order'!BF804=\"\",\"\",'1. Order'!BF804)","v":""},{"$f":"IF('1. Order'!BG804=\"\",\"\",'1. Order'!BG804)","v":""},{"$f":"IF('1. Order'!BH804=\"\",\"\",'1. Order'!BH804)","v":"ZWO"}]
[{"$f":"IF('1. Order'!F805=\"\",\"\",'1. Order'!F805)","v":{"$error":"#N/A"}},{"$f":"IF('1. Order'!G805=\"\",\"\",'1. Order'!G805)","v":""},{"$f":"IF('1. Order'!H805=\"\",\"\",'1. Order'!H805)","v":""},{"$f":"IF('1. Order'!I805=\"\",\"\",'1. Order'!I805)","v":""},{"$f":"IF('1. Order'!J805=\"\",\"\",'1. Order'!J805)","v":""},{"$f":"IF('1. Order'!K805=\"\",\"\",'1. Order'!K805)","v":""},{"$f":"IF('1. Order'!L805=\"\",\"\",'1. Order'!L805)","v":""},{"$f":"IF('1. Order'!M805=\"\",\"\",'1. Order'!M805)","v":""},{"$f":"IF('1. Order'!N805=\"\",\"\",'1. Order'!N805)","v":""},{"$f":"IF('1. Order'!O805=\"\",\"\",'1. Order'!O805)","v":{"$error":"#N/A"}},{"$f":"IF('1. Order'!P805=\"\",\"\",'1. Order'!P805)","v":{"$error":"#N/A"}},{"$f":"IF('1. Order'!Q805=\"\",\"\",'1. Order'!Q805)","v":""},{"$f":"IF('1. Order'!S805=\"\",\"\",'1. Order'!S805)","v":""},{"$f":"IF('1. Order'!T805=\"\",\"\",'1. Order'!T805)","v":""},{"$f":"IF('1. Order'!W805=\"\",\"\",'1. Order'!W805)","v":""},{"$f":"IF('1. Order'!X805=\"\",\"\",'1. Order'!X805)","v":""},{"$f":"IF('1. Order'!Y805=\"\",\"\",'1. Order'!Y805)","v":"EUR"},{"$f":"IF('1. Order'!Z805=\"\",\"\",'1. Order'!Z805)","v":""},{"$f":"IF('1. Order'!AA805=\"\",\"\",'1. Order'!AA805)","v":""},{"$f":"IF('1. Order'!AB805=\"\",\"\",'1. Order'!AB805)","v":""},null,{"$f":"IF('1. Order'!AT805=\"\",\"\",'1. Order'!AT805)","v":""},{"$f":"IF('1. Order'!AU805=\"\",\"\",'1. Order'!AU805)","v":""},null,null,null,null,null,null,null,{"$f":"IF('1. Order'!AY805=\"\",\"\",'1. Order'!AY805)","v":""},{"$f":"IF('1. Order'!AZ805=\"\",\"\",'1. Order'!AZ805)","v":""},{"$f":"IF('1. Order'!BA805=\"\",\"\",'1. Order'!BA805)","v":""},{"$f":"IF('1. Order'!BB805=\"\",\"\",'1. Order'!BB805)","v":""},{"$f":"IF('1. Order'!BD805=\"\",\"\",'1. Order'!BD805)","v":""},{"$f":"IF('1. Order'!BE805=\"\",\"\",'1. Order'!BE805)","v":""},{"$f":"IF('1. Order'!BF805=\"\",\"\",'1. Order'!BF805)","v":""},{"$f":"IF('1. Order'!BG805=\"\",\"\",'1. Order'!BG805)","v":""},{"$f":"IF('1. Order'!BH805=\"\",\"\",'1. Order'!BH805)","v":"ZWO"}]
[{"$f":"IF('1. Order'!F806=\"\",\"\",'1. Order'!F806)","v":{"$error":"#N/A"}},{"$f":"IF('1. Order'!G806=\"\",\"\",'1. Order'!G806)","v":""},{"$f":"IF('1. Order'!H806=\"\",\"\",'1. Order'!H806)","v":""},{"$f":"IF('1. Order'!I806=\"\",\"\",'1. Order'!I806)","v":""},{"$f":"IF('1. Order'!J806=\"\",\"\",'1. Order'!J806)","v":""},{"$f":"IF('1. Order'!K806=\"\",\"\",'1. Order'!K806)","v":""},{"$f":"IF('1. Order'!L806=\"\",\"\",'1. Order'!L806)","v":""},{"$f":"IF('1. Order'!M806=\"\",\"\",'1. Order'!M806)","v":""},{"$f":"IF('1. Order'!N806=\"\",\"\",'1. Order'!N806)","v":""},{"$f":"IF('1. Order'!O806=\"\",\"\",'1. Order'!O806)","v":{"$error":"#N/A"}},{"$f":"IF('1. Order'!P806=\"\",\"\",'1. Order'!P806)","v":{"$error":"#N/A"}},{"$f":"IF('1. Order'!Q806=\"\",\"\",'1. Order'!Q806)","v":""},{"$f":"IF('1. Order'!S806=\"\",\"\",'1. Order'!S806)","v":""},{"$f":"IF('1. Order'!T806=\"\",\"\",'1. Order'!T806)","v":""},{"$f":"IF('1. Order'!W806=\"\",\"\",'1. Order'!W806)","v":""},{"$f":"IF('1. Order'!X806=\"\",\"\",'1. Order'!X806)","v":""},{"$f":"IF('1. Order'!Y806=\"\",\"\",'1. Order'!Y806)","v":"EUR"},{"$f":"IF('1. Order'!Z806=\"\",\"\",'1. Order'!Z806)","v":""},{"$f":"IF('1. Order'!AA806=\"\",\"\",'1. Order'!AA806)","v":""},{"$f":"IF('1. Order'!AB806=\"\",\"\",'1. Order'!AB806)","v":""},null,{"$f":"IF('1. Order'!AT806=\"\",\"\",'1. Order'!AT806)","v":""},{"$f":"IF('1. Order'!AU806=\"\",\"\",'1. Order'!AU806)","v":""},null,null,null,null,null,null,null,{"$f":"IF('1. Order'!AY806=\"\",\"\",'1. Order'!AY806)","v":""},{"$f":"IF('1. Order'!AZ806=\"\",\"\",'1. Order'!AZ806)","v":""},{"$f":"IF('1. Order'!BA806=\"\",\"\",'1. Order'!BA806)","v":""},{"$f":"IF('1. Order'!BB806=\"\",\"\",'1. Order'!BB806)","v":""},{"$f":"IF('1. Order'!BD806=\"\",\"\",'1. Order'!BD806)","v":""},{"$f":"IF('1. Order'!BE806=\"\",\"\",'1. Order'!BE806)","v":""},{"$f":"IF('1. Order'!BF806=\"\",\"\",'1. Order'!BF806)","v":""},{"$f":"IF('1. Order'!BG806=\"\",\"\",'1. Order'!BG806)","v":""},{"$f":"IF('1. Order'!BH806=\"\",\"\",'1. Order'!BH806)","v":"ZWO"}]
[{"$f":"IF('1. Order'!F807=\"\",\"\",'1. Order'!F807)","v":{"$error":"#N/A"}},{"$f":"IF('1. Order'!G807=\"\",\"\",'1. Order'!G807)","v":""},{"$f":"IF('1. Order'!H807=\"\",\"\",'1. Order'!H807)","v":""},{"$f":"IF('1. Order'!I807=\"\",\"\",'1. Order'!I807)","v":""},{"$f":"IF('1. Order'!J807=\"\",\"\",'1. Order'!J807)","v":""},{"$f":"IF('1. Order'!K807=\"\",\"\",'1. Order'!K807)","v":""},{"$f":"IF('1. Order'!L807=\"\",\"\",'1. Order'!L807)","v":""},{"$f":"IF('1. Order'!M807=\"\",\"\",'1. Order'!M807)","v":""},{"$f":"IF('1. Order'!N807=\"\",\"\",'1. Order'!N807)","v":""},{"$f":"IF('1. Order'!O807=\"\",\"\",'1. Order'!O807)","v":{"$error":"#N/A"}},{"$f":"IF('1. Order'!P807=\"\",\"\",'1. Order'!P807)","v":{"$error":"#N/A"}},{"$f":"IF('1. Order'!Q807=\"\",\"\",'1. Order'!Q807)","v":""},{"$f":"IF('1. Order'!S807=\"\",\"\",'1. Order'!S807)","v":""},{"$f":"IF('1. Order'!T807=\"\",\"\",'1. Order'!T807)","v":""},{"$f":"IF('1. Order'!W807=\"\",\"\",'1. Order'!W807)","v":""},{"$f":"IF('1. Order'!X807=\"\",\"\",'1. Order'!X807)","v":""},{"$f":"IF('1. Order'!Y807=\"\",\"\",'1. Order'!Y807)","v":"EUR"},{"$f":"IF('1. Order'!Z807=\"\",\"\",'1. Order'!Z807)","v":""},{"$f":"IF('1. Order'!AA807=\"\",\"\",'1. Order'!AA807)","v":""},{"$f":"IF('1. Order'!AB807=\"\",\"\",'1. Order'!AB807)","v":""},null,{"$f":"IF('1. Order'!AT807=\"\",\"\",'1. Order'!AT807)","v":""},{"$f":"IF('1. Order'!AU807=\"\",\"\",'1. Order'!AU807)","v":""},null,null,null,null,null,null,null,{"$f":"IF('1. Order'!AY807=\"\",\"\",'1. Order'!AY807)","v":""},{"$f":"IF('1. Order'!AZ807=\"\",\"\",'1. Order'!AZ807)","v":""},{"$f":"IF('1. Order'!BA807=\"\",\"\",'1. Order'!BA807)","v":""},{"$f":"IF('1. Order'!BB807=\"\",\"\",'1. Order'!BB807)","v":""},{"$f":"IF('1. Order'!BD807=\"\",\"\",'1. Order'!BD807)","v":""},{"$f":"IF('1. Order'!BE807=\"\",\"\",'1. Order'!BE807)","v":""},{"$f":"IF('1. Order'!BF807=\"\",\"\",'1. Order'!BF807)","v":""},{"$f":"IF('1. Order'!BG807=\"\",\"\",'1. Order'!BG807)","v":""},{"$f":"IF('1. Order'!BH807=\"\",\"\",'1. Order'!BH807)","v":"ZWO"}]
[{"$f":"IF('1. Order'!F808=\"\",\"\",'1. Order'!F808)","v":{"$error":"#N/A"}},{"$f":"IF('1. Order'!G808=\"\",\"\",'1. Order'!G808)","v":""},{"$f":"IF('1. Order'!H808=\"\",\"\",'1. Order'!H808)","v":""},{"$f":"IF('1. Order'!I808=\"\",\"\",'1. Order'!I808)","v":""},{"$f":"IF('1. Order'!J808=\"\",\"\",'1. Order'!J808)","v":""},{"$f":"IF('1. Order'!K808=\"\",\"\",'1. Order'!K808)","v":""},{"$f":"IF('1. Order'!L808=\"\",\"\",'1. Order'!L808)","v":""},{"$f":"IF('1. Order'!M808=\"\",\"\",'1. Order'!M808)","v":""},{"$f":"IF('1. Order'!N808=\"\",\"\",'1. Order'!N808)","v":""},{"$f":"IF('1. Order'!O808=\"\",\"\",'1. Order'!O808)","v":{"$error":"#N/A"}},{"$f":"IF('1. Order'!P808=\"\",\"\",'1. Order'!P808)","v":{"$error":"#N/A"}},{"$f":"IF('1. Order'!Q808=\"\",\"\",'1. Order'!Q808)","v":""},{"$f":"IF('1. Order'!S808=\"\",\"\",'1. Order'!S808)","v":""},{"$f":"IF('1. Order'!T808=\"\",\"\",'1. Order'!T808)","v":""},{"$f":"IF('1. Order'!W808=\"\",\"\",'1. Order'!W808)","v":""},{"$f":"IF('1. Order'!X808=\"\",\"\",'1. Order'!X808)","v":""},{"$f":"IF('1. Order'!Y808=\"\",\"\",'1. Order'!Y808)","v":"EUR"},{"$f":"IF('1. Order'!Z808=\"\",\"\",'1. Order'!Z808)","v":""},{"$f":"IF('1. Order'!AA808=\"\",\"\",'1. Order'!AA808)","v":""},{"$f":"IF('1. Order'!AB808=\"\",\"\",'1. Order'!AB808)","v":""},null,{"$f":"IF('1. Order'!AT808=\"\",\"\",'1. Order'!AT808)","v":""},{"$f":"IF('1. Order'!AU808=\"\",\"\",'1. Order'!AU808)","v":""},null,null,null,null,null,null,null,{"$f":"IF('1. Order'!AY808=\"\",\"\",'1. Order'!AY808)","v":""},{"$f":"IF('1. Order'!AZ808=\"\",\"\",'1. Order'!AZ808)","v":""},{"$f":"IF('1. Order'!BA808=\"\",\"\",'1. Order'!BA808)","v":""},{"$f":"IF('1. Order'!BB808=\"\",\"\",'1. Order'!BB808)","v":""},{"$f":"IF('1. Order'!BD808=\"\",\"\",'1. Order'!BD808)","v":""},{"$f":"IF('1. Order'!BE808=\"\",\"\",'1. Order'!BE808)","v":""},{"$f":"IF('1. Order'!BF808=\"\",\"\",'1. Order'!BF808)","v":""},{"$f":"IF('1. Order'!BG808=\"\",\"\",'1. Order'!BG808)","v":""},{"$f":"IF('1. Order'!BH808=\"\",\"\",'1. Order'!BH808)","v":"ZWO"}]
[{"$f":"IF('1. Order'!F809=\"\",\"\",'1. Order'!F809)","v":{"$error":"#N/A"}},{"$f":"IF('1. Order'!G809=\"\",\"\",'1. Order'!G809)","v":""},{"$f":"IF('1. Order'!H809=\"\",\"\",'1. Order'!H809)","v":""},{"$f":"IF('1. Order'!I809=\"\",\"\",'1. Order'!I809)","v":""},{"$f":"IF('1. Order'!J809=\"\",\"\",'1. Order'!J809)","v":""},{"$f":"IF('1. Order'!K809=\"\",\"\",'1. Order'!K809)","v":""},{"$f":"IF('1. Order'!L809=\"\",\"\",'1. Order'!L809)","v":""},{"$f":"IF('1. Order'!M809=\"\",\"\",'1. Order'!M809)","v":""},{"$f":"IF('1. Order'!N809=\"\",\"\",'1. Order'!N809)","v":""},{"$f":"IF('1. Order'!O809=\"\",\"\",'1. Order'!O809)","v":{"$error":"#N/A"}},{"$f":"IF('1. Order'!P809=\"\",\"\",'1. Order'!P809)","v":{"$error":"#N/A"}},{"$f":"IF('1. Order'!Q809=\"\",\"\",'1. Order'!Q809)","v":""},{"$f":"IF('1. Order'!S809=\"\",\"\",'1. Order'!S809)","v":""},{"$f":"IF('1. Order'!T809=\"\",\"\",'1. Order'!T809)","v":""},{"$f":"IF('1. Order'!W809=\"\",\"\",'1. Order'!W809)","v":""},{"$f":"IF('1. Order'!X809=\"\",\"\",'1. Order'!X809)","v":""},{"$f":"IF('1. Order'!Y809=\"\",\"\",'1. Order'!Y809)","v":"EUR"},{"$f":"IF('1. Order'!Z809=\"\",\"\",'1. Order'!Z809)","v":""},{"$f":"IF('1. Order'!AA809=\"\",\"\",'1. Order'!AA809)","v":""},{"$f":"IF('1. Order'!AB809=\"\",\"\",'1. Order'!AB809)","v":""},null,{"$f":"IF('1. Order'!AT809=\"\",\"\",'1. Order'!AT809)","v":""},{"$f":"IF('1. Order'!AU809=\"\",\"\",'1. Order'!AU809)","v":""},null,null,null,null,null,null,null,{"$f":"IF('1. Order'!AY809=\"\",\"\",'1. Order'!AY809)","v":""},{"$f":"IF('1. Order'!AZ809=\"\",\"\",'1. Order'!AZ809)","v":""},{"$f":"IF('1. Order'!BA809=\"\",\"\",'1. Order'!BA809)","v":""},{"$f":"IF('1. Order'!BB809=\"\",\"\",'1. Order'!BB809)","v":""},{"$f":"IF('1. Order'!BD809=\"\",\"\",'1. Order'!BD809)","v":""},{"$f":"IF('1. Order'!BE809=\"\",\"\",'1. Order'!BE809)","v":""},{"$f":"IF('1. Order'!BF809=\"\",\"\",'1. Order'!BF809)","v":""},{"$f":"IF('1. Order'!BG809=\"\",\"\",'1. Order'!BG809)","v":""},{"$f":"IF('1. Order'!BH809=\"\",\"\",'1. Order'!BH809)","v":"ZWO"}]
[{"$f":"IF('1. Order'!F810=\"\",\"\",'1. Order'!F810)","v":{"$error":"#N/A"}},{"$f":"IF('1. Order'!G810=\"\",\"\",'1. Order'!G810)","v":""},{"$f":"IF('1. Order'!H810=\"\",\"\",'1. Order'!H810)","v":""},{"$f":"IF('1. Order'!I810=\"\",\"\",'1. Order'!I810)","v":""},{"$f":"IF('1. Order'!J810=\"\",\"\",'1. Order'!J810)","v":""},{"$f":"IF('1. Order'!K810=\"\",\"\",'1. Order'!K810)","v":""},{"$f":"IF('1. Order'!L810=\"\",\"\",'1. Order'!L810)","v":""},{"$f":"IF('1. Order'!M810=\"\",\"\",'1. Order'!M810)","v":""},{"$f":"IF('1. Order'!N810=\"\",\"\",'1. Order'!N810)","v":""},{"$f":"IF('1. Order'!O810=\"\",\"\",'1. Order'!O810)","v":{"$error":"#N/A"}},{"$f":"IF('1. Order'!P810=\"\",\"\",'1. Order'!P810)","v":{"$error":"#N/A"}},{"$f":"IF('1. Order'!Q810=\"\",\"\",'1. Order'!Q810)","v":""},{"$f":"IF('1. Order'!S810=\"\",\"\",'1. Order'!S810)","v":""},{"$f":"IF('1. Order'!T810=\"\",\"\",'1. Order'!T810)","v":""},{"$f":"IF('1. Order'!W810=\"\",\"\",'1. Order'!W810)","v":""},{"$f":"IF('1. Order'!X810=\"\",\"\",'1. Order'!X810)","v":""},{"$f":"IF('1. Order'!Y810=\"\",\"\",'1. Order'!Y810)","v":"EUR"},{"$f":"IF('1. Order'!Z810=\"\",\"\",'1. Order'!Z810)","v":""},{"$f":"IF('1. Order'!AA810=\"\",\"\",'1. Order'!AA810)","v":""},{"$f":"IF('1. Order'!AB810=\"\",\"\",'1. Order'!AB810)","v":""},null,{"$f":"IF('1. Order'!AT810=\"\",\"\",'1. Order'!AT810)","v":""},{"$f":"IF('1. Order'!AU810=\"\",\"\",'1. Order'!AU810)","v":""},null,null,null,null,null,null,null,{"$f":"IF('1. Order'!AY810=\"\",\"\",'1. Order'!AY810)","v":""},{"$f":"IF('1. Order'!AZ810=\"\",\"\",'1. Order'!AZ810)","v":""},{"$f":"IF('1. Order'!BA810=\"\",\"\",'1. Order'!BA810)","v":""},{"$f":"IF('1. Order'!BB810=\"\",\"\",'1. Order'!BB810)","v":""},{"$f":"IF('1. Order'!BD810=\"\",\"\",'1. Order'!BD810)","v":""},{"$f":"IF('1. Order'!BE810=\"\",\"\",'1. Order'!BE810)","v":""},{"$f":"IF('1. Order'!BF810=\"\",\"\",'1. Order'!BF810)","v":""},{"$f":"IF('1. Order'!BG810=\"\",\"\",'1. Order'!BG810)","v":""},{"$f":"IF('1. Order'!BH810=\"\",\"\",'1. Order'!BH810)","v":"ZWO"}]
[{"$f":"IF('1. Order'!F811=\"\",\"\",'1. Order'!F811)","v":{"$error":"#N/A"}},{"$f":"IF('1. Order'!G811=\"\",\"\",'1. Order'!G811)","v":""},{"$f":"IF('1. Order'!H811=\"\",\"\",'1. Order'!H811)","v":""},{"$f":"IF('1. Order'!I811=\"\",\"\",'1. Order'!I811)","v":""},{"$f":"IF('1. Order'!J811=\"\",\"\",'1. Order'!J811)","v":""},{"$f":"IF('1. Order'!K811=\"\",\"\",'1. Order'!K811)","v":""},{"$f":"IF('1. Order'!L811=\"\",\"\",'1. Order'!L811)","v":""},{"$f":"IF('1. Order'!M811=\"\",\"\",'1. Order'!M811)","v":""},{"$f":"IF('1. Order'!N811=\"\",\"\",'1. Order'!N811)","v":""},{"$f":"IF('1. Order'!O811=\"\",\"\",'1. Order'!O811)","v":{"$error":"#N/A"}},{"$f":"IF('1. Order'!P811=\"\",\"\",'1. Order'!P811)","v":{"$error":"#N/A"}},{"$f":"IF('1. Order'!Q811=\"\",\"\",'1. Order'!Q811)","v":""},{"$f":"IF('1. Order'!S811=\"\",\"\",'1. Order'!S811)","v":""},{"$f":"IF('1. Order'!T811=\"\",\"\",'1. Order'!T811)","v":""},{"$f":"IF('1. Order'!W811=\"\",\"\",'1. Order'!W811)","v":""},{"$f":"IF('1. Order'!X811=\"\",\"\",'1. Order'!X811)","v":""},{"$f":"IF('1. Order'!Y811=\"\",\"\",'1. Order'!Y811)","v":"EUR"},{"$f":"IF('1. Order'!Z811=\"\",\"\",'1. Order'!Z811)","v":""},{"$f":"IF('1. Order'!AA811=\"\",\"\",'1. Order'!AA811)","v":""},{"$f":"IF('1. Order'!AB811=\"\",\"\",'1. Order'!AB811)","v":""},null,{"$f":"IF('1. Order'!AT811=\"\",\"\",'1. Order'!AT811)","v":""},{"$f":"IF('1. Order'!AU811=\"\",\"\",'1. Order'!AU811)","v":""},null,null,null,null,null,null,null,{"$f":"IF('1. Order'!AY811=\"\",\"\",'1. Order'!AY811)","v":""},{"$f":"IF('1. Order'!AZ811=\"\",\"\",'1. Order'!AZ811)","v":""},{"$f":"IF('1. Order'!BA811=\"\",\"\",'1. Order'!BA811)","v":""},{"$f":"IF('1. Order'!BB811=\"\",\"\",'1. Order'!BB811)","v":""},{"$f":"IF('1. Order'!BD811=\"\",\"\",'1. Order'!BD811)","v":""},{"$f":"IF('1. Order'!BE811=\"\",\"\",'1. Order'!BE811)","v":""},{"$f":"IF('1. Order'!BF811=\"\",\"\",'1. Order'!BF811)","v":""},{"$f":"IF('1. Order'!BG811=\"\",\"\",'1. Order'!BG811)","v":""},{"$f":"IF('1. Order'!BH811=\"\",\"\",'1. Order'!BH811)","v":"ZWO"}]
[{"$f":"IF('1. Order'!F812=\"\",\"\",'1. Order'!F812)","v":{"$error":"#N/A"}},{"$f":"IF('1. Order'!G812=\"\",\"\",'1. Order'!G812)","v":""},{"$f":"IF('1. Order'!H812=\"\",\"\",'1. Order'!H812)","v":""},{"$f":"IF('1. Order'!I812=\"\",\"\",'1. Order'!I812)","v":""},{"$f":"IF('1. Order'!J812=\"\",\"\",'1. Order'!J812)","v":""},{"$f":"IF('1. Order'!K812=\"\",\"\",'1. Order'!K812)","v":""},{"$f":"IF('1. Order'!L812=\"\",\"\",'1. Order'!L812)","v":""},{"$f":"IF('1. Order'!M812=\"\",\"\",'1. Order'!M812)","v":""},{"$f":"IF('1. Order'!N812=\"\",\"\",'1. Order'!N812)","v":""},{"$f":"IF('1. Order'!O812=\"\",\"\",'1. Order'!O812)","v":{"$error":"#N/A"}},{"$f":"IF('1. Order'!P812=\"\",\"\",'1. Order'!P812)","v":{"$error":"#N/A"}},{"$f":"IF('1. Order'!Q812=\"\",\"\",'1. Order'!Q812)","v":""},{"$f":"IF('1. Order'!S812=\"\",\"\",'1. Order'!S812)","v":""},{"$f":"IF('1. Order'!T812=\"\",\"\",'1. Order'!T812)","v":""},{"$f":"IF('1. Order'!W812=\"\",\"\",'1. Order'!W812)","v":""},{"$f":"IF('1. Order'!X812=\"\",\"\",'1. Order'!X812)","v":""},{"$f":"IF('1. Order'!Y812=\"\",\"\",'1. Order'!Y812)","v":"EUR"},{"$f":"IF('1. Order'!Z812=\"\",\"\",'1. Order'!Z812)","v":""},{"$f":"IF('1. Order'!AA812=\"\",\"\",'1. Order'!AA812)","v":""},{"$f":"IF('1. Order'!AB812=\"\",\"\",'1. Order'!AB812)","v":""},null,{"$f":"IF('1. Order'!AT812=\"\",\"\",'1. Order'!AT812)","v":""},{"$f":"IF('1. Order'!AU812=\"\",\"\",'1. Order'!AU812)","v":""},null,null,null,null,null,null,null,{"$f":"IF('1. Order'!AY812=\"\",\"\",'1. Order'!AY812)","v":""},{"$f":"IF('1. Order'!AZ812=\"\",\"\",'1. Order'!AZ812)","v":""},{"$f":"IF('1. Order'!BA812=\"\",\"\",'1. Order'!BA812)","v":""},{"$f":"IF('1. Order'!BB812=\"\",\"\",'1. Order'!BB812)","v":""},{"$f":"IF('1. Order'!BD812=\"\",\"\",'1. Order'!BD812)","v":""},{"$f":"IF('1. Order'!BE812=\"\",\"\",'1. Order'!BE812)","v":""},{"$f":"IF('1. Order'!BF812=\"\",\"\",'1. Order'!BF812)","v":""},{"$f":"IF('1. Order'!BG812=\"\",\"\",'1. Order'!BG812)","v":""},{"$f":"IF('1. Order'!BH812=\"\",\"\",'1. Order'!BH812)","v":"ZWO"}]
[{"$f":"IF('1. Order'!F813=\"\",\"\",'1. Order'!F813)","v":{"$error":"#N/A"}},{"$f":"IF('1. Order'!G813=\"\",\"\",'1. Order'!G813)","v":""},{"$f":"IF('1. Order'!H813=\"\",\"\",'1. Order'!H813)","v":""},{"$f":"IF('1. Order'!I813=\"\",\"\",'1. Order'!I813)","v":""},{"$f":"IF('1. Order'!J813=\"\",\"\",'1. Order'!J813)","v":""},{"$f":"IF('1. Order'!K813=\"\",\"\",'1. Order'!K813)","v":""},{"$f":"IF('1. Order'!L813=\"\",\"\",'1. Order'!L813)","v":""},{"$f":"IF('1. Order'!M813=\"\",\"\",'1. Order'!M813)","v":""},{"$f":"IF('1. Order'!N813=\"\",\"\",'1. Order'!N813)","v":""},{"$f":"IF('1. Order'!O813=\"\",\"\",'1. Order'!O813)","v":{"$error":"#N/A"}},{"$f":"IF('1. Order'!P813=\"\",\"\",'1. Order'!P813)","v":{"$error":"#N/A"}},{"$f":"IF('1. Order'!Q813=\"\",\"\",'1. Order'!Q813)","v":""},{"$f":"IF('1. Order'!S813=\"\",\"\",'1. Order'!S813)","v":""},{"$f":"IF('1. Order'!T813=\"\",\"\",'1. Order'!T813)","v":""},{"$f":"IF('1. Order'!W813=\"\",\"\",'1. Order'!W813)","v":""},{"$f":"IF('1. Order'!X813=\"\",\"\",'1. Order'!X813)","v":""},{"$f":"IF('1. Order'!Y813=\"\",\"\",'1. Order'!Y813)","v":"EUR"},{"$f":"IF('1. Order'!Z813=\"\",\"\",'1. Order'!Z813)","v":""},{"$f":"IF('1. Order'!AA813=\"\",\"\",'1. Order'!AA813)","v":""},{"$f":"IF('1. Order'!AB813=\"\",\"\",'1. Order'!AB813)","v":""},null,{"$f":"IF('1. Order'!AT813=\"\",\"\",'1. Order'!AT813)","v":""},{"$f":"IF('1. Order'!AU813=\"\",\"\",'1. Order'!AU813)","v":""},null,null,null,null,null,null,null,{"$f":"IF('1. Order'!AY813=\"\",\"\",'1. Order'!AY813)","v":""},{"$f":"IF('1. Order'!AZ813=\"\",\"\",'1. Order'!AZ813)","v":""},{"$f":"IF('1. Order'!BA813=\"\",\"\",'1. Order'!BA813)","v":""},{"$f":"IF('1. Order'!BB813=\"\",\"\",'1. Order'!BB813)","v":""},{"$f":"IF('1. Order'!BD813=\"\",\"\",'1. Order'!BD813)","v":""},{"$f":"IF('1. Order'!BE813=\"\",\"\",'1. Order'!BE813)","v":""},{"$f":"IF('1. Order'!BF813=\"\",\"\",'1. Order'!BF813)","v":""},{"$f":"IF('1. Order'!BG813=\"\",\"\",'1. Order'!BG813)","v":""},{"$f":"IF('1. Order'!BH813=\"\",\"\",'1. Order'!BH813)","v":"ZWO"}]
[{"$f":"IF('1. Order'!F814=\"\",\"\",'1. Order'!F814)","v":{"$error":"#N/A"}},{"$f":"IF('1. Order'!G814=\"\",\"\",'1. Order'!G814)","v":""},{"$f":"IF('1. Order'!H814=\"\",\"\",'1. Order'!H814)","v":""},{"$f":"IF('1. Order'!I814=\"\",\"\",'1. Order'!I814)","v":""},{"$f":"IF('1. Order'!J814=\"\",\"\",'1. Order'!J814)","v":""},{"$f":"IF('1. Order'!K814=\"\",\"\",'1. Order'!K814)","v":""},{"$f":"IF('1. Order'!L814=\"\",\"\",'1. Order'!L814)","v":""},{"$f":"IF('1. Order'!M814=\"\",\"\",'1. Order'!M814)","v":""},{"$f":"IF('1. Order'!N814=\"\",\"\",'1. Order'!N814)","v":""},{"$f":"IF('1. Order'!O814=\"\",\"\",'1. Order'!O814)","v":{"$error":"#N/A"}},{"$f":"IF('1. Order'!P814=\"\",\"\",'1. Order'!P814)","v":{"$error":"#N/A"}},{"$f":"IF('1. Order'!Q814=\"\",\"\",'1. Order'!Q814)","v":""},{"$f":"IF('1. Order'!S814=\"\",\"\",'1. Order'!S814)","v":""},{"$f":"IF('1. Order'!T814=\"\",\"\",'1. Order'!T814)","v":""},{"$f":"IF('1. Order'!W814=\"\",\"\",'1. Order'!W814)","v":""},{"$f":"IF('1. Order'!X814=\"\",\"\",'1. Order'!X814)","v":""},{"$f":"IF('1. Order'!Y814=\"\",\"\",'1. Order'!Y814)","v":"EUR"},{"$f":"IF('1. Order'!Z814=\"\",\"\",'1. Order'!Z814)","v":""},{"$f":"IF('1. Order'!AA814=\"\",\"\",'1. Order'!AA814)","v":""},{"$f":"IF('1. Order'!AB814=\"\",\"\",'1. Order'!AB814)","v":""},null,{"$f":"IF('1. Order'!AT814=\"\",\"\",'1. Order'!AT814)","v":""},{"$f":"IF('1. Order'!AU814=\"\",\"\",'1. Order'!AU814)","v":""},null,null,null,null,null,null,null,{"$f":"IF('1. Order'!AY814=\"\",\"\",'1. Order'!AY814)","v":""},{"$f":"IF('1. Order'!AZ814=\"\",\"\",'1. Order'!AZ814)","v":""},{"$f":"IF('1. Order'!BA814=\"\",\"\",'1. Order'!BA814)","v":""},{"$f":"IF('1. Order'!BB814=\"\",\"\",'1. Order'!BB814)","v":""},{"$f":"IF('1. Order'!BD814=\"\",\"\",'1. Order'!BD814)","v":""},{"$f":"IF('1. Order'!BE814=\"\",\"\",'1. Order'!BE814)","v":""},{"$f":"IF('1. Order'!BF814=\"\",\"\",'1. Order'!BF814)","v":""},{"$f":"IF('1. Order'!BG814=\"\",\"\",'1. Order'!BG814)","v":""},{"$f":"IF('1. Order'!BH814=\"\",\"\",'1. Order'!BH814)","v":"ZWO"}]
[{"$f":"IF('1. Order'!F815=\"\",\"\",'1. Order'!F815)","v":{"$error":"#N/A"}},{"$f":"IF('1. Order'!G815=\"\",\"\",'1. Order'!G815)","v":""},{"$f":"IF('1. Order'!H815=\"\",\"\",'1. Order'!H815)","v":""},{"$f":"IF('1. Order'!I815=\"\",\"\",'1. Order'!I815)","v":""},{"$f":"IF('1. Order'!J815=\"\",\"\",'1. Order'!J815)","v":""},{"$f":"IF('1. Order'!K815=\"\",\"\",'1. Order'!K815)","v":""},{"$f":"IF('1. Order'!L815=\"\",\"\",'1. Order'!L815)","v":""},{"$f":"IF('1. Order'!M815=\"\",\"\",'1. Order'!M815)","v":""},{"$f":"IF('1. Order'!N815=\"\",\"\",'1. Order'!N815)","v":""},{"$f":"IF('1. Order'!O815=\"\",\"\",'1. Order'!O815)","v":{"$error":"#N/A"}},{"$f":"IF('1. Order'!P815=\"\",\"\",'1. Order'!P815)","v":{"$error":"#N/A"}},{"$f":"IF('1. Order'!Q815=\"\",\"\",'1. Order'!Q815)","v":""},{"$f":"IF('1. Order'!S815=\"\",\"\",'1. Order'!S815)","v":""},{"$f":"IF('1. Order'!T815=\"\",\"\",'1. Order'!T815)","v":""},{"$f":"IF('1. Order'!W815=\"\",\"\",'1. Order'!W815)","v":""},{"$f":"IF('1. Order'!X815=\"\",\"\",'1. Order'!X815)","v":""},{"$f":"IF('1. Order'!Y815=\"\",\"\",'1. Order'!Y815)","v":"EUR"},{"$f":"IF('1. Order'!Z815=\"\",\"\",'1. Order'!Z815)","v":""},{"$f":"IF('1. Order'!AA815=\"\",\"\",'1. Order'!AA815)","v":""},{"$f":"IF('1. Order'!AB815=\"\",\"\",'1. Order'!AB815)","v":""},null,{"$f":"IF('1. Order'!AT815=\"\",\"\",'1. Order'!AT815)","v":""},{"$f":"IF('1. Order'!AU815=\"\",\"\",'1. Order'!AU815)","v":""},null,null,null,null,null,null,null,{"$f":"IF('1. Order'!AY815=\"\",\"\",'1. Order'!AY815)","v":""},{"$f":"IF('1. Order'!AZ815=\"\",\"\",'1. Order'!AZ815)","v":""},{"$f":"IF('1. Order'!BA815=\"\",\"\",'1. Order'!BA815)","v":""},{"$f":"IF('1. Order'!BB815=\"\",\"\",'1. Order'!BB815)","v":""},{"$f":"IF('1. Order'!BD815=\"\",\"\",'1. Order'!BD815)","v":""},{"$f":"IF('1. Order'!BE815=\"\",\"\",'1. Order'!BE815)","v":""},{"$f":"IF('1. Order'!BF815=\"\",\"\",'1. Order'!BF815)","v":""},{"$f":"IF('1. Order'!BG815=\"\",\"\",'1. Order'!BG815)","v":""},{"$f":"IF('1. Order'!BH815=\"\",\"\",'1. Order'!BH815)","v":"ZWO"}]
[{"$f":"IF('1. Order'!F816=\"\",\"\",'1. Order'!F816)","v":{"$error":"#N/A"}},{"$f":"IF('1. Order'!G816=\"\",\"\",'1. Order'!G816)","v":""},{"$f":"IF('1. Order'!H816=\"\",\"\",'1. Order'!H816)","v":""},{"$f":"IF('1. Order'!I816=\"\",\"\",'1. Order'!I816)","v":""},{"$f":"IF('1. Order'!J816=\"\",\"\",'1. Order'!J816)","v":""},{"$f":"IF('1. Order'!K816=\"\",\"\",'1. Order'!K816)","v":""},{"$f":"IF('1. Order'!L816=\"\",\"\",'1. Order'!L816)","v":""},{"$f":"IF('1. Order'!M816=\"\",\"\",'1. Order'!M816)","v":""},{"$f":"IF('1. Order'!N816=\"\",\"\",'1. Order'!N816)","v":""},{"$f":"IF('1. Order'!O816=\"\",\"\",'1. Order'!O816)","v":{"$error":"#N/A"}},{"$f":"IF('1. Order'!P816=\"\",\"\",'1. Order'!P816)","v":{"$error":"#N/A"}},{"$f":"IF('1. Order'!Q816=\"\",\"\",'1. Order'!Q816)","v":""},{"$f":"IF('1. Order'!S816=\"\",\"\",'1. Order'!S816)","v":""},{"$f":"IF('1. Order'!T816=\"\",\"\",'1. Order'!T816)","v":""},{"$f":"IF('1. Order'!W816=\"\",\"\",'1. Order'!W816)","v":""},{"$f":"IF('1. Order'!X816=\"\",\"\",'1. Order'!X816)","v":""},{"$f":"IF('1. Order'!Y816=\"\",\"\",'1. Order'!Y816)","v":"EUR"},{"$f":"IF('1. Order'!Z816=\"\",\"\",'1. Order'!Z816)","v":""},{"$f":"IF('1. Order'!AA816=\"\",\"\",'1. Order'!AA816)","v":""},{"$f":"IF('1. Order'!AB816=\"\",\"\",'1. Order'!AB816)","v":""},null,{"$f":"IF('1. Order'!AT816=\"\",\"\",'1. Order'!AT816)","v":""},{"$f":"IF('1. Order'!AU816=\"\",\"\",'1. Order'!AU816)","v":""},null,null,null,null,null,null,null,{"$f":"IF('1. Order'!AY816=\"\",\"\",'1. Order'!AY816)","v":""},{"$f":"IF('1. Order'!AZ816=\"\",\"\",'1. Order'!AZ816)","v":""},{"$f":"IF('1. Order'!BA816=\"\",\"\",'1. Order'!BA816)","v":""},{"$f":"IF('1. Order'!BB816=\"\",\"\",'1. Order'!BB816)","v":""},{"$f":"IF('1. Order'!BD816=\"\",\"\",'1. Order'!BD816)","v":""},{"$f":"IF('1. Order'!BE816=\"\",\"\",'1. Order'!BE816)","v":""},{"$f":"IF('1. Order'!BF816=\"\",\"\",'1. Order'!BF816)","v":""},{"$f":"IF('1. Order'!BG816=\"\",\"\",'1. Order'!BG816)","v":""},{"$f":"IF('1. Order'!BH816=\"\",\"\",'1. Order'!BH816)","v":"ZWO"}]
[{"$f":"IF('1. Order'!F817=\"\",\"\",'1. Order'!F817)","v":{"$error":"#N/A"}},{"$f":"IF('1. Order'!G817=\"\",\"\",'1. Order'!G817)","v":""},{"$f":"IF('1. Order'!H817=\"\",\"\",'1. Order'!H817)","v":""},{"$f":"IF('1. Order'!I817=\"\",\"\",'1. Order'!I817)","v":""},{"$f":"IF('1. Order'!J817=\"\",\"\",'1. Order'!J817)","v":""},{"$f":"IF('1. Order'!K817=\"\",\"\",'1. Order'!K817)","v":""},{"$f":"IF('1. Order'!L817=\"\",\"\",'1. Order'!L817)","v":""},{"$f":"IF('1. Order'!M817=\"\",\"\",'1. Order'!M817)","v":""},{"$f":"IF('1. Order'!N817=\"\",\"\",'1. Order'!N817)","v":""},{"$f":"IF('1. Order'!O817=\"\",\"\",'1. Order'!O817)","v":{"$error":"#N/A"}},{"$f":"IF('1. Order'!P817=\"\",\"\",'1. Order'!P817)","v":{"$error":"#N/A"}},{"$f":"IF('1. Order'!Q817=\"\",\"\",'1. Order'!Q817)","v":""},{"$f":"IF('1. Order'!S817=\"\",\"\",'1. Order'!S817)","v":""},{"$f":"IF('1. Order'!T817=\"\",\"\",'1. Order'!T817)","v":""},{"$f":"IF('1. Order'!W817=\"\",\"\",'1. Order'!W817)","v":""},{"$f":"IF('1. Order'!X817=\"\",\"\",'1. Order'!X817)","v":""},{"$f":"IF('1. Order'!Y817=\"\",\"\",'1. Order'!Y817)","v":"EUR"},{"$f":"IF('1. Order'!Z817=\"\",\"\",'1. Order'!Z817)","v":""},{"$f":"IF('1. Order'!AA817=\"\",\"\",'1. Order'!AA817)","v":""},{"$f":"IF('1. Order'!AB817=\"\",\"\",'1. Order'!AB817)","v":""},null,{"$f":"IF('1. Order'!AT817=\"\",\"\",'1. Order'!AT817)","v":""},{"$f":"IF('1. Order'!AU817=\"\",\"\",'1. Order'!AU817)","v":""},null,null,null,null,null,null,null,{"$f":"IF('1. Order'!AY817=\"\",\"\",'1. Order'!AY817)","v":""},{"$f":"IF('1. Order'!AZ817=\"\",\"\",'1. Order'!AZ817)","v":""},{"$f":"IF('1. Order'!BA817=\"\",\"\",'1. Order'!BA817)","v":""},{"$f":"IF('1. Order'!BB817=\"\",\"\",'1. Order'!BB817)","v":""},{"$f":"IF('1. Order'!BD817=\"\",\"\",'1. Order'!BD817)","v":""},{"$f":"IF('1. Order'!BE817=\"\",\"\",'1. Order'!BE817)","v":""},{"$f":"IF('1. Order'!BF817=\"\",\"\",'1. Order'!BF817)","v":""},{"$f":"IF('1. Order'!BG817=\"\",\"\",'1. Order'!BG817)","v":""},{"$f":"IF('1. Order'!BH817=\"\",\"\",'1. Order'!BH817)","v":"ZWO"}]
[{"$f":"IF('1. Order'!F818=\"\",\"\",'1. Order'!F818)","v":{"$error":"#N/A"}},{"$f":"IF('1. Order'!G818=\"\",\"\",'1. Order'!G818)","v":""},{"$f":"IF('1. Order'!H818=\"\",\"\",'1. Order'!H818)","v":""},{"$f":"IF('1. Order'!I818=\"\",\"\",'1. Order'!I818)","v":""},{"$f":"IF('1. Order'!J818=\"\",\"\",'1. Order'!J818)","v":""},{"$f":"IF('1. Order'!K818=\"\",\"\",'1. Order'!K818)","v":""},{"$f":"IF('1. Order'!L818=\"\",\"\",'1. Order'!L818)","v":""},{"$f":"IF('1. Order'!M818=\"\",\"\",'1. Order'!M818)","v":""},{"$f":"IF('1. Order'!N818=\"\",\"\",'1. Order'!N818)","v":""},{"$f":"IF('1. Order'!O818=\"\",\"\",'1. Order'!O818)","v":{"$error":"#N/A"}},{"$f":"IF('1. Order'!P818=\"\",\"\",'1. Order'!P818)","v":{"$error":"#N/A"}},{"$f":"IF('1. Order'!Q818=\"\",\"\",'1. Order'!Q818)","v":""},{"$f":"IF('1. Order'!S818=\"\",\"\",'1. Order'!S818)","v":""},{"$f":"IF('1. Order'!T818=\"\",\"\",'1. Order'!T818)","v":""},{"$f":"IF('1. Order'!W818=\"\",\"\",'1. Order'!W818)","v":""},{"$f":"IF('1. Order'!X818=\"\",\"\",'1. Order'!X818)","v":""},{"$f":"IF('1. Order'!Y818=\"\",\"\",'1. Order'!Y818)","v":"EUR"},{"$f":"IF('1. Order'!Z818=\"\",\"\",'1. Order'!Z818)","v":""},{"$f":"IF('1. Order'!AA818=\"\",\"\",'1. Order'!AA818)","v":""},{"$f":"IF('1. Order'!AB818=\"\",\"\",'1. Order'!AB818)","v":""},null,{"$f":"IF('1. Order'!AT818=\"\",\"\",'1. Order'!AT818)","v":""},{"$f":"IF('1. Order'!AU818=\"\",\"\",'1. Order'!AU818)","v":""},null,null,null,null,null,null,null,{"$f":"IF('1. Order'!AY818=\"\",\"\",'1. Order'!AY818)","v":""},{"$f":"IF('1. Order'!AZ818=\"\",\"\",'1. Order'!AZ818)","v":""},{"$f":"IF('1. Order'!BA818=\"\",\"\",'1. Order'!BA818)","v":""},{"$f":"IF('1. Order'!BB818=\"\",\"\",'1. Order'!BB818)","v":""},{"$f":"IF('1. Order'!BD818=\"\",\"\",'1. Order'!BD818)","v":""},{"$f":"IF('1. Order'!BE818=\"\",\"\",'1. Order'!BE818)","v":""},{"$f":"IF('1. Order'!BF818=\"\",\"\",'1. Order'!BF818)","v":""},{"$f":"IF('1. Order'!BG818=\"\",\"\",'1. Order'!BG818)","v":""},{"$f":"IF('1. Order'!BH818=\"\",\"\",'1. Order'!BH818)","v":"ZWO"}]
[{"$f":"IF('1. Order'!F819=\"\",\"\",'1. Order'!F819)","v":{"$error":"#N/A"}},{"$f":"IF('1. Order'!G819=\"\",\"\",'1. Order'!G819)","v":""},{"$f":"IF('1. Order'!H819=\"\",\"\",'1. Order'!H819)","v":""},{"$f":"IF('1. Order'!I819=\"\",\"\",'1. Order'!I819)","v":""},{"$f":"IF('1. Order'!J819=\"\",\"\",'1. Order'!J819)","v":""},{"$f":"IF('1. Order'!K819=\"\",\"\",'1. Order'!K819)","v":""},{"$f":"IF('1. Order'!L819=\"\",\"\",'1. Order'!L819)","v":""},{"$f":"IF('1. Order'!M819=\"\",\"\",'1. Order'!M819)","v":""},{"$f":"IF('1. Order'!N819=\"\",\"\",'1. Order'!N819)","v":""},{"$f":"IF('1. Order'!O819=\"\",\"\",'1. Order'!O819)","v":{"$error":"#N/A"}},{"$f":"IF('1. Order'!P819=\"\",\"\",'1. Order'!P819)","v":{"$error":"#N/A"}},{"$f":"IF('1. Order'!Q819=\"\",\"\",'1. Order'!Q819)","v":""},{"$f":"IF('1. Order'!S819=\"\",\"\",'1. Order'!S819)","v":""},{"$f":"IF('1. Order'!T819=\"\",\"\",'1. Order'!T819)","v":""},{"$f":"IF('1. Order'!W819=\"\",\"\",'1. Order'!W819)","v":""},{"$f":"IF('1. Order'!X819=\"\",\"\",'1. Order'!X819)","v":""},{"$f":"IF('1. Order'!Y819=\"\",\"\",'1. Order'!Y819)","v":"EUR"},{"$f":"IF('1. Order'!Z819=\"\",\"\",'1. Order'!Z819)","v":""},{"$f":"IF('1. Order'!AA819=\"\",\"\",'1. Order'!AA819)","v":""},{"$f":"IF('1. Order'!AB819=\"\",\"\",'1. Order'!AB819)","v":""},null,{"$f":"IF('1. Order'!AT819=\"\",\"\",'1. Order'!AT819)","v":""},{"$f":"IF('1. Order'!AU819=\"\",\"\",'1. Order'!AU819)","v":""},null,null,null,null,null,null,null,{"$f":"IF('1. Order'!AY819=\"\",\"\",'1. Order'!AY819)","v":""},{"$f":"IF('1. Order'!AZ819=\"\",\"\",'1. Order'!AZ819)","v":""},{"$f":"IF('1. Order'!BA819=\"\",\"\",'1. Order'!BA819)","v":""},{"$f":"IF('1. Order'!BB819=\"\",\"\",'1. Order'!BB819)","v":""},{"$f":"IF('1. Order'!BD819=\"\",\"\",'1. Order'!BD819)","v":""},{"$f":"IF('1. Order'!BE819=\"\",\"\",'1. Order'!BE819)","v":""},{"$f":"IF('1. Order'!BF819=\"\",\"\",'1. Order'!BF819)","v":""},{"$f":"IF('1. Order'!BG819=\"\",\"\",'1. Order'!BG819)","v":""},{"$f":"IF('1. Order'!BH819=\"\",\"\",'1. Order'!BH819)","v":"ZWO"}]
[{"$f":"IF('1. Order'!F820=\"\",\"\",'1. Order'!F820)","v":{"$error":"#N/A"}},{"$f":"IF('1. Order'!G820=\"\",\"\",'1. Order'!G820)","v":""},{"$f":"IF('1. Order'!H820=\"\",\"\",'1. Order'!H820)","v":""},{"$f":"IF('1. Order'!I820=\"\",\"\",'1. Order'!I820)","v":""},{"$f":"IF('1. Order'!J820=\"\",\"\",'1. Order'!J820)","v":""},{"$f":"IF('1. Order'!K820=\"\",\"\",'1. Order'!K820)","v":""},{"$f":"IF('1. Order'!L820=\"\",\"\",'1. Order'!L820)","v":""},{"$f":"IF('1. Order'!M820=\"\",\"\",'1. Order'!M820)","v":""},{"$f":"IF('1. Order'!N820=\"\",\"\",'1. Order'!N820)","v":""},{"$f":"IF('1. Order'!O820=\"\",\"\",'1. Order'!O820)","v":{"$error":"#N/A"}},{"$f":"IF('1. Order'!P820=\"\",\"\",'1. Order'!P820)","v":{"$error":"#N/A"}},{"$f":"IF('1. Order'!Q820=\"\",\"\",'1. Order'!Q820)","v":""},{"$f":"IF('1. Order'!S820=\"\",\"\",'1. Order'!S820)","v":""},{"$f":"IF('1. Order'!T820=\"\",\"\",'1. Order'!T820)","v":""},{"$f":"IF('1. Order'!W820=\"\",\"\",'1. Order'!W820)","v":""},{"$f":"IF('1. Order'!X820=\"\",\"\",'1. Order'!X820)","v":""},{"$f":"IF('1. Order'!Y820=\"\",\"\",'1. Order'!Y820)","v":"EUR"},{"$f":"IF('1. Order'!Z820=\"\",\"\",'1. Order'!Z820)","v":""},{"$f":"IF('1. Order'!AA820=\"\",\"\",'1. Order'!AA820)","v":""},{"$f":"IF('1. Order'!AB820=\"\",\"\",'1. Order'!AB820)","v":""},null,{"$f":"IF('1. Order'!AT820=\"\",\"\",'1. Order'!AT820)","v":""},{"$f":"IF('1. Order'!AU820=\"\",\"\",'1. Order'!AU820)","v":""},null,null,null,null,null,null,null,{"$f":"IF('1. Order'!AY820=\"\",\"\",'1. Order'!AY820)","v":""},{"$f":"IF('1. Order'!AZ820=\"\",\"\",'1. Order'!AZ820)","v":""},{"$f":"IF('1. Order'!BA820=\"\",\"\",'1. Order'!BA820)","v":""},{"$f":"IF('1. Order'!BB820=\"\",\"\",'1. Order'!BB820)","v":""},{"$f":"IF('1. Order'!BD820=\"\",\"\",'1. Order'!BD820)","v":""},{"$f":"IF('1. Order'!BE820=\"\",\"\",'1. Order'!BE820)","v":""},{"$f":"IF('1. Order'!BF820=\"\",\"\",'1. Order'!BF820)","v":""},{"$f":"IF('1. Order'!BG820=\"\",\"\",'1. Order'!BG820)","v":""},{"$f":"IF('1. Order'!BH820=\"\",\"\",'1. Order'!BH820)","v":"ZWO"}]
[{"$f":"IF('1. Order'!F821=\"\",\"\",'1. Order'!F821)","v":{"$error":"#N/A"}},{"$f":"IF('1. Order'!G821=\"\",\"\",'1. Order'!G821)","v":""},{"$f":"IF('1. Order'!H821=\"\",\"\",'1. Order'!H821)","v":""},{"$f":"IF('1. Order'!I821=\"\",\"\",'1. Order'!I821)","v":""},{"$f":"IF('1. Order'!J821=\"\",\"\",'1. Order'!J821)","v":""},{"$f":"IF('1. Order'!K821=\"\",\"\",'1. Order'!K821)","v":""},{"$f":"IF('1. Order'!L821=\"\",\"\",'1. Order'!L821)","v":""},{"$f":"IF('1. Order'!M821=\"\",\"\",'1. Order'!M821)","v":""},{"$f":"IF('1. Order'!N821=\"\",\"\",'1. Order'!N821)","v":""},{"$f":"IF('1. Order'!O821=\"\",\"\",'1. Order'!O821)","v":{"$error":"#N/A"}},{"$f":"IF('1. Order'!P821=\"\",\"\",'1. Order'!P821)","v":{"$error":"#N/A"}},{"$f":"IF('1. Order'!Q821=\"\",\"\",'1. Order'!Q821)","v":""},{"$f":"IF('1. Order'!S821=\"\",\"\",'1. Order'!S821)","v":""},{"$f":"IF('1. Order'!T821=\"\",\"\",'1. Order'!T821)","v":""},{"$f":"IF('1. Order'!W821=\"\",\"\",'1. Order'!W821)","v":""},{"$f":"IF('1. Order'!X821=\"\",\"\",'1. Order'!X821)","v":""},{"$f":"IF('1. Order'!Y821=\"\",\"\",'1. Order'!Y821)","v":"EUR"},{"$f":"IF('1. Order'!Z821=\"\",\"\",'1. Order'!Z821)","v":""},{"$f":"IF('1. Order'!AA821=\"\",\"\",'1. Order'!AA821)","v":""},{"$f":"IF('1. Order'!AB821=\"\",\"\",'1. Order'!AB821)","v":""},null,{"$f":"IF('1. Order'!AT821=\"\",\"\",'1. Order'!AT821)","v":""},{"$f":"IF('1. Order'!AU821=\"\",\"\",'1. Order'!AU821)","v":""},null,null,null,null,null,null,null,{"$f":"IF('1. Order'!AY821=\"\",\"\",'1. Order'!AY821)","v":""},{"$f":"IF('1. Order'!AZ821=\"\",\"\",'1. Order'!AZ821)","v":""},{"$f":"IF('1. Order'!BA821=\"\",\"\",'1. Order'!BA821)","v":""},{"$f":"IF('1. Order'!BB821=\"\",\"\",'1. Order'!BB821)","v":""},{"$f":"IF('1. Order'!BD821=\"\",\"\",'1. Order'!BD821)","v":""},{"$f":"IF('1. Order'!BE821=\"\",\"\",'1. Order'!BE821)","v":""},{"$f":"IF('1. Order'!BF821=\"\",\"\",'1. Order'!BF821)","v":""},{"$f":"IF('1. Order'!BG821=\"\",\"\",'1. Order'!BG821)","v":""},{"$f":"IF('1. Order'!BH821=\"\",\"\",'1. Order'!BH821)","v":"ZWO"}]
[{"$f":"IF('1. Order'!F822=\"\",\"\",'1. Order'!F822)","v":{"$error":"#N/A"}},{"$f":"IF('1. Order'!G822=\"\",\"\",'1. Order'!G822)","v":""},{"$f":"IF('1. Order'!H822=\"\",\"\",'1. Order'!H822)","v":""},{"$f":"IF('1. Order'!I822=\"\",\"\",'1. Order'!I822)","v":""},{"$f":"IF('1. Order'!J822=\"\",\"\",'1. Order'!J822)","v":""},{"$f":"IF('1. Order'!K822=\"\",\"\",'1. Order'!K822)","v":""},{"$f":"IF('1. Order'!L822=\"\",\"\",'1. Order'!L822)","v":""},{"$f":"IF('1. Order'!M822=\"\",\"\",'1. Order'!M822)","v":""},{"$f":"IF('1. Order'!N822=\"\",\"\",'1. Order'!N822)","v":""},{"$f":"IF('1. Order'!O822=\"\",\"\",'1. Order'!O822)","v":{"$error":"#N/A"}},{"$f":"IF('1. Order'!P822=\"\",\"\",'1. Order'!P822)","v":{"$error":"#N/A"}},{"$f":"IF('1. Order'!Q822=\"\",\"\",'1. Order'!Q822)","v":""},{"$f":"IF('1. Order'!S822=\"\",\"\",'1. Order'!S822)","v":""},{"$f":"IF('1. Order'!T822=\"\",\"\",'1. Order'!T822)","v":""},{"$f":"IF('1. Order'!W822=\"\",\"\",'1. Order'!W822)","v":""},{"$f":"IF('1. Order'!X822=\"\",\"\",'1. Order'!X822)","v":""},{"$f":"IF('1. Order'!Y822=\"\",\"\",'1. Order'!Y822)","v":"EUR"},{"$f":"IF('1. Order'!Z822=\"\",\"\",'1. Order'!Z822)","v":""},{"$f":"IF('1. Order'!AA822=\"\",\"\",'1. Order'!AA822)","v":""},{"$f":"IF('1. Order'!AB822=\"\",\"\",'1. Order'!AB822)","v":""},null,{"$f":"IF('1. Order'!AT822=\"\",\"\",'1. Order'!AT822)","v":""},{"$f":"IF('1. Order'!AU822=\"\",\"\",'1. Order'!AU822)","v":""},null,null,null,null,null,null,null,{"$f":"IF('1. Order'!AY822=\"\",\"\",'1. Order'!AY822)","v":""},{"$f":"IF('1. Order'!AZ822=\"\",\"\",'1. Order'!AZ822)","v":""},{"$f":"IF('1. Order'!BA822=\"\",\"\",'1. Order'!BA822)","v":""},{"$f":"IF('1. Order'!BB822=\"\",\"\",'1. Order'!BB822)","v":""},{"$f":"IF('1. Order'!BD822=\"\",\"\",'1. Order'!BD822)","v":""},{"$f":"IF('1. Order'!BE822=\"\",\"\",'1. Order'!BE822)","v":""},{"$f":"IF('1. Order'!BF822=\"\",\"\",'1. Order'!BF822)","v":""},{"$f":"IF('1. Order'!BG822=\"\",\"\",'1. Order'!BG822)","v":""},{"$f":"IF('1. Order'!BH822=\"\",\"\",'1. Order'!BH822)","v":"ZWO"}]
[{"$f":"IF('1. Order'!F823=\"\",\"\",'1. Order'!F823)","v":{"$error":"#N/A"}},{"$f":"IF('1. Order'!G823=\"\",\"\",'1. Order'!G823)","v":""},{"$f":"IF('1. Order'!H823=\"\",\"\",'1. Order'!H823)","v":""},{"$f":"IF('1. Order'!I823=\"\",\"\",'1. Order'!I823)","v":""},{"$f":"IF('1. Order'!J823=\"\",\"\",'1. Order'!J823)","v":""},{"$f":"IF('1. Order'!K823=\"\",\"\",'1. Order'!K823)","v":""},{"$f":"IF('1. Order'!L823=\"\",\"\",'1. Order'!L823)","v":""},{"$f":"IF('1. Order'!M823=\"\",\"\",'1. Order'!M823)","v":""},{"$f":"IF('1. Order'!N823=\"\",\"\",'1. Order'!N823)","v":""},{"$f":"IF('1. Order'!O823=\"\",\"\",'1. Order'!O823)","v":{"$error":"#N/A"}},{"$f":"IF('1. Order'!P823=\"\",\"\",'1. Order'!P823)","v":{"$error":"#N/A"}},{"$f":"IF('1. Order'!Q823=\"\",\"\",'1. Order'!Q823)","v":""},{"$f":"IF('1. Order'!S823=\"\",\"\",'1. Order'!S823)","v":""},{"$f":"IF('1. Order'!T823=\"\",\"\",'1. Order'!T823)","v":""},{"$f":"IF('1. Order'!W823=\"\",\"\",'1. Order'!W823)","v":""},{"$f":"IF('1. Order'!X823=\"\",\"\",'1. Order'!X823)","v":""},{"$f":"IF('1. Order'!Y823=\"\",\"\",'1. Order'!Y823)","v":"EUR"},{"$f":"IF('1. Order'!Z823=\"\",\"\",'1. Order'!Z823)","v":""},{"$f":"IF('1. Order'!AA823=\"\",\"\",'1. Order'!AA823)","v":""},{"$f":"IF('1. Order'!AB823=\"\",\"\",'1. Order'!AB823)","v":""},null,{"$f":"IF('1. Order'!AT823=\"\",\"\",'1. Order'!AT823)","v":""},{"$f":"IF('1. Order'!AU823=\"\",\"\",'1. Order'!AU823)","v":""},null,null,null,null,null,null,null,{"$f":"IF('1. Order'!AY823=\"\",\"\",'1. Order'!AY823)","v":""},{"$f":"IF('1. Order'!AZ823=\"\",\"\",'1. Order'!AZ823)","v":""},{"$f":"IF('1. Order'!BA823=\"\",\"\",'1. Order'!BA823)","v":""},{"$f":"IF('1. Order'!BB823=\"\",\"\",'1. Order'!BB823)","v":""},{"$f":"IF('1. Order'!BD823=\"\",\"\",'1. Order'!BD823)","v":""},{"$f":"IF('1. Order'!BE823=\"\",\"\",'1. Order'!BE823)","v":""},{"$f":"IF('1. Order'!BF823=\"\",\"\",'1. Order'!BF823)","v":""},{"$f":"IF('1. Order'!BG823=\"\",\"\",'1. Order'!BG823)","v":""},{"$f":"IF('1. Order'!BH823=\"\",\"\",'1. Order'!BH823)","v":"ZWO"}]
[{"$f":"IF('1. Order'!F824=\"\",\"\",'1. Order'!F824)","v":{"$error":"#N/A"}},{"$f":"IF('1. Order'!G824=\"\",\"\",'1. Order'!G824)","v":""},{"$f":"IF('1. Order'!H824=\"\",\"\",'1. Order'!H824)","v":""},{"$f":"IF('1. Order'!I824=\"\",\"\",'1. Order'!I824)","v":""},{"$f":"IF('1. Order'!J824=\"\",\"\",'1. Order'!J824)","v":""},{"$f":"IF('1. Order'!K824=\"\",\"\",'1. Order'!K824)","v":""},{"$f":"IF('1. Order'!L824=\"\",\"\",'1. Order'!L824)","v":""},{"$f":"IF('1. Order'!M824=\"\",\"\",'1. Order'!M824)","v":""},{"$f":"IF('1. Order'!N824=\"\",\"\",'1. Order'!N824)","v":""},{"$f":"IF('1. Order'!O824=\"\",\"\",'1. Order'!O824)","v":{"$error":"#N/A"}},{"$f":"IF('1. Order'!P824=\"\",\"\",'1. Order'!P824)","v":{"$error":"#N/A"}},{"$f":"IF('1. Order'!Q824=\"\",\"\",'1. Order'!Q824)","v":""},{"$f":"IF('1. Order'!S824=\"\",\"\",'1. Order'!S824)","v":""},{"$f":"IF('1. Order'!T824=\"\",\"\",'1. Order'!T824)","v":""},{"$f":"IF('1. Order'!W824=\"\",\"\",'1. Order'!W824)","v":""},{"$f":"IF('1. Order'!X824=\"\",\"\",'1. Order'!X824)","v":""},{"$f":"IF('1. Order'!Y824=\"\",\"\",'1. Order'!Y824)","v":"EUR"},{"$f":"IF('1. Order'!Z824=\"\",\"\",'1. Order'!Z824)","v":""},{"$f":"IF('1. Order'!AA824=\"\",\"\",'1. Order'!AA824)","v":""},{"$f":"IF('1. Order'!AB824=\"\",\"\",'1. Order'!AB824)","v":""},null,{"$f":"IF('1. Order'!AT824=\"\",\"\",'1. Order'!AT824)","v":""},{"$f":"IF('1. Order'!AU824=\"\",\"\",'1. Order'!AU824)","v":""},null,null,null,null,null,null,null,{"$f":"IF('1. Order'!AY824=\"\",\"\",'1. Order'!AY824)","v":""},{"$f":"IF('1. Order'!AZ824=\"\",\"\",'1. Order'!AZ824)","v":""},{"$f":"IF('1. Order'!BA824=\"\",\"\",'1. Order'!BA824)","v":""},{"$f":"IF('1. Order'!BB824=\"\",\"\",'1. Order'!BB824)","v":""},{"$f":"IF('1. Order'!BD824=\"\",\"\",'1. Order'!BD824)","v":""},{"$f":"IF('1. Order'!BE824=\"\",\"\",'1. Order'!BE824)","v":""},{"$f":"IF('1. Order'!BF824=\"\",\"\",'1. Order'!BF824)","v":""},{"$f":"IF('1. Order'!BG824=\"\",\"\",'1. Order'!BG824)","v":""},{"$f":"IF('1. Order'!BH824=\"\",\"\",'1. Order'!BH824)","v":"ZWO"}]
[{"$f":"IF('1. Order'!F825=\"\",\"\",'1. Order'!F825)","v":{"$error":"#N/A"}},{"$f":"IF('1. Order'!G825=\"\",\"\",'1. Order'!G825)","v":""},{"$f":"IF('1. Order'!H825=\"\",\"\",'1. Order'!H825)","v":""},{"$f":"IF('1. Order'!I825=\"\",\"\",'1. Order'!I825)","v":""},{"$f":"IF('1. Order'!J825=\"\",\"\",'1. Order'!J825)","v":""},{"$f":"IF('1. Order'!K825=\"\",\"\",'1. Order'!K825)","v":""},{"$f":"IF('1. Order'!L825=\"\",\"\",'1. Order'!L825)","v":""},{"$f":"IF('1. Order'!M825=\"\",\"\",'1. Order'!M825)","v":""},{"$f":"IF('1. Order'!N825=\"\",\"\",'1. Order'!N825)","v":""},{"$f":"IF('1. Order'!O825=\"\",\"\",'1. Order'!O825)","v":{"$error":"#N/A"}},{"$f":"IF('1. Order'!P825=\"\",\"\",'1. Order'!P825)","v":{"$error":"#N/A"}},{"$f":"IF('1. Order'!Q825=\"\",\"\",'1. Order'!Q825)","v":""},{"$f":"IF('1. Order'!S825=\"\",\"\",'1. Order'!S825)","v":""},{"$f":"IF('1. Order'!T825=\"\",\"\",'1. Order'!T825)","v":""},{"$f":"IF('1. Order'!W825=\"\",\"\",'1. Order'!W825)","v":""},{"$f":"IF('1. Order'!X825=\"\",\"\",'1. Order'!X825)","v":""},{"$f":"IF('1. Order'!Y825=\"\",\"\",'1. Order'!Y825)","v":"EUR"},{"$f":"IF('1. Order'!Z825=\"\",\"\",'1. Order'!Z825)","v":""},{"$f":"IF('1. Order'!AA825=\"\",\"\",'1. Order'!AA825)","v":""},{"$f":"IF('1. Order'!AB825=\"\",\"\",'1. Order'!AB825)","v":""},null,{"$f":"IF('1. Order'!AT825=\"\",\"\",'1. Order'!AT825)","v":""},{"$f":"IF('1. Order'!AU825=\"\",\"\",'1. Order'!AU825)","v":""},null,null,null,null,null,null,null,{"$f":"IF('1. Order'!AY825=\"\",\"\",'1. Order'!AY825)","v":""},{"$f":"IF('1. Order'!AZ825=\"\",\"\",'1. Order'!AZ825)","v":""},{"$f":"IF('1. Order'!BA825=\"\",\"\",'1. Order'!BA825)","v":""},{"$f":"IF('1. Order'!BB825=\"\",\"\",'1. Order'!BB825)","v":""},{"$f":"IF('1. Order'!BD825=\"\",\"\",'1. Order'!BD825)","v":""},{"$f":"IF('1. Order'!BE825=\"\",\"\",'1. Order'!BE825)","v":""},{"$f":"IF('1. Order'!BF825=\"\",\"\",'1. Order'!BF825)","v":""},{"$f":"IF('1. Order'!BG825=\"\",\"\",'1. Order'!BG825)","v":""},{"$f":"IF('1. Order'!BH825=\"\",\"\",'1. Order'!BH825)","v":"ZWO"}]
[{"$f":"IF('1. Order'!F826=\"\",\"\",'1. Order'!F826)","v":{"$error":"#N/A"}},{"$f":"IF('1. Order'!G826=\"\",\"\",'1. Order'!G826)","v":""},{"$f":"IF('1. Order'!H826=\"\",\"\",'1. Order'!H826)","v":""},{"$f":"IF('1. Order'!I826=\"\",\"\",'1. Order'!I826)","v":""},{"$f":"IF('1. Order'!J826=\"\",\"\",'1. Order'!J826)","v":""},{"$f":"IF('1. Order'!K826=\"\",\"\",'1. Order'!K826)","v":""},{"$f":"IF('1. Order'!L826=\"\",\"\",'1. Order'!L826)","v":""},{"$f":"IF('1. Order'!M826=\"\",\"\",'1. Order'!M826)","v":""},{"$f":"IF('1. Order'!N826=\"\",\"\",'1. Order'!N826)","v":""},{"$f":"IF('1. Order'!O826=\"\",\"\",'1. Order'!O826)","v":{"$error":"#N/A"}},{"$f":"IF('1. Order'!P826=\"\",\"\",'1. Order'!P826)","v":{"$error":"#N/A"}},{"$f":"IF('1. Order'!Q826=\"\",\"\",'1. Order'!Q826)","v":""},{"$f":"IF('1. Order'!S826=\"\",\"\",'1. Order'!S826)","v":""},{"$f":"IF('1. Order'!T826=\"\",\"\",'1. Order'!T826)","v":""},{"$f":"IF('1. Order'!W826=\"\",\"\",'1. Order'!W826)","v":""},{"$f":"IF('1. Order'!X826=\"\",\"\",'1. Order'!X826)","v":""},{"$f":"IF('1. Order'!Y826=\"\",\"\",'1. Order'!Y826)","v":"EUR"},{"$f":"IF('1. Order'!Z826=\"\",\"\",'1. Order'!Z826)","v":""},{"$f":"IF('1. Order'!AA826=\"\",\"\",'1. Order'!AA826)","v":""},{"$f":"IF('1. Order'!AB826=\"\",\"\",'1. Order'!AB826)","v":""},null,{"$f":"IF('1. Order'!AT826=\"\",\"\",'1. Order'!AT826)","v":""},{"$f":"IF('1. Order'!AU826=\"\",\"\",'1. Order'!AU826)","v":""},null,null,null,null,null,null,null,{"$f":"IF('1. Order'!AY826=\"\",\"\",'1. Order'!AY826)","v":""},{"$f":"IF('1. Order'!AZ826=\"\",\"\",'1. Order'!AZ826)","v":""},{"$f":"IF('1. Order'!BA826=\"\",\"\",'1. Order'!BA826)","v":""},{"$f":"IF('1. Order'!BB826=\"\",\"\",'1. Order'!BB826)","v":""},{"$f":"IF('1. Order'!BD826=\"\",\"\",'1. Order'!BD826)","v":""},{"$f":"IF('1. Order'!BE826=\"\",\"\",'1. Order'!BE826)","v":""},{"$f":"IF('1. Order'!BF826=\"\",\"\",'1. Order'!BF826)","v":""},{"$f":"IF('1. Order'!BG826=\"\",\"\",'1. Order'!BG826)","v":""},{"$f":"IF('1. Order'!BH826=\"\",\"\",'1. Order'!BH826)","v":"ZWO"}]
[{"$f":"IF('1. Order'!F827=\"\",\"\",'1. Order'!F827)","v":{"$error":"#N/A"}},{"$f":"IF('1. Order'!G827=\"\",\"\",'1. Order'!G827)","v":""},{"$f":"IF('1. Order'!H827=\"\",\"\",'1. Order'!H827)","v":""},{"$f":"IF('1. Order'!I827=\"\",\"\",'1. Order'!I827)","v":""},{"$f":"IF('1. Order'!J827=\"\",\"\",'1. Order'!J827)","v":""},{"$f":"IF('1. Order'!K827=\"\",\"\",'1. Order'!K827)","v":""},{"$f":"IF('1. Order'!L827=\"\",\"\",'1. Order'!L827)","v":""},{"$f":"IF('1. Order'!M827=\"\",\"\",'1. Order'!M827)","v":""},{"$f":"IF('1. Order'!N827=\"\",\"\",'1. Order'!N827)","v":""},{"$f":"IF('1. Order'!O827=\"\",\"\",'1. Order'!O827)","v":{"$error":"#N/A"}},{"$f":"IF('1. Order'!P827=\"\",\"\",'1. Order'!P827)","v":{"$error":"#N/A"}},{"$f":"IF('1. Order'!Q827=\"\",\"\",'1. Order'!Q827)","v":""},{"$f":"IF('1. Order'!S827=\"\",\"\",'1. Order'!S827)","v":""},{"$f":"IF('1. Order'!T827=\"\",\"\",'1. Order'!T827)","v":""},{"$f":"IF('1. Order'!W827=\"\",\"\",'1. Order'!W827)","v":""},{"$f":"IF('1. Order'!X827=\"\",\"\",'1. Order'!X827)","v":""},{"$f":"IF('1. Order'!Y827=\"\",\"\",'1. Order'!Y827)","v":"EUR"},{"$f":"IF('1. Order'!Z827=\"\",\"\",'1. Order'!Z827)","v":""},{"$f":"IF('1. Order'!AA827=\"\",\"\",'1. Order'!AA827)","v":""},{"$f":"IF('1. Order'!AB827=\"\",\"\",'1. Order'!AB827)","v":""},null,{"$f":"IF('1. Order'!AT827=\"\",\"\",'1. Order'!AT827)","v":""},{"$f":"IF('1. Order'!AU827=\"\",\"\",'1. Order'!AU827)","v":""},null,null,null,null,null,null,null,{"$f":"IF('1. Order'!AY827=\"\",\"\",'1. Order'!AY827)","v":""},{"$f":"IF('1. Order'!AZ827=\"\",\"\",'1. Order'!AZ827)","v":""},{"$f":"IF('1. Order'!BA827=\"\",\"\",'1. Order'!BA827)","v":""},{"$f":"IF('1. Order'!BB827=\"\",\"\",'1. Order'!BB827)","v":""},{"$f":"IF('1. Order'!BD827=\"\",\"\",'1. Order'!BD827)","v":""},{"$f":"IF('1. Order'!BE827=\"\",\"\",'1. Order'!BE827)","v":""},{"$f":"IF('1. Order'!BF827=\"\",\"\",'1. Order'!BF827)","v":""},{"$f":"IF('1. Order'!BG827=\"\",\"\",'1. Order'!BG827)","v":""},{"$f":"IF('1. Order'!BH827=\"\",\"\",'1. Order'!BH827)","v":"ZWO"}]
[{"$f":"IF('1. Order'!F828=\"\",\"\",'1. Order'!F828)","v":{"$error":"#N/A"}},{"$f":"IF('1. Order'!G828=\"\",\"\",'1. Order'!G828)","v":""},{"$f":"IF('1. Order'!H828=\"\",\"\",'1. Order'!H828)","v":""},{"$f":"IF('1. Order'!I828=\"\",\"\",'1. Order'!I828)","v":""},{"$f":"IF('1. Order'!J828=\"\",\"\",'1. Order'!J828)","v":""},{"$f":"IF('1. Order'!K828=\"\",\"\",'1. Order'!K828)","v":""},{"$f":"IF('1. Order'!L828=\"\",\"\",'1. Order'!L828)","v":""},{"$f":"IF('1. Order'!M828=\"\",\"\",'1. Order'!M828)","v":""},{"$f":"IF('1. Order'!N828=\"\",\"\",'1. Order'!N828)","v":""},{"$f":"IF('1. Order'!O828=\"\",\"\",'1. Order'!O828)","v":{"$error":"#N/A"}},{"$f":"IF('1. Order'!P828=\"\",\"\",'1. Order'!P828)","v":{"$error":"#N/A"}},{"$f":"IF('1. Order'!Q828=\"\",\"\",'1. Order'!Q828)","v":""},{"$f":"IF('1. Order'!S828=\"\",\"\",'1. Order'!S828)","v":""},{"$f":"IF('1. Order'!T828=\"\",\"\",'1. Order'!T828)","v":""},{"$f":"IF('1. Order'!W828=\"\",\"\",'1. Order'!W828)","v":""},{"$f":"IF('1. Order'!X828=\"\",\"\",'1. Order'!X828)","v":""},{"$f":"IF('1. Order'!Y828=\"\",\"\",'1. Order'!Y828)","v":"EUR"},{"$f":"IF('1. Order'!Z828=\"\",\"\",'1. Order'!Z828)","v":""},{"$f":"IF('1. Order'!AA828=\"\",\"\",'1. Order'!AA828)","v":""},{"$f":"IF('1. Order'!AB828=\"\",\"\",'1. Order'!AB828)","v":""},null,{"$f":"IF('1. Order'!AT828=\"\",\"\",'1. Order'!AT828)","v":""},{"$f":"IF('1. Order'!AU828=\"\",\"\",'1. Order'!AU828)","v":""},null,null,null,null,null,null,null,{"$f":"IF('1. Order'!AY828=\"\",\"\",'1. Order'!AY828)","v":""},{"$f":"IF('1. Order'!AZ828=\"\",\"\",'1. Order'!AZ828)","v":""},{"$f":"IF('1. Order'!BA828=\"\",\"\",'1. Order'!BA828)","v":""},{"$f":"IF('1. Order'!BB828=\"\",\"\",'1. Order'!BB828)","v":""},{"$f":"IF('1. Order'!BD828=\"\",\"\",'1. Order'!BD828)","v":""},{"$f":"IF('1. Order'!BE828=\"\",\"\",'1. Order'!BE828)","v":""},{"$f":"IF('1. Order'!BF828=\"\",\"\",'1. Order'!BF828)","v":""},{"$f":"IF('1. Order'!BG828=\"\",\"\",'1. Order'!BG828)","v":""},{"$f":"IF('1. Order'!BH828=\"\",\"\",'1. Order'!BH828)","v":"ZWO"}]
[{"$f":"IF('1. Order'!F829=\"\",\"\",'1. Order'!F829)","v":{"$error":"#N/A"}},{"$f":"IF('1. Order'!G829=\"\",\"\",'1. Order'!G829)","v":""},{"$f":"IF('1. Order'!H829=\"\",\"\",'1. Order'!H829)","v":""},{"$f":"IF('1. Order'!I829=\"\",\"\",'1. Order'!I829)","v":""},{"$f":"IF('1. Order'!J829=\"\",\"\",'1. Order'!J829)","v":""},{"$f":"IF('1. Order'!K829=\"\",\"\",'1. Order'!K829)","v":""},{"$f":"IF('1. Order'!L829=\"\",\"\",'1. Order'!L829)","v":""},{"$f":"IF('1. Order'!M829=\"\",\"\",'1. Order'!M829)","v":""},{"$f":"IF('1. Order'!N829=\"\",\"\",'1. Order'!N829)","v":""},{"$f":"IF('1. Order'!O829=\"\",\"\",'1. Order'!O829)","v":{"$error":"#N/A"}},{"$f":"IF('1. Order'!P829=\"\",\"\",'1. Order'!P829)","v":{"$error":"#N/A"}},{"$f":"IF('1. Order'!Q829=\"\",\"\",'1. Order'!Q829)","v":""},{"$f":"IF('1. Order'!S829=\"\",\"\",'1. Order'!S829)","v":""},{"$f":"IF('1. Order'!T829=\"\",\"\",'1. Order'!T829)","v":""},{"$f":"IF('1. Order'!W829=\"\",\"\",'1. Order'!W829)","v":""},{"$f":"IF('1. Order'!X829=\"\",\"\",'1. Order'!X829)","v":""},{"$f":"IF('1. Order'!Y829=\"\",\"\",'1. Order'!Y829)","v":"EUR"},{"$f":"IF('1. Order'!Z829=\"\",\"\",'1. Order'!Z829)","v":""},{"$f":"IF('1. Order'!AA829=\"\",\"\",'1. Order'!AA829)","v":""},{"$f":"IF('1. Order'!AB829=\"\",\"\",'1. Order'!AB829)","v":""},null,{"$f":"IF('1. Order'!AT829=\"\",\"\",'1. Order'!AT829)","v":""},{"$f":"IF('1. Order'!AU829=\"\",\"\",'1. Order'!AU829)","v":""},null,null,null,null,null,null,null,{"$f":"IF('1. Order'!AY829=\"\",\"\",'1. Order'!AY829)","v":""},{"$f":"IF('1. Order'!AZ829=\"\",\"\",'1. Order'!AZ829)","v":""},{"$f":"IF('1. Order'!BA829=\"\",\"\",'1. Order'!BA829)","v":""},{"$f":"IF('1. Order'!BB829=\"\",\"\",'1. Order'!BB829)","v":""},{"$f":"IF('1. Order'!BD829=\"\",\"\",'1. Order'!BD829)","v":""},{"$f":"IF('1. Order'!BE829=\"\",\"\",'1. Order'!BE829)","v":""},{"$f":"IF('1. Order'!BF829=\"\",\"\",'1. Order'!BF829)","v":""},{"$f":"IF('1. Order'!BG829=\"\",\"\",'1. Order'!BG829)","v":""},{"$f":"IF('1. Order'!BH829=\"\",\"\",'1. Order'!BH829)","v":"ZWO"}]
[{"$f":"IF('1. Order'!F830=\"\",\"\",'1. Order'!F830)","v":{"$error":"#N/A"}},{"$f":"IF('1. Order'!G830=\"\",\"\",'1. Order'!G830)","v":""},{"$f":"IF('1. Order'!H830=\"\",\"\",'1. Order'!H830)","v":""},{"$f":"IF('1. Order'!I830=\"\",\"\",'1. Order'!I830)","v":""},{"$f":"IF('1. Order'!J830=\"\",\"\",'1. Order'!J830)","v":""},{"$f":"IF('1. Order'!K830=\"\",\"\",'1. Order'!K830)","v":""},{"$f":"IF('1. Order'!L830=\"\",\"\",'1. Order'!L830)","v":""},{"$f":"IF('1. Order'!M830=\"\",\"\",'1. Order'!M830)","v":""},{"$f":"IF('1. Order'!N830=\"\",\"\",'1. Order'!N830)","v":""},{"$f":"IF('1. Order'!O830=\"\",\"\",'1. Order'!O830)","v":{"$error":"#N/A"}},{"$f":"IF('1. Order'!P830=\"\",\"\",'1. Order'!P830)","v":{"$error":"#N/A"}},{"$f":"IF('1. Order'!Q830=\"\",\"\",'1. Order'!Q830)","v":""},{"$f":"IF('1. Order'!S830=\"\",\"\",'1. Order'!S830)","v":""},{"$f":"IF('1. Order'!T830=\"\",\"\",'1. Order'!T830)","v":""},{"$f":"IF('1. Order'!W830=\"\",\"\",'1. Order'!W830)","v":""},{"$f":"IF('1. Order'!X830=\"\",\"\",'1. Order'!X830)","v":""},{"$f":"IF('1. Order'!Y830=\"\",\"\",'1. Order'!Y830)","v":"EUR"},{"$f":"IF('1. Order'!Z830=\"\",\"\",'1. Order'!Z830)","v":""},{"$f":"IF('1. Order'!AA830=\"\",\"\",'1. Order'!AA830)","v":""},{"$f":"IF('1. Order'!AB830=\"\",\"\",'1. Order'!AB830)","v":""},null,{"$f":"IF('1. Order'!AT830=\"\",\"\",'1. Order'!AT830)","v":""},{"$f":"IF('1. Order'!AU830=\"\",\"\",'1. Order'!AU830)","v":""},null,null,null,null,null,null,null,{"$f":"IF('1. Order'!AY830=\"\",\"\",'1. Order'!AY830)","v":""},{"$f":"IF('1. Order'!AZ830=\"\",\"\",'1. Order'!AZ830)","v":""},{"$f":"IF('1. Order'!BA830=\"\",\"\",'1. Order'!BA830)","v":""},{"$f":"IF('1. Order'!BB830=\"\",\"\",'1. Order'!BB830)","v":""},{"$f":"IF('1. Order'!BD830=\"\",\"\",'1. Order'!BD830)","v":""},{"$f":"IF('1. Order'!BE830=\"\",\"\",'1. Order'!BE830)","v":""},{"$f":"IF('1. Order'!BF830=\"\",\"\",'1. Order'!BF830)","v":""},{"$f":"IF('1. Order'!BG830=\"\",\"\",'1. Order'!BG830)","v":""},{"$f":"IF('1. Order'!BH830=\"\",\"\",'1. Order'!BH830)","v":"ZWO"}]
[{"$f":"IF('1. Order'!F831=\"\",\"\",'1. Order'!F831)","v":{"$error":"#N/A"}},{"$f":"IF('1. Order'!G831=\"\",\"\",'1. Order'!G831)","v":""},{"$f":"IF('1. Order'!H831=\"\",\"\",'1. Order'!H831)","v":""},{"$f":"IF('1. Order'!I831=\"\",\"\",'1. Order'!I831)","v":""},{"$f":"IF('1. Order'!J831=\"\",\"\",'1. Order'!J831)","v":""},{"$f":"IF('1. Order'!K831=\"\",\"\",'1. Order'!K831)","v":""},{"$f":"IF('1. Order'!L831=\"\",\"\",'1. Order'!L831)","v":""},{"$f":"IF('1. Order'!M831=\"\",\"\",'1. Order'!M831)","v":""},{"$f":"IF('1. Order'!N831=\"\",\"\",'1. Order'!N831)","v":""},{"$f":"IF('1. Order'!O831=\"\",\"\",'1. Order'!O831)","v":{"$error":"#N/A"}},{"$f":"IF('1. Order'!P831=\"\",\"\",'1. Order'!P831)","v":{"$error":"#N/A"}},{"$f":"IF('1. Order'!Q831=\"\",\"\",'1. Order'!Q831)","v":""},{"$f":"IF('1. Order'!S831=\"\",\"\",'1. Order'!S831)","v":""},{"$f":"IF('1. Order'!T831=\"\",\"\",'1. Order'!T831)","v":""},{"$f":"IF('1. Order'!W831=\"\",\"\",'1. Order'!W831)","v":""},{"$f":"IF('1. Order'!X831=\"\",\"\",'1. Order'!X831)","v":""},{"$f":"IF('1. Order'!Y831=\"\",\"\",'1. Order'!Y831)","v":"EUR"},{"$f":"IF('1. Order'!Z831=\"\",\"\",'1. Order'!Z831)","v":""},{"$f":"IF('1. Order'!AA831=\"\",\"\",'1. Order'!AA831)","v":""},{"$f":"IF('1. Order'!AB831=\"\",\"\",'1. Order'!AB831)","v":""},null,{"$f":"IF('1. Order'!AT831=\"\",\"\",'1. Order'!AT831)","v":""},{"$f":"IF('1. Order'!AU831=\"\",\"\",'1. Order'!AU831)","v":""},null,null,null,null,null,null,null,{"$f":"IF('1. Order'!AY831=\"\",\"\",'1. Order'!AY831)","v":""},{"$f":"IF('1. Order'!AZ831=\"\",\"\",'1. Order'!AZ831)","v":""},{"$f":"IF('1. Order'!BA831=\"\",\"\",'1. Order'!BA831)","v":""},{"$f":"IF('1. Order'!BB831=\"\",\"\",'1. Order'!BB831)","v":""},{"$f":"IF('1. Order'!BD831=\"\",\"\",'1. Order'!BD831)","v":""},{"$f":"IF('1. Order'!BE831=\"\",\"\",'1. Order'!BE831)","v":""},{"$f":"IF('1. Order'!BF831=\"\",\"\",'1. Order'!BF831)","v":""},{"$f":"IF('1. Order'!BG831=\"\",\"\",'1. Order'!BG831)","v":""},{"$f":"IF('1. Order'!BH831=\"\",\"\",'1. Order'!BH831)","v":"ZWO"}]
[{"$f":"IF('1. Order'!F832=\"\",\"\",'1. Order'!F832)","v":{"$error":"#N/A"}},{"$f":"IF('1. Order'!G832=\"\",\"\",'1. Order'!G832)","v":""},{"$f":"IF('1. Order'!H832=\"\",\"\",'1. Order'!H832)","v":""},{"$f":"IF('1. Order'!I832=\"\",\"\",'1. Order'!I832)","v":""},{"$f":"IF('1. Order'!J832=\"\",\"\",'1. Order'!J832)","v":""},{"$f":"IF('1. Order'!K832=\"\",\"\",'1. Order'!K832)","v":""},{"$f":"IF('1. Order'!L832=\"\",\"\",'1. Order'!L832)","v":""},{"$f":"IF('1. Order'!M832=\"\",\"\",'1. Order'!M832)","v":""},{"$f":"IF('1. Order'!N832=\"\",\"\",'1. Order'!N832)","v":""},{"$f":"IF('1. Order'!O832=\"\",\"\",'1. Order'!O832)","v":{"$error":"#N/A"}},{"$f":"IF('1. Order'!P832=\"\",\"\",'1. Order'!P832)","v":{"$error":"#N/A"}},{"$f":"IF('1. Order'!Q832=\"\",\"\",'1. Order'!Q832)","v":""},{"$f":"IF('1. Order'!S832=\"\",\"\",'1. Order'!S832)","v":""},{"$f":"IF('1. Order'!T832=\"\",\"\",'1. Order'!T832)","v":""},{"$f":"IF('1. Order'!W832=\"\",\"\",'1. Order'!W832)","v":""},{"$f":"IF('1. Order'!X832=\"\",\"\",'1. Order'!X832)","v":""},{"$f":"IF('1. Order'!Y832=\"\",\"\",'1. Order'!Y832)","v":"EUR"},{"$f":"IF('1. Order'!Z832=\"\",\"\",'1. Order'!Z832)","v":""},{"$f":"IF('1. Order'!AA832=\"\",\"\",'1. Order'!AA832)","v":""},{"$f":"IF('1. Order'!AB832=\"\",\"\",'1. Order'!AB832)","v":""},null,{"$f":"IF('1. Order'!AT832=\"\",\"\",'1. Order'!AT832)","v":""},{"$f":"IF('1. Order'!AU832=\"\",\"\",'1. Order'!AU832)","v":""},null,null,null,null,null,null,null,{"$f":"IF('1. Order'!AY832=\"\",\"\",'1. Order'!AY832)","v":""},{"$f":"IF('1. Order'!AZ832=\"\",\"\",'1. Order'!AZ832)","v":""},{"$f":"IF('1. Order'!BA832=\"\",\"\",'1. Order'!BA832)","v":""},{"$f":"IF('1. Order'!BB832=\"\",\"\",'1. Order'!BB832)","v":""},{"$f":"IF('1. Order'!BD832=\"\",\"\",'1. Order'!BD832)","v":""},{"$f":"IF('1. Order'!BE832=\"\",\"\",'1. Order'!BE832)","v":""},{"$f":"IF('1. Order'!BF832=\"\",\"\",'1. Order'!BF832)","v":""},{"$f":"IF('1. Order'!BG832=\"\",\"\",'1. Order'!BG832)","v":""},{"$f":"IF('1. Order'!BH832=\"\",\"\",'1. Order'!BH832)","v":"ZWO"}]
[{"$f":"IF('1. Order'!F833=\"\",\"\",'1. Order'!F833)","v":{"$error":"#N/A"}},{"$f":"IF('1. Order'!G833=\"\",\"\",'1. Order'!G833)","v":""},{"$f":"IF('1. Order'!H833=\"\",\"\",'1. Order'!H833)","v":""},{"$f":"IF('1. Order'!I833=\"\",\"\",'1. Order'!I833)","v":""},{"$f":"IF('1. Order'!J833=\"\",\"\",'1. Order'!J833)","v":""},{"$f":"IF('1. Order'!K833=\"\",\"\",'1. Order'!K833)","v":""},{"$f":"IF('1. Order'!L833=\"\",\"\",'1. Order'!L833)","v":""},{"$f":"IF('1. Order'!M833=\"\",\"\",'1. Order'!M833)","v":""},{"$f":"IF('1. Order'!N833=\"\",\"\",'1. Order'!N833)","v":""},{"$f":"IF('1. Order'!O833=\"\",\"\",'1. Order'!O833)","v":{"$error":"#N/A"}},{"$f":"IF('1. Order'!P833=\"\",\"\",'1. Order'!P833)","v":{"$error":"#N/A"}},{"$f":"IF('1. Order'!Q833=\"\",\"\",'1. Order'!Q833)","v":""},{"$f":"IF('1. Order'!S833=\"\",\"\",'1. Order'!S833)","v":""},{"$f":"IF('1. Order'!T833=\"\",\"\",'1. Order'!T833)","v":""},{"$f":"IF('1. Order'!W833=\"\",\"\",'1. Order'!W833)","v":""},{"$f":"IF('1. Order'!X833=\"\",\"\",'1. Order'!X833)","v":""},{"$f":"IF('1. Order'!Y833=\"\",\"\",'1. Order'!Y833)","v":"EUR"},{"$f":"IF('1. Order'!Z833=\"\",\"\",'1. Order'!Z833)","v":""},{"$f":"IF('1. Order'!AA833=\"\",\"\",'1. Order'!AA833)","v":""},{"$f":"IF('1. Order'!AB833=\"\",\"\",'1. Order'!AB833)","v":""},null,{"$f":"IF('1. Order'!AT833=\"\",\"\",'1. Order'!AT833)","v":""},{"$f":"IF('1. Order'!AU833=\"\",\"\",'1. Order'!AU833)","v":""},null,null,null,null,null,null,null,{"$f":"IF('1. Order'!AY833=\"\",\"\",'1. Order'!AY833)","v":""},{"$f":"IF('1. Order'!AZ833=\"\",\"\",'1. Order'!AZ833)","v":""},{"$f":"IF('1. Order'!BA833=\"\",\"\",'1. Order'!BA833)","v":""},{"$f":"IF('1. Order'!BB833=\"\",\"\",'1. Order'!BB833)","v":""},{"$f":"IF('1. Order'!BD833=\"\",\"\",'1. Order'!BD833)","v":""},{"$f":"IF('1. Order'!BE833=\"\",\"\",'1. Order'!BE833)","v":""},{"$f":"IF('1. Order'!BF833=\"\",\"\",'1. Order'!BF833)","v":""},{"$f":"IF('1. Order'!BG833=\"\",\"\",'1. Order'!BG833)","v":""},{"$f":"IF('1. Order'!BH833=\"\",\"\",'1. Order'!BH833)","v":"ZWO"}]
[{"$f":"IF('1. Order'!F834=\"\",\"\",'1. Order'!F834)","v":{"$error":"#N/A"}},{"$f":"IF('1. Order'!G834=\"\",\"\",'1. Order'!G834)","v":""},{"$f":"IF('1. Order'!H834=\"\",\"\",'1. Order'!H834)","v":""},{"$f":"IF('1. Order'!I834=\"\",\"\",'1. Order'!I834)","v":""},{"$f":"IF('1. Order'!J834=\"\",\"\",'1. Order'!J834)","v":""},{"$f":"IF('1. Order'!K834=\"\",\"\",'1. Order'!K834)","v":""},{"$f":"IF('1. Order'!L834=\"\",\"\",'1. Order'!L834)","v":""},{"$f":"IF('1. Order'!M834=\"\",\"\",'1. Order'!M834)","v":""},{"$f":"IF('1. Order'!N834=\"\",\"\",'1. Order'!N834)","v":""},{"$f":"IF('1. Order'!O834=\"\",\"\",'1. Order'!O834)","v":{"$error":"#N/A"}},{"$f":"IF('1. Order'!P834=\"\",\"\",'1. Order'!P834)","v":{"$error":"#N/A"}},{"$f":"IF('1. Order'!Q834=\"\",\"\",'1. Order'!Q834)","v":""},{"$f":"IF('1. Order'!S834=\"\",\"\",'1. Order'!S834)","v":""},{"$f":"IF('1. Order'!T834=\"\",\"\",'1. Order'!T834)","v":""},{"$f":"IF('1. Order'!W834=\"\",\"\",'1. Order'!W834)","v":""},{"$f":"IF('1. Order'!X834=\"\",\"\",'1. Order'!X834)","v":""},{"$f":"IF('1. Order'!Y834=\"\",\"\",'1. Order'!Y834)","v":"EUR"},{"$f":"IF('1. Order'!Z834=\"\",\"\",'1. Order'!Z834)","v":""},{"$f":"IF('1. Order'!AA834=\"\",\"\",'1. Order'!AA834)","v":""},{"$f":"IF('1. Order'!AB834=\"\",\"\",'1. Order'!AB834)","v":""},null,{"$f":"IF('1. Order'!AT834=\"\",\"\",'1. Order'!AT834)","v":""},{"$f":"IF('1. Order'!AU834=\"\",\"\",'1. Order'!AU834)","v":""},null,null,null,null,null,null,null,{"$f":"IF('1. Order'!AY834=\"\",\"\",'1. Order'!AY834)","v":""},{"$f":"IF('1. Order'!AZ834=\"\",\"\",'1. Order'!AZ834)","v":""},{"$f":"IF('1. Order'!BA834=\"\",\"\",'1. Order'!BA834)","v":""},{"$f":"IF('1. Order'!BB834=\"\",\"\",'1. Order'!BB834)","v":""},{"$f":"IF('1. Order'!BD834=\"\",\"\",'1. Order'!BD834)","v":""},{"$f":"IF('1. Order'!BE834=\"\",\"\",'1. Order'!BE834)","v":""},{"$f":"IF('1. Order'!BF834=\"\",\"\",'1. Order'!BF834)","v":""},{"$f":"IF('1. Order'!BG834=\"\",\"\",'1. Order'!BG834)","v":""},{"$f":"IF('1. Order'!BH834=\"\",\"\",'1. Order'!BH834)","v":"ZWO"}]
[{"$f":"IF('1. Order'!F835=\"\",\"\",'1. Order'!F835)","v":{"$error":"#N/A"}},{"$f":"IF('1. Order'!G835=\"\",\"\",'1. Order'!G835)","v":""},{"$f":"IF('1. Order'!H835=\"\",\"\",'1. Order'!H835)","v":""},{"$f":"IF('1. Order'!I835=\"\",\"\",'1. Order'!I835)","v":""},{"$f":"IF('1. Order'!J835=\"\",\"\",'1. Order'!J835)","v":""},{"$f":"IF('1. Order'!K835=\"\",\"\",'1. Order'!K835)","v":""},{"$f":"IF('1. Order'!L835=\"\",\"\",'1. Order'!L835)","v":""},{"$f":"IF('1. Order'!M835=\"\",\"\",'1. Order'!M835)","v":""},{"$f":"IF('1. Order'!N835=\"\",\"\",'1. Order'!N835)","v":""},{"$f":"IF('1. Order'!O835=\"\",\"\",'1. Order'!O835)","v":{"$error":"#N/A"}},{"$f":"IF('1. Order'!P835=\"\",\"\",'1. Order'!P835)","v":{"$error":"#N/A"}},{"$f":"IF('1. Order'!Q835=\"\",\"\",'1. Order'!Q835)","v":""},{"$f":"IF('1. Order'!S835=\"\",\"\",'1. Order'!S835)","v":""},{"$f":"IF('1. Order'!T835=\"\",\"\",'1. Order'!T835)","v":""},{"$f":"IF('1. Order'!W835=\"\",\"\",'1. Order'!W835)","v":""},{"$f":"IF('1. Order'!X835=\"\",\"\",'1. Order'!X835)","v":""},{"$f":"IF('1. Order'!Y835=\"\",\"\",'1. Order'!Y835)","v":"EUR"},{"$f":"IF('1. Order'!Z835=\"\",\"\",'1. Order'!Z835)","v":""},{"$f":"IF('1. Order'!AA835=\"\",\"\",'1. Order'!AA835)","v":""},{"$f":"IF('1. Order'!AB835=\"\",\"\",'1. Order'!AB835)","v":""},null,{"$f":"IF('1. Order'!AT835=\"\",\"\",'1. Order'!AT835)","v":""},{"$f":"IF('1. Order'!AU835=\"\",\"\",'1. Order'!AU835)","v":""},null,null,null,null,null,null,null,{"$f":"IF('1. Order'!AY835=\"\",\"\",'1. Order'!AY835)","v":""},{"$f":"IF('1. Order'!AZ835=\"\",\"\",'1. Order'!AZ835)","v":""},{"$f":"IF('1. Order'!BA835=\"\",\"\",'1. Order'!BA835)","v":""},{"$f":"IF('1. Order'!BB835=\"\",\"\",'1. Order'!BB835)","v":""},{"$f":"IF('1. Order'!BD835=\"\",\"\",'1. Order'!BD835)","v":""},{"$f":"IF('1. Order'!BE835=\"\",\"\",'1. Order'!BE835)","v":""},{"$f":"IF('1. Order'!BF835=\"\",\"\",'1. Order'!BF835)","v":""},{"$f":"IF('1. Order'!BG835=\"\",\"\",'1. Order'!BG835)","v":""},{"$f":"IF('1. Order'!BH835=\"\",\"\",'1. Order'!BH835)","v":"ZWO"}]
[{"$f":"IF('1. Order'!F836=\"\",\"\",'1. Order'!F836)","v":{"$error":"#N/A"}},{"$f":"IF('1. Order'!G836=\"\",\"\",'1. Order'!G836)","v":""},{"$f":"IF('1. Order'!H836=\"\",\"\",'1. Order'!H836)","v":""},{"$f":"IF('1. Order'!I836=\"\",\"\",'1. Order'!I836)","v":""},{"$f":"IF('1. Order'!J836=\"\",\"\",'1. Order'!J836)","v":""},{"$f":"IF('1. Order'!K836=\"\",\"\",'1. Order'!K836)","v":""},{"$f":"IF('1. Order'!L836=\"\",\"\",'1. Order'!L836)","v":""},{"$f":"IF('1. Order'!M836=\"\",\"\",'1. Order'!M836)","v":""},{"$f":"IF('1. Order'!N836=\"\",\"\",'1. Order'!N836)","v":""},{"$f":"IF('1. Order'!O836=\"\",\"\",'1. Order'!O836)","v":{"$error":"#N/A"}},{"$f":"IF('1. Order'!P836=\"\",\"\",'1. Order'!P836)","v":{"$error":"#N/A"}},{"$f":"IF('1. Order'!Q836=\"\",\"\",'1. Order'!Q836)","v":""},{"$f":"IF('1. Order'!S836=\"\",\"\",'1. Order'!S836)","v":""},{"$f":"IF('1. Order'!T836=\"\",\"\",'1. Order'!T836)","v":""},{"$f":"IF('1. Order'!W836=\"\",\"\",'1. Order'!W836)","v":""},{"$f":"IF('1. Order'!X836=\"\",\"\",'1. Order'!X836)","v":""},{"$f":"IF('1. Order'!Y836=\"\",\"\",'1. Order'!Y836)","v":"EUR"},{"$f":"IF('1. Order'!Z836=\"\",\"\",'1. Order'!Z836)","v":""},{"$f":"IF('1. Order'!AA836=\"\",\"\",'1. Order'!AA836)","v":""},{"$f":"IF('1. Order'!AB836=\"\",\"\",'1. Order'!AB836)","v":""},null,{"$f":"IF('1. Order'!AT836=\"\",\"\",'1. Order'!AT836)","v":""},{"$f":"IF('1. Order'!AU836=\"\",\"\",'1. Order'!AU836)","v":""},null,null,null,null,null,null,null,{"$f":"IF('1. Order'!AY836=\"\",\"\",'1. Order'!AY836)","v":""},{"$f":"IF('1. Order'!AZ836=\"\",\"\",'1. Order'!AZ836)","v":""},{"$f":"IF('1. Order'!BA836=\"\",\"\",'1. Order'!BA836)","v":""},{"$f":"IF('1. Order'!BB836=\"\",\"\",'1. Order'!BB836)","v":""},{"$f":"IF('1. Order'!BD836=\"\",\"\",'1. Order'!BD836)","v":""},{"$f":"IF('1. Order'!BE836=\"\",\"\",'1. Order'!BE836)","v":""},{"$f":"IF('1. Order'!BF836=\"\",\"\",'1. Order'!BF836)","v":""},{"$f":"IF('1. Order'!BG836=\"\",\"\",'1. Order'!BG836)","v":""},{"$f":"IF('1. Order'!BH836=\"\",\"\",'1. Order'!BH836)","v":"ZWO"}]
[{"$f":"IF('1. Order'!F837=\"\",\"\",'1. Order'!F837)","v":{"$error":"#N/A"}},{"$f":"IF('1. Order'!G837=\"\",\"\",'1. Order'!G837)","v":""},{"$f":"IF('1. Order'!H837=\"\",\"\",'1. Order'!H837)","v":""},{"$f":"IF('1. Order'!I837=\"\",\"\",'1. Order'!I837)","v":""},{"$f":"IF('1. Order'!J837=\"\",\"\",'1. Order'!J837)","v":""},{"$f":"IF('1. Order'!K837=\"\",\"\",'1. Order'!K837)","v":""},{"$f":"IF('1. Order'!L837=\"\",\"\",'1. Order'!L837)","v":""},{"$f":"IF('1. Order'!M837=\"\",\"\",'1. Order'!M837)","v":""},{"$f":"IF('1. Order'!N837=\"\",\"\",'1. Order'!N837)","v":""},{"$f":"IF('1. Order'!O837=\"\",\"\",'1. Order'!O837)","v":{"$error":"#N/A"}},{"$f":"IF('1. Order'!P837=\"\",\"\",'1. Order'!P837)","v":{"$error":"#N/A"}},{"$f":"IF('1. Order'!Q837=\"\",\"\",'1. Order'!Q837)","v":""},{"$f":"IF('1. Order'!S837=\"\",\"\",'1. Order'!S837)","v":""},{"$f":"IF('1. Order'!T837=\"\",\"\",'1. Order'!T837)","v":""},{"$f":"IF('1. Order'!W837=\"\",\"\",'1. Order'!W837)","v":""},{"$f":"IF('1. Order'!X837=\"\",\"\",'1. Order'!X837)","v":""},{"$f":"IF('1. Order'!Y837=\"\",\"\",'1. Order'!Y837)","v":"EUR"},{"$f":"IF('1. Order'!Z837=\"\",\"\",'1. Order'!Z837)","v":""},{"$f":"IF('1. Order'!AA837=\"\",\"\",'1. Order'!AA837)","v":""},{"$f":"IF('1. Order'!AB837=\"\",\"\",'1. Order'!AB837)","v":""},null,{"$f":"IF('1. Order'!AT837=\"\",\"\",'1. Order'!AT837)","v":""},{"$f":"IF('1. Order'!AU837=\"\",\"\",'1. Order'!AU837)","v":""},null,null,null,null,null,null,null,{"$f":"IF('1. Order'!AY837=\"\",\"\",'1. Order'!AY837)","v":""},{"$f":"IF('1. Order'!AZ837=\"\",\"\",'1. Order'!AZ837)","v":""},{"$f":"IF('1. Order'!BA837=\"\",\"\",'1. Order'!BA837)","v":""},{"$f":"IF('1. Order'!BB837=\"\",\"\",'1. Order'!BB837)","v":""},{"$f":"IF('1. Order'!BD837=\"\",\"\",'1. Order'!BD837)","v":""},{"$f":"IF('1. Order'!BE837=\"\",\"\",'1. Order'!BE837)","v":""},{"$f":"IF('1. Order'!BF837=\"\",\"\",'1. Order'!BF837)","v":""},{"$f":"IF('1. Order'!BG837=\"\",\"\",'1. Order'!BG837)","v":""},{"$f":"IF('1. Order'!BH837=\"\",\"\",'1. Order'!BH837)","v":"ZWO"}]
[{"$f":"IF('1. Order'!F838=\"\",\"\",'1. Order'!F838)","v":{"$error":"#N/A"}},{"$f":"IF('1. Order'!G838=\"\",\"\",'1. Order'!G838)","v":""},{"$f":"IF('1. Order'!H838=\"\",\"\",'1. Order'!H838)","v":""},{"$f":"IF('1. Order'!I838=\"\",\"\",'1. Order'!I838)","v":""},{"$f":"IF('1. Order'!J838=\"\",\"\",'1. Order'!J838)","v":""},{"$f":"IF('1. Order'!K838=\"\",\"\",'1. Order'!K838)","v":""},{"$f":"IF('1. Order'!L838=\"\",\"\",'1. Order'!L838)","v":""},{"$f":"IF('1. Order'!M838=\"\",\"\",'1. Order'!M838)","v":""},{"$f":"IF('1. Order'!N838=\"\",\"\",'1. Order'!N838)","v":""},{"$f":"IF('1. Order'!O838=\"\",\"\",'1. Order'!O838)","v":{"$error":"#N/A"}},{"$f":"IF('1. Order'!P838=\"\",\"\",'1. Order'!P838)","v":{"$error":"#N/A"}},{"$f":"IF('1. Order'!Q838=\"\",\"\",'1. Order'!Q838)","v":""},{"$f":"IF('1. Order'!S838=\"\",\"\",'1. Order'!S838)","v":""},{"$f":"IF('1. Order'!T838=\"\",\"\",'1. Order'!T838)","v":""},{"$f":"IF('1. Order'!W838=\"\",\"\",'1. Order'!W838)","v":""},{"$f":"IF('1. Order'!X838=\"\",\"\",'1. Order'!X838)","v":""},{"$f":"IF('1. Order'!Y838=\"\",\"\",'1. Order'!Y838)","v":"EUR"},{"$f":"IF('1. Order'!Z838=\"\",\"\",'1. Order'!Z838)","v":""},{"$f":"IF('1. Order'!AA838=\"\",\"\",'1. Order'!AA838)","v":""},{"$f":"IF('1. Order'!AB838=\"\",\"\",'1. Order'!AB838)","v":""},null,{"$f":"IF('1. Order'!AT838=\"\",\"\",'1. Order'!AT838)","v":""},{"$f":"IF('1. Order'!AU838=\"\",\"\",'1. Order'!AU838)","v":""},null,null,null,null,null,null,null,{"$f":"IF('1. Order'!AY838=\"\",\"\",'1. Order'!AY838)","v":""},{"$f":"IF('1. Order'!AZ838=\"\",\"\",'1. Order'!AZ838)","v":""},{"$f":"IF('1. Order'!BA838=\"\",\"\",'1. Order'!BA838)","v":""},{"$f":"IF('1. Order'!BB838=\"\",\"\",'1. Order'!BB838)","v":""},{"$f":"IF('1. Order'!BD838=\"\",\"\",'1. Order'!BD838)","v":""},{"$f":"IF('1. Order'!BE838=\"\",\"\",'1. Order'!BE838)","v":""},{"$f":"IF('1. Order'!BF838=\"\",\"\",'1. Order'!BF838)","v":""},{"$f":"IF('1. Order'!BG838=\"\",\"\",'1. Order'!BG838)","v":""},{"$f":"IF('1. Order'!BH838=\"\",\"\",'1. Order'!BH838)","v":"ZWO"}]
[{"$f":"IF('1. Order'!F839=\"\",\"\",'1. Order'!F839)","v":{"$error":"#N/A"}},{"$f":"IF('1. Order'!G839=\"\",\"\",'1. Order'!G839)","v":""},{"$f":"IF('1. Order'!H839=\"\",\"\",'1. Order'!H839)","v":""},{"$f":"IF('1. Order'!I839=\"\",\"\",'1. Order'!I839)","v":""},{"$f":"IF('1. Order'!J839=\"\",\"\",'1. Order'!J839)","v":""},{"$f":"IF('1. Order'!K839=\"\",\"\",'1. Order'!K839)","v":""},{"$f":"IF('1. Order'!L839=\"\",\"\",'1. Order'!L839)","v":""},{"$f":"IF('1. Order'!M839=\"\",\"\",'1. Order'!M839)","v":""},{"$f":"IF('1. Order'!N839=\"\",\"\",'1. Order'!N839)","v":""},{"$f":"IF('1. Order'!O839=\"\",\"\",'1. Order'!O839)","v":{"$error":"#N/A"}},{"$f":"IF('1. Order'!P839=\"\",\"\",'1. Order'!P839)","v":{"$error":"#N/A"}},{"$f":"IF('1. Order'!Q839=\"\",\"\",'1. Order'!Q839)","v":""},{"$f":"IF('1. Order'!S839=\"\",\"\",'1. Order'!S839)","v":""},{"$f":"IF('1. Order'!T839=\"\",\"\",'1. Order'!T839)","v":""},{"$f":"IF('1. Order'!W839=\"\",\"\",'1. Order'!W839)","v":""},{"$f":"IF('1. Order'!X839=\"\",\"\",'1. Order'!X839)","v":""},{"$f":"IF('1. Order'!Y839=\"\",\"\",'1. Order'!Y839)","v":"EUR"},{"$f":"IF('1. Order'!Z839=\"\",\"\",'1. Order'!Z839)","v":""},{"$f":"IF('1. Order'!AA839=\"\",\"\",'1. Order'!AA839)","v":""},{"$f":"IF('1. Order'!AB839=\"\",\"\",'1. Order'!AB839)","v":""},null,{"$f":"IF('1. Order'!AT839=\"\",\"\",'1. Order'!AT839)","v":""},{"$f":"IF('1. Order'!AU839=\"\",\"\",'1. Order'!AU839)","v":""},null,null,null,null,null,null,null,{"$f":"IF('1. Order'!AY839=\"\",\"\",'1. Order'!AY839)","v":""},{"$f":"IF('1. Order'!AZ839=\"\",\"\",'1. Order'!AZ839)","v":""},{"$f":"IF('1. Order'!BA839=\"\",\"\",'1. Order'!BA839)","v":""},{"$f":"IF('1. Order'!BB839=\"\",\"\",'1. Order'!BB839)","v":""},{"$f":"IF('1. Order'!BD839=\"\",\"\",'1. Order'!BD839)","v":""},{"$f":"IF('1. Order'!BE839=\"\",\"\",'1. Order'!BE839)","v":""},{"$f":"IF('1. Order'!BF839=\"\",\"\",'1. Order'!BF839)","v":""},{"$f":"IF('1. Order'!BG839=\"\",\"\",'1. Order'!BG839)","v":""},{"$f":"IF('1. Order'!BH839=\"\",\"\",'1. Order'!BH839)","v":"ZWO"}]
[{"$f":"IF('1. Order'!F840=\"\",\"\",'1. Order'!F840)","v":{"$error":"#N/A"}},{"$f":"IF('1. Order'!G840=\"\",\"\",'1. Order'!G840)","v":""},{"$f":"IF('1. Order'!H840=\"\",\"\",'1. Order'!H840)","v":""},{"$f":"IF('1. Order'!I840=\"\",\"\",'1. Order'!I840)","v":""},{"$f":"IF('1. Order'!J840=\"\",\"\",'1. Order'!J840)","v":""},{"$f":"IF('1. Order'!K840=\"\",\"\",'1. Order'!K840)","v":""},{"$f":"IF('1. Order'!L840=\"\",\"\",'1. Order'!L840)","v":""},{"$f":"IF('1. Order'!M840=\"\",\"\",'1. Order'!M840)","v":""},{"$f":"IF('1. Order'!N840=\"\",\"\",'1. Order'!N840)","v":""},{"$f":"IF('1. Order'!O840=\"\",\"\",'1. Order'!O840)","v":{"$error":"#N/A"}},{"$f":"IF('1. Order'!P840=\"\",\"\",'1. Order'!P840)","v":{"$error":"#N/A"}},{"$f":"IF('1. Order'!Q840=\"\",\"\",'1. Order'!Q840)","v":""},{"$f":"IF('1. Order'!S840=\"\",\"\",'1. Order'!S840)","v":""},{"$f":"IF('1. Order'!T840=\"\",\"\",'1. Order'!T840)","v":""},{"$f":"IF('1. Order'!W840=\"\",\"\",'1. Order'!W840)","v":""},{"$f":"IF('1. Order'!X840=\"\",\"\",'1. Order'!X840)","v":""},{"$f":"IF('1. Order'!Y840=\"\",\"\",'1. Order'!Y840)","v":"EUR"},{"$f":"IF('1. Order'!Z840=\"\",\"\",'1. Order'!Z840)","v":""},{"$f":"IF('1. Order'!AA840=\"\",\"\",'1. Order'!AA840)","v":""},{"$f":"IF('1. Order'!AB840=\"\",\"\",'1. Order'!AB840)","v":""},null,{"$f":"IF('1. Order'!AT840=\"\",\"\",'1. Order'!AT840)","v":""},{"$f":"IF('1. Order'!AU840=\"\",\"\",'1. Order'!AU840)","v":""},null,null,null,null,null,null,null,{"$f":"IF('1. Order'!AY840=\"\",\"\",'1. Order'!AY840)","v":""},{"$f":"IF('1. Order'!AZ840=\"\",\"\",'1. Order'!AZ840)","v":""},{"$f":"IF('1. Order'!BA840=\"\",\"\",'1. Order'!BA840)","v":""},{"$f":"IF('1. Order'!BB840=\"\",\"\",'1. Order'!BB840)","v":""},{"$f":"IF('1. Order'!BD840=\"\",\"\",'1. Order'!BD840)","v":""},{"$f":"IF('1. Order'!BE840=\"\",\"\",'1. Order'!BE840)","v":""},{"$f":"IF('1. Order'!BF840=\"\",\"\",'1. Order'!BF840)","v":""},{"$f":"IF('1. Order'!BG840=\"\",\"\",'1. Order'!BG840)","v":""},{"$f":"IF('1. Order'!BH840=\"\",\"\",'1. Order'!BH840)","v":"ZWO"}]
[{"$f":"IF('1. Order'!F841=\"\",\"\",'1. Order'!F841)","v":{"$error":"#N/A"}},{"$f":"IF('1. Order'!G841=\"\",\"\",'1. Order'!G841)","v":""},{"$f":"IF('1. Order'!H841=\"\",\"\",'1. Order'!H841)","v":""},{"$f":"IF('1. Order'!I841=\"\",\"\",'1. Order'!I841)","v":""},{"$f":"IF('1. Order'!J841=\"\",\"\",'1. Order'!J841)","v":""},{"$f":"IF('1. Order'!K841=\"\",\"\",'1. Order'!K841)","v":""},{"$f":"IF('1. Order'!L841=\"\",\"\",'1. Order'!L841)","v":""},{"$f":"IF('1. Order'!M841=\"\",\"\",'1. Order'!M841)","v":""},{"$f":"IF('1. Order'!N841=\"\",\"\",'1. Order'!N841)","v":""},{"$f":"IF('1. Order'!O841=\"\",\"\",'1. Order'!O841)","v":{"$error":"#N/A"}},{"$f":"IF('1. Order'!P841=\"\",\"\",'1. Order'!P841)","v":{"$error":"#N/A"}},{"$f":"IF('1. Order'!Q841=\"\",\"\",'1. Order'!Q841)","v":""},{"$f":"IF('1. Order'!S841=\"\",\"\",'1. Order'!S841)","v":""},{"$f":"IF('1. Order'!T841=\"\",\"\",'1. Order'!T841)","v":""},{"$f":"IF('1. Order'!W841=\"\",\"\",'1. Order'!W841)","v":""},{"$f":"IF('1. Order'!X841=\"\",\"\",'1. Order'!X841)","v":""},{"$f":"IF('1. Order'!Y841=\"\",\"\",'1. Order'!Y841)","v":"EUR"},{"$f":"IF('1. Order'!Z841=\"\",\"\",'1. Order'!Z841)","v":""},{"$f":"IF('1. Order'!AA841=\"\",\"\",'1. Order'!AA841)","v":""},{"$f":"IF('1. Order'!AB841=\"\",\"\",'1. Order'!AB841)","v":""},null,{"$f":"IF('1. Order'!AT841=\"\",\"\",'1. Order'!AT841)","v":""},{"$f":"IF('1. Order'!AU841=\"\",\"\",'1. Order'!AU841)","v":""},null,null,null,null,null,null,null,{"$f":"IF('1. Order'!AY841=\"\",\"\",'1. Order'!AY841)","v":""},{"$f":"IF('1. Order'!AZ841=\"\",\"\",'1. Order'!AZ841)","v":""},{"$f":"IF('1. Order'!BA841=\"\",\"\",'1. Order'!BA841)","v":""},{"$f":"IF('1. Order'!BB841=\"\",\"\",'1. Order'!BB841)","v":""},{"$f":"IF('1. Order'!BD841=\"\",\"\",'1. Order'!BD841)","v":""},{"$f":"IF('1. Order'!BE841=\"\",\"\",'1. Order'!BE841)","v":""},{"$f":"IF('1. Order'!BF841=\"\",\"\",'1. Order'!BF841)","v":""},{"$f":"IF('1. Order'!BG841=\"\",\"\",'1. Order'!BG841)","v":""},{"$f":"IF('1. Order'!BH841=\"\",\"\",'1. Order'!BH841)","v":"ZWO"}]
[{"$f":"IF('1. Order'!F842=\"\",\"\",'1. Order'!F842)","v":{"$error":"#N/A"}},{"$f":"IF('1. Order'!G842=\"\",\"\",'1. Order'!G842)","v":""},{"$f":"IF('1. Order'!H842=\"\",\"\",'1. Order'!H842)","v":""},{"$f":"IF('1. Order'!I842=\"\",\"\",'1. Order'!I842)","v":""},{"$f":"IF('1. Order'!J842=\"\",\"\",'1. Order'!J842)","v":""},{"$f":"IF('1. Order'!K842=\"\",\"\",'1. Order'!K842)","v":""},{"$f":"IF('1. Order'!L842=\"\",\"\",'1. Order'!L842)","v":""},{"$f":"IF('1. Order'!M842=\"\",\"\",'1. Order'!M842)","v":""},{"$f":"IF('1. Order'!N842=\"\",\"\",'1. Order'!N842)","v":""},{"$f":"IF('1. Order'!O842=\"\",\"\",'1. Order'!O842)","v":{"$error":"#N/A"}},{"$f":"IF('1. Order'!P842=\"\",\"\",'1. Order'!P842)","v":{"$error":"#N/A"}},{"$f":"IF('1. Order'!Q842=\"\",\"\",'1. Order'!Q842)","v":""},{"$f":"IF('1. Order'!S842=\"\",\"\",'1. Order'!S842)","v":""},{"$f":"IF('1. Order'!T842=\"\",\"\",'1. Order'!T842)","v":""},{"$f":"IF('1. Order'!W842=\"\",\"\",'1. Order'!W842)","v":""},{"$f":"IF('1. Order'!X842=\"\",\"\",'1. Order'!X842)","v":""},{"$f":"IF('1. Order'!Y842=\"\",\"\",'1. Order'!Y842)","v":"EUR"},{"$f":"IF('1. Order'!Z842=\"\",\"\",'1. Order'!Z842)","v":""},{"$f":"IF('1. Order'!AA842=\"\",\"\",'1. Order'!AA842)","v":""},{"$f":"IF('1. Order'!AB842=\"\",\"\",'1. Order'!AB842)","v":""},null,{"$f":"IF('1. Order'!AT842=\"\",\"\",'1. Order'!AT842)","v":""},{"$f":"IF('1. Order'!AU842=\"\",\"\",'1. Order'!AU842)","v":""},null,null,null,null,null,null,null,{"$f":"IF('1. Order'!AY842=\"\",\"\",'1. Order'!AY842)","v":""},{"$f":"IF('1. Order'!AZ842=\"\",\"\",'1. Order'!AZ842)","v":""},{"$f":"IF('1. Order'!BA842=\"\",\"\",'1. Order'!BA842)","v":""},{"$f":"IF('1. Order'!BB842=\"\",\"\",'1. Order'!BB842)","v":""},{"$f":"IF('1. Order'!BD842=\"\",\"\",'1. Order'!BD842)","v":""},{"$f":"IF('1. Order'!BE842=\"\",\"\",'1. Order'!BE842)","v":""},{"$f":"IF('1. Order'!BF842=\"\",\"\",'1. Order'!BF842)","v":""},{"$f":"IF('1. Order'!BG842=\"\",\"\",'1. Order'!BG842)","v":""},{"$f":"IF('1. Order'!BH842=\"\",\"\",'1. Order'!BH842)","v":"ZWO"}]
[{"$f":"IF('1. Order'!F843=\"\",\"\",'1. Order'!F843)","v":{"$error":"#N/A"}},{"$f":"IF('1. Order'!G843=\"\",\"\",'1. Order'!G843)","v":""},{"$f":"IF('1. Order'!H843=\"\",\"\",'1. Order'!H843)","v":""},{"$f":"IF('1. Order'!I843=\"\",\"\",'1. Order'!I843)","v":""},{"$f":"IF('1. Order'!J843=\"\",\"\",'1. Order'!J843)","v":""},{"$f":"IF('1. Order'!K843=\"\",\"\",'1. Order'!K843)","v":""},{"$f":"IF('1. Order'!L843=\"\",\"\",'1. Order'!L843)","v":""},{"$f":"IF('1. Order'!M843=\"\",\"\",'1. Order'!M843)","v":""},{"$f":"IF('1. Order'!N843=\"\",\"\",'1. Order'!N843)","v":""},{"$f":"IF('1. Order'!O843=\"\",\"\",'1. Order'!O843)","v":{"$error":"#N/A"}},{"$f":"IF('1. Order'!P843=\"\",\"\",'1. Order'!P843)","v":{"$error":"#N/A"}},{"$f":"IF('1. Order'!Q843=\"\",\"\",'1. Order'!Q843)","v":""},{"$f":"IF('1. Order'!S843=\"\",\"\",'1. Order'!S843)","v":""},{"$f":"IF('1. Order'!T843=\"\",\"\",'1. Order'!T843)","v":""},{"$f":"IF('1. Order'!W843=\"\",\"\",'1. Order'!W843)","v":""},{"$f":"IF('1. Order'!X843=\"\",\"\",'1. Order'!X843)","v":""},{"$f":"IF('1. Order'!Y843=\"\",\"\",'1. Order'!Y843)","v":"EUR"},{"$f":"IF('1. Order'!Z843=\"\",\"\",'1. Order'!Z843)","v":""},{"$f":"IF('1. Order'!AA843=\"\",\"\",'1. Order'!AA843)","v":""},{"$f":"IF('1. Order'!AB843=\"\",\"\",'1. Order'!AB843)","v":""},null,{"$f":"IF('1. Order'!AT843=\"\",\"\",'1. Order'!AT843)","v":""},{"$f":"IF('1. Order'!AU843=\"\",\"\",'1. Order'!AU843)","v":""},null,null,null,null,null,null,null,{"$f":"IF('1. Order'!AY843=\"\",\"\",'1. Order'!AY843)","v":""},{"$f":"IF('1. Order'!AZ843=\"\",\"\",'1. Order'!AZ843)","v":""},{"$f":"IF('1. Order'!BA843=\"\",\"\",'1. Order'!BA843)","v":""},{"$f":"IF('1. Order'!BB843=\"\",\"\",'1. Order'!BB843)","v":""},{"$f":"IF('1. Order'!BD843=\"\",\"\",'1. Order'!BD843)","v":""},{"$f":"IF('1. Order'!BE843=\"\",\"\",'1. Order'!BE843)","v":""},{"$f":"IF('1. Order'!BF843=\"\",\"\",'1. Order'!BF843)","v":""},{"$f":"IF('1. Order'!BG843=\"\",\"\",'1. Order'!BG843)","v":""},{"$f":"IF('1. Order'!BH843=\"\",\"\",'1. Order'!BH843)","v":"ZWO"}]
[{"$f":"IF('1. Order'!F844=\"\",\"\",'1. Order'!F844)","v":{"$error":"#N/A"}},{"$f":"IF('1. Order'!G844=\"\",\"\",'1. Order'!G844)","v":""},{"$f":"IF('1. Order'!H844=\"\",\"\",'1. Order'!H844)","v":""},{"$f":"IF('1. Order'!I844=\"\",\"\",'1. Order'!I844)","v":""},{"$f":"IF('1. Order'!J844=\"\",\"\",'1. Order'!J844)","v":""},{"$f":"IF('1. Order'!K844=\"\",\"\",'1. Order'!K844)","v":""},{"$f":"IF('1. Order'!L844=\"\",\"\",'1. Order'!L844)","v":""},{"$f":"IF('1. Order'!M844=\"\",\"\",'1. Order'!M844)","v":""},{"$f":"IF('1. Order'!N844=\"\",\"\",'1. Order'!N844)","v":""},{"$f":"IF('1. Order'!O844=\"\",\"\",'1. Order'!O844)","v":{"$error":"#N/A"}},{"$f":"IF('1. Order'!P844=\"\",\"\",'1. Order'!P844)","v":{"$error":"#N/A"}},{"$f":"IF('1. Order'!Q844=\"\",\"\",'1. Order'!Q844)","v":""},{"$f":"IF('1. Order'!S844=\"\",\"\",'1. Order'!S844)","v":""},{"$f":"IF('1. Order'!T844=\"\",\"\",'1. Order'!T844)","v":""},{"$f":"IF('1. Order'!W844=\"\",\"\",'1. Order'!W844)","v":""},{"$f":"IF('1. Order'!X844=\"\",\"\",'1. Order'!X844)","v":""},{"$f":"IF('1. Order'!Y844=\"\",\"\",'1. Order'!Y844)","v":"EUR"},{"$f":"IF('1. Order'!Z844=\"\",\"\",'1. Order'!Z844)","v":""},{"$f":"IF('1. Order'!AA844=\"\",\"\",'1. Order'!AA844)","v":""},{"$f":"IF('1. Order'!AB844=\"\",\"\",'1. Order'!AB844)","v":""},null,{"$f":"IF('1. Order'!AT844=\"\",\"\",'1. Order'!AT844)","v":""},{"$f":"IF('1. Order'!AU844=\"\",\"\",'1. Order'!AU844)","v":""},null,null,null,null,null,null,null,{"$f":"IF('1. Order'!AY844=\"\",\"\",'1. Order'!AY844)","v":""},{"$f":"IF('1. Order'!AZ844=\"\",\"\",'1. Order'!AZ844)","v":""},{"$f":"IF('1. Order'!BA844=\"\",\"\",'1. Order'!BA844)","v":""},{"$f":"IF('1. Order'!BB844=\"\",\"\",'1. Order'!BB844)","v":""},{"$f":"IF('1. Order'!BD844=\"\",\"\",'1. Order'!BD844)","v":""},{"$f":"IF('1. Order'!BE844=\"\",\"\",'1. Order'!BE844)","v":""},{"$f":"IF('1. Order'!BF844=\"\",\"\",'1. Order'!BF844)","v":""},{"$f":"IF('1. Order'!BG844=\"\",\"\",'1. Order'!BG844)","v":""},{"$f":"IF('1. Order'!BH844=\"\",\"\",'1. Order'!BH844)","v":"ZWO"}]
[{"$f":"IF('1. Order'!F845=\"\",\"\",'1. Order'!F845)","v":{"$error":"#N/A"}},{"$f":"IF('1. Order'!G845=\"\",\"\",'1. Order'!G845)","v":""},{"$f":"IF('1. Order'!H845=\"\",\"\",'1. Order'!H845)","v":""},{"$f":"IF('1. Order'!I845=\"\",\"\",'1. Order'!I845)","v":""},{"$f":"IF('1. Order'!J845=\"\",\"\",'1. Order'!J845)","v":""},{"$f":"IF('1. Order'!K845=\"\",\"\",'1. Order'!K845)","v":""},{"$f":"IF('1. Order'!L845=\"\",\"\",'1. Order'!L845)","v":""},{"$f":"IF('1. Order'!M845=\"\",\"\",'1. Order'!M845)","v":""},{"$f":"IF('1. Order'!N845=\"\",\"\",'1. Order'!N845)","v":""},{"$f":"IF('1. Order'!O845=\"\",\"\",'1. Order'!O845)","v":{"$error":"#N/A"}},{"$f":"IF('1. Order'!P845=\"\",\"\",'1. Order'!P845)","v":{"$error":"#N/A"}},{"$f":"IF('1. Order'!Q845=\"\",\"\",'1. Order'!Q845)","v":""},{"$f":"IF('1. Order'!S845=\"\",\"\",'1. Order'!S845)","v":""},{"$f":"IF('1. Order'!T845=\"\",\"\",'1. Order'!T845)","v":""},{"$f":"IF('1. Order'!W845=\"\",\"\",'1. Order'!W845)","v":""},{"$f":"IF('1. Order'!X845=\"\",\"\",'1. Order'!X845)","v":""},{"$f":"IF('1. Order'!Y845=\"\",\"\",'1. Order'!Y845)","v":"EUR"},{"$f":"IF('1. Order'!Z845=\"\",\"\",'1. Order'!Z845)","v":""},{"$f":"IF('1. Order'!AA845=\"\",\"\",'1. Order'!AA845)","v":""},{"$f":"IF('1. Order'!AB845=\"\",\"\",'1. Order'!AB845)","v":""},null,{"$f":"IF('1. Order'!AT845=\"\",\"\",'1. Order'!AT845)","v":""},{"$f":"IF('1. Order'!AU845=\"\",\"\",'1. Order'!AU845)","v":""},null,null,null,null,null,null,null,{"$f":"IF('1. Order'!AY845=\"\",\"\",'1. Order'!AY845)","v":""},{"$f":"IF('1. Order'!AZ845=\"\",\"\",'1. Order'!AZ845)","v":""},{"$f":"IF('1. Order'!BA845=\"\",\"\",'1. Order'!BA845)","v":""},{"$f":"IF('1. Order'!BB845=\"\",\"\",'1. Order'!BB845)","v":""},{"$f":"IF('1. Order'!BD845=\"\",\"\",'1. Order'!BD845)","v":""},{"$f":"IF('1. Order'!BE845=\"\",\"\",'1. Order'!BE845)","v":""},{"$f":"IF('1. Order'!BF845=\"\",\"\",'1. Order'!BF845)","v":""},{"$f":"IF('1. Order'!BG845=\"\",\"\",'1. Order'!BG845)","v":""},{"$f":"IF('1. Order'!BH845=\"\",\"\",'1. Order'!BH845)","v":"ZWO"}]
[{"$f":"IF('1. Order'!F846=\"\",\"\",'1. Order'!F846)","v":{"$error":"#N/A"}},{"$f":"IF('1. Order'!G846=\"\",\"\",'1. Order'!G846)","v":""},{"$f":"IF('1. Order'!H846=\"\",\"\",'1. Order'!H846)","v":""},{"$f":"IF('1. Order'!I846=\"\",\"\",'1. Order'!I846)","v":""},{"$f":"IF('1. Order'!J846=\"\",\"\",'1. Order'!J846)","v":""},{"$f":"IF('1. Order'!K846=\"\",\"\",'1. Order'!K846)","v":""},{"$f":"IF('1. Order'!L846=\"\",\"\",'1. Order'!L846)","v":""},{"$f":"IF('1. Order'!M846=\"\",\"\",'1. Order'!M846)","v":""},{"$f":"IF('1. Order'!N846=\"\",\"\",'1. Order'!N846)","v":""},{"$f":"IF('1. Order'!O846=\"\",\"\",'1. Order'!O846)","v":{"$error":"#N/A"}},{"$f":"IF('1. Order'!P846=\"\",\"\",'1. Order'!P846)","v":{"$error":"#N/A"}},{"$f":"IF('1. Order'!Q846=\"\",\"\",'1. Order'!Q846)","v":""},{"$f":"IF('1. Order'!S846=\"\",\"\",'1. Order'!S846)","v":""},{"$f":"IF('1. Order'!T846=\"\",\"\",'1. Order'!T846)","v":""},{"$f":"IF('1. Order'!W846=\"\",\"\",'1. Order'!W846)","v":""},{"$f":"IF('1. Order'!X846=\"\",\"\",'1. Order'!X846)","v":""},{"$f":"IF('1. Order'!Y846=\"\",\"\",'1. Order'!Y846)","v":"EUR"},{"$f":"IF('1. Order'!Z846=\"\",\"\",'1. Order'!Z846)","v":""},{"$f":"IF('1. Order'!AA846=\"\",\"\",'1. Order'!AA846)","v":""},{"$f":"IF('1. Order'!AB846=\"\",\"\",'1. Order'!AB846)","v":""},null,{"$f":"IF('1. Order'!AT846=\"\",\"\",'1. Order'!AT846)","v":""},{"$f":"IF('1. Order'!AU846=\"\",\"\",'1. Order'!AU846)","v":""},null,null,null,null,null,null,null,{"$f":"IF('1. Order'!AY846=\"\",\"\",'1. Order'!AY846)","v":""},{"$f":"IF('1. Order'!AZ846=\"\",\"\",'1. Order'!AZ846)","v":""},{"$f":"IF('1. Order'!BA846=\"\",\"\",'1. Order'!BA846)","v":""},{"$f":"IF('1. Order'!BB846=\"\",\"\",'1. Order'!BB846)","v":""},{"$f":"IF('1. Order'!BD846=\"\",\"\",'1. Order'!BD846)","v":""},{"$f":"IF('1. Order'!BE846=\"\",\"\",'1. Order'!BE846)","v":""},{"$f":"IF('1. Order'!BF846=\"\",\"\",'1. Order'!BF846)","v":""},{"$f":"IF('1. Order'!BG846=\"\",\"\",'1. Order'!BG846)","v":""},{"$f":"IF('1. Order'!BH846=\"\",\"\",'1. Order'!BH846)","v":"ZWO"}]
[{"$f":"IF('1. Order'!F847=\"\",\"\",'1. Order'!F847)","v":{"$error":"#N/A"}},{"$f":"IF('1. Order'!G847=\"\",\"\",'1. Order'!G847)","v":""},{"$f":"IF('1. Order'!H847=\"\",\"\",'1. Order'!H847)","v":""},{"$f":"IF('1. Order'!I847=\"\",\"\",'1. Order'!I847)","v":""},{"$f":"IF('1. Order'!J847=\"\",\"\",'1. Order'!J847)","v":""},{"$f":"IF('1. Order'!K847=\"\",\"\",'1. Order'!K847)","v":""},{"$f":"IF('1. Order'!L847=\"\",\"\",'1. Order'!L847)","v":""},{"$f":"IF('1. Order'!M847=\"\",\"\",'1. Order'!M847)","v":""},{"$f":"IF('1. Order'!N847=\"\",\"\",'1. Order'!N847)","v":""},{"$f":"IF('1. Order'!O847=\"\",\"\",'1. Order'!O847)","v":{"$error":"#N/A"}},{"$f":"IF('1. Order'!P847=\"\",\"\",'1. Order'!P847)","v":{"$error":"#N/A"}},{"$f":"IF('1. Order'!Q847=\"\",\"\",'1. Order'!Q847)","v":""},{"$f":"IF('1. Order'!S847=\"\",\"\",'1. Order'!S847)","v":""},{"$f":"IF('1. Order'!T847=\"\",\"\",'1. Order'!T847)","v":""},{"$f":"IF('1. Order'!W847=\"\",\"\",'1. Order'!W847)","v":""},{"$f":"IF('1. Order'!X847=\"\",\"\",'1. Order'!X847)","v":""},{"$f":"IF('1. Order'!Y847=\"\",\"\",'1. Order'!Y847)","v":"EUR"},{"$f":"IF('1. Order'!Z847=\"\",\"\",'1. Order'!Z847)","v":""},{"$f":"IF('1. Order'!AA847=\"\",\"\",'1. Order'!AA847)","v":""},{"$f":"IF('1. Order'!AB847=\"\",\"\",'1. Order'!AB847)","v":""},null,{"$f":"IF('1. Order'!AT847=\"\",\"\",'1. Order'!AT847)","v":""},{"$f":"IF('1. Order'!AU847=\"\",\"\",'1. Order'!AU847)","v":""},null,null,null,null,null,null,null,{"$f":"IF('1. Order'!AY847=\"\",\"\",'1. Order'!AY847)","v":""},{"$f":"IF('1. Order'!AZ847=\"\",\"\",'1. Order'!AZ847)","v":""},{"$f":"IF('1. Order'!BA847=\"\",\"\",'1. Order'!BA847)","v":""},{"$f":"IF('1. Order'!BB847=\"\",\"\",'1. Order'!BB847)","v":""},{"$f":"IF('1. Order'!BD847=\"\",\"\",'1. Order'!BD847)","v":""},{"$f":"IF('1. Order'!BE847=\"\",\"\",'1. Order'!BE847)","v":""},{"$f":"IF('1. Order'!BF847=\"\",\"\",'1. Order'!BF847)","v":""},{"$f":"IF('1. Order'!BG847=\"\",\"\",'1. Order'!BG847)","v":""},{"$f":"IF('1. Order'!BH847=\"\",\"\",'1. Order'!BH847)","v":"ZWO"}]
[{"$f":"IF('1. Order'!F848=\"\",\"\",'1. Order'!F848)","v":{"$error":"#N/A"}},{"$f":"IF('1. Order'!G848=\"\",\"\",'1. Order'!G848)","v":""},{"$f":"IF('1. Order'!H848=\"\",\"\",'1. Order'!H848)","v":""},{"$f":"IF('1. Order'!I848=\"\",\"\",'1. Order'!I848)","v":""},{"$f":"IF('1. Order'!J848=\"\",\"\",'1. Order'!J848)","v":""},{"$f":"IF('1. Order'!K848=\"\",\"\",'1. Order'!K848)","v":""},{"$f":"IF('1. Order'!L848=\"\",\"\",'1. Order'!L848)","v":""},{"$f":"IF('1. Order'!M848=\"\",\"\",'1. Order'!M848)","v":""},{"$f":"IF('1. Order'!N848=\"\",\"\",'1. Order'!N848)","v":""},{"$f":"IF('1. Order'!O848=\"\",\"\",'1. Order'!O848)","v":{"$error":"#N/A"}},{"$f":"IF('1. Order'!P848=\"\",\"\",'1. Order'!P848)","v":{"$error":"#N/A"}},{"$f":"IF('1. Order'!Q848=\"\",\"\",'1. Order'!Q848)","v":""},{"$f":"IF('1. Order'!S848=\"\",\"\",'1. Order'!S848)","v":""},{"$f":"IF('1. Order'!T848=\"\",\"\",'1. Order'!T848)","v":""},{"$f":"IF('1. Order'!W848=\"\",\"\",'1. Order'!W848)","v":""},{"$f":"IF('1. Order'!X848=\"\",\"\",'1. Order'!X848)","v":""},{"$f":"IF('1. Order'!Y848=\"\",\"\",'1. Order'!Y848)","v":"EUR"},{"$f":"IF('1. Order'!Z848=\"\",\"\",'1. Order'!Z848)","v":""},{"$f":"IF('1. Order'!AA848=\"\",\"\",'1. Order'!AA848)","v":""},{"$f":"IF('1. Order'!AB848=\"\",\"\",'1. Order'!AB848)","v":""},null,{"$f":"IF('1. Order'!AT848=\"\",\"\",'1. Order'!AT848)","v":""},{"$f":"IF('1. Order'!AU848=\"\",\"\",'1. Order'!AU848)","v":""},null,null,null,null,null,null,null,{"$f":"IF('1. Order'!AY848=\"\",\"\",'1. Order'!AY848)","v":""},{"$f":"IF('1. Order'!AZ848=\"\",\"\",'1. Order'!AZ848)","v":""},{"$f":"IF('1. Order'!BA848=\"\",\"\",'1. Order'!BA848)","v":""},{"$f":"IF('1. Order'!BB848=\"\",\"\",'1. Order'!BB848)","v":""},{"$f":"IF('1. Order'!BD848=\"\",\"\",'1. Order'!BD848)","v":""},{"$f":"IF('1. Order'!BE848=\"\",\"\",'1. Order'!BE848)","v":""},{"$f":"IF('1. Order'!BF848=\"\",\"\",'1. Order'!BF848)","v":""},{"$f":"IF('1. Order'!BG848=\"\",\"\",'1. Order'!BG848)","v":""},{"$f":"IF('1. Order'!BH848=\"\",\"\",'1. Order'!BH848)","v":"ZWO"}]
[{"$f":"IF('1. Order'!F849=\"\",\"\",'1. Order'!F849)","v":{"$error":"#N/A"}},{"$f":"IF('1. Order'!G849=\"\",\"\",'1. Order'!G849)","v":""},{"$f":"IF('1. Order'!H849=\"\",\"\",'1. Order'!H849)","v":""},{"$f":"IF('1. Order'!I849=\"\",\"\",'1. Order'!I849)","v":""},{"$f":"IF('1. Order'!J849=\"\",\"\",'1. Order'!J849)","v":""},{"$f":"IF('1. Order'!K849=\"\",\"\",'1. Order'!K849)","v":""},{"$f":"IF('1. Order'!L849=\"\",\"\",'1. Order'!L849)","v":""},{"$f":"IF('1. Order'!M849=\"\",\"\",'1. Order'!M849)","v":""},{"$f":"IF('1. Order'!N849=\"\",\"\",'1. Order'!N849)","v":""},{"$f":"IF('1. Order'!O849=\"\",\"\",'1. Order'!O849)","v":{"$error":"#N/A"}},{"$f":"IF('1. Order'!P849=\"\",\"\",'1. Order'!P849)","v":{"$error":"#N/A"}},{"$f":"IF('1. Order'!Q849=\"\",\"\",'1. Order'!Q849)","v":""},{"$f":"IF('1. Order'!S849=\"\",\"\",'1. Order'!S849)","v":""},{"$f":"IF('1. Order'!T849=\"\",\"\",'1. Order'!T849)","v":""},{"$f":"IF('1. Order'!W849=\"\",\"\",'1. Order'!W849)","v":""},{"$f":"IF('1. Order'!X849=\"\",\"\",'1. Order'!X849)","v":""},{"$f":"IF('1. Order'!Y849=\"\",\"\",'1. Order'!Y849)","v":"EUR"},{"$f":"IF('1. Order'!Z849=\"\",\"\",'1. Order'!Z849)","v":""},{"$f":"IF('1. Order'!AA849=\"\",\"\",'1. Order'!AA849)","v":""},{"$f":"IF('1. Order'!AB849=\"\",\"\",'1. Order'!AB849)","v":""},null,{"$f":"IF('1. Order'!AT849=\"\",\"\",'1. Order'!AT849)","v":""},{"$f":"IF('1. Order'!AU849=\"\",\"\",'1. Order'!AU849)","v":""},null,null,null,null,null,null,null,{"$f":"IF('1. Order'!AY849=\"\",\"\",'1. Order'!AY849)","v":""},{"$f":"IF('1. Order'!AZ849=\"\",\"\",'1. Order'!AZ849)","v":""},{"$f":"IF('1. Order'!BA849=\"\",\"\",'1. Order'!BA849)","v":""},{"$f":"IF('1. Order'!BB849=\"\",\"\",'1. Order'!BB849)","v":""},{"$f":"IF('1. Order'!BD849=\"\",\"\",'1. Order'!BD849)","v":""},{"$f":"IF('1. Order'!BE849=\"\",\"\",'1. Order'!BE849)","v":""},{"$f":"IF('1. Order'!BF849=\"\",\"\",'1. Order'!BF849)","v":""},{"$f":"IF('1. Order'!BG849=\"\",\"\",'1. Order'!BG849)","v":""},{"$f":"IF('1. Order'!BH849=\"\",\"\",'1. Order'!BH849)","v":"ZWO"}]
[{"$f":"IF('1. Order'!F850=\"\",\"\",'1. Order'!F850)","v":{"$error":"#N/A"}},{"$f":"IF('1. Order'!G850=\"\",\"\",'1. Order'!G850)","v":""},{"$f":"IF('1. Order'!H850=\"\",\"\",'1. Order'!H850)","v":""},{"$f":"IF('1. Order'!I850=\"\",\"\",'1. Order'!I850)","v":""},{"$f":"IF('1. Order'!J850=\"\",\"\",'1. Order'!J850)","v":""},{"$f":"IF('1. Order'!K850=\"\",\"\",'1. Order'!K850)","v":""},{"$f":"IF('1. Order'!L850=\"\",\"\",'1. Order'!L850)","v":""},{"$f":"IF('1. Order'!M850=\"\",\"\",'1. Order'!M850)","v":""},{"$f":"IF('1. Order'!N850=\"\",\"\",'1. Order'!N850)","v":""},{"$f":"IF('1. Order'!O850=\"\",\"\",'1. Order'!O850)","v":{"$error":"#N/A"}},{"$f":"IF('1. Order'!P850=\"\",\"\",'1. Order'!P850)","v":{"$error":"#N/A"}},{"$f":"IF('1. Order'!Q850=\"\",\"\",'1. Order'!Q850)","v":""},{"$f":"IF('1. Order'!S850=\"\",\"\",'1. Order'!S850)","v":""},{"$f":"IF('1. Order'!T850=\"\",\"\",'1. Order'!T850)","v":""},{"$f":"IF('1. Order'!W850=\"\",\"\",'1. Order'!W850)","v":""},{"$f":"IF('1. Order'!X850=\"\",\"\",'1. Order'!X850)","v":""},{"$f":"IF('1. Order'!Y850=\"\",\"\",'1. Order'!Y850)","v":"EUR"},{"$f":"IF('1. Order'!Z850=\"\",\"\",'1. Order'!Z850)","v":""},{"$f":"IF('1. Order'!AA850=\"\",\"\",'1. Order'!AA850)","v":""},{"$f":"IF('1. Order'!AB850=\"\",\"\",'1. Order'!AB850)","v":""},null,{"$f":"IF('1. Order'!AT850=\"\",\"\",'1. Order'!AT850)","v":""},{"$f":"IF('1. Order'!AU850=\"\",\"\",'1. Order'!AU850)","v":""},null,null,null,null,null,null,null,{"$f":"IF('1. Order'!AY850=\"\",\"\",'1. Order'!AY850)","v":""},{"$f":"IF('1. Order'!AZ850=\"\",\"\",'1. Order'!AZ850)","v":""},{"$f":"IF('1. Order'!BA850=\"\",\"\",'1. Order'!BA850)","v":""},{"$f":"IF('1. Order'!BB850=\"\",\"\",'1. Order'!BB850)","v":""},{"$f":"IF('1. Order'!BD850=\"\",\"\",'1. Order'!BD850)","v":""},{"$f":"IF('1. Order'!BE850=\"\",\"\",'1. Order'!BE850)","v":""},{"$f":"IF('1. Order'!BF850=\"\",\"\",'1. Order'!BF850)","v":""},{"$f":"IF('1. Order'!BG850=\"\",\"\",'1. Order'!BG850)","v":""},{"$f":"IF('1. Order'!BH850=\"\",\"\",'1. Order'!BH850)","v":"ZWO"}]
[{"$f":"IF('1. Order'!F851=\"\",\"\",'1. Order'!F851)","v":{"$error":"#N/A"}},{"$f":"IF('1. Order'!G851=\"\",\"\",'1. Order'!G851)","v":""},{"$f":"IF('1. Order'!H851=\"\",\"\",'1. Order'!H851)","v":""},{"$f":"IF('1. Order'!I851=\"\",\"\",'1. Order'!I851)","v":""},{"$f":"IF('1. Order'!J851=\"\",\"\",'1. Order'!J851)","v":""},{"$f":"IF('1. Order'!K851=\"\",\"\",'1. Order'!K851)","v":""},{"$f":"IF('1. Order'!L851=\"\",\"\",'1. Order'!L851)","v":""},{"$f":"IF('1. Order'!M851=\"\",\"\",'1. Order'!M851)","v":""},{"$f":"IF('1. Order'!N851=\"\",\"\",'1. Order'!N851)","v":""},{"$f":"IF('1. Order'!O851=\"\",\"\",'1. Order'!O851)","v":{"$error":"#N/A"}},{"$f":"IF('1. Order'!P851=\"\",\"\",'1. Order'!P851)","v":{"$error":"#N/A"}},{"$f":"IF('1. Order'!Q851=\"\",\"\",'1. Order'!Q851)","v":""},{"$f":"IF('1. Order'!S851=\"\",\"\",'1. Order'!S851)","v":""},{"$f":"IF('1. Order'!T851=\"\",\"\",'1. Order'!T851)","v":""},{"$f":"IF('1. Order'!W851=\"\",\"\",'1. Order'!W851)","v":""},{"$f":"IF('1. Order'!X851=\"\",\"\",'1. Order'!X851)","v":""},{"$f":"IF('1. Order'!Y851=\"\",\"\",'1. Order'!Y851)","v":"EUR"},{"$f":"IF('1. Order'!Z851=\"\",\"\",'1. Order'!Z851)","v":""},{"$f":"IF('1. Order'!AA851=\"\",\"\",'1. Order'!AA851)","v":""},{"$f":"IF('1. Order'!AB851=\"\",\"\",'1. Order'!AB851)","v":""},null,{"$f":"IF('1. Order'!AT851=\"\",\"\",'1. Order'!AT851)","v":""},{"$f":"IF('1. Order'!AU851=\"\",\"\",'1. Order'!AU851)","v":""},null,null,null,null,null,null,null,{"$f":"IF('1. Order'!AY851=\"\",\"\",'1. Order'!AY851)","v":""},{"$f":"IF('1. Order'!AZ851=\"\",\"\",'1. Order'!AZ851)","v":""},{"$f":"IF('1. Order'!BA851=\"\",\"\",'1. Order'!BA851)","v":""},{"$f":"IF('1. Order'!BB851=\"\",\"\",'1. Order'!BB851)","v":""},{"$f":"IF('1. Order'!BD851=\"\",\"\",'1. Order'!BD851)","v":""},{"$f":"IF('1. Order'!BE851=\"\",\"\",'1. Order'!BE851)","v":""},{"$f":"IF('1. Order'!BF851=\"\",\"\",'1. Order'!BF851)","v":""},{"$f":"IF('1. Order'!BG851=\"\",\"\",'1. Order'!BG851)","v":""},{"$f":"IF('1. Order'!BH851=\"\",\"\",'1. Order'!BH851)","v":"ZWO"}]
[{"$f":"IF('1. Order'!F852=\"\",\"\",'1. Order'!F852)","v":{"$error":"#N/A"}},{"$f":"IF('1. Order'!G852=\"\",\"\",'1. Order'!G852)","v":""},{"$f":"IF('1. Order'!H852=\"\",\"\",'1. Order'!H852)","v":""},{"$f":"IF('1. Order'!I852=\"\",\"\",'1. Order'!I852)","v":""},{"$f":"IF('1. Order'!J852=\"\",\"\",'1. Order'!J852)","v":""},{"$f":"IF('1. Order'!K852=\"\",\"\",'1. Order'!K852)","v":""},{"$f":"IF('1. Order'!L852=\"\",\"\",'1. Order'!L852)","v":""},{"$f":"IF('1. Order'!M852=\"\",\"\",'1. Order'!M852)","v":""},{"$f":"IF('1. Order'!N852=\"\",\"\",'1. Order'!N852)","v":""},{"$f":"IF('1. Order'!O852=\"\",\"\",'1. Order'!O852)","v":{"$error":"#N/A"}},{"$f":"IF('1. Order'!P852=\"\",\"\",'1. Order'!P852)","v":{"$error":"#N/A"}},{"$f":"IF('1. Order'!Q852=\"\",\"\",'1. Order'!Q852)","v":""},{"$f":"IF('1. Order'!S852=\"\",\"\",'1. Order'!S852)","v":""},{"$f":"IF('1. Order'!T852=\"\",\"\",'1. Order'!T852)","v":""},{"$f":"IF('1. Order'!W852=\"\",\"\",'1. Order'!W852)","v":""},{"$f":"IF('1. Order'!X852=\"\",\"\",'1. Order'!X852)","v":""},{"$f":"IF('1. Order'!Y852=\"\",\"\",'1. Order'!Y852)","v":"EUR"},{"$f":"IF('1. Order'!Z852=\"\",\"\",'1. Order'!Z852)","v":""},{"$f":"IF('1. Order'!AA852=\"\",\"\",'1. Order'!AA852)","v":""},{"$f":"IF('1. Order'!AB852=\"\",\"\",'1. Order'!AB852)","v":""},null,{"$f":"IF('1. Order'!AT852=\"\",\"\",'1. Order'!AT852)","v":""},{"$f":"IF('1. Order'!AU852=\"\",\"\",'1. Order'!AU852)","v":""},null,null,null,null,null,null,null,{"$f":"IF('1. Order'!AY852=\"\",\"\",'1. Order'!AY852)","v":""},{"$f":"IF('1. Order'!AZ852=\"\",\"\",'1. Order'!AZ852)","v":""},{"$f":"IF('1. Order'!BA852=\"\",\"\",'1. Order'!BA852)","v":""},{"$f":"IF('1. Order'!BB852=\"\",\"\",'1. Order'!BB852)","v":""},{"$f":"IF('1. Order'!BD852=\"\",\"\",'1. Order'!BD852)","v":""},{"$f":"IF('1. Order'!BE852=\"\",\"\",'1. Order'!BE852)","v":""},{"$f":"IF('1. Order'!BF852=\"\",\"\",'1. Order'!BF852)","v":""},{"$f":"IF('1. Order'!BG852=\"\",\"\",'1. Order'!BG852)","v":""},{"$f":"IF('1. Order'!BH852=\"\",\"\",'1. Order'!BH852)","v":"ZWO"}]
[{"$f":"IF('1. Order'!F853=\"\",\"\",'1. Order'!F853)","v":{"$error":"#N/A"}},{"$f":"IF('1. Order'!G853=\"\",\"\",'1. Order'!G853)","v":""},{"$f":"IF('1. Order'!H853=\"\",\"\",'1. Order'!H853)","v":""},{"$f":"IF('1. Order'!I853=\"\",\"\",'1. Order'!I853)","v":""},{"$f":"IF('1. Order'!J853=\"\",\"\",'1. Order'!J853)","v":""},{"$f":"IF('1. Order'!K853=\"\",\"\",'1. Order'!K853)","v":""},{"$f":"IF('1. Order'!L853=\"\",\"\",'1. Order'!L853)","v":""},{"$f":"IF('1. Order'!M853=\"\",\"\",'1. Order'!M853)","v":""},{"$f":"IF('1. Order'!N853=\"\",\"\",'1. Order'!N853)","v":""},{"$f":"IF('1. Order'!O853=\"\",\"\",'1. Order'!O853)","v":{"$error":"#N/A"}},{"$f":"IF('1. Order'!P853=\"\",\"\",'1. Order'!P853)","v":{"$error":"#N/A"}},{"$f":"IF('1. Order'!Q853=\"\",\"\",'1. Order'!Q853)","v":""},{"$f":"IF('1. Order'!S853=\"\",\"\",'1. Order'!S853)","v":""},{"$f":"IF('1. Order'!T853=\"\",\"\",'1. Order'!T853)","v":""},{"$f":"IF('1. Order'!W853=\"\",\"\",'1. Order'!W853)","v":""},{"$f":"IF('1. Order'!X853=\"\",\"\",'1. Order'!X853)","v":""},{"$f":"IF('1. Order'!Y853=\"\",\"\",'1. Order'!Y853)","v":"EUR"},{"$f":"IF('1. Order'!Z853=\"\",\"\",'1. Order'!Z853)","v":""},{"$f":"IF('1. Order'!AA853=\"\",\"\",'1. Order'!AA853)","v":""},{"$f":"IF('1. Order'!AB853=\"\",\"\",'1. Order'!AB853)","v":""},null,{"$f":"IF('1. Order'!AT853=\"\",\"\",'1. Order'!AT853)","v":""},{"$f":"IF('1. Order'!AU853=\"\",\"\",'1. Order'!AU853)","v":""},null,null,null,null,null,null,null,{"$f":"IF('1. Order'!AY853=\"\",\"\",'1. Order'!AY853)","v":""},{"$f":"IF('1. Order'!AZ853=\"\",\"\",'1. Order'!AZ853)","v":""},{"$f":"IF('1. Order'!BA853=\"\",\"\",'1. Order'!BA853)","v":""},{"$f":"IF('1. Order'!BB853=\"\",\"\",'1. Order'!BB853)","v":""},{"$f":"IF('1. Order'!BD853=\"\",\"\",'1. Order'!BD853)","v":""},{"$f":"IF('1. Order'!BE853=\"\",\"\",'1. Order'!BE853)","v":""},{"$f":"IF('1. Order'!BF853=\"\",\"\",'1. Order'!BF853)","v":""},{"$f":"IF('1. Order'!BG853=\"\",\"\",'1. Order'!BG853)","v":""},{"$f":"IF('1. Order'!BH853=\"\",\"\",'1. Order'!BH853)","v":"ZWO"}]
[{"$f":"IF('1. Order'!F854=\"\",\"\",'1. Order'!F854)","v":{"$error":"#N/A"}},{"$f":"IF('1. Order'!G854=\"\",\"\",'1. Order'!G854)","v":""},{"$f":"IF('1. Order'!H854=\"\",\"\",'1. Order'!H854)","v":""},{"$f":"IF('1. Order'!I854=\"\",\"\",'1. Order'!I854)","v":""},{"$f":"IF('1. Order'!J854=\"\",\"\",'1. Order'!J854)","v":""},{"$f":"IF('1. Order'!K854=\"\",\"\",'1. Order'!K854)","v":""},{"$f":"IF('1. Order'!L854=\"\",\"\",'1. Order'!L854)","v":""},{"$f":"IF('1. Order'!M854=\"\",\"\",'1. Order'!M854)","v":""},{"$f":"IF('1. Order'!N854=\"\",\"\",'1. Order'!N854)","v":""},{"$f":"IF('1. Order'!O854=\"\",\"\",'1. Order'!O854)","v":{"$error":"#N/A"}},{"$f":"IF('1. Order'!P854=\"\",\"\",'1. Order'!P854)","v":{"$error":"#N/A"}},{"$f":"IF('1. Order'!Q854=\"\",\"\",'1. Order'!Q854)","v":""},{"$f":"IF('1. Order'!S854=\"\",\"\",'1. Order'!S854)","v":""},{"$f":"IF('1. Order'!T854=\"\",\"\",'1. Order'!T854)","v":""},{"$f":"IF('1. Order'!W854=\"\",\"\",'1. Order'!W854)","v":""},{"$f":"IF('1. Order'!X854=\"\",\"\",'1. Order'!X854)","v":""},{"$f":"IF('1. Order'!Y854=\"\",\"\",'1. Order'!Y854)","v":"EUR"},{"$f":"IF('1. Order'!Z854=\"\",\"\",'1. Order'!Z854)","v":""},{"$f":"IF('1. Order'!AA854=\"\",\"\",'1. Order'!AA854)","v":""},{"$f":"IF('1. Order'!AB854=\"\",\"\",'1. Order'!AB854)","v":""},null,{"$f":"IF('1. Order'!AT854=\"\",\"\",'1. Order'!AT854)","v":""},{"$f":"IF('1. Order'!AU854=\"\",\"\",'1. Order'!AU854)","v":""},null,null,null,null,null,null,null,{"$f":"IF('1. Order'!AY854=\"\",\"\",'1. Order'!AY854)","v":""},{"$f":"IF('1. Order'!AZ854=\"\",\"\",'1. Order'!AZ854)","v":""},{"$f":"IF('1. Order'!BA854=\"\",\"\",'1. Order'!BA854)","v":""},{"$f":"IF('1. Order'!BB854=\"\",\"\",'1. Order'!BB854)","v":""},{"$f":"IF('1. Order'!BD854=\"\",\"\",'1. Order'!BD854)","v":""},{"$f":"IF('1. Order'!BE854=\"\",\"\",'1. Order'!BE854)","v":""},{"$f":"IF('1. Order'!BF854=\"\",\"\",'1. Order'!BF854)","v":""},{"$f":"IF('1. Order'!BG854=\"\",\"\",'1. Order'!BG854)","v":""},{"$f":"IF('1. Order'!BH854=\"\",\"\",'1. Order'!BH854)","v":"ZWO"}]
[{"$f":"IF('1. Order'!F855=\"\",\"\",'1. Order'!F855)","v":{"$error":"#N/A"}},{"$f":"IF('1. Order'!G855=\"\",\"\",'1. Order'!G855)","v":""},{"$f":"IF('1. Order'!H855=\"\",\"\",'1. Order'!H855)","v":""},{"$f":"IF('1. Order'!I855=\"\",\"\",'1. Order'!I855)","v":""},{"$f":"IF('1. Order'!J855=\"\",\"\",'1. Order'!J855)","v":""},{"$f":"IF('1. Order'!K855=\"\",\"\",'1. Order'!K855)","v":""},{"$f":"IF('1. Order'!L855=\"\",\"\",'1. Order'!L855)","v":""},{"$f":"IF('1. Order'!M855=\"\",\"\",'1. Order'!M855)","v":""},{"$f":"IF('1. Order'!N855=\"\",\"\",'1. Order'!N855)","v":""},{"$f":"IF('1. Order'!O855=\"\",\"\",'1. Order'!O855)","v":{"$error":"#N/A"}},{"$f":"IF('1. Order'!P855=\"\",\"\",'1. Order'!P855)","v":{"$error":"#N/A"}},{"$f":"IF('1. Order'!Q855=\"\",\"\",'1. Order'!Q855)","v":""},{"$f":"IF('1. Order'!S855=\"\",\"\",'1. Order'!S855)","v":""},{"$f":"IF('1. Order'!T855=\"\",\"\",'1. Order'!T855)","v":""},{"$f":"IF('1. Order'!W855=\"\",\"\",'1. Order'!W855)","v":""},{"$f":"IF('1. Order'!X855=\"\",\"\",'1. Order'!X855)","v":""},{"$f":"IF('1. Order'!Y855=\"\",\"\",'1. Order'!Y855)","v":"EUR"},{"$f":"IF('1. Order'!Z855=\"\",\"\",'1. Order'!Z855)","v":""},{"$f":"IF('1. Order'!AA855=\"\",\"\",'1. Order'!AA855)","v":""},{"$f":"IF('1. Order'!AB855=\"\",\"\",'1. Order'!AB855)","v":""},null,{"$f":"IF('1. Order'!AT855=\"\",\"\",'1. Order'!AT855)","v":""},{"$f":"IF('1. Order'!AU855=\"\",\"\",'1. Order'!AU855)","v":""},null,null,null,null,null,null,null,{"$f":"IF('1. Order'!AY855=\"\",\"\",'1. Order'!AY855)","v":""},{"$f":"IF('1. Order'!AZ855=\"\",\"\",'1. Order'!AZ855)","v":""},{"$f":"IF('1. Order'!BA855=\"\",\"\",'1. Order'!BA855)","v":""},{"$f":"IF('1. Order'!BB855=\"\",\"\",'1. Order'!BB855)","v":""},{"$f":"IF('1. Order'!BD855=\"\",\"\",'1. Order'!BD855)","v":""},{"$f":"IF('1. Order'!BE855=\"\",\"\",'1. Order'!BE855)","v":""},{"$f":"IF('1. Order'!BF855=\"\",\"\",'1. Order'!BF855)","v":""},{"$f":"IF('1. Order'!BG855=\"\",\"\",'1. Order'!BG855)","v":""},{"$f":"IF('1. Order'!BH855=\"\",\"\",'1. Order'!BH855)","v":"ZWO"}]
[{"$f":"IF('1. Order'!F856=\"\",\"\",'1. Order'!F856)","v":{"$error":"#N/A"}},{"$f":"IF('1. Order'!G856=\"\",\"\",'1. Order'!G856)","v":""},{"$f":"IF('1. Order'!H856=\"\",\"\",'1. Order'!H856)","v":""},{"$f":"IF('1. Order'!I856=\"\",\"\",'1. Order'!I856)","v":""},{"$f":"IF('1. Order'!J856=\"\",\"\",'1. Order'!J856)","v":""},{"$f":"IF('1. Order'!K856=\"\",\"\",'1. Order'!K856)","v":""},{"$f":"IF('1. Order'!L856=\"\",\"\",'1. Order'!L856)","v":""},{"$f":"IF('1. Order'!M856=\"\",\"\",'1. Order'!M856)","v":""},{"$f":"IF('1. Order'!N856=\"\",\"\",'1. Order'!N856)","v":""},{"$f":"IF('1. Order'!O856=\"\",\"\",'1. Order'!O856)","v":{"$error":"#N/A"}},{"$f":"IF('1. Order'!P856=\"\",\"\",'1. Order'!P856)","v":{"$error":"#N/A"}},{"$f":"IF('1. Order'!Q856=\"\",\"\",'1. Order'!Q856)","v":""},{"$f":"IF('1. Order'!S856=\"\",\"\",'1. Order'!S856)","v":""},{"$f":"IF('1. Order'!T856=\"\",\"\",'1. Order'!T856)","v":""},{"$f":"IF('1. Order'!W856=\"\",\"\",'1. Order'!W856)","v":""},{"$f":"IF('1. Order'!X856=\"\",\"\",'1. Order'!X856)","v":""},{"$f":"IF('1. Order'!Y856=\"\",\"\",'1. Order'!Y856)","v":"EUR"},{"$f":"IF('1. Order'!Z856=\"\",\"\",'1. Order'!Z856)","v":""},{"$f":"IF('1. Order'!AA856=\"\",\"\",'1. Order'!AA856)","v":""},{"$f":"IF('1. Order'!AB856=\"\",\"\",'1. Order'!AB856)","v":""},null,{"$f":"IF('1. Order'!AT856=\"\",\"\",'1. Order'!AT856)","v":""},{"$f":"IF('1. Order'!AU856=\"\",\"\",'1. Order'!AU856)","v":""},null,null,null,null,null,null,null,{"$f":"IF('1. Order'!AY856=\"\",\"\",'1. Order'!AY856)","v":""},{"$f":"IF('1. Order'!AZ856=\"\",\"\",'1. Order'!AZ856)","v":""},{"$f":"IF('1. Order'!BA856=\"\",\"\",'1. Order'!BA856)","v":""},{"$f":"IF('1. Order'!BB856=\"\",\"\",'1. Order'!BB856)","v":""},{"$f":"IF('1. Order'!BD856=\"\",\"\",'1. Order'!BD856)","v":""},{"$f":"IF('1. Order'!BE856=\"\",\"\",'1. Order'!BE856)","v":""},{"$f":"IF('1. Order'!BF856=\"\",\"\",'1. Order'!BF856)","v":""},{"$f":"IF('1. Order'!BG856=\"\",\"\",'1. Order'!BG856)","v":""},{"$f":"IF('1. Order'!BH856=\"\",\"\",'1. Order'!BH856)","v":"ZWO"}]
[{"$f":"IF('1. Order'!F857=\"\",\"\",'1. Order'!F857)","v":{"$error":"#N/A"}},{"$f":"IF('1. Order'!G857=\"\",\"\",'1. Order'!G857)","v":""},{"$f":"IF('1. Order'!H857=\"\",\"\",'1. Order'!H857)","v":""},{"$f":"IF('1. Order'!I857=\"\",\"\",'1. Order'!I857)","v":""},{"$f":"IF('1. Order'!J857=\"\",\"\",'1. Order'!J857)","v":""},{"$f":"IF('1. Order'!K857=\"\",\"\",'1. Order'!K857)","v":""},{"$f":"IF('1. Order'!L857=\"\",\"\",'1. Order'!L857)","v":""},{"$f":"IF('1. Order'!M857=\"\",\"\",'1. Order'!M857)","v":""},{"$f":"IF('1. Order'!N857=\"\",\"\",'1. Order'!N857)","v":""},{"$f":"IF('1. Order'!O857=\"\",\"\",'1. Order'!O857)","v":{"$error":"#N/A"}},{"$f":"IF('1. Order'!P857=\"\",\"\",'1. Order'!P857)","v":{"$error":"#N/A"}},{"$f":"IF('1. Order'!Q857=\"\",\"\",'1. Order'!Q857)","v":""},{"$f":"IF('1. Order'!S857=\"\",\"\",'1. Order'!S857)","v":""},{"$f":"IF('1. Order'!T857=\"\",\"\",'1. Order'!T857)","v":""},{"$f":"IF('1. Order'!W857=\"\",\"\",'1. Order'!W857)","v":""},{"$f":"IF('1. Order'!X857=\"\",\"\",'1. Order'!X857)","v":""},{"$f":"IF('1. Order'!Y857=\"\",\"\",'1. Order'!Y857)","v":"EUR"},{"$f":"IF('1. Order'!Z857=\"\",\"\",'1. Order'!Z857)","v":""},{"$f":"IF('1. Order'!AA857=\"\",\"\",'1. Order'!AA857)","v":""},{"$f":"IF('1. Order'!AB857=\"\",\"\",'1. Order'!AB857)","v":""},null,{"$f":"IF('1. Order'!AT857=\"\",\"\",'1. Order'!AT857)","v":""},{"$f":"IF('1. Order'!AU857=\"\",\"\",'1. Order'!AU857)","v":""},null,null,null,null,null,null,null,{"$f":"IF('1. Order'!AY857=\"\",\"\",'1. Order'!AY857)","v":""},{"$f":"IF('1. Order'!AZ857=\"\",\"\",'1. Order'!AZ857)","v":""},{"$f":"IF('1. Order'!BA857=\"\",\"\",'1. Order'!BA857)","v":""},{"$f":"IF('1. Order'!BB857=\"\",\"\",'1. Order'!BB857)","v":""},{"$f":"IF('1. Order'!BD857=\"\",\"\",'1. Order'!BD857)","v":""},{"$f":"IF('1. Order'!BE857=\"\",\"\",'1. Order'!BE857)","v":""},{"$f":"IF('1. Order'!BF857=\"\",\"\",'1. Order'!BF857)","v":""},{"$f":"IF('1. Order'!BG857=\"\",\"\",'1. Order'!BG857)","v":""},{"$f":"IF('1. Order'!BH857=\"\",\"\",'1. Order'!BH857)","v":"ZWO"}]
[{"$f":"IF('1. Order'!F858=\"\",\"\",'1. Order'!F858)","v":{"$error":"#N/A"}},{"$f":"IF('1. Order'!G858=\"\",\"\",'1. Order'!G858)","v":""},{"$f":"IF('1. Order'!H858=\"\",\"\",'1. Order'!H858)","v":""},{"$f":"IF('1. Order'!I858=\"\",\"\",'1. Order'!I858)","v":""},{"$f":"IF('1. Order'!J858=\"\",\"\",'1. Order'!J858)","v":""},{"$f":"IF('1. Order'!K858=\"\",\"\",'1. Order'!K858)","v":""},{"$f":"IF('1. Order'!L858=\"\",\"\",'1. Order'!L858)","v":""},{"$f":"IF('1. Order'!M858=\"\",\"\",'1. Order'!M858)","v":""},{"$f":"IF('1. Order'!N858=\"\",\"\",'1. Order'!N858)","v":""},{"$f":"IF('1. Order'!O858=\"\",\"\",'1. Order'!O858)","v":{"$error":"#N/A"}},{"$f":"IF('1. Order'!P858=\"\",\"\",'1. Order'!P858)","v":{"$error":"#N/A"}},{"$f":"IF('1. Order'!Q858=\"\",\"\",'1. Order'!Q858)","v":""},{"$f":"IF('1. Order'!S858=\"\",\"\",'1. Order'!S858)","v":""},{"$f":"IF('1. Order'!T858=\"\",\"\",'1. Order'!T858)","v":""},{"$f":"IF('1. Order'!W858=\"\",\"\",'1. Order'!W858)","v":""},{"$f":"IF('1. Order'!X858=\"\",\"\",'1. Order'!X858)","v":""},{"$f":"IF('1. Order'!Y858=\"\",\"\",'1. Order'!Y858)","v":"EUR"},{"$f":"IF('1. Order'!Z858=\"\",\"\",'1. Order'!Z858)","v":""},{"$f":"IF('1. Order'!AA858=\"\",\"\",'1. Order'!AA858)","v":""},{"$f":"IF('1. Order'!AB858=\"\",\"\",'1. Order'!AB858)","v":""},null,{"$f":"IF('1. Order'!AT858=\"\",\"\",'1. Order'!AT858)","v":""},{"$f":"IF('1. Order'!AU858=\"\",\"\",'1. Order'!AU858)","v":""},null,null,null,null,null,null,null,{"$f":"IF('1. Order'!AY858=\"\",\"\",'1. Order'!AY858)","v":""},{"$f":"IF('1. Order'!AZ858=\"\",\"\",'1. Order'!AZ858)","v":""},{"$f":"IF('1. Order'!BA858=\"\",\"\",'1. Order'!BA858)","v":""},{"$f":"IF('1. Order'!BB858=\"\",\"\",'1. Order'!BB858)","v":""},{"$f":"IF('1. Order'!BD858=\"\",\"\",'1. Order'!BD858)","v":""},{"$f":"IF('1. Order'!BE858=\"\",\"\",'1. Order'!BE858)","v":""},{"$f":"IF('1. Order'!BF858=\"\",\"\",'1. Order'!BF858)","v":""},{"$f":"IF('1. Order'!BG858=\"\",\"\",'1. Order'!BG858)","v":""},{"$f":"IF('1. Order'!BH858=\"\",\"\",'1. Order'!BH858)","v":"ZWO"}]
[{"$f":"IF('1. Order'!F859=\"\",\"\",'1. Order'!F859)","v":{"$error":"#N/A"}},{"$f":"IF('1. Order'!G859=\"\",\"\",'1. Order'!G859)","v":""},{"$f":"IF('1. Order'!H859=\"\",\"\",'1. Order'!H859)","v":""},{"$f":"IF('1. Order'!I859=\"\",\"\",'1. Order'!I859)","v":""},{"$f":"IF('1. Order'!J859=\"\",\"\",'1. Order'!J859)","v":""},{"$f":"IF('1. Order'!K859=\"\",\"\",'1. Order'!K859)","v":""},{"$f":"IF('1. Order'!L859=\"\",\"\",'1. Order'!L859)","v":""},{"$f":"IF('1. Order'!M859=\"\",\"\",'1. Order'!M859)","v":""},{"$f":"IF('1. Order'!N859=\"\",\"\",'1. Order'!N859)","v":""},{"$f":"IF('1. Order'!O859=\"\",\"\",'1. Order'!O859)","v":{"$error":"#N/A"}},{"$f":"IF('1. Order'!P859=\"\",\"\",'1. Order'!P859)","v":{"$error":"#N/A"}},{"$f":"IF('1. Order'!Q859=\"\",\"\",'1. Order'!Q859)","v":""},{"$f":"IF('1. Order'!S859=\"\",\"\",'1. Order'!S859)","v":""},{"$f":"IF('1. Order'!T859=\"\",\"\",'1. Order'!T859)","v":""},{"$f":"IF('1. Order'!W859=\"\",\"\",'1. Order'!W859)","v":""},{"$f":"IF('1. Order'!X859=\"\",\"\",'1. Order'!X859)","v":""},{"$f":"IF('1. Order'!Y859=\"\",\"\",'1. Order'!Y859)","v":"EUR"},{"$f":"IF('1. Order'!Z859=\"\",\"\",'1. Order'!Z859)","v":""},{"$f":"IF('1. Order'!AA859=\"\",\"\",'1. Order'!AA859)","v":""},{"$f":"IF('1. Order'!AB859=\"\",\"\",'1. Order'!AB859)","v":""},null,{"$f":"IF('1. Order'!AT859=\"\",\"\",'1. Order'!AT859)","v":""},{"$f":"IF('1. Order'!AU859=\"\",\"\",'1. Order'!AU859)","v":""},null,null,null,null,null,null,null,{"$f":"IF('1. Order'!AY859=\"\",\"\",'1. Order'!AY859)","v":""},{"$f":"IF('1. Order'!AZ859=\"\",\"\",'1. Order'!AZ859)","v":""},{"$f":"IF('1. Order'!BA859=\"\",\"\",'1. Order'!BA859)","v":""},{"$f":"IF('1. Order'!BB859=\"\",\"\",'1. Order'!BB859)","v":""},{"$f":"IF('1. Order'!BD859=\"\",\"\",'1. Order'!BD859)","v":""},{"$f":"IF('1. Order'!BE859=\"\",\"\",'1. Order'!BE859)","v":""},{"$f":"IF('1. Order'!BF859=\"\",\"\",'1. Order'!BF859)","v":""},{"$f":"IF('1. Order'!BG859=\"\",\"\",'1. Order'!BG859)","v":""},{"$f":"IF('1. Order'!BH859=\"\",\"\",'1. Order'!BH859)","v":"ZWO"}]
[{"$f":"IF('1. Order'!F860=\"\",\"\",'1. Order'!F860)","v":{"$error":"#N/A"}},{"$f":"IF('1. Order'!G860=\"\",\"\",'1. Order'!G860)","v":""},{"$f":"IF('1. Order'!H860=\"\",\"\",'1. Order'!H860)","v":""},{"$f":"IF('1. Order'!I860=\"\",\"\",'1. Order'!I860)","v":""},{"$f":"IF('1. Order'!J860=\"\",\"\",'1. Order'!J860)","v":""},{"$f":"IF('1. Order'!K860=\"\",\"\",'1. Order'!K860)","v":""},{"$f":"IF('1. Order'!L860=\"\",\"\",'1. Order'!L860)","v":""},{"$f":"IF('1. Order'!M860=\"\",\"\",'1. Order'!M860)","v":""},{"$f":"IF('1. Order'!N860=\"\",\"\",'1. Order'!N860)","v":""},{"$f":"IF('1. Order'!O860=\"\",\"\",'1. Order'!O860)","v":{"$error":"#N/A"}},{"$f":"IF('1. Order'!P860=\"\",\"\",'1. Order'!P860)","v":{"$error":"#N/A"}},{"$f":"IF('1. Order'!Q860=\"\",\"\",'1. Order'!Q860)","v":""},{"$f":"IF('1. Order'!S860=\"\",\"\",'1. Order'!S860)","v":""},{"$f":"IF('1. Order'!T860=\"\",\"\",'1. Order'!T860)","v":""},{"$f":"IF('1. Order'!W860=\"\",\"\",'1. Order'!W860)","v":""},{"$f":"IF('1. Order'!X860=\"\",\"\",'1. Order'!X860)","v":""},{"$f":"IF('1. Order'!Y860=\"\",\"\",'1. Order'!Y860)","v":"EUR"},{"$f":"IF('1. Order'!Z860=\"\",\"\",'1. Order'!Z860)","v":""},{"$f":"IF('1. Order'!AA860=\"\",\"\",'1. Order'!AA860)","v":""},{"$f":"IF('1. Order'!AB860=\"\",\"\",'1. Order'!AB860)","v":""},null,{"$f":"IF('1. Order'!AT860=\"\",\"\",'1. Order'!AT860)","v":""},{"$f":"IF('1. Order'!AU860=\"\",\"\",'1. Order'!AU860)","v":""},null,null,null,null,null,null,null,{"$f":"IF('1. Order'!AY860=\"\",\"\",'1. Order'!AY860)","v":""},{"$f":"IF('1. Order'!AZ860=\"\",\"\",'1. Order'!AZ860)","v":""},{"$f":"IF('1. Order'!BA860=\"\",\"\",'1. Order'!BA860)","v":""},{"$f":"IF('1. Order'!BB860=\"\",\"\",'1. Order'!BB860)","v":""},{"$f":"IF('1. Order'!BD860=\"\",\"\",'1. Order'!BD860)","v":""},{"$f":"IF('1. Order'!BE860=\"\",\"\",'1. Order'!BE860)","v":""},{"$f":"IF('1. Order'!BF860=\"\",\"\",'1. Order'!BF860)","v":""},{"$f":"IF('1. Order'!BG860=\"\",\"\",'1. Order'!BG860)","v":""},{"$f":"IF('1. Order'!BH860=\"\",\"\",'1. Order'!BH860)","v":"ZWO"}]
[{"$f":"IF('1. Order'!F861=\"\",\"\",'1. Order'!F861)","v":{"$error":"#N/A"}},{"$f":"IF('1. Order'!G861=\"\",\"\",'1. Order'!G861)","v":""},{"$f":"IF('1. Order'!H861=\"\",\"\",'1. Order'!H861)","v":""},{"$f":"IF('1. Order'!I861=\"\",\"\",'1. Order'!I861)","v":""},{"$f":"IF('1. Order'!J861=\"\",\"\",'1. Order'!J861)","v":""},{"$f":"IF('1. Order'!K861=\"\",\"\",'1. Order'!K861)","v":""},{"$f":"IF('1. Order'!L861=\"\",\"\",'1. Order'!L861)","v":""},{"$f":"IF('1. Order'!M861=\"\",\"\",'1. Order'!M861)","v":""},{"$f":"IF('1. Order'!N861=\"\",\"\",'1. Order'!N861)","v":""},{"$f":"IF('1. Order'!O861=\"\",\"\",'1. Order'!O861)","v":{"$error":"#N/A"}},{"$f":"IF('1. Order'!P861=\"\",\"\",'1. Order'!P861)","v":{"$error":"#N/A"}},{"$f":"IF('1. Order'!Q861=\"\",\"\",'1. Order'!Q861)","v":""},{"$f":"IF('1. Order'!S861=\"\",\"\",'1. Order'!S861)","v":""},{"$f":"IF('1. Order'!T861=\"\",\"\",'1. Order'!T861)","v":""},{"$f":"IF('1. Order'!W861=\"\",\"\",'1. Order'!W861)","v":""},{"$f":"IF('1. Order'!X861=\"\",\"\",'1. Order'!X861)","v":""},{"$f":"IF('1. Order'!Y861=\"\",\"\",'1. Order'!Y861)","v":"EUR"},{"$f":"IF('1. Order'!Z861=\"\",\"\",'1. Order'!Z861)","v":""},{"$f":"IF('1. Order'!AA861=\"\",\"\",'1. Order'!AA861)","v":""},{"$f":"IF('1. Order'!AB861=\"\",\"\",'1. Order'!AB861)","v":""},null,{"$f":"IF('1. Order'!AT861=\"\",\"\",'1. Order'!AT861)","v":""},{"$f":"IF('1. Order'!AU861=\"\",\"\",'1. Order'!AU861)","v":""},null,null,null,null,null,null,null,{"$f":"IF('1. Order'!AY861=\"\",\"\",'1. Order'!AY861)","v":""},{"$f":"IF('1. Order'!AZ861=\"\",\"\",'1. Order'!AZ861)","v":""},{"$f":"IF('1. Order'!BA861=\"\",\"\",'1. Order'!BA861)","v":""},{"$f":"IF('1. Order'!BB861=\"\",\"\",'1. Order'!BB861)","v":""},{"$f":"IF('1. Order'!BD861=\"\",\"\",'1. Order'!BD861)","v":""},{"$f":"IF('1. Order'!BE861=\"\",\"\",'1. Order'!BE861)","v":""},{"$f":"IF('1. Order'!BF861=\"\",\"\",'1. Order'!BF861)","v":""},{"$f":"IF('1. Order'!BG861=\"\",\"\",'1. Order'!BG861)","v":""},{"$f":"IF('1. Order'!BH861=\"\",\"\",'1. Order'!BH861)","v":"ZWO"}]
[{"$f":"IF('1. Order'!F862=\"\",\"\",'1. Order'!F862)","v":{"$error":"#N/A"}},{"$f":"IF('1. Order'!G862=\"\",\"\",'1. Order'!G862)","v":""},{"$f":"IF('1. Order'!H862=\"\",\"\",'1. Order'!H862)","v":""},{"$f":"IF('1. Order'!I862=\"\",\"\",'1. Order'!I862)","v":""},{"$f":"IF('1. Order'!J862=\"\",\"\",'1. Order'!J862)","v":""},{"$f":"IF('1. Order'!K862=\"\",\"\",'1. Order'!K862)","v":""},{"$f":"IF('1. Order'!L862=\"\",\"\",'1. Order'!L862)","v":""},{"$f":"IF('1. Order'!M862=\"\",\"\",'1. Order'!M862)","v":""},{"$f":"IF('1. Order'!N862=\"\",\"\",'1. Order'!N862)","v":""},{"$f":"IF('1. Order'!O862=\"\",\"\",'1. Order'!O862)","v":{"$error":"#N/A"}},{"$f":"IF('1. Order'!P862=\"\",\"\",'1. Order'!P862)","v":{"$error":"#N/A"}},{"$f":"IF('1. Order'!Q862=\"\",\"\",'1. Order'!Q862)","v":""},{"$f":"IF('1. Order'!S862=\"\",\"\",'1. Order'!S862)","v":""},{"$f":"IF('1. Order'!T862=\"\",\"\",'1. Order'!T862)","v":""},{"$f":"IF('1. Order'!W862=\"\",\"\",'1. Order'!W862)","v":""},{"$f":"IF('1. Order'!X862=\"\",\"\",'1. Order'!X862)","v":""},{"$f":"IF('1. Order'!Y862=\"\",\"\",'1. Order'!Y862)","v":"EUR"},{"$f":"IF('1. Order'!Z862=\"\",\"\",'1. Order'!Z862)","v":""},{"$f":"IF('1. Order'!AA862=\"\",\"\",'1. Order'!AA862)","v":""},{"$f":"IF('1. Order'!AB862=\"\",\"\",'1. Order'!AB862)","v":""},null,{"$f":"IF('1. Order'!AT862=\"\",\"\",'1. Order'!AT862)","v":""},{"$f":"IF('1. Order'!AU862=\"\",\"\",'1. Order'!AU862)","v":""},null,null,null,null,null,null,null,{"$f":"IF('1. Order'!AY862=\"\",\"\",'1. Order'!AY862)","v":""},{"$f":"IF('1. Order'!AZ862=\"\",\"\",'1. Order'!AZ862)","v":""},{"$f":"IF('1. Order'!BA862=\"\",\"\",'1. Order'!BA862)","v":""},{"$f":"IF('1. Order'!BB862=\"\",\"\",'1. Order'!BB862)","v":""},{"$f":"IF('1. Order'!BD862=\"\",\"\",'1. Order'!BD862)","v":""},{"$f":"IF('1. Order'!BE862=\"\",\"\",'1. Order'!BE862)","v":""},{"$f":"IF('1. Order'!BF862=\"\",\"\",'1. Order'!BF862)","v":""},{"$f":"IF('1. Order'!BG862=\"\",\"\",'1. Order'!BG862)","v":""},{"$f":"IF('1. Order'!BH862=\"\",\"\",'1. Order'!BH862)","v":"ZWO"}]
[{"$f":"IF('1. Order'!F863=\"\",\"\",'1. Order'!F863)","v":{"$error":"#N/A"}},{"$f":"IF('1. Order'!G863=\"\",\"\",'1. Order'!G863)","v":""},{"$f":"IF('1. Order'!H863=\"\",\"\",'1. Order'!H863)","v":""},{"$f":"IF('1. Order'!I863=\"\",\"\",'1. Order'!I863)","v":""},{"$f":"IF('1. Order'!J863=\"\",\"\",'1. Order'!J863)","v":""},{"$f":"IF('1. Order'!K863=\"\",\"\",'1. Order'!K863)","v":""},{"$f":"IF('1. Order'!L863=\"\",\"\",'1. Order'!L863)","v":""},{"$f":"IF('1. Order'!M863=\"\",\"\",'1. Order'!M863)","v":""},{"$f":"IF('1. Order'!N863=\"\",\"\",'1. Order'!N863)","v":""},{"$f":"IF('1. Order'!O863=\"\",\"\",'1. Order'!O863)","v":{"$error":"#N/A"}},{"$f":"IF('1. Order'!P863=\"\",\"\",'1. Order'!P863)","v":{"$error":"#N/A"}},{"$f":"IF('1. Order'!Q863=\"\",\"\",'1. Order'!Q863)","v":""},{"$f":"IF('1. Order'!S863=\"\",\"\",'1. Order'!S863)","v":""},{"$f":"IF('1. Order'!T863=\"\",\"\",'1. Order'!T863)","v":""},{"$f":"IF('1. Order'!W863=\"\",\"\",'1. Order'!W863)","v":""},{"$f":"IF('1. Order'!X863=\"\",\"\",'1. Order'!X863)","v":""},{"$f":"IF('1. Order'!Y863=\"\",\"\",'1. Order'!Y863)","v":"EUR"},{"$f":"IF('1. Order'!Z863=\"\",\"\",'1. Order'!Z863)","v":""},{"$f":"IF('1. Order'!AA863=\"\",\"\",'1. Order'!AA863)","v":""},{"$f":"IF('1. Order'!AB863=\"\",\"\",'1. Order'!AB863)","v":""},null,{"$f":"IF('1. Order'!AT863=\"\",\"\",'1. Order'!AT863)","v":""},{"$f":"IF('1. Order'!AU863=\"\",\"\",'1. Order'!AU863)","v":""},null,null,null,null,null,null,null,{"$f":"IF('1. Order'!AY863=\"\",\"\",'1. Order'!AY863)","v":""},{"$f":"IF('1. Order'!AZ863=\"\",\"\",'1. Order'!AZ863)","v":""},{"$f":"IF('1. Order'!BA863=\"\",\"\",'1. Order'!BA863)","v":""},{"$f":"IF('1. Order'!BB863=\"\",\"\",'1. Order'!BB863)","v":""},{"$f":"IF('1. Order'!BD863=\"\",\"\",'1. Order'!BD863)","v":""},{"$f":"IF('1. Order'!BE863=\"\",\"\",'1. Order'!BE863)","v":""},{"$f":"IF('1. Order'!BF863=\"\",\"\",'1. Order'!BF863)","v":""},{"$f":"IF('1. Order'!BG863=\"\",\"\",'1. Order'!BG863)","v":""},{"$f":"IF('1. Order'!BH863=\"\",\"\",'1. Order'!BH863)","v":"ZWO"}]
[{"$f":"IF('1. Order'!F864=\"\",\"\",'1. Order'!F864)","v":{"$error":"#N/A"}},{"$f":"IF('1. Order'!G864=\"\",\"\",'1. Order'!G864)","v":""},{"$f":"IF('1. Order'!H864=\"\",\"\",'1. Order'!H864)","v":""},{"$f":"IF('1. Order'!I864=\"\",\"\",'1. Order'!I864)","v":""},{"$f":"IF('1. Order'!J864=\"\",\"\",'1. Order'!J864)","v":""},{"$f":"IF('1. Order'!K864=\"\",\"\",'1. Order'!K864)","v":""},{"$f":"IF('1. Order'!L864=\"\",\"\",'1. Order'!L864)","v":""},{"$f":"IF('1. Order'!M864=\"\",\"\",'1. Order'!M864)","v":""},{"$f":"IF('1. Order'!N864=\"\",\"\",'1. Order'!N864)","v":""},{"$f":"IF('1. Order'!O864=\"\",\"\",'1. Order'!O864)","v":{"$error":"#N/A"}},{"$f":"IF('1. Order'!P864=\"\",\"\",'1. Order'!P864)","v":{"$error":"#N/A"}},{"$f":"IF('1. Order'!Q864=\"\",\"\",'1. Order'!Q864)","v":""},{"$f":"IF('1. Order'!S864=\"\",\"\",'1. Order'!S864)","v":""},{"$f":"IF('1. Order'!T864=\"\",\"\",'1. Order'!T864)","v":""},{"$f":"IF('1. Order'!W864=\"\",\"\",'1. Order'!W864)","v":""},{"$f":"IF('1. Order'!X864=\"\",\"\",'1. Order'!X864)","v":""},{"$f":"IF('1. Order'!Y864=\"\",\"\",'1. Order'!Y864)","v":"EUR"},{"$f":"IF('1. Order'!Z864=\"\",\"\",'1. Order'!Z864)","v":""},{"$f":"IF('1. Order'!AA864=\"\",\"\",'1. Order'!AA864)","v":""},{"$f":"IF('1. Order'!AB864=\"\",\"\",'1. Order'!AB864)","v":""},null,{"$f":"IF('1. Order'!AT864=\"\",\"\",'1. Order'!AT864)","v":""},{"$f":"IF('1. Order'!AU864=\"\",\"\",'1. Order'!AU864)","v":""},null,null,null,null,null,null,null,{"$f":"IF('1. Order'!AY864=\"\",\"\",'1. Order'!AY864)","v":""},{"$f":"IF('1. Order'!AZ864=\"\",\"\",'1. Order'!AZ864)","v":""},{"$f":"IF('1. Order'!BA864=\"\",\"\",'1. Order'!BA864)","v":""},{"$f":"IF('1. Order'!BB864=\"\",\"\",'1. Order'!BB864)","v":""},{"$f":"IF('1. Order'!BD864=\"\",\"\",'1. Order'!BD864)","v":""},{"$f":"IF('1. Order'!BE864=\"\",\"\",'1. Order'!BE864)","v":""},{"$f":"IF('1. Order'!BF864=\"\",\"\",'1. Order'!BF864)","v":""},{"$f":"IF('1. Order'!BG864=\"\",\"\",'1. Order'!BG864)","v":""},{"$f":"IF('1. Order'!BH864=\"\",\"\",'1. Order'!BH864)","v":"ZWO"}]
[{"$f":"IF('1. Order'!F865=\"\",\"\",'1. Order'!F865)","v":{"$error":"#N/A"}},{"$f":"IF('1. Order'!G865=\"\",\"\",'1. Order'!G865)","v":""},{"$f":"IF('1. Order'!H865=\"\",\"\",'1. Order'!H865)","v":""},{"$f":"IF('1. Order'!I865=\"\",\"\",'1. Order'!I865)","v":""},{"$f":"IF('1. Order'!J865=\"\",\"\",'1. Order'!J865)","v":""},{"$f":"IF('1. Order'!K865=\"\",\"\",'1. Order'!K865)","v":""},{"$f":"IF('1. Order'!L865=\"\",\"\",'1. Order'!L865)","v":""},{"$f":"IF('1. Order'!M865=\"\",\"\",'1. Order'!M865)","v":""},{"$f":"IF('1. Order'!N865=\"\",\"\",'1. Order'!N865)","v":""},{"$f":"IF('1. Order'!O865=\"\",\"\",'1. Order'!O865)","v":{"$error":"#N/A"}},{"$f":"IF('1. Order'!P865=\"\",\"\",'1. Order'!P865)","v":{"$error":"#N/A"}},{"$f":"IF('1. Order'!Q865=\"\",\"\",'1. Order'!Q865)","v":""},{"$f":"IF('1. Order'!S865=\"\",\"\",'1. Order'!S865)","v":""},{"$f":"IF('1. Order'!T865=\"\",\"\",'1. Order'!T865)","v":""},{"$f":"IF('1. Order'!W865=\"\",\"\",'1. Order'!W865)","v":""},{"$f":"IF('1. Order'!X865=\"\",\"\",'1. Order'!X865)","v":""},{"$f":"IF('1. Order'!Y865=\"\",\"\",'1. Order'!Y865)","v":"EUR"},{"$f":"IF('1. Order'!Z865=\"\",\"\",'1. Order'!Z865)","v":""},{"$f":"IF('1. Order'!AA865=\"\",\"\",'1. Order'!AA865)","v":""},{"$f":"IF('1. Order'!AB865=\"\",\"\",'1. Order'!AB865)","v":""},null,{"$f":"IF('1. Order'!AT865=\"\",\"\",'1. Order'!AT865)","v":""},{"$f":"IF('1. Order'!AU865=\"\",\"\",'1. Order'!AU865)","v":""},null,null,null,null,null,null,null,{"$f":"IF('1. Order'!AY865=\"\",\"\",'1. Order'!AY865)","v":""},{"$f":"IF('1. Order'!AZ865=\"\",\"\",'1. Order'!AZ865)","v":""},{"$f":"IF('1. Order'!BA865=\"\",\"\",'1. Order'!BA865)","v":""},{"$f":"IF('1. Order'!BB865=\"\",\"\",'1. Order'!BB865)","v":""},{"$f":"IF('1. Order'!BD865=\"\",\"\",'1. Order'!BD865)","v":""},{"$f":"IF('1. Order'!BE865=\"\",\"\",'1. Order'!BE865)","v":""},{"$f":"IF('1. Order'!BF865=\"\",\"\",'1. Order'!BF865)","v":""},{"$f":"IF('1. Order'!BG865=\"\",\"\",'1. Order'!BG865)","v":""},{"$f":"IF('1. Order'!BH865=\"\",\"\",'1. Order'!BH865)","v":"ZWO"}]
[{"$f":"IF('1. Order'!F866=\"\",\"\",'1. Order'!F866)","v":{"$error":"#N/A"}},{"$f":"IF('1. Order'!G866=\"\",\"\",'1. Order'!G866)","v":""},{"$f":"IF('1. Order'!H866=\"\",\"\",'1. Order'!H866)","v":""},{"$f":"IF('1. Order'!I866=\"\",\"\",'1. Order'!I866)","v":""},{"$f":"IF('1. Order'!J866=\"\",\"\",'1. Order'!J866)","v":""},{"$f":"IF('1. Order'!K866=\"\",\"\",'1. Order'!K866)","v":""},{"$f":"IF('1. Order'!L866=\"\",\"\",'1. Order'!L866)","v":""},{"$f":"IF('1. Order'!M866=\"\",\"\",'1. Order'!M866)","v":""},{"$f":"IF('1. Order'!N866=\"\",\"\",'1. Order'!N866)","v":""},{"$f":"IF('1. Order'!O866=\"\",\"\",'1. Order'!O866)","v":{"$error":"#N/A"}},{"$f":"IF('1. Order'!P866=\"\",\"\",'1. Order'!P866)","v":{"$error":"#N/A"}},{"$f":"IF('1. Order'!Q866=\"\",\"\",'1. Order'!Q866)","v":""},{"$f":"IF('1. Order'!S866=\"\",\"\",'1. Order'!S866)","v":""},{"$f":"IF('1. Order'!T866=\"\",\"\",'1. Order'!T866)","v":""},{"$f":"IF('1. Order'!W866=\"\",\"\",'1. Order'!W866)","v":""},{"$f":"IF('1. Order'!X866=\"\",\"\",'1. Order'!X866)","v":""},{"$f":"IF('1. Order'!Y866=\"\",\"\",'1. Order'!Y866)","v":"EUR"},{"$f":"IF('1. Order'!Z866=\"\",\"\",'1. Order'!Z866)","v":""},{"$f":"IF('1. Order'!AA866=\"\",\"\",'1. Order'!AA866)","v":""},{"$f":"IF('1. Order'!AB866=\"\",\"\",'1. Order'!AB866)","v":""},null,{"$f":"IF('1. Order'!AT866=\"\",\"\",'1. Order'!AT866)","v":""},{"$f":"IF('1. Order'!AU866=\"\",\"\",'1. Order'!AU866)","v":""},null,null,null,null,null,null,null,{"$f":"IF('1. Order'!AY866=\"\",\"\",'1. Order'!AY866)","v":""},{"$f":"IF('1. Order'!AZ866=\"\",\"\",'1. Order'!AZ866)","v":""},{"$f":"IF('1. Order'!BA866=\"\",\"\",'1. Order'!BA866)","v":""},{"$f":"IF('1. Order'!BB866=\"\",\"\",'1. Order'!BB866)","v":""},{"$f":"IF('1. Order'!BD866=\"\",\"\",'1. Order'!BD866)","v":""},{"$f":"IF('1. Order'!BE866=\"\",\"\",'1. Order'!BE866)","v":""},{"$f":"IF('1. Order'!BF866=\"\",\"\",'1. Order'!BF866)","v":""},{"$f":"IF('1. Order'!BG866=\"\",\"\",'1. Order'!BG866)","v":""},{"$f":"IF('1. Order'!BH866=\"\",\"\",'1. Order'!BH866)","v":"ZWO"}]
[{"$f":"IF('1. Order'!F867=\"\",\"\",'1. Order'!F867)","v":{"$error":"#N/A"}},{"$f":"IF('1. Order'!G867=\"\",\"\",'1. Order'!G867)","v":""},{"$f":"IF('1. Order'!H867=\"\",\"\",'1. Order'!H867)","v":""},{"$f":"IF('1. Order'!I867=\"\",\"\",'1. Order'!I867)","v":""},{"$f":"IF('1. Order'!J867=\"\",\"\",'1. Order'!J867)","v":""},{"$f":"IF('1. Order'!K867=\"\",\"\",'1. Order'!K867)","v":""},{"$f":"IF('1. Order'!L867=\"\",\"\",'1. Order'!L867)","v":""},{"$f":"IF('1. Order'!M867=\"\",\"\",'1. Order'!M867)","v":""},{"$f":"IF('1. Order'!N867=\"\",\"\",'1. Order'!N867)","v":""},{"$f":"IF('1. Order'!O867=\"\",\"\",'1. Order'!O867)","v":{"$error":"#N/A"}},{"$f":"IF('1. Order'!P867=\"\",\"\",'1. Order'!P867)","v":{"$error":"#N/A"}},{"$f":"IF('1. Order'!Q867=\"\",\"\",'1. Order'!Q867)","v":""},{"$f":"IF('1. Order'!S867=\"\",\"\",'1. Order'!S867)","v":""},{"$f":"IF('1. Order'!T867=\"\",\"\",'1. Order'!T867)","v":""},{"$f":"IF('1. Order'!W867=\"\",\"\",'1. Order'!W867)","v":""},{"$f":"IF('1. Order'!X867=\"\",\"\",'1. Order'!X867)","v":""},{"$f":"IF('1. Order'!Y867=\"\",\"\",'1. Order'!Y867)","v":"EUR"},{"$f":"IF('1. Order'!Z867=\"\",\"\",'1. Order'!Z867)","v":""},{"$f":"IF('1. Order'!AA867=\"\",\"\",'1. Order'!AA867)","v":""},{"$f":"IF('1. Order'!AB867=\"\",\"\",'1. Order'!AB867)","v":""},null,{"$f":"IF('1. Order'!AT867=\"\",\"\",'1. Order'!AT867)","v":""},{"$f":"IF('1. Order'!AU867=\"\",\"\",'1. Order'!AU867)","v":""},null,null,null,null,null,null,null,{"$f":"IF('1. Order'!AY867=\"\",\"\",'1. Order'!AY867)","v":""},{"$f":"IF('1. Order'!AZ867=\"\",\"\",'1. Order'!AZ867)","v":""},{"$f":"IF('1. Order'!BA867=\"\",\"\",'1. Order'!BA867)","v":""},{"$f":"IF('1. Order'!BB867=\"\",\"\",'1. Order'!BB867)","v":""},{"$f":"IF('1. Order'!BD867=\"\",\"\",'1. Order'!BD867)","v":""},{"$f":"IF('1. Order'!BE867=\"\",\"\",'1. Order'!BE867)","v":""},{"$f":"IF('1. Order'!BF867=\"\",\"\",'1. Order'!BF867)","v":""},{"$f":"IF('1. Order'!BG867=\"\",\"\",'1. Order'!BG867)","v":""},{"$f":"IF('1. Order'!BH867=\"\",\"\",'1. Order'!BH867)","v":"ZWO"}]
[{"$f":"IF('1. Order'!F868=\"\",\"\",'1. Order'!F868)","v":{"$error":"#N/A"}},{"$f":"IF('1. Order'!G868=\"\",\"\",'1. Order'!G868)","v":""},{"$f":"IF('1. Order'!H868=\"\",\"\",'1. Order'!H868)","v":""},{"$f":"IF('1. Order'!I868=\"\",\"\",'1. Order'!I868)","v":""},{"$f":"IF('1. Order'!J868=\"\",\"\",'1. Order'!J868)","v":""},{"$f":"IF('1. Order'!K868=\"\",\"\",'1. Order'!K868)","v":""},{"$f":"IF('1. Order'!L868=\"\",\"\",'1. Order'!L868)","v":""},{"$f":"IF('1. Order'!M868=\"\",\"\",'1. Order'!M868)","v":""},{"$f":"IF('1. Order'!N868=\"\",\"\",'1. Order'!N868)","v":""},{"$f":"IF('1. Order'!O868=\"\",\"\",'1. Order'!O868)","v":{"$error":"#N/A"}},{"$f":"IF('1. Order'!P868=\"\",\"\",'1. Order'!P868)","v":{"$error":"#N/A"}},{"$f":"IF('1. Order'!Q868=\"\",\"\",'1. Order'!Q868)","v":""},{"$f":"IF('1. Order'!S868=\"\",\"\",'1. Order'!S868)","v":""},{"$f":"IF('1. Order'!T868=\"\",\"\",'1. Order'!T868)","v":""},{"$f":"IF('1. Order'!W868=\"\",\"\",'1. Order'!W868)","v":""},{"$f":"IF('1. Order'!X868=\"\",\"\",'1. Order'!X868)","v":""},{"$f":"IF('1. Order'!Y868=\"\",\"\",'1. Order'!Y868)","v":"EUR"},{"$f":"IF('1. Order'!Z868=\"\",\"\",'1. Order'!Z868)","v":""},{"$f":"IF('1. Order'!AA868=\"\",\"\",'1. Order'!AA868)","v":""},{"$f":"IF('1. Order'!AB868=\"\",\"\",'1. Order'!AB868)","v":""},null,{"$f":"IF('1. Order'!AT868=\"\",\"\",'1. Order'!AT868)","v":""},{"$f":"IF('1. Order'!AU868=\"\",\"\",'1. Order'!AU868)","v":""},null,null,null,null,null,null,null,{"$f":"IF('1. Order'!AY868=\"\",\"\",'1. Order'!AY868)","v":""},{"$f":"IF('1. Order'!AZ868=\"\",\"\",'1. Order'!AZ868)","v":""},{"$f":"IF('1. Order'!BA868=\"\",\"\",'1. Order'!BA868)","v":""},{"$f":"IF('1. Order'!BB868=\"\",\"\",'1. Order'!BB868)","v":""},{"$f":"IF('1. Order'!BD868=\"\",\"\",'1. Order'!BD868)","v":""},{"$f":"IF('1. Order'!BE868=\"\",\"\",'1. Order'!BE868)","v":""},{"$f":"IF('1. Order'!BF868=\"\",\"\",'1. Order'!BF868)","v":""},{"$f":"IF('1. Order'!BG868=\"\",\"\",'1. Order'!BG868)","v":""},{"$f":"IF('1. Order'!BH868=\"\",\"\",'1. Order'!BH868)","v":"ZWO"}]
[{"$f":"IF('1. Order'!F869=\"\",\"\",'1. Order'!F869)","v":{"$error":"#N/A"}},{"$f":"IF('1. Order'!G869=\"\",\"\",'1. Order'!G869)","v":""},{"$f":"IF('1. Order'!H869=\"\",\"\",'1. Order'!H869)","v":""},{"$f":"IF('1. Order'!I869=\"\",\"\",'1. Order'!I869)","v":""},{"$f":"IF('1. Order'!J869=\"\",\"\",'1. Order'!J869)","v":""},{"$f":"IF('1. Order'!K869=\"\",\"\",'1. Order'!K869)","v":""},{"$f":"IF('1. Order'!L869=\"\",\"\",'1. Order'!L869)","v":""},{"$f":"IF('1. Order'!M869=\"\",\"\",'1. Order'!M869)","v":""},{"$f":"IF('1. Order'!N869=\"\",\"\",'1. Order'!N869)","v":""},{"$f":"IF('1. Order'!O869=\"\",\"\",'1. Order'!O869)","v":{"$error":"#N/A"}},{"$f":"IF('1. Order'!P869=\"\",\"\",'1. Order'!P869)","v":{"$error":"#N/A"}},{"$f":"IF('1. Order'!Q869=\"\",\"\",'1. Order'!Q869)","v":""},{"$f":"IF('1. Order'!S869=\"\",\"\",'1. Order'!S869)","v":""},{"$f":"IF('1. Order'!T869=\"\",\"\",'1. Order'!T869)","v":""},{"$f":"IF('1. Order'!W869=\"\",\"\",'1. Order'!W869)","v":""},{"$f":"IF('1. Order'!X869=\"\",\"\",'1. Order'!X869)","v":""},{"$f":"IF('1. Order'!Y869=\"\",\"\",'1. Order'!Y869)","v":"EUR"},{"$f":"IF('1. Order'!Z869=\"\",\"\",'1. Order'!Z869)","v":""},{"$f":"IF('1. Order'!AA869=\"\",\"\",'1. Order'!AA869)","v":""},{"$f":"IF('1. Order'!AB869=\"\",\"\",'1. Order'!AB869)","v":""},null,{"$f":"IF('1. Order'!AT869=\"\",\"\",'1. Order'!AT869)","v":""},{"$f":"IF('1. Order'!AU869=\"\",\"\",'1. Order'!AU869)","v":""},null,null,null,null,null,null,null,{"$f":"IF('1. Order'!AY869=\"\",\"\",'1. Order'!AY869)","v":""},{"$f":"IF('1. Order'!AZ869=\"\",\"\",'1. Order'!AZ869)","v":""},{"$f":"IF('1. Order'!BA869=\"\",\"\",'1. Order'!BA869)","v":""},{"$f":"IF('1. Order'!BB869=\"\",\"\",'1. Order'!BB869)","v":""},{"$f":"IF('1. Order'!BD869=\"\",\"\",'1. Order'!BD869)","v":""},{"$f":"IF('1. Order'!BE869=\"\",\"\",'1. Order'!BE869)","v":""},{"$f":"IF('1. Order'!BF869=\"\",\"\",'1. Order'!BF869)","v":""},{"$f":"IF('1. Order'!BG869=\"\",\"\",'1. Order'!BG869)","v":""},{"$f":"IF('1. Order'!BH869=\"\",\"\",'1. Order'!BH869)","v":"ZWO"}]
[{"$f":"IF('1. Order'!F870=\"\",\"\",'1. Order'!F870)","v":{"$error":"#N/A"}},{"$f":"IF('1. Order'!G870=\"\",\"\",'1. Order'!G870)","v":""},{"$f":"IF('1. Order'!H870=\"\",\"\",'1. Order'!H870)","v":""},{"$f":"IF('1. Order'!I870=\"\",\"\",'1. Order'!I870)","v":""},{"$f":"IF('1. Order'!J870=\"\",\"\",'1. Order'!J870)","v":""},{"$f":"IF('1. Order'!K870=\"\",\"\",'1. Order'!K870)","v":""},{"$f":"IF('1. Order'!L870=\"\",\"\",'1. Order'!L870)","v":""},{"$f":"IF('1. Order'!M870=\"\",\"\",'1. Order'!M870)","v":""},{"$f":"IF('1. Order'!N870=\"\",\"\",'1. Order'!N870)","v":""},{"$f":"IF('1. Order'!O870=\"\",\"\",'1. Order'!O870)","v":{"$error":"#N/A"}},{"$f":"IF('1. Order'!P870=\"\",\"\",'1. Order'!P870)","v":{"$error":"#N/A"}},{"$f":"IF('1. Order'!Q870=\"\",\"\",'1. Order'!Q870)","v":""},{"$f":"IF('1. Order'!S870=\"\",\"\",'1. Order'!S870)","v":""},{"$f":"IF('1. Order'!T870=\"\",\"\",'1. Order'!T870)","v":""},{"$f":"IF('1. Order'!W870=\"\",\"\",'1. Order'!W870)","v":""},{"$f":"IF('1. Order'!X870=\"\",\"\",'1. Order'!X870)","v":""},{"$f":"IF('1. Order'!Y870=\"\",\"\",'1. Order'!Y870)","v":"EUR"},{"$f":"IF('1. Order'!Z870=\"\",\"\",'1. Order'!Z870)","v":""},{"$f":"IF('1. Order'!AA870=\"\",\"\",'1. Order'!AA870)","v":""},{"$f":"IF('1. Order'!AB870=\"\",\"\",'1. Order'!AB870)","v":""},null,{"$f":"IF('1. Order'!AT870=\"\",\"\",'1. Order'!AT870)","v":""},{"$f":"IF('1. Order'!AU870=\"\",\"\",'1. Order'!AU870)","v":""},null,null,null,null,null,null,null,{"$f":"IF('1. Order'!AY870=\"\",\"\",'1. Order'!AY870)","v":""},{"$f":"IF('1. Order'!AZ870=\"\",\"\",'1. Order'!AZ870)","v":""},{"$f":"IF('1. Order'!BA870=\"\",\"\",'1. Order'!BA870)","v":""},{"$f":"IF('1. Order'!BB870=\"\",\"\",'1. Order'!BB870)","v":""},{"$f":"IF('1. Order'!BD870=\"\",\"\",'1. Order'!BD870)","v":""},{"$f":"IF('1. Order'!BE870=\"\",\"\",'1. Order'!BE870)","v":""},{"$f":"IF('1. Order'!BF870=\"\",\"\",'1. Order'!BF870)","v":""},{"$f":"IF('1. Order'!BG870=\"\",\"\",'1. Order'!BG870)","v":""},{"$f":"IF('1. Order'!BH870=\"\",\"\",'1. Order'!BH870)","v":"ZWO"}]
[{"$f":"IF('1. Order'!F871=\"\",\"\",'1. Order'!F871)","v":{"$error":"#N/A"}},{"$f":"IF('1. Order'!G871=\"\",\"\",'1. Order'!G871)","v":""},{"$f":"IF('1. Order'!H871=\"\",\"\",'1. Order'!H871)","v":""},{"$f":"IF('1. Order'!I871=\"\",\"\",'1. Order'!I871)","v":""},{"$f":"IF('1. Order'!J871=\"\",\"\",'1. Order'!J871)","v":""},{"$f":"IF('1. Order'!K871=\"\",\"\",'1. Order'!K871)","v":""},{"$f":"IF('1. Order'!L871=\"\",\"\",'1. Order'!L871)","v":""},{"$f":"IF('1. Order'!M871=\"\",\"\",'1. Order'!M871)","v":""},{"$f":"IF('1. Order'!N871=\"\",\"\",'1. Order'!N871)","v":""},{"$f":"IF('1. Order'!O871=\"\",\"\",'1. Order'!O871)","v":{"$error":"#N/A"}},{"$f":"IF('1. Order'!P871=\"\",\"\",'1. Order'!P871)","v":{"$error":"#N/A"}},{"$f":"IF('1. Order'!Q871=\"\",\"\",'1. Order'!Q871)","v":""},{"$f":"IF('1. Order'!S871=\"\",\"\",'1. Order'!S871)","v":""},{"$f":"IF('1. Order'!T871=\"\",\"\",'1. Order'!T871)","v":""},{"$f":"IF('1. Order'!W871=\"\",\"\",'1. Order'!W871)","v":""},{"$f":"IF('1. Order'!X871=\"\",\"\",'1. Order'!X871)","v":""},{"$f":"IF('1. Order'!Y871=\"\",\"\",'1. Order'!Y871)","v":"EUR"},{"$f":"IF('1. Order'!Z871=\"\",\"\",'1. Order'!Z871)","v":""},{"$f":"IF('1. Order'!AA871=\"\",\"\",'1. Order'!AA871)","v":""},{"$f":"IF('1. Order'!AB871=\"\",\"\",'1. Order'!AB871)","v":""},null,{"$f":"IF('1. Order'!AT871=\"\",\"\",'1. Order'!AT871)","v":""},{"$f":"IF('1. Order'!AU871=\"\",\"\",'1. Order'!AU871)","v":""},null,null,null,null,null,null,null,{"$f":"IF('1. Order'!AY871=\"\",\"\",'1. Order'!AY871)","v":""},{"$f":"IF('1. Order'!AZ871=\"\",\"\",'1. Order'!AZ871)","v":""},{"$f":"IF('1. Order'!BA871=\"\",\"\",'1. Order'!BA871)","v":""},{"$f":"IF('1. Order'!BB871=\"\",\"\",'1. Order'!BB871)","v":""},{"$f":"IF('1. Order'!BD871=\"\",\"\",'1. Order'!BD871)","v":""},{"$f":"IF('1. Order'!BE871=\"\",\"\",'1. Order'!BE871)","v":""},{"$f":"IF('1. Order'!BF871=\"\",\"\",'1. Order'!BF871)","v":""},{"$f":"IF('1. Order'!BG871=\"\",\"\",'1. Order'!BG871)","v":""},{"$f":"IF('1. Order'!BH871=\"\",\"\",'1. Order'!BH871)","v":"ZWO"}]
[{"$f":"IF('1. Order'!F872=\"\",\"\",'1. Order'!F872)","v":{"$error":"#N/A"}},{"$f":"IF('1. Order'!G872=\"\",\"\",'1. Order'!G872)","v":""},{"$f":"IF('1. Order'!H872=\"\",\"\",'1. Order'!H872)","v":""},{"$f":"IF('1. Order'!I872=\"\",\"\",'1. Order'!I872)","v":""},{"$f":"IF('1. Order'!J872=\"\",\"\",'1. Order'!J872)","v":""},{"$f":"IF('1. Order'!K872=\"\",\"\",'1. Order'!K872)","v":""},{"$f":"IF('1. Order'!L872=\"\",\"\",'1. Order'!L872)","v":""},{"$f":"IF('1. Order'!M872=\"\",\"\",'1. Order'!M872)","v":""},{"$f":"IF('1. Order'!N872=\"\",\"\",'1. Order'!N872)","v":""},{"$f":"IF('1. Order'!O872=\"\",\"\",'1. Order'!O872)","v":{"$error":"#N/A"}},{"$f":"IF('1. Order'!P872=\"\",\"\",'1. Order'!P872)","v":{"$error":"#N/A"}},{"$f":"IF('1. Order'!Q872=\"\",\"\",'1. Order'!Q872)","v":""},{"$f":"IF('1. Order'!S872=\"\",\"\",'1. Order'!S872)","v":""},{"$f":"IF('1. Order'!T872=\"\",\"\",'1. Order'!T872)","v":""},{"$f":"IF('1. Order'!W872=\"\",\"\",'1. Order'!W872)","v":""},{"$f":"IF('1. Order'!X872=\"\",\"\",'1. Order'!X872)","v":""},{"$f":"IF('1. Order'!Y872=\"\",\"\",'1. Order'!Y872)","v":"EUR"},{"$f":"IF('1. Order'!Z872=\"\",\"\",'1. Order'!Z872)","v":""},{"$f":"IF('1. Order'!AA872=\"\",\"\",'1. Order'!AA872)","v":""},{"$f":"IF('1. Order'!AB872=\"\",\"\",'1. Order'!AB872)","v":""},null,{"$f":"IF('1. Order'!AT872=\"\",\"\",'1. Order'!AT872)","v":""},{"$f":"IF('1. Order'!AU872=\"\",\"\",'1. Order'!AU872)","v":""},null,null,null,null,null,null,null,{"$f":"IF('1. Order'!AY872=\"\",\"\",'1. Order'!AY872)","v":""},{"$f":"IF('1. Order'!AZ872=\"\",\"\",'1. Order'!AZ872)","v":""},{"$f":"IF('1. Order'!BA872=\"\",\"\",'1. Order'!BA872)","v":""},{"$f":"IF('1. Order'!BB872=\"\",\"\",'1. Order'!BB872)","v":""},{"$f":"IF('1. Order'!BD872=\"\",\"\",'1. Order'!BD872)","v":""},{"$f":"IF('1. Order'!BE872=\"\",\"\",'1. Order'!BE872)","v":""},{"$f":"IF('1. Order'!BF872=\"\",\"\",'1. Order'!BF872)","v":""},{"$f":"IF('1. Order'!BG872=\"\",\"\",'1. Order'!BG872)","v":""},{"$f":"IF('1. Order'!BH872=\"\",\"\",'1. Order'!BH872)","v":"ZWO"}]
[{"$f":"IF('1. Order'!F873=\"\",\"\",'1. Order'!F873)","v":{"$error":"#N/A"}},{"$f":"IF('1. Order'!G873=\"\",\"\",'1. Order'!G873)","v":""},{"$f":"IF('1. Order'!H873=\"\",\"\",'1. Order'!H873)","v":""},{"$f":"IF('1. Order'!I873=\"\",\"\",'1. Order'!I873)","v":""},{"$f":"IF('1. Order'!J873=\"\",\"\",'1. Order'!J873)","v":""},{"$f":"IF('1. Order'!K873=\"\",\"\",'1. Order'!K873)","v":""},{"$f":"IF('1. Order'!L873=\"\",\"\",'1. Order'!L873)","v":""},{"$f":"IF('1. Order'!M873=\"\",\"\",'1. Order'!M873)","v":""},{"$f":"IF('1. Order'!N873=\"\",\"\",'1. Order'!N873)","v":""},{"$f":"IF('1. Order'!O873=\"\",\"\",'1. Order'!O873)","v":{"$error":"#N/A"}},{"$f":"IF('1. Order'!P873=\"\",\"\",'1. Order'!P873)","v":{"$error":"#N/A"}},{"$f":"IF('1. Order'!Q873=\"\",\"\",'1. Order'!Q873)","v":""},{"$f":"IF('1. Order'!S873=\"\",\"\",'1. Order'!S873)","v":""},{"$f":"IF('1. Order'!T873=\"\",\"\",'1. Order'!T873)","v":""},{"$f":"IF('1. Order'!W873=\"\",\"\",'1. Order'!W873)","v":""},{"$f":"IF('1. Order'!X873=\"\",\"\",'1. Order'!X873)","v":""},{"$f":"IF('1. Order'!Y873=\"\",\"\",'1. Order'!Y873)","v":"EUR"},{"$f":"IF('1. Order'!Z873=\"\",\"\",'1. Order'!Z873)","v":""},{"$f":"IF('1. Order'!AA873=\"\",\"\",'1. Order'!AA873)","v":""},{"$f":"IF('1. Order'!AB873=\"\",\"\",'1. Order'!AB873)","v":""},null,{"$f":"IF('1. Order'!AT873=\"\",\"\",'1. Order'!AT873)","v":""},{"$f":"IF('1. Order'!AU873=\"\",\"\",'1. Order'!AU873)","v":""},null,null,null,null,null,null,null,{"$f":"IF('1. Order'!AY873=\"\",\"\",'1. Order'!AY873)","v":""},{"$f":"IF('1. Order'!AZ873=\"\",\"\",'1. Order'!AZ873)","v":""},{"$f":"IF('1. Order'!BA873=\"\",\"\",'1. Order'!BA873)","v":""},{"$f":"IF('1. Order'!BB873=\"\",\"\",'1. Order'!BB873)","v":""},{"$f":"IF('1. Order'!BD873=\"\",\"\",'1. Order'!BD873)","v":""},{"$f":"IF('1. Order'!BE873=\"\",\"\",'1. Order'!BE873)","v":""},{"$f":"IF('1. Order'!BF873=\"\",\"\",'1. Order'!BF873)","v":""},{"$f":"IF('1. Order'!BG873=\"\",\"\",'1. Order'!BG873)","v":""},{"$f":"IF('1. Order'!BH873=\"\",\"\",'1. Order'!BH873)","v":"ZWO"}]
[{"$f":"IF('1. Order'!F874=\"\",\"\",'1. Order'!F874)","v":{"$error":"#N/A"}},{"$f":"IF('1. Order'!G874=\"\",\"\",'1. Order'!G874)","v":""},{"$f":"IF('1. Order'!H874=\"\",\"\",'1. Order'!H874)","v":""},{"$f":"IF('1. Order'!I874=\"\",\"\",'1. Order'!I874)","v":""},{"$f":"IF('1. Order'!J874=\"\",\"\",'1. Order'!J874)","v":""},{"$f":"IF('1. Order'!K874=\"\",\"\",'1. Order'!K874)","v":""},{"$f":"IF('1. Order'!L874=\"\",\"\",'1. Order'!L874)","v":""},{"$f":"IF('1. Order'!M874=\"\",\"\",'1. Order'!M874)","v":""},{"$f":"IF('1. Order'!N874=\"\",\"\",'1. Order'!N874)","v":""},{"$f":"IF('1. Order'!O874=\"\",\"\",'1. Order'!O874)","v":{"$error":"#N/A"}},{"$f":"IF('1. Order'!P874=\"\",\"\",'1. Order'!P874)","v":{"$error":"#N/A"}},{"$f":"IF('1. Order'!Q874=\"\",\"\",'1. Order'!Q874)","v":""},{"$f":"IF('1. Order'!S874=\"\",\"\",'1. Order'!S874)","v":""},{"$f":"IF('1. Order'!T874=\"\",\"\",'1. Order'!T874)","v":""},{"$f":"IF('1. Order'!W874=\"\",\"\",'1. Order'!W874)","v":""},{"$f":"IF('1. Order'!X874=\"\",\"\",'1. Order'!X874)","v":""},{"$f":"IF('1. Order'!Y874=\"\",\"\",'1. Order'!Y874)","v":"EUR"},{"$f":"IF('1. Order'!Z874=\"\",\"\",'1. Order'!Z874)","v":""},{"$f":"IF('1. Order'!AA874=\"\",\"\",'1. Order'!AA874)","v":""},{"$f":"IF('1. Order'!AB874=\"\",\"\",'1. Order'!AB874)","v":""},null,{"$f":"IF('1. Order'!AT874=\"\",\"\",'1. Order'!AT874)","v":""},{"$f":"IF('1. Order'!AU874=\"\",\"\",'1. Order'!AU874)","v":""},null,null,null,null,null,null,null,{"$f":"IF('1. Order'!AY874=\"\",\"\",'1. Order'!AY874)","v":""},{"$f":"IF('1. Order'!AZ874=\"\",\"\",'1. Order'!AZ874)","v":""},{"$f":"IF('1. Order'!BA874=\"\",\"\",'1. Order'!BA874)","v":""},{"$f":"IF('1. Order'!BB874=\"\",\"\",'1. Order'!BB874)","v":""},{"$f":"IF('1. Order'!BD874=\"\",\"\",'1. Order'!BD874)","v":""},{"$f":"IF('1. Order'!BE874=\"\",\"\",'1. Order'!BE874)","v":""},{"$f":"IF('1. Order'!BF874=\"\",\"\",'1. Order'!BF874)","v":""},{"$f":"IF('1. Order'!BG874=\"\",\"\",'1. Order'!BG874)","v":""},{"$f":"IF('1. Order'!BH874=\"\",\"\",'1. Order'!BH874)","v":"ZWO"}]
[{"$f":"IF('1. Order'!F875=\"\",\"\",'1. Order'!F875)","v":{"$error":"#N/A"}},{"$f":"IF('1. Order'!G875=\"\",\"\",'1. Order'!G875)","v":""},{"$f":"IF('1. Order'!H875=\"\",\"\",'1. Order'!H875)","v":""},{"$f":"IF('1. Order'!I875=\"\",\"\",'1. Order'!I875)","v":""},{"$f":"IF('1. Order'!J875=\"\",\"\",'1. Order'!J875)","v":""},{"$f":"IF('1. Order'!K875=\"\",\"\",'1. Order'!K875)","v":""},{"$f":"IF('1. Order'!L875=\"\",\"\",'1. Order'!L875)","v":""},{"$f":"IF('1. Order'!M875=\"\",\"\",'1. Order'!M875)","v":""},{"$f":"IF('1. Order'!N875=\"\",\"\",'1. Order'!N875)","v":""},{"$f":"IF('1. Order'!O875=\"\",\"\",'1. Order'!O875)","v":{"$error":"#N/A"}},{"$f":"IF('1. Order'!P875=\"\",\"\",'1. Order'!P875)","v":{"$error":"#N/A"}},{"$f":"IF('1. Order'!Q875=\"\",\"\",'1. Order'!Q875)","v":""},{"$f":"IF('1. Order'!S875=\"\",\"\",'1. Order'!S875)","v":""},{"$f":"IF('1. Order'!T875=\"\",\"\",'1. Order'!T875)","v":""},{"$f":"IF('1. Order'!W875=\"\",\"\",'1. Order'!W875)","v":""},{"$f":"IF('1. Order'!X875=\"\",\"\",'1. Order'!X875)","v":""},{"$f":"IF('1. Order'!Y875=\"\",\"\",'1. Order'!Y875)","v":"EUR"},{"$f":"IF('1. Order'!Z875=\"\",\"\",'1. Order'!Z875)","v":""},{"$f":"IF('1. Order'!AA875=\"\",\"\",'1. Order'!AA875)","v":""},{"$f":"IF('1. Order'!AB875=\"\",\"\",'1. Order'!AB875)","v":""},null,{"$f":"IF('1. Order'!AT875=\"\",\"\",'1. Order'!AT875)","v":""},{"$f":"IF('1. Order'!AU875=\"\",\"\",'1. Order'!AU875)","v":""},null,null,null,null,null,null,null,{"$f":"IF('1. Order'!AY875=\"\",\"\",'1. Order'!AY875)","v":""},{"$f":"IF('1. Order'!AZ875=\"\",\"\",'1. Order'!AZ875)","v":""},{"$f":"IF('1. Order'!BA875=\"\",\"\",'1. Order'!BA875)","v":""},{"$f":"IF('1. Order'!BB875=\"\",\"\",'1. Order'!BB875)","v":""},{"$f":"IF('1. Order'!BD875=\"\",\"\",'1. Order'!BD875)","v":""},{"$f":"IF('1. Order'!BE875=\"\",\"\",'1. Order'!BE875)","v":""},{"$f":"IF('1. Order'!BF875=\"\",\"\",'1. Order'!BF875)","v":""},{"$f":"IF('1. Order'!BG875=\"\",\"\",'1. Order'!BG875)","v":""},{"$f":"IF('1. Order'!BH875=\"\",\"\",'1. Order'!BH875)","v":"ZWO"}]
[{"$f":"IF('1. Order'!F876=\"\",\"\",'1. Order'!F876)","v":{"$error":"#N/A"}},{"$f":"IF('1. Order'!G876=\"\",\"\",'1. Order'!G876)","v":""},{"$f":"IF('1. Order'!H876=\"\",\"\",'1. Order'!H876)","v":""},{"$f":"IF('1. Order'!I876=\"\",\"\",'1. Order'!I876)","v":""},{"$f":"IF('1. Order'!J876=\"\",\"\",'1. Order'!J876)","v":""},{"$f":"IF('1. Order'!K876=\"\",\"\",'1. Order'!K876)","v":""},{"$f":"IF('1. Order'!L876=\"\",\"\",'1. Order'!L876)","v":""},{"$f":"IF('1. Order'!M876=\"\",\"\",'1. Order'!M876)","v":""},{"$f":"IF('1. Order'!N876=\"\",\"\",'1. Order'!N876)","v":""},{"$f":"IF('1. Order'!O876=\"\",\"\",'1. Order'!O876)","v":{"$error":"#N/A"}},{"$f":"IF('1. Order'!P876=\"\",\"\",'1. Order'!P876)","v":{"$error":"#N/A"}},{"$f":"IF('1. Order'!Q876=\"\",\"\",'1. Order'!Q876)","v":""},{"$f":"IF('1. Order'!S876=\"\",\"\",'1. Order'!S876)","v":""},{"$f":"IF('1. Order'!T876=\"\",\"\",'1. Order'!T876)","v":""},{"$f":"IF('1. Order'!W876=\"\",\"\",'1. Order'!W876)","v":""},{"$f":"IF('1. Order'!X876=\"\",\"\",'1. Order'!X876)","v":""},{"$f":"IF('1. Order'!Y876=\"\",\"\",'1. Order'!Y876)","v":"EUR"},{"$f":"IF('1. Order'!Z876=\"\",\"\",'1. Order'!Z876)","v":""},{"$f":"IF('1. Order'!AA876=\"\",\"\",'1. Order'!AA876)","v":""},{"$f":"IF('1. Order'!AB876=\"\",\"\",'1. Order'!AB876)","v":""},null,{"$f":"IF('1. Order'!AT876=\"\",\"\",'1. Order'!AT876)","v":""},{"$f":"IF('1. Order'!AU876=\"\",\"\",'1. Order'!AU876)","v":""},null,null,null,null,null,null,null,{"$f":"IF('1. Order'!AY876=\"\",\"\",'1. Order'!AY876)","v":""},{"$f":"IF('1. Order'!AZ876=\"\",\"\",'1. Order'!AZ876)","v":""},{"$f":"IF('1. Order'!BA876=\"\",\"\",'1. Order'!BA876)","v":""},{"$f":"IF('1. Order'!BB876=\"\",\"\",'1. Order'!BB876)","v":""},{"$f":"IF('1. Order'!BD876=\"\",\"\",'1. Order'!BD876)","v":""},{"$f":"IF('1. Order'!BE876=\"\",\"\",'1. Order'!BE876)","v":""},{"$f":"IF('1. Order'!BF876=\"\",\"\",'1. Order'!BF876)","v":""},{"$f":"IF('1. Order'!BG876=\"\",\"\",'1. Order'!BG876)","v":""},{"$f":"IF('1. Order'!BH876=\"\",\"\",'1. Order'!BH876)","v":"ZWO"}]
[{"$f":"IF('1. Order'!F877=\"\",\"\",'1. Order'!F877)","v":{"$error":"#N/A"}},{"$f":"IF('1. Order'!G877=\"\",\"\",'1. Order'!G877)","v":""},{"$f":"IF('1. Order'!H877=\"\",\"\",'1. Order'!H877)","v":""},{"$f":"IF('1. Order'!I877=\"\",\"\",'1. Order'!I877)","v":""},{"$f":"IF('1. Order'!J877=\"\",\"\",'1. Order'!J877)","v":""},{"$f":"IF('1. Order'!K877=\"\",\"\",'1. Order'!K877)","v":""},{"$f":"IF('1. Order'!L877=\"\",\"\",'1. Order'!L877)","v":""},{"$f":"IF('1. Order'!M877=\"\",\"\",'1. Order'!M877)","v":""},{"$f":"IF('1. Order'!N877=\"\",\"\",'1. Order'!N877)","v":""},{"$f":"IF('1. Order'!O877=\"\",\"\",'1. Order'!O877)","v":{"$error":"#N/A"}},{"$f":"IF('1. Order'!P877=\"\",\"\",'1. Order'!P877)","v":{"$error":"#N/A"}},{"$f":"IF('1. Order'!Q877=\"\",\"\",'1. Order'!Q877)","v":""},{"$f":"IF('1. Order'!S877=\"\",\"\",'1. Order'!S877)","v":""},{"$f":"IF('1. Order'!T877=\"\",\"\",'1. Order'!T877)","v":""},{"$f":"IF('1. Order'!W877=\"\",\"\",'1. Order'!W877)","v":""},{"$f":"IF('1. Order'!X877=\"\",\"\",'1. Order'!X877)","v":""},{"$f":"IF('1. Order'!Y877=\"\",\"\",'1. Order'!Y877)","v":"EUR"},{"$f":"IF('1. Order'!Z877=\"\",\"\",'1. Order'!Z877)","v":""},{"$f":"IF('1. Order'!AA877=\"\",\"\",'1. Order'!AA877)","v":""},{"$f":"IF('1. Order'!AB877=\"\",\"\",'1. Order'!AB877)","v":""},null,{"$f":"IF('1. Order'!AT877=\"\",\"\",'1. Order'!AT877)","v":""},{"$f":"IF('1. Order'!AU877=\"\",\"\",'1. Order'!AU877)","v":""},null,null,null,null,null,null,null,{"$f":"IF('1. Order'!AY877=\"\",\"\",'1. Order'!AY877)","v":""},{"$f":"IF('1. Order'!AZ877=\"\",\"\",'1. Order'!AZ877)","v":""},{"$f":"IF('1. Order'!BA877=\"\",\"\",'1. Order'!BA877)","v":""},{"$f":"IF('1. Order'!BB877=\"\",\"\",'1. Order'!BB877)","v":""},{"$f":"IF('1. Order'!BD877=\"\",\"\",'1. Order'!BD877)","v":""},{"$f":"IF('1. Order'!BE877=\"\",\"\",'1. Order'!BE877)","v":""},{"$f":"IF('1. Order'!BF877=\"\",\"\",'1. Order'!BF877)","v":""},{"$f":"IF('1. Order'!BG877=\"\",\"\",'1. Order'!BG877)","v":""},{"$f":"IF('1. Order'!BH877=\"\",\"\",'1. Order'!BH877)","v":"ZWO"}]
[{"$f":"IF('1. Order'!F878=\"\",\"\",'1. Order'!F878)","v":{"$error":"#N/A"}},{"$f":"IF('1. Order'!G878=\"\",\"\",'1. Order'!G878)","v":""},{"$f":"IF('1. Order'!H878=\"\",\"\",'1. Order'!H878)","v":""},{"$f":"IF('1. Order'!I878=\"\",\"\",'1. Order'!I878)","v":""},{"$f":"IF('1. Order'!J878=\"\",\"\",'1. Order'!J878)","v":""},{"$f":"IF('1. Order'!K878=\"\",\"\",'1. Order'!K878)","v":""},{"$f":"IF('1. Order'!L878=\"\",\"\",'1. Order'!L878)","v":""},{"$f":"IF('1. Order'!M878=\"\",\"\",'1. Order'!M878)","v":""},{"$f":"IF('1. Order'!N878=\"\",\"\",'1. Order'!N878)","v":""},{"$f":"IF('1. Order'!O878=\"\",\"\",'1. Order'!O878)","v":{"$error":"#N/A"}},{"$f":"IF('1. Order'!P878=\"\",\"\",'1. Order'!P878)","v":{"$error":"#N/A"}},{"$f":"IF('1. Order'!Q878=\"\",\"\",'1. Order'!Q878)","v":""},{"$f":"IF('1. Order'!S878=\"\",\"\",'1. Order'!S878)","v":""},{"$f":"IF('1. Order'!T878=\"\",\"\",'1. Order'!T878)","v":""},{"$f":"IF('1. Order'!W878=\"\",\"\",'1. Order'!W878)","v":""},{"$f":"IF('1. Order'!X878=\"\",\"\",'1. Order'!X878)","v":""},{"$f":"IF('1. Order'!Y878=\"\",\"\",'1. Order'!Y878)","v":"EUR"},{"$f":"IF('1. Order'!Z878=\"\",\"\",'1. Order'!Z878)","v":""},{"$f":"IF('1. Order'!AA878=\"\",\"\",'1. Order'!AA878)","v":""},{"$f":"IF('1. Order'!AB878=\"\",\"\",'1. Order'!AB878)","v":""},null,{"$f":"IF('1. Order'!AT878=\"\",\"\",'1. Order'!AT878)","v":""},{"$f":"IF('1. Order'!AU878=\"\",\"\",'1. Order'!AU878)","v":""},null,null,null,null,null,null,null,{"$f":"IF('1. Order'!AY878=\"\",\"\",'1. Order'!AY878)","v":""},{"$f":"IF('1. Order'!AZ878=\"\",\"\",'1. Order'!AZ878)","v":""},{"$f":"IF('1. Order'!BA878=\"\",\"\",'1. Order'!BA878)","v":""},{"$f":"IF('1. Order'!BB878=\"\",\"\",'1. Order'!BB878)","v":""},{"$f":"IF('1. Order'!BD878=\"\",\"\",'1. Order'!BD878)","v":""},{"$f":"IF('1. Order'!BE878=\"\",\"\",'1. Order'!BE878)","v":""},{"$f":"IF('1. Order'!BF878=\"\",\"\",'1. Order'!BF878)","v":""},{"$f":"IF('1. Order'!BG878=\"\",\"\",'1. Order'!BG878)","v":""},{"$f":"IF('1. Order'!BH878=\"\",\"\",'1. Order'!BH878)","v":"ZWO"}]
[{"$f":"IF('1. Order'!F879=\"\",\"\",'1. Order'!F879)","v":{"$error":"#N/A"}},{"$f":"IF('1. Order'!G879=\"\",\"\",'1. Order'!G879)","v":""},{"$f":"IF('1. Order'!H879=\"\",\"\",'1. Order'!H879)","v":""},{"$f":"IF('1. Order'!I879=\"\",\"\",'1. Order'!I879)","v":""},{"$f":"IF('1. Order'!J879=\"\",\"\",'1. Order'!J879)","v":""},{"$f":"IF('1. Order'!K879=\"\",\"\",'1. Order'!K879)","v":""},{"$f":"IF('1. Order'!L879=\"\",\"\",'1. Order'!L879)","v":""},{"$f":"IF('1. Order'!M879=\"\",\"\",'1. Order'!M879)","v":""},{"$f":"IF('1. Order'!N879=\"\",\"\",'1. Order'!N879)","v":""},{"$f":"IF('1. Order'!O879=\"\",\"\",'1. Order'!O879)","v":{"$error":"#N/A"}},{"$f":"IF('1. Order'!P879=\"\",\"\",'1. Order'!P879)","v":{"$error":"#N/A"}},{"$f":"IF('1. Order'!Q879=\"\",\"\",'1. Order'!Q879)","v":""},{"$f":"IF('1. Order'!S879=\"\",\"\",'1. Order'!S879)","v":""},{"$f":"IF('1. Order'!T879=\"\",\"\",'1. Order'!T879)","v":""},{"$f":"IF('1. Order'!W879=\"\",\"\",'1. Order'!W879)","v":""},{"$f":"IF('1. Order'!X879=\"\",\"\",'1. Order'!X879)","v":""},{"$f":"IF('1. Order'!Y879=\"\",\"\",'1. Order'!Y879)","v":"EUR"},{"$f":"IF('1. Order'!Z879=\"\",\"\",'1. Order'!Z879)","v":""},{"$f":"IF('1. Order'!AA879=\"\",\"\",'1. Order'!AA879)","v":""},{"$f":"IF('1. Order'!AB879=\"\",\"\",'1. Order'!AB879)","v":""},null,{"$f":"IF('1. Order'!AT879=\"\",\"\",'1. Order'!AT879)","v":""},{"$f":"IF('1. Order'!AU879=\"\",\"\",'1. Order'!AU879)","v":""},null,null,null,null,null,null,null,{"$f":"IF('1. Order'!AY879=\"\",\"\",'1. Order'!AY879)","v":""},{"$f":"IF('1. Order'!AZ879=\"\",\"\",'1. Order'!AZ879)","v":""},{"$f":"IF('1. Order'!BA879=\"\",\"\",'1. Order'!BA879)","v":""},{"$f":"IF('1. Order'!BB879=\"\",\"\",'1. Order'!BB879)","v":""},{"$f":"IF('1. Order'!BD879=\"\",\"\",'1. Order'!BD879)","v":""},{"$f":"IF('1. Order'!BE879=\"\",\"\",'1. Order'!BE879)","v":""},{"$f":"IF('1. Order'!BF879=\"\",\"\",'1. Order'!BF879)","v":""},{"$f":"IF('1. Order'!BG879=\"\",\"\",'1. Order'!BG879)","v":""},{"$f":"IF('1. Order'!BH879=\"\",\"\",'1. Order'!BH879)","v":"ZWO"}]
[{"$f":"IF('1. Order'!F880=\"\",\"\",'1. Order'!F880)","v":{"$error":"#N/A"}},{"$f":"IF('1. Order'!G880=\"\",\"\",'1. Order'!G880)","v":""},{"$f":"IF('1. Order'!H880=\"\",\"\",'1. Order'!H880)","v":""},{"$f":"IF('1. Order'!I880=\"\",\"\",'1. Order'!I880)","v":""},{"$f":"IF('1. Order'!J880=\"\",\"\",'1. Order'!J880)","v":""},{"$f":"IF('1. Order'!K880=\"\",\"\",'1. Order'!K880)","v":""},{"$f":"IF('1. Order'!L880=\"\",\"\",'1. Order'!L880)","v":""},{"$f":"IF('1. Order'!M880=\"\",\"\",'1. Order'!M880)","v":""},{"$f":"IF('1. Order'!N880=\"\",\"\",'1. Order'!N880)","v":""},{"$f":"IF('1. Order'!O880=\"\",\"\",'1. Order'!O880)","v":{"$error":"#N/A"}},{"$f":"IF('1. Order'!P880=\"\",\"\",'1. Order'!P880)","v":{"$error":"#N/A"}},{"$f":"IF('1. Order'!Q880=\"\",\"\",'1. Order'!Q880)","v":""},{"$f":"IF('1. Order'!S880=\"\",\"\",'1. Order'!S880)","v":""},{"$f":"IF('1. Order'!T880=\"\",\"\",'1. Order'!T880)","v":""},{"$f":"IF('1. Order'!W880=\"\",\"\",'1. Order'!W880)","v":""},{"$f":"IF('1. Order'!X880=\"\",\"\",'1. Order'!X880)","v":""},{"$f":"IF('1. Order'!Y880=\"\",\"\",'1. Order'!Y880)","v":"EUR"},{"$f":"IF('1. Order'!Z880=\"\",\"\",'1. Order'!Z880)","v":""},{"$f":"IF('1. Order'!AA880=\"\",\"\",'1. Order'!AA880)","v":""},{"$f":"IF('1. Order'!AB880=\"\",\"\",'1. Order'!AB880)","v":""},null,{"$f":"IF('1. Order'!AT880=\"\",\"\",'1. Order'!AT880)","v":""},{"$f":"IF('1. Order'!AU880=\"\",\"\",'1. Order'!AU880)","v":""},null,null,null,null,null,null,null,{"$f":"IF('1. Order'!AY880=\"\",\"\",'1. Order'!AY880)","v":""},{"$f":"IF('1. Order'!AZ880=\"\",\"\",'1. Order'!AZ880)","v":""},{"$f":"IF('1. Order'!BA880=\"\",\"\",'1. Order'!BA880)","v":""},{"$f":"IF('1. Order'!BB880=\"\",\"\",'1. Order'!BB880)","v":""},{"$f":"IF('1. Order'!BD880=\"\",\"\",'1. Order'!BD880)","v":""},{"$f":"IF('1. Order'!BE880=\"\",\"\",'1. Order'!BE880)","v":""},{"$f":"IF('1. Order'!BF880=\"\",\"\",'1. Order'!BF880)","v":""},{"$f":"IF('1. Order'!BG880=\"\",\"\",'1. Order'!BG880)","v":""},{"$f":"IF('1. Order'!BH880=\"\",\"\",'1. Order'!BH880)","v":"ZWO"}]
[{"$f":"IF('1. Order'!F881=\"\",\"\",'1. Order'!F881)","v":{"$error":"#N/A"}},{"$f":"IF('1. Order'!G881=\"\",\"\",'1. Order'!G881)","v":""},{"$f":"IF('1. Order'!H881=\"\",\"\",'1. Order'!H881)","v":""},{"$f":"IF('1. Order'!I881=\"\",\"\",'1. Order'!I881)","v":""},{"$f":"IF('1. Order'!J881=\"\",\"\",'1. Order'!J881)","v":""},{"$f":"IF('1. Order'!K881=\"\",\"\",'1. Order'!K881)","v":""},{"$f":"IF('1. Order'!L881=\"\",\"\",'1. Order'!L881)","v":""},{"$f":"IF('1. Order'!M881=\"\",\"\",'1. Order'!M881)","v":""},{"$f":"IF('1. Order'!N881=\"\",\"\",'1. Order'!N881)","v":""},{"$f":"IF('1. Order'!O881=\"\",\"\",'1. Order'!O881)","v":{"$error":"#N/A"}},{"$f":"IF('1. Order'!P881=\"\",\"\",'1. Order'!P881)","v":{"$error":"#N/A"}},{"$f":"IF('1. Order'!Q881=\"\",\"\",'1. Order'!Q881)","v":""},{"$f":"IF('1. Order'!S881=\"\",\"\",'1. Order'!S881)","v":""},{"$f":"IF('1. Order'!T881=\"\",\"\",'1. Order'!T881)","v":""},{"$f":"IF('1. Order'!W881=\"\",\"\",'1. Order'!W881)","v":""},{"$f":"IF('1. Order'!X881=\"\",\"\",'1. Order'!X881)","v":""},{"$f":"IF('1. Order'!Y881=\"\",\"\",'1. Order'!Y881)","v":"EUR"},{"$f":"IF('1. Order'!Z881=\"\",\"\",'1. Order'!Z881)","v":""},{"$f":"IF('1. Order'!AA881=\"\",\"\",'1. Order'!AA881)","v":""},{"$f":"IF('1. Order'!AB881=\"\",\"\",'1. Order'!AB881)","v":""},null,{"$f":"IF('1. Order'!AT881=\"\",\"\",'1. Order'!AT881)","v":""},{"$f":"IF('1. Order'!AU881=\"\",\"\",'1. Order'!AU881)","v":""},null,null,null,null,null,null,null,{"$f":"IF('1. Order'!AY881=\"\",\"\",'1. Order'!AY881)","v":""},{"$f":"IF('1. Order'!AZ881=\"\",\"\",'1. Order'!AZ881)","v":""},{"$f":"IF('1. Order'!BA881=\"\",\"\",'1. Order'!BA881)","v":""},{"$f":"IF('1. Order'!BB881=\"\",\"\",'1. Order'!BB881)","v":""},{"$f":"IF('1. Order'!BD881=\"\",\"\",'1. Order'!BD881)","v":""},{"$f":"IF('1. Order'!BE881=\"\",\"\",'1. Order'!BE881)","v":""},{"$f":"IF('1. Order'!BF881=\"\",\"\",'1. Order'!BF881)","v":""},{"$f":"IF('1. Order'!BG881=\"\",\"\",'1. Order'!BG881)","v":""},{"$f":"IF('1. Order'!BH881=\"\",\"\",'1. Order'!BH881)","v":"ZWO"}]
[{"$f":"IF('1. Order'!F882=\"\",\"\",'1. Order'!F882)","v":{"$error":"#N/A"}},{"$f":"IF('1. Order'!G882=\"\",\"\",'1. Order'!G882)","v":""},{"$f":"IF('1. Order'!H882=\"\",\"\",'1. Order'!H882)","v":""},{"$f":"IF('1. Order'!I882=\"\",\"\",'1. Order'!I882)","v":""},{"$f":"IF('1. Order'!J882=\"\",\"\",'1. Order'!J882)","v":""},{"$f":"IF('1. Order'!K882=\"\",\"\",'1. Order'!K882)","v":""},{"$f":"IF('1. Order'!L882=\"\",\"\",'1. Order'!L882)","v":""},{"$f":"IF('1. Order'!M882=\"\",\"\",'1. Order'!M882)","v":""},{"$f":"IF('1. Order'!N882=\"\",\"\",'1. Order'!N882)","v":""},{"$f":"IF('1. Order'!O882=\"\",\"\",'1. Order'!O882)","v":{"$error":"#N/A"}},{"$f":"IF('1. Order'!P882=\"\",\"\",'1. Order'!P882)","v":{"$error":"#N/A"}},{"$f":"IF('1. Order'!Q882=\"\",\"\",'1. Order'!Q882)","v":""},{"$f":"IF('1. Order'!S882=\"\",\"\",'1. Order'!S882)","v":""},{"$f":"IF('1. Order'!T882=\"\",\"\",'1. Order'!T882)","v":""},{"$f":"IF('1. Order'!W882=\"\",\"\",'1. Order'!W882)","v":""},{"$f":"IF('1. Order'!X882=\"\",\"\",'1. Order'!X882)","v":""},{"$f":"IF('1. Order'!Y882=\"\",\"\",'1. Order'!Y882)","v":"EUR"},{"$f":"IF('1. Order'!Z882=\"\",\"\",'1. Order'!Z882)","v":""},{"$f":"IF('1. Order'!AA882=\"\",\"\",'1. Order'!AA882)","v":""},{"$f":"IF('1. Order'!AB882=\"\",\"\",'1. Order'!AB882)","v":""},null,{"$f":"IF('1. Order'!AT882=\"\",\"\",'1. Order'!AT882)","v":""},{"$f":"IF('1. Order'!AU882=\"\",\"\",'1. Order'!AU882)","v":""},null,null,null,null,null,null,null,{"$f":"IF('1. Order'!AY882=\"\",\"\",'1. Order'!AY882)","v":""},{"$f":"IF('1. Order'!AZ882=\"\",\"\",'1. Order'!AZ882)","v":""},{"$f":"IF('1. Order'!BA882=\"\",\"\",'1. Order'!BA882)","v":""},{"$f":"IF('1. Order'!BB882=\"\",\"\",'1. Order'!BB882)","v":""},{"$f":"IF('1. Order'!BD882=\"\",\"\",'1. Order'!BD882)","v":""},{"$f":"IF('1. Order'!BE882=\"\",\"\",'1. Order'!BE882)","v":""},{"$f":"IF('1. Order'!BF882=\"\",\"\",'1. Order'!BF882)","v":""},{"$f":"IF('1. Order'!BG882=\"\",\"\",'1. Order'!BG882)","v":""},{"$f":"IF('1. Order'!BH882=\"\",\"\",'1. Order'!BH882)","v":"ZWO"}]
[{"$f":"IF('1. Order'!F883=\"\",\"\",'1. Order'!F883)","v":{"$error":"#N/A"}},{"$f":"IF('1. Order'!G883=\"\",\"\",'1. Order'!G883)","v":""},{"$f":"IF('1. Order'!H883=\"\",\"\",'1. Order'!H883)","v":""},{"$f":"IF('1. Order'!I883=\"\",\"\",'1. Order'!I883)","v":""},{"$f":"IF('1. Order'!J883=\"\",\"\",'1. Order'!J883)","v":""},{"$f":"IF('1. Order'!K883=\"\",\"\",'1. Order'!K883)","v":""},{"$f":"IF('1. Order'!L883=\"\",\"\",'1. Order'!L883)","v":""},{"$f":"IF('1. Order'!M883=\"\",\"\",'1. Order'!M883)","v":""},{"$f":"IF('1. Order'!N883=\"\",\"\",'1. Order'!N883)","v":""},{"$f":"IF('1. Order'!O883=\"\",\"\",'1. Order'!O883)","v":{"$error":"#N/A"}},{"$f":"IF('1. Order'!P883=\"\",\"\",'1. Order'!P883)","v":{"$error":"#N/A"}},{"$f":"IF('1. Order'!Q883=\"\",\"\",'1. Order'!Q883)","v":""},{"$f":"IF('1. Order'!S883=\"\",\"\",'1. Order'!S883)","v":""},{"$f":"IF('1. Order'!T883=\"\",\"\",'1. Order'!T883)","v":""},{"$f":"IF('1. Order'!W883=\"\",\"\",'1. Order'!W883)","v":""},{"$f":"IF('1. Order'!X883=\"\",\"\",'1. Order'!X883)","v":""},{"$f":"IF('1. Order'!Y883=\"\",\"\",'1. Order'!Y883)","v":"EUR"},{"$f":"IF('1. Order'!Z883=\"\",\"\",'1. Order'!Z883)","v":""},{"$f":"IF('1. Order'!AA883=\"\",\"\",'1. Order'!AA883)","v":""},{"$f":"IF('1. Order'!AB883=\"\",\"\",'1. Order'!AB883)","v":""},null,{"$f":"IF('1. Order'!AT883=\"\",\"\",'1. Order'!AT883)","v":""},{"$f":"IF('1. Order'!AU883=\"\",\"\",'1. Order'!AU883)","v":""},null,null,null,null,null,null,null,{"$f":"IF('1. Order'!AY883=\"\",\"\",'1. Order'!AY883)","v":""},{"$f":"IF('1. Order'!AZ883=\"\",\"\",'1. Order'!AZ883)","v":""},{"$f":"IF('1. Order'!BA883=\"\",\"\",'1. Order'!BA883)","v":""},{"$f":"IF('1. Order'!BB883=\"\",\"\",'1. Order'!BB883)","v":""},{"$f":"IF('1. Order'!BD883=\"\",\"\",'1. Order'!BD883)","v":""},{"$f":"IF('1. Order'!BE883=\"\",\"\",'1. Order'!BE883)","v":""},{"$f":"IF('1. Order'!BF883=\"\",\"\",'1. Order'!BF883)","v":""},{"$f":"IF('1. Order'!BG883=\"\",\"\",'1. Order'!BG883)","v":""},{"$f":"IF('1. Order'!BH883=\"\",\"\",'1. Order'!BH883)","v":"ZWO"}]
[{"$f":"IF('1. Order'!F884=\"\",\"\",'1. Order'!F884)","v":{"$error":"#N/A"}},{"$f":"IF('1. Order'!G884=\"\",\"\",'1. Order'!G884)","v":""},{"$f":"IF('1. Order'!H884=\"\",\"\",'1. Order'!H884)","v":""},{"$f":"IF('1. Order'!I884=\"\",\"\",'1. Order'!I884)","v":""},{"$f":"IF('1. Order'!J884=\"\",\"\",'1. Order'!J884)","v":""},{"$f":"IF('1. Order'!K884=\"\",\"\",'1. Order'!K884)","v":""},{"$f":"IF('1. Order'!L884=\"\",\"\",'1. Order'!L884)","v":""},{"$f":"IF('1. Order'!M884=\"\",\"\",'1. Order'!M884)","v":""},{"$f":"IF('1. Order'!N884=\"\",\"\",'1. Order'!N884)","v":""},{"$f":"IF('1. Order'!O884=\"\",\"\",'1. Order'!O884)","v":{"$error":"#N/A"}},{"$f":"IF('1. Order'!P884=\"\",\"\",'1. Order'!P884)","v":{"$error":"#N/A"}},{"$f":"IF('1. Order'!Q884=\"\",\"\",'1. Order'!Q884)","v":""},{"$f":"IF('1. Order'!S884=\"\",\"\",'1. Order'!S884)","v":""},{"$f":"IF('1. Order'!T884=\"\",\"\",'1. Order'!T884)","v":""},{"$f":"IF('1. Order'!W884=\"\",\"\",'1. Order'!W884)","v":""},{"$f":"IF('1. Order'!X884=\"\",\"\",'1. Order'!X884)","v":""},{"$f":"IF('1. Order'!Y884=\"\",\"\",'1. Order'!Y884)","v":"EUR"},{"$f":"IF('1. Order'!Z884=\"\",\"\",'1. Order'!Z884)","v":""},{"$f":"IF('1. Order'!AA884=\"\",\"\",'1. Order'!AA884)","v":""},{"$f":"IF('1. Order'!AB884=\"\",\"\",'1. Order'!AB884)","v":""},null,{"$f":"IF('1. Order'!AT884=\"\",\"\",'1. Order'!AT884)","v":""},{"$f":"IF('1. Order'!AU884=\"\",\"\",'1. Order'!AU884)","v":""},null,null,null,null,null,null,null,{"$f":"IF('1. Order'!AY884=\"\",\"\",'1. Order'!AY884)","v":""},{"$f":"IF('1. Order'!AZ884=\"\",\"\",'1. Order'!AZ884)","v":""},{"$f":"IF('1. Order'!BA884=\"\",\"\",'1. Order'!BA884)","v":""},{"$f":"IF('1. Order'!BB884=\"\",\"\",'1. Order'!BB884)","v":""},{"$f":"IF('1. Order'!BD884=\"\",\"\",'1. Order'!BD884)","v":""},{"$f":"IF('1. Order'!BE884=\"\",\"\",'1. Order'!BE884)","v":""},{"$f":"IF('1. Order'!BF884=\"\",\"\",'1. Order'!BF884)","v":""},{"$f":"IF('1. Order'!BG884=\"\",\"\",'1. Order'!BG884)","v":""},{"$f":"IF('1. Order'!BH884=\"\",\"\",'1. Order'!BH884)","v":"ZWO"}]
[{"$f":"IF('1. Order'!F885=\"\",\"\",'1. Order'!F885)","v":{"$error":"#N/A"}},{"$f":"IF('1. Order'!G885=\"\",\"\",'1. Order'!G885)","v":""},{"$f":"IF('1. Order'!H885=\"\",\"\",'1. Order'!H885)","v":""},{"$f":"IF('1. Order'!I885=\"\",\"\",'1. Order'!I885)","v":""},{"$f":"IF('1. Order'!J885=\"\",\"\",'1. Order'!J885)","v":""},{"$f":"IF('1. Order'!K885=\"\",\"\",'1. Order'!K885)","v":""},{"$f":"IF('1. Order'!L885=\"\",\"\",'1. Order'!L885)","v":""},{"$f":"IF('1. Order'!M885=\"\",\"\",'1. Order'!M885)","v":""},{"$f":"IF('1. Order'!N885=\"\",\"\",'1. Order'!N885)","v":""},{"$f":"IF('1. Order'!O885=\"\",\"\",'1. Order'!O885)","v":{"$error":"#N/A"}},{"$f":"IF('1. Order'!P885=\"\",\"\",'1. Order'!P885)","v":{"$error":"#N/A"}},{"$f":"IF('1. Order'!Q885=\"\",\"\",'1. Order'!Q885)","v":""},{"$f":"IF('1. Order'!S885=\"\",\"\",'1. Order'!S885)","v":""},{"$f":"IF('1. Order'!T885=\"\",\"\",'1. Order'!T885)","v":""},{"$f":"IF('1. Order'!W885=\"\",\"\",'1. Order'!W885)","v":""},{"$f":"IF('1. Order'!X885=\"\",\"\",'1. Order'!X885)","v":""},{"$f":"IF('1. Order'!Y885=\"\",\"\",'1. Order'!Y885)","v":"EUR"},{"$f":"IF('1. Order'!Z885=\"\",\"\",'1. Order'!Z885)","v":""},{"$f":"IF('1. Order'!AA885=\"\",\"\",'1. Order'!AA885)","v":""},{"$f":"IF('1. Order'!AB885=\"\",\"\",'1. Order'!AB885)","v":""},null,{"$f":"IF('1. Order'!AT885=\"\",\"\",'1. Order'!AT885)","v":""},{"$f":"IF('1. Order'!AU885=\"\",\"\",'1. Order'!AU885)","v":""},null,null,null,null,null,null,null,{"$f":"IF('1. Order'!AY885=\"\",\"\",'1. Order'!AY885)","v":""},{"$f":"IF('1. Order'!AZ885=\"\",\"\",'1. Order'!AZ885)","v":""},{"$f":"IF('1. Order'!BA885=\"\",\"\",'1. Order'!BA885)","v":""},{"$f":"IF('1. Order'!BB885=\"\",\"\",'1. Order'!BB885)","v":""},{"$f":"IF('1. Order'!BD885=\"\",\"\",'1. Order'!BD885)","v":""},{"$f":"IF('1. Order'!BE885=\"\",\"\",'1. Order'!BE885)","v":""},{"$f":"IF('1. Order'!BF885=\"\",\"\",'1. Order'!BF885)","v":""},{"$f":"IF('1. Order'!BG885=\"\",\"\",'1. Order'!BG885)","v":""},{"$f":"IF('1. Order'!BH885=\"\",\"\",'1. Order'!BH885)","v":"ZWO"}]
[{"$f":"IF('1. Order'!F886=\"\",\"\",'1. Order'!F886)","v":{"$error":"#N/A"}},{"$f":"IF('1. Order'!G886=\"\",\"\",'1. Order'!G886)","v":""},{"$f":"IF('1. Order'!H886=\"\",\"\",'1. Order'!H886)","v":""},{"$f":"IF('1. Order'!I886=\"\",\"\",'1. Order'!I886)","v":""},{"$f":"IF('1. Order'!J886=\"\",\"\",'1. Order'!J886)","v":""},{"$f":"IF('1. Order'!K886=\"\",\"\",'1. Order'!K886)","v":""},{"$f":"IF('1. Order'!L886=\"\",\"\",'1. Order'!L886)","v":""},{"$f":"IF('1. Order'!M886=\"\",\"\",'1. Order'!M886)","v":""},{"$f":"IF('1. Order'!N886=\"\",\"\",'1. Order'!N886)","v":""},{"$f":"IF('1. Order'!O886=\"\",\"\",'1. Order'!O886)","v":{"$error":"#N/A"}},{"$f":"IF('1. Order'!P886=\"\",\"\",'1. Order'!P886)","v":{"$error":"#N/A"}},{"$f":"IF('1. Order'!Q886=\"\",\"\",'1. Order'!Q886)","v":""},{"$f":"IF('1. Order'!S886=\"\",\"\",'1. Order'!S886)","v":""},{"$f":"IF('1. Order'!T886=\"\",\"\",'1. Order'!T886)","v":""},{"$f":"IF('1. Order'!W886=\"\",\"\",'1. Order'!W886)","v":""},{"$f":"IF('1. Order'!X886=\"\",\"\",'1. Order'!X886)","v":""},{"$f":"IF('1. Order'!Y886=\"\",\"\",'1. Order'!Y886)","v":"EUR"},{"$f":"IF('1. Order'!Z886=\"\",\"\",'1. Order'!Z886)","v":""},{"$f":"IF('1. Order'!AA886=\"\",\"\",'1. Order'!AA886)","v":""},{"$f":"IF('1. Order'!AB886=\"\",\"\",'1. Order'!AB886)","v":""},null,{"$f":"IF('1. Order'!AT886=\"\",\"\",'1. Order'!AT886)","v":""},{"$f":"IF('1. Order'!AU886=\"\",\"\",'1. Order'!AU886)","v":""},null,null,null,null,null,null,null,{"$f":"IF('1. Order'!AY886=\"\",\"\",'1. Order'!AY886)","v":""},{"$f":"IF('1. Order'!AZ886=\"\",\"\",'1. Order'!AZ886)","v":""},{"$f":"IF('1. Order'!BA886=\"\",\"\",'1. Order'!BA886)","v":""},{"$f":"IF('1. Order'!BB886=\"\",\"\",'1. Order'!BB886)","v":""},{"$f":"IF('1. Order'!BD886=\"\",\"\",'1. Order'!BD886)","v":""},{"$f":"IF('1. Order'!BE886=\"\",\"\",'1. Order'!BE886)","v":""},{"$f":"IF('1. Order'!BF886=\"\",\"\",'1. Order'!BF886)","v":""},{"$f":"IF('1. Order'!BG886=\"\",\"\",'1. Order'!BG886)","v":""},{"$f":"IF('1. Order'!BH886=\"\",\"\",'1. Order'!BH886)","v":"ZWO"}]
[{"$f":"IF('1. Order'!F887=\"\",\"\",'1. Order'!F887)","v":{"$error":"#N/A"}},{"$f":"IF('1. Order'!G887=\"\",\"\",'1. Order'!G887)","v":""},{"$f":"IF('1. Order'!H887=\"\",\"\",'1. Order'!H887)","v":""},{"$f":"IF('1. Order'!I887=\"\",\"\",'1. Order'!I887)","v":""},{"$f":"IF('1. Order'!J887=\"\",\"\",'1. Order'!J887)","v":""},{"$f":"IF('1. Order'!K887=\"\",\"\",'1. Order'!K887)","v":""},{"$f":"IF('1. Order'!L887=\"\",\"\",'1. Order'!L887)","v":""},{"$f":"IF('1. Order'!M887=\"\",\"\",'1. Order'!M887)","v":""},{"$f":"IF('1. Order'!N887=\"\",\"\",'1. Order'!N887)","v":""},{"$f":"IF('1. Order'!O887=\"\",\"\",'1. Order'!O887)","v":{"$error":"#N/A"}},{"$f":"IF('1. Order'!P887=\"\",\"\",'1. Order'!P887)","v":{"$error":"#N/A"}},{"$f":"IF('1. Order'!Q887=\"\",\"\",'1. Order'!Q887)","v":""},{"$f":"IF('1. Order'!S887=\"\",\"\",'1. Order'!S887)","v":""},{"$f":"IF('1. Order'!T887=\"\",\"\",'1. Order'!T887)","v":""},{"$f":"IF('1. Order'!W887=\"\",\"\",'1. Order'!W887)","v":""},{"$f":"IF('1. Order'!X887=\"\",\"\",'1. Order'!X887)","v":""},{"$f":"IF('1. Order'!Y887=\"\",\"\",'1. Order'!Y887)","v":"EUR"},{"$f":"IF('1. Order'!Z887=\"\",\"\",'1. Order'!Z887)","v":""},{"$f":"IF('1. Order'!AA887=\"\",\"\",'1. Order'!AA887)","v":""},{"$f":"IF('1. Order'!AB887=\"\",\"\",'1. Order'!AB887)","v":""},null,{"$f":"IF('1. Order'!AT887=\"\",\"\",'1. Order'!AT887)","v":""},{"$f":"IF('1. Order'!AU887=\"\",\"\",'1. Order'!AU887)","v":""},null,null,null,null,null,null,null,{"$f":"IF('1. Order'!AY887=\"\",\"\",'1. Order'!AY887)","v":""},{"$f":"IF('1. Order'!AZ887=\"\",\"\",'1. Order'!AZ887)","v":""},{"$f":"IF('1. Order'!BA887=\"\",\"\",'1. Order'!BA887)","v":""},{"$f":"IF('1. Order'!BB887=\"\",\"\",'1. Order'!BB887)","v":""},{"$f":"IF('1. Order'!BD887=\"\",\"\",'1. Order'!BD887)","v":""},{"$f":"IF('1. Order'!BE887=\"\",\"\",'1. Order'!BE887)","v":""},{"$f":"IF('1. Order'!BF887=\"\",\"\",'1. Order'!BF887)","v":""},{"$f":"IF('1. Order'!BG887=\"\",\"\",'1. Order'!BG887)","v":""},{"$f":"IF('1. Order'!BH887=\"\",\"\",'1. Order'!BH887)","v":"ZWO"}]
[{"$f":"IF('1. Order'!F888=\"\",\"\",'1. Order'!F888)","v":{"$error":"#N/A"}},{"$f":"IF('1. Order'!G888=\"\",\"\",'1. Order'!G888)","v":""},{"$f":"IF('1. Order'!H888=\"\",\"\",'1. Order'!H888)","v":""},{"$f":"IF('1. Order'!I888=\"\",\"\",'1. Order'!I888)","v":""},{"$f":"IF('1. Order'!J888=\"\",\"\",'1. Order'!J888)","v":""},{"$f":"IF('1. Order'!K888=\"\",\"\",'1. Order'!K888)","v":""},{"$f":"IF('1. Order'!L888=\"\",\"\",'1. Order'!L888)","v":""},{"$f":"IF('1. Order'!M888=\"\",\"\",'1. Order'!M888)","v":""},{"$f":"IF('1. Order'!N888=\"\",\"\",'1. Order'!N888)","v":""},{"$f":"IF('1. Order'!O888=\"\",\"\",'1. Order'!O888)","v":{"$error":"#N/A"}},{"$f":"IF('1. Order'!P888=\"\",\"\",'1. Order'!P888)","v":{"$error":"#N/A"}},{"$f":"IF('1. Order'!Q888=\"\",\"\",'1. Order'!Q888)","v":""},{"$f":"IF('1. Order'!S888=\"\",\"\",'1. Order'!S888)","v":""},{"$f":"IF('1. Order'!T888=\"\",\"\",'1. Order'!T888)","v":""},{"$f":"IF('1. Order'!W888=\"\",\"\",'1. Order'!W888)","v":""},{"$f":"IF('1. Order'!X888=\"\",\"\",'1. Order'!X888)","v":""},{"$f":"IF('1. Order'!Y888=\"\",\"\",'1. Order'!Y888)","v":"EUR"},{"$f":"IF('1. Order'!Z888=\"\",\"\",'1. Order'!Z888)","v":""},{"$f":"IF('1. Order'!AA888=\"\",\"\",'1. Order'!AA888)","v":""},{"$f":"IF('1. Order'!AB888=\"\",\"\",'1. Order'!AB888)","v":""},null,{"$f":"IF('1. Order'!AT888=\"\",\"\",'1. Order'!AT888)","v":""},{"$f":"IF('1. Order'!AU888=\"\",\"\",'1. Order'!AU888)","v":""},null,null,null,null,null,null,null,{"$f":"IF('1. Order'!AY888=\"\",\"\",'1. Order'!AY888)","v":""},{"$f":"IF('1. Order'!AZ888=\"\",\"\",'1. Order'!AZ888)","v":""},{"$f":"IF('1. Order'!BA888=\"\",\"\",'1. Order'!BA888)","v":""},{"$f":"IF('1. Order'!BB888=\"\",\"\",'1. Order'!BB888)","v":""},{"$f":"IF('1. Order'!BD888=\"\",\"\",'1. Order'!BD888)","v":""},{"$f":"IF('1. Order'!BE888=\"\",\"\",'1. Order'!BE888)","v":""},{"$f":"IF('1. Order'!BF888=\"\",\"\",'1. Order'!BF888)","v":""},{"$f":"IF('1. Order'!BG888=\"\",\"\",'1. Order'!BG888)","v":""},{"$f":"IF('1. Order'!BH888=\"\",\"\",'1. Order'!BH888)","v":"ZWO"}]
[{"$f":"IF('1. Order'!F889=\"\",\"\",'1. Order'!F889)","v":{"$error":"#N/A"}},{"$f":"IF('1. Order'!G889=\"\",\"\",'1. Order'!G889)","v":""},{"$f":"IF('1. Order'!H889=\"\",\"\",'1. Order'!H889)","v":""},{"$f":"IF('1. Order'!I889=\"\",\"\",'1. Order'!I889)","v":""},{"$f":"IF('1. Order'!J889=\"\",\"\",'1. Order'!J889)","v":""},{"$f":"IF('1. Order'!K889=\"\",\"\",'1. Order'!K889)","v":""},{"$f":"IF('1. Order'!L889=\"\",\"\",'1. Order'!L889)","v":""},{"$f":"IF('1. Order'!M889=\"\",\"\",'1. Order'!M889)","v":""},{"$f":"IF('1. Order'!N889=\"\",\"\",'1. Order'!N889)","v":""},{"$f":"IF('1. Order'!O889=\"\",\"\",'1. Order'!O889)","v":{"$error":"#N/A"}},{"$f":"IF('1. Order'!P889=\"\",\"\",'1. Order'!P889)","v":{"$error":"#N/A"}},{"$f":"IF('1. Order'!Q889=\"\",\"\",'1. Order'!Q889)","v":""},{"$f":"IF('1. Order'!S889=\"\",\"\",'1. Order'!S889)","v":""},{"$f":"IF('1. Order'!T889=\"\",\"\",'1. Order'!T889)","v":""},{"$f":"IF('1. Order'!W889=\"\",\"\",'1. Order'!W889)","v":""},{"$f":"IF('1. Order'!X889=\"\",\"\",'1. Order'!X889)","v":""},{"$f":"IF('1. Order'!Y889=\"\",\"\",'1. Order'!Y889)","v":"EUR"},{"$f":"IF('1. Order'!Z889=\"\",\"\",'1. Order'!Z889)","v":""},{"$f":"IF('1. Order'!AA889=\"\",\"\",'1. Order'!AA889)","v":""},{"$f":"IF('1. Order'!AB889=\"\",\"\",'1. Order'!AB889)","v":""},null,{"$f":"IF('1. Order'!AT889=\"\",\"\",'1. Order'!AT889)","v":""},{"$f":"IF('1. Order'!AU889=\"\",\"\",'1. Order'!AU889)","v":""},null,null,null,null,null,null,null,{"$f":"IF('1. Order'!AY889=\"\",\"\",'1. Order'!AY889)","v":""},{"$f":"IF('1. Order'!AZ889=\"\",\"\",'1. Order'!AZ889)","v":""},{"$f":"IF('1. Order'!BA889=\"\",\"\",'1. Order'!BA889)","v":""},{"$f":"IF('1. Order'!BB889=\"\",\"\",'1. Order'!BB889)","v":""},{"$f":"IF('1. Order'!BD889=\"\",\"\",'1. Order'!BD889)","v":""},{"$f":"IF('1. Order'!BE889=\"\",\"\",'1. Order'!BE889)","v":""},{"$f":"IF('1. Order'!BF889=\"\",\"\",'1. Order'!BF889)","v":""},{"$f":"IF('1. Order'!BG889=\"\",\"\",'1. Order'!BG889)","v":""},{"$f":"IF('1. Order'!BH889=\"\",\"\",'1. Order'!BH889)","v":"ZWO"}]
[{"$f":"IF('1. Order'!F890=\"\",\"\",'1. Order'!F890)","v":{"$error":"#N/A"}},{"$f":"IF('1. Order'!G890=\"\",\"\",'1. Order'!G890)","v":""},{"$f":"IF('1. Order'!H890=\"\",\"\",'1. Order'!H890)","v":""},{"$f":"IF('1. Order'!I890=\"\",\"\",'1. Order'!I890)","v":""},{"$f":"IF('1. Order'!J890=\"\",\"\",'1. Order'!J890)","v":""},{"$f":"IF('1. Order'!K890=\"\",\"\",'1. Order'!K890)","v":""},{"$f":"IF('1. Order'!L890=\"\",\"\",'1. Order'!L890)","v":""},{"$f":"IF('1. Order'!M890=\"\",\"\",'1. Order'!M890)","v":""},{"$f":"IF('1. Order'!N890=\"\",\"\",'1. Order'!N890)","v":""},{"$f":"IF('1. Order'!O890=\"\",\"\",'1. Order'!O890)","v":{"$error":"#N/A"}},{"$f":"IF('1. Order'!P890=\"\",\"\",'1. Order'!P890)","v":{"$error":"#N/A"}},{"$f":"IF('1. Order'!Q890=\"\",\"\",'1. Order'!Q890)","v":""},{"$f":"IF('1. Order'!S890=\"\",\"\",'1. Order'!S890)","v":""},{"$f":"IF('1. Order'!T890=\"\",\"\",'1. Order'!T890)","v":""},{"$f":"IF('1. Order'!W890=\"\",\"\",'1. Order'!W890)","v":""},{"$f":"IF('1. Order'!X890=\"\",\"\",'1. Order'!X890)","v":""},{"$f":"IF('1. Order'!Y890=\"\",\"\",'1. Order'!Y890)","v":"EUR"},{"$f":"IF('1. Order'!Z890=\"\",\"\",'1. Order'!Z890)","v":""},{"$f":"IF('1. Order'!AA890=\"\",\"\",'1. Order'!AA890)","v":""},{"$f":"IF('1. Order'!AB890=\"\",\"\",'1. Order'!AB890)","v":""},null,{"$f":"IF('1. Order'!AT890=\"\",\"\",'1. Order'!AT890)","v":""},{"$f":"IF('1. Order'!AU890=\"\",\"\",'1. Order'!AU890)","v":""},null,null,null,null,null,null,null,{"$f":"IF('1. Order'!AY890=\"\",\"\",'1. Order'!AY890)","v":""},{"$f":"IF('1. Order'!AZ890=\"\",\"\",'1. Order'!AZ890)","v":""},{"$f":"IF('1. Order'!BA890=\"\",\"\",'1. Order'!BA890)","v":""},{"$f":"IF('1. Order'!BB890=\"\",\"\",'1. Order'!BB890)","v":""},{"$f":"IF('1. Order'!BD890=\"\",\"\",'1. Order'!BD890)","v":""},{"$f":"IF('1. Order'!BE890=\"\",\"\",'1. Order'!BE890)","v":""},{"$f":"IF('1. Order'!BF890=\"\",\"\",'1. Order'!BF890)","v":""},{"$f":"IF('1. Order'!BG890=\"\",\"\",'1. Order'!BG890)","v":""},{"$f":"IF('1. Order'!BH890=\"\",\"\",'1. Order'!BH890)","v":"ZWO"}]
[{"$f":"IF('1. Order'!F891=\"\",\"\",'1. Order'!F891)","v":{"$error":"#N/A"}},{"$f":"IF('1. Order'!G891=\"\",\"\",'1. Order'!G891)","v":""},{"$f":"IF('1. Order'!H891=\"\",\"\",'1. Order'!H891)","v":""},{"$f":"IF('1. Order'!I891=\"\",\"\",'1. Order'!I891)","v":""},{"$f":"IF('1. Order'!J891=\"\",\"\",'1. Order'!J891)","v":""},{"$f":"IF('1. Order'!K891=\"\",\"\",'1. Order'!K891)","v":""},{"$f":"IF('1. Order'!L891=\"\",\"\",'1. Order'!L891)","v":""},{"$f":"IF('1. Order'!M891=\"\",\"\",'1. Order'!M891)","v":""},{"$f":"IF('1. Order'!N891=\"\",\"\",'1. Order'!N891)","v":""},{"$f":"IF('1. Order'!O891=\"\",\"\",'1. Order'!O891)","v":{"$error":"#N/A"}},{"$f":"IF('1. Order'!P891=\"\",\"\",'1. Order'!P891)","v":{"$error":"#N/A"}},{"$f":"IF('1. Order'!Q891=\"\",\"\",'1. Order'!Q891)","v":""},{"$f":"IF('1. Order'!S891=\"\",\"\",'1. Order'!S891)","v":""},{"$f":"IF('1. Order'!T891=\"\",\"\",'1. Order'!T891)","v":""},{"$f":"IF('1. Order'!W891=\"\",\"\",'1. Order'!W891)","v":""},{"$f":"IF('1. Order'!X891=\"\",\"\",'1. Order'!X891)","v":""},{"$f":"IF('1. Order'!Y891=\"\",\"\",'1. Order'!Y891)","v":"EUR"},{"$f":"IF('1. Order'!Z891=\"\",\"\",'1. Order'!Z891)","v":""},{"$f":"IF('1. Order'!AA891=\"\",\"\",'1. Order'!AA891)","v":""},{"$f":"IF('1. Order'!AB891=\"\",\"\",'1. Order'!AB891)","v":""},null,{"$f":"IF('1. Order'!AT891=\"\",\"\",'1. Order'!AT891)","v":""},{"$f":"IF('1. Order'!AU891=\"\",\"\",'1. Order'!AU891)","v":""},null,null,null,null,null,null,null,{"$f":"IF('1. Order'!AY891=\"\",\"\",'1. Order'!AY891)","v":""},{"$f":"IF('1. Order'!AZ891=\"\",\"\",'1. Order'!AZ891)","v":""},{"$f":"IF('1. Order'!BA891=\"\",\"\",'1. Order'!BA891)","v":""},{"$f":"IF('1. Order'!BB891=\"\",\"\",'1. Order'!BB891)","v":""},{"$f":"IF('1. Order'!BD891=\"\",\"\",'1. Order'!BD891)","v":""},{"$f":"IF('1. Order'!BE891=\"\",\"\",'1. Order'!BE891)","v":""},{"$f":"IF('1. Order'!BF891=\"\",\"\",'1. Order'!BF891)","v":""},{"$f":"IF('1. Order'!BG891=\"\",\"\",'1. Order'!BG891)","v":""},{"$f":"IF('1. Order'!BH891=\"\",\"\",'1. Order'!BH891)","v":"ZWO"}]
[{"$f":"IF('1. Order'!F892=\"\",\"\",'1. Order'!F892)","v":{"$error":"#N/A"}},{"$f":"IF('1. Order'!G892=\"\",\"\",'1. Order'!G892)","v":""},{"$f":"IF('1. Order'!H892=\"\",\"\",'1. Order'!H892)","v":""},{"$f":"IF('1. Order'!I892=\"\",\"\",'1. Order'!I892)","v":""},{"$f":"IF('1. Order'!J892=\"\",\"\",'1. Order'!J892)","v":""},{"$f":"IF('1. Order'!K892=\"\",\"\",'1. Order'!K892)","v":""},{"$f":"IF('1. Order'!L892=\"\",\"\",'1. Order'!L892)","v":""},{"$f":"IF('1. Order'!M892=\"\",\"\",'1. Order'!M892)","v":""},{"$f":"IF('1. Order'!N892=\"\",\"\",'1. Order'!N892)","v":""},{"$f":"IF('1. Order'!O892=\"\",\"\",'1. Order'!O892)","v":{"$error":"#N/A"}},{"$f":"IF('1. Order'!P892=\"\",\"\",'1. Order'!P892)","v":{"$error":"#N/A"}},{"$f":"IF('1. Order'!Q892=\"\",\"\",'1. Order'!Q892)","v":""},{"$f":"IF('1. Order'!S892=\"\",\"\",'1. Order'!S892)","v":""},{"$f":"IF('1. Order'!T892=\"\",\"\",'1. Order'!T892)","v":""},{"$f":"IF('1. Order'!W892=\"\",\"\",'1. Order'!W892)","v":""},{"$f":"IF('1. Order'!X892=\"\",\"\",'1. Order'!X892)","v":""},{"$f":"IF('1. Order'!Y892=\"\",\"\",'1. Order'!Y892)","v":"EUR"},{"$f":"IF('1. Order'!Z892=\"\",\"\",'1. Order'!Z892)","v":""},{"$f":"IF('1. Order'!AA892=\"\",\"\",'1. Order'!AA892)","v":""},{"$f":"IF('1. Order'!AB892=\"\",\"\",'1. Order'!AB892)","v":""},null,{"$f":"IF('1. Order'!AT892=\"\",\"\",'1. Order'!AT892)","v":""},{"$f":"IF('1. Order'!AU892=\"\",\"\",'1. Order'!AU892)","v":""},null,null,null,null,null,null,null,{"$f":"IF('1. Order'!AY892=\"\",\"\",'1. Order'!AY892)","v":""},{"$f":"IF('1. Order'!AZ892=\"\",\"\",'1. Order'!AZ892)","v":""},{"$f":"IF('1. Order'!BA892=\"\",\"\",'1. Order'!BA892)","v":""},{"$f":"IF('1. Order'!BB892=\"\",\"\",'1. Order'!BB892)","v":""},{"$f":"IF('1. Order'!BD892=\"\",\"\",'1. Order'!BD892)","v":""},{"$f":"IF('1. Order'!BE892=\"\",\"\",'1. Order'!BE892)","v":""},{"$f":"IF('1. Order'!BF892=\"\",\"\",'1. Order'!BF892)","v":""},{"$f":"IF('1. Order'!BG892=\"\",\"\",'1. Order'!BG892)","v":""},{"$f":"IF('1. Order'!BH892=\"\",\"\",'1. Order'!BH892)","v":"ZWO"}]
[{"$f":"IF('1. Order'!F893=\"\",\"\",'1. Order'!F893)","v":{"$error":"#N/A"}},{"$f":"IF('1. Order'!G893=\"\",\"\",'1. Order'!G893)","v":""},{"$f":"IF('1. Order'!H893=\"\",\"\",'1. Order'!H893)","v":""},{"$f":"IF('1. Order'!I893=\"\",\"\",'1. Order'!I893)","v":""},{"$f":"IF('1. Order'!J893=\"\",\"\",'1. Order'!J893)","v":""},{"$f":"IF('1. Order'!K893=\"\",\"\",'1. Order'!K893)","v":""},{"$f":"IF('1. Order'!L893=\"\",\"\",'1. Order'!L893)","v":""},{"$f":"IF('1. Order'!M893=\"\",\"\",'1. Order'!M893)","v":""},{"$f":"IF('1. Order'!N893=\"\",\"\",'1. Order'!N893)","v":""},{"$f":"IF('1. Order'!O893=\"\",\"\",'1. Order'!O893)","v":{"$error":"#N/A"}},{"$f":"IF('1. Order'!P893=\"\",\"\",'1. Order'!P893)","v":{"$error":"#N/A"}},{"$f":"IF('1. Order'!Q893=\"\",\"\",'1. Order'!Q893)","v":""},{"$f":"IF('1. Order'!S893=\"\",\"\",'1. Order'!S893)","v":""},{"$f":"IF('1. Order'!T893=\"\",\"\",'1. Order'!T893)","v":""},{"$f":"IF('1. Order'!W893=\"\",\"\",'1. Order'!W893)","v":""},{"$f":"IF('1. Order'!X893=\"\",\"\",'1. Order'!X893)","v":""},{"$f":"IF('1. Order'!Y893=\"\",\"\",'1. Order'!Y893)","v":"EUR"},{"$f":"IF('1. Order'!Z893=\"\",\"\",'1. Order'!Z893)","v":""},{"$f":"IF('1. Order'!AA893=\"\",\"\",'1. Order'!AA893)","v":""},{"$f":"IF('1. Order'!AB893=\"\",\"\",'1. Order'!AB893)","v":""},null,{"$f":"IF('1. Order'!AT893=\"\",\"\",'1. Order'!AT893)","v":""},{"$f":"IF('1. Order'!AU893=\"\",\"\",'1. Order'!AU893)","v":""},null,null,null,null,null,null,null,{"$f":"IF('1. Order'!AY893=\"\",\"\",'1. Order'!AY893)","v":""},{"$f":"IF('1. Order'!AZ893=\"\",\"\",'1. Order'!AZ893)","v":""},{"$f":"IF('1. Order'!BA893=\"\",\"\",'1. Order'!BA893)","v":""},{"$f":"IF('1. Order'!BB893=\"\",\"\",'1. Order'!BB893)","v":""},{"$f":"IF('1. Order'!BD893=\"\",\"\",'1. Order'!BD893)","v":""},{"$f":"IF('1. Order'!BE893=\"\",\"\",'1. Order'!BE893)","v":""},{"$f":"IF('1. Order'!BF893=\"\",\"\",'1. Order'!BF893)","v":""},{"$f":"IF('1. Order'!BG893=\"\",\"\",'1. Order'!BG893)","v":""},{"$f":"IF('1. Order'!BH893=\"\",\"\",'1. Order'!BH893)","v":"ZWO"}]
[{"$f":"IF('1. Order'!F894=\"\",\"\",'1. Order'!F894)","v":{"$error":"#N/A"}},{"$f":"IF('1. Order'!G894=\"\",\"\",'1. Order'!G894)","v":""},{"$f":"IF('1. Order'!H894=\"\",\"\",'1. Order'!H894)","v":""},{"$f":"IF('1. Order'!I894=\"\",\"\",'1. Order'!I894)","v":""},{"$f":"IF('1. Order'!J894=\"\",\"\",'1. Order'!J894)","v":""},{"$f":"IF('1. Order'!K894=\"\",\"\",'1. Order'!K894)","v":""},{"$f":"IF('1. Order'!L894=\"\",\"\",'1. Order'!L894)","v":""},{"$f":"IF('1. Order'!M894=\"\",\"\",'1. Order'!M894)","v":""},{"$f":"IF('1. Order'!N894=\"\",\"\",'1. Order'!N894)","v":""},{"$f":"IF('1. Order'!O894=\"\",\"\",'1. Order'!O894)","v":{"$error":"#N/A"}},{"$f":"IF('1. Order'!P894=\"\",\"\",'1. Order'!P894)","v":{"$error":"#N/A"}},{"$f":"IF('1. Order'!Q894=\"\",\"\",'1. Order'!Q894)","v":""},{"$f":"IF('1. Order'!S894=\"\",\"\",'1. Order'!S894)","v":""},{"$f":"IF('1. Order'!T894=\"\",\"\",'1. Order'!T894)","v":""},{"$f":"IF('1. Order'!W894=\"\",\"\",'1. Order'!W894)","v":""},{"$f":"IF('1. Order'!X894=\"\",\"\",'1. Order'!X894)","v":""},{"$f":"IF('1. Order'!Y894=\"\",\"\",'1. Order'!Y894)","v":"EUR"},{"$f":"IF('1. Order'!Z894=\"\",\"\",'1. Order'!Z894)","v":""},{"$f":"IF('1. Order'!AA894=\"\",\"\",'1. Order'!AA894)","v":""},{"$f":"IF('1. Order'!AB894=\"\",\"\",'1. Order'!AB894)","v":""},null,{"$f":"IF('1. Order'!AT894=\"\",\"\",'1. Order'!AT894)","v":""},{"$f":"IF('1. Order'!AU894=\"\",\"\",'1. Order'!AU894)","v":""},null,null,null,null,null,null,null,{"$f":"IF('1. Order'!AY894=\"\",\"\",'1. Order'!AY894)","v":""},{"$f":"IF('1. Order'!AZ894=\"\",\"\",'1. Order'!AZ894)","v":""},{"$f":"IF('1. Order'!BA894=\"\",\"\",'1. Order'!BA894)","v":""},{"$f":"IF('1. Order'!BB894=\"\",\"\",'1. Order'!BB894)","v":""},{"$f":"IF('1. Order'!BD894=\"\",\"\",'1. Order'!BD894)","v":""},{"$f":"IF('1. Order'!BE894=\"\",\"\",'1. Order'!BE894)","v":""},{"$f":"IF('1. Order'!BF894=\"\",\"\",'1. Order'!BF894)","v":""},{"$f":"IF('1. Order'!BG894=\"\",\"\",'1. Order'!BG894)","v":""},{"$f":"IF('1. Order'!BH894=\"\",\"\",'1. Order'!BH894)","v":"ZWO"}]
[{"$f":"IF('1. Order'!F895=\"\",\"\",'1. Order'!F895)","v":{"$error":"#N/A"}},{"$f":"IF('1. Order'!G895=\"\",\"\",'1. Order'!G895)","v":""},{"$f":"IF('1. Order'!H895=\"\",\"\",'1. Order'!H895)","v":""},{"$f":"IF('1. Order'!I895=\"\",\"\",'1. Order'!I895)","v":""},{"$f":"IF('1. Order'!J895=\"\",\"\",'1. Order'!J895)","v":""},{"$f":"IF('1. Order'!K895=\"\",\"\",'1. Order'!K895)","v":""},{"$f":"IF('1. Order'!L895=\"\",\"\",'1. Order'!L895)","v":""},{"$f":"IF('1. Order'!M895=\"\",\"\",'1. Order'!M895)","v":""},{"$f":"IF('1. Order'!N895=\"\",\"\",'1. Order'!N895)","v":""},{"$f":"IF('1. Order'!O895=\"\",\"\",'1. Order'!O895)","v":{"$error":"#N/A"}},{"$f":"IF('1. Order'!P895=\"\",\"\",'1. Order'!P895)","v":{"$error":"#N/A"}},{"$f":"IF('1. Order'!Q895=\"\",\"\",'1. Order'!Q895)","v":""},{"$f":"IF('1. Order'!S895=\"\",\"\",'1. Order'!S895)","v":""},{"$f":"IF('1. Order'!T895=\"\",\"\",'1. Order'!T895)","v":""},{"$f":"IF('1. Order'!W895=\"\",\"\",'1. Order'!W895)","v":""},{"$f":"IF('1. Order'!X895=\"\",\"\",'1. Order'!X895)","v":""},{"$f":"IF('1. Order'!Y895=\"\",\"\",'1. Order'!Y895)","v":"EUR"},{"$f":"IF('1. Order'!Z895=\"\",\"\",'1. Order'!Z895)","v":""},{"$f":"IF('1. Order'!AA895=\"\",\"\",'1. Order'!AA895)","v":""},{"$f":"IF('1. Order'!AB895=\"\",\"\",'1. Order'!AB895)","v":""},null,{"$f":"IF('1. Order'!AT895=\"\",\"\",'1. Order'!AT895)","v":""},{"$f":"IF('1. Order'!AU895=\"\",\"\",'1. Order'!AU895)","v":""},null,null,null,null,null,null,null,{"$f":"IF('1. Order'!AY895=\"\",\"\",'1. Order'!AY895)","v":""},{"$f":"IF('1. Order'!AZ895=\"\",\"\",'1. Order'!AZ895)","v":""},{"$f":"IF('1. Order'!BA895=\"\",\"\",'1. Order'!BA895)","v":""},{"$f":"IF('1. Order'!BB895=\"\",\"\",'1. Order'!BB895)","v":""},{"$f":"IF('1. Order'!BD895=\"\",\"\",'1. Order'!BD895)","v":""},{"$f":"IF('1. Order'!BE895=\"\",\"\",'1. Order'!BE895)","v":""},{"$f":"IF('1. Order'!BF895=\"\",\"\",'1. Order'!BF895)","v":""},{"$f":"IF('1. Order'!BG895=\"\",\"\",'1. Order'!BG895)","v":""},{"$f":"IF('1. Order'!BH895=\"\",\"\",'1. Order'!BH895)","v":"ZWO"}]
[{"$f":"IF('1. Order'!F896=\"\",\"\",'1. Order'!F896)","v":{"$error":"#N/A"}},{"$f":"IF('1. Order'!G896=\"\",\"\",'1. Order'!G896)","v":""},{"$f":"IF('1. Order'!H896=\"\",\"\",'1. Order'!H896)","v":""},{"$f":"IF('1. Order'!I896=\"\",\"\",'1. Order'!I896)","v":""},{"$f":"IF('1. Order'!J896=\"\",\"\",'1. Order'!J896)","v":""},{"$f":"IF('1. Order'!K896=\"\",\"\",'1. Order'!K896)","v":""},{"$f":"IF('1. Order'!L896=\"\",\"\",'1. Order'!L896)","v":""},{"$f":"IF('1. Order'!M896=\"\",\"\",'1. Order'!M896)","v":""},{"$f":"IF('1. Order'!N896=\"\",\"\",'1. Order'!N896)","v":""},{"$f":"IF('1. Order'!O896=\"\",\"\",'1. Order'!O896)","v":{"$error":"#N/A"}},{"$f":"IF('1. Order'!P896=\"\",\"\",'1. Order'!P896)","v":{"$error":"#N/A"}},{"$f":"IF('1. Order'!Q896=\"\",\"\",'1. Order'!Q896)","v":""},{"$f":"IF('1. Order'!S896=\"\",\"\",'1. Order'!S896)","v":""},{"$f":"IF('1. Order'!T896=\"\",\"\",'1. Order'!T896)","v":""},{"$f":"IF('1. Order'!W896=\"\",\"\",'1. Order'!W896)","v":""},{"$f":"IF('1. Order'!X896=\"\",\"\",'1. Order'!X896)","v":""},{"$f":"IF('1. Order'!Y896=\"\",\"\",'1. Order'!Y896)","v":"EUR"},{"$f":"IF('1. Order'!Z896=\"\",\"\",'1. Order'!Z896)","v":""},{"$f":"IF('1. Order'!AA896=\"\",\"\",'1. Order'!AA896)","v":""},{"$f":"IF('1. Order'!AB896=\"\",\"\",'1. Order'!AB896)","v":""},null,{"$f":"IF('1. Order'!AT896=\"\",\"\",'1. Order'!AT896)","v":""},{"$f":"IF('1. Order'!AU896=\"\",\"\",'1. Order'!AU896)","v":""},null,null,null,null,null,null,null,{"$f":"IF('1. Order'!AY896=\"\",\"\",'1. Order'!AY896)","v":""},{"$f":"IF('1. Order'!AZ896=\"\",\"\",'1. Order'!AZ896)","v":""},{"$f":"IF('1. Order'!BA896=\"\",\"\",'1. Order'!BA896)","v":""},{"$f":"IF('1. Order'!BB896=\"\",\"\",'1. Order'!BB896)","v":""},{"$f":"IF('1. Order'!BD896=\"\",\"\",'1. Order'!BD896)","v":""},{"$f":"IF('1. Order'!BE896=\"\",\"\",'1. Order'!BE896)","v":""},{"$f":"IF('1. Order'!BF896=\"\",\"\",'1. Order'!BF896)","v":""},{"$f":"IF('1. Order'!BG896=\"\",\"\",'1. Order'!BG896)","v":""},{"$f":"IF('1. Order'!BH896=\"\",\"\",'1. Order'!BH896)","v":"ZWO"}]
[{"$f":"IF('1. Order'!F897=\"\",\"\",'1. Order'!F897)","v":{"$error":"#N/A"}},{"$f":"IF('1. Order'!G897=\"\",\"\",'1. Order'!G897)","v":""},{"$f":"IF('1. Order'!H897=\"\",\"\",'1. Order'!H897)","v":""},{"$f":"IF('1. Order'!I897=\"\",\"\",'1. Order'!I897)","v":""},{"$f":"IF('1. Order'!J897=\"\",\"\",'1. Order'!J897)","v":""},{"$f":"IF('1. Order'!K897=\"\",\"\",'1. Order'!K897)","v":""},{"$f":"IF('1. Order'!L897=\"\",\"\",'1. Order'!L897)","v":""},{"$f":"IF('1. Order'!M897=\"\",\"\",'1. Order'!M897)","v":""},{"$f":"IF('1. Order'!N897=\"\",\"\",'1. Order'!N897)","v":""},{"$f":"IF('1. Order'!O897=\"\",\"\",'1. Order'!O897)","v":{"$error":"#N/A"}},{"$f":"IF('1. Order'!P897=\"\",\"\",'1. Order'!P897)","v":{"$error":"#N/A"}},{"$f":"IF('1. Order'!Q897=\"\",\"\",'1. Order'!Q897)","v":""},{"$f":"IF('1. Order'!S897=\"\",\"\",'1. Order'!S897)","v":""},{"$f":"IF('1. Order'!T897=\"\",\"\",'1. Order'!T897)","v":""},{"$f":"IF('1. Order'!W897=\"\",\"\",'1. Order'!W897)","v":""},{"$f":"IF('1. Order'!X897=\"\",\"\",'1. Order'!X897)","v":""},{"$f":"IF('1. Order'!Y897=\"\",\"\",'1. Order'!Y897)","v":"EUR"},{"$f":"IF('1. Order'!Z897=\"\",\"\",'1. Order'!Z897)","v":""},{"$f":"IF('1. Order'!AA897=\"\",\"\",'1. Order'!AA897)","v":""},{"$f":"IF('1. Order'!AB897=\"\",\"\",'1. Order'!AB897)","v":""},null,{"$f":"IF('1. Order'!AT897=\"\",\"\",'1. Order'!AT897)","v":""},{"$f":"IF('1. Order'!AU897=\"\",\"\",'1. Order'!AU897)","v":""},null,null,null,null,null,null,null,{"$f":"IF('1. Order'!AY897=\"\",\"\",'1. Order'!AY897)","v":""},{"$f":"IF('1. Order'!AZ897=\"\",\"\",'1. Order'!AZ897)","v":""},{"$f":"IF('1. Order'!BA897=\"\",\"\",'1. Order'!BA897)","v":""},{"$f":"IF('1. Order'!BB897=\"\",\"\",'1. Order'!BB897)","v":""},{"$f":"IF('1. Order'!BD897=\"\",\"\",'1. Order'!BD897)","v":""},{"$f":"IF('1. Order'!BE897=\"\",\"\",'1. Order'!BE897)","v":""},{"$f":"IF('1. Order'!BF897=\"\",\"\",'1. Order'!BF897)","v":""},{"$f":"IF('1. Order'!BG897=\"\",\"\",'1. Order'!BG897)","v":""},{"$f":"IF('1. Order'!BH897=\"\",\"\",'1. Order'!BH897)","v":"ZWO"}]
[{"$f":"IF('1. Order'!F898=\"\",\"\",'1. Order'!F898)","v":{"$error":"#N/A"}},{"$f":"IF('1. Order'!G898=\"\",\"\",'1. Order'!G898)","v":""},{"$f":"IF('1. Order'!H898=\"\",\"\",'1. Order'!H898)","v":""},{"$f":"IF('1. Order'!I898=\"\",\"\",'1. Order'!I898)","v":""},{"$f":"IF('1. Order'!J898=\"\",\"\",'1. Order'!J898)","v":""},{"$f":"IF('1. Order'!K898=\"\",\"\",'1. Order'!K898)","v":""},{"$f":"IF('1. Order'!L898=\"\",\"\",'1. Order'!L898)","v":""},{"$f":"IF('1. Order'!M898=\"\",\"\",'1. Order'!M898)","v":""},{"$f":"IF('1. Order'!N898=\"\",\"\",'1. Order'!N898)","v":""},{"$f":"IF('1. Order'!O898=\"\",\"\",'1. Order'!O898)","v":{"$error":"#N/A"}},{"$f":"IF('1. Order'!P898=\"\",\"\",'1. Order'!P898)","v":{"$error":"#N/A"}},{"$f":"IF('1. Order'!Q898=\"\",\"\",'1. Order'!Q898)","v":""},{"$f":"IF('1. Order'!S898=\"\",\"\",'1. Order'!S898)","v":""},{"$f":"IF('1. Order'!T898=\"\",\"\",'1. Order'!T898)","v":""},{"$f":"IF('1. Order'!W898=\"\",\"\",'1. Order'!W898)","v":""},{"$f":"IF('1. Order'!X898=\"\",\"\",'1. Order'!X898)","v":""},{"$f":"IF('1. Order'!Y898=\"\",\"\",'1. Order'!Y898)","v":"EUR"},{"$f":"IF('1. Order'!Z898=\"\",\"\",'1. Order'!Z898)","v":""},{"$f":"IF('1. Order'!AA898=\"\",\"\",'1. Order'!AA898)","v":""},{"$f":"IF('1. Order'!AB898=\"\",\"\",'1. Order'!AB898)","v":""},null,{"$f":"IF('1. Order'!AT898=\"\",\"\",'1. Order'!AT898)","v":""},{"$f":"IF('1. Order'!AU898=\"\",\"\",'1. Order'!AU898)","v":""},null,null,null,null,null,null,null,{"$f":"IF('1. Order'!AY898=\"\",\"\",'1. Order'!AY898)","v":""},{"$f":"IF('1. Order'!AZ898=\"\",\"\",'1. Order'!AZ898)","v":""},{"$f":"IF('1. Order'!BA898=\"\",\"\",'1. Order'!BA898)","v":""},{"$f":"IF('1. Order'!BB898=\"\",\"\",'1. Order'!BB898)","v":""},{"$f":"IF('1. Order'!BD898=\"\",\"\",'1. Order'!BD898)","v":""},{"$f":"IF('1. Order'!BE898=\"\",\"\",'1. Order'!BE898)","v":""},{"$f":"IF('1. Order'!BF898=\"\",\"\",'1. Order'!BF898)","v":""},{"$f":"IF('1. Order'!BG898=\"\",\"\",'1. Order'!BG898)","v":""},{"$f":"IF('1. Order'!BH898=\"\",\"\",'1. Order'!BH898)","v":"ZWO"}]
[{"$f":"IF('1. Order'!F899=\"\",\"\",'1. Order'!F899)","v":{"$error":"#N/A"}},{"$f":"IF('1. Order'!G899=\"\",\"\",'1. Order'!G899)","v":""},{"$f":"IF('1. Order'!H899=\"\",\"\",'1. Order'!H899)","v":""},{"$f":"IF('1. Order'!I899=\"\",\"\",'1. Order'!I899)","v":""},{"$f":"IF('1. Order'!J899=\"\",\"\",'1. Order'!J899)","v":""},{"$f":"IF('1. Order'!K899=\"\",\"\",'1. Order'!K899)","v":""},{"$f":"IF('1. Order'!L899=\"\",\"\",'1. Order'!L899)","v":""},{"$f":"IF('1. Order'!M899=\"\",\"\",'1. Order'!M899)","v":""},{"$f":"IF('1. Order'!N899=\"\",\"\",'1. Order'!N899)","v":""},{"$f":"IF('1. Order'!O899=\"\",\"\",'1. Order'!O899)","v":{"$error":"#N/A"}},{"$f":"IF('1. Order'!P899=\"\",\"\",'1. Order'!P899)","v":{"$error":"#N/A"}},{"$f":"IF('1. Order'!Q899=\"\",\"\",'1. Order'!Q899)","v":""},{"$f":"IF('1. Order'!S899=\"\",\"\",'1. Order'!S899)","v":""},{"$f":"IF('1. Order'!T899=\"\",\"\",'1. Order'!T899)","v":""},{"$f":"IF('1. Order'!W899=\"\",\"\",'1. Order'!W899)","v":""},{"$f":"IF('1. Order'!X899=\"\",\"\",'1. Order'!X899)","v":""},{"$f":"IF('1. Order'!Y899=\"\",\"\",'1. Order'!Y899)","v":"EUR"},{"$f":"IF('1. Order'!Z899=\"\",\"\",'1. Order'!Z899)","v":""},{"$f":"IF('1. Order'!AA899=\"\",\"\",'1. Order'!AA899)","v":""},{"$f":"IF('1. Order'!AB899=\"\",\"\",'1. Order'!AB899)","v":""},null,{"$f":"IF('1. Order'!AT899=\"\",\"\",'1. Order'!AT899)","v":""},{"$f":"IF('1. Order'!AU899=\"\",\"\",'1. Order'!AU899)","v":""},null,null,null,null,null,null,null,{"$f":"IF('1. Order'!AY899=\"\",\"\",'1. Order'!AY899)","v":""},{"$f":"IF('1. Order'!AZ899=\"\",\"\",'1. Order'!AZ899)","v":""},{"$f":"IF('1. Order'!BA899=\"\",\"\",'1. Order'!BA899)","v":""},{"$f":"IF('1. Order'!BB899=\"\",\"\",'1. Order'!BB899)","v":""},{"$f":"IF('1. Order'!BD899=\"\",\"\",'1. Order'!BD899)","v":""},{"$f":"IF('1. Order'!BE899=\"\",\"\",'1. Order'!BE899)","v":""},{"$f":"IF('1. Order'!BF899=\"\",\"\",'1. Order'!BF899)","v":""},{"$f":"IF('1. Order'!BG899=\"\",\"\",'1. Order'!BG899)","v":""},{"$f":"IF('1. Order'!BH899=\"\",\"\",'1. Order'!BH899)","v":"ZWO"}]
[{"$f":"IF('1. Order'!F900=\"\",\"\",'1. Order'!F900)","v":{"$error":"#N/A"}},{"$f":"IF('1. Order'!G900=\"\",\"\",'1. Order'!G900)","v":""},{"$f":"IF('1. Order'!H900=\"\",\"\",'1. Order'!H900)","v":""},{"$f":"IF('1. Order'!I900=\"\",\"\",'1. Order'!I900)","v":""},{"$f":"IF('1. Order'!J900=\"\",\"\",'1. Order'!J900)","v":""},{"$f":"IF('1. Order'!K900=\"\",\"\",'1. Order'!K900)","v":""},{"$f":"IF('1. Order'!L900=\"\",\"\",'1. Order'!L900)","v":""},{"$f":"IF('1. Order'!M900=\"\",\"\",'1. Order'!M900)","v":""},{"$f":"IF('1. Order'!N900=\"\",\"\",'1. Order'!N900)","v":""},{"$f":"IF('1. Order'!O900=\"\",\"\",'1. Order'!O900)","v":{"$error":"#N/A"}},{"$f":"IF('1. Order'!P900=\"\",\"\",'1. Order'!P900)","v":{"$error":"#N/A"}},{"$f":"IF('1. Order'!Q900=\"\",\"\",'1. Order'!Q900)","v":""},{"$f":"IF('1. Order'!S900=\"\",\"\",'1. Order'!S900)","v":""},{"$f":"IF('1. Order'!T900=\"\",\"\",'1. Order'!T900)","v":""},{"$f":"IF('1. Order'!W900=\"\",\"\",'1. Order'!W900)","v":""},{"$f":"IF('1. Order'!X900=\"\",\"\",'1. Order'!X900)","v":""},{"$f":"IF('1. Order'!Y900=\"\",\"\",'1. Order'!Y900)","v":"EUR"},{"$f":"IF('1. Order'!Z900=\"\",\"\",'1. Order'!Z900)","v":""},{"$f":"IF('1. Order'!AA900=\"\",\"\",'1. Order'!AA900)","v":""},{"$f":"IF('1. Order'!AB900=\"\",\"\",'1. Order'!AB900)","v":""},null,{"$f":"IF('1. Order'!AT900=\"\",\"\",'1. Order'!AT900)","v":""},{"$f":"IF('1. Order'!AU900=\"\",\"\",'1. Order'!AU900)","v":""},null,null,null,null,null,null,null,{"$f":"IF('1. Order'!AY900=\"\",\"\",'1. Order'!AY900)","v":""},{"$f":"IF('1. Order'!AZ900=\"\",\"\",'1. Order'!AZ900)","v":""},{"$f":"IF('1. Order'!BA900=\"\",\"\",'1. Order'!BA900)","v":""},{"$f":"IF('1. Order'!BB900=\"\",\"\",'1. Order'!BB900)","v":""},{"$f":"IF('1. Order'!BD900=\"\",\"\",'1. Order'!BD900)","v":""},{"$f":"IF('1. Order'!BE900=\"\",\"\",'1. Order'!BE900)","v":""},{"$f":"IF('1. Order'!BF900=\"\",\"\",'1. Order'!BF900)","v":""},{"$f":"IF('1. Order'!BG900=\"\",\"\",'1. Order'!BG900)","v":""},{"$f":"IF('1. Order'!BH900=\"\",\"\",'1. Order'!BH900)","v":"ZWO"}]
[{"$f":"IF('1. Order'!F901=\"\",\"\",'1. Order'!F901)","v":{"$error":"#N/A"}},{"$f":"IF('1. Order'!G901=\"\",\"\",'1. Order'!G901)","v":""},{"$f":"IF('1. Order'!H901=\"\",\"\",'1. Order'!H901)","v":""},{"$f":"IF('1. Order'!I901=\"\",\"\",'1. Order'!I901)","v":""},{"$f":"IF('1. Order'!J901=\"\",\"\",'1. Order'!J901)","v":""},{"$f":"IF('1. Order'!K901=\"\",\"\",'1. Order'!K901)","v":""},{"$f":"IF('1. Order'!L901=\"\",\"\",'1. Order'!L901)","v":""},{"$f":"IF('1. Order'!M901=\"\",\"\",'1. Order'!M901)","v":""},{"$f":"IF('1. Order'!N901=\"\",\"\",'1. Order'!N901)","v":""},{"$f":"IF('1. Order'!O901=\"\",\"\",'1. Order'!O901)","v":{"$error":"#N/A"}},{"$f":"IF('1. Order'!P901=\"\",\"\",'1. Order'!P901)","v":{"$error":"#N/A"}},{"$f":"IF('1. Order'!Q901=\"\",\"\",'1. Order'!Q901)","v":""},{"$f":"IF('1. Order'!S901=\"\",\"\",'1. Order'!S901)","v":""},{"$f":"IF('1. Order'!T901=\"\",\"\",'1. Order'!T901)","v":""},{"$f":"IF('1. Order'!W901=\"\",\"\",'1. Order'!W901)","v":""},{"$f":"IF('1. Order'!X901=\"\",\"\",'1. Order'!X901)","v":""},{"$f":"IF('1. Order'!Y901=\"\",\"\",'1. Order'!Y901)","v":"EUR"},{"$f":"IF('1. Order'!Z901=\"\",\"\",'1. Order'!Z901)","v":""},{"$f":"IF('1. Order'!AA901=\"\",\"\",'1. Order'!AA901)","v":""},{"$f":"IF('1. Order'!AB901=\"\",\"\",'1. Order'!AB901)","v":""},null,{"$f":"IF('1. Order'!AT901=\"\",\"\",'1. Order'!AT901)","v":""},{"$f":"IF('1. Order'!AU901=\"\",\"\",'1. Order'!AU901)","v":""},null,null,null,null,null,null,null,{"$f":"IF('1. Order'!AY901=\"\",\"\",'1. Order'!AY901)","v":""},{"$f":"IF('1. Order'!AZ901=\"\",\"\",'1. Order'!AZ901)","v":""},{"$f":"IF('1. Order'!BA901=\"\",\"\",'1. Order'!BA901)","v":""},{"$f":"IF('1. Order'!BB901=\"\",\"\",'1. Order'!BB901)","v":""},{"$f":"IF('1. Order'!BD901=\"\",\"\",'1. Order'!BD901)","v":""},{"$f":"IF('1. Order'!BE901=\"\",\"\",'1. Order'!BE901)","v":""},{"$f":"IF('1. Order'!BF901=\"\",\"\",'1. Order'!BF901)","v":""},{"$f":"IF('1. Order'!BG901=\"\",\"\",'1. Order'!BG901)","v":""},{"$f":"IF('1. Order'!BH901=\"\",\"\",'1. Order'!BH901)","v":"ZWO"}]
[{"$f":"IF('1. Order'!F902=\"\",\"\",'1. Order'!F902)","v":{"$error":"#N/A"}},{"$f":"IF('1. Order'!G902=\"\",\"\",'1. Order'!G902)","v":""},{"$f":"IF('1. Order'!H902=\"\",\"\",'1. Order'!H902)","v":""},{"$f":"IF('1. Order'!I902=\"\",\"\",'1. Order'!I902)","v":""},{"$f":"IF('1. Order'!J902=\"\",\"\",'1. Order'!J902)","v":""},{"$f":"IF('1. Order'!K902=\"\",\"\",'1. Order'!K902)","v":""},{"$f":"IF('1. Order'!L902=\"\",\"\",'1. Order'!L902)","v":""},{"$f":"IF('1. Order'!M902=\"\",\"\",'1. Order'!M902)","v":""},{"$f":"IF('1. Order'!N902=\"\",\"\",'1. Order'!N902)","v":""},{"$f":"IF('1. Order'!O902=\"\",\"\",'1. Order'!O902)","v":{"$error":"#N/A"}},{"$f":"IF('1. Order'!P902=\"\",\"\",'1. Order'!P902)","v":{"$error":"#N/A"}},{"$f":"IF('1. Order'!Q902=\"\",\"\",'1. Order'!Q902)","v":""},{"$f":"IF('1. Order'!S902=\"\",\"\",'1. Order'!S902)","v":""},{"$f":"IF('1. Order'!T902=\"\",\"\",'1. Order'!T902)","v":""},{"$f":"IF('1. Order'!W902=\"\",\"\",'1. Order'!W902)","v":""},{"$f":"IF('1. Order'!X902=\"\",\"\",'1. Order'!X902)","v":""},{"$f":"IF('1. Order'!Y902=\"\",\"\",'1. Order'!Y902)","v":"EUR"},{"$f":"IF('1. Order'!Z902=\"\",\"\",'1. Order'!Z902)","v":""},{"$f":"IF('1. Order'!AA902=\"\",\"\",'1. Order'!AA902)","v":""},{"$f":"IF('1. Order'!AB902=\"\",\"\",'1. Order'!AB902)","v":""},null,{"$f":"IF('1. Order'!AT902=\"\",\"\",'1. Order'!AT902)","v":""},{"$f":"IF('1. Order'!AU902=\"\",\"\",'1. Order'!AU902)","v":""},null,null,null,null,null,null,null,{"$f":"IF('1. Order'!AY902=\"\",\"\",'1. Order'!AY902)","v":""},{"$f":"IF('1. Order'!AZ902=\"\",\"\",'1. Order'!AZ902)","v":""},{"$f":"IF('1. Order'!BA902=\"\",\"\",'1. Order'!BA902)","v":""},{"$f":"IF('1. Order'!BB902=\"\",\"\",'1. Order'!BB902)","v":""},{"$f":"IF('1. Order'!BD902=\"\",\"\",'1. Order'!BD902)","v":""},{"$f":"IF('1. Order'!BE902=\"\",\"\",'1. Order'!BE902)","v":""},{"$f":"IF('1. Order'!BF902=\"\",\"\",'1. Order'!BF902)","v":""},{"$f":"IF('1. Order'!BG902=\"\",\"\",'1. Order'!BG902)","v":""},{"$f":"IF('1. Order'!BH902=\"\",\"\",'1. Order'!BH902)","v":"ZWO"}]
[{"$f":"IF('1. Order'!F903=\"\",\"\",'1. Order'!F903)","v":{"$error":"#N/A"}},{"$f":"IF('1. Order'!G903=\"\",\"\",'1. Order'!G903)","v":""},{"$f":"IF('1. Order'!H903=\"\",\"\",'1. Order'!H903)","v":""},{"$f":"IF('1. Order'!I903=\"\",\"\",'1. Order'!I903)","v":""},{"$f":"IF('1. Order'!J903=\"\",\"\",'1. Order'!J903)","v":""},{"$f":"IF('1. Order'!K903=\"\",\"\",'1. Order'!K903)","v":""},{"$f":"IF('1. Order'!L903=\"\",\"\",'1. Order'!L903)","v":""},{"$f":"IF('1. Order'!M903=\"\",\"\",'1. Order'!M903)","v":""},{"$f":"IF('1. Order'!N903=\"\",\"\",'1. Order'!N903)","v":""},{"$f":"IF('1. Order'!O903=\"\",\"\",'1. Order'!O903)","v":{"$error":"#N/A"}},{"$f":"IF('1. Order'!P903=\"\",\"\",'1. Order'!P903)","v":{"$error":"#N/A"}},{"$f":"IF('1. Order'!Q903=\"\",\"\",'1. Order'!Q903)","v":""},{"$f":"IF('1. Order'!S903=\"\",\"\",'1. Order'!S903)","v":""},{"$f":"IF('1. Order'!T903=\"\",\"\",'1. Order'!T903)","v":""},{"$f":"IF('1. Order'!W903=\"\",\"\",'1. Order'!W903)","v":""},{"$f":"IF('1. Order'!X903=\"\",\"\",'1. Order'!X903)","v":""},{"$f":"IF('1. Order'!Y903=\"\",\"\",'1. Order'!Y903)","v":"EUR"},{"$f":"IF('1. Order'!Z903=\"\",\"\",'1. Order'!Z903)","v":""},{"$f":"IF('1. Order'!AA903=\"\",\"\",'1. Order'!AA903)","v":""},{"$f":"IF('1. Order'!AB903=\"\",\"\",'1. Order'!AB903)","v":""},null,{"$f":"IF('1. Order'!AT903=\"\",\"\",'1. Order'!AT903)","v":""},{"$f":"IF('1. Order'!AU903=\"\",\"\",'1. Order'!AU903)","v":""},null,null,null,null,null,null,null,{"$f":"IF('1. Order'!AY903=\"\",\"\",'1. Order'!AY903)","v":""},{"$f":"IF('1. Order'!AZ903=\"\",\"\",'1. Order'!AZ903)","v":""},{"$f":"IF('1. Order'!BA903=\"\",\"\",'1. Order'!BA903)","v":""},{"$f":"IF('1. Order'!BB903=\"\",\"\",'1. Order'!BB903)","v":""},{"$f":"IF('1. Order'!BD903=\"\",\"\",'1. Order'!BD903)","v":""},{"$f":"IF('1. Order'!BE903=\"\",\"\",'1. Order'!BE903)","v":""},{"$f":"IF('1. Order'!BF903=\"\",\"\",'1. Order'!BF903)","v":""},{"$f":"IF('1. Order'!BG903=\"\",\"\",'1. Order'!BG903)","v":""},{"$f":"IF('1. Order'!BH903=\"\",\"\",'1. Order'!BH903)","v":"ZWO"}]
[{"$f":"IF('1. Order'!F904=\"\",\"\",'1. Order'!F904)","v":{"$error":"#N/A"}},{"$f":"IF('1. Order'!G904=\"\",\"\",'1. Order'!G904)","v":""},{"$f":"IF('1. Order'!H904=\"\",\"\",'1. Order'!H904)","v":""},{"$f":"IF('1. Order'!I904=\"\",\"\",'1. Order'!I904)","v":""},{"$f":"IF('1. Order'!J904=\"\",\"\",'1. Order'!J904)","v":""},{"$f":"IF('1. Order'!K904=\"\",\"\",'1. Order'!K904)","v":""},{"$f":"IF('1. Order'!L904=\"\",\"\",'1. Order'!L904)","v":""},{"$f":"IF('1. Order'!M904=\"\",\"\",'1. Order'!M904)","v":""},{"$f":"IF('1. Order'!N904=\"\",\"\",'1. Order'!N904)","v":""},{"$f":"IF('1. Order'!O904=\"\",\"\",'1. Order'!O904)","v":{"$error":"#N/A"}},{"$f":"IF('1. Order'!P904=\"\",\"\",'1. Order'!P904)","v":{"$error":"#N/A"}},{"$f":"IF('1. Order'!Q904=\"\",\"\",'1. Order'!Q904)","v":""},{"$f":"IF('1. Order'!S904=\"\",\"\",'1. Order'!S904)","v":""},{"$f":"IF('1. Order'!T904=\"\",\"\",'1. Order'!T904)","v":""},{"$f":"IF('1. Order'!W904=\"\",\"\",'1. Order'!W904)","v":""},{"$f":"IF('1. Order'!X904=\"\",\"\",'1. Order'!X904)","v":""},{"$f":"IF('1. Order'!Y904=\"\",\"\",'1. Order'!Y904)","v":"EUR"},{"$f":"IF('1. Order'!Z904=\"\",\"\",'1. Order'!Z904)","v":""},{"$f":"IF('1. Order'!AA904=\"\",\"\",'1. Order'!AA904)","v":""},{"$f":"IF('1. Order'!AB904=\"\",\"\",'1. Order'!AB904)","v":""},null,{"$f":"IF('1. Order'!AT904=\"\",\"\",'1. Order'!AT904)","v":""},{"$f":"IF('1. Order'!AU904=\"\",\"\",'1. Order'!AU904)","v":""},null,null,null,null,null,null,null,{"$f":"IF('1. Order'!AY904=\"\",\"\",'1. Order'!AY904)","v":""},{"$f":"IF('1. Order'!AZ904=\"\",\"\",'1. Order'!AZ904)","v":""},{"$f":"IF('1. Order'!BA904=\"\",\"\",'1. Order'!BA904)","v":""},{"$f":"IF('1. Order'!BB904=\"\",\"\",'1. Order'!BB904)","v":""},{"$f":"IF('1. Order'!BD904=\"\",\"\",'1. Order'!BD904)","v":""},{"$f":"IF('1. Order'!BE904=\"\",\"\",'1. Order'!BE904)","v":""},{"$f":"IF('1. Order'!BF904=\"\",\"\",'1. Order'!BF904)","v":""},{"$f":"IF('1. Order'!BG904=\"\",\"\",'1. Order'!BG904)","v":""},{"$f":"IF('1. Order'!BH904=\"\",\"\",'1. Order'!BH904)","v":"ZWO"}]
[{"$f":"IF('1. Order'!F905=\"\",\"\",'1. Order'!F905)","v":{"$error":"#N/A"}},{"$f":"IF('1. Order'!G905=\"\",\"\",'1. Order'!G905)","v":""},{"$f":"IF('1. Order'!H905=\"\",\"\",'1. Order'!H905)","v":""},{"$f":"IF('1. Order'!I905=\"\",\"\",'1. Order'!I905)","v":""},{"$f":"IF('1. Order'!J905=\"\",\"\",'1. Order'!J905)","v":""},{"$f":"IF('1. Order'!K905=\"\",\"\",'1. Order'!K905)","v":""},{"$f":"IF('1. Order'!L905=\"\",\"\",'1. Order'!L905)","v":""},{"$f":"IF('1. Order'!M905=\"\",\"\",'1. Order'!M905)","v":""},{"$f":"IF('1. Order'!N905=\"\",\"\",'1. Order'!N905)","v":""},{"$f":"IF('1. Order'!O905=\"\",\"\",'1. Order'!O905)","v":{"$error":"#N/A"}},{"$f":"IF('1. Order'!P905=\"\",\"\",'1. Order'!P905)","v":{"$error":"#N/A"}},{"$f":"IF('1. Order'!Q905=\"\",\"\",'1. Order'!Q905)","v":""},{"$f":"IF('1. Order'!S905=\"\",\"\",'1. Order'!S905)","v":""},{"$f":"IF('1. Order'!T905=\"\",\"\",'1. Order'!T905)","v":""},{"$f":"IF('1. Order'!W905=\"\",\"\",'1. Order'!W905)","v":""},{"$f":"IF('1. Order'!X905=\"\",\"\",'1. Order'!X905)","v":""},{"$f":"IF('1. Order'!Y905=\"\",\"\",'1. Order'!Y905)","v":"EUR"},{"$f":"IF('1. Order'!Z905=\"\",\"\",'1. Order'!Z905)","v":""},{"$f":"IF('1. Order'!AA905=\"\",\"\",'1. Order'!AA905)","v":""},{"$f":"IF('1. Order'!AB905=\"\",\"\",'1. Order'!AB905)","v":""},null,{"$f":"IF('1. Order'!AT905=\"\",\"\",'1. Order'!AT905)","v":""},{"$f":"IF('1. Order'!AU905=\"\",\"\",'1. Order'!AU905)","v":""},null,null,null,null,null,null,null,{"$f":"IF('1. Order'!AY905=\"\",\"\",'1. Order'!AY905)","v":""},{"$f":"IF('1. Order'!AZ905=\"\",\"\",'1. Order'!AZ905)","v":""},{"$f":"IF('1. Order'!BA905=\"\",\"\",'1. Order'!BA905)","v":""},{"$f":"IF('1. Order'!BB905=\"\",\"\",'1. Order'!BB905)","v":""},{"$f":"IF('1. Order'!BD905=\"\",\"\",'1. Order'!BD905)","v":""},{"$f":"IF('1. Order'!BE905=\"\",\"\",'1. Order'!BE905)","v":""},{"$f":"IF('1. Order'!BF905=\"\",\"\",'1. Order'!BF905)","v":""},{"$f":"IF('1. Order'!BG905=\"\",\"\",'1. Order'!BG905)","v":""},{"$f":"IF('1. Order'!BH905=\"\",\"\",'1. Order'!BH905)","v":"ZWO"}]
[{"$f":"IF('1. Order'!F906=\"\",\"\",'1. Order'!F906)","v":{"$error":"#N/A"}},{"$f":"IF('1. Order'!G906=\"\",\"\",'1. Order'!G906)","v":""},{"$f":"IF('1. Order'!H906=\"\",\"\",'1. Order'!H906)","v":""},{"$f":"IF('1. Order'!I906=\"\",\"\",'1. Order'!I906)","v":""},{"$f":"IF('1. Order'!J906=\"\",\"\",'1. Order'!J906)","v":""},{"$f":"IF('1. Order'!K906=\"\",\"\",'1. Order'!K906)","v":""},{"$f":"IF('1. Order'!L906=\"\",\"\",'1. Order'!L906)","v":""},{"$f":"IF('1. Order'!M906=\"\",\"\",'1. Order'!M906)","v":""},{"$f":"IF('1. Order'!N906=\"\",\"\",'1. Order'!N906)","v":""},{"$f":"IF('1. Order'!O906=\"\",\"\",'1. Order'!O906)","v":{"$error":"#N/A"}},{"$f":"IF('1. Order'!P906=\"\",\"\",'1. Order'!P906)","v":{"$error":"#N/A"}},{"$f":"IF('1. Order'!Q906=\"\",\"\",'1. Order'!Q906)","v":""},{"$f":"IF('1. Order'!S906=\"\",\"\",'1. Order'!S906)","v":""},{"$f":"IF('1. Order'!T906=\"\",\"\",'1. Order'!T906)","v":""},{"$f":"IF('1. Order'!W906=\"\",\"\",'1. Order'!W906)","v":""},{"$f":"IF('1. Order'!X906=\"\",\"\",'1. Order'!X906)","v":""},{"$f":"IF('1. Order'!Y906=\"\",\"\",'1. Order'!Y906)","v":"EUR"},{"$f":"IF('1. Order'!Z906=\"\",\"\",'1. Order'!Z906)","v":""},{"$f":"IF('1. Order'!AA906=\"\",\"\",'1. Order'!AA906)","v":""},{"$f":"IF('1. Order'!AB906=\"\",\"\",'1. Order'!AB906)","v":""},null,{"$f":"IF('1. Order'!AT906=\"\",\"\",'1. Order'!AT906)","v":""},{"$f":"IF('1. Order'!AU906=\"\",\"\",'1. Order'!AU906)","v":""},null,null,null,null,null,null,null,{"$f":"IF('1. Order'!AY906=\"\",\"\",'1. Order'!AY906)","v":""},{"$f":"IF('1. Order'!AZ906=\"\",\"\",'1. Order'!AZ906)","v":""},{"$f":"IF('1. Order'!BA906=\"\",\"\",'1. Order'!BA906)","v":""},{"$f":"IF('1. Order'!BB906=\"\",\"\",'1. Order'!BB906)","v":""},{"$f":"IF('1. Order'!BD906=\"\",\"\",'1. Order'!BD906)","v":""},{"$f":"IF('1. Order'!BE906=\"\",\"\",'1. Order'!BE906)","v":""},{"$f":"IF('1. Order'!BF906=\"\",\"\",'1. Order'!BF906)","v":""},{"$f":"IF('1. Order'!BG906=\"\",\"\",'1. Order'!BG906)","v":""},{"$f":"IF('1. Order'!BH906=\"\",\"\",'1. Order'!BH906)","v":"ZWO"}]
[{"$f":"IF('1. Order'!F907=\"\",\"\",'1. Order'!F907)","v":{"$error":"#N/A"}},{"$f":"IF('1. Order'!G907=\"\",\"\",'1. Order'!G907)","v":""},{"$f":"IF('1. Order'!H907=\"\",\"\",'1. Order'!H907)","v":""},{"$f":"IF('1. Order'!I907=\"\",\"\",'1. Order'!I907)","v":""},{"$f":"IF('1. Order'!J907=\"\",\"\",'1. Order'!J907)","v":""},{"$f":"IF('1. Order'!K907=\"\",\"\",'1. Order'!K907)","v":""},{"$f":"IF('1. Order'!L907=\"\",\"\",'1. Order'!L907)","v":""},{"$f":"IF('1. Order'!M907=\"\",\"\",'1. Order'!M907)","v":""},{"$f":"IF('1. Order'!N907=\"\",\"\",'1. Order'!N907)","v":""},{"$f":"IF('1. Order'!O907=\"\",\"\",'1. Order'!O907)","v":{"$error":"#N/A"}},{"$f":"IF('1. Order'!P907=\"\",\"\",'1. Order'!P907)","v":{"$error":"#N/A"}},{"$f":"IF('1. Order'!Q907=\"\",\"\",'1. Order'!Q907)","v":""},{"$f":"IF('1. Order'!S907=\"\",\"\",'1. Order'!S907)","v":""},{"$f":"IF('1. Order'!T907=\"\",\"\",'1. Order'!T907)","v":""},{"$f":"IF('1. Order'!W907=\"\",\"\",'1. Order'!W907)","v":""},{"$f":"IF('1. Order'!X907=\"\",\"\",'1. Order'!X907)","v":""},{"$f":"IF('1. Order'!Y907=\"\",\"\",'1. Order'!Y907)","v":"EUR"},{"$f":"IF('1. Order'!Z907=\"\",\"\",'1. Order'!Z907)","v":""},{"$f":"IF('1. Order'!AA907=\"\",\"\",'1. Order'!AA907)","v":""},{"$f":"IF('1. Order'!AB907=\"\",\"\",'1. Order'!AB907)","v":""},null,{"$f":"IF('1. Order'!AT907=\"\",\"\",'1. Order'!AT907)","v":""},{"$f":"IF('1. Order'!AU907=\"\",\"\",'1. Order'!AU907)","v":""},null,null,null,null,null,null,null,{"$f":"IF('1. Order'!AY907=\"\",\"\",'1. Order'!AY907)","v":""},{"$f":"IF('1. Order'!AZ907=\"\",\"\",'1. Order'!AZ907)","v":""},{"$f":"IF('1. Order'!BA907=\"\",\"\",'1. Order'!BA907)","v":""},{"$f":"IF('1. Order'!BB907=\"\",\"\",'1. Order'!BB907)","v":""},{"$f":"IF('1. Order'!BD907=\"\",\"\",'1. Order'!BD907)","v":""},{"$f":"IF('1. Order'!BE907=\"\",\"\",'1. Order'!BE907)","v":""},{"$f":"IF('1. Order'!BF907=\"\",\"\",'1. Order'!BF907)","v":""},{"$f":"IF('1. Order'!BG907=\"\",\"\",'1. Order'!BG907)","v":""},{"$f":"IF('1. Order'!BH907=\"\",\"\",'1. Order'!BH907)","v":"ZWO"}]
[{"$f":"IF('1. Order'!F908=\"\",\"\",'1. Order'!F908)","v":{"$error":"#N/A"}},{"$f":"IF('1. Order'!G908=\"\",\"\",'1. Order'!G908)","v":""},{"$f":"IF('1. Order'!H908=\"\",\"\",'1. Order'!H908)","v":""},{"$f":"IF('1. Order'!I908=\"\",\"\",'1. Order'!I908)","v":""},{"$f":"IF('1. Order'!J908=\"\",\"\",'1. Order'!J908)","v":""},{"$f":"IF('1. Order'!K908=\"\",\"\",'1. Order'!K908)","v":""},{"$f":"IF('1. Order'!L908=\"\",\"\",'1. Order'!L908)","v":""},{"$f":"IF('1. Order'!M908=\"\",\"\",'1. Order'!M908)","v":""},{"$f":"IF('1. Order'!N908=\"\",\"\",'1. Order'!N908)","v":""},{"$f":"IF('1. Order'!O908=\"\",\"\",'1. Order'!O908)","v":{"$error":"#N/A"}},{"$f":"IF('1. Order'!P908=\"\",\"\",'1. Order'!P908)","v":{"$error":"#N/A"}},{"$f":"IF('1. Order'!Q908=\"\",\"\",'1. Order'!Q908)","v":""},{"$f":"IF('1. Order'!S908=\"\",\"\",'1. Order'!S908)","v":""},{"$f":"IF('1. Order'!T908=\"\",\"\",'1. Order'!T908)","v":""},{"$f":"IF('1. Order'!W908=\"\",\"\",'1. Order'!W908)","v":""},{"$f":"IF('1. Order'!X908=\"\",\"\",'1. Order'!X908)","v":""},{"$f":"IF('1. Order'!Y908=\"\",\"\",'1. Order'!Y908)","v":"EUR"},{"$f":"IF('1. Order'!Z908=\"\",\"\",'1. Order'!Z908)","v":""},{"$f":"IF('1. Order'!AA908=\"\",\"\",'1. Order'!AA908)","v":""},{"$f":"IF('1. Order'!AB908=\"\",\"\",'1. Order'!AB908)","v":""},null,{"$f":"IF('1. Order'!AT908=\"\",\"\",'1. Order'!AT908)","v":""},{"$f":"IF('1. Order'!AU908=\"\",\"\",'1. Order'!AU908)","v":""},null,null,null,null,null,null,null,{"$f":"IF('1. Order'!AY908=\"\",\"\",'1. Order'!AY908)","v":""},{"$f":"IF('1. Order'!AZ908=\"\",\"\",'1. Order'!AZ908)","v":""},{"$f":"IF('1. Order'!BA908=\"\",\"\",'1. Order'!BA908)","v":""},{"$f":"IF('1. Order'!BB908=\"\",\"\",'1. Order'!BB908)","v":""},{"$f":"IF('1. Order'!BD908=\"\",\"\",'1. Order'!BD908)","v":""},{"$f":"IF('1. Order'!BE908=\"\",\"\",'1. Order'!BE908)","v":""},{"$f":"IF('1. Order'!BF908=\"\",\"\",'1. Order'!BF908)","v":""},{"$f":"IF('1. Order'!BG908=\"\",\"\",'1. Order'!BG908)","v":""},{"$f":"IF('1. Order'!BH908=\"\",\"\",'1. Order'!BH908)","v":"ZWO"}]
[{"$f":"IF('1. Order'!F909=\"\",\"\",'1. Order'!F909)","v":{"$error":"#N/A"}},{"$f":"IF('1. Order'!G909=\"\",\"\",'1. Order'!G909)","v":""},{"$f":"IF('1. Order'!H909=\"\",\"\",'1. Order'!H909)","v":""},{"$f":"IF('1. Order'!I909=\"\",\"\",'1. Order'!I909)","v":""},{"$f":"IF('1. Order'!J909=\"\",\"\",'1. Order'!J909)","v":""},{"$f":"IF('1. Order'!K909=\"\",\"\",'1. Order'!K909)","v":""},{"$f":"IF('1. Order'!L909=\"\",\"\",'1. Order'!L909)","v":""},{"$f":"IF('1. Order'!M909=\"\",\"\",'1. Order'!M909)","v":""},{"$f":"IF('1. Order'!N909=\"\",\"\",'1. Order'!N909)","v":""},{"$f":"IF('1. Order'!O909=\"\",\"\",'1. Order'!O909)","v":{"$error":"#N/A"}},{"$f":"IF('1. Order'!P909=\"\",\"\",'1. Order'!P909)","v":{"$error":"#N/A"}},{"$f":"IF('1. Order'!Q909=\"\",\"\",'1. Order'!Q909)","v":""},{"$f":"IF('1. Order'!S909=\"\",\"\",'1. Order'!S909)","v":""},{"$f":"IF('1. Order'!T909=\"\",\"\",'1. Order'!T909)","v":""},{"$f":"IF('1. Order'!W909=\"\",\"\",'1. Order'!W909)","v":""},{"$f":"IF('1. Order'!X909=\"\",\"\",'1. Order'!X909)","v":""},{"$f":"IF('1. Order'!Y909=\"\",\"\",'1. Order'!Y909)","v":"EUR"},{"$f":"IF('1. Order'!Z909=\"\",\"\",'1. Order'!Z909)","v":""},{"$f":"IF('1. Order'!AA909=\"\",\"\",'1. Order'!AA909)","v":""},{"$f":"IF('1. Order'!AB909=\"\",\"\",'1. Order'!AB909)","v":""},null,{"$f":"IF('1. Order'!AT909=\"\",\"\",'1. Order'!AT909)","v":""},{"$f":"IF('1. Order'!AU909=\"\",\"\",'1. Order'!AU909)","v":""},null,null,null,null,null,null,null,{"$f":"IF('1. Order'!AY909=\"\",\"\",'1. Order'!AY909)","v":""},{"$f":"IF('1. Order'!AZ909=\"\",\"\",'1. Order'!AZ909)","v":""},{"$f":"IF('1. Order'!BA909=\"\",\"\",'1. Order'!BA909)","v":""},{"$f":"IF('1. Order'!BB909=\"\",\"\",'1. Order'!BB909)","v":""},{"$f":"IF('1. Order'!BD909=\"\",\"\",'1. Order'!BD909)","v":""},{"$f":"IF('1. Order'!BE909=\"\",\"\",'1. Order'!BE909)","v":""},{"$f":"IF('1. Order'!BF909=\"\",\"\",'1. Order'!BF909)","v":""},{"$f":"IF('1. Order'!BG909=\"\",\"\",'1. Order'!BG909)","v":""},{"$f":"IF('1. Order'!BH909=\"\",\"\",'1. Order'!BH909)","v":"ZWO"}]
[{"$f":"IF('1. Order'!F910=\"\",\"\",'1. Order'!F910)","v":{"$error":"#N/A"}},{"$f":"IF('1. Order'!G910=\"\",\"\",'1. Order'!G910)","v":""},{"$f":"IF('1. Order'!H910=\"\",\"\",'1. Order'!H910)","v":""},{"$f":"IF('1. Order'!I910=\"\",\"\",'1. Order'!I910)","v":""},{"$f":"IF('1. Order'!J910=\"\",\"\",'1. Order'!J910)","v":""},{"$f":"IF('1. Order'!K910=\"\",\"\",'1. Order'!K910)","v":""},{"$f":"IF('1. Order'!L910=\"\",\"\",'1. Order'!L910)","v":""},{"$f":"IF('1. Order'!M910=\"\",\"\",'1. Order'!M910)","v":""},{"$f":"IF('1. Order'!N910=\"\",\"\",'1. Order'!N910)","v":""},{"$f":"IF('1. Order'!O910=\"\",\"\",'1. Order'!O910)","v":{"$error":"#N/A"}},{"$f":"IF('1. Order'!P910=\"\",\"\",'1. Order'!P910)","v":{"$error":"#N/A"}},{"$f":"IF('1. Order'!Q910=\"\",\"\",'1. Order'!Q910)","v":""},{"$f":"IF('1. Order'!S910=\"\",\"\",'1. Order'!S910)","v":""},{"$f":"IF('1. Order'!T910=\"\",\"\",'1. Order'!T910)","v":""},{"$f":"IF('1. Order'!W910=\"\",\"\",'1. Order'!W910)","v":""},{"$f":"IF('1. Order'!X910=\"\",\"\",'1. Order'!X910)","v":""},{"$f":"IF('1. Order'!Y910=\"\",\"\",'1. Order'!Y910)","v":"EUR"},{"$f":"IF('1. Order'!Z910=\"\",\"\",'1. Order'!Z910)","v":""},{"$f":"IF('1. Order'!AA910=\"\",\"\",'1. Order'!AA910)","v":""},{"$f":"IF('1. Order'!AB910=\"\",\"\",'1. Order'!AB910)","v":""},null,{"$f":"IF('1. Order'!AT910=\"\",\"\",'1. Order'!AT910)","v":""},{"$f":"IF('1. Order'!AU910=\"\",\"\",'1. Order'!AU910)","v":""},null,null,null,null,null,null,null,{"$f":"IF('1. Order'!AY910=\"\",\"\",'1. Order'!AY910)","v":""},{"$f":"IF('1. Order'!AZ910=\"\",\"\",'1. Order'!AZ910)","v":""},{"$f":"IF('1. Order'!BA910=\"\",\"\",'1. Order'!BA910)","v":""},{"$f":"IF('1. Order'!BB910=\"\",\"\",'1. Order'!BB910)","v":""},{"$f":"IF('1. Order'!BD910=\"\",\"\",'1. Order'!BD910)","v":""},{"$f":"IF('1. Order'!BE910=\"\",\"\",'1. Order'!BE910)","v":""},{"$f":"IF('1. Order'!BF910=\"\",\"\",'1. Order'!BF910)","v":""},{"$f":"IF('1. Order'!BG910=\"\",\"\",'1. Order'!BG910)","v":""},{"$f":"IF('1. Order'!BH910=\"\",\"\",'1. Order'!BH910)","v":"ZWO"}]
[{"$f":"IF('1. Order'!F911=\"\",\"\",'1. Order'!F911)","v":{"$error":"#N/A"}},{"$f":"IF('1. Order'!G911=\"\",\"\",'1. Order'!G911)","v":""},{"$f":"IF('1. Order'!H911=\"\",\"\",'1. Order'!H911)","v":""},{"$f":"IF('1. Order'!I911=\"\",\"\",'1. Order'!I911)","v":""},{"$f":"IF('1. Order'!J911=\"\",\"\",'1. Order'!J911)","v":""},{"$f":"IF('1. Order'!K911=\"\",\"\",'1. Order'!K911)","v":""},{"$f":"IF('1. Order'!L911=\"\",\"\",'1. Order'!L911)","v":""},{"$f":"IF('1. Order'!M911=\"\",\"\",'1. Order'!M911)","v":""},{"$f":"IF('1. Order'!N911=\"\",\"\",'1. Order'!N911)","v":""},{"$f":"IF('1. Order'!O911=\"\",\"\",'1. Order'!O911)","v":{"$error":"#N/A"}},{"$f":"IF('1. Order'!P911=\"\",\"\",'1. Order'!P911)","v":{"$error":"#N/A"}},{"$f":"IF('1. Order'!Q911=\"\",\"\",'1. Order'!Q911)","v":""},{"$f":"IF('1. Order'!S911=\"\",\"\",'1. Order'!S911)","v":""},{"$f":"IF('1. Order'!T911=\"\",\"\",'1. Order'!T911)","v":""},{"$f":"IF('1. Order'!W911=\"\",\"\",'1. Order'!W911)","v":""},{"$f":"IF('1. Order'!X911=\"\",\"\",'1. Order'!X911)","v":""},{"$f":"IF('1. Order'!Y911=\"\",\"\",'1. Order'!Y911)","v":"EUR"},{"$f":"IF('1. Order'!Z911=\"\",\"\",'1. Order'!Z911)","v":""},{"$f":"IF('1. Order'!AA911=\"\",\"\",'1. Order'!AA911)","v":""},{"$f":"IF('1. Order'!AB911=\"\",\"\",'1. Order'!AB911)","v":""},null,{"$f":"IF('1. Order'!AT911=\"\",\"\",'1. Order'!AT911)","v":""},{"$f":"IF('1. Order'!AU911=\"\",\"\",'1. Order'!AU911)","v":""},null,null,null,null,null,null,null,{"$f":"IF('1. Order'!AY911=\"\",\"\",'1. Order'!AY911)","v":""},{"$f":"IF('1. Order'!AZ911=\"\",\"\",'1. Order'!AZ911)","v":""},{"$f":"IF('1. Order'!BA911=\"\",\"\",'1. Order'!BA911)","v":""},{"$f":"IF('1. Order'!BB911=\"\",\"\",'1. Order'!BB911)","v":""},{"$f":"IF('1. Order'!BD911=\"\",\"\",'1. Order'!BD911)","v":""},{"$f":"IF('1. Order'!BE911=\"\",\"\",'1. Order'!BE911)","v":""},{"$f":"IF('1. Order'!BF911=\"\",\"\",'1. Order'!BF911)","v":""},{"$f":"IF('1. Order'!BG911=\"\",\"\",'1. Order'!BG911)","v":""},{"$f":"IF('1. Order'!BH911=\"\",\"\",'1. Order'!BH911)","v":"ZWO"}]
[{"$f":"IF('1. Order'!F912=\"\",\"\",'1. Order'!F912)","v":{"$error":"#N/A"}},{"$f":"IF('1. Order'!G912=\"\",\"\",'1. Order'!G912)","v":""},{"$f":"IF('1. Order'!H912=\"\",\"\",'1. Order'!H912)","v":""},{"$f":"IF('1. Order'!I912=\"\",\"\",'1. Order'!I912)","v":""},{"$f":"IF('1. Order'!J912=\"\",\"\",'1. Order'!J912)","v":""},{"$f":"IF('1. Order'!K912=\"\",\"\",'1. Order'!K912)","v":""},{"$f":"IF('1. Order'!L912=\"\",\"\",'1. Order'!L912)","v":""},{"$f":"IF('1. Order'!M912=\"\",\"\",'1. Order'!M912)","v":""},{"$f":"IF('1. Order'!N912=\"\",\"\",'1. Order'!N912)","v":""},{"$f":"IF('1. Order'!O912=\"\",\"\",'1. Order'!O912)","v":{"$error":"#N/A"}},{"$f":"IF('1. Order'!P912=\"\",\"\",'1. Order'!P912)","v":{"$error":"#N/A"}},{"$f":"IF('1. Order'!Q912=\"\",\"\",'1. Order'!Q912)","v":""},{"$f":"IF('1. Order'!S912=\"\",\"\",'1. Order'!S912)","v":""},{"$f":"IF('1. Order'!T912=\"\",\"\",'1. Order'!T912)","v":""},{"$f":"IF('1. Order'!W912=\"\",\"\",'1. Order'!W912)","v":""},{"$f":"IF('1. Order'!X912=\"\",\"\",'1. Order'!X912)","v":""},{"$f":"IF('1. Order'!Y912=\"\",\"\",'1. Order'!Y912)","v":"EUR"},{"$f":"IF('1. Order'!Z912=\"\",\"\",'1. Order'!Z912)","v":""},{"$f":"IF('1. Order'!AA912=\"\",\"\",'1. Order'!AA912)","v":""},{"$f":"IF('1. Order'!AB912=\"\",\"\",'1. Order'!AB912)","v":""},null,{"$f":"IF('1. Order'!AT912=\"\",\"\",'1. Order'!AT912)","v":""},{"$f":"IF('1. Order'!AU912=\"\",\"\",'1. Order'!AU912)","v":""},null,null,null,null,null,null,null,{"$f":"IF('1. Order'!AY912=\"\",\"\",'1. Order'!AY912)","v":""},{"$f":"IF('1. Order'!AZ912=\"\",\"\",'1. Order'!AZ912)","v":""},{"$f":"IF('1. Order'!BA912=\"\",\"\",'1. Order'!BA912)","v":""},{"$f":"IF('1. Order'!BB912=\"\",\"\",'1. Order'!BB912)","v":""},{"$f":"IF('1. Order'!BD912=\"\",\"\",'1. Order'!BD912)","v":""},{"$f":"IF('1. Order'!BE912=\"\",\"\",'1. Order'!BE912)","v":""},{"$f":"IF('1. Order'!BF912=\"\",\"\",'1. Order'!BF912)","v":""},{"$f":"IF('1. Order'!BG912=\"\",\"\",'1. Order'!BG912)","v":""},{"$f":"IF('1. Order'!BH912=\"\",\"\",'1. Order'!BH912)","v":"ZWO"}]
[{"$f":"IF('1. Order'!F913=\"\",\"\",'1. Order'!F913)","v":{"$error":"#N/A"}},{"$f":"IF('1. Order'!G913=\"\",\"\",'1. Order'!G913)","v":""},{"$f":"IF('1. Order'!H913=\"\",\"\",'1. Order'!H913)","v":""},{"$f":"IF('1. Order'!I913=\"\",\"\",'1. Order'!I913)","v":""},{"$f":"IF('1. Order'!J913=\"\",\"\",'1. Order'!J913)","v":""},{"$f":"IF('1. Order'!K913=\"\",\"\",'1. Order'!K913)","v":""},{"$f":"IF('1. Order'!L913=\"\",\"\",'1. Order'!L913)","v":""},{"$f":"IF('1. Order'!M913=\"\",\"\",'1. Order'!M913)","v":""},{"$f":"IF('1. Order'!N913=\"\",\"\",'1. Order'!N913)","v":""},{"$f":"IF('1. Order'!O913=\"\",\"\",'1. Order'!O913)","v":{"$error":"#N/A"}},{"$f":"IF('1. Order'!P913=\"\",\"\",'1. Order'!P913)","v":{"$error":"#N/A"}},{"$f":"IF('1. Order'!Q913=\"\",\"\",'1. Order'!Q913)","v":""},{"$f":"IF('1. Order'!S913=\"\",\"\",'1. Order'!S913)","v":""},{"$f":"IF('1. Order'!T913=\"\",\"\",'1. Order'!T913)","v":""},{"$f":"IF('1. Order'!W913=\"\",\"\",'1. Order'!W913)","v":""},{"$f":"IF('1. Order'!X913=\"\",\"\",'1. Order'!X913)","v":""},{"$f":"IF('1. Order'!Y913=\"\",\"\",'1. Order'!Y913)","v":"EUR"},{"$f":"IF('1. Order'!Z913=\"\",\"\",'1. Order'!Z913)","v":""},{"$f":"IF('1. Order'!AA913=\"\",\"\",'1. Order'!AA913)","v":""},{"$f":"IF('1. Order'!AB913=\"\",\"\",'1. Order'!AB913)","v":""},null,{"$f":"IF('1. Order'!AT913=\"\",\"\",'1. Order'!AT913)","v":""},{"$f":"IF('1. Order'!AU913=\"\",\"\",'1. Order'!AU913)","v":""},null,null,null,null,null,null,null,{"$f":"IF('1. Order'!AY913=\"\",\"\",'1. Order'!AY913)","v":""},{"$f":"IF('1. Order'!AZ913=\"\",\"\",'1. Order'!AZ913)","v":""},{"$f":"IF('1. Order'!BA913=\"\",\"\",'1. Order'!BA913)","v":""},{"$f":"IF('1. Order'!BB913=\"\",\"\",'1. Order'!BB913)","v":""},{"$f":"IF('1. Order'!BD913=\"\",\"\",'1. Order'!BD913)","v":""},{"$f":"IF('1. Order'!BE913=\"\",\"\",'1. Order'!BE913)","v":""},{"$f":"IF('1. Order'!BF913=\"\",\"\",'1. Order'!BF913)","v":""},{"$f":"IF('1. Order'!BG913=\"\",\"\",'1. Order'!BG913)","v":""},{"$f":"IF('1. Order'!BH913=\"\",\"\",'1. Order'!BH913)","v":"ZWO"}]
[{"$f":"IF('1. Order'!F914=\"\",\"\",'1. Order'!F914)","v":{"$error":"#N/A"}},{"$f":"IF('1. Order'!G914=\"\",\"\",'1. Order'!G914)","v":""},{"$f":"IF('1. Order'!H914=\"\",\"\",'1. Order'!H914)","v":""},{"$f":"IF('1. Order'!I914=\"\",\"\",'1. Order'!I914)","v":""},{"$f":"IF('1. Order'!J914=\"\",\"\",'1. Order'!J914)","v":""},{"$f":"IF('1. Order'!K914=\"\",\"\",'1. Order'!K914)","v":""},{"$f":"IF('1. Order'!L914=\"\",\"\",'1. Order'!L914)","v":""},{"$f":"IF('1. Order'!M914=\"\",\"\",'1. Order'!M914)","v":""},{"$f":"IF('1. Order'!N914=\"\",\"\",'1. Order'!N914)","v":""},{"$f":"IF('1. Order'!O914=\"\",\"\",'1. Order'!O914)","v":{"$error":"#N/A"}},{"$f":"IF('1. Order'!P914=\"\",\"\",'1. Order'!P914)","v":{"$error":"#N/A"}},{"$f":"IF('1. Order'!Q914=\"\",\"\",'1. Order'!Q914)","v":""},{"$f":"IF('1. Order'!S914=\"\",\"\",'1. Order'!S914)","v":""},{"$f":"IF('1. Order'!T914=\"\",\"\",'1. Order'!T914)","v":""},{"$f":"IF('1. Order'!W914=\"\",\"\",'1. Order'!W914)","v":""},{"$f":"IF('1. Order'!X914=\"\",\"\",'1. Order'!X914)","v":""},{"$f":"IF('1. Order'!Y914=\"\",\"\",'1. Order'!Y914)","v":"EUR"},{"$f":"IF('1. Order'!Z914=\"\",\"\",'1. Order'!Z914)","v":""},{"$f":"IF('1. Order'!AA914=\"\",\"\",'1. Order'!AA914)","v":""},{"$f":"IF('1. Order'!AB914=\"\",\"\",'1. Order'!AB914)","v":""},null,{"$f":"IF('1. Order'!AT914=\"\",\"\",'1. Order'!AT914)","v":""},{"$f":"IF('1. Order'!AU914=\"\",\"\",'1. Order'!AU914)","v":""},null,null,null,null,null,null,null,{"$f":"IF('1. Order'!AY914=\"\",\"\",'1. Order'!AY914)","v":""},{"$f":"IF('1. Order'!AZ914=\"\",\"\",'1. Order'!AZ914)","v":""},{"$f":"IF('1. Order'!BA914=\"\",\"\",'1. Order'!BA914)","v":""},{"$f":"IF('1. Order'!BB914=\"\",\"\",'1. Order'!BB914)","v":""},{"$f":"IF('1. Order'!BD914=\"\",\"\",'1. Order'!BD914)","v":""},{"$f":"IF('1. Order'!BE914=\"\",\"\",'1. Order'!BE914)","v":""},{"$f":"IF('1. Order'!BF914=\"\",\"\",'1. Order'!BF914)","v":""},{"$f":"IF('1. Order'!BG914=\"\",\"\",'1. Order'!BG914)","v":""},{"$f":"IF('1. Order'!BH914=\"\",\"\",'1. Order'!BH914)","v":"ZWO"}]
[{"$f":"IF('1. Order'!F915=\"\",\"\",'1. Order'!F915)","v":{"$error":"#N/A"}},{"$f":"IF('1. Order'!G915=\"\",\"\",'1. Order'!G915)","v":""},{"$f":"IF('1. Order'!H915=\"\",\"\",'1. Order'!H915)","v":""},{"$f":"IF('1. Order'!I915=\"\",\"\",'1. Order'!I915)","v":""},{"$f":"IF('1. Order'!J915=\"\",\"\",'1. Order'!J915)","v":""},{"$f":"IF('1. Order'!K915=\"\",\"\",'1. Order'!K915)","v":""},{"$f":"IF('1. Order'!L915=\"\",\"\",'1. Order'!L915)","v":""},{"$f":"IF('1. Order'!M915=\"\",\"\",'1. Order'!M915)","v":""},{"$f":"IF('1. Order'!N915=\"\",\"\",'1. Order'!N915)","v":""},{"$f":"IF('1. Order'!O915=\"\",\"\",'1. Order'!O915)","v":{"$error":"#N/A"}},{"$f":"IF('1. Order'!P915=\"\",\"\",'1. Order'!P915)","v":{"$error":"#N/A"}},{"$f":"IF('1. Order'!Q915=\"\",\"\",'1. Order'!Q915)","v":""},{"$f":"IF('1. Order'!S915=\"\",\"\",'1. Order'!S915)","v":""},{"$f":"IF('1. Order'!T915=\"\",\"\",'1. Order'!T915)","v":""},{"$f":"IF('1. Order'!W915=\"\",\"\",'1. Order'!W915)","v":""},{"$f":"IF('1. Order'!X915=\"\",\"\",'1. Order'!X915)","v":""},{"$f":"IF('1. Order'!Y915=\"\",\"\",'1. Order'!Y915)","v":"EUR"},{"$f":"IF('1. Order'!Z915=\"\",\"\",'1. Order'!Z915)","v":""},{"$f":"IF('1. Order'!AA915=\"\",\"\",'1. Order'!AA915)","v":""},{"$f":"IF('1. Order'!AB915=\"\",\"\",'1. Order'!AB915)","v":""},null,{"$f":"IF('1. Order'!AT915=\"\",\"\",'1. Order'!AT915)","v":""},{"$f":"IF('1. Order'!AU915=\"\",\"\",'1. Order'!AU915)","v":""},null,null,null,null,null,null,null,{"$f":"IF('1. Order'!AY915=\"\",\"\",'1. Order'!AY915)","v":""},{"$f":"IF('1. Order'!AZ915=\"\",\"\",'1. Order'!AZ915)","v":""},{"$f":"IF('1. Order'!BA915=\"\",\"\",'1. Order'!BA915)","v":""},{"$f":"IF('1. Order'!BB915=\"\",\"\",'1. Order'!BB915)","v":""},{"$f":"IF('1. Order'!BD915=\"\",\"\",'1. Order'!BD915)","v":""},{"$f":"IF('1. Order'!BE915=\"\",\"\",'1. Order'!BE915)","v":""},{"$f":"IF('1. Order'!BF915=\"\",\"\",'1. Order'!BF915)","v":""},{"$f":"IF('1. Order'!BG915=\"\",\"\",'1. Order'!BG915)","v":""},{"$f":"IF('1. Order'!BH915=\"\",\"\",'1. Order'!BH915)","v":"ZWO"}]
[{"$f":"IF('1. Order'!F916=\"\",\"\",'1. Order'!F916)","v":{"$error":"#N/A"}},{"$f":"IF('1. Order'!G916=\"\",\"\",'1. Order'!G916)","v":""},{"$f":"IF('1. Order'!H916=\"\",\"\",'1. Order'!H916)","v":""},{"$f":"IF('1. Order'!I916=\"\",\"\",'1. Order'!I916)","v":""},{"$f":"IF('1. Order'!J916=\"\",\"\",'1. Order'!J916)","v":""},{"$f":"IF('1. Order'!K916=\"\",\"\",'1. Order'!K916)","v":""},{"$f":"IF('1. Order'!L916=\"\",\"\",'1. Order'!L916)","v":""},{"$f":"IF('1. Order'!M916=\"\",\"\",'1. Order'!M916)","v":""},{"$f":"IF('1. Order'!N916=\"\",\"\",'1. Order'!N916)","v":""},{"$f":"IF('1. Order'!O916=\"\",\"\",'1. Order'!O916)","v":{"$error":"#N/A"}},{"$f":"IF('1. Order'!P916=\"\",\"\",'1. Order'!P916)","v":{"$error":"#N/A"}},{"$f":"IF('1. Order'!Q916=\"\",\"\",'1. Order'!Q916)","v":""},{"$f":"IF('1. Order'!S916=\"\",\"\",'1. Order'!S916)","v":""},{"$f":"IF('1. Order'!T916=\"\",\"\",'1. Order'!T916)","v":""},{"$f":"IF('1. Order'!W916=\"\",\"\",'1. Order'!W916)","v":""},{"$f":"IF('1. Order'!X916=\"\",\"\",'1. Order'!X916)","v":""},{"$f":"IF('1. Order'!Y916=\"\",\"\",'1. Order'!Y916)","v":"EUR"},{"$f":"IF('1. Order'!Z916=\"\",\"\",'1. Order'!Z916)","v":""},{"$f":"IF('1. Order'!AA916=\"\",\"\",'1. Order'!AA916)","v":""},{"$f":"IF('1. Order'!AB916=\"\",\"\",'1. Order'!AB916)","v":""},null,{"$f":"IF('1. Order'!AT916=\"\",\"\",'1. Order'!AT916)","v":""},{"$f":"IF('1. Order'!AU916=\"\",\"\",'1. Order'!AU916)","v":""},null,null,null,null,null,null,null,{"$f":"IF('1. Order'!AY916=\"\",\"\",'1. Order'!AY916)","v":""},{"$f":"IF('1. Order'!AZ916=\"\",\"\",'1. Order'!AZ916)","v":""},{"$f":"IF('1. Order'!BA916=\"\",\"\",'1. Order'!BA916)","v":""},{"$f":"IF('1. Order'!BB916=\"\",\"\",'1. Order'!BB916)","v":""},{"$f":"IF('1. Order'!BD916=\"\",\"\",'1. Order'!BD916)","v":""},{"$f":"IF('1. Order'!BE916=\"\",\"\",'1. Order'!BE916)","v":""},{"$f":"IF('1. Order'!BF916=\"\",\"\",'1. Order'!BF916)","v":""},{"$f":"IF('1. Order'!BG916=\"\",\"\",'1. Order'!BG916)","v":""},{"$f":"IF('1. Order'!BH916=\"\",\"\",'1. Order'!BH916)","v":"ZWO"}]
[{"$f":"IF('1. Order'!F917=\"\",\"\",'1. Order'!F917)","v":{"$error":"#N/A"}},{"$f":"IF('1. Order'!G917=\"\",\"\",'1. Order'!G917)","v":""},{"$f":"IF('1. Order'!H917=\"\",\"\",'1. Order'!H917)","v":""},{"$f":"IF('1. Order'!I917=\"\",\"\",'1. Order'!I917)","v":""},{"$f":"IF('1. Order'!J917=\"\",\"\",'1. Order'!J917)","v":""},{"$f":"IF('1. Order'!K917=\"\",\"\",'1. Order'!K917)","v":""},{"$f":"IF('1. Order'!L917=\"\",\"\",'1. Order'!L917)","v":""},{"$f":"IF('1. Order'!M917=\"\",\"\",'1. Order'!M917)","v":""},{"$f":"IF('1. Order'!N917=\"\",\"\",'1. Order'!N917)","v":""},{"$f":"IF('1. Order'!O917=\"\",\"\",'1. Order'!O917)","v":{"$error":"#N/A"}},{"$f":"IF('1. Order'!P917=\"\",\"\",'1. Order'!P917)","v":{"$error":"#N/A"}},{"$f":"IF('1. Order'!Q917=\"\",\"\",'1. Order'!Q917)","v":""},{"$f":"IF('1. Order'!S917=\"\",\"\",'1. Order'!S917)","v":""},{"$f":"IF('1. Order'!T917=\"\",\"\",'1. Order'!T917)","v":""},{"$f":"IF('1. Order'!W917=\"\",\"\",'1. Order'!W917)","v":""},{"$f":"IF('1. Order'!X917=\"\",\"\",'1. Order'!X917)","v":""},{"$f":"IF('1. Order'!Y917=\"\",\"\",'1. Order'!Y917)","v":"EUR"},{"$f":"IF('1. Order'!Z917=\"\",\"\",'1. Order'!Z917)","v":""},{"$f":"IF('1. Order'!AA917=\"\",\"\",'1. Order'!AA917)","v":""},{"$f":"IF('1. Order'!AB917=\"\",\"\",'1. Order'!AB917)","v":""},null,{"$f":"IF('1. Order'!AT917=\"\",\"\",'1. Order'!AT917)","v":""},{"$f":"IF('1. Order'!AU917=\"\",\"\",'1. Order'!AU917)","v":""},null,null,null,null,null,null,null,{"$f":"IF('1. Order'!AY917=\"\",\"\",'1. Order'!AY917)","v":""},{"$f":"IF('1. Order'!AZ917=\"\",\"\",'1. Order'!AZ917)","v":""},{"$f":"IF('1. Order'!BA917=\"\",\"\",'1. Order'!BA917)","v":""},{"$f":"IF('1. Order'!BB917=\"\",\"\",'1. Order'!BB917)","v":""},{"$f":"IF('1. Order'!BD917=\"\",\"\",'1. Order'!BD917)","v":""},{"$f":"IF('1. Order'!BE917=\"\",\"\",'1. Order'!BE917)","v":""},{"$f":"IF('1. Order'!BF917=\"\",\"\",'1. Order'!BF917)","v":""},{"$f":"IF('1. Order'!BG917=\"\",\"\",'1. Order'!BG917)","v":""},{"$f":"IF('1. Order'!BH917=\"\",\"\",'1. Order'!BH917)","v":"ZWO"}]
[{"$f":"IF('1. Order'!F918=\"\",\"\",'1. Order'!F918)","v":{"$error":"#N/A"}},{"$f":"IF('1. Order'!G918=\"\",\"\",'1. Order'!G918)","v":""},{"$f":"IF('1. Order'!H918=\"\",\"\",'1. Order'!H918)","v":""},{"$f":"IF('1. Order'!I918=\"\",\"\",'1. Order'!I918)","v":""},{"$f":"IF('1. Order'!J918=\"\",\"\",'1. Order'!J918)","v":""},{"$f":"IF('1. Order'!K918=\"\",\"\",'1. Order'!K918)","v":""},{"$f":"IF('1. Order'!L918=\"\",\"\",'1. Order'!L918)","v":""},{"$f":"IF('1. Order'!M918=\"\",\"\",'1. Order'!M918)","v":""},{"$f":"IF('1. Order'!N918=\"\",\"\",'1. Order'!N918)","v":""},{"$f":"IF('1. Order'!O918=\"\",\"\",'1. Order'!O918)","v":{"$error":"#N/A"}},{"$f":"IF('1. Order'!P918=\"\",\"\",'1. Order'!P918)","v":{"$error":"#N/A"}},{"$f":"IF('1. Order'!Q918=\"\",\"\",'1. Order'!Q918)","v":""},{"$f":"IF('1. Order'!S918=\"\",\"\",'1. Order'!S918)","v":""},{"$f":"IF('1. Order'!T918=\"\",\"\",'1. Order'!T918)","v":""},{"$f":"IF('1. Order'!W918=\"\",\"\",'1. Order'!W918)","v":""},{"$f":"IF('1. Order'!X918=\"\",\"\",'1. Order'!X918)","v":""},{"$f":"IF('1. Order'!Y918=\"\",\"\",'1. Order'!Y918)","v":"EUR"},{"$f":"IF('1. Order'!Z918=\"\",\"\",'1. Order'!Z918)","v":""},{"$f":"IF('1. Order'!AA918=\"\",\"\",'1. Order'!AA918)","v":""},{"$f":"IF('1. Order'!AB918=\"\",\"\",'1. Order'!AB918)","v":""},null,{"$f":"IF('1. Order'!AT918=\"\",\"\",'1. Order'!AT918)","v":""},{"$f":"IF('1. Order'!AU918=\"\",\"\",'1. Order'!AU918)","v":""},null,null,null,null,null,null,null,{"$f":"IF('1. Order'!AY918=\"\",\"\",'1. Order'!AY918)","v":""},{"$f":"IF('1. Order'!AZ918=\"\",\"\",'1. Order'!AZ918)","v":""},{"$f":"IF('1. Order'!BA918=\"\",\"\",'1. Order'!BA918)","v":""},{"$f":"IF('1. Order'!BB918=\"\",\"\",'1. Order'!BB918)","v":""},{"$f":"IF('1. Order'!BD918=\"\",\"\",'1. Order'!BD918)","v":""},{"$f":"IF('1. Order'!BE918=\"\",\"\",'1. Order'!BE918)","v":""},{"$f":"IF('1. Order'!BF918=\"\",\"\",'1. Order'!BF918)","v":""},{"$f":"IF('1. Order'!BG918=\"\",\"\",'1. Order'!BG918)","v":""},{"$f":"IF('1. Order'!BH918=\"\",\"\",'1. Order'!BH918)","v":"ZWO"}]
[{"$f":"IF('1. Order'!F919=\"\",\"\",'1. Order'!F919)","v":{"$error":"#N/A"}},{"$f":"IF('1. Order'!G919=\"\",\"\",'1. Order'!G919)","v":""},{"$f":"IF('1. Order'!H919=\"\",\"\",'1. Order'!H919)","v":""},{"$f":"IF('1. Order'!I919=\"\",\"\",'1. Order'!I919)","v":""},{"$f":"IF('1. Order'!J919=\"\",\"\",'1. Order'!J919)","v":""},{"$f":"IF('1. Order'!K919=\"\",\"\",'1. Order'!K919)","v":""},{"$f":"IF('1. Order'!L919=\"\",\"\",'1. Order'!L919)","v":""},{"$f":"IF('1. Order'!M919=\"\",\"\",'1. Order'!M919)","v":""},{"$f":"IF('1. Order'!N919=\"\",\"\",'1. Order'!N919)","v":""},{"$f":"IF('1. Order'!O919=\"\",\"\",'1. Order'!O919)","v":{"$error":"#N/A"}},{"$f":"IF('1. Order'!P919=\"\",\"\",'1. Order'!P919)","v":{"$error":"#N/A"}},{"$f":"IF('1. Order'!Q919=\"\",\"\",'1. Order'!Q919)","v":""},{"$f":"IF('1. Order'!S919=\"\",\"\",'1. Order'!S919)","v":""},{"$f":"IF('1. Order'!T919=\"\",\"\",'1. Order'!T919)","v":""},{"$f":"IF('1. Order'!W919=\"\",\"\",'1. Order'!W919)","v":""},{"$f":"IF('1. Order'!X919=\"\",\"\",'1. Order'!X919)","v":""},{"$f":"IF('1. Order'!Y919=\"\",\"\",'1. Order'!Y919)","v":"EUR"},{"$f":"IF('1. Order'!Z919=\"\",\"\",'1. Order'!Z919)","v":""},{"$f":"IF('1. Order'!AA919=\"\",\"\",'1. Order'!AA919)","v":""},{"$f":"IF('1. Order'!AB919=\"\",\"\",'1. Order'!AB919)","v":""},null,{"$f":"IF('1. Order'!AT919=\"\",\"\",'1. Order'!AT919)","v":""},{"$f":"IF('1. Order'!AU919=\"\",\"\",'1. Order'!AU919)","v":""},null,null,null,null,null,null,null,{"$f":"IF('1. Order'!AY919=\"\",\"\",'1. Order'!AY919)","v":""},{"$f":"IF('1. Order'!AZ919=\"\",\"\",'1. Order'!AZ919)","v":""},{"$f":"IF('1. Order'!BA919=\"\",\"\",'1. Order'!BA919)","v":""},{"$f":"IF('1. Order'!BB919=\"\",\"\",'1. Order'!BB919)","v":""},{"$f":"IF('1. Order'!BD919=\"\",\"\",'1. Order'!BD919)","v":""},{"$f":"IF('1. Order'!BE919=\"\",\"\",'1. Order'!BE919)","v":""},{"$f":"IF('1. Order'!BF919=\"\",\"\",'1. Order'!BF919)","v":""},{"$f":"IF('1. Order'!BG919=\"\",\"\",'1. Order'!BG919)","v":""},{"$f":"IF('1. Order'!BH919=\"\",\"\",'1. Order'!BH919)","v":"ZWO"}]
[{"$f":"IF('1. Order'!F920=\"\",\"\",'1. Order'!F920)","v":{"$error":"#N/A"}},{"$f":"IF('1. Order'!G920=\"\",\"\",'1. Order'!G920)","v":""},{"$f":"IF('1. Order'!H920=\"\",\"\",'1. Order'!H920)","v":""},{"$f":"IF('1. Order'!I920=\"\",\"\",'1. Order'!I920)","v":""},{"$f":"IF('1. Order'!J920=\"\",\"\",'1. Order'!J920)","v":""},{"$f":"IF('1. Order'!K920=\"\",\"\",'1. Order'!K920)","v":""},{"$f":"IF('1. Order'!L920=\"\",\"\",'1. Order'!L920)","v":""},{"$f":"IF('1. Order'!M920=\"\",\"\",'1. Order'!M920)","v":""},{"$f":"IF('1. Order'!N920=\"\",\"\",'1. Order'!N920)","v":""},{"$f":"IF('1. Order'!O920=\"\",\"\",'1. Order'!O920)","v":{"$error":"#N/A"}},{"$f":"IF('1. Order'!P920=\"\",\"\",'1. Order'!P920)","v":{"$error":"#N/A"}},{"$f":"IF('1. Order'!Q920=\"\",\"\",'1. Order'!Q920)","v":""},{"$f":"IF('1. Order'!S920=\"\",\"\",'1. Order'!S920)","v":""},{"$f":"IF('1. Order'!T920=\"\",\"\",'1. Order'!T920)","v":""},{"$f":"IF('1. Order'!W920=\"\",\"\",'1. Order'!W920)","v":""},{"$f":"IF('1. Order'!X920=\"\",\"\",'1. Order'!X920)","v":""},{"$f":"IF('1. Order'!Y920=\"\",\"\",'1. Order'!Y920)","v":"EUR"},{"$f":"IF('1. Order'!Z920=\"\",\"\",'1. Order'!Z920)","v":""},{"$f":"IF('1. Order'!AA920=\"\",\"\",'1. Order'!AA920)","v":""},{"$f":"IF('1. Order'!AB920=\"\",\"\",'1. Order'!AB920)","v":""},null,{"$f":"IF('1. Order'!AT920=\"\",\"\",'1. Order'!AT920)","v":""},{"$f":"IF('1. Order'!AU920=\"\",\"\",'1. Order'!AU920)","v":""},null,null,null,null,null,null,null,{"$f":"IF('1. Order'!AY920=\"\",\"\",'1. Order'!AY920)","v":""},{"$f":"IF('1. Order'!AZ920=\"\",\"\",'1. Order'!AZ920)","v":""},{"$f":"IF('1. Order'!BA920=\"\",\"\",'1. Order'!BA920)","v":""},{"$f":"IF('1. Order'!BB920=\"\",\"\",'1. Order'!BB920)","v":""},{"$f":"IF('1. Order'!BD920=\"\",\"\",'1. Order'!BD920)","v":""},{"$f":"IF('1. Order'!BE920=\"\",\"\",'1. Order'!BE920)","v":""},{"$f":"IF('1. Order'!BF920=\"\",\"\",'1. Order'!BF920)","v":""},{"$f":"IF('1. Order'!BG920=\"\",\"\",'1. Order'!BG920)","v":""},{"$f":"IF('1. Order'!BH920=\"\",\"\",'1. Order'!BH920)","v":"ZWO"}]
[{"$f":"IF('1. Order'!F921=\"\",\"\",'1. Order'!F921)","v":{"$error":"#N/A"}},{"$f":"IF('1. Order'!G921=\"\",\"\",'1. Order'!G921)","v":""},{"$f":"IF('1. Order'!H921=\"\",\"\",'1. Order'!H921)","v":""},{"$f":"IF('1. Order'!I921=\"\",\"\",'1. Order'!I921)","v":""},{"$f":"IF('1. Order'!J921=\"\",\"\",'1. Order'!J921)","v":""},{"$f":"IF('1. Order'!K921=\"\",\"\",'1. Order'!K921)","v":""},{"$f":"IF('1. Order'!L921=\"\",\"\",'1. Order'!L921)","v":""},{"$f":"IF('1. Order'!M921=\"\",\"\",'1. Order'!M921)","v":""},{"$f":"IF('1. Order'!N921=\"\",\"\",'1. Order'!N921)","v":""},{"$f":"IF('1. Order'!O921=\"\",\"\",'1. Order'!O921)","v":{"$error":"#N/A"}},{"$f":"IF('1. Order'!P921=\"\",\"\",'1. Order'!P921)","v":{"$error":"#N/A"}},{"$f":"IF('1. Order'!Q921=\"\",\"\",'1. Order'!Q921)","v":""},{"$f":"IF('1. Order'!S921=\"\",\"\",'1. Order'!S921)","v":""},{"$f":"IF('1. Order'!T921=\"\",\"\",'1. Order'!T921)","v":""},{"$f":"IF('1. Order'!W921=\"\",\"\",'1. Order'!W921)","v":""},{"$f":"IF('1. Order'!X921=\"\",\"\",'1. Order'!X921)","v":""},{"$f":"IF('1. Order'!Y921=\"\",\"\",'1. Order'!Y921)","v":"EUR"},{"$f":"IF('1. Order'!Z921=\"\",\"\",'1. Order'!Z921)","v":""},{"$f":"IF('1. Order'!AA921=\"\",\"\",'1. Order'!AA921)","v":""},{"$f":"IF('1. Order'!AB921=\"\",\"\",'1. Order'!AB921)","v":""},null,{"$f":"IF('1. Order'!AT921=\"\",\"\",'1. Order'!AT921)","v":""},{"$f":"IF('1. Order'!AU921=\"\",\"\",'1. Order'!AU921)","v":""},null,null,null,null,null,null,null,{"$f":"IF('1. Order'!AY921=\"\",\"\",'1. Order'!AY921)","v":""},{"$f":"IF('1. Order'!AZ921=\"\",\"\",'1. Order'!AZ921)","v":""},{"$f":"IF('1. Order'!BA921=\"\",\"\",'1. Order'!BA921)","v":""},{"$f":"IF('1. Order'!BB921=\"\",\"\",'1. Order'!BB921)","v":""},{"$f":"IF('1. Order'!BD921=\"\",\"\",'1. Order'!BD921)","v":""},{"$f":"IF('1. Order'!BE921=\"\",\"\",'1. Order'!BE921)","v":""},{"$f":"IF('1. Order'!BF921=\"\",\"\",'1. Order'!BF921)","v":""},{"$f":"IF('1. Order'!BG921=\"\",\"\",'1. Order'!BG921)","v":""},{"$f":"IF('1. Order'!BH921=\"\",\"\",'1. Order'!BH921)","v":"ZWO"}]
[{"$f":"IF('1. Order'!F922=\"\",\"\",'1. Order'!F922)","v":{"$error":"#N/A"}},{"$f":"IF('1. Order'!G922=\"\",\"\",'1. Order'!G922)","v":""},{"$f":"IF('1. Order'!H922=\"\",\"\",'1. Order'!H922)","v":""},{"$f":"IF('1. Order'!I922=\"\",\"\",'1. Order'!I922)","v":""},{"$f":"IF('1. Order'!J922=\"\",\"\",'1. Order'!J922)","v":""},{"$f":"IF('1. Order'!K922=\"\",\"\",'1. Order'!K922)","v":""},{"$f":"IF('1. Order'!L922=\"\",\"\",'1. Order'!L922)","v":""},{"$f":"IF('1. Order'!M922=\"\",\"\",'1. Order'!M922)","v":""},{"$f":"IF('1. Order'!N922=\"\",\"\",'1. Order'!N922)","v":""},{"$f":"IF('1. Order'!O922=\"\",\"\",'1. Order'!O922)","v":{"$error":"#N/A"}},{"$f":"IF('1. Order'!P922=\"\",\"\",'1. Order'!P922)","v":{"$error":"#N/A"}},{"$f":"IF('1. Order'!Q922=\"\",\"\",'1. Order'!Q922)","v":""},{"$f":"IF('1. Order'!S922=\"\",\"\",'1. Order'!S922)","v":""},{"$f":"IF('1. Order'!T922=\"\",\"\",'1. Order'!T922)","v":""},{"$f":"IF('1. Order'!W922=\"\",\"\",'1. Order'!W922)","v":""},{"$f":"IF('1. Order'!X922=\"\",\"\",'1. Order'!X922)","v":""},{"$f":"IF('1. Order'!Y922=\"\",\"\",'1. Order'!Y922)","v":"EUR"},{"$f":"IF('1. Order'!Z922=\"\",\"\",'1. Order'!Z922)","v":""},{"$f":"IF('1. Order'!AA922=\"\",\"\",'1. Order'!AA922)","v":""},{"$f":"IF('1. Order'!AB922=\"\",\"\",'1. Order'!AB922)","v":""},null,{"$f":"IF('1. Order'!AT922=\"\",\"\",'1. Order'!AT922)","v":""},{"$f":"IF('1. Order'!AU922=\"\",\"\",'1. Order'!AU922)","v":""},null,null,null,null,null,null,null,{"$f":"IF('1. Order'!AY922=\"\",\"\",'1. Order'!AY922)","v":""},{"$f":"IF('1. Order'!AZ922=\"\",\"\",'1. Order'!AZ922)","v":""},{"$f":"IF('1. Order'!BA922=\"\",\"\",'1. Order'!BA922)","v":""},{"$f":"IF('1. Order'!BB922=\"\",\"\",'1. Order'!BB922)","v":""},{"$f":"IF('1. Order'!BD922=\"\",\"\",'1. Order'!BD922)","v":""},{"$f":"IF('1. Order'!BE922=\"\",\"\",'1. Order'!BE922)","v":""},{"$f":"IF('1. Order'!BF922=\"\",\"\",'1. Order'!BF922)","v":""},{"$f":"IF('1. Order'!BG922=\"\",\"\",'1. Order'!BG922)","v":""},{"$f":"IF('1. Order'!BH922=\"\",\"\",'1. Order'!BH922)","v":"ZWO"}]
[{"$f":"IF('1. Order'!F923=\"\",\"\",'1. Order'!F923)","v":{"$error":"#N/A"}},{"$f":"IF('1. Order'!G923=\"\",\"\",'1. Order'!G923)","v":""},{"$f":"IF('1. Order'!H923=\"\",\"\",'1. Order'!H923)","v":""},{"$f":"IF('1. Order'!I923=\"\",\"\",'1. Order'!I923)","v":""},{"$f":"IF('1. Order'!J923=\"\",\"\",'1. Order'!J923)","v":""},{"$f":"IF('1. Order'!K923=\"\",\"\",'1. Order'!K923)","v":""},{"$f":"IF('1. Order'!L923=\"\",\"\",'1. Order'!L923)","v":""},{"$f":"IF('1. Order'!M923=\"\",\"\",'1. Order'!M923)","v":""},{"$f":"IF('1. Order'!N923=\"\",\"\",'1. Order'!N923)","v":""},{"$f":"IF('1. Order'!O923=\"\",\"\",'1. Order'!O923)","v":{"$error":"#N/A"}},{"$f":"IF('1. Order'!P923=\"\",\"\",'1. Order'!P923)","v":{"$error":"#N/A"}},{"$f":"IF('1. Order'!Q923=\"\",\"\",'1. Order'!Q923)","v":""},{"$f":"IF('1. Order'!S923=\"\",\"\",'1. Order'!S923)","v":""},{"$f":"IF('1. Order'!T923=\"\",\"\",'1. Order'!T923)","v":""},{"$f":"IF('1. Order'!W923=\"\",\"\",'1. Order'!W923)","v":""},{"$f":"IF('1. Order'!X923=\"\",\"\",'1. Order'!X923)","v":""},{"$f":"IF('1. Order'!Y923=\"\",\"\",'1. Order'!Y923)","v":"EUR"},{"$f":"IF('1. Order'!Z923=\"\",\"\",'1. Order'!Z923)","v":""},{"$f":"IF('1. Order'!AA923=\"\",\"\",'1. Order'!AA923)","v":""},{"$f":"IF('1. Order'!AB923=\"\",\"\",'1. Order'!AB923)","v":""},null,{"$f":"IF('1. Order'!AT923=\"\",\"\",'1. Order'!AT923)","v":""},{"$f":"IF('1. Order'!AU923=\"\",\"\",'1. Order'!AU923)","v":""},null,null,null,null,null,null,null,{"$f":"IF('1. Order'!AY923=\"\",\"\",'1. Order'!AY923)","v":""},{"$f":"IF('1. Order'!AZ923=\"\",\"\",'1. Order'!AZ923)","v":""},{"$f":"IF('1. Order'!BA923=\"\",\"\",'1. Order'!BA923)","v":""},{"$f":"IF('1. Order'!BB923=\"\",\"\",'1. Order'!BB923)","v":""},{"$f":"IF('1. Order'!BD923=\"\",\"\",'1. Order'!BD923)","v":""},{"$f":"IF('1. Order'!BE923=\"\",\"\",'1. Order'!BE923)","v":""},{"$f":"IF('1. Order'!BF923=\"\",\"\",'1. Order'!BF923)","v":""},{"$f":"IF('1. Order'!BG923=\"\",\"\",'1. Order'!BG923)","v":""},{"$f":"IF('1. Order'!BH923=\"\",\"\",'1. Order'!BH923)","v":"ZWO"}]
[{"$f":"IF('1. Order'!F924=\"\",\"\",'1. Order'!F924)","v":{"$error":"#N/A"}},{"$f":"IF('1. Order'!G924=\"\",\"\",'1. Order'!G924)","v":""},{"$f":"IF('1. Order'!H924=\"\",\"\",'1. Order'!H924)","v":""},{"$f":"IF('1. Order'!I924=\"\",\"\",'1. Order'!I924)","v":""},{"$f":"IF('1. Order'!J924=\"\",\"\",'1. Order'!J924)","v":""},{"$f":"IF('1. Order'!K924=\"\",\"\",'1. Order'!K924)","v":""},{"$f":"IF('1. Order'!L924=\"\",\"\",'1. Order'!L924)","v":""},{"$f":"IF('1. Order'!M924=\"\",\"\",'1. Order'!M924)","v":""},{"$f":"IF('1. Order'!N924=\"\",\"\",'1. Order'!N924)","v":""},{"$f":"IF('1. Order'!O924=\"\",\"\",'1. Order'!O924)","v":{"$error":"#N/A"}},{"$f":"IF('1. Order'!P924=\"\",\"\",'1. Order'!P924)","v":{"$error":"#N/A"}},{"$f":"IF('1. Order'!Q924=\"\",\"\",'1. Order'!Q924)","v":""},{"$f":"IF('1. Order'!S924=\"\",\"\",'1. Order'!S924)","v":""},{"$f":"IF('1. Order'!T924=\"\",\"\",'1. Order'!T924)","v":""},{"$f":"IF('1. Order'!W924=\"\",\"\",'1. Order'!W924)","v":""},{"$f":"IF('1. Order'!X924=\"\",\"\",'1. Order'!X924)","v":""},{"$f":"IF('1. Order'!Y924=\"\",\"\",'1. Order'!Y924)","v":"EUR"},{"$f":"IF('1. Order'!Z924=\"\",\"\",'1. Order'!Z924)","v":""},{"$f":"IF('1. Order'!AA924=\"\",\"\",'1. Order'!AA924)","v":""},{"$f":"IF('1. Order'!AB924=\"\",\"\",'1. Order'!AB924)","v":""},null,{"$f":"IF('1. Order'!AT924=\"\",\"\",'1. Order'!AT924)","v":""},{"$f":"IF('1. Order'!AU924=\"\",\"\",'1. Order'!AU924)","v":""},null,null,null,null,null,null,null,{"$f":"IF('1. Order'!AY924=\"\",\"\",'1. Order'!AY924)","v":""},{"$f":"IF('1. Order'!AZ924=\"\",\"\",'1. Order'!AZ924)","v":""},{"$f":"IF('1. Order'!BA924=\"\",\"\",'1. Order'!BA924)","v":""},{"$f":"IF('1. Order'!BB924=\"\",\"\",'1. Order'!BB924)","v":""},{"$f":"IF('1. Order'!BD924=\"\",\"\",'1. Order'!BD924)","v":""},{"$f":"IF('1. Order'!BE924=\"\",\"\",'1. Order'!BE924)","v":""},{"$f":"IF('1. Order'!BF924=\"\",\"\",'1. Order'!BF924)","v":""},{"$f":"IF('1. Order'!BG924=\"\",\"\",'1. Order'!BG924)","v":""},{"$f":"IF('1. Order'!BH924=\"\",\"\",'1. Order'!BH924)","v":"ZWO"}]
[{"$f":"IF('1. Order'!F925=\"\",\"\",'1. Order'!F925)","v":{"$error":"#N/A"}},{"$f":"IF('1. Order'!G925=\"\",\"\",'1. Order'!G925)","v":""},{"$f":"IF('1. Order'!H925=\"\",\"\",'1. Order'!H925)","v":""},{"$f":"IF('1. Order'!I925=\"\",\"\",'1. Order'!I925)","v":""},{"$f":"IF('1. Order'!J925=\"\",\"\",'1. Order'!J925)","v":""},{"$f":"IF('1. Order'!K925=\"\",\"\",'1. Order'!K925)","v":""},{"$f":"IF('1. Order'!L925=\"\",\"\",'1. Order'!L925)","v":""},{"$f":"IF('1. Order'!M925=\"\",\"\",'1. Order'!M925)","v":""},{"$f":"IF('1. Order'!N925=\"\",\"\",'1. Order'!N925)","v":""},{"$f":"IF('1. Order'!O925=\"\",\"\",'1. Order'!O925)","v":{"$error":"#N/A"}},{"$f":"IF('1. Order'!P925=\"\",\"\",'1. Order'!P925)","v":{"$error":"#N/A"}},{"$f":"IF('1. Order'!Q925=\"\",\"\",'1. Order'!Q925)","v":""},{"$f":"IF('1. Order'!S925=\"\",\"\",'1. Order'!S925)","v":""},{"$f":"IF('1. Order'!T925=\"\",\"\",'1. Order'!T925)","v":""},{"$f":"IF('1. Order'!W925=\"\",\"\",'1. Order'!W925)","v":""},{"$f":"IF('1. Order'!X925=\"\",\"\",'1. Order'!X925)","v":""},{"$f":"IF('1. Order'!Y925=\"\",\"\",'1. Order'!Y925)","v":"EUR"},{"$f":"IF('1. Order'!Z925=\"\",\"\",'1. Order'!Z925)","v":""},{"$f":"IF('1. Order'!AA925=\"\",\"\",'1. Order'!AA925)","v":""},{"$f":"IF('1. Order'!AB925=\"\",\"\",'1. Order'!AB925)","v":""},null,{"$f":"IF('1. Order'!AT925=\"\",\"\",'1. Order'!AT925)","v":""},{"$f":"IF('1. Order'!AU925=\"\",\"\",'1. Order'!AU925)","v":""},null,null,null,null,null,null,null,{"$f":"IF('1. Order'!AY925=\"\",\"\",'1. Order'!AY925)","v":""},{"$f":"IF('1. Order'!AZ925=\"\",\"\",'1. Order'!AZ925)","v":""},{"$f":"IF('1. Order'!BA925=\"\",\"\",'1. Order'!BA925)","v":""},{"$f":"IF('1. Order'!BB925=\"\",\"\",'1. Order'!BB925)","v":""},{"$f":"IF('1. Order'!BD925=\"\",\"\",'1. Order'!BD925)","v":""},{"$f":"IF('1. Order'!BE925=\"\",\"\",'1. Order'!BE925)","v":""},{"$f":"IF('1. Order'!BF925=\"\",\"\",'1. Order'!BF925)","v":""},{"$f":"IF('1. Order'!BG925=\"\",\"\",'1. Order'!BG925)","v":""},{"$f":"IF('1. Order'!BH925=\"\",\"\",'1. Order'!BH925)","v":"ZWO"}]
[{"$f":"IF('1. Order'!F926=\"\",\"\",'1. Order'!F926)","v":{"$error":"#N/A"}},{"$f":"IF('1. Order'!G926=\"\",\"\",'1. Order'!G926)","v":""},{"$f":"IF('1. Order'!H926=\"\",\"\",'1. Order'!H926)","v":""},{"$f":"IF('1. Order'!I926=\"\",\"\",'1. Order'!I926)","v":""},{"$f":"IF('1. Order'!J926=\"\",\"\",'1. Order'!J926)","v":""},{"$f":"IF('1. Order'!K926=\"\",\"\",'1. Order'!K926)","v":""},{"$f":"IF('1. Order'!L926=\"\",\"\",'1. Order'!L926)","v":""},{"$f":"IF('1. Order'!M926=\"\",\"\",'1. Order'!M926)","v":""},{"$f":"IF('1. Order'!N926=\"\",\"\",'1. Order'!N926)","v":""},{"$f":"IF('1. Order'!O926=\"\",\"\",'1. Order'!O926)","v":{"$error":"#N/A"}},{"$f":"IF('1. Order'!P926=\"\",\"\",'1. Order'!P926)","v":{"$error":"#N/A"}},{"$f":"IF('1. Order'!Q926=\"\",\"\",'1. Order'!Q926)","v":""},{"$f":"IF('1. Order'!S926=\"\",\"\",'1. Order'!S926)","v":""},{"$f":"IF('1. Order'!T926=\"\",\"\",'1. Order'!T926)","v":""},{"$f":"IF('1. Order'!W926=\"\",\"\",'1. Order'!W926)","v":""},{"$f":"IF('1. Order'!X926=\"\",\"\",'1. Order'!X926)","v":""},{"$f":"IF('1. Order'!Y926=\"\",\"\",'1. Order'!Y926)","v":"EUR"},{"$f":"IF('1. Order'!Z926=\"\",\"\",'1. Order'!Z926)","v":""},{"$f":"IF('1. Order'!AA926=\"\",\"\",'1. Order'!AA926)","v":""},{"$f":"IF('1. Order'!AB926=\"\",\"\",'1. Order'!AB926)","v":""},null,{"$f":"IF('1. Order'!AT926=\"\",\"\",'1. Order'!AT926)","v":""},{"$f":"IF('1. Order'!AU926=\"\",\"\",'1. Order'!AU926)","v":""},null,null,null,null,null,null,null,{"$f":"IF('1. Order'!AY926=\"\",\"\",'1. Order'!AY926)","v":""},{"$f":"IF('1. Order'!AZ926=\"\",\"\",'1. Order'!AZ926)","v":""},{"$f":"IF('1. Order'!BA926=\"\",\"\",'1. Order'!BA926)","v":""},{"$f":"IF('1. Order'!BB926=\"\",\"\",'1. Order'!BB926)","v":""},{"$f":"IF('1. Order'!BD926=\"\",\"\",'1. Order'!BD926)","v":""},{"$f":"IF('1. Order'!BE926=\"\",\"\",'1. Order'!BE926)","v":""},{"$f":"IF('1. Order'!BF926=\"\",\"\",'1. Order'!BF926)","v":""},{"$f":"IF('1. Order'!BG926=\"\",\"\",'1. Order'!BG926)","v":""},{"$f":"IF('1. Order'!BH926=\"\",\"\",'1. Order'!BH926)","v":"ZWO"}]
[{"$f":"IF('1. Order'!F927=\"\",\"\",'1. Order'!F927)","v":{"$error":"#N/A"}},{"$f":"IF('1. Order'!G927=\"\",\"\",'1. Order'!G927)","v":""},{"$f":"IF('1. Order'!H927=\"\",\"\",'1. Order'!H927)","v":""},{"$f":"IF('1. Order'!I927=\"\",\"\",'1. Order'!I927)","v":""},{"$f":"IF('1. Order'!J927=\"\",\"\",'1. Order'!J927)","v":""},{"$f":"IF('1. Order'!K927=\"\",\"\",'1. Order'!K927)","v":""},{"$f":"IF('1. Order'!L927=\"\",\"\",'1. Order'!L927)","v":""},{"$f":"IF('1. Order'!M927=\"\",\"\",'1. Order'!M927)","v":""},{"$f":"IF('1. Order'!N927=\"\",\"\",'1. Order'!N927)","v":""},{"$f":"IF('1. Order'!O927=\"\",\"\",'1. Order'!O927)","v":{"$error":"#N/A"}},{"$f":"IF('1. Order'!P927=\"\",\"\",'1. Order'!P927)","v":{"$error":"#N/A"}},{"$f":"IF('1. Order'!Q927=\"\",\"\",'1. Order'!Q927)","v":""},{"$f":"IF('1. Order'!S927=\"\",\"\",'1. Order'!S927)","v":""},{"$f":"IF('1. Order'!T927=\"\",\"\",'1. Order'!T927)","v":""},{"$f":"IF('1. Order'!W927=\"\",\"\",'1. Order'!W927)","v":""},{"$f":"IF('1. Order'!X927=\"\",\"\",'1. Order'!X927)","v":""},{"$f":"IF('1. Order'!Y927=\"\",\"\",'1. Order'!Y927)","v":"EUR"},{"$f":"IF('1. Order'!Z927=\"\",\"\",'1. Order'!Z927)","v":""},{"$f":"IF('1. Order'!AA927=\"\",\"\",'1. Order'!AA927)","v":""},{"$f":"IF('1. Order'!AB927=\"\",\"\",'1. Order'!AB927)","v":""},null,{"$f":"IF('1. Order'!AT927=\"\",\"\",'1. Order'!AT927)","v":""},{"$f":"IF('1. Order'!AU927=\"\",\"\",'1. Order'!AU927)","v":""},null,null,null,null,null,null,null,{"$f":"IF('1. Order'!AY927=\"\",\"\",'1. Order'!AY927)","v":""},{"$f":"IF('1. Order'!AZ927=\"\",\"\",'1. Order'!AZ927)","v":""},{"$f":"IF('1. Order'!BA927=\"\",\"\",'1. Order'!BA927)","v":""},{"$f":"IF('1. Order'!BB927=\"\",\"\",'1. Order'!BB927)","v":""},{"$f":"IF('1. Order'!BD927=\"\",\"\",'1. Order'!BD927)","v":""},{"$f":"IF('1. Order'!BE927=\"\",\"\",'1. Order'!BE927)","v":""},{"$f":"IF('1. Order'!BF927=\"\",\"\",'1. Order'!BF927)","v":""},{"$f":"IF('1. Order'!BG927=\"\",\"\",'1. Order'!BG927)","v":""},{"$f":"IF('1. Order'!BH927=\"\",\"\",'1. Order'!BH927)","v":"ZWO"}]
[{"$f":"IF('1. Order'!F928=\"\",\"\",'1. Order'!F928)","v":{"$error":"#N/A"}},{"$f":"IF('1. Order'!G928=\"\",\"\",'1. Order'!G928)","v":""},{"$f":"IF('1. Order'!H928=\"\",\"\",'1. Order'!H928)","v":""},{"$f":"IF('1. Order'!I928=\"\",\"\",'1. Order'!I928)","v":""},{"$f":"IF('1. Order'!J928=\"\",\"\",'1. Order'!J928)","v":""},{"$f":"IF('1. Order'!K928=\"\",\"\",'1. Order'!K928)","v":""},{"$f":"IF('1. Order'!L928=\"\",\"\",'1. Order'!L928)","v":""},{"$f":"IF('1. Order'!M928=\"\",\"\",'1. Order'!M928)","v":""},{"$f":"IF('1. Order'!N928=\"\",\"\",'1. Order'!N928)","v":""},{"$f":"IF('1. Order'!O928=\"\",\"\",'1. Order'!O928)","v":{"$error":"#N/A"}},{"$f":"IF('1. Order'!P928=\"\",\"\",'1. Order'!P928)","v":{"$error":"#N/A"}},{"$f":"IF('1. Order'!Q928=\"\",\"\",'1. Order'!Q928)","v":""},{"$f":"IF('1. Order'!S928=\"\",\"\",'1. Order'!S928)","v":""},{"$f":"IF('1. Order'!T928=\"\",\"\",'1. Order'!T928)","v":""},{"$f":"IF('1. Order'!W928=\"\",\"\",'1. Order'!W928)","v":""},{"$f":"IF('1. Order'!X928=\"\",\"\",'1. Order'!X928)","v":""},{"$f":"IF('1. Order'!Y928=\"\",\"\",'1. Order'!Y928)","v":"EUR"},{"$f":"IF('1. Order'!Z928=\"\",\"\",'1. Order'!Z928)","v":""},{"$f":"IF('1. Order'!AA928=\"\",\"\",'1. Order'!AA928)","v":""},{"$f":"IF('1. Order'!AB928=\"\",\"\",'1. Order'!AB928)","v":""},null,{"$f":"IF('1. Order'!AT928=\"\",\"\",'1. Order'!AT928)","v":""},{"$f":"IF('1. Order'!AU928=\"\",\"\",'1. Order'!AU928)","v":""},null,null,null,null,null,null,null,{"$f":"IF('1. Order'!AY928=\"\",\"\",'1. Order'!AY928)","v":""},{"$f":"IF('1. Order'!AZ928=\"\",\"\",'1. Order'!AZ928)","v":""},{"$f":"IF('1. Order'!BA928=\"\",\"\",'1. Order'!BA928)","v":""},{"$f":"IF('1. Order'!BB928=\"\",\"\",'1. Order'!BB928)","v":""},{"$f":"IF('1. Order'!BD928=\"\",\"\",'1. Order'!BD928)","v":""},{"$f":"IF('1. Order'!BE928=\"\",\"\",'1. Order'!BE928)","v":""},{"$f":"IF('1. Order'!BF928=\"\",\"\",'1. Order'!BF928)","v":""},{"$f":"IF('1. Order'!BG928=\"\",\"\",'1. Order'!BG928)","v":""},{"$f":"IF('1. Order'!BH928=\"\",\"\",'1. Order'!BH928)","v":"ZWO"}]
[{"$f":"IF('1. Order'!F929=\"\",\"\",'1. Order'!F929)","v":{"$error":"#N/A"}},{"$f":"IF('1. Order'!G929=\"\",\"\",'1. Order'!G929)","v":""},{"$f":"IF('1. Order'!H929=\"\",\"\",'1. Order'!H929)","v":""},{"$f":"IF('1. Order'!I929=\"\",\"\",'1. Order'!I929)","v":""},{"$f":"IF('1. Order'!J929=\"\",\"\",'1. Order'!J929)","v":""},{"$f":"IF('1. Order'!K929=\"\",\"\",'1. Order'!K929)","v":""},{"$f":"IF('1. Order'!L929=\"\",\"\",'1. Order'!L929)","v":""},{"$f":"IF('1. Order'!M929=\"\",\"\",'1. Order'!M929)","v":""},{"$f":"IF('1. Order'!N929=\"\",\"\",'1. Order'!N929)","v":""},{"$f":"IF('1. Order'!O929=\"\",\"\",'1. Order'!O929)","v":{"$error":"#N/A"}},{"$f":"IF('1. Order'!P929=\"\",\"\",'1. Order'!P929)","v":{"$error":"#N/A"}},{"$f":"IF('1. Order'!Q929=\"\",\"\",'1. Order'!Q929)","v":""},{"$f":"IF('1. Order'!S929=\"\",\"\",'1. Order'!S929)","v":""},{"$f":"IF('1. Order'!T929=\"\",\"\",'1. Order'!T929)","v":""},{"$f":"IF('1. Order'!W929=\"\",\"\",'1. Order'!W929)","v":""},{"$f":"IF('1. Order'!X929=\"\",\"\",'1. Order'!X929)","v":""},{"$f":"IF('1. Order'!Y929=\"\",\"\",'1. Order'!Y929)","v":"EUR"},{"$f":"IF('1. Order'!Z929=\"\",\"\",'1. Order'!Z929)","v":""},{"$f":"IF('1. Order'!AA929=\"\",\"\",'1. Order'!AA929)","v":""},{"$f":"IF('1. Order'!AB929=\"\",\"\",'1. Order'!AB929)","v":""},null,{"$f":"IF('1. Order'!AT929=\"\",\"\",'1. Order'!AT929)","v":""},{"$f":"IF('1. Order'!AU929=\"\",\"\",'1. Order'!AU929)","v":""},null,null,null,null,null,null,null,{"$f":"IF('1. Order'!AY929=\"\",\"\",'1. Order'!AY929)","v":""},{"$f":"IF('1. Order'!AZ929=\"\",\"\",'1. Order'!AZ929)","v":""},{"$f":"IF('1. Order'!BA929=\"\",\"\",'1. Order'!BA929)","v":""},{"$f":"IF('1. Order'!BB929=\"\",\"\",'1. Order'!BB929)","v":""},{"$f":"IF('1. Order'!BD929=\"\",\"\",'1. Order'!BD929)","v":""},{"$f":"IF('1. Order'!BE929=\"\",\"\",'1. Order'!BE929)","v":""},{"$f":"IF('1. Order'!BF929=\"\",\"\",'1. Order'!BF929)","v":""},{"$f":"IF('1. Order'!BG929=\"\",\"\",'1. Order'!BG929)","v":""},{"$f":"IF('1. Order'!BH929=\"\",\"\",'1. Order'!BH929)","v":"ZWO"}]
[{"$f":"IF('1. Order'!F930=\"\",\"\",'1. Order'!F930)","v":{"$error":"#N/A"}},{"$f":"IF('1. Order'!G930=\"\",\"\",'1. Order'!G930)","v":""},{"$f":"IF('1. Order'!H930=\"\",\"\",'1. Order'!H930)","v":""},{"$f":"IF('1. Order'!I930=\"\",\"\",'1. Order'!I930)","v":""},{"$f":"IF('1. Order'!J930=\"\",\"\",'1. Order'!J930)","v":""},{"$f":"IF('1. Order'!K930=\"\",\"\",'1. Order'!K930)","v":""},{"$f":"IF('1. Order'!L930=\"\",\"\",'1. Order'!L930)","v":""},{"$f":"IF('1. Order'!M930=\"\",\"\",'1. Order'!M930)","v":""},{"$f":"IF('1. Order'!N930=\"\",\"\",'1. Order'!N930)","v":""},{"$f":"IF('1. Order'!O930=\"\",\"\",'1. Order'!O930)","v":{"$error":"#N/A"}},{"$f":"IF('1. Order'!P930=\"\",\"\",'1. Order'!P930)","v":{"$error":"#N/A"}},{"$f":"IF('1. Order'!Q930=\"\",\"\",'1. Order'!Q930)","v":""},{"$f":"IF('1. Order'!S930=\"\",\"\",'1. Order'!S930)","v":""},{"$f":"IF('1. Order'!T930=\"\",\"\",'1. Order'!T930)","v":""},{"$f":"IF('1. Order'!W930=\"\",\"\",'1. Order'!W930)","v":""},{"$f":"IF('1. Order'!X930=\"\",\"\",'1. Order'!X930)","v":""},{"$f":"IF('1. Order'!Y930=\"\",\"\",'1. Order'!Y930)","v":"EUR"},{"$f":"IF('1. Order'!Z930=\"\",\"\",'1. Order'!Z930)","v":""},{"$f":"IF('1. Order'!AA930=\"\",\"\",'1. Order'!AA930)","v":""},{"$f":"IF('1. Order'!AB930=\"\",\"\",'1. Order'!AB930)","v":""},null,{"$f":"IF('1. Order'!AT930=\"\",\"\",'1. Order'!AT930)","v":""},{"$f":"IF('1. Order'!AU930=\"\",\"\",'1. Order'!AU930)","v":""},null,null,null,null,null,null,null,{"$f":"IF('1. Order'!AY930=\"\",\"\",'1. Order'!AY930)","v":""},{"$f":"IF('1. Order'!AZ930=\"\",\"\",'1. Order'!AZ930)","v":""},{"$f":"IF('1. Order'!BA930=\"\",\"\",'1. Order'!BA930)","v":""},{"$f":"IF('1. Order'!BB930=\"\",\"\",'1. Order'!BB930)","v":""},{"$f":"IF('1. Order'!BD930=\"\",\"\",'1. Order'!BD930)","v":""},{"$f":"IF('1. Order'!BE930=\"\",\"\",'1. Order'!BE930)","v":""},{"$f":"IF('1. Order'!BF930=\"\",\"\",'1. Order'!BF930)","v":""},{"$f":"IF('1. Order'!BG930=\"\",\"\",'1. Order'!BG930)","v":""},{"$f":"IF('1. Order'!BH930=\"\",\"\",'1. Order'!BH930)","v":"ZWO"}]
[{"$f":"IF('1. Order'!F931=\"\",\"\",'1. Order'!F931)","v":{"$error":"#N/A"}},{"$f":"IF('1. Order'!G931=\"\",\"\",'1. Order'!G931)","v":""},{"$f":"IF('1. Order'!H931=\"\",\"\",'1. Order'!H931)","v":""},{"$f":"IF('1. Order'!I931=\"\",\"\",'1. Order'!I931)","v":""},{"$f":"IF('1. Order'!J931=\"\",\"\",'1. Order'!J931)","v":""},{"$f":"IF('1. Order'!K931=\"\",\"\",'1. Order'!K931)","v":""},{"$f":"IF('1. Order'!L931=\"\",\"\",'1. Order'!L931)","v":""},{"$f":"IF('1. Order'!M931=\"\",\"\",'1. Order'!M931)","v":""},{"$f":"IF('1. Order'!N931=\"\",\"\",'1. Order'!N931)","v":""},{"$f":"IF('1. Order'!O931=\"\",\"\",'1. Order'!O931)","v":{"$error":"#N/A"}},{"$f":"IF('1. Order'!P931=\"\",\"\",'1. Order'!P931)","v":{"$error":"#N/A"}},{"$f":"IF('1. Order'!Q931=\"\",\"\",'1. Order'!Q931)","v":""},{"$f":"IF('1. Order'!S931=\"\",\"\",'1. Order'!S931)","v":""},{"$f":"IF('1. Order'!T931=\"\",\"\",'1. Order'!T931)","v":""},{"$f":"IF('1. Order'!W931=\"\",\"\",'1. Order'!W931)","v":""},{"$f":"IF('1. Order'!X931=\"\",\"\",'1. Order'!X931)","v":""},{"$f":"IF('1. Order'!Y931=\"\",\"\",'1. Order'!Y931)","v":"EUR"},{"$f":"IF('1. Order'!Z931=\"\",\"\",'1. Order'!Z931)","v":""},{"$f":"IF('1. Order'!AA931=\"\",\"\",'1. Order'!AA931)","v":""},{"$f":"IF('1. Order'!AB931=\"\",\"\",'1. Order'!AB931)","v":""},null,{"$f":"IF('1. Order'!AT931=\"\",\"\",'1. Order'!AT931)","v":""},{"$f":"IF('1. Order'!AU931=\"\",\"\",'1. Order'!AU931)","v":""},null,null,null,null,null,null,null,{"$f":"IF('1. Order'!AY931=\"\",\"\",'1. Order'!AY931)","v":""},{"$f":"IF('1. Order'!AZ931=\"\",\"\",'1. Order'!AZ931)","v":""},{"$f":"IF('1. Order'!BA931=\"\",\"\",'1. Order'!BA931)","v":""},{"$f":"IF('1. Order'!BB931=\"\",\"\",'1. Order'!BB931)","v":""},{"$f":"IF('1. Order'!BD931=\"\",\"\",'1. Order'!BD931)","v":""},{"$f":"IF('1. Order'!BE931=\"\",\"\",'1. Order'!BE931)","v":""},{"$f":"IF('1. Order'!BF931=\"\",\"\",'1. Order'!BF931)","v":""},{"$f":"IF('1. Order'!BG931=\"\",\"\",'1. Order'!BG931)","v":""},{"$f":"IF('1. Order'!BH931=\"\",\"\",'1. Order'!BH931)","v":"ZWO"}]
[{"$f":"IF('1. Order'!F932=\"\",\"\",'1. Order'!F932)","v":{"$error":"#N/A"}},{"$f":"IF('1. Order'!G932=\"\",\"\",'1. Order'!G932)","v":""},{"$f":"IF('1. Order'!H932=\"\",\"\",'1. Order'!H932)","v":""},{"$f":"IF('1. Order'!I932=\"\",\"\",'1. Order'!I932)","v":""},{"$f":"IF('1. Order'!J932=\"\",\"\",'1. Order'!J932)","v":""},{"$f":"IF('1. Order'!K932=\"\",\"\",'1. Order'!K932)","v":""},{"$f":"IF('1. Order'!L932=\"\",\"\",'1. Order'!L932)","v":""},{"$f":"IF('1. Order'!M932=\"\",\"\",'1. Order'!M932)","v":""},{"$f":"IF('1. Order'!N932=\"\",\"\",'1. Order'!N932)","v":""},{"$f":"IF('1. Order'!O932=\"\",\"\",'1. Order'!O932)","v":{"$error":"#N/A"}},{"$f":"IF('1. Order'!P932=\"\",\"\",'1. Order'!P932)","v":{"$error":"#N/A"}},{"$f":"IF('1. Order'!Q932=\"\",\"\",'1. Order'!Q932)","v":""},{"$f":"IF('1. Order'!S932=\"\",\"\",'1. Order'!S932)","v":""},{"$f":"IF('1. Order'!T932=\"\",\"\",'1. Order'!T932)","v":""},{"$f":"IF('1. Order'!W932=\"\",\"\",'1. Order'!W932)","v":""},{"$f":"IF('1. Order'!X932=\"\",\"\",'1. Order'!X932)","v":""},{"$f":"IF('1. Order'!Y932=\"\",\"\",'1. Order'!Y932)","v":"EUR"},{"$f":"IF('1. Order'!Z932=\"\",\"\",'1. Order'!Z932)","v":""},{"$f":"IF('1. Order'!AA932=\"\",\"\",'1. Order'!AA932)","v":""},{"$f":"IF('1. Order'!AB932=\"\",\"\",'1. Order'!AB932)","v":""},null,{"$f":"IF('1. Order'!AT932=\"\",\"\",'1. Order'!AT932)","v":""},{"$f":"IF('1. Order'!AU932=\"\",\"\",'1. Order'!AU932)","v":""},null,null,null,null,null,null,null,{"$f":"IF('1. Order'!AY932=\"\",\"\",'1. Order'!AY932)","v":""},{"$f":"IF('1. Order'!AZ932=\"\",\"\",'1. Order'!AZ932)","v":""},{"$f":"IF('1. Order'!BA932=\"\",\"\",'1. Order'!BA932)","v":""},{"$f":"IF('1. Order'!BB932=\"\",\"\",'1. Order'!BB932)","v":""},{"$f":"IF('1. Order'!BD932=\"\",\"\",'1. Order'!BD932)","v":""},{"$f":"IF('1. Order'!BE932=\"\",\"\",'1. Order'!BE932)","v":""},{"$f":"IF('1. Order'!BF932=\"\",\"\",'1. Order'!BF932)","v":""},{"$f":"IF('1. Order'!BG932=\"\",\"\",'1. Order'!BG932)","v":""},{"$f":"IF('1. Order'!BH932=\"\",\"\",'1. Order'!BH932)","v":"ZWO"}]
[{"$f":"IF('1. Order'!F933=\"\",\"\",'1. Order'!F933)","v":{"$error":"#N/A"}},{"$f":"IF('1. Order'!G933=\"\",\"\",'1. Order'!G933)","v":""},{"$f":"IF('1. Order'!H933=\"\",\"\",'1. Order'!H933)","v":""},{"$f":"IF('1. Order'!I933=\"\",\"\",'1. Order'!I933)","v":""},{"$f":"IF('1. Order'!J933=\"\",\"\",'1. Order'!J933)","v":""},{"$f":"IF('1. Order'!K933=\"\",\"\",'1. Order'!K933)","v":""},{"$f":"IF('1. Order'!L933=\"\",\"\",'1. Order'!L933)","v":""},{"$f":"IF('1. Order'!M933=\"\",\"\",'1. Order'!M933)","v":""},{"$f":"IF('1. Order'!N933=\"\",\"\",'1. Order'!N933)","v":""},{"$f":"IF('1. Order'!O933=\"\",\"\",'1. Order'!O933)","v":{"$error":"#N/A"}},{"$f":"IF('1. Order'!P933=\"\",\"\",'1. Order'!P933)","v":{"$error":"#N/A"}},{"$f":"IF('1. Order'!Q933=\"\",\"\",'1. Order'!Q933)","v":""},{"$f":"IF('1. Order'!S933=\"\",\"\",'1. Order'!S933)","v":""},{"$f":"IF('1. Order'!T933=\"\",\"\",'1. Order'!T933)","v":""},{"$f":"IF('1. Order'!W933=\"\",\"\",'1. Order'!W933)","v":""},{"$f":"IF('1. Order'!X933=\"\",\"\",'1. Order'!X933)","v":""},{"$f":"IF('1. Order'!Y933=\"\",\"\",'1. Order'!Y933)","v":"EUR"},{"$f":"IF('1. Order'!Z933=\"\",\"\",'1. Order'!Z933)","v":""},{"$f":"IF('1. Order'!AA933=\"\",\"\",'1. Order'!AA933)","v":""},{"$f":"IF('1. Order'!AB933=\"\",\"\",'1. Order'!AB933)","v":""},null,{"$f":"IF('1. Order'!AT933=\"\",\"\",'1. Order'!AT933)","v":""},{"$f":"IF('1. Order'!AU933=\"\",\"\",'1. Order'!AU933)","v":""},null,null,null,null,null,null,null,{"$f":"IF('1. Order'!AY933=\"\",\"\",'1. Order'!AY933)","v":""},{"$f":"IF('1. Order'!AZ933=\"\",\"\",'1. Order'!AZ933)","v":""},{"$f":"IF('1. Order'!BA933=\"\",\"\",'1. Order'!BA933)","v":""},{"$f":"IF('1. Order'!BB933=\"\",\"\",'1. Order'!BB933)","v":""},{"$f":"IF('1. Order'!BD933=\"\",\"\",'1. Order'!BD933)","v":""},{"$f":"IF('1. Order'!BE933=\"\",\"\",'1. Order'!BE933)","v":""},{"$f":"IF('1. Order'!BF933=\"\",\"\",'1. Order'!BF933)","v":""},{"$f":"IF('1. Order'!BG933=\"\",\"\",'1. Order'!BG933)","v":""},{"$f":"IF('1. Order'!BH933=\"\",\"\",'1. Order'!BH933)","v":"ZWO"}]
[{"$f":"IF('1. Order'!F934=\"\",\"\",'1. Order'!F934)","v":{"$error":"#N/A"}},{"$f":"IF('1. Order'!G934=\"\",\"\",'1. Order'!G934)","v":""},{"$f":"IF('1. Order'!H934=\"\",\"\",'1. Order'!H934)","v":""},{"$f":"IF('1. Order'!I934=\"\",\"\",'1. Order'!I934)","v":""},{"$f":"IF('1. Order'!J934=\"\",\"\",'1. Order'!J934)","v":""},{"$f":"IF('1. Order'!K934=\"\",\"\",'1. Order'!K934)","v":""},{"$f":"IF('1. Order'!L934=\"\",\"\",'1. Order'!L934)","v":""},{"$f":"IF('1. Order'!M934=\"\",\"\",'1. Order'!M934)","v":""},{"$f":"IF('1. Order'!N934=\"\",\"\",'1. Order'!N934)","v":""},{"$f":"IF('1. Order'!O934=\"\",\"\",'1. Order'!O934)","v":{"$error":"#N/A"}},{"$f":"IF('1. Order'!P934=\"\",\"\",'1. Order'!P934)","v":{"$error":"#N/A"}},{"$f":"IF('1. Order'!Q934=\"\",\"\",'1. Order'!Q934)","v":""},{"$f":"IF('1. Order'!S934=\"\",\"\",'1. Order'!S934)","v":""},{"$f":"IF('1. Order'!T934=\"\",\"\",'1. Order'!T934)","v":""},{"$f":"IF('1. Order'!W934=\"\",\"\",'1. Order'!W934)","v":""},{"$f":"IF('1. Order'!X934=\"\",\"\",'1. Order'!X934)","v":""},{"$f":"IF('1. Order'!Y934=\"\",\"\",'1. Order'!Y934)","v":"EUR"},{"$f":"IF('1. Order'!Z934=\"\",\"\",'1. Order'!Z934)","v":""},{"$f":"IF('1. Order'!AA934=\"\",\"\",'1. Order'!AA934)","v":""},{"$f":"IF('1. Order'!AB934=\"\",\"\",'1. Order'!AB934)","v":""},null,{"$f":"IF('1. Order'!AT934=\"\",\"\",'1. Order'!AT934)","v":""},{"$f":"IF('1. Order'!AU934=\"\",\"\",'1. Order'!AU934)","v":""},null,null,null,null,null,null,null,{"$f":"IF('1. Order'!AY934=\"\",\"\",'1. Order'!AY934)","v":""},{"$f":"IF('1. Order'!AZ934=\"\",\"\",'1. Order'!AZ934)","v":""},{"$f":"IF('1. Order'!BA934=\"\",\"\",'1. Order'!BA934)","v":""},{"$f":"IF('1. Order'!BB934=\"\",\"\",'1. Order'!BB934)","v":""},{"$f":"IF('1. Order'!BD934=\"\",\"\",'1. Order'!BD934)","v":""},{"$f":"IF('1. Order'!BE934=\"\",\"\",'1. Order'!BE934)","v":""},{"$f":"IF('1. Order'!BF934=\"\",\"\",'1. Order'!BF934)","v":""},{"$f":"IF('1. Order'!BG934=\"\",\"\",'1. Order'!BG934)","v":""},{"$f":"IF('1. Order'!BH934=\"\",\"\",'1. Order'!BH934)","v":"ZWO"}]
[{"$f":"IF('1. Order'!F935=\"\",\"\",'1. Order'!F935)","v":{"$error":"#N/A"}},{"$f":"IF('1. Order'!G935=\"\",\"\",'1. Order'!G935)","v":""},{"$f":"IF('1. Order'!H935=\"\",\"\",'1. Order'!H935)","v":""},{"$f":"IF('1. Order'!I935=\"\",\"\",'1. Order'!I935)","v":""},{"$f":"IF('1. Order'!J935=\"\",\"\",'1. Order'!J935)","v":""},{"$f":"IF('1. Order'!K935=\"\",\"\",'1. Order'!K935)","v":""},{"$f":"IF('1. Order'!L935=\"\",\"\",'1. Order'!L935)","v":""},{"$f":"IF('1. Order'!M935=\"\",\"\",'1. Order'!M935)","v":""},{"$f":"IF('1. Order'!N935=\"\",\"\",'1. Order'!N935)","v":""},{"$f":"IF('1. Order'!O935=\"\",\"\",'1. Order'!O935)","v":{"$error":"#N/A"}},{"$f":"IF('1. Order'!P935=\"\",\"\",'1. Order'!P935)","v":{"$error":"#N/A"}},{"$f":"IF('1. Order'!Q935=\"\",\"\",'1. Order'!Q935)","v":""},{"$f":"IF('1. Order'!S935=\"\",\"\",'1. Order'!S935)","v":""},{"$f":"IF('1. Order'!T935=\"\",\"\",'1. Order'!T935)","v":""},{"$f":"IF('1. Order'!W935=\"\",\"\",'1. Order'!W935)","v":""},{"$f":"IF('1. Order'!X935=\"\",\"\",'1. Order'!X935)","v":""},{"$f":"IF('1. Order'!Y935=\"\",\"\",'1. Order'!Y935)","v":"EUR"},{"$f":"IF('1. Order'!Z935=\"\",\"\",'1. Order'!Z935)","v":""},{"$f":"IF('1. Order'!AA935=\"\",\"\",'1. Order'!AA935)","v":""},{"$f":"IF('1. Order'!AB935=\"\",\"\",'1. Order'!AB935)","v":""},null,{"$f":"IF('1. Order'!AT935=\"\",\"\",'1. Order'!AT935)","v":""},{"$f":"IF('1. Order'!AU935=\"\",\"\",'1. Order'!AU935)","v":""},null,null,null,null,null,null,null,{"$f":"IF('1. Order'!AY935=\"\",\"\",'1. Order'!AY935)","v":""},{"$f":"IF('1. Order'!AZ935=\"\",\"\",'1. Order'!AZ935)","v":""},{"$f":"IF('1. Order'!BA935=\"\",\"\",'1. Order'!BA935)","v":""},{"$f":"IF('1. Order'!BB935=\"\",\"\",'1. Order'!BB935)","v":""},{"$f":"IF('1. Order'!BD935=\"\",\"\",'1. Order'!BD935)","v":""},{"$f":"IF('1. Order'!BE935=\"\",\"\",'1. Order'!BE935)","v":""},{"$f":"IF('1. Order'!BF935=\"\",\"\",'1. Order'!BF935)","v":""},{"$f":"IF('1. Order'!BG935=\"\",\"\",'1. Order'!BG935)","v":""},{"$f":"IF('1. Order'!BH935=\"\",\"\",'1. Order'!BH935)","v":"ZWO"}]
[{"$f":"IF('1. Order'!F936=\"\",\"\",'1. Order'!F936)","v":{"$error":"#N/A"}},{"$f":"IF('1. Order'!G936=\"\",\"\",'1. Order'!G936)","v":""},{"$f":"IF('1. Order'!H936=\"\",\"\",'1. Order'!H936)","v":""},{"$f":"IF('1. Order'!I936=\"\",\"\",'1. Order'!I936)","v":""},{"$f":"IF('1. Order'!J936=\"\",\"\",'1. Order'!J936)","v":""},{"$f":"IF('1. Order'!K936=\"\",\"\",'1. Order'!K936)","v":""},{"$f":"IF('1. Order'!L936=\"\",\"\",'1. Order'!L936)","v":""},{"$f":"IF('1. Order'!M936=\"\",\"\",'1. Order'!M936)","v":""},{"$f":"IF('1. Order'!N936=\"\",\"\",'1. Order'!N936)","v":""},{"$f":"IF('1. Order'!O936=\"\",\"\",'1. Order'!O936)","v":{"$error":"#N/A"}},{"$f":"IF('1. Order'!P936=\"\",\"\",'1. Order'!P936)","v":{"$error":"#N/A"}},{"$f":"IF('1. Order'!Q936=\"\",\"\",'1. Order'!Q936)","v":""},{"$f":"IF('1. Order'!S936=\"\",\"\",'1. Order'!S936)","v":""},{"$f":"IF('1. Order'!T936=\"\",\"\",'1. Order'!T936)","v":""},{"$f":"IF('1. Order'!W936=\"\",\"\",'1. Order'!W936)","v":""},{"$f":"IF('1. Order'!X936=\"\",\"\",'1. Order'!X936)","v":""},{"$f":"IF('1. Order'!Y936=\"\",\"\",'1. Order'!Y936)","v":"EUR"},{"$f":"IF('1. Order'!Z936=\"\",\"\",'1. Order'!Z936)","v":""},{"$f":"IF('1. Order'!AA936=\"\",\"\",'1. Order'!AA936)","v":""},{"$f":"IF('1. Order'!AB936=\"\",\"\",'1. Order'!AB936)","v":""},null,{"$f":"IF('1. Order'!AT936=\"\",\"\",'1. Order'!AT936)","v":""},{"$f":"IF('1. Order'!AU936=\"\",\"\",'1. Order'!AU936)","v":""},null,null,null,null,null,null,null,{"$f":"IF('1. Order'!AY936=\"\",\"\",'1. Order'!AY936)","v":""},{"$f":"IF('1. Order'!AZ936=\"\",\"\",'1. Order'!AZ936)","v":""},{"$f":"IF('1. Order'!BA936=\"\",\"\",'1. Order'!BA936)","v":""},{"$f":"IF('1. Order'!BB936=\"\",\"\",'1. Order'!BB936)","v":""},{"$f":"IF('1. Order'!BD936=\"\",\"\",'1. Order'!BD936)","v":""},{"$f":"IF('1. Order'!BE936=\"\",\"\",'1. Order'!BE936)","v":""},{"$f":"IF('1. Order'!BF936=\"\",\"\",'1. Order'!BF936)","v":""},{"$f":"IF('1. Order'!BG936=\"\",\"\",'1. Order'!BG936)","v":""},{"$f":"IF('1. Order'!BH936=\"\",\"\",'1. Order'!BH936)","v":"ZWO"}]
[{"$f":"IF('1. Order'!F937=\"\",\"\",'1. Order'!F937)","v":{"$error":"#N/A"}},{"$f":"IF('1. Order'!G937=\"\",\"\",'1. Order'!G937)","v":""},{"$f":"IF('1. Order'!H937=\"\",\"\",'1. Order'!H937)","v":""},{"$f":"IF('1. Order'!I937=\"\",\"\",'1. Order'!I937)","v":""},{"$f":"IF('1. Order'!J937=\"\",\"\",'1. Order'!J937)","v":""},{"$f":"IF('1. Order'!K937=\"\",\"\",'1. Order'!K937)","v":""},{"$f":"IF('1. Order'!L937=\"\",\"\",'1. Order'!L937)","v":""},{"$f":"IF('1. Order'!M937=\"\",\"\",'1. Order'!M937)","v":""},{"$f":"IF('1. Order'!N937=\"\",\"\",'1. Order'!N937)","v":""},{"$f":"IF('1. Order'!O937=\"\",\"\",'1. Order'!O937)","v":{"$error":"#N/A"}},{"$f":"IF('1. Order'!P937=\"\",\"\",'1. Order'!P937)","v":{"$error":"#N/A"}},{"$f":"IF('1. Order'!Q937=\"\",\"\",'1. Order'!Q937)","v":""},{"$f":"IF('1. Order'!S937=\"\",\"\",'1. Order'!S937)","v":""},{"$f":"IF('1. Order'!T937=\"\",\"\",'1. Order'!T937)","v":""},{"$f":"IF('1. Order'!W937=\"\",\"\",'1. Order'!W937)","v":""},{"$f":"IF('1. Order'!X937=\"\",\"\",'1. Order'!X937)","v":""},{"$f":"IF('1. Order'!Y937=\"\",\"\",'1. Order'!Y937)","v":"EUR"},{"$f":"IF('1. Order'!Z937=\"\",\"\",'1. Order'!Z937)","v":""},{"$f":"IF('1. Order'!AA937=\"\",\"\",'1. Order'!AA937)","v":""},{"$f":"IF('1. Order'!AB937=\"\",\"\",'1. Order'!AB937)","v":""},null,{"$f":"IF('1. Order'!AT937=\"\",\"\",'1. Order'!AT937)","v":""},{"$f":"IF('1. Order'!AU937=\"\",\"\",'1. Order'!AU937)","v":""},null,null,null,null,null,null,null,{"$f":"IF('1. Order'!AY937=\"\",\"\",'1. Order'!AY937)","v":""},{"$f":"IF('1. Order'!AZ937=\"\",\"\",'1. Order'!AZ937)","v":""},{"$f":"IF('1. Order'!BA937=\"\",\"\",'1. Order'!BA937)","v":""},{"$f":"IF('1. Order'!BB937=\"\",\"\",'1. Order'!BB937)","v":""},{"$f":"IF('1. Order'!BD937=\"\",\"\",'1. Order'!BD937)","v":""},{"$f":"IF('1. Order'!BE937=\"\",\"\",'1. Order'!BE937)","v":""},{"$f":"IF('1. Order'!BF937=\"\",\"\",'1. Order'!BF937)","v":""},{"$f":"IF('1. Order'!BG937=\"\",\"\",'1. Order'!BG937)","v":""},{"$f":"IF('1. Order'!BH937=\"\",\"\",'1. Order'!BH937)","v":"ZWO"}]
[{"$f":"IF('1. Order'!F938=\"\",\"\",'1. Order'!F938)","v":{"$error":"#N/A"}},{"$f":"IF('1. Order'!G938=\"\",\"\",'1. Order'!G938)","v":""},{"$f":"IF('1. Order'!H938=\"\",\"\",'1. Order'!H938)","v":""},{"$f":"IF('1. Order'!I938=\"\",\"\",'1. Order'!I938)","v":""},{"$f":"IF('1. Order'!J938=\"\",\"\",'1. Order'!J938)","v":""},{"$f":"IF('1. Order'!K938=\"\",\"\",'1. Order'!K938)","v":""},{"$f":"IF('1. Order'!L938=\"\",\"\",'1. Order'!L938)","v":""},{"$f":"IF('1. Order'!M938=\"\",\"\",'1. Order'!M938)","v":""},{"$f":"IF('1. Order'!N938=\"\",\"\",'1. Order'!N938)","v":""},{"$f":"IF('1. Order'!O938=\"\",\"\",'1. Order'!O938)","v":{"$error":"#N/A"}},{"$f":"IF('1. Order'!P938=\"\",\"\",'1. Order'!P938)","v":{"$error":"#N/A"}},{"$f":"IF('1. Order'!Q938=\"\",\"\",'1. Order'!Q938)","v":""},{"$f":"IF('1. Order'!S938=\"\",\"\",'1. Order'!S938)","v":""},{"$f":"IF('1. Order'!T938=\"\",\"\",'1. Order'!T938)","v":""},{"$f":"IF('1. Order'!W938=\"\",\"\",'1. Order'!W938)","v":""},{"$f":"IF('1. Order'!X938=\"\",\"\",'1. Order'!X938)","v":""},{"$f":"IF('1. Order'!Y938=\"\",\"\",'1. Order'!Y938)","v":"EUR"},{"$f":"IF('1. Order'!Z938=\"\",\"\",'1. Order'!Z938)","v":""},{"$f":"IF('1. Order'!AA938=\"\",\"\",'1. Order'!AA938)","v":""},{"$f":"IF('1. Order'!AB938=\"\",\"\",'1. Order'!AB938)","v":""},null,{"$f":"IF('1. Order'!AT938=\"\",\"\",'1. Order'!AT938)","v":""},{"$f":"IF('1. Order'!AU938=\"\",\"\",'1. Order'!AU938)","v":""},null,null,null,null,null,null,null,{"$f":"IF('1. Order'!AY938=\"\",\"\",'1. Order'!AY938)","v":""},{"$f":"IF('1. Order'!AZ938=\"\",\"\",'1. Order'!AZ938)","v":""},{"$f":"IF('1. Order'!BA938=\"\",\"\",'1. Order'!BA938)","v":""},{"$f":"IF('1. Order'!BB938=\"\",\"\",'1. Order'!BB938)","v":""},{"$f":"IF('1. Order'!BD938=\"\",\"\",'1. Order'!BD938)","v":""},{"$f":"IF('1. Order'!BE938=\"\",\"\",'1. Order'!BE938)","v":""},{"$f":"IF('1. Order'!BF938=\"\",\"\",'1. Order'!BF938)","v":""},{"$f":"IF('1. Order'!BG938=\"\",\"\",'1. Order'!BG938)","v":""},{"$f":"IF('1. Order'!BH938=\"\",\"\",'1. Order'!BH938)","v":"ZWO"}]
[{"$f":"IF('1. Order'!F939=\"\",\"\",'1. Order'!F939)","v":{"$error":"#N/A"}},{"$f":"IF('1. Order'!G939=\"\",\"\",'1. Order'!G939)","v":""},{"$f":"IF('1. Order'!H939=\"\",\"\",'1. Order'!H939)","v":""},{"$f":"IF('1. Order'!I939=\"\",\"\",'1. Order'!I939)","v":""},{"$f":"IF('1. Order'!J939=\"\",\"\",'1. Order'!J939)","v":""},{"$f":"IF('1. Order'!K939=\"\",\"\",'1. Order'!K939)","v":""},{"$f":"IF('1. Order'!L939=\"\",\"\",'1. Order'!L939)","v":""},{"$f":"IF('1. Order'!M939=\"\",\"\",'1. Order'!M939)","v":""},{"$f":"IF('1. Order'!N939=\"\",\"\",'1. Order'!N939)","v":""},{"$f":"IF('1. Order'!O939=\"\",\"\",'1. Order'!O939)","v":{"$error":"#N/A"}},{"$f":"IF('1. Order'!P939=\"\",\"\",'1. Order'!P939)","v":{"$error":"#N/A"}},{"$f":"IF('1. Order'!Q939=\"\",\"\",'1. Order'!Q939)","v":""},{"$f":"IF('1. Order'!S939=\"\",\"\",'1. Order'!S939)","v":""},{"$f":"IF('1. Order'!T939=\"\",\"\",'1. Order'!T939)","v":""},{"$f":"IF('1. Order'!W939=\"\",\"\",'1. Order'!W939)","v":""},{"$f":"IF('1. Order'!X939=\"\",\"\",'1. Order'!X939)","v":""},{"$f":"IF('1. Order'!Y939=\"\",\"\",'1. Order'!Y939)","v":"EUR"},{"$f":"IF('1. Order'!Z939=\"\",\"\",'1. Order'!Z939)","v":""},{"$f":"IF('1. Order'!AA939=\"\",\"\",'1. Order'!AA939)","v":""},{"$f":"IF('1. Order'!AB939=\"\",\"\",'1. Order'!AB939)","v":""},null,{"$f":"IF('1. Order'!AT939=\"\",\"\",'1. Order'!AT939)","v":""},{"$f":"IF('1. Order'!AU939=\"\",\"\",'1. Order'!AU939)","v":""},null,null,null,null,null,null,null,{"$f":"IF('1. Order'!AY939=\"\",\"\",'1. Order'!AY939)","v":""},{"$f":"IF('1. Order'!AZ939=\"\",\"\",'1. Order'!AZ939)","v":""},{"$f":"IF('1. Order'!BA939=\"\",\"\",'1. Order'!BA939)","v":""},{"$f":"IF('1. Order'!BB939=\"\",\"\",'1. Order'!BB939)","v":""},{"$f":"IF('1. Order'!BD939=\"\",\"\",'1. Order'!BD939)","v":""},{"$f":"IF('1. Order'!BE939=\"\",\"\",'1. Order'!BE939)","v":""},{"$f":"IF('1. Order'!BF939=\"\",\"\",'1. Order'!BF939)","v":""},{"$f":"IF('1. Order'!BG939=\"\",\"\",'1. Order'!BG939)","v":""},{"$f":"IF('1. Order'!BH939=\"\",\"\",'1. Order'!BH939)","v":"ZWO"}]
[{"$f":"IF('1. Order'!F940=\"\",\"\",'1. Order'!F940)","v":{"$error":"#N/A"}},{"$f":"IF('1. Order'!G940=\"\",\"\",'1. Order'!G940)","v":""},{"$f":"IF('1. Order'!H940=\"\",\"\",'1. Order'!H940)","v":""},{"$f":"IF('1. Order'!I940=\"\",\"\",'1. Order'!I940)","v":""},{"$f":"IF('1. Order'!J940=\"\",\"\",'1. Order'!J940)","v":""},{"$f":"IF('1. Order'!K940=\"\",\"\",'1. Order'!K940)","v":""},{"$f":"IF('1. Order'!L940=\"\",\"\",'1. Order'!L940)","v":""},{"$f":"IF('1. Order'!M940=\"\",\"\",'1. Order'!M940)","v":""},{"$f":"IF('1. Order'!N940=\"\",\"\",'1. Order'!N940)","v":""},{"$f":"IF('1. Order'!O940=\"\",\"\",'1. Order'!O940)","v":{"$error":"#N/A"}},{"$f":"IF('1. Order'!P940=\"\",\"\",'1. Order'!P940)","v":{"$error":"#N/A"}},{"$f":"IF('1. Order'!Q940=\"\",\"\",'1. Order'!Q940)","v":""},{"$f":"IF('1. Order'!S940=\"\",\"\",'1. Order'!S940)","v":""},{"$f":"IF('1. Order'!T940=\"\",\"\",'1. Order'!T940)","v":""},{"$f":"IF('1. Order'!W940=\"\",\"\",'1. Order'!W940)","v":""},{"$f":"IF('1. Order'!X940=\"\",\"\",'1. Order'!X940)","v":""},{"$f":"IF('1. Order'!Y940=\"\",\"\",'1. Order'!Y940)","v":"EUR"},{"$f":"IF('1. Order'!Z940=\"\",\"\",'1. Order'!Z940)","v":""},{"$f":"IF('1. Order'!AA940=\"\",\"\",'1. Order'!AA940)","v":""},{"$f":"IF('1. Order'!AB940=\"\",\"\",'1. Order'!AB940)","v":""},null,{"$f":"IF('1. Order'!AT940=\"\",\"\",'1. Order'!AT940)","v":""},{"$f":"IF('1. Order'!AU940=\"\",\"\",'1. Order'!AU940)","v":""},null,null,null,null,null,null,null,{"$f":"IF('1. Order'!AY940=\"\",\"\",'1. Order'!AY940)","v":""},{"$f":"IF('1. Order'!AZ940=\"\",\"\",'1. Order'!AZ940)","v":""},{"$f":"IF('1. Order'!BA940=\"\",\"\",'1. Order'!BA940)","v":""},{"$f":"IF('1. Order'!BB940=\"\",\"\",'1. Order'!BB940)","v":""},{"$f":"IF('1. Order'!BD940=\"\",\"\",'1. Order'!BD940)","v":""},{"$f":"IF('1. Order'!BE940=\"\",\"\",'1. Order'!BE940)","v":""},{"$f":"IF('1. Order'!BF940=\"\",\"\",'1. Order'!BF940)","v":""},{"$f":"IF('1. Order'!BG940=\"\",\"\",'1. Order'!BG940)","v":""},{"$f":"IF('1. Order'!BH940=\"\",\"\",'1. Order'!BH940)","v":"ZWO"}]
[{"$f":"IF('1. Order'!F941=\"\",\"\",'1. Order'!F941)","v":{"$error":"#N/A"}},{"$f":"IF('1. Order'!G941=\"\",\"\",'1. Order'!G941)","v":""},{"$f":"IF('1. Order'!H941=\"\",\"\",'1. Order'!H941)","v":""},{"$f":"IF('1. Order'!I941=\"\",\"\",'1. Order'!I941)","v":""},{"$f":"IF('1. Order'!J941=\"\",\"\",'1. Order'!J941)","v":""},{"$f":"IF('1. Order'!K941=\"\",\"\",'1. Order'!K941)","v":""},{"$f":"IF('1. Order'!L941=\"\",\"\",'1. Order'!L941)","v":""},{"$f":"IF('1. Order'!M941=\"\",\"\",'1. Order'!M941)","v":""},{"$f":"IF('1. Order'!N941=\"\",\"\",'1. Order'!N941)","v":""},{"$f":"IF('1. Order'!O941=\"\",\"\",'1. Order'!O941)","v":{"$error":"#N/A"}},{"$f":"IF('1. Order'!P941=\"\",\"\",'1. Order'!P941)","v":{"$error":"#N/A"}},{"$f":"IF('1. Order'!Q941=\"\",\"\",'1. Order'!Q941)","v":""},{"$f":"IF('1. Order'!S941=\"\",\"\",'1. Order'!S941)","v":""},{"$f":"IF('1. Order'!T941=\"\",\"\",'1. Order'!T941)","v":""},{"$f":"IF('1. Order'!W941=\"\",\"\",'1. Order'!W941)","v":""},{"$f":"IF('1. Order'!X941=\"\",\"\",'1. Order'!X941)","v":""},{"$f":"IF('1. Order'!Y941=\"\",\"\",'1. Order'!Y941)","v":"EUR"},{"$f":"IF('1. Order'!Z941=\"\",\"\",'1. Order'!Z941)","v":""},{"$f":"IF('1. Order'!AA941=\"\",\"\",'1. Order'!AA941)","v":""},{"$f":"IF('1. Order'!AB941=\"\",\"\",'1. Order'!AB941)","v":""},null,{"$f":"IF('1. Order'!AT941=\"\",\"\",'1. Order'!AT941)","v":""},{"$f":"IF('1. Order'!AU941=\"\",\"\",'1. Order'!AU941)","v":""},null,null,null,null,null,null,null,{"$f":"IF('1. Order'!AY941=\"\",\"\",'1. Order'!AY941)","v":""},{"$f":"IF('1. Order'!AZ941=\"\",\"\",'1. Order'!AZ941)","v":""},{"$f":"IF('1. Order'!BA941=\"\",\"\",'1. Order'!BA941)","v":""},{"$f":"IF('1. Order'!BB941=\"\",\"\",'1. Order'!BB941)","v":""},{"$f":"IF('1. Order'!BD941=\"\",\"\",'1. Order'!BD941)","v":""},{"$f":"IF('1. Order'!BE941=\"\",\"\",'1. Order'!BE941)","v":""},{"$f":"IF('1. Order'!BF941=\"\",\"\",'1. Order'!BF941)","v":""},{"$f":"IF('1. Order'!BG941=\"\",\"\",'1. Order'!BG941)","v":""},{"$f":"IF('1. Order'!BH941=\"\",\"\",'1. Order'!BH941)","v":"ZWO"}]
[{"$f":"IF('1. Order'!F942=\"\",\"\",'1. Order'!F942)","v":{"$error":"#N/A"}},{"$f":"IF('1. Order'!G942=\"\",\"\",'1. Order'!G942)","v":""},{"$f":"IF('1. Order'!H942=\"\",\"\",'1. Order'!H942)","v":""},{"$f":"IF('1. Order'!I942=\"\",\"\",'1. Order'!I942)","v":""},{"$f":"IF('1. Order'!J942=\"\",\"\",'1. Order'!J942)","v":""},{"$f":"IF('1. Order'!K942=\"\",\"\",'1. Order'!K942)","v":""},{"$f":"IF('1. Order'!L942=\"\",\"\",'1. Order'!L942)","v":""},{"$f":"IF('1. Order'!M942=\"\",\"\",'1. Order'!M942)","v":""},{"$f":"IF('1. Order'!N942=\"\",\"\",'1. Order'!N942)","v":""},{"$f":"IF('1. Order'!O942=\"\",\"\",'1. Order'!O942)","v":{"$error":"#N/A"}},{"$f":"IF('1. Order'!P942=\"\",\"\",'1. Order'!P942)","v":{"$error":"#N/A"}},{"$f":"IF('1. Order'!Q942=\"\",\"\",'1. Order'!Q942)","v":""},{"$f":"IF('1. Order'!S942=\"\",\"\",'1. Order'!S942)","v":""},{"$f":"IF('1. Order'!T942=\"\",\"\",'1. Order'!T942)","v":""},{"$f":"IF('1. Order'!W942=\"\",\"\",'1. Order'!W942)","v":""},{"$f":"IF('1. Order'!X942=\"\",\"\",'1. Order'!X942)","v":""},{"$f":"IF('1. Order'!Y942=\"\",\"\",'1. Order'!Y942)","v":"EUR"},{"$f":"IF('1. Order'!Z942=\"\",\"\",'1. Order'!Z942)","v":""},{"$f":"IF('1. Order'!AA942=\"\",\"\",'1. Order'!AA942)","v":""},{"$f":"IF('1. Order'!AB942=\"\",\"\",'1. Order'!AB942)","v":""},null,{"$f":"IF('1. Order'!AT942=\"\",\"\",'1. Order'!AT942)","v":""},{"$f":"IF('1. Order'!AU942=\"\",\"\",'1. Order'!AU942)","v":""},null,null,null,null,null,null,null,{"$f":"IF('1. Order'!AY942=\"\",\"\",'1. Order'!AY942)","v":""},{"$f":"IF('1. Order'!AZ942=\"\",\"\",'1. Order'!AZ942)","v":""},{"$f":"IF('1. Order'!BA942=\"\",\"\",'1. Order'!BA942)","v":""},{"$f":"IF('1. Order'!BB942=\"\",\"\",'1. Order'!BB942)","v":""},{"$f":"IF('1. Order'!BD942=\"\",\"\",'1. Order'!BD942)","v":""},{"$f":"IF('1. Order'!BE942=\"\",\"\",'1. Order'!BE942)","v":""},{"$f":"IF('1. Order'!BF942=\"\",\"\",'1. Order'!BF942)","v":""},{"$f":"IF('1. Order'!BG942=\"\",\"\",'1. Order'!BG942)","v":""},{"$f":"IF('1. Order'!BH942=\"\",\"\",'1. Order'!BH942)","v":"ZWO"}]
[{"$f":"IF('1. Order'!F943=\"\",\"\",'1. Order'!F943)","v":{"$error":"#N/A"}},{"$f":"IF('1. Order'!G943=\"\",\"\",'1. Order'!G943)","v":""},{"$f":"IF('1. Order'!H943=\"\",\"\",'1. Order'!H943)","v":""},{"$f":"IF('1. Order'!I943=\"\",\"\",'1. Order'!I943)","v":""},{"$f":"IF('1. Order'!J943=\"\",\"\",'1. Order'!J943)","v":""},{"$f":"IF('1. Order'!K943=\"\",\"\",'1. Order'!K943)","v":""},{"$f":"IF('1. Order'!L943=\"\",\"\",'1. Order'!L943)","v":""},{"$f":"IF('1. Order'!M943=\"\",\"\",'1. Order'!M943)","v":""},{"$f":"IF('1. Order'!N943=\"\",\"\",'1. Order'!N943)","v":""},{"$f":"IF('1. Order'!O943=\"\",\"\",'1. Order'!O943)","v":{"$error":"#N/A"}},{"$f":"IF('1. Order'!P943=\"\",\"\",'1. Order'!P943)","v":{"$error":"#N/A"}},{"$f":"IF('1. Order'!Q943=\"\",\"\",'1. Order'!Q943)","v":""},{"$f":"IF('1. Order'!S943=\"\",\"\",'1. Order'!S943)","v":""},{"$f":"IF('1. Order'!T943=\"\",\"\",'1. Order'!T943)","v":""},{"$f":"IF('1. Order'!W943=\"\",\"\",'1. Order'!W943)","v":""},{"$f":"IF('1. Order'!X943=\"\",\"\",'1. Order'!X943)","v":""},{"$f":"IF('1. Order'!Y943=\"\",\"\",'1. Order'!Y943)","v":"EUR"},{"$f":"IF('1. Order'!Z943=\"\",\"\",'1. Order'!Z943)","v":""},{"$f":"IF('1. Order'!AA943=\"\",\"\",'1. Order'!AA943)","v":""},{"$f":"IF('1. Order'!AB943=\"\",\"\",'1. Order'!AB943)","v":""},null,{"$f":"IF('1. Order'!AT943=\"\",\"\",'1. Order'!AT943)","v":""},{"$f":"IF('1. Order'!AU943=\"\",\"\",'1. Order'!AU943)","v":""},null,null,null,null,null,null,null,{"$f":"IF('1. Order'!AY943=\"\",\"\",'1. Order'!AY943)","v":""},{"$f":"IF('1. Order'!AZ943=\"\",\"\",'1. Order'!AZ943)","v":""},{"$f":"IF('1. Order'!BA943=\"\",\"\",'1. Order'!BA943)","v":""},{"$f":"IF('1. Order'!BB943=\"\",\"\",'1. Order'!BB943)","v":""},{"$f":"IF('1. Order'!BD943=\"\",\"\",'1. Order'!BD943)","v":""},{"$f":"IF('1. Order'!BE943=\"\",\"\",'1. Order'!BE943)","v":""},{"$f":"IF('1. Order'!BF943=\"\",\"\",'1. Order'!BF943)","v":""},{"$f":"IF('1. Order'!BG943=\"\",\"\",'1. Order'!BG943)","v":""},{"$f":"IF('1. Order'!BH943=\"\",\"\",'1. Order'!BH943)","v":"ZWO"}]
[{"$f":"IF('1. Order'!F944=\"\",\"\",'1. Order'!F944)","v":{"$error":"#N/A"}},{"$f":"IF('1. Order'!G944=\"\",\"\",'1. Order'!G944)","v":""},{"$f":"IF('1. Order'!H944=\"\",\"\",'1. Order'!H944)","v":""},{"$f":"IF('1. Order'!I944=\"\",\"\",'1. Order'!I944)","v":""},{"$f":"IF('1. Order'!J944=\"\",\"\",'1. Order'!J944)","v":""},{"$f":"IF('1. Order'!K944=\"\",\"\",'1. Order'!K944)","v":""},{"$f":"IF('1. Order'!L944=\"\",\"\",'1. Order'!L944)","v":""},{"$f":"IF('1. Order'!M944=\"\",\"\",'1. Order'!M944)","v":""},{"$f":"IF('1. Order'!N944=\"\",\"\",'1. Order'!N944)","v":""},{"$f":"IF('1. Order'!O944=\"\",\"\",'1. Order'!O944)","v":{"$error":"#N/A"}},{"$f":"IF('1. Order'!P944=\"\",\"\",'1. Order'!P944)","v":{"$error":"#N/A"}},{"$f":"IF('1. Order'!Q944=\"\",\"\",'1. Order'!Q944)","v":""},{"$f":"IF('1. Order'!S944=\"\",\"\",'1. Order'!S944)","v":""},{"$f":"IF('1. Order'!T944=\"\",\"\",'1. Order'!T944)","v":""},{"$f":"IF('1. Order'!W944=\"\",\"\",'1. Order'!W944)","v":""},{"$f":"IF('1. Order'!X944=\"\",\"\",'1. Order'!X944)","v":""},{"$f":"IF('1. Order'!Y944=\"\",\"\",'1. Order'!Y944)","v":"EUR"},{"$f":"IF('1. Order'!Z944=\"\",\"\",'1. Order'!Z944)","v":""},{"$f":"IF('1. Order'!AA944=\"\",\"\",'1. Order'!AA944)","v":""},{"$f":"IF('1. Order'!AB944=\"\",\"\",'1. Order'!AB944)","v":""},null,{"$f":"IF('1. Order'!AT944=\"\",\"\",'1. Order'!AT944)","v":""},{"$f":"IF('1. Order'!AU944=\"\",\"\",'1. Order'!AU944)","v":""},null,null,null,null,null,null,null,{"$f":"IF('1. Order'!AY944=\"\",\"\",'1. Order'!AY944)","v":""},{"$f":"IF('1. Order'!AZ944=\"\",\"\",'1. Order'!AZ944)","v":""},{"$f":"IF('1. Order'!BA944=\"\",\"\",'1. Order'!BA944)","v":""},{"$f":"IF('1. Order'!BB944=\"\",\"\",'1. Order'!BB944)","v":""},{"$f":"IF('1. Order'!BD944=\"\",\"\",'1. Order'!BD944)","v":""},{"$f":"IF('1. Order'!BE944=\"\",\"\",'1. Order'!BE944)","v":""},{"$f":"IF('1. Order'!BF944=\"\",\"\",'1. Order'!BF944)","v":""},{"$f":"IF('1. Order'!BG944=\"\",\"\",'1. Order'!BG944)","v":""},{"$f":"IF('1. Order'!BH944=\"\",\"\",'1. Order'!BH944)","v":"ZWO"}]
[{"$f":"IF('1. Order'!F945=\"\",\"\",'1. Order'!F945)","v":{"$error":"#N/A"}},{"$f":"IF('1. Order'!G945=\"\",\"\",'1. Order'!G945)","v":""},{"$f":"IF('1. Order'!H945=\"\",\"\",'1. Order'!H945)","v":""},{"$f":"IF('1. Order'!I945=\"\",\"\",'1. Order'!I945)","v":""},{"$f":"IF('1. Order'!J945=\"\",\"\",'1. Order'!J945)","v":""},{"$f":"IF('1. Order'!K945=\"\",\"\",'1. Order'!K945)","v":""},{"$f":"IF('1. Order'!L945=\"\",\"\",'1. Order'!L945)","v":""},{"$f":"IF('1. Order'!M945=\"\",\"\",'1. Order'!M945)","v":""},{"$f":"IF('1. Order'!N945=\"\",\"\",'1. Order'!N945)","v":""},{"$f":"IF('1. Order'!O945=\"\",\"\",'1. Order'!O945)","v":{"$error":"#N/A"}},{"$f":"IF('1. Order'!P945=\"\",\"\",'1. Order'!P945)","v":{"$error":"#N/A"}},{"$f":"IF('1. Order'!Q945=\"\",\"\",'1. Order'!Q945)","v":""},{"$f":"IF('1. Order'!S945=\"\",\"\",'1. Order'!S945)","v":""},{"$f":"IF('1. Order'!T945=\"\",\"\",'1. Order'!T945)","v":""},{"$f":"IF('1. Order'!W945=\"\",\"\",'1. Order'!W945)","v":""},{"$f":"IF('1. Order'!X945=\"\",\"\",'1. Order'!X945)","v":""},{"$f":"IF('1. Order'!Y945=\"\",\"\",'1. Order'!Y945)","v":"EUR"},{"$f":"IF('1. Order'!Z945=\"\",\"\",'1. Order'!Z945)","v":""},{"$f":"IF('1. Order'!AA945=\"\",\"\",'1. Order'!AA945)","v":""},{"$f":"IF('1. Order'!AB945=\"\",\"\",'1. Order'!AB945)","v":""},null,{"$f":"IF('1. Order'!AT945=\"\",\"\",'1. Order'!AT945)","v":""},{"$f":"IF('1. Order'!AU945=\"\",\"\",'1. Order'!AU945)","v":""},null,null,null,null,null,null,null,{"$f":"IF('1. Order'!AY945=\"\",\"\",'1. Order'!AY945)","v":""},{"$f":"IF('1. Order'!AZ945=\"\",\"\",'1. Order'!AZ945)","v":""},{"$f":"IF('1. Order'!BA945=\"\",\"\",'1. Order'!BA945)","v":""},{"$f":"IF('1. Order'!BB945=\"\",\"\",'1. Order'!BB945)","v":""},{"$f":"IF('1. Order'!BD945=\"\",\"\",'1. Order'!BD945)","v":""},{"$f":"IF('1. Order'!BE945=\"\",\"\",'1. Order'!BE945)","v":""},{"$f":"IF('1. Order'!BF945=\"\",\"\",'1. Order'!BF945)","v":""},{"$f":"IF('1. Order'!BG945=\"\",\"\",'1. Order'!BG945)","v":""},{"$f":"IF('1. Order'!BH945=\"\",\"\",'1. Order'!BH945)","v":"ZWO"}]
[{"$f":"IF('1. Order'!F946=\"\",\"\",'1. Order'!F946)","v":{"$error":"#N/A"}},{"$f":"IF('1. Order'!G946=\"\",\"\",'1. Order'!G946)","v":""},{"$f":"IF('1. Order'!H946=\"\",\"\",'1. Order'!H946)","v":""},{"$f":"IF('1. Order'!I946=\"\",\"\",'1. Order'!I946)","v":""},{"$f":"IF('1. Order'!J946=\"\",\"\",'1. Order'!J946)","v":""},{"$f":"IF('1. Order'!K946=\"\",\"\",'1. Order'!K946)","v":""},{"$f":"IF('1. Order'!L946=\"\",\"\",'1. Order'!L946)","v":""},{"$f":"IF('1. Order'!M946=\"\",\"\",'1. Order'!M946)","v":""},{"$f":"IF('1. Order'!N946=\"\",\"\",'1. Order'!N946)","v":""},{"$f":"IF('1. Order'!O946=\"\",\"\",'1. Order'!O946)","v":{"$error":"#N/A"}},{"$f":"IF('1. Order'!P946=\"\",\"\",'1. Order'!P946)","v":{"$error":"#N/A"}},{"$f":"IF('1. Order'!Q946=\"\",\"\",'1. Order'!Q946)","v":""},{"$f":"IF('1. Order'!S946=\"\",\"\",'1. Order'!S946)","v":""},{"$f":"IF('1. Order'!T946=\"\",\"\",'1. Order'!T946)","v":""},{"$f":"IF('1. Order'!W946=\"\",\"\",'1. Order'!W946)","v":""},{"$f":"IF('1. Order'!X946=\"\",\"\",'1. Order'!X946)","v":""},{"$f":"IF('1. Order'!Y946=\"\",\"\",'1. Order'!Y946)","v":"EUR"},{"$f":"IF('1. Order'!Z946=\"\",\"\",'1. Order'!Z946)","v":""},{"$f":"IF('1. Order'!AA946=\"\",\"\",'1. Order'!AA946)","v":""},{"$f":"IF('1. Order'!AB946=\"\",\"\",'1. Order'!AB946)","v":""},null,{"$f":"IF('1. Order'!AT946=\"\",\"\",'1. Order'!AT946)","v":""},{"$f":"IF('1. Order'!AU946=\"\",\"\",'1. Order'!AU946)","v":""},null,null,null,null,null,null,null,{"$f":"IF('1. Order'!AY946=\"\",\"\",'1. Order'!AY946)","v":""},{"$f":"IF('1. Order'!AZ946=\"\",\"\",'1. Order'!AZ946)","v":""},{"$f":"IF('1. Order'!BA946=\"\",\"\",'1. Order'!BA946)","v":""},{"$f":"IF('1. Order'!BB946=\"\",\"\",'1. Order'!BB946)","v":""},{"$f":"IF('1. Order'!BD946=\"\",\"\",'1. Order'!BD946)","v":""},{"$f":"IF('1. Order'!BE946=\"\",\"\",'1. Order'!BE946)","v":""},{"$f":"IF('1. Order'!BF946=\"\",\"\",'1. Order'!BF946)","v":""},{"$f":"IF('1. Order'!BG946=\"\",\"\",'1. Order'!BG946)","v":""},{"$f":"IF('1. Order'!BH946=\"\",\"\",'1. Order'!BH946)","v":"ZWO"}]
[{"$f":"IF('1. Order'!F947=\"\",\"\",'1. Order'!F947)","v":{"$error":"#N/A"}},{"$f":"IF('1. Order'!G947=\"\",\"\",'1. Order'!G947)","v":""},{"$f":"IF('1. Order'!H947=\"\",\"\",'1. Order'!H947)","v":""},{"$f":"IF('1. Order'!I947=\"\",\"\",'1. Order'!I947)","v":""},{"$f":"IF('1. Order'!J947=\"\",\"\",'1. Order'!J947)","v":""},{"$f":"IF('1. Order'!K947=\"\",\"\",'1. Order'!K947)","v":""},{"$f":"IF('1. Order'!L947=\"\",\"\",'1. Order'!L947)","v":""},{"$f":"IF('1. Order'!M947=\"\",\"\",'1. Order'!M947)","v":""},{"$f":"IF('1. Order'!N947=\"\",\"\",'1. Order'!N947)","v":""},{"$f":"IF('1. Order'!O947=\"\",\"\",'1. Order'!O947)","v":{"$error":"#N/A"}},{"$f":"IF('1. Order'!P947=\"\",\"\",'1. Order'!P947)","v":{"$error":"#N/A"}},{"$f":"IF('1. Order'!Q947=\"\",\"\",'1. Order'!Q947)","v":""},{"$f":"IF('1. Order'!S947=\"\",\"\",'1. Order'!S947)","v":""},{"$f":"IF('1. Order'!T947=\"\",\"\",'1. Order'!T947)","v":""},{"$f":"IF('1. Order'!W947=\"\",\"\",'1. Order'!W947)","v":""},{"$f":"IF('1. Order'!X947=\"\",\"\",'1. Order'!X947)","v":""},{"$f":"IF('1. Order'!Y947=\"\",\"\",'1. Order'!Y947)","v":"EUR"},{"$f":"IF('1. Order'!Z947=\"\",\"\",'1. Order'!Z947)","v":""},{"$f":"IF('1. Order'!AA947=\"\",\"\",'1. Order'!AA947)","v":""},{"$f":"IF('1. Order'!AB947=\"\",\"\",'1. Order'!AB947)","v":""},null,{"$f":"IF('1. Order'!AT947=\"\",\"\",'1. Order'!AT947)","v":""},{"$f":"IF('1. Order'!AU947=\"\",\"\",'1. Order'!AU947)","v":""},null,null,null,null,null,null,null,{"$f":"IF('1. Order'!AY947=\"\",\"\",'1. Order'!AY947)","v":""},{"$f":"IF('1. Order'!AZ947=\"\",\"\",'1. Order'!AZ947)","v":""},{"$f":"IF('1. Order'!BA947=\"\",\"\",'1. Order'!BA947)","v":""},{"$f":"IF('1. Order'!BB947=\"\",\"\",'1. Order'!BB947)","v":""},{"$f":"IF('1. Order'!BD947=\"\",\"\",'1. Order'!BD947)","v":""},{"$f":"IF('1. Order'!BE947=\"\",\"\",'1. Order'!BE947)","v":""},{"$f":"IF('1. Order'!BF947=\"\",\"\",'1. Order'!BF947)","v":""},{"$f":"IF('1. Order'!BG947=\"\",\"\",'1. Order'!BG947)","v":""},{"$f":"IF('1. Order'!BH947=\"\",\"\",'1. Order'!BH947)","v":"ZWO"}]
[{"$f":"IF('1. Order'!F948=\"\",\"\",'1. Order'!F948)","v":{"$error":"#N/A"}},{"$f":"IF('1. Order'!G948=\"\",\"\",'1. Order'!G948)","v":""},{"$f":"IF('1. Order'!H948=\"\",\"\",'1. Order'!H948)","v":""},{"$f":"IF('1. Order'!I948=\"\",\"\",'1. Order'!I948)","v":""},{"$f":"IF('1. Order'!J948=\"\",\"\",'1. Order'!J948)","v":""},{"$f":"IF('1. Order'!K948=\"\",\"\",'1. Order'!K948)","v":""},{"$f":"IF('1. Order'!L948=\"\",\"\",'1. Order'!L948)","v":""},{"$f":"IF('1. Order'!M948=\"\",\"\",'1. Order'!M948)","v":""},{"$f":"IF('1. Order'!N948=\"\",\"\",'1. Order'!N948)","v":""},{"$f":"IF('1. Order'!O948=\"\",\"\",'1. Order'!O948)","v":{"$error":"#N/A"}},{"$f":"IF('1. Order'!P948=\"\",\"\",'1. Order'!P948)","v":{"$error":"#N/A"}},{"$f":"IF('1. Order'!Q948=\"\",\"\",'1. Order'!Q948)","v":""},{"$f":"IF('1. Order'!S948=\"\",\"\",'1. Order'!S948)","v":""},{"$f":"IF('1. Order'!T948=\"\",\"\",'1. Order'!T948)","v":""},{"$f":"IF('1. Order'!W948=\"\",\"\",'1. Order'!W948)","v":""},{"$f":"IF('1. Order'!X948=\"\",\"\",'1. Order'!X948)","v":""},{"$f":"IF('1. Order'!Y948=\"\",\"\",'1. Order'!Y948)","v":"EUR"},{"$f":"IF('1. Order'!Z948=\"\",\"\",'1. Order'!Z948)","v":""},{"$f":"IF('1. Order'!AA948=\"\",\"\",'1. Order'!AA948)","v":""},{"$f":"IF('1. Order'!AB948=\"\",\"\",'1. Order'!AB948)","v":""},null,{"$f":"IF('1. Order'!AT948=\"\",\"\",'1. Order'!AT948)","v":""},{"$f":"IF('1. Order'!AU948=\"\",\"\",'1. Order'!AU948)","v":""},null,null,null,null,null,null,null,{"$f":"IF('1. Order'!AY948=\"\",\"\",'1. Order'!AY948)","v":""},{"$f":"IF('1. Order'!AZ948=\"\",\"\",'1. Order'!AZ948)","v":""},{"$f":"IF('1. Order'!BA948=\"\",\"\",'1. Order'!BA948)","v":""},{"$f":"IF('1. Order'!BB948=\"\",\"\",'1. Order'!BB948)","v":""},{"$f":"IF('1. Order'!BD948=\"\",\"\",'1. Order'!BD948)","v":""},{"$f":"IF('1. Order'!BE948=\"\",\"\",'1. Order'!BE948)","v":""},{"$f":"IF('1. Order'!BF948=\"\",\"\",'1. Order'!BF948)","v":""},{"$f":"IF('1. Order'!BG948=\"\",\"\",'1. Order'!BG948)","v":""},{"$f":"IF('1. Order'!BH948=\"\",\"\",'1. Order'!BH948)","v":"ZWO"}]
[{"$f":"IF('1. Order'!F949=\"\",\"\",'1. Order'!F949)","v":{"$error":"#N/A"}},{"$f":"IF('1. Order'!G949=\"\",\"\",'1. Order'!G949)","v":""},{"$f":"IF('1. Order'!H949=\"\",\"\",'1. Order'!H949)","v":""},{"$f":"IF('1. Order'!I949=\"\",\"\",'1. Order'!I949)","v":""},{"$f":"IF('1. Order'!J949=\"\",\"\",'1. Order'!J949)","v":""},{"$f":"IF('1. Order'!K949=\"\",\"\",'1. Order'!K949)","v":""},{"$f":"IF('1. Order'!L949=\"\",\"\",'1. Order'!L949)","v":""},{"$f":"IF('1. Order'!M949=\"\",\"\",'1. Order'!M949)","v":""},{"$f":"IF('1. Order'!N949=\"\",\"\",'1. Order'!N949)","v":""},{"$f":"IF('1. Order'!O949=\"\",\"\",'1. Order'!O949)","v":{"$error":"#N/A"}},{"$f":"IF('1. Order'!P949=\"\",\"\",'1. Order'!P949)","v":{"$error":"#N/A"}},{"$f":"IF('1. Order'!Q949=\"\",\"\",'1. Order'!Q949)","v":""},{"$f":"IF('1. Order'!S949=\"\",\"\",'1. Order'!S949)","v":""},{"$f":"IF('1. Order'!T949=\"\",\"\",'1. Order'!T949)","v":""},{"$f":"IF('1. Order'!W949=\"\",\"\",'1. Order'!W949)","v":""},{"$f":"IF('1. Order'!X949=\"\",\"\",'1. Order'!X949)","v":""},{"$f":"IF('1. Order'!Y949=\"\",\"\",'1. Order'!Y949)","v":"EUR"},{"$f":"IF('1. Order'!Z949=\"\",\"\",'1. Order'!Z949)","v":""},{"$f":"IF('1. Order'!AA949=\"\",\"\",'1. Order'!AA949)","v":""},{"$f":"IF('1. Order'!AB949=\"\",\"\",'1. Order'!AB949)","v":""},null,{"$f":"IF('1. Order'!AT949=\"\",\"\",'1. Order'!AT949)","v":""},{"$f":"IF('1. Order'!AU949=\"\",\"\",'1. Order'!AU949)","v":""},null,null,null,null,null,null,null,{"$f":"IF('1. Order'!AY949=\"\",\"\",'1. Order'!AY949)","v":""},{"$f":"IF('1. Order'!AZ949=\"\",\"\",'1. Order'!AZ949)","v":""},{"$f":"IF('1. Order'!BA949=\"\",\"\",'1. Order'!BA949)","v":""},{"$f":"IF('1. Order'!BB949=\"\",\"\",'1. Order'!BB949)","v":""},{"$f":"IF('1. Order'!BD949=\"\",\"\",'1. Order'!BD949)","v":""},{"$f":"IF('1. Order'!BE949=\"\",\"\",'1. Order'!BE949)","v":""},{"$f":"IF('1. Order'!BF949=\"\",\"\",'1. Order'!BF949)","v":""},{"$f":"IF('1. Order'!BG949=\"\",\"\",'1. Order'!BG949)","v":""},{"$f":"IF('1. Order'!BH949=\"\",\"\",'1. Order'!BH949)","v":"ZWO"}]
[{"$f":"IF('1. Order'!F950=\"\",\"\",'1. Order'!F950)","v":{"$error":"#N/A"}},{"$f":"IF('1. Order'!G950=\"\",\"\",'1. Order'!G950)","v":""},{"$f":"IF('1. Order'!H950=\"\",\"\",'1. Order'!H950)","v":""},{"$f":"IF('1. Order'!I950=\"\",\"\",'1. Order'!I950)","v":""},{"$f":"IF('1. Order'!J950=\"\",\"\",'1. Order'!J950)","v":""},{"$f":"IF('1. Order'!K950=\"\",\"\",'1. Order'!K950)","v":""},{"$f":"IF('1. Order'!L950=\"\",\"\",'1. Order'!L950)","v":""},{"$f":"IF('1. Order'!M950=\"\",\"\",'1. Order'!M950)","v":""},{"$f":"IF('1. Order'!N950=\"\",\"\",'1. Order'!N950)","v":""},{"$f":"IF('1. Order'!O950=\"\",\"\",'1. Order'!O950)","v":{"$error":"#N/A"}},{"$f":"IF('1. Order'!P950=\"\",\"\",'1. Order'!P950)","v":{"$error":"#N/A"}},{"$f":"IF('1. Order'!Q950=\"\",\"\",'1. Order'!Q950)","v":""},{"$f":"IF('1. Order'!S950=\"\",\"\",'1. Order'!S950)","v":""},{"$f":"IF('1. Order'!T950=\"\",\"\",'1. Order'!T950)","v":""},{"$f":"IF('1. Order'!W950=\"\",\"\",'1. Order'!W950)","v":""},{"$f":"IF('1. Order'!X950=\"\",\"\",'1. Order'!X950)","v":""},{"$f":"IF('1. Order'!Y950=\"\",\"\",'1. Order'!Y950)","v":"EUR"},{"$f":"IF('1. Order'!Z950=\"\",\"\",'1. Order'!Z950)","v":""},{"$f":"IF('1. Order'!AA950=\"\",\"\",'1. Order'!AA950)","v":""},{"$f":"IF('1. Order'!AB950=\"\",\"\",'1. Order'!AB950)","v":""},null,{"$f":"IF('1. Order'!AT950=\"\",\"\",'1. Order'!AT950)","v":""},{"$f":"IF('1. Order'!AU950=\"\",\"\",'1. Order'!AU950)","v":""},null,null,null,null,null,null,null,{"$f":"IF('1. Order'!AY950=\"\",\"\",'1. Order'!AY950)","v":""},{"$f":"IF('1. Order'!AZ950=\"\",\"\",'1. Order'!AZ950)","v":""},{"$f":"IF('1. Order'!BA950=\"\",\"\",'1. Order'!BA950)","v":""},{"$f":"IF('1. Order'!BB950=\"\",\"\",'1. Order'!BB950)","v":""},{"$f":"IF('1. Order'!BD950=\"\",\"\",'1. Order'!BD950)","v":""},{"$f":"IF('1. Order'!BE950=\"\",\"\",'1. Order'!BE950)","v":""},{"$f":"IF('1. Order'!BF950=\"\",\"\",'1. Order'!BF950)","v":""},{"$f":"IF('1. Order'!BG950=\"\",\"\",'1. Order'!BG950)","v":""},{"$f":"IF('1. Order'!BH950=\"\",\"\",'1. Order'!BH950)","v":"ZWO"}]
[{"$f":"IF('1. Order'!F951=\"\",\"\",'1. Order'!F951)","v":{"$error":"#N/A"}},{"$f":"IF('1. Order'!G951=\"\",\"\",'1. Order'!G951)","v":""},{"$f":"IF('1. Order'!H951=\"\",\"\",'1. Order'!H951)","v":""},{"$f":"IF('1. Order'!I951=\"\",\"\",'1. Order'!I951)","v":""},{"$f":"IF('1. Order'!J951=\"\",\"\",'1. Order'!J951)","v":""},{"$f":"IF('1. Order'!K951=\"\",\"\",'1. Order'!K951)","v":""},{"$f":"IF('1. Order'!L951=\"\",\"\",'1. Order'!L951)","v":""},{"$f":"IF('1. Order'!M951=\"\",\"\",'1. Order'!M951)","v":""},{"$f":"IF('1. Order'!N951=\"\",\"\",'1. Order'!N951)","v":""},{"$f":"IF('1. Order'!O951=\"\",\"\",'1. Order'!O951)","v":{"$error":"#N/A"}},{"$f":"IF('1. Order'!P951=\"\",\"\",'1. Order'!P951)","v":{"$error":"#N/A"}},{"$f":"IF('1. Order'!Q951=\"\",\"\",'1. Order'!Q951)","v":""},{"$f":"IF('1. Order'!S951=\"\",\"\",'1. Order'!S951)","v":""},{"$f":"IF('1. Order'!T951=\"\",\"\",'1. Order'!T951)","v":""},{"$f":"IF('1. Order'!W951=\"\",\"\",'1. Order'!W951)","v":""},{"$f":"IF('1. Order'!X951=\"\",\"\",'1. Order'!X951)","v":""},{"$f":"IF('1. Order'!Y951=\"\",\"\",'1. Order'!Y951)","v":"EUR"},{"$f":"IF('1. Order'!Z951=\"\",\"\",'1. Order'!Z951)","v":""},{"$f":"IF('1. Order'!AA951=\"\",\"\",'1. Order'!AA951)","v":""},{"$f":"IF('1. Order'!AB951=\"\",\"\",'1. Order'!AB951)","v":""},null,{"$f":"IF('1. Order'!AT951=\"\",\"\",'1. Order'!AT951)","v":""},{"$f":"IF('1. Order'!AU951=\"\",\"\",'1. Order'!AU951)","v":""},null,null,null,null,null,null,null,{"$f":"IF('1. Order'!AY951=\"\",\"\",'1. Order'!AY951)","v":""},{"$f":"IF('1. Order'!AZ951=\"\",\"\",'1. Order'!AZ951)","v":""},{"$f":"IF('1. Order'!BA951=\"\",\"\",'1. Order'!BA951)","v":""},{"$f":"IF('1. Order'!BB951=\"\",\"\",'1. Order'!BB951)","v":""},{"$f":"IF('1. Order'!BD951=\"\",\"\",'1. Order'!BD951)","v":""},{"$f":"IF('1. Order'!BE951=\"\",\"\",'1. Order'!BE951)","v":""},{"$f":"IF('1. Order'!BF951=\"\",\"\",'1. Order'!BF951)","v":""},{"$f":"IF('1. Order'!BG951=\"\",\"\",'1. Order'!BG951)","v":""},{"$f":"IF('1. Order'!BH951=\"\",\"\",'1. Order'!BH951)","v":"ZWO"}]
[{"$f":"IF('1. Order'!F952=\"\",\"\",'1. Order'!F952)","v":{"$error":"#N/A"}},{"$f":"IF('1. Order'!G952=\"\",\"\",'1. Order'!G952)","v":""},{"$f":"IF('1. Order'!H952=\"\",\"\",'1. Order'!H952)","v":""},{"$f":"IF('1. Order'!I952=\"\",\"\",'1. Order'!I952)","v":""},{"$f":"IF('1. Order'!J952=\"\",\"\",'1. Order'!J952)","v":""},{"$f":"IF('1. Order'!K952=\"\",\"\",'1. Order'!K952)","v":""},{"$f":"IF('1. Order'!L952=\"\",\"\",'1. Order'!L952)","v":""},{"$f":"IF('1. Order'!M952=\"\",\"\",'1. Order'!M952)","v":""},{"$f":"IF('1. Order'!N952=\"\",\"\",'1. Order'!N952)","v":""},{"$f":"IF('1. Order'!O952=\"\",\"\",'1. Order'!O952)","v":{"$error":"#N/A"}},{"$f":"IF('1. Order'!P952=\"\",\"\",'1. Order'!P952)","v":{"$error":"#N/A"}},{"$f":"IF('1. Order'!Q952=\"\",\"\",'1. Order'!Q952)","v":""},{"$f":"IF('1. Order'!S952=\"\",\"\",'1. Order'!S952)","v":""},{"$f":"IF('1. Order'!T952=\"\",\"\",'1. Order'!T952)","v":""},{"$f":"IF('1. Order'!W952=\"\",\"\",'1. Order'!W952)","v":""},{"$f":"IF('1. Order'!X952=\"\",\"\",'1. Order'!X952)","v":""},{"$f":"IF('1. Order'!Y952=\"\",\"\",'1. Order'!Y952)","v":"EUR"},{"$f":"IF('1. Order'!Z952=\"\",\"\",'1. Order'!Z952)","v":""},{"$f":"IF('1. Order'!AA952=\"\",\"\",'1. Order'!AA952)","v":""},{"$f":"IF('1. Order'!AB952=\"\",\"\",'1. Order'!AB952)","v":""},null,{"$f":"IF('1. Order'!AT952=\"\",\"\",'1. Order'!AT952)","v":""},{"$f":"IF('1. Order'!AU952=\"\",\"\",'1. Order'!AU952)","v":""},null,null,null,null,null,null,null,{"$f":"IF('1. Order'!AY952=\"\",\"\",'1. Order'!AY952)","v":""},{"$f":"IF('1. Order'!AZ952=\"\",\"\",'1. Order'!AZ952)","v":""},{"$f":"IF('1. Order'!BA952=\"\",\"\",'1. Order'!BA952)","v":""},{"$f":"IF('1. Order'!BB952=\"\",\"\",'1. Order'!BB952)","v":""},{"$f":"IF('1. Order'!BD952=\"\",\"\",'1. Order'!BD952)","v":""},{"$f":"IF('1. Order'!BE952=\"\",\"\",'1. Order'!BE952)","v":""},{"$f":"IF('1. Order'!BF952=\"\",\"\",'1. Order'!BF952)","v":""},{"$f":"IF('1. Order'!BG952=\"\",\"\",'1. Order'!BG952)","v":""},{"$f":"IF('1. Order'!BH952=\"\",\"\",'1. Order'!BH952)","v":"ZWO"}]
[{"$f":"IF('1. Order'!F953=\"\",\"\",'1. Order'!F953)","v":{"$error":"#N/A"}},{"$f":"IF('1. Order'!G953=\"\",\"\",'1. Order'!G953)","v":""},{"$f":"IF('1. Order'!H953=\"\",\"\",'1. Order'!H953)","v":""},{"$f":"IF('1. Order'!I953=\"\",\"\",'1. Order'!I953)","v":""},{"$f":"IF('1. Order'!J953=\"\",\"\",'1. Order'!J953)","v":""},{"$f":"IF('1. Order'!K953=\"\",\"\",'1. Order'!K953)","v":""},{"$f":"IF('1. Order'!L953=\"\",\"\",'1. Order'!L953)","v":""},{"$f":"IF('1. Order'!M953=\"\",\"\",'1. Order'!M953)","v":""},{"$f":"IF('1. Order'!N953=\"\",\"\",'1. Order'!N953)","v":""},{"$f":"IF('1. Order'!O953=\"\",\"\",'1. Order'!O953)","v":{"$error":"#N/A"}},{"$f":"IF('1. Order'!P953=\"\",\"\",'1. Order'!P953)","v":{"$error":"#N/A"}},{"$f":"IF('1. Order'!Q953=\"\",\"\",'1. Order'!Q953)","v":""},{"$f":"IF('1. Order'!S953=\"\",\"\",'1. Order'!S953)","v":""},{"$f":"IF('1. Order'!T953=\"\",\"\",'1. Order'!T953)","v":""},{"$f":"IF('1. Order'!W953=\"\",\"\",'1. Order'!W953)","v":""},{"$f":"IF('1. Order'!X953=\"\",\"\",'1. Order'!X953)","v":""},{"$f":"IF('1. Order'!Y953=\"\",\"\",'1. Order'!Y953)","v":"EUR"},{"$f":"IF('1. Order'!Z953=\"\",\"\",'1. Order'!Z953)","v":""},{"$f":"IF('1. Order'!AA953=\"\",\"\",'1. Order'!AA953)","v":""},{"$f":"IF('1. Order'!AB953=\"\",\"\",'1. Order'!AB953)","v":""},null,{"$f":"IF('1. Order'!AT953=\"\",\"\",'1. Order'!AT953)","v":""},{"$f":"IF('1. Order'!AU953=\"\",\"\",'1. Order'!AU953)","v":""},null,null,null,null,null,null,null,{"$f":"IF('1. Order'!AY953=\"\",\"\",'1. Order'!AY953)","v":""},{"$f":"IF('1. Order'!AZ953=\"\",\"\",'1. Order'!AZ953)","v":""},{"$f":"IF('1. Order'!BA953=\"\",\"\",'1. Order'!BA953)","v":""},{"$f":"IF('1. Order'!BB953=\"\",\"\",'1. Order'!BB953)","v":""},{"$f":"IF('1. Order'!BD953=\"\",\"\",'1. Order'!BD953)","v":""},{"$f":"IF('1. Order'!BE953=\"\",\"\",'1. Order'!BE953)","v":""},{"$f":"IF('1. Order'!BF953=\"\",\"\",'1. Order'!BF953)","v":""},{"$f":"IF('1. Order'!BG953=\"\",\"\",'1. Order'!BG953)","v":""},{"$f":"IF('1. Order'!BH953=\"\",\"\",'1. Order'!BH953)","v":"ZWO"}]
[{"$f":"IF('1. Order'!F954=\"\",\"\",'1. Order'!F954)","v":{"$error":"#N/A"}},{"$f":"IF('1. Order'!G954=\"\",\"\",'1. Order'!G954)","v":""},{"$f":"IF('1. Order'!H954=\"\",\"\",'1. Order'!H954)","v":""},{"$f":"IF('1. Order'!I954=\"\",\"\",'1. Order'!I954)","v":""},{"$f":"IF('1. Order'!J954=\"\",\"\",'1. Order'!J954)","v":""},{"$f":"IF('1. Order'!K954=\"\",\"\",'1. Order'!K954)","v":""},{"$f":"IF('1. Order'!L954=\"\",\"\",'1. Order'!L954)","v":""},{"$f":"IF('1. Order'!M954=\"\",\"\",'1. Order'!M954)","v":""},{"$f":"IF('1. Order'!N954=\"\",\"\",'1. Order'!N954)","v":""},{"$f":"IF('1. Order'!O954=\"\",\"\",'1. Order'!O954)","v":{"$error":"#N/A"}},{"$f":"IF('1. Order'!P954=\"\",\"\",'1. Order'!P954)","v":{"$error":"#N/A"}},{"$f":"IF('1. Order'!Q954=\"\",\"\",'1. Order'!Q954)","v":""},{"$f":"IF('1. Order'!S954=\"\",\"\",'1. Order'!S954)","v":""},{"$f":"IF('1. Order'!T954=\"\",\"\",'1. Order'!T954)","v":""},{"$f":"IF('1. Order'!W954=\"\",\"\",'1. Order'!W954)","v":""},{"$f":"IF('1. Order'!X954=\"\",\"\",'1. Order'!X954)","v":""},{"$f":"IF('1. Order'!Y954=\"\",\"\",'1. Order'!Y954)","v":"EUR"},{"$f":"IF('1. Order'!Z954=\"\",\"\",'1. Order'!Z954)","v":""},{"$f":"IF('1. Order'!AA954=\"\",\"\",'1. Order'!AA954)","v":""},{"$f":"IF('1. Order'!AB954=\"\",\"\",'1. Order'!AB954)","v":""},null,{"$f":"IF('1. Order'!AT954=\"\",\"\",'1. Order'!AT954)","v":""},{"$f":"IF('1. Order'!AU954=\"\",\"\",'1. Order'!AU954)","v":""},null,null,null,null,null,null,null,{"$f":"IF('1. Order'!AY954=\"\",\"\",'1. Order'!AY954)","v":""},{"$f":"IF('1. Order'!AZ954=\"\",\"\",'1. Order'!AZ954)","v":""},{"$f":"IF('1. Order'!BA954=\"\",\"\",'1. Order'!BA954)","v":""},{"$f":"IF('1. Order'!BB954=\"\",\"\",'1. Order'!BB954)","v":""},{"$f":"IF('1. Order'!BD954=\"\",\"\",'1. Order'!BD954)","v":""},{"$f":"IF('1. Order'!BE954=\"\",\"\",'1. Order'!BE954)","v":""},{"$f":"IF('1. Order'!BF954=\"\",\"\",'1. Order'!BF954)","v":""},{"$f":"IF('1. Order'!BG954=\"\",\"\",'1. Order'!BG954)","v":""},{"$f":"IF('1. Order'!BH954=\"\",\"\",'1. Order'!BH954)","v":"ZWO"}]
[{"$f":"IF('1. Order'!F955=\"\",\"\",'1. Order'!F955)","v":{"$error":"#N/A"}},{"$f":"IF('1. Order'!G955=\"\",\"\",'1. Order'!G955)","v":""},{"$f":"IF('1. Order'!H955=\"\",\"\",'1. Order'!H955)","v":""},{"$f":"IF('1. Order'!I955=\"\",\"\",'1. Order'!I955)","v":""},{"$f":"IF('1. Order'!J955=\"\",\"\",'1. Order'!J955)","v":""},{"$f":"IF('1. Order'!K955=\"\",\"\",'1. Order'!K955)","v":""},{"$f":"IF('1. Order'!L955=\"\",\"\",'1. Order'!L955)","v":""},{"$f":"IF('1. Order'!M955=\"\",\"\",'1. Order'!M955)","v":""},{"$f":"IF('1. Order'!N955=\"\",\"\",'1. Order'!N955)","v":""},{"$f":"IF('1. Order'!O955=\"\",\"\",'1. Order'!O955)","v":{"$error":"#N/A"}},{"$f":"IF('1. Order'!P955=\"\",\"\",'1. Order'!P955)","v":{"$error":"#N/A"}},{"$f":"IF('1. Order'!Q955=\"\",\"\",'1. Order'!Q955)","v":""},{"$f":"IF('1. Order'!S955=\"\",\"\",'1. Order'!S955)","v":""},{"$f":"IF('1. Order'!T955=\"\",\"\",'1. Order'!T955)","v":""},{"$f":"IF('1. Order'!W955=\"\",\"\",'1. Order'!W955)","v":""},{"$f":"IF('1. Order'!X955=\"\",\"\",'1. Order'!X955)","v":""},{"$f":"IF('1. Order'!Y955=\"\",\"\",'1. Order'!Y955)","v":"EUR"},{"$f":"IF('1. Order'!Z955=\"\",\"\",'1. Order'!Z955)","v":""},{"$f":"IF('1. Order'!AA955=\"\",\"\",'1. Order'!AA955)","v":""},{"$f":"IF('1. Order'!AB955=\"\",\"\",'1. Order'!AB955)","v":""},null,{"$f":"IF('1. Order'!AT955=\"\",\"\",'1. Order'!AT955)","v":""},{"$f":"IF('1. Order'!AU955=\"\",\"\",'1. Order'!AU955)","v":""},null,null,null,null,null,null,null,{"$f":"IF('1. Order'!AY955=\"\",\"\",'1. Order'!AY955)","v":""},{"$f":"IF('1. Order'!AZ955=\"\",\"\",'1. Order'!AZ955)","v":""},{"$f":"IF('1. Order'!BA955=\"\",\"\",'1. Order'!BA955)","v":""},{"$f":"IF('1. Order'!BB955=\"\",\"\",'1. Order'!BB955)","v":""},{"$f":"IF('1. Order'!BD955=\"\",\"\",'1. Order'!BD955)","v":""},{"$f":"IF('1. Order'!BE955=\"\",\"\",'1. Order'!BE955)","v":""},{"$f":"IF('1. Order'!BF955=\"\",\"\",'1. Order'!BF955)","v":""},{"$f":"IF('1. Order'!BG955=\"\",\"\",'1. Order'!BG955)","v":""},{"$f":"IF('1. Order'!BH955=\"\",\"\",'1. Order'!BH955)","v":"ZWO"}]
[{"$f":"IF('1. Order'!F956=\"\",\"\",'1. Order'!F956)","v":{"$error":"#N/A"}},{"$f":"IF('1. Order'!G956=\"\",\"\",'1. Order'!G956)","v":""},{"$f":"IF('1. Order'!H956=\"\",\"\",'1. Order'!H956)","v":""},{"$f":"IF('1. Order'!I956=\"\",\"\",'1. Order'!I956)","v":""},{"$f":"IF('1. Order'!J956=\"\",\"\",'1. Order'!J956)","v":""},{"$f":"IF('1. Order'!K956=\"\",\"\",'1. Order'!K956)","v":""},{"$f":"IF('1. Order'!L956=\"\",\"\",'1. Order'!L956)","v":""},{"$f":"IF('1. Order'!M956=\"\",\"\",'1. Order'!M956)","v":""},{"$f":"IF('1. Order'!N956=\"\",\"\",'1. Order'!N956)","v":""},{"$f":"IF('1. Order'!O956=\"\",\"\",'1. Order'!O956)","v":{"$error":"#N/A"}},{"$f":"IF('1. Order'!P956=\"\",\"\",'1. Order'!P956)","v":{"$error":"#N/A"}},{"$f":"IF('1. Order'!Q956=\"\",\"\",'1. Order'!Q956)","v":""},{"$f":"IF('1. Order'!S956=\"\",\"\",'1. Order'!S956)","v":""},{"$f":"IF('1. Order'!T956=\"\",\"\",'1. Order'!T956)","v":""},{"$f":"IF('1. Order'!W956=\"\",\"\",'1. Order'!W956)","v":""},{"$f":"IF('1. Order'!X956=\"\",\"\",'1. Order'!X956)","v":""},{"$f":"IF('1. Order'!Y956=\"\",\"\",'1. Order'!Y956)","v":"EUR"},{"$f":"IF('1. Order'!Z956=\"\",\"\",'1. Order'!Z956)","v":""},{"$f":"IF('1. Order'!AA956=\"\",\"\",'1. Order'!AA956)","v":""},{"$f":"IF('1. Order'!AB956=\"\",\"\",'1. Order'!AB956)","v":""},null,{"$f":"IF('1. Order'!AT956=\"\",\"\",'1. Order'!AT956)","v":""},{"$f":"IF('1. Order'!AU956=\"\",\"\",'1. Order'!AU956)","v":""},null,null,null,null,null,null,null,{"$f":"IF('1. Order'!AY956=\"\",\"\",'1. Order'!AY956)","v":""},{"$f":"IF('1. Order'!AZ956=\"\",\"\",'1. Order'!AZ956)","v":""},{"$f":"IF('1. Order'!BA956=\"\",\"\",'1. Order'!BA956)","v":""},{"$f":"IF('1. Order'!BB956=\"\",\"\",'1. Order'!BB956)","v":""},{"$f":"IF('1. Order'!BD956=\"\",\"\",'1. Order'!BD956)","v":""},{"$f":"IF('1. Order'!BE956=\"\",\"\",'1. Order'!BE956)","v":""},{"$f":"IF('1. Order'!BF956=\"\",\"\",'1. Order'!BF956)","v":""},{"$f":"IF('1. Order'!BG956=\"\",\"\",'1. Order'!BG956)","v":""},{"$f":"IF('1. Order'!BH956=\"\",\"\",'1. Order'!BH956)","v":"ZWO"}]
[{"$f":"IF('1. Order'!F957=\"\",\"\",'1. Order'!F957)","v":{"$error":"#N/A"}},{"$f":"IF('1. Order'!G957=\"\",\"\",'1. Order'!G957)","v":""},{"$f":"IF('1. Order'!H957=\"\",\"\",'1. Order'!H957)","v":""},{"$f":"IF('1. Order'!I957=\"\",\"\",'1. Order'!I957)","v":""},{"$f":"IF('1. Order'!J957=\"\",\"\",'1. Order'!J957)","v":""},{"$f":"IF('1. Order'!K957=\"\",\"\",'1. Order'!K957)","v":""},{"$f":"IF('1. Order'!L957=\"\",\"\",'1. Order'!L957)","v":""},{"$f":"IF('1. Order'!M957=\"\",\"\",'1. Order'!M957)","v":""},{"$f":"IF('1. Order'!N957=\"\",\"\",'1. Order'!N957)","v":""},{"$f":"IF('1. Order'!O957=\"\",\"\",'1. Order'!O957)","v":{"$error":"#N/A"}},{"$f":"IF('1. Order'!P957=\"\",\"\",'1. Order'!P957)","v":{"$error":"#N/A"}},{"$f":"IF('1. Order'!Q957=\"\",\"\",'1. Order'!Q957)","v":""},{"$f":"IF('1. Order'!S957=\"\",\"\",'1. Order'!S957)","v":""},{"$f":"IF('1. Order'!T957=\"\",\"\",'1. Order'!T957)","v":""},{"$f":"IF('1. Order'!W957=\"\",\"\",'1. Order'!W957)","v":""},{"$f":"IF('1. Order'!X957=\"\",\"\",'1. Order'!X957)","v":""},{"$f":"IF('1. Order'!Y957=\"\",\"\",'1. Order'!Y957)","v":"EUR"},{"$f":"IF('1. Order'!Z957=\"\",\"\",'1. Order'!Z957)","v":""},{"$f":"IF('1. Order'!AA957=\"\",\"\",'1. Order'!AA957)","v":""},{"$f":"IF('1. Order'!AB957=\"\",\"\",'1. Order'!AB957)","v":""},null,{"$f":"IF('1. Order'!AT957=\"\",\"\",'1. Order'!AT957)","v":""},{"$f":"IF('1. Order'!AU957=\"\",\"\",'1. Order'!AU957)","v":""},null,null,null,null,null,null,null,{"$f":"IF('1. Order'!AY957=\"\",\"\",'1. Order'!AY957)","v":""},{"$f":"IF('1. Order'!AZ957=\"\",\"\",'1. Order'!AZ957)","v":""},{"$f":"IF('1. Order'!BA957=\"\",\"\",'1. Order'!BA957)","v":""},{"$f":"IF('1. Order'!BB957=\"\",\"\",'1. Order'!BB957)","v":""},{"$f":"IF('1. Order'!BD957=\"\",\"\",'1. Order'!BD957)","v":""},{"$f":"IF('1. Order'!BE957=\"\",\"\",'1. Order'!BE957)","v":""},{"$f":"IF('1. Order'!BF957=\"\",\"\",'1. Order'!BF957)","v":""},{"$f":"IF('1. Order'!BG957=\"\",\"\",'1. Order'!BG957)","v":""},{"$f":"IF('1. Order'!BH957=\"\",\"\",'1. Order'!BH957)","v":"ZWO"}]
[{"$f":"IF('1. Order'!F958=\"\",\"\",'1. Order'!F958)","v":{"$error":"#N/A"}},{"$f":"IF('1. Order'!G958=\"\",\"\",'1. Order'!G958)","v":""},{"$f":"IF('1. Order'!H958=\"\",\"\",'1. Order'!H958)","v":""},{"$f":"IF('1. Order'!I958=\"\",\"\",'1. Order'!I958)","v":""},{"$f":"IF('1. Order'!J958=\"\",\"\",'1. Order'!J958)","v":""},{"$f":"IF('1. Order'!K958=\"\",\"\",'1. Order'!K958)","v":""},{"$f":"IF('1. Order'!L958=\"\",\"\",'1. Order'!L958)","v":""},{"$f":"IF('1. Order'!M958=\"\",\"\",'1. Order'!M958)","v":""},{"$f":"IF('1. Order'!N958=\"\",\"\",'1. Order'!N958)","v":""},{"$f":"IF('1. Order'!O958=\"\",\"\",'1. Order'!O958)","v":{"$error":"#N/A"}},{"$f":"IF('1. Order'!P958=\"\",\"\",'1. Order'!P958)","v":{"$error":"#N/A"}},{"$f":"IF('1. Order'!Q958=\"\",\"\",'1. Order'!Q958)","v":""},{"$f":"IF('1. Order'!S958=\"\",\"\",'1. Order'!S958)","v":""},{"$f":"IF('1. Order'!T958=\"\",\"\",'1. Order'!T958)","v":""},{"$f":"IF('1. Order'!W958=\"\",\"\",'1. Order'!W958)","v":""},{"$f":"IF('1. Order'!X958=\"\",\"\",'1. Order'!X958)","v":""},{"$f":"IF('1. Order'!Y958=\"\",\"\",'1. Order'!Y958)","v":"EUR"},{"$f":"IF('1. Order'!Z958=\"\",\"\",'1. Order'!Z958)","v":""},{"$f":"IF('1. Order'!AA958=\"\",\"\",'1. Order'!AA958)","v":""},{"$f":"IF('1. Order'!AB958=\"\",\"\",'1. Order'!AB958)","v":""},null,{"$f":"IF('1. Order'!AT958=\"\",\"\",'1. Order'!AT958)","v":""},{"$f":"IF('1. Order'!AU958=\"\",\"\",'1. Order'!AU958)","v":""},null,null,null,null,null,null,null,{"$f":"IF('1. Order'!AY958=\"\",\"\",'1. Order'!AY958)","v":""},{"$f":"IF('1. Order'!AZ958=\"\",\"\",'1. Order'!AZ958)","v":""},{"$f":"IF('1. Order'!BA958=\"\",\"\",'1. Order'!BA958)","v":""},{"$f":"IF('1. Order'!BB958=\"\",\"\",'1. Order'!BB958)","v":""},{"$f":"IF('1. Order'!BD958=\"\",\"\",'1. Order'!BD958)","v":""},{"$f":"IF('1. Order'!BE958=\"\",\"\",'1. Order'!BE958)","v":""},{"$f":"IF('1. Order'!BF958=\"\",\"\",'1. Order'!BF958)","v":""},{"$f":"IF('1. Order'!BG958=\"\",\"\",'1. Order'!BG958)","v":""},{"$f":"IF('1. Order'!BH958=\"\",\"\",'1. Order'!BH958)","v":"ZWO"}]
[{"$f":"IF('1. Order'!F959=\"\",\"\",'1. Order'!F959)","v":{"$error":"#N/A"}},{"$f":"IF('1. Order'!G959=\"\",\"\",'1. Order'!G959)","v":""},{"$f":"IF('1. Order'!H959=\"\",\"\",'1. Order'!H959)","v":""},{"$f":"IF('1. Order'!I959=\"\",\"\",'1. Order'!I959)","v":""},{"$f":"IF('1. Order'!J959=\"\",\"\",'1. Order'!J959)","v":""},{"$f":"IF('1. Order'!K959=\"\",\"\",'1. Order'!K959)","v":""},{"$f":"IF('1. Order'!L959=\"\",\"\",'1. Order'!L959)","v":""},{"$f":"IF('1. Order'!M959=\"\",\"\",'1. Order'!M959)","v":""},{"$f":"IF('1. Order'!N959=\"\",\"\",'1. Order'!N959)","v":""},{"$f":"IF('1. Order'!O959=\"\",\"\",'1. Order'!O959)","v":{"$error":"#N/A"}},{"$f":"IF('1. Order'!P959=\"\",\"\",'1. Order'!P959)","v":{"$error":"#N/A"}},{"$f":"IF('1. Order'!Q959=\"\",\"\",'1. Order'!Q959)","v":""},{"$f":"IF('1. Order'!S959=\"\",\"\",'1. Order'!S959)","v":""},{"$f":"IF('1. Order'!T959=\"\",\"\",'1. Order'!T959)","v":""},{"$f":"IF('1. Order'!W959=\"\",\"\",'1. Order'!W959)","v":""},{"$f":"IF('1. Order'!X959=\"\",\"\",'1. Order'!X959)","v":""},{"$f":"IF('1. Order'!Y959=\"\",\"\",'1. Order'!Y959)","v":"EUR"},{"$f":"IF('1. Order'!Z959=\"\",\"\",'1. Order'!Z959)","v":""},{"$f":"IF('1. Order'!AA959=\"\",\"\",'1. Order'!AA959)","v":""},{"$f":"IF('1. Order'!AB959=\"\",\"\",'1. Order'!AB959)","v":""},null,{"$f":"IF('1. Order'!AT959=\"\",\"\",'1. Order'!AT959)","v":""},{"$f":"IF('1. Order'!AU959=\"\",\"\",'1. Order'!AU959)","v":""},null,null,null,null,null,null,null,{"$f":"IF('1. Order'!AY959=\"\",\"\",'1. Order'!AY959)","v":""},{"$f":"IF('1. Order'!AZ959=\"\",\"\",'1. Order'!AZ959)","v":""},{"$f":"IF('1. Order'!BA959=\"\",\"\",'1. Order'!BA959)","v":""},{"$f":"IF('1. Order'!BB959=\"\",\"\",'1. Order'!BB959)","v":""},{"$f":"IF('1. Order'!BD959=\"\",\"\",'1. Order'!BD959)","v":""},{"$f":"IF('1. Order'!BE959=\"\",\"\",'1. Order'!BE959)","v":""},{"$f":"IF('1. Order'!BF959=\"\",\"\",'1. Order'!BF959)","v":""},{"$f":"IF('1. Order'!BG959=\"\",\"\",'1. Order'!BG959)","v":""},{"$f":"IF('1. Order'!BH959=\"\",\"\",'1. Order'!BH959)","v":"ZWO"}]
[{"$f":"IF('1. Order'!F960=\"\",\"\",'1. Order'!F960)","v":{"$error":"#N/A"}},{"$f":"IF('1. Order'!G960=\"\",\"\",'1. Order'!G960)","v":""},{"$f":"IF('1. Order'!H960=\"\",\"\",'1. Order'!H960)","v":""},{"$f":"IF('1. Order'!I960=\"\",\"\",'1. Order'!I960)","v":""},{"$f":"IF('1. Order'!J960=\"\",\"\",'1. Order'!J960)","v":""},{"$f":"IF('1. Order'!K960=\"\",\"\",'1. Order'!K960)","v":""},{"$f":"IF('1. Order'!L960=\"\",\"\",'1. Order'!L960)","v":""},{"$f":"IF('1. Order'!M960=\"\",\"\",'1. Order'!M960)","v":""},{"$f":"IF('1. Order'!N960=\"\",\"\",'1. Order'!N960)","v":""},{"$f":"IF('1. Order'!O960=\"\",\"\",'1. Order'!O960)","v":{"$error":"#N/A"}},{"$f":"IF('1. Order'!P960=\"\",\"\",'1. Order'!P960)","v":{"$error":"#N/A"}},{"$f":"IF('1. Order'!Q960=\"\",\"\",'1. Order'!Q960)","v":""},{"$f":"IF('1. Order'!S960=\"\",\"\",'1. Order'!S960)","v":""},{"$f":"IF('1. Order'!T960=\"\",\"\",'1. Order'!T960)","v":""},{"$f":"IF('1. Order'!W960=\"\",\"\",'1. Order'!W960)","v":""},{"$f":"IF('1. Order'!X960=\"\",\"\",'1. Order'!X960)","v":""},{"$f":"IF('1. Order'!Y960=\"\",\"\",'1. Order'!Y960)","v":"EUR"},{"$f":"IF('1. Order'!Z960=\"\",\"\",'1. Order'!Z960)","v":""},{"$f":"IF('1. Order'!AA960=\"\",\"\",'1. Order'!AA960)","v":""},{"$f":"IF('1. Order'!AB960=\"\",\"\",'1. Order'!AB960)","v":""},null,{"$f":"IF('1. Order'!AT960=\"\",\"\",'1. Order'!AT960)","v":""},{"$f":"IF('1. Order'!AU960=\"\",\"\",'1. Order'!AU960)","v":""},null,null,null,null,null,null,null,{"$f":"IF('1. Order'!AY960=\"\",\"\",'1. Order'!AY960)","v":""},{"$f":"IF('1. Order'!AZ960=\"\",\"\",'1. Order'!AZ960)","v":""},{"$f":"IF('1. Order'!BA960=\"\",\"\",'1. Order'!BA960)","v":""},{"$f":"IF('1. Order'!BB960=\"\",\"\",'1. Order'!BB960)","v":""},{"$f":"IF('1. Order'!BD960=\"\",\"\",'1. Order'!BD960)","v":""},{"$f":"IF('1. Order'!BE960=\"\",\"\",'1. Order'!BE960)","v":""},{"$f":"IF('1. Order'!BF960=\"\",\"\",'1. Order'!BF960)","v":""},{"$f":"IF('1. Order'!BG960=\"\",\"\",'1. Order'!BG960)","v":""},{"$f":"IF('1. Order'!BH960=\"\",\"\",'1. Order'!BH960)","v":"ZWO"}]
[{"$f":"IF('1. Order'!F961=\"\",\"\",'1. Order'!F961)","v":{"$error":"#N/A"}},{"$f":"IF('1. Order'!G961=\"\",\"\",'1. Order'!G961)","v":""},{"$f":"IF('1. Order'!H961=\"\",\"\",'1. Order'!H961)","v":""},{"$f":"IF('1. Order'!I961=\"\",\"\",'1. Order'!I961)","v":""},{"$f":"IF('1. Order'!J961=\"\",\"\",'1. Order'!J961)","v":""},{"$f":"IF('1. Order'!K961=\"\",\"\",'1. Order'!K961)","v":""},{"$f":"IF('1. Order'!L961=\"\",\"\",'1. Order'!L961)","v":""},{"$f":"IF('1. Order'!M961=\"\",\"\",'1. Order'!M961)","v":""},{"$f":"IF('1. Order'!N961=\"\",\"\",'1. Order'!N961)","v":""},{"$f":"IF('1. Order'!O961=\"\",\"\",'1. Order'!O961)","v":{"$error":"#N/A"}},{"$f":"IF('1. Order'!P961=\"\",\"\",'1. Order'!P961)","v":{"$error":"#N/A"}},{"$f":"IF('1. Order'!Q961=\"\",\"\",'1. Order'!Q961)","v":""},{"$f":"IF('1. Order'!S961=\"\",\"\",'1. Order'!S961)","v":""},{"$f":"IF('1. Order'!T961=\"\",\"\",'1. Order'!T961)","v":""},{"$f":"IF('1. Order'!W961=\"\",\"\",'1. Order'!W961)","v":""},{"$f":"IF('1. Order'!X961=\"\",\"\",'1. Order'!X961)","v":""},{"$f":"IF('1. Order'!Y961=\"\",\"\",'1. Order'!Y961)","v":"EUR"},{"$f":"IF('1. Order'!Z961=\"\",\"\",'1. Order'!Z961)","v":""},{"$f":"IF('1. Order'!AA961=\"\",\"\",'1. Order'!AA961)","v":""},{"$f":"IF('1. Order'!AB961=\"\",\"\",'1. Order'!AB961)","v":""},null,{"$f":"IF('1. Order'!AT961=\"\",\"\",'1. Order'!AT961)","v":""},{"$f":"IF('1. Order'!AU961=\"\",\"\",'1. Order'!AU961)","v":""},null,null,null,null,null,null,null,{"$f":"IF('1. Order'!AY961=\"\",\"\",'1. Order'!AY961)","v":""},{"$f":"IF('1. Order'!AZ961=\"\",\"\",'1. Order'!AZ961)","v":""},{"$f":"IF('1. Order'!BA961=\"\",\"\",'1. Order'!BA961)","v":""},{"$f":"IF('1. Order'!BB961=\"\",\"\",'1. Order'!BB961)","v":""},{"$f":"IF('1. Order'!BD961=\"\",\"\",'1. Order'!BD961)","v":""},{"$f":"IF('1. Order'!BE961=\"\",\"\",'1. Order'!BE961)","v":""},{"$f":"IF('1. Order'!BF961=\"\",\"\",'1. Order'!BF961)","v":""},{"$f":"IF('1. Order'!BG961=\"\",\"\",'1. Order'!BG961)","v":""},{"$f":"IF('1. Order'!BH961=\"\",\"\",'1. Order'!BH961)","v":"ZWO"}]
[{"$f":"IF('1. Order'!F962=\"\",\"\",'1. Order'!F962)","v":{"$error":"#N/A"}},{"$f":"IF('1. Order'!G962=\"\",\"\",'1. Order'!G962)","v":""},{"$f":"IF('1. Order'!H962=\"\",\"\",'1. Order'!H962)","v":""},{"$f":"IF('1. Order'!I962=\"\",\"\",'1. Order'!I962)","v":""},{"$f":"IF('1. Order'!J962=\"\",\"\",'1. Order'!J962)","v":""},{"$f":"IF('1. Order'!K962=\"\",\"\",'1. Order'!K962)","v":""},{"$f":"IF('1. Order'!L962=\"\",\"\",'1. Order'!L962)","v":""},{"$f":"IF('1. Order'!M962=\"\",\"\",'1. Order'!M962)","v":""},{"$f":"IF('1. Order'!N962=\"\",\"\",'1. Order'!N962)","v":""},{"$f":"IF('1. Order'!O962=\"\",\"\",'1. Order'!O962)","v":{"$error":"#N/A"}},{"$f":"IF('1. Order'!P962=\"\",\"\",'1. Order'!P962)","v":{"$error":"#N/A"}},{"$f":"IF('1. Order'!Q962=\"\",\"\",'1. Order'!Q962)","v":""},{"$f":"IF('1. Order'!S962=\"\",\"\",'1. Order'!S962)","v":""},{"$f":"IF('1. Order'!T962=\"\",\"\",'1. Order'!T962)","v":""},{"$f":"IF('1. Order'!W962=\"\",\"\",'1. Order'!W962)","v":""},{"$f":"IF('1. Order'!X962=\"\",\"\",'1. Order'!X962)","v":""},{"$f":"IF('1. Order'!Y962=\"\",\"\",'1. Order'!Y962)","v":"EUR"},{"$f":"IF('1. Order'!Z962=\"\",\"\",'1. Order'!Z962)","v":""},{"$f":"IF('1. Order'!AA962=\"\",\"\",'1. Order'!AA962)","v":""},{"$f":"IF('1. Order'!AB962=\"\",\"\",'1. Order'!AB962)","v":""},null,{"$f":"IF('1. Order'!AT962=\"\",\"\",'1. Order'!AT962)","v":""},{"$f":"IF('1. Order'!AU962=\"\",\"\",'1. Order'!AU962)","v":""},null,null,null,null,null,null,null,{"$f":"IF('1. Order'!AY962=\"\",\"\",'1. Order'!AY962)","v":""},{"$f":"IF('1. Order'!AZ962=\"\",\"\",'1. Order'!AZ962)","v":""},{"$f":"IF('1. Order'!BA962=\"\",\"\",'1. Order'!BA962)","v":""},{"$f":"IF('1. Order'!BB962=\"\",\"\",'1. Order'!BB962)","v":""},{"$f":"IF('1. Order'!BD962=\"\",\"\",'1. Order'!BD962)","v":""},{"$f":"IF('1. Order'!BE962=\"\",\"\",'1. Order'!BE962)","v":""},{"$f":"IF('1. Order'!BF962=\"\",\"\",'1. Order'!BF962)","v":""},{"$f":"IF('1. Order'!BG962=\"\",\"\",'1. Order'!BG962)","v":""},{"$f":"IF('1. Order'!BH962=\"\",\"\",'1. Order'!BH962)","v":"ZWO"}]
[{"$f":"IF('1. Order'!F963=\"\",\"\",'1. Order'!F963)","v":{"$error":"#N/A"}},{"$f":"IF('1. Order'!G963=\"\",\"\",'1. Order'!G963)","v":""},{"$f":"IF('1. Order'!H963=\"\",\"\",'1. Order'!H963)","v":""},{"$f":"IF('1. Order'!I963=\"\",\"\",'1. Order'!I963)","v":""},{"$f":"IF('1. Order'!J963=\"\",\"\",'1. Order'!J963)","v":""},{"$f":"IF('1. Order'!K963=\"\",\"\",'1. Order'!K963)","v":""},{"$f":"IF('1. Order'!L963=\"\",\"\",'1. Order'!L963)","v":""},{"$f":"IF('1. Order'!M963=\"\",\"\",'1. Order'!M963)","v":""},{"$f":"IF('1. Order'!N963=\"\",\"\",'1. Order'!N963)","v":""},{"$f":"IF('1. Order'!O963=\"\",\"\",'1. Order'!O963)","v":{"$error":"#N/A"}},{"$f":"IF('1. Order'!P963=\"\",\"\",'1. Order'!P963)","v":{"$error":"#N/A"}},{"$f":"IF('1. Order'!Q963=\"\",\"\",'1. Order'!Q963)","v":""},{"$f":"IF('1. Order'!S963=\"\",\"\",'1. Order'!S963)","v":""},{"$f":"IF('1. Order'!T963=\"\",\"\",'1. Order'!T963)","v":""},{"$f":"IF('1. Order'!W963=\"\",\"\",'1. Order'!W963)","v":""},{"$f":"IF('1. Order'!X963=\"\",\"\",'1. Order'!X963)","v":""},{"$f":"IF('1. Order'!Y963=\"\",\"\",'1. Order'!Y963)","v":"EUR"},{"$f":"IF('1. Order'!Z963=\"\",\"\",'1. Order'!Z963)","v":""},{"$f":"IF('1. Order'!AA963=\"\",\"\",'1. Order'!AA963)","v":""},{"$f":"IF('1. Order'!AB963=\"\",\"\",'1. Order'!AB963)","v":""},null,{"$f":"IF('1. Order'!AT963=\"\",\"\",'1. Order'!AT963)","v":""},{"$f":"IF('1. Order'!AU963=\"\",\"\",'1. Order'!AU963)","v":""},null,null,null,null,null,null,null,{"$f":"IF('1. Order'!AY963=\"\",\"\",'1. Order'!AY963)","v":""},{"$f":"IF('1. Order'!AZ963=\"\",\"\",'1. Order'!AZ963)","v":""},{"$f":"IF('1. Order'!BA963=\"\",\"\",'1. Order'!BA963)","v":""},{"$f":"IF('1. Order'!BB963=\"\",\"\",'1. Order'!BB963)","v":""},{"$f":"IF('1. Order'!BD963=\"\",\"\",'1. Order'!BD963)","v":""},{"$f":"IF('1. Order'!BE963=\"\",\"\",'1. Order'!BE963)","v":""},{"$f":"IF('1. Order'!BF963=\"\",\"\",'1. Order'!BF963)","v":""},{"$f":"IF('1. Order'!BG963=\"\",\"\",'1. Order'!BG963)","v":""},{"$f":"IF('1. Order'!BH963=\"\",\"\",'1. Order'!BH963)","v":"ZWO"}]
[{"$f":"IF('1. Order'!F964=\"\",\"\",'1. Order'!F964)","v":{"$error":"#N/A"}},{"$f":"IF('1. Order'!G964=\"\",\"\",'1. Order'!G964)","v":""},{"$f":"IF('1. Order'!H964=\"\",\"\",'1. Order'!H964)","v":""},{"$f":"IF('1. Order'!I964=\"\",\"\",'1. Order'!I964)","v":""},{"$f":"IF('1. Order'!J964=\"\",\"\",'1. Order'!J964)","v":""},{"$f":"IF('1. Order'!K964=\"\",\"\",'1. Order'!K964)","v":""},{"$f":"IF('1. Order'!L964=\"\",\"\",'1. Order'!L964)","v":""},{"$f":"IF('1. Order'!M964=\"\",\"\",'1. Order'!M964)","v":""},{"$f":"IF('1. Order'!N964=\"\",\"\",'1. Order'!N964)","v":""},{"$f":"IF('1. Order'!O964=\"\",\"\",'1. Order'!O964)","v":{"$error":"#N/A"}},{"$f":"IF('1. Order'!P964=\"\",\"\",'1. Order'!P964)","v":{"$error":"#N/A"}},{"$f":"IF('1. Order'!Q964=\"\",\"\",'1. Order'!Q964)","v":""},{"$f":"IF('1. Order'!S964=\"\",\"\",'1. Order'!S964)","v":""},{"$f":"IF('1. Order'!T964=\"\",\"\",'1. Order'!T964)","v":""},{"$f":"IF('1. Order'!W964=\"\",\"\",'1. Order'!W964)","v":""},{"$f":"IF('1. Order'!X964=\"\",\"\",'1. Order'!X964)","v":""},{"$f":"IF('1. Order'!Y964=\"\",\"\",'1. Order'!Y964)","v":"EUR"},{"$f":"IF('1. Order'!Z964=\"\",\"\",'1. Order'!Z964)","v":""},{"$f":"IF('1. Order'!AA964=\"\",\"\",'1. Order'!AA964)","v":""},{"$f":"IF('1. Order'!AB964=\"\",\"\",'1. Order'!AB964)","v":""},null,{"$f":"IF('1. Order'!AT964=\"\",\"\",'1. Order'!AT964)","v":""},{"$f":"IF('1. Order'!AU964=\"\",\"\",'1. Order'!AU964)","v":""},null,null,null,null,null,null,null,{"$f":"IF('1. Order'!AY964=\"\",\"\",'1. Order'!AY964)","v":""},{"$f":"IF('1. Order'!AZ964=\"\",\"\",'1. Order'!AZ964)","v":""},{"$f":"IF('1. Order'!BA964=\"\",\"\",'1. Order'!BA964)","v":""},{"$f":"IF('1. Order'!BB964=\"\",\"\",'1. Order'!BB964)","v":""},{"$f":"IF('1. Order'!BD964=\"\",\"\",'1. Order'!BD964)","v":""},{"$f":"IF('1. Order'!BE964=\"\",\"\",'1. Order'!BE964)","v":""},{"$f":"IF('1. Order'!BF964=\"\",\"\",'1. Order'!BF964)","v":""},{"$f":"IF('1. Order'!BG964=\"\",\"\",'1. Order'!BG964)","v":""},{"$f":"IF('1. Order'!BH964=\"\",\"\",'1. Order'!BH964)","v":"ZWO"}]
[{"$f":"IF('1. Order'!F965=\"\",\"\",'1. Order'!F965)","v":{"$error":"#N/A"}},{"$f":"IF('1. Order'!G965=\"\",\"\",'1. Order'!G965)","v":""},{"$f":"IF('1. Order'!H965=\"\",\"\",'1. Order'!H965)","v":""},{"$f":"IF('1. Order'!I965=\"\",\"\",'1. Order'!I965)","v":""},{"$f":"IF('1. Order'!J965=\"\",\"\",'1. Order'!J965)","v":""},{"$f":"IF('1. Order'!K965=\"\",\"\",'1. Order'!K965)","v":""},{"$f":"IF('1. Order'!L965=\"\",\"\",'1. Order'!L965)","v":""},{"$f":"IF('1. Order'!M965=\"\",\"\",'1. Order'!M965)","v":""},{"$f":"IF('1. Order'!N965=\"\",\"\",'1. Order'!N965)","v":""},{"$f":"IF('1. Order'!O965=\"\",\"\",'1. Order'!O965)","v":{"$error":"#N/A"}},{"$f":"IF('1. Order'!P965=\"\",\"\",'1. Order'!P965)","v":{"$error":"#N/A"}},{"$f":"IF('1. Order'!Q965=\"\",\"\",'1. Order'!Q965)","v":""},{"$f":"IF('1. Order'!S965=\"\",\"\",'1. Order'!S965)","v":""},{"$f":"IF('1. Order'!T965=\"\",\"\",'1. Order'!T965)","v":""},{"$f":"IF('1. Order'!W965=\"\",\"\",'1. Order'!W965)","v":""},{"$f":"IF('1. Order'!X965=\"\",\"\",'1. Order'!X965)","v":""},{"$f":"IF('1. Order'!Y965=\"\",\"\",'1. Order'!Y965)","v":"EUR"},{"$f":"IF('1. Order'!Z965=\"\",\"\",'1. Order'!Z965)","v":""},{"$f":"IF('1. Order'!AA965=\"\",\"\",'1. Order'!AA965)","v":""},{"$f":"IF('1. Order'!AB965=\"\",\"\",'1. Order'!AB965)","v":""},null,{"$f":"IF('1. Order'!AT965=\"\",\"\",'1. Order'!AT965)","v":""},{"$f":"IF('1. Order'!AU965=\"\",\"\",'1. Order'!AU965)","v":""},null,null,null,null,null,null,null,{"$f":"IF('1. Order'!AY965=\"\",\"\",'1. Order'!AY965)","v":""},{"$f":"IF('1. Order'!AZ965=\"\",\"\",'1. Order'!AZ965)","v":""},{"$f":"IF('1. Order'!BA965=\"\",\"\",'1. Order'!BA965)","v":""},{"$f":"IF('1. Order'!BB965=\"\",\"\",'1. Order'!BB965)","v":""},{"$f":"IF('1. Order'!BD965=\"\",\"\",'1. Order'!BD965)","v":""},{"$f":"IF('1. Order'!BE965=\"\",\"\",'1. Order'!BE965)","v":""},{"$f":"IF('1. Order'!BF965=\"\",\"\",'1. Order'!BF965)","v":""},{"$f":"IF('1. Order'!BG965=\"\",\"\",'1. Order'!BG965)","v":""},{"$f":"IF('1. Order'!BH965=\"\",\"\",'1. Order'!BH965)","v":"ZWO"}]
[{"$f":"IF('1. Order'!F966=\"\",\"\",'1. Order'!F966)","v":{"$error":"#N/A"}},{"$f":"IF('1. Order'!G966=\"\",\"\",'1. Order'!G966)","v":""},{"$f":"IF('1. Order'!H966=\"\",\"\",'1. Order'!H966)","v":""},{"$f":"IF('1. Order'!I966=\"\",\"\",'1. Order'!I966)","v":""},{"$f":"IF('1. Order'!J966=\"\",\"\",'1. Order'!J966)","v":""},{"$f":"IF('1. Order'!K966=\"\",\"\",'1. Order'!K966)","v":""},{"$f":"IF('1. Order'!L966=\"\",\"\",'1. Order'!L966)","v":""},{"$f":"IF('1. Order'!M966=\"\",\"\",'1. Order'!M966)","v":""},{"$f":"IF('1. Order'!N966=\"\",\"\",'1. Order'!N966)","v":""},{"$f":"IF('1. Order'!O966=\"\",\"\",'1. Order'!O966)","v":{"$error":"#N/A"}},{"$f":"IF('1. Order'!P966=\"\",\"\",'1. Order'!P966)","v":{"$error":"#N/A"}},{"$f":"IF('1. Order'!Q966=\"\",\"\",'1. Order'!Q966)","v":""},{"$f":"IF('1. Order'!S966=\"\",\"\",'1. Order'!S966)","v":""},{"$f":"IF('1. Order'!T966=\"\",\"\",'1. Order'!T966)","v":""},{"$f":"IF('1. Order'!W966=\"\",\"\",'1. Order'!W966)","v":""},{"$f":"IF('1. Order'!X966=\"\",\"\",'1. Order'!X966)","v":""},{"$f":"IF('1. Order'!Y966=\"\",\"\",'1. Order'!Y966)","v":"EUR"},{"$f":"IF('1. Order'!Z966=\"\",\"\",'1. Order'!Z966)","v":""},{"$f":"IF('1. Order'!AA966=\"\",\"\",'1. Order'!AA966)","v":""},{"$f":"IF('1. Order'!AB966=\"\",\"\",'1. Order'!AB966)","v":""},null,{"$f":"IF('1. Order'!AT966=\"\",\"\",'1. Order'!AT966)","v":""},{"$f":"IF('1. Order'!AU966=\"\",\"\",'1. Order'!AU966)","v":""},null,null,null,null,null,null,null,{"$f":"IF('1. Order'!AY966=\"\",\"\",'1. Order'!AY966)","v":""},{"$f":"IF('1. Order'!AZ966=\"\",\"\",'1. Order'!AZ966)","v":""},{"$f":"IF('1. Order'!BA966=\"\",\"\",'1. Order'!BA966)","v":""},{"$f":"IF('1. Order'!BB966=\"\",\"\",'1. Order'!BB966)","v":""},{"$f":"IF('1. Order'!BD966=\"\",\"\",'1. Order'!BD966)","v":""},{"$f":"IF('1. Order'!BE966=\"\",\"\",'1. Order'!BE966)","v":""},{"$f":"IF('1. Order'!BF966=\"\",\"\",'1. Order'!BF966)","v":""},{"$f":"IF('1. Order'!BG966=\"\",\"\",'1. Order'!BG966)","v":""},{"$f":"IF('1. Order'!BH966=\"\",\"\",'1. Order'!BH966)","v":"ZWO"}]
[{"$f":"IF('1. Order'!F967=\"\",\"\",'1. Order'!F967)","v":{"$error":"#N/A"}},{"$f":"IF('1. Order'!G967=\"\",\"\",'1. Order'!G967)","v":""},{"$f":"IF('1. Order'!H967=\"\",\"\",'1. Order'!H967)","v":""},{"$f":"IF('1. Order'!I967=\"\",\"\",'1. Order'!I967)","v":""},{"$f":"IF('1. Order'!J967=\"\",\"\",'1. Order'!J967)","v":""},{"$f":"IF('1. Order'!K967=\"\",\"\",'1. Order'!K967)","v":""},{"$f":"IF('1. Order'!L967=\"\",\"\",'1. Order'!L967)","v":""},{"$f":"IF('1. Order'!M967=\"\",\"\",'1. Order'!M967)","v":""},{"$f":"IF('1. Order'!N967=\"\",\"\",'1. Order'!N967)","v":""},{"$f":"IF('1. Order'!O967=\"\",\"\",'1. Order'!O967)","v":{"$error":"#N/A"}},{"$f":"IF('1. Order'!P967=\"\",\"\",'1. Order'!P967)","v":{"$error":"#N/A"}},{"$f":"IF('1. Order'!Q967=\"\",\"\",'1. Order'!Q967)","v":""},{"$f":"IF('1. Order'!S967=\"\",\"\",'1. Order'!S967)","v":""},{"$f":"IF('1. Order'!T967=\"\",\"\",'1. Order'!T967)","v":""},{"$f":"IF('1. Order'!W967=\"\",\"\",'1. Order'!W967)","v":""},{"$f":"IF('1. Order'!X967=\"\",\"\",'1. Order'!X967)","v":""},{"$f":"IF('1. Order'!Y967=\"\",\"\",'1. Order'!Y967)","v":"EUR"},{"$f":"IF('1. Order'!Z967=\"\",\"\",'1. Order'!Z967)","v":""},{"$f":"IF('1. Order'!AA967=\"\",\"\",'1. Order'!AA967)","v":""},{"$f":"IF('1. Order'!AB967=\"\",\"\",'1. Order'!AB967)","v":""},null,{"$f":"IF('1. Order'!AT967=\"\",\"\",'1. Order'!AT967)","v":""},{"$f":"IF('1. Order'!AU967=\"\",\"\",'1. Order'!AU967)","v":""},null,null,null,null,null,null,null,{"$f":"IF('1. Order'!AY967=\"\",\"\",'1. Order'!AY967)","v":""},{"$f":"IF('1. Order'!AZ967=\"\",\"\",'1. Order'!AZ967)","v":""},{"$f":"IF('1. Order'!BA967=\"\",\"\",'1. Order'!BA967)","v":""},{"$f":"IF('1. Order'!BB967=\"\",\"\",'1. Order'!BB967)","v":""},{"$f":"IF('1. Order'!BD967=\"\",\"\",'1. Order'!BD967)","v":""},{"$f":"IF('1. Order'!BE967=\"\",\"\",'1. Order'!BE967)","v":""},{"$f":"IF('1. Order'!BF967=\"\",\"\",'1. Order'!BF967)","v":""},{"$f":"IF('1. Order'!BG967=\"\",\"\",'1. Order'!BG967)","v":""},{"$f":"IF('1. Order'!BH967=\"\",\"\",'1. Order'!BH967)","v":"ZWO"}]
[{"$f":"IF('1. Order'!F968=\"\",\"\",'1. Order'!F968)","v":{"$error":"#N/A"}},{"$f":"IF('1. Order'!G968=\"\",\"\",'1. Order'!G968)","v":""},{"$f":"IF('1. Order'!H968=\"\",\"\",'1. Order'!H968)","v":""},{"$f":"IF('1. Order'!I968=\"\",\"\",'1. Order'!I968)","v":""},{"$f":"IF('1. Order'!J968=\"\",\"\",'1. Order'!J968)","v":""},{"$f":"IF('1. Order'!K968=\"\",\"\",'1. Order'!K968)","v":""},{"$f":"IF('1. Order'!L968=\"\",\"\",'1. Order'!L968)","v":""},{"$f":"IF('1. Order'!M968=\"\",\"\",'1. Order'!M968)","v":""},{"$f":"IF('1. Order'!N968=\"\",\"\",'1. Order'!N968)","v":""},{"$f":"IF('1. Order'!O968=\"\",\"\",'1. Order'!O968)","v":{"$error":"#N/A"}},{"$f":"IF('1. Order'!P968=\"\",\"\",'1. Order'!P968)","v":{"$error":"#N/A"}},{"$f":"IF('1. Order'!Q968=\"\",\"\",'1. Order'!Q968)","v":""},{"$f":"IF('1. Order'!S968=\"\",\"\",'1. Order'!S968)","v":""},{"$f":"IF('1. Order'!T968=\"\",\"\",'1. Order'!T968)","v":""},{"$f":"IF('1. Order'!W968=\"\",\"\",'1. Order'!W968)","v":""},{"$f":"IF('1. Order'!X968=\"\",\"\",'1. Order'!X968)","v":""},{"$f":"IF('1. Order'!Y968=\"\",\"\",'1. Order'!Y968)","v":"EUR"},{"$f":"IF('1. Order'!Z968=\"\",\"\",'1. Order'!Z968)","v":""},{"$f":"IF('1. Order'!AA968=\"\",\"\",'1. Order'!AA968)","v":""},{"$f":"IF('1. Order'!AB968=\"\",\"\",'1. Order'!AB968)","v":""},null,{"$f":"IF('1. Order'!AT968=\"\",\"\",'1. Order'!AT968)","v":""},{"$f":"IF('1. Order'!AU968=\"\",\"\",'1. Order'!AU968)","v":""},null,null,null,null,null,null,null,{"$f":"IF('1. Order'!AY968=\"\",\"\",'1. Order'!AY968)","v":""},{"$f":"IF('1. Order'!AZ968=\"\",\"\",'1. Order'!AZ968)","v":""},{"$f":"IF('1. Order'!BA968=\"\",\"\",'1. Order'!BA968)","v":""},{"$f":"IF('1. Order'!BB968=\"\",\"\",'1. Order'!BB968)","v":""},{"$f":"IF('1. Order'!BD968=\"\",\"\",'1. Order'!BD968)","v":""},{"$f":"IF('1. Order'!BE968=\"\",\"\",'1. Order'!BE968)","v":""},{"$f":"IF('1. Order'!BF968=\"\",\"\",'1. Order'!BF968)","v":""},{"$f":"IF('1. Order'!BG968=\"\",\"\",'1. Order'!BG968)","v":""},{"$f":"IF('1. Order'!BH968=\"\",\"\",'1. Order'!BH968)","v":"ZWO"}]
[{"$f":"IF('1. Order'!F969=\"\",\"\",'1. Order'!F969)","v":{"$error":"#N/A"}},{"$f":"IF('1. Order'!G969=\"\",\"\",'1. Order'!G969)","v":""},{"$f":"IF('1. Order'!H969=\"\",\"\",'1. Order'!H969)","v":""},{"$f":"IF('1. Order'!I969=\"\",\"\",'1. Order'!I969)","v":""},{"$f":"IF('1. Order'!J969=\"\",\"\",'1. Order'!J969)","v":""},{"$f":"IF('1. Order'!K969=\"\",\"\",'1. Order'!K969)","v":""},{"$f":"IF('1. Order'!L969=\"\",\"\",'1. Order'!L969)","v":""},{"$f":"IF('1. Order'!M969=\"\",\"\",'1. Order'!M969)","v":""},{"$f":"IF('1. Order'!N969=\"\",\"\",'1. Order'!N969)","v":""},{"$f":"IF('1. Order'!O969=\"\",\"\",'1. Order'!O969)","v":{"$error":"#N/A"}},{"$f":"IF('1. Order'!P969=\"\",\"\",'1. Order'!P969)","v":{"$error":"#N/A"}},{"$f":"IF('1. Order'!Q969=\"\",\"\",'1. Order'!Q969)","v":""},{"$f":"IF('1. Order'!S969=\"\",\"\",'1. Order'!S969)","v":""},{"$f":"IF('1. Order'!T969=\"\",\"\",'1. Order'!T969)","v":""},{"$f":"IF('1. Order'!W969=\"\",\"\",'1. Order'!W969)","v":""},{"$f":"IF('1. Order'!X969=\"\",\"\",'1. Order'!X969)","v":""},{"$f":"IF('1. Order'!Y969=\"\",\"\",'1. Order'!Y969)","v":"EUR"},{"$f":"IF('1. Order'!Z969=\"\",\"\",'1. Order'!Z969)","v":""},{"$f":"IF('1. Order'!AA969=\"\",\"\",'1. Order'!AA969)","v":""},{"$f":"IF('1. Order'!AB969=\"\",\"\",'1. Order'!AB969)","v":""},null,{"$f":"IF('1. Order'!AT969=\"\",\"\",'1. Order'!AT969)","v":""},{"$f":"IF('1. Order'!AU969=\"\",\"\",'1. Order'!AU969)","v":""},null,null,null,null,null,null,null,{"$f":"IF('1. Order'!AY969=\"\",\"\",'1. Order'!AY969)","v":""},{"$f":"IF('1. Order'!AZ969=\"\",\"\",'1. Order'!AZ969)","v":""},{"$f":"IF('1. Order'!BA969=\"\",\"\",'1. Order'!BA969)","v":""},{"$f":"IF('1. Order'!BB969=\"\",\"\",'1. Order'!BB969)","v":""},{"$f":"IF('1. Order'!BD969=\"\",\"\",'1. Order'!BD969)","v":""},{"$f":"IF('1. Order'!BE969=\"\",\"\",'1. Order'!BE969)","v":""},{"$f":"IF('1. Order'!BF969=\"\",\"\",'1. Order'!BF969)","v":""},{"$f":"IF('1. Order'!BG969=\"\",\"\",'1. Order'!BG969)","v":""},{"$f":"IF('1. Order'!BH969=\"\",\"\",'1. Order'!BH969)","v":"ZWO"}]
[{"$f":"IF('1. Order'!F970=\"\",\"\",'1. Order'!F970)","v":{"$error":"#N/A"}},{"$f":"IF('1. Order'!G970=\"\",\"\",'1. Order'!G970)","v":""},{"$f":"IF('1. Order'!H970=\"\",\"\",'1. Order'!H970)","v":""},{"$f":"IF('1. Order'!I970=\"\",\"\",'1. Order'!I970)","v":""},{"$f":"IF('1. Order'!J970=\"\",\"\",'1. Order'!J970)","v":""},{"$f":"IF('1. Order'!K970=\"\",\"\",'1. Order'!K970)","v":""},{"$f":"IF('1. Order'!L970=\"\",\"\",'1. Order'!L970)","v":""},{"$f":"IF('1. Order'!M970=\"\",\"\",'1. Order'!M970)","v":""},{"$f":"IF('1. Order'!N970=\"\",\"\",'1. Order'!N970)","v":""},{"$f":"IF('1. Order'!O970=\"\",\"\",'1. Order'!O970)","v":{"$error":"#N/A"}},{"$f":"IF('1. Order'!P970=\"\",\"\",'1. Order'!P970)","v":{"$error":"#N/A"}},{"$f":"IF('1. Order'!Q970=\"\",\"\",'1. Order'!Q970)","v":""},{"$f":"IF('1. Order'!S970=\"\",\"\",'1. Order'!S970)","v":""},{"$f":"IF('1. Order'!T970=\"\",\"\",'1. Order'!T970)","v":""},{"$f":"IF('1. Order'!W970=\"\",\"\",'1. Order'!W970)","v":""},{"$f":"IF('1. Order'!X970=\"\",\"\",'1. Order'!X970)","v":""},{"$f":"IF('1. Order'!Y970=\"\",\"\",'1. Order'!Y970)","v":"EUR"},{"$f":"IF('1. Order'!Z970=\"\",\"\",'1. Order'!Z970)","v":""},{"$f":"IF('1. Order'!AA970=\"\",\"\",'1. Order'!AA970)","v":""},{"$f":"IF('1. Order'!AB970=\"\",\"\",'1. Order'!AB970)","v":""},null,{"$f":"IF('1. Order'!AT970=\"\",\"\",'1. Order'!AT970)","v":""},{"$f":"IF('1. Order'!AU970=\"\",\"\",'1. Order'!AU970)","v":""},null,null,null,null,null,null,null,{"$f":"IF('1. Order'!AY970=\"\",\"\",'1. Order'!AY970)","v":""},{"$f":"IF('1. Order'!AZ970=\"\",\"\",'1. Order'!AZ970)","v":""},{"$f":"IF('1. Order'!BA970=\"\",\"\",'1. Order'!BA970)","v":""},{"$f":"IF('1. Order'!BB970=\"\",\"\",'1. Order'!BB970)","v":""},{"$f":"IF('1. Order'!BD970=\"\",\"\",'1. Order'!BD970)","v":""},{"$f":"IF('1. Order'!BE970=\"\",\"\",'1. Order'!BE970)","v":""},{"$f":"IF('1. Order'!BF970=\"\",\"\",'1. Order'!BF970)","v":""},{"$f":"IF('1. Order'!BG970=\"\",\"\",'1. Order'!BG970)","v":""},{"$f":"IF('1. Order'!BH970=\"\",\"\",'1. Order'!BH970)","v":"ZWO"}]
[{"$f":"IF('1. Order'!F971=\"\",\"\",'1. Order'!F971)","v":{"$error":"#N/A"}},{"$f":"IF('1. Order'!G971=\"\",\"\",'1. Order'!G971)","v":""},{"$f":"IF('1. Order'!H971=\"\",\"\",'1. Order'!H971)","v":""},{"$f":"IF('1. Order'!I971=\"\",\"\",'1. Order'!I971)","v":""},{"$f":"IF('1. Order'!J971=\"\",\"\",'1. Order'!J971)","v":""},{"$f":"IF('1. Order'!K971=\"\",\"\",'1. Order'!K971)","v":""},{"$f":"IF('1. Order'!L971=\"\",\"\",'1. Order'!L971)","v":""},{"$f":"IF('1. Order'!M971=\"\",\"\",'1. Order'!M971)","v":""},{"$f":"IF('1. Order'!N971=\"\",\"\",'1. Order'!N971)","v":""},{"$f":"IF('1. Order'!O971=\"\",\"\",'1. Order'!O971)","v":{"$error":"#N/A"}},{"$f":"IF('1. Order'!P971=\"\",\"\",'1. Order'!P971)","v":{"$error":"#N/A"}},{"$f":"IF('1. Order'!Q971=\"\",\"\",'1. Order'!Q971)","v":""},{"$f":"IF('1. Order'!S971=\"\",\"\",'1. Order'!S971)","v":""},{"$f":"IF('1. Order'!T971=\"\",\"\",'1. Order'!T971)","v":""},{"$f":"IF('1. Order'!W971=\"\",\"\",'1. Order'!W971)","v":""},{"$f":"IF('1. Order'!X971=\"\",\"\",'1. Order'!X971)","v":""},{"$f":"IF('1. Order'!Y971=\"\",\"\",'1. Order'!Y971)","v":"EUR"},{"$f":"IF('1. Order'!Z971=\"\",\"\",'1. Order'!Z971)","v":""},{"$f":"IF('1. Order'!AA971=\"\",\"\",'1. Order'!AA971)","v":""},{"$f":"IF('1. Order'!AB971=\"\",\"\",'1. Order'!AB971)","v":""},null,{"$f":"IF('1. Order'!AT971=\"\",\"\",'1. Order'!AT971)","v":""},{"$f":"IF('1. Order'!AU971=\"\",\"\",'1. Order'!AU971)","v":""},null,null,null,null,null,null,null,{"$f":"IF('1. Order'!AY971=\"\",\"\",'1. Order'!AY971)","v":""},{"$f":"IF('1. Order'!AZ971=\"\",\"\",'1. Order'!AZ971)","v":""},{"$f":"IF('1. Order'!BA971=\"\",\"\",'1. Order'!BA971)","v":""},{"$f":"IF('1. Order'!BB971=\"\",\"\",'1. Order'!BB971)","v":""},{"$f":"IF('1. Order'!BD971=\"\",\"\",'1. Order'!BD971)","v":""},{"$f":"IF('1. Order'!BE971=\"\",\"\",'1. Order'!BE971)","v":""},{"$f":"IF('1. Order'!BF971=\"\",\"\",'1. Order'!BF971)","v":""},{"$f":"IF('1. Order'!BG971=\"\",\"\",'1. Order'!BG971)","v":""},{"$f":"IF('1. Order'!BH971=\"\",\"\",'1. Order'!BH971)","v":"ZWO"}]
[{"$f":"IF('1. Order'!F972=\"\",\"\",'1. Order'!F972)","v":{"$error":"#N/A"}},{"$f":"IF('1. Order'!G972=\"\",\"\",'1. Order'!G972)","v":""},{"$f":"IF('1. Order'!H972=\"\",\"\",'1. Order'!H972)","v":""},{"$f":"IF('1. Order'!I972=\"\",\"\",'1. Order'!I972)","v":""},{"$f":"IF('1. Order'!J972=\"\",\"\",'1. Order'!J972)","v":""},{"$f":"IF('1. Order'!K972=\"\",\"\",'1. Order'!K972)","v":""},{"$f":"IF('1. Order'!L972=\"\",\"\",'1. Order'!L972)","v":""},{"$f":"IF('1. Order'!M972=\"\",\"\",'1. Order'!M972)","v":""},{"$f":"IF('1. Order'!N972=\"\",\"\",'1. Order'!N972)","v":""},{"$f":"IF('1. Order'!O972=\"\",\"\",'1. Order'!O972)","v":{"$error":"#N/A"}},{"$f":"IF('1. Order'!P972=\"\",\"\",'1. Order'!P972)","v":{"$error":"#N/A"}},{"$f":"IF('1. Order'!Q972=\"\",\"\",'1. Order'!Q972)","v":""},{"$f":"IF('1. Order'!S972=\"\",\"\",'1. Order'!S972)","v":""},{"$f":"IF('1. Order'!T972=\"\",\"\",'1. Order'!T972)","v":""},{"$f":"IF('1. Order'!W972=\"\",\"\",'1. Order'!W972)","v":""},{"$f":"IF('1. Order'!X972=\"\",\"\",'1. Order'!X972)","v":""},{"$f":"IF('1. Order'!Y972=\"\",\"\",'1. Order'!Y972)","v":"EUR"},{"$f":"IF('1. Order'!Z972=\"\",\"\",'1. Order'!Z972)","v":""},{"$f":"IF('1. Order'!AA972=\"\",\"\",'1. Order'!AA972)","v":""},{"$f":"IF('1. Order'!AB972=\"\",\"\",'1. Order'!AB972)","v":""},null,{"$f":"IF('1. Order'!AT972=\"\",\"\",'1. Order'!AT972)","v":""},{"$f":"IF('1. Order'!AU972=\"\",\"\",'1. Order'!AU972)","v":""},null,null,null,null,null,null,null,{"$f":"IF('1. Order'!AY972=\"\",\"\",'1. Order'!AY972)","v":""},{"$f":"IF('1. Order'!AZ972=\"\",\"\",'1. Order'!AZ972)","v":""},{"$f":"IF('1. Order'!BA972=\"\",\"\",'1. Order'!BA972)","v":""},{"$f":"IF('1. Order'!BB972=\"\",\"\",'1. Order'!BB972)","v":""},{"$f":"IF('1. Order'!BD972=\"\",\"\",'1. Order'!BD972)","v":""},{"$f":"IF('1. Order'!BE972=\"\",\"\",'1. Order'!BE972)","v":""},{"$f":"IF('1. Order'!BF972=\"\",\"\",'1. Order'!BF972)","v":""},{"$f":"IF('1. Order'!BG972=\"\",\"\",'1. Order'!BG972)","v":""},{"$f":"IF('1. Order'!BH972=\"\",\"\",'1. Order'!BH972)","v":"ZWO"}]
[{"$f":"IF('1. Order'!F973=\"\",\"\",'1. Order'!F973)","v":{"$error":"#N/A"}},{"$f":"IF('1. Order'!G973=\"\",\"\",'1. Order'!G973)","v":""},{"$f":"IF('1. Order'!H973=\"\",\"\",'1. Order'!H973)","v":""},{"$f":"IF('1. Order'!I973=\"\",\"\",'1. Order'!I973)","v":""},{"$f":"IF('1. Order'!J973=\"\",\"\",'1. Order'!J973)","v":""},{"$f":"IF('1. Order'!K973=\"\",\"\",'1. Order'!K973)","v":""},{"$f":"IF('1. Order'!L973=\"\",\"\",'1. Order'!L973)","v":""},{"$f":"IF('1. Order'!M973=\"\",\"\",'1. Order'!M973)","v":""},{"$f":"IF('1. Order'!N973=\"\",\"\",'1. Order'!N973)","v":""},{"$f":"IF('1. Order'!O973=\"\",\"\",'1. Order'!O973)","v":{"$error":"#N/A"}},{"$f":"IF('1. Order'!P973=\"\",\"\",'1. Order'!P973)","v":{"$error":"#N/A"}},{"$f":"IF('1. Order'!Q973=\"\",\"\",'1. Order'!Q973)","v":""},{"$f":"IF('1. Order'!S973=\"\",\"\",'1. Order'!S973)","v":""},{"$f":"IF('1. Order'!T973=\"\",\"\",'1. Order'!T973)","v":""},{"$f":"IF('1. Order'!W973=\"\",\"\",'1. Order'!W973)","v":""},{"$f":"IF('1. Order'!X973=\"\",\"\",'1. Order'!X973)","v":""},{"$f":"IF('1. Order'!Y973=\"\",\"\",'1. Order'!Y973)","v":"EUR"},{"$f":"IF('1. Order'!Z973=\"\",\"\",'1. Order'!Z973)","v":""},{"$f":"IF('1. Order'!AA973=\"\",\"\",'1. Order'!AA973)","v":""},{"$f":"IF('1. Order'!AB973=\"\",\"\",'1. Order'!AB973)","v":""},null,{"$f":"IF('1. Order'!AT973=\"\",\"\",'1. Order'!AT973)","v":""},{"$f":"IF('1. Order'!AU973=\"\",\"\",'1. Order'!AU973)","v":""},null,null,null,null,null,null,null,{"$f":"IF('1. Order'!AY973=\"\",\"\",'1. Order'!AY973)","v":""},{"$f":"IF('1. Order'!AZ973=\"\",\"\",'1. Order'!AZ973)","v":""},{"$f":"IF('1. Order'!BA973=\"\",\"\",'1. Order'!BA973)","v":""},{"$f":"IF('1. Order'!BB973=\"\",\"\",'1. Order'!BB973)","v":""},{"$f":"IF('1. Order'!BD973=\"\",\"\",'1. Order'!BD973)","v":""},{"$f":"IF('1. Order'!BE973=\"\",\"\",'1. Order'!BE973)","v":""},{"$f":"IF('1. Order'!BF973=\"\",\"\",'1. Order'!BF973)","v":""},{"$f":"IF('1. Order'!BG973=\"\",\"\",'1. Order'!BG973)","v":""},{"$f":"IF('1. Order'!BH973=\"\",\"\",'1. Order'!BH973)","v":"ZWO"}]
[{"$f":"IF('1. Order'!F974=\"\",\"\",'1. Order'!F974)","v":{"$error":"#N/A"}},{"$f":"IF('1. Order'!G974=\"\",\"\",'1. Order'!G974)","v":""},{"$f":"IF('1. Order'!H974=\"\",\"\",'1. Order'!H974)","v":""},{"$f":"IF('1. Order'!I974=\"\",\"\",'1. Order'!I974)","v":""},{"$f":"IF('1. Order'!J974=\"\",\"\",'1. Order'!J974)","v":""},{"$f":"IF('1. Order'!K974=\"\",\"\",'1. Order'!K974)","v":""},{"$f":"IF('1. Order'!L974=\"\",\"\",'1. Order'!L974)","v":""},{"$f":"IF('1. Order'!M974=\"\",\"\",'1. Order'!M974)","v":""},{"$f":"IF('1. Order'!N974=\"\",\"\",'1. Order'!N974)","v":""},{"$f":"IF('1. Order'!O974=\"\",\"\",'1. Order'!O974)","v":{"$error":"#N/A"}},{"$f":"IF('1. Order'!P974=\"\",\"\",'1. Order'!P974)","v":{"$error":"#N/A"}},{"$f":"IF('1. Order'!Q974=\"\",\"\",'1. Order'!Q974)","v":""},{"$f":"IF('1. Order'!S974=\"\",\"\",'1. Order'!S974)","v":""},{"$f":"IF('1. Order'!T974=\"\",\"\",'1. Order'!T974)","v":""},{"$f":"IF('1. Order'!W974=\"\",\"\",'1. Order'!W974)","v":""},{"$f":"IF('1. Order'!X974=\"\",\"\",'1. Order'!X974)","v":""},{"$f":"IF('1. Order'!Y974=\"\",\"\",'1. Order'!Y974)","v":"EUR"},{"$f":"IF('1. Order'!Z974=\"\",\"\",'1. Order'!Z974)","v":""},{"$f":"IF('1. Order'!AA974=\"\",\"\",'1. Order'!AA974)","v":""},{"$f":"IF('1. Order'!AB974=\"\",\"\",'1. Order'!AB974)","v":""},null,{"$f":"IF('1. Order'!AT974=\"\",\"\",'1. Order'!AT974)","v":""},{"$f":"IF('1. Order'!AU974=\"\",\"\",'1. Order'!AU974)","v":""},null,null,null,null,null,null,null,{"$f":"IF('1. Order'!AY974=\"\",\"\",'1. Order'!AY974)","v":""},{"$f":"IF('1. Order'!AZ974=\"\",\"\",'1. Order'!AZ974)","v":""},{"$f":"IF('1. Order'!BA974=\"\",\"\",'1. Order'!BA974)","v":""},{"$f":"IF('1. Order'!BB974=\"\",\"\",'1. Order'!BB974)","v":""},{"$f":"IF('1. Order'!BD974=\"\",\"\",'1. Order'!BD974)","v":""},{"$f":"IF('1. Order'!BE974=\"\",\"\",'1. Order'!BE974)","v":""},{"$f":"IF('1. Order'!BF974=\"\",\"\",'1. Order'!BF974)","v":""},{"$f":"IF('1. Order'!BG974=\"\",\"\",'1. Order'!BG974)","v":""},{"$f":"IF('1. Order'!BH974=\"\",\"\",'1. Order'!BH974)","v":"ZWO"}]
[{"$f":"IF('1. Order'!F975=\"\",\"\",'1. Order'!F975)","v":{"$error":"#N/A"}},{"$f":"IF('1. Order'!G975=\"\",\"\",'1. Order'!G975)","v":""},{"$f":"IF('1. Order'!H975=\"\",\"\",'1. Order'!H975)","v":""},{"$f":"IF('1. Order'!I975=\"\",\"\",'1. Order'!I975)","v":""},{"$f":"IF('1. Order'!J975=\"\",\"\",'1. Order'!J975)","v":""},{"$f":"IF('1. Order'!K975=\"\",\"\",'1. Order'!K975)","v":""},{"$f":"IF('1. Order'!L975=\"\",\"\",'1. Order'!L975)","v":""},{"$f":"IF('1. Order'!M975=\"\",\"\",'1. Order'!M975)","v":""},{"$f":"IF('1. Order'!N975=\"\",\"\",'1. Order'!N975)","v":""},{"$f":"IF('1. Order'!O975=\"\",\"\",'1. Order'!O975)","v":{"$error":"#N/A"}},{"$f":"IF('1. Order'!P975=\"\",\"\",'1. Order'!P975)","v":{"$error":"#N/A"}},{"$f":"IF('1. Order'!Q975=\"\",\"\",'1. Order'!Q975)","v":""},{"$f":"IF('1. Order'!S975=\"\",\"\",'1. Order'!S975)","v":""},{"$f":"IF('1. Order'!T975=\"\",\"\",'1. Order'!T975)","v":""},{"$f":"IF('1. Order'!W975=\"\",\"\",'1. Order'!W975)","v":""},{"$f":"IF('1. Order'!X975=\"\",\"\",'1. Order'!X975)","v":""},{"$f":"IF('1. Order'!Y975=\"\",\"\",'1. Order'!Y975)","v":"EUR"},{"$f":"IF('1. Order'!Z975=\"\",\"\",'1. Order'!Z975)","v":""},{"$f":"IF('1. Order'!AA975=\"\",\"\",'1. Order'!AA975)","v":""},{"$f":"IF('1. Order'!AB975=\"\",\"\",'1. Order'!AB975)","v":""},null,{"$f":"IF('1. Order'!AT975=\"\",\"\",'1. Order'!AT975)","v":""},{"$f":"IF('1. Order'!AU975=\"\",\"\",'1. Order'!AU975)","v":""},null,null,null,null,null,null,null,{"$f":"IF('1. Order'!AY975=\"\",\"\",'1. Order'!AY975)","v":""},{"$f":"IF('1. Order'!AZ975=\"\",\"\",'1. Order'!AZ975)","v":""},{"$f":"IF('1. Order'!BA975=\"\",\"\",'1. Order'!BA975)","v":""},{"$f":"IF('1. Order'!BB975=\"\",\"\",'1. Order'!BB975)","v":""},{"$f":"IF('1. Order'!BD975=\"\",\"\",'1. Order'!BD975)","v":""},{"$f":"IF('1. Order'!BE975=\"\",\"\",'1. Order'!BE975)","v":""},{"$f":"IF('1. Order'!BF975=\"\",\"\",'1. Order'!BF975)","v":""},{"$f":"IF('1. Order'!BG975=\"\",\"\",'1. Order'!BG975)","v":""},{"$f":"IF('1. Order'!BH975=\"\",\"\",'1. Order'!BH975)","v":"ZWO"}]
[{"$f":"IF('1. Order'!F976=\"\",\"\",'1. Order'!F976)","v":{"$error":"#N/A"}},{"$f":"IF('1. Order'!G976=\"\",\"\",'1. Order'!G976)","v":""},{"$f":"IF('1. Order'!H976=\"\",\"\",'1. Order'!H976)","v":""},{"$f":"IF('1. Order'!I976=\"\",\"\",'1. Order'!I976)","v":""},{"$f":"IF('1. Order'!J976=\"\",\"\",'1. Order'!J976)","v":""},{"$f":"IF('1. Order'!K976=\"\",\"\",'1. Order'!K976)","v":""},{"$f":"IF('1. Order'!L976=\"\",\"\",'1. Order'!L976)","v":""},{"$f":"IF('1. Order'!M976=\"\",\"\",'1. Order'!M976)","v":""},{"$f":"IF('1. Order'!N976=\"\",\"\",'1. Order'!N976)","v":""},{"$f":"IF('1. Order'!O976=\"\",\"\",'1. Order'!O976)","v":{"$error":"#N/A"}},{"$f":"IF('1. Order'!P976=\"\",\"\",'1. Order'!P976)","v":{"$error":"#N/A"}},{"$f":"IF('1. Order'!Q976=\"\",\"\",'1. Order'!Q976)","v":""},{"$f":"IF('1. Order'!S976=\"\",\"\",'1. Order'!S976)","v":""},{"$f":"IF('1. Order'!T976=\"\",\"\",'1. Order'!T976)","v":""},{"$f":"IF('1. Order'!W976=\"\",\"\",'1. Order'!W976)","v":""},{"$f":"IF('1. Order'!X976=\"\",\"\",'1. Order'!X976)","v":""},{"$f":"IF('1. Order'!Y976=\"\",\"\",'1. Order'!Y976)","v":"EUR"},{"$f":"IF('1. Order'!Z976=\"\",\"\",'1. Order'!Z976)","v":""},{"$f":"IF('1. Order'!AA976=\"\",\"\",'1. Order'!AA976)","v":""},{"$f":"IF('1. Order'!AB976=\"\",\"\",'1. Order'!AB976)","v":""},null,{"$f":"IF('1. Order'!AT976=\"\",\"\",'1. Order'!AT976)","v":""},{"$f":"IF('1. Order'!AU976=\"\",\"\",'1. Order'!AU976)","v":""},null,null,null,null,null,null,null,{"$f":"IF('1. Order'!AY976=\"\",\"\",'1. Order'!AY976)","v":""},{"$f":"IF('1. Order'!AZ976=\"\",\"\",'1. Order'!AZ976)","v":""},{"$f":"IF('1. Order'!BA976=\"\",\"\",'1. Order'!BA976)","v":""},{"$f":"IF('1. Order'!BB976=\"\",\"\",'1. Order'!BB976)","v":""},{"$f":"IF('1. Order'!BD976=\"\",\"\",'1. Order'!BD976)","v":""},{"$f":"IF('1. Order'!BE976=\"\",\"\",'1. Order'!BE976)","v":""},{"$f":"IF('1. Order'!BF976=\"\",\"\",'1. Order'!BF976)","v":""},{"$f":"IF('1. Order'!BG976=\"\",\"\",'1. Order'!BG976)","v":""},{"$f":"IF('1. Order'!BH976=\"\",\"\",'1. Order'!BH976)","v":"ZWO"}]
[{"$f":"IF('1. Order'!F977=\"\",\"\",'1. Order'!F977)","v":{"$error":"#N/A"}},{"$f":"IF('1. Order'!G977=\"\",\"\",'1. Order'!G977)","v":""},{"$f":"IF('1. Order'!H977=\"\",\"\",'1. Order'!H977)","v":""},{"$f":"IF('1. Order'!I977=\"\",\"\",'1. Order'!I977)","v":""},{"$f":"IF('1. Order'!J977=\"\",\"\",'1. Order'!J977)","v":""},{"$f":"IF('1. Order'!K977=\"\",\"\",'1. Order'!K977)","v":""},{"$f":"IF('1. Order'!L977=\"\",\"\",'1. Order'!L977)","v":""},{"$f":"IF('1. Order'!M977=\"\",\"\",'1. Order'!M977)","v":""},{"$f":"IF('1. Order'!N977=\"\",\"\",'1. Order'!N977)","v":""},{"$f":"IF('1. Order'!O977=\"\",\"\",'1. Order'!O977)","v":{"$error":"#N/A"}},{"$f":"IF('1. Order'!P977=\"\",\"\",'1. Order'!P977)","v":{"$error":"#N/A"}},{"$f":"IF('1. Order'!Q977=\"\",\"\",'1. Order'!Q977)","v":""},{"$f":"IF('1. Order'!S977=\"\",\"\",'1. Order'!S977)","v":""},{"$f":"IF('1. Order'!T977=\"\",\"\",'1. Order'!T977)","v":""},{"$f":"IF('1. Order'!W977=\"\",\"\",'1. Order'!W977)","v":""},{"$f":"IF('1. Order'!X977=\"\",\"\",'1. Order'!X977)","v":""},{"$f":"IF('1. Order'!Y977=\"\",\"\",'1. Order'!Y977)","v":"EUR"},{"$f":"IF('1. Order'!Z977=\"\",\"\",'1. Order'!Z977)","v":""},{"$f":"IF('1. Order'!AA977=\"\",\"\",'1. Order'!AA977)","v":""},{"$f":"IF('1. Order'!AB977=\"\",\"\",'1. Order'!AB977)","v":""},null,{"$f":"IF('1. Order'!AT977=\"\",\"\",'1. Order'!AT977)","v":""},{"$f":"IF('1. Order'!AU977=\"\",\"\",'1. Order'!AU977)","v":""},null,null,null,null,null,null,null,{"$f":"IF('1. Order'!AY977=\"\",\"\",'1. Order'!AY977)","v":""},{"$f":"IF('1. Order'!AZ977=\"\",\"\",'1. Order'!AZ977)","v":""},{"$f":"IF('1. Order'!BA977=\"\",\"\",'1. Order'!BA977)","v":""},{"$f":"IF('1. Order'!BB977=\"\",\"\",'1. Order'!BB977)","v":""},{"$f":"IF('1. Order'!BD977=\"\",\"\",'1. Order'!BD977)","v":""},{"$f":"IF('1. Order'!BE977=\"\",\"\",'1. Order'!BE977)","v":""},{"$f":"IF('1. Order'!BF977=\"\",\"\",'1. Order'!BF977)","v":""},{"$f":"IF('1. Order'!BG977=\"\",\"\",'1. Order'!BG977)","v":""},{"$f":"IF('1. Order'!BH977=\"\",\"\",'1. Order'!BH977)","v":"ZWO"}]
[{"$f":"IF('1. Order'!F978=\"\",\"\",'1. Order'!F978)","v":{"$error":"#N/A"}},{"$f":"IF('1. Order'!G978=\"\",\"\",'1. Order'!G978)","v":""},{"$f":"IF('1. Order'!H978=\"\",\"\",'1. Order'!H978)","v":""},{"$f":"IF('1. Order'!I978=\"\",\"\",'1. Order'!I978)","v":""},{"$f":"IF('1. Order'!J978=\"\",\"\",'1. Order'!J978)","v":""},{"$f":"IF('1. Order'!K978=\"\",\"\",'1. Order'!K978)","v":""},{"$f":"IF('1. Order'!L978=\"\",\"\",'1. Order'!L978)","v":""},{"$f":"IF('1. Order'!M978=\"\",\"\",'1. Order'!M978)","v":""},{"$f":"IF('1. Order'!N978=\"\",\"\",'1. Order'!N978)","v":""},{"$f":"IF('1. Order'!O978=\"\",\"\",'1. Order'!O978)","v":{"$error":"#N/A"}},{"$f":"IF('1. Order'!P978=\"\",\"\",'1. Order'!P978)","v":{"$error":"#N/A"}},{"$f":"IF('1. Order'!Q978=\"\",\"\",'1. Order'!Q978)","v":""},{"$f":"IF('1. Order'!S978=\"\",\"\",'1. Order'!S978)","v":""},{"$f":"IF('1. Order'!T978=\"\",\"\",'1. Order'!T978)","v":""},{"$f":"IF('1. Order'!W978=\"\",\"\",'1. Order'!W978)","v":""},{"$f":"IF('1. Order'!X978=\"\",\"\",'1. Order'!X978)","v":""},{"$f":"IF('1. Order'!Y978=\"\",\"\",'1. Order'!Y978)","v":"EUR"},{"$f":"IF('1. Order'!Z978=\"\",\"\",'1. Order'!Z978)","v":""},{"$f":"IF('1. Order'!AA978=\"\",\"\",'1. Order'!AA978)","v":""},{"$f":"IF('1. Order'!AB978=\"\",\"\",'1. Order'!AB978)","v":""},null,{"$f":"IF('1. Order'!AT978=\"\",\"\",'1. Order'!AT978)","v":""},{"$f":"IF('1. Order'!AU978=\"\",\"\",'1. Order'!AU978)","v":""},null,null,null,null,null,null,null,{"$f":"IF('1. Order'!AY978=\"\",\"\",'1. Order'!AY978)","v":""},{"$f":"IF('1. Order'!AZ978=\"\",\"\",'1. Order'!AZ978)","v":""},{"$f":"IF('1. Order'!BA978=\"\",\"\",'1. Order'!BA978)","v":""},{"$f":"IF('1. Order'!BB978=\"\",\"\",'1. Order'!BB978)","v":""},{"$f":"IF('1. Order'!BD978=\"\",\"\",'1. Order'!BD978)","v":""},{"$f":"IF('1. Order'!BE978=\"\",\"\",'1. Order'!BE978)","v":""},{"$f":"IF('1. Order'!BF978=\"\",\"\",'1. Order'!BF978)","v":""},{"$f":"IF('1. Order'!BG978=\"\",\"\",'1. Order'!BG978)","v":""},{"$f":"IF('1. Order'!BH978=\"\",\"\",'1. Order'!BH978)","v":"ZWO"}]
[{"$f":"IF('1. Order'!F979=\"\",\"\",'1. Order'!F979)","v":{"$error":"#N/A"}},{"$f":"IF('1. Order'!G979=\"\",\"\",'1. Order'!G979)","v":""},{"$f":"IF('1. Order'!H979=\"\",\"\",'1. Order'!H979)","v":""},{"$f":"IF('1. Order'!I979=\"\",\"\",'1. Order'!I979)","v":""},{"$f":"IF('1. Order'!J979=\"\",\"\",'1. Order'!J979)","v":""},{"$f":"IF('1. Order'!K979=\"\",\"\",'1. Order'!K979)","v":""},{"$f":"IF('1. Order'!L979=\"\",\"\",'1. Order'!L979)","v":""},{"$f":"IF('1. Order'!M979=\"\",\"\",'1. Order'!M979)","v":""},{"$f":"IF('1. Order'!N979=\"\",\"\",'1. Order'!N979)","v":""},{"$f":"IF('1. Order'!O979=\"\",\"\",'1. Order'!O979)","v":{"$error":"#N/A"}},{"$f":"IF('1. Order'!P979=\"\",\"\",'1. Order'!P979)","v":{"$error":"#N/A"}},{"$f":"IF('1. Order'!Q979=\"\",\"\",'1. Order'!Q979)","v":""},{"$f":"IF('1. Order'!S979=\"\",\"\",'1. Order'!S979)","v":""},{"$f":"IF('1. Order'!T979=\"\",\"\",'1. Order'!T979)","v":""},{"$f":"IF('1. Order'!W979=\"\",\"\",'1. Order'!W979)","v":""},{"$f":"IF('1. Order'!X979=\"\",\"\",'1. Order'!X979)","v":""},{"$f":"IF('1. Order'!Y979=\"\",\"\",'1. Order'!Y979)","v":"EUR"},{"$f":"IF('1. Order'!Z979=\"\",\"\",'1. Order'!Z979)","v":""},{"$f":"IF('1. Order'!AA979=\"\",\"\",'1. Order'!AA979)","v":""},{"$f":"IF('1. Order'!AB979=\"\",\"\",'1. Order'!AB979)","v":""},null,{"$f":"IF('1. Order'!AT979=\"\",\"\",'1. Order'!AT979)","v":""},{"$f":"IF('1. Order'!AU979=\"\",\"\",'1. Order'!AU979)","v":""},null,null,null,null,null,null,null,{"$f":"IF('1. Order'!AY979=\"\",\"\",'1. Order'!AY979)","v":""},{"$f":"IF('1. Order'!AZ979=\"\",\"\",'1. Order'!AZ979)","v":""},{"$f":"IF('1. Order'!BA979=\"\",\"\",'1. Order'!BA979)","v":""},{"$f":"IF('1. Order'!BB979=\"\",\"\",'1. Order'!BB979)","v":""},{"$f":"IF('1. Order'!BD979=\"\",\"\",'1. Order'!BD979)","v":""},{"$f":"IF('1. Order'!BE979=\"\",\"\",'1. Order'!BE979)","v":""},{"$f":"IF('1. Order'!BF979=\"\",\"\",'1. Order'!BF979)","v":""},{"$f":"IF('1. Order'!BG979=\"\",\"\",'1. Order'!BG979)","v":""},{"$f":"IF('1. Order'!BH979=\"\",\"\",'1. Order'!BH979)","v":"ZWO"}]
[{"$f":"IF('1. Order'!F980=\"\",\"\",'1. Order'!F980)","v":{"$error":"#N/A"}},{"$f":"IF('1. Order'!G980=\"\",\"\",'1. Order'!G980)","v":""},{"$f":"IF('1. Order'!H980=\"\",\"\",'1. Order'!H980)","v":""},{"$f":"IF('1. Order'!I980=\"\",\"\",'1. Order'!I980)","v":""},{"$f":"IF('1. Order'!J980=\"\",\"\",'1. Order'!J980)","v":""},{"$f":"IF('1. Order'!K980=\"\",\"\",'1. Order'!K980)","v":""},{"$f":"IF('1. Order'!L980=\"\",\"\",'1. Order'!L980)","v":""},{"$f":"IF('1. Order'!M980=\"\",\"\",'1. Order'!M980)","v":""},{"$f":"IF('1. Order'!N980=\"\",\"\",'1. Order'!N980)","v":""},{"$f":"IF('1. Order'!O980=\"\",\"\",'1. Order'!O980)","v":{"$error":"#N/A"}},{"$f":"IF('1. Order'!P980=\"\",\"\",'1. Order'!P980)","v":{"$error":"#N/A"}},{"$f":"IF('1. Order'!Q980=\"\",\"\",'1. Order'!Q980)","v":""},{"$f":"IF('1. Order'!S980=\"\",\"\",'1. Order'!S980)","v":""},{"$f":"IF('1. Order'!T980=\"\",\"\",'1. Order'!T980)","v":""},{"$f":"IF('1. Order'!W980=\"\",\"\",'1. Order'!W980)","v":""},{"$f":"IF('1. Order'!X980=\"\",\"\",'1. Order'!X980)","v":""},{"$f":"IF('1. Order'!Y980=\"\",\"\",'1. Order'!Y980)","v":"EUR"},{"$f":"IF('1. Order'!Z980=\"\",\"\",'1. Order'!Z980)","v":""},{"$f":"IF('1. Order'!AA980=\"\",\"\",'1. Order'!AA980)","v":""},{"$f":"IF('1. Order'!AB980=\"\",\"\",'1. Order'!AB980)","v":""},null,{"$f":"IF('1. Order'!AT980=\"\",\"\",'1. Order'!AT980)","v":""},{"$f":"IF('1. Order'!AU980=\"\",\"\",'1. Order'!AU980)","v":""},null,null,null,null,null,null,null,{"$f":"IF('1. Order'!AY980=\"\",\"\",'1. Order'!AY980)","v":""},{"$f":"IF('1. Order'!AZ980=\"\",\"\",'1. Order'!AZ980)","v":""},{"$f":"IF('1. Order'!BA980=\"\",\"\",'1. Order'!BA980)","v":""},{"$f":"IF('1. Order'!BB980=\"\",\"\",'1. Order'!BB980)","v":""},{"$f":"IF('1. Order'!BD980=\"\",\"\",'1. Order'!BD980)","v":""},{"$f":"IF('1. Order'!BE980=\"\",\"\",'1. Order'!BE980)","v":""},{"$f":"IF('1. Order'!BF980=\"\",\"\",'1. Order'!BF980)","v":""},{"$f":"IF('1. Order'!BG980=\"\",\"\",'1. Order'!BG980)","v":""},{"$f":"IF('1. Order'!BH980=\"\",\"\",'1. Order'!BH980)","v":"ZWO"}]
[{"$f":"IF('1. Order'!F981=\"\",\"\",'1. Order'!F981)","v":{"$error":"#N/A"}},{"$f":"IF('1. Order'!G981=\"\",\"\",'1. Order'!G981)","v":""},{"$f":"IF('1. Order'!H981=\"\",\"\",'1. Order'!H981)","v":""},{"$f":"IF('1. Order'!I981=\"\",\"\",'1. Order'!I981)","v":""},{"$f":"IF('1. Order'!J981=\"\",\"\",'1. Order'!J981)","v":""},{"$f":"IF('1. Order'!K981=\"\",\"\",'1. Order'!K981)","v":""},{"$f":"IF('1. Order'!L981=\"\",\"\",'1. Order'!L981)","v":""},{"$f":"IF('1. Order'!M981=\"\",\"\",'1. Order'!M981)","v":""},{"$f":"IF('1. Order'!N981=\"\",\"\",'1. Order'!N981)","v":""},{"$f":"IF('1. Order'!O981=\"\",\"\",'1. Order'!O981)","v":{"$error":"#N/A"}},{"$f":"IF('1. Order'!P981=\"\",\"\",'1. Order'!P981)","v":{"$error":"#N/A"}},{"$f":"IF('1. Order'!Q981=\"\",\"\",'1. Order'!Q981)","v":""},{"$f":"IF('1. Order'!S981=\"\",\"\",'1. Order'!S981)","v":""},{"$f":"IF('1. Order'!T981=\"\",\"\",'1. Order'!T981)","v":""},{"$f":"IF('1. Order'!W981=\"\",\"\",'1. Order'!W981)","v":""},{"$f":"IF('1. Order'!X981=\"\",\"\",'1. Order'!X981)","v":""},{"$f":"IF('1. Order'!Y981=\"\",\"\",'1. Order'!Y981)","v":"EUR"},{"$f":"IF('1. Order'!Z981=\"\",\"\",'1. Order'!Z981)","v":""},{"$f":"IF('1. Order'!AA981=\"\",\"\",'1. Order'!AA981)","v":""},{"$f":"IF('1. Order'!AB981=\"\",\"\",'1. Order'!AB981)","v":""},null,{"$f":"IF('1. Order'!AT981=\"\",\"\",'1. Order'!AT981)","v":""},{"$f":"IF('1. Order'!AU981=\"\",\"\",'1. Order'!AU981)","v":""},null,null,null,null,null,null,null,{"$f":"IF('1. Order'!AY981=\"\",\"\",'1. Order'!AY981)","v":""},{"$f":"IF('1. Order'!AZ981=\"\",\"\",'1. Order'!AZ981)","v":""},{"$f":"IF('1. Order'!BA981=\"\",\"\",'1. Order'!BA981)","v":""},{"$f":"IF('1. Order'!BB981=\"\",\"\",'1. Order'!BB981)","v":""},{"$f":"IF('1. Order'!BD981=\"\",\"\",'1. Order'!BD981)","v":""},{"$f":"IF('1. Order'!BE981=\"\",\"\",'1. Order'!BE981)","v":""},{"$f":"IF('1. Order'!BF981=\"\",\"\",'1. Order'!BF981)","v":""},{"$f":"IF('1. Order'!BG981=\"\",\"\",'1. Order'!BG981)","v":""},{"$f":"IF('1. Order'!BH981=\"\",\"\",'1. Order'!BH981)","v":"ZWO"}]
[{"$f":"IF('1. Order'!F982=\"\",\"\",'1. Order'!F982)","v":{"$error":"#N/A"}},{"$f":"IF('1. Order'!G982=\"\",\"\",'1. Order'!G982)","v":""},{"$f":"IF('1. Order'!H982=\"\",\"\",'1. Order'!H982)","v":""},{"$f":"IF('1. Order'!I982=\"\",\"\",'1. Order'!I982)","v":""},{"$f":"IF('1. Order'!J982=\"\",\"\",'1. Order'!J982)","v":""},{"$f":"IF('1. Order'!K982=\"\",\"\",'1. Order'!K982)","v":""},{"$f":"IF('1. Order'!L982=\"\",\"\",'1. Order'!L982)","v":""},{"$f":"IF('1. Order'!M982=\"\",\"\",'1. Order'!M982)","v":""},{"$f":"IF('1. Order'!N982=\"\",\"\",'1. Order'!N982)","v":""},{"$f":"IF('1. Order'!O982=\"\",\"\",'1. Order'!O982)","v":{"$error":"#N/A"}},{"$f":"IF('1. Order'!P982=\"\",\"\",'1. Order'!P982)","v":{"$error":"#N/A"}},{"$f":"IF('1. Order'!Q982=\"\",\"\",'1. Order'!Q982)","v":""},{"$f":"IF('1. Order'!S982=\"\",\"\",'1. Order'!S982)","v":""},{"$f":"IF('1. Order'!T982=\"\",\"\",'1. Order'!T982)","v":""},{"$f":"IF('1. Order'!W982=\"\",\"\",'1. Order'!W982)","v":""},{"$f":"IF('1. Order'!X982=\"\",\"\",'1. Order'!X982)","v":""},{"$f":"IF('1. Order'!Y982=\"\",\"\",'1. Order'!Y982)","v":"EUR"},{"$f":"IF('1. Order'!Z982=\"\",\"\",'1. Order'!Z982)","v":""},{"$f":"IF('1. Order'!AA982=\"\",\"\",'1. Order'!AA982)","v":""},{"$f":"IF('1. Order'!AB982=\"\",\"\",'1. Order'!AB982)","v":""},null,{"$f":"IF('1. Order'!AT982=\"\",\"\",'1. Order'!AT982)","v":""},{"$f":"IF('1. Order'!AU982=\"\",\"\",'1. Order'!AU982)","v":""},null,null,null,null,null,null,null,{"$f":"IF('1. Order'!AY982=\"\",\"\",'1. Order'!AY982)","v":""},{"$f":"IF('1. Order'!AZ982=\"\",\"\",'1. Order'!AZ982)","v":""},{"$f":"IF('1. Order'!BA982=\"\",\"\",'1. Order'!BA982)","v":""},{"$f":"IF('1. Order'!BB982=\"\",\"\",'1. Order'!BB982)","v":""},{"$f":"IF('1. Order'!BD982=\"\",\"\",'1. Order'!BD982)","v":""},{"$f":"IF('1. Order'!BE982=\"\",\"\",'1. Order'!BE982)","v":""},{"$f":"IF('1. Order'!BF982=\"\",\"\",'1. Order'!BF982)","v":""},{"$f":"IF('1. Order'!BG982=\"\",\"\",'1. Order'!BG982)","v":""},{"$f":"IF('1. Order'!BH982=\"\",\"\",'1. Order'!BH982)","v":"ZWO"}]
[{"$f":"IF('1. Order'!F983=\"\",\"\",'1. Order'!F983)","v":{"$error":"#N/A"}},{"$f":"IF('1. Order'!G983=\"\",\"\",'1. Order'!G983)","v":""},{"$f":"IF('1. Order'!H983=\"\",\"\",'1. Order'!H983)","v":""},{"$f":"IF('1. Order'!I983=\"\",\"\",'1. Order'!I983)","v":""},{"$f":"IF('1. Order'!J983=\"\",\"\",'1. Order'!J983)","v":""},{"$f":"IF('1. Order'!K983=\"\",\"\",'1. Order'!K983)","v":""},{"$f":"IF('1. Order'!L983=\"\",\"\",'1. Order'!L983)","v":""},{"$f":"IF('1. Order'!M983=\"\",\"\",'1. Order'!M983)","v":""},{"$f":"IF('1. Order'!N983=\"\",\"\",'1. Order'!N983)","v":""},{"$f":"IF('1. Order'!O983=\"\",\"\",'1. Order'!O983)","v":{"$error":"#N/A"}},{"$f":"IF('1. Order'!P983=\"\",\"\",'1. Order'!P983)","v":{"$error":"#N/A"}},{"$f":"IF('1. Order'!Q983=\"\",\"\",'1. Order'!Q983)","v":""},{"$f":"IF('1. Order'!S983=\"\",\"\",'1. Order'!S983)","v":""},{"$f":"IF('1. Order'!T983=\"\",\"\",'1. Order'!T983)","v":""},{"$f":"IF('1. Order'!W983=\"\",\"\",'1. Order'!W983)","v":""},{"$f":"IF('1. Order'!X983=\"\",\"\",'1. Order'!X983)","v":""},{"$f":"IF('1. Order'!Y983=\"\",\"\",'1. Order'!Y983)","v":"EUR"},{"$f":"IF('1. Order'!Z983=\"\",\"\",'1. Order'!Z983)","v":""},{"$f":"IF('1. Order'!AA983=\"\",\"\",'1. Order'!AA983)","v":""},{"$f":"IF('1. Order'!AB983=\"\",\"\",'1. Order'!AB983)","v":""},null,{"$f":"IF('1. Order'!AT983=\"\",\"\",'1. Order'!AT983)","v":""},{"$f":"IF('1. Order'!AU983=\"\",\"\",'1. Order'!AU983)","v":""},null,null,null,null,null,null,null,{"$f":"IF('1. Order'!AY983=\"\",\"\",'1. Order'!AY983)","v":""},{"$f":"IF('1. Order'!AZ983=\"\",\"\",'1. Order'!AZ983)","v":""},{"$f":"IF('1. Order'!BA983=\"\",\"\",'1. Order'!BA983)","v":""},{"$f":"IF('1. Order'!BB983=\"\",\"\",'1. Order'!BB983)","v":""},{"$f":"IF('1. Order'!BD983=\"\",\"\",'1. Order'!BD983)","v":""},{"$f":"IF('1. Order'!BE983=\"\",\"\",'1. Order'!BE983)","v":""},{"$f":"IF('1. Order'!BF983=\"\",\"\",'1. Order'!BF983)","v":""},{"$f":"IF('1. Order'!BG983=\"\",\"\",'1. Order'!BG983)","v":""},{"$f":"IF('1. Order'!BH983=\"\",\"\",'1. Order'!BH983)","v":"ZWO"}]
[{"$f":"IF('1. Order'!F984=\"\",\"\",'1. Order'!F984)","v":{"$error":"#N/A"}},{"$f":"IF('1. Order'!G984=\"\",\"\",'1. Order'!G984)","v":""},{"$f":"IF('1. Order'!H984=\"\",\"\",'1. Order'!H984)","v":""},{"$f":"IF('1. Order'!I984=\"\",\"\",'1. Order'!I984)","v":""},{"$f":"IF('1. Order'!J984=\"\",\"\",'1. Order'!J984)","v":""},{"$f":"IF('1. Order'!K984=\"\",\"\",'1. Order'!K984)","v":""},{"$f":"IF('1. Order'!L984=\"\",\"\",'1. Order'!L984)","v":""},{"$f":"IF('1. Order'!M984=\"\",\"\",'1. Order'!M984)","v":""},{"$f":"IF('1. Order'!N984=\"\",\"\",'1. Order'!N984)","v":""},{"$f":"IF('1. Order'!O984=\"\",\"\",'1. Order'!O984)","v":{"$error":"#N/A"}},{"$f":"IF('1. Order'!P984=\"\",\"\",'1. Order'!P984)","v":{"$error":"#N/A"}},{"$f":"IF('1. Order'!Q984=\"\",\"\",'1. Order'!Q984)","v":""},{"$f":"IF('1. Order'!S984=\"\",\"\",'1. Order'!S984)","v":""},{"$f":"IF('1. Order'!T984=\"\",\"\",'1. Order'!T984)","v":""},{"$f":"IF('1. Order'!W984=\"\",\"\",'1. Order'!W984)","v":""},{"$f":"IF('1. Order'!X984=\"\",\"\",'1. Order'!X984)","v":""},{"$f":"IF('1. Order'!Y984=\"\",\"\",'1. Order'!Y984)","v":"EUR"},{"$f":"IF('1. Order'!Z984=\"\",\"\",'1. Order'!Z984)","v":""},{"$f":"IF('1. Order'!AA984=\"\",\"\",'1. Order'!AA984)","v":""},{"$f":"IF('1. Order'!AB984=\"\",\"\",'1. Order'!AB984)","v":""},null,{"$f":"IF('1. Order'!AT984=\"\",\"\",'1. Order'!AT984)","v":""},{"$f":"IF('1. Order'!AU984=\"\",\"\",'1. Order'!AU984)","v":""},null,null,null,null,null,null,null,{"$f":"IF('1. Order'!AY984=\"\",\"\",'1. Order'!AY984)","v":""},{"$f":"IF('1. Order'!AZ984=\"\",\"\",'1. Order'!AZ984)","v":""},{"$f":"IF('1. Order'!BA984=\"\",\"\",'1. Order'!BA984)","v":""},{"$f":"IF('1. Order'!BB984=\"\",\"\",'1. Order'!BB984)","v":""},{"$f":"IF('1. Order'!BD984=\"\",\"\",'1. Order'!BD984)","v":""},{"$f":"IF('1. Order'!BE984=\"\",\"\",'1. Order'!BE984)","v":""},{"$f":"IF('1. Order'!BF984=\"\",\"\",'1. Order'!BF984)","v":""},{"$f":"IF('1. Order'!BG984=\"\",\"\",'1. Order'!BG984)","v":""},{"$f":"IF('1. Order'!BH984=\"\",\"\",'1. Order'!BH984)","v":"ZWO"}]
[{"$f":"IF('1. Order'!F985=\"\",\"\",'1. Order'!F985)","v":{"$error":"#N/A"}},{"$f":"IF('1. Order'!G985=\"\",\"\",'1. Order'!G985)","v":""},{"$f":"IF('1. Order'!H985=\"\",\"\",'1. Order'!H985)","v":""},{"$f":"IF('1. Order'!I985=\"\",\"\",'1. Order'!I985)","v":""},{"$f":"IF('1. Order'!J985=\"\",\"\",'1. Order'!J985)","v":""},{"$f":"IF('1. Order'!K985=\"\",\"\",'1. Order'!K985)","v":""},{"$f":"IF('1. Order'!L985=\"\",\"\",'1. Order'!L985)","v":""},{"$f":"IF('1. Order'!M985=\"\",\"\",'1. Order'!M985)","v":""},{"$f":"IF('1. Order'!N985=\"\",\"\",'1. Order'!N985)","v":""},{"$f":"IF('1. Order'!O985=\"\",\"\",'1. Order'!O985)","v":{"$error":"#N/A"}},{"$f":"IF('1. Order'!P985=\"\",\"\",'1. Order'!P985)","v":{"$error":"#N/A"}},{"$f":"IF('1. Order'!Q985=\"\",\"\",'1. Order'!Q985)","v":""},{"$f":"IF('1. Order'!S985=\"\",\"\",'1. Order'!S985)","v":""},{"$f":"IF('1. Order'!T985=\"\",\"\",'1. Order'!T985)","v":""},{"$f":"IF('1. Order'!W985=\"\",\"\",'1. Order'!W985)","v":""},{"$f":"IF('1. Order'!X985=\"\",\"\",'1. Order'!X985)","v":""},{"$f":"IF('1. Order'!Y985=\"\",\"\",'1. Order'!Y985)","v":"EUR"},{"$f":"IF('1. Order'!Z985=\"\",\"\",'1. Order'!Z985)","v":""},{"$f":"IF('1. Order'!AA985=\"\",\"\",'1. Order'!AA985)","v":""},{"$f":"IF('1. Order'!AB985=\"\",\"\",'1. Order'!AB985)","v":""},null,{"$f":"IF('1. Order'!AT985=\"\",\"\",'1. Order'!AT985)","v":""},{"$f":"IF('1. Order'!AU985=\"\",\"\",'1. Order'!AU985)","v":""},null,null,null,null,null,null,null,{"$f":"IF('1. Order'!AY985=\"\",\"\",'1. Order'!AY985)","v":""},{"$f":"IF('1. Order'!AZ985=\"\",\"\",'1. Order'!AZ985)","v":""},{"$f":"IF('1. Order'!BA985=\"\",\"\",'1. Order'!BA985)","v":""},{"$f":"IF('1. Order'!BB985=\"\",\"\",'1. Order'!BB985)","v":""},{"$f":"IF('1. Order'!BD985=\"\",\"\",'1. Order'!BD985)","v":""},{"$f":"IF('1. Order'!BE985=\"\",\"\",'1. Order'!BE985)","v":""},{"$f":"IF('1. Order'!BF985=\"\",\"\",'1. Order'!BF985)","v":""},{"$f":"IF('1. Order'!BG985=\"\",\"\",'1. Order'!BG985)","v":""},{"$f":"IF('1. Order'!BH985=\"\",\"\",'1. Order'!BH985)","v":"ZWO"}]
[{"$f":"IF('1. Order'!F986=\"\",\"\",'1. Order'!F986)","v":{"$error":"#N/A"}},{"$f":"IF('1. Order'!G986=\"\",\"\",'1. Order'!G986)","v":""},{"$f":"IF('1. Order'!H986=\"\",\"\",'1. Order'!H986)","v":""},{"$f":"IF('1. Order'!I986=\"\",\"\",'1. Order'!I986)","v":""},{"$f":"IF('1. Order'!J986=\"\",\"\",'1. Order'!J986)","v":""},{"$f":"IF('1. Order'!K986=\"\",\"\",'1. Order'!K986)","v":""},{"$f":"IF('1. Order'!L986=\"\",\"\",'1. Order'!L986)","v":""},{"$f":"IF('1. Order'!M986=\"\",\"\",'1. Order'!M986)","v":""},{"$f":"IF('1. Order'!N986=\"\",\"\",'1. Order'!N986)","v":""},{"$f":"IF('1. Order'!O986=\"\",\"\",'1. Order'!O986)","v":{"$error":"#N/A"}},{"$f":"IF('1. Order'!P986=\"\",\"\",'1. Order'!P986)","v":{"$error":"#N/A"}},{"$f":"IF('1. Order'!Q986=\"\",\"\",'1. Order'!Q986)","v":""},{"$f":"IF('1. Order'!S986=\"\",\"\",'1. Order'!S986)","v":""},{"$f":"IF('1. Order'!T986=\"\",\"\",'1. Order'!T986)","v":""},{"$f":"IF('1. Order'!W986=\"\",\"\",'1. Order'!W986)","v":""},{"$f":"IF('1. Order'!X986=\"\",\"\",'1. Order'!X986)","v":""},{"$f":"IF('1. Order'!Y986=\"\",\"\",'1. Order'!Y986)","v":"EUR"},{"$f":"IF('1. Order'!Z986=\"\",\"\",'1. Order'!Z986)","v":""},{"$f":"IF('1. Order'!AA986=\"\",\"\",'1. Order'!AA986)","v":""},{"$f":"IF('1. Order'!AB986=\"\",\"\",'1. Order'!AB986)","v":""},null,{"$f":"IF('1. Order'!AT986=\"\",\"\",'1. Order'!AT986)","v":""},{"$f":"IF('1. Order'!AU986=\"\",\"\",'1. Order'!AU986)","v":""},null,null,null,null,null,null,null,{"$f":"IF('1. Order'!AY986=\"\",\"\",'1. Order'!AY986)","v":""},{"$f":"IF('1. Order'!AZ986=\"\",\"\",'1. Order'!AZ986)","v":""},{"$f":"IF('1. Order'!BA986=\"\",\"\",'1. Order'!BA986)","v":""},{"$f":"IF('1. Order'!BB986=\"\",\"\",'1. Order'!BB986)","v":""},{"$f":"IF('1. Order'!BD986=\"\",\"\",'1. Order'!BD986)","v":""},{"$f":"IF('1. Order'!BE986=\"\",\"\",'1. Order'!BE986)","v":""},{"$f":"IF('1. Order'!BF986=\"\",\"\",'1. Order'!BF986)","v":""},{"$f":"IF('1. Order'!BG986=\"\",\"\",'1. Order'!BG986)","v":""},{"$f":"IF('1. Order'!BH986=\"\",\"\",'1. Order'!BH986)","v":"ZWO"}]
[{"$f":"IF('1. Order'!F987=\"\",\"\",'1. Order'!F987)","v":{"$error":"#N/A"}},{"$f":"IF('1. Order'!G987=\"\",\"\",'1. Order'!G987)","v":""},{"$f":"IF('1. Order'!H987=\"\",\"\",'1. Order'!H987)","v":""},{"$f":"IF('1. Order'!I987=\"\",\"\",'1. Order'!I987)","v":""},{"$f":"IF('1. Order'!J987=\"\",\"\",'1. Order'!J987)","v":""},{"$f":"IF('1. Order'!K987=\"\",\"\",'1. Order'!K987)","v":""},{"$f":"IF('1. Order'!L987=\"\",\"\",'1. Order'!L987)","v":""},{"$f":"IF('1. Order'!M987=\"\",\"\",'1. Order'!M987)","v":""},{"$f":"IF('1. Order'!N987=\"\",\"\",'1. Order'!N987)","v":""},{"$f":"IF('1. Order'!O987=\"\",\"\",'1. Order'!O987)","v":{"$error":"#N/A"}},{"$f":"IF('1. Order'!P987=\"\",\"\",'1. Order'!P987)","v":{"$error":"#N/A"}},{"$f":"IF('1. Order'!Q987=\"\",\"\",'1. Order'!Q987)","v":""},{"$f":"IF('1. Order'!S987=\"\",\"\",'1. Order'!S987)","v":""},{"$f":"IF('1. Order'!T987=\"\",\"\",'1. Order'!T987)","v":""},{"$f":"IF('1. Order'!W987=\"\",\"\",'1. Order'!W987)","v":""},{"$f":"IF('1. Order'!X987=\"\",\"\",'1. Order'!X987)","v":""},{"$f":"IF('1. Order'!Y987=\"\",\"\",'1. Order'!Y987)","v":"EUR"},{"$f":"IF('1. Order'!Z987=\"\",\"\",'1. Order'!Z987)","v":""},{"$f":"IF('1. Order'!AA987=\"\",\"\",'1. Order'!AA987)","v":""},{"$f":"IF('1. Order'!AB987=\"\",\"\",'1. Order'!AB987)","v":""},null,{"$f":"IF('1. Order'!AT987=\"\",\"\",'1. Order'!AT987)","v":""},{"$f":"IF('1. Order'!AU987=\"\",\"\",'1. Order'!AU987)","v":""},null,null,null,null,null,null,null,{"$f":"IF('1. Order'!AY987=\"\",\"\",'1. Order'!AY987)","v":""},{"$f":"IF('1. Order'!AZ987=\"\",\"\",'1. Order'!AZ987)","v":""},{"$f":"IF('1. Order'!BA987=\"\",\"\",'1. Order'!BA987)","v":""},{"$f":"IF('1. Order'!BB987=\"\",\"\",'1. Order'!BB987)","v":""},{"$f":"IF('1. Order'!BD987=\"\",\"\",'1. Order'!BD987)","v":""},{"$f":"IF('1. Order'!BE987=\"\",\"\",'1. Order'!BE987)","v":""},{"$f":"IF('1. Order'!BF987=\"\",\"\",'1. Order'!BF987)","v":""},{"$f":"IF('1. Order'!BG987=\"\",\"\",'1. Order'!BG987)","v":""},{"$f":"IF('1. Order'!BH987=\"\",\"\",'1. Order'!BH987)","v":"ZWO"}]
[{"$f":"IF('1. Order'!F988=\"\",\"\",'1. Order'!F988)","v":{"$error":"#N/A"}},{"$f":"IF('1. Order'!G988=\"\",\"\",'1. Order'!G988)","v":""},{"$f":"IF('1. Order'!H988=\"\",\"\",'1. Order'!H988)","v":""},{"$f":"IF('1. Order'!I988=\"\",\"\",'1. Order'!I988)","v":""},{"$f":"IF('1. Order'!J988=\"\",\"\",'1. Order'!J988)","v":""},{"$f":"IF('1. Order'!K988=\"\",\"\",'1. Order'!K988)","v":""},{"$f":"IF('1. Order'!L988=\"\",\"\",'1. Order'!L988)","v":""},{"$f":"IF('1. Order'!M988=\"\",\"\",'1. Order'!M988)","v":""},{"$f":"IF('1. Order'!N988=\"\",\"\",'1. Order'!N988)","v":""},{"$f":"IF('1. Order'!O988=\"\",\"\",'1. Order'!O988)","v":{"$error":"#N/A"}},{"$f":"IF('1. Order'!P988=\"\",\"\",'1. Order'!P988)","v":{"$error":"#N/A"}},{"$f":"IF('1. Order'!Q988=\"\",\"\",'1. Order'!Q988)","v":""},{"$f":"IF('1. Order'!S988=\"\",\"\",'1. Order'!S988)","v":""},{"$f":"IF('1. Order'!T988=\"\",\"\",'1. Order'!T988)","v":""},{"$f":"IF('1. Order'!W988=\"\",\"\",'1. Order'!W988)","v":""},{"$f":"IF('1. Order'!X988=\"\",\"\",'1. Order'!X988)","v":""},{"$f":"IF('1. Order'!Y988=\"\",\"\",'1. Order'!Y988)","v":"EUR"},{"$f":"IF('1. Order'!Z988=\"\",\"\",'1. Order'!Z988)","v":""},{"$f":"IF('1. Order'!AA988=\"\",\"\",'1. Order'!AA988)","v":""},{"$f":"IF('1. Order'!AB988=\"\",\"\",'1. Order'!AB988)","v":""},null,{"$f":"IF('1. Order'!AT988=\"\",\"\",'1. Order'!AT988)","v":""},{"$f":"IF('1. Order'!AU988=\"\",\"\",'1. Order'!AU988)","v":""},null,null,null,null,null,null,null,{"$f":"IF('1. Order'!AY988=\"\",\"\",'1. Order'!AY988)","v":""},{"$f":"IF('1. Order'!AZ988=\"\",\"\",'1. Order'!AZ988)","v":""},{"$f":"IF('1. Order'!BA988=\"\",\"\",'1. Order'!BA988)","v":""},{"$f":"IF('1. Order'!BB988=\"\",\"\",'1. Order'!BB988)","v":""},{"$f":"IF('1. Order'!BD988=\"\",\"\",'1. Order'!BD988)","v":""},{"$f":"IF('1. Order'!BE988=\"\",\"\",'1. Order'!BE988)","v":""},{"$f":"IF('1. Order'!BF988=\"\",\"\",'1. Order'!BF988)","v":""},{"$f":"IF('1. Order'!BG988=\"\",\"\",'1. Order'!BG988)","v":""},{"$f":"IF('1. Order'!BH988=\"\",\"\",'1. Order'!BH988)","v":"ZWO"}]
[{"$f":"IF('1. Order'!F989=\"\",\"\",'1. Order'!F989)","v":{"$error":"#N/A"}},{"$f":"IF('1. Order'!G989=\"\",\"\",'1. Order'!G989)","v":""},{"$f":"IF('1. Order'!H989=\"\",\"\",'1. Order'!H989)","v":""},{"$f":"IF('1. Order'!I989=\"\",\"\",'1. Order'!I989)","v":""},{"$f":"IF('1. Order'!J989=\"\",\"\",'1. Order'!J989)","v":""},{"$f":"IF('1. Order'!K989=\"\",\"\",'1. Order'!K989)","v":""},{"$f":"IF('1. Order'!L989=\"\",\"\",'1. Order'!L989)","v":""},{"$f":"IF('1. Order'!M989=\"\",\"\",'1. Order'!M989)","v":""},{"$f":"IF('1. Order'!N989=\"\",\"\",'1. Order'!N989)","v":""},{"$f":"IF('1. Order'!O989=\"\",\"\",'1. Order'!O989)","v":{"$error":"#N/A"}},{"$f":"IF('1. Order'!P989=\"\",\"\",'1. Order'!P989)","v":{"$error":"#N/A"}},{"$f":"IF('1. Order'!Q989=\"\",\"\",'1. Order'!Q989)","v":""},{"$f":"IF('1. Order'!S989=\"\",\"\",'1. Order'!S989)","v":""},{"$f":"IF('1. Order'!T989=\"\",\"\",'1. Order'!T989)","v":""},{"$f":"IF('1. Order'!W989=\"\",\"\",'1. Order'!W989)","v":""},{"$f":"IF('1. Order'!X989=\"\",\"\",'1. Order'!X989)","v":""},{"$f":"IF('1. Order'!Y989=\"\",\"\",'1. Order'!Y989)","v":"EUR"},{"$f":"IF('1. Order'!Z989=\"\",\"\",'1. Order'!Z989)","v":""},{"$f":"IF('1. Order'!AA989=\"\",\"\",'1. Order'!AA989)","v":""},{"$f":"IF('1. Order'!AB989=\"\",\"\",'1. Order'!AB989)","v":""},null,{"$f":"IF('1. Order'!AT989=\"\",\"\",'1. Order'!AT989)","v":""},{"$f":"IF('1. Order'!AU989=\"\",\"\",'1. Order'!AU989)","v":""},null,null,null,null,null,null,null,{"$f":"IF('1. Order'!AY989=\"\",\"\",'1. Order'!AY989)","v":""},{"$f":"IF('1. Order'!AZ989=\"\",\"\",'1. Order'!AZ989)","v":""},{"$f":"IF('1. Order'!BA989=\"\",\"\",'1. Order'!BA989)","v":""},{"$f":"IF('1. Order'!BB989=\"\",\"\",'1. Order'!BB989)","v":""},{"$f":"IF('1. Order'!BD989=\"\",\"\",'1. Order'!BD989)","v":""},{"$f":"IF('1. Order'!BE989=\"\",\"\",'1. Order'!BE989)","v":""},{"$f":"IF('1. Order'!BF989=\"\",\"\",'1. Order'!BF989)","v":""},{"$f":"IF('1. Order'!BG989=\"\",\"\",'1. Order'!BG989)","v":""},{"$f":"IF('1. Order'!BH989=\"\",\"\",'1. Order'!BH989)","v":"ZWO"}]
[{"$f":"IF('1. Order'!F990=\"\",\"\",'1. Order'!F990)","v":{"$error":"#N/A"}},{"$f":"IF('1. Order'!G990=\"\",\"\",'1. Order'!G990)","v":""},{"$f":"IF('1. Order'!H990=\"\",\"\",'1. Order'!H990)","v":""},{"$f":"IF('1. Order'!I990=\"\",\"\",'1. Order'!I990)","v":""},{"$f":"IF('1. Order'!J990=\"\",\"\",'1. Order'!J990)","v":""},{"$f":"IF('1. Order'!K990=\"\",\"\",'1. Order'!K990)","v":""},{"$f":"IF('1. Order'!L990=\"\",\"\",'1. Order'!L990)","v":""},{"$f":"IF('1. Order'!M990=\"\",\"\",'1. Order'!M990)","v":""},{"$f":"IF('1. Order'!N990=\"\",\"\",'1. Order'!N990)","v":""},{"$f":"IF('1. Order'!O990=\"\",\"\",'1. Order'!O990)","v":{"$error":"#N/A"}},{"$f":"IF('1. Order'!P990=\"\",\"\",'1. Order'!P990)","v":{"$error":"#N/A"}},{"$f":"IF('1. Order'!Q990=\"\",\"\",'1. Order'!Q990)","v":""},{"$f":"IF('1. Order'!S990=\"\",\"\",'1. Order'!S990)","v":""},{"$f":"IF('1. Order'!T990=\"\",\"\",'1. Order'!T990)","v":""},{"$f":"IF('1. Order'!W990=\"\",\"\",'1. Order'!W990)","v":""},{"$f":"IF('1. Order'!X990=\"\",\"\",'1. Order'!X990)","v":""},{"$f":"IF('1. Order'!Y990=\"\",\"\",'1. Order'!Y990)","v":"EUR"},{"$f":"IF('1. Order'!Z990=\"\",\"\",'1. Order'!Z990)","v":""},{"$f":"IF('1. Order'!AA990=\"\",\"\",'1. Order'!AA990)","v":""},{"$f":"IF('1. Order'!AB990=\"\",\"\",'1. Order'!AB990)","v":""},null,{"$f":"IF('1. Order'!AT990=\"\",\"\",'1. Order'!AT990)","v":""},{"$f":"IF('1. Order'!AU990=\"\",\"\",'1. Order'!AU990)","v":""},null,null,null,null,null,null,null,{"$f":"IF('1. Order'!AY990=\"\",\"\",'1. Order'!AY990)","v":""},{"$f":"IF('1. Order'!AZ990=\"\",\"\",'1. Order'!AZ990)","v":""},{"$f":"IF('1. Order'!BA990=\"\",\"\",'1. Order'!BA990)","v":""},{"$f":"IF('1. Order'!BB990=\"\",\"\",'1. Order'!BB990)","v":""},{"$f":"IF('1. Order'!BD990=\"\",\"\",'1. Order'!BD990)","v":""},{"$f":"IF('1. Order'!BE990=\"\",\"\",'1. Order'!BE990)","v":""},{"$f":"IF('1. Order'!BF990=\"\",\"\",'1. Order'!BF990)","v":""},{"$f":"IF('1. Order'!BG990=\"\",\"\",'1. Order'!BG990)","v":""},{"$f":"IF('1. Order'!BH990=\"\",\"\",'1. Order'!BH990)","v":"ZWO"}]
[{"$f":"IF('1. Order'!F991=\"\",\"\",'1. Order'!F991)","v":{"$error":"#N/A"}},{"$f":"IF('1. Order'!G991=\"\",\"\",'1. Order'!G991)","v":""},{"$f":"IF('1. Order'!H991=\"\",\"\",'1. Order'!H991)","v":""},{"$f":"IF('1. Order'!I991=\"\",\"\",'1. Order'!I991)","v":""},{"$f":"IF('1. Order'!J991=\"\",\"\",'1. Order'!J991)","v":""},{"$f":"IF('1. Order'!K991=\"\",\"\",'1. Order'!K991)","v":""},{"$f":"IF('1. Order'!L991=\"\",\"\",'1. Order'!L991)","v":""},{"$f":"IF('1. Order'!M991=\"\",\"\",'1. Order'!M991)","v":""},{"$f":"IF('1. Order'!N991=\"\",\"\",'1. Order'!N991)","v":""},{"$f":"IF('1. Order'!O991=\"\",\"\",'1. Order'!O991)","v":{"$error":"#N/A"}},{"$f":"IF('1. Order'!P991=\"\",\"\",'1. Order'!P991)","v":{"$error":"#N/A"}},{"$f":"IF('1. Order'!Q991=\"\",\"\",'1. Order'!Q991)","v":""},{"$f":"IF('1. Order'!S991=\"\",\"\",'1. Order'!S991)","v":""},{"$f":"IF('1. Order'!T991=\"\",\"\",'1. Order'!T991)","v":""},{"$f":"IF('1. Order'!W991=\"\",\"\",'1. Order'!W991)","v":""},{"$f":"IF('1. Order'!X991=\"\",\"\",'1. Order'!X991)","v":""},{"$f":"IF('1. Order'!Y991=\"\",\"\",'1. Order'!Y991)","v":"EUR"},{"$f":"IF('1. Order'!Z991=\"\",\"\",'1. Order'!Z991)","v":""},{"$f":"IF('1. Order'!AA991=\"\",\"\",'1. Order'!AA991)","v":""},{"$f":"IF('1. Order'!AB991=\"\",\"\",'1. Order'!AB991)","v":""},null,{"$f":"IF('1. Order'!AT991=\"\",\"\",'1. Order'!AT991)","v":""},{"$f":"IF('1. Order'!AU991=\"\",\"\",'1. Order'!AU991)","v":""},null,null,null,null,null,null,null,{"$f":"IF('1. Order'!AY991=\"\",\"\",'1. Order'!AY991)","v":""},{"$f":"IF('1. Order'!AZ991=\"\",\"\",'1. Order'!AZ991)","v":""},{"$f":"IF('1. Order'!BA991=\"\",\"\",'1. Order'!BA991)","v":""},{"$f":"IF('1. Order'!BB991=\"\",\"\",'1. Order'!BB991)","v":""},{"$f":"IF('1. Order'!BD991=\"\",\"\",'1. Order'!BD991)","v":""},{"$f":"IF('1. Order'!BE991=\"\",\"\",'1. Order'!BE991)","v":""},{"$f":"IF('1. Order'!BF991=\"\",\"\",'1. Order'!BF991)","v":""},{"$f":"IF('1. Order'!BG991=\"\",\"\",'1. Order'!BG991)","v":""},{"$f":"IF('1. Order'!BH991=\"\",\"\",'1. Order'!BH991)","v":"ZWO"}]
[{"$f":"IF('1. Order'!F992=\"\",\"\",'1. Order'!F992)","v":{"$error":"#N/A"}},{"$f":"IF('1. Order'!G992=\"\",\"\",'1. Order'!G992)","v":""},{"$f":"IF('1. Order'!H992=\"\",\"\",'1. Order'!H992)","v":""},{"$f":"IF('1. Order'!I992=\"\",\"\",'1. Order'!I992)","v":""},{"$f":"IF('1. Order'!J992=\"\",\"\",'1. Order'!J992)","v":""},{"$f":"IF('1. Order'!K992=\"\",\"\",'1. Order'!K992)","v":""},{"$f":"IF('1. Order'!L992=\"\",\"\",'1. Order'!L992)","v":""},{"$f":"IF('1. Order'!M992=\"\",\"\",'1. Order'!M992)","v":""},{"$f":"IF('1. Order'!N992=\"\",\"\",'1. Order'!N992)","v":""},{"$f":"IF('1. Order'!O992=\"\",\"\",'1. Order'!O992)","v":{"$error":"#N/A"}},{"$f":"IF('1. Order'!P992=\"\",\"\",'1. Order'!P992)","v":{"$error":"#N/A"}},{"$f":"IF('1. Order'!Q992=\"\",\"\",'1. Order'!Q992)","v":""},{"$f":"IF('1. Order'!S992=\"\",\"\",'1. Order'!S992)","v":""},{"$f":"IF('1. Order'!T992=\"\",\"\",'1. Order'!T992)","v":""},{"$f":"IF('1. Order'!W992=\"\",\"\",'1. Order'!W992)","v":""},{"$f":"IF('1. Order'!X992=\"\",\"\",'1. Order'!X992)","v":""},{"$f":"IF('1. Order'!Y992=\"\",\"\",'1. Order'!Y992)","v":"EUR"},{"$f":"IF('1. Order'!Z992=\"\",\"\",'1. Order'!Z992)","v":""},{"$f":"IF('1. Order'!AA992=\"\",\"\",'1. Order'!AA992)","v":""},{"$f":"IF('1. Order'!AB992=\"\",\"\",'1. Order'!AB992)","v":""},null,{"$f":"IF('1. Order'!AT992=\"\",\"\",'1. Order'!AT992)","v":""},{"$f":"IF('1. Order'!AU992=\"\",\"\",'1. Order'!AU992)","v":""},null,null,null,null,null,null,null,{"$f":"IF('1. Order'!AY992=\"\",\"\",'1. Order'!AY992)","v":""},{"$f":"IF('1. Order'!AZ992=\"\",\"\",'1. Order'!AZ992)","v":""},{"$f":"IF('1. Order'!BA992=\"\",\"\",'1. Order'!BA992)","v":""},{"$f":"IF('1. Order'!BB992=\"\",\"\",'1. Order'!BB992)","v":""},{"$f":"IF('1. Order'!BD992=\"\",\"\",'1. Order'!BD992)","v":""},{"$f":"IF('1. Order'!BE992=\"\",\"\",'1. Order'!BE992)","v":""},{"$f":"IF('1. Order'!BF992=\"\",\"\",'1. Order'!BF992)","v":""},{"$f":"IF('1. Order'!BG992=\"\",\"\",'1. Order'!BG992)","v":""},{"$f":"IF('1. Order'!BH992=\"\",\"\",'1. Order'!BH992)","v":"ZWO"}]
[{"$f":"IF('1. Order'!F993=\"\",\"\",'1. Order'!F993)","v":{"$error":"#N/A"}},{"$f":"IF('1. Order'!G993=\"\",\"\",'1. Order'!G993)","v":""},{"$f":"IF('1. Order'!H993=\"\",\"\",'1. Order'!H993)","v":""},{"$f":"IF('1. Order'!I993=\"\",\"\",'1. Order'!I993)","v":""},{"$f":"IF('1. Order'!J993=\"\",\"\",'1. Order'!J993)","v":""},{"$f":"IF('1. Order'!K993=\"\",\"\",'1. Order'!K993)","v":""},{"$f":"IF('1. Order'!L993=\"\",\"\",'1. Order'!L993)","v":""},{"$f":"IF('1. Order'!M993=\"\",\"\",'1. Order'!M993)","v":""},{"$f":"IF('1. Order'!N993=\"\",\"\",'1. Order'!N993)","v":""},{"$f":"IF('1. Order'!O993=\"\",\"\",'1. Order'!O993)","v":{"$error":"#N/A"}},{"$f":"IF('1. Order'!P993=\"\",\"\",'1. Order'!P993)","v":{"$error":"#N/A"}},{"$f":"IF('1. Order'!Q993=\"\",\"\",'1. Order'!Q993)","v":""},{"$f":"IF('1. Order'!S993=\"\",\"\",'1. Order'!S993)","v":""},{"$f":"IF('1. Order'!T993=\"\",\"\",'1. Order'!T993)","v":""},{"$f":"IF('1. Order'!W993=\"\",\"\",'1. Order'!W993)","v":""},{"$f":"IF('1. Order'!X993=\"\",\"\",'1. Order'!X993)","v":""},{"$f":"IF('1. Order'!Y993=\"\",\"\",'1. Order'!Y993)","v":"EUR"},{"$f":"IF('1. Order'!Z993=\"\",\"\",'1. Order'!Z993)","v":""},{"$f":"IF('1. Order'!AA993=\"\",\"\",'1. Order'!AA993)","v":""},{"$f":"IF('1. Order'!AB993=\"\",\"\",'1. Order'!AB993)","v":""},null,{"$f":"IF('1. Order'!AT993=\"\",\"\",'1. Order'!AT993)","v":""},{"$f":"IF('1. Order'!AU993=\"\",\"\",'1. Order'!AU993)","v":""},null,null,null,null,null,null,null,{"$f":"IF('1. Order'!AY993=\"\",\"\",'1. Order'!AY993)","v":""},{"$f":"IF('1. Order'!AZ993=\"\",\"\",'1. Order'!AZ993)","v":""},{"$f":"IF('1. Order'!BA993=\"\",\"\",'1. Order'!BA993)","v":""},{"$f":"IF('1. Order'!BB993=\"\",\"\",'1. Order'!BB993)","v":""},{"$f":"IF('1. Order'!BD993=\"\",\"\",'1. Order'!BD993)","v":""},{"$f":"IF('1. Order'!BE993=\"\",\"\",'1. Order'!BE993)","v":""},{"$f":"IF('1. Order'!BF993=\"\",\"\",'1. Order'!BF993)","v":""},{"$f":"IF('1. Order'!BG993=\"\",\"\",'1. Order'!BG993)","v":""},{"$f":"IF('1. Order'!BH993=\"\",\"\",'1. Order'!BH993)","v":"ZWO"}]
[{"$f":"IF('1. Order'!F994=\"\",\"\",'1. Order'!F994)","v":{"$error":"#N/A"}},{"$f":"IF('1. Order'!G994=\"\",\"\",'1. Order'!G994)","v":""},{"$f":"IF('1. Order'!H994=\"\",\"\",'1. Order'!H994)","v":""},{"$f":"IF('1. Order'!I994=\"\",\"\",'1. Order'!I994)","v":""},{"$f":"IF('1. Order'!J994=\"\",\"\",'1. Order'!J994)","v":""},{"$f":"IF('1. Order'!K994=\"\",\"\",'1. Order'!K994)","v":""},{"$f":"IF('1. Order'!L994=\"\",\"\",'1. Order'!L994)","v":""},{"$f":"IF('1. Order'!M994=\"\",\"\",'1. Order'!M994)","v":""},{"$f":"IF('1. Order'!N994=\"\",\"\",'1. Order'!N994)","v":""},{"$f":"IF('1. Order'!O994=\"\",\"\",'1. Order'!O994)","v":{"$error":"#N/A"}},{"$f":"IF('1. Order'!P994=\"\",\"\",'1. Order'!P994)","v":{"$error":"#N/A"}},{"$f":"IF('1. Order'!Q994=\"\",\"\",'1. Order'!Q994)","v":""},{"$f":"IF('1. Order'!S994=\"\",\"\",'1. Order'!S994)","v":""},{"$f":"IF('1. Order'!T994=\"\",\"\",'1. Order'!T994)","v":""},{"$f":"IF('1. Order'!W994=\"\",\"\",'1. Order'!W994)","v":""},{"$f":"IF('1. Order'!X994=\"\",\"\",'1. Order'!X994)","v":""},{"$f":"IF('1. Order'!Y994=\"\",\"\",'1. Order'!Y994)","v":"EUR"},{"$f":"IF('1. Order'!Z994=\"\",\"\",'1. Order'!Z994)","v":""},{"$f":"IF('1. Order'!AA994=\"\",\"\",'1. Order'!AA994)","v":""},{"$f":"IF('1. Order'!AB994=\"\",\"\",'1. Order'!AB994)","v":""},null,{"$f":"IF('1. Order'!AT994=\"\",\"\",'1. Order'!AT994)","v":""},{"$f":"IF('1. Order'!AU994=\"\",\"\",'1. Order'!AU994)","v":""},null,null,null,null,null,null,null,{"$f":"IF('1. Order'!AY994=\"\",\"\",'1. Order'!AY994)","v":""},{"$f":"IF('1. Order'!AZ994=\"\",\"\",'1. Order'!AZ994)","v":""},{"$f":"IF('1. Order'!BA994=\"\",\"\",'1. Order'!BA994)","v":""},{"$f":"IF('1. Order'!BB994=\"\",\"\",'1. Order'!BB994)","v":""},{"$f":"IF('1. Order'!BD994=\"\",\"\",'1. Order'!BD994)","v":""},{"$f":"IF('1. Order'!BE994=\"\",\"\",'1. Order'!BE994)","v":""},{"$f":"IF('1. Order'!BF994=\"\",\"\",'1. Order'!BF994)","v":""},{"$f":"IF('1. Order'!BG994=\"\",\"\",'1. Order'!BG994)","v":""},{"$f":"IF('1. Order'!BH994=\"\",\"\",'1. Order'!BH994)","v":"ZWO"}]
[{"$f":"IF('1. Order'!F995=\"\",\"\",'1. Order'!F995)","v":{"$error":"#N/A"}},{"$f":"IF('1. Order'!G995=\"\",\"\",'1. Order'!G995)","v":""},{"$f":"IF('1. Order'!H995=\"\",\"\",'1. Order'!H995)","v":""},{"$f":"IF('1. Order'!I995=\"\",\"\",'1. Order'!I995)","v":""},{"$f":"IF('1. Order'!J995=\"\",\"\",'1. Order'!J995)","v":""},{"$f":"IF('1. Order'!K995=\"\",\"\",'1. Order'!K995)","v":""},{"$f":"IF('1. Order'!L995=\"\",\"\",'1. Order'!L995)","v":""},{"$f":"IF('1. Order'!M995=\"\",\"\",'1. Order'!M995)","v":""},{"$f":"IF('1. Order'!N995=\"\",\"\",'1. Order'!N995)","v":""},{"$f":"IF('1. Order'!O995=\"\",\"\",'1. Order'!O995)","v":{"$error":"#N/A"}},{"$f":"IF('1. Order'!P995=\"\",\"\",'1. Order'!P995)","v":{"$error":"#N/A"}},{"$f":"IF('1. Order'!Q995=\"\",\"\",'1. Order'!Q995)","v":""},{"$f":"IF('1. Order'!S995=\"\",\"\",'1. Order'!S995)","v":""},{"$f":"IF('1. Order'!T995=\"\",\"\",'1. Order'!T995)","v":""},{"$f":"IF('1. Order'!W995=\"\",\"\",'1. Order'!W995)","v":""},{"$f":"IF('1. Order'!X995=\"\",\"\",'1. Order'!X995)","v":""},{"$f":"IF('1. Order'!Y995=\"\",\"\",'1. Order'!Y995)","v":"EUR"},{"$f":"IF('1. Order'!Z995=\"\",\"\",'1. Order'!Z995)","v":""},{"$f":"IF('1. Order'!AA995=\"\",\"\",'1. Order'!AA995)","v":""},{"$f":"IF('1. Order'!AB995=\"\",\"\",'1. Order'!AB995)","v":""},null,{"$f":"IF('1. Order'!AT995=\"\",\"\",'1. Order'!AT995)","v":""},{"$f":"IF('1. Order'!AU995=\"\",\"\",'1. Order'!AU995)","v":""},null,null,null,null,null,null,null,{"$f":"IF('1. Order'!AY995=\"\",\"\",'1. Order'!AY995)","v":""},{"$f":"IF('1. Order'!AZ995=\"\",\"\",'1. Order'!AZ995)","v":""},{"$f":"IF('1. Order'!BA995=\"\",\"\",'1. Order'!BA995)","v":""},{"$f":"IF('1. Order'!BB995=\"\",\"\",'1. Order'!BB995)","v":""},{"$f":"IF('1. Order'!BD995=\"\",\"\",'1. Order'!BD995)","v":""},{"$f":"IF('1. Order'!BE995=\"\",\"\",'1. Order'!BE995)","v":""},{"$f":"IF('1. Order'!BF995=\"\",\"\",'1. Order'!BF995)","v":""},{"$f":"IF('1. Order'!BG995=\"\",\"\",'1. Order'!BG995)","v":""},{"$f":"IF('1. Order'!BH995=\"\",\"\",'1. Order'!BH995)","v":"ZWO"}]
[{"$f":"IF('1. Order'!F996=\"\",\"\",'1. Order'!F996)","v":{"$error":"#N/A"}},{"$f":"IF('1. Order'!G996=\"\",\"\",'1. Order'!G996)","v":""},{"$f":"IF('1. Order'!H996=\"\",\"\",'1. Order'!H996)","v":""},{"$f":"IF('1. Order'!I996=\"\",\"\",'1. Order'!I996)","v":""},{"$f":"IF('1. Order'!J996=\"\",\"\",'1. Order'!J996)","v":""},{"$f":"IF('1. Order'!K996=\"\",\"\",'1. Order'!K996)","v":""},{"$f":"IF('1. Order'!L996=\"\",\"\",'1. Order'!L996)","v":""},{"$f":"IF('1. Order'!M996=\"\",\"\",'1. Order'!M996)","v":""},{"$f":"IF('1. Order'!N996=\"\",\"\",'1. Order'!N996)","v":""},{"$f":"IF('1. Order'!O996=\"\",\"\",'1. Order'!O996)","v":{"$error":"#N/A"}},{"$f":"IF('1. Order'!P996=\"\",\"\",'1. Order'!P996)","v":{"$error":"#N/A"}},{"$f":"IF('1. Order'!Q996=\"\",\"\",'1. Order'!Q996)","v":""},{"$f":"IF('1. Order'!S996=\"\",\"\",'1. Order'!S996)","v":""},{"$f":"IF('1. Order'!T996=\"\",\"\",'1. Order'!T996)","v":""},{"$f":"IF('1. Order'!W996=\"\",\"\",'1. Order'!W996)","v":""},{"$f":"IF('1. Order'!X996=\"\",\"\",'1. Order'!X996)","v":""},{"$f":"IF('1. Order'!Y996=\"\",\"\",'1. Order'!Y996)","v":"EUR"},{"$f":"IF('1. Order'!Z996=\"\",\"\",'1. Order'!Z996)","v":""},{"$f":"IF('1. Order'!AA996=\"\",\"\",'1. Order'!AA996)","v":""},{"$f":"IF('1. Order'!AB996=\"\",\"\",'1. Order'!AB996)","v":""},null,{"$f":"IF('1. Order'!AT996=\"\",\"\",'1. Order'!AT996)","v":""},{"$f":"IF('1. Order'!AU996=\"\",\"\",'1. Order'!AU996)","v":""},null,null,null,null,null,null,null,{"$f":"IF('1. Order'!AY996=\"\",\"\",'1. Order'!AY996)","v":""},{"$f":"IF('1. Order'!AZ996=\"\",\"\",'1. Order'!AZ996)","v":""},{"$f":"IF('1. Order'!BA996=\"\",\"\",'1. Order'!BA996)","v":""},{"$f":"IF('1. Order'!BB996=\"\",\"\",'1. Order'!BB996)","v":""},{"$f":"IF('1. Order'!BD996=\"\",\"\",'1. Order'!BD996)","v":""},{"$f":"IF('1. Order'!BE996=\"\",\"\",'1. Order'!BE996)","v":""},{"$f":"IF('1. Order'!BF996=\"\",\"\",'1. Order'!BF996)","v":""},{"$f":"IF('1. Order'!BG996=\"\",\"\",'1. Order'!BG996)","v":""},{"$f":"IF('1. Order'!BH996=\"\",\"\",'1. Order'!BH996)","v":"ZWO"}]
[{"$f":"IF('1. Order'!F997=\"\",\"\",'1. Order'!F997)","v":{"$error":"#N/A"}},{"$f":"IF('1. Order'!G997=\"\",\"\",'1. Order'!G997)","v":""},{"$f":"IF('1. Order'!H997=\"\",\"\",'1. Order'!H997)","v":""},{"$f":"IF('1. Order'!I997=\"\",\"\",'1. Order'!I997)","v":""},{"$f":"IF('1. Order'!J997=\"\",\"\",'1. Order'!J997)","v":""},{"$f":"IF('1. Order'!K997=\"\",\"\",'1. Order'!K997)","v":""},{"$f":"IF('1. Order'!L997=\"\",\"\",'1. Order'!L997)","v":""},{"$f":"IF('1. Order'!M997=\"\",\"\",'1. Order'!M997)","v":""},{"$f":"IF('1. Order'!N997=\"\",\"\",'1. Order'!N997)","v":""},{"$f":"IF('1. Order'!O997=\"\",\"\",'1. Order'!O997)","v":{"$error":"#N/A"}},{"$f":"IF('1. Order'!P997=\"\",\"\",'1. Order'!P997)","v":{"$error":"#N/A"}},{"$f":"IF('1. Order'!Q997=\"\",\"\",'1. Order'!Q997)","v":""},{"$f":"IF('1. Order'!S997=\"\",\"\",'1. Order'!S997)","v":""},{"$f":"IF('1. Order'!T997=\"\",\"\",'1. Order'!T997)","v":""},{"$f":"IF('1. Order'!W997=\"\",\"\",'1. Order'!W997)","v":""},{"$f":"IF('1. Order'!X997=\"\",\"\",'1. Order'!X997)","v":""},{"$f":"IF('1. Order'!Y997=\"\",\"\",'1. Order'!Y997)","v":"EUR"},{"$f":"IF('1. Order'!Z997=\"\",\"\",'1. Order'!Z997)","v":""},{"$f":"IF('1. Order'!AA997=\"\",\"\",'1. Order'!AA997)","v":""},{"$f":"IF('1. Order'!AB997=\"\",\"\",'1. Order'!AB997)","v":""},null,{"$f":"IF('1. Order'!AT997=\"\",\"\",'1. Order'!AT997)","v":""},{"$f":"IF('1. Order'!AU997=\"\",\"\",'1. Order'!AU997)","v":""},null,null,null,null,null,null,null,{"$f":"IF('1. Order'!AY997=\"\",\"\",'1. Order'!AY997)","v":""},{"$f":"IF('1. Order'!AZ997=\"\",\"\",'1. Order'!AZ997)","v":""},{"$f":"IF('1. Order'!BA997=\"\",\"\",'1. Order'!BA997)","v":""},{"$f":"IF('1. Order'!BB997=\"\",\"\",'1. Order'!BB997)","v":""},{"$f":"IF('1. Order'!BD997=\"\",\"\",'1. Order'!BD997)","v":""},{"$f":"IF('1. Order'!BE997=\"\",\"\",'1. Order'!BE997)","v":""},{"$f":"IF('1. Order'!BF997=\"\",\"\",'1. Order'!BF997)","v":""},{"$f":"IF('1. Order'!BG997=\"\",\"\",'1. Order'!BG997)","v":""},{"$f":"IF('1. Order'!BH997=\"\",\"\",'1. Order'!BH997)","v":"ZWO"}]
[{"$f":"IF('1. Order'!F998=\"\",\"\",'1. Order'!F998)","v":{"$error":"#N/A"}},{"$f":"IF('1. Order'!G998=\"\",\"\",'1. Order'!G998)","v":""},{"$f":"IF('1. Order'!H998=\"\",\"\",'1. Order'!H998)","v":""},{"$f":"IF('1. Order'!I998=\"\",\"\",'1. Order'!I998)","v":""},{"$f":"IF('1. Order'!J998=\"\",\"\",'1. Order'!J998)","v":""},{"$f":"IF('1. Order'!K998=\"\",\"\",'1. Order'!K998)","v":""},{"$f":"IF('1. Order'!L998=\"\",\"\",'1. Order'!L998)","v":""},{"$f":"IF('1. Order'!M998=\"\",\"\",'1. Order'!M998)","v":""},{"$f":"IF('1. Order'!N998=\"\",\"\",'1. Order'!N998)","v":""},{"$f":"IF('1. Order'!O998=\"\",\"\",'1. Order'!O998)","v":{"$error":"#N/A"}},{"$f":"IF('1. Order'!P998=\"\",\"\",'1. Order'!P998)","v":{"$error":"#N/A"}},{"$f":"IF('1. Order'!Q998=\"\",\"\",'1. Order'!Q998)","v":""},{"$f":"IF('1. Order'!S998=\"\",\"\",'1. Order'!S998)","v":""},{"$f":"IF('1. Order'!T998=\"\",\"\",'1. Order'!T998)","v":""},{"$f":"IF('1. Order'!W998=\"\",\"\",'1. Order'!W998)","v":""},{"$f":"IF('1. Order'!X998=\"\",\"\",'1. Order'!X998)","v":""},{"$f":"IF('1. Order'!Y998=\"\",\"\",'1. Order'!Y998)","v":"EUR"},{"$f":"IF('1. Order'!Z998=\"\",\"\",'1. Order'!Z998)","v":""},{"$f":"IF('1. Order'!AA998=\"\",\"\",'1. Order'!AA998)","v":""},{"$f":"IF('1. Order'!AB998=\"\",\"\",'1. Order'!AB998)","v":""},null,{"$f":"IF('1. Order'!AT998=\"\",\"\",'1. Order'!AT998)","v":""},{"$f":"IF('1. Order'!AU998=\"\",\"\",'1. Order'!AU998)","v":""},null,null,null,null,null,null,null,{"$f":"IF('1. Order'!AY998=\"\",\"\",'1. Order'!AY998)","v":""},{"$f":"IF('1. Order'!AZ998=\"\",\"\",'1. Order'!AZ998)","v":""},{"$f":"IF('1. Order'!BA998=\"\",\"\",'1. Order'!BA998)","v":""},{"$f":"IF('1. Order'!BB998=\"\",\"\",'1. Order'!BB998)","v":""},{"$f":"IF('1. Order'!BD998=\"\",\"\",'1. Order'!BD998)","v":""},{"$f":"IF('1. Order'!BE998=\"\",\"\",'1. Order'!BE998)","v":""},{"$f":"IF('1. Order'!BF998=\"\",\"\",'1. Order'!BF998)","v":""},{"$f":"IF('1. Order'!BG998=\"\",\"\",'1. Order'!BG998)","v":""},{"$f":"IF('1. Order'!BH998=\"\",\"\",'1. Order'!BH998)","v":"ZWO"}]
[{"$f":"IF('1. Order'!F999=\"\",\"\",'1. Order'!F999)","v":{"$error":"#N/A"}},{"$f":"IF('1. Order'!G999=\"\",\"\",'1. Order'!G999)","v":""},{"$f":"IF('1. Order'!H999=\"\",\"\",'1. Order'!H999)","v":""},{"$f":"IF('1. Order'!I999=\"\",\"\",'1. Order'!I999)","v":""},{"$f":"IF('1. Order'!J999=\"\",\"\",'1. Order'!J999)","v":""},{"$f":"IF('1. Order'!K999=\"\",\"\",'1. Order'!K999)","v":""},{"$f":"IF('1. Order'!L999=\"\",\"\",'1. Order'!L999)","v":""},{"$f":"IF('1. Order'!M999=\"\",\"\",'1. Order'!M999)","v":""},{"$f":"IF('1. Order'!N999=\"\",\"\",'1. Order'!N999)","v":""},{"$f":"IF('1. Order'!O999=\"\",\"\",'1. Order'!O999)","v":{"$error":"#N/A"}},{"$f":"IF('1. Order'!P999=\"\",\"\",'1. Order'!P999)","v":{"$error":"#N/A"}},{"$f":"IF('1. Order'!Q999=\"\",\"\",'1. Order'!Q999)","v":""},{"$f":"IF('1. Order'!S999=\"\",\"\",'1. Order'!S999)","v":""},{"$f":"IF('1. Order'!T999=\"\",\"\",'1. Order'!T999)","v":""},{"$f":"IF('1. Order'!W999=\"\",\"\",'1. Order'!W999)","v":""},{"$f":"IF('1. Order'!X999=\"\",\"\",'1. Order'!X999)","v":""},{"$f":"IF('1. Order'!Y999=\"\",\"\",'1. Order'!Y999)","v":"EUR"},{"$f":"IF('1. Order'!Z999=\"\",\"\",'1. Order'!Z999)","v":""},{"$f":"IF('1. Order'!AA999=\"\",\"\",'1. Order'!AA999)","v":""},{"$f":"IF('1. Order'!AB999=\"\",\"\",'1. Order'!AB999)","v":""},null,{"$f":"IF('1. Order'!AT999=\"\",\"\",'1. Order'!AT999)","v":""},{"$f":"IF('1. Order'!AU999=\"\",\"\",'1. Order'!AU999)","v":""},null,null,null,null,null,null,null,{"$f":"IF('1. Order'!AY999=\"\",\"\",'1. Order'!AY999)","v":""},{"$f":"IF('1. Order'!AZ999=\"\",\"\",'1. Order'!AZ999)","v":""},{"$f":"IF('1. Order'!BA999=\"\",\"\",'1. Order'!BA999)","v":""},{"$f":"IF('1. Order'!BB999=\"\",\"\",'1. Order'!BB999)","v":""},{"$f":"IF('1. Order'!BD999=\"\",\"\",'1. Order'!BD999)","v":""},{"$f":"IF('1. Order'!BE999=\"\",\"\",'1. Order'!BE999)","v":""},{"$f":"IF('1. Order'!BF999=\"\",\"\",'1. Order'!BF999)","v":""},{"$f":"IF('1. Order'!BG999=\"\",\"\",'1. Order'!BG999)","v":""},{"$f":"IF('1. Order'!BH999=\"\",\"\",'1. Order'!BH999)","v":"ZWO"}]
[{"$f":"IF('1. Order'!F1000=\"\",\"\",'1. Order'!F1000)","v":{"$error":"#N/A"}},{"$f":"IF('1. Order'!G1000=\"\",\"\",'1. Order'!G1000)","v":""},{"$f":"IF('1. Order'!H1000=\"\",\"\",'1. Order'!H1000)","v":""},{"$f":"IF('1. Order'!I1000=\"\",\"\",'1. Order'!I1000)","v":""},{"$f":"IF('1. Order'!J1000=\"\",\"\",'1. Order'!J1000)","v":""},{"$f":"IF('1. Order'!K1000=\"\",\"\",'1. Order'!K1000)","v":""},{"$f":"IF('1. Order'!L1000=\"\",\"\",'1. Order'!L1000)","v":""},{"$f":"IF('1. Order'!M1000=\"\",\"\",'1. Order'!M1000)","v":""},{"$f":"IF('1. Order'!N1000=\"\",\"\",'1. Order'!N1000)","v":""},{"$f":"IF('1. Order'!O1000=\"\",\"\",'1. Order'!O1000)","v":{"$error":"#N/A"}},{"$f":"IF('1. Order'!P1000=\"\",\"\",'1. Order'!P1000)","v":{"$error":"#N/A"}},{"$f":"IF('1. Order'!Q1000=\"\",\"\",'1. Order'!Q1000)","v":""},{"$f":"IF('1. Order'!S1000=\"\",\"\",'1. Order'!S1000)","v":""},{"$f":"IF('1. Order'!T1000=\"\",\"\",'1. Order'!T1000)","v":""},{"$f":"IF('1. Order'!W1000=\"\",\"\",'1. Order'!W1000)","v":""},{"$f":"IF('1. Order'!X1000=\"\",\"\",'1. Order'!X1000)","v":""},{"$f":"IF('1. Order'!Y1000=\"\",\"\",'1. Order'!Y1000)","v":"EUR"},{"$f":"IF('1. Order'!Z1000=\"\",\"\",'1. Order'!Z1000)","v":""},{"$f":"IF('1. Order'!AA1000=\"\",\"\",'1. Order'!AA1000)","v":""},{"$f":"IF('1. Order'!AB1000=\"\",\"\",'1. Order'!AB1000)","v":""},null,{"$f":"IF('1. Order'!AT1000=\"\",\"\",'1. Order'!AT1000)","v":""},{"$f":"IF('1. Order'!AU1000=\"\",\"\",'1. Order'!AU1000)","v":""},null,null,null,null,null,null,null,{"$f":"IF('1. Order'!AY1000=\"\",\"\",'1. Order'!AY1000)","v":""},{"$f":"IF('1. Order'!AZ1000=\"\",\"\",'1. Order'!AZ1000)","v":""},{"$f":"IF('1. Order'!BA1000=\"\",\"\",'1. Order'!BA1000)","v":""},{"$f":"IF('1. Order'!BB1000=\"\",\"\",'1. Order'!BB1000)","v":""},{"$f":"IF('1. Order'!BD1000=\"\",\"\",'1. Order'!BD1000)","v":""},{"$f":"IF('1. Order'!BE1000=\"\",\"\",'1. Order'!BE1000)","v":""},{"$f":"IF('1. Order'!BF1000=\"\",\"\",'1. Order'!BF1000)","v":""},{"$f":"IF('1. Order'!BG1000=\"\",\"\",'1. Order'!BG1000)","v":""},{"$f":"IF('1. Order'!BH1000=\"\",\"\",'1. Order'!BH1000)","v":"ZWO"}]
[{"$f":"IF('1. Order'!F1001=\"\",\"\",'1. Order'!F1001)","v":{"$error":"#N/A"}},{"$f":"IF('1. Order'!G1001=\"\",\"\",'1. Order'!G1001)","v":""},{"$f":"IF('1. Order'!H1001=\"\",\"\",'1. Order'!H1001)","v":""},{"$f":"IF('1. Order'!I1001=\"\",\"\",'1. Order'!I1001)","v":""},{"$f":"IF('1. Order'!J1001=\"\",\"\",'1. Order'!J1001)","v":""},{"$f":"IF('1. Order'!K1001=\"\",\"\",'1. Order'!K1001)","v":""},{"$f":"IF('1. Order'!L1001=\"\",\"\",'1. Order'!L1001)","v":""},{"$f":"IF('1. Order'!M1001=\"\",\"\",'1. Order'!M1001)","v":""},{"$f":"IF('1. Order'!N1001=\"\",\"\",'1. Order'!N1001)","v":""},{"$f":"IF('1. Order'!O1001=\"\",\"\",'1. Order'!O1001)","v":{"$error":"#N/A"}},{"$f":"IF('1. Order'!P1001=\"\",\"\",'1. Order'!P1001)","v":{"$error":"#N/A"}},{"$f":"IF('1. Order'!Q1001=\"\",\"\",'1. Order'!Q1001)","v":""},{"$f":"IF('1. Order'!S1001=\"\",\"\",'1. Order'!S1001)","v":""},{"$f":"IF('1. Order'!T1001=\"\",\"\",'1. Order'!T1001)","v":""},{"$f":"IF('1. Order'!W1001=\"\",\"\",'1. Order'!W1001)","v":""},{"$f":"IF('1. Order'!X1001=\"\",\"\",'1. Order'!X1001)","v":""},{"$f":"IF('1. Order'!Y1001=\"\",\"\",'1. Order'!Y1001)","v":"EUR"},{"$f":"IF('1. Order'!Z1001=\"\",\"\",'1. Order'!Z1001)","v":""},{"$f":"IF('1. Order'!AA1001=\"\",\"\",'1. Order'!AA1001)","v":""},{"$f":"IF('1. Order'!AB1001=\"\",\"\",'1. Order'!AB1001)","v":""},null,{"$f":"IF('1. Order'!AT1001=\"\",\"\",'1. Order'!AT1001)","v":""},{"$f":"IF('1. Order'!AU1001=\"\",\"\",'1. Order'!AU1001)","v":""},null,null,null,null,null,null,null,{"$f":"IF('1. Order'!AY1001=\"\",\"\",'1. Order'!AY1001)","v":""},{"$f":"IF('1. Order'!AZ1001=\"\",\"\",'1. Order'!AZ1001)","v":""},{"$f":"IF('1. Order'!BA1001=\"\",\"\",'1. Order'!BA1001)","v":""},{"$f":"IF('1. Order'!BB1001=\"\",\"\",'1. Order'!BB1001)","v":""},{"$f":"IF('1. Order'!BD1001=\"\",\"\",'1. Order'!BD1001)","v":""},{"$f":"IF('1. Order'!BE1001=\"\",\"\",'1. Order'!BE1001)","v":""},{"$f":"IF('1. Order'!BF1001=\"\",\"\",'1. Order'!BF1001)","v":""},{"$f":"IF('1. Order'!BG1001=\"\",\"\",'1. Order'!BG1001)","v":""},{"$f":"IF('1. Order'!BH1001=\"\",\"\",'1. Order'!BH1001)","v":"ZWO"}]
[{"$f":"IF('1. Order'!F1002=\"\",\"\",'1. Order'!F1002)","v":{"$error":"#N/A"}},{"$f":"IF('1. Order'!G1002=\"\",\"\",'1. Order'!G1002)","v":""},{"$f":"IF('1. Order'!H1002=\"\",\"\",'1. Order'!H1002)","v":""},{"$f":"IF('1. Order'!I1002=\"\",\"\",'1. Order'!I1002)","v":""},{"$f":"IF('1. Order'!J1002=\"\",\"\",'1. Order'!J1002)","v":""},{"$f":"IF('1. Order'!K1002=\"\",\"\",'1. Order'!K1002)","v":""},{"$f":"IF('1. Order'!L1002=\"\",\"\",'1. Order'!L1002)","v":""},{"$f":"IF('1. Order'!M1002=\"\",\"\",'1. Order'!M1002)","v":""},{"$f":"IF('1. Order'!N1002=\"\",\"\",'1. Order'!N1002)","v":""},{"$f":"IF('1. Order'!O1002=\"\",\"\",'1. Order'!O1002)","v":{"$error":"#N/A"}},{"$f":"IF('1. Order'!P1002=\"\",\"\",'1. Order'!P1002)","v":{"$error":"#N/A"}},{"$f":"IF('1. Order'!Q1002=\"\",\"\",'1. Order'!Q1002)","v":""},{"$f":"IF('1. Order'!S1002=\"\",\"\",'1. Order'!S1002)","v":""},{"$f":"IF('1. Order'!T1002=\"\",\"\",'1. Order'!T1002)","v":""},{"$f":"IF('1. Order'!W1002=\"\",\"\",'1. Order'!W1002)","v":""},{"$f":"IF('1. Order'!X1002=\"\",\"\",'1. Order'!X1002)","v":""},{"$f":"IF('1. Order'!Y1002=\"\",\"\",'1. Order'!Y1002)","v":"EUR"},{"$f":"IF('1. Order'!Z1002=\"\",\"\",'1. Order'!Z1002)","v":""},{"$f":"IF('1. Order'!AA1002=\"\",\"\",'1. Order'!AA1002)","v":""},{"$f":"IF('1. Order'!AB1002=\"\",\"\",'1. Order'!AB1002)","v":""},null,{"$f":"IF('1. Order'!AT1002=\"\",\"\",'1. Order'!AT1002)","v":""},{"$f":"IF('1. Order'!AU1002=\"\",\"\",'1. Order'!AU1002)","v":""},null,null,null,null,null,null,null,{"$f":"IF('1. Order'!AY1002=\"\",\"\",'1. Order'!AY1002)","v":""},{"$f":"IF('1. Order'!AZ1002=\"\",\"\",'1. Order'!AZ1002)","v":""},{"$f":"IF('1. Order'!BA1002=\"\",\"\",'1. Order'!BA1002)","v":""},{"$f":"IF('1. Order'!BB1002=\"\",\"\",'1. Order'!BB1002)","v":""},{"$f":"IF('1. Order'!BD1002=\"\",\"\",'1. Order'!BD1002)","v":""},{"$f":"IF('1. Order'!BE1002=\"\",\"\",'1. Order'!BE1002)","v":""},{"$f":"IF('1. Order'!BF1002=\"\",\"\",'1. Order'!BF1002)","v":""},{"$f":"IF('1. Order'!BG1002=\"\",\"\",'1. Order'!BG1002)","v":""},{"$f":"IF('1. Order'!BH1002=\"\",\"\",'1. Order'!BH1002)","v":"ZWO"}]
[{"$f":"IF('1. Order'!F1003=\"\",\"\",'1. Order'!F1003)","v":{"$error":"#N/A"}},{"$f":"IF('1. Order'!G1003=\"\",\"\",'1. Order'!G1003)","v":""},{"$f":"IF('1. Order'!H1003=\"\",\"\",'1. Order'!H1003)","v":""},{"$f":"IF('1. Order'!I1003=\"\",\"\",'1. Order'!I1003)","v":""},{"$f":"IF('1. Order'!J1003=\"\",\"\",'1. Order'!J1003)","v":""},{"$f":"IF('1. Order'!K1003=\"\",\"\",'1. Order'!K1003)","v":""},{"$f":"IF('1. Order'!L1003=\"\",\"\",'1. Order'!L1003)","v":""},{"$f":"IF('1. Order'!M1003=\"\",\"\",'1. Order'!M1003)","v":""},{"$f":"IF('1. Order'!N1003=\"\",\"\",'1. Order'!N1003)","v":""},{"$f":"IF('1. Order'!O1003=\"\",\"\",'1. Order'!O1003)","v":{"$error":"#N/A"}},{"$f":"IF('1. Order'!P1003=\"\",\"\",'1. Order'!P1003)","v":{"$error":"#N/A"}},{"$f":"IF('1. Order'!Q1003=\"\",\"\",'1. Order'!Q1003)","v":""},{"$f":"IF('1. Order'!S1003=\"\",\"\",'1. Order'!S1003)","v":""},{"$f":"IF('1. Order'!T1003=\"\",\"\",'1. Order'!T1003)","v":""},{"$f":"IF('1. Order'!W1003=\"\",\"\",'1. Order'!W1003)","v":""},{"$f":"IF('1. Order'!X1003=\"\",\"\",'1. Order'!X1003)","v":""},{"$f":"IF('1. Order'!Y1003=\"\",\"\",'1. Order'!Y1003)","v":"EUR"},{"$f":"IF('1. Order'!Z1003=\"\",\"\",'1. Order'!Z1003)","v":""},{"$f":"IF('1. Order'!AA1003=\"\",\"\",'1. Order'!AA1003)","v":""},{"$f":"IF('1. Order'!AB1003=\"\",\"\",'1. Order'!AB1003)","v":""},null,{"$f":"IF('1. Order'!AT1003=\"\",\"\",'1. Order'!AT1003)","v":""},{"$f":"IF('1. Order'!AU1003=\"\",\"\",'1. Order'!AU1003)","v":""},null,null,null,null,null,null,null,{"$f":"IF('1. Order'!AY1003=\"\",\"\",'1. Order'!AY1003)","v":""},{"$f":"IF('1. Order'!AZ1003=\"\",\"\",'1. Order'!AZ1003)","v":""},{"$f":"IF('1. Order'!BA1003=\"\",\"\",'1. Order'!BA1003)","v":""},{"$f":"IF('1. Order'!BB1003=\"\",\"\",'1. Order'!BB1003)","v":""},{"$f":"IF('1. Order'!BD1003=\"\",\"\",'1. Order'!BD1003)","v":""},{"$f":"IF('1. Order'!BE1003=\"\",\"\",'1. Order'!BE1003)","v":""},{"$f":"IF('1. Order'!BF1003=\"\",\"\",'1. Order'!BF1003)","v":""},{"$f":"IF('1. Order'!BG1003=\"\",\"\",'1. Order'!BG1003)","v":""},{"$f":"IF('1. Order'!BH1003=\"\",\"\",'1. Order'!BH1003)","v":"ZWO"}]
[{"$f":"IF('1. Order'!F1004=\"\",\"\",'1. Order'!F1004)","v":{"$error":"#N/A"}},{"$f":"IF('1. Order'!G1004=\"\",\"\",'1. Order'!G1004)","v":""},{"$f":"IF('1. Order'!H1004=\"\",\"\",'1. Order'!H1004)","v":""},{"$f":"IF('1. Order'!I1004=\"\",\"\",'1. Order'!I1004)","v":""},{"$f":"IF('1. Order'!J1004=\"\",\"\",'1. Order'!J1004)","v":""},{"$f":"IF('1. Order'!K1004=\"\",\"\",'1. Order'!K1004)","v":""},{"$f":"IF('1. Order'!L1004=\"\",\"\",'1. Order'!L1004)","v":""},{"$f":"IF('1. Order'!M1004=\"\",\"\",'1. Order'!M1004)","v":""},{"$f":"IF('1. Order'!N1004=\"\",\"\",'1. Order'!N1004)","v":""},{"$f":"IF('1. Order'!O1004=\"\",\"\",'1. Order'!O1004)","v":{"$error":"#N/A"}},{"$f":"IF('1. Order'!P1004=\"\",\"\",'1. Order'!P1004)","v":{"$error":"#N/A"}},{"$f":"IF('1. Order'!Q1004=\"\",\"\",'1. Order'!Q1004)","v":""},{"$f":"IF('1. Order'!S1004=\"\",\"\",'1. Order'!S1004)","v":""},{"$f":"IF('1. Order'!T1004=\"\",\"\",'1. Order'!T1004)","v":""},{"$f":"IF('1. Order'!W1004=\"\",\"\",'1. Order'!W1004)","v":""},{"$f":"IF('1. Order'!X1004=\"\",\"\",'1. Order'!X1004)","v":""},{"$f":"IF('1. Order'!Y1004=\"\",\"\",'1. Order'!Y1004)","v":"EUR"},{"$f":"IF('1. Order'!Z1004=\"\",\"\",'1. Order'!Z1004)","v":""},{"$f":"IF('1. Order'!AA1004=\"\",\"\",'1. Order'!AA1004)","v":""},{"$f":"IF('1. Order'!AB1004=\"\",\"\",'1. Order'!AB1004)","v":""},null,{"$f":"IF('1. Order'!AT1004=\"\",\"\",'1. Order'!AT1004)","v":""},{"$f":"IF('1. Order'!AU1004=\"\",\"\",'1. Order'!AU1004)","v":""},null,null,null,null,null,null,null,{"$f":"IF('1. Order'!AY1004=\"\",\"\",'1. Order'!AY1004)","v":""},{"$f":"IF('1. Order'!AZ1004=\"\",\"\",'1. Order'!AZ1004)","v":""},{"$f":"IF('1. Order'!BA1004=\"\",\"\",'1. Order'!BA1004)","v":""},{"$f":"IF('1. Order'!BB1004=\"\",\"\",'1. Order'!BB1004)","v":""},{"$f":"IF('1. Order'!BD1004=\"\",\"\",'1. Order'!BD1004)","v":""},{"$f":"IF('1. Order'!BE1004=\"\",\"\",'1. Order'!BE1004)","v":""},{"$f":"IF('1. Order'!BF1004=\"\",\"\",'1. Order'!BF1004)","v":""},{"$f":"IF('1. Order'!BG1004=\"\",\"\",'1. Order'!BG1004)","v":""},{"$f":"IF('1. Order'!BH1004=\"\",\"\",'1. Order'!BH1004)","v":"ZWO"}]
[{"$f":"IF('1. Order'!F1005=\"\",\"\",'1. Order'!F1005)","v":{"$error":"#N/A"}},{"$f":"IF('1. Order'!G1005=\"\",\"\",'1. Order'!G1005)","v":""},{"$f":"IF('1. Order'!H1005=\"\",\"\",'1. Order'!H1005)","v":""},{"$f":"IF('1. Order'!I1005=\"\",\"\",'1. Order'!I1005)","v":""},{"$f":"IF('1. Order'!J1005=\"\",\"\",'1. Order'!J1005)","v":""},{"$f":"IF('1. Order'!K1005=\"\",\"\",'1. Order'!K1005)","v":""},{"$f":"IF('1. Order'!L1005=\"\",\"\",'1. Order'!L1005)","v":""},{"$f":"IF('1. Order'!M1005=\"\",\"\",'1. Order'!M1005)","v":""},{"$f":"IF('1. Order'!N1005=\"\",\"\",'1. Order'!N1005)","v":""},{"$f":"IF('1. Order'!O1005=\"\",\"\",'1. Order'!O1005)","v":{"$error":"#N/A"}},{"$f":"IF('1. Order'!P1005=\"\",\"\",'1. Order'!P1005)","v":{"$error":"#N/A"}},{"$f":"IF('1. Order'!Q1005=\"\",\"\",'1. Order'!Q1005)","v":""},{"$f":"IF('1. Order'!S1005=\"\",\"\",'1. Order'!S1005)","v":""},{"$f":"IF('1. Order'!T1005=\"\",\"\",'1. Order'!T1005)","v":""},{"$f":"IF('1. Order'!W1005=\"\",\"\",'1. Order'!W1005)","v":""},{"$f":"IF('1. Order'!X1005=\"\",\"\",'1. Order'!X1005)","v":""},{"$f":"IF('1. Order'!Y1005=\"\",\"\",'1. Order'!Y1005)","v":"EUR"},{"$f":"IF('1. Order'!Z1005=\"\",\"\",'1. Order'!Z1005)","v":""},{"$f":"IF('1. Order'!AA1005=\"\",\"\",'1. Order'!AA1005)","v":""},{"$f":"IF('1. Order'!AB1005=\"\",\"\",'1. Order'!AB1005)","v":""},null,{"$f":"IF('1. Order'!AT1005=\"\",\"\",'1. Order'!AT1005)","v":""},{"$f":"IF('1. Order'!AU1005=\"\",\"\",'1. Order'!AU1005)","v":""},null,null,null,null,null,null,null,{"$f":"IF('1. Order'!AY1005=\"\",\"\",'1. Order'!AY1005)","v":""},{"$f":"IF('1. Order'!AZ1005=\"\",\"\",'1. Order'!AZ1005)","v":""},{"$f":"IF('1. Order'!BA1005=\"\",\"\",'1. Order'!BA1005)","v":""},{"$f":"IF('1. Order'!BB1005=\"\",\"\",'1. Order'!BB1005)","v":""},{"$f":"IF('1. Order'!BD1005=\"\",\"\",'1. Order'!BD1005)","v":""},{"$f":"IF('1. Order'!BE1005=\"\",\"\",'1. Order'!BE1005)","v":""},{"$f":"IF('1. Order'!BF1005=\"\",\"\",'1. Order'!BF1005)","v":""},{"$f":"IF('1. Order'!BG1005=\"\",\"\",'1. Order'!BG1005)","v":""},{"$f":"IF('1. Order'!BH1005=\"\",\"\",'1. Order'!BH1005)","v":"ZWO"}]
[{"$f":"IF('1. Order'!F1006=\"\",\"\",'1. Order'!F1006)","v":{"$error":"#N/A"}},{"$f":"IF('1. Order'!G1006=\"\",\"\",'1. Order'!G1006)","v":""},{"$f":"IF('1. Order'!H1006=\"\",\"\",'1. Order'!H1006)","v":""},{"$f":"IF('1. Order'!I1006=\"\",\"\",'1. Order'!I1006)","v":""},{"$f":"IF('1. Order'!J1006=\"\",\"\",'1. Order'!J1006)","v":""},{"$f":"IF('1. Order'!K1006=\"\",\"\",'1. Order'!K1006)","v":""},{"$f":"IF('1. Order'!L1006=\"\",\"\",'1. Order'!L1006)","v":""},{"$f":"IF('1. Order'!M1006=\"\",\"\",'1. Order'!M1006)","v":""},{"$f":"IF('1. Order'!N1006=\"\",\"\",'1. Order'!N1006)","v":""},{"$f":"IF('1. Order'!O1006=\"\",\"\",'1. Order'!O1006)","v":{"$error":"#N/A"}},{"$f":"IF('1. Order'!P1006=\"\",\"\",'1. Order'!P1006)","v":{"$error":"#N/A"}},{"$f":"IF('1. Order'!Q1006=\"\",\"\",'1. Order'!Q1006)","v":""},{"$f":"IF('1. Order'!S1006=\"\",\"\",'1. Order'!S1006)","v":""},{"$f":"IF('1. Order'!T1006=\"\",\"\",'1. Order'!T1006)","v":""},{"$f":"IF('1. Order'!W1006=\"\",\"\",'1. Order'!W1006)","v":""},{"$f":"IF('1. Order'!X1006=\"\",\"\",'1. Order'!X1006)","v":""},{"$f":"IF('1. Order'!Y1006=\"\",\"\",'1. Order'!Y1006)","v":"EUR"},{"$f":"IF('1. Order'!Z1006=\"\",\"\",'1. Order'!Z1006)","v":""},{"$f":"IF('1. Order'!AA1006=\"\",\"\",'1. Order'!AA1006)","v":""},{"$f":"IF('1. Order'!AB1006=\"\",\"\",'1. Order'!AB1006)","v":""},null,{"$f":"IF('1. Order'!AT1006=\"\",\"\",'1. Order'!AT1006)","v":""},{"$f":"IF('1. Order'!AU1006=\"\",\"\",'1. Order'!AU1006)","v":""},null,null,null,null,null,null,null,{"$f":"IF('1. Order'!AY1006=\"\",\"\",'1. Order'!AY1006)","v":""},{"$f":"IF('1. Order'!AZ1006=\"\",\"\",'1. Order'!AZ1006)","v":""},{"$f":"IF('1. Order'!BA1006=\"\",\"\",'1. Order'!BA1006)","v":""},{"$f":"IF('1. Order'!BB1006=\"\",\"\",'1. Order'!BB1006)","v":""},{"$f":"IF('1. Order'!BD1006=\"\",\"\",'1. Order'!BD1006)","v":""},{"$f":"IF('1. Order'!BE1006=\"\",\"\",'1. Order'!BE1006)","v":""},{"$f":"IF('1. Order'!BF1006=\"\",\"\",'1. Order'!BF1006)","v":""},{"$f":"IF('1. Order'!BG1006=\"\",\"\",'1. Order'!BG1006)","v":""},{"$f":"IF('1. Order'!BH1006=\"\",\"\",'1. Order'!BH1006)","v":"ZWO"}]
[{"$f":"IF('1. Order'!F1007=\"\",\"\",'1. Order'!F1007)","v":{"$error":"#N/A"}},{"$f":"IF('1. Order'!G1007=\"\",\"\",'1. Order'!G1007)","v":""},{"$f":"IF('1. Order'!H1007=\"\",\"\",'1. Order'!H1007)","v":""},{"$f":"IF('1. Order'!I1007=\"\",\"\",'1. Order'!I1007)","v":""},{"$f":"IF('1. Order'!J1007=\"\",\"\",'1. Order'!J1007)","v":""},{"$f":"IF('1. Order'!K1007=\"\",\"\",'1. Order'!K1007)","v":""},{"$f":"IF('1. Order'!L1007=\"\",\"\",'1. Order'!L1007)","v":""},{"$f":"IF('1. Order'!M1007=\"\",\"\",'1. Order'!M1007)","v":""},{"$f":"IF('1. Order'!N1007=\"\",\"\",'1. Order'!N1007)","v":""},{"$f":"IF('1. Order'!O1007=\"\",\"\",'1. Order'!O1007)","v":{"$error":"#N/A"}},{"$f":"IF('1. Order'!P1007=\"\",\"\",'1. Order'!P1007)","v":{"$error":"#N/A"}},{"$f":"IF('1. Order'!Q1007=\"\",\"\",'1. Order'!Q1007)","v":""},{"$f":"IF('1. Order'!S1007=\"\",\"\",'1. Order'!S1007)","v":""},{"$f":"IF('1. Order'!T1007=\"\",\"\",'1. Order'!T1007)","v":""},{"$f":"IF('1. Order'!W1007=\"\",\"\",'1. Order'!W1007)","v":""},{"$f":"IF('1. Order'!X1007=\"\",\"\",'1. Order'!X1007)","v":""},{"$f":"IF('1. Order'!Y1007=\"\",\"\",'1. Order'!Y1007)","v":"EUR"},{"$f":"IF('1. Order'!Z1007=\"\",\"\",'1. Order'!Z1007)","v":""},{"$f":"IF('1. Order'!AA1007=\"\",\"\",'1. Order'!AA1007)","v":""},{"$f":"IF('1. Order'!AB1007=\"\",\"\",'1. Order'!AB1007)","v":""},null,{"$f":"IF('1. Order'!AT1007=\"\",\"\",'1. Order'!AT1007)","v":""},{"$f":"IF('1. Order'!AU1007=\"\",\"\",'1. Order'!AU1007)","v":""},null,null,null,null,null,null,null,{"$f":"IF('1. Order'!AY1007=\"\",\"\",'1. Order'!AY1007)","v":""},{"$f":"IF('1. Order'!AZ1007=\"\",\"\",'1. Order'!AZ1007)","v":""},{"$f":"IF('1. Order'!BA1007=\"\",\"\",'1. Order'!BA1007)","v":""},{"$f":"IF('1. Order'!BB1007=\"\",\"\",'1. Order'!BB1007)","v":""},{"$f":"IF('1. Order'!BD1007=\"\",\"\",'1. Order'!BD1007)","v":""},{"$f":"IF('1. Order'!BE1007=\"\",\"\",'1. Order'!BE1007)","v":""},{"$f":"IF('1. Order'!BF1007=\"\",\"\",'1. Order'!BF1007)","v":""},{"$f":"IF('1. Order'!BG1007=\"\",\"\",'1. Order'!BG1007)","v":""},{"$f":"IF('1. Order'!BH1007=\"\",\"\",'1. Order'!BH1007)","v":"ZWO"}]
[{"$f":"IF('1. Order'!F1008=\"\",\"\",'1. Order'!F1008)","v":{"$error":"#N/A"}},{"$f":"IF('1. Order'!G1008=\"\",\"\",'1. Order'!G1008)","v":""},{"$f":"IF('1. Order'!H1008=\"\",\"\",'1. Order'!H1008)","v":""},{"$f":"IF('1. Order'!I1008=\"\",\"\",'1. Order'!I1008)","v":""},{"$f":"IF('1. Order'!J1008=\"\",\"\",'1. Order'!J1008)","v":""},{"$f":"IF('1. Order'!K1008=\"\",\"\",'1. Order'!K1008)","v":""},{"$f":"IF('1. Order'!L1008=\"\",\"\",'1. Order'!L1008)","v":""},{"$f":"IF('1. Order'!M1008=\"\",\"\",'1. Order'!M1008)","v":""},{"$f":"IF('1. Order'!N1008=\"\",\"\",'1. Order'!N1008)","v":""},{"$f":"IF('1. Order'!O1008=\"\",\"\",'1. Order'!O1008)","v":{"$error":"#N/A"}},{"$f":"IF('1. Order'!P1008=\"\",\"\",'1. Order'!P1008)","v":{"$error":"#N/A"}},{"$f":"IF('1. Order'!Q1008=\"\",\"\",'1. Order'!Q1008)","v":""},{"$f":"IF('1. Order'!S1008=\"\",\"\",'1. Order'!S1008)","v":""},{"$f":"IF('1. Order'!T1008=\"\",\"\",'1. Order'!T1008)","v":""},{"$f":"IF('1. Order'!W1008=\"\",\"\",'1. Order'!W1008)","v":""},{"$f":"IF('1. Order'!X1008=\"\",\"\",'1. Order'!X1008)","v":""},{"$f":"IF('1. Order'!Y1008=\"\",\"\",'1. Order'!Y1008)","v":"EUR"},{"$f":"IF('1. Order'!Z1008=\"\",\"\",'1. Order'!Z1008)","v":""},{"$f":"IF('1. Order'!AA1008=\"\",\"\",'1. Order'!AA1008)","v":""},{"$f":"IF('1. Order'!AB1008=\"\",\"\",'1. Order'!AB1008)","v":""},null,{"$f":"IF('1. Order'!AT1008=\"\",\"\",'1. Order'!AT1008)","v":""},{"$f":"IF('1. Order'!AU1008=\"\",\"\",'1. Order'!AU1008)","v":""},null,null,null,null,null,null,null,{"$f":"IF('1. Order'!AY1008=\"\",\"\",'1. Order'!AY1008)","v":""},{"$f":"IF('1. Order'!AZ1008=\"\",\"\",'1. Order'!AZ1008)","v":""},{"$f":"IF('1. Order'!BA1008=\"\",\"\",'1. Order'!BA1008)","v":""},{"$f":"IF('1. Order'!BB1008=\"\",\"\",'1. Order'!BB1008)","v":""},{"$f":"IF('1. Order'!BD1008=\"\",\"\",'1. Order'!BD1008)","v":""},{"$f":"IF('1. Order'!BE1008=\"\",\"\",'1. Order'!BE1008)","v":""},{"$f":"IF('1. Order'!BF1008=\"\",\"\",'1. Order'!BF1008)","v":""},{"$f":"IF('1. Order'!BG1008=\"\",\"\",'1. Order'!BG1008)","v":""},{"$f":"IF('1. Order'!BH1008=\"\",\"\",'1. Order'!BH1008)","v":"ZWO"}]
[{"$f":"IF('1. Order'!F1009=\"\",\"\",'1. Order'!F1009)","v":{"$error":"#N/A"}},{"$f":"IF('1. Order'!G1009=\"\",\"\",'1. Order'!G1009)","v":""},{"$f":"IF('1. Order'!H1009=\"\",\"\",'1. Order'!H1009)","v":""},{"$f":"IF('1. Order'!I1009=\"\",\"\",'1. Order'!I1009)","v":""},{"$f":"IF('1. Order'!J1009=\"\",\"\",'1. Order'!J1009)","v":""},{"$f":"IF('1. Order'!K1009=\"\",\"\",'1. Order'!K1009)","v":""},{"$f":"IF('1. Order'!L1009=\"\",\"\",'1. Order'!L1009)","v":""},{"$f":"IF('1. Order'!M1009=\"\",\"\",'1. Order'!M1009)","v":""},{"$f":"IF('1. Order'!N1009=\"\",\"\",'1. Order'!N1009)","v":""},{"$f":"IF('1. Order'!O1009=\"\",\"\",'1. Order'!O1009)","v":{"$error":"#N/A"}},{"$f":"IF('1. Order'!P1009=\"\",\"\",'1. Order'!P1009)","v":{"$error":"#N/A"}},{"$f":"IF('1. Order'!Q1009=\"\",\"\",'1. Order'!Q1009)","v":""},{"$f":"IF('1. Order'!S1009=\"\",\"\",'1. Order'!S1009)","v":""},{"$f":"IF('1. Order'!T1009=\"\",\"\",'1. Order'!T1009)","v":""},{"$f":"IF('1. Order'!W1009=\"\",\"\",'1. Order'!W1009)","v":""},{"$f":"IF('1. Order'!X1009=\"\",\"\",'1. Order'!X1009)","v":""},{"$f":"IF('1. Order'!Y1009=\"\",\"\",'1. Order'!Y1009)","v":"EUR"},{"$f":"IF('1. Order'!Z1009=\"\",\"\",'1. Order'!Z1009)","v":""},{"$f":"IF('1. Order'!AA1009=\"\",\"\",'1. Order'!AA1009)","v":""},{"$f":"IF('1. Order'!AB1009=\"\",\"\",'1. Order'!AB1009)","v":""},null,{"$f":"IF('1. Order'!AT1009=\"\",\"\",'1. Order'!AT1009)","v":""},{"$f":"IF('1. Order'!AU1009=\"\",\"\",'1. Order'!AU1009)","v":""},null,null,null,null,null,null,null,{"$f":"IF('1. Order'!AY1009=\"\",\"\",'1. Order'!AY1009)","v":""},{"$f":"IF('1. Order'!AZ1009=\"\",\"\",'1. Order'!AZ1009)","v":""},{"$f":"IF('1. Order'!BA1009=\"\",\"\",'1. Order'!BA1009)","v":""},{"$f":"IF('1. Order'!BB1009=\"\",\"\",'1. Order'!BB1009)","v":""},{"$f":"IF('1. Order'!BD1009=\"\",\"\",'1. Order'!BD1009)","v":""},{"$f":"IF('1. Order'!BE1009=\"\",\"\",'1. Order'!BE1009)","v":""},{"$f":"IF('1. Order'!BF1009=\"\",\"\",'1. Order'!BF1009)","v":""},{"$f":"IF('1. Order'!BG1009=\"\",\"\",'1. Order'!BG1009)","v":""},{"$f":"IF('1. Order'!BH1009=\"\",\"\",'1. Order'!BH1009)","v":"ZWO"}]
[{"$f":"IF('1. Order'!F1010=\"\",\"\",'1. Order'!F1010)","v":{"$error":"#N/A"}},{"$f":"IF('1. Order'!G1010=\"\",\"\",'1. Order'!G1010)","v":""},{"$f":"IF('1. Order'!H1010=\"\",\"\",'1. Order'!H1010)","v":""},{"$f":"IF('1. Order'!I1010=\"\",\"\",'1. Order'!I1010)","v":""},{"$f":"IF('1. Order'!J1010=\"\",\"\",'1. Order'!J1010)","v":""},{"$f":"IF('1. Order'!K1010=\"\",\"\",'1. Order'!K1010)","v":""},{"$f":"IF('1. Order'!L1010=\"\",\"\",'1. Order'!L1010)","v":""},{"$f":"IF('1. Order'!M1010=\"\",\"\",'1. Order'!M1010)","v":""},{"$f":"IF('1. Order'!N1010=\"\",\"\",'1. Order'!N1010)","v":""},{"$f":"IF('1. Order'!O1010=\"\",\"\",'1. Order'!O1010)","v":{"$error":"#N/A"}},{"$f":"IF('1. Order'!P1010=\"\",\"\",'1. Order'!P1010)","v":{"$error":"#N/A"}},{"$f":"IF('1. Order'!Q1010=\"\",\"\",'1. Order'!Q1010)","v":""},{"$f":"IF('1. Order'!S1010=\"\",\"\",'1. Order'!S1010)","v":""},{"$f":"IF('1. Order'!T1010=\"\",\"\",'1. Order'!T1010)","v":""},{"$f":"IF('1. Order'!W1010=\"\",\"\",'1. Order'!W1010)","v":""},{"$f":"IF('1. Order'!X1010=\"\",\"\",'1. Order'!X1010)","v":""},{"$f":"IF('1. Order'!Y1010=\"\",\"\",'1. Order'!Y1010)","v":"EUR"},{"$f":"IF('1. Order'!Z1010=\"\",\"\",'1. Order'!Z1010)","v":""},{"$f":"IF('1. Order'!AA1010=\"\",\"\",'1. Order'!AA1010)","v":""},{"$f":"IF('1. Order'!AB1010=\"\",\"\",'1. Order'!AB1010)","v":""},null,{"$f":"IF('1. Order'!AT1010=\"\",\"\",'1. Order'!AT1010)","v":""},{"$f":"IF('1. Order'!AU1010=\"\",\"\",'1. Order'!AU1010)","v":""},null,null,null,null,null,null,null,{"$f":"IF('1. Order'!AY1010=\"\",\"\",'1. Order'!AY1010)","v":""},{"$f":"IF('1. Order'!AZ1010=\"\",\"\",'1. Order'!AZ1010)","v":""},{"$f":"IF('1. Order'!BA1010=\"\",\"\",'1. Order'!BA1010)","v":""},{"$f":"IF('1. Order'!BB1010=\"\",\"\",'1. Order'!BB1010)","v":""},{"$f":"IF('1. Order'!BD1010=\"\",\"\",'1. Order'!BD1010)","v":""},{"$f":"IF('1. Order'!BE1010=\"\",\"\",'1. Order'!BE1010)","v":""},{"$f":"IF('1. Order'!BF1010=\"\",\"\",'1. Order'!BF1010)","v":""},{"$f":"IF('1. Order'!BG1010=\"\",\"\",'1. Order'!BG1010)","v":""},{"$f":"IF('1. Order'!BH1010=\"\",\"\",'1. Order'!BH1010)","v":"ZWO"}]
[{"$f":"IF('1. Order'!F1011=\"\",\"\",'1. Order'!F1011)","v":{"$error":"#N/A"}},{"$f":"IF('1. Order'!G1011=\"\",\"\",'1. Order'!G1011)","v":""},{"$f":"IF('1. Order'!H1011=\"\",\"\",'1. Order'!H1011)","v":""},{"$f":"IF('1. Order'!I1011=\"\",\"\",'1. Order'!I1011)","v":""},{"$f":"IF('1. Order'!J1011=\"\",\"\",'1. Order'!J1011)","v":""},{"$f":"IF('1. Order'!K1011=\"\",\"\",'1. Order'!K1011)","v":""},{"$f":"IF('1. Order'!L1011=\"\",\"\",'1. Order'!L1011)","v":""},{"$f":"IF('1. Order'!M1011=\"\",\"\",'1. Order'!M1011)","v":""},{"$f":"IF('1. Order'!N1011=\"\",\"\",'1. Order'!N1011)","v":""},{"$f":"IF('1. Order'!O1011=\"\",\"\",'1. Order'!O1011)","v":{"$error":"#N/A"}},{"$f":"IF('1. Order'!P1011=\"\",\"\",'1. Order'!P1011)","v":{"$error":"#N/A"}},{"$f":"IF('1. Order'!Q1011=\"\",\"\",'1. Order'!Q1011)","v":""},{"$f":"IF('1. Order'!S1011=\"\",\"\",'1. Order'!S1011)","v":""},{"$f":"IF('1. Order'!T1011=\"\",\"\",'1. Order'!T1011)","v":""},{"$f":"IF('1. Order'!W1011=\"\",\"\",'1. Order'!W1011)","v":""},{"$f":"IF('1. Order'!X1011=\"\",\"\",'1. Order'!X1011)","v":""},{"$f":"IF('1. Order'!Y1011=\"\",\"\",'1. Order'!Y1011)","v":"EUR"},{"$f":"IF('1. Order'!Z1011=\"\",\"\",'1. Order'!Z1011)","v":""},{"$f":"IF('1. Order'!AA1011=\"\",\"\",'1. Order'!AA1011)","v":""},{"$f":"IF('1. Order'!AB1011=\"\",\"\",'1. Order'!AB1011)","v":""},null,{"$f":"IF('1. Order'!AT1011=\"\",\"\",'1. Order'!AT1011)","v":""},{"$f":"IF('1. Order'!AU1011=\"\",\"\",'1. Order'!AU1011)","v":""},null,null,null,null,null,null,null,{"$f":"IF('1. Order'!AY1011=\"\",\"\",'1. Order'!AY1011)","v":""},{"$f":"IF('1. Order'!AZ1011=\"\",\"\",'1. Order'!AZ1011)","v":""},{"$f":"IF('1. Order'!BA1011=\"\",\"\",'1. Order'!BA1011)","v":""},{"$f":"IF('1. Order'!BB1011=\"\",\"\",'1. Order'!BB1011)","v":""},{"$f":"IF('1. Order'!BD1011=\"\",\"\",'1. Order'!BD1011)","v":""},{"$f":"IF('1. Order'!BE1011=\"\",\"\",'1. Order'!BE1011)","v":""},{"$f":"IF('1. Order'!BF1011=\"\",\"\",'1. Order'!BF1011)","v":""},{"$f":"IF('1. Order'!BG1011=\"\",\"\",'1. Order'!BG1011)","v":""},{"$f":"IF('1. Order'!BH1011=\"\",\"\",'1. Order'!BH1011)","v":"ZWO"}]
[{"$f":"IF('1. Order'!F1012=\"\",\"\",'1. Order'!F1012)","v":{"$error":"#N/A"}},{"$f":"IF('1. Order'!G1012=\"\",\"\",'1. Order'!G1012)","v":""},{"$f":"IF('1. Order'!H1012=\"\",\"\",'1. Order'!H1012)","v":""},{"$f":"IF('1. Order'!I1012=\"\",\"\",'1. Order'!I1012)","v":""},{"$f":"IF('1. Order'!J1012=\"\",\"\",'1. Order'!J1012)","v":""},{"$f":"IF('1. Order'!K1012=\"\",\"\",'1. Order'!K1012)","v":""},{"$f":"IF('1. Order'!L1012=\"\",\"\",'1. Order'!L1012)","v":""},{"$f":"IF('1. Order'!M1012=\"\",\"\",'1. Order'!M1012)","v":""},{"$f":"IF('1. Order'!N1012=\"\",\"\",'1. Order'!N1012)","v":""},{"$f":"IF('1. Order'!O1012=\"\",\"\",'1. Order'!O1012)","v":{"$error":"#N/A"}},{"$f":"IF('1. Order'!P1012=\"\",\"\",'1. Order'!P1012)","v":{"$error":"#N/A"}},{"$f":"IF('1. Order'!Q1012=\"\",\"\",'1. Order'!Q1012)","v":""},{"$f":"IF('1. Order'!S1012=\"\",\"\",'1. Order'!S1012)","v":""},{"$f":"IF('1. Order'!T1012=\"\",\"\",'1. Order'!T1012)","v":""},{"$f":"IF('1. Order'!W1012=\"\",\"\",'1. Order'!W1012)","v":""},{"$f":"IF('1. Order'!X1012=\"\",\"\",'1. Order'!X1012)","v":""},{"$f":"IF('1. Order'!Y1012=\"\",\"\",'1. Order'!Y1012)","v":"EUR"},{"$f":"IF('1. Order'!Z1012=\"\",\"\",'1. Order'!Z1012)","v":""},{"$f":"IF('1. Order'!AA1012=\"\",\"\",'1. Order'!AA1012)","v":""},{"$f":"IF('1. Order'!AB1012=\"\",\"\",'1. Order'!AB1012)","v":""},null,{"$f":"IF('1. Order'!AT1012=\"\",\"\",'1. Order'!AT1012)","v":""},{"$f":"IF('1. Order'!AU1012=\"\",\"\",'1. Order'!AU1012)","v":""},null,null,null,null,null,null,null,{"$f":"IF('1. Order'!AY1012=\"\",\"\",'1. Order'!AY1012)","v":""},{"$f":"IF('1. Order'!AZ1012=\"\",\"\",'1. Order'!AZ1012)","v":""},{"$f":"IF('1. Order'!BA1012=\"\",\"\",'1. Order'!BA1012)","v":""},{"$f":"IF('1. Order'!BB1012=\"\",\"\",'1. Order'!BB1012)","v":""},{"$f":"IF('1. Order'!BD1012=\"\",\"\",'1. Order'!BD1012)","v":""},{"$f":"IF('1. Order'!BE1012=\"\",\"\",'1. Order'!BE1012)","v":""},{"$f":"IF('1. Order'!BF1012=\"\",\"\",'1. Order'!BF1012)","v":""},{"$f":"IF('1. Order'!BG1012=\"\",\"\",'1. Order'!BG1012)","v":""},{"$f":"IF('1. Order'!BH1012=\"\",\"\",'1. Order'!BH1012)","v":"ZWO"}]
[{"$f":"IF('1. Order'!F1013=\"\",\"\",'1. Order'!F1013)","v":{"$error":"#N/A"}},{"$f":"IF('1. Order'!G1013=\"\",\"\",'1. Order'!G1013)","v":""},{"$f":"IF('1. Order'!H1013=\"\",\"\",'1. Order'!H1013)","v":""},{"$f":"IF('1. Order'!I1013=\"\",\"\",'1. Order'!I1013)","v":""},{"$f":"IF('1. Order'!J1013=\"\",\"\",'1. Order'!J1013)","v":""},{"$f":"IF('1. Order'!K1013=\"\",\"\",'1. Order'!K1013)","v":""},{"$f":"IF('1. Order'!L1013=\"\",\"\",'1. Order'!L1013)","v":""},{"$f":"IF('1. Order'!M1013=\"\",\"\",'1. Order'!M1013)","v":""},{"$f":"IF('1. Order'!N1013=\"\",\"\",'1. Order'!N1013)","v":""},{"$f":"IF('1. Order'!O1013=\"\",\"\",'1. Order'!O1013)","v":{"$error":"#N/A"}},{"$f":"IF('1. Order'!P1013=\"\",\"\",'1. Order'!P1013)","v":{"$error":"#N/A"}},{"$f":"IF('1. Order'!Q1013=\"\",\"\",'1. Order'!Q1013)","v":""},{"$f":"IF('1. Order'!S1013=\"\",\"\",'1. Order'!S1013)","v":""},{"$f":"IF('1. Order'!T1013=\"\",\"\",'1. Order'!T1013)","v":""},{"$f":"IF('1. Order'!W1013=\"\",\"\",'1. Order'!W1013)","v":""},{"$f":"IF('1. Order'!X1013=\"\",\"\",'1. Order'!X1013)","v":""},{"$f":"IF('1. Order'!Y1013=\"\",\"\",'1. Order'!Y1013)","v":"EUR"},{"$f":"IF('1. Order'!Z1013=\"\",\"\",'1. Order'!Z1013)","v":""},{"$f":"IF('1. Order'!AA1013=\"\",\"\",'1. Order'!AA1013)","v":""},{"$f":"IF('1. Order'!AB1013=\"\",\"\",'1. Order'!AB1013)","v":""},null,{"$f":"IF('1. Order'!AT1013=\"\",\"\",'1. Order'!AT1013)","v":""},{"$f":"IF('1. Order'!AU1013=\"\",\"\",'1. Order'!AU1013)","v":""},null,null,null,null,null,null,null,{"$f":"IF('1. Order'!AY1013=\"\",\"\",'1. Order'!AY1013)","v":""},{"$f":"IF('1. Order'!AZ1013=\"\",\"\",'1. Order'!AZ1013)","v":""},{"$f":"IF('1. Order'!BA1013=\"\",\"\",'1. Order'!BA1013)","v":""},{"$f":"IF('1. Order'!BB1013=\"\",\"\",'1. Order'!BB1013)","v":""},{"$f":"IF('1. Order'!BD1013=\"\",\"\",'1. Order'!BD1013)","v":""},{"$f":"IF('1. Order'!BE1013=\"\",\"\",'1. Order'!BE1013)","v":""},{"$f":"IF('1. Order'!BF1013=\"\",\"\",'1. Order'!BF1013)","v":""},{"$f":"IF('1. Order'!BG1013=\"\",\"\",'1. Order'!BG1013)","v":""},{"$f":"IF('1. Order'!BH1013=\"\",\"\",'1. Order'!BH1013)","v":"ZWO"}]
[{"$f":"IF('1. Order'!F1014=\"\",\"\",'1. Order'!F1014)","v":{"$error":"#N/A"}},{"$f":"IF('1. Order'!G1014=\"\",\"\",'1. Order'!G1014)","v":""},{"$f":"IF('1. Order'!H1014=\"\",\"\",'1. Order'!H1014)","v":""},{"$f":"IF('1. Order'!I1014=\"\",\"\",'1. Order'!I1014)","v":""},{"$f":"IF('1. Order'!J1014=\"\",\"\",'1. Order'!J1014)","v":""},{"$f":"IF('1. Order'!K1014=\"\",\"\",'1. Order'!K1014)","v":""},{"$f":"IF('1. Order'!L1014=\"\",\"\",'1. Order'!L1014)","v":""},{"$f":"IF('1. Order'!M1014=\"\",\"\",'1. Order'!M1014)","v":""},{"$f":"IF('1. Order'!N1014=\"\",\"\",'1. Order'!N1014)","v":""},{"$f":"IF('1. Order'!O1014=\"\",\"\",'1. Order'!O1014)","v":{"$error":"#N/A"}},{"$f":"IF('1. Order'!P1014=\"\",\"\",'1. Order'!P1014)","v":{"$error":"#N/A"}},{"$f":"IF('1. Order'!Q1014=\"\",\"\",'1. Order'!Q1014)","v":""},{"$f":"IF('1. Order'!S1014=\"\",\"\",'1. Order'!S1014)","v":""},{"$f":"IF('1. Order'!T1014=\"\",\"\",'1. Order'!T1014)","v":""},{"$f":"IF('1. Order'!W1014=\"\",\"\",'1. Order'!W1014)","v":""},{"$f":"IF('1. Order'!X1014=\"\",\"\",'1. Order'!X1014)","v":""},{"$f":"IF('1. Order'!Y1014=\"\",\"\",'1. Order'!Y1014)","v":"EUR"},{"$f":"IF('1. Order'!Z1014=\"\",\"\",'1. Order'!Z1014)","v":""},{"$f":"IF('1. Order'!AA1014=\"\",\"\",'1. Order'!AA1014)","v":""},{"$f":"IF('1. Order'!AB1014=\"\",\"\",'1. Order'!AB1014)","v":""},null,{"$f":"IF('1. Order'!AT1014=\"\",\"\",'1. Order'!AT1014)","v":""},{"$f":"IF('1. Order'!AU1014=\"\",\"\",'1. Order'!AU1014)","v":""},null,null,null,null,null,null,null,{"$f":"IF('1. Order'!AY1014=\"\",\"\",'1. Order'!AY1014)","v":""},{"$f":"IF('1. Order'!AZ1014=\"\",\"\",'1. Order'!AZ1014)","v":""},{"$f":"IF('1. Order'!BA1014=\"\",\"\",'1. Order'!BA1014)","v":""},{"$f":"IF('1. Order'!BB1014=\"\",\"\",'1. Order'!BB1014)","v":""},{"$f":"IF('1. Order'!BD1014=\"\",\"\",'1. Order'!BD1014)","v":""},{"$f":"IF('1. Order'!BE1014=\"\",\"\",'1. Order'!BE1014)","v":""},{"$f":"IF('1. Order'!BF1014=\"\",\"\",'1. Order'!BF1014)","v":""},{"$f":"IF('1. Order'!BG1014=\"\",\"\",'1. Order'!BG1014)","v":""},{"$f":"IF('1. Order'!BH1014=\"\",\"\",'1. Order'!BH1014)","v":"ZWO"}]
[{"$f":"IF('1. Order'!F1015=\"\",\"\",'1. Order'!F1015)","v":{"$error":"#N/A"}},{"$f":"IF('1. Order'!G1015=\"\",\"\",'1. Order'!G1015)","v":""},{"$f":"IF('1. Order'!H1015=\"\",\"\",'1. Order'!H1015)","v":""},{"$f":"IF('1. Order'!I1015=\"\",\"\",'1. Order'!I1015)","v":""},{"$f":"IF('1. Order'!J1015=\"\",\"\",'1. Order'!J1015)","v":""},{"$f":"IF('1. Order'!K1015=\"\",\"\",'1. Order'!K1015)","v":""},{"$f":"IF('1. Order'!L1015=\"\",\"\",'1. Order'!L1015)","v":""},{"$f":"IF('1. Order'!M1015=\"\",\"\",'1. Order'!M1015)","v":""},{"$f":"IF('1. Order'!N1015=\"\",\"\",'1. Order'!N1015)","v":""},{"$f":"IF('1. Order'!O1015=\"\",\"\",'1. Order'!O1015)","v":{"$error":"#N/A"}},{"$f":"IF('1. Order'!P1015=\"\",\"\",'1. Order'!P1015)","v":{"$error":"#N/A"}},{"$f":"IF('1. Order'!Q1015=\"\",\"\",'1. Order'!Q1015)","v":""},{"$f":"IF('1. Order'!S1015=\"\",\"\",'1. Order'!S1015)","v":""},{"$f":"IF('1. Order'!T1015=\"\",\"\",'1. Order'!T1015)","v":""},{"$f":"IF('1. Order'!W1015=\"\",\"\",'1. Order'!W1015)","v":""},{"$f":"IF('1. Order'!X1015=\"\",\"\",'1. Order'!X1015)","v":""},{"$f":"IF('1. Order'!Y1015=\"\",\"\",'1. Order'!Y1015)","v":"EUR"},{"$f":"IF('1. Order'!Z1015=\"\",\"\",'1. Order'!Z1015)","v":""},{"$f":"IF('1. Order'!AA1015=\"\",\"\",'1. Order'!AA1015)","v":""},{"$f":"IF('1. Order'!AB1015=\"\",\"\",'1. Order'!AB1015)","v":""},null,{"$f":"IF('1. Order'!AT1015=\"\",\"\",'1. Order'!AT1015)","v":""},{"$f":"IF('1. Order'!AU1015=\"\",\"\",'1. Order'!AU1015)","v":""},null,null,null,null,null,null,null,{"$f":"IF('1. Order'!AY1015=\"\",\"\",'1. Order'!AY1015)","v":""},{"$f":"IF('1. Order'!AZ1015=\"\",\"\",'1. Order'!AZ1015)","v":""},{"$f":"IF('1. Order'!BA1015=\"\",\"\",'1. Order'!BA1015)","v":""},{"$f":"IF('1. Order'!BB1015=\"\",\"\",'1. Order'!BB1015)","v":""},{"$f":"IF('1. Order'!BD1015=\"\",\"\",'1. Order'!BD1015)","v":""},{"$f":"IF('1. Order'!BE1015=\"\",\"\",'1. Order'!BE1015)","v":""},{"$f":"IF('1. Order'!BF1015=\"\",\"\",'1. Order'!BF1015)","v":""},{"$f":"IF('1. Order'!BG1015=\"\",\"\",'1. Order'!BG1015)","v":""},{"$f":"IF('1. Order'!BH1015=\"\",\"\",'1. Order'!BH1015)","v":"ZWO"}]
[{"$f":"IF('1. Order'!F1016=\"\",\"\",'1. Order'!F1016)","v":{"$error":"#N/A"}},{"$f":"IF('1. Order'!G1016=\"\",\"\",'1. Order'!G1016)","v":""},{"$f":"IF('1. Order'!H1016=\"\",\"\",'1. Order'!H1016)","v":""},{"$f":"IF('1. Order'!I1016=\"\",\"\",'1. Order'!I1016)","v":""},{"$f":"IF('1. Order'!J1016=\"\",\"\",'1. Order'!J1016)","v":""},{"$f":"IF('1. Order'!K1016=\"\",\"\",'1. Order'!K1016)","v":""},{"$f":"IF('1. Order'!L1016=\"\",\"\",'1. Order'!L1016)","v":""},{"$f":"IF('1. Order'!M1016=\"\",\"\",'1. Order'!M1016)","v":""},{"$f":"IF('1. Order'!N1016=\"\",\"\",'1. Order'!N1016)","v":""},{"$f":"IF('1. Order'!O1016=\"\",\"\",'1. Order'!O1016)","v":{"$error":"#N/A"}},{"$f":"IF('1. Order'!P1016=\"\",\"\",'1. Order'!P1016)","v":{"$error":"#N/A"}},{"$f":"IF('1. Order'!Q1016=\"\",\"\",'1. Order'!Q1016)","v":""},{"$f":"IF('1. Order'!S1016=\"\",\"\",'1. Order'!S1016)","v":""},{"$f":"IF('1. Order'!T1016=\"\",\"\",'1. Order'!T1016)","v":""},{"$f":"IF('1. Order'!W1016=\"\",\"\",'1. Order'!W1016)","v":""},{"$f":"IF('1. Order'!X1016=\"\",\"\",'1. Order'!X1016)","v":""},{"$f":"IF('1. Order'!Y1016=\"\",\"\",'1. Order'!Y1016)","v":"EUR"},{"$f":"IF('1. Order'!Z1016=\"\",\"\",'1. Order'!Z1016)","v":""},{"$f":"IF('1. Order'!AA1016=\"\",\"\",'1. Order'!AA1016)","v":""},{"$f":"IF('1. Order'!AB1016=\"\",\"\",'1. Order'!AB1016)","v":""},null,{"$f":"IF('1. Order'!AT1016=\"\",\"\",'1. Order'!AT1016)","v":""},{"$f":"IF('1. Order'!AU1016=\"\",\"\",'1. Order'!AU1016)","v":""},null,null,null,null,null,null,null,{"$f":"IF('1. Order'!AY1016=\"\",\"\",'1. Order'!AY1016)","v":""},{"$f":"IF('1. Order'!AZ1016=\"\",\"\",'1. Order'!AZ1016)","v":""},{"$f":"IF('1. Order'!BA1016=\"\",\"\",'1. Order'!BA1016)","v":""},{"$f":"IF('1. Order'!BB1016=\"\",\"\",'1. Order'!BB1016)","v":""},{"$f":"IF('1. Order'!BD1016=\"\",\"\",'1. Order'!BD1016)","v":""},{"$f":"IF('1. Order'!BE1016=\"\",\"\",'1. Order'!BE1016)","v":""},{"$f":"IF('1. Order'!BF1016=\"\",\"\",'1. Order'!BF1016)","v":""},{"$f":"IF('1. Order'!BG1016=\"\",\"\",'1. Order'!BG1016)","v":""},{"$f":"IF('1. Order'!BH1016=\"\",\"\",'1. Order'!BH1016)","v":"ZWO"}]
[{"$f":"IF('1. Order'!F1017=\"\",\"\",'1. Order'!F1017)","v":{"$error":"#N/A"}},{"$f":"IF('1. Order'!G1017=\"\",\"\",'1. Order'!G1017)","v":""},{"$f":"IF('1. Order'!H1017=\"\",\"\",'1. Order'!H1017)","v":""},{"$f":"IF('1. Order'!I1017=\"\",\"\",'1. Order'!I1017)","v":""},{"$f":"IF('1. Order'!J1017=\"\",\"\",'1. Order'!J1017)","v":""},{"$f":"IF('1. Order'!K1017=\"\",\"\",'1. Order'!K1017)","v":""},{"$f":"IF('1. Order'!L1017=\"\",\"\",'1. Order'!L1017)","v":""},{"$f":"IF('1. Order'!M1017=\"\",\"\",'1. Order'!M1017)","v":""},{"$f":"IF('1. Order'!N1017=\"\",\"\",'1. Order'!N1017)","v":""},{"$f":"IF('1. Order'!O1017=\"\",\"\",'1. Order'!O1017)","v":{"$error":"#N/A"}},{"$f":"IF('1. Order'!P1017=\"\",\"\",'1. Order'!P1017)","v":{"$error":"#N/A"}},{"$f":"IF('1. Order'!Q1017=\"\",\"\",'1. Order'!Q1017)","v":""},{"$f":"IF('1. Order'!S1017=\"\",\"\",'1. Order'!S1017)","v":""},{"$f":"IF('1. Order'!T1017=\"\",\"\",'1. Order'!T1017)","v":""},{"$f":"IF('1. Order'!W1017=\"\",\"\",'1. Order'!W1017)","v":""},{"$f":"IF('1. Order'!X1017=\"\",\"\",'1. Order'!X1017)","v":""},{"$f":"IF('1. Order'!Y1017=\"\",\"\",'1. Order'!Y1017)","v":"EUR"},{"$f":"IF('1. Order'!Z1017=\"\",\"\",'1. Order'!Z1017)","v":""},{"$f":"IF('1. Order'!AA1017=\"\",\"\",'1. Order'!AA1017)","v":""},{"$f":"IF('1. Order'!AB1017=\"\",\"\",'1. Order'!AB1017)","v":""},null,{"$f":"IF('1. Order'!AT1017=\"\",\"\",'1. Order'!AT1017)","v":""},{"$f":"IF('1. Order'!AU1017=\"\",\"\",'1. Order'!AU1017)","v":""},null,null,null,null,null,null,null,{"$f":"IF('1. Order'!AY1017=\"\",\"\",'1. Order'!AY1017)","v":""},{"$f":"IF('1. Order'!AZ1017=\"\",\"\",'1. Order'!AZ1017)","v":""},{"$f":"IF('1. Order'!BA1017=\"\",\"\",'1. Order'!BA1017)","v":""},{"$f":"IF('1. Order'!BB1017=\"\",\"\",'1. Order'!BB1017)","v":""},{"$f":"IF('1. Order'!BD1017=\"\",\"\",'1. Order'!BD1017)","v":""},{"$f":"IF('1. Order'!BE1017=\"\",\"\",'1. Order'!BE1017)","v":""},{"$f":"IF('1. Order'!BF1017=\"\",\"\",'1. Order'!BF1017)","v":""},{"$f":"IF('1. Order'!BG1017=\"\",\"\",'1. Order'!BG1017)","v":""},{"$f":"IF('1. Order'!BH1017=\"\",\"\",'1. Order'!BH1017)","v":"ZWO"}]
[{"$f":"IF('1. Order'!F1018=\"\",\"\",'1. Order'!F1018)","v":{"$error":"#N/A"}},{"$f":"IF('1. Order'!G1018=\"\",\"\",'1. Order'!G1018)","v":""},{"$f":"IF('1. Order'!H1018=\"\",\"\",'1. Order'!H1018)","v":""},{"$f":"IF('1. Order'!I1018=\"\",\"\",'1. Order'!I1018)","v":""},{"$f":"IF('1. Order'!J1018=\"\",\"\",'1. Order'!J1018)","v":""},{"$f":"IF('1. Order'!K1018=\"\",\"\",'1. Order'!K1018)","v":""},{"$f":"IF('1. Order'!L1018=\"\",\"\",'1. Order'!L1018)","v":""},{"$f":"IF('1. Order'!M1018=\"\",\"\",'1. Order'!M1018)","v":""},{"$f":"IF('1. Order'!N1018=\"\",\"\",'1. Order'!N1018)","v":""},{"$f":"IF('1. Order'!O1018=\"\",\"\",'1. Order'!O1018)","v":{"$error":"#N/A"}},{"$f":"IF('1. Order'!P1018=\"\",\"\",'1. Order'!P1018)","v":{"$error":"#N/A"}},{"$f":"IF('1. Order'!Q1018=\"\",\"\",'1. Order'!Q1018)","v":""},{"$f":"IF('1. Order'!S1018=\"\",\"\",'1. Order'!S1018)","v":""},{"$f":"IF('1. Order'!T1018=\"\",\"\",'1. Order'!T1018)","v":""},{"$f":"IF('1. Order'!W1018=\"\",\"\",'1. Order'!W1018)","v":""},{"$f":"IF('1. Order'!X1018=\"\",\"\",'1. Order'!X1018)","v":""},{"$f":"IF('1. Order'!Y1018=\"\",\"\",'1. Order'!Y1018)","v":"EUR"},{"$f":"IF('1. Order'!Z1018=\"\",\"\",'1. Order'!Z1018)","v":""},{"$f":"IF('1. Order'!AA1018=\"\",\"\",'1. Order'!AA1018)","v":""},{"$f":"IF('1. Order'!AB1018=\"\",\"\",'1. Order'!AB1018)","v":""},null,{"$f":"IF('1. Order'!AT1018=\"\",\"\",'1. Order'!AT1018)","v":""},{"$f":"IF('1. Order'!AU1018=\"\",\"\",'1. Order'!AU1018)","v":""},null,null,null,null,null,null,null,{"$f":"IF('1. Order'!AY1018=\"\",\"\",'1. Order'!AY1018)","v":""},{"$f":"IF('1. Order'!AZ1018=\"\",\"\",'1. Order'!AZ1018)","v":""},{"$f":"IF('1. Order'!BA1018=\"\",\"\",'1. Order'!BA1018)","v":""},{"$f":"IF('1. Order'!BB1018=\"\",\"\",'1. Order'!BB1018)","v":""},{"$f":"IF('1. Order'!BD1018=\"\",\"\",'1. Order'!BD1018)","v":""},{"$f":"IF('1. Order'!BE1018=\"\",\"\",'1. Order'!BE1018)","v":""},{"$f":"IF('1. Order'!BF1018=\"\",\"\",'1. Order'!BF1018)","v":""},{"$f":"IF('1. Order'!BG1018=\"\",\"\",'1. Order'!BG1018)","v":""},{"$f":"IF('1. Order'!BH1018=\"\",\"\",'1. Order'!BH1018)","v":"ZWO"}]
[{"$f":"IF('1. Order'!F1019=\"\",\"\",'1. Order'!F1019)","v":{"$error":"#N/A"}},{"$f":"IF('1. Order'!G1019=\"\",\"\",'1. Order'!G1019)","v":""},{"$f":"IF('1. Order'!H1019=\"\",\"\",'1. Order'!H1019)","v":""},{"$f":"IF('1. Order'!I1019=\"\",\"\",'1. Order'!I1019)","v":""},{"$f":"IF('1. Order'!J1019=\"\",\"\",'1. Order'!J1019)","v":""},{"$f":"IF('1. Order'!K1019=\"\",\"\",'1. Order'!K1019)","v":""},{"$f":"IF('1. Order'!L1019=\"\",\"\",'1. Order'!L1019)","v":""},{"$f":"IF('1. Order'!M1019=\"\",\"\",'1. Order'!M1019)","v":""},{"$f":"IF('1. Order'!N1019=\"\",\"\",'1. Order'!N1019)","v":""},{"$f":"IF('1. Order'!O1019=\"\",\"\",'1. Order'!O1019)","v":{"$error":"#N/A"}},{"$f":"IF('1. Order'!P1019=\"\",\"\",'1. Order'!P1019)","v":{"$error":"#N/A"}},{"$f":"IF('1. Order'!Q1019=\"\",\"\",'1. Order'!Q1019)","v":""},{"$f":"IF('1. Order'!S1019=\"\",\"\",'1. Order'!S1019)","v":""},{"$f":"IF('1. Order'!T1019=\"\",\"\",'1. Order'!T1019)","v":""},{"$f":"IF('1. Order'!W1019=\"\",\"\",'1. Order'!W1019)","v":""},{"$f":"IF('1. Order'!X1019=\"\",\"\",'1. Order'!X1019)","v":""},{"$f":"IF('1. Order'!Y1019=\"\",\"\",'1. Order'!Y1019)","v":"EUR"},{"$f":"IF('1. Order'!Z1019=\"\",\"\",'1. Order'!Z1019)","v":""},{"$f":"IF('1. Order'!AA1019=\"\",\"\",'1. Order'!AA1019)","v":""},{"$f":"IF('1. Order'!AB1019=\"\",\"\",'1. Order'!AB1019)","v":""},null,{"$f":"IF('1. Order'!AT1019=\"\",\"\",'1. Order'!AT1019)","v":""},{"$f":"IF('1. Order'!AU1019=\"\",\"\",'1. Order'!AU1019)","v":""},null,null,null,null,null,null,null,{"$f":"IF('1. Order'!AY1019=\"\",\"\",'1. Order'!AY1019)","v":""},{"$f":"IF('1. Order'!AZ1019=\"\",\"\",'1. Order'!AZ1019)","v":""},{"$f":"IF('1. Order'!BA1019=\"\",\"\",'1. Order'!BA1019)","v":""},{"$f":"IF('1. Order'!BB1019=\"\",\"\",'1. Order'!BB1019)","v":""},{"$f":"IF('1. Order'!BD1019=\"\",\"\",'1. Order'!BD1019)","v":""},{"$f":"IF('1. Order'!BE1019=\"\",\"\",'1. Order'!BE1019)","v":""},{"$f":"IF('1. Order'!BF1019=\"\",\"\",'1. Order'!BF1019)","v":""},{"$f":"IF('1. Order'!BG1019=\"\",\"\",'1. Order'!BG1019)","v":""},{"$f":"IF('1. Order'!BH1019=\"\",\"\",'1. Order'!BH1019)","v":"ZWO"}]
[{"$f":"IF('1. Order'!F1020=\"\",\"\",'1. Order'!F1020)","v":{"$error":"#N/A"}},{"$f":"IF('1. Order'!G1020=\"\",\"\",'1. Order'!G1020)","v":""},{"$f":"IF('1. Order'!H1020=\"\",\"\",'1. Order'!H1020)","v":""},{"$f":"IF('1. Order'!I1020=\"\",\"\",'1. Order'!I1020)","v":""},{"$f":"IF('1. Order'!J1020=\"\",\"\",'1. Order'!J1020)","v":""},{"$f":"IF('1. Order'!K1020=\"\",\"\",'1. Order'!K1020)","v":""},{"$f":"IF('1. Order'!L1020=\"\",\"\",'1. Order'!L1020)","v":""},{"$f":"IF('1. Order'!M1020=\"\",\"\",'1. Order'!M1020)","v":""},{"$f":"IF('1. Order'!N1020=\"\",\"\",'1. Order'!N1020)","v":""},{"$f":"IF('1. Order'!O1020=\"\",\"\",'1. Order'!O1020)","v":{"$error":"#N/A"}},{"$f":"IF('1. Order'!P1020=\"\",\"\",'1. Order'!P1020)","v":{"$error":"#N/A"}},{"$f":"IF('1. Order'!Q1020=\"\",\"\",'1. Order'!Q1020)","v":""},{"$f":"IF('1. Order'!S1020=\"\",\"\",'1. Order'!S1020)","v":""},{"$f":"IF('1. Order'!T1020=\"\",\"\",'1. Order'!T1020)","v":""},{"$f":"IF('1. Order'!W1020=\"\",\"\",'1. Order'!W1020)","v":""},{"$f":"IF('1. Order'!X1020=\"\",\"\",'1. Order'!X1020)","v":""},{"$f":"IF('1. Order'!Y1020=\"\",\"\",'1. Order'!Y1020)","v":"EUR"},{"$f":"IF('1. Order'!Z1020=\"\",\"\",'1. Order'!Z1020)","v":""},{"$f":"IF('1. Order'!AA1020=\"\",\"\",'1. Order'!AA1020)","v":""},{"$f":"IF('1. Order'!AB1020=\"\",\"\",'1. Order'!AB1020)","v":""},null,{"$f":"IF('1. Order'!AT1020=\"\",\"\",'1. Order'!AT1020)","v":""},{"$f":"IF('1. Order'!AU1020=\"\",\"\",'1. Order'!AU1020)","v":""},null,null,null,null,null,null,null,{"$f":"IF('1. Order'!AY1020=\"\",\"\",'1. Order'!AY1020)","v":""},{"$f":"IF('1. Order'!AZ1020=\"\",\"\",'1. Order'!AZ1020)","v":""},{"$f":"IF('1. Order'!BA1020=\"\",\"\",'1. Order'!BA1020)","v":""},{"$f":"IF('1. Order'!BB1020=\"\",\"\",'1. Order'!BB1020)","v":""},{"$f":"IF('1. Order'!BD1020=\"\",\"\",'1. Order'!BD1020)","v":""},{"$f":"IF('1. Order'!BE1020=\"\",\"\",'1. Order'!BE1020)","v":""},{"$f":"IF('1. Order'!BF1020=\"\",\"\",'1. Order'!BF1020)","v":""},{"$f":"IF('1. Order'!BG1020=\"\",\"\",'1. Order'!BG1020)","v":""},{"$f":"IF('1. Order'!BH1020=\"\",\"\",'1. Order'!BH1020)","v":"ZWO"}]
[{"$f":"IF('1. Order'!F1021=\"\",\"\",'1. Order'!F1021)","v":{"$error":"#N/A"}},{"$f":"IF('1. Order'!G1021=\"\",\"\",'1. Order'!G1021)","v":""},{"$f":"IF('1. Order'!H1021=\"\",\"\",'1. Order'!H1021)","v":""},{"$f":"IF('1. Order'!I1021=\"\",\"\",'1. Order'!I1021)","v":""},{"$f":"IF('1. Order'!J1021=\"\",\"\",'1. Order'!J1021)","v":""},{"$f":"IF('1. Order'!K1021=\"\",\"\",'1. Order'!K1021)","v":""},{"$f":"IF('1. Order'!L1021=\"\",\"\",'1. Order'!L1021)","v":""},{"$f":"IF('1. Order'!M1021=\"\",\"\",'1. Order'!M1021)","v":""},{"$f":"IF('1. Order'!N1021=\"\",\"\",'1. Order'!N1021)","v":""},{"$f":"IF('1. Order'!O1021=\"\",\"\",'1. Order'!O1021)","v":{"$error":"#N/A"}},{"$f":"IF('1. Order'!P1021=\"\",\"\",'1. Order'!P1021)","v":{"$error":"#N/A"}},{"$f":"IF('1. Order'!Q1021=\"\",\"\",'1. Order'!Q1021)","v":""},{"$f":"IF('1. Order'!S1021=\"\",\"\",'1. Order'!S1021)","v":""},{"$f":"IF('1. Order'!T1021=\"\",\"\",'1. Order'!T1021)","v":""},{"$f":"IF('1. Order'!W1021=\"\",\"\",'1. Order'!W1021)","v":""},{"$f":"IF('1. Order'!X1021=\"\",\"\",'1. Order'!X1021)","v":""},{"$f":"IF('1. Order'!Y1021=\"\",\"\",'1. Order'!Y1021)","v":"EUR"},{"$f":"IF('1. Order'!Z1021=\"\",\"\",'1. Order'!Z1021)","v":""},{"$f":"IF('1. Order'!AA1021=\"\",\"\",'1. Order'!AA1021)","v":""},{"$f":"IF('1. Order'!AB1021=\"\",\"\",'1. Order'!AB1021)","v":""},null,{"$f":"IF('1. Order'!AT1021=\"\",\"\",'1. Order'!AT1021)","v":""},{"$f":"IF('1. Order'!AU1021=\"\",\"\",'1. Order'!AU1021)","v":""},null,null,null,null,null,null,null,{"$f":"IF('1. Order'!AY1021=\"\",\"\",'1. Order'!AY1021)","v":""},{"$f":"IF('1. Order'!AZ1021=\"\",\"\",'1. Order'!AZ1021)","v":""},{"$f":"IF('1. Order'!BA1021=\"\",\"\",'1. Order'!BA1021)","v":""},{"$f":"IF('1. Order'!BB1021=\"\",\"\",'1. Order'!BB1021)","v":""},{"$f":"IF('1. Order'!BD1021=\"\",\"\",'1. Order'!BD1021)","v":""},{"$f":"IF('1. Order'!BE1021=\"\",\"\",'1. Order'!BE1021)","v":""},{"$f":"IF('1. Order'!BF1021=\"\",\"\",'1. Order'!BF1021)","v":""},{"$f":"IF('1. Order'!BG1021=\"\",\"\",'1. Order'!BG1021)","v":""},{"$f":"IF('1. Order'!BH1021=\"\",\"\",'1. Order'!BH1021)","v":"ZWO"}]
[{"$f":"IF('1. Order'!F1022=\"\",\"\",'1. Order'!F1022)","v":{"$error":"#N/A"}},{"$f":"IF('1. Order'!G1022=\"\",\"\",'1. Order'!G1022)","v":""},{"$f":"IF('1. Order'!H1022=\"\",\"\",'1. Order'!H1022)","v":""},{"$f":"IF('1. Order'!I1022=\"\",\"\",'1. Order'!I1022)","v":""},{"$f":"IF('1. Order'!J1022=\"\",\"\",'1. Order'!J1022)","v":""},{"$f":"IF('1. Order'!K1022=\"\",\"\",'1. Order'!K1022)","v":""},{"$f":"IF('1. Order'!L1022=\"\",\"\",'1. Order'!L1022)","v":""},{"$f":"IF('1. Order'!M1022=\"\",\"\",'1. Order'!M1022)","v":""},{"$f":"IF('1. Order'!N1022=\"\",\"\",'1. Order'!N1022)","v":""},{"$f":"IF('1. Order'!O1022=\"\",\"\",'1. Order'!O1022)","v":{"$error":"#N/A"}},{"$f":"IF('1. Order'!P1022=\"\",\"\",'1. Order'!P1022)","v":{"$error":"#N/A"}},{"$f":"IF('1. Order'!Q1022=\"\",\"\",'1. Order'!Q1022)","v":""},{"$f":"IF('1. Order'!S1022=\"\",\"\",'1. Order'!S1022)","v":""},{"$f":"IF('1. Order'!T1022=\"\",\"\",'1. Order'!T1022)","v":""},{"$f":"IF('1. Order'!W1022=\"\",\"\",'1. Order'!W1022)","v":""},{"$f":"IF('1. Order'!X1022=\"\",\"\",'1. Order'!X1022)","v":""},{"$f":"IF('1. Order'!Y1022=\"\",\"\",'1. Order'!Y1022)","v":"EUR"},{"$f":"IF('1. Order'!Z1022=\"\",\"\",'1. Order'!Z1022)","v":""},{"$f":"IF('1. Order'!AA1022=\"\",\"\",'1. Order'!AA1022)","v":""},{"$f":"IF('1. Order'!AB1022=\"\",\"\",'1. Order'!AB1022)","v":""},null,{"$f":"IF('1. Order'!AT1022=\"\",\"\",'1. Order'!AT1022)","v":""},{"$f":"IF('1. Order'!AU1022=\"\",\"\",'1. Order'!AU1022)","v":""},null,null,null,null,null,null,null,{"$f":"IF('1. Order'!AY1022=\"\",\"\",'1. Order'!AY1022)","v":""},{"$f":"IF('1. Order'!AZ1022=\"\",\"\",'1. Order'!AZ1022)","v":""},{"$f":"IF('1. Order'!BA1022=\"\",\"\",'1. Order'!BA1022)","v":""},{"$f":"IF('1. Order'!BB1022=\"\",\"\",'1. Order'!BB1022)","v":""},{"$f":"IF('1. Order'!BD1022=\"\",\"\",'1. Order'!BD1022)","v":""},{"$f":"IF('1. Order'!BE1022=\"\",\"\",'1. Order'!BE1022)","v":""},{"$f":"IF('1. Order'!BF1022=\"\",\"\",'1. Order'!BF1022)","v":""},{"$f":"IF('1. Order'!BG1022=\"\",\"\",'1. Order'!BG1022)","v":""},{"$f":"IF('1. Order'!BH1022=\"\",\"\",'1. Order'!BH1022)","v":"ZWO"}]
[{"$f":"IF('1. Order'!F1023=\"\",\"\",'1. Order'!F1023)","v":{"$error":"#N/A"}},{"$f":"IF('1. Order'!G1023=\"\",\"\",'1. Order'!G1023)","v":""},{"$f":"IF('1. Order'!H1023=\"\",\"\",'1. Order'!H1023)","v":""},{"$f":"IF('1. Order'!I1023=\"\",\"\",'1. Order'!I1023)","v":""},{"$f":"IF('1. Order'!J1023=\"\",\"\",'1. Order'!J1023)","v":""},{"$f":"IF('1. Order'!K1023=\"\",\"\",'1. Order'!K1023)","v":""},{"$f":"IF('1. Order'!L1023=\"\",\"\",'1. Order'!L1023)","v":""},{"$f":"IF('1. Order'!M1023=\"\",\"\",'1. Order'!M1023)","v":""},{"$f":"IF('1. Order'!N1023=\"\",\"\",'1. Order'!N1023)","v":""},{"$f":"IF('1. Order'!O1023=\"\",\"\",'1. Order'!O1023)","v":{"$error":"#N/A"}},{"$f":"IF('1. Order'!P1023=\"\",\"\",'1. Order'!P1023)","v":{"$error":"#N/A"}},{"$f":"IF('1. Order'!Q1023=\"\",\"\",'1. Order'!Q1023)","v":""},{"$f":"IF('1. Order'!S1023=\"\",\"\",'1. Order'!S1023)","v":""},{"$f":"IF('1. Order'!T1023=\"\",\"\",'1. Order'!T1023)","v":""},{"$f":"IF('1. Order'!W1023=\"\",\"\",'1. Order'!W1023)","v":""},{"$f":"IF('1. Order'!X1023=\"\",\"\",'1. Order'!X1023)","v":""},{"$f":"IF('1. Order'!Y1023=\"\",\"\",'1. Order'!Y1023)","v":"EUR"},{"$f":"IF('1. Order'!Z1023=\"\",\"\",'1. Order'!Z1023)","v":""},{"$f":"IF('1. Order'!AA1023=\"\",\"\",'1. Order'!AA1023)","v":""},{"$f":"IF('1. Order'!AB1023=\"\",\"\",'1. Order'!AB1023)","v":""},null,{"$f":"IF('1. Order'!AT1023=\"\",\"\",'1. Order'!AT1023)","v":""},{"$f":"IF('1. Order'!AU1023=\"\",\"\",'1. Order'!AU1023)","v":""},null,null,null,null,null,null,null,{"$f":"IF('1. Order'!AY1023=\"\",\"\",'1. Order'!AY1023)","v":""},{"$f":"IF('1. Order'!AZ1023=\"\",\"\",'1. Order'!AZ1023)","v":""},{"$f":"IF('1. Order'!BA1023=\"\",\"\",'1. Order'!BA1023)","v":""},{"$f":"IF('1. Order'!BB1023=\"\",\"\",'1. Order'!BB1023)","v":""},{"$f":"IF('1. Order'!BD1023=\"\",\"\",'1. Order'!BD1023)","v":""},{"$f":"IF('1. Order'!BE1023=\"\",\"\",'1. Order'!BE1023)","v":""},{"$f":"IF('1. Order'!BF1023=\"\",\"\",'1. Order'!BF1023)","v":""},{"$f":"IF('1. Order'!BG1023=\"\",\"\",'1. Order'!BG1023)","v":""},{"$f":"IF('1. Order'!BH1023=\"\",\"\",'1. Order'!BH1023)","v":"ZWO"}]
[{"$f":"IF('1. Order'!F1024=\"\",\"\",'1. Order'!F1024)","v":{"$error":"#N/A"}},{"$f":"IF('1. Order'!G1024=\"\",\"\",'1. Order'!G1024)","v":""},{"$f":"IF('1. Order'!H1024=\"\",\"\",'1. Order'!H1024)","v":""},{"$f":"IF('1. Order'!I1024=\"\",\"\",'1. Order'!I1024)","v":""},{"$f":"IF('1. Order'!J1024=\"\",\"\",'1. Order'!J1024)","v":""},{"$f":"IF('1. Order'!K1024=\"\",\"\",'1. Order'!K1024)","v":""},{"$f":"IF('1. Order'!L1024=\"\",\"\",'1. Order'!L1024)","v":""},{"$f":"IF('1. Order'!M1024=\"\",\"\",'1. Order'!M1024)","v":""},{"$f":"IF('1. Order'!N1024=\"\",\"\",'1. Order'!N1024)","v":""},{"$f":"IF('1. Order'!O1024=\"\",\"\",'1. Order'!O1024)","v":{"$error":"#N/A"}},{"$f":"IF('1. Order'!P1024=\"\",\"\",'1. Order'!P1024)","v":{"$error":"#N/A"}},{"$f":"IF('1. Order'!Q1024=\"\",\"\",'1. Order'!Q1024)","v":""},{"$f":"IF('1. Order'!S1024=\"\",\"\",'1. Order'!S1024)","v":""},{"$f":"IF('1. Order'!T1024=\"\",\"\",'1. Order'!T1024)","v":""},{"$f":"IF('1. Order'!W1024=\"\",\"\",'1. Order'!W1024)","v":""},{"$f":"IF('1. Order'!X1024=\"\",\"\",'1. Order'!X1024)","v":""},{"$f":"IF('1. Order'!Y1024=\"\",\"\",'1. Order'!Y1024)","v":"EUR"},{"$f":"IF('1. Order'!Z1024=\"\",\"\",'1. Order'!Z1024)","v":""},{"$f":"IF('1. Order'!AA1024=\"\",\"\",'1. Order'!AA1024)","v":""},{"$f":"IF('1. Order'!AB1024=\"\",\"\",'1. Order'!AB1024)","v":""},null,{"$f":"IF('1. Order'!AT1024=\"\",\"\",'1. Order'!AT1024)","v":""},{"$f":"IF('1. Order'!AU1024=\"\",\"\",'1. Order'!AU1024)","v":""},null,null,null,null,null,null,null,{"$f":"IF('1. Order'!AY1024=\"\",\"\",'1. Order'!AY1024)","v":""},{"$f":"IF('1. Order'!AZ1024=\"\",\"\",'1. Order'!AZ1024)","v":""},{"$f":"IF('1. Order'!BA1024=\"\",\"\",'1. Order'!BA1024)","v":""},{"$f":"IF('1. Order'!BB1024=\"\",\"\",'1. Order'!BB1024)","v":""},{"$f":"IF('1. Order'!BD1024=\"\",\"\",'1. Order'!BD1024)","v":""},{"$f":"IF('1. Order'!BE1024=\"\",\"\",'1. Order'!BE1024)","v":""},{"$f":"IF('1. Order'!BF1024=\"\",\"\",'1. Order'!BF1024)","v":""},{"$f":"IF('1. Order'!BG1024=\"\",\"\",'1. Order'!BG1024)","v":""},{"$f":"IF('1. Order'!BH1024=\"\",\"\",'1. Order'!BH1024)","v":"ZWO"}]
[{"$f":"IF('1. Order'!F1025=\"\",\"\",'1. Order'!F1025)","v":{"$error":"#N/A"}},{"$f":"IF('1. Order'!G1025=\"\",\"\",'1. Order'!G1025)","v":""},{"$f":"IF('1. Order'!H1025=\"\",\"\",'1. Order'!H1025)","v":""},{"$f":"IF('1. Order'!I1025=\"\",\"\",'1. Order'!I1025)","v":""},{"$f":"IF('1. Order'!J1025=\"\",\"\",'1. Order'!J1025)","v":""},{"$f":"IF('1. Order'!K1025=\"\",\"\",'1. Order'!K1025)","v":""},{"$f":"IF('1. Order'!L1025=\"\",\"\",'1. Order'!L1025)","v":""},{"$f":"IF('1. Order'!M1025=\"\",\"\",'1. Order'!M1025)","v":""},{"$f":"IF('1. Order'!N1025=\"\",\"\",'1. Order'!N1025)","v":""},{"$f":"IF('1. Order'!O1025=\"\",\"\",'1. Order'!O1025)","v":{"$error":"#N/A"}},{"$f":"IF('1. Order'!P1025=\"\",\"\",'1. Order'!P1025)","v":{"$error":"#N/A"}},{"$f":"IF('1. Order'!Q1025=\"\",\"\",'1. Order'!Q1025)","v":""},{"$f":"IF('1. Order'!S1025=\"\",\"\",'1. Order'!S1025)","v":""},{"$f":"IF('1. Order'!T1025=\"\",\"\",'1. Order'!T1025)","v":""},{"$f":"IF('1. Order'!W1025=\"\",\"\",'1. Order'!W1025)","v":""},{"$f":"IF('1. Order'!X1025=\"\",\"\",'1. Order'!X1025)","v":""},{"$f":"IF('1. Order'!Y1025=\"\",\"\",'1. Order'!Y1025)","v":"EUR"},{"$f":"IF('1. Order'!Z1025=\"\",\"\",'1. Order'!Z1025)","v":""},{"$f":"IF('1. Order'!AA1025=\"\",\"\",'1. Order'!AA1025)","v":""},{"$f":"IF('1. Order'!AB1025=\"\",\"\",'1. Order'!AB1025)","v":""},null,{"$f":"IF('1. Order'!AT1025=\"\",\"\",'1. Order'!AT1025)","v":""},{"$f":"IF('1. Order'!AU1025=\"\",\"\",'1. Order'!AU1025)","v":""},null,null,null,null,null,null,null,{"$f":"IF('1. Order'!AY1025=\"\",\"\",'1. Order'!AY1025)","v":""},{"$f":"IF('1. Order'!AZ1025=\"\",\"\",'1. Order'!AZ1025)","v":""},{"$f":"IF('1. Order'!BA1025=\"\",\"\",'1. Order'!BA1025)","v":""},{"$f":"IF('1. Order'!BB1025=\"\",\"\",'1. Order'!BB1025)","v":""},{"$f":"IF('1. Order'!BD1025=\"\",\"\",'1. Order'!BD1025)","v":""},{"$f":"IF('1. Order'!BE1025=\"\",\"\",'1. Order'!BE1025)","v":""},{"$f":"IF('1. Order'!BF1025=\"\",\"\",'1. Order'!BF1025)","v":""},{"$f":"IF('1. Order'!BG1025=\"\",\"\",'1. Order'!BG1025)","v":""},{"$f":"IF('1. Order'!BH1025=\"\",\"\",'1. Order'!BH1025)","v":"ZWO"}]
[{"$f":"IF('1. Order'!F1026=\"\",\"\",'1. Order'!F1026)","v":{"$error":"#N/A"}},{"$f":"IF('1. Order'!G1026=\"\",\"\",'1. Order'!G1026)","v":""},{"$f":"IF('1. Order'!H1026=\"\",\"\",'1. Order'!H1026)","v":""},{"$f":"IF('1. Order'!I1026=\"\",\"\",'1. Order'!I1026)","v":""},{"$f":"IF('1. Order'!J1026=\"\",\"\",'1. Order'!J1026)","v":""},{"$f":"IF('1. Order'!K1026=\"\",\"\",'1. Order'!K1026)","v":""},{"$f":"IF('1. Order'!L1026=\"\",\"\",'1. Order'!L1026)","v":""},{"$f":"IF('1. Order'!M1026=\"\",\"\",'1. Order'!M1026)","v":""},{"$f":"IF('1. Order'!N1026=\"\",\"\",'1. Order'!N1026)","v":""},{"$f":"IF('1. Order'!O1026=\"\",\"\",'1. Order'!O1026)","v":{"$error":"#N/A"}},{"$f":"IF('1. Order'!P1026=\"\",\"\",'1. Order'!P1026)","v":{"$error":"#N/A"}},{"$f":"IF('1. Order'!Q1026=\"\",\"\",'1. Order'!Q1026)","v":""},{"$f":"IF('1. Order'!S1026=\"\",\"\",'1. Order'!S1026)","v":""},{"$f":"IF('1. Order'!T1026=\"\",\"\",'1. Order'!T1026)","v":""},{"$f":"IF('1. Order'!W1026=\"\",\"\",'1. Order'!W1026)","v":""},{"$f":"IF('1. Order'!X1026=\"\",\"\",'1. Order'!X1026)","v":""},{"$f":"IF('1. Order'!Y1026=\"\",\"\",'1. Order'!Y1026)","v":"EUR"},{"$f":"IF('1. Order'!Z1026=\"\",\"\",'1. Order'!Z1026)","v":""},{"$f":"IF('1. Order'!AA1026=\"\",\"\",'1. Order'!AA1026)","v":""},{"$f":"IF('1. Order'!AB1026=\"\",\"\",'1. Order'!AB1026)","v":""},null,{"$f":"IF('1. Order'!AT1026=\"\",\"\",'1. Order'!AT1026)","v":""},{"$f":"IF('1. Order'!AU1026=\"\",\"\",'1. Order'!AU1026)","v":""},null,null,null,null,null,null,null,{"$f":"IF('1. Order'!AY1026=\"\",\"\",'1. Order'!AY1026)","v":""},{"$f":"IF('1. Order'!AZ1026=\"\",\"\",'1. Order'!AZ1026)","v":""},{"$f":"IF('1. Order'!BA1026=\"\",\"\",'1. Order'!BA1026)","v":""},{"$f":"IF('1. Order'!BB1026=\"\",\"\",'1. Order'!BB1026)","v":""},{"$f":"IF('1. Order'!BD1026=\"\",\"\",'1. Order'!BD1026)","v":""},{"$f":"IF('1. Order'!BE1026=\"\",\"\",'1. Order'!BE1026)","v":""},{"$f":"IF('1. Order'!BF1026=\"\",\"\",'1. Order'!BF1026)","v":""},{"$f":"IF('1. Order'!BG1026=\"\",\"\",'1. Order'!BG1026)","v":""},{"$f":"IF('1. Order'!BH1026=\"\",\"\",'1. Order'!BH1026)","v":"ZWO"}]
[{"$f":"IF('1. Order'!F1027=\"\",\"\",'1. Order'!F1027)","v":{"$error":"#N/A"}},{"$f":"IF('1. Order'!G1027=\"\",\"\",'1. Order'!G1027)","v":""},{"$f":"IF('1. Order'!H1027=\"\",\"\",'1. Order'!H1027)","v":""},{"$f":"IF('1. Order'!I1027=\"\",\"\",'1. Order'!I1027)","v":""},{"$f":"IF('1. Order'!J1027=\"\",\"\",'1. Order'!J1027)","v":""},{"$f":"IF('1. Order'!K1027=\"\",\"\",'1. Order'!K1027)","v":""},{"$f":"IF('1. Order'!L1027=\"\",\"\",'1. Order'!L1027)","v":""},{"$f":"IF('1. Order'!M1027=\"\",\"\",'1. Order'!M1027)","v":""},{"$f":"IF('1. Order'!N1027=\"\",\"\",'1. Order'!N1027)","v":""},{"$f":"IF('1. Order'!O1027=\"\",\"\",'1. Order'!O1027)","v":{"$error":"#N/A"}},{"$f":"IF('1. Order'!P1027=\"\",\"\",'1. Order'!P1027)","v":{"$error":"#N/A"}},{"$f":"IF('1. Order'!Q1027=\"\",\"\",'1. Order'!Q1027)","v":""},{"$f":"IF('1. Order'!S1027=\"\",\"\",'1. Order'!S1027)","v":""},{"$f":"IF('1. Order'!T1027=\"\",\"\",'1. Order'!T1027)","v":""},{"$f":"IF('1. Order'!W1027=\"\",\"\",'1. Order'!W1027)","v":""},{"$f":"IF('1. Order'!X1027=\"\",\"\",'1. Order'!X1027)","v":""},{"$f":"IF('1. Order'!Y1027=\"\",\"\",'1. Order'!Y1027)","v":"EUR"},{"$f":"IF('1. Order'!Z1027=\"\",\"\",'1. Order'!Z1027)","v":""},{"$f":"IF('1. Order'!AA1027=\"\",\"\",'1. Order'!AA1027)","v":""},{"$f":"IF('1. Order'!AB1027=\"\",\"\",'1. Order'!AB1027)","v":""},null,{"$f":"IF('1. Order'!AT1027=\"\",\"\",'1. Order'!AT1027)","v":""},{"$f":"IF('1. Order'!AU1027=\"\",\"\",'1. Order'!AU1027)","v":""},null,null,null,null,null,null,null,{"$f":"IF('1. Order'!AY1027=\"\",\"\",'1. Order'!AY1027)","v":""},{"$f":"IF('1. Order'!AZ1027=\"\",\"\",'1. Order'!AZ1027)","v":""},{"$f":"IF('1. Order'!BA1027=\"\",\"\",'1. Order'!BA1027)","v":""},{"$f":"IF('1. Order'!BB1027=\"\",\"\",'1. Order'!BB1027)","v":""},{"$f":"IF('1. Order'!BD1027=\"\",\"\",'1. Order'!BD1027)","v":""},{"$f":"IF('1. Order'!BE1027=\"\",\"\",'1. Order'!BE1027)","v":""},{"$f":"IF('1. Order'!BF1027=\"\",\"\",'1. Order'!BF1027)","v":""},{"$f":"IF('1. Order'!BG1027=\"\",\"\",'1. Order'!BG1027)","v":""},{"$f":"IF('1. Order'!BH1027=\"\",\"\",'1. Order'!BH1027)","v":"ZWO"}]
[{"$f":"IF('1. Order'!F1028=\"\",\"\",'1. Order'!F1028)","v":{"$error":"#N/A"}},{"$f":"IF('1. Order'!G1028=\"\",\"\",'1. Order'!G1028)","v":""},{"$f":"IF('1. Order'!H1028=\"\",\"\",'1. Order'!H1028)","v":""},{"$f":"IF('1. Order'!I1028=\"\",\"\",'1. Order'!I1028)","v":""},{"$f":"IF('1. Order'!J1028=\"\",\"\",'1. Order'!J1028)","v":""},{"$f":"IF('1. Order'!K1028=\"\",\"\",'1. Order'!K1028)","v":""},{"$f":"IF('1. Order'!L1028=\"\",\"\",'1. Order'!L1028)","v":""},{"$f":"IF('1. Order'!M1028=\"\",\"\",'1. Order'!M1028)","v":""},{"$f":"IF('1. Order'!N1028=\"\",\"\",'1. Order'!N1028)","v":""},{"$f":"IF('1. Order'!O1028=\"\",\"\",'1. Order'!O1028)","v":{"$error":"#N/A"}},{"$f":"IF('1. Order'!P1028=\"\",\"\",'1. Order'!P1028)","v":{"$error":"#N/A"}},{"$f":"IF('1. Order'!Q1028=\"\",\"\",'1. Order'!Q1028)","v":""},{"$f":"IF('1. Order'!S1028=\"\",\"\",'1. Order'!S1028)","v":""},{"$f":"IF('1. Order'!T1028=\"\",\"\",'1. Order'!T1028)","v":""},{"$f":"IF('1. Order'!W1028=\"\",\"\",'1. Order'!W1028)","v":""},{"$f":"IF('1. Order'!X1028=\"\",\"\",'1. Order'!X1028)","v":""},{"$f":"IF('1. Order'!Y1028=\"\",\"\",'1. Order'!Y1028)","v":"EUR"},{"$f":"IF('1. Order'!Z1028=\"\",\"\",'1. Order'!Z1028)","v":""},{"$f":"IF('1. Order'!AA1028=\"\",\"\",'1. Order'!AA1028)","v":""},{"$f":"IF('1. Order'!AB1028=\"\",\"\",'1. Order'!AB1028)","v":""},null,{"$f":"IF('1. Order'!AT1028=\"\",\"\",'1. Order'!AT1028)","v":""},{"$f":"IF('1. Order'!AU1028=\"\",\"\",'1. Order'!AU1028)","v":""},null,null,null,null,null,null,null,{"$f":"IF('1. Order'!AY1028=\"\",\"\",'1. Order'!AY1028)","v":""},{"$f":"IF('1. Order'!AZ1028=\"\",\"\",'1. Order'!AZ1028)","v":""},{"$f":"IF('1. Order'!BA1028=\"\",\"\",'1. Order'!BA1028)","v":""},{"$f":"IF('1. Order'!BB1028=\"\",\"\",'1. Order'!BB1028)","v":""},{"$f":"IF('1. Order'!BD1028=\"\",\"\",'1. Order'!BD1028)","v":""},{"$f":"IF('1. Order'!BE1028=\"\",\"\",'1. Order'!BE1028)","v":""},{"$f":"IF('1. Order'!BF1028=\"\",\"\",'1. Order'!BF1028)","v":""},{"$f":"IF('1. Order'!BG1028=\"\",\"\",'1. Order'!BG1028)","v":""},{"$f":"IF('1. Order'!BH1028=\"\",\"\",'1. Order'!BH1028)","v":"ZWO"}]
[{"$f":"IF('1. Order'!F1029=\"\",\"\",'1. Order'!F1029)","v":{"$error":"#N/A"}},{"$f":"IF('1. Order'!G1029=\"\",\"\",'1. Order'!G1029)","v":""},{"$f":"IF('1. Order'!H1029=\"\",\"\",'1. Order'!H1029)","v":""},{"$f":"IF('1. Order'!I1029=\"\",\"\",'1. Order'!I1029)","v":""},{"$f":"IF('1. Order'!J1029=\"\",\"\",'1. Order'!J1029)","v":""},{"$f":"IF('1. Order'!K1029=\"\",\"\",'1. Order'!K1029)","v":""},{"$f":"IF('1. Order'!L1029=\"\",\"\",'1. Order'!L1029)","v":""},{"$f":"IF('1. Order'!M1029=\"\",\"\",'1. Order'!M1029)","v":""},{"$f":"IF('1. Order'!N1029=\"\",\"\",'1. Order'!N1029)","v":""},{"$f":"IF('1. Order'!O1029=\"\",\"\",'1. Order'!O1029)","v":{"$error":"#N/A"}},{"$f":"IF('1. Order'!P1029=\"\",\"\",'1. Order'!P1029)","v":{"$error":"#N/A"}},{"$f":"IF('1. Order'!Q1029=\"\",\"\",'1. Order'!Q1029)","v":""},{"$f":"IF('1. Order'!S1029=\"\",\"\",'1. Order'!S1029)","v":""},{"$f":"IF('1. Order'!T1029=\"\",\"\",'1. Order'!T1029)","v":""},{"$f":"IF('1. Order'!W1029=\"\",\"\",'1. Order'!W1029)","v":""},{"$f":"IF('1. Order'!X1029=\"\",\"\",'1. Order'!X1029)","v":""},{"$f":"IF('1. Order'!Y1029=\"\",\"\",'1. Order'!Y1029)","v":"EUR"},{"$f":"IF('1. Order'!Z1029=\"\",\"\",'1. Order'!Z1029)","v":""},{"$f":"IF('1. Order'!AA1029=\"\",\"\",'1. Order'!AA1029)","v":""},{"$f":"IF('1. Order'!AB1029=\"\",\"\",'1. Order'!AB1029)","v":""},null,{"$f":"IF('1. Order'!AT1029=\"\",\"\",'1. Order'!AT1029)","v":""},{"$f":"IF('1. Order'!AU1029=\"\",\"\",'1. Order'!AU1029)","v":""},null,null,null,null,null,null,null,{"$f":"IF('1. Order'!AY1029=\"\",\"\",'1. Order'!AY1029)","v":""},{"$f":"IF('1. Order'!AZ1029=\"\",\"\",'1. Order'!AZ1029)","v":""},{"$f":"IF('1. Order'!BA1029=\"\",\"\",'1. Order'!BA1029)","v":""},{"$f":"IF('1. Order'!BB1029=\"\",\"\",'1. Order'!BB1029)","v":""},{"$f":"IF('1. Order'!BD1029=\"\",\"\",'1. Order'!BD1029)","v":""},{"$f":"IF('1. Order'!BE1029=\"\",\"\",'1. Order'!BE1029)","v":""},{"$f":"IF('1. Order'!BF1029=\"\",\"\",'1. Order'!BF1029)","v":""},{"$f":"IF('1. Order'!BG1029=\"\",\"\",'1. Order'!BG1029)","v":""},{"$f":"IF('1. Order'!BH1029=\"\",\"\",'1. Order'!BH1029)","v":"ZWO"}]
[{"$f":"IF('1. Order'!F1030=\"\",\"\",'1. Order'!F1030)","v":{"$error":"#N/A"}},{"$f":"IF('1. Order'!G1030=\"\",\"\",'1. Order'!G1030)","v":""},{"$f":"IF('1. Order'!H1030=\"\",\"\",'1. Order'!H1030)","v":""},{"$f":"IF('1. Order'!I1030=\"\",\"\",'1. Order'!I1030)","v":""},{"$f":"IF('1. Order'!J1030=\"\",\"\",'1. Order'!J1030)","v":""},{"$f":"IF('1. Order'!K1030=\"\",\"\",'1. Order'!K1030)","v":""},{"$f":"IF('1. Order'!L1030=\"\",\"\",'1. Order'!L1030)","v":""},{"$f":"IF('1. Order'!M1030=\"\",\"\",'1. Order'!M1030)","v":""},{"$f":"IF('1. Order'!N1030=\"\",\"\",'1. Order'!N1030)","v":""},{"$f":"IF('1. Order'!O1030=\"\",\"\",'1. Order'!O1030)","v":{"$error":"#N/A"}},{"$f":"IF('1. Order'!P1030=\"\",\"\",'1. Order'!P1030)","v":{"$error":"#N/A"}},{"$f":"IF('1. Order'!Q1030=\"\",\"\",'1. Order'!Q1030)","v":""},{"$f":"IF('1. Order'!S1030=\"\",\"\",'1. Order'!S1030)","v":""},{"$f":"IF('1. Order'!T1030=\"\",\"\",'1. Order'!T1030)","v":""},{"$f":"IF('1. Order'!W1030=\"\",\"\",'1. Order'!W1030)","v":""},{"$f":"IF('1. Order'!X1030=\"\",\"\",'1. Order'!X1030)","v":""},{"$f":"IF('1. Order'!Y1030=\"\",\"\",'1. Order'!Y1030)","v":"EUR"},{"$f":"IF('1. Order'!Z1030=\"\",\"\",'1. Order'!Z1030)","v":""},{"$f":"IF('1. Order'!AA1030=\"\",\"\",'1. Order'!AA1030)","v":""},{"$f":"IF('1. Order'!AB1030=\"\",\"\",'1. Order'!AB1030)","v":""},null,{"$f":"IF('1. Order'!AT1030=\"\",\"\",'1. Order'!AT1030)","v":""},{"$f":"IF('1. Order'!AU1030=\"\",\"\",'1. Order'!AU1030)","v":""},null,null,null,null,null,null,null,{"$f":"IF('1. Order'!AY1030=\"\",\"\",'1. Order'!AY1030)","v":""},{"$f":"IF('1. Order'!AZ1030=\"\",\"\",'1. Order'!AZ1030)","v":""},{"$f":"IF('1. Order'!BA1030=\"\",\"\",'1. Order'!BA1030)","v":""},{"$f":"IF('1. Order'!BB1030=\"\",\"\",'1. Order'!BB1030)","v":""},{"$f":"IF('1. Order'!BD1030=\"\",\"\",'1. Order'!BD1030)","v":""},{"$f":"IF('1. Order'!BE1030=\"\",\"\",'1. Order'!BE1030)","v":""},{"$f":"IF('1. Order'!BF1030=\"\",\"\",'1. Order'!BF1030)","v":""},{"$f":"IF('1. Order'!BG1030=\"\",\"\",'1. Order'!BG1030)","v":""},{"$f":"IF('1. Order'!BH1030=\"\",\"\",'1. Order'!BH1030)","v":"ZWO"}]
[{"$f":"IF('1. Order'!F1031=\"\",\"\",'1. Order'!F1031)","v":{"$error":"#N/A"}},{"$f":"IF('1. Order'!G1031=\"\",\"\",'1. Order'!G1031)","v":""},{"$f":"IF('1. Order'!H1031=\"\",\"\",'1. Order'!H1031)","v":""},{"$f":"IF('1. Order'!I1031=\"\",\"\",'1. Order'!I1031)","v":""},{"$f":"IF('1. Order'!J1031=\"\",\"\",'1. Order'!J1031)","v":""},{"$f":"IF('1. Order'!K1031=\"\",\"\",'1. Order'!K1031)","v":""},{"$f":"IF('1. Order'!L1031=\"\",\"\",'1. Order'!L1031)","v":""},{"$f":"IF('1. Order'!M1031=\"\",\"\",'1. Order'!M1031)","v":""},{"$f":"IF('1. Order'!N1031=\"\",\"\",'1. Order'!N1031)","v":""},{"$f":"IF('1. Order'!O1031=\"\",\"\",'1. Order'!O1031)","v":{"$error":"#N/A"}},{"$f":"IF('1. Order'!P1031=\"\",\"\",'1. Order'!P1031)","v":{"$error":"#N/A"}},{"$f":"IF('1. Order'!Q1031=\"\",\"\",'1. Order'!Q1031)","v":""},{"$f":"IF('1. Order'!S1031=\"\",\"\",'1. Order'!S1031)","v":""},{"$f":"IF('1. Order'!T1031=\"\",\"\",'1. Order'!T1031)","v":""},{"$f":"IF('1. Order'!W1031=\"\",\"\",'1. Order'!W1031)","v":""},{"$f":"IF('1. Order'!X1031=\"\",\"\",'1. Order'!X1031)","v":""},{"$f":"IF('1. Order'!Y1031=\"\",\"\",'1. Order'!Y1031)","v":"EUR"},{"$f":"IF('1. Order'!Z1031=\"\",\"\",'1. Order'!Z1031)","v":""},{"$f":"IF('1. Order'!AA1031=\"\",\"\",'1. Order'!AA1031)","v":""},{"$f":"IF('1. Order'!AB1031=\"\",\"\",'1. Order'!AB1031)","v":""},null,{"$f":"IF('1. Order'!AT1031=\"\",\"\",'1. Order'!AT1031)","v":""},{"$f":"IF('1. Order'!AU1031=\"\",\"\",'1. Order'!AU1031)","v":""},null,null,null,null,null,null,null,{"$f":"IF('1. Order'!AY1031=\"\",\"\",'1. Order'!AY1031)","v":""},{"$f":"IF('1. Order'!AZ1031=\"\",\"\",'1. Order'!AZ1031)","v":""},{"$f":"IF('1. Order'!BA1031=\"\",\"\",'1. Order'!BA1031)","v":""},{"$f":"IF('1. Order'!BB1031=\"\",\"\",'1. Order'!BB1031)","v":""},{"$f":"IF('1. Order'!BD1031=\"\",\"\",'1. Order'!BD1031)","v":""},{"$f":"IF('1. Order'!BE1031=\"\",\"\",'1. Order'!BE1031)","v":""},{"$f":"IF('1. Order'!BF1031=\"\",\"\",'1. Order'!BF1031)","v":""},{"$f":"IF('1. Order'!BG1031=\"\",\"\",'1. Order'!BG1031)","v":""},{"$f":"IF('1. Order'!BH1031=\"\",\"\",'1. Order'!BH1031)","v":"ZWO"}]
[{"$f":"IF('1. Order'!F1032=\"\",\"\",'1. Order'!F1032)","v":{"$error":"#N/A"}},{"$f":"IF('1. Order'!G1032=\"\",\"\",'1. Order'!G1032)","v":""},{"$f":"IF('1. Order'!H1032=\"\",\"\",'1. Order'!H1032)","v":""},{"$f":"IF('1. Order'!I1032=\"\",\"\",'1. Order'!I1032)","v":""},{"$f":"IF('1. Order'!J1032=\"\",\"\",'1. Order'!J1032)","v":""},{"$f":"IF('1. Order'!K1032=\"\",\"\",'1. Order'!K1032)","v":""},{"$f":"IF('1. Order'!L1032=\"\",\"\",'1. Order'!L1032)","v":""},{"$f":"IF('1. Order'!M1032=\"\",\"\",'1. Order'!M1032)","v":""},{"$f":"IF('1. Order'!N1032=\"\",\"\",'1. Order'!N1032)","v":""},{"$f":"IF('1. Order'!O1032=\"\",\"\",'1. Order'!O1032)","v":{"$error":"#N/A"}},{"$f":"IF('1. Order'!P1032=\"\",\"\",'1. Order'!P1032)","v":{"$error":"#N/A"}},{"$f":"IF('1. Order'!Q1032=\"\",\"\",'1. Order'!Q1032)","v":""},{"$f":"IF('1. Order'!S1032=\"\",\"\",'1. Order'!S1032)","v":""},{"$f":"IF('1. Order'!T1032=\"\",\"\",'1. Order'!T1032)","v":""},{"$f":"IF('1. Order'!W1032=\"\",\"\",'1. Order'!W1032)","v":""},{"$f":"IF('1. Order'!X1032=\"\",\"\",'1. Order'!X1032)","v":""},{"$f":"IF('1. Order'!Y1032=\"\",\"\",'1. Order'!Y1032)","v":"EUR"},{"$f":"IF('1. Order'!Z1032=\"\",\"\",'1. Order'!Z1032)","v":""},{"$f":"IF('1. Order'!AA1032=\"\",\"\",'1. Order'!AA1032)","v":""},{"$f":"IF('1. Order'!AB1032=\"\",\"\",'1. Order'!AB1032)","v":""},null,{"$f":"IF('1. Order'!AT1032=\"\",\"\",'1. Order'!AT1032)","v":""},{"$f":"IF('1. Order'!AU1032=\"\",\"\",'1. Order'!AU1032)","v":""},null,null,null,null,null,null,null,{"$f":"IF('1. Order'!AY1032=\"\",\"\",'1. Order'!AY1032)","v":""},{"$f":"IF('1. Order'!AZ1032=\"\",\"\",'1. Order'!AZ1032)","v":""},{"$f":"IF('1. Order'!BA1032=\"\",\"\",'1. Order'!BA1032)","v":""},{"$f":"IF('1. Order'!BB1032=\"\",\"\",'1. Order'!BB1032)","v":""},{"$f":"IF('1. Order'!BD1032=\"\",\"\",'1. Order'!BD1032)","v":""},{"$f":"IF('1. Order'!BE1032=\"\",\"\",'1. Order'!BE1032)","v":""},{"$f":"IF('1. Order'!BF1032=\"\",\"\",'1. Order'!BF1032)","v":""},{"$f":"IF('1. Order'!BG1032=\"\",\"\",'1. Order'!BG1032)","v":""},{"$f":"IF('1. Order'!BH1032=\"\",\"\",'1. Order'!BH1032)","v":"ZWO"}]
[{"$f":"IF('1. Order'!F1033=\"\",\"\",'1. Order'!F1033)","v":{"$error":"#N/A"}},{"$f":"IF('1. Order'!G1033=\"\",\"\",'1. Order'!G1033)","v":""},{"$f":"IF('1. Order'!H1033=\"\",\"\",'1. Order'!H1033)","v":""},{"$f":"IF('1. Order'!I1033=\"\",\"\",'1. Order'!I1033)","v":""},{"$f":"IF('1. Order'!J1033=\"\",\"\",'1. Order'!J1033)","v":""},{"$f":"IF('1. Order'!K1033=\"\",\"\",'1. Order'!K1033)","v":""},{"$f":"IF('1. Order'!L1033=\"\",\"\",'1. Order'!L1033)","v":""},{"$f":"IF('1. Order'!M1033=\"\",\"\",'1. Order'!M1033)","v":""},{"$f":"IF('1. Order'!N1033=\"\",\"\",'1. Order'!N1033)","v":""},{"$f":"IF('1. Order'!O1033=\"\",\"\",'1. Order'!O1033)","v":{"$error":"#N/A"}},{"$f":"IF('1. Order'!P1033=\"\",\"\",'1. Order'!P1033)","v":{"$error":"#N/A"}},{"$f":"IF('1. Order'!Q1033=\"\",\"\",'1. Order'!Q1033)","v":""},{"$f":"IF('1. Order'!S1033=\"\",\"\",'1. Order'!S1033)","v":""},{"$f":"IF('1. Order'!T1033=\"\",\"\",'1. Order'!T1033)","v":""},{"$f":"IF('1. Order'!W1033=\"\",\"\",'1. Order'!W1033)","v":""},{"$f":"IF('1. Order'!X1033=\"\",\"\",'1. Order'!X1033)","v":""},{"$f":"IF('1. Order'!Y1033=\"\",\"\",'1. Order'!Y1033)","v":"EUR"},{"$f":"IF('1. Order'!Z1033=\"\",\"\",'1. Order'!Z1033)","v":""},{"$f":"IF('1. Order'!AA1033=\"\",\"\",'1. Order'!AA1033)","v":""},{"$f":"IF('1. Order'!AB1033=\"\",\"\",'1. Order'!AB1033)","v":""},null,{"$f":"IF('1. Order'!AT1033=\"\",\"\",'1. Order'!AT1033)","v":""},{"$f":"IF('1. Order'!AU1033=\"\",\"\",'1. Order'!AU1033)","v":""},null,null,null,null,null,null,null,{"$f":"IF('1. Order'!AY1033=\"\",\"\",'1. Order'!AY1033)","v":""},{"$f":"IF('1. Order'!AZ1033=\"\",\"\",'1. Order'!AZ1033)","v":""},{"$f":"IF('1. Order'!BA1033=\"\",\"\",'1. Order'!BA1033)","v":""},{"$f":"IF('1. Order'!BB1033=\"\",\"\",'1. Order'!BB1033)","v":""},{"$f":"IF('1. Order'!BD1033=\"\",\"\",'1. Order'!BD1033)","v":""},{"$f":"IF('1. Order'!BE1033=\"\",\"\",'1. Order'!BE1033)","v":""},{"$f":"IF('1. Order'!BF1033=\"\",\"\",'1. Order'!BF1033)","v":""},{"$f":"IF('1. Order'!BG1033=\"\",\"\",'1. Order'!BG1033)","v":""},{"$f":"IF('1. Order'!BH1033=\"\",\"\",'1. Order'!BH1033)","v":"ZWO"}]
[{"$f":"IF('1. Order'!F1034=\"\",\"\",'1. Order'!F1034)","v":{"$error":"#N/A"}},{"$f":"IF('1. Order'!G1034=\"\",\"\",'1. Order'!G1034)","v":""},{"$f":"IF('1. Order'!H1034=\"\",\"\",'1. Order'!H1034)","v":""},{"$f":"IF('1. Order'!I1034=\"\",\"\",'1. Order'!I1034)","v":""},{"$f":"IF('1. Order'!J1034=\"\",\"\",'1. Order'!J1034)","v":""},{"$f":"IF('1. Order'!K1034=\"\",\"\",'1. Order'!K1034)","v":""},{"$f":"IF('1. Order'!L1034=\"\",\"\",'1. Order'!L1034)","v":""},{"$f":"IF('1. Order'!M1034=\"\",\"\",'1. Order'!M1034)","v":""},{"$f":"IF('1. Order'!N1034=\"\",\"\",'1. Order'!N1034)","v":""},{"$f":"IF('1. Order'!O1034=\"\",\"\",'1. Order'!O1034)","v":{"$error":"#N/A"}},{"$f":"IF('1. Order'!P1034=\"\",\"\",'1. Order'!P1034)","v":{"$error":"#N/A"}},{"$f":"IF('1. Order'!Q1034=\"\",\"\",'1. Order'!Q1034)","v":""},{"$f":"IF('1. Order'!S1034=\"\",\"\",'1. Order'!S1034)","v":""},{"$f":"IF('1. Order'!T1034=\"\",\"\",'1. Order'!T1034)","v":""},{"$f":"IF('1. Order'!W1034=\"\",\"\",'1. Order'!W1034)","v":""},{"$f":"IF('1. Order'!X1034=\"\",\"\",'1. Order'!X1034)","v":""},{"$f":"IF('1. Order'!Y1034=\"\",\"\",'1. Order'!Y1034)","v":"EUR"},{"$f":"IF('1. Order'!Z1034=\"\",\"\",'1. Order'!Z1034)","v":""},{"$f":"IF('1. Order'!AA1034=\"\",\"\",'1. Order'!AA1034)","v":""},{"$f":"IF('1. Order'!AB1034=\"\",\"\",'1. Order'!AB1034)","v":""},null,{"$f":"IF('1. Order'!AT1034=\"\",\"\",'1. Order'!AT1034)","v":""},{"$f":"IF('1. Order'!AU1034=\"\",\"\",'1. Order'!AU1034)","v":""},null,null,null,null,null,null,null,{"$f":"IF('1. Order'!AY1034=\"\",\"\",'1. Order'!AY1034)","v":""},{"$f":"IF('1. Order'!AZ1034=\"\",\"\",'1. Order'!AZ1034)","v":""},{"$f":"IF('1. Order'!BA1034=\"\",\"\",'1. Order'!BA1034)","v":""},{"$f":"IF('1. Order'!BB1034=\"\",\"\",'1. Order'!BB1034)","v":""},{"$f":"IF('1. Order'!BD1034=\"\",\"\",'1. Order'!BD1034)","v":""},{"$f":"IF('1. Order'!BE1034=\"\",\"\",'1. Order'!BE1034)","v":""},{"$f":"IF('1. Order'!BF1034=\"\",\"\",'1. Order'!BF1034)","v":""},{"$f":"IF('1. Order'!BG1034=\"\",\"\",'1. Order'!BG1034)","v":""},{"$f":"IF('1. Order'!BH1034=\"\",\"\",'1. Order'!BH1034)","v":"ZWO"}]
[{"$f":"IF('1. Order'!F1035=\"\",\"\",'1. Order'!F1035)","v":{"$error":"#N/A"}},{"$f":"IF('1. Order'!G1035=\"\",\"\",'1. Order'!G1035)","v":""},{"$f":"IF('1. Order'!H1035=\"\",\"\",'1. Order'!H1035)","v":""},{"$f":"IF('1. Order'!I1035=\"\",\"\",'1. Order'!I1035)","v":""},{"$f":"IF('1. Order'!J1035=\"\",\"\",'1. Order'!J1035)","v":""},{"$f":"IF('1. Order'!K1035=\"\",\"\",'1. Order'!K1035)","v":""},{"$f":"IF('1. Order'!L1035=\"\",\"\",'1. Order'!L1035)","v":""},{"$f":"IF('1. Order'!M1035=\"\",\"\",'1. Order'!M1035)","v":""},{"$f":"IF('1. Order'!N1035=\"\",\"\",'1. Order'!N1035)","v":""},{"$f":"IF('1. Order'!O1035=\"\",\"\",'1. Order'!O1035)","v":{"$error":"#N/A"}},{"$f":"IF('1. Order'!P1035=\"\",\"\",'1. Order'!P1035)","v":{"$error":"#N/A"}},{"$f":"IF('1. Order'!Q1035=\"\",\"\",'1. Order'!Q1035)","v":""},{"$f":"IF('1. Order'!S1035=\"\",\"\",'1. Order'!S1035)","v":""},{"$f":"IF('1. Order'!T1035=\"\",\"\",'1. Order'!T1035)","v":""},{"$f":"IF('1. Order'!W1035=\"\",\"\",'1. Order'!W1035)","v":""},{"$f":"IF('1. Order'!X1035=\"\",\"\",'1. Order'!X1035)","v":""},{"$f":"IF('1. Order'!Y1035=\"\",\"\",'1. Order'!Y1035)","v":"EUR"},{"$f":"IF('1. Order'!Z1035=\"\",\"\",'1. Order'!Z1035)","v":""},{"$f":"IF('1. Order'!AA1035=\"\",\"\",'1. Order'!AA1035)","v":""},{"$f":"IF('1. Order'!AB1035=\"\",\"\",'1. Order'!AB1035)","v":""},null,{"$f":"IF('1. Order'!AT1035=\"\",\"\",'1. Order'!AT1035)","v":""},{"$f":"IF('1. Order'!AU1035=\"\",\"\",'1. Order'!AU1035)","v":""},null,null,null,null,null,null,null,{"$f":"IF('1. Order'!AY1035=\"\",\"\",'1. Order'!AY1035)","v":""},{"$f":"IF('1. Order'!AZ1035=\"\",\"\",'1. Order'!AZ1035)","v":""},{"$f":"IF('1. Order'!BA1035=\"\",\"\",'1. Order'!BA1035)","v":""},{"$f":"IF('1. Order'!BB1035=\"\",\"\",'1. Order'!BB1035)","v":""},{"$f":"IF('1. Order'!BD1035=\"\",\"\",'1. Order'!BD1035)","v":""},{"$f":"IF('1. Order'!BE1035=\"\",\"\",'1. Order'!BE1035)","v":""},{"$f":"IF('1. Order'!BF1035=\"\",\"\",'1. Order'!BF1035)","v":""},{"$f":"IF('1. Order'!BG1035=\"\",\"\",'1. Order'!BG1035)","v":""},{"$f":"IF('1. Order'!BH1035=\"\",\"\",'1. Order'!BH1035)","v":"ZWO"}]
[{"$f":"IF('1. Order'!F1036=\"\",\"\",'1. Order'!F1036)","v":{"$error":"#N/A"}},{"$f":"IF('1. Order'!G1036=\"\",\"\",'1. Order'!G1036)","v":""},{"$f":"IF('1. Order'!H1036=\"\",\"\",'1. Order'!H1036)","v":""},{"$f":"IF('1. Order'!I1036=\"\",\"\",'1. Order'!I1036)","v":""},{"$f":"IF('1. Order'!J1036=\"\",\"\",'1. Order'!J1036)","v":""},{"$f":"IF('1. Order'!K1036=\"\",\"\",'1. Order'!K1036)","v":""},{"$f":"IF('1. Order'!L1036=\"\",\"\",'1. Order'!L1036)","v":""},{"$f":"IF('1. Order'!M1036=\"\",\"\",'1. Order'!M1036)","v":""},{"$f":"IF('1. Order'!N1036=\"\",\"\",'1. Order'!N1036)","v":""},{"$f":"IF('1. Order'!O1036=\"\",\"\",'1. Order'!O1036)","v":{"$error":"#N/A"}},{"$f":"IF('1. Order'!P1036=\"\",\"\",'1. Order'!P1036)","v":{"$error":"#N/A"}},{"$f":"IF('1. Order'!Q1036=\"\",\"\",'1. Order'!Q1036)","v":""},{"$f":"IF('1. Order'!S1036=\"\",\"\",'1. Order'!S1036)","v":""},{"$f":"IF('1. Order'!T1036=\"\",\"\",'1. Order'!T1036)","v":""},{"$f":"IF('1. Order'!W1036=\"\",\"\",'1. Order'!W1036)","v":""},{"$f":"IF('1. Order'!X1036=\"\",\"\",'1. Order'!X1036)","v":""},{"$f":"IF('1. Order'!Y1036=\"\",\"\",'1. Order'!Y1036)","v":"EUR"},{"$f":"IF('1. Order'!Z1036=\"\",\"\",'1. Order'!Z1036)","v":""},{"$f":"IF('1. Order'!AA1036=\"\",\"\",'1. Order'!AA1036)","v":""},{"$f":"IF('1. Order'!AB1036=\"\",\"\",'1. Order'!AB1036)","v":""},null,{"$f":"IF('1. Order'!AT1036=\"\",\"\",'1. Order'!AT1036)","v":""},{"$f":"IF('1. Order'!AU1036=\"\",\"\",'1. Order'!AU1036)","v":""},null,null,null,null,null,null,null,{"$f":"IF('1. Order'!AY1036=\"\",\"\",'1. Order'!AY1036)","v":""},{"$f":"IF('1. Order'!AZ1036=\"\",\"\",'1. Order'!AZ1036)","v":""},{"$f":"IF('1. Order'!BA1036=\"\",\"\",'1. Order'!BA1036)","v":""},{"$f":"IF('1. Order'!BB1036=\"\",\"\",'1. Order'!BB1036)","v":""},{"$f":"IF('1. Order'!BD1036=\"\",\"\",'1. Order'!BD1036)","v":""},{"$f":"IF('1. Order'!BE1036=\"\",\"\",'1. Order'!BE1036)","v":""},{"$f":"IF('1. Order'!BF1036=\"\",\"\",'1. Order'!BF1036)","v":""},{"$f":"IF('1. Order'!BG1036=\"\",\"\",'1. Order'!BG1036)","v":""},{"$f":"IF('1. Order'!BH1036=\"\",\"\",'1. Order'!BH1036)","v":"ZWO"}]
[{"$f":"IF('1. Order'!F1037=\"\",\"\",'1. Order'!F1037)","v":{"$error":"#N/A"}},{"$f":"IF('1. Order'!G1037=\"\",\"\",'1. Order'!G1037)","v":""},{"$f":"IF('1. Order'!H1037=\"\",\"\",'1. Order'!H1037)","v":""},{"$f":"IF('1. Order'!I1037=\"\",\"\",'1. Order'!I1037)","v":""},{"$f":"IF('1. Order'!J1037=\"\",\"\",'1. Order'!J1037)","v":""},{"$f":"IF('1. Order'!K1037=\"\",\"\",'1. Order'!K1037)","v":""},{"$f":"IF('1. Order'!L1037=\"\",\"\",'1. Order'!L1037)","v":""},{"$f":"IF('1. Order'!M1037=\"\",\"\",'1. Order'!M1037)","v":""},{"$f":"IF('1. Order'!N1037=\"\",\"\",'1. Order'!N1037)","v":""},{"$f":"IF('1. Order'!O1037=\"\",\"\",'1. Order'!O1037)","v":{"$error":"#N/A"}},{"$f":"IF('1. Order'!P1037=\"\",\"\",'1. Order'!P1037)","v":{"$error":"#N/A"}},{"$f":"IF('1. Order'!Q1037=\"\",\"\",'1. Order'!Q1037)","v":""},{"$f":"IF('1. Order'!S1037=\"\",\"\",'1. Order'!S1037)","v":""},{"$f":"IF('1. Order'!T1037=\"\",\"\",'1. Order'!T1037)","v":""},{"$f":"IF('1. Order'!W1037=\"\",\"\",'1. Order'!W1037)","v":""},{"$f":"IF('1. Order'!X1037=\"\",\"\",'1. Order'!X1037)","v":""},{"$f":"IF('1. Order'!Y1037=\"\",\"\",'1. Order'!Y1037)","v":"EUR"},{"$f":"IF('1. Order'!Z1037=\"\",\"\",'1. Order'!Z1037)","v":""},{"$f":"IF('1. Order'!AA1037=\"\",\"\",'1. Order'!AA1037)","v":""},{"$f":"IF('1. Order'!AB1037=\"\",\"\",'1. Order'!AB1037)","v":""},null,{"$f":"IF('1. Order'!AT1037=\"\",\"\",'1. Order'!AT1037)","v":""},{"$f":"IF('1. Order'!AU1037=\"\",\"\",'1. Order'!AU1037)","v":""},null,null,null,null,null,null,null,{"$f":"IF('1. Order'!AY1037=\"\",\"\",'1. Order'!AY1037)","v":""},{"$f":"IF('1. Order'!AZ1037=\"\",\"\",'1. Order'!AZ1037)","v":""},{"$f":"IF('1. Order'!BA1037=\"\",\"\",'1. Order'!BA1037)","v":""},{"$f":"IF('1. Order'!BB1037=\"\",\"\",'1. Order'!BB1037)","v":""},{"$f":"IF('1. Order'!BD1037=\"\",\"\",'1. Order'!BD1037)","v":""},{"$f":"IF('1. Order'!BE1037=\"\",\"\",'1. Order'!BE1037)","v":""},{"$f":"IF('1. Order'!BF1037=\"\",\"\",'1. Order'!BF1037)","v":""},{"$f":"IF('1. Order'!BG1037=\"\",\"\",'1. Order'!BG1037)","v":""},{"$f":"IF('1. Order'!BH1037=\"\",\"\",'1. Order'!BH1037)","v":"ZWO"}]
[{"$f":"IF('1. Order'!F1038=\"\",\"\",'1. Order'!F1038)","v":{"$error":"#N/A"}},{"$f":"IF('1. Order'!G1038=\"\",\"\",'1. Order'!G1038)","v":""},{"$f":"IF('1. Order'!H1038=\"\",\"\",'1. Order'!H1038)","v":""},{"$f":"IF('1. Order'!I1038=\"\",\"\",'1. Order'!I1038)","v":""},{"$f":"IF('1. Order'!J1038=\"\",\"\",'1. Order'!J1038)","v":""},{"$f":"IF('1. Order'!K1038=\"\",\"\",'1. Order'!K1038)","v":""},{"$f":"IF('1. Order'!L1038=\"\",\"\",'1. Order'!L1038)","v":""},{"$f":"IF('1. Order'!M1038=\"\",\"\",'1. Order'!M1038)","v":""},{"$f":"IF('1. Order'!N1038=\"\",\"\",'1. Order'!N1038)","v":""},{"$f":"IF('1. Order'!O1038=\"\",\"\",'1. Order'!O1038)","v":{"$error":"#N/A"}},{"$f":"IF('1. Order'!P1038=\"\",\"\",'1. Order'!P1038)","v":{"$error":"#N/A"}},{"$f":"IF('1. Order'!Q1038=\"\",\"\",'1. Order'!Q1038)","v":""},{"$f":"IF('1. Order'!S1038=\"\",\"\",'1. Order'!S1038)","v":""},{"$f":"IF('1. Order'!T1038=\"\",\"\",'1. Order'!T1038)","v":""},{"$f":"IF('1. Order'!W1038=\"\",\"\",'1. Order'!W1038)","v":""},{"$f":"IF('1. Order'!X1038=\"\",\"\",'1. Order'!X1038)","v":""},{"$f":"IF('1. Order'!Y1038=\"\",\"\",'1. Order'!Y1038)","v":"EUR"},{"$f":"IF('1. Order'!Z1038=\"\",\"\",'1. Order'!Z1038)","v":""},{"$f":"IF('1. Order'!AA1038=\"\",\"\",'1. Order'!AA1038)","v":""},{"$f":"IF('1. Order'!AB1038=\"\",\"\",'1. Order'!AB1038)","v":""},null,{"$f":"IF('1. Order'!AT1038=\"\",\"\",'1. Order'!AT1038)","v":""},{"$f":"IF('1. Order'!AU1038=\"\",\"\",'1. Order'!AU1038)","v":""},null,null,null,null,null,null,null,{"$f":"IF('1. Order'!AY1038=\"\",\"\",'1. Order'!AY1038)","v":""},{"$f":"IF('1. Order'!AZ1038=\"\",\"\",'1. Order'!AZ1038)","v":""},{"$f":"IF('1. Order'!BA1038=\"\",\"\",'1. Order'!BA1038)","v":""},{"$f":"IF('1. Order'!BB1038=\"\",\"\",'1. Order'!BB1038)","v":""},{"$f":"IF('1. Order'!BD1038=\"\",\"\",'1. Order'!BD1038)","v":""},{"$f":"IF('1. Order'!BE1038=\"\",\"\",'1. Order'!BE1038)","v":""},{"$f":"IF('1. Order'!BF1038=\"\",\"\",'1. Order'!BF1038)","v":""},{"$f":"IF('1. Order'!BG1038=\"\",\"\",'1. Order'!BG1038)","v":""},{"$f":"IF('1. Order'!BH1038=\"\",\"\",'1. Order'!BH1038)","v":"ZWO"}]
[{"$f":"IF('1. Order'!F1039=\"\",\"\",'1. Order'!F1039)","v":{"$error":"#N/A"}},{"$f":"IF('1. Order'!G1039=\"\",\"\",'1. Order'!G1039)","v":""},{"$f":"IF('1. Order'!H1039=\"\",\"\",'1. Order'!H1039)","v":""},{"$f":"IF('1. Order'!I1039=\"\",\"\",'1. Order'!I1039)","v":""},{"$f":"IF('1. Order'!J1039=\"\",\"\",'1. Order'!J1039)","v":""},{"$f":"IF('1. Order'!K1039=\"\",\"\",'1. Order'!K1039)","v":""},{"$f":"IF('1. Order'!L1039=\"\",\"\",'1. Order'!L1039)","v":""},{"$f":"IF('1. Order'!M1039=\"\",\"\",'1. Order'!M1039)","v":""},{"$f":"IF('1. Order'!N1039=\"\",\"\",'1. Order'!N1039)","v":""},{"$f":"IF('1. Order'!O1039=\"\",\"\",'1. Order'!O1039)","v":{"$error":"#N/A"}},{"$f":"IF('1. Order'!P1039=\"\",\"\",'1. Order'!P1039)","v":{"$error":"#N/A"}},{"$f":"IF('1. Order'!Q1039=\"\",\"\",'1. Order'!Q1039)","v":""},{"$f":"IF('1. Order'!S1039=\"\",\"\",'1. Order'!S1039)","v":""},{"$f":"IF('1. Order'!T1039=\"\",\"\",'1. Order'!T1039)","v":""},{"$f":"IF('1. Order'!W1039=\"\",\"\",'1. Order'!W1039)","v":""},{"$f":"IF('1. Order'!X1039=\"\",\"\",'1. Order'!X1039)","v":""},{"$f":"IF('1. Order'!Y1039=\"\",\"\",'1. Order'!Y1039)","v":"EUR"},{"$f":"IF('1. Order'!Z1039=\"\",\"\",'1. Order'!Z1039)","v":""},{"$f":"IF('1. Order'!AA1039=\"\",\"\",'1. Order'!AA1039)","v":""},{"$f":"IF('1. Order'!AB1039=\"\",\"\",'1. Order'!AB1039)","v":""},null,{"$f":"IF('1. Order'!AT1039=\"\",\"\",'1. Order'!AT1039)","v":""},{"$f":"IF('1. Order'!AU1039=\"\",\"\",'1. Order'!AU1039)","v":""},null,null,null,null,null,null,null,{"$f":"IF('1. Order'!AY1039=\"\",\"\",'1. Order'!AY1039)","v":""},{"$f":"IF('1. Order'!AZ1039=\"\",\"\",'1. Order'!AZ1039)","v":""},{"$f":"IF('1. Order'!BA1039=\"\",\"\",'1. Order'!BA1039)","v":""},{"$f":"IF('1. Order'!BB1039=\"\",\"\",'1. Order'!BB1039)","v":""},{"$f":"IF('1. Order'!BD1039=\"\",\"\",'1. Order'!BD1039)","v":""},{"$f":"IF('1. Order'!BE1039=\"\",\"\",'1. Order'!BE1039)","v":""},{"$f":"IF('1. Order'!BF1039=\"\",\"\",'1. Order'!BF1039)","v":""},{"$f":"IF('1. Order'!BG1039=\"\",\"\",'1. Order'!BG1039)","v":""},{"$f":"IF('1. Order'!BH1039=\"\",\"\",'1. Order'!BH1039)","v":"ZWO"}]
[{"$f":"IF('1. Order'!F1040=\"\",\"\",'1. Order'!F1040)","v":{"$error":"#N/A"}},{"$f":"IF('1. Order'!G1040=\"\",\"\",'1. Order'!G1040)","v":""},{"$f":"IF('1. Order'!H1040=\"\",\"\",'1. Order'!H1040)","v":""},{"$f":"IF('1. Order'!I1040=\"\",\"\",'1. Order'!I1040)","v":""},{"$f":"IF('1. Order'!J1040=\"\",\"\",'1. Order'!J1040)","v":""},{"$f":"IF('1. Order'!K1040=\"\",\"\",'1. Order'!K1040)","v":""},{"$f":"IF('1. Order'!L1040=\"\",\"\",'1. Order'!L1040)","v":""},{"$f":"IF('1. Order'!M1040=\"\",\"\",'1. Order'!M1040)","v":""},{"$f":"IF('1. Order'!N1040=\"\",\"\",'1. Order'!N1040)","v":""},{"$f":"IF('1. Order'!O1040=\"\",\"\",'1. Order'!O1040)","v":{"$error":"#N/A"}},{"$f":"IF('1. Order'!P1040=\"\",\"\",'1. Order'!P1040)","v":{"$error":"#N/A"}},{"$f":"IF('1. Order'!Q1040=\"\",\"\",'1. Order'!Q1040)","v":""},{"$f":"IF('1. Order'!S1040=\"\",\"\",'1. Order'!S1040)","v":""},{"$f":"IF('1. Order'!T1040=\"\",\"\",'1. Order'!T1040)","v":""},{"$f":"IF('1. Order'!W1040=\"\",\"\",'1. Order'!W1040)","v":""},{"$f":"IF('1. Order'!X1040=\"\",\"\",'1. Order'!X1040)","v":""},{"$f":"IF('1. Order'!Y1040=\"\",\"\",'1. Order'!Y1040)","v":"EUR"},{"$f":"IF('1. Order'!Z1040=\"\",\"\",'1. Order'!Z1040)","v":""},{"$f":"IF('1. Order'!AA1040=\"\",\"\",'1. Order'!AA1040)","v":""},{"$f":"IF('1. Order'!AB1040=\"\",\"\",'1. Order'!AB1040)","v":""},null,{"$f":"IF('1. Order'!AT1040=\"\",\"\",'1. Order'!AT1040)","v":""},{"$f":"IF('1. Order'!AU1040=\"\",\"\",'1. Order'!AU1040)","v":""},null,null,null,null,null,null,null,{"$f":"IF('1. Order'!AY1040=\"\",\"\",'1. Order'!AY1040)","v":""},{"$f":"IF('1. Order'!AZ1040=\"\",\"\",'1. Order'!AZ1040)","v":""},{"$f":"IF('1. Order'!BA1040=\"\",\"\",'1. Order'!BA1040)","v":""},{"$f":"IF('1. Order'!BB1040=\"\",\"\",'1. Order'!BB1040)","v":""},{"$f":"IF('1. Order'!BD1040=\"\",\"\",'1. Order'!BD1040)","v":""},{"$f":"IF('1. Order'!BE1040=\"\",\"\",'1. Order'!BE1040)","v":""},{"$f":"IF('1. Order'!BF1040=\"\",\"\",'1. Order'!BF1040)","v":""},{"$f":"IF('1. Order'!BG1040=\"\",\"\",'1. Order'!BG1040)","v":""},{"$f":"IF('1. Order'!BH1040=\"\",\"\",'1. Order'!BH1040)","v":"ZWO"}]
[{"$f":"IF('1. Order'!F1041=\"\",\"\",'1. Order'!F1041)","v":{"$error":"#N/A"}},{"$f":"IF('1. Order'!G1041=\"\",\"\",'1. Order'!G1041)","v":""},{"$f":"IF('1. Order'!H1041=\"\",\"\",'1. Order'!H1041)","v":""},{"$f":"IF('1. Order'!I1041=\"\",\"\",'1. Order'!I1041)","v":""},{"$f":"IF('1. Order'!J1041=\"\",\"\",'1. Order'!J1041)","v":""},{"$f":"IF('1. Order'!K1041=\"\",\"\",'1. Order'!K1041)","v":""},{"$f":"IF('1. Order'!L1041=\"\",\"\",'1. Order'!L1041)","v":""},{"$f":"IF('1. Order'!M1041=\"\",\"\",'1. Order'!M1041)","v":""},{"$f":"IF('1. Order'!N1041=\"\",\"\",'1. Order'!N1041)","v":""},{"$f":"IF('1. Order'!O1041=\"\",\"\",'1. Order'!O1041)","v":{"$error":"#N/A"}},{"$f":"IF('1. Order'!P1041=\"\",\"\",'1. Order'!P1041)","v":{"$error":"#N/A"}},{"$f":"IF('1. Order'!Q1041=\"\",\"\",'1. Order'!Q1041)","v":""},{"$f":"IF('1. Order'!S1041=\"\",\"\",'1. Order'!S1041)","v":""},{"$f":"IF('1. Order'!T1041=\"\",\"\",'1. Order'!T1041)","v":""},{"$f":"IF('1. Order'!W1041=\"\",\"\",'1. Order'!W1041)","v":""},{"$f":"IF('1. Order'!X1041=\"\",\"\",'1. Order'!X1041)","v":""},{"$f":"IF('1. Order'!Y1041=\"\",\"\",'1. Order'!Y1041)","v":"EUR"},{"$f":"IF('1. Order'!Z1041=\"\",\"\",'1. Order'!Z1041)","v":""},{"$f":"IF('1. Order'!AA1041=\"\",\"\",'1. Order'!AA1041)","v":""},{"$f":"IF('1. Order'!AB1041=\"\",\"\",'1. Order'!AB1041)","v":""},null,{"$f":"IF('1. Order'!AT1041=\"\",\"\",'1. Order'!AT1041)","v":""},{"$f":"IF('1. Order'!AU1041=\"\",\"\",'1. Order'!AU1041)","v":""},null,null,null,null,null,null,null,{"$f":"IF('1. Order'!AY1041=\"\",\"\",'1. Order'!AY1041)","v":""},{"$f":"IF('1. Order'!AZ1041=\"\",\"\",'1. Order'!AZ1041)","v":""},{"$f":"IF('1. Order'!BA1041=\"\",\"\",'1. Order'!BA1041)","v":""},{"$f":"IF('1. Order'!BB1041=\"\",\"\",'1. Order'!BB1041)","v":""},{"$f":"IF('1. Order'!BD1041=\"\",\"\",'1. Order'!BD1041)","v":""},{"$f":"IF('1. Order'!BE1041=\"\",\"\",'1. Order'!BE1041)","v":""},{"$f":"IF('1. Order'!BF1041=\"\",\"\",'1. Order'!BF1041)","v":""},{"$f":"IF('1. Order'!BG1041=\"\",\"\",'1. Order'!BG1041)","v":""},{"$f":"IF('1. Order'!BH1041=\"\",\"\",'1. Order'!BH1041)","v":"ZWO"}]
[{"$f":"IF('1. Order'!F1042=\"\",\"\",'1. Order'!F1042)","v":{"$error":"#N/A"}},{"$f":"IF('1. Order'!G1042=\"\",\"\",'1. Order'!G1042)","v":""},{"$f":"IF('1. Order'!H1042=\"\",\"\",'1. Order'!H1042)","v":""},{"$f":"IF('1. Order'!I1042=\"\",\"\",'1. Order'!I1042)","v":""},{"$f":"IF('1. Order'!J1042=\"\",\"\",'1. Order'!J1042)","v":""},{"$f":"IF('1. Order'!K1042=\"\",\"\",'1. Order'!K1042)","v":""},{"$f":"IF('1. Order'!L1042=\"\",\"\",'1. Order'!L1042)","v":""},{"$f":"IF('1. Order'!M1042=\"\",\"\",'1. Order'!M1042)","v":""},{"$f":"IF('1. Order'!N1042=\"\",\"\",'1. Order'!N1042)","v":""},{"$f":"IF('1. Order'!O1042=\"\",\"\",'1. Order'!O1042)","v":{"$error":"#N/A"}},{"$f":"IF('1. Order'!P1042=\"\",\"\",'1. Order'!P1042)","v":{"$error":"#N/A"}},{"$f":"IF('1. Order'!Q1042=\"\",\"\",'1. Order'!Q1042)","v":""},{"$f":"IF('1. Order'!S1042=\"\",\"\",'1. Order'!S1042)","v":""},{"$f":"IF('1. Order'!T1042=\"\",\"\",'1. Order'!T1042)","v":""},{"$f":"IF('1. Order'!W1042=\"\",\"\",'1. Order'!W1042)","v":""},{"$f":"IF('1. Order'!X1042=\"\",\"\",'1. Order'!X1042)","v":""},{"$f":"IF('1. Order'!Y1042=\"\",\"\",'1. Order'!Y1042)","v":"EUR"},{"$f":"IF('1. Order'!Z1042=\"\",\"\",'1. Order'!Z1042)","v":""},{"$f":"IF('1. Order'!AA1042=\"\",\"\",'1. Order'!AA1042)","v":""},{"$f":"IF('1. Order'!AB1042=\"\",\"\",'1. Order'!AB1042)","v":""},null,{"$f":"IF('1. Order'!AT1042=\"\",\"\",'1. Order'!AT1042)","v":""},{"$f":"IF('1. Order'!AU1042=\"\",\"\",'1. Order'!AU1042)","v":""},null,null,null,null,null,null,null,{"$f":"IF('1. Order'!AY1042=\"\",\"\",'1. Order'!AY1042)","v":""},{"$f":"IF('1. Order'!AZ1042=\"\",\"\",'1. Order'!AZ1042)","v":""},{"$f":"IF('1. Order'!BA1042=\"\",\"\",'1. Order'!BA1042)","v":""},{"$f":"IF('1. Order'!BB1042=\"\",\"\",'1. Order'!BB1042)","v":""},{"$f":"IF('1. Order'!BD1042=\"\",\"\",'1. Order'!BD1042)","v":""},{"$f":"IF('1. Order'!BE1042=\"\",\"\",'1. Order'!BE1042)","v":""},{"$f":"IF('1. Order'!BF1042=\"\",\"\",'1. Order'!BF1042)","v":""},{"$f":"IF('1. Order'!BG1042=\"\",\"\",'1. Order'!BG1042)","v":""},{"$f":"IF('1. Order'!BH1042=\"\",\"\",'1. Order'!BH1042)","v":"ZWO"}]
[{"$f":"IF('1. Order'!F1043=\"\",\"\",'1. Order'!F1043)","v":{"$error":"#N/A"}},{"$f":"IF('1. Order'!G1043=\"\",\"\",'1. Order'!G1043)","v":""},{"$f":"IF('1. Order'!H1043=\"\",\"\",'1. Order'!H1043)","v":""},{"$f":"IF('1. Order'!I1043=\"\",\"\",'1. Order'!I1043)","v":""},{"$f":"IF('1. Order'!J1043=\"\",\"\",'1. Order'!J1043)","v":""},{"$f":"IF('1. Order'!K1043=\"\",\"\",'1. Order'!K1043)","v":""},{"$f":"IF('1. Order'!L1043=\"\",\"\",'1. Order'!L1043)","v":""},{"$f":"IF('1. Order'!M1043=\"\",\"\",'1. Order'!M1043)","v":""},{"$f":"IF('1. Order'!N1043=\"\",\"\",'1. Order'!N1043)","v":""},{"$f":"IF('1. Order'!O1043=\"\",\"\",'1. Order'!O1043)","v":{"$error":"#N/A"}},{"$f":"IF('1. Order'!P1043=\"\",\"\",'1. Order'!P1043)","v":{"$error":"#N/A"}},{"$f":"IF('1. Order'!Q1043=\"\",\"\",'1. Order'!Q1043)","v":""},{"$f":"IF('1. Order'!S1043=\"\",\"\",'1. Order'!S1043)","v":""},{"$f":"IF('1. Order'!T1043=\"\",\"\",'1. Order'!T1043)","v":""},{"$f":"IF('1. Order'!W1043=\"\",\"\",'1. Order'!W1043)","v":""},{"$f":"IF('1. Order'!X1043=\"\",\"\",'1. Order'!X1043)","v":""},{"$f":"IF('1. Order'!Y1043=\"\",\"\",'1. Order'!Y1043)","v":"EUR"},{"$f":"IF('1. Order'!Z1043=\"\",\"\",'1. Order'!Z1043)","v":""},{"$f":"IF('1. Order'!AA1043=\"\",\"\",'1. Order'!AA1043)","v":""},{"$f":"IF('1. Order'!AB1043=\"\",\"\",'1. Order'!AB1043)","v":""},null,{"$f":"IF('1. Order'!AT1043=\"\",\"\",'1. Order'!AT1043)","v":""},{"$f":"IF('1. Order'!AU1043=\"\",\"\",'1. Order'!AU1043)","v":""},null,null,null,null,null,null,null,{"$f":"IF('1. Order'!AY1043=\"\",\"\",'1. Order'!AY1043)","v":""},{"$f":"IF('1. Order'!AZ1043=\"\",\"\",'1. Order'!AZ1043)","v":""},{"$f":"IF('1. Order'!BA1043=\"\",\"\",'1. Order'!BA1043)","v":""},{"$f":"IF('1. Order'!BB1043=\"\",\"\",'1. Order'!BB1043)","v":""},{"$f":"IF('1. Order'!BD1043=\"\",\"\",'1. Order'!BD1043)","v":""},{"$f":"IF('1. Order'!BE1043=\"\",\"\",'1. Order'!BE1043)","v":""},{"$f":"IF('1. Order'!BF1043=\"\",\"\",'1. Order'!BF1043)","v":""},{"$f":"IF('1. Order'!BG1043=\"\",\"\",'1. Order'!BG1043)","v":""},{"$f":"IF('1. Order'!BH1043=\"\",\"\",'1. Order'!BH1043)","v":"ZWO"}]
[{"$f":"IF('1. Order'!F1044=\"\",\"\",'1. Order'!F1044)","v":{"$error":"#N/A"}},{"$f":"IF('1. Order'!G1044=\"\",\"\",'1. Order'!G1044)","v":""},{"$f":"IF('1. Order'!H1044=\"\",\"\",'1. Order'!H1044)","v":""},{"$f":"IF('1. Order'!I1044=\"\",\"\",'1. Order'!I1044)","v":""},{"$f":"IF('1. Order'!J1044=\"\",\"\",'1. Order'!J1044)","v":""},{"$f":"IF('1. Order'!K1044=\"\",\"\",'1. Order'!K1044)","v":""},{"$f":"IF('1. Order'!L1044=\"\",\"\",'1. Order'!L1044)","v":""},{"$f":"IF('1. Order'!M1044=\"\",\"\",'1. Order'!M1044)","v":""},{"$f":"IF('1. Order'!N1044=\"\",\"\",'1. Order'!N1044)","v":""},{"$f":"IF('1. Order'!O1044=\"\",\"\",'1. Order'!O1044)","v":{"$error":"#N/A"}},{"$f":"IF('1. Order'!P1044=\"\",\"\",'1. Order'!P1044)","v":{"$error":"#N/A"}},{"$f":"IF('1. Order'!Q1044=\"\",\"\",'1. Order'!Q1044)","v":""},{"$f":"IF('1. Order'!S1044=\"\",\"\",'1. Order'!S1044)","v":""},{"$f":"IF('1. Order'!T1044=\"\",\"\",'1. Order'!T1044)","v":""},{"$f":"IF('1. Order'!W1044=\"\",\"\",'1. Order'!W1044)","v":""},{"$f":"IF('1. Order'!X1044=\"\",\"\",'1. Order'!X1044)","v":""},{"$f":"IF('1. Order'!Y1044=\"\",\"\",'1. Order'!Y1044)","v":"EUR"},{"$f":"IF('1. Order'!Z1044=\"\",\"\",'1. Order'!Z1044)","v":""},{"$f":"IF('1. Order'!AA1044=\"\",\"\",'1. Order'!AA1044)","v":""},{"$f":"IF('1. Order'!AB1044=\"\",\"\",'1. Order'!AB1044)","v":""},null,{"$f":"IF('1. Order'!AT1044=\"\",\"\",'1. Order'!AT1044)","v":""},{"$f":"IF('1. Order'!AU1044=\"\",\"\",'1. Order'!AU1044)","v":""},null,null,null,null,null,null,null,{"$f":"IF('1. Order'!AY1044=\"\",\"\",'1. Order'!AY1044)","v":""},{"$f":"IF('1. Order'!AZ1044=\"\",\"\",'1. Order'!AZ1044)","v":""},{"$f":"IF('1. Order'!BA1044=\"\",\"\",'1. Order'!BA1044)","v":""},{"$f":"IF('1. Order'!BB1044=\"\",\"\",'1. Order'!BB1044)","v":""},{"$f":"IF('1. Order'!BD1044=\"\",\"\",'1. Order'!BD1044)","v":""},{"$f":"IF('1. Order'!BE1044=\"\",\"\",'1. Order'!BE1044)","v":""},{"$f":"IF('1. Order'!BF1044=\"\",\"\",'1. Order'!BF1044)","v":""},{"$f":"IF('1. Order'!BG1044=\"\",\"\",'1. Order'!BG1044)","v":""},{"$f":"IF('1. Order'!BH1044=\"\",\"\",'1. Order'!BH1044)","v":"ZWO"}]
[{"$f":"IF('1. Order'!F1045=\"\",\"\",'1. Order'!F1045)","v":{"$error":"#N/A"}},{"$f":"IF('1. Order'!G1045=\"\",\"\",'1. Order'!G1045)","v":""},{"$f":"IF('1. Order'!H1045=\"\",\"\",'1. Order'!H1045)","v":""},{"$f":"IF('1. Order'!I1045=\"\",\"\",'1. Order'!I1045)","v":""},{"$f":"IF('1. Order'!J1045=\"\",\"\",'1. Order'!J1045)","v":""},{"$f":"IF('1. Order'!K1045=\"\",\"\",'1. Order'!K1045)","v":""},{"$f":"IF('1. Order'!L1045=\"\",\"\",'1. Order'!L1045)","v":""},{"$f":"IF('1. Order'!M1045=\"\",\"\",'1. Order'!M1045)","v":""},{"$f":"IF('1. Order'!N1045=\"\",\"\",'1. Order'!N1045)","v":""},{"$f":"IF('1. Order'!O1045=\"\",\"\",'1. Order'!O1045)","v":{"$error":"#N/A"}},{"$f":"IF('1. Order'!P1045=\"\",\"\",'1. Order'!P1045)","v":{"$error":"#N/A"}},{"$f":"IF('1. Order'!Q1045=\"\",\"\",'1. Order'!Q1045)","v":""},{"$f":"IF('1. Order'!S1045=\"\",\"\",'1. Order'!S1045)","v":""},{"$f":"IF('1. Order'!T1045=\"\",\"\",'1. Order'!T1045)","v":""},{"$f":"IF('1. Order'!W1045=\"\",\"\",'1. Order'!W1045)","v":""},{"$f":"IF('1. Order'!X1045=\"\",\"\",'1. Order'!X1045)","v":""},{"$f":"IF('1. Order'!Y1045=\"\",\"\",'1. Order'!Y1045)","v":"EUR"},{"$f":"IF('1. Order'!Z1045=\"\",\"\",'1. Order'!Z1045)","v":""},{"$f":"IF('1. Order'!AA1045=\"\",\"\",'1. Order'!AA1045)","v":""},{"$f":"IF('1. Order'!AB1045=\"\",\"\",'1. Order'!AB1045)","v":""},null,{"$f":"IF('1. Order'!AT1045=\"\",\"\",'1. Order'!AT1045)","v":""},{"$f":"IF('1. Order'!AU1045=\"\",\"\",'1. Order'!AU1045)","v":""},null,null,null,null,null,null,null,{"$f":"IF('1. Order'!AY1045=\"\",\"\",'1. Order'!AY1045)","v":""},{"$f":"IF('1. Order'!AZ1045=\"\",\"\",'1. Order'!AZ1045)","v":""},{"$f":"IF('1. Order'!BA1045=\"\",\"\",'1. Order'!BA1045)","v":""},{"$f":"IF('1. Order'!BB1045=\"\",\"\",'1. Order'!BB1045)","v":""},{"$f":"IF('1. Order'!BD1045=\"\",\"\",'1. Order'!BD1045)","v":""},{"$f":"IF('1. Order'!BE1045=\"\",\"\",'1. Order'!BE1045)","v":""},{"$f":"IF('1. Order'!BF1045=\"\",\"\",'1. Order'!BF1045)","v":""},{"$f":"IF('1. Order'!BG1045=\"\",\"\",'1. Order'!BG1045)","v":""},{"$f":"IF('1. Order'!BH1045=\"\",\"\",'1. Order'!BH1045)","v":"ZWO"}]
[{"$f":"IF('1. Order'!F1046=\"\",\"\",'1. Order'!F1046)","v":{"$error":"#N/A"}},{"$f":"IF('1. Order'!G1046=\"\",\"\",'1. Order'!G1046)","v":""},{"$f":"IF('1. Order'!H1046=\"\",\"\",'1. Order'!H1046)","v":""},{"$f":"IF('1. Order'!I1046=\"\",\"\",'1. Order'!I1046)","v":""},{"$f":"IF('1. Order'!J1046=\"\",\"\",'1. Order'!J1046)","v":""},{"$f":"IF('1. Order'!K1046=\"\",\"\",'1. Order'!K1046)","v":""},{"$f":"IF('1. Order'!L1046=\"\",\"\",'1. Order'!L1046)","v":""},{"$f":"IF('1. Order'!M1046=\"\",\"\",'1. Order'!M1046)","v":""},{"$f":"IF('1. Order'!N1046=\"\",\"\",'1. Order'!N1046)","v":""},{"$f":"IF('1. Order'!O1046=\"\",\"\",'1. Order'!O1046)","v":{"$error":"#N/A"}},{"$f":"IF('1. Order'!P1046=\"\",\"\",'1. Order'!P1046)","v":{"$error":"#N/A"}},{"$f":"IF('1. Order'!Q1046=\"\",\"\",'1. Order'!Q1046)","v":""},{"$f":"IF('1. Order'!S1046=\"\",\"\",'1. Order'!S1046)","v":""},{"$f":"IF('1. Order'!T1046=\"\",\"\",'1. Order'!T1046)","v":""},{"$f":"IF('1. Order'!W1046=\"\",\"\",'1. Order'!W1046)","v":""},{"$f":"IF('1. Order'!X1046=\"\",\"\",'1. Order'!X1046)","v":""},{"$f":"IF('1. Order'!Y1046=\"\",\"\",'1. Order'!Y1046)","v":"EUR"},{"$f":"IF('1. Order'!Z1046=\"\",\"\",'1. Order'!Z1046)","v":""},{"$f":"IF('1. Order'!AA1046=\"\",\"\",'1. Order'!AA1046)","v":""},{"$f":"IF('1. Order'!AB1046=\"\",\"\",'1. Order'!AB1046)","v":""},null,{"$f":"IF('1. Order'!AT1046=\"\",\"\",'1. Order'!AT1046)","v":""},{"$f":"IF('1. Order'!AU1046=\"\",\"\",'1. Order'!AU1046)","v":""},null,null,null,null,null,null,null,{"$f":"IF('1. Order'!AY1046=\"\",\"\",'1. Order'!AY1046)","v":""},{"$f":"IF('1. Order'!AZ1046=\"\",\"\",'1. Order'!AZ1046)","v":""},{"$f":"IF('1. Order'!BA1046=\"\",\"\",'1. Order'!BA1046)","v":""},{"$f":"IF('1. Order'!BB1046=\"\",\"\",'1. Order'!BB1046)","v":""},{"$f":"IF('1. Order'!BD1046=\"\",\"\",'1. Order'!BD1046)","v":""},{"$f":"IF('1. Order'!BE1046=\"\",\"\",'1. Order'!BE1046)","v":""},{"$f":"IF('1. Order'!BF1046=\"\",\"\",'1. Order'!BF1046)","v":""},{"$f":"IF('1. Order'!BG1046=\"\",\"\",'1. Order'!BG1046)","v":""},{"$f":"IF('1. Order'!BH1046=\"\",\"\",'1. Order'!BH1046)","v":"ZWO"}]
[{"$f":"IF('1. Order'!F1047=\"\",\"\",'1. Order'!F1047)","v":{"$error":"#N/A"}},{"$f":"IF('1. Order'!G1047=\"\",\"\",'1. Order'!G1047)","v":""},{"$f":"IF('1. Order'!H1047=\"\",\"\",'1. Order'!H1047)","v":""},{"$f":"IF('1. Order'!I1047=\"\",\"\",'1. Order'!I1047)","v":""},{"$f":"IF('1. Order'!J1047=\"\",\"\",'1. Order'!J1047)","v":""},{"$f":"IF('1. Order'!K1047=\"\",\"\",'1. Order'!K1047)","v":""},{"$f":"IF('1. Order'!L1047=\"\",\"\",'1. Order'!L1047)","v":""},{"$f":"IF('1. Order'!M1047=\"\",\"\",'1. Order'!M1047)","v":""},{"$f":"IF('1. Order'!N1047=\"\",\"\",'1. Order'!N1047)","v":""},{"$f":"IF('1. Order'!O1047=\"\",\"\",'1. Order'!O1047)","v":{"$error":"#N/A"}},{"$f":"IF('1. Order'!P1047=\"\",\"\",'1. Order'!P1047)","v":{"$error":"#N/A"}},{"$f":"IF('1. Order'!Q1047=\"\",\"\",'1. Order'!Q1047)","v":""},{"$f":"IF('1. Order'!S1047=\"\",\"\",'1. Order'!S1047)","v":""},{"$f":"IF('1. Order'!T1047=\"\",\"\",'1. Order'!T1047)","v":""},{"$f":"IF('1. Order'!W1047=\"\",\"\",'1. Order'!W1047)","v":""},{"$f":"IF('1. Order'!X1047=\"\",\"\",'1. Order'!X1047)","v":""},{"$f":"IF('1. Order'!Y1047=\"\",\"\",'1. Order'!Y1047)","v":"EUR"},{"$f":"IF('1. Order'!Z1047=\"\",\"\",'1. Order'!Z1047)","v":""},{"$f":"IF('1. Order'!AA1047=\"\",\"\",'1. Order'!AA1047)","v":""},{"$f":"IF('1. Order'!AB1047=\"\",\"\",'1. Order'!AB1047)","v":""},null,{"$f":"IF('1. Order'!AT1047=\"\",\"\",'1. Order'!AT1047)","v":""},{"$f":"IF('1. Order'!AU1047=\"\",\"\",'1. Order'!AU1047)","v":""},null,null,null,null,null,null,null,{"$f":"IF('1. Order'!AY1047=\"\",\"\",'1. Order'!AY1047)","v":""},{"$f":"IF('1. Order'!AZ1047=\"\",\"\",'1. Order'!AZ1047)","v":""},{"$f":"IF('1. Order'!BA1047=\"\",\"\",'1. Order'!BA1047)","v":""},{"$f":"IF('1. Order'!BB1047=\"\",\"\",'1. Order'!BB1047)","v":""},{"$f":"IF('1. Order'!BD1047=\"\",\"\",'1. Order'!BD1047)","v":""},{"$f":"IF('1. Order'!BE1047=\"\",\"\",'1. Order'!BE1047)","v":""},{"$f":"IF('1. Order'!BF1047=\"\",\"\",'1. Order'!BF1047)","v":""},{"$f":"IF('1. Order'!BG1047=\"\",\"\",'1. Order'!BG1047)","v":""},{"$f":"IF('1. Order'!BH1047=\"\",\"\",'1. Order'!BH1047)","v":"ZWO"}]
[{"$f":"IF('1. Order'!F1048=\"\",\"\",'1. Order'!F1048)","v":{"$error":"#N/A"}},{"$f":"IF('1. Order'!G1048=\"\",\"\",'1. Order'!G1048)","v":""},{"$f":"IF('1. Order'!H1048=\"\",\"\",'1. Order'!H1048)","v":""},{"$f":"IF('1. Order'!I1048=\"\",\"\",'1. Order'!I1048)","v":""},{"$f":"IF('1. Order'!J1048=\"\",\"\",'1. Order'!J1048)","v":""},{"$f":"IF('1. Order'!K1048=\"\",\"\",'1. Order'!K1048)","v":""},{"$f":"IF('1. Order'!L1048=\"\",\"\",'1. Order'!L1048)","v":""},{"$f":"IF('1. Order'!M1048=\"\",\"\",'1. Order'!M1048)","v":""},{"$f":"IF('1. Order'!N1048=\"\",\"\",'1. Order'!N1048)","v":""},{"$f":"IF('1. Order'!O1048=\"\",\"\",'1. Order'!O1048)","v":{"$error":"#N/A"}},{"$f":"IF('1. Order'!P1048=\"\",\"\",'1. Order'!P1048)","v":{"$error":"#N/A"}},{"$f":"IF('1. Order'!Q1048=\"\",\"\",'1. Order'!Q1048)","v":""},{"$f":"IF('1. Order'!S1048=\"\",\"\",'1. Order'!S1048)","v":""},{"$f":"IF('1. Order'!T1048=\"\",\"\",'1. Order'!T1048)","v":""},{"$f":"IF('1. Order'!W1048=\"\",\"\",'1. Order'!W1048)","v":""},{"$f":"IF('1. Order'!X1048=\"\",\"\",'1. Order'!X1048)","v":""},{"$f":"IF('1. Order'!Y1048=\"\",\"\",'1. Order'!Y1048)","v":"EUR"},{"$f":"IF('1. Order'!Z1048=\"\",\"\",'1. Order'!Z1048)","v":""},{"$f":"IF('1. Order'!AA1048=\"\",\"\",'1. Order'!AA1048)","v":""},{"$f":"IF('1. Order'!AB1048=\"\",\"\",'1. Order'!AB1048)","v":""},null,{"$f":"IF('1. Order'!AT1048=\"\",\"\",'1. Order'!AT1048)","v":""},{"$f":"IF('1. Order'!AU1048=\"\",\"\",'1. Order'!AU1048)","v":""},null,null,null,null,null,null,null,{"$f":"IF('1. Order'!AY1048=\"\",\"\",'1. Order'!AY1048)","v":""},{"$f":"IF('1. Order'!AZ1048=\"\",\"\",'1. Order'!AZ1048)","v":""},{"$f":"IF('1. Order'!BA1048=\"\",\"\",'1. Order'!BA1048)","v":""},{"$f":"IF('1. Order'!BB1048=\"\",\"\",'1. Order'!BB1048)","v":""},{"$f":"IF('1. Order'!BD1048=\"\",\"\",'1. Order'!BD1048)","v":""},{"$f":"IF('1. Order'!BE1048=\"\",\"\",'1. Order'!BE1048)","v":""},{"$f":"IF('1. Order'!BF1048=\"\",\"\",'1. Order'!BF1048)","v":""},{"$f":"IF('1. Order'!BG1048=\"\",\"\",'1. Order'!BG1048)","v":""},{"$f":"IF('1. Order'!BH1048=\"\",\"\",'1. Order'!BH1048)","v":"ZWO"}]
[{"$f":"IF('1. Order'!F1049=\"\",\"\",'1. Order'!F1049)","v":{"$error":"#N/A"}},{"$f":"IF('1. Order'!G1049=\"\",\"\",'1. Order'!G1049)","v":""},{"$f":"IF('1. Order'!H1049=\"\",\"\",'1. Order'!H1049)","v":""},{"$f":"IF('1. Order'!I1049=\"\",\"\",'1. Order'!I1049)","v":""},{"$f":"IF('1. Order'!J1049=\"\",\"\",'1. Order'!J1049)","v":""},{"$f":"IF('1. Order'!K1049=\"\",\"\",'1. Order'!K1049)","v":""},{"$f":"IF('1. Order'!L1049=\"\",\"\",'1. Order'!L1049)","v":""},{"$f":"IF('1. Order'!M1049=\"\",\"\",'1. Order'!M1049)","v":""},{"$f":"IF('1. Order'!N1049=\"\",\"\",'1. Order'!N1049)","v":""},{"$f":"IF('1. Order'!O1049=\"\",\"\",'1. Order'!O1049)","v":{"$error":"#N/A"}},{"$f":"IF('1. Order'!P1049=\"\",\"\",'1. Order'!P1049)","v":{"$error":"#N/A"}},{"$f":"IF('1. Order'!Q1049=\"\",\"\",'1. Order'!Q1049)","v":""},{"$f":"IF('1. Order'!S1049=\"\",\"\",'1. Order'!S1049)","v":""},{"$f":"IF('1. Order'!T1049=\"\",\"\",'1. Order'!T1049)","v":""},{"$f":"IF('1. Order'!W1049=\"\",\"\",'1. Order'!W1049)","v":""},{"$f":"IF('1. Order'!X1049=\"\",\"\",'1. Order'!X1049)","v":""},{"$f":"IF('1. Order'!Y1049=\"\",\"\",'1. Order'!Y1049)","v":"EUR"},{"$f":"IF('1. Order'!Z1049=\"\",\"\",'1. Order'!Z1049)","v":""},{"$f":"IF('1. Order'!AA1049=\"\",\"\",'1. Order'!AA1049)","v":""},{"$f":"IF('1. Order'!AB1049=\"\",\"\",'1. Order'!AB1049)","v":""},null,{"$f":"IF('1. Order'!AT1049=\"\",\"\",'1. Order'!AT1049)","v":""},{"$f":"IF('1. Order'!AU1049=\"\",\"\",'1. Order'!AU1049)","v":""},null,null,null,null,null,null,null,{"$f":"IF('1. Order'!AY1049=\"\",\"\",'1. Order'!AY1049)","v":""},{"$f":"IF('1. Order'!AZ1049=\"\",\"\",'1. Order'!AZ1049)","v":""},{"$f":"IF('1. Order'!BA1049=\"\",\"\",'1. Order'!BA1049)","v":""},{"$f":"IF('1. Order'!BB1049=\"\",\"\",'1. Order'!BB1049)","v":""},{"$f":"IF('1. Order'!BD1049=\"\",\"\",'1. Order'!BD1049)","v":""},{"$f":"IF('1. Order'!BE1049=\"\",\"\",'1. Order'!BE1049)","v":""},{"$f":"IF('1. Order'!BF1049=\"\",\"\",'1. Order'!BF1049)","v":""},{"$f":"IF('1. Order'!BG1049=\"\",\"\",'1. Order'!BG1049)","v":""},{"$f":"IF('1. Order'!BH1049=\"\",\"\",'1. Order'!BH1049)","v":"ZWO"}]
[{"$f":"IF('1. Order'!F1050=\"\",\"\",'1. Order'!F1050)","v":{"$error":"#N/A"}},{"$f":"IF('1. Order'!G1050=\"\",\"\",'1. Order'!G1050)","v":""},{"$f":"IF('1. Order'!H1050=\"\",\"\",'1. Order'!H1050)","v":""},{"$f":"IF('1. Order'!I1050=\"\",\"\",'1. Order'!I1050)","v":""},{"$f":"IF('1. Order'!J1050=\"\",\"\",'1. Order'!J1050)","v":""},{"$f":"IF('1. Order'!K1050=\"\",\"\",'1. Order'!K1050)","v":""},{"$f":"IF('1. Order'!L1050=\"\",\"\",'1. Order'!L1050)","v":""},{"$f":"IF('1. Order'!M1050=\"\",\"\",'1. Order'!M1050)","v":""},{"$f":"IF('1. Order'!N1050=\"\",\"\",'1. Order'!N1050)","v":""},{"$f":"IF('1. Order'!O1050=\"\",\"\",'1. Order'!O1050)","v":{"$error":"#N/A"}},{"$f":"IF('1. Order'!P1050=\"\",\"\",'1. Order'!P1050)","v":{"$error":"#N/A"}},{"$f":"IF('1. Order'!Q1050=\"\",\"\",'1. Order'!Q1050)","v":""},{"$f":"IF('1. Order'!S1050=\"\",\"\",'1. Order'!S1050)","v":""},{"$f":"IF('1. Order'!T1050=\"\",\"\",'1. Order'!T1050)","v":""},{"$f":"IF('1. Order'!W1050=\"\",\"\",'1. Order'!W1050)","v":""},{"$f":"IF('1. Order'!X1050=\"\",\"\",'1. Order'!X1050)","v":""},{"$f":"IF('1. Order'!Y1050=\"\",\"\",'1. Order'!Y1050)","v":"EUR"},{"$f":"IF('1. Order'!Z1050=\"\",\"\",'1. Order'!Z1050)","v":""},{"$f":"IF('1. Order'!AA1050=\"\",\"\",'1. Order'!AA1050)","v":""},{"$f":"IF('1. Order'!AB1050=\"\",\"\",'1. Order'!AB1050)","v":""},null,{"$f":"IF('1. Order'!AT1050=\"\",\"\",'1. Order'!AT1050)","v":""},{"$f":"IF('1. Order'!AU1050=\"\",\"\",'1. Order'!AU1050)","v":""},null,null,null,null,null,null,null,{"$f":"IF('1. Order'!AY1050=\"\",\"\",'1. Order'!AY1050)","v":""},{"$f":"IF('1. Order'!AZ1050=\"\",\"\",'1. Order'!AZ1050)","v":""},{"$f":"IF('1. Order'!BA1050=\"\",\"\",'1. Order'!BA1050)","v":""},{"$f":"IF('1. Order'!BB1050=\"\",\"\",'1. Order'!BB1050)","v":""},{"$f":"IF('1. Order'!BD1050=\"\",\"\",'1. Order'!BD1050)","v":""},{"$f":"IF('1. Order'!BE1050=\"\",\"\",'1. Order'!BE1050)","v":""},{"$f":"IF('1. Order'!BF1050=\"\",\"\",'1. Order'!BF1050)","v":""},{"$f":"IF('1. Order'!BG1050=\"\",\"\",'1. Order'!BG1050)","v":""},{"$f":"IF('1. Order'!BH1050=\"\",\"\",'1. Order'!BH1050)","v":"ZWO"}]
[{"$f":"IF('1. Order'!F1051=\"\",\"\",'1. Order'!F1051)","v":{"$error":"#N/A"}},{"$f":"IF('1. Order'!G1051=\"\",\"\",'1. Order'!G1051)","v":""},{"$f":"IF('1. Order'!H1051=\"\",\"\",'1. Order'!H1051)","v":""},{"$f":"IF('1. Order'!I1051=\"\",\"\",'1. Order'!I1051)","v":""},{"$f":"IF('1. Order'!J1051=\"\",\"\",'1. Order'!J1051)","v":""},{"$f":"IF('1. Order'!K1051=\"\",\"\",'1. Order'!K1051)","v":""},{"$f":"IF('1. Order'!L1051=\"\",\"\",'1. Order'!L1051)","v":""},{"$f":"IF('1. Order'!M1051=\"\",\"\",'1. Order'!M1051)","v":""},{"$f":"IF('1. Order'!N1051=\"\",\"\",'1. Order'!N1051)","v":""},{"$f":"IF('1. Order'!O1051=\"\",\"\",'1. Order'!O1051)","v":{"$error":"#N/A"}},{"$f":"IF('1. Order'!P1051=\"\",\"\",'1. Order'!P1051)","v":{"$error":"#N/A"}},{"$f":"IF('1. Order'!Q1051=\"\",\"\",'1. Order'!Q1051)","v":""},{"$f":"IF('1. Order'!S1051=\"\",\"\",'1. Order'!S1051)","v":""},{"$f":"IF('1. Order'!T1051=\"\",\"\",'1. Order'!T1051)","v":""},{"$f":"IF('1. Order'!W1051=\"\",\"\",'1. Order'!W1051)","v":""},{"$f":"IF('1. Order'!X1051=\"\",\"\",'1. Order'!X1051)","v":""},{"$f":"IF('1. Order'!Y1051=\"\",\"\",'1. Order'!Y1051)","v":"EUR"},{"$f":"IF('1. Order'!Z1051=\"\",\"\",'1. Order'!Z1051)","v":""},{"$f":"IF('1. Order'!AA1051=\"\",\"\",'1. Order'!AA1051)","v":""},{"$f":"IF('1. Order'!AB1051=\"\",\"\",'1. Order'!AB1051)","v":""},null,{"$f":"IF('1. Order'!AT1051=\"\",\"\",'1. Order'!AT1051)","v":""},{"$f":"IF('1. Order'!AU1051=\"\",\"\",'1. Order'!AU1051)","v":""},null,null,null,null,null,null,null,{"$f":"IF('1. Order'!AY1051=\"\",\"\",'1. Order'!AY1051)","v":""},{"$f":"IF('1. Order'!AZ1051=\"\",\"\",'1. Order'!AZ1051)","v":""},{"$f":"IF('1. Order'!BA1051=\"\",\"\",'1. Order'!BA1051)","v":""},{"$f":"IF('1. Order'!BB1051=\"\",\"\",'1. Order'!BB1051)","v":""},{"$f":"IF('1. Order'!BD1051=\"\",\"\",'1. Order'!BD1051)","v":""},{"$f":"IF('1. Order'!BE1051=\"\",\"\",'1. Order'!BE1051)","v":""},{"$f":"IF('1. Order'!BF1051=\"\",\"\",'1. Order'!BF1051)","v":""},{"$f":"IF('1. Order'!BG1051=\"\",\"\",'1. Order'!BG1051)","v":""},{"$f":"IF('1. Order'!BH1051=\"\",\"\",'1. Order'!BH1051)","v":"ZWO"}]
[{"$f":"IF('1. Order'!F1052=\"\",\"\",'1. Order'!F1052)","v":{"$error":"#N/A"}},{"$f":"IF('1. Order'!G1052=\"\",\"\",'1. Order'!G1052)","v":""},{"$f":"IF('1. Order'!H1052=\"\",\"\",'1. Order'!H1052)","v":""},{"$f":"IF('1. Order'!I1052=\"\",\"\",'1. Order'!I1052)","v":""},{"$f":"IF('1. Order'!J1052=\"\",\"\",'1. Order'!J1052)","v":""},{"$f":"IF('1. Order'!K1052=\"\",\"\",'1. Order'!K1052)","v":""},{"$f":"IF('1. Order'!L1052=\"\",\"\",'1. Order'!L1052)","v":""},{"$f":"IF('1. Order'!M1052=\"\",\"\",'1. Order'!M1052)","v":""},{"$f":"IF('1. Order'!N1052=\"\",\"\",'1. Order'!N1052)","v":""},{"$f":"IF('1. Order'!O1052=\"\",\"\",'1. Order'!O1052)","v":{"$error":"#N/A"}},{"$f":"IF('1. Order'!P1052=\"\",\"\",'1. Order'!P1052)","v":{"$error":"#N/A"}},{"$f":"IF('1. Order'!Q1052=\"\",\"\",'1. Order'!Q1052)","v":""},{"$f":"IF('1. Order'!S1052=\"\",\"\",'1. Order'!S1052)","v":""},{"$f":"IF('1. Order'!T1052=\"\",\"\",'1. Order'!T1052)","v":""},{"$f":"IF('1. Order'!W1052=\"\",\"\",'1. Order'!W1052)","v":""},{"$f":"IF('1. Order'!X1052=\"\",\"\",'1. Order'!X1052)","v":""},{"$f":"IF('1. Order'!Y1052=\"\",\"\",'1. Order'!Y1052)","v":"EUR"},{"$f":"IF('1. Order'!Z1052=\"\",\"\",'1. Order'!Z1052)","v":""},{"$f":"IF('1. Order'!AA1052=\"\",\"\",'1. Order'!AA1052)","v":""},{"$f":"IF('1. Order'!AB1052=\"\",\"\",'1. Order'!AB1052)","v":""},null,{"$f":"IF('1. Order'!AT1052=\"\",\"\",'1. Order'!AT1052)","v":""},{"$f":"IF('1. Order'!AU1052=\"\",\"\",'1. Order'!AU1052)","v":""},null,null,null,null,null,null,null,{"$f":"IF('1. Order'!AY1052=\"\",\"\",'1. Order'!AY1052)","v":""},{"$f":"IF('1. Order'!AZ1052=\"\",\"\",'1. Order'!AZ1052)","v":""},{"$f":"IF('1. Order'!BA1052=\"\",\"\",'1. Order'!BA1052)","v":""},{"$f":"IF('1. Order'!BB1052=\"\",\"\",'1. Order'!BB1052)","v":""},{"$f":"IF('1. Order'!BD1052=\"\",\"\",'1. Order'!BD1052)","v":""},{"$f":"IF('1. Order'!BE1052=\"\",\"\",'1. Order'!BE1052)","v":""},{"$f":"IF('1. Order'!BF1052=\"\",\"\",'1. Order'!BF1052)","v":""},{"$f":"IF('1. Order'!BG1052=\"\",\"\",'1. Order'!BG1052)","v":""},{"$f":"IF('1. Order'!BH1052=\"\",\"\",'1. Order'!BH1052)","v":"ZWO"}]
[{"$f":"IF('1. Order'!F1053=\"\",\"\",'1. Order'!F1053)","v":{"$error":"#N/A"}},{"$f":"IF('1. Order'!G1053=\"\",\"\",'1. Order'!G1053)","v":""},{"$f":"IF('1. Order'!H1053=\"\",\"\",'1. Order'!H1053)","v":""},{"$f":"IF('1. Order'!I1053=\"\",\"\",'1. Order'!I1053)","v":""},{"$f":"IF('1. Order'!J1053=\"\",\"\",'1. Order'!J1053)","v":""},{"$f":"IF('1. Order'!K1053=\"\",\"\",'1. Order'!K1053)","v":""},{"$f":"IF('1. Order'!L1053=\"\",\"\",'1. Order'!L1053)","v":""},{"$f":"IF('1. Order'!M1053=\"\",\"\",'1. Order'!M1053)","v":""},{"$f":"IF('1. Order'!N1053=\"\",\"\",'1. Order'!N1053)","v":""},{"$f":"IF('1. Order'!O1053=\"\",\"\",'1. Order'!O1053)","v":{"$error":"#N/A"}},{"$f":"IF('1. Order'!P1053=\"\",\"\",'1. Order'!P1053)","v":{"$error":"#N/A"}},{"$f":"IF('1. Order'!Q1053=\"\",\"\",'1. Order'!Q1053)","v":""},{"$f":"IF('1. Order'!S1053=\"\",\"\",'1. Order'!S1053)","v":""},{"$f":"IF('1. Order'!T1053=\"\",\"\",'1. Order'!T1053)","v":""},{"$f":"IF('1. Order'!W1053=\"\",\"\",'1. Order'!W1053)","v":""},{"$f":"IF('1. Order'!X1053=\"\",\"\",'1. Order'!X1053)","v":""},{"$f":"IF('1. Order'!Y1053=\"\",\"\",'1. Order'!Y1053)","v":"EUR"},{"$f":"IF('1. Order'!Z1053=\"\",\"\",'1. Order'!Z1053)","v":""},{"$f":"IF('1. Order'!AA1053=\"\",\"\",'1. Order'!AA1053)","v":""},{"$f":"IF('1. Order'!AB1053=\"\",\"\",'1. Order'!AB1053)","v":""},null,{"$f":"IF('1. Order'!AT1053=\"\",\"\",'1. Order'!AT1053)","v":""},{"$f":"IF('1. Order'!AU1053=\"\",\"\",'1. Order'!AU1053)","v":""},null,null,null,null,null,null,null,{"$f":"IF('1. Order'!AY1053=\"\",\"\",'1. Order'!AY1053)","v":""},{"$f":"IF('1. Order'!AZ1053=\"\",\"\",'1. Order'!AZ1053)","v":""},{"$f":"IF('1. Order'!BA1053=\"\",\"\",'1. Order'!BA1053)","v":""},{"$f":"IF('1. Order'!BB1053=\"\",\"\",'1. Order'!BB1053)","v":""},{"$f":"IF('1. Order'!BD1053=\"\",\"\",'1. Order'!BD1053)","v":""},{"$f":"IF('1. Order'!BE1053=\"\",\"\",'1. Order'!BE1053)","v":""},{"$f":"IF('1. Order'!BF1053=\"\",\"\",'1. Order'!BF1053)","v":""},{"$f":"IF('1. Order'!BG1053=\"\",\"\",'1. Order'!BG1053)","v":""},{"$f":"IF('1. Order'!BH1053=\"\",\"\",'1. Order'!BH1053)","v":"ZWO"}]
[{"$f":"IF('1. Order'!F1054=\"\",\"\",'1. Order'!F1054)","v":{"$error":"#N/A"}},{"$f":"IF('1. Order'!G1054=\"\",\"\",'1. Order'!G1054)","v":""},{"$f":"IF('1. Order'!H1054=\"\",\"\",'1. Order'!H1054)","v":""},{"$f":"IF('1. Order'!I1054=\"\",\"\",'1. Order'!I1054)","v":""},{"$f":"IF('1. Order'!J1054=\"\",\"\",'1. Order'!J1054)","v":""},{"$f":"IF('1. Order'!K1054=\"\",\"\",'1. Order'!K1054)","v":""},{"$f":"IF('1. Order'!L1054=\"\",\"\",'1. Order'!L1054)","v":""},{"$f":"IF('1. Order'!M1054=\"\",\"\",'1. Order'!M1054)","v":""},{"$f":"IF('1. Order'!N1054=\"\",\"\",'1. Order'!N1054)","v":""},{"$f":"IF('1. Order'!O1054=\"\",\"\",'1. Order'!O1054)","v":{"$error":"#N/A"}},{"$f":"IF('1. Order'!P1054=\"\",\"\",'1. Order'!P1054)","v":{"$error":"#N/A"}},{"$f":"IF('1. Order'!Q1054=\"\",\"\",'1. Order'!Q1054)","v":""},{"$f":"IF('1. Order'!S1054=\"\",\"\",'1. Order'!S1054)","v":""},{"$f":"IF('1. Order'!T1054=\"\",\"\",'1. Order'!T1054)","v":""},{"$f":"IF('1. Order'!W1054=\"\",\"\",'1. Order'!W1054)","v":""},{"$f":"IF('1. Order'!X1054=\"\",\"\",'1. Order'!X1054)","v":""},{"$f":"IF('1. Order'!Y1054=\"\",\"\",'1. Order'!Y1054)","v":"EUR"},{"$f":"IF('1. Order'!Z1054=\"\",\"\",'1. Order'!Z1054)","v":""},{"$f":"IF('1. Order'!AA1054=\"\",\"\",'1. Order'!AA1054)","v":""},{"$f":"IF('1. Order'!AB1054=\"\",\"\",'1. Order'!AB1054)","v":""},null,{"$f":"IF('1. Order'!AT1054=\"\",\"\",'1. Order'!AT1054)","v":""},{"$f":"IF('1. Order'!AU1054=\"\",\"\",'1. Order'!AU1054)","v":""},null,null,null,null,null,null,null,{"$f":"IF('1. Order'!AY1054=\"\",\"\",'1. Order'!AY1054)","v":""},{"$f":"IF('1. Order'!AZ1054=\"\",\"\",'1. Order'!AZ1054)","v":""},{"$f":"IF('1. Order'!BA1054=\"\",\"\",'1. Order'!BA1054)","v":""},{"$f":"IF('1. Order'!BB1054=\"\",\"\",'1. Order'!BB1054)","v":""},{"$f":"IF('1. Order'!BD1054=\"\",\"\",'1. Order'!BD1054)","v":""},{"$f":"IF('1. Order'!BE1054=\"\",\"\",'1. Order'!BE1054)","v":""},{"$f":"IF('1. Order'!BF1054=\"\",\"\",'1. Order'!BF1054)","v":""},{"$f":"IF('1. Order'!BG1054=\"\",\"\",'1. Order'!BG1054)","v":""},{"$f":"IF('1. Order'!BH1054=\"\",\"\",'1. Order'!BH1054)","v":"ZWO"}]
[{"$f":"IF('1. Order'!F1055=\"\",\"\",'1. Order'!F1055)","v":{"$error":"#N/A"}},{"$f":"IF('1. Order'!G1055=\"\",\"\",'1. Order'!G1055)","v":""},{"$f":"IF('1. Order'!H1055=\"\",\"\",'1. Order'!H1055)","v":""},{"$f":"IF('1. Order'!I1055=\"\",\"\",'1. Order'!I1055)","v":""},{"$f":"IF('1. Order'!J1055=\"\",\"\",'1. Order'!J1055)","v":""},{"$f":"IF('1. Order'!K1055=\"\",\"\",'1. Order'!K1055)","v":""},{"$f":"IF('1. Order'!L1055=\"\",\"\",'1. Order'!L1055)","v":""},{"$f":"IF('1. Order'!M1055=\"\",\"\",'1. Order'!M1055)","v":""},{"$f":"IF('1. Order'!N1055=\"\",\"\",'1. Order'!N1055)","v":""},{"$f":"IF('1. Order'!O1055=\"\",\"\",'1. Order'!O1055)","v":{"$error":"#N/A"}},{"$f":"IF('1. Order'!P1055=\"\",\"\",'1. Order'!P1055)","v":{"$error":"#N/A"}},{"$f":"IF('1. Order'!Q1055=\"\",\"\",'1. Order'!Q1055)","v":""},{"$f":"IF('1. Order'!S1055=\"\",\"\",'1. Order'!S1055)","v":""},{"$f":"IF('1. Order'!T1055=\"\",\"\",'1. Order'!T1055)","v":""},{"$f":"IF('1. Order'!W1055=\"\",\"\",'1. Order'!W1055)","v":""},{"$f":"IF('1. Order'!X1055=\"\",\"\",'1. Order'!X1055)","v":""},{"$f":"IF('1. Order'!Y1055=\"\",\"\",'1. Order'!Y1055)","v":"EUR"},{"$f":"IF('1. Order'!Z1055=\"\",\"\",'1. Order'!Z1055)","v":""},{"$f":"IF('1. Order'!AA1055=\"\",\"\",'1. Order'!AA1055)","v":""},{"$f":"IF('1. Order'!AB1055=\"\",\"\",'1. Order'!AB1055)","v":""},null,{"$f":"IF('1. Order'!AT1055=\"\",\"\",'1. Order'!AT1055)","v":""},{"$f":"IF('1. Order'!AU1055=\"\",\"\",'1. Order'!AU1055)","v":""},null,null,null,null,null,null,null,{"$f":"IF('1. Order'!AY1055=\"\",\"\",'1. Order'!AY1055)","v":""},{"$f":"IF('1. Order'!AZ1055=\"\",\"\",'1. Order'!AZ1055)","v":""},{"$f":"IF('1. Order'!BA1055=\"\",\"\",'1. Order'!BA1055)","v":""},{"$f":"IF('1. Order'!BB1055=\"\",\"\",'1. Order'!BB1055)","v":""},{"$f":"IF('1. Order'!BD1055=\"\",\"\",'1. Order'!BD1055)","v":""},{"$f":"IF('1. Order'!BE1055=\"\",\"\",'1. Order'!BE1055)","v":""},{"$f":"IF('1. Order'!BF1055=\"\",\"\",'1. Order'!BF1055)","v":""},{"$f":"IF('1. Order'!BG1055=\"\",\"\",'1. Order'!BG1055)","v":""},{"$f":"IF('1. Order'!BH1055=\"\",\"\",'1. Order'!BH1055)","v":"ZWO"}]
[{"$f":"IF('1. Order'!F1056=\"\",\"\",'1. Order'!F1056)","v":{"$error":"#N/A"}},{"$f":"IF('1. Order'!G1056=\"\",\"\",'1. Order'!G1056)","v":""},{"$f":"IF('1. Order'!H1056=\"\",\"\",'1. Order'!H1056)","v":""},{"$f":"IF('1. Order'!I1056=\"\",\"\",'1. Order'!I1056)","v":""},{"$f":"IF('1. Order'!J1056=\"\",\"\",'1. Order'!J1056)","v":""},{"$f":"IF('1. Order'!K1056=\"\",\"\",'1. Order'!K1056)","v":""},{"$f":"IF('1. Order'!L1056=\"\",\"\",'1. Order'!L1056)","v":""},{"$f":"IF('1. Order'!M1056=\"\",\"\",'1. Order'!M1056)","v":""},{"$f":"IF('1. Order'!N1056=\"\",\"\",'1. Order'!N1056)","v":""},{"$f":"IF('1. Order'!O1056=\"\",\"\",'1. Order'!O1056)","v":{"$error":"#N/A"}},{"$f":"IF('1. Order'!P1056=\"\",\"\",'1. Order'!P1056)","v":{"$error":"#N/A"}},{"$f":"IF('1. Order'!Q1056=\"\",\"\",'1. Order'!Q1056)","v":""},{"$f":"IF('1. Order'!S1056=\"\",\"\",'1. Order'!S1056)","v":""},{"$f":"IF('1. Order'!T1056=\"\",\"\",'1. Order'!T1056)","v":""},{"$f":"IF('1. Order'!W1056=\"\",\"\",'1. Order'!W1056)","v":""},{"$f":"IF('1. Order'!X1056=\"\",\"\",'1. Order'!X1056)","v":""},{"$f":"IF('1. Order'!Y1056=\"\",\"\",'1. Order'!Y1056)","v":"EUR"},{"$f":"IF('1. Order'!Z1056=\"\",\"\",'1. Order'!Z1056)","v":""},{"$f":"IF('1. Order'!AA1056=\"\",\"\",'1. Order'!AA1056)","v":""},{"$f":"IF('1. Order'!AB1056=\"\",\"\",'1. Order'!AB1056)","v":""},null,{"$f":"IF('1. Order'!AT1056=\"\",\"\",'1. Order'!AT1056)","v":""},{"$f":"IF('1. Order'!AU1056=\"\",\"\",'1. Order'!AU1056)","v":""},null,null,null,null,null,null,null,{"$f":"IF('1. Order'!AY1056=\"\",\"\",'1. Order'!AY1056)","v":""},{"$f":"IF('1. Order'!AZ1056=\"\",\"\",'1. Order'!AZ1056)","v":""},{"$f":"IF('1. Order'!BA1056=\"\",\"\",'1. Order'!BA1056)","v":""},{"$f":"IF('1. Order'!BB1056=\"\",\"\",'1. Order'!BB1056)","v":""},{"$f":"IF('1. Order'!BD1056=\"\",\"\",'1. Order'!BD1056)","v":""},{"$f":"IF('1. Order'!BE1056=\"\",\"\",'1. Order'!BE1056)","v":""},{"$f":"IF('1. Order'!BF1056=\"\",\"\",'1. Order'!BF1056)","v":""},{"$f":"IF('1. Order'!BG1056=\"\",\"\",'1. Order'!BG1056)","v":""},{"$f":"IF('1. Order'!BH1056=\"\",\"\",'1. Order'!BH1056)","v":"ZWO"}]
[{"$f":"IF('1. Order'!F1057=\"\",\"\",'1. Order'!F1057)","v":{"$error":"#N/A"}},{"$f":"IF('1. Order'!G1057=\"\",\"\",'1. Order'!G1057)","v":""},{"$f":"IF('1. Order'!H1057=\"\",\"\",'1. Order'!H1057)","v":""},{"$f":"IF('1. Order'!I1057=\"\",\"\",'1. Order'!I1057)","v":""},{"$f":"IF('1. Order'!J1057=\"\",\"\",'1. Order'!J1057)","v":""},{"$f":"IF('1. Order'!K1057=\"\",\"\",'1. Order'!K1057)","v":""},{"$f":"IF('1. Order'!L1057=\"\",\"\",'1. Order'!L1057)","v":""},{"$f":"IF('1. Order'!M1057=\"\",\"\",'1. Order'!M1057)","v":""},{"$f":"IF('1. Order'!N1057=\"\",\"\",'1. Order'!N1057)","v":""},{"$f":"IF('1. Order'!O1057=\"\",\"\",'1. Order'!O1057)","v":{"$error":"#N/A"}},{"$f":"IF('1. Order'!P1057=\"\",\"\",'1. Order'!P1057)","v":{"$error":"#N/A"}},{"$f":"IF('1. Order'!Q1057=\"\",\"\",'1. Order'!Q1057)","v":""},{"$f":"IF('1. Order'!S1057=\"\",\"\",'1. Order'!S1057)","v":""},{"$f":"IF('1. Order'!T1057=\"\",\"\",'1. Order'!T1057)","v":""},{"$f":"IF('1. Order'!W1057=\"\",\"\",'1. Order'!W1057)","v":""},{"$f":"IF('1. Order'!X1057=\"\",\"\",'1. Order'!X1057)","v":""},{"$f":"IF('1. Order'!Y1057=\"\",\"\",'1. Order'!Y1057)","v":"EUR"},{"$f":"IF('1. Order'!Z1057=\"\",\"\",'1. Order'!Z1057)","v":""},{"$f":"IF('1. Order'!AA1057=\"\",\"\",'1. Order'!AA1057)","v":""},{"$f":"IF('1. Order'!AB1057=\"\",\"\",'1. Order'!AB1057)","v":""},null,{"$f":"IF('1. Order'!AT1057=\"\",\"\",'1. Order'!AT1057)","v":""},{"$f":"IF('1. Order'!AU1057=\"\",\"\",'1. Order'!AU1057)","v":""},null,null,null,null,null,null,null,{"$f":"IF('1. Order'!AY1057=\"\",\"\",'1. Order'!AY1057)","v":""},{"$f":"IF('1. Order'!AZ1057=\"\",\"\",'1. Order'!AZ1057)","v":""},{"$f":"IF('1. Order'!BA1057=\"\",\"\",'1. Order'!BA1057)","v":""},{"$f":"IF('1. Order'!BB1057=\"\",\"\",'1. Order'!BB1057)","v":""},{"$f":"IF('1. Order'!BD1057=\"\",\"\",'1. Order'!BD1057)","v":""},{"$f":"IF('1. Order'!BE1057=\"\",\"\",'1. Order'!BE1057)","v":""},{"$f":"IF('1. Order'!BF1057=\"\",\"\",'1. Order'!BF1057)","v":""},{"$f":"IF('1. Order'!BG1057=\"\",\"\",'1. Order'!BG1057)","v":""},{"$f":"IF('1. Order'!BH1057=\"\",\"\",'1. Order'!BH1057)","v":"ZWO"}]
[{"$f":"IF('1. Order'!F1058=\"\",\"\",'1. Order'!F1058)","v":{"$error":"#N/A"}},{"$f":"IF('1. Order'!G1058=\"\",\"\",'1. Order'!G1058)","v":""},{"$f":"IF('1. Order'!H1058=\"\",\"\",'1. Order'!H1058)","v":""},{"$f":"IF('1. Order'!I1058=\"\",\"\",'1. Order'!I1058)","v":""},{"$f":"IF('1. Order'!J1058=\"\",\"\",'1. Order'!J1058)","v":""},{"$f":"IF('1. Order'!K1058=\"\",\"\",'1. Order'!K1058)","v":""},{"$f":"IF('1. Order'!L1058=\"\",\"\",'1. Order'!L1058)","v":""},{"$f":"IF('1. Order'!M1058=\"\",\"\",'1. Order'!M1058)","v":""},{"$f":"IF('1. Order'!N1058=\"\",\"\",'1. Order'!N1058)","v":""},{"$f":"IF('1. Order'!O1058=\"\",\"\",'1. Order'!O1058)","v":{"$error":"#N/A"}},{"$f":"IF('1. Order'!P1058=\"\",\"\",'1. Order'!P1058)","v":{"$error":"#N/A"}},{"$f":"IF('1. Order'!Q1058=\"\",\"\",'1. Order'!Q1058)","v":""},{"$f":"IF('1. Order'!S1058=\"\",\"\",'1. Order'!S1058)","v":""},{"$f":"IF('1. Order'!T1058=\"\",\"\",'1. Order'!T1058)","v":""},{"$f":"IF('1. Order'!W1058=\"\",\"\",'1. Order'!W1058)","v":""},{"$f":"IF('1. Order'!X1058=\"\",\"\",'1. Order'!X1058)","v":""},{"$f":"IF('1. Order'!Y1058=\"\",\"\",'1. Order'!Y1058)","v":"EUR"},{"$f":"IF('1. Order'!Z1058=\"\",\"\",'1. Order'!Z1058)","v":""},{"$f":"IF('1. Order'!AA1058=\"\",\"\",'1. Order'!AA1058)","v":""},{"$f":"IF('1. Order'!AB1058=\"\",\"\",'1. Order'!AB1058)","v":""},null,{"$f":"IF('1. Order'!AT1058=\"\",\"\",'1. Order'!AT1058)","v":""},{"$f":"IF('1. Order'!AU1058=\"\",\"\",'1. Order'!AU1058)","v":""},null,null,null,null,null,null,null,{"$f":"IF('1. Order'!AY1058=\"\",\"\",'1. Order'!AY1058)","v":""},{"$f":"IF('1. Order'!AZ1058=\"\",\"\",'1. Order'!AZ1058)","v":""},{"$f":"IF('1. Order'!BA1058=\"\",\"\",'1. Order'!BA1058)","v":""},{"$f":"IF('1. Order'!BB1058=\"\",\"\",'1. Order'!BB1058)","v":""},{"$f":"IF('1. Order'!BD1058=\"\",\"\",'1. Order'!BD1058)","v":""},{"$f":"IF('1. Order'!BE1058=\"\",\"\",'1. Order'!BE1058)","v":""},{"$f":"IF('1. Order'!BF1058=\"\",\"\",'1. Order'!BF1058)","v":""},{"$f":"IF('1. Order'!BG1058=\"\",\"\",'1. Order'!BG1058)","v":""},{"$f":"IF('1. Order'!BH1058=\"\",\"\",'1. Order'!BH1058)","v":"ZWO"}]
[{"$f":"IF('1. Order'!F1059=\"\",\"\",'1. Order'!F1059)","v":{"$error":"#N/A"}},{"$f":"IF('1. Order'!G1059=\"\",\"\",'1. Order'!G1059)","v":""},{"$f":"IF('1. Order'!H1059=\"\",\"\",'1. Order'!H1059)","v":""},{"$f":"IF('1. Order'!I1059=\"\",\"\",'1. Order'!I1059)","v":""},{"$f":"IF('1. Order'!J1059=\"\",\"\",'1. Order'!J1059)","v":""},{"$f":"IF('1. Order'!K1059=\"\",\"\",'1. Order'!K1059)","v":""},{"$f":"IF('1. Order'!L1059=\"\",\"\",'1. Order'!L1059)","v":""},{"$f":"IF('1. Order'!M1059=\"\",\"\",'1. Order'!M1059)","v":""},{"$f":"IF('1. Order'!N1059=\"\",\"\",'1. Order'!N1059)","v":""},{"$f":"IF('1. Order'!O1059=\"\",\"\",'1. Order'!O1059)","v":{"$error":"#N/A"}},{"$f":"IF('1. Order'!P1059=\"\",\"\",'1. Order'!P1059)","v":{"$error":"#N/A"}},{"$f":"IF('1. Order'!Q1059=\"\",\"\",'1. Order'!Q1059)","v":""},{"$f":"IF('1. Order'!S1059=\"\",\"\",'1. Order'!S1059)","v":""},{"$f":"IF('1. Order'!T1059=\"\",\"\",'1. Order'!T1059)","v":""},{"$f":"IF('1. Order'!W1059=\"\",\"\",'1. Order'!W1059)","v":""},{"$f":"IF('1. Order'!X1059=\"\",\"\",'1. Order'!X1059)","v":""},{"$f":"IF('1. Order'!Y1059=\"\",\"\",'1. Order'!Y1059)","v":"EUR"},{"$f":"IF('1. Order'!Z1059=\"\",\"\",'1. Order'!Z1059)","v":""},{"$f":"IF('1. Order'!AA1059=\"\",\"\",'1. Order'!AA1059)","v":""},{"$f":"IF('1. Order'!AB1059=\"\",\"\",'1. Order'!AB1059)","v":""},null,{"$f":"IF('1. Order'!AT1059=\"\",\"\",'1. Order'!AT1059)","v":""},{"$f":"IF('1. Order'!AU1059=\"\",\"\",'1. Order'!AU1059)","v":""},null,null,null,null,null,null,null,{"$f":"IF('1. Order'!AY1059=\"\",\"\",'1. Order'!AY1059)","v":""},{"$f":"IF('1. Order'!AZ1059=\"\",\"\",'1. Order'!AZ1059)","v":""},{"$f":"IF('1. Order'!BA1059=\"\",\"\",'1. Order'!BA1059)","v":""},{"$f":"IF('1. Order'!BB1059=\"\",\"\",'1. Order'!BB1059)","v":""},{"$f":"IF('1. Order'!BD1059=\"\",\"\",'1. Order'!BD1059)","v":""},{"$f":"IF('1. Order'!BE1059=\"\",\"\",'1. Order'!BE1059)","v":""},{"$f":"IF('1. Order'!BF1059=\"\",\"\",'1. Order'!BF1059)","v":""},{"$f":"IF('1. Order'!BG1059=\"\",\"\",'1. Order'!BG1059)","v":""},{"$f":"IF('1. Order'!BH1059=\"\",\"\",'1. Order'!BH1059)","v":"ZWO"}]
[{"$f":"IF('1. Order'!F1060=\"\",\"\",'1. Order'!F1060)","v":{"$error":"#N/A"}},{"$f":"IF('1. Order'!G1060=\"\",\"\",'1. Order'!G1060)","v":""},{"$f":"IF('1. Order'!H1060=\"\",\"\",'1. Order'!H1060)","v":""},{"$f":"IF('1. Order'!I1060=\"\",\"\",'1. Order'!I1060)","v":""},{"$f":"IF('1. Order'!J1060=\"\",\"\",'1. Order'!J1060)","v":""},{"$f":"IF('1. Order'!K1060=\"\",\"\",'1. Order'!K1060)","v":""},{"$f":"IF('1. Order'!L1060=\"\",\"\",'1. Order'!L1060)","v":""},{"$f":"IF('1. Order'!M1060=\"\",\"\",'1. Order'!M1060)","v":""},{"$f":"IF('1. Order'!N1060=\"\",\"\",'1. Order'!N1060)","v":""},{"$f":"IF('1. Order'!O1060=\"\",\"\",'1. Order'!O1060)","v":{"$error":"#N/A"}},{"$f":"IF('1. Order'!P1060=\"\",\"\",'1. Order'!P1060)","v":{"$error":"#N/A"}},{"$f":"IF('1. Order'!Q1060=\"\",\"\",'1. Order'!Q1060)","v":""},{"$f":"IF('1. Order'!S1060=\"\",\"\",'1. Order'!S1060)","v":""},{"$f":"IF('1. Order'!T1060=\"\",\"\",'1. Order'!T1060)","v":""},{"$f":"IF('1. Order'!W1060=\"\",\"\",'1. Order'!W1060)","v":""},{"$f":"IF('1. Order'!X1060=\"\",\"\",'1. Order'!X1060)","v":""},{"$f":"IF('1. Order'!Y1060=\"\",\"\",'1. Order'!Y1060)","v":"EUR"},{"$f":"IF('1. Order'!Z1060=\"\",\"\",'1. Order'!Z1060)","v":""},{"$f":"IF('1. Order'!AA1060=\"\",\"\",'1. Order'!AA1060)","v":""},{"$f":"IF('1. Order'!AB1060=\"\",\"\",'1. Order'!AB1060)","v":""},null,{"$f":"IF('1. Order'!AT1060=\"\",\"\",'1. Order'!AT1060)","v":""},{"$f":"IF('1. Order'!AU1060=\"\",\"\",'1. Order'!AU1060)","v":""},null,null,null,null,null,null,null,{"$f":"IF('1. Order'!AY1060=\"\",\"\",'1. Order'!AY1060)","v":""},{"$f":"IF('1. Order'!AZ1060=\"\",\"\",'1. Order'!AZ1060)","v":""},{"$f":"IF('1. Order'!BA1060=\"\",\"\",'1. Order'!BA1060)","v":""},{"$f":"IF('1. Order'!BB1060=\"\",\"\",'1. Order'!BB1060)","v":""},{"$f":"IF('1. Order'!BD1060=\"\",\"\",'1. Order'!BD1060)","v":""},{"$f":"IF('1. Order'!BE1060=\"\",\"\",'1. Order'!BE1060)","v":""},{"$f":"IF('1. Order'!BF1060=\"\",\"\",'1. Order'!BF1060)","v":""},{"$f":"IF('1. Order'!BG1060=\"\",\"\",'1. Order'!BG1060)","v":""},{"$f":"IF('1. Order'!BH1060=\"\",\"\",'1. Order'!BH1060)","v":"ZWO"}]
[{"$f":"IF('1. Order'!F1061=\"\",\"\",'1. Order'!F1061)","v":{"$error":"#N/A"}},{"$f":"IF('1. Order'!G1061=\"\",\"\",'1. Order'!G1061)","v":""},{"$f":"IF('1. Order'!H1061=\"\",\"\",'1. Order'!H1061)","v":""},{"$f":"IF('1. Order'!I1061=\"\",\"\",'1. Order'!I1061)","v":""},{"$f":"IF('1. Order'!J1061=\"\",\"\",'1. Order'!J1061)","v":""},{"$f":"IF('1. Order'!K1061=\"\",\"\",'1. Order'!K1061)","v":""},{"$f":"IF('1. Order'!L1061=\"\",\"\",'1. Order'!L1061)","v":""},{"$f":"IF('1. Order'!M1061=\"\",\"\",'1. Order'!M1061)","v":""},{"$f":"IF('1. Order'!N1061=\"\",\"\",'1. Order'!N1061)","v":""},{"$f":"IF('1. Order'!O1061=\"\",\"\",'1. Order'!O1061)","v":{"$error":"#N/A"}},{"$f":"IF('1. Order'!P1061=\"\",\"\",'1. Order'!P1061)","v":{"$error":"#N/A"}},{"$f":"IF('1. Order'!Q1061=\"\",\"\",'1. Order'!Q1061)","v":""},{"$f":"IF('1. Order'!S1061=\"\",\"\",'1. Order'!S1061)","v":""},{"$f":"IF('1. Order'!T1061=\"\",\"\",'1. Order'!T1061)","v":""},{"$f":"IF('1. Order'!W1061=\"\",\"\",'1. Order'!W1061)","v":""},{"$f":"IF('1. Order'!X1061=\"\",\"\",'1. Order'!X1061)","v":""},{"$f":"IF('1. Order'!Y1061=\"\",\"\",'1. Order'!Y1061)","v":"EUR"},{"$f":"IF('1. Order'!Z1061=\"\",\"\",'1. Order'!Z1061)","v":""},{"$f":"IF('1. Order'!AA1061=\"\",\"\",'1. Order'!AA1061)","v":""},{"$f":"IF('1. Order'!AB1061=\"\",\"\",'1. Order'!AB1061)","v":""},null,{"$f":"IF('1. Order'!AT1061=\"\",\"\",'1. Order'!AT1061)","v":""},{"$f":"IF('1. Order'!AU1061=\"\",\"\",'1. Order'!AU1061)","v":""},null,null,null,null,null,null,null,{"$f":"IF('1. Order'!AY1061=\"\",\"\",'1. Order'!AY1061)","v":""},{"$f":"IF('1. Order'!AZ1061=\"\",\"\",'1. Order'!AZ1061)","v":""},{"$f":"IF('1. Order'!BA1061=\"\",\"\",'1. Order'!BA1061)","v":""},{"$f":"IF('1. Order'!BB1061=\"\",\"\",'1. Order'!BB1061)","v":""},{"$f":"IF('1. Order'!BD1061=\"\",\"\",'1. Order'!BD1061)","v":""},{"$f":"IF('1. Order'!BE1061=\"\",\"\",'1. Order'!BE1061)","v":""},{"$f":"IF('1. Order'!BF1061=\"\",\"\",'1. Order'!BF1061)","v":""},{"$f":"IF('1. Order'!BG1061=\"\",\"\",'1. Order'!BG1061)","v":""},{"$f":"IF('1. Order'!BH1061=\"\",\"\",'1. Order'!BH1061)","v":"ZWO"}]
[{"$f":"IF('1. Order'!F1062=\"\",\"\",'1. Order'!F1062)","v":{"$error":"#N/A"}},{"$f":"IF('1. Order'!G1062=\"\",\"\",'1. Order'!G1062)","v":""},{"$f":"IF('1. Order'!H1062=\"\",\"\",'1. Order'!H1062)","v":""},{"$f":"IF('1. Order'!I1062=\"\",\"\",'1. Order'!I1062)","v":""},{"$f":"IF('1. Order'!J1062=\"\",\"\",'1. Order'!J1062)","v":""},{"$f":"IF('1. Order'!K1062=\"\",\"\",'1. Order'!K1062)","v":""},{"$f":"IF('1. Order'!L1062=\"\",\"\",'1. Order'!L1062)","v":""},{"$f":"IF('1. Order'!M1062=\"\",\"\",'1. Order'!M1062)","v":""},{"$f":"IF('1. Order'!N1062=\"\",\"\",'1. Order'!N1062)","v":""},{"$f":"IF('1. Order'!O1062=\"\",\"\",'1. Order'!O1062)","v":{"$error":"#N/A"}},{"$f":"IF('1. Order'!P1062=\"\",\"\",'1. Order'!P1062)","v":{"$error":"#N/A"}},{"$f":"IF('1. Order'!Q1062=\"\",\"\",'1. Order'!Q1062)","v":""},{"$f":"IF('1. Order'!S1062=\"\",\"\",'1. Order'!S1062)","v":""},{"$f":"IF('1. Order'!T1062=\"\",\"\",'1. Order'!T1062)","v":""},{"$f":"IF('1. Order'!W1062=\"\",\"\",'1. Order'!W1062)","v":""},{"$f":"IF('1. Order'!X1062=\"\",\"\",'1. Order'!X1062)","v":""},{"$f":"IF('1. Order'!Y1062=\"\",\"\",'1. Order'!Y1062)","v":"EUR"},{"$f":"IF('1. Order'!Z1062=\"\",\"\",'1. Order'!Z1062)","v":""},{"$f":"IF('1. Order'!AA1062=\"\",\"\",'1. Order'!AA1062)","v":""},{"$f":"IF('1. Order'!AB1062=\"\",\"\",'1. Order'!AB1062)","v":""},null,{"$f":"IF('1. Order'!AT1062=\"\",\"\",'1. Order'!AT1062)","v":""},{"$f":"IF('1. Order'!AU1062=\"\",\"\",'1. Order'!AU1062)","v":""},null,null,null,null,null,null,null,{"$f":"IF('1. Order'!AY1062=\"\",\"\",'1. Order'!AY1062)","v":""},{"$f":"IF('1. Order'!AZ1062=\"\",\"\",'1. Order'!AZ1062)","v":""},{"$f":"IF('1. Order'!BA1062=\"\",\"\",'1. Order'!BA1062)","v":""},{"$f":"IF('1. Order'!BB1062=\"\",\"\",'1. Order'!BB1062)","v":""},{"$f":"IF('1. Order'!BD1062=\"\",\"\",'1. Order'!BD1062)","v":""},{"$f":"IF('1. Order'!BE1062=\"\",\"\",'1. Order'!BE1062)","v":""},{"$f":"IF('1. Order'!BF1062=\"\",\"\",'1. Order'!BF1062)","v":""},{"$f":"IF('1. Order'!BG1062=\"\",\"\",'1. Order'!BG1062)","v":""},{"$f":"IF('1. Order'!BH1062=\"\",\"\",'1. Order'!BH1062)","v":"ZWO"}]
[{"$f":"IF('1. Order'!F1063=\"\",\"\",'1. Order'!F1063)","v":{"$error":"#N/A"}},{"$f":"IF('1. Order'!G1063=\"\",\"\",'1. Order'!G1063)","v":""},{"$f":"IF('1. Order'!H1063=\"\",\"\",'1. Order'!H1063)","v":""},{"$f":"IF('1. Order'!I1063=\"\",\"\",'1. Order'!I1063)","v":""},{"$f":"IF('1. Order'!J1063=\"\",\"\",'1. Order'!J1063)","v":""},{"$f":"IF('1. Order'!K1063=\"\",\"\",'1. Order'!K1063)","v":""},{"$f":"IF('1. Order'!L1063=\"\",\"\",'1. Order'!L1063)","v":""},{"$f":"IF('1. Order'!M1063=\"\",\"\",'1. Order'!M1063)","v":""},{"$f":"IF('1. Order'!N1063=\"\",\"\",'1. Order'!N1063)","v":""},{"$f":"IF('1. Order'!O1063=\"\",\"\",'1. Order'!O1063)","v":{"$error":"#N/A"}},{"$f":"IF('1. Order'!P1063=\"\",\"\",'1. Order'!P1063)","v":{"$error":"#N/A"}},{"$f":"IF('1. Order'!Q1063=\"\",\"\",'1. Order'!Q1063)","v":""},{"$f":"IF('1. Order'!S1063=\"\",\"\",'1. Order'!S1063)","v":""},{"$f":"IF('1. Order'!T1063=\"\",\"\",'1. Order'!T1063)","v":""},{"$f":"IF('1. Order'!W1063=\"\",\"\",'1. Order'!W1063)","v":""},{"$f":"IF('1. Order'!X1063=\"\",\"\",'1. Order'!X1063)","v":""},{"$f":"IF('1. Order'!Y1063=\"\",\"\",'1. Order'!Y1063)","v":"EUR"},{"$f":"IF('1. Order'!Z1063=\"\",\"\",'1. Order'!Z1063)","v":""},{"$f":"IF('1. Order'!AA1063=\"\",\"\",'1. Order'!AA1063)","v":""},{"$f":"IF('1. Order'!AB1063=\"\",\"\",'1. Order'!AB1063)","v":""},null,{"$f":"IF('1. Order'!AT1063=\"\",\"\",'1. Order'!AT1063)","v":""},{"$f":"IF('1. Order'!AU1063=\"\",\"\",'1. Order'!AU1063)","v":""},null,null,null,null,null,null,null,{"$f":"IF('1. Order'!AY1063=\"\",\"\",'1. Order'!AY1063)","v":""},{"$f":"IF('1. Order'!AZ1063=\"\",\"\",'1. Order'!AZ1063)","v":""},{"$f":"IF('1. Order'!BA1063=\"\",\"\",'1. Order'!BA1063)","v":""},{"$f":"IF('1. Order'!BB1063=\"\",\"\",'1. Order'!BB1063)","v":""},{"$f":"IF('1. Order'!BD1063=\"\",\"\",'1. Order'!BD1063)","v":""},{"$f":"IF('1. Order'!BE1063=\"\",\"\",'1. Order'!BE1063)","v":""},{"$f":"IF('1. Order'!BF1063=\"\",\"\",'1. Order'!BF1063)","v":""},{"$f":"IF('1. Order'!BG1063=\"\",\"\",'1. Order'!BG1063)","v":""},{"$f":"IF('1. Order'!BH1063=\"\",\"\",'1. Order'!BH1063)","v":"ZWO"}]
[{"$f":"IF('1. Order'!F1064=\"\",\"\",'1. Order'!F1064)","v":{"$error":"#N/A"}},{"$f":"IF('1. Order'!G1064=\"\",\"\",'1. Order'!G1064)","v":""},{"$f":"IF('1. Order'!H1064=\"\",\"\",'1. Order'!H1064)","v":""},{"$f":"IF('1. Order'!I1064=\"\",\"\",'1. Order'!I1064)","v":""},{"$f":"IF('1. Order'!J1064=\"\",\"\",'1. Order'!J1064)","v":""},{"$f":"IF('1. Order'!K1064=\"\",\"\",'1. Order'!K1064)","v":""},{"$f":"IF('1. Order'!L1064=\"\",\"\",'1. Order'!L1064)","v":""},{"$f":"IF('1. Order'!M1064=\"\",\"\",'1. Order'!M1064)","v":""},{"$f":"IF('1. Order'!N1064=\"\",\"\",'1. Order'!N1064)","v":""},{"$f":"IF('1. Order'!O1064=\"\",\"\",'1. Order'!O1064)","v":{"$error":"#N/A"}},{"$f":"IF('1. Order'!P1064=\"\",\"\",'1. Order'!P1064)","v":{"$error":"#N/A"}},{"$f":"IF('1. Order'!Q1064=\"\",\"\",'1. Order'!Q1064)","v":""},{"$f":"IF('1. Order'!S1064=\"\",\"\",'1. Order'!S1064)","v":""},{"$f":"IF('1. Order'!T1064=\"\",\"\",'1. Order'!T1064)","v":""},{"$f":"IF('1. Order'!W1064=\"\",\"\",'1. Order'!W1064)","v":""},{"$f":"IF('1. Order'!X1064=\"\",\"\",'1. Order'!X1064)","v":""},{"$f":"IF('1. Order'!Y1064=\"\",\"\",'1. Order'!Y1064)","v":"EUR"},{"$f":"IF('1. Order'!Z1064=\"\",\"\",'1. Order'!Z1064)","v":""},{"$f":"IF('1. Order'!AA1064=\"\",\"\",'1. Order'!AA1064)","v":""},{"$f":"IF('1. Order'!AB1064=\"\",\"\",'1. Order'!AB1064)","v":""},null,{"$f":"IF('1. Order'!AT1064=\"\",\"\",'1. Order'!AT1064)","v":""},{"$f":"IF('1. Order'!AU1064=\"\",\"\",'1. Order'!AU1064)","v":""},null,null,null,null,null,null,null,{"$f":"IF('1. Order'!AY1064=\"\",\"\",'1. Order'!AY1064)","v":""},{"$f":"IF('1. Order'!AZ1064=\"\",\"\",'1. Order'!AZ1064)","v":""},{"$f":"IF('1. Order'!BA1064=\"\",\"\",'1. Order'!BA1064)","v":""},{"$f":"IF('1. Order'!BB1064=\"\",\"\",'1. Order'!BB1064)","v":""},{"$f":"IF('1. Order'!BD1064=\"\",\"\",'1. Order'!BD1064)","v":""},{"$f":"IF('1. Order'!BE1064=\"\",\"\",'1. Order'!BE1064)","v":""},{"$f":"IF('1. Order'!BF1064=\"\",\"\",'1. Order'!BF1064)","v":""},{"$f":"IF('1. Order'!BG1064=\"\",\"\",'1. Order'!BG1064)","v":""},{"$f":"IF('1. Order'!BH1064=\"\",\"\",'1. Order'!BH1064)","v":"ZWO"}]
[{"$f":"IF('1. Order'!F1065=\"\",\"\",'1. Order'!F1065)","v":{"$error":"#N/A"}},{"$f":"IF('1. Order'!G1065=\"\",\"\",'1. Order'!G1065)","v":""},{"$f":"IF('1. Order'!H1065=\"\",\"\",'1. Order'!H1065)","v":""},{"$f":"IF('1. Order'!I1065=\"\",\"\",'1. Order'!I1065)","v":""},{"$f":"IF('1. Order'!J1065=\"\",\"\",'1. Order'!J1065)","v":""},{"$f":"IF('1. Order'!K1065=\"\",\"\",'1. Order'!K1065)","v":""},{"$f":"IF('1. Order'!L1065=\"\",\"\",'1. Order'!L1065)","v":""},{"$f":"IF('1. Order'!M1065=\"\",\"\",'1. Order'!M1065)","v":""},{"$f":"IF('1. Order'!N1065=\"\",\"\",'1. Order'!N1065)","v":""},{"$f":"IF('1. Order'!O1065=\"\",\"\",'1. Order'!O1065)","v":{"$error":"#N/A"}},{"$f":"IF('1. Order'!P1065=\"\",\"\",'1. Order'!P1065)","v":{"$error":"#N/A"}},{"$f":"IF('1. Order'!Q1065=\"\",\"\",'1. Order'!Q1065)","v":""},{"$f":"IF('1. Order'!S1065=\"\",\"\",'1. Order'!S1065)","v":""},{"$f":"IF('1. Order'!T1065=\"\",\"\",'1. Order'!T1065)","v":""},{"$f":"IF('1. Order'!W1065=\"\",\"\",'1. Order'!W1065)","v":""},{"$f":"IF('1. Order'!X1065=\"\",\"\",'1. Order'!X1065)","v":""},{"$f":"IF('1. Order'!Y1065=\"\",\"\",'1. Order'!Y1065)","v":"EUR"},{"$f":"IF('1. Order'!Z1065=\"\",\"\",'1. Order'!Z1065)","v":""},{"$f":"IF('1. Order'!AA1065=\"\",\"\",'1. Order'!AA1065)","v":""},{"$f":"IF('1. Order'!AB1065=\"\",\"\",'1. Order'!AB1065)","v":""},null,{"$f":"IF('1. Order'!AT1065=\"\",\"\",'1. Order'!AT1065)","v":""},{"$f":"IF('1. Order'!AU1065=\"\",\"\",'1. Order'!AU1065)","v":""},null,null,null,null,null,null,null,{"$f":"IF('1. Order'!AY1065=\"\",\"\",'1. Order'!AY1065)","v":""},{"$f":"IF('1. Order'!AZ1065=\"\",\"\",'1. Order'!AZ1065)","v":""},{"$f":"IF('1. Order'!BA1065=\"\",\"\",'1. Order'!BA1065)","v":""},{"$f":"IF('1. Order'!BB1065=\"\",\"\",'1. Order'!BB1065)","v":""},{"$f":"IF('1. Order'!BD1065=\"\",\"\",'1. Order'!BD1065)","v":""},{"$f":"IF('1. Order'!BE1065=\"\",\"\",'1. Order'!BE1065)","v":""},{"$f":"IF('1. Order'!BF1065=\"\",\"\",'1. Order'!BF1065)","v":""},{"$f":"IF('1. Order'!BG1065=\"\",\"\",'1. Order'!BG1065)","v":""},{"$f":"IF('1. Order'!BH1065=\"\",\"\",'1. Order'!BH1065)","v":"ZWO"}]
[{"$f":"IF('1. Order'!F1066=\"\",\"\",'1. Order'!F1066)","v":{"$error":"#N/A"}},{"$f":"IF('1. Order'!G1066=\"\",\"\",'1. Order'!G1066)","v":""},{"$f":"IF('1. Order'!H1066=\"\",\"\",'1. Order'!H1066)","v":""},{"$f":"IF('1. Order'!I1066=\"\",\"\",'1. Order'!I1066)","v":""},{"$f":"IF('1. Order'!J1066=\"\",\"\",'1. Order'!J1066)","v":""},{"$f":"IF('1. Order'!K1066=\"\",\"\",'1. Order'!K1066)","v":""},{"$f":"IF('1. Order'!L1066=\"\",\"\",'1. Order'!L1066)","v":""},{"$f":"IF('1. Order'!M1066=\"\",\"\",'1. Order'!M1066)","v":""},{"$f":"IF('1. Order'!N1066=\"\",\"\",'1. Order'!N1066)","v":""},{"$f":"IF('1. Order'!O1066=\"\",\"\",'1. Order'!O1066)","v":{"$error":"#N/A"}},{"$f":"IF('1. Order'!P1066=\"\",\"\",'1. Order'!P1066)","v":{"$error":"#N/A"}},{"$f":"IF('1. Order'!Q1066=\"\",\"\",'1. Order'!Q1066)","v":""},{"$f":"IF('1. Order'!S1066=\"\",\"\",'1. Order'!S1066)","v":""},{"$f":"IF('1. Order'!T1066=\"\",\"\",'1. Order'!T1066)","v":""},{"$f":"IF('1. Order'!W1066=\"\",\"\",'1. Order'!W1066)","v":""},{"$f":"IF('1. Order'!X1066=\"\",\"\",'1. Order'!X1066)","v":""},{"$f":"IF('1. Order'!Y1066=\"\",\"\",'1. Order'!Y1066)","v":"EUR"},{"$f":"IF('1. Order'!Z1066=\"\",\"\",'1. Order'!Z1066)","v":""},{"$f":"IF('1. Order'!AA1066=\"\",\"\",'1. Order'!AA1066)","v":""},{"$f":"IF('1. Order'!AB1066=\"\",\"\",'1. Order'!AB1066)","v":""},null,{"$f":"IF('1. Order'!AT1066=\"\",\"\",'1. Order'!AT1066)","v":""},{"$f":"IF('1. Order'!AU1066=\"\",\"\",'1. Order'!AU1066)","v":""},null,null,null,null,null,null,null,{"$f":"IF('1. Order'!AY1066=\"\",\"\",'1. Order'!AY1066)","v":""},{"$f":"IF('1. Order'!AZ1066=\"\",\"\",'1. Order'!AZ1066)","v":""},{"$f":"IF('1. Order'!BA1066=\"\",\"\",'1. Order'!BA1066)","v":""},{"$f":"IF('1. Order'!BB1066=\"\",\"\",'1. Order'!BB1066)","v":""},{"$f":"IF('1. Order'!BD1066=\"\",\"\",'1. Order'!BD1066)","v":""},{"$f":"IF('1. Order'!BE1066=\"\",\"\",'1. Order'!BE1066)","v":""},{"$f":"IF('1. Order'!BF1066=\"\",\"\",'1. Order'!BF1066)","v":""},{"$f":"IF('1. Order'!BG1066=\"\",\"\",'1. Order'!BG1066)","v":""},{"$f":"IF('1. Order'!BH1066=\"\",\"\",'1. Order'!BH1066)","v":"ZWO"}]
[{"$f":"IF('1. Order'!F1067=\"\",\"\",'1. Order'!F1067)","v":{"$error":"#N/A"}},{"$f":"IF('1. Order'!G1067=\"\",\"\",'1. Order'!G1067)","v":""},{"$f":"IF('1. Order'!H1067=\"\",\"\",'1. Order'!H1067)","v":""},{"$f":"IF('1. Order'!I1067=\"\",\"\",'1. Order'!I1067)","v":""},{"$f":"IF('1. Order'!J1067=\"\",\"\",'1. Order'!J1067)","v":""},{"$f":"IF('1. Order'!K1067=\"\",\"\",'1. Order'!K1067)","v":""},{"$f":"IF('1. Order'!L1067=\"\",\"\",'1. Order'!L1067)","v":""},{"$f":"IF('1. Order'!M1067=\"\",\"\",'1. Order'!M1067)","v":""},{"$f":"IF('1. Order'!N1067=\"\",\"\",'1. Order'!N1067)","v":""},{"$f":"IF('1. Order'!O1067=\"\",\"\",'1. Order'!O1067)","v":{"$error":"#N/A"}},{"$f":"IF('1. Order'!P1067=\"\",\"\",'1. Order'!P1067)","v":{"$error":"#N/A"}},{"$f":"IF('1. Order'!Q1067=\"\",\"\",'1. Order'!Q1067)","v":""},{"$f":"IF('1. Order'!S1067=\"\",\"\",'1. Order'!S1067)","v":""},{"$f":"IF('1. Order'!T1067=\"\",\"\",'1. Order'!T1067)","v":""},{"$f":"IF('1. Order'!W1067=\"\",\"\",'1. Order'!W1067)","v":""},{"$f":"IF('1. Order'!X1067=\"\",\"\",'1. Order'!X1067)","v":""},{"$f":"IF('1. Order'!Y1067=\"\",\"\",'1. Order'!Y1067)","v":"EUR"},{"$f":"IF('1. Order'!Z1067=\"\",\"\",'1. Order'!Z1067)","v":""},{"$f":"IF('1. Order'!AA1067=\"\",\"\",'1. Order'!AA1067)","v":""},{"$f":"IF('1. Order'!AB1067=\"\",\"\",'1. Order'!AB1067)","v":""},null,{"$f":"IF('1. Order'!AT1067=\"\",\"\",'1. Order'!AT1067)","v":""},{"$f":"IF('1. Order'!AU1067=\"\",\"\",'1. Order'!AU1067)","v":""},null,null,null,null,null,null,null,{"$f":"IF('1. Order'!AY1067=\"\",\"\",'1. Order'!AY1067)","v":""},{"$f":"IF('1. Order'!AZ1067=\"\",\"\",'1. Order'!AZ1067)","v":""},{"$f":"IF('1. Order'!BA1067=\"\",\"\",'1. Order'!BA1067)","v":""},{"$f":"IF('1. Order'!BB1067=\"\",\"\",'1. Order'!BB1067)","v":""},{"$f":"IF('1. Order'!BD1067=\"\",\"\",'1. Order'!BD1067)","v":""},{"$f":"IF('1. Order'!BE1067=\"\",\"\",'1. Order'!BE1067)","v":""},{"$f":"IF('1. Order'!BF1067=\"\",\"\",'1. Order'!BF1067)","v":""},{"$f":"IF('1. Order'!BG1067=\"\",\"\",'1. Order'!BG1067)","v":""},{"$f":"IF('1. Order'!BH1067=\"\",\"\",'1. Order'!BH1067)","v":"ZWO"}]
[{"$f":"IF('1. Order'!F1068=\"\",\"\",'1. Order'!F1068)","v":{"$error":"#N/A"}},{"$f":"IF('1. Order'!G1068=\"\",\"\",'1. Order'!G1068)","v":""},{"$f":"IF('1. Order'!H1068=\"\",\"\",'1. Order'!H1068)","v":""},{"$f":"IF('1. Order'!I1068=\"\",\"\",'1. Order'!I1068)","v":""},{"$f":"IF('1. Order'!J1068=\"\",\"\",'1. Order'!J1068)","v":""},{"$f":"IF('1. Order'!K1068=\"\",\"\",'1. Order'!K1068)","v":""},{"$f":"IF('1. Order'!L1068=\"\",\"\",'1. Order'!L1068)","v":""},{"$f":"IF('1. Order'!M1068=\"\",\"\",'1. Order'!M1068)","v":""},{"$f":"IF('1. Order'!N1068=\"\",\"\",'1. Order'!N1068)","v":""},{"$f":"IF('1. Order'!O1068=\"\",\"\",'1. Order'!O1068)","v":{"$error":"#N/A"}},{"$f":"IF('1. Order'!P1068=\"\",\"\",'1. Order'!P1068)","v":{"$error":"#N/A"}},{"$f":"IF('1. Order'!Q1068=\"\",\"\",'1. Order'!Q1068)","v":""},{"$f":"IF('1. Order'!S1068=\"\",\"\",'1. Order'!S1068)","v":""},{"$f":"IF('1. Order'!T1068=\"\",\"\",'1. Order'!T1068)","v":""},{"$f":"IF('1. Order'!W1068=\"\",\"\",'1. Order'!W1068)","v":""},{"$f":"IF('1. Order'!X1068=\"\",\"\",'1. Order'!X1068)","v":""},{"$f":"IF('1. Order'!Y1068=\"\",\"\",'1. Order'!Y1068)","v":"EUR"},{"$f":"IF('1. Order'!Z1068=\"\",\"\",'1. Order'!Z1068)","v":""},{"$f":"IF('1. Order'!AA1068=\"\",\"\",'1. Order'!AA1068)","v":""},{"$f":"IF('1. Order'!AB1068=\"\",\"\",'1. Order'!AB1068)","v":""},null,{"$f":"IF('1. Order'!AT1068=\"\",\"\",'1. Order'!AT1068)","v":""},{"$f":"IF('1. Order'!AU1068=\"\",\"\",'1. Order'!AU1068)","v":""},null,null,null,null,null,null,null,{"$f":"IF('1. Order'!AY1068=\"\",\"\",'1. Order'!AY1068)","v":""},{"$f":"IF('1. Order'!AZ1068=\"\",\"\",'1. Order'!AZ1068)","v":""},{"$f":"IF('1. Order'!BA1068=\"\",\"\",'1. Order'!BA1068)","v":""},{"$f":"IF('1. Order'!BB1068=\"\",\"\",'1. Order'!BB1068)","v":""},{"$f":"IF('1. Order'!BD1068=\"\",\"\",'1. Order'!BD1068)","v":""},{"$f":"IF('1. Order'!BE1068=\"\",\"\",'1. Order'!BE1068)","v":""},{"$f":"IF('1. Order'!BF1068=\"\",\"\",'1. Order'!BF1068)","v":""},{"$f":"IF('1. Order'!BG1068=\"\",\"\",'1. Order'!BG1068)","v":""},{"$f":"IF('1. Order'!BH1068=\"\",\"\",'1. Order'!BH1068)","v":"ZWO"}]
[{"$f":"IF('1. Order'!F1069=\"\",\"\",'1. Order'!F1069)","v":{"$error":"#N/A"}},{"$f":"IF('1. Order'!G1069=\"\",\"\",'1. Order'!G1069)","v":""},{"$f":"IF('1. Order'!H1069=\"\",\"\",'1. Order'!H1069)","v":""},{"$f":"IF('1. Order'!I1069=\"\",\"\",'1. Order'!I1069)","v":""},{"$f":"IF('1. Order'!J1069=\"\",\"\",'1. Order'!J1069)","v":""},{"$f":"IF('1. Order'!K1069=\"\",\"\",'1. Order'!K1069)","v":""},{"$f":"IF('1. Order'!L1069=\"\",\"\",'1. Order'!L1069)","v":""},{"$f":"IF('1. Order'!M1069=\"\",\"\",'1. Order'!M1069)","v":""},{"$f":"IF('1. Order'!N1069=\"\",\"\",'1. Order'!N1069)","v":""},{"$f":"IF('1. Order'!O1069=\"\",\"\",'1. Order'!O1069)","v":{"$error":"#N/A"}},{"$f":"IF('1. Order'!P1069=\"\",\"\",'1. Order'!P1069)","v":{"$error":"#N/A"}},{"$f":"IF('1. Order'!Q1069=\"\",\"\",'1. Order'!Q1069)","v":""},{"$f":"IF('1. Order'!S1069=\"\",\"\",'1. Order'!S1069)","v":""},{"$f":"IF('1. Order'!T1069=\"\",\"\",'1. Order'!T1069)","v":""},{"$f":"IF('1. Order'!W1069=\"\",\"\",'1. Order'!W1069)","v":""},{"$f":"IF('1. Order'!X1069=\"\",\"\",'1. Order'!X1069)","v":""},{"$f":"IF('1. Order'!Y1069=\"\",\"\",'1. Order'!Y1069)","v":"EUR"},{"$f":"IF('1. Order'!Z1069=\"\",\"\",'1. Order'!Z1069)","v":""},{"$f":"IF('1. Order'!AA1069=\"\",\"\",'1. Order'!AA1069)","v":""},{"$f":"IF('1. Order'!AB1069=\"\",\"\",'1. Order'!AB1069)","v":""},null,{"$f":"IF('1. Order'!AT1069=\"\",\"\",'1. Order'!AT1069)","v":""},{"$f":"IF('1. Order'!AU1069=\"\",\"\",'1. Order'!AU1069)","v":""},null,null,null,null,null,null,null,{"$f":"IF('1. Order'!AY1069=\"\",\"\",'1. Order'!AY1069)","v":""},{"$f":"IF('1. Order'!AZ1069=\"\",\"\",'1. Order'!AZ1069)","v":""},{"$f":"IF('1. Order'!BA1069=\"\",\"\",'1. Order'!BA1069)","v":""},{"$f":"IF('1. Order'!BB1069=\"\",\"\",'1. Order'!BB1069)","v":""},{"$f":"IF('1. Order'!BD1069=\"\",\"\",'1. Order'!BD1069)","v":""},{"$f":"IF('1. Order'!BE1069=\"\",\"\",'1. Order'!BE1069)","v":""},{"$f":"IF('1. Order'!BF1069=\"\",\"\",'1. Order'!BF1069)","v":""},{"$f":"IF('1. Order'!BG1069=\"\",\"\",'1. Order'!BG1069)","v":""},{"$f":"IF('1. Order'!BH1069=\"\",\"\",'1. Order'!BH1069)","v":"ZWO"}]
[{"$f":"IF('1. Order'!F1070=\"\",\"\",'1. Order'!F1070)","v":{"$error":"#N/A"}},{"$f":"IF('1. Order'!G1070=\"\",\"\",'1. Order'!G1070)","v":""},{"$f":"IF('1. Order'!H1070=\"\",\"\",'1. Order'!H1070)","v":""},{"$f":"IF('1. Order'!I1070=\"\",\"\",'1. Order'!I1070)","v":""},{"$f":"IF('1. Order'!J1070=\"\",\"\",'1. Order'!J1070)","v":""},{"$f":"IF('1. Order'!K1070=\"\",\"\",'1. Order'!K1070)","v":""},{"$f":"IF('1. Order'!L1070=\"\",\"\",'1. Order'!L1070)","v":""},{"$f":"IF('1. Order'!M1070=\"\",\"\",'1. Order'!M1070)","v":""},{"$f":"IF('1. Order'!N1070=\"\",\"\",'1. Order'!N1070)","v":""},{"$f":"IF('1. Order'!O1070=\"\",\"\",'1. Order'!O1070)","v":{"$error":"#N/A"}},{"$f":"IF('1. Order'!P1070=\"\",\"\",'1. Order'!P1070)","v":{"$error":"#N/A"}},{"$f":"IF('1. Order'!Q1070=\"\",\"\",'1. Order'!Q1070)","v":""},{"$f":"IF('1. Order'!S1070=\"\",\"\",'1. Order'!S1070)","v":""},{"$f":"IF('1. Order'!T1070=\"\",\"\",'1. Order'!T1070)","v":""},{"$f":"IF('1. Order'!W1070=\"\",\"\",'1. Order'!W1070)","v":""},{"$f":"IF('1. Order'!X1070=\"\",\"\",'1. Order'!X1070)","v":""},{"$f":"IF('1. Order'!Y1070=\"\",\"\",'1. Order'!Y1070)","v":"EUR"},{"$f":"IF('1. Order'!Z1070=\"\",\"\",'1. Order'!Z1070)","v":""},{"$f":"IF('1. Order'!AA1070=\"\",\"\",'1. Order'!AA1070)","v":""},{"$f":"IF('1. Order'!AB1070=\"\",\"\",'1. Order'!AB1070)","v":""},null,{"$f":"IF('1. Order'!AT1070=\"\",\"\",'1. Order'!AT1070)","v":""},{"$f":"IF('1. Order'!AU1070=\"\",\"\",'1. Order'!AU1070)","v":""},null,null,null,null,null,null,null,{"$f":"IF('1. Order'!AY1070=\"\",\"\",'1. Order'!AY1070)","v":""},{"$f":"IF('1. Order'!AZ1070=\"\",\"\",'1. Order'!AZ1070)","v":""},{"$f":"IF('1. Order'!BA1070=\"\",\"\",'1. Order'!BA1070)","v":""},{"$f":"IF('1. Order'!BB1070=\"\",\"\",'1. Order'!BB1070)","v":""},{"$f":"IF('1. Order'!BD1070=\"\",\"\",'1. Order'!BD1070)","v":""},{"$f":"IF('1. Order'!BE1070=\"\",\"\",'1. Order'!BE1070)","v":""},{"$f":"IF('1. Order'!BF1070=\"\",\"\",'1. Order'!BF1070)","v":""},{"$f":"IF('1. Order'!BG1070=\"\",\"\",'1. Order'!BG1070)","v":""},{"$f":"IF('1. Order'!BH1070=\"\",\"\",'1. Order'!BH1070)","v":"ZWO"}]
[{"$f":"IF('1. Order'!F1071=\"\",\"\",'1. Order'!F1071)","v":{"$error":"#N/A"}},{"$f":"IF('1. Order'!G1071=\"\",\"\",'1. Order'!G1071)","v":""},{"$f":"IF('1. Order'!H1071=\"\",\"\",'1. Order'!H1071)","v":""},{"$f":"IF('1. Order'!I1071=\"\",\"\",'1. Order'!I1071)","v":""},{"$f":"IF('1. Order'!J1071=\"\",\"\",'1. Order'!J1071)","v":""},{"$f":"IF('1. Order'!K1071=\"\",\"\",'1. Order'!K1071)","v":""},{"$f":"IF('1. Order'!L1071=\"\",\"\",'1. Order'!L1071)","v":""},{"$f":"IF('1. Order'!M1071=\"\",\"\",'1. Order'!M1071)","v":""},{"$f":"IF('1. Order'!N1071=\"\",\"\",'1. Order'!N1071)","v":""},{"$f":"IF('1. Order'!O1071=\"\",\"\",'1. Order'!O1071)","v":{"$error":"#N/A"}},{"$f":"IF('1. Order'!P1071=\"\",\"\",'1. Order'!P1071)","v":{"$error":"#N/A"}},{"$f":"IF('1. Order'!Q1071=\"\",\"\",'1. Order'!Q1071)","v":""},{"$f":"IF('1. Order'!S1071=\"\",\"\",'1. Order'!S1071)","v":""},{"$f":"IF('1. Order'!T1071=\"\",\"\",'1. Order'!T1071)","v":""},{"$f":"IF('1. Order'!W1071=\"\",\"\",'1. Order'!W1071)","v":""},{"$f":"IF('1. Order'!X1071=\"\",\"\",'1. Order'!X1071)","v":""},{"$f":"IF('1. Order'!Y1071=\"\",\"\",'1. Order'!Y1071)","v":"EUR"},{"$f":"IF('1. Order'!Z1071=\"\",\"\",'1. Order'!Z1071)","v":""},{"$f":"IF('1. Order'!AA1071=\"\",\"\",'1. Order'!AA1071)","v":""},{"$f":"IF('1. Order'!AB1071=\"\",\"\",'1. Order'!AB1071)","v":""},null,{"$f":"IF('1. Order'!AT1071=\"\",\"\",'1. Order'!AT1071)","v":""},{"$f":"IF('1. Order'!AU1071=\"\",\"\",'1. Order'!AU1071)","v":""},null,null,null,null,null,null,null,{"$f":"IF('1. Order'!AY1071=\"\",\"\",'1. Order'!AY1071)","v":""},{"$f":"IF('1. Order'!AZ1071=\"\",\"\",'1. Order'!AZ1071)","v":""},{"$f":"IF('1. Order'!BA1071=\"\",\"\",'1. Order'!BA1071)","v":""},{"$f":"IF('1. Order'!BB1071=\"\",\"\",'1. Order'!BB1071)","v":""},{"$f":"IF('1. Order'!BD1071=\"\",\"\",'1. Order'!BD1071)","v":""},{"$f":"IF('1. Order'!BE1071=\"\",\"\",'1. Order'!BE1071)","v":""},{"$f":"IF('1. Order'!BF1071=\"\",\"\",'1. Order'!BF1071)","v":""},{"$f":"IF('1. Order'!BG1071=\"\",\"\",'1. Order'!BG1071)","v":""},{"$f":"IF('1. Order'!BH1071=\"\",\"\",'1. Order'!BH1071)","v":"ZWO"}]
[{"$f":"IF('1. Order'!F1072=\"\",\"\",'1. Order'!F1072)","v":{"$error":"#N/A"}},{"$f":"IF('1. Order'!G1072=\"\",\"\",'1. Order'!G1072)","v":""},{"$f":"IF('1. Order'!H1072=\"\",\"\",'1. Order'!H1072)","v":""},{"$f":"IF('1. Order'!I1072=\"\",\"\",'1. Order'!I1072)","v":""},{"$f":"IF('1. Order'!J1072=\"\",\"\",'1. Order'!J1072)","v":""},{"$f":"IF('1. Order'!K1072=\"\",\"\",'1. Order'!K1072)","v":""},{"$f":"IF('1. Order'!L1072=\"\",\"\",'1. Order'!L1072)","v":""},{"$f":"IF('1. Order'!M1072=\"\",\"\",'1. Order'!M1072)","v":""},{"$f":"IF('1. Order'!N1072=\"\",\"\",'1. Order'!N1072)","v":""},{"$f":"IF('1. Order'!O1072=\"\",\"\",'1. Order'!O1072)","v":{"$error":"#N/A"}},{"$f":"IF('1. Order'!P1072=\"\",\"\",'1. Order'!P1072)","v":{"$error":"#N/A"}},{"$f":"IF('1. Order'!Q1072=\"\",\"\",'1. Order'!Q1072)","v":""},{"$f":"IF('1. Order'!S1072=\"\",\"\",'1. Order'!S1072)","v":""},{"$f":"IF('1. Order'!T1072=\"\",\"\",'1. Order'!T1072)","v":""},{"$f":"IF('1. Order'!W1072=\"\",\"\",'1. Order'!W1072)","v":""},{"$f":"IF('1. Order'!X1072=\"\",\"\",'1. Order'!X1072)","v":""},{"$f":"IF('1. Order'!Y1072=\"\",\"\",'1. Order'!Y1072)","v":"EUR"},{"$f":"IF('1. Order'!Z1072=\"\",\"\",'1. Order'!Z1072)","v":""},{"$f":"IF('1. Order'!AA1072=\"\",\"\",'1. Order'!AA1072)","v":""},{"$f":"IF('1. Order'!AB1072=\"\",\"\",'1. Order'!AB1072)","v":""},null,{"$f":"IF('1. Order'!AT1072=\"\",\"\",'1. Order'!AT1072)","v":""},{"$f":"IF('1. Order'!AU1072=\"\",\"\",'1. Order'!AU1072)","v":""},null,null,null,null,null,null,null,{"$f":"IF('1. Order'!AY1072=\"\",\"\",'1. Order'!AY1072)","v":""},{"$f":"IF('1. Order'!AZ1072=\"\",\"\",'1. Order'!AZ1072)","v":""},{"$f":"IF('1. Order'!BA1072=\"\",\"\",'1. Order'!BA1072)","v":""},{"$f":"IF('1. Order'!BB1072=\"\",\"\",'1. Order'!BB1072)","v":""},{"$f":"IF('1. Order'!BD1072=\"\",\"\",'1. Order'!BD1072)","v":""},{"$f":"IF('1. Order'!BE1072=\"\",\"\",'1. Order'!BE1072)","v":""},{"$f":"IF('1. Order'!BF1072=\"\",\"\",'1. Order'!BF1072)","v":""},{"$f":"IF('1. Order'!BG1072=\"\",\"\",'1. Order'!BG1072)","v":""},{"$f":"IF('1. Order'!BH1072=\"\",\"\",'1. Order'!BH1072)","v":"ZWO"}]
[{"$f":"IF('1. Order'!F1073=\"\",\"\",'1. Order'!F1073)","v":{"$error":"#N/A"}},{"$f":"IF('1. Order'!G1073=\"\",\"\",'1. Order'!G1073)","v":""},{"$f":"IF('1. Order'!H1073=\"\",\"\",'1. Order'!H1073)","v":""},{"$f":"IF('1. Order'!I1073=\"\",\"\",'1. Order'!I1073)","v":""},{"$f":"IF('1. Order'!J1073=\"\",\"\",'1. Order'!J1073)","v":""},{"$f":"IF('1. Order'!K1073=\"\",\"\",'1. Order'!K1073)","v":""},{"$f":"IF('1. Order'!L1073=\"\",\"\",'1. Order'!L1073)","v":""},{"$f":"IF('1. Order'!M1073=\"\",\"\",'1. Order'!M1073)","v":""},{"$f":"IF('1. Order'!N1073=\"\",\"\",'1. Order'!N1073)","v":""},{"$f":"IF('1. Order'!O1073=\"\",\"\",'1. Order'!O1073)","v":{"$error":"#N/A"}},{"$f":"IF('1. Order'!P1073=\"\",\"\",'1. Order'!P1073)","v":{"$error":"#N/A"}},{"$f":"IF('1. Order'!Q1073=\"\",\"\",'1. Order'!Q1073)","v":""},{"$f":"IF('1. Order'!S1073=\"\",\"\",'1. Order'!S1073)","v":""},{"$f":"IF('1. Order'!T1073=\"\",\"\",'1. Order'!T1073)","v":""},{"$f":"IF('1. Order'!W1073=\"\",\"\",'1. Order'!W1073)","v":""},{"$f":"IF('1. Order'!X1073=\"\",\"\",'1. Order'!X1073)","v":""},{"$f":"IF('1. Order'!Y1073=\"\",\"\",'1. Order'!Y1073)","v":"EUR"},{"$f":"IF('1. Order'!Z1073=\"\",\"\",'1. Order'!Z1073)","v":""},{"$f":"IF('1. Order'!AA1073=\"\",\"\",'1. Order'!AA1073)","v":""},{"$f":"IF('1. Order'!AB1073=\"\",\"\",'1. Order'!AB1073)","v":""},null,{"$f":"IF('1. Order'!AT1073=\"\",\"\",'1. Order'!AT1073)","v":""},{"$f":"IF('1. Order'!AU1073=\"\",\"\",'1. Order'!AU1073)","v":""},null,null,null,null,null,null,null,{"$f":"IF('1. Order'!AY1073=\"\",\"\",'1. Order'!AY1073)","v":""},{"$f":"IF('1. Order'!AZ1073=\"\",\"\",'1. Order'!AZ1073)","v":""},{"$f":"IF('1. Order'!BA1073=\"\",\"\",'1. Order'!BA1073)","v":""},{"$f":"IF('1. Order'!BB1073=\"\",\"\",'1. Order'!BB1073)","v":""},{"$f":"IF('1. Order'!BD1073=\"\",\"\",'1. Order'!BD1073)","v":""},{"$f":"IF('1. Order'!BE1073=\"\",\"\",'1. Order'!BE1073)","v":""},{"$f":"IF('1. Order'!BF1073=\"\",\"\",'1. Order'!BF1073)","v":""},{"$f":"IF('1. Order'!BG1073=\"\",\"\",'1. Order'!BG1073)","v":""},{"$f":"IF('1. Order'!BH1073=\"\",\"\",'1. Order'!BH1073)","v":"ZWO"}]
[{"$f":"IF('1. Order'!F1074=\"\",\"\",'1. Order'!F1074)","v":{"$error":"#N/A"}},{"$f":"IF('1. Order'!G1074=\"\",\"\",'1. Order'!G1074)","v":""},{"$f":"IF('1. Order'!H1074=\"\",\"\",'1. Order'!H1074)","v":""},{"$f":"IF('1. Order'!I1074=\"\",\"\",'1. Order'!I1074)","v":""},{"$f":"IF('1. Order'!J1074=\"\",\"\",'1. Order'!J1074)","v":""},{"$f":"IF('1. Order'!K1074=\"\",\"\",'1. Order'!K1074)","v":""},{"$f":"IF('1. Order'!L1074=\"\",\"\",'1. Order'!L1074)","v":""},{"$f":"IF('1. Order'!M1074=\"\",\"\",'1. Order'!M1074)","v":""},{"$f":"IF('1. Order'!N1074=\"\",\"\",'1. Order'!N1074)","v":""},{"$f":"IF('1. Order'!O1074=\"\",\"\",'1. Order'!O1074)","v":{"$error":"#N/A"}},{"$f":"IF('1. Order'!P1074=\"\",\"\",'1. Order'!P1074)","v":{"$error":"#N/A"}},{"$f":"IF('1. Order'!Q1074=\"\",\"\",'1. Order'!Q1074)","v":""},{"$f":"IF('1. Order'!S1074=\"\",\"\",'1. Order'!S1074)","v":""},{"$f":"IF('1. Order'!T1074=\"\",\"\",'1. Order'!T1074)","v":""},{"$f":"IF('1. Order'!W1074=\"\",\"\",'1. Order'!W1074)","v":""},{"$f":"IF('1. Order'!X1074=\"\",\"\",'1. Order'!X1074)","v":""},{"$f":"IF('1. Order'!Y1074=\"\",\"\",'1. Order'!Y1074)","v":"EUR"},{"$f":"IF('1. Order'!Z1074=\"\",\"\",'1. Order'!Z1074)","v":""},{"$f":"IF('1. Order'!AA1074=\"\",\"\",'1. Order'!AA1074)","v":""},{"$f":"IF('1. Order'!AB1074=\"\",\"\",'1. Order'!AB1074)","v":""},null,{"$f":"IF('1. Order'!AT1074=\"\",\"\",'1. Order'!AT1074)","v":""},{"$f":"IF('1. Order'!AU1074=\"\",\"\",'1. Order'!AU1074)","v":""},null,null,null,null,null,null,null,{"$f":"IF('1. Order'!AY1074=\"\",\"\",'1. Order'!AY1074)","v":""},{"$f":"IF('1. Order'!AZ1074=\"\",\"\",'1. Order'!AZ1074)","v":""},{"$f":"IF('1. Order'!BA1074=\"\",\"\",'1. Order'!BA1074)","v":""},{"$f":"IF('1. Order'!BB1074=\"\",\"\",'1. Order'!BB1074)","v":""},{"$f":"IF('1. Order'!BD1074=\"\",\"\",'1. Order'!BD1074)","v":""},{"$f":"IF('1. Order'!BE1074=\"\",\"\",'1. Order'!BE1074)","v":""},{"$f":"IF('1. Order'!BF1074=\"\",\"\",'1. Order'!BF1074)","v":""},{"$f":"IF('1. Order'!BG1074=\"\",\"\",'1. Order'!BG1074)","v":""},{"$f":"IF('1. Order'!BH1074=\"\",\"\",'1. Order'!BH1074)","v":"ZWO"}]
[{"$f":"IF('1. Order'!F1075=\"\",\"\",'1. Order'!F1075)","v":{"$error":"#N/A"}},{"$f":"IF('1. Order'!G1075=\"\",\"\",'1. Order'!G1075)","v":""},{"$f":"IF('1. Order'!H1075=\"\",\"\",'1. Order'!H1075)","v":""},{"$f":"IF('1. Order'!I1075=\"\",\"\",'1. Order'!I1075)","v":""},{"$f":"IF('1. Order'!J1075=\"\",\"\",'1. Order'!J1075)","v":""},{"$f":"IF('1. Order'!K1075=\"\",\"\",'1. Order'!K1075)","v":""},{"$f":"IF('1. Order'!L1075=\"\",\"\",'1. Order'!L1075)","v":""},{"$f":"IF('1. Order'!M1075=\"\",\"\",'1. Order'!M1075)","v":""},{"$f":"IF('1. Order'!N1075=\"\",\"\",'1. Order'!N1075)","v":""},{"$f":"IF('1. Order'!O1075=\"\",\"\",'1. Order'!O1075)","v":{"$error":"#N/A"}},{"$f":"IF('1. Order'!P1075=\"\",\"\",'1. Order'!P1075)","v":{"$error":"#N/A"}},{"$f":"IF('1. Order'!Q1075=\"\",\"\",'1. Order'!Q1075)","v":""},{"$f":"IF('1. Order'!S1075=\"\",\"\",'1. Order'!S1075)","v":""},{"$f":"IF('1. Order'!T1075=\"\",\"\",'1. Order'!T1075)","v":""},{"$f":"IF('1. Order'!W1075=\"\",\"\",'1. Order'!W1075)","v":""},{"$f":"IF('1. Order'!X1075=\"\",\"\",'1. Order'!X1075)","v":""},{"$f":"IF('1. Order'!Y1075=\"\",\"\",'1. Order'!Y1075)","v":"EUR"},{"$f":"IF('1. Order'!Z1075=\"\",\"\",'1. Order'!Z1075)","v":""},{"$f":"IF('1. Order'!AA1075=\"\",\"\",'1. Order'!AA1075)","v":""},{"$f":"IF('1. Order'!AB1075=\"\",\"\",'1. Order'!AB1075)","v":""},null,{"$f":"IF('1. Order'!AT1075=\"\",\"\",'1. Order'!AT1075)","v":""},{"$f":"IF('1. Order'!AU1075=\"\",\"\",'1. Order'!AU1075)","v":""},null,null,null,null,null,null,null,{"$f":"IF('1. Order'!AY1075=\"\",\"\",'1. Order'!AY1075)","v":""},{"$f":"IF('1. Order'!AZ1075=\"\",\"\",'1. Order'!AZ1075)","v":""},{"$f":"IF('1. Order'!BA1075=\"\",\"\",'1. Order'!BA1075)","v":""},{"$f":"IF('1. Order'!BB1075=\"\",\"\",'1. Order'!BB1075)","v":""},{"$f":"IF('1. Order'!BD1075=\"\",\"\",'1. Order'!BD1075)","v":""},{"$f":"IF('1. Order'!BE1075=\"\",\"\",'1. Order'!BE1075)","v":""},{"$f":"IF('1. Order'!BF1075=\"\",\"\",'1. Order'!BF1075)","v":""},{"$f":"IF('1. Order'!BG1075=\"\",\"\",'1. Order'!BG1075)","v":""},{"$f":"IF('1. Order'!BH1075=\"\",\"\",'1. Order'!BH1075)","v":"ZWO"}]
[{"$f":"IF('1. Order'!F1076=\"\",\"\",'1. Order'!F1076)","v":{"$error":"#N/A"}},{"$f":"IF('1. Order'!G1076=\"\",\"\",'1. Order'!G1076)","v":""},{"$f":"IF('1. Order'!H1076=\"\",\"\",'1. Order'!H1076)","v":""},{"$f":"IF('1. Order'!I1076=\"\",\"\",'1. Order'!I1076)","v":""},{"$f":"IF('1. Order'!J1076=\"\",\"\",'1. Order'!J1076)","v":""},{"$f":"IF('1. Order'!K1076=\"\",\"\",'1. Order'!K1076)","v":""},{"$f":"IF('1. Order'!L1076=\"\",\"\",'1. Order'!L1076)","v":""},{"$f":"IF('1. Order'!M1076=\"\",\"\",'1. Order'!M1076)","v":""},{"$f":"IF('1. Order'!N1076=\"\",\"\",'1. Order'!N1076)","v":""},{"$f":"IF('1. Order'!O1076=\"\",\"\",'1. Order'!O1076)","v":{"$error":"#N/A"}},{"$f":"IF('1. Order'!P1076=\"\",\"\",'1. Order'!P1076)","v":{"$error":"#N/A"}},{"$f":"IF('1. Order'!Q1076=\"\",\"\",'1. Order'!Q1076)","v":""},{"$f":"IF('1. Order'!S1076=\"\",\"\",'1. Order'!S1076)","v":""},{"$f":"IF('1. Order'!T1076=\"\",\"\",'1. Order'!T1076)","v":""},{"$f":"IF('1. Order'!W1076=\"\",\"\",'1. Order'!W1076)","v":""},{"$f":"IF('1. Order'!X1076=\"\",\"\",'1. Order'!X1076)","v":""},{"$f":"IF('1. Order'!Y1076=\"\",\"\",'1. Order'!Y1076)","v":"EUR"},{"$f":"IF('1. Order'!Z1076=\"\",\"\",'1. Order'!Z1076)","v":""},{"$f":"IF('1. Order'!AA1076=\"\",\"\",'1. Order'!AA1076)","v":""},{"$f":"IF('1. Order'!AB1076=\"\",\"\",'1. Order'!AB1076)","v":""},null,{"$f":"IF('1. Order'!AT1076=\"\",\"\",'1. Order'!AT1076)","v":""},{"$f":"IF('1. Order'!AU1076=\"\",\"\",'1. Order'!AU1076)","v":""},null,null,null,null,null,null,null,{"$f":"IF('1. Order'!AY1076=\"\",\"\",'1. Order'!AY1076)","v":""},{"$f":"IF('1. Order'!AZ1076=\"\",\"\",'1. Order'!AZ1076)","v":""},{"$f":"IF('1. Order'!BA1076=\"\",\"\",'1. Order'!BA1076)","v":""},{"$f":"IF('1. Order'!BB1076=\"\",\"\",'1. Order'!BB1076)","v":""},{"$f":"IF('1. Order'!BD1076=\"\",\"\",'1. Order'!BD1076)","v":""},{"$f":"IF('1. Order'!BE1076=\"\",\"\",'1. Order'!BE1076)","v":""},{"$f":"IF('1. Order'!BF1076=\"\",\"\",'1. Order'!BF1076)","v":""},{"$f":"IF('1. Order'!BG1076=\"\",\"\",'1. Order'!BG1076)","v":""},{"$f":"IF('1. Order'!BH1076=\"\",\"\",'1. Order'!BH1076)","v":"ZWO"}]
[{"$f":"IF('1. Order'!F1077=\"\",\"\",'1. Order'!F1077)","v":{"$error":"#N/A"}},{"$f":"IF('1. Order'!G1077=\"\",\"\",'1. Order'!G1077)","v":""},{"$f":"IF('1. Order'!H1077=\"\",\"\",'1. Order'!H1077)","v":""},{"$f":"IF('1. Order'!I1077=\"\",\"\",'1. Order'!I1077)","v":""},{"$f":"IF('1. Order'!J1077=\"\",\"\",'1. Order'!J1077)","v":""},{"$f":"IF('1. Order'!K1077=\"\",\"\",'1. Order'!K1077)","v":""},{"$f":"IF('1. Order'!L1077=\"\",\"\",'1. Order'!L1077)","v":""},{"$f":"IF('1. Order'!M1077=\"\",\"\",'1. Order'!M1077)","v":""},{"$f":"IF('1. Order'!N1077=\"\",\"\",'1. Order'!N1077)","v":""},{"$f":"IF('1. Order'!O1077=\"\",\"\",'1. Order'!O1077)","v":{"$error":"#N/A"}},{"$f":"IF('1. Order'!P1077=\"\",\"\",'1. Order'!P1077)","v":{"$error":"#N/A"}},{"$f":"IF('1. Order'!Q1077=\"\",\"\",'1. Order'!Q1077)","v":""},{"$f":"IF('1. Order'!S1077=\"\",\"\",'1. Order'!S1077)","v":""},{"$f":"IF('1. Order'!T1077=\"\",\"\",'1. Order'!T1077)","v":""},{"$f":"IF('1. Order'!W1077=\"\",\"\",'1. Order'!W1077)","v":""},{"$f":"IF('1. Order'!X1077=\"\",\"\",'1. Order'!X1077)","v":""},{"$f":"IF('1. Order'!Y1077=\"\",\"\",'1. Order'!Y1077)","v":"EUR"},{"$f":"IF('1. Order'!Z1077=\"\",\"\",'1. Order'!Z1077)","v":""},{"$f":"IF('1. Order'!AA1077=\"\",\"\",'1. Order'!AA1077)","v":""},{"$f":"IF('1. Order'!AB1077=\"\",\"\",'1. Order'!AB1077)","v":""},null,{"$f":"IF('1. Order'!AT1077=\"\",\"\",'1. Order'!AT1077)","v":""},{"$f":"IF('1. Order'!AU1077=\"\",\"\",'1. Order'!AU1077)","v":""},null,null,null,null,null,null,null,{"$f":"IF('1. Order'!AY1077=\"\",\"\",'1. Order'!AY1077)","v":""},{"$f":"IF('1. Order'!AZ1077=\"\",\"\",'1. Order'!AZ1077)","v":""},{"$f":"IF('1. Order'!BA1077=\"\",\"\",'1. Order'!BA1077)","v":""},{"$f":"IF('1. Order'!BB1077=\"\",\"\",'1. Order'!BB1077)","v":""},{"$f":"IF('1. Order'!BD1077=\"\",\"\",'1. Order'!BD1077)","v":""},{"$f":"IF('1. Order'!BE1077=\"\",\"\",'1. Order'!BE1077)","v":""},{"$f":"IF('1. Order'!BF1077=\"\",\"\",'1. Order'!BF1077)","v":""},{"$f":"IF('1. Order'!BG1077=\"\",\"\",'1. Order'!BG1077)","v":""},{"$f":"IF('1. Order'!BH1077=\"\",\"\",'1. Order'!BH1077)","v":"ZWO"}]
[{"$f":"IF('1. Order'!F1078=\"\",\"\",'1. Order'!F1078)","v":{"$error":"#N/A"}},{"$f":"IF('1. Order'!G1078=\"\",\"\",'1. Order'!G1078)","v":""},{"$f":"IF('1. Order'!H1078=\"\",\"\",'1. Order'!H1078)","v":""},{"$f":"IF('1. Order'!I1078=\"\",\"\",'1. Order'!I1078)","v":""},{"$f":"IF('1. Order'!J1078=\"\",\"\",'1. Order'!J1078)","v":""},{"$f":"IF('1. Order'!K1078=\"\",\"\",'1. Order'!K1078)","v":""},{"$f":"IF('1. Order'!L1078=\"\",\"\",'1. Order'!L1078)","v":""},{"$f":"IF('1. Order'!M1078=\"\",\"\",'1. Order'!M1078)","v":""},{"$f":"IF('1. Order'!N1078=\"\",\"\",'1. Order'!N1078)","v":""},{"$f":"IF('1. Order'!O1078=\"\",\"\",'1. Order'!O1078)","v":{"$error":"#N/A"}},{"$f":"IF('1. Order'!P1078=\"\",\"\",'1. Order'!P1078)","v":{"$error":"#N/A"}},{"$f":"IF('1. Order'!Q1078=\"\",\"\",'1. Order'!Q1078)","v":""},{"$f":"IF('1. Order'!S1078=\"\",\"\",'1. Order'!S1078)","v":""},{"$f":"IF('1. Order'!T1078=\"\",\"\",'1. Order'!T1078)","v":""},{"$f":"IF('1. Order'!W1078=\"\",\"\",'1. Order'!W1078)","v":""},{"$f":"IF('1. Order'!X1078=\"\",\"\",'1. Order'!X1078)","v":""},{"$f":"IF('1. Order'!Y1078=\"\",\"\",'1. Order'!Y1078)","v":"EUR"},{"$f":"IF('1. Order'!Z1078=\"\",\"\",'1. Order'!Z1078)","v":""},{"$f":"IF('1. Order'!AA1078=\"\",\"\",'1. Order'!AA1078)","v":""},{"$f":"IF('1. Order'!AB1078=\"\",\"\",'1. Order'!AB1078)","v":""},null,{"$f":"IF('1. Order'!AT1078=\"\",\"\",'1. Order'!AT1078)","v":""},{"$f":"IF('1. Order'!AU1078=\"\",\"\",'1. Order'!AU1078)","v":""},null,null,null,null,null,null,null,{"$f":"IF('1. Order'!AY1078=\"\",\"\",'1. Order'!AY1078)","v":""},{"$f":"IF('1. Order'!AZ1078=\"\",\"\",'1. Order'!AZ1078)","v":""},{"$f":"IF('1. Order'!BA1078=\"\",\"\",'1. Order'!BA1078)","v":""},{"$f":"IF('1. Order'!BB1078=\"\",\"\",'1. Order'!BB1078)","v":""},{"$f":"IF('1. Order'!BD1078=\"\",\"\",'1. Order'!BD1078)","v":""},{"$f":"IF('1. Order'!BE1078=\"\",\"\",'1. Order'!BE1078)","v":""},{"$f":"IF('1. Order'!BF1078=\"\",\"\",'1. Order'!BF1078)","v":""},{"$f":"IF('1. Order'!BG1078=\"\",\"\",'1. Order'!BG1078)","v":""},{"$f":"IF('1. Order'!BH1078=\"\",\"\",'1. Order'!BH1078)","v":"ZWO"}]
[{"$f":"IF('1. Order'!F1079=\"\",\"\",'1. Order'!F1079)","v":{"$error":"#N/A"}},{"$f":"IF('1. Order'!G1079=\"\",\"\",'1. Order'!G1079)","v":""},{"$f":"IF('1. Order'!H1079=\"\",\"\",'1. Order'!H1079)","v":""},{"$f":"IF('1. Order'!I1079=\"\",\"\",'1. Order'!I1079)","v":""},{"$f":"IF('1. Order'!J1079=\"\",\"\",'1. Order'!J1079)","v":""},{"$f":"IF('1. Order'!K1079=\"\",\"\",'1. Order'!K1079)","v":""},{"$f":"IF('1. Order'!L1079=\"\",\"\",'1. Order'!L1079)","v":""},{"$f":"IF('1. Order'!M1079=\"\",\"\",'1. Order'!M1079)","v":""},{"$f":"IF('1. Order'!N1079=\"\",\"\",'1. Order'!N1079)","v":""},{"$f":"IF('1. Order'!O1079=\"\",\"\",'1. Order'!O1079)","v":{"$error":"#N/A"}},{"$f":"IF('1. Order'!P1079=\"\",\"\",'1. Order'!P1079)","v":{"$error":"#N/A"}},{"$f":"IF('1. Order'!Q1079=\"\",\"\",'1. Order'!Q1079)","v":""},{"$f":"IF('1. Order'!S1079=\"\",\"\",'1. Order'!S1079)","v":""},{"$f":"IF('1. Order'!T1079=\"\",\"\",'1. Order'!T1079)","v":""},{"$f":"IF('1. Order'!W1079=\"\",\"\",'1. Order'!W1079)","v":""},{"$f":"IF('1. Order'!X1079=\"\",\"\",'1. Order'!X1079)","v":""},{"$f":"IF('1. Order'!Y1079=\"\",\"\",'1. Order'!Y1079)","v":"EUR"},{"$f":"IF('1. Order'!Z1079=\"\",\"\",'1. Order'!Z1079)","v":""},{"$f":"IF('1. Order'!AA1079=\"\",\"\",'1. Order'!AA1079)","v":""},{"$f":"IF('1. Order'!AB1079=\"\",\"\",'1. Order'!AB1079)","v":""},null,{"$f":"IF('1. Order'!AT1079=\"\",\"\",'1. Order'!AT1079)","v":""},{"$f":"IF('1. Order'!AU1079=\"\",\"\",'1. Order'!AU1079)","v":""},null,null,null,null,null,null,null,{"$f":"IF('1. Order'!AY1079=\"\",\"\",'1. Order'!AY1079)","v":""},{"$f":"IF('1. Order'!AZ1079=\"\",\"\",'1. Order'!AZ1079)","v":""},{"$f":"IF('1. Order'!BA1079=\"\",\"\",'1. Order'!BA1079)","v":""},{"$f":"IF('1. Order'!BB1079=\"\",\"\",'1. Order'!BB1079)","v":""},{"$f":"IF('1. Order'!BD1079=\"\",\"\",'1. Order'!BD1079)","v":""},{"$f":"IF('1. Order'!BE1079=\"\",\"\",'1. Order'!BE1079)","v":""},{"$f":"IF('1. Order'!BF1079=\"\",\"\",'1. Order'!BF1079)","v":""},{"$f":"IF('1. Order'!BG1079=\"\",\"\",'1. Order'!BG1079)","v":""},{"$f":"IF('1. Order'!BH1079=\"\",\"\",'1. Order'!BH1079)","v":"ZWO"}]
[{"$f":"IF('1. Order'!F1080=\"\",\"\",'1. Order'!F1080)","v":{"$error":"#N/A"}},{"$f":"IF('1. Order'!G1080=\"\",\"\",'1. Order'!G1080)","v":""},{"$f":"IF('1. Order'!H1080=\"\",\"\",'1. Order'!H1080)","v":""},{"$f":"IF('1. Order'!I1080=\"\",\"\",'1. Order'!I1080)","v":""},{"$f":"IF('1. Order'!J1080=\"\",\"\",'1. Order'!J1080)","v":""},{"$f":"IF('1. Order'!K1080=\"\",\"\",'1. Order'!K1080)","v":""},{"$f":"IF('1. Order'!L1080=\"\",\"\",'1. Order'!L1080)","v":""},{"$f":"IF('1. Order'!M1080=\"\",\"\",'1. Order'!M1080)","v":""},{"$f":"IF('1. Order'!N1080=\"\",\"\",'1. Order'!N1080)","v":""},{"$f":"IF('1. Order'!O1080=\"\",\"\",'1. Order'!O1080)","v":{"$error":"#N/A"}},{"$f":"IF('1. Order'!P1080=\"\",\"\",'1. Order'!P1080)","v":{"$error":"#N/A"}},{"$f":"IF('1. Order'!Q1080=\"\",\"\",'1. Order'!Q1080)","v":""},{"$f":"IF('1. Order'!S1080=\"\",\"\",'1. Order'!S1080)","v":""},{"$f":"IF('1. Order'!T1080=\"\",\"\",'1. Order'!T1080)","v":""},{"$f":"IF('1. Order'!W1080=\"\",\"\",'1. Order'!W1080)","v":""},{"$f":"IF('1. Order'!X1080=\"\",\"\",'1. Order'!X1080)","v":""},{"$f":"IF('1. Order'!Y1080=\"\",\"\",'1. Order'!Y1080)","v":"EUR"},{"$f":"IF('1. Order'!Z1080=\"\",\"\",'1. Order'!Z1080)","v":""},{"$f":"IF('1. Order'!AA1080=\"\",\"\",'1. Order'!AA1080)","v":""},{"$f":"IF('1. Order'!AB1080=\"\",\"\",'1. Order'!AB1080)","v":""},null,{"$f":"IF('1. Order'!AT1080=\"\",\"\",'1. Order'!AT1080)","v":""},{"$f":"IF('1. Order'!AU1080=\"\",\"\",'1. Order'!AU1080)","v":""},null,null,null,null,null,null,null,{"$f":"IF('1. Order'!AY1080=\"\",\"\",'1. Order'!AY1080)","v":""},{"$f":"IF('1. Order'!AZ1080=\"\",\"\",'1. Order'!AZ1080)","v":""},{"$f":"IF('1. Order'!BA1080=\"\",\"\",'1. Order'!BA1080)","v":""},{"$f":"IF('1. Order'!BB1080=\"\",\"\",'1. Order'!BB1080)","v":""},{"$f":"IF('1. Order'!BD1080=\"\",\"\",'1. Order'!BD1080)","v":""},{"$f":"IF('1. Order'!BE1080=\"\",\"\",'1. Order'!BE1080)","v":""},{"$f":"IF('1. Order'!BF1080=\"\",\"\",'1. Order'!BF1080)","v":""},{"$f":"IF('1. Order'!BG1080=\"\",\"\",'1. Order'!BG1080)","v":""},{"$f":"IF('1. Order'!BH1080=\"\",\"\",'1. Order'!BH1080)","v":"ZWO"}]
[{"$f":"IF('1. Order'!F1081=\"\",\"\",'1. Order'!F1081)","v":{"$error":"#N/A"}},{"$f":"IF('1. Order'!G1081=\"\",\"\",'1. Order'!G1081)","v":""},{"$f":"IF('1. Order'!H1081=\"\",\"\",'1. Order'!H1081)","v":""},{"$f":"IF('1. Order'!I1081=\"\",\"\",'1. Order'!I1081)","v":""},{"$f":"IF('1. Order'!J1081=\"\",\"\",'1. Order'!J1081)","v":""},{"$f":"IF('1. Order'!K1081=\"\",\"\",'1. Order'!K1081)","v":""},{"$f":"IF('1. Order'!L1081=\"\",\"\",'1. Order'!L1081)","v":""},{"$f":"IF('1. Order'!M1081=\"\",\"\",'1. Order'!M1081)","v":""},{"$f":"IF('1. Order'!N1081=\"\",\"\",'1. Order'!N1081)","v":""},{"$f":"IF('1. Order'!O1081=\"\",\"\",'1. Order'!O1081)","v":{"$error":"#N/A"}},{"$f":"IF('1. Order'!P1081=\"\",\"\",'1. Order'!P1081)","v":{"$error":"#N/A"}},{"$f":"IF('1. Order'!Q1081=\"\",\"\",'1. Order'!Q1081)","v":""},{"$f":"IF('1. Order'!S1081=\"\",\"\",'1. Order'!S1081)","v":""},{"$f":"IF('1. Order'!T1081=\"\",\"\",'1. Order'!T1081)","v":""},{"$f":"IF('1. Order'!W1081=\"\",\"\",'1. Order'!W1081)","v":""},{"$f":"IF('1. Order'!X1081=\"\",\"\",'1. Order'!X1081)","v":""},{"$f":"IF('1. Order'!Y1081=\"\",\"\",'1. Order'!Y1081)","v":"EUR"},{"$f":"IF('1. Order'!Z1081=\"\",\"\",'1. Order'!Z1081)","v":""},{"$f":"IF('1. Order'!AA1081=\"\",\"\",'1. Order'!AA1081)","v":""},{"$f":"IF('1. Order'!AB1081=\"\",\"\",'1. Order'!AB1081)","v":""},null,{"$f":"IF('1. Order'!AT1081=\"\",\"\",'1. Order'!AT1081)","v":""},{"$f":"IF('1. Order'!AU1081=\"\",\"\",'1. Order'!AU1081)","v":""},null,null,null,null,null,null,null,{"$f":"IF('1. Order'!AY1081=\"\",\"\",'1. Order'!AY1081)","v":""},{"$f":"IF('1. Order'!AZ1081=\"\",\"\",'1. Order'!AZ1081)","v":""},{"$f":"IF('1. Order'!BA1081=\"\",\"\",'1. Order'!BA1081)","v":""},{"$f":"IF('1. Order'!BB1081=\"\",\"\",'1. Order'!BB1081)","v":""},{"$f":"IF('1. Order'!BD1081=\"\",\"\",'1. Order'!BD1081)","v":""},{"$f":"IF('1. Order'!BE1081=\"\",\"\",'1. Order'!BE1081)","v":""},{"$f":"IF('1. Order'!BF1081=\"\",\"\",'1. Order'!BF1081)","v":""},{"$f":"IF('1. Order'!BG1081=\"\",\"\",'1. Order'!BG1081)","v":""},{"$f":"IF('1. Order'!BH1081=\"\",\"\",'1. Order'!BH1081)","v":"ZWO"}]
[{"$f":"IF('1. Order'!F1082=\"\",\"\",'1. Order'!F1082)","v":{"$error":"#N/A"}},{"$f":"IF('1. Order'!G1082=\"\",\"\",'1. Order'!G1082)","v":""},{"$f":"IF('1. Order'!H1082=\"\",\"\",'1. Order'!H1082)","v":""},{"$f":"IF('1. Order'!I1082=\"\",\"\",'1. Order'!I1082)","v":""},{"$f":"IF('1. Order'!J1082=\"\",\"\",'1. Order'!J1082)","v":""},{"$f":"IF('1. Order'!K1082=\"\",\"\",'1. Order'!K1082)","v":""},{"$f":"IF('1. Order'!L1082=\"\",\"\",'1. Order'!L1082)","v":""},{"$f":"IF('1. Order'!M1082=\"\",\"\",'1. Order'!M1082)","v":""},{"$f":"IF('1. Order'!N1082=\"\",\"\",'1. Order'!N1082)","v":""},{"$f":"IF('1. Order'!O1082=\"\",\"\",'1. Order'!O1082)","v":{"$error":"#N/A"}},{"$f":"IF('1. Order'!P1082=\"\",\"\",'1. Order'!P1082)","v":{"$error":"#N/A"}},{"$f":"IF('1. Order'!Q1082=\"\",\"\",'1. Order'!Q1082)","v":""},{"$f":"IF('1. Order'!S1082=\"\",\"\",'1. Order'!S1082)","v":""},{"$f":"IF('1. Order'!T1082=\"\",\"\",'1. Order'!T1082)","v":""},{"$f":"IF('1. Order'!W1082=\"\",\"\",'1. Order'!W1082)","v":""},{"$f":"IF('1. Order'!X1082=\"\",\"\",'1. Order'!X1082)","v":""},{"$f":"IF('1. Order'!Y1082=\"\",\"\",'1. Order'!Y1082)","v":"EUR"},{"$f":"IF('1. Order'!Z1082=\"\",\"\",'1. Order'!Z1082)","v":""},{"$f":"IF('1. Order'!AA1082=\"\",\"\",'1. Order'!AA1082)","v":""},{"$f":"IF('1. Order'!AB1082=\"\",\"\",'1. Order'!AB1082)","v":""},null,{"$f":"IF('1. Order'!AT1082=\"\",\"\",'1. Order'!AT1082)","v":""},{"$f":"IF('1. Order'!AU1082=\"\",\"\",'1. Order'!AU1082)","v":""},null,null,null,null,null,null,null,{"$f":"IF('1. Order'!AY1082=\"\",\"\",'1. Order'!AY1082)","v":""},{"$f":"IF('1. Order'!AZ1082=\"\",\"\",'1. Order'!AZ1082)","v":""},{"$f":"IF('1. Order'!BA1082=\"\",\"\",'1. Order'!BA1082)","v":""},{"$f":"IF('1. Order'!BB1082=\"\",\"\",'1. Order'!BB1082)","v":""},{"$f":"IF('1. Order'!BD1082=\"\",\"\",'1. Order'!BD1082)","v":""},{"$f":"IF('1. Order'!BE1082=\"\",\"\",'1. Order'!BE1082)","v":""},{"$f":"IF('1. Order'!BF1082=\"\",\"\",'1. Order'!BF1082)","v":""},{"$f":"IF('1. Order'!BG1082=\"\",\"\",'1. Order'!BG1082)","v":""},{"$f":"IF('1. Order'!BH1082=\"\",\"\",'1. Order'!BH1082)","v":"ZWO"}]
[{"$f":"IF('1. Order'!F1083=\"\",\"\",'1. Order'!F1083)","v":{"$error":"#N/A"}},{"$f":"IF('1. Order'!G1083=\"\",\"\",'1. Order'!G1083)","v":""},{"$f":"IF('1. Order'!H1083=\"\",\"\",'1. Order'!H1083)","v":""},{"$f":"IF('1. Order'!I1083=\"\",\"\",'1. Order'!I1083)","v":""},{"$f":"IF('1. Order'!J1083=\"\",\"\",'1. Order'!J1083)","v":""},{"$f":"IF('1. Order'!K1083=\"\",\"\",'1. Order'!K1083)","v":""},{"$f":"IF('1. Order'!L1083=\"\",\"\",'1. Order'!L1083)","v":""},{"$f":"IF('1. Order'!M1083=\"\",\"\",'1. Order'!M1083)","v":""},{"$f":"IF('1. Order'!N1083=\"\",\"\",'1. Order'!N1083)","v":""},{"$f":"IF('1. Order'!O1083=\"\",\"\",'1. Order'!O1083)","v":{"$error":"#N/A"}},{"$f":"IF('1. Order'!P1083=\"\",\"\",'1. Order'!P1083)","v":{"$error":"#N/A"}},{"$f":"IF('1. Order'!Q1083=\"\",\"\",'1. Order'!Q1083)","v":""},{"$f":"IF('1. Order'!S1083=\"\",\"\",'1. Order'!S1083)","v":""},{"$f":"IF('1. Order'!T1083=\"\",\"\",'1. Order'!T1083)","v":""},{"$f":"IF('1. Order'!W1083=\"\",\"\",'1. Order'!W1083)","v":""},{"$f":"IF('1. Order'!X1083=\"\",\"\",'1. Order'!X1083)","v":""},{"$f":"IF('1. Order'!Y1083=\"\",\"\",'1. Order'!Y1083)","v":"EUR"},{"$f":"IF('1. Order'!Z1083=\"\",\"\",'1. Order'!Z1083)","v":""},{"$f":"IF('1. Order'!AA1083=\"\",\"\",'1. Order'!AA1083)","v":""},{"$f":"IF('1. Order'!AB1083=\"\",\"\",'1. Order'!AB1083)","v":""},null,{"$f":"IF('1. Order'!AT1083=\"\",\"\",'1. Order'!AT1083)","v":""},{"$f":"IF('1. Order'!AU1083=\"\",\"\",'1. Order'!AU1083)","v":""},null,null,null,null,null,null,null,{"$f":"IF('1. Order'!AY1083=\"\",\"\",'1. Order'!AY1083)","v":""},{"$f":"IF('1. Order'!AZ1083=\"\",\"\",'1. Order'!AZ1083)","v":""},{"$f":"IF('1. Order'!BA1083=\"\",\"\",'1. Order'!BA1083)","v":""},{"$f":"IF('1. Order'!BB1083=\"\",\"\",'1. Order'!BB1083)","v":""},{"$f":"IF('1. Order'!BD1083=\"\",\"\",'1. Order'!BD1083)","v":""},{"$f":"IF('1. Order'!BE1083=\"\",\"\",'1. Order'!BE1083)","v":""},{"$f":"IF('1. Order'!BF1083=\"\",\"\",'1. Order'!BF1083)","v":""},{"$f":"IF('1. Order'!BG1083=\"\",\"\",'1. Order'!BG1083)","v":""},{"$f":"IF('1. Order'!BH1083=\"\",\"\",'1. Order'!BH1083)","v":"ZWO"}]
[{"$f":"IF('1. Order'!F1084=\"\",\"\",'1. Order'!F1084)","v":{"$error":"#N/A"}},{"$f":"IF('1. Order'!G1084=\"\",\"\",'1. Order'!G1084)","v":""},{"$f":"IF('1. Order'!H1084=\"\",\"\",'1. Order'!H1084)","v":""},{"$f":"IF('1. Order'!I1084=\"\",\"\",'1. Order'!I1084)","v":""},{"$f":"IF('1. Order'!J1084=\"\",\"\",'1. Order'!J1084)","v":""},{"$f":"IF('1. Order'!K1084=\"\",\"\",'1. Order'!K1084)","v":""},{"$f":"IF('1. Order'!L1084=\"\",\"\",'1. Order'!L1084)","v":""},{"$f":"IF('1. Order'!M1084=\"\",\"\",'1. Order'!M1084)","v":""},{"$f":"IF('1. Order'!N1084=\"\",\"\",'1. Order'!N1084)","v":""},{"$f":"IF('1. Order'!O1084=\"\",\"\",'1. Order'!O1084)","v":{"$error":"#N/A"}},{"$f":"IF('1. Order'!P1084=\"\",\"\",'1. Order'!P1084)","v":{"$error":"#N/A"}},{"$f":"IF('1. Order'!Q1084=\"\",\"\",'1. Order'!Q1084)","v":""},{"$f":"IF('1. Order'!S1084=\"\",\"\",'1. Order'!S1084)","v":""},{"$f":"IF('1. Order'!T1084=\"\",\"\",'1. Order'!T1084)","v":""},{"$f":"IF('1. Order'!W1084=\"\",\"\",'1. Order'!W1084)","v":""},{"$f":"IF('1. Order'!X1084=\"\",\"\",'1. Order'!X1084)","v":""},{"$f":"IF('1. Order'!Y1084=\"\",\"\",'1. Order'!Y1084)","v":"EUR"},{"$f":"IF('1. Order'!Z1084=\"\",\"\",'1. Order'!Z1084)","v":""},{"$f":"IF('1. Order'!AA1084=\"\",\"\",'1. Order'!AA1084)","v":""},{"$f":"IF('1. Order'!AB1084=\"\",\"\",'1. Order'!AB1084)","v":""},null,{"$f":"IF('1. Order'!AT1084=\"\",\"\",'1. Order'!AT1084)","v":""},{"$f":"IF('1. Order'!AU1084=\"\",\"\",'1. Order'!AU1084)","v":""},null,null,null,null,null,null,null,{"$f":"IF('1. Order'!AY1084=\"\",\"\",'1. Order'!AY1084)","v":""},{"$f":"IF('1. Order'!AZ1084=\"\",\"\",'1. Order'!AZ1084)","v":""},{"$f":"IF('1. Order'!BA1084=\"\",\"\",'1. Order'!BA1084)","v":""},{"$f":"IF('1. Order'!BB1084=\"\",\"\",'1. Order'!BB1084)","v":""},{"$f":"IF('1. Order'!BD1084=\"\",\"\",'1. Order'!BD1084)","v":""},{"$f":"IF('1. Order'!BE1084=\"\",\"\",'1. Order'!BE1084)","v":""},{"$f":"IF('1. Order'!BF1084=\"\",\"\",'1. Order'!BF1084)","v":""},{"$f":"IF('1. Order'!BG1084=\"\",\"\",'1. Order'!BG1084)","v":""},{"$f":"IF('1. Order'!BH1084=\"\",\"\",'1. Order'!BH1084)","v":"ZWO"}]
[{"$f":"IF('1. Order'!F1085=\"\",\"\",'1. Order'!F1085)","v":{"$error":"#N/A"}},{"$f":"IF('1. Order'!G1085=\"\",\"\",'1. Order'!G1085)","v":""},{"$f":"IF('1. Order'!H1085=\"\",\"\",'1. Order'!H1085)","v":""},{"$f":"IF('1. Order'!I1085=\"\",\"\",'1. Order'!I1085)","v":""},{"$f":"IF('1. Order'!J1085=\"\",\"\",'1. Order'!J1085)","v":""},{"$f":"IF('1. Order'!K1085=\"\",\"\",'1. Order'!K1085)","v":""},{"$f":"IF('1. Order'!L1085=\"\",\"\",'1. Order'!L1085)","v":""},{"$f":"IF('1. Order'!M1085=\"\",\"\",'1. Order'!M1085)","v":""},{"$f":"IF('1. Order'!N1085=\"\",\"\",'1. Order'!N1085)","v":""},{"$f":"IF('1. Order'!O1085=\"\",\"\",'1. Order'!O1085)","v":{"$error":"#N/A"}},{"$f":"IF('1. Order'!P1085=\"\",\"\",'1. Order'!P1085)","v":{"$error":"#N/A"}},{"$f":"IF('1. Order'!Q1085=\"\",\"\",'1. Order'!Q1085)","v":""},{"$f":"IF('1. Order'!S1085=\"\",\"\",'1. Order'!S1085)","v":""},{"$f":"IF('1. Order'!T1085=\"\",\"\",'1. Order'!T1085)","v":""},{"$f":"IF('1. Order'!W1085=\"\",\"\",'1. Order'!W1085)","v":""},{"$f":"IF('1. Order'!X1085=\"\",\"\",'1. Order'!X1085)","v":""},{"$f":"IF('1. Order'!Y1085=\"\",\"\",'1. Order'!Y1085)","v":"EUR"},{"$f":"IF('1. Order'!Z1085=\"\",\"\",'1. Order'!Z1085)","v":""},{"$f":"IF('1. Order'!AA1085=\"\",\"\",'1. Order'!AA1085)","v":""},{"$f":"IF('1. Order'!AB1085=\"\",\"\",'1. Order'!AB1085)","v":""},null,{"$f":"IF('1. Order'!AT1085=\"\",\"\",'1. Order'!AT1085)","v":""},{"$f":"IF('1. Order'!AU1085=\"\",\"\",'1. Order'!AU1085)","v":""},null,null,null,null,null,null,null,{"$f":"IF('1. Order'!AY1085=\"\",\"\",'1. Order'!AY1085)","v":""},{"$f":"IF('1. Order'!AZ1085=\"\",\"\",'1. Order'!AZ1085)","v":""},{"$f":"IF('1. Order'!BA1085=\"\",\"\",'1. Order'!BA1085)","v":""},{"$f":"IF('1. Order'!BB1085=\"\",\"\",'1. Order'!BB1085)","v":""},{"$f":"IF('1. Order'!BD1085=\"\",\"\",'1. Order'!BD1085)","v":""},{"$f":"IF('1. Order'!BE1085=\"\",\"\",'1. Order'!BE1085)","v":""},{"$f":"IF('1. Order'!BF1085=\"\",\"\",'1. Order'!BF1085)","v":""},{"$f":"IF('1. Order'!BG1085=\"\",\"\",'1. Order'!BG1085)","v":""},{"$f":"IF('1. Order'!BH1085=\"\",\"\",'1. Order'!BH1085)","v":"ZWO"}]
[{"$f":"IF('1. Order'!F1086=\"\",\"\",'1. Order'!F1086)","v":{"$error":"#N/A"}},{"$f":"IF('1. Order'!G1086=\"\",\"\",'1. Order'!G1086)","v":""},{"$f":"IF('1. Order'!H1086=\"\",\"\",'1. Order'!H1086)","v":""},{"$f":"IF('1. Order'!I1086=\"\",\"\",'1. Order'!I1086)","v":""},{"$f":"IF('1. Order'!J1086=\"\",\"\",'1. Order'!J1086)","v":""},{"$f":"IF('1. Order'!K1086=\"\",\"\",'1. Order'!K1086)","v":""},{"$f":"IF('1. Order'!L1086=\"\",\"\",'1. Order'!L1086)","v":""},{"$f":"IF('1. Order'!M1086=\"\",\"\",'1. Order'!M1086)","v":""},{"$f":"IF('1. Order'!N1086=\"\",\"\",'1. Order'!N1086)","v":""},{"$f":"IF('1. Order'!O1086=\"\",\"\",'1. Order'!O1086)","v":{"$error":"#N/A"}},{"$f":"IF('1. Order'!P1086=\"\",\"\",'1. Order'!P1086)","v":{"$error":"#N/A"}},{"$f":"IF('1. Order'!Q1086=\"\",\"\",'1. Order'!Q1086)","v":""},{"$f":"IF('1. Order'!S1086=\"\",\"\",'1. Order'!S1086)","v":""},{"$f":"IF('1. Order'!T1086=\"\",\"\",'1. Order'!T1086)","v":""},{"$f":"IF('1. Order'!W1086=\"\",\"\",'1. Order'!W1086)","v":""},{"$f":"IF('1. Order'!X1086=\"\",\"\",'1. Order'!X1086)","v":""},{"$f":"IF('1. Order'!Y1086=\"\",\"\",'1. Order'!Y1086)","v":"EUR"},{"$f":"IF('1. Order'!Z1086=\"\",\"\",'1. Order'!Z1086)","v":""},{"$f":"IF('1. Order'!AA1086=\"\",\"\",'1. Order'!AA1086)","v":""},{"$f":"IF('1. Order'!AB1086=\"\",\"\",'1. Order'!AB1086)","v":""},null,{"$f":"IF('1. Order'!AT1086=\"\",\"\",'1. Order'!AT1086)","v":""},{"$f":"IF('1. Order'!AU1086=\"\",\"\",'1. Order'!AU1086)","v":""},null,null,null,null,null,null,null,{"$f":"IF('1. Order'!AY1086=\"\",\"\",'1. Order'!AY1086)","v":""},{"$f":"IF('1. Order'!AZ1086=\"\",\"\",'1. Order'!AZ1086)","v":""},{"$f":"IF('1. Order'!BA1086=\"\",\"\",'1. Order'!BA1086)","v":""},{"$f":"IF('1. Order'!BB1086=\"\",\"\",'1. Order'!BB1086)","v":""},{"$f":"IF('1. Order'!BD1086=\"\",\"\",'1. Order'!BD1086)","v":""},{"$f":"IF('1. Order'!BE1086=\"\",\"\",'1. Order'!BE1086)","v":""},{"$f":"IF('1. Order'!BF1086=\"\",\"\",'1. Order'!BF1086)","v":""},{"$f":"IF('1. Order'!BG1086=\"\",\"\",'1. Order'!BG1086)","v":""},{"$f":"IF('1. Order'!BH1086=\"\",\"\",'1. Order'!BH1086)","v":"ZWO"}]
[{"$f":"IF('1. Order'!F1087=\"\",\"\",'1. Order'!F1087)","v":{"$error":"#N/A"}},{"$f":"IF('1. Order'!G1087=\"\",\"\",'1. Order'!G1087)","v":""},{"$f":"IF('1. Order'!H1087=\"\",\"\",'1. Order'!H1087)","v":""},{"$f":"IF('1. Order'!I1087=\"\",\"\",'1. Order'!I1087)","v":""},{"$f":"IF('1. Order'!J1087=\"\",\"\",'1. Order'!J1087)","v":""},{"$f":"IF('1. Order'!K1087=\"\",\"\",'1. Order'!K1087)","v":""},{"$f":"IF('1. Order'!L1087=\"\",\"\",'1. Order'!L1087)","v":""},{"$f":"IF('1. Order'!M1087=\"\",\"\",'1. Order'!M1087)","v":""},{"$f":"IF('1. Order'!N1087=\"\",\"\",'1. Order'!N1087)","v":""},{"$f":"IF('1. Order'!O1087=\"\",\"\",'1. Order'!O1087)","v":{"$error":"#N/A"}},{"$f":"IF('1. Order'!P1087=\"\",\"\",'1. Order'!P1087)","v":{"$error":"#N/A"}},{"$f":"IF('1. Order'!Q1087=\"\",\"\",'1. Order'!Q1087)","v":""},{"$f":"IF('1. Order'!S1087=\"\",\"\",'1. Order'!S1087)","v":""},{"$f":"IF('1. Order'!T1087=\"\",\"\",'1. Order'!T1087)","v":""},{"$f":"IF('1. Order'!W1087=\"\",\"\",'1. Order'!W1087)","v":""},{"$f":"IF('1. Order'!X1087=\"\",\"\",'1. Order'!X1087)","v":""},{"$f":"IF('1. Order'!Y1087=\"\",\"\",'1. Order'!Y1087)","v":"EUR"},{"$f":"IF('1. Order'!Z1087=\"\",\"\",'1. Order'!Z1087)","v":""},{"$f":"IF('1. Order'!AA1087=\"\",\"\",'1. Order'!AA1087)","v":""},{"$f":"IF('1. Order'!AB1087=\"\",\"\",'1. Order'!AB1087)","v":""},null,{"$f":"IF('1. Order'!AT1087=\"\",\"\",'1. Order'!AT1087)","v":""},{"$f":"IF('1. Order'!AU1087=\"\",\"\",'1. Order'!AU1087)","v":""},null,null,null,null,null,null,null,{"$f":"IF('1. Order'!AY1087=\"\",\"\",'1. Order'!AY1087)","v":""},{"$f":"IF('1. Order'!AZ1087=\"\",\"\",'1. Order'!AZ1087)","v":""},{"$f":"IF('1. Order'!BA1087=\"\",\"\",'1. Order'!BA1087)","v":""},{"$f":"IF('1. Order'!BB1087=\"\",\"\",'1. Order'!BB1087)","v":""},{"$f":"IF('1. Order'!BD1087=\"\",\"\",'1. Order'!BD1087)","v":""},{"$f":"IF('1. Order'!BE1087=\"\",\"\",'1. Order'!BE1087)","v":""},{"$f":"IF('1. Order'!BF1087=\"\",\"\",'1. Order'!BF1087)","v":""},{"$f":"IF('1. Order'!BG1087=\"\",\"\",'1. Order'!BG1087)","v":""},{"$f":"IF('1. Order'!BH1087=\"\",\"\",'1. Order'!BH1087)","v":"ZWO"}]
[{"$f":"IF('1. Order'!F1088=\"\",\"\",'1. Order'!F1088)","v":{"$error":"#N/A"}},{"$f":"IF('1. Order'!G1088=\"\",\"\",'1. Order'!G1088)","v":""},{"$f":"IF('1. Order'!H1088=\"\",\"\",'1. Order'!H1088)","v":""},{"$f":"IF('1. Order'!I1088=\"\",\"\",'1. Order'!I1088)","v":""},{"$f":"IF('1. Order'!J1088=\"\",\"\",'1. Order'!J1088)","v":""},{"$f":"IF('1. Order'!K1088=\"\",\"\",'1. Order'!K1088)","v":""},{"$f":"IF('1. Order'!L1088=\"\",\"\",'1. Order'!L1088)","v":""},{"$f":"IF('1. Order'!M1088=\"\",\"\",'1. Order'!M1088)","v":""},{"$f":"IF('1. Order'!N1088=\"\",\"\",'1. Order'!N1088)","v":""},{"$f":"IF('1. Order'!O1088=\"\",\"\",'1. Order'!O1088)","v":{"$error":"#N/A"}},{"$f":"IF('1. Order'!P1088=\"\",\"\",'1. Order'!P1088)","v":{"$error":"#N/A"}},{"$f":"IF('1. Order'!Q1088=\"\",\"\",'1. Order'!Q1088)","v":""},{"$f":"IF('1. Order'!S1088=\"\",\"\",'1. Order'!S1088)","v":""},{"$f":"IF('1. Order'!T1088=\"\",\"\",'1. Order'!T1088)","v":""},{"$f":"IF('1. Order'!W1088=\"\",\"\",'1. Order'!W1088)","v":""},{"$f":"IF('1. Order'!X1088=\"\",\"\",'1. Order'!X1088)","v":""},{"$f":"IF('1. Order'!Y1088=\"\",\"\",'1. Order'!Y1088)","v":"EUR"},{"$f":"IF('1. Order'!Z1088=\"\",\"\",'1. Order'!Z1088)","v":""},{"$f":"IF('1. Order'!AA1088=\"\",\"\",'1. Order'!AA1088)","v":""},{"$f":"IF('1. Order'!AB1088=\"\",\"\",'1. Order'!AB1088)","v":""},null,{"$f":"IF('1. Order'!AT1088=\"\",\"\",'1. Order'!AT1088)","v":""},{"$f":"IF('1. Order'!AU1088=\"\",\"\",'1. Order'!AU1088)","v":""},null,null,null,null,null,null,null,{"$f":"IF('1. Order'!AY1088=\"\",\"\",'1. Order'!AY1088)","v":""},{"$f":"IF('1. Order'!AZ1088=\"\",\"\",'1. Order'!AZ1088)","v":""},{"$f":"IF('1. Order'!BA1088=\"\",\"\",'1. Order'!BA1088)","v":""},{"$f":"IF('1. Order'!BB1088=\"\",\"\",'1. Order'!BB1088)","v":""},{"$f":"IF('1. Order'!BD1088=\"\",\"\",'1. Order'!BD1088)","v":""},{"$f":"IF('1. Order'!BE1088=\"\",\"\",'1. Order'!BE1088)","v":""},{"$f":"IF('1. Order'!BF1088=\"\",\"\",'1. Order'!BF1088)","v":""},{"$f":"IF('1. Order'!BG1088=\"\",\"\",'1. Order'!BG1088)","v":""},{"$f":"IF('1. Order'!BH1088=\"\",\"\",'1. Order'!BH1088)","v":"ZWO"}]
[{"$f":"IF('1. Order'!F1089=\"\",\"\",'1. Order'!F1089)","v":{"$error":"#N/A"}},{"$f":"IF('1. Order'!G1089=\"\",\"\",'1. Order'!G1089)","v":""},{"$f":"IF('1. Order'!H1089=\"\",\"\",'1. Order'!H1089)","v":""},{"$f":"IF('1. Order'!I1089=\"\",\"\",'1. Order'!I1089)","v":""},{"$f":"IF('1. Order'!J1089=\"\",\"\",'1. Order'!J1089)","v":""},{"$f":"IF('1. Order'!K1089=\"\",\"\",'1. Order'!K1089)","v":""},{"$f":"IF('1. Order'!L1089=\"\",\"\",'1. Order'!L1089)","v":""},{"$f":"IF('1. Order'!M1089=\"\",\"\",'1. Order'!M1089)","v":""},{"$f":"IF('1. Order'!N1089=\"\",\"\",'1. Order'!N1089)","v":""},{"$f":"IF('1. Order'!O1089=\"\",\"\",'1. Order'!O1089)","v":{"$error":"#N/A"}},{"$f":"IF('1. Order'!P1089=\"\",\"\",'1. Order'!P1089)","v":{"$error":"#N/A"}},{"$f":"IF('1. Order'!Q1089=\"\",\"\",'1. Order'!Q1089)","v":""},{"$f":"IF('1. Order'!S1089=\"\",\"\",'1. Order'!S1089)","v":""},{"$f":"IF('1. Order'!T1089=\"\",\"\",'1. Order'!T1089)","v":""},{"$f":"IF('1. Order'!W1089=\"\",\"\",'1. Order'!W1089)","v":""},{"$f":"IF('1. Order'!X1089=\"\",\"\",'1. Order'!X1089)","v":""},{"$f":"IF('1. Order'!Y1089=\"\",\"\",'1. Order'!Y1089)","v":"EUR"},{"$f":"IF('1. Order'!Z1089=\"\",\"\",'1. Order'!Z1089)","v":""},{"$f":"IF('1. Order'!AA1089=\"\",\"\",'1. Order'!AA1089)","v":""},{"$f":"IF('1. Order'!AB1089=\"\",\"\",'1. Order'!AB1089)","v":""},null,{"$f":"IF('1. Order'!AT1089=\"\",\"\",'1. Order'!AT1089)","v":""},{"$f":"IF('1. Order'!AU1089=\"\",\"\",'1. Order'!AU1089)","v":""},null,null,null,null,null,null,null,{"$f":"IF('1. Order'!AY1089=\"\",\"\",'1. Order'!AY1089)","v":""},{"$f":"IF('1. Order'!AZ1089=\"\",\"\",'1. Order'!AZ1089)","v":""},{"$f":"IF('1. Order'!BA1089=\"\",\"\",'1. Order'!BA1089)","v":""},{"$f":"IF('1. Order'!BB1089=\"\",\"\",'1. Order'!BB1089)","v":""},{"$f":"IF('1. Order'!BD1089=\"\",\"\",'1. Order'!BD1089)","v":""},{"$f":"IF('1. Order'!BE1089=\"\",\"\",'1. Order'!BE1089)","v":""},{"$f":"IF('1. Order'!BF1089=\"\",\"\",'1. Order'!BF1089)","v":""},{"$f":"IF('1. Order'!BG1089=\"\",\"\",'1. Order'!BG1089)","v":""},{"$f":"IF('1. Order'!BH1089=\"\",\"\",'1. Order'!BH1089)","v":"ZWO"}]
[{"$f":"IF('1. Order'!F1090=\"\",\"\",'1. Order'!F1090)","v":{"$error":"#N/A"}},{"$f":"IF('1. Order'!G1090=\"\",\"\",'1. Order'!G1090)","v":""},{"$f":"IF('1. Order'!H1090=\"\",\"\",'1. Order'!H1090)","v":""},{"$f":"IF('1. Order'!I1090=\"\",\"\",'1. Order'!I1090)","v":""},{"$f":"IF('1. Order'!J1090=\"\",\"\",'1. Order'!J1090)","v":""},{"$f":"IF('1. Order'!K1090=\"\",\"\",'1. Order'!K1090)","v":""},{"$f":"IF('1. Order'!L1090=\"\",\"\",'1. Order'!L1090)","v":""},{"$f":"IF('1. Order'!M1090=\"\",\"\",'1. Order'!M1090)","v":""},{"$f":"IF('1. Order'!N1090=\"\",\"\",'1. Order'!N1090)","v":""},{"$f":"IF('1. Order'!O1090=\"\",\"\",'1. Order'!O1090)","v":{"$error":"#N/A"}},{"$f":"IF('1. Order'!P1090=\"\",\"\",'1. Order'!P1090)","v":{"$error":"#N/A"}},{"$f":"IF('1. Order'!Q1090=\"\",\"\",'1. Order'!Q1090)","v":""},{"$f":"IF('1. Order'!S1090=\"\",\"\",'1. Order'!S1090)","v":""},{"$f":"IF('1. Order'!T1090=\"\",\"\",'1. Order'!T1090)","v":""},{"$f":"IF('1. Order'!W1090=\"\",\"\",'1. Order'!W1090)","v":""},{"$f":"IF('1. Order'!X1090=\"\",\"\",'1. Order'!X1090)","v":""},{"$f":"IF('1. Order'!Y1090=\"\",\"\",'1. Order'!Y1090)","v":"EUR"},{"$f":"IF('1. Order'!Z1090=\"\",\"\",'1. Order'!Z1090)","v":""},{"$f":"IF('1. Order'!AA1090=\"\",\"\",'1. Order'!AA1090)","v":""},{"$f":"IF('1. Order'!AB1090=\"\",\"\",'1. Order'!AB1090)","v":""},null,{"$f":"IF('1. Order'!AT1090=\"\",\"\",'1. Order'!AT1090)","v":""},{"$f":"IF('1. Order'!AU1090=\"\",\"\",'1. Order'!AU1090)","v":""},null,null,null,null,null,null,null,{"$f":"IF('1. Order'!AY1090=\"\",\"\",'1. Order'!AY1090)","v":""},{"$f":"IF('1. Order'!AZ1090=\"\",\"\",'1. Order'!AZ1090)","v":""},{"$f":"IF('1. Order'!BA1090=\"\",\"\",'1. Order'!BA1090)","v":""},{"$f":"IF('1. Order'!BB1090=\"\",\"\",'1. Order'!BB1090)","v":""},{"$f":"IF('1. Order'!BD1090=\"\",\"\",'1. Order'!BD1090)","v":""},{"$f":"IF('1. Order'!BE1090=\"\",\"\",'1. Order'!BE1090)","v":""},{"$f":"IF('1. Order'!BF1090=\"\",\"\",'1. Order'!BF1090)","v":""},{"$f":"IF('1. Order'!BG1090=\"\",\"\",'1. Order'!BG1090)","v":""},{"$f":"IF('1. Order'!BH1090=\"\",\"\",'1. Order'!BH1090)","v":"ZWO"}]
[{"$f":"IF('1. Order'!F1091=\"\",\"\",'1. Order'!F1091)","v":{"$error":"#N/A"}},{"$f":"IF('1. Order'!G1091=\"\",\"\",'1. Order'!G1091)","v":""},{"$f":"IF('1. Order'!H1091=\"\",\"\",'1. Order'!H1091)","v":""},{"$f":"IF('1. Order'!I1091=\"\",\"\",'1. Order'!I1091)","v":""},{"$f":"IF('1. Order'!J1091=\"\",\"\",'1. Order'!J1091)","v":""},{"$f":"IF('1. Order'!K1091=\"\",\"\",'1. Order'!K1091)","v":""},{"$f":"IF('1. Order'!L1091=\"\",\"\",'1. Order'!L1091)","v":""},{"$f":"IF('1. Order'!M1091=\"\",\"\",'1. Order'!M1091)","v":""},{"$f":"IF('1. Order'!N1091=\"\",\"\",'1. Order'!N1091)","v":""},{"$f":"IF('1. Order'!O1091=\"\",\"\",'1. Order'!O1091)","v":{"$error":"#N/A"}},{"$f":"IF('1. Order'!P1091=\"\",\"\",'1. Order'!P1091)","v":{"$error":"#N/A"}},{"$f":"IF('1. Order'!Q1091=\"\",\"\",'1. Order'!Q1091)","v":""},{"$f":"IF('1. Order'!S1091=\"\",\"\",'1. Order'!S1091)","v":""},{"$f":"IF('1. Order'!T1091=\"\",\"\",'1. Order'!T1091)","v":""},{"$f":"IF('1. Order'!W1091=\"\",\"\",'1. Order'!W1091)","v":""},{"$f":"IF('1. Order'!X1091=\"\",\"\",'1. Order'!X1091)","v":""},{"$f":"IF('1. Order'!Y1091=\"\",\"\",'1. Order'!Y1091)","v":"EUR"},{"$f":"IF('1. Order'!Z1091=\"\",\"\",'1. Order'!Z1091)","v":""},{"$f":"IF('1. Order'!AA1091=\"\",\"\",'1. Order'!AA1091)","v":""},{"$f":"IF('1. Order'!AB1091=\"\",\"\",'1. Order'!AB1091)","v":""},null,{"$f":"IF('1. Order'!AT1091=\"\",\"\",'1. Order'!AT1091)","v":""},{"$f":"IF('1. Order'!AU1091=\"\",\"\",'1. Order'!AU1091)","v":""},null,null,null,null,null,null,null,{"$f":"IF('1. Order'!AY1091=\"\",\"\",'1. Order'!AY1091)","v":""},{"$f":"IF('1. Order'!AZ1091=\"\",\"\",'1. Order'!AZ1091)","v":""},{"$f":"IF('1. Order'!BA1091=\"\",\"\",'1. Order'!BA1091)","v":""},{"$f":"IF('1. Order'!BB1091=\"\",\"\",'1. Order'!BB1091)","v":""},{"$f":"IF('1. Order'!BD1091=\"\",\"\",'1. Order'!BD1091)","v":""},{"$f":"IF('1. Order'!BE1091=\"\",\"\",'1. Order'!BE1091)","v":""},{"$f":"IF('1. Order'!BF1091=\"\",\"\",'1. Order'!BF1091)","v":""},{"$f":"IF('1. Order'!BG1091=\"\",\"\",'1. Order'!BG1091)","v":""},{"$f":"IF('1. Order'!BH1091=\"\",\"\",'1. Order'!BH1091)","v":"ZWO"}]
[{"$f":"IF('1. Order'!F1092=\"\",\"\",'1. Order'!F1092)","v":{"$error":"#N/A"}},{"$f":"IF('1. Order'!G1092=\"\",\"\",'1. Order'!G1092)","v":""},{"$f":"IF('1. Order'!H1092=\"\",\"\",'1. Order'!H1092)","v":""},{"$f":"IF('1. Order'!I1092=\"\",\"\",'1. Order'!I1092)","v":""},{"$f":"IF('1. Order'!J1092=\"\",\"\",'1. Order'!J1092)","v":""},{"$f":"IF('1. Order'!K1092=\"\",\"\",'1. Order'!K1092)","v":""},{"$f":"IF('1. Order'!L1092=\"\",\"\",'1. Order'!L1092)","v":""},{"$f":"IF('1. Order'!M1092=\"\",\"\",'1. Order'!M1092)","v":""},{"$f":"IF('1. Order'!N1092=\"\",\"\",'1. Order'!N1092)","v":""},{"$f":"IF('1. Order'!O1092=\"\",\"\",'1. Order'!O1092)","v":{"$error":"#N/A"}},{"$f":"IF('1. Order'!P1092=\"\",\"\",'1. Order'!P1092)","v":{"$error":"#N/A"}},{"$f":"IF('1. Order'!Q1092=\"\",\"\",'1. Order'!Q1092)","v":""},{"$f":"IF('1. Order'!S1092=\"\",\"\",'1. Order'!S1092)","v":""},{"$f":"IF('1. Order'!T1092=\"\",\"\",'1. Order'!T1092)","v":""},{"$f":"IF('1. Order'!W1092=\"\",\"\",'1. Order'!W1092)","v":""},{"$f":"IF('1. Order'!X1092=\"\",\"\",'1. Order'!X1092)","v":""},{"$f":"IF('1. Order'!Y1092=\"\",\"\",'1. Order'!Y1092)","v":"EUR"},{"$f":"IF('1. Order'!Z1092=\"\",\"\",'1. Order'!Z1092)","v":""},{"$f":"IF('1. Order'!AA1092=\"\",\"\",'1. Order'!AA1092)","v":""},{"$f":"IF('1. Order'!AB1092=\"\",\"\",'1. Order'!AB1092)","v":""},null,{"$f":"IF('1. Order'!AT1092=\"\",\"\",'1. Order'!AT1092)","v":""},{"$f":"IF('1. Order'!AU1092=\"\",\"\",'1. Order'!AU1092)","v":""},null,null,null,null,null,null,null,{"$f":"IF('1. Order'!AY1092=\"\",\"\",'1. Order'!AY1092)","v":""},{"$f":"IF('1. Order'!AZ1092=\"\",\"\",'1. Order'!AZ1092)","v":""},{"$f":"IF('1. Order'!BA1092=\"\",\"\",'1. Order'!BA1092)","v":""},{"$f":"IF('1. Order'!BB1092=\"\",\"\",'1. Order'!BB1092)","v":""},{"$f":"IF('1. Order'!BD1092=\"\",\"\",'1. Order'!BD1092)","v":""},{"$f":"IF('1. Order'!BE1092=\"\",\"\",'1. Order'!BE1092)","v":""},{"$f":"IF('1. Order'!BF1092=\"\",\"\",'1. Order'!BF1092)","v":""},{"$f":"IF('1. Order'!BG1092=\"\",\"\",'1. Order'!BG1092)","v":""},{"$f":"IF('1. Order'!BH1092=\"\",\"\",'1. Order'!BH1092)","v":"ZWO"}]
[{"$f":"IF('1. Order'!F1093=\"\",\"\",'1. Order'!F1093)","v":{"$error":"#N/A"}},{"$f":"IF('1. Order'!G1093=\"\",\"\",'1. Order'!G1093)","v":""},{"$f":"IF('1. Order'!H1093=\"\",\"\",'1. Order'!H1093)","v":""},{"$f":"IF('1. Order'!I1093=\"\",\"\",'1. Order'!I1093)","v":""},{"$f":"IF('1. Order'!J1093=\"\",\"\",'1. Order'!J1093)","v":""},{"$f":"IF('1. Order'!K1093=\"\",\"\",'1. Order'!K1093)","v":""},{"$f":"IF('1. Order'!L1093=\"\",\"\",'1. Order'!L1093)","v":""},{"$f":"IF('1. Order'!M1093=\"\",\"\",'1. Order'!M1093)","v":""},{"$f":"IF('1. Order'!N1093=\"\",\"\",'1. Order'!N1093)","v":""},{"$f":"IF('1. Order'!O1093=\"\",\"\",'1. Order'!O1093)","v":{"$error":"#N/A"}},{"$f":"IF('1. Order'!P1093=\"\",\"\",'1. Order'!P1093)","v":{"$error":"#N/A"}},{"$f":"IF('1. Order'!Q1093=\"\",\"\",'1. Order'!Q1093)","v":""},{"$f":"IF('1. Order'!S1093=\"\",\"\",'1. Order'!S1093)","v":""},{"$f":"IF('1. Order'!T1093=\"\",\"\",'1. Order'!T1093)","v":""},{"$f":"IF('1. Order'!W1093=\"\",\"\",'1. Order'!W1093)","v":""},{"$f":"IF('1. Order'!X1093=\"\",\"\",'1. Order'!X1093)","v":""},{"$f":"IF('1. Order'!Y1093=\"\",\"\",'1. Order'!Y1093)","v":"EUR"},{"$f":"IF('1. Order'!Z1093=\"\",\"\",'1. Order'!Z1093)","v":""},{"$f":"IF('1. Order'!AA1093=\"\",\"\",'1. Order'!AA1093)","v":""},{"$f":"IF('1. Order'!AB1093=\"\",\"\",'1. Order'!AB1093)","v":""},null,{"$f":"IF('1. Order'!AT1093=\"\",\"\",'1. Order'!AT1093)","v":""},{"$f":"IF('1. Order'!AU1093=\"\",\"\",'1. Order'!AU1093)","v":""},null,null,null,null,null,null,null,{"$f":"IF('1. Order'!AY1093=\"\",\"\",'1. Order'!AY1093)","v":""},{"$f":"IF('1. Order'!AZ1093=\"\",\"\",'1. Order'!AZ1093)","v":""},{"$f":"IF('1. Order'!BA1093=\"\",\"\",'1. Order'!BA1093)","v":""},{"$f":"IF('1. Order'!BB1093=\"\",\"\",'1. Order'!BB1093)","v":""},{"$f":"IF('1. Order'!BD1093=\"\",\"\",'1. Order'!BD1093)","v":""},{"$f":"IF('1. Order'!BE1093=\"\",\"\",'1. Order'!BE1093)","v":""},{"$f":"IF('1. Order'!BF1093=\"\",\"\",'1. Order'!BF1093)","v":""},{"$f":"IF('1. Order'!BG1093=\"\",\"\",'1. Order'!BG1093)","v":""},{"$f":"IF('1. Order'!BH1093=\"\",\"\",'1. Order'!BH1093)","v":"ZWO"}]
[{"$f":"IF('1. Order'!F1094=\"\",\"\",'1. Order'!F1094)","v":{"$error":"#N/A"}},{"$f":"IF('1. Order'!G1094=\"\",\"\",'1. Order'!G1094)","v":""},{"$f":"IF('1. Order'!H1094=\"\",\"\",'1. Order'!H1094)","v":""},{"$f":"IF('1. Order'!I1094=\"\",\"\",'1. Order'!I1094)","v":""},{"$f":"IF('1. Order'!J1094=\"\",\"\",'1. Order'!J1094)","v":""},{"$f":"IF('1. Order'!K1094=\"\",\"\",'1. Order'!K1094)","v":""},{"$f":"IF('1. Order'!L1094=\"\",\"\",'1. Order'!L1094)","v":""},{"$f":"IF('1. Order'!M1094=\"\",\"\",'1. Order'!M1094)","v":""},{"$f":"IF('1. Order'!N1094=\"\",\"\",'1. Order'!N1094)","v":""},{"$f":"IF('1. Order'!O1094=\"\",\"\",'1. Order'!O1094)","v":{"$error":"#N/A"}},{"$f":"IF('1. Order'!P1094=\"\",\"\",'1. Order'!P1094)","v":{"$error":"#N/A"}},{"$f":"IF('1. Order'!Q1094=\"\",\"\",'1. Order'!Q1094)","v":""},{"$f":"IF('1. Order'!S1094=\"\",\"\",'1. Order'!S1094)","v":""},{"$f":"IF('1. Order'!T1094=\"\",\"\",'1. Order'!T1094)","v":""},{"$f":"IF('1. Order'!W1094=\"\",\"\",'1. Order'!W1094)","v":""},{"$f":"IF('1. Order'!X1094=\"\",\"\",'1. Order'!X1094)","v":""},{"$f":"IF('1. Order'!Y1094=\"\",\"\",'1. Order'!Y1094)","v":"EUR"},{"$f":"IF('1. Order'!Z1094=\"\",\"\",'1. Order'!Z1094)","v":""},{"$f":"IF('1. Order'!AA1094=\"\",\"\",'1. Order'!AA1094)","v":""},{"$f":"IF('1. Order'!AB1094=\"\",\"\",'1. Order'!AB1094)","v":""},null,{"$f":"IF('1. Order'!AT1094=\"\",\"\",'1. Order'!AT1094)","v":""},{"$f":"IF('1. Order'!AU1094=\"\",\"\",'1. Order'!AU1094)","v":""},null,null,null,null,null,null,null,{"$f":"IF('1. Order'!AY1094=\"\",\"\",'1. Order'!AY1094)","v":""},{"$f":"IF('1. Order'!AZ1094=\"\",\"\",'1. Order'!AZ1094)","v":""},{"$f":"IF('1. Order'!BA1094=\"\",\"\",'1. Order'!BA1094)","v":""},{"$f":"IF('1. Order'!BB1094=\"\",\"\",'1. Order'!BB1094)","v":""},{"$f":"IF('1. Order'!BD1094=\"\",\"\",'1. Order'!BD1094)","v":""},{"$f":"IF('1. Order'!BE1094=\"\",\"\",'1. Order'!BE1094)","v":""},{"$f":"IF('1. Order'!BF1094=\"\",\"\",'1. Order'!BF1094)","v":""},{"$f":"IF('1. Order'!BG1094=\"\",\"\",'1. Order'!BG1094)","v":""},{"$f":"IF('1. Order'!BH1094=\"\",\"\",'1. Order'!BH1094)","v":"ZWO"}]
[{"$f":"IF('1. Order'!F1095=\"\",\"\",'1. Order'!F1095)","v":{"$error":"#N/A"}},{"$f":"IF('1. Order'!G1095=\"\",\"\",'1. Order'!G1095)","v":""},{"$f":"IF('1. Order'!H1095=\"\",\"\",'1. Order'!H1095)","v":""},{"$f":"IF('1. Order'!I1095=\"\",\"\",'1. Order'!I1095)","v":""},{"$f":"IF('1. Order'!J1095=\"\",\"\",'1. Order'!J1095)","v":""},{"$f":"IF('1. Order'!K1095=\"\",\"\",'1. Order'!K1095)","v":""},{"$f":"IF('1. Order'!L1095=\"\",\"\",'1. Order'!L1095)","v":""},{"$f":"IF('1. Order'!M1095=\"\",\"\",'1. Order'!M1095)","v":""},{"$f":"IF('1. Order'!N1095=\"\",\"\",'1. Order'!N1095)","v":""},{"$f":"IF('1. Order'!O1095=\"\",\"\",'1. Order'!O1095)","v":{"$error":"#N/A"}},{"$f":"IF('1. Order'!P1095=\"\",\"\",'1. Order'!P1095)","v":{"$error":"#N/A"}},{"$f":"IF('1. Order'!Q1095=\"\",\"\",'1. Order'!Q1095)","v":""},{"$f":"IF('1. Order'!S1095=\"\",\"\",'1. Order'!S1095)","v":""},{"$f":"IF('1. Order'!T1095=\"\",\"\",'1. Order'!T1095)","v":""},{"$f":"IF('1. Order'!W1095=\"\",\"\",'1. Order'!W1095)","v":""},{"$f":"IF('1. Order'!X1095=\"\",\"\",'1. Order'!X1095)","v":""},{"$f":"IF('1. Order'!Y1095=\"\",\"\",'1. Order'!Y1095)","v":"EUR"},{"$f":"IF('1. Order'!Z1095=\"\",\"\",'1. Order'!Z1095)","v":""},{"$f":"IF('1. Order'!AA1095=\"\",\"\",'1. Order'!AA1095)","v":""},{"$f":"IF('1. Order'!AB1095=\"\",\"\",'1. Order'!AB1095)","v":""},null,{"$f":"IF('1. Order'!AT1095=\"\",\"\",'1. Order'!AT1095)","v":""},{"$f":"IF('1. Order'!AU1095=\"\",\"\",'1. Order'!AU1095)","v":""},null,null,null,null,null,null,null,{"$f":"IF('1. Order'!AY1095=\"\",\"\",'1. Order'!AY1095)","v":""},{"$f":"IF('1. Order'!AZ1095=\"\",\"\",'1. Order'!AZ1095)","v":""},{"$f":"IF('1. Order'!BA1095=\"\",\"\",'1. Order'!BA1095)","v":""},{"$f":"IF('1. Order'!BB1095=\"\",\"\",'1. Order'!BB1095)","v":""},{"$f":"IF('1. Order'!BD1095=\"\",\"\",'1. Order'!BD1095)","v":""},{"$f":"IF('1. Order'!BE1095=\"\",\"\",'1. Order'!BE1095)","v":""},{"$f":"IF('1. Order'!BF1095=\"\",\"\",'1. Order'!BF1095)","v":""},{"$f":"IF('1. Order'!BG1095=\"\",\"\",'1. Order'!BG1095)","v":""},{"$f":"IF('1. Order'!BH1095=\"\",\"\",'1. Order'!BH1095)","v":"ZWO"}]
[{"$f":"IF('1. Order'!F1096=\"\",\"\",'1. Order'!F1096)","v":{"$error":"#N/A"}},{"$f":"IF('1. Order'!G1096=\"\",\"\",'1. Order'!G1096)","v":""},{"$f":"IF('1. Order'!H1096=\"\",\"\",'1. Order'!H1096)","v":""},{"$f":"IF('1. Order'!I1096=\"\",\"\",'1. Order'!I1096)","v":""},{"$f":"IF('1. Order'!J1096=\"\",\"\",'1. Order'!J1096)","v":""},{"$f":"IF('1. Order'!K1096=\"\",\"\",'1. Order'!K1096)","v":""},{"$f":"IF('1. Order'!L1096=\"\",\"\",'1. Order'!L1096)","v":""},{"$f":"IF('1. Order'!M1096=\"\",\"\",'1. Order'!M1096)","v":""},{"$f":"IF('1. Order'!N1096=\"\",\"\",'1. Order'!N1096)","v":""},{"$f":"IF('1. Order'!O1096=\"\",\"\",'1. Order'!O1096)","v":{"$error":"#N/A"}},{"$f":"IF('1. Order'!P1096=\"\",\"\",'1. Order'!P1096)","v":{"$error":"#N/A"}},{"$f":"IF('1. Order'!Q1096=\"\",\"\",'1. Order'!Q1096)","v":""},{"$f":"IF('1. Order'!S1096=\"\",\"\",'1. Order'!S1096)","v":""},{"$f":"IF('1. Order'!T1096=\"\",\"\",'1. Order'!T1096)","v":""},{"$f":"IF('1. Order'!W1096=\"\",\"\",'1. Order'!W1096)","v":""},{"$f":"IF('1. Order'!X1096=\"\",\"\",'1. Order'!X1096)","v":""},{"$f":"IF('1. Order'!Y1096=\"\",\"\",'1. Order'!Y1096)","v":"EUR"},{"$f":"IF('1. Order'!Z1096=\"\",\"\",'1. Order'!Z1096)","v":""},{"$f":"IF('1. Order'!AA1096=\"\",\"\",'1. Order'!AA1096)","v":""},{"$f":"IF('1. Order'!AB1096=\"\",\"\",'1. Order'!AB1096)","v":""},null,{"$f":"IF('1. Order'!AT1096=\"\",\"\",'1. Order'!AT1096)","v":""},{"$f":"IF('1. Order'!AU1096=\"\",\"\",'1. Order'!AU1096)","v":""},null,null,null,null,null,null,null,{"$f":"IF('1. Order'!AY1096=\"\",\"\",'1. Order'!AY1096)","v":""},{"$f":"IF('1. Order'!AZ1096=\"\",\"\",'1. Order'!AZ1096)","v":""},{"$f":"IF('1. Order'!BA1096=\"\",\"\",'1. Order'!BA1096)","v":""},{"$f":"IF('1. Order'!BB1096=\"\",\"\",'1. Order'!BB1096)","v":""},{"$f":"IF('1. Order'!BD1096=\"\",\"\",'1. Order'!BD1096)","v":""},{"$f":"IF('1. Order'!BE1096=\"\",\"\",'1. Order'!BE1096)","v":""},{"$f":"IF('1. Order'!BF1096=\"\",\"\",'1. Order'!BF1096)","v":""},{"$f":"IF('1. Order'!BG1096=\"\",\"\",'1. Order'!BG1096)","v":""},{"$f":"IF('1. Order'!BH1096=\"\",\"\",'1. Order'!BH1096)","v":"ZWO"}]
[{"$f":"IF('1. Order'!F1097=\"\",\"\",'1. Order'!F1097)","v":{"$error":"#N/A"}},{"$f":"IF('1. Order'!G1097=\"\",\"\",'1. Order'!G1097)","v":""},{"$f":"IF('1. Order'!H1097=\"\",\"\",'1. Order'!H1097)","v":""},{"$f":"IF('1. Order'!I1097=\"\",\"\",'1. Order'!I1097)","v":""},{"$f":"IF('1. Order'!J1097=\"\",\"\",'1. Order'!J1097)","v":""},{"$f":"IF('1. Order'!K1097=\"\",\"\",'1. Order'!K1097)","v":""},{"$f":"IF('1. Order'!L1097=\"\",\"\",'1. Order'!L1097)","v":""},{"$f":"IF('1. Order'!M1097=\"\",\"\",'1. Order'!M1097)","v":""},{"$f":"IF('1. Order'!N1097=\"\",\"\",'1. Order'!N1097)","v":""},{"$f":"IF('1. Order'!O1097=\"\",\"\",'1. Order'!O1097)","v":{"$error":"#N/A"}},{"$f":"IF('1. Order'!P1097=\"\",\"\",'1. Order'!P1097)","v":{"$error":"#N/A"}},{"$f":"IF('1. Order'!Q1097=\"\",\"\",'1. Order'!Q1097)","v":""},{"$f":"IF('1. Order'!S1097=\"\",\"\",'1. Order'!S1097)","v":""},{"$f":"IF('1. Order'!T1097=\"\",\"\",'1. Order'!T1097)","v":""},{"$f":"IF('1. Order'!W1097=\"\",\"\",'1. Order'!W1097)","v":""},{"$f":"IF('1. Order'!X1097=\"\",\"\",'1. Order'!X1097)","v":""},{"$f":"IF('1. Order'!Y1097=\"\",\"\",'1. Order'!Y1097)","v":"EUR"},{"$f":"IF('1. Order'!Z1097=\"\",\"\",'1. Order'!Z1097)","v":""},{"$f":"IF('1. Order'!AA1097=\"\",\"\",'1. Order'!AA1097)","v":""},{"$f":"IF('1. Order'!AB1097=\"\",\"\",'1. Order'!AB1097)","v":""},null,{"$f":"IF('1. Order'!AT1097=\"\",\"\",'1. Order'!AT1097)","v":""},{"$f":"IF('1. Order'!AU1097=\"\",\"\",'1. Order'!AU1097)","v":""},null,null,null,null,null,null,null,{"$f":"IF('1. Order'!AY1097=\"\",\"\",'1. Order'!AY1097)","v":""},{"$f":"IF('1. Order'!AZ1097=\"\",\"\",'1. Order'!AZ1097)","v":""},{"$f":"IF('1. Order'!BA1097=\"\",\"\",'1. Order'!BA1097)","v":""},{"$f":"IF('1. Order'!BB1097=\"\",\"\",'1. Order'!BB1097)","v":""},{"$f":"IF('1. Order'!BD1097=\"\",\"\",'1. Order'!BD1097)","v":""},{"$f":"IF('1. Order'!BE1097=\"\",\"\",'1. Order'!BE1097)","v":""},{"$f":"IF('1. Order'!BF1097=\"\",\"\",'1. Order'!BF1097)","v":""},{"$f":"IF('1. Order'!BG1097=\"\",\"\",'1. Order'!BG1097)","v":""},{"$f":"IF('1. Order'!BH1097=\"\",\"\",'1. Order'!BH1097)","v":"ZWO"}]
[{"$f":"IF('1. Order'!F1098=\"\",\"\",'1. Order'!F1098)","v":{"$error":"#N/A"}},{"$f":"IF('1. Order'!G1098=\"\",\"\",'1. Order'!G1098)","v":""},{"$f":"IF('1. Order'!H1098=\"\",\"\",'1. Order'!H1098)","v":""},{"$f":"IF('1. Order'!I1098=\"\",\"\",'1. Order'!I1098)","v":""},{"$f":"IF('1. Order'!J1098=\"\",\"\",'1. Order'!J1098)","v":""},{"$f":"IF('1. Order'!K1098=\"\",\"\",'1. Order'!K1098)","v":""},{"$f":"IF('1. Order'!L1098=\"\",\"\",'1. Order'!L1098)","v":""},{"$f":"IF('1. Order'!M1098=\"\",\"\",'1. Order'!M1098)","v":""},{"$f":"IF('1. Order'!N1098=\"\",\"\",'1. Order'!N1098)","v":""},{"$f":"IF('1. Order'!O1098=\"\",\"\",'1. Order'!O1098)","v":{"$error":"#N/A"}},{"$f":"IF('1. Order'!P1098=\"\",\"\",'1. Order'!P1098)","v":{"$error":"#N/A"}},{"$f":"IF('1. Order'!Q1098=\"\",\"\",'1. Order'!Q1098)","v":""},{"$f":"IF('1. Order'!S1098=\"\",\"\",'1. Order'!S1098)","v":""},{"$f":"IF('1. Order'!T1098=\"\",\"\",'1. Order'!T1098)","v":""},{"$f":"IF('1. Order'!W1098=\"\",\"\",'1. Order'!W1098)","v":""},{"$f":"IF('1. Order'!X1098=\"\",\"\",'1. Order'!X1098)","v":""},{"$f":"IF('1. Order'!Y1098=\"\",\"\",'1. Order'!Y1098)","v":"EUR"},{"$f":"IF('1. Order'!Z1098=\"\",\"\",'1. Order'!Z1098)","v":""},{"$f":"IF('1. Order'!AA1098=\"\",\"\",'1. Order'!AA1098)","v":""},{"$f":"IF('1. Order'!AB1098=\"\",\"\",'1. Order'!AB1098)","v":""},null,{"$f":"IF('1. Order'!AT1098=\"\",\"\",'1. Order'!AT1098)","v":""},{"$f":"IF('1. Order'!AU1098=\"\",\"\",'1. Order'!AU1098)","v":""},null,null,null,null,null,null,null,{"$f":"IF('1. Order'!AY1098=\"\",\"\",'1. Order'!AY1098)","v":""},{"$f":"IF('1. Order'!AZ1098=\"\",\"\",'1. Order'!AZ1098)","v":""},{"$f":"IF('1. Order'!BA1098=\"\",\"\",'1. Order'!BA1098)","v":""},{"$f":"IF('1. Order'!BB1098=\"\",\"\",'1. Order'!BB1098)","v":""},{"$f":"IF('1. Order'!BD1098=\"\",\"\",'1. Order'!BD1098)","v":""},{"$f":"IF('1. Order'!BE1098=\"\",\"\",'1. Order'!BE1098)","v":""},{"$f":"IF('1. Order'!BF1098=\"\",\"\",'1. Order'!BF1098)","v":""},{"$f":"IF('1. Order'!BG1098=\"\",\"\",'1. Order'!BG1098)","v":""},{"$f":"IF('1. Order'!BH1098=\"\",\"\",'1. Order'!BH1098)","v":"ZWO"}]
[{"$f":"IF('1. Order'!F1099=\"\",\"\",'1. Order'!F1099)","v":{"$error":"#N/A"}},{"$f":"IF('1. Order'!G1099=\"\",\"\",'1. Order'!G1099)","v":""},{"$f":"IF('1. Order'!H1099=\"\",\"\",'1. Order'!H1099)","v":""},{"$f":"IF('1. Order'!I1099=\"\",\"\",'1. Order'!I1099)","v":""},{"$f":"IF('1. Order'!J1099=\"\",\"\",'1. Order'!J1099)","v":""},{"$f":"IF('1. Order'!K1099=\"\",\"\",'1. Order'!K1099)","v":""},{"$f":"IF('1. Order'!L1099=\"\",\"\",'1. Order'!L1099)","v":""},{"$f":"IF('1. Order'!M1099=\"\",\"\",'1. Order'!M1099)","v":""},{"$f":"IF('1. Order'!N1099=\"\",\"\",'1. Order'!N1099)","v":""},{"$f":"IF('1. Order'!O1099=\"\",\"\",'1. Order'!O1099)","v":{"$error":"#N/A"}},{"$f":"IF('1. Order'!P1099=\"\",\"\",'1. Order'!P1099)","v":{"$error":"#N/A"}},{"$f":"IF('1. Order'!Q1099=\"\",\"\",'1. Order'!Q1099)","v":""},{"$f":"IF('1. Order'!S1099=\"\",\"\",'1. Order'!S1099)","v":""},{"$f":"IF('1. Order'!T1099=\"\",\"\",'1. Order'!T1099)","v":""},{"$f":"IF('1. Order'!W1099=\"\",\"\",'1. Order'!W1099)","v":""},{"$f":"IF('1. Order'!X1099=\"\",\"\",'1. Order'!X1099)","v":""},{"$f":"IF('1. Order'!Y1099=\"\",\"\",'1. Order'!Y1099)","v":"EUR"},{"$f":"IF('1. Order'!Z1099=\"\",\"\",'1. Order'!Z1099)","v":""},{"$f":"IF('1. Order'!AA1099=\"\",\"\",'1. Order'!AA1099)","v":""},{"$f":"IF('1. Order'!AB1099=\"\",\"\",'1. Order'!AB1099)","v":""},null,{"$f":"IF('1. Order'!AT1099=\"\",\"\",'1. Order'!AT1099)","v":""},{"$f":"IF('1. Order'!AU1099=\"\",\"\",'1. Order'!AU1099)","v":""},null,null,null,null,null,null,null,{"$f":"IF('1. Order'!AY1099=\"\",\"\",'1. Order'!AY1099)","v":""},{"$f":"IF('1. Order'!AZ1099=\"\",\"\",'1. Order'!AZ1099)","v":""},{"$f":"IF('1. Order'!BA1099=\"\",\"\",'1. Order'!BA1099)","v":""},{"$f":"IF('1. Order'!BB1099=\"\",\"\",'1. Order'!BB1099)","v":""},{"$f":"IF('1. Order'!BD1099=\"\",\"\",'1. Order'!BD1099)","v":""},{"$f":"IF('1. Order'!BE1099=\"\",\"\",'1. Order'!BE1099)","v":""},{"$f":"IF('1. Order'!BF1099=\"\",\"\",'1. Order'!BF1099)","v":""},{"$f":"IF('1. Order'!BG1099=\"\",\"\",'1. Order'!BG1099)","v":""},{"$f":"IF('1. Order'!BH1099=\"\",\"\",'1. Order'!BH1099)","v":"ZWO"}]
[{"$f":"IF('1. Order'!F1100=\"\",\"\",'1. Order'!F1100)","v":{"$error":"#N/A"}},{"$f":"IF('1. Order'!G1100=\"\",\"\",'1. Order'!G1100)","v":""},{"$f":"IF('1. Order'!H1100=\"\",\"\",'1. Order'!H1100)","v":""},{"$f":"IF('1. Order'!I1100=\"\",\"\",'1. Order'!I1100)","v":""},{"$f":"IF('1. Order'!J1100=\"\",\"\",'1. Order'!J1100)","v":""},{"$f":"IF('1. Order'!K1100=\"\",\"\",'1. Order'!K1100)","v":""},{"$f":"IF('1. Order'!L1100=\"\",\"\",'1. Order'!L1100)","v":""},{"$f":"IF('1. Order'!M1100=\"\",\"\",'1. Order'!M1100)","v":""},{"$f":"IF('1. Order'!N1100=\"\",\"\",'1. Order'!N1100)","v":""},{"$f":"IF('1. Order'!O1100=\"\",\"\",'1. Order'!O1100)","v":{"$error":"#N/A"}},{"$f":"IF('1. Order'!P1100=\"\",\"\",'1. Order'!P1100)","v":{"$error":"#N/A"}},{"$f":"IF('1. Order'!Q1100=\"\",\"\",'1. Order'!Q1100)","v":""},{"$f":"IF('1. Order'!S1100=\"\",\"\",'1. Order'!S1100)","v":""},{"$f":"IF('1. Order'!T1100=\"\",\"\",'1. Order'!T1100)","v":""},{"$f":"IF('1. Order'!W1100=\"\",\"\",'1. Order'!W1100)","v":""},{"$f":"IF('1. Order'!X1100=\"\",\"\",'1. Order'!X1100)","v":""},{"$f":"IF('1. Order'!Y1100=\"\",\"\",'1. Order'!Y1100)","v":"EUR"},{"$f":"IF('1. Order'!Z1100=\"\",\"\",'1. Order'!Z1100)","v":""},{"$f":"IF('1. Order'!AA1100=\"\",\"\",'1. Order'!AA1100)","v":""},{"$f":"IF('1. Order'!AB1100=\"\",\"\",'1. Order'!AB1100)","v":""},null,{"$f":"IF('1. Order'!AT1100=\"\",\"\",'1. Order'!AT1100)","v":""},{"$f":"IF('1. Order'!AU1100=\"\",\"\",'1. Order'!AU1100)","v":""},null,null,null,null,null,null,null,{"$f":"IF('1. Order'!AY1100=\"\",\"\",'1. Order'!AY1100)","v":""},{"$f":"IF('1. Order'!AZ1100=\"\",\"\",'1. Order'!AZ1100)","v":""},{"$f":"IF('1. Order'!BA1100=\"\",\"\",'1. Order'!BA1100)","v":""},{"$f":"IF('1. Order'!BB1100=\"\",\"\",'1. Order'!BB1100)","v":""},{"$f":"IF('1. Order'!BD1100=\"\",\"\",'1. Order'!BD1100)","v":""},{"$f":"IF('1. Order'!BE1100=\"\",\"\",'1. Order'!BE1100)","v":""},{"$f":"IF('1. Order'!BF1100=\"\",\"\",'1. Order'!BF1100)","v":""},{"$f":"IF('1. Order'!BG1100=\"\",\"\",'1. Order'!BG1100)","v":""},{"$f":"IF('1. Order'!BH1100=\"\",\"\",'1. Order'!BH1100)","v":"ZWO"}]
[{"$f":"IF('1. Order'!F1101=\"\",\"\",'1. Order'!F1101)","v":{"$error":"#N/A"}},{"$f":"IF('1. Order'!G1101=\"\",\"\",'1. Order'!G1101)","v":""},{"$f":"IF('1. Order'!H1101=\"\",\"\",'1. Order'!H1101)","v":""},{"$f":"IF('1. Order'!I1101=\"\",\"\",'1. Order'!I1101)","v":""},{"$f":"IF('1. Order'!J1101=\"\",\"\",'1. Order'!J1101)","v":""},{"$f":"IF('1. Order'!K1101=\"\",\"\",'1. Order'!K1101)","v":""},{"$f":"IF('1. Order'!L1101=\"\",\"\",'1. Order'!L1101)","v":""},{"$f":"IF('1. Order'!M1101=\"\",\"\",'1. Order'!M1101)","v":""},{"$f":"IF('1. Order'!N1101=\"\",\"\",'1. Order'!N1101)","v":""},{"$f":"IF('1. Order'!O1101=\"\",\"\",'1. Order'!O1101)","v":{"$error":"#N/A"}},{"$f":"IF('1. Order'!P1101=\"\",\"\",'1. Order'!P1101)","v":{"$error":"#N/A"}},{"$f":"IF('1. Order'!Q1101=\"\",\"\",'1. Order'!Q1101)","v":""},{"$f":"IF('1. Order'!S1101=\"\",\"\",'1. Order'!S1101)","v":""},{"$f":"IF('1. Order'!T1101=\"\",\"\",'1. Order'!T1101)","v":""},{"$f":"IF('1. Order'!W1101=\"\",\"\",'1. Order'!W1101)","v":""},{"$f":"IF('1. Order'!X1101=\"\",\"\",'1. Order'!X1101)","v":""},{"$f":"IF('1. Order'!Y1101=\"\",\"\",'1. Order'!Y1101)","v":"EUR"},{"$f":"IF('1. Order'!Z1101=\"\",\"\",'1. Order'!Z1101)","v":""},{"$f":"IF('1. Order'!AA1101=\"\",\"\",'1. Order'!AA1101)","v":""},{"$f":"IF('1. Order'!AB1101=\"\",\"\",'1. Order'!AB1101)","v":""},null,{"$f":"IF('1. Order'!AT1101=\"\",\"\",'1. Order'!AT1101)","v":""},{"$f":"IF('1. Order'!AU1101=\"\",\"\",'1. Order'!AU1101)","v":""},null,null,null,null,null,null,null,{"$f":"IF('1. Order'!AY1101=\"\",\"\",'1. Order'!AY1101)","v":""},{"$f":"IF('1. Order'!AZ1101=\"\",\"\",'1. Order'!AZ1101)","v":""},{"$f":"IF('1. Order'!BA1101=\"\",\"\",'1. Order'!BA1101)","v":""},{"$f":"IF('1. Order'!BB1101=\"\",\"\",'1. Order'!BB1101)","v":""},{"$f":"IF('1. Order'!BD1101=\"\",\"\",'1. Order'!BD1101)","v":""},{"$f":"IF('1. Order'!BE1101=\"\",\"\",'1. Order'!BE1101)","v":""},{"$f":"IF('1. Order'!BF1101=\"\",\"\",'1. Order'!BF1101)","v":""},{"$f":"IF('1. Order'!BG1101=\"\",\"\",'1. Order'!BG1101)","v":""},{"$f":"IF('1. Order'!BH1101=\"\",\"\",'1. Order'!BH1101)","v":"ZWO"}]
[{"$f":"IF('1. Order'!F1102=\"\",\"\",'1. Order'!F1102)","v":{"$error":"#N/A"}},{"$f":"IF('1. Order'!G1102=\"\",\"\",'1. Order'!G1102)","v":""},{"$f":"IF('1. Order'!H1102=\"\",\"\",'1. Order'!H1102)","v":""},{"$f":"IF('1. Order'!I1102=\"\",\"\",'1. Order'!I1102)","v":""},{"$f":"IF('1. Order'!J1102=\"\",\"\",'1. Order'!J1102)","v":""},{"$f":"IF('1. Order'!K1102=\"\",\"\",'1. Order'!K1102)","v":""},{"$f":"IF('1. Order'!L1102=\"\",\"\",'1. Order'!L1102)","v":""},{"$f":"IF('1. Order'!M1102=\"\",\"\",'1. Order'!M1102)","v":""},{"$f":"IF('1. Order'!N1102=\"\",\"\",'1. Order'!N1102)","v":""},{"$f":"IF('1. Order'!O1102=\"\",\"\",'1. Order'!O1102)","v":{"$error":"#N/A"}},{"$f":"IF('1. Order'!P1102=\"\",\"\",'1. Order'!P1102)","v":{"$error":"#N/A"}},{"$f":"IF('1. Order'!Q1102=\"\",\"\",'1. Order'!Q1102)","v":""},{"$f":"IF('1. Order'!S1102=\"\",\"\",'1. Order'!S1102)","v":""},{"$f":"IF('1. Order'!T1102=\"\",\"\",'1. Order'!T1102)","v":""},{"$f":"IF('1. Order'!W1102=\"\",\"\",'1. Order'!W1102)","v":""},{"$f":"IF('1. Order'!X1102=\"\",\"\",'1. Order'!X1102)","v":""},{"$f":"IF('1. Order'!Y1102=\"\",\"\",'1. Order'!Y1102)","v":"EUR"},{"$f":"IF('1. Order'!Z1102=\"\",\"\",'1. Order'!Z1102)","v":""},{"$f":"IF('1. Order'!AA1102=\"\",\"\",'1. Order'!AA1102)","v":""},{"$f":"IF('1. Order'!AB1102=\"\",\"\",'1. Order'!AB1102)","v":""},null,{"$f":"IF('1. Order'!AT1102=\"\",\"\",'1. Order'!AT1102)","v":""},{"$f":"IF('1. Order'!AU1102=\"\",\"\",'1. Order'!AU1102)","v":""},null,null,null,null,null,null,null,{"$f":"IF('1. Order'!AY1102=\"\",\"\",'1. Order'!AY1102)","v":""},{"$f":"IF('1. Order'!AZ1102=\"\",\"\",'1. Order'!AZ1102)","v":""},{"$f":"IF('1. Order'!BA1102=\"\",\"\",'1. Order'!BA1102)","v":""},{"$f":"IF('1. Order'!BB1102=\"\",\"\",'1. Order'!BB1102)","v":""},{"$f":"IF('1. Order'!BD1102=\"\",\"\",'1. Order'!BD1102)","v":""},{"$f":"IF('1. Order'!BE1102=\"\",\"\",'1. Order'!BE1102)","v":""},{"$f":"IF('1. Order'!BF1102=\"\",\"\",'1. Order'!BF1102)","v":""},{"$f":"IF('1. Order'!BG1102=\"\",\"\",'1. Order'!BG1102)","v":""},{"$f":"IF('1. Order'!BH1102=\"\",\"\",'1. Order'!BH1102)","v":"ZWO"}]
[{"$f":"IF('1. Order'!F1103=\"\",\"\",'1. Order'!F1103)","v":{"$error":"#N/A"}},{"$f":"IF('1. Order'!G1103=\"\",\"\",'1. Order'!G1103)","v":""},{"$f":"IF('1. Order'!H1103=\"\",\"\",'1. Order'!H1103)","v":""},{"$f":"IF('1. Order'!I1103=\"\",\"\",'1. Order'!I1103)","v":""},{"$f":"IF('1. Order'!J1103=\"\",\"\",'1. Order'!J1103)","v":""},{"$f":"IF('1. Order'!K1103=\"\",\"\",'1. Order'!K1103)","v":""},{"$f":"IF('1. Order'!L1103=\"\",\"\",'1. Order'!L1103)","v":""},{"$f":"IF('1. Order'!M1103=\"\",\"\",'1. Order'!M1103)","v":""},{"$f":"IF('1. Order'!N1103=\"\",\"\",'1. Order'!N1103)","v":""},{"$f":"IF('1. Order'!O1103=\"\",\"\",'1. Order'!O1103)","v":{"$error":"#N/A"}},{"$f":"IF('1. Order'!P1103=\"\",\"\",'1. Order'!P1103)","v":{"$error":"#N/A"}},{"$f":"IF('1. Order'!Q1103=\"\",\"\",'1. Order'!Q1103)","v":""},{"$f":"IF('1. Order'!S1103=\"\",\"\",'1. Order'!S1103)","v":""},{"$f":"IF('1. Order'!T1103=\"\",\"\",'1. Order'!T1103)","v":""},{"$f":"IF('1. Order'!W1103=\"\",\"\",'1. Order'!W1103)","v":""},{"$f":"IF('1. Order'!X1103=\"\",\"\",'1. Order'!X1103)","v":""},{"$f":"IF('1. Order'!Y1103=\"\",\"\",'1. Order'!Y1103)","v":"EUR"},{"$f":"IF('1. Order'!Z1103=\"\",\"\",'1. Order'!Z1103)","v":""},{"$f":"IF('1. Order'!AA1103=\"\",\"\",'1. Order'!AA1103)","v":""},{"$f":"IF('1. Order'!AB1103=\"\",\"\",'1. Order'!AB1103)","v":""},null,{"$f":"IF('1. Order'!AT1103=\"\",\"\",'1. Order'!AT1103)","v":""},{"$f":"IF('1. Order'!AU1103=\"\",\"\",'1. Order'!AU1103)","v":""},null,null,null,null,null,null,null,{"$f":"IF('1. Order'!AY1103=\"\",\"\",'1. Order'!AY1103)","v":""},{"$f":"IF('1. Order'!AZ1103=\"\",\"\",'1. Order'!AZ1103)","v":""},{"$f":"IF('1. Order'!BA1103=\"\",\"\",'1. Order'!BA1103)","v":""},{"$f":"IF('1. Order'!BB1103=\"\",\"\",'1. Order'!BB1103)","v":""},{"$f":"IF('1. Order'!BD1103=\"\",\"\",'1. Order'!BD1103)","v":""},{"$f":"IF('1. Order'!BE1103=\"\",\"\",'1. Order'!BE1103)","v":""},{"$f":"IF('1. Order'!BF1103=\"\",\"\",'1. Order'!BF1103)","v":""},{"$f":"IF('1. Order'!BG1103=\"\",\"\",'1. Order'!BG1103)","v":""},{"$f":"IF('1. Order'!BH1103=\"\",\"\",'1. Order'!BH1103)","v":"ZWO"}]
[{"$f":"IF('1. Order'!F1104=\"\",\"\",'1. Order'!F1104)","v":{"$error":"#N/A"}},{"$f":"IF('1. Order'!G1104=\"\",\"\",'1. Order'!G1104)","v":""},{"$f":"IF('1. Order'!H1104=\"\",\"\",'1. Order'!H1104)","v":""},{"$f":"IF('1. Order'!I1104=\"\",\"\",'1. Order'!I1104)","v":""},{"$f":"IF('1. Order'!J1104=\"\",\"\",'1. Order'!J1104)","v":""},{"$f":"IF('1. Order'!K1104=\"\",\"\",'1. Order'!K1104)","v":""},{"$f":"IF('1. Order'!L1104=\"\",\"\",'1. Order'!L1104)","v":""},{"$f":"IF('1. Order'!M1104=\"\",\"\",'1. Order'!M1104)","v":""},{"$f":"IF('1. Order'!N1104=\"\",\"\",'1. Order'!N1104)","v":""},{"$f":"IF('1. Order'!O1104=\"\",\"\",'1. Order'!O1104)","v":{"$error":"#N/A"}},{"$f":"IF('1. Order'!P1104=\"\",\"\",'1. Order'!P1104)","v":{"$error":"#N/A"}},{"$f":"IF('1. Order'!Q1104=\"\",\"\",'1. Order'!Q1104)","v":""},{"$f":"IF('1. Order'!S1104=\"\",\"\",'1. Order'!S1104)","v":""},{"$f":"IF('1. Order'!T1104=\"\",\"\",'1. Order'!T1104)","v":""},{"$f":"IF('1. Order'!W1104=\"\",\"\",'1. Order'!W1104)","v":""},{"$f":"IF('1. Order'!X1104=\"\",\"\",'1. Order'!X1104)","v":""},{"$f":"IF('1. Order'!Y1104=\"\",\"\",'1. Order'!Y1104)","v":"EUR"},{"$f":"IF('1. Order'!Z1104=\"\",\"\",'1. Order'!Z1104)","v":""},{"$f":"IF('1. Order'!AA1104=\"\",\"\",'1. Order'!AA1104)","v":""},{"$f":"IF('1. Order'!AB1104=\"\",\"\",'1. Order'!AB1104)","v":""},null,{"$f":"IF('1. Order'!AT1104=\"\",\"\",'1. Order'!AT1104)","v":""},{"$f":"IF('1. Order'!AU1104=\"\",\"\",'1. Order'!AU1104)","v":""},null,null,null,null,null,null,null,{"$f":"IF('1. Order'!AY1104=\"\",\"\",'1. Order'!AY1104)","v":""},{"$f":"IF('1. Order'!AZ1104=\"\",\"\",'1. Order'!AZ1104)","v":""},{"$f":"IF('1. Order'!BA1104=\"\",\"\",'1. Order'!BA1104)","v":""},{"$f":"IF('1. Order'!BB1104=\"\",\"\",'1. Order'!BB1104)","v":""},{"$f":"IF('1. Order'!BD1104=\"\",\"\",'1. Order'!BD1104)","v":""},{"$f":"IF('1. Order'!BE1104=\"\",\"\",'1. Order'!BE1104)","v":""},{"$f":"IF('1. Order'!BF1104=\"\",\"\",'1. Order'!BF1104)","v":""},{"$f":"IF('1. Order'!BG1104=\"\",\"\",'1. Order'!BG1104)","v":""},{"$f":"IF('1. Order'!BH1104=\"\",\"\",'1. Order'!BH1104)","v":"ZWO"}]
[{"$f":"IF('1. Order'!F1105=\"\",\"\",'1. Order'!F1105)","v":{"$error":"#N/A"}},{"$f":"IF('1. Order'!G1105=\"\",\"\",'1. Order'!G1105)","v":""},{"$f":"IF('1. Order'!H1105=\"\",\"\",'1. Order'!H1105)","v":""},{"$f":"IF('1. Order'!I1105=\"\",\"\",'1. Order'!I1105)","v":""},{"$f":"IF('1. Order'!J1105=\"\",\"\",'1. Order'!J1105)","v":""},{"$f":"IF('1. Order'!K1105=\"\",\"\",'1. Order'!K1105)","v":""},{"$f":"IF('1. Order'!L1105=\"\",\"\",'1. Order'!L1105)","v":""},{"$f":"IF('1. Order'!M1105=\"\",\"\",'1. Order'!M1105)","v":""},{"$f":"IF('1. Order'!N1105=\"\",\"\",'1. Order'!N1105)","v":""},{"$f":"IF('1. Order'!O1105=\"\",\"\",'1. Order'!O1105)","v":{"$error":"#N/A"}},{"$f":"IF('1. Order'!P1105=\"\",\"\",'1. Order'!P1105)","v":{"$error":"#N/A"}},{"$f":"IF('1. Order'!Q1105=\"\",\"\",'1. Order'!Q1105)","v":""},{"$f":"IF('1. Order'!S1105=\"\",\"\",'1. Order'!S1105)","v":""},{"$f":"IF('1. Order'!T1105=\"\",\"\",'1. Order'!T1105)","v":""},{"$f":"IF('1. Order'!W1105=\"\",\"\",'1. Order'!W1105)","v":""},{"$f":"IF('1. Order'!X1105=\"\",\"\",'1. Order'!X1105)","v":""},{"$f":"IF('1. Order'!Y1105=\"\",\"\",'1. Order'!Y1105)","v":"EUR"},{"$f":"IF('1. Order'!Z1105=\"\",\"\",'1. Order'!Z1105)","v":""},{"$f":"IF('1. Order'!AA1105=\"\",\"\",'1. Order'!AA1105)","v":""},{"$f":"IF('1. Order'!AB1105=\"\",\"\",'1. Order'!AB1105)","v":""},null,{"$f":"IF('1. Order'!AT1105=\"\",\"\",'1. Order'!AT1105)","v":""},{"$f":"IF('1. Order'!AU1105=\"\",\"\",'1. Order'!AU1105)","v":""},null,null,null,null,null,null,null,{"$f":"IF('1. Order'!AY1105=\"\",\"\",'1. Order'!AY1105)","v":""},{"$f":"IF('1. Order'!AZ1105=\"\",\"\",'1. Order'!AZ1105)","v":""},{"$f":"IF('1. Order'!BA1105=\"\",\"\",'1. Order'!BA1105)","v":""},{"$f":"IF('1. Order'!BB1105=\"\",\"\",'1. Order'!BB1105)","v":""},{"$f":"IF('1. Order'!BD1105=\"\",\"\",'1. Order'!BD1105)","v":""},{"$f":"IF('1. Order'!BE1105=\"\",\"\",'1. Order'!BE1105)","v":""},{"$f":"IF('1. Order'!BF1105=\"\",\"\",'1. Order'!BF1105)","v":""},{"$f":"IF('1. Order'!BG1105=\"\",\"\",'1. Order'!BG1105)","v":""},{"$f":"IF('1. Order'!BH1105=\"\",\"\",'1. Order'!BH1105)","v":"ZWO"}]
[{"$f":"IF('1. Order'!F1106=\"\",\"\",'1. Order'!F1106)","v":{"$error":"#N/A"}},{"$f":"IF('1. Order'!G1106=\"\",\"\",'1. Order'!G1106)","v":""},{"$f":"IF('1. Order'!H1106=\"\",\"\",'1. Order'!H1106)","v":""},{"$f":"IF('1. Order'!I1106=\"\",\"\",'1. Order'!I1106)","v":""},{"$f":"IF('1. Order'!J1106=\"\",\"\",'1. Order'!J1106)","v":""},{"$f":"IF('1. Order'!K1106=\"\",\"\",'1. Order'!K1106)","v":""},{"$f":"IF('1. Order'!L1106=\"\",\"\",'1. Order'!L1106)","v":""},{"$f":"IF('1. Order'!M1106=\"\",\"\",'1. Order'!M1106)","v":""},{"$f":"IF('1. Order'!N1106=\"\",\"\",'1. Order'!N1106)","v":""},{"$f":"IF('1. Order'!O1106=\"\",\"\",'1. Order'!O1106)","v":{"$error":"#N/A"}},{"$f":"IF('1. Order'!P1106=\"\",\"\",'1. Order'!P1106)","v":{"$error":"#N/A"}},{"$f":"IF('1. Order'!Q1106=\"\",\"\",'1. Order'!Q1106)","v":""},{"$f":"IF('1. Order'!S1106=\"\",\"\",'1. Order'!S1106)","v":""},{"$f":"IF('1. Order'!T1106=\"\",\"\",'1. Order'!T1106)","v":""},{"$f":"IF('1. Order'!W1106=\"\",\"\",'1. Order'!W1106)","v":""},{"$f":"IF('1. Order'!X1106=\"\",\"\",'1. Order'!X1106)","v":""},{"$f":"IF('1. Order'!Y1106=\"\",\"\",'1. Order'!Y1106)","v":"EUR"},{"$f":"IF('1. Order'!Z1106=\"\",\"\",'1. Order'!Z1106)","v":""},{"$f":"IF('1. Order'!AA1106=\"\",\"\",'1. Order'!AA1106)","v":""},{"$f":"IF('1. Order'!AB1106=\"\",\"\",'1. Order'!AB1106)","v":""},null,{"$f":"IF('1. Order'!AT1106=\"\",\"\",'1. Order'!AT1106)","v":""},{"$f":"IF('1. Order'!AU1106=\"\",\"\",'1. Order'!AU1106)","v":""},null,null,null,null,null,null,null,{"$f":"IF('1. Order'!AY1106=\"\",\"\",'1. Order'!AY1106)","v":""},{"$f":"IF('1. Order'!AZ1106=\"\",\"\",'1. Order'!AZ1106)","v":""},{"$f":"IF('1. Order'!BA1106=\"\",\"\",'1. Order'!BA1106)","v":""},{"$f":"IF('1. Order'!BB1106=\"\",\"\",'1. Order'!BB1106)","v":""},{"$f":"IF('1. Order'!BD1106=\"\",\"\",'1. Order'!BD1106)","v":""},{"$f":"IF('1. Order'!BE1106=\"\",\"\",'1. Order'!BE1106)","v":""},{"$f":"IF('1. Order'!BF1106=\"\",\"\",'1. Order'!BF1106)","v":""},{"$f":"IF('1. Order'!BG1106=\"\",\"\",'1. Order'!BG1106)","v":""},{"$f":"IF('1. Order'!BH1106=\"\",\"\",'1. Order'!BH1106)","v":"ZWO"}]
[{"$f":"IF('1. Order'!F1107=\"\",\"\",'1. Order'!F1107)","v":{"$error":"#N/A"}},{"$f":"IF('1. Order'!G1107=\"\",\"\",'1. Order'!G1107)","v":""},{"$f":"IF('1. Order'!H1107=\"\",\"\",'1. Order'!H1107)","v":""},{"$f":"IF('1. Order'!I1107=\"\",\"\",'1. Order'!I1107)","v":""},{"$f":"IF('1. Order'!J1107=\"\",\"\",'1. Order'!J1107)","v":""},{"$f":"IF('1. Order'!K1107=\"\",\"\",'1. Order'!K1107)","v":""},{"$f":"IF('1. Order'!L1107=\"\",\"\",'1. Order'!L1107)","v":""},{"$f":"IF('1. Order'!M1107=\"\",\"\",'1. Order'!M1107)","v":""},{"$f":"IF('1. Order'!N1107=\"\",\"\",'1. Order'!N1107)","v":""},{"$f":"IF('1. Order'!O1107=\"\",\"\",'1. Order'!O1107)","v":{"$error":"#N/A"}},{"$f":"IF('1. Order'!P1107=\"\",\"\",'1. Order'!P1107)","v":{"$error":"#N/A"}},{"$f":"IF('1. Order'!Q1107=\"\",\"\",'1. Order'!Q1107)","v":""},{"$f":"IF('1. Order'!S1107=\"\",\"\",'1. Order'!S1107)","v":""},{"$f":"IF('1. Order'!T1107=\"\",\"\",'1. Order'!T1107)","v":""},{"$f":"IF('1. Order'!W1107=\"\",\"\",'1. Order'!W1107)","v":""},{"$f":"IF('1. Order'!X1107=\"\",\"\",'1. Order'!X1107)","v":""},{"$f":"IF('1. Order'!Y1107=\"\",\"\",'1. Order'!Y1107)","v":"EUR"},{"$f":"IF('1. Order'!Z1107=\"\",\"\",'1. Order'!Z1107)","v":""},{"$f":"IF('1. Order'!AA1107=\"\",\"\",'1. Order'!AA1107)","v":""},{"$f":"IF('1. Order'!AB1107=\"\",\"\",'1. Order'!AB1107)","v":""},null,{"$f":"IF('1. Order'!AT1107=\"\",\"\",'1. Order'!AT1107)","v":""},{"$f":"IF('1. Order'!AU1107=\"\",\"\",'1. Order'!AU1107)","v":""},null,null,null,null,null,null,null,{"$f":"IF('1. Order'!AY1107=\"\",\"\",'1. Order'!AY1107)","v":""},{"$f":"IF('1. Order'!AZ1107=\"\",\"\",'1. Order'!AZ1107)","v":""},{"$f":"IF('1. Order'!BA1107=\"\",\"\",'1. Order'!BA1107)","v":""},{"$f":"IF('1. Order'!BB1107=\"\",\"\",'1. Order'!BB1107)","v":""},{"$f":"IF('1. Order'!BD1107=\"\",\"\",'1. Order'!BD1107)","v":""},{"$f":"IF('1. Order'!BE1107=\"\",\"\",'1. Order'!BE1107)","v":""},{"$f":"IF('1. Order'!BF1107=\"\",\"\",'1. Order'!BF1107)","v":""},{"$f":"IF('1. Order'!BG1107=\"\",\"\",'1. Order'!BG1107)","v":""},{"$f":"IF('1. Order'!BH1107=\"\",\"\",'1. Order'!BH1107)","v":"ZWO"}]
[{"$f":"IF('1. Order'!F1108=\"\",\"\",'1. Order'!F1108)","v":{"$error":"#N/A"}},{"$f":"IF('1. Order'!G1108=\"\",\"\",'1. Order'!G1108)","v":""},{"$f":"IF('1. Order'!H1108=\"\",\"\",'1. Order'!H1108)","v":""},{"$f":"IF('1. Order'!I1108=\"\",\"\",'1. Order'!I1108)","v":""},{"$f":"IF('1. Order'!J1108=\"\",\"\",'1. Order'!J1108)","v":""},{"$f":"IF('1. Order'!K1108=\"\",\"\",'1. Order'!K1108)","v":""},{"$f":"IF('1. Order'!L1108=\"\",\"\",'1. Order'!L1108)","v":""},{"$f":"IF('1. Order'!M1108=\"\",\"\",'1. Order'!M1108)","v":""},{"$f":"IF('1. Order'!N1108=\"\",\"\",'1. Order'!N1108)","v":""},{"$f":"IF('1. Order'!O1108=\"\",\"\",'1. Order'!O1108)","v":{"$error":"#N/A"}},{"$f":"IF('1. Order'!P1108=\"\",\"\",'1. Order'!P1108)","v":{"$error":"#N/A"}},{"$f":"IF('1. Order'!Q1108=\"\",\"\",'1. Order'!Q1108)","v":""},{"$f":"IF('1. Order'!S1108=\"\",\"\",'1. Order'!S1108)","v":""},{"$f":"IF('1. Order'!T1108=\"\",\"\",'1. Order'!T1108)","v":""},{"$f":"IF('1. Order'!W1108=\"\",\"\",'1. Order'!W1108)","v":""},{"$f":"IF('1. Order'!X1108=\"\",\"\",'1. Order'!X1108)","v":""},{"$f":"IF('1. Order'!Y1108=\"\",\"\",'1. Order'!Y1108)","v":"EUR"},{"$f":"IF('1. Order'!Z1108=\"\",\"\",'1. Order'!Z1108)","v":""},{"$f":"IF('1. Order'!AA1108=\"\",\"\",'1. Order'!AA1108)","v":""},{"$f":"IF('1. Order'!AB1108=\"\",\"\",'1. Order'!AB1108)","v":""},null,{"$f":"IF('1. Order'!AT1108=\"\",\"\",'1. Order'!AT1108)","v":""},{"$f":"IF('1. Order'!AU1108=\"\",\"\",'1. Order'!AU1108)","v":""},null,null,null,null,null,null,null,{"$f":"IF('1. Order'!AY1108=\"\",\"\",'1. Order'!AY1108)","v":""},{"$f":"IF('1. Order'!AZ1108=\"\",\"\",'1. Order'!AZ1108)","v":""},{"$f":"IF('1. Order'!BA1108=\"\",\"\",'1. Order'!BA1108)","v":""},{"$f":"IF('1. Order'!BB1108=\"\",\"\",'1. Order'!BB1108)","v":""},{"$f":"IF('1. Order'!BD1108=\"\",\"\",'1. Order'!BD1108)","v":""},{"$f":"IF('1. Order'!BE1108=\"\",\"\",'1. Order'!BE1108)","v":""},{"$f":"IF('1. Order'!BF1108=\"\",\"\",'1. Order'!BF1108)","v":""},{"$f":"IF('1. Order'!BG1108=\"\",\"\",'1. Order'!BG1108)","v":""},{"$f":"IF('1. Order'!BH1108=\"\",\"\",'1. Order'!BH1108)","v":"ZWO"}]
[{"$f":"IF('1. Order'!F1109=\"\",\"\",'1. Order'!F1109)","v":{"$error":"#N/A"}},{"$f":"IF('1. Order'!G1109=\"\",\"\",'1. Order'!G1109)","v":""},{"$f":"IF('1. Order'!H1109=\"\",\"\",'1. Order'!H1109)","v":""},{"$f":"IF('1. Order'!I1109=\"\",\"\",'1. Order'!I1109)","v":""},{"$f":"IF('1. Order'!J1109=\"\",\"\",'1. Order'!J1109)","v":""},{"$f":"IF('1. Order'!K1109=\"\",\"\",'1. Order'!K1109)","v":""},{"$f":"IF('1. Order'!L1109=\"\",\"\",'1. Order'!L1109)","v":""},{"$f":"IF('1. Order'!M1109=\"\",\"\",'1. Order'!M1109)","v":""},{"$f":"IF('1. Order'!N1109=\"\",\"\",'1. Order'!N1109)","v":""},{"$f":"IF('1. Order'!O1109=\"\",\"\",'1. Order'!O1109)","v":{"$error":"#N/A"}},{"$f":"IF('1. Order'!P1109=\"\",\"\",'1. Order'!P1109)","v":{"$error":"#N/A"}},{"$f":"IF('1. Order'!Q1109=\"\",\"\",'1. Order'!Q1109)","v":""},{"$f":"IF('1. Order'!S1109=\"\",\"\",'1. Order'!S1109)","v":""},{"$f":"IF('1. Order'!T1109=\"\",\"\",'1. Order'!T1109)","v":""},{"$f":"IF('1. Order'!W1109=\"\",\"\",'1. Order'!W1109)","v":""},{"$f":"IF('1. Order'!X1109=\"\",\"\",'1. Order'!X1109)","v":""},{"$f":"IF('1. Order'!Y1109=\"\",\"\",'1. Order'!Y1109)","v":"EUR"},{"$f":"IF('1. Order'!Z1109=\"\",\"\",'1. Order'!Z1109)","v":""},{"$f":"IF('1. Order'!AA1109=\"\",\"\",'1. Order'!AA1109)","v":""},{"$f":"IF('1. Order'!AB1109=\"\",\"\",'1. Order'!AB1109)","v":""},null,{"$f":"IF('1. Order'!AT1109=\"\",\"\",'1. Order'!AT1109)","v":""},{"$f":"IF('1. Order'!AU1109=\"\",\"\",'1. Order'!AU1109)","v":""},null,null,null,null,null,null,null,{"$f":"IF('1. Order'!AY1109=\"\",\"\",'1. Order'!AY1109)","v":""},{"$f":"IF('1. Order'!AZ1109=\"\",\"\",'1. Order'!AZ1109)","v":""},{"$f":"IF('1. Order'!BA1109=\"\",\"\",'1. Order'!BA1109)","v":""},{"$f":"IF('1. Order'!BB1109=\"\",\"\",'1. Order'!BB1109)","v":""},{"$f":"IF('1. Order'!BD1109=\"\",\"\",'1. Order'!BD1109)","v":""},{"$f":"IF('1. Order'!BE1109=\"\",\"\",'1. Order'!BE1109)","v":""},{"$f":"IF('1. Order'!BF1109=\"\",\"\",'1. Order'!BF1109)","v":""},{"$f":"IF('1. Order'!BG1109=\"\",\"\",'1. Order'!BG1109)","v":""},{"$f":"IF('1. Order'!BH1109=\"\",\"\",'1. Order'!BH1109)","v":"ZWO"}]
[{"$f":"IF('1. Order'!F1110=\"\",\"\",'1. Order'!F1110)","v":{"$error":"#N/A"}},{"$f":"IF('1. Order'!G1110=\"\",\"\",'1. Order'!G1110)","v":""},{"$f":"IF('1. Order'!H1110=\"\",\"\",'1. Order'!H1110)","v":""},{"$f":"IF('1. Order'!I1110=\"\",\"\",'1. Order'!I1110)","v":""},{"$f":"IF('1. Order'!J1110=\"\",\"\",'1. Order'!J1110)","v":""},{"$f":"IF('1. Order'!K1110=\"\",\"\",'1. Order'!K1110)","v":""},{"$f":"IF('1. Order'!L1110=\"\",\"\",'1. Order'!L1110)","v":""},{"$f":"IF('1. Order'!M1110=\"\",\"\",'1. Order'!M1110)","v":""},{"$f":"IF('1. Order'!N1110=\"\",\"\",'1. Order'!N1110)","v":""},{"$f":"IF('1. Order'!O1110=\"\",\"\",'1. Order'!O1110)","v":{"$error":"#N/A"}},{"$f":"IF('1. Order'!P1110=\"\",\"\",'1. Order'!P1110)","v":{"$error":"#N/A"}},{"$f":"IF('1. Order'!Q1110=\"\",\"\",'1. Order'!Q1110)","v":""},{"$f":"IF('1. Order'!S1110=\"\",\"\",'1. Order'!S1110)","v":""},{"$f":"IF('1. Order'!T1110=\"\",\"\",'1. Order'!T1110)","v":""},{"$f":"IF('1. Order'!W1110=\"\",\"\",'1. Order'!W1110)","v":""},{"$f":"IF('1. Order'!X1110=\"\",\"\",'1. Order'!X1110)","v":""},{"$f":"IF('1. Order'!Y1110=\"\",\"\",'1. Order'!Y1110)","v":"EUR"},{"$f":"IF('1. Order'!Z1110=\"\",\"\",'1. Order'!Z1110)","v":""},{"$f":"IF('1. Order'!AA1110=\"\",\"\",'1. Order'!AA1110)","v":""},{"$f":"IF('1. Order'!AB1110=\"\",\"\",'1. Order'!AB1110)","v":""},null,{"$f":"IF('1. Order'!AT1110=\"\",\"\",'1. Order'!AT1110)","v":""},{"$f":"IF('1. Order'!AU1110=\"\",\"\",'1. Order'!AU1110)","v":""},null,null,null,null,null,null,null,{"$f":"IF('1. Order'!AY1110=\"\",\"\",'1. Order'!AY1110)","v":""},{"$f":"IF('1. Order'!AZ1110=\"\",\"\",'1. Order'!AZ1110)","v":""},{"$f":"IF('1. Order'!BA1110=\"\",\"\",'1. Order'!BA1110)","v":""},{"$f":"IF('1. Order'!BB1110=\"\",\"\",'1. Order'!BB1110)","v":""},{"$f":"IF('1. Order'!BD1110=\"\",\"\",'1. Order'!BD1110)","v":""},{"$f":"IF('1. Order'!BE1110=\"\",\"\",'1. Order'!BE1110)","v":""},{"$f":"IF('1. Order'!BF1110=\"\",\"\",'1. Order'!BF1110)","v":""},{"$f":"IF('1. Order'!BG1110=\"\",\"\",'1. Order'!BG1110)","v":""},{"$f":"IF('1. Order'!BH1110=\"\",\"\",'1. Order'!BH1110)","v":"ZWO"}]
[{"$f":"IF('1. Order'!F1111=\"\",\"\",'1. Order'!F1111)","v":{"$error":"#N/A"}},{"$f":"IF('1. Order'!G1111=\"\",\"\",'1. Order'!G1111)","v":""},{"$f":"IF('1. Order'!H1111=\"\",\"\",'1. Order'!H1111)","v":""},{"$f":"IF('1. Order'!I1111=\"\",\"\",'1. Order'!I1111)","v":""},{"$f":"IF('1. Order'!J1111=\"\",\"\",'1. Order'!J1111)","v":""},{"$f":"IF('1. Order'!K1111=\"\",\"\",'1. Order'!K1111)","v":""},{"$f":"IF('1. Order'!L1111=\"\",\"\",'1. Order'!L1111)","v":""},{"$f":"IF('1. Order'!M1111=\"\",\"\",'1. Order'!M1111)","v":""},{"$f":"IF('1. Order'!N1111=\"\",\"\",'1. Order'!N1111)","v":""},{"$f":"IF('1. Order'!O1111=\"\",\"\",'1. Order'!O1111)","v":{"$error":"#N/A"}},{"$f":"IF('1. Order'!P1111=\"\",\"\",'1. Order'!P1111)","v":{"$error":"#N/A"}},{"$f":"IF('1. Order'!Q1111=\"\",\"\",'1. Order'!Q1111)","v":""},{"$f":"IF('1. Order'!S1111=\"\",\"\",'1. Order'!S1111)","v":""},{"$f":"IF('1. Order'!T1111=\"\",\"\",'1. Order'!T1111)","v":""},{"$f":"IF('1. Order'!W1111=\"\",\"\",'1. Order'!W1111)","v":""},{"$f":"IF('1. Order'!X1111=\"\",\"\",'1. Order'!X1111)","v":""},{"$f":"IF('1. Order'!Y1111=\"\",\"\",'1. Order'!Y1111)","v":"EUR"},{"$f":"IF('1. Order'!Z1111=\"\",\"\",'1. Order'!Z1111)","v":""},{"$f":"IF('1. Order'!AA1111=\"\",\"\",'1. Order'!AA1111)","v":""},{"$f":"IF('1. Order'!AB1111=\"\",\"\",'1. Order'!AB1111)","v":""},null,{"$f":"IF('1. Order'!AT1111=\"\",\"\",'1. Order'!AT1111)","v":""},{"$f":"IF('1. Order'!AU1111=\"\",\"\",'1. Order'!AU1111)","v":""},null,null,null,null,null,null,null,{"$f":"IF('1. Order'!AY1111=\"\",\"\",'1. Order'!AY1111)","v":""},{"$f":"IF('1. Order'!AZ1111=\"\",\"\",'1. Order'!AZ1111)","v":""},{"$f":"IF('1. Order'!BA1111=\"\",\"\",'1. Order'!BA1111)","v":""},{"$f":"IF('1. Order'!BB1111=\"\",\"\",'1. Order'!BB1111)","v":""},{"$f":"IF('1. Order'!BD1111=\"\",\"\",'1. Order'!BD1111)","v":""},{"$f":"IF('1. Order'!BE1111=\"\",\"\",'1. Order'!BE1111)","v":""},{"$f":"IF('1. Order'!BF1111=\"\",\"\",'1. Order'!BF1111)","v":""},{"$f":"IF('1. Order'!BG1111=\"\",\"\",'1. Order'!BG1111)","v":""},{"$f":"IF('1. Order'!BH1111=\"\",\"\",'1. Order'!BH1111)","v":"ZWO"}]
[{"$f":"IF('1. Order'!F1112=\"\",\"\",'1. Order'!F1112)","v":{"$error":"#N/A"}},{"$f":"IF('1. Order'!G1112=\"\",\"\",'1. Order'!G1112)","v":""},{"$f":"IF('1. Order'!H1112=\"\",\"\",'1. Order'!H1112)","v":""},{"$f":"IF('1. Order'!I1112=\"\",\"\",'1. Order'!I1112)","v":""},{"$f":"IF('1. Order'!J1112=\"\",\"\",'1. Order'!J1112)","v":""},{"$f":"IF('1. Order'!K1112=\"\",\"\",'1. Order'!K1112)","v":""},{"$f":"IF('1. Order'!L1112=\"\",\"\",'1. Order'!L1112)","v":""},{"$f":"IF('1. Order'!M1112=\"\",\"\",'1. Order'!M1112)","v":""},{"$f":"IF('1. Order'!N1112=\"\",\"\",'1. Order'!N1112)","v":""},{"$f":"IF('1. Order'!O1112=\"\",\"\",'1. Order'!O1112)","v":{"$error":"#N/A"}},{"$f":"IF('1. Order'!P1112=\"\",\"\",'1. Order'!P1112)","v":{"$error":"#N/A"}},{"$f":"IF('1. Order'!Q1112=\"\",\"\",'1. Order'!Q1112)","v":""},{"$f":"IF('1. Order'!S1112=\"\",\"\",'1. Order'!S1112)","v":""},{"$f":"IF('1. Order'!T1112=\"\",\"\",'1. Order'!T1112)","v":""},{"$f":"IF('1. Order'!W1112=\"\",\"\",'1. Order'!W1112)","v":""},{"$f":"IF('1. Order'!X1112=\"\",\"\",'1. Order'!X1112)","v":""},{"$f":"IF('1. Order'!Y1112=\"\",\"\",'1. Order'!Y1112)","v":"EUR"},{"$f":"IF('1. Order'!Z1112=\"\",\"\",'1. Order'!Z1112)","v":""},{"$f":"IF('1. Order'!AA1112=\"\",\"\",'1. Order'!AA1112)","v":""},{"$f":"IF('1. Order'!AB1112=\"\",\"\",'1. Order'!AB1112)","v":""},null,{"$f":"IF('1. Order'!AT1112=\"\",\"\",'1. Order'!AT1112)","v":""},{"$f":"IF('1. Order'!AU1112=\"\",\"\",'1. Order'!AU1112)","v":""},null,null,null,null,null,null,null,{"$f":"IF('1. Order'!AY1112=\"\",\"\",'1. Order'!AY1112)","v":""},{"$f":"IF('1. Order'!AZ1112=\"\",\"\",'1. Order'!AZ1112)","v":""},{"$f":"IF('1. Order'!BA1112=\"\",\"\",'1. Order'!BA1112)","v":""},{"$f":"IF('1. Order'!BB1112=\"\",\"\",'1. Order'!BB1112)","v":""},{"$f":"IF('1. Order'!BD1112=\"\",\"\",'1. Order'!BD1112)","v":""},{"$f":"IF('1. Order'!BE1112=\"\",\"\",'1. Order'!BE1112)","v":""},{"$f":"IF('1. Order'!BF1112=\"\",\"\",'1. Order'!BF1112)","v":""},{"$f":"IF('1. Order'!BG1112=\"\",\"\",'1. Order'!BG1112)","v":""},{"$f":"IF('1. Order'!BH1112=\"\",\"\",'1. Order'!BH1112)","v":"ZWO"}]
[{"$f":"IF('1. Order'!F1113=\"\",\"\",'1. Order'!F1113)","v":{"$error":"#N/A"}},{"$f":"IF('1. Order'!G1113=\"\",\"\",'1. Order'!G1113)","v":""},{"$f":"IF('1. Order'!H1113=\"\",\"\",'1. Order'!H1113)","v":""},{"$f":"IF('1. Order'!I1113=\"\",\"\",'1. Order'!I1113)","v":""},{"$f":"IF('1. Order'!J1113=\"\",\"\",'1. Order'!J1113)","v":""},{"$f":"IF('1. Order'!K1113=\"\",\"\",'1. Order'!K1113)","v":""},{"$f":"IF('1. Order'!L1113=\"\",\"\",'1. Order'!L1113)","v":""},{"$f":"IF('1. Order'!M1113=\"\",\"\",'1. Order'!M1113)","v":""},{"$f":"IF('1. Order'!N1113=\"\",\"\",'1. Order'!N1113)","v":""},{"$f":"IF('1. Order'!O1113=\"\",\"\",'1. Order'!O1113)","v":{"$error":"#N/A"}},{"$f":"IF('1. Order'!P1113=\"\",\"\",'1. Order'!P1113)","v":{"$error":"#N/A"}},{"$f":"IF('1. Order'!Q1113=\"\",\"\",'1. Order'!Q1113)","v":""},{"$f":"IF('1. Order'!S1113=\"\",\"\",'1. Order'!S1113)","v":""},{"$f":"IF('1. Order'!T1113=\"\",\"\",'1. Order'!T1113)","v":""},{"$f":"IF('1. Order'!W1113=\"\",\"\",'1. Order'!W1113)","v":""},{"$f":"IF('1. Order'!X1113=\"\",\"\",'1. Order'!X1113)","v":""},{"$f":"IF('1. Order'!Y1113=\"\",\"\",'1. Order'!Y1113)","v":"EUR"},{"$f":"IF('1. Order'!Z1113=\"\",\"\",'1. Order'!Z1113)","v":""},{"$f":"IF('1. Order'!AA1113=\"\",\"\",'1. Order'!AA1113)","v":""},{"$f":"IF('1. Order'!AB1113=\"\",\"\",'1. Order'!AB1113)","v":""},null,{"$f":"IF('1. Order'!AT1113=\"\",\"\",'1. Order'!AT1113)","v":""},{"$f":"IF('1. Order'!AU1113=\"\",\"\",'1. Order'!AU1113)","v":""},null,null,null,null,null,null,null,{"$f":"IF('1. Order'!AY1113=\"\",\"\",'1. Order'!AY1113)","v":""},{"$f":"IF('1. Order'!AZ1113=\"\",\"\",'1. Order'!AZ1113)","v":""},{"$f":"IF('1. Order'!BA1113=\"\",\"\",'1. Order'!BA1113)","v":""},{"$f":"IF('1. Order'!BB1113=\"\",\"\",'1. Order'!BB1113)","v":""},{"$f":"IF('1. Order'!BD1113=\"\",\"\",'1. Order'!BD1113)","v":""},{"$f":"IF('1. Order'!BE1113=\"\",\"\",'1. Order'!BE1113)","v":""},{"$f":"IF('1. Order'!BF1113=\"\",\"\",'1. Order'!BF1113)","v":""},{"$f":"IF('1. Order'!BG1113=\"\",\"\",'1. Order'!BG1113)","v":""},{"$f":"IF('1. Order'!BH1113=\"\",\"\",'1. Order'!BH1113)","v":"ZWO"}]
[{"$f":"IF('1. Order'!F1114=\"\",\"\",'1. Order'!F1114)","v":{"$error":"#N/A"}},{"$f":"IF('1. Order'!G1114=\"\",\"\",'1. Order'!G1114)","v":""},{"$f":"IF('1. Order'!H1114=\"\",\"\",'1. Order'!H1114)","v":""},{"$f":"IF('1. Order'!I1114=\"\",\"\",'1. Order'!I1114)","v":""},{"$f":"IF('1. Order'!J1114=\"\",\"\",'1. Order'!J1114)","v":""},{"$f":"IF('1. Order'!K1114=\"\",\"\",'1. Order'!K1114)","v":""},{"$f":"IF('1. Order'!L1114=\"\",\"\",'1. Order'!L1114)","v":""},{"$f":"IF('1. Order'!M1114=\"\",\"\",'1. Order'!M1114)","v":""},{"$f":"IF('1. Order'!N1114=\"\",\"\",'1. Order'!N1114)","v":""},{"$f":"IF('1. Order'!O1114=\"\",\"\",'1. Order'!O1114)","v":{"$error":"#N/A"}},{"$f":"IF('1. Order'!P1114=\"\",\"\",'1. Order'!P1114)","v":{"$error":"#N/A"}},{"$f":"IF('1. Order'!Q1114=\"\",\"\",'1. Order'!Q1114)","v":""},{"$f":"IF('1. Order'!S1114=\"\",\"\",'1. Order'!S1114)","v":""},{"$f":"IF('1. Order'!T1114=\"\",\"\",'1. Order'!T1114)","v":""},{"$f":"IF('1. Order'!W1114=\"\",\"\",'1. Order'!W1114)","v":""},{"$f":"IF('1. Order'!X1114=\"\",\"\",'1. Order'!X1114)","v":""},{"$f":"IF('1. Order'!Y1114=\"\",\"\",'1. Order'!Y1114)","v":"EUR"},{"$f":"IF('1. Order'!Z1114=\"\",\"\",'1. Order'!Z1114)","v":""},{"$f":"IF('1. Order'!AA1114=\"\",\"\",'1. Order'!AA1114)","v":""},{"$f":"IF('1. Order'!AB1114=\"\",\"\",'1. Order'!AB1114)","v":""},null,{"$f":"IF('1. Order'!AT1114=\"\",\"\",'1. Order'!AT1114)","v":""},{"$f":"IF('1. Order'!AU1114=\"\",\"\",'1. Order'!AU1114)","v":""},null,null,null,null,null,null,null,{"$f":"IF('1. Order'!AY1114=\"\",\"\",'1. Order'!AY1114)","v":""},{"$f":"IF('1. Order'!AZ1114=\"\",\"\",'1. Order'!AZ1114)","v":""},{"$f":"IF('1. Order'!BA1114=\"\",\"\",'1. Order'!BA1114)","v":""},{"$f":"IF('1. Order'!BB1114=\"\",\"\",'1. Order'!BB1114)","v":""},{"$f":"IF('1. Order'!BD1114=\"\",\"\",'1. Order'!BD1114)","v":""},{"$f":"IF('1. Order'!BE1114=\"\",\"\",'1. Order'!BE1114)","v":""},{"$f":"IF('1. Order'!BF1114=\"\",\"\",'1. Order'!BF1114)","v":""},{"$f":"IF('1. Order'!BG1114=\"\",\"\",'1. Order'!BG1114)","v":""},{"$f":"IF('1. Order'!BH1114=\"\",\"\",'1. Order'!BH1114)","v":"ZWO"}]
[{"$f":"IF('1. Order'!F1115=\"\",\"\",'1. Order'!F1115)","v":{"$error":"#N/A"}},{"$f":"IF('1. Order'!G1115=\"\",\"\",'1. Order'!G1115)","v":""},{"$f":"IF('1. Order'!H1115=\"\",\"\",'1. Order'!H1115)","v":""},{"$f":"IF('1. Order'!I1115=\"\",\"\",'1. Order'!I1115)","v":""},{"$f":"IF('1. Order'!J1115=\"\",\"\",'1. Order'!J1115)","v":""},{"$f":"IF('1. Order'!K1115=\"\",\"\",'1. Order'!K1115)","v":""},{"$f":"IF('1. Order'!L1115=\"\",\"\",'1. Order'!L1115)","v":""},{"$f":"IF('1. Order'!M1115=\"\",\"\",'1. Order'!M1115)","v":""},{"$f":"IF('1. Order'!N1115=\"\",\"\",'1. Order'!N1115)","v":""},{"$f":"IF('1. Order'!O1115=\"\",\"\",'1. Order'!O1115)","v":{"$error":"#N/A"}},{"$f":"IF('1. Order'!P1115=\"\",\"\",'1. Order'!P1115)","v":{"$error":"#N/A"}},{"$f":"IF('1. Order'!Q1115=\"\",\"\",'1. Order'!Q1115)","v":""},{"$f":"IF('1. Order'!S1115=\"\",\"\",'1. Order'!S1115)","v":""},{"$f":"IF('1. Order'!T1115=\"\",\"\",'1. Order'!T1115)","v":""},{"$f":"IF('1. Order'!W1115=\"\",\"\",'1. Order'!W1115)","v":""},{"$f":"IF('1. Order'!X1115=\"\",\"\",'1. Order'!X1115)","v":""},{"$f":"IF('1. Order'!Y1115=\"\",\"\",'1. Order'!Y1115)","v":"EUR"},{"$f":"IF('1. Order'!Z1115=\"\",\"\",'1. Order'!Z1115)","v":""},{"$f":"IF('1. Order'!AA1115=\"\",\"\",'1. Order'!AA1115)","v":""},{"$f":"IF('1. Order'!AB1115=\"\",\"\",'1. Order'!AB1115)","v":""},null,{"$f":"IF('1. Order'!AT1115=\"\",\"\",'1. Order'!AT1115)","v":""},{"$f":"IF('1. Order'!AU1115=\"\",\"\",'1. Order'!AU1115)","v":""},null,null,null,null,null,null,null,{"$f":"IF('1. Order'!AY1115=\"\",\"\",'1. Order'!AY1115)","v":""},{"$f":"IF('1. Order'!AZ1115=\"\",\"\",'1. Order'!AZ1115)","v":""},{"$f":"IF('1. Order'!BA1115=\"\",\"\",'1. Order'!BA1115)","v":""},{"$f":"IF('1. Order'!BB1115=\"\",\"\",'1. Order'!BB1115)","v":""},{"$f":"IF('1. Order'!BD1115=\"\",\"\",'1. Order'!BD1115)","v":""},{"$f":"IF('1. Order'!BE1115=\"\",\"\",'1. Order'!BE1115)","v":""},{"$f":"IF('1. Order'!BF1115=\"\",\"\",'1. Order'!BF1115)","v":""},{"$f":"IF('1. Order'!BG1115=\"\",\"\",'1. Order'!BG1115)","v":""},{"$f":"IF('1. Order'!BH1115=\"\",\"\",'1. Order'!BH1115)","v":"ZWO"}]
[{"$f":"IF('1. Order'!F1116=\"\",\"\",'1. Order'!F1116)","v":{"$error":"#N/A"}},{"$f":"IF('1. Order'!G1116=\"\",\"\",'1. Order'!G1116)","v":""},{"$f":"IF('1. Order'!H1116=\"\",\"\",'1. Order'!H1116)","v":""},{"$f":"IF('1. Order'!I1116=\"\",\"\",'1. Order'!I1116)","v":""},{"$f":"IF('1. Order'!J1116=\"\",\"\",'1. Order'!J1116)","v":""},{"$f":"IF('1. Order'!K1116=\"\",\"\",'1. Order'!K1116)","v":""},{"$f":"IF('1. Order'!L1116=\"\",\"\",'1. Order'!L1116)","v":""},{"$f":"IF('1. Order'!M1116=\"\",\"\",'1. Order'!M1116)","v":""},{"$f":"IF('1. Order'!N1116=\"\",\"\",'1. Order'!N1116)","v":""},{"$f":"IF('1. Order'!O1116=\"\",\"\",'1. Order'!O1116)","v":{"$error":"#N/A"}},{"$f":"IF('1. Order'!P1116=\"\",\"\",'1. Order'!P1116)","v":{"$error":"#N/A"}},{"$f":"IF('1. Order'!Q1116=\"\",\"\",'1. Order'!Q1116)","v":""},{"$f":"IF('1. Order'!S1116=\"\",\"\",'1. Order'!S1116)","v":""},{"$f":"IF('1. Order'!T1116=\"\",\"\",'1. Order'!T1116)","v":""},{"$f":"IF('1. Order'!W1116=\"\",\"\",'1. Order'!W1116)","v":""},{"$f":"IF('1. Order'!X1116=\"\",\"\",'1. Order'!X1116)","v":""},{"$f":"IF('1. Order'!Y1116=\"\",\"\",'1. Order'!Y1116)","v":"EUR"},{"$f":"IF('1. Order'!Z1116=\"\",\"\",'1. Order'!Z1116)","v":""},{"$f":"IF('1. Order'!AA1116=\"\",\"\",'1. Order'!AA1116)","v":""},{"$f":"IF('1. Order'!AB1116=\"\",\"\",'1. Order'!AB1116)","v":""},null,{"$f":"IF('1. Order'!AT1116=\"\",\"\",'1. Order'!AT1116)","v":""},{"$f":"IF('1. Order'!AU1116=\"\",\"\",'1. Order'!AU1116)","v":""},null,null,null,null,null,null,null,{"$f":"IF('1. Order'!AY1116=\"\",\"\",'1. Order'!AY1116)","v":""},{"$f":"IF('1. Order'!AZ1116=\"\",\"\",'1. Order'!AZ1116)","v":""},{"$f":"IF('1. Order'!BA1116=\"\",\"\",'1. Order'!BA1116)","v":""},{"$f":"IF('1. Order'!BB1116=\"\",\"\",'1. Order'!BB1116)","v":""},{"$f":"IF('1. Order'!BD1116=\"\",\"\",'1. Order'!BD1116)","v":""},{"$f":"IF('1. Order'!BE1116=\"\",\"\",'1. Order'!BE1116)","v":""},{"$f":"IF('1. Order'!BF1116=\"\",\"\",'1. Order'!BF1116)","v":""},{"$f":"IF('1. Order'!BG1116=\"\",\"\",'1. Order'!BG1116)","v":""},{"$f":"IF('1. Order'!BH1116=\"\",\"\",'1. Order'!BH1116)","v":"ZWO"}]
[{"$f":"IF('1. Order'!F1117=\"\",\"\",'1. Order'!F1117)","v":{"$error":"#N/A"}},{"$f":"IF('1. Order'!G1117=\"\",\"\",'1. Order'!G1117)","v":""},{"$f":"IF('1. Order'!H1117=\"\",\"\",'1. Order'!H1117)","v":""},{"$f":"IF('1. Order'!I1117=\"\",\"\",'1. Order'!I1117)","v":""},{"$f":"IF('1. Order'!J1117=\"\",\"\",'1. Order'!J1117)","v":""},{"$f":"IF('1. Order'!K1117=\"\",\"\",'1. Order'!K1117)","v":""},{"$f":"IF('1. Order'!L1117=\"\",\"\",'1. Order'!L1117)","v":""},{"$f":"IF('1. Order'!M1117=\"\",\"\",'1. Order'!M1117)","v":""},{"$f":"IF('1. Order'!N1117=\"\",\"\",'1. Order'!N1117)","v":""},{"$f":"IF('1. Order'!O1117=\"\",\"\",'1. Order'!O1117)","v":{"$error":"#N/A"}},{"$f":"IF('1. Order'!P1117=\"\",\"\",'1. Order'!P1117)","v":{"$error":"#N/A"}},{"$f":"IF('1. Order'!Q1117=\"\",\"\",'1. Order'!Q1117)","v":""},{"$f":"IF('1. Order'!S1117=\"\",\"\",'1. Order'!S1117)","v":""},{"$f":"IF('1. Order'!T1117=\"\",\"\",'1. Order'!T1117)","v":""},{"$f":"IF('1. Order'!W1117=\"\",\"\",'1. Order'!W1117)","v":""},{"$f":"IF('1. Order'!X1117=\"\",\"\",'1. Order'!X1117)","v":""},{"$f":"IF('1. Order'!Y1117=\"\",\"\",'1. Order'!Y1117)","v":"EUR"},{"$f":"IF('1. Order'!Z1117=\"\",\"\",'1. Order'!Z1117)","v":""},{"$f":"IF('1. Order'!AA1117=\"\",\"\",'1. Order'!AA1117)","v":""},{"$f":"IF('1. Order'!AB1117=\"\",\"\",'1. Order'!AB1117)","v":""},null,{"$f":"IF('1. Order'!AT1117=\"\",\"\",'1. Order'!AT1117)","v":""},{"$f":"IF('1. Order'!AU1117=\"\",\"\",'1. Order'!AU1117)","v":""},null,null,null,null,null,null,null,{"$f":"IF('1. Order'!AY1117=\"\",\"\",'1. Order'!AY1117)","v":""},{"$f":"IF('1. Order'!AZ1117=\"\",\"\",'1. Order'!AZ1117)","v":""},{"$f":"IF('1. Order'!BA1117=\"\",\"\",'1. Order'!BA1117)","v":""},{"$f":"IF('1. Order'!BB1117=\"\",\"\",'1. Order'!BB1117)","v":""},{"$f":"IF('1. Order'!BD1117=\"\",\"\",'1. Order'!BD1117)","v":""},{"$f":"IF('1. Order'!BE1117=\"\",\"\",'1. Order'!BE1117)","v":""},{"$f":"IF('1. Order'!BF1117=\"\",\"\",'1. Order'!BF1117)","v":""},{"$f":"IF('1. Order'!BG1117=\"\",\"\",'1. Order'!BG1117)","v":""},{"$f":"IF('1. Order'!BH1117=\"\",\"\",'1. Order'!BH1117)","v":"ZWO"}]
[{"$f":"IF('1. Order'!F1118=\"\",\"\",'1. Order'!F1118)","v":{"$error":"#N/A"}},{"$f":"IF('1. Order'!G1118=\"\",\"\",'1. Order'!G1118)","v":""},{"$f":"IF('1. Order'!H1118=\"\",\"\",'1. Order'!H1118)","v":""},{"$f":"IF('1. Order'!I1118=\"\",\"\",'1. Order'!I1118)","v":""},{"$f":"IF('1. Order'!J1118=\"\",\"\",'1. Order'!J1118)","v":""},{"$f":"IF('1. Order'!K1118=\"\",\"\",'1. Order'!K1118)","v":""},{"$f":"IF('1. Order'!L1118=\"\",\"\",'1. Order'!L1118)","v":""},{"$f":"IF('1. Order'!M1118=\"\",\"\",'1. Order'!M1118)","v":""},{"$f":"IF('1. Order'!N1118=\"\",\"\",'1. Order'!N1118)","v":""},{"$f":"IF('1. Order'!O1118=\"\",\"\",'1. Order'!O1118)","v":{"$error":"#N/A"}},{"$f":"IF('1. Order'!P1118=\"\",\"\",'1. Order'!P1118)","v":{"$error":"#N/A"}},{"$f":"IF('1. Order'!Q1118=\"\",\"\",'1. Order'!Q1118)","v":""},{"$f":"IF('1. Order'!S1118=\"\",\"\",'1. Order'!S1118)","v":""},{"$f":"IF('1. Order'!T1118=\"\",\"\",'1. Order'!T1118)","v":""},{"$f":"IF('1. Order'!W1118=\"\",\"\",'1. Order'!W1118)","v":""},{"$f":"IF('1. Order'!X1118=\"\",\"\",'1. Order'!X1118)","v":""},{"$f":"IF('1. Order'!Y1118=\"\",\"\",'1. Order'!Y1118)","v":"EUR"},{"$f":"IF('1. Order'!Z1118=\"\",\"\",'1. Order'!Z1118)","v":""},{"$f":"IF('1. Order'!AA1118=\"\",\"\",'1. Order'!AA1118)","v":""},{"$f":"IF('1. Order'!AB1118=\"\",\"\",'1. Order'!AB1118)","v":""},null,{"$f":"IF('1. Order'!AT1118=\"\",\"\",'1. Order'!AT1118)","v":""},{"$f":"IF('1. Order'!AU1118=\"\",\"\",'1. Order'!AU1118)","v":""},null,null,null,null,null,null,null,{"$f":"IF('1. Order'!AY1118=\"\",\"\",'1. Order'!AY1118)","v":""},{"$f":"IF('1. Order'!AZ1118=\"\",\"\",'1. Order'!AZ1118)","v":""},{"$f":"IF('1. Order'!BA1118=\"\",\"\",'1. Order'!BA1118)","v":""},{"$f":"IF('1. Order'!BB1118=\"\",\"\",'1. Order'!BB1118)","v":""},{"$f":"IF('1. Order'!BD1118=\"\",\"\",'1. Order'!BD1118)","v":""},{"$f":"IF('1. Order'!BE1118=\"\",\"\",'1. Order'!BE1118)","v":""},{"$f":"IF('1. Order'!BF1118=\"\",\"\",'1. Order'!BF1118)","v":""},{"$f":"IF('1. Order'!BG1118=\"\",\"\",'1. Order'!BG1118)","v":""},{"$f":"IF('1. Order'!BH1118=\"\",\"\",'1. Order'!BH1118)","v":"ZWO"}]
[{"$f":"IF('1. Order'!F1119=\"\",\"\",'1. Order'!F1119)","v":{"$error":"#N/A"}},{"$f":"IF('1. Order'!G1119=\"\",\"\",'1. Order'!G1119)","v":""},{"$f":"IF('1. Order'!H1119=\"\",\"\",'1. Order'!H1119)","v":""},{"$f":"IF('1. Order'!I1119=\"\",\"\",'1. Order'!I1119)","v":""},{"$f":"IF('1. Order'!J1119=\"\",\"\",'1. Order'!J1119)","v":""},{"$f":"IF('1. Order'!K1119=\"\",\"\",'1. Order'!K1119)","v":""},{"$f":"IF('1. Order'!L1119=\"\",\"\",'1. Order'!L1119)","v":""},{"$f":"IF('1. Order'!M1119=\"\",\"\",'1. Order'!M1119)","v":""},{"$f":"IF('1. Order'!N1119=\"\",\"\",'1. Order'!N1119)","v":""},{"$f":"IF('1. Order'!O1119=\"\",\"\",'1. Order'!O1119)","v":{"$error":"#N/A"}},{"$f":"IF('1. Order'!P1119=\"\",\"\",'1. Order'!P1119)","v":{"$error":"#N/A"}},{"$f":"IF('1. Order'!Q1119=\"\",\"\",'1. Order'!Q1119)","v":""},{"$f":"IF('1. Order'!S1119=\"\",\"\",'1. Order'!S1119)","v":""},{"$f":"IF('1. Order'!T1119=\"\",\"\",'1. Order'!T1119)","v":""},{"$f":"IF('1. Order'!W1119=\"\",\"\",'1. Order'!W1119)","v":""},{"$f":"IF('1. Order'!X1119=\"\",\"\",'1. Order'!X1119)","v":""},{"$f":"IF('1. Order'!Y1119=\"\",\"\",'1. Order'!Y1119)","v":"EUR"},{"$f":"IF('1. Order'!Z1119=\"\",\"\",'1. Order'!Z1119)","v":""},{"$f":"IF('1. Order'!AA1119=\"\",\"\",'1. Order'!AA1119)","v":""},{"$f":"IF('1. Order'!AB1119=\"\",\"\",'1. Order'!AB1119)","v":""},null,{"$f":"IF('1. Order'!AT1119=\"\",\"\",'1. Order'!AT1119)","v":""},{"$f":"IF('1. Order'!AU1119=\"\",\"\",'1. Order'!AU1119)","v":""},null,null,null,null,null,null,null,{"$f":"IF('1. Order'!AY1119=\"\",\"\",'1. Order'!AY1119)","v":""},{"$f":"IF('1. Order'!AZ1119=\"\",\"\",'1. Order'!AZ1119)","v":""},{"$f":"IF('1. Order'!BA1119=\"\",\"\",'1. Order'!BA1119)","v":""},{"$f":"IF('1. Order'!BB1119=\"\",\"\",'1. Order'!BB1119)","v":""},{"$f":"IF('1. Order'!BD1119=\"\",\"\",'1. Order'!BD1119)","v":""},{"$f":"IF('1. Order'!BE1119=\"\",\"\",'1. Order'!BE1119)","v":""},{"$f":"IF('1. Order'!BF1119=\"\",\"\",'1. Order'!BF1119)","v":""},{"$f":"IF('1. Order'!BG1119=\"\",\"\",'1. Order'!BG1119)","v":""},{"$f":"IF('1. Order'!BH1119=\"\",\"\",'1. Order'!BH1119)","v":"ZWO"}]
[{"$f":"IF('1. Order'!F1120=\"\",\"\",'1. Order'!F1120)","v":{"$error":"#N/A"}},{"$f":"IF('1. Order'!G1120=\"\",\"\",'1. Order'!G1120)","v":""},{"$f":"IF('1. Order'!H1120=\"\",\"\",'1. Order'!H1120)","v":""},{"$f":"IF('1. Order'!I1120=\"\",\"\",'1. Order'!I1120)","v":""},{"$f":"IF('1. Order'!J1120=\"\",\"\",'1. Order'!J1120)","v":""},{"$f":"IF('1. Order'!K1120=\"\",\"\",'1. Order'!K1120)","v":""},{"$f":"IF('1. Order'!L1120=\"\",\"\",'1. Order'!L1120)","v":""},{"$f":"IF('1. Order'!M1120=\"\",\"\",'1. Order'!M1120)","v":""},{"$f":"IF('1. Order'!N1120=\"\",\"\",'1. Order'!N1120)","v":""},{"$f":"IF('1. Order'!O1120=\"\",\"\",'1. Order'!O1120)","v":{"$error":"#N/A"}},{"$f":"IF('1. Order'!P1120=\"\",\"\",'1. Order'!P1120)","v":{"$error":"#N/A"}},{"$f":"IF('1. Order'!Q1120=\"\",\"\",'1. Order'!Q1120)","v":""},{"$f":"IF('1. Order'!S1120=\"\",\"\",'1. Order'!S1120)","v":""},{"$f":"IF('1. Order'!T1120=\"\",\"\",'1. Order'!T1120)","v":""},{"$f":"IF('1. Order'!W1120=\"\",\"\",'1. Order'!W1120)","v":""},{"$f":"IF('1. Order'!X1120=\"\",\"\",'1. Order'!X1120)","v":""},{"$f":"IF('1. Order'!Y1120=\"\",\"\",'1. Order'!Y1120)","v":"EUR"},{"$f":"IF('1. Order'!Z1120=\"\",\"\",'1. Order'!Z1120)","v":""},{"$f":"IF('1. Order'!AA1120=\"\",\"\",'1. Order'!AA1120)","v":""},{"$f":"IF('1. Order'!AB1120=\"\",\"\",'1. Order'!AB1120)","v":""},null,{"$f":"IF('1. Order'!AT1120=\"\",\"\",'1. Order'!AT1120)","v":""},{"$f":"IF('1. Order'!AU1120=\"\",\"\",'1. Order'!AU1120)","v":""},null,null,null,null,null,null,null,{"$f":"IF('1. Order'!AY1120=\"\",\"\",'1. Order'!AY1120)","v":""},{"$f":"IF('1. Order'!AZ1120=\"\",\"\",'1. Order'!AZ1120)","v":""},{"$f":"IF('1. Order'!BA1120=\"\",\"\",'1. Order'!BA1120)","v":""},{"$f":"IF('1. Order'!BB1120=\"\",\"\",'1. Order'!BB1120)","v":""},{"$f":"IF('1. Order'!BD1120=\"\",\"\",'1. Order'!BD1120)","v":""},{"$f":"IF('1. Order'!BE1120=\"\",\"\",'1. Order'!BE1120)","v":""},{"$f":"IF('1. Order'!BF1120=\"\",\"\",'1. Order'!BF1120)","v":""},{"$f":"IF('1. Order'!BG1120=\"\",\"\",'1. Order'!BG1120)","v":""},{"$f":"IF('1. Order'!BH1120=\"\",\"\",'1. Order'!BH1120)","v":"ZWO"}]
[{"$f":"IF('1. Order'!F1121=\"\",\"\",'1. Order'!F1121)","v":{"$error":"#N/A"}},{"$f":"IF('1. Order'!G1121=\"\",\"\",'1. Order'!G1121)","v":""},{"$f":"IF('1. Order'!H1121=\"\",\"\",'1. Order'!H1121)","v":""},{"$f":"IF('1. Order'!I1121=\"\",\"\",'1. Order'!I1121)","v":""},{"$f":"IF('1. Order'!J1121=\"\",\"\",'1. Order'!J1121)","v":""},{"$f":"IF('1. Order'!K1121=\"\",\"\",'1. Order'!K1121)","v":""},{"$f":"IF('1. Order'!L1121=\"\",\"\",'1. Order'!L1121)","v":""},{"$f":"IF('1. Order'!M1121=\"\",\"\",'1. Order'!M1121)","v":""},{"$f":"IF('1. Order'!N1121=\"\",\"\",'1. Order'!N1121)","v":""},{"$f":"IF('1. Order'!O1121=\"\",\"\",'1. Order'!O1121)","v":{"$error":"#N/A"}},{"$f":"IF('1. Order'!P1121=\"\",\"\",'1. Order'!P1121)","v":{"$error":"#N/A"}},{"$f":"IF('1. Order'!Q1121=\"\",\"\",'1. Order'!Q1121)","v":""},{"$f":"IF('1. Order'!S1121=\"\",\"\",'1. Order'!S1121)","v":""},{"$f":"IF('1. Order'!T1121=\"\",\"\",'1. Order'!T1121)","v":""},{"$f":"IF('1. Order'!W1121=\"\",\"\",'1. Order'!W1121)","v":""},{"$f":"IF('1. Order'!X1121=\"\",\"\",'1. Order'!X1121)","v":""},{"$f":"IF('1. Order'!Y1121=\"\",\"\",'1. Order'!Y1121)","v":"EUR"},{"$f":"IF('1. Order'!Z1121=\"\",\"\",'1. Order'!Z1121)","v":""},{"$f":"IF('1. Order'!AA1121=\"\",\"\",'1. Order'!AA1121)","v":""},{"$f":"IF('1. Order'!AB1121=\"\",\"\",'1. Order'!AB1121)","v":""},null,{"$f":"IF('1. Order'!AT1121=\"\",\"\",'1. Order'!AT1121)","v":""},{"$f":"IF('1. Order'!AU1121=\"\",\"\",'1. Order'!AU1121)","v":""},null,null,null,null,null,null,null,{"$f":"IF('1. Order'!AY1121=\"\",\"\",'1. Order'!AY1121)","v":""},{"$f":"IF('1. Order'!AZ1121=\"\",\"\",'1. Order'!AZ1121)","v":""},{"$f":"IF('1. Order'!BA1121=\"\",\"\",'1. Order'!BA1121)","v":""},{"$f":"IF('1. Order'!BB1121=\"\",\"\",'1. Order'!BB1121)","v":""},{"$f":"IF('1. Order'!BD1121=\"\",\"\",'1. Order'!BD1121)","v":""},{"$f":"IF('1. Order'!BE1121=\"\",\"\",'1. Order'!BE1121)","v":""},{"$f":"IF('1. Order'!BF1121=\"\",\"\",'1. Order'!BF1121)","v":""},{"$f":"IF('1. Order'!BG1121=\"\",\"\",'1. Order'!BG1121)","v":""},{"$f":"IF('1. Order'!BH1121=\"\",\"\",'1. Order'!BH1121)","v":"ZWO"}]
[{"$f":"IF('1. Order'!F1122=\"\",\"\",'1. Order'!F1122)","v":{"$error":"#N/A"}},{"$f":"IF('1. Order'!G1122=\"\",\"\",'1. Order'!G1122)","v":""},{"$f":"IF('1. Order'!H1122=\"\",\"\",'1. Order'!H1122)","v":""},{"$f":"IF('1. Order'!I1122=\"\",\"\",'1. Order'!I1122)","v":""},{"$f":"IF('1. Order'!J1122=\"\",\"\",'1. Order'!J1122)","v":""},{"$f":"IF('1. Order'!K1122=\"\",\"\",'1. Order'!K1122)","v":""},{"$f":"IF('1. Order'!L1122=\"\",\"\",'1. Order'!L1122)","v":""},{"$f":"IF('1. Order'!M1122=\"\",\"\",'1. Order'!M1122)","v":""},{"$f":"IF('1. Order'!N1122=\"\",\"\",'1. Order'!N1122)","v":""},{"$f":"IF('1. Order'!O1122=\"\",\"\",'1. Order'!O1122)","v":{"$error":"#N/A"}},{"$f":"IF('1. Order'!P1122=\"\",\"\",'1. Order'!P1122)","v":{"$error":"#N/A"}},{"$f":"IF('1. Order'!Q1122=\"\",\"\",'1. Order'!Q1122)","v":""},{"$f":"IF('1. Order'!S1122=\"\",\"\",'1. Order'!S1122)","v":""},{"$f":"IF('1. Order'!T1122=\"\",\"\",'1. Order'!T1122)","v":""},{"$f":"IF('1. Order'!W1122=\"\",\"\",'1. Order'!W1122)","v":""},{"$f":"IF('1. Order'!X1122=\"\",\"\",'1. Order'!X1122)","v":""},{"$f":"IF('1. Order'!Y1122=\"\",\"\",'1. Order'!Y1122)","v":"EUR"},{"$f":"IF('1. Order'!Z1122=\"\",\"\",'1. Order'!Z1122)","v":""},{"$f":"IF('1. Order'!AA1122=\"\",\"\",'1. Order'!AA1122)","v":""},{"$f":"IF('1. Order'!AB1122=\"\",\"\",'1. Order'!AB1122)","v":""},null,{"$f":"IF('1. Order'!AT1122=\"\",\"\",'1. Order'!AT1122)","v":""},{"$f":"IF('1. Order'!AU1122=\"\",\"\",'1. Order'!AU1122)","v":""},null,null,null,null,null,null,null,{"$f":"IF('1. Order'!AY1122=\"\",\"\",'1. Order'!AY1122)","v":""},{"$f":"IF('1. Order'!AZ1122=\"\",\"\",'1. Order'!AZ1122)","v":""},{"$f":"IF('1. Order'!BA1122=\"\",\"\",'1. Order'!BA1122)","v":""},{"$f":"IF('1. Order'!BB1122=\"\",\"\",'1. Order'!BB1122)","v":""},{"$f":"IF('1. Order'!BD1122=\"\",\"\",'1. Order'!BD1122)","v":""},{"$f":"IF('1. Order'!BE1122=\"\",\"\",'1. Order'!BE1122)","v":""},{"$f":"IF('1. Order'!BF1122=\"\",\"\",'1. Order'!BF1122)","v":""},{"$f":"IF('1. Order'!BG1122=\"\",\"\",'1. Order'!BG1122)","v":""},{"$f":"IF('1. Order'!BH1122=\"\",\"\",'1. Order'!BH1122)","v":"ZWO"}]
[{"$f":"IF('1. Order'!F1123=\"\",\"\",'1. Order'!F1123)","v":{"$error":"#N/A"}},{"$f":"IF('1. Order'!G1123=\"\",\"\",'1. Order'!G1123)","v":""},{"$f":"IF('1. Order'!H1123=\"\",\"\",'1. Order'!H1123)","v":""},{"$f":"IF('1. Order'!I1123=\"\",\"\",'1. Order'!I1123)","v":""},{"$f":"IF('1. Order'!J1123=\"\",\"\",'1. Order'!J1123)","v":""},{"$f":"IF('1. Order'!K1123=\"\",\"\",'1. Order'!K1123)","v":""},{"$f":"IF('1. Order'!L1123=\"\",\"\",'1. Order'!L1123)","v":""},{"$f":"IF('1. Order'!M1123=\"\",\"\",'1. Order'!M1123)","v":""},{"$f":"IF('1. Order'!N1123=\"\",\"\",'1. Order'!N1123)","v":""},{"$f":"IF('1. Order'!O1123=\"\",\"\",'1. Order'!O1123)","v":{"$error":"#N/A"}},{"$f":"IF('1. Order'!P1123=\"\",\"\",'1. Order'!P1123)","v":{"$error":"#N/A"}},{"$f":"IF('1. Order'!Q1123=\"\",\"\",'1. Order'!Q1123)","v":""},{"$f":"IF('1. Order'!S1123=\"\",\"\",'1. Order'!S1123)","v":""},{"$f":"IF('1. Order'!T1123=\"\",\"\",'1. Order'!T1123)","v":""},{"$f":"IF('1. Order'!W1123=\"\",\"\",'1. Order'!W1123)","v":""},{"$f":"IF('1. Order'!X1123=\"\",\"\",'1. Order'!X1123)","v":""},{"$f":"IF('1. Order'!Y1123=\"\",\"\",'1. Order'!Y1123)","v":"EUR"},{"$f":"IF('1. Order'!Z1123=\"\",\"\",'1. Order'!Z1123)","v":""},{"$f":"IF('1. Order'!AA1123=\"\",\"\",'1. Order'!AA1123)","v":""},{"$f":"IF('1. Order'!AB1123=\"\",\"\",'1. Order'!AB1123)","v":""},null,{"$f":"IF('1. Order'!AT1123=\"\",\"\",'1. Order'!AT1123)","v":""},{"$f":"IF('1. Order'!AU1123=\"\",\"\",'1. Order'!AU1123)","v":""},null,null,null,null,null,null,null,{"$f":"IF('1. Order'!AY1123=\"\",\"\",'1. Order'!AY1123)","v":""},{"$f":"IF('1. Order'!AZ1123=\"\",\"\",'1. Order'!AZ1123)","v":""},{"$f":"IF('1. Order'!BA1123=\"\",\"\",'1. Order'!BA1123)","v":""},{"$f":"IF('1. Order'!BB1123=\"\",\"\",'1. Order'!BB1123)","v":""},{"$f":"IF('1. Order'!BD1123=\"\",\"\",'1. Order'!BD1123)","v":""},{"$f":"IF('1. Order'!BE1123=\"\",\"\",'1. Order'!BE1123)","v":""},{"$f":"IF('1. Order'!BF1123=\"\",\"\",'1. Order'!BF1123)","v":""},{"$f":"IF('1. Order'!BG1123=\"\",\"\",'1. Order'!BG1123)","v":""},{"$f":"IF('1. Order'!BH1123=\"\",\"\",'1. Order'!BH1123)","v":"ZWO"}]
[{"$f":"IF('1. Order'!F1124=\"\",\"\",'1. Order'!F1124)","v":{"$error":"#N/A"}},{"$f":"IF('1. Order'!G1124=\"\",\"\",'1. Order'!G1124)","v":""},{"$f":"IF('1. Order'!H1124=\"\",\"\",'1. Order'!H1124)","v":""},{"$f":"IF('1. Order'!I1124=\"\",\"\",'1. Order'!I1124)","v":""},{"$f":"IF('1. Order'!J1124=\"\",\"\",'1. Order'!J1124)","v":""},{"$f":"IF('1. Order'!K1124=\"\",\"\",'1. Order'!K1124)","v":""},{"$f":"IF('1. Order'!L1124=\"\",\"\",'1. Order'!L1124)","v":""},{"$f":"IF('1. Order'!M1124=\"\",\"\",'1. Order'!M1124)","v":""},{"$f":"IF('1. Order'!N1124=\"\",\"\",'1. Order'!N1124)","v":""},{"$f":"IF('1. Order'!O1124=\"\",\"\",'1. Order'!O1124)","v":{"$error":"#N/A"}},{"$f":"IF('1. Order'!P1124=\"\",\"\",'1. Order'!P1124)","v":{"$error":"#N/A"}},{"$f":"IF('1. Order'!Q1124=\"\",\"\",'1. Order'!Q1124)","v":""},{"$f":"IF('1. Order'!S1124=\"\",\"\",'1. Order'!S1124)","v":""},{"$f":"IF('1. Order'!T1124=\"\",\"\",'1. Order'!T1124)","v":""},{"$f":"IF('1. Order'!W1124=\"\",\"\",'1. Order'!W1124)","v":""},{"$f":"IF('1. Order'!X1124=\"\",\"\",'1. Order'!X1124)","v":""},{"$f":"IF('1. Order'!Y1124=\"\",\"\",'1. Order'!Y1124)","v":"EUR"},{"$f":"IF('1. Order'!Z1124=\"\",\"\",'1. Order'!Z1124)","v":""},{"$f":"IF('1. Order'!AA1124=\"\",\"\",'1. Order'!AA1124)","v":""},{"$f":"IF('1. Order'!AB1124=\"\",\"\",'1. Order'!AB1124)","v":""},null,{"$f":"IF('1. Order'!AT1124=\"\",\"\",'1. Order'!AT1124)","v":""},{"$f":"IF('1. Order'!AU1124=\"\",\"\",'1. Order'!AU1124)","v":""},null,null,null,null,null,null,null,{"$f":"IF('1. Order'!AY1124=\"\",\"\",'1. Order'!AY1124)","v":""},{"$f":"IF('1. Order'!AZ1124=\"\",\"\",'1. Order'!AZ1124)","v":""},{"$f":"IF('1. Order'!BA1124=\"\",\"\",'1. Order'!BA1124)","v":""},{"$f":"IF('1. Order'!BB1124=\"\",\"\",'1. Order'!BB1124)","v":""},{"$f":"IF('1. Order'!BD1124=\"\",\"\",'1. Order'!BD1124)","v":""},{"$f":"IF('1. Order'!BE1124=\"\",\"\",'1. Order'!BE1124)","v":""},{"$f":"IF('1. Order'!BF1124=\"\",\"\",'1. Order'!BF1124)","v":""},{"$f":"IF('1. Order'!BG1124=\"\",\"\",'1. Order'!BG1124)","v":""},{"$f":"IF('1. Order'!BH1124=\"\",\"\",'1. Order'!BH1124)","v":"ZWO"}]
[{"$f":"IF('1. Order'!F1125=\"\",\"\",'1. Order'!F1125)","v":{"$error":"#N/A"}},{"$f":"IF('1. Order'!G1125=\"\",\"\",'1. Order'!G1125)","v":""},{"$f":"IF('1. Order'!H1125=\"\",\"\",'1. Order'!H1125)","v":""},{"$f":"IF('1. Order'!I1125=\"\",\"\",'1. Order'!I1125)","v":""},{"$f":"IF('1. Order'!J1125=\"\",\"\",'1. Order'!J1125)","v":""},{"$f":"IF('1. Order'!K1125=\"\",\"\",'1. Order'!K1125)","v":""},{"$f":"IF('1. Order'!L1125=\"\",\"\",'1. Order'!L1125)","v":""},{"$f":"IF('1. Order'!M1125=\"\",\"\",'1. Order'!M1125)","v":""},{"$f":"IF('1. Order'!N1125=\"\",\"\",'1. Order'!N1125)","v":""},{"$f":"IF('1. Order'!O1125=\"\",\"\",'1. Order'!O1125)","v":{"$error":"#N/A"}},{"$f":"IF('1. Order'!P1125=\"\",\"\",'1. Order'!P1125)","v":{"$error":"#N/A"}},{"$f":"IF('1. Order'!Q1125=\"\",\"\",'1. Order'!Q1125)","v":""},{"$f":"IF('1. Order'!S1125=\"\",\"\",'1. Order'!S1125)","v":""},{"$f":"IF('1. Order'!T1125=\"\",\"\",'1. Order'!T1125)","v":""},{"$f":"IF('1. Order'!W1125=\"\",\"\",'1. Order'!W1125)","v":""},{"$f":"IF('1. Order'!X1125=\"\",\"\",'1. Order'!X1125)","v":""},{"$f":"IF('1. Order'!Y1125=\"\",\"\",'1. Order'!Y1125)","v":"EUR"},{"$f":"IF('1. Order'!Z1125=\"\",\"\",'1. Order'!Z1125)","v":""},{"$f":"IF('1. Order'!AA1125=\"\",\"\",'1. Order'!AA1125)","v":""},{"$f":"IF('1. Order'!AB1125=\"\",\"\",'1. Order'!AB1125)","v":""},null,{"$f":"IF('1. Order'!AT1125=\"\",\"\",'1. Order'!AT1125)","v":""},{"$f":"IF('1. Order'!AU1125=\"\",\"\",'1. Order'!AU1125)","v":""},null,null,null,null,null,null,null,{"$f":"IF('1. Order'!AY1125=\"\",\"\",'1. Order'!AY1125)","v":""},{"$f":"IF('1. Order'!AZ1125=\"\",\"\",'1. Order'!AZ1125)","v":""},{"$f":"IF('1. Order'!BA1125=\"\",\"\",'1. Order'!BA1125)","v":""},{"$f":"IF('1. Order'!BB1125=\"\",\"\",'1. Order'!BB1125)","v":""},{"$f":"IF('1. Order'!BD1125=\"\",\"\",'1. Order'!BD1125)","v":""},{"$f":"IF('1. Order'!BE1125=\"\",\"\",'1. Order'!BE1125)","v":""},{"$f":"IF('1. Order'!BF1125=\"\",\"\",'1. Order'!BF1125)","v":""},{"$f":"IF('1. Order'!BG1125=\"\",\"\",'1. Order'!BG1125)","v":""},{"$f":"IF('1. Order'!BH1125=\"\",\"\",'1. Order'!BH1125)","v":"ZWO"}]
[{"$f":"IF('1. Order'!F1126=\"\",\"\",'1. Order'!F1126)","v":{"$error":"#N/A"}},{"$f":"IF('1. Order'!G1126=\"\",\"\",'1. Order'!G1126)","v":""},{"$f":"IF('1. Order'!H1126=\"\",\"\",'1. Order'!H1126)","v":""},{"$f":"IF('1. Order'!I1126=\"\",\"\",'1. Order'!I1126)","v":""},{"$f":"IF('1. Order'!J1126=\"\",\"\",'1. Order'!J1126)","v":""},{"$f":"IF('1. Order'!K1126=\"\",\"\",'1. Order'!K1126)","v":""},{"$f":"IF('1. Order'!L1126=\"\",\"\",'1. Order'!L1126)","v":""},{"$f":"IF('1. Order'!M1126=\"\",\"\",'1. Order'!M1126)","v":""},{"$f":"IF('1. Order'!N1126=\"\",\"\",'1. Order'!N1126)","v":""},{"$f":"IF('1. Order'!O1126=\"\",\"\",'1. Order'!O1126)","v":{"$error":"#N/A"}},{"$f":"IF('1. Order'!P1126=\"\",\"\",'1. Order'!P1126)","v":{"$error":"#N/A"}},{"$f":"IF('1. Order'!Q1126=\"\",\"\",'1. Order'!Q1126)","v":""},{"$f":"IF('1. Order'!S1126=\"\",\"\",'1. Order'!S1126)","v":""},{"$f":"IF('1. Order'!T1126=\"\",\"\",'1. Order'!T1126)","v":""},{"$f":"IF('1. Order'!W1126=\"\",\"\",'1. Order'!W1126)","v":""},{"$f":"IF('1. Order'!X1126=\"\",\"\",'1. Order'!X1126)","v":""},{"$f":"IF('1. Order'!Y1126=\"\",\"\",'1. Order'!Y1126)","v":"EUR"},{"$f":"IF('1. Order'!Z1126=\"\",\"\",'1. Order'!Z1126)","v":""},{"$f":"IF('1. Order'!AA1126=\"\",\"\",'1. Order'!AA1126)","v":""},{"$f":"IF('1. Order'!AB1126=\"\",\"\",'1. Order'!AB1126)","v":""},null,{"$f":"IF('1. Order'!AT1126=\"\",\"\",'1. Order'!AT1126)","v":""},{"$f":"IF('1. Order'!AU1126=\"\",\"\",'1. Order'!AU1126)","v":""},null,null,null,null,null,null,null,{"$f":"IF('1. Order'!AY1126=\"\",\"\",'1. Order'!AY1126)","v":""},{"$f":"IF('1. Order'!AZ1126=\"\",\"\",'1. Order'!AZ1126)","v":""},{"$f":"IF('1. Order'!BA1126=\"\",\"\",'1. Order'!BA1126)","v":""},{"$f":"IF('1. Order'!BB1126=\"\",\"\",'1. Order'!BB1126)","v":""},{"$f":"IF('1. Order'!BD1126=\"\",\"\",'1. Order'!BD1126)","v":""},{"$f":"IF('1. Order'!BE1126=\"\",\"\",'1. Order'!BE1126)","v":""},{"$f":"IF('1. Order'!BF1126=\"\",\"\",'1. Order'!BF1126)","v":""},{"$f":"IF('1. Order'!BG1126=\"\",\"\",'1. Order'!BG1126)","v":""},{"$f":"IF('1. Order'!BH1126=\"\",\"\",'1. Order'!BH1126)","v":"ZWO"}]
[{"$f":"IF('1. Order'!F1127=\"\",\"\",'1. Order'!F1127)","v":{"$error":"#N/A"}},{"$f":"IF('1. Order'!G1127=\"\",\"\",'1. Order'!G1127)","v":""},{"$f":"IF('1. Order'!H1127=\"\",\"\",'1. Order'!H1127)","v":""},{"$f":"IF('1. Order'!I1127=\"\",\"\",'1. Order'!I1127)","v":""},{"$f":"IF('1. Order'!J1127=\"\",\"\",'1. Order'!J1127)","v":""},{"$f":"IF('1. Order'!K1127=\"\",\"\",'1. Order'!K1127)","v":""},{"$f":"IF('1. Order'!L1127=\"\",\"\",'1. Order'!L1127)","v":""},{"$f":"IF('1. Order'!M1127=\"\",\"\",'1. Order'!M1127)","v":""},{"$f":"IF('1. Order'!N1127=\"\",\"\",'1. Order'!N1127)","v":""},{"$f":"IF('1. Order'!O1127=\"\",\"\",'1. Order'!O1127)","v":{"$error":"#N/A"}},{"$f":"IF('1. Order'!P1127=\"\",\"\",'1. Order'!P1127)","v":{"$error":"#N/A"}},{"$f":"IF('1. Order'!Q1127=\"\",\"\",'1. Order'!Q1127)","v":""},{"$f":"IF('1. Order'!S1127=\"\",\"\",'1. Order'!S1127)","v":""},{"$f":"IF('1. Order'!T1127=\"\",\"\",'1. Order'!T1127)","v":""},{"$f":"IF('1. Order'!W1127=\"\",\"\",'1. Order'!W1127)","v":""},{"$f":"IF('1. Order'!X1127=\"\",\"\",'1. Order'!X1127)","v":""},{"$f":"IF('1. Order'!Y1127=\"\",\"\",'1. Order'!Y1127)","v":"EUR"},{"$f":"IF('1. Order'!Z1127=\"\",\"\",'1. Order'!Z1127)","v":""},{"$f":"IF('1. Order'!AA1127=\"\",\"\",'1. Order'!AA1127)","v":""},{"$f":"IF('1. Order'!AB1127=\"\",\"\",'1. Order'!AB1127)","v":""},null,{"$f":"IF('1. Order'!AT1127=\"\",\"\",'1. Order'!AT1127)","v":""},{"$f":"IF('1. Order'!AU1127=\"\",\"\",'1. Order'!AU1127)","v":""},null,null,null,null,null,null,null,{"$f":"IF('1. Order'!AY1127=\"\",\"\",'1. Order'!AY1127)","v":""},{"$f":"IF('1. Order'!AZ1127=\"\",\"\",'1. Order'!AZ1127)","v":""},{"$f":"IF('1. Order'!BA1127=\"\",\"\",'1. Order'!BA1127)","v":""},{"$f":"IF('1. Order'!BB1127=\"\",\"\",'1. Order'!BB1127)","v":""},{"$f":"IF('1. Order'!BD1127=\"\",\"\",'1. Order'!BD1127)","v":""},{"$f":"IF('1. Order'!BE1127=\"\",\"\",'1. Order'!BE1127)","v":""},{"$f":"IF('1. Order'!BF1127=\"\",\"\",'1. Order'!BF1127)","v":""},{"$f":"IF('1. Order'!BG1127=\"\",\"\",'1. Order'!BG1127)","v":""},{"$f":"IF('1. Order'!BH1127=\"\",\"\",'1. Order'!BH1127)","v":"ZWO"}]
[{"$f":"IF('1. Order'!F1128=\"\",\"\",'1. Order'!F1128)","v":{"$error":"#N/A"}},{"$f":"IF('1. Order'!G1128=\"\",\"\",'1. Order'!G1128)","v":""},{"$f":"IF('1. Order'!H1128=\"\",\"\",'1. Order'!H1128)","v":""},{"$f":"IF('1. Order'!I1128=\"\",\"\",'1. Order'!I1128)","v":""},{"$f":"IF('1. Order'!J1128=\"\",\"\",'1. Order'!J1128)","v":""},{"$f":"IF('1. Order'!K1128=\"\",\"\",'1. Order'!K1128)","v":""},{"$f":"IF('1. Order'!L1128=\"\",\"\",'1. Order'!L1128)","v":""},{"$f":"IF('1. Order'!M1128=\"\",\"\",'1. Order'!M1128)","v":""},{"$f":"IF('1. Order'!N1128=\"\",\"\",'1. Order'!N1128)","v":""},{"$f":"IF('1. Order'!O1128=\"\",\"\",'1. Order'!O1128)","v":{"$error":"#N/A"}},{"$f":"IF('1. Order'!P1128=\"\",\"\",'1. Order'!P1128)","v":{"$error":"#N/A"}},{"$f":"IF('1. Order'!Q1128=\"\",\"\",'1. Order'!Q1128)","v":""},{"$f":"IF('1. Order'!S1128=\"\",\"\",'1. Order'!S1128)","v":""},{"$f":"IF('1. Order'!T1128=\"\",\"\",'1. Order'!T1128)","v":""},{"$f":"IF('1. Order'!W1128=\"\",\"\",'1. Order'!W1128)","v":""},{"$f":"IF('1. Order'!X1128=\"\",\"\",'1. Order'!X1128)","v":""},{"$f":"IF('1. Order'!Y1128=\"\",\"\",'1. Order'!Y1128)","v":"EUR"},{"$f":"IF('1. Order'!Z1128=\"\",\"\",'1. Order'!Z1128)","v":""},{"$f":"IF('1. Order'!AA1128=\"\",\"\",'1. Order'!AA1128)","v":""},{"$f":"IF('1. Order'!AB1128=\"\",\"\",'1. Order'!AB1128)","v":""},null,{"$f":"IF('1. Order'!AT1128=\"\",\"\",'1. Order'!AT1128)","v":""},{"$f":"IF('1. Order'!AU1128=\"\",\"\",'1. Order'!AU1128)","v":""},null,null,null,null,null,null,null,{"$f":"IF('1. Order'!AY1128=\"\",\"\",'1. Order'!AY1128)","v":""},{"$f":"IF('1. Order'!AZ1128=\"\",\"\",'1. Order'!AZ1128)","v":""},{"$f":"IF('1. Order'!BA1128=\"\",\"\",'1. Order'!BA1128)","v":""},{"$f":"IF('1. Order'!BB1128=\"\",\"\",'1. Order'!BB1128)","v":""},{"$f":"IF('1. Order'!BD1128=\"\",\"\",'1. Order'!BD1128)","v":""},{"$f":"IF('1. Order'!BE1128=\"\",\"\",'1. Order'!BE1128)","v":""},{"$f":"IF('1. Order'!BF1128=\"\",\"\",'1. Order'!BF1128)","v":""},{"$f":"IF('1. Order'!BG1128=\"\",\"\",'1. Order'!BG1128)","v":""},{"$f":"IF('1. Order'!BH1128=\"\",\"\",'1. Order'!BH1128)","v":"ZWO"}]
[{"$f":"IF('1. Order'!F1129=\"\",\"\",'1. Order'!F1129)","v":{"$error":"#N/A"}},{"$f":"IF('1. Order'!G1129=\"\",\"\",'1. Order'!G1129)","v":""},{"$f":"IF('1. Order'!H1129=\"\",\"\",'1. Order'!H1129)","v":""},{"$f":"IF('1. Order'!I1129=\"\",\"\",'1. Order'!I1129)","v":""},{"$f":"IF('1. Order'!J1129=\"\",\"\",'1. Order'!J1129)","v":""},{"$f":"IF('1. Order'!K1129=\"\",\"\",'1. Order'!K1129)","v":""},{"$f":"IF('1. Order'!L1129=\"\",\"\",'1. Order'!L1129)","v":""},{"$f":"IF('1. Order'!M1129=\"\",\"\",'1. Order'!M1129)","v":""},{"$f":"IF('1. Order'!N1129=\"\",\"\",'1. Order'!N1129)","v":""},{"$f":"IF('1. Order'!O1129=\"\",\"\",'1. Order'!O1129)","v":{"$error":"#N/A"}},{"$f":"IF('1. Order'!P1129=\"\",\"\",'1. Order'!P1129)","v":{"$error":"#N/A"}},{"$f":"IF('1. Order'!Q1129=\"\",\"\",'1. Order'!Q1129)","v":""},{"$f":"IF('1. Order'!S1129=\"\",\"\",'1. Order'!S1129)","v":""},{"$f":"IF('1. Order'!T1129=\"\",\"\",'1. Order'!T1129)","v":""},{"$f":"IF('1. Order'!W1129=\"\",\"\",'1. Order'!W1129)","v":""},{"$f":"IF('1. Order'!X1129=\"\",\"\",'1. Order'!X1129)","v":""},{"$f":"IF('1. Order'!Y1129=\"\",\"\",'1. Order'!Y1129)","v":"EUR"},{"$f":"IF('1. Order'!Z1129=\"\",\"\",'1. Order'!Z1129)","v":""},{"$f":"IF('1. Order'!AA1129=\"\",\"\",'1. Order'!AA1129)","v":""},{"$f":"IF('1. Order'!AB1129=\"\",\"\",'1. Order'!AB1129)","v":""},null,{"$f":"IF('1. Order'!AT1129=\"\",\"\",'1. Order'!AT1129)","v":""},{"$f":"IF('1. Order'!AU1129=\"\",\"\",'1. Order'!AU1129)","v":""},null,null,null,null,null,null,null,{"$f":"IF('1. Order'!AY1129=\"\",\"\",'1. Order'!AY1129)","v":""},{"$f":"IF('1. Order'!AZ1129=\"\",\"\",'1. Order'!AZ1129)","v":""},{"$f":"IF('1. Order'!BA1129=\"\",\"\",'1. Order'!BA1129)","v":""},{"$f":"IF('1. Order'!BB1129=\"\",\"\",'1. Order'!BB1129)","v":""},{"$f":"IF('1. Order'!BD1129=\"\",\"\",'1. Order'!BD1129)","v":""},{"$f":"IF('1. Order'!BE1129=\"\",\"\",'1. Order'!BE1129)","v":""},{"$f":"IF('1. Order'!BF1129=\"\",\"\",'1. Order'!BF1129)","v":""},{"$f":"IF('1. Order'!BG1129=\"\",\"\",'1. Order'!BG1129)","v":""},{"$f":"IF('1. Order'!BH1129=\"\",\"\",'1. Order'!BH1129)","v":"ZWO"}]
[{"$f":"IF('1. Order'!F1130=\"\",\"\",'1. Order'!F1130)","v":{"$error":"#N/A"}},{"$f":"IF('1. Order'!G1130=\"\",\"\",'1. Order'!G1130)","v":""},{"$f":"IF('1. Order'!H1130=\"\",\"\",'1. Order'!H1130)","v":""},{"$f":"IF('1. Order'!I1130=\"\",\"\",'1. Order'!I1130)","v":""},{"$f":"IF('1. Order'!J1130=\"\",\"\",'1. Order'!J1130)","v":""},{"$f":"IF('1. Order'!K1130=\"\",\"\",'1. Order'!K1130)","v":""},{"$f":"IF('1. Order'!L1130=\"\",\"\",'1. Order'!L1130)","v":""},{"$f":"IF('1. Order'!M1130=\"\",\"\",'1. Order'!M1130)","v":""},{"$f":"IF('1. Order'!N1130=\"\",\"\",'1. Order'!N1130)","v":""},{"$f":"IF('1. Order'!O1130=\"\",\"\",'1. Order'!O1130)","v":{"$error":"#N/A"}},{"$f":"IF('1. Order'!P1130=\"\",\"\",'1. Order'!P1130)","v":{"$error":"#N/A"}},{"$f":"IF('1. Order'!Q1130=\"\",\"\",'1. Order'!Q1130)","v":""},{"$f":"IF('1. Order'!S1130=\"\",\"\",'1. Order'!S1130)","v":""},{"$f":"IF('1. Order'!T1130=\"\",\"\",'1. Order'!T1130)","v":""},{"$f":"IF('1. Order'!W1130=\"\",\"\",'1. Order'!W1130)","v":""},{"$f":"IF('1. Order'!X1130=\"\",\"\",'1. Order'!X1130)","v":""},{"$f":"IF('1. Order'!Y1130=\"\",\"\",'1. Order'!Y1130)","v":"EUR"},{"$f":"IF('1. Order'!Z1130=\"\",\"\",'1. Order'!Z1130)","v":""},{"$f":"IF('1. Order'!AA1130=\"\",\"\",'1. Order'!AA1130)","v":""},{"$f":"IF('1. Order'!AB1130=\"\",\"\",'1. Order'!AB1130)","v":""},null,{"$f":"IF('1. Order'!AT1130=\"\",\"\",'1. Order'!AT1130)","v":""},{"$f":"IF('1. Order'!AU1130=\"\",\"\",'1. Order'!AU1130)","v":""},null,null,null,null,null,null,null,{"$f":"IF('1. Order'!AY1130=\"\",\"\",'1. Order'!AY1130)","v":""},{"$f":"IF('1. Order'!AZ1130=\"\",\"\",'1. Order'!AZ1130)","v":""},{"$f":"IF('1. Order'!BA1130=\"\",\"\",'1. Order'!BA1130)","v":""},{"$f":"IF('1. Order'!BB1130=\"\",\"\",'1. Order'!BB1130)","v":""},{"$f":"IF('1. Order'!BD1130=\"\",\"\",'1. Order'!BD1130)","v":""},{"$f":"IF('1. Order'!BE1130=\"\",\"\",'1. Order'!BE1130)","v":""},{"$f":"IF('1. Order'!BF1130=\"\",\"\",'1. Order'!BF1130)","v":""},{"$f":"IF('1. Order'!BG1130=\"\",\"\",'1. Order'!BG1130)","v":""},{"$f":"IF('1. Order'!BH1130=\"\",\"\",'1. Order'!BH1130)","v":"ZWO"}]
[{"$f":"IF('1. Order'!F1131=\"\",\"\",'1. Order'!F1131)","v":{"$error":"#N/A"}},{"$f":"IF('1. Order'!G1131=\"\",\"\",'1. Order'!G1131)","v":""},{"$f":"IF('1. Order'!H1131=\"\",\"\",'1. Order'!H1131)","v":""},{"$f":"IF('1. Order'!I1131=\"\",\"\",'1. Order'!I1131)","v":""},{"$f":"IF('1. Order'!J1131=\"\",\"\",'1. Order'!J1131)","v":""},{"$f":"IF('1. Order'!K1131=\"\",\"\",'1. Order'!K1131)","v":""},{"$f":"IF('1. Order'!L1131=\"\",\"\",'1. Order'!L1131)","v":""},{"$f":"IF('1. Order'!M1131=\"\",\"\",'1. Order'!M1131)","v":""},{"$f":"IF('1. Order'!N1131=\"\",\"\",'1. Order'!N1131)","v":""},{"$f":"IF('1. Order'!O1131=\"\",\"\",'1. Order'!O1131)","v":{"$error":"#N/A"}},{"$f":"IF('1. Order'!P1131=\"\",\"\",'1. Order'!P1131)","v":{"$error":"#N/A"}},{"$f":"IF('1. Order'!Q1131=\"\",\"\",'1. Order'!Q1131)","v":""},{"$f":"IF('1. Order'!S1131=\"\",\"\",'1. Order'!S1131)","v":""},{"$f":"IF('1. Order'!T1131=\"\",\"\",'1. Order'!T1131)","v":""},{"$f":"IF('1. Order'!W1131=\"\",\"\",'1. Order'!W1131)","v":""},{"$f":"IF('1. Order'!X1131=\"\",\"\",'1. Order'!X1131)","v":""},{"$f":"IF('1. Order'!Y1131=\"\",\"\",'1. Order'!Y1131)","v":"EUR"},{"$f":"IF('1. Order'!Z1131=\"\",\"\",'1. Order'!Z1131)","v":""},{"$f":"IF('1. Order'!AA1131=\"\",\"\",'1. Order'!AA1131)","v":""},{"$f":"IF('1. Order'!AB1131=\"\",\"\",'1. Order'!AB1131)","v":""},null,{"$f":"IF('1. Order'!AT1131=\"\",\"\",'1. Order'!AT1131)","v":""},{"$f":"IF('1. Order'!AU1131=\"\",\"\",'1. Order'!AU1131)","v":""},null,null,null,null,null,null,null,{"$f":"IF('1. Order'!AY1131=\"\",\"\",'1. Order'!AY1131)","v":""},{"$f":"IF('1. Order'!AZ1131=\"\",\"\",'1. Order'!AZ1131)","v":""},{"$f":"IF('1. Order'!BA1131=\"\",\"\",'1. Order'!BA1131)","v":""},{"$f":"IF('1. Order'!BB1131=\"\",\"\",'1. Order'!BB1131)","v":""},{"$f":"IF('1. Order'!BD1131=\"\",\"\",'1. Order'!BD1131)","v":""},{"$f":"IF('1. Order'!BE1131=\"\",\"\",'1. Order'!BE1131)","v":""},{"$f":"IF('1. Order'!BF1131=\"\",\"\",'1. Order'!BF1131)","v":""},{"$f":"IF('1. Order'!BG1131=\"\",\"\",'1. Order'!BG1131)","v":""},{"$f":"IF('1. Order'!BH1131=\"\",\"\",'1. Order'!BH1131)","v":"ZWO"}]
[{"$f":"IF('1. Order'!F1132=\"\",\"\",'1. Order'!F1132)","v":{"$error":"#N/A"}},{"$f":"IF('1. Order'!G1132=\"\",\"\",'1. Order'!G1132)","v":""},{"$f":"IF('1. Order'!H1132=\"\",\"\",'1. Order'!H1132)","v":""},{"$f":"IF('1. Order'!I1132=\"\",\"\",'1. Order'!I1132)","v":""},{"$f":"IF('1. Order'!J1132=\"\",\"\",'1. Order'!J1132)","v":""},{"$f":"IF('1. Order'!K1132=\"\",\"\",'1. Order'!K1132)","v":""},{"$f":"IF('1. Order'!L1132=\"\",\"\",'1. Order'!L1132)","v":""},{"$f":"IF('1. Order'!M1132=\"\",\"\",'1. Order'!M1132)","v":""},{"$f":"IF('1. Order'!N1132=\"\",\"\",'1. Order'!N1132)","v":""},{"$f":"IF('1. Order'!O1132=\"\",\"\",'1. Order'!O1132)","v":{"$error":"#N/A"}},{"$f":"IF('1. Order'!P1132=\"\",\"\",'1. Order'!P1132)","v":{"$error":"#N/A"}},{"$f":"IF('1. Order'!Q1132=\"\",\"\",'1. Order'!Q1132)","v":""},{"$f":"IF('1. Order'!S1132=\"\",\"\",'1. Order'!S1132)","v":""},{"$f":"IF('1. Order'!T1132=\"\",\"\",'1. Order'!T1132)","v":""},{"$f":"IF('1. Order'!W1132=\"\",\"\",'1. Order'!W1132)","v":""},{"$f":"IF('1. Order'!X1132=\"\",\"\",'1. Order'!X1132)","v":""},{"$f":"IF('1. Order'!Y1132=\"\",\"\",'1. Order'!Y1132)","v":"EUR"},{"$f":"IF('1. Order'!Z1132=\"\",\"\",'1. Order'!Z1132)","v":""},{"$f":"IF('1. Order'!AA1132=\"\",\"\",'1. Order'!AA1132)","v":""},{"$f":"IF('1. Order'!AB1132=\"\",\"\",'1. Order'!AB1132)","v":""},null,{"$f":"IF('1. Order'!AT1132=\"\",\"\",'1. Order'!AT1132)","v":""},{"$f":"IF('1. Order'!AU1132=\"\",\"\",'1. Order'!AU1132)","v":""},null,null,null,null,null,null,null,{"$f":"IF('1. Order'!AY1132=\"\",\"\",'1. Order'!AY1132)","v":""},{"$f":"IF('1. Order'!AZ1132=\"\",\"\",'1. Order'!AZ1132)","v":""},{"$f":"IF('1. Order'!BA1132=\"\",\"\",'1. Order'!BA1132)","v":""},{"$f":"IF('1. Order'!BB1132=\"\",\"\",'1. Order'!BB1132)","v":""},{"$f":"IF('1. Order'!BD1132=\"\",\"\",'1. Order'!BD1132)","v":""},{"$f":"IF('1. Order'!BE1132=\"\",\"\",'1. Order'!BE1132)","v":""},{"$f":"IF('1. Order'!BF1132=\"\",\"\",'1. Order'!BF1132)","v":""},{"$f":"IF('1. Order'!BG1132=\"\",\"\",'1. Order'!BG1132)","v":""},{"$f":"IF('1. Order'!BH1132=\"\",\"\",'1. Order'!BH1132)","v":"ZWO"}]
[{"$f":"IF('1. Order'!F1133=\"\",\"\",'1. Order'!F1133)","v":{"$error":"#N/A"}},{"$f":"IF('1. Order'!G1133=\"\",\"\",'1. Order'!G1133)","v":""},{"$f":"IF('1. Order'!H1133=\"\",\"\",'1. Order'!H1133)","v":""},{"$f":"IF('1. Order'!I1133=\"\",\"\",'1. Order'!I1133)","v":""},{"$f":"IF('1. Order'!J1133=\"\",\"\",'1. Order'!J1133)","v":""},{"$f":"IF('1. Order'!K1133=\"\",\"\",'1. Order'!K1133)","v":""},{"$f":"IF('1. Order'!L1133=\"\",\"\",'1. Order'!L1133)","v":""},{"$f":"IF('1. Order'!M1133=\"\",\"\",'1. Order'!M1133)","v":""},{"$f":"IF('1. Order'!N1133=\"\",\"\",'1. Order'!N1133)","v":""},{"$f":"IF('1. Order'!O1133=\"\",\"\",'1. Order'!O1133)","v":{"$error":"#N/A"}},{"$f":"IF('1. Order'!P1133=\"\",\"\",'1. Order'!P1133)","v":{"$error":"#N/A"}},{"$f":"IF('1. Order'!Q1133=\"\",\"\",'1. Order'!Q1133)","v":""},{"$f":"IF('1. Order'!S1133=\"\",\"\",'1. Order'!S1133)","v":""},{"$f":"IF('1. Order'!T1133=\"\",\"\",'1. Order'!T1133)","v":""},{"$f":"IF('1. Order'!W1133=\"\",\"\",'1. Order'!W1133)","v":""},{"$f":"IF('1. Order'!X1133=\"\",\"\",'1. Order'!X1133)","v":""},{"$f":"IF('1. Order'!Y1133=\"\",\"\",'1. Order'!Y1133)","v":"EUR"},{"$f":"IF('1. Order'!Z1133=\"\",\"\",'1. Order'!Z1133)","v":""},{"$f":"IF('1. Order'!AA1133=\"\",\"\",'1. Order'!AA1133)","v":""},{"$f":"IF('1. Order'!AB1133=\"\",\"\",'1. Order'!AB1133)","v":""},null,{"$f":"IF('1. Order'!AT1133=\"\",\"\",'1. Order'!AT1133)","v":""},{"$f":"IF('1. Order'!AU1133=\"\",\"\",'1. Order'!AU1133)","v":""},null,null,null,null,null,null,null,{"$f":"IF('1. Order'!AY1133=\"\",\"\",'1. Order'!AY1133)","v":""},{"$f":"IF('1. Order'!AZ1133=\"\",\"\",'1. Order'!AZ1133)","v":""},{"$f":"IF('1. Order'!BA1133=\"\",\"\",'1. Order'!BA1133)","v":""},{"$f":"IF('1. Order'!BB1133=\"\",\"\",'1. Order'!BB1133)","v":""},{"$f":"IF('1. Order'!BD1133=\"\",\"\",'1. Order'!BD1133)","v":""},{"$f":"IF('1. Order'!BE1133=\"\",\"\",'1. Order'!BE1133)","v":""},{"$f":"IF('1. Order'!BF1133=\"\",\"\",'1. Order'!BF1133)","v":""},{"$f":"IF('1. Order'!BG1133=\"\",\"\",'1. Order'!BG1133)","v":""},{"$f":"IF('1. Order'!BH1133=\"\",\"\",'1. Order'!BH1133)","v":"ZWO"}]
[{"$f":"IF('1. Order'!F1134=\"\",\"\",'1. Order'!F1134)","v":{"$error":"#N/A"}},{"$f":"IF('1. Order'!G1134=\"\",\"\",'1. Order'!G1134)","v":""},{"$f":"IF('1. Order'!H1134=\"\",\"\",'1. Order'!H1134)","v":""},{"$f":"IF('1. Order'!I1134=\"\",\"\",'1. Order'!I1134)","v":""},{"$f":"IF('1. Order'!J1134=\"\",\"\",'1. Order'!J1134)","v":""},{"$f":"IF('1. Order'!K1134=\"\",\"\",'1. Order'!K1134)","v":""},{"$f":"IF('1. Order'!L1134=\"\",\"\",'1. Order'!L1134)","v":""},{"$f":"IF('1. Order'!M1134=\"\",\"\",'1. Order'!M1134)","v":""},{"$f":"IF('1. Order'!N1134=\"\",\"\",'1. Order'!N1134)","v":""},{"$f":"IF('1. Order'!O1134=\"\",\"\",'1. Order'!O1134)","v":{"$error":"#N/A"}},{"$f":"IF('1. Order'!P1134=\"\",\"\",'1. Order'!P1134)","v":{"$error":"#N/A"}},{"$f":"IF('1. Order'!Q1134=\"\",\"\",'1. Order'!Q1134)","v":""},{"$f":"IF('1. Order'!S1134=\"\",\"\",'1. Order'!S1134)","v":""},{"$f":"IF('1. Order'!T1134=\"\",\"\",'1. Order'!T1134)","v":""},{"$f":"IF('1. Order'!W1134=\"\",\"\",'1. Order'!W1134)","v":""},{"$f":"IF('1. Order'!X1134=\"\",\"\",'1. Order'!X1134)","v":""},{"$f":"IF('1. Order'!Y1134=\"\",\"\",'1. Order'!Y1134)","v":"EUR"},{"$f":"IF('1. Order'!Z1134=\"\",\"\",'1. Order'!Z1134)","v":""},{"$f":"IF('1. Order'!AA1134=\"\",\"\",'1. Order'!AA1134)","v":""},{"$f":"IF('1. Order'!AB1134=\"\",\"\",'1. Order'!AB1134)","v":""},null,{"$f":"IF('1. Order'!AT1134=\"\",\"\",'1. Order'!AT1134)","v":""},{"$f":"IF('1. Order'!AU1134=\"\",\"\",'1. Order'!AU1134)","v":""},null,null,null,null,null,null,null,{"$f":"IF('1. Order'!AY1134=\"\",\"\",'1. Order'!AY1134)","v":""},{"$f":"IF('1. Order'!AZ1134=\"\",\"\",'1. Order'!AZ1134)","v":""},{"$f":"IF('1. Order'!BA1134=\"\",\"\",'1. Order'!BA1134)","v":""},{"$f":"IF('1. Order'!BB1134=\"\",\"\",'1. Order'!BB1134)","v":""},{"$f":"IF('1. Order'!BD1134=\"\",\"\",'1. Order'!BD1134)","v":""},{"$f":"IF('1. Order'!BE1134=\"\",\"\",'1. Order'!BE1134)","v":""},{"$f":"IF('1. Order'!BF1134=\"\",\"\",'1. Order'!BF1134)","v":""},{"$f":"IF('1. Order'!BG1134=\"\",\"\",'1. Order'!BG1134)","v":""},{"$f":"IF('1. Order'!BH1134=\"\",\"\",'1. Order'!BH1134)","v":"ZWO"}]
[{"$f":"IF('1. Order'!F1135=\"\",\"\",'1. Order'!F1135)","v":{"$error":"#N/A"}},{"$f":"IF('1. Order'!G1135=\"\",\"\",'1. Order'!G1135)","v":""},{"$f":"IF('1. Order'!H1135=\"\",\"\",'1. Order'!H1135)","v":""},{"$f":"IF('1. Order'!I1135=\"\",\"\",'1. Order'!I1135)","v":""},{"$f":"IF('1. Order'!J1135=\"\",\"\",'1. Order'!J1135)","v":""},{"$f":"IF('1. Order'!K1135=\"\",\"\",'1. Order'!K1135)","v":""},{"$f":"IF('1. Order'!L1135=\"\",\"\",'1. Order'!L1135)","v":""},{"$f":"IF('1. Order'!M1135=\"\",\"\",'1. Order'!M1135)","v":""},{"$f":"IF('1. Order'!N1135=\"\",\"\",'1. Order'!N1135)","v":""},{"$f":"IF('1. Order'!O1135=\"\",\"\",'1. Order'!O1135)","v":{"$error":"#N/A"}},{"$f":"IF('1. Order'!P1135=\"\",\"\",'1. Order'!P1135)","v":{"$error":"#N/A"}},{"$f":"IF('1. Order'!Q1135=\"\",\"\",'1. Order'!Q1135)","v":""},{"$f":"IF('1. Order'!S1135=\"\",\"\",'1. Order'!S1135)","v":""},{"$f":"IF('1. Order'!T1135=\"\",\"\",'1. Order'!T1135)","v":""},{"$f":"IF('1. Order'!W1135=\"\",\"\",'1. Order'!W1135)","v":""},{"$f":"IF('1. Order'!X1135=\"\",\"\",'1. Order'!X1135)","v":""},{"$f":"IF('1. Order'!Y1135=\"\",\"\",'1. Order'!Y1135)","v":"EUR"},{"$f":"IF('1. Order'!Z1135=\"\",\"\",'1. Order'!Z1135)","v":""},{"$f":"IF('1. Order'!AA1135=\"\",\"\",'1. Order'!AA1135)","v":""},{"$f":"IF('1. Order'!AB1135=\"\",\"\",'1. Order'!AB1135)","v":""},null,{"$f":"IF('1. Order'!AT1135=\"\",\"\",'1. Order'!AT1135)","v":""},{"$f":"IF('1. Order'!AU1135=\"\",\"\",'1. Order'!AU1135)","v":""},null,null,null,null,null,null,null,{"$f":"IF('1. Order'!AY1135=\"\",\"\",'1. Order'!AY1135)","v":""},{"$f":"IF('1. Order'!AZ1135=\"\",\"\",'1. Order'!AZ1135)","v":""},{"$f":"IF('1. Order'!BA1135=\"\",\"\",'1. Order'!BA1135)","v":""},{"$f":"IF('1. Order'!BB1135=\"\",\"\",'1. Order'!BB1135)","v":""},{"$f":"IF('1. Order'!BD1135=\"\",\"\",'1. Order'!BD1135)","v":""},{"$f":"IF('1. Order'!BE1135=\"\",\"\",'1. Order'!BE1135)","v":""},{"$f":"IF('1. Order'!BF1135=\"\",\"\",'1. Order'!BF1135)","v":""},{"$f":"IF('1. Order'!BG1135=\"\",\"\",'1. Order'!BG1135)","v":""},{"$f":"IF('1. Order'!BH1135=\"\",\"\",'1. Order'!BH1135)","v":"ZWO"}]
[{"$f":"IF('1. Order'!F1136=\"\",\"\",'1. Order'!F1136)","v":{"$error":"#N/A"}},{"$f":"IF('1. Order'!G1136=\"\",\"\",'1. Order'!G1136)","v":""},{"$f":"IF('1. Order'!H1136=\"\",\"\",'1. Order'!H1136)","v":""},{"$f":"IF('1. Order'!I1136=\"\",\"\",'1. Order'!I1136)","v":""},{"$f":"IF('1. Order'!J1136=\"\",\"\",'1. Order'!J1136)","v":""},{"$f":"IF('1. Order'!K1136=\"\",\"\",'1. Order'!K1136)","v":""},{"$f":"IF('1. Order'!L1136=\"\",\"\",'1. Order'!L1136)","v":""},{"$f":"IF('1. Order'!M1136=\"\",\"\",'1. Order'!M1136)","v":""},{"$f":"IF('1. Order'!N1136=\"\",\"\",'1. Order'!N1136)","v":""},{"$f":"IF('1. Order'!O1136=\"\",\"\",'1. Order'!O1136)","v":{"$error":"#N/A"}},{"$f":"IF('1. Order'!P1136=\"\",\"\",'1. Order'!P1136)","v":{"$error":"#N/A"}},{"$f":"IF('1. Order'!Q1136=\"\",\"\",'1. Order'!Q1136)","v":""},{"$f":"IF('1. Order'!S1136=\"\",\"\",'1. Order'!S1136)","v":""},{"$f":"IF('1. Order'!T1136=\"\",\"\",'1. Order'!T1136)","v":""},{"$f":"IF('1. Order'!W1136=\"\",\"\",'1. Order'!W1136)","v":""},{"$f":"IF('1. Order'!X1136=\"\",\"\",'1. Order'!X1136)","v":""},{"$f":"IF('1. Order'!Y1136=\"\",\"\",'1. Order'!Y1136)","v":"EUR"},{"$f":"IF('1. Order'!Z1136=\"\",\"\",'1. Order'!Z1136)","v":""},{"$f":"IF('1. Order'!AA1136=\"\",\"\",'1. Order'!AA1136)","v":""},{"$f":"IF('1. Order'!AB1136=\"\",\"\",'1. Order'!AB1136)","v":""},null,{"$f":"IF('1. Order'!AT1136=\"\",\"\",'1. Order'!AT1136)","v":""},{"$f":"IF('1. Order'!AU1136=\"\",\"\",'1. Order'!AU1136)","v":""},null,null,null,null,null,null,null,{"$f":"IF('1. Order'!AY1136=\"\",\"\",'1. Order'!AY1136)","v":""},{"$f":"IF('1. Order'!AZ1136=\"\",\"\",'1. Order'!AZ1136)","v":""},{"$f":"IF('1. Order'!BA1136=\"\",\"\",'1. Order'!BA1136)","v":""},{"$f":"IF('1. Order'!BB1136=\"\",\"\",'1. Order'!BB1136)","v":""},{"$f":"IF('1. Order'!BD1136=\"\",\"\",'1. Order'!BD1136)","v":""},{"$f":"IF('1. Order'!BE1136=\"\",\"\",'1. Order'!BE1136)","v":""},{"$f":"IF('1. Order'!BF1136=\"\",\"\",'1. Order'!BF1136)","v":""},{"$f":"IF('1. Order'!BG1136=\"\",\"\",'1. Order'!BG1136)","v":""},{"$f":"IF('1. Order'!BH1136=\"\",\"\",'1. Order'!BH1136)","v":"ZWO"}]
[{"$f":"IF('1. Order'!F1137=\"\",\"\",'1. Order'!F1137)","v":{"$error":"#N/A"}},{"$f":"IF('1. Order'!G1137=\"\",\"\",'1. Order'!G1137)","v":""},{"$f":"IF('1. Order'!H1137=\"\",\"\",'1. Order'!H1137)","v":""},{"$f":"IF('1. Order'!I1137=\"\",\"\",'1. Order'!I1137)","v":""},{"$f":"IF('1. Order'!J1137=\"\",\"\",'1. Order'!J1137)","v":""},{"$f":"IF('1. Order'!K1137=\"\",\"\",'1. Order'!K1137)","v":""},{"$f":"IF('1. Order'!L1137=\"\",\"\",'1. Order'!L1137)","v":""},{"$f":"IF('1. Order'!M1137=\"\",\"\",'1. Order'!M1137)","v":""},{"$f":"IF('1. Order'!N1137=\"\",\"\",'1. Order'!N1137)","v":""},{"$f":"IF('1. Order'!O1137=\"\",\"\",'1. Order'!O1137)","v":{"$error":"#N/A"}},{"$f":"IF('1. Order'!P1137=\"\",\"\",'1. Order'!P1137)","v":{"$error":"#N/A"}},{"$f":"IF('1. Order'!Q1137=\"\",\"\",'1. Order'!Q1137)","v":""},{"$f":"IF('1. Order'!S1137=\"\",\"\",'1. Order'!S1137)","v":""},{"$f":"IF('1. Order'!T1137=\"\",\"\",'1. Order'!T1137)","v":""},{"$f":"IF('1. Order'!W1137=\"\",\"\",'1. Order'!W1137)","v":""},{"$f":"IF('1. Order'!X1137=\"\",\"\",'1. Order'!X1137)","v":""},{"$f":"IF('1. Order'!Y1137=\"\",\"\",'1. Order'!Y1137)","v":"EUR"},{"$f":"IF('1. Order'!Z1137=\"\",\"\",'1. Order'!Z1137)","v":""},{"$f":"IF('1. Order'!AA1137=\"\",\"\",'1. Order'!AA1137)","v":""},{"$f":"IF('1. Order'!AB1137=\"\",\"\",'1. Order'!AB1137)","v":""},null,{"$f":"IF('1. Order'!AT1137=\"\",\"\",'1. Order'!AT1137)","v":""},{"$f":"IF('1. Order'!AU1137=\"\",\"\",'1. Order'!AU1137)","v":""},null,null,null,null,null,null,null,{"$f":"IF('1. Order'!AY1137=\"\",\"\",'1. Order'!AY1137)","v":""},{"$f":"IF('1. Order'!AZ1137=\"\",\"\",'1. Order'!AZ1137)","v":""},{"$f":"IF('1. Order'!BA1137=\"\",\"\",'1. Order'!BA1137)","v":""},{"$f":"IF('1. Order'!BB1137=\"\",\"\",'1. Order'!BB1137)","v":""},{"$f":"IF('1. Order'!BD1137=\"\",\"\",'1. Order'!BD1137)","v":""},{"$f":"IF('1. Order'!BE1137=\"\",\"\",'1. Order'!BE1137)","v":""},{"$f":"IF('1. Order'!BF1137=\"\",\"\",'1. Order'!BF1137)","v":""},{"$f":"IF('1. Order'!BG1137=\"\",\"\",'1. Order'!BG1137)","v":""},{"$f":"IF('1. Order'!BH1137=\"\",\"\",'1. Order'!BH1137)","v":"ZWO"}]
[{"$f":"IF('1. Order'!F1138=\"\",\"\",'1. Order'!F1138)","v":{"$error":"#N/A"}},{"$f":"IF('1. Order'!G1138=\"\",\"\",'1. Order'!G1138)","v":""},{"$f":"IF('1. Order'!H1138=\"\",\"\",'1. Order'!H1138)","v":""},{"$f":"IF('1. Order'!I1138=\"\",\"\",'1. Order'!I1138)","v":""},{"$f":"IF('1. Order'!J1138=\"\",\"\",'1. Order'!J1138)","v":""},{"$f":"IF('1. Order'!K1138=\"\",\"\",'1. Order'!K1138)","v":""},{"$f":"IF('1. Order'!L1138=\"\",\"\",'1. Order'!L1138)","v":""},{"$f":"IF('1. Order'!M1138=\"\",\"\",'1. Order'!M1138)","v":""},{"$f":"IF('1. Order'!N1138=\"\",\"\",'1. Order'!N1138)","v":""},{"$f":"IF('1. Order'!O1138=\"\",\"\",'1. Order'!O1138)","v":{"$error":"#N/A"}},{"$f":"IF('1. Order'!P1138=\"\",\"\",'1. Order'!P1138)","v":{"$error":"#N/A"}},{"$f":"IF('1. Order'!Q1138=\"\",\"\",'1. Order'!Q1138)","v":""},{"$f":"IF('1. Order'!S1138=\"\",\"\",'1. Order'!S1138)","v":""},{"$f":"IF('1. Order'!T1138=\"\",\"\",'1. Order'!T1138)","v":""},{"$f":"IF('1. Order'!W1138=\"\",\"\",'1. Order'!W1138)","v":""},{"$f":"IF('1. Order'!X1138=\"\",\"\",'1. Order'!X1138)","v":""},{"$f":"IF('1. Order'!Y1138=\"\",\"\",'1. Order'!Y1138)","v":"EUR"},{"$f":"IF('1. Order'!Z1138=\"\",\"\",'1. Order'!Z1138)","v":""},{"$f":"IF('1. Order'!AA1138=\"\",\"\",'1. Order'!AA1138)","v":""},{"$f":"IF('1. Order'!AB1138=\"\",\"\",'1. Order'!AB1138)","v":""},null,{"$f":"IF('1. Order'!AT1138=\"\",\"\",'1. Order'!AT1138)","v":""},{"$f":"IF('1. Order'!AU1138=\"\",\"\",'1. Order'!AU1138)","v":""},null,null,null,null,null,null,null,{"$f":"IF('1. Order'!AY1138=\"\",\"\",'1. Order'!AY1138)","v":""},{"$f":"IF('1. Order'!AZ1138=\"\",\"\",'1. Order'!AZ1138)","v":""},{"$f":"IF('1. Order'!BA1138=\"\",\"\",'1. Order'!BA1138)","v":""},{"$f":"IF('1. Order'!BB1138=\"\",\"\",'1. Order'!BB1138)","v":""},{"$f":"IF('1. Order'!BD1138=\"\",\"\",'1. Order'!BD1138)","v":""},{"$f":"IF('1. Order'!BE1138=\"\",\"\",'1. Order'!BE1138)","v":""},{"$f":"IF('1. Order'!BF1138=\"\",\"\",'1. Order'!BF1138)","v":""},{"$f":"IF('1. Order'!BG1138=\"\",\"\",'1. Order'!BG1138)","v":""},{"$f":"IF('1. Order'!BH1138=\"\",\"\",'1. Order'!BH1138)","v":"ZWO"}]
[{"$f":"IF('1. Order'!F1139=\"\",\"\",'1. Order'!F1139)","v":{"$error":"#N/A"}},{"$f":"IF('1. Order'!G1139=\"\",\"\",'1. Order'!G1139)","v":""},{"$f":"IF('1. Order'!H1139=\"\",\"\",'1. Order'!H1139)","v":""},{"$f":"IF('1. Order'!I1139=\"\",\"\",'1. Order'!I1139)","v":""},{"$f":"IF('1. Order'!J1139=\"\",\"\",'1. Order'!J1139)","v":""},{"$f":"IF('1. Order'!K1139=\"\",\"\",'1. Order'!K1139)","v":""},{"$f":"IF('1. Order'!L1139=\"\",\"\",'1. Order'!L1139)","v":""},{"$f":"IF('1. Order'!M1139=\"\",\"\",'1. Order'!M1139)","v":""},{"$f":"IF('1. Order'!N1139=\"\",\"\",'1. Order'!N1139)","v":""},{"$f":"IF('1. Order'!O1139=\"\",\"\",'1. Order'!O1139)","v":{"$error":"#N/A"}},{"$f":"IF('1. Order'!P1139=\"\",\"\",'1. Order'!P1139)","v":{"$error":"#N/A"}},{"$f":"IF('1. Order'!Q1139=\"\",\"\",'1. Order'!Q1139)","v":""},{"$f":"IF('1. Order'!S1139=\"\",\"\",'1. Order'!S1139)","v":""},{"$f":"IF('1. Order'!T1139=\"\",\"\",'1. Order'!T1139)","v":""},{"$f":"IF('1. Order'!W1139=\"\",\"\",'1. Order'!W1139)","v":""},{"$f":"IF('1. Order'!X1139=\"\",\"\",'1. Order'!X1139)","v":""},{"$f":"IF('1. Order'!Y1139=\"\",\"\",'1. Order'!Y1139)","v":"EUR"},{"$f":"IF('1. Order'!Z1139=\"\",\"\",'1. Order'!Z1139)","v":""},{"$f":"IF('1. Order'!AA1139=\"\",\"\",'1. Order'!AA1139)","v":""},{"$f":"IF('1. Order'!AB1139=\"\",\"\",'1. Order'!AB1139)","v":""},null,{"$f":"IF('1. Order'!AT1139=\"\",\"\",'1. Order'!AT1139)","v":""},{"$f":"IF('1. Order'!AU1139=\"\",\"\",'1. Order'!AU1139)","v":""},null,null,null,null,null,null,null,{"$f":"IF('1. Order'!AY1139=\"\",\"\",'1. Order'!AY1139)","v":""},{"$f":"IF('1. Order'!AZ1139=\"\",\"\",'1. Order'!AZ1139)","v":""},{"$f":"IF('1. Order'!BA1139=\"\",\"\",'1. Order'!BA1139)","v":""},{"$f":"IF('1. Order'!BB1139=\"\",\"\",'1. Order'!BB1139)","v":""},{"$f":"IF('1. Order'!BD1139=\"\",\"\",'1. Order'!BD1139)","v":""},{"$f":"IF('1. Order'!BE1139=\"\",\"\",'1. Order'!BE1139)","v":""},{"$f":"IF('1. Order'!BF1139=\"\",\"\",'1. Order'!BF1139)","v":""},{"$f":"IF('1. Order'!BG1139=\"\",\"\",'1. Order'!BG1139)","v":""},{"$f":"IF('1. Order'!BH1139=\"\",\"\",'1. Order'!BH1139)","v":"ZWO"}]
[{"$f":"IF('1. Order'!F1140=\"\",\"\",'1. Order'!F1140)","v":{"$error":"#N/A"}},{"$f":"IF('1. Order'!G1140=\"\",\"\",'1. Order'!G1140)","v":""},{"$f":"IF('1. Order'!H1140=\"\",\"\",'1. Order'!H1140)","v":""},{"$f":"IF('1. Order'!I1140=\"\",\"\",'1. Order'!I1140)","v":""},{"$f":"IF('1. Order'!J1140=\"\",\"\",'1. Order'!J1140)","v":""},{"$f":"IF('1. Order'!K1140=\"\",\"\",'1. Order'!K1140)","v":""},{"$f":"IF('1. Order'!L1140=\"\",\"\",'1. Order'!L1140)","v":""},{"$f":"IF('1. Order'!M1140=\"\",\"\",'1. Order'!M1140)","v":""},{"$f":"IF('1. Order'!N1140=\"\",\"\",'1. Order'!N1140)","v":""},{"$f":"IF('1. Order'!O1140=\"\",\"\",'1. Order'!O1140)","v":{"$error":"#N/A"}},{"$f":"IF('1. Order'!P1140=\"\",\"\",'1. Order'!P1140)","v":{"$error":"#N/A"}},{"$f":"IF('1. Order'!Q1140=\"\",\"\",'1. Order'!Q1140)","v":""},{"$f":"IF('1. Order'!S1140=\"\",\"\",'1. Order'!S1140)","v":""},{"$f":"IF('1. Order'!T1140=\"\",\"\",'1. Order'!T1140)","v":""},{"$f":"IF('1. Order'!W1140=\"\",\"\",'1. Order'!W1140)","v":""},{"$f":"IF('1. Order'!X1140=\"\",\"\",'1. Order'!X1140)","v":""},{"$f":"IF('1. Order'!Y1140=\"\",\"\",'1. Order'!Y1140)","v":"EUR"},{"$f":"IF('1. Order'!Z1140=\"\",\"\",'1. Order'!Z1140)","v":""},{"$f":"IF('1. Order'!AA1140=\"\",\"\",'1. Order'!AA1140)","v":""},{"$f":"IF('1. Order'!AB1140=\"\",\"\",'1. Order'!AB1140)","v":""},null,{"$f":"IF('1. Order'!AT1140=\"\",\"\",'1. Order'!AT1140)","v":""},{"$f":"IF('1. Order'!AU1140=\"\",\"\",'1. Order'!AU1140)","v":""},null,null,null,null,null,null,null,{"$f":"IF('1. Order'!AY1140=\"\",\"\",'1. Order'!AY1140)","v":""},{"$f":"IF('1. Order'!AZ1140=\"\",\"\",'1. Order'!AZ1140)","v":""},{"$f":"IF('1. Order'!BA1140=\"\",\"\",'1. Order'!BA1140)","v":""},{"$f":"IF('1. Order'!BB1140=\"\",\"\",'1. Order'!BB1140)","v":""},{"$f":"IF('1. Order'!BD1140=\"\",\"\",'1. Order'!BD1140)","v":""},{"$f":"IF('1. Order'!BE1140=\"\",\"\",'1. Order'!BE1140)","v":""},{"$f":"IF('1. Order'!BF1140=\"\",\"\",'1. Order'!BF1140)","v":""},{"$f":"IF('1. Order'!BG1140=\"\",\"\",'1. Order'!BG1140)","v":""},{"$f":"IF('1. Order'!BH1140=\"\",\"\",'1. Order'!BH1140)","v":"ZWO"}]
[{"$f":"IF('1. Order'!F1141=\"\",\"\",'1. Order'!F1141)","v":{"$error":"#N/A"}},{"$f":"IF('1. Order'!G1141=\"\",\"\",'1. Order'!G1141)","v":""},{"$f":"IF('1. Order'!H1141=\"\",\"\",'1. Order'!H1141)","v":""},{"$f":"IF('1. Order'!I1141=\"\",\"\",'1. Order'!I1141)","v":""},{"$f":"IF('1. Order'!J1141=\"\",\"\",'1. Order'!J1141)","v":""},{"$f":"IF('1. Order'!K1141=\"\",\"\",'1. Order'!K1141)","v":""},{"$f":"IF('1. Order'!L1141=\"\",\"\",'1. Order'!L1141)","v":""},{"$f":"IF('1. Order'!M1141=\"\",\"\",'1. Order'!M1141)","v":""},{"$f":"IF('1. Order'!N1141=\"\",\"\",'1. Order'!N1141)","v":""},{"$f":"IF('1. Order'!O1141=\"\",\"\",'1. Order'!O1141)","v":{"$error":"#N/A"}},{"$f":"IF('1. Order'!P1141=\"\",\"\",'1. Order'!P1141)","v":{"$error":"#N/A"}},{"$f":"IF('1. Order'!Q1141=\"\",\"\",'1. Order'!Q1141)","v":""},{"$f":"IF('1. Order'!S1141=\"\",\"\",'1. Order'!S1141)","v":""},{"$f":"IF('1. Order'!T1141=\"\",\"\",'1. Order'!T1141)","v":""},{"$f":"IF('1. Order'!W1141=\"\",\"\",'1. Order'!W1141)","v":""},{"$f":"IF('1. Order'!X1141=\"\",\"\",'1. Order'!X1141)","v":""},{"$f":"IF('1. Order'!Y1141=\"\",\"\",'1. Order'!Y1141)","v":"EUR"},{"$f":"IF('1. Order'!Z1141=\"\",\"\",'1. Order'!Z1141)","v":""},{"$f":"IF('1. Order'!AA1141=\"\",\"\",'1. Order'!AA1141)","v":""},{"$f":"IF('1. Order'!AB1141=\"\",\"\",'1. Order'!AB1141)","v":""},null,{"$f":"IF('1. Order'!AT1141=\"\",\"\",'1. Order'!AT1141)","v":""},{"$f":"IF('1. Order'!AU1141=\"\",\"\",'1. Order'!AU1141)","v":""},null,null,null,null,null,null,null,{"$f":"IF('1. Order'!AY1141=\"\",\"\",'1. Order'!AY1141)","v":""},{"$f":"IF('1. Order'!AZ1141=\"\",\"\",'1. Order'!AZ1141)","v":""},{"$f":"IF('1. Order'!BA1141=\"\",\"\",'1. Order'!BA1141)","v":""},{"$f":"IF('1. Order'!BB1141=\"\",\"\",'1. Order'!BB1141)","v":""},{"$f":"IF('1. Order'!BD1141=\"\",\"\",'1. Order'!BD1141)","v":""},{"$f":"IF('1. Order'!BE1141=\"\",\"\",'1. Order'!BE1141)","v":""},{"$f":"IF('1. Order'!BF1141=\"\",\"\",'1. Order'!BF1141)","v":""},{"$f":"IF('1. Order'!BG1141=\"\",\"\",'1. Order'!BG1141)","v":""},{"$f":"IF('1. Order'!BH1141=\"\",\"\",'1. Order'!BH1141)","v":"ZWO"}]
[{"$f":"IF('1. Order'!F1142=\"\",\"\",'1. Order'!F1142)","v":{"$error":"#N/A"}},{"$f":"IF('1. Order'!G1142=\"\",\"\",'1. Order'!G1142)","v":""},{"$f":"IF('1. Order'!H1142=\"\",\"\",'1. Order'!H1142)","v":""},{"$f":"IF('1. Order'!I1142=\"\",\"\",'1. Order'!I1142)","v":""},{"$f":"IF('1. Order'!J1142=\"\",\"\",'1. Order'!J1142)","v":""},{"$f":"IF('1. Order'!K1142=\"\",\"\",'1. Order'!K1142)","v":""},{"$f":"IF('1. Order'!L1142=\"\",\"\",'1. Order'!L1142)","v":""},{"$f":"IF('1. Order'!M1142=\"\",\"\",'1. Order'!M1142)","v":""},{"$f":"IF('1. Order'!N1142=\"\",\"\",'1. Order'!N1142)","v":""},{"$f":"IF('1. Order'!O1142=\"\",\"\",'1. Order'!O1142)","v":{"$error":"#N/A"}},{"$f":"IF('1. Order'!P1142=\"\",\"\",'1. Order'!P1142)","v":{"$error":"#N/A"}},{"$f":"IF('1. Order'!Q1142=\"\",\"\",'1. Order'!Q1142)","v":""},{"$f":"IF('1. Order'!S1142=\"\",\"\",'1. Order'!S1142)","v":""},{"$f":"IF('1. Order'!T1142=\"\",\"\",'1. Order'!T1142)","v":""},{"$f":"IF('1. Order'!W1142=\"\",\"\",'1. Order'!W1142)","v":""},{"$f":"IF('1. Order'!X1142=\"\",\"\",'1. Order'!X1142)","v":""},{"$f":"IF('1. Order'!Y1142=\"\",\"\",'1. Order'!Y1142)","v":"EUR"},{"$f":"IF('1. Order'!Z1142=\"\",\"\",'1. Order'!Z1142)","v":""},{"$f":"IF('1. Order'!AA1142=\"\",\"\",'1. Order'!AA1142)","v":""},{"$f":"IF('1. Order'!AB1142=\"\",\"\",'1. Order'!AB1142)","v":""},null,{"$f":"IF('1. Order'!AT1142=\"\",\"\",'1. Order'!AT1142)","v":""},{"$f":"IF('1. Order'!AU1142=\"\",\"\",'1. Order'!AU1142)","v":""},null,null,null,null,null,null,null,{"$f":"IF('1. Order'!AY1142=\"\",\"\",'1. Order'!AY1142)","v":""},{"$f":"IF('1. Order'!AZ1142=\"\",\"\",'1. Order'!AZ1142)","v":""},{"$f":"IF('1. Order'!BA1142=\"\",\"\",'1. Order'!BA1142)","v":""},{"$f":"IF('1. Order'!BB1142=\"\",\"\",'1. Order'!BB1142)","v":""},{"$f":"IF('1. Order'!BD1142=\"\",\"\",'1. Order'!BD1142)","v":""},{"$f":"IF('1. Order'!BE1142=\"\",\"\",'1. Order'!BE1142)","v":""},{"$f":"IF('1. Order'!BF1142=\"\",\"\",'1. Order'!BF1142)","v":""},{"$f":"IF('1. Order'!BG1142=\"\",\"\",'1. Order'!BG1142)","v":""},{"$f":"IF('1. Order'!BH1142=\"\",\"\",'1. Order'!BH1142)","v":"ZWO"}]
[{"$f":"IF('1. Order'!F1143=\"\",\"\",'1. Order'!F1143)","v":{"$error":"#N/A"}},{"$f":"IF('1. Order'!G1143=\"\",\"\",'1. Order'!G1143)","v":""},{"$f":"IF('1. Order'!H1143=\"\",\"\",'1. Order'!H1143)","v":""},{"$f":"IF('1. Order'!I1143=\"\",\"\",'1. Order'!I1143)","v":""},{"$f":"IF('1. Order'!J1143=\"\",\"\",'1. Order'!J1143)","v":""},{"$f":"IF('1. Order'!K1143=\"\",\"\",'1. Order'!K1143)","v":""},{"$f":"IF('1. Order'!L1143=\"\",\"\",'1. Order'!L1143)","v":""},{"$f":"IF('1. Order'!M1143=\"\",\"\",'1. Order'!M1143)","v":""},{"$f":"IF('1. Order'!N1143=\"\",\"\",'1. Order'!N1143)","v":""},{"$f":"IF('1. Order'!O1143=\"\",\"\",'1. Order'!O1143)","v":{"$error":"#N/A"}},{"$f":"IF('1. Order'!P1143=\"\",\"\",'1. Order'!P1143)","v":{"$error":"#N/A"}},{"$f":"IF('1. Order'!Q1143=\"\",\"\",'1. Order'!Q1143)","v":""},{"$f":"IF('1. Order'!S1143=\"\",\"\",'1. Order'!S1143)","v":""},{"$f":"IF('1. Order'!T1143=\"\",\"\",'1. Order'!T1143)","v":""},{"$f":"IF('1. Order'!W1143=\"\",\"\",'1. Order'!W1143)","v":""},{"$f":"IF('1. Order'!X1143=\"\",\"\",'1. Order'!X1143)","v":""},{"$f":"IF('1. Order'!Y1143=\"\",\"\",'1. Order'!Y1143)","v":"EUR"},{"$f":"IF('1. Order'!Z1143=\"\",\"\",'1. Order'!Z1143)","v":""},{"$f":"IF('1. Order'!AA1143=\"\",\"\",'1. Order'!AA1143)","v":""},{"$f":"IF('1. Order'!AB1143=\"\",\"\",'1. Order'!AB1143)","v":""},null,{"$f":"IF('1. Order'!AT1143=\"\",\"\",'1. Order'!AT1143)","v":""},{"$f":"IF('1. Order'!AU1143=\"\",\"\",'1. Order'!AU1143)","v":""},null,null,null,null,null,null,null,{"$f":"IF('1. Order'!AY1143=\"\",\"\",'1. Order'!AY1143)","v":""},{"$f":"IF('1. Order'!AZ1143=\"\",\"\",'1. Order'!AZ1143)","v":""},{"$f":"IF('1. Order'!BA1143=\"\",\"\",'1. Order'!BA1143)","v":""},{"$f":"IF('1. Order'!BB1143=\"\",\"\",'1. Order'!BB1143)","v":""},{"$f":"IF('1. Order'!BD1143=\"\",\"\",'1. Order'!BD1143)","v":""},{"$f":"IF('1. Order'!BE1143=\"\",\"\",'1. Order'!BE1143)","v":""},{"$f":"IF('1. Order'!BF1143=\"\",\"\",'1. Order'!BF1143)","v":""},{"$f":"IF('1. Order'!BG1143=\"\",\"\",'1. Order'!BG1143)","v":""},{"$f":"IF('1. Order'!BH1143=\"\",\"\",'1. Order'!BH1143)","v":"ZWO"}]
[{"$f":"IF('1. Order'!F1144=\"\",\"\",'1. Order'!F1144)","v":{"$error":"#N/A"}},{"$f":"IF('1. Order'!G1144=\"\",\"\",'1. Order'!G1144)","v":""},{"$f":"IF('1. Order'!H1144=\"\",\"\",'1. Order'!H1144)","v":""},{"$f":"IF('1. Order'!I1144=\"\",\"\",'1. Order'!I1144)","v":""},{"$f":"IF('1. Order'!J1144=\"\",\"\",'1. Order'!J1144)","v":""},{"$f":"IF('1. Order'!K1144=\"\",\"\",'1. Order'!K1144)","v":""},{"$f":"IF('1. Order'!L1144=\"\",\"\",'1. Order'!L1144)","v":""},{"$f":"IF('1. Order'!M1144=\"\",\"\",'1. Order'!M1144)","v":""},{"$f":"IF('1. Order'!N1144=\"\",\"\",'1. Order'!N1144)","v":""},{"$f":"IF('1. Order'!O1144=\"\",\"\",'1. Order'!O1144)","v":{"$error":"#N/A"}},{"$f":"IF('1. Order'!P1144=\"\",\"\",'1. Order'!P1144)","v":{"$error":"#N/A"}},{"$f":"IF('1. Order'!Q1144=\"\",\"\",'1. Order'!Q1144)","v":""},{"$f":"IF('1. Order'!S1144=\"\",\"\",'1. Order'!S1144)","v":""},{"$f":"IF('1. Order'!T1144=\"\",\"\",'1. Order'!T1144)","v":""},{"$f":"IF('1. Order'!W1144=\"\",\"\",'1. Order'!W1144)","v":""},{"$f":"IF('1. Order'!X1144=\"\",\"\",'1. Order'!X1144)","v":""},{"$f":"IF('1. Order'!Y1144=\"\",\"\",'1. Order'!Y1144)","v":"EUR"},{"$f":"IF('1. Order'!Z1144=\"\",\"\",'1. Order'!Z1144)","v":""},{"$f":"IF('1. Order'!AA1144=\"\",\"\",'1. Order'!AA1144)","v":""},{"$f":"IF('1. Order'!AB1144=\"\",\"\",'1. Order'!AB1144)","v":""},null,{"$f":"IF('1. Order'!AT1144=\"\",\"\",'1. Order'!AT1144)","v":""},{"$f":"IF('1. Order'!AU1144=\"\",\"\",'1. Order'!AU1144)","v":""},null,null,null,null,null,null,null,{"$f":"IF('1. Order'!AY1144=\"\",\"\",'1. Order'!AY1144)","v":""},{"$f":"IF('1. Order'!AZ1144=\"\",\"\",'1. Order'!AZ1144)","v":""},{"$f":"IF('1. Order'!BA1144=\"\",\"\",'1. Order'!BA1144)","v":""},{"$f":"IF('1. Order'!BB1144=\"\",\"\",'1. Order'!BB1144)","v":""},{"$f":"IF('1. Order'!BD1144=\"\",\"\",'1. Order'!BD1144)","v":""},{"$f":"IF('1. Order'!BE1144=\"\",\"\",'1. Order'!BE1144)","v":""},{"$f":"IF('1. Order'!BF1144=\"\",\"\",'1. Order'!BF1144)","v":""},{"$f":"IF('1. Order'!BG1144=\"\",\"\",'1. Order'!BG1144)","v":""},{"$f":"IF('1. Order'!BH1144=\"\",\"\",'1. Order'!BH1144)","v":"ZWO"}]
[{"$f":"IF('1. Order'!F1145=\"\",\"\",'1. Order'!F1145)","v":{"$error":"#N/A"}},{"$f":"IF('1. Order'!G1145=\"\",\"\",'1. Order'!G1145)","v":""},{"$f":"IF('1. Order'!H1145=\"\",\"\",'1. Order'!H1145)","v":""},{"$f":"IF('1. Order'!I1145=\"\",\"\",'1. Order'!I1145)","v":""},{"$f":"IF('1. Order'!J1145=\"\",\"\",'1. Order'!J1145)","v":""},{"$f":"IF('1. Order'!K1145=\"\",\"\",'1. Order'!K1145)","v":""},{"$f":"IF('1. Order'!L1145=\"\",\"\",'1. Order'!L1145)","v":""},{"$f":"IF('1. Order'!M1145=\"\",\"\",'1. Order'!M1145)","v":""},{"$f":"IF('1. Order'!N1145=\"\",\"\",'1. Order'!N1145)","v":""},{"$f":"IF('1. Order'!O1145=\"\",\"\",'1. Order'!O1145)","v":{"$error":"#N/A"}},{"$f":"IF('1. Order'!P1145=\"\",\"\",'1. Order'!P1145)","v":{"$error":"#N/A"}},{"$f":"IF('1. Order'!Q1145=\"\",\"\",'1. Order'!Q1145)","v":""},{"$f":"IF('1. Order'!S1145=\"\",\"\",'1. Order'!S1145)","v":""},{"$f":"IF('1. Order'!T1145=\"\",\"\",'1. Order'!T1145)","v":""},{"$f":"IF('1. Order'!W1145=\"\",\"\",'1. Order'!W1145)","v":""},{"$f":"IF('1. Order'!X1145=\"\",\"\",'1. Order'!X1145)","v":""},{"$f":"IF('1. Order'!Y1145=\"\",\"\",'1. Order'!Y1145)","v":"EUR"},{"$f":"IF('1. Order'!Z1145=\"\",\"\",'1. Order'!Z1145)","v":""},{"$f":"IF('1. Order'!AA1145=\"\",\"\",'1. Order'!AA1145)","v":""},{"$f":"IF('1. Order'!AB1145=\"\",\"\",'1. Order'!AB1145)","v":""},null,{"$f":"IF('1. Order'!AT1145=\"\",\"\",'1. Order'!AT1145)","v":""},{"$f":"IF('1. Order'!AU1145=\"\",\"\",'1. Order'!AU1145)","v":""},null,null,null,null,null,null,null,{"$f":"IF('1. Order'!AY1145=\"\",\"\",'1. Order'!AY1145)","v":""},{"$f":"IF('1. Order'!AZ1145=\"\",\"\",'1. Order'!AZ1145)","v":""},{"$f":"IF('1. Order'!BA1145=\"\",\"\",'1. Order'!BA1145)","v":""},{"$f":"IF('1. Order'!BB1145=\"\",\"\",'1. Order'!BB1145)","v":""},{"$f":"IF('1. Order'!BD1145=\"\",\"\",'1. Order'!BD1145)","v":""},{"$f":"IF('1. Order'!BE1145=\"\",\"\",'1. Order'!BE1145)","v":""},{"$f":"IF('1. Order'!BF1145=\"\",\"\",'1. Order'!BF1145)","v":""},{"$f":"IF('1. Order'!BG1145=\"\",\"\",'1. Order'!BG1145)","v":""},{"$f":"IF('1. Order'!BH1145=\"\",\"\",'1. Order'!BH1145)","v":"ZWO"}]
[{"$f":"IF('1. Order'!F1146=\"\",\"\",'1. Order'!F1146)","v":{"$error":"#N/A"}},{"$f":"IF('1. Order'!G1146=\"\",\"\",'1. Order'!G1146)","v":""},{"$f":"IF('1. Order'!H1146=\"\",\"\",'1. Order'!H1146)","v":""},{"$f":"IF('1. Order'!I1146=\"\",\"\",'1. Order'!I1146)","v":""},{"$f":"IF('1. Order'!J1146=\"\",\"\",'1. Order'!J1146)","v":""},{"$f":"IF('1. Order'!K1146=\"\",\"\",'1. Order'!K1146)","v":""},{"$f":"IF('1. Order'!L1146=\"\",\"\",'1. Order'!L1146)","v":""},{"$f":"IF('1. Order'!M1146=\"\",\"\",'1. Order'!M1146)","v":""},{"$f":"IF('1. Order'!N1146=\"\",\"\",'1. Order'!N1146)","v":""},{"$f":"IF('1. Order'!O1146=\"\",\"\",'1. Order'!O1146)","v":{"$error":"#N/A"}},{"$f":"IF('1. Order'!P1146=\"\",\"\",'1. Order'!P1146)","v":{"$error":"#N/A"}},{"$f":"IF('1. Order'!Q1146=\"\",\"\",'1. Order'!Q1146)","v":""},{"$f":"IF('1. Order'!S1146=\"\",\"\",'1. Order'!S1146)","v":""},{"$f":"IF('1. Order'!T1146=\"\",\"\",'1. Order'!T1146)","v":""},{"$f":"IF('1. Order'!W1146=\"\",\"\",'1. Order'!W1146)","v":""},{"$f":"IF('1. Order'!X1146=\"\",\"\",'1. Order'!X1146)","v":""},{"$f":"IF('1. Order'!Y1146=\"\",\"\",'1. Order'!Y1146)","v":"EUR"},{"$f":"IF('1. Order'!Z1146=\"\",\"\",'1. Order'!Z1146)","v":""},{"$f":"IF('1. Order'!AA1146=\"\",\"\",'1. Order'!AA1146)","v":""},{"$f":"IF('1. Order'!AB1146=\"\",\"\",'1. Order'!AB1146)","v":""},null,{"$f":"IF('1. Order'!AT1146=\"\",\"\",'1. Order'!AT1146)","v":""},{"$f":"IF('1. Order'!AU1146=\"\",\"\",'1. Order'!AU1146)","v":""},null,null,null,null,null,null,null,{"$f":"IF('1. Order'!AY1146=\"\",\"\",'1. Order'!AY1146)","v":""},{"$f":"IF('1. Order'!AZ1146=\"\",\"\",'1. Order'!AZ1146)","v":""},{"$f":"IF('1. Order'!BA1146=\"\",\"\",'1. Order'!BA1146)","v":""},{"$f":"IF('1. Order'!BB1146=\"\",\"\",'1. Order'!BB1146)","v":""},{"$f":"IF('1. Order'!BD1146=\"\",\"\",'1. Order'!BD1146)","v":""},{"$f":"IF('1. Order'!BE1146=\"\",\"\",'1. Order'!BE1146)","v":""},{"$f":"IF('1. Order'!BF1146=\"\",\"\",'1. Order'!BF1146)","v":""},{"$f":"IF('1. Order'!BG1146=\"\",\"\",'1. Order'!BG1146)","v":""},{"$f":"IF('1. Order'!BH1146=\"\",\"\",'1. Order'!BH1146)","v":"ZWO"}]
[{"$f":"IF('1. Order'!F1147=\"\",\"\",'1. Order'!F1147)","v":{"$error":"#N/A"}},{"$f":"IF('1. Order'!G1147=\"\",\"\",'1. Order'!G1147)","v":""},{"$f":"IF('1. Order'!H1147=\"\",\"\",'1. Order'!H1147)","v":""},{"$f":"IF('1. Order'!I1147=\"\",\"\",'1. Order'!I1147)","v":""},{"$f":"IF('1. Order'!J1147=\"\",\"\",'1. Order'!J1147)","v":""},{"$f":"IF('1. Order'!K1147=\"\",\"\",'1. Order'!K1147)","v":""},{"$f":"IF('1. Order'!L1147=\"\",\"\",'1. Order'!L1147)","v":""},{"$f":"IF('1. Order'!M1147=\"\",\"\",'1. Order'!M1147)","v":""},{"$f":"IF('1. Order'!N1147=\"\",\"\",'1. Order'!N1147)","v":""},{"$f":"IF('1. Order'!O1147=\"\",\"\",'1. Order'!O1147)","v":{"$error":"#N/A"}},{"$f":"IF('1. Order'!P1147=\"\",\"\",'1. Order'!P1147)","v":{"$error":"#N/A"}},{"$f":"IF('1. Order'!Q1147=\"\",\"\",'1. Order'!Q1147)","v":""},{"$f":"IF('1. Order'!S1147=\"\",\"\",'1. Order'!S1147)","v":""},{"$f":"IF('1. Order'!T1147=\"\",\"\",'1. Order'!T1147)","v":""},{"$f":"IF('1. Order'!W1147=\"\",\"\",'1. Order'!W1147)","v":""},{"$f":"IF('1. Order'!X1147=\"\",\"\",'1. Order'!X1147)","v":""},{"$f":"IF('1. Order'!Y1147=\"\",\"\",'1. Order'!Y1147)","v":"EUR"},{"$f":"IF('1. Order'!Z1147=\"\",\"\",'1. Order'!Z1147)","v":""},{"$f":"IF('1. Order'!AA1147=\"\",\"\",'1. Order'!AA1147)","v":""},{"$f":"IF('1. Order'!AB1147=\"\",\"\",'1. Order'!AB1147)","v":""},null,{"$f":"IF('1. Order'!AT1147=\"\",\"\",'1. Order'!AT1147)","v":""},{"$f":"IF('1. Order'!AU1147=\"\",\"\",'1. Order'!AU1147)","v":""},null,null,null,null,null,null,null,{"$f":"IF('1. Order'!AY1147=\"\",\"\",'1. Order'!AY1147)","v":""},{"$f":"IF('1. Order'!AZ1147=\"\",\"\",'1. Order'!AZ1147)","v":""},{"$f":"IF('1. Order'!BA1147=\"\",\"\",'1. Order'!BA1147)","v":""},{"$f":"IF('1. Order'!BB1147=\"\",\"\",'1. Order'!BB1147)","v":""},{"$f":"IF('1. Order'!BD1147=\"\",\"\",'1. Order'!BD1147)","v":""},{"$f":"IF('1. Order'!BE1147=\"\",\"\",'1. Order'!BE1147)","v":""},{"$f":"IF('1. Order'!BF1147=\"\",\"\",'1. Order'!BF1147)","v":""},{"$f":"IF('1. Order'!BG1147=\"\",\"\",'1. Order'!BG1147)","v":""},{"$f":"IF('1. Order'!BH1147=\"\",\"\",'1. Order'!BH1147)","v":"ZWO"}]
[{"$f":"IF('1. Order'!F1148=\"\",\"\",'1. Order'!F1148)","v":{"$error":"#N/A"}},{"$f":"IF('1. Order'!G1148=\"\",\"\",'1. Order'!G1148)","v":""},{"$f":"IF('1. Order'!H1148=\"\",\"\",'1. Order'!H1148)","v":""},{"$f":"IF('1. Order'!I1148=\"\",\"\",'1. Order'!I1148)","v":""},{"$f":"IF('1. Order'!J1148=\"\",\"\",'1. Order'!J1148)","v":""},{"$f":"IF('1. Order'!K1148=\"\",\"\",'1. Order'!K1148)","v":""},{"$f":"IF('1. Order'!L1148=\"\",\"\",'1. Order'!L1148)","v":""},{"$f":"IF('1. Order'!M1148=\"\",\"\",'1. Order'!M1148)","v":""},{"$f":"IF('1. Order'!N1148=\"\",\"\",'1. Order'!N1148)","v":""},{"$f":"IF('1. Order'!O1148=\"\",\"\",'1. Order'!O1148)","v":{"$error":"#N/A"}},{"$f":"IF('1. Order'!P1148=\"\",\"\",'1. Order'!P1148)","v":{"$error":"#N/A"}},{"$f":"IF('1. Order'!Q1148=\"\",\"\",'1. Order'!Q1148)","v":""},{"$f":"IF('1. Order'!S1148=\"\",\"\",'1. Order'!S1148)","v":""},{"$f":"IF('1. Order'!T1148=\"\",\"\",'1. Order'!T1148)","v":""},{"$f":"IF('1. Order'!W1148=\"\",\"\",'1. Order'!W1148)","v":""},{"$f":"IF('1. Order'!X1148=\"\",\"\",'1. Order'!X1148)","v":""},{"$f":"IF('1. Order'!Y1148=\"\",\"\",'1. Order'!Y1148)","v":"EUR"},{"$f":"IF('1. Order'!Z1148=\"\",\"\",'1. Order'!Z1148)","v":""},{"$f":"IF('1. Order'!AA1148=\"\",\"\",'1. Order'!AA1148)","v":""},{"$f":"IF('1. Order'!AB1148=\"\",\"\",'1. Order'!AB1148)","v":""},null,{"$f":"IF('1. Order'!AT1148=\"\",\"\",'1. Order'!AT1148)","v":""},{"$f":"IF('1. Order'!AU1148=\"\",\"\",'1. Order'!AU1148)","v":""},null,null,null,null,null,null,null,{"$f":"IF('1. Order'!AY1148=\"\",\"\",'1. Order'!AY1148)","v":""},{"$f":"IF('1. Order'!AZ1148=\"\",\"\",'1. Order'!AZ1148)","v":""},{"$f":"IF('1. Order'!BA1148=\"\",\"\",'1. Order'!BA1148)","v":""},{"$f":"IF('1. Order'!BB1148=\"\",\"\",'1. Order'!BB1148)","v":""},{"$f":"IF('1. Order'!BD1148=\"\",\"\",'1. Order'!BD1148)","v":""},{"$f":"IF('1. Order'!BE1148=\"\",\"\",'1. Order'!BE1148)","v":""},{"$f":"IF('1. Order'!BF1148=\"\",\"\",'1. Order'!BF1148)","v":""},{"$f":"IF('1. Order'!BG1148=\"\",\"\",'1. Order'!BG1148)","v":""},{"$f":"IF('1. Order'!BH1148=\"\",\"\",'1. Order'!BH1148)","v":"ZWO"}]
[{"$f":"IF('1. Order'!F1149=\"\",\"\",'1. Order'!F1149)","v":{"$error":"#N/A"}},{"$f":"IF('1. Order'!G1149=\"\",\"\",'1. Order'!G1149)","v":""},{"$f":"IF('1. Order'!H1149=\"\",\"\",'1. Order'!H1149)","v":""},{"$f":"IF('1. Order'!I1149=\"\",\"\",'1. Order'!I1149)","v":""},{"$f":"IF('1. Order'!J1149=\"\",\"\",'1. Order'!J1149)","v":""},{"$f":"IF('1. Order'!K1149=\"\",\"\",'1. Order'!K1149)","v":""},{"$f":"IF('1. Order'!L1149=\"\",\"\",'1. Order'!L1149)","v":""},{"$f":"IF('1. Order'!M1149=\"\",\"\",'1. Order'!M1149)","v":""},{"$f":"IF('1. Order'!N1149=\"\",\"\",'1. Order'!N1149)","v":""},{"$f":"IF('1. Order'!O1149=\"\",\"\",'1. Order'!O1149)","v":{"$error":"#N/A"}},{"$f":"IF('1. Order'!P1149=\"\",\"\",'1. Order'!P1149)","v":{"$error":"#N/A"}},{"$f":"IF('1. Order'!Q1149=\"\",\"\",'1. Order'!Q1149)","v":""},{"$f":"IF('1. Order'!S1149=\"\",\"\",'1. Order'!S1149)","v":""},{"$f":"IF('1. Order'!T1149=\"\",\"\",'1. Order'!T1149)","v":""},{"$f":"IF('1. Order'!W1149=\"\",\"\",'1. Order'!W1149)","v":""},{"$f":"IF('1. Order'!X1149=\"\",\"\",'1. Order'!X1149)","v":""},{"$f":"IF('1. Order'!Y1149=\"\",\"\",'1. Order'!Y1149)","v":"EUR"},{"$f":"IF('1. Order'!Z1149=\"\",\"\",'1. Order'!Z1149)","v":""},{"$f":"IF('1. Order'!AA1149=\"\",\"\",'1. Order'!AA1149)","v":""},{"$f":"IF('1. Order'!AB1149=\"\",\"\",'1. Order'!AB1149)","v":""},null,{"$f":"IF('1. Order'!AT1149=\"\",\"\",'1. Order'!AT1149)","v":""},{"$f":"IF('1. Order'!AU1149=\"\",\"\",'1. Order'!AU1149)","v":""},null,null,null,null,null,null,null,{"$f":"IF('1. Order'!AY1149=\"\",\"\",'1. Order'!AY1149)","v":""},{"$f":"IF('1. Order'!AZ1149=\"\",\"\",'1. Order'!AZ1149)","v":""},{"$f":"IF('1. Order'!BA1149=\"\",\"\",'1. Order'!BA1149)","v":""},{"$f":"IF('1. Order'!BB1149=\"\",\"\",'1. Order'!BB1149)","v":""},{"$f":"IF('1. Order'!BD1149=\"\",\"\",'1. Order'!BD1149)","v":""},{"$f":"IF('1. Order'!BE1149=\"\",\"\",'1. Order'!BE1149)","v":""},{"$f":"IF('1. Order'!BF1149=\"\",\"\",'1. Order'!BF1149)","v":""},{"$f":"IF('1. Order'!BG1149=\"\",\"\",'1. Order'!BG1149)","v":""},{"$f":"IF('1. Order'!BH1149=\"\",\"\",'1. Order'!BH1149)","v":"ZWO"}]
[{"$f":"IF('1. Order'!F1150=\"\",\"\",'1. Order'!F1150)","v":{"$error":"#N/A"}},{"$f":"IF('1. Order'!G1150=\"\",\"\",'1. Order'!G1150)","v":""},{"$f":"IF('1. Order'!H1150=\"\",\"\",'1. Order'!H1150)","v":""},{"$f":"IF('1. Order'!I1150=\"\",\"\",'1. Order'!I1150)","v":""},{"$f":"IF('1. Order'!J1150=\"\",\"\",'1. Order'!J1150)","v":""},{"$f":"IF('1. Order'!K1150=\"\",\"\",'1. Order'!K1150)","v":""},{"$f":"IF('1. Order'!L1150=\"\",\"\",'1. Order'!L1150)","v":""},{"$f":"IF('1. Order'!M1150=\"\",\"\",'1. Order'!M1150)","v":""},{"$f":"IF('1. Order'!N1150=\"\",\"\",'1. Order'!N1150)","v":""},{"$f":"IF('1. Order'!O1150=\"\",\"\",'1. Order'!O1150)","v":{"$error":"#N/A"}},{"$f":"IF('1. Order'!P1150=\"\",\"\",'1. Order'!P1150)","v":{"$error":"#N/A"}},{"$f":"IF('1. Order'!Q1150=\"\",\"\",'1. Order'!Q1150)","v":""},{"$f":"IF('1. Order'!S1150=\"\",\"\",'1. Order'!S1150)","v":""},{"$f":"IF('1. Order'!T1150=\"\",\"\",'1. Order'!T1150)","v":""},{"$f":"IF('1. Order'!W1150=\"\",\"\",'1. Order'!W1150)","v":""},{"$f":"IF('1. Order'!X1150=\"\",\"\",'1. Order'!X1150)","v":""},{"$f":"IF('1. Order'!Y1150=\"\",\"\",'1. Order'!Y1150)","v":"EUR"},{"$f":"IF('1. Order'!Z1150=\"\",\"\",'1. Order'!Z1150)","v":""},{"$f":"IF('1. Order'!AA1150=\"\",\"\",'1. Order'!AA1150)","v":""},{"$f":"IF('1. Order'!AB1150=\"\",\"\",'1. Order'!AB1150)","v":""},null,{"$f":"IF('1. Order'!AT1150=\"\",\"\",'1. Order'!AT1150)","v":""},{"$f":"IF('1. Order'!AU1150=\"\",\"\",'1. Order'!AU1150)","v":""},null,null,null,null,null,null,null,{"$f":"IF('1. Order'!AY1150=\"\",\"\",'1. Order'!AY1150)","v":""},{"$f":"IF('1. Order'!AZ1150=\"\",\"\",'1. Order'!AZ1150)","v":""},{"$f":"IF('1. Order'!BA1150=\"\",\"\",'1. Order'!BA1150)","v":""},{"$f":"IF('1. Order'!BB1150=\"\",\"\",'1. Order'!BB1150)","v":""},{"$f":"IF('1. Order'!BD1150=\"\",\"\",'1. Order'!BD1150)","v":""},{"$f":"IF('1. Order'!BE1150=\"\",\"\",'1. Order'!BE1150)","v":""},{"$f":"IF('1. Order'!BF1150=\"\",\"\",'1. Order'!BF1150)","v":""},{"$f":"IF('1. Order'!BG1150=\"\",\"\",'1. Order'!BG1150)","v":""},{"$f":"IF('1. Order'!BH1150=\"\",\"\",'1. Order'!BH1150)","v":"ZWO"}]
[{"$f":"IF('1. Order'!F1151=\"\",\"\",'1. Order'!F1151)","v":{"$error":"#N/A"}},{"$f":"IF('1. Order'!G1151=\"\",\"\",'1. Order'!G1151)","v":""},{"$f":"IF('1. Order'!H1151=\"\",\"\",'1. Order'!H1151)","v":""},{"$f":"IF('1. Order'!I1151=\"\",\"\",'1. Order'!I1151)","v":""},{"$f":"IF('1. Order'!J1151=\"\",\"\",'1. Order'!J1151)","v":""},{"$f":"IF('1. Order'!K1151=\"\",\"\",'1. Order'!K1151)","v":""},{"$f":"IF('1. Order'!L1151=\"\",\"\",'1. Order'!L1151)","v":""},{"$f":"IF('1. Order'!M1151=\"\",\"\",'1. Order'!M1151)","v":""},{"$f":"IF('1. Order'!N1151=\"\",\"\",'1. Order'!N1151)","v":""},{"$f":"IF('1. Order'!O1151=\"\",\"\",'1. Order'!O1151)","v":{"$error":"#N/A"}},{"$f":"IF('1. Order'!P1151=\"\",\"\",'1. Order'!P1151)","v":{"$error":"#N/A"}},{"$f":"IF('1. Order'!Q1151=\"\",\"\",'1. Order'!Q1151)","v":""},{"$f":"IF('1. Order'!S1151=\"\",\"\",'1. Order'!S1151)","v":""},{"$f":"IF('1. Order'!T1151=\"\",\"\",'1. Order'!T1151)","v":""},{"$f":"IF('1. Order'!W1151=\"\",\"\",'1. Order'!W1151)","v":""},{"$f":"IF('1. Order'!X1151=\"\",\"\",'1. Order'!X1151)","v":""},{"$f":"IF('1. Order'!Y1151=\"\",\"\",'1. Order'!Y1151)","v":"EUR"},{"$f":"IF('1. Order'!Z1151=\"\",\"\",'1. Order'!Z1151)","v":""},{"$f":"IF('1. Order'!AA1151=\"\",\"\",'1. Order'!AA1151)","v":""},{"$f":"IF('1. Order'!AB1151=\"\",\"\",'1. Order'!AB1151)","v":""},null,{"$f":"IF('1. Order'!AT1151=\"\",\"\",'1. Order'!AT1151)","v":""},{"$f":"IF('1. Order'!AU1151=\"\",\"\",'1. Order'!AU1151)","v":""},null,null,null,null,null,null,null,{"$f":"IF('1. Order'!AY1151=\"\",\"\",'1. Order'!AY1151)","v":""},{"$f":"IF('1. Order'!AZ1151=\"\",\"\",'1. Order'!AZ1151)","v":""},{"$f":"IF('1. Order'!BA1151=\"\",\"\",'1. Order'!BA1151)","v":""},{"$f":"IF('1. Order'!BB1151=\"\",\"\",'1. Order'!BB1151)","v":""},{"$f":"IF('1. Order'!BD1151=\"\",\"\",'1. Order'!BD1151)","v":""},{"$f":"IF('1. Order'!BE1151=\"\",\"\",'1. Order'!BE1151)","v":""},{"$f":"IF('1. Order'!BF1151=\"\",\"\",'1. Order'!BF1151)","v":""},{"$f":"IF('1. Order'!BG1151=\"\",\"\",'1. Order'!BG1151)","v":""},{"$f":"IF('1. Order'!BH1151=\"\",\"\",'1. Order'!BH1151)","v":"ZWO"}]
[{"$f":"IF('1. Order'!F1152=\"\",\"\",'1. Order'!F1152)","v":{"$error":"#N/A"}},{"$f":"IF('1. Order'!G1152=\"\",\"\",'1. Order'!G1152)","v":""},{"$f":"IF('1. Order'!H1152=\"\",\"\",'1. Order'!H1152)","v":""},{"$f":"IF('1. Order'!I1152=\"\",\"\",'1. Order'!I1152)","v":""},{"$f":"IF('1. Order'!J1152=\"\",\"\",'1. Order'!J1152)","v":""},{"$f":"IF('1. Order'!K1152=\"\",\"\",'1. Order'!K1152)","v":""},{"$f":"IF('1. Order'!L1152=\"\",\"\",'1. Order'!L1152)","v":""},{"$f":"IF('1. Order'!M1152=\"\",\"\",'1. Order'!M1152)","v":""},{"$f":"IF('1. Order'!N1152=\"\",\"\",'1. Order'!N1152)","v":""},{"$f":"IF('1. Order'!O1152=\"\",\"\",'1. Order'!O1152)","v":{"$error":"#N/A"}},{"$f":"IF('1. Order'!P1152=\"\",\"\",'1. Order'!P1152)","v":{"$error":"#N/A"}},{"$f":"IF('1. Order'!Q1152=\"\",\"\",'1. Order'!Q1152)","v":""},{"$f":"IF('1. Order'!S1152=\"\",\"\",'1. Order'!S1152)","v":""},{"$f":"IF('1. Order'!T1152=\"\",\"\",'1. Order'!T1152)","v":""},{"$f":"IF('1. Order'!W1152=\"\",\"\",'1. Order'!W1152)","v":""},{"$f":"IF('1. Order'!X1152=\"\",\"\",'1. Order'!X1152)","v":""},{"$f":"IF('1. Order'!Y1152=\"\",\"\",'1. Order'!Y1152)","v":"EUR"},{"$f":"IF('1. Order'!Z1152=\"\",\"\",'1. Order'!Z1152)","v":""},{"$f":"IF('1. Order'!AA1152=\"\",\"\",'1. Order'!AA1152)","v":""},{"$f":"IF('1. Order'!AB1152=\"\",\"\",'1. Order'!AB1152)","v":""},null,{"$f":"IF('1. Order'!AT1152=\"\",\"\",'1. Order'!AT1152)","v":""},{"$f":"IF('1. Order'!AU1152=\"\",\"\",'1. Order'!AU1152)","v":""},null,null,null,null,null,null,null,{"$f":"IF('1. Order'!AY1152=\"\",\"\",'1. Order'!AY1152)","v":""},{"$f":"IF('1. Order'!AZ1152=\"\",\"\",'1. Order'!AZ1152)","v":""},{"$f":"IF('1. Order'!BA1152=\"\",\"\",'1. Order'!BA1152)","v":""},{"$f":"IF('1. Order'!BB1152=\"\",\"\",'1. Order'!BB1152)","v":""},{"$f":"IF('1. Order'!BD1152=\"\",\"\",'1. Order'!BD1152)","v":""},{"$f":"IF('1. Order'!BE1152=\"\",\"\",'1. Order'!BE1152)","v":""},{"$f":"IF('1. Order'!BF1152=\"\",\"\",'1. Order'!BF1152)","v":""},{"$f":"IF('1. Order'!BG1152=\"\",\"\",'1. Order'!BG1152)","v":""},{"$f":"IF('1. Order'!BH1152=\"\",\"\",'1. Order'!BH1152)","v":"ZWO"}]
[{"$f":"IF('1. Order'!F1153=\"\",\"\",'1. Order'!F1153)","v":{"$error":"#N/A"}},{"$f":"IF('1. Order'!G1153=\"\",\"\",'1. Order'!G1153)","v":""},{"$f":"IF('1. Order'!H1153=\"\",\"\",'1. Order'!H1153)","v":""},{"$f":"IF('1. Order'!I1153=\"\",\"\",'1. Order'!I1153)","v":""},{"$f":"IF('1. Order'!J1153=\"\",\"\",'1. Order'!J1153)","v":""},{"$f":"IF('1. Order'!K1153=\"\",\"\",'1. Order'!K1153)","v":""},{"$f":"IF('1. Order'!L1153=\"\",\"\",'1. Order'!L1153)","v":""},{"$f":"IF('1. Order'!M1153=\"\",\"\",'1. Order'!M1153)","v":""},{"$f":"IF('1. Order'!N1153=\"\",\"\",'1. Order'!N1153)","v":""},{"$f":"IF('1. Order'!O1153=\"\",\"\",'1. Order'!O1153)","v":{"$error":"#N/A"}},{"$f":"IF('1. Order'!P1153=\"\",\"\",'1. Order'!P1153)","v":{"$error":"#N/A"}},{"$f":"IF('1. Order'!Q1153=\"\",\"\",'1. Order'!Q1153)","v":""},{"$f":"IF('1. Order'!S1153=\"\",\"\",'1. Order'!S1153)","v":""},{"$f":"IF('1. Order'!T1153=\"\",\"\",'1. Order'!T1153)","v":""},{"$f":"IF('1. Order'!W1153=\"\",\"\",'1. Order'!W1153)","v":""},{"$f":"IF('1. Order'!X1153=\"\",\"\",'1. Order'!X1153)","v":""},{"$f":"IF('1. Order'!Y1153=\"\",\"\",'1. Order'!Y1153)","v":"EUR"},{"$f":"IF('1. Order'!Z1153=\"\",\"\",'1. Order'!Z1153)","v":""},{"$f":"IF('1. Order'!AA1153=\"\",\"\",'1. Order'!AA1153)","v":""},{"$f":"IF('1. Order'!AB1153=\"\",\"\",'1. Order'!AB1153)","v":""},null,{"$f":"IF('1. Order'!AT1153=\"\",\"\",'1. Order'!AT1153)","v":""},{"$f":"IF('1. Order'!AU1153=\"\",\"\",'1. Order'!AU1153)","v":""},null,null,null,null,null,null,null,{"$f":"IF('1. Order'!AY1153=\"\",\"\",'1. Order'!AY1153)","v":""},{"$f":"IF('1. Order'!AZ1153=\"\",\"\",'1. Order'!AZ1153)","v":""},{"$f":"IF('1. Order'!BA1153=\"\",\"\",'1. Order'!BA1153)","v":""},{"$f":"IF('1. Order'!BB1153=\"\",\"\",'1. Order'!BB1153)","v":""},{"$f":"IF('1. Order'!BD1153=\"\",\"\",'1. Order'!BD1153)","v":""},{"$f":"IF('1. Order'!BE1153=\"\",\"\",'1. Order'!BE1153)","v":""},{"$f":"IF('1. Order'!BF1153=\"\",\"\",'1. Order'!BF1153)","v":""},{"$f":"IF('1. Order'!BG1153=\"\",\"\",'1. Order'!BG1153)","v":""},{"$f":"IF('1. Order'!BH1153=\"\",\"\",'1. Order'!BH1153)","v":"ZWO"}]
[{"$f":"IF('1. Order'!F1154=\"\",\"\",'1. Order'!F1154)","v":{"$error":"#N/A"}},{"$f":"IF('1. Order'!G1154=\"\",\"\",'1. Order'!G1154)","v":""},{"$f":"IF('1. Order'!H1154=\"\",\"\",'1. Order'!H1154)","v":""},{"$f":"IF('1. Order'!I1154=\"\",\"\",'1. Order'!I1154)","v":""},{"$f":"IF('1. Order'!J1154=\"\",\"\",'1. Order'!J1154)","v":""},{"$f":"IF('1. Order'!K1154=\"\",\"\",'1. Order'!K1154)","v":""},{"$f":"IF('1. Order'!L1154=\"\",\"\",'1. Order'!L1154)","v":""},{"$f":"IF('1. Order'!M1154=\"\",\"\",'1. Order'!M1154)","v":""},{"$f":"IF('1. Order'!N1154=\"\",\"\",'1. Order'!N1154)","v":""},{"$f":"IF('1. Order'!O1154=\"\",\"\",'1. Order'!O1154)","v":{"$error":"#N/A"}},{"$f":"IF('1. Order'!P1154=\"\",\"\",'1. Order'!P1154)","v":{"$error":"#N/A"}},{"$f":"IF('1. Order'!Q1154=\"\",\"\",'1. Order'!Q1154)","v":""},{"$f":"IF('1. Order'!S1154=\"\",\"\",'1. Order'!S1154)","v":""},{"$f":"IF('1. Order'!T1154=\"\",\"\",'1. Order'!T1154)","v":""},{"$f":"IF('1. Order'!W1154=\"\",\"\",'1. Order'!W1154)","v":""},{"$f":"IF('1. Order'!X1154=\"\",\"\",'1. Order'!X1154)","v":""},{"$f":"IF('1. Order'!Y1154=\"\",\"\",'1. Order'!Y1154)","v":"EUR"},{"$f":"IF('1. Order'!Z1154=\"\",\"\",'1. Order'!Z1154)","v":""},{"$f":"IF('1. Order'!AA1154=\"\",\"\",'1. Order'!AA1154)","v":""},{"$f":"IF('1. Order'!AB1154=\"\",\"\",'1. Order'!AB1154)","v":""},null,{"$f":"IF('1. Order'!AT1154=\"\",\"\",'1. Order'!AT1154)","v":""},{"$f":"IF('1. Order'!AU1154=\"\",\"\",'1. Order'!AU1154)","v":""},null,null,null,null,null,null,null,{"$f":"IF('1. Order'!AY1154=\"\",\"\",'1. Order'!AY1154)","v":""},{"$f":"IF('1. Order'!AZ1154=\"\",\"\",'1. Order'!AZ1154)","v":""},{"$f":"IF('1. Order'!BA1154=\"\",\"\",'1. Order'!BA1154)","v":""},{"$f":"IF('1. Order'!BB1154=\"\",\"\",'1. Order'!BB1154)","v":""},{"$f":"IF('1. Order'!BD1154=\"\",\"\",'1. Order'!BD1154)","v":""},{"$f":"IF('1. Order'!BE1154=\"\",\"\",'1. Order'!BE1154)","v":""},{"$f":"IF('1. Order'!BF1154=\"\",\"\",'1. Order'!BF1154)","v":""},{"$f":"IF('1. Order'!BG1154=\"\",\"\",'1. Order'!BG1154)","v":""},{"$f":"IF('1. Order'!BH1154=\"\",\"\",'1. Order'!BH1154)","v":"ZWO"}]
[{"$f":"IF('1. Order'!F1155=\"\",\"\",'1. Order'!F1155)","v":{"$error":"#N/A"}},{"$f":"IF('1. Order'!G1155=\"\",\"\",'1. Order'!G1155)","v":""},{"$f":"IF('1. Order'!H1155=\"\",\"\",'1. Order'!H1155)","v":""},{"$f":"IF('1. Order'!I1155=\"\",\"\",'1. Order'!I1155)","v":""},{"$f":"IF('1. Order'!J1155=\"\",\"\",'1. Order'!J1155)","v":""},{"$f":"IF('1. Order'!K1155=\"\",\"\",'1. Order'!K1155)","v":""},{"$f":"IF('1. Order'!L1155=\"\",\"\",'1. Order'!L1155)","v":""},{"$f":"IF('1. Order'!M1155=\"\",\"\",'1. Order'!M1155)","v":""},{"$f":"IF('1. Order'!N1155=\"\",\"\",'1. Order'!N1155)","v":""},{"$f":"IF('1. Order'!O1155=\"\",\"\",'1. Order'!O1155)","v":{"$error":"#N/A"}},{"$f":"IF('1. Order'!P1155=\"\",\"\",'1. Order'!P1155)","v":{"$error":"#N/A"}},{"$f":"IF('1. Order'!Q1155=\"\",\"\",'1. Order'!Q1155)","v":""},{"$f":"IF('1. Order'!S1155=\"\",\"\",'1. Order'!S1155)","v":""},{"$f":"IF('1. Order'!T1155=\"\",\"\",'1. Order'!T1155)","v":""},{"$f":"IF('1. Order'!W1155=\"\",\"\",'1. Order'!W1155)","v":""},{"$f":"IF('1. Order'!X1155=\"\",\"\",'1. Order'!X1155)","v":""},{"$f":"IF('1. Order'!Y1155=\"\",\"\",'1. Order'!Y1155)","v":"EUR"},{"$f":"IF('1. Order'!Z1155=\"\",\"\",'1. Order'!Z1155)","v":""},{"$f":"IF('1. Order'!AA1155=\"\",\"\",'1. Order'!AA1155)","v":""},{"$f":"IF('1. Order'!AB1155=\"\",\"\",'1. Order'!AB1155)","v":""},null,{"$f":"IF('1. Order'!AT1155=\"\",\"\",'1. Order'!AT1155)","v":""},{"$f":"IF('1. Order'!AU1155=\"\",\"\",'1. Order'!AU1155)","v":""},null,null,null,null,null,null,null,{"$f":"IF('1. Order'!AY1155=\"\",\"\",'1. Order'!AY1155)","v":""},{"$f":"IF('1. Order'!AZ1155=\"\",\"\",'1. Order'!AZ1155)","v":""},{"$f":"IF('1. Order'!BA1155=\"\",\"\",'1. Order'!BA1155)","v":""},{"$f":"IF('1. Order'!BB1155=\"\",\"\",'1. Order'!BB1155)","v":""},{"$f":"IF('1. Order'!BD1155=\"\",\"\",'1. Order'!BD1155)","v":""},{"$f":"IF('1. Order'!BE1155=\"\",\"\",'1. Order'!BE1155)","v":""},{"$f":"IF('1. Order'!BF1155=\"\",\"\",'1. Order'!BF1155)","v":""},{"$f":"IF('1. Order'!BG1155=\"\",\"\",'1. Order'!BG1155)","v":""},{"$f":"IF('1. Order'!BH1155=\"\",\"\",'1. Order'!BH1155)","v":"ZWO"}]
[{"$f":"IF('1. Order'!F1156=\"\",\"\",'1. Order'!F1156)","v":{"$error":"#N/A"}},{"$f":"IF('1. Order'!G1156=\"\",\"\",'1. Order'!G1156)","v":""},{"$f":"IF('1. Order'!H1156=\"\",\"\",'1. Order'!H1156)","v":""},{"$f":"IF('1. Order'!I1156=\"\",\"\",'1. Order'!I1156)","v":""},{"$f":"IF('1. Order'!J1156=\"\",\"\",'1. Order'!J1156)","v":""},{"$f":"IF('1. Order'!K1156=\"\",\"\",'1. Order'!K1156)","v":""},{"$f":"IF('1. Order'!L1156=\"\",\"\",'1. Order'!L1156)","v":""},{"$f":"IF('1. Order'!M1156=\"\",\"\",'1. Order'!M1156)","v":""},{"$f":"IF('1. Order'!N1156=\"\",\"\",'1. Order'!N1156)","v":""},{"$f":"IF('1. Order'!O1156=\"\",\"\",'1. Order'!O1156)","v":{"$error":"#N/A"}},{"$f":"IF('1. Order'!P1156=\"\",\"\",'1. Order'!P1156)","v":{"$error":"#N/A"}},{"$f":"IF('1. Order'!Q1156=\"\",\"\",'1. Order'!Q1156)","v":""},{"$f":"IF('1. Order'!S1156=\"\",\"\",'1. Order'!S1156)","v":""},{"$f":"IF('1. Order'!T1156=\"\",\"\",'1. Order'!T1156)","v":""},{"$f":"IF('1. Order'!W1156=\"\",\"\",'1. Order'!W1156)","v":""},{"$f":"IF('1. Order'!X1156=\"\",\"\",'1. Order'!X1156)","v":""},{"$f":"IF('1. Order'!Y1156=\"\",\"\",'1. Order'!Y1156)","v":"EUR"},{"$f":"IF('1. Order'!Z1156=\"\",\"\",'1. Order'!Z1156)","v":""},{"$f":"IF('1. Order'!AA1156=\"\",\"\",'1. Order'!AA1156)","v":""},{"$f":"IF('1. Order'!AB1156=\"\",\"\",'1. Order'!AB1156)","v":""},null,{"$f":"IF('1. Order'!AT1156=\"\",\"\",'1. Order'!AT1156)","v":""},{"$f":"IF('1. Order'!AU1156=\"\",\"\",'1. Order'!AU1156)","v":""},null,null,null,null,null,null,null,{"$f":"IF('1. Order'!AY1156=\"\",\"\",'1. Order'!AY1156)","v":""},{"$f":"IF('1. Order'!AZ1156=\"\",\"\",'1. Order'!AZ1156)","v":""},{"$f":"IF('1. Order'!BA1156=\"\",\"\",'1. Order'!BA1156)","v":""},{"$f":"IF('1. Order'!BB1156=\"\",\"\",'1. Order'!BB1156)","v":""},{"$f":"IF('1. Order'!BD1156=\"\",\"\",'1. Order'!BD1156)","v":""},{"$f":"IF('1. Order'!BE1156=\"\",\"\",'1. Order'!BE1156)","v":""},{"$f":"IF('1. Order'!BF1156=\"\",\"\",'1. Order'!BF1156)","v":""},{"$f":"IF('1. Order'!BG1156=\"\",\"\",'1. Order'!BG1156)","v":""},{"$f":"IF('1. Order'!BH1156=\"\",\"\",'1. Order'!BH1156)","v":"ZWO"}]
[{"$f":"IF('1. Order'!F1157=\"\",\"\",'1. Order'!F1157)","v":{"$error":"#N/A"}},{"$f":"IF('1. Order'!G1157=\"\",\"\",'1. Order'!G1157)","v":""},{"$f":"IF('1. Order'!H1157=\"\",\"\",'1. Order'!H1157)","v":""},{"$f":"IF('1. Order'!I1157=\"\",\"\",'1. Order'!I1157)","v":""},{"$f":"IF('1. Order'!J1157=\"\",\"\",'1. Order'!J1157)","v":""},{"$f":"IF('1. Order'!K1157=\"\",\"\",'1. Order'!K1157)","v":""},{"$f":"IF('1. Order'!L1157=\"\",\"\",'1. Order'!L1157)","v":""},{"$f":"IF('1. Order'!M1157=\"\",\"\",'1. Order'!M1157)","v":""},{"$f":"IF('1. Order'!N1157=\"\",\"\",'1. Order'!N1157)","v":""},{"$f":"IF('1. Order'!O1157=\"\",\"\",'1. Order'!O1157)","v":{"$error":"#N/A"}},{"$f":"IF('1. Order'!P1157=\"\",\"\",'1. Order'!P1157)","v":{"$error":"#N/A"}},{"$f":"IF('1. Order'!Q1157=\"\",\"\",'1. Order'!Q1157)","v":""},{"$f":"IF('1. Order'!S1157=\"\",\"\",'1. Order'!S1157)","v":""},{"$f":"IF('1. Order'!T1157=\"\",\"\",'1. Order'!T1157)","v":""},{"$f":"IF('1. Order'!W1157=\"\",\"\",'1. Order'!W1157)","v":""},{"$f":"IF('1. Order'!X1157=\"\",\"\",'1. Order'!X1157)","v":""},{"$f":"IF('1. Order'!Y1157=\"\",\"\",'1. Order'!Y1157)","v":"EUR"},{"$f":"IF('1. Order'!Z1157=\"\",\"\",'1. Order'!Z1157)","v":""},{"$f":"IF('1. Order'!AA1157=\"\",\"\",'1. Order'!AA1157)","v":""},{"$f":"IF('1. Order'!AB1157=\"\",\"\",'1. Order'!AB1157)","v":""},null,{"$f":"IF('1. Order'!AT1157=\"\",\"\",'1. Order'!AT1157)","v":""},{"$f":"IF('1. Order'!AU1157=\"\",\"\",'1. Order'!AU1157)","v":""},null,null,null,null,null,null,null,{"$f":"IF('1. Order'!AY1157=\"\",\"\",'1. Order'!AY1157)","v":""},{"$f":"IF('1. Order'!AZ1157=\"\",\"\",'1. Order'!AZ1157)","v":""},{"$f":"IF('1. Order'!BA1157=\"\",\"\",'1. Order'!BA1157)","v":""},{"$f":"IF('1. Order'!BB1157=\"\",\"\",'1. Order'!BB1157)","v":""},{"$f":"IF('1. Order'!BD1157=\"\",\"\",'1. Order'!BD1157)","v":""},{"$f":"IF('1. Order'!BE1157=\"\",\"\",'1. Order'!BE1157)","v":""},{"$f":"IF('1. Order'!BF1157=\"\",\"\",'1. Order'!BF1157)","v":""},{"$f":"IF('1. Order'!BG1157=\"\",\"\",'1. Order'!BG1157)","v":""},{"$f":"IF('1. Order'!BH1157=\"\",\"\",'1. Order'!BH1157)","v":"ZWO"}]
[{"$f":"IF('1. Order'!F1158=\"\",\"\",'1. Order'!F1158)","v":{"$error":"#N/A"}},{"$f":"IF('1. Order'!G1158=\"\",\"\",'1. Order'!G1158)","v":""},{"$f":"IF('1. Order'!H1158=\"\",\"\",'1. Order'!H1158)","v":""},{"$f":"IF('1. Order'!I1158=\"\",\"\",'1. Order'!I1158)","v":""},{"$f":"IF('1. Order'!J1158=\"\",\"\",'1. Order'!J1158)","v":""},{"$f":"IF('1. Order'!K1158=\"\",\"\",'1. Order'!K1158)","v":""},{"$f":"IF('1. Order'!L1158=\"\",\"\",'1. Order'!L1158)","v":""},{"$f":"IF('1. Order'!M1158=\"\",\"\",'1. Order'!M1158)","v":""},{"$f":"IF('1. Order'!N1158=\"\",\"\",'1. Order'!N1158)","v":""},{"$f":"IF('1. Order'!O1158=\"\",\"\",'1. Order'!O1158)","v":{"$error":"#N/A"}},{"$f":"IF('1. Order'!P1158=\"\",\"\",'1. Order'!P1158)","v":{"$error":"#N/A"}},{"$f":"IF('1. Order'!Q1158=\"\",\"\",'1. Order'!Q1158)","v":""},{"$f":"IF('1. Order'!S1158=\"\",\"\",'1. Order'!S1158)","v":""},{"$f":"IF('1. Order'!T1158=\"\",\"\",'1. Order'!T1158)","v":""},{"$f":"IF('1. Order'!W1158=\"\",\"\",'1. Order'!W1158)","v":""},{"$f":"IF('1. Order'!X1158=\"\",\"\",'1. Order'!X1158)","v":""},{"$f":"IF('1. Order'!Y1158=\"\",\"\",'1. Order'!Y1158)","v":"EUR"},{"$f":"IF('1. Order'!Z1158=\"\",\"\",'1. Order'!Z1158)","v":""},{"$f":"IF('1. Order'!AA1158=\"\",\"\",'1. Order'!AA1158)","v":""},{"$f":"IF('1. Order'!AB1158=\"\",\"\",'1. Order'!AB1158)","v":""},null,{"$f":"IF('1. Order'!AT1158=\"\",\"\",'1. Order'!AT1158)","v":""},{"$f":"IF('1. Order'!AU1158=\"\",\"\",'1. Order'!AU1158)","v":""},null,null,null,null,null,null,null,{"$f":"IF('1. Order'!AY1158=\"\",\"\",'1. Order'!AY1158)","v":""},{"$f":"IF('1. Order'!AZ1158=\"\",\"\",'1. Order'!AZ1158)","v":""},{"$f":"IF('1. Order'!BA1158=\"\",\"\",'1. Order'!BA1158)","v":""},{"$f":"IF('1. Order'!BB1158=\"\",\"\",'1. Order'!BB1158)","v":""},{"$f":"IF('1. Order'!BD1158=\"\",\"\",'1. Order'!BD1158)","v":""},{"$f":"IF('1. Order'!BE1158=\"\",\"\",'1. Order'!BE1158)","v":""},{"$f":"IF('1. Order'!BF1158=\"\",\"\",'1. Order'!BF1158)","v":""},{"$f":"IF('1. Order'!BG1158=\"\",\"\",'1. Order'!BG1158)","v":""},{"$f":"IF('1. Order'!BH1158=\"\",\"\",'1. Order'!BH1158)","v":"ZWO"}]
[{"$f":"IF('1. Order'!F1159=\"\",\"\",'1. Order'!F1159)","v":{"$error":"#N/A"}},{"$f":"IF('1. Order'!G1159=\"\",\"\",'1. Order'!G1159)","v":""},{"$f":"IF('1. Order'!H1159=\"\",\"\",'1. Order'!H1159)","v":""},{"$f":"IF('1. Order'!I1159=\"\",\"\",'1. Order'!I1159)","v":""},{"$f":"IF('1. Order'!J1159=\"\",\"\",'1. Order'!J1159)","v":""},{"$f":"IF('1. Order'!K1159=\"\",\"\",'1. Order'!K1159)","v":""},{"$f":"IF('1. Order'!L1159=\"\",\"\",'1. Order'!L1159)","v":""},{"$f":"IF('1. Order'!M1159=\"\",\"\",'1. Order'!M1159)","v":""},{"$f":"IF('1. Order'!N1159=\"\",\"\",'1. Order'!N1159)","v":""},{"$f":"IF('1. Order'!O1159=\"\",\"\",'1. Order'!O1159)","v":{"$error":"#N/A"}},{"$f":"IF('1. Order'!P1159=\"\",\"\",'1. Order'!P1159)","v":{"$error":"#N/A"}},{"$f":"IF('1. Order'!Q1159=\"\",\"\",'1. Order'!Q1159)","v":""},{"$f":"IF('1. Order'!S1159=\"\",\"\",'1. Order'!S1159)","v":""},{"$f":"IF('1. Order'!T1159=\"\",\"\",'1. Order'!T1159)","v":""},{"$f":"IF('1. Order'!W1159=\"\",\"\",'1. Order'!W1159)","v":""},{"$f":"IF('1. Order'!X1159=\"\",\"\",'1. Order'!X1159)","v":""},{"$f":"IF('1. Order'!Y1159=\"\",\"\",'1. Order'!Y1159)","v":"EUR"},{"$f":"IF('1. Order'!Z1159=\"\",\"\",'1. Order'!Z1159)","v":""},{"$f":"IF('1. Order'!AA1159=\"\",\"\",'1. Order'!AA1159)","v":""},{"$f":"IF('1. Order'!AB1159=\"\",\"\",'1. Order'!AB1159)","v":""},null,{"$f":"IF('1. Order'!AT1159=\"\",\"\",'1. Order'!AT1159)","v":""},{"$f":"IF('1. Order'!AU1159=\"\",\"\",'1. Order'!AU1159)","v":""},null,null,null,null,null,null,null,{"$f":"IF('1. Order'!AY1159=\"\",\"\",'1. Order'!AY1159)","v":""},{"$f":"IF('1. Order'!AZ1159=\"\",\"\",'1. Order'!AZ1159)","v":""},{"$f":"IF('1. Order'!BA1159=\"\",\"\",'1. Order'!BA1159)","v":""},{"$f":"IF('1. Order'!BB1159=\"\",\"\",'1. Order'!BB1159)","v":""},{"$f":"IF('1. Order'!BD1159=\"\",\"\",'1. Order'!BD1159)","v":""},{"$f":"IF('1. Order'!BE1159=\"\",\"\",'1. Order'!BE1159)","v":""},{"$f":"IF('1. Order'!BF1159=\"\",\"\",'1. Order'!BF1159)","v":""},{"$f":"IF('1. Order'!BG1159=\"\",\"\",'1. Order'!BG1159)","v":""},{"$f":"IF('1. Order'!BH1159=\"\",\"\",'1. Order'!BH1159)","v":"ZWO"}]
[{"$f":"IF('1. Order'!F1160=\"\",\"\",'1. Order'!F1160)","v":{"$error":"#N/A"}},{"$f":"IF('1. Order'!G1160=\"\",\"\",'1. Order'!G1160)","v":""},{"$f":"IF('1. Order'!H1160=\"\",\"\",'1. Order'!H1160)","v":""},{"$f":"IF('1. Order'!I1160=\"\",\"\",'1. Order'!I1160)","v":""},{"$f":"IF('1. Order'!J1160=\"\",\"\",'1. Order'!J1160)","v":""},{"$f":"IF('1. Order'!K1160=\"\",\"\",'1. Order'!K1160)","v":""},{"$f":"IF('1. Order'!L1160=\"\",\"\",'1. Order'!L1160)","v":""},{"$f":"IF('1. Order'!M1160=\"\",\"\",'1. Order'!M1160)","v":""},{"$f":"IF('1. Order'!N1160=\"\",\"\",'1. Order'!N1160)","v":""},{"$f":"IF('1. Order'!O1160=\"\",\"\",'1. Order'!O1160)","v":{"$error":"#N/A"}},{"$f":"IF('1. Order'!P1160=\"\",\"\",'1. Order'!P1160)","v":{"$error":"#N/A"}},{"$f":"IF('1. Order'!Q1160=\"\",\"\",'1. Order'!Q1160)","v":""},{"$f":"IF('1. Order'!S1160=\"\",\"\",'1. Order'!S1160)","v":""},{"$f":"IF('1. Order'!T1160=\"\",\"\",'1. Order'!T1160)","v":""},{"$f":"IF('1. Order'!W1160=\"\",\"\",'1. Order'!W1160)","v":""},{"$f":"IF('1. Order'!X1160=\"\",\"\",'1. Order'!X1160)","v":""},{"$f":"IF('1. Order'!Y1160=\"\",\"\",'1. Order'!Y1160)","v":"EUR"},{"$f":"IF('1. Order'!Z1160=\"\",\"\",'1. Order'!Z1160)","v":""},{"$f":"IF('1. Order'!AA1160=\"\",\"\",'1. Order'!AA1160)","v":""},{"$f":"IF('1. Order'!AB1160=\"\",\"\",'1. Order'!AB1160)","v":""},null,{"$f":"IF('1. Order'!AT1160=\"\",\"\",'1. Order'!AT1160)","v":""},{"$f":"IF('1. Order'!AU1160=\"\",\"\",'1. Order'!AU1160)","v":""},null,null,null,null,null,null,null,{"$f":"IF('1. Order'!AY1160=\"\",\"\",'1. Order'!AY1160)","v":""},{"$f":"IF('1. Order'!AZ1160=\"\",\"\",'1. Order'!AZ1160)","v":""},{"$f":"IF('1. Order'!BA1160=\"\",\"\",'1. Order'!BA1160)","v":""},{"$f":"IF('1. Order'!BB1160=\"\",\"\",'1. Order'!BB1160)","v":""},{"$f":"IF('1. Order'!BD1160=\"\",\"\",'1. Order'!BD1160)","v":""},{"$f":"IF('1. Order'!BE1160=\"\",\"\",'1. Order'!BE1160)","v":""},{"$f":"IF('1. Order'!BF1160=\"\",\"\",'1. Order'!BF1160)","v":""},{"$f":"IF('1. Order'!BG1160=\"\",\"\",'1. Order'!BG1160)","v":""},{"$f":"IF('1. Order'!BH1160=\"\",\"\",'1. Order'!BH1160)","v":"ZWO"}]
[{"$f":"IF('1. Order'!F1161=\"\",\"\",'1. Order'!F1161)","v":{"$error":"#N/A"}},{"$f":"IF('1. Order'!G1161=\"\",\"\",'1. Order'!G1161)","v":""},{"$f":"IF('1. Order'!H1161=\"\",\"\",'1. Order'!H1161)","v":""},{"$f":"IF('1. Order'!I1161=\"\",\"\",'1. Order'!I1161)","v":""},{"$f":"IF('1. Order'!J1161=\"\",\"\",'1. Order'!J1161)","v":""},{"$f":"IF('1. Order'!K1161=\"\",\"\",'1. Order'!K1161)","v":""},{"$f":"IF('1. Order'!L1161=\"\",\"\",'1. Order'!L1161)","v":""},{"$f":"IF('1. Order'!M1161=\"\",\"\",'1. Order'!M1161)","v":""},{"$f":"IF('1. Order'!N1161=\"\",\"\",'1. Order'!N1161)","v":""},{"$f":"IF('1. Order'!O1161=\"\",\"\",'1. Order'!O1161)","v":{"$error":"#N/A"}},{"$f":"IF('1. Order'!P1161=\"\",\"\",'1. Order'!P1161)","v":{"$error":"#N/A"}},{"$f":"IF('1. Order'!Q1161=\"\",\"\",'1. Order'!Q1161)","v":""},{"$f":"IF('1. Order'!S1161=\"\",\"\",'1. Order'!S1161)","v":""},{"$f":"IF('1. Order'!T1161=\"\",\"\",'1. Order'!T1161)","v":""},{"$f":"IF('1. Order'!W1161=\"\",\"\",'1. Order'!W1161)","v":""},{"$f":"IF('1. Order'!X1161=\"\",\"\",'1. Order'!X1161)","v":""},{"$f":"IF('1. Order'!Y1161=\"\",\"\",'1. Order'!Y1161)","v":"EUR"},{"$f":"IF('1. Order'!Z1161=\"\",\"\",'1. Order'!Z1161)","v":""},{"$f":"IF('1. Order'!AA1161=\"\",\"\",'1. Order'!AA1161)","v":""},{"$f":"IF('1. Order'!AB1161=\"\",\"\",'1. Order'!AB1161)","v":""},null,{"$f":"IF('1. Order'!AT1161=\"\",\"\",'1. Order'!AT1161)","v":""},{"$f":"IF('1. Order'!AU1161=\"\",\"\",'1. Order'!AU1161)","v":""},null,null,null,null,null,null,null,{"$f":"IF('1. Order'!AY1161=\"\",\"\",'1. Order'!AY1161)","v":""},{"$f":"IF('1. Order'!AZ1161=\"\",\"\",'1. Order'!AZ1161)","v":""},{"$f":"IF('1. Order'!BA1161=\"\",\"\",'1. Order'!BA1161)","v":""},{"$f":"IF('1. Order'!BB1161=\"\",\"\",'1. Order'!BB1161)","v":""},{"$f":"IF('1. Order'!BD1161=\"\",\"\",'1. Order'!BD1161)","v":""},{"$f":"IF('1. Order'!BE1161=\"\",\"\",'1. Order'!BE1161)","v":""},{"$f":"IF('1. Order'!BF1161=\"\",\"\",'1. Order'!BF1161)","v":""},{"$f":"IF('1. Order'!BG1161=\"\",\"\",'1. Order'!BG1161)","v":""},{"$f":"IF('1. Order'!BH1161=\"\",\"\",'1. Order'!BH1161)","v":"ZWO"}]
[{"$f":"IF('1. Order'!F1162=\"\",\"\",'1. Order'!F1162)","v":{"$error":"#N/A"}},{"$f":"IF('1. Order'!G1162=\"\",\"\",'1. Order'!G1162)","v":""},{"$f":"IF('1. Order'!H1162=\"\",\"\",'1. Order'!H1162)","v":""},{"$f":"IF('1. Order'!I1162=\"\",\"\",'1. Order'!I1162)","v":""},{"$f":"IF('1. Order'!J1162=\"\",\"\",'1. Order'!J1162)","v":""},{"$f":"IF('1. Order'!K1162=\"\",\"\",'1. Order'!K1162)","v":""},{"$f":"IF('1. Order'!L1162=\"\",\"\",'1. Order'!L1162)","v":""},{"$f":"IF('1. Order'!M1162=\"\",\"\",'1. Order'!M1162)","v":""},{"$f":"IF('1. Order'!N1162=\"\",\"\",'1. Order'!N1162)","v":""},{"$f":"IF('1. Order'!O1162=\"\",\"\",'1. Order'!O1162)","v":{"$error":"#N/A"}},{"$f":"IF('1. Order'!P1162=\"\",\"\",'1. Order'!P1162)","v":{"$error":"#N/A"}},{"$f":"IF('1. Order'!Q1162=\"\",\"\",'1. Order'!Q1162)","v":""},{"$f":"IF('1. Order'!S1162=\"\",\"\",'1. Order'!S1162)","v":""},{"$f":"IF('1. Order'!T1162=\"\",\"\",'1. Order'!T1162)","v":""},{"$f":"IF('1. Order'!W1162=\"\",\"\",'1. Order'!W1162)","v":""},{"$f":"IF('1. Order'!X1162=\"\",\"\",'1. Order'!X1162)","v":""},{"$f":"IF('1. Order'!Y1162=\"\",\"\",'1. Order'!Y1162)","v":"EUR"},{"$f":"IF('1. Order'!Z1162=\"\",\"\",'1. Order'!Z1162)","v":""},{"$f":"IF('1. Order'!AA1162=\"\",\"\",'1. Order'!AA1162)","v":""},{"$f":"IF('1. Order'!AB1162=\"\",\"\",'1. Order'!AB1162)","v":""},null,{"$f":"IF('1. Order'!AT1162=\"\",\"\",'1. Order'!AT1162)","v":""},{"$f":"IF('1. Order'!AU1162=\"\",\"\",'1. Order'!AU1162)","v":""},null,null,null,null,null,null,null,{"$f":"IF('1. Order'!AY1162=\"\",\"\",'1. Order'!AY1162)","v":""},{"$f":"IF('1. Order'!AZ1162=\"\",\"\",'1. Order'!AZ1162)","v":""},{"$f":"IF('1. Order'!BA1162=\"\",\"\",'1. Order'!BA1162)","v":""},{"$f":"IF('1. Order'!BB1162=\"\",\"\",'1. Order'!BB1162)","v":""},{"$f":"IF('1. Order'!BD1162=\"\",\"\",'1. Order'!BD1162)","v":""},{"$f":"IF('1. Order'!BE1162=\"\",\"\",'1. Order'!BE1162)","v":""},{"$f":"IF('1. Order'!BF1162=\"\",\"\",'1. Order'!BF1162)","v":""},{"$f":"IF('1. Order'!BG1162=\"\",\"\",'1. Order'!BG1162)","v":""},{"$f":"IF('1. Order'!BH1162=\"\",\"\",'1. Order'!BH1162)","v":"ZWO"}]
[{"$f":"IF('1. Order'!F1163=\"\",\"\",'1. Order'!F1163)","v":{"$error":"#N/A"}},{"$f":"IF('1. Order'!G1163=\"\",\"\",'1. Order'!G1163)","v":""},{"$f":"IF('1. Order'!H1163=\"\",\"\",'1. Order'!H1163)","v":""},{"$f":"IF('1. Order'!I1163=\"\",\"\",'1. Order'!I1163)","v":""},{"$f":"IF('1. Order'!J1163=\"\",\"\",'1. Order'!J1163)","v":""},{"$f":"IF('1. Order'!K1163=\"\",\"\",'1. Order'!K1163)","v":""},{"$f":"IF('1. Order'!L1163=\"\",\"\",'1. Order'!L1163)","v":""},{"$f":"IF('1. Order'!M1163=\"\",\"\",'1. Order'!M1163)","v":""},{"$f":"IF('1. Order'!N1163=\"\",\"\",'1. Order'!N1163)","v":""},{"$f":"IF('1. Order'!O1163=\"\",\"\",'1. Order'!O1163)","v":{"$error":"#N/A"}},{"$f":"IF('1. Order'!P1163=\"\",\"\",'1. Order'!P1163)","v":{"$error":"#N/A"}},{"$f":"IF('1. Order'!Q1163=\"\",\"\",'1. Order'!Q1163)","v":""},{"$f":"IF('1. Order'!S1163=\"\",\"\",'1. Order'!S1163)","v":""},{"$f":"IF('1. Order'!T1163=\"\",\"\",'1. Order'!T1163)","v":""},{"$f":"IF('1. Order'!W1163=\"\",\"\",'1. Order'!W1163)","v":""},{"$f":"IF('1. Order'!X1163=\"\",\"\",'1. Order'!X1163)","v":""},{"$f":"IF('1. Order'!Y1163=\"\",\"\",'1. Order'!Y1163)","v":"EUR"},{"$f":"IF('1. Order'!Z1163=\"\",\"\",'1. Order'!Z1163)","v":""},{"$f":"IF('1. Order'!AA1163=\"\",\"\",'1. Order'!AA1163)","v":""},{"$f":"IF('1. Order'!AB1163=\"\",\"\",'1. Order'!AB1163)","v":""},null,{"$f":"IF('1. Order'!AT1163=\"\",\"\",'1. Order'!AT1163)","v":""},{"$f":"IF('1. Order'!AU1163=\"\",\"\",'1. Order'!AU1163)","v":""},null,null,null,null,null,null,null,{"$f":"IF('1. Order'!AY1163=\"\",\"\",'1. Order'!AY1163)","v":""},{"$f":"IF('1. Order'!AZ1163=\"\",\"\",'1. Order'!AZ1163)","v":""},{"$f":"IF('1. Order'!BA1163=\"\",\"\",'1. Order'!BA1163)","v":""},{"$f":"IF('1. Order'!BB1163=\"\",\"\",'1. Order'!BB1163)","v":""},{"$f":"IF('1. Order'!BD1163=\"\",\"\",'1. Order'!BD1163)","v":""},{"$f":"IF('1. Order'!BE1163=\"\",\"\",'1. Order'!BE1163)","v":""},{"$f":"IF('1. Order'!BF1163=\"\",\"\",'1. Order'!BF1163)","v":""},{"$f":"IF('1. Order'!BG1163=\"\",\"\",'1. Order'!BG1163)","v":""},{"$f":"IF('1. Order'!BH1163=\"\",\"\",'1. Order'!BH1163)","v":"ZWO"}]
[{"$f":"IF('1. Order'!F1164=\"\",\"\",'1. Order'!F1164)","v":{"$error":"#N/A"}},{"$f":"IF('1. Order'!G1164=\"\",\"\",'1. Order'!G1164)","v":""},{"$f":"IF('1. Order'!H1164=\"\",\"\",'1. Order'!H1164)","v":""},{"$f":"IF('1. Order'!I1164=\"\",\"\",'1. Order'!I1164)","v":""},{"$f":"IF('1. Order'!J1164=\"\",\"\",'1. Order'!J1164)","v":""},{"$f":"IF('1. Order'!K1164=\"\",\"\",'1. Order'!K1164)","v":""},{"$f":"IF('1. Order'!L1164=\"\",\"\",'1. Order'!L1164)","v":""},{"$f":"IF('1. Order'!M1164=\"\",\"\",'1. Order'!M1164)","v":""},{"$f":"IF('1. Order'!N1164=\"\",\"\",'1. Order'!N1164)","v":""},{"$f":"IF('1. Order'!O1164=\"\",\"\",'1. Order'!O1164)","v":{"$error":"#N/A"}},{"$f":"IF('1. Order'!P1164=\"\",\"\",'1. Order'!P1164)","v":{"$error":"#N/A"}},{"$f":"IF('1. Order'!Q1164=\"\",\"\",'1. Order'!Q1164)","v":""},{"$f":"IF('1. Order'!S1164=\"\",\"\",'1. Order'!S1164)","v":""},{"$f":"IF('1. Order'!T1164=\"\",\"\",'1. Order'!T1164)","v":""},{"$f":"IF('1. Order'!W1164=\"\",\"\",'1. Order'!W1164)","v":""},{"$f":"IF('1. Order'!X1164=\"\",\"\",'1. Order'!X1164)","v":""},{"$f":"IF('1. Order'!Y1164=\"\",\"\",'1. Order'!Y1164)","v":"EUR"},{"$f":"IF('1. Order'!Z1164=\"\",\"\",'1. Order'!Z1164)","v":""},{"$f":"IF('1. Order'!AA1164=\"\",\"\",'1. Order'!AA1164)","v":""},{"$f":"IF('1. Order'!AB1164=\"\",\"\",'1. Order'!AB1164)","v":""},null,{"$f":"IF('1. Order'!AT1164=\"\",\"\",'1. Order'!AT1164)","v":""},{"$f":"IF('1. Order'!AU1164=\"\",\"\",'1. Order'!AU1164)","v":""},null,null,null,null,null,null,null,{"$f":"IF('1. Order'!AY1164=\"\",\"\",'1. Order'!AY1164)","v":""},{"$f":"IF('1. Order'!AZ1164=\"\",\"\",'1. Order'!AZ1164)","v":""},{"$f":"IF('1. Order'!BA1164=\"\",\"\",'1. Order'!BA1164)","v":""},{"$f":"IF('1. Order'!BB1164=\"\",\"\",'1. Order'!BB1164)","v":""},{"$f":"IF('1. Order'!BD1164=\"\",\"\",'1. Order'!BD1164)","v":""},{"$f":"IF('1. Order'!BE1164=\"\",\"\",'1. Order'!BE1164)","v":""},{"$f":"IF('1. Order'!BF1164=\"\",\"\",'1. Order'!BF1164)","v":""},{"$f":"IF('1. Order'!BG1164=\"\",\"\",'1. Order'!BG1164)","v":""},{"$f":"IF('1. Order'!BH1164=\"\",\"\",'1. Order'!BH1164)","v":"ZWO"}]
[{"$f":"IF('1. Order'!F1165=\"\",\"\",'1. Order'!F1165)","v":{"$error":"#N/A"}},{"$f":"IF('1. Order'!G1165=\"\",\"\",'1. Order'!G1165)","v":""},{"$f":"IF('1. Order'!H1165=\"\",\"\",'1. Order'!H1165)","v":""},{"$f":"IF('1. Order'!I1165=\"\",\"\",'1. Order'!I1165)","v":""},{"$f":"IF('1. Order'!J1165=\"\",\"\",'1. Order'!J1165)","v":""},{"$f":"IF('1. Order'!K1165=\"\",\"\",'1. Order'!K1165)","v":""},{"$f":"IF('1. Order'!L1165=\"\",\"\",'1. Order'!L1165)","v":""},{"$f":"IF('1. Order'!M1165=\"\",\"\",'1. Order'!M1165)","v":""},{"$f":"IF('1. Order'!N1165=\"\",\"\",'1. Order'!N1165)","v":""},{"$f":"IF('1. Order'!O1165=\"\",\"\",'1. Order'!O1165)","v":{"$error":"#N/A"}},{"$f":"IF('1. Order'!P1165=\"\",\"\",'1. Order'!P1165)","v":{"$error":"#N/A"}},{"$f":"IF('1. Order'!Q1165=\"\",\"\",'1. Order'!Q1165)","v":""},{"$f":"IF('1. Order'!S1165=\"\",\"\",'1. Order'!S1165)","v":""},{"$f":"IF('1. Order'!T1165=\"\",\"\",'1. Order'!T1165)","v":""},{"$f":"IF('1. Order'!W1165=\"\",\"\",'1. Order'!W1165)","v":""},{"$f":"IF('1. Order'!X1165=\"\",\"\",'1. Order'!X1165)","v":""},{"$f":"IF('1. Order'!Y1165=\"\",\"\",'1. Order'!Y1165)","v":"EUR"},{"$f":"IF('1. Order'!Z1165=\"\",\"\",'1. Order'!Z1165)","v":""},{"$f":"IF('1. Order'!AA1165=\"\",\"\",'1. Order'!AA1165)","v":""},{"$f":"IF('1. Order'!AB1165=\"\",\"\",'1. Order'!AB1165)","v":""},null,{"$f":"IF('1. Order'!AT1165=\"\",\"\",'1. Order'!AT1165)","v":""},{"$f":"IF('1. Order'!AU1165=\"\",\"\",'1. Order'!AU1165)","v":""},null,null,null,null,null,null,null,{"$f":"IF('1. Order'!AY1165=\"\",\"\",'1. Order'!AY1165)","v":""},{"$f":"IF('1. Order'!AZ1165=\"\",\"\",'1. Order'!AZ1165)","v":""},{"$f":"IF('1. Order'!BA1165=\"\",\"\",'1. Order'!BA1165)","v":""},{"$f":"IF('1. Order'!BB1165=\"\",\"\",'1. Order'!BB1165)","v":""},{"$f":"IF('1. Order'!BD1165=\"\",\"\",'1. Order'!BD1165)","v":""},{"$f":"IF('1. Order'!BE1165=\"\",\"\",'1. Order'!BE1165)","v":""},{"$f":"IF('1. Order'!BF1165=\"\",\"\",'1. Order'!BF1165)","v":""},{"$f":"IF('1. Order'!BG1165=\"\",\"\",'1. Order'!BG1165)","v":""},{"$f":"IF('1. Order'!BH1165=\"\",\"\",'1. Order'!BH1165)","v":"ZWO"}]
[{"$f":"IF('1. Order'!F1166=\"\",\"\",'1. Order'!F1166)","v":{"$error":"#N/A"}},{"$f":"IF('1. Order'!G1166=\"\",\"\",'1. Order'!G1166)","v":""},{"$f":"IF('1. Order'!H1166=\"\",\"\",'1. Order'!H1166)","v":""},{"$f":"IF('1. Order'!I1166=\"\",\"\",'1. Order'!I1166)","v":""},{"$f":"IF('1. Order'!J1166=\"\",\"\",'1. Order'!J1166)","v":""},{"$f":"IF('1. Order'!K1166=\"\",\"\",'1. Order'!K1166)","v":""},{"$f":"IF('1. Order'!L1166=\"\",\"\",'1. Order'!L1166)","v":""},{"$f":"IF('1. Order'!M1166=\"\",\"\",'1. Order'!M1166)","v":""},{"$f":"IF('1. Order'!N1166=\"\",\"\",'1. Order'!N1166)","v":""},{"$f":"IF('1. Order'!O1166=\"\",\"\",'1. Order'!O1166)","v":{"$error":"#N/A"}},{"$f":"IF('1. Order'!P1166=\"\",\"\",'1. Order'!P1166)","v":{"$error":"#N/A"}},{"$f":"IF('1. Order'!Q1166=\"\",\"\",'1. Order'!Q1166)","v":""},{"$f":"IF('1. Order'!S1166=\"\",\"\",'1. Order'!S1166)","v":""},{"$f":"IF('1. Order'!T1166=\"\",\"\",'1. Order'!T1166)","v":""},{"$f":"IF('1. Order'!W1166=\"\",\"\",'1. Order'!W1166)","v":""},{"$f":"IF('1. Order'!X1166=\"\",\"\",'1. Order'!X1166)","v":""},{"$f":"IF('1. Order'!Y1166=\"\",\"\",'1. Order'!Y1166)","v":"EUR"},{"$f":"IF('1. Order'!Z1166=\"\",\"\",'1. Order'!Z1166)","v":""},{"$f":"IF('1. Order'!AA1166=\"\",\"\",'1. Order'!AA1166)","v":""},{"$f":"IF('1. Order'!AB1166=\"\",\"\",'1. Order'!AB1166)","v":""},null,{"$f":"IF('1. Order'!AT1166=\"\",\"\",'1. Order'!AT1166)","v":""},{"$f":"IF('1. Order'!AU1166=\"\",\"\",'1. Order'!AU1166)","v":""},null,null,null,null,null,null,null,{"$f":"IF('1. Order'!AY1166=\"\",\"\",'1. Order'!AY1166)","v":""},{"$f":"IF('1. Order'!AZ1166=\"\",\"\",'1. Order'!AZ1166)","v":""},{"$f":"IF('1. Order'!BA1166=\"\",\"\",'1. Order'!BA1166)","v":""},{"$f":"IF('1. Order'!BB1166=\"\",\"\",'1. Order'!BB1166)","v":""},{"$f":"IF('1. Order'!BD1166=\"\",\"\",'1. Order'!BD1166)","v":""},{"$f":"IF('1. Order'!BE1166=\"\",\"\",'1. Order'!BE1166)","v":""},{"$f":"IF('1. Order'!BF1166=\"\",\"\",'1. Order'!BF1166)","v":""},{"$f":"IF('1. Order'!BG1166=\"\",\"\",'1. Order'!BG1166)","v":""},{"$f":"IF('1. Order'!BH1166=\"\",\"\",'1. Order'!BH1166)","v":"ZWO"}]
[{"$f":"IF('1. Order'!F1167=\"\",\"\",'1. Order'!F1167)","v":{"$error":"#N/A"}},{"$f":"IF('1. Order'!G1167=\"\",\"\",'1. Order'!G1167)","v":""},{"$f":"IF('1. Order'!H1167=\"\",\"\",'1. Order'!H1167)","v":""},{"$f":"IF('1. Order'!I1167=\"\",\"\",'1. Order'!I1167)","v":""},{"$f":"IF('1. Order'!J1167=\"\",\"\",'1. Order'!J1167)","v":""},{"$f":"IF('1. Order'!K1167=\"\",\"\",'1. Order'!K1167)","v":""},{"$f":"IF('1. Order'!L1167=\"\",\"\",'1. Order'!L1167)","v":""},{"$f":"IF('1. Order'!M1167=\"\",\"\",'1. Order'!M1167)","v":""},{"$f":"IF('1. Order'!N1167=\"\",\"\",'1. Order'!N1167)","v":""},{"$f":"IF('1. Order'!O1167=\"\",\"\",'1. Order'!O1167)","v":{"$error":"#N/A"}},{"$f":"IF('1. Order'!P1167=\"\",\"\",'1. Order'!P1167)","v":{"$error":"#N/A"}},{"$f":"IF('1. Order'!Q1167=\"\",\"\",'1. Order'!Q1167)","v":""},{"$f":"IF('1. Order'!S1167=\"\",\"\",'1. Order'!S1167)","v":""},{"$f":"IF('1. Order'!T1167=\"\",\"\",'1. Order'!T1167)","v":""},{"$f":"IF('1. Order'!W1167=\"\",\"\",'1. Order'!W1167)","v":""},{"$f":"IF('1. Order'!X1167=\"\",\"\",'1. Order'!X1167)","v":""},{"$f":"IF('1. Order'!Y1167=\"\",\"\",'1. Order'!Y1167)","v":"EUR"},{"$f":"IF('1. Order'!Z1167=\"\",\"\",'1. Order'!Z1167)","v":""},{"$f":"IF('1. Order'!AA1167=\"\",\"\",'1. Order'!AA1167)","v":""},{"$f":"IF('1. Order'!AB1167=\"\",\"\",'1. Order'!AB1167)","v":""},null,{"$f":"IF('1. Order'!AT1167=\"\",\"\",'1. Order'!AT1167)","v":""},{"$f":"IF('1. Order'!AU1167=\"\",\"\",'1. Order'!AU1167)","v":""},null,null,null,null,null,null,null,{"$f":"IF('1. Order'!AY1167=\"\",\"\",'1. Order'!AY1167)","v":""},{"$f":"IF('1. Order'!AZ1167=\"\",\"\",'1. Order'!AZ1167)","v":""},{"$f":"IF('1. Order'!BA1167=\"\",\"\",'1. Order'!BA1167)","v":""},{"$f":"IF('1. Order'!BB1167=\"\",\"\",'1. Order'!BB1167)","v":""},{"$f":"IF('1. Order'!BD1167=\"\",\"\",'1. Order'!BD1167)","v":""},{"$f":"IF('1. Order'!BE1167=\"\",\"\",'1. Order'!BE1167)","v":""},{"$f":"IF('1. Order'!BF1167=\"\",\"\",'1. Order'!BF1167)","v":""},{"$f":"IF('1. Order'!BG1167=\"\",\"\",'1. Order'!BG1167)","v":""},{"$f":"IF('1. Order'!BH1167=\"\",\"\",'1. Order'!BH1167)","v":"ZWO"}]
[{"$f":"IF('1. Order'!F1168=\"\",\"\",'1. Order'!F1168)","v":{"$error":"#N/A"}},{"$f":"IF('1. Order'!G1168=\"\",\"\",'1. Order'!G1168)","v":""},{"$f":"IF('1. Order'!H1168=\"\",\"\",'1. Order'!H1168)","v":""},{"$f":"IF('1. Order'!I1168=\"\",\"\",'1. Order'!I1168)","v":""},{"$f":"IF('1. Order'!J1168=\"\",\"\",'1. Order'!J1168)","v":""},{"$f":"IF('1. Order'!K1168=\"\",\"\",'1. Order'!K1168)","v":""},{"$f":"IF('1. Order'!L1168=\"\",\"\",'1. Order'!L1168)","v":""},{"$f":"IF('1. Order'!M1168=\"\",\"\",'1. Order'!M1168)","v":""},{"$f":"IF('1. Order'!N1168=\"\",\"\",'1. Order'!N1168)","v":""},{"$f":"IF('1. Order'!O1168=\"\",\"\",'1. Order'!O1168)","v":{"$error":"#N/A"}},{"$f":"IF('1. Order'!P1168=\"\",\"\",'1. Order'!P1168)","v":{"$error":"#N/A"}},{"$f":"IF('1. Order'!Q1168=\"\",\"\",'1. Order'!Q1168)","v":""},{"$f":"IF('1. Order'!S1168=\"\",\"\",'1. Order'!S1168)","v":""},{"$f":"IF('1. Order'!T1168=\"\",\"\",'1. Order'!T1168)","v":""},{"$f":"IF('1. Order'!W1168=\"\",\"\",'1. Order'!W1168)","v":""},{"$f":"IF('1. Order'!X1168=\"\",\"\",'1. Order'!X1168)","v":""},{"$f":"IF('1. Order'!Y1168=\"\",\"\",'1. Order'!Y1168)","v":"EUR"},{"$f":"IF('1. Order'!Z1168=\"\",\"\",'1. Order'!Z1168)","v":""},{"$f":"IF('1. Order'!AA1168=\"\",\"\",'1. Order'!AA1168)","v":""},{"$f":"IF('1. Order'!AB1168=\"\",\"\",'1. Order'!AB1168)","v":""},null,{"$f":"IF('1. Order'!AT1168=\"\",\"\",'1. Order'!AT1168)","v":""},{"$f":"IF('1. Order'!AU1168=\"\",\"\",'1. Order'!AU1168)","v":""},null,null,null,null,null,null,null,{"$f":"IF('1. Order'!AY1168=\"\",\"\",'1. Order'!AY1168)","v":""},{"$f":"IF('1. Order'!AZ1168=\"\",\"\",'1. Order'!AZ1168)","v":""},{"$f":"IF('1. Order'!BA1168=\"\",\"\",'1. Order'!BA1168)","v":""},{"$f":"IF('1. Order'!BB1168=\"\",\"\",'1. Order'!BB1168)","v":""},{"$f":"IF('1. Order'!BD1168=\"\",\"\",'1. Order'!BD1168)","v":""},{"$f":"IF('1. Order'!BE1168=\"\",\"\",'1. Order'!BE1168)","v":""},{"$f":"IF('1. Order'!BF1168=\"\",\"\",'1. Order'!BF1168)","v":""},{"$f":"IF('1. Order'!BG1168=\"\",\"\",'1. Order'!BG1168)","v":""},{"$f":"IF('1. Order'!BH1168=\"\",\"\",'1. Order'!BH1168)","v":"ZWO"}]
[{"$f":"IF('1. Order'!F1169=\"\",\"\",'1. Order'!F1169)","v":{"$error":"#N/A"}},{"$f":"IF('1. Order'!G1169=\"\",\"\",'1. Order'!G1169)","v":""},{"$f":"IF('1. Order'!H1169=\"\",\"\",'1. Order'!H1169)","v":""},{"$f":"IF('1. Order'!I1169=\"\",\"\",'1. Order'!I1169)","v":""},{"$f":"IF('1. Order'!J1169=\"\",\"\",'1. Order'!J1169)","v":""},{"$f":"IF('1. Order'!K1169=\"\",\"\",'1. Order'!K1169)","v":""},{"$f":"IF('1. Order'!L1169=\"\",\"\",'1. Order'!L1169)","v":""},{"$f":"IF('1. Order'!M1169=\"\",\"\",'1. Order'!M1169)","v":""},{"$f":"IF('1. Order'!N1169=\"\",\"\",'1. Order'!N1169)","v":""},{"$f":"IF('1. Order'!O1169=\"\",\"\",'1. Order'!O1169)","v":{"$error":"#N/A"}},{"$f":"IF('1. Order'!P1169=\"\",\"\",'1. Order'!P1169)","v":{"$error":"#N/A"}},{"$f":"IF('1. Order'!Q1169=\"\",\"\",'1. Order'!Q1169)","v":""},{"$f":"IF('1. Order'!S1169=\"\",\"\",'1. Order'!S1169)","v":""},{"$f":"IF('1. Order'!T1169=\"\",\"\",'1. Order'!T1169)","v":""},{"$f":"IF('1. Order'!W1169=\"\",\"\",'1. Order'!W1169)","v":""},{"$f":"IF('1. Order'!X1169=\"\",\"\",'1. Order'!X1169)","v":""},{"$f":"IF('1. Order'!Y1169=\"\",\"\",'1. Order'!Y1169)","v":"EUR"},{"$f":"IF('1. Order'!Z1169=\"\",\"\",'1. Order'!Z1169)","v":""},{"$f":"IF('1. Order'!AA1169=\"\",\"\",'1. Order'!AA1169)","v":""},{"$f":"IF('1. Order'!AB1169=\"\",\"\",'1. Order'!AB1169)","v":""},null,{"$f":"IF('1. Order'!AT1169=\"\",\"\",'1. Order'!AT1169)","v":""},{"$f":"IF('1. Order'!AU1169=\"\",\"\",'1. Order'!AU1169)","v":""},null,null,null,null,null,null,null,{"$f":"IF('1. Order'!AY1169=\"\",\"\",'1. Order'!AY1169)","v":""},{"$f":"IF('1. Order'!AZ1169=\"\",\"\",'1. Order'!AZ1169)","v":""},{"$f":"IF('1. Order'!BA1169=\"\",\"\",'1. Order'!BA1169)","v":""},{"$f":"IF('1. Order'!BB1169=\"\",\"\",'1. Order'!BB1169)","v":""},{"$f":"IF('1. Order'!BD1169=\"\",\"\",'1. Order'!BD1169)","v":""},{"$f":"IF('1. Order'!BE1169=\"\",\"\",'1. Order'!BE1169)","v":""},{"$f":"IF('1. Order'!BF1169=\"\",\"\",'1. Order'!BF1169)","v":""},{"$f":"IF('1. Order'!BG1169=\"\",\"\",'1. Order'!BG1169)","v":""},{"$f":"IF('1. Order'!BH1169=\"\",\"\",'1. Order'!BH1169)","v":"ZWO"}]
[{"$f":"IF('1. Order'!F1170=\"\",\"\",'1. Order'!F1170)","v":{"$error":"#N/A"}},{"$f":"IF('1. Order'!G1170=\"\",\"\",'1. Order'!G1170)","v":""},{"$f":"IF('1. Order'!H1170=\"\",\"\",'1. Order'!H1170)","v":""},{"$f":"IF('1. Order'!I1170=\"\",\"\",'1. Order'!I1170)","v":""},{"$f":"IF('1. Order'!J1170=\"\",\"\",'1. Order'!J1170)","v":""},{"$f":"IF('1. Order'!K1170=\"\",\"\",'1. Order'!K1170)","v":""},{"$f":"IF('1. Order'!L1170=\"\",\"\",'1. Order'!L1170)","v":""},{"$f":"IF('1. Order'!M1170=\"\",\"\",'1. Order'!M1170)","v":""},{"$f":"IF('1. Order'!N1170=\"\",\"\",'1. Order'!N1170)","v":""},{"$f":"IF('1. Order'!O1170=\"\",\"\",'1. Order'!O1170)","v":{"$error":"#N/A"}},{"$f":"IF('1. Order'!P1170=\"\",\"\",'1. Order'!P1170)","v":{"$error":"#N/A"}},{"$f":"IF('1. Order'!Q1170=\"\",\"\",'1. Order'!Q1170)","v":""},{"$f":"IF('1. Order'!S1170=\"\",\"\",'1. Order'!S1170)","v":""},{"$f":"IF('1. Order'!T1170=\"\",\"\",'1. Order'!T1170)","v":""},{"$f":"IF('1. Order'!W1170=\"\",\"\",'1. Order'!W1170)","v":""},{"$f":"IF('1. Order'!X1170=\"\",\"\",'1. Order'!X1170)","v":""},{"$f":"IF('1. Order'!Y1170=\"\",\"\",'1. Order'!Y1170)","v":"EUR"},{"$f":"IF('1. Order'!Z1170=\"\",\"\",'1. Order'!Z1170)","v":""},{"$f":"IF('1. Order'!AA1170=\"\",\"\",'1. Order'!AA1170)","v":""},{"$f":"IF('1. Order'!AB1170=\"\",\"\",'1. Order'!AB1170)","v":""},null,{"$f":"IF('1. Order'!AT1170=\"\",\"\",'1. Order'!AT1170)","v":""},{"$f":"IF('1. Order'!AU1170=\"\",\"\",'1. Order'!AU1170)","v":""},null,null,null,null,null,null,null,{"$f":"IF('1. Order'!AY1170=\"\",\"\",'1. Order'!AY1170)","v":""},{"$f":"IF('1. Order'!AZ1170=\"\",\"\",'1. Order'!AZ1170)","v":""},{"$f":"IF('1. Order'!BA1170=\"\",\"\",'1. Order'!BA1170)","v":""},{"$f":"IF('1. Order'!BB1170=\"\",\"\",'1. Order'!BB1170)","v":""},{"$f":"IF('1. Order'!BD1170=\"\",\"\",'1. Order'!BD1170)","v":""},{"$f":"IF('1. Order'!BE1170=\"\",\"\",'1. Order'!BE1170)","v":""},{"$f":"IF('1. Order'!BF1170=\"\",\"\",'1. Order'!BF1170)","v":""},{"$f":"IF('1. Order'!BG1170=\"\",\"\",'1. Order'!BG1170)","v":""},{"$f":"IF('1. Order'!BH1170=\"\",\"\",'1. Order'!BH1170)","v":"ZWO"}]
[{"$f":"IF('1. Order'!F1171=\"\",\"\",'1. Order'!F1171)","v":{"$error":"#N/A"}},{"$f":"IF('1. Order'!G1171=\"\",\"\",'1. Order'!G1171)","v":""},{"$f":"IF('1. Order'!H1171=\"\",\"\",'1. Order'!H1171)","v":""},{"$f":"IF('1. Order'!I1171=\"\",\"\",'1. Order'!I1171)","v":""},{"$f":"IF('1. Order'!J1171=\"\",\"\",'1. Order'!J1171)","v":""},{"$f":"IF('1. Order'!K1171=\"\",\"\",'1. Order'!K1171)","v":""},{"$f":"IF('1. Order'!L1171=\"\",\"\",'1. Order'!L1171)","v":""},{"$f":"IF('1. Order'!M1171=\"\",\"\",'1. Order'!M1171)","v":""},{"$f":"IF('1. Order'!N1171=\"\",\"\",'1. Order'!N1171)","v":""},{"$f":"IF('1. Order'!O1171=\"\",\"\",'1. Order'!O1171)","v":{"$error":"#N/A"}},{"$f":"IF('1. Order'!P1171=\"\",\"\",'1. Order'!P1171)","v":{"$error":"#N/A"}},{"$f":"IF('1. Order'!Q1171=\"\",\"\",'1. Order'!Q1171)","v":""},{"$f":"IF('1. Order'!S1171=\"\",\"\",'1. Order'!S1171)","v":""},{"$f":"IF('1. Order'!T1171=\"\",\"\",'1. Order'!T1171)","v":""},{"$f":"IF('1. Order'!W1171=\"\",\"\",'1. Order'!W1171)","v":""},{"$f":"IF('1. Order'!X1171=\"\",\"\",'1. Order'!X1171)","v":""},{"$f":"IF('1. Order'!Y1171=\"\",\"\",'1. Order'!Y1171)","v":"EUR"},{"$f":"IF('1. Order'!Z1171=\"\",\"\",'1. Order'!Z1171)","v":""},{"$f":"IF('1. Order'!AA1171=\"\",\"\",'1. Order'!AA1171)","v":""},{"$f":"IF('1. Order'!AB1171=\"\",\"\",'1. Order'!AB1171)","v":""},null,{"$f":"IF('1. Order'!AT1171=\"\",\"\",'1. Order'!AT1171)","v":""},{"$f":"IF('1. Order'!AU1171=\"\",\"\",'1. Order'!AU1171)","v":""},null,null,null,null,null,null,null,{"$f":"IF('1. Order'!AY1171=\"\",\"\",'1. Order'!AY1171)","v":""},{"$f":"IF('1. Order'!AZ1171=\"\",\"\",'1. Order'!AZ1171)","v":""},{"$f":"IF('1. Order'!BA1171=\"\",\"\",'1. Order'!BA1171)","v":""},{"$f":"IF('1. Order'!BB1171=\"\",\"\",'1. Order'!BB1171)","v":""},{"$f":"IF('1. Order'!BD1171=\"\",\"\",'1. Order'!BD1171)","v":""},{"$f":"IF('1. Order'!BE1171=\"\",\"\",'1. Order'!BE1171)","v":""},{"$f":"IF('1. Order'!BF1171=\"\",\"\",'1. Order'!BF1171)","v":""},{"$f":"IF('1. Order'!BG1171=\"\",\"\",'1. Order'!BG1171)","v":""},{"$f":"IF('1. Order'!BH1171=\"\",\"\",'1. Order'!BH1171)","v":"ZWO"}]
[{"$f":"IF('1. Order'!F1172=\"\",\"\",'1. Order'!F1172)","v":{"$error":"#N/A"}},{"$f":"IF('1. Order'!G1172=\"\",\"\",'1. Order'!G1172)","v":""},{"$f":"IF('1. Order'!H1172=\"\",\"\",'1. Order'!H1172)","v":""},{"$f":"IF('1. Order'!I1172=\"\",\"\",'1. Order'!I1172)","v":""},{"$f":"IF('1. Order'!J1172=\"\",\"\",'1. Order'!J1172)","v":""},{"$f":"IF('1. Order'!K1172=\"\",\"\",'1. Order'!K1172)","v":""},{"$f":"IF('1. Order'!L1172=\"\",\"\",'1. Order'!L1172)","v":""},{"$f":"IF('1. Order'!M1172=\"\",\"\",'1. Order'!M1172)","v":""},{"$f":"IF('1. Order'!N1172=\"\",\"\",'1. Order'!N1172)","v":""},{"$f":"IF('1. Order'!O1172=\"\",\"\",'1. Order'!O1172)","v":{"$error":"#N/A"}},{"$f":"IF('1. Order'!P1172=\"\",\"\",'1. Order'!P1172)","v":{"$error":"#N/A"}},{"$f":"IF('1. Order'!Q1172=\"\",\"\",'1. Order'!Q1172)","v":""},{"$f":"IF('1. Order'!S1172=\"\",\"\",'1. Order'!S1172)","v":""},{"$f":"IF('1. Order'!T1172=\"\",\"\",'1. Order'!T1172)","v":""},{"$f":"IF('1. Order'!W1172=\"\",\"\",'1. Order'!W1172)","v":""},{"$f":"IF('1. Order'!X1172=\"\",\"\",'1. Order'!X1172)","v":""},{"$f":"IF('1. Order'!Y1172=\"\",\"\",'1. Order'!Y1172)","v":"EUR"},{"$f":"IF('1. Order'!Z1172=\"\",\"\",'1. Order'!Z1172)","v":""},{"$f":"IF('1. Order'!AA1172=\"\",\"\",'1. Order'!AA1172)","v":""},{"$f":"IF('1. Order'!AB1172=\"\",\"\",'1. Order'!AB1172)","v":""},null,{"$f":"IF('1. Order'!AT1172=\"\",\"\",'1. Order'!AT1172)","v":""},{"$f":"IF('1. Order'!AU1172=\"\",\"\",'1. Order'!AU1172)","v":""},null,null,null,null,null,null,null,{"$f":"IF('1. Order'!AY1172=\"\",\"\",'1. Order'!AY1172)","v":""},{"$f":"IF('1. Order'!AZ1172=\"\",\"\",'1. Order'!AZ1172)","v":""},{"$f":"IF('1. Order'!BA1172=\"\",\"\",'1. Order'!BA1172)","v":""},{"$f":"IF('1. Order'!BB1172=\"\",\"\",'1. Order'!BB1172)","v":""},{"$f":"IF('1. Order'!BD1172=\"\",\"\",'1. Order'!BD1172)","v":""},{"$f":"IF('1. Order'!BE1172=\"\",\"\",'1. Order'!BE1172)","v":""},{"$f":"IF('1. Order'!BF1172=\"\",\"\",'1. Order'!BF1172)","v":""},{"$f":"IF('1. Order'!BG1172=\"\",\"\",'1. Order'!BG1172)","v":""},{"$f":"IF('1. Order'!BH1172=\"\",\"\",'1. Order'!BH1172)","v":"ZWO"}]
[{"$f":"IF('1. Order'!F1173=\"\",\"\",'1. Order'!F1173)","v":{"$error":"#N/A"}},{"$f":"IF('1. Order'!G1173=\"\",\"\",'1. Order'!G1173)","v":""},{"$f":"IF('1. Order'!H1173=\"\",\"\",'1. Order'!H1173)","v":""},{"$f":"IF('1. Order'!I1173=\"\",\"\",'1. Order'!I1173)","v":""},{"$f":"IF('1. Order'!J1173=\"\",\"\",'1. Order'!J1173)","v":""},{"$f":"IF('1. Order'!K1173=\"\",\"\",'1. Order'!K1173)","v":""},{"$f":"IF('1. Order'!L1173=\"\",\"\",'1. Order'!L1173)","v":""},{"$f":"IF('1. Order'!M1173=\"\",\"\",'1. Order'!M1173)","v":""},{"$f":"IF('1. Order'!N1173=\"\",\"\",'1. Order'!N1173)","v":""},{"$f":"IF('1. Order'!O1173=\"\",\"\",'1. Order'!O1173)","v":{"$error":"#N/A"}},{"$f":"IF('1. Order'!P1173=\"\",\"\",'1. Order'!P1173)","v":{"$error":"#N/A"}},{"$f":"IF('1. Order'!Q1173=\"\",\"\",'1. Order'!Q1173)","v":""},{"$f":"IF('1. Order'!S1173=\"\",\"\",'1. Order'!S1173)","v":""},{"$f":"IF('1. Order'!T1173=\"\",\"\",'1. Order'!T1173)","v":""},{"$f":"IF('1. Order'!W1173=\"\",\"\",'1. Order'!W1173)","v":""},{"$f":"IF('1. Order'!X1173=\"\",\"\",'1. Order'!X1173)","v":""},{"$f":"IF('1. Order'!Y1173=\"\",\"\",'1. Order'!Y1173)","v":"EUR"},{"$f":"IF('1. Order'!Z1173=\"\",\"\",'1. Order'!Z1173)","v":""},{"$f":"IF('1. Order'!AA1173=\"\",\"\",'1. Order'!AA1173)","v":""},{"$f":"IF('1. Order'!AB1173=\"\",\"\",'1. Order'!AB1173)","v":""},null,{"$f":"IF('1. Order'!AT1173=\"\",\"\",'1. Order'!AT1173)","v":""},{"$f":"IF('1. Order'!AU1173=\"\",\"\",'1. Order'!AU1173)","v":""},null,null,null,null,null,null,null,{"$f":"IF('1. Order'!AY1173=\"\",\"\",'1. Order'!AY1173)","v":""},{"$f":"IF('1. Order'!AZ1173=\"\",\"\",'1. Order'!AZ1173)","v":""},{"$f":"IF('1. Order'!BA1173=\"\",\"\",'1. Order'!BA1173)","v":""},{"$f":"IF('1. Order'!BB1173=\"\",\"\",'1. Order'!BB1173)","v":""},{"$f":"IF('1. Order'!BD1173=\"\",\"\",'1. Order'!BD1173)","v":""},{"$f":"IF('1. Order'!BE1173=\"\",\"\",'1. Order'!BE1173)","v":""},{"$f":"IF('1. Order'!BF1173=\"\",\"\",'1. Order'!BF1173)","v":""},{"$f":"IF('1. Order'!BG1173=\"\",\"\",'1. Order'!BG1173)","v":""},{"$f":"IF('1. Order'!BH1173=\"\",\"\",'1. Order'!BH1173)","v":"ZWO"}]
[{"$f":"IF('1. Order'!F1174=\"\",\"\",'1. Order'!F1174)","v":{"$error":"#N/A"}},{"$f":"IF('1. Order'!G1174=\"\",\"\",'1. Order'!G1174)","v":""},{"$f":"IF('1. Order'!H1174=\"\",\"\",'1. Order'!H1174)","v":""},{"$f":"IF('1. Order'!I1174=\"\",\"\",'1. Order'!I1174)","v":""},{"$f":"IF('1. Order'!J1174=\"\",\"\",'1. Order'!J1174)","v":""},{"$f":"IF('1. Order'!K1174=\"\",\"\",'1. Order'!K1174)","v":""},{"$f":"IF('1. Order'!L1174=\"\",\"\",'1. Order'!L1174)","v":""},{"$f":"IF('1. Order'!M1174=\"\",\"\",'1. Order'!M1174)","v":""},{"$f":"IF('1. Order'!N1174=\"\",\"\",'1. Order'!N1174)","v":""},{"$f":"IF('1. Order'!O1174=\"\",\"\",'1. Order'!O1174)","v":{"$error":"#N/A"}},{"$f":"IF('1. Order'!P1174=\"\",\"\",'1. Order'!P1174)","v":{"$error":"#N/A"}},{"$f":"IF('1. Order'!Q1174=\"\",\"\",'1. Order'!Q1174)","v":""},{"$f":"IF('1. Order'!S1174=\"\",\"\",'1. Order'!S1174)","v":""},{"$f":"IF('1. Order'!T1174=\"\",\"\",'1. Order'!T1174)","v":""},{"$f":"IF('1. Order'!W1174=\"\",\"\",'1. Order'!W1174)","v":""},{"$f":"IF('1. Order'!X1174=\"\",\"\",'1. Order'!X1174)","v":""},{"$f":"IF('1. Order'!Y1174=\"\",\"\",'1. Order'!Y1174)","v":"EUR"},{"$f":"IF('1. Order'!Z1174=\"\",\"\",'1. Order'!Z1174)","v":""},{"$f":"IF('1. Order'!AA1174=\"\",\"\",'1. Order'!AA1174)","v":""},{"$f":"IF('1. Order'!AB1174=\"\",\"\",'1. Order'!AB1174)","v":""},null,{"$f":"IF('1. Order'!AT1174=\"\",\"\",'1. Order'!AT1174)","v":""},{"$f":"IF('1. Order'!AU1174=\"\",\"\",'1. Order'!AU1174)","v":""},null,null,null,null,null,null,null,{"$f":"IF('1. Order'!AY1174=\"\",\"\",'1. Order'!AY1174)","v":""},{"$f":"IF('1. Order'!AZ1174=\"\",\"\",'1. Order'!AZ1174)","v":""},{"$f":"IF('1. Order'!BA1174=\"\",\"\",'1. Order'!BA1174)","v":""},{"$f":"IF('1. Order'!BB1174=\"\",\"\",'1. Order'!BB1174)","v":""},{"$f":"IF('1. Order'!BD1174=\"\",\"\",'1. Order'!BD1174)","v":""},{"$f":"IF('1. Order'!BE1174=\"\",\"\",'1. Order'!BE1174)","v":""},{"$f":"IF('1. Order'!BF1174=\"\",\"\",'1. Order'!BF1174)","v":""},{"$f":"IF('1. Order'!BG1174=\"\",\"\",'1. Order'!BG1174)","v":""},{"$f":"IF('1. Order'!BH1174=\"\",\"\",'1. Order'!BH1174)","v":"ZWO"}]
[{"$f":"IF('1. Order'!F1175=\"\",\"\",'1. Order'!F1175)","v":{"$error":"#N/A"}},{"$f":"IF('1. Order'!G1175=\"\",\"\",'1. Order'!G1175)","v":""},{"$f":"IF('1. Order'!H1175=\"\",\"\",'1. Order'!H1175)","v":""},{"$f":"IF('1. Order'!I1175=\"\",\"\",'1. Order'!I1175)","v":""},{"$f":"IF('1. Order'!J1175=\"\",\"\",'1. Order'!J1175)","v":""},{"$f":"IF('1. Order'!K1175=\"\",\"\",'1. Order'!K1175)","v":""},{"$f":"IF('1. Order'!L1175=\"\",\"\",'1. Order'!L1175)","v":""},{"$f":"IF('1. Order'!M1175=\"\",\"\",'1. Order'!M1175)","v":""},{"$f":"IF('1. Order'!N1175=\"\",\"\",'1. Order'!N1175)","v":""},{"$f":"IF('1. Order'!O1175=\"\",\"\",'1. Order'!O1175)","v":{"$error":"#N/A"}},{"$f":"IF('1. Order'!P1175=\"\",\"\",'1. Order'!P1175)","v":{"$error":"#N/A"}},{"$f":"IF('1. Order'!Q1175=\"\",\"\",'1. Order'!Q1175)","v":""},{"$f":"IF('1. Order'!S1175=\"\",\"\",'1. Order'!S1175)","v":""},{"$f":"IF('1. Order'!T1175=\"\",\"\",'1. Order'!T1175)","v":""},{"$f":"IF('1. Order'!W1175=\"\",\"\",'1. Order'!W1175)","v":""},{"$f":"IF('1. Order'!X1175=\"\",\"\",'1. Order'!X1175)","v":""},{"$f":"IF('1. Order'!Y1175=\"\",\"\",'1. Order'!Y1175)","v":"EUR"},{"$f":"IF('1. Order'!Z1175=\"\",\"\",'1. Order'!Z1175)","v":""},{"$f":"IF('1. Order'!AA1175=\"\",\"\",'1. Order'!AA1175)","v":""},{"$f":"IF('1. Order'!AB1175=\"\",\"\",'1. Order'!AB1175)","v":""},null,{"$f":"IF('1. Order'!AT1175=\"\",\"\",'1. Order'!AT1175)","v":""},{"$f":"IF('1. Order'!AU1175=\"\",\"\",'1. Order'!AU1175)","v":""},null,null,null,null,null,null,null,{"$f":"IF('1. Order'!AY1175=\"\",\"\",'1. Order'!AY1175)","v":""},{"$f":"IF('1. Order'!AZ1175=\"\",\"\",'1. Order'!AZ1175)","v":""},{"$f":"IF('1. Order'!BA1175=\"\",\"\",'1. Order'!BA1175)","v":""},{"$f":"IF('1. Order'!BB1175=\"\",\"\",'1. Order'!BB1175)","v":""},{"$f":"IF('1. Order'!BD1175=\"\",\"\",'1. Order'!BD1175)","v":""},{"$f":"IF('1. Order'!BE1175=\"\",\"\",'1. Order'!BE1175)","v":""},{"$f":"IF('1. Order'!BF1175=\"\",\"\",'1. Order'!BF1175)","v":""},{"$f":"IF('1. Order'!BG1175=\"\",\"\",'1. Order'!BG1175)","v":""},{"$f":"IF('1. Order'!BH1175=\"\",\"\",'1. Order'!BH1175)","v":"ZWO"}]
[{"$f":"IF('1. Order'!F1176=\"\",\"\",'1. Order'!F1176)","v":{"$error":"#N/A"}},{"$f":"IF('1. Order'!G1176=\"\",\"\",'1. Order'!G1176)","v":""},{"$f":"IF('1. Order'!H1176=\"\",\"\",'1. Order'!H1176)","v":""},{"$f":"IF('1. Order'!I1176=\"\",\"\",'1. Order'!I1176)","v":""},{"$f":"IF('1. Order'!J1176=\"\",\"\",'1. Order'!J1176)","v":""},{"$f":"IF('1. Order'!K1176=\"\",\"\",'1. Order'!K1176)","v":""},{"$f":"IF('1. Order'!L1176=\"\",\"\",'1. Order'!L1176)","v":""},{"$f":"IF('1. Order'!M1176=\"\",\"\",'1. Order'!M1176)","v":""},{"$f":"IF('1. Order'!N1176=\"\",\"\",'1. Order'!N1176)","v":""},{"$f":"IF('1. Order'!O1176=\"\",\"\",'1. Order'!O1176)","v":{"$error":"#N/A"}},{"$f":"IF('1. Order'!P1176=\"\",\"\",'1. Order'!P1176)","v":{"$error":"#N/A"}},{"$f":"IF('1. Order'!Q1176=\"\",\"\",'1. Order'!Q1176)","v":""},{"$f":"IF('1. Order'!S1176=\"\",\"\",'1. Order'!S1176)","v":""},{"$f":"IF('1. Order'!T1176=\"\",\"\",'1. Order'!T1176)","v":""},{"$f":"IF('1. Order'!W1176=\"\",\"\",'1. Order'!W1176)","v":""},{"$f":"IF('1. Order'!X1176=\"\",\"\",'1. Order'!X1176)","v":""},{"$f":"IF('1. Order'!Y1176=\"\",\"\",'1. Order'!Y1176)","v":"EUR"},{"$f":"IF('1. Order'!Z1176=\"\",\"\",'1. Order'!Z1176)","v":""},{"$f":"IF('1. Order'!AA1176=\"\",\"\",'1. Order'!AA1176)","v":""},{"$f":"IF('1. Order'!AB1176=\"\",\"\",'1. Order'!AB1176)","v":""},null,{"$f":"IF('1. Order'!AT1176=\"\",\"\",'1. Order'!AT1176)","v":""},{"$f":"IF('1. Order'!AU1176=\"\",\"\",'1. Order'!AU1176)","v":""},null,null,null,null,null,null,null,{"$f":"IF('1. Order'!AY1176=\"\",\"\",'1. Order'!AY1176)","v":""},{"$f":"IF('1. Order'!AZ1176=\"\",\"\",'1. Order'!AZ1176)","v":""},{"$f":"IF('1. Order'!BA1176=\"\",\"\",'1. Order'!BA1176)","v":""},{"$f":"IF('1. Order'!BB1176=\"\",\"\",'1. Order'!BB1176)","v":""},{"$f":"IF('1. Order'!BD1176=\"\",\"\",'1. Order'!BD1176)","v":""},{"$f":"IF('1. Order'!BE1176=\"\",\"\",'1. Order'!BE1176)","v":""},{"$f":"IF('1. Order'!BF1176=\"\",\"\",'1. Order'!BF1176)","v":""},{"$f":"IF('1. Order'!BG1176=\"\",\"\",'1. Order'!BG1176)","v":""},{"$f":"IF('1. Order'!BH1176=\"\",\"\",'1. Order'!BH1176)","v":"ZWO"}]
[{"$f":"IF('1. Order'!F1177=\"\",\"\",'1. Order'!F1177)","v":{"$error":"#N/A"}},{"$f":"IF('1. Order'!G1177=\"\",\"\",'1. Order'!G1177)","v":""},{"$f":"IF('1. Order'!H1177=\"\",\"\",'1. Order'!H1177)","v":""},{"$f":"IF('1. Order'!I1177=\"\",\"\",'1. Order'!I1177)","v":""},{"$f":"IF('1. Order'!J1177=\"\",\"\",'1. Order'!J1177)","v":""},{"$f":"IF('1. Order'!K1177=\"\",\"\",'1. Order'!K1177)","v":""},{"$f":"IF('1. Order'!L1177=\"\",\"\",'1. Order'!L1177)","v":""},{"$f":"IF('1. Order'!M1177=\"\",\"\",'1. Order'!M1177)","v":""},{"$f":"IF('1. Order'!N1177=\"\",\"\",'1. Order'!N1177)","v":""},{"$f":"IF('1. Order'!O1177=\"\",\"\",'1. Order'!O1177)","v":{"$error":"#N/A"}},{"$f":"IF('1. Order'!P1177=\"\",\"\",'1. Order'!P1177)","v":{"$error":"#N/A"}},{"$f":"IF('1. Order'!Q1177=\"\",\"\",'1. Order'!Q1177)","v":""},{"$f":"IF('1. Order'!S1177=\"\",\"\",'1. Order'!S1177)","v":""},{"$f":"IF('1. Order'!T1177=\"\",\"\",'1. Order'!T1177)","v":""},{"$f":"IF('1. Order'!W1177=\"\",\"\",'1. Order'!W1177)","v":""},{"$f":"IF('1. Order'!X1177=\"\",\"\",'1. Order'!X1177)","v":""},{"$f":"IF('1. Order'!Y1177=\"\",\"\",'1. Order'!Y1177)","v":"EUR"},{"$f":"IF('1. Order'!Z1177=\"\",\"\",'1. Order'!Z1177)","v":""},{"$f":"IF('1. Order'!AA1177=\"\",\"\",'1. Order'!AA1177)","v":""},{"$f":"IF('1. Order'!AB1177=\"\",\"\",'1. Order'!AB1177)","v":""},null,{"$f":"IF('1. Order'!AT1177=\"\",\"\",'1. Order'!AT1177)","v":""},{"$f":"IF('1. Order'!AU1177=\"\",\"\",'1. Order'!AU1177)","v":""},null,null,null,null,null,null,null,{"$f":"IF('1. Order'!AY1177=\"\",\"\",'1. Order'!AY1177)","v":""},{"$f":"IF('1. Order'!AZ1177=\"\",\"\",'1. Order'!AZ1177)","v":""},{"$f":"IF('1. Order'!BA1177=\"\",\"\",'1. Order'!BA1177)","v":""},{"$f":"IF('1. Order'!BB1177=\"\",\"\",'1. Order'!BB1177)","v":""},{"$f":"IF('1. Order'!BD1177=\"\",\"\",'1. Order'!BD1177)","v":""},{"$f":"IF('1. Order'!BE1177=\"\",\"\",'1. Order'!BE1177)","v":""},{"$f":"IF('1. Order'!BF1177=\"\",\"\",'1. Order'!BF1177)","v":""},{"$f":"IF('1. Order'!BG1177=\"\",\"\",'1. Order'!BG1177)","v":""},{"$f":"IF('1. Order'!BH1177=\"\",\"\",'1. Order'!BH1177)","v":"ZWO"}]
[{"$f":"IF('1. Order'!F1178=\"\",\"\",'1. Order'!F1178)","v":{"$error":"#N/A"}},{"$f":"IF('1. Order'!G1178=\"\",\"\",'1. Order'!G1178)","v":""},{"$f":"IF('1. Order'!H1178=\"\",\"\",'1. Order'!H1178)","v":""},{"$f":"IF('1. Order'!I1178=\"\",\"\",'1. Order'!I1178)","v":""},{"$f":"IF('1. Order'!J1178=\"\",\"\",'1. Order'!J1178)","v":""},{"$f":"IF('1. Order'!K1178=\"\",\"\",'1. Order'!K1178)","v":""},{"$f":"IF('1. Order'!L1178=\"\",\"\",'1. Order'!L1178)","v":""},{"$f":"IF('1. Order'!M1178=\"\",\"\",'1. Order'!M1178)","v":""},{"$f":"IF('1. Order'!N1178=\"\",\"\",'1. Order'!N1178)","v":""},{"$f":"IF('1. Order'!O1178=\"\",\"\",'1. Order'!O1178)","v":{"$error":"#N/A"}},{"$f":"IF('1. Order'!P1178=\"\",\"\",'1. Order'!P1178)","v":{"$error":"#N/A"}},{"$f":"IF('1. Order'!Q1178=\"\",\"\",'1. Order'!Q1178)","v":""},{"$f":"IF('1. Order'!S1178=\"\",\"\",'1. Order'!S1178)","v":""},{"$f":"IF('1. Order'!T1178=\"\",\"\",'1. Order'!T1178)","v":""},{"$f":"IF('1. Order'!W1178=\"\",\"\",'1. Order'!W1178)","v":""},{"$f":"IF('1. Order'!X1178=\"\",\"\",'1. Order'!X1178)","v":""},{"$f":"IF('1. Order'!Y1178=\"\",\"\",'1. Order'!Y1178)","v":"EUR"},{"$f":"IF('1. Order'!Z1178=\"\",\"\",'1. Order'!Z1178)","v":""},{"$f":"IF('1. Order'!AA1178=\"\",\"\",'1. Order'!AA1178)","v":""},{"$f":"IF('1. Order'!AB1178=\"\",\"\",'1. Order'!AB1178)","v":""},null,{"$f":"IF('1. Order'!AT1178=\"\",\"\",'1. Order'!AT1178)","v":""},{"$f":"IF('1. Order'!AU1178=\"\",\"\",'1. Order'!AU1178)","v":""},null,null,null,null,null,null,null,{"$f":"IF('1. Order'!AY1178=\"\",\"\",'1. Order'!AY1178)","v":""},{"$f":"IF('1. Order'!AZ1178=\"\",\"\",'1. Order'!AZ1178)","v":""},{"$f":"IF('1. Order'!BA1178=\"\",\"\",'1. Order'!BA1178)","v":""},{"$f":"IF('1. Order'!BB1178=\"\",\"\",'1. Order'!BB1178)","v":""},{"$f":"IF('1. Order'!BD1178=\"\",\"\",'1. Order'!BD1178)","v":""},{"$f":"IF('1. Order'!BE1178=\"\",\"\",'1. Order'!BE1178)","v":""},{"$f":"IF('1. Order'!BF1178=\"\",\"\",'1. Order'!BF1178)","v":""},{"$f":"IF('1. Order'!BG1178=\"\",\"\",'1. Order'!BG1178)","v":""},{"$f":"IF('1. Order'!BH1178=\"\",\"\",'1. Order'!BH1178)","v":"ZWO"}]
[{"$f":"IF('1. Order'!F1179=\"\",\"\",'1. Order'!F1179)","v":{"$error":"#N/A"}},{"$f":"IF('1. Order'!G1179=\"\",\"\",'1. Order'!G1179)","v":""},{"$f":"IF('1. Order'!H1179=\"\",\"\",'1. Order'!H1179)","v":""},{"$f":"IF('1. Order'!I1179=\"\",\"\",'1. Order'!I1179)","v":""},{"$f":"IF('1. Order'!J1179=\"\",\"\",'1. Order'!J1179)","v":""},{"$f":"IF('1. Order'!K1179=\"\",\"\",'1. Order'!K1179)","v":""},{"$f":"IF('1. Order'!L1179=\"\",\"\",'1. Order'!L1179)","v":""},{"$f":"IF('1. Order'!M1179=\"\",\"\",'1. Order'!M1179)","v":""},{"$f":"IF('1. Order'!N1179=\"\",\"\",'1. Order'!N1179)","v":""},{"$f":"IF('1. Order'!O1179=\"\",\"\",'1. Order'!O1179)","v":{"$error":"#N/A"}},{"$f":"IF('1. Order'!P1179=\"\",\"\",'1. Order'!P1179)","v":{"$error":"#N/A"}},{"$f":"IF('1. Order'!Q1179=\"\",\"\",'1. Order'!Q1179)","v":""},{"$f":"IF('1. Order'!S1179=\"\",\"\",'1. Order'!S1179)","v":""},{"$f":"IF('1. Order'!T1179=\"\",\"\",'1. Order'!T1179)","v":""},{"$f":"IF('1. Order'!W1179=\"\",\"\",'1. Order'!W1179)","v":""},{"$f":"IF('1. Order'!X1179=\"\",\"\",'1. Order'!X1179)","v":""},{"$f":"IF('1. Order'!Y1179=\"\",\"\",'1. Order'!Y1179)","v":"EUR"},{"$f":"IF('1. Order'!Z1179=\"\",\"\",'1. Order'!Z1179)","v":""},{"$f":"IF('1. Order'!AA1179=\"\",\"\",'1. Order'!AA1179)","v":""},{"$f":"IF('1. Order'!AB1179=\"\",\"\",'1. Order'!AB1179)","v":""},null,{"$f":"IF('1. Order'!AT1179=\"\",\"\",'1. Order'!AT1179)","v":""},{"$f":"IF('1. Order'!AU1179=\"\",\"\",'1. Order'!AU1179)","v":""},null,null,null,null,null,null,null,{"$f":"IF('1. Order'!AY1179=\"\",\"\",'1. Order'!AY1179)","v":""},{"$f":"IF('1. Order'!AZ1179=\"\",\"\",'1. Order'!AZ1179)","v":""},{"$f":"IF('1. Order'!BA1179=\"\",\"\",'1. Order'!BA1179)","v":""},{"$f":"IF('1. Order'!BB1179=\"\",\"\",'1. Order'!BB1179)","v":""},{"$f":"IF('1. Order'!BD1179=\"\",\"\",'1. Order'!BD1179)","v":""},{"$f":"IF('1. Order'!BE1179=\"\",\"\",'1. Order'!BE1179)","v":""},{"$f":"IF('1. Order'!BF1179=\"\",\"\",'1. Order'!BF1179)","v":""},{"$f":"IF('1. Order'!BG1179=\"\",\"\",'1. Order'!BG1179)","v":""},{"$f":"IF('1. Order'!BH1179=\"\",\"\",'1. Order'!BH1179)","v":"ZWO"}]
[{"$f":"IF('1. Order'!F1180=\"\",\"\",'1. Order'!F1180)","v":{"$error":"#N/A"}},{"$f":"IF('1. Order'!G1180=\"\",\"\",'1. Order'!G1180)","v":""},{"$f":"IF('1. Order'!H1180=\"\",\"\",'1. Order'!H1180)","v":""},{"$f":"IF('1. Order'!I1180=\"\",\"\",'1. Order'!I1180)","v":""},{"$f":"IF('1. Order'!J1180=\"\",\"\",'1. Order'!J1180)","v":""},{"$f":"IF('1. Order'!K1180=\"\",\"\",'1. Order'!K1180)","v":""},{"$f":"IF('1. Order'!L1180=\"\",\"\",'1. Order'!L1180)","v":""},{"$f":"IF('1. Order'!M1180=\"\",\"\",'1. Order'!M1180)","v":""},{"$f":"IF('1. Order'!N1180=\"\",\"\",'1. Order'!N1180)","v":""},{"$f":"IF('1. Order'!O1180=\"\",\"\",'1. Order'!O1180)","v":{"$error":"#N/A"}},{"$f":"IF('1. Order'!P1180=\"\",\"\",'1. Order'!P1180)","v":{"$error":"#N/A"}},{"$f":"IF('1. Order'!Q1180=\"\",\"\",'1. Order'!Q1180)","v":""},{"$f":"IF('1. Order'!S1180=\"\",\"\",'1. Order'!S1180)","v":""},{"$f":"IF('1. Order'!T1180=\"\",\"\",'1. Order'!T1180)","v":""},{"$f":"IF('1. Order'!W1180=\"\",\"\",'1. Order'!W1180)","v":""},{"$f":"IF('1. Order'!X1180=\"\",\"\",'1. Order'!X1180)","v":""},{"$f":"IF('1. Order'!Y1180=\"\",\"\",'1. Order'!Y1180)","v":"EUR"},{"$f":"IF('1. Order'!Z1180=\"\",\"\",'1. Order'!Z1180)","v":""},{"$f":"IF('1. Order'!AA1180=\"\",\"\",'1. Order'!AA1180)","v":""},{"$f":"IF('1. Order'!AB1180=\"\",\"\",'1. Order'!AB1180)","v":""},null,{"$f":"IF('1. Order'!AT1180=\"\",\"\",'1. Order'!AT1180)","v":""},{"$f":"IF('1. Order'!AU1180=\"\",\"\",'1. Order'!AU1180)","v":""},null,null,null,null,null,null,null,{"$f":"IF('1. Order'!AY1180=\"\",\"\",'1. Order'!AY1180)","v":""},{"$f":"IF('1. Order'!AZ1180=\"\",\"\",'1. Order'!AZ1180)","v":""},{"$f":"IF('1. Order'!BA1180=\"\",\"\",'1. Order'!BA1180)","v":""},{"$f":"IF('1. Order'!BB1180=\"\",\"\",'1. Order'!BB1180)","v":""},{"$f":"IF('1. Order'!BD1180=\"\",\"\",'1. Order'!BD1180)","v":""},{"$f":"IF('1. Order'!BE1180=\"\",\"\",'1. Order'!BE1180)","v":""},{"$f":"IF('1. Order'!BF1180=\"\",\"\",'1. Order'!BF1180)","v":""},{"$f":"IF('1. Order'!BG1180=\"\",\"\",'1. Order'!BG1180)","v":""},{"$f":"IF('1. Order'!BH1180=\"\",\"\",'1. Order'!BH1180)","v":"ZWO"}]
[{"$f":"IF('1. Order'!F1181=\"\",\"\",'1. Order'!F1181)","v":{"$error":"#N/A"}},{"$f":"IF('1. Order'!G1181=\"\",\"\",'1. Order'!G1181)","v":""},{"$f":"IF('1. Order'!H1181=\"\",\"\",'1. Order'!H1181)","v":""},{"$f":"IF('1. Order'!I1181=\"\",\"\",'1. Order'!I1181)","v":""},{"$f":"IF('1. Order'!J1181=\"\",\"\",'1. Order'!J1181)","v":""},{"$f":"IF('1. Order'!K1181=\"\",\"\",'1. Order'!K1181)","v":""},{"$f":"IF('1. Order'!L1181=\"\",\"\",'1. Order'!L1181)","v":""},{"$f":"IF('1. Order'!M1181=\"\",\"\",'1. Order'!M1181)","v":""},{"$f":"IF('1. Order'!N1181=\"\",\"\",'1. Order'!N1181)","v":""},{"$f":"IF('1. Order'!O1181=\"\",\"\",'1. Order'!O1181)","v":{"$error":"#N/A"}},{"$f":"IF('1. Order'!P1181=\"\",\"\",'1. Order'!P1181)","v":{"$error":"#N/A"}},{"$f":"IF('1. Order'!Q1181=\"\",\"\",'1. Order'!Q1181)","v":""},{"$f":"IF('1. Order'!S1181=\"\",\"\",'1. Order'!S1181)","v":""},{"$f":"IF('1. Order'!T1181=\"\",\"\",'1. Order'!T1181)","v":""},{"$f":"IF('1. Order'!W1181=\"\",\"\",'1. Order'!W1181)","v":""},{"$f":"IF('1. Order'!X1181=\"\",\"\",'1. Order'!X1181)","v":""},{"$f":"IF('1. Order'!Y1181=\"\",\"\",'1. Order'!Y1181)","v":"EUR"},{"$f":"IF('1. Order'!Z1181=\"\",\"\",'1. Order'!Z1181)","v":""},{"$f":"IF('1. Order'!AA1181=\"\",\"\",'1. Order'!AA1181)","v":""},{"$f":"IF('1. Order'!AB1181=\"\",\"\",'1. Order'!AB1181)","v":""},null,{"$f":"IF('1. Order'!AT1181=\"\",\"\",'1. Order'!AT1181)","v":""},{"$f":"IF('1. Order'!AU1181=\"\",\"\",'1. Order'!AU1181)","v":""},null,null,null,null,null,null,null,{"$f":"IF('1. Order'!AY1181=\"\",\"\",'1. Order'!AY1181)","v":""},{"$f":"IF('1. Order'!AZ1181=\"\",\"\",'1. Order'!AZ1181)","v":""},{"$f":"IF('1. Order'!BA1181=\"\",\"\",'1. Order'!BA1181)","v":""},{"$f":"IF('1. Order'!BB1181=\"\",\"\",'1. Order'!BB1181)","v":""},{"$f":"IF('1. Order'!BD1181=\"\",\"\",'1. Order'!BD1181)","v":""},{"$f":"IF('1. Order'!BE1181=\"\",\"\",'1. Order'!BE1181)","v":""},{"$f":"IF('1. Order'!BF1181=\"\",\"\",'1. Order'!BF1181)","v":""},{"$f":"IF('1. Order'!BG1181=\"\",\"\",'1. Order'!BG1181)","v":""},{"$f":"IF('1. Order'!BH1181=\"\",\"\",'1. Order'!BH1181)","v":"ZWO"}]
[{"$f":"IF('1. Order'!F1182=\"\",\"\",'1. Order'!F1182)","v":{"$error":"#N/A"}},{"$f":"IF('1. Order'!G1182=\"\",\"\",'1. Order'!G1182)","v":""},{"$f":"IF('1. Order'!H1182=\"\",\"\",'1. Order'!H1182)","v":""},{"$f":"IF('1. Order'!I1182=\"\",\"\",'1. Order'!I1182)","v":""},{"$f":"IF('1. Order'!J1182=\"\",\"\",'1. Order'!J1182)","v":""},{"$f":"IF('1. Order'!K1182=\"\",\"\",'1. Order'!K1182)","v":""},{"$f":"IF('1. Order'!L1182=\"\",\"\",'1. Order'!L1182)","v":""},{"$f":"IF('1. Order'!M1182=\"\",\"\",'1. Order'!M1182)","v":""},{"$f":"IF('1. Order'!N1182=\"\",\"\",'1. Order'!N1182)","v":""},{"$f":"IF('1. Order'!O1182=\"\",\"\",'1. Order'!O1182)","v":{"$error":"#N/A"}},{"$f":"IF('1. Order'!P1182=\"\",\"\",'1. Order'!P1182)","v":{"$error":"#N/A"}},{"$f":"IF('1. Order'!Q1182=\"\",\"\",'1. Order'!Q1182)","v":""},{"$f":"IF('1. Order'!S1182=\"\",\"\",'1. Order'!S1182)","v":""},{"$f":"IF('1. Order'!T1182=\"\",\"\",'1. Order'!T1182)","v":""},{"$f":"IF('1. Order'!W1182=\"\",\"\",'1. Order'!W1182)","v":""},{"$f":"IF('1. Order'!X1182=\"\",\"\",'1. Order'!X1182)","v":""},{"$f":"IF('1. Order'!Y1182=\"\",\"\",'1. Order'!Y1182)","v":"EUR"},{"$f":"IF('1. Order'!Z1182=\"\",\"\",'1. Order'!Z1182)","v":""},{"$f":"IF('1. Order'!AA1182=\"\",\"\",'1. Order'!AA1182)","v":""},{"$f":"IF('1. Order'!AB1182=\"\",\"\",'1. Order'!AB1182)","v":""},null,{"$f":"IF('1. Order'!AT1182=\"\",\"\",'1. Order'!AT1182)","v":""},{"$f":"IF('1. Order'!AU1182=\"\",\"\",'1. Order'!AU1182)","v":""},null,null,null,null,null,null,null,{"$f":"IF('1. Order'!AY1182=\"\",\"\",'1. Order'!AY1182)","v":""},{"$f":"IF('1. Order'!AZ1182=\"\",\"\",'1. Order'!AZ1182)","v":""},{"$f":"IF('1. Order'!BA1182=\"\",\"\",'1. Order'!BA1182)","v":""},{"$f":"IF('1. Order'!BB1182=\"\",\"\",'1. Order'!BB1182)","v":""},{"$f":"IF('1. Order'!BD1182=\"\",\"\",'1. Order'!BD1182)","v":""},{"$f":"IF('1. Order'!BE1182=\"\",\"\",'1. Order'!BE1182)","v":""},{"$f":"IF('1. Order'!BF1182=\"\",\"\",'1. Order'!BF1182)","v":""},{"$f":"IF('1. Order'!BG1182=\"\",\"\",'1. Order'!BG1182)","v":""},{"$f":"IF('1. Order'!BH1182=\"\",\"\",'1. Order'!BH1182)","v":"ZWO"}]
[{"$f":"IF('1. Order'!F1183=\"\",\"\",'1. Order'!F1183)","v":{"$error":"#N/A"}},{"$f":"IF('1. Order'!G1183=\"\",\"\",'1. Order'!G1183)","v":""},{"$f":"IF('1. Order'!H1183=\"\",\"\",'1. Order'!H1183)","v":""},{"$f":"IF('1. Order'!I1183=\"\",\"\",'1. Order'!I1183)","v":""},{"$f":"IF('1. Order'!J1183=\"\",\"\",'1. Order'!J1183)","v":""},{"$f":"IF('1. Order'!K1183=\"\",\"\",'1. Order'!K1183)","v":""},{"$f":"IF('1. Order'!L1183=\"\",\"\",'1. Order'!L1183)","v":""},{"$f":"IF('1. Order'!M1183=\"\",\"\",'1. Order'!M1183)","v":""},{"$f":"IF('1. Order'!N1183=\"\",\"\",'1. Order'!N1183)","v":""},{"$f":"IF('1. Order'!O1183=\"\",\"\",'1. Order'!O1183)","v":{"$error":"#N/A"}},{"$f":"IF('1. Order'!P1183=\"\",\"\",'1. Order'!P1183)","v":{"$error":"#N/A"}},{"$f":"IF('1. Order'!Q1183=\"\",\"\",'1. Order'!Q1183)","v":""},{"$f":"IF('1. Order'!S1183=\"\",\"\",'1. Order'!S1183)","v":""},{"$f":"IF('1. Order'!T1183=\"\",\"\",'1. Order'!T1183)","v":""},{"$f":"IF('1. Order'!W1183=\"\",\"\",'1. Order'!W1183)","v":""},{"$f":"IF('1. Order'!X1183=\"\",\"\",'1. Order'!X1183)","v":""},{"$f":"IF('1. Order'!Y1183=\"\",\"\",'1. Order'!Y1183)","v":"EUR"},{"$f":"IF('1. Order'!Z1183=\"\",\"\",'1. Order'!Z1183)","v":""},{"$f":"IF('1. Order'!AA1183=\"\",\"\",'1. Order'!AA1183)","v":""},{"$f":"IF('1. Order'!AB1183=\"\",\"\",'1. Order'!AB1183)","v":""},null,{"$f":"IF('1. Order'!AT1183=\"\",\"\",'1. Order'!AT1183)","v":""},{"$f":"IF('1. Order'!AU1183=\"\",\"\",'1. Order'!AU1183)","v":""},null,null,null,null,null,null,null,{"$f":"IF('1. Order'!AY1183=\"\",\"\",'1. Order'!AY1183)","v":""},{"$f":"IF('1. Order'!AZ1183=\"\",\"\",'1. Order'!AZ1183)","v":""},{"$f":"IF('1. Order'!BA1183=\"\",\"\",'1. Order'!BA1183)","v":""},{"$f":"IF('1. Order'!BB1183=\"\",\"\",'1. Order'!BB1183)","v":""},{"$f":"IF('1. Order'!BD1183=\"\",\"\",'1. Order'!BD1183)","v":""},{"$f":"IF('1. Order'!BE1183=\"\",\"\",'1. Order'!BE1183)","v":""},{"$f":"IF('1. Order'!BF1183=\"\",\"\",'1. Order'!BF1183)","v":""},{"$f":"IF('1. Order'!BG1183=\"\",\"\",'1. Order'!BG1183)","v":""},{"$f":"IF('1. Order'!BH1183=\"\",\"\",'1. Order'!BH1183)","v":"ZWO"}]
[{"$f":"IF('1. Order'!F1184=\"\",\"\",'1. Order'!F1184)","v":{"$error":"#N/A"}},{"$f":"IF('1. Order'!G1184=\"\",\"\",'1. Order'!G1184)","v":""},{"$f":"IF('1. Order'!H1184=\"\",\"\",'1. Order'!H1184)","v":""},{"$f":"IF('1. Order'!I1184=\"\",\"\",'1. Order'!I1184)","v":""},{"$f":"IF('1. Order'!J1184=\"\",\"\",'1. Order'!J1184)","v":""},{"$f":"IF('1. Order'!K1184=\"\",\"\",'1. Order'!K1184)","v":""},{"$f":"IF('1. Order'!L1184=\"\",\"\",'1. Order'!L1184)","v":""},{"$f":"IF('1. Order'!M1184=\"\",\"\",'1. Order'!M1184)","v":""},{"$f":"IF('1. Order'!N1184=\"\",\"\",'1. Order'!N1184)","v":""},{"$f":"IF('1. Order'!O1184=\"\",\"\",'1. Order'!O1184)","v":{"$error":"#N/A"}},{"$f":"IF('1. Order'!P1184=\"\",\"\",'1. Order'!P1184)","v":{"$error":"#N/A"}},{"$f":"IF('1. Order'!Q1184=\"\",\"\",'1. Order'!Q1184)","v":""},{"$f":"IF('1. Order'!S1184=\"\",\"\",'1. Order'!S1184)","v":""},{"$f":"IF('1. Order'!T1184=\"\",\"\",'1. Order'!T1184)","v":""},{"$f":"IF('1. Order'!W1184=\"\",\"\",'1. Order'!W1184)","v":""},{"$f":"IF('1. Order'!X1184=\"\",\"\",'1. Order'!X1184)","v":""},{"$f":"IF('1. Order'!Y1184=\"\",\"\",'1. Order'!Y1184)","v":"EUR"},{"$f":"IF('1. Order'!Z1184=\"\",\"\",'1. Order'!Z1184)","v":""},{"$f":"IF('1. Order'!AA1184=\"\",\"\",'1. Order'!AA1184)","v":""},{"$f":"IF('1. Order'!AB1184=\"\",\"\",'1. Order'!AB1184)","v":""},null,{"$f":"IF('1. Order'!AT1184=\"\",\"\",'1. Order'!AT1184)","v":""},{"$f":"IF('1. Order'!AU1184=\"\",\"\",'1. Order'!AU1184)","v":""},null,null,null,null,null,null,null,{"$f":"IF('1. Order'!AY1184=\"\",\"\",'1. Order'!AY1184)","v":""},{"$f":"IF('1. Order'!AZ1184=\"\",\"\",'1. Order'!AZ1184)","v":""},{"$f":"IF('1. Order'!BA1184=\"\",\"\",'1. Order'!BA1184)","v":""},{"$f":"IF('1. Order'!BB1184=\"\",\"\",'1. Order'!BB1184)","v":""},{"$f":"IF('1. Order'!BD1184=\"\",\"\",'1. Order'!BD1184)","v":""},{"$f":"IF('1. Order'!BE1184=\"\",\"\",'1. Order'!BE1184)","v":""},{"$f":"IF('1. Order'!BF1184=\"\",\"\",'1. Order'!BF1184)","v":""},{"$f":"IF('1. Order'!BG1184=\"\",\"\",'1. Order'!BG1184)","v":""},{"$f":"IF('1. Order'!BH1184=\"\",\"\",'1. Order'!BH1184)","v":"ZWO"}]
[{"$f":"IF('1. Order'!F1185=\"\",\"\",'1. Order'!F1185)","v":{"$error":"#N/A"}},{"$f":"IF('1. Order'!G1185=\"\",\"\",'1. Order'!G1185)","v":""},{"$f":"IF('1. Order'!H1185=\"\",\"\",'1. Order'!H1185)","v":""},{"$f":"IF('1. Order'!I1185=\"\",\"\",'1. Order'!I1185)","v":""},{"$f":"IF('1. Order'!J1185=\"\",\"\",'1. Order'!J1185)","v":""},{"$f":"IF('1. Order'!K1185=\"\",\"\",'1. Order'!K1185)","v":""},{"$f":"IF('1. Order'!L1185=\"\",\"\",'1. Order'!L1185)","v":""},{"$f":"IF('1. Order'!M1185=\"\",\"\",'1. Order'!M1185)","v":""},{"$f":"IF('1. Order'!N1185=\"\",\"\",'1. Order'!N1185)","v":""},{"$f":"IF('1. Order'!O1185=\"\",\"\",'1. Order'!O1185)","v":{"$error":"#N/A"}},{"$f":"IF('1. Order'!P1185=\"\",\"\",'1. Order'!P1185)","v":{"$error":"#N/A"}},{"$f":"IF('1. Order'!Q1185=\"\",\"\",'1. Order'!Q1185)","v":""},{"$f":"IF('1. Order'!S1185=\"\",\"\",'1. Order'!S1185)","v":""},{"$f":"IF('1. Order'!T1185=\"\",\"\",'1. Order'!T1185)","v":""},{"$f":"IF('1. Order'!W1185=\"\",\"\",'1. Order'!W1185)","v":""},{"$f":"IF('1. Order'!X1185=\"\",\"\",'1. Order'!X1185)","v":""},{"$f":"IF('1. Order'!Y1185=\"\",\"\",'1. Order'!Y1185)","v":"EUR"},{"$f":"IF('1. Order'!Z1185=\"\",\"\",'1. Order'!Z1185)","v":""},{"$f":"IF('1. Order'!AA1185=\"\",\"\",'1. Order'!AA1185)","v":""},{"$f":"IF('1. Order'!AB1185=\"\",\"\",'1. Order'!AB1185)","v":""},null,{"$f":"IF('1. Order'!AT1185=\"\",\"\",'1. Order'!AT1185)","v":""},{"$f":"IF('1. Order'!AU1185=\"\",\"\",'1. Order'!AU1185)","v":""},null,null,null,null,null,null,null,{"$f":"IF('1. Order'!AY1185=\"\",\"\",'1. Order'!AY1185)","v":""},{"$f":"IF('1. Order'!AZ1185=\"\",\"\",'1. Order'!AZ1185)","v":""},{"$f":"IF('1. Order'!BA1185=\"\",\"\",'1. Order'!BA1185)","v":""},{"$f":"IF('1. Order'!BB1185=\"\",\"\",'1. Order'!BB1185)","v":""},{"$f":"IF('1. Order'!BD1185=\"\",\"\",'1. Order'!BD1185)","v":""},{"$f":"IF('1. Order'!BE1185=\"\",\"\",'1. Order'!BE1185)","v":""},{"$f":"IF('1. Order'!BF1185=\"\",\"\",'1. Order'!BF1185)","v":""},{"$f":"IF('1. Order'!BG1185=\"\",\"\",'1. Order'!BG1185)","v":""},{"$f":"IF('1. Order'!BH1185=\"\",\"\",'1. Order'!BH1185)","v":"ZWO"}]
[{"$f":"IF('1. Order'!F1186=\"\",\"\",'1. Order'!F1186)","v":{"$error":"#N/A"}},{"$f":"IF('1. Order'!G1186=\"\",\"\",'1. Order'!G1186)","v":""},{"$f":"IF('1. Order'!H1186=\"\",\"\",'1. Order'!H1186)","v":""},{"$f":"IF('1. Order'!I1186=\"\",\"\",'1. Order'!I1186)","v":""},{"$f":"IF('1. Order'!J1186=\"\",\"\",'1. Order'!J1186)","v":""},{"$f":"IF('1. Order'!K1186=\"\",\"\",'1. Order'!K1186)","v":""},{"$f":"IF('1. Order'!L1186=\"\",\"\",'1. Order'!L1186)","v":""},{"$f":"IF('1. Order'!M1186=\"\",\"\",'1. Order'!M1186)","v":""},{"$f":"IF('1. Order'!N1186=\"\",\"\",'1. Order'!N1186)","v":""},{"$f":"IF('1. Order'!O1186=\"\",\"\",'1. Order'!O1186)","v":{"$error":"#N/A"}},{"$f":"IF('1. Order'!P1186=\"\",\"\",'1. Order'!P1186)","v":{"$error":"#N/A"}},{"$f":"IF('1. Order'!Q1186=\"\",\"\",'1. Order'!Q1186)","v":""},{"$f":"IF('1. Order'!S1186=\"\",\"\",'1. Order'!S1186)","v":""},{"$f":"IF('1. Order'!T1186=\"\",\"\",'1. Order'!T1186)","v":""},{"$f":"IF('1. Order'!W1186=\"\",\"\",'1. Order'!W1186)","v":""},{"$f":"IF('1. Order'!X1186=\"\",\"\",'1. Order'!X1186)","v":""},{"$f":"IF('1. Order'!Y1186=\"\",\"\",'1. Order'!Y1186)","v":"EUR"},{"$f":"IF('1. Order'!Z1186=\"\",\"\",'1. Order'!Z1186)","v":""},{"$f":"IF('1. Order'!AA1186=\"\",\"\",'1. Order'!AA1186)","v":""},{"$f":"IF('1. Order'!AB1186=\"\",\"\",'1. Order'!AB1186)","v":""},null,{"$f":"IF('1. Order'!AT1186=\"\",\"\",'1. Order'!AT1186)","v":""},{"$f":"IF('1. Order'!AU1186=\"\",\"\",'1. Order'!AU1186)","v":""},null,null,null,null,null,null,null,{"$f":"IF('1. Order'!AY1186=\"\",\"\",'1. Order'!AY1186)","v":""},{"$f":"IF('1. Order'!AZ1186=\"\",\"\",'1. Order'!AZ1186)","v":""},{"$f":"IF('1. Order'!BA1186=\"\",\"\",'1. Order'!BA1186)","v":""},{"$f":"IF('1. Order'!BB1186=\"\",\"\",'1. Order'!BB1186)","v":""},{"$f":"IF('1. Order'!BD1186=\"\",\"\",'1. Order'!BD1186)","v":""},{"$f":"IF('1. Order'!BE1186=\"\",\"\",'1. Order'!BE1186)","v":""},{"$f":"IF('1. Order'!BF1186=\"\",\"\",'1. Order'!BF1186)","v":""},{"$f":"IF('1. Order'!BG1186=\"\",\"\",'1. Order'!BG1186)","v":""},{"$f":"IF('1. Order'!BH1186=\"\",\"\",'1. Order'!BH1186)","v":"ZWO"}]
[{"$f":"IF('1. Order'!F1187=\"\",\"\",'1. Order'!F1187)","v":{"$error":"#N/A"}},{"$f":"IF('1. Order'!G1187=\"\",\"\",'1. Order'!G1187)","v":""},{"$f":"IF('1. Order'!H1187=\"\",\"\",'1. Order'!H1187)","v":""},{"$f":"IF('1. Order'!I1187=\"\",\"\",'1. Order'!I1187)","v":""},{"$f":"IF('1. Order'!J1187=\"\",\"\",'1. Order'!J1187)","v":""},{"$f":"IF('1. Order'!K1187=\"\",\"\",'1. Order'!K1187)","v":""},{"$f":"IF('1. Order'!L1187=\"\",\"\",'1. Order'!L1187)","v":""},{"$f":"IF('1. Order'!M1187=\"\",\"\",'1. Order'!M1187)","v":""},{"$f":"IF('1. Order'!N1187=\"\",\"\",'1. Order'!N1187)","v":""},{"$f":"IF('1. Order'!O1187=\"\",\"\",'1. Order'!O1187)","v":{"$error":"#N/A"}},{"$f":"IF('1. Order'!P1187=\"\",\"\",'1. Order'!P1187)","v":{"$error":"#N/A"}},{"$f":"IF('1. Order'!Q1187=\"\",\"\",'1. Order'!Q1187)","v":""},{"$f":"IF('1. Order'!S1187=\"\",\"\",'1. Order'!S1187)","v":""},{"$f":"IF('1. Order'!T1187=\"\",\"\",'1. Order'!T1187)","v":""},{"$f":"IF('1. Order'!W1187=\"\",\"\",'1. Order'!W1187)","v":""},{"$f":"IF('1. Order'!X1187=\"\",\"\",'1. Order'!X1187)","v":""},{"$f":"IF('1. Order'!Y1187=\"\",\"\",'1. Order'!Y1187)","v":"EUR"},{"$f":"IF('1. Order'!Z1187=\"\",\"\",'1. Order'!Z1187)","v":""},{"$f":"IF('1. Order'!AA1187=\"\",\"\",'1. Order'!AA1187)","v":""},{"$f":"IF('1. Order'!AB1187=\"\",\"\",'1. Order'!AB1187)","v":""},null,{"$f":"IF('1. Order'!AT1187=\"\",\"\",'1. Order'!AT1187)","v":""},{"$f":"IF('1. Order'!AU1187=\"\",\"\",'1. Order'!AU1187)","v":""},null,null,null,null,null,null,null,{"$f":"IF('1. Order'!AY1187=\"\",\"\",'1. Order'!AY1187)","v":""},{"$f":"IF('1. Order'!AZ1187=\"\",\"\",'1. Order'!AZ1187)","v":""},{"$f":"IF('1. Order'!BA1187=\"\",\"\",'1. Order'!BA1187)","v":""},{"$f":"IF('1. Order'!BB1187=\"\",\"\",'1. Order'!BB1187)","v":""},{"$f":"IF('1. Order'!BD1187=\"\",\"\",'1. Order'!BD1187)","v":""},{"$f":"IF('1. Order'!BE1187=\"\",\"\",'1. Order'!BE1187)","v":""},{"$f":"IF('1. Order'!BF1187=\"\",\"\",'1. Order'!BF1187)","v":""},{"$f":"IF('1. Order'!BG1187=\"\",\"\",'1. Order'!BG1187)","v":""},{"$f":"IF('1. Order'!BH1187=\"\",\"\",'1. Order'!BH1187)","v":"ZWO"}]
[{"$f":"IF('1. Order'!F1188=\"\",\"\",'1. Order'!F1188)","v":{"$error":"#N/A"}},{"$f":"IF('1. Order'!G1188=\"\",\"\",'1. Order'!G1188)","v":""},{"$f":"IF('1. Order'!H1188=\"\",\"\",'1. Order'!H1188)","v":""},{"$f":"IF('1. Order'!I1188=\"\",\"\",'1. Order'!I1188)","v":""},{"$f":"IF('1. Order'!J1188=\"\",\"\",'1. Order'!J1188)","v":""},{"$f":"IF('1. Order'!K1188=\"\",\"\",'1. Order'!K1188)","v":""},{"$f":"IF('1. Order'!L1188=\"\",\"\",'1. Order'!L1188)","v":""},{"$f":"IF('1. Order'!M1188=\"\",\"\",'1. Order'!M1188)","v":""},{"$f":"IF('1. Order'!N1188=\"\",\"\",'1. Order'!N1188)","v":""},{"$f":"IF('1. Order'!O1188=\"\",\"\",'1. Order'!O1188)","v":{"$error":"#N/A"}},{"$f":"IF('1. Order'!P1188=\"\",\"\",'1. Order'!P1188)","v":{"$error":"#N/A"}},{"$f":"IF('1. Order'!Q1188=\"\",\"\",'1. Order'!Q1188)","v":""},{"$f":"IF('1. Order'!S1188=\"\",\"\",'1. Order'!S1188)","v":""},{"$f":"IF('1. Order'!T1188=\"\",\"\",'1. Order'!T1188)","v":""},{"$f":"IF('1. Order'!W1188=\"\",\"\",'1. Order'!W1188)","v":""},{"$f":"IF('1. Order'!X1188=\"\",\"\",'1. Order'!X1188)","v":""},{"$f":"IF('1. Order'!Y1188=\"\",\"\",'1. Order'!Y1188)","v":"EUR"},{"$f":"IF('1. Order'!Z1188=\"\",\"\",'1. Order'!Z1188)","v":""},{"$f":"IF('1. Order'!AA1188=\"\",\"\",'1. Order'!AA1188)","v":""},{"$f":"IF('1. Order'!AB1188=\"\",\"\",'1. Order'!AB1188)","v":""},null,{"$f":"IF('1. Order'!AT1188=\"\",\"\",'1. Order'!AT1188)","v":""},{"$f":"IF('1. Order'!AU1188=\"\",\"\",'1. Order'!AU1188)","v":""},null,null,null,null,null,null,null,{"$f":"IF('1. Order'!AY1188=\"\",\"\",'1. Order'!AY1188)","v":""},{"$f":"IF('1. Order'!AZ1188=\"\",\"\",'1. Order'!AZ1188)","v":""},{"$f":"IF('1. Order'!BA1188=\"\",\"\",'1. Order'!BA1188)","v":""},{"$f":"IF('1. Order'!BB1188=\"\",\"\",'1. Order'!BB1188)","v":""},{"$f":"IF('1. Order'!BD1188=\"\",\"\",'1. Order'!BD1188)","v":""},{"$f":"IF('1. Order'!BE1188=\"\",\"\",'1. Order'!BE1188)","v":""},{"$f":"IF('1. Order'!BF1188=\"\",\"\",'1. Order'!BF1188)","v":""},{"$f":"IF('1. Order'!BG1188=\"\",\"\",'1. Order'!BG1188)","v":""},{"$f":"IF('1. Order'!BH1188=\"\",\"\",'1. Order'!BH1188)","v":"ZWO"}]
[{"$f":"IF('1. Order'!F1189=\"\",\"\",'1. Order'!F1189)","v":{"$error":"#N/A"}},{"$f":"IF('1. Order'!G1189=\"\",\"\",'1. Order'!G1189)","v":""},{"$f":"IF('1. Order'!H1189=\"\",\"\",'1. Order'!H1189)","v":""},{"$f":"IF('1. Order'!I1189=\"\",\"\",'1. Order'!I1189)","v":""},{"$f":"IF('1. Order'!J1189=\"\",\"\",'1. Order'!J1189)","v":""},{"$f":"IF('1. Order'!K1189=\"\",\"\",'1. Order'!K1189)","v":""},{"$f":"IF('1. Order'!L1189=\"\",\"\",'1. Order'!L1189)","v":""},{"$f":"IF('1. Order'!M1189=\"\",\"\",'1. Order'!M1189)","v":""},{"$f":"IF('1. Order'!N1189=\"\",\"\",'1. Order'!N1189)","v":""},{"$f":"IF('1. Order'!O1189=\"\",\"\",'1. Order'!O1189)","v":{"$error":"#N/A"}},{"$f":"IF('1. Order'!P1189=\"\",\"\",'1. Order'!P1189)","v":{"$error":"#N/A"}},{"$f":"IF('1. Order'!Q1189=\"\",\"\",'1. Order'!Q1189)","v":""},{"$f":"IF('1. Order'!S1189=\"\",\"\",'1. Order'!S1189)","v":""},{"$f":"IF('1. Order'!T1189=\"\",\"\",'1. Order'!T1189)","v":""},{"$f":"IF('1. Order'!W1189=\"\",\"\",'1. Order'!W1189)","v":""},{"$f":"IF('1. Order'!X1189=\"\",\"\",'1. Order'!X1189)","v":""},{"$f":"IF('1. Order'!Y1189=\"\",\"\",'1. Order'!Y1189)","v":"EUR"},{"$f":"IF('1. Order'!Z1189=\"\",\"\",'1. Order'!Z1189)","v":""},{"$f":"IF('1. Order'!AA1189=\"\",\"\",'1. Order'!AA1189)","v":""},{"$f":"IF('1. Order'!AB1189=\"\",\"\",'1. Order'!AB1189)","v":""},null,{"$f":"IF('1. Order'!AT1189=\"\",\"\",'1. Order'!AT1189)","v":""},{"$f":"IF('1. Order'!AU1189=\"\",\"\",'1. Order'!AU1189)","v":""},null,null,null,null,null,null,null,{"$f":"IF('1. Order'!AY1189=\"\",\"\",'1. Order'!AY1189)","v":""},{"$f":"IF('1. Order'!AZ1189=\"\",\"\",'1. Order'!AZ1189)","v":""},{"$f":"IF('1. Order'!BA1189=\"\",\"\",'1. Order'!BA1189)","v":""},{"$f":"IF('1. Order'!BB1189=\"\",\"\",'1. Order'!BB1189)","v":""},{"$f":"IF('1. Order'!BD1189=\"\",\"\",'1. Order'!BD1189)","v":""},{"$f":"IF('1. Order'!BE1189=\"\",\"\",'1. Order'!BE1189)","v":""},{"$f":"IF('1. Order'!BF1189=\"\",\"\",'1. Order'!BF1189)","v":""},{"$f":"IF('1. Order'!BG1189=\"\",\"\",'1. Order'!BG1189)","v":""},{"$f":"IF('1. Order'!BH1189=\"\",\"\",'1. Order'!BH1189)","v":"ZWO"}]
[{"$f":"IF('1. Order'!F1190=\"\",\"\",'1. Order'!F1190)","v":{"$error":"#N/A"}},{"$f":"IF('1. Order'!G1190=\"\",\"\",'1. Order'!G1190)","v":""},{"$f":"IF('1. Order'!H1190=\"\",\"\",'1. Order'!H1190)","v":""},{"$f":"IF('1. Order'!I1190=\"\",\"\",'1. Order'!I1190)","v":""},{"$f":"IF('1. Order'!J1190=\"\",\"\",'1. Order'!J1190)","v":""},{"$f":"IF('1. Order'!K1190=\"\",\"\",'1. Order'!K1190)","v":""},{"$f":"IF('1. Order'!L1190=\"\",\"\",'1. Order'!L1190)","v":""},{"$f":"IF('1. Order'!M1190=\"\",\"\",'1. Order'!M1190)","v":""},{"$f":"IF('1. Order'!N1190=\"\",\"\",'1. Order'!N1190)","v":""},{"$f":"IF('1. Order'!O1190=\"\",\"\",'1. Order'!O1190)","v":{"$error":"#N/A"}},{"$f":"IF('1. Order'!P1190=\"\",\"\",'1. Order'!P1190)","v":{"$error":"#N/A"}},{"$f":"IF('1. Order'!Q1190=\"\",\"\",'1. Order'!Q1190)","v":""},{"$f":"IF('1. Order'!S1190=\"\",\"\",'1. Order'!S1190)","v":""},{"$f":"IF('1. Order'!T1190=\"\",\"\",'1. Order'!T1190)","v":""},{"$f":"IF('1. Order'!W1190=\"\",\"\",'1. Order'!W1190)","v":""},{"$f":"IF('1. Order'!X1190=\"\",\"\",'1. Order'!X1190)","v":""},{"$f":"IF('1. Order'!Y1190=\"\",\"\",'1. Order'!Y1190)","v":"EUR"},{"$f":"IF('1. Order'!Z1190=\"\",\"\",'1. Order'!Z1190)","v":""},{"$f":"IF('1. Order'!AA1190=\"\",\"\",'1. Order'!AA1190)","v":""},{"$f":"IF('1. Order'!AB1190=\"\",\"\",'1. Order'!AB1190)","v":""},null,{"$f":"IF('1. Order'!AT1190=\"\",\"\",'1. Order'!AT1190)","v":""},{"$f":"IF('1. Order'!AU1190=\"\",\"\",'1. Order'!AU1190)","v":""},null,null,null,null,null,null,null,{"$f":"IF('1. Order'!AY1190=\"\",\"\",'1. Order'!AY1190)","v":""},{"$f":"IF('1. Order'!AZ1190=\"\",\"\",'1. Order'!AZ1190)","v":""},{"$f":"IF('1. Order'!BA1190=\"\",\"\",'1. Order'!BA1190)","v":""},{"$f":"IF('1. Order'!BB1190=\"\",\"\",'1. Order'!BB1190)","v":""},{"$f":"IF('1. Order'!BD1190=\"\",\"\",'1. Order'!BD1190)","v":""},{"$f":"IF('1. Order'!BE1190=\"\",\"\",'1. Order'!BE1190)","v":""},{"$f":"IF('1. Order'!BF1190=\"\",\"\",'1. Order'!BF1190)","v":""},{"$f":"IF('1. Order'!BG1190=\"\",\"\",'1. Order'!BG1190)","v":""},{"$f":"IF('1. Order'!BH1190=\"\",\"\",'1. Order'!BH1190)","v":"ZWO"}]
[{"$f":"IF('1. Order'!F1191=\"\",\"\",'1. Order'!F1191)","v":{"$error":"#N/A"}},{"$f":"IF('1. Order'!G1191=\"\",\"\",'1. Order'!G1191)","v":""},{"$f":"IF('1. Order'!H1191=\"\",\"\",'1. Order'!H1191)","v":""},{"$f":"IF('1. Order'!I1191=\"\",\"\",'1. Order'!I1191)","v":""},{"$f":"IF('1. Order'!J1191=\"\",\"\",'1. Order'!J1191)","v":""},{"$f":"IF('1. Order'!K1191=\"\",\"\",'1. Order'!K1191)","v":""},{"$f":"IF('1. Order'!L1191=\"\",\"\",'1. Order'!L1191)","v":""},{"$f":"IF('1. Order'!M1191=\"\",\"\",'1. Order'!M1191)","v":""},{"$f":"IF('1. Order'!N1191=\"\",\"\",'1. Order'!N1191)","v":""},{"$f":"IF('1. Order'!O1191=\"\",\"\",'1. Order'!O1191)","v":{"$error":"#N/A"}},{"$f":"IF('1. Order'!P1191=\"\",\"\",'1. Order'!P1191)","v":{"$error":"#N/A"}},{"$f":"IF('1. Order'!Q1191=\"\",\"\",'1. Order'!Q1191)","v":""},{"$f":"IF('1. Order'!S1191=\"\",\"\",'1. Order'!S1191)","v":""},{"$f":"IF('1. Order'!T1191=\"\",\"\",'1. Order'!T1191)","v":""},{"$f":"IF('1. Order'!W1191=\"\",\"\",'1. Order'!W1191)","v":""},{"$f":"IF('1. Order'!X1191=\"\",\"\",'1. Order'!X1191)","v":""},{"$f":"IF('1. Order'!Y1191=\"\",\"\",'1. Order'!Y1191)","v":"EUR"},{"$f":"IF('1. Order'!Z1191=\"\",\"\",'1. Order'!Z1191)","v":""},{"$f":"IF('1. Order'!AA1191=\"\",\"\",'1. Order'!AA1191)","v":""},{"$f":"IF('1. Order'!AB1191=\"\",\"\",'1. Order'!AB1191)","v":""},null,{"$f":"IF('1. Order'!AT1191=\"\",\"\",'1. Order'!AT1191)","v":""},{"$f":"IF('1. Order'!AU1191=\"\",\"\",'1. Order'!AU1191)","v":""},null,null,null,null,null,null,null,{"$f":"IF('1. Order'!AY1191=\"\",\"\",'1. Order'!AY1191)","v":""},{"$f":"IF('1. Order'!AZ1191=\"\",\"\",'1. Order'!AZ1191)","v":""},{"$f":"IF('1. Order'!BA1191=\"\",\"\",'1. Order'!BA1191)","v":""},{"$f":"IF('1. Order'!BB1191=\"\",\"\",'1. Order'!BB1191)","v":""},{"$f":"IF('1. Order'!BD1191=\"\",\"\",'1. Order'!BD1191)","v":""},{"$f":"IF('1. Order'!BE1191=\"\",\"\",'1. Order'!BE1191)","v":""},{"$f":"IF('1. Order'!BF1191=\"\",\"\",'1. Order'!BF1191)","v":""},{"$f":"IF('1. Order'!BG1191=\"\",\"\",'1. Order'!BG1191)","v":""},{"$f":"IF('1. Order'!BH1191=\"\",\"\",'1. Order'!BH1191)","v":"ZWO"}]
[{"$f":"IF('1. Order'!F1192=\"\",\"\",'1. Order'!F1192)","v":{"$error":"#N/A"}},{"$f":"IF('1. Order'!G1192=\"\",\"\",'1. Order'!G1192)","v":""},{"$f":"IF('1. Order'!H1192=\"\",\"\",'1. Order'!H1192)","v":""},{"$f":"IF('1. Order'!I1192=\"\",\"\",'1. Order'!I1192)","v":""},{"$f":"IF('1. Order'!J1192=\"\",\"\",'1. Order'!J1192)","v":""},{"$f":"IF('1. Order'!K1192=\"\",\"\",'1. Order'!K1192)","v":""},{"$f":"IF('1. Order'!L1192=\"\",\"\",'1. Order'!L1192)","v":""},{"$f":"IF('1. Order'!M1192=\"\",\"\",'1. Order'!M1192)","v":""},{"$f":"IF('1. Order'!N1192=\"\",\"\",'1. Order'!N1192)","v":""},{"$f":"IF('1. Order'!O1192=\"\",\"\",'1. Order'!O1192)","v":{"$error":"#N/A"}},{"$f":"IF('1. Order'!P1192=\"\",\"\",'1. Order'!P1192)","v":{"$error":"#N/A"}},{"$f":"IF('1. Order'!Q1192=\"\",\"\",'1. Order'!Q1192)","v":""},{"$f":"IF('1. Order'!S1192=\"\",\"\",'1. Order'!S1192)","v":""},{"$f":"IF('1. Order'!T1192=\"\",\"\",'1. Order'!T1192)","v":""},{"$f":"IF('1. Order'!W1192=\"\",\"\",'1. Order'!W1192)","v":""},{"$f":"IF('1. Order'!X1192=\"\",\"\",'1. Order'!X1192)","v":""},{"$f":"IF('1. Order'!Y1192=\"\",\"\",'1. Order'!Y1192)","v":"EUR"},{"$f":"IF('1. Order'!Z1192=\"\",\"\",'1. Order'!Z1192)","v":""},{"$f":"IF('1. Order'!AA1192=\"\",\"\",'1. Order'!AA1192)","v":""},{"$f":"IF('1. Order'!AB1192=\"\",\"\",'1. Order'!AB1192)","v":""},null,{"$f":"IF('1. Order'!AT1192=\"\",\"\",'1. Order'!AT1192)","v":""},{"$f":"IF('1. Order'!AU1192=\"\",\"\",'1. Order'!AU1192)","v":""},null,null,null,null,null,null,null,{"$f":"IF('1. Order'!AY1192=\"\",\"\",'1. Order'!AY1192)","v":""},{"$f":"IF('1. Order'!AZ1192=\"\",\"\",'1. Order'!AZ1192)","v":""},{"$f":"IF('1. Order'!BA1192=\"\",\"\",'1. Order'!BA1192)","v":""},{"$f":"IF('1. Order'!BB1192=\"\",\"\",'1. Order'!BB1192)","v":""},{"$f":"IF('1. Order'!BD1192=\"\",\"\",'1. Order'!BD1192)","v":""},{"$f":"IF('1. Order'!BE1192=\"\",\"\",'1. Order'!BE1192)","v":""},{"$f":"IF('1. Order'!BF1192=\"\",\"\",'1. Order'!BF1192)","v":""},{"$f":"IF('1. Order'!BG1192=\"\",\"\",'1. Order'!BG1192)","v":""},{"$f":"IF('1. Order'!BH1192=\"\",\"\",'1. Order'!BH1192)","v":"ZWO"}]
[{"$f":"IF('1. Order'!F1193=\"\",\"\",'1. Order'!F1193)","v":{"$error":"#N/A"}},{"$f":"IF('1. Order'!G1193=\"\",\"\",'1. Order'!G1193)","v":""},{"$f":"IF('1. Order'!H1193=\"\",\"\",'1. Order'!H1193)","v":""},{"$f":"IF('1. Order'!I1193=\"\",\"\",'1. Order'!I1193)","v":""},{"$f":"IF('1. Order'!J1193=\"\",\"\",'1. Order'!J1193)","v":""},{"$f":"IF('1. Order'!K1193=\"\",\"\",'1. Order'!K1193)","v":""},{"$f":"IF('1. Order'!L1193=\"\",\"\",'1. Order'!L1193)","v":""},{"$f":"IF('1. Order'!M1193=\"\",\"\",'1. Order'!M1193)","v":""},{"$f":"IF('1. Order'!N1193=\"\",\"\",'1. Order'!N1193)","v":""},{"$f":"IF('1. Order'!O1193=\"\",\"\",'1. Order'!O1193)","v":{"$error":"#N/A"}},{"$f":"IF('1. Order'!P1193=\"\",\"\",'1. Order'!P1193)","v":{"$error":"#N/A"}},{"$f":"IF('1. Order'!Q1193=\"\",\"\",'1. Order'!Q1193)","v":""},{"$f":"IF('1. Order'!S1193=\"\",\"\",'1. Order'!S1193)","v":""},{"$f":"IF('1. Order'!T1193=\"\",\"\",'1. Order'!T1193)","v":""},{"$f":"IF('1. Order'!W1193=\"\",\"\",'1. Order'!W1193)","v":""},{"$f":"IF('1. Order'!X1193=\"\",\"\",'1. Order'!X1193)","v":""},{"$f":"IF('1. Order'!Y1193=\"\",\"\",'1. Order'!Y1193)","v":"EUR"},{"$f":"IF('1. Order'!Z1193=\"\",\"\",'1. Order'!Z1193)","v":""},{"$f":"IF('1. Order'!AA1193=\"\",\"\",'1. Order'!AA1193)","v":""},{"$f":"IF('1. Order'!AB1193=\"\",\"\",'1. Order'!AB1193)","v":""},null,{"$f":"IF('1. Order'!AT1193=\"\",\"\",'1. Order'!AT1193)","v":""},{"$f":"IF('1. Order'!AU1193=\"\",\"\",'1. Order'!AU1193)","v":""},null,null,null,null,null,null,null,{"$f":"IF('1. Order'!AY1193=\"\",\"\",'1. Order'!AY1193)","v":""},{"$f":"IF('1. Order'!AZ1193=\"\",\"\",'1. Order'!AZ1193)","v":""},{"$f":"IF('1. Order'!BA1193=\"\",\"\",'1. Order'!BA1193)","v":""},{"$f":"IF('1. Order'!BB1193=\"\",\"\",'1. Order'!BB1193)","v":""},{"$f":"IF('1. Order'!BD1193=\"\",\"\",'1. Order'!BD1193)","v":""},{"$f":"IF('1. Order'!BE1193=\"\",\"\",'1. Order'!BE1193)","v":""},{"$f":"IF('1. Order'!BF1193=\"\",\"\",'1. Order'!BF1193)","v":""},{"$f":"IF('1. Order'!BG1193=\"\",\"\",'1. Order'!BG1193)","v":""},{"$f":"IF('1. Order'!BH1193=\"\",\"\",'1. Order'!BH1193)","v":"ZWO"}]
[{"$f":"IF('1. Order'!F1194=\"\",\"\",'1. Order'!F1194)","v":{"$error":"#N/A"}},{"$f":"IF('1. Order'!G1194=\"\",\"\",'1. Order'!G1194)","v":""},{"$f":"IF('1. Order'!H1194=\"\",\"\",'1. Order'!H1194)","v":""},{"$f":"IF('1. Order'!I1194=\"\",\"\",'1. Order'!I1194)","v":""},{"$f":"IF('1. Order'!J1194=\"\",\"\",'1. Order'!J1194)","v":""},{"$f":"IF('1. Order'!K1194=\"\",\"\",'1. Order'!K1194)","v":""},{"$f":"IF('1. Order'!L1194=\"\",\"\",'1. Order'!L1194)","v":""},{"$f":"IF('1. Order'!M1194=\"\",\"\",'1. Order'!M1194)","v":""},{"$f":"IF('1. Order'!N1194=\"\",\"\",'1. Order'!N1194)","v":""},{"$f":"IF('1. Order'!O1194=\"\",\"\",'1. Order'!O1194)","v":{"$error":"#N/A"}},{"$f":"IF('1. Order'!P1194=\"\",\"\",'1. Order'!P1194)","v":{"$error":"#N/A"}},{"$f":"IF('1. Order'!Q1194=\"\",\"\",'1. Order'!Q1194)","v":""},{"$f":"IF('1. Order'!S1194=\"\",\"\",'1. Order'!S1194)","v":""},{"$f":"IF('1. Order'!T1194=\"\",\"\",'1. Order'!T1194)","v":""},{"$f":"IF('1. Order'!W1194=\"\",\"\",'1. Order'!W1194)","v":""},{"$f":"IF('1. Order'!X1194=\"\",\"\",'1. Order'!X1194)","v":""},{"$f":"IF('1. Order'!Y1194=\"\",\"\",'1. Order'!Y1194)","v":"EUR"},{"$f":"IF('1. Order'!Z1194=\"\",\"\",'1. Order'!Z1194)","v":""},{"$f":"IF('1. Order'!AA1194=\"\",\"\",'1. Order'!AA1194)","v":""},{"$f":"IF('1. Order'!AB1194=\"\",\"\",'1. Order'!AB1194)","v":""},null,{"$f":"IF('1. Order'!AT1194=\"\",\"\",'1. Order'!AT1194)","v":""},{"$f":"IF('1. Order'!AU1194=\"\",\"\",'1. Order'!AU1194)","v":""},null,null,null,null,null,null,null,{"$f":"IF('1. Order'!AY1194=\"\",\"\",'1. Order'!AY1194)","v":""},{"$f":"IF('1. Order'!AZ1194=\"\",\"\",'1. Order'!AZ1194)","v":""},{"$f":"IF('1. Order'!BA1194=\"\",\"\",'1. Order'!BA1194)","v":""},{"$f":"IF('1. Order'!BB1194=\"\",\"\",'1. Order'!BB1194)","v":""},{"$f":"IF('1. Order'!BD1194=\"\",\"\",'1. Order'!BD1194)","v":""},{"$f":"IF('1. Order'!BE1194=\"\",\"\",'1. Order'!BE1194)","v":""},{"$f":"IF('1. Order'!BF1194=\"\",\"\",'1. Order'!BF1194)","v":""},{"$f":"IF('1. Order'!BG1194=\"\",\"\",'1. Order'!BG1194)","v":""},{"$f":"IF('1. Order'!BH1194=\"\",\"\",'1. Order'!BH1194)","v":"ZWO"}]
[{"$f":"IF('1. Order'!F1195=\"\",\"\",'1. Order'!F1195)","v":{"$error":"#N/A"}},{"$f":"IF('1. Order'!G1195=\"\",\"\",'1. Order'!G1195)","v":""},{"$f":"IF('1. Order'!H1195=\"\",\"\",'1. Order'!H1195)","v":""},{"$f":"IF('1. Order'!I1195=\"\",\"\",'1. Order'!I1195)","v":""},{"$f":"IF('1. Order'!J1195=\"\",\"\",'1. Order'!J1195)","v":""},{"$f":"IF('1. Order'!K1195=\"\",\"\",'1. Order'!K1195)","v":""},{"$f":"IF('1. Order'!L1195=\"\",\"\",'1. Order'!L1195)","v":""},{"$f":"IF('1. Order'!M1195=\"\",\"\",'1. Order'!M1195)","v":""},{"$f":"IF('1. Order'!N1195=\"\",\"\",'1. Order'!N1195)","v":""},{"$f":"IF('1. Order'!O1195=\"\",\"\",'1. Order'!O1195)","v":{"$error":"#N/A"}},{"$f":"IF('1. Order'!P1195=\"\",\"\",'1. Order'!P1195)","v":{"$error":"#N/A"}},{"$f":"IF('1. Order'!Q1195=\"\",\"\",'1. Order'!Q1195)","v":""},{"$f":"IF('1. Order'!S1195=\"\",\"\",'1. Order'!S1195)","v":""},{"$f":"IF('1. Order'!T1195=\"\",\"\",'1. Order'!T1195)","v":""},{"$f":"IF('1. Order'!W1195=\"\",\"\",'1. Order'!W1195)","v":""},{"$f":"IF('1. Order'!X1195=\"\",\"\",'1. Order'!X1195)","v":""},{"$f":"IF('1. Order'!Y1195=\"\",\"\",'1. Order'!Y1195)","v":"EUR"},{"$f":"IF('1. Order'!Z1195=\"\",\"\",'1. Order'!Z1195)","v":""},{"$f":"IF('1. Order'!AA1195=\"\",\"\",'1. Order'!AA1195)","v":""},{"$f":"IF('1. Order'!AB1195=\"\",\"\",'1. Order'!AB1195)","v":""},null,{"$f":"IF('1. Order'!AT1195=\"\",\"\",'1. Order'!AT1195)","v":""},{"$f":"IF('1. Order'!AU1195=\"\",\"\",'1. Order'!AU1195)","v":""},null,null,null,null,null,null,null,{"$f":"IF('1. Order'!AY1195=\"\",\"\",'1. Order'!AY1195)","v":""},{"$f":"IF('1. Order'!AZ1195=\"\",\"\",'1. Order'!AZ1195)","v":""},{"$f":"IF('1. Order'!BA1195=\"\",\"\",'1. Order'!BA1195)","v":""},{"$f":"IF('1. Order'!BB1195=\"\",\"\",'1. Order'!BB1195)","v":""},{"$f":"IF('1. Order'!BD1195=\"\",\"\",'1. Order'!BD1195)","v":""},{"$f":"IF('1. Order'!BE1195=\"\",\"\",'1. Order'!BE1195)","v":""},{"$f":"IF('1. Order'!BF1195=\"\",\"\",'1. Order'!BF1195)","v":""},{"$f":"IF('1. Order'!BG1195=\"\",\"\",'1. Order'!BG1195)","v":""},{"$f":"IF('1. Order'!BH1195=\"\",\"\",'1. Order'!BH1195)","v":"ZWO"}]
[{"$f":"IF('1. Order'!F1196=\"\",\"\",'1. Order'!F1196)","v":{"$error":"#N/A"}},{"$f":"IF('1. Order'!G1196=\"\",\"\",'1. Order'!G1196)","v":""},{"$f":"IF('1. Order'!H1196=\"\",\"\",'1. Order'!H1196)","v":""},{"$f":"IF('1. Order'!I1196=\"\",\"\",'1. Order'!I1196)","v":""},{"$f":"IF('1. Order'!J1196=\"\",\"\",'1. Order'!J1196)","v":""},{"$f":"IF('1. Order'!K1196=\"\",\"\",'1. Order'!K1196)","v":""},{"$f":"IF('1. Order'!L1196=\"\",\"\",'1. Order'!L1196)","v":""},{"$f":"IF('1. Order'!M1196=\"\",\"\",'1. Order'!M1196)","v":""},{"$f":"IF('1. Order'!N1196=\"\",\"\",'1. Order'!N1196)","v":""},{"$f":"IF('1. Order'!O1196=\"\",\"\",'1. Order'!O1196)","v":{"$error":"#N/A"}},{"$f":"IF('1. Order'!P1196=\"\",\"\",'1. Order'!P1196)","v":{"$error":"#N/A"}},{"$f":"IF('1. Order'!Q1196=\"\",\"\",'1. Order'!Q1196)","v":""},{"$f":"IF('1. Order'!S1196=\"\",\"\",'1. Order'!S1196)","v":""},{"$f":"IF('1. Order'!T1196=\"\",\"\",'1. Order'!T1196)","v":""},{"$f":"IF('1. Order'!W1196=\"\",\"\",'1. Order'!W1196)","v":""},{"$f":"IF('1. Order'!X1196=\"\",\"\",'1. Order'!X1196)","v":""},{"$f":"IF('1. Order'!Y1196=\"\",\"\",'1. Order'!Y1196)","v":"EUR"},{"$f":"IF('1. Order'!Z1196=\"\",\"\",'1. Order'!Z1196)","v":""},{"$f":"IF('1. Order'!AA1196=\"\",\"\",'1. Order'!AA1196)","v":""},{"$f":"IF('1. Order'!AB1196=\"\",\"\",'1. Order'!AB1196)","v":""},null,{"$f":"IF('1. Order'!AT1196=\"\",\"\",'1. Order'!AT1196)","v":""},{"$f":"IF('1. Order'!AU1196=\"\",\"\",'1. Order'!AU1196)","v":""},null,null,null,null,null,null,null,{"$f":"IF('1. Order'!AY1196=\"\",\"\",'1. Order'!AY1196)","v":""},{"$f":"IF('1. Order'!AZ1196=\"\",\"\",'1. Order'!AZ1196)","v":""},{"$f":"IF('1. Order'!BA1196=\"\",\"\",'1. Order'!BA1196)","v":""},{"$f":"IF('1. Order'!BB1196=\"\",\"\",'1. Order'!BB1196)","v":""},{"$f":"IF('1. Order'!BD1196=\"\",\"\",'1. Order'!BD1196)","v":""},{"$f":"IF('1. Order'!BE1196=\"\",\"\",'1. Order'!BE1196)","v":""},{"$f":"IF('1. Order'!BF1196=\"\",\"\",'1. Order'!BF1196)","v":""},{"$f":"IF('1. Order'!BG1196=\"\",\"\",'1. Order'!BG1196)","v":""},{"$f":"IF('1. Order'!BH1196=\"\",\"\",'1. Order'!BH1196)","v":"ZWO"}]
[{"$f":"IF('1. Order'!F1197=\"\",\"\",'1. Order'!F1197)","v":{"$error":"#N/A"}},{"$f":"IF('1. Order'!G1197=\"\",\"\",'1. Order'!G1197)","v":""},{"$f":"IF('1. Order'!H1197=\"\",\"\",'1. Order'!H1197)","v":""},{"$f":"IF('1. Order'!I1197=\"\",\"\",'1. Order'!I1197)","v":""},{"$f":"IF('1. Order'!J1197=\"\",\"\",'1. Order'!J1197)","v":""},{"$f":"IF('1. Order'!K1197=\"\",\"\",'1. Order'!K1197)","v":""},{"$f":"IF('1. Order'!L1197=\"\",\"\",'1. Order'!L1197)","v":""},{"$f":"IF('1. Order'!M1197=\"\",\"\",'1. Order'!M1197)","v":""},{"$f":"IF('1. Order'!N1197=\"\",\"\",'1. Order'!N1197)","v":""},{"$f":"IF('1. Order'!O1197=\"\",\"\",'1. Order'!O1197)","v":{"$error":"#N/A"}},{"$f":"IF('1. Order'!P1197=\"\",\"\",'1. Order'!P1197)","v":{"$error":"#N/A"}},{"$f":"IF('1. Order'!Q1197=\"\",\"\",'1. Order'!Q1197)","v":""},{"$f":"IF('1. Order'!S1197=\"\",\"\",'1. Order'!S1197)","v":""},{"$f":"IF('1. Order'!T1197=\"\",\"\",'1. Order'!T1197)","v":""},{"$f":"IF('1. Order'!W1197=\"\",\"\",'1. Order'!W1197)","v":""},{"$f":"IF('1. Order'!X1197=\"\",\"\",'1. Order'!X1197)","v":""},{"$f":"IF('1. Order'!Y1197=\"\",\"\",'1. Order'!Y1197)","v":"EUR"},{"$f":"IF('1. Order'!Z1197=\"\",\"\",'1. Order'!Z1197)","v":""},{"$f":"IF('1. Order'!AA1197=\"\",\"\",'1. Order'!AA1197)","v":""},{"$f":"IF('1. Order'!AB1197=\"\",\"\",'1. Order'!AB1197)","v":""},null,{"$f":"IF('1. Order'!AT1197=\"\",\"\",'1. Order'!AT1197)","v":""},{"$f":"IF('1. Order'!AU1197=\"\",\"\",'1. Order'!AU1197)","v":""},null,null,null,null,null,null,null,{"$f":"IF('1. Order'!AY1197=\"\",\"\",'1. Order'!AY1197)","v":""},{"$f":"IF('1. Order'!AZ1197=\"\",\"\",'1. Order'!AZ1197)","v":""},{"$f":"IF('1. Order'!BA1197=\"\",\"\",'1. Order'!BA1197)","v":""},{"$f":"IF('1. Order'!BB1197=\"\",\"\",'1. Order'!BB1197)","v":""},{"$f":"IF('1. Order'!BD1197=\"\",\"\",'1. Order'!BD1197)","v":""},{"$f":"IF('1. Order'!BE1197=\"\",\"\",'1. Order'!BE1197)","v":""},{"$f":"IF('1. Order'!BF1197=\"\",\"\",'1. Order'!BF1197)","v":""},{"$f":"IF('1. Order'!BG1197=\"\",\"\",'1. Order'!BG1197)","v":""},{"$f":"IF('1. Order'!BH1197=\"\",\"\",'1. Order'!BH1197)","v":"ZWO"}]
[{"$f":"IF('1. Order'!F1198=\"\",\"\",'1. Order'!F1198)","v":{"$error":"#N/A"}},{"$f":"IF('1. Order'!G1198=\"\",\"\",'1. Order'!G1198)","v":""},{"$f":"IF('1. Order'!H1198=\"\",\"\",'1. Order'!H1198)","v":""},{"$f":"IF('1. Order'!I1198=\"\",\"\",'1. Order'!I1198)","v":""},{"$f":"IF('1. Order'!J1198=\"\",\"\",'1. Order'!J1198)","v":""},{"$f":"IF('1. Order'!K1198=\"\",\"\",'1. Order'!K1198)","v":""},{"$f":"IF('1. Order'!L1198=\"\",\"\",'1. Order'!L1198)","v":""},{"$f":"IF('1. Order'!M1198=\"\",\"\",'1. Order'!M1198)","v":""},{"$f":"IF('1. Order'!N1198=\"\",\"\",'1. Order'!N1198)","v":""},{"$f":"IF('1. Order'!O1198=\"\",\"\",'1. Order'!O1198)","v":{"$error":"#N/A"}},{"$f":"IF('1. Order'!P1198=\"\",\"\",'1. Order'!P1198)","v":{"$error":"#N/A"}},{"$f":"IF('1. Order'!Q1198=\"\",\"\",'1. Order'!Q1198)","v":""},{"$f":"IF('1. Order'!S1198=\"\",\"\",'1. Order'!S1198)","v":""},{"$f":"IF('1. Order'!T1198=\"\",\"\",'1. Order'!T1198)","v":""},{"$f":"IF('1. Order'!W1198=\"\",\"\",'1. Order'!W1198)","v":""},{"$f":"IF('1. Order'!X1198=\"\",\"\",'1. Order'!X1198)","v":""},{"$f":"IF('1. Order'!Y1198=\"\",\"\",'1. Order'!Y1198)","v":"EUR"},{"$f":"IF('1. Order'!Z1198=\"\",\"\",'1. Order'!Z1198)","v":""},{"$f":"IF('1. Order'!AA1198=\"\",\"\",'1. Order'!AA1198)","v":""},{"$f":"IF('1. Order'!AB1198=\"\",\"\",'1. Order'!AB1198)","v":""},null,{"$f":"IF('1. Order'!AT1198=\"\",\"\",'1. Order'!AT1198)","v":""},{"$f":"IF('1. Order'!AU1198=\"\",\"\",'1. Order'!AU1198)","v":""},null,null,null,null,null,null,null,{"$f":"IF('1. Order'!AY1198=\"\",\"\",'1. Order'!AY1198)","v":""},{"$f":"IF('1. Order'!AZ1198=\"\",\"\",'1. Order'!AZ1198)","v":""},{"$f":"IF('1. Order'!BA1198=\"\",\"\",'1. Order'!BA1198)","v":""},{"$f":"IF('1. Order'!BB1198=\"\",\"\",'1. Order'!BB1198)","v":""},{"$f":"IF('1. Order'!BD1198=\"\",\"\",'1. Order'!BD1198)","v":""},{"$f":"IF('1. Order'!BE1198=\"\",\"\",'1. Order'!BE1198)","v":""},{"$f":"IF('1. Order'!BF1198=\"\",\"\",'1. Order'!BF1198)","v":""},{"$f":"IF('1. Order'!BG1198=\"\",\"\",'1. Order'!BG1198)","v":""},{"$f":"IF('1. Order'!BH1198=\"\",\"\",'1. Order'!BH1198)","v":"ZWO"}]
[{"$f":"IF('1. Order'!F1199=\"\",\"\",'1. Order'!F1199)","v":{"$error":"#N/A"}},{"$f":"IF('1. Order'!G1199=\"\",\"\",'1. Order'!G1199)","v":""},{"$f":"IF('1. Order'!H1199=\"\",\"\",'1. Order'!H1199)","v":""},{"$f":"IF('1. Order'!I1199=\"\",\"\",'1. Order'!I1199)","v":""},{"$f":"IF('1. Order'!J1199=\"\",\"\",'1. Order'!J1199)","v":""},{"$f":"IF('1. Order'!K1199=\"\",\"\",'1. Order'!K1199)","v":""},{"$f":"IF('1. Order'!L1199=\"\",\"\",'1. Order'!L1199)","v":""},{"$f":"IF('1. Order'!M1199=\"\",\"\",'1. Order'!M1199)","v":""},{"$f":"IF('1. Order'!N1199=\"\",\"\",'1. Order'!N1199)","v":""},{"$f":"IF('1. Order'!O1199=\"\",\"\",'1. Order'!O1199)","v":{"$error":"#N/A"}},{"$f":"IF('1. Order'!P1199=\"\",\"\",'1. Order'!P1199)","v":{"$error":"#N/A"}},{"$f":"IF('1. Order'!Q1199=\"\",\"\",'1. Order'!Q1199)","v":""},{"$f":"IF('1. Order'!S1199=\"\",\"\",'1. Order'!S1199)","v":""},{"$f":"IF('1. Order'!T1199=\"\",\"\",'1. Order'!T1199)","v":""},{"$f":"IF('1. Order'!W1199=\"\",\"\",'1. Order'!W1199)","v":""},{"$f":"IF('1. Order'!X1199=\"\",\"\",'1. Order'!X1199)","v":""},{"$f":"IF('1. Order'!Y1199=\"\",\"\",'1. Order'!Y1199)","v":"EUR"},{"$f":"IF('1. Order'!Z1199=\"\",\"\",'1. Order'!Z1199)","v":""},{"$f":"IF('1. Order'!AA1199=\"\",\"\",'1. Order'!AA1199)","v":""},{"$f":"IF('1. Order'!AB1199=\"\",\"\",'1. Order'!AB1199)","v":""},null,{"$f":"IF('1. Order'!AT1199=\"\",\"\",'1. Order'!AT1199)","v":""},{"$f":"IF('1. Order'!AU1199=\"\",\"\",'1. Order'!AU1199)","v":""},null,null,null,null,null,null,null,{"$f":"IF('1. Order'!AY1199=\"\",\"\",'1. Order'!AY1199)","v":""},{"$f":"IF('1. Order'!AZ1199=\"\",\"\",'1. Order'!AZ1199)","v":""},{"$f":"IF('1. Order'!BA1199=\"\",\"\",'1. Order'!BA1199)","v":""},{"$f":"IF('1. Order'!BB1199=\"\",\"\",'1. Order'!BB1199)","v":""},{"$f":"IF('1. Order'!BD1199=\"\",\"\",'1. Order'!BD1199)","v":""},{"$f":"IF('1. Order'!BE1199=\"\",\"\",'1. Order'!BE1199)","v":""},{"$f":"IF('1. Order'!BF1199=\"\",\"\",'1. Order'!BF1199)","v":""},{"$f":"IF('1. Order'!BG1199=\"\",\"\",'1. Order'!BG1199)","v":""},{"$f":"IF('1. Order'!BH1199=\"\",\"\",'1. Order'!BH1199)","v":"ZWO"}]
[{"$f":"IF('1. Order'!F1200=\"\",\"\",'1. Order'!F1200)","v":{"$error":"#N/A"}},{"$f":"IF('1. Order'!G1200=\"\",\"\",'1. Order'!G1200)","v":""},{"$f":"IF('1. Order'!H1200=\"\",\"\",'1. Order'!H1200)","v":""},{"$f":"IF('1. Order'!I1200=\"\",\"\",'1. Order'!I1200)","v":""},{"$f":"IF('1. Order'!J1200=\"\",\"\",'1. Order'!J1200)","v":""},{"$f":"IF('1. Order'!K1200=\"\",\"\",'1. Order'!K1200)","v":""},{"$f":"IF('1. Order'!L1200=\"\",\"\",'1. Order'!L1200)","v":""},{"$f":"IF('1. Order'!M1200=\"\",\"\",'1. Order'!M1200)","v":""},{"$f":"IF('1. Order'!N1200=\"\",\"\",'1. Order'!N1200)","v":""},{"$f":"IF('1. Order'!O1200=\"\",\"\",'1. Order'!O1200)","v":{"$error":"#N/A"}},{"$f":"IF('1. Order'!P1200=\"\",\"\",'1. Order'!P1200)","v":{"$error":"#N/A"}},{"$f":"IF('1. Order'!Q1200=\"\",\"\",'1. Order'!Q1200)","v":""},{"$f":"IF('1. Order'!S1200=\"\",\"\",'1. Order'!S1200)","v":""},{"$f":"IF('1. Order'!T1200=\"\",\"\",'1. Order'!T1200)","v":""},{"$f":"IF('1. Order'!W1200=\"\",\"\",'1. Order'!W1200)","v":""},{"$f":"IF('1. Order'!X1200=\"\",\"\",'1. Order'!X1200)","v":""},{"$f":"IF('1. Order'!Y1200=\"\",\"\",'1. Order'!Y1200)","v":"EUR"},{"$f":"IF('1. Order'!Z1200=\"\",\"\",'1. Order'!Z1200)","v":""},{"$f":"IF('1. Order'!AA1200=\"\",\"\",'1. Order'!AA1200)","v":""},{"$f":"IF('1. Order'!AB1200=\"\",\"\",'1. Order'!AB1200)","v":""},null,{"$f":"IF('1. Order'!AT1200=\"\",\"\",'1. Order'!AT1200)","v":""},{"$f":"IF('1. Order'!AU1200=\"\",\"\",'1. Order'!AU1200)","v":""},null,null,null,null,null,null,null,{"$f":"IF('1. Order'!AY1200=\"\",\"\",'1. Order'!AY1200)","v":""},{"$f":"IF('1. Order'!AZ1200=\"\",\"\",'1. Order'!AZ1200)","v":""},{"$f":"IF('1. Order'!BA1200=\"\",\"\",'1. Order'!BA1200)","v":""},{"$f":"IF('1. Order'!BB1200=\"\",\"\",'1. Order'!BB1200)","v":""},{"$f":"IF('1. Order'!BD1200=\"\",\"\",'1. Order'!BD1200)","v":""},{"$f":"IF('1. Order'!BE1200=\"\",\"\",'1. Order'!BE1200)","v":""},{"$f":"IF('1. Order'!BF1200=\"\",\"\",'1. Order'!BF1200)","v":""},{"$f":"IF('1. Order'!BG1200=\"\",\"\",'1. Order'!BG1200)","v":""},{"$f":"IF('1. Order'!BH1200=\"\",\"\",'1. Order'!BH1200)","v":"ZWO"}]
[{"$f":"IF('1. Order'!F1201=\"\",\"\",'1. Order'!F1201)","v":{"$error":"#N/A"}},{"$f":"IF('1. Order'!G1201=\"\",\"\",'1. Order'!G1201)","v":""},{"$f":"IF('1. Order'!H1201=\"\",\"\",'1. Order'!H1201)","v":""},{"$f":"IF('1. Order'!I1201=\"\",\"\",'1. Order'!I1201)","v":""},{"$f":"IF('1. Order'!J1201=\"\",\"\",'1. Order'!J1201)","v":""},{"$f":"IF('1. Order'!K1201=\"\",\"\",'1. Order'!K1201)","v":""},{"$f":"IF('1. Order'!L1201=\"\",\"\",'1. Order'!L1201)","v":""},{"$f":"IF('1. Order'!M1201=\"\",\"\",'1. Order'!M1201)","v":""},{"$f":"IF('1. Order'!N1201=\"\",\"\",'1. Order'!N1201)","v":""},{"$f":"IF('1. Order'!O1201=\"\",\"\",'1. Order'!O1201)","v":{"$error":"#N/A"}},{"$f":"IF('1. Order'!P1201=\"\",\"\",'1. Order'!P1201)","v":{"$error":"#N/A"}},{"$f":"IF('1. Order'!Q1201=\"\",\"\",'1. Order'!Q1201)","v":""},{"$f":"IF('1. Order'!S1201=\"\",\"\",'1. Order'!S1201)","v":""},{"$f":"IF('1. Order'!T1201=\"\",\"\",'1. Order'!T1201)","v":""},{"$f":"IF('1. Order'!W1201=\"\",\"\",'1. Order'!W1201)","v":""},{"$f":"IF('1. Order'!X1201=\"\",\"\",'1. Order'!X1201)","v":""},{"$f":"IF('1. Order'!Y1201=\"\",\"\",'1. Order'!Y1201)","v":"EUR"},{"$f":"IF('1. Order'!Z1201=\"\",\"\",'1. Order'!Z1201)","v":""},{"$f":"IF('1. Order'!AA1201=\"\",\"\",'1. Order'!AA1201)","v":""},{"$f":"IF('1. Order'!AB1201=\"\",\"\",'1. Order'!AB1201)","v":""},null,{"$f":"IF('1. Order'!AT1201=\"\",\"\",'1. Order'!AT1201)","v":""},{"$f":"IF('1. Order'!AU1201=\"\",\"\",'1. Order'!AU1201)","v":""},null,null,null,null,null,null,null,{"$f":"IF('1. Order'!AY1201=\"\",\"\",'1. Order'!AY1201)","v":""},{"$f":"IF('1. Order'!AZ1201=\"\",\"\",'1. Order'!AZ1201)","v":""},{"$f":"IF('1. Order'!BA1201=\"\",\"\",'1. Order'!BA1201)","v":""},{"$f":"IF('1. Order'!BB1201=\"\",\"\",'1. Order'!BB1201)","v":""},{"$f":"IF('1. Order'!BD1201=\"\",\"\",'1. Order'!BD1201)","v":""},{"$f":"IF('1. Order'!BE1201=\"\",\"\",'1. Order'!BE1201)","v":""},{"$f":"IF('1. Order'!BF1201=\"\",\"\",'1. Order'!BF1201)","v":""},{"$f":"IF('1. Order'!BG1201=\"\",\"\",'1. Order'!BG1201)","v":""},{"$f":"IF('1. Order'!BH1201=\"\",\"\",'1. Order'!BH1201)","v":"ZWO"}]
[{"$f":"IF('1. Order'!F1202=\"\",\"\",'1. Order'!F1202)","v":{"$error":"#N/A"}},{"$f":"IF('1. Order'!G1202=\"\",\"\",'1. Order'!G1202)","v":""},{"$f":"IF('1. Order'!H1202=\"\",\"\",'1. Order'!H1202)","v":""},{"$f":"IF('1. Order'!I1202=\"\",\"\",'1. Order'!I1202)","v":""},{"$f":"IF('1. Order'!J1202=\"\",\"\",'1. Order'!J1202)","v":""},{"$f":"IF('1. Order'!K1202=\"\",\"\",'1. Order'!K1202)","v":""},{"$f":"IF('1. Order'!L1202=\"\",\"\",'1. Order'!L1202)","v":""},{"$f":"IF('1. Order'!M1202=\"\",\"\",'1. Order'!M1202)","v":""},{"$f":"IF('1. Order'!N1202=\"\",\"\",'1. Order'!N1202)","v":""},{"$f":"IF('1. Order'!O1202=\"\",\"\",'1. Order'!O1202)","v":{"$error":"#N/A"}},{"$f":"IF('1. Order'!P1202=\"\",\"\",'1. Order'!P1202)","v":{"$error":"#N/A"}},{"$f":"IF('1. Order'!Q1202=\"\",\"\",'1. Order'!Q1202)","v":""},{"$f":"IF('1. Order'!S1202=\"\",\"\",'1. Order'!S1202)","v":""},{"$f":"IF('1. Order'!T1202=\"\",\"\",'1. Order'!T1202)","v":""},{"$f":"IF('1. Order'!W1202=\"\",\"\",'1. Order'!W1202)","v":""},{"$f":"IF('1. Order'!X1202=\"\",\"\",'1. Order'!X1202)","v":""},{"$f":"IF('1. Order'!Y1202=\"\",\"\",'1. Order'!Y1202)","v":"EUR"},{"$f":"IF('1. Order'!Z1202=\"\",\"\",'1. Order'!Z1202)","v":""},{"$f":"IF('1. Order'!AA1202=\"\",\"\",'1. Order'!AA1202)","v":""},{"$f":"IF('1. Order'!AB1202=\"\",\"\",'1. Order'!AB1202)","v":""},null,{"$f":"IF('1. Order'!AT1202=\"\",\"\",'1. Order'!AT1202)","v":""},{"$f":"IF('1. Order'!AU1202=\"\",\"\",'1. Order'!AU1202)","v":""},null,null,null,null,null,null,null,{"$f":"IF('1. Order'!AY1202=\"\",\"\",'1. Order'!AY1202)","v":""},{"$f":"IF('1. Order'!AZ1202=\"\",\"\",'1. Order'!AZ1202)","v":""},{"$f":"IF('1. Order'!BA1202=\"\",\"\",'1. Order'!BA1202)","v":""},{"$f":"IF('1. Order'!BB1202=\"\",\"\",'1. Order'!BB1202)","v":""},{"$f":"IF('1. Order'!BD1202=\"\",\"\",'1. Order'!BD1202)","v":""},{"$f":"IF('1. Order'!BE1202=\"\",\"\",'1. Order'!BE1202)","v":""},{"$f":"IF('1. Order'!BF1202=\"\",\"\",'1. Order'!BF1202)","v":""},{"$f":"IF('1. Order'!BG1202=\"\",\"\",'1. Order'!BG1202)","v":""},{"$f":"IF('1. Order'!BH1202=\"\",\"\",'1. Order'!BH1202)","v":"ZWO"}]
[{"$f":"IF('1. Order'!F1203=\"\",\"\",'1. Order'!F1203)","v":{"$error":"#N/A"}},{"$f":"IF('1. Order'!G1203=\"\",\"\",'1. Order'!G1203)","v":""},{"$f":"IF('1. Order'!H1203=\"\",\"\",'1. Order'!H1203)","v":""},{"$f":"IF('1. Order'!I1203=\"\",\"\",'1. Order'!I1203)","v":""},{"$f":"IF('1. Order'!J1203=\"\",\"\",'1. Order'!J1203)","v":""},{"$f":"IF('1. Order'!K1203=\"\",\"\",'1. Order'!K1203)","v":""},{"$f":"IF('1. Order'!L1203=\"\",\"\",'1. Order'!L1203)","v":""},{"$f":"IF('1. Order'!M1203=\"\",\"\",'1. Order'!M1203)","v":""},{"$f":"IF('1. Order'!N1203=\"\",\"\",'1. Order'!N1203)","v":""},{"$f":"IF('1. Order'!O1203=\"\",\"\",'1. Order'!O1203)","v":{"$error":"#N/A"}},{"$f":"IF('1. Order'!P1203=\"\",\"\",'1. Order'!P1203)","v":{"$error":"#N/A"}},{"$f":"IF('1. Order'!Q1203=\"\",\"\",'1. Order'!Q1203)","v":""},{"$f":"IF('1. Order'!S1203=\"\",\"\",'1. Order'!S1203)","v":""},{"$f":"IF('1. Order'!T1203=\"\",\"\",'1. Order'!T1203)","v":""},{"$f":"IF('1. Order'!W1203=\"\",\"\",'1. Order'!W1203)","v":""},{"$f":"IF('1. Order'!X1203=\"\",\"\",'1. Order'!X1203)","v":""},{"$f":"IF('1. Order'!Y1203=\"\",\"\",'1. Order'!Y1203)","v":"EUR"},{"$f":"IF('1. Order'!Z1203=\"\",\"\",'1. Order'!Z1203)","v":""},{"$f":"IF('1. Order'!AA1203=\"\",\"\",'1. Order'!AA1203)","v":""},{"$f":"IF('1. Order'!AB1203=\"\",\"\",'1. Order'!AB1203)","v":""},null,{"$f":"IF('1. Order'!AT1203=\"\",\"\",'1. Order'!AT1203)","v":""},{"$f":"IF('1. Order'!AU1203=\"\",\"\",'1. Order'!AU1203)","v":""},null,null,null,null,null,null,null,{"$f":"IF('1. Order'!AY1203=\"\",\"\",'1. Order'!AY1203)","v":""},{"$f":"IF('1. Order'!AZ1203=\"\",\"\",'1. Order'!AZ1203)","v":""},{"$f":"IF('1. Order'!BA1203=\"\",\"\",'1. Order'!BA1203)","v":""},{"$f":"IF('1. Order'!BB1203=\"\",\"\",'1. Order'!BB1203)","v":""},{"$f":"IF('1. Order'!BD1203=\"\",\"\",'1. Order'!BD1203)","v":""},{"$f":"IF('1. Order'!BE1203=\"\",\"\",'1. Order'!BE1203)","v":""},{"$f":"IF('1. Order'!BF1203=\"\",\"\",'1. Order'!BF1203)","v":""},{"$f":"IF('1. Order'!BG1203=\"\",\"\",'1. Order'!BG1203)","v":""},{"$f":"IF('1. Order'!BH1203=\"\",\"\",'1. Order'!BH1203)","v":"ZWO"}]
[{"$f":"IF('1. Order'!F1204=\"\",\"\",'1. Order'!F1204)","v":{"$error":"#N/A"}},{"$f":"IF('1. Order'!G1204=\"\",\"\",'1. Order'!G1204)","v":""},{"$f":"IF('1. Order'!H1204=\"\",\"\",'1. Order'!H1204)","v":""},{"$f":"IF('1. Order'!I1204=\"\",\"\",'1. Order'!I1204)","v":""},{"$f":"IF('1. Order'!J1204=\"\",\"\",'1. Order'!J1204)","v":""},{"$f":"IF('1. Order'!K1204=\"\",\"\",'1. Order'!K1204)","v":""},{"$f":"IF('1. Order'!L1204=\"\",\"\",'1. Order'!L1204)","v":""},{"$f":"IF('1. Order'!M1204=\"\",\"\",'1. Order'!M1204)","v":""},{"$f":"IF('1. Order'!N1204=\"\",\"\",'1. Order'!N1204)","v":""},{"$f":"IF('1. Order'!O1204=\"\",\"\",'1. Order'!O1204)","v":{"$error":"#N/A"}},{"$f":"IF('1. Order'!P1204=\"\",\"\",'1. Order'!P1204)","v":{"$error":"#N/A"}},{"$f":"IF('1. Order'!Q1204=\"\",\"\",'1. Order'!Q1204)","v":""},{"$f":"IF('1. Order'!S1204=\"\",\"\",'1. Order'!S1204)","v":""},{"$f":"IF('1. Order'!T1204=\"\",\"\",'1. Order'!T1204)","v":""},{"$f":"IF('1. Order'!W1204=\"\",\"\",'1. Order'!W1204)","v":""},{"$f":"IF('1. Order'!X1204=\"\",\"\",'1. Order'!X1204)","v":""},{"$f":"IF('1. Order'!Y1204=\"\",\"\",'1. Order'!Y1204)","v":"EUR"},{"$f":"IF('1. Order'!Z1204=\"\",\"\",'1. Order'!Z1204)","v":""},{"$f":"IF('1. Order'!AA1204=\"\",\"\",'1. Order'!AA1204)","v":""},{"$f":"IF('1. Order'!AB1204=\"\",\"\",'1. Order'!AB1204)","v":""},null,{"$f":"IF('1. Order'!AT1204=\"\",\"\",'1. Order'!AT1204)","v":""},{"$f":"IF('1. Order'!AU1204=\"\",\"\",'1. Order'!AU1204)","v":""},null,null,null,null,null,null,null,{"$f":"IF('1. Order'!AY1204=\"\",\"\",'1. Order'!AY1204)","v":""},{"$f":"IF('1. Order'!AZ1204=\"\",\"\",'1. Order'!AZ1204)","v":""},{"$f":"IF('1. Order'!BA1204=\"\",\"\",'1. Order'!BA1204)","v":""},{"$f":"IF('1. Order'!BB1204=\"\",\"\",'1. Order'!BB1204)","v":""},{"$f":"IF('1. Order'!BD1204=\"\",\"\",'1. Order'!BD1204)","v":""},{"$f":"IF('1. Order'!BE1204=\"\",\"\",'1. Order'!BE1204)","v":""},{"$f":"IF('1. Order'!BF1204=\"\",\"\",'1. Order'!BF1204)","v":""},{"$f":"IF('1. Order'!BG1204=\"\",\"\",'1. Order'!BG1204)","v":""},{"$f":"IF('1. Order'!BH1204=\"\",\"\",'1. Order'!BH1204)","v":"ZWO"}]
[{"$f":"IF('1. Order'!F1205=\"\",\"\",'1. Order'!F1205)","v":{"$error":"#N/A"}},{"$f":"IF('1. Order'!G1205=\"\",\"\",'1. Order'!G1205)","v":""},{"$f":"IF('1. Order'!H1205=\"\",\"\",'1. Order'!H1205)","v":""},{"$f":"IF('1. Order'!I1205=\"\",\"\",'1. Order'!I1205)","v":""},{"$f":"IF('1. Order'!J1205=\"\",\"\",'1. Order'!J1205)","v":""},{"$f":"IF('1. Order'!K1205=\"\",\"\",'1. Order'!K1205)","v":""},{"$f":"IF('1. Order'!L1205=\"\",\"\",'1. Order'!L1205)","v":""},{"$f":"IF('1. Order'!M1205=\"\",\"\",'1. Order'!M1205)","v":""},{"$f":"IF('1. Order'!N1205=\"\",\"\",'1. Order'!N1205)","v":""},{"$f":"IF('1. Order'!O1205=\"\",\"\",'1. Order'!O1205)","v":{"$error":"#N/A"}},{"$f":"IF('1. Order'!P1205=\"\",\"\",'1. Order'!P1205)","v":{"$error":"#N/A"}},{"$f":"IF('1. Order'!Q1205=\"\",\"\",'1. Order'!Q1205)","v":""},{"$f":"IF('1. Order'!S1205=\"\",\"\",'1. Order'!S1205)","v":""},{"$f":"IF('1. Order'!T1205=\"\",\"\",'1. Order'!T1205)","v":""},{"$f":"IF('1. Order'!W1205=\"\",\"\",'1. Order'!W1205)","v":""},{"$f":"IF('1. Order'!X1205=\"\",\"\",'1. Order'!X1205)","v":""},{"$f":"IF('1. Order'!Y1205=\"\",\"\",'1. Order'!Y1205)","v":"EUR"},{"$f":"IF('1. Order'!Z1205=\"\",\"\",'1. Order'!Z1205)","v":""},{"$f":"IF('1. Order'!AA1205=\"\",\"\",'1. Order'!AA1205)","v":""},{"$f":"IF('1. Order'!AB1205=\"\",\"\",'1. Order'!AB1205)","v":""},null,{"$f":"IF('1. Order'!AT1205=\"\",\"\",'1. Order'!AT1205)","v":""},{"$f":"IF('1. Order'!AU1205=\"\",\"\",'1. Order'!AU1205)","v":""},null,null,null,null,null,null,null,{"$f":"IF('1. Order'!AY1205=\"\",\"\",'1. Order'!AY1205)","v":""},{"$f":"IF('1. Order'!AZ1205=\"\",\"\",'1. Order'!AZ1205)","v":""},{"$f":"IF('1. Order'!BA1205=\"\",\"\",'1. Order'!BA1205)","v":""},{"$f":"IF('1. Order'!BB1205=\"\",\"\",'1. Order'!BB1205)","v":""},{"$f":"IF('1. Order'!BD1205=\"\",\"\",'1. Order'!BD1205)","v":""},{"$f":"IF('1. Order'!BE1205=\"\",\"\",'1. Order'!BE1205)","v":""},{"$f":"IF('1. Order'!BF1205=\"\",\"\",'1. Order'!BF1205)","v":""},{"$f":"IF('1. Order'!BG1205=\"\",\"\",'1. Order'!BG1205)","v":""},{"$f":"IF('1. Order'!BH1205=\"\",\"\",'1. Order'!BH1205)","v":"ZWO"}]
[{"$f":"IF('1. Order'!F1206=\"\",\"\",'1. Order'!F1206)","v":{"$error":"#N/A"}},{"$f":"IF('1. Order'!G1206=\"\",\"\",'1. Order'!G1206)","v":""},{"$f":"IF('1. Order'!H1206=\"\",\"\",'1. Order'!H1206)","v":""},{"$f":"IF('1. Order'!I1206=\"\",\"\",'1. Order'!I1206)","v":""},{"$f":"IF('1. Order'!J1206=\"\",\"\",'1. Order'!J1206)","v":""},{"$f":"IF('1. Order'!K1206=\"\",\"\",'1. Order'!K1206)","v":""},{"$f":"IF('1. Order'!L1206=\"\",\"\",'1. Order'!L1206)","v":""},{"$f":"IF('1. Order'!M1206=\"\",\"\",'1. Order'!M1206)","v":""},{"$f":"IF('1. Order'!N1206=\"\",\"\",'1. Order'!N1206)","v":""},{"$f":"IF('1. Order'!O1206=\"\",\"\",'1. Order'!O1206)","v":{"$error":"#N/A"}},{"$f":"IF('1. Order'!P1206=\"\",\"\",'1. Order'!P1206)","v":{"$error":"#N/A"}},{"$f":"IF('1. Order'!Q1206=\"\",\"\",'1. Order'!Q1206)","v":""},{"$f":"IF('1. Order'!S1206=\"\",\"\",'1. Order'!S1206)","v":""},{"$f":"IF('1. Order'!T1206=\"\",\"\",'1. Order'!T1206)","v":""},{"$f":"IF('1. Order'!W1206=\"\",\"\",'1. Order'!W1206)","v":""},{"$f":"IF('1. Order'!X1206=\"\",\"\",'1. Order'!X1206)","v":""},{"$f":"IF('1. Order'!Y1206=\"\",\"\",'1. Order'!Y1206)","v":"EUR"},{"$f":"IF('1. Order'!Z1206=\"\",\"\",'1. Order'!Z1206)","v":""},{"$f":"IF('1. Order'!AA1206=\"\",\"\",'1. Order'!AA1206)","v":""},{"$f":"IF('1. Order'!AB1206=\"\",\"\",'1. Order'!AB1206)","v":""},null,{"$f":"IF('1. Order'!AT1206=\"\",\"\",'1. Order'!AT1206)","v":""},{"$f":"IF('1. Order'!AU1206=\"\",\"\",'1. Order'!AU1206)","v":""},null,null,null,null,null,null,null,{"$f":"IF('1. Order'!AY1206=\"\",\"\",'1. Order'!AY1206)","v":""},{"$f":"IF('1. Order'!AZ1206=\"\",\"\",'1. Order'!AZ1206)","v":""},{"$f":"IF('1. Order'!BA1206=\"\",\"\",'1. Order'!BA1206)","v":""},{"$f":"IF('1. Order'!BB1206=\"\",\"\",'1. Order'!BB1206)","v":""},{"$f":"IF('1. Order'!BD1206=\"\",\"\",'1. Order'!BD1206)","v":""},{"$f":"IF('1. Order'!BE1206=\"\",\"\",'1. Order'!BE1206)","v":""},{"$f":"IF('1. Order'!BF1206=\"\",\"\",'1. Order'!BF1206)","v":""},{"$f":"IF('1. Order'!BG1206=\"\",\"\",'1. Order'!BG1206)","v":""},{"$f":"IF('1. Order'!BH1206=\"\",\"\",'1. Order'!BH1206)","v":"ZWO"}]
[{"$f":"IF('1. Order'!F1207=\"\",\"\",'1. Order'!F1207)","v":{"$error":"#N/A"}},{"$f":"IF('1. Order'!G1207=\"\",\"\",'1. Order'!G1207)","v":""},{"$f":"IF('1. Order'!H1207=\"\",\"\",'1. Order'!H1207)","v":""},{"$f":"IF('1. Order'!I1207=\"\",\"\",'1. Order'!I1207)","v":""},{"$f":"IF('1. Order'!J1207=\"\",\"\",'1. Order'!J1207)","v":""},{"$f":"IF('1. Order'!K1207=\"\",\"\",'1. Order'!K1207)","v":""},{"$f":"IF('1. Order'!L1207=\"\",\"\",'1. Order'!L1207)","v":""},{"$f":"IF('1. Order'!M1207=\"\",\"\",'1. Order'!M1207)","v":""},{"$f":"IF('1. Order'!N1207=\"\",\"\",'1. Order'!N1207)","v":""},{"$f":"IF('1. Order'!O1207=\"\",\"\",'1. Order'!O1207)","v":{"$error":"#N/A"}},{"$f":"IF('1. Order'!P1207=\"\",\"\",'1. Order'!P1207)","v":{"$error":"#N/A"}},{"$f":"IF('1. Order'!Q1207=\"\",\"\",'1. Order'!Q1207)","v":""},{"$f":"IF('1. Order'!S1207=\"\",\"\",'1. Order'!S1207)","v":""},{"$f":"IF('1. Order'!T1207=\"\",\"\",'1. Order'!T1207)","v":""},{"$f":"IF('1. Order'!W1207=\"\",\"\",'1. Order'!W1207)","v":""},{"$f":"IF('1. Order'!X1207=\"\",\"\",'1. Order'!X1207)","v":""},{"$f":"IF('1. Order'!Y1207=\"\",\"\",'1. Order'!Y1207)","v":"EUR"},{"$f":"IF('1. Order'!Z1207=\"\",\"\",'1. Order'!Z1207)","v":""},{"$f":"IF('1. Order'!AA1207=\"\",\"\",'1. Order'!AA1207)","v":""},{"$f":"IF('1. Order'!AB1207=\"\",\"\",'1. Order'!AB1207)","v":""},null,{"$f":"IF('1. Order'!AT1207=\"\",\"\",'1. Order'!AT1207)","v":""},{"$f":"IF('1. Order'!AU1207=\"\",\"\",'1. Order'!AU1207)","v":""},null,null,null,null,null,null,null,{"$f":"IF('1. Order'!AY1207=\"\",\"\",'1. Order'!AY1207)","v":""},{"$f":"IF('1. Order'!AZ1207=\"\",\"\",'1. Order'!AZ1207)","v":""},{"$f":"IF('1. Order'!BA1207=\"\",\"\",'1. Order'!BA1207)","v":""},{"$f":"IF('1. Order'!BB1207=\"\",\"\",'1. Order'!BB1207)","v":""},{"$f":"IF('1. Order'!BD1207=\"\",\"\",'1. Order'!BD1207)","v":""},{"$f":"IF('1. Order'!BE1207=\"\",\"\",'1. Order'!BE1207)","v":""},{"$f":"IF('1. Order'!BF1207=\"\",\"\",'1. Order'!BF1207)","v":""},{"$f":"IF('1. Order'!BG1207=\"\",\"\",'1. Order'!BG1207)","v":""},{"$f":"IF('1. Order'!BH1207=\"\",\"\",'1. Order'!BH1207)","v":"ZWO"}]
[{"$f":"IF('1. Order'!F1208=\"\",\"\",'1. Order'!F1208)","v":{"$error":"#N/A"}},{"$f":"IF('1. Order'!G1208=\"\",\"\",'1. Order'!G1208)","v":""},{"$f":"IF('1. Order'!H1208=\"\",\"\",'1. Order'!H1208)","v":""},{"$f":"IF('1. Order'!I1208=\"\",\"\",'1. Order'!I1208)","v":""},{"$f":"IF('1. Order'!J1208=\"\",\"\",'1. Order'!J1208)","v":""},{"$f":"IF('1. Order'!K1208=\"\",\"\",'1. Order'!K1208)","v":""},{"$f":"IF('1. Order'!L1208=\"\",\"\",'1. Order'!L1208)","v":""},{"$f":"IF('1. Order'!M1208=\"\",\"\",'1. Order'!M1208)","v":""},{"$f":"IF('1. Order'!N1208=\"\",\"\",'1. Order'!N1208)","v":""},{"$f":"IF('1. Order'!O1208=\"\",\"\",'1. Order'!O1208)","v":{"$error":"#N/A"}},{"$f":"IF('1. Order'!P1208=\"\",\"\",'1. Order'!P1208)","v":{"$error":"#N/A"}},{"$f":"IF('1. Order'!Q1208=\"\",\"\",'1. Order'!Q1208)","v":""},{"$f":"IF('1. Order'!S1208=\"\",\"\",'1. Order'!S1208)","v":""},{"$f":"IF('1. Order'!T1208=\"\",\"\",'1. Order'!T1208)","v":""},{"$f":"IF('1. Order'!W1208=\"\",\"\",'1. Order'!W1208)","v":""},{"$f":"IF('1. Order'!X1208=\"\",\"\",'1. Order'!X1208)","v":""},{"$f":"IF('1. Order'!Y1208=\"\",\"\",'1. Order'!Y1208)","v":"EUR"},{"$f":"IF('1. Order'!Z1208=\"\",\"\",'1. Order'!Z1208)","v":""},{"$f":"IF('1. Order'!AA1208=\"\",\"\",'1. Order'!AA1208)","v":""},{"$f":"IF('1. Order'!AB1208=\"\",\"\",'1. Order'!AB1208)","v":""},null,{"$f":"IF('1. Order'!AT1208=\"\",\"\",'1. Order'!AT1208)","v":""},{"$f":"IF('1. Order'!AU1208=\"\",\"\",'1. Order'!AU1208)","v":""},null,null,null,null,null,null,null,{"$f":"IF('1. Order'!AY1208=\"\",\"\",'1. Order'!AY1208)","v":""},{"$f":"IF('1. Order'!AZ1208=\"\",\"\",'1. Order'!AZ1208)","v":""},{"$f":"IF('1. Order'!BA1208=\"\",\"\",'1. Order'!BA1208)","v":""},{"$f":"IF('1. Order'!BB1208=\"\",\"\",'1. Order'!BB1208)","v":""},{"$f":"IF('1. Order'!BD1208=\"\",\"\",'1. Order'!BD1208)","v":""},{"$f":"IF('1. Order'!BE1208=\"\",\"\",'1. Order'!BE1208)","v":""},{"$f":"IF('1. Order'!BF1208=\"\",\"\",'1. Order'!BF1208)","v":""},{"$f":"IF('1. Order'!BG1208=\"\",\"\",'1. Order'!BG1208)","v":""},{"$f":"IF('1. Order'!BH1208=\"\",\"\",'1. Order'!BH1208)","v":"ZWO"}]
[{"$f":"IF('1. Order'!F1209=\"\",\"\",'1. Order'!F1209)","v":{"$error":"#N/A"}},{"$f":"IF('1. Order'!G1209=\"\",\"\",'1. Order'!G1209)","v":""},{"$f":"IF('1. Order'!H1209=\"\",\"\",'1. Order'!H1209)","v":""},{"$f":"IF('1. Order'!I1209=\"\",\"\",'1. Order'!I1209)","v":""},{"$f":"IF('1. Order'!J1209=\"\",\"\",'1. Order'!J1209)","v":""},{"$f":"IF('1. Order'!K1209=\"\",\"\",'1. Order'!K1209)","v":""},{"$f":"IF('1. Order'!L1209=\"\",\"\",'1. Order'!L1209)","v":""},{"$f":"IF('1. Order'!M1209=\"\",\"\",'1. Order'!M1209)","v":""},{"$f":"IF('1. Order'!N1209=\"\",\"\",'1. Order'!N1209)","v":""},{"$f":"IF('1. Order'!O1209=\"\",\"\",'1. Order'!O1209)","v":{"$error":"#N/A"}},{"$f":"IF('1. Order'!P1209=\"\",\"\",'1. Order'!P1209)","v":{"$error":"#N/A"}},{"$f":"IF('1. Order'!Q1209=\"\",\"\",'1. Order'!Q1209)","v":""},{"$f":"IF('1. Order'!S1209=\"\",\"\",'1. Order'!S1209)","v":""},{"$f":"IF('1. Order'!T1209=\"\",\"\",'1. Order'!T1209)","v":""},{"$f":"IF('1. Order'!W1209=\"\",\"\",'1. Order'!W1209)","v":""},{"$f":"IF('1. Order'!X1209=\"\",\"\",'1. Order'!X1209)","v":""},{"$f":"IF('1. Order'!Y1209=\"\",\"\",'1. Order'!Y1209)","v":"EUR"},{"$f":"IF('1. Order'!Z1209=\"\",\"\",'1. Order'!Z1209)","v":""},{"$f":"IF('1. Order'!AA1209=\"\",\"\",'1. Order'!AA1209)","v":""},{"$f":"IF('1. Order'!AB1209=\"\",\"\",'1. Order'!AB1209)","v":""},null,{"$f":"IF('1. Order'!AT1209=\"\",\"\",'1. Order'!AT1209)","v":""},{"$f":"IF('1. Order'!AU1209=\"\",\"\",'1. Order'!AU1209)","v":""},null,null,null,null,null,null,null,{"$f":"IF('1. Order'!AY1209=\"\",\"\",'1. Order'!AY1209)","v":""},{"$f":"IF('1. Order'!AZ1209=\"\",\"\",'1. Order'!AZ1209)","v":""},{"$f":"IF('1. Order'!BA1209=\"\",\"\",'1. Order'!BA1209)","v":""},{"$f":"IF('1. Order'!BB1209=\"\",\"\",'1. Order'!BB1209)","v":""},{"$f":"IF('1. Order'!BD1209=\"\",\"\",'1. Order'!BD1209)","v":""},{"$f":"IF('1. Order'!BE1209=\"\",\"\",'1. Order'!BE1209)","v":""},{"$f":"IF('1. Order'!BF1209=\"\",\"\",'1. Order'!BF1209)","v":""},{"$f":"IF('1. Order'!BG1209=\"\",\"\",'1. Order'!BG1209)","v":""},{"$f":"IF('1. Order'!BH1209=\"\",\"\",'1. Order'!BH1209)","v":"ZWO"}]
[{"$f":"IF('1. Order'!F1210=\"\",\"\",'1. Order'!F1210)","v":{"$error":"#N/A"}},{"$f":"IF('1. Order'!G1210=\"\",\"\",'1. Order'!G1210)","v":""},{"$f":"IF('1. Order'!H1210=\"\",\"\",'1. Order'!H1210)","v":""},{"$f":"IF('1. Order'!I1210=\"\",\"\",'1. Order'!I1210)","v":""},{"$f":"IF('1. Order'!J1210=\"\",\"\",'1. Order'!J1210)","v":""},{"$f":"IF('1. Order'!K1210=\"\",\"\",'1. Order'!K1210)","v":""},{"$f":"IF('1. Order'!L1210=\"\",\"\",'1. Order'!L1210)","v":""},{"$f":"IF('1. Order'!M1210=\"\",\"\",'1. Order'!M1210)","v":""},{"$f":"IF('1. Order'!N1210=\"\",\"\",'1. Order'!N1210)","v":""},{"$f":"IF('1. Order'!O1210=\"\",\"\",'1. Order'!O1210)","v":{"$error":"#N/A"}},{"$f":"IF('1. Order'!P1210=\"\",\"\",'1. Order'!P1210)","v":{"$error":"#N/A"}},{"$f":"IF('1. Order'!Q1210=\"\",\"\",'1. Order'!Q1210)","v":""},{"$f":"IF('1. Order'!S1210=\"\",\"\",'1. Order'!S1210)","v":""},{"$f":"IF('1. Order'!T1210=\"\",\"\",'1. Order'!T1210)","v":""},{"$f":"IF('1. Order'!W1210=\"\",\"\",'1. Order'!W1210)","v":""},{"$f":"IF('1. Order'!X1210=\"\",\"\",'1. Order'!X1210)","v":""},{"$f":"IF('1. Order'!Y1210=\"\",\"\",'1. Order'!Y1210)","v":"EUR"},{"$f":"IF('1. Order'!Z1210=\"\",\"\",'1. Order'!Z1210)","v":""},{"$f":"IF('1. Order'!AA1210=\"\",\"\",'1. Order'!AA1210)","v":""},{"$f":"IF('1. Order'!AB1210=\"\",\"\",'1. Order'!AB1210)","v":""},null,{"$f":"IF('1. Order'!AT1210=\"\",\"\",'1. Order'!AT1210)","v":""},{"$f":"IF('1. Order'!AU1210=\"\",\"\",'1. Order'!AU1210)","v":""},null,null,null,null,null,null,null,{"$f":"IF('1. Order'!AY1210=\"\",\"\",'1. Order'!AY1210)","v":""},{"$f":"IF('1. Order'!AZ1210=\"\",\"\",'1. Order'!AZ1210)","v":""},{"$f":"IF('1. Order'!BA1210=\"\",\"\",'1. Order'!BA1210)","v":""},{"$f":"IF('1. Order'!BB1210=\"\",\"\",'1. Order'!BB1210)","v":""},{"$f":"IF('1. Order'!BD1210=\"\",\"\",'1. Order'!BD1210)","v":""},{"$f":"IF('1. Order'!BE1210=\"\",\"\",'1. Order'!BE1210)","v":""},{"$f":"IF('1. Order'!BF1210=\"\",\"\",'1. Order'!BF1210)","v":""},{"$f":"IF('1. Order'!BG1210=\"\",\"\",'1. Order'!BG1210)","v":""},{"$f":"IF('1. Order'!BH1210=\"\",\"\",'1. Order'!BH1210)","v":"ZWO"}]
[{"$f":"IF('1. Order'!F1211=\"\",\"\",'1. Order'!F1211)","v":{"$error":"#N/A"}},{"$f":"IF('1. Order'!G1211=\"\",\"\",'1. Order'!G1211)","v":""},{"$f":"IF('1. Order'!H1211=\"\",\"\",'1. Order'!H1211)","v":""},{"$f":"IF('1. Order'!I1211=\"\",\"\",'1. Order'!I1211)","v":""},{"$f":"IF('1. Order'!J1211=\"\",\"\",'1. Order'!J1211)","v":""},{"$f":"IF('1. Order'!K1211=\"\",\"\",'1. Order'!K1211)","v":""},{"$f":"IF('1. Order'!L1211=\"\",\"\",'1. Order'!L1211)","v":""},{"$f":"IF('1. Order'!M1211=\"\",\"\",'1. Order'!M1211)","v":""},{"$f":"IF('1. Order'!N1211=\"\",\"\",'1. Order'!N1211)","v":""},{"$f":"IF('1. Order'!O1211=\"\",\"\",'1. Order'!O1211)","v":{"$error":"#N/A"}},{"$f":"IF('1. Order'!P1211=\"\",\"\",'1. Order'!P1211)","v":{"$error":"#N/A"}},{"$f":"IF('1. Order'!Q1211=\"\",\"\",'1. Order'!Q1211)","v":""},{"$f":"IF('1. Order'!S1211=\"\",\"\",'1. Order'!S1211)","v":""},{"$f":"IF('1. Order'!T1211=\"\",\"\",'1. Order'!T1211)","v":""},{"$f":"IF('1. Order'!W1211=\"\",\"\",'1. Order'!W1211)","v":""},{"$f":"IF('1. Order'!X1211=\"\",\"\",'1. Order'!X1211)","v":""},{"$f":"IF('1. Order'!Y1211=\"\",\"\",'1. Order'!Y1211)","v":"EUR"},{"$f":"IF('1. Order'!Z1211=\"\",\"\",'1. Order'!Z1211)","v":""},{"$f":"IF('1. Order'!AA1211=\"\",\"\",'1. Order'!AA1211)","v":""},{"$f":"IF('1. Order'!AB1211=\"\",\"\",'1. Order'!AB1211)","v":""},null,{"$f":"IF('1. Order'!AT1211=\"\",\"\",'1. Order'!AT1211)","v":""},{"$f":"IF('1. Order'!AU1211=\"\",\"\",'1. Order'!AU1211)","v":""},null,null,null,null,null,null,null,{"$f":"IF('1. Order'!AY1211=\"\",\"\",'1. Order'!AY1211)","v":""},{"$f":"IF('1. Order'!AZ1211=\"\",\"\",'1. Order'!AZ1211)","v":""},{"$f":"IF('1. Order'!BA1211=\"\",\"\",'1. Order'!BA1211)","v":""},{"$f":"IF('1. Order'!BB1211=\"\",\"\",'1. Order'!BB1211)","v":""},{"$f":"IF('1. Order'!BD1211=\"\",\"\",'1. Order'!BD1211)","v":""},{"$f":"IF('1. Order'!BE1211=\"\",\"\",'1. Order'!BE1211)","v":""},{"$f":"IF('1. Order'!BF1211=\"\",\"\",'1. Order'!BF1211)","v":""},{"$f":"IF('1. Order'!BG1211=\"\",\"\",'1. Order'!BG1211)","v":""},{"$f":"IF('1. Order'!BH1211=\"\",\"\",'1. Order'!BH1211)","v":"ZWO"}]
[{"$f":"IF('1. Order'!F1212=\"\",\"\",'1. Order'!F1212)","v":{"$error":"#N/A"}},{"$f":"IF('1. Order'!G1212=\"\",\"\",'1. Order'!G1212)","v":""},{"$f":"IF('1. Order'!H1212=\"\",\"\",'1. Order'!H1212)","v":""},{"$f":"IF('1. Order'!I1212=\"\",\"\",'1. Order'!I1212)","v":""},{"$f":"IF('1. Order'!J1212=\"\",\"\",'1. Order'!J1212)","v":""},{"$f":"IF('1. Order'!K1212=\"\",\"\",'1. Order'!K1212)","v":""},{"$f":"IF('1. Order'!L1212=\"\",\"\",'1. Order'!L1212)","v":""},{"$f":"IF('1. Order'!M1212=\"\",\"\",'1. Order'!M1212)","v":""},{"$f":"IF('1. Order'!N1212=\"\",\"\",'1. Order'!N1212)","v":""},{"$f":"IF('1. Order'!O1212=\"\",\"\",'1. Order'!O1212)","v":{"$error":"#N/A"}},{"$f":"IF('1. Order'!P1212=\"\",\"\",'1. Order'!P1212)","v":{"$error":"#N/A"}},{"$f":"IF('1. Order'!Q1212=\"\",\"\",'1. Order'!Q1212)","v":""},{"$f":"IF('1. Order'!S1212=\"\",\"\",'1. Order'!S1212)","v":""},{"$f":"IF('1. Order'!T1212=\"\",\"\",'1. Order'!T1212)","v":""},{"$f":"IF('1. Order'!W1212=\"\",\"\",'1. Order'!W1212)","v":""},{"$f":"IF('1. Order'!X1212=\"\",\"\",'1. Order'!X1212)","v":""},{"$f":"IF('1. Order'!Y1212=\"\",\"\",'1. Order'!Y1212)","v":"EUR"},{"$f":"IF('1. Order'!Z1212=\"\",\"\",'1. Order'!Z1212)","v":""},{"$f":"IF('1. Order'!AA1212=\"\",\"\",'1. Order'!AA1212)","v":""},{"$f":"IF('1. Order'!AB1212=\"\",\"\",'1. Order'!AB1212)","v":""},null,{"$f":"IF('1. Order'!AT1212=\"\",\"\",'1. Order'!AT1212)","v":""},{"$f":"IF('1. Order'!AU1212=\"\",\"\",'1. Order'!AU1212)","v":""},null,null,null,null,null,null,null,{"$f":"IF('1. Order'!AY1212=\"\",\"\",'1. Order'!AY1212)","v":""},{"$f":"IF('1. Order'!AZ1212=\"\",\"\",'1. Order'!AZ1212)","v":""},{"$f":"IF('1. Order'!BA1212=\"\",\"\",'1. Order'!BA1212)","v":""},{"$f":"IF('1. Order'!BB1212=\"\",\"\",'1. Order'!BB1212)","v":""},{"$f":"IF('1. Order'!BD1212=\"\",\"\",'1. Order'!BD1212)","v":""},{"$f":"IF('1. Order'!BE1212=\"\",\"\",'1. Order'!BE1212)","v":""},{"$f":"IF('1. Order'!BF1212=\"\",\"\",'1. Order'!BF1212)","v":""},{"$f":"IF('1. Order'!BG1212=\"\",\"\",'1. Order'!BG1212)","v":""},{"$f":"IF('1. Order'!BH1212=\"\",\"\",'1. Order'!BH1212)","v":"ZWO"}]
[{"$f":"IF('1. Order'!F1213=\"\",\"\",'1. Order'!F1213)","v":{"$error":"#N/A"}},{"$f":"IF('1. Order'!G1213=\"\",\"\",'1. Order'!G1213)","v":""},{"$f":"IF('1. Order'!H1213=\"\",\"\",'1. Order'!H1213)","v":""},{"$f":"IF('1. Order'!I1213=\"\",\"\",'1. Order'!I1213)","v":""},{"$f":"IF('1. Order'!J1213=\"\",\"\",'1. Order'!J1213)","v":""},{"$f":"IF('1. Order'!K1213=\"\",\"\",'1. Order'!K1213)","v":""},{"$f":"IF('1. Order'!L1213=\"\",\"\",'1. Order'!L1213)","v":""},{"$f":"IF('1. Order'!M1213=\"\",\"\",'1. Order'!M1213)","v":""},{"$f":"IF('1. Order'!N1213=\"\",\"\",'1. Order'!N1213)","v":""},{"$f":"IF('1. Order'!O1213=\"\",\"\",'1. Order'!O1213)","v":{"$error":"#N/A"}},{"$f":"IF('1. Order'!P1213=\"\",\"\",'1. Order'!P1213)","v":{"$error":"#N/A"}},{"$f":"IF('1. Order'!Q1213=\"\",\"\",'1. Order'!Q1213)","v":""},{"$f":"IF('1. Order'!S1213=\"\",\"\",'1. Order'!S1213)","v":""},{"$f":"IF('1. Order'!T1213=\"\",\"\",'1. Order'!T1213)","v":""},{"$f":"IF('1. Order'!W1213=\"\",\"\",'1. Order'!W1213)","v":""},{"$f":"IF('1. Order'!X1213=\"\",\"\",'1. Order'!X1213)","v":""},{"$f":"IF('1. Order'!Y1213=\"\",\"\",'1. Order'!Y1213)","v":"EUR"},{"$f":"IF('1. Order'!Z1213=\"\",\"\",'1. Order'!Z1213)","v":""},{"$f":"IF('1. Order'!AA1213=\"\",\"\",'1. Order'!AA1213)","v":""},{"$f":"IF('1. Order'!AB1213=\"\",\"\",'1. Order'!AB1213)","v":""},null,{"$f":"IF('1. Order'!AT1213=\"\",\"\",'1. Order'!AT1213)","v":""},{"$f":"IF('1. Order'!AU1213=\"\",\"\",'1. Order'!AU1213)","v":""},null,null,null,null,null,null,null,{"$f":"IF('1. Order'!AY1213=\"\",\"\",'1. Order'!AY1213)","v":""},{"$f":"IF('1. Order'!AZ1213=\"\",\"\",'1. Order'!AZ1213)","v":""},{"$f":"IF('1. Order'!BA1213=\"\",\"\",'1. Order'!BA1213)","v":""},{"$f":"IF('1. Order'!BB1213=\"\",\"\",'1. Order'!BB1213)","v":""},{"$f":"IF('1. Order'!BD1213=\"\",\"\",'1. Order'!BD1213)","v":""},{"$f":"IF('1. Order'!BE1213=\"\",\"\",'1. Order'!BE1213)","v":""},{"$f":"IF('1. Order'!BF1213=\"\",\"\",'1. Order'!BF1213)","v":""},{"$f":"IF('1. Order'!BG1213=\"\",\"\",'1. Order'!BG1213)","v":""},{"$f":"IF('1. Order'!BH1213=\"\",\"\",'1. Order'!BH1213)","v":"ZWO"}]
[{"$f":"IF('1. Order'!F1214=\"\",\"\",'1. Order'!F1214)","v":{"$error":"#N/A"}},{"$f":"IF('1. Order'!G1214=\"\",\"\",'1. Order'!G1214)","v":""},{"$f":"IF('1. Order'!H1214=\"\",\"\",'1. Order'!H1214)","v":""},{"$f":"IF('1. Order'!I1214=\"\",\"\",'1. Order'!I1214)","v":""},{"$f":"IF('1. Order'!J1214=\"\",\"\",'1. Order'!J1214)","v":""},{"$f":"IF('1. Order'!K1214=\"\",\"\",'1. Order'!K1214)","v":""},{"$f":"IF('1. Order'!L1214=\"\",\"\",'1. Order'!L1214)","v":""},{"$f":"IF('1. Order'!M1214=\"\",\"\",'1. Order'!M1214)","v":""},{"$f":"IF('1. Order'!N1214=\"\",\"\",'1. Order'!N1214)","v":""},{"$f":"IF('1. Order'!O1214=\"\",\"\",'1. Order'!O1214)","v":{"$error":"#N/A"}},{"$f":"IF('1. Order'!P1214=\"\",\"\",'1. Order'!P1214)","v":{"$error":"#N/A"}},{"$f":"IF('1. Order'!Q1214=\"\",\"\",'1. Order'!Q1214)","v":""},{"$f":"IF('1. Order'!S1214=\"\",\"\",'1. Order'!S1214)","v":""},{"$f":"IF('1. Order'!T1214=\"\",\"\",'1. Order'!T1214)","v":""},{"$f":"IF('1. Order'!W1214=\"\",\"\",'1. Order'!W1214)","v":""},{"$f":"IF('1. Order'!X1214=\"\",\"\",'1. Order'!X1214)","v":""},{"$f":"IF('1. Order'!Y1214=\"\",\"\",'1. Order'!Y1214)","v":"EUR"},{"$f":"IF('1. Order'!Z1214=\"\",\"\",'1. Order'!Z1214)","v":""},{"$f":"IF('1. Order'!AA1214=\"\",\"\",'1. Order'!AA1214)","v":""},{"$f":"IF('1. Order'!AB1214=\"\",\"\",'1. Order'!AB1214)","v":""},null,{"$f":"IF('1. Order'!AT1214=\"\",\"\",'1. Order'!AT1214)","v":""},{"$f":"IF('1. Order'!AU1214=\"\",\"\",'1. Order'!AU1214)","v":""},null,null,null,null,null,null,null,{"$f":"IF('1. Order'!AY1214=\"\",\"\",'1. Order'!AY1214)","v":""},{"$f":"IF('1. Order'!AZ1214=\"\",\"\",'1. Order'!AZ1214)","v":""},{"$f":"IF('1. Order'!BA1214=\"\",\"\",'1. Order'!BA1214)","v":""},{"$f":"IF('1. Order'!BB1214=\"\",\"\",'1. Order'!BB1214)","v":""},{"$f":"IF('1. Order'!BD1214=\"\",\"\",'1. Order'!BD1214)","v":""},{"$f":"IF('1. Order'!BE1214=\"\",\"\",'1. Order'!BE1214)","v":""},{"$f":"IF('1. Order'!BF1214=\"\",\"\",'1. Order'!BF1214)","v":""},{"$f":"IF('1. Order'!BG1214=\"\",\"\",'1. Order'!BG1214)","v":""},{"$f":"IF('1. Order'!BH1214=\"\",\"\",'1. Order'!BH1214)","v":"ZWO"}]
[{"$f":"IF('1. Order'!F1215=\"\",\"\",'1. Order'!F1215)","v":{"$error":"#N/A"}},{"$f":"IF('1. Order'!G1215=\"\",\"\",'1. Order'!G1215)","v":""},{"$f":"IF('1. Order'!H1215=\"\",\"\",'1. Order'!H1215)","v":""},{"$f":"IF('1. Order'!I1215=\"\",\"\",'1. Order'!I1215)","v":""},{"$f":"IF('1. Order'!J1215=\"\",\"\",'1. Order'!J1215)","v":""},{"$f":"IF('1. Order'!K1215=\"\",\"\",'1. Order'!K1215)","v":""},{"$f":"IF('1. Order'!L1215=\"\",\"\",'1. Order'!L1215)","v":""},{"$f":"IF('1. Order'!M1215=\"\",\"\",'1. Order'!M1215)","v":""},{"$f":"IF('1. Order'!N1215=\"\",\"\",'1. Order'!N1215)","v":""},{"$f":"IF('1. Order'!O1215=\"\",\"\",'1. Order'!O1215)","v":{"$error":"#N/A"}},{"$f":"IF('1. Order'!P1215=\"\",\"\",'1. Order'!P1215)","v":{"$error":"#N/A"}},{"$f":"IF('1. Order'!Q1215=\"\",\"\",'1. Order'!Q1215)","v":""},{"$f":"IF('1. Order'!S1215=\"\",\"\",'1. Order'!S1215)","v":""},{"$f":"IF('1. Order'!T1215=\"\",\"\",'1. Order'!T1215)","v":""},{"$f":"IF('1. Order'!W1215=\"\",\"\",'1. Order'!W1215)","v":""},{"$f":"IF('1. Order'!X1215=\"\",\"\",'1. Order'!X1215)","v":""},{"$f":"IF('1. Order'!Y1215=\"\",\"\",'1. Order'!Y1215)","v":"EUR"},{"$f":"IF('1. Order'!Z1215=\"\",\"\",'1. Order'!Z1215)","v":""},{"$f":"IF('1. Order'!AA1215=\"\",\"\",'1. Order'!AA1215)","v":""},{"$f":"IF('1. Order'!AB1215=\"\",\"\",'1. Order'!AB1215)","v":""},null,{"$f":"IF('1. Order'!AT1215=\"\",\"\",'1. Order'!AT1215)","v":""},{"$f":"IF('1. Order'!AU1215=\"\",\"\",'1. Order'!AU1215)","v":""},null,null,null,null,null,null,null,{"$f":"IF('1. Order'!AY1215=\"\",\"\",'1. Order'!AY1215)","v":""},{"$f":"IF('1. Order'!AZ1215=\"\",\"\",'1. Order'!AZ1215)","v":""},{"$f":"IF('1. Order'!BA1215=\"\",\"\",'1. Order'!BA1215)","v":""},{"$f":"IF('1. Order'!BB1215=\"\",\"\",'1. Order'!BB1215)","v":""},{"$f":"IF('1. Order'!BD1215=\"\",\"\",'1. Order'!BD1215)","v":""},{"$f":"IF('1. Order'!BE1215=\"\",\"\",'1. Order'!BE1215)","v":""},{"$f":"IF('1. Order'!BF1215=\"\",\"\",'1. Order'!BF1215)","v":""},{"$f":"IF('1. Order'!BG1215=\"\",\"\",'1. Order'!BG1215)","v":""},{"$f":"IF('1. Order'!BH1215=\"\",\"\",'1. Order'!BH1215)","v":"ZWO"}]
[{"$f":"IF('1. Order'!F1216=\"\",\"\",'1. Order'!F1216)","v":{"$error":"#N/A"}},{"$f":"IF('1. Order'!G1216=\"\",\"\",'1. Order'!G1216)","v":""},{"$f":"IF('1. Order'!H1216=\"\",\"\",'1. Order'!H1216)","v":""},{"$f":"IF('1. Order'!I1216=\"\",\"\",'1. Order'!I1216)","v":""},{"$f":"IF('1. Order'!J1216=\"\",\"\",'1. Order'!J1216)","v":""},{"$f":"IF('1. Order'!K1216=\"\",\"\",'1. Order'!K1216)","v":""},{"$f":"IF('1. Order'!L1216=\"\",\"\",'1. Order'!L1216)","v":""},{"$f":"IF('1. Order'!M1216=\"\",\"\",'1. Order'!M1216)","v":""},{"$f":"IF('1. Order'!N1216=\"\",\"\",'1. Order'!N1216)","v":""},{"$f":"IF('1. Order'!O1216=\"\",\"\",'1. Order'!O1216)","v":{"$error":"#N/A"}},{"$f":"IF('1. Order'!P1216=\"\",\"\",'1. Order'!P1216)","v":{"$error":"#N/A"}},{"$f":"IF('1. Order'!Q1216=\"\",\"\",'1. Order'!Q1216)","v":""},{"$f":"IF('1. Order'!S1216=\"\",\"\",'1. Order'!S1216)","v":""},{"$f":"IF('1. Order'!T1216=\"\",\"\",'1. Order'!T1216)","v":""},{"$f":"IF('1. Order'!W1216=\"\",\"\",'1. Order'!W1216)","v":""},{"$f":"IF('1. Order'!X1216=\"\",\"\",'1. Order'!X1216)","v":""},{"$f":"IF('1. Order'!Y1216=\"\",\"\",'1. Order'!Y1216)","v":"EUR"},{"$f":"IF('1. Order'!Z1216=\"\",\"\",'1. Order'!Z1216)","v":""},{"$f":"IF('1. Order'!AA1216=\"\",\"\",'1. Order'!AA1216)","v":""},{"$f":"IF('1. Order'!AB1216=\"\",\"\",'1. Order'!AB1216)","v":""},null,{"$f":"IF('1. Order'!AT1216=\"\",\"\",'1. Order'!AT1216)","v":""},{"$f":"IF('1. Order'!AU1216=\"\",\"\",'1. Order'!AU1216)","v":""},null,null,null,null,null,null,null,{"$f":"IF('1. Order'!AY1216=\"\",\"\",'1. Order'!AY1216)","v":""},{"$f":"IF('1. Order'!AZ1216=\"\",\"\",'1. Order'!AZ1216)","v":""},{"$f":"IF('1. Order'!BA1216=\"\",\"\",'1. Order'!BA1216)","v":""},{"$f":"IF('1. Order'!BB1216=\"\",\"\",'1. Order'!BB1216)","v":""},{"$f":"IF('1. Order'!BD1216=\"\",\"\",'1. Order'!BD1216)","v":""},{"$f":"IF('1. Order'!BE1216=\"\",\"\",'1. Order'!BE1216)","v":""},{"$f":"IF('1. Order'!BF1216=\"\",\"\",'1. Order'!BF1216)","v":""},{"$f":"IF('1. Order'!BG1216=\"\",\"\",'1. Order'!BG1216)","v":""},{"$f":"IF('1. Order'!BH1216=\"\",\"\",'1. Order'!BH1216)","v":"ZWO"}]
[{"$f":"IF('1. Order'!F1217=\"\",\"\",'1. Order'!F1217)","v":{"$error":"#N/A"}},{"$f":"IF('1. Order'!G1217=\"\",\"\",'1. Order'!G1217)","v":""},{"$f":"IF('1. Order'!H1217=\"\",\"\",'1. Order'!H1217)","v":""},{"$f":"IF('1. Order'!I1217=\"\",\"\",'1. Order'!I1217)","v":""},{"$f":"IF('1. Order'!J1217=\"\",\"\",'1. Order'!J1217)","v":""},{"$f":"IF('1. Order'!K1217=\"\",\"\",'1. Order'!K1217)","v":""},{"$f":"IF('1. Order'!L1217=\"\",\"\",'1. Order'!L1217)","v":""},{"$f":"IF('1. Order'!M1217=\"\",\"\",'1. Order'!M1217)","v":""},{"$f":"IF('1. Order'!N1217=\"\",\"\",'1. Order'!N1217)","v":""},{"$f":"IF('1. Order'!O1217=\"\",\"\",'1. Order'!O1217)","v":{"$error":"#N/A"}},{"$f":"IF('1. Order'!P1217=\"\",\"\",'1. Order'!P1217)","v":{"$error":"#N/A"}},{"$f":"IF('1. Order'!Q1217=\"\",\"\",'1. Order'!Q1217)","v":""},{"$f":"IF('1. Order'!S1217=\"\",\"\",'1. Order'!S1217)","v":""},{"$f":"IF('1. Order'!T1217=\"\",\"\",'1. Order'!T1217)","v":""},{"$f":"IF('1. Order'!W1217=\"\",\"\",'1. Order'!W1217)","v":""},{"$f":"IF('1. Order'!X1217=\"\",\"\",'1. Order'!X1217)","v":""},{"$f":"IF('1. Order'!Y1217=\"\",\"\",'1. Order'!Y1217)","v":"EUR"},{"$f":"IF('1. Order'!Z1217=\"\",\"\",'1. Order'!Z1217)","v":""},{"$f":"IF('1. Order'!AA1217=\"\",\"\",'1. Order'!AA1217)","v":""},{"$f":"IF('1. Order'!AB1217=\"\",\"\",'1. Order'!AB1217)","v":""},null,{"$f":"IF('1. Order'!AT1217=\"\",\"\",'1. Order'!AT1217)","v":""},{"$f":"IF('1. Order'!AU1217=\"\",\"\",'1. Order'!AU1217)","v":""},null,null,null,null,null,null,null,{"$f":"IF('1. Order'!AY1217=\"\",\"\",'1. Order'!AY1217)","v":""},{"$f":"IF('1. Order'!AZ1217=\"\",\"\",'1. Order'!AZ1217)","v":""},{"$f":"IF('1. Order'!BA1217=\"\",\"\",'1. Order'!BA1217)","v":""},{"$f":"IF('1. Order'!BB1217=\"\",\"\",'1. Order'!BB1217)","v":""},{"$f":"IF('1. Order'!BD1217=\"\",\"\",'1. Order'!BD1217)","v":""},{"$f":"IF('1. Order'!BE1217=\"\",\"\",'1. Order'!BE1217)","v":""},{"$f":"IF('1. Order'!BF1217=\"\",\"\",'1. Order'!BF1217)","v":""},{"$f":"IF('1. Order'!BG1217=\"\",\"\",'1. Order'!BG1217)","v":""},{"$f":"IF('1. Order'!BH1217=\"\",\"\",'1. Order'!BH1217)","v":"ZWO"}]
[{"$f":"IF('1. Order'!F1218=\"\",\"\",'1. Order'!F1218)","v":{"$error":"#N/A"}},{"$f":"IF('1. Order'!G1218=\"\",\"\",'1. Order'!G1218)","v":""},{"$f":"IF('1. Order'!H1218=\"\",\"\",'1. Order'!H1218)","v":""},{"$f":"IF('1. Order'!I1218=\"\",\"\",'1. Order'!I1218)","v":""},{"$f":"IF('1. Order'!J1218=\"\",\"\",'1. Order'!J1218)","v":""},{"$f":"IF('1. Order'!K1218=\"\",\"\",'1. Order'!K1218)","v":""},{"$f":"IF('1. Order'!L1218=\"\",\"\",'1. Order'!L1218)","v":""},{"$f":"IF('1. Order'!M1218=\"\",\"\",'1. Order'!M1218)","v":""},{"$f":"IF('1. Order'!N1218=\"\",\"\",'1. Order'!N1218)","v":""},{"$f":"IF('1. Order'!O1218=\"\",\"\",'1. Order'!O1218)","v":{"$error":"#N/A"}},{"$f":"IF('1. Order'!P1218=\"\",\"\",'1. Order'!P1218)","v":{"$error":"#N/A"}},{"$f":"IF('1. Order'!Q1218=\"\",\"\",'1. Order'!Q1218)","v":""},{"$f":"IF('1. Order'!S1218=\"\",\"\",'1. Order'!S1218)","v":""},{"$f":"IF('1. Order'!T1218=\"\",\"\",'1. Order'!T1218)","v":""},{"$f":"IF('1. Order'!W1218=\"\",\"\",'1. Order'!W1218)","v":""},{"$f":"IF('1. Order'!X1218=\"\",\"\",'1. Order'!X1218)","v":""},{"$f":"IF('1. Order'!Y1218=\"\",\"\",'1. Order'!Y1218)","v":"EUR"},{"$f":"IF('1. Order'!Z1218=\"\",\"\",'1. Order'!Z1218)","v":""},{"$f":"IF('1. Order'!AA1218=\"\",\"\",'1. Order'!AA1218)","v":""},{"$f":"IF('1. Order'!AB1218=\"\",\"\",'1. Order'!AB1218)","v":""},null,{"$f":"IF('1. Order'!AT1218=\"\",\"\",'1. Order'!AT1218)","v":""},{"$f":"IF('1. Order'!AU1218=\"\",\"\",'1. Order'!AU1218)","v":""},null,null,null,null,null,null,null,{"$f":"IF('1. Order'!AY1218=\"\",\"\",'1. Order'!AY1218)","v":""},{"$f":"IF('1. Order'!AZ1218=\"\",\"\",'1. Order'!AZ1218)","v":""},{"$f":"IF('1. Order'!BA1218=\"\",\"\",'1. Order'!BA1218)","v":""},{"$f":"IF('1. Order'!BB1218=\"\",\"\",'1. Order'!BB1218)","v":""},{"$f":"IF('1. Order'!BD1218=\"\",\"\",'1. Order'!BD1218)","v":""},{"$f":"IF('1. Order'!BE1218=\"\",\"\",'1. Order'!BE1218)","v":""},{"$f":"IF('1. Order'!BF1218=\"\",\"\",'1. Order'!BF1218)","v":""},{"$f":"IF('1. Order'!BG1218=\"\",\"\",'1. Order'!BG1218)","v":""},{"$f":"IF('1. Order'!BH1218=\"\",\"\",'1. Order'!BH1218)","v":"ZWO"}]
[{"$f":"IF('1. Order'!F1219=\"\",\"\",'1. Order'!F1219)","v":{"$error":"#N/A"}},{"$f":"IF('1. Order'!G1219=\"\",\"\",'1. Order'!G1219)","v":""},{"$f":"IF('1. Order'!H1219=\"\",\"\",'1. Order'!H1219)","v":""},{"$f":"IF('1. Order'!I1219=\"\",\"\",'1. Order'!I1219)","v":""},{"$f":"IF('1. Order'!J1219=\"\",\"\",'1. Order'!J1219)","v":""},{"$f":"IF('1. Order'!K1219=\"\",\"\",'1. Order'!K1219)","v":""},{"$f":"IF('1. Order'!L1219=\"\",\"\",'1. Order'!L1219)","v":""},{"$f":"IF('1. Order'!M1219=\"\",\"\",'1. Order'!M1219)","v":""},{"$f":"IF('1. Order'!N1219=\"\",\"\",'1. Order'!N1219)","v":""},{"$f":"IF('1. Order'!O1219=\"\",\"\",'1. Order'!O1219)","v":{"$error":"#N/A"}},{"$f":"IF('1. Order'!P1219=\"\",\"\",'1. Order'!P1219)","v":{"$error":"#N/A"}},{"$f":"IF('1. Order'!Q1219=\"\",\"\",'1. Order'!Q1219)","v":""},{"$f":"IF('1. Order'!S1219=\"\",\"\",'1. Order'!S1219)","v":""},{"$f":"IF('1. Order'!T1219=\"\",\"\",'1. Order'!T1219)","v":""},{"$f":"IF('1. Order'!W1219=\"\",\"\",'1. Order'!W1219)","v":""},{"$f":"IF('1. Order'!X1219=\"\",\"\",'1. Order'!X1219)","v":""},{"$f":"IF('1. Order'!Y1219=\"\",\"\",'1. Order'!Y1219)","v":"EUR"},{"$f":"IF('1. Order'!Z1219=\"\",\"\",'1. Order'!Z1219)","v":""},{"$f":"IF('1. Order'!AA1219=\"\",\"\",'1. Order'!AA1219)","v":""},{"$f":"IF('1. Order'!AB1219=\"\",\"\",'1. Order'!AB1219)","v":""},null,{"$f":"IF('1. Order'!AT1219=\"\",\"\",'1. Order'!AT1219)","v":""},{"$f":"IF('1. Order'!AU1219=\"\",\"\",'1. Order'!AU1219)","v":""},null,null,null,null,null,null,null,{"$f":"IF('1. Order'!AY1219=\"\",\"\",'1. Order'!AY1219)","v":""},{"$f":"IF('1. Order'!AZ1219=\"\",\"\",'1. Order'!AZ1219)","v":""},{"$f":"IF('1. Order'!BA1219=\"\",\"\",'1. Order'!BA1219)","v":""},{"$f":"IF('1. Order'!BB1219=\"\",\"\",'1. Order'!BB1219)","v":""},{"$f":"IF('1. Order'!BD1219=\"\",\"\",'1. Order'!BD1219)","v":""},{"$f":"IF('1. Order'!BE1219=\"\",\"\",'1. Order'!BE1219)","v":""},{"$f":"IF('1. Order'!BF1219=\"\",\"\",'1. Order'!BF1219)","v":""},{"$f":"IF('1. Order'!BG1219=\"\",\"\",'1. Order'!BG1219)","v":""},{"$f":"IF('1. Order'!BH1219=\"\",\"\",'1. Order'!BH1219)","v":"ZWO"}]
[{"$f":"IF('1. Order'!F1220=\"\",\"\",'1. Order'!F1220)","v":{"$error":"#N/A"}},{"$f":"IF('1. Order'!G1220=\"\",\"\",'1. Order'!G1220)","v":""},{"$f":"IF('1. Order'!H1220=\"\",\"\",'1. Order'!H1220)","v":""},{"$f":"IF('1. Order'!I1220=\"\",\"\",'1. Order'!I1220)","v":""},{"$f":"IF('1. Order'!J1220=\"\",\"\",'1. Order'!J1220)","v":""},{"$f":"IF('1. Order'!K1220=\"\",\"\",'1. Order'!K1220)","v":""},{"$f":"IF('1. Order'!L1220=\"\",\"\",'1. Order'!L1220)","v":""},{"$f":"IF('1. Order'!M1220=\"\",\"\",'1. Order'!M1220)","v":""},{"$f":"IF('1. Order'!N1220=\"\",\"\",'1. Order'!N1220)","v":""},{"$f":"IF('1. Order'!O1220=\"\",\"\",'1. Order'!O1220)","v":{"$error":"#N/A"}},{"$f":"IF('1. Order'!P1220=\"\",\"\",'1. Order'!P1220)","v":{"$error":"#N/A"}},{"$f":"IF('1. Order'!Q1220=\"\",\"\",'1. Order'!Q1220)","v":""},{"$f":"IF('1. Order'!S1220=\"\",\"\",'1. Order'!S1220)","v":""},{"$f":"IF('1. Order'!T1220=\"\",\"\",'1. Order'!T1220)","v":""},{"$f":"IF('1. Order'!W1220=\"\",\"\",'1. Order'!W1220)","v":""},{"$f":"IF('1. Order'!X1220=\"\",\"\",'1. Order'!X1220)","v":""},{"$f":"IF('1. Order'!Y1220=\"\",\"\",'1. Order'!Y1220)","v":"EUR"},{"$f":"IF('1. Order'!Z1220=\"\",\"\",'1. Order'!Z1220)","v":""},{"$f":"IF('1. Order'!AA1220=\"\",\"\",'1. Order'!AA1220)","v":""},{"$f":"IF('1. Order'!AB1220=\"\",\"\",'1. Order'!AB1220)","v":""},null,{"$f":"IF('1. Order'!AT1220=\"\",\"\",'1. Order'!AT1220)","v":""},{"$f":"IF('1. Order'!AU1220=\"\",\"\",'1. Order'!AU1220)","v":""},null,null,null,null,null,null,null,{"$f":"IF('1. Order'!AY1220=\"\",\"\",'1. Order'!AY1220)","v":""},{"$f":"IF('1. Order'!AZ1220=\"\",\"\",'1. Order'!AZ1220)","v":""},{"$f":"IF('1. Order'!BA1220=\"\",\"\",'1. Order'!BA1220)","v":""},{"$f":"IF('1. Order'!BB1220=\"\",\"\",'1. Order'!BB1220)","v":""},{"$f":"IF('1. Order'!BD1220=\"\",\"\",'1. Order'!BD1220)","v":""},{"$f":"IF('1. Order'!BE1220=\"\",\"\",'1. Order'!BE1220)","v":""},{"$f":"IF('1. Order'!BF1220=\"\",\"\",'1. Order'!BF1220)","v":""},{"$f":"IF('1. Order'!BG1220=\"\",\"\",'1. Order'!BG1220)","v":""},{"$f":"IF('1. Order'!BH1220=\"\",\"\",'1. Order'!BH1220)","v":"ZWO"}]
[{"$f":"IF('1. Order'!F1221=\"\",\"\",'1. Order'!F1221)","v":{"$error":"#N/A"}},{"$f":"IF('1. Order'!G1221=\"\",\"\",'1. Order'!G1221)","v":""},{"$f":"IF('1. Order'!H1221=\"\",\"\",'1. Order'!H1221)","v":""},{"$f":"IF('1. Order'!I1221=\"\",\"\",'1. Order'!I1221)","v":""},{"$f":"IF('1. Order'!J1221=\"\",\"\",'1. Order'!J1221)","v":""},{"$f":"IF('1. Order'!K1221=\"\",\"\",'1. Order'!K1221)","v":""},{"$f":"IF('1. Order'!L1221=\"\",\"\",'1. Order'!L1221)","v":""},{"$f":"IF('1. Order'!M1221=\"\",\"\",'1. Order'!M1221)","v":""},{"$f":"IF('1. Order'!N1221=\"\",\"\",'1. Order'!N1221)","v":""},{"$f":"IF('1. Order'!O1221=\"\",\"\",'1. Order'!O1221)","v":{"$error":"#N/A"}},{"$f":"IF('1. Order'!P1221=\"\",\"\",'1. Order'!P1221)","v":{"$error":"#N/A"}},{"$f":"IF('1. Order'!Q1221=\"\",\"\",'1. Order'!Q1221)","v":""},{"$f":"IF('1. Order'!S1221=\"\",\"\",'1. Order'!S1221)","v":""},{"$f":"IF('1. Order'!T1221=\"\",\"\",'1. Order'!T1221)","v":""},{"$f":"IF('1. Order'!W1221=\"\",\"\",'1. Order'!W1221)","v":""},{"$f":"IF('1. Order'!X1221=\"\",\"\",'1. Order'!X1221)","v":""},{"$f":"IF('1. Order'!Y1221=\"\",\"\",'1. Order'!Y1221)","v":"EUR"},{"$f":"IF('1. Order'!Z1221=\"\",\"\",'1. Order'!Z1221)","v":""},{"$f":"IF('1. Order'!AA1221=\"\",\"\",'1. Order'!AA1221)","v":""},{"$f":"IF('1. Order'!AB1221=\"\",\"\",'1. Order'!AB1221)","v":""},null,{"$f":"IF('1. Order'!AT1221=\"\",\"\",'1. Order'!AT1221)","v":""},{"$f":"IF('1. Order'!AU1221=\"\",\"\",'1. Order'!AU1221)","v":""},null,null,null,null,null,null,null,{"$f":"IF('1. Order'!AY1221=\"\",\"\",'1. Order'!AY1221)","v":""},{"$f":"IF('1. Order'!AZ1221=\"\",\"\",'1. Order'!AZ1221)","v":""},{"$f":"IF('1. Order'!BA1221=\"\",\"\",'1. Order'!BA1221)","v":""},{"$f":"IF('1. Order'!BB1221=\"\",\"\",'1. Order'!BB1221)","v":""},{"$f":"IF('1. Order'!BD1221=\"\",\"\",'1. Order'!BD1221)","v":""},{"$f":"IF('1. Order'!BE1221=\"\",\"\",'1. Order'!BE1221)","v":""},{"$f":"IF('1. Order'!BF1221=\"\",\"\",'1. Order'!BF1221)","v":""},{"$f":"IF('1. Order'!BG1221=\"\",\"\",'1. Order'!BG1221)","v":""},{"$f":"IF('1. Order'!BH1221=\"\",\"\",'1. Order'!BH1221)","v":"ZWO"}]
[{"$f":"IF('1. Order'!F1222=\"\",\"\",'1. Order'!F1222)","v":{"$error":"#N/A"}},{"$f":"IF('1. Order'!G1222=\"\",\"\",'1. Order'!G1222)","v":""},{"$f":"IF('1. Order'!H1222=\"\",\"\",'1. Order'!H1222)","v":""},{"$f":"IF('1. Order'!I1222=\"\",\"\",'1. Order'!I1222)","v":""},{"$f":"IF('1. Order'!J1222=\"\",\"\",'1. Order'!J1222)","v":""},{"$f":"IF('1. Order'!K1222=\"\",\"\",'1. Order'!K1222)","v":""},{"$f":"IF('1. Order'!L1222=\"\",\"\",'1. Order'!L1222)","v":""},{"$f":"IF('1. Order'!M1222=\"\",\"\",'1. Order'!M1222)","v":""},{"$f":"IF('1. Order'!N1222=\"\",\"\",'1. Order'!N1222)","v":""},{"$f":"IF('1. Order'!O1222=\"\",\"\",'1. Order'!O1222)","v":{"$error":"#N/A"}},{"$f":"IF('1. Order'!P1222=\"\",\"\",'1. Order'!P1222)","v":{"$error":"#N/A"}},{"$f":"IF('1. Order'!Q1222=\"\",\"\",'1. Order'!Q1222)","v":""},{"$f":"IF('1. Order'!S1222=\"\",\"\",'1. Order'!S1222)","v":""},{"$f":"IF('1. Order'!T1222=\"\",\"\",'1. Order'!T1222)","v":""},{"$f":"IF('1. Order'!W1222=\"\",\"\",'1. Order'!W1222)","v":""},{"$f":"IF('1. Order'!X1222=\"\",\"\",'1. Order'!X1222)","v":""},{"$f":"IF('1. Order'!Y1222=\"\",\"\",'1. Order'!Y1222)","v":"EUR"},{"$f":"IF('1. Order'!Z1222=\"\",\"\",'1. Order'!Z1222)","v":""},{"$f":"IF('1. Order'!AA1222=\"\",\"\",'1. Order'!AA1222)","v":""},{"$f":"IF('1. Order'!AB1222=\"\",\"\",'1. Order'!AB1222)","v":""},null,{"$f":"IF('1. Order'!AT1222=\"\",\"\",'1. Order'!AT1222)","v":""},{"$f":"IF('1. Order'!AU1222=\"\",\"\",'1. Order'!AU1222)","v":""},null,null,null,null,null,null,null,{"$f":"IF('1. Order'!AY1222=\"\",\"\",'1. Order'!AY1222)","v":""},{"$f":"IF('1. Order'!AZ1222=\"\",\"\",'1. Order'!AZ1222)","v":""},{"$f":"IF('1. Order'!BA1222=\"\",\"\",'1. Order'!BA1222)","v":""},{"$f":"IF('1. Order'!BB1222=\"\",\"\",'1. Order'!BB1222)","v":""},{"$f":"IF('1. Order'!BD1222=\"\",\"\",'1. Order'!BD1222)","v":""},{"$f":"IF('1. Order'!BE1222=\"\",\"\",'1. Order'!BE1222)","v":""},{"$f":"IF('1. Order'!BF1222=\"\",\"\",'1. Order'!BF1222)","v":""},{"$f":"IF('1. Order'!BG1222=\"\",\"\",'1. Order'!BG1222)","v":""},{"$f":"IF('1. Order'!BH1222=\"\",\"\",'1. Order'!BH1222)","v":"ZWO"}]
[{"$f":"IF('1. Order'!F1223=\"\",\"\",'1. Order'!F1223)","v":{"$error":"#N/A"}},{"$f":"IF('1. Order'!G1223=\"\",\"\",'1. Order'!G1223)","v":""},{"$f":"IF('1. Order'!H1223=\"\",\"\",'1. Order'!H1223)","v":""},{"$f":"IF('1. Order'!I1223=\"\",\"\",'1. Order'!I1223)","v":""},{"$f":"IF('1. Order'!J1223=\"\",\"\",'1. Order'!J1223)","v":""},{"$f":"IF('1. Order'!K1223=\"\",\"\",'1. Order'!K1223)","v":""},{"$f":"IF('1. Order'!L1223=\"\",\"\",'1. Order'!L1223)","v":""},{"$f":"IF('1. Order'!M1223=\"\",\"\",'1. Order'!M1223)","v":""},{"$f":"IF('1. Order'!N1223=\"\",\"\",'1. Order'!N1223)","v":""},{"$f":"IF('1. Order'!O1223=\"\",\"\",'1. Order'!O1223)","v":{"$error":"#N/A"}},{"$f":"IF('1. Order'!P1223=\"\",\"\",'1. Order'!P1223)","v":{"$error":"#N/A"}},{"$f":"IF('1. Order'!Q1223=\"\",\"\",'1. Order'!Q1223)","v":""},{"$f":"IF('1. Order'!S1223=\"\",\"\",'1. Order'!S1223)","v":""},{"$f":"IF('1. Order'!T1223=\"\",\"\",'1. Order'!T1223)","v":""},{"$f":"IF('1. Order'!W1223=\"\",\"\",'1. Order'!W1223)","v":""},{"$f":"IF('1. Order'!X1223=\"\",\"\",'1. Order'!X1223)","v":""},{"$f":"IF('1. Order'!Y1223=\"\",\"\",'1. Order'!Y1223)","v":"EUR"},{"$f":"IF('1. Order'!Z1223=\"\",\"\",'1. Order'!Z1223)","v":""},{"$f":"IF('1. Order'!AA1223=\"\",\"\",'1. Order'!AA1223)","v":""},{"$f":"IF('1. Order'!AB1223=\"\",\"\",'1. Order'!AB1223)","v":""},null,{"$f":"IF('1. Order'!AT1223=\"\",\"\",'1. Order'!AT1223)","v":""},{"$f":"IF('1. Order'!AU1223=\"\",\"\",'1. Order'!AU1223)","v":""},null,null,null,null,null,null,null,{"$f":"IF('1. Order'!AY1223=\"\",\"\",'1. Order'!AY1223)","v":""},{"$f":"IF('1. Order'!AZ1223=\"\",\"\",'1. Order'!AZ1223)","v":""},{"$f":"IF('1. Order'!BA1223=\"\",\"\",'1. Order'!BA1223)","v":""},{"$f":"IF('1. Order'!BB1223=\"\",\"\",'1. Order'!BB1223)","v":""},{"$f":"IF('1. Order'!BD1223=\"\",\"\",'1. Order'!BD1223)","v":""},{"$f":"IF('1. Order'!BE1223=\"\",\"\",'1. Order'!BE1223)","v":""},{"$f":"IF('1. Order'!BF1223=\"\",\"\",'1. Order'!BF1223)","v":""},{"$f":"IF('1. Order'!BG1223=\"\",\"\",'1. Order'!BG1223)","v":""},{"$f":"IF('1. Order'!BH1223=\"\",\"\",'1. Order'!BH1223)","v":"ZWO"}]
[{"$f":"IF('1. Order'!F1224=\"\",\"\",'1. Order'!F1224)","v":{"$error":"#N/A"}},{"$f":"IF('1. Order'!G1224=\"\",\"\",'1. Order'!G1224)","v":""},{"$f":"IF('1. Order'!H1224=\"\",\"\",'1. Order'!H1224)","v":""},{"$f":"IF('1. Order'!I1224=\"\",\"\",'1. Order'!I1224)","v":""},{"$f":"IF('1. Order'!J1224=\"\",\"\",'1. Order'!J1224)","v":""},{"$f":"IF('1. Order'!K1224=\"\",\"\",'1. Order'!K1224)","v":""},{"$f":"IF('1. Order'!L1224=\"\",\"\",'1. Order'!L1224)","v":""},{"$f":"IF('1. Order'!M1224=\"\",\"\",'1. Order'!M1224)","v":""},{"$f":"IF('1. Order'!N1224=\"\",\"\",'1. Order'!N1224)","v":""},{"$f":"IF('1. Order'!O1224=\"\",\"\",'1. Order'!O1224)","v":{"$error":"#N/A"}},{"$f":"IF('1. Order'!P1224=\"\",\"\",'1. Order'!P1224)","v":{"$error":"#N/A"}},{"$f":"IF('1. Order'!Q1224=\"\",\"\",'1. Order'!Q1224)","v":""},{"$f":"IF('1. Order'!S1224=\"\",\"\",'1. Order'!S1224)","v":""},{"$f":"IF('1. Order'!T1224=\"\",\"\",'1. Order'!T1224)","v":""},{"$f":"IF('1. Order'!W1224=\"\",\"\",'1. Order'!W1224)","v":""},{"$f":"IF('1. Order'!X1224=\"\",\"\",'1. Order'!X1224)","v":""},{"$f":"IF('1. Order'!Y1224=\"\",\"\",'1. Order'!Y1224)","v":"EUR"},{"$f":"IF('1. Order'!Z1224=\"\",\"\",'1. Order'!Z1224)","v":""},{"$f":"IF('1. Order'!AA1224=\"\",\"\",'1. Order'!AA1224)","v":""},{"$f":"IF('1. Order'!AB1224=\"\",\"\",'1. Order'!AB1224)","v":""},null,{"$f":"IF('1. Order'!AT1224=\"\",\"\",'1. Order'!AT1224)","v":""},{"$f":"IF('1. Order'!AU1224=\"\",\"\",'1. Order'!AU1224)","v":""},null,null,null,null,null,null,null,{"$f":"IF('1. Order'!AY1224=\"\",\"\",'1. Order'!AY1224)","v":""},{"$f":"IF('1. Order'!AZ1224=\"\",\"\",'1. Order'!AZ1224)","v":""},{"$f":"IF('1. Order'!BA1224=\"\",\"\",'1. Order'!BA1224)","v":""},{"$f":"IF('1. Order'!BB1224=\"\",\"\",'1. Order'!BB1224)","v":""},{"$f":"IF('1. Order'!BD1224=\"\",\"\",'1. Order'!BD1224)","v":""},{"$f":"IF('1. Order'!BE1224=\"\",\"\",'1. Order'!BE1224)","v":""},{"$f":"IF('1. Order'!BF1224=\"\",\"\",'1. Order'!BF1224)","v":""},{"$f":"IF('1. Order'!BG1224=\"\",\"\",'1. Order'!BG1224)","v":""},{"$f":"IF('1. Order'!BH1224=\"\",\"\",'1. Order'!BH1224)","v":"ZWO"}]
[{"$f":"IF('1. Order'!F1225=\"\",\"\",'1. Order'!F1225)","v":{"$error":"#N/A"}},{"$f":"IF('1. Order'!G1225=\"\",\"\",'1. Order'!G1225)","v":""},{"$f":"IF('1. Order'!H1225=\"\",\"\",'1. Order'!H1225)","v":""},{"$f":"IF('1. Order'!I1225=\"\",\"\",'1. Order'!I1225)","v":""},{"$f":"IF('1. Order'!J1225=\"\",\"\",'1. Order'!J1225)","v":""},{"$f":"IF('1. Order'!K1225=\"\",\"\",'1. Order'!K1225)","v":""},{"$f":"IF('1. Order'!L1225=\"\",\"\",'1. Order'!L1225)","v":""},{"$f":"IF('1. Order'!M1225=\"\",\"\",'1. Order'!M1225)","v":""},{"$f":"IF('1. Order'!N1225=\"\",\"\",'1. Order'!N1225)","v":""},{"$f":"IF('1. Order'!O1225=\"\",\"\",'1. Order'!O1225)","v":{"$error":"#N/A"}},{"$f":"IF('1. Order'!P1225=\"\",\"\",'1. Order'!P1225)","v":{"$error":"#N/A"}},{"$f":"IF('1. Order'!Q1225=\"\",\"\",'1. Order'!Q1225)","v":""},{"$f":"IF('1. Order'!S1225=\"\",\"\",'1. Order'!S1225)","v":""},{"$f":"IF('1. Order'!T1225=\"\",\"\",'1. Order'!T1225)","v":""},{"$f":"IF('1. Order'!W1225=\"\",\"\",'1. Order'!W1225)","v":""},{"$f":"IF('1. Order'!X1225=\"\",\"\",'1. Order'!X1225)","v":""},{"$f":"IF('1. Order'!Y1225=\"\",\"\",'1. Order'!Y1225)","v":"EUR"},{"$f":"IF('1. Order'!Z1225=\"\",\"\",'1. Order'!Z1225)","v":""},{"$f":"IF('1. Order'!AA1225=\"\",\"\",'1. Order'!AA1225)","v":""},{"$f":"IF('1. Order'!AB1225=\"\",\"\",'1. Order'!AB1225)","v":""},null,{"$f":"IF('1. Order'!AT1225=\"\",\"\",'1. Order'!AT1225)","v":""},{"$f":"IF('1. Order'!AU1225=\"\",\"\",'1. Order'!AU1225)","v":""},null,null,null,null,null,null,null,{"$f":"IF('1. Order'!AY1225=\"\",\"\",'1. Order'!AY1225)","v":""},{"$f":"IF('1. Order'!AZ1225=\"\",\"\",'1. Order'!AZ1225)","v":""},{"$f":"IF('1. Order'!BA1225=\"\",\"\",'1. Order'!BA1225)","v":""},{"$f":"IF('1. Order'!BB1225=\"\",\"\",'1. Order'!BB1225)","v":""},{"$f":"IF('1. Order'!BD1225=\"\",\"\",'1. Order'!BD1225)","v":""},{"$f":"IF('1. Order'!BE1225=\"\",\"\",'1. Order'!BE1225)","v":""},{"$f":"IF('1. Order'!BF1225=\"\",\"\",'1. Order'!BF1225)","v":""},{"$f":"IF('1. Order'!BG1225=\"\",\"\",'1. Order'!BG1225)","v":""},{"$f":"IF('1. Order'!BH1225=\"\",\"\",'1. Order'!BH1225)","v":"ZWO"}]
[{"$f":"IF('1. Order'!F1226=\"\",\"\",'1. Order'!F1226)","v":{"$error":"#N/A"}},{"$f":"IF('1. Order'!G1226=\"\",\"\",'1. Order'!G1226)","v":""},{"$f":"IF('1. Order'!H1226=\"\",\"\",'1. Order'!H1226)","v":""},{"$f":"IF('1. Order'!I1226=\"\",\"\",'1. Order'!I1226)","v":""},{"$f":"IF('1. Order'!J1226=\"\",\"\",'1. Order'!J1226)","v":""},{"$f":"IF('1. Order'!K1226=\"\",\"\",'1. Order'!K1226)","v":""},{"$f":"IF('1. Order'!L1226=\"\",\"\",'1. Order'!L1226)","v":""},{"$f":"IF('1. Order'!M1226=\"\",\"\",'1. Order'!M1226)","v":""},{"$f":"IF('1. Order'!N1226=\"\",\"\",'1. Order'!N1226)","v":""},{"$f":"IF('1. Order'!O1226=\"\",\"\",'1. Order'!O1226)","v":{"$error":"#N/A"}},{"$f":"IF('1. Order'!P1226=\"\",\"\",'1. Order'!P1226)","v":{"$error":"#N/A"}},{"$f":"IF('1. Order'!Q1226=\"\",\"\",'1. Order'!Q1226)","v":""},{"$f":"IF('1. Order'!S1226=\"\",\"\",'1. Order'!S1226)","v":""},{"$f":"IF('1. Order'!T1226=\"\",\"\",'1. Order'!T1226)","v":""},{"$f":"IF('1. Order'!W1226=\"\",\"\",'1. Order'!W1226)","v":""},{"$f":"IF('1. Order'!X1226=\"\",\"\",'1. Order'!X1226)","v":""},{"$f":"IF('1. Order'!Y1226=\"\",\"\",'1. Order'!Y1226)","v":"EUR"},{"$f":"IF('1. Order'!Z1226=\"\",\"\",'1. Order'!Z1226)","v":""},{"$f":"IF('1. Order'!AA1226=\"\",\"\",'1. Order'!AA1226)","v":""},{"$f":"IF('1. Order'!AB1226=\"\",\"\",'1. Order'!AB1226)","v":""},null,{"$f":"IF('1. Order'!AT1226=\"\",\"\",'1. Order'!AT1226)","v":""},{"$f":"IF('1. Order'!AU1226=\"\",\"\",'1. Order'!AU1226)","v":""},null,null,null,null,null,null,null,{"$f":"IF('1. Order'!AY1226=\"\",\"\",'1. Order'!AY1226)","v":""},{"$f":"IF('1. Order'!AZ1226=\"\",\"\",'1. Order'!AZ1226)","v":""},{"$f":"IF('1. Order'!BA1226=\"\",\"\",'1. Order'!BA1226)","v":""},{"$f":"IF('1. Order'!BB1226=\"\",\"\",'1. Order'!BB1226)","v":""},{"$f":"IF('1. Order'!BD1226=\"\",\"\",'1. Order'!BD1226)","v":""},{"$f":"IF('1. Order'!BE1226=\"\",\"\",'1. Order'!BE1226)","v":""},{"$f":"IF('1. Order'!BF1226=\"\",\"\",'1. Order'!BF1226)","v":""},{"$f":"IF('1. Order'!BG1226=\"\",\"\",'1. Order'!BG1226)","v":""},{"$f":"IF('1. Order'!BH1226=\"\",\"\",'1. Order'!BH1226)","v":"ZWO"}]
[{"$f":"IF('1. Order'!F1227=\"\",\"\",'1. Order'!F1227)","v":{"$error":"#N/A"}},{"$f":"IF('1. Order'!G1227=\"\",\"\",'1. Order'!G1227)","v":""},{"$f":"IF('1. Order'!H1227=\"\",\"\",'1. Order'!H1227)","v":""},{"$f":"IF('1. Order'!I1227=\"\",\"\",'1. Order'!I1227)","v":""},{"$f":"IF('1. Order'!J1227=\"\",\"\",'1. Order'!J1227)","v":""},{"$f":"IF('1. Order'!K1227=\"\",\"\",'1. Order'!K1227)","v":""},{"$f":"IF('1. Order'!L1227=\"\",\"\",'1. Order'!L1227)","v":""},{"$f":"IF('1. Order'!M1227=\"\",\"\",'1. Order'!M1227)","v":""},{"$f":"IF('1. Order'!N1227=\"\",\"\",'1. Order'!N1227)","v":""},{"$f":"IF('1. Order'!O1227=\"\",\"\",'1. Order'!O1227)","v":{"$error":"#N/A"}},{"$f":"IF('1. Order'!P1227=\"\",\"\",'1. Order'!P1227)","v":{"$error":"#N/A"}},{"$f":"IF('1. Order'!Q1227=\"\",\"\",'1. Order'!Q1227)","v":""},{"$f":"IF('1. Order'!S1227=\"\",\"\",'1. Order'!S1227)","v":""},{"$f":"IF('1. Order'!T1227=\"\",\"\",'1. Order'!T1227)","v":""},{"$f":"IF('1. Order'!W1227=\"\",\"\",'1. Order'!W1227)","v":""},{"$f":"IF('1. Order'!X1227=\"\",\"\",'1. Order'!X1227)","v":""},{"$f":"IF('1. Order'!Y1227=\"\",\"\",'1. Order'!Y1227)","v":"EUR"},{"$f":"IF('1. Order'!Z1227=\"\",\"\",'1. Order'!Z1227)","v":""},{"$f":"IF('1. Order'!AA1227=\"\",\"\",'1. Order'!AA1227)","v":""},{"$f":"IF('1. Order'!AB1227=\"\",\"\",'1. Order'!AB1227)","v":""},null,{"$f":"IF('1. Order'!AT1227=\"\",\"\",'1. Order'!AT1227)","v":""},{"$f":"IF('1. Order'!AU1227=\"\",\"\",'1. Order'!AU1227)","v":""},null,null,null,null,null,null,null,{"$f":"IF('1. Order'!AY1227=\"\",\"\",'1. Order'!AY1227)","v":""},{"$f":"IF('1. Order'!AZ1227=\"\",\"\",'1. Order'!AZ1227)","v":""},{"$f":"IF('1. Order'!BA1227=\"\",\"\",'1. Order'!BA1227)","v":""},{"$f":"IF('1. Order'!BB1227=\"\",\"\",'1. Order'!BB1227)","v":""},{"$f":"IF('1. Order'!BD1227=\"\",\"\",'1. Order'!BD1227)","v":""},{"$f":"IF('1. Order'!BE1227=\"\",\"\",'1. Order'!BE1227)","v":""},{"$f":"IF('1. Order'!BF1227=\"\",\"\",'1. Order'!BF1227)","v":""},{"$f":"IF('1. Order'!BG1227=\"\",\"\",'1. Order'!BG1227)","v":""},{"$f":"IF('1. Order'!BH1227=\"\",\"\",'1. Order'!BH1227)","v":"ZWO"}]
[{"$f":"IF('1. Order'!F1228=\"\",\"\",'1. Order'!F1228)","v":{"$error":"#N/A"}},{"$f":"IF('1. Order'!G1228=\"\",\"\",'1. Order'!G1228)","v":""},{"$f":"IF('1. Order'!H1228=\"\",\"\",'1. Order'!H1228)","v":""},{"$f":"IF('1. Order'!I1228=\"\",\"\",'1. Order'!I1228)","v":""},{"$f":"IF('1. Order'!J1228=\"\",\"\",'1. Order'!J1228)","v":""},{"$f":"IF('1. Order'!K1228=\"\",\"\",'1. Order'!K1228)","v":""},{"$f":"IF('1. Order'!L1228=\"\",\"\",'1. Order'!L1228)","v":""},{"$f":"IF('1. Order'!M1228=\"\",\"\",'1. Order'!M1228)","v":""},{"$f":"IF('1. Order'!N1228=\"\",\"\",'1. Order'!N1228)","v":""},{"$f":"IF('1. Order'!O1228=\"\",\"\",'1. Order'!O1228)","v":{"$error":"#N/A"}},{"$f":"IF('1. Order'!P1228=\"\",\"\",'1. Order'!P1228)","v":{"$error":"#N/A"}},{"$f":"IF('1. Order'!Q1228=\"\",\"\",'1. Order'!Q1228)","v":""},{"$f":"IF('1. Order'!S1228=\"\",\"\",'1. Order'!S1228)","v":""},{"$f":"IF('1. Order'!T1228=\"\",\"\",'1. Order'!T1228)","v":""},{"$f":"IF('1. Order'!W1228=\"\",\"\",'1. Order'!W1228)","v":""},{"$f":"IF('1. Order'!X1228=\"\",\"\",'1. Order'!X1228)","v":""},{"$f":"IF('1. Order'!Y1228=\"\",\"\",'1. Order'!Y1228)","v":"EUR"},{"$f":"IF('1. Order'!Z1228=\"\",\"\",'1. Order'!Z1228)","v":""},{"$f":"IF('1. Order'!AA1228=\"\",\"\",'1. Order'!AA1228)","v":""},{"$f":"IF('1. Order'!AB1228=\"\",\"\",'1. Order'!AB1228)","v":""},null,{"$f":"IF('1. Order'!AT1228=\"\",\"\",'1. Order'!AT1228)","v":""},{"$f":"IF('1. Order'!AU1228=\"\",\"\",'1. Order'!AU1228)","v":""},null,null,null,null,null,null,null,{"$f":"IF('1. Order'!AY1228=\"\",\"\",'1. Order'!AY1228)","v":""},{"$f":"IF('1. Order'!AZ1228=\"\",\"\",'1. Order'!AZ1228)","v":""},{"$f":"IF('1. Order'!BA1228=\"\",\"\",'1. Order'!BA1228)","v":""},{"$f":"IF('1. Order'!BB1228=\"\",\"\",'1. Order'!BB1228)","v":""},{"$f":"IF('1. Order'!BD1228=\"\",\"\",'1. Order'!BD1228)","v":""},{"$f":"IF('1. Order'!BE1228=\"\",\"\",'1. Order'!BE1228)","v":""},{"$f":"IF('1. Order'!BF1228=\"\",\"\",'1. Order'!BF1228)","v":""},{"$f":"IF('1. Order'!BG1228=\"\",\"\",'1. Order'!BG1228)","v":""},{"$f":"IF('1. Order'!BH1228=\"\",\"\",'1. Order'!BH1228)","v":"ZWO"}]
[{"$f":"IF('1. Order'!F1229=\"\",\"\",'1. Order'!F1229)","v":{"$error":"#N/A"}},{"$f":"IF('1. Order'!G1229=\"\",\"\",'1. Order'!G1229)","v":""},{"$f":"IF('1. Order'!H1229=\"\",\"\",'1. Order'!H1229)","v":""},{"$f":"IF('1. Order'!I1229=\"\",\"\",'1. Order'!I1229)","v":""},{"$f":"IF('1. Order'!J1229=\"\",\"\",'1. Order'!J1229)","v":""},{"$f":"IF('1. Order'!K1229=\"\",\"\",'1. Order'!K1229)","v":""},{"$f":"IF('1. Order'!L1229=\"\",\"\",'1. Order'!L1229)","v":""},{"$f":"IF('1. Order'!M1229=\"\",\"\",'1. Order'!M1229)","v":""},{"$f":"IF('1. Order'!N1229=\"\",\"\",'1. Order'!N1229)","v":""},{"$f":"IF('1. Order'!O1229=\"\",\"\",'1. Order'!O1229)","v":{"$error":"#N/A"}},{"$f":"IF('1. Order'!P1229=\"\",\"\",'1. Order'!P1229)","v":{"$error":"#N/A"}},{"$f":"IF('1. Order'!Q1229=\"\",\"\",'1. Order'!Q1229)","v":""},{"$f":"IF('1. Order'!S1229=\"\",\"\",'1. Order'!S1229)","v":""},{"$f":"IF('1. Order'!T1229=\"\",\"\",'1. Order'!T1229)","v":""},{"$f":"IF('1. Order'!W1229=\"\",\"\",'1. Order'!W1229)","v":""},{"$f":"IF('1. Order'!X1229=\"\",\"\",'1. Order'!X1229)","v":""},{"$f":"IF('1. Order'!Y1229=\"\",\"\",'1. Order'!Y1229)","v":"EUR"},{"$f":"IF('1. Order'!Z1229=\"\",\"\",'1. Order'!Z1229)","v":""},{"$f":"IF('1. Order'!AA1229=\"\",\"\",'1. Order'!AA1229)","v":""},{"$f":"IF('1. Order'!AB1229=\"\",\"\",'1. Order'!AB1229)","v":""},null,{"$f":"IF('1. Order'!AT1229=\"\",\"\",'1. Order'!AT1229)","v":""},{"$f":"IF('1. Order'!AU1229=\"\",\"\",'1. Order'!AU1229)","v":""},null,null,null,null,null,null,null,{"$f":"IF('1. Order'!AY1229=\"\",\"\",'1. Order'!AY1229)","v":""},{"$f":"IF('1. Order'!AZ1229=\"\",\"\",'1. Order'!AZ1229)","v":""},{"$f":"IF('1. Order'!BA1229=\"\",\"\",'1. Order'!BA1229)","v":""},{"$f":"IF('1. Order'!BB1229=\"\",\"\",'1. Order'!BB1229)","v":""},{"$f":"IF('1. Order'!BD1229=\"\",\"\",'1. Order'!BD1229)","v":""},{"$f":"IF('1. Order'!BE1229=\"\",\"\",'1. Order'!BE1229)","v":""},{"$f":"IF('1. Order'!BF1229=\"\",\"\",'1. Order'!BF1229)","v":""},{"$f":"IF('1. Order'!BG1229=\"\",\"\",'1. Order'!BG1229)","v":""},{"$f":"IF('1. Order'!BH1229=\"\",\"\",'1. Order'!BH1229)","v":"ZWO"}]
[{"$f":"IF('1. Order'!F1230=\"\",\"\",'1. Order'!F1230)","v":{"$error":"#N/A"}},{"$f":"IF('1. Order'!G1230=\"\",\"\",'1. Order'!G1230)","v":""},{"$f":"IF('1. Order'!H1230=\"\",\"\",'1. Order'!H1230)","v":""},{"$f":"IF('1. Order'!I1230=\"\",\"\",'1. Order'!I1230)","v":""},{"$f":"IF('1. Order'!J1230=\"\",\"\",'1. Order'!J1230)","v":""},{"$f":"IF('1. Order'!K1230=\"\",\"\",'1. Order'!K1230)","v":""},{"$f":"IF('1. Order'!L1230=\"\",\"\",'1. Order'!L1230)","v":""},{"$f":"IF('1. Order'!M1230=\"\",\"\",'1. Order'!M1230)","v":""},{"$f":"IF('1. Order'!N1230=\"\",\"\",'1. Order'!N1230)","v":""},{"$f":"IF('1. Order'!O1230=\"\",\"\",'1. Order'!O1230)","v":{"$error":"#N/A"}},{"$f":"IF('1. Order'!P1230=\"\",\"\",'1. Order'!P1230)","v":{"$error":"#N/A"}},{"$f":"IF('1. Order'!Q1230=\"\",\"\",'1. Order'!Q1230)","v":""},{"$f":"IF('1. Order'!S1230=\"\",\"\",'1. Order'!S1230)","v":""},{"$f":"IF('1. Order'!T1230=\"\",\"\",'1. Order'!T1230)","v":""},{"$f":"IF('1. Order'!W1230=\"\",\"\",'1. Order'!W1230)","v":""},{"$f":"IF('1. Order'!X1230=\"\",\"\",'1. Order'!X1230)","v":""},{"$f":"IF('1. Order'!Y1230=\"\",\"\",'1. Order'!Y1230)","v":"EUR"},{"$f":"IF('1. Order'!Z1230=\"\",\"\",'1. Order'!Z1230)","v":""},{"$f":"IF('1. Order'!AA1230=\"\",\"\",'1. Order'!AA1230)","v":""},{"$f":"IF('1. Order'!AB1230=\"\",\"\",'1. Order'!AB1230)","v":""},null,{"$f":"IF('1. Order'!AT1230=\"\",\"\",'1. Order'!AT1230)","v":""},{"$f":"IF('1. Order'!AU1230=\"\",\"\",'1. Order'!AU1230)","v":""},null,null,null,null,null,null,null,{"$f":"IF('1. Order'!AY1230=\"\",\"\",'1. Order'!AY1230)","v":""},{"$f":"IF('1. Order'!AZ1230=\"\",\"\",'1. Order'!AZ1230)","v":""},{"$f":"IF('1. Order'!BA1230=\"\",\"\",'1. Order'!BA1230)","v":""},{"$f":"IF('1. Order'!BB1230=\"\",\"\",'1. Order'!BB1230)","v":""},{"$f":"IF('1. Order'!BD1230=\"\",\"\",'1. Order'!BD1230)","v":""},{"$f":"IF('1. Order'!BE1230=\"\",\"\",'1. Order'!BE1230)","v":""},{"$f":"IF('1. Order'!BF1230=\"\",\"\",'1. Order'!BF1230)","v":""},{"$f":"IF('1. Order'!BG1230=\"\",\"\",'1. Order'!BG1230)","v":""},{"$f":"IF('1. Order'!BH1230=\"\",\"\",'1. Order'!BH1230)","v":"ZWO"}]
[{"$f":"IF('1. Order'!F1231=\"\",\"\",'1. Order'!F1231)","v":{"$error":"#N/A"}},{"$f":"IF('1. Order'!G1231=\"\",\"\",'1. Order'!G1231)","v":""},{"$f":"IF('1. Order'!H1231=\"\",\"\",'1. Order'!H1231)","v":""},{"$f":"IF('1. Order'!I1231=\"\",\"\",'1. Order'!I1231)","v":""},{"$f":"IF('1. Order'!J1231=\"\",\"\",'1. Order'!J1231)","v":""},{"$f":"IF('1. Order'!K1231=\"\",\"\",'1. Order'!K1231)","v":""},{"$f":"IF('1. Order'!L1231=\"\",\"\",'1. Order'!L1231)","v":""},{"$f":"IF('1. Order'!M1231=\"\",\"\",'1. Order'!M1231)","v":""},{"$f":"IF('1. Order'!N1231=\"\",\"\",'1. Order'!N1231)","v":""},{"$f":"IF('1. Order'!O1231=\"\",\"\",'1. Order'!O1231)","v":{"$error":"#N/A"}},{"$f":"IF('1. Order'!P1231=\"\",\"\",'1. Order'!P1231)","v":{"$error":"#N/A"}},{"$f":"IF('1. Order'!Q1231=\"\",\"\",'1. Order'!Q1231)","v":""},{"$f":"IF('1. Order'!S1231=\"\",\"\",'1. Order'!S1231)","v":""},{"$f":"IF('1. Order'!T1231=\"\",\"\",'1. Order'!T1231)","v":""},{"$f":"IF('1. Order'!W1231=\"\",\"\",'1. Order'!W1231)","v":""},{"$f":"IF('1. Order'!X1231=\"\",\"\",'1. Order'!X1231)","v":""},{"$f":"IF('1. Order'!Y1231=\"\",\"\",'1. Order'!Y1231)","v":"EUR"},{"$f":"IF('1. Order'!Z1231=\"\",\"\",'1. Order'!Z1231)","v":""},{"$f":"IF('1. Order'!AA1231=\"\",\"\",'1. Order'!AA1231)","v":""},{"$f":"IF('1. Order'!AB1231=\"\",\"\",'1. Order'!AB1231)","v":""},null,{"$f":"IF('1. Order'!AT1231=\"\",\"\",'1. Order'!AT1231)","v":""},{"$f":"IF('1. Order'!AU1231=\"\",\"\",'1. Order'!AU1231)","v":""},null,null,null,null,null,null,null,{"$f":"IF('1. Order'!AY1231=\"\",\"\",'1. Order'!AY1231)","v":""},{"$f":"IF('1. Order'!AZ1231=\"\",\"\",'1. Order'!AZ1231)","v":""},{"$f":"IF('1. Order'!BA1231=\"\",\"\",'1. Order'!BA1231)","v":""},{"$f":"IF('1. Order'!BB1231=\"\",\"\",'1. Order'!BB1231)","v":""},{"$f":"IF('1. Order'!BD1231=\"\",\"\",'1. Order'!BD1231)","v":""},{"$f":"IF('1. Order'!BE1231=\"\",\"\",'1. Order'!BE1231)","v":""},{"$f":"IF('1. Order'!BF1231=\"\",\"\",'1. Order'!BF1231)","v":""},{"$f":"IF('1. Order'!BG1231=\"\",\"\",'1. Order'!BG1231)","v":""},{"$f":"IF('1. Order'!BH1231=\"\",\"\",'1. Order'!BH1231)","v":"ZWO"}]
[{"$f":"IF('1. Order'!F1232=\"\",\"\",'1. Order'!F1232)","v":{"$error":"#N/A"}},{"$f":"IF('1. Order'!G1232=\"\",\"\",'1. Order'!G1232)","v":""},{"$f":"IF('1. Order'!H1232=\"\",\"\",'1. Order'!H1232)","v":""},{"$f":"IF('1. Order'!I1232=\"\",\"\",'1. Order'!I1232)","v":""},{"$f":"IF('1. Order'!J1232=\"\",\"\",'1. Order'!J1232)","v":""},{"$f":"IF('1. Order'!K1232=\"\",\"\",'1. Order'!K1232)","v":""},{"$f":"IF('1. Order'!L1232=\"\",\"\",'1. Order'!L1232)","v":""},{"$f":"IF('1. Order'!M1232=\"\",\"\",'1. Order'!M1232)","v":""},{"$f":"IF('1. Order'!N1232=\"\",\"\",'1. Order'!N1232)","v":""},{"$f":"IF('1. Order'!O1232=\"\",\"\",'1. Order'!O1232)","v":{"$error":"#N/A"}},{"$f":"IF('1. Order'!P1232=\"\",\"\",'1. Order'!P1232)","v":{"$error":"#N/A"}},{"$f":"IF('1. Order'!Q1232=\"\",\"\",'1. Order'!Q1232)","v":""},{"$f":"IF('1. Order'!S1232=\"\",\"\",'1. Order'!S1232)","v":""},{"$f":"IF('1. Order'!T1232=\"\",\"\",'1. Order'!T1232)","v":""},{"$f":"IF('1. Order'!W1232=\"\",\"\",'1. Order'!W1232)","v":""},{"$f":"IF('1. Order'!X1232=\"\",\"\",'1. Order'!X1232)","v":""},{"$f":"IF('1. Order'!Y1232=\"\",\"\",'1. Order'!Y1232)","v":"EUR"},{"$f":"IF('1. Order'!Z1232=\"\",\"\",'1. Order'!Z1232)","v":""},{"$f":"IF('1. Order'!AA1232=\"\",\"\",'1. Order'!AA1232)","v":""},{"$f":"IF('1. Order'!AB1232=\"\",\"\",'1. Order'!AB1232)","v":""},null,{"$f":"IF('1. Order'!AT1232=\"\",\"\",'1. Order'!AT1232)","v":""},{"$f":"IF('1. Order'!AU1232=\"\",\"\",'1. Order'!AU1232)","v":""},null,null,null,null,null,null,null,{"$f":"IF('1. Order'!AY1232=\"\",\"\",'1. Order'!AY1232)","v":""},{"$f":"IF('1. Order'!AZ1232=\"\",\"\",'1. Order'!AZ1232)","v":""},{"$f":"IF('1. Order'!BA1232=\"\",\"\",'1. Order'!BA1232)","v":""},{"$f":"IF('1. Order'!BB1232=\"\",\"\",'1. Order'!BB1232)","v":""},{"$f":"IF('1. Order'!BD1232=\"\",\"\",'1. Order'!BD1232)","v":""},{"$f":"IF('1. Order'!BE1232=\"\",\"\",'1. Order'!BE1232)","v":""},{"$f":"IF('1. Order'!BF1232=\"\",\"\",'1. Order'!BF1232)","v":""},{"$f":"IF('1. Order'!BG1232=\"\",\"\",'1. Order'!BG1232)","v":""},{"$f":"IF('1. Order'!BH1232=\"\",\"\",'1. Order'!BH1232)","v":"ZWO"}]
[{"$f":"IF('1. Order'!F1233=\"\",\"\",'1. Order'!F1233)","v":{"$error":"#N/A"}},{"$f":"IF('1. Order'!G1233=\"\",\"\",'1. Order'!G1233)","v":""},{"$f":"IF('1. Order'!H1233=\"\",\"\",'1. Order'!H1233)","v":""},{"$f":"IF('1. Order'!I1233=\"\",\"\",'1. Order'!I1233)","v":""},{"$f":"IF('1. Order'!J1233=\"\",\"\",'1. Order'!J1233)","v":""},{"$f":"IF('1. Order'!K1233=\"\",\"\",'1. Order'!K1233)","v":""},{"$f":"IF('1. Order'!L1233=\"\",\"\",'1. Order'!L1233)","v":""},{"$f":"IF('1. Order'!M1233=\"\",\"\",'1. Order'!M1233)","v":""},{"$f":"IF('1. Order'!N1233=\"\",\"\",'1. Order'!N1233)","v":""},{"$f":"IF('1. Order'!O1233=\"\",\"\",'1. Order'!O1233)","v":{"$error":"#N/A"}},{"$f":"IF('1. Order'!P1233=\"\",\"\",'1. Order'!P1233)","v":{"$error":"#N/A"}},{"$f":"IF('1. Order'!Q1233=\"\",\"\",'1. Order'!Q1233)","v":""},{"$f":"IF('1. Order'!S1233=\"\",\"\",'1. Order'!S1233)","v":""},{"$f":"IF('1. Order'!T1233=\"\",\"\",'1. Order'!T1233)","v":""},{"$f":"IF('1. Order'!W1233=\"\",\"\",'1. Order'!W1233)","v":""},{"$f":"IF('1. Order'!X1233=\"\",\"\",'1. Order'!X1233)","v":""},{"$f":"IF('1. Order'!Y1233=\"\",\"\",'1. Order'!Y1233)","v":"EUR"},{"$f":"IF('1. Order'!Z1233=\"\",\"\",'1. Order'!Z1233)","v":""},{"$f":"IF('1. Order'!AA1233=\"\",\"\",'1. Order'!AA1233)","v":""},{"$f":"IF('1. Order'!AB1233=\"\",\"\",'1. Order'!AB1233)","v":""},null,{"$f":"IF('1. Order'!AT1233=\"\",\"\",'1. Order'!AT1233)","v":""},{"$f":"IF('1. Order'!AU1233=\"\",\"\",'1. Order'!AU1233)","v":""},null,null,null,null,null,null,null,{"$f":"IF('1. Order'!AY1233=\"\",\"\",'1. Order'!AY1233)","v":""},{"$f":"IF('1. Order'!AZ1233=\"\",\"\",'1. Order'!AZ1233)","v":""},{"$f":"IF('1. Order'!BA1233=\"\",\"\",'1. Order'!BA1233)","v":""},{"$f":"IF('1. Order'!BB1233=\"\",\"\",'1. Order'!BB1233)","v":""},{"$f":"IF('1. Order'!BD1233=\"\",\"\",'1. Order'!BD1233)","v":""},{"$f":"IF('1. Order'!BE1233=\"\",\"\",'1. Order'!BE1233)","v":""},{"$f":"IF('1. Order'!BF1233=\"\",\"\",'1. Order'!BF1233)","v":""},{"$f":"IF('1. Order'!BG1233=\"\",\"\",'1. Order'!BG1233)","v":""},{"$f":"IF('1. Order'!BH1233=\"\",\"\",'1. Order'!BH1233)","v":"ZWO"}]
[{"$f":"IF('1. Order'!F1234=\"\",\"\",'1. Order'!F1234)","v":{"$error":"#N/A"}},{"$f":"IF('1. Order'!G1234=\"\",\"\",'1. Order'!G1234)","v":""},{"$f":"IF('1. Order'!H1234=\"\",\"\",'1. Order'!H1234)","v":""},{"$f":"IF('1. Order'!I1234=\"\",\"\",'1. Order'!I1234)","v":""},{"$f":"IF('1. Order'!J1234=\"\",\"\",'1. Order'!J1234)","v":""},{"$f":"IF('1. Order'!K1234=\"\",\"\",'1. Order'!K1234)","v":""},{"$f":"IF('1. Order'!L1234=\"\",\"\",'1. Order'!L1234)","v":""},{"$f":"IF('1. Order'!M1234=\"\",\"\",'1. Order'!M1234)","v":""},{"$f":"IF('1. Order'!N1234=\"\",\"\",'1. Order'!N1234)","v":""},{"$f":"IF('1. Order'!O1234=\"\",\"\",'1. Order'!O1234)","v":{"$error":"#N/A"}},{"$f":"IF('1. Order'!P1234=\"\",\"\",'1. Order'!P1234)","v":{"$error":"#N/A"}},{"$f":"IF('1. Order'!Q1234=\"\",\"\",'1. Order'!Q1234)","v":""},{"$f":"IF('1. Order'!S1234=\"\",\"\",'1. Order'!S1234)","v":""},{"$f":"IF('1. Order'!T1234=\"\",\"\",'1. Order'!T1234)","v":""},{"$f":"IF('1. Order'!W1234=\"\",\"\",'1. Order'!W1234)","v":""},{"$f":"IF('1. Order'!X1234=\"\",\"\",'1. Order'!X1234)","v":""},{"$f":"IF('1. Order'!Y1234=\"\",\"\",'1. Order'!Y1234)","v":"EUR"},{"$f":"IF('1. Order'!Z1234=\"\",\"\",'1. Order'!Z1234)","v":""},{"$f":"IF('1. Order'!AA1234=\"\",\"\",'1. Order'!AA1234)","v":""},{"$f":"IF('1. Order'!AB1234=\"\",\"\",'1. Order'!AB1234)","v":""},null,{"$f":"IF('1. Order'!AT1234=\"\",\"\",'1. Order'!AT1234)","v":""},{"$f":"IF('1. Order'!AU1234=\"\",\"\",'1. Order'!AU1234)","v":""},null,null,null,null,null,null,null,{"$f":"IF('1. Order'!AY1234=\"\",\"\",'1. Order'!AY1234)","v":""},{"$f":"IF('1. Order'!AZ1234=\"\",\"\",'1. Order'!AZ1234)","v":""},{"$f":"IF('1. Order'!BA1234=\"\",\"\",'1. Order'!BA1234)","v":""},{"$f":"IF('1. Order'!BB1234=\"\",\"\",'1. Order'!BB1234)","v":""},{"$f":"IF('1. Order'!BD1234=\"\",\"\",'1. Order'!BD1234)","v":""},{"$f":"IF('1. Order'!BE1234=\"\",\"\",'1. Order'!BE1234)","v":""},{"$f":"IF('1. Order'!BF1234=\"\",\"\",'1. Order'!BF1234)","v":""},{"$f":"IF('1. Order'!BG1234=\"\",\"\",'1. Order'!BG1234)","v":""},{"$f":"IF('1. Order'!BH1234=\"\",\"\",'1. Order'!BH1234)","v":"ZWO"}]
[{"$f":"IF('1. Order'!F1235=\"\",\"\",'1. Order'!F1235)","v":{"$error":"#N/A"}},{"$f":"IF('1. Order'!G1235=\"\",\"\",'1. Order'!G1235)","v":""},{"$f":"IF('1. Order'!H1235=\"\",\"\",'1. Order'!H1235)","v":""},{"$f":"IF('1. Order'!I1235=\"\",\"\",'1. Order'!I1235)","v":""},{"$f":"IF('1. Order'!J1235=\"\",\"\",'1. Order'!J1235)","v":""},{"$f":"IF('1. Order'!K1235=\"\",\"\",'1. Order'!K1235)","v":""},{"$f":"IF('1. Order'!L1235=\"\",\"\",'1. Order'!L1235)","v":""},{"$f":"IF('1. Order'!M1235=\"\",\"\",'1. Order'!M1235)","v":""},{"$f":"IF('1. Order'!N1235=\"\",\"\",'1. Order'!N1235)","v":""},{"$f":"IF('1. Order'!O1235=\"\",\"\",'1. Order'!O1235)","v":{"$error":"#N/A"}},{"$f":"IF('1. Order'!P1235=\"\",\"\",'1. Order'!P1235)","v":{"$error":"#N/A"}},{"$f":"IF('1. Order'!Q1235=\"\",\"\",'1. Order'!Q1235)","v":""},{"$f":"IF('1. Order'!S1235=\"\",\"\",'1. Order'!S1235)","v":""},{"$f":"IF('1. Order'!T1235=\"\",\"\",'1. Order'!T1235)","v":""},{"$f":"IF('1. Order'!W1235=\"\",\"\",'1. Order'!W1235)","v":""},{"$f":"IF('1. Order'!X1235=\"\",\"\",'1. Order'!X1235)","v":""},{"$f":"IF('1. Order'!Y1235=\"\",\"\",'1. Order'!Y1235)","v":"EUR"},{"$f":"IF('1. Order'!Z1235=\"\",\"\",'1. Order'!Z1235)","v":""},{"$f":"IF('1. Order'!AA1235=\"\",\"\",'1. Order'!AA1235)","v":""},{"$f":"IF('1. Order'!AB1235=\"\",\"\",'1. Order'!AB1235)","v":""},null,{"$f":"IF('1. Order'!AT1235=\"\",\"\",'1. Order'!AT1235)","v":""},{"$f":"IF('1. Order'!AU1235=\"\",\"\",'1. Order'!AU1235)","v":""},null,null,null,null,null,null,null,{"$f":"IF('1. Order'!AY1235=\"\",\"\",'1. Order'!AY1235)","v":""},{"$f":"IF('1. Order'!AZ1235=\"\",\"\",'1. Order'!AZ1235)","v":""},{"$f":"IF('1. Order'!BA1235=\"\",\"\",'1. Order'!BA1235)","v":""},{"$f":"IF('1. Order'!BB1235=\"\",\"\",'1. Order'!BB1235)","v":""},{"$f":"IF('1. Order'!BD1235=\"\",\"\",'1. Order'!BD1235)","v":""},{"$f":"IF('1. Order'!BE1235=\"\",\"\",'1. Order'!BE1235)","v":""},{"$f":"IF('1. Order'!BF1235=\"\",\"\",'1. Order'!BF1235)","v":""},{"$f":"IF('1. Order'!BG1235=\"\",\"\",'1. Order'!BG1235)","v":""},{"$f":"IF('1. Order'!BH1235=\"\",\"\",'1. Order'!BH1235)","v":"ZWO"}]
[{"$f":"IF('1. Order'!F1236=\"\",\"\",'1. Order'!F1236)","v":{"$error":"#N/A"}},{"$f":"IF('1. Order'!G1236=\"\",\"\",'1. Order'!G1236)","v":""},{"$f":"IF('1. Order'!H1236=\"\",\"\",'1. Order'!H1236)","v":""},{"$f":"IF('1. Order'!I1236=\"\",\"\",'1. Order'!I1236)","v":""},{"$f":"IF('1. Order'!J1236=\"\",\"\",'1. Order'!J1236)","v":""},{"$f":"IF('1. Order'!K1236=\"\",\"\",'1. Order'!K1236)","v":""},{"$f":"IF('1. Order'!L1236=\"\",\"\",'1. Order'!L1236)","v":""},{"$f":"IF('1. Order'!M1236=\"\",\"\",'1. Order'!M1236)","v":""},{"$f":"IF('1. Order'!N1236=\"\",\"\",'1. Order'!N1236)","v":""},{"$f":"IF('1. Order'!O1236=\"\",\"\",'1. Order'!O1236)","v":{"$error":"#N/A"}},{"$f":"IF('1. Order'!P1236=\"\",\"\",'1. Order'!P1236)","v":{"$error":"#N/A"}},{"$f":"IF('1. Order'!Q1236=\"\",\"\",'1. Order'!Q1236)","v":""},{"$f":"IF('1. Order'!S1236=\"\",\"\",'1. Order'!S1236)","v":""},{"$f":"IF('1. Order'!T1236=\"\",\"\",'1. Order'!T1236)","v":""},{"$f":"IF('1. Order'!W1236=\"\",\"\",'1. Order'!W1236)","v":""},{"$f":"IF('1. Order'!X1236=\"\",\"\",'1. Order'!X1236)","v":""},{"$f":"IF('1. Order'!Y1236=\"\",\"\",'1. Order'!Y1236)","v":"EUR"},{"$f":"IF('1. Order'!Z1236=\"\",\"\",'1. Order'!Z1236)","v":""},{"$f":"IF('1. Order'!AA1236=\"\",\"\",'1. Order'!AA1236)","v":""},{"$f":"IF('1. Order'!AB1236=\"\",\"\",'1. Order'!AB1236)","v":""},null,{"$f":"IF('1. Order'!AT1236=\"\",\"\",'1. Order'!AT1236)","v":""},{"$f":"IF('1. Order'!AU1236=\"\",\"\",'1. Order'!AU1236)","v":""},null,null,null,null,null,null,null,{"$f":"IF('1. Order'!AY1236=\"\",\"\",'1. Order'!AY1236)","v":""},{"$f":"IF('1. Order'!AZ1236=\"\",\"\",'1. Order'!AZ1236)","v":""},{"$f":"IF('1. Order'!BA1236=\"\",\"\",'1. Order'!BA1236)","v":""},{"$f":"IF('1. Order'!BB1236=\"\",\"\",'1. Order'!BB1236)","v":""},{"$f":"IF('1. Order'!BD1236=\"\",\"\",'1. Order'!BD1236)","v":""},{"$f":"IF('1. Order'!BE1236=\"\",\"\",'1. Order'!BE1236)","v":""},{"$f":"IF('1. Order'!BF1236=\"\",\"\",'1. Order'!BF1236)","v":""},{"$f":"IF('1. Order'!BG1236=\"\",\"\",'1. Order'!BG1236)","v":""},{"$f":"IF('1. Order'!BH1236=\"\",\"\",'1. Order'!BH1236)","v":"ZWO"}]
[{"$f":"IF('1. Order'!F1237=\"\",\"\",'1. Order'!F1237)","v":{"$error":"#N/A"}},{"$f":"IF('1. Order'!G1237=\"\",\"\",'1. Order'!G1237)","v":""},{"$f":"IF('1. Order'!H1237=\"\",\"\",'1. Order'!H1237)","v":""},{"$f":"IF('1. Order'!I1237=\"\",\"\",'1. Order'!I1237)","v":""},{"$f":"IF('1. Order'!J1237=\"\",\"\",'1. Order'!J1237)","v":""},{"$f":"IF('1. Order'!K1237=\"\",\"\",'1. Order'!K1237)","v":""},{"$f":"IF('1. Order'!L1237=\"\",\"\",'1. Order'!L1237)","v":""},{"$f":"IF('1. Order'!M1237=\"\",\"\",'1. Order'!M1237)","v":""},{"$f":"IF('1. Order'!N1237=\"\",\"\",'1. Order'!N1237)","v":""},{"$f":"IF('1. Order'!O1237=\"\",\"\",'1. Order'!O1237)","v":{"$error":"#N/A"}},{"$f":"IF('1. Order'!P1237=\"\",\"\",'1. Order'!P1237)","v":{"$error":"#N/A"}},{"$f":"IF('1. Order'!Q1237=\"\",\"\",'1. Order'!Q1237)","v":""},{"$f":"IF('1. Order'!S1237=\"\",\"\",'1. Order'!S1237)","v":""},{"$f":"IF('1. Order'!T1237=\"\",\"\",'1. Order'!T1237)","v":""},{"$f":"IF('1. Order'!W1237=\"\",\"\",'1. Order'!W1237)","v":""},{"$f":"IF('1. Order'!X1237=\"\",\"\",'1. Order'!X1237)","v":""},{"$f":"IF('1. Order'!Y1237=\"\",\"\",'1. Order'!Y1237)","v":"EUR"},{"$f":"IF('1. Order'!Z1237=\"\",\"\",'1. Order'!Z1237)","v":""},{"$f":"IF('1. Order'!AA1237=\"\",\"\",'1. Order'!AA1237)","v":""},{"$f":"IF('1. Order'!AB1237=\"\",\"\",'1. Order'!AB1237)","v":""},null,{"$f":"IF('1. Order'!AT1237=\"\",\"\",'1. Order'!AT1237)","v":""},{"$f":"IF('1. Order'!AU1237=\"\",\"\",'1. Order'!AU1237)","v":""},null,null,null,null,null,null,null,{"$f":"IF('1. Order'!AY1237=\"\",\"\",'1. Order'!AY1237)","v":""},{"$f":"IF('1. Order'!AZ1237=\"\",\"\",'1. Order'!AZ1237)","v":""},{"$f":"IF('1. Order'!BA1237=\"\",\"\",'1. Order'!BA1237)","v":""},{"$f":"IF('1. Order'!BB1237=\"\",\"\",'1. Order'!BB1237)","v":""},{"$f":"IF('1. Order'!BD1237=\"\",\"\",'1. Order'!BD1237)","v":""},{"$f":"IF('1. Order'!BE1237=\"\",\"\",'1. Order'!BE1237)","v":""},{"$f":"IF('1. Order'!BF1237=\"\",\"\",'1. Order'!BF1237)","v":""},{"$f":"IF('1. Order'!BG1237=\"\",\"\",'1. Order'!BG1237)","v":""},{"$f":"IF('1. Order'!BH1237=\"\",\"\",'1. Order'!BH1237)","v":"ZWO"}]
[{"$f":"IF('1. Order'!F1238=\"\",\"\",'1. Order'!F1238)","v":{"$error":"#N/A"}},{"$f":"IF('1. Order'!G1238=\"\",\"\",'1. Order'!G1238)","v":""},{"$f":"IF('1. Order'!H1238=\"\",\"\",'1. Order'!H1238)","v":""},{"$f":"IF('1. Order'!I1238=\"\",\"\",'1. Order'!I1238)","v":""},{"$f":"IF('1. Order'!J1238=\"\",\"\",'1. Order'!J1238)","v":""},{"$f":"IF('1. Order'!K1238=\"\",\"\",'1. Order'!K1238)","v":""},{"$f":"IF('1. Order'!L1238=\"\",\"\",'1. Order'!L1238)","v":""},{"$f":"IF('1. Order'!M1238=\"\",\"\",'1. Order'!M1238)","v":""},{"$f":"IF('1. Order'!N1238=\"\",\"\",'1. Order'!N1238)","v":""},{"$f":"IF('1. Order'!O1238=\"\",\"\",'1. Order'!O1238)","v":{"$error":"#N/A"}},{"$f":"IF('1. Order'!P1238=\"\",\"\",'1. Order'!P1238)","v":{"$error":"#N/A"}},{"$f":"IF('1. Order'!Q1238=\"\",\"\",'1. Order'!Q1238)","v":""},{"$f":"IF('1. Order'!S1238=\"\",\"\",'1. Order'!S1238)","v":""},{"$f":"IF('1. Order'!T1238=\"\",\"\",'1. Order'!T1238)","v":""},{"$f":"IF('1. Order'!W1238=\"\",\"\",'1. Order'!W1238)","v":""},{"$f":"IF('1. Order'!X1238=\"\",\"\",'1. Order'!X1238)","v":""},{"$f":"IF('1. Order'!Y1238=\"\",\"\",'1. Order'!Y1238)","v":"EUR"},{"$f":"IF('1. Order'!Z1238=\"\",\"\",'1. Order'!Z1238)","v":""},{"$f":"IF('1. Order'!AA1238=\"\",\"\",'1. Order'!AA1238)","v":""},{"$f":"IF('1. Order'!AB1238=\"\",\"\",'1. Order'!AB1238)","v":""},null,{"$f":"IF('1. Order'!AT1238=\"\",\"\",'1. Order'!AT1238)","v":""},{"$f":"IF('1. Order'!AU1238=\"\",\"\",'1. Order'!AU1238)","v":""},null,null,null,null,null,null,null,{"$f":"IF('1. Order'!AY1238=\"\",\"\",'1. Order'!AY1238)","v":""},{"$f":"IF('1. Order'!AZ1238=\"\",\"\",'1. Order'!AZ1238)","v":""},{"$f":"IF('1. Order'!BA1238=\"\",\"\",'1. Order'!BA1238)","v":""},{"$f":"IF('1. Order'!BB1238=\"\",\"\",'1. Order'!BB1238)","v":""},{"$f":"IF('1. Order'!BD1238=\"\",\"\",'1. Order'!BD1238)","v":""},{"$f":"IF('1. Order'!BE1238=\"\",\"\",'1. Order'!BE1238)","v":""},{"$f":"IF('1. Order'!BF1238=\"\",\"\",'1. Order'!BF1238)","v":""},{"$f":"IF('1. Order'!BG1238=\"\",\"\",'1. Order'!BG1238)","v":""},{"$f":"IF('1. Order'!BH1238=\"\",\"\",'1. Order'!BH1238)","v":"ZWO"}]
[{"$f":"IF('1. Order'!F1239=\"\",\"\",'1. Order'!F1239)","v":{"$error":"#N/A"}},{"$f":"IF('1. Order'!G1239=\"\",\"\",'1. Order'!G1239)","v":""},{"$f":"IF('1. Order'!H1239=\"\",\"\",'1. Order'!H1239)","v":""},{"$f":"IF('1. Order'!I1239=\"\",\"\",'1. Order'!I1239)","v":""},{"$f":"IF('1. Order'!J1239=\"\",\"\",'1. Order'!J1239)","v":""},{"$f":"IF('1. Order'!K1239=\"\",\"\",'1. Order'!K1239)","v":""},{"$f":"IF('1. Order'!L1239=\"\",\"\",'1. Order'!L1239)","v":""},{"$f":"IF('1. Order'!M1239=\"\",\"\",'1. Order'!M1239)","v":""},{"$f":"IF('1. Order'!N1239=\"\",\"\",'1. Order'!N1239)","v":""},{"$f":"IF('1. Order'!O1239=\"\",\"\",'1. Order'!O1239)","v":{"$error":"#N/A"}},{"$f":"IF('1. Order'!P1239=\"\",\"\",'1. Order'!P1239)","v":{"$error":"#N/A"}},{"$f":"IF('1. Order'!Q1239=\"\",\"\",'1. Order'!Q1239)","v":""},{"$f":"IF('1. Order'!S1239=\"\",\"\",'1. Order'!S1239)","v":""},{"$f":"IF('1. Order'!T1239=\"\",\"\",'1. Order'!T1239)","v":""},{"$f":"IF('1. Order'!W1239=\"\",\"\",'1. Order'!W1239)","v":""},{"$f":"IF('1. Order'!X1239=\"\",\"\",'1. Order'!X1239)","v":""},{"$f":"IF('1. Order'!Y1239=\"\",\"\",'1. Order'!Y1239)","v":"EUR"},{"$f":"IF('1. Order'!Z1239=\"\",\"\",'1. Order'!Z1239)","v":""},{"$f":"IF('1. Order'!AA1239=\"\",\"\",'1. Order'!AA1239)","v":""},{"$f":"IF('1. Order'!AB1239=\"\",\"\",'1. Order'!AB1239)","v":""},null,{"$f":"IF('1. Order'!AT1239=\"\",\"\",'1. Order'!AT1239)","v":""},{"$f":"IF('1. Order'!AU1239=\"\",\"\",'1. Order'!AU1239)","v":""},null,null,null,null,null,null,null,{"$f":"IF('1. Order'!AY1239=\"\",\"\",'1. Order'!AY1239)","v":""},{"$f":"IF('1. Order'!AZ1239=\"\",\"\",'1. Order'!AZ1239)","v":""},{"$f":"IF('1. Order'!BA1239=\"\",\"\",'1. Order'!BA1239)","v":""},{"$f":"IF('1. Order'!BB1239=\"\",\"\",'1. Order'!BB1239)","v":""},{"$f":"IF('1. Order'!BD1239=\"\",\"\",'1. Order'!BD1239)","v":""},{"$f":"IF('1. Order'!BE1239=\"\",\"\",'1. Order'!BE1239)","v":""},{"$f":"IF('1. Order'!BF1239=\"\",\"\",'1. Order'!BF1239)","v":""},{"$f":"IF('1. Order'!BG1239=\"\",\"\",'1. Order'!BG1239)","v":""},{"$f":"IF('1. Order'!BH1239=\"\",\"\",'1. Order'!BH1239)","v":"ZWO"}]
[{"$f":"IF('1. Order'!F1240=\"\",\"\",'1. Order'!F1240)","v":{"$error":"#N/A"}},{"$f":"IF('1. Order'!G1240=\"\",\"\",'1. Order'!G1240)","v":""},{"$f":"IF('1. Order'!H1240=\"\",\"\",'1. Order'!H1240)","v":""},{"$f":"IF('1. Order'!I1240=\"\",\"\",'1. Order'!I1240)","v":""},{"$f":"IF('1. Order'!J1240=\"\",\"\",'1. Order'!J1240)","v":""},{"$f":"IF('1. Order'!K1240=\"\",\"\",'1. Order'!K1240)","v":""},{"$f":"IF('1. Order'!L1240=\"\",\"\",'1. Order'!L1240)","v":""},{"$f":"IF('1. Order'!M1240=\"\",\"\",'1. Order'!M1240)","v":""},{"$f":"IF('1. Order'!N1240=\"\",\"\",'1. Order'!N1240)","v":""},{"$f":"IF('1. Order'!O1240=\"\",\"\",'1. Order'!O1240)","v":{"$error":"#N/A"}},{"$f":"IF('1. Order'!P1240=\"\",\"\",'1. Order'!P1240)","v":{"$error":"#N/A"}},{"$f":"IF('1. Order'!Q1240=\"\",\"\",'1. Order'!Q1240)","v":""},{"$f":"IF('1. Order'!S1240=\"\",\"\",'1. Order'!S1240)","v":""},{"$f":"IF('1. Order'!T1240=\"\",\"\",'1. Order'!T1240)","v":""},{"$f":"IF('1. Order'!W1240=\"\",\"\",'1. Order'!W1240)","v":""},{"$f":"IF('1. Order'!X1240=\"\",\"\",'1. Order'!X1240)","v":""},{"$f":"IF('1. Order'!Y1240=\"\",\"\",'1. Order'!Y1240)","v":"EUR"},{"$f":"IF('1. Order'!Z1240=\"\",\"\",'1. Order'!Z1240)","v":""},{"$f":"IF('1. Order'!AA1240=\"\",\"\",'1. Order'!AA1240)","v":""},{"$f":"IF('1. Order'!AB1240=\"\",\"\",'1. Order'!AB1240)","v":""},null,{"$f":"IF('1. Order'!AT1240=\"\",\"\",'1. Order'!AT1240)","v":""},{"$f":"IF('1. Order'!AU1240=\"\",\"\",'1. Order'!AU1240)","v":""},null,null,null,null,null,null,null,{"$f":"IF('1. Order'!AY1240=\"\",\"\",'1. Order'!AY1240)","v":""},{"$f":"IF('1. Order'!AZ1240=\"\",\"\",'1. Order'!AZ1240)","v":""},{"$f":"IF('1. Order'!BA1240=\"\",\"\",'1. Order'!BA1240)","v":""},{"$f":"IF('1. Order'!BB1240=\"\",\"\",'1. Order'!BB1240)","v":""},{"$f":"IF('1. Order'!BD1240=\"\",\"\",'1. Order'!BD1240)","v":""},{"$f":"IF('1. Order'!BE1240=\"\",\"\",'1. Order'!BE1240)","v":""},{"$f":"IF('1. Order'!BF1240=\"\",\"\",'1. Order'!BF1240)","v":""},{"$f":"IF('1. Order'!BG1240=\"\",\"\",'1. Order'!BG1240)","v":""},{"$f":"IF('1. Order'!BH1240=\"\",\"\",'1. Order'!BH1240)","v":"ZWO"}]
[{"$f":"IF('1. Order'!F1241=\"\",\"\",'1. Order'!F1241)","v":{"$error":"#N/A"}},{"$f":"IF('1. Order'!G1241=\"\",\"\",'1. Order'!G1241)","v":""},{"$f":"IF('1. Order'!H1241=\"\",\"\",'1. Order'!H1241)","v":""},{"$f":"IF('1. Order'!I1241=\"\",\"\",'1. Order'!I1241)","v":""},{"$f":"IF('1. Order'!J1241=\"\",\"\",'1. Order'!J1241)","v":""},{"$f":"IF('1. Order'!K1241=\"\",\"\",'1. Order'!K1241)","v":""},{"$f":"IF('1. Order'!L1241=\"\",\"\",'1. Order'!L1241)","v":""},{"$f":"IF('1. Order'!M1241=\"\",\"\",'1. Order'!M1241)","v":""},{"$f":"IF('1. Order'!N1241=\"\",\"\",'1. Order'!N1241)","v":""},{"$f":"IF('1. Order'!O1241=\"\",\"\",'1. Order'!O1241)","v":{"$error":"#N/A"}},{"$f":"IF('1. Order'!P1241=\"\",\"\",'1. Order'!P1241)","v":{"$error":"#N/A"}},{"$f":"IF('1. Order'!Q1241=\"\",\"\",'1. Order'!Q1241)","v":""},{"$f":"IF('1. Order'!S1241=\"\",\"\",'1. Order'!S1241)","v":""},{"$f":"IF('1. Order'!T1241=\"\",\"\",'1. Order'!T1241)","v":""},{"$f":"IF('1. Order'!W1241=\"\",\"\",'1. Order'!W1241)","v":""},{"$f":"IF('1. Order'!X1241=\"\",\"\",'1. Order'!X1241)","v":""},{"$f":"IF('1. Order'!Y1241=\"\",\"\",'1. Order'!Y1241)","v":"EUR"},{"$f":"IF('1. Order'!Z1241=\"\",\"\",'1. Order'!Z1241)","v":""},{"$f":"IF('1. Order'!AA1241=\"\",\"\",'1. Order'!AA1241)","v":""},{"$f":"IF('1. Order'!AB1241=\"\",\"\",'1. Order'!AB1241)","v":""},null,{"$f":"IF('1. Order'!AT1241=\"\",\"\",'1. Order'!AT1241)","v":""},{"$f":"IF('1. Order'!AU1241=\"\",\"\",'1. Order'!AU1241)","v":""},null,null,null,null,null,null,null,{"$f":"IF('1. Order'!AY1241=\"\",\"\",'1. Order'!AY1241)","v":""},{"$f":"IF('1. Order'!AZ1241=\"\",\"\",'1. Order'!AZ1241)","v":""},{"$f":"IF('1. Order'!BA1241=\"\",\"\",'1. Order'!BA1241)","v":""},{"$f":"IF('1. Order'!BB1241=\"\",\"\",'1. Order'!BB1241)","v":""},{"$f":"IF('1. Order'!BD1241=\"\",\"\",'1. Order'!BD1241)","v":""},{"$f":"IF('1. Order'!BE1241=\"\",\"\",'1. Order'!BE1241)","v":""},{"$f":"IF('1. Order'!BF1241=\"\",\"\",'1. Order'!BF1241)","v":""},{"$f":"IF('1. Order'!BG1241=\"\",\"\",'1. Order'!BG1241)","v":""},{"$f":"IF('1. Order'!BH1241=\"\",\"\",'1. Order'!BH1241)","v":"ZWO"}]
[{"$f":"IF('1. Order'!F1242=\"\",\"\",'1. Order'!F1242)","v":{"$error":"#N/A"}},{"$f":"IF('1. Order'!G1242=\"\",\"\",'1. Order'!G1242)","v":""},{"$f":"IF('1. Order'!H1242=\"\",\"\",'1. Order'!H1242)","v":""},{"$f":"IF('1. Order'!I1242=\"\",\"\",'1. Order'!I1242)","v":""},{"$f":"IF('1. Order'!J1242=\"\",\"\",'1. Order'!J1242)","v":""},{"$f":"IF('1. Order'!K1242=\"\",\"\",'1. Order'!K1242)","v":""},{"$f":"IF('1. Order'!L1242=\"\",\"\",'1. Order'!L1242)","v":""},{"$f":"IF('1. Order'!M1242=\"\",\"\",'1. Order'!M1242)","v":""},{"$f":"IF('1. Order'!N1242=\"\",\"\",'1. Order'!N1242)","v":""},{"$f":"IF('1. Order'!O1242=\"\",\"\",'1. Order'!O1242)","v":{"$error":"#N/A"}},{"$f":"IF('1. Order'!P1242=\"\",\"\",'1. Order'!P1242)","v":{"$error":"#N/A"}},{"$f":"IF('1. Order'!Q1242=\"\",\"\",'1. Order'!Q1242)","v":""},{"$f":"IF('1. Order'!S1242=\"\",\"\",'1. Order'!S1242)","v":""},{"$f":"IF('1. Order'!T1242=\"\",\"\",'1. Order'!T1242)","v":""},{"$f":"IF('1. Order'!W1242=\"\",\"\",'1. Order'!W1242)","v":""},{"$f":"IF('1. Order'!X1242=\"\",\"\",'1. Order'!X1242)","v":""},{"$f":"IF('1. Order'!Y1242=\"\",\"\",'1. Order'!Y1242)","v":"EUR"},{"$f":"IF('1. Order'!Z1242=\"\",\"\",'1. Order'!Z1242)","v":""},{"$f":"IF('1. Order'!AA1242=\"\",\"\",'1. Order'!AA1242)","v":""},{"$f":"IF('1. Order'!AB1242=\"\",\"\",'1. Order'!AB1242)","v":""},null,{"$f":"IF('1. Order'!AT1242=\"\",\"\",'1. Order'!AT1242)","v":""},{"$f":"IF('1. Order'!AU1242=\"\",\"\",'1. Order'!AU1242)","v":""},null,null,null,null,null,null,null,{"$f":"IF('1. Order'!AY1242=\"\",\"\",'1. Order'!AY1242)","v":""},{"$f":"IF('1. Order'!AZ1242=\"\",\"\",'1. Order'!AZ1242)","v":""},{"$f":"IF('1. Order'!BA1242=\"\",\"\",'1. Order'!BA1242)","v":""},{"$f":"IF('1. Order'!BB1242=\"\",\"\",'1. Order'!BB1242)","v":""},{"$f":"IF('1. Order'!BD1242=\"\",\"\",'1. Order'!BD1242)","v":""},{"$f":"IF('1. Order'!BE1242=\"\",\"\",'1. Order'!BE1242)","v":""},{"$f":"IF('1. Order'!BF1242=\"\",\"\",'1. Order'!BF1242)","v":""},{"$f":"IF('1. Order'!BG1242=\"\",\"\",'1. Order'!BG1242)","v":""},{"$f":"IF('1. Order'!BH1242=\"\",\"\",'1. Order'!BH1242)","v":"ZWO"}]
[{"$f":"IF('1. Order'!F1243=\"\",\"\",'1. Order'!F1243)","v":{"$error":"#N/A"}},{"$f":"IF('1. Order'!G1243=\"\",\"\",'1. Order'!G1243)","v":""},{"$f":"IF('1. Order'!H1243=\"\",\"\",'1. Order'!H1243)","v":""},{"$f":"IF('1. Order'!I1243=\"\",\"\",'1. Order'!I1243)","v":""},{"$f":"IF('1. Order'!J1243=\"\",\"\",'1. Order'!J1243)","v":""},{"$f":"IF('1. Order'!K1243=\"\",\"\",'1. Order'!K1243)","v":""},{"$f":"IF('1. Order'!L1243=\"\",\"\",'1. Order'!L1243)","v":""},{"$f":"IF('1. Order'!M1243=\"\",\"\",'1. Order'!M1243)","v":""},{"$f":"IF('1. Order'!N1243=\"\",\"\",'1. Order'!N1243)","v":""},{"$f":"IF('1. Order'!O1243=\"\",\"\",'1. Order'!O1243)","v":{"$error":"#N/A"}},{"$f":"IF('1. Order'!P1243=\"\",\"\",'1. Order'!P1243)","v":{"$error":"#N/A"}},{"$f":"IF('1. Order'!Q1243=\"\",\"\",'1. Order'!Q1243)","v":""},{"$f":"IF('1. Order'!S1243=\"\",\"\",'1. Order'!S1243)","v":""},{"$f":"IF('1. Order'!T1243=\"\",\"\",'1. Order'!T1243)","v":""},{"$f":"IF('1. Order'!W1243=\"\",\"\",'1. Order'!W1243)","v":""},{"$f":"IF('1. Order'!X1243=\"\",\"\",'1. Order'!X1243)","v":""},{"$f":"IF('1. Order'!Y1243=\"\",\"\",'1. Order'!Y1243)","v":"EUR"},{"$f":"IF('1. Order'!Z1243=\"\",\"\",'1. Order'!Z1243)","v":""},{"$f":"IF('1. Order'!AA1243=\"\",\"\",'1. Order'!AA1243)","v":""},{"$f":"IF('1. Order'!AB1243=\"\",\"\",'1. Order'!AB1243)","v":""},null,{"$f":"IF('1. Order'!AT1243=\"\",\"\",'1. Order'!AT1243)","v":""},{"$f":"IF('1. Order'!AU1243=\"\",\"\",'1. Order'!AU1243)","v":""},null,null,null,null,null,null,null,{"$f":"IF('1. Order'!AY1243=\"\",\"\",'1. Order'!AY1243)","v":""},{"$f":"IF('1. Order'!AZ1243=\"\",\"\",'1. Order'!AZ1243)","v":""},{"$f":"IF('1. Order'!BA1243=\"\",\"\",'1. Order'!BA1243)","v":""},{"$f":"IF('1. Order'!BB1243=\"\",\"\",'1. Order'!BB1243)","v":""},{"$f":"IF('1. Order'!BD1243=\"\",\"\",'1. Order'!BD1243)","v":""},{"$f":"IF('1. Order'!BE1243=\"\",\"\",'1. Order'!BE1243)","v":""},{"$f":"IF('1. Order'!BF1243=\"\",\"\",'1. Order'!BF1243)","v":""},{"$f":"IF('1. Order'!BG1243=\"\",\"\",'1. Order'!BG1243)","v":""},{"$f":"IF('1. Order'!BH1243=\"\",\"\",'1. Order'!BH1243)","v":"ZWO"}]
[{"$f":"IF('1. Order'!F1244=\"\",\"\",'1. Order'!F1244)","v":{"$error":"#N/A"}},{"$f":"IF('1. Order'!G1244=\"\",\"\",'1. Order'!G1244)","v":""},{"$f":"IF('1. Order'!H1244=\"\",\"\",'1. Order'!H1244)","v":""},{"$f":"IF('1. Order'!I1244=\"\",\"\",'1. Order'!I1244)","v":""},{"$f":"IF('1. Order'!J1244=\"\",\"\",'1. Order'!J1244)","v":""},{"$f":"IF('1. Order'!K1244=\"\",\"\",'1. Order'!K1244)","v":""},{"$f":"IF('1. Order'!L1244=\"\",\"\",'1. Order'!L1244)","v":""},{"$f":"IF('1. Order'!M1244=\"\",\"\",'1. Order'!M1244)","v":""},{"$f":"IF('1. Order'!N1244=\"\",\"\",'1. Order'!N1244)","v":""},{"$f":"IF('1. Order'!O1244=\"\",\"\",'1. Order'!O1244)","v":{"$error":"#N/A"}},{"$f":"IF('1. Order'!P1244=\"\",\"\",'1. Order'!P1244)","v":{"$error":"#N/A"}},{"$f":"IF('1. Order'!Q1244=\"\",\"\",'1. Order'!Q1244)","v":""},{"$f":"IF('1. Order'!S1244=\"\",\"\",'1. Order'!S1244)","v":""},{"$f":"IF('1. Order'!T1244=\"\",\"\",'1. Order'!T1244)","v":""},{"$f":"IF('1. Order'!W1244=\"\",\"\",'1. Order'!W1244)","v":""},{"$f":"IF('1. Order'!X1244=\"\",\"\",'1. Order'!X1244)","v":""},{"$f":"IF('1. Order'!Y1244=\"\",\"\",'1. Order'!Y1244)","v":"EUR"},{"$f":"IF('1. Order'!Z1244=\"\",\"\",'1. Order'!Z1244)","v":""},{"$f":"IF('1. Order'!AA1244=\"\",\"\",'1. Order'!AA1244)","v":""},{"$f":"IF('1. Order'!AB1244=\"\",\"\",'1. Order'!AB1244)","v":""},null,{"$f":"IF('1. Order'!AT1244=\"\",\"\",'1. Order'!AT1244)","v":""},{"$f":"IF('1. Order'!AU1244=\"\",\"\",'1. Order'!AU1244)","v":""},null,null,null,null,null,null,null,{"$f":"IF('1. Order'!AY1244=\"\",\"\",'1. Order'!AY1244)","v":""},{"$f":"IF('1. Order'!AZ1244=\"\",\"\",'1. Order'!AZ1244)","v":""},{"$f":"IF('1. Order'!BA1244=\"\",\"\",'1. Order'!BA1244)","v":""},{"$f":"IF('1. Order'!BB1244=\"\",\"\",'1. Order'!BB1244)","v":""},{"$f":"IF('1. Order'!BD1244=\"\",\"\",'1. Order'!BD1244)","v":""},{"$f":"IF('1. Order'!BE1244=\"\",\"\",'1. Order'!BE1244)","v":""},{"$f":"IF('1. Order'!BF1244=\"\",\"\",'1. Order'!BF1244)","v":""},{"$f":"IF('1. Order'!BG1244=\"\",\"\",'1. Order'!BG1244)","v":""},{"$f":"IF('1. Order'!BH1244=\"\",\"\",'1. Order'!BH1244)","v":"ZWO"}]
[{"$f":"IF('1. Order'!F1245=\"\",\"\",'1. Order'!F1245)","v":{"$error":"#N/A"}},{"$f":"IF('1. Order'!G1245=\"\",\"\",'1. Order'!G1245)","v":""},{"$f":"IF('1. Order'!H1245=\"\",\"\",'1. Order'!H1245)","v":""},{"$f":"IF('1. Order'!I1245=\"\",\"\",'1. Order'!I1245)","v":""},{"$f":"IF('1. Order'!J1245=\"\",\"\",'1. Order'!J1245)","v":""},{"$f":"IF('1. Order'!K1245=\"\",\"\",'1. Order'!K1245)","v":""},{"$f":"IF('1. Order'!L1245=\"\",\"\",'1. Order'!L1245)","v":""},{"$f":"IF('1. Order'!M1245=\"\",\"\",'1. Order'!M1245)","v":""},{"$f":"IF('1. Order'!N1245=\"\",\"\",'1. Order'!N1245)","v":""},{"$f":"IF('1. Order'!O1245=\"\",\"\",'1. Order'!O1245)","v":{"$error":"#N/A"}},{"$f":"IF('1. Order'!P1245=\"\",\"\",'1. Order'!P1245)","v":{"$error":"#N/A"}},{"$f":"IF('1. Order'!Q1245=\"\",\"\",'1. Order'!Q1245)","v":""},{"$f":"IF('1. Order'!S1245=\"\",\"\",'1. Order'!S1245)","v":""},{"$f":"IF('1. Order'!T1245=\"\",\"\",'1. Order'!T1245)","v":""},{"$f":"IF('1. Order'!W1245=\"\",\"\",'1. Order'!W1245)","v":""},{"$f":"IF('1. Order'!X1245=\"\",\"\",'1. Order'!X1245)","v":""},{"$f":"IF('1. Order'!Y1245=\"\",\"\",'1. Order'!Y1245)","v":"EUR"},{"$f":"IF('1. Order'!Z1245=\"\",\"\",'1. Order'!Z1245)","v":""},{"$f":"IF('1. Order'!AA1245=\"\",\"\",'1. Order'!AA1245)","v":""},{"$f":"IF('1. Order'!AB1245=\"\",\"\",'1. Order'!AB1245)","v":""},null,{"$f":"IF('1. Order'!AT1245=\"\",\"\",'1. Order'!AT1245)","v":""},{"$f":"IF('1. Order'!AU1245=\"\",\"\",'1. Order'!AU1245)","v":""},null,null,null,null,null,null,null,{"$f":"IF('1. Order'!AY1245=\"\",\"\",'1. Order'!AY1245)","v":""},{"$f":"IF('1. Order'!AZ1245=\"\",\"\",'1. Order'!AZ1245)","v":""},{"$f":"IF('1. Order'!BA1245=\"\",\"\",'1. Order'!BA1245)","v":""},{"$f":"IF('1. Order'!BB1245=\"\",\"\",'1. Order'!BB1245)","v":""},{"$f":"IF('1. Order'!BD1245=\"\",\"\",'1. Order'!BD1245)","v":""},{"$f":"IF('1. Order'!BE1245=\"\",\"\",'1. Order'!BE1245)","v":""},{"$f":"IF('1. Order'!BF1245=\"\",\"\",'1. Order'!BF1245)","v":""},{"$f":"IF('1. Order'!BG1245=\"\",\"\",'1. Order'!BG1245)","v":""},{"$f":"IF('1. Order'!BH1245=\"\",\"\",'1. Order'!BH1245)","v":"ZWO"}]
[{"$f":"IF('1. Order'!F1246=\"\",\"\",'1. Order'!F1246)","v":{"$error":"#N/A"}},{"$f":"IF('1. Order'!G1246=\"\",\"\",'1. Order'!G1246)","v":""},{"$f":"IF('1. Order'!H1246=\"\",\"\",'1. Order'!H1246)","v":""},{"$f":"IF('1. Order'!I1246=\"\",\"\",'1. Order'!I1246)","v":""},{"$f":"IF('1. Order'!J1246=\"\",\"\",'1. Order'!J1246)","v":""},{"$f":"IF('1. Order'!K1246=\"\",\"\",'1. Order'!K1246)","v":""},{"$f":"IF('1. Order'!L1246=\"\",\"\",'1. Order'!L1246)","v":""},{"$f":"IF('1. Order'!M1246=\"\",\"\",'1. Order'!M1246)","v":""},{"$f":"IF('1. Order'!N1246=\"\",\"\",'1. Order'!N1246)","v":""},{"$f":"IF('1. Order'!O1246=\"\",\"\",'1. Order'!O1246)","v":{"$error":"#N/A"}},{"$f":"IF('1. Order'!P1246=\"\",\"\",'1. Order'!P1246)","v":{"$error":"#N/A"}},{"$f":"IF('1. Order'!Q1246=\"\",\"\",'1. Order'!Q1246)","v":""},{"$f":"IF('1. Order'!S1246=\"\",\"\",'1. Order'!S1246)","v":""},{"$f":"IF('1. Order'!T1246=\"\",\"\",'1. Order'!T1246)","v":""},{"$f":"IF('1. Order'!W1246=\"\",\"\",'1. Order'!W1246)","v":""},{"$f":"IF('1. Order'!X1246=\"\",\"\",'1. Order'!X1246)","v":""},{"$f":"IF('1. Order'!Y1246=\"\",\"\",'1. Order'!Y1246)","v":"EUR"},{"$f":"IF('1. Order'!Z1246=\"\",\"\",'1. Order'!Z1246)","v":""},{"$f":"IF('1. Order'!AA1246=\"\",\"\",'1. Order'!AA1246)","v":""},{"$f":"IF('1. Order'!AB1246=\"\",\"\",'1. Order'!AB1246)","v":""},null,{"$f":"IF('1. Order'!AT1246=\"\",\"\",'1. Order'!AT1246)","v":""},{"$f":"IF('1. Order'!AU1246=\"\",\"\",'1. Order'!AU1246)","v":""},null,null,null,null,null,null,null,{"$f":"IF('1. Order'!AY1246=\"\",\"\",'1. Order'!AY1246)","v":""},{"$f":"IF('1. Order'!AZ1246=\"\",\"\",'1. Order'!AZ1246)","v":""},{"$f":"IF('1. Order'!BA1246=\"\",\"\",'1. Order'!BA1246)","v":""},{"$f":"IF('1. Order'!BB1246=\"\",\"\",'1. Order'!BB1246)","v":""},{"$f":"IF('1. Order'!BD1246=\"\",\"\",'1. Order'!BD1246)","v":""},{"$f":"IF('1. Order'!BE1246=\"\",\"\",'1. Order'!BE1246)","v":""},{"$f":"IF('1. Order'!BF1246=\"\",\"\",'1. Order'!BF1246)","v":""},{"$f":"IF('1. Order'!BG1246=\"\",\"\",'1. Order'!BG1246)","v":""},{"$f":"IF('1. Order'!BH1246=\"\",\"\",'1. Order'!BH1246)","v":"ZWO"}]
[{"$f":"IF('1. Order'!F1247=\"\",\"\",'1. Order'!F1247)","v":{"$error":"#N/A"}},{"$f":"IF('1. Order'!G1247=\"\",\"\",'1. Order'!G1247)","v":""},{"$f":"IF('1. Order'!H1247=\"\",\"\",'1. Order'!H1247)","v":""},{"$f":"IF('1. Order'!I1247=\"\",\"\",'1. Order'!I1247)","v":""},{"$f":"IF('1. Order'!J1247=\"\",\"\",'1. Order'!J1247)","v":""},{"$f":"IF('1. Order'!K1247=\"\",\"\",'1. Order'!K1247)","v":""},{"$f":"IF('1. Order'!L1247=\"\",\"\",'1. Order'!L1247)","v":""},{"$f":"IF('1. Order'!M1247=\"\",\"\",'1. Order'!M1247)","v":""},{"$f":"IF('1. Order'!N1247=\"\",\"\",'1. Order'!N1247)","v":""},{"$f":"IF('1. Order'!O1247=\"\",\"\",'1. Order'!O1247)","v":{"$error":"#N/A"}},{"$f":"IF('1. Order'!P1247=\"\",\"\",'1. Order'!P1247)","v":{"$error":"#N/A"}},{"$f":"IF('1. Order'!Q1247=\"\",\"\",'1. Order'!Q1247)","v":""},{"$f":"IF('1. Order'!S1247=\"\",\"\",'1. Order'!S1247)","v":""},{"$f":"IF('1. Order'!T1247=\"\",\"\",'1. Order'!T1247)","v":""},{"$f":"IF('1. Order'!W1247=\"\",\"\",'1. Order'!W1247)","v":""},{"$f":"IF('1. Order'!X1247=\"\",\"\",'1. Order'!X1247)","v":""},{"$f":"IF('1. Order'!Y1247=\"\",\"\",'1. Order'!Y1247)","v":"EUR"},{"$f":"IF('1. Order'!Z1247=\"\",\"\",'1. Order'!Z1247)","v":""},{"$f":"IF('1. Order'!AA1247=\"\",\"\",'1. Order'!AA1247)","v":""},{"$f":"IF('1. Order'!AB1247=\"\",\"\",'1. Order'!AB1247)","v":""},null,{"$f":"IF('1. Order'!AT1247=\"\",\"\",'1. Order'!AT1247)","v":""},{"$f":"IF('1. Order'!AU1247=\"\",\"\",'1. Order'!AU1247)","v":""},null,null,null,null,null,null,null,{"$f":"IF('1. Order'!AY1247=\"\",\"\",'1. Order'!AY1247)","v":""},{"$f":"IF('1. Order'!AZ1247=\"\",\"\",'1. Order'!AZ1247)","v":""},{"$f":"IF('1. Order'!BA1247=\"\",\"\",'1. Order'!BA1247)","v":""},{"$f":"IF('1. Order'!BB1247=\"\",\"\",'1. Order'!BB1247)","v":""},{"$f":"IF('1. Order'!BD1247=\"\",\"\",'1. Order'!BD1247)","v":""},{"$f":"IF('1. Order'!BE1247=\"\",\"\",'1. Order'!BE1247)","v":""},{"$f":"IF('1. Order'!BF1247=\"\",\"\",'1. Order'!BF1247)","v":""},{"$f":"IF('1. Order'!BG1247=\"\",\"\",'1. Order'!BG1247)","v":""},{"$f":"IF('1. Order'!BH1247=\"\",\"\",'1. Order'!BH1247)","v":"ZWO"}]
[{"$f":"IF('1. Order'!F1248=\"\",\"\",'1. Order'!F1248)","v":{"$error":"#N/A"}},{"$f":"IF('1. Order'!G1248=\"\",\"\",'1. Order'!G1248)","v":""},{"$f":"IF('1. Order'!H1248=\"\",\"\",'1. Order'!H1248)","v":""},{"$f":"IF('1. Order'!I1248=\"\",\"\",'1. Order'!I1248)","v":""},{"$f":"IF('1. Order'!J1248=\"\",\"\",'1. Order'!J1248)","v":""},{"$f":"IF('1. Order'!K1248=\"\",\"\",'1. Order'!K1248)","v":""},{"$f":"IF('1. Order'!L1248=\"\",\"\",'1. Order'!L1248)","v":""},{"$f":"IF('1. Order'!M1248=\"\",\"\",'1. Order'!M1248)","v":""},{"$f":"IF('1. Order'!N1248=\"\",\"\",'1. Order'!N1248)","v":""},{"$f":"IF('1. Order'!O1248=\"\",\"\",'1. Order'!O1248)","v":{"$error":"#N/A"}},{"$f":"IF('1. Order'!P1248=\"\",\"\",'1. Order'!P1248)","v":{"$error":"#N/A"}},{"$f":"IF('1. Order'!Q1248=\"\",\"\",'1. Order'!Q1248)","v":""},{"$f":"IF('1. Order'!S1248=\"\",\"\",'1. Order'!S1248)","v":""},{"$f":"IF('1. Order'!T1248=\"\",\"\",'1. Order'!T1248)","v":""},{"$f":"IF('1. Order'!W1248=\"\",\"\",'1. Order'!W1248)","v":""},{"$f":"IF('1. Order'!X1248=\"\",\"\",'1. Order'!X1248)","v":""},{"$f":"IF('1. Order'!Y1248=\"\",\"\",'1. Order'!Y1248)","v":"EUR"},{"$f":"IF('1. Order'!Z1248=\"\",\"\",'1. Order'!Z1248)","v":""},{"$f":"IF('1. Order'!AA1248=\"\",\"\",'1. Order'!AA1248)","v":""},{"$f":"IF('1. Order'!AB1248=\"\",\"\",'1. Order'!AB1248)","v":""},null,{"$f":"IF('1. Order'!AT1248=\"\",\"\",'1. Order'!AT1248)","v":""},{"$f":"IF('1. Order'!AU1248=\"\",\"\",'1. Order'!AU1248)","v":""},null,null,null,null,null,null,null,{"$f":"IF('1. Order'!AY1248=\"\",\"\",'1. Order'!AY1248)","v":""},{"$f":"IF('1. Order'!AZ1248=\"\",\"\",'1. Order'!AZ1248)","v":""},{"$f":"IF('1. Order'!BA1248=\"\",\"\",'1. Order'!BA1248)","v":""},{"$f":"IF('1. Order'!BB1248=\"\",\"\",'1. Order'!BB1248)","v":""},{"$f":"IF('1. Order'!BD1248=\"\",\"\",'1. Order'!BD1248)","v":""},{"$f":"IF('1. Order'!BE1248=\"\",\"\",'1. Order'!BE1248)","v":""},{"$f":"IF('1. Order'!BF1248=\"\",\"\",'1. Order'!BF1248)","v":""},{"$f":"IF('1. Order'!BG1248=\"\",\"\",'1. Order'!BG1248)","v":""},{"$f":"IF('1. Order'!BH1248=\"\",\"\",'1. Order'!BH1248)","v":"ZWO"}]
[{"$f":"IF('1. Order'!F1249=\"\",\"\",'1. Order'!F1249)","v":{"$error":"#N/A"}},{"$f":"IF('1. Order'!G1249=\"\",\"\",'1. Order'!G1249)","v":""},{"$f":"IF('1. Order'!H1249=\"\",\"\",'1. Order'!H1249)","v":""},{"$f":"IF('1. Order'!I1249=\"\",\"\",'1. Order'!I1249)","v":""},{"$f":"IF('1. Order'!J1249=\"\",\"\",'1. Order'!J1249)","v":""},{"$f":"IF('1. Order'!K1249=\"\",\"\",'1. Order'!K1249)","v":""},{"$f":"IF('1. Order'!L1249=\"\",\"\",'1. Order'!L1249)","v":""},{"$f":"IF('1. Order'!M1249=\"\",\"\",'1. Order'!M1249)","v":""},{"$f":"IF('1. Order'!N1249=\"\",\"\",'1. Order'!N1249)","v":""},{"$f":"IF('1. Order'!O1249=\"\",\"\",'1. Order'!O1249)","v":{"$error":"#N/A"}},{"$f":"IF('1. Order'!P1249=\"\",\"\",'1. Order'!P1249)","v":{"$error":"#N/A"}},{"$f":"IF('1. Order'!Q1249=\"\",\"\",'1. Order'!Q1249)","v":""},{"$f":"IF('1. Order'!S1249=\"\",\"\",'1. Order'!S1249)","v":""},{"$f":"IF('1. Order'!T1249=\"\",\"\",'1. Order'!T1249)","v":""},{"$f":"IF('1. Order'!W1249=\"\",\"\",'1. Order'!W1249)","v":""},{"$f":"IF('1. Order'!X1249=\"\",\"\",'1. Order'!X1249)","v":""},{"$f":"IF('1. Order'!Y1249=\"\",\"\",'1. Order'!Y1249)","v":"EUR"},{"$f":"IF('1. Order'!Z1249=\"\",\"\",'1. Order'!Z1249)","v":""},{"$f":"IF('1. Order'!AA1249=\"\",\"\",'1. Order'!AA1249)","v":""},{"$f":"IF('1. Order'!AB1249=\"\",\"\",'1. Order'!AB1249)","v":""},null,{"$f":"IF('1. Order'!AT1249=\"\",\"\",'1. Order'!AT1249)","v":""},{"$f":"IF('1. Order'!AU1249=\"\",\"\",'1. Order'!AU1249)","v":""},null,null,null,null,null,null,null,{"$f":"IF('1. Order'!AY1249=\"\",\"\",'1. Order'!AY1249)","v":""},{"$f":"IF('1. Order'!AZ1249=\"\",\"\",'1. Order'!AZ1249)","v":""},{"$f":"IF('1. Order'!BA1249=\"\",\"\",'1. Order'!BA1249)","v":""},{"$f":"IF('1. Order'!BB1249=\"\",\"\",'1. Order'!BB1249)","v":""},{"$f":"IF('1. Order'!BD1249=\"\",\"\",'1. Order'!BD1249)","v":""},{"$f":"IF('1. Order'!BE1249=\"\",\"\",'1. Order'!BE1249)","v":""},{"$f":"IF('1. Order'!BF1249=\"\",\"\",'1. Order'!BF1249)","v":""},{"$f":"IF('1. Order'!BG1249=\"\",\"\",'1. Order'!BG1249)","v":""},{"$f":"IF('1. Order'!BH1249=\"\",\"\",'1. Order'!BH1249)","v":"ZWO"}]
[{"$f":"IF('1. Order'!F1250=\"\",\"\",'1. Order'!F1250)","v":{"$error":"#N/A"}},{"$f":"IF('1. Order'!G1250=\"\",\"\",'1. Order'!G1250)","v":""},{"$f":"IF('1. Order'!H1250=\"\",\"\",'1. Order'!H1250)","v":""},{"$f":"IF('1. Order'!I1250=\"\",\"\",'1. Order'!I1250)","v":""},{"$f":"IF('1. Order'!J1250=\"\",\"\",'1. Order'!J1250)","v":""},{"$f":"IF('1. Order'!K1250=\"\",\"\",'1. Order'!K1250)","v":""},{"$f":"IF('1. Order'!L1250=\"\",\"\",'1. Order'!L1250)","v":""},{"$f":"IF('1. Order'!M1250=\"\",\"\",'1. Order'!M1250)","v":""},{"$f":"IF('1. Order'!N1250=\"\",\"\",'1. Order'!N1250)","v":""},{"$f":"IF('1. Order'!O1250=\"\",\"\",'1. Order'!O1250)","v":{"$error":"#N/A"}},{"$f":"IF('1. Order'!P1250=\"\",\"\",'1. Order'!P1250)","v":{"$error":"#N/A"}},{"$f":"IF('1. Order'!Q1250=\"\",\"\",'1. Order'!Q1250)","v":""},{"$f":"IF('1. Order'!S1250=\"\",\"\",'1. Order'!S1250)","v":""},{"$f":"IF('1. Order'!T1250=\"\",\"\",'1. Order'!T1250)","v":""},{"$f":"IF('1. Order'!W1250=\"\",\"\",'1. Order'!W1250)","v":""},{"$f":"IF('1. Order'!X1250=\"\",\"\",'1. Order'!X1250)","v":""},{"$f":"IF('1. Order'!Y1250=\"\",\"\",'1. Order'!Y1250)","v":"EUR"},{"$f":"IF('1. Order'!Z1250=\"\",\"\",'1. Order'!Z1250)","v":""},{"$f":"IF('1. Order'!AA1250=\"\",\"\",'1. Order'!AA1250)","v":""},{"$f":"IF('1. Order'!AB1250=\"\",\"\",'1. Order'!AB1250)","v":""},null,{"$f":"IF('1. Order'!AT1250=\"\",\"\",'1. Order'!AT1250)","v":""},{"$f":"IF('1. Order'!AU1250=\"\",\"\",'1. Order'!AU1250)","v":""},null,null,null,null,null,null,null,{"$f":"IF('1. Order'!AY1250=\"\",\"\",'1. Order'!AY1250)","v":""},{"$f":"IF('1. Order'!AZ1250=\"\",\"\",'1. Order'!AZ1250)","v":""},{"$f":"IF('1. Order'!BA1250=\"\",\"\",'1. Order'!BA1250)","v":""},{"$f":"IF('1. Order'!BB1250=\"\",\"\",'1. Order'!BB1250)","v":""},{"$f":"IF('1. Order'!BD1250=\"\",\"\",'1. Order'!BD1250)","v":""},{"$f":"IF('1. Order'!BE1250=\"\",\"\",'1. Order'!BE1250)","v":""},{"$f":"IF('1. Order'!BF1250=\"\",\"\",'1. Order'!BF1250)","v":""},{"$f":"IF('1. Order'!BG1250=\"\",\"\",'1. Order'!BG1250)","v":""},{"$f":"IF('1. Order'!BH1250=\"\",\"\",'1. Order'!BH1250)","v":"ZWO"}]
[{"$f":"IF('1. Order'!F1251=\"\",\"\",'1. Order'!F1251)","v":{"$error":"#N/A"}},{"$f":"IF('1. Order'!G1251=\"\",\"\",'1. Order'!G1251)","v":""},{"$f":"IF('1. Order'!H1251=\"\",\"\",'1. Order'!H1251)","v":""},{"$f":"IF('1. Order'!I1251=\"\",\"\",'1. Order'!I1251)","v":""},{"$f":"IF('1. Order'!J1251=\"\",\"\",'1. Order'!J1251)","v":""},{"$f":"IF('1. Order'!K1251=\"\",\"\",'1. Order'!K1251)","v":""},{"$f":"IF('1. Order'!L1251=\"\",\"\",'1. Order'!L1251)","v":""},{"$f":"IF('1. Order'!M1251=\"\",\"\",'1. Order'!M1251)","v":""},{"$f":"IF('1. Order'!N1251=\"\",\"\",'1. Order'!N1251)","v":""},{"$f":"IF('1. Order'!O1251=\"\",\"\",'1. Order'!O1251)","v":{"$error":"#N/A"}},{"$f":"IF('1. Order'!P1251=\"\",\"\",'1. Order'!P1251)","v":{"$error":"#N/A"}},{"$f":"IF('1. Order'!Q1251=\"\",\"\",'1. Order'!Q1251)","v":""},{"$f":"IF('1. Order'!S1251=\"\",\"\",'1. Order'!S1251)","v":""},{"$f":"IF('1. Order'!T1251=\"\",\"\",'1. Order'!T1251)","v":""},{"$f":"IF('1. Order'!W1251=\"\",\"\",'1. Order'!W1251)","v":""},{"$f":"IF('1. Order'!X1251=\"\",\"\",'1. Order'!X1251)","v":""},{"$f":"IF('1. Order'!Y1251=\"\",\"\",'1. Order'!Y1251)","v":"EUR"},{"$f":"IF('1. Order'!Z1251=\"\",\"\",'1. Order'!Z1251)","v":""},{"$f":"IF('1. Order'!AA1251=\"\",\"\",'1. Order'!AA1251)","v":""},{"$f":"IF('1. Order'!AB1251=\"\",\"\",'1. Order'!AB1251)","v":""},null,{"$f":"IF('1. Order'!AT1251=\"\",\"\",'1. Order'!AT1251)","v":""},{"$f":"IF('1. Order'!AU1251=\"\",\"\",'1. Order'!AU1251)","v":""},null,null,null,null,null,null,null,{"$f":"IF('1. Order'!AY1251=\"\",\"\",'1. Order'!AY1251)","v":""},{"$f":"IF('1. Order'!AZ1251=\"\",\"\",'1. Order'!AZ1251)","v":""},{"$f":"IF('1. Order'!BA1251=\"\",\"\",'1. Order'!BA1251)","v":""},{"$f":"IF('1. Order'!BB1251=\"\",\"\",'1. Order'!BB1251)","v":""},{"$f":"IF('1. Order'!BD1251=\"\",\"\",'1. Order'!BD1251)","v":""},{"$f":"IF('1. Order'!BE1251=\"\",\"\",'1. Order'!BE1251)","v":""},{"$f":"IF('1. Order'!BF1251=\"\",\"\",'1. Order'!BF1251)","v":""},{"$f":"IF('1. Order'!BG1251=\"\",\"\",'1. Order'!BG1251)","v":""},{"$f":"IF('1. Order'!BH1251=\"\",\"\",'1. Order'!BH1251)","v":"ZWO"}]
[{"$f":"IF('1. Order'!F1252=\"\",\"\",'1. Order'!F1252)","v":{"$error":"#N/A"}},{"$f":"IF('1. Order'!G1252=\"\",\"\",'1. Order'!G1252)","v":""},{"$f":"IF('1. Order'!H1252=\"\",\"\",'1. Order'!H1252)","v":""},{"$f":"IF('1. Order'!I1252=\"\",\"\",'1. Order'!I1252)","v":""},{"$f":"IF('1. Order'!J1252=\"\",\"\",'1. Order'!J1252)","v":""},{"$f":"IF('1. Order'!K1252=\"\",\"\",'1. Order'!K1252)","v":""},{"$f":"IF('1. Order'!L1252=\"\",\"\",'1. Order'!L1252)","v":""},{"$f":"IF('1. Order'!M1252=\"\",\"\",'1. Order'!M1252)","v":""},{"$f":"IF('1. Order'!N1252=\"\",\"\",'1. Order'!N1252)","v":""},{"$f":"IF('1. Order'!O1252=\"\",\"\",'1. Order'!O1252)","v":{"$error":"#N/A"}},{"$f":"IF('1. Order'!P1252=\"\",\"\",'1. Order'!P1252)","v":{"$error":"#N/A"}},{"$f":"IF('1. Order'!Q1252=\"\",\"\",'1. Order'!Q1252)","v":""},{"$f":"IF('1. Order'!S1252=\"\",\"\",'1. Order'!S1252)","v":""},{"$f":"IF('1. Order'!T1252=\"\",\"\",'1. Order'!T1252)","v":""},{"$f":"IF('1. Order'!W1252=\"\",\"\",'1. Order'!W1252)","v":""},{"$f":"IF('1. Order'!X1252=\"\",\"\",'1. Order'!X1252)","v":""},{"$f":"IF('1. Order'!Y1252=\"\",\"\",'1. Order'!Y1252)","v":"EUR"},{"$f":"IF('1. Order'!Z1252=\"\",\"\",'1. Order'!Z1252)","v":""},{"$f":"IF('1. Order'!AA1252=\"\",\"\",'1. Order'!AA1252)","v":""},{"$f":"IF('1. Order'!AB1252=\"\",\"\",'1. Order'!AB1252)","v":""},null,{"$f":"IF('1. Order'!AT1252=\"\",\"\",'1. Order'!AT1252)","v":""},{"$f":"IF('1. Order'!AU1252=\"\",\"\",'1. Order'!AU1252)","v":""},null,null,null,null,null,null,null,{"$f":"IF('1. Order'!AY1252=\"\",\"\",'1. Order'!AY1252)","v":""},{"$f":"IF('1. Order'!AZ1252=\"\",\"\",'1. Order'!AZ1252)","v":""},{"$f":"IF('1. Order'!BA1252=\"\",\"\",'1. Order'!BA1252)","v":""},{"$f":"IF('1. Order'!BB1252=\"\",\"\",'1. Order'!BB1252)","v":""},{"$f":"IF('1. Order'!BD1252=\"\",\"\",'1. Order'!BD1252)","v":""},{"$f":"IF('1. Order'!BE1252=\"\",\"\",'1. Order'!BE1252)","v":""},{"$f":"IF('1. Order'!BF1252=\"\",\"\",'1. Order'!BF1252)","v":""},{"$f":"IF('1. Order'!BG1252=\"\",\"\",'1. Order'!BG1252)","v":""},{"$f":"IF('1. Order'!BH1252=\"\",\"\",'1. Order'!BH1252)","v":"ZWO"}]
[{"$f":"IF('1. Order'!F1253=\"\",\"\",'1. Order'!F1253)","v":{"$error":"#N/A"}},{"$f":"IF('1. Order'!G1253=\"\",\"\",'1. Order'!G1253)","v":""},{"$f":"IF('1. Order'!H1253=\"\",\"\",'1. Order'!H1253)","v":""},{"$f":"IF('1. Order'!I1253=\"\",\"\",'1. Order'!I1253)","v":""},{"$f":"IF('1. Order'!J1253=\"\",\"\",'1. Order'!J1253)","v":""},{"$f":"IF('1. Order'!K1253=\"\",\"\",'1. Order'!K1253)","v":""},{"$f":"IF('1. Order'!L1253=\"\",\"\",'1. Order'!L1253)","v":""},{"$f":"IF('1. Order'!M1253=\"\",\"\",'1. Order'!M1253)","v":""},{"$f":"IF('1. Order'!N1253=\"\",\"\",'1. Order'!N1253)","v":""},{"$f":"IF('1. Order'!O1253=\"\",\"\",'1. Order'!O1253)","v":{"$error":"#N/A"}},{"$f":"IF('1. Order'!P1253=\"\",\"\",'1. Order'!P1253)","v":{"$error":"#N/A"}},{"$f":"IF('1. Order'!Q1253=\"\",\"\",'1. Order'!Q1253)","v":""},{"$f":"IF('1. Order'!S1253=\"\",\"\",'1. Order'!S1253)","v":""},{"$f":"IF('1. Order'!T1253=\"\",\"\",'1. Order'!T1253)","v":""},{"$f":"IF('1. Order'!W1253=\"\",\"\",'1. Order'!W1253)","v":""},{"$f":"IF('1. Order'!X1253=\"\",\"\",'1. Order'!X1253)","v":""},{"$f":"IF('1. Order'!Y1253=\"\",\"\",'1. Order'!Y1253)","v":"EUR"},{"$f":"IF('1. Order'!Z1253=\"\",\"\",'1. Order'!Z1253)","v":""},{"$f":"IF('1. Order'!AA1253=\"\",\"\",'1. Order'!AA1253)","v":""},{"$f":"IF('1. Order'!AB1253=\"\",\"\",'1. Order'!AB1253)","v":""},null,{"$f":"IF('1. Order'!AT1253=\"\",\"\",'1. Order'!AT1253)","v":""},{"$f":"IF('1. Order'!AU1253=\"\",\"\",'1. Order'!AU1253)","v":""},null,null,null,null,null,null,null,{"$f":"IF('1. Order'!AY1253=\"\",\"\",'1. Order'!AY1253)","v":""},{"$f":"IF('1. Order'!AZ1253=\"\",\"\",'1. Order'!AZ1253)","v":""},{"$f":"IF('1. Order'!BA1253=\"\",\"\",'1. Order'!BA1253)","v":""},{"$f":"IF('1. Order'!BB1253=\"\",\"\",'1. Order'!BB1253)","v":""},{"$f":"IF('1. Order'!BD1253=\"\",\"\",'1. Order'!BD1253)","v":""},{"$f":"IF('1. Order'!BE1253=\"\",\"\",'1. Order'!BE1253)","v":""},{"$f":"IF('1. Order'!BF1253=\"\",\"\",'1. Order'!BF1253)","v":""},{"$f":"IF('1. Order'!BG1253=\"\",\"\",'1. Order'!BG1253)","v":""},{"$f":"IF('1. Order'!BH1253=\"\",\"\",'1. Order'!BH1253)","v":"ZWO"}]
[{"$f":"IF('1. Order'!F1254=\"\",\"\",'1. Order'!F1254)","v":{"$error":"#N/A"}},{"$f":"IF('1. Order'!G1254=\"\",\"\",'1. Order'!G1254)","v":""},{"$f":"IF('1. Order'!H1254=\"\",\"\",'1. Order'!H1254)","v":""},{"$f":"IF('1. Order'!I1254=\"\",\"\",'1. Order'!I1254)","v":""},{"$f":"IF('1. Order'!J1254=\"\",\"\",'1. Order'!J1254)","v":""},{"$f":"IF('1. Order'!K1254=\"\",\"\",'1. Order'!K1254)","v":""},{"$f":"IF('1. Order'!L1254=\"\",\"\",'1. Order'!L1254)","v":""},{"$f":"IF('1. Order'!M1254=\"\",\"\",'1. Order'!M1254)","v":""},{"$f":"IF('1. Order'!N1254=\"\",\"\",'1. Order'!N1254)","v":""},{"$f":"IF('1. Order'!O1254=\"\",\"\",'1. Order'!O1254)","v":{"$error":"#N/A"}},{"$f":"IF('1. Order'!P1254=\"\",\"\",'1. Order'!P1254)","v":{"$error":"#N/A"}},{"$f":"IF('1. Order'!Q1254=\"\",\"\",'1. Order'!Q1254)","v":""},{"$f":"IF('1. Order'!S1254=\"\",\"\",'1. Order'!S1254)","v":""},{"$f":"IF('1. Order'!T1254=\"\",\"\",'1. Order'!T1254)","v":""},{"$f":"IF('1. Order'!W1254=\"\",\"\",'1. Order'!W1254)","v":""},{"$f":"IF('1. Order'!X1254=\"\",\"\",'1. Order'!X1254)","v":""},{"$f":"IF('1. Order'!Y1254=\"\",\"\",'1. Order'!Y1254)","v":"EUR"},{"$f":"IF('1. Order'!Z1254=\"\",\"\",'1. Order'!Z1254)","v":""},{"$f":"IF('1. Order'!AA1254=\"\",\"\",'1. Order'!AA1254)","v":""},{"$f":"IF('1. Order'!AB1254=\"\",\"\",'1. Order'!AB1254)","v":""},null,{"$f":"IF('1. Order'!AT1254=\"\",\"\",'1. Order'!AT1254)","v":""},{"$f":"IF('1. Order'!AU1254=\"\",\"\",'1. Order'!AU1254)","v":""},null,null,null,null,null,null,null,{"$f":"IF('1. Order'!AY1254=\"\",\"\",'1. Order'!AY1254)","v":""},{"$f":"IF('1. Order'!AZ1254=\"\",\"\",'1. Order'!AZ1254)","v":""},{"$f":"IF('1. Order'!BA1254=\"\",\"\",'1. Order'!BA1254)","v":""},{"$f":"IF('1. Order'!BB1254=\"\",\"\",'1. Order'!BB1254)","v":""},{"$f":"IF('1. Order'!BD1254=\"\",\"\",'1. Order'!BD1254)","v":""},{"$f":"IF('1. Order'!BE1254=\"\",\"\",'1. Order'!BE1254)","v":""},{"$f":"IF('1. Order'!BF1254=\"\",\"\",'1. Order'!BF1254)","v":""},{"$f":"IF('1. Order'!BG1254=\"\",\"\",'1. Order'!BG1254)","v":""},{"$f":"IF('1. Order'!BH1254=\"\",\"\",'1. Order'!BH1254)","v":"ZWO"}]
[{"$f":"IF('1. Order'!F1255=\"\",\"\",'1. Order'!F1255)","v":{"$error":"#N/A"}},{"$f":"IF('1. Order'!G1255=\"\",\"\",'1. Order'!G1255)","v":""},{"$f":"IF('1. Order'!H1255=\"\",\"\",'1. Order'!H1255)","v":""},{"$f":"IF('1. Order'!I1255=\"\",\"\",'1. Order'!I1255)","v":""},{"$f":"IF('1. Order'!J1255=\"\",\"\",'1. Order'!J1255)","v":""},{"$f":"IF('1. Order'!K1255=\"\",\"\",'1. Order'!K1255)","v":""},{"$f":"IF('1. Order'!L1255=\"\",\"\",'1. Order'!L1255)","v":""},{"$f":"IF('1. Order'!M1255=\"\",\"\",'1. Order'!M1255)","v":""},{"$f":"IF('1. Order'!N1255=\"\",\"\",'1. Order'!N1255)","v":""},{"$f":"IF('1. Order'!O1255=\"\",\"\",'1. Order'!O1255)","v":{"$error":"#N/A"}},{"$f":"IF('1. Order'!P1255=\"\",\"\",'1. Order'!P1255)","v":{"$error":"#N/A"}},{"$f":"IF('1. Order'!Q1255=\"\",\"\",'1. Order'!Q1255)","v":""},{"$f":"IF('1. Order'!S1255=\"\",\"\",'1. Order'!S1255)","v":""},{"$f":"IF('1. Order'!T1255=\"\",\"\",'1. Order'!T1255)","v":""},{"$f":"IF('1. Order'!W1255=\"\",\"\",'1. Order'!W1255)","v":""},{"$f":"IF('1. Order'!X1255=\"\",\"\",'1. Order'!X1255)","v":""},{"$f":"IF('1. Order'!Y1255=\"\",\"\",'1. Order'!Y1255)","v":"EUR"},{"$f":"IF('1. Order'!Z1255=\"\",\"\",'1. Order'!Z1255)","v":""},{"$f":"IF('1. Order'!AA1255=\"\",\"\",'1. Order'!AA1255)","v":""},{"$f":"IF('1. Order'!AB1255=\"\",\"\",'1. Order'!AB1255)","v":""},null,{"$f":"IF('1. Order'!AT1255=\"\",\"\",'1. Order'!AT1255)","v":""},{"$f":"IF('1. Order'!AU1255=\"\",\"\",'1. Order'!AU1255)","v":""},null,null,null,null,null,null,null,{"$f":"IF('1. Order'!AY1255=\"\",\"\",'1. Order'!AY1255)","v":""},{"$f":"IF('1. Order'!AZ1255=\"\",\"\",'1. Order'!AZ1255)","v":""},{"$f":"IF('1. Order'!BA1255=\"\",\"\",'1. Order'!BA1255)","v":""},{"$f":"IF('1. Order'!BB1255=\"\",\"\",'1. Order'!BB1255)","v":""},{"$f":"IF('1. Order'!BD1255=\"\",\"\",'1. Order'!BD1255)","v":""},{"$f":"IF('1. Order'!BE1255=\"\",\"\",'1. Order'!BE1255)","v":""},{"$f":"IF('1. Order'!BF1255=\"\",\"\",'1. Order'!BF1255)","v":""},{"$f":"IF('1. Order'!BG1255=\"\",\"\",'1. Order'!BG1255)","v":""},{"$f":"IF('1. Order'!BH1255=\"\",\"\",'1. Order'!BH1255)","v":"ZWO"}]
[{"$f":"IF('1. Order'!F1256=\"\",\"\",'1. Order'!F1256)","v":{"$error":"#N/A"}},{"$f":"IF('1. Order'!G1256=\"\",\"\",'1. Order'!G1256)","v":""},{"$f":"IF('1. Order'!H1256=\"\",\"\",'1. Order'!H1256)","v":""},{"$f":"IF('1. Order'!I1256=\"\",\"\",'1. Order'!I1256)","v":""},{"$f":"IF('1. Order'!J1256=\"\",\"\",'1. Order'!J1256)","v":""},{"$f":"IF('1. Order'!K1256=\"\",\"\",'1. Order'!K1256)","v":""},{"$f":"IF('1. Order'!L1256=\"\",\"\",'1. Order'!L1256)","v":""},{"$f":"IF('1. Order'!M1256=\"\",\"\",'1. Order'!M1256)","v":""},{"$f":"IF('1. Order'!N1256=\"\",\"\",'1. Order'!N1256)","v":""},{"$f":"IF('1. Order'!O1256=\"\",\"\",'1. Order'!O1256)","v":{"$error":"#N/A"}},{"$f":"IF('1. Order'!P1256=\"\",\"\",'1. Order'!P1256)","v":{"$error":"#N/A"}},{"$f":"IF('1. Order'!Q1256=\"\",\"\",'1. Order'!Q1256)","v":""},{"$f":"IF('1. Order'!S1256=\"\",\"\",'1. Order'!S1256)","v":""},{"$f":"IF('1. Order'!T1256=\"\",\"\",'1. Order'!T1256)","v":""},{"$f":"IF('1. Order'!W1256=\"\",\"\",'1. Order'!W1256)","v":""},{"$f":"IF('1. Order'!X1256=\"\",\"\",'1. Order'!X1256)","v":""},{"$f":"IF('1. Order'!Y1256=\"\",\"\",'1. Order'!Y1256)","v":"EUR"},{"$f":"IF('1. Order'!Z1256=\"\",\"\",'1. Order'!Z1256)","v":""},{"$f":"IF('1. Order'!AA1256=\"\",\"\",'1. Order'!AA1256)","v":""},{"$f":"IF('1. Order'!AB1256=\"\",\"\",'1. Order'!AB1256)","v":""},null,{"$f":"IF('1. Order'!AT1256=\"\",\"\",'1. Order'!AT1256)","v":""},{"$f":"IF('1. Order'!AU1256=\"\",\"\",'1. Order'!AU1256)","v":""},null,null,null,null,null,null,null,{"$f":"IF('1. Order'!AY1256=\"\",\"\",'1. Order'!AY1256)","v":""},{"$f":"IF('1. Order'!AZ1256=\"\",\"\",'1. Order'!AZ1256)","v":""},{"$f":"IF('1. Order'!BA1256=\"\",\"\",'1. Order'!BA1256)","v":""},{"$f":"IF('1. Order'!BB1256=\"\",\"\",'1. Order'!BB1256)","v":""},{"$f":"IF('1. Order'!BD1256=\"\",\"\",'1. Order'!BD1256)","v":""},{"$f":"IF('1. Order'!BE1256=\"\",\"\",'1. Order'!BE1256)","v":""},{"$f":"IF('1. Order'!BF1256=\"\",\"\",'1. Order'!BF1256)","v":""},{"$f":"IF('1. Order'!BG1256=\"\",\"\",'1. Order'!BG1256)","v":""},{"$f":"IF('1. Order'!BH1256=\"\",\"\",'1. Order'!BH1256)","v":"ZWO"}]
[{"$f":"IF('1. Order'!F1257=\"\",\"\",'1. Order'!F1257)","v":{"$error":"#N/A"}},{"$f":"IF('1. Order'!G1257=\"\",\"\",'1. Order'!G1257)","v":""},{"$f":"IF('1. Order'!H1257=\"\",\"\",'1. Order'!H1257)","v":""},{"$f":"IF('1. Order'!I1257=\"\",\"\",'1. Order'!I1257)","v":""},{"$f":"IF('1. Order'!J1257=\"\",\"\",'1. Order'!J1257)","v":""},{"$f":"IF('1. Order'!K1257=\"\",\"\",'1. Order'!K1257)","v":""},{"$f":"IF('1. Order'!L1257=\"\",\"\",'1. Order'!L1257)","v":""},{"$f":"IF('1. Order'!M1257=\"\",\"\",'1. Order'!M1257)","v":""},{"$f":"IF('1. Order'!N1257=\"\",\"\",'1. Order'!N1257)","v":""},{"$f":"IF('1. Order'!O1257=\"\",\"\",'1. Order'!O1257)","v":{"$error":"#N/A"}},{"$f":"IF('1. Order'!P1257=\"\",\"\",'1. Order'!P1257)","v":{"$error":"#N/A"}},{"$f":"IF('1. Order'!Q1257=\"\",\"\",'1. Order'!Q1257)","v":""},{"$f":"IF('1. Order'!S1257=\"\",\"\",'1. Order'!S1257)","v":""},{"$f":"IF('1. Order'!T1257=\"\",\"\",'1. Order'!T1257)","v":""},{"$f":"IF('1. Order'!W1257=\"\",\"\",'1. Order'!W1257)","v":""},{"$f":"IF('1. Order'!X1257=\"\",\"\",'1. Order'!X1257)","v":""},{"$f":"IF('1. Order'!Y1257=\"\",\"\",'1. Order'!Y1257)","v":"EUR"},{"$f":"IF('1. Order'!Z1257=\"\",\"\",'1. Order'!Z1257)","v":""},{"$f":"IF('1. Order'!AA1257=\"\",\"\",'1. Order'!AA1257)","v":""},{"$f":"IF('1. Order'!AB1257=\"\",\"\",'1. Order'!AB1257)","v":""},null,{"$f":"IF('1. Order'!AT1257=\"\",\"\",'1. Order'!AT1257)","v":""},{"$f":"IF('1. Order'!AU1257=\"\",\"\",'1. Order'!AU1257)","v":""},null,null,null,null,null,null,null,{"$f":"IF('1. Order'!AY1257=\"\",\"\",'1. Order'!AY1257)","v":""},{"$f":"IF('1. Order'!AZ1257=\"\",\"\",'1. Order'!AZ1257)","v":""},{"$f":"IF('1. Order'!BA1257=\"\",\"\",'1. Order'!BA1257)","v":""},{"$f":"IF('1. Order'!BB1257=\"\",\"\",'1. Order'!BB1257)","v":""},{"$f":"IF('1. Order'!BD1257=\"\",\"\",'1. Order'!BD1257)","v":""},{"$f":"IF('1. Order'!BE1257=\"\",\"\",'1. Order'!BE1257)","v":""},{"$f":"IF('1. Order'!BF1257=\"\",\"\",'1. Order'!BF1257)","v":""},{"$f":"IF('1. Order'!BG1257=\"\",\"\",'1. Order'!BG1257)","v":""},{"$f":"IF('1. Order'!BH1257=\"\",\"\",'1. Order'!BH1257)","v":"ZWO"}]
[{"$f":"IF('1. Order'!F1258=\"\",\"\",'1. Order'!F1258)","v":{"$error":"#N/A"}},{"$f":"IF('1. Order'!G1258=\"\",\"\",'1. Order'!G1258)","v":""},{"$f":"IF('1. Order'!H1258=\"\",\"\",'1. Order'!H1258)","v":""},{"$f":"IF('1. Order'!I1258=\"\",\"\",'1. Order'!I1258)","v":""},{"$f":"IF('1. Order'!J1258=\"\",\"\",'1. Order'!J1258)","v":""},{"$f":"IF('1. Order'!K1258=\"\",\"\",'1. Order'!K1258)","v":""},{"$f":"IF('1. Order'!L1258=\"\",\"\",'1. Order'!L1258)","v":""},{"$f":"IF('1. Order'!M1258=\"\",\"\",'1. Order'!M1258)","v":""},{"$f":"IF('1. Order'!N1258=\"\",\"\",'1. Order'!N1258)","v":""},{"$f":"IF('1. Order'!O1258=\"\",\"\",'1. Order'!O1258)","v":{"$error":"#N/A"}},{"$f":"IF('1. Order'!P1258=\"\",\"\",'1. Order'!P1258)","v":{"$error":"#N/A"}},{"$f":"IF('1. Order'!Q1258=\"\",\"\",'1. Order'!Q1258)","v":""},{"$f":"IF('1. Order'!S1258=\"\",\"\",'1. Order'!S1258)","v":""},{"$f":"IF('1. Order'!T1258=\"\",\"\",'1. Order'!T1258)","v":""},{"$f":"IF('1. Order'!W1258=\"\",\"\",'1. Order'!W1258)","v":""},{"$f":"IF('1. Order'!X1258=\"\",\"\",'1. Order'!X1258)","v":""},{"$f":"IF('1. Order'!Y1258=\"\",\"\",'1. Order'!Y1258)","v":"EUR"},{"$f":"IF('1. Order'!Z1258=\"\",\"\",'1. Order'!Z1258)","v":""},{"$f":"IF('1. Order'!AA1258=\"\",\"\",'1. Order'!AA1258)","v":""},{"$f":"IF('1. Order'!AB1258=\"\",\"\",'1. Order'!AB1258)","v":""},null,{"$f":"IF('1. Order'!AT1258=\"\",\"\",'1. Order'!AT1258)","v":""},{"$f":"IF('1. Order'!AU1258=\"\",\"\",'1. Order'!AU1258)","v":""},null,null,null,null,null,null,null,{"$f":"IF('1. Order'!AY1258=\"\",\"\",'1. Order'!AY1258)","v":""},{"$f":"IF('1. Order'!AZ1258=\"\",\"\",'1. Order'!AZ1258)","v":""},{"$f":"IF('1. Order'!BA1258=\"\",\"\",'1. Order'!BA1258)","v":""},{"$f":"IF('1. Order'!BB1258=\"\",\"\",'1. Order'!BB1258)","v":""},{"$f":"IF('1. Order'!BD1258=\"\",\"\",'1. Order'!BD1258)","v":""},{"$f":"IF('1. Order'!BE1258=\"\",\"\",'1. Order'!BE1258)","v":""},{"$f":"IF('1. Order'!BF1258=\"\",\"\",'1. Order'!BF1258)","v":""},{"$f":"IF('1. Order'!BG1258=\"\",\"\",'1. Order'!BG1258)","v":""},{"$f":"IF('1. Order'!BH1258=\"\",\"\",'1. Order'!BH1258)","v":"ZWO"}]
[{"$f":"IF('1. Order'!F1259=\"\",\"\",'1. Order'!F1259)","v":{"$error":"#N/A"}},{"$f":"IF('1. Order'!G1259=\"\",\"\",'1. Order'!G1259)","v":""},{"$f":"IF('1. Order'!H1259=\"\",\"\",'1. Order'!H1259)","v":""},{"$f":"IF('1. Order'!I1259=\"\",\"\",'1. Order'!I1259)","v":""},{"$f":"IF('1. Order'!J1259=\"\",\"\",'1. Order'!J1259)","v":""},{"$f":"IF('1. Order'!K1259=\"\",\"\",'1. Order'!K1259)","v":""},{"$f":"IF('1. Order'!L1259=\"\",\"\",'1. Order'!L1259)","v":""},{"$f":"IF('1. Order'!M1259=\"\",\"\",'1. Order'!M1259)","v":""},{"$f":"IF('1. Order'!N1259=\"\",\"\",'1. Order'!N1259)","v":""},{"$f":"IF('1. Order'!O1259=\"\",\"\",'1. Order'!O1259)","v":{"$error":"#N/A"}},{"$f":"IF('1. Order'!P1259=\"\",\"\",'1. Order'!P1259)","v":{"$error":"#N/A"}},{"$f":"IF('1. Order'!Q1259=\"\",\"\",'1. Order'!Q1259)","v":""},{"$f":"IF('1. Order'!S1259=\"\",\"\",'1. Order'!S1259)","v":""},{"$f":"IF('1. Order'!T1259=\"\",\"\",'1. Order'!T1259)","v":""},{"$f":"IF('1. Order'!W1259=\"\",\"\",'1. Order'!W1259)","v":""},{"$f":"IF('1. Order'!X1259=\"\",\"\",'1. Order'!X1259)","v":""},{"$f":"IF('1. Order'!Y1259=\"\",\"\",'1. Order'!Y1259)","v":"EUR"},{"$f":"IF('1. Order'!Z1259=\"\",\"\",'1. Order'!Z1259)","v":""},{"$f":"IF('1. Order'!AA1259=\"\",\"\",'1. Order'!AA1259)","v":""},{"$f":"IF('1. Order'!AB1259=\"\",\"\",'1. Order'!AB1259)","v":""},null,{"$f":"IF('1. Order'!AT1259=\"\",\"\",'1. Order'!AT1259)","v":""},{"$f":"IF('1. Order'!AU1259=\"\",\"\",'1. Order'!AU1259)","v":""},null,null,null,null,null,null,null,{"$f":"IF('1. Order'!AY1259=\"\",\"\",'1. Order'!AY1259)","v":""},{"$f":"IF('1. Order'!AZ1259=\"\",\"\",'1. Order'!AZ1259)","v":""},{"$f":"IF('1. Order'!BA1259=\"\",\"\",'1. Order'!BA1259)","v":""},{"$f":"IF('1. Order'!BB1259=\"\",\"\",'1. Order'!BB1259)","v":""},{"$f":"IF('1. Order'!BD1259=\"\",\"\",'1. Order'!BD1259)","v":""},{"$f":"IF('1. Order'!BE1259=\"\",\"\",'1. Order'!BE1259)","v":""},{"$f":"IF('1. Order'!BF1259=\"\",\"\",'1. Order'!BF1259)","v":""},{"$f":"IF('1. Order'!BG1259=\"\",\"\",'1. Order'!BG1259)","v":""},{"$f":"IF('1. Order'!BH1259=\"\",\"\",'1. Order'!BH1259)","v":"ZWO"}]
[{"$f":"IF('1. Order'!F1260=\"\",\"\",'1. Order'!F1260)","v":{"$error":"#N/A"}},{"$f":"IF('1. Order'!G1260=\"\",\"\",'1. Order'!G1260)","v":""},{"$f":"IF('1. Order'!H1260=\"\",\"\",'1. Order'!H1260)","v":""},{"$f":"IF('1. Order'!I1260=\"\",\"\",'1. Order'!I1260)","v":""},{"$f":"IF('1. Order'!J1260=\"\",\"\",'1. Order'!J1260)","v":""},{"$f":"IF('1. Order'!K1260=\"\",\"\",'1. Order'!K1260)","v":""},{"$f":"IF('1. Order'!L1260=\"\",\"\",'1. Order'!L1260)","v":""},{"$f":"IF('1. Order'!M1260=\"\",\"\",'1. Order'!M1260)","v":""},{"$f":"IF('1. Order'!N1260=\"\",\"\",'1. Order'!N1260)","v":""},{"$f":"IF('1. Order'!O1260=\"\",\"\",'1. Order'!O1260)","v":{"$error":"#N/A"}},{"$f":"IF('1. Order'!P1260=\"\",\"\",'1. Order'!P1260)","v":{"$error":"#N/A"}},{"$f":"IF('1. Order'!Q1260=\"\",\"\",'1. Order'!Q1260)","v":""},{"$f":"IF('1. Order'!S1260=\"\",\"\",'1. Order'!S1260)","v":""},{"$f":"IF('1. Order'!T1260=\"\",\"\",'1. Order'!T1260)","v":""},{"$f":"IF('1. Order'!W1260=\"\",\"\",'1. Order'!W1260)","v":""},{"$f":"IF('1. Order'!X1260=\"\",\"\",'1. Order'!X1260)","v":""},{"$f":"IF('1. Order'!Y1260=\"\",\"\",'1. Order'!Y1260)","v":"EUR"},{"$f":"IF('1. Order'!Z1260=\"\",\"\",'1. Order'!Z1260)","v":""},{"$f":"IF('1. Order'!AA1260=\"\",\"\",'1. Order'!AA1260)","v":""},{"$f":"IF('1. Order'!AB1260=\"\",\"\",'1. Order'!AB1260)","v":""},null,{"$f":"IF('1. Order'!AT1260=\"\",\"\",'1. Order'!AT1260)","v":""},{"$f":"IF('1. Order'!AU1260=\"\",\"\",'1. Order'!AU1260)","v":""},null,null,null,null,null,null,null,{"$f":"IF('1. Order'!AY1260=\"\",\"\",'1. Order'!AY1260)","v":""},{"$f":"IF('1. Order'!AZ1260=\"\",\"\",'1. Order'!AZ1260)","v":""},{"$f":"IF('1. Order'!BA1260=\"\",\"\",'1. Order'!BA1260)","v":""},{"$f":"IF('1. Order'!BB1260=\"\",\"\",'1. Order'!BB1260)","v":""},{"$f":"IF('1. Order'!BD1260=\"\",\"\",'1. Order'!BD1260)","v":""},{"$f":"IF('1. Order'!BE1260=\"\",\"\",'1. Order'!BE1260)","v":""},{"$f":"IF('1. Order'!BF1260=\"\",\"\",'1. Order'!BF1260)","v":""},{"$f":"IF('1. Order'!BG1260=\"\",\"\",'1. Order'!BG1260)","v":""},{"$f":"IF('1. Order'!BH1260=\"\",\"\",'1. Order'!BH1260)","v":"ZWO"}]
[{"$f":"IF('1. Order'!F1261=\"\",\"\",'1. Order'!F1261)","v":{"$error":"#N/A"}},{"$f":"IF('1. Order'!G1261=\"\",\"\",'1. Order'!G1261)","v":""},{"$f":"IF('1. Order'!H1261=\"\",\"\",'1. Order'!H1261)","v":""},{"$f":"IF('1. Order'!I1261=\"\",\"\",'1. Order'!I1261)","v":""},{"$f":"IF('1. Order'!J1261=\"\",\"\",'1. Order'!J1261)","v":""},{"$f":"IF('1. Order'!K1261=\"\",\"\",'1. Order'!K1261)","v":""},{"$f":"IF('1. Order'!L1261=\"\",\"\",'1. Order'!L1261)","v":""},{"$f":"IF('1. Order'!M1261=\"\",\"\",'1. Order'!M1261)","v":""},{"$f":"IF('1. Order'!N1261=\"\",\"\",'1. Order'!N1261)","v":""},{"$f":"IF('1. Order'!O1261=\"\",\"\",'1. Order'!O1261)","v":{"$error":"#N/A"}},{"$f":"IF('1. Order'!P1261=\"\",\"\",'1. Order'!P1261)","v":{"$error":"#N/A"}},{"$f":"IF('1. Order'!Q1261=\"\",\"\",'1. Order'!Q1261)","v":""},{"$f":"IF('1. Order'!S1261=\"\",\"\",'1. Order'!S1261)","v":""},{"$f":"IF('1. Order'!T1261=\"\",\"\",'1. Order'!T1261)","v":""},{"$f":"IF('1. Order'!W1261=\"\",\"\",'1. Order'!W1261)","v":""},{"$f":"IF('1. Order'!X1261=\"\",\"\",'1. Order'!X1261)","v":""},{"$f":"IF('1. Order'!Y1261=\"\",\"\",'1. Order'!Y1261)","v":"EUR"},{"$f":"IF('1. Order'!Z1261=\"\",\"\",'1. Order'!Z1261)","v":""},{"$f":"IF('1. Order'!AA1261=\"\",\"\",'1. Order'!AA1261)","v":""},{"$f":"IF('1. Order'!AB1261=\"\",\"\",'1. Order'!AB1261)","v":""},null,{"$f":"IF('1. Order'!AT1261=\"\",\"\",'1. Order'!AT1261)","v":""},{"$f":"IF('1. Order'!AU1261=\"\",\"\",'1. Order'!AU1261)","v":""},null,null,null,null,null,null,null,{"$f":"IF('1. Order'!AY1261=\"\",\"\",'1. Order'!AY1261)","v":""},{"$f":"IF('1. Order'!AZ1261=\"\",\"\",'1. Order'!AZ1261)","v":""},{"$f":"IF('1. Order'!BA1261=\"\",\"\",'1. Order'!BA1261)","v":""},{"$f":"IF('1. Order'!BB1261=\"\",\"\",'1. Order'!BB1261)","v":""},{"$f":"IF('1. Order'!BD1261=\"\",\"\",'1. Order'!BD1261)","v":""},{"$f":"IF('1. Order'!BE1261=\"\",\"\",'1. Order'!BE1261)","v":""},{"$f":"IF('1. Order'!BF1261=\"\",\"\",'1. Order'!BF1261)","v":""},{"$f":"IF('1. Order'!BG1261=\"\",\"\",'1. Order'!BG1261)","v":""},{"$f":"IF('1. Order'!BH1261=\"\",\"\",'1. Order'!BH1261)","v":"ZWO"}]
[{"$f":"IF('1. Order'!F1262=\"\",\"\",'1. Order'!F1262)","v":{"$error":"#N/A"}},{"$f":"IF('1. Order'!G1262=\"\",\"\",'1. Order'!G1262)","v":""},{"$f":"IF('1. Order'!H1262=\"\",\"\",'1. Order'!H1262)","v":""},{"$f":"IF('1. Order'!I1262=\"\",\"\",'1. Order'!I1262)","v":""},{"$f":"IF('1. Order'!J1262=\"\",\"\",'1. Order'!J1262)","v":""},{"$f":"IF('1. Order'!K1262=\"\",\"\",'1. Order'!K1262)","v":""},{"$f":"IF('1. Order'!L1262=\"\",\"\",'1. Order'!L1262)","v":""},{"$f":"IF('1. Order'!M1262=\"\",\"\",'1. Order'!M1262)","v":""},{"$f":"IF('1. Order'!N1262=\"\",\"\",'1. Order'!N1262)","v":""},{"$f":"IF('1. Order'!O1262=\"\",\"\",'1. Order'!O1262)","v":{"$error":"#N/A"}},{"$f":"IF('1. Order'!P1262=\"\",\"\",'1. Order'!P1262)","v":{"$error":"#N/A"}},{"$f":"IF('1. Order'!Q1262=\"\",\"\",'1. Order'!Q1262)","v":""},{"$f":"IF('1. Order'!S1262=\"\",\"\",'1. Order'!S1262)","v":""},{"$f":"IF('1. Order'!T1262=\"\",\"\",'1. Order'!T1262)","v":""},{"$f":"IF('1. Order'!W1262=\"\",\"\",'1. Order'!W1262)","v":""},{"$f":"IF('1. Order'!X1262=\"\",\"\",'1. Order'!X1262)","v":""},{"$f":"IF('1. Order'!Y1262=\"\",\"\",'1. Order'!Y1262)","v":"EUR"},{"$f":"IF('1. Order'!Z1262=\"\",\"\",'1. Order'!Z1262)","v":""},{"$f":"IF('1. Order'!AA1262=\"\",\"\",'1. Order'!AA1262)","v":""},{"$f":"IF('1. Order'!AB1262=\"\",\"\",'1. Order'!AB1262)","v":""},null,{"$f":"IF('1. Order'!AT1262=\"\",\"\",'1. Order'!AT1262)","v":""},{"$f":"IF('1. Order'!AU1262=\"\",\"\",'1. Order'!AU1262)","v":""},null,null,null,null,null,null,null,{"$f":"IF('1. Order'!AY1262=\"\",\"\",'1. Order'!AY1262)","v":""},{"$f":"IF('1. Order'!AZ1262=\"\",\"\",'1. Order'!AZ1262)","v":""},{"$f":"IF('1. Order'!BA1262=\"\",\"\",'1. Order'!BA1262)","v":""},{"$f":"IF('1. Order'!BB1262=\"\",\"\",'1. Order'!BB1262)","v":""},{"$f":"IF('1. Order'!BD1262=\"\",\"\",'1. Order'!BD1262)","v":""},{"$f":"IF('1. Order'!BE1262=\"\",\"\",'1. Order'!BE1262)","v":""},{"$f":"IF('1. Order'!BF1262=\"\",\"\",'1. Order'!BF1262)","v":""},{"$f":"IF('1. Order'!BG1262=\"\",\"\",'1. Order'!BG1262)","v":""},{"$f":"IF('1. Order'!BH1262=\"\",\"\",'1. Order'!BH1262)","v":"ZWO"}]
[{"$f":"IF('1. Order'!F1263=\"\",\"\",'1. Order'!F1263)","v":{"$error":"#N/A"}},{"$f":"IF('1. Order'!G1263=\"\",\"\",'1. Order'!G1263)","v":""},{"$f":"IF('1. Order'!H1263=\"\",\"\",'1. Order'!H1263)","v":""},{"$f":"IF('1. Order'!I1263=\"\",\"\",'1. Order'!I1263)","v":""},{"$f":"IF('1. Order'!J1263=\"\",\"\",'1. Order'!J1263)","v":""},{"$f":"IF('1. Order'!K1263=\"\",\"\",'1. Order'!K1263)","v":""},{"$f":"IF('1. Order'!L1263=\"\",\"\",'1. Order'!L1263)","v":""},{"$f":"IF('1. Order'!M1263=\"\",\"\",'1. Order'!M1263)","v":""},{"$f":"IF('1. Order'!N1263=\"\",\"\",'1. Order'!N1263)","v":""},{"$f":"IF('1. Order'!O1263=\"\",\"\",'1. Order'!O1263)","v":{"$error":"#N/A"}},{"$f":"IF('1. Order'!P1263=\"\",\"\",'1. Order'!P1263)","v":{"$error":"#N/A"}},{"$f":"IF('1. Order'!Q1263=\"\",\"\",'1. Order'!Q1263)","v":""},{"$f":"IF('1. Order'!S1263=\"\",\"\",'1. Order'!S1263)","v":""},{"$f":"IF('1. Order'!T1263=\"\",\"\",'1. Order'!T1263)","v":""},{"$f":"IF('1. Order'!W1263=\"\",\"\",'1. Order'!W1263)","v":""},{"$f":"IF('1. Order'!X1263=\"\",\"\",'1. Order'!X1263)","v":""},{"$f":"IF('1. Order'!Y1263=\"\",\"\",'1. Order'!Y1263)","v":"EUR"},{"$f":"IF('1. Order'!Z1263=\"\",\"\",'1. Order'!Z1263)","v":""},{"$f":"IF('1. Order'!AA1263=\"\",\"\",'1. Order'!AA1263)","v":""},{"$f":"IF('1. Order'!AB1263=\"\",\"\",'1. Order'!AB1263)","v":""},null,{"$f":"IF('1. Order'!AT1263=\"\",\"\",'1. Order'!AT1263)","v":""},{"$f":"IF('1. Order'!AU1263=\"\",\"\",'1. Order'!AU1263)","v":""},null,null,null,null,null,null,null,{"$f":"IF('1. Order'!AY1263=\"\",\"\",'1. Order'!AY1263)","v":""},{"$f":"IF('1. Order'!AZ1263=\"\",\"\",'1. Order'!AZ1263)","v":""},{"$f":"IF('1. Order'!BA1263=\"\",\"\",'1. Order'!BA1263)","v":""},{"$f":"IF('1. Order'!BB1263=\"\",\"\",'1. Order'!BB1263)","v":""},{"$f":"IF('1. Order'!BD1263=\"\",\"\",'1. Order'!BD1263)","v":""},{"$f":"IF('1. Order'!BE1263=\"\",\"\",'1. Order'!BE1263)","v":""},{"$f":"IF('1. Order'!BF1263=\"\",\"\",'1. Order'!BF1263)","v":""},{"$f":"IF('1. Order'!BG1263=\"\",\"\",'1. Order'!BG1263)","v":""},{"$f":"IF('1. Order'!BH1263=\"\",\"\",'1. Order'!BH1263)","v":"ZWO"}]
[{"$f":"IF('1. Order'!F1264=\"\",\"\",'1. Order'!F1264)","v":{"$error":"#N/A"}},{"$f":"IF('1. Order'!G1264=\"\",\"\",'1. Order'!G1264)","v":""},{"$f":"IF('1. Order'!H1264=\"\",\"\",'1. Order'!H1264)","v":""},{"$f":"IF('1. Order'!I1264=\"\",\"\",'1. Order'!I1264)","v":""},{"$f":"IF('1. Order'!J1264=\"\",\"\",'1. Order'!J1264)","v":""},{"$f":"IF('1. Order'!K1264=\"\",\"\",'1. Order'!K1264)","v":""},{"$f":"IF('1. Order'!L1264=\"\",\"\",'1. Order'!L1264)","v":""},{"$f":"IF('1. Order'!M1264=\"\",\"\",'1. Order'!M1264)","v":""},{"$f":"IF('1. Order'!N1264=\"\",\"\",'1. Order'!N1264)","v":""},{"$f":"IF('1. Order'!O1264=\"\",\"\",'1. Order'!O1264)","v":{"$error":"#N/A"}},{"$f":"IF('1. Order'!P1264=\"\",\"\",'1. Order'!P1264)","v":{"$error":"#N/A"}},{"$f":"IF('1. Order'!Q1264=\"\",\"\",'1. Order'!Q1264)","v":""},{"$f":"IF('1. Order'!S1264=\"\",\"\",'1. Order'!S1264)","v":""},{"$f":"IF('1. Order'!T1264=\"\",\"\",'1. Order'!T1264)","v":""},{"$f":"IF('1. Order'!W1264=\"\",\"\",'1. Order'!W1264)","v":""},{"$f":"IF('1. Order'!X1264=\"\",\"\",'1. Order'!X1264)","v":""},{"$f":"IF('1. Order'!Y1264=\"\",\"\",'1. Order'!Y1264)","v":"EUR"},{"$f":"IF('1. Order'!Z1264=\"\",\"\",'1. Order'!Z1264)","v":""},{"$f":"IF('1. Order'!AA1264=\"\",\"\",'1. Order'!AA1264)","v":""},{"$f":"IF('1. Order'!AB1264=\"\",\"\",'1. Order'!AB1264)","v":""},null,{"$f":"IF('1. Order'!AT1264=\"\",\"\",'1. Order'!AT1264)","v":""},{"$f":"IF('1. Order'!AU1264=\"\",\"\",'1. Order'!AU1264)","v":""},null,null,null,null,null,null,null,{"$f":"IF('1. Order'!AY1264=\"\",\"\",'1. Order'!AY1264)","v":""},{"$f":"IF('1. Order'!AZ1264=\"\",\"\",'1. Order'!AZ1264)","v":""},{"$f":"IF('1. Order'!BA1264=\"\",\"\",'1. Order'!BA1264)","v":""},{"$f":"IF('1. Order'!BB1264=\"\",\"\",'1. Order'!BB1264)","v":""},{"$f":"IF('1. Order'!BD1264=\"\",\"\",'1. Order'!BD1264)","v":""},{"$f":"IF('1. Order'!BE1264=\"\",\"\",'1. Order'!BE1264)","v":""},{"$f":"IF('1. Order'!BF1264=\"\",\"\",'1. Order'!BF1264)","v":""},{"$f":"IF('1. Order'!BG1264=\"\",\"\",'1. Order'!BG1264)","v":""},{"$f":"IF('1. Order'!BH1264=\"\",\"\",'1. Order'!BH1264)","v":"ZWO"}]
[{"$f":"IF('1. Order'!F1265=\"\",\"\",'1. Order'!F1265)","v":{"$error":"#N/A"}},{"$f":"IF('1. Order'!G1265=\"\",\"\",'1. Order'!G1265)","v":""},{"$f":"IF('1. Order'!H1265=\"\",\"\",'1. Order'!H1265)","v":""},{"$f":"IF('1. Order'!I1265=\"\",\"\",'1. Order'!I1265)","v":""},{"$f":"IF('1. Order'!J1265=\"\",\"\",'1. Order'!J1265)","v":""},{"$f":"IF('1. Order'!K1265=\"\",\"\",'1. Order'!K1265)","v":""},{"$f":"IF('1. Order'!L1265=\"\",\"\",'1. Order'!L1265)","v":""},{"$f":"IF('1. Order'!M1265=\"\",\"\",'1. Order'!M1265)","v":""},{"$f":"IF('1. Order'!N1265=\"\",\"\",'1. Order'!N1265)","v":""},{"$f":"IF('1. Order'!O1265=\"\",\"\",'1. Order'!O1265)","v":{"$error":"#N/A"}},{"$f":"IF('1. Order'!P1265=\"\",\"\",'1. Order'!P1265)","v":{"$error":"#N/A"}},{"$f":"IF('1. Order'!Q1265=\"\",\"\",'1. Order'!Q1265)","v":""},{"$f":"IF('1. Order'!S1265=\"\",\"\",'1. Order'!S1265)","v":""},{"$f":"IF('1. Order'!T1265=\"\",\"\",'1. Order'!T1265)","v":""},{"$f":"IF('1. Order'!W1265=\"\",\"\",'1. Order'!W1265)","v":""},{"$f":"IF('1. Order'!X1265=\"\",\"\",'1. Order'!X1265)","v":""},{"$f":"IF('1. Order'!Y1265=\"\",\"\",'1. Order'!Y1265)","v":"EUR"},{"$f":"IF('1. Order'!Z1265=\"\",\"\",'1. Order'!Z1265)","v":""},{"$f":"IF('1. Order'!AA1265=\"\",\"\",'1. Order'!AA1265)","v":""},{"$f":"IF('1. Order'!AB1265=\"\",\"\",'1. Order'!AB1265)","v":""},null,{"$f":"IF('1. Order'!AT1265=\"\",\"\",'1. Order'!AT1265)","v":""},{"$f":"IF('1. Order'!AU1265=\"\",\"\",'1. Order'!AU1265)","v":""},null,null,null,null,null,null,null,{"$f":"IF('1. Order'!AY1265=\"\",\"\",'1. Order'!AY1265)","v":""},{"$f":"IF('1. Order'!AZ1265=\"\",\"\",'1. Order'!AZ1265)","v":""},{"$f":"IF('1. Order'!BA1265=\"\",\"\",'1. Order'!BA1265)","v":""},{"$f":"IF('1. Order'!BB1265=\"\",\"\",'1. Order'!BB1265)","v":""},{"$f":"IF('1. Order'!BD1265=\"\",\"\",'1. Order'!BD1265)","v":""},{"$f":"IF('1. Order'!BE1265=\"\",\"\",'1. Order'!BE1265)","v":""},{"$f":"IF('1. Order'!BF1265=\"\",\"\",'1. Order'!BF1265)","v":""},{"$f":"IF('1. Order'!BG1265=\"\",\"\",'1. Order'!BG1265)","v":""},{"$f":"IF('1. Order'!BH1265=\"\",\"\",'1. Order'!BH1265)","v":"ZWO"}]
[{"$f":"IF('1. Order'!F1266=\"\",\"\",'1. Order'!F1266)","v":{"$error":"#N/A"}},{"$f":"IF('1. Order'!G1266=\"\",\"\",'1. Order'!G1266)","v":""},{"$f":"IF('1. Order'!H1266=\"\",\"\",'1. Order'!H1266)","v":""},{"$f":"IF('1. Order'!I1266=\"\",\"\",'1. Order'!I1266)","v":""},{"$f":"IF('1. Order'!J1266=\"\",\"\",'1. Order'!J1266)","v":""},{"$f":"IF('1. Order'!K1266=\"\",\"\",'1. Order'!K1266)","v":""},{"$f":"IF('1. Order'!L1266=\"\",\"\",'1. Order'!L1266)","v":""},{"$f":"IF('1. Order'!M1266=\"\",\"\",'1. Order'!M1266)","v":""},{"$f":"IF('1. Order'!N1266=\"\",\"\",'1. Order'!N1266)","v":""},{"$f":"IF('1. Order'!O1266=\"\",\"\",'1. Order'!O1266)","v":{"$error":"#N/A"}},{"$f":"IF('1. Order'!P1266=\"\",\"\",'1. Order'!P1266)","v":{"$error":"#N/A"}},{"$f":"IF('1. Order'!Q1266=\"\",\"\",'1. Order'!Q1266)","v":""},{"$f":"IF('1. Order'!S1266=\"\",\"\",'1. Order'!S1266)","v":""},{"$f":"IF('1. Order'!T1266=\"\",\"\",'1. Order'!T1266)","v":""},{"$f":"IF('1. Order'!W1266=\"\",\"\",'1. Order'!W1266)","v":""},{"$f":"IF('1. Order'!X1266=\"\",\"\",'1. Order'!X1266)","v":""},{"$f":"IF('1. Order'!Y1266=\"\",\"\",'1. Order'!Y1266)","v":"EUR"},{"$f":"IF('1. Order'!Z1266=\"\",\"\",'1. Order'!Z1266)","v":""},{"$f":"IF('1. Order'!AA1266=\"\",\"\",'1. Order'!AA1266)","v":""},{"$f":"IF('1. Order'!AB1266=\"\",\"\",'1. Order'!AB1266)","v":""},null,{"$f":"IF('1. Order'!AT1266=\"\",\"\",'1. Order'!AT1266)","v":""},{"$f":"IF('1. Order'!AU1266=\"\",\"\",'1. Order'!AU1266)","v":""},null,null,null,null,null,null,null,{"$f":"IF('1. Order'!AY1266=\"\",\"\",'1. Order'!AY1266)","v":""},{"$f":"IF('1. Order'!AZ1266=\"\",\"\",'1. Order'!AZ1266)","v":""},{"$f":"IF('1. Order'!BA1266=\"\",\"\",'1. Order'!BA1266)","v":""},{"$f":"IF('1. Order'!BB1266=\"\",\"\",'1. Order'!BB1266)","v":""},{"$f":"IF('1. Order'!BD1266=\"\",\"\",'1. Order'!BD1266)","v":""},{"$f":"IF('1. Order'!BE1266=\"\",\"\",'1. Order'!BE1266)","v":""},{"$f":"IF('1. Order'!BF1266=\"\",\"\",'1. Order'!BF1266)","v":""},{"$f":"IF('1. Order'!BG1266=\"\",\"\",'1. Order'!BG1266)","v":""},{"$f":"IF('1. Order'!BH1266=\"\",\"\",'1. Order'!BH1266)","v":"ZWO"}]
[{"$f":"IF('1. Order'!F1267=\"\",\"\",'1. Order'!F1267)","v":{"$error":"#N/A"}},{"$f":"IF('1. Order'!G1267=\"\",\"\",'1. Order'!G1267)","v":""},{"$f":"IF('1. Order'!H1267=\"\",\"\",'1. Order'!H1267)","v":""},{"$f":"IF('1. Order'!I1267=\"\",\"\",'1. Order'!I1267)","v":""},{"$f":"IF('1. Order'!J1267=\"\",\"\",'1. Order'!J1267)","v":""},{"$f":"IF('1. Order'!K1267=\"\",\"\",'1. Order'!K1267)","v":""},{"$f":"IF('1. Order'!L1267=\"\",\"\",'1. Order'!L1267)","v":""},{"$f":"IF('1. Order'!M1267=\"\",\"\",'1. Order'!M1267)","v":""},{"$f":"IF('1. Order'!N1267=\"\",\"\",'1. Order'!N1267)","v":""},{"$f":"IF('1. Order'!O1267=\"\",\"\",'1. Order'!O1267)","v":{"$error":"#N/A"}},{"$f":"IF('1. Order'!P1267=\"\",\"\",'1. Order'!P1267)","v":{"$error":"#N/A"}},{"$f":"IF('1. Order'!Q1267=\"\",\"\",'1. Order'!Q1267)","v":""},{"$f":"IF('1. Order'!S1267=\"\",\"\",'1. Order'!S1267)","v":""},{"$f":"IF('1. Order'!T1267=\"\",\"\",'1. Order'!T1267)","v":""},{"$f":"IF('1. Order'!W1267=\"\",\"\",'1. Order'!W1267)","v":""},{"$f":"IF('1. Order'!X1267=\"\",\"\",'1. Order'!X1267)","v":""},{"$f":"IF('1. Order'!Y1267=\"\",\"\",'1. Order'!Y1267)","v":"EUR"},{"$f":"IF('1. Order'!Z1267=\"\",\"\",'1. Order'!Z1267)","v":""},{"$f":"IF('1. Order'!AA1267=\"\",\"\",'1. Order'!AA1267)","v":""},{"$f":"IF('1. Order'!AB1267=\"\",\"\",'1. Order'!AB1267)","v":""},null,{"$f":"IF('1. Order'!AT1267=\"\",\"\",'1. Order'!AT1267)","v":""},{"$f":"IF('1. Order'!AU1267=\"\",\"\",'1. Order'!AU1267)","v":""},null,null,null,null,null,null,null,{"$f":"IF('1. Order'!AY1267=\"\",\"\",'1. Order'!AY1267)","v":""},{"$f":"IF('1. Order'!AZ1267=\"\",\"\",'1. Order'!AZ1267)","v":""},{"$f":"IF('1. Order'!BA1267=\"\",\"\",'1. Order'!BA1267)","v":""},{"$f":"IF('1. Order'!BB1267=\"\",\"\",'1. Order'!BB1267)","v":""},{"$f":"IF('1. Order'!BD1267=\"\",\"\",'1. Order'!BD1267)","v":""},{"$f":"IF('1. Order'!BE1267=\"\",\"\",'1. Order'!BE1267)","v":""},{"$f":"IF('1. Order'!BF1267=\"\",\"\",'1. Order'!BF1267)","v":""},{"$f":"IF('1. Order'!BG1267=\"\",\"\",'1. Order'!BG1267)","v":""},{"$f":"IF('1. Order'!BH1267=\"\",\"\",'1. Order'!BH1267)","v":"ZWO"}]
[{"$f":"IF('1. Order'!F1268=\"\",\"\",'1. Order'!F1268)","v":{"$error":"#N/A"}},{"$f":"IF('1. Order'!G1268=\"\",\"\",'1. Order'!G1268)","v":""},{"$f":"IF('1. Order'!H1268=\"\",\"\",'1. Order'!H1268)","v":""},{"$f":"IF('1. Order'!I1268=\"\",\"\",'1. Order'!I1268)","v":""},{"$f":"IF('1. Order'!J1268=\"\",\"\",'1. Order'!J1268)","v":""},{"$f":"IF('1. Order'!K1268=\"\",\"\",'1. Order'!K1268)","v":""},{"$f":"IF('1. Order'!L1268=\"\",\"\",'1. Order'!L1268)","v":""},{"$f":"IF('1. Order'!M1268=\"\",\"\",'1. Order'!M1268)","v":""},{"$f":"IF('1. Order'!N1268=\"\",\"\",'1. Order'!N1268)","v":""},{"$f":"IF('1. Order'!O1268=\"\",\"\",'1. Order'!O1268)","v":{"$error":"#N/A"}},{"$f":"IF('1. Order'!P1268=\"\",\"\",'1. Order'!P1268)","v":{"$error":"#N/A"}},{"$f":"IF('1. Order'!Q1268=\"\",\"\",'1. Order'!Q1268)","v":""},{"$f":"IF('1. Order'!S1268=\"\",\"\",'1. Order'!S1268)","v":""},{"$f":"IF('1. Order'!T1268=\"\",\"\",'1. Order'!T1268)","v":""},{"$f":"IF('1. Order'!W1268=\"\",\"\",'1. Order'!W1268)","v":""},{"$f":"IF('1. Order'!X1268=\"\",\"\",'1. Order'!X1268)","v":""},{"$f":"IF('1. Order'!Y1268=\"\",\"\",'1. Order'!Y1268)","v":"EUR"},{"$f":"IF('1. Order'!Z1268=\"\",\"\",'1. Order'!Z1268)","v":""},{"$f":"IF('1. Order'!AA1268=\"\",\"\",'1. Order'!AA1268)","v":""},{"$f":"IF('1. Order'!AB1268=\"\",\"\",'1. Order'!AB1268)","v":""},null,{"$f":"IF('1. Order'!AT1268=\"\",\"\",'1. Order'!AT1268)","v":""},{"$f":"IF('1. Order'!AU1268=\"\",\"\",'1. Order'!AU1268)","v":""},null,null,null,null,null,null,null,{"$f":"IF('1. Order'!AY1268=\"\",\"\",'1. Order'!AY1268)","v":""},{"$f":"IF('1. Order'!AZ1268=\"\",\"\",'1. Order'!AZ1268)","v":""},{"$f":"IF('1. Order'!BA1268=\"\",\"\",'1. Order'!BA1268)","v":""},{"$f":"IF('1. Order'!BB1268=\"\",\"\",'1. Order'!BB1268)","v":""},{"$f":"IF('1. Order'!BD1268=\"\",\"\",'1. Order'!BD1268)","v":""},{"$f":"IF('1. Order'!BE1268=\"\",\"\",'1. Order'!BE1268)","v":""},{"$f":"IF('1. Order'!BF1268=\"\",\"\",'1. Order'!BF1268)","v":""},{"$f":"IF('1. Order'!BG1268=\"\",\"\",'1. Order'!BG1268)","v":""},{"$f":"IF('1. Order'!BH1268=\"\",\"\",'1. Order'!BH1268)","v":"ZWO"}]
[{"$f":"IF('1. Order'!F1269=\"\",\"\",'1. Order'!F1269)","v":{"$error":"#N/A"}},{"$f":"IF('1. Order'!G1269=\"\",\"\",'1. Order'!G1269)","v":""},{"$f":"IF('1. Order'!H1269=\"\",\"\",'1. Order'!H1269)","v":""},{"$f":"IF('1. Order'!I1269=\"\",\"\",'1. Order'!I1269)","v":""},{"$f":"IF('1. Order'!J1269=\"\",\"\",'1. Order'!J1269)","v":""},{"$f":"IF('1. Order'!K1269=\"\",\"\",'1. Order'!K1269)","v":""},{"$f":"IF('1. Order'!L1269=\"\",\"\",'1. Order'!L1269)","v":""},{"$f":"IF('1. Order'!M1269=\"\",\"\",'1. Order'!M1269)","v":""},{"$f":"IF('1. Order'!N1269=\"\",\"\",'1. Order'!N1269)","v":""},{"$f":"IF('1. Order'!O1269=\"\",\"\",'1. Order'!O1269)","v":{"$error":"#N/A"}},{"$f":"IF('1. Order'!P1269=\"\",\"\",'1. Order'!P1269)","v":{"$error":"#N/A"}},{"$f":"IF('1. Order'!Q1269=\"\",\"\",'1. Order'!Q1269)","v":""},{"$f":"IF('1. Order'!S1269=\"\",\"\",'1. Order'!S1269)","v":""},{"$f":"IF('1. Order'!T1269=\"\",\"\",'1. Order'!T1269)","v":""},{"$f":"IF('1. Order'!W1269=\"\",\"\",'1. Order'!W1269)","v":""},{"$f":"IF('1. Order'!X1269=\"\",\"\",'1. Order'!X1269)","v":""},{"$f":"IF('1. Order'!Y1269=\"\",\"\",'1. Order'!Y1269)","v":"EUR"},{"$f":"IF('1. Order'!Z1269=\"\",\"\",'1. Order'!Z1269)","v":""},{"$f":"IF('1. Order'!AA1269=\"\",\"\",'1. Order'!AA1269)","v":""},{"$f":"IF('1. Order'!AB1269=\"\",\"\",'1. Order'!AB1269)","v":""},null,{"$f":"IF('1. Order'!AT1269=\"\",\"\",'1. Order'!AT1269)","v":""},{"$f":"IF('1. Order'!AU1269=\"\",\"\",'1. Order'!AU1269)","v":""},null,null,null,null,null,null,null,{"$f":"IF('1. Order'!AY1269=\"\",\"\",'1. Order'!AY1269)","v":""},{"$f":"IF('1. Order'!AZ1269=\"\",\"\",'1. Order'!AZ1269)","v":""},{"$f":"IF('1. Order'!BA1269=\"\",\"\",'1. Order'!BA1269)","v":""},{"$f":"IF('1. Order'!BB1269=\"\",\"\",'1. Order'!BB1269)","v":""},{"$f":"IF('1. Order'!BD1269=\"\",\"\",'1. Order'!BD1269)","v":""},{"$f":"IF('1. Order'!BE1269=\"\",\"\",'1. Order'!BE1269)","v":""},{"$f":"IF('1. Order'!BF1269=\"\",\"\",'1. Order'!BF1269)","v":""},{"$f":"IF('1. Order'!BG1269=\"\",\"\",'1. Order'!BG1269)","v":""},{"$f":"IF('1. Order'!BH1269=\"\",\"\",'1. Order'!BH1269)","v":"ZWO"}]
[{"$f":"IF('1. Order'!F1270=\"\",\"\",'1. Order'!F1270)","v":{"$error":"#N/A"}},{"$f":"IF('1. Order'!G1270=\"\",\"\",'1. Order'!G1270)","v":""},{"$f":"IF('1. Order'!H1270=\"\",\"\",'1. Order'!H1270)","v":""},{"$f":"IF('1. Order'!I1270=\"\",\"\",'1. Order'!I1270)","v":""},{"$f":"IF('1. Order'!J1270=\"\",\"\",'1. Order'!J1270)","v":""},{"$f":"IF('1. Order'!K1270=\"\",\"\",'1. Order'!K1270)","v":""},{"$f":"IF('1. Order'!L1270=\"\",\"\",'1. Order'!L1270)","v":""},{"$f":"IF('1. Order'!M1270=\"\",\"\",'1. Order'!M1270)","v":""},{"$f":"IF('1. Order'!N1270=\"\",\"\",'1. Order'!N1270)","v":""},{"$f":"IF('1. Order'!O1270=\"\",\"\",'1. Order'!O1270)","v":{"$error":"#N/A"}},{"$f":"IF('1. Order'!P1270=\"\",\"\",'1. Order'!P1270)","v":{"$error":"#N/A"}},{"$f":"IF('1. Order'!Q1270=\"\",\"\",'1. Order'!Q1270)","v":""},{"$f":"IF('1. Order'!S1270=\"\",\"\",'1. Order'!S1270)","v":""},{"$f":"IF('1. Order'!T1270=\"\",\"\",'1. Order'!T1270)","v":""},{"$f":"IF('1. Order'!W1270=\"\",\"\",'1. Order'!W1270)","v":""},{"$f":"IF('1. Order'!X1270=\"\",\"\",'1. Order'!X1270)","v":""},{"$f":"IF('1. Order'!Y1270=\"\",\"\",'1. Order'!Y1270)","v":"EUR"},{"$f":"IF('1. Order'!Z1270=\"\",\"\",'1. Order'!Z1270)","v":""},{"$f":"IF('1. Order'!AA1270=\"\",\"\",'1. Order'!AA1270)","v":""},{"$f":"IF('1. Order'!AB1270=\"\",\"\",'1. Order'!AB1270)","v":""},null,{"$f":"IF('1. Order'!AT1270=\"\",\"\",'1. Order'!AT1270)","v":""},{"$f":"IF('1. Order'!AU1270=\"\",\"\",'1. Order'!AU1270)","v":""},null,null,null,null,null,null,null,{"$f":"IF('1. Order'!AY1270=\"\",\"\",'1. Order'!AY1270)","v":""},{"$f":"IF('1. Order'!AZ1270=\"\",\"\",'1. Order'!AZ1270)","v":""},{"$f":"IF('1. Order'!BA1270=\"\",\"\",'1. Order'!BA1270)","v":""},{"$f":"IF('1. Order'!BB1270=\"\",\"\",'1. Order'!BB1270)","v":""},{"$f":"IF('1. Order'!BD1270=\"\",\"\",'1. Order'!BD1270)","v":""},{"$f":"IF('1. Order'!BE1270=\"\",\"\",'1. Order'!BE1270)","v":""},{"$f":"IF('1. Order'!BF1270=\"\",\"\",'1. Order'!BF1270)","v":""},{"$f":"IF('1. Order'!BG1270=\"\",\"\",'1. Order'!BG1270)","v":""},{"$f":"IF('1. Order'!BH1270=\"\",\"\",'1. Order'!BH1270)","v":"ZWO"}]
[{"$f":"IF('1. Order'!F1271=\"\",\"\",'1. Order'!F1271)","v":{"$error":"#N/A"}},{"$f":"IF('1. Order'!G1271=\"\",\"\",'1. Order'!G1271)","v":""},{"$f":"IF('1. Order'!H1271=\"\",\"\",'1. Order'!H1271)","v":""},{"$f":"IF('1. Order'!I1271=\"\",\"\",'1. Order'!I1271)","v":""},{"$f":"IF('1. Order'!J1271=\"\",\"\",'1. Order'!J1271)","v":""},{"$f":"IF('1. Order'!K1271=\"\",\"\",'1. Order'!K1271)","v":""},{"$f":"IF('1. Order'!L1271=\"\",\"\",'1. Order'!L1271)","v":""},{"$f":"IF('1. Order'!M1271=\"\",\"\",'1. Order'!M1271)","v":""},{"$f":"IF('1. Order'!N1271=\"\",\"\",'1. Order'!N1271)","v":""},{"$f":"IF('1. Order'!O1271=\"\",\"\",'1. Order'!O1271)","v":{"$error":"#N/A"}},{"$f":"IF('1. Order'!P1271=\"\",\"\",'1. Order'!P1271)","v":{"$error":"#N/A"}},{"$f":"IF('1. Order'!Q1271=\"\",\"\",'1. Order'!Q1271)","v":""},{"$f":"IF('1. Order'!S1271=\"\",\"\",'1. Order'!S1271)","v":""},{"$f":"IF('1. Order'!T1271=\"\",\"\",'1. Order'!T1271)","v":""},{"$f":"IF('1. Order'!W1271=\"\",\"\",'1. Order'!W1271)","v":""},{"$f":"IF('1. Order'!X1271=\"\",\"\",'1. Order'!X1271)","v":""},{"$f":"IF('1. Order'!Y1271=\"\",\"\",'1. Order'!Y1271)","v":"EUR"},{"$f":"IF('1. Order'!Z1271=\"\",\"\",'1. Order'!Z1271)","v":""},{"$f":"IF('1. Order'!AA1271=\"\",\"\",'1. Order'!AA1271)","v":""},{"$f":"IF('1. Order'!AB1271=\"\",\"\",'1. Order'!AB1271)","v":""},null,{"$f":"IF('1. Order'!AT1271=\"\",\"\",'1. Order'!AT1271)","v":""},{"$f":"IF('1. Order'!AU1271=\"\",\"\",'1. Order'!AU1271)","v":""},null,null,null,null,null,null,null,{"$f":"IF('1. Order'!AY1271=\"\",\"\",'1. Order'!AY1271)","v":""},{"$f":"IF('1. Order'!AZ1271=\"\",\"\",'1. Order'!AZ1271)","v":""},{"$f":"IF('1. Order'!BA1271=\"\",\"\",'1. Order'!BA1271)","v":""},{"$f":"IF('1. Order'!BB1271=\"\",\"\",'1. Order'!BB1271)","v":""},{"$f":"IF('1. Order'!BD1271=\"\",\"\",'1. Order'!BD1271)","v":""},{"$f":"IF('1. Order'!BE1271=\"\",\"\",'1. Order'!BE1271)","v":""},{"$f":"IF('1. Order'!BF1271=\"\",\"\",'1. Order'!BF1271)","v":""},{"$f":"IF('1. Order'!BG1271=\"\",\"\",'1. Order'!BG1271)","v":""},{"$f":"IF('1. Order'!BH1271=\"\",\"\",'1. Order'!BH1271)","v":"ZWO"}]
[{"$f":"IF('1. Order'!F1272=\"\",\"\",'1. Order'!F1272)","v":{"$error":"#N/A"}},{"$f":"IF('1. Order'!G1272=\"\",\"\",'1. Order'!G1272)","v":""},{"$f":"IF('1. Order'!H1272=\"\",\"\",'1. Order'!H1272)","v":""},{"$f":"IF('1. Order'!I1272=\"\",\"\",'1. Order'!I1272)","v":""},{"$f":"IF('1. Order'!J1272=\"\",\"\",'1. Order'!J1272)","v":""},{"$f":"IF('1. Order'!K1272=\"\",\"\",'1. Order'!K1272)","v":""},{"$f":"IF('1. Order'!L1272=\"\",\"\",'1. Order'!L1272)","v":""},{"$f":"IF('1. Order'!M1272=\"\",\"\",'1. Order'!M1272)","v":""},{"$f":"IF('1. Order'!N1272=\"\",\"\",'1. Order'!N1272)","v":""},{"$f":"IF('1. Order'!O1272=\"\",\"\",'1. Order'!O1272)","v":{"$error":"#N/A"}},{"$f":"IF('1. Order'!P1272=\"\",\"\",'1. Order'!P1272)","v":{"$error":"#N/A"}},{"$f":"IF('1. Order'!Q1272=\"\",\"\",'1. Order'!Q1272)","v":""},{"$f":"IF('1. Order'!S1272=\"\",\"\",'1. Order'!S1272)","v":""},{"$f":"IF('1. Order'!T1272=\"\",\"\",'1. Order'!T1272)","v":""},{"$f":"IF('1. Order'!W1272=\"\",\"\",'1. Order'!W1272)","v":""},{"$f":"IF('1. Order'!X1272=\"\",\"\",'1. Order'!X1272)","v":""},{"$f":"IF('1. Order'!Y1272=\"\",\"\",'1. Order'!Y1272)","v":"EUR"},{"$f":"IF('1. Order'!Z1272=\"\",\"\",'1. Order'!Z1272)","v":""},{"$f":"IF('1. Order'!AA1272=\"\",\"\",'1. Order'!AA1272)","v":""},{"$f":"IF('1. Order'!AB1272=\"\",\"\",'1. Order'!AB1272)","v":""},null,{"$f":"IF('1. Order'!AT1272=\"\",\"\",'1. Order'!AT1272)","v":""},{"$f":"IF('1. Order'!AU1272=\"\",\"\",'1. Order'!AU1272)","v":""},null,null,null,null,null,null,null,{"$f":"IF('1. Order'!AY1272=\"\",\"\",'1. Order'!AY1272)","v":""},{"$f":"IF('1. Order'!AZ1272=\"\",\"\",'1. Order'!AZ1272)","v":""},{"$f":"IF('1. Order'!BA1272=\"\",\"\",'1. Order'!BA1272)","v":""},{"$f":"IF('1. Order'!BB1272=\"\",\"\",'1. Order'!BB1272)","v":""},{"$f":"IF('1. Order'!BD1272=\"\",\"\",'1. Order'!BD1272)","v":""},{"$f":"IF('1. Order'!BE1272=\"\",\"\",'1. Order'!BE1272)","v":""},{"$f":"IF('1. Order'!BF1272=\"\",\"\",'1. Order'!BF1272)","v":""},{"$f":"IF('1. Order'!BG1272=\"\",\"\",'1. Order'!BG1272)","v":""},{"$f":"IF('1. Order'!BH1272=\"\",\"\",'1. Order'!BH1272)","v":"ZWO"}]
[{"$f":"IF('1. Order'!F1273=\"\",\"\",'1. Order'!F1273)","v":{"$error":"#N/A"}},{"$f":"IF('1. Order'!G1273=\"\",\"\",'1. Order'!G1273)","v":""},{"$f":"IF('1. Order'!H1273=\"\",\"\",'1. Order'!H1273)","v":""},{"$f":"IF('1. Order'!I1273=\"\",\"\",'1. Order'!I1273)","v":""},{"$f":"IF('1. Order'!J1273=\"\",\"\",'1. Order'!J1273)","v":""},{"$f":"IF('1. Order'!K1273=\"\",\"\",'1. Order'!K1273)","v":""},{"$f":"IF('1. Order'!L1273=\"\",\"\",'1. Order'!L1273)","v":""},{"$f":"IF('1. Order'!M1273=\"\",\"\",'1. Order'!M1273)","v":""},{"$f":"IF('1. Order'!N1273=\"\",\"\",'1. Order'!N1273)","v":""},{"$f":"IF('1. Order'!O1273=\"\",\"\",'1. Order'!O1273)","v":{"$error":"#N/A"}},{"$f":"IF('1. Order'!P1273=\"\",\"\",'1. Order'!P1273)","v":{"$error":"#N/A"}},{"$f":"IF('1. Order'!Q1273=\"\",\"\",'1. Order'!Q1273)","v":""},{"$f":"IF('1. Order'!S1273=\"\",\"\",'1. Order'!S1273)","v":""},{"$f":"IF('1. Order'!T1273=\"\",\"\",'1. Order'!T1273)","v":""},{"$f":"IF('1. Order'!W1273=\"\",\"\",'1. Order'!W1273)","v":""},{"$f":"IF('1. Order'!X1273=\"\",\"\",'1. Order'!X1273)","v":""},{"$f":"IF('1. Order'!Y1273=\"\",\"\",'1. Order'!Y1273)","v":"EUR"},{"$f":"IF('1. Order'!Z1273=\"\",\"\",'1. Order'!Z1273)","v":""},{"$f":"IF('1. Order'!AA1273=\"\",\"\",'1. Order'!AA1273)","v":""},{"$f":"IF('1. Order'!AB1273=\"\",\"\",'1. Order'!AB1273)","v":""},null,{"$f":"IF('1. Order'!AT1273=\"\",\"\",'1. Order'!AT1273)","v":""},{"$f":"IF('1. Order'!AU1273=\"\",\"\",'1. Order'!AU1273)","v":""},null,null,null,null,null,null,null,{"$f":"IF('1. Order'!AY1273=\"\",\"\",'1. Order'!AY1273)","v":""},{"$f":"IF('1. Order'!AZ1273=\"\",\"\",'1. Order'!AZ1273)","v":""},{"$f":"IF('1. Order'!BA1273=\"\",\"\",'1. Order'!BA1273)","v":""},{"$f":"IF('1. Order'!BB1273=\"\",\"\",'1. Order'!BB1273)","v":""},{"$f":"IF('1. Order'!BD1273=\"\",\"\",'1. Order'!BD1273)","v":""},{"$f":"IF('1. Order'!BE1273=\"\",\"\",'1. Order'!BE1273)","v":""},{"$f":"IF('1. Order'!BF1273=\"\",\"\",'1. Order'!BF1273)","v":""},{"$f":"IF('1. Order'!BG1273=\"\",\"\",'1. Order'!BG1273)","v":""},{"$f":"IF('1. Order'!BH1273=\"\",\"\",'1. Order'!BH1273)","v":"ZWO"}]
[{"$f":"IF('1. Order'!F1274=\"\",\"\",'1. Order'!F1274)","v":{"$error":"#N/A"}},{"$f":"IF('1. Order'!G1274=\"\",\"\",'1. Order'!G1274)","v":""},{"$f":"IF('1. Order'!H1274=\"\",\"\",'1. Order'!H1274)","v":""},{"$f":"IF('1. Order'!I1274=\"\",\"\",'1. Order'!I1274)","v":""},{"$f":"IF('1. Order'!J1274=\"\",\"\",'1. Order'!J1274)","v":""},{"$f":"IF('1. Order'!K1274=\"\",\"\",'1. Order'!K1274)","v":""},{"$f":"IF('1. Order'!L1274=\"\",\"\",'1. Order'!L1274)","v":""},{"$f":"IF('1. Order'!M1274=\"\",\"\",'1. Order'!M1274)","v":""},{"$f":"IF('1. Order'!N1274=\"\",\"\",'1. Order'!N1274)","v":""},{"$f":"IF('1. Order'!O1274=\"\",\"\",'1. Order'!O1274)","v":{"$error":"#N/A"}},{"$f":"IF('1. Order'!P1274=\"\",\"\",'1. Order'!P1274)","v":{"$error":"#N/A"}},{"$f":"IF('1. Order'!Q1274=\"\",\"\",'1. Order'!Q1274)","v":""},{"$f":"IF('1. Order'!S1274=\"\",\"\",'1. Order'!S1274)","v":""},{"$f":"IF('1. Order'!T1274=\"\",\"\",'1. Order'!T1274)","v":""},{"$f":"IF('1. Order'!W1274=\"\",\"\",'1. Order'!W1274)","v":""},{"$f":"IF('1. Order'!X1274=\"\",\"\",'1. Order'!X1274)","v":""},{"$f":"IF('1. Order'!Y1274=\"\",\"\",'1. Order'!Y1274)","v":"EUR"},{"$f":"IF('1. Order'!Z1274=\"\",\"\",'1. Order'!Z1274)","v":""},{"$f":"IF('1. Order'!AA1274=\"\",\"\",'1. Order'!AA1274)","v":""},{"$f":"IF('1. Order'!AB1274=\"\",\"\",'1. Order'!AB1274)","v":""},null,{"$f":"IF('1. Order'!AT1274=\"\",\"\",'1. Order'!AT1274)","v":""},{"$f":"IF('1. Order'!AU1274=\"\",\"\",'1. Order'!AU1274)","v":""},null,null,null,null,null,null,null,{"$f":"IF('1. Order'!AY1274=\"\",\"\",'1. Order'!AY1274)","v":""},{"$f":"IF('1. Order'!AZ1274=\"\",\"\",'1. Order'!AZ1274)","v":""},{"$f":"IF('1. Order'!BA1274=\"\",\"\",'1. Order'!BA1274)","v":""},{"$f":"IF('1. Order'!BB1274=\"\",\"\",'1. Order'!BB1274)","v":""},{"$f":"IF('1. Order'!BD1274=\"\",\"\",'1. Order'!BD1274)","v":""},{"$f":"IF('1. Order'!BE1274=\"\",\"\",'1. Order'!BE1274)","v":""},{"$f":"IF('1. Order'!BF1274=\"\",\"\",'1. Order'!BF1274)","v":""},{"$f":"IF('1. Order'!BG1274=\"\",\"\",'1. Order'!BG1274)","v":""},{"$f":"IF('1. Order'!BH1274=\"\",\"\",'1. Order'!BH1274)","v":"ZWO"}]
[{"$f":"IF('1. Order'!F1275=\"\",\"\",'1. Order'!F1275)","v":{"$error":"#N/A"}},{"$f":"IF('1. Order'!G1275=\"\",\"\",'1. Order'!G1275)","v":""},{"$f":"IF('1. Order'!H1275=\"\",\"\",'1. Order'!H1275)","v":""},{"$f":"IF('1. Order'!I1275=\"\",\"\",'1. Order'!I1275)","v":""},{"$f":"IF('1. Order'!J1275=\"\",\"\",'1. Order'!J1275)","v":""},{"$f":"IF('1. Order'!K1275=\"\",\"\",'1. Order'!K1275)","v":""},{"$f":"IF('1. Order'!L1275=\"\",\"\",'1. Order'!L1275)","v":""},{"$f":"IF('1. Order'!M1275=\"\",\"\",'1. Order'!M1275)","v":""},{"$f":"IF('1. Order'!N1275=\"\",\"\",'1. Order'!N1275)","v":""},{"$f":"IF('1. Order'!O1275=\"\",\"\",'1. Order'!O1275)","v":{"$error":"#N/A"}},{"$f":"IF('1. Order'!P1275=\"\",\"\",'1. Order'!P1275)","v":{"$error":"#N/A"}},{"$f":"IF('1. Order'!Q1275=\"\",\"\",'1. Order'!Q1275)","v":""},{"$f":"IF('1. Order'!S1275=\"\",\"\",'1. Order'!S1275)","v":""},{"$f":"IF('1. Order'!T1275=\"\",\"\",'1. Order'!T1275)","v":""},{"$f":"IF('1. Order'!W1275=\"\",\"\",'1. Order'!W1275)","v":""},{"$f":"IF('1. Order'!X1275=\"\",\"\",'1. Order'!X1275)","v":""},{"$f":"IF('1. Order'!Y1275=\"\",\"\",'1. Order'!Y1275)","v":"EUR"},{"$f":"IF('1. Order'!Z1275=\"\",\"\",'1. Order'!Z1275)","v":""},{"$f":"IF('1. Order'!AA1275=\"\",\"\",'1. Order'!AA1275)","v":""},{"$f":"IF('1. Order'!AB1275=\"\",\"\",'1. Order'!AB1275)","v":""},null,{"$f":"IF('1. Order'!AT1275=\"\",\"\",'1. Order'!AT1275)","v":""},{"$f":"IF('1. Order'!AU1275=\"\",\"\",'1. Order'!AU1275)","v":""},null,null,null,null,null,null,null,{"$f":"IF('1. Order'!AY1275=\"\",\"\",'1. Order'!AY1275)","v":""},{"$f":"IF('1. Order'!AZ1275=\"\",\"\",'1. Order'!AZ1275)","v":""},{"$f":"IF('1. Order'!BA1275=\"\",\"\",'1. Order'!BA1275)","v":""},{"$f":"IF('1. Order'!BB1275=\"\",\"\",'1. Order'!BB1275)","v":""},{"$f":"IF('1. Order'!BD1275=\"\",\"\",'1. Order'!BD1275)","v":""},{"$f":"IF('1. Order'!BE1275=\"\",\"\",'1. Order'!BE1275)","v":""},{"$f":"IF('1. Order'!BF1275=\"\",\"\",'1. Order'!BF1275)","v":""},{"$f":"IF('1. Order'!BG1275=\"\",\"\",'1. Order'!BG1275)","v":""},{"$f":"IF('1. Order'!BH1275=\"\",\"\",'1. Order'!BH1275)","v":"ZWO"}]
[{"$f":"IF('1. Order'!F1276=\"\",\"\",'1. Order'!F1276)","v":{"$error":"#N/A"}},{"$f":"IF('1. Order'!G1276=\"\",\"\",'1. Order'!G1276)","v":""},{"$f":"IF('1. Order'!H1276=\"\",\"\",'1. Order'!H1276)","v":""},{"$f":"IF('1. Order'!I1276=\"\",\"\",'1. Order'!I1276)","v":""},{"$f":"IF('1. Order'!J1276=\"\",\"\",'1. Order'!J1276)","v":""},{"$f":"IF('1. Order'!K1276=\"\",\"\",'1. Order'!K1276)","v":""},{"$f":"IF('1. Order'!L1276=\"\",\"\",'1. Order'!L1276)","v":""},{"$f":"IF('1. Order'!M1276=\"\",\"\",'1. Order'!M1276)","v":""},{"$f":"IF('1. Order'!N1276=\"\",\"\",'1. Order'!N1276)","v":""},{"$f":"IF('1. Order'!O1276=\"\",\"\",'1. Order'!O1276)","v":{"$error":"#N/A"}},{"$f":"IF('1. Order'!P1276=\"\",\"\",'1. Order'!P1276)","v":{"$error":"#N/A"}},{"$f":"IF('1. Order'!Q1276=\"\",\"\",'1. Order'!Q1276)","v":""},{"$f":"IF('1. Order'!S1276=\"\",\"\",'1. Order'!S1276)","v":""},{"$f":"IF('1. Order'!T1276=\"\",\"\",'1. Order'!T1276)","v":""},{"$f":"IF('1. Order'!W1276=\"\",\"\",'1. Order'!W1276)","v":""},{"$f":"IF('1. Order'!X1276=\"\",\"\",'1. Order'!X1276)","v":""},{"$f":"IF('1. Order'!Y1276=\"\",\"\",'1. Order'!Y1276)","v":"EUR"},{"$f":"IF('1. Order'!Z1276=\"\",\"\",'1. Order'!Z1276)","v":""},{"$f":"IF('1. Order'!AA1276=\"\",\"\",'1. Order'!AA1276)","v":""},{"$f":"IF('1. Order'!AB1276=\"\",\"\",'1. Order'!AB1276)","v":""},null,{"$f":"IF('1. Order'!AT1276=\"\",\"\",'1. Order'!AT1276)","v":""},{"$f":"IF('1. Order'!AU1276=\"\",\"\",'1. Order'!AU1276)","v":""},null,null,null,null,null,null,null,{"$f":"IF('1. Order'!AY1276=\"\",\"\",'1. Order'!AY1276)","v":""},{"$f":"IF('1. Order'!AZ1276=\"\",\"\",'1. Order'!AZ1276)","v":""},{"$f":"IF('1. Order'!BA1276=\"\",\"\",'1. Order'!BA1276)","v":""},{"$f":"IF('1. Order'!BB1276=\"\",\"\",'1. Order'!BB1276)","v":""},{"$f":"IF('1. Order'!BD1276=\"\",\"\",'1. Order'!BD1276)","v":""},{"$f":"IF('1. Order'!BE1276=\"\",\"\",'1. Order'!BE1276)","v":""},{"$f":"IF('1. Order'!BF1276=\"\",\"\",'1. Order'!BF1276)","v":""},{"$f":"IF('1. Order'!BG1276=\"\",\"\",'1. Order'!BG1276)","v":""},{"$f":"IF('1. Order'!BH1276=\"\",\"\",'1. Order'!BH1276)","v":"ZWO"}]
[{"$f":"IF('1. Order'!F1277=\"\",\"\",'1. Order'!F1277)","v":{"$error":"#N/A"}},{"$f":"IF('1. Order'!G1277=\"\",\"\",'1. Order'!G1277)","v":""},{"$f":"IF('1. Order'!H1277=\"\",\"\",'1. Order'!H1277)","v":""},{"$f":"IF('1. Order'!I1277=\"\",\"\",'1. Order'!I1277)","v":""},{"$f":"IF('1. Order'!J1277=\"\",\"\",'1. Order'!J1277)","v":""},{"$f":"IF('1. Order'!K1277=\"\",\"\",'1. Order'!K1277)","v":""},{"$f":"IF('1. Order'!L1277=\"\",\"\",'1. Order'!L1277)","v":""},{"$f":"IF('1. Order'!M1277=\"\",\"\",'1. Order'!M1277)","v":""},{"$f":"IF('1. Order'!N1277=\"\",\"\",'1. Order'!N1277)","v":""},{"$f":"IF('1. Order'!O1277=\"\",\"\",'1. Order'!O1277)","v":{"$error":"#N/A"}},{"$f":"IF('1. Order'!P1277=\"\",\"\",'1. Order'!P1277)","v":{"$error":"#N/A"}},{"$f":"IF('1. Order'!Q1277=\"\",\"\",'1. Order'!Q1277)","v":""},{"$f":"IF('1. Order'!S1277=\"\",\"\",'1. Order'!S1277)","v":""},{"$f":"IF('1. Order'!T1277=\"\",\"\",'1. Order'!T1277)","v":""},{"$f":"IF('1. Order'!W1277=\"\",\"\",'1. Order'!W1277)","v":""},{"$f":"IF('1. Order'!X1277=\"\",\"\",'1. Order'!X1277)","v":""},{"$f":"IF('1. Order'!Y1277=\"\",\"\",'1. Order'!Y1277)","v":"EUR"},{"$f":"IF('1. Order'!Z1277=\"\",\"\",'1. Order'!Z1277)","v":""},{"$f":"IF('1. Order'!AA1277=\"\",\"\",'1. Order'!AA1277)","v":""},{"$f":"IF('1. Order'!AB1277=\"\",\"\",'1. Order'!AB1277)","v":""},null,{"$f":"IF('1. Order'!AT1277=\"\",\"\",'1. Order'!AT1277)","v":""},{"$f":"IF('1. Order'!AU1277=\"\",\"\",'1. Order'!AU1277)","v":""},null,null,null,null,null,null,null,{"$f":"IF('1. Order'!AY1277=\"\",\"\",'1. Order'!AY1277)","v":""},{"$f":"IF('1. Order'!AZ1277=\"\",\"\",'1. Order'!AZ1277)","v":""},{"$f":"IF('1. Order'!BA1277=\"\",\"\",'1. Order'!BA1277)","v":""},{"$f":"IF('1. Order'!BB1277=\"\",\"\",'1. Order'!BB1277)","v":""},{"$f":"IF('1. Order'!BD1277=\"\",\"\",'1. Order'!BD1277)","v":""},{"$f":"IF('1. Order'!BE1277=\"\",\"\",'1. Order'!BE1277)","v":""},{"$f":"IF('1. Order'!BF1277=\"\",\"\",'1. Order'!BF1277)","v":""},{"$f":"IF('1. Order'!BG1277=\"\",\"\",'1. Order'!BG1277)","v":""},{"$f":"IF('1. Order'!BH1277=\"\",\"\",'1. Order'!BH1277)","v":"ZWO"}]
[{"$f":"IF('1. Order'!F1278=\"\",\"\",'1. Order'!F1278)","v":{"$error":"#N/A"}},{"$f":"IF('1. Order'!G1278=\"\",\"\",'1. Order'!G1278)","v":""},{"$f":"IF('1. Order'!H1278=\"\",\"\",'1. Order'!H1278)","v":""},{"$f":"IF('1. Order'!I1278=\"\",\"\",'1. Order'!I1278)","v":""},{"$f":"IF('1. Order'!J1278=\"\",\"\",'1. Order'!J1278)","v":""},{"$f":"IF('1. Order'!K1278=\"\",\"\",'1. Order'!K1278)","v":""},{"$f":"IF('1. Order'!L1278=\"\",\"\",'1. Order'!L1278)","v":""},{"$f":"IF('1. Order'!M1278=\"\",\"\",'1. Order'!M1278)","v":""},{"$f":"IF('1. Order'!N1278=\"\",\"\",'1. Order'!N1278)","v":""},{"$f":"IF('1. Order'!O1278=\"\",\"\",'1. Order'!O1278)","v":{"$error":"#N/A"}},{"$f":"IF('1. Order'!P1278=\"\",\"\",'1. Order'!P1278)","v":{"$error":"#N/A"}},{"$f":"IF('1. Order'!Q1278=\"\",\"\",'1. Order'!Q1278)","v":""},{"$f":"IF('1. Order'!S1278=\"\",\"\",'1. Order'!S1278)","v":""},{"$f":"IF('1. Order'!T1278=\"\",\"\",'1. Order'!T1278)","v":""},{"$f":"IF('1. Order'!W1278=\"\",\"\",'1. Order'!W1278)","v":""},{"$f":"IF('1. Order'!X1278=\"\",\"\",'1. Order'!X1278)","v":""},{"$f":"IF('1. Order'!Y1278=\"\",\"\",'1. Order'!Y1278)","v":"EUR"},{"$f":"IF('1. Order'!Z1278=\"\",\"\",'1. Order'!Z1278)","v":""},{"$f":"IF('1. Order'!AA1278=\"\",\"\",'1. Order'!AA1278)","v":""},{"$f":"IF('1. Order'!AB1278=\"\",\"\",'1. Order'!AB1278)","v":""},null,{"$f":"IF('1. Order'!AT1278=\"\",\"\",'1. Order'!AT1278)","v":""},{"$f":"IF('1. Order'!AU1278=\"\",\"\",'1. Order'!AU1278)","v":""},null,null,null,null,null,null,null,{"$f":"IF('1. Order'!AY1278=\"\",\"\",'1. Order'!AY1278)","v":""},{"$f":"IF('1. Order'!AZ1278=\"\",\"\",'1. Order'!AZ1278)","v":""},{"$f":"IF('1. Order'!BA1278=\"\",\"\",'1. Order'!BA1278)","v":""},{"$f":"IF('1. Order'!BB1278=\"\",\"\",'1. Order'!BB1278)","v":""},{"$f":"IF('1. Order'!BD1278=\"\",\"\",'1. Order'!BD1278)","v":""},{"$f":"IF('1. Order'!BE1278=\"\",\"\",'1. Order'!BE1278)","v":""},{"$f":"IF('1. Order'!BF1278=\"\",\"\",'1. Order'!BF1278)","v":""},{"$f":"IF('1. Order'!BG1278=\"\",\"\",'1. Order'!BG1278)","v":""},{"$f":"IF('1. Order'!BH1278=\"\",\"\",'1. Order'!BH1278)","v":"ZWO"}]
[{"$f":"IF('1. Order'!F1279=\"\",\"\",'1. Order'!F1279)","v":{"$error":"#N/A"}},{"$f":"IF('1. Order'!G1279=\"\",\"\",'1. Order'!G1279)","v":""},{"$f":"IF('1. Order'!H1279=\"\",\"\",'1. Order'!H1279)","v":""},{"$f":"IF('1. Order'!I1279=\"\",\"\",'1. Order'!I1279)","v":""},{"$f":"IF('1. Order'!J1279=\"\",\"\",'1. Order'!J1279)","v":""},{"$f":"IF('1. Order'!K1279=\"\",\"\",'1. Order'!K1279)","v":""},{"$f":"IF('1. Order'!L1279=\"\",\"\",'1. Order'!L1279)","v":""},{"$f":"IF('1. Order'!M1279=\"\",\"\",'1. Order'!M1279)","v":""},{"$f":"IF('1. Order'!N1279=\"\",\"\",'1. Order'!N1279)","v":""},{"$f":"IF('1. Order'!O1279=\"\",\"\",'1. Order'!O1279)","v":{"$error":"#N/A"}},{"$f":"IF('1. Order'!P1279=\"\",\"\",'1. Order'!P1279)","v":{"$error":"#N/A"}},{"$f":"IF('1. Order'!Q1279=\"\",\"\",'1. Order'!Q1279)","v":""},{"$f":"IF('1. Order'!S1279=\"\",\"\",'1. Order'!S1279)","v":""},{"$f":"IF('1. Order'!T1279=\"\",\"\",'1. Order'!T1279)","v":""},{"$f":"IF('1. Order'!W1279=\"\",\"\",'1. Order'!W1279)","v":""},{"$f":"IF('1. Order'!X1279=\"\",\"\",'1. Order'!X1279)","v":""},{"$f":"IF('1. Order'!Y1279=\"\",\"\",'1. Order'!Y1279)","v":"EUR"},{"$f":"IF('1. Order'!Z1279=\"\",\"\",'1. Order'!Z1279)","v":""},{"$f":"IF('1. Order'!AA1279=\"\",\"\",'1. Order'!AA1279)","v":""},{"$f":"IF('1. Order'!AB1279=\"\",\"\",'1. Order'!AB1279)","v":""},null,{"$f":"IF('1. Order'!AT1279=\"\",\"\",'1. Order'!AT1279)","v":""},{"$f":"IF('1. Order'!AU1279=\"\",\"\",'1. Order'!AU1279)","v":""},null,null,null,null,null,null,null,{"$f":"IF('1. Order'!AY1279=\"\",\"\",'1. Order'!AY1279)","v":""},{"$f":"IF('1. Order'!AZ1279=\"\",\"\",'1. Order'!AZ1279)","v":""},{"$f":"IF('1. Order'!BA1279=\"\",\"\",'1. Order'!BA1279)","v":""},{"$f":"IF('1. Order'!BB1279=\"\",\"\",'1. Order'!BB1279)","v":""},{"$f":"IF('1. Order'!BD1279=\"\",\"\",'1. Order'!BD1279)","v":""},{"$f":"IF('1. Order'!BE1279=\"\",\"\",'1. Order'!BE1279)","v":""},{"$f":"IF('1. Order'!BF1279=\"\",\"\",'1. Order'!BF1279)","v":""},{"$f":"IF('1. Order'!BG1279=\"\",\"\",'1. Order'!BG1279)","v":""},{"$f":"IF('1. Order'!BH1279=\"\",\"\",'1. Order'!BH1279)","v":"ZWO"}]
[{"$f":"IF('1. Order'!F1280=\"\",\"\",'1. Order'!F1280)","v":{"$error":"#N/A"}},{"$f":"IF('1. Order'!G1280=\"\",\"\",'1. Order'!G1280)","v":""},{"$f":"IF('1. Order'!H1280=\"\",\"\",'1. Order'!H1280)","v":""},{"$f":"IF('1. Order'!I1280=\"\",\"\",'1. Order'!I1280)","v":""},{"$f":"IF('1. Order'!J1280=\"\",\"\",'1. Order'!J1280)","v":""},{"$f":"IF('1. Order'!K1280=\"\",\"\",'1. Order'!K1280)","v":""},{"$f":"IF('1. Order'!L1280=\"\",\"\",'1. Order'!L1280)","v":""},{"$f":"IF('1. Order'!M1280=\"\",\"\",'1. Order'!M1280)","v":""},{"$f":"IF('1. Order'!N1280=\"\",\"\",'1. Order'!N1280)","v":""},{"$f":"IF('1. Order'!O1280=\"\",\"\",'1. Order'!O1280)","v":{"$error":"#N/A"}},{"$f":"IF('1. Order'!P1280=\"\",\"\",'1. Order'!P1280)","v":{"$error":"#N/A"}},{"$f":"IF('1. Order'!Q1280=\"\",\"\",'1. Order'!Q1280)","v":""},{"$f":"IF('1. Order'!S1280=\"\",\"\",'1. Order'!S1280)","v":""},{"$f":"IF('1. Order'!T1280=\"\",\"\",'1. Order'!T1280)","v":""},{"$f":"IF('1. Order'!W1280=\"\",\"\",'1. Order'!W1280)","v":""},{"$f":"IF('1. Order'!X1280=\"\",\"\",'1. Order'!X1280)","v":""},{"$f":"IF('1. Order'!Y1280=\"\",\"\",'1. Order'!Y1280)","v":"EUR"},{"$f":"IF('1. Order'!Z1280=\"\",\"\",'1. Order'!Z1280)","v":""},{"$f":"IF('1. Order'!AA1280=\"\",\"\",'1. Order'!AA1280)","v":""},{"$f":"IF('1. Order'!AB1280=\"\",\"\",'1. Order'!AB1280)","v":""},null,{"$f":"IF('1. Order'!AT1280=\"\",\"\",'1. Order'!AT1280)","v":""},{"$f":"IF('1. Order'!AU1280=\"\",\"\",'1. Order'!AU1280)","v":""},null,null,null,null,null,null,null,{"$f":"IF('1. Order'!AY1280=\"\",\"\",'1. Order'!AY1280)","v":""},{"$f":"IF('1. Order'!AZ1280=\"\",\"\",'1. Order'!AZ1280)","v":""},{"$f":"IF('1. Order'!BA1280=\"\",\"\",'1. Order'!BA1280)","v":""},{"$f":"IF('1. Order'!BB1280=\"\",\"\",'1. Order'!BB1280)","v":""},{"$f":"IF('1. Order'!BD1280=\"\",\"\",'1. Order'!BD1280)","v":""},{"$f":"IF('1. Order'!BE1280=\"\",\"\",'1. Order'!BE1280)","v":""},{"$f":"IF('1. Order'!BF1280=\"\",\"\",'1. Order'!BF1280)","v":""},{"$f":"IF('1. Order'!BG1280=\"\",\"\",'1. Order'!BG1280)","v":""},{"$f":"IF('1. Order'!BH1280=\"\",\"\",'1. Order'!BH1280)","v":"ZWO"}]
[{"$f":"IF('1. Order'!F1281=\"\",\"\",'1. Order'!F1281)","v":{"$error":"#N/A"}},{"$f":"IF('1. Order'!G1281=\"\",\"\",'1. Order'!G1281)","v":""},{"$f":"IF('1. Order'!H1281=\"\",\"\",'1. Order'!H1281)","v":""},{"$f":"IF('1. Order'!I1281=\"\",\"\",'1. Order'!I1281)","v":""},{"$f":"IF('1. Order'!J1281=\"\",\"\",'1. Order'!J1281)","v":""},{"$f":"IF('1. Order'!K1281=\"\",\"\",'1. Order'!K1281)","v":""},{"$f":"IF('1. Order'!L1281=\"\",\"\",'1. Order'!L1281)","v":""},{"$f":"IF('1. Order'!M1281=\"\",\"\",'1. Order'!M1281)","v":""},{"$f":"IF('1. Order'!N1281=\"\",\"\",'1. Order'!N1281)","v":""},{"$f":"IF('1. Order'!O1281=\"\",\"\",'1. Order'!O1281)","v":{"$error":"#N/A"}},{"$f":"IF('1. Order'!P1281=\"\",\"\",'1. Order'!P1281)","v":{"$error":"#N/A"}},{"$f":"IF('1. Order'!Q1281=\"\",\"\",'1. Order'!Q1281)","v":""},{"$f":"IF('1. Order'!S1281=\"\",\"\",'1. Order'!S1281)","v":""},{"$f":"IF('1. Order'!T1281=\"\",\"\",'1. Order'!T1281)","v":""},{"$f":"IF('1. Order'!W1281=\"\",\"\",'1. Order'!W1281)","v":""},{"$f":"IF('1. Order'!X1281=\"\",\"\",'1. Order'!X1281)","v":""},{"$f":"IF('1. Order'!Y1281=\"\",\"\",'1. Order'!Y1281)","v":"EUR"},{"$f":"IF('1. Order'!Z1281=\"\",\"\",'1. Order'!Z1281)","v":""},{"$f":"IF('1. Order'!AA1281=\"\",\"\",'1. Order'!AA1281)","v":""},{"$f":"IF('1. Order'!AB1281=\"\",\"\",'1. Order'!AB1281)","v":""},null,{"$f":"IF('1. Order'!AT1281=\"\",\"\",'1. Order'!AT1281)","v":""},{"$f":"IF('1. Order'!AU1281=\"\",\"\",'1. Order'!AU1281)","v":""},null,null,null,null,null,null,null,{"$f":"IF('1. Order'!AY1281=\"\",\"\",'1. Order'!AY1281)","v":""},{"$f":"IF('1. Order'!AZ1281=\"\",\"\",'1. Order'!AZ1281)","v":""},{"$f":"IF('1. Order'!BA1281=\"\",\"\",'1. Order'!BA1281)","v":""},{"$f":"IF('1. Order'!BB1281=\"\",\"\",'1. Order'!BB1281)","v":""},{"$f":"IF('1. Order'!BD1281=\"\",\"\",'1. Order'!BD1281)","v":""},{"$f":"IF('1. Order'!BE1281=\"\",\"\",'1. Order'!BE1281)","v":""},{"$f":"IF('1. Order'!BF1281=\"\",\"\",'1. Order'!BF1281)","v":""},{"$f":"IF('1. Order'!BG1281=\"\",\"\",'1. Order'!BG1281)","v":""},{"$f":"IF('1. Order'!BH1281=\"\",\"\",'1. Order'!BH1281)","v":"ZWO"}]
[{"$f":"IF('1. Order'!F1282=\"\",\"\",'1. Order'!F1282)","v":{"$error":"#N/A"}},{"$f":"IF('1. Order'!G1282=\"\",\"\",'1. Order'!G1282)","v":""},{"$f":"IF('1. Order'!H1282=\"\",\"\",'1. Order'!H1282)","v":""},{"$f":"IF('1. Order'!I1282=\"\",\"\",'1. Order'!I1282)","v":""},{"$f":"IF('1. Order'!J1282=\"\",\"\",'1. Order'!J1282)","v":""},{"$f":"IF('1. Order'!K1282=\"\",\"\",'1. Order'!K1282)","v":""},{"$f":"IF('1. Order'!L1282=\"\",\"\",'1. Order'!L1282)","v":""},{"$f":"IF('1. Order'!M1282=\"\",\"\",'1. Order'!M1282)","v":""},{"$f":"IF('1. Order'!N1282=\"\",\"\",'1. Order'!N1282)","v":""},{"$f":"IF('1. Order'!O1282=\"\",\"\",'1. Order'!O1282)","v":{"$error":"#N/A"}},{"$f":"IF('1. Order'!P1282=\"\",\"\",'1. Order'!P1282)","v":{"$error":"#N/A"}},{"$f":"IF('1. Order'!Q1282=\"\",\"\",'1. Order'!Q1282)","v":""},{"$f":"IF('1. Order'!S1282=\"\",\"\",'1. Order'!S1282)","v":""},{"$f":"IF('1. Order'!T1282=\"\",\"\",'1. Order'!T1282)","v":""},{"$f":"IF('1. Order'!W1282=\"\",\"\",'1. Order'!W1282)","v":""},{"$f":"IF('1. Order'!X1282=\"\",\"\",'1. Order'!X1282)","v":""},{"$f":"IF('1. Order'!Y1282=\"\",\"\",'1. Order'!Y1282)","v":"EUR"},{"$f":"IF('1. Order'!Z1282=\"\",\"\",'1. Order'!Z1282)","v":""},{"$f":"IF('1. Order'!AA1282=\"\",\"\",'1. Order'!AA1282)","v":""},{"$f":"IF('1. Order'!AB1282=\"\",\"\",'1. Order'!AB1282)","v":""},null,{"$f":"IF('1. Order'!AT1282=\"\",\"\",'1. Order'!AT1282)","v":""},{"$f":"IF('1. Order'!AU1282=\"\",\"\",'1. Order'!AU1282)","v":""},null,null,null,null,null,null,null,{"$f":"IF('1. Order'!AY1282=\"\",\"\",'1. Order'!AY1282)","v":""},{"$f":"IF('1. Order'!AZ1282=\"\",\"\",'1. Order'!AZ1282)","v":""},{"$f":"IF('1. Order'!BA1282=\"\",\"\",'1. Order'!BA1282)","v":""},{"$f":"IF('1. Order'!BB1282=\"\",\"\",'1. Order'!BB1282)","v":""},{"$f":"IF('1. Order'!BD1282=\"\",\"\",'1. Order'!BD1282)","v":""},{"$f":"IF('1. Order'!BE1282=\"\",\"\",'1. Order'!BE1282)","v":""},{"$f":"IF('1. Order'!BF1282=\"\",\"\",'1. Order'!BF1282)","v":""},{"$f":"IF('1. Order'!BG1282=\"\",\"\",'1. Order'!BG1282)","v":""},{"$f":"IF('1. Order'!BH1282=\"\",\"\",'1. Order'!BH1282)","v":"ZWO"}]
[{"$f":"IF('1. Order'!F1283=\"\",\"\",'1. Order'!F1283)","v":{"$error":"#N/A"}},{"$f":"IF('1. Order'!G1283=\"\",\"\",'1. Order'!G1283)","v":""},{"$f":"IF('1. Order'!H1283=\"\",\"\",'1. Order'!H1283)","v":""},{"$f":"IF('1. Order'!I1283=\"\",\"\",'1. Order'!I1283)","v":""},{"$f":"IF('1. Order'!J1283=\"\",\"\",'1. Order'!J1283)","v":""},{"$f":"IF('1. Order'!K1283=\"\",\"\",'1. Order'!K1283)","v":""},{"$f":"IF('1. Order'!L1283=\"\",\"\",'1. Order'!L1283)","v":""},{"$f":"IF('1. Order'!M1283=\"\",\"\",'1. Order'!M1283)","v":""},{"$f":"IF('1. Order'!N1283=\"\",\"\",'1. Order'!N1283)","v":""},{"$f":"IF('1. Order'!O1283=\"\",\"\",'1. Order'!O1283)","v":{"$error":"#N/A"}},{"$f":"IF('1. Order'!P1283=\"\",\"\",'1. Order'!P1283)","v":{"$error":"#N/A"}},{"$f":"IF('1. Order'!Q1283=\"\",\"\",'1. Order'!Q1283)","v":""},{"$f":"IF('1. Order'!S1283=\"\",\"\",'1. Order'!S1283)","v":""},{"$f":"IF('1. Order'!T1283=\"\",\"\",'1. Order'!T1283)","v":""},{"$f":"IF('1. Order'!W1283=\"\",\"\",'1. Order'!W1283)","v":""},{"$f":"IF('1. Order'!X1283=\"\",\"\",'1. Order'!X1283)","v":""},{"$f":"IF('1. Order'!Y1283=\"\",\"\",'1. Order'!Y1283)","v":"EUR"},{"$f":"IF('1. Order'!Z1283=\"\",\"\",'1. Order'!Z1283)","v":""},{"$f":"IF('1. Order'!AA1283=\"\",\"\",'1. Order'!AA1283)","v":""},{"$f":"IF('1. Order'!AB1283=\"\",\"\",'1. Order'!AB1283)","v":""},null,{"$f":"IF('1. Order'!AT1283=\"\",\"\",'1. Order'!AT1283)","v":""},{"$f":"IF('1. Order'!AU1283=\"\",\"\",'1. Order'!AU1283)","v":""},null,null,null,null,null,null,null,{"$f":"IF('1. Order'!AY1283=\"\",\"\",'1. Order'!AY1283)","v":""},{"$f":"IF('1. Order'!AZ1283=\"\",\"\",'1. Order'!AZ1283)","v":""},{"$f":"IF('1. Order'!BA1283=\"\",\"\",'1. Order'!BA1283)","v":""},{"$f":"IF('1. Order'!BB1283=\"\",\"\",'1. Order'!BB1283)","v":""},{"$f":"IF('1. Order'!BD1283=\"\",\"\",'1. Order'!BD1283)","v":""},{"$f":"IF('1. Order'!BE1283=\"\",\"\",'1. Order'!BE1283)","v":""},{"$f":"IF('1. Order'!BF1283=\"\",\"\",'1. Order'!BF1283)","v":""},{"$f":"IF('1. Order'!BG1283=\"\",\"\",'1. Order'!BG1283)","v":""},{"$f":"IF('1. Order'!BH1283=\"\",\"\",'1. Order'!BH1283)","v":"ZWO"}]
[{"$f":"IF('1. Order'!F1284=\"\",\"\",'1. Order'!F1284)","v":{"$error":"#N/A"}},{"$f":"IF('1. Order'!G1284=\"\",\"\",'1. Order'!G1284)","v":""},{"$f":"IF('1. Order'!H1284=\"\",\"\",'1. Order'!H1284)","v":""},{"$f":"IF('1. Order'!I1284=\"\",\"\",'1. Order'!I1284)","v":""},{"$f":"IF('1. Order'!J1284=\"\",\"\",'1. Order'!J1284)","v":""},{"$f":"IF('1. Order'!K1284=\"\",\"\",'1. Order'!K1284)","v":""},{"$f":"IF('1. Order'!L1284=\"\",\"\",'1. Order'!L1284)","v":""},{"$f":"IF('1. Order'!M1284=\"\",\"\",'1. Order'!M1284)","v":""},{"$f":"IF('1. Order'!N1284=\"\",\"\",'1. Order'!N1284)","v":""},{"$f":"IF('1. Order'!O1284=\"\",\"\",'1. Order'!O1284)","v":{"$error":"#N/A"}},{"$f":"IF('1. Order'!P1284=\"\",\"\",'1. Order'!P1284)","v":{"$error":"#N/A"}},{"$f":"IF('1. Order'!Q1284=\"\",\"\",'1. Order'!Q1284)","v":""},{"$f":"IF('1. Order'!S1284=\"\",\"\",'1. Order'!S1284)","v":""},{"$f":"IF('1. Order'!T1284=\"\",\"\",'1. Order'!T1284)","v":""},{"$f":"IF('1. Order'!W1284=\"\",\"\",'1. Order'!W1284)","v":""},{"$f":"IF('1. Order'!X1284=\"\",\"\",'1. Order'!X1284)","v":""},{"$f":"IF('1. Order'!Y1284=\"\",\"\",'1. Order'!Y1284)","v":"EUR"},{"$f":"IF('1. Order'!Z1284=\"\",\"\",'1. Order'!Z1284)","v":""},{"$f":"IF('1. Order'!AA1284=\"\",\"\",'1. Order'!AA1284)","v":""},{"$f":"IF('1. Order'!AB1284=\"\",\"\",'1. Order'!AB1284)","v":""},null,{"$f":"IF('1. Order'!AT1284=\"\",\"\",'1. Order'!AT1284)","v":""},{"$f":"IF('1. Order'!AU1284=\"\",\"\",'1. Order'!AU1284)","v":""},null,null,null,null,null,null,null,{"$f":"IF('1. Order'!AY1284=\"\",\"\",'1. Order'!AY1284)","v":""},{"$f":"IF('1. Order'!AZ1284=\"\",\"\",'1. Order'!AZ1284)","v":""},{"$f":"IF('1. Order'!BA1284=\"\",\"\",'1. Order'!BA1284)","v":""},{"$f":"IF('1. Order'!BB1284=\"\",\"\",'1. Order'!BB1284)","v":""},{"$f":"IF('1. Order'!BD1284=\"\",\"\",'1. Order'!BD1284)","v":""},{"$f":"IF('1. Order'!BE1284=\"\",\"\",'1. Order'!BE1284)","v":""},{"$f":"IF('1. Order'!BF1284=\"\",\"\",'1. Order'!BF1284)","v":""},{"$f":"IF('1. Order'!BG1284=\"\",\"\",'1. Order'!BG1284)","v":""},{"$f":"IF('1. Order'!BH1284=\"\",\"\",'1. Order'!BH1284)","v":"ZWO"}]
[{"$f":"IF('1. Order'!F1285=\"\",\"\",'1. Order'!F1285)","v":{"$error":"#N/A"}},{"$f":"IF('1. Order'!G1285=\"\",\"\",'1. Order'!G1285)","v":""},{"$f":"IF('1. Order'!H1285=\"\",\"\",'1. Order'!H1285)","v":""},{"$f":"IF('1. Order'!I1285=\"\",\"\",'1. Order'!I1285)","v":""},{"$f":"IF('1. Order'!J1285=\"\",\"\",'1. Order'!J1285)","v":""},{"$f":"IF('1. Order'!K1285=\"\",\"\",'1. Order'!K1285)","v":""},{"$f":"IF('1. Order'!L1285=\"\",\"\",'1. Order'!L1285)","v":""},{"$f":"IF('1. Order'!M1285=\"\",\"\",'1. Order'!M1285)","v":""},{"$f":"IF('1. Order'!N1285=\"\",\"\",'1. Order'!N1285)","v":""},{"$f":"IF('1. Order'!O1285=\"\",\"\",'1. Order'!O1285)","v":{"$error":"#N/A"}},{"$f":"IF('1. Order'!P1285=\"\",\"\",'1. Order'!P1285)","v":{"$error":"#N/A"}},{"$f":"IF('1. Order'!Q1285=\"\",\"\",'1. Order'!Q1285)","v":""},{"$f":"IF('1. Order'!S1285=\"\",\"\",'1. Order'!S1285)","v":""},{"$f":"IF('1. Order'!T1285=\"\",\"\",'1. Order'!T1285)","v":""},{"$f":"IF('1. Order'!W1285=\"\",\"\",'1. Order'!W1285)","v":""},{"$f":"IF('1. Order'!X1285=\"\",\"\",'1. Order'!X1285)","v":""},{"$f":"IF('1. Order'!Y1285=\"\",\"\",'1. Order'!Y1285)","v":"EUR"},{"$f":"IF('1. Order'!Z1285=\"\",\"\",'1. Order'!Z1285)","v":""},{"$f":"IF('1. Order'!AA1285=\"\",\"\",'1. Order'!AA1285)","v":""},{"$f":"IF('1. Order'!AB1285=\"\",\"\",'1. Order'!AB1285)","v":""},null,{"$f":"IF('1. Order'!AT1285=\"\",\"\",'1. Order'!AT1285)","v":""},{"$f":"IF('1. Order'!AU1285=\"\",\"\",'1. Order'!AU1285)","v":""},null,null,null,null,null,null,null,{"$f":"IF('1. Order'!AY1285=\"\",\"\",'1. Order'!AY1285)","v":""},{"$f":"IF('1. Order'!AZ1285=\"\",\"\",'1. Order'!AZ1285)","v":""},{"$f":"IF('1. Order'!BA1285=\"\",\"\",'1. Order'!BA1285)","v":""},{"$f":"IF('1. Order'!BB1285=\"\",\"\",'1. Order'!BB1285)","v":""},{"$f":"IF('1. Order'!BD1285=\"\",\"\",'1. Order'!BD1285)","v":""},{"$f":"IF('1. Order'!BE1285=\"\",\"\",'1. Order'!BE1285)","v":""},{"$f":"IF('1. Order'!BF1285=\"\",\"\",'1. Order'!BF1285)","v":""},{"$f":"IF('1. Order'!BG1285=\"\",\"\",'1. Order'!BG1285)","v":""},{"$f":"IF('1. Order'!BH1285=\"\",\"\",'1. Order'!BH1285)","v":"ZWO"}]
[{"$f":"IF('1. Order'!F1286=\"\",\"\",'1. Order'!F1286)","v":{"$error":"#N/A"}},{"$f":"IF('1. Order'!G1286=\"\",\"\",'1. Order'!G1286)","v":""},{"$f":"IF('1. Order'!H1286=\"\",\"\",'1. Order'!H1286)","v":""},{"$f":"IF('1. Order'!I1286=\"\",\"\",'1. Order'!I1286)","v":""},{"$f":"IF('1. Order'!J1286=\"\",\"\",'1. Order'!J1286)","v":""},{"$f":"IF('1. Order'!K1286=\"\",\"\",'1. Order'!K1286)","v":""},{"$f":"IF('1. Order'!L1286=\"\",\"\",'1. Order'!L1286)","v":""},{"$f":"IF('1. Order'!M1286=\"\",\"\",'1. Order'!M1286)","v":""},{"$f":"IF('1. Order'!N1286=\"\",\"\",'1. Order'!N1286)","v":""},{"$f":"IF('1. Order'!O1286=\"\",\"\",'1. Order'!O1286)","v":{"$error":"#N/A"}},{"$f":"IF('1. Order'!P1286=\"\",\"\",'1. Order'!P1286)","v":{"$error":"#N/A"}},{"$f":"IF('1. Order'!Q1286=\"\",\"\",'1. Order'!Q1286)","v":""},{"$f":"IF('1. Order'!S1286=\"\",\"\",'1. Order'!S1286)","v":""},{"$f":"IF('1. Order'!T1286=\"\",\"\",'1. Order'!T1286)","v":""},{"$f":"IF('1. Order'!W1286=\"\",\"\",'1. Order'!W1286)","v":""},{"$f":"IF('1. Order'!X1286=\"\",\"\",'1. Order'!X1286)","v":""},{"$f":"IF('1. Order'!Y1286=\"\",\"\",'1. Order'!Y1286)","v":"EUR"},{"$f":"IF('1. Order'!Z1286=\"\",\"\",'1. Order'!Z1286)","v":""},{"$f":"IF('1. Order'!AA1286=\"\",\"\",'1. Order'!AA1286)","v":""},{"$f":"IF('1. Order'!AB1286=\"\",\"\",'1. Order'!AB1286)","v":""},null,{"$f":"IF('1. Order'!AT1286=\"\",\"\",'1. Order'!AT1286)","v":""},{"$f":"IF('1. Order'!AU1286=\"\",\"\",'1. Order'!AU1286)","v":""},null,null,null,null,null,null,null,{"$f":"IF('1. Order'!AY1286=\"\",\"\",'1. Order'!AY1286)","v":""},{"$f":"IF('1. Order'!AZ1286=\"\",\"\",'1. Order'!AZ1286)","v":""},{"$f":"IF('1. Order'!BA1286=\"\",\"\",'1. Order'!BA1286)","v":""},{"$f":"IF('1. Order'!BB1286=\"\",\"\",'1. Order'!BB1286)","v":""},{"$f":"IF('1. Order'!BD1286=\"\",\"\",'1. Order'!BD1286)","v":""},{"$f":"IF('1. Order'!BE1286=\"\",\"\",'1. Order'!BE1286)","v":""},{"$f":"IF('1. Order'!BF1286=\"\",\"\",'1. Order'!BF1286)","v":""},{"$f":"IF('1. Order'!BG1286=\"\",\"\",'1. Order'!BG1286)","v":""},{"$f":"IF('1. Order'!BH1286=\"\",\"\",'1. Order'!BH1286)","v":"ZWO"}]
[{"$f":"IF('1. Order'!F1287=\"\",\"\",'1. Order'!F1287)","v":{"$error":"#N/A"}},{"$f":"IF('1. Order'!G1287=\"\",\"\",'1. Order'!G1287)","v":""},{"$f":"IF('1. Order'!H1287=\"\",\"\",'1. Order'!H1287)","v":""},{"$f":"IF('1. Order'!I1287=\"\",\"\",'1. Order'!I1287)","v":""},{"$f":"IF('1. Order'!J1287=\"\",\"\",'1. Order'!J1287)","v":""},{"$f":"IF('1. Order'!K1287=\"\",\"\",'1. Order'!K1287)","v":""},{"$f":"IF('1. Order'!L1287=\"\",\"\",'1. Order'!L1287)","v":""},{"$f":"IF('1. Order'!M1287=\"\",\"\",'1. Order'!M1287)","v":""},{"$f":"IF('1. Order'!N1287=\"\",\"\",'1. Order'!N1287)","v":""},{"$f":"IF('1. Order'!O1287=\"\",\"\",'1. Order'!O1287)","v":{"$error":"#N/A"}},{"$f":"IF('1. Order'!P1287=\"\",\"\",'1. Order'!P1287)","v":{"$error":"#N/A"}},{"$f":"IF('1. Order'!Q1287=\"\",\"\",'1. Order'!Q1287)","v":""},{"$f":"IF('1. Order'!S1287=\"\",\"\",'1. Order'!S1287)","v":""},{"$f":"IF('1. Order'!T1287=\"\",\"\",'1. Order'!T1287)","v":""},{"$f":"IF('1. Order'!W1287=\"\",\"\",'1. Order'!W1287)","v":""},{"$f":"IF('1. Order'!X1287=\"\",\"\",'1. Order'!X1287)","v":""},{"$f":"IF('1. Order'!Y1287=\"\",\"\",'1. Order'!Y1287)","v":"EUR"},{"$f":"IF('1. Order'!Z1287=\"\",\"\",'1. Order'!Z1287)","v":""},{"$f":"IF('1. Order'!AA1287=\"\",\"\",'1. Order'!AA1287)","v":""},{"$f":"IF('1. Order'!AB1287=\"\",\"\",'1. Order'!AB1287)","v":""},null,{"$f":"IF('1. Order'!AT1287=\"\",\"\",'1. Order'!AT1287)","v":""},{"$f":"IF('1. Order'!AU1287=\"\",\"\",'1. Order'!AU1287)","v":""},null,null,null,null,null,null,null,{"$f":"IF('1. Order'!AY1287=\"\",\"\",'1. Order'!AY1287)","v":""},{"$f":"IF('1. Order'!AZ1287=\"\",\"\",'1. Order'!AZ1287)","v":""},{"$f":"IF('1. Order'!BA1287=\"\",\"\",'1. Order'!BA1287)","v":""},{"$f":"IF('1. Order'!BB1287=\"\",\"\",'1. Order'!BB1287)","v":""},{"$f":"IF('1. Order'!BD1287=\"\",\"\",'1. Order'!BD1287)","v":""},{"$f":"IF('1. Order'!BE1287=\"\",\"\",'1. Order'!BE1287)","v":""},{"$f":"IF('1. Order'!BF1287=\"\",\"\",'1. Order'!BF1287)","v":""},{"$f":"IF('1. Order'!BG1287=\"\",\"\",'1. Order'!BG1287)","v":""},{"$f":"IF('1. Order'!BH1287=\"\",\"\",'1. Order'!BH1287)","v":"ZWO"}]
[{"$f":"IF('1. Order'!F1288=\"\",\"\",'1. Order'!F1288)","v":{"$error":"#N/A"}},{"$f":"IF('1. Order'!G1288=\"\",\"\",'1. Order'!G1288)","v":""},{"$f":"IF('1. Order'!H1288=\"\",\"\",'1. Order'!H1288)","v":""},{"$f":"IF('1. Order'!I1288=\"\",\"\",'1. Order'!I1288)","v":""},{"$f":"IF('1. Order'!J1288=\"\",\"\",'1. Order'!J1288)","v":""},{"$f":"IF('1. Order'!K1288=\"\",\"\",'1. Order'!K1288)","v":""},{"$f":"IF('1. Order'!L1288=\"\",\"\",'1. Order'!L1288)","v":""},{"$f":"IF('1. Order'!M1288=\"\",\"\",'1. Order'!M1288)","v":""},{"$f":"IF('1. Order'!N1288=\"\",\"\",'1. Order'!N1288)","v":""},{"$f":"IF('1. Order'!O1288=\"\",\"\",'1. Order'!O1288)","v":{"$error":"#N/A"}},{"$f":"IF('1. Order'!P1288=\"\",\"\",'1. Order'!P1288)","v":{"$error":"#N/A"}},{"$f":"IF('1. Order'!Q1288=\"\",\"\",'1. Order'!Q1288)","v":""},{"$f":"IF('1. Order'!S1288=\"\",\"\",'1. Order'!S1288)","v":""},{"$f":"IF('1. Order'!T1288=\"\",\"\",'1. Order'!T1288)","v":""},{"$f":"IF('1. Order'!W1288=\"\",\"\",'1. Order'!W1288)","v":""},{"$f":"IF('1. Order'!X1288=\"\",\"\",'1. Order'!X1288)","v":""},{"$f":"IF('1. Order'!Y1288=\"\",\"\",'1. Order'!Y1288)","v":"EUR"},{"$f":"IF('1. Order'!Z1288=\"\",\"\",'1. Order'!Z1288)","v":""},{"$f":"IF('1. Order'!AA1288=\"\",\"\",'1. Order'!AA1288)","v":""},{"$f":"IF('1. Order'!AB1288=\"\",\"\",'1. Order'!AB1288)","v":""},null,{"$f":"IF('1. Order'!AT1288=\"\",\"\",'1. Order'!AT1288)","v":""},{"$f":"IF('1. Order'!AU1288=\"\",\"\",'1. Order'!AU1288)","v":""},null,null,null,null,null,null,null,{"$f":"IF('1. Order'!AY1288=\"\",\"\",'1. Order'!AY1288)","v":""},{"$f":"IF('1. Order'!AZ1288=\"\",\"\",'1. Order'!AZ1288)","v":""},{"$f":"IF('1. Order'!BA1288=\"\",\"\",'1. Order'!BA1288)","v":""},{"$f":"IF('1. Order'!BB1288=\"\",\"\",'1. Order'!BB1288)","v":""},{"$f":"IF('1. Order'!BD1288=\"\",\"\",'1. Order'!BD1288)","v":""},{"$f":"IF('1. Order'!BE1288=\"\",\"\",'1. Order'!BE1288)","v":""},{"$f":"IF('1. Order'!BF1288=\"\",\"\",'1. Order'!BF1288)","v":""},{"$f":"IF('1. Order'!BG1288=\"\",\"\",'1. Order'!BG1288)","v":""},{"$f":"IF('1. Order'!BH1288=\"\",\"\",'1. Order'!BH1288)","v":"ZWO"}]
[{"$f":"IF('1. Order'!F1289=\"\",\"\",'1. Order'!F1289)","v":{"$error":"#N/A"}},{"$f":"IF('1. Order'!G1289=\"\",\"\",'1. Order'!G1289)","v":""},{"$f":"IF('1. Order'!H1289=\"\",\"\",'1. Order'!H1289)","v":""},{"$f":"IF('1. Order'!I1289=\"\",\"\",'1. Order'!I1289)","v":""},{"$f":"IF('1. Order'!J1289=\"\",\"\",'1. Order'!J1289)","v":""},{"$f":"IF('1. Order'!K1289=\"\",\"\",'1. Order'!K1289)","v":""},{"$f":"IF('1. Order'!L1289=\"\",\"\",'1. Order'!L1289)","v":""},{"$f":"IF('1. Order'!M1289=\"\",\"\",'1. Order'!M1289)","v":""},{"$f":"IF('1. Order'!N1289=\"\",\"\",'1. Order'!N1289)","v":""},{"$f":"IF('1. Order'!O1289=\"\",\"\",'1. Order'!O1289)","v":{"$error":"#N/A"}},{"$f":"IF('1. Order'!P1289=\"\",\"\",'1. Order'!P1289)","v":{"$error":"#N/A"}},{"$f":"IF('1. Order'!Q1289=\"\",\"\",'1. Order'!Q1289)","v":""},{"$f":"IF('1. Order'!S1289=\"\",\"\",'1. Order'!S1289)","v":""},{"$f":"IF('1. Order'!T1289=\"\",\"\",'1. Order'!T1289)","v":""},{"$f":"IF('1. Order'!W1289=\"\",\"\",'1. Order'!W1289)","v":""},{"$f":"IF('1. Order'!X1289=\"\",\"\",'1. Order'!X1289)","v":""},{"$f":"IF('1. Order'!Y1289=\"\",\"\",'1. Order'!Y1289)","v":"EUR"},{"$f":"IF('1. Order'!Z1289=\"\",\"\",'1. Order'!Z1289)","v":""},{"$f":"IF('1. Order'!AA1289=\"\",\"\",'1. Order'!AA1289)","v":""},{"$f":"IF('1. Order'!AB1289=\"\",\"\",'1. Order'!AB1289)","v":""},null,{"$f":"IF('1. Order'!AT1289=\"\",\"\",'1. Order'!AT1289)","v":""},{"$f":"IF('1. Order'!AU1289=\"\",\"\",'1. Order'!AU1289)","v":""},null,null,null,null,null,null,null,{"$f":"IF('1. Order'!AY1289=\"\",\"\",'1. Order'!AY1289)","v":""},{"$f":"IF('1. Order'!AZ1289=\"\",\"\",'1. Order'!AZ1289)","v":""},{"$f":"IF('1. Order'!BA1289=\"\",\"\",'1. Order'!BA1289)","v":""},{"$f":"IF('1. Order'!BB1289=\"\",\"\",'1. Order'!BB1289)","v":""},{"$f":"IF('1. Order'!BD1289=\"\",\"\",'1. Order'!BD1289)","v":""},{"$f":"IF('1. Order'!BE1289=\"\",\"\",'1. Order'!BE1289)","v":""},{"$f":"IF('1. Order'!BF1289=\"\",\"\",'1. Order'!BF1289)","v":""},{"$f":"IF('1. Order'!BG1289=\"\",\"\",'1. Order'!BG1289)","v":""},{"$f":"IF('1. Order'!BH1289=\"\",\"\",'1. Order'!BH1289)","v":"ZWO"}]
[{"$f":"IF('1. Order'!F1290=\"\",\"\",'1. Order'!F1290)","v":{"$error":"#N/A"}},{"$f":"IF('1. Order'!G1290=\"\",\"\",'1. Order'!G1290)","v":""},{"$f":"IF('1. Order'!H1290=\"\",\"\",'1. Order'!H1290)","v":""},{"$f":"IF('1. Order'!I1290=\"\",\"\",'1. Order'!I1290)","v":""},{"$f":"IF('1. Order'!J1290=\"\",\"\",'1. Order'!J1290)","v":""},{"$f":"IF('1. Order'!K1290=\"\",\"\",'1. Order'!K1290)","v":""},{"$f":"IF('1. Order'!L1290=\"\",\"\",'1. Order'!L1290)","v":""},{"$f":"IF('1. Order'!M1290=\"\",\"\",'1. Order'!M1290)","v":""},{"$f":"IF('1. Order'!N1290=\"\",\"\",'1. Order'!N1290)","v":""},{"$f":"IF('1. Order'!O1290=\"\",\"\",'1. Order'!O1290)","v":{"$error":"#N/A"}},{"$f":"IF('1. Order'!P1290=\"\",\"\",'1. Order'!P1290)","v":{"$error":"#N/A"}},{"$f":"IF('1. Order'!Q1290=\"\",\"\",'1. Order'!Q1290)","v":""},{"$f":"IF('1. Order'!S1290=\"\",\"\",'1. Order'!S1290)","v":""},{"$f":"IF('1. Order'!T1290=\"\",\"\",'1. Order'!T1290)","v":""},{"$f":"IF('1. Order'!W1290=\"\",\"\",'1. Order'!W1290)","v":""},{"$f":"IF('1. Order'!X1290=\"\",\"\",'1. Order'!X1290)","v":""},{"$f":"IF('1. Order'!Y1290=\"\",\"\",'1. Order'!Y1290)","v":"EUR"},{"$f":"IF('1. Order'!Z1290=\"\",\"\",'1. Order'!Z1290)","v":""},{"$f":"IF('1. Order'!AA1290=\"\",\"\",'1. Order'!AA1290)","v":""},{"$f":"IF('1. Order'!AB1290=\"\",\"\",'1. Order'!AB1290)","v":""},null,{"$f":"IF('1. Order'!AT1290=\"\",\"\",'1. Order'!AT1290)","v":""},{"$f":"IF('1. Order'!AU1290=\"\",\"\",'1. Order'!AU1290)","v":""},null,null,null,null,null,null,null,{"$f":"IF('1. Order'!AY1290=\"\",\"\",'1. Order'!AY1290)","v":""},{"$f":"IF('1. Order'!AZ1290=\"\",\"\",'1. Order'!AZ1290)","v":""},{"$f":"IF('1. Order'!BA1290=\"\",\"\",'1. Order'!BA1290)","v":""},{"$f":"IF('1. Order'!BB1290=\"\",\"\",'1. Order'!BB1290)","v":""},{"$f":"IF('1. Order'!BD1290=\"\",\"\",'1. Order'!BD1290)","v":""},{"$f":"IF('1. Order'!BE1290=\"\",\"\",'1. Order'!BE1290)","v":""},{"$f":"IF('1. Order'!BF1290=\"\",\"\",'1. Order'!BF1290)","v":""},{"$f":"IF('1. Order'!BG1290=\"\",\"\",'1. Order'!BG1290)","v":""},{"$f":"IF('1. Order'!BH1290=\"\",\"\",'1. Order'!BH1290)","v":"ZWO"}]
[{"$f":"IF('1. Order'!F1291=\"\",\"\",'1. Order'!F1291)","v":{"$error":"#N/A"}},{"$f":"IF('1. Order'!G1291=\"\",\"\",'1. Order'!G1291)","v":""},{"$f":"IF('1. Order'!H1291=\"\",\"\",'1. Order'!H1291)","v":""},{"$f":"IF('1. Order'!I1291=\"\",\"\",'1. Order'!I1291)","v":""},{"$f":"IF('1. Order'!J1291=\"\",\"\",'1. Order'!J1291)","v":""},{"$f":"IF('1. Order'!K1291=\"\",\"\",'1. Order'!K1291)","v":""},{"$f":"IF('1. Order'!L1291=\"\",\"\",'1. Order'!L1291)","v":""},{"$f":"IF('1. Order'!M1291=\"\",\"\",'1. Order'!M1291)","v":""},{"$f":"IF('1. Order'!N1291=\"\",\"\",'1. Order'!N1291)","v":""},{"$f":"IF('1. Order'!O1291=\"\",\"\",'1. Order'!O1291)","v":{"$error":"#N/A"}},{"$f":"IF('1. Order'!P1291=\"\",\"\",'1. Order'!P1291)","v":{"$error":"#N/A"}},{"$f":"IF('1. Order'!Q1291=\"\",\"\",'1. Order'!Q1291)","v":""},{"$f":"IF('1. Order'!S1291=\"\",\"\",'1. Order'!S1291)","v":""},{"$f":"IF('1. Order'!T1291=\"\",\"\",'1. Order'!T1291)","v":""},{"$f":"IF('1. Order'!W1291=\"\",\"\",'1. Order'!W1291)","v":""},{"$f":"IF('1. Order'!X1291=\"\",\"\",'1. Order'!X1291)","v":""},{"$f":"IF('1. Order'!Y1291=\"\",\"\",'1. Order'!Y1291)","v":"EUR"},{"$f":"IF('1. Order'!Z1291=\"\",\"\",'1. Order'!Z1291)","v":""},{"$f":"IF('1. Order'!AA1291=\"\",\"\",'1. Order'!AA1291)","v":""},{"$f":"IF('1. Order'!AB1291=\"\",\"\",'1. Order'!AB1291)","v":""},null,{"$f":"IF('1. Order'!AT1291=\"\",\"\",'1. Order'!AT1291)","v":""},{"$f":"IF('1. Order'!AU1291=\"\",\"\",'1. Order'!AU1291)","v":""},null,null,null,null,null,null,null,{"$f":"IF('1. Order'!AY1291=\"\",\"\",'1. Order'!AY1291)","v":""},{"$f":"IF('1. Order'!AZ1291=\"\",\"\",'1. Order'!AZ1291)","v":""},{"$f":"IF('1. Order'!BA1291=\"\",\"\",'1. Order'!BA1291)","v":""},{"$f":"IF('1. Order'!BB1291=\"\",\"\",'1. Order'!BB1291)","v":""},{"$f":"IF('1. Order'!BD1291=\"\",\"\",'1. Order'!BD1291)","v":""},{"$f":"IF('1. Order'!BE1291=\"\",\"\",'1. Order'!BE1291)","v":""},{"$f":"IF('1. Order'!BF1291=\"\",\"\",'1. Order'!BF1291)","v":""},{"$f":"IF('1. Order'!BG1291=\"\",\"\",'1. Order'!BG1291)","v":""},{"$f":"IF('1. Order'!BH1291=\"\",\"\",'1. Order'!BH1291)","v":"ZWO"}]
[{"$f":"IF('1. Order'!F1292=\"\",\"\",'1. Order'!F1292)","v":{"$error":"#N/A"}},{"$f":"IF('1. Order'!G1292=\"\",\"\",'1. Order'!G1292)","v":""},{"$f":"IF('1. Order'!H1292=\"\",\"\",'1. Order'!H1292)","v":""},{"$f":"IF('1. Order'!I1292=\"\",\"\",'1. Order'!I1292)","v":""},{"$f":"IF('1. Order'!J1292=\"\",\"\",'1. Order'!J1292)","v":""},{"$f":"IF('1. Order'!K1292=\"\",\"\",'1. Order'!K1292)","v":""},{"$f":"IF('1. Order'!L1292=\"\",\"\",'1. Order'!L1292)","v":""},{"$f":"IF('1. Order'!M1292=\"\",\"\",'1. Order'!M1292)","v":""},{"$f":"IF('1. Order'!N1292=\"\",\"\",'1. Order'!N1292)","v":""},{"$f":"IF('1. Order'!O1292=\"\",\"\",'1. Order'!O1292)","v":{"$error":"#N/A"}},{"$f":"IF('1. Order'!P1292=\"\",\"\",'1. Order'!P1292)","v":{"$error":"#N/A"}},{"$f":"IF('1. Order'!Q1292=\"\",\"\",'1. Order'!Q1292)","v":""},{"$f":"IF('1. Order'!S1292=\"\",\"\",'1. Order'!S1292)","v":""},{"$f":"IF('1. Order'!T1292=\"\",\"\",'1. Order'!T1292)","v":""},{"$f":"IF('1. Order'!W1292=\"\",\"\",'1. Order'!W1292)","v":""},{"$f":"IF('1. Order'!X1292=\"\",\"\",'1. Order'!X1292)","v":""},{"$f":"IF('1. Order'!Y1292=\"\",\"\",'1. Order'!Y1292)","v":"EUR"},{"$f":"IF('1. Order'!Z1292=\"\",\"\",'1. Order'!Z1292)","v":""},{"$f":"IF('1. Order'!AA1292=\"\",\"\",'1. Order'!AA1292)","v":""},{"$f":"IF('1. Order'!AB1292=\"\",\"\",'1. Order'!AB1292)","v":""},null,{"$f":"IF('1. Order'!AT1292=\"\",\"\",'1. Order'!AT1292)","v":""},{"$f":"IF('1. Order'!AU1292=\"\",\"\",'1. Order'!AU1292)","v":""},null,null,null,null,null,null,null,{"$f":"IF('1. Order'!AY1292=\"\",\"\",'1. Order'!AY1292)","v":""},{"$f":"IF('1. Order'!AZ1292=\"\",\"\",'1. Order'!AZ1292)","v":""},{"$f":"IF('1. Order'!BA1292=\"\",\"\",'1. Order'!BA1292)","v":""},{"$f":"IF('1. Order'!BB1292=\"\",\"\",'1. Order'!BB1292)","v":""},{"$f":"IF('1. Order'!BD1292=\"\",\"\",'1. Order'!BD1292)","v":""},{"$f":"IF('1. Order'!BE1292=\"\",\"\",'1. Order'!BE1292)","v":""},{"$f":"IF('1. Order'!BF1292=\"\",\"\",'1. Order'!BF1292)","v":""},{"$f":"IF('1. Order'!BG1292=\"\",\"\",'1. Order'!BG1292)","v":""},{"$f":"IF('1. Order'!BH1292=\"\",\"\",'1. Order'!BH1292)","v":"ZWO"}]
[{"$f":"IF('1. Order'!F1293=\"\",\"\",'1. Order'!F1293)","v":{"$error":"#N/A"}},{"$f":"IF('1. Order'!G1293=\"\",\"\",'1. Order'!G1293)","v":""},{"$f":"IF('1. Order'!H1293=\"\",\"\",'1. Order'!H1293)","v":""},{"$f":"IF('1. Order'!I1293=\"\",\"\",'1. Order'!I1293)","v":""},{"$f":"IF('1. Order'!J1293=\"\",\"\",'1. Order'!J1293)","v":""},{"$f":"IF('1. Order'!K1293=\"\",\"\",'1. Order'!K1293)","v":""},{"$f":"IF('1. Order'!L1293=\"\",\"\",'1. Order'!L1293)","v":""},{"$f":"IF('1. Order'!M1293=\"\",\"\",'1. Order'!M1293)","v":""},{"$f":"IF('1. Order'!N1293=\"\",\"\",'1. Order'!N1293)","v":""},{"$f":"IF('1. Order'!O1293=\"\",\"\",'1. Order'!O1293)","v":{"$error":"#N/A"}},{"$f":"IF('1. Order'!P1293=\"\",\"\",'1. Order'!P1293)","v":{"$error":"#N/A"}},{"$f":"IF('1. Order'!Q1293=\"\",\"\",'1. Order'!Q1293)","v":""},{"$f":"IF('1. Order'!S1293=\"\",\"\",'1. Order'!S1293)","v":""},{"$f":"IF('1. Order'!T1293=\"\",\"\",'1. Order'!T1293)","v":""},{"$f":"IF('1. Order'!W1293=\"\",\"\",'1. Order'!W1293)","v":""},{"$f":"IF('1. Order'!X1293=\"\",\"\",'1. Order'!X1293)","v":""},{"$f":"IF('1. Order'!Y1293=\"\",\"\",'1. Order'!Y1293)","v":"EUR"},{"$f":"IF('1. Order'!Z1293=\"\",\"\",'1. Order'!Z1293)","v":""},{"$f":"IF('1. Order'!AA1293=\"\",\"\",'1. Order'!AA1293)","v":""},{"$f":"IF('1. Order'!AB1293=\"\",\"\",'1. Order'!AB1293)","v":""},null,{"$f":"IF('1. Order'!AT1293=\"\",\"\",'1. Order'!AT1293)","v":""},{"$f":"IF('1. Order'!AU1293=\"\",\"\",'1. Order'!AU1293)","v":""},null,null,null,null,null,null,null,{"$f":"IF('1. Order'!AY1293=\"\",\"\",'1. Order'!AY1293)","v":""},{"$f":"IF('1. Order'!AZ1293=\"\",\"\",'1. Order'!AZ1293)","v":""},{"$f":"IF('1. Order'!BA1293=\"\",\"\",'1. Order'!BA1293)","v":""},{"$f":"IF('1. Order'!BB1293=\"\",\"\",'1. Order'!BB1293)","v":""},{"$f":"IF('1. Order'!BD1293=\"\",\"\",'1. Order'!BD1293)","v":""},{"$f":"IF('1. Order'!BE1293=\"\",\"\",'1. Order'!BE1293)","v":""},{"$f":"IF('1. Order'!BF1293=\"\",\"\",'1. Order'!BF1293)","v":""},{"$f":"IF('1. Order'!BG1293=\"\",\"\",'1. Order'!BG1293)","v":""},{"$f":"IF('1. Order'!BH1293=\"\",\"\",'1. Order'!BH1293)","v":"ZWO"}]
[{"$f":"IF('1. Order'!F1294=\"\",\"\",'1. Order'!F1294)","v":{"$error":"#N/A"}},{"$f":"IF('1. Order'!G1294=\"\",\"\",'1. Order'!G1294)","v":""},{"$f":"IF('1. Order'!H1294=\"\",\"\",'1. Order'!H1294)","v":""},{"$f":"IF('1. Order'!I1294=\"\",\"\",'1. Order'!I1294)","v":""},{"$f":"IF('1. Order'!J1294=\"\",\"\",'1. Order'!J1294)","v":""},{"$f":"IF('1. Order'!K1294=\"\",\"\",'1. Order'!K1294)","v":""},{"$f":"IF('1. Order'!L1294=\"\",\"\",'1. Order'!L1294)","v":""},{"$f":"IF('1. Order'!M1294=\"\",\"\",'1. Order'!M1294)","v":""},{"$f":"IF('1. Order'!N1294=\"\",\"\",'1. Order'!N1294)","v":""},{"$f":"IF('1. Order'!O1294=\"\",\"\",'1. Order'!O1294)","v":{"$error":"#N/A"}},{"$f":"IF('1. Order'!P1294=\"\",\"\",'1. Order'!P1294)","v":{"$error":"#N/A"}},{"$f":"IF('1. Order'!Q1294=\"\",\"\",'1. Order'!Q1294)","v":""},{"$f":"IF('1. Order'!S1294=\"\",\"\",'1. Order'!S1294)","v":""},{"$f":"IF('1. Order'!T1294=\"\",\"\",'1. Order'!T1294)","v":""},{"$f":"IF('1. Order'!W1294=\"\",\"\",'1. Order'!W1294)","v":""},{"$f":"IF('1. Order'!X1294=\"\",\"\",'1. Order'!X1294)","v":""},{"$f":"IF('1. Order'!Y1294=\"\",\"\",'1. Order'!Y1294)","v":"EUR"},{"$f":"IF('1. Order'!Z1294=\"\",\"\",'1. Order'!Z1294)","v":""},{"$f":"IF('1. Order'!AA1294=\"\",\"\",'1. Order'!AA1294)","v":""},{"$f":"IF('1. Order'!AB1294=\"\",\"\",'1. Order'!AB1294)","v":""},null,{"$f":"IF('1. Order'!AT1294=\"\",\"\",'1. Order'!AT1294)","v":""},{"$f":"IF('1. Order'!AU1294=\"\",\"\",'1. Order'!AU1294)","v":""},null,null,null,null,null,null,null,{"$f":"IF('1. Order'!AY1294=\"\",\"\",'1. Order'!AY1294)","v":""},{"$f":"IF('1. Order'!AZ1294=\"\",\"\",'1. Order'!AZ1294)","v":""},{"$f":"IF('1. Order'!BA1294=\"\",\"\",'1. Order'!BA1294)","v":""},{"$f":"IF('1. Order'!BB1294=\"\",\"\",'1. Order'!BB1294)","v":""},{"$f":"IF('1. Order'!BD1294=\"\",\"\",'1. Order'!BD1294)","v":""},{"$f":"IF('1. Order'!BE1294=\"\",\"\",'1. Order'!BE1294)","v":""},{"$f":"IF('1. Order'!BF1294=\"\",\"\",'1. Order'!BF1294)","v":""},{"$f":"IF('1. Order'!BG1294=\"\",\"\",'1. Order'!BG1294)","v":""},{"$f":"IF('1. Order'!BH1294=\"\",\"\",'1. Order'!BH1294)","v":"ZWO"}]
[{"$f":"IF('1. Order'!F1295=\"\",\"\",'1. Order'!F1295)","v":{"$error":"#N/A"}},{"$f":"IF('1. Order'!G1295=\"\",\"\",'1. Order'!G1295)","v":""},{"$f":"IF('1. Order'!H1295=\"\",\"\",'1. Order'!H1295)","v":""},{"$f":"IF('1. Order'!I1295=\"\",\"\",'1. Order'!I1295)","v":""},{"$f":"IF('1. Order'!J1295=\"\",\"\",'1. Order'!J1295)","v":""},{"$f":"IF('1. Order'!K1295=\"\",\"\",'1. Order'!K1295)","v":""},{"$f":"IF('1. Order'!L1295=\"\",\"\",'1. Order'!L1295)","v":""},{"$f":"IF('1. Order'!M1295=\"\",\"\",'1. Order'!M1295)","v":""},{"$f":"IF('1. Order'!N1295=\"\",\"\",'1. Order'!N1295)","v":""},{"$f":"IF('1. Order'!O1295=\"\",\"\",'1. Order'!O1295)","v":{"$error":"#N/A"}},{"$f":"IF('1. Order'!P1295=\"\",\"\",'1. Order'!P1295)","v":{"$error":"#N/A"}},{"$f":"IF('1. Order'!Q1295=\"\",\"\",'1. Order'!Q1295)","v":""},{"$f":"IF('1. Order'!S1295=\"\",\"\",'1. Order'!S1295)","v":""},{"$f":"IF('1. Order'!T1295=\"\",\"\",'1. Order'!T1295)","v":""},{"$f":"IF('1. Order'!W1295=\"\",\"\",'1. Order'!W1295)","v":""},{"$f":"IF('1. Order'!X1295=\"\",\"\",'1. Order'!X1295)","v":""},{"$f":"IF('1. Order'!Y1295=\"\",\"\",'1. Order'!Y1295)","v":"EUR"},{"$f":"IF('1. Order'!Z1295=\"\",\"\",'1. Order'!Z1295)","v":""},{"$f":"IF('1. Order'!AA1295=\"\",\"\",'1. Order'!AA1295)","v":""},{"$f":"IF('1. Order'!AB1295=\"\",\"\",'1. Order'!AB1295)","v":""},null,{"$f":"IF('1. Order'!AT1295=\"\",\"\",'1. Order'!AT1295)","v":""},{"$f":"IF('1. Order'!AU1295=\"\",\"\",'1. Order'!AU1295)","v":""},null,null,null,null,null,null,null,{"$f":"IF('1. Order'!AY1295=\"\",\"\",'1. Order'!AY1295)","v":""},{"$f":"IF('1. Order'!AZ1295=\"\",\"\",'1. Order'!AZ1295)","v":""},{"$f":"IF('1. Order'!BA1295=\"\",\"\",'1. Order'!BA1295)","v":""},{"$f":"IF('1. Order'!BB1295=\"\",\"\",'1. Order'!BB1295)","v":""},{"$f":"IF('1. Order'!BD1295=\"\",\"\",'1. Order'!BD1295)","v":""},{"$f":"IF('1. Order'!BE1295=\"\",\"\",'1. Order'!BE1295)","v":""},{"$f":"IF('1. Order'!BF1295=\"\",\"\",'1. Order'!BF1295)","v":""},{"$f":"IF('1. Order'!BG1295=\"\",\"\",'1. Order'!BG1295)","v":""},{"$f":"IF('1. Order'!BH1295=\"\",\"\",'1. Order'!BH1295)","v":"ZWO"}]
[{"$f":"IF('1. Order'!F1296=\"\",\"\",'1. Order'!F1296)","v":{"$error":"#N/A"}},{"$f":"IF('1. Order'!G1296=\"\",\"\",'1. Order'!G1296)","v":""},{"$f":"IF('1. Order'!H1296=\"\",\"\",'1. Order'!H1296)","v":""},{"$f":"IF('1. Order'!I1296=\"\",\"\",'1. Order'!I1296)","v":""},{"$f":"IF('1. Order'!J1296=\"\",\"\",'1. Order'!J1296)","v":""},{"$f":"IF('1. Order'!K1296=\"\",\"\",'1. Order'!K1296)","v":""},{"$f":"IF('1. Order'!L1296=\"\",\"\",'1. Order'!L1296)","v":""},{"$f":"IF('1. Order'!M1296=\"\",\"\",'1. Order'!M1296)","v":""},{"$f":"IF('1. Order'!N1296=\"\",\"\",'1. Order'!N1296)","v":""},{"$f":"IF('1. Order'!O1296=\"\",\"\",'1. Order'!O1296)","v":{"$error":"#N/A"}},{"$f":"IF('1. Order'!P1296=\"\",\"\",'1. Order'!P1296)","v":{"$error":"#N/A"}},{"$f":"IF('1. Order'!Q1296=\"\",\"\",'1. Order'!Q1296)","v":""},{"$f":"IF('1. Order'!S1296=\"\",\"\",'1. Order'!S1296)","v":""},{"$f":"IF('1. Order'!T1296=\"\",\"\",'1. Order'!T1296)","v":""},{"$f":"IF('1. Order'!W1296=\"\",\"\",'1. Order'!W1296)","v":""},{"$f":"IF('1. Order'!X1296=\"\",\"\",'1. Order'!X1296)","v":""},{"$f":"IF('1. Order'!Y1296=\"\",\"\",'1. Order'!Y1296)","v":"EUR"},{"$f":"IF('1. Order'!Z1296=\"\",\"\",'1. Order'!Z1296)","v":""},{"$f":"IF('1. Order'!AA1296=\"\",\"\",'1. Order'!AA1296)","v":""},{"$f":"IF('1. Order'!AB1296=\"\",\"\",'1. Order'!AB1296)","v":""},null,{"$f":"IF('1. Order'!AT1296=\"\",\"\",'1. Order'!AT1296)","v":""},{"$f":"IF('1. Order'!AU1296=\"\",\"\",'1. Order'!AU1296)","v":""},null,null,null,null,null,null,null,{"$f":"IF('1. Order'!AY1296=\"\",\"\",'1. Order'!AY1296)","v":""},{"$f":"IF('1. Order'!AZ1296=\"\",\"\",'1. Order'!AZ1296)","v":""},{"$f":"IF('1. Order'!BA1296=\"\",\"\",'1. Order'!BA1296)","v":""},{"$f":"IF('1. Order'!BB1296=\"\",\"\",'1. Order'!BB1296)","v":""},{"$f":"IF('1. Order'!BD1296=\"\",\"\",'1. Order'!BD1296)","v":""},{"$f":"IF('1. Order'!BE1296=\"\",\"\",'1. Order'!BE1296)","v":""},{"$f":"IF('1. Order'!BF1296=\"\",\"\",'1. Order'!BF1296)","v":""},{"$f":"IF('1. Order'!BG1296=\"\",\"\",'1. Order'!BG1296)","v":""},{"$f":"IF('1. Order'!BH1296=\"\",\"\",'1. Order'!BH1296)","v":"ZWO"}]
[{"$f":"IF('1. Order'!F1297=\"\",\"\",'1. Order'!F1297)","v":{"$error":"#N/A"}},{"$f":"IF('1. Order'!G1297=\"\",\"\",'1. Order'!G1297)","v":""},{"$f":"IF('1. Order'!H1297=\"\",\"\",'1. Order'!H1297)","v":""},{"$f":"IF('1. Order'!I1297=\"\",\"\",'1. Order'!I1297)","v":""},{"$f":"IF('1. Order'!J1297=\"\",\"\",'1. Order'!J1297)","v":""},{"$f":"IF('1. Order'!K1297=\"\",\"\",'1. Order'!K1297)","v":""},{"$f":"IF('1. Order'!L1297=\"\",\"\",'1. Order'!L1297)","v":""},{"$f":"IF('1. Order'!M1297=\"\",\"\",'1. Order'!M1297)","v":""},{"$f":"IF('1. Order'!N1297=\"\",\"\",'1. Order'!N1297)","v":""},{"$f":"IF('1. Order'!O1297=\"\",\"\",'1. Order'!O1297)","v":{"$error":"#N/A"}},{"$f":"IF('1. Order'!P1297=\"\",\"\",'1. Order'!P1297)","v":{"$error":"#N/A"}},{"$f":"IF('1. Order'!Q1297=\"\",\"\",'1. Order'!Q1297)","v":""},{"$f":"IF('1. Order'!S1297=\"\",\"\",'1. Order'!S1297)","v":""},{"$f":"IF('1. Order'!T1297=\"\",\"\",'1. Order'!T1297)","v":""},{"$f":"IF('1. Order'!W1297=\"\",\"\",'1. Order'!W1297)","v":""},{"$f":"IF('1. Order'!X1297=\"\",\"\",'1. Order'!X1297)","v":""},{"$f":"IF('1. Order'!Y1297=\"\",\"\",'1. Order'!Y1297)","v":"EUR"},{"$f":"IF('1. Order'!Z1297=\"\",\"\",'1. Order'!Z1297)","v":""},{"$f":"IF('1. Order'!AA1297=\"\",\"\",'1. Order'!AA1297)","v":""},{"$f":"IF('1. Order'!AB1297=\"\",\"\",'1. Order'!AB1297)","v":""},null,{"$f":"IF('1. Order'!AT1297=\"\",\"\",'1. Order'!AT1297)","v":""},{"$f":"IF('1. Order'!AU1297=\"\",\"\",'1. Order'!AU1297)","v":""},null,null,null,null,null,null,null,{"$f":"IF('1. Order'!AY1297=\"\",\"\",'1. Order'!AY1297)","v":""},{"$f":"IF('1. Order'!AZ1297=\"\",\"\",'1. Order'!AZ1297)","v":""},{"$f":"IF('1. Order'!BA1297=\"\",\"\",'1. Order'!BA1297)","v":""},{"$f":"IF('1. Order'!BB1297=\"\",\"\",'1. Order'!BB1297)","v":""},{"$f":"IF('1. Order'!BD1297=\"\",\"\",'1. Order'!BD1297)","v":""},{"$f":"IF('1. Order'!BE1297=\"\",\"\",'1. Order'!BE1297)","v":""},{"$f":"IF('1. Order'!BF1297=\"\",\"\",'1. Order'!BF1297)","v":""},{"$f":"IF('1. Order'!BG1297=\"\",\"\",'1. Order'!BG1297)","v":""},{"$f":"IF('1. Order'!BH1297=\"\",\"\",'1. Order'!BH1297)","v":"ZWO"}]
[{"$f":"IF('1. Order'!F1298=\"\",\"\",'1. Order'!F1298)","v":{"$error":"#N/A"}},{"$f":"IF('1. Order'!G1298=\"\",\"\",'1. Order'!G1298)","v":""},{"$f":"IF('1. Order'!H1298=\"\",\"\",'1. Order'!H1298)","v":""},{"$f":"IF('1. Order'!I1298=\"\",\"\",'1. Order'!I1298)","v":""},{"$f":"IF('1. Order'!J1298=\"\",\"\",'1. Order'!J1298)","v":""},{"$f":"IF('1. Order'!K1298=\"\",\"\",'1. Order'!K1298)","v":""},{"$f":"IF('1. Order'!L1298=\"\",\"\",'1. Order'!L1298)","v":""},{"$f":"IF('1. Order'!M1298=\"\",\"\",'1. Order'!M1298)","v":""},{"$f":"IF('1. Order'!N1298=\"\",\"\",'1. Order'!N1298)","v":""},{"$f":"IF('1. Order'!O1298=\"\",\"\",'1. Order'!O1298)","v":{"$error":"#N/A"}},{"$f":"IF('1. Order'!P1298=\"\",\"\",'1. Order'!P1298)","v":{"$error":"#N/A"}},{"$f":"IF('1. Order'!Q1298=\"\",\"\",'1. Order'!Q1298)","v":""},{"$f":"IF('1. Order'!S1298=\"\",\"\",'1. Order'!S1298)","v":""},{"$f":"IF('1. Order'!T1298=\"\",\"\",'1. Order'!T1298)","v":""},{"$f":"IF('1. Order'!W1298=\"\",\"\",'1. Order'!W1298)","v":""},{"$f":"IF('1. Order'!X1298=\"\",\"\",'1. Order'!X1298)","v":""},{"$f":"IF('1. Order'!Y1298=\"\",\"\",'1. Order'!Y1298)","v":"EUR"},{"$f":"IF('1. Order'!Z1298=\"\",\"\",'1. Order'!Z1298)","v":""},{"$f":"IF('1. Order'!AA1298=\"\",\"\",'1. Order'!AA1298)","v":""},{"$f":"IF('1. Order'!AB1298=\"\",\"\",'1. Order'!AB1298)","v":""},null,{"$f":"IF('1. Order'!AT1298=\"\",\"\",'1. Order'!AT1298)","v":""},{"$f":"IF('1. Order'!AU1298=\"\",\"\",'1. Order'!AU1298)","v":""},null,null,null,null,null,null,null,{"$f":"IF('1. Order'!AY1298=\"\",\"\",'1. Order'!AY1298)","v":""},{"$f":"IF('1. Order'!AZ1298=\"\",\"\",'1. Order'!AZ1298)","v":""},{"$f":"IF('1. Order'!BA1298=\"\",\"\",'1. Order'!BA1298)","v":""},{"$f":"IF('1. Order'!BB1298=\"\",\"\",'1. Order'!BB1298)","v":""},{"$f":"IF('1. Order'!BD1298=\"\",\"\",'1. Order'!BD1298)","v":""},{"$f":"IF('1. Order'!BE1298=\"\",\"\",'1. Order'!BE1298)","v":""},{"$f":"IF('1. Order'!BF1298=\"\",\"\",'1. Order'!BF1298)","v":""},{"$f":"IF('1. Order'!BG1298=\"\",\"\",'1. Order'!BG1298)","v":""},{"$f":"IF('1. Order'!BH1298=\"\",\"\",'1. Order'!BH1298)","v":"ZWO"}]
[{"$f":"IF('1. Order'!F1299=\"\",\"\",'1. Order'!F1299)","v":{"$error":"#N/A"}},{"$f":"IF('1. Order'!G1299=\"\",\"\",'1. Order'!G1299)","v":""},{"$f":"IF('1. Order'!H1299=\"\",\"\",'1. Order'!H1299)","v":""},{"$f":"IF('1. Order'!I1299=\"\",\"\",'1. Order'!I1299)","v":""},{"$f":"IF('1. Order'!J1299=\"\",\"\",'1. Order'!J1299)","v":""},{"$f":"IF('1. Order'!K1299=\"\",\"\",'1. Order'!K1299)","v":""},{"$f":"IF('1. Order'!L1299=\"\",\"\",'1. Order'!L1299)","v":""},{"$f":"IF('1. Order'!M1299=\"\",\"\",'1. Order'!M1299)","v":""},{"$f":"IF('1. Order'!N1299=\"\",\"\",'1. Order'!N1299)","v":""},{"$f":"IF('1. Order'!O1299=\"\",\"\",'1. Order'!O1299)","v":{"$error":"#N/A"}},{"$f":"IF('1. Order'!P1299=\"\",\"\",'1. Order'!P1299)","v":{"$error":"#N/A"}},{"$f":"IF('1. Order'!Q1299=\"\",\"\",'1. Order'!Q1299)","v":""},{"$f":"IF('1. Order'!S1299=\"\",\"\",'1. Order'!S1299)","v":""},{"$f":"IF('1. Order'!T1299=\"\",\"\",'1. Order'!T1299)","v":""},{"$f":"IF('1. Order'!W1299=\"\",\"\",'1. Order'!W1299)","v":""},{"$f":"IF('1. Order'!X1299=\"\",\"\",'1. Order'!X1299)","v":""},{"$f":"IF('1. Order'!Y1299=\"\",\"\",'1. Order'!Y1299)","v":"EUR"},{"$f":"IF('1. Order'!Z1299=\"\",\"\",'1. Order'!Z1299)","v":""},{"$f":"IF('1. Order'!AA1299=\"\",\"\",'1. Order'!AA1299)","v":""},{"$f":"IF('1. Order'!AB1299=\"\",\"\",'1. Order'!AB1299)","v":""},null,{"$f":"IF('1. Order'!AT1299=\"\",\"\",'1. Order'!AT1299)","v":""},{"$f":"IF('1. Order'!AU1299=\"\",\"\",'1. Order'!AU1299)","v":""},null,null,null,null,null,null,null,{"$f":"IF('1. Order'!AY1299=\"\",\"\",'1. Order'!AY1299)","v":""},{"$f":"IF('1. Order'!AZ1299=\"\",\"\",'1. Order'!AZ1299)","v":""},{"$f":"IF('1. Order'!BA1299=\"\",\"\",'1. Order'!BA1299)","v":""},{"$f":"IF('1. Order'!BB1299=\"\",\"\",'1. Order'!BB1299)","v":""},{"$f":"IF('1. Order'!BD1299=\"\",\"\",'1. Order'!BD1299)","v":""},{"$f":"IF('1. Order'!BE1299=\"\",\"\",'1. Order'!BE1299)","v":""},{"$f":"IF('1. Order'!BF1299=\"\",\"\",'1. Order'!BF1299)","v":""},{"$f":"IF('1. Order'!BG1299=\"\",\"\",'1. Order'!BG1299)","v":""},{"$f":"IF('1. Order'!BH1299=\"\",\"\",'1. Order'!BH1299)","v":"ZWO"}]
[{"$f":"IF('1. Order'!F1300=\"\",\"\",'1. Order'!F1300)","v":{"$error":"#N/A"}},{"$f":"IF('1. Order'!G1300=\"\",\"\",'1. Order'!G1300)","v":""},{"$f":"IF('1. Order'!H1300=\"\",\"\",'1. Order'!H1300)","v":""},{"$f":"IF('1. Order'!I1300=\"\",\"\",'1. Order'!I1300)","v":""},{"$f":"IF('1. Order'!J1300=\"\",\"\",'1. Order'!J1300)","v":""},{"$f":"IF('1. Order'!K1300=\"\",\"\",'1. Order'!K1300)","v":""},{"$f":"IF('1. Order'!L1300=\"\",\"\",'1. Order'!L1300)","v":""},{"$f":"IF('1. Order'!M1300=\"\",\"\",'1. Order'!M1300)","v":""},{"$f":"IF('1. Order'!N1300=\"\",\"\",'1. Order'!N1300)","v":""},{"$f":"IF('1. Order'!O1300=\"\",\"\",'1. Order'!O1300)","v":{"$error":"#N/A"}},{"$f":"IF('1. Order'!P1300=\"\",\"\",'1. Order'!P1300)","v":{"$error":"#N/A"}},{"$f":"IF('1. Order'!Q1300=\"\",\"\",'1. Order'!Q1300)","v":""},{"$f":"IF('1. Order'!S1300=\"\",\"\",'1. Order'!S1300)","v":""},{"$f":"IF('1. Order'!T1300=\"\",\"\",'1. Order'!T1300)","v":""},{"$f":"IF('1. Order'!W1300=\"\",\"\",'1. Order'!W1300)","v":""},{"$f":"IF('1. Order'!X1300=\"\",\"\",'1. Order'!X1300)","v":""},{"$f":"IF('1. Order'!Y1300=\"\",\"\",'1. Order'!Y1300)","v":"EUR"},{"$f":"IF('1. Order'!Z1300=\"\",\"\",'1. Order'!Z1300)","v":""},{"$f":"IF('1. Order'!AA1300=\"\",\"\",'1. Order'!AA1300)","v":""},{"$f":"IF('1. Order'!AB1300=\"\",\"\",'1. Order'!AB1300)","v":""},null,{"$f":"IF('1. Order'!AT1300=\"\",\"\",'1. Order'!AT1300)","v":""},{"$f":"IF('1. Order'!AU1300=\"\",\"\",'1. Order'!AU1300)","v":""},null,null,null,null,null,null,null,{"$f":"IF('1. Order'!AY1300=\"\",\"\",'1. Order'!AY1300)","v":""},{"$f":"IF('1. Order'!AZ1300=\"\",\"\",'1. Order'!AZ1300)","v":""},{"$f":"IF('1. Order'!BA1300=\"\",\"\",'1. Order'!BA1300)","v":""},{"$f":"IF('1. Order'!BB1300=\"\",\"\",'1. Order'!BB1300)","v":""},{"$f":"IF('1. Order'!BD1300=\"\",\"\",'1. Order'!BD1300)","v":""},{"$f":"IF('1. Order'!BE1300=\"\",\"\",'1. Order'!BE1300)","v":""},{"$f":"IF('1. Order'!BF1300=\"\",\"\",'1. Order'!BF1300)","v":""},{"$f":"IF('1. Order'!BG1300=\"\",\"\",'1. Order'!BG1300)","v":""},{"$f":"IF('1. Order'!BH1300=\"\",\"\",'1. Order'!BH1300)","v":"ZWO"}]
[{"$f":"IF('1. Order'!F1301=\"\",\"\",'1. Order'!F1301)","v":{"$error":"#N/A"}},{"$f":"IF('1. Order'!G1301=\"\",\"\",'1. Order'!G1301)","v":""},{"$f":"IF('1. Order'!H1301=\"\",\"\",'1. Order'!H1301)","v":""},{"$f":"IF('1. Order'!I1301=\"\",\"\",'1. Order'!I1301)","v":""},{"$f":"IF('1. Order'!J1301=\"\",\"\",'1. Order'!J1301)","v":""},{"$f":"IF('1. Order'!K1301=\"\",\"\",'1. Order'!K1301)","v":""},{"$f":"IF('1. Order'!L1301=\"\",\"\",'1. Order'!L1301)","v":""},{"$f":"IF('1. Order'!M1301=\"\",\"\",'1. Order'!M1301)","v":""},{"$f":"IF('1. Order'!N1301=\"\",\"\",'1. Order'!N1301)","v":""},{"$f":"IF('1. Order'!O1301=\"\",\"\",'1. Order'!O1301)","v":{"$error":"#N/A"}},{"$f":"IF('1. Order'!P1301=\"\",\"\",'1. Order'!P1301)","v":{"$error":"#N/A"}},{"$f":"IF('1. Order'!Q1301=\"\",\"\",'1. Order'!Q1301)","v":""},{"$f":"IF('1. Order'!S1301=\"\",\"\",'1. Order'!S1301)","v":""},{"$f":"IF('1. Order'!T1301=\"\",\"\",'1. Order'!T1301)","v":""},{"$f":"IF('1. Order'!W1301=\"\",\"\",'1. Order'!W1301)","v":""},{"$f":"IF('1. Order'!X1301=\"\",\"\",'1. Order'!X1301)","v":""},{"$f":"IF('1. Order'!Y1301=\"\",\"\",'1. Order'!Y1301)","v":"EUR"},{"$f":"IF('1. Order'!Z1301=\"\",\"\",'1. Order'!Z1301)","v":""},{"$f":"IF('1. Order'!AA1301=\"\",\"\",'1. Order'!AA1301)","v":""},{"$f":"IF('1. Order'!AB1301=\"\",\"\",'1. Order'!AB1301)","v":""},null,{"$f":"IF('1. Order'!AT1301=\"\",\"\",'1. Order'!AT1301)","v":""},{"$f":"IF('1. Order'!AU1301=\"\",\"\",'1. Order'!AU1301)","v":""},null,null,null,null,null,null,null,{"$f":"IF('1. Order'!AY1301=\"\",\"\",'1. Order'!AY1301)","v":""},{"$f":"IF('1. Order'!AZ1301=\"\",\"\",'1. Order'!AZ1301)","v":""},{"$f":"IF('1. Order'!BA1301=\"\",\"\",'1. Order'!BA1301)","v":""},{"$f":"IF('1. Order'!BB1301=\"\",\"\",'1. Order'!BB1301)","v":""},{"$f":"IF('1. Order'!BD1301=\"\",\"\",'1. Order'!BD1301)","v":""},{"$f":"IF('1. Order'!BE1301=\"\",\"\",'1. Order'!BE1301)","v":""},{"$f":"IF('1. Order'!BF1301=\"\",\"\",'1. Order'!BF1301)","v":""},{"$f":"IF('1. Order'!BG1301=\"\",\"\",'1. Order'!BG1301)","v":""},{"$f":"IF('1. Order'!BH1301=\"\",\"\",'1. Order'!BH1301)","v":"ZWO"}]
[{"$f":"IF('1. Order'!F1302=\"\",\"\",'1. Order'!F1302)","v":{"$error":"#N/A"}},{"$f":"IF('1. Order'!G1302=\"\",\"\",'1. Order'!G1302)","v":""},{"$f":"IF('1. Order'!H1302=\"\",\"\",'1. Order'!H1302)","v":""},{"$f":"IF('1. Order'!I1302=\"\",\"\",'1. Order'!I1302)","v":""},{"$f":"IF('1. Order'!J1302=\"\",\"\",'1. Order'!J1302)","v":""},{"$f":"IF('1. Order'!K1302=\"\",\"\",'1. Order'!K1302)","v":""},{"$f":"IF('1. Order'!L1302=\"\",\"\",'1. Order'!L1302)","v":""},{"$f":"IF('1. Order'!M1302=\"\",\"\",'1. Order'!M1302)","v":""},{"$f":"IF('1. Order'!N1302=\"\",\"\",'1. Order'!N1302)","v":""},{"$f":"IF('1. Order'!O1302=\"\",\"\",'1. Order'!O1302)","v":{"$error":"#N/A"}},{"$f":"IF('1. Order'!P1302=\"\",\"\",'1. Order'!P1302)","v":{"$error":"#N/A"}},{"$f":"IF('1. Order'!Q1302=\"\",\"\",'1. Order'!Q1302)","v":""},{"$f":"IF('1. Order'!S1302=\"\",\"\",'1. Order'!S1302)","v":""},{"$f":"IF('1. Order'!T1302=\"\",\"\",'1. Order'!T1302)","v":""},{"$f":"IF('1. Order'!W1302=\"\",\"\",'1. Order'!W1302)","v":""},{"$f":"IF('1. Order'!X1302=\"\",\"\",'1. Order'!X1302)","v":""},{"$f":"IF('1. Order'!Y1302=\"\",\"\",'1. Order'!Y1302)","v":"EUR"},{"$f":"IF('1. Order'!Z1302=\"\",\"\",'1. Order'!Z1302)","v":""},{"$f":"IF('1. Order'!AA1302=\"\",\"\",'1. Order'!AA1302)","v":""},{"$f":"IF('1. Order'!AB1302=\"\",\"\",'1. Order'!AB1302)","v":""},null,{"$f":"IF('1. Order'!AT1302=\"\",\"\",'1. Order'!AT1302)","v":""},{"$f":"IF('1. Order'!AU1302=\"\",\"\",'1. Order'!AU1302)","v":""},null,null,null,null,null,null,null,{"$f":"IF('1. Order'!AY1302=\"\",\"\",'1. Order'!AY1302)","v":""},{"$f":"IF('1. Order'!AZ1302=\"\",\"\",'1. Order'!AZ1302)","v":""},{"$f":"IF('1. Order'!BA1302=\"\",\"\",'1. Order'!BA1302)","v":""},{"$f":"IF('1. Order'!BB1302=\"\",\"\",'1. Order'!BB1302)","v":""},{"$f":"IF('1. Order'!BD1302=\"\",\"\",'1. Order'!BD1302)","v":""},{"$f":"IF('1. Order'!BE1302=\"\",\"\",'1. Order'!BE1302)","v":""},{"$f":"IF('1. Order'!BF1302=\"\",\"\",'1. Order'!BF1302)","v":""},{"$f":"IF('1. Order'!BG1302=\"\",\"\",'1. Order'!BG1302)","v":""},{"$f":"IF('1. Order'!BH1302=\"\",\"\",'1. Order'!BH1302)","v":"ZWO"}]
[{"$f":"IF('1. Order'!F1303=\"\",\"\",'1. Order'!F1303)","v":{"$error":"#N/A"}},{"$f":"IF('1. Order'!G1303=\"\",\"\",'1. Order'!G1303)","v":""},{"$f":"IF('1. Order'!H1303=\"\",\"\",'1. Order'!H1303)","v":""},{"$f":"IF('1. Order'!I1303=\"\",\"\",'1. Order'!I1303)","v":""},{"$f":"IF('1. Order'!J1303=\"\",\"\",'1. Order'!J1303)","v":""},{"$f":"IF('1. Order'!K1303=\"\",\"\",'1. Order'!K1303)","v":""},{"$f":"IF('1. Order'!L1303=\"\",\"\",'1. Order'!L1303)","v":""},{"$f":"IF('1. Order'!M1303=\"\",\"\",'1. Order'!M1303)","v":""},{"$f":"IF('1. Order'!N1303=\"\",\"\",'1. Order'!N1303)","v":""},{"$f":"IF('1. Order'!O1303=\"\",\"\",'1. Order'!O1303)","v":{"$error":"#N/A"}},{"$f":"IF('1. Order'!P1303=\"\",\"\",'1. Order'!P1303)","v":{"$error":"#N/A"}},{"$f":"IF('1. Order'!Q1303=\"\",\"\",'1. Order'!Q1303)","v":""},{"$f":"IF('1. Order'!S1303=\"\",\"\",'1. Order'!S1303)","v":""},{"$f":"IF('1. Order'!T1303=\"\",\"\",'1. Order'!T1303)","v":""},{"$f":"IF('1. Order'!W1303=\"\",\"\",'1. Order'!W1303)","v":""},{"$f":"IF('1. Order'!X1303=\"\",\"\",'1. Order'!X1303)","v":""},{"$f":"IF('1. Order'!Y1303=\"\",\"\",'1. Order'!Y1303)","v":"EUR"},{"$f":"IF('1. Order'!Z1303=\"\",\"\",'1. Order'!Z1303)","v":""},{"$f":"IF('1. Order'!AA1303=\"\",\"\",'1. Order'!AA1303)","v":""},{"$f":"IF('1. Order'!AB1303=\"\",\"\",'1. Order'!AB1303)","v":""},null,{"$f":"IF('1. Order'!AT1303=\"\",\"\",'1. Order'!AT1303)","v":""},{"$f":"IF('1. Order'!AU1303=\"\",\"\",'1. Order'!AU1303)","v":""},null,null,null,null,null,null,null,{"$f":"IF('1. Order'!AY1303=\"\",\"\",'1. Order'!AY1303)","v":""},{"$f":"IF('1. Order'!AZ1303=\"\",\"\",'1. Order'!AZ1303)","v":""},{"$f":"IF('1. Order'!BA1303=\"\",\"\",'1. Order'!BA1303)","v":""},{"$f":"IF('1. Order'!BB1303=\"\",\"\",'1. Order'!BB1303)","v":""},{"$f":"IF('1. Order'!BD1303=\"\",\"\",'1. Order'!BD1303)","v":""},{"$f":"IF('1. Order'!BE1303=\"\",\"\",'1. Order'!BE1303)","v":""},{"$f":"IF('1. Order'!BF1303=\"\",\"\",'1. Order'!BF1303)","v":""},{"$f":"IF('1. Order'!BG1303=\"\",\"\",'1. Order'!BG1303)","v":""},{"$f":"IF('1. Order'!BH1303=\"\",\"\",'1. Order'!BH1303)","v":"ZWO"}]
[{"$f":"IF('1. Order'!F1304=\"\",\"\",'1. Order'!F1304)","v":{"$error":"#N/A"}},{"$f":"IF('1. Order'!G1304=\"\",\"\",'1. Order'!G1304)","v":""},{"$f":"IF('1. Order'!H1304=\"\",\"\",'1. Order'!H1304)","v":""},{"$f":"IF('1. Order'!I1304=\"\",\"\",'1. Order'!I1304)","v":""},{"$f":"IF('1. Order'!J1304=\"\",\"\",'1. Order'!J1304)","v":""},{"$f":"IF('1. Order'!K1304=\"\",\"\",'1. Order'!K1304)","v":""},{"$f":"IF('1. Order'!L1304=\"\",\"\",'1. Order'!L1304)","v":""},{"$f":"IF('1. Order'!M1304=\"\",\"\",'1. Order'!M1304)","v":""},{"$f":"IF('1. Order'!N1304=\"\",\"\",'1. Order'!N1304)","v":""},{"$f":"IF('1. Order'!O1304=\"\",\"\",'1. Order'!O1304)","v":{"$error":"#N/A"}},{"$f":"IF('1. Order'!P1304=\"\",\"\",'1. Order'!P1304)","v":{"$error":"#N/A"}},{"$f":"IF('1. Order'!Q1304=\"\",\"\",'1. Order'!Q1304)","v":""},{"$f":"IF('1. Order'!S1304=\"\",\"\",'1. Order'!S1304)","v":""},{"$f":"IF('1. Order'!T1304=\"\",\"\",'1. Order'!T1304)","v":""},{"$f":"IF('1. Order'!W1304=\"\",\"\",'1. Order'!W1304)","v":""},{"$f":"IF('1. Order'!X1304=\"\",\"\",'1. Order'!X1304)","v":""},{"$f":"IF('1. Order'!Y1304=\"\",\"\",'1. Order'!Y1304)","v":"EUR"},{"$f":"IF('1. Order'!Z1304=\"\",\"\",'1. Order'!Z1304)","v":""},{"$f":"IF('1. Order'!AA1304=\"\",\"\",'1. Order'!AA1304)","v":""},{"$f":"IF('1. Order'!AB1304=\"\",\"\",'1. Order'!AB1304)","v":""},null,{"$f":"IF('1. Order'!AT1304=\"\",\"\",'1. Order'!AT1304)","v":""},{"$f":"IF('1. Order'!AU1304=\"\",\"\",'1. Order'!AU1304)","v":""},null,null,null,null,null,null,null,{"$f":"IF('1. Order'!AY1304=\"\",\"\",'1. Order'!AY1304)","v":""},{"$f":"IF('1. Order'!AZ1304=\"\",\"\",'1. Order'!AZ1304)","v":""},{"$f":"IF('1. Order'!BA1304=\"\",\"\",'1. Order'!BA1304)","v":""},{"$f":"IF('1. Order'!BB1304=\"\",\"\",'1. Order'!BB1304)","v":""},{"$f":"IF('1. Order'!BD1304=\"\",\"\",'1. Order'!BD1304)","v":""},{"$f":"IF('1. Order'!BE1304=\"\",\"\",'1. Order'!BE1304)","v":""},{"$f":"IF('1. Order'!BF1304=\"\",\"\",'1. Order'!BF1304)","v":""},{"$f":"IF('1. Order'!BG1304=\"\",\"\",'1. Order'!BG1304)","v":""},{"$f":"IF('1. Order'!BH1304=\"\",\"\",'1. Order'!BH1304)","v":"ZWO"}]
[{"$f":"IF('1. Order'!F1305=\"\",\"\",'1. Order'!F1305)","v":{"$error":"#N/A"}},{"$f":"IF('1. Order'!G1305=\"\",\"\",'1. Order'!G1305)","v":""},{"$f":"IF('1. Order'!H1305=\"\",\"\",'1. Order'!H1305)","v":""},{"$f":"IF('1. Order'!I1305=\"\",\"\",'1. Order'!I1305)","v":""},{"$f":"IF('1. Order'!J1305=\"\",\"\",'1. Order'!J1305)","v":""},{"$f":"IF('1. Order'!K1305=\"\",\"\",'1. Order'!K1305)","v":""},{"$f":"IF('1. Order'!L1305=\"\",\"\",'1. Order'!L1305)","v":""},{"$f":"IF('1. Order'!M1305=\"\",\"\",'1. Order'!M1305)","v":""},{"$f":"IF('1. Order'!N1305=\"\",\"\",'1. Order'!N1305)","v":""},{"$f":"IF('1. Order'!O1305=\"\",\"\",'1. Order'!O1305)","v":{"$error":"#N/A"}},{"$f":"IF('1. Order'!P1305=\"\",\"\",'1. Order'!P1305)","v":{"$error":"#N/A"}},{"$f":"IF('1. Order'!Q1305=\"\",\"\",'1. Order'!Q1305)","v":""},{"$f":"IF('1. Order'!S1305=\"\",\"\",'1. Order'!S1305)","v":""},{"$f":"IF('1. Order'!T1305=\"\",\"\",'1. Order'!T1305)","v":""},{"$f":"IF('1. Order'!W1305=\"\",\"\",'1. Order'!W1305)","v":""},{"$f":"IF('1. Order'!X1305=\"\",\"\",'1. Order'!X1305)","v":""},{"$f":"IF('1. Order'!Y1305=\"\",\"\",'1. Order'!Y1305)","v":"EUR"},{"$f":"IF('1. Order'!Z1305=\"\",\"\",'1. Order'!Z1305)","v":""},{"$f":"IF('1. Order'!AA1305=\"\",\"\",'1. Order'!AA1305)","v":""},{"$f":"IF('1. Order'!AB1305=\"\",\"\",'1. Order'!AB1305)","v":""},null,{"$f":"IF('1. Order'!AT1305=\"\",\"\",'1. Order'!AT1305)","v":""},{"$f":"IF('1. Order'!AU1305=\"\",\"\",'1. Order'!AU1305)","v":""},null,null,null,null,null,null,null,{"$f":"IF('1. Order'!AY1305=\"\",\"\",'1. Order'!AY1305)","v":""},{"$f":"IF('1. Order'!AZ1305=\"\",\"\",'1. Order'!AZ1305)","v":""},{"$f":"IF('1. Order'!BA1305=\"\",\"\",'1. Order'!BA1305)","v":""},{"$f":"IF('1. Order'!BB1305=\"\",\"\",'1. Order'!BB1305)","v":""},{"$f":"IF('1. Order'!BD1305=\"\",\"\",'1. Order'!BD1305)","v":""},{"$f":"IF('1. Order'!BE1305=\"\",\"\",'1. Order'!BE1305)","v":""},{"$f":"IF('1. Order'!BF1305=\"\",\"\",'1. Order'!BF1305)","v":""},{"$f":"IF('1. Order'!BG1305=\"\",\"\",'1. Order'!BG1305)","v":""},{"$f":"IF('1. Order'!BH1305=\"\",\"\",'1. Order'!BH1305)","v":"ZWO"}]
[{"$f":"IF('1. Order'!F1306=\"\",\"\",'1. Order'!F1306)","v":{"$error":"#N/A"}},{"$f":"IF('1. Order'!G1306=\"\",\"\",'1. Order'!G1306)","v":""},{"$f":"IF('1. Order'!H1306=\"\",\"\",'1. Order'!H1306)","v":""},{"$f":"IF('1. Order'!I1306=\"\",\"\",'1. Order'!I1306)","v":""},{"$f":"IF('1. Order'!J1306=\"\",\"\",'1. Order'!J1306)","v":""},{"$f":"IF('1. Order'!K1306=\"\",\"\",'1. Order'!K1306)","v":""},{"$f":"IF('1. Order'!L1306=\"\",\"\",'1. Order'!L1306)","v":""},{"$f":"IF('1. Order'!M1306=\"\",\"\",'1. Order'!M1306)","v":""},{"$f":"IF('1. Order'!N1306=\"\",\"\",'1. Order'!N1306)","v":""},{"$f":"IF('1. Order'!O1306=\"\",\"\",'1. Order'!O1306)","v":{"$error":"#N/A"}},{"$f":"IF('1. Order'!P1306=\"\",\"\",'1. Order'!P1306)","v":{"$error":"#N/A"}},{"$f":"IF('1. Order'!Q1306=\"\",\"\",'1. Order'!Q1306)","v":""},{"$f":"IF('1. Order'!S1306=\"\",\"\",'1. Order'!S1306)","v":""},{"$f":"IF('1. Order'!T1306=\"\",\"\",'1. Order'!T1306)","v":""},{"$f":"IF('1. Order'!W1306=\"\",\"\",'1. Order'!W1306)","v":""},{"$f":"IF('1. Order'!X1306=\"\",\"\",'1. Order'!X1306)","v":""},{"$f":"IF('1. Order'!Y1306=\"\",\"\",'1. Order'!Y1306)","v":"EUR"},{"$f":"IF('1. Order'!Z1306=\"\",\"\",'1. Order'!Z1306)","v":""},{"$f":"IF('1. Order'!AA1306=\"\",\"\",'1. Order'!AA1306)","v":""},{"$f":"IF('1. Order'!AB1306=\"\",\"\",'1. Order'!AB1306)","v":""},null,{"$f":"IF('1. Order'!AT1306=\"\",\"\",'1. Order'!AT1306)","v":""},{"$f":"IF('1. Order'!AU1306=\"\",\"\",'1. Order'!AU1306)","v":""},null,null,null,null,null,null,null,{"$f":"IF('1. Order'!AY1306=\"\",\"\",'1. Order'!AY1306)","v":""},{"$f":"IF('1. Order'!AZ1306=\"\",\"\",'1. Order'!AZ1306)","v":""},{"$f":"IF('1. Order'!BA1306=\"\",\"\",'1. Order'!BA1306)","v":""},{"$f":"IF('1. Order'!BB1306=\"\",\"\",'1. Order'!BB1306)","v":""},{"$f":"IF('1. Order'!BD1306=\"\",\"\",'1. Order'!BD1306)","v":""},{"$f":"IF('1. Order'!BE1306=\"\",\"\",'1. Order'!BE1306)","v":""},{"$f":"IF('1. Order'!BF1306=\"\",\"\",'1. Order'!BF1306)","v":""},{"$f":"IF('1. Order'!BG1306=\"\",\"\",'1. Order'!BG1306)","v":""},{"$f":"IF('1. Order'!BH1306=\"\",\"\",'1. Order'!BH1306)","v":"ZWO"}]
[{"$f":"IF('1. Order'!F1307=\"\",\"\",'1. Order'!F1307)","v":{"$error":"#N/A"}},{"$f":"IF('1. Order'!G1307=\"\",\"\",'1. Order'!G1307)","v":""},{"$f":"IF('1. Order'!H1307=\"\",\"\",'1. Order'!H1307)","v":""},{"$f":"IF('1. Order'!I1307=\"\",\"\",'1. Order'!I1307)","v":""},{"$f":"IF('1. Order'!J1307=\"\",\"\",'1. Order'!J1307)","v":""},{"$f":"IF('1. Order'!K1307=\"\",\"\",'1. Order'!K1307)","v":""},{"$f":"IF('1. Order'!L1307=\"\",\"\",'1. Order'!L1307)","v":""},{"$f":"IF('1. Order'!M1307=\"\",\"\",'1. Order'!M1307)","v":""},{"$f":"IF('1. Order'!N1307=\"\",\"\",'1. Order'!N1307)","v":""},{"$f":"IF('1. Order'!O1307=\"\",\"\",'1. Order'!O1307)","v":{"$error":"#N/A"}},{"$f":"IF('1. Order'!P1307=\"\",\"\",'1. Order'!P1307)","v":{"$error":"#N/A"}},{"$f":"IF('1. Order'!Q1307=\"\",\"\",'1. Order'!Q1307)","v":""},{"$f":"IF('1. Order'!S1307=\"\",\"\",'1. Order'!S1307)","v":""},{"$f":"IF('1. Order'!T1307=\"\",\"\",'1. Order'!T1307)","v":""},{"$f":"IF('1. Order'!W1307=\"\",\"\",'1. Order'!W1307)","v":""},{"$f":"IF('1. Order'!X1307=\"\",\"\",'1. Order'!X1307)","v":""},{"$f":"IF('1. Order'!Y1307=\"\",\"\",'1. Order'!Y1307)","v":"EUR"},{"$f":"IF('1. Order'!Z1307=\"\",\"\",'1. Order'!Z1307)","v":""},{"$f":"IF('1. Order'!AA1307=\"\",\"\",'1. Order'!AA1307)","v":""},{"$f":"IF('1. Order'!AB1307=\"\",\"\",'1. Order'!AB1307)","v":""},null,{"$f":"IF('1. Order'!AT1307=\"\",\"\",'1. Order'!AT1307)","v":""},{"$f":"IF('1. Order'!AU1307=\"\",\"\",'1. Order'!AU1307)","v":""},null,null,null,null,null,null,null,{"$f":"IF('1. Order'!AY1307=\"\",\"\",'1. Order'!AY1307)","v":""},{"$f":"IF('1. Order'!AZ1307=\"\",\"\",'1. Order'!AZ1307)","v":""},{"$f":"IF('1. Order'!BA1307=\"\",\"\",'1. Order'!BA1307)","v":""},{"$f":"IF('1. Order'!BB1307=\"\",\"\",'1. Order'!BB1307)","v":""},{"$f":"IF('1. Order'!BD1307=\"\",\"\",'1. Order'!BD1307)","v":""},{"$f":"IF('1. Order'!BE1307=\"\",\"\",'1. Order'!BE1307)","v":""},{"$f":"IF('1. Order'!BF1307=\"\",\"\",'1. Order'!BF1307)","v":""},{"$f":"IF('1. Order'!BG1307=\"\",\"\",'1. Order'!BG1307)","v":""},{"$f":"IF('1. Order'!BH1307=\"\",\"\",'1. Order'!BH1307)","v":"ZWO"}]
[{"$f":"IF('1. Order'!F1308=\"\",\"\",'1. Order'!F1308)","v":{"$error":"#N/A"}},{"$f":"IF('1. Order'!G1308=\"\",\"\",'1. Order'!G1308)","v":""},{"$f":"IF('1. Order'!H1308=\"\",\"\",'1. Order'!H1308)","v":""},{"$f":"IF('1. Order'!I1308=\"\",\"\",'1. Order'!I1308)","v":""},{"$f":"IF('1. Order'!J1308=\"\",\"\",'1. Order'!J1308)","v":""},{"$f":"IF('1. Order'!K1308=\"\",\"\",'1. Order'!K1308)","v":""},{"$f":"IF('1. Order'!L1308=\"\",\"\",'1. Order'!L1308)","v":""},{"$f":"IF('1. Order'!M1308=\"\",\"\",'1. Order'!M1308)","v":""},{"$f":"IF('1. Order'!N1308=\"\",\"\",'1. Order'!N1308)","v":""},{"$f":"IF('1. Order'!O1308=\"\",\"\",'1. Order'!O1308)","v":{"$error":"#N/A"}},{"$f":"IF('1. Order'!P1308=\"\",\"\",'1. Order'!P1308)","v":{"$error":"#N/A"}},{"$f":"IF('1. Order'!Q1308=\"\",\"\",'1. Order'!Q1308)","v":""},{"$f":"IF('1. Order'!S1308=\"\",\"\",'1. Order'!S1308)","v":""},{"$f":"IF('1. Order'!T1308=\"\",\"\",'1. Order'!T1308)","v":""},{"$f":"IF('1. Order'!W1308=\"\",\"\",'1. Order'!W1308)","v":""},{"$f":"IF('1. Order'!X1308=\"\",\"\",'1. Order'!X1308)","v":""},{"$f":"IF('1. Order'!Y1308=\"\",\"\",'1. Order'!Y1308)","v":"EUR"},{"$f":"IF('1. Order'!Z1308=\"\",\"\",'1. Order'!Z1308)","v":""},{"$f":"IF('1. Order'!AA1308=\"\",\"\",'1. Order'!AA1308)","v":""},{"$f":"IF('1. Order'!AB1308=\"\",\"\",'1. Order'!AB1308)","v":""},null,{"$f":"IF('1. Order'!AT1308=\"\",\"\",'1. Order'!AT1308)","v":""},{"$f":"IF('1. Order'!AU1308=\"\",\"\",'1. Order'!AU1308)","v":""},null,null,null,null,null,null,null,{"$f":"IF('1. Order'!AY1308=\"\",\"\",'1. Order'!AY1308)","v":""},{"$f":"IF('1. Order'!AZ1308=\"\",\"\",'1. Order'!AZ1308)","v":""},{"$f":"IF('1. Order'!BA1308=\"\",\"\",'1. Order'!BA1308)","v":""},{"$f":"IF('1. Order'!BB1308=\"\",\"\",'1. Order'!BB1308)","v":""},{"$f":"IF('1. Order'!BD1308=\"\",\"\",'1. Order'!BD1308)","v":""},{"$f":"IF('1. Order'!BE1308=\"\",\"\",'1. Order'!BE1308)","v":""},{"$f":"IF('1. Order'!BF1308=\"\",\"\",'1. Order'!BF1308)","v":""},{"$f":"IF('1. Order'!BG1308=\"\",\"\",'1. Order'!BG1308)","v":""},{"$f":"IF('1. Order'!BH1308=\"\",\"\",'1. Order'!BH1308)","v":"ZWO"}]
[{"$f":"IF('1. Order'!F1309=\"\",\"\",'1. Order'!F1309)","v":{"$error":"#N/A"}},{"$f":"IF('1. Order'!G1309=\"\",\"\",'1. Order'!G1309)","v":""},{"$f":"IF('1. Order'!H1309=\"\",\"\",'1. Order'!H1309)","v":""},{"$f":"IF('1. Order'!I1309=\"\",\"\",'1. Order'!I1309)","v":""},{"$f":"IF('1. Order'!J1309=\"\",\"\",'1. Order'!J1309)","v":""},{"$f":"IF('1. Order'!K1309=\"\",\"\",'1. Order'!K1309)","v":""},{"$f":"IF('1. Order'!L1309=\"\",\"\",'1. Order'!L1309)","v":""},{"$f":"IF('1. Order'!M1309=\"\",\"\",'1. Order'!M1309)","v":""},{"$f":"IF('1. Order'!N1309=\"\",\"\",'1. Order'!N1309)","v":""},{"$f":"IF('1. Order'!O1309=\"\",\"\",'1. Order'!O1309)","v":{"$error":"#N/A"}},{"$f":"IF('1. Order'!P1309=\"\",\"\",'1. Order'!P1309)","v":{"$error":"#N/A"}},{"$f":"IF('1. Order'!Q1309=\"\",\"\",'1. Order'!Q1309)","v":""},{"$f":"IF('1. Order'!S1309=\"\",\"\",'1. Order'!S1309)","v":""},{"$f":"IF('1. Order'!T1309=\"\",\"\",'1. Order'!T1309)","v":""},{"$f":"IF('1. Order'!W1309=\"\",\"\",'1. Order'!W1309)","v":""},{"$f":"IF('1. Order'!X1309=\"\",\"\",'1. Order'!X1309)","v":""},{"$f":"IF('1. Order'!Y1309=\"\",\"\",'1. Order'!Y1309)","v":"EUR"},{"$f":"IF('1. Order'!Z1309=\"\",\"\",'1. Order'!Z1309)","v":""},{"$f":"IF('1. Order'!AA1309=\"\",\"\",'1. Order'!AA1309)","v":""},{"$f":"IF('1. Order'!AB1309=\"\",\"\",'1. Order'!AB1309)","v":""},null,{"$f":"IF('1. Order'!AT1309=\"\",\"\",'1. Order'!AT1309)","v":""},{"$f":"IF('1. Order'!AU1309=\"\",\"\",'1. Order'!AU1309)","v":""},null,null,null,null,null,null,null,{"$f":"IF('1. Order'!AY1309=\"\",\"\",'1. Order'!AY1309)","v":""},{"$f":"IF('1. Order'!AZ1309=\"\",\"\",'1. Order'!AZ1309)","v":""},{"$f":"IF('1. Order'!BA1309=\"\",\"\",'1. Order'!BA1309)","v":""},{"$f":"IF('1. Order'!BB1309=\"\",\"\",'1. Order'!BB1309)","v":""},{"$f":"IF('1. Order'!BD1309=\"\",\"\",'1. Order'!BD1309)","v":""},{"$f":"IF('1. Order'!BE1309=\"\",\"\",'1. Order'!BE1309)","v":""},{"$f":"IF('1. Order'!BF1309=\"\",\"\",'1. Order'!BF1309)","v":""},{"$f":"IF('1. Order'!BG1309=\"\",\"\",'1. Order'!BG1309)","v":""},{"$f":"IF('1. Order'!BH1309=\"\",\"\",'1. Order'!BH1309)","v":"ZWO"}]
[{"$f":"IF('1. Order'!F1310=\"\",\"\",'1. Order'!F1310)","v":{"$error":"#N/A"}},{"$f":"IF('1. Order'!G1310=\"\",\"\",'1. Order'!G1310)","v":""},{"$f":"IF('1. Order'!H1310=\"\",\"\",'1. Order'!H1310)","v":""},{"$f":"IF('1. Order'!I1310=\"\",\"\",'1. Order'!I1310)","v":""},{"$f":"IF('1. Order'!J1310=\"\",\"\",'1. Order'!J1310)","v":""},{"$f":"IF('1. Order'!K1310=\"\",\"\",'1. Order'!K1310)","v":""},{"$f":"IF('1. Order'!L1310=\"\",\"\",'1. Order'!L1310)","v":""},{"$f":"IF('1. Order'!M1310=\"\",\"\",'1. Order'!M1310)","v":""},{"$f":"IF('1. Order'!N1310=\"\",\"\",'1. Order'!N1310)","v":""},{"$f":"IF('1. Order'!O1310=\"\",\"\",'1. Order'!O1310)","v":{"$error":"#N/A"}},{"$f":"IF('1. Order'!P1310=\"\",\"\",'1. Order'!P1310)","v":{"$error":"#N/A"}},{"$f":"IF('1. Order'!Q1310=\"\",\"\",'1. Order'!Q1310)","v":""},{"$f":"IF('1. Order'!S1310=\"\",\"\",'1. Order'!S1310)","v":""},{"$f":"IF('1. Order'!T1310=\"\",\"\",'1. Order'!T1310)","v":""},{"$f":"IF('1. Order'!W1310=\"\",\"\",'1. Order'!W1310)","v":""},{"$f":"IF('1. Order'!X1310=\"\",\"\",'1. Order'!X1310)","v":""},{"$f":"IF('1. Order'!Y1310=\"\",\"\",'1. Order'!Y1310)","v":"EUR"},{"$f":"IF('1. Order'!Z1310=\"\",\"\",'1. Order'!Z1310)","v":""},{"$f":"IF('1. Order'!AA1310=\"\",\"\",'1. Order'!AA1310)","v":""},{"$f":"IF('1. Order'!AB1310=\"\",\"\",'1. Order'!AB1310)","v":""},null,{"$f":"IF('1. Order'!AT1310=\"\",\"\",'1. Order'!AT1310)","v":""},{"$f":"IF('1. Order'!AU1310=\"\",\"\",'1. Order'!AU1310)","v":""},null,null,null,null,null,null,null,{"$f":"IF('1. Order'!AY1310=\"\",\"\",'1. Order'!AY1310)","v":""},{"$f":"IF('1. Order'!AZ1310=\"\",\"\",'1. Order'!AZ1310)","v":""},{"$f":"IF('1. Order'!BA1310=\"\",\"\",'1. Order'!BA1310)","v":""},{"$f":"IF('1. Order'!BB1310=\"\",\"\",'1. Order'!BB1310)","v":""},{"$f":"IF('1. Order'!BD1310=\"\",\"\",'1. Order'!BD1310)","v":""},{"$f":"IF('1. Order'!BE1310=\"\",\"\",'1. Order'!BE1310)","v":""},{"$f":"IF('1. Order'!BF1310=\"\",\"\",'1. Order'!BF1310)","v":""},{"$f":"IF('1. Order'!BG1310=\"\",\"\",'1. Order'!BG1310)","v":""},{"$f":"IF('1. Order'!BH1310=\"\",\"\",'1. Order'!BH1310)","v":"ZWO"}]
[{"$f":"IF('1. Order'!F1311=\"\",\"\",'1. Order'!F1311)","v":{"$error":"#N/A"}},{"$f":"IF('1. Order'!G1311=\"\",\"\",'1. Order'!G1311)","v":""},{"$f":"IF('1. Order'!H1311=\"\",\"\",'1. Order'!H1311)","v":""},{"$f":"IF('1. Order'!I1311=\"\",\"\",'1. Order'!I1311)","v":""},{"$f":"IF('1. Order'!J1311=\"\",\"\",'1. Order'!J1311)","v":""},{"$f":"IF('1. Order'!K1311=\"\",\"\",'1. Order'!K1311)","v":""},{"$f":"IF('1. Order'!L1311=\"\",\"\",'1. Order'!L1311)","v":""},{"$f":"IF('1. Order'!M1311=\"\",\"\",'1. Order'!M1311)","v":""},{"$f":"IF('1. Order'!N1311=\"\",\"\",'1. Order'!N1311)","v":""},{"$f":"IF('1. Order'!O1311=\"\",\"\",'1. Order'!O1311)","v":{"$error":"#N/A"}},{"$f":"IF('1. Order'!P1311=\"\",\"\",'1. Order'!P1311)","v":{"$error":"#N/A"}},{"$f":"IF('1. Order'!Q1311=\"\",\"\",'1. Order'!Q1311)","v":""},{"$f":"IF('1. Order'!S1311=\"\",\"\",'1. Order'!S1311)","v":""},{"$f":"IF('1. Order'!T1311=\"\",\"\",'1. Order'!T1311)","v":""},{"$f":"IF('1. Order'!W1311=\"\",\"\",'1. Order'!W1311)","v":""},{"$f":"IF('1. Order'!X1311=\"\",\"\",'1. Order'!X1311)","v":""},{"$f":"IF('1. Order'!Y1311=\"\",\"\",'1. Order'!Y1311)","v":"EUR"},{"$f":"IF('1. Order'!Z1311=\"\",\"\",'1. Order'!Z1311)","v":""},{"$f":"IF('1. Order'!AA1311=\"\",\"\",'1. Order'!AA1311)","v":""},{"$f":"IF('1. Order'!AB1311=\"\",\"\",'1. Order'!AB1311)","v":""},null,{"$f":"IF('1. Order'!AT1311=\"\",\"\",'1. Order'!AT1311)","v":""},{"$f":"IF('1. Order'!AU1311=\"\",\"\",'1. Order'!AU1311)","v":""},null,null,null,null,null,null,null,{"$f":"IF('1. Order'!AY1311=\"\",\"\",'1. Order'!AY1311)","v":""},{"$f":"IF('1. Order'!AZ1311=\"\",\"\",'1. Order'!AZ1311)","v":""},{"$f":"IF('1. Order'!BA1311=\"\",\"\",'1. Order'!BA1311)","v":""},{"$f":"IF('1. Order'!BB1311=\"\",\"\",'1. Order'!BB1311)","v":""},{"$f":"IF('1. Order'!BD1311=\"\",\"\",'1. Order'!BD1311)","v":""},{"$f":"IF('1. Order'!BE1311=\"\",\"\",'1. Order'!BE1311)","v":""},{"$f":"IF('1. Order'!BF1311=\"\",\"\",'1. Order'!BF1311)","v":""},{"$f":"IF('1. Order'!BG1311=\"\",\"\",'1. Order'!BG1311)","v":""},{"$f":"IF('1. Order'!BH1311=\"\",\"\",'1. Order'!BH1311)","v":"ZWO"}]
[{"$f":"IF('1. Order'!F1312=\"\",\"\",'1. Order'!F1312)","v":{"$error":"#N/A"}},{"$f":"IF('1. Order'!G1312=\"\",\"\",'1. Order'!G1312)","v":""},{"$f":"IF('1. Order'!H1312=\"\",\"\",'1. Order'!H1312)","v":""},{"$f":"IF('1. Order'!I1312=\"\",\"\",'1. Order'!I1312)","v":""},{"$f":"IF('1. Order'!J1312=\"\",\"\",'1. Order'!J1312)","v":""},{"$f":"IF('1. Order'!K1312=\"\",\"\",'1. Order'!K1312)","v":""},{"$f":"IF('1. Order'!L1312=\"\",\"\",'1. Order'!L1312)","v":""},{"$f":"IF('1. Order'!M1312=\"\",\"\",'1. Order'!M1312)","v":""},{"$f":"IF('1. Order'!N1312=\"\",\"\",'1. Order'!N1312)","v":""},{"$f":"IF('1. Order'!O1312=\"\",\"\",'1. Order'!O1312)","v":{"$error":"#N/A"}},{"$f":"IF('1. Order'!P1312=\"\",\"\",'1. Order'!P1312)","v":{"$error":"#N/A"}},{"$f":"IF('1. Order'!Q1312=\"\",\"\",'1. Order'!Q1312)","v":""},{"$f":"IF('1. Order'!S1312=\"\",\"\",'1. Order'!S1312)","v":""},{"$f":"IF('1. Order'!T1312=\"\",\"\",'1. Order'!T1312)","v":""},{"$f":"IF('1. Order'!W1312=\"\",\"\",'1. Order'!W1312)","v":""},{"$f":"IF('1. Order'!X1312=\"\",\"\",'1. Order'!X1312)","v":""},{"$f":"IF('1. Order'!Y1312=\"\",\"\",'1. Order'!Y1312)","v":"EUR"},{"$f":"IF('1. Order'!Z1312=\"\",\"\",'1. Order'!Z1312)","v":""},{"$f":"IF('1. Order'!AA1312=\"\",\"\",'1. Order'!AA1312)","v":""},{"$f":"IF('1. Order'!AB1312=\"\",\"\",'1. Order'!AB1312)","v":""},null,{"$f":"IF('1. Order'!AT1312=\"\",\"\",'1. Order'!AT1312)","v":""},{"$f":"IF('1. Order'!AU1312=\"\",\"\",'1. Order'!AU1312)","v":""},null,null,null,null,null,null,null,{"$f":"IF('1. Order'!AY1312=\"\",\"\",'1. Order'!AY1312)","v":""},{"$f":"IF('1. Order'!AZ1312=\"\",\"\",'1. Order'!AZ1312)","v":""},{"$f":"IF('1. Order'!BA1312=\"\",\"\",'1. Order'!BA1312)","v":""},{"$f":"IF('1. Order'!BB1312=\"\",\"\",'1. Order'!BB1312)","v":""},{"$f":"IF('1. Order'!BD1312=\"\",\"\",'1. Order'!BD1312)","v":""},{"$f":"IF('1. Order'!BE1312=\"\",\"\",'1. Order'!BE1312)","v":""},{"$f":"IF('1. Order'!BF1312=\"\",\"\",'1. Order'!BF1312)","v":""},{"$f":"IF('1. Order'!BG1312=\"\",\"\",'1. Order'!BG1312)","v":""},{"$f":"IF('1. Order'!BH1312=\"\",\"\",'1. Order'!BH1312)","v":"ZWO"}]
[{"$f":"IF('1. Order'!F1313=\"\",\"\",'1. Order'!F1313)","v":{"$error":"#N/A"}},{"$f":"IF('1. Order'!G1313=\"\",\"\",'1. Order'!G1313)","v":""},{"$f":"IF('1. Order'!H1313=\"\",\"\",'1. Order'!H1313)","v":""},{"$f":"IF('1. Order'!I1313=\"\",\"\",'1. Order'!I1313)","v":""},{"$f":"IF('1. Order'!J1313=\"\",\"\",'1. Order'!J1313)","v":""},{"$f":"IF('1. Order'!K1313=\"\",\"\",'1. Order'!K1313)","v":""},{"$f":"IF('1. Order'!L1313=\"\",\"\",'1. Order'!L1313)","v":""},{"$f":"IF('1. Order'!M1313=\"\",\"\",'1. Order'!M1313)","v":""},{"$f":"IF('1. Order'!N1313=\"\",\"\",'1. Order'!N1313)","v":""},{"$f":"IF('1. Order'!O1313=\"\",\"\",'1. Order'!O1313)","v":{"$error":"#N/A"}},{"$f":"IF('1. Order'!P1313=\"\",\"\",'1. Order'!P1313)","v":{"$error":"#N/A"}},{"$f":"IF('1. Order'!Q1313=\"\",\"\",'1. Order'!Q1313)","v":""},{"$f":"IF('1. Order'!S1313=\"\",\"\",'1. Order'!S1313)","v":""},{"$f":"IF('1. Order'!T1313=\"\",\"\",'1. Order'!T1313)","v":""},{"$f":"IF('1. Order'!W1313=\"\",\"\",'1. Order'!W1313)","v":""},{"$f":"IF('1. Order'!X1313=\"\",\"\",'1. Order'!X1313)","v":""},{"$f":"IF('1. Order'!Y1313=\"\",\"\",'1. Order'!Y1313)","v":"EUR"},{"$f":"IF('1. Order'!Z1313=\"\",\"\",'1. Order'!Z1313)","v":""},{"$f":"IF('1. Order'!AA1313=\"\",\"\",'1. Order'!AA1313)","v":""},{"$f":"IF('1. Order'!AB1313=\"\",\"\",'1. Order'!AB1313)","v":""},null,{"$f":"IF('1. Order'!AT1313=\"\",\"\",'1. Order'!AT1313)","v":""},{"$f":"IF('1. Order'!AU1313=\"\",\"\",'1. Order'!AU1313)","v":""},null,null,null,null,null,null,null,{"$f":"IF('1. Order'!AY1313=\"\",\"\",'1. Order'!AY1313)","v":""},{"$f":"IF('1. Order'!AZ1313=\"\",\"\",'1. Order'!AZ1313)","v":""},{"$f":"IF('1. Order'!BA1313=\"\",\"\",'1. Order'!BA1313)","v":""},{"$f":"IF('1. Order'!BB1313=\"\",\"\",'1. Order'!BB1313)","v":""},{"$f":"IF('1. Order'!BD1313=\"\",\"\",'1. Order'!BD1313)","v":""},{"$f":"IF('1. Order'!BE1313=\"\",\"\",'1. Order'!BE1313)","v":""},{"$f":"IF('1. Order'!BF1313=\"\",\"\",'1. Order'!BF1313)","v":""},{"$f":"IF('1. Order'!BG1313=\"\",\"\",'1. Order'!BG1313)","v":""},{"$f":"IF('1. Order'!BH1313=\"\",\"\",'1. Order'!BH1313)","v":"ZWO"}]
[{"$f":"IF('1. Order'!F1314=\"\",\"\",'1. Order'!F1314)","v":{"$error":"#N/A"}},{"$f":"IF('1. Order'!G1314=\"\",\"\",'1. Order'!G1314)","v":""},{"$f":"IF('1. Order'!H1314=\"\",\"\",'1. Order'!H1314)","v":""},{"$f":"IF('1. Order'!I1314=\"\",\"\",'1. Order'!I1314)","v":""},{"$f":"IF('1. Order'!J1314=\"\",\"\",'1. Order'!J1314)","v":""},{"$f":"IF('1. Order'!K1314=\"\",\"\",'1. Order'!K1314)","v":""},{"$f":"IF('1. Order'!L1314=\"\",\"\",'1. Order'!L1314)","v":""},{"$f":"IF('1. Order'!M1314=\"\",\"\",'1. Order'!M1314)","v":""},{"$f":"IF('1. Order'!N1314=\"\",\"\",'1. Order'!N1314)","v":""},{"$f":"IF('1. Order'!O1314=\"\",\"\",'1. Order'!O1314)","v":{"$error":"#N/A"}},{"$f":"IF('1. Order'!P1314=\"\",\"\",'1. Order'!P1314)","v":{"$error":"#N/A"}},{"$f":"IF('1. Order'!Q1314=\"\",\"\",'1. Order'!Q1314)","v":""},{"$f":"IF('1. Order'!S1314=\"\",\"\",'1. Order'!S1314)","v":""},{"$f":"IF('1. Order'!T1314=\"\",\"\",'1. Order'!T1314)","v":""},{"$f":"IF('1. Order'!W1314=\"\",\"\",'1. Order'!W1314)","v":""},{"$f":"IF('1. Order'!X1314=\"\",\"\",'1. Order'!X1314)","v":""},{"$f":"IF('1. Order'!Y1314=\"\",\"\",'1. Order'!Y1314)","v":"EUR"},{"$f":"IF('1. Order'!Z1314=\"\",\"\",'1. Order'!Z1314)","v":""},{"$f":"IF('1. Order'!AA1314=\"\",\"\",'1. Order'!AA1314)","v":""},{"$f":"IF('1. Order'!AB1314=\"\",\"\",'1. Order'!AB1314)","v":""},null,{"$f":"IF('1. Order'!AT1314=\"\",\"\",'1. Order'!AT1314)","v":""},{"$f":"IF('1. Order'!AU1314=\"\",\"\",'1. Order'!AU1314)","v":""},null,null,null,null,null,null,null,{"$f":"IF('1. Order'!AY1314=\"\",\"\",'1. Order'!AY1314)","v":""},{"$f":"IF('1. Order'!AZ1314=\"\",\"\",'1. Order'!AZ1314)","v":""},{"$f":"IF('1. Order'!BA1314=\"\",\"\",'1. Order'!BA1314)","v":""},{"$f":"IF('1. Order'!BB1314=\"\",\"\",'1. Order'!BB1314)","v":""},{"$f":"IF('1. Order'!BD1314=\"\",\"\",'1. Order'!BD1314)","v":""},{"$f":"IF('1. Order'!BE1314=\"\",\"\",'1. Order'!BE1314)","v":""},{"$f":"IF('1. Order'!BF1314=\"\",\"\",'1. Order'!BF1314)","v":""},{"$f":"IF('1. Order'!BG1314=\"\",\"\",'1. Order'!BG1314)","v":""},{"$f":"IF('1. Order'!BH1314=\"\",\"\",'1. Order'!BH1314)","v":"ZWO"}]
[{"$f":"IF('1. Order'!F1315=\"\",\"\",'1. Order'!F1315)","v":{"$error":"#N/A"}},{"$f":"IF('1. Order'!G1315=\"\",\"\",'1. Order'!G1315)","v":""},{"$f":"IF('1. Order'!H1315=\"\",\"\",'1. Order'!H1315)","v":""},{"$f":"IF('1. Order'!I1315=\"\",\"\",'1. Order'!I1315)","v":""},{"$f":"IF('1. Order'!J1315=\"\",\"\",'1. Order'!J1315)","v":""},{"$f":"IF('1. Order'!K1315=\"\",\"\",'1. Order'!K1315)","v":""},{"$f":"IF('1. Order'!L1315=\"\",\"\",'1. Order'!L1315)","v":""},{"$f":"IF('1. Order'!M1315=\"\",\"\",'1. Order'!M1315)","v":""},{"$f":"IF('1. Order'!N1315=\"\",\"\",'1. Order'!N1315)","v":""},{"$f":"IF('1. Order'!O1315=\"\",\"\",'1. Order'!O1315)","v":{"$error":"#N/A"}},{"$f":"IF('1. Order'!P1315=\"\",\"\",'1. Order'!P1315)","v":{"$error":"#N/A"}},{"$f":"IF('1. Order'!Q1315=\"\",\"\",'1. Order'!Q1315)","v":""},{"$f":"IF('1. Order'!S1315=\"\",\"\",'1. Order'!S1315)","v":""},{"$f":"IF('1. Order'!T1315=\"\",\"\",'1. Order'!T1315)","v":""},{"$f":"IF('1. Order'!W1315=\"\",\"\",'1. Order'!W1315)","v":""},{"$f":"IF('1. Order'!X1315=\"\",\"\",'1. Order'!X1315)","v":""},{"$f":"IF('1. Order'!Y1315=\"\",\"\",'1. Order'!Y1315)","v":"EUR"},{"$f":"IF('1. Order'!Z1315=\"\",\"\",'1. Order'!Z1315)","v":""},{"$f":"IF('1. Order'!AA1315=\"\",\"\",'1. Order'!AA1315)","v":""},{"$f":"IF('1. Order'!AB1315=\"\",\"\",'1. Order'!AB1315)","v":""},null,{"$f":"IF('1. Order'!AT1315=\"\",\"\",'1. Order'!AT1315)","v":""},{"$f":"IF('1. Order'!AU1315=\"\",\"\",'1. Order'!AU1315)","v":""},null,null,null,null,null,null,null,{"$f":"IF('1. Order'!AY1315=\"\",\"\",'1. Order'!AY1315)","v":""},{"$f":"IF('1. Order'!AZ1315=\"\",\"\",'1. Order'!AZ1315)","v":""},{"$f":"IF('1. Order'!BA1315=\"\",\"\",'1. Order'!BA1315)","v":""},{"$f":"IF('1. Order'!BB1315=\"\",\"\",'1. Order'!BB1315)","v":""},{"$f":"IF('1. Order'!BD1315=\"\",\"\",'1. Order'!BD1315)","v":""},{"$f":"IF('1. Order'!BE1315=\"\",\"\",'1. Order'!BE1315)","v":""},{"$f":"IF('1. Order'!BF1315=\"\",\"\",'1. Order'!BF1315)","v":""},{"$f":"IF('1. Order'!BG1315=\"\",\"\",'1. Order'!BG1315)","v":""},{"$f":"IF('1. Order'!BH1315=\"\",\"\",'1. Order'!BH1315)","v":"ZWO"}]
[{"$f":"IF('1. Order'!F1316=\"\",\"\",'1. Order'!F1316)","v":{"$error":"#N/A"}},{"$f":"IF('1. Order'!G1316=\"\",\"\",'1. Order'!G1316)","v":""},{"$f":"IF('1. Order'!H1316=\"\",\"\",'1. Order'!H1316)","v":""},{"$f":"IF('1. Order'!I1316=\"\",\"\",'1. Order'!I1316)","v":""},{"$f":"IF('1. Order'!J1316=\"\",\"\",'1. Order'!J1316)","v":""},{"$f":"IF('1. Order'!K1316=\"\",\"\",'1. Order'!K1316)","v":""},{"$f":"IF('1. Order'!L1316=\"\",\"\",'1. Order'!L1316)","v":""},{"$f":"IF('1. Order'!M1316=\"\",\"\",'1. Order'!M1316)","v":""},{"$f":"IF('1. Order'!N1316=\"\",\"\",'1. Order'!N1316)","v":""},{"$f":"IF('1. Order'!O1316=\"\",\"\",'1. Order'!O1316)","v":{"$error":"#N/A"}},{"$f":"IF('1. Order'!P1316=\"\",\"\",'1. Order'!P1316)","v":{"$error":"#N/A"}},{"$f":"IF('1. Order'!Q1316=\"\",\"\",'1. Order'!Q1316)","v":""},{"$f":"IF('1. Order'!S1316=\"\",\"\",'1. Order'!S1316)","v":""},{"$f":"IF('1. Order'!T1316=\"\",\"\",'1. Order'!T1316)","v":""},{"$f":"IF('1. Order'!W1316=\"\",\"\",'1. Order'!W1316)","v":""},{"$f":"IF('1. Order'!X1316=\"\",\"\",'1. Order'!X1316)","v":""},{"$f":"IF('1. Order'!Y1316=\"\",\"\",'1. Order'!Y1316)","v":"EUR"},{"$f":"IF('1. Order'!Z1316=\"\",\"\",'1. Order'!Z1316)","v":""},{"$f":"IF('1. Order'!AA1316=\"\",\"\",'1. Order'!AA1316)","v":""},{"$f":"IF('1. Order'!AB1316=\"\",\"\",'1. Order'!AB1316)","v":""},null,{"$f":"IF('1. Order'!AT1316=\"\",\"\",'1. Order'!AT1316)","v":""},{"$f":"IF('1. Order'!AU1316=\"\",\"\",'1. Order'!AU1316)","v":""},null,null,null,null,null,null,null,{"$f":"IF('1. Order'!AY1316=\"\",\"\",'1. Order'!AY1316)","v":""},{"$f":"IF('1. Order'!AZ1316=\"\",\"\",'1. Order'!AZ1316)","v":""},{"$f":"IF('1. Order'!BA1316=\"\",\"\",'1. Order'!BA1316)","v":""},{"$f":"IF('1. Order'!BB1316=\"\",\"\",'1. Order'!BB1316)","v":""},{"$f":"IF('1. Order'!BD1316=\"\",\"\",'1. Order'!BD1316)","v":""},{"$f":"IF('1. Order'!BE1316=\"\",\"\",'1. Order'!BE1316)","v":""},{"$f":"IF('1. Order'!BF1316=\"\",\"\",'1. Order'!BF1316)","v":""},{"$f":"IF('1. Order'!BG1316=\"\",\"\",'1. Order'!BG1316)","v":""},{"$f":"IF('1. Order'!BH1316=\"\",\"\",'1. Order'!BH1316)","v":"ZWO"}]
[{"$f":"IF('1. Order'!F1317=\"\",\"\",'1. Order'!F1317)","v":{"$error":"#N/A"}},{"$f":"IF('1. Order'!G1317=\"\",\"\",'1. Order'!G1317)","v":""},{"$f":"IF('1. Order'!H1317=\"\",\"\",'1. Order'!H1317)","v":""},{"$f":"IF('1. Order'!I1317=\"\",\"\",'1. Order'!I1317)","v":""},{"$f":"IF('1. Order'!J1317=\"\",\"\",'1. Order'!J1317)","v":""},{"$f":"IF('1. Order'!K1317=\"\",\"\",'1. Order'!K1317)","v":""},{"$f":"IF('1. Order'!L1317=\"\",\"\",'1. Order'!L1317)","v":""},{"$f":"IF('1. Order'!M1317=\"\",\"\",'1. Order'!M1317)","v":""},{"$f":"IF('1. Order'!N1317=\"\",\"\",'1. Order'!N1317)","v":""},{"$f":"IF('1. Order'!O1317=\"\",\"\",'1. Order'!O1317)","v":{"$error":"#N/A"}},{"$f":"IF('1. Order'!P1317=\"\",\"\",'1. Order'!P1317)","v":{"$error":"#N/A"}},{"$f":"IF('1. Order'!Q1317=\"\",\"\",'1. Order'!Q1317)","v":""},{"$f":"IF('1. Order'!S1317=\"\",\"\",'1. Order'!S1317)","v":""},{"$f":"IF('1. Order'!T1317=\"\",\"\",'1. Order'!T1317)","v":""},{"$f":"IF('1. Order'!W1317=\"\",\"\",'1. Order'!W1317)","v":""},{"$f":"IF('1. Order'!X1317=\"\",\"\",'1. Order'!X1317)","v":""},{"$f":"IF('1. Order'!Y1317=\"\",\"\",'1. Order'!Y1317)","v":"EUR"},{"$f":"IF('1. Order'!Z1317=\"\",\"\",'1. Order'!Z1317)","v":""},{"$f":"IF('1. Order'!AA1317=\"\",\"\",'1. Order'!AA1317)","v":""},{"$f":"IF('1. Order'!AB1317=\"\",\"\",'1. Order'!AB1317)","v":""},null,{"$f":"IF('1. Order'!AT1317=\"\",\"\",'1. Order'!AT1317)","v":""},{"$f":"IF('1. Order'!AU1317=\"\",\"\",'1. Order'!AU1317)","v":""},null,null,null,null,null,null,null,{"$f":"IF('1. Order'!AY1317=\"\",\"\",'1. Order'!AY1317)","v":""},{"$f":"IF('1. Order'!AZ1317=\"\",\"\",'1. Order'!AZ1317)","v":""},{"$f":"IF('1. Order'!BA1317=\"\",\"\",'1. Order'!BA1317)","v":""},{"$f":"IF('1. Order'!BB1317=\"\",\"\",'1. Order'!BB1317)","v":""},{"$f":"IF('1. Order'!BD1317=\"\",\"\",'1. Order'!BD1317)","v":""},{"$f":"IF('1. Order'!BE1317=\"\",\"\",'1. Order'!BE1317)","v":""},{"$f":"IF('1. Order'!BF1317=\"\",\"\",'1. Order'!BF1317)","v":""},{"$f":"IF('1. Order'!BG1317=\"\",\"\",'1. Order'!BG1317)","v":""},{"$f":"IF('1. Order'!BH1317=\"\",\"\",'1. Order'!BH1317)","v":"ZWO"}]
[{"$f":"IF('1. Order'!F1318=\"\",\"\",'1. Order'!F1318)","v":{"$error":"#N/A"}},{"$f":"IF('1. Order'!G1318=\"\",\"\",'1. Order'!G1318)","v":""},{"$f":"IF('1. Order'!H1318=\"\",\"\",'1. Order'!H1318)","v":""},{"$f":"IF('1. Order'!I1318=\"\",\"\",'1. Order'!I1318)","v":""},{"$f":"IF('1. Order'!J1318=\"\",\"\",'1. Order'!J1318)","v":""},{"$f":"IF('1. Order'!K1318=\"\",\"\",'1. Order'!K1318)","v":""},{"$f":"IF('1. Order'!L1318=\"\",\"\",'1. Order'!L1318)","v":""},{"$f":"IF('1. Order'!M1318=\"\",\"\",'1. Order'!M1318)","v":""},{"$f":"IF('1. Order'!N1318=\"\",\"\",'1. Order'!N1318)","v":""},{"$f":"IF('1. Order'!O1318=\"\",\"\",'1. Order'!O1318)","v":{"$error":"#N/A"}},{"$f":"IF('1. Order'!P1318=\"\",\"\",'1. Order'!P1318)","v":{"$error":"#N/A"}},{"$f":"IF('1. Order'!Q1318=\"\",\"\",'1. Order'!Q1318)","v":""},{"$f":"IF('1. Order'!S1318=\"\",\"\",'1. Order'!S1318)","v":""},{"$f":"IF('1. Order'!T1318=\"\",\"\",'1. Order'!T1318)","v":""},{"$f":"IF('1. Order'!W1318=\"\",\"\",'1. Order'!W1318)","v":""},{"$f":"IF('1. Order'!X1318=\"\",\"\",'1. Order'!X1318)","v":""},{"$f":"IF('1. Order'!Y1318=\"\",\"\",'1. Order'!Y1318)","v":"EUR"},{"$f":"IF('1. Order'!Z1318=\"\",\"\",'1. Order'!Z1318)","v":""},{"$f":"IF('1. Order'!AA1318=\"\",\"\",'1. Order'!AA1318)","v":""},{"$f":"IF('1. Order'!AB1318=\"\",\"\",'1. Order'!AB1318)","v":""},null,{"$f":"IF('1. Order'!AT1318=\"\",\"\",'1. Order'!AT1318)","v":""},{"$f":"IF('1. Order'!AU1318=\"\",\"\",'1. Order'!AU1318)","v":""},null,null,null,null,null,null,null,{"$f":"IF('1. Order'!AY1318=\"\",\"\",'1. Order'!AY1318)","v":""},{"$f":"IF('1. Order'!AZ1318=\"\",\"\",'1. Order'!AZ1318)","v":""},{"$f":"IF('1. Order'!BA1318=\"\",\"\",'1. Order'!BA1318)","v":""},{"$f":"IF('1. Order'!BB1318=\"\",\"\",'1. Order'!BB1318)","v":""},{"$f":"IF('1. Order'!BD1318=\"\",\"\",'1. Order'!BD1318)","v":""},{"$f":"IF('1. Order'!BE1318=\"\",\"\",'1. Order'!BE1318)","v":""},{"$f":"IF('1. Order'!BF1318=\"\",\"\",'1. Order'!BF1318)","v":""},{"$f":"IF('1. Order'!BG1318=\"\",\"\",'1. Order'!BG1318)","v":""},{"$f":"IF('1. Order'!BH1318=\"\",\"\",'1. Order'!BH1318)","v":"ZWO"}]
[{"$f":"IF('1. Order'!F1319=\"\",\"\",'1. Order'!F1319)","v":{"$error":"#N/A"}},{"$f":"IF('1. Order'!G1319=\"\",\"\",'1. Order'!G1319)","v":""},{"$f":"IF('1. Order'!H1319=\"\",\"\",'1. Order'!H1319)","v":""},{"$f":"IF('1. Order'!I1319=\"\",\"\",'1. Order'!I1319)","v":""},{"$f":"IF('1. Order'!J1319=\"\",\"\",'1. Order'!J1319)","v":""},{"$f":"IF('1. Order'!K1319=\"\",\"\",'1. Order'!K1319)","v":""},{"$f":"IF('1. Order'!L1319=\"\",\"\",'1. Order'!L1319)","v":""},{"$f":"IF('1. Order'!M1319=\"\",\"\",'1. Order'!M1319)","v":""},{"$f":"IF('1. Order'!N1319=\"\",\"\",'1. Order'!N1319)","v":""},{"$f":"IF('1. Order'!O1319=\"\",\"\",'1. Order'!O1319)","v":{"$error":"#N/A"}},{"$f":"IF('1. Order'!P1319=\"\",\"\",'1. Order'!P1319)","v":{"$error":"#N/A"}},{"$f":"IF('1. Order'!Q1319=\"\",\"\",'1. Order'!Q1319)","v":""},{"$f":"IF('1. Order'!S1319=\"\",\"\",'1. Order'!S1319)","v":""},{"$f":"IF('1. Order'!T1319=\"\",\"\",'1. Order'!T1319)","v":""},{"$f":"IF('1. Order'!W1319=\"\",\"\",'1. Order'!W1319)","v":""},{"$f":"IF('1. Order'!X1319=\"\",\"\",'1. Order'!X1319)","v":""},{"$f":"IF('1. Order'!Y1319=\"\",\"\",'1. Order'!Y1319)","v":"EUR"},{"$f":"IF('1. Order'!Z1319=\"\",\"\",'1. Order'!Z1319)","v":""},{"$f":"IF('1. Order'!AA1319=\"\",\"\",'1. Order'!AA1319)","v":""},{"$f":"IF('1. Order'!AB1319=\"\",\"\",'1. Order'!AB1319)","v":""},null,{"$f":"IF('1. Order'!AT1319=\"\",\"\",'1. Order'!AT1319)","v":""},{"$f":"IF('1. Order'!AU1319=\"\",\"\",'1. Order'!AU1319)","v":""},null,null,null,null,null,null,null,{"$f":"IF('1. Order'!AY1319=\"\",\"\",'1. Order'!AY1319)","v":""},{"$f":"IF('1. Order'!AZ1319=\"\",\"\",'1. Order'!AZ1319)","v":""},{"$f":"IF('1. Order'!BA1319=\"\",\"\",'1. Order'!BA1319)","v":""},{"$f":"IF('1. Order'!BB1319=\"\",\"\",'1. Order'!BB1319)","v":""},{"$f":"IF('1. Order'!BD1319=\"\",\"\",'1. Order'!BD1319)","v":""},{"$f":"IF('1. Order'!BE1319=\"\",\"\",'1. Order'!BE1319)","v":""},{"$f":"IF('1. Order'!BF1319=\"\",\"\",'1. Order'!BF1319)","v":""},{"$f":"IF('1. Order'!BG1319=\"\",\"\",'1. Order'!BG1319)","v":""},{"$f":"IF('1. Order'!BH1319=\"\",\"\",'1. Order'!BH1319)","v":"ZWO"}]
[{"$f":"IF('1. Order'!F1320=\"\",\"\",'1. Order'!F1320)","v":{"$error":"#N/A"}},{"$f":"IF('1. Order'!G1320=\"\",\"\",'1. Order'!G1320)","v":""},{"$f":"IF('1. Order'!H1320=\"\",\"\",'1. Order'!H1320)","v":""},{"$f":"IF('1. Order'!I1320=\"\",\"\",'1. Order'!I1320)","v":""},{"$f":"IF('1. Order'!J1320=\"\",\"\",'1. Order'!J1320)","v":""},{"$f":"IF('1. Order'!K1320=\"\",\"\",'1. Order'!K1320)","v":""},{"$f":"IF('1. Order'!L1320=\"\",\"\",'1. Order'!L1320)","v":""},{"$f":"IF('1. Order'!M1320=\"\",\"\",'1. Order'!M1320)","v":""},{"$f":"IF('1. Order'!N1320=\"\",\"\",'1. Order'!N1320)","v":""},{"$f":"IF('1. Order'!O1320=\"\",\"\",'1. Order'!O1320)","v":{"$error":"#N/A"}},{"$f":"IF('1. Order'!P1320=\"\",\"\",'1. Order'!P1320)","v":{"$error":"#N/A"}},{"$f":"IF('1. Order'!Q1320=\"\",\"\",'1. Order'!Q1320)","v":""},{"$f":"IF('1. Order'!S1320=\"\",\"\",'1. Order'!S1320)","v":""},{"$f":"IF('1. Order'!T1320=\"\",\"\",'1. Order'!T1320)","v":""},{"$f":"IF('1. Order'!W1320=\"\",\"\",'1. Order'!W1320)","v":""},{"$f":"IF('1. Order'!X1320=\"\",\"\",'1. Order'!X1320)","v":""},{"$f":"IF('1. Order'!Y1320=\"\",\"\",'1. Order'!Y1320)","v":"EUR"},{"$f":"IF('1. Order'!Z1320=\"\",\"\",'1. Order'!Z1320)","v":""},{"$f":"IF('1. Order'!AA1320=\"\",\"\",'1. Order'!AA1320)","v":""},{"$f":"IF('1. Order'!AB1320=\"\",\"\",'1. Order'!AB1320)","v":""},null,{"$f":"IF('1. Order'!AT1320=\"\",\"\",'1. Order'!AT1320)","v":""},{"$f":"IF('1. Order'!AU1320=\"\",\"\",'1. Order'!AU1320)","v":""},null,null,null,null,null,null,null,{"$f":"IF('1. Order'!AY1320=\"\",\"\",'1. Order'!AY1320)","v":""},{"$f":"IF('1. Order'!AZ1320=\"\",\"\",'1. Order'!AZ1320)","v":""},{"$f":"IF('1. Order'!BA1320=\"\",\"\",'1. Order'!BA1320)","v":""},{"$f":"IF('1. Order'!BB1320=\"\",\"\",'1. Order'!BB1320)","v":""},{"$f":"IF('1. Order'!BD1320=\"\",\"\",'1. Order'!BD1320)","v":""},{"$f":"IF('1. Order'!BE1320=\"\",\"\",'1. Order'!BE1320)","v":""},{"$f":"IF('1. Order'!BF1320=\"\",\"\",'1. Order'!BF1320)","v":""},{"$f":"IF('1. Order'!BG1320=\"\",\"\",'1. Order'!BG1320)","v":""},{"$f":"IF('1. Order'!BH1320=\"\",\"\",'1. Order'!BH1320)","v":"ZWO"}]
[{"$f":"IF('1. Order'!F1321=\"\",\"\",'1. Order'!F1321)","v":{"$error":"#N/A"}},{"$f":"IF('1. Order'!G1321=\"\",\"\",'1. Order'!G1321)","v":""},{"$f":"IF('1. Order'!H1321=\"\",\"\",'1. Order'!H1321)","v":""},{"$f":"IF('1. Order'!I1321=\"\",\"\",'1. Order'!I1321)","v":""},{"$f":"IF('1. Order'!J1321=\"\",\"\",'1. Order'!J1321)","v":""},{"$f":"IF('1. Order'!K1321=\"\",\"\",'1. Order'!K1321)","v":""},{"$f":"IF('1. Order'!L1321=\"\",\"\",'1. Order'!L1321)","v":""},{"$f":"IF('1. Order'!M1321=\"\",\"\",'1. Order'!M1321)","v":""},{"$f":"IF('1. Order'!N1321=\"\",\"\",'1. Order'!N1321)","v":""},{"$f":"IF('1. Order'!O1321=\"\",\"\",'1. Order'!O1321)","v":{"$error":"#N/A"}},{"$f":"IF('1. Order'!P1321=\"\",\"\",'1. Order'!P1321)","v":{"$error":"#N/A"}},{"$f":"IF('1. Order'!Q1321=\"\",\"\",'1. Order'!Q1321)","v":""},{"$f":"IF('1. Order'!S1321=\"\",\"\",'1. Order'!S1321)","v":""},{"$f":"IF('1. Order'!T1321=\"\",\"\",'1. Order'!T1321)","v":""},{"$f":"IF('1. Order'!W1321=\"\",\"\",'1. Order'!W1321)","v":""},{"$f":"IF('1. Order'!X1321=\"\",\"\",'1. Order'!X1321)","v":""},{"$f":"IF('1. Order'!Y1321=\"\",\"\",'1. Order'!Y1321)","v":"EUR"},{"$f":"IF('1. Order'!Z1321=\"\",\"\",'1. Order'!Z1321)","v":""},{"$f":"IF('1. Order'!AA1321=\"\",\"\",'1. Order'!AA1321)","v":""},{"$f":"IF('1. Order'!AB1321=\"\",\"\",'1. Order'!AB1321)","v":""},null,{"$f":"IF('1. Order'!AT1321=\"\",\"\",'1. Order'!AT1321)","v":""},{"$f":"IF('1. Order'!AU1321=\"\",\"\",'1. Order'!AU1321)","v":""},null,null,null,null,null,null,null,{"$f":"IF('1. Order'!AY1321=\"\",\"\",'1. Order'!AY1321)","v":""},{"$f":"IF('1. Order'!AZ1321=\"\",\"\",'1. Order'!AZ1321)","v":""},{"$f":"IF('1. Order'!BA1321=\"\",\"\",'1. Order'!BA1321)","v":""},{"$f":"IF('1. Order'!BB1321=\"\",\"\",'1. Order'!BB1321)","v":""},{"$f":"IF('1. Order'!BD1321=\"\",\"\",'1. Order'!BD1321)","v":""},{"$f":"IF('1. Order'!BE1321=\"\",\"\",'1. Order'!BE1321)","v":""},{"$f":"IF('1. Order'!BF1321=\"\",\"\",'1. Order'!BF1321)","v":""},{"$f":"IF('1. Order'!BG1321=\"\",\"\",'1. Order'!BG1321)","v":""},{"$f":"IF('1. Order'!BH1321=\"\",\"\",'1. Order'!BH1321)","v":"ZWO"}]
[{"$f":"IF('1. Order'!F1322=\"\",\"\",'1. Order'!F1322)","v":{"$error":"#N/A"}},{"$f":"IF('1. Order'!G1322=\"\",\"\",'1. Order'!G1322)","v":""},{"$f":"IF('1. Order'!H1322=\"\",\"\",'1. Order'!H1322)","v":""},{"$f":"IF('1. Order'!I1322=\"\",\"\",'1. Order'!I1322)","v":""},{"$f":"IF('1. Order'!J1322=\"\",\"\",'1. Order'!J1322)","v":""},{"$f":"IF('1. Order'!K1322=\"\",\"\",'1. Order'!K1322)","v":""},{"$f":"IF('1. Order'!L1322=\"\",\"\",'1. Order'!L1322)","v":""},{"$f":"IF('1. Order'!M1322=\"\",\"\",'1. Order'!M1322)","v":""},{"$f":"IF('1. Order'!N1322=\"\",\"\",'1. Order'!N1322)","v":""},{"$f":"IF('1. Order'!O1322=\"\",\"\",'1. Order'!O1322)","v":{"$error":"#N/A"}},{"$f":"IF('1. Order'!P1322=\"\",\"\",'1. Order'!P1322)","v":{"$error":"#N/A"}},{"$f":"IF('1. Order'!Q1322=\"\",\"\",'1. Order'!Q1322)","v":""},{"$f":"IF('1. Order'!S1322=\"\",\"\",'1. Order'!S1322)","v":""},{"$f":"IF('1. Order'!T1322=\"\",\"\",'1. Order'!T1322)","v":""},{"$f":"IF('1. Order'!W1322=\"\",\"\",'1. Order'!W1322)","v":""},{"$f":"IF('1. Order'!X1322=\"\",\"\",'1. Order'!X1322)","v":""},{"$f":"IF('1. Order'!Y1322=\"\",\"\",'1. Order'!Y1322)","v":"EUR"},{"$f":"IF('1. Order'!Z1322=\"\",\"\",'1. Order'!Z1322)","v":""},{"$f":"IF('1. Order'!AA1322=\"\",\"\",'1. Order'!AA1322)","v":""},{"$f":"IF('1. Order'!AB1322=\"\",\"\",'1. Order'!AB1322)","v":""},null,{"$f":"IF('1. Order'!AT1322=\"\",\"\",'1. Order'!AT1322)","v":""},{"$f":"IF('1. Order'!AU1322=\"\",\"\",'1. Order'!AU1322)","v":""},null,null,null,null,null,null,null,{"$f":"IF('1. Order'!AY1322=\"\",\"\",'1. Order'!AY1322)","v":""},{"$f":"IF('1. Order'!AZ1322=\"\",\"\",'1. Order'!AZ1322)","v":""},{"$f":"IF('1. Order'!BA1322=\"\",\"\",'1. Order'!BA1322)","v":""},{"$f":"IF('1. Order'!BB1322=\"\",\"\",'1. Order'!BB1322)","v":""},{"$f":"IF('1. Order'!BD1322=\"\",\"\",'1. Order'!BD1322)","v":""},{"$f":"IF('1. Order'!BE1322=\"\",\"\",'1. Order'!BE1322)","v":""},{"$f":"IF('1. Order'!BF1322=\"\",\"\",'1. Order'!BF1322)","v":""},{"$f":"IF('1. Order'!BG1322=\"\",\"\",'1. Order'!BG1322)","v":""},{"$f":"IF('1. Order'!BH1322=\"\",\"\",'1. Order'!BH1322)","v":"ZWO"}]
[{"$f":"IF('1. Order'!F1323=\"\",\"\",'1. Order'!F1323)","v":{"$error":"#N/A"}},{"$f":"IF('1. Order'!G1323=\"\",\"\",'1. Order'!G1323)","v":""},{"$f":"IF('1. Order'!H1323=\"\",\"\",'1. Order'!H1323)","v":""},{"$f":"IF('1. Order'!I1323=\"\",\"\",'1. Order'!I1323)","v":""},{"$f":"IF('1. Order'!J1323=\"\",\"\",'1. Order'!J1323)","v":""},{"$f":"IF('1. Order'!K1323=\"\",\"\",'1. Order'!K1323)","v":""},{"$f":"IF('1. Order'!L1323=\"\",\"\",'1. Order'!L1323)","v":""},{"$f":"IF('1. Order'!M1323=\"\",\"\",'1. Order'!M1323)","v":""},{"$f":"IF('1. Order'!N1323=\"\",\"\",'1. Order'!N1323)","v":""},{"$f":"IF('1. Order'!O1323=\"\",\"\",'1. Order'!O1323)","v":{"$error":"#N/A"}},{"$f":"IF('1. Order'!P1323=\"\",\"\",'1. Order'!P1323)","v":{"$error":"#N/A"}},{"$f":"IF('1. Order'!Q1323=\"\",\"\",'1. Order'!Q1323)","v":""},{"$f":"IF('1. Order'!S1323=\"\",\"\",'1. Order'!S1323)","v":""},{"$f":"IF('1. Order'!T1323=\"\",\"\",'1. Order'!T1323)","v":""},{"$f":"IF('1. Order'!W1323=\"\",\"\",'1. Order'!W1323)","v":""},{"$f":"IF('1. Order'!X1323=\"\",\"\",'1. Order'!X1323)","v":""},{"$f":"IF('1. Order'!Y1323=\"\",\"\",'1. Order'!Y1323)","v":"EUR"},{"$f":"IF('1. Order'!Z1323=\"\",\"\",'1. Order'!Z1323)","v":""},{"$f":"IF('1. Order'!AA1323=\"\",\"\",'1. Order'!AA1323)","v":""},{"$f":"IF('1. Order'!AB1323=\"\",\"\",'1. Order'!AB1323)","v":""},null,{"$f":"IF('1. Order'!AT1323=\"\",\"\",'1. Order'!AT1323)","v":""},{"$f":"IF('1. Order'!AU1323=\"\",\"\",'1. Order'!AU1323)","v":""},null,null,null,null,null,null,null,{"$f":"IF('1. Order'!AY1323=\"\",\"\",'1. Order'!AY1323)","v":""},{"$f":"IF('1. Order'!AZ1323=\"\",\"\",'1. Order'!AZ1323)","v":""},{"$f":"IF('1. Order'!BA1323=\"\",\"\",'1. Order'!BA1323)","v":""},{"$f":"IF('1. Order'!BB1323=\"\",\"\",'1. Order'!BB1323)","v":""},{"$f":"IF('1. Order'!BD1323=\"\",\"\",'1. Order'!BD1323)","v":""},{"$f":"IF('1. Order'!BE1323=\"\",\"\",'1. Order'!BE1323)","v":""},{"$f":"IF('1. Order'!BF1323=\"\",\"\",'1. Order'!BF1323)","v":""},{"$f":"IF('1. Order'!BG1323=\"\",\"\",'1. Order'!BG1323)","v":""},{"$f":"IF('1. Order'!BH1323=\"\",\"\",'1. Order'!BH1323)","v":"ZWO"}]
[{"$f":"IF('1. Order'!F1324=\"\",\"\",'1. Order'!F1324)","v":{"$error":"#N/A"}},{"$f":"IF('1. Order'!G1324=\"\",\"\",'1. Order'!G1324)","v":""},{"$f":"IF('1. Order'!H1324=\"\",\"\",'1. Order'!H1324)","v":""},{"$f":"IF('1. Order'!I1324=\"\",\"\",'1. Order'!I1324)","v":""},{"$f":"IF('1. Order'!J1324=\"\",\"\",'1. Order'!J1324)","v":""},{"$f":"IF('1. Order'!K1324=\"\",\"\",'1. Order'!K1324)","v":""},{"$f":"IF('1. Order'!L1324=\"\",\"\",'1. Order'!L1324)","v":""},{"$f":"IF('1. Order'!M1324=\"\",\"\",'1. Order'!M1324)","v":""},{"$f":"IF('1. Order'!N1324=\"\",\"\",'1. Order'!N1324)","v":""},{"$f":"IF('1. Order'!O1324=\"\",\"\",'1. Order'!O1324)","v":{"$error":"#N/A"}},{"$f":"IF('1. Order'!P1324=\"\",\"\",'1. Order'!P1324)","v":{"$error":"#N/A"}},{"$f":"IF('1. Order'!Q1324=\"\",\"\",'1. Order'!Q1324)","v":""},{"$f":"IF('1. Order'!S1324=\"\",\"\",'1. Order'!S1324)","v":""},{"$f":"IF('1. Order'!T1324=\"\",\"\",'1. Order'!T1324)","v":""},{"$f":"IF('1. Order'!W1324=\"\",\"\",'1. Order'!W1324)","v":""},{"$f":"IF('1. Order'!X1324=\"\",\"\",'1. Order'!X1324)","v":""},{"$f":"IF('1. Order'!Y1324=\"\",\"\",'1. Order'!Y1324)","v":"EUR"},{"$f":"IF('1. Order'!Z1324=\"\",\"\",'1. Order'!Z1324)","v":""},{"$f":"IF('1. Order'!AA1324=\"\",\"\",'1. Order'!AA1324)","v":""},{"$f":"IF('1. Order'!AB1324=\"\",\"\",'1. Order'!AB1324)","v":""},null,{"$f":"IF('1. Order'!AT1324=\"\",\"\",'1. Order'!AT1324)","v":""},{"$f":"IF('1. Order'!AU1324=\"\",\"\",'1. Order'!AU1324)","v":""},null,null,null,null,null,null,null,{"$f":"IF('1. Order'!AY1324=\"\",\"\",'1. Order'!AY1324)","v":""},{"$f":"IF('1. Order'!AZ1324=\"\",\"\",'1. Order'!AZ1324)","v":""},{"$f":"IF('1. Order'!BA1324=\"\",\"\",'1. Order'!BA1324)","v":""},{"$f":"IF('1. Order'!BB1324=\"\",\"\",'1. Order'!BB1324)","v":""},{"$f":"IF('1. Order'!BD1324=\"\",\"\",'1. Order'!BD1324)","v":""},{"$f":"IF('1. Order'!BE1324=\"\",\"\",'1. Order'!BE1324)","v":""},{"$f":"IF('1. Order'!BF1324=\"\",\"\",'1. Order'!BF1324)","v":""},{"$f":"IF('1. Order'!BG1324=\"\",\"\",'1. Order'!BG1324)","v":""},{"$f":"IF('1. Order'!BH1324=\"\",\"\",'1. Order'!BH1324)","v":"ZWO"}]
[{"$f":"IF('1. Order'!F1325=\"\",\"\",'1. Order'!F1325)","v":{"$error":"#N/A"}},{"$f":"IF('1. Order'!G1325=\"\",\"\",'1. Order'!G1325)","v":""},{"$f":"IF('1. Order'!H1325=\"\",\"\",'1. Order'!H1325)","v":""},{"$f":"IF('1. Order'!I1325=\"\",\"\",'1. Order'!I1325)","v":""},{"$f":"IF('1. Order'!J1325=\"\",\"\",'1. Order'!J1325)","v":""},{"$f":"IF('1. Order'!K1325=\"\",\"\",'1. Order'!K1325)","v":""},{"$f":"IF('1. Order'!L1325=\"\",\"\",'1. Order'!L1325)","v":""},{"$f":"IF('1. Order'!M1325=\"\",\"\",'1. Order'!M1325)","v":""},{"$f":"IF('1. Order'!N1325=\"\",\"\",'1. Order'!N1325)","v":""},{"$f":"IF('1. Order'!O1325=\"\",\"\",'1. Order'!O1325)","v":{"$error":"#N/A"}},{"$f":"IF('1. Order'!P1325=\"\",\"\",'1. Order'!P1325)","v":{"$error":"#N/A"}},{"$f":"IF('1. Order'!Q1325=\"\",\"\",'1. Order'!Q1325)","v":""},{"$f":"IF('1. Order'!S1325=\"\",\"\",'1. Order'!S1325)","v":""},{"$f":"IF('1. Order'!T1325=\"\",\"\",'1. Order'!T1325)","v":""},{"$f":"IF('1. Order'!W1325=\"\",\"\",'1. Order'!W1325)","v":""},{"$f":"IF('1. Order'!X1325=\"\",\"\",'1. Order'!X1325)","v":""},{"$f":"IF('1. Order'!Y1325=\"\",\"\",'1. Order'!Y1325)","v":"EUR"},{"$f":"IF('1. Order'!Z1325=\"\",\"\",'1. Order'!Z1325)","v":""},{"$f":"IF('1. Order'!AA1325=\"\",\"\",'1. Order'!AA1325)","v":""},{"$f":"IF('1. Order'!AB1325=\"\",\"\",'1. Order'!AB1325)","v":""},null,{"$f":"IF('1. Order'!AT1325=\"\",\"\",'1. Order'!AT1325)","v":""},{"$f":"IF('1. Order'!AU1325=\"\",\"\",'1. Order'!AU1325)","v":""},null,null,null,null,null,null,null,{"$f":"IF('1. Order'!AY1325=\"\",\"\",'1. Order'!AY1325)","v":""},{"$f":"IF('1. Order'!AZ1325=\"\",\"\",'1. Order'!AZ1325)","v":""},{"$f":"IF('1. Order'!BA1325=\"\",\"\",'1. Order'!BA1325)","v":""},{"$f":"IF('1. Order'!BB1325=\"\",\"\",'1. Order'!BB1325)","v":""},{"$f":"IF('1. Order'!BD1325=\"\",\"\",'1. Order'!BD1325)","v":""},{"$f":"IF('1. Order'!BE1325=\"\",\"\",'1. Order'!BE1325)","v":""},{"$f":"IF('1. Order'!BF1325=\"\",\"\",'1. Order'!BF1325)","v":""},{"$f":"IF('1. Order'!BG1325=\"\",\"\",'1. Order'!BG1325)","v":""},{"$f":"IF('1. Order'!BH1325=\"\",\"\",'1. Order'!BH1325)","v":"ZWO"}]
[{"$f":"IF('1. Order'!F1326=\"\",\"\",'1. Order'!F1326)","v":{"$error":"#N/A"}},{"$f":"IF('1. Order'!G1326=\"\",\"\",'1. Order'!G1326)","v":""},{"$f":"IF('1. Order'!H1326=\"\",\"\",'1. Order'!H1326)","v":""},{"$f":"IF('1. Order'!I1326=\"\",\"\",'1. Order'!I1326)","v":""},{"$f":"IF('1. Order'!J1326=\"\",\"\",'1. Order'!J1326)","v":""},{"$f":"IF('1. Order'!K1326=\"\",\"\",'1. Order'!K1326)","v":""},{"$f":"IF('1. Order'!L1326=\"\",\"\",'1. Order'!L1326)","v":""},{"$f":"IF('1. Order'!M1326=\"\",\"\",'1. Order'!M1326)","v":""},{"$f":"IF('1. Order'!N1326=\"\",\"\",'1. Order'!N1326)","v":""},{"$f":"IF('1. Order'!O1326=\"\",\"\",'1. Order'!O1326)","v":{"$error":"#N/A"}},{"$f":"IF('1. Order'!P1326=\"\",\"\",'1. Order'!P1326)","v":{"$error":"#N/A"}},{"$f":"IF('1. Order'!Q1326=\"\",\"\",'1. Order'!Q1326)","v":""},{"$f":"IF('1. Order'!S1326=\"\",\"\",'1. Order'!S1326)","v":""},{"$f":"IF('1. Order'!T1326=\"\",\"\",'1. Order'!T1326)","v":""},{"$f":"IF('1. Order'!W1326=\"\",\"\",'1. Order'!W1326)","v":""},{"$f":"IF('1. Order'!X1326=\"\",\"\",'1. Order'!X1326)","v":""},{"$f":"IF('1. Order'!Y1326=\"\",\"\",'1. Order'!Y1326)","v":"EUR"},{"$f":"IF('1. Order'!Z1326=\"\",\"\",'1. Order'!Z1326)","v":""},{"$f":"IF('1. Order'!AA1326=\"\",\"\",'1. Order'!AA1326)","v":""},{"$f":"IF('1. Order'!AB1326=\"\",\"\",'1. Order'!AB1326)","v":""},null,{"$f":"IF('1. Order'!AT1326=\"\",\"\",'1. Order'!AT1326)","v":""},{"$f":"IF('1. Order'!AU1326=\"\",\"\",'1. Order'!AU1326)","v":""},null,null,null,null,null,null,null,{"$f":"IF('1. Order'!AY1326=\"\",\"\",'1. Order'!AY1326)","v":""},{"$f":"IF('1. Order'!AZ1326=\"\",\"\",'1. Order'!AZ1326)","v":""},{"$f":"IF('1. Order'!BA1326=\"\",\"\",'1. Order'!BA1326)","v":""},{"$f":"IF('1. Order'!BB1326=\"\",\"\",'1. Order'!BB1326)","v":""},{"$f":"IF('1. Order'!BD1326=\"\",\"\",'1. Order'!BD1326)","v":""},{"$f":"IF('1. Order'!BE1326=\"\",\"\",'1. Order'!BE1326)","v":""},{"$f":"IF('1. Order'!BF1326=\"\",\"\",'1. Order'!BF1326)","v":""},{"$f":"IF('1. Order'!BG1326=\"\",\"\",'1. Order'!BG1326)","v":""},{"$f":"IF('1. Order'!BH1326=\"\",\"\",'1. Order'!BH1326)","v":"ZWO"}]
[{"$f":"IF('1. Order'!F1327=\"\",\"\",'1. Order'!F1327)","v":{"$error":"#N/A"}},{"$f":"IF('1. Order'!G1327=\"\",\"\",'1. Order'!G1327)","v":""},{"$f":"IF('1. Order'!H1327=\"\",\"\",'1. Order'!H1327)","v":""},{"$f":"IF('1. Order'!I1327=\"\",\"\",'1. Order'!I1327)","v":""},{"$f":"IF('1. Order'!J1327=\"\",\"\",'1. Order'!J1327)","v":""},{"$f":"IF('1. Order'!K1327=\"\",\"\",'1. Order'!K1327)","v":""},{"$f":"IF('1. Order'!L1327=\"\",\"\",'1. Order'!L1327)","v":""},{"$f":"IF('1. Order'!M1327=\"\",\"\",'1. Order'!M1327)","v":""},{"$f":"IF('1. Order'!N1327=\"\",\"\",'1. Order'!N1327)","v":""},{"$f":"IF('1. Order'!O1327=\"\",\"\",'1. Order'!O1327)","v":{"$error":"#N/A"}},{"$f":"IF('1. Order'!P1327=\"\",\"\",'1. Order'!P1327)","v":{"$error":"#N/A"}},{"$f":"IF('1. Order'!Q1327=\"\",\"\",'1. Order'!Q1327)","v":""},{"$f":"IF('1. Order'!S1327=\"\",\"\",'1. Order'!S1327)","v":""},{"$f":"IF('1. Order'!T1327=\"\",\"\",'1. Order'!T1327)","v":""},{"$f":"IF('1. Order'!W1327=\"\",\"\",'1. Order'!W1327)","v":""},{"$f":"IF('1. Order'!X1327=\"\",\"\",'1. Order'!X1327)","v":""},{"$f":"IF('1. Order'!Y1327=\"\",\"\",'1. Order'!Y1327)","v":"EUR"},{"$f":"IF('1. Order'!Z1327=\"\",\"\",'1. Order'!Z1327)","v":""},{"$f":"IF('1. Order'!AA1327=\"\",\"\",'1. Order'!AA1327)","v":""},{"$f":"IF('1. Order'!AB1327=\"\",\"\",'1. Order'!AB1327)","v":""},null,{"$f":"IF('1. Order'!AT1327=\"\",\"\",'1. Order'!AT1327)","v":""},{"$f":"IF('1. Order'!AU1327=\"\",\"\",'1. Order'!AU1327)","v":""},null,null,null,null,null,null,null,{"$f":"IF('1. Order'!AY1327=\"\",\"\",'1. Order'!AY1327)","v":""},{"$f":"IF('1. Order'!AZ1327=\"\",\"\",'1. Order'!AZ1327)","v":""},{"$f":"IF('1. Order'!BA1327=\"\",\"\",'1. Order'!BA1327)","v":""},{"$f":"IF('1. Order'!BB1327=\"\",\"\",'1. Order'!BB1327)","v":""},{"$f":"IF('1. Order'!BD1327=\"\",\"\",'1. Order'!BD1327)","v":""},{"$f":"IF('1. Order'!BE1327=\"\",\"\",'1. Order'!BE1327)","v":""},{"$f":"IF('1. Order'!BF1327=\"\",\"\",'1. Order'!BF1327)","v":""},{"$f":"IF('1. Order'!BG1327=\"\",\"\",'1. Order'!BG1327)","v":""},{"$f":"IF('1. Order'!BH1327=\"\",\"\",'1. Order'!BH1327)","v":"ZWO"}]
[{"$f":"IF('1. Order'!F1328=\"\",\"\",'1. Order'!F1328)","v":{"$error":"#N/A"}},{"$f":"IF('1. Order'!G1328=\"\",\"\",'1. Order'!G1328)","v":""},{"$f":"IF('1. Order'!H1328=\"\",\"\",'1. Order'!H1328)","v":""},{"$f":"IF('1. Order'!I1328=\"\",\"\",'1. Order'!I1328)","v":""},{"$f":"IF('1. Order'!J1328=\"\",\"\",'1. Order'!J1328)","v":""},{"$f":"IF('1. Order'!K1328=\"\",\"\",'1. Order'!K1328)","v":""},{"$f":"IF('1. Order'!L1328=\"\",\"\",'1. Order'!L1328)","v":""},{"$f":"IF('1. Order'!M1328=\"\",\"\",'1. Order'!M1328)","v":""},{"$f":"IF('1. Order'!N1328=\"\",\"\",'1. Order'!N1328)","v":""},{"$f":"IF('1. Order'!O1328=\"\",\"\",'1. Order'!O1328)","v":{"$error":"#N/A"}},{"$f":"IF('1. Order'!P1328=\"\",\"\",'1. Order'!P1328)","v":{"$error":"#N/A"}},{"$f":"IF('1. Order'!Q1328=\"\",\"\",'1. Order'!Q1328)","v":""},{"$f":"IF('1. Order'!S1328=\"\",\"\",'1. Order'!S1328)","v":""},{"$f":"IF('1. Order'!T1328=\"\",\"\",'1. Order'!T1328)","v":""},{"$f":"IF('1. Order'!W1328=\"\",\"\",'1. Order'!W1328)","v":""},{"$f":"IF('1. Order'!X1328=\"\",\"\",'1. Order'!X1328)","v":""},{"$f":"IF('1. Order'!Y1328=\"\",\"\",'1. Order'!Y1328)","v":"EUR"},{"$f":"IF('1. Order'!Z1328=\"\",\"\",'1. Order'!Z1328)","v":""},{"$f":"IF('1. Order'!AA1328=\"\",\"\",'1. Order'!AA1328)","v":""},{"$f":"IF('1. Order'!AB1328=\"\",\"\",'1. Order'!AB1328)","v":""},null,{"$f":"IF('1. Order'!AT1328=\"\",\"\",'1. Order'!AT1328)","v":""},{"$f":"IF('1. Order'!AU1328=\"\",\"\",'1. Order'!AU1328)","v":""},null,null,null,null,null,null,null,{"$f":"IF('1. Order'!AY1328=\"\",\"\",'1. Order'!AY1328)","v":""},{"$f":"IF('1. Order'!AZ1328=\"\",\"\",'1. Order'!AZ1328)","v":""},{"$f":"IF('1. Order'!BA1328=\"\",\"\",'1. Order'!BA1328)","v":""},{"$f":"IF('1. Order'!BB1328=\"\",\"\",'1. Order'!BB1328)","v":""},{"$f":"IF('1. Order'!BD1328=\"\",\"\",'1. Order'!BD1328)","v":""},{"$f":"IF('1. Order'!BE1328=\"\",\"\",'1. Order'!BE1328)","v":""},{"$f":"IF('1. Order'!BF1328=\"\",\"\",'1. Order'!BF1328)","v":""},{"$f":"IF('1. Order'!BG1328=\"\",\"\",'1. Order'!BG1328)","v":""},{"$f":"IF('1. Order'!BH1328=\"\",\"\",'1. Order'!BH1328)","v":"ZWO"}]
[{"$f":"IF('1. Order'!F1329=\"\",\"\",'1. Order'!F1329)","v":{"$error":"#N/A"}},{"$f":"IF('1. Order'!G1329=\"\",\"\",'1. Order'!G1329)","v":""},{"$f":"IF('1. Order'!H1329=\"\",\"\",'1. Order'!H1329)","v":""},{"$f":"IF('1. Order'!I1329=\"\",\"\",'1. Order'!I1329)","v":""},{"$f":"IF('1. Order'!J1329=\"\",\"\",'1. Order'!J1329)","v":""},{"$f":"IF('1. Order'!K1329=\"\",\"\",'1. Order'!K1329)","v":""},{"$f":"IF('1. Order'!L1329=\"\",\"\",'1. Order'!L1329)","v":""},{"$f":"IF('1. Order'!M1329=\"\",\"\",'1. Order'!M1329)","v":""},{"$f":"IF('1. Order'!N1329=\"\",\"\",'1. Order'!N1329)","v":""},{"$f":"IF('1. Order'!O1329=\"\",\"\",'1. Order'!O1329)","v":{"$error":"#N/A"}},{"$f":"IF('1. Order'!P1329=\"\",\"\",'1. Order'!P1329)","v":{"$error":"#N/A"}},{"$f":"IF('1. Order'!Q1329=\"\",\"\",'1. Order'!Q1329)","v":""},{"$f":"IF('1. Order'!S1329=\"\",\"\",'1. Order'!S1329)","v":""},{"$f":"IF('1. Order'!T1329=\"\",\"\",'1. Order'!T1329)","v":""},{"$f":"IF('1. Order'!W1329=\"\",\"\",'1. Order'!W1329)","v":""},{"$f":"IF('1. Order'!X1329=\"\",\"\",'1. Order'!X1329)","v":""},{"$f":"IF('1. Order'!Y1329=\"\",\"\",'1. Order'!Y1329)","v":"EUR"},{"$f":"IF('1. Order'!Z1329=\"\",\"\",'1. Order'!Z1329)","v":""},{"$f":"IF('1. Order'!AA1329=\"\",\"\",'1. Order'!AA1329)","v":""},{"$f":"IF('1. Order'!AB1329=\"\",\"\",'1. Order'!AB1329)","v":""},null,{"$f":"IF('1. Order'!AT1329=\"\",\"\",'1. Order'!AT1329)","v":""},{"$f":"IF('1. Order'!AU1329=\"\",\"\",'1. Order'!AU1329)","v":""},null,null,null,null,null,null,null,{"$f":"IF('1. Order'!AY1329=\"\",\"\",'1. Order'!AY1329)","v":""},{"$f":"IF('1. Order'!AZ1329=\"\",\"\",'1. Order'!AZ1329)","v":""},{"$f":"IF('1. Order'!BA1329=\"\",\"\",'1. Order'!BA1329)","v":""},{"$f":"IF('1. Order'!BB1329=\"\",\"\",'1. Order'!BB1329)","v":""},{"$f":"IF('1. Order'!BD1329=\"\",\"\",'1. Order'!BD1329)","v":""},{"$f":"IF('1. Order'!BE1329=\"\",\"\",'1. Order'!BE1329)","v":""},{"$f":"IF('1. Order'!BF1329=\"\",\"\",'1. Order'!BF1329)","v":""},{"$f":"IF('1. Order'!BG1329=\"\",\"\",'1. Order'!BG1329)","v":""},{"$f":"IF('1. Order'!BH1329=\"\",\"\",'1. Order'!BH1329)","v":"ZWO"}]
[{"$f":"IF('1. Order'!F1330=\"\",\"\",'1. Order'!F1330)","v":{"$error":"#N/A"}},{"$f":"IF('1. Order'!G1330=\"\",\"\",'1. Order'!G1330)","v":""},{"$f":"IF('1. Order'!H1330=\"\",\"\",'1. Order'!H1330)","v":""},{"$f":"IF('1. Order'!I1330=\"\",\"\",'1. Order'!I1330)","v":""},{"$f":"IF('1. Order'!J1330=\"\",\"\",'1. Order'!J1330)","v":""},{"$f":"IF('1. Order'!K1330=\"\",\"\",'1. Order'!K1330)","v":""},{"$f":"IF('1. Order'!L1330=\"\",\"\",'1. Order'!L1330)","v":""},{"$f":"IF('1. Order'!M1330=\"\",\"\",'1. Order'!M1330)","v":""},{"$f":"IF('1. Order'!N1330=\"\",\"\",'1. Order'!N1330)","v":""},{"$f":"IF('1. Order'!O1330=\"\",\"\",'1. Order'!O1330)","v":{"$error":"#N/A"}},{"$f":"IF('1. Order'!P1330=\"\",\"\",'1. Order'!P1330)","v":{"$error":"#N/A"}},{"$f":"IF('1. Order'!Q1330=\"\",\"\",'1. Order'!Q1330)","v":""},{"$f":"IF('1. Order'!S1330=\"\",\"\",'1. Order'!S1330)","v":""},{"$f":"IF('1. Order'!T1330=\"\",\"\",'1. Order'!T1330)","v":""},{"$f":"IF('1. Order'!W1330=\"\",\"\",'1. Order'!W1330)","v":""},{"$f":"IF('1. Order'!X1330=\"\",\"\",'1. Order'!X1330)","v":""},{"$f":"IF('1. Order'!Y1330=\"\",\"\",'1. Order'!Y1330)","v":"EUR"},{"$f":"IF('1. Order'!Z1330=\"\",\"\",'1. Order'!Z1330)","v":""},{"$f":"IF('1. Order'!AA1330=\"\",\"\",'1. Order'!AA1330)","v":""},{"$f":"IF('1. Order'!AB1330=\"\",\"\",'1. Order'!AB1330)","v":""},null,{"$f":"IF('1. Order'!AT1330=\"\",\"\",'1. Order'!AT1330)","v":""},{"$f":"IF('1. Order'!AU1330=\"\",\"\",'1. Order'!AU1330)","v":""},null,null,null,null,null,null,null,{"$f":"IF('1. Order'!AY1330=\"\",\"\",'1. Order'!AY1330)","v":""},{"$f":"IF('1. Order'!AZ1330=\"\",\"\",'1. Order'!AZ1330)","v":""},{"$f":"IF('1. Order'!BA1330=\"\",\"\",'1. Order'!BA1330)","v":""},{"$f":"IF('1. Order'!BB1330=\"\",\"\",'1. Order'!BB1330)","v":""},{"$f":"IF('1. Order'!BD1330=\"\",\"\",'1. Order'!BD1330)","v":""},{"$f":"IF('1. Order'!BE1330=\"\",\"\",'1. Order'!BE1330)","v":""},{"$f":"IF('1. Order'!BF1330=\"\",\"\",'1. Order'!BF1330)","v":""},{"$f":"IF('1. Order'!BG1330=\"\",\"\",'1. Order'!BG1330)","v":""},{"$f":"IF('1. Order'!BH1330=\"\",\"\",'1. Order'!BH1330)","v":"ZWO"}]
[{"$f":"IF('1. Order'!F1331=\"\",\"\",'1. Order'!F1331)","v":{"$error":"#N/A"}},{"$f":"IF('1. Order'!G1331=\"\",\"\",'1. Order'!G1331)","v":""},{"$f":"IF('1. Order'!H1331=\"\",\"\",'1. Order'!H1331)","v":""},{"$f":"IF('1. Order'!I1331=\"\",\"\",'1. Order'!I1331)","v":""},{"$f":"IF('1. Order'!J1331=\"\",\"\",'1. Order'!J1331)","v":""},{"$f":"IF('1. Order'!K1331=\"\",\"\",'1. Order'!K1331)","v":""},{"$f":"IF('1. Order'!L1331=\"\",\"\",'1. Order'!L1331)","v":""},{"$f":"IF('1. Order'!M1331=\"\",\"\",'1. Order'!M1331)","v":""},{"$f":"IF('1. Order'!N1331=\"\",\"\",'1. Order'!N1331)","v":""},{"$f":"IF('1. Order'!O1331=\"\",\"\",'1. Order'!O1331)","v":{"$error":"#N/A"}},{"$f":"IF('1. Order'!P1331=\"\",\"\",'1. Order'!P1331)","v":{"$error":"#N/A"}},{"$f":"IF('1. Order'!Q1331=\"\",\"\",'1. Order'!Q1331)","v":""},{"$f":"IF('1. Order'!S1331=\"\",\"\",'1. Order'!S1331)","v":""},{"$f":"IF('1. Order'!T1331=\"\",\"\",'1. Order'!T1331)","v":""},{"$f":"IF('1. Order'!W1331=\"\",\"\",'1. Order'!W1331)","v":""},{"$f":"IF('1. Order'!X1331=\"\",\"\",'1. Order'!X1331)","v":""},{"$f":"IF('1. Order'!Y1331=\"\",\"\",'1. Order'!Y1331)","v":"EUR"},{"$f":"IF('1. Order'!Z1331=\"\",\"\",'1. Order'!Z1331)","v":""},{"$f":"IF('1. Order'!AA1331=\"\",\"\",'1. Order'!AA1331)","v":""},{"$f":"IF('1. Order'!AB1331=\"\",\"\",'1. Order'!AB1331)","v":""},null,{"$f":"IF('1. Order'!AT1331=\"\",\"\",'1. Order'!AT1331)","v":""},{"$f":"IF('1. Order'!AU1331=\"\",\"\",'1. Order'!AU1331)","v":""},null,null,null,null,null,null,null,{"$f":"IF('1. Order'!AY1331=\"\",\"\",'1. Order'!AY1331)","v":""},{"$f":"IF('1. Order'!AZ1331=\"\",\"\",'1. Order'!AZ1331)","v":""},{"$f":"IF('1. Order'!BA1331=\"\",\"\",'1. Order'!BA1331)","v":""},{"$f":"IF('1. Order'!BB1331=\"\",\"\",'1. Order'!BB1331)","v":""},{"$f":"IF('1. Order'!BD1331=\"\",\"\",'1. Order'!BD1331)","v":""},{"$f":"IF('1. Order'!BE1331=\"\",\"\",'1. Order'!BE1331)","v":""},{"$f":"IF('1. Order'!BF1331=\"\",\"\",'1. Order'!BF1331)","v":""},{"$f":"IF('1. Order'!BG1331=\"\",\"\",'1. Order'!BG1331)","v":""},{"$f":"IF('1. Order'!BH1331=\"\",\"\",'1. Order'!BH1331)","v":"ZWO"}]
[{"$f":"IF('1. Order'!F1332=\"\",\"\",'1. Order'!F1332)","v":{"$error":"#N/A"}},{"$f":"IF('1. Order'!G1332=\"\",\"\",'1. Order'!G1332)","v":""},{"$f":"IF('1. Order'!H1332=\"\",\"\",'1. Order'!H1332)","v":""},{"$f":"IF('1. Order'!I1332=\"\",\"\",'1. Order'!I1332)","v":""},{"$f":"IF('1. Order'!J1332=\"\",\"\",'1. Order'!J1332)","v":""},{"$f":"IF('1. Order'!K1332=\"\",\"\",'1. Order'!K1332)","v":""},{"$f":"IF('1. Order'!L1332=\"\",\"\",'1. Order'!L1332)","v":""},{"$f":"IF('1. Order'!M1332=\"\",\"\",'1. Order'!M1332)","v":""},{"$f":"IF('1. Order'!N1332=\"\",\"\",'1. Order'!N1332)","v":""},{"$f":"IF('1. Order'!O1332=\"\",\"\",'1. Order'!O1332)","v":{"$error":"#N/A"}},{"$f":"IF('1. Order'!P1332=\"\",\"\",'1. Order'!P1332)","v":{"$error":"#N/A"}},{"$f":"IF('1. Order'!Q1332=\"\",\"\",'1. Order'!Q1332)","v":""},{"$f":"IF('1. Order'!S1332=\"\",\"\",'1. Order'!S1332)","v":""},{"$f":"IF('1. Order'!T1332=\"\",\"\",'1. Order'!T1332)","v":""},{"$f":"IF('1. Order'!W1332=\"\",\"\",'1. Order'!W1332)","v":""},{"$f":"IF('1. Order'!X1332=\"\",\"\",'1. Order'!X1332)","v":""},{"$f":"IF('1. Order'!Y1332=\"\",\"\",'1. Order'!Y1332)","v":"EUR"},{"$f":"IF('1. Order'!Z1332=\"\",\"\",'1. Order'!Z1332)","v":""},{"$f":"IF('1. Order'!AA1332=\"\",\"\",'1. Order'!AA1332)","v":""},{"$f":"IF('1. Order'!AB1332=\"\",\"\",'1. Order'!AB1332)","v":""},null,{"$f":"IF('1. Order'!AT1332=\"\",\"\",'1. Order'!AT1332)","v":""},{"$f":"IF('1. Order'!AU1332=\"\",\"\",'1. Order'!AU1332)","v":""},null,null,null,null,null,null,null,{"$f":"IF('1. Order'!AY1332=\"\",\"\",'1. Order'!AY1332)","v":""},{"$f":"IF('1. Order'!AZ1332=\"\",\"\",'1. Order'!AZ1332)","v":""},{"$f":"IF('1. Order'!BA1332=\"\",\"\",'1. Order'!BA1332)","v":""},{"$f":"IF('1. Order'!BB1332=\"\",\"\",'1. Order'!BB1332)","v":""},{"$f":"IF('1. Order'!BD1332=\"\",\"\",'1. Order'!BD1332)","v":""},{"$f":"IF('1. Order'!BE1332=\"\",\"\",'1. Order'!BE1332)","v":""},{"$f":"IF('1. Order'!BF1332=\"\",\"\",'1. Order'!BF1332)","v":""},{"$f":"IF('1. Order'!BG1332=\"\",\"\",'1. Order'!BG1332)","v":""},{"$f":"IF('1. Order'!BH1332=\"\",\"\",'1. Order'!BH1332)","v":"ZWO"}]
[{"$f":"IF('1. Order'!F1333=\"\",\"\",'1. Order'!F1333)","v":{"$error":"#N/A"}},{"$f":"IF('1. Order'!G1333=\"\",\"\",'1. Order'!G1333)","v":""},{"$f":"IF('1. Order'!H1333=\"\",\"\",'1. Order'!H1333)","v":""},{"$f":"IF('1. Order'!I1333=\"\",\"\",'1. Order'!I1333)","v":""},{"$f":"IF('1. Order'!J1333=\"\",\"\",'1. Order'!J1333)","v":""},{"$f":"IF('1. Order'!K1333=\"\",\"\",'1. Order'!K1333)","v":""},{"$f":"IF('1. Order'!L1333=\"\",\"\",'1. Order'!L1333)","v":""},{"$f":"IF('1. Order'!M1333=\"\",\"\",'1. Order'!M1333)","v":""},{"$f":"IF('1. Order'!N1333=\"\",\"\",'1. Order'!N1333)","v":""},{"$f":"IF('1. Order'!O1333=\"\",\"\",'1. Order'!O1333)","v":{"$error":"#N/A"}},{"$f":"IF('1. Order'!P1333=\"\",\"\",'1. Order'!P1333)","v":{"$error":"#N/A"}},{"$f":"IF('1. Order'!Q1333=\"\",\"\",'1. Order'!Q1333)","v":""},{"$f":"IF('1. Order'!S1333=\"\",\"\",'1. Order'!S1333)","v":""},{"$f":"IF('1. Order'!T1333=\"\",\"\",'1. Order'!T1333)","v":""},{"$f":"IF('1. Order'!W1333=\"\",\"\",'1. Order'!W1333)","v":""},{"$f":"IF('1. Order'!X1333=\"\",\"\",'1. Order'!X1333)","v":""},{"$f":"IF('1. Order'!Y1333=\"\",\"\",'1. Order'!Y1333)","v":"EUR"},{"$f":"IF('1. Order'!Z1333=\"\",\"\",'1. Order'!Z1333)","v":""},{"$f":"IF('1. Order'!AA1333=\"\",\"\",'1. Order'!AA1333)","v":""},{"$f":"IF('1. Order'!AB1333=\"\",\"\",'1. Order'!AB1333)","v":""},null,{"$f":"IF('1. Order'!AT1333=\"\",\"\",'1. Order'!AT1333)","v":""},{"$f":"IF('1. Order'!AU1333=\"\",\"\",'1. Order'!AU1333)","v":""},null,null,null,null,null,null,null,{"$f":"IF('1. Order'!AY1333=\"\",\"\",'1. Order'!AY1333)","v":""},{"$f":"IF('1. Order'!AZ1333=\"\",\"\",'1. Order'!AZ1333)","v":""},{"$f":"IF('1. Order'!BA1333=\"\",\"\",'1. Order'!BA1333)","v":""},{"$f":"IF('1. Order'!BB1333=\"\",\"\",'1. Order'!BB1333)","v":""},{"$f":"IF('1. Order'!BD1333=\"\",\"\",'1. Order'!BD1333)","v":""},{"$f":"IF('1. Order'!BE1333=\"\",\"\",'1. Order'!BE1333)","v":""},{"$f":"IF('1. Order'!BF1333=\"\",\"\",'1. Order'!BF1333)","v":""},{"$f":"IF('1. Order'!BG1333=\"\",\"\",'1. Order'!BG1333)","v":""},{"$f":"IF('1. Order'!BH1333=\"\",\"\",'1. Order'!BH1333)","v":"ZWO"}]
[{"$f":"IF('1. Order'!F1334=\"\",\"\",'1. Order'!F1334)","v":{"$error":"#N/A"}},{"$f":"IF('1. Order'!G1334=\"\",\"\",'1. Order'!G1334)","v":""},{"$f":"IF('1. Order'!H1334=\"\",\"\",'1. Order'!H1334)","v":""},{"$f":"IF('1. Order'!I1334=\"\",\"\",'1. Order'!I1334)","v":""},{"$f":"IF('1. Order'!J1334=\"\",\"\",'1. Order'!J1334)","v":""},{"$f":"IF('1. Order'!K1334=\"\",\"\",'1. Order'!K1334)","v":""},{"$f":"IF('1. Order'!L1334=\"\",\"\",'1. Order'!L1334)","v":""},{"$f":"IF('1. Order'!M1334=\"\",\"\",'1. Order'!M1334)","v":""},{"$f":"IF('1. Order'!N1334=\"\",\"\",'1. Order'!N1334)","v":""},{"$f":"IF('1. Order'!O1334=\"\",\"\",'1. Order'!O1334)","v":{"$error":"#N/A"}},{"$f":"IF('1. Order'!P1334=\"\",\"\",'1. Order'!P1334)","v":{"$error":"#N/A"}},{"$f":"IF('1. Order'!Q1334=\"\",\"\",'1. Order'!Q1334)","v":""},{"$f":"IF('1. Order'!S1334=\"\",\"\",'1. Order'!S1334)","v":""},{"$f":"IF('1. Order'!T1334=\"\",\"\",'1. Order'!T1334)","v":""},{"$f":"IF('1. Order'!W1334=\"\",\"\",'1. Order'!W1334)","v":""},{"$f":"IF('1. Order'!X1334=\"\",\"\",'1. Order'!X1334)","v":""},{"$f":"IF('1. Order'!Y1334=\"\",\"\",'1. Order'!Y1334)","v":"EUR"},{"$f":"IF('1. Order'!Z1334=\"\",\"\",'1. Order'!Z1334)","v":""},{"$f":"IF('1. Order'!AA1334=\"\",\"\",'1. Order'!AA1334)","v":""},{"$f":"IF('1. Order'!AB1334=\"\",\"\",'1. Order'!AB1334)","v":""},null,{"$f":"IF('1. Order'!AT1334=\"\",\"\",'1. Order'!AT1334)","v":""},{"$f":"IF('1. Order'!AU1334=\"\",\"\",'1. Order'!AU1334)","v":""},null,null,null,null,null,null,null,{"$f":"IF('1. Order'!AY1334=\"\",\"\",'1. Order'!AY1334)","v":""},{"$f":"IF('1. Order'!AZ1334=\"\",\"\",'1. Order'!AZ1334)","v":""},{"$f":"IF('1. Order'!BA1334=\"\",\"\",'1. Order'!BA1334)","v":""},{"$f":"IF('1. Order'!BB1334=\"\",\"\",'1. Order'!BB1334)","v":""},{"$f":"IF('1. Order'!BD1334=\"\",\"\",'1. Order'!BD1334)","v":""},{"$f":"IF('1. Order'!BE1334=\"\",\"\",'1. Order'!BE1334)","v":""},{"$f":"IF('1. Order'!BF1334=\"\",\"\",'1. Order'!BF1334)","v":""},{"$f":"IF('1. Order'!BG1334=\"\",\"\",'1. Order'!BG1334)","v":""},{"$f":"IF('1. Order'!BH1334=\"\",\"\",'1. Order'!BH1334)","v":"ZWO"}]
[{"$f":"IF('1. Order'!F1335=\"\",\"\",'1. Order'!F1335)","v":{"$error":"#N/A"}},{"$f":"IF('1. Order'!G1335=\"\",\"\",'1. Order'!G1335)","v":""},{"$f":"IF('1. Order'!H1335=\"\",\"\",'1. Order'!H1335)","v":""},{"$f":"IF('1. Order'!I1335=\"\",\"\",'1. Order'!I1335)","v":""},{"$f":"IF('1. Order'!J1335=\"\",\"\",'1. Order'!J1335)","v":""},{"$f":"IF('1. Order'!K1335=\"\",\"\",'1. Order'!K1335)","v":""},{"$f":"IF('1. Order'!L1335=\"\",\"\",'1. Order'!L1335)","v":""},{"$f":"IF('1. Order'!M1335=\"\",\"\",'1. Order'!M1335)","v":""},{"$f":"IF('1. Order'!N1335=\"\",\"\",'1. Order'!N1335)","v":""},{"$f":"IF('1. Order'!O1335=\"\",\"\",'1. Order'!O1335)","v":{"$error":"#N/A"}},{"$f":"IF('1. Order'!P1335=\"\",\"\",'1. Order'!P1335)","v":{"$error":"#N/A"}},{"$f":"IF('1. Order'!Q1335=\"\",\"\",'1. Order'!Q1335)","v":""},{"$f":"IF('1. Order'!S1335=\"\",\"\",'1. Order'!S1335)","v":""},{"$f":"IF('1. Order'!T1335=\"\",\"\",'1. Order'!T1335)","v":""},{"$f":"IF('1. Order'!W1335=\"\",\"\",'1. Order'!W1335)","v":""},{"$f":"IF('1. Order'!X1335=\"\",\"\",'1. Order'!X1335)","v":""},{"$f":"IF('1. Order'!Y1335=\"\",\"\",'1. Order'!Y1335)","v":"EUR"},{"$f":"IF('1. Order'!Z1335=\"\",\"\",'1. Order'!Z1335)","v":""},{"$f":"IF('1. Order'!AA1335=\"\",\"\",'1. Order'!AA1335)","v":""},{"$f":"IF('1. Order'!AB1335=\"\",\"\",'1. Order'!AB1335)","v":""},null,{"$f":"IF('1. Order'!AT1335=\"\",\"\",'1. Order'!AT1335)","v":""},{"$f":"IF('1. Order'!AU1335=\"\",\"\",'1. Order'!AU1335)","v":""},null,null,null,null,null,null,null,{"$f":"IF('1. Order'!AY1335=\"\",\"\",'1. Order'!AY1335)","v":""},{"$f":"IF('1. Order'!AZ1335=\"\",\"\",'1. Order'!AZ1335)","v":""},{"$f":"IF('1. Order'!BA1335=\"\",\"\",'1. Order'!BA1335)","v":""},{"$f":"IF('1. Order'!BB1335=\"\",\"\",'1. Order'!BB1335)","v":""},{"$f":"IF('1. Order'!BD1335=\"\",\"\",'1. Order'!BD1335)","v":""},{"$f":"IF('1. Order'!BE1335=\"\",\"\",'1. Order'!BE1335)","v":""},{"$f":"IF('1. Order'!BF1335=\"\",\"\",'1. Order'!BF1335)","v":""},{"$f":"IF('1. Order'!BG1335=\"\",\"\",'1. Order'!BG1335)","v":""},{"$f":"IF('1. Order'!BH1335=\"\",\"\",'1. Order'!BH1335)","v":"ZWO"}]
[{"$f":"IF('1. Order'!F1336=\"\",\"\",'1. Order'!F1336)","v":{"$error":"#N/A"}},{"$f":"IF('1. Order'!G1336=\"\",\"\",'1. Order'!G1336)","v":""},{"$f":"IF('1. Order'!H1336=\"\",\"\",'1. Order'!H1336)","v":""},{"$f":"IF('1. Order'!I1336=\"\",\"\",'1. Order'!I1336)","v":""},{"$f":"IF('1. Order'!J1336=\"\",\"\",'1. Order'!J1336)","v":""},{"$f":"IF('1. Order'!K1336=\"\",\"\",'1. Order'!K1336)","v":""},{"$f":"IF('1. Order'!L1336=\"\",\"\",'1. Order'!L1336)","v":""},{"$f":"IF('1. Order'!M1336=\"\",\"\",'1. Order'!M1336)","v":""},{"$f":"IF('1. Order'!N1336=\"\",\"\",'1. Order'!N1336)","v":""},{"$f":"IF('1. Order'!O1336=\"\",\"\",'1. Order'!O1336)","v":{"$error":"#N/A"}},{"$f":"IF('1. Order'!P1336=\"\",\"\",'1. Order'!P1336)","v":{"$error":"#N/A"}},{"$f":"IF('1. Order'!Q1336=\"\",\"\",'1. Order'!Q1336)","v":""},{"$f":"IF('1. Order'!S1336=\"\",\"\",'1. Order'!S1336)","v":""},{"$f":"IF('1. Order'!T1336=\"\",\"\",'1. Order'!T1336)","v":""},{"$f":"IF('1. Order'!W1336=\"\",\"\",'1. Order'!W1336)","v":""},{"$f":"IF('1. Order'!X1336=\"\",\"\",'1. Order'!X1336)","v":""},{"$f":"IF('1. Order'!Y1336=\"\",\"\",'1. Order'!Y1336)","v":"EUR"},{"$f":"IF('1. Order'!Z1336=\"\",\"\",'1. Order'!Z1336)","v":""},{"$f":"IF('1. Order'!AA1336=\"\",\"\",'1. Order'!AA1336)","v":""},{"$f":"IF('1. Order'!AB1336=\"\",\"\",'1. Order'!AB1336)","v":""},null,{"$f":"IF('1. Order'!AT1336=\"\",\"\",'1. Order'!AT1336)","v":""},{"$f":"IF('1. Order'!AU1336=\"\",\"\",'1. Order'!AU1336)","v":""},null,null,null,null,null,null,null,{"$f":"IF('1. Order'!AY1336=\"\",\"\",'1. Order'!AY1336)","v":""},{"$f":"IF('1. Order'!AZ1336=\"\",\"\",'1. Order'!AZ1336)","v":""},{"$f":"IF('1. Order'!BA1336=\"\",\"\",'1. Order'!BA1336)","v":""},{"$f":"IF('1. Order'!BB1336=\"\",\"\",'1. Order'!BB1336)","v":""},{"$f":"IF('1. Order'!BD1336=\"\",\"\",'1. Order'!BD1336)","v":""},{"$f":"IF('1. Order'!BE1336=\"\",\"\",'1. Order'!BE1336)","v":""},{"$f":"IF('1. Order'!BF1336=\"\",\"\",'1. Order'!BF1336)","v":""},{"$f":"IF('1. Order'!BG1336=\"\",\"\",'1. Order'!BG1336)","v":""},{"$f":"IF('1. Order'!BH1336=\"\",\"\",'1. Order'!BH1336)","v":"ZWO"}]
[{"$f":"IF('1. Order'!F1337=\"\",\"\",'1. Order'!F1337)","v":{"$error":"#N/A"}},{"$f":"IF('1. Order'!G1337=\"\",\"\",'1. Order'!G1337)","v":""},{"$f":"IF('1. Order'!H1337=\"\",\"\",'1. Order'!H1337)","v":""},{"$f":"IF('1. Order'!I1337=\"\",\"\",'1. Order'!I1337)","v":""},{"$f":"IF('1. Order'!J1337=\"\",\"\",'1. Order'!J1337)","v":""},{"$f":"IF('1. Order'!K1337=\"\",\"\",'1. Order'!K1337)","v":""},{"$f":"IF('1. Order'!L1337=\"\",\"\",'1. Order'!L1337)","v":""},{"$f":"IF('1. Order'!M1337=\"\",\"\",'1. Order'!M1337)","v":""},{"$f":"IF('1. Order'!N1337=\"\",\"\",'1. Order'!N1337)","v":""},{"$f":"IF('1. Order'!O1337=\"\",\"\",'1. Order'!O1337)","v":{"$error":"#N/A"}},{"$f":"IF('1. Order'!P1337=\"\",\"\",'1. Order'!P1337)","v":{"$error":"#N/A"}},{"$f":"IF('1. Order'!Q1337=\"\",\"\",'1. Order'!Q1337)","v":""},{"$f":"IF('1. Order'!S1337=\"\",\"\",'1. Order'!S1337)","v":""},{"$f":"IF('1. Order'!T1337=\"\",\"\",'1. Order'!T1337)","v":""},{"$f":"IF('1. Order'!W1337=\"\",\"\",'1. Order'!W1337)","v":""},{"$f":"IF('1. Order'!X1337=\"\",\"\",'1. Order'!X1337)","v":""},{"$f":"IF('1. Order'!Y1337=\"\",\"\",'1. Order'!Y1337)","v":"EUR"},{"$f":"IF('1. Order'!Z1337=\"\",\"\",'1. Order'!Z1337)","v":""},{"$f":"IF('1. Order'!AA1337=\"\",\"\",'1. Order'!AA1337)","v":""},{"$f":"IF('1. Order'!AB1337=\"\",\"\",'1. Order'!AB1337)","v":""},null,{"$f":"IF('1. Order'!AT1337=\"\",\"\",'1. Order'!AT1337)","v":""},{"$f":"IF('1. Order'!AU1337=\"\",\"\",'1. Order'!AU1337)","v":""},null,null,null,null,null,null,null,{"$f":"IF('1. Order'!AY1337=\"\",\"\",'1. Order'!AY1337)","v":""},{"$f":"IF('1. Order'!AZ1337=\"\",\"\",'1. Order'!AZ1337)","v":""},{"$f":"IF('1. Order'!BA1337=\"\",\"\",'1. Order'!BA1337)","v":""},{"$f":"IF('1. Order'!BB1337=\"\",\"\",'1. Order'!BB1337)","v":""},{"$f":"IF('1. Order'!BD1337=\"\",\"\",'1. Order'!BD1337)","v":""},{"$f":"IF('1. Order'!BE1337=\"\",\"\",'1. Order'!BE1337)","v":""},{"$f":"IF('1. Order'!BF1337=\"\",\"\",'1. Order'!BF1337)","v":""},{"$f":"IF('1. Order'!BG1337=\"\",\"\",'1. Order'!BG1337)","v":""},{"$f":"IF('1. Order'!BH1337=\"\",\"\",'1. Order'!BH1337)","v":"ZWO"}]
[{"$f":"IF('1. Order'!F1338=\"\",\"\",'1. Order'!F1338)","v":{"$error":"#N/A"}},{"$f":"IF('1. Order'!G1338=\"\",\"\",'1. Order'!G1338)","v":""},{"$f":"IF('1. Order'!H1338=\"\",\"\",'1. Order'!H1338)","v":""},{"$f":"IF('1. Order'!I1338=\"\",\"\",'1. Order'!I1338)","v":""},{"$f":"IF('1. Order'!J1338=\"\",\"\",'1. Order'!J1338)","v":""},{"$f":"IF('1. Order'!K1338=\"\",\"\",'1. Order'!K1338)","v":""},{"$f":"IF('1. Order'!L1338=\"\",\"\",'1. Order'!L1338)","v":""},{"$f":"IF('1. Order'!M1338=\"\",\"\",'1. Order'!M1338)","v":""},{"$f":"IF('1. Order'!N1338=\"\",\"\",'1. Order'!N1338)","v":""},{"$f":"IF('1. Order'!O1338=\"\",\"\",'1. Order'!O1338)","v":{"$error":"#N/A"}},{"$f":"IF('1. Order'!P1338=\"\",\"\",'1. Order'!P1338)","v":{"$error":"#N/A"}},{"$f":"IF('1. Order'!Q1338=\"\",\"\",'1. Order'!Q1338)","v":""},{"$f":"IF('1. Order'!S1338=\"\",\"\",'1. Order'!S1338)","v":""},{"$f":"IF('1. Order'!T1338=\"\",\"\",'1. Order'!T1338)","v":""},{"$f":"IF('1. Order'!W1338=\"\",\"\",'1. Order'!W1338)","v":""},{"$f":"IF('1. Order'!X1338=\"\",\"\",'1. Order'!X1338)","v":""},{"$f":"IF('1. Order'!Y1338=\"\",\"\",'1. Order'!Y1338)","v":"EUR"},{"$f":"IF('1. Order'!Z1338=\"\",\"\",'1. Order'!Z1338)","v":""},{"$f":"IF('1. Order'!AA1338=\"\",\"\",'1. Order'!AA1338)","v":""},{"$f":"IF('1. Order'!AB1338=\"\",\"\",'1. Order'!AB1338)","v":""},null,{"$f":"IF('1. Order'!AT1338=\"\",\"\",'1. Order'!AT1338)","v":""},{"$f":"IF('1. Order'!AU1338=\"\",\"\",'1. Order'!AU1338)","v":""},null,null,null,null,null,null,null,{"$f":"IF('1. Order'!AY1338=\"\",\"\",'1. Order'!AY1338)","v":""},{"$f":"IF('1. Order'!AZ1338=\"\",\"\",'1. Order'!AZ1338)","v":""},{"$f":"IF('1. Order'!BA1338=\"\",\"\",'1. Order'!BA1338)","v":""},{"$f":"IF('1. Order'!BB1338=\"\",\"\",'1. Order'!BB1338)","v":""},{"$f":"IF('1. Order'!BD1338=\"\",\"\",'1. Order'!BD1338)","v":""},{"$f":"IF('1. Order'!BE1338=\"\",\"\",'1. Order'!BE1338)","v":""},{"$f":"IF('1. Order'!BF1338=\"\",\"\",'1. Order'!BF1338)","v":""},{"$f":"IF('1. Order'!BG1338=\"\",\"\",'1. Order'!BG1338)","v":""},{"$f":"IF('1. Order'!BH1338=\"\",\"\",'1. Order'!BH1338)","v":"ZWO"}]
[{"$f":"IF('1. Order'!F1339=\"\",\"\",'1. Order'!F1339)","v":{"$error":"#N/A"}},{"$f":"IF('1. Order'!G1339=\"\",\"\",'1. Order'!G1339)","v":""},{"$f":"IF('1. Order'!H1339=\"\",\"\",'1. Order'!H1339)","v":""},{"$f":"IF('1. Order'!I1339=\"\",\"\",'1. Order'!I1339)","v":""},{"$f":"IF('1. Order'!J1339=\"\",\"\",'1. Order'!J1339)","v":""},{"$f":"IF('1. Order'!K1339=\"\",\"\",'1. Order'!K1339)","v":""},{"$f":"IF('1. Order'!L1339=\"\",\"\",'1. Order'!L1339)","v":""},{"$f":"IF('1. Order'!M1339=\"\",\"\",'1. Order'!M1339)","v":""},{"$f":"IF('1. Order'!N1339=\"\",\"\",'1. Order'!N1339)","v":""},{"$f":"IF('1. Order'!O1339=\"\",\"\",'1. Order'!O1339)","v":{"$error":"#N/A"}},{"$f":"IF('1. Order'!P1339=\"\",\"\",'1. Order'!P1339)","v":{"$error":"#N/A"}},{"$f":"IF('1. Order'!Q1339=\"\",\"\",'1. Order'!Q1339)","v":""},{"$f":"IF('1. Order'!S1339=\"\",\"\",'1. Order'!S1339)","v":""},{"$f":"IF('1. Order'!T1339=\"\",\"\",'1. Order'!T1339)","v":""},{"$f":"IF('1. Order'!W1339=\"\",\"\",'1. Order'!W1339)","v":""},{"$f":"IF('1. Order'!X1339=\"\",\"\",'1. Order'!X1339)","v":""},{"$f":"IF('1. Order'!Y1339=\"\",\"\",'1. Order'!Y1339)","v":"EUR"},{"$f":"IF('1. Order'!Z1339=\"\",\"\",'1. Order'!Z1339)","v":""},{"$f":"IF('1. Order'!AA1339=\"\",\"\",'1. Order'!AA1339)","v":""},{"$f":"IF('1. Order'!AB1339=\"\",\"\",'1. Order'!AB1339)","v":""},null,{"$f":"IF('1. Order'!AT1339=\"\",\"\",'1. Order'!AT1339)","v":""},{"$f":"IF('1. Order'!AU1339=\"\",\"\",'1. Order'!AU1339)","v":""},null,null,null,null,null,null,null,{"$f":"IF('1. Order'!AY1339=\"\",\"\",'1. Order'!AY1339)","v":""},{"$f":"IF('1. Order'!AZ1339=\"\",\"\",'1. Order'!AZ1339)","v":""},{"$f":"IF('1. Order'!BA1339=\"\",\"\",'1. Order'!BA1339)","v":""},{"$f":"IF('1. Order'!BB1339=\"\",\"\",'1. Order'!BB1339)","v":""},{"$f":"IF('1. Order'!BD1339=\"\",\"\",'1. Order'!BD1339)","v":""},{"$f":"IF('1. Order'!BE1339=\"\",\"\",'1. Order'!BE1339)","v":""},{"$f":"IF('1. Order'!BF1339=\"\",\"\",'1. Order'!BF1339)","v":""},{"$f":"IF('1. Order'!BG1339=\"\",\"\",'1. Order'!BG1339)","v":""},{"$f":"IF('1. Order'!BH1339=\"\",\"\",'1. Order'!BH1339)","v":"ZWO"}]
[{"$f":"IF('1. Order'!F1340=\"\",\"\",'1. Order'!F1340)","v":{"$error":"#N/A"}},{"$f":"IF('1. Order'!G1340=\"\",\"\",'1. Order'!G1340)","v":""},{"$f":"IF('1. Order'!H1340=\"\",\"\",'1. Order'!H1340)","v":""},{"$f":"IF('1. Order'!I1340=\"\",\"\",'1. Order'!I1340)","v":""},{"$f":"IF('1. Order'!J1340=\"\",\"\",'1. Order'!J1340)","v":""},{"$f":"IF('1. Order'!K1340=\"\",\"\",'1. Order'!K1340)","v":""},{"$f":"IF('1. Order'!L1340=\"\",\"\",'1. Order'!L1340)","v":""},{"$f":"IF('1. Order'!M1340=\"\",\"\",'1. Order'!M1340)","v":""},{"$f":"IF('1. Order'!N1340=\"\",\"\",'1. Order'!N1340)","v":""},{"$f":"IF('1. Order'!O1340=\"\",\"\",'1. Order'!O1340)","v":{"$error":"#N/A"}},{"$f":"IF('1. Order'!P1340=\"\",\"\",'1. Order'!P1340)","v":{"$error":"#N/A"}},{"$f":"IF('1. Order'!Q1340=\"\",\"\",'1. Order'!Q1340)","v":""},{"$f":"IF('1. Order'!S1340=\"\",\"\",'1. Order'!S1340)","v":""},{"$f":"IF('1. Order'!T1340=\"\",\"\",'1. Order'!T1340)","v":""},{"$f":"IF('1. Order'!W1340=\"\",\"\",'1. Order'!W1340)","v":""},{"$f":"IF('1. Order'!X1340=\"\",\"\",'1. Order'!X1340)","v":""},{"$f":"IF('1. Order'!Y1340=\"\",\"\",'1. Order'!Y1340)","v":"EUR"},{"$f":"IF('1. Order'!Z1340=\"\",\"\",'1. Order'!Z1340)","v":""},{"$f":"IF('1. Order'!AA1340=\"\",\"\",'1. Order'!AA1340)","v":""},{"$f":"IF('1. Order'!AB1340=\"\",\"\",'1. Order'!AB1340)","v":""},null,{"$f":"IF('1. Order'!AT1340=\"\",\"\",'1. Order'!AT1340)","v":""},{"$f":"IF('1. Order'!AU1340=\"\",\"\",'1. Order'!AU1340)","v":""},null,null,null,null,null,null,null,{"$f":"IF('1. Order'!AY1340=\"\",\"\",'1. Order'!AY1340)","v":""},{"$f":"IF('1. Order'!AZ1340=\"\",\"\",'1. Order'!AZ1340)","v":""},{"$f":"IF('1. Order'!BA1340=\"\",\"\",'1. Order'!BA1340)","v":""},{"$f":"IF('1. Order'!BB1340=\"\",\"\",'1. Order'!BB1340)","v":""},{"$f":"IF('1. Order'!BD1340=\"\",\"\",'1. Order'!BD1340)","v":""},{"$f":"IF('1. Order'!BE1340=\"\",\"\",'1. Order'!BE1340)","v":""},{"$f":"IF('1. Order'!BF1340=\"\",\"\",'1. Order'!BF1340)","v":""},{"$f":"IF('1. Order'!BG1340=\"\",\"\",'1. Order'!BG1340)","v":""},{"$f":"IF('1. Order'!BH1340=\"\",\"\",'1. Order'!BH1340)","v":"ZWO"}]
[{"$f":"IF('1. Order'!F1341=\"\",\"\",'1. Order'!F1341)","v":{"$error":"#N/A"}},{"$f":"IF('1. Order'!G1341=\"\",\"\",'1. Order'!G1341)","v":""},{"$f":"IF('1. Order'!H1341=\"\",\"\",'1. Order'!H1341)","v":""},{"$f":"IF('1. Order'!I1341=\"\",\"\",'1. Order'!I1341)","v":""},{"$f":"IF('1. Order'!J1341=\"\",\"\",'1. Order'!J1341)","v":""},{"$f":"IF('1. Order'!K1341=\"\",\"\",'1. Order'!K1341)","v":""},{"$f":"IF('1. Order'!L1341=\"\",\"\",'1. Order'!L1341)","v":""},{"$f":"IF('1. Order'!M1341=\"\",\"\",'1. Order'!M1341)","v":""},{"$f":"IF('1. Order'!N1341=\"\",\"\",'1. Order'!N1341)","v":""},{"$f":"IF('1. Order'!O1341=\"\",\"\",'1. Order'!O1341)","v":{"$error":"#N/A"}},{"$f":"IF('1. Order'!P1341=\"\",\"\",'1. Order'!P1341)","v":{"$error":"#N/A"}},{"$f":"IF('1. Order'!Q1341=\"\",\"\",'1. Order'!Q1341)","v":""},{"$f":"IF('1. Order'!S1341=\"\",\"\",'1. Order'!S1341)","v":""},{"$f":"IF('1. Order'!T1341=\"\",\"\",'1. Order'!T1341)","v":""},{"$f":"IF('1. Order'!W1341=\"\",\"\",'1. Order'!W1341)","v":""},{"$f":"IF('1. Order'!X1341=\"\",\"\",'1. Order'!X1341)","v":""},{"$f":"IF('1. Order'!Y1341=\"\",\"\",'1. Order'!Y1341)","v":"EUR"},{"$f":"IF('1. Order'!Z1341=\"\",\"\",'1. Order'!Z1341)","v":""},{"$f":"IF('1. Order'!AA1341=\"\",\"\",'1. Order'!AA1341)","v":""},{"$f":"IF('1. Order'!AB1341=\"\",\"\",'1. Order'!AB1341)","v":""},null,{"$f":"IF('1. Order'!AT1341=\"\",\"\",'1. Order'!AT1341)","v":""},{"$f":"IF('1. Order'!AU1341=\"\",\"\",'1. Order'!AU1341)","v":""},null,null,null,null,null,null,null,{"$f":"IF('1. Order'!AY1341=\"\",\"\",'1. Order'!AY1341)","v":""},{"$f":"IF('1. Order'!AZ1341=\"\",\"\",'1. Order'!AZ1341)","v":""},{"$f":"IF('1. Order'!BA1341=\"\",\"\",'1. Order'!BA1341)","v":""},{"$f":"IF('1. Order'!BB1341=\"\",\"\",'1. Order'!BB1341)","v":""},{"$f":"IF('1. Order'!BD1341=\"\",\"\",'1. Order'!BD1341)","v":""},{"$f":"IF('1. Order'!BE1341=\"\",\"\",'1. Order'!BE1341)","v":""},{"$f":"IF('1. Order'!BF1341=\"\",\"\",'1. Order'!BF1341)","v":""},{"$f":"IF('1. Order'!BG1341=\"\",\"\",'1. Order'!BG1341)","v":""},{"$f":"IF('1. Order'!BH1341=\"\",\"\",'1. Order'!BH1341)","v":"ZWO"}]
[{"$f":"IF('1. Order'!F1342=\"\",\"\",'1. Order'!F1342)","v":{"$error":"#N/A"}},{"$f":"IF('1. Order'!G1342=\"\",\"\",'1. Order'!G1342)","v":""},{"$f":"IF('1. Order'!H1342=\"\",\"\",'1. Order'!H1342)","v":""},{"$f":"IF('1. Order'!I1342=\"\",\"\",'1. Order'!I1342)","v":""},{"$f":"IF('1. Order'!J1342=\"\",\"\",'1. Order'!J1342)","v":""},{"$f":"IF('1. Order'!K1342=\"\",\"\",'1. Order'!K1342)","v":""},{"$f":"IF('1. Order'!L1342=\"\",\"\",'1. Order'!L1342)","v":""},{"$f":"IF('1. Order'!M1342=\"\",\"\",'1. Order'!M1342)","v":""},{"$f":"IF('1. Order'!N1342=\"\",\"\",'1. Order'!N1342)","v":""},{"$f":"IF('1. Order'!O1342=\"\",\"\",'1. Order'!O1342)","v":{"$error":"#N/A"}},{"$f":"IF('1. Order'!P1342=\"\",\"\",'1. Order'!P1342)","v":{"$error":"#N/A"}},{"$f":"IF('1. Order'!Q1342=\"\",\"\",'1. Order'!Q1342)","v":""},{"$f":"IF('1. Order'!S1342=\"\",\"\",'1. Order'!S1342)","v":""},{"$f":"IF('1. Order'!T1342=\"\",\"\",'1. Order'!T1342)","v":""},{"$f":"IF('1. Order'!W1342=\"\",\"\",'1. Order'!W1342)","v":""},{"$f":"IF('1. Order'!X1342=\"\",\"\",'1. Order'!X1342)","v":""},{"$f":"IF('1. Order'!Y1342=\"\",\"\",'1. Order'!Y1342)","v":"EUR"},{"$f":"IF('1. Order'!Z1342=\"\",\"\",'1. Order'!Z1342)","v":""},{"$f":"IF('1. Order'!AA1342=\"\",\"\",'1. Order'!AA1342)","v":""},{"$f":"IF('1. Order'!AB1342=\"\",\"\",'1. Order'!AB1342)","v":""},null,{"$f":"IF('1. Order'!AT1342=\"\",\"\",'1. Order'!AT1342)","v":""},{"$f":"IF('1. Order'!AU1342=\"\",\"\",'1. Order'!AU1342)","v":""},null,null,null,null,null,null,null,{"$f":"IF('1. Order'!AY1342=\"\",\"\",'1. Order'!AY1342)","v":""},{"$f":"IF('1. Order'!AZ1342=\"\",\"\",'1. Order'!AZ1342)","v":""},{"$f":"IF('1. Order'!BA1342=\"\",\"\",'1. Order'!BA1342)","v":""},{"$f":"IF('1. Order'!BB1342=\"\",\"\",'1. Order'!BB1342)","v":""},{"$f":"IF('1. Order'!BD1342=\"\",\"\",'1. Order'!BD1342)","v":""},{"$f":"IF('1. Order'!BE1342=\"\",\"\",'1. Order'!BE1342)","v":""},{"$f":"IF('1. Order'!BF1342=\"\",\"\",'1. Order'!BF1342)","v":""},{"$f":"IF('1. Order'!BG1342=\"\",\"\",'1. Order'!BG1342)","v":""},{"$f":"IF('1. Order'!BH1342=\"\",\"\",'1. Order'!BH1342)","v":"ZWO"}]
[{"$f":"IF('1. Order'!F1343=\"\",\"\",'1. Order'!F1343)","v":{"$error":"#N/A"}},{"$f":"IF('1. Order'!G1343=\"\",\"\",'1. Order'!G1343)","v":""},{"$f":"IF('1. Order'!H1343=\"\",\"\",'1. Order'!H1343)","v":""},{"$f":"IF('1. Order'!I1343=\"\",\"\",'1. Order'!I1343)","v":""},{"$f":"IF('1. Order'!J1343=\"\",\"\",'1. Order'!J1343)","v":""},{"$f":"IF('1. Order'!K1343=\"\",\"\",'1. Order'!K1343)","v":""},{"$f":"IF('1. Order'!L1343=\"\",\"\",'1. Order'!L1343)","v":""},{"$f":"IF('1. Order'!M1343=\"\",\"\",'1. Order'!M1343)","v":""},{"$f":"IF('1. Order'!N1343=\"\",\"\",'1. Order'!N1343)","v":""},{"$f":"IF('1. Order'!O1343=\"\",\"\",'1. Order'!O1343)","v":{"$error":"#N/A"}},{"$f":"IF('1. Order'!P1343=\"\",\"\",'1. Order'!P1343)","v":{"$error":"#N/A"}},{"$f":"IF('1. Order'!Q1343=\"\",\"\",'1. Order'!Q1343)","v":""},{"$f":"IF('1. Order'!S1343=\"\",\"\",'1. Order'!S1343)","v":""},{"$f":"IF('1. Order'!T1343=\"\",\"\",'1. Order'!T1343)","v":""},{"$f":"IF('1. Order'!W1343=\"\",\"\",'1. Order'!W1343)","v":""},{"$f":"IF('1. Order'!X1343=\"\",\"\",'1. Order'!X1343)","v":""},{"$f":"IF('1. Order'!Y1343=\"\",\"\",'1. Order'!Y1343)","v":"EUR"},{"$f":"IF('1. Order'!Z1343=\"\",\"\",'1. Order'!Z1343)","v":""},{"$f":"IF('1. Order'!AA1343=\"\",\"\",'1. Order'!AA1343)","v":""},{"$f":"IF('1. Order'!AB1343=\"\",\"\",'1. Order'!AB1343)","v":""},null,{"$f":"IF('1. Order'!AT1343=\"\",\"\",'1. Order'!AT1343)","v":""},{"$f":"IF('1. Order'!AU1343=\"\",\"\",'1. Order'!AU1343)","v":""},null,null,null,null,null,null,null,{"$f":"IF('1. Order'!AY1343=\"\",\"\",'1. Order'!AY1343)","v":""},{"$f":"IF('1. Order'!AZ1343=\"\",\"\",'1. Order'!AZ1343)","v":""},{"$f":"IF('1. Order'!BA1343=\"\",\"\",'1. Order'!BA1343)","v":""},{"$f":"IF('1. Order'!BB1343=\"\",\"\",'1. Order'!BB1343)","v":""},{"$f":"IF('1. Order'!BD1343=\"\",\"\",'1. Order'!BD1343)","v":""},{"$f":"IF('1. Order'!BE1343=\"\",\"\",'1. Order'!BE1343)","v":""},{"$f":"IF('1. Order'!BF1343=\"\",\"\",'1. Order'!BF1343)","v":""},{"$f":"IF('1. Order'!BG1343=\"\",\"\",'1. Order'!BG1343)","v":""},{"$f":"IF('1. Order'!BH1343=\"\",\"\",'1. Order'!BH1343)","v":"ZWO"}]
[{"$f":"IF('1. Order'!F1344=\"\",\"\",'1. Order'!F1344)","v":{"$error":"#N/A"}},{"$f":"IF('1. Order'!G1344=\"\",\"\",'1. Order'!G1344)","v":""},{"$f":"IF('1. Order'!H1344=\"\",\"\",'1. Order'!H1344)","v":""},{"$f":"IF('1. Order'!I1344=\"\",\"\",'1. Order'!I1344)","v":""},{"$f":"IF('1. Order'!J1344=\"\",\"\",'1. Order'!J1344)","v":""},{"$f":"IF('1. Order'!K1344=\"\",\"\",'1. Order'!K1344)","v":""},{"$f":"IF('1. Order'!L1344=\"\",\"\",'1. Order'!L1344)","v":""},{"$f":"IF('1. Order'!M1344=\"\",\"\",'1. Order'!M1344)","v":""},{"$f":"IF('1. Order'!N1344=\"\",\"\",'1. Order'!N1344)","v":""},{"$f":"IF('1. Order'!O1344=\"\",\"\",'1. Order'!O1344)","v":{"$error":"#N/A"}},{"$f":"IF('1. Order'!P1344=\"\",\"\",'1. Order'!P1344)","v":{"$error":"#N/A"}},{"$f":"IF('1. Order'!Q1344=\"\",\"\",'1. Order'!Q1344)","v":""},{"$f":"IF('1. Order'!S1344=\"\",\"\",'1. Order'!S1344)","v":""},{"$f":"IF('1. Order'!T1344=\"\",\"\",'1. Order'!T1344)","v":""},{"$f":"IF('1. Order'!W1344=\"\",\"\",'1. Order'!W1344)","v":""},{"$f":"IF('1. Order'!X1344=\"\",\"\",'1. Order'!X1344)","v":""},{"$f":"IF('1. Order'!Y1344=\"\",\"\",'1. Order'!Y1344)","v":"EUR"},{"$f":"IF('1. Order'!Z1344=\"\",\"\",'1. Order'!Z1344)","v":""},{"$f":"IF('1. Order'!AA1344=\"\",\"\",'1. Order'!AA1344)","v":""},{"$f":"IF('1. Order'!AB1344=\"\",\"\",'1. Order'!AB1344)","v":""},null,{"$f":"IF('1. Order'!AT1344=\"\",\"\",'1. Order'!AT1344)","v":""},{"$f":"IF('1. Order'!AU1344=\"\",\"\",'1. Order'!AU1344)","v":""},null,null,null,null,null,null,null,{"$f":"IF('1. Order'!AY1344=\"\",\"\",'1. Order'!AY1344)","v":""},{"$f":"IF('1. Order'!AZ1344=\"\",\"\",'1. Order'!AZ1344)","v":""},{"$f":"IF('1. Order'!BA1344=\"\",\"\",'1. Order'!BA1344)","v":""},{"$f":"IF('1. Order'!BB1344=\"\",\"\",'1. Order'!BB1344)","v":""},{"$f":"IF('1. Order'!BD1344=\"\",\"\",'1. Order'!BD1344)","v":""},{"$f":"IF('1. Order'!BE1344=\"\",\"\",'1. Order'!BE1344)","v":""},{"$f":"IF('1. Order'!BF1344=\"\",\"\",'1. Order'!BF1344)","v":""},{"$f":"IF('1. Order'!BG1344=\"\",\"\",'1. Order'!BG1344)","v":""},{"$f":"IF('1. Order'!BH1344=\"\",\"\",'1. Order'!BH1344)","v":"ZWO"}]
[{"$f":"IF('1. Order'!F1345=\"\",\"\",'1. Order'!F1345)","v":{"$error":"#N/A"}},{"$f":"IF('1. Order'!G1345=\"\",\"\",'1. Order'!G1345)","v":""},{"$f":"IF('1. Order'!H1345=\"\",\"\",'1. Order'!H1345)","v":""},{"$f":"IF('1. Order'!I1345=\"\",\"\",'1. Order'!I1345)","v":""},{"$f":"IF('1. Order'!J1345=\"\",\"\",'1. Order'!J1345)","v":""},{"$f":"IF('1. Order'!K1345=\"\",\"\",'1. Order'!K1345)","v":""},{"$f":"IF('1. Order'!L1345=\"\",\"\",'1. Order'!L1345)","v":""},{"$f":"IF('1. Order'!M1345=\"\",\"\",'1. Order'!M1345)","v":""},{"$f":"IF('1. Order'!N1345=\"\",\"\",'1. Order'!N1345)","v":""},{"$f":"IF('1. Order'!O1345=\"\",\"\",'1. Order'!O1345)","v":{"$error":"#N/A"}},{"$f":"IF('1. Order'!P1345=\"\",\"\",'1. Order'!P1345)","v":{"$error":"#N/A"}},{"$f":"IF('1. Order'!Q1345=\"\",\"\",'1. Order'!Q1345)","v":""},{"$f":"IF('1. Order'!S1345=\"\",\"\",'1. Order'!S1345)","v":""},{"$f":"IF('1. Order'!T1345=\"\",\"\",'1. Order'!T1345)","v":""},{"$f":"IF('1. Order'!W1345=\"\",\"\",'1. Order'!W1345)","v":""},{"$f":"IF('1. Order'!X1345=\"\",\"\",'1. Order'!X1345)","v":""},{"$f":"IF('1. Order'!Y1345=\"\",\"\",'1. Order'!Y1345)","v":"EUR"},{"$f":"IF('1. Order'!Z1345=\"\",\"\",'1. Order'!Z1345)","v":""},{"$f":"IF('1. Order'!AA1345=\"\",\"\",'1. Order'!AA1345)","v":""},{"$f":"IF('1. Order'!AB1345=\"\",\"\",'1. Order'!AB1345)","v":""},null,{"$f":"IF('1. Order'!AT1345=\"\",\"\",'1. Order'!AT1345)","v":""},{"$f":"IF('1. Order'!AU1345=\"\",\"\",'1. Order'!AU1345)","v":""},null,null,null,null,null,null,null,{"$f":"IF('1. Order'!AY1345=\"\",\"\",'1. Order'!AY1345)","v":""},{"$f":"IF('1. Order'!AZ1345=\"\",\"\",'1. Order'!AZ1345)","v":""},{"$f":"IF('1. Order'!BA1345=\"\",\"\",'1. Order'!BA1345)","v":""},{"$f":"IF('1. Order'!BB1345=\"\",\"\",'1. Order'!BB1345)","v":""},{"$f":"IF('1. Order'!BD1345=\"\",\"\",'1. Order'!BD1345)","v":""},{"$f":"IF('1. Order'!BE1345=\"\",\"\",'1. Order'!BE1345)","v":""},{"$f":"IF('1. Order'!BF1345=\"\",\"\",'1. Order'!BF1345)","v":""},{"$f":"IF('1. Order'!BG1345=\"\",\"\",'1. Order'!BG1345)","v":""},{"$f":"IF('1. Order'!BH1345=\"\",\"\",'1. Order'!BH1345)","v":"ZWO"}]
[{"$f":"IF('1. Order'!F1346=\"\",\"\",'1. Order'!F1346)","v":{"$error":"#N/A"}},{"$f":"IF('1. Order'!G1346=\"\",\"\",'1. Order'!G1346)","v":""},{"$f":"IF('1. Order'!H1346=\"\",\"\",'1. Order'!H1346)","v":""},{"$f":"IF('1. Order'!I1346=\"\",\"\",'1. Order'!I1346)","v":""},{"$f":"IF('1. Order'!J1346=\"\",\"\",'1. Order'!J1346)","v":""},{"$f":"IF('1. Order'!K1346=\"\",\"\",'1. Order'!K1346)","v":""},{"$f":"IF('1. Order'!L1346=\"\",\"\",'1. Order'!L1346)","v":""},{"$f":"IF('1. Order'!M1346=\"\",\"\",'1. Order'!M1346)","v":""},{"$f":"IF('1. Order'!N1346=\"\",\"\",'1. Order'!N1346)","v":""},{"$f":"IF('1. Order'!O1346=\"\",\"\",'1. Order'!O1346)","v":{"$error":"#N/A"}},{"$f":"IF('1. Order'!P1346=\"\",\"\",'1. Order'!P1346)","v":{"$error":"#N/A"}},{"$f":"IF('1. Order'!Q1346=\"\",\"\",'1. Order'!Q1346)","v":""},{"$f":"IF('1. Order'!S1346=\"\",\"\",'1. Order'!S1346)","v":""},{"$f":"IF('1. Order'!T1346=\"\",\"\",'1. Order'!T1346)","v":""},{"$f":"IF('1. Order'!W1346=\"\",\"\",'1. Order'!W1346)","v":""},{"$f":"IF('1. Order'!X1346=\"\",\"\",'1. Order'!X1346)","v":""},{"$f":"IF('1. Order'!Y1346=\"\",\"\",'1. Order'!Y1346)","v":"EUR"},{"$f":"IF('1. Order'!Z1346=\"\",\"\",'1. Order'!Z1346)","v":""},{"$f":"IF('1. Order'!AA1346=\"\",\"\",'1. Order'!AA1346)","v":""},{"$f":"IF('1. Order'!AB1346=\"\",\"\",'1. Order'!AB1346)","v":""},null,{"$f":"IF('1. Order'!AT1346=\"\",\"\",'1. Order'!AT1346)","v":""},{"$f":"IF('1. Order'!AU1346=\"\",\"\",'1. Order'!AU1346)","v":""},null,null,null,null,null,null,null,{"$f":"IF('1. Order'!AY1346=\"\",\"\",'1. Order'!AY1346)","v":""},{"$f":"IF('1. Order'!AZ1346=\"\",\"\",'1. Order'!AZ1346)","v":""},{"$f":"IF('1. Order'!BA1346=\"\",\"\",'1. Order'!BA1346)","v":""},{"$f":"IF('1. Order'!BB1346=\"\",\"\",'1. Order'!BB1346)","v":""},{"$f":"IF('1. Order'!BD1346=\"\",\"\",'1. Order'!BD1346)","v":""},{"$f":"IF('1. Order'!BE1346=\"\",\"\",'1. Order'!BE1346)","v":""},{"$f":"IF('1. Order'!BF1346=\"\",\"\",'1. Order'!BF1346)","v":""},{"$f":"IF('1. Order'!BG1346=\"\",\"\",'1. Order'!BG1346)","v":""},{"$f":"IF('1. Order'!BH1346=\"\",\"\",'1. Order'!BH1346)","v":"ZWO"}]
[{"$f":"IF('1. Order'!F1347=\"\",\"\",'1. Order'!F1347)","v":{"$error":"#N/A"}},{"$f":"IF('1. Order'!G1347=\"\",\"\",'1. Order'!G1347)","v":""},{"$f":"IF('1. Order'!H1347=\"\",\"\",'1. Order'!H1347)","v":""},{"$f":"IF('1. Order'!I1347=\"\",\"\",'1. Order'!I1347)","v":""},{"$f":"IF('1. Order'!J1347=\"\",\"\",'1. Order'!J1347)","v":""},{"$f":"IF('1. Order'!K1347=\"\",\"\",'1. Order'!K1347)","v":""},{"$f":"IF('1. Order'!L1347=\"\",\"\",'1. Order'!L1347)","v":""},{"$f":"IF('1. Order'!M1347=\"\",\"\",'1. Order'!M1347)","v":""},{"$f":"IF('1. Order'!N1347=\"\",\"\",'1. Order'!N1347)","v":""},{"$f":"IF('1. Order'!O1347=\"\",\"\",'1. Order'!O1347)","v":{"$error":"#N/A"}},{"$f":"IF('1. Order'!P1347=\"\",\"\",'1. Order'!P1347)","v":{"$error":"#N/A"}},{"$f":"IF('1. Order'!Q1347=\"\",\"\",'1. Order'!Q1347)","v":""},{"$f":"IF('1. Order'!S1347=\"\",\"\",'1. Order'!S1347)","v":""},{"$f":"IF('1. Order'!T1347=\"\",\"\",'1. Order'!T1347)","v":""},{"$f":"IF('1. Order'!W1347=\"\",\"\",'1. Order'!W1347)","v":""},{"$f":"IF('1. Order'!X1347=\"\",\"\",'1. Order'!X1347)","v":""},{"$f":"IF('1. Order'!Y1347=\"\",\"\",'1. Order'!Y1347)","v":"EUR"},{"$f":"IF('1. Order'!Z1347=\"\",\"\",'1. Order'!Z1347)","v":""},{"$f":"IF('1. Order'!AA1347=\"\",\"\",'1. Order'!AA1347)","v":""},{"$f":"IF('1. Order'!AB1347=\"\",\"\",'1. Order'!AB1347)","v":""},null,{"$f":"IF('1. Order'!AT1347=\"\",\"\",'1. Order'!AT1347)","v":""},{"$f":"IF('1. Order'!AU1347=\"\",\"\",'1. Order'!AU1347)","v":""},null,null,null,null,null,null,null,{"$f":"IF('1. Order'!AY1347=\"\",\"\",'1. Order'!AY1347)","v":""},{"$f":"IF('1. Order'!AZ1347=\"\",\"\",'1. Order'!AZ1347)","v":""},{"$f":"IF('1. Order'!BA1347=\"\",\"\",'1. Order'!BA1347)","v":""},{"$f":"IF('1. Order'!BB1347=\"\",\"\",'1. Order'!BB1347)","v":""},{"$f":"IF('1. Order'!BD1347=\"\",\"\",'1. Order'!BD1347)","v":""},{"$f":"IF('1. Order'!BE1347=\"\",\"\",'1. Order'!BE1347)","v":""},{"$f":"IF('1. Order'!BF1347=\"\",\"\",'1. Order'!BF1347)","v":""},{"$f":"IF('1. Order'!BG1347=\"\",\"\",'1. Order'!BG1347)","v":""},{"$f":"IF('1. Order'!BH1347=\"\",\"\",'1. Order'!BH1347)","v":"ZWO"}]
[{"$f":"IF('1. Order'!F1348=\"\",\"\",'1. Order'!F1348)","v":{"$error":"#N/A"}},{"$f":"IF('1. Order'!G1348=\"\",\"\",'1. Order'!G1348)","v":""},{"$f":"IF('1. Order'!H1348=\"\",\"\",'1. Order'!H1348)","v":""},{"$f":"IF('1. Order'!I1348=\"\",\"\",'1. Order'!I1348)","v":""},{"$f":"IF('1. Order'!J1348=\"\",\"\",'1. Order'!J1348)","v":""},{"$f":"IF('1. Order'!K1348=\"\",\"\",'1. Order'!K1348)","v":""},{"$f":"IF('1. Order'!L1348=\"\",\"\",'1. Order'!L1348)","v":""},{"$f":"IF('1. Order'!M1348=\"\",\"\",'1. Order'!M1348)","v":""},{"$f":"IF('1. Order'!N1348=\"\",\"\",'1. Order'!N1348)","v":""},{"$f":"IF('1. Order'!O1348=\"\",\"\",'1. Order'!O1348)","v":{"$error":"#N/A"}},{"$f":"IF('1. Order'!P1348=\"\",\"\",'1. Order'!P1348)","v":{"$error":"#N/A"}},{"$f":"IF('1. Order'!Q1348=\"\",\"\",'1. Order'!Q1348)","v":""},{"$f":"IF('1. Order'!S1348=\"\",\"\",'1. Order'!S1348)","v":""},{"$f":"IF('1. Order'!T1348=\"\",\"\",'1. Order'!T1348)","v":""},{"$f":"IF('1. Order'!W1348=\"\",\"\",'1. Order'!W1348)","v":""},{"$f":"IF('1. Order'!X1348=\"\",\"\",'1. Order'!X1348)","v":""},{"$f":"IF('1. Order'!Y1348=\"\",\"\",'1. Order'!Y1348)","v":"EUR"},{"$f":"IF('1. Order'!Z1348=\"\",\"\",'1. Order'!Z1348)","v":""},{"$f":"IF('1. Order'!AA1348=\"\",\"\",'1. Order'!AA1348)","v":""},{"$f":"IF('1. Order'!AB1348=\"\",\"\",'1. Order'!AB1348)","v":""},null,{"$f":"IF('1. Order'!AT1348=\"\",\"\",'1. Order'!AT1348)","v":""},{"$f":"IF('1. Order'!AU1348=\"\",\"\",'1. Order'!AU1348)","v":""},null,null,null,null,null,null,null,{"$f":"IF('1. Order'!AY1348=\"\",\"\",'1. Order'!AY1348)","v":""},{"$f":"IF('1. Order'!AZ1348=\"\",\"\",'1. Order'!AZ1348)","v":""},{"$f":"IF('1. Order'!BA1348=\"\",\"\",'1. Order'!BA1348)","v":""},{"$f":"IF('1. Order'!BB1348=\"\",\"\",'1. Order'!BB1348)","v":""},{"$f":"IF('1. Order'!BD1348=\"\",\"\",'1. Order'!BD1348)","v":""},{"$f":"IF('1. Order'!BE1348=\"\",\"\",'1. Order'!BE1348)","v":""},{"$f":"IF('1. Order'!BF1348=\"\",\"\",'1. Order'!BF1348)","v":""},{"$f":"IF('1. Order'!BG1348=\"\",\"\",'1. Order'!BG1348)","v":""},{"$f":"IF('1. Order'!BH1348=\"\",\"\",'1. Order'!BH1348)","v":"ZWO"}]
[{"$f":"IF('1. Order'!F1349=\"\",\"\",'1. Order'!F1349)","v":{"$error":"#N/A"}},{"$f":"IF('1. Order'!G1349=\"\",\"\",'1. Order'!G1349)","v":""},{"$f":"IF('1. Order'!H1349=\"\",\"\",'1. Order'!H1349)","v":""},{"$f":"IF('1. Order'!I1349=\"\",\"\",'1. Order'!I1349)","v":""},{"$f":"IF('1. Order'!J1349=\"\",\"\",'1. Order'!J1349)","v":""},{"$f":"IF('1. Order'!K1349=\"\",\"\",'1. Order'!K1349)","v":""},{"$f":"IF('1. Order'!L1349=\"\",\"\",'1. Order'!L1349)","v":""},{"$f":"IF('1. Order'!M1349=\"\",\"\",'1. Order'!M1349)","v":""},{"$f":"IF('1. Order'!N1349=\"\",\"\",'1. Order'!N1349)","v":""},{"$f":"IF('1. Order'!O1349=\"\",\"\",'1. Order'!O1349)","v":{"$error":"#N/A"}},{"$f":"IF('1. Order'!P1349=\"\",\"\",'1. Order'!P1349)","v":{"$error":"#N/A"}},{"$f":"IF('1. Order'!Q1349=\"\",\"\",'1. Order'!Q1349)","v":""},{"$f":"IF('1. Order'!S1349=\"\",\"\",'1. Order'!S1349)","v":""},{"$f":"IF('1. Order'!T1349=\"\",\"\",'1. Order'!T1349)","v":""},{"$f":"IF('1. Order'!W1349=\"\",\"\",'1. Order'!W1349)","v":""},{"$f":"IF('1. Order'!X1349=\"\",\"\",'1. Order'!X1349)","v":""},{"$f":"IF('1. Order'!Y1349=\"\",\"\",'1. Order'!Y1349)","v":"EUR"},{"$f":"IF('1. Order'!Z1349=\"\",\"\",'1. Order'!Z1349)","v":""},{"$f":"IF('1. Order'!AA1349=\"\",\"\",'1. Order'!AA1349)","v":""},{"$f":"IF('1. Order'!AB1349=\"\",\"\",'1. Order'!AB1349)","v":""},null,{"$f":"IF('1. Order'!AT1349=\"\",\"\",'1. Order'!AT1349)","v":""},{"$f":"IF('1. Order'!AU1349=\"\",\"\",'1. Order'!AU1349)","v":""},null,null,null,null,null,null,null,{"$f":"IF('1. Order'!AY1349=\"\",\"\",'1. Order'!AY1349)","v":""},{"$f":"IF('1. Order'!AZ1349=\"\",\"\",'1. Order'!AZ1349)","v":""},{"$f":"IF('1. Order'!BA1349=\"\",\"\",'1. Order'!BA1349)","v":""},{"$f":"IF('1. Order'!BB1349=\"\",\"\",'1. Order'!BB1349)","v":""},{"$f":"IF('1. Order'!BD1349=\"\",\"\",'1. Order'!BD1349)","v":""},{"$f":"IF('1. Order'!BE1349=\"\",\"\",'1. Order'!BE1349)","v":""},{"$f":"IF('1. Order'!BF1349=\"\",\"\",'1. Order'!BF1349)","v":""},{"$f":"IF('1. Order'!BG1349=\"\",\"\",'1. Order'!BG1349)","v":""},{"$f":"IF('1. Order'!BH1349=\"\",\"\",'1. Order'!BH1349)","v":"ZWO"}]
[{"$f":"IF('1. Order'!F1350=\"\",\"\",'1. Order'!F1350)","v":{"$error":"#N/A"}},{"$f":"IF('1. Order'!G1350=\"\",\"\",'1. Order'!G1350)","v":""},{"$f":"IF('1. Order'!H1350=\"\",\"\",'1. Order'!H1350)","v":""},{"$f":"IF('1. Order'!I1350=\"\",\"\",'1. Order'!I1350)","v":""},{"$f":"IF('1. Order'!J1350=\"\",\"\",'1. Order'!J1350)","v":""},{"$f":"IF('1. Order'!K1350=\"\",\"\",'1. Order'!K1350)","v":""},{"$f":"IF('1. Order'!L1350=\"\",\"\",'1. Order'!L1350)","v":""},{"$f":"IF('1. Order'!M1350=\"\",\"\",'1. Order'!M1350)","v":""},{"$f":"IF('1. Order'!N1350=\"\",\"\",'1. Order'!N1350)","v":""},{"$f":"IF('1. Order'!O1350=\"\",\"\",'1. Order'!O1350)","v":{"$error":"#N/A"}},{"$f":"IF('1. Order'!P1350=\"\",\"\",'1. Order'!P1350)","v":{"$error":"#N/A"}},{"$f":"IF('1. Order'!Q1350=\"\",\"\",'1. Order'!Q1350)","v":""},{"$f":"IF('1. Order'!S1350=\"\",\"\",'1. Order'!S1350)","v":""},{"$f":"IF('1. Order'!T1350=\"\",\"\",'1. Order'!T1350)","v":""},{"$f":"IF('1. Order'!W1350=\"\",\"\",'1. Order'!W1350)","v":""},{"$f":"IF('1. Order'!X1350=\"\",\"\",'1. Order'!X1350)","v":""},{"$f":"IF('1. Order'!Y1350=\"\",\"\",'1. Order'!Y1350)","v":"EUR"},{"$f":"IF('1. Order'!Z1350=\"\",\"\",'1. Order'!Z1350)","v":""},{"$f":"IF('1. Order'!AA1350=\"\",\"\",'1. Order'!AA1350)","v":""},{"$f":"IF('1. Order'!AB1350=\"\",\"\",'1. Order'!AB1350)","v":""},null,{"$f":"IF('1. Order'!AT1350=\"\",\"\",'1. Order'!AT1350)","v":""},{"$f":"IF('1. Order'!AU1350=\"\",\"\",'1. Order'!AU1350)","v":""},null,null,null,null,null,null,null,{"$f":"IF('1. Order'!AY1350=\"\",\"\",'1. Order'!AY1350)","v":""},{"$f":"IF('1. Order'!AZ1350=\"\",\"\",'1. Order'!AZ1350)","v":""},{"$f":"IF('1. Order'!BA1350=\"\",\"\",'1. Order'!BA1350)","v":""},{"$f":"IF('1. Order'!BB1350=\"\",\"\",'1. Order'!BB1350)","v":""},{"$f":"IF('1. Order'!BD1350=\"\",\"\",'1. Order'!BD1350)","v":""},{"$f":"IF('1. Order'!BE1350=\"\",\"\",'1. Order'!BE1350)","v":""},{"$f":"IF('1. Order'!BF1350=\"\",\"\",'1. Order'!BF1350)","v":""},{"$f":"IF('1. Order'!BG1350=\"\",\"\",'1. Order'!BG1350)","v":""},{"$f":"IF('1. Order'!BH1350=\"\",\"\",'1. Order'!BH1350)","v":"ZWO"}]
[{"$f":"IF('1. Order'!F1351=\"\",\"\",'1. Order'!F1351)","v":{"$error":"#N/A"}},{"$f":"IF('1. Order'!G1351=\"\",\"\",'1. Order'!G1351)","v":""},{"$f":"IF('1. Order'!H1351=\"\",\"\",'1. Order'!H1351)","v":""},{"$f":"IF('1. Order'!I1351=\"\",\"\",'1. Order'!I1351)","v":""},{"$f":"IF('1. Order'!J1351=\"\",\"\",'1. Order'!J1351)","v":""},{"$f":"IF('1. Order'!K1351=\"\",\"\",'1. Order'!K1351)","v":""},{"$f":"IF('1. Order'!L1351=\"\",\"\",'1. Order'!L1351)","v":""},{"$f":"IF('1. Order'!M1351=\"\",\"\",'1. Order'!M1351)","v":""},{"$f":"IF('1. Order'!N1351=\"\",\"\",'1. Order'!N1351)","v":""},{"$f":"IF('1. Order'!O1351=\"\",\"\",'1. Order'!O1351)","v":{"$error":"#N/A"}},{"$f":"IF('1. Order'!P1351=\"\",\"\",'1. Order'!P1351)","v":{"$error":"#N/A"}},{"$f":"IF('1. Order'!Q1351=\"\",\"\",'1. Order'!Q1351)","v":""},{"$f":"IF('1. Order'!S1351=\"\",\"\",'1. Order'!S1351)","v":""},{"$f":"IF('1. Order'!T1351=\"\",\"\",'1. Order'!T1351)","v":""},{"$f":"IF('1. Order'!W1351=\"\",\"\",'1. Order'!W1351)","v":""},{"$f":"IF('1. Order'!X1351=\"\",\"\",'1. Order'!X1351)","v":""},{"$f":"IF('1. Order'!Y1351=\"\",\"\",'1. Order'!Y1351)","v":"EUR"},{"$f":"IF('1. Order'!Z1351=\"\",\"\",'1. Order'!Z1351)","v":""},{"$f":"IF('1. Order'!AA1351=\"\",\"\",'1. Order'!AA1351)","v":""},{"$f":"IF('1. Order'!AB1351=\"\",\"\",'1. Order'!AB1351)","v":""},null,{"$f":"IF('1. Order'!AT1351=\"\",\"\",'1. Order'!AT1351)","v":""},{"$f":"IF('1. Order'!AU1351=\"\",\"\",'1. Order'!AU1351)","v":""},null,null,null,null,null,null,null,{"$f":"IF('1. Order'!AY1351=\"\",\"\",'1. Order'!AY1351)","v":""},{"$f":"IF('1. Order'!AZ1351=\"\",\"\",'1. Order'!AZ1351)","v":""},{"$f":"IF('1. Order'!BA1351=\"\",\"\",'1. Order'!BA1351)","v":""},{"$f":"IF('1. Order'!BB1351=\"\",\"\",'1. Order'!BB1351)","v":""},{"$f":"IF('1. Order'!BD1351=\"\",\"\",'1. Order'!BD1351)","v":""},{"$f":"IF('1. Order'!BE1351=\"\",\"\",'1. Order'!BE1351)","v":""},{"$f":"IF('1. Order'!BF1351=\"\",\"\",'1. Order'!BF1351)","v":""},{"$f":"IF('1. Order'!BG1351=\"\",\"\",'1. Order'!BG1351)","v":""},{"$f":"IF('1. Order'!BH1351=\"\",\"\",'1. Order'!BH1351)","v":"ZWO"}]
[{"$f":"IF('1. Order'!F1352=\"\",\"\",'1. Order'!F1352)","v":{"$error":"#N/A"}},{"$f":"IF('1. Order'!G1352=\"\",\"\",'1. Order'!G1352)","v":""},{"$f":"IF('1. Order'!H1352=\"\",\"\",'1. Order'!H1352)","v":""},{"$f":"IF('1. Order'!I1352=\"\",\"\",'1. Order'!I1352)","v":""},{"$f":"IF('1. Order'!J1352=\"\",\"\",'1. Order'!J1352)","v":""},{"$f":"IF('1. Order'!K1352=\"\",\"\",'1. Order'!K1352)","v":""},{"$f":"IF('1. Order'!L1352=\"\",\"\",'1. Order'!L1352)","v":""},{"$f":"IF('1. Order'!M1352=\"\",\"\",'1. Order'!M1352)","v":""},{"$f":"IF('1. Order'!N1352=\"\",\"\",'1. Order'!N1352)","v":""},{"$f":"IF('1. Order'!O1352=\"\",\"\",'1. Order'!O1352)","v":{"$error":"#N/A"}},{"$f":"IF('1. Order'!P1352=\"\",\"\",'1. Order'!P1352)","v":{"$error":"#N/A"}},{"$f":"IF('1. Order'!Q1352=\"\",\"\",'1. Order'!Q1352)","v":""},{"$f":"IF('1. Order'!S1352=\"\",\"\",'1. Order'!S1352)","v":""},{"$f":"IF('1. Order'!T1352=\"\",\"\",'1. Order'!T1352)","v":""},{"$f":"IF('1. Order'!W1352=\"\",\"\",'1. Order'!W1352)","v":""},{"$f":"IF('1. Order'!X1352=\"\",\"\",'1. Order'!X1352)","v":""},{"$f":"IF('1. Order'!Y1352=\"\",\"\",'1. Order'!Y1352)","v":"EUR"},{"$f":"IF('1. Order'!Z1352=\"\",\"\",'1. Order'!Z1352)","v":""},{"$f":"IF('1. Order'!AA1352=\"\",\"\",'1. Order'!AA1352)","v":""},{"$f":"IF('1. Order'!AB1352=\"\",\"\",'1. Order'!AB1352)","v":""},null,{"$f":"IF('1. Order'!AT1352=\"\",\"\",'1. Order'!AT1352)","v":""},{"$f":"IF('1. Order'!AU1352=\"\",\"\",'1. Order'!AU1352)","v":""},null,null,null,null,null,null,null,{"$f":"IF('1. Order'!AY1352=\"\",\"\",'1. Order'!AY1352)","v":""},{"$f":"IF('1. Order'!AZ1352=\"\",\"\",'1. Order'!AZ1352)","v":""},{"$f":"IF('1. Order'!BA1352=\"\",\"\",'1. Order'!BA1352)","v":""},{"$f":"IF('1. Order'!BB1352=\"\",\"\",'1. Order'!BB1352)","v":""},{"$f":"IF('1. Order'!BD1352=\"\",\"\",'1. Order'!BD1352)","v":""},{"$f":"IF('1. Order'!BE1352=\"\",\"\",'1. Order'!BE1352)","v":""},{"$f":"IF('1. Order'!BF1352=\"\",\"\",'1. Order'!BF1352)","v":""},{"$f":"IF('1. Order'!BG1352=\"\",\"\",'1. Order'!BG1352)","v":""},{"$f":"IF('1. Order'!BH1352=\"\",\"\",'1. Order'!BH1352)","v":"ZWO"}]
[{"$f":"IF('1. Order'!F1353=\"\",\"\",'1. Order'!F1353)","v":{"$error":"#N/A"}},{"$f":"IF('1. Order'!G1353=\"\",\"\",'1. Order'!G1353)","v":""},{"$f":"IF('1. Order'!H1353=\"\",\"\",'1. Order'!H1353)","v":""},{"$f":"IF('1. Order'!I1353=\"\",\"\",'1. Order'!I1353)","v":""},{"$f":"IF('1. Order'!J1353=\"\",\"\",'1. Order'!J1353)","v":""},{"$f":"IF('1. Order'!K1353=\"\",\"\",'1. Order'!K1353)","v":""},{"$f":"IF('1. Order'!L1353=\"\",\"\",'1. Order'!L1353)","v":""},{"$f":"IF('1. Order'!M1353=\"\",\"\",'1. Order'!M1353)","v":""},{"$f":"IF('1. Order'!N1353=\"\",\"\",'1. Order'!N1353)","v":""},{"$f":"IF('1. Order'!O1353=\"\",\"\",'1. Order'!O1353)","v":{"$error":"#N/A"}},{"$f":"IF('1. Order'!P1353=\"\",\"\",'1. Order'!P1353)","v":{"$error":"#N/A"}},{"$f":"IF('1. Order'!Q1353=\"\",\"\",'1. Order'!Q1353)","v":""},{"$f":"IF('1. Order'!S1353=\"\",\"\",'1. Order'!S1353)","v":""},{"$f":"IF('1. Order'!T1353=\"\",\"\",'1. Order'!T1353)","v":""},{"$f":"IF('1. Order'!W1353=\"\",\"\",'1. Order'!W1353)","v":""},{"$f":"IF('1. Order'!X1353=\"\",\"\",'1. Order'!X1353)","v":""},{"$f":"IF('1. Order'!Y1353=\"\",\"\",'1. Order'!Y1353)","v":"EUR"},{"$f":"IF('1. Order'!Z1353=\"\",\"\",'1. Order'!Z1353)","v":""},{"$f":"IF('1. Order'!AA1353=\"\",\"\",'1. Order'!AA1353)","v":""},{"$f":"IF('1. Order'!AB1353=\"\",\"\",'1. Order'!AB1353)","v":""},null,{"$f":"IF('1. Order'!AT1353=\"\",\"\",'1. Order'!AT1353)","v":""},{"$f":"IF('1. Order'!AU1353=\"\",\"\",'1. Order'!AU1353)","v":""},null,null,null,null,null,null,null,{"$f":"IF('1. Order'!AY1353=\"\",\"\",'1. Order'!AY1353)","v":""},{"$f":"IF('1. Order'!AZ1353=\"\",\"\",'1. Order'!AZ1353)","v":""},{"$f":"IF('1. Order'!BA1353=\"\",\"\",'1. Order'!BA1353)","v":""},{"$f":"IF('1. Order'!BB1353=\"\",\"\",'1. Order'!BB1353)","v":""},{"$f":"IF('1. Order'!BD1353=\"\",\"\",'1. Order'!BD1353)","v":""},{"$f":"IF('1. Order'!BE1353=\"\",\"\",'1. Order'!BE1353)","v":""},{"$f":"IF('1. Order'!BF1353=\"\",\"\",'1. Order'!BF1353)","v":""},{"$f":"IF('1. Order'!BG1353=\"\",\"\",'1. Order'!BG1353)","v":""},{"$f":"IF('1. Order'!BH1353=\"\",\"\",'1. Order'!BH1353)","v":"ZWO"}]
[{"$f":"IF('1. Order'!F1354=\"\",\"\",'1. Order'!F1354)","v":{"$error":"#N/A"}},{"$f":"IF('1. Order'!G1354=\"\",\"\",'1. Order'!G1354)","v":""},{"$f":"IF('1. Order'!H1354=\"\",\"\",'1. Order'!H1354)","v":""},{"$f":"IF('1. Order'!I1354=\"\",\"\",'1. Order'!I1354)","v":""},{"$f":"IF('1. Order'!J1354=\"\",\"\",'1. Order'!J1354)","v":""},{"$f":"IF('1. Order'!K1354=\"\",\"\",'1. Order'!K1354)","v":""},{"$f":"IF('1. Order'!L1354=\"\",\"\",'1. Order'!L1354)","v":""},{"$f":"IF('1. Order'!M1354=\"\",\"\",'1. Order'!M1354)","v":""},{"$f":"IF('1. Order'!N1354=\"\",\"\",'1. Order'!N1354)","v":""},{"$f":"IF('1. Order'!O1354=\"\",\"\",'1. Order'!O1354)","v":{"$error":"#N/A"}},{"$f":"IF('1. Order'!P1354=\"\",\"\",'1. Order'!P1354)","v":{"$error":"#N/A"}},{"$f":"IF('1. Order'!Q1354=\"\",\"\",'1. Order'!Q1354)","v":""},{"$f":"IF('1. Order'!S1354=\"\",\"\",'1. Order'!S1354)","v":""},{"$f":"IF('1. Order'!T1354=\"\",\"\",'1. Order'!T1354)","v":""},{"$f":"IF('1. Order'!W1354=\"\",\"\",'1. Order'!W1354)","v":""},{"$f":"IF('1. Order'!X1354=\"\",\"\",'1. Order'!X1354)","v":""},{"$f":"IF('1. Order'!Y1354=\"\",\"\",'1. Order'!Y1354)","v":"EUR"},{"$f":"IF('1. Order'!Z1354=\"\",\"\",'1. Order'!Z1354)","v":""},{"$f":"IF('1. Order'!AA1354=\"\",\"\",'1. Order'!AA1354)","v":""},{"$f":"IF('1. Order'!AB1354=\"\",\"\",'1. Order'!AB1354)","v":""},null,{"$f":"IF('1. Order'!AT1354=\"\",\"\",'1. Order'!AT1354)","v":""},{"$f":"IF('1. Order'!AU1354=\"\",\"\",'1. Order'!AU1354)","v":""},null,null,null,null,null,null,null,{"$f":"IF('1. Order'!AY1354=\"\",\"\",'1. Order'!AY1354)","v":""},{"$f":"IF('1. Order'!AZ1354=\"\",\"\",'1. Order'!AZ1354)","v":""},{"$f":"IF('1. Order'!BA1354=\"\",\"\",'1. Order'!BA1354)","v":""},{"$f":"IF('1. Order'!BB1354=\"\",\"\",'1. Order'!BB1354)","v":""},{"$f":"IF('1. Order'!BD1354=\"\",\"\",'1. Order'!BD1354)","v":""},{"$f":"IF('1. Order'!BE1354=\"\",\"\",'1. Order'!BE1354)","v":""},{"$f":"IF('1. Order'!BF1354=\"\",\"\",'1. Order'!BF1354)","v":""},{"$f":"IF('1. Order'!BG1354=\"\",\"\",'1. Order'!BG1354)","v":""},{"$f":"IF('1. Order'!BH1354=\"\",\"\",'1. Order'!BH1354)","v":"ZWO"}]
[{"$f":"IF('1. Order'!F1355=\"\",\"\",'1. Order'!F1355)","v":{"$error":"#N/A"}},{"$f":"IF('1. Order'!G1355=\"\",\"\",'1. Order'!G1355)","v":""},{"$f":"IF('1. Order'!H1355=\"\",\"\",'1. Order'!H1355)","v":""},{"$f":"IF('1. Order'!I1355=\"\",\"\",'1. Order'!I1355)","v":""},{"$f":"IF('1. Order'!J1355=\"\",\"\",'1. Order'!J1355)","v":""},{"$f":"IF('1. Order'!K1355=\"\",\"\",'1. Order'!K1355)","v":""},{"$f":"IF('1. Order'!L1355=\"\",\"\",'1. Order'!L1355)","v":""},{"$f":"IF('1. Order'!M1355=\"\",\"\",'1. Order'!M1355)","v":""},{"$f":"IF('1. Order'!N1355=\"\",\"\",'1. Order'!N1355)","v":""},{"$f":"IF('1. Order'!O1355=\"\",\"\",'1. Order'!O1355)","v":{"$error":"#N/A"}},{"$f":"IF('1. Order'!P1355=\"\",\"\",'1. Order'!P1355)","v":{"$error":"#N/A"}},{"$f":"IF('1. Order'!Q1355=\"\",\"\",'1. Order'!Q1355)","v":""},{"$f":"IF('1. Order'!S1355=\"\",\"\",'1. Order'!S1355)","v":""},{"$f":"IF('1. Order'!T1355=\"\",\"\",'1. Order'!T1355)","v":""},{"$f":"IF('1. Order'!W1355=\"\",\"\",'1. Order'!W1355)","v":""},{"$f":"IF('1. Order'!X1355=\"\",\"\",'1. Order'!X1355)","v":""},{"$f":"IF('1. Order'!Y1355=\"\",\"\",'1. Order'!Y1355)","v":"EUR"},{"$f":"IF('1. Order'!Z1355=\"\",\"\",'1. Order'!Z1355)","v":""},{"$f":"IF('1. Order'!AA1355=\"\",\"\",'1. Order'!AA1355)","v":""},{"$f":"IF('1. Order'!AB1355=\"\",\"\",'1. Order'!AB1355)","v":""},null,{"$f":"IF('1. Order'!AT1355=\"\",\"\",'1. Order'!AT1355)","v":""},{"$f":"IF('1. Order'!AU1355=\"\",\"\",'1. Order'!AU1355)","v":""},null,null,null,null,null,null,null,{"$f":"IF('1. Order'!AY1355=\"\",\"\",'1. Order'!AY1355)","v":""},{"$f":"IF('1. Order'!AZ1355=\"\",\"\",'1. Order'!AZ1355)","v":""},{"$f":"IF('1. Order'!BA1355=\"\",\"\",'1. Order'!BA1355)","v":""},{"$f":"IF('1. Order'!BB1355=\"\",\"\",'1. Order'!BB1355)","v":""},{"$f":"IF('1. Order'!BD1355=\"\",\"\",'1. Order'!BD1355)","v":""},{"$f":"IF('1. Order'!BE1355=\"\",\"\",'1. Order'!BE1355)","v":""},{"$f":"IF('1. Order'!BF1355=\"\",\"\",'1. Order'!BF1355)","v":""},{"$f":"IF('1. Order'!BG1355=\"\",\"\",'1. Order'!BG1355)","v":""},{"$f":"IF('1. Order'!BH1355=\"\",\"\",'1. Order'!BH1355)","v":"ZWO"}]
[{"$f":"IF('1. Order'!F1356=\"\",\"\",'1. Order'!F1356)","v":{"$error":"#N/A"}},{"$f":"IF('1. Order'!G1356=\"\",\"\",'1. Order'!G1356)","v":""},{"$f":"IF('1. Order'!H1356=\"\",\"\",'1. Order'!H1356)","v":""},{"$f":"IF('1. Order'!I1356=\"\",\"\",'1. Order'!I1356)","v":""},{"$f":"IF('1. Order'!J1356=\"\",\"\",'1. Order'!J1356)","v":""},{"$f":"IF('1. Order'!K1356=\"\",\"\",'1. Order'!K1356)","v":""},{"$f":"IF('1. Order'!L1356=\"\",\"\",'1. Order'!L1356)","v":""},{"$f":"IF('1. Order'!M1356=\"\",\"\",'1. Order'!M1356)","v":""},{"$f":"IF('1. Order'!N1356=\"\",\"\",'1. Order'!N1356)","v":""},{"$f":"IF('1. Order'!O1356=\"\",\"\",'1. Order'!O1356)","v":{"$error":"#N/A"}},{"$f":"IF('1. Order'!P1356=\"\",\"\",'1. Order'!P1356)","v":{"$error":"#N/A"}},{"$f":"IF('1. Order'!Q1356=\"\",\"\",'1. Order'!Q1356)","v":""},{"$f":"IF('1. Order'!S1356=\"\",\"\",'1. Order'!S1356)","v":""},{"$f":"IF('1. Order'!T1356=\"\",\"\",'1. Order'!T1356)","v":""},{"$f":"IF('1. Order'!W1356=\"\",\"\",'1. Order'!W1356)","v":""},{"$f":"IF('1. Order'!X1356=\"\",\"\",'1. Order'!X1356)","v":""},{"$f":"IF('1. Order'!Y1356=\"\",\"\",'1. Order'!Y1356)","v":"EUR"},{"$f":"IF('1. Order'!Z1356=\"\",\"\",'1. Order'!Z1356)","v":""},{"$f":"IF('1. Order'!AA1356=\"\",\"\",'1. Order'!AA1356)","v":""},{"$f":"IF('1. Order'!AB1356=\"\",\"\",'1. Order'!AB1356)","v":""},null,{"$f":"IF('1. Order'!AT1356=\"\",\"\",'1. Order'!AT1356)","v":""},{"$f":"IF('1. Order'!AU1356=\"\",\"\",'1. Order'!AU1356)","v":""},null,null,null,null,null,null,null,{"$f":"IF('1. Order'!AY1356=\"\",\"\",'1. Order'!AY1356)","v":""},{"$f":"IF('1. Order'!AZ1356=\"\",\"\",'1. Order'!AZ1356)","v":""},{"$f":"IF('1. Order'!BA1356=\"\",\"\",'1. Order'!BA1356)","v":""},{"$f":"IF('1. Order'!BB1356=\"\",\"\",'1. Order'!BB1356)","v":""},{"$f":"IF('1. Order'!BD1356=\"\",\"\",'1. Order'!BD1356)","v":""},{"$f":"IF('1. Order'!BE1356=\"\",\"\",'1. Order'!BE1356)","v":""},{"$f":"IF('1. Order'!BF1356=\"\",\"\",'1. Order'!BF1356)","v":""},{"$f":"IF('1. Order'!BG1356=\"\",\"\",'1. Order'!BG1356)","v":""},{"$f":"IF('1. Order'!BH1356=\"\",\"\",'1. Order'!BH1356)","v":"ZWO"}]
[{"$f":"IF('1. Order'!F1357=\"\",\"\",'1. Order'!F1357)","v":{"$error":"#N/A"}},{"$f":"IF('1. Order'!G1357=\"\",\"\",'1. Order'!G1357)","v":""},{"$f":"IF('1. Order'!H1357=\"\",\"\",'1. Order'!H1357)","v":""},{"$f":"IF('1. Order'!I1357=\"\",\"\",'1. Order'!I1357)","v":""},{"$f":"IF('1. Order'!J1357=\"\",\"\",'1. Order'!J1357)","v":""},{"$f":"IF('1. Order'!K1357=\"\",\"\",'1. Order'!K1357)","v":""},{"$f":"IF('1. Order'!L1357=\"\",\"\",'1. Order'!L1357)","v":""},{"$f":"IF('1. Order'!M1357=\"\",\"\",'1. Order'!M1357)","v":""},{"$f":"IF('1. Order'!N1357=\"\",\"\",'1. Order'!N1357)","v":""},{"$f":"IF('1. Order'!O1357=\"\",\"\",'1. Order'!O1357)","v":{"$error":"#N/A"}},{"$f":"IF('1. Order'!P1357=\"\",\"\",'1. Order'!P1357)","v":{"$error":"#N/A"}},{"$f":"IF('1. Order'!Q1357=\"\",\"\",'1. Order'!Q1357)","v":""},{"$f":"IF('1. Order'!S1357=\"\",\"\",'1. Order'!S1357)","v":""},{"$f":"IF('1. Order'!T1357=\"\",\"\",'1. Order'!T1357)","v":""},{"$f":"IF('1. Order'!W1357=\"\",\"\",'1. Order'!W1357)","v":""},{"$f":"IF('1. Order'!X1357=\"\",\"\",'1. Order'!X1357)","v":""},{"$f":"IF('1. Order'!Y1357=\"\",\"\",'1. Order'!Y1357)","v":"EUR"},{"$f":"IF('1. Order'!Z1357=\"\",\"\",'1. Order'!Z1357)","v":""},{"$f":"IF('1. Order'!AA1357=\"\",\"\",'1. Order'!AA1357)","v":""},{"$f":"IF('1. Order'!AB1357=\"\",\"\",'1. Order'!AB1357)","v":""},null,{"$f":"IF('1. Order'!AT1357=\"\",\"\",'1. Order'!AT1357)","v":""},{"$f":"IF('1. Order'!AU1357=\"\",\"\",'1. Order'!AU1357)","v":""},null,null,null,null,null,null,null,{"$f":"IF('1. Order'!AY1357=\"\",\"\",'1. Order'!AY1357)","v":""},{"$f":"IF('1. Order'!AZ1357=\"\",\"\",'1. Order'!AZ1357)","v":""},{"$f":"IF('1. Order'!BA1357=\"\",\"\",'1. Order'!BA1357)","v":""},{"$f":"IF('1. Order'!BB1357=\"\",\"\",'1. Order'!BB1357)","v":""},{"$f":"IF('1. Order'!BD1357=\"\",\"\",'1. Order'!BD1357)","v":""},{"$f":"IF('1. Order'!BE1357=\"\",\"\",'1. Order'!BE1357)","v":""},{"$f":"IF('1. Order'!BF1357=\"\",\"\",'1. Order'!BF1357)","v":""},{"$f":"IF('1. Order'!BG1357=\"\",\"\",'1. Order'!BG1357)","v":""},{"$f":"IF('1. Order'!BH1357=\"\",\"\",'1. Order'!BH1357)","v":"ZWO"}]
[{"$f":"IF('1. Order'!F1358=\"\",\"\",'1. Order'!F1358)","v":{"$error":"#N/A"}},{"$f":"IF('1. Order'!G1358=\"\",\"\",'1. Order'!G1358)","v":""},{"$f":"IF('1. Order'!H1358=\"\",\"\",'1. Order'!H1358)","v":""},{"$f":"IF('1. Order'!I1358=\"\",\"\",'1. Order'!I1358)","v":""},{"$f":"IF('1. Order'!J1358=\"\",\"\",'1. Order'!J1358)","v":""},{"$f":"IF('1. Order'!K1358=\"\",\"\",'1. Order'!K1358)","v":""},{"$f":"IF('1. Order'!L1358=\"\",\"\",'1. Order'!L1358)","v":""},{"$f":"IF('1. Order'!M1358=\"\",\"\",'1. Order'!M1358)","v":""},{"$f":"IF('1. Order'!N1358=\"\",\"\",'1. Order'!N1358)","v":""},{"$f":"IF('1. Order'!O1358=\"\",\"\",'1. Order'!O1358)","v":{"$error":"#N/A"}},{"$f":"IF('1. Order'!P1358=\"\",\"\",'1. Order'!P1358)","v":{"$error":"#N/A"}},{"$f":"IF('1. Order'!Q1358=\"\",\"\",'1. Order'!Q1358)","v":""},{"$f":"IF('1. Order'!S1358=\"\",\"\",'1. Order'!S1358)","v":""},{"$f":"IF('1. Order'!T1358=\"\",\"\",'1. Order'!T1358)","v":""},{"$f":"IF('1. Order'!W1358=\"\",\"\",'1. Order'!W1358)","v":""},{"$f":"IF('1. Order'!X1358=\"\",\"\",'1. Order'!X1358)","v":""},{"$f":"IF('1. Order'!Y1358=\"\",\"\",'1. Order'!Y1358)","v":"EUR"},{"$f":"IF('1. Order'!Z1358=\"\",\"\",'1. Order'!Z1358)","v":""},{"$f":"IF('1. Order'!AA1358=\"\",\"\",'1. Order'!AA1358)","v":""},{"$f":"IF('1. Order'!AB1358=\"\",\"\",'1. Order'!AB1358)","v":""},null,{"$f":"IF('1. Order'!AT1358=\"\",\"\",'1. Order'!AT1358)","v":""},{"$f":"IF('1. Order'!AU1358=\"\",\"\",'1. Order'!AU1358)","v":""},null,null,null,null,null,null,null,{"$f":"IF('1. Order'!AY1358=\"\",\"\",'1. Order'!AY1358)","v":""},{"$f":"IF('1. Order'!AZ1358=\"\",\"\",'1. Order'!AZ1358)","v":""},{"$f":"IF('1. Order'!BA1358=\"\",\"\",'1. Order'!BA1358)","v":""},{"$f":"IF('1. Order'!BB1358=\"\",\"\",'1. Order'!BB1358)","v":""},{"$f":"IF('1. Order'!BD1358=\"\",\"\",'1. Order'!BD1358)","v":""},{"$f":"IF('1. Order'!BE1358=\"\",\"\",'1. Order'!BE1358)","v":""},{"$f":"IF('1. Order'!BF1358=\"\",\"\",'1. Order'!BF1358)","v":""},{"$f":"IF('1. Order'!BG1358=\"\",\"\",'1. Order'!BG1358)","v":""},{"$f":"IF('1. Order'!BH1358=\"\",\"\",'1. Order'!BH1358)","v":"ZWO"}]
[{"$f":"IF('1. Order'!F1359=\"\",\"\",'1. Order'!F1359)","v":{"$error":"#N/A"}},{"$f":"IF('1. Order'!G1359=\"\",\"\",'1. Order'!G1359)","v":""},{"$f":"IF('1. Order'!H1359=\"\",\"\",'1. Order'!H1359)","v":""},{"$f":"IF('1. Order'!I1359=\"\",\"\",'1. Order'!I1359)","v":""},{"$f":"IF('1. Order'!J1359=\"\",\"\",'1. Order'!J1359)","v":""},{"$f":"IF('1. Order'!K1359=\"\",\"\",'1. Order'!K1359)","v":""},{"$f":"IF('1. Order'!L1359=\"\",\"\",'1. Order'!L1359)","v":""},{"$f":"IF('1. Order'!M1359=\"\",\"\",'1. Order'!M1359)","v":""},{"$f":"IF('1. Order'!N1359=\"\",\"\",'1. Order'!N1359)","v":""},{"$f":"IF('1. Order'!O1359=\"\",\"\",'1. Order'!O1359)","v":{"$error":"#N/A"}},{"$f":"IF('1. Order'!P1359=\"\",\"\",'1. Order'!P1359)","v":{"$error":"#N/A"}},{"$f":"IF('1. Order'!Q1359=\"\",\"\",'1. Order'!Q1359)","v":""},{"$f":"IF('1. Order'!S1359=\"\",\"\",'1. Order'!S1359)","v":""},{"$f":"IF('1. Order'!T1359=\"\",\"\",'1. Order'!T1359)","v":""},{"$f":"IF('1. Order'!W1359=\"\",\"\",'1. Order'!W1359)","v":""},{"$f":"IF('1. Order'!X1359=\"\",\"\",'1. Order'!X1359)","v":""},{"$f":"IF('1. Order'!Y1359=\"\",\"\",'1. Order'!Y1359)","v":"EUR"},{"$f":"IF('1. Order'!Z1359=\"\",\"\",'1. Order'!Z1359)","v":""},{"$f":"IF('1. Order'!AA1359=\"\",\"\",'1. Order'!AA1359)","v":""},{"$f":"IF('1. Order'!AB1359=\"\",\"\",'1. Order'!AB1359)","v":""},null,{"$f":"IF('1. Order'!AT1359=\"\",\"\",'1. Order'!AT1359)","v":""},{"$f":"IF('1. Order'!AU1359=\"\",\"\",'1. Order'!AU1359)","v":""},null,null,null,null,null,null,null,{"$f":"IF('1. Order'!AY1359=\"\",\"\",'1. Order'!AY1359)","v":""},{"$f":"IF('1. Order'!AZ1359=\"\",\"\",'1. Order'!AZ1359)","v":""},{"$f":"IF('1. Order'!BA1359=\"\",\"\",'1. Order'!BA1359)","v":""},{"$f":"IF('1. Order'!BB1359=\"\",\"\",'1. Order'!BB1359)","v":""},{"$f":"IF('1. Order'!BD1359=\"\",\"\",'1. Order'!BD1359)","v":""},{"$f":"IF('1. Order'!BE1359=\"\",\"\",'1. Order'!BE1359)","v":""},{"$f":"IF('1. Order'!BF1359=\"\",\"\",'1. Order'!BF1359)","v":""},{"$f":"IF('1. Order'!BG1359=\"\",\"\",'1. Order'!BG1359)","v":""},{"$f":"IF('1. Order'!BH1359=\"\",\"\",'1. Order'!BH1359)","v":"ZWO"}]
[{"$f":"IF('1. Order'!F1360=\"\",\"\",'1. Order'!F1360)","v":{"$error":"#N/A"}},{"$f":"IF('1. Order'!G1360=\"\",\"\",'1. Order'!G1360)","v":""},{"$f":"IF('1. Order'!H1360=\"\",\"\",'1. Order'!H1360)","v":""},{"$f":"IF('1. Order'!I1360=\"\",\"\",'1. Order'!I1360)","v":""},{"$f":"IF('1. Order'!J1360=\"\",\"\",'1. Order'!J1360)","v":""},{"$f":"IF('1. Order'!K1360=\"\",\"\",'1. Order'!K1360)","v":""},{"$f":"IF('1. Order'!L1360=\"\",\"\",'1. Order'!L1360)","v":""},{"$f":"IF('1. Order'!M1360=\"\",\"\",'1. Order'!M1360)","v":""},{"$f":"IF('1. Order'!N1360=\"\",\"\",'1. Order'!N1360)","v":""},{"$f":"IF('1. Order'!O1360=\"\",\"\",'1. Order'!O1360)","v":{"$error":"#N/A"}},{"$f":"IF('1. Order'!P1360=\"\",\"\",'1. Order'!P1360)","v":{"$error":"#N/A"}},{"$f":"IF('1. Order'!Q1360=\"\",\"\",'1. Order'!Q1360)","v":""},{"$f":"IF('1. Order'!S1360=\"\",\"\",'1. Order'!S1360)","v":""},{"$f":"IF('1. Order'!T1360=\"\",\"\",'1. Order'!T1360)","v":""},{"$f":"IF('1. Order'!W1360=\"\",\"\",'1. Order'!W1360)","v":""},{"$f":"IF('1. Order'!X1360=\"\",\"\",'1. Order'!X1360)","v":""},{"$f":"IF('1. Order'!Y1360=\"\",\"\",'1. Order'!Y1360)","v":"EUR"},{"$f":"IF('1. Order'!Z1360=\"\",\"\",'1. Order'!Z1360)","v":""},{"$f":"IF('1. Order'!AA1360=\"\",\"\",'1. Order'!AA1360)","v":""},{"$f":"IF('1. Order'!AB1360=\"\",\"\",'1. Order'!AB1360)","v":""},null,{"$f":"IF('1. Order'!AT1360=\"\",\"\",'1. Order'!AT1360)","v":""},{"$f":"IF('1. Order'!AU1360=\"\",\"\",'1. Order'!AU1360)","v":""},null,null,null,null,null,null,null,{"$f":"IF('1. Order'!AY1360=\"\",\"\",'1. Order'!AY1360)","v":""},{"$f":"IF('1. Order'!AZ1360=\"\",\"\",'1. Order'!AZ1360)","v":""},{"$f":"IF('1. Order'!BA1360=\"\",\"\",'1. Order'!BA1360)","v":""},{"$f":"IF('1. Order'!BB1360=\"\",\"\",'1. Order'!BB1360)","v":""},{"$f":"IF('1. Order'!BD1360=\"\",\"\",'1. Order'!BD1360)","v":""},{"$f":"IF('1. Order'!BE1360=\"\",\"\",'1. Order'!BE1360)","v":""},{"$f":"IF('1. Order'!BF1360=\"\",\"\",'1. Order'!BF1360)","v":""},{"$f":"IF('1. Order'!BG1360=\"\",\"\",'1. Order'!BG1360)","v":""},{"$f":"IF('1. Order'!BH1360=\"\",\"\",'1. Order'!BH1360)","v":"ZWO"}]
[{"$f":"IF('1. Order'!F1361=\"\",\"\",'1. Order'!F1361)","v":{"$error":"#N/A"}},{"$f":"IF('1. Order'!G1361=\"\",\"\",'1. Order'!G1361)","v":""},{"$f":"IF('1. Order'!H1361=\"\",\"\",'1. Order'!H1361)","v":""},{"$f":"IF('1. Order'!I1361=\"\",\"\",'1. Order'!I1361)","v":""},{"$f":"IF('1. Order'!J1361=\"\",\"\",'1. Order'!J1361)","v":""},{"$f":"IF('1. Order'!K1361=\"\",\"\",'1. Order'!K1361)","v":""},{"$f":"IF('1. Order'!L1361=\"\",\"\",'1. Order'!L1361)","v":""},{"$f":"IF('1. Order'!M1361=\"\",\"\",'1. Order'!M1361)","v":""},{"$f":"IF('1. Order'!N1361=\"\",\"\",'1. Order'!N1361)","v":""},{"$f":"IF('1. Order'!O1361=\"\",\"\",'1. Order'!O1361)","v":{"$error":"#N/A"}},{"$f":"IF('1. Order'!P1361=\"\",\"\",'1. Order'!P1361)","v":{"$error":"#N/A"}},{"$f":"IF('1. Order'!Q1361=\"\",\"\",'1. Order'!Q1361)","v":""},{"$f":"IF('1. Order'!S1361=\"\",\"\",'1. Order'!S1361)","v":""},{"$f":"IF('1. Order'!T1361=\"\",\"\",'1. Order'!T1361)","v":""},{"$f":"IF('1. Order'!W1361=\"\",\"\",'1. Order'!W1361)","v":""},{"$f":"IF('1. Order'!X1361=\"\",\"\",'1. Order'!X1361)","v":""},{"$f":"IF('1. Order'!Y1361=\"\",\"\",'1. Order'!Y1361)","v":"EUR"},{"$f":"IF('1. Order'!Z1361=\"\",\"\",'1. Order'!Z1361)","v":""},{"$f":"IF('1. Order'!AA1361=\"\",\"\",'1. Order'!AA1361)","v":""},{"$f":"IF('1. Order'!AB1361=\"\",\"\",'1. Order'!AB1361)","v":""},null,{"$f":"IF('1. Order'!AT1361=\"\",\"\",'1. Order'!AT1361)","v":""},{"$f":"IF('1. Order'!AU1361=\"\",\"\",'1. Order'!AU1361)","v":""},null,null,null,null,null,null,null,{"$f":"IF('1. Order'!AY1361=\"\",\"\",'1. Order'!AY1361)","v":""},{"$f":"IF('1. Order'!AZ1361=\"\",\"\",'1. Order'!AZ1361)","v":""},{"$f":"IF('1. Order'!BA1361=\"\",\"\",'1. Order'!BA1361)","v":""},{"$f":"IF('1. Order'!BB1361=\"\",\"\",'1. Order'!BB1361)","v":""},{"$f":"IF('1. Order'!BD1361=\"\",\"\",'1. Order'!BD1361)","v":""},{"$f":"IF('1. Order'!BE1361=\"\",\"\",'1. Order'!BE1361)","v":""},{"$f":"IF('1. Order'!BF1361=\"\",\"\",'1. Order'!BF1361)","v":""},{"$f":"IF('1. Order'!BG1361=\"\",\"\",'1. Order'!BG1361)","v":""},{"$f":"IF('1. Order'!BH1361=\"\",\"\",'1. Order'!BH1361)","v":"ZWO"}]
[{"$f":"IF('1. Order'!F1362=\"\",\"\",'1. Order'!F1362)","v":{"$error":"#N/A"}},{"$f":"IF('1. Order'!G1362=\"\",\"\",'1. Order'!G1362)","v":""},{"$f":"IF('1. Order'!H1362=\"\",\"\",'1. Order'!H1362)","v":""},{"$f":"IF('1. Order'!I1362=\"\",\"\",'1. Order'!I1362)","v":""},{"$f":"IF('1. Order'!J1362=\"\",\"\",'1. Order'!J1362)","v":""},{"$f":"IF('1. Order'!K1362=\"\",\"\",'1. Order'!K1362)","v":""},{"$f":"IF('1. Order'!L1362=\"\",\"\",'1. Order'!L1362)","v":""},{"$f":"IF('1. Order'!M1362=\"\",\"\",'1. Order'!M1362)","v":""},{"$f":"IF('1. Order'!N1362=\"\",\"\",'1. Order'!N1362)","v":""},{"$f":"IF('1. Order'!O1362=\"\",\"\",'1. Order'!O1362)","v":{"$error":"#N/A"}},{"$f":"IF('1. Order'!P1362=\"\",\"\",'1. Order'!P1362)","v":{"$error":"#N/A"}},{"$f":"IF('1. Order'!Q1362=\"\",\"\",'1. Order'!Q1362)","v":""},{"$f":"IF('1. Order'!S1362=\"\",\"\",'1. Order'!S1362)","v":""},{"$f":"IF('1. Order'!T1362=\"\",\"\",'1. Order'!T1362)","v":""},{"$f":"IF('1. Order'!W1362=\"\",\"\",'1. Order'!W1362)","v":""},{"$f":"IF('1. Order'!X1362=\"\",\"\",'1. Order'!X1362)","v":""},{"$f":"IF('1. Order'!Y1362=\"\",\"\",'1. Order'!Y1362)","v":"EUR"},{"$f":"IF('1. Order'!Z1362=\"\",\"\",'1. Order'!Z1362)","v":""},{"$f":"IF('1. Order'!AA1362=\"\",\"\",'1. Order'!AA1362)","v":""},{"$f":"IF('1. Order'!AB1362=\"\",\"\",'1. Order'!AB1362)","v":""},null,{"$f":"IF('1. Order'!AT1362=\"\",\"\",'1. Order'!AT1362)","v":""},{"$f":"IF('1. Order'!AU1362=\"\",\"\",'1. Order'!AU1362)","v":""},null,null,null,null,null,null,null,{"$f":"IF('1. Order'!AY1362=\"\",\"\",'1. Order'!AY1362)","v":""},{"$f":"IF('1. Order'!AZ1362=\"\",\"\",'1. Order'!AZ1362)","v":""},{"$f":"IF('1. Order'!BA1362=\"\",\"\",'1. Order'!BA1362)","v":""},{"$f":"IF('1. Order'!BB1362=\"\",\"\",'1. Order'!BB1362)","v":""},{"$f":"IF('1. Order'!BD1362=\"\",\"\",'1. Order'!BD1362)","v":""},{"$f":"IF('1. Order'!BE1362=\"\",\"\",'1. Order'!BE1362)","v":""},{"$f":"IF('1. Order'!BF1362=\"\",\"\",'1. Order'!BF1362)","v":""},{"$f":"IF('1. Order'!BG1362=\"\",\"\",'1. Order'!BG1362)","v":""},{"$f":"IF('1. Order'!BH1362=\"\",\"\",'1. Order'!BH1362)","v":"ZWO"}]
[{"$f":"IF('1. Order'!F1363=\"\",\"\",'1. Order'!F1363)","v":{"$error":"#N/A"}},{"$f":"IF('1. Order'!G1363=\"\",\"\",'1. Order'!G1363)","v":""},{"$f":"IF('1. Order'!H1363=\"\",\"\",'1. Order'!H1363)","v":""},{"$f":"IF('1. Order'!I1363=\"\",\"\",'1. Order'!I1363)","v":""},{"$f":"IF('1. Order'!J1363=\"\",\"\",'1. Order'!J1363)","v":""},{"$f":"IF('1. Order'!K1363=\"\",\"\",'1. Order'!K1363)","v":""},{"$f":"IF('1. Order'!L1363=\"\",\"\",'1. Order'!L1363)","v":""},{"$f":"IF('1. Order'!M1363=\"\",\"\",'1. Order'!M1363)","v":""},{"$f":"IF('1. Order'!N1363=\"\",\"\",'1. Order'!N1363)","v":""},{"$f":"IF('1. Order'!O1363=\"\",\"\",'1. Order'!O1363)","v":{"$error":"#N/A"}},{"$f":"IF('1. Order'!P1363=\"\",\"\",'1. Order'!P1363)","v":{"$error":"#N/A"}},{"$f":"IF('1. Order'!Q1363=\"\",\"\",'1. Order'!Q1363)","v":""},{"$f":"IF('1. Order'!S1363=\"\",\"\",'1. Order'!S1363)","v":""},{"$f":"IF('1. Order'!T1363=\"\",\"\",'1. Order'!T1363)","v":""},{"$f":"IF('1. Order'!W1363=\"\",\"\",'1. Order'!W1363)","v":""},{"$f":"IF('1. Order'!X1363=\"\",\"\",'1. Order'!X1363)","v":""},{"$f":"IF('1. Order'!Y1363=\"\",\"\",'1. Order'!Y1363)","v":"EUR"},{"$f":"IF('1. Order'!Z1363=\"\",\"\",'1. Order'!Z1363)","v":""},{"$f":"IF('1. Order'!AA1363=\"\",\"\",'1. Order'!AA1363)","v":""},{"$f":"IF('1. Order'!AB1363=\"\",\"\",'1. Order'!AB1363)","v":""},null,{"$f":"IF('1. Order'!AT1363=\"\",\"\",'1. Order'!AT1363)","v":""},{"$f":"IF('1. Order'!AU1363=\"\",\"\",'1. Order'!AU1363)","v":""},null,null,null,null,null,null,null,{"$f":"IF('1. Order'!AY1363=\"\",\"\",'1. Order'!AY1363)","v":""},{"$f":"IF('1. Order'!AZ1363=\"\",\"\",'1. Order'!AZ1363)","v":""},{"$f":"IF('1. Order'!BA1363=\"\",\"\",'1. Order'!BA1363)","v":""},{"$f":"IF('1. Order'!BB1363=\"\",\"\",'1. Order'!BB1363)","v":""},{"$f":"IF('1. Order'!BD1363=\"\",\"\",'1. Order'!BD1363)","v":""},{"$f":"IF('1. Order'!BE1363=\"\",\"\",'1. Order'!BE1363)","v":""},{"$f":"IF('1. Order'!BF1363=\"\",\"\",'1. Order'!BF1363)","v":""},{"$f":"IF('1. Order'!BG1363=\"\",\"\",'1. Order'!BG1363)","v":""},{"$f":"IF('1. Order'!BH1363=\"\",\"\",'1. Order'!BH1363)","v":"ZWO"}]
[{"$f":"IF('1. Order'!F1364=\"\",\"\",'1. Order'!F1364)","v":{"$error":"#N/A"}},{"$f":"IF('1. Order'!G1364=\"\",\"\",'1. Order'!G1364)","v":""},{"$f":"IF('1. Order'!H1364=\"\",\"\",'1. Order'!H1364)","v":""},{"$f":"IF('1. Order'!I1364=\"\",\"\",'1. Order'!I1364)","v":""},{"$f":"IF('1. Order'!J1364=\"\",\"\",'1. Order'!J1364)","v":""},{"$f":"IF('1. Order'!K1364=\"\",\"\",'1. Order'!K1364)","v":""},{"$f":"IF('1. Order'!L1364=\"\",\"\",'1. Order'!L1364)","v":""},{"$f":"IF('1. Order'!M1364=\"\",\"\",'1. Order'!M1364)","v":""},{"$f":"IF('1. Order'!N1364=\"\",\"\",'1. Order'!N1364)","v":""},{"$f":"IF('1. Order'!O1364=\"\",\"\",'1. Order'!O1364)","v":{"$error":"#N/A"}},{"$f":"IF('1. Order'!P1364=\"\",\"\",'1. Order'!P1364)","v":{"$error":"#N/A"}},{"$f":"IF('1. Order'!Q1364=\"\",\"\",'1. Order'!Q1364)","v":""},{"$f":"IF('1. Order'!S1364=\"\",\"\",'1. Order'!S1364)","v":""},{"$f":"IF('1. Order'!T1364=\"\",\"\",'1. Order'!T1364)","v":""},{"$f":"IF('1. Order'!W1364=\"\",\"\",'1. Order'!W1364)","v":""},{"$f":"IF('1. Order'!X1364=\"\",\"\",'1. Order'!X1364)","v":""},{"$f":"IF('1. Order'!Y1364=\"\",\"\",'1. Order'!Y1364)","v":"EUR"},{"$f":"IF('1. Order'!Z1364=\"\",\"\",'1. Order'!Z1364)","v":""},{"$f":"IF('1. Order'!AA1364=\"\",\"\",'1. Order'!AA1364)","v":""},{"$f":"IF('1. Order'!AB1364=\"\",\"\",'1. Order'!AB1364)","v":""},null,{"$f":"IF('1. Order'!AT1364=\"\",\"\",'1. Order'!AT1364)","v":""},{"$f":"IF('1. Order'!AU1364=\"\",\"\",'1. Order'!AU1364)","v":""},null,null,null,null,null,null,null,{"$f":"IF('1. Order'!AY1364=\"\",\"\",'1. Order'!AY1364)","v":""},{"$f":"IF('1. Order'!AZ1364=\"\",\"\",'1. Order'!AZ1364)","v":""},{"$f":"IF('1. Order'!BA1364=\"\",\"\",'1. Order'!BA1364)","v":""},{"$f":"IF('1. Order'!BB1364=\"\",\"\",'1. Order'!BB1364)","v":""},{"$f":"IF('1. Order'!BD1364=\"\",\"\",'1. Order'!BD1364)","v":""},{"$f":"IF('1. Order'!BE1364=\"\",\"\",'1. Order'!BE1364)","v":""},{"$f":"IF('1. Order'!BF1364=\"\",\"\",'1. Order'!BF1364)","v":""},{"$f":"IF('1. Order'!BG1364=\"\",\"\",'1. Order'!BG1364)","v":""},{"$f":"IF('1. Order'!BH1364=\"\",\"\",'1. Order'!BH1364)","v":"ZWO"}]
[{"$f":"IF('1. Order'!F1365=\"\",\"\",'1. Order'!F1365)","v":{"$error":"#N/A"}},{"$f":"IF('1. Order'!G1365=\"\",\"\",'1. Order'!G1365)","v":""},{"$f":"IF('1. Order'!H1365=\"\",\"\",'1. Order'!H1365)","v":""},{"$f":"IF('1. Order'!I1365=\"\",\"\",'1. Order'!I1365)","v":""},{"$f":"IF('1. Order'!J1365=\"\",\"\",'1. Order'!J1365)","v":""},{"$f":"IF('1. Order'!K1365=\"\",\"\",'1. Order'!K1365)","v":""},{"$f":"IF('1. Order'!L1365=\"\",\"\",'1. Order'!L1365)","v":""},{"$f":"IF('1. Order'!M1365=\"\",\"\",'1. Order'!M1365)","v":""},{"$f":"IF('1. Order'!N1365=\"\",\"\",'1. Order'!N1365)","v":""},{"$f":"IF('1. Order'!O1365=\"\",\"\",'1. Order'!O1365)","v":{"$error":"#N/A"}},{"$f":"IF('1. Order'!P1365=\"\",\"\",'1. Order'!P1365)","v":{"$error":"#N/A"}},{"$f":"IF('1. Order'!Q1365=\"\",\"\",'1. Order'!Q1365)","v":""},{"$f":"IF('1. Order'!S1365=\"\",\"\",'1. Order'!S1365)","v":""},{"$f":"IF('1. Order'!T1365=\"\",\"\",'1. Order'!T1365)","v":""},{"$f":"IF('1. Order'!W1365=\"\",\"\",'1. Order'!W1365)","v":""},{"$f":"IF('1. Order'!X1365=\"\",\"\",'1. Order'!X1365)","v":""},{"$f":"IF('1. Order'!Y1365=\"\",\"\",'1. Order'!Y1365)","v":"EUR"},{"$f":"IF('1. Order'!Z1365=\"\",\"\",'1. Order'!Z1365)","v":""},{"$f":"IF('1. Order'!AA1365=\"\",\"\",'1. Order'!AA1365)","v":""},{"$f":"IF('1. Order'!AB1365=\"\",\"\",'1. Order'!AB1365)","v":""},null,{"$f":"IF('1. Order'!AT1365=\"\",\"\",'1. Order'!AT1365)","v":""},{"$f":"IF('1. Order'!AU1365=\"\",\"\",'1. Order'!AU1365)","v":""},null,null,null,null,null,null,null,{"$f":"IF('1. Order'!AY1365=\"\",\"\",'1. Order'!AY1365)","v":""},{"$f":"IF('1. Order'!AZ1365=\"\",\"\",'1. Order'!AZ1365)","v":""},{"$f":"IF('1. Order'!BA1365=\"\",\"\",'1. Order'!BA1365)","v":""},{"$f":"IF('1. Order'!BB1365=\"\",\"\",'1. Order'!BB1365)","v":""},{"$f":"IF('1. Order'!BD1365=\"\",\"\",'1. Order'!BD1365)","v":""},{"$f":"IF('1. Order'!BE1365=\"\",\"\",'1. Order'!BE1365)","v":""},{"$f":"IF('1. Order'!BF1365=\"\",\"\",'1. Order'!BF1365)","v":""},{"$f":"IF('1. Order'!BG1365=\"\",\"\",'1. Order'!BG1365)","v":""},{"$f":"IF('1. Order'!BH1365=\"\",\"\",'1. Order'!BH1365)","v":"ZWO"}]
[{"$f":"IF('1. Order'!F1366=\"\",\"\",'1. Order'!F1366)","v":{"$error":"#N/A"}},{"$f":"IF('1. Order'!G1366=\"\",\"\",'1. Order'!G1366)","v":""},{"$f":"IF('1. Order'!H1366=\"\",\"\",'1. Order'!H1366)","v":""},{"$f":"IF('1. Order'!I1366=\"\",\"\",'1. Order'!I1366)","v":""},{"$f":"IF('1. Order'!J1366=\"\",\"\",'1. Order'!J1366)","v":""},{"$f":"IF('1. Order'!K1366=\"\",\"\",'1. Order'!K1366)","v":""},{"$f":"IF('1. Order'!L1366=\"\",\"\",'1. Order'!L1366)","v":""},{"$f":"IF('1. Order'!M1366=\"\",\"\",'1. Order'!M1366)","v":""},{"$f":"IF('1. Order'!N1366=\"\",\"\",'1. Order'!N1366)","v":""},{"$f":"IF('1. Order'!O1366=\"\",\"\",'1. Order'!O1366)","v":{"$error":"#N/A"}},{"$f":"IF('1. Order'!P1366=\"\",\"\",'1. Order'!P1366)","v":{"$error":"#N/A"}},{"$f":"IF('1. Order'!Q1366=\"\",\"\",'1. Order'!Q1366)","v":""},{"$f":"IF('1. Order'!S1366=\"\",\"\",'1. Order'!S1366)","v":""},{"$f":"IF('1. Order'!T1366=\"\",\"\",'1. Order'!T1366)","v":""},{"$f":"IF('1. Order'!W1366=\"\",\"\",'1. Order'!W1366)","v":""},{"$f":"IF('1. Order'!X1366=\"\",\"\",'1. Order'!X1366)","v":""},{"$f":"IF('1. Order'!Y1366=\"\",\"\",'1. Order'!Y1366)","v":"EUR"},{"$f":"IF('1. Order'!Z1366=\"\",\"\",'1. Order'!Z1366)","v":""},{"$f":"IF('1. Order'!AA1366=\"\",\"\",'1. Order'!AA1366)","v":""},{"$f":"IF('1. Order'!AB1366=\"\",\"\",'1. Order'!AB1366)","v":""},null,{"$f":"IF('1. Order'!AT1366=\"\",\"\",'1. Order'!AT1366)","v":""},{"$f":"IF('1. Order'!AU1366=\"\",\"\",'1. Order'!AU1366)","v":""},null,null,null,null,null,null,null,{"$f":"IF('1. Order'!AY1366=\"\",\"\",'1. Order'!AY1366)","v":""},{"$f":"IF('1. Order'!AZ1366=\"\",\"\",'1. Order'!AZ1366)","v":""},{"$f":"IF('1. Order'!BA1366=\"\",\"\",'1. Order'!BA1366)","v":""},{"$f":"IF('1. Order'!BB1366=\"\",\"\",'1. Order'!BB1366)","v":""},{"$f":"IF('1. Order'!BD1366=\"\",\"\",'1. Order'!BD1366)","v":""},{"$f":"IF('1. Order'!BE1366=\"\",\"\",'1. Order'!BE1366)","v":""},{"$f":"IF('1. Order'!BF1366=\"\",\"\",'1. Order'!BF1366)","v":""},{"$f":"IF('1. Order'!BG1366=\"\",\"\",'1. Order'!BG1366)","v":""},{"$f":"IF('1. Order'!BH1366=\"\",\"\",'1. Order'!BH1366)","v":"ZWO"}]
[{"$f":"IF('1. Order'!F1367=\"\",\"\",'1. Order'!F1367)","v":{"$error":"#N/A"}},{"$f":"IF('1. Order'!G1367=\"\",\"\",'1. Order'!G1367)","v":""},{"$f":"IF('1. Order'!H1367=\"\",\"\",'1. Order'!H1367)","v":""},{"$f":"IF('1. Order'!I1367=\"\",\"\",'1. Order'!I1367)","v":""},{"$f":"IF('1. Order'!J1367=\"\",\"\",'1. Order'!J1367)","v":""},{"$f":"IF('1. Order'!K1367=\"\",\"\",'1. Order'!K1367)","v":""},{"$f":"IF('1. Order'!L1367=\"\",\"\",'1. Order'!L1367)","v":""},{"$f":"IF('1. Order'!M1367=\"\",\"\",'1. Order'!M1367)","v":""},{"$f":"IF('1. Order'!N1367=\"\",\"\",'1. Order'!N1367)","v":""},{"$f":"IF('1. Order'!O1367=\"\",\"\",'1. Order'!O1367)","v":{"$error":"#N/A"}},{"$f":"IF('1. Order'!P1367=\"\",\"\",'1. Order'!P1367)","v":{"$error":"#N/A"}},{"$f":"IF('1. Order'!Q1367=\"\",\"\",'1. Order'!Q1367)","v":""},{"$f":"IF('1. Order'!S1367=\"\",\"\",'1. Order'!S1367)","v":""},{"$f":"IF('1. Order'!T1367=\"\",\"\",'1. Order'!T1367)","v":""},{"$f":"IF('1. Order'!W1367=\"\",\"\",'1. Order'!W1367)","v":""},{"$f":"IF('1. Order'!X1367=\"\",\"\",'1. Order'!X1367)","v":""},{"$f":"IF('1. Order'!Y1367=\"\",\"\",'1. Order'!Y1367)","v":"EUR"},{"$f":"IF('1. Order'!Z1367=\"\",\"\",'1. Order'!Z1367)","v":""},{"$f":"IF('1. Order'!AA1367=\"\",\"\",'1. Order'!AA1367)","v":""},{"$f":"IF('1. Order'!AB1367=\"\",\"\",'1. Order'!AB1367)","v":""},null,{"$f":"IF('1. Order'!AT1367=\"\",\"\",'1. Order'!AT1367)","v":""},{"$f":"IF('1. Order'!AU1367=\"\",\"\",'1. Order'!AU1367)","v":""},null,null,null,null,null,null,null,{"$f":"IF('1. Order'!AY1367=\"\",\"\",'1. Order'!AY1367)","v":""},{"$f":"IF('1. Order'!AZ1367=\"\",\"\",'1. Order'!AZ1367)","v":""},{"$f":"IF('1. Order'!BA1367=\"\",\"\",'1. Order'!BA1367)","v":""},{"$f":"IF('1. Order'!BB1367=\"\",\"\",'1. Order'!BB1367)","v":""},{"$f":"IF('1. Order'!BD1367=\"\",\"\",'1. Order'!BD1367)","v":""},{"$f":"IF('1. Order'!BE1367=\"\",\"\",'1. Order'!BE1367)","v":""},{"$f":"IF('1. Order'!BF1367=\"\",\"\",'1. Order'!BF1367)","v":""},{"$f":"IF('1. Order'!BG1367=\"\",\"\",'1. Order'!BG1367)","v":""},{"$f":"IF('1. Order'!BH1367=\"\",\"\",'1. Order'!BH1367)","v":"ZWO"}]
[{"$f":"IF('1. Order'!F1368=\"\",\"\",'1. Order'!F1368)","v":{"$error":"#N/A"}},{"$f":"IF('1. Order'!G1368=\"\",\"\",'1. Order'!G1368)","v":""},{"$f":"IF('1. Order'!H1368=\"\",\"\",'1. Order'!H1368)","v":""},{"$f":"IF('1. Order'!I1368=\"\",\"\",'1. Order'!I1368)","v":""},{"$f":"IF('1. Order'!J1368=\"\",\"\",'1. Order'!J1368)","v":""},{"$f":"IF('1. Order'!K1368=\"\",\"\",'1. Order'!K1368)","v":""},{"$f":"IF('1. Order'!L1368=\"\",\"\",'1. Order'!L1368)","v":""},{"$f":"IF('1. Order'!M1368=\"\",\"\",'1. Order'!M1368)","v":""},{"$f":"IF('1. Order'!N1368=\"\",\"\",'1. Order'!N1368)","v":""},{"$f":"IF('1. Order'!O1368=\"\",\"\",'1. Order'!O1368)","v":{"$error":"#N/A"}},{"$f":"IF('1. Order'!P1368=\"\",\"\",'1. Order'!P1368)","v":{"$error":"#N/A"}},{"$f":"IF('1. Order'!Q1368=\"\",\"\",'1. Order'!Q1368)","v":""},{"$f":"IF('1. Order'!S1368=\"\",\"\",'1. Order'!S1368)","v":""},{"$f":"IF('1. Order'!T1368=\"\",\"\",'1. Order'!T1368)","v":""},{"$f":"IF('1. Order'!W1368=\"\",\"\",'1. Order'!W1368)","v":""},{"$f":"IF('1. Order'!X1368=\"\",\"\",'1. Order'!X1368)","v":""},{"$f":"IF('1. Order'!Y1368=\"\",\"\",'1. Order'!Y1368)","v":"EUR"},{"$f":"IF('1. Order'!Z1368=\"\",\"\",'1. Order'!Z1368)","v":""},{"$f":"IF('1. Order'!AA1368=\"\",\"\",'1. Order'!AA1368)","v":""},{"$f":"IF('1. Order'!AB1368=\"\",\"\",'1. Order'!AB1368)","v":""},null,{"$f":"IF('1. Order'!AT1368=\"\",\"\",'1. Order'!AT1368)","v":""},{"$f":"IF('1. Order'!AU1368=\"\",\"\",'1. Order'!AU1368)","v":""},null,null,null,null,null,null,null,{"$f":"IF('1. Order'!AY1368=\"\",\"\",'1. Order'!AY1368)","v":""},{"$f":"IF('1. Order'!AZ1368=\"\",\"\",'1. Order'!AZ1368)","v":""},{"$f":"IF('1. Order'!BA1368=\"\",\"\",'1. Order'!BA1368)","v":""},{"$f":"IF('1. Order'!BB1368=\"\",\"\",'1. Order'!BB1368)","v":""},{"$f":"IF('1. Order'!BD1368=\"\",\"\",'1. Order'!BD1368)","v":""},{"$f":"IF('1. Order'!BE1368=\"\",\"\",'1. Order'!BE1368)","v":""},{"$f":"IF('1. Order'!BF1368=\"\",\"\",'1. Order'!BF1368)","v":""},{"$f":"IF('1. Order'!BG1368=\"\",\"\",'1. Order'!BG1368)","v":""},{"$f":"IF('1. Order'!BH1368=\"\",\"\",'1. Order'!BH1368)","v":"ZWO"}]
[{"$f":"IF('1. Order'!F1369=\"\",\"\",'1. Order'!F1369)","v":{"$error":"#N/A"}},{"$f":"IF('1. Order'!G1369=\"\",\"\",'1. Order'!G1369)","v":""},{"$f":"IF('1. Order'!H1369=\"\",\"\",'1. Order'!H1369)","v":""},{"$f":"IF('1. Order'!I1369=\"\",\"\",'1. Order'!I1369)","v":""},{"$f":"IF('1. Order'!J1369=\"\",\"\",'1. Order'!J1369)","v":""},{"$f":"IF('1. Order'!K1369=\"\",\"\",'1. Order'!K1369)","v":""},{"$f":"IF('1. Order'!L1369=\"\",\"\",'1. Order'!L1369)","v":""},{"$f":"IF('1. Order'!M1369=\"\",\"\",'1. Order'!M1369)","v":""},{"$f":"IF('1. Order'!N1369=\"\",\"\",'1. Order'!N1369)","v":""},{"$f":"IF('1. Order'!O1369=\"\",\"\",'1. Order'!O1369)","v":{"$error":"#N/A"}},{"$f":"IF('1. Order'!P1369=\"\",\"\",'1. Order'!P1369)","v":{"$error":"#N/A"}},{"$f":"IF('1. Order'!Q1369=\"\",\"\",'1. Order'!Q1369)","v":""},{"$f":"IF('1. Order'!S1369=\"\",\"\",'1. Order'!S1369)","v":""},{"$f":"IF('1. Order'!T1369=\"\",\"\",'1. Order'!T1369)","v":""},{"$f":"IF('1. Order'!W1369=\"\",\"\",'1. Order'!W1369)","v":""},{"$f":"IF('1. Order'!X1369=\"\",\"\",'1. Order'!X1369)","v":""},{"$f":"IF('1. Order'!Y1369=\"\",\"\",'1. Order'!Y1369)","v":"EUR"},{"$f":"IF('1. Order'!Z1369=\"\",\"\",'1. Order'!Z1369)","v":""},{"$f":"IF('1. Order'!AA1369=\"\",\"\",'1. Order'!AA1369)","v":""},{"$f":"IF('1. Order'!AB1369=\"\",\"\",'1. Order'!AB1369)","v":""},null,{"$f":"IF('1. Order'!AT1369=\"\",\"\",'1. Order'!AT1369)","v":""},{"$f":"IF('1. Order'!AU1369=\"\",\"\",'1. Order'!AU1369)","v":""},null,null,null,null,null,null,null,{"$f":"IF('1. Order'!AY1369=\"\",\"\",'1. Order'!AY1369)","v":""},{"$f":"IF('1. Order'!AZ1369=\"\",\"\",'1. Order'!AZ1369)","v":""},{"$f":"IF('1. Order'!BA1369=\"\",\"\",'1. Order'!BA1369)","v":""},{"$f":"IF('1. Order'!BB1369=\"\",\"\",'1. Order'!BB1369)","v":""},{"$f":"IF('1. Order'!BD1369=\"\",\"\",'1. Order'!BD1369)","v":""},{"$f":"IF('1. Order'!BE1369=\"\",\"\",'1. Order'!BE1369)","v":""},{"$f":"IF('1. Order'!BF1369=\"\",\"\",'1. Order'!BF1369)","v":""},{"$f":"IF('1. Order'!BG1369=\"\",\"\",'1. Order'!BG1369)","v":""},{"$f":"IF('1. Order'!BH1369=\"\",\"\",'1. Order'!BH1369)","v":"ZWO"}]
[{"$f":"IF('1. Order'!F1370=\"\",\"\",'1. Order'!F1370)","v":{"$error":"#N/A"}},{"$f":"IF('1. Order'!G1370=\"\",\"\",'1. Order'!G1370)","v":""},{"$f":"IF('1. Order'!H1370=\"\",\"\",'1. Order'!H1370)","v":""},{"$f":"IF('1. Order'!I1370=\"\",\"\",'1. Order'!I1370)","v":""},{"$f":"IF('1. Order'!J1370=\"\",\"\",'1. Order'!J1370)","v":""},{"$f":"IF('1. Order'!K1370=\"\",\"\",'1. Order'!K1370)","v":""},{"$f":"IF('1. Order'!L1370=\"\",\"\",'1. Order'!L1370)","v":""},{"$f":"IF('1. Order'!M1370=\"\",\"\",'1. Order'!M1370)","v":""},{"$f":"IF('1. Order'!N1370=\"\",\"\",'1. Order'!N1370)","v":""},{"$f":"IF('1. Order'!O1370=\"\",\"\",'1. Order'!O1370)","v":{"$error":"#N/A"}},{"$f":"IF('1. Order'!P1370=\"\",\"\",'1. Order'!P1370)","v":{"$error":"#N/A"}},{"$f":"IF('1. Order'!Q1370=\"\",\"\",'1. Order'!Q1370)","v":""},{"$f":"IF('1. Order'!S1370=\"\",\"\",'1. Order'!S1370)","v":""},{"$f":"IF('1. Order'!T1370=\"\",\"\",'1. Order'!T1370)","v":""},{"$f":"IF('1. Order'!W1370=\"\",\"\",'1. Order'!W1370)","v":""},{"$f":"IF('1. Order'!X1370=\"\",\"\",'1. Order'!X1370)","v":""},{"$f":"IF('1. Order'!Y1370=\"\",\"\",'1. Order'!Y1370)","v":"EUR"},{"$f":"IF('1. Order'!Z1370=\"\",\"\",'1. Order'!Z1370)","v":""},{"$f":"IF('1. Order'!AA1370=\"\",\"\",'1. Order'!AA1370)","v":""},{"$f":"IF('1. Order'!AB1370=\"\",\"\",'1. Order'!AB1370)","v":""},null,{"$f":"IF('1. Order'!AT1370=\"\",\"\",'1. Order'!AT1370)","v":""},{"$f":"IF('1. Order'!AU1370=\"\",\"\",'1. Order'!AU1370)","v":""},null,null,null,null,null,null,null,{"$f":"IF('1. Order'!AY1370=\"\",\"\",'1. Order'!AY1370)","v":""},{"$f":"IF('1. Order'!AZ1370=\"\",\"\",'1. Order'!AZ1370)","v":""},{"$f":"IF('1. Order'!BA1370=\"\",\"\",'1. Order'!BA1370)","v":""},{"$f":"IF('1. Order'!BB1370=\"\",\"\",'1. Order'!BB1370)","v":""},{"$f":"IF('1. Order'!BD1370=\"\",\"\",'1. Order'!BD1370)","v":""},{"$f":"IF('1. Order'!BE1370=\"\",\"\",'1. Order'!BE1370)","v":""},{"$f":"IF('1. Order'!BF1370=\"\",\"\",'1. Order'!BF1370)","v":""},{"$f":"IF('1. Order'!BG1370=\"\",\"\",'1. Order'!BG1370)","v":""},{"$f":"IF('1. Order'!BH1370=\"\",\"\",'1. Order'!BH1370)","v":"ZWO"}]
[{"$f":"IF('1. Order'!F1371=\"\",\"\",'1. Order'!F1371)","v":{"$error":"#N/A"}},{"$f":"IF('1. Order'!G1371=\"\",\"\",'1. Order'!G1371)","v":""},{"$f":"IF('1. Order'!H1371=\"\",\"\",'1. Order'!H1371)","v":""},{"$f":"IF('1. Order'!I1371=\"\",\"\",'1. Order'!I1371)","v":""},{"$f":"IF('1. Order'!J1371=\"\",\"\",'1. Order'!J1371)","v":""},{"$f":"IF('1. Order'!K1371=\"\",\"\",'1. Order'!K1371)","v":""},{"$f":"IF('1. Order'!L1371=\"\",\"\",'1. Order'!L1371)","v":""},{"$f":"IF('1. Order'!M1371=\"\",\"\",'1. Order'!M1371)","v":""},{"$f":"IF('1. Order'!N1371=\"\",\"\",'1. Order'!N1371)","v":""},{"$f":"IF('1. Order'!O1371=\"\",\"\",'1. Order'!O1371)","v":{"$error":"#N/A"}},{"$f":"IF('1. Order'!P1371=\"\",\"\",'1. Order'!P1371)","v":{"$error":"#N/A"}},{"$f":"IF('1. Order'!Q1371=\"\",\"\",'1. Order'!Q1371)","v":""},{"$f":"IF('1. Order'!S1371=\"\",\"\",'1. Order'!S1371)","v":""},{"$f":"IF('1. Order'!T1371=\"\",\"\",'1. Order'!T1371)","v":""},{"$f":"IF('1. Order'!W1371=\"\",\"\",'1. Order'!W1371)","v":""},{"$f":"IF('1. Order'!X1371=\"\",\"\",'1. Order'!X1371)","v":""},{"$f":"IF('1. Order'!Y1371=\"\",\"\",'1. Order'!Y1371)","v":"EUR"},{"$f":"IF('1. Order'!Z1371=\"\",\"\",'1. Order'!Z1371)","v":""},{"$f":"IF('1. Order'!AA1371=\"\",\"\",'1. Order'!AA1371)","v":""},{"$f":"IF('1. Order'!AB1371=\"\",\"\",'1. Order'!AB1371)","v":""},null,{"$f":"IF('1. Order'!AT1371=\"\",\"\",'1. Order'!AT1371)","v":""},{"$f":"IF('1. Order'!AU1371=\"\",\"\",'1. Order'!AU1371)","v":""},null,null,null,null,null,null,null,{"$f":"IF('1. Order'!AY1371=\"\",\"\",'1. Order'!AY1371)","v":""},{"$f":"IF('1. Order'!AZ1371=\"\",\"\",'1. Order'!AZ1371)","v":""},{"$f":"IF('1. Order'!BA1371=\"\",\"\",'1. Order'!BA1371)","v":""},{"$f":"IF('1. Order'!BB1371=\"\",\"\",'1. Order'!BB1371)","v":""},{"$f":"IF('1. Order'!BD1371=\"\",\"\",'1. Order'!BD1371)","v":""},{"$f":"IF('1. Order'!BE1371=\"\",\"\",'1. Order'!BE1371)","v":""},{"$f":"IF('1. Order'!BF1371=\"\",\"\",'1. Order'!BF1371)","v":""},{"$f":"IF('1. Order'!BG1371=\"\",\"\",'1. Order'!BG1371)","v":""},{"$f":"IF('1. Order'!BH1371=\"\",\"\",'1. Order'!BH1371)","v":"ZWO"}]
[{"$f":"IF('1. Order'!F1372=\"\",\"\",'1. Order'!F1372)","v":{"$error":"#N/A"}},{"$f":"IF('1. Order'!G1372=\"\",\"\",'1. Order'!G1372)","v":""},{"$f":"IF('1. Order'!H1372=\"\",\"\",'1. Order'!H1372)","v":""},{"$f":"IF('1. Order'!I1372=\"\",\"\",'1. Order'!I1372)","v":""},{"$f":"IF('1. Order'!J1372=\"\",\"\",'1. Order'!J1372)","v":""},{"$f":"IF('1. Order'!K1372=\"\",\"\",'1. Order'!K1372)","v":""},{"$f":"IF('1. Order'!L1372=\"\",\"\",'1. Order'!L1372)","v":""},{"$f":"IF('1. Order'!M1372=\"\",\"\",'1. Order'!M1372)","v":""},{"$f":"IF('1. Order'!N1372=\"\",\"\",'1. Order'!N1372)","v":""},{"$f":"IF('1. Order'!O1372=\"\",\"\",'1. Order'!O1372)","v":{"$error":"#N/A"}},{"$f":"IF('1. Order'!P1372=\"\",\"\",'1. Order'!P1372)","v":{"$error":"#N/A"}},{"$f":"IF('1. Order'!Q1372=\"\",\"\",'1. Order'!Q1372)","v":""},{"$f":"IF('1. Order'!S1372=\"\",\"\",'1. Order'!S1372)","v":""},{"$f":"IF('1. Order'!T1372=\"\",\"\",'1. Order'!T1372)","v":""},{"$f":"IF('1. Order'!W1372=\"\",\"\",'1. Order'!W1372)","v":""},{"$f":"IF('1. Order'!X1372=\"\",\"\",'1. Order'!X1372)","v":""},{"$f":"IF('1. Order'!Y1372=\"\",\"\",'1. Order'!Y1372)","v":"EUR"},{"$f":"IF('1. Order'!Z1372=\"\",\"\",'1. Order'!Z1372)","v":""},{"$f":"IF('1. Order'!AA1372=\"\",\"\",'1. Order'!AA1372)","v":""},{"$f":"IF('1. Order'!AB1372=\"\",\"\",'1. Order'!AB1372)","v":""},null,{"$f":"IF('1. Order'!AT1372=\"\",\"\",'1. Order'!AT1372)","v":""},{"$f":"IF('1. Order'!AU1372=\"\",\"\",'1. Order'!AU1372)","v":""},null,null,null,null,null,null,null,{"$f":"IF('1. Order'!AY1372=\"\",\"\",'1. Order'!AY1372)","v":""},{"$f":"IF('1. Order'!AZ1372=\"\",\"\",'1. Order'!AZ1372)","v":""},{"$f":"IF('1. Order'!BA1372=\"\",\"\",'1. Order'!BA1372)","v":""},{"$f":"IF('1. Order'!BB1372=\"\",\"\",'1. Order'!BB1372)","v":""},{"$f":"IF('1. Order'!BD1372=\"\",\"\",'1. Order'!BD1372)","v":""},{"$f":"IF('1. Order'!BE1372=\"\",\"\",'1. Order'!BE1372)","v":""},{"$f":"IF('1. Order'!BF1372=\"\",\"\",'1. Order'!BF1372)","v":""},{"$f":"IF('1. Order'!BG1372=\"\",\"\",'1. Order'!BG1372)","v":""},{"$f":"IF('1. Order'!BH1372=\"\",\"\",'1. Order'!BH1372)","v":"ZWO"}]
[{"$f":"IF('1. Order'!F1373=\"\",\"\",'1. Order'!F1373)","v":{"$error":"#N/A"}},{"$f":"IF('1. Order'!G1373=\"\",\"\",'1. Order'!G1373)","v":""},{"$f":"IF('1. Order'!H1373=\"\",\"\",'1. Order'!H1373)","v":""},{"$f":"IF('1. Order'!I1373=\"\",\"\",'1. Order'!I1373)","v":""},{"$f":"IF('1. Order'!J1373=\"\",\"\",'1. Order'!J1373)","v":""},{"$f":"IF('1. Order'!K1373=\"\",\"\",'1. Order'!K1373)","v":""},{"$f":"IF('1. Order'!L1373=\"\",\"\",'1. Order'!L1373)","v":""},{"$f":"IF('1. Order'!M1373=\"\",\"\",'1. Order'!M1373)","v":""},{"$f":"IF('1. Order'!N1373=\"\",\"\",'1. Order'!N1373)","v":""},{"$f":"IF('1. Order'!O1373=\"\",\"\",'1. Order'!O1373)","v":{"$error":"#N/A"}},{"$f":"IF('1. Order'!P1373=\"\",\"\",'1. Order'!P1373)","v":{"$error":"#N/A"}},{"$f":"IF('1. Order'!Q1373=\"\",\"\",'1. Order'!Q1373)","v":""},{"$f":"IF('1. Order'!S1373=\"\",\"\",'1. Order'!S1373)","v":""},{"$f":"IF('1. Order'!T1373=\"\",\"\",'1. Order'!T1373)","v":""},{"$f":"IF('1. Order'!W1373=\"\",\"\",'1. Order'!W1373)","v":""},{"$f":"IF('1. Order'!X1373=\"\",\"\",'1. Order'!X1373)","v":""},{"$f":"IF('1. Order'!Y1373=\"\",\"\",'1. Order'!Y1373)","v":"EUR"},{"$f":"IF('1. Order'!Z1373=\"\",\"\",'1. Order'!Z1373)","v":""},{"$f":"IF('1. Order'!AA1373=\"\",\"\",'1. Order'!AA1373)","v":""},{"$f":"IF('1. Order'!AB1373=\"\",\"\",'1. Order'!AB1373)","v":""},null,{"$f":"IF('1. Order'!AT1373=\"\",\"\",'1. Order'!AT1373)","v":""},{"$f":"IF('1. Order'!AU1373=\"\",\"\",'1. Order'!AU1373)","v":""},null,null,null,null,null,null,null,{"$f":"IF('1. Order'!AY1373=\"\",\"\",'1. Order'!AY1373)","v":""},{"$f":"IF('1. Order'!AZ1373=\"\",\"\",'1. Order'!AZ1373)","v":""},{"$f":"IF('1. Order'!BA1373=\"\",\"\",'1. Order'!BA1373)","v":""},{"$f":"IF('1. Order'!BB1373=\"\",\"\",'1. Order'!BB1373)","v":""},{"$f":"IF('1. Order'!BD1373=\"\",\"\",'1. Order'!BD1373)","v":""},{"$f":"IF('1. Order'!BE1373=\"\",\"\",'1. Order'!BE1373)","v":""},{"$f":"IF('1. Order'!BF1373=\"\",\"\",'1. Order'!BF1373)","v":""},{"$f":"IF('1. Order'!BG1373=\"\",\"\",'1. Order'!BG1373)","v":""},{"$f":"IF('1. Order'!BH1373=\"\",\"\",'1. Order'!BH1373)","v":"ZWO"}]
[{"$f":"IF('1. Order'!F1374=\"\",\"\",'1. Order'!F1374)","v":{"$error":"#N/A"}},{"$f":"IF('1. Order'!G1374=\"\",\"\",'1. Order'!G1374)","v":""},{"$f":"IF('1. Order'!H1374=\"\",\"\",'1. Order'!H1374)","v":""},{"$f":"IF('1. Order'!I1374=\"\",\"\",'1. Order'!I1374)","v":""},{"$f":"IF('1. Order'!J1374=\"\",\"\",'1. Order'!J1374)","v":""},{"$f":"IF('1. Order'!K1374=\"\",\"\",'1. Order'!K1374)","v":""},{"$f":"IF('1. Order'!L1374=\"\",\"\",'1. Order'!L1374)","v":""},{"$f":"IF('1. Order'!M1374=\"\",\"\",'1. Order'!M1374)","v":""},{"$f":"IF('1. Order'!N1374=\"\",\"\",'1. Order'!N1374)","v":""},{"$f":"IF('1. Order'!O1374=\"\",\"\",'1. Order'!O1374)","v":{"$error":"#N/A"}},{"$f":"IF('1. Order'!P1374=\"\",\"\",'1. Order'!P1374)","v":{"$error":"#N/A"}},{"$f":"IF('1. Order'!Q1374=\"\",\"\",'1. Order'!Q1374)","v":""},{"$f":"IF('1. Order'!S1374=\"\",\"\",'1. Order'!S1374)","v":""},{"$f":"IF('1. Order'!T1374=\"\",\"\",'1. Order'!T1374)","v":""},{"$f":"IF('1. Order'!W1374=\"\",\"\",'1. Order'!W1374)","v":""},{"$f":"IF('1. Order'!X1374=\"\",\"\",'1. Order'!X1374)","v":""},{"$f":"IF('1. Order'!Y1374=\"\",\"\",'1. Order'!Y1374)","v":"EUR"},{"$f":"IF('1. Order'!Z1374=\"\",\"\",'1. Order'!Z1374)","v":""},{"$f":"IF('1. Order'!AA1374=\"\",\"\",'1. Order'!AA1374)","v":""},{"$f":"IF('1. Order'!AB1374=\"\",\"\",'1. Order'!AB1374)","v":""},null,{"$f":"IF('1. Order'!AT1374=\"\",\"\",'1. Order'!AT1374)","v":""},{"$f":"IF('1. Order'!AU1374=\"\",\"\",'1. Order'!AU1374)","v":""},null,null,null,null,null,null,null,{"$f":"IF('1. Order'!AY1374=\"\",\"\",'1. Order'!AY1374)","v":""},{"$f":"IF('1. Order'!AZ1374=\"\",\"\",'1. Order'!AZ1374)","v":""},{"$f":"IF('1. Order'!BA1374=\"\",\"\",'1. Order'!BA1374)","v":""},{"$f":"IF('1. Order'!BB1374=\"\",\"\",'1. Order'!BB1374)","v":""},{"$f":"IF('1. Order'!BD1374=\"\",\"\",'1. Order'!BD1374)","v":""},{"$f":"IF('1. Order'!BE1374=\"\",\"\",'1. Order'!BE1374)","v":""},{"$f":"IF('1. Order'!BF1374=\"\",\"\",'1. Order'!BF1374)","v":""},{"$f":"IF('1. Order'!BG1374=\"\",\"\",'1. Order'!BG1374)","v":""},{"$f":"IF('1. Order'!BH1374=\"\",\"\",'1. Order'!BH1374)","v":"ZWO"}]
[{"$f":"IF('1. Order'!F1375=\"\",\"\",'1. Order'!F1375)","v":{"$error":"#N/A"}},{"$f":"IF('1. Order'!G1375=\"\",\"\",'1. Order'!G1375)","v":""},{"$f":"IF('1. Order'!H1375=\"\",\"\",'1. Order'!H1375)","v":""},{"$f":"IF('1. Order'!I1375=\"\",\"\",'1. Order'!I1375)","v":""},{"$f":"IF('1. Order'!J1375=\"\",\"\",'1. Order'!J1375)","v":""},{"$f":"IF('1. Order'!K1375=\"\",\"\",'1. Order'!K1375)","v":""},{"$f":"IF('1. Order'!L1375=\"\",\"\",'1. Order'!L1375)","v":""},{"$f":"IF('1. Order'!M1375=\"\",\"\",'1. Order'!M1375)","v":""},{"$f":"IF('1. Order'!N1375=\"\",\"\",'1. Order'!N1375)","v":""},{"$f":"IF('1. Order'!O1375=\"\",\"\",'1. Order'!O1375)","v":{"$error":"#N/A"}},{"$f":"IF('1. Order'!P1375=\"\",\"\",'1. Order'!P1375)","v":{"$error":"#N/A"}},{"$f":"IF('1. Order'!Q1375=\"\",\"\",'1. Order'!Q1375)","v":""},{"$f":"IF('1. Order'!S1375=\"\",\"\",'1. Order'!S1375)","v":""},{"$f":"IF('1. Order'!T1375=\"\",\"\",'1. Order'!T1375)","v":""},{"$f":"IF('1. Order'!W1375=\"\",\"\",'1. Order'!W1375)","v":""},{"$f":"IF('1. Order'!X1375=\"\",\"\",'1. Order'!X1375)","v":""},{"$f":"IF('1. Order'!Y1375=\"\",\"\",'1. Order'!Y1375)","v":"EUR"},{"$f":"IF('1. Order'!Z1375=\"\",\"\",'1. Order'!Z1375)","v":""},{"$f":"IF('1. Order'!AA1375=\"\",\"\",'1. Order'!AA1375)","v":""},{"$f":"IF('1. Order'!AB1375=\"\",\"\",'1. Order'!AB1375)","v":""},null,{"$f":"IF('1. Order'!AT1375=\"\",\"\",'1. Order'!AT1375)","v":""},{"$f":"IF('1. Order'!AU1375=\"\",\"\",'1. Order'!AU1375)","v":""},null,null,null,null,null,null,null,{"$f":"IF('1. Order'!AY1375=\"\",\"\",'1. Order'!AY1375)","v":""},{"$f":"IF('1. Order'!AZ1375=\"\",\"\",'1. Order'!AZ1375)","v":""},{"$f":"IF('1. Order'!BA1375=\"\",\"\",'1. Order'!BA1375)","v":""},{"$f":"IF('1. Order'!BB1375=\"\",\"\",'1. Order'!BB1375)","v":""},{"$f":"IF('1. Order'!BD1375=\"\",\"\",'1. Order'!BD1375)","v":""},{"$f":"IF('1. Order'!BE1375=\"\",\"\",'1. Order'!BE1375)","v":""},{"$f":"IF('1. Order'!BF1375=\"\",\"\",'1. Order'!BF1375)","v":""},{"$f":"IF('1. Order'!BG1375=\"\",\"\",'1. Order'!BG1375)","v":""},{"$f":"IF('1. Order'!BH1375=\"\",\"\",'1. Order'!BH1375)","v":"ZWO"}]
[{"$f":"IF('1. Order'!F1376=\"\",\"\",'1. Order'!F1376)","v":{"$error":"#N/A"}},{"$f":"IF('1. Order'!G1376=\"\",\"\",'1. Order'!G1376)","v":""},{"$f":"IF('1. Order'!H1376=\"\",\"\",'1. Order'!H1376)","v":""},{"$f":"IF('1. Order'!I1376=\"\",\"\",'1. Order'!I1376)","v":""},{"$f":"IF('1. Order'!J1376=\"\",\"\",'1. Order'!J1376)","v":""},{"$f":"IF('1. Order'!K1376=\"\",\"\",'1. Order'!K1376)","v":""},{"$f":"IF('1. Order'!L1376=\"\",\"\",'1. Order'!L1376)","v":""},{"$f":"IF('1. Order'!M1376=\"\",\"\",'1. Order'!M1376)","v":""},{"$f":"IF('1. Order'!N1376=\"\",\"\",'1. Order'!N1376)","v":""},{"$f":"IF('1. Order'!O1376=\"\",\"\",'1. Order'!O1376)","v":{"$error":"#N/A"}},{"$f":"IF('1. Order'!P1376=\"\",\"\",'1. Order'!P1376)","v":{"$error":"#N/A"}},{"$f":"IF('1. Order'!Q1376=\"\",\"\",'1. Order'!Q1376)","v":""},{"$f":"IF('1. Order'!S1376=\"\",\"\",'1. Order'!S1376)","v":""},{"$f":"IF('1. Order'!T1376=\"\",\"\",'1. Order'!T1376)","v":""},{"$f":"IF('1. Order'!W1376=\"\",\"\",'1. Order'!W1376)","v":""},{"$f":"IF('1. Order'!X1376=\"\",\"\",'1. Order'!X1376)","v":""},{"$f":"IF('1. Order'!Y1376=\"\",\"\",'1. Order'!Y1376)","v":"EUR"},{"$f":"IF('1. Order'!Z1376=\"\",\"\",'1. Order'!Z1376)","v":""},{"$f":"IF('1. Order'!AA1376=\"\",\"\",'1. Order'!AA1376)","v":""},{"$f":"IF('1. Order'!AB1376=\"\",\"\",'1. Order'!AB1376)","v":""},null,{"$f":"IF('1. Order'!AT1376=\"\",\"\",'1. Order'!AT1376)","v":""},{"$f":"IF('1. Order'!AU1376=\"\",\"\",'1. Order'!AU1376)","v":""},null,null,null,null,null,null,null,{"$f":"IF('1. Order'!AY1376=\"\",\"\",'1. Order'!AY1376)","v":""},{"$f":"IF('1. Order'!AZ1376=\"\",\"\",'1. Order'!AZ1376)","v":""},{"$f":"IF('1. Order'!BA1376=\"\",\"\",'1. Order'!BA1376)","v":""},{"$f":"IF('1. Order'!BB1376=\"\",\"\",'1. Order'!BB1376)","v":""},{"$f":"IF('1. Order'!BD1376=\"\",\"\",'1. Order'!BD1376)","v":""},{"$f":"IF('1. Order'!BE1376=\"\",\"\",'1. Order'!BE1376)","v":""},{"$f":"IF('1. Order'!BF1376=\"\",\"\",'1. Order'!BF1376)","v":""},{"$f":"IF('1. Order'!BG1376=\"\",\"\",'1. Order'!BG1376)","v":""},{"$f":"IF('1. Order'!BH1376=\"\",\"\",'1. Order'!BH1376)","v":"ZWO"}]
[{"$f":"IF('1. Order'!F1377=\"\",\"\",'1. Order'!F1377)","v":{"$error":"#N/A"}},{"$f":"IF('1. Order'!G1377=\"\",\"\",'1. Order'!G1377)","v":""},{"$f":"IF('1. Order'!H1377=\"\",\"\",'1. Order'!H1377)","v":""},{"$f":"IF('1. Order'!I1377=\"\",\"\",'1. Order'!I1377)","v":""},{"$f":"IF('1. Order'!J1377=\"\",\"\",'1. Order'!J1377)","v":""},{"$f":"IF('1. Order'!K1377=\"\",\"\",'1. Order'!K1377)","v":""},{"$f":"IF('1. Order'!L1377=\"\",\"\",'1. Order'!L1377)","v":""},{"$f":"IF('1. Order'!M1377=\"\",\"\",'1. Order'!M1377)","v":""},{"$f":"IF('1. Order'!N1377=\"\",\"\",'1. Order'!N1377)","v":""},{"$f":"IF('1. Order'!O1377=\"\",\"\",'1. Order'!O1377)","v":{"$error":"#N/A"}},{"$f":"IF('1. Order'!P1377=\"\",\"\",'1. Order'!P1377)","v":{"$error":"#N/A"}},{"$f":"IF('1. Order'!Q1377=\"\",\"\",'1. Order'!Q1377)","v":""},{"$f":"IF('1. Order'!S1377=\"\",\"\",'1. Order'!S1377)","v":""},{"$f":"IF('1. Order'!T1377=\"\",\"\",'1. Order'!T1377)","v":""},{"$f":"IF('1. Order'!W1377=\"\",\"\",'1. Order'!W1377)","v":""},{"$f":"IF('1. Order'!X1377=\"\",\"\",'1. Order'!X1377)","v":""},{"$f":"IF('1. Order'!Y1377=\"\",\"\",'1. Order'!Y1377)","v":"EUR"},{"$f":"IF('1. Order'!Z1377=\"\",\"\",'1. Order'!Z1377)","v":""},{"$f":"IF('1. Order'!AA1377=\"\",\"\",'1. Order'!AA1377)","v":""},{"$f":"IF('1. Order'!AB1377=\"\",\"\",'1. Order'!AB1377)","v":""},null,{"$f":"IF('1. Order'!AT1377=\"\",\"\",'1. Order'!AT1377)","v":""},{"$f":"IF('1. Order'!AU1377=\"\",\"\",'1. Order'!AU1377)","v":""},null,null,null,null,null,null,null,{"$f":"IF('1. Order'!AY1377=\"\",\"\",'1. Order'!AY1377)","v":""},{"$f":"IF('1. Order'!AZ1377=\"\",\"\",'1. Order'!AZ1377)","v":""},{"$f":"IF('1. Order'!BA1377=\"\",\"\",'1. Order'!BA1377)","v":""},{"$f":"IF('1. Order'!BB1377=\"\",\"\",'1. Order'!BB1377)","v":""},{"$f":"IF('1. Order'!BD1377=\"\",\"\",'1. Order'!BD1377)","v":""},{"$f":"IF('1. Order'!BE1377=\"\",\"\",'1. Order'!BE1377)","v":""},{"$f":"IF('1. Order'!BF1377=\"\",\"\",'1. Order'!BF1377)","v":""},{"$f":"IF('1. Order'!BG1377=\"\",\"\",'1. Order'!BG1377)","v":""},{"$f":"IF('1. Order'!BH1377=\"\",\"\",'1. Order'!BH1377)","v":"ZWO"}]
[{"$f":"IF('1. Order'!F1378=\"\",\"\",'1. Order'!F1378)","v":{"$error":"#N/A"}},{"$f":"IF('1. Order'!G1378=\"\",\"\",'1. Order'!G1378)","v":""},{"$f":"IF('1. Order'!H1378=\"\",\"\",'1. Order'!H1378)","v":""},{"$f":"IF('1. Order'!I1378=\"\",\"\",'1. Order'!I1378)","v":""},{"$f":"IF('1. Order'!J1378=\"\",\"\",'1. Order'!J1378)","v":""},{"$f":"IF('1. Order'!K1378=\"\",\"\",'1. Order'!K1378)","v":""},{"$f":"IF('1. Order'!L1378=\"\",\"\",'1. Order'!L1378)","v":""},{"$f":"IF('1. Order'!M1378=\"\",\"\",'1. Order'!M1378)","v":""},{"$f":"IF('1. Order'!N1378=\"\",\"\",'1. Order'!N1378)","v":""},{"$f":"IF('1. Order'!O1378=\"\",\"\",'1. Order'!O1378)","v":{"$error":"#N/A"}},{"$f":"IF('1. Order'!P1378=\"\",\"\",'1. Order'!P1378)","v":{"$error":"#N/A"}},{"$f":"IF('1. Order'!Q1378=\"\",\"\",'1. Order'!Q1378)","v":""},{"$f":"IF('1. Order'!S1378=\"\",\"\",'1. Order'!S1378)","v":""},{"$f":"IF('1. Order'!T1378=\"\",\"\",'1. Order'!T1378)","v":""},{"$f":"IF('1. Order'!W1378=\"\",\"\",'1. Order'!W1378)","v":""},{"$f":"IF('1. Order'!X1378=\"\",\"\",'1. Order'!X1378)","v":""},{"$f":"IF('1. Order'!Y1378=\"\",\"\",'1. Order'!Y1378)","v":"EUR"},{"$f":"IF('1. Order'!Z1378=\"\",\"\",'1. Order'!Z1378)","v":""},{"$f":"IF('1. Order'!AA1378=\"\",\"\",'1. Order'!AA1378)","v":""},{"$f":"IF('1. Order'!AB1378=\"\",\"\",'1. Order'!AB1378)","v":""},null,{"$f":"IF('1. Order'!AT1378=\"\",\"\",'1. Order'!AT1378)","v":""},{"$f":"IF('1. Order'!AU1378=\"\",\"\",'1. Order'!AU1378)","v":""},null,null,null,null,null,null,null,{"$f":"IF('1. Order'!AY1378=\"\",\"\",'1. Order'!AY1378)","v":""},{"$f":"IF('1. Order'!AZ1378=\"\",\"\",'1. Order'!AZ1378)","v":""},{"$f":"IF('1. Order'!BA1378=\"\",\"\",'1. Order'!BA1378)","v":""},{"$f":"IF('1. Order'!BB1378=\"\",\"\",'1. Order'!BB1378)","v":""},{"$f":"IF('1. Order'!BD1378=\"\",\"\",'1. Order'!BD1378)","v":""},{"$f":"IF('1. Order'!BE1378=\"\",\"\",'1. Order'!BE1378)","v":""},{"$f":"IF('1. Order'!BF1378=\"\",\"\",'1. Order'!BF1378)","v":""},{"$f":"IF('1. Order'!BG1378=\"\",\"\",'1. Order'!BG1378)","v":""},{"$f":"IF('1. Order'!BH1378=\"\",\"\",'1. Order'!BH1378)","v":"ZWO"}]
[{"$f":"IF('1. Order'!F1379=\"\",\"\",'1. Order'!F1379)","v":{"$error":"#N/A"}},{"$f":"IF('1. Order'!G1379=\"\",\"\",'1. Order'!G1379)","v":""},{"$f":"IF('1. Order'!H1379=\"\",\"\",'1. Order'!H1379)","v":""},{"$f":"IF('1. Order'!I1379=\"\",\"\",'1. Order'!I1379)","v":""},{"$f":"IF('1. Order'!J1379=\"\",\"\",'1. Order'!J1379)","v":""},{"$f":"IF('1. Order'!K1379=\"\",\"\",'1. Order'!K1379)","v":""},{"$f":"IF('1. Order'!L1379=\"\",\"\",'1. Order'!L1379)","v":""},{"$f":"IF('1. Order'!M1379=\"\",\"\",'1. Order'!M1379)","v":""},{"$f":"IF('1. Order'!N1379=\"\",\"\",'1. Order'!N1379)","v":""},{"$f":"IF('1. Order'!O1379=\"\",\"\",'1. Order'!O1379)","v":{"$error":"#N/A"}},{"$f":"IF('1. Order'!P1379=\"\",\"\",'1. Order'!P1379)","v":{"$error":"#N/A"}},{"$f":"IF('1. Order'!Q1379=\"\",\"\",'1. Order'!Q1379)","v":""},{"$f":"IF('1. Order'!S1379=\"\",\"\",'1. Order'!S1379)","v":""},{"$f":"IF('1. Order'!T1379=\"\",\"\",'1. Order'!T1379)","v":""},{"$f":"IF('1. Order'!W1379=\"\",\"\",'1. Order'!W1379)","v":""},{"$f":"IF('1. Order'!X1379=\"\",\"\",'1. Order'!X1379)","v":""},{"$f":"IF('1. Order'!Y1379=\"\",\"\",'1. Order'!Y1379)","v":"EUR"},{"$f":"IF('1. Order'!Z1379=\"\",\"\",'1. Order'!Z1379)","v":""},{"$f":"IF('1. Order'!AA1379=\"\",\"\",'1. Order'!AA1379)","v":""},{"$f":"IF('1. Order'!AB1379=\"\",\"\",'1. Order'!AB1379)","v":""},null,{"$f":"IF('1. Order'!AT1379=\"\",\"\",'1. Order'!AT1379)","v":""},{"$f":"IF('1. Order'!AU1379=\"\",\"\",'1. Order'!AU1379)","v":""},null,null,null,null,null,null,null,{"$f":"IF('1. Order'!AY1379=\"\",\"\",'1. Order'!AY1379)","v":""},{"$f":"IF('1. Order'!AZ1379=\"\",\"\",'1. Order'!AZ1379)","v":""},{"$f":"IF('1. Order'!BA1379=\"\",\"\",'1. Order'!BA1379)","v":""},{"$f":"IF('1. Order'!BB1379=\"\",\"\",'1. Order'!BB1379)","v":""},{"$f":"IF('1. Order'!BD1379=\"\",\"\",'1. Order'!BD1379)","v":""},{"$f":"IF('1. Order'!BE1379=\"\",\"\",'1. Order'!BE1379)","v":""},{"$f":"IF('1. Order'!BF1379=\"\",\"\",'1. Order'!BF1379)","v":""},{"$f":"IF('1. Order'!BG1379=\"\",\"\",'1. Order'!BG1379)","v":""},{"$f":"IF('1. Order'!BH1379=\"\",\"\",'1. Order'!BH1379)","v":"ZWO"}]
[{"$f":"IF('1. Order'!F1380=\"\",\"\",'1. Order'!F1380)","v":{"$error":"#N/A"}},{"$f":"IF('1. Order'!G1380=\"\",\"\",'1. Order'!G1380)","v":""},{"$f":"IF('1. Order'!H1380=\"\",\"\",'1. Order'!H1380)","v":""},{"$f":"IF('1. Order'!I1380=\"\",\"\",'1. Order'!I1380)","v":""},{"$f":"IF('1. Order'!J1380=\"\",\"\",'1. Order'!J1380)","v":""},{"$f":"IF('1. Order'!K1380=\"\",\"\",'1. Order'!K1380)","v":""},{"$f":"IF('1. Order'!L1380=\"\",\"\",'1. Order'!L1380)","v":""},{"$f":"IF('1. Order'!M1380=\"\",\"\",'1. Order'!M1380)","v":""},{"$f":"IF('1. Order'!N1380=\"\",\"\",'1. Order'!N1380)","v":""},{"$f":"IF('1. Order'!O1380=\"\",\"\",'1. Order'!O1380)","v":{"$error":"#N/A"}},{"$f":"IF('1. Order'!P1380=\"\",\"\",'1. Order'!P1380)","v":{"$error":"#N/A"}},{"$f":"IF('1. Order'!Q1380=\"\",\"\",'1. Order'!Q1380)","v":""},{"$f":"IF('1. Order'!S1380=\"\",\"\",'1. Order'!S1380)","v":""},{"$f":"IF('1. Order'!T1380=\"\",\"\",'1. Order'!T1380)","v":""},{"$f":"IF('1. Order'!W1380=\"\",\"\",'1. Order'!W1380)","v":""},{"$f":"IF('1. Order'!X1380=\"\",\"\",'1. Order'!X1380)","v":""},{"$f":"IF('1. Order'!Y1380=\"\",\"\",'1. Order'!Y1380)","v":"EUR"},{"$f":"IF('1. Order'!Z1380=\"\",\"\",'1. Order'!Z1380)","v":""},{"$f":"IF('1. Order'!AA1380=\"\",\"\",'1. Order'!AA1380)","v":""},{"$f":"IF('1. Order'!AB1380=\"\",\"\",'1. Order'!AB1380)","v":""},null,{"$f":"IF('1. Order'!AT1380=\"\",\"\",'1. Order'!AT1380)","v":""},{"$f":"IF('1. Order'!AU1380=\"\",\"\",'1. Order'!AU1380)","v":""},null,null,null,null,null,null,null,{"$f":"IF('1. Order'!AY1380=\"\",\"\",'1. Order'!AY1380)","v":""},{"$f":"IF('1. Order'!AZ1380=\"\",\"\",'1. Order'!AZ1380)","v":""},{"$f":"IF('1. Order'!BA1380=\"\",\"\",'1. Order'!BA1380)","v":""},{"$f":"IF('1. Order'!BB1380=\"\",\"\",'1. Order'!BB1380)","v":""},{"$f":"IF('1. Order'!BD1380=\"\",\"\",'1. Order'!BD1380)","v":""},{"$f":"IF('1. Order'!BE1380=\"\",\"\",'1. Order'!BE1380)","v":""},{"$f":"IF('1. Order'!BF1380=\"\",\"\",'1. Order'!BF1380)","v":""},{"$f":"IF('1. Order'!BG1380=\"\",\"\",'1. Order'!BG1380)","v":""},{"$f":"IF('1. Order'!BH1380=\"\",\"\",'1. Order'!BH1380)","v":"ZWO"}]
[{"$f":"IF('1. Order'!F1381=\"\",\"\",'1. Order'!F1381)","v":{"$error":"#N/A"}},{"$f":"IF('1. Order'!G1381=\"\",\"\",'1. Order'!G1381)","v":""},{"$f":"IF('1. Order'!H1381=\"\",\"\",'1. Order'!H1381)","v":""},{"$f":"IF('1. Order'!I1381=\"\",\"\",'1. Order'!I1381)","v":""},{"$f":"IF('1. Order'!J1381=\"\",\"\",'1. Order'!J1381)","v":""},{"$f":"IF('1. Order'!K1381=\"\",\"\",'1. Order'!K1381)","v":""},{"$f":"IF('1. Order'!L1381=\"\",\"\",'1. Order'!L1381)","v":""},{"$f":"IF('1. Order'!M1381=\"\",\"\",'1. Order'!M1381)","v":""},{"$f":"IF('1. Order'!N1381=\"\",\"\",'1. Order'!N1381)","v":""},{"$f":"IF('1. Order'!O1381=\"\",\"\",'1. Order'!O1381)","v":{"$error":"#N/A"}},{"$f":"IF('1. Order'!P1381=\"\",\"\",'1. Order'!P1381)","v":{"$error":"#N/A"}},{"$f":"IF('1. Order'!Q1381=\"\",\"\",'1. Order'!Q1381)","v":""},{"$f":"IF('1. Order'!S1381=\"\",\"\",'1. Order'!S1381)","v":""},{"$f":"IF('1. Order'!T1381=\"\",\"\",'1. Order'!T1381)","v":""},{"$f":"IF('1. Order'!W1381=\"\",\"\",'1. Order'!W1381)","v":""},{"$f":"IF('1. Order'!X1381=\"\",\"\",'1. Order'!X1381)","v":""},{"$f":"IF('1. Order'!Y1381=\"\",\"\",'1. Order'!Y1381)","v":"EUR"},{"$f":"IF('1. Order'!Z1381=\"\",\"\",'1. Order'!Z1381)","v":""},{"$f":"IF('1. Order'!AA1381=\"\",\"\",'1. Order'!AA1381)","v":""},{"$f":"IF('1. Order'!AB1381=\"\",\"\",'1. Order'!AB1381)","v":""},null,{"$f":"IF('1. Order'!AT1381=\"\",\"\",'1. Order'!AT1381)","v":""},{"$f":"IF('1. Order'!AU1381=\"\",\"\",'1. Order'!AU1381)","v":""},null,null,null,null,null,null,null,{"$f":"IF('1. Order'!AY1381=\"\",\"\",'1. Order'!AY1381)","v":""},{"$f":"IF('1. Order'!AZ1381=\"\",\"\",'1. Order'!AZ1381)","v":""},{"$f":"IF('1. Order'!BA1381=\"\",\"\",'1. Order'!BA1381)","v":""},{"$f":"IF('1. Order'!BB1381=\"\",\"\",'1. Order'!BB1381)","v":""},{"$f":"IF('1. Order'!BD1381=\"\",\"\",'1. Order'!BD1381)","v":""},{"$f":"IF('1. Order'!BE1381=\"\",\"\",'1. Order'!BE1381)","v":""},{"$f":"IF('1. Order'!BF1381=\"\",\"\",'1. Order'!BF1381)","v":""},{"$f":"IF('1. Order'!BG1381=\"\",\"\",'1. Order'!BG1381)","v":""},{"$f":"IF('1. Order'!BH1381=\"\",\"\",'1. Order'!BH1381)","v":"ZWO"}]
[{"$f":"IF('1. Order'!F1382=\"\",\"\",'1. Order'!F1382)","v":{"$error":"#N/A"}},{"$f":"IF('1. Order'!G1382=\"\",\"\",'1. Order'!G1382)","v":""},{"$f":"IF('1. Order'!H1382=\"\",\"\",'1. Order'!H1382)","v":""},{"$f":"IF('1. Order'!I1382=\"\",\"\",'1. Order'!I1382)","v":""},{"$f":"IF('1. Order'!J1382=\"\",\"\",'1. Order'!J1382)","v":""},{"$f":"IF('1. Order'!K1382=\"\",\"\",'1. Order'!K1382)","v":""},{"$f":"IF('1. Order'!L1382=\"\",\"\",'1. Order'!L1382)","v":""},{"$f":"IF('1. Order'!M1382=\"\",\"\",'1. Order'!M1382)","v":""},{"$f":"IF('1. Order'!N1382=\"\",\"\",'1. Order'!N1382)","v":""},{"$f":"IF('1. Order'!O1382=\"\",\"\",'1. Order'!O1382)","v":{"$error":"#N/A"}},{"$f":"IF('1. Order'!P1382=\"\",\"\",'1. Order'!P1382)","v":{"$error":"#N/A"}},{"$f":"IF('1. Order'!Q1382=\"\",\"\",'1. Order'!Q1382)","v":""},{"$f":"IF('1. Order'!S1382=\"\",\"\",'1. Order'!S1382)","v":""},{"$f":"IF('1. Order'!T1382=\"\",\"\",'1. Order'!T1382)","v":""},{"$f":"IF('1. Order'!W1382=\"\",\"\",'1. Order'!W1382)","v":""},{"$f":"IF('1. Order'!X1382=\"\",\"\",'1. Order'!X1382)","v":""},{"$f":"IF('1. Order'!Y1382=\"\",\"\",'1. Order'!Y1382)","v":"EUR"},{"$f":"IF('1. Order'!Z1382=\"\",\"\",'1. Order'!Z1382)","v":""},{"$f":"IF('1. Order'!AA1382=\"\",\"\",'1. Order'!AA1382)","v":""},{"$f":"IF('1. Order'!AB1382=\"\",\"\",'1. Order'!AB1382)","v":""},null,{"$f":"IF('1. Order'!AT1382=\"\",\"\",'1. Order'!AT1382)","v":""},{"$f":"IF('1. Order'!AU1382=\"\",\"\",'1. Order'!AU1382)","v":""},null,null,null,null,null,null,null,{"$f":"IF('1. Order'!AY1382=\"\",\"\",'1. Order'!AY1382)","v":""},{"$f":"IF('1. Order'!AZ1382=\"\",\"\",'1. Order'!AZ1382)","v":""},{"$f":"IF('1. Order'!BA1382=\"\",\"\",'1. Order'!BA1382)","v":""},{"$f":"IF('1. Order'!BB1382=\"\",\"\",'1. Order'!BB1382)","v":""},{"$f":"IF('1. Order'!BD1382=\"\",\"\",'1. Order'!BD1382)","v":""},{"$f":"IF('1. Order'!BE1382=\"\",\"\",'1. Order'!BE1382)","v":""},{"$f":"IF('1. Order'!BF1382=\"\",\"\",'1. Order'!BF1382)","v":""},{"$f":"IF('1. Order'!BG1382=\"\",\"\",'1. Order'!BG1382)","v":""},{"$f":"IF('1. Order'!BH1382=\"\",\"\",'1. Order'!BH1382)","v":"ZWO"}]
[{"$f":"IF('1. Order'!F1383=\"\",\"\",'1. Order'!F1383)","v":{"$error":"#N/A"}},{"$f":"IF('1. Order'!G1383=\"\",\"\",'1. Order'!G1383)","v":""},{"$f":"IF('1. Order'!H1383=\"\",\"\",'1. Order'!H1383)","v":""},{"$f":"IF('1. Order'!I1383=\"\",\"\",'1. Order'!I1383)","v":""},{"$f":"IF('1. Order'!J1383=\"\",\"\",'1. Order'!J1383)","v":""},{"$f":"IF('1. Order'!K1383=\"\",\"\",'1. Order'!K1383)","v":""},{"$f":"IF('1. Order'!L1383=\"\",\"\",'1. Order'!L1383)","v":""},{"$f":"IF('1. Order'!M1383=\"\",\"\",'1. Order'!M1383)","v":""},{"$f":"IF('1. Order'!N1383=\"\",\"\",'1. Order'!N1383)","v":""},{"$f":"IF('1. Order'!O1383=\"\",\"\",'1. Order'!O1383)","v":{"$error":"#N/A"}},{"$f":"IF('1. Order'!P1383=\"\",\"\",'1. Order'!P1383)","v":{"$error":"#N/A"}},{"$f":"IF('1. Order'!Q1383=\"\",\"\",'1. Order'!Q1383)","v":""},{"$f":"IF('1. Order'!S1383=\"\",\"\",'1. Order'!S1383)","v":""},{"$f":"IF('1. Order'!T1383=\"\",\"\",'1. Order'!T1383)","v":""},{"$f":"IF('1. Order'!W1383=\"\",\"\",'1. Order'!W1383)","v":""},{"$f":"IF('1. Order'!X1383=\"\",\"\",'1. Order'!X1383)","v":""},{"$f":"IF('1. Order'!Y1383=\"\",\"\",'1. Order'!Y1383)","v":"EUR"},{"$f":"IF('1. Order'!Z1383=\"\",\"\",'1. Order'!Z1383)","v":""},{"$f":"IF('1. Order'!AA1383=\"\",\"\",'1. Order'!AA1383)","v":""},{"$f":"IF('1. Order'!AB1383=\"\",\"\",'1. Order'!AB1383)","v":""},null,{"$f":"IF('1. Order'!AT1383=\"\",\"\",'1. Order'!AT1383)","v":""},{"$f":"IF('1. Order'!AU1383=\"\",\"\",'1. Order'!AU1383)","v":""},null,null,null,null,null,null,null,{"$f":"IF('1. Order'!AY1383=\"\",\"\",'1. Order'!AY1383)","v":""},{"$f":"IF('1. Order'!AZ1383=\"\",\"\",'1. Order'!AZ1383)","v":""},{"$f":"IF('1. Order'!BA1383=\"\",\"\",'1. Order'!BA1383)","v":""},{"$f":"IF('1. Order'!BB1383=\"\",\"\",'1. Order'!BB1383)","v":""},{"$f":"IF('1. Order'!BD1383=\"\",\"\",'1. Order'!BD1383)","v":""},{"$f":"IF('1. Order'!BE1383=\"\",\"\",'1. Order'!BE1383)","v":""},{"$f":"IF('1. Order'!BF1383=\"\",\"\",'1. Order'!BF1383)","v":""},{"$f":"IF('1. Order'!BG1383=\"\",\"\",'1. Order'!BG1383)","v":""},{"$f":"IF('1. Order'!BH1383=\"\",\"\",'1. Order'!BH1383)","v":"ZWO"}]
[{"$f":"IF('1. Order'!F1384=\"\",\"\",'1. Order'!F1384)","v":{"$error":"#N/A"}},{"$f":"IF('1. Order'!G1384=\"\",\"\",'1. Order'!G1384)","v":""},{"$f":"IF('1. Order'!H1384=\"\",\"\",'1. Order'!H1384)","v":""},{"$f":"IF('1. Order'!I1384=\"\",\"\",'1. Order'!I1384)","v":""},{"$f":"IF('1. Order'!J1384=\"\",\"\",'1. Order'!J1384)","v":""},{"$f":"IF('1. Order'!K1384=\"\",\"\",'1. Order'!K1384)","v":""},{"$f":"IF('1. Order'!L1384=\"\",\"\",'1. Order'!L1384)","v":""},{"$f":"IF('1. Order'!M1384=\"\",\"\",'1. Order'!M1384)","v":""},{"$f":"IF('1. Order'!N1384=\"\",\"\",'1. Order'!N1384)","v":""},{"$f":"IF('1. Order'!O1384=\"\",\"\",'1. Order'!O1384)","v":{"$error":"#N/A"}},{"$f":"IF('1. Order'!P1384=\"\",\"\",'1. Order'!P1384)","v":{"$error":"#N/A"}},{"$f":"IF('1. Order'!Q1384=\"\",\"\",'1. Order'!Q1384)","v":""},{"$f":"IF('1. Order'!S1384=\"\",\"\",'1. Order'!S1384)","v":""},{"$f":"IF('1. Order'!T1384=\"\",\"\",'1. Order'!T1384)","v":""},{"$f":"IF('1. Order'!W1384=\"\",\"\",'1. Order'!W1384)","v":""},{"$f":"IF('1. Order'!X1384=\"\",\"\",'1. Order'!X1384)","v":""},{"$f":"IF('1. Order'!Y1384=\"\",\"\",'1. Order'!Y1384)","v":"EUR"},{"$f":"IF('1. Order'!Z1384=\"\",\"\",'1. Order'!Z1384)","v":""},{"$f":"IF('1. Order'!AA1384=\"\",\"\",'1. Order'!AA1384)","v":""},{"$f":"IF('1. Order'!AB1384=\"\",\"\",'1. Order'!AB1384)","v":""},null,{"$f":"IF('1. Order'!AT1384=\"\",\"\",'1. Order'!AT1384)","v":""},{"$f":"IF('1. Order'!AU1384=\"\",\"\",'1. Order'!AU1384)","v":""},null,null,null,null,null,null,null,{"$f":"IF('1. Order'!AY1384=\"\",\"\",'1. Order'!AY1384)","v":""},{"$f":"IF('1. Order'!AZ1384=\"\",\"\",'1. Order'!AZ1384)","v":""},{"$f":"IF('1. Order'!BA1384=\"\",\"\",'1. Order'!BA1384)","v":""},{"$f":"IF('1. Order'!BB1384=\"\",\"\",'1. Order'!BB1384)","v":""},{"$f":"IF('1. Order'!BD1384=\"\",\"\",'1. Order'!BD1384)","v":""},{"$f":"IF('1. Order'!BE1384=\"\",\"\",'1. Order'!BE1384)","v":""},{"$f":"IF('1. Order'!BF1384=\"\",\"\",'1. Order'!BF1384)","v":""},{"$f":"IF('1. Order'!BG1384=\"\",\"\",'1. Order'!BG1384)","v":""},{"$f":"IF('1. Order'!BH1384=\"\",\"\",'1. Order'!BH1384)","v":"ZWO"}]
[{"$f":"IF('1. Order'!F1385=\"\",\"\",'1. Order'!F1385)","v":{"$error":"#N/A"}},{"$f":"IF('1. Order'!G1385=\"\",\"\",'1. Order'!G1385)","v":""},{"$f":"IF('1. Order'!H1385=\"\",\"\",'1. Order'!H1385)","v":""},{"$f":"IF('1. Order'!I1385=\"\",\"\",'1. Order'!I1385)","v":""},{"$f":"IF('1. Order'!J1385=\"\",\"\",'1. Order'!J1385)","v":""},{"$f":"IF('1. Order'!K1385=\"\",\"\",'1. Order'!K1385)","v":""},{"$f":"IF('1. Order'!L1385=\"\",\"\",'1. Order'!L1385)","v":""},{"$f":"IF('1. Order'!M1385=\"\",\"\",'1. Order'!M1385)","v":""},{"$f":"IF('1. Order'!N1385=\"\",\"\",'1. Order'!N1385)","v":""},{"$f":"IF('1. Order'!O1385=\"\",\"\",'1. Order'!O1385)","v":{"$error":"#N/A"}},{"$f":"IF('1. Order'!P1385=\"\",\"\",'1. Order'!P1385)","v":{"$error":"#N/A"}},{"$f":"IF('1. Order'!Q1385=\"\",\"\",'1. Order'!Q1385)","v":""},{"$f":"IF('1. Order'!S1385=\"\",\"\",'1. Order'!S1385)","v":""},{"$f":"IF('1. Order'!T1385=\"\",\"\",'1. Order'!T1385)","v":""},{"$f":"IF('1. Order'!W1385=\"\",\"\",'1. Order'!W1385)","v":""},{"$f":"IF('1. Order'!X1385=\"\",\"\",'1. Order'!X1385)","v":""},{"$f":"IF('1. Order'!Y1385=\"\",\"\",'1. Order'!Y1385)","v":"EUR"},{"$f":"IF('1. Order'!Z1385=\"\",\"\",'1. Order'!Z1385)","v":""},{"$f":"IF('1. Order'!AA1385=\"\",\"\",'1. Order'!AA1385)","v":""},{"$f":"IF('1. Order'!AB1385=\"\",\"\",'1. Order'!AB1385)","v":""},null,{"$f":"IF('1. Order'!AT1385=\"\",\"\",'1. Order'!AT1385)","v":""},{"$f":"IF('1. Order'!AU1385=\"\",\"\",'1. Order'!AU1385)","v":""},null,null,null,null,null,null,null,{"$f":"IF('1. Order'!AY1385=\"\",\"\",'1. Order'!AY1385)","v":""},{"$f":"IF('1. Order'!AZ1385=\"\",\"\",'1. Order'!AZ1385)","v":""},{"$f":"IF('1. Order'!BA1385=\"\",\"\",'1. Order'!BA1385)","v":""},{"$f":"IF('1. Order'!BB1385=\"\",\"\",'1. Order'!BB1385)","v":""},{"$f":"IF('1. Order'!BD1385=\"\",\"\",'1. Order'!BD1385)","v":""},{"$f":"IF('1. Order'!BE1385=\"\",\"\",'1. Order'!BE1385)","v":""},{"$f":"IF('1. Order'!BF1385=\"\",\"\",'1. Order'!BF1385)","v":""},{"$f":"IF('1. Order'!BG1385=\"\",\"\",'1. Order'!BG1385)","v":""},{"$f":"IF('1. Order'!BH1385=\"\",\"\",'1. Order'!BH1385)","v":"ZWO"}]
[{"$f":"IF('1. Order'!F1386=\"\",\"\",'1. Order'!F1386)","v":{"$error":"#N/A"}},{"$f":"IF('1. Order'!G1386=\"\",\"\",'1. Order'!G1386)","v":""},{"$f":"IF('1. Order'!H1386=\"\",\"\",'1. Order'!H1386)","v":""},{"$f":"IF('1. Order'!I1386=\"\",\"\",'1. Order'!I1386)","v":""},{"$f":"IF('1. Order'!J1386=\"\",\"\",'1. Order'!J1386)","v":""},{"$f":"IF('1. Order'!K1386=\"\",\"\",'1. Order'!K1386)","v":""},{"$f":"IF('1. Order'!L1386=\"\",\"\",'1. Order'!L1386)","v":""},{"$f":"IF('1. Order'!M1386=\"\",\"\",'1. Order'!M1386)","v":""},{"$f":"IF('1. Order'!N1386=\"\",\"\",'1. Order'!N1386)","v":""},{"$f":"IF('1. Order'!O1386=\"\",\"\",'1. Order'!O1386)","v":{"$error":"#N/A"}},{"$f":"IF('1. Order'!P1386=\"\",\"\",'1. Order'!P1386)","v":{"$error":"#N/A"}},{"$f":"IF('1. Order'!Q1386=\"\",\"\",'1. Order'!Q1386)","v":""},{"$f":"IF('1. Order'!S1386=\"\",\"\",'1. Order'!S1386)","v":""},{"$f":"IF('1. Order'!T1386=\"\",\"\",'1. Order'!T1386)","v":""},{"$f":"IF('1. Order'!W1386=\"\",\"\",'1. Order'!W1386)","v":""},{"$f":"IF('1. Order'!X1386=\"\",\"\",'1. Order'!X1386)","v":""},{"$f":"IF('1. Order'!Y1386=\"\",\"\",'1. Order'!Y1386)","v":"EUR"},{"$f":"IF('1. Order'!Z1386=\"\",\"\",'1. Order'!Z1386)","v":""},{"$f":"IF('1. Order'!AA1386=\"\",\"\",'1. Order'!AA1386)","v":""},{"$f":"IF('1. Order'!AB1386=\"\",\"\",'1. Order'!AB1386)","v":""},null,{"$f":"IF('1. Order'!AT1386=\"\",\"\",'1. Order'!AT1386)","v":""},{"$f":"IF('1. Order'!AU1386=\"\",\"\",'1. Order'!AU1386)","v":""},null,null,null,null,null,null,null,{"$f":"IF('1. Order'!AY1386=\"\",\"\",'1. Order'!AY1386)","v":""},{"$f":"IF('1. Order'!AZ1386=\"\",\"\",'1. Order'!AZ1386)","v":""},{"$f":"IF('1. Order'!BA1386=\"\",\"\",'1. Order'!BA1386)","v":""},{"$f":"IF('1. Order'!BB1386=\"\",\"\",'1. Order'!BB1386)","v":""},{"$f":"IF('1. Order'!BD1386=\"\",\"\",'1. Order'!BD1386)","v":""},{"$f":"IF('1. Order'!BE1386=\"\",\"\",'1. Order'!BE1386)","v":""},{"$f":"IF('1. Order'!BF1386=\"\",\"\",'1. Order'!BF1386)","v":""},{"$f":"IF('1. Order'!BG1386=\"\",\"\",'1. Order'!BG1386)","v":""},{"$f":"IF('1. Order'!BH1386=\"\",\"\",'1. Order'!BH1386)","v":"ZWO"}]
[{"$f":"IF('1. Order'!F1387=\"\",\"\",'1. Order'!F1387)","v":{"$error":"#N/A"}},{"$f":"IF('1. Order'!G1387=\"\",\"\",'1. Order'!G1387)","v":""},{"$f":"IF('1. Order'!H1387=\"\",\"\",'1. Order'!H1387)","v":""},{"$f":"IF('1. Order'!I1387=\"\",\"\",'1. Order'!I1387)","v":""},{"$f":"IF('1. Order'!J1387=\"\",\"\",'1. Order'!J1387)","v":""},{"$f":"IF('1. Order'!K1387=\"\",\"\",'1. Order'!K1387)","v":""},{"$f":"IF('1. Order'!L1387=\"\",\"\",'1. Order'!L1387)","v":""},{"$f":"IF('1. Order'!M1387=\"\",\"\",'1. Order'!M1387)","v":""},{"$f":"IF('1. Order'!N1387=\"\",\"\",'1. Order'!N1387)","v":""},{"$f":"IF('1. Order'!O1387=\"\",\"\",'1. Order'!O1387)","v":{"$error":"#N/A"}},{"$f":"IF('1. Order'!P1387=\"\",\"\",'1. Order'!P1387)","v":{"$error":"#N/A"}},{"$f":"IF('1. Order'!Q1387=\"\",\"\",'1. Order'!Q1387)","v":""},{"$f":"IF('1. Order'!S1387=\"\",\"\",'1. Order'!S1387)","v":""},{"$f":"IF('1. Order'!T1387=\"\",\"\",'1. Order'!T1387)","v":""},{"$f":"IF('1. Order'!W1387=\"\",\"\",'1. Order'!W1387)","v":""},{"$f":"IF('1. Order'!X1387=\"\",\"\",'1. Order'!X1387)","v":""},{"$f":"IF('1. Order'!Y1387=\"\",\"\",'1. Order'!Y1387)","v":"EUR"},{"$f":"IF('1. Order'!Z1387=\"\",\"\",'1. Order'!Z1387)","v":""},{"$f":"IF('1. Order'!AA1387=\"\",\"\",'1. Order'!AA1387)","v":""},{"$f":"IF('1. Order'!AB1387=\"\",\"\",'1. Order'!AB1387)","v":""},null,{"$f":"IF('1. Order'!AT1387=\"\",\"\",'1. Order'!AT1387)","v":""},{"$f":"IF('1. Order'!AU1387=\"\",\"\",'1. Order'!AU1387)","v":""},null,null,null,null,null,null,null,{"$f":"IF('1. Order'!AY1387=\"\",\"\",'1. Order'!AY1387)","v":""},{"$f":"IF('1. Order'!AZ1387=\"\",\"\",'1. Order'!AZ1387)","v":""},{"$f":"IF('1. Order'!BA1387=\"\",\"\",'1. Order'!BA1387)","v":""},{"$f":"IF('1. Order'!BB1387=\"\",\"\",'1. Order'!BB1387)","v":""},{"$f":"IF('1. Order'!BD1387=\"\",\"\",'1. Order'!BD1387)","v":""},{"$f":"IF('1. Order'!BE1387=\"\",\"\",'1. Order'!BE1387)","v":""},{"$f":"IF('1. Order'!BF1387=\"\",\"\",'1. Order'!BF1387)","v":""},{"$f":"IF('1. Order'!BG1387=\"\",\"\",'1. Order'!BG1387)","v":""},{"$f":"IF('1. Order'!BH1387=\"\",\"\",'1. Order'!BH1387)","v":"ZWO"}]
[{"$f":"IF('1. Order'!F1388=\"\",\"\",'1. Order'!F1388)","v":{"$error":"#N/A"}},{"$f":"IF('1. Order'!G1388=\"\",\"\",'1. Order'!G1388)","v":""},{"$f":"IF('1. Order'!H1388=\"\",\"\",'1. Order'!H1388)","v":""},{"$f":"IF('1. Order'!I1388=\"\",\"\",'1. Order'!I1388)","v":""},{"$f":"IF('1. Order'!J1388=\"\",\"\",'1. Order'!J1388)","v":""},{"$f":"IF('1. Order'!K1388=\"\",\"\",'1. Order'!K1388)","v":""},{"$f":"IF('1. Order'!L1388=\"\",\"\",'1. Order'!L1388)","v":""},{"$f":"IF('1. Order'!M1388=\"\",\"\",'1. Order'!M1388)","v":""},{"$f":"IF('1. Order'!N1388=\"\",\"\",'1. Order'!N1388)","v":""},{"$f":"IF('1. Order'!O1388=\"\",\"\",'1. Order'!O1388)","v":{"$error":"#N/A"}},{"$f":"IF('1. Order'!P1388=\"\",\"\",'1. Order'!P1388)","v":{"$error":"#N/A"}},{"$f":"IF('1. Order'!Q1388=\"\",\"\",'1. Order'!Q1388)","v":""},{"$f":"IF('1. Order'!S1388=\"\",\"\",'1. Order'!S1388)","v":""},{"$f":"IF('1. Order'!T1388=\"\",\"\",'1. Order'!T1388)","v":""},{"$f":"IF('1. Order'!W1388=\"\",\"\",'1. Order'!W1388)","v":""},{"$f":"IF('1. Order'!X1388=\"\",\"\",'1. Order'!X1388)","v":""},{"$f":"IF('1. Order'!Y1388=\"\",\"\",'1. Order'!Y1388)","v":"EUR"},{"$f":"IF('1. Order'!Z1388=\"\",\"\",'1. Order'!Z1388)","v":""},{"$f":"IF('1. Order'!AA1388=\"\",\"\",'1. Order'!AA1388)","v":""},{"$f":"IF('1. Order'!AB1388=\"\",\"\",'1. Order'!AB1388)","v":""},null,{"$f":"IF('1. Order'!AT1388=\"\",\"\",'1. Order'!AT1388)","v":""},{"$f":"IF('1. Order'!AU1388=\"\",\"\",'1. Order'!AU1388)","v":""},null,null,null,null,null,null,null,{"$f":"IF('1. Order'!AY1388=\"\",\"\",'1. Order'!AY1388)","v":""},{"$f":"IF('1. Order'!AZ1388=\"\",\"\",'1. Order'!AZ1388)","v":""},{"$f":"IF('1. Order'!BA1388=\"\",\"\",'1. Order'!BA1388)","v":""},{"$f":"IF('1. Order'!BB1388=\"\",\"\",'1. Order'!BB1388)","v":""},{"$f":"IF('1. Order'!BD1388=\"\",\"\",'1. Order'!BD1388)","v":""},{"$f":"IF('1. Order'!BE1388=\"\",\"\",'1. Order'!BE1388)","v":""},{"$f":"IF('1. Order'!BF1388=\"\",\"\",'1. Order'!BF1388)","v":""},{"$f":"IF('1. Order'!BG1388=\"\",\"\",'1. Order'!BG1388)","v":""},{"$f":"IF('1. Order'!BH1388=\"\",\"\",'1. Order'!BH1388)","v":"ZWO"}]
[{"$f":"IF('1. Order'!F1389=\"\",\"\",'1. Order'!F1389)","v":{"$error":"#N/A"}},{"$f":"IF('1. Order'!G1389=\"\",\"\",'1. Order'!G1389)","v":""},{"$f":"IF('1. Order'!H1389=\"\",\"\",'1. Order'!H1389)","v":""},{"$f":"IF('1. Order'!I1389=\"\",\"\",'1. Order'!I1389)","v":""},{"$f":"IF('1. Order'!J1389=\"\",\"\",'1. Order'!J1389)","v":""},{"$f":"IF('1. Order'!K1389=\"\",\"\",'1. Order'!K1389)","v":""},{"$f":"IF('1. Order'!L1389=\"\",\"\",'1. Order'!L1389)","v":""},{"$f":"IF('1. Order'!M1389=\"\",\"\",'1. Order'!M1389)","v":""},{"$f":"IF('1. Order'!N1389=\"\",\"\",'1. Order'!N1389)","v":""},{"$f":"IF('1. Order'!O1389=\"\",\"\",'1. Order'!O1389)","v":{"$error":"#N/A"}},{"$f":"IF('1. Order'!P1389=\"\",\"\",'1. Order'!P1389)","v":{"$error":"#N/A"}},{"$f":"IF('1. Order'!Q1389=\"\",\"\",'1. Order'!Q1389)","v":""},{"$f":"IF('1. Order'!S1389=\"\",\"\",'1. Order'!S1389)","v":""},{"$f":"IF('1. Order'!T1389=\"\",\"\",'1. Order'!T1389)","v":""},{"$f":"IF('1. Order'!W1389=\"\",\"\",'1. Order'!W1389)","v":""},{"$f":"IF('1. Order'!X1389=\"\",\"\",'1. Order'!X1389)","v":""},{"$f":"IF('1. Order'!Y1389=\"\",\"\",'1. Order'!Y1389)","v":"EUR"},{"$f":"IF('1. Order'!Z1389=\"\",\"\",'1. Order'!Z1389)","v":""},{"$f":"IF('1. Order'!AA1389=\"\",\"\",'1. Order'!AA1389)","v":""},{"$f":"IF('1. Order'!AB1389=\"\",\"\",'1. Order'!AB1389)","v":""},null,{"$f":"IF('1. Order'!AT1389=\"\",\"\",'1. Order'!AT1389)","v":""},{"$f":"IF('1. Order'!AU1389=\"\",\"\",'1. Order'!AU1389)","v":""},null,null,null,null,null,null,null,{"$f":"IF('1. Order'!AY1389=\"\",\"\",'1. Order'!AY1389)","v":""},{"$f":"IF('1. Order'!AZ1389=\"\",\"\",'1. Order'!AZ1389)","v":""},{"$f":"IF('1. Order'!BA1389=\"\",\"\",'1. Order'!BA1389)","v":""},{"$f":"IF('1. Order'!BB1389=\"\",\"\",'1. Order'!BB1389)","v":""},{"$f":"IF('1. Order'!BD1389=\"\",\"\",'1. Order'!BD1389)","v":""},{"$f":"IF('1. Order'!BE1389=\"\",\"\",'1. Order'!BE1389)","v":""},{"$f":"IF('1. Order'!BF1389=\"\",\"\",'1. Order'!BF1389)","v":""},{"$f":"IF('1. Order'!BG1389=\"\",\"\",'1. Order'!BG1389)","v":""},{"$f":"IF('1. Order'!BH1389=\"\",\"\",'1. Order'!BH1389)","v":"ZWO"}]
[{"$f":"IF('1. Order'!F1390=\"\",\"\",'1. Order'!F1390)","v":{"$error":"#N/A"}},{"$f":"IF('1. Order'!G1390=\"\",\"\",'1. Order'!G1390)","v":""},{"$f":"IF('1. Order'!H1390=\"\",\"\",'1. Order'!H1390)","v":""},{"$f":"IF('1. Order'!I1390=\"\",\"\",'1. Order'!I1390)","v":""},{"$f":"IF('1. Order'!J1390=\"\",\"\",'1. Order'!J1390)","v":""},{"$f":"IF('1. Order'!K1390=\"\",\"\",'1. Order'!K1390)","v":""},{"$f":"IF('1. Order'!L1390=\"\",\"\",'1. Order'!L1390)","v":""},{"$f":"IF('1. Order'!M1390=\"\",\"\",'1. Order'!M1390)","v":""},{"$f":"IF('1. Order'!N1390=\"\",\"\",'1. Order'!N1390)","v":""},{"$f":"IF('1. Order'!O1390=\"\",\"\",'1. Order'!O1390)","v":{"$error":"#N/A"}},{"$f":"IF('1. Order'!P1390=\"\",\"\",'1. Order'!P1390)","v":{"$error":"#N/A"}},{"$f":"IF('1. Order'!Q1390=\"\",\"\",'1. Order'!Q1390)","v":""},{"$f":"IF('1. Order'!S1390=\"\",\"\",'1. Order'!S1390)","v":""},{"$f":"IF('1. Order'!T1390=\"\",\"\",'1. Order'!T1390)","v":""},{"$f":"IF('1. Order'!W1390=\"\",\"\",'1. Order'!W1390)","v":""},{"$f":"IF('1. Order'!X1390=\"\",\"\",'1. Order'!X1390)","v":""},{"$f":"IF('1. Order'!Y1390=\"\",\"\",'1. Order'!Y1390)","v":"EUR"},{"$f":"IF('1. Order'!Z1390=\"\",\"\",'1. Order'!Z1390)","v":""},{"$f":"IF('1. Order'!AA1390=\"\",\"\",'1. Order'!AA1390)","v":""},{"$f":"IF('1. Order'!AB1390=\"\",\"\",'1. Order'!AB1390)","v":""},null,{"$f":"IF('1. Order'!AT1390=\"\",\"\",'1. Order'!AT1390)","v":""},{"$f":"IF('1. Order'!AU1390=\"\",\"\",'1. Order'!AU1390)","v":""},null,null,null,null,null,null,null,{"$f":"IF('1. Order'!AY1390=\"\",\"\",'1. Order'!AY1390)","v":""},{"$f":"IF('1. Order'!AZ1390=\"\",\"\",'1. Order'!AZ1390)","v":""},{"$f":"IF('1. Order'!BA1390=\"\",\"\",'1. Order'!BA1390)","v":""},{"$f":"IF('1. Order'!BB1390=\"\",\"\",'1. Order'!BB1390)","v":""},{"$f":"IF('1. Order'!BD1390=\"\",\"\",'1. Order'!BD1390)","v":""},{"$f":"IF('1. Order'!BE1390=\"\",\"\",'1. Order'!BE1390)","v":""},{"$f":"IF('1. Order'!BF1390=\"\",\"\",'1. Order'!BF1390)","v":""},{"$f":"IF('1. Order'!BG1390=\"\",\"\",'1. Order'!BG1390)","v":""},{"$f":"IF('1. Order'!BH1390=\"\",\"\",'1. Order'!BH1390)","v":"ZWO"}]
[{"$f":"IF('1. Order'!F1391=\"\",\"\",'1. Order'!F1391)","v":{"$error":"#N/A"}},{"$f":"IF('1. Order'!G1391=\"\",\"\",'1. Order'!G1391)","v":""},{"$f":"IF('1. Order'!H1391=\"\",\"\",'1. Order'!H1391)","v":""},{"$f":"IF('1. Order'!I1391=\"\",\"\",'1. Order'!I1391)","v":""},{"$f":"IF('1. Order'!J1391=\"\",\"\",'1. Order'!J1391)","v":""},{"$f":"IF('1. Order'!K1391=\"\",\"\",'1. Order'!K1391)","v":""},{"$f":"IF('1. Order'!L1391=\"\",\"\",'1. Order'!L1391)","v":""},{"$f":"IF('1. Order'!M1391=\"\",\"\",'1. Order'!M1391)","v":""},{"$f":"IF('1. Order'!N1391=\"\",\"\",'1. Order'!N1391)","v":""},{"$f":"IF('1. Order'!O1391=\"\",\"\",'1. Order'!O1391)","v":{"$error":"#N/A"}},{"$f":"IF('1. Order'!P1391=\"\",\"\",'1. Order'!P1391)","v":{"$error":"#N/A"}},{"$f":"IF('1. Order'!Q1391=\"\",\"\",'1. Order'!Q1391)","v":""},{"$f":"IF('1. Order'!S1391=\"\",\"\",'1. Order'!S1391)","v":""},{"$f":"IF('1. Order'!T1391=\"\",\"\",'1. Order'!T1391)","v":""},{"$f":"IF('1. Order'!W1391=\"\",\"\",'1. Order'!W1391)","v":""},{"$f":"IF('1. Order'!X1391=\"\",\"\",'1. Order'!X1391)","v":""},{"$f":"IF('1. Order'!Y1391=\"\",\"\",'1. Order'!Y1391)","v":"EUR"},{"$f":"IF('1. Order'!Z1391=\"\",\"\",'1. Order'!Z1391)","v":""},{"$f":"IF('1. Order'!AA1391=\"\",\"\",'1. Order'!AA1391)","v":""},{"$f":"IF('1. Order'!AB1391=\"\",\"\",'1. Order'!AB1391)","v":""},null,{"$f":"IF('1. Order'!AT1391=\"\",\"\",'1. Order'!AT1391)","v":""},{"$f":"IF('1. Order'!AU1391=\"\",\"\",'1. Order'!AU1391)","v":""},null,null,null,null,null,null,null,{"$f":"IF('1. Order'!AY1391=\"\",\"\",'1. Order'!AY1391)","v":""},{"$f":"IF('1. Order'!AZ1391=\"\",\"\",'1. Order'!AZ1391)","v":""},{"$f":"IF('1. Order'!BA1391=\"\",\"\",'1. Order'!BA1391)","v":""},{"$f":"IF('1. Order'!BB1391=\"\",\"\",'1. Order'!BB1391)","v":""},{"$f":"IF('1. Order'!BD1391=\"\",\"\",'1. Order'!BD1391)","v":""},{"$f":"IF('1. Order'!BE1391=\"\",\"\",'1. Order'!BE1391)","v":""},{"$f":"IF('1. Order'!BF1391=\"\",\"\",'1. Order'!BF1391)","v":""},{"$f":"IF('1. Order'!BG1391=\"\",\"\",'1. Order'!BG1391)","v":""},{"$f":"IF('1. Order'!BH1391=\"\",\"\",'1. Order'!BH1391)","v":"ZWO"}]
[{"$f":"IF('1. Order'!F1392=\"\",\"\",'1. Order'!F1392)","v":{"$error":"#N/A"}},{"$f":"IF('1. Order'!G1392=\"\",\"\",'1. Order'!G1392)","v":""},{"$f":"IF('1. Order'!H1392=\"\",\"\",'1. Order'!H1392)","v":""},{"$f":"IF('1. Order'!I1392=\"\",\"\",'1. Order'!I1392)","v":""},{"$f":"IF('1. Order'!J1392=\"\",\"\",'1. Order'!J1392)","v":""},{"$f":"IF('1. Order'!K1392=\"\",\"\",'1. Order'!K1392)","v":""},{"$f":"IF('1. Order'!L1392=\"\",\"\",'1. Order'!L1392)","v":""},{"$f":"IF('1. Order'!M1392=\"\",\"\",'1. Order'!M1392)","v":""},{"$f":"IF('1. Order'!N1392=\"\",\"\",'1. Order'!N1392)","v":""},{"$f":"IF('1. Order'!O1392=\"\",\"\",'1. Order'!O1392)","v":{"$error":"#N/A"}},{"$f":"IF('1. Order'!P1392=\"\",\"\",'1. Order'!P1392)","v":{"$error":"#N/A"}},{"$f":"IF('1. Order'!Q1392=\"\",\"\",'1. Order'!Q1392)","v":""},{"$f":"IF('1. Order'!S1392=\"\",\"\",'1. Order'!S1392)","v":""},{"$f":"IF('1. Order'!T1392=\"\",\"\",'1. Order'!T1392)","v":""},{"$f":"IF('1. Order'!W1392=\"\",\"\",'1. Order'!W1392)","v":""},{"$f":"IF('1. Order'!X1392=\"\",\"\",'1. Order'!X1392)","v":""},{"$f":"IF('1. Order'!Y1392=\"\",\"\",'1. Order'!Y1392)","v":"EUR"},{"$f":"IF('1. Order'!Z1392=\"\",\"\",'1. Order'!Z1392)","v":""},{"$f":"IF('1. Order'!AA1392=\"\",\"\",'1. Order'!AA1392)","v":""},{"$f":"IF('1. Order'!AB1392=\"\",\"\",'1. Order'!AB1392)","v":""},null,{"$f":"IF('1. Order'!AT1392=\"\",\"\",'1. Order'!AT1392)","v":""},{"$f":"IF('1. Order'!AU1392=\"\",\"\",'1. Order'!AU1392)","v":""},null,null,null,null,null,null,null,{"$f":"IF('1. Order'!AY1392=\"\",\"\",'1. Order'!AY1392)","v":""},{"$f":"IF('1. Order'!AZ1392=\"\",\"\",'1. Order'!AZ1392)","v":""},{"$f":"IF('1. Order'!BA1392=\"\",\"\",'1. Order'!BA1392)","v":""},{"$f":"IF('1. Order'!BB1392=\"\",\"\",'1. Order'!BB1392)","v":""},{"$f":"IF('1. Order'!BD1392=\"\",\"\",'1. Order'!BD1392)","v":""},{"$f":"IF('1. Order'!BE1392=\"\",\"\",'1. Order'!BE1392)","v":""},{"$f":"IF('1. Order'!BF1392=\"\",\"\",'1. Order'!BF1392)","v":""},{"$f":"IF('1. Order'!BG1392=\"\",\"\",'1. Order'!BG1392)","v":""},{"$f":"IF('1. Order'!BH1392=\"\",\"\",'1. Order'!BH1392)","v":"ZWO"}]
[{"$f":"IF('1. Order'!F1393=\"\",\"\",'1. Order'!F1393)","v":{"$error":"#N/A"}},{"$f":"IF('1. Order'!G1393=\"\",\"\",'1. Order'!G1393)","v":""},{"$f":"IF('1. Order'!H1393=\"\",\"\",'1. Order'!H1393)","v":""},{"$f":"IF('1. Order'!I1393=\"\",\"\",'1. Order'!I1393)","v":""},{"$f":"IF('1. Order'!J1393=\"\",\"\",'1. Order'!J1393)","v":""},{"$f":"IF('1. Order'!K1393=\"\",\"\",'1. Order'!K1393)","v":""},{"$f":"IF('1. Order'!L1393=\"\",\"\",'1. Order'!L1393)","v":""},{"$f":"IF('1. Order'!M1393=\"\",\"\",'1. Order'!M1393)","v":""},{"$f":"IF('1. Order'!N1393=\"\",\"\",'1. Order'!N1393)","v":""},{"$f":"IF('1. Order'!O1393=\"\",\"\",'1. Order'!O1393)","v":{"$error":"#N/A"}},{"$f":"IF('1. Order'!P1393=\"\",\"\",'1. Order'!P1393)","v":{"$error":"#N/A"}},{"$f":"IF('1. Order'!Q1393=\"\",\"\",'1. Order'!Q1393)","v":""},{"$f":"IF('1. Order'!S1393=\"\",\"\",'1. Order'!S1393)","v":""},{"$f":"IF('1. Order'!T1393=\"\",\"\",'1. Order'!T1393)","v":""},{"$f":"IF('1. Order'!W1393=\"\",\"\",'1. Order'!W1393)","v":""},{"$f":"IF('1. Order'!X1393=\"\",\"\",'1. Order'!X1393)","v":""},{"$f":"IF('1. Order'!Y1393=\"\",\"\",'1. Order'!Y1393)","v":"EUR"},{"$f":"IF('1. Order'!Z1393=\"\",\"\",'1. Order'!Z1393)","v":""},{"$f":"IF('1. Order'!AA1393=\"\",\"\",'1. Order'!AA1393)","v":""},{"$f":"IF('1. Order'!AB1393=\"\",\"\",'1. Order'!AB1393)","v":""},null,{"$f":"IF('1. Order'!AT1393=\"\",\"\",'1. Order'!AT1393)","v":""},{"$f":"IF('1. Order'!AU1393=\"\",\"\",'1. Order'!AU1393)","v":""},null,null,null,null,null,null,null,{"$f":"IF('1. Order'!AY1393=\"\",\"\",'1. Order'!AY1393)","v":""},{"$f":"IF('1. Order'!AZ1393=\"\",\"\",'1. Order'!AZ1393)","v":""},{"$f":"IF('1. Order'!BA1393=\"\",\"\",'1. Order'!BA1393)","v":""},{"$f":"IF('1. Order'!BB1393=\"\",\"\",'1. Order'!BB1393)","v":""},{"$f":"IF('1. Order'!BD1393=\"\",\"\",'1. Order'!BD1393)","v":""},{"$f":"IF('1. Order'!BE1393=\"\",\"\",'1. Order'!BE1393)","v":""},{"$f":"IF('1. Order'!BF1393=\"\",\"\",'1. Order'!BF1393)","v":""},{"$f":"IF('1. Order'!BG1393=\"\",\"\",'1. Order'!BG1393)","v":""},{"$f":"IF('1. Order'!BH1393=\"\",\"\",'1. Order'!BH1393)","v":"ZWO"}]
[{"$f":"IF('1. Order'!F1394=\"\",\"\",'1. Order'!F1394)","v":{"$error":"#N/A"}},{"$f":"IF('1. Order'!G1394=\"\",\"\",'1. Order'!G1394)","v":""},{"$f":"IF('1. Order'!H1394=\"\",\"\",'1. Order'!H1394)","v":""},{"$f":"IF('1. Order'!I1394=\"\",\"\",'1. Order'!I1394)","v":""},{"$f":"IF('1. Order'!J1394=\"\",\"\",'1. Order'!J1394)","v":""},{"$f":"IF('1. Order'!K1394=\"\",\"\",'1. Order'!K1394)","v":""},{"$f":"IF('1. Order'!L1394=\"\",\"\",'1. Order'!L1394)","v":""},{"$f":"IF('1. Order'!M1394=\"\",\"\",'1. Order'!M1394)","v":""},{"$f":"IF('1. Order'!N1394=\"\",\"\",'1. Order'!N1394)","v":""},{"$f":"IF('1. Order'!O1394=\"\",\"\",'1. Order'!O1394)","v":{"$error":"#N/A"}},{"$f":"IF('1. Order'!P1394=\"\",\"\",'1. Order'!P1394)","v":{"$error":"#N/A"}},{"$f":"IF('1. Order'!Q1394=\"\",\"\",'1. Order'!Q1394)","v":""},{"$f":"IF('1. Order'!S1394=\"\",\"\",'1. Order'!S1394)","v":""},{"$f":"IF('1. Order'!T1394=\"\",\"\",'1. Order'!T1394)","v":""},{"$f":"IF('1. Order'!W1394=\"\",\"\",'1. Order'!W1394)","v":""},{"$f":"IF('1. Order'!X1394=\"\",\"\",'1. Order'!X1394)","v":""},{"$f":"IF('1. Order'!Y1394=\"\",\"\",'1. Order'!Y1394)","v":"EUR"},{"$f":"IF('1. Order'!Z1394=\"\",\"\",'1. Order'!Z1394)","v":""},{"$f":"IF('1. Order'!AA1394=\"\",\"\",'1. Order'!AA1394)","v":""},{"$f":"IF('1. Order'!AB1394=\"\",\"\",'1. Order'!AB1394)","v":""},null,{"$f":"IF('1. Order'!AT1394=\"\",\"\",'1. Order'!AT1394)","v":""},{"$f":"IF('1. Order'!AU1394=\"\",\"\",'1. Order'!AU1394)","v":""},null,null,null,null,null,null,null,{"$f":"IF('1. Order'!AY1394=\"\",\"\",'1. Order'!AY1394)","v":""},{"$f":"IF('1. Order'!AZ1394=\"\",\"\",'1. Order'!AZ1394)","v":""},{"$f":"IF('1. Order'!BA1394=\"\",\"\",'1. Order'!BA1394)","v":""},{"$f":"IF('1. Order'!BB1394=\"\",\"\",'1. Order'!BB1394)","v":""},{"$f":"IF('1. Order'!BD1394=\"\",\"\",'1. Order'!BD1394)","v":""},{"$f":"IF('1. Order'!BE1394=\"\",\"\",'1. Order'!BE1394)","v":""},{"$f":"IF('1. Order'!BF1394=\"\",\"\",'1. Order'!BF1394)","v":""},{"$f":"IF('1. Order'!BG1394=\"\",\"\",'1. Order'!BG1394)","v":""},{"$f":"IF('1. Order'!BH1394=\"\",\"\",'1. Order'!BH1394)","v":"ZWO"}]
[{"$f":"IF('1. Order'!F1395=\"\",\"\",'1. Order'!F1395)","v":{"$error":"#N/A"}},{"$f":"IF('1. Order'!G1395=\"\",\"\",'1. Order'!G1395)","v":""},{"$f":"IF('1. Order'!H1395=\"\",\"\",'1. Order'!H1395)","v":""},{"$f":"IF('1. Order'!I1395=\"\",\"\",'1. Order'!I1395)","v":""},{"$f":"IF('1. Order'!J1395=\"\",\"\",'1. Order'!J1395)","v":""},{"$f":"IF('1. Order'!K1395=\"\",\"\",'1. Order'!K1395)","v":""},{"$f":"IF('1. Order'!L1395=\"\",\"\",'1. Order'!L1395)","v":""},{"$f":"IF('1. Order'!M1395=\"\",\"\",'1. Order'!M1395)","v":""},{"$f":"IF('1. Order'!N1395=\"\",\"\",'1. Order'!N1395)","v":""},{"$f":"IF('1. Order'!O1395=\"\",\"\",'1. Order'!O1395)","v":{"$error":"#N/A"}},{"$f":"IF('1. Order'!P1395=\"\",\"\",'1. Order'!P1395)","v":{"$error":"#N/A"}},{"$f":"IF('1. Order'!Q1395=\"\",\"\",'1. Order'!Q1395)","v":""},{"$f":"IF('1. Order'!S1395=\"\",\"\",'1. Order'!S1395)","v":""},{"$f":"IF('1. Order'!T1395=\"\",\"\",'1. Order'!T1395)","v":""},{"$f":"IF('1. Order'!W1395=\"\",\"\",'1. Order'!W1395)","v":""},{"$f":"IF('1. Order'!X1395=\"\",\"\",'1. Order'!X1395)","v":""},{"$f":"IF('1. Order'!Y1395=\"\",\"\",'1. Order'!Y1395)","v":"EUR"},{"$f":"IF('1. Order'!Z1395=\"\",\"\",'1. Order'!Z1395)","v":""},{"$f":"IF('1. Order'!AA1395=\"\",\"\",'1. Order'!AA1395)","v":""},{"$f":"IF('1. Order'!AB1395=\"\",\"\",'1. Order'!AB1395)","v":""},null,{"$f":"IF('1. Order'!AT1395=\"\",\"\",'1. Order'!AT1395)","v":""},{"$f":"IF('1. Order'!AU1395=\"\",\"\",'1. Order'!AU1395)","v":""},null,null,null,null,null,null,null,{"$f":"IF('1. Order'!AY1395=\"\",\"\",'1. Order'!AY1395)","v":""},{"$f":"IF('1. Order'!AZ1395=\"\",\"\",'1. Order'!AZ1395)","v":""},{"$f":"IF('1. Order'!BA1395=\"\",\"\",'1. Order'!BA1395)","v":""},{"$f":"IF('1. Order'!BB1395=\"\",\"\",'1. Order'!BB1395)","v":""},{"$f":"IF('1. Order'!BD1395=\"\",\"\",'1. Order'!BD1395)","v":""},{"$f":"IF('1. Order'!BE1395=\"\",\"\",'1. Order'!BE1395)","v":""},{"$f":"IF('1. Order'!BF1395=\"\",\"\",'1. Order'!BF1395)","v":""},{"$f":"IF('1. Order'!BG1395=\"\",\"\",'1. Order'!BG1395)","v":""},{"$f":"IF('1. Order'!BH1395=\"\",\"\",'1. Order'!BH1395)","v":"ZWO"}]
[{"$f":"IF('1. Order'!F1396=\"\",\"\",'1. Order'!F1396)","v":{"$error":"#N/A"}},{"$f":"IF('1. Order'!G1396=\"\",\"\",'1. Order'!G1396)","v":""},{"$f":"IF('1. Order'!H1396=\"\",\"\",'1. Order'!H1396)","v":""},{"$f":"IF('1. Order'!I1396=\"\",\"\",'1. Order'!I1396)","v":""},{"$f":"IF('1. Order'!J1396=\"\",\"\",'1. Order'!J1396)","v":""},{"$f":"IF('1. Order'!K1396=\"\",\"\",'1. Order'!K1396)","v":""},{"$f":"IF('1. Order'!L1396=\"\",\"\",'1. Order'!L1396)","v":""},{"$f":"IF('1. Order'!M1396=\"\",\"\",'1. Order'!M1396)","v":""},{"$f":"IF('1. Order'!N1396=\"\",\"\",'1. Order'!N1396)","v":""},{"$f":"IF('1. Order'!O1396=\"\",\"\",'1. Order'!O1396)","v":{"$error":"#N/A"}},{"$f":"IF('1. Order'!P1396=\"\",\"\",'1. Order'!P1396)","v":{"$error":"#N/A"}},{"$f":"IF('1. Order'!Q1396=\"\",\"\",'1. Order'!Q1396)","v":""},{"$f":"IF('1. Order'!S1396=\"\",\"\",'1. Order'!S1396)","v":""},{"$f":"IF('1. Order'!T1396=\"\",\"\",'1. Order'!T1396)","v":""},{"$f":"IF('1. Order'!W1396=\"\",\"\",'1. Order'!W1396)","v":""},{"$f":"IF('1. Order'!X1396=\"\",\"\",'1. Order'!X1396)","v":""},{"$f":"IF('1. Order'!Y1396=\"\",\"\",'1. Order'!Y1396)","v":"EUR"},{"$f":"IF('1. Order'!Z1396=\"\",\"\",'1. Order'!Z1396)","v":""},{"$f":"IF('1. Order'!AA1396=\"\",\"\",'1. Order'!AA1396)","v":""},{"$f":"IF('1. Order'!AB1396=\"\",\"\",'1. Order'!AB1396)","v":""},null,{"$f":"IF('1. Order'!AT1396=\"\",\"\",'1. Order'!AT1396)","v":""},{"$f":"IF('1. Order'!AU1396=\"\",\"\",'1. Order'!AU1396)","v":""},null,null,null,null,null,null,null,{"$f":"IF('1. Order'!AY1396=\"\",\"\",'1. Order'!AY1396)","v":""},{"$f":"IF('1. Order'!AZ1396=\"\",\"\",'1. Order'!AZ1396)","v":""},{"$f":"IF('1. Order'!BA1396=\"\",\"\",'1. Order'!BA1396)","v":""},{"$f":"IF('1. Order'!BB1396=\"\",\"\",'1. Order'!BB1396)","v":""},{"$f":"IF('1. Order'!BD1396=\"\",\"\",'1. Order'!BD1396)","v":""},{"$f":"IF('1. Order'!BE1396=\"\",\"\",'1. Order'!BE1396)","v":""},{"$f":"IF('1. Order'!BF1396=\"\",\"\",'1. Order'!BF1396)","v":""},{"$f":"IF('1. Order'!BG1396=\"\",\"\",'1. Order'!BG1396)","v":""},{"$f":"IF('1. Order'!BH1396=\"\",\"\",'1. Order'!BH1396)","v":"ZWO"}]
[{"$f":"IF('1. Order'!F1397=\"\",\"\",'1. Order'!F1397)","v":{"$error":"#N/A"}},{"$f":"IF('1. Order'!G1397=\"\",\"\",'1. Order'!G1397)","v":""},{"$f":"IF('1. Order'!H1397=\"\",\"\",'1. Order'!H1397)","v":""},{"$f":"IF('1. Order'!I1397=\"\",\"\",'1. Order'!I1397)","v":""},{"$f":"IF('1. Order'!J1397=\"\",\"\",'1. Order'!J1397)","v":""},{"$f":"IF('1. Order'!K1397=\"\",\"\",'1. Order'!K1397)","v":""},{"$f":"IF('1. Order'!L1397=\"\",\"\",'1. Order'!L1397)","v":""},{"$f":"IF('1. Order'!M1397=\"\",\"\",'1. Order'!M1397)","v":""},{"$f":"IF('1. Order'!N1397=\"\",\"\",'1. Order'!N1397)","v":""},{"$f":"IF('1. Order'!O1397=\"\",\"\",'1. Order'!O1397)","v":{"$error":"#N/A"}},{"$f":"IF('1. Order'!P1397=\"\",\"\",'1. Order'!P1397)","v":{"$error":"#N/A"}},{"$f":"IF('1. Order'!Q1397=\"\",\"\",'1. Order'!Q1397)","v":""},{"$f":"IF('1. Order'!S1397=\"\",\"\",'1. Order'!S1397)","v":""},{"$f":"IF('1. Order'!T1397=\"\",\"\",'1. Order'!T1397)","v":""},{"$f":"IF('1. Order'!W1397=\"\",\"\",'1. Order'!W1397)","v":""},{"$f":"IF('1. Order'!X1397=\"\",\"\",'1. Order'!X1397)","v":""},{"$f":"IF('1. Order'!Y1397=\"\",\"\",'1. Order'!Y1397)","v":"EUR"},{"$f":"IF('1. Order'!Z1397=\"\",\"\",'1. Order'!Z1397)","v":""},{"$f":"IF('1. Order'!AA1397=\"\",\"\",'1. Order'!AA1397)","v":""},{"$f":"IF('1. Order'!AB1397=\"\",\"\",'1. Order'!AB1397)","v":""},null,{"$f":"IF('1. Order'!AT1397=\"\",\"\",'1. Order'!AT1397)","v":""},{"$f":"IF('1. Order'!AU1397=\"\",\"\",'1. Order'!AU1397)","v":""},null,null,null,null,null,null,null,{"$f":"IF('1. Order'!AY1397=\"\",\"\",'1. Order'!AY1397)","v":""},{"$f":"IF('1. Order'!AZ1397=\"\",\"\",'1. Order'!AZ1397)","v":""},{"$f":"IF('1. Order'!BA1397=\"\",\"\",'1. Order'!BA1397)","v":""},{"$f":"IF('1. Order'!BB1397=\"\",\"\",'1. Order'!BB1397)","v":""},{"$f":"IF('1. Order'!BD1397=\"\",\"\",'1. Order'!BD1397)","v":""},{"$f":"IF('1. Order'!BE1397=\"\",\"\",'1. Order'!BE1397)","v":""},{"$f":"IF('1. Order'!BF1397=\"\",\"\",'1. Order'!BF1397)","v":""},{"$f":"IF('1. Order'!BG1397=\"\",\"\",'1. Order'!BG1397)","v":""},{"$f":"IF('1. Order'!BH1397=\"\",\"\",'1. Order'!BH1397)","v":"ZWO"}]
[{"$f":"IF('1. Order'!F1398=\"\",\"\",'1. Order'!F1398)","v":{"$error":"#N/A"}},{"$f":"IF('1. Order'!G1398=\"\",\"\",'1. Order'!G1398)","v":""},{"$f":"IF('1. Order'!H1398=\"\",\"\",'1. Order'!H1398)","v":""},{"$f":"IF('1. Order'!I1398=\"\",\"\",'1. Order'!I1398)","v":""},{"$f":"IF('1. Order'!J1398=\"\",\"\",'1. Order'!J1398)","v":""},{"$f":"IF('1. Order'!K1398=\"\",\"\",'1. Order'!K1398)","v":""},{"$f":"IF('1. Order'!L1398=\"\",\"\",'1. Order'!L1398)","v":""},{"$f":"IF('1. Order'!M1398=\"\",\"\",'1. Order'!M1398)","v":""},{"$f":"IF('1. Order'!N1398=\"\",\"\",'1. Order'!N1398)","v":""},{"$f":"IF('1. Order'!O1398=\"\",\"\",'1. Order'!O1398)","v":{"$error":"#N/A"}},{"$f":"IF('1. Order'!P1398=\"\",\"\",'1. Order'!P1398)","v":{"$error":"#N/A"}},{"$f":"IF('1. Order'!Q1398=\"\",\"\",'1. Order'!Q1398)","v":""},{"$f":"IF('1. Order'!S1398=\"\",\"\",'1. Order'!S1398)","v":""},{"$f":"IF('1. Order'!T1398=\"\",\"\",'1. Order'!T1398)","v":""},{"$f":"IF('1. Order'!W1398=\"\",\"\",'1. Order'!W1398)","v":""},{"$f":"IF('1. Order'!X1398=\"\",\"\",'1. Order'!X1398)","v":""},{"$f":"IF('1. Order'!Y1398=\"\",\"\",'1. Order'!Y1398)","v":"EUR"},{"$f":"IF('1. Order'!Z1398=\"\",\"\",'1. Order'!Z1398)","v":""},{"$f":"IF('1. Order'!AA1398=\"\",\"\",'1. Order'!AA1398)","v":""},{"$f":"IF('1. Order'!AB1398=\"\",\"\",'1. Order'!AB1398)","v":""},null,{"$f":"IF('1. Order'!AT1398=\"\",\"\",'1. Order'!AT1398)","v":""},{"$f":"IF('1. Order'!AU1398=\"\",\"\",'1. Order'!AU1398)","v":""},null,null,null,null,null,null,null,{"$f":"IF('1. Order'!AY1398=\"\",\"\",'1. Order'!AY1398)","v":""},{"$f":"IF('1. Order'!AZ1398=\"\",\"\",'1. Order'!AZ1398)","v":""},{"$f":"IF('1. Order'!BA1398=\"\",\"\",'1. Order'!BA1398)","v":""},{"$f":"IF('1. Order'!BB1398=\"\",\"\",'1. Order'!BB1398)","v":""},{"$f":"IF('1. Order'!BD1398=\"\",\"\",'1. Order'!BD1398)","v":""},{"$f":"IF('1. Order'!BE1398=\"\",\"\",'1. Order'!BE1398)","v":""},{"$f":"IF('1. Order'!BF1398=\"\",\"\",'1. Order'!BF1398)","v":""},{"$f":"IF('1. Order'!BG1398=\"\",\"\",'1. Order'!BG1398)","v":""},{"$f":"IF('1. Order'!BH1398=\"\",\"\",'1. Order'!BH1398)","v":"ZWO"}]
[{"$f":"IF('1. Order'!F1399=\"\",\"\",'1. Order'!F1399)","v":{"$error":"#N/A"}},{"$f":"IF('1. Order'!G1399=\"\",\"\",'1. Order'!G1399)","v":""},{"$f":"IF('1. Order'!H1399=\"\",\"\",'1. Order'!H1399)","v":""},{"$f":"IF('1. Order'!I1399=\"\",\"\",'1. Order'!I1399)","v":""},{"$f":"IF('1. Order'!J1399=\"\",\"\",'1. Order'!J1399)","v":""},{"$f":"IF('1. Order'!K1399=\"\",\"\",'1. Order'!K1399)","v":""},{"$f":"IF('1. Order'!L1399=\"\",\"\",'1. Order'!L1399)","v":""},{"$f":"IF('1. Order'!M1399=\"\",\"\",'1. Order'!M1399)","v":""},{"$f":"IF('1. Order'!N1399=\"\",\"\",'1. Order'!N1399)","v":""},{"$f":"IF('1. Order'!O1399=\"\",\"\",'1. Order'!O1399)","v":{"$error":"#N/A"}},{"$f":"IF('1. Order'!P1399=\"\",\"\",'1. Order'!P1399)","v":{"$error":"#N/A"}},{"$f":"IF('1. Order'!Q1399=\"\",\"\",'1. Order'!Q1399)","v":""},{"$f":"IF('1. Order'!S1399=\"\",\"\",'1. Order'!S1399)","v":""},{"$f":"IF('1. Order'!T1399=\"\",\"\",'1. Order'!T1399)","v":""},{"$f":"IF('1. Order'!W1399=\"\",\"\",'1. Order'!W1399)","v":""},{"$f":"IF('1. Order'!X1399=\"\",\"\",'1. Order'!X1399)","v":""},{"$f":"IF('1. Order'!Y1399=\"\",\"\",'1. Order'!Y1399)","v":"EUR"},{"$f":"IF('1. Order'!Z1399=\"\",\"\",'1. Order'!Z1399)","v":""},{"$f":"IF('1. Order'!AA1399=\"\",\"\",'1. Order'!AA1399)","v":""},{"$f":"IF('1. Order'!AB1399=\"\",\"\",'1. Order'!AB1399)","v":""},null,{"$f":"IF('1. Order'!AT1399=\"\",\"\",'1. Order'!AT1399)","v":""},{"$f":"IF('1. Order'!AU1399=\"\",\"\",'1. Order'!AU1399)","v":""},null,null,null,null,null,null,null,{"$f":"IF('1. Order'!AY1399=\"\",\"\",'1. Order'!AY1399)","v":""},{"$f":"IF('1. Order'!AZ1399=\"\",\"\",'1. Order'!AZ1399)","v":""},{"$f":"IF('1. Order'!BA1399=\"\",\"\",'1. Order'!BA1399)","v":""},{"$f":"IF('1. Order'!BB1399=\"\",\"\",'1. Order'!BB1399)","v":""},{"$f":"IF('1. Order'!BD1399=\"\",\"\",'1. Order'!BD1399)","v":""},{"$f":"IF('1. Order'!BE1399=\"\",\"\",'1. Order'!BE1399)","v":""},{"$f":"IF('1. Order'!BF1399=\"\",\"\",'1. Order'!BF1399)","v":""},{"$f":"IF('1. Order'!BG1399=\"\",\"\",'1. Order'!BG1399)","v":""},{"$f":"IF('1. Order'!BH1399=\"\",\"\",'1. Order'!BH1399)","v":"ZWO"}]
[{"$f":"IF('1. Order'!F1400=\"\",\"\",'1. Order'!F1400)","v":{"$error":"#N/A"}},{"$f":"IF('1. Order'!G1400=\"\",\"\",'1. Order'!G1400)","v":""},{"$f":"IF('1. Order'!H1400=\"\",\"\",'1. Order'!H1400)","v":""},{"$f":"IF('1. Order'!I1400=\"\",\"\",'1. Order'!I1400)","v":""},{"$f":"IF('1. Order'!J1400=\"\",\"\",'1. Order'!J1400)","v":""},{"$f":"IF('1. Order'!K1400=\"\",\"\",'1. Order'!K1400)","v":""},{"$f":"IF('1. Order'!L1400=\"\",\"\",'1. Order'!L1400)","v":""},{"$f":"IF('1. Order'!M1400=\"\",\"\",'1. Order'!M1400)","v":""},{"$f":"IF('1. Order'!N1400=\"\",\"\",'1. Order'!N1400)","v":""},{"$f":"IF('1. Order'!O1400=\"\",\"\",'1. Order'!O1400)","v":{"$error":"#N/A"}},{"$f":"IF('1. Order'!P1400=\"\",\"\",'1. Order'!P1400)","v":{"$error":"#N/A"}},{"$f":"IF('1. Order'!Q1400=\"\",\"\",'1. Order'!Q1400)","v":""},{"$f":"IF('1. Order'!S1400=\"\",\"\",'1. Order'!S1400)","v":""},{"$f":"IF('1. Order'!T1400=\"\",\"\",'1. Order'!T1400)","v":""},{"$f":"IF('1. Order'!W1400=\"\",\"\",'1. Order'!W1400)","v":""},{"$f":"IF('1. Order'!X1400=\"\",\"\",'1. Order'!X1400)","v":""},{"$f":"IF('1. Order'!Y1400=\"\",\"\",'1. Order'!Y1400)","v":"EUR"},{"$f":"IF('1. Order'!Z1400=\"\",\"\",'1. Order'!Z1400)","v":""},{"$f":"IF('1. Order'!AA1400=\"\",\"\",'1. Order'!AA1400)","v":""},{"$f":"IF('1. Order'!AB1400=\"\",\"\",'1. Order'!AB1400)","v":""},null,{"$f":"IF('1. Order'!AT1400=\"\",\"\",'1. Order'!AT1400)","v":""},{"$f":"IF('1. Order'!AU1400=\"\",\"\",'1. Order'!AU1400)","v":""},null,null,null,null,null,null,null,{"$f":"IF('1. Order'!AY1400=\"\",\"\",'1. Order'!AY1400)","v":""},{"$f":"IF('1. Order'!AZ1400=\"\",\"\",'1. Order'!AZ1400)","v":""},{"$f":"IF('1. Order'!BA1400=\"\",\"\",'1. Order'!BA1400)","v":""},{"$f":"IF('1. Order'!BB1400=\"\",\"\",'1. Order'!BB1400)","v":""},{"$f":"IF('1. Order'!BD1400=\"\",\"\",'1. Order'!BD1400)","v":""},{"$f":"IF('1. Order'!BE1400=\"\",\"\",'1. Order'!BE1400)","v":""},{"$f":"IF('1. Order'!BF1400=\"\",\"\",'1. Order'!BF1400)","v":""},{"$f":"IF('1. Order'!BG1400=\"\",\"\",'1. Order'!BG1400)","v":""},{"$f":"IF('1. Order'!BH1400=\"\",\"\",'1. Order'!BH1400)","v":"ZWO"}]
[{"$f":"IF('1. Order'!F1401=\"\",\"\",'1. Order'!F1401)","v":{"$error":"#N/A"}},{"$f":"IF('1. Order'!G1401=\"\",\"\",'1. Order'!G1401)","v":""},{"$f":"IF('1. Order'!H1401=\"\",\"\",'1. Order'!H1401)","v":""},{"$f":"IF('1. Order'!I1401=\"\",\"\",'1. Order'!I1401)","v":""},{"$f":"IF('1. Order'!J1401=\"\",\"\",'1. Order'!J1401)","v":""},{"$f":"IF('1. Order'!K1401=\"\",\"\",'1. Order'!K1401)","v":""},{"$f":"IF('1. Order'!L1401=\"\",\"\",'1. Order'!L1401)","v":""},{"$f":"IF('1. Order'!M1401=\"\",\"\",'1. Order'!M1401)","v":""},{"$f":"IF('1. Order'!N1401=\"\",\"\",'1. Order'!N1401)","v":""},{"$f":"IF('1. Order'!O1401=\"\",\"\",'1. Order'!O1401)","v":{"$error":"#N/A"}},{"$f":"IF('1. Order'!P1401=\"\",\"\",'1. Order'!P1401)","v":{"$error":"#N/A"}},{"$f":"IF('1. Order'!Q1401=\"\",\"\",'1. Order'!Q1401)","v":""},{"$f":"IF('1. Order'!S1401=\"\",\"\",'1. Order'!S1401)","v":""},{"$f":"IF('1. Order'!T1401=\"\",\"\",'1. Order'!T1401)","v":""},{"$f":"IF('1. Order'!W1401=\"\",\"\",'1. Order'!W1401)","v":""},{"$f":"IF('1. Order'!X1401=\"\",\"\",'1. Order'!X1401)","v":""},{"$f":"IF('1. Order'!Y1401=\"\",\"\",'1. Order'!Y1401)","v":"EUR"},{"$f":"IF('1. Order'!Z1401=\"\",\"\",'1. Order'!Z1401)","v":""},{"$f":"IF('1. Order'!AA1401=\"\",\"\",'1. Order'!AA1401)","v":""},{"$f":"IF('1. Order'!AB1401=\"\",\"\",'1. Order'!AB1401)","v":""},null,{"$f":"IF('1. Order'!AT1401=\"\",\"\",'1. Order'!AT1401)","v":""},{"$f":"IF('1. Order'!AU1401=\"\",\"\",'1. Order'!AU1401)","v":""},null,null,null,null,null,null,null,{"$f":"IF('1. Order'!AY1401=\"\",\"\",'1. Order'!AY1401)","v":""},{"$f":"IF('1. Order'!AZ1401=\"\",\"\",'1. Order'!AZ1401)","v":""},{"$f":"IF('1. Order'!BA1401=\"\",\"\",'1. Order'!BA1401)","v":""},{"$f":"IF('1. Order'!BB1401=\"\",\"\",'1. Order'!BB1401)","v":""},{"$f":"IF('1. Order'!BD1401=\"\",\"\",'1. Order'!BD1401)","v":""},{"$f":"IF('1. Order'!BE1401=\"\",\"\",'1. Order'!BE1401)","v":""},{"$f":"IF('1. Order'!BF1401=\"\",\"\",'1. Order'!BF1401)","v":""},{"$f":"IF('1. Order'!BG1401=\"\",\"\",'1. Order'!BG1401)","v":""},{"$f":"IF('1. Order'!BH1401=\"\",\"\",'1. Order'!BH1401)","v":"ZWO"}]
[{"$f":"IF('1. Order'!F1402=\"\",\"\",'1. Order'!F1402)","v":{"$error":"#N/A"}},{"$f":"IF('1. Order'!G1402=\"\",\"\",'1. Order'!G1402)","v":""},{"$f":"IF('1. Order'!H1402=\"\",\"\",'1. Order'!H1402)","v":""},{"$f":"IF('1. Order'!I1402=\"\",\"\",'1. Order'!I1402)","v":""},{"$f":"IF('1. Order'!J1402=\"\",\"\",'1. Order'!J1402)","v":""},{"$f":"IF('1. Order'!K1402=\"\",\"\",'1. Order'!K1402)","v":""},{"$f":"IF('1. Order'!L1402=\"\",\"\",'1. Order'!L1402)","v":""},{"$f":"IF('1. Order'!M1402=\"\",\"\",'1. Order'!M1402)","v":""},{"$f":"IF('1. Order'!N1402=\"\",\"\",'1. Order'!N1402)","v":""},{"$f":"IF('1. Order'!O1402=\"\",\"\",'1. Order'!O1402)","v":{"$error":"#N/A"}},{"$f":"IF('1. Order'!P1402=\"\",\"\",'1. Order'!P1402)","v":{"$error":"#N/A"}},{"$f":"IF('1. Order'!Q1402=\"\",\"\",'1. Order'!Q1402)","v":""},{"$f":"IF('1. Order'!S1402=\"\",\"\",'1. Order'!S1402)","v":""},{"$f":"IF('1. Order'!T1402=\"\",\"\",'1. Order'!T1402)","v":""},{"$f":"IF('1. Order'!W1402=\"\",\"\",'1. Order'!W1402)","v":""},{"$f":"IF('1. Order'!X1402=\"\",\"\",'1. Order'!X1402)","v":""},{"$f":"IF('1. Order'!Y1402=\"\",\"\",'1. Order'!Y1402)","v":"EUR"},{"$f":"IF('1. Order'!Z1402=\"\",\"\",'1. Order'!Z1402)","v":""},{"$f":"IF('1. Order'!AA1402=\"\",\"\",'1. Order'!AA1402)","v":""},{"$f":"IF('1. Order'!AB1402=\"\",\"\",'1. Order'!AB1402)","v":""},null,{"$f":"IF('1. Order'!AT1402=\"\",\"\",'1. Order'!AT1402)","v":""},{"$f":"IF('1. Order'!AU1402=\"\",\"\",'1. Order'!AU1402)","v":""},null,null,null,null,null,null,null,{"$f":"IF('1. Order'!AY1402=\"\",\"\",'1. Order'!AY1402)","v":""},{"$f":"IF('1. Order'!AZ1402=\"\",\"\",'1. Order'!AZ1402)","v":""},{"$f":"IF('1. Order'!BA1402=\"\",\"\",'1. Order'!BA1402)","v":""},{"$f":"IF('1. Order'!BB1402=\"\",\"\",'1. Order'!BB1402)","v":""},{"$f":"IF('1. Order'!BD1402=\"\",\"\",'1. Order'!BD1402)","v":""},{"$f":"IF('1. Order'!BE1402=\"\",\"\",'1. Order'!BE1402)","v":""},{"$f":"IF('1. Order'!BF1402=\"\",\"\",'1. Order'!BF1402)","v":""},{"$f":"IF('1. Order'!BG1402=\"\",\"\",'1. Order'!BG1402)","v":""},{"$f":"IF('1. Order'!BH1402=\"\",\"\",'1. Order'!BH1402)","v":"ZWO"}]
[{"$f":"IF('1. Order'!F1403=\"\",\"\",'1. Order'!F1403)","v":{"$error":"#N/A"}},{"$f":"IF('1. Order'!G1403=\"\",\"\",'1. Order'!G1403)","v":""},{"$f":"IF('1. Order'!H1403=\"\",\"\",'1. Order'!H1403)","v":""},{"$f":"IF('1. Order'!I1403=\"\",\"\",'1. Order'!I1403)","v":""},{"$f":"IF('1. Order'!J1403=\"\",\"\",'1. Order'!J1403)","v":""},{"$f":"IF('1. Order'!K1403=\"\",\"\",'1. Order'!K1403)","v":""},{"$f":"IF('1. Order'!L1403=\"\",\"\",'1. Order'!L1403)","v":""},{"$f":"IF('1. Order'!M1403=\"\",\"\",'1. Order'!M1403)","v":""},{"$f":"IF('1. Order'!N1403=\"\",\"\",'1. Order'!N1403)","v":""},{"$f":"IF('1. Order'!O1403=\"\",\"\",'1. Order'!O1403)","v":{"$error":"#N/A"}},{"$f":"IF('1. Order'!P1403=\"\",\"\",'1. Order'!P1403)","v":{"$error":"#N/A"}},{"$f":"IF('1. Order'!Q1403=\"\",\"\",'1. Order'!Q1403)","v":""},{"$f":"IF('1. Order'!S1403=\"\",\"\",'1. Order'!S1403)","v":""},{"$f":"IF('1. Order'!T1403=\"\",\"\",'1. Order'!T1403)","v":""},{"$f":"IF('1. Order'!W1403=\"\",\"\",'1. Order'!W1403)","v":""},{"$f":"IF('1. Order'!X1403=\"\",\"\",'1. Order'!X1403)","v":""},{"$f":"IF('1. Order'!Y1403=\"\",\"\",'1. Order'!Y1403)","v":"EUR"},{"$f":"IF('1. Order'!Z1403=\"\",\"\",'1. Order'!Z1403)","v":""},{"$f":"IF('1. Order'!AA1403=\"\",\"\",'1. Order'!AA1403)","v":""},{"$f":"IF('1. Order'!AB1403=\"\",\"\",'1. Order'!AB1403)","v":""},null,{"$f":"IF('1. Order'!AT1403=\"\",\"\",'1. Order'!AT1403)","v":""},{"$f":"IF('1. Order'!AU1403=\"\",\"\",'1. Order'!AU1403)","v":""},null,null,null,null,null,null,null,{"$f":"IF('1. Order'!AY1403=\"\",\"\",'1. Order'!AY1403)","v":""},{"$f":"IF('1. Order'!AZ1403=\"\",\"\",'1. Order'!AZ1403)","v":""},{"$f":"IF('1. Order'!BA1403=\"\",\"\",'1. Order'!BA1403)","v":""},{"$f":"IF('1. Order'!BB1403=\"\",\"\",'1. Order'!BB1403)","v":""},{"$f":"IF('1. Order'!BD1403=\"\",\"\",'1. Order'!BD1403)","v":""},{"$f":"IF('1. Order'!BE1403=\"\",\"\",'1. Order'!BE1403)","v":""},{"$f":"IF('1. Order'!BF1403=\"\",\"\",'1. Order'!BF1403)","v":""},{"$f":"IF('1. Order'!BG1403=\"\",\"\",'1. Order'!BG1403)","v":""},{"$f":"IF('1. Order'!BH1403=\"\",\"\",'1. Order'!BH1403)","v":"ZWO"}]
[{"$f":"IF('1. Order'!F1404=\"\",\"\",'1. Order'!F1404)","v":{"$error":"#N/A"}},{"$f":"IF('1. Order'!G1404=\"\",\"\",'1. Order'!G1404)","v":""},{"$f":"IF('1. Order'!H1404=\"\",\"\",'1. Order'!H1404)","v":""},{"$f":"IF('1. Order'!I1404=\"\",\"\",'1. Order'!I1404)","v":""},{"$f":"IF('1. Order'!J1404=\"\",\"\",'1. Order'!J1404)","v":""},{"$f":"IF('1. Order'!K1404=\"\",\"\",'1. Order'!K1404)","v":""},{"$f":"IF('1. Order'!L1404=\"\",\"\",'1. Order'!L1404)","v":""},{"$f":"IF('1. Order'!M1404=\"\",\"\",'1. Order'!M1404)","v":""},{"$f":"IF('1. Order'!N1404=\"\",\"\",'1. Order'!N1404)","v":""},{"$f":"IF('1. Order'!O1404=\"\",\"\",'1. Order'!O1404)","v":{"$error":"#N/A"}},{"$f":"IF('1. Order'!P1404=\"\",\"\",'1. Order'!P1404)","v":{"$error":"#N/A"}},{"$f":"IF('1. Order'!Q1404=\"\",\"\",'1. Order'!Q1404)","v":""},{"$f":"IF('1. Order'!S1404=\"\",\"\",'1. Order'!S1404)","v":""},{"$f":"IF('1. Order'!T1404=\"\",\"\",'1. Order'!T1404)","v":""},{"$f":"IF('1. Order'!W1404=\"\",\"\",'1. Order'!W1404)","v":""},{"$f":"IF('1. Order'!X1404=\"\",\"\",'1. Order'!X1404)","v":""},{"$f":"IF('1. Order'!Y1404=\"\",\"\",'1. Order'!Y1404)","v":"EUR"},{"$f":"IF('1. Order'!Z1404=\"\",\"\",'1. Order'!Z1404)","v":""},{"$f":"IF('1. Order'!AA1404=\"\",\"\",'1. Order'!AA1404)","v":""},{"$f":"IF('1. Order'!AB1404=\"\",\"\",'1. Order'!AB1404)","v":""},null,{"$f":"IF('1. Order'!AT1404=\"\",\"\",'1. Order'!AT1404)","v":""},{"$f":"IF('1. Order'!AU1404=\"\",\"\",'1. Order'!AU1404)","v":""},null,null,null,null,null,null,null,{"$f":"IF('1. Order'!AY1404=\"\",\"\",'1. Order'!AY1404)","v":""},{"$f":"IF('1. Order'!AZ1404=\"\",\"\",'1. Order'!AZ1404)","v":""},{"$f":"IF('1. Order'!BA1404=\"\",\"\",'1. Order'!BA1404)","v":""},{"$f":"IF('1. Order'!BB1404=\"\",\"\",'1. Order'!BB1404)","v":""},{"$f":"IF('1. Order'!BD1404=\"\",\"\",'1. Order'!BD1404)","v":""},{"$f":"IF('1. Order'!BE1404=\"\",\"\",'1. Order'!BE1404)","v":""},{"$f":"IF('1. Order'!BF1404=\"\",\"\",'1. Order'!BF1404)","v":""},{"$f":"IF('1. Order'!BG1404=\"\",\"\",'1. Order'!BG1404)","v":""},{"$f":"IF('1. Order'!BH1404=\"\",\"\",'1. Order'!BH1404)","v":"ZWO"}]
[{"$f":"IF('1. Order'!F1405=\"\",\"\",'1. Order'!F1405)","v":{"$error":"#N/A"}},{"$f":"IF('1. Order'!G1405=\"\",\"\",'1. Order'!G1405)","v":""},{"$f":"IF('1. Order'!H1405=\"\",\"\",'1. Order'!H1405)","v":""},{"$f":"IF('1. Order'!I1405=\"\",\"\",'1. Order'!I1405)","v":""},{"$f":"IF('1. Order'!J1405=\"\",\"\",'1. Order'!J1405)","v":""},{"$f":"IF('1. Order'!K1405=\"\",\"\",'1. Order'!K1405)","v":""},{"$f":"IF('1. Order'!L1405=\"\",\"\",'1. Order'!L1405)","v":""},{"$f":"IF('1. Order'!M1405=\"\",\"\",'1. Order'!M1405)","v":""},{"$f":"IF('1. Order'!N1405=\"\",\"\",'1. Order'!N1405)","v":""},{"$f":"IF('1. Order'!O1405=\"\",\"\",'1. Order'!O1405)","v":{"$error":"#N/A"}},{"$f":"IF('1. Order'!P1405=\"\",\"\",'1. Order'!P1405)","v":{"$error":"#N/A"}},{"$f":"IF('1. Order'!Q1405=\"\",\"\",'1. Order'!Q1405)","v":""},{"$f":"IF('1. Order'!S1405=\"\",\"\",'1. Order'!S1405)","v":""},{"$f":"IF('1. Order'!T1405=\"\",\"\",'1. Order'!T1405)","v":""},{"$f":"IF('1. Order'!W1405=\"\",\"\",'1. Order'!W1405)","v":""},{"$f":"IF('1. Order'!X1405=\"\",\"\",'1. Order'!X1405)","v":""},{"$f":"IF('1. Order'!Y1405=\"\",\"\",'1. Order'!Y1405)","v":"EUR"},{"$f":"IF('1. Order'!Z1405=\"\",\"\",'1. Order'!Z1405)","v":""},{"$f":"IF('1. Order'!AA1405=\"\",\"\",'1. Order'!AA1405)","v":""},{"$f":"IF('1. Order'!AB1405=\"\",\"\",'1. Order'!AB1405)","v":""},null,{"$f":"IF('1. Order'!AT1405=\"\",\"\",'1. Order'!AT1405)","v":""},{"$f":"IF('1. Order'!AU1405=\"\",\"\",'1. Order'!AU1405)","v":""},null,null,null,null,null,null,null,{"$f":"IF('1. Order'!AY1405=\"\",\"\",'1. Order'!AY1405)","v":""},{"$f":"IF('1. Order'!AZ1405=\"\",\"\",'1. Order'!AZ1405)","v":""},{"$f":"IF('1. Order'!BA1405=\"\",\"\",'1. Order'!BA1405)","v":""},{"$f":"IF('1. Order'!BB1405=\"\",\"\",'1. Order'!BB1405)","v":""},{"$f":"IF('1. Order'!BD1405=\"\",\"\",'1. Order'!BD1405)","v":""},{"$f":"IF('1. Order'!BE1405=\"\",\"\",'1. Order'!BE1405)","v":""},{"$f":"IF('1. Order'!BF1405=\"\",\"\",'1. Order'!BF1405)","v":""},{"$f":"IF('1. Order'!BG1405=\"\",\"\",'1. Order'!BG1405)","v":""},{"$f":"IF('1. Order'!BH1405=\"\",\"\",'1. Order'!BH1405)","v":"ZWO"}]
[{"$f":"IF('1. Order'!F1406=\"\",\"\",'1. Order'!F1406)","v":{"$error":"#N/A"}},{"$f":"IF('1. Order'!G1406=\"\",\"\",'1. Order'!G1406)","v":""},{"$f":"IF('1. Order'!H1406=\"\",\"\",'1. Order'!H1406)","v":""},{"$f":"IF('1. Order'!I1406=\"\",\"\",'1. Order'!I1406)","v":""},{"$f":"IF('1. Order'!J1406=\"\",\"\",'1. Order'!J1406)","v":""},{"$f":"IF('1. Order'!K1406=\"\",\"\",'1. Order'!K1406)","v":""},{"$f":"IF('1. Order'!L1406=\"\",\"\",'1. Order'!L1406)","v":""},{"$f":"IF('1. Order'!M1406=\"\",\"\",'1. Order'!M1406)","v":""},{"$f":"IF('1. Order'!N1406=\"\",\"\",'1. Order'!N1406)","v":""},{"$f":"IF('1. Order'!O1406=\"\",\"\",'1. Order'!O1406)","v":{"$error":"#N/A"}},{"$f":"IF('1. Order'!P1406=\"\",\"\",'1. Order'!P1406)","v":{"$error":"#N/A"}},{"$f":"IF('1. Order'!Q1406=\"\",\"\",'1. Order'!Q1406)","v":""},{"$f":"IF('1. Order'!S1406=\"\",\"\",'1. Order'!S1406)","v":""},{"$f":"IF('1. Order'!T1406=\"\",\"\",'1. Order'!T1406)","v":""},{"$f":"IF('1. Order'!W1406=\"\",\"\",'1. Order'!W1406)","v":""},{"$f":"IF('1. Order'!X1406=\"\",\"\",'1. Order'!X1406)","v":""},{"$f":"IF('1. Order'!Y1406=\"\",\"\",'1. Order'!Y1406)","v":"EUR"},{"$f":"IF('1. Order'!Z1406=\"\",\"\",'1. Order'!Z1406)","v":""},{"$f":"IF('1. Order'!AA1406=\"\",\"\",'1. Order'!AA1406)","v":""},{"$f":"IF('1. Order'!AB1406=\"\",\"\",'1. Order'!AB1406)","v":""},null,{"$f":"IF('1. Order'!AT1406=\"\",\"\",'1. Order'!AT1406)","v":""},{"$f":"IF('1. Order'!AU1406=\"\",\"\",'1. Order'!AU1406)","v":""},null,null,null,null,null,null,null,{"$f":"IF('1. Order'!AY1406=\"\",\"\",'1. Order'!AY1406)","v":""},{"$f":"IF('1. Order'!AZ1406=\"\",\"\",'1. Order'!AZ1406)","v":""},{"$f":"IF('1. Order'!BA1406=\"\",\"\",'1. Order'!BA1406)","v":""},{"$f":"IF('1. Order'!BB1406=\"\",\"\",'1. Order'!BB1406)","v":""},{"$f":"IF('1. Order'!BD1406=\"\",\"\",'1. Order'!BD1406)","v":""},{"$f":"IF('1. Order'!BE1406=\"\",\"\",'1. Order'!BE1406)","v":""},{"$f":"IF('1. Order'!BF1406=\"\",\"\",'1. Order'!BF1406)","v":""},{"$f":"IF('1. Order'!BG1406=\"\",\"\",'1. Order'!BG1406)","v":""},{"$f":"IF('1. Order'!BH1406=\"\",\"\",'1. Order'!BH1406)","v":"ZWO"}]
[{"$f":"IF('1. Order'!F1407=\"\",\"\",'1. Order'!F1407)","v":{"$error":"#N/A"}},{"$f":"IF('1. Order'!G1407=\"\",\"\",'1. Order'!G1407)","v":""},{"$f":"IF('1. Order'!H1407=\"\",\"\",'1. Order'!H1407)","v":""},{"$f":"IF('1. Order'!I1407=\"\",\"\",'1. Order'!I1407)","v":""},{"$f":"IF('1. Order'!J1407=\"\",\"\",'1. Order'!J1407)","v":""},{"$f":"IF('1. Order'!K1407=\"\",\"\",'1. Order'!K1407)","v":""},{"$f":"IF('1. Order'!L1407=\"\",\"\",'1. Order'!L1407)","v":""},{"$f":"IF('1. Order'!M1407=\"\",\"\",'1. Order'!M1407)","v":""},{"$f":"IF('1. Order'!N1407=\"\",\"\",'1. Order'!N1407)","v":""},{"$f":"IF('1. Order'!O1407=\"\",\"\",'1. Order'!O1407)","v":{"$error":"#N/A"}},{"$f":"IF('1. Order'!P1407=\"\",\"\",'1. Order'!P1407)","v":{"$error":"#N/A"}},{"$f":"IF('1. Order'!Q1407=\"\",\"\",'1. Order'!Q1407)","v":""},{"$f":"IF('1. Order'!S1407=\"\",\"\",'1. Order'!S1407)","v":""},{"$f":"IF('1. Order'!T1407=\"\",\"\",'1. Order'!T1407)","v":""},{"$f":"IF('1. Order'!W1407=\"\",\"\",'1. Order'!W1407)","v":""},{"$f":"IF('1. Order'!X1407=\"\",\"\",'1. Order'!X1407)","v":""},{"$f":"IF('1. Order'!Y1407=\"\",\"\",'1. Order'!Y1407)","v":"EUR"},{"$f":"IF('1. Order'!Z1407=\"\",\"\",'1. Order'!Z1407)","v":""},{"$f":"IF('1. Order'!AA1407=\"\",\"\",'1. Order'!AA1407)","v":""},{"$f":"IF('1. Order'!AB1407=\"\",\"\",'1. Order'!AB1407)","v":""},null,{"$f":"IF('1. Order'!AT1407=\"\",\"\",'1. Order'!AT1407)","v":""},{"$f":"IF('1. Order'!AU1407=\"\",\"\",'1. Order'!AU1407)","v":""},null,null,null,null,null,null,null,{"$f":"IF('1. Order'!AY1407=\"\",\"\",'1. Order'!AY1407)","v":""},{"$f":"IF('1. Order'!AZ1407=\"\",\"\",'1. Order'!AZ1407)","v":""},{"$f":"IF('1. Order'!BA1407=\"\",\"\",'1. Order'!BA1407)","v":""},{"$f":"IF('1. Order'!BB1407=\"\",\"\",'1. Order'!BB1407)","v":""},{"$f":"IF('1. Order'!BD1407=\"\",\"\",'1. Order'!BD1407)","v":""},{"$f":"IF('1. Order'!BE1407=\"\",\"\",'1. Order'!BE1407)","v":""},{"$f":"IF('1. Order'!BF1407=\"\",\"\",'1. Order'!BF1407)","v":""},{"$f":"IF('1. Order'!BG1407=\"\",\"\",'1. Order'!BG1407)","v":""},{"$f":"IF('1. Order'!BH1407=\"\",\"\",'1. Order'!BH1407)","v":"ZWO"}]
[{"$f":"IF('1. Order'!F1408=\"\",\"\",'1. Order'!F1408)","v":{"$error":"#N/A"}},{"$f":"IF('1. Order'!G1408=\"\",\"\",'1. Order'!G1408)","v":""},{"$f":"IF('1. Order'!H1408=\"\",\"\",'1. Order'!H1408)","v":""},{"$f":"IF('1. Order'!I1408=\"\",\"\",'1. Order'!I1408)","v":""},{"$f":"IF('1. Order'!J1408=\"\",\"\",'1. Order'!J1408)","v":""},{"$f":"IF('1. Order'!K1408=\"\",\"\",'1. Order'!K1408)","v":""},{"$f":"IF('1. Order'!L1408=\"\",\"\",'1. Order'!L1408)","v":""},{"$f":"IF('1. Order'!M1408=\"\",\"\",'1. Order'!M1408)","v":""},{"$f":"IF('1. Order'!N1408=\"\",\"\",'1. Order'!N1408)","v":""},{"$f":"IF('1. Order'!O1408=\"\",\"\",'1. Order'!O1408)","v":{"$error":"#N/A"}},{"$f":"IF('1. Order'!P1408=\"\",\"\",'1. Order'!P1408)","v":{"$error":"#N/A"}},{"$f":"IF('1. Order'!Q1408=\"\",\"\",'1. Order'!Q1408)","v":""},{"$f":"IF('1. Order'!S1408=\"\",\"\",'1. Order'!S1408)","v":""},{"$f":"IF('1. Order'!T1408=\"\",\"\",'1. Order'!T1408)","v":""},{"$f":"IF('1. Order'!W1408=\"\",\"\",'1. Order'!W1408)","v":""},{"$f":"IF('1. Order'!X1408=\"\",\"\",'1. Order'!X1408)","v":""},{"$f":"IF('1. Order'!Y1408=\"\",\"\",'1. Order'!Y1408)","v":"EUR"},{"$f":"IF('1. Order'!Z1408=\"\",\"\",'1. Order'!Z1408)","v":""},{"$f":"IF('1. Order'!AA1408=\"\",\"\",'1. Order'!AA1408)","v":""},{"$f":"IF('1. Order'!AB1408=\"\",\"\",'1. Order'!AB1408)","v":""},null,{"$f":"IF('1. Order'!AT1408=\"\",\"\",'1. Order'!AT1408)","v":""},{"$f":"IF('1. Order'!AU1408=\"\",\"\",'1. Order'!AU1408)","v":""},null,null,null,null,null,null,null,{"$f":"IF('1. Order'!AY1408=\"\",\"\",'1. Order'!AY1408)","v":""},{"$f":"IF('1. Order'!AZ1408=\"\",\"\",'1. Order'!AZ1408)","v":""},{"$f":"IF('1. Order'!BA1408=\"\",\"\",'1. Order'!BA1408)","v":""},{"$f":"IF('1. Order'!BB1408=\"\",\"\",'1. Order'!BB1408)","v":""},{"$f":"IF('1. Order'!BD1408=\"\",\"\",'1. Order'!BD1408)","v":""},{"$f":"IF('1. Order'!BE1408=\"\",\"\",'1. Order'!BE1408)","v":""},{"$f":"IF('1. Order'!BF1408=\"\",\"\",'1. Order'!BF1408)","v":""},{"$f":"IF('1. Order'!BG1408=\"\",\"\",'1. Order'!BG1408)","v":""},{"$f":"IF('1. Order'!BH1408=\"\",\"\",'1. Order'!BH1408)","v":"ZWO"}]
[{"$f":"IF('1. Order'!F1409=\"\",\"\",'1. Order'!F1409)","v":{"$error":"#N/A"}},{"$f":"IF('1. Order'!G1409=\"\",\"\",'1. Order'!G1409)","v":""},{"$f":"IF('1. Order'!H1409=\"\",\"\",'1. Order'!H1409)","v":""},{"$f":"IF('1. Order'!I1409=\"\",\"\",'1. Order'!I1409)","v":""},{"$f":"IF('1. Order'!J1409=\"\",\"\",'1. Order'!J1409)","v":""},{"$f":"IF('1. Order'!K1409=\"\",\"\",'1. Order'!K1409)","v":""},{"$f":"IF('1. Order'!L1409=\"\",\"\",'1. Order'!L1409)","v":""},{"$f":"IF('1. Order'!M1409=\"\",\"\",'1. Order'!M1409)","v":""},{"$f":"IF('1. Order'!N1409=\"\",\"\",'1. Order'!N1409)","v":""},{"$f":"IF('1. Order'!O1409=\"\",\"\",'1. Order'!O1409)","v":{"$error":"#N/A"}},{"$f":"IF('1. Order'!P1409=\"\",\"\",'1. Order'!P1409)","v":{"$error":"#N/A"}},{"$f":"IF('1. Order'!Q1409=\"\",\"\",'1. Order'!Q1409)","v":""},{"$f":"IF('1. Order'!S1409=\"\",\"\",'1. Order'!S1409)","v":""},{"$f":"IF('1. Order'!T1409=\"\",\"\",'1. Order'!T1409)","v":""},{"$f":"IF('1. Order'!W1409=\"\",\"\",'1. Order'!W1409)","v":""},{"$f":"IF('1. Order'!X1409=\"\",\"\",'1. Order'!X1409)","v":""},{"$f":"IF('1. Order'!Y1409=\"\",\"\",'1. Order'!Y1409)","v":"EUR"},{"$f":"IF('1. Order'!Z1409=\"\",\"\",'1. Order'!Z1409)","v":""},{"$f":"IF('1. Order'!AA1409=\"\",\"\",'1. Order'!AA1409)","v":""},{"$f":"IF('1. Order'!AB1409=\"\",\"\",'1. Order'!AB1409)","v":""},null,{"$f":"IF('1. Order'!AT1409=\"\",\"\",'1. Order'!AT1409)","v":""},{"$f":"IF('1. Order'!AU1409=\"\",\"\",'1. Order'!AU1409)","v":""},null,null,null,null,null,null,null,{"$f":"IF('1. Order'!AY1409=\"\",\"\",'1. Order'!AY1409)","v":""},{"$f":"IF('1. Order'!AZ1409=\"\",\"\",'1. Order'!AZ1409)","v":""},{"$f":"IF('1. Order'!BA1409=\"\",\"\",'1. Order'!BA1409)","v":""},{"$f":"IF('1. Order'!BB1409=\"\",\"\",'1. Order'!BB1409)","v":""},{"$f":"IF('1. Order'!BD1409=\"\",\"\",'1. Order'!BD1409)","v":""},{"$f":"IF('1. Order'!BE1409=\"\",\"\",'1. Order'!BE1409)","v":""},{"$f":"IF('1. Order'!BF1409=\"\",\"\",'1. Order'!BF1409)","v":""},{"$f":"IF('1. Order'!BG1409=\"\",\"\",'1. Order'!BG1409)","v":""},{"$f":"IF('1. Order'!BH1409=\"\",\"\",'1. Order'!BH1409)","v":"ZWO"}]
[{"$f":"IF('1. Order'!F1410=\"\",\"\",'1. Order'!F1410)","v":{"$error":"#N/A"}},{"$f":"IF('1. Order'!G1410=\"\",\"\",'1. Order'!G1410)","v":""},{"$f":"IF('1. Order'!H1410=\"\",\"\",'1. Order'!H1410)","v":""},{"$f":"IF('1. Order'!I1410=\"\",\"\",'1. Order'!I1410)","v":""},{"$f":"IF('1. Order'!J1410=\"\",\"\",'1. Order'!J1410)","v":""},{"$f":"IF('1. Order'!K1410=\"\",\"\",'1. Order'!K1410)","v":""},{"$f":"IF('1. Order'!L1410=\"\",\"\",'1. Order'!L1410)","v":""},{"$f":"IF('1. Order'!M1410=\"\",\"\",'1. Order'!M1410)","v":""},{"$f":"IF('1. Order'!N1410=\"\",\"\",'1. Order'!N1410)","v":""},{"$f":"IF('1. Order'!O1410=\"\",\"\",'1. Order'!O1410)","v":{"$error":"#N/A"}},{"$f":"IF('1. Order'!P1410=\"\",\"\",'1. Order'!P1410)","v":{"$error":"#N/A"}},{"$f":"IF('1. Order'!Q1410=\"\",\"\",'1. Order'!Q1410)","v":""},{"$f":"IF('1. Order'!S1410=\"\",\"\",'1. Order'!S1410)","v":""},{"$f":"IF('1. Order'!T1410=\"\",\"\",'1. Order'!T1410)","v":""},{"$f":"IF('1. Order'!W1410=\"\",\"\",'1. Order'!W1410)","v":""},{"$f":"IF('1. Order'!X1410=\"\",\"\",'1. Order'!X1410)","v":""},{"$f":"IF('1. Order'!Y1410=\"\",\"\",'1. Order'!Y1410)","v":"EUR"},{"$f":"IF('1. Order'!Z1410=\"\",\"\",'1. Order'!Z1410)","v":""},{"$f":"IF('1. Order'!AA1410=\"\",\"\",'1. Order'!AA1410)","v":""},{"$f":"IF('1. Order'!AB1410=\"\",\"\",'1. Order'!AB1410)","v":""},null,{"$f":"IF('1. Order'!AT1410=\"\",\"\",'1. Order'!AT1410)","v":""},{"$f":"IF('1. Order'!AU1410=\"\",\"\",'1. Order'!AU1410)","v":""},null,null,null,null,null,null,null,{"$f":"IF('1. Order'!AY1410=\"\",\"\",'1. Order'!AY1410)","v":""},{"$f":"IF('1. Order'!AZ1410=\"\",\"\",'1. Order'!AZ1410)","v":""},{"$f":"IF('1. Order'!BA1410=\"\",\"\",'1. Order'!BA1410)","v":""},{"$f":"IF('1. Order'!BB1410=\"\",\"\",'1. Order'!BB1410)","v":""},{"$f":"IF('1. Order'!BD1410=\"\",\"\",'1. Order'!BD1410)","v":""},{"$f":"IF('1. Order'!BE1410=\"\",\"\",'1. Order'!BE1410)","v":""},{"$f":"IF('1. Order'!BF1410=\"\",\"\",'1. Order'!BF1410)","v":""},{"$f":"IF('1. Order'!BG1410=\"\",\"\",'1. Order'!BG1410)","v":""},{"$f":"IF('1. Order'!BH1410=\"\",\"\",'1. Order'!BH1410)","v":"ZWO"}]
[{"$f":"IF('1. Order'!F1411=\"\",\"\",'1. Order'!F1411)","v":{"$error":"#N/A"}},{"$f":"IF('1. Order'!G1411=\"\",\"\",'1. Order'!G1411)","v":""},{"$f":"IF('1. Order'!H1411=\"\",\"\",'1. Order'!H1411)","v":""},{"$f":"IF('1. Order'!I1411=\"\",\"\",'1. Order'!I1411)","v":""},{"$f":"IF('1. Order'!J1411=\"\",\"\",'1. Order'!J1411)","v":""},{"$f":"IF('1. Order'!K1411=\"\",\"\",'1. Order'!K1411)","v":""},{"$f":"IF('1. Order'!L1411=\"\",\"\",'1. Order'!L1411)","v":""},{"$f":"IF('1. Order'!M1411=\"\",\"\",'1. Order'!M1411)","v":""},{"$f":"IF('1. Order'!N1411=\"\",\"\",'1. Order'!N1411)","v":""},{"$f":"IF('1. Order'!O1411=\"\",\"\",'1. Order'!O1411)","v":{"$error":"#N/A"}},{"$f":"IF('1. Order'!P1411=\"\",\"\",'1. Order'!P1411)","v":{"$error":"#N/A"}},{"$f":"IF('1. Order'!Q1411=\"\",\"\",'1. Order'!Q1411)","v":""},{"$f":"IF('1. Order'!S1411=\"\",\"\",'1. Order'!S1411)","v":""},{"$f":"IF('1. Order'!T1411=\"\",\"\",'1. Order'!T1411)","v":""},{"$f":"IF('1. Order'!W1411=\"\",\"\",'1. Order'!W1411)","v":""},{"$f":"IF('1. Order'!X1411=\"\",\"\",'1. Order'!X1411)","v":""},{"$f":"IF('1. Order'!Y1411=\"\",\"\",'1. Order'!Y1411)","v":"EUR"},{"$f":"IF('1. Order'!Z1411=\"\",\"\",'1. Order'!Z1411)","v":""},{"$f":"IF('1. Order'!AA1411=\"\",\"\",'1. Order'!AA1411)","v":""},{"$f":"IF('1. Order'!AB1411=\"\",\"\",'1. Order'!AB1411)","v":""},null,{"$f":"IF('1. Order'!AT1411=\"\",\"\",'1. Order'!AT1411)","v":""},{"$f":"IF('1. Order'!AU1411=\"\",\"\",'1. Order'!AU1411)","v":""},null,null,null,null,null,null,null,{"$f":"IF('1. Order'!AY1411=\"\",\"\",'1. Order'!AY1411)","v":""},{"$f":"IF('1. Order'!AZ1411=\"\",\"\",'1. Order'!AZ1411)","v":""},{"$f":"IF('1. Order'!BA1411=\"\",\"\",'1. Order'!BA1411)","v":""},{"$f":"IF('1. Order'!BB1411=\"\",\"\",'1. Order'!BB1411)","v":""},{"$f":"IF('1. Order'!BD1411=\"\",\"\",'1. Order'!BD1411)","v":""},{"$f":"IF('1. Order'!BE1411=\"\",\"\",'1. Order'!BE1411)","v":""},{"$f":"IF('1. Order'!BF1411=\"\",\"\",'1. Order'!BF1411)","v":""},{"$f":"IF('1. Order'!BG1411=\"\",\"\",'1. Order'!BG1411)","v":""},{"$f":"IF('1. Order'!BH1411=\"\",\"\",'1. Order'!BH1411)","v":"ZWO"}]
[{"$f":"IF('1. Order'!F1412=\"\",\"\",'1. Order'!F1412)","v":{"$error":"#N/A"}},{"$f":"IF('1. Order'!G1412=\"\",\"\",'1. Order'!G1412)","v":""},{"$f":"IF('1. Order'!H1412=\"\",\"\",'1. Order'!H1412)","v":""},{"$f":"IF('1. Order'!I1412=\"\",\"\",'1. Order'!I1412)","v":""},{"$f":"IF('1. Order'!J1412=\"\",\"\",'1. Order'!J1412)","v":""},{"$f":"IF('1. Order'!K1412=\"\",\"\",'1. Order'!K1412)","v":""},{"$f":"IF('1. Order'!L1412=\"\",\"\",'1. Order'!L1412)","v":""},{"$f":"IF('1. Order'!M1412=\"\",\"\",'1. Order'!M1412)","v":""},{"$f":"IF('1. Order'!N1412=\"\",\"\",'1. Order'!N1412)","v":""},{"$f":"IF('1. Order'!O1412=\"\",\"\",'1. Order'!O1412)","v":{"$error":"#N/A"}},{"$f":"IF('1. Order'!P1412=\"\",\"\",'1. Order'!P1412)","v":{"$error":"#N/A"}},{"$f":"IF('1. Order'!Q1412=\"\",\"\",'1. Order'!Q1412)","v":""},{"$f":"IF('1. Order'!S1412=\"\",\"\",'1. Order'!S1412)","v":""},{"$f":"IF('1. Order'!T1412=\"\",\"\",'1. Order'!T1412)","v":""},{"$f":"IF('1. Order'!W1412=\"\",\"\",'1. Order'!W1412)","v":""},{"$f":"IF('1. Order'!X1412=\"\",\"\",'1. Order'!X1412)","v":""},{"$f":"IF('1. Order'!Y1412=\"\",\"\",'1. Order'!Y1412)","v":"EUR"},{"$f":"IF('1. Order'!Z1412=\"\",\"\",'1. Order'!Z1412)","v":""},{"$f":"IF('1. Order'!AA1412=\"\",\"\",'1. Order'!AA1412)","v":""},{"$f":"IF('1. Order'!AB1412=\"\",\"\",'1. Order'!AB1412)","v":""},null,{"$f":"IF('1. Order'!AT1412=\"\",\"\",'1. Order'!AT1412)","v":""},{"$f":"IF('1. Order'!AU1412=\"\",\"\",'1. Order'!AU1412)","v":""},null,null,null,null,null,null,null,{"$f":"IF('1. Order'!AY1412=\"\",\"\",'1. Order'!AY1412)","v":""},{"$f":"IF('1. Order'!AZ1412=\"\",\"\",'1. Order'!AZ1412)","v":""},{"$f":"IF('1. Order'!BA1412=\"\",\"\",'1. Order'!BA1412)","v":""},{"$f":"IF('1. Order'!BB1412=\"\",\"\",'1. Order'!BB1412)","v":""},{"$f":"IF('1. Order'!BD1412=\"\",\"\",'1. Order'!BD1412)","v":""},{"$f":"IF('1. Order'!BE1412=\"\",\"\",'1. Order'!BE1412)","v":""},{"$f":"IF('1. Order'!BF1412=\"\",\"\",'1. Order'!BF1412)","v":""},{"$f":"IF('1. Order'!BG1412=\"\",\"\",'1. Order'!BG1412)","v":""},{"$f":"IF('1. Order'!BH1412=\"\",\"\",'1. Order'!BH1412)","v":"ZWO"}]
[{"$f":"IF('1. Order'!F1413=\"\",\"\",'1. Order'!F1413)","v":{"$error":"#N/A"}},{"$f":"IF('1. Order'!G1413=\"\",\"\",'1. Order'!G1413)","v":""},{"$f":"IF('1. Order'!H1413=\"\",\"\",'1. Order'!H1413)","v":""},{"$f":"IF('1. Order'!I1413=\"\",\"\",'1. Order'!I1413)","v":""},{"$f":"IF('1. Order'!J1413=\"\",\"\",'1. Order'!J1413)","v":""},{"$f":"IF('1. Order'!K1413=\"\",\"\",'1. Order'!K1413)","v":""},{"$f":"IF('1. Order'!L1413=\"\",\"\",'1. Order'!L1413)","v":""},{"$f":"IF('1. Order'!M1413=\"\",\"\",'1. Order'!M1413)","v":""},{"$f":"IF('1. Order'!N1413=\"\",\"\",'1. Order'!N1413)","v":""},{"$f":"IF('1. Order'!O1413=\"\",\"\",'1. Order'!O1413)","v":{"$error":"#N/A"}},{"$f":"IF('1. Order'!P1413=\"\",\"\",'1. Order'!P1413)","v":{"$error":"#N/A"}},{"$f":"IF('1. Order'!Q1413=\"\",\"\",'1. Order'!Q1413)","v":""},{"$f":"IF('1. Order'!S1413=\"\",\"\",'1. Order'!S1413)","v":""},{"$f":"IF('1. Order'!T1413=\"\",\"\",'1. Order'!T1413)","v":""},{"$f":"IF('1. Order'!W1413=\"\",\"\",'1. Order'!W1413)","v":""},{"$f":"IF('1. Order'!X1413=\"\",\"\",'1. Order'!X1413)","v":""},{"$f":"IF('1. Order'!Y1413=\"\",\"\",'1. Order'!Y1413)","v":"EUR"},{"$f":"IF('1. Order'!Z1413=\"\",\"\",'1. Order'!Z1413)","v":""},{"$f":"IF('1. Order'!AA1413=\"\",\"\",'1. Order'!AA1413)","v":""},{"$f":"IF('1. Order'!AB1413=\"\",\"\",'1. Order'!AB1413)","v":""},null,{"$f":"IF('1. Order'!AT1413=\"\",\"\",'1. Order'!AT1413)","v":""},{"$f":"IF('1. Order'!AU1413=\"\",\"\",'1. Order'!AU1413)","v":""},null,null,null,null,null,null,null,{"$f":"IF('1. Order'!AY1413=\"\",\"\",'1. Order'!AY1413)","v":""},{"$f":"IF('1. Order'!AZ1413=\"\",\"\",'1. Order'!AZ1413)","v":""},{"$f":"IF('1. Order'!BA1413=\"\",\"\",'1. Order'!BA1413)","v":""},{"$f":"IF('1. Order'!BB1413=\"\",\"\",'1. Order'!BB1413)","v":""},{"$f":"IF('1. Order'!BD1413=\"\",\"\",'1. Order'!BD1413)","v":""},{"$f":"IF('1. Order'!BE1413=\"\",\"\",'1. Order'!BE1413)","v":""},{"$f":"IF('1. Order'!BF1413=\"\",\"\",'1. Order'!BF1413)","v":""},{"$f":"IF('1. Order'!BG1413=\"\",\"\",'1. Order'!BG1413)","v":""},{"$f":"IF('1. Order'!BH1413=\"\",\"\",'1. Order'!BH1413)","v":"ZWO"}]
[{"$f":"IF('1. Order'!F1414=\"\",\"\",'1. Order'!F1414)","v":{"$error":"#N/A"}},{"$f":"IF('1. Order'!G1414=\"\",\"\",'1. Order'!G1414)","v":""},{"$f":"IF('1. Order'!H1414=\"\",\"\",'1. Order'!H1414)","v":""},{"$f":"IF('1. Order'!I1414=\"\",\"\",'1. Order'!I1414)","v":""},{"$f":"IF('1. Order'!J1414=\"\",\"\",'1. Order'!J1414)","v":""},{"$f":"IF('1. Order'!K1414=\"\",\"\",'1. Order'!K1414)","v":""},{"$f":"IF('1. Order'!L1414=\"\",\"\",'1. Order'!L1414)","v":""},{"$f":"IF('1. Order'!M1414=\"\",\"\",'1. Order'!M1414)","v":""},{"$f":"IF('1. Order'!N1414=\"\",\"\",'1. Order'!N1414)","v":""},{"$f":"IF('1. Order'!O1414=\"\",\"\",'1. Order'!O1414)","v":{"$error":"#N/A"}},{"$f":"IF('1. Order'!P1414=\"\",\"\",'1. Order'!P1414)","v":{"$error":"#N/A"}},{"$f":"IF('1. Order'!Q1414=\"\",\"\",'1. Order'!Q1414)","v":""},{"$f":"IF('1. Order'!S1414=\"\",\"\",'1. Order'!S1414)","v":""},{"$f":"IF('1. Order'!T1414=\"\",\"\",'1. Order'!T1414)","v":""},{"$f":"IF('1. Order'!W1414=\"\",\"\",'1. Order'!W1414)","v":""},{"$f":"IF('1. Order'!X1414=\"\",\"\",'1. Order'!X1414)","v":""},{"$f":"IF('1. Order'!Y1414=\"\",\"\",'1. Order'!Y1414)","v":"EUR"},{"$f":"IF('1. Order'!Z1414=\"\",\"\",'1. Order'!Z1414)","v":""},{"$f":"IF('1. Order'!AA1414=\"\",\"\",'1. Order'!AA1414)","v":""},{"$f":"IF('1. Order'!AB1414=\"\",\"\",'1. Order'!AB1414)","v":""},null,{"$f":"IF('1. Order'!AT1414=\"\",\"\",'1. Order'!AT1414)","v":""},{"$f":"IF('1. Order'!AU1414=\"\",\"\",'1. Order'!AU1414)","v":""},null,null,null,null,null,null,null,{"$f":"IF('1. Order'!AY1414=\"\",\"\",'1. Order'!AY1414)","v":""},{"$f":"IF('1. Order'!AZ1414=\"\",\"\",'1. Order'!AZ1414)","v":""},{"$f":"IF('1. Order'!BA1414=\"\",\"\",'1. Order'!BA1414)","v":""},{"$f":"IF('1. Order'!BB1414=\"\",\"\",'1. Order'!BB1414)","v":""},{"$f":"IF('1. Order'!BD1414=\"\",\"\",'1. Order'!BD1414)","v":""},{"$f":"IF('1. Order'!BE1414=\"\",\"\",'1. Order'!BE1414)","v":""},{"$f":"IF('1. Order'!BF1414=\"\",\"\",'1. Order'!BF1414)","v":""},{"$f":"IF('1. Order'!BG1414=\"\",\"\",'1. Order'!BG1414)","v":""},{"$f":"IF('1. Order'!BH1414=\"\",\"\",'1. Order'!BH1414)","v":"ZWO"}]
[{"$f":"IF('1. Order'!F1415=\"\",\"\",'1. Order'!F1415)","v":{"$error":"#N/A"}},{"$f":"IF('1. Order'!G1415=\"\",\"\",'1. Order'!G1415)","v":""},{"$f":"IF('1. Order'!H1415=\"\",\"\",'1. Order'!H1415)","v":""},{"$f":"IF('1. Order'!I1415=\"\",\"\",'1. Order'!I1415)","v":""},{"$f":"IF('1. Order'!J1415=\"\",\"\",'1. Order'!J1415)","v":""},{"$f":"IF('1. Order'!K1415=\"\",\"\",'1. Order'!K1415)","v":""},{"$f":"IF('1. Order'!L1415=\"\",\"\",'1. Order'!L1415)","v":""},{"$f":"IF('1. Order'!M1415=\"\",\"\",'1. Order'!M1415)","v":""},{"$f":"IF('1. Order'!N1415=\"\",\"\",'1. Order'!N1415)","v":""},{"$f":"IF('1. Order'!O1415=\"\",\"\",'1. Order'!O1415)","v":{"$error":"#N/A"}},{"$f":"IF('1. Order'!P1415=\"\",\"\",'1. Order'!P1415)","v":{"$error":"#N/A"}},{"$f":"IF('1. Order'!Q1415=\"\",\"\",'1. Order'!Q1415)","v":""},{"$f":"IF('1. Order'!S1415=\"\",\"\",'1. Order'!S1415)","v":""},{"$f":"IF('1. Order'!T1415=\"\",\"\",'1. Order'!T1415)","v":""},{"$f":"IF('1. Order'!W1415=\"\",\"\",'1. Order'!W1415)","v":""},{"$f":"IF('1. Order'!X1415=\"\",\"\",'1. Order'!X1415)","v":""},{"$f":"IF('1. Order'!Y1415=\"\",\"\",'1. Order'!Y1415)","v":"EUR"},{"$f":"IF('1. Order'!Z1415=\"\",\"\",'1. Order'!Z1415)","v":""},{"$f":"IF('1. Order'!AA1415=\"\",\"\",'1. Order'!AA1415)","v":""},{"$f":"IF('1. Order'!AB1415=\"\",\"\",'1. Order'!AB1415)","v":""},null,{"$f":"IF('1. Order'!AT1415=\"\",\"\",'1. Order'!AT1415)","v":""},{"$f":"IF('1. Order'!AU1415=\"\",\"\",'1. Order'!AU1415)","v":""},null,null,null,null,null,null,null,{"$f":"IF('1. Order'!AY1415=\"\",\"\",'1. Order'!AY1415)","v":""},{"$f":"IF('1. Order'!AZ1415=\"\",\"\",'1. Order'!AZ1415)","v":""},{"$f":"IF('1. Order'!BA1415=\"\",\"\",'1. Order'!BA1415)","v":""},{"$f":"IF('1. Order'!BB1415=\"\",\"\",'1. Order'!BB1415)","v":""},{"$f":"IF('1. Order'!BD1415=\"\",\"\",'1. Order'!BD1415)","v":""},{"$f":"IF('1. Order'!BE1415=\"\",\"\",'1. Order'!BE1415)","v":""},{"$f":"IF('1. Order'!BF1415=\"\",\"\",'1. Order'!BF1415)","v":""},{"$f":"IF('1. Order'!BG1415=\"\",\"\",'1. Order'!BG1415)","v":""},{"$f":"IF('1. Order'!BH1415=\"\",\"\",'1. Order'!BH1415)","v":"ZWO"}]
[{"$f":"IF('1. Order'!F1416=\"\",\"\",'1. Order'!F1416)","v":{"$error":"#N/A"}},{"$f":"IF('1. Order'!G1416=\"\",\"\",'1. Order'!G1416)","v":""},{"$f":"IF('1. Order'!H1416=\"\",\"\",'1. Order'!H1416)","v":""},{"$f":"IF('1. Order'!I1416=\"\",\"\",'1. Order'!I1416)","v":""},{"$f":"IF('1. Order'!J1416=\"\",\"\",'1. Order'!J1416)","v":""},{"$f":"IF('1. Order'!K1416=\"\",\"\",'1. Order'!K1416)","v":""},{"$f":"IF('1. Order'!L1416=\"\",\"\",'1. Order'!L1416)","v":""},{"$f":"IF('1. Order'!M1416=\"\",\"\",'1. Order'!M1416)","v":""},{"$f":"IF('1. Order'!N1416=\"\",\"\",'1. Order'!N1416)","v":""},{"$f":"IF('1. Order'!O1416=\"\",\"\",'1. Order'!O1416)","v":{"$error":"#N/A"}},{"$f":"IF('1. Order'!P1416=\"\",\"\",'1. Order'!P1416)","v":{"$error":"#N/A"}},{"$f":"IF('1. Order'!Q1416=\"\",\"\",'1. Order'!Q1416)","v":""},{"$f":"IF('1. Order'!S1416=\"\",\"\",'1. Order'!S1416)","v":""},{"$f":"IF('1. Order'!T1416=\"\",\"\",'1. Order'!T1416)","v":""},{"$f":"IF('1. Order'!W1416=\"\",\"\",'1. Order'!W1416)","v":""},{"$f":"IF('1. Order'!X1416=\"\",\"\",'1. Order'!X1416)","v":""},{"$f":"IF('1. Order'!Y1416=\"\",\"\",'1. Order'!Y1416)","v":"EUR"},{"$f":"IF('1. Order'!Z1416=\"\",\"\",'1. Order'!Z1416)","v":""},{"$f":"IF('1. Order'!AA1416=\"\",\"\",'1. Order'!AA1416)","v":""},{"$f":"IF('1. Order'!AB1416=\"\",\"\",'1. Order'!AB1416)","v":""},null,{"$f":"IF('1. Order'!AT1416=\"\",\"\",'1. Order'!AT1416)","v":""},{"$f":"IF('1. Order'!AU1416=\"\",\"\",'1. Order'!AU1416)","v":""},null,null,null,null,null,null,null,{"$f":"IF('1. Order'!AY1416=\"\",\"\",'1. Order'!AY1416)","v":""},{"$f":"IF('1. Order'!AZ1416=\"\",\"\",'1. Order'!AZ1416)","v":""},{"$f":"IF('1. Order'!BA1416=\"\",\"\",'1. Order'!BA1416)","v":""},{"$f":"IF('1. Order'!BB1416=\"\",\"\",'1. Order'!BB1416)","v":""},{"$f":"IF('1. Order'!BD1416=\"\",\"\",'1. Order'!BD1416)","v":""},{"$f":"IF('1. Order'!BE1416=\"\",\"\",'1. Order'!BE1416)","v":""},{"$f":"IF('1. Order'!BF1416=\"\",\"\",'1. Order'!BF1416)","v":""},{"$f":"IF('1. Order'!BG1416=\"\",\"\",'1. Order'!BG1416)","v":""},{"$f":"IF('1. Order'!BH1416=\"\",\"\",'1. Order'!BH1416)","v":"ZWO"}]
[{"$f":"IF('1. Order'!F1417=\"\",\"\",'1. Order'!F1417)","v":{"$error":"#N/A"}},{"$f":"IF('1. Order'!G1417=\"\",\"\",'1. Order'!G1417)","v":""},{"$f":"IF('1. Order'!H1417=\"\",\"\",'1. Order'!H1417)","v":""},{"$f":"IF('1. Order'!I1417=\"\",\"\",'1. Order'!I1417)","v":""},{"$f":"IF('1. Order'!J1417=\"\",\"\",'1. Order'!J1417)","v":""},{"$f":"IF('1. Order'!K1417=\"\",\"\",'1. Order'!K1417)","v":""},{"$f":"IF('1. Order'!L1417=\"\",\"\",'1. Order'!L1417)","v":""},{"$f":"IF('1. Order'!M1417=\"\",\"\",'1. Order'!M1417)","v":""},{"$f":"IF('1. Order'!N1417=\"\",\"\",'1. Order'!N1417)","v":""},{"$f":"IF('1. Order'!O1417=\"\",\"\",'1. Order'!O1417)","v":{"$error":"#N/A"}},{"$f":"IF('1. Order'!P1417=\"\",\"\",'1. Order'!P1417)","v":{"$error":"#N/A"}},{"$f":"IF('1. Order'!Q1417=\"\",\"\",'1. Order'!Q1417)","v":""},{"$f":"IF('1. Order'!S1417=\"\",\"\",'1. Order'!S1417)","v":""},{"$f":"IF('1. Order'!T1417=\"\",\"\",'1. Order'!T1417)","v":""},{"$f":"IF('1. Order'!W1417=\"\",\"\",'1. Order'!W1417)","v":""},{"$f":"IF('1. Order'!X1417=\"\",\"\",'1. Order'!X1417)","v":""},{"$f":"IF('1. Order'!Y1417=\"\",\"\",'1. Order'!Y1417)","v":"EUR"},{"$f":"IF('1. Order'!Z1417=\"\",\"\",'1. Order'!Z1417)","v":""},{"$f":"IF('1. Order'!AA1417=\"\",\"\",'1. Order'!AA1417)","v":""},{"$f":"IF('1. Order'!AB1417=\"\",\"\",'1. Order'!AB1417)","v":""},null,{"$f":"IF('1. Order'!AT1417=\"\",\"\",'1. Order'!AT1417)","v":""},{"$f":"IF('1. Order'!AU1417=\"\",\"\",'1. Order'!AU1417)","v":""},null,null,null,null,null,null,null,{"$f":"IF('1. Order'!AY1417=\"\",\"\",'1. Order'!AY1417)","v":""},{"$f":"IF('1. Order'!AZ1417=\"\",\"\",'1. Order'!AZ1417)","v":""},{"$f":"IF('1. Order'!BA1417=\"\",\"\",'1. Order'!BA1417)","v":""},{"$f":"IF('1. Order'!BB1417=\"\",\"\",'1. Order'!BB1417)","v":""},{"$f":"IF('1. Order'!BD1417=\"\",\"\",'1. Order'!BD1417)","v":""},{"$f":"IF('1. Order'!BE1417=\"\",\"\",'1. Order'!BE1417)","v":""},{"$f":"IF('1. Order'!BF1417=\"\",\"\",'1. Order'!BF1417)","v":""},{"$f":"IF('1. Order'!BG1417=\"\",\"\",'1. Order'!BG1417)","v":""},{"$f":"IF('1. Order'!BH1417=\"\",\"\",'1. Order'!BH1417)","v":"ZWO"}]
[{"$f":"IF('1. Order'!F1418=\"\",\"\",'1. Order'!F1418)","v":{"$error":"#N/A"}},{"$f":"IF('1. Order'!G1418=\"\",\"\",'1. Order'!G1418)","v":""},{"$f":"IF('1. Order'!H1418=\"\",\"\",'1. Order'!H1418)","v":""},{"$f":"IF('1. Order'!I1418=\"\",\"\",'1. Order'!I1418)","v":""},{"$f":"IF('1. Order'!J1418=\"\",\"\",'1. Order'!J1418)","v":""},{"$f":"IF('1. Order'!K1418=\"\",\"\",'1. Order'!K1418)","v":""},{"$f":"IF('1. Order'!L1418=\"\",\"\",'1. Order'!L1418)","v":""},{"$f":"IF('1. Order'!M1418=\"\",\"\",'1. Order'!M1418)","v":""},{"$f":"IF('1. Order'!N1418=\"\",\"\",'1. Order'!N1418)","v":""},{"$f":"IF('1. Order'!O1418=\"\",\"\",'1. Order'!O1418)","v":{"$error":"#N/A"}},{"$f":"IF('1. Order'!P1418=\"\",\"\",'1. Order'!P1418)","v":{"$error":"#N/A"}},{"$f":"IF('1. Order'!Q1418=\"\",\"\",'1. Order'!Q1418)","v":""},{"$f":"IF('1. Order'!S1418=\"\",\"\",'1. Order'!S1418)","v":""},{"$f":"IF('1. Order'!T1418=\"\",\"\",'1. Order'!T1418)","v":""},{"$f":"IF('1. Order'!W1418=\"\",\"\",'1. Order'!W1418)","v":""},{"$f":"IF('1. Order'!X1418=\"\",\"\",'1. Order'!X1418)","v":""},{"$f":"IF('1. Order'!Y1418=\"\",\"\",'1. Order'!Y1418)","v":"EUR"},{"$f":"IF('1. Order'!Z1418=\"\",\"\",'1. Order'!Z1418)","v":""},{"$f":"IF('1. Order'!AA1418=\"\",\"\",'1. Order'!AA1418)","v":""},{"$f":"IF('1. Order'!AB1418=\"\",\"\",'1. Order'!AB1418)","v":""},null,{"$f":"IF('1. Order'!AT1418=\"\",\"\",'1. Order'!AT1418)","v":""},{"$f":"IF('1. Order'!AU1418=\"\",\"\",'1. Order'!AU1418)","v":""},null,null,null,null,null,null,null,{"$f":"IF('1. Order'!AY1418=\"\",\"\",'1. Order'!AY1418)","v":""},{"$f":"IF('1. Order'!AZ1418=\"\",\"\",'1. Order'!AZ1418)","v":""},{"$f":"IF('1. Order'!BA1418=\"\",\"\",'1. Order'!BA1418)","v":""},{"$f":"IF('1. Order'!BB1418=\"\",\"\",'1. Order'!BB1418)","v":""},{"$f":"IF('1. Order'!BD1418=\"\",\"\",'1. Order'!BD1418)","v":""},{"$f":"IF('1. Order'!BE1418=\"\",\"\",'1. Order'!BE1418)","v":""},{"$f":"IF('1. Order'!BF1418=\"\",\"\",'1. Order'!BF1418)","v":""},{"$f":"IF('1. Order'!BG1418=\"\",\"\",'1. Order'!BG1418)","v":""},{"$f":"IF('1. Order'!BH1418=\"\",\"\",'1. Order'!BH1418)","v":"ZWO"}]
[{"$f":"IF('1. Order'!F1419=\"\",\"\",'1. Order'!F1419)","v":{"$error":"#N/A"}},{"$f":"IF('1. Order'!G1419=\"\",\"\",'1. Order'!G1419)","v":""},{"$f":"IF('1. Order'!H1419=\"\",\"\",'1. Order'!H1419)","v":""},{"$f":"IF('1. Order'!I1419=\"\",\"\",'1. Order'!I1419)","v":""},{"$f":"IF('1. Order'!J1419=\"\",\"\",'1. Order'!J1419)","v":""},{"$f":"IF('1. Order'!K1419=\"\",\"\",'1. Order'!K1419)","v":""},{"$f":"IF('1. Order'!L1419=\"\",\"\",'1. Order'!L1419)","v":""},{"$f":"IF('1. Order'!M1419=\"\",\"\",'1. Order'!M1419)","v":""},{"$f":"IF('1. Order'!N1419=\"\",\"\",'1. Order'!N1419)","v":""},{"$f":"IF('1. Order'!O1419=\"\",\"\",'1. Order'!O1419)","v":{"$error":"#N/A"}},{"$f":"IF('1. Order'!P1419=\"\",\"\",'1. Order'!P1419)","v":{"$error":"#N/A"}},{"$f":"IF('1. Order'!Q1419=\"\",\"\",'1. Order'!Q1419)","v":""},{"$f":"IF('1. Order'!S1419=\"\",\"\",'1. Order'!S1419)","v":""},{"$f":"IF('1. Order'!T1419=\"\",\"\",'1. Order'!T1419)","v":""},{"$f":"IF('1. Order'!W1419=\"\",\"\",'1. Order'!W1419)","v":""},{"$f":"IF('1. Order'!X1419=\"\",\"\",'1. Order'!X1419)","v":""},{"$f":"IF('1. Order'!Y1419=\"\",\"\",'1. Order'!Y1419)","v":"EUR"},{"$f":"IF('1. Order'!Z1419=\"\",\"\",'1. Order'!Z1419)","v":""},{"$f":"IF('1. Order'!AA1419=\"\",\"\",'1. Order'!AA1419)","v":""},{"$f":"IF('1. Order'!AB1419=\"\",\"\",'1. Order'!AB1419)","v":""},null,{"$f":"IF('1. Order'!AT1419=\"\",\"\",'1. Order'!AT1419)","v":""},{"$f":"IF('1. Order'!AU1419=\"\",\"\",'1. Order'!AU1419)","v":""},null,null,null,null,null,null,null,{"$f":"IF('1. Order'!AY1419=\"\",\"\",'1. Order'!AY1419)","v":""},{"$f":"IF('1. Order'!AZ1419=\"\",\"\",'1. Order'!AZ1419)","v":""},{"$f":"IF('1. Order'!BA1419=\"\",\"\",'1. Order'!BA1419)","v":""},{"$f":"IF('1. Order'!BB1419=\"\",\"\",'1. Order'!BB1419)","v":""},{"$f":"IF('1. Order'!BD1419=\"\",\"\",'1. Order'!BD1419)","v":""},{"$f":"IF('1. Order'!BE1419=\"\",\"\",'1. Order'!BE1419)","v":""},{"$f":"IF('1. Order'!BF1419=\"\",\"\",'1. Order'!BF1419)","v":""},{"$f":"IF('1. Order'!BG1419=\"\",\"\",'1. Order'!BG1419)","v":""},{"$f":"IF('1. Order'!BH1419=\"\",\"\",'1. Order'!BH1419)","v":"ZWO"}]
[{"$f":"IF('1. Order'!F1420=\"\",\"\",'1. Order'!F1420)","v":{"$error":"#N/A"}},{"$f":"IF('1. Order'!G1420=\"\",\"\",'1. Order'!G1420)","v":""},{"$f":"IF('1. Order'!H1420=\"\",\"\",'1. Order'!H1420)","v":""},{"$f":"IF('1. Order'!I1420=\"\",\"\",'1. Order'!I1420)","v":""},{"$f":"IF('1. Order'!J1420=\"\",\"\",'1. Order'!J1420)","v":""},{"$f":"IF('1. Order'!K1420=\"\",\"\",'1. Order'!K1420)","v":""},{"$f":"IF('1. Order'!L1420=\"\",\"\",'1. Order'!L1420)","v":""},{"$f":"IF('1. Order'!M1420=\"\",\"\",'1. Order'!M1420)","v":""},{"$f":"IF('1. Order'!N1420=\"\",\"\",'1. Order'!N1420)","v":""},{"$f":"IF('1. Order'!O1420=\"\",\"\",'1. Order'!O1420)","v":{"$error":"#N/A"}},{"$f":"IF('1. Order'!P1420=\"\",\"\",'1. Order'!P1420)","v":{"$error":"#N/A"}},{"$f":"IF('1. Order'!Q1420=\"\",\"\",'1. Order'!Q1420)","v":""},{"$f":"IF('1. Order'!S1420=\"\",\"\",'1. Order'!S1420)","v":""},{"$f":"IF('1. Order'!T1420=\"\",\"\",'1. Order'!T1420)","v":""},{"$f":"IF('1. Order'!W1420=\"\",\"\",'1. Order'!W1420)","v":""},{"$f":"IF('1. Order'!X1420=\"\",\"\",'1. Order'!X1420)","v":""},{"$f":"IF('1. Order'!Y1420=\"\",\"\",'1. Order'!Y1420)","v":"EUR"},{"$f":"IF('1. Order'!Z1420=\"\",\"\",'1. Order'!Z1420)","v":""},{"$f":"IF('1. Order'!AA1420=\"\",\"\",'1. Order'!AA1420)","v":""},{"$f":"IF('1. Order'!AB1420=\"\",\"\",'1. Order'!AB1420)","v":""},null,{"$f":"IF('1. Order'!AT1420=\"\",\"\",'1. Order'!AT1420)","v":""},{"$f":"IF('1. Order'!AU1420=\"\",\"\",'1. Order'!AU1420)","v":""},null,null,null,null,null,null,null,{"$f":"IF('1. Order'!AY1420=\"\",\"\",'1. Order'!AY1420)","v":""},{"$f":"IF('1. Order'!AZ1420=\"\",\"\",'1. Order'!AZ1420)","v":""},{"$f":"IF('1. Order'!BA1420=\"\",\"\",'1. Order'!BA1420)","v":""},{"$f":"IF('1. Order'!BB1420=\"\",\"\",'1. Order'!BB1420)","v":""},{"$f":"IF('1. Order'!BD1420=\"\",\"\",'1. Order'!BD1420)","v":""},{"$f":"IF('1. Order'!BE1420=\"\",\"\",'1. Order'!BE1420)","v":""},{"$f":"IF('1. Order'!BF1420=\"\",\"\",'1. Order'!BF1420)","v":""},{"$f":"IF('1. Order'!BG1420=\"\",\"\",'1. Order'!BG1420)","v":""},{"$f":"IF('1. Order'!BH1420=\"\",\"\",'1. Order'!BH1420)","v":"ZWO"}]
[{"$f":"IF('1. Order'!F1421=\"\",\"\",'1. Order'!F1421)","v":{"$error":"#N/A"}},{"$f":"IF('1. Order'!G1421=\"\",\"\",'1. Order'!G1421)","v":""},{"$f":"IF('1. Order'!H1421=\"\",\"\",'1. Order'!H1421)","v":""},{"$f":"IF('1. Order'!I1421=\"\",\"\",'1. Order'!I1421)","v":""},{"$f":"IF('1. Order'!J1421=\"\",\"\",'1. Order'!J1421)","v":""},{"$f":"IF('1. Order'!K1421=\"\",\"\",'1. Order'!K1421)","v":""},{"$f":"IF('1. Order'!L1421=\"\",\"\",'1. Order'!L1421)","v":""},{"$f":"IF('1. Order'!M1421=\"\",\"\",'1. Order'!M1421)","v":""},{"$f":"IF('1. Order'!N1421=\"\",\"\",'1. Order'!N1421)","v":""},{"$f":"IF('1. Order'!O1421=\"\",\"\",'1. Order'!O1421)","v":{"$error":"#N/A"}},{"$f":"IF('1. Order'!P1421=\"\",\"\",'1. Order'!P1421)","v":{"$error":"#N/A"}},{"$f":"IF('1. Order'!Q1421=\"\",\"\",'1. Order'!Q1421)","v":""},{"$f":"IF('1. Order'!S1421=\"\",\"\",'1. Order'!S1421)","v":""},{"$f":"IF('1. Order'!T1421=\"\",\"\",'1. Order'!T1421)","v":""},{"$f":"IF('1. Order'!W1421=\"\",\"\",'1. Order'!W1421)","v":""},{"$f":"IF('1. Order'!X1421=\"\",\"\",'1. Order'!X1421)","v":""},{"$f":"IF('1. Order'!Y1421=\"\",\"\",'1. Order'!Y1421)","v":"EUR"},{"$f":"IF('1. Order'!Z1421=\"\",\"\",'1. Order'!Z1421)","v":""},{"$f":"IF('1. Order'!AA1421=\"\",\"\",'1. Order'!AA1421)","v":""},{"$f":"IF('1. Order'!AB1421=\"\",\"\",'1. Order'!AB1421)","v":""},null,{"$f":"IF('1. Order'!AT1421=\"\",\"\",'1. Order'!AT1421)","v":""},{"$f":"IF('1. Order'!AU1421=\"\",\"\",'1. Order'!AU1421)","v":""},null,null,null,null,null,null,null,{"$f":"IF('1. Order'!AY1421=\"\",\"\",'1. Order'!AY1421)","v":""},{"$f":"IF('1. Order'!AZ1421=\"\",\"\",'1. Order'!AZ1421)","v":""},{"$f":"IF('1. Order'!BA1421=\"\",\"\",'1. Order'!BA1421)","v":""},{"$f":"IF('1. Order'!BB1421=\"\",\"\",'1. Order'!BB1421)","v":""},{"$f":"IF('1. Order'!BD1421=\"\",\"\",'1. Order'!BD1421)","v":""},{"$f":"IF('1. Order'!BE1421=\"\",\"\",'1. Order'!BE1421)","v":""},{"$f":"IF('1. Order'!BF1421=\"\",\"\",'1. Order'!BF1421)","v":""},{"$f":"IF('1. Order'!BG1421=\"\",\"\",'1. Order'!BG1421)","v":""},{"$f":"IF('1. Order'!BH1421=\"\",\"\",'1. Order'!BH1421)","v":"ZWO"}]
[{"$f":"IF('1. Order'!F1422=\"\",\"\",'1. Order'!F1422)","v":{"$error":"#N/A"}},{"$f":"IF('1. Order'!G1422=\"\",\"\",'1. Order'!G1422)","v":""},{"$f":"IF('1. Order'!H1422=\"\",\"\",'1. Order'!H1422)","v":""},{"$f":"IF('1. Order'!I1422=\"\",\"\",'1. Order'!I1422)","v":""},{"$f":"IF('1. Order'!J1422=\"\",\"\",'1. Order'!J1422)","v":""},{"$f":"IF('1. Order'!K1422=\"\",\"\",'1. Order'!K1422)","v":""},{"$f":"IF('1. Order'!L1422=\"\",\"\",'1. Order'!L1422)","v":""},{"$f":"IF('1. Order'!M1422=\"\",\"\",'1. Order'!M1422)","v":""},{"$f":"IF('1. Order'!N1422=\"\",\"\",'1. Order'!N1422)","v":""},{"$f":"IF('1. Order'!O1422=\"\",\"\",'1. Order'!O1422)","v":{"$error":"#N/A"}},{"$f":"IF('1. Order'!P1422=\"\",\"\",'1. Order'!P1422)","v":{"$error":"#N/A"}},{"$f":"IF('1. Order'!Q1422=\"\",\"\",'1. Order'!Q1422)","v":""},{"$f":"IF('1. Order'!S1422=\"\",\"\",'1. Order'!S1422)","v":""},{"$f":"IF('1. Order'!T1422=\"\",\"\",'1. Order'!T1422)","v":""},{"$f":"IF('1. Order'!W1422=\"\",\"\",'1. Order'!W1422)","v":""},{"$f":"IF('1. Order'!X1422=\"\",\"\",'1. Order'!X1422)","v":""},{"$f":"IF('1. Order'!Y1422=\"\",\"\",'1. Order'!Y1422)","v":"EUR"},{"$f":"IF('1. Order'!Z1422=\"\",\"\",'1. Order'!Z1422)","v":""},{"$f":"IF('1. Order'!AA1422=\"\",\"\",'1. Order'!AA1422)","v":""},{"$f":"IF('1. Order'!AB1422=\"\",\"\",'1. Order'!AB1422)","v":""},null,{"$f":"IF('1. Order'!AT1422=\"\",\"\",'1. Order'!AT1422)","v":""},{"$f":"IF('1. Order'!AU1422=\"\",\"\",'1. Order'!AU1422)","v":""},null,null,null,null,null,null,null,{"$f":"IF('1. Order'!AY1422=\"\",\"\",'1. Order'!AY1422)","v":""},{"$f":"IF('1. Order'!AZ1422=\"\",\"\",'1. Order'!AZ1422)","v":""},{"$f":"IF('1. Order'!BA1422=\"\",\"\",'1. Order'!BA1422)","v":""},{"$f":"IF('1. Order'!BB1422=\"\",\"\",'1. Order'!BB1422)","v":""},{"$f":"IF('1. Order'!BD1422=\"\",\"\",'1. Order'!BD1422)","v":""},{"$f":"IF('1. Order'!BE1422=\"\",\"\",'1. Order'!BE1422)","v":""},{"$f":"IF('1. Order'!BF1422=\"\",\"\",'1. Order'!BF1422)","v":""},{"$f":"IF('1. Order'!BG1422=\"\",\"\",'1. Order'!BG1422)","v":""},{"$f":"IF('1. Order'!BH1422=\"\",\"\",'1. Order'!BH1422)","v":"ZWO"}]
[{"$f":"IF('1. Order'!F1423=\"\",\"\",'1. Order'!F1423)","v":{"$error":"#N/A"}},{"$f":"IF('1. Order'!G1423=\"\",\"\",'1. Order'!G1423)","v":""},{"$f":"IF('1. Order'!H1423=\"\",\"\",'1. Order'!H1423)","v":""},{"$f":"IF('1. Order'!I1423=\"\",\"\",'1. Order'!I1423)","v":""},{"$f":"IF('1. Order'!J1423=\"\",\"\",'1. Order'!J1423)","v":""},{"$f":"IF('1. Order'!K1423=\"\",\"\",'1. Order'!K1423)","v":""},{"$f":"IF('1. Order'!L1423=\"\",\"\",'1. Order'!L1423)","v":""},{"$f":"IF('1. Order'!M1423=\"\",\"\",'1. Order'!M1423)","v":""},{"$f":"IF('1. Order'!N1423=\"\",\"\",'1. Order'!N1423)","v":""},{"$f":"IF('1. Order'!O1423=\"\",\"\",'1. Order'!O1423)","v":{"$error":"#N/A"}},{"$f":"IF('1. Order'!P1423=\"\",\"\",'1. Order'!P1423)","v":{"$error":"#N/A"}},{"$f":"IF('1. Order'!Q1423=\"\",\"\",'1. Order'!Q1423)","v":""},{"$f":"IF('1. Order'!S1423=\"\",\"\",'1. Order'!S1423)","v":""},{"$f":"IF('1. Order'!T1423=\"\",\"\",'1. Order'!T1423)","v":""},{"$f":"IF('1. Order'!W1423=\"\",\"\",'1. Order'!W1423)","v":""},{"$f":"IF('1. Order'!X1423=\"\",\"\",'1. Order'!X1423)","v":""},{"$f":"IF('1. Order'!Y1423=\"\",\"\",'1. Order'!Y1423)","v":"EUR"},{"$f":"IF('1. Order'!Z1423=\"\",\"\",'1. Order'!Z1423)","v":""},{"$f":"IF('1. Order'!AA1423=\"\",\"\",'1. Order'!AA1423)","v":""},{"$f":"IF('1. Order'!AB1423=\"\",\"\",'1. Order'!AB1423)","v":""},null,{"$f":"IF('1. Order'!AT1423=\"\",\"\",'1. Order'!AT1423)","v":""},{"$f":"IF('1. Order'!AU1423=\"\",\"\",'1. Order'!AU1423)","v":""},null,null,null,null,null,null,null,{"$f":"IF('1. Order'!AY1423=\"\",\"\",'1. Order'!AY1423)","v":""},{"$f":"IF('1. Order'!AZ1423=\"\",\"\",'1. Order'!AZ1423)","v":""},{"$f":"IF('1. Order'!BA1423=\"\",\"\",'1. Order'!BA1423)","v":""},{"$f":"IF('1. Order'!BB1423=\"\",\"\",'1. Order'!BB1423)","v":""},{"$f":"IF('1. Order'!BD1423=\"\",\"\",'1. Order'!BD1423)","v":""},{"$f":"IF('1. Order'!BE1423=\"\",\"\",'1. Order'!BE1423)","v":""},{"$f":"IF('1. Order'!BF1423=\"\",\"\",'1. Order'!BF1423)","v":""},{"$f":"IF('1. Order'!BG1423=\"\",\"\",'1. Order'!BG1423)","v":""},{"$f":"IF('1. Order'!BH1423=\"\",\"\",'1. Order'!BH1423)","v":"ZWO"}]
[{"$f":"IF('1. Order'!F1424=\"\",\"\",'1. Order'!F1424)","v":{"$error":"#N/A"}},{"$f":"IF('1. Order'!G1424=\"\",\"\",'1. Order'!G1424)","v":""},{"$f":"IF('1. Order'!H1424=\"\",\"\",'1. Order'!H1424)","v":""},{"$f":"IF('1. Order'!I1424=\"\",\"\",'1. Order'!I1424)","v":""},{"$f":"IF('1. Order'!J1424=\"\",\"\",'1. Order'!J1424)","v":""},{"$f":"IF('1. Order'!K1424=\"\",\"\",'1. Order'!K1424)","v":""},{"$f":"IF('1. Order'!L1424=\"\",\"\",'1. Order'!L1424)","v":""},{"$f":"IF('1. Order'!M1424=\"\",\"\",'1. Order'!M1424)","v":""},{"$f":"IF('1. Order'!N1424=\"\",\"\",'1. Order'!N1424)","v":""},{"$f":"IF('1. Order'!O1424=\"\",\"\",'1. Order'!O1424)","v":{"$error":"#N/A"}},{"$f":"IF('1. Order'!P1424=\"\",\"\",'1. Order'!P1424)","v":{"$error":"#N/A"}},{"$f":"IF('1. Order'!Q1424=\"\",\"\",'1. Order'!Q1424)","v":""},{"$f":"IF('1. Order'!S1424=\"\",\"\",'1. Order'!S1424)","v":""},{"$f":"IF('1. Order'!T1424=\"\",\"\",'1. Order'!T1424)","v":""},{"$f":"IF('1. Order'!W1424=\"\",\"\",'1. Order'!W1424)","v":""},{"$f":"IF('1. Order'!X1424=\"\",\"\",'1. Order'!X1424)","v":""},{"$f":"IF('1. Order'!Y1424=\"\",\"\",'1. Order'!Y1424)","v":"EUR"},{"$f":"IF('1. Order'!Z1424=\"\",\"\",'1. Order'!Z1424)","v":""},{"$f":"IF('1. Order'!AA1424=\"\",\"\",'1. Order'!AA1424)","v":""},{"$f":"IF('1. Order'!AB1424=\"\",\"\",'1. Order'!AB1424)","v":""},null,{"$f":"IF('1. Order'!AT1424=\"\",\"\",'1. Order'!AT1424)","v":""},{"$f":"IF('1. Order'!AU1424=\"\",\"\",'1. Order'!AU1424)","v":""},null,null,null,null,null,null,null,{"$f":"IF('1. Order'!AY1424=\"\",\"\",'1. Order'!AY1424)","v":""},{"$f":"IF('1. Order'!AZ1424=\"\",\"\",'1. Order'!AZ1424)","v":""},{"$f":"IF('1. Order'!BA1424=\"\",\"\",'1. Order'!BA1424)","v":""},{"$f":"IF('1. Order'!BB1424=\"\",\"\",'1. Order'!BB1424)","v":""},{"$f":"IF('1. Order'!BD1424=\"\",\"\",'1. Order'!BD1424)","v":""},{"$f":"IF('1. Order'!BE1424=\"\",\"\",'1. Order'!BE1424)","v":""},{"$f":"IF('1. Order'!BF1424=\"\",\"\",'1. Order'!BF1424)","v":""},{"$f":"IF('1. Order'!BG1424=\"\",\"\",'1. Order'!BG1424)","v":""},{"$f":"IF('1. Order'!BH1424=\"\",\"\",'1. Order'!BH1424)","v":"ZWO"}]
[{"$f":"IF('1. Order'!F1425=\"\",\"\",'1. Order'!F1425)","v":{"$error":"#N/A"}},{"$f":"IF('1. Order'!G1425=\"\",\"\",'1. Order'!G1425)","v":""},{"$f":"IF('1. Order'!H1425=\"\",\"\",'1. Order'!H1425)","v":""},{"$f":"IF('1. Order'!I1425=\"\",\"\",'1. Order'!I1425)","v":""},{"$f":"IF('1. Order'!J1425=\"\",\"\",'1. Order'!J1425)","v":""},{"$f":"IF('1. Order'!K1425=\"\",\"\",'1. Order'!K1425)","v":""},{"$f":"IF('1. Order'!L1425=\"\",\"\",'1. Order'!L1425)","v":""},{"$f":"IF('1. Order'!M1425=\"\",\"\",'1. Order'!M1425)","v":""},{"$f":"IF('1. Order'!N1425=\"\",\"\",'1. Order'!N1425)","v":""},{"$f":"IF('1. Order'!O1425=\"\",\"\",'1. Order'!O1425)","v":{"$error":"#N/A"}},{"$f":"IF('1. Order'!P1425=\"\",\"\",'1. Order'!P1425)","v":{"$error":"#N/A"}},{"$f":"IF('1. Order'!Q1425=\"\",\"\",'1. Order'!Q1425)","v":""},{"$f":"IF('1. Order'!S1425=\"\",\"\",'1. Order'!S1425)","v":""},{"$f":"IF('1. Order'!T1425=\"\",\"\",'1. Order'!T1425)","v":""},{"$f":"IF('1. Order'!W1425=\"\",\"\",'1. Order'!W1425)","v":""},{"$f":"IF('1. Order'!X1425=\"\",\"\",'1. Order'!X1425)","v":""},{"$f":"IF('1. Order'!Y1425=\"\",\"\",'1. Order'!Y1425)","v":"EUR"},{"$f":"IF('1. Order'!Z1425=\"\",\"\",'1. Order'!Z1425)","v":""},{"$f":"IF('1. Order'!AA1425=\"\",\"\",'1. Order'!AA1425)","v":""},{"$f":"IF('1. Order'!AB1425=\"\",\"\",'1. Order'!AB1425)","v":""},null,{"$f":"IF('1. Order'!AT1425=\"\",\"\",'1. Order'!AT1425)","v":""},{"$f":"IF('1. Order'!AU1425=\"\",\"\",'1. Order'!AU1425)","v":""},null,null,null,null,null,null,null,{"$f":"IF('1. Order'!AY1425=\"\",\"\",'1. Order'!AY1425)","v":""},{"$f":"IF('1. Order'!AZ1425=\"\",\"\",'1. Order'!AZ1425)","v":""},{"$f":"IF('1. Order'!BA1425=\"\",\"\",'1. Order'!BA1425)","v":""},{"$f":"IF('1. Order'!BB1425=\"\",\"\",'1. Order'!BB1425)","v":""},{"$f":"IF('1. Order'!BD1425=\"\",\"\",'1. Order'!BD1425)","v":""},{"$f":"IF('1. Order'!BE1425=\"\",\"\",'1. Order'!BE1425)","v":""},{"$f":"IF('1. Order'!BF1425=\"\",\"\",'1. Order'!BF1425)","v":""},{"$f":"IF('1. Order'!BG1425=\"\",\"\",'1. Order'!BG1425)","v":""},{"$f":"IF('1. Order'!BH1425=\"\",\"\",'1. Order'!BH1425)","v":"ZWO"}]
[{"$f":"IF('1. Order'!F1426=\"\",\"\",'1. Order'!F1426)","v":{"$error":"#N/A"}},{"$f":"IF('1. Order'!G1426=\"\",\"\",'1. Order'!G1426)","v":""},{"$f":"IF('1. Order'!H1426=\"\",\"\",'1. Order'!H1426)","v":""},{"$f":"IF('1. Order'!I1426=\"\",\"\",'1. Order'!I1426)","v":""},{"$f":"IF('1. Order'!J1426=\"\",\"\",'1. Order'!J1426)","v":""},{"$f":"IF('1. Order'!K1426=\"\",\"\",'1. Order'!K1426)","v":""},{"$f":"IF('1. Order'!L1426=\"\",\"\",'1. Order'!L1426)","v":""},{"$f":"IF('1. Order'!M1426=\"\",\"\",'1. Order'!M1426)","v":""},{"$f":"IF('1. Order'!N1426=\"\",\"\",'1. Order'!N1426)","v":""},{"$f":"IF('1. Order'!O1426=\"\",\"\",'1. Order'!O1426)","v":{"$error":"#N/A"}},{"$f":"IF('1. Order'!P1426=\"\",\"\",'1. Order'!P1426)","v":{"$error":"#N/A"}},{"$f":"IF('1. Order'!Q1426=\"\",\"\",'1. Order'!Q1426)","v":""},{"$f":"IF('1. Order'!S1426=\"\",\"\",'1. Order'!S1426)","v":""},{"$f":"IF('1. Order'!T1426=\"\",\"\",'1. Order'!T1426)","v":""},{"$f":"IF('1. Order'!W1426=\"\",\"\",'1. Order'!W1426)","v":""},{"$f":"IF('1. Order'!X1426=\"\",\"\",'1. Order'!X1426)","v":""},{"$f":"IF('1. Order'!Y1426=\"\",\"\",'1. Order'!Y1426)","v":"EUR"},{"$f":"IF('1. Order'!Z1426=\"\",\"\",'1. Order'!Z1426)","v":""},{"$f":"IF('1. Order'!AA1426=\"\",\"\",'1. Order'!AA1426)","v":""},{"$f":"IF('1. Order'!AB1426=\"\",\"\",'1. Order'!AB1426)","v":""},null,{"$f":"IF('1. Order'!AT1426=\"\",\"\",'1. Order'!AT1426)","v":""},{"$f":"IF('1. Order'!AU1426=\"\",\"\",'1. Order'!AU1426)","v":""},null,null,null,null,null,null,null,{"$f":"IF('1. Order'!AY1426=\"\",\"\",'1. Order'!AY1426)","v":""},{"$f":"IF('1. Order'!AZ1426=\"\",\"\",'1. Order'!AZ1426)","v":""},{"$f":"IF('1. Order'!BA1426=\"\",\"\",'1. Order'!BA1426)","v":""},{"$f":"IF('1. Order'!BB1426=\"\",\"\",'1. Order'!BB1426)","v":""},{"$f":"IF('1. Order'!BD1426=\"\",\"\",'1. Order'!BD1426)","v":""},{"$f":"IF('1. Order'!BE1426=\"\",\"\",'1. Order'!BE1426)","v":""},{"$f":"IF('1. Order'!BF1426=\"\",\"\",'1. Order'!BF1426)","v":""},{"$f":"IF('1. Order'!BG1426=\"\",\"\",'1. Order'!BG1426)","v":""},{"$f":"IF('1. Order'!BH1426=\"\",\"\",'1. Order'!BH1426)","v":"ZWO"}]
[{"$f":"IF('1. Order'!F1427=\"\",\"\",'1. Order'!F1427)","v":{"$error":"#N/A"}},{"$f":"IF('1. Order'!G1427=\"\",\"\",'1. Order'!G1427)","v":""},{"$f":"IF('1. Order'!H1427=\"\",\"\",'1. Order'!H1427)","v":""},{"$f":"IF('1. Order'!I1427=\"\",\"\",'1. Order'!I1427)","v":""},{"$f":"IF('1. Order'!J1427=\"\",\"\",'1. Order'!J1427)","v":""},{"$f":"IF('1. Order'!K1427=\"\",\"\",'1. Order'!K1427)","v":""},{"$f":"IF('1. Order'!L1427=\"\",\"\",'1. Order'!L1427)","v":""},{"$f":"IF('1. Order'!M1427=\"\",\"\",'1. Order'!M1427)","v":""},{"$f":"IF('1. Order'!N1427=\"\",\"\",'1. Order'!N1427)","v":""},{"$f":"IF('1. Order'!O1427=\"\",\"\",'1. Order'!O1427)","v":{"$error":"#N/A"}},{"$f":"IF('1. Order'!P1427=\"\",\"\",'1. Order'!P1427)","v":{"$error":"#N/A"}},{"$f":"IF('1. Order'!Q1427=\"\",\"\",'1. Order'!Q1427)","v":""},{"$f":"IF('1. Order'!S1427=\"\",\"\",'1. Order'!S1427)","v":""},{"$f":"IF('1. Order'!T1427=\"\",\"\",'1. Order'!T1427)","v":""},{"$f":"IF('1. Order'!W1427=\"\",\"\",'1. Order'!W1427)","v":""},{"$f":"IF('1. Order'!X1427=\"\",\"\",'1. Order'!X1427)","v":""},{"$f":"IF('1. Order'!Y1427=\"\",\"\",'1. Order'!Y1427)","v":"EUR"},{"$f":"IF('1. Order'!Z1427=\"\",\"\",'1. Order'!Z1427)","v":""},{"$f":"IF('1. Order'!AA1427=\"\",\"\",'1. Order'!AA1427)","v":""},{"$f":"IF('1. Order'!AB1427=\"\",\"\",'1. Order'!AB1427)","v":""},null,{"$f":"IF('1. Order'!AT1427=\"\",\"\",'1. Order'!AT1427)","v":""},{"$f":"IF('1. Order'!AU1427=\"\",\"\",'1. Order'!AU1427)","v":""},null,null,null,null,null,null,null,{"$f":"IF('1. Order'!AY1427=\"\",\"\",'1. Order'!AY1427)","v":""},{"$f":"IF('1. Order'!AZ1427=\"\",\"\",'1. Order'!AZ1427)","v":""},{"$f":"IF('1. Order'!BA1427=\"\",\"\",'1. Order'!BA1427)","v":""},{"$f":"IF('1. Order'!BB1427=\"\",\"\",'1. Order'!BB1427)","v":""},{"$f":"IF('1. Order'!BD1427=\"\",\"\",'1. Order'!BD1427)","v":""},{"$f":"IF('1. Order'!BE1427=\"\",\"\",'1. Order'!BE1427)","v":""},{"$f":"IF('1. Order'!BF1427=\"\",\"\",'1. Order'!BF1427)","v":""},{"$f":"IF('1. Order'!BG1427=\"\",\"\",'1. Order'!BG1427)","v":""},{"$f":"IF('1. Order'!BH1427=\"\",\"\",'1. Order'!BH1427)","v":"ZWO"}]
[{"$f":"IF('1. Order'!F1428=\"\",\"\",'1. Order'!F1428)","v":{"$error":"#N/A"}},{"$f":"IF('1. Order'!G1428=\"\",\"\",'1. Order'!G1428)","v":""},{"$f":"IF('1. Order'!H1428=\"\",\"\",'1. Order'!H1428)","v":""},{"$f":"IF('1. Order'!I1428=\"\",\"\",'1. Order'!I1428)","v":""},{"$f":"IF('1. Order'!J1428=\"\",\"\",'1. Order'!J1428)","v":""},{"$f":"IF('1. Order'!K1428=\"\",\"\",'1. Order'!K1428)","v":""},{"$f":"IF('1. Order'!L1428=\"\",\"\",'1. Order'!L1428)","v":""},{"$f":"IF('1. Order'!M1428=\"\",\"\",'1. Order'!M1428)","v":""},{"$f":"IF('1. Order'!N1428=\"\",\"\",'1. Order'!N1428)","v":""},{"$f":"IF('1. Order'!O1428=\"\",\"\",'1. Order'!O1428)","v":{"$error":"#N/A"}},{"$f":"IF('1. Order'!P1428=\"\",\"\",'1. Order'!P1428)","v":{"$error":"#N/A"}},{"$f":"IF('1. Order'!Q1428=\"\",\"\",'1. Order'!Q1428)","v":""},{"$f":"IF('1. Order'!S1428=\"\",\"\",'1. Order'!S1428)","v":""},{"$f":"IF('1. Order'!T1428=\"\",\"\",'1. Order'!T1428)","v":""},{"$f":"IF('1. Order'!W1428=\"\",\"\",'1. Order'!W1428)","v":""},{"$f":"IF('1. Order'!X1428=\"\",\"\",'1. Order'!X1428)","v":""},{"$f":"IF('1. Order'!Y1428=\"\",\"\",'1. Order'!Y1428)","v":"EUR"},{"$f":"IF('1. Order'!Z1428=\"\",\"\",'1. Order'!Z1428)","v":""},{"$f":"IF('1. Order'!AA1428=\"\",\"\",'1. Order'!AA1428)","v":""},{"$f":"IF('1. Order'!AB1428=\"\",\"\",'1. Order'!AB1428)","v":""},null,{"$f":"IF('1. Order'!AT1428=\"\",\"\",'1. Order'!AT1428)","v":""},{"$f":"IF('1. Order'!AU1428=\"\",\"\",'1. Order'!AU1428)","v":""},null,null,null,null,null,null,null,{"$f":"IF('1. Order'!AY1428=\"\",\"\",'1. Order'!AY1428)","v":""},{"$f":"IF('1. Order'!AZ1428=\"\",\"\",'1. Order'!AZ1428)","v":""},{"$f":"IF('1. Order'!BA1428=\"\",\"\",'1. Order'!BA1428)","v":""},{"$f":"IF('1. Order'!BB1428=\"\",\"\",'1. Order'!BB1428)","v":""},{"$f":"IF('1. Order'!BD1428=\"\",\"\",'1. Order'!BD1428)","v":""},{"$f":"IF('1. Order'!BE1428=\"\",\"\",'1. Order'!BE1428)","v":""},{"$f":"IF('1. Order'!BF1428=\"\",\"\",'1. Order'!BF1428)","v":""},{"$f":"IF('1. Order'!BG1428=\"\",\"\",'1. Order'!BG1428)","v":""},{"$f":"IF('1. Order'!BH1428=\"\",\"\",'1. Order'!BH1428)","v":"ZWO"}]
[{"$f":"IF('1. Order'!F1429=\"\",\"\",'1. Order'!F1429)","v":{"$error":"#N/A"}},{"$f":"IF('1. Order'!G1429=\"\",\"\",'1. Order'!G1429)","v":""},{"$f":"IF('1. Order'!H1429=\"\",\"\",'1. Order'!H1429)","v":""},{"$f":"IF('1. Order'!I1429=\"\",\"\",'1. Order'!I1429)","v":""},{"$f":"IF('1. Order'!J1429=\"\",\"\",'1. Order'!J1429)","v":""},{"$f":"IF('1. Order'!K1429=\"\",\"\",'1. Order'!K1429)","v":""},{"$f":"IF('1. Order'!L1429=\"\",\"\",'1. Order'!L1429)","v":""},{"$f":"IF('1. Order'!M1429=\"\",\"\",'1. Order'!M1429)","v":""},{"$f":"IF('1. Order'!N1429=\"\",\"\",'1. Order'!N1429)","v":""},{"$f":"IF('1. Order'!O1429=\"\",\"\",'1. Order'!O1429)","v":{"$error":"#N/A"}},{"$f":"IF('1. Order'!P1429=\"\",\"\",'1. Order'!P1429)","v":{"$error":"#N/A"}},{"$f":"IF('1. Order'!Q1429=\"\",\"\",'1. Order'!Q1429)","v":""},{"$f":"IF('1. Order'!S1429=\"\",\"\",'1. Order'!S1429)","v":""},{"$f":"IF('1. Order'!T1429=\"\",\"\",'1. Order'!T1429)","v":""},{"$f":"IF('1. Order'!W1429=\"\",\"\",'1. Order'!W1429)","v":""},{"$f":"IF('1. Order'!X1429=\"\",\"\",'1. Order'!X1429)","v":""},{"$f":"IF('1. Order'!Y1429=\"\",\"\",'1. Order'!Y1429)","v":"EUR"},{"$f":"IF('1. Order'!Z1429=\"\",\"\",'1. Order'!Z1429)","v":""},{"$f":"IF('1. Order'!AA1429=\"\",\"\",'1. Order'!AA1429)","v":""},{"$f":"IF('1. Order'!AB1429=\"\",\"\",'1. Order'!AB1429)","v":""},null,{"$f":"IF('1. Order'!AT1429=\"\",\"\",'1. Order'!AT1429)","v":""},{"$f":"IF('1. Order'!AU1429=\"\",\"\",'1. Order'!AU1429)","v":""},null,null,null,null,null,null,null,{"$f":"IF('1. Order'!AY1429=\"\",\"\",'1. Order'!AY1429)","v":""},{"$f":"IF('1. Order'!AZ1429=\"\",\"\",'1. Order'!AZ1429)","v":""},{"$f":"IF('1. Order'!BA1429=\"\",\"\",'1. Order'!BA1429)","v":""},{"$f":"IF('1. Order'!BB1429=\"\",\"\",'1. Order'!BB1429)","v":""},{"$f":"IF('1. Order'!BD1429=\"\",\"\",'1. Order'!BD1429)","v":""},{"$f":"IF('1. Order'!BE1429=\"\",\"\",'1. Order'!BE1429)","v":""},{"$f":"IF('1. Order'!BF1429=\"\",\"\",'1. Order'!BF1429)","v":""},{"$f":"IF('1. Order'!BG1429=\"\",\"\",'1. Order'!BG1429)","v":""},{"$f":"IF('1. Order'!BH1429=\"\",\"\",'1. Order'!BH1429)","v":"ZWO"}]
[{"$f":"IF('1. Order'!F1430=\"\",\"\",'1. Order'!F1430)","v":{"$error":"#N/A"}},{"$f":"IF('1. Order'!G1430=\"\",\"\",'1. Order'!G1430)","v":""},{"$f":"IF('1. Order'!H1430=\"\",\"\",'1. Order'!H1430)","v":""},{"$f":"IF('1. Order'!I1430=\"\",\"\",'1. Order'!I1430)","v":""},{"$f":"IF('1. Order'!J1430=\"\",\"\",'1. Order'!J1430)","v":""},{"$f":"IF('1. Order'!K1430=\"\",\"\",'1. Order'!K1430)","v":""},{"$f":"IF('1. Order'!L1430=\"\",\"\",'1. Order'!L1430)","v":""},{"$f":"IF('1. Order'!M1430=\"\",\"\",'1. Order'!M1430)","v":""},{"$f":"IF('1. Order'!N1430=\"\",\"\",'1. Order'!N1430)","v":""},{"$f":"IF('1. Order'!O1430=\"\",\"\",'1. Order'!O1430)","v":{"$error":"#N/A"}},{"$f":"IF('1. Order'!P1430=\"\",\"\",'1. Order'!P1430)","v":{"$error":"#N/A"}},{"$f":"IF('1. Order'!Q1430=\"\",\"\",'1. Order'!Q1430)","v":""},{"$f":"IF('1. Order'!S1430=\"\",\"\",'1. Order'!S1430)","v":""},{"$f":"IF('1. Order'!T1430=\"\",\"\",'1. Order'!T1430)","v":""},{"$f":"IF('1. Order'!W1430=\"\",\"\",'1. Order'!W1430)","v":""},{"$f":"IF('1. Order'!X1430=\"\",\"\",'1. Order'!X1430)","v":""},{"$f":"IF('1. Order'!Y1430=\"\",\"\",'1. Order'!Y1430)","v":"EUR"},{"$f":"IF('1. Order'!Z1430=\"\",\"\",'1. Order'!Z1430)","v":""},{"$f":"IF('1. Order'!AA1430=\"\",\"\",'1. Order'!AA1430)","v":""},{"$f":"IF('1. Order'!AB1430=\"\",\"\",'1. Order'!AB1430)","v":""},null,{"$f":"IF('1. Order'!AT1430=\"\",\"\",'1. Order'!AT1430)","v":""},{"$f":"IF('1. Order'!AU1430=\"\",\"\",'1. Order'!AU1430)","v":""},null,null,null,null,null,null,null,{"$f":"IF('1. Order'!AY1430=\"\",\"\",'1. Order'!AY1430)","v":""},{"$f":"IF('1. Order'!AZ1430=\"\",\"\",'1. Order'!AZ1430)","v":""},{"$f":"IF('1. Order'!BA1430=\"\",\"\",'1. Order'!BA1430)","v":""},{"$f":"IF('1. Order'!BB1430=\"\",\"\",'1. Order'!BB1430)","v":""},{"$f":"IF('1. Order'!BD1430=\"\",\"\",'1. Order'!BD1430)","v":""},{"$f":"IF('1. Order'!BE1430=\"\",\"\",'1. Order'!BE1430)","v":""},{"$f":"IF('1. Order'!BF1430=\"\",\"\",'1. Order'!BF1430)","v":""},{"$f":"IF('1. Order'!BG1430=\"\",\"\",'1. Order'!BG1430)","v":""},{"$f":"IF('1. Order'!BH1430=\"\",\"\",'1. Order'!BH1430)","v":"ZWO"}]
[{"$f":"IF('1. Order'!F1431=\"\",\"\",'1. Order'!F1431)","v":{"$error":"#N/A"}},{"$f":"IF('1. Order'!G1431=\"\",\"\",'1. Order'!G1431)","v":""},{"$f":"IF('1. Order'!H1431=\"\",\"\",'1. Order'!H1431)","v":""},{"$f":"IF('1. Order'!I1431=\"\",\"\",'1. Order'!I1431)","v":""},{"$f":"IF('1. Order'!J1431=\"\",\"\",'1. Order'!J1431)","v":""},{"$f":"IF('1. Order'!K1431=\"\",\"\",'1. Order'!K1431)","v":""},{"$f":"IF('1. Order'!L1431=\"\",\"\",'1. Order'!L1431)","v":""},{"$f":"IF('1. Order'!M1431=\"\",\"\",'1. Order'!M1431)","v":""},{"$f":"IF('1. Order'!N1431=\"\",\"\",'1. Order'!N1431)","v":""},{"$f":"IF('1. Order'!O1431=\"\",\"\",'1. Order'!O1431)","v":{"$error":"#N/A"}},{"$f":"IF('1. Order'!P1431=\"\",\"\",'1. Order'!P1431)","v":{"$error":"#N/A"}},{"$f":"IF('1. Order'!Q1431=\"\",\"\",'1. Order'!Q1431)","v":""},{"$f":"IF('1. Order'!S1431=\"\",\"\",'1. Order'!S1431)","v":""},{"$f":"IF('1. Order'!T1431=\"\",\"\",'1. Order'!T1431)","v":""},{"$f":"IF('1. Order'!W1431=\"\",\"\",'1. Order'!W1431)","v":""},{"$f":"IF('1. Order'!X1431=\"\",\"\",'1. Order'!X1431)","v":""},{"$f":"IF('1. Order'!Y1431=\"\",\"\",'1. Order'!Y1431)","v":"EUR"},{"$f":"IF('1. Order'!Z1431=\"\",\"\",'1. Order'!Z1431)","v":""},{"$f":"IF('1. Order'!AA1431=\"\",\"\",'1. Order'!AA1431)","v":""},{"$f":"IF('1. Order'!AB1431=\"\",\"\",'1. Order'!AB1431)","v":""},null,{"$f":"IF('1. Order'!AT1431=\"\",\"\",'1. Order'!AT1431)","v":""},{"$f":"IF('1. Order'!AU1431=\"\",\"\",'1. Order'!AU1431)","v":""},null,null,null,null,null,null,null,{"$f":"IF('1. Order'!AY1431=\"\",\"\",'1. Order'!AY1431)","v":""},{"$f":"IF('1. Order'!AZ1431=\"\",\"\",'1. Order'!AZ1431)","v":""},{"$f":"IF('1. Order'!BA1431=\"\",\"\",'1. Order'!BA1431)","v":""},{"$f":"IF('1. Order'!BB1431=\"\",\"\",'1. Order'!BB1431)","v":""},{"$f":"IF('1. Order'!BD1431=\"\",\"\",'1. Order'!BD1431)","v":""},{"$f":"IF('1. Order'!BE1431=\"\",\"\",'1. Order'!BE1431)","v":""},{"$f":"IF('1. Order'!BF1431=\"\",\"\",'1. Order'!BF1431)","v":""},{"$f":"IF('1. Order'!BG1431=\"\",\"\",'1. Order'!BG1431)","v":""},{"$f":"IF('1. Order'!BH1431=\"\",\"\",'1. Order'!BH1431)","v":"ZWO"}]
[{"$f":"IF('1. Order'!F1432=\"\",\"\",'1. Order'!F1432)","v":{"$error":"#N/A"}},{"$f":"IF('1. Order'!G1432=\"\",\"\",'1. Order'!G1432)","v":""},{"$f":"IF('1. Order'!H1432=\"\",\"\",'1. Order'!H1432)","v":""},{"$f":"IF('1. Order'!I1432=\"\",\"\",'1. Order'!I1432)","v":""},{"$f":"IF('1. Order'!J1432=\"\",\"\",'1. Order'!J1432)","v":""},{"$f":"IF('1. Order'!K1432=\"\",\"\",'1. Order'!K1432)","v":""},{"$f":"IF('1. Order'!L1432=\"\",\"\",'1. Order'!L1432)","v":""},{"$f":"IF('1. Order'!M1432=\"\",\"\",'1. Order'!M1432)","v":""},{"$f":"IF('1. Order'!N1432=\"\",\"\",'1. Order'!N1432)","v":""},{"$f":"IF('1. Order'!O1432=\"\",\"\",'1. Order'!O1432)","v":{"$error":"#N/A"}},{"$f":"IF('1. Order'!P1432=\"\",\"\",'1. Order'!P1432)","v":{"$error":"#N/A"}},{"$f":"IF('1. Order'!Q1432=\"\",\"\",'1. Order'!Q1432)","v":""},{"$f":"IF('1. Order'!S1432=\"\",\"\",'1. Order'!S1432)","v":""},{"$f":"IF('1. Order'!T1432=\"\",\"\",'1. Order'!T1432)","v":""},{"$f":"IF('1. Order'!W1432=\"\",\"\",'1. Order'!W1432)","v":""},{"$f":"IF('1. Order'!X1432=\"\",\"\",'1. Order'!X1432)","v":""},{"$f":"IF('1. Order'!Y1432=\"\",\"\",'1. Order'!Y1432)","v":"EUR"},{"$f":"IF('1. Order'!Z1432=\"\",\"\",'1. Order'!Z1432)","v":""},{"$f":"IF('1. Order'!AA1432=\"\",\"\",'1. Order'!AA1432)","v":""},{"$f":"IF('1. Order'!AB1432=\"\",\"\",'1. Order'!AB1432)","v":""},null,{"$f":"IF('1. Order'!AT1432=\"\",\"\",'1. Order'!AT1432)","v":""},{"$f":"IF('1. Order'!AU1432=\"\",\"\",'1. Order'!AU1432)","v":""},null,null,null,null,null,null,null,{"$f":"IF('1. Order'!AY1432=\"\",\"\",'1. Order'!AY1432)","v":""},{"$f":"IF('1. Order'!AZ1432=\"\",\"\",'1. Order'!AZ1432)","v":""},{"$f":"IF('1. Order'!BA1432=\"\",\"\",'1. Order'!BA1432)","v":""},{"$f":"IF('1. Order'!BB1432=\"\",\"\",'1. Order'!BB1432)","v":""},{"$f":"IF('1. Order'!BD1432=\"\",\"\",'1. Order'!BD1432)","v":""},{"$f":"IF('1. Order'!BE1432=\"\",\"\",'1. Order'!BE1432)","v":""},{"$f":"IF('1. Order'!BF1432=\"\",\"\",'1. Order'!BF1432)","v":""},{"$f":"IF('1. Order'!BG1432=\"\",\"\",'1. Order'!BG1432)","v":""},{"$f":"IF('1. Order'!BH1432=\"\",\"\",'1. Order'!BH1432)","v":"ZWO"}]
[{"$f":"IF('1. Order'!F1433=\"\",\"\",'1. Order'!F1433)","v":{"$error":"#N/A"}},{"$f":"IF('1. Order'!G1433=\"\",\"\",'1. Order'!G1433)","v":""},{"$f":"IF('1. Order'!H1433=\"\",\"\",'1. Order'!H1433)","v":""},{"$f":"IF('1. Order'!I1433=\"\",\"\",'1. Order'!I1433)","v":""},{"$f":"IF('1. Order'!J1433=\"\",\"\",'1. Order'!J1433)","v":""},{"$f":"IF('1. Order'!K1433=\"\",\"\",'1. Order'!K1433)","v":""},{"$f":"IF('1. Order'!L1433=\"\",\"\",'1. Order'!L1433)","v":""},{"$f":"IF('1. Order'!M1433=\"\",\"\",'1. Order'!M1433)","v":""},{"$f":"IF('1. Order'!N1433=\"\",\"\",'1. Order'!N1433)","v":""},{"$f":"IF('1. Order'!O1433=\"\",\"\",'1. Order'!O1433)","v":{"$error":"#N/A"}},{"$f":"IF('1. Order'!P1433=\"\",\"\",'1. Order'!P1433)","v":{"$error":"#N/A"}},{"$f":"IF('1. Order'!Q1433=\"\",\"\",'1. Order'!Q1433)","v":""},{"$f":"IF('1. Order'!S1433=\"\",\"\",'1. Order'!S1433)","v":""},{"$f":"IF('1. Order'!T1433=\"\",\"\",'1. Order'!T1433)","v":""},{"$f":"IF('1. Order'!W1433=\"\",\"\",'1. Order'!W1433)","v":""},{"$f":"IF('1. Order'!X1433=\"\",\"\",'1. Order'!X1433)","v":""},{"$f":"IF('1. Order'!Y1433=\"\",\"\",'1. Order'!Y1433)","v":"EUR"},{"$f":"IF('1. Order'!Z1433=\"\",\"\",'1. Order'!Z1433)","v":""},{"$f":"IF('1. Order'!AA1433=\"\",\"\",'1. Order'!AA1433)","v":""},{"$f":"IF('1. Order'!AB1433=\"\",\"\",'1. Order'!AB1433)","v":""},null,{"$f":"IF('1. Order'!AT1433=\"\",\"\",'1. Order'!AT1433)","v":""},{"$f":"IF('1. Order'!AU1433=\"\",\"\",'1. Order'!AU1433)","v":""},null,null,null,null,null,null,null,{"$f":"IF('1. Order'!AY1433=\"\",\"\",'1. Order'!AY1433)","v":""},{"$f":"IF('1. Order'!AZ1433=\"\",\"\",'1. Order'!AZ1433)","v":""},{"$f":"IF('1. Order'!BA1433=\"\",\"\",'1. Order'!BA1433)","v":""},{"$f":"IF('1. Order'!BB1433=\"\",\"\",'1. Order'!BB1433)","v":""},{"$f":"IF('1. Order'!BD1433=\"\",\"\",'1. Order'!BD1433)","v":""},{"$f":"IF('1. Order'!BE1433=\"\",\"\",'1. Order'!BE1433)","v":""},{"$f":"IF('1. Order'!BF1433=\"\",\"\",'1. Order'!BF1433)","v":""},{"$f":"IF('1. Order'!BG1433=\"\",\"\",'1. Order'!BG1433)","v":""},{"$f":"IF('1. Order'!BH1433=\"\",\"\",'1. Order'!BH1433)","v":"ZWO"}]
[{"$f":"IF('1. Order'!F1434=\"\",\"\",'1. Order'!F1434)","v":{"$error":"#N/A"}},{"$f":"IF('1. Order'!G1434=\"\",\"\",'1. Order'!G1434)","v":""},{"$f":"IF('1. Order'!H1434=\"\",\"\",'1. Order'!H1434)","v":""},{"$f":"IF('1. Order'!I1434=\"\",\"\",'1. Order'!I1434)","v":""},{"$f":"IF('1. Order'!J1434=\"\",\"\",'1. Order'!J1434)","v":""},{"$f":"IF('1. Order'!K1434=\"\",\"\",'1. Order'!K1434)","v":""},{"$f":"IF('1. Order'!L1434=\"\",\"\",'1. Order'!L1434)","v":""},{"$f":"IF('1. Order'!M1434=\"\",\"\",'1. Order'!M1434)","v":""},{"$f":"IF('1. Order'!N1434=\"\",\"\",'1. Order'!N1434)","v":""},{"$f":"IF('1. Order'!O1434=\"\",\"\",'1. Order'!O1434)","v":{"$error":"#N/A"}},{"$f":"IF('1. Order'!P1434=\"\",\"\",'1. Order'!P1434)","v":{"$error":"#N/A"}},{"$f":"IF('1. Order'!Q1434=\"\",\"\",'1. Order'!Q1434)","v":""},{"$f":"IF('1. Order'!S1434=\"\",\"\",'1. Order'!S1434)","v":""},{"$f":"IF('1. Order'!T1434=\"\",\"\",'1. Order'!T1434)","v":""},{"$f":"IF('1. Order'!W1434=\"\",\"\",'1. Order'!W1434)","v":""},{"$f":"IF('1. Order'!X1434=\"\",\"\",'1. Order'!X1434)","v":""},{"$f":"IF('1. Order'!Y1434=\"\",\"\",'1. Order'!Y1434)","v":"EUR"},{"$f":"IF('1. Order'!Z1434=\"\",\"\",'1. Order'!Z1434)","v":""},{"$f":"IF('1. Order'!AA1434=\"\",\"\",'1. Order'!AA1434)","v":""},{"$f":"IF('1. Order'!AB1434=\"\",\"\",'1. Order'!AB1434)","v":""},null,{"$f":"IF('1. Order'!AT1434=\"\",\"\",'1. Order'!AT1434)","v":""},{"$f":"IF('1. Order'!AU1434=\"\",\"\",'1. Order'!AU1434)","v":""},null,null,null,null,null,null,null,{"$f":"IF('1. Order'!AY1434=\"\",\"\",'1. Order'!AY1434)","v":""},{"$f":"IF('1. Order'!AZ1434=\"\",\"\",'1. Order'!AZ1434)","v":""},{"$f":"IF('1. Order'!BA1434=\"\",\"\",'1. Order'!BA1434)","v":""},{"$f":"IF('1. Order'!BB1434=\"\",\"\",'1. Order'!BB1434)","v":""},{"$f":"IF('1. Order'!BD1434=\"\",\"\",'1. Order'!BD1434)","v":""},{"$f":"IF('1. Order'!BE1434=\"\",\"\",'1. Order'!BE1434)","v":""},{"$f":"IF('1. Order'!BF1434=\"\",\"\",'1. Order'!BF1434)","v":""},{"$f":"IF('1. Order'!BG1434=\"\",\"\",'1. Order'!BG1434)","v":""},{"$f":"IF('1. Order'!BH1434=\"\",\"\",'1. Order'!BH1434)","v":"ZWO"}]
[{"$f":"IF('1. Order'!F1435=\"\",\"\",'1. Order'!F1435)","v":{"$error":"#N/A"}},{"$f":"IF('1. Order'!G1435=\"\",\"\",'1. Order'!G1435)","v":""},{"$f":"IF('1. Order'!H1435=\"\",\"\",'1. Order'!H1435)","v":""},{"$f":"IF('1. Order'!I1435=\"\",\"\",'1. Order'!I1435)","v":""},{"$f":"IF('1. Order'!J1435=\"\",\"\",'1. Order'!J1435)","v":""},{"$f":"IF('1. Order'!K1435=\"\",\"\",'1. Order'!K1435)","v":""},{"$f":"IF('1. Order'!L1435=\"\",\"\",'1. Order'!L1435)","v":""},{"$f":"IF('1. Order'!M1435=\"\",\"\",'1. Order'!M1435)","v":""},{"$f":"IF('1. Order'!N1435=\"\",\"\",'1. Order'!N1435)","v":""},{"$f":"IF('1. Order'!O1435=\"\",\"\",'1. Order'!O1435)","v":{"$error":"#N/A"}},{"$f":"IF('1. Order'!P1435=\"\",\"\",'1. Order'!P1435)","v":{"$error":"#N/A"}},{"$f":"IF('1. Order'!Q1435=\"\",\"\",'1. Order'!Q1435)","v":""},{"$f":"IF('1. Order'!S1435=\"\",\"\",'1. Order'!S1435)","v":""},{"$f":"IF('1. Order'!T1435=\"\",\"\",'1. Order'!T1435)","v":""},{"$f":"IF('1. Order'!W1435=\"\",\"\",'1. Order'!W1435)","v":""},{"$f":"IF('1. Order'!X1435=\"\",\"\",'1. Order'!X1435)","v":""},{"$f":"IF('1. Order'!Y1435=\"\",\"\",'1. Order'!Y1435)","v":"EUR"},{"$f":"IF('1. Order'!Z1435=\"\",\"\",'1. Order'!Z1435)","v":""},{"$f":"IF('1. Order'!AA1435=\"\",\"\",'1. Order'!AA1435)","v":""},{"$f":"IF('1. Order'!AB1435=\"\",\"\",'1. Order'!AB1435)","v":""},null,{"$f":"IF('1. Order'!AT1435=\"\",\"\",'1. Order'!AT1435)","v":""},{"$f":"IF('1. Order'!AU1435=\"\",\"\",'1. Order'!AU1435)","v":""},null,null,null,null,null,null,null,{"$f":"IF('1. Order'!AY1435=\"\",\"\",'1. Order'!AY1435)","v":""},{"$f":"IF('1. Order'!AZ1435=\"\",\"\",'1. Order'!AZ1435)","v":""},{"$f":"IF('1. Order'!BA1435=\"\",\"\",'1. Order'!BA1435)","v":""},{"$f":"IF('1. Order'!BB1435=\"\",\"\",'1. Order'!BB1435)","v":""},{"$f":"IF('1. Order'!BD1435=\"\",\"\",'1. Order'!BD1435)","v":""},{"$f":"IF('1. Order'!BE1435=\"\",\"\",'1. Order'!BE1435)","v":""},{"$f":"IF('1. Order'!BF1435=\"\",\"\",'1. Order'!BF1435)","v":""},{"$f":"IF('1. Order'!BG1435=\"\",\"\",'1. Order'!BG1435)","v":""},{"$f":"IF('1. Order'!BH1435=\"\",\"\",'1. Order'!BH1435)","v":"ZWO"}]
[{"$f":"IF('1. Order'!F1436=\"\",\"\",'1. Order'!F1436)","v":{"$error":"#N/A"}},{"$f":"IF('1. Order'!G1436=\"\",\"\",'1. Order'!G1436)","v":""},{"$f":"IF('1. Order'!H1436=\"\",\"\",'1. Order'!H1436)","v":""},{"$f":"IF('1. Order'!I1436=\"\",\"\",'1. Order'!I1436)","v":""},{"$f":"IF('1. Order'!J1436=\"\",\"\",'1. Order'!J1436)","v":""},{"$f":"IF('1. Order'!K1436=\"\",\"\",'1. Order'!K1436)","v":""},{"$f":"IF('1. Order'!L1436=\"\",\"\",'1. Order'!L1436)","v":""},{"$f":"IF('1. Order'!M1436=\"\",\"\",'1. Order'!M1436)","v":""},{"$f":"IF('1. Order'!N1436=\"\",\"\",'1. Order'!N1436)","v":""},{"$f":"IF('1. Order'!O1436=\"\",\"\",'1. Order'!O1436)","v":{"$error":"#N/A"}},{"$f":"IF('1. Order'!P1436=\"\",\"\",'1. Order'!P1436)","v":{"$error":"#N/A"}},{"$f":"IF('1. Order'!Q1436=\"\",\"\",'1. Order'!Q1436)","v":""},{"$f":"IF('1. Order'!S1436=\"\",\"\",'1. Order'!S1436)","v":""},{"$f":"IF('1. Order'!T1436=\"\",\"\",'1. Order'!T1436)","v":""},{"$f":"IF('1. Order'!W1436=\"\",\"\",'1. Order'!W1436)","v":""},{"$f":"IF('1. Order'!X1436=\"\",\"\",'1. Order'!X1436)","v":""},{"$f":"IF('1. Order'!Y1436=\"\",\"\",'1. Order'!Y1436)","v":"EUR"},{"$f":"IF('1. Order'!Z1436=\"\",\"\",'1. Order'!Z1436)","v":""},{"$f":"IF('1. Order'!AA1436=\"\",\"\",'1. Order'!AA1436)","v":""},{"$f":"IF('1. Order'!AB1436=\"\",\"\",'1. Order'!AB1436)","v":""},null,{"$f":"IF('1. Order'!AT1436=\"\",\"\",'1. Order'!AT1436)","v":""},{"$f":"IF('1. Order'!AU1436=\"\",\"\",'1. Order'!AU1436)","v":""},null,null,null,null,null,null,null,{"$f":"IF('1. Order'!AY1436=\"\",\"\",'1. Order'!AY1436)","v":""},{"$f":"IF('1. Order'!AZ1436=\"\",\"\",'1. Order'!AZ1436)","v":""},{"$f":"IF('1. Order'!BA1436=\"\",\"\",'1. Order'!BA1436)","v":""},{"$f":"IF('1. Order'!BB1436=\"\",\"\",'1. Order'!BB1436)","v":""},{"$f":"IF('1. Order'!BD1436=\"\",\"\",'1. Order'!BD1436)","v":""},{"$f":"IF('1. Order'!BE1436=\"\",\"\",'1. Order'!BE1436)","v":""},{"$f":"IF('1. Order'!BF1436=\"\",\"\",'1. Order'!BF1436)","v":""},{"$f":"IF('1. Order'!BG1436=\"\",\"\",'1. Order'!BG1436)","v":""},{"$f":"IF('1. Order'!BH1436=\"\",\"\",'1. Order'!BH1436)","v":"ZWO"}]
[{"$f":"IF('1. Order'!F1437=\"\",\"\",'1. Order'!F1437)","v":{"$error":"#N/A"}},{"$f":"IF('1. Order'!G1437=\"\",\"\",'1. Order'!G1437)","v":""},{"$f":"IF('1. Order'!H1437=\"\",\"\",'1. Order'!H1437)","v":""},{"$f":"IF('1. Order'!I1437=\"\",\"\",'1. Order'!I1437)","v":""},{"$f":"IF('1. Order'!J1437=\"\",\"\",'1. Order'!J1437)","v":""},{"$f":"IF('1. Order'!K1437=\"\",\"\",'1. Order'!K1437)","v":""},{"$f":"IF('1. Order'!L1437=\"\",\"\",'1. Order'!L1437)","v":""},{"$f":"IF('1. Order'!M1437=\"\",\"\",'1. Order'!M1437)","v":""},{"$f":"IF('1. Order'!N1437=\"\",\"\",'1. Order'!N1437)","v":""},{"$f":"IF('1. Order'!O1437=\"\",\"\",'1. Order'!O1437)","v":{"$error":"#N/A"}},{"$f":"IF('1. Order'!P1437=\"\",\"\",'1. Order'!P1437)","v":{"$error":"#N/A"}},{"$f":"IF('1. Order'!Q1437=\"\",\"\",'1. Order'!Q1437)","v":""},{"$f":"IF('1. Order'!S1437=\"\",\"\",'1. Order'!S1437)","v":""},{"$f":"IF('1. Order'!T1437=\"\",\"\",'1. Order'!T1437)","v":""},{"$f":"IF('1. Order'!W1437=\"\",\"\",'1. Order'!W1437)","v":""},{"$f":"IF('1. Order'!X1437=\"\",\"\",'1. Order'!X1437)","v":""},{"$f":"IF('1. Order'!Y1437=\"\",\"\",'1. Order'!Y1437)","v":"EUR"},{"$f":"IF('1. Order'!Z1437=\"\",\"\",'1. Order'!Z1437)","v":""},{"$f":"IF('1. Order'!AA1437=\"\",\"\",'1. Order'!AA1437)","v":""},{"$f":"IF('1. Order'!AB1437=\"\",\"\",'1. Order'!AB1437)","v":""},null,{"$f":"IF('1. Order'!AT1437=\"\",\"\",'1. Order'!AT1437)","v":""},{"$f":"IF('1. Order'!AU1437=\"\",\"\",'1. Order'!AU1437)","v":""},null,null,null,null,null,null,null,{"$f":"IF('1. Order'!AY1437=\"\",\"\",'1. Order'!AY1437)","v":""},{"$f":"IF('1. Order'!AZ1437=\"\",\"\",'1. Order'!AZ1437)","v":""},{"$f":"IF('1. Order'!BA1437=\"\",\"\",'1. Order'!BA1437)","v":""},{"$f":"IF('1. Order'!BB1437=\"\",\"\",'1. Order'!BB1437)","v":""},{"$f":"IF('1. Order'!BD1437=\"\",\"\",'1. Order'!BD1437)","v":""},{"$f":"IF('1. Order'!BE1437=\"\",\"\",'1. Order'!BE1437)","v":""},{"$f":"IF('1. Order'!BF1437=\"\",\"\",'1. Order'!BF1437)","v":""},{"$f":"IF('1. Order'!BG1437=\"\",\"\",'1. Order'!BG1437)","v":""},{"$f":"IF('1. Order'!BH1437=\"\",\"\",'1. Order'!BH1437)","v":"ZWO"}]
[{"$f":"IF('1. Order'!F1438=\"\",\"\",'1. Order'!F1438)","v":{"$error":"#N/A"}},{"$f":"IF('1. Order'!G1438=\"\",\"\",'1. Order'!G1438)","v":""},{"$f":"IF('1. Order'!H1438=\"\",\"\",'1. Order'!H1438)","v":""},{"$f":"IF('1. Order'!I1438=\"\",\"\",'1. Order'!I1438)","v":""},{"$f":"IF('1. Order'!J1438=\"\",\"\",'1. Order'!J1438)","v":""},{"$f":"IF('1. Order'!K1438=\"\",\"\",'1. Order'!K1438)","v":""},{"$f":"IF('1. Order'!L1438=\"\",\"\",'1. Order'!L1438)","v":""},{"$f":"IF('1. Order'!M1438=\"\",\"\",'1. Order'!M1438)","v":""},{"$f":"IF('1. Order'!N1438=\"\",\"\",'1. Order'!N1438)","v":""},{"$f":"IF('1. Order'!O1438=\"\",\"\",'1. Order'!O1438)","v":{"$error":"#N/A"}},{"$f":"IF('1. Order'!P1438=\"\",\"\",'1. Order'!P1438)","v":{"$error":"#N/A"}},{"$f":"IF('1. Order'!Q1438=\"\",\"\",'1. Order'!Q1438)","v":""},{"$f":"IF('1. Order'!S1438=\"\",\"\",'1. Order'!S1438)","v":""},{"$f":"IF('1. Order'!T1438=\"\",\"\",'1. Order'!T1438)","v":""},{"$f":"IF('1. Order'!W1438=\"\",\"\",'1. Order'!W1438)","v":""},{"$f":"IF('1. Order'!X1438=\"\",\"\",'1. Order'!X1438)","v":""},{"$f":"IF('1. Order'!Y1438=\"\",\"\",'1. Order'!Y1438)","v":"EUR"},{"$f":"IF('1. Order'!Z1438=\"\",\"\",'1. Order'!Z1438)","v":""},{"$f":"IF('1. Order'!AA1438=\"\",\"\",'1. Order'!AA1438)","v":""},{"$f":"IF('1. Order'!AB1438=\"\",\"\",'1. Order'!AB1438)","v":""},null,{"$f":"IF('1. Order'!AT1438=\"\",\"\",'1. Order'!AT1438)","v":""},{"$f":"IF('1. Order'!AU1438=\"\",\"\",'1. Order'!AU1438)","v":""},null,null,null,null,null,null,null,{"$f":"IF('1. Order'!AY1438=\"\",\"\",'1. Order'!AY1438)","v":""},{"$f":"IF('1. Order'!AZ1438=\"\",\"\",'1. Order'!AZ1438)","v":""},{"$f":"IF('1. Order'!BA1438=\"\",\"\",'1. Order'!BA1438)","v":""},{"$f":"IF('1. Order'!BB1438=\"\",\"\",'1. Order'!BB1438)","v":""},{"$f":"IF('1. Order'!BD1438=\"\",\"\",'1. Order'!BD1438)","v":""},{"$f":"IF('1. Order'!BE1438=\"\",\"\",'1. Order'!BE1438)","v":""},{"$f":"IF('1. Order'!BF1438=\"\",\"\",'1. Order'!BF1438)","v":""},{"$f":"IF('1. Order'!BG1438=\"\",\"\",'1. Order'!BG1438)","v":""},{"$f":"IF('1. Order'!BH1438=\"\",\"\",'1. Order'!BH1438)","v":"ZWO"}]
[{"$f":"IF('1. Order'!F1439=\"\",\"\",'1. Order'!F1439)","v":{"$error":"#N/A"}},{"$f":"IF('1. Order'!G1439=\"\",\"\",'1. Order'!G1439)","v":""},{"$f":"IF('1. Order'!H1439=\"\",\"\",'1. Order'!H1439)","v":""},{"$f":"IF('1. Order'!I1439=\"\",\"\",'1. Order'!I1439)","v":""},{"$f":"IF('1. Order'!J1439=\"\",\"\",'1. Order'!J1439)","v":""},{"$f":"IF('1. Order'!K1439=\"\",\"\",'1. Order'!K1439)","v":""},{"$f":"IF('1. Order'!L1439=\"\",\"\",'1. Order'!L1439)","v":""},{"$f":"IF('1. Order'!M1439=\"\",\"\",'1. Order'!M1439)","v":""},{"$f":"IF('1. Order'!N1439=\"\",\"\",'1. Order'!N1439)","v":""},{"$f":"IF('1. Order'!O1439=\"\",\"\",'1. Order'!O1439)","v":{"$error":"#N/A"}},{"$f":"IF('1. Order'!P1439=\"\",\"\",'1. Order'!P1439)","v":{"$error":"#N/A"}},{"$f":"IF('1. Order'!Q1439=\"\",\"\",'1. Order'!Q1439)","v":""},{"$f":"IF('1. Order'!S1439=\"\",\"\",'1. Order'!S1439)","v":""},{"$f":"IF('1. Order'!T1439=\"\",\"\",'1. Order'!T1439)","v":""},{"$f":"IF('1. Order'!W1439=\"\",\"\",'1. Order'!W1439)","v":""},{"$f":"IF('1. Order'!X1439=\"\",\"\",'1. Order'!X1439)","v":""},{"$f":"IF('1. Order'!Y1439=\"\",\"\",'1. Order'!Y1439)","v":"EUR"},{"$f":"IF('1. Order'!Z1439=\"\",\"\",'1. Order'!Z1439)","v":""},{"$f":"IF('1. Order'!AA1439=\"\",\"\",'1. Order'!AA1439)","v":""},{"$f":"IF('1. Order'!AB1439=\"\",\"\",'1. Order'!AB1439)","v":""},null,{"$f":"IF('1. Order'!AT1439=\"\",\"\",'1. Order'!AT1439)","v":""},{"$f":"IF('1. Order'!AU1439=\"\",\"\",'1. Order'!AU1439)","v":""},null,null,null,null,null,null,null,{"$f":"IF('1. Order'!AY1439=\"\",\"\",'1. Order'!AY1439)","v":""},{"$f":"IF('1. Order'!AZ1439=\"\",\"\",'1. Order'!AZ1439)","v":""},{"$f":"IF('1. Order'!BA1439=\"\",\"\",'1. Order'!BA1439)","v":""},{"$f":"IF('1. Order'!BB1439=\"\",\"\",'1. Order'!BB1439)","v":""},{"$f":"IF('1. Order'!BD1439=\"\",\"\",'1. Order'!BD1439)","v":""},{"$f":"IF('1. Order'!BE1439=\"\",\"\",'1. Order'!BE1439)","v":""},{"$f":"IF('1. Order'!BF1439=\"\",\"\",'1. Order'!BF1439)","v":""},{"$f":"IF('1. Order'!BG1439=\"\",\"\",'1. Order'!BG1439)","v":""},{"$f":"IF('1. Order'!BH1439=\"\",\"\",'1. Order'!BH1439)","v":"ZWO"}]
[{"$f":"IF('1. Order'!F1440=\"\",\"\",'1. Order'!F1440)","v":{"$error":"#N/A"}},{"$f":"IF('1. Order'!G1440=\"\",\"\",'1. Order'!G1440)","v":""},{"$f":"IF('1. Order'!H1440=\"\",\"\",'1. Order'!H1440)","v":""},{"$f":"IF('1. Order'!I1440=\"\",\"\",'1. Order'!I1440)","v":""},{"$f":"IF('1. Order'!J1440=\"\",\"\",'1. Order'!J1440)","v":""},{"$f":"IF('1. Order'!K1440=\"\",\"\",'1. Order'!K1440)","v":""},{"$f":"IF('1. Order'!L1440=\"\",\"\",'1. Order'!L1440)","v":""},{"$f":"IF('1. Order'!M1440=\"\",\"\",'1. Order'!M1440)","v":""},{"$f":"IF('1. Order'!N1440=\"\",\"\",'1. Order'!N1440)","v":""},{"$f":"IF('1. Order'!O1440=\"\",\"\",'1. Order'!O1440)","v":{"$error":"#N/A"}},{"$f":"IF('1. Order'!P1440=\"\",\"\",'1. Order'!P1440)","v":{"$error":"#N/A"}},{"$f":"IF('1. Order'!Q1440=\"\",\"\",'1. Order'!Q1440)","v":""},{"$f":"IF('1. Order'!S1440=\"\",\"\",'1. Order'!S1440)","v":""},{"$f":"IF('1. Order'!T1440=\"\",\"\",'1. Order'!T1440)","v":""},{"$f":"IF('1. Order'!W1440=\"\",\"\",'1. Order'!W1440)","v":""},{"$f":"IF('1. Order'!X1440=\"\",\"\",'1. Order'!X1440)","v":""},{"$f":"IF('1. Order'!Y1440=\"\",\"\",'1. Order'!Y1440)","v":"EUR"},{"$f":"IF('1. Order'!Z1440=\"\",\"\",'1. Order'!Z1440)","v":""},{"$f":"IF('1. Order'!AA1440=\"\",\"\",'1. Order'!AA1440)","v":""},{"$f":"IF('1. Order'!AB1440=\"\",\"\",'1. Order'!AB1440)","v":""},null,{"$f":"IF('1. Order'!AT1440=\"\",\"\",'1. Order'!AT1440)","v":""},{"$f":"IF('1. Order'!AU1440=\"\",\"\",'1. Order'!AU1440)","v":""},null,null,null,null,null,null,null,{"$f":"IF('1. Order'!AY1440=\"\",\"\",'1. Order'!AY1440)","v":""},{"$f":"IF('1. Order'!AZ1440=\"\",\"\",'1. Order'!AZ1440)","v":""},{"$f":"IF('1. Order'!BA1440=\"\",\"\",'1. Order'!BA1440)","v":""},{"$f":"IF('1. Order'!BB1440=\"\",\"\",'1. Order'!BB1440)","v":""},{"$f":"IF('1. Order'!BD1440=\"\",\"\",'1. Order'!BD1440)","v":""},{"$f":"IF('1. Order'!BE1440=\"\",\"\",'1. Order'!BE1440)","v":""},{"$f":"IF('1. Order'!BF1440=\"\",\"\",'1. Order'!BF1440)","v":""},{"$f":"IF('1. Order'!BG1440=\"\",\"\",'1. Order'!BG1440)","v":""},{"$f":"IF('1. Order'!BH1440=\"\",\"\",'1. Order'!BH1440)","v":"ZWO"}]
[{"$f":"IF('1. Order'!F1441=\"\",\"\",'1. Order'!F1441)","v":{"$error":"#N/A"}},{"$f":"IF('1. Order'!G1441=\"\",\"\",'1. Order'!G1441)","v":""},{"$f":"IF('1. Order'!H1441=\"\",\"\",'1. Order'!H1441)","v":""},{"$f":"IF('1. Order'!I1441=\"\",\"\",'1. Order'!I1441)","v":""},{"$f":"IF('1. Order'!J1441=\"\",\"\",'1. Order'!J1441)","v":""},{"$f":"IF('1. Order'!K1441=\"\",\"\",'1. Order'!K1441)","v":""},{"$f":"IF('1. Order'!L1441=\"\",\"\",'1. Order'!L1441)","v":""},{"$f":"IF('1. Order'!M1441=\"\",\"\",'1. Order'!M1441)","v":""},{"$f":"IF('1. Order'!N1441=\"\",\"\",'1. Order'!N1441)","v":""},{"$f":"IF('1. Order'!O1441=\"\",\"\",'1. Order'!O1441)","v":{"$error":"#N/A"}},{"$f":"IF('1. Order'!P1441=\"\",\"\",'1. Order'!P1441)","v":{"$error":"#N/A"}},{"$f":"IF('1. Order'!Q1441=\"\",\"\",'1. Order'!Q1441)","v":""},{"$f":"IF('1. Order'!S1441=\"\",\"\",'1. Order'!S1441)","v":""},{"$f":"IF('1. Order'!T1441=\"\",\"\",'1. Order'!T1441)","v":""},{"$f":"IF('1. Order'!W1441=\"\",\"\",'1. Order'!W1441)","v":""},{"$f":"IF('1. Order'!X1441=\"\",\"\",'1. Order'!X1441)","v":""},{"$f":"IF('1. Order'!Y1441=\"\",\"\",'1. Order'!Y1441)","v":"EUR"},{"$f":"IF('1. Order'!Z1441=\"\",\"\",'1. Order'!Z1441)","v":""},{"$f":"IF('1. Order'!AA1441=\"\",\"\",'1. Order'!AA1441)","v":""},{"$f":"IF('1. Order'!AB1441=\"\",\"\",'1. Order'!AB1441)","v":""},null,{"$f":"IF('1. Order'!AT1441=\"\",\"\",'1. Order'!AT1441)","v":""},{"$f":"IF('1. Order'!AU1441=\"\",\"\",'1. Order'!AU1441)","v":""},null,null,null,null,null,null,null,{"$f":"IF('1. Order'!AY1441=\"\",\"\",'1. Order'!AY1441)","v":""},{"$f":"IF('1. Order'!AZ1441=\"\",\"\",'1. Order'!AZ1441)","v":""},{"$f":"IF('1. Order'!BA1441=\"\",\"\",'1. Order'!BA1441)","v":""},{"$f":"IF('1. Order'!BB1441=\"\",\"\",'1. Order'!BB1441)","v":""},{"$f":"IF('1. Order'!BD1441=\"\",\"\",'1. Order'!BD1441)","v":""},{"$f":"IF('1. Order'!BE1441=\"\",\"\",'1. Order'!BE1441)","v":""},{"$f":"IF('1. Order'!BF1441=\"\",\"\",'1. Order'!BF1441)","v":""},{"$f":"IF('1. Order'!BG1441=\"\",\"\",'1. Order'!BG1441)","v":""},{"$f":"IF('1. Order'!BH1441=\"\",\"\",'1. Order'!BH1441)","v":"ZWO"}]
[{"$f":"IF('1. Order'!F1442=\"\",\"\",'1. Order'!F1442)","v":{"$error":"#N/A"}},{"$f":"IF('1. Order'!G1442=\"\",\"\",'1. Order'!G1442)","v":""},{"$f":"IF('1. Order'!H1442=\"\",\"\",'1. Order'!H1442)","v":""},{"$f":"IF('1. Order'!I1442=\"\",\"\",'1. Order'!I1442)","v":""},{"$f":"IF('1. Order'!J1442=\"\",\"\",'1. Order'!J1442)","v":""},{"$f":"IF('1. Order'!K1442=\"\",\"\",'1. Order'!K1442)","v":""},{"$f":"IF('1. Order'!L1442=\"\",\"\",'1. Order'!L1442)","v":""},{"$f":"IF('1. Order'!M1442=\"\",\"\",'1. Order'!M1442)","v":""},{"$f":"IF('1. Order'!N1442=\"\",\"\",'1. Order'!N1442)","v":""},{"$f":"IF('1. Order'!O1442=\"\",\"\",'1. Order'!O1442)","v":{"$error":"#N/A"}},{"$f":"IF('1. Order'!P1442=\"\",\"\",'1. Order'!P1442)","v":{"$error":"#N/A"}},{"$f":"IF('1. Order'!Q1442=\"\",\"\",'1. Order'!Q1442)","v":""},{"$f":"IF('1. Order'!S1442=\"\",\"\",'1. Order'!S1442)","v":""},{"$f":"IF('1. Order'!T1442=\"\",\"\",'1. Order'!T1442)","v":""},{"$f":"IF('1. Order'!W1442=\"\",\"\",'1. Order'!W1442)","v":""},{"$f":"IF('1. Order'!X1442=\"\",\"\",'1. Order'!X1442)","v":""},{"$f":"IF('1. Order'!Y1442=\"\",\"\",'1. Order'!Y1442)","v":"EUR"},{"$f":"IF('1. Order'!Z1442=\"\",\"\",'1. Order'!Z1442)","v":""},{"$f":"IF('1. Order'!AA1442=\"\",\"\",'1. Order'!AA1442)","v":""},{"$f":"IF('1. Order'!AB1442=\"\",\"\",'1. Order'!AB1442)","v":""},null,{"$f":"IF('1. Order'!AT1442=\"\",\"\",'1. Order'!AT1442)","v":""},{"$f":"IF('1. Order'!AU1442=\"\",\"\",'1. Order'!AU1442)","v":""},null,null,null,null,null,null,null,{"$f":"IF('1. Order'!AY1442=\"\",\"\",'1. Order'!AY1442)","v":""},{"$f":"IF('1. Order'!AZ1442=\"\",\"\",'1. Order'!AZ1442)","v":""},{"$f":"IF('1. Order'!BA1442=\"\",\"\",'1. Order'!BA1442)","v":""},{"$f":"IF('1. Order'!BB1442=\"\",\"\",'1. Order'!BB1442)","v":""},{"$f":"IF('1. Order'!BD1442=\"\",\"\",'1. Order'!BD1442)","v":""},{"$f":"IF('1. Order'!BE1442=\"\",\"\",'1. Order'!BE1442)","v":""},{"$f":"IF('1. Order'!BF1442=\"\",\"\",'1. Order'!BF1442)","v":""},{"$f":"IF('1. Order'!BG1442=\"\",\"\",'1. Order'!BG1442)","v":""},{"$f":"IF('1. Order'!BH1442=\"\",\"\",'1. Order'!BH1442)","v":"ZWO"}]
[{"$f":"IF('1. Order'!F1443=\"\",\"\",'1. Order'!F1443)","v":{"$error":"#N/A"}},{"$f":"IF('1. Order'!G1443=\"\",\"\",'1. Order'!G1443)","v":""},{"$f":"IF('1. Order'!H1443=\"\",\"\",'1. Order'!H1443)","v":""},{"$f":"IF('1. Order'!I1443=\"\",\"\",'1. Order'!I1443)","v":""},{"$f":"IF('1. Order'!J1443=\"\",\"\",'1. Order'!J1443)","v":""},{"$f":"IF('1. Order'!K1443=\"\",\"\",'1. Order'!K1443)","v":""},{"$f":"IF('1. Order'!L1443=\"\",\"\",'1. Order'!L1443)","v":""},{"$f":"IF('1. Order'!M1443=\"\",\"\",'1. Order'!M1443)","v":""},{"$f":"IF('1. Order'!N1443=\"\",\"\",'1. Order'!N1443)","v":""},{"$f":"IF('1. Order'!O1443=\"\",\"\",'1. Order'!O1443)","v":{"$error":"#N/A"}},{"$f":"IF('1. Order'!P1443=\"\",\"\",'1. Order'!P1443)","v":{"$error":"#N/A"}},{"$f":"IF('1. Order'!Q1443=\"\",\"\",'1. Order'!Q1443)","v":""},{"$f":"IF('1. Order'!S1443=\"\",\"\",'1. Order'!S1443)","v":""},{"$f":"IF('1. Order'!T1443=\"\",\"\",'1. Order'!T1443)","v":""},{"$f":"IF('1. Order'!W1443=\"\",\"\",'1. Order'!W1443)","v":""},{"$f":"IF('1. Order'!X1443=\"\",\"\",'1. Order'!X1443)","v":""},{"$f":"IF('1. Order'!Y1443=\"\",\"\",'1. Order'!Y1443)","v":"EUR"},{"$f":"IF('1. Order'!Z1443=\"\",\"\",'1. Order'!Z1443)","v":""},{"$f":"IF('1. Order'!AA1443=\"\",\"\",'1. Order'!AA1443)","v":""},{"$f":"IF('1. Order'!AB1443=\"\",\"\",'1. Order'!AB1443)","v":""},null,{"$f":"IF('1. Order'!AT1443=\"\",\"\",'1. Order'!AT1443)","v":""},{"$f":"IF('1. Order'!AU1443=\"\",\"\",'1. Order'!AU1443)","v":""},null,null,null,null,null,null,null,{"$f":"IF('1. Order'!AY1443=\"\",\"\",'1. Order'!AY1443)","v":""},{"$f":"IF('1. Order'!AZ1443=\"\",\"\",'1. Order'!AZ1443)","v":""},{"$f":"IF('1. Order'!BA1443=\"\",\"\",'1. Order'!BA1443)","v":""},{"$f":"IF('1. Order'!BB1443=\"\",\"\",'1. Order'!BB1443)","v":""},{"$f":"IF('1. Order'!BD1443=\"\",\"\",'1. Order'!BD1443)","v":""},{"$f":"IF('1. Order'!BE1443=\"\",\"\",'1. Order'!BE1443)","v":""},{"$f":"IF('1. Order'!BF1443=\"\",\"\",'1. Order'!BF1443)","v":""},{"$f":"IF('1. Order'!BG1443=\"\",\"\",'1. Order'!BG1443)","v":""},{"$f":"IF('1. Order'!BH1443=\"\",\"\",'1. Order'!BH1443)","v":"ZWO"}]
[{"$f":"IF('1. Order'!F1444=\"\",\"\",'1. Order'!F1444)","v":{"$error":"#N/A"}},{"$f":"IF('1. Order'!G1444=\"\",\"\",'1. Order'!G1444)","v":""},{"$f":"IF('1. Order'!H1444=\"\",\"\",'1. Order'!H1444)","v":""},{"$f":"IF('1. Order'!I1444=\"\",\"\",'1. Order'!I1444)","v":""},{"$f":"IF('1. Order'!J1444=\"\",\"\",'1. Order'!J1444)","v":""},{"$f":"IF('1. Order'!K1444=\"\",\"\",'1. Order'!K1444)","v":""},{"$f":"IF('1. Order'!L1444=\"\",\"\",'1. Order'!L1444)","v":""},{"$f":"IF('1. Order'!M1444=\"\",\"\",'1. Order'!M1444)","v":""},{"$f":"IF('1. Order'!N1444=\"\",\"\",'1. Order'!N1444)","v":""},{"$f":"IF('1. Order'!O1444=\"\",\"\",'1. Order'!O1444)","v":{"$error":"#N/A"}},{"$f":"IF('1. Order'!P1444=\"\",\"\",'1. Order'!P1444)","v":{"$error":"#N/A"}},{"$f":"IF('1. Order'!Q1444=\"\",\"\",'1. Order'!Q1444)","v":""},{"$f":"IF('1. Order'!S1444=\"\",\"\",'1. Order'!S1444)","v":""},{"$f":"IF('1. Order'!T1444=\"\",\"\",'1. Order'!T1444)","v":""},{"$f":"IF('1. Order'!W1444=\"\",\"\",'1. Order'!W1444)","v":""},{"$f":"IF('1. Order'!X1444=\"\",\"\",'1. Order'!X1444)","v":""},{"$f":"IF('1. Order'!Y1444=\"\",\"\",'1. Order'!Y1444)","v":"EUR"},{"$f":"IF('1. Order'!Z1444=\"\",\"\",'1. Order'!Z1444)","v":""},{"$f":"IF('1. Order'!AA1444=\"\",\"\",'1. Order'!AA1444)","v":""},{"$f":"IF('1. Order'!AB1444=\"\",\"\",'1. Order'!AB1444)","v":""},null,{"$f":"IF('1. Order'!AT1444=\"\",\"\",'1. Order'!AT1444)","v":""},{"$f":"IF('1. Order'!AU1444=\"\",\"\",'1. Order'!AU1444)","v":""},null,null,null,null,null,null,null,{"$f":"IF('1. Order'!AY1444=\"\",\"\",'1. Order'!AY1444)","v":""},{"$f":"IF('1. Order'!AZ1444=\"\",\"\",'1. Order'!AZ1444)","v":""},{"$f":"IF('1. Order'!BA1444=\"\",\"\",'1. Order'!BA1444)","v":""},{"$f":"IF('1. Order'!BB1444=\"\",\"\",'1. Order'!BB1444)","v":""},{"$f":"IF('1. Order'!BD1444=\"\",\"\",'1. Order'!BD1444)","v":""},{"$f":"IF('1. Order'!BE1444=\"\",\"\",'1. Order'!BE1444)","v":""},{"$f":"IF('1. Order'!BF1444=\"\",\"\",'1. Order'!BF1444)","v":""},{"$f":"IF('1. Order'!BG1444=\"\",\"\",'1. Order'!BG1444)","v":""},{"$f":"IF('1. Order'!BH1444=\"\",\"\",'1. Order'!BH1444)","v":"ZWO"}]
[{"$f":"IF('1. Order'!F1445=\"\",\"\",'1. Order'!F1445)","v":{"$error":"#N/A"}},{"$f":"IF('1. Order'!G1445=\"\",\"\",'1. Order'!G1445)","v":""},{"$f":"IF('1. Order'!H1445=\"\",\"\",'1. Order'!H1445)","v":""},{"$f":"IF('1. Order'!I1445=\"\",\"\",'1. Order'!I1445)","v":""},{"$f":"IF('1. Order'!J1445=\"\",\"\",'1. Order'!J1445)","v":""},{"$f":"IF('1. Order'!K1445=\"\",\"\",'1. Order'!K1445)","v":""},{"$f":"IF('1. Order'!L1445=\"\",\"\",'1. Order'!L1445)","v":""},{"$f":"IF('1. Order'!M1445=\"\",\"\",'1. Order'!M1445)","v":""},{"$f":"IF('1. Order'!N1445=\"\",\"\",'1. Order'!N1445)","v":""},{"$f":"IF('1. Order'!O1445=\"\",\"\",'1. Order'!O1445)","v":{"$error":"#N/A"}},{"$f":"IF('1. Order'!P1445=\"\",\"\",'1. Order'!P1445)","v":{"$error":"#N/A"}},{"$f":"IF('1. Order'!Q1445=\"\",\"\",'1. Order'!Q1445)","v":""},{"$f":"IF('1. Order'!S1445=\"\",\"\",'1. Order'!S1445)","v":""},{"$f":"IF('1. Order'!T1445=\"\",\"\",'1. Order'!T1445)","v":""},{"$f":"IF('1. Order'!W1445=\"\",\"\",'1. Order'!W1445)","v":""},{"$f":"IF('1. Order'!X1445=\"\",\"\",'1. Order'!X1445)","v":""},{"$f":"IF('1. Order'!Y1445=\"\",\"\",'1. Order'!Y1445)","v":"EUR"},{"$f":"IF('1. Order'!Z1445=\"\",\"\",'1. Order'!Z1445)","v":""},{"$f":"IF('1. Order'!AA1445=\"\",\"\",'1. Order'!AA1445)","v":""},{"$f":"IF('1. Order'!AB1445=\"\",\"\",'1. Order'!AB1445)","v":""},null,{"$f":"IF('1. Order'!AT1445=\"\",\"\",'1. Order'!AT1445)","v":""},{"$f":"IF('1. Order'!AU1445=\"\",\"\",'1. Order'!AU1445)","v":""},null,null,null,null,null,null,null,{"$f":"IF('1. Order'!AY1445=\"\",\"\",'1. Order'!AY1445)","v":""},{"$f":"IF('1. Order'!AZ1445=\"\",\"\",'1. Order'!AZ1445)","v":""},{"$f":"IF('1. Order'!BA1445=\"\",\"\",'1. Order'!BA1445)","v":""},{"$f":"IF('1. Order'!BB1445=\"\",\"\",'1. Order'!BB1445)","v":""},{"$f":"IF('1. Order'!BD1445=\"\",\"\",'1. Order'!BD1445)","v":""},{"$f":"IF('1. Order'!BE1445=\"\",\"\",'1. Order'!BE1445)","v":""},{"$f":"IF('1. Order'!BF1445=\"\",\"\",'1. Order'!BF1445)","v":""},{"$f":"IF('1. Order'!BG1445=\"\",\"\",'1. Order'!BG1445)","v":""},{"$f":"IF('1. Order'!BH1445=\"\",\"\",'1. Order'!BH1445)","v":"ZWO"}]
[{"$f":"IF('1. Order'!F1446=\"\",\"\",'1. Order'!F1446)","v":{"$error":"#N/A"}},{"$f":"IF('1. Order'!G1446=\"\",\"\",'1. Order'!G1446)","v":""},{"$f":"IF('1. Order'!H1446=\"\",\"\",'1. Order'!H1446)","v":""},{"$f":"IF('1. Order'!I1446=\"\",\"\",'1. Order'!I1446)","v":""},{"$f":"IF('1. Order'!J1446=\"\",\"\",'1. Order'!J1446)","v":""},{"$f":"IF('1. Order'!K1446=\"\",\"\",'1. Order'!K1446)","v":""},{"$f":"IF('1. Order'!L1446=\"\",\"\",'1. Order'!L1446)","v":""},{"$f":"IF('1. Order'!M1446=\"\",\"\",'1. Order'!M1446)","v":""},{"$f":"IF('1. Order'!N1446=\"\",\"\",'1. Order'!N1446)","v":""},{"$f":"IF('1. Order'!O1446=\"\",\"\",'1. Order'!O1446)","v":{"$error":"#N/A"}},{"$f":"IF('1. Order'!P1446=\"\",\"\",'1. Order'!P1446)","v":{"$error":"#N/A"}},{"$f":"IF('1. Order'!Q1446=\"\",\"\",'1. Order'!Q1446)","v":""},{"$f":"IF('1. Order'!S1446=\"\",\"\",'1. Order'!S1446)","v":""},{"$f":"IF('1. Order'!T1446=\"\",\"\",'1. Order'!T1446)","v":""},{"$f":"IF('1. Order'!W1446=\"\",\"\",'1. Order'!W1446)","v":""},{"$f":"IF('1. Order'!X1446=\"\",\"\",'1. Order'!X1446)","v":""},{"$f":"IF('1. Order'!Y1446=\"\",\"\",'1. Order'!Y1446)","v":"EUR"},{"$f":"IF('1. Order'!Z1446=\"\",\"\",'1. Order'!Z1446)","v":""},{"$f":"IF('1. Order'!AA1446=\"\",\"\",'1. Order'!AA1446)","v":""},{"$f":"IF('1. Order'!AB1446=\"\",\"\",'1. Order'!AB1446)","v":""},null,{"$f":"IF('1. Order'!AT1446=\"\",\"\",'1. Order'!AT1446)","v":""},{"$f":"IF('1. Order'!AU1446=\"\",\"\",'1. Order'!AU1446)","v":""},null,null,null,null,null,null,null,{"$f":"IF('1. Order'!AY1446=\"\",\"\",'1. Order'!AY1446)","v":""},{"$f":"IF('1. Order'!AZ1446=\"\",\"\",'1. Order'!AZ1446)","v":""},{"$f":"IF('1. Order'!BA1446=\"\",\"\",'1. Order'!BA1446)","v":""},{"$f":"IF('1. Order'!BB1446=\"\",\"\",'1. Order'!BB1446)","v":""},{"$f":"IF('1. Order'!BD1446=\"\",\"\",'1. Order'!BD1446)","v":""},{"$f":"IF('1. Order'!BE1446=\"\",\"\",'1. Order'!BE1446)","v":""},{"$f":"IF('1. Order'!BF1446=\"\",\"\",'1. Order'!BF1446)","v":""},{"$f":"IF('1. Order'!BG1446=\"\",\"\",'1. Order'!BG1446)","v":""},{"$f":"IF('1. Order'!BH1446=\"\",\"\",'1. Order'!BH1446)","v":"ZWO"}]
[{"$f":"IF('1. Order'!F1447=\"\",\"\",'1. Order'!F1447)","v":{"$error":"#N/A"}},{"$f":"IF('1. Order'!G1447=\"\",\"\",'1. Order'!G1447)","v":""},{"$f":"IF('1. Order'!H1447=\"\",\"\",'1. Order'!H1447)","v":""},{"$f":"IF('1. Order'!I1447=\"\",\"\",'1. Order'!I1447)","v":""},{"$f":"IF('1. Order'!J1447=\"\",\"\",'1. Order'!J1447)","v":""},{"$f":"IF('1. Order'!K1447=\"\",\"\",'1. Order'!K1447)","v":""},{"$f":"IF('1. Order'!L1447=\"\",\"\",'1. Order'!L1447)","v":""},{"$f":"IF('1. Order'!M1447=\"\",\"\",'1. Order'!M1447)","v":""},{"$f":"IF('1. Order'!N1447=\"\",\"\",'1. Order'!N1447)","v":""},{"$f":"IF('1. Order'!O1447=\"\",\"\",'1. Order'!O1447)","v":{"$error":"#N/A"}},{"$f":"IF('1. Order'!P1447=\"\",\"\",'1. Order'!P1447)","v":{"$error":"#N/A"}},{"$f":"IF('1. Order'!Q1447=\"\",\"\",'1. Order'!Q1447)","v":""},{"$f":"IF('1. Order'!S1447=\"\",\"\",'1. Order'!S1447)","v":""},{"$f":"IF('1. Order'!T1447=\"\",\"\",'1. Order'!T1447)","v":""},{"$f":"IF('1. Order'!W1447=\"\",\"\",'1. Order'!W1447)","v":""},{"$f":"IF('1. Order'!X1447=\"\",\"\",'1. Order'!X1447)","v":""},{"$f":"IF('1. Order'!Y1447=\"\",\"\",'1. Order'!Y1447)","v":"EUR"},{"$f":"IF('1. Order'!Z1447=\"\",\"\",'1. Order'!Z1447)","v":""},{"$f":"IF('1. Order'!AA1447=\"\",\"\",'1. Order'!AA1447)","v":""},{"$f":"IF('1. Order'!AB1447=\"\",\"\",'1. Order'!AB1447)","v":""},null,{"$f":"IF('1. Order'!AT1447=\"\",\"\",'1. Order'!AT1447)","v":""},{"$f":"IF('1. Order'!AU1447=\"\",\"\",'1. Order'!AU1447)","v":""},null,null,null,null,null,null,null,{"$f":"IF('1. Order'!AY1447=\"\",\"\",'1. Order'!AY1447)","v":""},{"$f":"IF('1. Order'!AZ1447=\"\",\"\",'1. Order'!AZ1447)","v":""},{"$f":"IF('1. Order'!BA1447=\"\",\"\",'1. Order'!BA1447)","v":""},{"$f":"IF('1. Order'!BB1447=\"\",\"\",'1. Order'!BB1447)","v":""},{"$f":"IF('1. Order'!BD1447=\"\",\"\",'1. Order'!BD1447)","v":""},{"$f":"IF('1. Order'!BE1447=\"\",\"\",'1. Order'!BE1447)","v":""},{"$f":"IF('1. Order'!BF1447=\"\",\"\",'1. Order'!BF1447)","v":""},{"$f":"IF('1. Order'!BG1447=\"\",\"\",'1. Order'!BG1447)","v":""},{"$f":"IF('1. Order'!BH1447=\"\",\"\",'1. Order'!BH1447)","v":"ZWO"}]
[{"$f":"IF('1. Order'!F1448=\"\",\"\",'1. Order'!F1448)","v":{"$error":"#N/A"}},{"$f":"IF('1. Order'!G1448=\"\",\"\",'1. Order'!G1448)","v":""},{"$f":"IF('1. Order'!H1448=\"\",\"\",'1. Order'!H1448)","v":""},{"$f":"IF('1. Order'!I1448=\"\",\"\",'1. Order'!I1448)","v":""},{"$f":"IF('1. Order'!J1448=\"\",\"\",'1. Order'!J1448)","v":""},{"$f":"IF('1. Order'!K1448=\"\",\"\",'1. Order'!K1448)","v":""},{"$f":"IF('1. Order'!L1448=\"\",\"\",'1. Order'!L1448)","v":""},{"$f":"IF('1. Order'!M1448=\"\",\"\",'1. Order'!M1448)","v":""},{"$f":"IF('1. Order'!N1448=\"\",\"\",'1. Order'!N1448)","v":""},{"$f":"IF('1. Order'!O1448=\"\",\"\",'1. Order'!O1448)","v":{"$error":"#N/A"}},{"$f":"IF('1. Order'!P1448=\"\",\"\",'1. Order'!P1448)","v":{"$error":"#N/A"}},{"$f":"IF('1. Order'!Q1448=\"\",\"\",'1. Order'!Q1448)","v":""},{"$f":"IF('1. Order'!S1448=\"\",\"\",'1. Order'!S1448)","v":""},{"$f":"IF('1. Order'!T1448=\"\",\"\",'1. Order'!T1448)","v":""},{"$f":"IF('1. Order'!W1448=\"\",\"\",'1. Order'!W1448)","v":""},{"$f":"IF('1. Order'!X1448=\"\",\"\",'1. Order'!X1448)","v":""},{"$f":"IF('1. Order'!Y1448=\"\",\"\",'1. Order'!Y1448)","v":"EUR"},{"$f":"IF('1. Order'!Z1448=\"\",\"\",'1. Order'!Z1448)","v":""},{"$f":"IF('1. Order'!AA1448=\"\",\"\",'1. Order'!AA1448)","v":""},{"$f":"IF('1. Order'!AB1448=\"\",\"\",'1. Order'!AB1448)","v":""},null,{"$f":"IF('1. Order'!AT1448=\"\",\"\",'1. Order'!AT1448)","v":""},{"$f":"IF('1. Order'!AU1448=\"\",\"\",'1. Order'!AU1448)","v":""},null,null,null,null,null,null,null,{"$f":"IF('1. Order'!AY1448=\"\",\"\",'1. Order'!AY1448)","v":""},{"$f":"IF('1. Order'!AZ1448=\"\",\"\",'1. Order'!AZ1448)","v":""},{"$f":"IF('1. Order'!BA1448=\"\",\"\",'1. Order'!BA1448)","v":""},{"$f":"IF('1. Order'!BB1448=\"\",\"\",'1. Order'!BB1448)","v":""},{"$f":"IF('1. Order'!BD1448=\"\",\"\",'1. Order'!BD1448)","v":""},{"$f":"IF('1. Order'!BE1448=\"\",\"\",'1. Order'!BE1448)","v":""},{"$f":"IF('1. Order'!BF1448=\"\",\"\",'1. Order'!BF1448)","v":""},{"$f":"IF('1. Order'!BG1448=\"\",\"\",'1. Order'!BG1448)","v":""},{"$f":"IF('1. Order'!BH1448=\"\",\"\",'1. Order'!BH1448)","v":"ZWO"}]
[{"$f":"IF('1. Order'!F1449=\"\",\"\",'1. Order'!F1449)","v":{"$error":"#N/A"}},{"$f":"IF('1. Order'!G1449=\"\",\"\",'1. Order'!G1449)","v":""},{"$f":"IF('1. Order'!H1449=\"\",\"\",'1. Order'!H1449)","v":""},{"$f":"IF('1. Order'!I1449=\"\",\"\",'1. Order'!I1449)","v":""},{"$f":"IF('1. Order'!J1449=\"\",\"\",'1. Order'!J1449)","v":""},{"$f":"IF('1. Order'!K1449=\"\",\"\",'1. Order'!K1449)","v":""},{"$f":"IF('1. Order'!L1449=\"\",\"\",'1. Order'!L1449)","v":""},{"$f":"IF('1. Order'!M1449=\"\",\"\",'1. Order'!M1449)","v":""},{"$f":"IF('1. Order'!N1449=\"\",\"\",'1. Order'!N1449)","v":""},{"$f":"IF('1. Order'!O1449=\"\",\"\",'1. Order'!O1449)","v":{"$error":"#N/A"}},{"$f":"IF('1. Order'!P1449=\"\",\"\",'1. Order'!P1449)","v":{"$error":"#N/A"}},{"$f":"IF('1. Order'!Q1449=\"\",\"\",'1. Order'!Q1449)","v":""},{"$f":"IF('1. Order'!S1449=\"\",\"\",'1. Order'!S1449)","v":""},{"$f":"IF('1. Order'!T1449=\"\",\"\",'1. Order'!T1449)","v":""},{"$f":"IF('1. Order'!W1449=\"\",\"\",'1. Order'!W1449)","v":""},{"$f":"IF('1. Order'!X1449=\"\",\"\",'1. Order'!X1449)","v":""},{"$f":"IF('1. Order'!Y1449=\"\",\"\",'1. Order'!Y1449)","v":"EUR"},{"$f":"IF('1. Order'!Z1449=\"\",\"\",'1. Order'!Z1449)","v":""},{"$f":"IF('1. Order'!AA1449=\"\",\"\",'1. Order'!AA1449)","v":""},{"$f":"IF('1. Order'!AB1449=\"\",\"\",'1. Order'!AB1449)","v":""},null,{"$f":"IF('1. Order'!AT1449=\"\",\"\",'1. Order'!AT1449)","v":""},{"$f":"IF('1. Order'!AU1449=\"\",\"\",'1. Order'!AU1449)","v":""},null,null,null,null,null,null,null,{"$f":"IF('1. Order'!AY1449=\"\",\"\",'1. Order'!AY1449)","v":""},{"$f":"IF('1. Order'!AZ1449=\"\",\"\",'1. Order'!AZ1449)","v":""},{"$f":"IF('1. Order'!BA1449=\"\",\"\",'1. Order'!BA1449)","v":""},{"$f":"IF('1. Order'!BB1449=\"\",\"\",'1. Order'!BB1449)","v":""},{"$f":"IF('1. Order'!BD1449=\"\",\"\",'1. Order'!BD1449)","v":""},{"$f":"IF('1. Order'!BE1449=\"\",\"\",'1. Order'!BE1449)","v":""},{"$f":"IF('1. Order'!BF1449=\"\",\"\",'1. Order'!BF1449)","v":""},{"$f":"IF('1. Order'!BG1449=\"\",\"\",'1. Order'!BG1449)","v":""},{"$f":"IF('1. Order'!BH1449=\"\",\"\",'1. Order'!BH1449)","v":"ZWO"}]
[{"$f":"IF('1. Order'!F1450=\"\",\"\",'1. Order'!F1450)","v":{"$error":"#N/A"}},{"$f":"IF('1. Order'!G1450=\"\",\"\",'1. Order'!G1450)","v":""},{"$f":"IF('1. Order'!H1450=\"\",\"\",'1. Order'!H1450)","v":""},{"$f":"IF('1. Order'!I1450=\"\",\"\",'1. Order'!I1450)","v":""},{"$f":"IF('1. Order'!J1450=\"\",\"\",'1. Order'!J1450)","v":""},{"$f":"IF('1. Order'!K1450=\"\",\"\",'1. Order'!K1450)","v":""},{"$f":"IF('1. Order'!L1450=\"\",\"\",'1. Order'!L1450)","v":""},{"$f":"IF('1. Order'!M1450=\"\",\"\",'1. Order'!M1450)","v":""},{"$f":"IF('1. Order'!N1450=\"\",\"\",'1. Order'!N1450)","v":""},{"$f":"IF('1. Order'!O1450=\"\",\"\",'1. Order'!O1450)","v":{"$error":"#N/A"}},{"$f":"IF('1. Order'!P1450=\"\",\"\",'1. Order'!P1450)","v":{"$error":"#N/A"}},{"$f":"IF('1. Order'!Q1450=\"\",\"\",'1. Order'!Q1450)","v":""},{"$f":"IF('1. Order'!S1450=\"\",\"\",'1. Order'!S1450)","v":""},{"$f":"IF('1. Order'!T1450=\"\",\"\",'1. Order'!T1450)","v":""},{"$f":"IF('1. Order'!W1450=\"\",\"\",'1. Order'!W1450)","v":""},{"$f":"IF('1. Order'!X1450=\"\",\"\",'1. Order'!X1450)","v":""},{"$f":"IF('1. Order'!Y1450=\"\",\"\",'1. Order'!Y1450)","v":"EUR"},{"$f":"IF('1. Order'!Z1450=\"\",\"\",'1. Order'!Z1450)","v":""},{"$f":"IF('1. Order'!AA1450=\"\",\"\",'1. Order'!AA1450)","v":""},{"$f":"IF('1. Order'!AB1450=\"\",\"\",'1. Order'!AB1450)","v":""},null,{"$f":"IF('1. Order'!AT1450=\"\",\"\",'1. Order'!AT1450)","v":""},{"$f":"IF('1. Order'!AU1450=\"\",\"\",'1. Order'!AU1450)","v":""},null,null,null,null,null,null,null,{"$f":"IF('1. Order'!AY1450=\"\",\"\",'1. Order'!AY1450)","v":""},{"$f":"IF('1. Order'!AZ1450=\"\",\"\",'1. Order'!AZ1450)","v":""},{"$f":"IF('1. Order'!BA1450=\"\",\"\",'1. Order'!BA1450)","v":""},{"$f":"IF('1. Order'!BB1450=\"\",\"\",'1. Order'!BB1450)","v":""},{"$f":"IF('1. Order'!BD1450=\"\",\"\",'1. Order'!BD1450)","v":""},{"$f":"IF('1. Order'!BE1450=\"\",\"\",'1. Order'!BE1450)","v":""},{"$f":"IF('1. Order'!BF1450=\"\",\"\",'1. Order'!BF1450)","v":""},{"$f":"IF('1. Order'!BG1450=\"\",\"\",'1. Order'!BG1450)","v":""},{"$f":"IF('1. Order'!BH1450=\"\",\"\",'1. Order'!BH1450)","v":"ZWO"}]
[{"$f":"IF('1. Order'!F1451=\"\",\"\",'1. Order'!F1451)","v":{"$error":"#N/A"}},{"$f":"IF('1. Order'!G1451=\"\",\"\",'1. Order'!G1451)","v":""},{"$f":"IF('1. Order'!H1451=\"\",\"\",'1. Order'!H1451)","v":""},{"$f":"IF('1. Order'!I1451=\"\",\"\",'1. Order'!I1451)","v":""},{"$f":"IF('1. Order'!J1451=\"\",\"\",'1. Order'!J1451)","v":""},{"$f":"IF('1. Order'!K1451=\"\",\"\",'1. Order'!K1451)","v":""},{"$f":"IF('1. Order'!L1451=\"\",\"\",'1. Order'!L1451)","v":""},{"$f":"IF('1. Order'!M1451=\"\",\"\",'1. Order'!M1451)","v":""},{"$f":"IF('1. Order'!N1451=\"\",\"\",'1. Order'!N1451)","v":""},{"$f":"IF('1. Order'!O1451=\"\",\"\",'1. Order'!O1451)","v":{"$error":"#N/A"}},{"$f":"IF('1. Order'!P1451=\"\",\"\",'1. Order'!P1451)","v":{"$error":"#N/A"}},{"$f":"IF('1. Order'!Q1451=\"\",\"\",'1. Order'!Q1451)","v":""},{"$f":"IF('1. Order'!S1451=\"\",\"\",'1. Order'!S1451)","v":""},{"$f":"IF('1. Order'!T1451=\"\",\"\",'1. Order'!T1451)","v":""},{"$f":"IF('1. Order'!W1451=\"\",\"\",'1. Order'!W1451)","v":""},{"$f":"IF('1. Order'!X1451=\"\",\"\",'1. Order'!X1451)","v":""},{"$f":"IF('1. Order'!Y1451=\"\",\"\",'1. Order'!Y1451)","v":"EUR"},{"$f":"IF('1. Order'!Z1451=\"\",\"\",'1. Order'!Z1451)","v":""},{"$f":"IF('1. Order'!AA1451=\"\",\"\",'1. Order'!AA1451)","v":""},{"$f":"IF('1. Order'!AB1451=\"\",\"\",'1. Order'!AB1451)","v":""},null,{"$f":"IF('1. Order'!AT1451=\"\",\"\",'1. Order'!AT1451)","v":""},{"$f":"IF('1. Order'!AU1451=\"\",\"\",'1. Order'!AU1451)","v":""},null,null,null,null,null,null,null,{"$f":"IF('1. Order'!AY1451=\"\",\"\",'1. Order'!AY1451)","v":""},{"$f":"IF('1. Order'!AZ1451=\"\",\"\",'1. Order'!AZ1451)","v":""},{"$f":"IF('1. Order'!BA1451=\"\",\"\",'1. Order'!BA1451)","v":""},{"$f":"IF('1. Order'!BB1451=\"\",\"\",'1. Order'!BB1451)","v":""},{"$f":"IF('1. Order'!BD1451=\"\",\"\",'1. Order'!BD1451)","v":""},{"$f":"IF('1. Order'!BE1451=\"\",\"\",'1. Order'!BE1451)","v":""},{"$f":"IF('1. Order'!BF1451=\"\",\"\",'1. Order'!BF1451)","v":""},{"$f":"IF('1. Order'!BG1451=\"\",\"\",'1. Order'!BG1451)","v":""},{"$f":"IF('1. Order'!BH1451=\"\",\"\",'1. Order'!BH1451)","v":"ZWO"}]
[{"$f":"IF('1. Order'!F1452=\"\",\"\",'1. Order'!F1452)","v":{"$error":"#N/A"}},{"$f":"IF('1. Order'!G1452=\"\",\"\",'1. Order'!G1452)","v":""},{"$f":"IF('1. Order'!H1452=\"\",\"\",'1. Order'!H1452)","v":""},{"$f":"IF('1. Order'!I1452=\"\",\"\",'1. Order'!I1452)","v":""},{"$f":"IF('1. Order'!J1452=\"\",\"\",'1. Order'!J1452)","v":""},{"$f":"IF('1. Order'!K1452=\"\",\"\",'1. Order'!K1452)","v":""},{"$f":"IF('1. Order'!L1452=\"\",\"\",'1. Order'!L1452)","v":""},{"$f":"IF('1. Order'!M1452=\"\",\"\",'1. Order'!M1452)","v":""},{"$f":"IF('1. Order'!N1452=\"\",\"\",'1. Order'!N1452)","v":""},{"$f":"IF('1. Order'!O1452=\"\",\"\",'1. Order'!O1452)","v":{"$error":"#N/A"}},{"$f":"IF('1. Order'!P1452=\"\",\"\",'1. Order'!P1452)","v":{"$error":"#N/A"}},{"$f":"IF('1. Order'!Q1452=\"\",\"\",'1. Order'!Q1452)","v":""},{"$f":"IF('1. Order'!S1452=\"\",\"\",'1. Order'!S1452)","v":""},{"$f":"IF('1. Order'!T1452=\"\",\"\",'1. Order'!T1452)","v":""},{"$f":"IF('1. Order'!W1452=\"\",\"\",'1. Order'!W1452)","v":""},{"$f":"IF('1. Order'!X1452=\"\",\"\",'1. Order'!X1452)","v":""},{"$f":"IF('1. Order'!Y1452=\"\",\"\",'1. Order'!Y1452)","v":"EUR"},{"$f":"IF('1. Order'!Z1452=\"\",\"\",'1. Order'!Z1452)","v":""},{"$f":"IF('1. Order'!AA1452=\"\",\"\",'1. Order'!AA1452)","v":""},{"$f":"IF('1. Order'!AB1452=\"\",\"\",'1. Order'!AB1452)","v":""},null,{"$f":"IF('1. Order'!AT1452=\"\",\"\",'1. Order'!AT1452)","v":""},{"$f":"IF('1. Order'!AU1452=\"\",\"\",'1. Order'!AU1452)","v":""},null,null,null,null,null,null,null,{"$f":"IF('1. Order'!AY1452=\"\",\"\",'1. Order'!AY1452)","v":""},{"$f":"IF('1. Order'!AZ1452=\"\",\"\",'1. Order'!AZ1452)","v":""},{"$f":"IF('1. Order'!BA1452=\"\",\"\",'1. Order'!BA1452)","v":""},{"$f":"IF('1. Order'!BB1452=\"\",\"\",'1. Order'!BB1452)","v":""},{"$f":"IF('1. Order'!BD1452=\"\",\"\",'1. Order'!BD1452)","v":""},{"$f":"IF('1. Order'!BE1452=\"\",\"\",'1. Order'!BE1452)","v":""},{"$f":"IF('1. Order'!BF1452=\"\",\"\",'1. Order'!BF1452)","v":""},{"$f":"IF('1. Order'!BG1452=\"\",\"\",'1. Order'!BG1452)","v":""},{"$f":"IF('1. Order'!BH1452=\"\",\"\",'1. Order'!BH1452)","v":"ZWO"}]
[{"$f":"IF('1. Order'!F1453=\"\",\"\",'1. Order'!F1453)","v":{"$error":"#N/A"}},{"$f":"IF('1. Order'!G1453=\"\",\"\",'1. Order'!G1453)","v":""},{"$f":"IF('1. Order'!H1453=\"\",\"\",'1. Order'!H1453)","v":""},{"$f":"IF('1. Order'!I1453=\"\",\"\",'1. Order'!I1453)","v":""},{"$f":"IF('1. Order'!J1453=\"\",\"\",'1. Order'!J1453)","v":""},{"$f":"IF('1. Order'!K1453=\"\",\"\",'1. Order'!K1453)","v":""},{"$f":"IF('1. Order'!L1453=\"\",\"\",'1. Order'!L1453)","v":""},{"$f":"IF('1. Order'!M1453=\"\",\"\",'1. Order'!M1453)","v":""},{"$f":"IF('1. Order'!N1453=\"\",\"\",'1. Order'!N1453)","v":""},{"$f":"IF('1. Order'!O1453=\"\",\"\",'1. Order'!O1453)","v":{"$error":"#N/A"}},{"$f":"IF('1. Order'!P1453=\"\",\"\",'1. Order'!P1453)","v":{"$error":"#N/A"}},{"$f":"IF('1. Order'!Q1453=\"\",\"\",'1. Order'!Q1453)","v":""},{"$f":"IF('1. Order'!S1453=\"\",\"\",'1. Order'!S1453)","v":""},{"$f":"IF('1. Order'!T1453=\"\",\"\",'1. Order'!T1453)","v":""},{"$f":"IF('1. Order'!W1453=\"\",\"\",'1. Order'!W1453)","v":""},{"$f":"IF('1. Order'!X1453=\"\",\"\",'1. Order'!X1453)","v":""},{"$f":"IF('1. Order'!Y1453=\"\",\"\",'1. Order'!Y1453)","v":"EUR"},{"$f":"IF('1. Order'!Z1453=\"\",\"\",'1. Order'!Z1453)","v":""},{"$f":"IF('1. Order'!AA1453=\"\",\"\",'1. Order'!AA1453)","v":""},{"$f":"IF('1. Order'!AB1453=\"\",\"\",'1. Order'!AB1453)","v":""},null,{"$f":"IF('1. Order'!AT1453=\"\",\"\",'1. Order'!AT1453)","v":""},{"$f":"IF('1. Order'!AU1453=\"\",\"\",'1. Order'!AU1453)","v":""},null,null,null,null,null,null,null,{"$f":"IF('1. Order'!AY1453=\"\",\"\",'1. Order'!AY1453)","v":""},{"$f":"IF('1. Order'!AZ1453=\"\",\"\",'1. Order'!AZ1453)","v":""},{"$f":"IF('1. Order'!BA1453=\"\",\"\",'1. Order'!BA1453)","v":""},{"$f":"IF('1. Order'!BB1453=\"\",\"\",'1. Order'!BB1453)","v":""},{"$f":"IF('1. Order'!BD1453=\"\",\"\",'1. Order'!BD1453)","v":""},{"$f":"IF('1. Order'!BE1453=\"\",\"\",'1. Order'!BE1453)","v":""},{"$f":"IF('1. Order'!BF1453=\"\",\"\",'1. Order'!BF1453)","v":""},{"$f":"IF('1. Order'!BG1453=\"\",\"\",'1. Order'!BG1453)","v":""},{"$f":"IF('1. Order'!BH1453=\"\",\"\",'1. Order'!BH1453)","v":"ZWO"}]
[{"$f":"IF('1. Order'!F1454=\"\",\"\",'1. Order'!F1454)","v":{"$error":"#N/A"}},{"$f":"IF('1. Order'!G1454=\"\",\"\",'1. Order'!G1454)","v":""},{"$f":"IF('1. Order'!H1454=\"\",\"\",'1. Order'!H1454)","v":""},{"$f":"IF('1. Order'!I1454=\"\",\"\",'1. Order'!I1454)","v":""},{"$f":"IF('1. Order'!J1454=\"\",\"\",'1. Order'!J1454)","v":""},{"$f":"IF('1. Order'!K1454=\"\",\"\",'1. Order'!K1454)","v":""},{"$f":"IF('1. Order'!L1454=\"\",\"\",'1. Order'!L1454)","v":""},{"$f":"IF('1. Order'!M1454=\"\",\"\",'1. Order'!M1454)","v":""},{"$f":"IF('1. Order'!N1454=\"\",\"\",'1. Order'!N1454)","v":""},{"$f":"IF('1. Order'!O1454=\"\",\"\",'1. Order'!O1454)","v":{"$error":"#N/A"}},{"$f":"IF('1. Order'!P1454=\"\",\"\",'1. Order'!P1454)","v":{"$error":"#N/A"}},{"$f":"IF('1. Order'!Q1454=\"\",\"\",'1. Order'!Q1454)","v":""},{"$f":"IF('1. Order'!S1454=\"\",\"\",'1. Order'!S1454)","v":""},{"$f":"IF('1. Order'!T1454=\"\",\"\",'1. Order'!T1454)","v":""},{"$f":"IF('1. Order'!W1454=\"\",\"\",'1. Order'!W1454)","v":""},{"$f":"IF('1. Order'!X1454=\"\",\"\",'1. Order'!X1454)","v":""},{"$f":"IF('1. Order'!Y1454=\"\",\"\",'1. Order'!Y1454)","v":"EUR"},{"$f":"IF('1. Order'!Z1454=\"\",\"\",'1. Order'!Z1454)","v":""},{"$f":"IF('1. Order'!AA1454=\"\",\"\",'1. Order'!AA1454)","v":""},{"$f":"IF('1. Order'!AB1454=\"\",\"\",'1. Order'!AB1454)","v":""},null,{"$f":"IF('1. Order'!AT1454=\"\",\"\",'1. Order'!AT1454)","v":""},{"$f":"IF('1. Order'!AU1454=\"\",\"\",'1. Order'!AU1454)","v":""},null,null,null,null,null,null,null,{"$f":"IF('1. Order'!AY1454=\"\",\"\",'1. Order'!AY1454)","v":""},{"$f":"IF('1. Order'!AZ1454=\"\",\"\",'1. Order'!AZ1454)","v":""},{"$f":"IF('1. Order'!BA1454=\"\",\"\",'1. Order'!BA1454)","v":""},{"$f":"IF('1. Order'!BB1454=\"\",\"\",'1. Order'!BB1454)","v":""},{"$f":"IF('1. Order'!BD1454=\"\",\"\",'1. Order'!BD1454)","v":""},{"$f":"IF('1. Order'!BE1454=\"\",\"\",'1. Order'!BE1454)","v":""},{"$f":"IF('1. Order'!BF1454=\"\",\"\",'1. Order'!BF1454)","v":""},{"$f":"IF('1. Order'!BG1454=\"\",\"\",'1. Order'!BG1454)","v":""},{"$f":"IF('1. Order'!BH1454=\"\",\"\",'1. Order'!BH1454)","v":"ZWO"}]
[{"$f":"IF('1. Order'!F1455=\"\",\"\",'1. Order'!F1455)","v":{"$error":"#N/A"}},{"$f":"IF('1. Order'!G1455=\"\",\"\",'1. Order'!G1455)","v":""},{"$f":"IF('1. Order'!H1455=\"\",\"\",'1. Order'!H1455)","v":""},{"$f":"IF('1. Order'!I1455=\"\",\"\",'1. Order'!I1455)","v":""},{"$f":"IF('1. Order'!J1455=\"\",\"\",'1. Order'!J1455)","v":""},{"$f":"IF('1. Order'!K1455=\"\",\"\",'1. Order'!K1455)","v":""},{"$f":"IF('1. Order'!L1455=\"\",\"\",'1. Order'!L1455)","v":""},{"$f":"IF('1. Order'!M1455=\"\",\"\",'1. Order'!M1455)","v":""},{"$f":"IF('1. Order'!N1455=\"\",\"\",'1. Order'!N1455)","v":""},{"$f":"IF('1. Order'!O1455=\"\",\"\",'1. Order'!O1455)","v":{"$error":"#N/A"}},{"$f":"IF('1. Order'!P1455=\"\",\"\",'1. Order'!P1455)","v":{"$error":"#N/A"}},{"$f":"IF('1. Order'!Q1455=\"\",\"\",'1. Order'!Q1455)","v":""},{"$f":"IF('1. Order'!S1455=\"\",\"\",'1. Order'!S1455)","v":""},{"$f":"IF('1. Order'!T1455=\"\",\"\",'1. Order'!T1455)","v":""},{"$f":"IF('1. Order'!W1455=\"\",\"\",'1. Order'!W1455)","v":""},{"$f":"IF('1. Order'!X1455=\"\",\"\",'1. Order'!X1455)","v":""},{"$f":"IF('1. Order'!Y1455=\"\",\"\",'1. Order'!Y1455)","v":"EUR"},{"$f":"IF('1. Order'!Z1455=\"\",\"\",'1. Order'!Z1455)","v":""},{"$f":"IF('1. Order'!AA1455=\"\",\"\",'1. Order'!AA1455)","v":""},{"$f":"IF('1. Order'!AB1455=\"\",\"\",'1. Order'!AB1455)","v":""},null,{"$f":"IF('1. Order'!AT1455=\"\",\"\",'1. Order'!AT1455)","v":""},{"$f":"IF('1. Order'!AU1455=\"\",\"\",'1. Order'!AU1455)","v":""},null,null,null,null,null,null,null,{"$f":"IF('1. Order'!AY1455=\"\",\"\",'1. Order'!AY1455)","v":""},{"$f":"IF('1. Order'!AZ1455=\"\",\"\",'1. Order'!AZ1455)","v":""},{"$f":"IF('1. Order'!BA1455=\"\",\"\",'1. Order'!BA1455)","v":""},{"$f":"IF('1. Order'!BB1455=\"\",\"\",'1. Order'!BB1455)","v":""},{"$f":"IF('1. Order'!BD1455=\"\",\"\",'1. Order'!BD1455)","v":""},{"$f":"IF('1. Order'!BE1455=\"\",\"\",'1. Order'!BE1455)","v":""},{"$f":"IF('1. Order'!BF1455=\"\",\"\",'1. Order'!BF1455)","v":""},{"$f":"IF('1. Order'!BG1455=\"\",\"\",'1. Order'!BG1455)","v":""},{"$f":"IF('1. Order'!BH1455=\"\",\"\",'1. Order'!BH1455)","v":"ZWO"}]
[{"$f":"IF('1. Order'!F1456=\"\",\"\",'1. Order'!F1456)","v":{"$error":"#N/A"}},{"$f":"IF('1. Order'!G1456=\"\",\"\",'1. Order'!G1456)","v":""},{"$f":"IF('1. Order'!H1456=\"\",\"\",'1. Order'!H1456)","v":""},{"$f":"IF('1. Order'!I1456=\"\",\"\",'1. Order'!I1456)","v":""},{"$f":"IF('1. Order'!J1456=\"\",\"\",'1. Order'!J1456)","v":""},{"$f":"IF('1. Order'!K1456=\"\",\"\",'1. Order'!K1456)","v":""},{"$f":"IF('1. Order'!L1456=\"\",\"\",'1. Order'!L1456)","v":""},{"$f":"IF('1. Order'!M1456=\"\",\"\",'1. Order'!M1456)","v":""},{"$f":"IF('1. Order'!N1456=\"\",\"\",'1. Order'!N1456)","v":""},{"$f":"IF('1. Order'!O1456=\"\",\"\",'1. Order'!O1456)","v":{"$error":"#N/A"}},{"$f":"IF('1. Order'!P1456=\"\",\"\",'1. Order'!P1456)","v":{"$error":"#N/A"}},{"$f":"IF('1. Order'!Q1456=\"\",\"\",'1. Order'!Q1456)","v":""},{"$f":"IF('1. Order'!S1456=\"\",\"\",'1. Order'!S1456)","v":""},{"$f":"IF('1. Order'!T1456=\"\",\"\",'1. Order'!T1456)","v":""},{"$f":"IF('1. Order'!W1456=\"\",\"\",'1. Order'!W1456)","v":""},{"$f":"IF('1. Order'!X1456=\"\",\"\",'1. Order'!X1456)","v":""},{"$f":"IF('1. Order'!Y1456=\"\",\"\",'1. Order'!Y1456)","v":"EUR"},{"$f":"IF('1. Order'!Z1456=\"\",\"\",'1. Order'!Z1456)","v":""},{"$f":"IF('1. Order'!AA1456=\"\",\"\",'1. Order'!AA1456)","v":""},{"$f":"IF('1. Order'!AB1456=\"\",\"\",'1. Order'!AB1456)","v":""},null,{"$f":"IF('1. Order'!AT1456=\"\",\"\",'1. Order'!AT1456)","v":""},{"$f":"IF('1. Order'!AU1456=\"\",\"\",'1. Order'!AU1456)","v":""},null,null,null,null,null,null,null,{"$f":"IF('1. Order'!AY1456=\"\",\"\",'1. Order'!AY1456)","v":""},{"$f":"IF('1. Order'!AZ1456=\"\",\"\",'1. Order'!AZ1456)","v":""},{"$f":"IF('1. Order'!BA1456=\"\",\"\",'1. Order'!BA1456)","v":""},{"$f":"IF('1. Order'!BB1456=\"\",\"\",'1. Order'!BB1456)","v":""},{"$f":"IF('1. Order'!BD1456=\"\",\"\",'1. Order'!BD1456)","v":""},{"$f":"IF('1. Order'!BE1456=\"\",\"\",'1. Order'!BE1456)","v":""},{"$f":"IF('1. Order'!BF1456=\"\",\"\",'1. Order'!BF1456)","v":""},{"$f":"IF('1. Order'!BG1456=\"\",\"\",'1. Order'!BG1456)","v":""},{"$f":"IF('1. Order'!BH1456=\"\",\"\",'1. Order'!BH1456)","v":"ZWO"}]
[{"$f":"IF('1. Order'!F1457=\"\",\"\",'1. Order'!F1457)","v":{"$error":"#N/A"}},{"$f":"IF('1. Order'!G1457=\"\",\"\",'1. Order'!G1457)","v":""},{"$f":"IF('1. Order'!H1457=\"\",\"\",'1. Order'!H1457)","v":""},{"$f":"IF('1. Order'!I1457=\"\",\"\",'1. Order'!I1457)","v":""},{"$f":"IF('1. Order'!J1457=\"\",\"\",'1. Order'!J1457)","v":""},{"$f":"IF('1. Order'!K1457=\"\",\"\",'1. Order'!K1457)","v":""},{"$f":"IF('1. Order'!L1457=\"\",\"\",'1. Order'!L1457)","v":""},{"$f":"IF('1. Order'!M1457=\"\",\"\",'1. Order'!M1457)","v":""},{"$f":"IF('1. Order'!N1457=\"\",\"\",'1. Order'!N1457)","v":""},{"$f":"IF('1. Order'!O1457=\"\",\"\",'1. Order'!O1457)","v":{"$error":"#N/A"}},{"$f":"IF('1. Order'!P1457=\"\",\"\",'1. Order'!P1457)","v":{"$error":"#N/A"}},{"$f":"IF('1. Order'!Q1457=\"\",\"\",'1. Order'!Q1457)","v":""},{"$f":"IF('1. Order'!S1457=\"\",\"\",'1. Order'!S1457)","v":""},{"$f":"IF('1. Order'!T1457=\"\",\"\",'1. Order'!T1457)","v":""},{"$f":"IF('1. Order'!W1457=\"\",\"\",'1. Order'!W1457)","v":""},{"$f":"IF('1. Order'!X1457=\"\",\"\",'1. Order'!X1457)","v":""},{"$f":"IF('1. Order'!Y1457=\"\",\"\",'1. Order'!Y1457)","v":"EUR"},{"$f":"IF('1. Order'!Z1457=\"\",\"\",'1. Order'!Z1457)","v":""},{"$f":"IF('1. Order'!AA1457=\"\",\"\",'1. Order'!AA1457)","v":""},{"$f":"IF('1. Order'!AB1457=\"\",\"\",'1. Order'!AB1457)","v":""},null,{"$f":"IF('1. Order'!AT1457=\"\",\"\",'1. Order'!AT1457)","v":""},{"$f":"IF('1. Order'!AU1457=\"\",\"\",'1. Order'!AU1457)","v":""},null,null,null,null,null,null,null,{"$f":"IF('1. Order'!AY1457=\"\",\"\",'1. Order'!AY1457)","v":""},{"$f":"IF('1. Order'!AZ1457=\"\",\"\",'1. Order'!AZ1457)","v":""},{"$f":"IF('1. Order'!BA1457=\"\",\"\",'1. Order'!BA1457)","v":""},{"$f":"IF('1. Order'!BB1457=\"\",\"\",'1. Order'!BB1457)","v":""},{"$f":"IF('1. Order'!BD1457=\"\",\"\",'1. Order'!BD1457)","v":""},{"$f":"IF('1. Order'!BE1457=\"\",\"\",'1. Order'!BE1457)","v":""},{"$f":"IF('1. Order'!BF1457=\"\",\"\",'1. Order'!BF1457)","v":""},{"$f":"IF('1. Order'!BG1457=\"\",\"\",'1. Order'!BG1457)","v":""},{"$f":"IF('1. Order'!BH1457=\"\",\"\",'1. Order'!BH1457)","v":"ZWO"}]
[{"$f":"IF('1. Order'!F1458=\"\",\"\",'1. Order'!F1458)","v":{"$error":"#N/A"}},{"$f":"IF('1. Order'!G1458=\"\",\"\",'1. Order'!G1458)","v":""},{"$f":"IF('1. Order'!H1458=\"\",\"\",'1. Order'!H1458)","v":""},{"$f":"IF('1. Order'!I1458=\"\",\"\",'1. Order'!I1458)","v":""},{"$f":"IF('1. Order'!J1458=\"\",\"\",'1. Order'!J1458)","v":""},{"$f":"IF('1. Order'!K1458=\"\",\"\",'1. Order'!K1458)","v":""},{"$f":"IF('1. Order'!L1458=\"\",\"\",'1. Order'!L1458)","v":""},{"$f":"IF('1. Order'!M1458=\"\",\"\",'1. Order'!M1458)","v":""},{"$f":"IF('1. Order'!N1458=\"\",\"\",'1. Order'!N1458)","v":""},{"$f":"IF('1. Order'!O1458=\"\",\"\",'1. Order'!O1458)","v":{"$error":"#N/A"}},{"$f":"IF('1. Order'!P1458=\"\",\"\",'1. Order'!P1458)","v":{"$error":"#N/A"}},{"$f":"IF('1. Order'!Q1458=\"\",\"\",'1. Order'!Q1458)","v":""},{"$f":"IF('1. Order'!S1458=\"\",\"\",'1. Order'!S1458)","v":""},{"$f":"IF('1. Order'!T1458=\"\",\"\",'1. Order'!T1458)","v":""},{"$f":"IF('1. Order'!W1458=\"\",\"\",'1. Order'!W1458)","v":""},{"$f":"IF('1. Order'!X1458=\"\",\"\",'1. Order'!X1458)","v":""},{"$f":"IF('1. Order'!Y1458=\"\",\"\",'1. Order'!Y1458)","v":"EUR"},{"$f":"IF('1. Order'!Z1458=\"\",\"\",'1. Order'!Z1458)","v":""},{"$f":"IF('1. Order'!AA1458=\"\",\"\",'1. Order'!AA1458)","v":""},{"$f":"IF('1. Order'!AB1458=\"\",\"\",'1. Order'!AB1458)","v":""},null,{"$f":"IF('1. Order'!AT1458=\"\",\"\",'1. Order'!AT1458)","v":""},{"$f":"IF('1. Order'!AU1458=\"\",\"\",'1. Order'!AU1458)","v":""},null,null,null,null,null,null,null,{"$f":"IF('1. Order'!AY1458=\"\",\"\",'1. Order'!AY1458)","v":""},{"$f":"IF('1. Order'!AZ1458=\"\",\"\",'1. Order'!AZ1458)","v":""},{"$f":"IF('1. Order'!BA1458=\"\",\"\",'1. Order'!BA1458)","v":""},{"$f":"IF('1. Order'!BB1458=\"\",\"\",'1. Order'!BB1458)","v":""},{"$f":"IF('1. Order'!BD1458=\"\",\"\",'1. Order'!BD1458)","v":""},{"$f":"IF('1. Order'!BE1458=\"\",\"\",'1. Order'!BE1458)","v":""},{"$f":"IF('1. Order'!BF1458=\"\",\"\",'1. Order'!BF1458)","v":""},{"$f":"IF('1. Order'!BG1458=\"\",\"\",'1. Order'!BG1458)","v":""},{"$f":"IF('1. Order'!BH1458=\"\",\"\",'1. Order'!BH1458)","v":"ZWO"}]
[{"$f":"IF('1. Order'!F1459=\"\",\"\",'1. Order'!F1459)","v":{"$error":"#N/A"}},{"$f":"IF('1. Order'!G1459=\"\",\"\",'1. Order'!G1459)","v":""},{"$f":"IF('1. Order'!H1459=\"\",\"\",'1. Order'!H1459)","v":""},{"$f":"IF('1. Order'!I1459=\"\",\"\",'1. Order'!I1459)","v":""},{"$f":"IF('1. Order'!J1459=\"\",\"\",'1. Order'!J1459)","v":""},{"$f":"IF('1. Order'!K1459=\"\",\"\",'1. Order'!K1459)","v":""},{"$f":"IF('1. Order'!L1459=\"\",\"\",'1. Order'!L1459)","v":""},{"$f":"IF('1. Order'!M1459=\"\",\"\",'1. Order'!M1459)","v":""},{"$f":"IF('1. Order'!N1459=\"\",\"\",'1. Order'!N1459)","v":""},{"$f":"IF('1. Order'!O1459=\"\",\"\",'1. Order'!O1459)","v":{"$error":"#N/A"}},{"$f":"IF('1. Order'!P1459=\"\",\"\",'1. Order'!P1459)","v":{"$error":"#N/A"}},{"$f":"IF('1. Order'!Q1459=\"\",\"\",'1. Order'!Q1459)","v":""},{"$f":"IF('1. Order'!S1459=\"\",\"\",'1. Order'!S1459)","v":""},{"$f":"IF('1. Order'!T1459=\"\",\"\",'1. Order'!T1459)","v":""},{"$f":"IF('1. Order'!W1459=\"\",\"\",'1. Order'!W1459)","v":""},{"$f":"IF('1. Order'!X1459=\"\",\"\",'1. Order'!X1459)","v":""},{"$f":"IF('1. Order'!Y1459=\"\",\"\",'1. Order'!Y1459)","v":"EUR"},{"$f":"IF('1. Order'!Z1459=\"\",\"\",'1. Order'!Z1459)","v":""},{"$f":"IF('1. Order'!AA1459=\"\",\"\",'1. Order'!AA1459)","v":""},{"$f":"IF('1. Order'!AB1459=\"\",\"\",'1. Order'!AB1459)","v":""},null,{"$f":"IF('1. Order'!AT1459=\"\",\"\",'1. Order'!AT1459)","v":""},{"$f":"IF('1. Order'!AU1459=\"\",\"\",'1. Order'!AU1459)","v":""},null,null,null,null,null,null,null,{"$f":"IF('1. Order'!AY1459=\"\",\"\",'1. Order'!AY1459)","v":""},{"$f":"IF('1. Order'!AZ1459=\"\",\"\",'1. Order'!AZ1459)","v":""},{"$f":"IF('1. Order'!BA1459=\"\",\"\",'1. Order'!BA1459)","v":""},{"$f":"IF('1. Order'!BB1459=\"\",\"\",'1. Order'!BB1459)","v":""},{"$f":"IF('1. Order'!BD1459=\"\",\"\",'1. Order'!BD1459)","v":""},{"$f":"IF('1. Order'!BE1459=\"\",\"\",'1. Order'!BE1459)","v":""},{"$f":"IF('1. Order'!BF1459=\"\",\"\",'1. Order'!BF1459)","v":""},{"$f":"IF('1. Order'!BG1459=\"\",\"\",'1. Order'!BG1459)","v":""},{"$f":"IF('1. Order'!BH1459=\"\",\"\",'1. Order'!BH1459)","v":"ZWO"}]
[{"$f":"IF('1. Order'!F1460=\"\",\"\",'1. Order'!F1460)","v":{"$error":"#N/A"}},{"$f":"IF('1. Order'!G1460=\"\",\"\",'1. Order'!G1460)","v":""},{"$f":"IF('1. Order'!H1460=\"\",\"\",'1. Order'!H1460)","v":""},{"$f":"IF('1. Order'!I1460=\"\",\"\",'1. Order'!I1460)","v":""},{"$f":"IF('1. Order'!J1460=\"\",\"\",'1. Order'!J1460)","v":""},{"$f":"IF('1. Order'!K1460=\"\",\"\",'1. Order'!K1460)","v":""},{"$f":"IF('1. Order'!L1460=\"\",\"\",'1. Order'!L1460)","v":""},{"$f":"IF('1. Order'!M1460=\"\",\"\",'1. Order'!M1460)","v":""},{"$f":"IF('1. Order'!N1460=\"\",\"\",'1. Order'!N1460)","v":""},{"$f":"IF('1. Order'!O1460=\"\",\"\",'1. Order'!O1460)","v":{"$error":"#N/A"}},{"$f":"IF('1. Order'!P1460=\"\",\"\",'1. Order'!P1460)","v":{"$error":"#N/A"}},{"$f":"IF('1. Order'!Q1460=\"\",\"\",'1. Order'!Q1460)","v":""},{"$f":"IF('1. Order'!S1460=\"\",\"\",'1. Order'!S1460)","v":""},{"$f":"IF('1. Order'!T1460=\"\",\"\",'1. Order'!T1460)","v":""},{"$f":"IF('1. Order'!W1460=\"\",\"\",'1. Order'!W1460)","v":""},{"$f":"IF('1. Order'!X1460=\"\",\"\",'1. Order'!X1460)","v":""},{"$f":"IF('1. Order'!Y1460=\"\",\"\",'1. Order'!Y1460)","v":"EUR"},{"$f":"IF('1. Order'!Z1460=\"\",\"\",'1. Order'!Z1460)","v":""},{"$f":"IF('1. Order'!AA1460=\"\",\"\",'1. Order'!AA1460)","v":""},{"$f":"IF('1. Order'!AB1460=\"\",\"\",'1. Order'!AB1460)","v":""},null,{"$f":"IF('1. Order'!AT1460=\"\",\"\",'1. Order'!AT1460)","v":""},{"$f":"IF('1. Order'!AU1460=\"\",\"\",'1. Order'!AU1460)","v":""},null,null,null,null,null,null,null,{"$f":"IF('1. Order'!AY1460=\"\",\"\",'1. Order'!AY1460)","v":""},{"$f":"IF('1. Order'!AZ1460=\"\",\"\",'1. Order'!AZ1460)","v":""},{"$f":"IF('1. Order'!BA1460=\"\",\"\",'1. Order'!BA1460)","v":""},{"$f":"IF('1. Order'!BB1460=\"\",\"\",'1. Order'!BB1460)","v":""},{"$f":"IF('1. Order'!BD1460=\"\",\"\",'1. Order'!BD1460)","v":""},{"$f":"IF('1. Order'!BE1460=\"\",\"\",'1. Order'!BE1460)","v":""},{"$f":"IF('1. Order'!BF1460=\"\",\"\",'1. Order'!BF1460)","v":""},{"$f":"IF('1. Order'!BG1460=\"\",\"\",'1. Order'!BG1460)","v":""},{"$f":"IF('1. Order'!BH1460=\"\",\"\",'1. Order'!BH1460)","v":"ZWO"}]
[{"$f":"IF('1. Order'!F1461=\"\",\"\",'1. Order'!F1461)","v":{"$error":"#N/A"}},{"$f":"IF('1. Order'!G1461=\"\",\"\",'1. Order'!G1461)","v":""},{"$f":"IF('1. Order'!H1461=\"\",\"\",'1. Order'!H1461)","v":""},{"$f":"IF('1. Order'!I1461=\"\",\"\",'1. Order'!I1461)","v":""},{"$f":"IF('1. Order'!J1461=\"\",\"\",'1. Order'!J1461)","v":""},{"$f":"IF('1. Order'!K1461=\"\",\"\",'1. Order'!K1461)","v":""},{"$f":"IF('1. Order'!L1461=\"\",\"\",'1. Order'!L1461)","v":""},{"$f":"IF('1. Order'!M1461=\"\",\"\",'1. Order'!M1461)","v":""},{"$f":"IF('1. Order'!N1461=\"\",\"\",'1. Order'!N1461)","v":""},{"$f":"IF('1. Order'!O1461=\"\",\"\",'1. Order'!O1461)","v":{"$error":"#N/A"}},{"$f":"IF('1. Order'!P1461=\"\",\"\",'1. Order'!P1461)","v":{"$error":"#N/A"}},{"$f":"IF('1. Order'!Q1461=\"\",\"\",'1. Order'!Q1461)","v":""},{"$f":"IF('1. Order'!S1461=\"\",\"\",'1. Order'!S1461)","v":""},{"$f":"IF('1. Order'!T1461=\"\",\"\",'1. Order'!T1461)","v":""},{"$f":"IF('1. Order'!W1461=\"\",\"\",'1. Order'!W1461)","v":""},{"$f":"IF('1. Order'!X1461=\"\",\"\",'1. Order'!X1461)","v":""},{"$f":"IF('1. Order'!Y1461=\"\",\"\",'1. Order'!Y1461)","v":"EUR"},{"$f":"IF('1. Order'!Z1461=\"\",\"\",'1. Order'!Z1461)","v":""},{"$f":"IF('1. Order'!AA1461=\"\",\"\",'1. Order'!AA1461)","v":""},{"$f":"IF('1. Order'!AB1461=\"\",\"\",'1. Order'!AB1461)","v":""},null,{"$f":"IF('1. Order'!AT1461=\"\",\"\",'1. Order'!AT1461)","v":""},{"$f":"IF('1. Order'!AU1461=\"\",\"\",'1. Order'!AU1461)","v":""},null,null,null,null,null,null,null,{"$f":"IF('1. Order'!AY1461=\"\",\"\",'1. Order'!AY1461)","v":""},{"$f":"IF('1. Order'!AZ1461=\"\",\"\",'1. Order'!AZ1461)","v":""},{"$f":"IF('1. Order'!BA1461=\"\",\"\",'1. Order'!BA1461)","v":""},{"$f":"IF('1. Order'!BB1461=\"\",\"\",'1. Order'!BB1461)","v":""},{"$f":"IF('1. Order'!BD1461=\"\",\"\",'1. Order'!BD1461)","v":""},{"$f":"IF('1. Order'!BE1461=\"\",\"\",'1. Order'!BE1461)","v":""},{"$f":"IF('1. Order'!BF1461=\"\",\"\",'1. Order'!BF1461)","v":""},{"$f":"IF('1. Order'!BG1461=\"\",\"\",'1. Order'!BG1461)","v":""},{"$f":"IF('1. Order'!BH1461=\"\",\"\",'1. Order'!BH1461)","v":"ZWO"}]
[{"$f":"IF('1. Order'!F1462=\"\",\"\",'1. Order'!F1462)","v":{"$error":"#N/A"}},{"$f":"IF('1. Order'!G1462=\"\",\"\",'1. Order'!G1462)","v":""},{"$f":"IF('1. Order'!H1462=\"\",\"\",'1. Order'!H1462)","v":""},{"$f":"IF('1. Order'!I1462=\"\",\"\",'1. Order'!I1462)","v":""},{"$f":"IF('1. Order'!J1462=\"\",\"\",'1. Order'!J1462)","v":""},{"$f":"IF('1. Order'!K1462=\"\",\"\",'1. Order'!K1462)","v":""},{"$f":"IF('1. Order'!L1462=\"\",\"\",'1. Order'!L1462)","v":""},{"$f":"IF('1. Order'!M1462=\"\",\"\",'1. Order'!M1462)","v":""},{"$f":"IF('1. Order'!N1462=\"\",\"\",'1. Order'!N1462)","v":""},{"$f":"IF('1. Order'!O1462=\"\",\"\",'1. Order'!O1462)","v":{"$error":"#N/A"}},{"$f":"IF('1. Order'!P1462=\"\",\"\",'1. Order'!P1462)","v":{"$error":"#N/A"}},{"$f":"IF('1. Order'!Q1462=\"\",\"\",'1. Order'!Q1462)","v":""},{"$f":"IF('1. Order'!S1462=\"\",\"\",'1. Order'!S1462)","v":""},{"$f":"IF('1. Order'!T1462=\"\",\"\",'1. Order'!T1462)","v":""},{"$f":"IF('1. Order'!W1462=\"\",\"\",'1. Order'!W1462)","v":""},{"$f":"IF('1. Order'!X1462=\"\",\"\",'1. Order'!X1462)","v":""},{"$f":"IF('1. Order'!Y1462=\"\",\"\",'1. Order'!Y1462)","v":"EUR"},{"$f":"IF('1. Order'!Z1462=\"\",\"\",'1. Order'!Z1462)","v":""},{"$f":"IF('1. Order'!AA1462=\"\",\"\",'1. Order'!AA1462)","v":""},{"$f":"IF('1. Order'!AB1462=\"\",\"\",'1. Order'!AB1462)","v":""},null,{"$f":"IF('1. Order'!AT1462=\"\",\"\",'1. Order'!AT1462)","v":""},{"$f":"IF('1. Order'!AU1462=\"\",\"\",'1. Order'!AU1462)","v":""},null,null,null,null,null,null,null,{"$f":"IF('1. Order'!AY1462=\"\",\"\",'1. Order'!AY1462)","v":""},{"$f":"IF('1. Order'!AZ1462=\"\",\"\",'1. Order'!AZ1462)","v":""},{"$f":"IF('1. Order'!BA1462=\"\",\"\",'1. Order'!BA1462)","v":""},{"$f":"IF('1. Order'!BB1462=\"\",\"\",'1. Order'!BB1462)","v":""},{"$f":"IF('1. Order'!BD1462=\"\",\"\",'1. Order'!BD1462)","v":""},{"$f":"IF('1. Order'!BE1462=\"\",\"\",'1. Order'!BE1462)","v":""},{"$f":"IF('1. Order'!BF1462=\"\",\"\",'1. Order'!BF1462)","v":""},{"$f":"IF('1. Order'!BG1462=\"\",\"\",'1. Order'!BG1462)","v":""},{"$f":"IF('1. Order'!BH1462=\"\",\"\",'1. Order'!BH1462)","v":"ZWO"}]
[{"$f":"IF('1. Order'!F1463=\"\",\"\",'1. Order'!F1463)","v":{"$error":"#N/A"}},{"$f":"IF('1. Order'!G1463=\"\",\"\",'1. Order'!G1463)","v":""},{"$f":"IF('1. Order'!H1463=\"\",\"\",'1. Order'!H1463)","v":""},{"$f":"IF('1. Order'!I1463=\"\",\"\",'1. Order'!I1463)","v":""},{"$f":"IF('1. Order'!J1463=\"\",\"\",'1. Order'!J1463)","v":""},{"$f":"IF('1. Order'!K1463=\"\",\"\",'1. Order'!K1463)","v":""},{"$f":"IF('1. Order'!L1463=\"\",\"\",'1. Order'!L1463)","v":""},{"$f":"IF('1. Order'!M1463=\"\",\"\",'1. Order'!M1463)","v":""},{"$f":"IF('1. Order'!N1463=\"\",\"\",'1. Order'!N1463)","v":""},{"$f":"IF('1. Order'!O1463=\"\",\"\",'1. Order'!O1463)","v":{"$error":"#N/A"}},{"$f":"IF('1. Order'!P1463=\"\",\"\",'1. Order'!P1463)","v":{"$error":"#N/A"}},{"$f":"IF('1. Order'!Q1463=\"\",\"\",'1. Order'!Q1463)","v":""},{"$f":"IF('1. Order'!S1463=\"\",\"\",'1. Order'!S1463)","v":""},{"$f":"IF('1. Order'!T1463=\"\",\"\",'1. Order'!T1463)","v":""},{"$f":"IF('1. Order'!W1463=\"\",\"\",'1. Order'!W1463)","v":""},{"$f":"IF('1. Order'!X1463=\"\",\"\",'1. Order'!X1463)","v":""},{"$f":"IF('1. Order'!Y1463=\"\",\"\",'1. Order'!Y1463)","v":"EUR"},{"$f":"IF('1. Order'!Z1463=\"\",\"\",'1. Order'!Z1463)","v":""},{"$f":"IF('1. Order'!AA1463=\"\",\"\",'1. Order'!AA1463)","v":""},{"$f":"IF('1. Order'!AB1463=\"\",\"\",'1. Order'!AB1463)","v":""},null,{"$f":"IF('1. Order'!AT1463=\"\",\"\",'1. Order'!AT1463)","v":""},{"$f":"IF('1. Order'!AU1463=\"\",\"\",'1. Order'!AU1463)","v":""},null,null,null,null,null,null,null,{"$f":"IF('1. Order'!AY1463=\"\",\"\",'1. Order'!AY1463)","v":""},{"$f":"IF('1. Order'!AZ1463=\"\",\"\",'1. Order'!AZ1463)","v":""},{"$f":"IF('1. Order'!BA1463=\"\",\"\",'1. Order'!BA1463)","v":""},{"$f":"IF('1. Order'!BB1463=\"\",\"\",'1. Order'!BB1463)","v":""},{"$f":"IF('1. Order'!BD1463=\"\",\"\",'1. Order'!BD1463)","v":""},{"$f":"IF('1. Order'!BE1463=\"\",\"\",'1. Order'!BE1463)","v":""},{"$f":"IF('1. Order'!BF1463=\"\",\"\",'1. Order'!BF1463)","v":""},{"$f":"IF('1. Order'!BG1463=\"\",\"\",'1. Order'!BG1463)","v":""},{"$f":"IF('1. Order'!BH1463=\"\",\"\",'1. Order'!BH1463)","v":"ZWO"}]
[{"$f":"IF('1. Order'!F1464=\"\",\"\",'1. Order'!F1464)","v":{"$error":"#N/A"}},{"$f":"IF('1. Order'!G1464=\"\",\"\",'1. Order'!G1464)","v":""},{"$f":"IF('1. Order'!H1464=\"\",\"\",'1. Order'!H1464)","v":""},{"$f":"IF('1. Order'!I1464=\"\",\"\",'1. Order'!I1464)","v":""},{"$f":"IF('1. Order'!J1464=\"\",\"\",'1. Order'!J1464)","v":""},{"$f":"IF('1. Order'!K1464=\"\",\"\",'1. Order'!K1464)","v":""},{"$f":"IF('1. Order'!L1464=\"\",\"\",'1. Order'!L1464)","v":""},{"$f":"IF('1. Order'!M1464=\"\",\"\",'1. Order'!M1464)","v":""},{"$f":"IF('1. Order'!N1464=\"\",\"\",'1. Order'!N1464)","v":""},{"$f":"IF('1. Order'!O1464=\"\",\"\",'1. Order'!O1464)","v":{"$error":"#N/A"}},{"$f":"IF('1. Order'!P1464=\"\",\"\",'1. Order'!P1464)","v":{"$error":"#N/A"}},{"$f":"IF('1. Order'!Q1464=\"\",\"\",'1. Order'!Q1464)","v":""},{"$f":"IF('1. Order'!S1464=\"\",\"\",'1. Order'!S1464)","v":""},{"$f":"IF('1. Order'!T1464=\"\",\"\",'1. Order'!T1464)","v":""},{"$f":"IF('1. Order'!W1464=\"\",\"\",'1. Order'!W1464)","v":""},{"$f":"IF('1. Order'!X1464=\"\",\"\",'1. Order'!X1464)","v":""},{"$f":"IF('1. Order'!Y1464=\"\",\"\",'1. Order'!Y1464)","v":"EUR"},{"$f":"IF('1. Order'!Z1464=\"\",\"\",'1. Order'!Z1464)","v":""},{"$f":"IF('1. Order'!AA1464=\"\",\"\",'1. Order'!AA1464)","v":""},{"$f":"IF('1. Order'!AB1464=\"\",\"\",'1. Order'!AB1464)","v":""},null,{"$f":"IF('1. Order'!AT1464=\"\",\"\",'1. Order'!AT1464)","v":""},{"$f":"IF('1. Order'!AU1464=\"\",\"\",'1. Order'!AU1464)","v":""},null,null,null,null,null,null,null,{"$f":"IF('1. Order'!AY1464=\"\",\"\",'1. Order'!AY1464)","v":""},{"$f":"IF('1. Order'!AZ1464=\"\",\"\",'1. Order'!AZ1464)","v":""},{"$f":"IF('1. Order'!BA1464=\"\",\"\",'1. Order'!BA1464)","v":""},{"$f":"IF('1. Order'!BB1464=\"\",\"\",'1. Order'!BB1464)","v":""},{"$f":"IF('1. Order'!BD1464=\"\",\"\",'1. Order'!BD1464)","v":""},{"$f":"IF('1. Order'!BE1464=\"\",\"\",'1. Order'!BE1464)","v":""},{"$f":"IF('1. Order'!BF1464=\"\",\"\",'1. Order'!BF1464)","v":""},{"$f":"IF('1. Order'!BG1464=\"\",\"\",'1. Order'!BG1464)","v":""},{"$f":"IF('1. Order'!BH1464=\"\",\"\",'1. Order'!BH1464)","v":"ZWO"}]
[{"$f":"IF('1. Order'!F1465=\"\",\"\",'1. Order'!F1465)","v":{"$error":"#N/A"}},{"$f":"IF('1. Order'!G1465=\"\",\"\",'1. Order'!G1465)","v":""},{"$f":"IF('1. Order'!H1465=\"\",\"\",'1. Order'!H1465)","v":""},{"$f":"IF('1. Order'!I1465=\"\",\"\",'1. Order'!I1465)","v":""},{"$f":"IF('1. Order'!J1465=\"\",\"\",'1. Order'!J1465)","v":""},{"$f":"IF('1. Order'!K1465=\"\",\"\",'1. Order'!K1465)","v":""},{"$f":"IF('1. Order'!L1465=\"\",\"\",'1. Order'!L1465)","v":""},{"$f":"IF('1. Order'!M1465=\"\",\"\",'1. Order'!M1465)","v":""},{"$f":"IF('1. Order'!N1465=\"\",\"\",'1. Order'!N1465)","v":""},{"$f":"IF('1. Order'!O1465=\"\",\"\",'1. Order'!O1465)","v":{"$error":"#N/A"}},{"$f":"IF('1. Order'!P1465=\"\",\"\",'1. Order'!P1465)","v":{"$error":"#N/A"}},{"$f":"IF('1. Order'!Q1465=\"\",\"\",'1. Order'!Q1465)","v":""},{"$f":"IF('1. Order'!S1465=\"\",\"\",'1. Order'!S1465)","v":""},{"$f":"IF('1. Order'!T1465=\"\",\"\",'1. Order'!T1465)","v":""},{"$f":"IF('1. Order'!W1465=\"\",\"\",'1. Order'!W1465)","v":""},{"$f":"IF('1. Order'!X1465=\"\",\"\",'1. Order'!X1465)","v":""},{"$f":"IF('1. Order'!Y1465=\"\",\"\",'1. Order'!Y1465)","v":"EUR"},{"$f":"IF('1. Order'!Z1465=\"\",\"\",'1. Order'!Z1465)","v":""},{"$f":"IF('1. Order'!AA1465=\"\",\"\",'1. Order'!AA1465)","v":""},{"$f":"IF('1. Order'!AB1465=\"\",\"\",'1. Order'!AB1465)","v":""},null,{"$f":"IF('1. Order'!AT1465=\"\",\"\",'1. Order'!AT1465)","v":""},{"$f":"IF('1. Order'!AU1465=\"\",\"\",'1. Order'!AU1465)","v":""},null,null,null,null,null,null,null,{"$f":"IF('1. Order'!AY1465=\"\",\"\",'1. Order'!AY1465)","v":""},{"$f":"IF('1. Order'!AZ1465=\"\",\"\",'1. Order'!AZ1465)","v":""},{"$f":"IF('1. Order'!BA1465=\"\",\"\",'1. Order'!BA1465)","v":""},{"$f":"IF('1. Order'!BB1465=\"\",\"\",'1. Order'!BB1465)","v":""},{"$f":"IF('1. Order'!BD1465=\"\",\"\",'1. Order'!BD1465)","v":""},{"$f":"IF('1. Order'!BE1465=\"\",\"\",'1. Order'!BE1465)","v":""},{"$f":"IF('1. Order'!BF1465=\"\",\"\",'1. Order'!BF1465)","v":""},{"$f":"IF('1. Order'!BG1465=\"\",\"\",'1. Order'!BG1465)","v":""},{"$f":"IF('1. Order'!BH1465=\"\",\"\",'1. Order'!BH1465)","v":"ZWO"}]
[{"$f":"IF('1. Order'!F1466=\"\",\"\",'1. Order'!F1466)","v":{"$error":"#N/A"}},{"$f":"IF('1. Order'!G1466=\"\",\"\",'1. Order'!G1466)","v":""},{"$f":"IF('1. Order'!H1466=\"\",\"\",'1. Order'!H1466)","v":""},{"$f":"IF('1. Order'!I1466=\"\",\"\",'1. Order'!I1466)","v":""},{"$f":"IF('1. Order'!J1466=\"\",\"\",'1. Order'!J1466)","v":""},{"$f":"IF('1. Order'!K1466=\"\",\"\",'1. Order'!K1466)","v":""},{"$f":"IF('1. Order'!L1466=\"\",\"\",'1. Order'!L1466)","v":""},{"$f":"IF('1. Order'!M1466=\"\",\"\",'1. Order'!M1466)","v":""},{"$f":"IF('1. Order'!N1466=\"\",\"\",'1. Order'!N1466)","v":""},{"$f":"IF('1. Order'!O1466=\"\",\"\",'1. Order'!O1466)","v":{"$error":"#N/A"}},{"$f":"IF('1. Order'!P1466=\"\",\"\",'1. Order'!P1466)","v":{"$error":"#N/A"}},{"$f":"IF('1. Order'!Q1466=\"\",\"\",'1. Order'!Q1466)","v":""},{"$f":"IF('1. Order'!S1466=\"\",\"\",'1. Order'!S1466)","v":""},{"$f":"IF('1. Order'!T1466=\"\",\"\",'1. Order'!T1466)","v":""},{"$f":"IF('1. Order'!W1466=\"\",\"\",'1. Order'!W1466)","v":""},{"$f":"IF('1. Order'!X1466=\"\",\"\",'1. Order'!X1466)","v":""},{"$f":"IF('1. Order'!Y1466=\"\",\"\",'1. Order'!Y1466)","v":"EUR"},{"$f":"IF('1. Order'!Z1466=\"\",\"\",'1. Order'!Z1466)","v":""},{"$f":"IF('1. Order'!AA1466=\"\",\"\",'1. Order'!AA1466)","v":""},{"$f":"IF('1. Order'!AB1466=\"\",\"\",'1. Order'!AB1466)","v":""},null,{"$f":"IF('1. Order'!AT1466=\"\",\"\",'1. Order'!AT1466)","v":""},{"$f":"IF('1. Order'!AU1466=\"\",\"\",'1. Order'!AU1466)","v":""},null,null,null,null,null,null,null,{"$f":"IF('1. Order'!AY1466=\"\",\"\",'1. Order'!AY1466)","v":""},{"$f":"IF('1. Order'!AZ1466=\"\",\"\",'1. Order'!AZ1466)","v":""},{"$f":"IF('1. Order'!BA1466=\"\",\"\",'1. Order'!BA1466)","v":""},{"$f":"IF('1. Order'!BB1466=\"\",\"\",'1. Order'!BB1466)","v":""},{"$f":"IF('1. Order'!BD1466=\"\",\"\",'1. Order'!BD1466)","v":""},{"$f":"IF('1. Order'!BE1466=\"\",\"\",'1. Order'!BE1466)","v":""},{"$f":"IF('1. Order'!BF1466=\"\",\"\",'1. Order'!BF1466)","v":""},{"$f":"IF('1. Order'!BG1466=\"\",\"\",'1. Order'!BG1466)","v":""},{"$f":"IF('1. Order'!BH1466=\"\",\"\",'1. Order'!BH1466)","v":"ZWO"}]
[{"$f":"IF('1. Order'!F1467=\"\",\"\",'1. Order'!F1467)","v":{"$error":"#N/A"}},{"$f":"IF('1. Order'!G1467=\"\",\"\",'1. Order'!G1467)","v":""},{"$f":"IF('1. Order'!H1467=\"\",\"\",'1. Order'!H1467)","v":""},{"$f":"IF('1. Order'!I1467=\"\",\"\",'1. Order'!I1467)","v":""},{"$f":"IF('1. Order'!J1467=\"\",\"\",'1. Order'!J1467)","v":""},{"$f":"IF('1. Order'!K1467=\"\",\"\",'1. Order'!K1467)","v":""},{"$f":"IF('1. Order'!L1467=\"\",\"\",'1. Order'!L1467)","v":""},{"$f":"IF('1. Order'!M1467=\"\",\"\",'1. Order'!M1467)","v":""},{"$f":"IF('1. Order'!N1467=\"\",\"\",'1. Order'!N1467)","v":""},{"$f":"IF('1. Order'!O1467=\"\",\"\",'1. Order'!O1467)","v":{"$error":"#N/A"}},{"$f":"IF('1. Order'!P1467=\"\",\"\",'1. Order'!P1467)","v":{"$error":"#N/A"}},{"$f":"IF('1. Order'!Q1467=\"\",\"\",'1. Order'!Q1467)","v":""},{"$f":"IF('1. Order'!S1467=\"\",\"\",'1. Order'!S1467)","v":""},{"$f":"IF('1. Order'!T1467=\"\",\"\",'1. Order'!T1467)","v":""},{"$f":"IF('1. Order'!W1467=\"\",\"\",'1. Order'!W1467)","v":""},{"$f":"IF('1. Order'!X1467=\"\",\"\",'1. Order'!X1467)","v":""},{"$f":"IF('1. Order'!Y1467=\"\",\"\",'1. Order'!Y1467)","v":"EUR"},{"$f":"IF('1. Order'!Z1467=\"\",\"\",'1. Order'!Z1467)","v":""},{"$f":"IF('1. Order'!AA1467=\"\",\"\",'1. Order'!AA1467)","v":""},{"$f":"IF('1. Order'!AB1467=\"\",\"\",'1. Order'!AB1467)","v":""},null,{"$f":"IF('1. Order'!AT1467=\"\",\"\",'1. Order'!AT1467)","v":""},{"$f":"IF('1. Order'!AU1467=\"\",\"\",'1. Order'!AU1467)","v":""},null,null,null,null,null,null,null,{"$f":"IF('1. Order'!AY1467=\"\",\"\",'1. Order'!AY1467)","v":""},{"$f":"IF('1. Order'!AZ1467=\"\",\"\",'1. Order'!AZ1467)","v":""},{"$f":"IF('1. Order'!BA1467=\"\",\"\",'1. Order'!BA1467)","v":""},{"$f":"IF('1. Order'!BB1467=\"\",\"\",'1. Order'!BB1467)","v":""},{"$f":"IF('1. Order'!BD1467=\"\",\"\",'1. Order'!BD1467)","v":""},{"$f":"IF('1. Order'!BE1467=\"\",\"\",'1. Order'!BE1467)","v":""},{"$f":"IF('1. Order'!BF1467=\"\",\"\",'1. Order'!BF1467)","v":""},{"$f":"IF('1. Order'!BG1467=\"\",\"\",'1. Order'!BG1467)","v":""},{"$f":"IF('1. Order'!BH1467=\"\",\"\",'1. Order'!BH1467)","v":"ZWO"}]
[{"$f":"IF('1. Order'!F1468=\"\",\"\",'1. Order'!F1468)","v":{"$error":"#N/A"}},{"$f":"IF('1. Order'!G1468=\"\",\"\",'1. Order'!G1468)","v":""},{"$f":"IF('1. Order'!H1468=\"\",\"\",'1. Order'!H1468)","v":""},{"$f":"IF('1. Order'!I1468=\"\",\"\",'1. Order'!I1468)","v":""},{"$f":"IF('1. Order'!J1468=\"\",\"\",'1. Order'!J1468)","v":""},{"$f":"IF('1. Order'!K1468=\"\",\"\",'1. Order'!K1468)","v":""},{"$f":"IF('1. Order'!L1468=\"\",\"\",'1. Order'!L1468)","v":""},{"$f":"IF('1. Order'!M1468=\"\",\"\",'1. Order'!M1468)","v":""},{"$f":"IF('1. Order'!N1468=\"\",\"\",'1. Order'!N1468)","v":""},{"$f":"IF('1. Order'!O1468=\"\",\"\",'1. Order'!O1468)","v":{"$error":"#N/A"}},{"$f":"IF('1. Order'!P1468=\"\",\"\",'1. Order'!P1468)","v":{"$error":"#N/A"}},{"$f":"IF('1. Order'!Q1468=\"\",\"\",'1. Order'!Q1468)","v":""},{"$f":"IF('1. Order'!S1468=\"\",\"\",'1. Order'!S1468)","v":""},{"$f":"IF('1. Order'!T1468=\"\",\"\",'1. Order'!T1468)","v":""},{"$f":"IF('1. Order'!W1468=\"\",\"\",'1. Order'!W1468)","v":""},{"$f":"IF('1. Order'!X1468=\"\",\"\",'1. Order'!X1468)","v":""},{"$f":"IF('1. Order'!Y1468=\"\",\"\",'1. Order'!Y1468)","v":"EUR"},{"$f":"IF('1. Order'!Z1468=\"\",\"\",'1. Order'!Z1468)","v":""},{"$f":"IF('1. Order'!AA1468=\"\",\"\",'1. Order'!AA1468)","v":""},{"$f":"IF('1. Order'!AB1468=\"\",\"\",'1. Order'!AB1468)","v":""},null,{"$f":"IF('1. Order'!AT1468=\"\",\"\",'1. Order'!AT1468)","v":""},{"$f":"IF('1. Order'!AU1468=\"\",\"\",'1. Order'!AU1468)","v":""},null,null,null,null,null,null,null,{"$f":"IF('1. Order'!AY1468=\"\",\"\",'1. Order'!AY1468)","v":""},{"$f":"IF('1. Order'!AZ1468=\"\",\"\",'1. Order'!AZ1468)","v":""},{"$f":"IF('1. Order'!BA1468=\"\",\"\",'1. Order'!BA1468)","v":""},{"$f":"IF('1. Order'!BB1468=\"\",\"\",'1. Order'!BB1468)","v":""},{"$f":"IF('1. Order'!BD1468=\"\",\"\",'1. Order'!BD1468)","v":""},{"$f":"IF('1. Order'!BE1468=\"\",\"\",'1. Order'!BE1468)","v":""},{"$f":"IF('1. Order'!BF1468=\"\",\"\",'1. Order'!BF1468)","v":""},{"$f":"IF('1. Order'!BG1468=\"\",\"\",'1. Order'!BG1468)","v":""},{"$f":"IF('1. Order'!BH1468=\"\",\"\",'1. Order'!BH1468)","v":"ZWO"}]
[{"$f":"IF('1. Order'!F1469=\"\",\"\",'1. Order'!F1469)","v":{"$error":"#N/A"}},{"$f":"IF('1. Order'!G1469=\"\",\"\",'1. Order'!G1469)","v":""},{"$f":"IF('1. Order'!H1469=\"\",\"\",'1. Order'!H1469)","v":""},{"$f":"IF('1. Order'!I1469=\"\",\"\",'1. Order'!I1469)","v":""},{"$f":"IF('1. Order'!J1469=\"\",\"\",'1. Order'!J1469)","v":""},{"$f":"IF('1. Order'!K1469=\"\",\"\",'1. Order'!K1469)","v":""},{"$f":"IF('1. Order'!L1469=\"\",\"\",'1. Order'!L1469)","v":""},{"$f":"IF('1. Order'!M1469=\"\",\"\",'1. Order'!M1469)","v":""},{"$f":"IF('1. Order'!N1469=\"\",\"\",'1. Order'!N1469)","v":""},{"$f":"IF('1. Order'!O1469=\"\",\"\",'1. Order'!O1469)","v":{"$error":"#N/A"}},{"$f":"IF('1. Order'!P1469=\"\",\"\",'1. Order'!P1469)","v":{"$error":"#N/A"}},{"$f":"IF('1. Order'!Q1469=\"\",\"\",'1. Order'!Q1469)","v":""},{"$f":"IF('1. Order'!S1469=\"\",\"\",'1. Order'!S1469)","v":""},{"$f":"IF('1. Order'!T1469=\"\",\"\",'1. Order'!T1469)","v":""},{"$f":"IF('1. Order'!W1469=\"\",\"\",'1. Order'!W1469)","v":""},{"$f":"IF('1. Order'!X1469=\"\",\"\",'1. Order'!X1469)","v":""},{"$f":"IF('1. Order'!Y1469=\"\",\"\",'1. Order'!Y1469)","v":"EUR"},{"$f":"IF('1. Order'!Z1469=\"\",\"\",'1. Order'!Z1469)","v":""},{"$f":"IF('1. Order'!AA1469=\"\",\"\",'1. Order'!AA1469)","v":""},{"$f":"IF('1. Order'!AB1469=\"\",\"\",'1. Order'!AB1469)","v":""},null,{"$f":"IF('1. Order'!AT1469=\"\",\"\",'1. Order'!AT1469)","v":""},{"$f":"IF('1. Order'!AU1469=\"\",\"\",'1. Order'!AU1469)","v":""},null,null,null,null,null,null,null,{"$f":"IF('1. Order'!AY1469=\"\",\"\",'1. Order'!AY1469)","v":""},{"$f":"IF('1. Order'!AZ1469=\"\",\"\",'1. Order'!AZ1469)","v":""},{"$f":"IF('1. Order'!BA1469=\"\",\"\",'1. Order'!BA1469)","v":""},{"$f":"IF('1. Order'!BB1469=\"\",\"\",'1. Order'!BB1469)","v":""},{"$f":"IF('1. Order'!BD1469=\"\",\"\",'1. Order'!BD1469)","v":""},{"$f":"IF('1. Order'!BE1469=\"\",\"\",'1. Order'!BE1469)","v":""},{"$f":"IF('1. Order'!BF1469=\"\",\"\",'1. Order'!BF1469)","v":""},{"$f":"IF('1. Order'!BG1469=\"\",\"\",'1. Order'!BG1469)","v":""},{"$f":"IF('1. Order'!BH1469=\"\",\"\",'1. Order'!BH1469)","v":"ZWO"}]
[{"$f":"IF('1. Order'!F1470=\"\",\"\",'1. Order'!F1470)","v":{"$error":"#N/A"}},{"$f":"IF('1. Order'!G1470=\"\",\"\",'1. Order'!G1470)","v":""},{"$f":"IF('1. Order'!H1470=\"\",\"\",'1. Order'!H1470)","v":""},{"$f":"IF('1. Order'!I1470=\"\",\"\",'1. Order'!I1470)","v":""},{"$f":"IF('1. Order'!J1470=\"\",\"\",'1. Order'!J1470)","v":""},{"$f":"IF('1. Order'!K1470=\"\",\"\",'1. Order'!K1470)","v":""},{"$f":"IF('1. Order'!L1470=\"\",\"\",'1. Order'!L1470)","v":""},{"$f":"IF('1. Order'!M1470=\"\",\"\",'1. Order'!M1470)","v":""},{"$f":"IF('1. Order'!N1470=\"\",\"\",'1. Order'!N1470)","v":""},{"$f":"IF('1. Order'!O1470=\"\",\"\",'1. Order'!O1470)","v":{"$error":"#N/A"}},{"$f":"IF('1. Order'!P1470=\"\",\"\",'1. Order'!P1470)","v":{"$error":"#N/A"}},{"$f":"IF('1. Order'!Q1470=\"\",\"\",'1. Order'!Q1470)","v":""},{"$f":"IF('1. Order'!S1470=\"\",\"\",'1. Order'!S1470)","v":""},{"$f":"IF('1. Order'!T1470=\"\",\"\",'1. Order'!T1470)","v":""},{"$f":"IF('1. Order'!W1470=\"\",\"\",'1. Order'!W1470)","v":""},{"$f":"IF('1. Order'!X1470=\"\",\"\",'1. Order'!X1470)","v":""},{"$f":"IF('1. Order'!Y1470=\"\",\"\",'1. Order'!Y1470)","v":"EUR"},{"$f":"IF('1. Order'!Z1470=\"\",\"\",'1. Order'!Z1470)","v":""},{"$f":"IF('1. Order'!AA1470=\"\",\"\",'1. Order'!AA1470)","v":""},{"$f":"IF('1. Order'!AB1470=\"\",\"\",'1. Order'!AB1470)","v":""},null,{"$f":"IF('1. Order'!AT1470=\"\",\"\",'1. Order'!AT1470)","v":""},{"$f":"IF('1. Order'!AU1470=\"\",\"\",'1. Order'!AU1470)","v":""},null,null,null,null,null,null,null,{"$f":"IF('1. Order'!AY1470=\"\",\"\",'1. Order'!AY1470)","v":""},{"$f":"IF('1. Order'!AZ1470=\"\",\"\",'1. Order'!AZ1470)","v":""},{"$f":"IF('1. Order'!BA1470=\"\",\"\",'1. Order'!BA1470)","v":""},{"$f":"IF('1. Order'!BB1470=\"\",\"\",'1. Order'!BB1470)","v":""},{"$f":"IF('1. Order'!BD1470=\"\",\"\",'1. Order'!BD1470)","v":""},{"$f":"IF('1. Order'!BE1470=\"\",\"\",'1. Order'!BE1470)","v":""},{"$f":"IF('1. Order'!BF1470=\"\",\"\",'1. Order'!BF1470)","v":""},{"$f":"IF('1. Order'!BG1470=\"\",\"\",'1. Order'!BG1470)","v":""},{"$f":"IF('1. Order'!BH1470=\"\",\"\",'1. Order'!BH1470)","v":"ZWO"}]
[{"$f":"IF('1. Order'!F1471=\"\",\"\",'1. Order'!F1471)","v":{"$error":"#N/A"}},{"$f":"IF('1. Order'!G1471=\"\",\"\",'1. Order'!G1471)","v":""},{"$f":"IF('1. Order'!H1471=\"\",\"\",'1. Order'!H1471)","v":""},{"$f":"IF('1. Order'!I1471=\"\",\"\",'1. Order'!I1471)","v":""},{"$f":"IF('1. Order'!J1471=\"\",\"\",'1. Order'!J1471)","v":""},{"$f":"IF('1. Order'!K1471=\"\",\"\",'1. Order'!K1471)","v":""},{"$f":"IF('1. Order'!L1471=\"\",\"\",'1. Order'!L1471)","v":""},{"$f":"IF('1. Order'!M1471=\"\",\"\",'1. Order'!M1471)","v":""},{"$f":"IF('1. Order'!N1471=\"\",\"\",'1. Order'!N1471)","v":""},{"$f":"IF('1. Order'!O1471=\"\",\"\",'1. Order'!O1471)","v":{"$error":"#N/A"}},{"$f":"IF('1. Order'!P1471=\"\",\"\",'1. Order'!P1471)","v":{"$error":"#N/A"}},{"$f":"IF('1. Order'!Q1471=\"\",\"\",'1. Order'!Q1471)","v":""},{"$f":"IF('1. Order'!S1471=\"\",\"\",'1. Order'!S1471)","v":""},{"$f":"IF('1. Order'!T1471=\"\",\"\",'1. Order'!T1471)","v":""},{"$f":"IF('1. Order'!W1471=\"\",\"\",'1. Order'!W1471)","v":""},{"$f":"IF('1. Order'!X1471=\"\",\"\",'1. Order'!X1471)","v":""},{"$f":"IF('1. Order'!Y1471=\"\",\"\",'1. Order'!Y1471)","v":"EUR"},{"$f":"IF('1. Order'!Z1471=\"\",\"\",'1. Order'!Z1471)","v":""},{"$f":"IF('1. Order'!AA1471=\"\",\"\",'1. Order'!AA1471)","v":""},{"$f":"IF('1. Order'!AB1471=\"\",\"\",'1. Order'!AB1471)","v":""},null,{"$f":"IF('1. Order'!AT1471=\"\",\"\",'1. Order'!AT1471)","v":""},{"$f":"IF('1. Order'!AU1471=\"\",\"\",'1. Order'!AU1471)","v":""},null,null,null,null,null,null,null,{"$f":"IF('1. Order'!AY1471=\"\",\"\",'1. Order'!AY1471)","v":""},{"$f":"IF('1. Order'!AZ1471=\"\",\"\",'1. Order'!AZ1471)","v":""},{"$f":"IF('1. Order'!BA1471=\"\",\"\",'1. Order'!BA1471)","v":""},{"$f":"IF('1. Order'!BB1471=\"\",\"\",'1. Order'!BB1471)","v":""},{"$f":"IF('1. Order'!BD1471=\"\",\"\",'1. Order'!BD1471)","v":""},{"$f":"IF('1. Order'!BE1471=\"\",\"\",'1. Order'!BE1471)","v":""},{"$f":"IF('1. Order'!BF1471=\"\",\"\",'1. Order'!BF1471)","v":""},{"$f":"IF('1. Order'!BG1471=\"\",\"\",'1. Order'!BG1471)","v":""},{"$f":"IF('1. Order'!BH1471=\"\",\"\",'1. Order'!BH1471)","v":"ZWO"}]
[{"$f":"IF('1. Order'!F1472=\"\",\"\",'1. Order'!F1472)","v":{"$error":"#N/A"}},{"$f":"IF('1. Order'!G1472=\"\",\"\",'1. Order'!G1472)","v":""},{"$f":"IF('1. Order'!H1472=\"\",\"\",'1. Order'!H1472)","v":""},{"$f":"IF('1. Order'!I1472=\"\",\"\",'1. Order'!I1472)","v":""},{"$f":"IF('1. Order'!J1472=\"\",\"\",'1. Order'!J1472)","v":""},{"$f":"IF('1. Order'!K1472=\"\",\"\",'1. Order'!K1472)","v":""},{"$f":"IF('1. Order'!L1472=\"\",\"\",'1. Order'!L1472)","v":""},{"$f":"IF('1. Order'!M1472=\"\",\"\",'1. Order'!M1472)","v":""},{"$f":"IF('1. Order'!N1472=\"\",\"\",'1. Order'!N1472)","v":""},{"$f":"IF('1. Order'!O1472=\"\",\"\",'1. Order'!O1472)","v":{"$error":"#N/A"}},{"$f":"IF('1. Order'!P1472=\"\",\"\",'1. Order'!P1472)","v":{"$error":"#N/A"}},{"$f":"IF('1. Order'!Q1472=\"\",\"\",'1. Order'!Q1472)","v":""},{"$f":"IF('1. Order'!S1472=\"\",\"\",'1. Order'!S1472)","v":""},{"$f":"IF('1. Order'!T1472=\"\",\"\",'1. Order'!T1472)","v":""},{"$f":"IF('1. Order'!W1472=\"\",\"\",'1. Order'!W1472)","v":""},{"$f":"IF('1. Order'!X1472=\"\",\"\",'1. Order'!X1472)","v":""},{"$f":"IF('1. Order'!Y1472=\"\",\"\",'1. Order'!Y1472)","v":"EUR"},{"$f":"IF('1. Order'!Z1472=\"\",\"\",'1. Order'!Z1472)","v":""},{"$f":"IF('1. Order'!AA1472=\"\",\"\",'1. Order'!AA1472)","v":""},{"$f":"IF('1. Order'!AB1472=\"\",\"\",'1. Order'!AB1472)","v":""},null,{"$f":"IF('1. Order'!AT1472=\"\",\"\",'1. Order'!AT1472)","v":""},{"$f":"IF('1. Order'!AU1472=\"\",\"\",'1. Order'!AU1472)","v":""},null,null,null,null,null,null,null,{"$f":"IF('1. Order'!AY1472=\"\",\"\",'1. Order'!AY1472)","v":""},{"$f":"IF('1. Order'!AZ1472=\"\",\"\",'1. Order'!AZ1472)","v":""},{"$f":"IF('1. Order'!BA1472=\"\",\"\",'1. Order'!BA1472)","v":""},{"$f":"IF('1. Order'!BB1472=\"\",\"\",'1. Order'!BB1472)","v":""},{"$f":"IF('1. Order'!BD1472=\"\",\"\",'1. Order'!BD1472)","v":""},{"$f":"IF('1. Order'!BE1472=\"\",\"\",'1. Order'!BE1472)","v":""},{"$f":"IF('1. Order'!BF1472=\"\",\"\",'1. Order'!BF1472)","v":""},{"$f":"IF('1. Order'!BG1472=\"\",\"\",'1. Order'!BG1472)","v":""},{"$f":"IF('1. Order'!BH1472=\"\",\"\",'1. Order'!BH1472)","v":"ZWO"}]
[{"$f":"IF('1. Order'!F1473=\"\",\"\",'1. Order'!F1473)","v":{"$error":"#N/A"}},{"$f":"IF('1. Order'!G1473=\"\",\"\",'1. Order'!G1473)","v":""},{"$f":"IF('1. Order'!H1473=\"\",\"\",'1. Order'!H1473)","v":""},{"$f":"IF('1. Order'!I1473=\"\",\"\",'1. Order'!I1473)","v":""},{"$f":"IF('1. Order'!J1473=\"\",\"\",'1. Order'!J1473)","v":""},{"$f":"IF('1. Order'!K1473=\"\",\"\",'1. Order'!K1473)","v":""},{"$f":"IF('1. Order'!L1473=\"\",\"\",'1. Order'!L1473)","v":""},{"$f":"IF('1. Order'!M1473=\"\",\"\",'1. Order'!M1473)","v":""},{"$f":"IF('1. Order'!N1473=\"\",\"\",'1. Order'!N1473)","v":""},{"$f":"IF('1. Order'!O1473=\"\",\"\",'1. Order'!O1473)","v":{"$error":"#N/A"}},{"$f":"IF('1. Order'!P1473=\"\",\"\",'1. Order'!P1473)","v":{"$error":"#N/A"}},{"$f":"IF('1. Order'!Q1473=\"\",\"\",'1. Order'!Q1473)","v":""},{"$f":"IF('1. Order'!S1473=\"\",\"\",'1. Order'!S1473)","v":""},{"$f":"IF('1. Order'!T1473=\"\",\"\",'1. Order'!T1473)","v":""},{"$f":"IF('1. Order'!W1473=\"\",\"\",'1. Order'!W1473)","v":""},{"$f":"IF('1. Order'!X1473=\"\",\"\",'1. Order'!X1473)","v":""},{"$f":"IF('1. Order'!Y1473=\"\",\"\",'1. Order'!Y1473)","v":"EUR"},{"$f":"IF('1. Order'!Z1473=\"\",\"\",'1. Order'!Z1473)","v":""},{"$f":"IF('1. Order'!AA1473=\"\",\"\",'1. Order'!AA1473)","v":""},{"$f":"IF('1. Order'!AB1473=\"\",\"\",'1. Order'!AB1473)","v":""},null,{"$f":"IF('1. Order'!AT1473=\"\",\"\",'1. Order'!AT1473)","v":""},{"$f":"IF('1. Order'!AU1473=\"\",\"\",'1. Order'!AU1473)","v":""},null,null,null,null,null,null,null,{"$f":"IF('1. Order'!AY1473=\"\",\"\",'1. Order'!AY1473)","v":""},{"$f":"IF('1. Order'!AZ1473=\"\",\"\",'1. Order'!AZ1473)","v":""},{"$f":"IF('1. Order'!BA1473=\"\",\"\",'1. Order'!BA1473)","v":""},{"$f":"IF('1. Order'!BB1473=\"\",\"\",'1. Order'!BB1473)","v":""},{"$f":"IF('1. Order'!BD1473=\"\",\"\",'1. Order'!BD1473)","v":""},{"$f":"IF('1. Order'!BE1473=\"\",\"\",'1. Order'!BE1473)","v":""},{"$f":"IF('1. Order'!BF1473=\"\",\"\",'1. Order'!BF1473)","v":""},{"$f":"IF('1. Order'!BG1473=\"\",\"\",'1. Order'!BG1473)","v":""},{"$f":"IF('1. Order'!BH1473=\"\",\"\",'1. Order'!BH1473)","v":"ZWO"}]
[{"$f":"IF('1. Order'!F1474=\"\",\"\",'1. Order'!F1474)","v":{"$error":"#N/A"}},{"$f":"IF('1. Order'!G1474=\"\",\"\",'1. Order'!G1474)","v":""},{"$f":"IF('1. Order'!H1474=\"\",\"\",'1. Order'!H1474)","v":""},{"$f":"IF('1. Order'!I1474=\"\",\"\",'1. Order'!I1474)","v":""},{"$f":"IF('1. Order'!J1474=\"\",\"\",'1. Order'!J1474)","v":""},{"$f":"IF('1. Order'!K1474=\"\",\"\",'1. Order'!K1474)","v":""},{"$f":"IF('1. Order'!L1474=\"\",\"\",'1. Order'!L1474)","v":""},{"$f":"IF('1. Order'!M1474=\"\",\"\",'1. Order'!M1474)","v":""},{"$f":"IF('1. Order'!N1474=\"\",\"\",'1. Order'!N1474)","v":""},{"$f":"IF('1. Order'!O1474=\"\",\"\",'1. Order'!O1474)","v":{"$error":"#N/A"}},{"$f":"IF('1. Order'!P1474=\"\",\"\",'1. Order'!P1474)","v":{"$error":"#N/A"}},{"$f":"IF('1. Order'!Q1474=\"\",\"\",'1. Order'!Q1474)","v":""},{"$f":"IF('1. Order'!S1474=\"\",\"\",'1. Order'!S1474)","v":""},{"$f":"IF('1. Order'!T1474=\"\",\"\",'1. Order'!T1474)","v":""},{"$f":"IF('1. Order'!W1474=\"\",\"\",'1. Order'!W1474)","v":""},{"$f":"IF('1. Order'!X1474=\"\",\"\",'1. Order'!X1474)","v":""},{"$f":"IF('1. Order'!Y1474=\"\",\"\",'1. Order'!Y1474)","v":"EUR"},{"$f":"IF('1. Order'!Z1474=\"\",\"\",'1. Order'!Z1474)","v":""},{"$f":"IF('1. Order'!AA1474=\"\",\"\",'1. Order'!AA1474)","v":""},{"$f":"IF('1. Order'!AB1474=\"\",\"\",'1. Order'!AB1474)","v":""},null,{"$f":"IF('1. Order'!AT1474=\"\",\"\",'1. Order'!AT1474)","v":""},{"$f":"IF('1. Order'!AU1474=\"\",\"\",'1. Order'!AU1474)","v":""},null,null,null,null,null,null,null,{"$f":"IF('1. Order'!AY1474=\"\",\"\",'1. Order'!AY1474)","v":""},{"$f":"IF('1. Order'!AZ1474=\"\",\"\",'1. Order'!AZ1474)","v":""},{"$f":"IF('1. Order'!BA1474=\"\",\"\",'1. Order'!BA1474)","v":""},{"$f":"IF('1. Order'!BB1474=\"\",\"\",'1. Order'!BB1474)","v":""},{"$f":"IF('1. Order'!BD1474=\"\",\"\",'1. Order'!BD1474)","v":""},{"$f":"IF('1. Order'!BE1474=\"\",\"\",'1. Order'!BE1474)","v":""},{"$f":"IF('1. Order'!BF1474=\"\",\"\",'1. Order'!BF1474)","v":""},{"$f":"IF('1. Order'!BG1474=\"\",\"\",'1. Order'!BG1474)","v":""},{"$f":"IF('1. Order'!BH1474=\"\",\"\",'1. Order'!BH1474)","v":"ZWO"}]
[{"$f":"IF('1. Order'!F1475=\"\",\"\",'1. Order'!F1475)","v":{"$error":"#N/A"}},{"$f":"IF('1. Order'!G1475=\"\",\"\",'1. Order'!G1475)","v":""},{"$f":"IF('1. Order'!H1475=\"\",\"\",'1. Order'!H1475)","v":""},{"$f":"IF('1. Order'!I1475=\"\",\"\",'1. Order'!I1475)","v":""},{"$f":"IF('1. Order'!J1475=\"\",\"\",'1. Order'!J1475)","v":""},{"$f":"IF('1. Order'!K1475=\"\",\"\",'1. Order'!K1475)","v":""},{"$f":"IF('1. Order'!L1475=\"\",\"\",'1. Order'!L1475)","v":""},{"$f":"IF('1. Order'!M1475=\"\",\"\",'1. Order'!M1475)","v":""},{"$f":"IF('1. Order'!N1475=\"\",\"\",'1. Order'!N1475)","v":""},{"$f":"IF('1. Order'!O1475=\"\",\"\",'1. Order'!O1475)","v":{"$error":"#N/A"}},{"$f":"IF('1. Order'!P1475=\"\",\"\",'1. Order'!P1475)","v":{"$error":"#N/A"}},{"$f":"IF('1. Order'!Q1475=\"\",\"\",'1. Order'!Q1475)","v":""},{"$f":"IF('1. Order'!S1475=\"\",\"\",'1. Order'!S1475)","v":""},{"$f":"IF('1. Order'!T1475=\"\",\"\",'1. Order'!T1475)","v":""},{"$f":"IF('1. Order'!W1475=\"\",\"\",'1. Order'!W1475)","v":""},{"$f":"IF('1. Order'!X1475=\"\",\"\",'1. Order'!X1475)","v":""},{"$f":"IF('1. Order'!Y1475=\"\",\"\",'1. Order'!Y1475)","v":"EUR"},{"$f":"IF('1. Order'!Z1475=\"\",\"\",'1. Order'!Z1475)","v":""},{"$f":"IF('1. Order'!AA1475=\"\",\"\",'1. Order'!AA1475)","v":""},{"$f":"IF('1. Order'!AB1475=\"\",\"\",'1. Order'!AB1475)","v":""},null,{"$f":"IF('1. Order'!AT1475=\"\",\"\",'1. Order'!AT1475)","v":""},{"$f":"IF('1. Order'!AU1475=\"\",\"\",'1. Order'!AU1475)","v":""},null,null,null,null,null,null,null,{"$f":"IF('1. Order'!AY1475=\"\",\"\",'1. Order'!AY1475)","v":""},{"$f":"IF('1. Order'!AZ1475=\"\",\"\",'1. Order'!AZ1475)","v":""},{"$f":"IF('1. Order'!BA1475=\"\",\"\",'1. Order'!BA1475)","v":""},{"$f":"IF('1. Order'!BB1475=\"\",\"\",'1. Order'!BB1475)","v":""},{"$f":"IF('1. Order'!BD1475=\"\",\"\",'1. Order'!BD1475)","v":""},{"$f":"IF('1. Order'!BE1475=\"\",\"\",'1. Order'!BE1475)","v":""},{"$f":"IF('1. Order'!BF1475=\"\",\"\",'1. Order'!BF1475)","v":""},{"$f":"IF('1. Order'!BG1475=\"\",\"\",'1. Order'!BG1475)","v":""},{"$f":"IF('1. Order'!BH1475=\"\",\"\",'1. Order'!BH1475)","v":"ZWO"}]
[{"$f":"IF('1. Order'!F1476=\"\",\"\",'1. Order'!F1476)","v":{"$error":"#N/A"}},{"$f":"IF('1. Order'!G1476=\"\",\"\",'1. Order'!G1476)","v":""},{"$f":"IF('1. Order'!H1476=\"\",\"\",'1. Order'!H1476)","v":""},{"$f":"IF('1. Order'!I1476=\"\",\"\",'1. Order'!I1476)","v":""},{"$f":"IF('1. Order'!J1476=\"\",\"\",'1. Order'!J1476)","v":""},{"$f":"IF('1. Order'!K1476=\"\",\"\",'1. Order'!K1476)","v":""},{"$f":"IF('1. Order'!L1476=\"\",\"\",'1. Order'!L1476)","v":""},{"$f":"IF('1. Order'!M1476=\"\",\"\",'1. Order'!M1476)","v":""},{"$f":"IF('1. Order'!N1476=\"\",\"\",'1. Order'!N1476)","v":""},{"$f":"IF('1. Order'!O1476=\"\",\"\",'1. Order'!O1476)","v":{"$error":"#N/A"}},{"$f":"IF('1. Order'!P1476=\"\",\"\",'1. Order'!P1476)","v":{"$error":"#N/A"}},{"$f":"IF('1. Order'!Q1476=\"\",\"\",'1. Order'!Q1476)","v":""},{"$f":"IF('1. Order'!S1476=\"\",\"\",'1. Order'!S1476)","v":""},{"$f":"IF('1. Order'!T1476=\"\",\"\",'1. Order'!T1476)","v":""},{"$f":"IF('1. Order'!W1476=\"\",\"\",'1. Order'!W1476)","v":""},{"$f":"IF('1. Order'!X1476=\"\",\"\",'1. Order'!X1476)","v":""},{"$f":"IF('1. Order'!Y1476=\"\",\"\",'1. Order'!Y1476)","v":"EUR"},{"$f":"IF('1. Order'!Z1476=\"\",\"\",'1. Order'!Z1476)","v":""},{"$f":"IF('1. Order'!AA1476=\"\",\"\",'1. Order'!AA1476)","v":""},{"$f":"IF('1. Order'!AB1476=\"\",\"\",'1. Order'!AB1476)","v":""},null,{"$f":"IF('1. Order'!AT1476=\"\",\"\",'1. Order'!AT1476)","v":""},{"$f":"IF('1. Order'!AU1476=\"\",\"\",'1. Order'!AU1476)","v":""},null,null,null,null,null,null,null,{"$f":"IF('1. Order'!AY1476=\"\",\"\",'1. Order'!AY1476)","v":""},{"$f":"IF('1. Order'!AZ1476=\"\",\"\",'1. Order'!AZ1476)","v":""},{"$f":"IF('1. Order'!BA1476=\"\",\"\",'1. Order'!BA1476)","v":""},{"$f":"IF('1. Order'!BB1476=\"\",\"\",'1. Order'!BB1476)","v":""},{"$f":"IF('1. Order'!BD1476=\"\",\"\",'1. Order'!BD1476)","v":""},{"$f":"IF('1. Order'!BE1476=\"\",\"\",'1. Order'!BE1476)","v":""},{"$f":"IF('1. Order'!BF1476=\"\",\"\",'1. Order'!BF1476)","v":""},{"$f":"IF('1. Order'!BG1476=\"\",\"\",'1. Order'!BG1476)","v":""},{"$f":"IF('1. Order'!BH1476=\"\",\"\",'1. Order'!BH1476)","v":"ZWO"}]
[{"$f":"IF('1. Order'!F1477=\"\",\"\",'1. Order'!F1477)","v":{"$error":"#N/A"}},{"$f":"IF('1. Order'!G1477=\"\",\"\",'1. Order'!G1477)","v":""},{"$f":"IF('1. Order'!H1477=\"\",\"\",'1. Order'!H1477)","v":""},{"$f":"IF('1. Order'!I1477=\"\",\"\",'1. Order'!I1477)","v":""},{"$f":"IF('1. Order'!J1477=\"\",\"\",'1. Order'!J1477)","v":""},{"$f":"IF('1. Order'!K1477=\"\",\"\",'1. Order'!K1477)","v":""},{"$f":"IF('1. Order'!L1477=\"\",\"\",'1. Order'!L1477)","v":""},{"$f":"IF('1. Order'!M1477=\"\",\"\",'1. Order'!M1477)","v":""},{"$f":"IF('1. Order'!N1477=\"\",\"\",'1. Order'!N1477)","v":""},{"$f":"IF('1. Order'!O1477=\"\",\"\",'1. Order'!O1477)","v":{"$error":"#N/A"}},{"$f":"IF('1. Order'!P1477=\"\",\"\",'1. Order'!P1477)","v":{"$error":"#N/A"}},{"$f":"IF('1. Order'!Q1477=\"\",\"\",'1. Order'!Q1477)","v":""},{"$f":"IF('1. Order'!S1477=\"\",\"\",'1. Order'!S1477)","v":""},{"$f":"IF('1. Order'!T1477=\"\",\"\",'1. Order'!T1477)","v":""},{"$f":"IF('1. Order'!W1477=\"\",\"\",'1. Order'!W1477)","v":""},{"$f":"IF('1. Order'!X1477=\"\",\"\",'1. Order'!X1477)","v":""},{"$f":"IF('1. Order'!Y1477=\"\",\"\",'1. Order'!Y1477)","v":"EUR"},{"$f":"IF('1. Order'!Z1477=\"\",\"\",'1. Order'!Z1477)","v":""},{"$f":"IF('1. Order'!AA1477=\"\",\"\",'1. Order'!AA1477)","v":""},{"$f":"IF('1. Order'!AB1477=\"\",\"\",'1. Order'!AB1477)","v":""},null,{"$f":"IF('1. Order'!AT1477=\"\",\"\",'1. Order'!AT1477)","v":""},{"$f":"IF('1. Order'!AU1477=\"\",\"\",'1. Order'!AU1477)","v":""},null,null,null,null,null,null,null,{"$f":"IF('1. Order'!AY1477=\"\",\"\",'1. Order'!AY1477)","v":""},{"$f":"IF('1. Order'!AZ1477=\"\",\"\",'1. Order'!AZ1477)","v":""},{"$f":"IF('1. Order'!BA1477=\"\",\"\",'1. Order'!BA1477)","v":""},{"$f":"IF('1. Order'!BB1477=\"\",\"\",'1. Order'!BB1477)","v":""},{"$f":"IF('1. Order'!BD1477=\"\",\"\",'1. Order'!BD1477)","v":""},{"$f":"IF('1. Order'!BE1477=\"\",\"\",'1. Order'!BE1477)","v":""},{"$f":"IF('1. Order'!BF1477=\"\",\"\",'1. Order'!BF1477)","v":""},{"$f":"IF('1. Order'!BG1477=\"\",\"\",'1. Order'!BG1477)","v":""},{"$f":"IF('1. Order'!BH1477=\"\",\"\",'1. Order'!BH1477)","v":"ZWO"}]
[{"$f":"IF('1. Order'!F1478=\"\",\"\",'1. Order'!F1478)","v":{"$error":"#N/A"}},{"$f":"IF('1. Order'!G1478=\"\",\"\",'1. Order'!G1478)","v":""},{"$f":"IF('1. Order'!H1478=\"\",\"\",'1. Order'!H1478)","v":""},{"$f":"IF('1. Order'!I1478=\"\",\"\",'1. Order'!I1478)","v":""},{"$f":"IF('1. Order'!J1478=\"\",\"\",'1. Order'!J1478)","v":""},{"$f":"IF('1. Order'!K1478=\"\",\"\",'1. Order'!K1478)","v":""},{"$f":"IF('1. Order'!L1478=\"\",\"\",'1. Order'!L1478)","v":""},{"$f":"IF('1. Order'!M1478=\"\",\"\",'1. Order'!M1478)","v":""},{"$f":"IF('1. Order'!N1478=\"\",\"\",'1. Order'!N1478)","v":""},{"$f":"IF('1. Order'!O1478=\"\",\"\",'1. Order'!O1478)","v":{"$error":"#N/A"}},{"$f":"IF('1. Order'!P1478=\"\",\"\",'1. Order'!P1478)","v":{"$error":"#N/A"}},{"$f":"IF('1. Order'!Q1478=\"\",\"\",'1. Order'!Q1478)","v":""},{"$f":"IF('1. Order'!S1478=\"\",\"\",'1. Order'!S1478)","v":""},{"$f":"IF('1. Order'!T1478=\"\",\"\",'1. Order'!T1478)","v":""},{"$f":"IF('1. Order'!W1478=\"\",\"\",'1. Order'!W1478)","v":""},{"$f":"IF('1. Order'!X1478=\"\",\"\",'1. Order'!X1478)","v":""},{"$f":"IF('1. Order'!Y1478=\"\",\"\",'1. Order'!Y1478)","v":"EUR"},{"$f":"IF('1. Order'!Z1478=\"\",\"\",'1. Order'!Z1478)","v":""},{"$f":"IF('1. Order'!AA1478=\"\",\"\",'1. Order'!AA1478)","v":""},{"$f":"IF('1. Order'!AB1478=\"\",\"\",'1. Order'!AB1478)","v":""},null,{"$f":"IF('1. Order'!AT1478=\"\",\"\",'1. Order'!AT1478)","v":""},{"$f":"IF('1. Order'!AU1478=\"\",\"\",'1. Order'!AU1478)","v":""},null,null,null,null,null,null,null,{"$f":"IF('1. Order'!AY1478=\"\",\"\",'1. Order'!AY1478)","v":""},{"$f":"IF('1. Order'!AZ1478=\"\",\"\",'1. Order'!AZ1478)","v":""},{"$f":"IF('1. Order'!BA1478=\"\",\"\",'1. Order'!BA1478)","v":""},{"$f":"IF('1. Order'!BB1478=\"\",\"\",'1. Order'!BB1478)","v":""},{"$f":"IF('1. Order'!BD1478=\"\",\"\",'1. Order'!BD1478)","v":""},{"$f":"IF('1. Order'!BE1478=\"\",\"\",'1. Order'!BE1478)","v":""},{"$f":"IF('1. Order'!BF1478=\"\",\"\",'1. Order'!BF1478)","v":""},{"$f":"IF('1. Order'!BG1478=\"\",\"\",'1. Order'!BG1478)","v":""},{"$f":"IF('1. Order'!BH1478=\"\",\"\",'1. Order'!BH1478)","v":"ZWO"}]
[{"$f":"IF('1. Order'!F1479=\"\",\"\",'1. Order'!F1479)","v":{"$error":"#N/A"}},{"$f":"IF('1. Order'!G1479=\"\",\"\",'1. Order'!G1479)","v":""},{"$f":"IF('1. Order'!H1479=\"\",\"\",'1. Order'!H1479)","v":""},{"$f":"IF('1. Order'!I1479=\"\",\"\",'1. Order'!I1479)","v":""},{"$f":"IF('1. Order'!J1479=\"\",\"\",'1. Order'!J1479)","v":""},{"$f":"IF('1. Order'!K1479=\"\",\"\",'1. Order'!K1479)","v":""},{"$f":"IF('1. Order'!L1479=\"\",\"\",'1. Order'!L1479)","v":""},{"$f":"IF('1. Order'!M1479=\"\",\"\",'1. Order'!M1479)","v":""},{"$f":"IF('1. Order'!N1479=\"\",\"\",'1. Order'!N1479)","v":""},{"$f":"IF('1. Order'!O1479=\"\",\"\",'1. Order'!O1479)","v":{"$error":"#N/A"}},{"$f":"IF('1. Order'!P1479=\"\",\"\",'1. Order'!P1479)","v":{"$error":"#N/A"}},{"$f":"IF('1. Order'!Q1479=\"\",\"\",'1. Order'!Q1479)","v":""},{"$f":"IF('1. Order'!S1479=\"\",\"\",'1. Order'!S1479)","v":""},{"$f":"IF('1. Order'!T1479=\"\",\"\",'1. Order'!T1479)","v":""},{"$f":"IF('1. Order'!W1479=\"\",\"\",'1. Order'!W1479)","v":""},{"$f":"IF('1. Order'!X1479=\"\",\"\",'1. Order'!X1479)","v":""},{"$f":"IF('1. Order'!Y1479=\"\",\"\",'1. Order'!Y1479)","v":"EUR"},{"$f":"IF('1. Order'!Z1479=\"\",\"\",'1. Order'!Z1479)","v":""},{"$f":"IF('1. Order'!AA1479=\"\",\"\",'1. Order'!AA1479)","v":""},{"$f":"IF('1. Order'!AB1479=\"\",\"\",'1. Order'!AB1479)","v":""},null,{"$f":"IF('1. Order'!AT1479=\"\",\"\",'1. Order'!AT1479)","v":""},{"$f":"IF('1. Order'!AU1479=\"\",\"\",'1. Order'!AU1479)","v":""},null,null,null,null,null,null,null,{"$f":"IF('1. Order'!AY1479=\"\",\"\",'1. Order'!AY1479)","v":""},{"$f":"IF('1. Order'!AZ1479=\"\",\"\",'1. Order'!AZ1479)","v":""},{"$f":"IF('1. Order'!BA1479=\"\",\"\",'1. Order'!BA1479)","v":""},{"$f":"IF('1. Order'!BB1479=\"\",\"\",'1. Order'!BB1479)","v":""},{"$f":"IF('1. Order'!BD1479=\"\",\"\",'1. Order'!BD1479)","v":""},{"$f":"IF('1. Order'!BE1479=\"\",\"\",'1. Order'!BE1479)","v":""},{"$f":"IF('1. Order'!BF1479=\"\",\"\",'1. Order'!BF1479)","v":""},{"$f":"IF('1. Order'!BG1479=\"\",\"\",'1. Order'!BG1479)","v":""},{"$f":"IF('1. Order'!BH1479=\"\",\"\",'1. Order'!BH1479)","v":"ZWO"}]
[{"$f":"IF('1. Order'!F1480=\"\",\"\",'1. Order'!F1480)","v":{"$error":"#N/A"}},{"$f":"IF('1. Order'!G1480=\"\",\"\",'1. Order'!G1480)","v":""},{"$f":"IF('1. Order'!H1480=\"\",\"\",'1. Order'!H1480)","v":""},{"$f":"IF('1. Order'!I1480=\"\",\"\",'1. Order'!I1480)","v":""},{"$f":"IF('1. Order'!J1480=\"\",\"\",'1. Order'!J1480)","v":""},{"$f":"IF('1. Order'!K1480=\"\",\"\",'1. Order'!K1480)","v":""},{"$f":"IF('1. Order'!L1480=\"\",\"\",'1. Order'!L1480)","v":""},{"$f":"IF('1. Order'!M1480=\"\",\"\",'1. Order'!M1480)","v":""},{"$f":"IF('1. Order'!N1480=\"\",\"\",'1. Order'!N1480)","v":""},{"$f":"IF('1. Order'!O1480=\"\",\"\",'1. Order'!O1480)","v":{"$error":"#N/A"}},{"$f":"IF('1. Order'!P1480=\"\",\"\",'1. Order'!P1480)","v":{"$error":"#N/A"}},{"$f":"IF('1. Order'!Q1480=\"\",\"\",'1. Order'!Q1480)","v":""},{"$f":"IF('1. Order'!S1480=\"\",\"\",'1. Order'!S1480)","v":""},{"$f":"IF('1. Order'!T1480=\"\",\"\",'1. Order'!T1480)","v":""},{"$f":"IF('1. Order'!W1480=\"\",\"\",'1. Order'!W1480)","v":""},{"$f":"IF('1. Order'!X1480=\"\",\"\",'1. Order'!X1480)","v":""},{"$f":"IF('1. Order'!Y1480=\"\",\"\",'1. Order'!Y1480)","v":"EUR"},{"$f":"IF('1. Order'!Z1480=\"\",\"\",'1. Order'!Z1480)","v":""},{"$f":"IF('1. Order'!AA1480=\"\",\"\",'1. Order'!AA1480)","v":""},{"$f":"IF('1. Order'!AB1480=\"\",\"\",'1. Order'!AB1480)","v":""},null,{"$f":"IF('1. Order'!AT1480=\"\",\"\",'1. Order'!AT1480)","v":""},{"$f":"IF('1. Order'!AU1480=\"\",\"\",'1. Order'!AU1480)","v":""},null,null,null,null,null,null,null,{"$f":"IF('1. Order'!AY1480=\"\",\"\",'1. Order'!AY1480)","v":""},{"$f":"IF('1. Order'!AZ1480=\"\",\"\",'1. Order'!AZ1480)","v":""},{"$f":"IF('1. Order'!BA1480=\"\",\"\",'1. Order'!BA1480)","v":""},{"$f":"IF('1. Order'!BB1480=\"\",\"\",'1. Order'!BB1480)","v":""},{"$f":"IF('1. Order'!BD1480=\"\",\"\",'1. Order'!BD1480)","v":""},{"$f":"IF('1. Order'!BE1480=\"\",\"\",'1. Order'!BE1480)","v":""},{"$f":"IF('1. Order'!BF1480=\"\",\"\",'1. Order'!BF1480)","v":""},{"$f":"IF('1. Order'!BG1480=\"\",\"\",'1. Order'!BG1480)","v":""},{"$f":"IF('1. Order'!BH1480=\"\",\"\",'1. Order'!BH1480)","v":"ZWO"}]
[{"$f":"IF('1. Order'!F1481=\"\",\"\",'1. Order'!F1481)","v":{"$error":"#N/A"}},{"$f":"IF('1. Order'!G1481=\"\",\"\",'1. Order'!G1481)","v":""},{"$f":"IF('1. Order'!H1481=\"\",\"\",'1. Order'!H1481)","v":""},{"$f":"IF('1. Order'!I1481=\"\",\"\",'1. Order'!I1481)","v":""},{"$f":"IF('1. Order'!J1481=\"\",\"\",'1. Order'!J1481)","v":""},{"$f":"IF('1. Order'!K1481=\"\",\"\",'1. Order'!K1481)","v":""},{"$f":"IF('1. Order'!L1481=\"\",\"\",'1. Order'!L1481)","v":""},{"$f":"IF('1. Order'!M1481=\"\",\"\",'1. Order'!M1481)","v":""},{"$f":"IF('1. Order'!N1481=\"\",\"\",'1. Order'!N1481)","v":""},{"$f":"IF('1. Order'!O1481=\"\",\"\",'1. Order'!O1481)","v":{"$error":"#N/A"}},{"$f":"IF('1. Order'!P1481=\"\",\"\",'1. Order'!P1481)","v":{"$error":"#N/A"}},{"$f":"IF('1. Order'!Q1481=\"\",\"\",'1. Order'!Q1481)","v":""},{"$f":"IF('1. Order'!S1481=\"\",\"\",'1. Order'!S1481)","v":""},{"$f":"IF('1. Order'!T1481=\"\",\"\",'1. Order'!T1481)","v":""},{"$f":"IF('1. Order'!W1481=\"\",\"\",'1. Order'!W1481)","v":""},{"$f":"IF('1. Order'!X1481=\"\",\"\",'1. Order'!X1481)","v":""},{"$f":"IF('1. Order'!Y1481=\"\",\"\",'1. Order'!Y1481)","v":"EUR"},{"$f":"IF('1. Order'!Z1481=\"\",\"\",'1. Order'!Z1481)","v":""},{"$f":"IF('1. Order'!AA1481=\"\",\"\",'1. Order'!AA1481)","v":""},{"$f":"IF('1. Order'!AB1481=\"\",\"\",'1. Order'!AB1481)","v":""},null,{"$f":"IF('1. Order'!AT1481=\"\",\"\",'1. Order'!AT1481)","v":""},{"$f":"IF('1. Order'!AU1481=\"\",\"\",'1. Order'!AU1481)","v":""},null,null,null,null,null,null,null,{"$f":"IF('1. Order'!AY1481=\"\",\"\",'1. Order'!AY1481)","v":""},{"$f":"IF('1. Order'!AZ1481=\"\",\"\",'1. Order'!AZ1481)","v":""},{"$f":"IF('1. Order'!BA1481=\"\",\"\",'1. Order'!BA1481)","v":""},{"$f":"IF('1. Order'!BB1481=\"\",\"\",'1. Order'!BB1481)","v":""},{"$f":"IF('1. Order'!BD1481=\"\",\"\",'1. Order'!BD1481)","v":""},{"$f":"IF('1. Order'!BE1481=\"\",\"\",'1. Order'!BE1481)","v":""},{"$f":"IF('1. Order'!BF1481=\"\",\"\",'1. Order'!BF1481)","v":""},{"$f":"IF('1. Order'!BG1481=\"\",\"\",'1. Order'!BG1481)","v":""},{"$f":"IF('1. Order'!BH1481=\"\",\"\",'1. Order'!BH1481)","v":"ZWO"}]
[{"$f":"IF('1. Order'!F1482=\"\",\"\",'1. Order'!F1482)","v":{"$error":"#N/A"}},{"$f":"IF('1. Order'!G1482=\"\",\"\",'1. Order'!G1482)","v":""},{"$f":"IF('1. Order'!H1482=\"\",\"\",'1. Order'!H1482)","v":""},{"$f":"IF('1. Order'!I1482=\"\",\"\",'1. Order'!I1482)","v":""},{"$f":"IF('1. Order'!J1482=\"\",\"\",'1. Order'!J1482)","v":""},{"$f":"IF('1. Order'!K1482=\"\",\"\",'1. Order'!K1482)","v":""},{"$f":"IF('1. Order'!L1482=\"\",\"\",'1. Order'!L1482)","v":""},{"$f":"IF('1. Order'!M1482=\"\",\"\",'1. Order'!M1482)","v":""},{"$f":"IF('1. Order'!N1482=\"\",\"\",'1. Order'!N1482)","v":""},{"$f":"IF('1. Order'!O1482=\"\",\"\",'1. Order'!O1482)","v":{"$error":"#N/A"}},{"$f":"IF('1. Order'!P1482=\"\",\"\",'1. Order'!P1482)","v":{"$error":"#N/A"}},{"$f":"IF('1. Order'!Q1482=\"\",\"\",'1. Order'!Q1482)","v":""},{"$f":"IF('1. Order'!S1482=\"\",\"\",'1. Order'!S1482)","v":""},{"$f":"IF('1. Order'!T1482=\"\",\"\",'1. Order'!T1482)","v":""},{"$f":"IF('1. Order'!W1482=\"\",\"\",'1. Order'!W1482)","v":""},{"$f":"IF('1. Order'!X1482=\"\",\"\",'1. Order'!X1482)","v":""},{"$f":"IF('1. Order'!Y1482=\"\",\"\",'1. Order'!Y1482)","v":"EUR"},{"$f":"IF('1. Order'!Z1482=\"\",\"\",'1. Order'!Z1482)","v":""},{"$f":"IF('1. Order'!AA1482=\"\",\"\",'1. Order'!AA1482)","v":""},{"$f":"IF('1. Order'!AB1482=\"\",\"\",'1. Order'!AB1482)","v":""},null,{"$f":"IF('1. Order'!AT1482=\"\",\"\",'1. Order'!AT1482)","v":""},{"$f":"IF('1. Order'!AU1482=\"\",\"\",'1. Order'!AU1482)","v":""},null,null,null,null,null,null,null,{"$f":"IF('1. Order'!AY1482=\"\",\"\",'1. Order'!AY1482)","v":""},{"$f":"IF('1. Order'!AZ1482=\"\",\"\",'1. Order'!AZ1482)","v":""},{"$f":"IF('1. Order'!BA1482=\"\",\"\",'1. Order'!BA1482)","v":""},{"$f":"IF('1. Order'!BB1482=\"\",\"\",'1. Order'!BB1482)","v":""},{"$f":"IF('1. Order'!BD1482=\"\",\"\",'1. Order'!BD1482)","v":""},{"$f":"IF('1. Order'!BE1482=\"\",\"\",'1. Order'!BE1482)","v":""},{"$f":"IF('1. Order'!BF1482=\"\",\"\",'1. Order'!BF1482)","v":""},{"$f":"IF('1. Order'!BG1482=\"\",\"\",'1. Order'!BG1482)","v":""},{"$f":"IF('1. Order'!BH1482=\"\",\"\",'1. Order'!BH1482)","v":"ZWO"}]
[{"$f":"IF('1. Order'!F1483=\"\",\"\",'1. Order'!F1483)","v":{"$error":"#N/A"}},{"$f":"IF('1. Order'!G1483=\"\",\"\",'1. Order'!G1483)","v":""},{"$f":"IF('1. Order'!H1483=\"\",\"\",'1. Order'!H1483)","v":""},{"$f":"IF('1. Order'!I1483=\"\",\"\",'1. Order'!I1483)","v":""},{"$f":"IF('1. Order'!J1483=\"\",\"\",'1. Order'!J1483)","v":""},{"$f":"IF('1. Order'!K1483=\"\",\"\",'1. Order'!K1483)","v":""},{"$f":"IF('1. Order'!L1483=\"\",\"\",'1. Order'!L1483)","v":""},{"$f":"IF('1. Order'!M1483=\"\",\"\",'1. Order'!M1483)","v":""},{"$f":"IF('1. Order'!N1483=\"\",\"\",'1. Order'!N1483)","v":""},{"$f":"IF('1. Order'!O1483=\"\",\"\",'1. Order'!O1483)","v":{"$error":"#N/A"}},{"$f":"IF('1. Order'!P1483=\"\",\"\",'1. Order'!P1483)","v":{"$error":"#N/A"}},{"$f":"IF('1. Order'!Q1483=\"\",\"\",'1. Order'!Q1483)","v":""},{"$f":"IF('1. Order'!S1483=\"\",\"\",'1. Order'!S1483)","v":""},{"$f":"IF('1. Order'!T1483=\"\",\"\",'1. Order'!T1483)","v":""},{"$f":"IF('1. Order'!W1483=\"\",\"\",'1. Order'!W1483)","v":""},{"$f":"IF('1. Order'!X1483=\"\",\"\",'1. Order'!X1483)","v":""},{"$f":"IF('1. Order'!Y1483=\"\",\"\",'1. Order'!Y1483)","v":"EUR"},{"$f":"IF('1. Order'!Z1483=\"\",\"\",'1. Order'!Z1483)","v":""},{"$f":"IF('1. Order'!AA1483=\"\",\"\",'1. Order'!AA1483)","v":""},{"$f":"IF('1. Order'!AB1483=\"\",\"\",'1. Order'!AB1483)","v":""},null,{"$f":"IF('1. Order'!AT1483=\"\",\"\",'1. Order'!AT1483)","v":""},{"$f":"IF('1. Order'!AU1483=\"\",\"\",'1. Order'!AU1483)","v":""},null,null,null,null,null,null,null,{"$f":"IF('1. Order'!AY1483=\"\",\"\",'1. Order'!AY1483)","v":""},{"$f":"IF('1. Order'!AZ1483=\"\",\"\",'1. Order'!AZ1483)","v":""},{"$f":"IF('1. Order'!BA1483=\"\",\"\",'1. Order'!BA1483)","v":""},{"$f":"IF('1. Order'!BB1483=\"\",\"\",'1. Order'!BB1483)","v":""},{"$f":"IF('1. Order'!BD1483=\"\",\"\",'1. Order'!BD1483)","v":""},{"$f":"IF('1. Order'!BE1483=\"\",\"\",'1. Order'!BE1483)","v":""},{"$f":"IF('1. Order'!BF1483=\"\",\"\",'1. Order'!BF1483)","v":""},{"$f":"IF('1. Order'!BG1483=\"\",\"\",'1. Order'!BG1483)","v":""},{"$f":"IF('1. Order'!BH1483=\"\",\"\",'1. Order'!BH1483)","v":"ZWO"}]
[{"$f":"IF('1. Order'!F1484=\"\",\"\",'1. Order'!F1484)","v":{"$error":"#N/A"}},{"$f":"IF('1. Order'!G1484=\"\",\"\",'1. Order'!G1484)","v":""},{"$f":"IF('1. Order'!H1484=\"\",\"\",'1. Order'!H1484)","v":""},{"$f":"IF('1. Order'!I1484=\"\",\"\",'1. Order'!I1484)","v":""},{"$f":"IF('1. Order'!J1484=\"\",\"\",'1. Order'!J1484)","v":""},{"$f":"IF('1. Order'!K1484=\"\",\"\",'1. Order'!K1484)","v":""},{"$f":"IF('1. Order'!L1484=\"\",\"\",'1. Order'!L1484)","v":""},{"$f":"IF('1. Order'!M1484=\"\",\"\",'1. Order'!M1484)","v":""},{"$f":"IF('1. Order'!N1484=\"\",\"\",'1. Order'!N1484)","v":""},{"$f":"IF('1. Order'!O1484=\"\",\"\",'1. Order'!O1484)","v":{"$error":"#N/A"}},{"$f":"IF('1. Order'!P1484=\"\",\"\",'1. Order'!P1484)","v":{"$error":"#N/A"}},{"$f":"IF('1. Order'!Q1484=\"\",\"\",'1. Order'!Q1484)","v":""},{"$f":"IF('1. Order'!S1484=\"\",\"\",'1. Order'!S1484)","v":""},{"$f":"IF('1. Order'!T1484=\"\",\"\",'1. Order'!T1484)","v":""},{"$f":"IF('1. Order'!W1484=\"\",\"\",'1. Order'!W1484)","v":""},{"$f":"IF('1. Order'!X1484=\"\",\"\",'1. Order'!X1484)","v":""},{"$f":"IF('1. Order'!Y1484=\"\",\"\",'1. Order'!Y1484)","v":"EUR"},{"$f":"IF('1. Order'!Z1484=\"\",\"\",'1. Order'!Z1484)","v":""},{"$f":"IF('1. Order'!AA1484=\"\",\"\",'1. Order'!AA1484)","v":""},{"$f":"IF('1. Order'!AB1484=\"\",\"\",'1. Order'!AB1484)","v":""},null,{"$f":"IF('1. Order'!AT1484=\"\",\"\",'1. Order'!AT1484)","v":""},{"$f":"IF('1. Order'!AU1484=\"\",\"\",'1. Order'!AU1484)","v":""},null,null,null,null,null,null,null,{"$f":"IF('1. Order'!AY1484=\"\",\"\",'1. Order'!AY1484)","v":""},{"$f":"IF('1. Order'!AZ1484=\"\",\"\",'1. Order'!AZ1484)","v":""},{"$f":"IF('1. Order'!BA1484=\"\",\"\",'1. Order'!BA1484)","v":""},{"$f":"IF('1. Order'!BB1484=\"\",\"\",'1. Order'!BB1484)","v":""},{"$f":"IF('1. Order'!BD1484=\"\",\"\",'1. Order'!BD1484)","v":""},{"$f":"IF('1. Order'!BE1484=\"\",\"\",'1. Order'!BE1484)","v":""},{"$f":"IF('1. Order'!BF1484=\"\",\"\",'1. Order'!BF1484)","v":""},{"$f":"IF('1. Order'!BG1484=\"\",\"\",'1. Order'!BG1484)","v":""},{"$f":"IF('1. Order'!BH1484=\"\",\"\",'1. Order'!BH1484)","v":"ZWO"}]
[{"$f":"IF('1. Order'!F1485=\"\",\"\",'1. Order'!F1485)","v":{"$error":"#N/A"}},{"$f":"IF('1. Order'!G1485=\"\",\"\",'1. Order'!G1485)","v":""},{"$f":"IF('1. Order'!H1485=\"\",\"\",'1. Order'!H1485)","v":""},{"$f":"IF('1. Order'!I1485=\"\",\"\",'1. Order'!I1485)","v":""},{"$f":"IF('1. Order'!J1485=\"\",\"\",'1. Order'!J1485)","v":""},{"$f":"IF('1. Order'!K1485=\"\",\"\",'1. Order'!K1485)","v":""},{"$f":"IF('1. Order'!L1485=\"\",\"\",'1. Order'!L1485)","v":""},{"$f":"IF('1. Order'!M1485=\"\",\"\",'1. Order'!M1485)","v":""},{"$f":"IF('1. Order'!N1485=\"\",\"\",'1. Order'!N1485)","v":""},{"$f":"IF('1. Order'!O1485=\"\",\"\",'1. Order'!O1485)","v":{"$error":"#N/A"}},{"$f":"IF('1. Order'!P1485=\"\",\"\",'1. Order'!P1485)","v":{"$error":"#N/A"}},{"$f":"IF('1. Order'!Q1485=\"\",\"\",'1. Order'!Q1485)","v":""},{"$f":"IF('1. Order'!S1485=\"\",\"\",'1. Order'!S1485)","v":""},{"$f":"IF('1. Order'!T1485=\"\",\"\",'1. Order'!T1485)","v":""},{"$f":"IF('1. Order'!W1485=\"\",\"\",'1. Order'!W1485)","v":""},{"$f":"IF('1. Order'!X1485=\"\",\"\",'1. Order'!X1485)","v":""},{"$f":"IF('1. Order'!Y1485=\"\",\"\",'1. Order'!Y1485)","v":"EUR"},{"$f":"IF('1. Order'!Z1485=\"\",\"\",'1. Order'!Z1485)","v":""},{"$f":"IF('1. Order'!AA1485=\"\",\"\",'1. Order'!AA1485)","v":""},{"$f":"IF('1. Order'!AB1485=\"\",\"\",'1. Order'!AB1485)","v":""},null,{"$f":"IF('1. Order'!AT1485=\"\",\"\",'1. Order'!AT1485)","v":""},{"$f":"IF('1. Order'!AU1485=\"\",\"\",'1. Order'!AU1485)","v":""},null,null,null,null,null,null,null,{"$f":"IF('1. Order'!AY1485=\"\",\"\",'1. Order'!AY1485)","v":""},{"$f":"IF('1. Order'!AZ1485=\"\",\"\",'1. Order'!AZ1485)","v":""},{"$f":"IF('1. Order'!BA1485=\"\",\"\",'1. Order'!BA1485)","v":""},{"$f":"IF('1. Order'!BB1485=\"\",\"\",'1. Order'!BB1485)","v":""},{"$f":"IF('1. Order'!BD1485=\"\",\"\",'1. Order'!BD1485)","v":""},{"$f":"IF('1. Order'!BE1485=\"\",\"\",'1. Order'!BE1485)","v":""},{"$f":"IF('1. Order'!BF1485=\"\",\"\",'1. Order'!BF1485)","v":""},{"$f":"IF('1. Order'!BG1485=\"\",\"\",'1. Order'!BG1485)","v":""},{"$f":"IF('1. Order'!BH1485=\"\",\"\",'1. Order'!BH1485)","v":"ZWO"}]
[{"$f":"IF('1. Order'!F1486=\"\",\"\",'1. Order'!F1486)","v":{"$error":"#N/A"}},{"$f":"IF('1. Order'!G1486=\"\",\"\",'1. Order'!G1486)","v":""},{"$f":"IF('1. Order'!H1486=\"\",\"\",'1. Order'!H1486)","v":""},{"$f":"IF('1. Order'!I1486=\"\",\"\",'1. Order'!I1486)","v":""},{"$f":"IF('1. Order'!J1486=\"\",\"\",'1. Order'!J1486)","v":""},{"$f":"IF('1. Order'!K1486=\"\",\"\",'1. Order'!K1486)","v":""},{"$f":"IF('1. Order'!L1486=\"\",\"\",'1. Order'!L1486)","v":""},{"$f":"IF('1. Order'!M1486=\"\",\"\",'1. Order'!M1486)","v":""},{"$f":"IF('1. Order'!N1486=\"\",\"\",'1. Order'!N1486)","v":""},{"$f":"IF('1. Order'!O1486=\"\",\"\",'1. Order'!O1486)","v":{"$error":"#N/A"}},{"$f":"IF('1. Order'!P1486=\"\",\"\",'1. Order'!P1486)","v":{"$error":"#N/A"}},{"$f":"IF('1. Order'!Q1486=\"\",\"\",'1. Order'!Q1486)","v":""},{"$f":"IF('1. Order'!S1486=\"\",\"\",'1. Order'!S1486)","v":""},{"$f":"IF('1. Order'!T1486=\"\",\"\",'1. Order'!T1486)","v":""},{"$f":"IF('1. Order'!W1486=\"\",\"\",'1. Order'!W1486)","v":""},{"$f":"IF('1. Order'!X1486=\"\",\"\",'1. Order'!X1486)","v":""},{"$f":"IF('1. Order'!Y1486=\"\",\"\",'1. Order'!Y1486)","v":"EUR"},{"$f":"IF('1. Order'!Z1486=\"\",\"\",'1. Order'!Z1486)","v":""},{"$f":"IF('1. Order'!AA1486=\"\",\"\",'1. Order'!AA1486)","v":""},{"$f":"IF('1. Order'!AB1486=\"\",\"\",'1. Order'!AB1486)","v":""},null,{"$f":"IF('1. Order'!AT1486=\"\",\"\",'1. Order'!AT1486)","v":""},{"$f":"IF('1. Order'!AU1486=\"\",\"\",'1. Order'!AU1486)","v":""},null,null,null,null,null,null,null,{"$f":"IF('1. Order'!AY1486=\"\",\"\",'1. Order'!AY1486)","v":""},{"$f":"IF('1. Order'!AZ1486=\"\",\"\",'1. Order'!AZ1486)","v":""},{"$f":"IF('1. Order'!BA1486=\"\",\"\",'1. Order'!BA1486)","v":""},{"$f":"IF('1. Order'!BB1486=\"\",\"\",'1. Order'!BB1486)","v":""},{"$f":"IF('1. Order'!BD1486=\"\",\"\",'1. Order'!BD1486)","v":""},{"$f":"IF('1. Order'!BE1486=\"\",\"\",'1. Order'!BE1486)","v":""},{"$f":"IF('1. Order'!BF1486=\"\",\"\",'1. Order'!BF1486)","v":""},{"$f":"IF('1. Order'!BG1486=\"\",\"\",'1. Order'!BG1486)","v":""},{"$f":"IF('1. Order'!BH1486=\"\",\"\",'1. Order'!BH1486)","v":"ZWO"}]
[{"$f":"IF('1. Order'!F1487=\"\",\"\",'1. Order'!F1487)","v":{"$error":"#N/A"}},{"$f":"IF('1. Order'!G1487=\"\",\"\",'1. Order'!G1487)","v":""},{"$f":"IF('1. Order'!H1487=\"\",\"\",'1. Order'!H1487)","v":""},{"$f":"IF('1. Order'!I1487=\"\",\"\",'1. Order'!I1487)","v":""},{"$f":"IF('1. Order'!J1487=\"\",\"\",'1. Order'!J1487)","v":""},{"$f":"IF('1. Order'!K1487=\"\",\"\",'1. Order'!K1487)","v":""},{"$f":"IF('1. Order'!L1487=\"\",\"\",'1. Order'!L1487)","v":""},{"$f":"IF('1. Order'!M1487=\"\",\"\",'1. Order'!M1487)","v":""},{"$f":"IF('1. Order'!N1487=\"\",\"\",'1. Order'!N1487)","v":""},{"$f":"IF('1. Order'!O1487=\"\",\"\",'1. Order'!O1487)","v":{"$error":"#N/A"}},{"$f":"IF('1. Order'!P1487=\"\",\"\",'1. Order'!P1487)","v":{"$error":"#N/A"}},{"$f":"IF('1. Order'!Q1487=\"\",\"\",'1. Order'!Q1487)","v":""},{"$f":"IF('1. Order'!S1487=\"\",\"\",'1. Order'!S1487)","v":""},{"$f":"IF('1. Order'!T1487=\"\",\"\",'1. Order'!T1487)","v":""},{"$f":"IF('1. Order'!W1487=\"\",\"\",'1. Order'!W1487)","v":""},{"$f":"IF('1. Order'!X1487=\"\",\"\",'1. Order'!X1487)","v":""},{"$f":"IF('1. Order'!Y1487=\"\",\"\",'1. Order'!Y1487)","v":"EUR"},{"$f":"IF('1. Order'!Z1487=\"\",\"\",'1. Order'!Z1487)","v":""},{"$f":"IF('1. Order'!AA1487=\"\",\"\",'1. Order'!AA1487)","v":""},{"$f":"IF('1. Order'!AB1487=\"\",\"\",'1. Order'!AB1487)","v":""},null,{"$f":"IF('1. Order'!AT1487=\"\",\"\",'1. Order'!AT1487)","v":""},{"$f":"IF('1. Order'!AU1487=\"\",\"\",'1. Order'!AU1487)","v":""},null,null,null,null,null,null,null,{"$f":"IF('1. Order'!AY1487=\"\",\"\",'1. Order'!AY1487)","v":""},{"$f":"IF('1. Order'!AZ1487=\"\",\"\",'1. Order'!AZ1487)","v":""},{"$f":"IF('1. Order'!BA1487=\"\",\"\",'1. Order'!BA1487)","v":""},{"$f":"IF('1. Order'!BB1487=\"\",\"\",'1. Order'!BB1487)","v":""},{"$f":"IF('1. Order'!BD1487=\"\",\"\",'1. Order'!BD1487)","v":""},{"$f":"IF('1. Order'!BE1487=\"\",\"\",'1. Order'!BE1487)","v":""},{"$f":"IF('1. Order'!BF1487=\"\",\"\",'1. Order'!BF1487)","v":""},{"$f":"IF('1. Order'!BG1487=\"\",\"\",'1. Order'!BG1487)","v":""},{"$f":"IF('1. Order'!BH1487=\"\",\"\",'1. Order'!BH1487)","v":"ZWO"}]
[{"$f":"IF('1. Order'!F1488=\"\",\"\",'1. Order'!F1488)","v":{"$error":"#N/A"}},{"$f":"IF('1. Order'!G1488=\"\",\"\",'1. Order'!G1488)","v":""},{"$f":"IF('1. Order'!H1488=\"\",\"\",'1. Order'!H1488)","v":""},{"$f":"IF('1. Order'!I1488=\"\",\"\",'1. Order'!I1488)","v":""},{"$f":"IF('1. Order'!J1488=\"\",\"\",'1. Order'!J1488)","v":""},{"$f":"IF('1. Order'!K1488=\"\",\"\",'1. Order'!K1488)","v":""},{"$f":"IF('1. Order'!L1488=\"\",\"\",'1. Order'!L1488)","v":""},{"$f":"IF('1. Order'!M1488=\"\",\"\",'1. Order'!M1488)","v":""},{"$f":"IF('1. Order'!N1488=\"\",\"\",'1. Order'!N1488)","v":""},{"$f":"IF('1. Order'!O1488=\"\",\"\",'1. Order'!O1488)","v":{"$error":"#N/A"}},{"$f":"IF('1. Order'!P1488=\"\",\"\",'1. Order'!P1488)","v":{"$error":"#N/A"}},{"$f":"IF('1. Order'!Q1488=\"\",\"\",'1. Order'!Q1488)","v":""},{"$f":"IF('1. Order'!S1488=\"\",\"\",'1. Order'!S1488)","v":""},{"$f":"IF('1. Order'!T1488=\"\",\"\",'1. Order'!T1488)","v":""},{"$f":"IF('1. Order'!W1488=\"\",\"\",'1. Order'!W1488)","v":""},{"$f":"IF('1. Order'!X1488=\"\",\"\",'1. Order'!X1488)","v":""},{"$f":"IF('1. Order'!Y1488=\"\",\"\",'1. Order'!Y1488)","v":"EUR"},{"$f":"IF('1. Order'!Z1488=\"\",\"\",'1. Order'!Z1488)","v":""},{"$f":"IF('1. Order'!AA1488=\"\",\"\",'1. Order'!AA1488)","v":""},{"$f":"IF('1. Order'!AB1488=\"\",\"\",'1. Order'!AB1488)","v":""},null,{"$f":"IF('1. Order'!AT1488=\"\",\"\",'1. Order'!AT1488)","v":""},{"$f":"IF('1. Order'!AU1488=\"\",\"\",'1. Order'!AU1488)","v":""},null,null,null,null,null,null,null,{"$f":"IF('1. Order'!AY1488=\"\",\"\",'1. Order'!AY1488)","v":""},{"$f":"IF('1. Order'!AZ1488=\"\",\"\",'1. Order'!AZ1488)","v":""},{"$f":"IF('1. Order'!BA1488=\"\",\"\",'1. Order'!BA1488)","v":""},{"$f":"IF('1. Order'!BB1488=\"\",\"\",'1. Order'!BB1488)","v":""},{"$f":"IF('1. Order'!BD1488=\"\",\"\",'1. Order'!BD1488)","v":""},{"$f":"IF('1. Order'!BE1488=\"\",\"\",'1. Order'!BE1488)","v":""},{"$f":"IF('1. Order'!BF1488=\"\",\"\",'1. Order'!BF1488)","v":""},{"$f":"IF('1. Order'!BG1488=\"\",\"\",'1. Order'!BG1488)","v":""},{"$f":"IF('1. Order'!BH1488=\"\",\"\",'1. Order'!BH1488)","v":"ZWO"}]
[{"$f":"IF('1. Order'!F1489=\"\",\"\",'1. Order'!F1489)","v":{"$error":"#N/A"}},{"$f":"IF('1. Order'!G1489=\"\",\"\",'1. Order'!G1489)","v":""},{"$f":"IF('1. Order'!H1489=\"\",\"\",'1. Order'!H1489)","v":""},{"$f":"IF('1. Order'!I1489=\"\",\"\",'1. Order'!I1489)","v":""},{"$f":"IF('1. Order'!J1489=\"\",\"\",'1. Order'!J1489)","v":""},{"$f":"IF('1. Order'!K1489=\"\",\"\",'1. Order'!K1489)","v":""},{"$f":"IF('1. Order'!L1489=\"\",\"\",'1. Order'!L1489)","v":""},{"$f":"IF('1. Order'!M1489=\"\",\"\",'1. Order'!M1489)","v":""},{"$f":"IF('1. Order'!N1489=\"\",\"\",'1. Order'!N1489)","v":""},{"$f":"IF('1. Order'!O1489=\"\",\"\",'1. Order'!O1489)","v":{"$error":"#N/A"}},{"$f":"IF('1. Order'!P1489=\"\",\"\",'1. Order'!P1489)","v":{"$error":"#N/A"}},{"$f":"IF('1. Order'!Q1489=\"\",\"\",'1. Order'!Q1489)","v":""},{"$f":"IF('1. Order'!S1489=\"\",\"\",'1. Order'!S1489)","v":""},{"$f":"IF('1. Order'!T1489=\"\",\"\",'1. Order'!T1489)","v":""},{"$f":"IF('1. Order'!W1489=\"\",\"\",'1. Order'!W1489)","v":""},{"$f":"IF('1. Order'!X1489=\"\",\"\",'1. Order'!X1489)","v":""},{"$f":"IF('1. Order'!Y1489=\"\",\"\",'1. Order'!Y1489)","v":"EUR"},{"$f":"IF('1. Order'!Z1489=\"\",\"\",'1. Order'!Z1489)","v":""},{"$f":"IF('1. Order'!AA1489=\"\",\"\",'1. Order'!AA1489)","v":""},{"$f":"IF('1. Order'!AB1489=\"\",\"\",'1. Order'!AB1489)","v":""},null,{"$f":"IF('1. Order'!AT1489=\"\",\"\",'1. Order'!AT1489)","v":""},{"$f":"IF('1. Order'!AU1489=\"\",\"\",'1. Order'!AU1489)","v":""},null,null,null,null,null,null,null,{"$f":"IF('1. Order'!AY1489=\"\",\"\",'1. Order'!AY1489)","v":""},{"$f":"IF('1. Order'!AZ1489=\"\",\"\",'1. Order'!AZ1489)","v":""},{"$f":"IF('1. Order'!BA1489=\"\",\"\",'1. Order'!BA1489)","v":""},{"$f":"IF('1. Order'!BB1489=\"\",\"\",'1. Order'!BB1489)","v":""},{"$f":"IF('1. Order'!BD1489=\"\",\"\",'1. Order'!BD1489)","v":""},{"$f":"IF('1. Order'!BE1489=\"\",\"\",'1. Order'!BE1489)","v":""},{"$f":"IF('1. Order'!BF1489=\"\",\"\",'1. Order'!BF1489)","v":""},{"$f":"IF('1. Order'!BG1489=\"\",\"\",'1. Order'!BG1489)","v":""},{"$f":"IF('1. Order'!BH1489=\"\",\"\",'1. Order'!BH1489)","v":"ZWO"}]
[{"$f":"IF('1. Order'!F1490=\"\",\"\",'1. Order'!F1490)","v":{"$error":"#N/A"}},{"$f":"IF('1. Order'!G1490=\"\",\"\",'1. Order'!G1490)","v":""},{"$f":"IF('1. Order'!H1490=\"\",\"\",'1. Order'!H1490)","v":""},{"$f":"IF('1. Order'!I1490=\"\",\"\",'1. Order'!I1490)","v":""},{"$f":"IF('1. Order'!J1490=\"\",\"\",'1. Order'!J1490)","v":""},{"$f":"IF('1. Order'!K1490=\"\",\"\",'1. Order'!K1490)","v":""},{"$f":"IF('1. Order'!L1490=\"\",\"\",'1. Order'!L1490)","v":""},{"$f":"IF('1. Order'!M1490=\"\",\"\",'1. Order'!M1490)","v":""},{"$f":"IF('1. Order'!N1490=\"\",\"\",'1. Order'!N1490)","v":""},{"$f":"IF('1. Order'!O1490=\"\",\"\",'1. Order'!O1490)","v":{"$error":"#N/A"}},{"$f":"IF('1. Order'!P1490=\"\",\"\",'1. Order'!P1490)","v":{"$error":"#N/A"}},{"$f":"IF('1. Order'!Q1490=\"\",\"\",'1. Order'!Q1490)","v":""},{"$f":"IF('1. Order'!S1490=\"\",\"\",'1. Order'!S1490)","v":""},{"$f":"IF('1. Order'!T1490=\"\",\"\",'1. Order'!T1490)","v":""},{"$f":"IF('1. Order'!W1490=\"\",\"\",'1. Order'!W1490)","v":""},{"$f":"IF('1. Order'!X1490=\"\",\"\",'1. Order'!X1490)","v":""},{"$f":"IF('1. Order'!Y1490=\"\",\"\",'1. Order'!Y1490)","v":"EUR"},{"$f":"IF('1. Order'!Z1490=\"\",\"\",'1. Order'!Z1490)","v":""},{"$f":"IF('1. Order'!AA1490=\"\",\"\",'1. Order'!AA1490)","v":""},{"$f":"IF('1. Order'!AB1490=\"\",\"\",'1. Order'!AB1490)","v":""},null,{"$f":"IF('1. Order'!AT1490=\"\",\"\",'1. Order'!AT1490)","v":""},{"$f":"IF('1. Order'!AU1490=\"\",\"\",'1. Order'!AU1490)","v":""},null,null,null,null,null,null,null,{"$f":"IF('1. Order'!AY1490=\"\",\"\",'1. Order'!AY1490)","v":""},{"$f":"IF('1. Order'!AZ1490=\"\",\"\",'1. Order'!AZ1490)","v":""},{"$f":"IF('1. Order'!BA1490=\"\",\"\",'1. Order'!BA1490)","v":""},{"$f":"IF('1. Order'!BB1490=\"\",\"\",'1. Order'!BB1490)","v":""},{"$f":"IF('1. Order'!BD1490=\"\",\"\",'1. Order'!BD1490)","v":""},{"$f":"IF('1. Order'!BE1490=\"\",\"\",'1. Order'!BE1490)","v":""},{"$f":"IF('1. Order'!BF1490=\"\",\"\",'1. Order'!BF1490)","v":""},{"$f":"IF('1. Order'!BG1490=\"\",\"\",'1. Order'!BG1490)","v":""},{"$f":"IF('1. Order'!BH1490=\"\",\"\",'1. Order'!BH1490)","v":"ZWO"}]
[{"$f":"IF('1. Order'!F1491=\"\",\"\",'1. Order'!F1491)","v":{"$error":"#N/A"}},{"$f":"IF('1. Order'!G1491=\"\",\"\",'1. Order'!G1491)","v":""},{"$f":"IF('1. Order'!H1491=\"\",\"\",'1. Order'!H1491)","v":""},{"$f":"IF('1. Order'!I1491=\"\",\"\",'1. Order'!I1491)","v":""},{"$f":"IF('1. Order'!J1491=\"\",\"\",'1. Order'!J1491)","v":""},{"$f":"IF('1. Order'!K1491=\"\",\"\",'1. Order'!K1491)","v":""},{"$f":"IF('1. Order'!L1491=\"\",\"\",'1. Order'!L1491)","v":""},{"$f":"IF('1. Order'!M1491=\"\",\"\",'1. Order'!M1491)","v":""},{"$f":"IF('1. Order'!N1491=\"\",\"\",'1. Order'!N1491)","v":""},{"$f":"IF('1. Order'!O1491=\"\",\"\",'1. Order'!O1491)","v":{"$error":"#N/A"}},{"$f":"IF('1. Order'!P1491=\"\",\"\",'1. Order'!P1491)","v":{"$error":"#N/A"}},{"$f":"IF('1. Order'!Q1491=\"\",\"\",'1. Order'!Q1491)","v":""},{"$f":"IF('1. Order'!S1491=\"\",\"\",'1. Order'!S1491)","v":""},{"$f":"IF('1. Order'!T1491=\"\",\"\",'1. Order'!T1491)","v":""},{"$f":"IF('1. Order'!W1491=\"\",\"\",'1. Order'!W1491)","v":""},{"$f":"IF('1. Order'!X1491=\"\",\"\",'1. Order'!X1491)","v":""},{"$f":"IF('1. Order'!Y1491=\"\",\"\",'1. Order'!Y1491)","v":"EUR"},{"$f":"IF('1. Order'!Z1491=\"\",\"\",'1. Order'!Z1491)","v":""},{"$f":"IF('1. Order'!AA1491=\"\",\"\",'1. Order'!AA1491)","v":""},{"$f":"IF('1. Order'!AB1491=\"\",\"\",'1. Order'!AB1491)","v":""},null,{"$f":"IF('1. Order'!AT1491=\"\",\"\",'1. Order'!AT1491)","v":""},{"$f":"IF('1. Order'!AU1491=\"\",\"\",'1. Order'!AU1491)","v":""},null,null,null,null,null,null,null,{"$f":"IF('1. Order'!AY1491=\"\",\"\",'1. Order'!AY1491)","v":""},{"$f":"IF('1. Order'!AZ1491=\"\",\"\",'1. Order'!AZ1491)","v":""},{"$f":"IF('1. Order'!BA1491=\"\",\"\",'1. Order'!BA1491)","v":""},{"$f":"IF('1. Order'!BB1491=\"\",\"\",'1. Order'!BB1491)","v":""},{"$f":"IF('1. Order'!BD1491=\"\",\"\",'1. Order'!BD1491)","v":""},{"$f":"IF('1. Order'!BE1491=\"\",\"\",'1. Order'!BE1491)","v":""},{"$f":"IF('1. Order'!BF1491=\"\",\"\",'1. Order'!BF1491)","v":""},{"$f":"IF('1. Order'!BG1491=\"\",\"\",'1. Order'!BG1491)","v":""},{"$f":"IF('1. Order'!BH1491=\"\",\"\",'1. Order'!BH1491)","v":"ZWO"}]
[{"$f":"IF('1. Order'!F1492=\"\",\"\",'1. Order'!F1492)","v":{"$error":"#N/A"}},{"$f":"IF('1. Order'!G1492=\"\",\"\",'1. Order'!G1492)","v":""},{"$f":"IF('1. Order'!H1492=\"\",\"\",'1. Order'!H1492)","v":""},{"$f":"IF('1. Order'!I1492=\"\",\"\",'1. Order'!I1492)","v":""},{"$f":"IF('1. Order'!J1492=\"\",\"\",'1. Order'!J1492)","v":""},{"$f":"IF('1. Order'!K1492=\"\",\"\",'1. Order'!K1492)","v":""},{"$f":"IF('1. Order'!L1492=\"\",\"\",'1. Order'!L1492)","v":""},{"$f":"IF('1. Order'!M1492=\"\",\"\",'1. Order'!M1492)","v":""},{"$f":"IF('1. Order'!N1492=\"\",\"\",'1. Order'!N1492)","v":""},{"$f":"IF('1. Order'!O1492=\"\",\"\",'1. Order'!O1492)","v":{"$error":"#N/A"}},{"$f":"IF('1. Order'!P1492=\"\",\"\",'1. Order'!P1492)","v":{"$error":"#N/A"}},{"$f":"IF('1. Order'!Q1492=\"\",\"\",'1. Order'!Q1492)","v":""},{"$f":"IF('1. Order'!S1492=\"\",\"\",'1. Order'!S1492)","v":""},{"$f":"IF('1. Order'!T1492=\"\",\"\",'1. Order'!T1492)","v":""},{"$f":"IF('1. Order'!W1492=\"\",\"\",'1. Order'!W1492)","v":""},{"$f":"IF('1. Order'!X1492=\"\",\"\",'1. Order'!X1492)","v":""},{"$f":"IF('1. Order'!Y1492=\"\",\"\",'1. Order'!Y1492)","v":"EUR"},{"$f":"IF('1. Order'!Z1492=\"\",\"\",'1. Order'!Z1492)","v":""},{"$f":"IF('1. Order'!AA1492=\"\",\"\",'1. Order'!AA1492)","v":""},{"$f":"IF('1. Order'!AB1492=\"\",\"\",'1. Order'!AB1492)","v":""},null,{"$f":"IF('1. Order'!AT1492=\"\",\"\",'1. Order'!AT1492)","v":""},{"$f":"IF('1. Order'!AU1492=\"\",\"\",'1. Order'!AU1492)","v":""},null,null,null,null,null,null,null,{"$f":"IF('1. Order'!AY1492=\"\",\"\",'1. Order'!AY1492)","v":""},{"$f":"IF('1. Order'!AZ1492=\"\",\"\",'1. Order'!AZ1492)","v":""},{"$f":"IF('1. Order'!BA1492=\"\",\"\",'1. Order'!BA1492)","v":""},{"$f":"IF('1. Order'!BB1492=\"\",\"\",'1. Order'!BB1492)","v":""},{"$f":"IF('1. Order'!BD1492=\"\",\"\",'1. Order'!BD1492)","v":""},{"$f":"IF('1. Order'!BE1492=\"\",\"\",'1. Order'!BE1492)","v":""},{"$f":"IF('1. Order'!BF1492=\"\",\"\",'1. Order'!BF1492)","v":""},{"$f":"IF('1. Order'!BG1492=\"\",\"\",'1. Order'!BG1492)","v":""},{"$f":"IF('1. Order'!BH1492=\"\",\"\",'1. Order'!BH1492)","v":"ZWO"}]
[{"$f":"IF('1. Order'!F1493=\"\",\"\",'1. Order'!F1493)","v":{"$error":"#N/A"}},{"$f":"IF('1. Order'!G1493=\"\",\"\",'1. Order'!G1493)","v":""},{"$f":"IF('1. Order'!H1493=\"\",\"\",'1. Order'!H1493)","v":""},{"$f":"IF('1. Order'!I1493=\"\",\"\",'1. Order'!I1493)","v":""},{"$f":"IF('1. Order'!J1493=\"\",\"\",'1. Order'!J1493)","v":""},{"$f":"IF('1. Order'!K1493=\"\",\"\",'1. Order'!K1493)","v":""},{"$f":"IF('1. Order'!L1493=\"\",\"\",'1. Order'!L1493)","v":""},{"$f":"IF('1. Order'!M1493=\"\",\"\",'1. Order'!M1493)","v":""},{"$f":"IF('1. Order'!N1493=\"\",\"\",'1. Order'!N1493)","v":""},{"$f":"IF('1. Order'!O1493=\"\",\"\",'1. Order'!O1493)","v":{"$error":"#N/A"}},{"$f":"IF('1. Order'!P1493=\"\",\"\",'1. Order'!P1493)","v":{"$error":"#N/A"}},{"$f":"IF('1. Order'!Q1493=\"\",\"\",'1. Order'!Q1493)","v":""},{"$f":"IF('1. Order'!S1493=\"\",\"\",'1. Order'!S1493)","v":""},{"$f":"IF('1. Order'!T1493=\"\",\"\",'1. Order'!T1493)","v":""},{"$f":"IF('1. Order'!W1493=\"\",\"\",'1. Order'!W1493)","v":""},{"$f":"IF('1. Order'!X1493=\"\",\"\",'1. Order'!X1493)","v":""},{"$f":"IF('1. Order'!Y1493=\"\",\"\",'1. Order'!Y1493)","v":"EUR"},{"$f":"IF('1. Order'!Z1493=\"\",\"\",'1. Order'!Z1493)","v":""},{"$f":"IF('1. Order'!AA1493=\"\",\"\",'1. Order'!AA1493)","v":""},{"$f":"IF('1. Order'!AB1493=\"\",\"\",'1. Order'!AB1493)","v":""},null,{"$f":"IF('1. Order'!AT1493=\"\",\"\",'1. Order'!AT1493)","v":""},{"$f":"IF('1. Order'!AU1493=\"\",\"\",'1. Order'!AU1493)","v":""},null,null,null,null,null,null,null,{"$f":"IF('1. Order'!AY1493=\"\",\"\",'1. Order'!AY1493)","v":""},{"$f":"IF('1. Order'!AZ1493=\"\",\"\",'1. Order'!AZ1493)","v":""},{"$f":"IF('1. Order'!BA1493=\"\",\"\",'1. Order'!BA1493)","v":""},{"$f":"IF('1. Order'!BB1493=\"\",\"\",'1. Order'!BB1493)","v":""},{"$f":"IF('1. Order'!BD1493=\"\",\"\",'1. Order'!BD1493)","v":""},{"$f":"IF('1. Order'!BE1493=\"\",\"\",'1. Order'!BE1493)","v":""},{"$f":"IF('1. Order'!BF1493=\"\",\"\",'1. Order'!BF1493)","v":""},{"$f":"IF('1. Order'!BG1493=\"\",\"\",'1. Order'!BG1493)","v":""},{"$f":"IF('1. Order'!BH1493=\"\",\"\",'1. Order'!BH1493)","v":"ZWO"}]
[{"$f":"IF('1. Order'!F1494=\"\",\"\",'1. Order'!F1494)","v":{"$error":"#N/A"}},{"$f":"IF('1. Order'!G1494=\"\",\"\",'1. Order'!G1494)","v":""},{"$f":"IF('1. Order'!H1494=\"\",\"\",'1. Order'!H1494)","v":""},{"$f":"IF('1. Order'!I1494=\"\",\"\",'1. Order'!I1494)","v":""},{"$f":"IF('1. Order'!J1494=\"\",\"\",'1. Order'!J1494)","v":""},{"$f":"IF('1. Order'!K1494=\"\",\"\",'1. Order'!K1494)","v":""},{"$f":"IF('1. Order'!L1494=\"\",\"\",'1. Order'!L1494)","v":""},{"$f":"IF('1. Order'!M1494=\"\",\"\",'1. Order'!M1494)","v":""},{"$f":"IF('1. Order'!N1494=\"\",\"\",'1. Order'!N1494)","v":""},{"$f":"IF('1. Order'!O1494=\"\",\"\",'1. Order'!O1494)","v":{"$error":"#N/A"}},{"$f":"IF('1. Order'!P1494=\"\",\"\",'1. Order'!P1494)","v":{"$error":"#N/A"}},{"$f":"IF('1. Order'!Q1494=\"\",\"\",'1. Order'!Q1494)","v":""},{"$f":"IF('1. Order'!S1494=\"\",\"\",'1. Order'!S1494)","v":""},{"$f":"IF('1. Order'!T1494=\"\",\"\",'1. Order'!T1494)","v":""},{"$f":"IF('1. Order'!W1494=\"\",\"\",'1. Order'!W1494)","v":""},{"$f":"IF('1. Order'!X1494=\"\",\"\",'1. Order'!X1494)","v":""},{"$f":"IF('1. Order'!Y1494=\"\",\"\",'1. Order'!Y1494)","v":"EUR"},{"$f":"IF('1. Order'!Z1494=\"\",\"\",'1. Order'!Z1494)","v":""},{"$f":"IF('1. Order'!AA1494=\"\",\"\",'1. Order'!AA1494)","v":""},{"$f":"IF('1. Order'!AB1494=\"\",\"\",'1. Order'!AB1494)","v":""},null,{"$f":"IF('1. Order'!AT1494=\"\",\"\",'1. Order'!AT1494)","v":""},{"$f":"IF('1. Order'!AU1494=\"\",\"\",'1. Order'!AU1494)","v":""},null,null,null,null,null,null,null,{"$f":"IF('1. Order'!AY1494=\"\",\"\",'1. Order'!AY1494)","v":""},{"$f":"IF('1. Order'!AZ1494=\"\",\"\",'1. Order'!AZ1494)","v":""},{"$f":"IF('1. Order'!BA1494=\"\",\"\",'1. Order'!BA1494)","v":""},{"$f":"IF('1. Order'!BB1494=\"\",\"\",'1. Order'!BB1494)","v":""},{"$f":"IF('1. Order'!BD1494=\"\",\"\",'1. Order'!BD1494)","v":""},{"$f":"IF('1. Order'!BE1494=\"\",\"\",'1. Order'!BE1494)","v":""},{"$f":"IF('1. Order'!BF1494=\"\",\"\",'1. Order'!BF1494)","v":""},{"$f":"IF('1. Order'!BG1494=\"\",\"\",'1. Order'!BG1494)","v":""},{"$f":"IF('1. Order'!BH1494=\"\",\"\",'1. Order'!BH1494)","v":"ZWO"}]
[{"$f":"IF('1. Order'!F1495=\"\",\"\",'1. Order'!F1495)","v":{"$error":"#N/A"}},{"$f":"IF('1. Order'!G1495=\"\",\"\",'1. Order'!G1495)","v":""},{"$f":"IF('1. Order'!H1495=\"\",\"\",'1. Order'!H1495)","v":""},{"$f":"IF('1. Order'!I1495=\"\",\"\",'1. Order'!I1495)","v":""},{"$f":"IF('1. Order'!J1495=\"\",\"\",'1. Order'!J1495)","v":""},{"$f":"IF('1. Order'!K1495=\"\",\"\",'1. Order'!K1495)","v":""},{"$f":"IF('1. Order'!L1495=\"\",\"\",'1. Order'!L1495)","v":""},{"$f":"IF('1. Order'!M1495=\"\",\"\",'1. Order'!M1495)","v":""},{"$f":"IF('1. Order'!N1495=\"\",\"\",'1. Order'!N1495)","v":""},{"$f":"IF('1. Order'!O1495=\"\",\"\",'1. Order'!O1495)","v":{"$error":"#N/A"}},{"$f":"IF('1. Order'!P1495=\"\",\"\",'1. Order'!P1495)","v":{"$error":"#N/A"}},{"$f":"IF('1. Order'!Q1495=\"\",\"\",'1. Order'!Q1495)","v":""},{"$f":"IF('1. Order'!S1495=\"\",\"\",'1. Order'!S1495)","v":""},{"$f":"IF('1. Order'!T1495=\"\",\"\",'1. Order'!T1495)","v":""},{"$f":"IF('1. Order'!W1495=\"\",\"\",'1. Order'!W1495)","v":""},{"$f":"IF('1. Order'!X1495=\"\",\"\",'1. Order'!X1495)","v":""},{"$f":"IF('1. Order'!Y1495=\"\",\"\",'1. Order'!Y1495)","v":"EUR"},{"$f":"IF('1. Order'!Z1495=\"\",\"\",'1. Order'!Z1495)","v":""},{"$f":"IF('1. Order'!AA1495=\"\",\"\",'1. Order'!AA1495)","v":""},{"$f":"IF('1. Order'!AB1495=\"\",\"\",'1. Order'!AB1495)","v":""},null,{"$f":"IF('1. Order'!AT1495=\"\",\"\",'1. Order'!AT1495)","v":""},{"$f":"IF('1. Order'!AU1495=\"\",\"\",'1. Order'!AU1495)","v":""},null,null,null,null,null,null,null,{"$f":"IF('1. Order'!AY1495=\"\",\"\",'1. Order'!AY1495)","v":""},{"$f":"IF('1. Order'!AZ1495=\"\",\"\",'1. Order'!AZ1495)","v":""},{"$f":"IF('1. Order'!BA1495=\"\",\"\",'1. Order'!BA1495)","v":""},{"$f":"IF('1. Order'!BB1495=\"\",\"\",'1. Order'!BB1495)","v":""},{"$f":"IF('1. Order'!BD1495=\"\",\"\",'1. Order'!BD1495)","v":""},{"$f":"IF('1. Order'!BE1495=\"\",\"\",'1. Order'!BE1495)","v":""},{"$f":"IF('1. Order'!BF1495=\"\",\"\",'1. Order'!BF1495)","v":""},{"$f":"IF('1. Order'!BG1495=\"\",\"\",'1. Order'!BG1495)","v":""},{"$f":"IF('1. Order'!BH1495=\"\",\"\",'1. Order'!BH1495)","v":"ZWO"}]
[{"$f":"IF('1. Order'!F1496=\"\",\"\",'1. Order'!F1496)","v":{"$error":"#N/A"}},{"$f":"IF('1. Order'!G1496=\"\",\"\",'1. Order'!G1496)","v":""},{"$f":"IF('1. Order'!H1496=\"\",\"\",'1. Order'!H1496)","v":""},{"$f":"IF('1. Order'!I1496=\"\",\"\",'1. Order'!I1496)","v":""},{"$f":"IF('1. Order'!J1496=\"\",\"\",'1. Order'!J1496)","v":""},{"$f":"IF('1. Order'!K1496=\"\",\"\",'1. Order'!K1496)","v":""},{"$f":"IF('1. Order'!L1496=\"\",\"\",'1. Order'!L1496)","v":""},{"$f":"IF('1. Order'!M1496=\"\",\"\",'1. Order'!M1496)","v":""},{"$f":"IF('1. Order'!N1496=\"\",\"\",'1. Order'!N1496)","v":""},{"$f":"IF('1. Order'!O1496=\"\",\"\",'1. Order'!O1496)","v":{"$error":"#N/A"}},{"$f":"IF('1. Order'!P1496=\"\",\"\",'1. Order'!P1496)","v":{"$error":"#N/A"}},{"$f":"IF('1. Order'!Q1496=\"\",\"\",'1. Order'!Q1496)","v":""},{"$f":"IF('1. Order'!S1496=\"\",\"\",'1. Order'!S1496)","v":""},{"$f":"IF('1. Order'!T1496=\"\",\"\",'1. Order'!T1496)","v":""},{"$f":"IF('1. Order'!W1496=\"\",\"\",'1. Order'!W1496)","v":""},{"$f":"IF('1. Order'!X1496=\"\",\"\",'1. Order'!X1496)","v":""},{"$f":"IF('1. Order'!Y1496=\"\",\"\",'1. Order'!Y1496)","v":"EUR"},{"$f":"IF('1. Order'!Z1496=\"\",\"\",'1. Order'!Z1496)","v":""},{"$f":"IF('1. Order'!AA1496=\"\",\"\",'1. Order'!AA1496)","v":""},{"$f":"IF('1. Order'!AB1496=\"\",\"\",'1. Order'!AB1496)","v":""},null,{"$f":"IF('1. Order'!AT1496=\"\",\"\",'1. Order'!AT1496)","v":""},{"$f":"IF('1. Order'!AU1496=\"\",\"\",'1. Order'!AU1496)","v":""},null,null,null,null,null,null,null,{"$f":"IF('1. Order'!AY1496=\"\",\"\",'1. Order'!AY1496)","v":""},{"$f":"IF('1. Order'!AZ1496=\"\",\"\",'1. Order'!AZ1496)","v":""},{"$f":"IF('1. Order'!BA1496=\"\",\"\",'1. Order'!BA1496)","v":""},{"$f":"IF('1. Order'!BB1496=\"\",\"\",'1. Order'!BB1496)","v":""},{"$f":"IF('1. Order'!BD1496=\"\",\"\",'1. Order'!BD1496)","v":""},{"$f":"IF('1. Order'!BE1496=\"\",\"\",'1. Order'!BE1496)","v":""},{"$f":"IF('1. Order'!BF1496=\"\",\"\",'1. Order'!BF1496)","v":""},{"$f":"IF('1. Order'!BG1496=\"\",\"\",'1. Order'!BG1496)","v":""},{"$f":"IF('1. Order'!BH1496=\"\",\"\",'1. Order'!BH1496)","v":"ZWO"}]
[{"$f":"IF('1. Order'!F1497=\"\",\"\",'1. Order'!F1497)","v":{"$error":"#N/A"}},{"$f":"IF('1. Order'!G1497=\"\",\"\",'1. Order'!G1497)","v":""},{"$f":"IF('1. Order'!H1497=\"\",\"\",'1. Order'!H1497)","v":""},{"$f":"IF('1. Order'!I1497=\"\",\"\",'1. Order'!I1497)","v":""},{"$f":"IF('1. Order'!J1497=\"\",\"\",'1. Order'!J1497)","v":""},{"$f":"IF('1. Order'!K1497=\"\",\"\",'1. Order'!K1497)","v":""},{"$f":"IF('1. Order'!L1497=\"\",\"\",'1. Order'!L1497)","v":""},{"$f":"IF('1. Order'!M1497=\"\",\"\",'1. Order'!M1497)","v":""},{"$f":"IF('1. Order'!N1497=\"\",\"\",'1. Order'!N1497)","v":""},{"$f":"IF('1. Order'!O1497=\"\",\"\",'1. Order'!O1497)","v":{"$error":"#N/A"}},{"$f":"IF('1. Order'!P1497=\"\",\"\",'1. Order'!P1497)","v":{"$error":"#N/A"}},{"$f":"IF('1. Order'!Q1497=\"\",\"\",'1. Order'!Q1497)","v":""},{"$f":"IF('1. Order'!S1497=\"\",\"\",'1. Order'!S1497)","v":""},{"$f":"IF('1. Order'!T1497=\"\",\"\",'1. Order'!T1497)","v":""},{"$f":"IF('1. Order'!W1497=\"\",\"\",'1. Order'!W1497)","v":""},{"$f":"IF('1. Order'!X1497=\"\",\"\",'1. Order'!X1497)","v":""},{"$f":"IF('1. Order'!Y1497=\"\",\"\",'1. Order'!Y1497)","v":"EUR"},{"$f":"IF('1. Order'!Z1497=\"\",\"\",'1. Order'!Z1497)","v":""},{"$f":"IF('1. Order'!AA1497=\"\",\"\",'1. Order'!AA1497)","v":""},{"$f":"IF('1. Order'!AB1497=\"\",\"\",'1. Order'!AB1497)","v":""},null,{"$f":"IF('1. Order'!AT1497=\"\",\"\",'1. Order'!AT1497)","v":""},{"$f":"IF('1. Order'!AU1497=\"\",\"\",'1. Order'!AU1497)","v":""},null,null,null,null,null,null,null,{"$f":"IF('1. Order'!AY1497=\"\",\"\",'1. Order'!AY1497)","v":""},{"$f":"IF('1. Order'!AZ1497=\"\",\"\",'1. Order'!AZ1497)","v":""},{"$f":"IF('1. Order'!BA1497=\"\",\"\",'1. Order'!BA1497)","v":""},{"$f":"IF('1. Order'!BB1497=\"\",\"\",'1. Order'!BB1497)","v":""},{"$f":"IF('1. Order'!BD1497=\"\",\"\",'1. Order'!BD1497)","v":""},{"$f":"IF('1. Order'!BE1497=\"\",\"\",'1. Order'!BE1497)","v":""},{"$f":"IF('1. Order'!BF1497=\"\",\"\",'1. Order'!BF1497)","v":""},{"$f":"IF('1. Order'!BG1497=\"\",\"\",'1. Order'!BG1497)","v":""},{"$f":"IF('1. Order'!BH1497=\"\",\"\",'1. Order'!BH1497)","v":"ZWO"}]
[{"$f":"IF('1. Order'!F1498=\"\",\"\",'1. Order'!F1498)","v":{"$error":"#N/A"}},{"$f":"IF('1. Order'!G1498=\"\",\"\",'1. Order'!G1498)","v":""},{"$f":"IF('1. Order'!H1498=\"\",\"\",'1. Order'!H1498)","v":""},{"$f":"IF('1. Order'!I1498=\"\",\"\",'1. Order'!I1498)","v":""},{"$f":"IF('1. Order'!J1498=\"\",\"\",'1. Order'!J1498)","v":""},{"$f":"IF('1. Order'!K1498=\"\",\"\",'1. Order'!K1498)","v":""},{"$f":"IF('1. Order'!L1498=\"\",\"\",'1. Order'!L1498)","v":""},{"$f":"IF('1. Order'!M1498=\"\",\"\",'1. Order'!M1498)","v":""},{"$f":"IF('1. Order'!N1498=\"\",\"\",'1. Order'!N1498)","v":""},{"$f":"IF('1. Order'!O1498=\"\",\"\",'1. Order'!O1498)","v":{"$error":"#N/A"}},{"$f":"IF('1. Order'!P1498=\"\",\"\",'1. Order'!P1498)","v":{"$error":"#N/A"}},{"$f":"IF('1. Order'!Q1498=\"\",\"\",'1. Order'!Q1498)","v":""},{"$f":"IF('1. Order'!S1498=\"\",\"\",'1. Order'!S1498)","v":""},{"$f":"IF('1. Order'!T1498=\"\",\"\",'1. Order'!T1498)","v":""},{"$f":"IF('1. Order'!W1498=\"\",\"\",'1. Order'!W1498)","v":""},{"$f":"IF('1. Order'!X1498=\"\",\"\",'1. Order'!X1498)","v":""},{"$f":"IF('1. Order'!Y1498=\"\",\"\",'1. Order'!Y1498)","v":"EUR"},{"$f":"IF('1. Order'!Z1498=\"\",\"\",'1. Order'!Z1498)","v":""},{"$f":"IF('1. Order'!AA1498=\"\",\"\",'1. Order'!AA1498)","v":""},{"$f":"IF('1. Order'!AB1498=\"\",\"\",'1. Order'!AB1498)","v":""},null,{"$f":"IF('1. Order'!AT1498=\"\",\"\",'1. Order'!AT1498)","v":""},{"$f":"IF('1. Order'!AU1498=\"\",\"\",'1. Order'!AU1498)","v":""},null,null,null,null,null,null,null,{"$f":"IF('1. Order'!AY1498=\"\",\"\",'1. Order'!AY1498)","v":""},{"$f":"IF('1. Order'!AZ1498=\"\",\"\",'1. Order'!AZ1498)","v":""},{"$f":"IF('1. Order'!BA1498=\"\",\"\",'1. Order'!BA1498)","v":""},{"$f":"IF('1. Order'!BB1498=\"\",\"\",'1. Order'!BB1498)","v":""},{"$f":"IF('1. Order'!BD1498=\"\",\"\",'1. Order'!BD1498)","v":""},{"$f":"IF('1. Order'!BE1498=\"\",\"\",'1. Order'!BE1498)","v":""},{"$f":"IF('1. Order'!BF1498=\"\",\"\",'1. Order'!BF1498)","v":""},{"$f":"IF('1. Order'!BG1498=\"\",\"\",'1. Order'!BG1498)","v":""},{"$f":"IF('1. Order'!BH1498=\"\",\"\",'1. Order'!BH1498)","v":"ZWO"}]
[{"$f":"IF('1. Order'!F1499=\"\",\"\",'1. Order'!F1499)","v":{"$error":"#N/A"}},{"$f":"IF('1. Order'!G1499=\"\",\"\",'1. Order'!G1499)","v":""},{"$f":"IF('1. Order'!H1499=\"\",\"\",'1. Order'!H1499)","v":""},{"$f":"IF('1. Order'!I1499=\"\",\"\",'1. Order'!I1499)","v":""},{"$f":"IF('1. Order'!J1499=\"\",\"\",'1. Order'!J1499)","v":""},{"$f":"IF('1. Order'!K1499=\"\",\"\",'1. Order'!K1499)","v":""},{"$f":"IF('1. Order'!L1499=\"\",\"\",'1. Order'!L1499)","v":""},{"$f":"IF('1. Order'!M1499=\"\",\"\",'1. Order'!M1499)","v":""},{"$f":"IF('1. Order'!N1499=\"\",\"\",'1. Order'!N1499)","v":""},{"$f":"IF('1. Order'!O1499=\"\",\"\",'1. Order'!O1499)","v":{"$error":"#N/A"}},{"$f":"IF('1. Order'!P1499=\"\",\"\",'1. Order'!P1499)","v":{"$error":"#N/A"}},{"$f":"IF('1. Order'!Q1499=\"\",\"\",'1. Order'!Q1499)","v":""},{"$f":"IF('1. Order'!S1499=\"\",\"\",'1. Order'!S1499)","v":""},{"$f":"IF('1. Order'!T1499=\"\",\"\",'1. Order'!T1499)","v":""},{"$f":"IF('1. Order'!W1499=\"\",\"\",'1. Order'!W1499)","v":""},{"$f":"IF('1. Order'!X1499=\"\",\"\",'1. Order'!X1499)","v":""},{"$f":"IF('1. Order'!Y1499=\"\",\"\",'1. Order'!Y1499)","v":"EUR"},{"$f":"IF('1. Order'!Z1499=\"\",\"\",'1. Order'!Z1499)","v":""},{"$f":"IF('1. Order'!AA1499=\"\",\"\",'1. Order'!AA1499)","v":""},{"$f":"IF('1. Order'!AB1499=\"\",\"\",'1. Order'!AB1499)","v":""},null,{"$f":"IF('1. Order'!AT1499=\"\",\"\",'1. Order'!AT1499)","v":""},{"$f":"IF('1. Order'!AU1499=\"\",\"\",'1. Order'!AU1499)","v":""},null,null,null,null,null,null,null,{"$f":"IF('1. Order'!AY1499=\"\",\"\",'1. Order'!AY1499)","v":""},{"$f":"IF('1. Order'!AZ1499=\"\",\"\",'1. Order'!AZ1499)","v":""},{"$f":"IF('1. Order'!BA1499=\"\",\"\",'1. Order'!BA1499)","v":""},{"$f":"IF('1. Order'!BB1499=\"\",\"\",'1. Order'!BB1499)","v":""},{"$f":"IF('1. Order'!BD1499=\"\",\"\",'1. Order'!BD1499)","v":""},{"$f":"IF('1. Order'!BE1499=\"\",\"\",'1. Order'!BE1499)","v":""},{"$f":"IF('1. Order'!BF1499=\"\",\"\",'1. Order'!BF1499)","v":""},{"$f":"IF('1. Order'!BG1499=\"\",\"\",'1. Order'!BG1499)","v":""},{"$f":"IF('1. Order'!BH1499=\"\",\"\",'1. Order'!BH1499)","v":"ZWO"}]
[{"$f":"IF('1. Order'!F1500=\"\",\"\",'1. Order'!F1500)","v":{"$error":"#N/A"}},{"$f":"IF('1. Order'!G1500=\"\",\"\",'1. Order'!G1500)","v":""},{"$f":"IF('1. Order'!H1500=\"\",\"\",'1. Order'!H1500)","v":""},{"$f":"IF('1. Order'!I1500=\"\",\"\",'1. Order'!I1500)","v":""},{"$f":"IF('1. Order'!J1500=\"\",\"\",'1. Order'!J1500)","v":""},{"$f":"IF('1. Order'!K1500=\"\",\"\",'1. Order'!K1500)","v":""},{"$f":"IF('1. Order'!L1500=\"\",\"\",'1. Order'!L1500)","v":""},{"$f":"IF('1. Order'!M1500=\"\",\"\",'1. Order'!M1500)","v":""},{"$f":"IF('1. Order'!N1500=\"\",\"\",'1. Order'!N1500)","v":""},{"$f":"IF('1. Order'!O1500=\"\",\"\",'1. Order'!O1500)","v":{"$error":"#N/A"}},{"$f":"IF('1. Order'!P1500=\"\",\"\",'1. Order'!P1500)","v":{"$error":"#N/A"}},{"$f":"IF('1. Order'!Q1500=\"\",\"\",'1. Order'!Q1500)","v":""},{"$f":"IF('1. Order'!S1500=\"\",\"\",'1. Order'!S1500)","v":""},{"$f":"IF('1. Order'!T1500=\"\",\"\",'1. Order'!T1500)","v":""},{"$f":"IF('1. Order'!W1500=\"\",\"\",'1. Order'!W1500)","v":""},{"$f":"IF('1. Order'!X1500=\"\",\"\",'1. Order'!X1500)","v":""},{"$f":"IF('1. Order'!Y1500=\"\",\"\",'1. Order'!Y1500)","v":"EUR"},{"$f":"IF('1. Order'!Z1500=\"\",\"\",'1. Order'!Z1500)","v":""},{"$f":"IF('1. Order'!AA1500=\"\",\"\",'1. Order'!AA1500)","v":""},{"$f":"IF('1. Order'!AB1500=\"\",\"\",'1. Order'!AB1500)","v":""},null,{"$f":"IF('1. Order'!AT1500=\"\",\"\",'1. Order'!AT1500)","v":""},{"$f":"IF('1. Order'!AU1500=\"\",\"\",'1. Order'!AU1500)","v":""},null,null,null,null,null,null,null,{"$f":"IF('1. Order'!AY1500=\"\",\"\",'1. Order'!AY1500)","v":""},{"$f":"IF('1. Order'!AZ1500=\"\",\"\",'1. Order'!AZ1500)","v":""},{"$f":"IF('1. Order'!BA1500=\"\",\"\",'1. Order'!BA1500)","v":""},{"$f":"IF('1. Order'!BB1500=\"\",\"\",'1. Order'!BB1500)","v":""},{"$f":"IF('1. Order'!BD1500=\"\",\"\",'1. Order'!BD1500)","v":""},{"$f":"IF('1. Order'!BE1500=\"\",\"\",'1. Order'!BE1500)","v":""},{"$f":"IF('1. Order'!BF1500=\"\",\"\",'1. Order'!BF1500)","v":""},{"$f":"IF('1. Order'!BG1500=\"\",\"\",'1. Order'!BG1500)","v":""},{"$f":"IF('1. Order'!BH1500=\"\",\"\",'1. Order'!BH1500)","v":"ZWO"}]
[{"$f":"IF('1. Order'!F1501=\"\",\"\",'1. Order'!F1501)","v":{"$error":"#N/A"}},{"$f":"IF('1. Order'!G1501=\"\",\"\",'1. Order'!G1501)","v":""},{"$f":"IF('1. Order'!H1501=\"\",\"\",'1. Order'!H1501)","v":""},{"$f":"IF('1. Order'!I1501=\"\",\"\",'1. Order'!I1501)","v":""},{"$f":"IF('1. Order'!J1501=\"\",\"\",'1. Order'!J1501)","v":""},{"$f":"IF('1. Order'!K1501=\"\",\"\",'1. Order'!K1501)","v":""},{"$f":"IF('1. Order'!L1501=\"\",\"\",'1. Order'!L1501)","v":""},{"$f":"IF('1. Order'!M1501=\"\",\"\",'1. Order'!M1501)","v":""},{"$f":"IF('1. Order'!N1501=\"\",\"\",'1. Order'!N1501)","v":""},{"$f":"IF('1. Order'!O1501=\"\",\"\",'1. Order'!O1501)","v":{"$error":"#N/A"}},{"$f":"IF('1. Order'!P1501=\"\",\"\",'1. Order'!P1501)","v":{"$error":"#N/A"}},{"$f":"IF('1. Order'!Q1501=\"\",\"\",'1. Order'!Q1501)","v":""},{"$f":"IF('1. Order'!S1501=\"\",\"\",'1. Order'!S1501)","v":""},{"$f":"IF('1. Order'!T1501=\"\",\"\",'1. Order'!T1501)","v":""},{"$f":"IF('1. Order'!W1501=\"\",\"\",'1. Order'!W1501)","v":""},{"$f":"IF('1. Order'!X1501=\"\",\"\",'1. Order'!X1501)","v":""},{"$f":"IF('1. Order'!Y1501=\"\",\"\",'1. Order'!Y1501)","v":"EUR"},{"$f":"IF('1. Order'!Z1501=\"\",\"\",'1. Order'!Z1501)","v":""},{"$f":"IF('1. Order'!AA1501=\"\",\"\",'1. Order'!AA1501)","v":""},{"$f":"IF('1. Order'!AB1501=\"\",\"\",'1. Order'!AB1501)","v":""},null,{"$f":"IF('1. Order'!AT1501=\"\",\"\",'1. Order'!AT1501)","v":""},{"$f":"IF('1. Order'!AU1501=\"\",\"\",'1. Order'!AU1501)","v":""},null,null,null,null,null,null,null,{"$f":"IF('1. Order'!AY1501=\"\",\"\",'1. Order'!AY1501)","v":""},{"$f":"IF('1. Order'!AZ1501=\"\",\"\",'1. Order'!AZ1501)","v":""},{"$f":"IF('1. Order'!BA1501=\"\",\"\",'1. Order'!BA1501)","v":""},{"$f":"IF('1. Order'!BB1501=\"\",\"\",'1. Order'!BB1501)","v":""},{"$f":"IF('1. Order'!BD1501=\"\",\"\",'1. Order'!BD1501)","v":""},{"$f":"IF('1. Order'!BE1501=\"\",\"\",'1. Order'!BE1501)","v":""},{"$f":"IF('1. Order'!BF1501=\"\",\"\",'1. Order'!BF1501)","v":""},{"$f":"IF('1. Order'!BG1501=\"\",\"\",'1. Order'!BG1501)","v":""},{"$f":"IF('1. Order'!BH1501=\"\",\"\",'1. Order'!BH1501)","v":"ZWO"}]
[{"$f":"IF('1. Order'!F1502=\"\",\"\",'1. Order'!F1502)","v":{"$error":"#N/A"}},{"$f":"IF('1. Order'!G1502=\"\",\"\",'1. Order'!G1502)","v":""},{"$f":"IF('1. Order'!H1502=\"\",\"\",'1. Order'!H1502)","v":""},{"$f":"IF('1. Order'!I1502=\"\",\"\",'1. Order'!I1502)","v":""},{"$f":"IF('1. Order'!J1502=\"\",\"\",'1. Order'!J1502)","v":""},{"$f":"IF('1. Order'!K1502=\"\",\"\",'1. Order'!K1502)","v":""},{"$f":"IF('1. Order'!L1502=\"\",\"\",'1. Order'!L1502)","v":""},{"$f":"IF('1. Order'!M1502=\"\",\"\",'1. Order'!M1502)","v":""},{"$f":"IF('1. Order'!N1502=\"\",\"\",'1. Order'!N1502)","v":""},{"$f":"IF('1. Order'!O1502=\"\",\"\",'1. Order'!O1502)","v":{"$error":"#N/A"}},{"$f":"IF('1. Order'!P1502=\"\",\"\",'1. Order'!P1502)","v":{"$error":"#N/A"}},{"$f":"IF('1. Order'!Q1502=\"\",\"\",'1. Order'!Q1502)","v":""},{"$f":"IF('1. Order'!S1502=\"\",\"\",'1. Order'!S1502)","v":""},{"$f":"IF('1. Order'!T1502=\"\",\"\",'1. Order'!T1502)","v":""},{"$f":"IF('1. Order'!W1502=\"\",\"\",'1. Order'!W1502)","v":""},{"$f":"IF('1. Order'!X1502=\"\",\"\",'1. Order'!X1502)","v":""},{"$f":"IF('1. Order'!Y1502=\"\",\"\",'1. Order'!Y1502)","v":"EUR"},{"$f":"IF('1. Order'!Z1502=\"\",\"\",'1. Order'!Z1502)","v":""},{"$f":"IF('1. Order'!AA1502=\"\",\"\",'1. Order'!AA1502)","v":""},{"$f":"IF('1. Order'!AB1502=\"\",\"\",'1. Order'!AB1502)","v":""},null,{"$f":"IF('1. Order'!AT1502=\"\",\"\",'1. Order'!AT1502)","v":""},{"$f":"IF('1. Order'!AU1502=\"\",\"\",'1. Order'!AU1502)","v":""},null,null,null,null,null,null,null,{"$f":"IF('1. Order'!AY1502=\"\",\"\",'1. Order'!AY1502)","v":""},{"$f":"IF('1. Order'!AZ1502=\"\",\"\",'1. Order'!AZ1502)","v":""},{"$f":"IF('1. Order'!BA1502=\"\",\"\",'1. Order'!BA1502)","v":""},{"$f":"IF('1. Order'!BB1502=\"\",\"\",'1. Order'!BB1502)","v":""},{"$f":"IF('1. Order'!BD1502=\"\",\"\",'1. Order'!BD1502)","v":""},{"$f":"IF('1. Order'!BE1502=\"\",\"\",'1. Order'!BE1502)","v":""},{"$f":"IF('1. Order'!BF1502=\"\",\"\",'1. Order'!BF1502)","v":""},{"$f":"IF('1. Order'!BG1502=\"\",\"\",'1. Order'!BG1502)","v":""},{"$f":"IF('1. Order'!BH1502=\"\",\"\",'1. Order'!BH1502)","v":"ZWO"}]
[{"$f":"IF('1. Order'!F1503=\"\",\"\",'1. Order'!F1503)","v":{"$error":"#N/A"}},{"$f":"IF('1. Order'!G1503=\"\",\"\",'1. Order'!G1503)","v":""},{"$f":"IF('1. Order'!H1503=\"\",\"\",'1. Order'!H1503)","v":""},{"$f":"IF('1. Order'!I1503=\"\",\"\",'1. Order'!I1503)","v":""},{"$f":"IF('1. Order'!J1503=\"\",\"\",'1. Order'!J1503)","v":""},{"$f":"IF('1. Order'!K1503=\"\",\"\",'1. Order'!K1503)","v":""},{"$f":"IF('1. Order'!L1503=\"\",\"\",'1. Order'!L1503)","v":""},{"$f":"IF('1. Order'!M1503=\"\",\"\",'1. Order'!M1503)","v":""},{"$f":"IF('1. Order'!N1503=\"\",\"\",'1. Order'!N1503)","v":""},{"$f":"IF('1. Order'!O1503=\"\",\"\",'1. Order'!O1503)","v":{"$error":"#N/A"}},{"$f":"IF('1. Order'!P1503=\"\",\"\",'1. Order'!P1503)","v":{"$error":"#N/A"}},{"$f":"IF('1. Order'!Q1503=\"\",\"\",'1. Order'!Q1503)","v":""},{"$f":"IF('1. Order'!S1503=\"\",\"\",'1. Order'!S1503)","v":""},{"$f":"IF('1. Order'!T1503=\"\",\"\",'1. Order'!T1503)","v":""},{"$f":"IF('1. Order'!W1503=\"\",\"\",'1. Order'!W1503)","v":""},{"$f":"IF('1. Order'!X1503=\"\",\"\",'1. Order'!X1503)","v":""},{"$f":"IF('1. Order'!Y1503=\"\",\"\",'1. Order'!Y1503)","v":"EUR"},{"$f":"IF('1. Order'!Z1503=\"\",\"\",'1. Order'!Z1503)","v":""},{"$f":"IF('1. Order'!AA1503=\"\",\"\",'1. Order'!AA1503)","v":""},{"$f":"IF('1. Order'!AB1503=\"\",\"\",'1. Order'!AB1503)","v":""},null,{"$f":"IF('1. Order'!AT1503=\"\",\"\",'1. Order'!AT1503)","v":""},{"$f":"IF('1. Order'!AU1503=\"\",\"\",'1. Order'!AU1503)","v":""},null,null,null,null,null,null,null,{"$f":"IF('1. Order'!AY1503=\"\",\"\",'1. Order'!AY1503)","v":""},{"$f":"IF('1. Order'!AZ1503=\"\",\"\",'1. Order'!AZ1503)","v":""},{"$f":"IF('1. Order'!BA1503=\"\",\"\",'1. Order'!BA1503)","v":""},{"$f":"IF('1. Order'!BB1503=\"\",\"\",'1. Order'!BB1503)","v":""},{"$f":"IF('1. Order'!BD1503=\"\",\"\",'1. Order'!BD1503)","v":""},{"$f":"IF('1. Order'!BE1503=\"\",\"\",'1. Order'!BE1503)","v":""},{"$f":"IF('1. Order'!BF1503=\"\",\"\",'1. Order'!BF1503)","v":""},{"$f":"IF('1. Order'!BG1503=\"\",\"\",'1. Order'!BG1503)","v":""},{"$f":"IF('1. Order'!BH1503=\"\",\"\",'1. Order'!BH1503)","v":"ZWO"}]
[{"$f":"IF('1. Order'!F1504=\"\",\"\",'1. Order'!F1504)","v":{"$error":"#N/A"}},{"$f":"IF('1. Order'!G1504=\"\",\"\",'1. Order'!G1504)","v":""},{"$f":"IF('1. Order'!H1504=\"\",\"\",'1. Order'!H1504)","v":""},{"$f":"IF('1. Order'!I1504=\"\",\"\",'1. Order'!I1504)","v":""},{"$f":"IF('1. Order'!J1504=\"\",\"\",'1. Order'!J1504)","v":""},{"$f":"IF('1. Order'!K1504=\"\",\"\",'1. Order'!K1504)","v":""},{"$f":"IF('1. Order'!L1504=\"\",\"\",'1. Order'!L1504)","v":""},{"$f":"IF('1. Order'!M1504=\"\",\"\",'1. Order'!M1504)","v":""},{"$f":"IF('1. Order'!N1504=\"\",\"\",'1. Order'!N1504)","v":""},{"$f":"IF('1. Order'!O1504=\"\",\"\",'1. Order'!O1504)","v":{"$error":"#N/A"}},{"$f":"IF('1. Order'!P1504=\"\",\"\",'1. Order'!P1504)","v":{"$error":"#N/A"}},{"$f":"IF('1. Order'!Q1504=\"\",\"\",'1. Order'!Q1504)","v":""},{"$f":"IF('1. Order'!S1504=\"\",\"\",'1. Order'!S1504)","v":""},{"$f":"IF('1. Order'!T1504=\"\",\"\",'1. Order'!T1504)","v":""},{"$f":"IF('1. Order'!W1504=\"\",\"\",'1. Order'!W1504)","v":""},{"$f":"IF('1. Order'!X1504=\"\",\"\",'1. Order'!X1504)","v":""},{"$f":"IF('1. Order'!Y1504=\"\",\"\",'1. Order'!Y1504)","v":"EUR"},{"$f":"IF('1. Order'!Z1504=\"\",\"\",'1. Order'!Z1504)","v":""},{"$f":"IF('1. Order'!AA1504=\"\",\"\",'1. Order'!AA1504)","v":""},{"$f":"IF('1. Order'!AB1504=\"\",\"\",'1. Order'!AB1504)","v":""},null,{"$f":"IF('1. Order'!AT1504=\"\",\"\",'1. Order'!AT1504)","v":""},{"$f":"IF('1. Order'!AU1504=\"\",\"\",'1. Order'!AU1504)","v":""},null,null,null,null,null,null,null,{"$f":"IF('1. Order'!AY1504=\"\",\"\",'1. Order'!AY1504)","v":""},{"$f":"IF('1. Order'!AZ1504=\"\",\"\",'1. Order'!AZ1504)","v":""},{"$f":"IF('1. Order'!BA1504=\"\",\"\",'1. Order'!BA1504)","v":""},{"$f":"IF('1. Order'!BB1504=\"\",\"\",'1. Order'!BB1504)","v":""},{"$f":"IF('1. Order'!BD1504=\"\",\"\",'1. Order'!BD1504)","v":""},{"$f":"IF('1. Order'!BE1504=\"\",\"\",'1. Order'!BE1504)","v":""},{"$f":"IF('1. Order'!BF1504=\"\",\"\",'1. Order'!BF1504)","v":""},{"$f":"IF('1. Order'!BG1504=\"\",\"\",'1. Order'!BG1504)","v":""},{"$f":"IF('1. Order'!BH1504=\"\",\"\",'1. Order'!BH1504)","v":"ZWO"}]
[{"$f":"IF('1. Order'!F1505=\"\",\"\",'1. Order'!F1505)","v":{"$error":"#N/A"}},{"$f":"IF('1. Order'!G1505=\"\",\"\",'1. Order'!G1505)","v":""},{"$f":"IF('1. Order'!H1505=\"\",\"\",'1. Order'!H1505)","v":""},{"$f":"IF('1. Order'!I1505=\"\",\"\",'1. Order'!I1505)","v":""},{"$f":"IF('1. Order'!J1505=\"\",\"\",'1. Order'!J1505)","v":""},{"$f":"IF('1. Order'!K1505=\"\",\"\",'1. Order'!K1505)","v":""},{"$f":"IF('1. Order'!L1505=\"\",\"\",'1. Order'!L1505)","v":""},{"$f":"IF('1. Order'!M1505=\"\",\"\",'1. Order'!M1505)","v":""},{"$f":"IF('1. Order'!N1505=\"\",\"\",'1. Order'!N1505)","v":""},{"$f":"IF('1. Order'!O1505=\"\",\"\",'1. Order'!O1505)","v":{"$error":"#N/A"}},{"$f":"IF('1. Order'!P1505=\"\",\"\",'1. Order'!P1505)","v":{"$error":"#N/A"}},{"$f":"IF('1. Order'!Q1505=\"\",\"\",'1. Order'!Q1505)","v":""},{"$f":"IF('1. Order'!S1505=\"\",\"\",'1. Order'!S1505)","v":""},{"$f":"IF('1. Order'!T1505=\"\",\"\",'1. Order'!T1505)","v":""},{"$f":"IF('1. Order'!W1505=\"\",\"\",'1. Order'!W1505)","v":""},{"$f":"IF('1. Order'!X1505=\"\",\"\",'1. Order'!X1505)","v":""},{"$f":"IF('1. Order'!Y1505=\"\",\"\",'1. Order'!Y1505)","v":"EUR"},{"$f":"IF('1. Order'!Z1505=\"\",\"\",'1. Order'!Z1505)","v":""},{"$f":"IF('1. Order'!AA1505=\"\",\"\",'1. Order'!AA1505)","v":""},{"$f":"IF('1. Order'!AB1505=\"\",\"\",'1. Order'!AB1505)","v":""},null,{"$f":"IF('1. Order'!AT1505=\"\",\"\",'1. Order'!AT1505)","v":""},{"$f":"IF('1. Order'!AU1505=\"\",\"\",'1. Order'!AU1505)","v":""},null,null,null,null,null,null,null,{"$f":"IF('1. Order'!AY1505=\"\",\"\",'1. Order'!AY1505)","v":""},{"$f":"IF('1. Order'!AZ1505=\"\",\"\",'1. Order'!AZ1505)","v":""},{"$f":"IF('1. Order'!BA1505=\"\",\"\",'1. Order'!BA1505)","v":""},{"$f":"IF('1. Order'!BB1505=\"\",\"\",'1. Order'!BB1505)","v":""},{"$f":"IF('1. Order'!BD1505=\"\",\"\",'1. Order'!BD1505)","v":""},{"$f":"IF('1. Order'!BE1505=\"\",\"\",'1. Order'!BE1505)","v":""},{"$f":"IF('1. Order'!BF1505=\"\",\"\",'1. Order'!BF1505)","v":""},{"$f":"IF('1. Order'!BG1505=\"\",\"\",'1. Order'!BG1505)","v":""},{"$f":"IF('1. Order'!BH1505=\"\",\"\",'1. Order'!BH1505)","v":"ZWO"}]

{"sheet":"Data content","index":5,"n_rows":76,"n_cols":40,"rows_kept":76,"cut":false,"hidden":true,"merged":[]}
["Filterkleur","Filtermateriaal","Print","Lengte","Sluiting","Pasvorm/fit","Slijtage details","Multi: Soort zak","Multi: Soort broek","Multi: Soort jeans","Multi: Soort korte broek","Kraagvorm","Mouwlengte","Fit bovenkleding","Multi: Soort jas","Multi: Soort trui","Multi: Soort vest","Soort overhemd","Overshirt",null,null,"Filter colour","Filtermaterial","Print","Length","Closure","Fit","Distressed details","Multi: Type of pocket","Multi: Type of trousers","Multi: Type of jeans","Multi: Type of shorts","Neckline","Sleeve length","Fit tops (menswear)","Multi: Type of jacket","Multi: Type of sweater","Multi: Type of cardigan","Type of shirt","Overshirt"]
["Antraciet","All weather stof","All over print","Cropped","2-way rits","Aansluitend","Ja","5-pocket","Cargo broeken","Barrel jeans","Bermuda shorts","Button down","Driekwart","Loose","Anoraks","Coltruien","Fleecevesten","Casual overhemden","Ja",null,null,"Anthracite","All-weather fabric","All-over print","Cropped","2-way zipper","Fitted","Yes","5-pocket","Cargo trousers","Barrel jeans","Bermuda shorts","Button-down","Three-quarter length","Loose","Anoraks","Turtleneck sweater","Fleece cardigan","Casual shirts","Yes"]
["Aubergine","Badstof","Backprint","Kort","2-way rits met windvanger","A-lijn","Nee","Afsluitbare zak","Casual broeken","Bootcut jeans","Cargo shorts","Capuchon","Half lang","Regular","Baseball jackets","Fleecetruien","Gebreide vesten","Overshirts","Nee",null,null,"Aubergine","Terry cloth","Back print","Short","2-way zipper with wind flap","A-line","No","Secure pocket (or pocket with closure)","Casual trousers","Bootcut jeans","Cargo shorts","Hood","Half-length","Regular","Baseball jackets","Fleece sweater","Knitted cardigan","Overshirts","No"]
["Beige","Bamboe","Blad","Lang","Adjust-O-Matic","Barrel",null,"Afsluitbare zakken","Chino's","Boyfriend jeans","Casual shorts","Col","Kort","Slim","Bikerjacks","Gebreide truien","Gevoerde vesten","Zakelijke overhemden",null,null,null,"Beige","Bamboo","Leafs","Long","Adjust-O-Matic","Barrel",null,"Secure pockets (or pockets with closures)","Chinos","Boyfriend jeans","Casual shorts","Turtleneck","Short","Slim","Biker jackets","Knitted sweater","Lined cardigan","Formal shirts"]
["Black denim","BCI katoen","Bloemen","Middel","Bergsluiting","Bootcut",null,"Audiozakje","Coated broeken","Cargo jeans","Chino shorts","Henleykraag","Lang","Super slim","Bodywarmers","Hoodies","Lange vesten",null,null,null,null,"Black denim","BCI cotton","Flowers","Midi","Laces with hooks","Bootcut",null,"Audio pocket","Coated trousers","Cargo jeans","Chino shorts","Henley collar","Long","Super slim","Gilets / Body warmers","Hoodie","Long cardigan"]
["Blauw","Biologisch katoen","Camouflage","Mini","Beugel","Comfort fit",null,"Binnenzak","Cropped broeken","Cropped jeans","Denim shorts","Klassieke kraag","Mouwlengte 7",null,"Bomberjacks","Kabeltruien","Outdoor vesten",null,null,null,null,"Blue","Organic cotton","Camouflage","Mini","Tension clasp","Comfort fit",null,"Inner pocket","Cropped trousers","Cropped jeans","Denim shorts","Classic collar","Sleevelength 7",null,"Bomber jackets","Cableknit sweater","Outdoor cardigan"]
["Brique","Bouclé","Dierenprint",null,"Blinde knoopsluiting","Flared",null,"Binnenzakken","Flared broeken","Flared jeans","Korte tuinbroeken","Mao kraag","Mouwloos",null,"Gewatteerde jassen","Kersttruien","Sweatvesten",null,null,null,null,"Brick","Bouclé","Animal print",null,"Invisible button","Flared",null,"Inner pockets","Flared trousers","Flared jeans","Dungaree shorts","Mao collar","Sleeveless",null,"Padded jackets","Christmas sweater","Sweat cardigan"]
["Brons","Canvas","Dip-dye",null,"Blinde ritssluiting","Getailleerd",null,"Borstzak","Joggingbroeken","Loose fit jeans","Outdoor korte broeken","Openvallende hals",null,null,"Imitatieleren jassen","Noorse truien","Wikkelvesten",null,null,null,null,"Bronze","Canvas","Dip-dye",null,"Invisible zipper","Waisted",null,"Chest pocket","Joggers","Loose fit jeans","Outdoor shorts","Open-neck",null,null,"Faux leather jackets","Norwegian sweater","Wrap cardigan"]
["Bruin","Chenille","Effen",null,"Box and Tongue","Loose",null,"Borstzakken","Outdoor broek","Regular fit jeans","Strandshorts","Opstaande kraag",null,null,"Jacks","Pullovers",null,null,null,null,null,"Brown","Chenille","Plain",null,"Box and tongue","Loose",null,"Chest pockets","Outdoor trousers","Regular fit jeans","Beach shorts","Stand-up collar",null,null,"Jackets","Pullover"]
["Camel","Coated","Grafisch",null,"Clipsluiting","Oversized",null,"Cargozakken","Pantalons","Skinny jeans","Sweatshorts","Overslagkraag",null,null,"Jasjes","Schipperstruien",null,null,null,null,null,"Camel","Coated","Graphic",null,"Clip closure","Oversized",null,"Cargo pockets","Dress pants","Skinny jeans","Sweatshorts","Wrap collar",null,null,"Lighter jackets","Skipper sweater"]
["Champagne","Corduroy","Hartjes",null,"Double breasted","Rechtvallend",null,"Geen","Regenbroeken","Slim fit jeans",null,"Peter Pan-kraag",null,null,"Lammy coat","Spencers",null,null,null,null,null,"Champagne","Corduroy","Hearts",null,"Double-breasted","Straight fit",null,"None","Rain pants","Slim fit jeans",null,"Peter Pan collar",null,null,"Lammy coat","Spencer"]
["Cognac","Cupro","Krijtstreep",null,"Draaisluiting","Regular",null,"Kangoeroezak","Sweatpants","Straight leg jeans",null,"Polo",null,null,"Leren jassen","Sweaters",null,null,null,null,null,"Cognac","Cupro","Pinstripe",null,"Twist lock closure","Regular",null,"Kangaroo pocket","Sweatpants","Straight leg jeans",null,"Polo collar",null,null,"Leather jackets","Sweatshirt"]
["Crème","Denim","Logo",null,"Drukknoop","Relaxed",null,"Sierzakken","Tuinbroeken","Super skinny jeans",null,"Reverskraag",null,null,"Manteljas",null,null,null,null,null,null,"Cream","Denim","Logo",null,"Press stud","Relaxed",null,"Decorative pockets","Overalls","Super skinny jeans",null,"Notch collar",null,null,"Overcoat"]
["Cyaan","Dons","Meerkleurig",null,"Elastische inzet","Skinny",null,"Skipaszak",null,"Tapered jeans",null,"Rolkraag",null,null,"Outdoor jassen",null,null,null,null,null,null,"Cyan","Down","Multicolored",null,"Elastic insert","Skinny",null,"Ski pass pocket",null,"Tapered jeans",null,"Rollneck",null,null,"Outdoor jackets"]
["Dark blue denim","Dralon","Melée",null,"Elastische tailleband","Slim",null,"Sleutelzakje",null,"Wide leg jeans",null,"Ronde hals",null,null,"Parka’s",null,null,null,null,null,null,"Dark blue denim","Dralon","Mélange",null,"Elastic waistband","Slim",null,"Key pocket",null,"Wide leg jeans",null,"Round neck",null,null,"Parkas"]
["Donkerblauw","Ecodown","Mixprint",null,"Elastische tailleband met koord","Straight",null,"Zak achter",null,null,null,"Schipperskraag",null,null,"Quilted jassen",null,null,null,null,null,null,"Dark blue","Ecodown","Mixed print",null,"Elastic waistband with drawstring","Straight",null,"Back pocket",null,null,null,"Skipper collar",null,null,"Quilted jackets"]
["Donkerbruin","EcoVero","Paisley",null,"Elastische veter","Super skinny",null,"Zakken achter",null,null,null,"Sjaalkraag",null,null,"Regenjassen",null,null,null,null,null,null,"Dark brown","EcoVero","Paisley",null,"Elastic laces","Super skinny",null,"Back pockets",null,null,null,"Shawl collar",null,null,"Rain jackets"]
["Donkergroen","Flanel","Panterprint",null,"Elastische veter- met klittenbandsluiting","Super slim",null,"Zakken voor",null,null,null,"Smokingkraag",null,null,"Reversible jassen",null,null,null,null,null,null,"Dark green","Flannel","Leopard print",null,"Elastic laces with Velcro closure","Super slim",null,"Front pockets",null,null,null,"Smoking collar",null,null,"Reversible jackets"]
["Donker oranje","Fleece","Personage",null,"Geen","Tapered",null,"Zak op de mouw",null,null,null,"V-hals",null,null,"Shackets",null,null,null,null,null,null,"Dark orange","Fleece","Character",null,"None","Tapered",null,"Sleeve pocket",null,null,null,"V-neck",null,null,"Shackets"]
["Donkerpaars","Fluweel","Pied de Poule",null,"Gesp","Wide leg",null,"Zijzak",null,null,null,"Vierkante hals",null,null,"Softshell jassen",null,null,null,null,null,null,"Dark purple","Velvet","Houndstooth",null,"Buckle","Wide leg",null,"Side pocket",null,null,null,"Square neckline",null,null,"Softshell jackets"]
["Donkerrood","Gerecycled dons","Printopdruk",null,"Haaksluiting",null,null,"Zijzakken",null,null,null,"Widespread",null,null,"Spijkerjassen",null,null,null,null,null,null,"Dark red","Recycled down","Print design",null,"Hook closure",null,null,"Side pockets",null,null,null,"Widespread collar",null,null,"Denim jackets"]
["Donkerviolet","Gerecycled katoen","Ruit",null,"Halve rits",null,null,null,null,null,null,null,null,null,"Teddy jassen",null,null,null,null,null,null,"Dark violet","Recycled cotton","Checkered (Plaid)",null,"Half zipper",null,null,null,null,null,null,null,null,null,"Teddy jackets"]
["Ecru","Gerecycled materiaal","Sterren",null,"Kapittelslot",null,null,null,null,null,null,null,null,null,"Trenchcoats",null,null,null,null,null,null,"Ecru","Recycled material","Stars",null,"Cap lock",null,null,null,null,null,null,null,null,null,"Trench coats"]
["Fuchsia","Gerecycled polyamide","Stip",null,"Karabijnsluiting",null,null,null,null,null,null,null,null,null,"Tussenjassen",null,null,null,null,null,null,"Fuchsia","Recycled polyamide","Polka dots",null,"Lobster claw closure",null,null,null,null,null,null,null,null,null,"Transitional jackets"]
["Geel","Gerecycled polyester","Streep",null,"Kliksluiting",null,null,null,null,null,null,null,null,null,"Winterjassen",null,null,null,null,null,null,"Yellow","Recycled polyester","Stripe",null,"Click closure",null,null,null,null,null,null,null,null,null,"Winter jackets"]
["Goud","Gewassen katoen","Tekst",null,"Klittenband",null,null,null,null,null,null,null,null,null,"Zomerjassen",null,null,null,null,null,null,"Gold","Washed cotton","Text",null,"Velcro",null,null,null,null,null,null,null,null,null,"Summer jackets"]
["Grey denim","Imitatiebont","Tie-dye",null,"Knoopsluiting",null,null,null,null,null,null,null,null,null,null,null,null,null,null,null,null,"Grey denim","Faux fur","Tie-dye",null,"Button closure"]
["Grijs","Imitatieleer","Tortoise",null,"Magneetsluiting",null,null,null,null,null,null,null,null,null,null,null,null,null,null,null,null,"Grey","Faux leather","Tortoise",null,"Magnet closure"]
["Grijsblauw","Imitatiesuède","Vintage",null,"Rits- en drukknoopsluiting",null,null,null,null,null,null,null,null,null,null,null,null,null,null,null,null,"Grey-blue","Faux suede","Vintage",null,"Zipper and press stud closure"]
["Grijsbruin","Jersey","Zebraprint",null,"Rits- en haaksluiting",null,null,null,null,null,null,null,null,null,null,null,null,null,null,null,null,"Grey-brown","Jersey","Zebra print",null,"Zipper and hook closure"]
["Grijsgroen","Jog denim",null,null,"Rits- en klittenbandsluiting",null,null,null,null,null,null,null,null,null,null,null,null,null,null,null,null,"Grey-green","Jog denim",null,null,"Zipper and Velcro closure"]
["Grijs melange","Jute",null,null,"Rits- en knoopsluiting",null,null,null,null,null,null,null,null,null,null,null,null,null,null,null,null,"Grey mélange","Jute",null,null,"Zipper and button closure"]
["Groen","Kant",null,null,"Rits- en vetersluiting",null,null,null,null,null,null,null,null,null,null,null,null,null,null,null,null,"Green","Lace",null,null,"Zipper and lace closure"]
["Honing","Kapok",null,null,"Rits, haak- en knoopsluiting",null,null,null,null,null,null,null,null,null,null,null,null,null,null,null,null,"Honey","Kapok",null,null,"Zipper, hook, and button closure"]
["Ivoor","Katoen",null,null,"Rits met windvanger",null,null,null,null,null,null,null,null,null,null,null,null,null,null,null,null,"Ivory","Cotton",null,null,"Zipper with wind flap"]
["Kaki","Katoenlinnen",null,null,"Ritssluiting",null,null,null,null,null,null,null,null,null,null,null,null,null,null,null,null,"Khaki","Cotton linen",null,null,"Zipper"]
["Koraalrood","Katoen-lyocell",null,null,"Rits + tunnelkoord",null,null,null,null,null,null,null,null,null,null,null,null,null,null,null,null,"Coral red","Cotton-lyocell",null,null,"Zipper + drawstring"]
["Lavendel","Katoen satijn",null,null,"Rits waterdicht",null,null,null,null,null,null,null,null,null,null,null,null,null,null,null,null,"Lavender","Cotton satin",null,null,"Waterproof zipper"]
["Lichtblauw","Leer",null,null,"Rits winddicht",null,null,null,null,null,null,null,null,null,null,null,null,null,null,null,null,"Light blue","Leather",null,null,"Windproof zipper"]
["Lichtbruin","Linnen",null,null,"Rits wind- en waterdicht",null,null,null,null,null,null,null,null,null,null,null,null,null,null,null,null,"Light brown","Linen",null,null,"Wind- and waterproof zipper"]
["Lichtgeel","Lyocell",null,null,"Slider",null,null,null,null,null,null,null,null,null,null,null,null,null,null,null,null,"Light yellow","Lyocell",null,null,"Slider"]
["Lichtgrijs","Merinowol",null,null,"Snapback",null,null,null,null,null,null,null,null,null,null,null,null,null,null,null,null,"Light grey","Merino wool",null,null,"Snapback"]
["Lichtgroen","Mesh",null,null,"Strapback",null,null,null,null,null,null,null,null,null,null,null,null,null,null,null,null,"Light green","Mesh",null,null,"Strapback"]
["Lichtkaki","Microleer",null,null,"Striksluiting",null,null,null,null,null,null,null,null,null,null,null,null,null,null,null,null,"Light khaki","Micro leather",null,null,"Tie closure"]
["Lichtroze","Modacryl",null,null,"Trekkoorden",null,null,null,null,null,null,null,null,null,null,null,null,null,null,null,null,"Light pink","Modacryl",null,null,"Drawstrings"]
["Light blue denim","Modal",null,null,"Veersluiting",null,null,null,null,null,null,null,null,null,null,null,null,null,null,null,null,"Light blue denim","Modal",null,null,"Spring closure"]
["Lila","Molton",null,null,"Veiligheidsslot",null,null,null,null,null,null,null,null,null,null,null,null,null,null,null,null,"Lilac","Molton",null,null,"Safety lock"]
["Limegroen","Nubuck",null,null,"Veter",null,null,null,null,null,null,null,null,null,null,null,null,null,null,null,null,"Lime green","Nubuck",null,null,"Laces"]
["Magenta","Nylon",null,null,"Veter- met klittenbandsluiting",null,null,null,null,null,null,null,null,null,null,null,null,null,null,null,null,"Lye","Nylon",null,null,"Laces with Velcro closure"]
["Marine","Polyamide",null,null,"Vlindersluiting",null,null,null,null,null,null,null,null,null,null,null,null,null,null,null,null,"Navy","Polyamide",null,null,"Butterfly clasp"]
["Medium blue denim","Polyester",null,null,"Vouwsluiting",null,null,null,null,null,null,null,null,null,null,null,null,null,null,null,null,"Medium blue denim","Polyester",null,null,"Folding clasp"]
["Mintgroen","Polyester-katoen",null,null,null,null,null,null,null,null,null,null,null,null,null,null,null,null,null,null,null,"Mint green","Polyester-cotton"]
["Multi","Ramie",null,null,null,null,null,null,null,null,null,null,null,null,null,null,null,null,null,null,null,"Multicolored","Ramie"]
["Naturel","Rayon",null,null,null,null,null,null,null,null,null,null,null,null,null,null,null,null,null,null,null,"Natural","Rayon"]
["Nude","Satijn",null,null,null,null,null,null,null,null,null,null,null,null,null,null,null,null,null,null,null,"Nude","Satin"]
["Oker","Satijn-katoen bamboe",null,null,null,null,null,null,null,null,null,null,null,null,null,null,null,null,null,null,null,"Ochre","Satin-cotton bamboo"]
["Olijfgroen","Softshell",null,null,null,null,null,null,null,null,null,null,null,null,null,null,null,null,null,null,null,"Olive green","Softshell"]
["Oranje","Stonewashed",null,null,null,null,null,null,null,null,null,null,null,null,null,null,null,null,null,null,null,"Orange","Stonewashed"]
["Oudroze","Stretchdenim",null,null,null,null,null,null,null,null,null,null,null,null,null,null,null,null,null,null,null,"Old pink","Stretch denim"]
["Paars","Stretchkatoen",null,null,null,null,null,null,null,null,null,null,null,null,null,null,null,null,null,null,null,"Purple","Stretch cotton"]
["Petrol","Suede",null,null,null,null,null,null,null,null,null,null,null,null,null,null,null,null,null,null,null,"Petrol","Suede"]
["Rood","Sweat",null,null,null,null,null,null,null,null,null,null,null,null,null,null,null,null,null,null,null,"Red","Sweat"]
["Roodbruin","Teddy",null,null,null,null,null,null,null,null,null,null,null,null,null,null,null,null,null,null,null,"Reddish brown","Teddy"]
["Rosé","Tencel",null,null,null,null,null,null,null,null,null,null,null,null,null,null,null,null,null,null,null,"Rosé","Tencel"]
["Roze","Textiel",null,null,null,null,null,null,null,null,null,null,null,null,null,null,null,null,null,null,null,"Pink","Textile"]
["Stonewashed","Textileen",null,null,null,null,null,null,null,null,null,null,null,null,null,null,null,null,null,null,null,"Stonewashed","Textilene"]
["Taupe","Travelstof",null,null,null,null,null,null,null,null,null,null,null,null,null,null,null,null,null,null,null,"Taupe","Travel fabric"]
["Transparant","Tweed",null,null,null,null,null,null,null,null,null,null,null,null,null,null,null,null,null,null,null,"Transparent","Tweed"]
["Turquoise","Vacht",null,null,null,null,null,null,null,null,null,null,null,null,null,null,null,null,null,null,null,"Turquoise","Fur"]
["Violet","Vegan leather",null,null,null,null,null,null,null,null,null,null,null,null,null,null,null,null,null,null,null,"Violet","Vegan leather"]
["White wash","Velours",null,null,null,null,null,null,null,null,null,null,null,null,null,null,null,null,null,null,null,"White wash","Velours"]
["Wit","Vinyl",null,null,null,null,null,null,null,null,null,null,null,null,null,null,null,null,null,null,null,"White","Vinyl"]
["Zalm","Viscose",null,null,null,null,null,null,null,null,null,null,null,null,null,null,null,null,null,null,null,"Salmon","Viscose"]
["Zand","Waste2Wear",null,null,null,null,null,null,null,null,null,null,null,null,null,null,null,null,null,null,null,"Sand","Waste2Wear"]
["Zilver","Wol",null,null,null,null,null,null,null,null,null,null,null,null,null,null,null,null,null,null,null,"Silver","Wool"]
["Zwart","Zijde",null,null,null,null,null,null,null,null,null,null,null,null,null,null,null,null,null,null,null,"Black","Silk"]

{"sheet":"Data order","index":6,"n_rows":317,"n_cols":31,"rows_kept":317,"cut":false,"hidden":true,"merged":[]}
["DarwinMoverClass","CurrencyCodePurchasePrice","SalesSegment","Hanggoed/liggoed","OMID","LogisticItemGroup","ShippingCosts","WKShippingMethod","Certificaten: Gerecycled materiaal","Certificaten: Biologisch materiaal","Certificaten: Dierenwelzijn",null,"korte omschrijving","MCC3_CODE","Artikeltype",null,"Brand","Brand line",null,"Buyer",null,"Planner",null,"Soort maatvoering",null,"Brand","Sup no",null,"SIZE","BARCODE SIZE","Kolom1"]
["never out of stock","EUR",1,"Hanggoed","B",1,"Direct-Hg","DirectDel","Global Recycled Standard (GRS)","GOTS Organic (Global Organic Textile Standard)","The Good Cashmere Standard (GCS)",null,"jas","CH3F","Jas (Heren)",null,"A Fish Named Fred","BOSS Athleisure",null,"nvdbrink",null,"elvisscher",null,"Boord maat",null,"A Fish Named Fred",17509,null,31,31]
["seasonal noos","USD",5,"Liggoed","I",2,"Direct-Lg","Parcel",null,"OCS 100 (Organic Content Standard)",null,null,"regenjas","MF4G","Regenjas (Heren)",null,"Abrand Jeans","BOSS Athleisure B&T",null,"mkes",null,"mlunenborg",null,"Big&Tall",null,"Abrand Jeans","12103363‬‬",null,"XS",950]
["summer 2025",null,null,null,"M",3,"None","Truck",null,"Better Cotton Initiative (BCI)",null,null,"leren jas","FG7P","Jas (Heren)",null,"Ballin","BOSS Casual",null,"M fas.regu",null,null,null,null,null,"Black Bananas",12102785,null,"S",1]
["winter 2025",null,null,null,"R",4,"Parcel-spc",null,null,null,null,null,"denim jack","CG9P","Jas (Heren)",null,"Black Bananas","BOSS Menswear",null,null,null,null,null,null,null,"Blend",17689,null,"M",2]
["summer 2026",null,null,null,null,5,"Parcel<3kg",null,null,null,null,null,"bodywarmer","JX5C","Jas (Heren)",null,"Blend","Sons of Owen",null,null,null,null,null,{"$error":"#N/A"},null,"Blend B&T",17689,null,"L",3]
["winter 2026",null,null,null,null,6,"Parcel>3kg",null,null,null,null,null,"parka","GF6R","Jas (Heren)",null,"Blend B&T","Comfort Studio by Kultivate",null,null,null,null,null,null,null,"Blue Industry",17381,null,"XL",4]
["summer 2027",null,null,null,null,null,"Truck",null,null,null,null,null,"padded","WQ2V","Jas (Heren)",null,"Blue Industry","Replay Grey",null,null,null,null,null,null,null,"BOSS",12101045,null,"2XL",5]
["winter 2027",null,null,null,null,null,"Truck<65E",null,null,null,null,null,"Coat","QP6C","Jas (Heren)",null,"BOSS","BIG &TALL",null,null,null,null,null,null,null,"Butcher of blue",12102559,null,"3XL",6]
[null,null,null,null,null,null,"Direct-sp1",null,null,null,null,null,"formal shirt lm","XJ9X","Overhemd (Heren)",null,"Butcher of blue","Forgotten Faces",null,null,null,null,null,null,null,"Calvin Klein Jeans",12103156,null,"4XL",7]
[null,null,null,null,null,null,"Direct-sp2",null,null,null,null,null,"formal shirt km","XJ9X","Overhemd (Heren)",null,"Calvin Klein",null,null,null,null,null,null,null,null,"Calvin Klein Menswear",12103156,null,"5XL",8]
[null,null,null,null,null,null,"Null",null,null,null,null,null,"overshirt","XJ9X","Overhemd (Heren)",null,"Calvin Klein Jeans",null,null,null,null,null,null,null,null,"Cars",1415,null,"6XL",9]
[null,null,null,null,null,null,null,null,null,null,null,null,"casual shirt lm","PJ6M","Overhemd (Heren)",null,"Cars",null,null,null,null,null,null,null,null,"Cast Iron",12100336,null,"27-30",270]
[null,null,null,null,null,null,null,null,null,null,null,null,"casual shirt km","PJ6M","Overhemd (Heren)",null,"Cast Iron",null,null,null,null,null,null,null,null,"Charles Colby",12102289,null,"27-32",272]
[null,null,null,null,null,null,null,null,null,null,null,null,"formal shirt ml7","XJ9X","Overhemd (Heren)",null,"Chasin'",null,null,null,null,null,null,null,null,"Chasin'",12103337,null,"28-30",280]
[null,null,null,null,null,null,null,null,null,null,null,null,"polo km","QJ6F","Polo (Heren)",null,"Croyez Homme",null,null,null,null,null,null,null,null,"Croyez Homme","12103473‬‬",null,"28-32",282]
[null,null,null,null,null,null,null,null,null,null,null,null,"polo lm","QJ6F","Polo (Heren)",null,"Diesel",null,null,null,null,null,null,null,null,"District",5800,null,"28-34",284]
[null,null,null,null,null,null,null,null,null,null,null,null,"t-shirt km","PM9Q","T-shirt (Heren)",null,"District",null,null,null,null,null,null,null,null,"Ellastiek",12103451,null,"28-36",286]
[null,null,null,null,null,null,null,null,null,null,null,null,"t-shirt lm","PM9Q","Longsleeve (Heren)",null,"Ellastiek",null,null,null,null,null,null,null,null,"Elvine",12101307,null,"29-30",290]
[null,null,null,null,null,null,null,null,null,null,null,null,"tanktop","PM9Q","T-shirt (Heren)",null,"Elvine",null,null,null,null,null,null,null,null,"Equalite",null,null,"29-32",292]
[null,null,null,null,null,null,null,null,null,null,null,null,"trui","VM8G","Trui (Heren)",null,"Equalité",null,null,null,null,null,null,null,null,"Fred Perry",16366,null,"30-30",300]
[null,null,null,null,null,null,null,null,null,null,null,null,"half zip gebreid","VM8G","Trui (Heren)",null,"Fred Perry",null,null,null,null,null,null,null,null,"Gabbiano",12102022,null,"30-32",302]
[null,null,null,null,null,null,null,null,null,null,null,null,"coltrui","VM8G","Trui (Heren)",null,"Gabbiano",null,null,null,null,null,null,null,null,"GANT","12103523‬‬",null,"30-34",304]
[null,null,null,null,null,null,null,null,null,null,null,null,"trui ronde hals","VM8G","Trui (Heren)",null,"GANT",null,null,null,null,null,null,null,null,"Garcia",15358,null,"31-30",310]
[null,null,null,null,null,null,null,null,null,null,null,null,"trui vhals","VM8G","Trui (Heren)",null,"Garcia",null,null,null,null,null,null,null,null,"Goosecraft",12103360,null,"31-34",314]
[null,null,null,null,null,null,null,null,null,null,null,null,"hoodie","VC7R","Trui (Heren)",null,"Goosecraft",null,null,null,null,null,null,null,null,"G-star RAW",16900,null,"31-36",316]
[null,null,null,null,null,null,null,null,null,null,null,null,"sweater","VC7R","Trui (Heren)",null,"G-star RAW",null,null,null,null,null,null,null,null,"HUGO",12101045,null,"32-32",322]
[null,null,null,null,null,null,null,null,null,null,null,null,"half zip sweater","VC7R","Trui (Heren)",null,"HUGO",null,null,null,null,null,null,null,null,"J.C. Rags","12103382‬‬",null,"32-34",324]
[null,null,null,null,null,null,null,null,null,null,null,null,"gebreide vesten","FG3M","Vest (Heren)",null,"JC Rags",null,null,null,null,null,null,null,null,"Khujo","‪‪‪12100984‬‬",null,"32-36",326]
[null,null,null,null,null,null,null,null,null,null,null,null,"sweatvesten","XF6C","Vest (Heren)",null,"Khujo",null,null,null,null,null,null,null,null,"Kultivate","12103472‬‬",null,"33-30",330]
[null,null,null,null,null,null,null,null,null,null,null,null,"short","WR4V","Korte broek (Confectiemaat) (Heren)",null,"Kultivate",null,null,null,null,null,null,null,null,"Lacoste",12100162,null,"33-32",332]
[null,null,null,null,null,null,null,null,null,null,null,null,"cargo short","RV2M","Korte broek (Confectiemaat) (Heren)",null,"Lacoste",null,null,null,null,null,null,null,null,"Lee",12102316,null,"33-34",334]
[null,null,null,null,null,null,null,null,null,null,null,null,"denim short","RH2R","Korte broek (Confectiemaat) (Heren)",null,"Lee",null,null,null,null,null,null,null,null,"Lerros",12102122,null,"33-36",336]
[null,null,null,null,null,null,null,null,null,null,null,null,"sweat short","JF7J","Korte broek (Confectiemaat) (Heren)",null,"Lerros",null,null,null,null,null,null,null,null,"Levi's",2476,null,"34-30",340]
[null,null,null,null,null,null,null,null,null,null,null,null,"chino short","PM8G","Korte broek (Confectiemaat) (Heren)",null,"Levi's",null,null,null,null,null,null,null,null,"Levi's Big&Tall",2476,null,"34-32",342]
[null,null,null,null,null,null,null,null,null,null,null,null,"broek","PW7C","Broek (Inchmaat) (Heren)",null,"Levi's Big&Tall",null,null,null,null,null,null,null,null,"Lyle &Scott",12102181,null,"34-34",344]
[null,null,null,null,null,null,null,null,null,null,null,null,"joggingbroek","VQ9M","Broek (Confectiemaat) (Heren)",null,"LTB",null,null,null,null,null,null,null,null,"MAC",12100903,null,"34-36",346]
[null,null,null,null,null,null,null,null,null,null,null,null,"cargo broek","GJ7Q","Broek (Confectiemaat) (Heren)",null,"Lyle &Scott",null,null,null,null,null,null,null,null,"MADS NØRGAARD - COPENHAGEN",12103471,null,"36-30",360]
[null,null,null,null,null,null,null,null,null,null,null,null,"chino","RQ7H","Broek (Inchmaat) (Heren)",null,"MAC",null,null,null,null,null,null,null,null,"Malelions",12102647,null,"36-32",362]
[null,null,null,null,null,null,null,null,null,null,null,null,"pak","VQ2H","Kostuum (Heren)",null,"MADS NØRGAARD - COPENHAGEN",null,null,null,null,null,null,null,null,"Mango Man",16860,null,32,32]
[null,null,null,null,null,null,null,null,null,null,null,null,"smoking","VQ2H","Kostuum (Heren)",null,"Malelions",null,null,null,null,null,null,null,null,"Marc o'Polo",12101294,null,"36-34",364]
[null,null,null,null,null,null,null,null,null,null,null,null,"blazer","QV3M","Colbert (heren",null,"Matinique",null,null,null,null,null,null,null,null,"Matinique",12101999,null,"38-30",380]
[null,null,null,null,null,null,null,null,null,null,null,null,"pantalon","GX4G","Broek (Inchmaat) (Heren)",null,"MEXX",null,null,null,null,null,null,null,null,"MEXX",12102863,null,"38-32",382]
[null,null,null,null,null,null,null,null,null,null,null,null,"jeans","XJ2G","Jeans (Inchmaat) (Heren)",null,"Michaelis",null,null,null,null,null,null,null,null,"Michaelis",17521,null,"38-34",384]
[null,null,null,null,null,null,null,null,null,null,null,null,"jog denim","XJ2G","Jeans (Inchmaat) (Heren)",null,"Mister Tee",null,null,null,null,null,null,null,null,"Mister Tee",12102775,null,"38-36",386]
[null,null,null,null,null,null,null,null,null,null,null,null,"jas BT","CH3F","Jas (Heren)",null,"No Excess",null,null,null,null,null,null,null,null,"No Excess",12101862,null,"40-30",400]
[null,null,null,null,null,null,null,null,null,null,null,null,"regenjas BT","MF4G","Regenjas (Heren)",null,"Nudie Jeans",null,null,null,null,null,null,null,null,"Nudie Jeans",12101330,null,"40-32",402]
[null,null,null,null,null,null,null,null,null,null,null,null,"leren jas BT","FG7P","Jas (Heren)",null,"NZA",null,null,null,null,null,null,null,null,"NZA",17012,null,"40-34",404]
[null,null,null,null,null,null,null,null,null,null,null,null,"denim jack BT","CG9P","Jas (Heren)",null,"Off the pitch ",null,null,null,null,null,null,null,null,"Off The Pitch",16525,null,"40-36",406]
[null,null,null,null,null,null,null,null,null,null,null,null,"bodywarmer BT","JX5C","Jas (Heren)",null,"Olymp",null,null,null,null,null,null,null,null,"Petrol Industries",14570,null,"40-38",408]
[null,null,null,null,null,null,null,null,null,null,null,null,"parka BT","GF6R","Jas (Heren)",null,"Olymp",null,null,null,null,null,null,null,null,"Petrol Industries Plus Size",14570,null,"42-30",420]
[null,null,null,null,null,null,null,null,null,null,null,null,"padded BT","WQ2V","Jas (Heren)",null,"Petrol Industries",null,null,null,null,null,null,null,null,"PME Legend",12100336,null,"42-32",422]
[null,null,null,null,null,null,null,null,null,null,null,null,"Coat BT","QP6C","Jas (Heren)",null,"Petrol Industries Plus Size",null,null,null,null,null,null,null,null,"Polo ralph lauren",16446,null,"42-34",424]
[null,null,null,null,null,null,null,null,null,null,null,null,"formal shirt lm BT","XJ9X","Overhemd (Heren)",null,"PME Legend",null,null,null,null,null,null,null,null,"Profuomo",17521,null,"42-38",428]
[null,null,null,null,null,null,null,null,null,null,null,null,"formal shirt km BT","XJ9X","Overhemd (Heren)",null,"Polo RL",null,null,null,null,null,null,null,null,"Pure Path",12101112,null,"44-30",440]
[null,null,null,null,null,null,null,null,null,null,null,null,"casual shirt lm BT","PJ6M","Overhemd (Heren)",null,"Produkt",null,null,null,null,null,null,null,null,"Raizzed",17214,null,"44-32",442]
[null,null,null,null,null,null,null,null,null,null,null,null,"casual shirt km BT","PJ6M","Overhemd (Heren)",null,"Profuomo",null,null,null,null,null,null,null,null,"Redefined Rebel",12101955,null,"44-34",444]
[null,null,null,null,null,null,null,null,null,null,null,null,"formal shirt ml7 BT","XJ9X","Overhemd (Heren)",null,"Pure Path",null,null,null,null,null,null,null,null,"Replay",17204,null,"44-36",446]
[null,null,null,null,null,null,null,null,null,null,null,null,"overshirt BT","XJ9X","Overhemd (Heren)",null,"Raizzed",null,null,null,null,null,null,null,null,"RVLT",12101314,null,"44-38",448]
[null,null,null,null,null,null,null,null,null,null,null,null,"polo km BT","QJ6F","Polo (Heren)",null,"Redefined Rebel",null,null,null,null,null,null,null,null,"Saint Steve",12101307,null,27,27]
[null,null,null,null,null,null,null,null,null,null,null,null,"polo lm BT","QJ6F","Polo (Heren)",null,"Replay",null,null,null,null,null,null,null,null,"Scotch & Soda","12103497‬‬",null,28,28]
[null,null,null,null,null,null,null,null,null,null,null,null,"t-shirt km BT","PM9Q","T-shirt (Heren)",null,"RVLT  Revolution",null,null,null,null,null,null,null,null,"Selected Homme",15610,null,29,29]
[null,null,null,null,null,null,null,null,null,null,null,null,"t-shirt lm BT","PM9Q","Longsleeve (Heren)",null,"Saint Steve ",null,null,null,null,null,null,null,null,"Solid",17689,null,30,30]
[null,null,null,null,null,null,null,null,null,null,null,null,"tanktop BT","PM9Q","T-shirt (Heren)",null,"Scotch&Soda",null,null,null,null,null,null,null,null,"State of Art",12102575,null,"29-34",294]
[null,null,null,null,null,null,null,null,null,null,null,null,"trui BT","VM8G","Trui (Heren)",null,"Solid",null,null,null,null,null,null,null,null,"Superdry",17624,null,"29-36",296]
[null,null,null,null,null,null,null,null,null,null,null,null,"half zip gebreid BT","VM8G","Trui (Heren)",null,"State of Art",null,null,null,null,null,null,null,null,"Tommy Hilfiger",12103156,null,"30-36",306]
[null,null,null,null,null,null,null,null,null,null,null,null,"coltrui BT","VM8G","Trui (Heren)",null,"Superdry",null,null,null,null,null,null,null,null,"Tommy Hilfiger Big & Tall",12103156,null,"31-32",312]
[null,null,null,null,null,null,null,null,null,null,null,null,"trui ronde hals BT","VM8G","Trui (Heren)",null,"Tommy Hilfiger",null,null,null,null,null,null,null,null,"Tommy Jeans",12103156,null,"32-30",320]
[null,null,null,null,null,null,null,null,null,null,null,null,"trui vhals BT","VM8G","Trui (Heren)",null,"Tommy Hilfiger Big & Tall",null,null,null,null,null,null,null,null,"Tonsure",12103479,null,"42-36",426]
[null,null,null,null,null,null,null,null,null,null,null,null,"hoodie BT","VC7R","Trui (Heren)",null,"Tommy Jeans",null,null,null,null,null,null,null,null,"Twinlife",12102752,null,33,33]
[null,null,null,null,null,null,null,null,null,null,null,null,"sweater BT","VC7R","Trui (Heren)",null,"Tonsure",null,null,null,null,null,null,null,null,"Urban Classics",12102775,null,34,34]
[null,null,null,null,null,null,null,null,null,null,null,null,"half zip sweater BT","VC7R","Trui (Heren)",null,"Urban Classics",null,null,null,null,null,null,null,null,"Vanguard",12100336,null,35,35]
[null,null,null,null,null,null,null,null,null,null,null,null,"gebreide vesten BT","FG3M","Vest (Heren)",null,"Vanguard",null,null,null,null,null,null,null,null,"Wrangler",12102316,null,36,36]
[null,null,null,null,null,null,null,null,null,null,null,null,"sweatvesten BT","XF6C","Vest (Heren)",null,"Wrangler",null,null,null,null,null,null,null,null,"WRONG FRIENDS","12103483‬‬",null,37,37]
[null,null,null,null,null,null,null,null,null,null,null,null,"short BT","WR4V","Korte broek (Confectiemaat) (Heren)",null,"WRONG FRIENDS ",null,null,null,null,null,null,null,null,null,null,null,"27-34",274]
[null,null,null,null,null,null,null,null,null,null,null,null,"overshirt","XJ9X","Overhemd (Heren)",null,null,null,null,null,null,null,null,null,null,null,null,null,"36-36",366]
[null,null,null,null,null,null,null,null,null,null,null,null,"gilet","QV3M","Gilet (Heren)",null,null,null,null,null,null,null,null,null,null,null,null,null,38,38]
[null,null,null,null,null,null,null,null,null,null,null,null,"cargo short BT","RV2M","Korte broek (Confectiemaat) (Heren)",null,null,null,null,null,null,null,null,null,null,null,null,null,39,39]
[null,null,null,null,null,null,null,null,null,null,null,null,"denim short BT","RH2R","Korte broek (Confectiemaat) (Heren)",null,null,null,null,null,null,null,null,null,null,null,null,null,40,40]
[null,null,null,null,null,null,null,null,null,null,null,null,"sweat short BT","JF7J","Korte broek (Confectiemaat) (Heren)",null,null,null,null,null,null,null,null,null,null,null,null,null,41,41]
[null,null,null,null,null,null,null,null,null,null,null,null,"chino short BT","PM8G","Korte broek (Confectiemaat) (Heren)",null,null,null,null,null,null,null,null,null,null,null,null,null,42,42]
[null,null,null,null,null,null,null,null,null,null,null,null,"broek BT","PW7C","Broek (Inchmaat) (Heren)",null,null,null,null,null,null,null,null,null,null,null,null,null,43,43]
[null,null,null,null,null,null,null,null,null,null,null,null,"joggingbroek BT","VQ9M","Broek (Confectiemaat) (Heren)",null,null,null,null,null,null,null,null,null,null,null,null,null,44,44]
[null,null,null,null,null,null,null,null,null,null,null,null,"cargo broek BT","GJ7Q","Broek (Confectiemaat) (Heren)",null,null,null,null,null,null,null,null,null,null,null,null,null,45,45]
[null,null,null,null,null,null,null,null,null,null,null,null,"chino BT","RQ7H","Broek (Inchmaat) (Heren)",null,null,null,null,null,null,null,null,null,null,null,null,null,46,46]
[null,null,null,null,null,null,null,null,null,null,null,null,"pak BT","VQ2H","Kostuum (Heren)",null,null,null,null,null,null,null,null,null,null,null,null,null,48,48]
[null,null,null,null,null,null,null,null,null,null,null,null,"smoking BT","VQ2H","Kostuum (Heren)",null,null,null,null,null,null,null,null,null,null,null,null,null,50,50]
[null,null,null,null,null,null,null,null,null,null,null,null,"blazer BT","QV3M","Colbert (heren",null,null,null,null,null,null,null,null,null,null,null,null,null,52,52]
[null,null,null,null,null,null,null,null,null,null,null,null,"gilet BT","QV3M","Gilet (Heren)",null,null,null,null,null,null,null,null,null,null,null,null,null,54,54]
[null,null,null,null,null,null,null,null,null,null,null,null,"pantalon BT","GX4G","Broek (Inchmaat) (Heren)",null,null,null,null,null,null,null,null,null,null,null,null,null,56,56]
[null,null,null,null,null,null,null,null,null,null,null,null,"jeans BT","XJ2G","Jeans (Inchmaat) (Heren)",null,null,null,null,null,null,null,null,null,null,null,null,null,58,58]
[null,null,null,null,null,null,null,null,null,null,null,null,"jog denim BT","XJ2G","Jeans (Inchmaat) (Heren)",null,null,null,null,null,null,null,null,null,null,null,null,null,"2XL",12,"BT"]
[null,null,null,null,null,null,null,null,null,null,null,null,"PRMjas","CH3F","Jas (Heren)",null,null,null,null,null,null,null,null,null,null,null,null,null,"3XL",13,"BT"]
[null,null,null,null,null,null,null,null,null,null,null,null,"PRMregenjas","MF4G","Regenjas (Heren)",null,null,null,null,null,null,null,null,null,null,null,null,null,"4XL",14,"BT"]
[null,null,null,null,null,null,null,null,null,null,null,null,"PRMleren jas","FG7P","Jas (Heren)",null,null,null,null,null,null,null,null,null,null,null,null,null,"5XL",15,"BT"]
[null,null,null,null,null,null,null,null,null,null,null,null,"PRMdenim jack","CG9P","Jas (Heren)",null,null,null,null,null,null,null,null,null,null,null,null,null,"6XL",16,"BT"]
[null,null,null,null,null,null,null,null,null,null,null,null,"PRMbodywarmer","JX5C","Jas (Heren)",null,null,null,null,null,null,null,null,null,null,null,null,null,"2XL",12,"BT"]
[null,null,null,null,null,null,null,null,null,null,null,null,"PRMparka","GF6R","Jas (Heren)",null,null,null,null,null,null,null,null,null,null,null,null,null,"3XL",13,"BT"]
[null,null,null,null,null,null,null,null,null,null,null,null,"PRMpadded","WQ2V","Jas (Heren)",null,null,null,null,null,null,null,null,null,null,null,null,null,"4XL",14,"BT"]
[null,null,null,null,null,null,null,null,null,null,null,null,"PRMCoat","QP6C","Jas (Heren)",null,null,null,null,null,null,null,null,null,null,null,null,null,"5XL",15,"BT"]
[null,null,null,null,null,null,null,null,null,null,null,null,"PRMformal shirt lm","XJ9X","Overhemd (Heren)",null,null,null,null,null,null,null,null,null,null,null,null,null,"6XL",16,"BT"]
[null,null,null,null,null,null,null,null,null,null,null,null,"PRMformal shirt km","XJ9X","Overhemd (Heren)",null,null,null,null,null,null,null,null,null,null,null,null,null,"35 boord","035"]
[null,null,null,null,null,null,null,null,null,null,null,null,"PRMcasual shirt lm","PJ6M","Overhemd (Heren)",null,null,null,null,null,null,null,null,null,null,null,null,null,"36 boord","036"]
[null,null,null,null,null,null,null,null,null,null,null,null,"PRMcasual shirt km","PJ6M","Overhemd (Heren)",null,null,null,null,null,null,null,null,null,null,null,null,null,"37 boord","037"]
[null,null,null,null,null,null,null,null,null,null,null,null,"PRMformal shirt ml7","XJ9X","Overhemd (Heren)",null,null,null,null,null,null,null,null,null,null,null,null,null,"38 boord","038"]
[null,null,null,null,null,null,null,null,null,null,null,null,"PRMovershirt","XJ9X","Overhemd (Heren)",null,null,null,null,null,null,null,null,null,null,null,null,null,"39 boord","039"]
[null,null,null,null,null,null,null,null,null,null,null,null,"PRMpolo km","QJ6F","Polo (Heren)",null,null,null,null,null,null,null,null,null,null,null,null,null,"40 boord","040"]
[null,null,null,null,null,null,null,null,null,null,null,null,"PRMpolo lm","QJ6F","Polo (Heren)",null,null,null,null,null,null,null,null,null,null,null,null,null,"41 boord","041"]
[null,null,null,null,null,null,null,null,null,null,null,null,"PRMt-shirt km","PM9Q","T-shirt (Heren)",null,null,null,null,null,null,null,null,null,null,null,null,null,"42 boord","042"]
[null,null,null,null,null,null,null,null,null,null,null,null,"PRMt-shirt lm","PM9Q","Longsleeve (Heren)",null,null,null,null,null,null,null,null,null,null,null,null,null,"43 boord","043"]
[null,null,null,null,null,null,null,null,null,null,null,null,"PRMtanktop","PM9Q","T-shirt (Heren)",null,null,null,null,null,null,null,null,null,null,null,null,null,"44 boord","044"]
[null,null,null,null,null,null,null,null,null,null,null,null,"PRMtrui","VM8G","Trui (Heren)",null,null,null,null,null,null,null,null,null,null,null,null,null,"45 boord","045"]
[null,null,null,null,null,null,null,null,null,null,null,null,"PRMhalf zip gebreid","VM8G","Trui (Heren)",null,null,null,null,null,null,null,null,null,null,null,null,null,"46 boord","046"]
[null,null,null,null,null,null,null,null,null,null,null,null,"PRMcoltrui","VM8G","Trui (Heren)",null,null,null,null,null,null,null,null,null,null,null,null,null,"47 boord","047"]
[null,null,null,null,null,null,null,null,null,null,null,null,"PRMtrui ronde hals","VM8G","Trui (Heren)",null,null,null,null,null,null,null,null,null,null,null,null,null,"48 boord","048"]
[null,null,null,null,null,null,null,null,null,null,null,null,"PRMtrui vhals","VM8G","Trui (Heren)",null,null,null,null,null,null,null,null,null,null,null,null,null,"49 boord","049"]
[null,null,null,null,null,null,null,null,null,null,null,null,"PRMhoodie","VC7R","Trui (Heren)"]
[null,null,null,null,null,null,null,null,null,null,null,null,"PRMsweater","VC7R","Trui (Heren)"]
[null,null,null,null,null,null,null,null,null,null,null,null,"PRMhalf zip sweater","VC7R","Trui (Heren)"]
[null,null,null,null,null,null,null,null,null,null,null,null,"PRMgebreide vesten","FG3M","Vest (Heren)"]
[null,null,null,null,null,null,null,null,null,null,null,null,"PRMsweatvesten","XF6C","Vest (Heren)"]
[null,null,null,null,null,null,null,null,null,null,null,null,"PRMshort","WR4V","Korte broek (Confectiemaat) (Heren)"]
[null,null,null,null,null,null,null,null,null,null,null,null,"PRMcargo short","RV2M","Korte broek (Confectiemaat) (Heren)"]
[null,null,null,null,null,null,null,null,null,null,null,null,"PRMdenim short","RH2R","Korte broek (Confectiemaat) (Heren)"]
[null,null,null,null,null,null,null,null,null,null,null,null,"PRMsweat short","JF7J","Korte broek (Confectiemaat) (Heren)"]
[null,null,null,null,null,null,null,null,null,null,null,null,"PRMchino short","PM8G","Korte broek (Confectiemaat) (Heren)"]
[null,null,null,null,null,null,null,null,null,null,null,null,"PRMbroek","PW7C","Broek (Inchmaat) (Heren)"]
[null,null,null,null,null,null,null,null,null,null,null,null,"PRMjoggingbroek","VQ9M","Broek (Confectiemaat) (Heren)"]
[null,null,null,null,null,null,null,null,null,null,null,null,"PRMcargo broek","GJ7Q","Broek (Confectiemaat) (Heren)"]
[null,null,null,null,null,null,null,null,null,null,null,null,"PRMchino","RQ7H","Broek (Inchmaat) (Heren)"]
[null,null,null,null,null,null,null,null,null,null,null,null,"PRMpak","VQ2H","Kostuum (Heren)"]
[null,null,null,null,null,null,null,null,null,null,null,null,"PRMsmoking","VQ2H","Kostuum (Heren)"]
[null,null,null,null,null,null,null,null,null,null,null,null,"PRMblazer","QV3M","Colbert (heren"]
[null,null,null,null,null,null,null,null,null,null,null,null,"PRMgilet","QV3M","Gilet (Heren)"]
[null,null,null,null,null,null,null,null,null,null,null,null,"PRMpantalon","GX4G","Broek (Inchmaat) (Heren)"]
[null,null,null,null,null,null,null,null,null,null,null,null,"PRMjeans","XJ2G","Jeans (Inchmaat) (Heren)"]
[null,null,null,null,null,null,null,null,null,null,null,null,"PRMjog denim","XJ2G","Jeans (Inchmaat) (Heren)"]
[null,null,null,null,null,null,null,null,null,null,null,null,"CONjas","CH3F","Jas (Heren)"]
[null,null,null,null,null,null,null,null,null,null,null,null,"CONregenjas","MF4G","Regenjas (Heren)"]
[null,null,null,null,null,null,null,null,null,null,null,null,"CONleren jas","FG7P","Jas (Heren)"]
[null,null,null,null,null,null,null,null,null,null,null,null,"CONdenim jack","CG9P","Jas (Heren)"]
[null,null,null,null,null,null,null,null,null,null,null,null,"CONbodywarmer","JX5C","Jas (Heren)"]
[null,null,null,null,null,null,null,null,null,null,null,null,"CONparka","GF6R","Jas (Heren)"]
[null,null,null,null,null,null,null,null,null,null,null,null,"CONpadded","WQ2V","Jas (Heren)"]
[null,null,null,null,null,null,null,null,null,null,null,null,"CONCoat","QP6C","Jas (Heren)"]
[null,null,null,null,null,null,null,null,null,null,null,null,"CONformal shirt lm","XJ9X","Overhemd (Heren)"]
[null,null,null,null,null,null,null,null,null,null,null,null,"CONformal shirt km","XJ9X","Overhemd (Heren)"]
[null,null,null,null,null,null,null,null,null,null,null,null,"CONcasual shirt lm","PJ6M","Overhemd (Heren)"]
[null,null,null,null,null,null,null,null,null,null,null,null,"CONcasual shirt km","PJ6M","Overhemd (Heren)"]
[null,null,null,null,null,null,null,null,null,null,null,null,"CONformal shirt ml7","XJ9X","Overhemd (Heren)"]
[null,null,null,null,null,null,null,null,null,null,null,null,"CONovershirt","XJ9X","Overhemd (Heren)"]
[null,null,null,null,null,null,null,null,null,null,null,null,"CONpolo km","QJ6F","Polo (Heren)"]
[null,null,null,null,null,null,null,null,null,null,null,null,"CONpolo lm","QJ6F","Polo (Heren)"]
[null,null,null,null,null,null,null,null,null,null,null,null,"CONt-shirt km","PM9Q","T-shirt (Heren)"]
[null,null,null,null,null,null,null,null,null,null,null,null,"CONt-shirt lm","PM9Q","Longsleeve (Heren)"]
[null,null,null,null,null,null,null,null,null,null,null,null,"CONtanktop","PM9Q","T-shirt (Heren)"]
[null,null,null,null,null,null,null,null,null,null,null,null,"CONtrui","VM8G","Trui (Heren)"]
[null,null,null,null,null,null,null,null,null,null,null,null,"CONhalf zip gebreid","VM8G","Trui (Heren)"]
[null,null,null,null,null,null,null,null,null,null,null,null,"CONcoltrui","VM8G","Trui (Heren)"]
[null,null,null,null,null,null,null,null,null,null,null,null,"CONtrui ronde hals","VM8G","Trui (Heren)"]
[null,null,null,null,null,null,null,null,null,null,null,null,"CONtrui vhals","VM8G","Trui (Heren)"]
[null,null,null,null,null,null,null,null,null,null,null,null,"CONhoodie","VC7R","Trui (Heren)"]
[null,null,null,null,null,null,null,null,null,null,null,null,"CONsweater","VC7R","Trui (Heren)"]
[null,null,null,null,null,null,null,null,null,null,null,null,"CONhalf zip sweater","VC7R","Trui (Heren)"]
[null,null,null,null,null,null,null,null,null,null,null,null,"CONgebreide vesten","FG3M","Vest (Heren)"]
[null,null,null,null,null,null,null,null,null,null,null,null,"CONsweatvesten","XF6C","Vest (Heren)"]
[null,null,null,null,null,null,null,null,null,null,null,null,"CONshort","WR4V","Korte broek (Confectiemaat) (Heren)"]
[null,null,null,null,null,null,null,null,null,null,null,null,"CONcargo short","RV2M","Korte broek (Confectiemaat) (Heren)"]
[null,null,null,null,null,null,null,null,null,null,null,null,"CONdenim short","RH2R","Korte broek (Confectiemaat) (Heren)"]
[null,null,null,null,null,null,null,null,null,null,null,null,"CONsweat short","JF7J","Korte broek (Confectiemaat) (Heren)"]
[null,null,null,null,null,null,null,null,null,null,null,null,"CONchino short","PM8G","Korte broek (Confectiemaat) (Heren)"]
[null,null,null,null,null,null,null,null,null,null,null,null,"CONbroek","PW7C","Broek (Inchmaat) (Heren)"]
[null,null,null,null,null,null,null,null,null,null,null,null,"CONjoggingbroek","VQ9M","Broek (Confectiemaat) (Heren)"]
[null,null,null,null,null,null,null,null,null,null,null,null,"CONcargo broek","GJ7Q","Broek (Confectiemaat) (Heren)"]
[null,null,null,null,null,null,null,null,null,null,null,null,"CONchino","RQ7H","Broek (Inchmaat) (Heren)"]
[null,null,null,null,null,null,null,null,null,null,null,null,"CONpak","VQ2H","Kostuum (Heren)"]
[null,null,null,null,null,null,null,null,null,null,null,null,"CONsmoking","VQ2H","Kostuum (Heren)"]
[null,null,null,null,null,null,null,null,null,null,null,null,"CONblazer","QV3M","Colbert (heren"]
[null,null,null,null,null,null,null,null,null,null,null,null,"CONgilet","QV3M","Gilet (Heren)"]
[null,null,null,null,null,null,null,null,null,null,null,null,"CONpantalon","GX4G","Broek (Inchmaat) (Heren)"]
[null,null,null,null,null,null,null,null,null,null,null,null,"CONjeans","XJ2G","Jeans (Inchmaat) (Heren)"]
[null,null,null,null,null,null,null,null,null,null,null,null,"CONjog denim","XJ2G","Jeans (Inchmaat) (Heren)"]
[null,null,null,null,null,null,null,null,null,null,null,null,"CONjas BT","CH3F","Jas (Heren)"]
[null,null,null,null,null,null,null,null,null,null,null,null,"CONregenjas BT","MF4G","Regenjas (Heren)"]
[null,null,null,null,null,null,null,null,null,null,null,null,"CONleren jas BT","FG7P","Jas (Heren)"]
[null,null,null,null,null,null,null,null,null,null,null,null,"CONdenim jack BT","CG9P","Jas (Heren)"]
[null,null,null,null,null,null,null,null,null,null,null,null,"CONbodywarmer BT","JX5C","Jas (Heren)"]
[null,null,null,null,null,null,null,null,null,null,null,null,"CONparka BT","GF6R","Jas (Heren)"]
[null,null,null,null,null,null,null,null,null,null,null,null,"CONpadded BT","WQ2V","Jas (Heren)"]
[null,null,null,null,null,null,null,null,null,null,null,null,"CONCoat BT","QP6C","Jas (Heren)"]
[null,null,null,null,null,null,null,null,null,null,null,null,"CONformal shirt lm BT","XJ9X","Overhemd (Heren)"]
[null,null,null,null,null,null,null,null,null,null,null,null,"CONformal shirt km BT","XJ9X","Overhemd (Heren)"]
[null,null,null,null,null,null,null,null,null,null,null,null,"CONcasual shirt lm BT","PJ6M","Overhemd (Heren)"]
[null,null,null,null,null,null,null,null,null,null,null,null,"CONcasual shirt km BT","PJ6M","Overhemd (Heren)"]
[null,null,null,null,null,null,null,null,null,null,null,null,"CONformal shirt ml7 BT","XJ9X","Overhemd (Heren)"]
[null,null,null,null,null,null,null,null,null,null,null,null,"CONovershirt BT","XJ9X","Overhemd (Heren)"]
[null,null,null,null,null,null,null,null,null,null,null,null,"CONpolo km BT","QJ6F","Polo (Heren)"]
[null,null,null,null,null,null,null,null,null,null,null,null,"CONpolo lm BT","QJ6F","Polo (Heren)"]
[null,null,null,null,null,null,null,null,null,null,null,null,"CONt-shirt km BT","PM9Q","T-shirt (Heren)"]
[null,null,null,null,null,null,null,null,null,null,null,null,"CONt-shirt lm BT","PM9Q","Longsleeve (Heren)"]
[null,null,null,null,null,null,null,null,null,null,null,null,"CONtanktop BT","PM9Q","T-shirt (Heren)"]
[null,null,null,null,null,null,null,null,null,null,null,null,"CONtrui BT","VM8G","Trui (Heren)"]
[null,null,null,null,null,null,null,null,null,null,null,null,"CONhalf zip gebreid BT","VM8G","Trui (Heren)"]
[null,null,null,null,null,null,null,null,null,null,null,null,"CONcoltrui BT","VM8G","Trui (Heren)"]
[null,null,null,null,null,null,null,null,null,null,null,null,"CONtrui ronde hals BT","VM8G","Trui (Heren)"]
[null,null,null,null,null,null,null,null,null,null,null,null,"CONtrui vhals BT","VM8G","Trui (Heren)"]
[null,null,null,null,null,null,null,null,null,null,null,null,"CONhoodie BT","VC7R","Trui (Heren)"]
[null,null,null,null,null,null,null,null,null,null,null,null,"CONsweater BT","VC7R","Trui (Heren)"]
[null,null,null,null,null,null,null,null,null,null,null,null,"CONhalf zip sweater BT","VC7R","Trui (Heren)"]
[null,null,null,null,null,null,null,null,null,null,null,null,"CONgebreide vesten BT","FG3M","Vest (Heren)"]
[null,null,null,null,null,null,null,null,null,null,null,null,"CONsweatvesten BT","XF6C","Vest (Heren)"]
[null,null,null,null,null,null,null,null,null,null,null,null,"CONshort BT","WR4V","Korte broek (Confectiemaat) (Heren)"]
[null,null,null,null,null,null,null,null,null,null,null,null,"CONcargo short BT","RV2M","Korte broek (Confectiemaat) (Heren)"]
[null,null,null,null,null,null,null,null,null,null,null,null,"CONdenim short BT","RH2R","Korte broek (Confectiemaat) (Heren)"]
[null,null,null,null,null,null,null,null,null,null,null,null,"CONsweat short BT","JF7J","Korte broek (Confectiemaat) (Heren)"]
[null,null,null,null,null,null,null,null,null,null,null,null,"CONchino short BT","PM8G","Korte broek (Confectiemaat) (Heren)"]
[null,null,null,null,null,null,null,null,null,null,null,null,"CONbroek BT","PW7C","Broek (Inchmaat) (Heren)"]
[null,null,null,null,null,null,null,null,null,null,null,null,"CONjoggingbroek BT","VQ9M","Broek (Confectiemaat) (Heren)"]
[null,null,null,null,null,null,null,null,null,null,null,null,"CONcargo broek BT","GJ7Q","Broek (Confectiemaat) (Heren)"]
[null,null,null,null,null,null,null,null,null,null,null,null,"CONchino BT","RQ7H","Broek (Inchmaat) (Heren)"]
[null,null,null,null,null,null,null,null,null,null,null,null,"CONpak BT","VQ2H","Kostuum (Heren)"]
[null,null,null,null,null,null,null,null,null,null,null,null,"CONsmoking BT","VQ2H","Kostuum (Heren)"]
[null,null,null,null,null,null,null,null,null,null,null,null,"CONblazer BT","QV3M","Colbert (heren"]
[null,null,null,null,null,null,null,null,null,null,null,null,"CONgilet BT","QV3M","Gilet (Heren)"]
[null,null,null,null,null,null,null,null,null,null,null,null,"CONpantalon BT","GX4G","Broek (Inchmaat) (Heren)"]
[null,null,null,null,null,null,null,null,null,null,null,null,"CONjeans BT","XJ2G","Jeans (Inchmaat) (Heren)"]
[null,null,null,null,null,null,null,null,null,null,null,null,"CONjog denim BT","XJ2G","Jeans (Inchmaat) (Heren)"]
[null,null,null,null,null,null,null,null,null,null,null,null,"MULTIjas","CH3F","Jas (Heren)"]
[null,null,null,null,null,null,null,null,null,null,null,null,"MULTIregenjas","MF4G","Regenjas (Heren)"]
[null,null,null,null,null,null,null,null,null,null,null,null,"MULTIleren jas","FG7P","Jas (Heren)"]
[null,null,null,null,null,null,null,null,null,null,null,null,"MULTIdenim jack","CG9P","Jas (Heren)"]
[null,null,null,null,null,null,null,null,null,null,null,null,"MULTIbodywarmer","JX5C","Jas (Heren)"]
[null,null,null,null,null,null,null,null,null,null,null,null,"MULTIparka","GF6R","Jas (Heren)"]
[null,null,null,null,null,null,null,null,null,null,null,null,"MULTIpadded","WQ2V","Jas (Heren)"]
[null,null,null,null,null,null,null,null,null,null,null,null,"MULTICoat","QP6C","Jas (Heren)"]
[null,null,null,null,null,null,null,null,null,null,null,null,"MULTIformal shirt lm","XJ9X","Overhemd (Heren)"]
[null,null,null,null,null,null,null,null,null,null,null,null,"MULTIformal shirt km","XJ9X","Overhemd (Heren)"]
[null,null,null,null,null,null,null,null,null,null,null,null,"MULTIcasual shirt lm","PJ6M","Overhemd (Heren)"]
[null,null,null,null,null,null,null,null,null,null,null,null,"MULTIcasual shirt km","PJ6M","Overhemd (Heren)"]
[null,null,null,null,null,null,null,null,null,null,null,null,"MULTIformal shirt ml7","XJ9X","Overhemd (Heren)"]
[null,null,null,null,null,null,null,null,null,null,null,null,"MULTIovershirt","XJ9X","Overhemd (Heren)"]
[null,null,null,null,null,null,null,null,null,null,null,null,"MULTIpolo km","QJ6F","Polo (Heren)"]
[null,null,null,null,null,null,null,null,null,null,null,null,"MULTIpolo lm","QJ6F","Polo (Heren)"]
[null,null,null,null,null,null,null,null,null,null,null,null,"MULTIt-shirt km","PM9Q","T-shirt (Heren)"]
[null,null,null,null,null,null,null,null,null,null,null,null,"MULTIt-shirt lm","PM9Q","Longsleeve (Heren)"]
[null,null,null,null,null,null,null,null,null,null,null,null,"MULTItanktop","PM9Q","T-shirt (Heren)"]
[null,null,null,null,null,null,null,null,null,null,null,null,"MULTItrui","VM8G","Trui (Heren)"]
[null,null,null,null,null,null,null,null,null,null,null,null,"MULTIhalf zip gebreid","VM8G","Trui (Heren)"]
[null,null,null,null,null,null,null,null,null,null,null,null,"MULTIcoltrui","VM8G","Trui (Heren)"]
[null,null,null,null,null,null,null,null,null,null,null,null,"MULTItrui ronde hals","VM8G","Trui (Heren)"]
[null,null,null,null,null,null,null,null,null,null,null,null,"MULTItrui vhals","VM8G","Trui (Heren)"]
[null,null,null,null,null,null,null,null,null,null,null,null,"MULTIhoodie","VC7R","Trui (Heren)"]
[null,null,null,null,null,null,null,null,null,null,null,null,"MULTIsweater","VC7R","Trui (Heren)"]
[null,null,null,null,null,null,null,null,null,null,null,null,"MULTIhalf zip sweater","VC7R","Trui (Heren)"]
[null,null,null,null,null,null,null,null,null,null,null,null,"MULTIgebreide vesten","FG3M","Vest (Heren)"]
[null,null,null,null,null,null,null,null,null,null,null,null,"MULTIsweatvesten","XF6C","Vest (Heren)"]
[null,null,null,null,null,null,null,null,null,null,null,null,"MULTIshort","WR4V","Korte broek (Confectiemaat) (Heren)"]
[null,null,null,null,null,null,null,null,null,null,null,null,"MULTIcargo short","RV2M","Korte broek (Confectiemaat) (Heren)"]
[null,null,null,null,null,null,null,null,null,null,null,null,"MULTIdenim short","RH2R","Korte broek (Confectiemaat) (Heren)"]
[null,null,null,null,null,null,null,null,null,null,null,null,"MULTIsweat short","JF7J","Korte broek (Confectiemaat) (Heren)"]
[null,null,null,null,null,null,null,null,null,null,null,null,"MULTIchino short","PM8G","Korte broek (Confectiemaat) (Heren)"]
[null,null,null,null,null,null,null,null,null,null,null,null,"MULTIbroek","PW7C","Broek (Inchmaat) (Heren)"]
[null,null,null,null,null,null,null,null,null,null,null,null,"MULTIjoggingbroek","VQ9M","Broek (Confectiemaat) (Heren)"]
[null,null,null,null,null,null,null,null,null,null,null,null,"MULTIcargo broek","GJ7Q","Broek (Confectiemaat) (Heren)"]
[null,null,null,null,null,null,null,null,null,null,null,null,"MULTIchino","RQ7H","Broek (Inchmaat) (Heren)"]
[null,null,null,null,null,null,null,null,null,null,null,null,"MULTIpak","VQ2H","Kostuum (Heren)"]
[null,null,null,null,null,null,null,null,null,null,null,null,"MULTIsmoking","VQ2H","Kostuum (Heren)"]
[null,null,null,null,null,null,null,null,null,null,null,null,"MULTIblazer","QV3M","Colbert (heren"]
[null,null,null,null,null,null,null,null,null,null,null,null,"MULTIgilet","QV3M","Gilet (Heren)"]
[null,null,null,null,null,null,null,null,null,null,null,null,"MULTIpantalon","GX4G","Broek (Inchmaat) (Heren)"]
[null,null,null,null,null,null,null,null,null,null,null,null,"MULTIjeans","XJ2G","Jeans (inchmaat) (Heren)"]
[null,null,null,null,null,null,null,null,null,null,null,null,"MULTIjog denim","XJ2G","Jeans (inchmaat) (Heren)"]
[null,null,null,null,null,null,null,null,null,null,null,null,"MULTIjas BT","CH3F","Jas (Heren)"]
[null,null,null,null,null,null,null,null,null,null,null,null,"MULTIregenjas BT","MF4G","Regenjas (Heren)"]
[null,null,null,null,null,null,null,null,null,null,null,null,"MULTIleren jas BT","FG7P","Jas (Heren)"]
[null,null,null,null,null,null,null,null,null,null,null,null,"MULTIdenim jack BT","CG9P","Jas (Heren)"]
[null,null,null,null,null,null,null,null,null,null,null,null,"MULTIbodywarmer BT","JX5C","Jas (Heren)"]
[null,null,null,null,null,null,null,null,null,null,null,null,"MULTIparka BT","GF6R","Jas (Heren)"]
[null,null,null,null,null,null,null,null,null,null,null,null,"MULTIpadded BT","WQ2V","Jas (Heren)"]
[null,null,null,null,null,null,null,null,null,null,null,null,"MULTICoat BT","QP6C","Jas (Heren)"]
[null,null,null,null,null,null,null,null,null,null,null,null,"MULTIformal shirt lm BT","XJ9X","Overhemd (Heren)"]
[null,null,null,null,null,null,null,null,null,null,null,null,"MULTIformal shirt km BT","XJ9X","Overhemd (Heren)"]
[null,null,null,null,null,null,null,null,null,null,null,null,"MULTIcasual shirt lm BT","PJ6M","Overhemd (Heren)"]
[null,null,null,null,null,null,null,null,null,null,null,null,"MULTIcasual shirt km BT","PJ6M","Overhemd (Heren)"]
[null,null,null,null,null,null,null,null,null,null,null,null,"MULTIformal shirt ml7 BT","XJ9X","Overhemd (Heren)"]
[null,null,null,null,null,null,null,null,null,null,null,null,"MULTIovershirt BT","XJ9X","Overhemd (Heren)"]
[null,null,null,null,null,null,null,null,null,null,null,null,"MULTIpolo km BT","QJ6F","Polo (Heren)"]
[null,null,null,null,null,null,null,null,null,null,null,null,"MULTIpolo lm BT","QJ6F","Polo (Heren)"]
[null,null,null,null,null,null,null,null,null,null,null,null,"MULTIt-shirt km BT","PM9Q","T-shirt (Heren)"]
[null,null,null,null,null,null,null,null,null,null,null,null,"MULTIt-shirt lm BT","PM9Q","Longsleeve (Heren)"]
[null,null,null,null,null,null,null,null,null,null,null,null,"MULTItanktop BT","PM9Q","T-shirt (Heren)"]
[null,null,null,null,null,null,null,null,null,null,null,null,"MULTItrui BT","VM8G","Trui (Heren)"]
[null,null,null,null,null,null,null,null,null,null,null,null,"MULTIhalf zip gebreid BT","VM8G","Trui (Heren)"]
[null,null,null,null,null,null,null,null,null,null,null,null,"MULTIcoltrui BT","VM8G","Trui (Heren)"]
[null,null,null,null,null,null,null,null,null,null,null,null,"MULTItrui ronde hals BT","VM8G","Trui (Heren)"]
[null,null,null,null,null,null,null,null,null,null,null,null,"MULTItrui vhals BT","VM8G","Trui (Heren)"]
[null,null,null,null,null,null,null,null,null,null,null,null,"MULTIhoodie BT","VC7R","Trui (Heren)"]
[null,null,null,null,null,null,null,null,null,null,null,null,"MULTIsweater BT","VC7R","Trui (Heren)"]
[null,null,null,null,null,null,null,null,null,null,null,null,"MULTIhalf zip sweater BT","VC7R","Trui (Heren)"]
[null,null,null,null,null,null,null,null,null,null,null,null,"MULTIgebreide vesten BT","FG3M","Vest (Heren)"]
[null,null,null,null,null,null,null,null,null,null,null,null,"MULTIsweatvesten BT","XF6C","Vest (Heren)"]
[null,null,null,null,null,null,null,null,null,null,null,null,"MULTIshort BT","WR4V","Korte broek (Confectiemaat) (Heren)"]
[null,null,null,null,null,null,null,null,null,null,null,null,"MULTIcargo short BT","RV2M","Korte broek (Confectiemaat) (Heren)"]
[null,null,null,null,null,null,null,null,null,null,null,null,"MULTIdenim short BT","RH2R","Korte broek (Confectiemaat) (Heren)"]
[null,null,null,null,null,null,null,null,null,null,null,null,"MULTIsweat short BT","JF7J","Korte broek (Confectiemaat) (Heren)"]
[null,null,null,null,null,null,null,null,null,null,null,null,"MULTIchino short BT","PM8G","Korte broek (Confectiemaat) (Heren)"]
[null,null,null,null,null,null,null,null,null,null,null,null,"MULTIbroek BT","PW7C","Broek (Inchmaat) (Heren)"]
[null,null,null,null,null,null,null,null,null,null,null,null,"MULTIjoggingbroek BT","VQ9M","Broek (Confectiemaat) (Heren)"]
[null,null,null,null,null,null,null,null,null,null,null,null,"MULTIcargo broek BT","GJ7Q","Broek (Confectiemaat) (Heren)"]
[null,null,null,null,null,null,null,null,null,null,null,null,"MULTIchino BT","RQ7H","Broek (Inchmaat) (Heren)"]
[null,null,null,null,null,null,null,null,null,null,null,null,"MULTIpak BT","VQ2H","Kostuum (Heren)"]
[null,null,null,null,null,null,null,null,null,null,null,null,"MULTIsmoking BT","VQ2H","Kostuum (Heren)"]
[null,null,null,null,null,null,null,null,null,null,null,null,"MULTIblazer BT","QV3M","Colbert (heren"]
[null,null,null,null,null,null,null,null,null,null,null,null,"MULTIgilet BT","QV3M","Gilet (Heren)"]
[null,null,null,null,null,null,null,null,null,null,null,null,"MULTIpantalon BT","GX4G","Broek (Inchmaat) (Heren)"]
[null,null,null,null,null,null,null,null,null,null,null,null,"MULTIjeans BT","XJ2G","Jeans (inchmaat) (Heren)"]
[null,null,null,null,null,null,null,null,null,null,null,null,"MULTIjog denim BT","XJ2G","Jeans (inchmaat) (Heren)"]